{"text_format":"1","workbook":"xlsx","n_sheets":74,"sheets":["ACS_Notes","StartInstruction","ACS_B08303","HHIncomeByAge","Updates","PopulationCharacteristics","SchoolEnrolEduAttain","HousingCharacteristics","CntyDataLink","CntyQuery","BuildingPermitsSince2000","EmploymentAndWages","SmallTownEmploymentandWages","EmpVsHUxCounty","HHIncome-10YearComparison","HHIncomeByTenure","OwnerHousingCost","OwnerHousingCostPrior5Year","CntyDataLinkPrior5YearEstimates","CntyDataLinkPrior10YearEstimate","StatisticallySignificantCalcs","ACS_Source_Table_List","ACS_Table_B14001","ACS_Table_B15002","ACS_Table_B01001","ACS_Table_B01002","ACS_Tbl_B11001_B11002_B25010","ACS_Table_B19001","ACS_Table_B19037","DisabilityByAge","DisabilityByAgePrior5YearEst","ACS_Table_B18101","ACS_Table_B18102","ACS_Table_B18103","ACS_Table_B18104","ACS_Table_B18105","ACS_Table_B18106","ACS_Table_B18107","ACS_Table_C18108","ACS_Table_B19049","ACS_Table_B25118","ACS_TableB19101_ACS_Tbl_B19113","ACS_TableB19201_ACS_Tbl_B19202","ACS_Table_B25119","ACS_Table_B25001","ACS_Table_B25003","ACS_Table_B25004","ACS_Table_B25008","ACS_Table_B25024","ACS_Table_B25032","ACS_Table_B25034","ACS_Table_B25041","PovertyCharacteristics","ACS_Table_ B17001","ACS_Table_B17010","ACS_Table_B17017","ACS_Table_B03002","RentalHousingCost","RentalHousingCost-Prior5Yr","ACS_Table_B25063_&_B25064","ACS_Table_B25070","ACS_Table_B25074","PlaceOfBirthAndPriorRes","ACS_Table_B05002","ACS_Table_B07003","ACS_Table_B25075_&_B25077","ACS_Table_B25088","ACS_Table_B25091","ACS_Table_B25106","PopComparison","HousingComparison","Housing_EmploymentComparison","DropDownList","CntyQryCensus"],"not_rendered":{"charts":461,"images":159,"macros":1,"external_links":0,"defined_names":64,"comments":0,"pivot_tables":0},"unopened":[],"bounds":{"document_bytes":16777216,"sheet_cells":100000,"rows_first":2000,"rows_last":500,"rows_between":2000,"halvings":0,"cell_chars":16384,"cell_head_chars":4096},"cells_cut":0,"cells_raw":0,"read":"whole","date_system":"1900"}

{"sheet":"ACS_Notes","index":0,"n_rows":28,"n_cols":1,"rows_kept":28,"cut":false,"hidden":true,"merged":[[31,120,31,134],[31,135,31,149],[31,150,31,164],[31,165,31,179],[31,240,31,254],[31,180,31,194],[31,195,31,209],[31,210,31,224],[31,225,31,239],[31,60,31,74],[31,75,31,89],[31,90,31,104],[31,105,31,119],[29,0,29,14],[31,15,31,29],[31,30,31,44],[31,45,31,59],[25,0,25,14],[20,0,21,14],[22,0,22,14],[23,0,23,14],[24,0,24,14],[10,0,12,14],[14,0,14,14],[18,0,19,14],[3,0,5,14],[7,0,8,14]]}
["NOTES:"]
[]
[]
["Data are based on a sample and are subject to sampling variability. The degree of uncertainty for an estimate arising from sampling variability is represented through the use of a margin of error. The value shown here is the 90 percent margin of error. The margin of error can be interpreted roughly as providing a 90 percent probability that the interval defined by the estimate minus the margin of error and the estimate plus the margin of error (the lower and upper confidence bounds) contains the true value. In addition to sampling variability, the ACS estimates are subject to nonsampling error (for a discussion of nonsampling variability, see Accuracy of the Data). The effect of nonsampling error is not represented in these tables."]
[]
[]
[]
["In addition to sampling variability, the ACS estimates are subject to nonsampling error (for a discussion of nonsampling variability, see Accuracy of the Data. The link is located at the end of this worksheet.).  The effect of nonsampling error is not represented in these tables."]
[]
[]
["While the 2005-2009 American Community Survey (ACS) data generally reflect the November 2008 Office of Management and Budget (OMB) definitions of metropolitan and micropolitan statistical areas; in certain instances the names, codes, and boundaries of the principal cities shown in ACS tables may differ from the OMB definitions due to differences in the effective dates of the geographic entities."]
[]
[]
[]
["Estimates of urban and rural population, housing units, and characteristics reflect boundaries of urban areas defined based on Census 2000 data.  Boundaries for urban areas have not been updated since Census 2000.  As a result, data for urban and rural areas from the ACS do not necessarily reflect the results of ongoing urbanization."]
[]
["Explanation of Symbols:"]
[]
["1. An '**' entry in the margin of error column indicates that either no sample observations or too few sample observations were available to compute a standard error and thus the margin of error. A statistical test is not appropriate."]
[]
["2. An '-' entry in the estimate column indicates that either no sample observations or too few sample observations were available to compute an estimate, or a ratio of medians cannot be calculated because one or both of the median estimates falls in the lowest interval or upper interval of an open-ended distribution."]
[]
["3. An '-' following a median estimate means the median falls in the lowest interval of an open-ended distribution."]
["4. An '+' following a median estimate means the median falls in the upper interval of an open-ended distribution."]
["5. An '***' entry in the margin of error column indicates that the median falls in the lowest interval or upper interval of an open-ended distribution. A statistical test is not appropriate."]
["6. An '*****' entry in the margin of error column indicates that the estimate is controlled. A statistical test for sampling variability is not appropriate."]
[]
["Accuracy of Data "]

{"sheet":"StartInstruction","index":1,"n_rows":30,"n_cols":16,"rows_kept":30,"cut":false,"hidden":false,"merged":[[30,1,32,3],[29,15,31,18]]}
["Demographic Profiles for Municipalities in Rockingham County"]
[]
["To view or print a Demographic Profile follow the steps below"]
[]
[]
["Step 1. ",null,"Select the municipality you wish to"]
[null,null,"Profile from the drop down box below. "]
[]
[]
[]
[]
["Step 2. ",null,"Click one of the profile topic buttons below to review or print"]
[null,null,"the information for the selected geography."]
[null,null,"Don't forget to adjust the axis on charts as necessary. "]
[]
[]
[]
[]
[]
[]
[]
[]
[]
[]
[]
[]
[]
[null,null,null,null,null,null,null,null,null,null,null,null,null,"Updated:",null,"2020-12-18"]
[]
[null,null,null,null,null,null,null,null,null,null,null,null,null,"Next Update:",null,"Spring 2021 - Annual Labor Force and Unemployment Rate Data"]

{"sheet":"ACS_B08303","index":2,"n_rows":20,"n_cols":76,"rows_kept":20,"cut":false,"hidden":true,"merged":[]}
[null,"B08303: TRAVEL TIME TO WORK"]
[null,"Universe: Workers 16 years and over who did not work at home"]
[null,"Data Set: 2008-2010 American Community Survey 3-Year Estimates"]
[]
[null,null,"Atkinson",null,"Auburn",null,"Brentwood",null,"Candia",null,"Chester",null,"Danville",null,"Deerfield",null,"Derry",null,"East Kingston",null,"Epping",null,"Exeter",null,"Fremont",null,"Greenland",null,"Hampstead",null,"Hampton",null,"Hampton Falls",null,"Kensington",null,"Kingston",null,"Londonderry",null,"New Castle",null,"Newfields",null,"Newington",null,"Newmarket",null,"Newton",null,"North Hampton",null,"Northwood",null,"Nottingham",null,"Plaistow",null,"Portsmouth",null,"Raymond",null,"Rye",null,"Salem",null,"Sandown",null,"Seabrook",null,"South Hampton",null,"Stratham",null,"Windham"]
[null,null,"Esitimate","Margin Of Error","Esitimate","Margin Of Error","Esitimate","Margin Of Error","Esitimate","Margin Of Error","Esitimate","Margin Of Error","Esitimate","Margin Of Error","Esitimate","Margin Of Error","Esitimate","Margin Of Error","Esitimate","Margin Of Error","Esitimate","Margin Of Error","Esitimate","Margin Of Error","Esitimate","Margin Of Error","Esitimate","Margin Of Error","Esitimate","Margin Of Error","Esitimate","Margin Of Error","Esitimate","Margin Of Error","Esitimate","Margin Of Error","Esitimate","Margin Of Error","Esitimate","Margin Of Error","Esitimate","Margin Of Error","Esitimate","Margin Of Error","Esitimate","Margin Of Error","Esitimate","Margin Of Error","Esitimate","Margin Of Error","Esitimate","Margin Of Error","Esitimate","Margin Of Error","Esitimate","Margin Of Error","Esitimate","Margin Of Error","Esitimate","Margin Of Error","Esitimate","Margin Of Error","Esitimate","Margin Of Error","Esitimate","Margin Of Error","Esitimate","Margin Of Error","Esitimate","Margin Of Error","Esitimate","Margin Of Error","Esitimate","Margin Of Error","Esitimate","Margin Of Error"]
[null,"Population Older than 16 not working at hom",3816,320,2835,249,2019,185,2013,190,2590,190,2612,168,2484,178,18200,646,1144,133,3836,303,7240,406,2553,230,2009,176,4190,291,8224,309,1294,159,1133,89,3025,311,13675,405,318,100,906,139,378,65,5489,276,2833,226,2150,187,2432,174,2658,183,4263,334,11983,394,5615,385,2280,229,15226,547,3627,252,4354,283,357,55,3667,330,6201,425]
[null,"Less than 5 minutes",26138,1637,1399,370,1544,459,1916,383,1271,254,2370,425,5316,761,2734,409,5515,696,3396,575,677,219]
[null,"5 to 9 minutes",38,42,48,68,81,58,36,33,18,15,136,69,28,31,230,141,53,27,187,190,270,118,18,21,116,62,109,67,356,146,84,49,43,32,41,50,270,142,9,15,32,34,21,11,81,51,72,60,196,84,73,45,115,129,149,103,722,224,90,83,57,48,400,159,36,57,286,188,0,11,66,55,81,53]
[null,"10 to 14 minutes",227,104,141,75,90,50,89,62,52,37,68,75,128,64,1296,300,59,31,268,132,1096,236,176,83,149,63,175,63,1036,204,118,77,77,31,187,115,1058,201,70,37,71,28,46,26,213,80,109,69,280,116,188,85,67,56,469,178,2071,348,340,135,129,70,1089,222,174,89,735,180,23,12,264,119,179,113]
[null,"15 to 19 minutes",540,287,213,99,225,82,121,63,74,42,155,56,80,40,1762,440,113,41,309,155,1026,226,84,57,251,78,380,138,1067,223,205,69,125,38,262,158,1590,278,95,54,88,34,80,35,453,152,119,61,218,83,176,91,136,66,324,128,2584,419,387,115,348,150,1985,324,401,187,536,158,40,30,535,150,440,195]
[null,"20 to 24 minutes",497,156,688,179,316,116,179,80,266,138,264,121,97,65,1933,400,172,50,577,226,959,192,227,84,574,129,311,100,818,178,130,56,198,47,298,160,1471,217,16,16,133,44,36,16,1128,265,373,148,277,92,132,60,140,58,439,157,1678,323,628,200,624,203,2150,419,202,131,343,102,42,16,557,170,940,279]
[null,"25 to 29 minutes",353,144,401,107,263,95,468,120,338,112,202,92,223,83,2260,396,187,85,370,149,858,208,393,121,314,102,528,157,1421,248,230,63,155,58,430,189,1790,260,21,16,141,46,76,23,1074,243,264,109,274,112,245,107,240,103,589,252,1426,226,548,181,359,151,1832,348,399,141,712,209,60,21,729,263,701,199]
[null,"30 to 34 minutes",165,73,112,53,114,67,214,75,181,91,298,120,252,126,1707,282,50,33,159,98,735,244,263,86,95,44,348,149,493,147,85,24,44,19,93,84,1076,188,7,8,87,41,27,13,501,158,343,112,162,78,162,77,239,104,312,107,712,152,495,196,221,124,969,255,341,181,239,100,33,17,209,113,540,156]
[null,"35 to 39 minutes",707,201,452,131,256,109,273,73,338,93,295,118,510,149,2519,378,116,45,869,241,933,181,373,101,197,99,511,133,816,180,145,58,150,42,292,149,1875,303,12,11,129,38,15,10,798,156,398,117,112,55,277,87,423,116,573,217,734,198,1144,238,172,84,2190,359,694,210,535,195,40,19,388,137,1142,268]
[null,"40 to 44 minutes",103,81,106,69,107,55,48,34,223,126,129,77,301,92,991,223,48,27,220,86,185,80,141,76,41,30,251,115,214,92,69,38,61,22,68,56,507,117,10,11,15,13,7,10,243,123,183,83,8,15,264,86,348,97,206,125,168,90,269,117,56,47,671,175,295,128,98,54,15,11,77,66,210,102]
[null,"45 to 59 minutes",200,97,107,59,92,57,95,56,244,106,196,102,246,85,924,195,70,35,45,36,232,113,293,89,53,42,240,103,344,131,6,8,49,18,301,207,633,178,40,43,22,17,0,11,126,90,207,73,72,53,162,69,255,80,168,121,208,91,276,127,81,52,796,179,279,124,132,71,9,8,149,99,266,102]
[null,"60 to 89 minutes",416,162,289,110,149,65,222,102,330,98,460,128,323,125,1985,284,101,42,314,114,356,101,281,80,40,29,608,159,877,172,86,37,101,30,610,180,1490,228,14,17,79,37,26,20,365,112,364,142,142,55,540,126,274,82,428,123,645,156,679,194,120,71,1318,248,391,139,261,105,42,19,213,123,555,157]
[null,"90 or more minutes",455,150,162,81,204,83,118,50,341,97,259,128,182,85,1788,288,143,57,338,149,444,125,186,72,148,78,403,121,557,142,98,51,103,29,266,119,1426,246,24,20,76,29,37,22,211,100,288,94,231,91,187,78,230,77,485,262,650,168,483,180,66,83,1082,233,259,104,322,110,34,19,176,91,861,199]
[null,null,115,88,116,65,122,71,150,93,185,81,150,91,114,73,805,210,32,21,180,106,146,77,118,64,31,28,326,106,225,97,38,21,27,17,177,109,489,122,0,11,33,17,7,5,296,108,113,61,178,80,26,24,191,94,121,81,385,113,276,109,47,54,744,189,156,99,155,94,19,10,304,139,286,139]

{"sheet":"HHIncomeByAge","index":3,"n_rows":80,"n_cols":22,"rows_kept":80,"cut":false,"hidden":true,"merged":[[21,6,21,15]]}
[]
[null,null,{"$f":"CntyDataLink!A55","v":"Atkinson"}]
[null,null,"INCOME CHARACTERISTICS"]
[]
[]
[]
[]
[]
[]
[]
[]
[]
[]
[]
[]
[]
[]
[]
[]
[]
[null,null,{"$f":"HHIncomeByAge!C2","v":"Atkinson"},"Household Income in 2019"]
[null,null,null,null,null,null,"Households by Age of Householder "]
[null,null,null,"Households","Margin of Error Households",null,"Under 25","Margin of Error Under 25",null,"25 to 44","Margin of Error 25 to 44",null,"45 to 64","Margin of Error 45 to 64",null,"65 & Over","Margin of Error 65 & Over",null,"Family Households","MOE Family HH","Non-Family HH","MOE Non-Family HH"]
[null,null,"Less Than $10,000",{"$f":"CntyDataLink!$D$116","v":44},{"$f":"CntyDataLink!$E$116","v":43},null,{"$f":"CntyDataLink!$AN$116","v":0},{"$f":"CntyDataLink!$AO$116","v":16},null,{"$f":"CntyDataLink!$BV$116","v":0},{"$f":"CntyDataLink!$BW$116","v":16},null,{"$f":"CntyDataLink!$DD$116","v":18},{"$f":"CntyDataLink!$DE$116","v":28},null,{"$f":"CntyDataLink!$EL$116","v":26},{"$f":"CntyDataLink!$EM$116","v":32},null,{"$f":"CntyDataLink!$D$160","v":0},{"$f":"CntyDataLink!$E$160","v":16},{"$f":"CntyDataLink!$AN$160","v":44},{"$f":"CntyDataLink!$AO$160","v":43}]
[null,null,"$10,000 to $14,999",{"$f":"CntyDataLink!$F$116","v":50},{"$f":"CntyDataLink!$G$116","v":63},null,{"$f":"CntyDataLink!$AP$116","v":0},{"$f":"CntyDataLink!$AQ$116","v":16},null,{"$f":"CntyDataLink!$BX$116","v":0},{"$f":"CntyDataLink!$BY$116","v":16},null,{"$f":"CntyDataLink!$DF$116","v":0},{"$f":"CntyDataLink!$DG$116","v":16},null,{"$f":"CntyDataLink!$EN$116","v":50},{"$f":"CntyDataLink!$EO$116","v":63},null,{"$f":"CntyDataLink!$F$160","v":0},{"$f":"CntyDataLink!$G$160","v":16},{"$f":"CntyDataLink!$AP$160","v":50},{"$f":"CntyDataLink!$AQ$160","v":63}]
[null,null,"$15,000 to $19,999",{"$f":"CntyDataLink!$H$116","v":14},{"$f":"CntyDataLink!$I$116","v":23},null,{"$f":"CntyDataLink!$AR$116","v":0},{"$f":"CntyDataLink!$AS$116","v":16},null,{"$f":"CntyDataLink!$BZ$116","v":0},{"$f":"CntyDataLink!$CA$116","v":16},null,{"$f":"CntyDataLink!$DH$116","v":0},{"$f":"CntyDataLink!$DI$116","v":16},null,{"$f":"CntyDataLink!$EP$116","v":14},{"$f":"CntyDataLink!$EQ$116","v":23},null,{"$f":"CntyDataLink!$H$160","v":0},{"$f":"CntyDataLink!$I$160","v":16},{"$f":"CntyDataLink!$AR$160","v":14},{"$f":"CntyDataLink!$AS$160","v":23}]
[null,null,"$20,000 to $24,999",{"$f":"CntyDataLink!$J$116","v":84},{"$f":"CntyDataLink!$K$116","v":90},null,{"$f":"CntyDataLink!$AT$116","v":0},{"$f":"CntyDataLink!$AU$116","v":16},null,{"$f":"CntyDataLink!$CB$116","v":53},{"$f":"CntyDataLink!$CC$116","v":83},null,{"$f":"CntyDataLink!$DJ$116","v":31},{"$f":"CntyDataLink!$DK$116","v":37},null,{"$f":"CntyDataLink!$ER$116","v":0},{"$f":"CntyDataLink!$ES$116","v":16},null,{"$f":"CntyDataLink!$J$160","v":0},{"$f":"CntyDataLink!$K$160","v":16},{"$f":"CntyDataLink!$AT$160","v":84},{"$f":"CntyDataLink!$AU$160","v":90}]
[null,null,"$25,000 to $29,999",{"$f":"CntyDataLink!$L$116","v":16},{"$f":"CntyDataLink!$M$116","v":27},null,{"$f":"CntyDataLink!$AV$116","v":0},{"$f":"CntyDataLink!$AW$116","v":16},null,{"$f":"CntyDataLink!$CD$116","v":0},{"$f":"CntyDataLink!$CE$116","v":16},null,{"$f":"CntyDataLink!$DL$116","v":16},{"$f":"CntyDataLink!$DM$116","v":27},null,{"$f":"CntyDataLink!$ET$116","v":0},{"$f":"CntyDataLink!$EU$116","v":16},null,{"$f":"CntyDataLink!$L$160","v":27},{"$f":"CntyDataLink!$M$160","v":35},{"$f":"CntyDataLink!$AV$160","v":0},{"$f":"CntyDataLink!$AW$160","v":16}]
[null,null,"$30,000 to $34,999",{"$f":"CntyDataLink!$N$116","v":72},{"$f":"CntyDataLink!$O$116","v":51},null,{"$f":"CntyDataLink!$AX$116","v":0},{"$f":"CntyDataLink!$AY$116","v":16},null,{"$f":"CntyDataLink!$CF$116","v":19},{"$f":"CntyDataLink!$CG$116","v":31},null,{"$f":"CntyDataLink!$DN$116","v":0},{"$f":"CntyDataLink!$DO$116","v":16},null,{"$f":"CntyDataLink!$EV$116","v":53},{"$f":"CntyDataLink!$EW$116","v":41},null,{"$f":"CntyDataLink!$N$160","v":33},{"$f":"CntyDataLink!$O$160","v":38},{"$f":"CntyDataLink!$AX$160","v":39},{"$f":"CntyDataLink!$AY$160","v":35}]
[null,null,"$35,000 to $39,999",{"$f":"CntyDataLink!$P$116","v":13},{"$f":"CntyDataLink!$Q$116","v":20},null,{"$f":"CntyDataLink!$AZ$116","v":0},{"$f":"CntyDataLink!$BA$116","v":16},null,{"$f":"CntyDataLink!$CH$116","v":0},{"$f":"CntyDataLink!$CI$116","v":16},null,{"$f":"CntyDataLink!$DP$116","v":0},{"$f":"CntyDataLink!$DQ$116","v":16},null,{"$f":"CntyDataLink!$EX$116","v":13},{"$f":"CntyDataLink!$EY$116","v":20},null,{"$f":"CntyDataLink!$P$160","v":0},{"$f":"CntyDataLink!$Q$160","v":16},{"$f":"CntyDataLink!$AZ$160","v":13},{"$f":"CntyDataLink!$BA$160","v":20}]
[null,null,"$40,000 to $44,999",{"$f":"CntyDataLink!$R$116","v":75},{"$f":"CntyDataLink!$S$116","v":83},null,{"$f":"CntyDataLink!$BB$116","v":0},{"$f":"CntyDataLink!$BC$116","v":16},null,{"$f":"CntyDataLink!$CJ$116","v":0},{"$f":"CntyDataLink!$CK$116","v":16},null,{"$f":"CntyDataLink!$DR$116","v":0},{"$f":"CntyDataLink!$DS$116","v":16},null,{"$f":"CntyDataLink!$EZ$116","v":75},{"$f":"CntyDataLink!$FA$116","v":83},null,{"$f":"CntyDataLink!$R$160","v":15},{"$f":"CntyDataLink!$S$160","v":24},{"$f":"CntyDataLink!$BB$160","v":60},{"$f":"CntyDataLink!$BC$160","v":80}]
[null,null,"$45,000 to $49,999",{"$f":"CntyDataLink!$T$116","v":87},{"$f":"CntyDataLink!$U$116","v":69},null,{"$f":"CntyDataLink!$BD$116","v":0},{"$f":"CntyDataLink!$BE$116","v":16},null,{"$f":"CntyDataLink!$CL$116","v":0},{"$f":"CntyDataLink!$CM$116","v":16},null,{"$f":"CntyDataLink!$DT$116","v":14},{"$f":"CntyDataLink!$DU$116","v":25},null,{"$f":"CntyDataLink!$FB$116","v":73},{"$f":"CntyDataLink!$FC$116","v":68},null,{"$f":"CntyDataLink!$T$160","v":37},{"$f":"CntyDataLink!$U$160","v":38},{"$f":"CntyDataLink!$BD$160","v":50},{"$f":"CntyDataLink!$BE$160","v":60}]
[null,null,"$50,000 to $59,999",{"$f":"CntyDataLink!$V$116","v":161},{"$f":"CntyDataLink!$W$116","v":95},null,{"$f":"CntyDataLink!$BF$116","v":0},{"$f":"CntyDataLink!$BG$116","v":16},null,{"$f":"CntyDataLink!$CN$116","v":32},{"$f":"CntyDataLink!$CO$116","v":42},null,{"$f":"CntyDataLink!$DV$116","v":26},{"$f":"CntyDataLink!$DW$116","v":29},null,{"$f":"CntyDataLink!$FD$116","v":103},{"$f":"CntyDataLink!$FE$116","v":77},null,{"$f":"CntyDataLink!$V$160","v":32},{"$f":"CntyDataLink!$W$160","v":35},{"$f":"CntyDataLink!$BF$160","v":129},{"$f":"CntyDataLink!$BG$160","v":84}]
[null,null,"$60,000 to $74,999",{"$f":"CntyDataLink!$X$116","v":131},{"$f":"CntyDataLink!$Y$116","v":72},null,{"$f":"CntyDataLink!$BH$116","v":0},{"$f":"CntyDataLink!$BI$116","v":16},null,{"$f":"CntyDataLink!$CP$116","v":11},{"$f":"CntyDataLink!$CQ$116","v":19},null,{"$f":"CntyDataLink!$DX$116","v":29},{"$f":"CntyDataLink!$DY$116","v":35},null,{"$f":"CntyDataLink!$FF$116","v":91},{"$f":"CntyDataLink!$FG$116","v":57},null,{"$f":"CntyDataLink!$X$160","v":118},{"$f":"CntyDataLink!$Y$160","v":66},{"$f":"CntyDataLink!$BH$160","v":21},{"$f":"CntyDataLink!$BI$160","v":32}]
[null,null,"$75,000 to $99,999",{"$f":"CntyDataLink!$Z$116","v":351},{"$f":"CntyDataLink!$AA$116","v":143},null,{"$f":"CntyDataLink!$BJ$116","v":0},{"$f":"CntyDataLink!$BK$116","v":16},null,{"$f":"CntyDataLink!$CR$116","v":99},{"$f":"CntyDataLink!$CS$116","v":65},null,{"$f":"CntyDataLink!$DZ$116","v":196},{"$f":"CntyDataLink!$EA$116","v":121},null,{"$f":"CntyDataLink!$FH$116","v":56},{"$f":"CntyDataLink!$FI$116","v":48},null,{"$f":"CntyDataLink!$Z$160","v":262},{"$f":"CntyDataLink!$AA$160","v":119},{"$f":"CntyDataLink!$BJ$160","v":70},{"$f":"CntyDataLink!$BK$160","v":59}]
[null,null,"$100,000 to $124,999",{"$f":"CntyDataLink!$AB$116","v":441},{"$f":"CntyDataLink!$AC$116","v":142},null,{"$f":"CntyDataLink!$BL$116","v":0},{"$f":"CntyDataLink!$BM$116","v":16},null,{"$f":"CntyDataLink!$CT$116","v":96},{"$f":"CntyDataLink!$CU$116","v":68},null,{"$f":"CntyDataLink!$EB$116","v":285},{"$f":"CntyDataLink!$EC$116","v":113},null,{"$f":"CntyDataLink!$FJ$116","v":60},{"$f":"CntyDataLink!$FK$116","v":50},null,{"$f":"CntyDataLink!$AB$160","v":413},{"$f":"CntyDataLink!$AC$160","v":140},{"$f":"CntyDataLink!$BL$160","v":28},{"$f":"CntyDataLink!$BM$160","v":34}]
[null,null,"$125,000 to $149,999",{"$f":"CntyDataLink!$AD$116","v":291},{"$f":"CntyDataLink!$AE$116","v":99},null,{"$f":"CntyDataLink!$BN$116","v":0},{"$f":"CntyDataLink!$BO$116","v":16},null,{"$f":"CntyDataLink!$CV$116","v":53},{"$f":"CntyDataLink!$CW$116","v":49},null,{"$f":"CntyDataLink!$ED$116","v":184},{"$f":"CntyDataLink!$EE$116","v":82},null,{"$f":"CntyDataLink!$FL$116","v":54},{"$f":"CntyDataLink!$FM$116","v":45},null,{"$f":"CntyDataLink!$AD$160","v":280},{"$f":"CntyDataLink!$AE$160","v":96},{"$f":"CntyDataLink!$BN$160","v":11},{"$f":"CntyDataLink!$BO$160","v":19}]
[null,null,"$150,000 to $199,999",{"$f":"CntyDataLink!$AF$116","v":457},{"$f":"CntyDataLink!$AG$116","v":141},null,{"$f":"CntyDataLink!$BP$116","v":0},{"$f":"CntyDataLink!$BQ$116","v":16},null,{"$f":"CntyDataLink!$CX$116","v":129},{"$f":"CntyDataLink!$CY$116","v":85},null,{"$f":"CntyDataLink!$EF$116","v":260},{"$f":"CntyDataLink!$EG$116","v":133},null,{"$f":"CntyDataLink!$FN$116","v":68},{"$f":"CntyDataLink!$FO$116","v":53},null,{"$f":"CntyDataLink!$AF$160","v":403},{"$f":"CntyDataLink!$AG$160","v":138},{"$f":"CntyDataLink!$BP$160","v":54},{"$f":"CntyDataLink!$BQ$160","v":66}]
[null,null,"$200,000 or More",{"$f":"CntyDataLink!$AH$116","v":458},{"$f":"CntyDataLink!$AI$116","v":138},null,{"$f":"CntyDataLink!$BR$116","v":0},{"$f":"CntyDataLink!$BS$116","v":16},null,{"$f":"CntyDataLink!$CZ$116","v":59},{"$f":"CntyDataLink!$DA$116","v":44},null,{"$f":"CntyDataLink!$EH$116","v":300},{"$f":"CntyDataLink!$EI$116","v":117},null,{"$f":"CntyDataLink!$FP$116","v":99},{"$f":"CntyDataLink!$FQ$116","v":59},null,{"$f":"CntyDataLink!$AH$160","v":374},{"$f":"CntyDataLink!$AI$160","v":107},{"$f":"CntyDataLink!$BR$160","v":84},{"$f":"CntyDataLink!$BS$160","v":72}]
[]
[null,null,"Total Households",{"$f":"CntyDataLink!$B$116","v":2745},{"$f":"CntyDataLink!$C$116","v":185},null,{"$f":"CntyDataLink!$AL$116","v":0},{"$f":"CntyDataLink!$AM$116","v":16},null,{"$f":"CntyDataLink!$BT$116","v":551},{"$f":"CntyDataLink!$BU$116","v":142},null,{"$f":"CntyDataLink!$DB$116","v":1359},{"$f":"CntyDataLink!$DC$116","v":147},null,{"$f":"CntyDataLink!$EJ$116","v":835},{"$f":"CntyDataLink!$EK$116","v":175},null,{"$f":"CntyDataLink!$B$160","v":1994},{"$f":"CntyDataLink!$C$160","v":146},{"$f":"CntyDataLink!$AL$160","v":751},{"$f":"CntyDataLink!$AM$160","v":187}]
[null,null,"Median Household Inc ",{"$f":"CntyDataLink!$FR$116","v":118712},{"$f":"CntyDataLink!$FS$116","v":8166},null,{"$f":"CntyDataLink!$FT$116","v":"-"},{"$f":"CntyDataLink!$FU$116","v":"**"},null,{"$f":"CntyDataLink!$FV$116","v":112578},{"$f":"CntyDataLink!$FW$116","v":28786},null,{"$f":"CntyDataLink!$FX$116","v":137725},{"$f":"CntyDataLink!$FY$116","v":19549},null,{"$f":"CntyDataLink!$FZ$116","v":63510},{"$f":"CntyDataLink!$GA$116","v":14401},null,{"$f":"CntyDataLink!$AJ$160","v":132500},{"$f":"CntyDataLink!$AK$160","v":12176},{"$f":"CntyDataLink!BT$160","v":51991},{"$f":"CntyDataLink!$BU$160","v":9834}]
[]
[null,null,"Source: 2015-2019 American Community Survey Table B19001; B19037; B19101;  B19102; B19112; B19113; B19049"]
[null,null,"Data from the American Community Survey are estimates"]
[]
[null,null,{"$f":"C2","v":"Atkinson"}]
[null,null,"INCOME CHARACTERISTICS"]
[]
[]
[]
[]
[]
[]
[]
[]
[]
[]
[]
[]
[]
[]
[]
[]
[]
[]
[]
[]
[]
[]
[]
[]
[]
[]
[]
[]
[]
[]
[]
[null,null,"Source: 2015-2019 American Community Survey Tables B19001; B19102",null,null,null,null,null,null,null,null,null,null,null,null,"Data from the American Community Survey are estimates"]

{"sheet":"Updates","index":4,"n_rows":47,"n_cols":3,"rows_kept":47,"cut":false,"hidden":false,"merged":[[7,2,7,12],[6,2,6,11],[0,0,0,12],[13,2,13,12],[14,2,14,12],[1,2,1,12],[3,2,3,12],[12,2,12,12],[11,2,11,11],[10,2,10,12],[2,2,2,12],[4,2,4,12],[5,2,5,12],[8,2,8,12],[9,2,9,12],[21,2,21,12],[23,2,23,12],[24,2,24,12],[25,2,25,12],[26,2,26,12],[22,2,22,12],[32,2,32,12],[33,2,33,12],[27,2,27,12],[28,2,28,12],[29,2,29,12],[30,2,30,12],[31,2,31,12],[46,2,46,12],[35,2,35,12],[34,2,34,12],[39,2,39,12],[40,2,40,12],[41,2,41,12],[42,2,42,12],[43,2,43,12],[36,2,36,12],[37,2,37,12],[38,2,38,12],[44,2,44,12],[45,2,45,12],[15,2,15,12],[18,2,18,12],[19,2,19,12],[20,2,20,12],[16,2,16,12],[17,2,17,12]]}
["Important Notes"]
["Date",null,"Task"]
[]
["2020-12-18",null,"Updated 2015-2019 Amreican Community Survey Data and added 2019 NH Permit data."]
["2020-09-10",null,"Updated historical data 2005-2009 and 2010-2014 ACS Data"]
["2020-07-10",null,"Updated 2019 Unemployment Rate and Labor Force Data to Employment, Wages, LaborForce & Unemp. Worksheet for large communities."]
["2019-12-31",null,"Updated Visual Basic Code changing the footer font from Gotham Medium to Verdana."]
["2019-12-27",null,"Updated with 2014-2018 ACS Data. Updated 2018 Permit data. Updated CPI Adjustment Factor (1.02437673) to the 2009-2013 and 2014-2018 Income Comparison Table. This factor was provided by Census"]
["2019-11-27",null,"Updated the 2009-2013 ACS data for comparison purposes. Updated charts to new color scheme"]
["2019-01-08",null,"Updated the location of the 2008-2012 data and the ACS_Tbl_B11001_B11002_B25010 worksheet. This fixed an error on the PopulationCharacteristics worksheet"]
["2018-12-19",null,"Updated 2017 Annual Employment and Wage data; updated Housing and Employment worksheet. Updated 2017 Permit data"]
["2018-12-13",null,"Updated the 2008-2012 ACS data for comparison purposes. Updated CPI Adjustment Factor (1.0676) to the 2008-2012 and 2013-2017  Income Comparison Table. This factor was provided by Census."]
["2018-12-06",null,"Updated labels in workbook to reflect 2013-2017 data set and 2008-2012 comparison data set. Updated footer text.  Updated 2013-2017 ACS"]
["2018-08-16",null,"Updated Chart formats"]
["2018-05-09",null,"Updated 2017 Unemployment Rate and Labor Force Data to Employment, Wages, LaborForce & Unemp. Worksheet for large communities."]
["2017-12-18",null,"Updated 2016 NH Permit Data"]
["2017-12-12",null,"Updated Charts with 2012-2016 data; updated code to reflect additional data points in various tables. Updated CPI Adjustment Factor (1.06686838) to the 2007-2011 and 2012-2016 Income Comparison Table. This factor was provided by Census."]
["2017-11-16",null,"Updated the 2007-2011 ACS data for comparison purposes."]
["2017-10-12",null,"Updated 2016 Annual Employment and Wage data; updated Housing and Employment worksheet"]
["2017-05-15",null,"Updated 2016 Unemployment Rate and Labor Force Data to Employment, Wages, LaborForce & Unemp. Worksheet for large communities."]
["2017-01-05",null,"Verified Charts; Added 2015 Permit Data; Updated Housing and Permit data"]
["2016-12-29",null,"Updated the 2006-2010 ACS data for comparison purposes."]
["2016-12-23",null,"Updated Town Comparisons: Employment and Housing with 2015 data"]
["2016-12-20",null,"Updated Charts with 2011-2015 data; updated code to reflect additional data points in various tables. Updated CPI Adjustment Factor (1.08710584) to the 2006-2010 and 2011-2015 Income Comparison Table. This factor was provided by Census."]
["2016-12-16",null,"Updated 2011-2015 ACS data"]
["2016-10-31",null,"Updated 2015 Annual Employment and Wage data"]
["2016-08-09",null,"Updated Labor Force and Unemployment data for the specific towns: Concord; Derry; Dover; Hudson; Londonderry; Manchester; Merrimack; Nashua; Rochester; and Salem"]
["2016-01-14",null,"Fixed error in School Attainment worksheet - Graduate or Professional Degree data."]
["2016-01-07",null,"Fixed formula in Poverty worksheet; fixed Non-Family Persons per Household data; fixed legend of Rental Cost Charts."]
["2015-12-23",null,"Fixed Table ACS_B25074"]
["2015-12-16",null,"Updated Code to correct an error on the OwnerHousingCost worksheet; updated column names on CntyDataLink."]
["2015-12-11",null,"Updated Code to correct an error on the RentalHousingCost worksheet; updated column names on CntyDataLink."]
["2015-12-10",null,"Updated 2010-2014 ACS data"]
["2015-12-07",null,"Updated Permit Data and all appropriate charts."]
["2015-12-03",null,"Updated Color scheme on charts and added correct logo to the charts; updated RentalHousingCost and OwnerCost worksheet to eliminate a printed page. Charts were moved and reduced in size. Updated the CPI Adjustment Factor (1.1034264) to the 2005-2009 and 2010-2014 Income Comparison Table. This factor was provided by Census."]
["2015-10-06",null,"Added County Comparison Employment and Housing data. Added Visual basic code to automatically update footer. Visual basic code will run when Ctrl-j is selected. "]
["2015-09-29",null,"Updated Employment Information"]
["2015-09-18",null,"Updated RentalHousingCost worksheet to accommodate changes to Table B25074. Updated Charts and code to allow for prior 5 year estimates to be update"]
["2015-09-01",null,"Updated Code to include Prior 5 Year Estimates."]
["2015-08-18",null,"Updated Owner Cost Chart and data. Added Table B25106. Housing Cost burden by Income. Updated 2006-2010 ACS Estimate data."]
["2015-08-06",null,"Corrected the Employment vs. Housing worksheet."]
["2015-03-17",null,"Added Labor Force Data"]
["2014-12-30",null,"Corrected Rental Cost formula."]
["2014-12-17",null,"Corrected and verified household pie charts. All Permit data and employment data has been updated through 2013."]
["2011-10-14",null,"Reformatted the code in the worksheet and corrected an error in the Income Comparison Sheet"]
["2010-12-21",null,"Added Margin of Error information on all applicable ACS Sheets"]
["2010-12-07",null,"Created a calculated Table B19001 in anticipation for the 5 year data.  Table C19001 will not be provided"]

{"sheet":"PopulationCharacteristics","index":5,"n_rows":64,"n_cols":23,"rows_kept":64,"cut":false,"hidden":true,"merged":[[62,1,62,8],[63,1,63,3],[2,8,2,12],[19,18,19,20],[45,1,45,8],[48,3,48,4],[48,6,48,7],[48,9,48,10],[3,1,3,3],[19,15,19,17],[18,2,18,12],[18,15,18,21],[19,11,19,13],[33,11,33,12]]}
[]
[null,{"$f":"CntyDataLink!$A35","v":"Atkinson"}]
[null,null,null,null,null,null,"Land Area:",null,{"$f":"((CntyDataLink!F35*10.764)/43560)/640","v":11.12845335485537},null,"Water Area:",{"$f":"((CntyDataLink!G35*10.764)/43560)/640","v":0.16165421100206612}]
[null,"POPULATION CHARACTERISTICS"]
[]
[]
[]
[]
[]
[]
[]
[]
[]
[]
[]
[]
[]
[]
[null,"Population ",{"$f":"\"Source:  US Census; New Hampshire Office of Strategic Initiatives; \"& L20&\", \"&P20&\", and \"&S20&\" American Community Survey Table B01001\"","v":"Source:  US Census; New Hampshire Office of Strategic Initiatives; 2005-2009, 2010-2014, and 2015-2019 American Community Survey Table B01001"},null,null,null,null,null,null,null,null,null,null,"Population by Age ",null,{"$f":"\"Source: \"& L20&\", \"&P20&\", and \"&S20&\"  American Community Survey Tables B01001 and B01002\"","v":"Source: 2005-2009, 2010-2014, and 2015-2019  American Community Survey Tables B01001 and B01002"}]
[null,null,null,null,null,null,null,null,null,null,null,"2005-2009",null,null,null,"2010-2014",null,null,"2015-2019"]
[null,null,1980,1990,2000,"2015-2019",2025,2030,null,null,null,"Estimate",null,"Margin of Error","Percent Change","Estimate","Margin of Error","Percent Change","Estimate","Margin of Error",null,"Percent Change","Statistically Significant Change"]
[null,null,{"$f":"CntyDataLink!$E$20","v":4397},{"$f":"CntyDataLink!$F$20","v":5188},{"$f":"CntyDataLink!$G$20","v":6178},{"$f":"CntyDataLink!$B$132","v":6952},{"$f":"CntyDataLink!$I$20","v":7358},{"$f":"CntyDataLink!$K$20","v":7536},null,null,"Under 15 yrs.",{"$f":"CntyDataLinkPrior10YearEstimate!$D$132","v":1164},null,{"$f":"CntyDataLinkPrior10YearEstimate!$E$132","v":207.96874765214125},{"$f":"L22/SUM($L$22:$L$29)","v":0.17514294312368342},{"$f":"CntyDataLinkPrior5YearEstimates!$D$132","v":1022},{"$f":"CntyDataLinkPrior5YearEstimates!$E$132","v":220.03636063160107},{"$f":"P22/SUM($P$22:$P$29)","v":0.15055981143193872},{"$f":"CntyDataLink!$D$132","v":1032},{"$f":"CntyDataLink!$E$132","v":283.33901955078477},{"$f":"S22/SUM($S$22:$S$29)","v":0.14844649021864212},{"$f":"(S22-P22)/P22","v":9.7847358121330719E-3},{"$f":"StatisticallySignificantCalcs!$A3","v":"Y"}]
[null,null,null,null,null,null,null,null,null,null,"15 to 24 yrs.",{"$f":"CntyDataLinkPrior10YearEstimate!$F$132","v":630},null,{"$f":"CntyDataLinkPrior10YearEstimate!$G$132","v":224.34794405119919},{"$f":"L23/SUM($L$22:$L$29)","v":9.4793860969003912E-2},{"$f":"CntyDataLinkPrior5YearEstimates!$F$132","v":965},{"$f":"CntyDataLinkPrior5YearEstimates!$G$132","v":223.90846343986195},0.14216263995285799,{"$f":"CntyDataLink!$F$132","v":907},{"$f":"CntyDataLink!$G$132","v":234.58473948660856},0.13046605293440736,-6.0103626943005181E-2,{"$f":"StatisticallySignificantCalcs!$A4","v":"Y"}]
[null,"Percent Change",null,null,null,null,null,null,null,null,"25 to 34 yrs.",{"$f":"CntyDataLinkPrior10YearEstimate!$H$132","v":441},null,{"$f":"CntyDataLinkPrior10YearEstimate!$I$132","v":158.08225706890701},{"$f":"L24/SUM($L$22:$L$29)","v":6.6355702678302736E-2},{"$f":"CntyDataLinkPrior5YearEstimates!$H$132","v":425},{"$f":"CntyDataLinkPrior5YearEstimates!$I$132","v":145.52319402761884},6.2610489098408953E-2,{"$f":"CntyDataLink!$H$132","v":461},{"$f":"CntyDataLink!$I$132","v":148.98322053170955},6.6311852704257768E-2,8.4705882352941173E-2,{"$f":"StatisticallySignificantCalcs!$A5","v":"Y"}]
[null,null,null,{"$f":"C21&\"-\"&(D21-1900)","v":"1980-90"},"1990-2000",{"$f":"E21&\"-19\"","v":"2000-19"},{"$f":"2019&\"-\"&(G21)","v":"2019-2025"},{"$f":"G21&\"-\"&(H21)","v":"2025-2030"},null,null,"35 to 44 yrs.",{"$f":"CntyDataLinkPrior10YearEstimate!$J$132","v":956},null,{"$f":"CntyDataLinkPrior10YearEstimate!$K$132","v":159.91872935963443},0.14384592235931387,{"$f":"CntyDataLinkPrior5YearEstimates!$J$132","v":728},{"$f":"CntyDataLinkPrior5YearEstimates!$K$132","v":180.32470712578461},0.10724808485562758,{"$f":"CntyDataLink!$J$132","v":620},{"$f":"CntyDataLink!$K$132","v":165.23619458217985},8.9182968929804374E-2,-0.14835164835164835,{"$f":"StatisticallySignificantCalcs!$A6","v":"Y"}]
[null,null,null,{"$f":"(D22-C22)/C22","v":0.17989538321582899},{"$f":"(E22-D22)/D22","v":0.19082498072474943},{"$f":"(F22-E22)/E22","v":0.1252832631919715},{"$f":"(G22-F22)/F22","v":5.8400460299194476E-2},{"$f":"(H22-G22)/G22","v":2.4191356346833379E-2},null,null,"45 to 54 yrs.",{"$f":"CntyDataLinkPrior10YearEstimate!$L$132","v":1254},null,{"$f":"CntyDataLinkPrior10YearEstimate!$M$132","v":210.40437257813821},0.18868492326211256,{"$f":"CntyDataLinkPrior5YearEstimates!$L$132","v":1295},{"$f":"CntyDataLinkPrior5YearEstimates!$M$132","v":214.79525134415798},0.19077784325279906,{"$f":"CntyDataLink!$L$132","v":1356},{"$f":"CntyDataLink!$M$132","v":252.38660820257479},0.19505178365937859,4.7104247104247106E-2,{"$f":"StatisticallySignificantCalcs!$A7","v":"Y"}]
[null,null,null,null,null,null,null,null,null,null,"55 to 64 yrs.",{"$f":"CntyDataLinkPrior10YearEstimate!$N$132","v":1099},null,{"$f":"CntyDataLinkPrior10YearEstimate!$O$132","v":166.5653025092561},0.16536262413481795,{"$f":"CntyDataLinkPrior5YearEstimates!$N$132","v":1222},{"$f":"CntyDataLinkPrior5YearEstimates!$O$132","v":231.39792566053828},0.18002357100766059,{"$f":"CntyDataLink!$N$132","v":1201},{"$f":"CntyDataLink!$O$132","v":227.65983396286663},0.17275604142692749,-1.718494271685761E-2,{"$f":"StatisticallySignificantCalcs!$A8","v":"Y"}]
[null,null,null,null,null,null,null,null,null,null,"65 to 74 yrs.",{"$f":"CntyDataLinkPrior10YearEstimate!$P$132","v":556},null,{"$f":"CntyDataLinkPrior10YearEstimate!$Q$132","v":138.78040207464454},8.3659343966295513E-2,{"$f":"CntyDataLinkPrior5YearEstimates!$P$132","v":622},{"$f":"CntyDataLinkPrior5YearEstimates!$Q$132","v":156.16017418023074},9.1632292280494992E-2,{"$f":"CntyDataLink!$P$132","v":902},{"$f":"CntyDataLink!$Q$132","v":195},0.12974683544303797,0.45016077170418006,{"$f":"StatisticallySignificantCalcs!$A9","v":"Y"}]
[null,null,null,null,null,null,null,null,null,null,"Over 74 yrs. ",{"$f":"CntyDataLinkPrior10YearEstimate!$R$132","v":546},null,{"$f":"CntyDataLinkPrior10YearEstimate!$S$132","v":154.12657136263039},8.2154679506470055E-2,{"$f":"CntyDataLinkPrior5YearEstimates!$R$132","v":509},{"$f":"CntyDataLinkPrior5YearEstimates!$S$132","v":171.79348066792289},7.498526812021214E-2,{"$f":"CntyDataLink!$R$132","v":473},{"$f":"CntyDataLink!$S$132","v":132.57073583562851},6.8037974683544306E-2,-7.072691552062868E-2,{"$f":"StatisticallySignificantCalcs!$A10","v":"Y"}]
[null,null,null,null,null,null,null,null,null,null,"Median Age (years)",{"$f":"CntyDataLinkPrior10YearEstimate!$AX$132","v":46.3},null,{"$f":"CntyDataLinkPrior10YearEstimate!$AY$132","v":1.9},null,{"$f":"CntyDataLinkPrior5YearEstimates!$AX132","v":47.2},{"$f":"CntyDataLinkPrior5YearEstimates!$AY$132","v":2},null,{"$f":"CntyDataLink!$AX$132","v":48.6},{"$f":"CntyDataLink!$AY$132","v":2.9}]
[]
[null,"Population By Race",null,null,null,null,null,null,null,null,null,null,"Statistically Significant Change"]
[null,null,null,null,null,null,null,null,null,null,null,null,{"$f":"IF(L36=\"\",\"-\",StatisticallySignificantCalcs!A20)","v":"N"}]
[null,null,"2005-2009",null,null,"2010-2014",null,null,"2015-2019",null,null,"Statistically Significant Change"]
[null,null,"Estimate","Margin of Error",null,"Estimate","Margin of Error",null,"Estimate","Margin of Error",null,"2009-2019","2014-2019"]
[null,"White",{"$f":"CntyDataLinkPrior10YearEstimate!$AL$132","v":6419},{"$f":"CntyDataLinkPrior10YearEstimate!$AM$132","v":171},{"$f":"IF(C$36=\"-\",\"-\",VALUE(C36/$C$41))","v":0.96584411676196213},{"$f":"CntyDataLinkPrior5YearEstimates!$AL$132","v":6553},{"$f":"CntyDataLinkPrior5YearEstimates!$AM$132","v":168},{"$f":"IF(F$36=\"-\",\"-\",VALUE(F36/$F$41))","v":0.9653800824985268},{"$f":"CntyDataLink!$AL$132","v":6627},{"$f":"CntyDataLink!$AM$132","v":190},{"$f":"IF(I$36=\"-\",\"-\",VALUE(I36/$I$41))","v":0.95325086306098961},{"$f":"StatisticallySignificantCalcs!A20","v":"N"},{"$f":"StatisticallySignificantCalcs!J20","v":"N"}]
[null,"Black",{"$f":"CntyDataLinkPrior10YearEstimate!$AN132","v":84},{"$f":"CntyDataLinkPrior10YearEstimate!$AO$132","v":121},{"$f":"IF(C$37=\"-\",\"-\",VALUE(C37/$C$41))","v":1.2639181462533854E-2},{"$f":"CntyDataLinkPrior5YearEstimates!$AN132","v":0},{"$f":"CntyDataLinkPrior5YearEstimates!$AO$132","v":15},{"$f":"IF(F$37=\"-\",\"-\",VALUE(F37/$F$41))","v":0},{"$f":"CntyDataLink!$AN$132","v":0},{"$f":"CntyDataLink!$AO$132","v":16},{"$f":"IF(I$37=\"-\",\"-\",VALUE(I37/$I$41))","v":0},{"$f":"StatisticallySignificantCalcs!A21","v":"N"},{"$f":"StatisticallySignificantCalcs!J21","v":"N"}]
[null,"American Indian",{"$f":"CntyDataLinkPrior10YearEstimate!$AP$132","v":17},{"$f":"CntyDataLinkPrior10YearEstimate!$AQ$132","v":27},{"$f":"IF(C$38=\"-\",\"-\",VALUE(C38/$C$41))","v":2.5579295817032802E-3},{"$f":"CntyDataLinkPrior5YearEstimates!$AP$132","v":0},{"$f":"CntyDataLinkPrior5YearEstimates!$AQ$132","v":15},{"$f":"IF(F$38=\"-\",\"-\",VALUE(F38/$F$41))","v":0},{"$f":"CntyDataLink!$AP$132","v":0},{"$f":"CntyDataLink!$AQ$132","v":16},{"$f":"IF(I$38=\"-\",\"-\",VALUE(I38/$I$41))","v":0},{"$f":"StatisticallySignificantCalcs!A22","v":"N"},{"$f":"StatisticallySignificantCalcs!J22","v":"N"}]
[null,"Asian &Pacific Is.",{"$f":"CntyDataLinkPrior10YearEstimate!$AR$132","v":0},{"$f":"CntyDataLinkPrior10YearEstimate!$AS$132","v":161.22034611053283},{"$f":"IF(C$39=\"-\",\"-\",VALUE(C39/$C$41))","v":0},{"$f":"CntyDataLinkPrior5YearEstimates!$AR$132","v":0},{"$f":"CntyDataLinkPrior5YearEstimates!$AS$132","v":21.213203435596427},{"$f":"IF(F$39=\"-\",\"-\",VALUE(F39/$F$41))","v":0},{"$f":"CntyDataLink!$AR$132","v":110},{"$f":"CntyDataLink!$AS$132","v":91.411159056211517},{"$f":"IF(I$39=\"-\",\"-\",VALUE(I39/$I$41))","v":1.5822784810126583E-2},{"$f":"StatisticallySignificantCalcs!A23","v":"N"},{"$f":"StatisticallySignificantCalcs!J23","v":"Y"}]
[null,"Other*",{"$f":"CntyDataLinkPrior10YearEstimate!$AT$132","v":26},{"$f":"CntyDataLinkPrior10YearEstimate!$AU$132","v":118.68024266911489},{"$f":"IF(C$40=\"-\",\"-\",VALUE(C40/$C$41))","v":3.9121275955461936E-3},{"$f":"CntyDataLinkPrior5YearEstimates!$AT$132","v":19},{"$f":"CntyDataLinkPrior5YearEstimates!$AU$132","v":26.627053911388696},{"$f":"IF(F$40=\"-\",\"-\",VALUE(F40/$F$41))","v":2.7990571596935767E-3},{"$f":"CntyDataLink!$AT$132","v":70},{"$f":"CntyDataLink!$AU$132","v":80.603970125546539},{"$f":"IF(I$40=\"-\",\"-\",VALUE(I40/$I$41))","v":1.0069044879171462E-2},{"$f":"StatisticallySignificantCalcs!A24","v":"N"},{"$f":"StatisticallySignificantCalcs!J24","v":"N"}]
[null,"Total Population",{"$f":"CntyDataLinkPrior10YearEstimate!$B$132","v":6646},{"$f":"CntyDataLinkPrior10YearEstimate!$C$132","v":22},null,{"$f":"CntyDataLinkPrior5YearEstimates!$B$132","v":6788},{"$f":"CntyDataLinkPrior5YearEstimates!$C$132","v":19},null,{"$f":"CntyDataLink!$B$132","v":6952},{"$f":"CntyDataLink!$C$132","v":33}]
[null,"Hispanic",{"$f":"CntyDataLinkPrior10YearEstimate!$AV$132","v":100},{"$f":"CntyDataLinkPrior10YearEstimate!$AW$132","v":76},{"$f":"IF(C$42=\"-\",\"-\",VALUE(C42/$C$41))","v":1.504664459825459E-2},{"$f":"CntyDataLinkPrior5YearEstimates!$AV132","v":216},{"$f":"CntyDataLinkPrior5YearEstimates!$AW$132","v":171},{"$f":"IF(F$42=\"-\",\"-\",VALUE(F42/$F$41))","v":3.1820860341779611E-2},{"$f":"CntyDataLink!$AV$132","v":145},{"$f":"CntyDataLink!$AW$132","v":107},{"$f":"IF(I$42=\"-\",\"-\",VALUE(I42/$I$41))","v":2.0857307249712312E-2},{"$f":"StatisticallySignificantCalcs!A26","v":"N"},{"$f":"StatisticallySignificantCalcs!J26","v":"N"}]
[]
[null,"*","Other includes population of 2 or more races"]
[]
[null,{"$f":"\"Source: \"& L20&\", \"&P20&\", and \"&S20&\" American Community Survey Table B03002\"","v":"Source: 2005-2009, 2010-2014, and 2015-2019 American Community Survey Table B03002"}]
[]
[null,null,"Households and Families"]
[null,null,null,"2005-2009",null,null,"2010-2014",null,null,"2015-2019",null,null,null,"Percent Change 2009-2019",null,"Percent Change 2010-2019"]
[null,null,null,"Estimate","Margin of Error",null,"Estimate","Margin of Error",null,"Estimate","Margin of Error"]
[null,null,"Total Households",{"$f":"CntyDataLinkPrior10YearEstimate!$T$132","v":2613},{"$f":"CntyDataLinkPrior10YearEstimate!$U$132","v":114},null,{"$f":"CntyDataLinkPrior5YearEstimates!$T$132","v":2597},{"$f":"CntyDataLinkPrior5YearEstimates!$U$132","v":115},null,{"$f":"CntyDataLink!$T$132","v":2745},{"$f":"CntyDataLink!$U$132","v":185},null,null,{"$f":"(J51-D51)/D51","v":5.0516647531572902E-2},null,{"$f":"(J51-G51)/G51","v":5.698883326915672E-2}]
[null,null,"Persons per Household",{"$f":"CntyDataLinkPrior10YearEstimate!$BD$132","v":2.5434366628396479},{"$f":"CntyDataLinkPrior10YearEstimate!$BE$132","v":0.11},null,{"$f":"CntyDataLinkPrior5YearEstimates!$BD$132","v":2.6134000770119368},{"$f":"CntyDataLinkPrior5YearEstimates!$BE$132","v":0.12},null,{"$f":"CntyDataLink!$BD$132","v":2.5326047358834245},{"$f":"CntyDataLink!$BE$132","v":0.17},null,null,-4.2587759760174043E-3,null,-3.0915795036208397E-2]
[null,null,"Family Households",{"$f":"CntyDataLinkPrior10YearEstimate!$V$132","v":1927},{"$f":"CntyDataLinkPrior10YearEstimate!$U$132","v":114},null,{"$f":"CntyDataLinkPrior5YearEstimates!$V$132","v":2033},{"$f":"CntyDataLinkPrior5YearEstimates!$U$132","v":115},null,{"$f":"CntyDataLink!$V$132","v":1994},{"$f":"CntyDataLink!$U$132","v":185},null,null,3.476907109496627E-2,null,-1.9183472700442697E-2]
[null,null,"Persons per Family Household",{"$f":"CntyDataLinkPrior10YearEstimate!$BF$132","v":3.0487804878048781},{"$f":"CntyDataLinkPrior10YearEstimate!$BG$132","v":0.22972831433355057},null,{"$f":"CntyDataLinkPrior5YearEstimates!$BF$132","v":3.030988686669946},{"$f":"CntyDataLinkPrior5YearEstimates!$BG$132","v":0.17393817153950464},null,{"$f":"CntyDataLink!$BF$132","v":3.0020060180541623},{"$f":"CntyDataLink!$BG$132","v":0.26865136073637902},null,null,-1.5342026078234766E-2,null,-9.562117055483323E-3]
[null,null,"Married-Couple Family Hh",{"$f":"CntyDataLinkPrior10YearEstimate!$X$132","v":1771},{"$f":"CntyDataLinkPrior10YearEstimate!$Y$132","v":145},null,{"$f":"CntyDataLinkPrior5YearEstimates!$X$132","v":1842},{"$f":"CntyDataLinkPrior5YearEstimates!$Y$132","v":137},null,{"$f":"CntyDataLink!$X$132","v":1781},{"$f":"CntyDataLink!$Y$132","v":164},null,null,5.6465273856578201E-3,null,-3.3116178067318133E-2]
[null,null,"Single-Parent Family Hh",{"$f":"CntyDataLinkPrior10YearEstimate!$Z$132","v":156},{"$f":"CntyDataLinkPrior10YearEstimate!$AA$132","v":71},null,{"$f":"CntyDataLinkPrior5YearEstimates!$Z$132","v":191},{"$f":"CntyDataLinkPrior5YearEstimates!$AA$132","v":94},null,{"$f":"CntyDataLink!$Z$132","v":213},{"$f":"CntyDataLink!$AA$132","v":101},null,null,0.36538461538461536,null,0.11518324607329843]
[null,null,"Non-Family Households*",{"$f":"CntyDataLinkPrior10YearEstimate!$AF$132","v":686},{"$f":"CntyDataLinkPrior10YearEstimate!$AG$132","v":175},null,{"$f":"CntyDataLinkPrior5YearEstimates!$AF$132","v":564},{"$f":"CntyDataLinkPrior5YearEstimates!$AG$132","v":152},null,{"$f":"CntyDataLink!$AF$132","v":751},{"$f":"CntyDataLink!$AG$132","v":187},null,null,9.4752186588921289E-2,null,0.33156028368794327]
[null,null,"Persons per Non-Family Hh",{"$f":"CntyDataLinkPrior10YearEstimate!$BH$132","v":0},{"$f":"CntyDataLinkPrior10YearEstimate!$BI$132","v":0.16618075801749271},null,{"$f":"CntyDataLinkPrior5YearEstimates!$BH$132","v":1.1081560283687943},{"$f":"CntyDataLinkPrior5YearEstimates!$BI$132","v":0.42938539643174739},null,{"$f":"CntyDataLink!$BH$132","v":1.2862849533954728},{"$f":"CntyDataLink!$BI$132","v":0.51513607405477868},null,null,{"$error":"#DIV/0!"},null,0.16074354194407461]
[]
[]
[null,"As a result of changes in the American Community Survey, direct comparisons between the data should be made with caution."]
[]
[null,"Source: 2005-2009, 2010-2014, and 2015-2019 American Community Survey Table B11001"]
[null,"POPULATION CHARACTERISTICS"]

{"sheet":"SchoolEnrolEduAttain","index":6,"n_rows":67,"n_cols":17,"rows_kept":67,"cut":false,"hidden":true,"merged":[[20,15,20,16],[49,15,49,16],[20,5,20,7],[49,5,49,7],[20,8,20,10],[20,11,20,13],[49,8,49,10]]}
[]
[null,null,{"$f":"CntyDataLink!A50","v":"Atkinson"}]
[null,null,"SOCIAL CHARACTERISTICS"]
[]
[]
[]
[]
[]
[]
[]
[]
[]
[]
[]
[]
[]
[]
[]
[]
[]
[null,null,"School Enrollment",null,null,"2005-2009",null,null,"2010-2014",null,null,"2015-2019",null,null,null,"Statistically Significant Change"]
[null,null,null,null,null,"Estimate"," Margin of Error","Percent of Population","Estimate"," Margin of Error","Percent of Population","Estimate"," Margin of Error","Percent of Population",null,"2009-2019","2014-2019"]
[null,null,"Population 3 years and over",null,null,{"$f":"CntyDataLinkPrior10YearEstimate!$B$140","v":28402},{"$f":"CntyDataLinkPrior10YearEstimate!$C$140","v":261},null,{"$f":"CntyDataLinkPrior5YearEstimates!$B$140","v":28134},{"$f":"CntyDataLinkPrior5YearEstimates!$C$140","v":177},null,{"$f":"CntyDataLink!$B$140","v":6070},{"$f":"CntyDataLink!$C$140","v":120},null,null,{"$f":"StatisticallySignificantCalcs!$A$45","v":"Y"},{"$f":"StatisticallySignificantCalcs!$J$45","v":"Y"}]
[null,null,"Population 3 years & over enrolled in school",null,null,{"$f":"CntyDataLinkPrior10YearEstimate!$D$140","v":7744},{"$f":"CntyDataLinkPrior10YearEstimate!$E$140","v":440},{"$f":"F24/$F$23","v":0.27265685515104571},{"$f":"CntyDataLinkPrior5YearEstimates!$D$140","v":6951},{"$f":"CntyDataLinkPrior5YearEstimates!$E$140","v":418},{"$f":"I24/$I$23","v":0.24706760503305608},{"$f":"CntyDataLink!$D$140","v":1357},{"$f":"CntyDataLink!$E$140","v":177},{"$f":"L24/$L$23","v":0.22355848434925865},null,{"$f":"StatisticallySignificantCalcs!$A$46","v":"Y"},{"$f":"StatisticallySignificantCalcs!$J$46","v":"Y"}]
[null,null,"Preprimary (Nursery, Preschool, Kindergarten)",null,null,{"$f":"CntyDataLinkPrior10YearEstimate!$F$140","v":799},{"$f":"CntyDataLinkPrior10YearEstimate!$G$140","v":161.96604582442581},2.8131821702696992E-2,{"$f":"CntyDataLinkPrior5YearEstimates!$F$140","v":664},{"$f":"CntyDataLinkPrior5YearEstimates!$G$140","v":160},{"$f":"I25/$I$23","v":2.3601336461221298E-2},{"$f":"CntyDataLink!$F$140","v":117},{"$f":"CntyDataLink!$G$140","v":86.95401083331349},1.9275123558484351E-2,null,{"$f":"StatisticallySignificantCalcs!$A$47","v":"Y"},{"$f":"StatisticallySignificantCalcs!$J$47","v":"Y"}]
[null,null,"        Nursery school and Preschool",null,null,{"$f":"CntyDataLinkPrior10YearEstimate!$H$140","v":418},{"$f":"CntyDataLinkPrior10YearEstimate!$I$140","v":117},1.4717273431448489E-2,{"$f":"CntyDataLinkPrior5YearEstimates!$H$140","v":409},{"$f":"CntyDataLinkPrior5YearEstimates!$I$140","v":128},1.45375701997583E-2,{"$f":"CntyDataLink!$H$140","v":78},{"$f":"CntyDataLink!$I$140","v":75},1.2850082372322899E-2,null,{"$f":"StatisticallySignificantCalcs!$A$48","v":"Y"},{"$f":"StatisticallySignificantCalcs!$J$48","v":"Y"}]
[null,null,"        Kindergarten",null,null,{"$f":"CntyDataLinkPrior10YearEstimate!$J$140","v":381},{"$f":"CntyDataLinkPrior10YearEstimate!$K$140","v":112},1.3414548271248503E-2,{"$f":"CntyDataLinkPrior5YearEstimates!$J$140","v":255},{"$f":"CntyDataLinkPrior5YearEstimates!$K$140","v":96},9.063766261462998E-3,{"$f":"CntyDataLink!$J$140","v":39},{"$f":"CntyDataLink!$K$140","v":44},6.4250411861614494E-3,null,{"$f":"StatisticallySignificantCalcs!$A$49","v":"Y"},{"$f":"StatisticallySignificantCalcs!$J$49","v":"Y"}]
[null,null,"Elementary through High school",null,null,{"$f":"CntyDataLinkPrior10YearEstimate!$P$140","v":5221},{"$f":"CntyDataLinkPrior10YearEstimate!$Q$140","v":450.95121687384324},0.18382508274065207,{"$f":"CntyDataLinkPrior5YearEstimates!$P$140","v":4367},{"$f":"CntyDataLinkPrior5YearEstimates!$Q$140","v":448.08258167440522},0.15522144025023105,{"$f":"CntyDataLink!$P$140","v":1025},{"$f":"CntyDataLink!$Q$140","v":261.457453517776},0.16886326194398682,null,{"$f":"StatisticallySignificantCalcs!$A$50","v":"Y"},{"$f":"StatisticallySignificantCalcs!$J$50","v":"Y"}]
[null,null,"        Elementary school (grades 1-8)",null,null,{"$f":"CntyDataLinkPrior10YearEstimate!$L$140","v":3237},{"$f":"CntyDataLinkPrior10YearEstimate!$M$140","v":351.09542862304545},0.11397084712344201,{"$f":"CntyDataLinkPrior5YearEstimates!$L$140","v":2786},{"$f":"CntyDataLinkPrior5YearEstimates!$M$140","v":383.34579689883128},9.9026089429160441E-2,{"$f":"CntyDataLink!$L$140","v":622},{"$f":"CntyDataLink!$M$140","v":229.09386722476881},0.10247116968698518,null,{"$f":"StatisticallySignificantCalcs!$A$51","v":"Y"},{"$f":"StatisticallySignificantCalcs!$J$51","v":"Y"}]
[null,null,"        High school (grades 9-12)",null,null,{"$f":"CntyDataLinkPrior10YearEstimate!$N$140","v":1984},{"$f":"CntyDataLinkPrior10YearEstimate!$O$140","v":283},6.9854235617210061E-2,{"$f":"CntyDataLinkPrior5YearEstimates!$N$140","v":1581},{"$f":"CntyDataLinkPrior5YearEstimates!$O$140","v":232},5.6195350821070592E-2,{"$f":"CntyDataLink!$N$140","v":403},{"$f":"CntyDataLink!$O$140","v":126},6.6392092257001642E-2,null,{"$f":"StatisticallySignificantCalcs!$A$52","v":"Y"},{"$f":"StatisticallySignificantCalcs!$J$52","v":"Y"}]
[null,null,"College or Graduate School",null,null,{"$f":"CntyDataLinkPrior10YearEstimate!$R$140","v":1724},{"$f":"CntyDataLinkPrior10YearEstimate!$S$140","v":271.93565415369864},6.069995070769664E-2,{"$f":"CntyDataLinkPrior5YearEstimates!$R$140","v":1920},{"$f":"CntyDataLinkPrior5YearEstimates!$S$140","v":307.35321699959479},6.8244828321603751E-2,{"$f":"CntyDataLink!$R$140","v":215},{"$f":"CntyDataLink!$S$140","v":103.24727599312246},3.5420098846787477E-2,null,{"$f":"StatisticallySignificantCalcs!$A$53","v":"Y"},{"$f":"StatisticallySignificantCalcs!$J$53","v":"Y"}]
[]
[null,null,{"$f":"\"Source: \"&F21&\", \"& I21&\" and \"&L21&\" American Community Survey Table B14001\"","v":"Source: 2005-2009, 2010-2014 and 2015-2019 American Community Survey Table B14001"}]
[]
[]
[]
[]
[]
[]
[]
[]
[]
[]
[]
[]
[]
[]
[]
[]
[null,null,"Educational Attainment",null,null,"2005-2009",null,null,"2010-2014",null,null,"2015.-2019",null,null,null,"Statistically Significant Change"]
[null,null,null,null,null,"Estimate"," Margin of Error","Percent of Population","Estimate"," Margin of Error","Percent of Population","Estimate"," Margin of Error","Percent of Population",null,"2009-2019","2014-2019"]
[null,null,"Population 25 years and over",null,null,{"$f":"CntyDataLinkPrior10YearEstimate!$V$140","v":20080},{"$f":"CntyDataLinkPrior10YearEstimate!$W$140","v":403},null,{"$f":"CntyDataLinkPrior5YearEstimates!$V$140","v":514},{"$f":"CntyDataLinkPrior5YearEstimates!$W$140","v":171.93894265116325},null,{"$f":"CntyDataLink!$V$140","v":4338},{"$f":"CntyDataLink!$W$140","v":161},null,null,{"$f":"StatisticallySignificantCalcs!A54","v":"Y"},{"$f":"StatisticallySignificantCalcs!$J$54","v":"Y"}]
[null,null,"Less than 9th Grade",null,null,{"$f":"CntyDataLinkPrior10YearEstimate!$X$140","v":484},{"$f":"CntyDataLinkPrior10YearEstimate!$Y$140","v":130.14222988715076},{"$f":"F53/$F$52","v":2.4103585657370519E-2},{"$f":"CntyDataLinkPrior5YearEstimates!$X$140","v":989},{"$f":"CntyDataLinkPrior5YearEstimates!$Y$140","v":202.96797776989354},{"$f":"I53/$I$52","v":1.9241245136186771},{"$f":"CntyDataLink!$X$140","v":0},{"$f":"CntyDataLink!$Y$140","v":39.191835884530846},{"$f":"L53/$L$52","v":0},null,{"$f":"StatisticallySignificantCalcs!A55","v":"Y"},{"$f":"StatisticallySignificantCalcs!$J$55","v":"Y"}]
[null,null,"9th to 12th Grade, no Diploma",null,null,{"$f":"CntyDataLinkPrior10YearEstimate!$Z$140","v":1488},{"$f":"CntyDataLinkPrior10YearEstimate!$AA$140","v":302.03476621077914},{"$f":"F54/$F$52","v":7.4103585657370519E-2},{"$f":"CntyDataLinkPrior5YearEstimates!$Z$140","v":6701},{"$f":"CntyDataLinkPrior5YearEstimates!$AA$140","v":482.59714048054616},13.036964980544747,{"$f":"CntyDataLink!$Z$140","v":285},{"$f":"CntyDataLink!$AA$140","v":139.08630414242805},6.5698478561549103E-2,null,{"$f":"StatisticallySignificantCalcs!A56","v":"Y"},{"$f":"StatisticallySignificantCalcs!$J$56","v":"Y"}]
[null,null,"High School Graduate ",null,null,{"$f":"CntyDataLinkPrior10YearEstimate!$AB$140","v":6309},{"$f":"CntyDataLinkPrior10YearEstimate!$AC$140","v":491.8089059787348},0.31419322709163344,{"$f":"CntyDataLinkPrior5YearEstimates!$AB$140","v":3939},{"$f":"CntyDataLinkPrior5YearEstimates!$AC$140","v":406.44310794993191},7.663424124513619,{"$f":"CntyDataLink!$AB$140","v":1194},{"$f":"CntyDataLink!$AC$140","v":238.8493248891443},0.27524204702627941,null,{"$f":"StatisticallySignificantCalcs!A57","v":"Y"},{"$f":"StatisticallySignificantCalcs!$J$57","v":"Y"}]
[null,null,"Some College, No Degree",null,null,{"$f":"CntyDataLinkPrior10YearEstimate!$AD$140","v":3733},{"$f":"CntyDataLinkPrior10YearEstimate!$AE$140","v":392.1504813206277},0.18590637450199204,{"$f":"CntyDataLinkPrior5YearEstimates!$AD$140","v":1818},{"$f":"CntyDataLinkPrior5YearEstimates!$AE$140","v":221.14474897677312},3.536964980544747,{"$f":"CntyDataLink!$AD$140","v":1018},{"$f":"CntyDataLink!$AE$140","v":215.19990706317697},0.23467035500230521,null,{"$f":"StatisticallySignificantCalcs!A58","v":"Y"},{"$f":"StatisticallySignificantCalcs!$J$58","v":"Y"}]
[null,null,"Associate Degree",null,null,{"$f":"CntyDataLinkPrior10YearEstimate!$AF$140","v":2267},{"$f":"CntyDataLinkPrior10YearEstimate!$AG$140","v":283.80451018262551},0.11289840637450199,{"$f":"CntyDataLinkPrior5YearEstimates!$AF$140","v":4558},{"$f":"CntyDataLinkPrior5YearEstimates!$AG$140","v":448.26443088873333},8.8677042801556425,{"$f":"CntyDataLink!$AF$140","v":552},{"$f":"CntyDataLink!$AG$140","v":179.0111728356641},0.1272475795297372,null,{"$f":"StatisticallySignificantCalcs!A59","v":"Y"},{"$f":"StatisticallySignificantCalcs!$J$59","v":"Y"}]
[null,null,"Bachelor's Degree",null,null,{"$f":"CntyDataLinkPrior10YearEstimate!$AH$140","v":3686},{"$f":"CntyDataLinkPrior10YearEstimate!$AI$140","v":376.94164004524629},0.18356573705179283,{"$f":"CntyDataLinkPrior5YearEstimates!$AH$140","v":1791},{"$f":"CntyDataLinkPrior5YearEstimates!$AI$140","v":275.19992732557182},3.4844357976653697,{"$f":"CntyDataLink!$AH$140","v":816},{"$f":"CntyDataLink!$AI$140","v":197.06090429103384},0.18810511756569848,null,{"$f":"StatisticallySignificantCalcs!A60","v":"Y"},{"$f":"StatisticallySignificantCalcs!$J$60","v":"Y"}]
[null,null,"Graduate or Professional Degree",null,null,{"$f":"CntyDataLinkPrior10YearEstimate!$AJ$140","v":1145},{"$f":"CntyDataLinkPrior10YearEstimate!$AK$140","v":250.59329599971346},5.7021912350597607E-2,{"$f":"CntyDataLinkPrior5YearEstimates!$AJ$140","v":952},{"$f":"CntyDataLinkPrior5YearEstimates!$AK$140","v":223.21066282774217},1.8521400778210118,{"$f":"CntyDataLink!$AJ$140","v":473},{"$f":"CntyDataLink!$AK$140","v":163.88410539158457},0.10903642231443061,null,{"$f":"StatisticallySignificantCalcs!A61","v":"Y"},{"$f":"StatisticallySignificantCalcs!$J$61","v":"Y"}]
[]
[null,null,"Percent of High School Graduate or Higher",null,null,null,null,{"$f":"SUM(F55:F59)/F52","v":0.85358565737051795},null,null,{"$f":"SUM(I55:I59)/I52","v":25.404669260700388},null,null,{"$f":"SUM(L55:L59)/L52","v":0.93430152143845091}]
[null,null,"Percent of Bachelor's Degree or Higher",null,null,null,null,{"$f":"SUM(F58:F59)/F52","v":0.24058764940239044},null,null,{"$f":"SUM(I58:I59)/I52","v":5.336575875486381},null,null,{"$f":"SUM(L58:L59)/L52","v":0.29714153988012909}]
[]
[null,null,{"$f":"\"Source: \"&F21&\", \"&I21&\" and \"&L21&\" American Community Survey Table B15002\"","v":"Source: 2005-2009, 2010-2014 and 2015-2019 American Community Survey Table B15002"},null,null,null,null,"Data from the American Community Survey are estimates"]
[]
[null,null,"As a result of changes in the American Community Survey, direct comparisons between the data should be made with caution."]
[null,null,"be made with caution."]

{"sheet":"HousingCharacteristics","index":7,"n_rows":112,"n_cols":16,"rows_kept":112,"cut":false,"hidden":true,"merged":[[85,2,85,4],[85,6,85,8],[85,10,85,12],[29,2,29,4],[29,5,29,7],[29,8,29,10],[68,3,68,5],[68,6,68,8],[29,11,29,12],[29,14,29,15],[68,9,68,11],[68,12,68,13],[68,14,68,15],[85,14,85,15]]}
[]
[null,{"$f":"CntyDataLink!$A35","v":"Atkinson"}]
[]
[null,"HOUSING CHARACTERISTICS"]
[]
[]
[]
[]
[]
[]
[]
[]
[]
[]
[]
[]
[]
[]
[]
[]
[]
[]
[]
[]
[]
[]
[null,null,null,{"$f":"\"Source:  \"& \" \"&D69&\", \"&G69&\" and \"&J69& \" American Community Survey Table B25024; B25032\"","v":"Source:   2005-2009, 2010-2014 and 2015-2019 American Community Survey Table B25024; B25032"}]
[null,"Units by Tenure & Vacancy"]
[]
[null,null,"2005-2009",null,null,"2010-2014",null,null,"2015-2019",null,null,"Percent Change",null,null,"Statistically Significant Change"]
[null,null,"Estimate","Margin of Error","%","Estimate","Margin of Error","%","Estimate","Margin of Error","%","2009-2019","2014-2019",null,"2009-2019","2014-2019"]
[null,"Total Units",{"$f":"CntyDataLinkPrior10YearEstimate!$B$108","v":2701},{"$f":"CntyDataLinkPrior5YearEstimates!$C$108","v":133},null,{"$f":"CntyDataLinkPrior5YearEstimates!$B$108","v":2738},{"$f":"CntyDataLinkPrior5YearEstimates!$C$108","v":133},null,{"$f":"CntyDataLink!$B$108","v":2899},{"$f":"CntyDataLink!$C$108","v":199},null,{"$f":"IF(I32=\"-\",\"-\",(I32-C32)/C32)","v":7.330618289522399E-2},{"$f":"IF(I32=\"-\",\"-\",(I32-F32)/F32)","v":5.8802045288531772E-2},null,{"$f":"StatisticallySignificantCalcs!$A62","v":"N"},{"$f":"StatisticallySignificantCalcs!$J62","v":"N"}]
[null,"Occupied Units",{"$f":"CntyDataLinkPrior10YearEstimate!$D$108","v":2613},{"$f":"CntyDataLinkPrior5YearEstimates!$E$108","v":115},{"$f":"ROUND(C33/C32,2)*100&\"% of Total\"","v":"97% of Total"},{"$f":"CntyDataLinkPrior5YearEstimates!$D$108","v":2597},{"$f":"CntyDataLinkPrior5YearEstimates!$E$108","v":115},{"$f":"ROUND(F33/F32,2)*100&\"% of Total\"","v":"95% of Total"},{"$f":"CntyDataLink!$D$108","v":2745},{"$f":"CntyDataLink!$E$108","v":185},{"$f":"ROUND(I33/I32,2)*100&\"% of Total\"","v":"95% of Total"},{"$f":"IF(I33=\"-\",\"-\",(I33-C33)/C33)","v":5.0516647531572902E-2},5.698883326915672E-2,null,{"$f":"StatisticallySignificantCalcs!$A63","v":"N"},{"$f":"StatisticallySignificantCalcs!$J63","v":"N"}]
[null,"Owner Occupied",{"$f":"CntyDataLinkPrior10YearEstimate!$F$108","v":2211},{"$f":"CntyDataLinkPrior5YearEstimates!$G$108","v":123},{"$f":"ROUND(C34/C33,2)*100&\"% of Occ.\"","v":"85% of Occ."},{"$f":"CntyDataLinkPrior5YearEstimates!$F$108","v":2395},{"$f":"CntyDataLinkPrior5YearEstimates!$G$108","v":123},{"$f":"ROUND(F34/F33,2)*100&\"% of Occ.\"","v":"92% of Occ."},{"$f":"CntyDataLink!$F$108","v":2551},{"$f":"CntyDataLink!$G$108","v":169},{"$f":"ROUND(I34/I33,2)*100&\"% of Occ.\"","v":"93% of Occ."},{"$f":"IF(I34=\"-\",\"-\",(I34-C34)/C34)","v":0.15377657168701944},6.5135699373695205E-2,null,{"$f":"StatisticallySignificantCalcs!$A64","v":"Y"},{"$f":"StatisticallySignificantCalcs!$J64","v":"N"}]
[null,"Renter Occupied",{"$f":"CntyDataLinkPrior10YearEstimate!$H$108","v":402},{"$f":"CntyDataLinkPrior5YearEstimates!$I$108","v":108},{"$f":"ROUND(C35/C33,2)*100&\"% of Occ.\"","v":"15% of Occ."},{"$f":"CntyDataLinkPrior5YearEstimates!$H$108","v":202},{"$f":"CntyDataLinkPrior5YearEstimates!$I$108","v":108},{"$f":"ROUND(F35/F33,2)*100&\"% of Occ.\"","v":"8% of Occ."},{"$f":"CntyDataLink!$H$108","v":194},{"$f":"CntyDataLink!$I$108","v":106},{"$f":"ROUND(I35/I33,2)*100&\"% of Occ.\"","v":"7% of Occ."},{"$f":"IF(I35=\"-\",\"-\",(I35-C35)/C35)","v":-0.51741293532338306},-3.9603960396039604E-2,null,{"$f":"StatisticallySignificantCalcs!$A65","v":"Y"},{"$f":"StatisticallySignificantCalcs!$J65","v":"N"}]
[null,"Vacant Units",{"$f":"CntyDataLinkPrior10YearEstimate!$J$108","v":88},{"$f":"CntyDataLinkPrior5YearEstimates!$K$108","v":89},{"$f":"ROUND(C36/C32,2)*100&\"% of Total\"","v":"3% of Total"},{"$f":"CntyDataLinkPrior5YearEstimates!$J$108","v":141},{"$f":"CntyDataLinkPrior5YearEstimates!$K$108","v":89},{"$f":"ROUND(F36/F32,2)*100&\"% of Total\"","v":"5% of Total"},{"$f":"CntyDataLink!$J$108","v":154},{"$f":"CntyDataLink!$K$108","v":101},{"$f":"ROUND(I36/I32,2)*100&\"% of Total\"","v":"5% of Total"},{"$f":"IF(I36=\"-\",I36,VALUE((I36-C36)/C36))","v":0.75},9.2198581560283682E-2,null,{"$f":"StatisticallySignificantCalcs!$A66","v":"N"},{"$f":"StatisticallySignificantCalcs!$J66","v":"N"}]
[null,"Vacant For Sale",{"$f":"CntyDataLinkPrior10YearEstimate!$P$108","v":47},{"$f":"CntyDataLinkPrior5YearEstimates!$Q$108","v":44},{"$f":"ROUND(C37/(C34+C37),3)*100&\"% Vac.\"","v":"2.1% Vac."},{"$f":"CntyDataLinkPrior5YearEstimates!$P$108","v":39},{"$f":"CntyDataLinkPrior5YearEstimates!$Q$108","v":44},{"$f":"ROUND(F37/(F34+F37),3)*100&\"% Vac.\"","v":"1.6% Vac."},{"$f":"CntyDataLink!$P$108","v":0},{"$f":"CntyDataLink!$Q$108","v":16},{"$f":"ROUND(I37/(I34+I37),3)*100&\"% Vac.\"","v":"0% Vac."},{"$f":"IF(I37=\"-\",I37,VALUE((I37-C37)/C37))","v":-1},-1,null,{"$f":"StatisticallySignificantCalcs!$A67","v":"Y"},{"$f":"StatisticallySignificantCalcs!$J67","v":"N"}]
[null,"Vacant For Rent",{"$f":"CntyDataLinkPrior10YearEstimate!$L$108","v":15},{"$f":"CntyDataLinkPrior5YearEstimates!$M$108","v":15},{"$f":"ROUND(C38/(C35+C38),3)*100&\"% Vac.\"","v":"3.6% Vac."},{"$f":"CntyDataLinkPrior5YearEstimates!$L$108","v":0},{"$f":"CntyDataLinkPrior5YearEstimates!$M$108","v":15},{"$f":"ROUND(F38/(F35+F38),3)*100&\"% Vac.\"","v":"0% Vac."},{"$f":"CntyDataLink!$L$108","v":0},{"$f":"CntyDataLink!$M$108","v":16},{"$f":"ROUND(I38/(I35+I38),3)*100&\"% Vac.\"","v":"0% Vac."},{"$f":"IF(I38=\"-\",I38,VALUE((I38-C38)/C38))","v":-1},{"$error":"#DIV/0!"},null,{"$f":"StatisticallySignificantCalcs!$A68","v":"N"},{"$f":"StatisticallySignificantCalcs!$J68","v":"N"}]
[null,"Vacant Seasonal",{"$f":"CntyDataLinkPrior10YearEstimate!$T$108","v":26},{"$f":"CntyDataLinkPrior5YearEstimates!$U$108","v":61},{"$f":"ROUND(C39/C32,2)*100&\"% of Total\"","v":"1% of Total"},{"$f":"CntyDataLinkPrior5YearEstimates!$T$108","v":39},{"$f":"CntyDataLinkPrior5YearEstimates!$U$108","v":61},{"$f":"ROUND(F39/F32,2)*100&\"% of Total\"","v":"1% of Total"},{"$f":"CntyDataLink!$T$108","v":78},{"$f":"CntyDataLink!$U$108","v":73},{"$f":"ROUND(I39/I32,2)*100&\"% of Total\"","v":"3% of Total"},{"$f":"IF(I39=\"-\",I39,VALUE((I39-C39)/C39))","v":2},1,null,{"$f":"StatisticallySignificantCalcs!$A69","v":"N"},{"$f":"StatisticallySignificantCalcs!$J69","v":"N"}]
[]
[null,"Data from the American Community Survey are estimates"]
[]
[]
[null,"HOUSING CHARACTERISTICS"]
[]
[]
[]
[]
[]
[]
[]
[]
[]
[]
[]
[]
[]
[]
[]
[]
[]
[]
[]
[]
[null,null,null,{"$f":"\"Source: \"& \" \"&D69&\", \"&G69&\" and \"&J69& \"  American Community Survey Table B25024; B25032\"","v":"Source:  2005-2009, 2010-2014 and 2015-2019  American Community Survey Table B25024; B25032"}]
[]
[null,null,"Units by Type"]
[]
[null,null,null,"2005-2009",null,null,"2010-2014",null,null,"2015-2019",null,null,"Percent Change",null,"Statistically Significant Change"]
[null,null,null,"Estimate","Margin of Error","% of Total","Estimate","Margin of Error","% of Total","Estimate","Margin of Error","% of Total","2009-2019","2014-2019","2009-2019","2014-2019"]
[null,null,"Total Units",{"$f":"CntyDataLinkPrior10YearEstimate!$B$108","v":2701},{"$f":"CntyDataLinkPrior10YearEstimate!$C$108","v":107},null,{"$f":"CntyDataLinkPrior5YearEstimates!$B$108","v":2738},{"$f":"CntyDataLinkPrior5YearEstimates!$C$108","v":133},null,{"$f":"CntyDataLink!$B$108","v":2899},{"$f":"CntyDataLink!$C$108","v":199},null,null,null,{"$f":"StatisticallySignificantCalcs!$A70","v":"N"},{"$f":"StatisticallySignificantCalcs!$J70","v":"N"}]
[null,null,"Single Family Units",{"$f":"CntyDataLinkPrior10YearEstimate!$AT$108","v":1824},{"$f":"CntyDataLinkPrior10YearEstimate!$AU$108","v":156},{"$f":"IF(D72=\"-\",\"-\",($D$72/$D$71))","v":0.67530544242873014},{"$f":"CntyDataLinkPrior5YearEstimates!$AT$108","v":1960},{"$f":"CntyDataLinkPrior5YearEstimates!$AU$108","v":168},{"$f":"IF(G72=\"-\",\"-\",($G$72/$G$71))","v":0.71585098612125642},{"$f":"CntyDataLink!$AT$108","v":2259},{"$f":"CntyDataLink!$AU$108","v":187},{"$f":"IF(J72=\"-\",\"-\",($J$72/$J$71))","v":0.7792342186961021},{"$f":"IF(J72=\"-\",\"-\",($J72-$D72)/$D72)","v":0.23848684210526316},{"$f":"IF(J72=\"-\",\"-\",($J72-$G72)/$G72)","v":0.15255102040816326},{"$f":"StatisticallySignificantCalcs!$A71","v":"Y"},{"$f":"StatisticallySignificantCalcs!$J71","v":"Y"}]
[null,null,"SF Owner Occ.",{"$f":"CntyDataLinkPrior10YearEstimate!$AF$108","v":1679},{"$f":"CntyDataLinkPrior10YearEstimate!$AG$108","v":136},null,{"$f":"CntyDataLinkPrior5YearEstimates!$AF$108","v":1861},{"$f":"CntyDataLinkPrior5YearEstimates!$AG$108","v":161},null,{"$f":"CntyDataLink!$AF$108","v":2087},{"$f":"CntyDataLink!$AG$108","v":162},null,null,null,{"$f":"StatisticallySignificantCalcs!$A72","v":"Y"},{"$f":"StatisticallySignificantCalcs!$J72","v":"N"}]
[null,null,"SF Renter Occ.",{"$f":"CntyDataLinkPrior10YearEstimate!$AN$108","v":72},{"$f":"CntyDataLinkPrior10YearEstimate!$AO$108","v":65},null,{"$f":"CntyDataLinkPrior5YearEstimates!$AN$108","v":33},{"$f":"CntyDataLinkPrior5YearEstimates!$AO$108","v":36},null,{"$f":"CntyDataLink!$AN$108","v":18},{"$f":"CntyDataLink!$AO$108","v":29},null,null,null,{"$f":"StatisticallySignificantCalcs!$A73","v":"N"},{"$f":"StatisticallySignificantCalcs!$J73","v":"N"}]
[null,null,"Multi-family Units",{"$f":"CntyDataLinkPrior10YearEstimate!$AV$108","v":877},{"$f":"CntyDataLinkPrior10YearEstimate!$AW$108","v":247.11738101558134},{"$f":"IF(D75=\"-\",\"-\",$D$75/$D$71)","v":0.32469455757126992},{"$f":"CntyDataLinkPrior5YearEstimates!$AV$108","v":778},{"$f":"CntyDataLinkPrior5YearEstimates!$AW$108","v":208.31946620515328},{"$f":"IF(G75=\"-\",\"-\",$G$75/$G$71)","v":0.28414901387874358},{"$f":"CntyDataLink!$AV$108","v":640},{"$f":"CntyDataLink!$AW$108","v":184.59685804476737},{"$f":"IF(J75=\"-\",\"-\",$J$75/$J$71)","v":0.2207657813038979},{"$f":"IF(J75=\"-\",\"-\",($J75-$D75)/$D75)","v":-0.27023945267958949},{"$f":"IF(J75=\"-\",\"-\",($J75-$G75)/$G75)","v":-0.17737789203084833},{"$f":"StatisticallySignificantCalcs!$A74","v":"N"},{"$f":"StatisticallySignificantCalcs!$J74","v":"N"}]
[null,null,"MF Owner Occ.",{"$f":"CntyDataLinkPrior10YearEstimate!$AH$108","v":532},{"$f":"CntyDataLinkPrior10YearEstimate!$AI$108","v":254.73515658424535},null,{"$f":"CntyDataLinkPrior5YearEstimates!$AH$108","v":534},{"$f":"CntyDataLinkPrior5YearEstimates!$AI$108","v":166.50825805346713},null,{"$f":"CntyDataLink!$AH$108","v":464},{"$f":"CntyDataLink!$AI$108","v":124.55520864259351},null,null,null,{"$f":"StatisticallySignificantCalcs!$A75","v":"N"},{"$f":"StatisticallySignificantCalcs!$J75","v":"N"}]
[null,null,"MF Renter Occ.",{"$f":"CntyDataLinkPrior10YearEstimate!$AP$108","v":330},{"$f":"CntyDataLinkPrior10YearEstimate!$AQ$108","v":271.79403966974701},null,{"$f":"CntyDataLinkPrior5YearEstimates!$AP$108","v":169},{"$f":"CntyDataLinkPrior5YearEstimates!$AQ$108","v":106.81292056675541},null,{"$f":"CntyDataLink!$AP$108","v":176},{"$f":"CntyDataLink!$AQ$108","v":130.10380470993152},null,null,null,{"$f":"StatisticallySignificantCalcs!$A76","v":"N"},{"$f":"StatisticallySignificantCalcs!$J76","v":"N"}]
[null,null,"Mobile Home & Other",{"$f":"CntyDataLinkPrior10YearEstimate!$AX$108","v":0},{"$f":"CntyDataLinkPrior10YearEstimate!$AY$108","v":161.22034611053283},{"$f":"IF(D78=\"-\",\"-\",($D$78/$D$71))","v":0},{"$f":"CntyDataLinkPrior5YearEstimates!$AX$108","v":0},{"$f":"CntyDataLinkPrior5YearEstimates!$AY$108","v":21.213203435596427},{"$f":"IF(G78=\"-\",\"-\",($G$78/$G$71))","v":0},{"$f":"CntyDataLink!$AX$108","v":0},{"$f":"CntyDataLink!$AY$108","v":22.627416997969522},{"$f":"IF(J78=\"-\",\"-\",($J$78/$J$71))","v":0},{"$f":"IF(J78=\"-\",\"-\",($J78-$D78)/$D78)","v":{"$error":"#DIV/0!"}},{"$f":"IF(J78=\"-\",\"-\",($J78-$G78)/$G78)","v":{"$error":"#DIV/0!"}},{"$f":"StatisticallySignificantCalcs!$A77","v":"N"},{"$f":"StatisticallySignificantCalcs!$J77","v":"N"}]
[]
[null,"Data from the American Community Survey are estimates"]
[]
[]
[null,"Units by Number of Bedrooms "]
[null,null,null,{"$f":"\"Source: \"& \" \"&D69&\", \"&G69&\" and \"&J69& \" American Community Survey Table B25041\"","v":"Source:  2005-2009, 2010-2014 and 2015-2019 American Community Survey Table B25041"}]
[]
[null,null,"2005-2009",null,null,null,"2010-2014",null,null,null,"2015-2019",null,null,null,"Statistically Significant Change"]
[null,"Bedrooms","Estimate","Margin of Error","% of Total",null,"Estimate","Margin of Error","% of Total",null,"Estimate","Margin of Error","% of Total",null,"2009-2019","2014-2019"]
[null,"No Bedrooms",{"$f":"CntyDataLinkPrior10YearEstimate!$BR$108","v":34},{"$f":"CntyDataLinkPrior10YearEstimate!$BS$108","v":41},{"$f":"C88/SUM($C$88:$C$92)","v":1.2587930396149574E-2},null,{"$f":"CntyDataLinkPrior5YearEstimates!$BR$108","v":77},{"$f":"CntyDataLinkPrior5YearEstimates!$BS$108","v":93},{"$f":"G88/SUM($G$88:$G$92)","v":2.8122717311906503E-2},null,{"$f":"CntyDataLink!$BT$108","v":40},{"$f":"CntyDataLink!$BU$108","v":39},{"$f":"K88/SUM($K$88:$K$92)","v":1.3797861331493619E-2},null,{"$f":"StatisticallySignificantCalcs!$A78","v":"N"},{"$f":"StatisticallySignificantCalcs!$J78","v":"N"}]
[null,"1 Bedroom",{"$f":"CntyDataLinkPrior10YearEstimate!$BT$108","v":336},{"$f":"CntyDataLinkPrior10YearEstimate!$BU$108","v":110},{"$f":"C89/SUM($C$88:$C$92)","v":0.12439837097371344},null,{"$f":"CntyDataLinkPrior5YearEstimates!$BT$108","v":196},{"$f":"CntyDataLinkPrior5YearEstimates!$BU$108","v":83},{"$f":"G89/SUM($G$88:$G$92)","v":7.1585098612125642E-2},null,{"$f":"CntyDataLink!$BV$108","v":136},{"$f":"CntyDataLink!$BW$108","v":80},{"$f":"K89/SUM($K$88:$K$92)","v":4.6912728527078305E-2},null,{"$f":"StatisticallySignificantCalcs!$A79","v":"N"},{"$f":"StatisticallySignificantCalcs!$J79","v":"N"}]
[null,"2 Bedrooms",{"$f":"CntyDataLinkPrior10YearEstimate!$BV$108","v":624},{"$f":"CntyDataLinkPrior10YearEstimate!$BW$108","v":118},{"$f":"C90/SUM($C$88:$C$92)","v":0.23102554609403925},null,{"$f":"CntyDataLinkPrior5YearEstimates!$BV$108","v":818},{"$f":"CntyDataLinkPrior5YearEstimates!$BW$108","v":187},{"$f":"G90/SUM($G$88:$G$92)","v":0.29875821767713662},null,{"$f":"CntyDataLink!$BX$108","v":529},{"$f":"CntyDataLink!$BY$108","v":140},{"$f":"K90/SUM($K$88:$K$92)","v":0.1824767161090031},null,{"$f":"StatisticallySignificantCalcs!$A80","v":"Y"},{"$f":"StatisticallySignificantCalcs!$J80","v":"Y"}]
[null,"3 Bedrooms",{"$f":"CntyDataLinkPrior10YearEstimate!$BX$108","v":984},{"$f":"CntyDataLinkPrior10YearEstimate!$BY$108","v":153},{"$f":"C91/SUM($C$88:$C$92)","v":0.36430951499444653},null,{"$f":"CntyDataLinkPrior5YearEstimates!$BX$108","v":1045},{"$f":"CntyDataLinkPrior5YearEstimates!$BY$108","v":178},{"$f":"G91/SUM($G$88:$G$92)","v":0.38166544923301682},null,{"$f":"CntyDataLink!$BZ$108","v":1352},{"$f":"CntyDataLink!$CA$108","v":223},{"$f":"K91/SUM($K$88:$K$92)","v":0.46636771300448432},null,{"$f":"StatisticallySignificantCalcs!$A81","v":"Y"},{"$f":"StatisticallySignificantCalcs!$J81","v":"Y"}]
[null,"4+ Bedrooms",{"$f":"CntyDataLinkPrior10YearEstimate!$BZ$108","v":723},{"$f":"CntyDataLinkPrior10YearEstimate!$CA$108","v":165.01212076693034},{"$f":"C92/SUM($C$88:$C$92)","v":0.26767863754165122},null,{"$f":"CntyDataLinkPrior5YearEstimates!$BZ$108","v":602},{"$f":"CntyDataLinkPrior5YearEstimates!$CA$108","v":161.05899540230592},{"$f":"G92/SUM($G$88:$G$92)","v":0.21986851716581446},null,{"$f":"CntyDataLink!$CB$108","v":842},{"$f":"CntyDataLink!$CC$108","v":203.39370688396434},{"$f":"K92/SUM($K$88:$K$92)","v":0.2904449810279407},null,{"$f":"StatisticallySignificantCalcs!$A82","v":"Y"},{"$f":"StatisticallySignificantCalcs!$J82","v":"N"}]
[]
[null,"As a result of changes in the American Community Survey, direct comparisons between the 2009-2013 and 2015-2019 data should be made with caution."]
[null,"Data from the American Community Survey are estimates"]
[]
[null,"Units by Year Built   "]
[null,{"$f":"\"Source: \"&K86& \" American Community Survey Table B25034\"","v":"Source: 2015-2019 American Community Survey Table B25034"}]
[]
[null,null,null,"Year Built",null,null,"Units  ",null,"% of Total",null,"Margin of Error"]
[null,null,null,null,null,"2014 or later",{"$f":"CntyDataLink!$AZ$108","v":81},null,{"$f":"G101/SUM($G$101:$G$110)","v":2.7940669196274578E-2},null,{"$f":"CntyDataLink!$BA$108","v":66}]
[null,null,null,null,null,"2010 through 2013",{"$f":"CntyDataLink!$BB$108","v":37},null,1.2763021731631597E-2,null,{"$f":"CntyDataLink!$BC$108","v":41}]
[null,null,null,null,null,"2000 through 2009",{"$f":"CntyDataLink!$BD$108","v":335},null,0.11555708865125905,null,{"$f":"CntyDataLink!$BE$108","v":112}]
[null,null,null,null,null,"1990 through 1999",{"$f":"CntyDataLink!$BF$108","v":521},null,0.17971714384270437,null,{"$f":"CntyDataLink!$BG$108","v":177}]
[null,null,null,null,null,"1980 through 1989",{"$f":"CntyDataLink!$BH$108","v":536},null,0.1848913418420145,null,{"$f":"CntyDataLink!$BI$108","v":137}]
[null,null,null,null,null,"1970 through 1979",{"$f":"CntyDataLink!$BJ$108","v":571},null,0.19696447050707142,null,{"$f":"CntyDataLink!$BK$108","v":165}]
[null,null,null,null,null,"1960 through 1969",{"$f":"CntyDataLink!$BL$108","v":432},null,0.14901690238013107,null,{"$f":"CntyDataLink!$BM$108","v":128}]
[null,null,null,null,null,"1950 through 1959",{"$f":"CntyDataLink!$BN$108","v":167},null,5.760607105898586E-2,null,{"$f":"CntyDataLink!$BO$108","v":113}]
[null,null,null,null,null,"1940 through 1949",{"$f":"CntyDataLink!$BP$108","v":18},null,6.2090375991721283E-3,null,{"$f":"CntyDataLink!$BQ$108","v":28}]
[null,null,null,null,null,"1939 and earlier",{"$f":"CntyDataLink!$BR$108","v":201},null,6.9334253190755438E-2,null,{"$f":"CntyDataLink!$BS$108","v":104}]
[]
[null,"Data from the American Community Survey are estimates"]

{"sheet":"CntyDataLink","index":8,"n_rows":167,"n_cols":255,"rows_kept":167,"cut":false,"hidden":true,"merged":[]}
[1,{"$f":"A1+1","v":2},{"$f":"B1+1","v":3},4,5,6,7,8,9,10,11,12,13,14,15,{"$f":"O1+1","v":16},17,18,19,20,21,22,23,24,25,26,27,28,29,30,31,32,33,34,35,36,37,38,39,40,41,42,43,44,45,46,47,48,49,50,51,52,53,54,55,56,57,58,59,60,61,62,63,64,65,66,{"$f":"BN1+1","v":67},68,69,70,71,72,73,74,75,76,77,78,79,80,81,82,83,84,85,86,87,88,89,90,91,92,93,94,95,96,97,98,99,100,101,102,103,104,105,106,107,108,109,110,111,112,113,114,115,116,117,118,119,120,121,122,123,124,125,126,127,128,129,130,{"$f":"DZ1+1","v":131},132,133,134,135,136,137,138,139,140,141,142,143,144,145,146,147,148,149,150,151,152,153,154,155,156,157,158,159,160,161,162,163,164,165,166,167,168,169,170,171,172,173,174,175,176,177,178,179,180,181,182,183,184,185,186,187,188,189,190,191,192,193,194,{"$f":"GL1+1","v":195},196,197,198,199,200,201,202,203,204,205,206,207,208,209,210,211,212,213,214,215,216,217,218,219,220,221,222,223,224,225,226,227,228,229,230,231,232,233,234,235,236,237,238,239,240,241,242,243,244,245,246,247,248,249,250,251,252,253,254,255]
[]
["Census 1990 Data -           Query Name:  DPCnty90Census"]
["TownName","Cnty_Code","Census_Cnty_Code","LandAcres","WaterAcres","HousingUnits90Cen","Persons90Cen","Families90Cen","Households90cen","MalePop90cen","FemalePop90cen","WhitePop","BlackPop","AmerIndianPop","AsianPIPop","OtherRacePop","HispanicOrPop","AgeUnder15_90cen","Age15to24_90cen","Age25to34_90cen","Age35to44_90cen","Age45to54_90cen","Age55to64_90cen","Age65to74_90cen","Age75andOver_90cen","PersonsInHH90cen","PersonsInFamHH90cen","PersonsInGC","PersonsPerHH90cen","PersonsPerFam90Cen","SinglePersonHH90cen","MarriedCoupleHH90cen","SingleParentHH90cen","NonFamilyHH90cen","TotalHousingUnits","OccupiedHousingUnits","VacantHousingUnits","OwnerOccHU","RenterOccHU","VacantForRent90","VacantForSale90","VacantSeasonalRec","SingFamHU90cen","MultiFamHU90cen","MobileHom90cen","SingFamOwnHU90cen","MultiFamOwnHU90cen","MobileHomOwnHU90cen","SingFamRntrHU90cen","MultiFamRntrHU90cen","MobileHomRntrHU90cen","HU<5yrs90cen","HU5to20yrs90cen","HU20to50yrs90cen","HU>50yrs90cen","Units0Bedroom90cen","Units1Bedroom90cen","Units2Bedroom90cen","Units3Bedroom90cen","Units4+Bedroom90cen","HI<5K","HI5Kto10K","HI10Kto15K","HI15Kto25K","HI25Kto35K","HI35Kto50K","HI50Kto75K","HI75Kto100K","HI>100K","MedHI","HH<25HI<5K","HH<25HI5Kto10K","HH<25HI10Kto15K","HH<25HI15Kto25K","HH<25HI25Kto35K","HH<25HI35Kto50K","HH<25HI50Kto75K","HH<25HI75Kto100K","HH<25HI>100K","HH25to34HI<5K","HH25to34HI5Kto10K","HH25to34HI10Kto15K","HH25to34HI15Kto25K","HH25to34HI25Kto35K","HH25to34HI35Kto50K","HH25to34HI50Kto75K","HH25to34HI75Kto100K","HH25to34HI>100K","HH35to44HI<5K","HH35to44HI5Kto10K","HH35to44HI10Kto15K","HH35to44HI15Kto25K","HH35to44HI25Kto35K","HH35to44HI35Kto50K","HH35to44HI50Kto75K","HH35to44HI75Kto100K","HH35to44HI>100K","HH45to54HI<5K","HH45to54HI5Kto10K","HH45to54HI10Kto15K","HH45to54HI15Kto25K","HH45to54HI25Kto35K","HH45to54HI35Kto50K","HH45to54HI50Kto75K","HH45to54HI75Kto100K","HH45to54HI>100K","HH55to64HI<5K","HH55to64HI5Kto10K","HH55to64HI10Kto15K","HH55to64HI15Kto25K","HH55to64HI25Kto35K","HH55to64HI35Kto50K","HH55to64HI50Kto75K","HH55to64HI75Kto100K","HH55to64HI>100K","HH65to74HI<5K","HH65to74HI5Kto10K","HH65to74HI10Kto15K","HH65to74HI15Kto25K","HH65to74HI25Kto35K","HH65to74HI35Kto50K","HH65to74HI50Kto75K","HH65to74HI75Kto100K","HH65to74HI>100K","HH>75HI<5K","HH>75HI5Kto10K","HH>75HI10Kto15K","HH>75HI15Kto25K","HH>75HI25Kto35K","HH>75HI35Kto50K","HH>75HI50Kto75K","HH>75HI75Kto100K","HH>75HI>100K","SchoolEnrollment1thru12","Pop25andOver","HSGradorHigher","CollGradorHigher","NativePop","ForeignBornPop","BornStateOfRes","NativePop2","ForeignBornPop2","DroveAlone","CarPooled","PublicTranspt","Walked","OtherMeans","WorkedAtHome","HHInc<10K","HHInc10to15K","HHInc15to25K","HHInc25to35K","HHInc35to50K","HHInc50to75K","HHInc75to100K","HHInc100to150K","HHInc>150K"]
[null,{"$f":"VLOOKUP(DropDownList!$A$47,CntyQuery!$A$4:$FA$46,B1)","v":15005},{"$f":"VLOOKUP(DropDownList!$A$47,CntyQuery!$A$4:$FA$46,C1)","v":"02340"},{"$f":"VLOOKUP(DropDownList!$A$47,CntyQuery!$A$4:$FA$46,D1)","v":7154.53},{"$f":"VLOOKUP(DropDownList!$A$47,CntyQuery!$A$4:$FA$46,E1)","v":103.92},{"$f":"VLOOKUP(DropDownList!$A$47,CntyQuery!$A$4:$FA$46,F1)","v":1885},{"$f":"VLOOKUP(DropDownList!$A$47,CntyQuery!$A$4:$FA$46,G1)","v":5188},{"$f":"VLOOKUP(DropDownList!$A$47,CntyQuery!$A$4:$FA$46,H1)","v":1449},{"$f":"VLOOKUP(DropDownList!$A$47,CntyQuery!$A$4:$FA$46,I1)","v":1774},{"$f":"VLOOKUP(DropDownList!$A$47,CntyQuery!$A$4:$FA$46,J1)","v":2605},{"$f":"VLOOKUP(DropDownList!$A$47,CntyQuery!$A$4:$FA$46,K1)","v":2583},{"$f":"VLOOKUP(DropDownList!$A$47,CntyQuery!$A$4:$FA$46,L1)","v":5125},{"$f":"VLOOKUP(DropDownList!$A$47,CntyQuery!$A$4:$FA$46,M1)","v":15},{"$f":"VLOOKUP(DropDownList!$A$47,CntyQuery!$A$4:$FA$46,N1)","v":1},{"$f":"VLOOKUP(DropDownList!$A$47,CntyQuery!$A$4:$FA$46,O1)","v":43},{"$f":"VLOOKUP(DropDownList!$A$47,CntyQuery!$A$4:$FA$46,P1)","v":4},{"$f":"VLOOKUP(DropDownList!$A$47,CntyQuery!$A$4:$FA$46,Q1)","v":12},{"$f":"VLOOKUP(DropDownList!$A$47,CntyQuery!$A$4:$FA$46,R1)","v":1072},{"$f":"VLOOKUP(DropDownList!$A$47,CntyQuery!$A$4:$FA$46,S1)","v":752},{"$f":"VLOOKUP(DropDownList!$A$47,CntyQuery!$A$4:$FA$46,T1)","v":685},{"$f":"VLOOKUP(DropDownList!$A$47,CntyQuery!$A$4:$FA$46,U1)","v":1083},{"$f":"VLOOKUP(DropDownList!$A$47,CntyQuery!$A$4:$FA$46,V1)","v":759},{"$f":"VLOOKUP(DropDownList!$A$47,CntyQuery!$A$4:$FA$46,W1)","v":454},{"$f":"VLOOKUP(DropDownList!$A$47,CntyQuery!$A$4:$FA$46,X1)","v":259},{"$f":"VLOOKUP(DropDownList!$A$47,CntyQuery!$A$4:$FA$46,Y1)","v":124},{"$f":"VLOOKUP(DropDownList!$A$47,CntyQuery!$A$4:$FA$46,Z1)","v":5188},{"$f":"VLOOKUP(DropDownList!$A$47,CntyQuery!$A$4:$FA$46,AA1)","v":4797},{"$f":"VLOOKUP(DropDownList!$A$47,CntyQuery!$A$4:$FA$46,AB1)","v":0},{"$f":"VLOOKUP(DropDownList!$A$47,CntyQuery!$A$4:$FA$46,AC1)","v":2.9244644870349492},{"$f":"VLOOKUP(DropDownList!$A$47,CntyQuery!$A$4:$FA$46,AD1)","v":3.31055900621118},{"$f":"VLOOKUP(DropDownList!$A$47,CntyQuery!$A$4:$FA$46,AE1)","v":271},{"$f":"VLOOKUP(DropDownList!$A$47,CntyQuery!$A$4:$FA$46,AF1)","v":1319},{"$f":"VLOOKUP(DropDownList!$A$47,CntyQuery!$A$4:$FA$46,AG1)","v":130},{"$f":"VLOOKUP(DropDownList!$A$47,CntyQuery!$A$4:$FA$46,AH1)","v":54},{"$f":"VLOOKUP(DropDownList!$A$47,CntyQuery!$A$4:$FA$46,AI1)","v":1885},{"$f":"VLOOKUP(DropDownList!$A$47,CntyQuery!$A$4:$FA$46,AJ1)","v":1774},{"$f":"VLOOKUP(DropDownList!$A$47,CntyQuery!$A$4:$FA$46,AK1)","v":111},{"$f":"VLOOKUP(DropDownList!$A$47,CntyQuery!$A$4:$FA$46,AL1)","v":1549},{"$f":"VLOOKUP(DropDownList!$A$47,CntyQuery!$A$4:$FA$46,AM1)","v":225},{"$f":"VLOOKUP(DropDownList!$A$47,CntyQuery!$A$4:$FA$46,AN1)","v":2},{"$f":"VLOOKUP(DropDownList!$A$47,CntyQuery!$A$4:$FA$46,AO1)","v":18},{"$f":"VLOOKUP(DropDownList!$A$47,CntyQuery!$A$4:$FA$46,AP1)","v":74},{"$f":"VLOOKUP(DropDownList!$A$47,CntyQuery!$A$4:$FA$46,AQ1)","v":1591},{"$f":"VLOOKUP(DropDownList!$A$47,CntyQuery!$A$4:$FA$46,AR1)","v":281},{"$f":"VLOOKUP(DropDownList!$A$47,CntyQuery!$A$4:$FA$46,AS1)","v":13},{"$f":"VLOOKUP(DropDownList!$A$47,CntyQuery!$A$4:$FA$46,AT1)","v":1436},{"$f":"VLOOKUP(DropDownList!$A$47,CntyQuery!$A$4:$FA$46,AU1)","v":104},{"$f":"VLOOKUP(DropDownList!$A$47,CntyQuery!$A$4:$FA$46,AV1)","v":13},{"$f":"VLOOKUP(DropDownList!$A$47,CntyQuery!$A$4:$FA$46,AW1)","v":58},{"$f":"VLOOKUP(DropDownList!$A$47,CntyQuery!$A$4:$FA$46,AX1)","v":164},{"$f":"VLOOKUP(DropDownList!$A$47,CntyQuery!$A$4:$FA$46,AY1)","v":3},{"$f":"VLOOKUP(DropDownList!$A$47,CntyQuery!$A$4:$FA$46,AZ1)","v":257},{"$f":"VLOOKUP(DropDownList!$A$47,CntyQuery!$A$4:$FA$46,BA1)","v":892},{"$f":"VLOOKUP(DropDownList!$A$47,CntyQuery!$A$4:$FA$46,BB1)","v":562},{"$f":"VLOOKUP(DropDownList!$A$47,CntyQuery!$A$4:$FA$46,BC1)","v":174},{"$f":"VLOOKUP(DropDownList!$A$47,CntyQuery!$A$4:$FA$46,BD1)","v":8},{"$f":"VLOOKUP(DropDownList!$A$47,CntyQuery!$A$4:$FA$46,BE1)","v":196},{"$f":"VLOOKUP(DropDownList!$A$47,CntyQuery!$A$4:$FA$46,BF1)","v":251},{"$f":"VLOOKUP(DropDownList!$A$47,CntyQuery!$A$4:$FA$46,BG1)","v":946},{"$f":"VLOOKUP(DropDownList!$A$47,CntyQuery!$A$4:$FA$46,BH1)","v":484},{"$f":"VLOOKUP(DropDownList!$A$47,CntyQuery!$A$4:$FA$46,BI1)","v":39},{"$f":"VLOOKUP(DropDownList!$A$47,CntyQuery!$A$4:$FA$46,BJ1)","v":42},{"$f":"VLOOKUP(DropDownList!$A$47,CntyQuery!$A$4:$FA$46,BK1)","v":51},{"$f":"VLOOKUP(DropDownList!$A$47,CntyQuery!$A$4:$FA$46,BL1)","v":124},{"$f":"VLOOKUP(DropDownList!$A$47,CntyQuery!$A$4:$FA$46,BM1)","v":133},{"$f":"VLOOKUP(DropDownList!$A$47,CntyQuery!$A$4:$FA$46,BN1)","v":287},{"$f":"VLOOKUP(DropDownList!$A$47,CntyQuery!$A$4:$FA$46,BO1)","v":502},{"$f":"VLOOKUP(DropDownList!$A$47,CntyQuery!$A$4:$FA$46,BP1)","v":328},{"$f":"VLOOKUP(DropDownList!$A$47,CntyQuery!$A$4:$FA$46,BQ1)","v":219},{"$f":"VLOOKUP(DropDownList!$A$47,CntyQuery!$A$4:$FA$46,BR1)","v":58239},{"$f":"VLOOKUP(DropDownList!$A$47,CntyQuery!$A$4:$FA$46,BS1)","v":0},{"$f":"VLOOKUP(DropDownList!$A$47,CntyQuery!$A$4:$FA$46,BT1)","v":9},{"$f":"VLOOKUP(DropDownList!$A$47,CntyQuery!$A$4:$FA$46,BU1)","v":0},{"$f":"VLOOKUP(DropDownList!$A$47,CntyQuery!$A$4:$FA$46,BV1)","v":9},{"$f":"VLOOKUP(DropDownList!$A$47,CntyQuery!$A$4:$FA$46,BW1)","v":0},{"$f":"VLOOKUP(DropDownList!$A$47,CntyQuery!$A$4:$FA$46,BX1)","v":0},{"$f":"VLOOKUP(DropDownList!$A$47,CntyQuery!$A$4:$FA$46,BY1)","v":0},{"$f":"VLOOKUP(DropDownList!$A$47,CntyQuery!$A$4:$FA$46,BZ1)","v":0},{"$f":"VLOOKUP(DropDownList!$A$47,CntyQuery!$A$4:$FA$46,CA1)","v":0},{"$f":"VLOOKUP(DropDownList!$A$47,CntyQuery!$A$4:$FA$46,CB1)","v":7},{"$f":"VLOOKUP(DropDownList!$A$47,CntyQuery!$A$4:$FA$46,CC1)","v":5},{"$f":"VLOOKUP(DropDownList!$A$47,CntyQuery!$A$4:$FA$46,CD1)","v":7},{"$f":"VLOOKUP(DropDownList!$A$47,CntyQuery!$A$4:$FA$46,CE1)","v":19},{"$f":"VLOOKUP(DropDownList!$A$47,CntyQuery!$A$4:$FA$46,CF1)","v":49},{"$f":"VLOOKUP(DropDownList!$A$47,CntyQuery!$A$4:$FA$46,CG1)","v":36},{"$f":"VLOOKUP(DropDownList!$A$47,CntyQuery!$A$4:$FA$46,CH1)","v":86},{"$f":"VLOOKUP(DropDownList!$A$47,CntyQuery!$A$4:$FA$46,CI1)","v":57},{"$f":"VLOOKUP(DropDownList!$A$47,CntyQuery!$A$4:$FA$46,CJ1)","v":15},{"$f":"VLOOKUP(DropDownList!$A$47,CntyQuery!$A$4:$FA$46,CK1)","v":0},{"$f":"VLOOKUP(DropDownList!$A$47,CntyQuery!$A$4:$FA$46,CL1)","v":6},{"$f":"VLOOKUP(DropDownList!$A$47,CntyQuery!$A$4:$FA$46,CM1)","v":0},{"$f":"VLOOKUP(DropDownList!$A$47,CntyQuery!$A$4:$FA$46,CN1)","v":43},{"$f":"VLOOKUP(DropDownList!$A$47,CntyQuery!$A$4:$FA$46,CO1)","v":27},{"$f":"VLOOKUP(DropDownList!$A$47,CntyQuery!$A$4:$FA$46,CP1)","v":92},{"$f":"VLOOKUP(DropDownList!$A$47,CntyQuery!$A$4:$FA$46,CQ1)","v":160},{"$f":"VLOOKUP(DropDownList!$A$47,CntyQuery!$A$4:$FA$46,CR1)","v":155},{"$f":"VLOOKUP(DropDownList!$A$47,CntyQuery!$A$4:$FA$46,CS1)","v":118},{"$f":"VLOOKUP(DropDownList!$A$47,CntyQuery!$A$4:$FA$46,CT1)","v":0},{"$f":"VLOOKUP(DropDownList!$A$47,CntyQuery!$A$4:$FA$46,CU1)","v":14},{"$f":"VLOOKUP(DropDownList!$A$47,CntyQuery!$A$4:$FA$46,CV1)","v":0},{"$f":"VLOOKUP(DropDownList!$A$47,CntyQuery!$A$4:$FA$46,CW1)","v":9},{"$f":"VLOOKUP(DropDownList!$A$47,CntyQuery!$A$4:$FA$46,CX1)","v":16},{"$f":"VLOOKUP(DropDownList!$A$47,CntyQuery!$A$4:$FA$46,CY1)","v":66},{"$f":"VLOOKUP(DropDownList!$A$47,CntyQuery!$A$4:$FA$46,CZ1)","v":125},{"$f":"VLOOKUP(DropDownList!$A$47,CntyQuery!$A$4:$FA$46,DA1)","v":76},{"$f":"VLOOKUP(DropDownList!$A$47,CntyQuery!$A$4:$FA$46,DB1)","v":51},{"$f":"VLOOKUP(DropDownList!$A$47,CntyQuery!$A$4:$FA$46,DC1)","v":9},{"$f":"VLOOKUP(DropDownList!$A$47,CntyQuery!$A$4:$FA$46,DD1)","v":0},{"$f":"VLOOKUP(DropDownList!$A$47,CntyQuery!$A$4:$FA$46,DE1)","v":7},{"$f":"VLOOKUP(DropDownList!$A$47,CntyQuery!$A$4:$FA$46,DF1)","v":13},{"$f":"VLOOKUP(DropDownList!$A$47,CntyQuery!$A$4:$FA$46,DG1)","v":4},{"$f":"VLOOKUP(DropDownList!$A$47,CntyQuery!$A$4:$FA$46,DH1)","v":54},{"$f":"VLOOKUP(DropDownList!$A$47,CntyQuery!$A$4:$FA$46,DI1)","v":99},{"$f":"VLOOKUP(DropDownList!$A$47,CntyQuery!$A$4:$FA$46,DJ1)","v":27},{"$f":"VLOOKUP(DropDownList!$A$47,CntyQuery!$A$4:$FA$46,DK1)","v":35},{"$f":"VLOOKUP(DropDownList!$A$47,CntyQuery!$A$4:$FA$46,DL1)","v":10},{"$f":"VLOOKUP(DropDownList!$A$47,CntyQuery!$A$4:$FA$46,DM1)","v":0},{"$f":"VLOOKUP(DropDownList!$A$47,CntyQuery!$A$4:$FA$46,DN1)","v":19},{"$f":"VLOOKUP(DropDownList!$A$47,CntyQuery!$A$4:$FA$46,DO1)","v":11},{"$f":"VLOOKUP(DropDownList!$A$47,CntyQuery!$A$4:$FA$46,DP1)","v":37},{"$f":"VLOOKUP(DropDownList!$A$47,CntyQuery!$A$4:$FA$46,DQ1)","v":35},{"$f":"VLOOKUP(DropDownList!$A$47,CntyQuery!$A$4:$FA$46,DR1)","v":10},{"$f":"VLOOKUP(DropDownList!$A$47,CntyQuery!$A$4:$FA$46,DS1)","v":13},{"$f":"VLOOKUP(DropDownList!$A$47,CntyQuery!$A$4:$FA$46,DT1)","v":0},{"$f":"VLOOKUP(DropDownList!$A$47,CntyQuery!$A$4:$FA$46,DU1)","v":13},{"$f":"VLOOKUP(DropDownList!$A$47,CntyQuery!$A$4:$FA$46,DV1)","v":8},{"$f":"VLOOKUP(DropDownList!$A$47,CntyQuery!$A$4:$FA$46,DW1)","v":18},{"$f":"VLOOKUP(DropDownList!$A$47,CntyQuery!$A$4:$FA$46,DX1)","v":20},{"$f":"VLOOKUP(DropDownList!$A$47,CntyQuery!$A$4:$FA$46,DY1)","v":0},{"$f":"VLOOKUP(DropDownList!$A$47,CntyQuery!$A$4:$FA$46,DZ1)","v":4},{"$f":"VLOOKUP(DropDownList!$A$47,CntyQuery!$A$4:$FA$46,EA1)","v":22},{"$f":"VLOOKUP(DropDownList!$A$47,CntyQuery!$A$4:$FA$46,EB1)","v":0},{"$f":"VLOOKUP(DropDownList!$A$47,CntyQuery!$A$4:$FA$46,EC1)","v":0},{"$f":"VLOOKUP(DropDownList!$A$47,CntyQuery!$A$4:$FA$46,ED1)","v":990},{"$f":"VLOOKUP(DropDownList!$A$47,CntyQuery!$A$4:$FA$46,EE1)","v":3364},{"$f":"VLOOKUP(DropDownList!$A$47,CntyQuery!$A$4:$FA$46,EF1)","v":3090},{"$f":"VLOOKUP(DropDownList!$A$47,CntyQuery!$A$4:$FA$46,EG1)","v":1012},{"$f":"VLOOKUP(DropDownList!$A$47,CntyQuery!$A$4:$FA$46,EH1)","v":5039},{"$f":"VLOOKUP(DropDownList!$A$47,CntyQuery!$A$4:$FA$46,EI1)","v":149},{"$f":"VLOOKUP(DropDownList!$A$47,CntyQuery!$A$4:$FA$46,EJ1)","v":374},{"$f":"VLOOKUP(DropDownList!$A$47,CntyQuery!$A$4:$FA$46,EK1)","v":5039},{"$f":"VLOOKUP(DropDownList!$A$47,CntyQuery!$A$4:$FA$46,EL1)","v":149},{"$f":"VLOOKUP(DropDownList!$A$47,CntyQuery!$A$4:$FA$46,EM1)","v":2415},{"$f":"VLOOKUP(DropDownList!$A$47,CntyQuery!$A$4:$FA$46,EN1)","v":313},{"$f":"VLOOKUP(DropDownList!$A$47,CntyQuery!$A$4:$FA$46,EO1)","v":20},{"$f":"VLOOKUP(DropDownList!$A$47,CntyQuery!$A$4:$FA$46,EP1)","v":31},{"$f":"VLOOKUP(DropDownList!$A$47,CntyQuery!$A$4:$FA$46,EQ1)","v":12},{"$f":"VLOOKUP(DropDownList!$A$47,CntyQuery!$A$4:$FA$46,ER1)","v":99},{"$f":"VLOOKUP(DropDownList!$A$47,CntyQuery!$A$4:$FA$46,ES1)","v":81},{"$f":"VLOOKUP(DropDownList!$A$47,CntyQuery!$A$4:$FA$46,ET1)","v":51},{"$f":"VLOOKUP(DropDownList!$A$47,CntyQuery!$A$4:$FA$46,EU1)","v":124},{"$f":"VLOOKUP(DropDownList!$A$47,CntyQuery!$A$4:$FA$46,EV1)","v":133},{"$f":"VLOOKUP(DropDownList!$A$47,CntyQuery!$A$4:$FA$46,EW1)","v":287},{"$f":"VLOOKUP(DropDownList!$A$47,CntyQuery!$A$4:$FA$46,EX1)","v":502},{"$f":"VLOOKUP(DropDownList!$A$47,CntyQuery!$A$4:$FA$46,EY1)","v":328},{"$f":"VLOOKUP(DropDownList!$A$47,CntyQuery!$A$4:$FA$46,EZ1)","v":150},{"$f":"VLOOKUP(DropDownList!$A$47,CntyQuery!$A$4:$FA$46,FA1)","v":69}]
[]
[]
["Census 1990 Data -    Query Name:  TownSTF1Qry1"]
["NAME","COUSUBFP","Census_Cnty_Code","FIPS","LandAcres","WaterAcres","HousingUnits90Cen","P01Persons90Cen","P02Families90Cen","P03Households90cen","P05MalePop90cen","P05FemalePop90cen","P06WhitePop","P06BlackPop","P06AmerIndianPop","P06AsianPIPop","P06OtherRacePop","P08HispanicOrPop","P11AgeUnder15_90cen","P11Age15to24_90cen","P11Age25to34_90cen","P11Age35to44_90cen","P11Age45to54_90cen","P11Age55to64_90cen","P11Age65to74_90cen","P11Age75andOver_90cen","P15PersonsInHH90cen","P15PersonsInFamHH90cen","P15PersonsInGC","PersonsPerHH90cen","PersonsPerFam90Cen","P16SinglePersonHH90cen","P16MarriedCoupleHH90cen","P16SingleParentHH90cen","P16NonFamilyHH90cen","H01TotalHousingUnits","H02OccupiedHousingUnits","H02VacantHousingUnits","H03OwnerOccHU","H03RenterOccHU","H05VacantForRent90","H05VacantForSale90","H05VacantSeasonalRec","H23OOHUVal<15k","H23OOHUVal15to19k","H23OOHUVal20to24k","H23OOHUVal25to29k","H23OOHUVal30to34k","H23OOHUVal35to39k","H23OOHUVal40to44k","H23OOHUVal45to49k","H23OOHUVal50to59k","H23OOHUVal60to74k","H23OOHUVal75to99k","H23OOHUVal100to124k","H23OOHUVal125to149k","H23OOHUVal150to174k","H23OOHUVal175to199k","H23OOHUVal200to249k","H23OOHUVal250to299k","H23OOHUVal300to399k","H23OOHUVal400to499k","H23OOHUVal500kOrMore","H23BOOHUMedVal","H41SingFamHU90cen","H41MultiFamHU90cen","H41MobileHom90cen","H43SingFamOwnHU90cen","H43MultiFamOwnHU90cen","H43MobileHomOwnHU90cen","H43SingFamRntrHU90cen","H43MultiFamRntrHU90cen","H43MobileHomRntrHU90cen","H41HU1UnitDet","H41HU1UnitAtt","H41HU2Unit","H41HU3to4Unit","H41HU5to9Unit","H41HU10to19Unit","H41HU20to49Unit","H41HU50PlusUnit","H41HUMobilH","H41HUOther"]
[null,{"$f":"VLOOKUP(DropDownList!$B$47,CntyQuery!$A$51:$CE$93,B$1)","v":801},{"$f":"VLOOKUP(DropDownList!$B$47,CntyQuery!$A$51:$CE$93,C$1)","v":15005},{"$f":"VLOOKUP(DropDownList!$B$47,CntyQuery!$A$51:$CE$93,D$1)","v":"02340"},{"$f":"VLOOKUP(DropDownList!$B$47,CntyQuery!$A$51:$CE$93,E$1)","v":7154.53},{"$f":"VLOOKUP(DropDownList!$B$47,CntyQuery!$A$51:$CE$93,F$1)","v":103.92},{"$f":"VLOOKUP(DropDownList!$B$47,CntyQuery!$A$51:$CE$93,G$1)","v":1885},{"$f":"VLOOKUP(DropDownList!$B$47,CntyQuery!$A$51:$CE$93,H$1)","v":5188},{"$f":"VLOOKUP(DropDownList!$B$47,CntyQuery!$A$51:$CE$93,I$1)","v":1449},{"$f":"VLOOKUP(DropDownList!$B$47,CntyQuery!$A$51:$CE$93,J$1)","v":1774},{"$f":"VLOOKUP(DropDownList!$B$47,CntyQuery!$A$51:$CE$93,K$1)","v":2605},{"$f":"VLOOKUP(DropDownList!$B$47,CntyQuery!$A$51:$CE$93,L$1)","v":2583},{"$f":"VLOOKUP(DropDownList!$B$47,CntyQuery!$A$51:$CE$93,M$1)","v":5125},{"$f":"VLOOKUP(DropDownList!$B$47,CntyQuery!$A$51:$CE$93,N$1)","v":15},{"$f":"VLOOKUP(DropDownList!$B$47,CntyQuery!$A$51:$CE$93,O$1)","v":1},{"$f":"VLOOKUP(DropDownList!$B$47,CntyQuery!$A$51:$CE$93,P$1)","v":43},{"$f":"VLOOKUP(DropDownList!$B$47,CntyQuery!$A$51:$CE$93,Q$1)","v":4},{"$f":"VLOOKUP(DropDownList!$B$47,CntyQuery!$A$51:$CE$93,R$1)","v":12},{"$f":"VLOOKUP(DropDownList!$B$47,CntyQuery!$A$51:$CE$93,S$1)","v":1072},{"$f":"VLOOKUP(DropDownList!$B$47,CntyQuery!$A$51:$CE$93,T$1)","v":752},{"$f":"VLOOKUP(DropDownList!$B$47,CntyQuery!$A$51:$CE$93,U$1)","v":685},{"$f":"VLOOKUP(DropDownList!$B$47,CntyQuery!$A$51:$CE$93,V$1)","v":1083},{"$f":"VLOOKUP(DropDownList!$B$47,CntyQuery!$A$51:$CE$93,W$1)","v":759},{"$f":"VLOOKUP(DropDownList!$B$47,CntyQuery!$A$51:$CE$93,X$1)","v":454},{"$f":"VLOOKUP(DropDownList!$B$47,CntyQuery!$A$51:$CE$93,Y$1)","v":259},{"$f":"VLOOKUP(DropDownList!$B$47,CntyQuery!$A$51:$CE$93,Z$1)","v":124},{"$f":"VLOOKUP(DropDownList!$B$47,CntyQuery!$A$51:$CE$93,AA$1)","v":5188},{"$f":"VLOOKUP(DropDownList!$B$47,CntyQuery!$A$51:$CE$93,AB$1)","v":4797},{"$f":"VLOOKUP(DropDownList!$B$47,CntyQuery!$A$51:$CE$93,AC$1)","v":0},{"$f":"VLOOKUP(DropDownList!$B$47,CntyQuery!$A$51:$CE$93,AD$1)","v":2.9244644870349492},{"$f":"VLOOKUP(DropDownList!$B$47,CntyQuery!$A$51:$CE$93,AE$1)","v":3.31055900621118},{"$f":"VLOOKUP(DropDownList!$B$47,CntyQuery!$A$51:$CE$93,AF$1)","v":271},{"$f":"VLOOKUP(DropDownList!$B$47,CntyQuery!$A$51:$CE$93,AG$1)","v":1319},{"$f":"VLOOKUP(DropDownList!$B$47,CntyQuery!$A$51:$CE$93,AH$1)","v":130},{"$f":"VLOOKUP(DropDownList!$B$47,CntyQuery!$A$51:$CE$93,AI$1)","v":54},{"$f":"VLOOKUP(DropDownList!$B$47,CntyQuery!$A$51:$CE$93,AJ$1)","v":1885},{"$f":"VLOOKUP(DropDownList!$B$47,CntyQuery!$A$51:$CE$93,AK$1)","v":1774},{"$f":"VLOOKUP(DropDownList!$B$47,CntyQuery!$A$51:$CE$93,AL$1)","v":111},{"$f":"VLOOKUP(DropDownList!$B$47,CntyQuery!$A$51:$CE$93,AM$1)","v":1549},{"$f":"VLOOKUP(DropDownList!$B$47,CntyQuery!$A$51:$CE$93,AN$1)","v":225},{"$f":"VLOOKUP(DropDownList!$B$47,CntyQuery!$A$51:$CE$93,AO$1)","v":2},{"$f":"VLOOKUP(DropDownList!$B$47,CntyQuery!$A$51:$CE$93,AP$1)","v":18},{"$f":"VLOOKUP(DropDownList!$B$47,CntyQuery!$A$51:$CE$93,AQ$1)","v":74},{"$f":"VLOOKUP(DropDownList!$B$47,CntyQuery!$A$51:$CE$93,AR$1)","v":0},{"$f":"VLOOKUP(DropDownList!$B$47,CntyQuery!$A$51:$CE$93,AS$1)","v":0},{"$f":"VLOOKUP(DropDownList!$B$47,CntyQuery!$A$51:$CE$93,AT$1)","v":1},{"$f":"VLOOKUP(DropDownList!$B$47,CntyQuery!$A$51:$CE$93,AU$1)","v":0},{"$f":"VLOOKUP(DropDownList!$B$47,CntyQuery!$A$51:$CE$93,AV$1)","v":0},{"$f":"VLOOKUP(DropDownList!$B$47,CntyQuery!$A$51:$CE$93,AW$1)","v":0},{"$f":"VLOOKUP(DropDownList!$B$47,CntyQuery!$A$51:$CE$93,AX$1)","v":0},{"$f":"VLOOKUP(DropDownList!$B$47,CntyQuery!$A$51:$CE$93,AY$1)","v":1},{"$f":"VLOOKUP(DropDownList!$B$47,CntyQuery!$A$51:$CE$93,AZ$1)","v":1},{"$f":"VLOOKUP(DropDownList!$B$47,CntyQuery!$A$51:$CE$93,BA$1)","v":3},{"$f":"VLOOKUP(DropDownList!$B$47,CntyQuery!$A$51:$CE$93,BB$1)","v":23},{"$f":"VLOOKUP(DropDownList!$B$47,CntyQuery!$A$51:$CE$93,BC$1)","v":64},{"$f":"VLOOKUP(DropDownList!$B$47,CntyQuery!$A$51:$CE$93,BD$1)","v":203},{"$f":"VLOOKUP(DropDownList!$B$47,CntyQuery!$A$51:$CE$93,BE$1)","v":341},{"$f":"VLOOKUP(DropDownList!$B$47,CntyQuery!$A$51:$CE$93,BF$1)","v":266},{"$f":"VLOOKUP(DropDownList!$B$47,CntyQuery!$A$51:$CE$93,BG$1)","v":248},{"$f":"VLOOKUP(DropDownList!$B$47,CntyQuery!$A$51:$CE$93,BH$1)","v":88},{"$f":"VLOOKUP(DropDownList!$B$47,CntyQuery!$A$51:$CE$93,BI$1)","v":69},{"$f":"VLOOKUP(DropDownList!$B$47,CntyQuery!$A$51:$CE$93,BJ$1)","v":16},{"$f":"VLOOKUP(DropDownList!$B$47,CntyQuery!$A$51:$CE$93,BK$1)","v":11},{"$f":"VLOOKUP(DropDownList!$B$47,CntyQuery!$A$51:$CE$93,BL$1)","v":177900},{"$f":"VLOOKUP(DropDownList!$B$47,CntyQuery!$A$51:$CE$93,BM$1)","v":1591},{"$f":"VLOOKUP(DropDownList!$B$47,CntyQuery!$A$51:$CE$93,BN$1)","v":281},{"$f":"VLOOKUP(DropDownList!$B$47,CntyQuery!$A$51:$CE$93,BO$1)","v":13},{"$f":"VLOOKUP(DropDownList!$B$47,CntyQuery!$A$51:$CE$93,BP$1)","v":1436},{"$f":"VLOOKUP(DropDownList!$B$47,CntyQuery!$A$51:$CE$93,BQ$1)","v":104},{"$f":"VLOOKUP(DropDownList!$B$47,CntyQuery!$A$51:$CE$93,BR$1)","v":9},{"$f":"VLOOKUP(DropDownList!$B$47,CntyQuery!$A$51:$CE$93,BS$1)","v":58},{"$f":"VLOOKUP(DropDownList!$B$47,CntyQuery!$A$51:$CE$93,BT$1)","v":164},{"$f":"VLOOKUP(DropDownList!$B$47,CntyQuery!$A$51:$CE$93,BU$1)","v":3},{"$f":"VLOOKUP(DropDownList!$B$47,CntyQuery!$A$51:$CE$93,BV$1)","v":1591},{"$f":"VLOOKUP(DropDownList!$B$47,CntyQuery!$A$51:$CE$93,BW$1)","v":87},{"$f":"VLOOKUP(DropDownList!$B$47,CntyQuery!$A$51:$CE$93,BX$1)","v":40},{"$f":"VLOOKUP(DropDownList!$B$47,CntyQuery!$A$51:$CE$93,BY$1)","v":29},{"$f":"VLOOKUP(DropDownList!$B$47,CntyQuery!$A$51:$CE$93,BZ$1)","v":0},{"$f":"VLOOKUP(DropDownList!$B$47,CntyQuery!$A$51:$CE$93,CA$1)","v":125},{"$f":"VLOOKUP(DropDownList!$B$47,CntyQuery!$A$51:$CE$93,CB$1)","v":0},{"$f":"VLOOKUP(DropDownList!$B$47,CntyQuery!$A$51:$CE$93,CC$1)","v":0},{"$f":"VLOOKUP(DropDownList!$B$47,CntyQuery!$A$51:$CE$93,CD$1)","v":3},{"$f":"VLOOKUP(DropDownList!$B$47,CntyQuery!$A$51:$CE$93,CE$1)","v":10}]
[]
[]
["Census 1990 Data -          Query Name: TownSTF3Qry1"]
["NAME","FIPS","COUSUBFP","LandAcres","WaterAcres","HousingUnits90Cen","P01Persons90Cen","P02Families90Cen","P03Households90cen","H25HU<5yrs90cen","H25HU5to20yrs90cen","H25HU20to50yrs90cen","H25HU>50yrs90cen","H31Units0Bedroom90cen","H31Units1Bedroom90cen","H31Units2Bedroom90cen","H31Units3Bedroom90cen","H31Units4Bedroom90cen","H31Units5+Bedroom90cen","P80HI<5K","P80HI5Kto10K","P80HI10Kto15K","P80HI15Kto25K","P80HI25Kto35K","P80HI35Kto50K","P80HI50Kto75K","P80HI75Kto100K","P80HI>100K","P80AMedHI","P86HH<25HI<5K","P86HH<25HI5Kto10K","P86HH<25HI10Kto15K","P86HH<25HI15Kto25K","P86HH<25HI25Kto35K","P86HH<25HI35Kto50K","P86HH<25HI50Kto75K","P86HH<25HI75Kto100K","P86HH<25HI>100K","P86HH25to34HI<5K","P86HH25to34HI5Kto10K","P86HH25to34HI10Kto15K","P86HH25to34HI15Kto25K","P86HH25to34HI25Kto35K","P86HH25to34HI35Kto50K","P86HH25to34HI50Kto75K","P86HH25to34HI75Kto100K","P86HH25to34HI>100K","P86HH35to44HI<5K","P86HH35to44HI5Kto10K","P86HH35to44HI10Kto15K","P86HH35to44HI15Kto25K","P86HH35to44HI25Kto35K","P86HH35to44HI35Kto50K","P86HH35to44HI50Kto75K","P86HH35to44HI75Kto100K","P86HH35to44HI>100K","P86HH45to54HI<5K","P86HH45to54HI5Kto10K","P86HH45to54HI10Kto15K","P86HH45to54HI15Kto25K","P86HH45to54HI25Kto35K","P86HH45to54HI35Kto50K","P86HH45to54HI50Kto75K","P86HH45to54HI75Kto100K","P86HH45to54HI>100K","P86HH55to64HI<5K","P86HH55to64HI5Kto10K","P86HH55to64HI10Kto15K","P86HH55to64HI15Kto25K","P86HH55to64HI25Kto35K","P86HH55to64HI35Kto50K","P86HH55to64HI50Kto75K","P86HH55to64HI75Kto100K","P86HH55to64HI>100K","P86HH65to74HI<5K","P86HH65to74HI5Kto10K","P86HH65to74HI10Kto15K","P86HH65to74HI15Kto25K","P86HH65to74HI25Kto35K","P86HH65to74HI35Kto50K","P86HH65to74HI50Kto75K","P86HH65to74HI75Kto100K","P86HH65to74HI>100K","P86HH>75HI<5K","P86HH>75HI5Kto10K","P86HH>75HI10Kto15K","P86HH>75HI15Kto25K","P86HH>75HI25Kto35K","P86HH>75HI35Kto50K","P86HH>75HI50Kto75K","P86HH>75HI75Kto100K","P86HH>75HI>100K","P54SchlEnrlPrePrim","P54SchlEnrlElemThrHS","P54SchlEnrlCollege","P54NotEnrlInSch","P57Pop25andOver","P57LessThan9thGrade","P579thto12thNoDip","P57HSGrad","P57SomeCollege","P57AssocDeg","P57BachelDeg","P57GradorProfDeg","P57HSGradorHigher","P57CollGradorHigher","P42NativePop","P42ForeignBornPop","P42BornStateOfRes","P37NativePop2","P37ForeignBornPop2","P49DroveAlone","P49CarPooled","P49PublicTranspt","P49Walked","P49OtherMeans","P49WorkedAtHome","P80HHInc<10K","P80HHInc10to15K","P80HHInc15to25K","P80HHInc25to35K","P80HHInc35to50K","P80HHInc50to75K","P80HHInc75to100K","P80HHInc100to150K","P80HHInc>150K","H25YearStBlt89to90","H25YearStBlt85to88","H25YearStBlt80to84","H25YearStBlt70to79","H25YearStBlt60to69","H25YearStBlt50to59","H25YearStBlt40to49","H25YearStBlt39earlier","P107FamInc<10K","P107FamInc10to15K","P107FamInc15to25K","P107FamInc25to35K","P107FamInc35to50K","P107FamInc50to75K","P107FamInc75to100K","P107FamInc100to150K","P107FamInc>150K","P107AMedFamInc","P110NonFamInc<10K","P110NonFamInc10to15K","P110NonFamInc15to25K","P110NonFamInc25to35K","P110NonFamInc35to50K","P110NonFamInc50to75K","P110NonFamInc75to100K","P110NonFamInc100to150K","P110NonFamInc>150K","P110AMedNonFamInc","H16HU1Room","H16HU2Room","H16HU3Room","H16HU4Room","H16HU5Room","H16HU6Room","H16HU7Room","H16HU8Room","H16HU9+Room","H43GrossRnt<100","H43GrossRnt100to149","H43GrossRnt150to199","H43GrossRnt200to249","H43GrossRnt250to299","H43GrossRnt300to349","H43GrossRnt350to399","H43GrossRnt400to449","H43GrossRnt450to499","H43GrossRnt500to549","H43GrossRnt550to599","H43GrossRnt600to649","H43GrossRnt650to699","H43GrossRnt700to749","H43GrossRnt750to999","H43GrossRnt1000Plus","H43NoCashRent","H43MedGrossRent","H51GrossRnt<20PctHHInc","H51GrossRnt20to24PctHHInc","H51GrossRnt25to29PctHHInc","H51GrossRnt30to34PctHHInc","H51GrossRnt35PctOrMoreHHInc","H51GrossRntAsPctHHIncNotComp","H52HUwMtgMoOwnCst<200","H52HUwMtgMoOwnCst200to299","H52HUwMtgMoOwnCst300to399","H52HUwMtgMoOwnCst400to499","H52HUwMtgMoOwnCst500to599","H52HUwMtgMoOwnCst600to699","H52HUwMtgMoOwnCst700to799","H52HUwMtgMoOwnCst800to899","H52HUwMtgMoOwnCst900to999","H52HUwMtgMoOwnCst1000to1249","H52HUwMtgMoOwnCst1250to1499","H52HUwMtgMoOwnCst1500to1999","H52HUwMtgMoOwnCst2000More","H52HUwNoMtgMoOwnCst<100","H52HUwNoMtgMoOwnCst100to149","H52HUwNoMtgMoOwnCst150to199","H52HUwNoMtgMoOwnCst200to249","H52HUwNoMtgMoOwnCst250to299","H52HUwNoMtgMoOwnCst300to349","H52HUwNoMtgMoOwnCst350to399","H52HUwNoMtgMoOwnCst400More","H52AMedMoOwnCstWMortg","H52AMedMoOwnCstWNoMortg","H58HUwMtgMOC<20pHHInc","H58HUwMtgMOC20to24pHHInc","H58HUwMtgMOC25to29pHHInc","H58HUwMtgMOC30to34pHHInc","H58wMtgMOC>35pHHInc","H58HUwMtgMOCNotComp","H58HUwNoMtgMOC<20pHHInc","H58HUwNoMtgMOC20to24pHHInc","H58HUwNoMtgMOC25to29pHHInc","H58HUwNoMtgMOC30to34pHHInc","H58wNoMtgMOC>35pHHInc","H58HUwNoMtgMOCNotComp","H61OOHUVal<15k","H61OOHUVal15to19k","H61OOHUVal20to24k","H61OOHUVal25to29k","H61OOHUVal30to34k","H61OOHUVal35to39k","H61OOHUVal40to44k","H61OOHUVal45to49k","H61OOHUVal50to59k","H61OOHUVal60to74k","H61OOHUVal75to99k","H61OOHUVal100to124k","H61OOHUVal125to149k","H61OOHUVal150to174k","H61OOHUVal175to199k","H61OOHUVal200to249k","H61OOHUVal250to299k","H61OOHUVal300to399k","H61OOHUVal400to499k","H61OOHUVal500kOrMore","H61aOOHUMedVal"]
[]
[]
[]
["Other Demo Data -             Query Name: QryAllTowns-ACSDemographicSheet"]
["TOWN_NAME","FIPS","TOWNCNTY","COUSUB","POP80","POP90CDCEN","POP2000CEN","POP2010CEN","POP2025-Proj","POP2030-Proj","POP2040-Proj","SF80","MF80","MH80","SF81","MF81","MH81","SF82","MF82","MH82","SF83","MF83","MH83","SF84_OSP","MF84_OSP","MH84_OSP","SF85_OSP","MF85_OSP","MH85_OSP","SF86_OSP","MF86_OSP","MH86_OSP","SF87_OSP","MF87_OSP","MH87_OSP","SF88_OSP","MF88_OSP","MH88_OSP","SF89_OSP","MF89_OSP","MH89_OSP","SF90_OSP","MF90_OSP","MH90_OSP","SF91_OSP","MF91_OSP","MH91_OSP","SF92_OSP","MF92_OSP","MH92_OSP","SF93_OSP","MF93_OSP","MH93_OSP","SF94_OSP","MF94_OSP","MH94_OSP","SF95_OSP","MF95_OSP","MH95_OSP","SF96_OSP","MF96_OSP","MH96_OSP","SF97_OSP","MF97_OSP","MH97_OSP","SF98_OSP","MF98_OSP","MH98_OSP","SF99_OSP","MF99_OSP","MH99_OSP","SF00_OSP","MF00_OSP","MH00_OSP","SF01_OSP","MF01_OSP","MH01_OSP","SF02_OSP","MF02_OSP","MH02_OSP","SF03_OSP","MF03_OSP","MH03_OSP","SF04_OSP","MF04_OSP","MH04_OSP","SF05_OSP","MF05_OSP","MH05_OSP","SF06_OSP","MF06_OSP","MH06_OSP","SF07_OSP","MF07_OSP","MH07_OSP","SF08_OSP","MF08_OSP","MH08_OSP","SF09_OSP","MF09_OSP","MH09_OSP","SF10_OSP","MF10_OSP","MH10_OSP","SF11_OSP","MF11_OSP","MH11_OSP","SF12_OSP","MF12_OSP","MH12_OSP","SF13_OSP","MF13_OSP","MH13_OSP","SF14_OSP","MF14_OSP","MH14_OSP","SF15_OSP","MF15_OSP","MH15_OSP","SF16_OSP","MF16_OSP","MH16_OSP","SF17_OSP","MF17_OSP","MH17_OSP","SF18_OSP","MF18_OSP","MH18_OSP","SF19_OSP","MF19_OSP","MH19_OSP","COMMENTS","CNTY_CODE"]
[{"$f":"VLOOKUP(DropDownList!$B$47,CntyQuery!$A$118:$FZ$154,A$1)","v":"Atkinson"},{"$f":"VLOOKUP(DropDownList!$B$47,CntyQuery!$A$118:$FZ$154,B$1)","v":15005},{"$f":"VLOOKUP(DropDownList!$B$47,CntyQuery!$A$118:$FZ$154,C$1)","v":801},{"$f":"VLOOKUP(DropDownList!$B$47,CntyQuery!$A$118:$FZ$154,D$1)","v":"02340"},{"$f":"VLOOKUP(DropDownList!$B$47,CntyQuery!$A$118:$FZ$154,E$1)","v":4397},{"$f":"VLOOKUP(DropDownList!$B$47,CntyQuery!$A$118:$FZ$154,F$1)","v":5188},{"$f":"VLOOKUP(DropDownList!$B$47,CntyQuery!$A$118:$FZ$154,G$1)","v":6178},{"$f":"VLOOKUP(DropDownList!$B$47,CntyQuery!$A$118:$FZ$154,H$1)","v":6751},{"$f":"VLOOKUP(DropDownList!$B$47,CntyQuery!$A$118:$FZ$154,I$1)","v":7358},{"$f":"VLOOKUP(DropDownList!$B$47,CntyQuery!$A$118:$FZ$154,J$1)","v":7485},{"$f":"VLOOKUP(DropDownList!$B$47,CntyQuery!$A$118:$FZ$154,K$1)","v":7536},{"$f":"VLOOKUP(DropDownList!$B$47,CntyQuery!$A$118:$FZ$154,L$1)","v":24},{"$f":"VLOOKUP(DropDownList!$B$47,CntyQuery!$A$118:$FZ$154,M$1)","v":0},{"$f":"VLOOKUP(DropDownList!$B$47,CntyQuery!$A$118:$FZ$154,N$1)","v":0},{"$f":"VLOOKUP(DropDownList!$B$47,CntyQuery!$A$118:$FZ$154,O$1)","v":21},{"$f":"VLOOKUP(DropDownList!$B$47,CntyQuery!$A$118:$FZ$154,P$1)","v":0},{"$f":"VLOOKUP(DropDownList!$B$47,CntyQuery!$A$118:$FZ$154,Q$1)","v":0},{"$f":"VLOOKUP(DropDownList!$B$47,CntyQuery!$A$118:$FZ$154,R$1)","v":37},{"$f":"VLOOKUP(DropDownList!$B$47,CntyQuery!$A$118:$FZ$154,S$1)","v":0},{"$f":"VLOOKUP(DropDownList!$B$47,CntyQuery!$A$118:$FZ$154,T$1)","v":0},{"$f":"VLOOKUP(DropDownList!$B$47,CntyQuery!$A$118:$FZ$154,U$1)","v":23},{"$f":"VLOOKUP(DropDownList!$B$47,CntyQuery!$A$118:$FZ$154,V$1)","v":0},{"$f":"VLOOKUP(DropDownList!$B$47,CntyQuery!$A$118:$FZ$154,W$1)","v":0},{"$f":"VLOOKUP(DropDownList!$B$47,CntyQuery!$A$118:$FZ$154,X$1)","v":42},{"$f":"VLOOKUP(DropDownList!$B$47,CntyQuery!$A$118:$FZ$154,Y$1)","v":0},{"$f":"VLOOKUP(DropDownList!$B$47,CntyQuery!$A$118:$FZ$154,Z$1)","v":14},{"$f":"VLOOKUP(DropDownList!$B$47,CntyQuery!$A$118:$FZ$154,AA$1)","v":60},{"$f":"VLOOKUP(DropDownList!$B$47,CntyQuery!$A$118:$FZ$154,AB$1)","v":0},{"$f":"VLOOKUP(DropDownList!$B$47,CntyQuery!$A$118:$FZ$154,AC$1)","v":0},{"$f":"VLOOKUP(DropDownList!$B$47,CntyQuery!$A$118:$FZ$154,AD$1)","v":59},{"$f":"VLOOKUP(DropDownList!$B$47,CntyQuery!$A$118:$FZ$154,AE$1)","v":0},{"$f":"VLOOKUP(DropDownList!$B$47,CntyQuery!$A$118:$FZ$154,AF$1)","v":0},{"$f":"VLOOKUP(DropDownList!$B$47,CntyQuery!$A$118:$FZ$154,AG$1)","v":196},{"$f":"VLOOKUP(DropDownList!$B$47,CntyQuery!$A$118:$FZ$154,AH$1)","v":0},{"$f":"VLOOKUP(DropDownList!$B$47,CntyQuery!$A$118:$FZ$154,AI$1)","v":0},{"$f":"VLOOKUP(DropDownList!$B$47,CntyQuery!$A$118:$FZ$154,AJ$1)","v":73},{"$f":"VLOOKUP(DropDownList!$B$47,CntyQuery!$A$118:$FZ$154,AK$1)","v":0},{"$f":"VLOOKUP(DropDownList!$B$47,CntyQuery!$A$118:$FZ$154,AL$1)","v":0},{"$f":"VLOOKUP(DropDownList!$B$47,CntyQuery!$A$118:$FZ$154,AM$1)","v":21},{"$f":"VLOOKUP(DropDownList!$B$47,CntyQuery!$A$118:$FZ$154,AN$1)","v":0},{"$f":"VLOOKUP(DropDownList!$B$47,CntyQuery!$A$118:$FZ$154,AO$1)","v":0},{"$f":"VLOOKUP(DropDownList!$B$47,CntyQuery!$A$118:$FZ$154,AP$1)","v":13},{"$f":"VLOOKUP(DropDownList!$B$47,CntyQuery!$A$118:$FZ$154,AQ$1)","v":54},{"$f":"VLOOKUP(DropDownList!$B$47,CntyQuery!$A$118:$FZ$154,AR$1)","v":0},{"$f":"VLOOKUP(DropDownList!$B$47,CntyQuery!$A$118:$FZ$154,AS$1)","v":20},{"$f":"VLOOKUP(DropDownList!$B$47,CntyQuery!$A$118:$FZ$154,AT$1)","v":43},{"$f":"VLOOKUP(DropDownList!$B$47,CntyQuery!$A$118:$FZ$154,AU$1)","v":0},{"$f":"VLOOKUP(DropDownList!$B$47,CntyQuery!$A$118:$FZ$154,AV$1)","v":11},{"$f":"VLOOKUP(DropDownList!$B$47,CntyQuery!$A$118:$FZ$154,AW$1)","v":44},{"$f":"VLOOKUP(DropDownList!$B$47,CntyQuery!$A$118:$FZ$154,AX$1)","v":0},{"$f":"VLOOKUP(DropDownList!$B$47,CntyQuery!$A$118:$FZ$154,AY$1)","v":18},{"$f":"VLOOKUP(DropDownList!$B$47,CntyQuery!$A$118:$FZ$154,AZ$1)","v":48},{"$f":"VLOOKUP(DropDownList!$B$47,CntyQuery!$A$118:$FZ$154,BA$1)","v":0},{"$f":"VLOOKUP(DropDownList!$B$47,CntyQuery!$A$118:$FZ$154,BB$1)","v":25},{"$f":"VLOOKUP(DropDownList!$B$47,CntyQuery!$A$118:$FZ$154,BC$1)","v":28},{"$f":"VLOOKUP(DropDownList!$B$47,CntyQuery!$A$118:$FZ$154,BD$1)","v":0},{"$f":"VLOOKUP(DropDownList!$B$47,CntyQuery!$A$118:$FZ$154,BE$1)","v":33},{"$f":"VLOOKUP(DropDownList!$B$47,CntyQuery!$A$118:$FZ$154,BF$1)","v":8},{"$f":"VLOOKUP(DropDownList!$B$47,CntyQuery!$A$118:$FZ$154,BG$1)","v":0},{"$f":"VLOOKUP(DropDownList!$B$47,CntyQuery!$A$118:$FZ$154,BH$1)","v":49},{"$f":"VLOOKUP(DropDownList!$B$47,CntyQuery!$A$118:$FZ$154,BI$1)","v":16},{"$f":"VLOOKUP(DropDownList!$B$47,CntyQuery!$A$118:$FZ$154,BJ$1)","v":0},{"$f":"VLOOKUP(DropDownList!$B$47,CntyQuery!$A$118:$FZ$154,BK$1)","v":34},{"$f":"VLOOKUP(DropDownList!$B$47,CntyQuery!$A$118:$FZ$154,BL$1)","v":8},{"$f":"VLOOKUP(DropDownList!$B$47,CntyQuery!$A$118:$FZ$154,BM$1)","v":0},{"$f":"VLOOKUP(DropDownList!$B$47,CntyQuery!$A$118:$FZ$154,BN$1)","v":45},{"$f":"VLOOKUP(DropDownList!$B$47,CntyQuery!$A$118:$FZ$154,BO$1)","v":13},{"$f":"VLOOKUP(DropDownList!$B$47,CntyQuery!$A$118:$FZ$154,BP$1)","v":0},{"$f":"VLOOKUP(DropDownList!$B$47,CntyQuery!$A$118:$FZ$154,BQ$1)","v":49},{"$f":"VLOOKUP(DropDownList!$B$47,CntyQuery!$A$118:$FZ$154,BR$1)","v":76},{"$f":"VLOOKUP(DropDownList!$B$47,CntyQuery!$A$118:$FZ$154,BS$1)","v":0},{"$f":"VLOOKUP(DropDownList!$B$47,CntyQuery!$A$118:$FZ$154,BT$1)","v":30},{"$f":"VLOOKUP(DropDownList!$B$47,CntyQuery!$A$118:$FZ$154,BU$1)","v":44},{"$f":"VLOOKUP(DropDownList!$B$47,CntyQuery!$A$118:$FZ$154,BV$1)","v":2},{"$f":"VLOOKUP(DropDownList!$B$47,CntyQuery!$A$118:$FZ$154,BW$1)","v":34},{"$f":"VLOOKUP(DropDownList!$B$47,CntyQuery!$A$118:$FZ$154,BX$1)","v":54},{"$f":"VLOOKUP(DropDownList!$B$47,CntyQuery!$A$118:$FZ$154,BY$1)","v":0},{"$f":"VLOOKUP(DropDownList!$B$47,CntyQuery!$A$118:$FZ$154,BZ$1)","v":11},{"$f":"VLOOKUP(DropDownList!$B$47,CntyQuery!$A$118:$FZ$154,CA$1)","v":14},{"$f":"VLOOKUP(DropDownList!$B$47,CntyQuery!$A$118:$FZ$154,CB$1)","v":0},{"$f":"VLOOKUP(DropDownList!$B$47,CntyQuery!$A$118:$FZ$154,CC$1)","v":16},{"$f":"VLOOKUP(DropDownList!$B$47,CntyQuery!$A$118:$FZ$154,CD$1)","v":8},{"$f":"VLOOKUP(DropDownList!$B$47,CntyQuery!$A$118:$FZ$154,CE$1)","v":0},{"$f":"VLOOKUP(DropDownList!$B$47,CntyQuery!$A$118:$FZ$154,CF$1)","v":4},{"$f":"VLOOKUP(DropDownList!$B$47,CntyQuery!$A$118:$FZ$154,CG$1)","v":2},{"$f":"VLOOKUP(DropDownList!$B$47,CntyQuery!$A$118:$FZ$154,CH$1)","v":0},{"$f":"VLOOKUP(DropDownList!$B$47,CntyQuery!$A$118:$FZ$154,CI$1)","v":10},{"$f":"VLOOKUP(DropDownList!$B$47,CntyQuery!$A$118:$FZ$154,CJ$1)","v":8},{"$f":"VLOOKUP(DropDownList!$B$47,CntyQuery!$A$118:$FZ$154,CK$1)","v":0},{"$f":"VLOOKUP(DropDownList!$B$47,CntyQuery!$A$118:$FZ$154,CL$1)","v":6},{"$f":"VLOOKUP(DropDownList!$B$47,CntyQuery!$A$118:$FZ$154,CM$1)","v":0},{"$f":"VLOOKUP(DropDownList!$B$47,CntyQuery!$A$118:$FZ$154,CN$1)","v":0},{"$f":"VLOOKUP(DropDownList!$B$47,CntyQuery!$A$118:$FZ$154,CO$1)","v":8},{"$f":"VLOOKUP(DropDownList!$B$47,CntyQuery!$A$118:$FZ$154,CP$1)","v":0},{"$f":"VLOOKUP(DropDownList!$B$47,CntyQuery!$A$118:$FZ$154,CQ$1)","v":0},{"$f":"VLOOKUP(DropDownList!$B$47,CntyQuery!$A$118:$FZ$154,CR$1)","v":3},{"$f":"VLOOKUP(DropDownList!$B$47,CntyQuery!$A$118:$FZ$154,CS$1)","v":0},{"$f":"VLOOKUP(DropDownList!$B$47,CntyQuery!$A$118:$FZ$154,CT$1)","v":0},{"$f":"VLOOKUP(DropDownList!$B$47,CntyQuery!$A$118:$FZ$154,CU$1)","v":5},{"$f":"VLOOKUP(DropDownList!$B$47,CntyQuery!$A$118:$FZ$154,CV$1)","v":-2},{"$f":"VLOOKUP(DropDownList!$B$47,CntyQuery!$A$118:$FZ$154,CW$1)","v":0},{"$f":"VLOOKUP(DropDownList!$B$47,CntyQuery!$A$118:$FZ$154,CX$1)","v":5},{"$f":"VLOOKUP(DropDownList!$B$47,CntyQuery!$A$118:$FZ$154,CY$1)","v":0},{"$f":"VLOOKUP(DropDownList!$B$47,CntyQuery!$A$118:$FZ$154,CZ$1)","v":0},{"$f":"VLOOKUP(DropDownList!$B$47,CntyQuery!$A$118:$FZ$154,DA$1)","v":4},{"$f":"VLOOKUP(DropDownList!$B$47,CntyQuery!$A$118:$FZ$154,DB$1)","v":-1},{"$f":"VLOOKUP(DropDownList!$B$47,CntyQuery!$A$118:$FZ$154,DC$1)","v":0},{"$f":"VLOOKUP(DropDownList!$B$47,CntyQuery!$A$118:$FZ$154,DD$1)","v":5},{"$f":"VLOOKUP(DropDownList!$B$47,CntyQuery!$A$118:$FZ$154,DE$1)","v":-1},{"$f":"VLOOKUP(DropDownList!$B$47,CntyQuery!$A$118:$FZ$154,DF$1)","v":0},{"$f":"VLOOKUP(DropDownList!$B$47,CntyQuery!$A$118:$FZ$154,DG$1)","v":8},{"$f":"VLOOKUP(DropDownList!$B$47,CntyQuery!$A$118:$FZ$154,DH$1)","v":0},{"$f":"VLOOKUP(DropDownList!$B$47,CntyQuery!$A$118:$FZ$154,DI$1)","v":0},{"$f":"VLOOKUP(DropDownList!$B$47,CntyQuery!$A$118:$FZ$154,DJ$1)","v":3},{"$f":"VLOOKUP(DropDownList!$B$47,CntyQuery!$A$118:$FZ$154,DK$1)","v":0},{"$f":"VLOOKUP(DropDownList!$B$47,CntyQuery!$A$118:$FZ$154,DL$1)","v":0},{"$f":"VLOOKUP(DropDownList!$B$47,CntyQuery!$A$118:$FZ$154,DM$1)","v":6},{"$f":"VLOOKUP(DropDownList!$B$47,CntyQuery!$A$118:$FZ$154,DN$1)","v":12},{"$f":"VLOOKUP(DropDownList!$B$47,CntyQuery!$A$118:$FZ$154,DO$1)","v":0},{"$f":"VLOOKUP(DropDownList!$B$47,CntyQuery!$A$118:$FZ$154,DP$1)","v":3},{"$f":"VLOOKUP(DropDownList!$B$47,CntyQuery!$A$118:$FZ$154,DQ$1)","v":30},{"$f":"VLOOKUP(DropDownList!$B$47,CntyQuery!$A$118:$FZ$154,DR$1)","v":0},{"$f":"VLOOKUP(DropDownList!$B$47,CntyQuery!$A$118:$FZ$154,DS$1)","v":4},{"$f":"VLOOKUP(DropDownList!$B$47,CntyQuery!$A$118:$FZ$154,DT$1)","v":44},{"$f":"VLOOKUP(DropDownList!$B$47,CntyQuery!$A$118:$FZ$154,DU$1)","v":0},{"$f":"VLOOKUP(DropDownList!$B$47,CntyQuery!$A$118:$FZ$154,DV$1)","v":27},{"$f":"VLOOKUP(DropDownList!$B$47,CntyQuery!$A$118:$FZ$154,DW$1)","v":41},{"$f":"VLOOKUP(DropDownList!$B$47,CntyQuery!$A$118:$FZ$154,DX$1)","v":0},{"$f":"VLOOKUP(DropDownList!$B$47,CntyQuery!$A$118:$FZ$154,DY$1)","v":20},{"$f":"VLOOKUP(DropDownList!$B$47,CntyQuery!$A$118:$FZ$154,DZ$1)","v":0},{"$f":"VLOOKUP(DropDownList!$B$47,CntyQuery!$A$118:$FZ$154,EA$1)","v":0},{"$f":"VLOOKUP(DropDownList!$B$47,CntyQuery!$A$118:$FZ$154,EB$1)","v":""},{"$f":"VLOOKUP(DropDownList!$B$47,CntyQuery!$A$118:$FZ$154,EC$1)","v":8},{"$f":"VLOOKUP(DropDownList!$B$47,CntyQuery!$A$118:$FZ$154,ED$1)","v":0},{"$f":"VLOOKUP(DropDownList!$B$47,CntyQuery!$A$118:$FZ$154,EE$1)","v":0},{"$f":"VLOOKUP(DropDownList!$B$47,CntyQuery!$A$118:$FZ$154,EF$1)","v":0},{"$f":"VLOOKUP(DropDownList!$B$47,CntyQuery!$A$118:$FZ$154,EG$1)","v":0}]
[]
[]
["NH Employment Data","Query Name: DPQryEmploymentByCnty"]
["AreaName","COUNTYCODE","TOTP & G2001","TOT2001","GOODPRO2001","SERVICEPROMAN2001","WAGEP & G2001","WAGETOT2001","WAGEGOODPRO2001","WAGESERVICEPRO2001","TOTP & G2002","TOT2002","GOODPRO2002","SERVICEPROMAN2002","WAGEP & G2002","WAGETOT2002","WAGEGOODPRO2002","WAGESERVICEPRO2002","TOTP & G2003","TOT2003","GOODPRO2003","SERVICEPROMAN2003","WAGEP & G2003","WAGETOT2003","WAGEGOODPRO2003","WAGESERVICEPRO2003","TOTP & G2004","TOT2004","GOODPRO2004","SERVICEPROMAN2004","WAGEP & G2004","WAGETOT2004","WAGEGOODPRO2004","WAGESERVICEPRO2004","TOTP & G2005","TOT2005","GOODPRO2005","SERVICEPROMAN2005","WAGEP & G2005","WAGETOT2005","WAGEGOODPRO2005","WAGESERVICEPRO2005","TOTP & G2006","TOT2006","GOODPRO2006","SERVICEPROMAN2006","WAGEP & G2006","WAGETOT2006","WAGEGOODPRO2006","WAGESERVICEPRO2006","TOTP & G2007","TOT2007","GOODPRO2007","SERVICEPROMAN2007","WAGEP & G2007","WAGETOT2007","WAGEGOODPRO2007","WAGESERVICEPRO2007","TOTP & G2008","TOT2008","GOODPRO2008","SERVICEPROMAN2008","WAGEP & G2008","WAGETOT2008","WAGEGOODPRO2008","WAGESERVICEPRO2008","TOTP & G2009","TOT2009","GOODPRO2009","SERVICEPROMAN2009","WAGEP & G2009","WAGETOT2009","WAGEGOODPRO2009","WAGESERVICEPRO2009","TOTP & G2010","TOT2010","GOODPRO2010","SERVICEPROMAN2010","WAGEP & G2010","WAGETOT2010","WAGEGOODPRO2010","WAGESERVICEPRO2010","TOTP & G2011","TOT2011","GOODPRO2011","SERVICEPROMAN2011","WAGEP & G2011","WAGETOT2011","WAGEGOODPRO2011","WAGESERVICEPRO2011","TOTP & G2012","TOT2012","GOODPRO2012","SERVICEPROMAN2012","WAGEP & G2012","WAGETOT2012","WAGEGOODPRO2012","WAGESERVICEPRO2012","TOTP & G2013","TOT2013","GOODPRO2013","SERVICEPROMAN2013","WAGEP & G2013","WAGETOT2013","WAGEGOODPRO2013","WAGESERVICEPRO2013","TOTP & G2014","TOT2014","GOODPRO2014","SERVICEPROMAN2014","WAGEP & G2014","WAGETOT2014","WAGEGOODPRO2014","WAGESERVICEPRO2014","TOTP & G2015","TOT2015","GOODPRO2015","SERVICEPROMAN2015","WAGEP & G2015","WAGETOT2015","WAGEGOODPRO2015","WAGESERVICEPRO2015","TOTP & G2016","TOT2016","GOODPRO2016","SERVICEPROMAN2016","WAGEP & G2016","WAGETOT2016","WAGEGOODPRO2016","WAGESERVICEPRO2016","TOTP & G2017","TOT2017","GOODPRO2017","SERVICEPROMAN2017","WAGEP & G2017","WAGETOT2017","WAGEGOODPRO2017","WAGESERVICEPRO2017","TOTP & G2018","TOT2018","GOODPRO2018","SERVICEPROMAN2018","WAGEP & G2018","WAGETOT2018","WAGEGOODPRO2018","WAGESERVICEPRO2018","TOTP & G2019","TOT2019","TOTGov2019","GOODPRO2019","SERVICEPROMAN2019","WAGEP & G2019","WAGETOT2019","WAGEGov2019","WAGEGOODPRO2019","WAGESERVICEPRO2019","SummaryLevel"]
[{"$f":"VLOOKUP(DropDownList!$B$47,CntyQuery!$A$170:$FJ$213,A$1)","v":"Atkinson"},{"$f":"VLOOKUP(DropDownList!$B$47,CntyQuery!$A$170:$FJ$213,B$1)","v":8},{"$f":"VLOOKUP(DropDownList!$B$47,CntyQuery!$A$170:$FJ$213,C$1)","v":799},{"$f":"VLOOKUP(DropDownList!$B$47,CntyQuery!$A$170:$FJ$213,D$1)","v":743},{"$f":"VLOOKUP(DropDownList!$B$47,CntyQuery!$A$170:$FJ$213,E$1)","v":261},{"$f":"VLOOKUP(DropDownList!$B$47,CntyQuery!$A$170:$FJ$213,F$1)","v":482},{"$f":"VLOOKUP(DropDownList!$B$47,CntyQuery!$A$170:$FJ$213,G$1)","v":745.92},{"$f":"VLOOKUP(DropDownList!$B$47,CntyQuery!$A$170:$FJ$213,H$1)","v":773.45},{"$f":"VLOOKUP(DropDownList!$B$47,CntyQuery!$A$170:$FJ$213,I$1)","v":806.51},{"$f":"VLOOKUP(DropDownList!$B$47,CntyQuery!$A$170:$FJ$213,J$1)","v":755.52},{"$f":"VLOOKUP(DropDownList!$B$47,CntyQuery!$A$170:$FJ$213,K$1)","v":939},{"$f":"VLOOKUP(DropDownList!$B$47,CntyQuery!$A$170:$FJ$213,L$1)","v":848},{"$f":"VLOOKUP(DropDownList!$B$47,CntyQuery!$A$170:$FJ$213,M$1)","v":250},{"$f":"VLOOKUP(DropDownList!$B$47,CntyQuery!$A$170:$FJ$213,N$1)","v":598},{"$f":"VLOOKUP(DropDownList!$B$47,CntyQuery!$A$170:$FJ$213,O$1)","v":675.63},{"$f":"VLOOKUP(DropDownList!$B$47,CntyQuery!$A$170:$FJ$213,P$1)","v":719.84},{"$f":"VLOOKUP(DropDownList!$B$47,CntyQuery!$A$170:$FJ$213,Q$1)","v":866.61},{"$f":"VLOOKUP(DropDownList!$B$47,CntyQuery!$A$170:$FJ$213,R$1)","v":658.49},{"$f":"VLOOKUP(DropDownList!$B$47,CntyQuery!$A$170:$FJ$213,S$1)","v":996},{"$f":"VLOOKUP(DropDownList!$B$47,CntyQuery!$A$170:$FJ$213,T$1)","v":924},{"$f":"VLOOKUP(DropDownList!$B$47,CntyQuery!$A$170:$FJ$213,U$1)","v":244},{"$f":"VLOOKUP(DropDownList!$B$47,CntyQuery!$A$170:$FJ$213,V$1)","v":680},{"$f":"VLOOKUP(DropDownList!$B$47,CntyQuery!$A$170:$FJ$213,W$1)","v":661.16},{"$f":"VLOOKUP(DropDownList!$B$47,CntyQuery!$A$170:$FJ$213,X$1)","v":685.27},{"$f":"VLOOKUP(DropDownList!$B$47,CntyQuery!$A$170:$FJ$213,Y$1)","v":878.72},{"$f":"VLOOKUP(DropDownList!$B$47,CntyQuery!$A$170:$FJ$213,Z$1)","v":615.87},{"$f":"VLOOKUP(DropDownList!$B$47,CntyQuery!$A$170:$FJ$213,AA$1)","v":952},{"$f":"VLOOKUP(DropDownList!$B$47,CntyQuery!$A$170:$FJ$213,AB$1)","v":891},{"$f":"VLOOKUP(DropDownList!$B$47,CntyQuery!$A$170:$FJ$213,AC$1)","v":239},{"$f":"VLOOKUP(DropDownList!$B$47,CntyQuery!$A$170:$FJ$213,AD$1)","v":652},{"$f":"VLOOKUP(DropDownList!$B$47,CntyQuery!$A$170:$FJ$213,AE$1)","v":697.71},{"$f":"VLOOKUP(DropDownList!$B$47,CntyQuery!$A$170:$FJ$213,AF$1)","v":715.81},{"$f":"VLOOKUP(DropDownList!$B$47,CntyQuery!$A$170:$FJ$213,AG$1)","v":984.22},{"$f":"VLOOKUP(DropDownList!$B$47,CntyQuery!$A$170:$FJ$213,AH$1)","v":617.16999999999996},{"$f":"VLOOKUP(DropDownList!$B$47,CntyQuery!$A$170:$FJ$213,AI$1)","v":971},{"$f":"VLOOKUP(DropDownList!$B$47,CntyQuery!$A$170:$FJ$213,AJ$1)","v":901},{"$f":"VLOOKUP(DropDownList!$B$47,CntyQuery!$A$170:$FJ$213,AK$1)","v":236},{"$f":"VLOOKUP(DropDownList!$B$47,CntyQuery!$A$170:$FJ$213,AL$1)","v":665},{"$f":"VLOOKUP(DropDownList!$B$47,CntyQuery!$A$170:$FJ$213,AM$1)","v":752.67},{"$f":"VLOOKUP(DropDownList!$B$47,CntyQuery!$A$170:$FJ$213,AN$1)","v":779.44},{"$f":"VLOOKUP(DropDownList!$B$47,CntyQuery!$A$170:$FJ$213,AO$1)","v":1064.3399999999999},{"$f":"VLOOKUP(DropDownList!$B$47,CntyQuery!$A$170:$FJ$213,AP$1)","v":678.14},{"$f":"VLOOKUP(DropDownList!$B$47,CntyQuery!$A$170:$FJ$213,AQ$1)","v":1014},{"$f":"VLOOKUP(DropDownList!$B$47,CntyQuery!$A$170:$FJ$213,AR$1)","v":954},{"$f":"VLOOKUP(DropDownList!$B$47,CntyQuery!$A$170:$FJ$213,AS$1)","v":318},{"$f":"VLOOKUP(DropDownList!$B$47,CntyQuery!$A$170:$FJ$213,AT$1)","v":636},{"$f":"VLOOKUP(DropDownList!$B$47,CntyQuery!$A$170:$FJ$213,AU$1)","v":730.61},{"$f":"VLOOKUP(DropDownList!$B$47,CntyQuery!$A$170:$FJ$213,AV$1)","v":745.35},{"$f":"VLOOKUP(DropDownList!$B$47,CntyQuery!$A$170:$FJ$213,AW$1)","v":943.26},{"$f":"VLOOKUP(DropDownList!$B$47,CntyQuery!$A$170:$FJ$213,AX$1)","v":646.19000000000005},{"$f":"VLOOKUP(DropDownList!$B$47,CntyQuery!$A$170:$FJ$213,AY$1)","v":1007},{"$f":"VLOOKUP(DropDownList!$B$47,CntyQuery!$A$170:$FJ$213,AZ$1)","v":939},{"$f":"VLOOKUP(DropDownList!$B$47,CntyQuery!$A$170:$FJ$213,BA$1)","v":309},{"$f":"VLOOKUP(DropDownList!$B$47,CntyQuery!$A$170:$FJ$213,BB$1)","v":630},{"$f":"VLOOKUP(DropDownList!$B$47,CntyQuery!$A$170:$FJ$213,BC$1)","v":849.4},{"$f":"VLOOKUP(DropDownList!$B$47,CntyQuery!$A$170:$FJ$213,BD$1)","v":870.92},{"$f":"VLOOKUP(DropDownList!$B$47,CntyQuery!$A$170:$FJ$213,BE$1)","v":1096.54},{"$f":"VLOOKUP(DropDownList!$B$47,CntyQuery!$A$170:$FJ$213,BF$1)","v":760.51},{"$f":"VLOOKUP(DropDownList!$B$47,CntyQuery!$A$170:$FJ$213,BG$1)","v":1002},{"$f":"VLOOKUP(DropDownList!$B$47,CntyQuery!$A$170:$FJ$213,BH$1)","v":939},{"$f":"VLOOKUP(DropDownList!$B$47,CntyQuery!$A$170:$FJ$213,BI$1)","v":253},{"$f":"VLOOKUP(DropDownList!$B$47,CntyQuery!$A$170:$FJ$213,BJ$1)","v":686},{"$f":"VLOOKUP(DropDownList!$B$47,CntyQuery!$A$170:$FJ$213,BK$1)","v":902.65},{"$f":"VLOOKUP(DropDownList!$B$47,CntyQuery!$A$170:$FJ$213,BL$1)","v":925},{"$f":"VLOOKUP(DropDownList!$B$47,CntyQuery!$A$170:$FJ$213,BM$1)","v":1140.47},{"$f":"VLOOKUP(DropDownList!$B$47,CntyQuery!$A$170:$FJ$213,BN$1)","v":845.58},{"$f":"VLOOKUP(DropDownList!$B$47,CntyQuery!$A$170:$FJ$213,BO$1)","v":922},{"$f":"VLOOKUP(DropDownList!$B$47,CntyQuery!$A$170:$FJ$213,BP$1)","v":856},{"$f":"VLOOKUP(DropDownList!$B$47,CntyQuery!$A$170:$FJ$213,BQ$1)","v":221},{"$f":"VLOOKUP(DropDownList!$B$47,CntyQuery!$A$170:$FJ$213,BR$1)","v":636},{"$f":"VLOOKUP(DropDownList!$B$47,CntyQuery!$A$170:$FJ$213,BS$1)","v":847.83},{"$f":"VLOOKUP(DropDownList!$B$47,CntyQuery!$A$170:$FJ$213,BT$1)","v":870.43},{"$f":"VLOOKUP(DropDownList!$B$47,CntyQuery!$A$170:$FJ$213,BU$1)","v":1100.69},{"$f":"VLOOKUP(DropDownList!$B$47,CntyQuery!$A$170:$FJ$213,BV$1)","v":790.55},{"$f":"VLOOKUP(DropDownList!$B$47,CntyQuery!$A$170:$FJ$213,BW$1)","v":949},{"$f":"VLOOKUP(DropDownList!$B$47,CntyQuery!$A$170:$FJ$213,BX$1)","v":884},{"$f":"VLOOKUP(DropDownList!$B$47,CntyQuery!$A$170:$FJ$213,BY$1)","v":242},{"$f":"VLOOKUP(DropDownList!$B$47,CntyQuery!$A$170:$FJ$213,BZ$1)","v":642},{"$f":"VLOOKUP(DropDownList!$B$47,CntyQuery!$A$170:$FJ$213,CA$1)","v":862.69},{"$f":"VLOOKUP(DropDownList!$B$47,CntyQuery!$A$170:$FJ$213,CB$1)","v":885.51},{"$f":"VLOOKUP(DropDownList!$B$47,CntyQuery!$A$170:$FJ$213,CC$1)","v":1069.5999999999999},{"$f":"VLOOKUP(DropDownList!$B$47,CntyQuery!$A$170:$FJ$213,CD$1)","v":816.24},{"$f":"VLOOKUP(DropDownList!$B$47,CntyQuery!$A$170:$FJ$213,CE$1)","v":958},{"$f":"VLOOKUP(DropDownList!$B$47,CntyQuery!$A$170:$FJ$213,CF$1)","v":893},{"$f":"VLOOKUP(DropDownList!$B$47,CntyQuery!$A$170:$FJ$213,CG$1)","v":286},{"$f":"VLOOKUP(DropDownList!$B$47,CntyQuery!$A$170:$FJ$213,CH$1)","v":608},{"$f":"VLOOKUP(DropDownList!$B$47,CntyQuery!$A$170:$FJ$213,CI$1)","v":882.75},{"$f":"VLOOKUP(DropDownList!$B$47,CntyQuery!$A$170:$FJ$213,CJ$1)","v":906.06},{"$f":"VLOOKUP(DropDownList!$B$47,CntyQuery!$A$170:$FJ$213,CK$1)","v":1089.76},{"$f":"VLOOKUP(DropDownList!$B$47,CntyQuery!$A$170:$FJ$213,CL$1)","v":819.77},{"$f":"VLOOKUP(DropDownList!$B$47,CntyQuery!$A$170:$FJ$213,CM$1)","v":1112},{"$f":"VLOOKUP(DropDownList!$B$47,CntyQuery!$A$170:$FJ$213,CN$1)","v":1046},{"$f":"VLOOKUP(DropDownList!$B$47,CntyQuery!$A$170:$FJ$213,CO$1)","v":404},{"$f":"VLOOKUP(DropDownList!$B$47,CntyQuery!$A$170:$FJ$213,CP$1)","v":641},{"$f":"VLOOKUP(DropDownList!$B$47,CntyQuery!$A$170:$FJ$213,CQ$1)","v":858.1},{"$f":"VLOOKUP(DropDownList!$B$47,CntyQuery!$A$170:$FJ$213,CR$1)","v":874.97},{"$f":"VLOOKUP(DropDownList!$B$47,CntyQuery!$A$170:$FJ$213,CS$1)","v":994.08},{"$f":"VLOOKUP(DropDownList!$B$47,CntyQuery!$A$170:$FJ$213,CT$1)","v":799.93},{"$f":"VLOOKUP(DropDownList!$B$47,CntyQuery!$A$170:$FJ$213,CU$1)","v":1164},{"$f":"VLOOKUP(DropDownList!$B$47,CntyQuery!$A$170:$FJ$213,CV$1)","v":1098},{"$f":"VLOOKUP(DropDownList!$B$47,CntyQuery!$A$170:$FJ$213,CW$1)","v":416},{"$f":"VLOOKUP(DropDownList!$B$47,CntyQuery!$A$170:$FJ$213,CX$1)","v":682},{"$f":"VLOOKUP(DropDownList!$B$47,CntyQuery!$A$170:$FJ$213,CY$1)","v":860.51},{"$f":"VLOOKUP(DropDownList!$B$47,CntyQuery!$A$170:$FJ$213,CZ$1)","v":877.09},{"$f":"VLOOKUP(DropDownList!$B$47,CntyQuery!$A$170:$FJ$213,DA$1)","v":943.5},{"$f":"VLOOKUP(DropDownList!$B$47,CntyQuery!$A$170:$FJ$213,DB$1)","v":836.57},{"$f":"VLOOKUP(DropDownList!$B$47,CntyQuery!$A$170:$FJ$213,DC$1)","v":1197},{"$f":"VLOOKUP(DropDownList!$B$47,CntyQuery!$A$170:$FJ$213,DD$1)","v":1130},{"$f":"VLOOKUP(DropDownList!$B$47,CntyQuery!$A$170:$FJ$213,DE$1)","v":413},{"$f":"VLOOKUP(DropDownList!$B$47,CntyQuery!$A$170:$FJ$213,DF$1)","v":716},{"$f":"VLOOKUP(DropDownList!$B$47,CntyQuery!$A$170:$FJ$213,DG$1)","v":929},{"$f":"VLOOKUP(DropDownList!$B$47,CntyQuery!$A$170:$FJ$213,DH$1)","v":949.67},{"$f":"VLOOKUP(DropDownList!$B$47,CntyQuery!$A$170:$FJ$213,DI$1)","v":1041.71},{"$f":"VLOOKUP(DropDownList!$B$47,CntyQuery!$A$170:$FJ$213,DJ$1)","v":896.53},{"$f":"VLOOKUP(DropDownList!$B$47,CntyQuery!$A$170:$FJ$213,DK$1)","v":1180},{"$f":"VLOOKUP(DropDownList!$B$47,CntyQuery!$A$170:$FJ$213,DL$1)","v":1114},{"$f":"VLOOKUP(DropDownList!$B$47,CntyQuery!$A$170:$FJ$213,DM$1)","v":381},{"$f":"VLOOKUP(DropDownList!$B$47,CntyQuery!$A$170:$FJ$213,DN$1)","v":733},{"$f":"VLOOKUP(DropDownList!$B$47,CntyQuery!$A$170:$FJ$213,DO$1)","v":962.04},{"$f":"VLOOKUP(DropDownList!$B$47,CntyQuery!$A$170:$FJ$213,DP$1)","v":980.76},{"$f":"VLOOKUP(DropDownList!$B$47,CntyQuery!$A$170:$FJ$213,DQ$1)","v":1074.8599999999999},{"$f":"VLOOKUP(DropDownList!$B$47,CntyQuery!$A$170:$FJ$213,DR$1)","v":931.82},{"$f":"VLOOKUP(DropDownList!$B$47,CntyQuery!$A$170:$FJ$213,DS$1)","v":1194},{"$f":"VLOOKUP(DropDownList!$B$47,CntyQuery!$A$170:$FJ$213,DT$1)","v":1128},{"$f":"VLOOKUP(DropDownList!$B$47,CntyQuery!$A$170:$FJ$213,DU$1)","v":386},{"$f":"VLOOKUP(DropDownList!$B$47,CntyQuery!$A$170:$FJ$213,DV$1)","v":742},{"$f":"VLOOKUP(DropDownList!$B$47,CntyQuery!$A$170:$FJ$213,DW$1)","v":975.77},{"$f":"VLOOKUP(DropDownList!$B$47,CntyQuery!$A$170:$FJ$213,DX$1)","v":993.46},{"$f":"VLOOKUP(DropDownList!$B$47,CntyQuery!$A$170:$FJ$213,DY$1)","v":1193.6500000000001},{"$f":"VLOOKUP(DropDownList!$B$47,CntyQuery!$A$170:$FJ$213,DZ$1)","v":889.25},{"$f":"VLOOKUP(DropDownList!$B$47,CntyQuery!$A$170:$FJ$213,EA$1)","v":1296},{"$f":"VLOOKUP(DropDownList!$B$47,CntyQuery!$A$170:$FJ$213,EB$1)","v":1226},{"$f":"VLOOKUP(DropDownList!$B$47,CntyQuery!$A$170:$FJ$213,EC$1)","v":407},{"$f":"VLOOKUP(DropDownList!$B$47,CntyQuery!$A$170:$FJ$213,ED$1)","v":818},{"$f":"VLOOKUP(DropDownList!$B$47,CntyQuery!$A$170:$FJ$213,EE$1)","v":970.74},{"$f":"VLOOKUP(DropDownList!$B$47,CntyQuery!$A$170:$FJ$213,EF$1)","v":988.17},{"$f":"VLOOKUP(DropDownList!$B$47,CntyQuery!$A$170:$FJ$213,EG$1)","v":1242.45},{"$f":"VLOOKUP(DropDownList!$B$47,CntyQuery!$A$170:$FJ$213,EH$1)","v":861.61},{"$f":"VLOOKUP(DropDownList!$B$47,CntyQuery!$A$170:$FJ$213,EI$1)","v":1237},{"$f":"VLOOKUP(DropDownList!$B$47,CntyQuery!$A$170:$FJ$213,EJ$1)","v":1169},{"$f":"VLOOKUP(DropDownList!$B$47,CntyQuery!$A$170:$FJ$213,EK$1)","v":386},{"$f":"VLOOKUP(DropDownList!$B$47,CntyQuery!$A$170:$FJ$213,EL$1)","v":783},{"$f":"VLOOKUP(DropDownList!$B$47,CntyQuery!$A$170:$FJ$213,EM$1)","v":993.9},{"$f":"VLOOKUP(DropDownList!$B$47,CntyQuery!$A$170:$FJ$213,EN$1)","v":1009.02},{"$f":"VLOOKUP(DropDownList!$B$47,CntyQuery!$A$170:$FJ$213,EO$1)","v":1256.43},{"$f":"VLOOKUP(DropDownList!$B$47,CntyQuery!$A$170:$FJ$213,EP$1)","v":887.13},{"$f":"VLOOKUP(DropDownList!$B$47,CntyQuery!$A$170:$FJ$213,EQ$1)","v":1265},{"$f":"VLOOKUP(DropDownList!$B$47,CntyQuery!$A$170:$FJ$213,ER$1)","v":1197},{"$f":"VLOOKUP(DropDownList!$B$47,CntyQuery!$A$170:$FJ$213,ES$1)","v":68},{"$f":"VLOOKUP(DropDownList!$B$47,CntyQuery!$A$170:$FJ$213,ET$1)","v":374},{"$f":"VLOOKUP(DropDownList!$B$47,CntyQuery!$A$170:$FJ$213,EU$1)","v":823},{"$f":"VLOOKUP(DropDownList!$B$47,CntyQuery!$A$170:$FJ$213,EV$1)","v":992.48},{"$f":"VLOOKUP(DropDownList!$B$47,CntyQuery!$A$170:$FJ$213,EW$1)","v":1004.54},{"$f":"VLOOKUP(DropDownList!$B$47,CntyQuery!$A$170:$FJ$213,EX$1)","v":779.19},{"$f":"VLOOKUP(DropDownList!$B$47,CntyQuery!$A$170:$FJ$213,EY$1)","v":1212.76},{"$f":"VLOOKUP(DropDownList!$B$47,CntyQuery!$A$170:$FJ$213,EZ$1)","v":909.88},{"$f":"VLOOKUP(DropDownList!$B$47,CntyQuery!$A$170:$FJ$213,FA$1)","v":60}]
[]
[]
["Labor Force and Unemployment Rate","Query Name: DPQryUnempByCnty"]
["PlaceName","LaborForce1990","LaborForce1991","LaborForce1992","LaborForce1993","LaborForce1994","LaborForce1995","LaborForce1996","LaborForce1997","LaborForce1998","LaborForce1999","LaborForce2000","LaborForce2001","LaborForce2002","LaborForce2003","NumbEmployed1990","NumbEmployed1991","NumbEmployed1992","NumbEmployed1993","NumbEmployed1994","NumbEmployed1995","NumbEmployed1996","NumbEmployed1997","NumbEmployed1998","NumbEmployed1999","NumbEmployed2000","NumbEmployed2001","NumbEmployed2002","NumbEmployed2003","UnempRate1990","UnempRate1991","UnempRate1992","UnempRate1993","UnempRate1994","UnempRate1995","UnempRate1996","UnempRate1997","UnempRate1998","UnempRate1999","UnempRate2000","UnempRate2001","UnempRate2002","UnempRate2003","NumbUnEmp1990","NumbUnEmp1991","NumbUnEmp1992","NumbUnEmp1993","NumbUnEmp1994","NumbUnEmp1995","NumbUnEmp1996","NumbUnEmp1997","NumbUnEmp1998","NumbUnEmp1999","NumbUnEmp2000","NumbUnEmp2001","NumbUnEmp2002","NumbUnEmp2003","LaborForce2004","NumbEmployed2004","UnempRate2004","NumbUnEmp2004","LaborForce2005","NumbEmployed2005","NumbUnEmp2005","UnempRate2005","LaborForce2006","NumbEmployed2006","NumbUnEmp2006","UnempRate2006","LaborForce2007","NumbEmployed2007","NumbUnEmp2007","UnempRate2007","LaborForce2008","NumbEmployed2008","NumbUnEmp2008","UnempRate2008","LaborForce2009","NumbEmployed2009","NumbUnEmp2009","UnempRate2009","LaborForce2010","NumbEmployed2010","NumbUnEmp2010","UnempRate2010","LaborForce2011","NumbEmployed2011","NumbUnEmp2011","UnempRate2011","LaborForce2012","NumbEmployed2012","NumbUnEmp2012","UnempRate2012","LaborForce2013","NumbEmployed2013","NumbUnEmp2013","UnempRate2013","LaborForce2014","NumbEmployed2014","NumbUnEmp2014","UnempRate2014","LaborForce2015","NumbEmployed2015","NumbUnEmp2015","UnempRate2015","LaborForce2016","NumbEmployed2016","NumbUnEmp2016","UnempRate2016","LaborForce2017","NumbEmployed2017","NumbUnEmp2017","UnempRate2017","LaborForce2018","NumbEmployed2018","NumbUnEmp2018","UnempRate2018","LaborForce2019","NumbEmployed2019","NumbUnEmp2019","UnempRate2019","Place-TownIDNumber"]
[{"$f":"VLOOKUP(DropDownList!$B$47,CntyQuery!$A$170:$FJ$213,A$1)","v":"Atkinson"},{"$f":"VLOOKUP(DropDownList!$B$47,CntyQuery!$A$220:$EF$229,B$1)","v":{"$error":"#N/A"}},{"$f":"VLOOKUP(DropDownList!$B$47,CntyQuery!$A$220:$EF$229,C$1)","v":{"$error":"#N/A"}},{"$f":"VLOOKUP(DropDownList!$B$47,CntyQuery!$A$220:$EF$229,D$1)","v":{"$error":"#N/A"}},{"$f":"VLOOKUP(DropDownList!$B$47,CntyQuery!$A$220:$EF$229,E$1)","v":{"$error":"#N/A"}},{"$f":"VLOOKUP(DropDownList!$B$47,CntyQuery!$A$220:$EF$229,F$1)","v":{"$error":"#N/A"}},{"$f":"VLOOKUP(DropDownList!$B$47,CntyQuery!$A$220:$EF$229,G$1)","v":{"$error":"#N/A"}},{"$f":"VLOOKUP(DropDownList!$B$47,CntyQuery!$A$220:$EF$229,H$1)","v":{"$error":"#N/A"}},{"$f":"VLOOKUP(DropDownList!$B$47,CntyQuery!$A$220:$EF$229,I$1)","v":{"$error":"#N/A"}},{"$f":"VLOOKUP(DropDownList!$B$47,CntyQuery!$A$220:$EF$229,J$1)","v":{"$error":"#N/A"}},{"$f":"VLOOKUP(DropDownList!$B$47,CntyQuery!$A$220:$EF$229,K$1)","v":{"$error":"#N/A"}},{"$f":"VLOOKUP(DropDownList!$B$47,CntyQuery!$A$220:$EF$229,L$1)","v":{"$error":"#N/A"}},{"$f":"VLOOKUP(DropDownList!$B$47,CntyQuery!$A$220:$EF$229,M$1)","v":{"$error":"#N/A"}},{"$f":"VLOOKUP(DropDownList!$B$47,CntyQuery!$A$220:$EF$229,N$1)","v":{"$error":"#N/A"}},{"$f":"VLOOKUP(DropDownList!$B$47,CntyQuery!$A$220:$EF$229,O$1)","v":{"$error":"#N/A"}},{"$f":"VLOOKUP(DropDownList!$B$47,CntyQuery!$A$220:$EF$229,P$1)","v":{"$error":"#N/A"}},{"$f":"VLOOKUP(DropDownList!$B$47,CntyQuery!$A$220:$EF$229,Q$1)","v":{"$error":"#N/A"}},{"$f":"VLOOKUP(DropDownList!$B$47,CntyQuery!$A$220:$EF$229,R$1)","v":{"$error":"#N/A"}},{"$f":"VLOOKUP(DropDownList!$B$47,CntyQuery!$A$220:$EF$229,S$1)","v":{"$error":"#N/A"}},{"$f":"VLOOKUP(DropDownList!$B$47,CntyQuery!$A$220:$EF$229,T$1)","v":{"$error":"#N/A"}},{"$f":"VLOOKUP(DropDownList!$B$47,CntyQuery!$A$220:$EF$229,U$1)","v":{"$error":"#N/A"}},{"$f":"VLOOKUP(DropDownList!$B$47,CntyQuery!$A$220:$EF$229,V$1)","v":{"$error":"#N/A"}},{"$f":"VLOOKUP(DropDownList!$B$47,CntyQuery!$A$220:$EF$229,W$1)","v":{"$error":"#N/A"}},{"$f":"VLOOKUP(DropDownList!$B$47,CntyQuery!$A$220:$EF$229,X$1)","v":{"$error":"#N/A"}},{"$f":"VLOOKUP(DropDownList!$B$47,CntyQuery!$A$220:$EF$229,Y$1)","v":{"$error":"#N/A"}},{"$f":"VLOOKUP(DropDownList!$B$47,CntyQuery!$A$220:$EF$229,Z$1)","v":{"$error":"#N/A"}},{"$f":"VLOOKUP(DropDownList!$B$47,CntyQuery!$A$220:$EF$229,AA$1)","v":{"$error":"#N/A"}},{"$f":"VLOOKUP(DropDownList!$B$47,CntyQuery!$A$220:$EF$229,AB$1)","v":{"$error":"#N/A"}},{"$f":"VLOOKUP(DropDownList!$B$47,CntyQuery!$A$220:$EF$229,AC$1)","v":{"$error":"#N/A"}},{"$f":"VLOOKUP(DropDownList!$B$47,CntyQuery!$A$220:$EF$229,AD$1)","v":{"$error":"#N/A"}},{"$f":"VLOOKUP(DropDownList!$B$47,CntyQuery!$A$220:$EF$229,AE$1)","v":{"$error":"#N/A"}},{"$f":"VLOOKUP(DropDownList!$B$47,CntyQuery!$A$220:$EF$229,AF$1)","v":{"$error":"#N/A"}},{"$f":"VLOOKUP(DropDownList!$B$47,CntyQuery!$A$220:$EF$229,AG$1)","v":{"$error":"#N/A"}},{"$f":"VLOOKUP(DropDownList!$B$47,CntyQuery!$A$220:$EF$229,AH$1)","v":{"$error":"#N/A"}},{"$f":"VLOOKUP(DropDownList!$B$47,CntyQuery!$A$220:$EF$229,AI$1)","v":{"$error":"#N/A"}},{"$f":"VLOOKUP(DropDownList!$B$47,CntyQuery!$A$220:$EF$229,AJ$1)","v":{"$error":"#N/A"}},{"$f":"VLOOKUP(DropDownList!$B$47,CntyQuery!$A$220:$EF$229,AK$1)","v":{"$error":"#N/A"}},{"$f":"VLOOKUP(DropDownList!$B$47,CntyQuery!$A$220:$EF$229,AL$1)","v":{"$error":"#N/A"}},{"$f":"VLOOKUP(DropDownList!$B$47,CntyQuery!$A$220:$EF$229,AM$1)","v":{"$error":"#N/A"}},{"$f":"VLOOKUP(DropDownList!$B$47,CntyQuery!$A$220:$EF$229,AN$1)","v":{"$error":"#N/A"}},{"$f":"VLOOKUP(DropDownList!$B$47,CntyQuery!$A$220:$EF$229,AO$1)","v":{"$error":"#N/A"}},{"$f":"VLOOKUP(DropDownList!$B$47,CntyQuery!$A$220:$EF$229,AP$1)","v":{"$error":"#N/A"}},{"$f":"VLOOKUP(DropDownList!$B$47,CntyQuery!$A$220:$EF$229,AQ$1)","v":{"$error":"#N/A"}},{"$f":"VLOOKUP(DropDownList!$B$47,CntyQuery!$A$220:$EF$229,AR$1)","v":{"$error":"#N/A"}},{"$f":"VLOOKUP(DropDownList!$B$47,CntyQuery!$A$220:$EF$229,AS$1)","v":{"$error":"#N/A"}},{"$f":"VLOOKUP(DropDownList!$B$47,CntyQuery!$A$220:$EF$229,AT$1)","v":{"$error":"#N/A"}},{"$f":"VLOOKUP(DropDownList!$B$47,CntyQuery!$A$220:$EF$229,AU$1)","v":{"$error":"#N/A"}},{"$f":"VLOOKUP(DropDownList!$B$47,CntyQuery!$A$220:$EF$229,AV$1)","v":{"$error":"#N/A"}},{"$f":"VLOOKUP(DropDownList!$B$47,CntyQuery!$A$220:$EF$229,AW$1)","v":{"$error":"#N/A"}},{"$f":"VLOOKUP(DropDownList!$B$47,CntyQuery!$A$220:$EF$229,AX$1)","v":{"$error":"#N/A"}},{"$f":"VLOOKUP(DropDownList!$B$47,CntyQuery!$A$220:$EF$229,AY$1)","v":{"$error":"#N/A"}},{"$f":"VLOOKUP(DropDownList!$B$47,CntyQuery!$A$220:$EF$229,AZ$1)","v":{"$error":"#N/A"}},{"$f":"VLOOKUP(DropDownList!$B$47,CntyQuery!$A$220:$EF$229,BA$1)","v":{"$error":"#N/A"}},{"$f":"VLOOKUP(DropDownList!$B$47,CntyQuery!$A$220:$EF$229,BB$1)","v":{"$error":"#N/A"}},{"$f":"VLOOKUP(DropDownList!$B$47,CntyQuery!$A$220:$EF$229,BC$1)","v":{"$error":"#N/A"}},{"$f":"VLOOKUP(DropDownList!$B$47,CntyQuery!$A$220:$EF$229,BD$1)","v":{"$error":"#N/A"}},{"$f":"VLOOKUP(DropDownList!$B$47,CntyQuery!$A$220:$EF$229,BE$1)","v":{"$error":"#N/A"}},{"$f":"VLOOKUP(DropDownList!$B$47,CntyQuery!$A$220:$EF$229,BF$1)","v":{"$error":"#N/A"}},{"$f":"VLOOKUP(DropDownList!$B$47,CntyQuery!$A$220:$EF$229,BG$1)","v":{"$error":"#N/A"}},{"$f":"VLOOKUP(DropDownList!$B$47,CntyQuery!$A$220:$EF$229,BH$1)","v":{"$error":"#N/A"}},{"$f":"VLOOKUP(DropDownList!$B$47,CntyQuery!$A$220:$EF$229,BI$1)","v":{"$error":"#N/A"}},{"$f":"VLOOKUP(DropDownList!$B$47,CntyQuery!$A$220:$EF$229,BJ$1)","v":{"$error":"#N/A"}},{"$f":"VLOOKUP(DropDownList!$B$47,CntyQuery!$A$220:$EF$229,BK$1)","v":{"$error":"#N/A"}},{"$f":"VLOOKUP(DropDownList!$B$47,CntyQuery!$A$220:$EF$229,BL$1)","v":{"$error":"#N/A"}},{"$f":"VLOOKUP(DropDownList!$B$47,CntyQuery!$A$220:$EF$229,BM$1)","v":{"$error":"#N/A"}},{"$f":"VLOOKUP(DropDownList!$B$47,CntyQuery!$A$220:$EF$229,BN$1)","v":{"$error":"#N/A"}},{"$f":"VLOOKUP(DropDownList!$B$47,CntyQuery!$A$220:$EF$229,BO$1)","v":{"$error":"#N/A"}},{"$f":"VLOOKUP(DropDownList!$B$47,CntyQuery!$A$220:$EF$229,BP$1)","v":{"$error":"#N/A"}},{"$f":"VLOOKUP(DropDownList!$B$47,CntyQuery!$A$220:$EF$229,BQ$1)","v":{"$error":"#N/A"}},{"$f":"VLOOKUP(DropDownList!$B$47,CntyQuery!$A$220:$EF$229,BR$1)","v":{"$error":"#N/A"}},{"$f":"VLOOKUP(DropDownList!$B$47,CntyQuery!$A$220:$EF$229,BS$1)","v":{"$error":"#N/A"}},{"$f":"VLOOKUP(DropDownList!$B$47,CntyQuery!$A$220:$EF$229,BT$1)","v":{"$error":"#N/A"}},{"$f":"VLOOKUP(DropDownList!$B$47,CntyQuery!$A$220:$EF$229,BU$1)","v":{"$error":"#N/A"}},{"$f":"VLOOKUP(DropDownList!$B$47,CntyQuery!$A$220:$EF$229,BV$1)","v":{"$error":"#N/A"}},{"$f":"VLOOKUP(DropDownList!$B$47,CntyQuery!$A$220:$EF$229,BW$1)","v":{"$error":"#N/A"}},{"$f":"VLOOKUP(DropDownList!$B$47,CntyQuery!$A$220:$EF$229,BX$1)","v":{"$error":"#N/A"}},{"$f":"VLOOKUP(DropDownList!$B$47,CntyQuery!$A$220:$EF$229,BY$1)","v":{"$error":"#N/A"}},{"$f":"VLOOKUP(DropDownList!$B$47,CntyQuery!$A$220:$EF$229,BZ$1)","v":{"$error":"#N/A"}},{"$f":"VLOOKUP(DropDownList!$B$47,CntyQuery!$A$220:$EF$229,CA$1)","v":{"$error":"#N/A"}},{"$f":"VLOOKUP(DropDownList!$B$47,CntyQuery!$A$220:$EF$229,CB$1)","v":{"$error":"#N/A"}},{"$f":"VLOOKUP(DropDownList!$B$47,CntyQuery!$A$220:$EF$229,CC$1)","v":{"$error":"#N/A"}},{"$f":"VLOOKUP(DropDownList!$B$47,CntyQuery!$A$220:$EF$229,CD$1)","v":{"$error":"#N/A"}},{"$f":"VLOOKUP(DropDownList!$B$47,CntyQuery!$A$220:$EF$229,CE$1)","v":{"$error":"#N/A"}},{"$f":"VLOOKUP(DropDownList!$B$47,CntyQuery!$A$220:$EF$229,CF$1)","v":{"$error":"#N/A"}},{"$f":"VLOOKUP(DropDownList!$B$47,CntyQuery!$A$220:$EF$229,CG$1)","v":{"$error":"#N/A"}},{"$f":"VLOOKUP(DropDownList!$B$47,CntyQuery!$A$220:$EF$229,CH$1)","v":{"$error":"#N/A"}},{"$f":"VLOOKUP(DropDownList!$B$47,CntyQuery!$A$220:$EF$229,CI$1)","v":{"$error":"#N/A"}},{"$f":"VLOOKUP(DropDownList!$B$47,CntyQuery!$A$220:$EF$229,CJ$1)","v":{"$error":"#N/A"}},{"$f":"VLOOKUP(DropDownList!$B$47,CntyQuery!$A$220:$EF$229,CK$1)","v":{"$error":"#N/A"}},{"$f":"VLOOKUP(DropDownList!$B$47,CntyQuery!$A$220:$EF$229,CL$1)","v":{"$error":"#N/A"}},{"$f":"VLOOKUP(DropDownList!$B$47,CntyQuery!$A$220:$EF$229,CM$1)","v":{"$error":"#N/A"}},{"$f":"VLOOKUP(DropDownList!$B$47,CntyQuery!$A$220:$EF$229,CN$1)","v":{"$error":"#N/A"}},{"$f":"VLOOKUP(DropDownList!$B$47,CntyQuery!$A$220:$EF$229,CO$1)","v":{"$error":"#N/A"}},{"$f":"VLOOKUP(DropDownList!$B$47,CntyQuery!$A$220:$EF$229,CP$1)","v":{"$error":"#N/A"}},{"$f":"VLOOKUP(DropDownList!$B$47,CntyQuery!$A$220:$EF$229,CQ$1)","v":{"$error":"#N/A"}},{"$f":"VLOOKUP(DropDownList!$B$47,CntyQuery!$A$220:$EF$229,CR$1)","v":{"$error":"#N/A"}},{"$f":"VLOOKUP(DropDownList!$B$47,CntyQuery!$A$220:$EF$229,CS$1)","v":{"$error":"#N/A"}},{"$f":"VLOOKUP(DropDownList!$B$47,CntyQuery!$A$220:$EF$229,CT$1)","v":{"$error":"#N/A"}},{"$f":"VLOOKUP(DropDownList!$B$47,CntyQuery!$A$220:$EF$229,CU$1)","v":{"$error":"#N/A"}},{"$f":"VLOOKUP(DropDownList!$B$47,CntyQuery!$A$220:$EF$229,CV$1)","v":{"$error":"#N/A"}},{"$f":"VLOOKUP(DropDownList!$B$47,CntyQuery!$A$220:$EF$229,CW$1)","v":{"$error":"#N/A"}},{"$f":"VLOOKUP(DropDownList!$B$47,CntyQuery!$A$220:$EF$229,CX$1)","v":{"$error":"#N/A"}},{"$f":"VLOOKUP(DropDownList!$B$47,CntyQuery!$A$220:$EF$229,CY$1)","v":{"$error":"#N/A"}},{"$f":"VLOOKUP(DropDownList!$B$47,CntyQuery!$A$220:$EF$229,CZ$1)","v":{"$error":"#N/A"}},{"$f":"VLOOKUP(DropDownList!$B$47,CntyQuery!$A$220:$EF$229,DA$1)","v":{"$error":"#N/A"}},{"$f":"VLOOKUP(DropDownList!$B$47,CntyQuery!$A$220:$EF$229,DB$1)","v":{"$error":"#N/A"}},{"$f":"VLOOKUP(DropDownList!$B$47,CntyQuery!$A$220:$EF$229,DC$1)","v":{"$error":"#N/A"}},{"$f":"VLOOKUP(DropDownList!$B$47,CntyQuery!$A$220:$EF$229,DD$1)","v":{"$error":"#N/A"}},{"$f":"VLOOKUP(DropDownList!$B$47,CntyQuery!$A$220:$EF$229,DE$1)","v":{"$error":"#N/A"}},{"$f":"VLOOKUP(DropDownList!$B$47,CntyQuery!$A$220:$EF$229,DF$1)","v":{"$error":"#N/A"}},{"$f":"VLOOKUP(DropDownList!$B$47,CntyQuery!$A$220:$EF$229,DG$1)","v":{"$error":"#N/A"}},{"$f":"VLOOKUP(DropDownList!$B$47,CntyQuery!$A$220:$EF$229,DH$1)","v":{"$error":"#N/A"}},{"$f":"VLOOKUP(DropDownList!$B$47,CntyQuery!$A$220:$EF$229,DI$1)","v":{"$error":"#N/A"}},{"$f":"VLOOKUP(DropDownList!$B$47,CntyQuery!$A$220:$EF$229,DJ$1)","v":{"$error":"#N/A"}},{"$f":"VLOOKUP(DropDownList!$B$47,CntyQuery!$A$220:$EF$229,DK$1)","v":{"$error":"#N/A"}},{"$f":"VLOOKUP(DropDownList!$B$47,CntyQuery!$A$220:$EF$229,DL$1)","v":{"$error":"#N/A"}},{"$f":"VLOOKUP(DropDownList!$B$47,CntyQuery!$A$220:$EF$229,DM$1)","v":{"$error":"#N/A"}},{"$f":"VLOOKUP(DropDownList!$B$47,CntyQuery!$A$220:$EF$229,DN$1)","v":{"$error":"#N/A"}},{"$f":"VLOOKUP(DropDownList!$B$47,CntyQuery!$A$220:$EF$229,DO$1)","v":{"$error":"#N/A"}},{"$f":"VLOOKUP(DropDownList!$B$47,CntyQuery!$A$220:$EF$229,DP$1)","v":{"$error":"#N/A"}},{"$f":"VLOOKUP(DropDownList!$B$47,CntyQuery!$A$220:$EF$229,DQ$1)","v":{"$error":"#N/A"}},{"$f":"VLOOKUP(DropDownList!$B$47,CntyQuery!$A$220:$EF$229,DR$1)","v":{"$error":"#N/A"}}]
[]
[null,null,null,null,null,null,null,null,null,null,null,null,{"$f":"IF((CntyDataLink!$BL$25)=\"n\",NA(),IF(VALUE(CntyDataLink!$BL$25)=\"\",NA(),VALUE(CntyDataLink!$BL$25)))","v":925}]
["Census 2000   -           Query Name:  TownAllQuery3",2,{"$f":"B33+1","v":3},{"$f":"C33+1","v":4},5,6,7,8,9,10,11,12,13,14,15,16,17,18,19,20,21,22,23,24,25,26,27,28,29,30,31,32,33,34,35,36,37,38,39,40,41,42,43,44,45,46,47,48,49,50,51,52,53,54,55,56,57,58,59,60,61,62,63,64,65,66,67,{"$f":"BO33+1","v":68},69,70,71,72,73,74,75,76,77,78,79,80,81,82,83,84,85,86,87,88,89,90,91,92,93,94,95,96,97,98,99,100,101,102]
["NAME","COUNTY","LOGRECNO","COUSUB","TRACT","AREALAND","AREAWATR","POP100","HU100","2000Population","PopOfOneRace","PopWhite","PopBlack","PopAmIndian","PopAsian","PopHawaiian","PopOtherRace","Pop2orMoreRaces","PopHispanicLatino","PopNotHispanicLatino","PopMale","PopMale<15","PopMale15to24","PopMale25to34","PopMale35to44","PopMale45to54","PopMale55to64","PopMale65to74","PopMale75to84","PopMale85andOver","PopFemale","PopFemale<15","PopFemale15to24","PopFemale25to34","PopFemale35t44","PopFemale45to54","PopFemale55to64","PopFemale65to74","PopFemale75to84","PopFemale85andOver","Households2000","PopInHH","AvgHHSize","HHs1Person","HHs2orMorePerson","HHsFamily","HHMarriedCoupleFam","HHSingleParentFam","HHsNonFamily","Families","PopInFam","AvgFamSize","TotHsUnits","OccHsUnits","OwnerOccHU","RenterOccHU","VctHsUnits","VctHUForRent","VctHUForSale","VctHUSeasonal","PopInOccHU","PopInOwnOccHU","PopInRntOccHU","AvgHHSize2","AvgHHSizOwnOcc","AvgHHSizRntOcc","OwnOccWhtHsHldr","OwnOccBlkHsHldr","OwnOccAmIHsHldr","OwnOccAsnHsHldr","OwnOccPIsHsHldr","OwnOccORHsHldr","OwnOcc2RcHsHldr","RntOccWhtHsHldr","RntOccBlkHsHldr","RntOccAmIHsHldr","RntOccAsnHsHldr","RntOccPIsHsHldr","RntOccORHsHldr","RntOcc2RcHsHldr","OwnOccHH15to24","OwnOccHH25to34","OwnOccHH35to44","OwnOccHH45to54","OwnOccHH55to64","OwnOccHH65to74","OwnOccHH75to84","OwnOccHH85Over","RntOccHH15to24","RntOccHH25to34","RntOccHH35to44","RntOccHH45to54","RntOccHH55to64","RntOccHH65to74","RntOccHH75to84","RntOccHH85Over","P27TotalPop","P27PopInHseHlds","P27PopInGrpQtrs","Median Age Total","Median Age (Male)","Median Age (Female)"]
[{"$f":"VLOOKUP(DropDownList!$B$47,CntyQryCensus!$A$4:$CW$46,A$1)","v":"Atkinson"},{"$f":"VLOOKUP(DropDownList!$B$47,CntyQryCensus!$A$4:$CW$46,B$1)","v":"015"},{"$f":"VLOOKUP(DropDownList!$B$47,CntyQryCensus!$A$4:$CW$46,C$1)","v":"0026822"},{"$f":"VLOOKUP(DropDownList!$B$47,CntyQryCensus!$A$4:$CW$46,D$1)","v":"02340"},{"$f":"VLOOKUP(DropDownList!$B$47,CntyQryCensus!$A$4:$CW$46,E$1)","v":""},{"$f":"VLOOKUP(DropDownList!$B$47,CntyQryCensus!$A$4:$CW$46,F$1)","v":"      28822322"},{"$f":"VLOOKUP(DropDownList!$B$47,CntyQryCensus!$A$4:$CW$46,G$1)","v":"        418679"},{"$f":"VLOOKUP(DropDownList!$B$47,CntyQryCensus!$A$4:$CW$46,H$1)","v":6178},{"$f":"VLOOKUP(DropDownList!$B$47,CntyQryCensus!$A$4:$CW$46,I$1)","v":2431},{"$f":"VLOOKUP(DropDownList!$B$47,CntyQryCensus!$A$4:$CW$46,J$1)","v":6178},{"$f":"VLOOKUP(DropDownList!$B$47,CntyQryCensus!$A$4:$CW$46,K$1)","v":6137},{"$f":"VLOOKUP(DropDownList!$B$47,CntyQryCensus!$A$4:$CW$46,L$1)","v":6031},{"$f":"VLOOKUP(DropDownList!$B$47,CntyQryCensus!$A$4:$CW$46,M$1)","v":16},{"$f":"VLOOKUP(DropDownList!$B$47,CntyQryCensus!$A$4:$CW$46,N$1)","v":4},{"$f":"VLOOKUP(DropDownList!$B$47,CntyQryCensus!$A$4:$CW$46,O$1)","v":73},{"$f":"VLOOKUP(DropDownList!$B$47,CntyQryCensus!$A$4:$CW$46,P$1)","v":0},{"$f":"VLOOKUP(DropDownList!$B$47,CntyQryCensus!$A$4:$CW$46,Q$1)","v":13},{"$f":"VLOOKUP(DropDownList!$B$47,CntyQryCensus!$A$4:$CW$46,R$1)","v":41},{"$f":"VLOOKUP(DropDownList!$B$47,CntyQryCensus!$A$4:$CW$46,S$1)","v":43},{"$f":"VLOOKUP(DropDownList!$B$47,CntyQryCensus!$A$4:$CW$46,T$1)","v":6135},{"$f":"VLOOKUP(DropDownList!$B$47,CntyQryCensus!$A$4:$CW$46,U$1)","v":3008},{"$f":"VLOOKUP(DropDownList!$B$47,CntyQryCensus!$A$4:$CW$46,V$1)","v":609},{"$f":"VLOOKUP(DropDownList!$B$47,CntyQryCensus!$A$4:$CW$46,W$1)","v":280},{"$f":"VLOOKUP(DropDownList!$B$47,CntyQryCensus!$A$4:$CW$46,X$1)","v":299},{"$f":"VLOOKUP(DropDownList!$B$47,CntyQryCensus!$A$4:$CW$46,Y$1)","v":569},{"$f":"VLOOKUP(DropDownList!$B$47,CntyQryCensus!$A$4:$CW$46,Z$1)","v":536},{"$f":"VLOOKUP(DropDownList!$B$47,CntyQryCensus!$A$4:$CW$46,AA$1)","v":378},{"$f":"VLOOKUP(DropDownList!$B$47,CntyQryCensus!$A$4:$CW$46,AB$1)","v":225},{"$f":"VLOOKUP(DropDownList!$B$47,CntyQryCensus!$A$4:$CW$46,AC$1)","v":86},{"$f":"VLOOKUP(DropDownList!$B$47,CntyQryCensus!$A$4:$CW$46,AD$1)","v":26},{"$f":"VLOOKUP(DropDownList!$B$47,CntyQryCensus!$A$4:$CW$46,AE$1)","v":3170},{"$f":"VLOOKUP(DropDownList!$B$47,CntyQryCensus!$A$4:$CW$46,AF$1)","v":681},{"$f":"VLOOKUP(DropDownList!$B$47,CntyQryCensus!$A$4:$CW$46,AG$1)","v":252},{"$f":"VLOOKUP(DropDownList!$B$47,CntyQryCensus!$A$4:$CW$46,AH$1)","v":316},{"$f":"VLOOKUP(DropDownList!$B$47,CntyQryCensus!$A$4:$CW$46,AI$1)","v":573},{"$f":"VLOOKUP(DropDownList!$B$47,CntyQryCensus!$A$4:$CW$46,AJ$1)","v":598},{"$f":"VLOOKUP(DropDownList!$B$47,CntyQryCensus!$A$4:$CW$46,AK$1)","v":382},{"$f":"VLOOKUP(DropDownList!$B$47,CntyQryCensus!$A$4:$CW$46,AL$1)","v":228},{"$f":"VLOOKUP(DropDownList!$B$47,CntyQryCensus!$A$4:$CW$46,AM$1)","v":104},{"$f":"VLOOKUP(DropDownList!$B$47,CntyQryCensus!$A$4:$CW$46,AN$1)","v":36},{"$f":"VLOOKUP(DropDownList!$B$47,CntyQryCensus!$A$4:$CW$46,AO$1)","v":2317},{"$f":"VLOOKUP(DropDownList!$B$47,CntyQryCensus!$A$4:$CW$46,AP$1)","v":6174},{"$f":"VLOOKUP(DropDownList!$B$47,CntyQryCensus!$A$4:$CW$46,AQ$1)","v":2.66},{"$f":"VLOOKUP(DropDownList!$B$47,CntyQryCensus!$A$4:$CW$46,AR$1)","v":441},{"$f":"VLOOKUP(DropDownList!$B$47,CntyQryCensus!$A$4:$CW$46,AS$1)","v":1876},{"$f":"VLOOKUP(DropDownList!$B$47,CntyQryCensus!$A$4:$CW$46,AT$1)","v":1777},{"$f":"VLOOKUP(DropDownList!$B$47,CntyQryCensus!$A$4:$CW$46,AU$1)","v":1593},{"$f":"VLOOKUP(DropDownList!$B$47,CntyQryCensus!$A$4:$CW$46,AV$1)","v":184},{"$f":"VLOOKUP(DropDownList!$B$47,CntyQryCensus!$A$4:$CW$46,AW$1)","v":99},{"$f":"VLOOKUP(DropDownList!$B$47,CntyQryCensus!$A$4:$CW$46,AX$1)","v":1777},{"$f":"VLOOKUP(DropDownList!$B$47,CntyQryCensus!$A$4:$CW$46,AY$1)","v":5474},{"$f":"VLOOKUP(DropDownList!$B$47,CntyQryCensus!$A$4:$CW$46,AZ$1)","v":3.08},{"$f":"VLOOKUP(DropDownList!$B$47,CntyQryCensus!$A$4:$CW$46,BA$1)","v":2431},{"$f":"VLOOKUP(DropDownList!$B$47,CntyQryCensus!$A$4:$CW$46,BB$1)","v":2317},{"$f":"VLOOKUP(DropDownList!$B$47,CntyQryCensus!$A$4:$CW$46,BC$1)","v":2060},{"$f":"VLOOKUP(DropDownList!$B$47,CntyQryCensus!$A$4:$CW$46,BD$1)","v":257},{"$f":"VLOOKUP(DropDownList!$B$47,CntyQryCensus!$A$4:$CW$46,BE$1)","v":114},{"$f":"VLOOKUP(DropDownList!$B$47,CntyQryCensus!$A$4:$CW$46,BF$1)","v":4},{"$f":"VLOOKUP(DropDownList!$B$47,CntyQryCensus!$A$4:$CW$46,BG$1)","v":30},{"$f":"VLOOKUP(DropDownList!$B$47,CntyQryCensus!$A$4:$CW$46,BH$1)","v":67},{"$f":"VLOOKUP(DropDownList!$B$47,CntyQryCensus!$A$4:$CW$46,BI$1)","v":6174},{"$f":"VLOOKUP(DropDownList!$B$47,CntyQryCensus!$A$4:$CW$46,BJ$1)","v":5766},{"$f":"VLOOKUP(DropDownList!$B$47,CntyQryCensus!$A$4:$CW$46,BK$1)","v":408},{"$f":"VLOOKUP(DropDownList!$B$47,CntyQryCensus!$A$4:$CW$46,BL$1)","v":2.66},{"$f":"VLOOKUP(DropDownList!$B$47,CntyQryCensus!$A$4:$CW$46,BM$1)","v":2.8},{"$f":"VLOOKUP(DropDownList!$B$47,CntyQryCensus!$A$4:$CW$46,BN$1)","v":1.59},{"$f":"VLOOKUP(DropDownList!$B$47,CntyQryCensus!$A$4:$CW$46,BO$1)","v":2031},{"$f":"VLOOKUP(DropDownList!$B$47,CntyQryCensus!$A$4:$CW$46,BP$1)","v":6},{"$f":"VLOOKUP(DropDownList!$B$47,CntyQryCensus!$A$4:$CW$46,BQ$1)","v":0},{"$f":"VLOOKUP(DropDownList!$B$47,CntyQryCensus!$A$4:$CW$46,BR$1)","v":15},{"$f":"VLOOKUP(DropDownList!$B$47,CntyQryCensus!$A$4:$CW$46,BS$1)","v":0},{"$f":"VLOOKUP(DropDownList!$B$47,CntyQryCensus!$A$4:$CW$46,BT$1)","v":2},{"$f":"VLOOKUP(DropDownList!$B$47,CntyQryCensus!$A$4:$CW$46,BU$1)","v":6},{"$f":"VLOOKUP(DropDownList!$B$47,CntyQryCensus!$A$4:$CW$46,BV$1)","v":250},{"$f":"VLOOKUP(DropDownList!$B$47,CntyQryCensus!$A$4:$CW$46,BW$1)","v":1},{"$f":"VLOOKUP(DropDownList!$B$47,CntyQryCensus!$A$4:$CW$46,BX$1)","v":1},{"$f":"VLOOKUP(DropDownList!$B$47,CntyQryCensus!$A$4:$CW$46,BY$1)","v":0},{"$f":"VLOOKUP(DropDownList!$B$47,CntyQryCensus!$A$4:$CW$46,BZ$1)","v":0},{"$f":"VLOOKUP(DropDownList!$B$47,CntyQryCensus!$A$4:$CW$46,CA$1)","v":2},{"$f":"VLOOKUP(DropDownList!$B$47,CntyQryCensus!$A$4:$CW$46,CB$1)","v":3},{"$f":"VLOOKUP(DropDownList!$B$47,CntyQryCensus!$A$4:$CW$46,CC$1)","v":5},{"$f":"VLOOKUP(DropDownList!$B$47,CntyQryCensus!$A$4:$CW$46,CD$1)","v":179},{"$f":"VLOOKUP(DropDownList!$B$47,CntyQryCensus!$A$4:$CW$46,CE$1)","v":528},{"$f":"VLOOKUP(DropDownList!$B$47,CntyQryCensus!$A$4:$CW$46,CF$1)","v":561},{"$f":"VLOOKUP(DropDownList!$B$47,CntyQryCensus!$A$4:$CW$46,CG$1)","v":399},{"$f":"VLOOKUP(DropDownList!$B$47,CntyQryCensus!$A$4:$CW$46,CH$1)","v":262},{"$f":"VLOOKUP(DropDownList!$B$47,CntyQryCensus!$A$4:$CW$46,CI$1)","v":100},{"$f":"VLOOKUP(DropDownList!$B$47,CntyQryCensus!$A$4:$CW$46,CJ$1)","v":26},{"$f":"VLOOKUP(DropDownList!$B$47,CntyQryCensus!$A$4:$CW$46,CK$1)","v":11},{"$f":"VLOOKUP(DropDownList!$B$47,CntyQryCensus!$A$4:$CW$46,CL$1)","v":49},{"$f":"VLOOKUP(DropDownList!$B$47,CntyQryCensus!$A$4:$CW$46,CM$1)","v":55},{"$f":"VLOOKUP(DropDownList!$B$47,CntyQryCensus!$A$4:$CW$46,CN$1)","v":56},{"$f":"VLOOKUP(DropDownList!$B$47,CntyQryCensus!$A$4:$CW$46,CO$1)","v":33},{"$f":"VLOOKUP(DropDownList!$B$47,CntyQryCensus!$A$4:$CW$46,CP$1)","v":31},{"$f":"VLOOKUP(DropDownList!$B$47,CntyQryCensus!$A$4:$CW$46,CQ$1)","v":12},{"$f":"VLOOKUP(DropDownList!$B$47,CntyQryCensus!$A$4:$CW$46,CR$1)","v":10},{"$f":"VLOOKUP(DropDownList!$B$47,CntyQryCensus!$A$4:$CW$46,CS$1)","v":6178},{"$f":"VLOOKUP(DropDownList!$B$47,CntyQryCensus!$A$4:$CW$46,CT$1)","v":6174},{"$f":"VLOOKUP(DropDownList!$B$47,CntyQryCensus!$A$4:$CW$46,CU$1)","v":4},{"$f":"VLOOKUP(DropDownList!$B$47,CntyQryCensus!$A$4:$CW$46,CV$1)","v":40.9},{"$f":"VLOOKUP(DropDownList!$B$47,CntyQryCensus!$A$4:$CW$46,CW$1)","v":40.700000000000003},{"$f":"VLOOKUP(DropDownList!$B$47,CntyQryCensus!$A$4:$CW$46,CX$1)","v":{"$error":"#REF!"}}]
[]
[]
["Census 2000 DemoProfile Sample Data Tables 2&3   -  DPTab23TownQry"]
["NAME","COUSUB","AREANAME","PopInSchool","Preschool","Kindergarten","Elementary","HighSchool","College","Pop25andOver","HighSchoolGrad","SomeCollege","AssocDegree","BachelDegree","GradDegree","HSGradorHigher","CollegeGradorHigher","Pop5to20yrs","Pop5to20wDis","Pop21to64","Pop21to64wDis","Pop65over","Pop65overwDis","Pop5yrsOver","SameHUin95","DiffHUinUSin95","HUinSameCountyin95","HUinSameStatein95","TotalPop","NativePop","NatPopBornUS","NatPopBornInStatRes","NatPopBornDiffState","NatPopBornOutUS","FornBornPop","FornPopEnt90to00","FornPopNatCit","FornPopNotCit","Households","HHIncLessThn10k","HHInc10to15K","HHInc15to25K","HHInc25to35K","HHInc35to50K","HHInc50to75K","HHInc75to100K","HHInc100to150K","HHInc150to200K","HHIncOver200K","MedianHHInc","HHwithPubAssistInc","MeanPubAssist","FamilyHH","FHHIncLessThn10k","FHHInc10to15K","FHHInc15to25K","FHHInc25to35K","FHHInc35to50K","FHHInc50to75K","FHHInc75to100K","FHHInc100to150K","FHHInc150to200K","FHHIncOver200K","MedianFHHInc","PerCapitaInc","PovStatFamilies","PovStatFHHwChilUnd18","PovStatFHHwChilUnd5","PovStFmalHH","DP3088","DP3089","PovStatIndiv","PovStatIndiv18yrOver","PovStatIndiv65yrOver","DP3093","DP3094","DP3095"]
[{"$f":"VLOOKUP(DropDownList!$B$47,CntyQryCensus!$A$53:$BY$96,A$1)","v":"Atkinson"},{"$f":"VLOOKUP(DropDownList!$B$47,CntyQryCensus!$A$53:$BY$96,B$1)","v":"02340"},{"$f":"VLOOKUP(DropDownList!$B$47,CntyQryCensus!$A$53:$BY$96,C$1)","v":"Atkinson town, Rockingham County, New Hampshire"},{"$f":"VLOOKUP(DropDownList!$B$47,CntyQryCensus!$A$53:$BY$96,D$1)","v":1575},{"$f":"VLOOKUP(DropDownList!$B$47,CntyQryCensus!$A$53:$BY$96,E$1)","v":120},{"$f":"VLOOKUP(DropDownList!$B$47,CntyQryCensus!$A$53:$BY$96,F$1)","v":97},{"$f":"VLOOKUP(DropDownList!$B$47,CntyQryCensus!$A$53:$BY$96,G$1)","v":725},{"$f":"VLOOKUP(DropDownList!$B$47,CntyQryCensus!$A$53:$BY$96,H$1)","v":335},{"$f":"VLOOKUP(DropDownList!$B$47,CntyQryCensus!$A$53:$BY$96,I$1)","v":298},{"$f":"VLOOKUP(DropDownList!$B$47,CntyQryCensus!$A$53:$BY$96,J$1)","v":4345},{"$f":"VLOOKUP(DropDownList!$B$47,CntyQryCensus!$A$53:$BY$96,K$1)","v":1044},{"$f":"VLOOKUP(DropDownList!$B$47,CntyQryCensus!$A$53:$BY$96,L$1)","v":898},{"$f":"VLOOKUP(DropDownList!$B$47,CntyQryCensus!$A$53:$BY$96,M$1)","v":494},{"$f":"VLOOKUP(DropDownList!$B$47,CntyQryCensus!$A$53:$BY$96,N$1)","v":1145},{"$f":"VLOOKUP(DropDownList!$B$47,CntyQryCensus!$A$53:$BY$96,O$1)","v":559},{"$f":"VLOOKUP(DropDownList!$B$47,CntyQryCensus!$A$53:$BY$96,P$1)","v":4140},{"$f":"VLOOKUP(DropDownList!$B$47,CntyQryCensus!$A$53:$BY$96,Q$1)","v":1704},{"$f":"VLOOKUP(DropDownList!$B$47,CntyQryCensus!$A$53:$BY$96,R$1)","v":1262},{"$f":"VLOOKUP(DropDownList!$B$47,CntyQryCensus!$A$53:$BY$96,S$1)","v":60},{"$f":"VLOOKUP(DropDownList!$B$47,CntyQryCensus!$A$53:$BY$96,T$1)","v":3808},{"$f":"VLOOKUP(DropDownList!$B$47,CntyQryCensus!$A$53:$BY$96,U$1)","v":513},{"$f":"VLOOKUP(DropDownList!$B$47,CntyQryCensus!$A$53:$BY$96,V$1)","v":697},{"$f":"VLOOKUP(DropDownList!$B$47,CntyQryCensus!$A$53:$BY$96,W$1)","v":173},{"$f":"VLOOKUP(DropDownList!$B$47,CntyQryCensus!$A$53:$BY$96,X$1)","v":5767},{"$f":"VLOOKUP(DropDownList!$B$47,CntyQryCensus!$A$53:$BY$96,Y$1)","v":3612},{"$f":"VLOOKUP(DropDownList!$B$47,CntyQryCensus!$A$53:$BY$96,Z$1)","v":2095},{"$f":"VLOOKUP(DropDownList!$B$47,CntyQryCensus!$A$53:$BY$96,AA$1)","v":903},{"$f":"VLOOKUP(DropDownList!$B$47,CntyQryCensus!$A$53:$BY$96,AB$1)","v":1192},{"$f":"VLOOKUP(DropDownList!$B$47,CntyQryCensus!$A$53:$BY$96,AC$1)","v":6178},{"$f":"VLOOKUP(DropDownList!$B$47,CntyQryCensus!$A$53:$BY$96,AD$1)","v":5916},{"$f":"VLOOKUP(DropDownList!$B$47,CntyQryCensus!$A$53:$BY$96,AE$1)","v":5889},{"$f":"VLOOKUP(DropDownList!$B$47,CntyQryCensus!$A$53:$BY$96,AF$1)","v":421},{"$f":"VLOOKUP(DropDownList!$B$47,CntyQryCensus!$A$53:$BY$96,AG$1)","v":5468},{"$f":"VLOOKUP(DropDownList!$B$47,CntyQryCensus!$A$53:$BY$96,AH$1)","v":27},{"$f":"VLOOKUP(DropDownList!$B$47,CntyQryCensus!$A$53:$BY$96,AI$1)","v":262},{"$f":"VLOOKUP(DropDownList!$B$47,CntyQryCensus!$A$53:$BY$96,AJ$1)","v":31},{"$f":"VLOOKUP(DropDownList!$B$47,CntyQryCensus!$A$53:$BY$96,AK$1)","v":232},{"$f":"VLOOKUP(DropDownList!$B$47,CntyQryCensus!$A$53:$BY$96,AL$1)","v":30},{"$f":"VLOOKUP(DropDownList!$B$47,CntyQryCensus!$A$53:$BY$96,AM$1)","v":2326},{"$f":"VLOOKUP(DropDownList!$B$47,CntyQryCensus!$A$53:$BY$96,AN$1)","v":80},{"$f":"VLOOKUP(DropDownList!$B$47,CntyQryCensus!$A$53:$BY$96,AO$1)","v":77},{"$f":"VLOOKUP(DropDownList!$B$47,CntyQryCensus!$A$53:$BY$96,AP$1)","v":133},{"$f":"VLOOKUP(DropDownList!$B$47,CntyQryCensus!$A$53:$BY$96,AQ$1)","v":120},{"$f":"VLOOKUP(DropDownList!$B$47,CntyQryCensus!$A$53:$BY$96,AR$1)","v":348},{"$f":"VLOOKUP(DropDownList!$B$47,CntyQryCensus!$A$53:$BY$96,AS$1)","v":485},{"$f":"VLOOKUP(DropDownList!$B$47,CntyQryCensus!$A$53:$BY$96,AT$1)","v":405},{"$f":"VLOOKUP(DropDownList!$B$47,CntyQryCensus!$A$53:$BY$96,AU$1)","v":449},{"$f":"VLOOKUP(DropDownList!$B$47,CntyQryCensus!$A$53:$BY$96,AV$1)","v":111},{"$f":"VLOOKUP(DropDownList!$B$47,CntyQryCensus!$A$53:$BY$96,AW$1)","v":118},{"$f":"VLOOKUP(DropDownList!$B$47,CntyQryCensus!$A$53:$BY$96,AX$1)","v":69729},{"$f":"VLOOKUP(DropDownList!$B$47,CntyQryCensus!$A$53:$BY$96,AY$1)","v":33},{"$f":"VLOOKUP(DropDownList!$B$47,CntyQryCensus!$A$53:$BY$96,AZ$1)","v":905},{"$f":"VLOOKUP(DropDownList!$B$47,CntyQryCensus!$A$53:$BY$96,BA$1)","v":1781},{"$f":"VLOOKUP(DropDownList!$B$47,CntyQryCensus!$A$53:$BY$96,BB$1)","v":24},{"$f":"VLOOKUP(DropDownList!$B$47,CntyQryCensus!$A$53:$BY$96,BC$1)","v":25},{"$f":"VLOOKUP(DropDownList!$B$47,CntyQryCensus!$A$53:$BY$96,BD$1)","v":8},{"$f":"VLOOKUP(DropDownList!$B$47,CntyQryCensus!$A$53:$BY$96,BE$1)","v":90},{"$f":"VLOOKUP(DropDownList!$B$47,CntyQryCensus!$A$53:$BY$96,BF$1)","v":250},{"$f":"VLOOKUP(DropDownList!$B$47,CntyQryCensus!$A$53:$BY$96,BG$1)","v":437},{"$f":"VLOOKUP(DropDownList!$B$47,CntyQryCensus!$A$53:$BY$96,BH$1)","v":337},{"$f":"VLOOKUP(DropDownList!$B$47,CntyQryCensus!$A$53:$BY$96,BI$1)","v":406},{"$f":"VLOOKUP(DropDownList!$B$47,CntyQryCensus!$A$53:$BY$96,BJ$1)","v":101},{"$f":"VLOOKUP(DropDownList!$B$47,CntyQryCensus!$A$53:$BY$96,BK$1)","v":103},{"$f":"VLOOKUP(DropDownList!$B$47,CntyQryCensus!$A$53:$BY$96,BL$1)","v":77631},{"$f":"VLOOKUP(DropDownList!$B$47,CntyQryCensus!$A$53:$BY$96,BM$1)","v":30412},{"$f":"VLOOKUP(DropDownList!$B$47,CntyQryCensus!$A$53:$BY$96,BN$1)","v":41},{"$f":"VLOOKUP(DropDownList!$B$47,CntyQryCensus!$A$53:$BY$96,BO$1)","v":34},{"$f":"VLOOKUP(DropDownList!$B$47,CntyQryCensus!$A$53:$BY$96,BP$1)","v":8},{"$f":"VLOOKUP(DropDownList!$B$47,CntyQryCensus!$A$53:$BY$96,BQ$1)","v":23},{"$f":"VLOOKUP(DropDownList!$B$47,CntyQryCensus!$A$53:$BY$96,BR$1)","v":16},{"$f":"VLOOKUP(DropDownList!$B$47,CntyQryCensus!$A$53:$BY$96,BS$1)","v":0},{"$f":"VLOOKUP(DropDownList!$B$47,CntyQryCensus!$A$53:$BY$96,BT$1)","v":202},{"$f":"VLOOKUP(DropDownList!$B$47,CntyQryCensus!$A$53:$BY$96,BU$1)","v":133},{"$f":"VLOOKUP(DropDownList!$B$47,CntyQryCensus!$A$53:$BY$96,BV$1)","v":15},{"$f":"VLOOKUP(DropDownList!$B$47,CntyQryCensus!$A$53:$BY$96,BW$1)","v":69},{"$f":"VLOOKUP(DropDownList!$B$47,CntyQryCensus!$A$53:$BY$96,BX$1)","v":53},{"$f":"VLOOKUP(DropDownList!$B$47,CntyQryCensus!$A$53:$BY$96,BY$1)","v":65}]
[]
[]
["Census 2000 DemoProfile Sample Data Table 4   -  DPTab4TownQry"]
["NAME","COUSUB","TotHousingUnits","1UnitDet","1UnitAtt","2Units","3to4Units","5to9Units","10to19Units","20orMoreUnits","MobileHomes","BoatRvVan","SingleFamilyUnits","MultiFamUnits","MobileHomeUnits","YearBuilt99to00","YearBuilt95to98","YearBUilt90to94","YearBuilt80to89","YearBuilt70to79","YearBuilt60to69","YearBuilt40to59","YearBuilt39orEarlier","Rooms1","Rooms2","Rooms3","Rooms4","Rooms5","Rooms6","Rooms7","Rooms8","Rooms9orMore","MedianRooms","OccHU1","YrHHMvdIn99to00","YrHHMvdIn95to98","YrHHMvdIn90to94","YrHHMvdIn80to89","YrHHMvdIn70to79","YrHHMvdIn69orBefore","HeatFuelNatGas","HeatFuelBotGas","HeatFuelElectric","HeatFuelOil","HeatFuelCoal","HeatFuelWood","HeatFuelSolar","HeatFuelOther","HeatFuelNone","LackCompPlumb","LackCompKit","NoTelephone","OccHU","OccPerRm1orLess","OccPerRm1to1_5","OccPerRm1_5orMore","SpecOwnOccUnits","Value<50K","Value50to100K","Value100to150K","Value150to200K","Value200to300K","Value300to500K","Value500Kto1mil","Value1MilorMore","MedianValue","WithMortg","MnthOwnCst<300","MnthOwnCst300to500","MnthOwnCst500to700","MnthOwnCst700to1000","MnthOwnCst1000to1500","MnthOwnCst1500to2000","MnthOwnCst2000orMore","MediMnthOwnCst","NotMrtg","NotMrtgMediMnthOwnCst","OwnCst%HHInc<15","OwnCst%HHInc15to20","OwnCst%HHInc20to25","OwnCst%HHInc25to30","OwnCst%HHInc30to35","OwnCst%HHInc35orMor","NotComputed","SpecRntOccUnits","Rnt<200","Rnt200to300","Rnt300to500","Rnt500to750","Rnt750to1000","Rnt1000to1500","Rnt1500orMore","NoRent","MedianRent","Rnt%HHInc<15","Rnt%HHInc15to20","Rnt%HHInc20to25","Rnt%HHInc25to30","Rnt%HHInc30to35","Rnt%HHInc35orMore","Rnt%NotCompute"]
[{"$f":"VLOOKUP(DropDownList!$B$47,CntyQryCensus!$A$103:$CX$146,A$1)","v":"Atkinson"},{"$f":"VLOOKUP(DropDownList!$B$47,CntyQryCensus!$A$103:$CX$146,B$1)","v":"02340"},{"$f":"VLOOKUP(DropDownList!$B$47,CntyQryCensus!$A$103:$CX$146,C$1)","v":2431},{"$f":"VLOOKUP(DropDownList!$B$47,CntyQryCensus!$A$103:$CX$146,D$1)","v":1826},{"$f":"VLOOKUP(DropDownList!$B$47,CntyQryCensus!$A$103:$CX$146,E$1)","v":322},{"$f":"VLOOKUP(DropDownList!$B$47,CntyQryCensus!$A$103:$CX$146,F$1)","v":81},{"$f":"VLOOKUP(DropDownList!$B$47,CntyQryCensus!$A$103:$CX$146,G$1)","v":61},{"$f":"VLOOKUP(DropDownList!$B$47,CntyQryCensus!$A$103:$CX$146,H$1)","v":0},{"$f":"VLOOKUP(DropDownList!$B$47,CntyQryCensus!$A$103:$CX$146,I$1)","v":125},{"$f":"VLOOKUP(DropDownList!$B$47,CntyQryCensus!$A$103:$CX$146,J$1)","v":6},{"$f":"VLOOKUP(DropDownList!$B$47,CntyQryCensus!$A$103:$CX$146,K$1)","v":10},{"$f":"VLOOKUP(DropDownList!$B$47,CntyQryCensus!$A$103:$CX$146,L$1)","v":0},{"$f":"VLOOKUP(DropDownList!$B$47,CntyQryCensus!$A$103:$CX$146,M$1)","v":1826},{"$f":"VLOOKUP(DropDownList!$B$47,CntyQryCensus!$A$103:$CX$146,N$1)","v":595},{"$f":"VLOOKUP(DropDownList!$B$47,CntyQryCensus!$A$103:$CX$146,O$1)","v":10},{"$f":"VLOOKUP(DropDownList!$B$47,CntyQryCensus!$A$103:$CX$146,P$1)","v":86},{"$f":"VLOOKUP(DropDownList!$B$47,CntyQryCensus!$A$103:$CX$146,Q$1)","v":246},{"$f":"VLOOKUP(DropDownList!$B$47,CntyQryCensus!$A$103:$CX$146,R$1)","v":316},{"$f":"VLOOKUP(DropDownList!$B$47,CntyQryCensus!$A$103:$CX$146,S$1)","v":426},{"$f":"VLOOKUP(DropDownList!$B$47,CntyQryCensus!$A$103:$CX$146,T$1)","v":613},{"$f":"VLOOKUP(DropDownList!$B$47,CntyQryCensus!$A$103:$CX$146,U$1)","v":355},{"$f":"VLOOKUP(DropDownList!$B$47,CntyQryCensus!$A$103:$CX$146,V$1)","v":272},{"$f":"VLOOKUP(DropDownList!$B$47,CntyQryCensus!$A$103:$CX$146,W$1)","v":117},{"$f":"VLOOKUP(DropDownList!$B$47,CntyQryCensus!$A$103:$CX$146,X$1)","v":0},{"$f":"VLOOKUP(DropDownList!$B$47,CntyQryCensus!$A$103:$CX$146,Y$1)","v":105},{"$f":"VLOOKUP(DropDownList!$B$47,CntyQryCensus!$A$103:$CX$146,Z$1)","v":36},{"$f":"VLOOKUP(DropDownList!$B$47,CntyQryCensus!$A$103:$CX$146,AA$1)","v":131},{"$f":"VLOOKUP(DropDownList!$B$47,CntyQryCensus!$A$103:$CX$146,AB$1)","v":409},{"$f":"VLOOKUP(DropDownList!$B$47,CntyQryCensus!$A$103:$CX$146,AC$1)","v":559},{"$f":"VLOOKUP(DropDownList!$B$47,CntyQryCensus!$A$103:$CX$146,AD$1)","v":457},{"$f":"VLOOKUP(DropDownList!$B$47,CntyQryCensus!$A$103:$CX$146,AE$1)","v":358},{"$f":"VLOOKUP(DropDownList!$B$47,CntyQryCensus!$A$103:$CX$146,AF$1)","v":376},{"$f":"VLOOKUP(DropDownList!$B$47,CntyQryCensus!$A$103:$CX$146,AG$1)","v":6.5},{"$f":"VLOOKUP(DropDownList!$B$47,CntyQryCensus!$A$103:$CX$146,AH$1)","v":2317},{"$f":"VLOOKUP(DropDownList!$B$47,CntyQryCensus!$A$103:$CX$146,AI$1)","v":256},{"$f":"VLOOKUP(DropDownList!$B$47,CntyQryCensus!$A$103:$CX$146,AJ$1)","v":632},{"$f":"VLOOKUP(DropDownList!$B$47,CntyQryCensus!$A$103:$CX$146,AK$1)","v":437},{"$f":"VLOOKUP(DropDownList!$B$47,CntyQryCensus!$A$103:$CX$146,AL$1)","v":479},{"$f":"VLOOKUP(DropDownList!$B$47,CntyQryCensus!$A$103:$CX$146,AM$1)","v":354},{"$f":"VLOOKUP(DropDownList!$B$47,CntyQryCensus!$A$103:$CX$146,AN$1)","v":159},{"$f":"VLOOKUP(DropDownList!$B$47,CntyQryCensus!$A$103:$CX$146,AO$1)","v":313},{"$f":"VLOOKUP(DropDownList!$B$47,CntyQryCensus!$A$103:$CX$146,AP$1)","v":223},{"$f":"VLOOKUP(DropDownList!$B$47,CntyQryCensus!$A$103:$CX$146,AQ$1)","v":85},{"$f":"VLOOKUP(DropDownList!$B$47,CntyQryCensus!$A$103:$CX$146,AR$1)","v":1657},{"$f":"VLOOKUP(DropDownList!$B$47,CntyQryCensus!$A$103:$CX$146,AS$1)","v":7},{"$f":"VLOOKUP(DropDownList!$B$47,CntyQryCensus!$A$103:$CX$146,AT$1)","v":32},{"$f":"VLOOKUP(DropDownList!$B$47,CntyQryCensus!$A$103:$CX$146,AU$1)","v":0},{"$f":"VLOOKUP(DropDownList!$B$47,CntyQryCensus!$A$103:$CX$146,AV$1)","v":0},{"$f":"VLOOKUP(DropDownList!$B$47,CntyQryCensus!$A$103:$CX$146,AW$1)","v":0},{"$f":"VLOOKUP(DropDownList!$B$47,CntyQryCensus!$A$103:$CX$146,AX$1)","v":0},{"$f":"VLOOKUP(DropDownList!$B$47,CntyQryCensus!$A$103:$CX$146,AY$1)","v":0},{"$f":"VLOOKUP(DropDownList!$B$47,CntyQryCensus!$A$103:$CX$146,AZ$1)","v":0},{"$f":"VLOOKUP(DropDownList!$B$47,CntyQryCensus!$A$103:$CX$146,BA$1)","v":2317},{"$f":"VLOOKUP(DropDownList!$B$47,CntyQryCensus!$A$103:$CX$146,BB$1)","v":2302},{"$f":"VLOOKUP(DropDownList!$B$47,CntyQryCensus!$A$103:$CX$146,BC$1)","v":15},{"$f":"VLOOKUP(DropDownList!$B$47,CntyQryCensus!$A$103:$CX$146,BD$1)","v":0},{"$f":"VLOOKUP(DropDownList!$B$47,CntyQryCensus!$A$103:$CX$146,BE$1)","v":1791},{"$f":"VLOOKUP(DropDownList!$B$47,CntyQryCensus!$A$103:$CX$146,BF$1)","v":0},{"$f":"VLOOKUP(DropDownList!$B$47,CntyQryCensus!$A$103:$CX$146,BG$1)","v":34},{"$f":"VLOOKUP(DropDownList!$B$47,CntyQryCensus!$A$103:$CX$146,BH$1)","v":226},{"$f":"VLOOKUP(DropDownList!$B$47,CntyQryCensus!$A$103:$CX$146,BI$1)","v":670},{"$f":"VLOOKUP(DropDownList!$B$47,CntyQryCensus!$A$103:$CX$146,BJ$1)","v":632},{"$f":"VLOOKUP(DropDownList!$B$47,CntyQryCensus!$A$103:$CX$146,BK$1)","v":170},{"$f":"VLOOKUP(DropDownList!$B$47,CntyQryCensus!$A$103:$CX$146,BL$1)","v":59},{"$f":"VLOOKUP(DropDownList!$B$47,CntyQryCensus!$A$103:$CX$146,BM$1)","v":0},{"$f":"VLOOKUP(DropDownList!$B$47,CntyQryCensus!$A$103:$CX$146,BN$1)","v":197900},{"$f":"VLOOKUP(DropDownList!$B$47,CntyQryCensus!$A$103:$CX$146,BO$1)","v":1426},{"$f":"VLOOKUP(DropDownList!$B$47,CntyQryCensus!$A$103:$CX$146,BP$1)","v":0},{"$f":"VLOOKUP(DropDownList!$B$47,CntyQryCensus!$A$103:$CX$146,BQ$1)","v":24},{"$f":"VLOOKUP(DropDownList!$B$47,CntyQryCensus!$A$103:$CX$146,BR$1)","v":58},{"$f":"VLOOKUP(DropDownList!$B$47,CntyQryCensus!$A$103:$CX$146,BS$1)","v":121},{"$f":"VLOOKUP(DropDownList!$B$47,CntyQryCensus!$A$103:$CX$146,BT$1)","v":552},{"$f":"VLOOKUP(DropDownList!$B$47,CntyQryCensus!$A$103:$CX$146,BU$1)","v":485},{"$f":"VLOOKUP(DropDownList!$B$47,CntyQryCensus!$A$103:$CX$146,BV$1)","v":186},{"$f":"VLOOKUP(DropDownList!$B$47,CntyQryCensus!$A$103:$CX$146,BW$1)","v":1465},{"$f":"VLOOKUP(DropDownList!$B$47,CntyQryCensus!$A$103:$CX$146,BX$1)","v":365},{"$f":"VLOOKUP(DropDownList!$B$47,CntyQryCensus!$A$103:$CX$146,BY$1)","v":459},{"$f":"VLOOKUP(DropDownList!$B$47,CntyQryCensus!$A$103:$CX$146,BZ$1)","v":595},{"$f":"VLOOKUP(DropDownList!$B$47,CntyQryCensus!$A$103:$CX$146,CA$1)","v":278},{"$f":"VLOOKUP(DropDownList!$B$47,CntyQryCensus!$A$103:$CX$146,CB$1)","v":253},{"$f":"VLOOKUP(DropDownList!$B$47,CntyQryCensus!$A$103:$CX$146,CC$1)","v":241},{"$f":"VLOOKUP(DropDownList!$B$47,CntyQryCensus!$A$103:$CX$146,CD$1)","v":114},{"$f":"VLOOKUP(DropDownList!$B$47,CntyQryCensus!$A$103:$CX$146,CE$1)","v":310},{"$f":"VLOOKUP(DropDownList!$B$47,CntyQryCensus!$A$103:$CX$146,CF$1)","v":0},{"$f":"VLOOKUP(DropDownList!$B$47,CntyQryCensus!$A$103:$CX$146,CG$1)","v":238},{"$f":"VLOOKUP(DropDownList!$B$47,CntyQryCensus!$A$103:$CX$146,CH$1)","v":10},{"$f":"VLOOKUP(DropDownList!$B$47,CntyQryCensus!$A$103:$CX$146,CI$1)","v":0},{"$f":"VLOOKUP(DropDownList!$B$47,CntyQryCensus!$A$103:$CX$146,CJ$1)","v":92},{"$f":"VLOOKUP(DropDownList!$B$47,CntyQryCensus!$A$103:$CX$146,CK$1)","v":102},{"$f":"VLOOKUP(DropDownList!$B$47,CntyQryCensus!$A$103:$CX$146,CL$1)","v":18},{"$f":"VLOOKUP(DropDownList!$B$47,CntyQryCensus!$A$103:$CX$146,CM$1)","v":0},{"$f":"VLOOKUP(DropDownList!$B$47,CntyQryCensus!$A$103:$CX$146,CN$1)","v":0},{"$f":"VLOOKUP(DropDownList!$B$47,CntyQryCensus!$A$103:$CX$146,CO$1)","v":16},{"$f":"VLOOKUP(DropDownList!$B$47,CntyQryCensus!$A$103:$CX$146,CP$1)","v":509},{"$f":"VLOOKUP(DropDownList!$B$47,CntyQryCensus!$A$103:$CX$146,CQ$1)","v":33},{"$f":"VLOOKUP(DropDownList!$B$47,CntyQryCensus!$A$103:$CX$146,CR$1)","v":43},{"$f":"VLOOKUP(DropDownList!$B$47,CntyQryCensus!$A$103:$CX$146,CS$1)","v":10},{"$f":"VLOOKUP(DropDownList!$B$47,CntyQryCensus!$A$103:$CX$146,CT$1)","v":30},{"$f":"VLOOKUP(DropDownList!$B$47,CntyQryCensus!$A$103:$CX$146,CU$1)","v":10},{"$f":"VLOOKUP(DropDownList!$B$47,CntyQryCensus!$A$103:$CX$146,CV$1)","v":96},{"$f":"VLOOKUP(DropDownList!$B$47,CntyQryCensus!$A$103:$CX$146,CW$1)","v":16}]
[]
[]
["Census 2000 SummaryFile3 Sample Data  -  SF3TownQry1SocialChar"]
["TOWN_NAME","LOGRECNO","COUSUB","P01TotalPopulation","P02SampleCountOfPop","P03Pop100pctCount","P05UrbanPopulation","P05RuralPopulation","P06WhiteAlone","P06BlackOrAfAm","P06AmIndAlone","P06AsianAlone","P06HawaiianOrPI","P06OtherRace","P06TwoPlusRaces","P07NotHispanicOrLatino","P07HispanicOrLatino","P08MalePop","P08FemalePop","P09PopInHouseholds","P09PopInFamHH","P09PopInNonFamHH","P09PopInGroupQtr","P13TotalHH","P13FamilyHH","P13FamHHolder15to24yrs","P13FamHHolder25to34yrs","P13FamHHolder35to44yrs","P13FamHHolder45to54yrs","P13FamHHolder55to64yrs","P13FamHHolder65to74yrs","P13FamHHolder75to84yrs","P13FamHHolder85yrsOver","P13NonFamilyHH","P13NonFamHHolder15to24yrs","P13NonFamHHolder25to34yrs","P13NonFamHHolder35to44yrs","P13NonFamHHolder45to54yrs","P13NonFamHHolder55to64yrs","P13NonFamHHolder65to74yrs","P13NonFamHHolder75to84yrs","P13NonFamHHolder85yrsOver","P18Pop15yrsOver","P18MaritalStatNeverMarried","P18MaritalStatNowMarried","P18MaritalStatSeparated","P18MaritalStatWidowed","P18MaritalStatWidowFemale","P18MaritalStatDivorced","P18MaritalStatDivorcedFemale","P21NativeBornPop","P21NatPopBornInState","P21NatPopBornOtherState","P021005","P021006","P021007","P021008","P21NatPopBornOutUS","P21ForeignBornPop","P021014","P021015","P24Pop5YrsPlus","P24ResSameHouseIn95","P24ResDiffHouseIn95","P24ResDiffHouseInUSIn95","P24ResDiffHouseSameCountyIn95","P24ResDiffHouseDiffCountyIn95","P24ResDiffHouseDiffCntySamStIn95","P24ResDiffHouseDiffCntyDifStIn95","P24ResDiffHouseDiffCntyNEStIn95","P24ResDiffHouseDiffCntyMWStIn95","P24ResDiffHouseDiffCntySoStIn95","P24ResDiffHouseDiffCntyWstStIn95","P24ResDiffInPR","P24ResDiffElsewhereIn95","P26Workers16yrsOver","P26WorkedInState","P26WorkedInCnty","P26WorkedOutsideCnty","P26WorkedOutsideState","P30Workers16Over","P30TranspToWrkCar","P30TranspToWrkPublic","P30TranspToWrkOther","P30WrkdAtHome","P31WrkrsNotWrkAtHom","P31TravTim<5min","P31TravTim5to9Min","P31TravTim10to14Min","P31TravTim15to19Min","P31TravTim20to24Min","P31TravTim25to29Min","P31TravTim30to34Min","P31TravTim35to39Min","P31TravTim40to44Min","P31TravTim45to59Min","P31TravTim60to89Min","P31TravTim90MinMore","P31WorkAtHome","P36SchEnrlPop3yrOver","P36NurserSchEnrl","P36KinderSchEnrl","P36ElemSchEnrl","P36HighSchEnrl","P36CollGradSchEnrl","P37Pop25yrsOver","P37EduAtain<9grd","P37EduAtainHSnoDip","P37EduAtainHSgrad","P37EduAtainCollNoDeg","P37EduAtainAssocDeg","P37EduAtainBachDeg","P37EduAtainGradProfDeg","P42NIPop5to15","P42NIPop5to15wDisabl","P42NIPop16to20","P42NIPop16to20wDisab","P42NIPop16to20wDisEmp","P42NIPop16to21NoDis","P42NIPop16to21NoDisEmpl","P42NIPop21to64","P42NIPop21to64wDis","P42NIPop21to64wDisEmp","P42NIPop21to64NoDis","P42NIPop21to64NoDisEmp","P42NIPop65to74","P42NIPop65to74wDis","P42NIPop75Over","P42NIPop75OverwDis","P43Pop16YrsOver","P43Pop16OvrInLaborForce","P43Pop16OvrCivlLabFrc","P43Pop16OvrCivlLbrFrcEmp","P48Families","P48MarriedFam","P48MarrFamNoWorkers","P48MarrFam1Worker","P48MarrFam2Worker","P48MarrFamHusbWifeWorked","P48MarrFamOther","P48MarrFam3PlusWorker","P48MarrFam3WorkHsbWif","P48MarrFam3PlsWrkOther","P48OtherFam","P48MaleHHNoWif","P48MaleHHNoWifNoWorker","P48MaleHHNoWif1Worker","P48MaleHHNoWif2Worker","P48MaleHHNoWif3PlusWorker","P48FemaleHHNoHsb","P48FemaleHHNoHsbNoWorker","P48FemaleHHNoHsb1Worker","P48FemaleHHNoHsb2Worker","P48FemaleHHNoHsb3Worker","P49EmpCivPop16YrOver","P49IndustAgricult","P49IndustConst","P49IndustMnftg","P49IndustWhlslTrd","P49IndustRtlTrd","P49IndustTrspWrhsUtlt","P49IndustInfrm","P49IndustFinInsRE","P49IndustPrfsScntfMngmt","P49IndustEduHlthSocSrv","P49IndustArtsEntRec","P49IndustOthrSrvc","P49IndustPubAdm","P50OccupMngmtProfs","P50OccupService","P50OccupSalesOff","P50OccupFarmFishForest","P50OccupConstExtrctMaint","P50OccupPrdctTrnspMatMv"]
[{"$f":"VLOOKUP(DropDownList!$B$47,CntyQryCensus!$A$156:$FR$198,A$1)","v":"Atkinson"},{"$f":"VLOOKUP(DropDownList!$B$47,CntyQryCensus!$A$156:$FR$198,B$1)","v":"0003039"},{"$f":"VLOOKUP(DropDownList!$B$47,CntyQryCensus!$A$156:$FR$198,C$1)","v":"02340"},{"$f":"VLOOKUP(DropDownList!$B$47,CntyQryCensus!$A$156:$FR$198,D$1)","v":6178},{"$f":"VLOOKUP(DropDownList!$B$47,CntyQryCensus!$A$156:$FR$198,E$1)","v":729},{"$f":"VLOOKUP(DropDownList!$B$47,CntyQryCensus!$A$156:$FR$198,F$1)","v":6178},{"$f":"VLOOKUP(DropDownList!$B$47,CntyQryCensus!$A$156:$FR$198,G$1)","v":6178},{"$f":"VLOOKUP(DropDownList!$B$47,CntyQryCensus!$A$156:$FR$198,H$1)","v":0},{"$f":"VLOOKUP(DropDownList!$B$47,CntyQryCensus!$A$156:$FR$198,I$1)","v":6069},{"$f":"VLOOKUP(DropDownList!$B$47,CntyQryCensus!$A$156:$FR$198,J$1)","v":0},{"$f":"VLOOKUP(DropDownList!$B$47,CntyQryCensus!$A$156:$FR$198,K$1)","v":0},{"$f":"VLOOKUP(DropDownList!$B$47,CntyQryCensus!$A$156:$FR$198,L$1)","v":58},{"$f":"VLOOKUP(DropDownList!$B$47,CntyQryCensus!$A$156:$FR$198,M$1)","v":0},{"$f":"VLOOKUP(DropDownList!$B$47,CntyQryCensus!$A$156:$FR$198,N$1)","v":19},{"$f":"VLOOKUP(DropDownList!$B$47,CntyQryCensus!$A$156:$FR$198,O$1)","v":32},{"$f":"VLOOKUP(DropDownList!$B$47,CntyQryCensus!$A$156:$FR$198,P$1)","v":6104},{"$f":"VLOOKUP(DropDownList!$B$47,CntyQryCensus!$A$156:$FR$198,Q$1)","v":74},{"$f":"VLOOKUP(DropDownList!$B$47,CntyQryCensus!$A$156:$FR$198,R$1)","v":3032},{"$f":"VLOOKUP(DropDownList!$B$47,CntyQryCensus!$A$156:$FR$198,S$1)","v":3146},{"$f":"VLOOKUP(DropDownList!$B$47,CntyQryCensus!$A$156:$FR$198,T$1)","v":6174},{"$f":"VLOOKUP(DropDownList!$B$47,CntyQryCensus!$A$156:$FR$198,U$1)","v":5528},{"$f":"VLOOKUP(DropDownList!$B$47,CntyQryCensus!$A$156:$FR$198,V$1)","v":646},{"$f":"VLOOKUP(DropDownList!$B$47,CntyQryCensus!$A$156:$FR$198,W$1)","v":4},{"$f":"VLOOKUP(DropDownList!$B$47,CntyQryCensus!$A$156:$FR$198,X$1)","v":2326},{"$f":"VLOOKUP(DropDownList!$B$47,CntyQryCensus!$A$156:$FR$198,Y$1)","v":1781},{"$f":"VLOOKUP(DropDownList!$B$47,CntyQryCensus!$A$156:$FR$198,Z$1)","v":9},{"$f":"VLOOKUP(DropDownList!$B$47,CntyQryCensus!$A$156:$FR$198,AA$1)","v":178},{"$f":"VLOOKUP(DropDownList!$B$47,CntyQryCensus!$A$156:$FR$198,AB$1)","v":504},{"$f":"VLOOKUP(DropDownList!$B$47,CntyQryCensus!$A$156:$FR$198,AC$1)","v":490},{"$f":"VLOOKUP(DropDownList!$B$47,CntyQryCensus!$A$156:$FR$198,AD$1)","v":342},{"$f":"VLOOKUP(DropDownList!$B$47,CntyQryCensus!$A$156:$FR$198,AE$1)","v":171},{"$f":"VLOOKUP(DropDownList!$B$47,CntyQryCensus!$A$156:$FR$198,AF$1)","v":74},{"$f":"VLOOKUP(DropDownList!$B$47,CntyQryCensus!$A$156:$FR$198,AG$1)","v":13},{"$f":"VLOOKUP(DropDownList!$B$47,CntyQryCensus!$A$156:$FR$198,AH$1)","v":545},{"$f":"VLOOKUP(DropDownList!$B$47,CntyQryCensus!$A$156:$FR$198,AI$1)","v":0},{"$f":"VLOOKUP(DropDownList!$B$47,CntyQryCensus!$A$156:$FR$198,AJ$1)","v":34},{"$f":"VLOOKUP(DropDownList!$B$47,CntyQryCensus!$A$156:$FR$198,AK$1)","v":104},{"$f":"VLOOKUP(DropDownList!$B$47,CntyQryCensus!$A$156:$FR$198,AL$1)","v":126},{"$f":"VLOOKUP(DropDownList!$B$47,CntyQryCensus!$A$156:$FR$198,AM$1)","v":96},{"$f":"VLOOKUP(DropDownList!$B$47,CntyQryCensus!$A$156:$FR$198,AN$1)","v":130},{"$f":"VLOOKUP(DropDownList!$B$47,CntyQryCensus!$A$156:$FR$198,AO$1)","v":21},{"$f":"VLOOKUP(DropDownList!$B$47,CntyQryCensus!$A$156:$FR$198,AP$1)","v":34},{"$f":"VLOOKUP(DropDownList!$B$47,CntyQryCensus!$A$156:$FR$198,AQ$1)","v":4882},{"$f":"VLOOKUP(DropDownList!$B$47,CntyQryCensus!$A$156:$FR$198,AR$1)","v":951},{"$f":"VLOOKUP(DropDownList!$B$47,CntyQryCensus!$A$156:$FR$198,AS$1)","v":3226},{"$f":"VLOOKUP(DropDownList!$B$47,CntyQryCensus!$A$156:$FR$198,AT$1)","v":72},{"$f":"VLOOKUP(DropDownList!$B$47,CntyQryCensus!$A$156:$FR$198,AU$1)","v":242},{"$f":"VLOOKUP(DropDownList!$B$47,CntyQryCensus!$A$156:$FR$198,AV$1)","v":169},{"$f":"VLOOKUP(DropDownList!$B$47,CntyQryCensus!$A$156:$FR$198,AW$1)","v":391},{"$f":"VLOOKUP(DropDownList!$B$47,CntyQryCensus!$A$156:$FR$198,AX$1)","v":205},{"$f":"VLOOKUP(DropDownList!$B$47,CntyQryCensus!$A$156:$FR$198,AY$1)","v":5916},{"$f":"VLOOKUP(DropDownList!$B$47,CntyQryCensus!$A$156:$FR$198,AZ$1)","v":421},{"$f":"VLOOKUP(DropDownList!$B$47,CntyQryCensus!$A$156:$FR$198,BA$1)","v":5468},{"$f":"VLOOKUP(DropDownList!$B$47,CntyQryCensus!$A$156:$FR$198,BB$1)","v":4943},{"$f":"VLOOKUP(DropDownList!$B$47,CntyQryCensus!$A$156:$FR$198,BC$1)","v":227},{"$f":"VLOOKUP(DropDownList!$B$47,CntyQryCensus!$A$156:$FR$198,BD$1)","v":206},{"$f":"VLOOKUP(DropDownList!$B$47,CntyQryCensus!$A$156:$FR$198,BE$1)","v":92},{"$f":"VLOOKUP(DropDownList!$B$47,CntyQryCensus!$A$156:$FR$198,BF$1)","v":27},{"$f":"VLOOKUP(DropDownList!$B$47,CntyQryCensus!$A$156:$FR$198,BG$1)","v":262},{"$f":"VLOOKUP(DropDownList!$B$47,CntyQryCensus!$A$156:$FR$198,BH$1)","v":232},{"$f":"VLOOKUP(DropDownList!$B$47,CntyQryCensus!$A$156:$FR$198,BI$1)","v":30},{"$f":"VLOOKUP(DropDownList!$B$47,CntyQryCensus!$A$156:$FR$198,BJ$1)","v":5767},{"$f":"VLOOKUP(DropDownList!$B$47,CntyQryCensus!$A$156:$FR$198,BK$1)","v":3612},{"$f":"VLOOKUP(DropDownList!$B$47,CntyQryCensus!$A$156:$FR$198,BL$1)","v":2155},{"$f":"VLOOKUP(DropDownList!$B$47,CntyQryCensus!$A$156:$FR$198,BM$1)","v":2095},{"$f":"VLOOKUP(DropDownList!$B$47,CntyQryCensus!$A$156:$FR$198,BN$1)","v":903},{"$f":"VLOOKUP(DropDownList!$B$47,CntyQryCensus!$A$156:$FR$198,BO$1)","v":1192},{"$f":"VLOOKUP(DropDownList!$B$47,CntyQryCensus!$A$156:$FR$198,BP$1)","v":116},{"$f":"VLOOKUP(DropDownList!$B$47,CntyQryCensus!$A$156:$FR$198,BQ$1)","v":1076},{"$f":"VLOOKUP(DropDownList!$B$47,CntyQryCensus!$A$156:$FR$198,BR$1)","v":905},{"$f":"VLOOKUP(DropDownList!$B$47,CntyQryCensus!$A$156:$FR$198,BS$1)","v":4},{"$f":"VLOOKUP(DropDownList!$B$47,CntyQryCensus!$A$156:$FR$198,BT$1)","v":134},{"$f":"VLOOKUP(DropDownList!$B$47,CntyQryCensus!$A$156:$FR$198,BU$1)","v":33},{"$f":"VLOOKUP(DropDownList!$B$47,CntyQryCensus!$A$156:$FR$198,BV$1)","v":0},{"$f":"VLOOKUP(DropDownList!$B$47,CntyQryCensus!$A$156:$FR$198,BW$1)","v":60},{"$f":"VLOOKUP(DropDownList!$B$47,CntyQryCensus!$A$156:$FR$198,BX$1)","v":3422},{"$f":"VLOOKUP(DropDownList!$B$47,CntyQryCensus!$A$156:$FR$198,BY$1)","v":1524},{"$f":"VLOOKUP(DropDownList!$B$47,CntyQryCensus!$A$156:$FR$198,BZ$1)","v":1279},{"$f":"VLOOKUP(DropDownList!$B$47,CntyQryCensus!$A$156:$FR$198,CA$1)","v":245},{"$f":"VLOOKUP(DropDownList!$B$47,CntyQryCensus!$A$156:$FR$198,CB$1)","v":1898},{"$f":"VLOOKUP(DropDownList!$B$47,CntyQryCensus!$A$156:$FR$198,CC$1)","v":3422},{"$f":"VLOOKUP(DropDownList!$B$47,CntyQryCensus!$A$156:$FR$198,CD$1)","v":3156},{"$f":"VLOOKUP(DropDownList!$B$47,CntyQryCensus!$A$156:$FR$198,CE$1)","v":24},{"$f":"VLOOKUP(DropDownList!$B$47,CntyQryCensus!$A$156:$FR$198,CF$1)","v":100},{"$f":"VLOOKUP(DropDownList!$B$47,CntyQryCensus!$A$156:$FR$198,CG$1)","v":208},{"$f":"VLOOKUP(DropDownList!$B$47,CntyQryCensus!$A$156:$FR$198,CH$1)","v":3214},{"$f":"VLOOKUP(DropDownList!$B$47,CntyQryCensus!$A$156:$FR$198,CI$1)","v":49},{"$f":"VLOOKUP(DropDownList!$B$47,CntyQryCensus!$A$156:$FR$198,CJ$1)","v":156},{"$f":"VLOOKUP(DropDownList!$B$47,CntyQryCensus!$A$156:$FR$198,CK$1)","v":428},{"$f":"VLOOKUP(DropDownList!$B$47,CntyQryCensus!$A$156:$FR$198,CL$1)","v":401},{"$f":"VLOOKUP(DropDownList!$B$47,CntyQryCensus!$A$156:$FR$198,CM$1)","v":436},{"$f":"VLOOKUP(DropDownList!$B$47,CntyQryCensus!$A$156:$FR$198,CN$1)","v":167},{"$f":"VLOOKUP(DropDownList!$B$47,CntyQryCensus!$A$156:$FR$198,CO$1)","v":526},{"$f":"VLOOKUP(DropDownList!$B$47,CntyQryCensus!$A$156:$FR$198,CP$1)","v":79},{"$f":"VLOOKUP(DropDownList!$B$47,CntyQryCensus!$A$156:$FR$198,CQ$1)","v":185},{"$f":"VLOOKUP(DropDownList!$B$47,CntyQryCensus!$A$156:$FR$198,CR$1)","v":406},{"$f":"VLOOKUP(DropDownList!$B$47,CntyQryCensus!$A$156:$FR$198,CS$1)","v":316},{"$f":"VLOOKUP(DropDownList!$B$47,CntyQryCensus!$A$156:$FR$198,CT$1)","v":65},{"$f":"VLOOKUP(DropDownList!$B$47,CntyQryCensus!$A$156:$FR$198,CU$1)","v":208},{"$f":"VLOOKUP(DropDownList!$B$47,CntyQryCensus!$A$156:$FR$198,CV$1)","v":5932},{"$f":"VLOOKUP(DropDownList!$B$47,CntyQryCensus!$A$156:$FR$198,CW$1)","v":120},{"$f":"VLOOKUP(DropDownList!$B$47,CntyQryCensus!$A$156:$FR$198,CX$1)","v":97},{"$f":"VLOOKUP(DropDownList!$B$47,CntyQryCensus!$A$156:$FR$198,CY$1)","v":725},{"$f":"VLOOKUP(DropDownList!$B$47,CntyQryCensus!$A$156:$FR$198,CZ$1)","v":335},{"$f":"VLOOKUP(DropDownList!$B$47,CntyQryCensus!$A$156:$FR$198,DA$1)","v":298},{"$f":"VLOOKUP(DropDownList!$B$47,CntyQryCensus!$A$156:$FR$198,DB$1)","v":4345},{"$f":"VLOOKUP(DropDownList!$B$47,CntyQryCensus!$A$156:$FR$198,DC$1)","v":43},{"$f":"VLOOKUP(DropDownList!$B$47,CntyQryCensus!$A$156:$FR$198,DD$1)","v":162},{"$f":"VLOOKUP(DropDownList!$B$47,CntyQryCensus!$A$156:$FR$198,DE$1)","v":1044},{"$f":"VLOOKUP(DropDownList!$B$47,CntyQryCensus!$A$156:$FR$198,DF$1)","v":898},{"$f":"VLOOKUP(DropDownList!$B$47,CntyQryCensus!$A$156:$FR$198,DG$1)","v":494},{"$f":"VLOOKUP(DropDownList!$B$47,CntyQryCensus!$A$156:$FR$198,DH$1)","v":1145},{"$f":"VLOOKUP(DropDownList!$B$47,CntyQryCensus!$A$156:$FR$198,DI$1)","v":559},{"$f":"VLOOKUP(DropDownList!$B$47,CntyQryCensus!$A$156:$FR$198,DJ$1)","v":965},{"$f":"VLOOKUP(DropDownList!$B$47,CntyQryCensus!$A$156:$FR$198,DK$1)","v":27},{"$f":"VLOOKUP(DropDownList!$B$47,CntyQryCensus!$A$156:$FR$198,DL$1)","v":297},{"$f":"VLOOKUP(DropDownList!$B$47,CntyQryCensus!$A$156:$FR$198,DM$1)","v":33},{"$f":"VLOOKUP(DropDownList!$B$47,CntyQryCensus!$A$156:$FR$198,DN$1)","v":23},{"$f":"VLOOKUP(DropDownList!$B$47,CntyQryCensus!$A$156:$FR$198,DO$1)","v":264},{"$f":"VLOOKUP(DropDownList!$B$47,CntyQryCensus!$A$156:$FR$198,DP$1)","v":109},{"$f":"VLOOKUP(DropDownList!$B$47,CntyQryCensus!$A$156:$FR$198,DQ$1)","v":3808},{"$f":"VLOOKUP(DropDownList!$B$47,CntyQryCensus!$A$156:$FR$198,DR$1)","v":513},{"$f":"VLOOKUP(DropDownList!$B$47,CntyQryCensus!$A$156:$FR$198,DS$1)","v":410},{"$f":"VLOOKUP(DropDownList!$B$47,CntyQryCensus!$A$156:$FR$198,DT$1)","v":3295},{"$f":"VLOOKUP(DropDownList!$B$47,CntyQryCensus!$A$156:$FR$198,DU$1)","v":2805},{"$f":"VLOOKUP(DropDownList!$B$47,CntyQryCensus!$A$156:$FR$198,DV$1)","v":446},{"$f":"VLOOKUP(DropDownList!$B$47,CntyQryCensus!$A$156:$FR$198,DW$1)","v":97},{"$f":"VLOOKUP(DropDownList!$B$47,CntyQryCensus!$A$156:$FR$198,DX$1)","v":251},{"$f":"VLOOKUP(DropDownList!$B$47,CntyQryCensus!$A$156:$FR$198,DY$1)","v":76},{"$f":"VLOOKUP(DropDownList!$B$47,CntyQryCensus!$A$156:$FR$198,DZ$1)","v":4802},{"$f":"VLOOKUP(DropDownList!$B$47,CntyQryCensus!$A$156:$FR$198,EA$1)","v":3551},{"$f":"VLOOKUP(DropDownList!$B$47,CntyQryCensus!$A$156:$FR$198,EB$1)","v":3551},{"$f":"VLOOKUP(DropDownList!$B$47,CntyQryCensus!$A$156:$FR$198,EC$1)","v":3459},{"$f":"VLOOKUP(DropDownList!$B$47,CntyQryCensus!$A$156:$FR$198,ED$1)","v":1781},{"$f":"VLOOKUP(DropDownList!$B$47,CntyQryCensus!$A$156:$FR$198,EE$1)","v":1550},{"$f":"VLOOKUP(DropDownList!$B$47,CntyQryCensus!$A$156:$FR$198,EF$1)","v":122},{"$f":"VLOOKUP(DropDownList!$B$47,CntyQryCensus!$A$156:$FR$198,EG$1)","v":278},{"$f":"VLOOKUP(DropDownList!$B$47,CntyQryCensus!$A$156:$FR$198,EH$1)","v":865},{"$f":"VLOOKUP(DropDownList!$B$47,CntyQryCensus!$A$156:$FR$198,EI$1)","v":826},{"$f":"VLOOKUP(DropDownList!$B$47,CntyQryCensus!$A$156:$FR$198,EJ$1)","v":39},{"$f":"VLOOKUP(DropDownList!$B$47,CntyQryCensus!$A$156:$FR$198,EK$1)","v":285},{"$f":"VLOOKUP(DropDownList!$B$47,CntyQryCensus!$A$156:$FR$198,EL$1)","v":271},{"$f":"VLOOKUP(DropDownList!$B$47,CntyQryCensus!$A$156:$FR$198,EM$1)","v":14},{"$f":"VLOOKUP(DropDownList!$B$47,CntyQryCensus!$A$156:$FR$198,EN$1)","v":231},{"$f":"VLOOKUP(DropDownList!$B$47,CntyQryCensus!$A$156:$FR$198,EO$1)","v":91},{"$f":"VLOOKUP(DropDownList!$B$47,CntyQryCensus!$A$156:$FR$198,EP$1)","v":0},{"$f":"VLOOKUP(DropDownList!$B$47,CntyQryCensus!$A$156:$FR$198,EQ$1)","v":23},{"$f":"VLOOKUP(DropDownList!$B$47,CntyQryCensus!$A$156:$FR$198,ER$1)","v":46},{"$f":"VLOOKUP(DropDownList!$B$47,CntyQryCensus!$A$156:$FR$198,ES$1)","v":22},{"$f":"VLOOKUP(DropDownList!$B$47,CntyQryCensus!$A$156:$FR$198,ET$1)","v":140},{"$f":"VLOOKUP(DropDownList!$B$47,CntyQryCensus!$A$156:$FR$198,EU$1)","v":20},{"$f":"VLOOKUP(DropDownList!$B$47,CntyQryCensus!$A$156:$FR$198,EV$1)","v":49},{"$f":"VLOOKUP(DropDownList!$B$47,CntyQryCensus!$A$156:$FR$198,EW$1)","v":53},{"$f":"VLOOKUP(DropDownList!$B$47,CntyQryCensus!$A$156:$FR$198,EX$1)","v":18},{"$f":"VLOOKUP(DropDownList!$B$47,CntyQryCensus!$A$156:$FR$198,EY$1)","v":3459},{"$f":"VLOOKUP(DropDownList!$B$47,CntyQryCensus!$A$156:$FR$198,EZ$1)","v":46},{"$f":"VLOOKUP(DropDownList!$B$47,CntyQryCensus!$A$156:$FR$198,FA$1)","v":150},{"$f":"VLOOKUP(DropDownList!$B$47,CntyQryCensus!$A$156:$FR$198,FB$1)","v":668},{"$f":"VLOOKUP(DropDownList!$B$47,CntyQryCensus!$A$156:$FR$198,FC$1)","v":156},{"$f":"VLOOKUP(DropDownList!$B$47,CntyQryCensus!$A$156:$FR$198,FD$1)","v":517},{"$f":"VLOOKUP(DropDownList!$B$47,CntyQryCensus!$A$156:$FR$198,FE$1)","v":126},{"$f":"VLOOKUP(DropDownList!$B$47,CntyQryCensus!$A$156:$FR$198,FF$1)","v":138},{"$f":"VLOOKUP(DropDownList!$B$47,CntyQryCensus!$A$156:$FR$198,FG$1)","v":244},{"$f":"VLOOKUP(DropDownList!$B$47,CntyQryCensus!$A$156:$FR$198,FH$1)","v":363},{"$f":"VLOOKUP(DropDownList!$B$47,CntyQryCensus!$A$156:$FR$198,FI$1)","v":696},{"$f":"VLOOKUP(DropDownList!$B$47,CntyQryCensus!$A$156:$FR$198,FJ$1)","v":193},{"$f":"VLOOKUP(DropDownList!$B$47,CntyQryCensus!$A$156:$FR$198,FK$1)","v":60},{"$f":"VLOOKUP(DropDownList!$B$47,CntyQryCensus!$A$156:$FR$198,FL$1)","v":102},{"$f":"VLOOKUP(DropDownList!$B$47,CntyQryCensus!$A$156:$FR$198,FM$1)","v":1670},{"$f":"VLOOKUP(DropDownList!$B$47,CntyQryCensus!$A$156:$FR$198,FN$1)","v":297},{"$f":"VLOOKUP(DropDownList!$B$47,CntyQryCensus!$A$156:$FR$198,FO$1)","v":856},{"$f":"VLOOKUP(DropDownList!$B$47,CntyQryCensus!$A$156:$FR$198,FP$1)","v":22},{"$f":"VLOOKUP(DropDownList!$B$47,CntyQryCensus!$A$156:$FR$198,FQ$1)","v":172},{"$f":"VLOOKUP(DropDownList!$B$47,CntyQryCensus!$A$156:$FR$198,FR$1)","v":442}]
[]
[]
["Census 2000 SummaryFile3 Sample Data  -  SF3TownQry2aIncomeChar"]
["NAME","LOGRECNO","COUNTY","TotalPop","P52Households1","P52HHInc<10K","P52HHInc10to15K","P52HHInc15to20K","P52HHInc20to25K","P52HHInc25to30K","P52HHInc30to35K","P52HHInc35to40K","P52HHInc40to45K","P52HHInc45to50K","P52HHInc50to60K","P52HHInc60to75K","P52HHInc75to100K","P52HHInc100to125K","P52HHInc125to150K","P52HHInc150to200K","P52HHInc>200K","P53MedianHHInc","P54AggregHHInc","P55Households2","P55HHUnder25yrs","P55HH<25HHInc<10K","P55HH<25HHInc10to15K","P55HH<25HHInc15to20K","P55HH<25HHInc20to25K","P55HH<25HHInc25to30K","P55HH<25HHInc30to35K","P55HH<25HHInc35to40K","P55HH<25HHInc40to45K","P55HH<25HHInc45to50K","P55HH<25HHInc50to60K","P55HH<25HHInc60to75K","P55HH<25HHInc75to100K","P55HH<25HHInc100to125K","P55HH<25HHInc125to150K","P55HH<25HHInc150to200K","P55HH<25HHInc>200K","P55HH25to34yrs","P55HH25to34HHInc<10K","P55HH25to34HHInc10to15K","P55HH25to34HHInc15to20K","P55HH25to34HHInc20to25K","P55HH25to34HHInc25to30K","P55HH25to34HHInc30to35K","P55HH25to34HHInc35to40K","P55HH25to34HHInc40to45K","P55HH25to34HHInc45to50K","P55HH25to34HHInc50to60K","P55HH25to34HHInc60to75K","P55HH25to34HHInc75to100K","P55HH25to34HHInc100to125K","P55HH25to34HHInc125to150K","P55HH25to34HHInc150to200K","P55HH25to34HHInc>200K","P55HH35to44yrs","P55HH35to44HHInc<10K","P55HH35to44HHInc10to15K","P55HH35to44HHInc15to20K","P55HH35to44HHInc20to25K","P55HH35to44HHInc25to30K","P55HH35to44HHInc30to35K","P55HH35to44HHInc35to40K","P55HH35to44HHInc40to45K","P55HH35to44HHInc45to50K","P55HH35to44HHInc50to60K","P55HH35to44HHInc60to75K","P55HH35to44HHInc75to100K","P55HH35to44HHInc100to125K","P55HH35to44HHInc125to150K","P55HH35to44HHInc150to200K","P55HH35to44HHInc>200K","P55HH45to54yrs","P55HH45to55HHInc<10K","P55HH45to55HHInc10to15K","P55HH45to55HHInc15to20K","P55HH45to55HHInc20to25K","P55HH45to55HHInc25to30K","P55HH45to55HHInc30to35K","P55HH45to55HHInc35to40K","P55HH45to55HHInc40to45K","P55HH45to55HHInc45to50K","P55HH45to55HHInc50to60K","P55HH45to55HHInc60to75K","P55HH45to55HHInc75to100K","P55HH45to55HHInc100to125K","P55HH45to55HHInc125to150K","P55HH45to55HHInc150to200K","P55HH45to55HHInc>200K","P55HH55to64yrs","P55HH55to64HHInc<10K","P55HH55to64HHInc10to15K","P55HH55to64HHInc15to20K","P55HH55to64HHInc20to25K","P55HH55to64HHInc25to30K","P55HH55to64HHInc30to35K","P55HH55to64HHInc35to40K","P55HH55to64HHInc40to45K","P55HH55to64HHInc45to50K","P55HH55to64HHInc50to60K","P55HH55to64HHInc60to75K","P55HH55to64HHInc75to100K","P55HH55to64HHInc100to125K","P55HH55to64HHInc125to150K","P55HH55to64HHInc150to200K","P55HH55to64HHInc>200K","P55HH65to74yrs","P55HH65to74HHInc<10K","P55HH65to74HHInc10to15K","P55HH65to74HHInc15to20K","P55HH65to74HHInc20to25K","P55HH65to74HHInc25to30K","P55HH65to74HHInc30to35K","P55HH65to74HHInc35to40K","P55HH65to74HHInc40to45K","P55HH65to74HHInc45to50K","P55HH65to74HHInc50to60K","P55HH65to74HHInc60to75K","P55HH65to74HHInc75to100K","P55HH65to74HHInc100to125K","P55HH65to74HHInc125to150K","P55HH65to74HHInc150to200K","P55HH65to74HHInc>200K","P55HH>75yrs","P55HH>75HHInc<10K","P55HH>75HHInc10to15K","P55HH>75HHInc15to20K","P55HH>75HHInc20to25K","P55HH>75HHInc25to30K","P55HH>75HHInc30to35K","P55HH>75HHInc35to40K","P55HH>75HHInc40to45K","P55HH>75HHInc45to50K","P55HH>75HHInc50to60K","P55HH>75HHInc60to75K","P55HH>75HHInc75to100K","P55HH>75HHInc100to125K","P55HH>75HHInc125to150K","P55HH>75HHInc150to200K","P55HH>75HHInc>200K","P56MedHHInc","P56MedHHIncHH<25y","P56MedHHIncHH25to34y","P56MedHHIncHH35to44y","P56MedHHIncHH45to54y","P56MedHHIncHH55to64y","P56MedHHIncHH65to74y","P56MedHHIncHH>75y","P58Households3","P58HHwithEarnings","P58HHNoEarnings","P59HHwWageSalInc","P59HHNoWageSalInc","P60HHwSelfEmpInc","P60HHNoSelfEmpInc","P61HHwIndDivInc","P61HHNoIndDivInc","P62HHwSocSecInc","P62HHNoSocSecInc","P63HHwSSI","P63HHNoSSI","P64HHwPubAssInc","P64HHNoPubAssInc","P65HHwRetInc","P65HHNoRetInc","P66HHwOtherTypInc","P66HHNoOtherTypInc","P67AggregEarnings","P68AggregWageSalInc","P69AggregSelfEmpInc","P70AggregIntDivInc","P71AggregSocSecInc","P72AggregSSIInc","P73AggregPublicAssInc","P74AggregRetireInc","P76Families1","P76FamInc<10K","P76FamInc10to15K","P76FamInc15to20K","P76FamInc20to25K","P76FamInc25to30K","P76FamInc30to35K","P76FamInc35to40K","P76FamInc40to45K","P76FamInc45to50K","P76FamInc50to60K","P76FamInc60to75K","P76FamInc75to100K","P76FamInc100to125K","P76FamInc125to150K","P76FamInc150to200K","P76FamInc>200K","P77MedFamInc","P78AggregFamInc","P79NonFamHH","P79NonFamHHwInc<10K","P79NonFamHHwInc10to15K","P79NonFamHHwInc15to20K","P79NonFamHHwInc20to25K","P79NonFamHHwInc25to30K","P79NonFamHHwInc30to35K","P79NonFamHHwInc35to40K","P79NonFamHHwInc40to45K","P79NonFamHHwInc45to50K","P79NonFamHHwInc50to60K","P79NonFamHHwInc60to75K","P79NonFamHHwInc75to100K","P79NonFamHHwInc100to125K","P79NonFamHHwInc125to150K","P79NonFamHHwInc150to200K","P79NonFamHHwInc200KorMore","P80MedNonFamInc","P82PerCapitaInc"]
[{"$f":"VLOOKUP(DropDownList!$B$47,CntyQryCensus!$A$206:$HH$248,A$1)","v":"Atkinson"},{"$f":"VLOOKUP(DropDownList!$B$47,CntyQryCensus!$A$206:$HH$248,B$1)","v":"0003039"},{"$f":"VLOOKUP(DropDownList!$B$47,CntyQryCensus!$A$206:$HH$248,C$1)","v":"02340"},{"$f":"VLOOKUP(DropDownList!$B$47,CntyQryCensus!$A$206:$HH$248,D$1)","v":6178},{"$f":"VLOOKUP(DropDownList!$B$47,CntyQryCensus!$A$206:$HH$248,E$1)","v":2326},{"$f":"VLOOKUP(DropDownList!$B$47,CntyQryCensus!$A$206:$HH$248,F$1)","v":80},{"$f":"VLOOKUP(DropDownList!$B$47,CntyQryCensus!$A$206:$HH$248,G$1)","v":77},{"$f":"VLOOKUP(DropDownList!$B$47,CntyQryCensus!$A$206:$HH$248,H$1)","v":42},{"$f":"VLOOKUP(DropDownList!$B$47,CntyQryCensus!$A$206:$HH$248,I$1)","v":91},{"$f":"VLOOKUP(DropDownList!$B$47,CntyQryCensus!$A$206:$HH$248,J$1)","v":46},{"$f":"VLOOKUP(DropDownList!$B$47,CntyQryCensus!$A$206:$HH$248,K$1)","v":74},{"$f":"VLOOKUP(DropDownList!$B$47,CntyQryCensus!$A$206:$HH$248,L$1)","v":85},{"$f":"VLOOKUP(DropDownList!$B$47,CntyQryCensus!$A$206:$HH$248,M$1)","v":169},{"$f":"VLOOKUP(DropDownList!$B$47,CntyQryCensus!$A$206:$HH$248,N$1)","v":94},{"$f":"VLOOKUP(DropDownList!$B$47,CntyQryCensus!$A$206:$HH$248,O$1)","v":212},{"$f":"VLOOKUP(DropDownList!$B$47,CntyQryCensus!$A$206:$HH$248,P$1)","v":273},{"$f":"VLOOKUP(DropDownList!$B$47,CntyQryCensus!$A$206:$HH$248,Q$1)","v":405},{"$f":"VLOOKUP(DropDownList!$B$47,CntyQryCensus!$A$206:$HH$248,R$1)","v":267},{"$f":"VLOOKUP(DropDownList!$B$47,CntyQryCensus!$A$206:$HH$248,S$1)","v":182},{"$f":"VLOOKUP(DropDownList!$B$47,CntyQryCensus!$A$206:$HH$248,T$1)","v":111},{"$f":"VLOOKUP(DropDownList!$B$47,CntyQryCensus!$A$206:$HH$248,U$1)","v":118},{"$f":"VLOOKUP(DropDownList!$B$47,CntyQryCensus!$A$206:$HH$248,V$1)","v":69729},{"$f":"VLOOKUP(DropDownList!$B$47,CntyQryCensus!$A$206:$HH$248,W$1)","v":186834100},{"$f":"VLOOKUP(DropDownList!$B$47,CntyQryCensus!$A$206:$HH$248,X$1)","v":2326},{"$f":"VLOOKUP(DropDownList!$B$47,CntyQryCensus!$A$206:$HH$248,Y$1)","v":9},{"$f":"VLOOKUP(DropDownList!$B$47,CntyQryCensus!$A$206:$HH$248,Z$1)","v":0},{"$f":"VLOOKUP(DropDownList!$B$47,CntyQryCensus!$A$206:$HH$248,AA$1)","v":0},{"$f":"VLOOKUP(DropDownList!$B$47,CntyQryCensus!$A$206:$HH$248,AB$1)","v":0},{"$f":"VLOOKUP(DropDownList!$B$47,CntyQryCensus!$A$206:$HH$248,AC$1)","v":0},{"$f":"VLOOKUP(DropDownList!$B$47,CntyQryCensus!$A$206:$HH$248,AD$1)","v":0},{"$f":"VLOOKUP(DropDownList!$B$47,CntyQryCensus!$A$206:$HH$248,AE$1)","v":0},{"$f":"VLOOKUP(DropDownList!$B$47,CntyQryCensus!$A$206:$HH$248,AF$1)","v":0},{"$f":"VLOOKUP(DropDownList!$B$47,CntyQryCensus!$A$206:$HH$248,AG$1)","v":0},{"$f":"VLOOKUP(DropDownList!$B$47,CntyQryCensus!$A$206:$HH$248,AH$1)","v":9},{"$f":"VLOOKUP(DropDownList!$B$47,CntyQryCensus!$A$206:$HH$248,AI$1)","v":0},{"$f":"VLOOKUP(DropDownList!$B$47,CntyQryCensus!$A$206:$HH$248,AJ$1)","v":0},{"$f":"VLOOKUP(DropDownList!$B$47,CntyQryCensus!$A$206:$HH$248,AK$1)","v":0},{"$f":"VLOOKUP(DropDownList!$B$47,CntyQryCensus!$A$206:$HH$248,AL$1)","v":0},{"$f":"VLOOKUP(DropDownList!$B$47,CntyQryCensus!$A$206:$HH$248,AM$1)","v":0},{"$f":"VLOOKUP(DropDownList!$B$47,CntyQryCensus!$A$206:$HH$248,AN$1)","v":0},{"$f":"VLOOKUP(DropDownList!$B$47,CntyQryCensus!$A$206:$HH$248,AO$1)","v":0},{"$f":"VLOOKUP(DropDownList!$B$47,CntyQryCensus!$A$206:$HH$248,AP$1)","v":212},{"$f":"VLOOKUP(DropDownList!$B$47,CntyQryCensus!$A$206:$HH$248,AQ$1)","v":8},{"$f":"VLOOKUP(DropDownList!$B$47,CntyQryCensus!$A$206:$HH$248,AR$1)","v":9},{"$f":"VLOOKUP(DropDownList!$B$47,CntyQryCensus!$A$206:$HH$248,AS$1)","v":0},{"$f":"VLOOKUP(DropDownList!$B$47,CntyQryCensus!$A$206:$HH$248,AT$1)","v":0},{"$f":"VLOOKUP(DropDownList!$B$47,CntyQryCensus!$A$206:$HH$248,AU$1)","v":0},{"$f":"VLOOKUP(DropDownList!$B$47,CntyQryCensus!$A$206:$HH$248,AV$1)","v":0},{"$f":"VLOOKUP(DropDownList!$B$47,CntyQryCensus!$A$206:$HH$248,AW$1)","v":9},{"$f":"VLOOKUP(DropDownList!$B$47,CntyQryCensus!$A$206:$HH$248,AX$1)","v":10},{"$f":"VLOOKUP(DropDownList!$B$47,CntyQryCensus!$A$206:$HH$248,AY$1)","v":0},{"$f":"VLOOKUP(DropDownList!$B$47,CntyQryCensus!$A$206:$HH$248,AZ$1)","v":34},{"$f":"VLOOKUP(DropDownList!$B$47,CntyQryCensus!$A$206:$HH$248,BA$1)","v":72},{"$f":"VLOOKUP(DropDownList!$B$47,CntyQryCensus!$A$206:$HH$248,BB$1)","v":36},{"$f":"VLOOKUP(DropDownList!$B$47,CntyQryCensus!$A$206:$HH$248,BC$1)","v":16},{"$f":"VLOOKUP(DropDownList!$B$47,CntyQryCensus!$A$206:$HH$248,BD$1)","v":0},{"$f":"VLOOKUP(DropDownList!$B$47,CntyQryCensus!$A$206:$HH$248,BE$1)","v":18},{"$f":"VLOOKUP(DropDownList!$B$47,CntyQryCensus!$A$206:$HH$248,BF$1)","v":0},{"$f":"VLOOKUP(DropDownList!$B$47,CntyQryCensus!$A$206:$HH$248,BG$1)","v":608},{"$f":"VLOOKUP(DropDownList!$B$47,CntyQryCensus!$A$206:$HH$248,BH$1)","v":16},{"$f":"VLOOKUP(DropDownList!$B$47,CntyQryCensus!$A$206:$HH$248,BI$1)","v":7},{"$f":"VLOOKUP(DropDownList!$B$47,CntyQryCensus!$A$206:$HH$248,BJ$1)","v":0},{"$f":"VLOOKUP(DropDownList!$B$47,CntyQryCensus!$A$206:$HH$248,BK$1)","v":0},{"$f":"VLOOKUP(DropDownList!$B$47,CntyQryCensus!$A$206:$HH$248,BL$1)","v":25},{"$f":"VLOOKUP(DropDownList!$B$47,CntyQryCensus!$A$206:$HH$248,BM$1)","v":18},{"$f":"VLOOKUP(DropDownList!$B$47,CntyQryCensus!$A$206:$HH$248,BN$1)","v":8},{"$f":"VLOOKUP(DropDownList!$B$47,CntyQryCensus!$A$206:$HH$248,BO$1)","v":51},{"$f":"VLOOKUP(DropDownList!$B$47,CntyQryCensus!$A$206:$HH$248,BP$1)","v":28},{"$f":"VLOOKUP(DropDownList!$B$47,CntyQryCensus!$A$206:$HH$248,BQ$1)","v":29},{"$f":"VLOOKUP(DropDownList!$B$47,CntyQryCensus!$A$206:$HH$248,BR$1)","v":92},{"$f":"VLOOKUP(DropDownList!$B$47,CntyQryCensus!$A$206:$HH$248,BS$1)","v":99},{"$f":"VLOOKUP(DropDownList!$B$47,CntyQryCensus!$A$206:$HH$248,BT$1)","v":89},{"$f":"VLOOKUP(DropDownList!$B$47,CntyQryCensus!$A$206:$HH$248,BU$1)","v":64},{"$f":"VLOOKUP(DropDownList!$B$47,CntyQryCensus!$A$206:$HH$248,BV$1)","v":60},{"$f":"VLOOKUP(DropDownList!$B$47,CntyQryCensus!$A$206:$HH$248,BW$1)","v":22},{"$f":"VLOOKUP(DropDownList!$B$47,CntyQryCensus!$A$206:$HH$248,BX$1)","v":616},{"$f":"VLOOKUP(DropDownList!$B$47,CntyQryCensus!$A$206:$HH$248,BY$1)","v":12},{"$f":"VLOOKUP(DropDownList!$B$47,CntyQryCensus!$A$206:$HH$248,BZ$1)","v":22},{"$f":"VLOOKUP(DropDownList!$B$47,CntyQryCensus!$A$206:$HH$248,CA$1)","v":24},{"$f":"VLOOKUP(DropDownList!$B$47,CntyQryCensus!$A$206:$HH$248,CB$1)","v":23},{"$f":"VLOOKUP(DropDownList!$B$47,CntyQryCensus!$A$206:$HH$248,CC$1)","v":12},{"$f":"VLOOKUP(DropDownList!$B$47,CntyQryCensus!$A$206:$HH$248,CD$1)","v":9},{"$f":"VLOOKUP(DropDownList!$B$47,CntyQryCensus!$A$206:$HH$248,CE$1)","v":33},{"$f":"VLOOKUP(DropDownList!$B$47,CntyQryCensus!$A$206:$HH$248,CF$1)","v":25},{"$f":"VLOOKUP(DropDownList!$B$47,CntyQryCensus!$A$206:$HH$248,CG$1)","v":7},{"$f":"VLOOKUP(DropDownList!$B$47,CntyQryCensus!$A$206:$HH$248,CH$1)","v":11},{"$f":"VLOOKUP(DropDownList!$B$47,CntyQryCensus!$A$206:$HH$248,CI$1)","v":24},{"$f":"VLOOKUP(DropDownList!$B$47,CntyQryCensus!$A$206:$HH$248,CJ$1)","v":148},{"$f":"VLOOKUP(DropDownList!$B$47,CntyQryCensus!$A$206:$HH$248,CK$1)","v":111},{"$f":"VLOOKUP(DropDownList!$B$47,CntyQryCensus!$A$206:$HH$248,CL$1)","v":59},{"$f":"VLOOKUP(DropDownList!$B$47,CntyQryCensus!$A$206:$HH$248,CM$1)","v":17},{"$f":"VLOOKUP(DropDownList!$B$47,CntyQryCensus!$A$206:$HH$248,CN$1)","v":79},{"$f":"VLOOKUP(DropDownList!$B$47,CntyQryCensus!$A$206:$HH$248,CO$1)","v":438},{"$f":"VLOOKUP(DropDownList!$B$47,CntyQryCensus!$A$206:$HH$248,CP$1)","v":9},{"$f":"VLOOKUP(DropDownList!$B$47,CntyQryCensus!$A$206:$HH$248,CQ$1)","v":5},{"$f":"VLOOKUP(DropDownList!$B$47,CntyQryCensus!$A$206:$HH$248,CR$1)","v":9},{"$f":"VLOOKUP(DropDownList!$B$47,CntyQryCensus!$A$206:$HH$248,CS$1)","v":17},{"$f":"VLOOKUP(DropDownList!$B$47,CntyQryCensus!$A$206:$HH$248,CT$1)","v":0},{"$f":"VLOOKUP(DropDownList!$B$47,CntyQryCensus!$A$206:$HH$248,CU$1)","v":0},{"$f":"VLOOKUP(DropDownList!$B$47,CntyQryCensus!$A$206:$HH$248,CV$1)","v":26},{"$f":"VLOOKUP(DropDownList!$B$47,CntyQryCensus!$A$206:$HH$248,CW$1)","v":25},{"$f":"VLOOKUP(DropDownList!$B$47,CntyQryCensus!$A$206:$HH$248,CX$1)","v":25},{"$f":"VLOOKUP(DropDownList!$B$47,CntyQryCensus!$A$206:$HH$248,CY$1)","v":71},{"$f":"VLOOKUP(DropDownList!$B$47,CntyQryCensus!$A$206:$HH$248,CZ$1)","v":58},{"$f":"VLOOKUP(DropDownList!$B$47,CntyQryCensus!$A$206:$HH$248,DA$1)","v":91},{"$f":"VLOOKUP(DropDownList!$B$47,CntyQryCensus!$A$206:$HH$248,DB$1)","v":28},{"$f":"VLOOKUP(DropDownList!$B$47,CntyQryCensus!$A$206:$HH$248,DC$1)","v":51},{"$f":"VLOOKUP(DropDownList!$B$47,CntyQryCensus!$A$206:$HH$248,DD$1)","v":8},{"$f":"VLOOKUP(DropDownList!$B$47,CntyQryCensus!$A$206:$HH$248,DE$1)","v":15},{"$f":"VLOOKUP(DropDownList!$B$47,CntyQryCensus!$A$206:$HH$248,DF$1)","v":301},{"$f":"VLOOKUP(DropDownList!$B$47,CntyQryCensus!$A$206:$HH$248,DG$1)","v":17},{"$f":"VLOOKUP(DropDownList!$B$47,CntyQryCensus!$A$206:$HH$248,DH$1)","v":18},{"$f":"VLOOKUP(DropDownList!$B$47,CntyQryCensus!$A$206:$HH$248,DI$1)","v":9},{"$f":"VLOOKUP(DropDownList!$B$47,CntyQryCensus!$A$206:$HH$248,DJ$1)","v":35},{"$f":"VLOOKUP(DropDownList!$B$47,CntyQryCensus!$A$206:$HH$248,DK$1)","v":9},{"$f":"VLOOKUP(DropDownList!$B$47,CntyQryCensus!$A$206:$HH$248,DL$1)","v":32},{"$f":"VLOOKUP(DropDownList!$B$47,CntyQryCensus!$A$206:$HH$248,DM$1)","v":9},{"$f":"VLOOKUP(DropDownList!$B$47,CntyQryCensus!$A$206:$HH$248,DN$1)","v":33},{"$f":"VLOOKUP(DropDownList!$B$47,CntyQryCensus!$A$206:$HH$248,DO$1)","v":18},{"$f":"VLOOKUP(DropDownList!$B$47,CntyQryCensus!$A$206:$HH$248,DP$1)","v":39},{"$f":"VLOOKUP(DropDownList!$B$47,CntyQryCensus!$A$206:$HH$248,DQ$1)","v":27},{"$f":"VLOOKUP(DropDownList!$B$47,CntyQryCensus!$A$206:$HH$248,DR$1)","v":22},{"$f":"VLOOKUP(DropDownList!$B$47,CntyQryCensus!$A$206:$HH$248,DS$1)","v":23},{"$f":"VLOOKUP(DropDownList!$B$47,CntyQryCensus!$A$206:$HH$248,DT$1)","v":8},{"$f":"VLOOKUP(DropDownList!$B$47,CntyQryCensus!$A$206:$HH$248,DU$1)","v":0},{"$f":"VLOOKUP(DropDownList!$B$47,CntyQryCensus!$A$206:$HH$248,DV$1)","v":2},{"$f":"VLOOKUP(DropDownList!$B$47,CntyQryCensus!$A$206:$HH$248,DW$1)","v":142},{"$f":"VLOOKUP(DropDownList!$B$47,CntyQryCensus!$A$206:$HH$248,DX$1)","v":18},{"$f":"VLOOKUP(DropDownList!$B$47,CntyQryCensus!$A$206:$HH$248,DY$1)","v":16},{"$f":"VLOOKUP(DropDownList!$B$47,CntyQryCensus!$A$206:$HH$248,DZ$1)","v":0},{"$f":"VLOOKUP(DropDownList!$B$47,CntyQryCensus!$A$206:$HH$248,EA$1)","v":16},{"$f":"VLOOKUP(DropDownList!$B$47,CntyQryCensus!$A$206:$HH$248,EB$1)","v":0},{"$f":"VLOOKUP(DropDownList!$B$47,CntyQryCensus!$A$206:$HH$248,EC$1)","v":15},{"$f":"VLOOKUP(DropDownList!$B$47,CntyQryCensus!$A$206:$HH$248,ED$1)","v":0},{"$f":"VLOOKUP(DropDownList!$B$47,CntyQryCensus!$A$206:$HH$248,EE$1)","v":25},{"$f":"VLOOKUP(DropDownList!$B$47,CntyQryCensus!$A$206:$HH$248,EF$1)","v":7},{"$f":"VLOOKUP(DropDownList!$B$47,CntyQryCensus!$A$206:$HH$248,EG$1)","v":28},{"$f":"VLOOKUP(DropDownList!$B$47,CntyQryCensus!$A$206:$HH$248,EH$1)","v":0},{"$f":"VLOOKUP(DropDownList!$B$47,CntyQryCensus!$A$206:$HH$248,EI$1)","v":9},{"$f":"VLOOKUP(DropDownList!$B$47,CntyQryCensus!$A$206:$HH$248,EJ$1)","v":0},{"$f":"VLOOKUP(DropDownList!$B$47,CntyQryCensus!$A$206:$HH$248,EK$1)","v":0},{"$f":"VLOOKUP(DropDownList!$B$47,CntyQryCensus!$A$206:$HH$248,EL$1)","v":8},{"$f":"VLOOKUP(DropDownList!$B$47,CntyQryCensus!$A$206:$HH$248,EM$1)","v":0},{"$f":"VLOOKUP(DropDownList!$B$47,CntyQryCensus!$A$206:$HH$248,EN$1)","v":69729},{"$f":"VLOOKUP(DropDownList!$B$47,CntyQryCensus!$A$206:$HH$248,EO$1)","v":48750},{"$f":"VLOOKUP(DropDownList!$B$47,CntyQryCensus!$A$206:$HH$248,EP$1)","v":67586},{"$f":"VLOOKUP(DropDownList!$B$47,CntyQryCensus!$A$206:$HH$248,EQ$1)","v":80000},{"$f":"VLOOKUP(DropDownList!$B$47,CntyQryCensus!$A$206:$HH$248,ER$1)","v":84035},{"$f":"VLOOKUP(DropDownList!$B$47,CntyQryCensus!$A$206:$HH$248,ES$1)","v":66563},{"$f":"VLOOKUP(DropDownList!$B$47,CntyQryCensus!$A$206:$HH$248,ET$1)","v":42946},{"$f":"VLOOKUP(DropDownList!$B$47,CntyQryCensus!$A$206:$HH$248,EU$1)","v":41250},{"$f":"VLOOKUP(DropDownList!$B$47,CntyQryCensus!$A$206:$HH$248,EV$1)","v":2326},{"$f":"VLOOKUP(DropDownList!$B$47,CntyQryCensus!$A$206:$HH$248,EW$1)","v":2037},{"$f":"VLOOKUP(DropDownList!$B$47,CntyQryCensus!$A$206:$HH$248,EX$1)","v":289},{"$f":"VLOOKUP(DropDownList!$B$47,CntyQryCensus!$A$206:$HH$248,EY$1)","v":2000},{"$f":"VLOOKUP(DropDownList!$B$47,CntyQryCensus!$A$206:$HH$248,EZ$1)","v":326},{"$f":"VLOOKUP(DropDownList!$B$47,CntyQryCensus!$A$206:$HH$248,FA$1)","v":356},{"$f":"VLOOKUP(DropDownList!$B$47,CntyQryCensus!$A$206:$HH$248,FB$1)","v":1970},{"$f":"VLOOKUP(DropDownList!$B$47,CntyQryCensus!$A$206:$HH$248,FC$1)","v":1231},{"$f":"VLOOKUP(DropDownList!$B$47,CntyQryCensus!$A$206:$HH$248,FD$1)","v":1095},{"$f":"VLOOKUP(DropDownList!$B$47,CntyQryCensus!$A$206:$HH$248,FE$1)","v":589},{"$f":"VLOOKUP(DropDownList!$B$47,CntyQryCensus!$A$206:$HH$248,FF$1)","v":1737},{"$f":"VLOOKUP(DropDownList!$B$47,CntyQryCensus!$A$206:$HH$248,FG$1)","v":61},{"$f":"VLOOKUP(DropDownList!$B$47,CntyQryCensus!$A$206:$HH$248,FH$1)","v":2265},{"$f":"VLOOKUP(DropDownList!$B$47,CntyQryCensus!$A$206:$HH$248,FI$1)","v":33},{"$f":"VLOOKUP(DropDownList!$B$47,CntyQryCensus!$A$206:$HH$248,FJ$1)","v":2293},{"$f":"VLOOKUP(DropDownList!$B$47,CntyQryCensus!$A$206:$HH$248,FK$1)","v":476},{"$f":"VLOOKUP(DropDownList!$B$47,CntyQryCensus!$A$206:$HH$248,FL$1)","v":1850},{"$f":"VLOOKUP(DropDownList!$B$47,CntyQryCensus!$A$206:$HH$248,FM$1)","v":244},{"$f":"VLOOKUP(DropDownList!$B$47,CntyQryCensus!$A$206:$HH$248,FN$1)","v":2082},{"$f":"VLOOKUP(DropDownList!$B$47,CntyQryCensus!$A$206:$HH$248,FO$1)","v":158909200},{"$f":"VLOOKUP(DropDownList!$B$47,CntyQryCensus!$A$206:$HH$248,FP$1)","v":149002200},{"$f":"VLOOKUP(DropDownList!$B$47,CntyQryCensus!$A$206:$HH$248,FQ$1)","v":9907000},{"$f":"VLOOKUP(DropDownList!$B$47,CntyQryCensus!$A$206:$HH$248,FR$1)","v":11253600},{"$f":"VLOOKUP(DropDownList!$B$47,CntyQryCensus!$A$206:$HH$248,FS$1)","v":6617000},{"$f":"VLOOKUP(DropDownList!$B$47,CntyQryCensus!$A$206:$HH$248,FT$1)","v":428800},{"$f":"VLOOKUP(DropDownList!$B$47,CntyQryCensus!$A$206:$HH$248,FU$1)","v":29900},{"$f":"VLOOKUP(DropDownList!$B$47,CntyQryCensus!$A$206:$HH$248,FV$1)","v":8026100},{"$f":"VLOOKUP(DropDownList!$B$47,CntyQryCensus!$A$206:$HH$248,FW$1)","v":1781},{"$f":"VLOOKUP(DropDownList!$B$47,CntyQryCensus!$A$206:$HH$248,FX$1)","v":24},{"$f":"VLOOKUP(DropDownList!$B$47,CntyQryCensus!$A$206:$HH$248,FY$1)","v":25},{"$f":"VLOOKUP(DropDownList!$B$47,CntyQryCensus!$A$206:$HH$248,FZ$1)","v":0},{"$f":"VLOOKUP(DropDownList!$B$47,CntyQryCensus!$A$206:$HH$248,GA$1)","v":8},{"$f":"VLOOKUP(DropDownList!$B$47,CntyQryCensus!$A$206:$HH$248,GB$1)","v":26},{"$f":"VLOOKUP(DropDownList!$B$47,CntyQryCensus!$A$206:$HH$248,GC$1)","v":64},{"$f":"VLOOKUP(DropDownList!$B$47,CntyQryCensus!$A$206:$HH$248,GD$1)","v":58},{"$f":"VLOOKUP(DropDownList!$B$47,CntyQryCensus!$A$206:$HH$248,GE$1)","v":118},{"$f":"VLOOKUP(DropDownList!$B$47,CntyQryCensus!$A$206:$HH$248,GF$1)","v":74},{"$f":"VLOOKUP(DropDownList!$B$47,CntyQryCensus!$A$206:$HH$248,GG$1)","v":188},{"$f":"VLOOKUP(DropDownList!$B$47,CntyQryCensus!$A$206:$HH$248,GH$1)","v":249},{"$f":"VLOOKUP(DropDownList!$B$47,CntyQryCensus!$A$206:$HH$248,GI$1)","v":337},{"$f":"VLOOKUP(DropDownList!$B$47,CntyQryCensus!$A$206:$HH$248,GJ$1)","v":243},{"$f":"VLOOKUP(DropDownList!$B$47,CntyQryCensus!$A$206:$HH$248,GK$1)","v":163},{"$f":"VLOOKUP(DropDownList!$B$47,CntyQryCensus!$A$206:$HH$248,GL$1)","v":101},{"$f":"VLOOKUP(DropDownList!$B$47,CntyQryCensus!$A$206:$HH$248,GM$1)","v":103},{"$f":"VLOOKUP(DropDownList!$B$47,CntyQryCensus!$A$206:$HH$248,GN$1)","v":77631},{"$f":"VLOOKUP(DropDownList!$B$47,CntyQryCensus!$A$206:$HH$248,GO$1)","v":159092300},{"$f":"VLOOKUP(DropDownList!$B$47,CntyQryCensus!$A$206:$HH$248,GP$1)","v":545},{"$f":"VLOOKUP(DropDownList!$B$47,CntyQryCensus!$A$206:$HH$248,GQ$1)","v":56},{"$f":"VLOOKUP(DropDownList!$B$47,CntyQryCensus!$A$206:$HH$248,GR$1)","v":52},{"$f":"VLOOKUP(DropDownList!$B$47,CntyQryCensus!$A$206:$HH$248,GS$1)","v":42},{"$f":"VLOOKUP(DropDownList!$B$47,CntyQryCensus!$A$206:$HH$248,GT$1)","v":83},{"$f":"VLOOKUP(DropDownList!$B$47,CntyQryCensus!$A$206:$HH$248,GU$1)","v":29},{"$f":"VLOOKUP(DropDownList!$B$47,CntyQryCensus!$A$206:$HH$248,GV$1)","v":17},{"$f":"VLOOKUP(DropDownList!$B$47,CntyQryCensus!$A$206:$HH$248,GW$1)","v":27},{"$f":"VLOOKUP(DropDownList!$B$47,CntyQryCensus!$A$206:$HH$248,GX$1)","v":68},{"$f":"VLOOKUP(DropDownList!$B$47,CntyQryCensus!$A$206:$HH$248,GY$1)","v":19},{"$f":"VLOOKUP(DropDownList!$B$47,CntyQryCensus!$A$206:$HH$248,GZ$1)","v":24},{"$f":"VLOOKUP(DropDownList!$B$47,CntyQryCensus!$A$206:$HH$248,HA$1)","v":20},{"$f":"VLOOKUP(DropDownList!$B$47,CntyQryCensus!$A$206:$HH$248,HB$1)","v":40},{"$f":"VLOOKUP(DropDownList!$B$47,CntyQryCensus!$A$206:$HH$248,HC$1)","v":24},{"$f":"VLOOKUP(DropDownList!$B$47,CntyQryCensus!$A$206:$HH$248,HD$1)","v":19},{"$f":"VLOOKUP(DropDownList!$B$47,CntyQryCensus!$A$206:$HH$248,HE$1)","v":10},{"$f":"VLOOKUP(DropDownList!$B$47,CntyQryCensus!$A$206:$HH$248,HF$1)","v":15},{"$f":"VLOOKUP(DropDownList!$B$47,CntyQryCensus!$A$206:$HH$248,HG$1)","v":34044},{"$f":"VLOOKUP(DropDownList!$B$47,CntyQryCensus!$A$206:$HH$248,HH$1)","v":30412}]
[]
[]
["Census 2000 SummaryFile3 Sample Data  -  SF3TownQry2bPovertyChar"]
["NAME","LOGRECNO","COUNTY","TotalPop","P52Households1","P82PerCapitaInc","P87PopForPovStatus","P87PopWIncBelowPovStatus","P87PopUnder5yrBelowPoverty","P87Pop5yrBelowPoverty","P87Pop5to11yrBelowPoverty","P87Pop12to17yrBelowPoverty","P87Pop18to64yrBelowPoverty","P87Pop65to74yrBelowPoverty","P87PopOver75yrBelowPoverty","P87PopWIncAbovePovStatus","P87PopUnder5yrAbovePoverty","P87Pop5yrAbovePoverty","P87Pop5to11yrAbovePoverty","P87Pop12to17yrAbovePoverty","P87Pop18to64yrAbovePoverty","P87Pop65to74yrAbovePoverty","P87PopOver75yrAbovePoverty","P90Families","P90FamWIncBelowPov","P90MarCupFamWIncBelowPov","P90MCFamWRltdChld<18WIncBelowPov","P90MCFamWRltdChld<5WIncBelowPov","P90MaleHhlrWIncBelowPov","P90MaleHhlrWRltdChld<18yrWIncBelowPov","P90MaleHhlrWRltdChld<5yrWIncBelowPov","P90FemaleHhlrWIncBelowPov","P90FemaleHhlrWRltdChld<18yWIncBelowPov","P90FemaleHhlrWRltdChld<5yWIncBelowPov","P90FamWIncAbovePov","P90MarCupFamWIncAbovePov","P90MCFamWRltdChld<18WIncAbovePov","P90MCFamWRltdChld<5WIncAbovePov","P90MaleHhlrWIncAbovePov","P90MaleHhlrWRltdChld<18yrWIncAbovePov","P90MaleHhlrWRltdChld<5yrWIncAbovePov","P90FemaleHhlrWIncAbovePov","P90FemaleHhlrWRltdChld<18yWIncAbovePov","P90FemaleHhlrWRltdChld<5yWIncAbovePov","P92Households","P92HHwIncBelowPov","P92FamHHwIncBelowPov","P92MCFamHHwIncBelowPov","P92MaleFamHHwIncBelowPov","P92FemaleFamHHwIncBelowPov","P92NonFamHHwIncBelowPov","P92NonFamMaleHHwIncBelowPov","P92NonFamFemaleHHwIncBelowPov","P92HHwIncAbovePov","P92FamHHwIncAbovePov","P92MCFamHHwIncAbovePov","P92MaleFamHHwIncAbovePov","P92FemaleFamHHwIncAbovePov","P92NonFamHHwIncAbovePov","P92NonFamMaleHHwIncAbovePov","P92NonFamFemaleHHwIncAbovePov"]
[{"$f":"VLOOKUP(DropDownList!$B$47,CntyQryCensus!$A$256:$BI$298,A$1)","v":"Atkinson"},{"$f":"VLOOKUP(DropDownList!$B$47,CntyQryCensus!$A$256:$BI$298,B$1)","v":"0003039"},{"$f":"VLOOKUP(DropDownList!$B$47,CntyQryCensus!$A$256:$BI$298,C$1)","v":"02340"},{"$f":"VLOOKUP(DropDownList!$B$47,CntyQryCensus!$A$256:$BI$298,D$1)","v":6178},{"$f":"VLOOKUP(DropDownList!$B$47,CntyQryCensus!$A$256:$BI$298,E$1)","v":2326},{"$f":"VLOOKUP(DropDownList!$B$47,CntyQryCensus!$A$256:$BI$298,F$1)","v":30412},{"$f":"VLOOKUP(DropDownList!$B$47,CntyQryCensus!$A$256:$BI$298,G$1)","v":6178},{"$f":"VLOOKUP(DropDownList!$B$47,CntyQryCensus!$A$256:$BI$298,H$1)","v":202},{"$f":"VLOOKUP(DropDownList!$B$47,CntyQryCensus!$A$256:$BI$298,I$1)","v":16},{"$f":"VLOOKUP(DropDownList!$B$47,CntyQryCensus!$A$256:$BI$298,J$1)","v":0},{"$f":"VLOOKUP(DropDownList!$B$47,CntyQryCensus!$A$256:$BI$298,K$1)","v":35},{"$f":"VLOOKUP(DropDownList!$B$47,CntyQryCensus!$A$256:$BI$298,L$1)","v":18},{"$f":"VLOOKUP(DropDownList!$B$47,CntyQryCensus!$A$256:$BI$298,M$1)","v":118},{"$f":"VLOOKUP(DropDownList!$B$47,CntyQryCensus!$A$256:$BI$298,N$1)","v":9},{"$f":"VLOOKUP(DropDownList!$B$47,CntyQryCensus!$A$256:$BI$298,O$1)","v":6},{"$f":"VLOOKUP(DropDownList!$B$47,CntyQryCensus!$A$256:$BI$298,P$1)","v":5976},{"$f":"VLOOKUP(DropDownList!$B$47,CntyQryCensus!$A$256:$BI$298,Q$1)","v":395},{"$f":"VLOOKUP(DropDownList!$B$47,CntyQryCensus!$A$256:$BI$298,R$1)","v":35},{"$f":"VLOOKUP(DropDownList!$B$47,CntyQryCensus!$A$256:$BI$298,S$1)","v":544},{"$f":"VLOOKUP(DropDownList!$B$47,CntyQryCensus!$A$256:$BI$298,T$1)","v":477},{"$f":"VLOOKUP(DropDownList!$B$47,CntyQryCensus!$A$256:$BI$298,U$1)","v":3843},{"$f":"VLOOKUP(DropDownList!$B$47,CntyQryCensus!$A$256:$BI$298,V$1)","v":437},{"$f":"VLOOKUP(DropDownList!$B$47,CntyQryCensus!$A$256:$BI$298,W$1)","v":245},{"$f":"VLOOKUP(DropDownList!$B$47,CntyQryCensus!$A$256:$BI$298,X$1)","v":1781},{"$f":"VLOOKUP(DropDownList!$B$47,CntyQryCensus!$A$256:$BI$298,Y$1)","v":41},{"$f":"VLOOKUP(DropDownList!$B$47,CntyQryCensus!$A$256:$BI$298,Z$1)","v":18},{"$f":"VLOOKUP(DropDownList!$B$47,CntyQryCensus!$A$256:$BI$298,AA$1)","v":18},{"$f":"VLOOKUP(DropDownList!$B$47,CntyQryCensus!$A$256:$BI$298,AB$1)","v":8},{"$f":"VLOOKUP(DropDownList!$B$47,CntyQryCensus!$A$256:$BI$298,AC$1)","v":0},{"$f":"VLOOKUP(DropDownList!$B$47,CntyQryCensus!$A$256:$BI$298,AD$1)","v":0},{"$f":"VLOOKUP(DropDownList!$B$47,CntyQryCensus!$A$256:$BI$298,AE$1)","v":0},{"$f":"VLOOKUP(DropDownList!$B$47,CntyQryCensus!$A$256:$BI$298,AF$1)","v":23},{"$f":"VLOOKUP(DropDownList!$B$47,CntyQryCensus!$A$256:$BI$298,AG$1)","v":16},{"$f":"VLOOKUP(DropDownList!$B$47,CntyQryCensus!$A$256:$BI$298,AH$1)","v":0},{"$f":"VLOOKUP(DropDownList!$B$47,CntyQryCensus!$A$256:$BI$298,AI$1)","v":1740},{"$f":"VLOOKUP(DropDownList!$B$47,CntyQryCensus!$A$256:$BI$298,AJ$1)","v":1532},{"$f":"VLOOKUP(DropDownList!$B$47,CntyQryCensus!$A$256:$BI$298,AK$1)","v":709},{"$f":"VLOOKUP(DropDownList!$B$47,CntyQryCensus!$A$256:$BI$298,AL$1)","v":150},{"$f":"VLOOKUP(DropDownList!$B$47,CntyQryCensus!$A$256:$BI$298,AM$1)","v":91},{"$f":"VLOOKUP(DropDownList!$B$47,CntyQryCensus!$A$256:$BI$298,AN$1)","v":49},{"$f":"VLOOKUP(DropDownList!$B$47,CntyQryCensus!$A$256:$BI$298,AO$1)","v":21},{"$f":"VLOOKUP(DropDownList!$B$47,CntyQryCensus!$A$256:$BI$298,AP$1)","v":117},{"$f":"VLOOKUP(DropDownList!$B$47,CntyQryCensus!$A$256:$BI$298,AQ$1)","v":45},{"$f":"VLOOKUP(DropDownList!$B$47,CntyQryCensus!$A$256:$BI$298,AR$1)","v":3},{"$f":"VLOOKUP(DropDownList!$B$47,CntyQryCensus!$A$256:$BI$298,AS$1)","v":2326},{"$f":"VLOOKUP(DropDownList!$B$47,CntyQryCensus!$A$256:$BI$298,AT$1)","v":76},{"$f":"VLOOKUP(DropDownList!$B$47,CntyQryCensus!$A$256:$BI$298,AU$1)","v":41},{"$f":"VLOOKUP(DropDownList!$B$47,CntyQryCensus!$A$256:$BI$298,AV$1)","v":18},{"$f":"VLOOKUP(DropDownList!$B$47,CntyQryCensus!$A$256:$BI$298,AW$1)","v":0},{"$f":"VLOOKUP(DropDownList!$B$47,CntyQryCensus!$A$256:$BI$298,AX$1)","v":23},{"$f":"VLOOKUP(DropDownList!$B$47,CntyQryCensus!$A$256:$BI$298,AY$1)","v":35},{"$f":"VLOOKUP(DropDownList!$B$47,CntyQryCensus!$A$256:$BI$298,AZ$1)","v":0},{"$f":"VLOOKUP(DropDownList!$B$47,CntyQryCensus!$A$256:$BI$298,BA$1)","v":35},{"$f":"VLOOKUP(DropDownList!$B$47,CntyQryCensus!$A$256:$BI$298,BB$1)","v":2250},{"$f":"VLOOKUP(DropDownList!$B$47,CntyQryCensus!$A$256:$BI$298,BC$1)","v":1740},{"$f":"VLOOKUP(DropDownList!$B$47,CntyQryCensus!$A$256:$BI$298,BD$1)","v":1532},{"$f":"VLOOKUP(DropDownList!$B$47,CntyQryCensus!$A$256:$BI$298,BE$1)","v":91},{"$f":"VLOOKUP(DropDownList!$B$47,CntyQryCensus!$A$256:$BI$298,BF$1)","v":117},{"$f":"VLOOKUP(DropDownList!$B$47,CntyQryCensus!$A$256:$BI$298,BG$1)","v":510},{"$f":"VLOOKUP(DropDownList!$B$47,CntyQryCensus!$A$256:$BI$298,BH$1)","v":275},{"$f":"VLOOKUP(DropDownList!$B$47,CntyQryCensus!$A$256:$BI$298,BI$1)","v":235}]
[null,null,null,null,null,null,null,null,null,null,null,null,null,null,null,null,null,null,{"$f":"SUM(R60:T60)","v":1056}]
[]
["Census 2000 SummaryFile3 Sample Data  -  SF3TownQry7HousingA"]
["NAME","LOGRECNO","COUNTY","TotalPop","H1HousingUnitsTotal","H2SampleHU","H2SampleOccHU","H2SampleVacHU","H3HU100pctCount","H5HUTotal","H5HUUrban","H5HUUrbanInUrbanAreas","H5HUUrbanInUrbanClusters","H5HURural","H5HURuralFarm","H5HURuralNonFarm","H7HUOcc","H7HUOwnrOcc","H7HURentrOcc","H8HUVacant","H8HUVacantForRent","H8HUVacantForSale","H8HUVacRentedorSold","H8HUVacSeasonal","H8HUVacForMigrantWrkrs","H8HUOtherVacant","H14OccHUa","H14OwnerOccHU","H14OwnOccHuHh15to24","H14OwnOccHuHh25to34","H14OwnOccHuHh35to44","H14OwnOccHuHh45to54","H14OwnOccHuHh55to59","H14OwnOccHuHh60to64","H14OwnOccHuHh65to74","H14OwnOccHuHh75to84","H14OwnOccHuHh85Over","H14RenterOccHU1","H14RntrOccHuHh15to24","H14RntrOccHuHh25to34","H14RntrOccHuHh35to44","H14RntrOccHuHh45to54","H14RntrOccHuHh55to59","H14RntrOccHuHh60to64","H14RntrOccHuHh65to74","H14RntrOccHuHh75to84","H14RntrOccHuHh85Over","H15PopInOccHU","H15PopInOwnOccHU1","H15PopInRentOccHU1","H17OccupHUb","H17OwnOccHU2","H17OwnOccHU1PersonHH","H17OwnOccHU2PersonHH","H17OwnOccHU3PersonHH","H17OwnOccHU4PersonHH","H17OwnOccHU5PersonHH","H17OwnOccHU6PersonHH","H17OwnOccHU7PlusPersonHH","H17RentOccHU2","H17RntOccHU1PersonHH","H17RntOccHU2PersonHH","H17RntOccHU3PersonHH","H17RntOccHU4PersonHH","H17RntOccHU5PersonHH","H17RntOccHU6PersonHH","H17RntOccHU7PlusPersonHH","H18AvgHHSize","H18AvgHHSizeOwnOcc","H18AvgHHSizeRentOcc","H23TotHU","H23HU1Room","H23HU2Room","H23HU3Room","H23HU4Room","H23HU5Room","H23HU6Room","H23HU7Room","H23HU8Room","H23HU9orMoreRoom","H24MedianNumRooms","H25AggregNumRooms","H30TotalHU","H30Det1HU","H30Att1HU","H30Units2","H30Units3or4","H30Units5to9","H30Units10to19","H30Units20to49","H30Units50orMore","H30UnitsMobileHome","H30UnitsBoatRv","H32OccHUcTotal","H32OwnerOccHU3","H32OwnOccHU1Det","H32OwnOccHU1Att","H32OwnOccHU2Unit","H32OwnOccHU3to4Unit","H32OwnOccHU5to9Unit","H32OwnOccHU10to19Unit","H32OwnOccHU20to49Unit","H32OwnOccHU50plusUnit","H32OwnOccHUMobHom","H32OwnOccHUBoatRVOth","H32RentrOccHU3","H32RntrOccHU1Det","H32RntrOccHU1Att","H32RntrOccHU2Unit","H32RntrOccHU3to4Unit","H32RntrOccHU5to9Unit","H32RntrOccHU10to19Unit","H32RntrOccHU20to49Unit","H32RntrOccHU50PlusUnit","H32RntrOccHUMobHom","H32RntrOccHUBoatRVOth","H33TotPopInOccHU","H33PopInOwnOccHU2","H33PopInOOHU1Det","H33PopInOOHU1Att","H33PopInOOHU2unit","H33PopInOOHU3to4Unit","H33PopInOOHU5to9Unit","H33PopInOOHU10to19Unit","H33PopInOOHU20to49Unit","H33PopInOOHU50PlusUnit","H33PopInOOHUMobilHome","H33PopInOOHUOtherUnit","H33PopInRentOccHU2","H33PopInROHU1Det","H33PopInROHU1Att","H33PopInROHU2Unit","H33PopInROHU3to4Unit","H33PopInROHU5to9Unit","H33PopInROHU10to19Unit","H33PopInROHU20to49Unit","H33PopInROHU50PlusUnit","H33PopInROHUMobilHome","H33PopInROHUOtherUnit","H36OccHousingUnitsdTotal","H36OwnerOccHU4","H36OOHUBuilt99to0300","H36OOHUBuilt95to98","H36OOHUBuilt90to94","H36OOHUBuilt80to89","H36OOHUBuilt70to79","H36OOHUBuilt60to69","H36OOHUBuilt50to59","H36OOHUBuilt40to49","H36OOHUBuilt39Earlier","H36RentOccHU4","H36ROHUBuilt99to0300","H36ROHUBuilt95to98","H36ROHUBuilt90to94","H36ROHUBuilt80to89","H36ROHUBuilt70to79","H36ROHUBuilt60to69","H36ROHUBuilt50to59","H36ROHUBuilt40to49","H36ROHUBuilt39Earlier","H40OccupHousUnitse","H40HeatFuelUtilGas","H40HeatFuelBotGas","H40HeatFuelElect","H40HeatFuelOilKero","H40HeatFuelCoal","H40HeatFuelWood","H40HeatFuelSolar","H40HeatFuelOther","H40HeatFuelNone","H41TotalHU","H41HUNoBdrm","H41HU1Bdrm","H41HU2Bdrm","H41HU3Bdrm","H41HU4Bdrm","H41HU5MoreBdrm","H42OccuHousUnitf","H42OwnerOccHU5","H42OOHUNoBdrm","H42OOHU1Bdrm","H42OOHU2Bdrm","H42OOHU3Bdrm","H42OOHU4Bdrm","H42OOHU5PlusBdrm","H42RentOccHU5","H42ROHUNoBdrm","H42ROHU1Bdrm","H42ROHU2Bdrm","H42ROHU3Bdrm","H42ROHU4Bdrm","H42ROHU5PlusBdrm","H48OccupHousUnitsg","H48OwnerOccHU6","H48OOHUwCompltPlumFacil","H48OOHULackCompltPlumFacil","H48RentOccHU6","H48ROHUwCompltPlumFacil","H48ROHULackCompltPlumFacil","H51OccupHousUnitf","H51OwnerOccHU7","H51OOHUwCompleteKitFacil","H51OOHULackCompleteKitFacil","H51RenterOccHU7","H51ROHUwCompleteKitFacil","H51ROHULackCompleteKitFacil"]
[{"$f":"VLOOKUP(DropDownList!$B47,CntyQryCensus!$A$306:$GX$348,A$1)","v":"Atkinson"},{"$f":"VLOOKUP(DropDownList!$B47,CntyQryCensus!$A$306:$GX$348,B$1)","v":"0003039"},{"$f":"VLOOKUP(DropDownList!$B47,CntyQryCensus!$A$306:$GX$348,C$1)","v":"02340"},{"$f":"VLOOKUP(DropDownList!$B47,CntyQryCensus!$A$306:$GX$348,D$1)","v":6178},{"$f":"VLOOKUP(DropDownList!$B47,CntyQryCensus!$A$306:$GX$348,E$1)","v":2431},{"$f":"VLOOKUP(DropDownList!$B47,CntyQryCensus!$A$306:$GX$348,F$1)","v":280},{"$f":"VLOOKUP(DropDownList!$B47,CntyQryCensus!$A$306:$GX$348,G$1)","v":272},{"$f":"VLOOKUP(DropDownList!$B47,CntyQryCensus!$A$306:$GX$348,H$1)","v":8},{"$f":"VLOOKUP(DropDownList!$B47,CntyQryCensus!$A$306:$GX$348,I$1)","v":2431},{"$f":"VLOOKUP(DropDownList!$B47,CntyQryCensus!$A$306:$GX$348,J$1)","v":2431},{"$f":"VLOOKUP(DropDownList!$B47,CntyQryCensus!$A$306:$GX$348,K$1)","v":2431},{"$f":"VLOOKUP(DropDownList!$B47,CntyQryCensus!$A$306:$GX$348,L$1)","v":2431},{"$f":"VLOOKUP(DropDownList!$B47,CntyQryCensus!$A$306:$GX$348,M$1)","v":0},{"$f":"VLOOKUP(DropDownList!$B47,CntyQryCensus!$A$306:$GX$348,N$1)","v":0},{"$f":"VLOOKUP(DropDownList!$B47,CntyQryCensus!$A$306:$GX$348,O$1)","v":0},{"$f":"VLOOKUP(DropDownList!$B47,CntyQryCensus!$A$306:$GX$348,P$1)","v":0},{"$f":"VLOOKUP(DropDownList!$B47,CntyQryCensus!$A$306:$GX$348,Q$1)","v":2317},{"$f":"VLOOKUP(DropDownList!$B47,CntyQryCensus!$A$306:$GX$348,R$1)","v":2060},{"$f":"VLOOKUP(DropDownList!$B47,CntyQryCensus!$A$306:$GX$348,S$1)","v":257},{"$f":"VLOOKUP(DropDownList!$B47,CntyQryCensus!$A$306:$GX$348,T$1)","v":114},{"$f":"VLOOKUP(DropDownList!$B47,CntyQryCensus!$A$306:$GX$348,U$1)","v":0},{"$f":"VLOOKUP(DropDownList!$B47,CntyQryCensus!$A$306:$GX$348,V$1)","v":8},{"$f":"VLOOKUP(DropDownList!$B47,CntyQryCensus!$A$306:$GX$348,W$1)","v":24},{"$f":"VLOOKUP(DropDownList!$B47,CntyQryCensus!$A$306:$GX$348,X$1)","v":75},{"$f":"VLOOKUP(DropDownList!$B47,CntyQryCensus!$A$306:$GX$348,Y$1)","v":0},{"$f":"VLOOKUP(DropDownList!$B47,CntyQryCensus!$A$306:$GX$348,Z$1)","v":7},{"$f":"VLOOKUP(DropDownList!$B47,CntyQryCensus!$A$306:$GX$348,AA$1)","v":2317},{"$f":"VLOOKUP(DropDownList!$B47,CntyQryCensus!$A$306:$GX$348,AB$1)","v":2060},{"$f":"VLOOKUP(DropDownList!$B47,CntyQryCensus!$A$306:$GX$348,AC$1)","v":0},{"$f":"VLOOKUP(DropDownList!$B47,CntyQryCensus!$A$306:$GX$348,AD$1)","v":178},{"$f":"VLOOKUP(DropDownList!$B47,CntyQryCensus!$A$306:$GX$348,AE$1)","v":596},{"$f":"VLOOKUP(DropDownList!$B47,CntyQryCensus!$A$306:$GX$348,AF$1)","v":471},{"$f":"VLOOKUP(DropDownList!$B47,CntyQryCensus!$A$306:$GX$348,AG$1)","v":251},{"$f":"VLOOKUP(DropDownList!$B47,CntyQryCensus!$A$306:$GX$348,AH$1)","v":168},{"$f":"VLOOKUP(DropDownList!$B47,CntyQryCensus!$A$306:$GX$348,AI$1)","v":269},{"$f":"VLOOKUP(DropDownList!$B47,CntyQryCensus!$A$306:$GX$348,AJ$1)","v":96},{"$f":"VLOOKUP(DropDownList!$B47,CntyQryCensus!$A$306:$GX$348,AK$1)","v":31},{"$f":"VLOOKUP(DropDownList!$B47,CntyQryCensus!$A$306:$GX$348,AL$1)","v":257},{"$f":"VLOOKUP(DropDownList!$B47,CntyQryCensus!$A$306:$GX$348,AM$1)","v":8},{"$f":"VLOOKUP(DropDownList!$B47,CntyQryCensus!$A$306:$GX$348,AN$1)","v":15},{"$f":"VLOOKUP(DropDownList!$B47,CntyQryCensus!$A$306:$GX$348,AO$1)","v":47},{"$f":"VLOOKUP(DropDownList!$B47,CntyQryCensus!$A$306:$GX$348,AP$1)","v":65},{"$f":"VLOOKUP(DropDownList!$B47,CntyQryCensus!$A$306:$GX$348,AQ$1)","v":34},{"$f":"VLOOKUP(DropDownList!$B47,CntyQryCensus!$A$306:$GX$348,AR$1)","v":9},{"$f":"VLOOKUP(DropDownList!$B47,CntyQryCensus!$A$306:$GX$348,AS$1)","v":59},{"$f":"VLOOKUP(DropDownList!$B47,CntyQryCensus!$A$306:$GX$348,AT$1)","v":0},{"$f":"VLOOKUP(DropDownList!$B47,CntyQryCensus!$A$306:$GX$348,AU$1)","v":20},{"$f":"VLOOKUP(DropDownList!$B47,CntyQryCensus!$A$306:$GX$348,AV$1)","v":6174},{"$f":"VLOOKUP(DropDownList!$B47,CntyQryCensus!$A$306:$GX$348,AW$1)","v":5741},{"$f":"VLOOKUP(DropDownList!$B47,CntyQryCensus!$A$306:$GX$348,AX$1)","v":433},{"$f":"VLOOKUP(DropDownList!$B47,CntyQryCensus!$A$306:$GX$348,AY$1)","v":2317},{"$f":"VLOOKUP(DropDownList!$B47,CntyQryCensus!$A$306:$GX$348,AZ$1)","v":2060},{"$f":"VLOOKUP(DropDownList!$B47,CntyQryCensus!$A$306:$GX$348,BA$1)","v":275},{"$f":"VLOOKUP(DropDownList!$B47,CntyQryCensus!$A$306:$GX$348,BB$1)","v":778},{"$f":"VLOOKUP(DropDownList!$B47,CntyQryCensus!$A$306:$GX$348,BC$1)","v":391},{"$f":"VLOOKUP(DropDownList!$B47,CntyQryCensus!$A$306:$GX$348,BD$1)","v":392},{"$f":"VLOOKUP(DropDownList!$B47,CntyQryCensus!$A$306:$GX$348,BE$1)","v":169},{"$f":"VLOOKUP(DropDownList!$B47,CntyQryCensus!$A$306:$GX$348,BF$1)","v":47},{"$f":"VLOOKUP(DropDownList!$B47,CntyQryCensus!$A$306:$GX$348,BG$1)","v":8},{"$f":"VLOOKUP(DropDownList!$B47,CntyQryCensus!$A$306:$GX$348,BH$1)","v":257},{"$f":"VLOOKUP(DropDownList!$B47,CntyQryCensus!$A$306:$GX$348,BI$1)","v":165},{"$f":"VLOOKUP(DropDownList!$B47,CntyQryCensus!$A$306:$GX$348,BJ$1)","v":60},{"$f":"VLOOKUP(DropDownList!$B47,CntyQryCensus!$A$306:$GX$348,BK$1)","v":25},{"$f":"VLOOKUP(DropDownList!$B47,CntyQryCensus!$A$306:$GX$348,BL$1)","v":0},{"$f":"VLOOKUP(DropDownList!$B47,CntyQryCensus!$A$306:$GX$348,BM$1)","v":0},{"$f":"VLOOKUP(DropDownList!$B47,CntyQryCensus!$A$306:$GX$348,BN$1)","v":7},{"$f":"VLOOKUP(DropDownList!$B47,CntyQryCensus!$A$306:$GX$348,BO$1)","v":0},{"$f":"VLOOKUP(DropDownList!$B47,CntyQryCensus!$A$306:$GX$348,BP$1)","v":3},{"$f":"VLOOKUP(DropDownList!$B47,CntyQryCensus!$A$306:$GX$348,BQ$1)","v":3},{"$f":"VLOOKUP(DropDownList!$B47,CntyQryCensus!$A$306:$GX$348,BR$1)","v":2},{"$f":"VLOOKUP(DropDownList!$B47,CntyQryCensus!$A$306:$GX$348,BS$1)","v":2431},{"$f":"VLOOKUP(DropDownList!$B47,CntyQryCensus!$A$306:$GX$348,BT$1)","v":0},{"$f":"VLOOKUP(DropDownList!$B47,CntyQryCensus!$A$306:$GX$348,BU$1)","v":105},{"$f":"VLOOKUP(DropDownList!$B47,CntyQryCensus!$A$306:$GX$348,BV$1)","v":36},{"$f":"VLOOKUP(DropDownList!$B47,CntyQryCensus!$A$306:$GX$348,BW$1)","v":131},{"$f":"VLOOKUP(DropDownList!$B47,CntyQryCensus!$A$306:$GX$348,BX$1)","v":409},{"$f":"VLOOKUP(DropDownList!$B47,CntyQryCensus!$A$306:$GX$348,BY$1)","v":559},{"$f":"VLOOKUP(DropDownList!$B47,CntyQryCensus!$A$306:$GX$348,BZ$1)","v":457},{"$f":"VLOOKUP(DropDownList!$B47,CntyQryCensus!$A$306:$GX$348,CA$1)","v":358},{"$f":"VLOOKUP(DropDownList!$B47,CntyQryCensus!$A$306:$GX$348,CB$1)","v":376},{"$f":"VLOOKUP(DropDownList!$B47,CntyQryCensus!$A$306:$GX$348,CC$1)","v":6},{"$f":"VLOOKUP(DropDownList!$B47,CntyQryCensus!$A$306:$GX$348,CD$1)","v":16064},{"$f":"VLOOKUP(DropDownList!$B47,CntyQryCensus!$A$306:$GX$348,CE$1)","v":2431},{"$f":"VLOOKUP(DropDownList!$B47,CntyQryCensus!$A$306:$GX$348,CF$1)","v":1826},{"$f":"VLOOKUP(DropDownList!$B47,CntyQryCensus!$A$306:$GX$348,CG$1)","v":322},{"$f":"VLOOKUP(DropDownList!$B47,CntyQryCensus!$A$306:$GX$348,CH$1)","v":81},{"$f":"VLOOKUP(DropDownList!$B47,CntyQryCensus!$A$306:$GX$348,CI$1)","v":61},{"$f":"VLOOKUP(DropDownList!$B47,CntyQryCensus!$A$306:$GX$348,CJ$1)","v":0},{"$f":"VLOOKUP(DropDownList!$B47,CntyQryCensus!$A$306:$GX$348,CK$1)","v":125},{"$f":"VLOOKUP(DropDownList!$B47,CntyQryCensus!$A$306:$GX$348,CL$1)","v":6},{"$f":"VLOOKUP(DropDownList!$B47,CntyQryCensus!$A$306:$GX$348,CM$1)","v":0},{"$f":"VLOOKUP(DropDownList!$B47,CntyQryCensus!$A$306:$GX$348,CN$1)","v":10},{"$f":"VLOOKUP(DropDownList!$B47,CntyQryCensus!$A$306:$GX$348,CO$1)","v":0},{"$f":"VLOOKUP(DropDownList!$B47,CntyQryCensus!$A$306:$GX$348,CP$1)","v":2317},{"$f":"VLOOKUP(DropDownList!$B47,CntyQryCensus!$A$306:$GX$348,CQ$1)","v":2060},{"$f":"VLOOKUP(DropDownList!$B47,CntyQryCensus!$A$306:$GX$348,CR$1)","v":1669},{"$f":"VLOOKUP(DropDownList!$B47,CntyQryCensus!$A$306:$GX$348,CS$1)","v":266},{"$f":"VLOOKUP(DropDownList!$B47,CntyQryCensus!$A$306:$GX$348,CT$1)","v":53},{"$f":"VLOOKUP(DropDownList!$B47,CntyQryCensus!$A$306:$GX$348,CU$1)","v":56},{"$f":"VLOOKUP(DropDownList!$B47,CntyQryCensus!$A$306:$GX$348,CV$1)","v":0},{"$f":"VLOOKUP(DropDownList!$B47,CntyQryCensus!$A$306:$GX$348,CW$1)","v":0},{"$f":"VLOOKUP(DropDownList!$B47,CntyQryCensus!$A$306:$GX$348,CX$1)","v":6},{"$f":"VLOOKUP(DropDownList!$B47,CntyQryCensus!$A$306:$GX$348,CY$1)","v":0},{"$f":"VLOOKUP(DropDownList!$B47,CntyQryCensus!$A$306:$GX$348,CZ$1)","v":10},{"$f":"VLOOKUP(DropDownList!$B47,CntyQryCensus!$A$306:$GX$348,DA$1)","v":0},{"$f":"VLOOKUP(DropDownList!$B47,CntyQryCensus!$A$306:$GX$348,DB$1)","v":257},{"$f":"VLOOKUP(DropDownList!$B47,CntyQryCensus!$A$306:$GX$348,DC$1)","v":96},{"$f":"VLOOKUP(DropDownList!$B47,CntyQryCensus!$A$306:$GX$348,DD$1)","v":8},{"$f":"VLOOKUP(DropDownList!$B47,CntyQryCensus!$A$306:$GX$348,DE$1)","v":28},{"$f":"VLOOKUP(DropDownList!$B47,CntyQryCensus!$A$306:$GX$348,DF$1)","v":0},{"$f":"VLOOKUP(DropDownList!$B47,CntyQryCensus!$A$306:$GX$348,DG$1)","v":0},{"$f":"VLOOKUP(DropDownList!$B47,CntyQryCensus!$A$306:$GX$348,DH$1)","v":125},{"$f":"VLOOKUP(DropDownList!$B47,CntyQryCensus!$A$306:$GX$348,DI$1)","v":0},{"$f":"VLOOKUP(DropDownList!$B47,CntyQryCensus!$A$306:$GX$348,DJ$1)","v":0},{"$f":"VLOOKUP(DropDownList!$B47,CntyQryCensus!$A$306:$GX$348,DK$1)","v":0},{"$f":"VLOOKUP(DropDownList!$B47,CntyQryCensus!$A$306:$GX$348,DL$1)","v":0},{"$f":"VLOOKUP(DropDownList!$B47,CntyQryCensus!$A$306:$GX$348,DM$1)","v":6174},{"$f":"VLOOKUP(DropDownList!$B47,CntyQryCensus!$A$306:$GX$348,DN$1)","v":5741},{"$f":"VLOOKUP(DropDownList!$B47,CntyQryCensus!$A$306:$GX$348,DO$1)","v":4967},{"$f":"VLOOKUP(DropDownList!$B47,CntyQryCensus!$A$306:$GX$348,DP$1)","v":477},{"$f":"VLOOKUP(DropDownList!$B47,CntyQryCensus!$A$306:$GX$348,DQ$1)","v":117},{"$f":"VLOOKUP(DropDownList!$B47,CntyQryCensus!$A$306:$GX$348,DR$1)","v":159},{"$f":"VLOOKUP(DropDownList!$B47,CntyQryCensus!$A$306:$GX$348,DS$1)","v":0},{"$f":"VLOOKUP(DropDownList!$B47,CntyQryCensus!$A$306:$GX$348,DT$1)","v":0},{"$f":"VLOOKUP(DropDownList!$B47,CntyQryCensus!$A$306:$GX$348,DU$1)","v":12},{"$f":"VLOOKUP(DropDownList!$B47,CntyQryCensus!$A$306:$GX$348,DV$1)","v":0},{"$f":"VLOOKUP(DropDownList!$B47,CntyQryCensus!$A$306:$GX$348,DW$1)","v":9},{"$f":"VLOOKUP(DropDownList!$B47,CntyQryCensus!$A$306:$GX$348,DX$1)","v":0},{"$f":"VLOOKUP(DropDownList!$B47,CntyQryCensus!$A$306:$GX$348,DY$1)","v":433},{"$f":"VLOOKUP(DropDownList!$B47,CntyQryCensus!$A$306:$GX$348,DZ$1)","v":238},{"$f":"VLOOKUP(DropDownList!$B47,CntyQryCensus!$A$306:$GX$348,EA$1)","v":20},{"$f":"VLOOKUP(DropDownList!$B47,CntyQryCensus!$A$306:$GX$348,EB$1)","v":42},{"$f":"VLOOKUP(DropDownList!$B47,CntyQryCensus!$A$306:$GX$348,EC$1)","v":0},{"$f":"VLOOKUP(DropDownList!$B47,CntyQryCensus!$A$306:$GX$348,ED$1)","v":0},{"$f":"VLOOKUP(DropDownList!$B47,CntyQryCensus!$A$306:$GX$348,EE$1)","v":133},{"$f":"VLOOKUP(DropDownList!$B47,CntyQryCensus!$A$306:$GX$348,EF$1)","v":0},{"$f":"VLOOKUP(DropDownList!$B47,CntyQryCensus!$A$306:$GX$348,EG$1)","v":0},{"$f":"VLOOKUP(DropDownList!$B47,CntyQryCensus!$A$306:$GX$348,EH$1)","v":0},{"$f":"VLOOKUP(DropDownList!$B47,CntyQryCensus!$A$306:$GX$348,EI$1)","v":0},{"$f":"VLOOKUP(DropDownList!$B47,CntyQryCensus!$A$306:$GX$348,EJ$1)","v":2317},{"$f":"VLOOKUP(DropDownList!$B47,CntyQryCensus!$A$306:$GX$348,EK$1)","v":2060},{"$f":"VLOOKUP(DropDownList!$B47,CntyQryCensus!$A$306:$GX$348,EL$1)","v":38},{"$f":"VLOOKUP(DropDownList!$B47,CntyQryCensus!$A$306:$GX$348,EM$1)","v":242},{"$f":"VLOOKUP(DropDownList!$B47,CntyQryCensus!$A$306:$GX$348,EN$1)","v":264},{"$f":"VLOOKUP(DropDownList!$B47,CntyQryCensus!$A$306:$GX$348,EO$1)","v":373},{"$f":"VLOOKUP(DropDownList!$B47,CntyQryCensus!$A$306:$GX$348,EP$1)","v":529},{"$f":"VLOOKUP(DropDownList!$B47,CntyQryCensus!$A$306:$GX$348,EQ$1)","v":317},{"$f":"VLOOKUP(DropDownList!$B47,CntyQryCensus!$A$306:$GX$348,ER$1)","v":165},{"$f":"VLOOKUP(DropDownList!$B47,CntyQryCensus!$A$306:$GX$348,ES$1)","v":42},{"$f":"VLOOKUP(DropDownList!$B47,CntyQryCensus!$A$306:$GX$348,ET$1)","v":90},{"$f":"VLOOKUP(DropDownList!$B47,CntyQryCensus!$A$306:$GX$348,EU$1)","v":257},{"$f":"VLOOKUP(DropDownList!$B47,CntyQryCensus!$A$306:$GX$348,EV$1)","v":0},{"$f":"VLOOKUP(DropDownList!$B47,CntyQryCensus!$A$306:$GX$348,EW$1)","v":0},{"$f":"VLOOKUP(DropDownList!$B47,CntyQryCensus!$A$306:$GX$348,EX$1)","v":20},{"$f":"VLOOKUP(DropDownList!$B47,CntyQryCensus!$A$306:$GX$348,EY$1)","v":53},{"$f":"VLOOKUP(DropDownList!$B47,CntyQryCensus!$A$306:$GX$348,EZ$1)","v":61},{"$f":"VLOOKUP(DropDownList!$B47,CntyQryCensus!$A$306:$GX$348,FA$1)","v":38},{"$f":"VLOOKUP(DropDownList!$B47,CntyQryCensus!$A$306:$GX$348,FB$1)","v":40},{"$f":"VLOOKUP(DropDownList!$B47,CntyQryCensus!$A$306:$GX$348,FC$1)","v":18},{"$f":"VLOOKUP(DropDownList!$B47,CntyQryCensus!$A$306:$GX$348,FD$1)","v":27},{"$f":"VLOOKUP(DropDownList!$B47,CntyQryCensus!$A$306:$GX$348,FE$1)","v":2317},{"$f":"VLOOKUP(DropDownList!$B47,CntyQryCensus!$A$306:$GX$348,FF$1)","v":313},{"$f":"VLOOKUP(DropDownList!$B47,CntyQryCensus!$A$306:$GX$348,FG$1)","v":223},{"$f":"VLOOKUP(DropDownList!$B47,CntyQryCensus!$A$306:$GX$348,FH$1)","v":85},{"$f":"VLOOKUP(DropDownList!$B47,CntyQryCensus!$A$306:$GX$348,FI$1)","v":1657},{"$f":"VLOOKUP(DropDownList!$B47,CntyQryCensus!$A$306:$GX$348,FJ$1)","v":7},{"$f":"VLOOKUP(DropDownList!$B47,CntyQryCensus!$A$306:$GX$348,FK$1)","v":32},{"$f":"VLOOKUP(DropDownList!$B47,CntyQryCensus!$A$306:$GX$348,FL$1)","v":0},{"$f":"VLOOKUP(DropDownList!$B47,CntyQryCensus!$A$306:$GX$348,FM$1)","v":0},{"$f":"VLOOKUP(DropDownList!$B47,CntyQryCensus!$A$306:$GX$348,FN$1)","v":0},{"$f":"VLOOKUP(DropDownList!$B47,CntyQryCensus!$A$306:$GX$348,FO$1)","v":2431},{"$f":"VLOOKUP(DropDownList!$B47,CntyQryCensus!$A$306:$GX$348,FP$1)","v":0},{"$f":"VLOOKUP(DropDownList!$B47,CntyQryCensus!$A$306:$GX$348,FQ$1)","v":141},{"$f":"VLOOKUP(DropDownList!$B47,CntyQryCensus!$A$306:$GX$348,FR$1)","v":556},{"$f":"VLOOKUP(DropDownList!$B47,CntyQryCensus!$A$306:$GX$348,FS$1)","v":1189},{"$f":"VLOOKUP(DropDownList!$B47,CntyQryCensus!$A$306:$GX$348,FT$1)","v":475},{"$f":"VLOOKUP(DropDownList!$B47,CntyQryCensus!$A$306:$GX$348,FU$1)","v":70},{"$f":"VLOOKUP(DropDownList!$B47,CntyQryCensus!$A$306:$GX$348,FV$1)","v":2317},{"$f":"VLOOKUP(DropDownList!$B47,CntyQryCensus!$A$306:$GX$348,FW$1)","v":2060},{"$f":"VLOOKUP(DropDownList!$B47,CntyQryCensus!$A$306:$GX$348,FX$1)","v":0},{"$f":"VLOOKUP(DropDownList!$B47,CntyQryCensus!$A$306:$GX$348,FY$1)","v":6},{"$f":"VLOOKUP(DropDownList!$B47,CntyQryCensus!$A$306:$GX$348,FZ$1)","v":443},{"$f":"VLOOKUP(DropDownList!$B47,CntyQryCensus!$A$306:$GX$348,GA$1)","v":1094},{"$f":"VLOOKUP(DropDownList!$B47,CntyQryCensus!$A$306:$GX$348,GB$1)","v":457},{"$f":"VLOOKUP(DropDownList!$B47,CntyQryCensus!$A$306:$GX$348,GC$1)","v":60},{"$f":"VLOOKUP(DropDownList!$B47,CntyQryCensus!$A$306:$GX$348,GD$1)","v":257},{"$f":"VLOOKUP(DropDownList!$B47,CntyQryCensus!$A$306:$GX$348,GE$1)","v":0},{"$f":"VLOOKUP(DropDownList!$B47,CntyQryCensus!$A$306:$GX$348,GF$1)","v":135},{"$f":"VLOOKUP(DropDownList!$B47,CntyQryCensus!$A$306:$GX$348,GG$1)","v":61},{"$f":"VLOOKUP(DropDownList!$B47,CntyQryCensus!$A$306:$GX$348,GH$1)","v":41},{"$f":"VLOOKUP(DropDownList!$B47,CntyQryCensus!$A$306:$GX$348,GI$1)","v":10},{"$f":"VLOOKUP(DropDownList!$B47,CntyQryCensus!$A$306:$GX$348,GJ$1)","v":10},{"$f":"VLOOKUP(DropDownList!$B47,CntyQryCensus!$A$306:$GX$348,GK$1)","v":2317},{"$f":"VLOOKUP(DropDownList!$B47,CntyQryCensus!$A$306:$GX$348,GL$1)","v":2060},{"$f":"VLOOKUP(DropDownList!$B47,CntyQryCensus!$A$306:$GX$348,GM$1)","v":2060},{"$f":"VLOOKUP(DropDownList!$B47,CntyQryCensus!$A$306:$GX$348,GN$1)","v":0},{"$f":"VLOOKUP(DropDownList!$B47,CntyQryCensus!$A$306:$GX$348,GO$1)","v":257},{"$f":"VLOOKUP(DropDownList!$B47,CntyQryCensus!$A$306:$GX$348,GP$1)","v":257},{"$f":"VLOOKUP(DropDownList!$B47,CntyQryCensus!$A$306:$GX$348,GQ$1)","v":0},{"$f":"VLOOKUP(DropDownList!$B47,CntyQryCensus!$A$306:$GX$348,GR$1)","v":2317},{"$f":"VLOOKUP(DropDownList!$B47,CntyQryCensus!$A$306:$GX$348,GS$1)","v":2060},{"$f":"VLOOKUP(DropDownList!$B47,CntyQryCensus!$A$306:$GX$348,GT$1)","v":2060},{"$f":"VLOOKUP(DropDownList!$B47,CntyQryCensus!$A$306:$GX$348,GU$1)","v":0},{"$f":"VLOOKUP(DropDownList!$B47,CntyQryCensus!$A$306:$GX$348,GV$1)","v":257},{"$f":"VLOOKUP(DropDownList!$B47,CntyQryCensus!$A$306:$GX$348,GW$1)","v":257},{"$f":"VLOOKUP(DropDownList!$B47,CntyQryCensus!$A$306:$GX$348,GX$1)","v":0}]
[]
[]
["Census 2000 SummaryFile3 Sample Data  -  SF3TownQry8HousingCostA"]
["NAME","LOGRECNO","COUNTY","TotalPop","H62RntrOccHU","H62RntrOccHUwRent","H62ROHUGRent<100","H62ROHUGRent100to149","H62ROHUGRent150to199","H62ROHUGRent200to249","H62ROHUGRent250to299","H62ROHUGRent300to349","H62ROHUGRent350to399","H62ROHUGRent400to449","H62ROHUGRent450to499","H62ROHUGRent500to549","H62ROHUGRent550to599","H62ROHUGRent600to649","H62ROHUGRent650to699","H62ROHUGRent700to749","H62ROHUGRent750to799","H62ROHUGRent800to899","H62ROHUGRent900to999","H62ROHUGRent1000to1249","H62ROHUGRent1250to1499","H62ROHUGRent1500to1999","H62ROHUGRent2000>","H62ROHUNoGRent","H63MedianGrossRnt","H69RenterOccHsU","H69GRnt<10PctHHInc","H69GRnt10to15PctHHInc","H69GRnt15to20PctHHInc","H69GRnt20to25PctHHInc","H69GRnt25to30PctHHInc","H69GRnt30to35PctHHInc","H69GRnt35to40PctHHInc","H69GRnt40to50PctHHInc","H69GRnt>50PctHHInc","H69GRntPctNotcomputed","H73RenterOccHU","H73ROHUHhInc<10k","H73ROHUHhInc<10kRnt<20pct","H73ROHUHhInc<10kRnt20to25pct","H73ROHUHhInc<10kRnt25to30pct","H73ROHUHhInc<10kRnt30to35pct","H73ROHUHhInc<10kRnt>35pct","H73ROHUHhInc<10kPctNotComput","H73ROHUHhInc10to20k","H73ROHUHhInc10to20kRnt<20pct","H73ROHUHhInc10to20kRnt20to25pct","H73ROHUHhInc10to20kRnt25to30pct","H73ROHUHhInc10to20kRnt30to35pct","H73ROHUHhInc10to20kRnt>35pct","H73ROHUHhInc10to20kRntPctNC","H73ROHUHhInc20to35k","H73ROHUHhInc20to35kRnt<20pct","H73ROHUHhInc20to35kRnt20to25pct","H73ROHUHhInc20to35kRnt25to30pct","H73ROHUHhInc20to35kRnt30to35pct","H73ROHUHhInc20to35kRnt>35pct","H73ROHUHhInc20to35kRntPctNC","H73ROHUHhInc35to40k","H73ROHUHhInc35to40kRnt<20pct","H73ROHUHhInc35to40kRnt20to25pct","H73ROHUHhInc35to40kRnt25to30pct","H73ROHUHhInc35to40kRnt30to35pct","H73ROHUHhInc35to40kRnt>35pct","H73ROHUHhInc35to40kRntPctNC","H73ROHUHhInc50to75k","H73ROHUHhInc50to75kRnt<20pct","H73ROHUHhInc50to75kRnt20to25pct","H73ROHUHhInc50to75kRnt25to30pct","H73ROHUHhInc50to75kRnt30to35pct","H73ROHUHhInc50to75kRnt>35pct","H73ROHUHhInc50to75kRntPctNC","H73ROHUHhInc75to100k","H73ROHUHhInc75to100kRnt<20pct","H73ROHUHhInc75to100kRnt20to25pct","H73ROHUHhInc75to100kRnt25to30pct","H73ROHUHhInc75to100kRnt30to35pct","H73ROHUHhInc75to100kRnt>35pct","H73ROHUHhInc75to100kRntPctNC","H73ROHUHhInc>100k","H73ROHUHhInc>100kRnt<20pct","H73ROHUHhInc>100kRnt20to25pct","H73ROHUHhInc>100kRnt25to30pct","H73ROHUHhInc>100kRnt30to35pct","H73ROHUHhInc>100kRnt>35pct","H73ROHUHhInc>100kRntPctNC","H73ROHUHhInc>100kRntPctNC"]
[{"$f":"VLOOKUP(DropDownList!$B$47,CntyQryCensus!$A$357:$CM$399,A$1)","v":"Atkinson"},{"$f":"VLOOKUP(DropDownList!$B$47,CntyQryCensus!$A$357:$CM$399,B$1)","v":"0003039"},{"$f":"VLOOKUP(DropDownList!$B$47,CntyQryCensus!$A$357:$CM$399,C$1)","v":"02340"},{"$f":"VLOOKUP(DropDownList!$B$47,CntyQryCensus!$A$357:$CM$399,D$1)","v":6178},{"$f":"VLOOKUP(DropDownList!$B$47,CntyQryCensus!$A$357:$CM$399,E$1)","v":238},{"$f":"VLOOKUP(DropDownList!$B$47,CntyQryCensus!$A$357:$CM$399,F$1)","v":222},{"$f":"VLOOKUP(DropDownList!$B$47,CntyQryCensus!$A$357:$CM$399,G$1)","v":0},{"$f":"VLOOKUP(DropDownList!$B$47,CntyQryCensus!$A$357:$CM$399,H$1)","v":10},{"$f":"VLOOKUP(DropDownList!$B$47,CntyQryCensus!$A$357:$CM$399,I$1)","v":0},{"$f":"VLOOKUP(DropDownList!$B$47,CntyQryCensus!$A$357:$CM$399,J$1)","v":0},{"$f":"VLOOKUP(DropDownList!$B$47,CntyQryCensus!$A$357:$CM$399,K$1)","v":0},{"$f":"VLOOKUP(DropDownList!$B$47,CntyQryCensus!$A$357:$CM$399,L$1)","v":0},{"$f":"VLOOKUP(DropDownList!$B$47,CntyQryCensus!$A$357:$CM$399,M$1)","v":0},{"$f":"VLOOKUP(DropDownList!$B$47,CntyQryCensus!$A$357:$CM$399,N$1)","v":27},{"$f":"VLOOKUP(DropDownList!$B$47,CntyQryCensus!$A$357:$CM$399,O$1)","v":65},{"$f":"VLOOKUP(DropDownList!$B$47,CntyQryCensus!$A$357:$CM$399,P$1)","v":50},{"$f":"VLOOKUP(DropDownList!$B$47,CntyQryCensus!$A$357:$CM$399,Q$1)","v":10},{"$f":"VLOOKUP(DropDownList!$B$47,CntyQryCensus!$A$357:$CM$399,R$1)","v":0},{"$f":"VLOOKUP(DropDownList!$B$47,CntyQryCensus!$A$357:$CM$399,S$1)","v":17},{"$f":"VLOOKUP(DropDownList!$B$47,CntyQryCensus!$A$357:$CM$399,T$1)","v":25},{"$f":"VLOOKUP(DropDownList!$B$47,CntyQryCensus!$A$357:$CM$399,U$1)","v":9},{"$f":"VLOOKUP(DropDownList!$B$47,CntyQryCensus!$A$357:$CM$399,V$1)","v":9},{"$f":"VLOOKUP(DropDownList!$B$47,CntyQryCensus!$A$357:$CM$399,W$1)","v":0},{"$f":"VLOOKUP(DropDownList!$B$47,CntyQryCensus!$A$357:$CM$399,X$1)","v":0},{"$f":"VLOOKUP(DropDownList!$B$47,CntyQryCensus!$A$357:$CM$399,Y$1)","v":0},{"$f":"VLOOKUP(DropDownList!$B$47,CntyQryCensus!$A$357:$CM$399,Z$1)","v":0},{"$f":"VLOOKUP(DropDownList!$B$47,CntyQryCensus!$A$357:$CM$399,AA$1)","v":0},{"$f":"VLOOKUP(DropDownList!$B$47,CntyQryCensus!$A$357:$CM$399,AB$1)","v":16},{"$f":"VLOOKUP(DropDownList!$B$47,CntyQryCensus!$A$357:$CM$399,AC$1)","v":509},{"$f":"VLOOKUP(DropDownList!$B$47,CntyQryCensus!$A$357:$CM$399,AD$1)","v":238},{"$f":"VLOOKUP(DropDownList!$B$47,CntyQryCensus!$A$357:$CM$399,AE$1)","v":23},{"$f":"VLOOKUP(DropDownList!$B$47,CntyQryCensus!$A$357:$CM$399,AF$1)","v":10},{"$f":"VLOOKUP(DropDownList!$B$47,CntyQryCensus!$A$357:$CM$399,AG$1)","v":43},{"$f":"VLOOKUP(DropDownList!$B$47,CntyQryCensus!$A$357:$CM$399,AH$1)","v":10},{"$f":"VLOOKUP(DropDownList!$B$47,CntyQryCensus!$A$357:$CM$399,AI$1)","v":30},{"$f":"VLOOKUP(DropDownList!$B$47,CntyQryCensus!$A$357:$CM$399,AJ$1)","v":10},{"$f":"VLOOKUP(DropDownList!$B$47,CntyQryCensus!$A$357:$CM$399,AK$1)","v":29},{"$f":"VLOOKUP(DropDownList!$B$47,CntyQryCensus!$A$357:$CM$399,AL$1)","v":10},{"$f":"VLOOKUP(DropDownList!$B$47,CntyQryCensus!$A$357:$CM$399,AM$1)","v":57},{"$f":"VLOOKUP(DropDownList!$B$47,CntyQryCensus!$A$357:$CM$399,AN$1)","v":16},{"$f":"VLOOKUP(DropDownList!$B$47,CntyQryCensus!$A$357:$CM$399,AO$1)","v":238},{"$f":"VLOOKUP(DropDownList!$B$47,CntyQryCensus!$A$357:$CM$399,AP$1)","v":48},{"$f":"VLOOKUP(DropDownList!$B$47,CntyQryCensus!$A$357:$CM$399,AQ$1)","v":0},{"$f":"VLOOKUP(DropDownList!$B$47,CntyQryCensus!$A$357:$CM$399,AR$1)","v":0},{"$f":"VLOOKUP(DropDownList!$B$47,CntyQryCensus!$A$357:$CM$399,AS$1)","v":0},{"$f":"VLOOKUP(DropDownList!$B$47,CntyQryCensus!$A$357:$CM$399,AT$1)","v":0},{"$f":"VLOOKUP(DropDownList!$B$47,CntyQryCensus!$A$357:$CM$399,AU$1)","v":48},{"$f":"VLOOKUP(DropDownList!$B$47,CntyQryCensus!$A$357:$CM$399,AV$1)","v":0},{"$f":"VLOOKUP(DropDownList!$B$47,CntyQryCensus!$A$357:$CM$399,AW$1)","v":48},{"$f":"VLOOKUP(DropDownList!$B$47,CntyQryCensus!$A$357:$CM$399,AX$1)","v":0},{"$f":"VLOOKUP(DropDownList!$B$47,CntyQryCensus!$A$357:$CM$399,AY$1)","v":0},{"$f":"VLOOKUP(DropDownList!$B$47,CntyQryCensus!$A$357:$CM$399,AZ$1)","v":0},{"$f":"VLOOKUP(DropDownList!$B$47,CntyQryCensus!$A$357:$CM$399,BA$1)","v":0},{"$f":"VLOOKUP(DropDownList!$B$47,CntyQryCensus!$A$357:$CM$399,BB$1)","v":48},{"$f":"VLOOKUP(DropDownList!$B$47,CntyQryCensus!$A$357:$CM$399,BC$1)","v":0},{"$f":"VLOOKUP(DropDownList!$B$47,CntyQryCensus!$A$357:$CM$399,BD$1)","v":67},{"$f":"VLOOKUP(DropDownList!$B$47,CntyQryCensus!$A$357:$CM$399,BE$1)","v":9},{"$f":"VLOOKUP(DropDownList!$B$47,CntyQryCensus!$A$357:$CM$399,BF$1)","v":10},{"$f":"VLOOKUP(DropDownList!$B$47,CntyQryCensus!$A$357:$CM$399,BG$1)","v":30},{"$f":"VLOOKUP(DropDownList!$B$47,CntyQryCensus!$A$357:$CM$399,BH$1)","v":10},{"$f":"VLOOKUP(DropDownList!$B$47,CntyQryCensus!$A$357:$CM$399,BI$1)","v":0},{"$f":"VLOOKUP(DropDownList!$B$47,CntyQryCensus!$A$357:$CM$399,BJ$1)","v":8},{"$f":"VLOOKUP(DropDownList!$B$47,CntyQryCensus!$A$357:$CM$399,BK$1)","v":28},{"$f":"VLOOKUP(DropDownList!$B$47,CntyQryCensus!$A$357:$CM$399,BL$1)","v":28},{"$f":"VLOOKUP(DropDownList!$B$47,CntyQryCensus!$A$357:$CM$399,BM$1)","v":0},{"$f":"VLOOKUP(DropDownList!$B$47,CntyQryCensus!$A$357:$CM$399,BN$1)","v":0},{"$f":"VLOOKUP(DropDownList!$B$47,CntyQryCensus!$A$357:$CM$399,BO$1)","v":0},{"$f":"VLOOKUP(DropDownList!$B$47,CntyQryCensus!$A$357:$CM$399,BP$1)","v":0},{"$f":"VLOOKUP(DropDownList!$B$47,CntyQryCensus!$A$357:$CM$399,BQ$1)","v":0},{"$f":"VLOOKUP(DropDownList!$B$47,CntyQryCensus!$A$357:$CM$399,BR$1)","v":16},{"$f":"VLOOKUP(DropDownList!$B$47,CntyQryCensus!$A$357:$CM$399,BS$1)","v":16},{"$f":"VLOOKUP(DropDownList!$B$47,CntyQryCensus!$A$357:$CM$399,BT$1)","v":0},{"$f":"VLOOKUP(DropDownList!$B$47,CntyQryCensus!$A$357:$CM$399,BU$1)","v":0},{"$f":"VLOOKUP(DropDownList!$B$47,CntyQryCensus!$A$357:$CM$399,BV$1)","v":0},{"$f":"VLOOKUP(DropDownList!$B$47,CntyQryCensus!$A$357:$CM$399,BW$1)","v":0},{"$f":"VLOOKUP(DropDownList!$B$47,CntyQryCensus!$A$357:$CM$399,BX$1)","v":0},{"$f":"VLOOKUP(DropDownList!$B$47,CntyQryCensus!$A$357:$CM$399,BY$1)","v":6},{"$f":"VLOOKUP(DropDownList!$B$47,CntyQryCensus!$A$357:$CM$399,BZ$1)","v":6},{"$f":"VLOOKUP(DropDownList!$B$47,CntyQryCensus!$A$357:$CM$399,CA$1)","v":0},{"$f":"VLOOKUP(DropDownList!$B$47,CntyQryCensus!$A$357:$CM$399,CB$1)","v":0},{"$f":"VLOOKUP(DropDownList!$B$47,CntyQryCensus!$A$357:$CM$399,CC$1)","v":0},{"$f":"VLOOKUP(DropDownList!$B$47,CntyQryCensus!$A$357:$CM$399,CD$1)","v":0},{"$f":"VLOOKUP(DropDownList!$B$47,CntyQryCensus!$A$357:$CM$399,CE$1)","v":0},{"$f":"VLOOKUP(DropDownList!$B$47,CntyQryCensus!$A$357:$CM$399,CF$1)","v":25},{"$f":"VLOOKUP(DropDownList!$B$47,CntyQryCensus!$A$357:$CM$399,CG$1)","v":17},{"$f":"VLOOKUP(DropDownList!$B$47,CntyQryCensus!$A$357:$CM$399,CH$1)","v":0},{"$f":"VLOOKUP(DropDownList!$B$47,CntyQryCensus!$A$357:$CM$399,CI$1)","v":0},{"$f":"VLOOKUP(DropDownList!$B$47,CntyQryCensus!$A$357:$CM$399,CJ$1)","v":0},{"$f":"VLOOKUP(DropDownList!$B$47,CntyQryCensus!$A$357:$CM$399,CK$1)","v":0},{"$f":"VLOOKUP(DropDownList!$B$47,CntyQryCensus!$A$357:$CM$399,CL$1)","v":8},{"$f":"VLOOKUP(DropDownList!$B$47,CntyQryCensus!$A$357:$CM$399,CM$1)","v":0}]
[]
[]
["Census 2000 SummaryFile3 Sample Data  -  SF3TownQry8HousingCostB"]
["NAME","LOGRECNO","COUNTY","TotalPop","H74SpecOwnerOccHU","H74OOHU<10k","H74OOHU10to15k","H74OOHU15to20k","H74OOHU20to25k","H74OOHU25to30k","H74OOHU30to35k","H74OOHU35to40k","H74OOHU40to50k","H74OOHU50to60k","H74OOHU60to70k","H74OOHU70to80k","H74OOHU80to90k","H74OOHU90to100k","H74OOHU100to125k","H74OOHU125to150k","H74OOHU150to175k","H74OOHU175to200k","H74OOHU200to250k","H74OOHU250to300k","H74OOHU300to400k","H74OOHU400to500k","H74OOHU500to750k","H74OOHU750to1000k","H74OOHU1000kmore","H76OOHUMedianVal","H84OwnerOccHU","H84AllOOHU<10k","H84AllOOHU10to15k","H84AllOOHU15to20k","H84AllOOHU20to25k","H84AllOOHU25to30k","H84AllOOHU30to35k","H84AllOOHU35to40k","H84AllOOHU40to50k","H84AllOOHU50to60k","H84AllOOHU60to70k","H84AllOOHU70to80k","H84AllOOHU80to90k","H84AllOOHU90to100k","H84AllOOHU100to125k","H84AllOOHU125to150k","H84AllOOHU150to175k","H84AllOOHU175to200k","H84AllOOHU200to250k","H84AllOOHU250to300k","H84AllOOHU300to400k","H84AllOOHU400to500k","H84AllOOHU500to750k","H84AllOOHU750to1000k","H84AllOOHU1000kmore","H85OOHUMedVal","H90SOOHU","H90HUwMorgt","H90HUwMtgHC<200","H90HUwMtgHC200to300","H90HUwMtgHC300to400","H90HUwMtgHC400to500","H90HUwMtgHC500to600","H90HUwMtgHC600to700","H90HUwMtgHC700to800","H90HUwMtgHC800to900","H90HUwMtgHC900to1000","H90HUwMtgHC1000to1250","H90HUwMtgHC1250to1500","H90HUwMtgHC1500to2000","H90HUwMtgHC2000to2500","H90HUwMtgHC2500to3000","H90HUwMtgHC3000orMore","H90HUwOutMorgt","H90HUwOutMtgHC<100","H90HUwOutMtgHC100to150","H90HUwOutMtgHC150to200","H90HUwOutMtgHC200to250","H90HUwOutMtgHC250to300","H90HUwOutMtgHC300to350","H90HUwOutMtgHC350to400","H90HUwOutMtgHC400to500","H90HUwOutMtgHC500to600","H90HUwOutMtgHC600to700","H90HUwOutMtgHC700to800","H90HUwOutMtgHC800to900","H90HUwOutMtgHC900to1000","H90HUwOutMtgHC1000orMore","H91MedianOCHUwMtg","H91MedianOCHUwOutMtg","H94SpecOOHU","H94HUwMortg","H94HUwMtgHC<10pct","H94HUwMtgHC10to15pct","H94HUwMtgHC15to20pct","H94HUwMtgHC20to25pct","H94HUwMtgHC25to30pct","H94HUwMtgHC30to35pct","H94HUwMtgHC35to40pct","H94HUwMtgHC40to50pct","H94HUwMtgHC50pctOrMore","H94HUwMtgHCpctNotComp","H94HUWOutMortg","H94HUWOutMortgHC<10pct","H94HUWOutMortgHC10to15pct","H94HUWOutMortgHC15to20pct","H94HUWOutMortgHC20to25pct","H94HUWOutMortgHC25to30pct","H94HUWOutMortgHC30to35pct","H94HUWOutMortgHC35to40pct","H94HUWOutMortgHC40to50pct","H94HUWOutMortgHC50pctOrMore","H94HUWOutMortgHCpctNotComp","H97SpecifOwnOccHU","H97SOOHUInc<10k","H97SOOHUInc<10kHC<20pct","H97SOOHUInc<10kHC20to25pct","H97SOOHUInc<10kHC25to30pct","H97SOOHUInc<10kHC30to35pct","H97SOOHUInc<10kHC>35pct","H97SOOHUInc<10kHCpctNotComput","H97SOOHUInc10to20k","H97SOOHUInc10to20kHC<20pct","H97SOOHUInc10to20kHC20to25pct","H97SOOHUInc10to20kHC25to30pct","H97SOOHUInc10to20kHC30to35pct","H97SOOHUInc10to20kHC>35pct","H97SOOHUInc10to20kHCpctNotComput","H97SOOHUInc20to35k","H97SOOHUInc20to35kRC<20pct","H97SOOHUInc20to35kRC20to25pct","H97SOOHUInc20to35kRC25to30pct","H97SOOHUInc20to35kRC30to35pct","H97SOOHUInc20to35kRC>35pct","H97SOOHUInc20to35kRCpctNotComput","H97SOOHUInc35to50k","H97SOOHUInc35to50kRC<20pct","H97SOOHUInc35to50kRC20to25pct","H97SOOHUInc35to50kRC25to30pct","H97SOOHUInc35to50kRC30to35pct","H97SOOHUInc35to50kRC>35pct","H97SOOHUInc35to50kRCpctNotCompute","H97SOOHUInc50to75k","H97SOOHUInc50to75kRC<20pct","H97SOOHUInc50to75kRC20to25pct","H97SOOHUInc50to75kRC25to30pct","H97SOOHUInc50to75kRC30to35pct","H97SOOHUInc50to75kRC>35pct","H97SOOHUInc50to75kRCpctNotComput","H97SOOHUInc75to100k","H97SOOHUInc75to100kRC<20pct","H97SOOHUInc75to100kRC20to25pct","H97SOOHUInc75to100kRC25to30pct","H97SOOHUInc75to100kRC30to35pct","H97SOOHUInc75to100kRC>35pct","H97SOOHUInc75to100kRCpctNotCompute","H97SOOHUInc100to150k","H97SOOHUInc100to150kRC<20pct","H97SOOHUInc100to150kRC20to25pct","H97SOOHUInc100to150kRC25to30pct","H97SOOHUInc100to150kRC30to35pct","H97SOOHUInc100to150kRC>35pct","H97SOOHUInc100to150kRCpctNotCompute","H97SOOHUInc>150k","H97SOOHUInc>150kRC<20pct","H97SOOHUInc>150kRC20to25pct","H97SOOHUInc>150kRC25to30pct","H97SOOHUInc>150kRC30to35pct","H97SOOHUInc>150kRC>35pct","H97SOOHUInc>150kRCpctNotCompute"]
[{"$f":"VLOOKUP(DropDownList!$B$47,CntyQryCensus!$A$408:$FN$450,A$1)","v":"Atkinson"},{"$f":"VLOOKUP(DropDownList!$B$47,CntyQryCensus!$A$408:$FN$450,B$1)","v":"0003039"},{"$f":"VLOOKUP(DropDownList!$B$47,CntyQryCensus!$A$408:$FN$450,C$1)","v":"02340"},{"$f":"VLOOKUP(DropDownList!$B$47,CntyQryCensus!$A$408:$FN$450,D$1)","v":6178},{"$f":"VLOOKUP(DropDownList!$B$47,CntyQryCensus!$A$408:$FN$450,E$1)","v":1791},{"$f":"VLOOKUP(DropDownList!$B$47,CntyQryCensus!$A$408:$FN$450,F$1)","v":0},{"$f":"VLOOKUP(DropDownList!$B$47,CntyQryCensus!$A$408:$FN$450,G$1)","v":0},{"$f":"VLOOKUP(DropDownList!$B$47,CntyQryCensus!$A$408:$FN$450,H$1)","v":0},{"$f":"VLOOKUP(DropDownList!$B$47,CntyQryCensus!$A$408:$FN$450,I$1)","v":0},{"$f":"VLOOKUP(DropDownList!$B$47,CntyQryCensus!$A$408:$FN$450,J$1)","v":0},{"$f":"VLOOKUP(DropDownList!$B$47,CntyQryCensus!$A$408:$FN$450,K$1)","v":0},{"$f":"VLOOKUP(DropDownList!$B$47,CntyQryCensus!$A$408:$FN$450,L$1)","v":0},{"$f":"VLOOKUP(DropDownList!$B$47,CntyQryCensus!$A$408:$FN$450,M$1)","v":0},{"$f":"VLOOKUP(DropDownList!$B$47,CntyQryCensus!$A$408:$FN$450,N$1)","v":0},{"$f":"VLOOKUP(DropDownList!$B$47,CntyQryCensus!$A$408:$FN$450,O$1)","v":0},{"$f":"VLOOKUP(DropDownList!$B$47,CntyQryCensus!$A$408:$FN$450,P$1)","v":9},{"$f":"VLOOKUP(DropDownList!$B$47,CntyQryCensus!$A$408:$FN$450,Q$1)","v":18},{"$f":"VLOOKUP(DropDownList!$B$47,CntyQryCensus!$A$408:$FN$450,R$1)","v":7},{"$f":"VLOOKUP(DropDownList!$B$47,CntyQryCensus!$A$408:$FN$450,S$1)","v":46},{"$f":"VLOOKUP(DropDownList!$B$47,CntyQryCensus!$A$408:$FN$450,T$1)","v":180},{"$f":"VLOOKUP(DropDownList!$B$47,CntyQryCensus!$A$408:$FN$450,U$1)","v":252},{"$f":"VLOOKUP(DropDownList!$B$47,CntyQryCensus!$A$408:$FN$450,V$1)","v":418},{"$f":"VLOOKUP(DropDownList!$B$47,CntyQryCensus!$A$408:$FN$450,W$1)","v":427},{"$f":"VLOOKUP(DropDownList!$B$47,CntyQryCensus!$A$408:$FN$450,X$1)","v":205},{"$f":"VLOOKUP(DropDownList!$B$47,CntyQryCensus!$A$408:$FN$450,Y$1)","v":153},{"$f":"VLOOKUP(DropDownList!$B$47,CntyQryCensus!$A$408:$FN$450,Z$1)","v":17},{"$f":"VLOOKUP(DropDownList!$B$47,CntyQryCensus!$A$408:$FN$450,AA$1)","v":39},{"$f":"VLOOKUP(DropDownList!$B$47,CntyQryCensus!$A$408:$FN$450,AB$1)","v":20},{"$f":"VLOOKUP(DropDownList!$B$47,CntyQryCensus!$A$408:$FN$450,AC$1)","v":0},{"$f":"VLOOKUP(DropDownList!$B$47,CntyQryCensus!$A$408:$FN$450,AD$1)","v":197900},{"$f":"VLOOKUP(DropDownList!$B$47,CntyQryCensus!$A$408:$FN$450,AE$1)","v":2060},{"$f":"VLOOKUP(DropDownList!$B$47,CntyQryCensus!$A$408:$FN$450,AF$1)","v":0},{"$f":"VLOOKUP(DropDownList!$B$47,CntyQryCensus!$A$408:$FN$450,AG$1)","v":0},{"$f":"VLOOKUP(DropDownList!$B$47,CntyQryCensus!$A$408:$FN$450,AH$1)","v":10},{"$f":"VLOOKUP(DropDownList!$B$47,CntyQryCensus!$A$408:$FN$450,AI$1)","v":0},{"$f":"VLOOKUP(DropDownList!$B$47,CntyQryCensus!$A$408:$FN$450,AJ$1)","v":0},{"$f":"VLOOKUP(DropDownList!$B$47,CntyQryCensus!$A$408:$FN$450,AK$1)","v":0},{"$f":"VLOOKUP(DropDownList!$B$47,CntyQryCensus!$A$408:$FN$450,AL$1)","v":0},{"$f":"VLOOKUP(DropDownList!$B$47,CntyQryCensus!$A$408:$FN$450,AM$1)","v":0},{"$f":"VLOOKUP(DropDownList!$B$47,CntyQryCensus!$A$408:$FN$450,AN$1)","v":0},{"$f":"VLOOKUP(DropDownList!$B$47,CntyQryCensus!$A$408:$FN$450,AO$1)","v":0},{"$f":"VLOOKUP(DropDownList!$B$47,CntyQryCensus!$A$408:$FN$450,AP$1)","v":9},{"$f":"VLOOKUP(DropDownList!$B$47,CntyQryCensus!$A$408:$FN$450,AQ$1)","v":18},{"$f":"VLOOKUP(DropDownList!$B$47,CntyQryCensus!$A$408:$FN$450,AR$1)","v":16},{"$f":"VLOOKUP(DropDownList!$B$47,CntyQryCensus!$A$408:$FN$450,AS$1)","v":52},{"$f":"VLOOKUP(DropDownList!$B$47,CntyQryCensus!$A$408:$FN$450,AT$1)","v":193},{"$f":"VLOOKUP(DropDownList!$B$47,CntyQryCensus!$A$408:$FN$450,AU$1)","v":295},{"$f":"VLOOKUP(DropDownList!$B$47,CntyQryCensus!$A$408:$FN$450,AV$1)","v":509},{"$f":"VLOOKUP(DropDownList!$B$47,CntyQryCensus!$A$408:$FN$450,AW$1)","v":460},{"$f":"VLOOKUP(DropDownList!$B$47,CntyQryCensus!$A$408:$FN$450,AX$1)","v":221},{"$f":"VLOOKUP(DropDownList!$B$47,CntyQryCensus!$A$408:$FN$450,AY$1)","v":177},{"$f":"VLOOKUP(DropDownList!$B$47,CntyQryCensus!$A$408:$FN$450,AZ$1)","v":23},{"$f":"VLOOKUP(DropDownList!$B$47,CntyQryCensus!$A$408:$FN$450,BA$1)","v":57},{"$f":"VLOOKUP(DropDownList!$B$47,CntyQryCensus!$A$408:$FN$450,BB$1)","v":20},{"$f":"VLOOKUP(DropDownList!$B$47,CntyQryCensus!$A$408:$FN$450,BC$1)","v":0},{"$f":"VLOOKUP(DropDownList!$B$47,CntyQryCensus!$A$408:$FN$450,BD$1)","v":196500},{"$f":"VLOOKUP(DropDownList!$B$47,CntyQryCensus!$A$408:$FN$450,BE$1)","v":1791},{"$f":"VLOOKUP(DropDownList!$B$47,CntyQryCensus!$A$408:$FN$450,BF$1)","v":1426},{"$f":"VLOOKUP(DropDownList!$B$47,CntyQryCensus!$A$408:$FN$450,BG$1)","v":0},{"$f":"VLOOKUP(DropDownList!$B$47,CntyQryCensus!$A$408:$FN$450,BH$1)","v":0},{"$f":"VLOOKUP(DropDownList!$B$47,CntyQryCensus!$A$408:$FN$450,BI$1)","v":8},{"$f":"VLOOKUP(DropDownList!$B$47,CntyQryCensus!$A$408:$FN$450,BJ$1)","v":16},{"$f":"VLOOKUP(DropDownList!$B$47,CntyQryCensus!$A$408:$FN$450,BK$1)","v":25},{"$f":"VLOOKUP(DropDownList!$B$47,CntyQryCensus!$A$408:$FN$450,BL$1)","v":33},{"$f":"VLOOKUP(DropDownList!$B$47,CntyQryCensus!$A$408:$FN$450,BM$1)","v":26},{"$f":"VLOOKUP(DropDownList!$B$47,CntyQryCensus!$A$408:$FN$450,BN$1)","v":17},{"$f":"VLOOKUP(DropDownList!$B$47,CntyQryCensus!$A$408:$FN$450,BO$1)","v":78},{"$f":"VLOOKUP(DropDownList!$B$47,CntyQryCensus!$A$408:$FN$450,BP$1)","v":252},{"$f":"VLOOKUP(DropDownList!$B$47,CntyQryCensus!$A$408:$FN$450,BQ$1)","v":300},{"$f":"VLOOKUP(DropDownList!$B$47,CntyQryCensus!$A$408:$FN$450,BR$1)","v":485},{"$f":"VLOOKUP(DropDownList!$B$47,CntyQryCensus!$A$408:$FN$450,BS$1)","v":149},{"$f":"VLOOKUP(DropDownList!$B$47,CntyQryCensus!$A$408:$FN$450,BT$1)","v":28},{"$f":"VLOOKUP(DropDownList!$B$47,CntyQryCensus!$A$408:$FN$450,BU$1)","v":9},{"$f":"VLOOKUP(DropDownList!$B$47,CntyQryCensus!$A$408:$FN$450,BV$1)","v":365},{"$f":"VLOOKUP(DropDownList!$B$47,CntyQryCensus!$A$408:$FN$450,BW$1)","v":0},{"$f":"VLOOKUP(DropDownList!$B$47,CntyQryCensus!$A$408:$FN$450,BX$1)","v":0},{"$f":"VLOOKUP(DropDownList!$B$47,CntyQryCensus!$A$408:$FN$450,BY$1)","v":0},{"$f":"VLOOKUP(DropDownList!$B$47,CntyQryCensus!$A$408:$FN$450,BZ$1)","v":10},{"$f":"VLOOKUP(DropDownList!$B$47,CntyQryCensus!$A$408:$FN$450,CA$1)","v":15},{"$f":"VLOOKUP(DropDownList!$B$47,CntyQryCensus!$A$408:$FN$450,CB$1)","v":44},{"$f":"VLOOKUP(DropDownList!$B$47,CntyQryCensus!$A$408:$FN$450,CC$1)","v":31},{"$f":"VLOOKUP(DropDownList!$B$47,CntyQryCensus!$A$408:$FN$450,CD$1)","v":140},{"$f":"VLOOKUP(DropDownList!$B$47,CntyQryCensus!$A$408:$FN$450,CE$1)","v":15},{"$f":"VLOOKUP(DropDownList!$B$47,CntyQryCensus!$A$408:$FN$450,CF$1)","v":44},{"$f":"VLOOKUP(DropDownList!$B$47,CntyQryCensus!$A$408:$FN$450,CG$1)","v":41},{"$f":"VLOOKUP(DropDownList!$B$47,CntyQryCensus!$A$408:$FN$450,CH$1)","v":0},{"$f":"VLOOKUP(DropDownList!$B$47,CntyQryCensus!$A$408:$FN$450,CI$1)","v":25},{"$f":"VLOOKUP(DropDownList!$B$47,CntyQryCensus!$A$408:$FN$450,CJ$1)","v":0},{"$f":"VLOOKUP(DropDownList!$B$47,CntyQryCensus!$A$408:$FN$450,CK$1)","v":1465},{"$f":"VLOOKUP(DropDownList!$B$47,CntyQryCensus!$A$408:$FN$450,CL$1)","v":459},{"$f":"VLOOKUP(DropDownList!$B$47,CntyQryCensus!$A$408:$FN$450,CM$1)","v":1791},{"$f":"VLOOKUP(DropDownList!$B$47,CntyQryCensus!$A$408:$FN$450,CN$1)","v":1426},{"$f":"VLOOKUP(DropDownList!$B$47,CntyQryCensus!$A$408:$FN$450,CO$1)","v":115},{"$f":"VLOOKUP(DropDownList!$B$47,CntyQryCensus!$A$408:$FN$450,CP$1)","v":225},{"$f":"VLOOKUP(DropDownList!$B$47,CntyQryCensus!$A$408:$FN$450,CQ$1)","v":268},{"$f":"VLOOKUP(DropDownList!$B$47,CntyQryCensus!$A$408:$FN$450,CR$1)","v":236},{"$f":"VLOOKUP(DropDownList!$B$47,CntyQryCensus!$A$408:$FN$450,CS$1)","v":241},{"$f":"VLOOKUP(DropDownList!$B$47,CntyQryCensus!$A$408:$FN$450,CT$1)","v":95},{"$f":"VLOOKUP(DropDownList!$B$47,CntyQryCensus!$A$408:$FN$450,CU$1)","v":38},{"$f":"VLOOKUP(DropDownList!$B$47,CntyQryCensus!$A$408:$FN$450,CV$1)","v":94},{"$f":"VLOOKUP(DropDownList!$B$47,CntyQryCensus!$A$408:$FN$450,CW$1)","v":114},{"$f":"VLOOKUP(DropDownList!$B$47,CntyQryCensus!$A$408:$FN$450,CX$1)","v":0},{"$f":"VLOOKUP(DropDownList!$B$47,CntyQryCensus!$A$408:$FN$450,CY$1)","v":365},{"$f":"VLOOKUP(DropDownList!$B$47,CntyQryCensus!$A$408:$FN$450,CZ$1)","v":113},{"$f":"VLOOKUP(DropDownList!$B$47,CntyQryCensus!$A$408:$FN$450,DA$1)","v":142},{"$f":"VLOOKUP(DropDownList!$B$47,CntyQryCensus!$A$408:$FN$450,DB$1)","v":10},{"$f":"VLOOKUP(DropDownList!$B$47,CntyQryCensus!$A$408:$FN$450,DC$1)","v":17},{"$f":"VLOOKUP(DropDownList!$B$47,CntyQryCensus!$A$408:$FN$450,DD$1)","v":0},{"$f":"VLOOKUP(DropDownList!$B$47,CntyQryCensus!$A$408:$FN$450,DE$1)","v":19},{"$f":"VLOOKUP(DropDownList!$B$47,CntyQryCensus!$A$408:$FN$450,DF$1)","v":0},{"$f":"VLOOKUP(DropDownList!$B$47,CntyQryCensus!$A$408:$FN$450,DG$1)","v":37},{"$f":"VLOOKUP(DropDownList!$B$47,CntyQryCensus!$A$408:$FN$450,DH$1)","v":27},{"$f":"VLOOKUP(DropDownList!$B$47,CntyQryCensus!$A$408:$FN$450,DI$1)","v":0},{"$f":"VLOOKUP(DropDownList!$B$47,CntyQryCensus!$A$408:$FN$450,DJ$1)","v":1791},{"$f":"VLOOKUP(DropDownList!$B$47,CntyQryCensus!$A$408:$FN$450,DK$1)","v":28},{"$f":"VLOOKUP(DropDownList!$B$47,CntyQryCensus!$A$408:$FN$450,DL$1)","v":0},{"$f":"VLOOKUP(DropDownList!$B$47,CntyQryCensus!$A$408:$FN$450,DM$1)","v":0},{"$f":"VLOOKUP(DropDownList!$B$47,CntyQryCensus!$A$408:$FN$450,DN$1)","v":0},{"$f":"VLOOKUP(DropDownList!$B$47,CntyQryCensus!$A$408:$FN$450,DO$1)","v":10},{"$f":"VLOOKUP(DropDownList!$B$47,CntyQryCensus!$A$408:$FN$450,DP$1)","v":18},{"$f":"VLOOKUP(DropDownList!$B$47,CntyQryCensus!$A$408:$FN$450,DQ$1)","v":0},{"$f":"VLOOKUP(DropDownList!$B$47,CntyQryCensus!$A$408:$FN$450,DR$1)","v":60},{"$f":"VLOOKUP(DropDownList!$B$47,CntyQryCensus!$A$408:$FN$450,DS$1)","v":0},{"$f":"VLOOKUP(DropDownList!$B$47,CntyQryCensus!$A$408:$FN$450,DT$1)","v":0},{"$f":"VLOOKUP(DropDownList!$B$47,CntyQryCensus!$A$408:$FN$450,DU$1)","v":0},{"$f":"VLOOKUP(DropDownList!$B$47,CntyQryCensus!$A$408:$FN$450,DV$1)","v":9},{"$f":"VLOOKUP(DropDownList!$B$47,CntyQryCensus!$A$408:$FN$450,DW$1)","v":51},{"$f":"VLOOKUP(DropDownList!$B$47,CntyQryCensus!$A$408:$FN$450,DX$1)","v":0},{"$f":"VLOOKUP(DropDownList!$B$47,CntyQryCensus!$A$408:$FN$450,DY$1)","v":151},{"$f":"VLOOKUP(DropDownList!$B$47,CntyQryCensus!$A$408:$FN$450,DZ$1)","v":26},{"$f":"VLOOKUP(DropDownList!$B$47,CntyQryCensus!$A$408:$FN$450,EA$1)","v":17},{"$f":"VLOOKUP(DropDownList!$B$47,CntyQryCensus!$A$408:$FN$450,EB$1)","v":9},{"$f":"VLOOKUP(DropDownList!$B$47,CntyQryCensus!$A$408:$FN$450,EC$1)","v":0},{"$f":"VLOOKUP(DropDownList!$B$47,CntyQryCensus!$A$408:$FN$450,ED$1)","v":99},{"$f":"VLOOKUP(DropDownList!$B$47,CntyQryCensus!$A$408:$FN$450,EE$1)","v":0},{"$f":"VLOOKUP(DropDownList!$B$47,CntyQryCensus!$A$408:$FN$450,EF$1)","v":235},{"$f":"VLOOKUP(DropDownList!$B$47,CntyQryCensus!$A$408:$FN$450,EG$1)","v":79},{"$f":"VLOOKUP(DropDownList!$B$47,CntyQryCensus!$A$408:$FN$450,EH$1)","v":9},{"$f":"VLOOKUP(DropDownList!$B$47,CntyQryCensus!$A$408:$FN$450,EI$1)","v":29},{"$f":"VLOOKUP(DropDownList!$B$47,CntyQryCensus!$A$408:$FN$450,EJ$1)","v":24},{"$f":"VLOOKUP(DropDownList!$B$47,CntyQryCensus!$A$408:$FN$450,EK$1)","v":94},{"$f":"VLOOKUP(DropDownList!$B$47,CntyQryCensus!$A$408:$FN$450,EL$1)","v":0},{"$f":"VLOOKUP(DropDownList!$B$47,CntyQryCensus!$A$408:$FN$450,EM$1)","v":444},{"$f":"VLOOKUP(DropDownList!$B$47,CntyQryCensus!$A$408:$FN$450,EN$1)","v":135},{"$f":"VLOOKUP(DropDownList!$B$47,CntyQryCensus!$A$408:$FN$450,EO$1)","v":72},{"$f":"VLOOKUP(DropDownList!$B$47,CntyQryCensus!$A$408:$FN$450,EP$1)","v":135},{"$f":"VLOOKUP(DropDownList!$B$47,CntyQryCensus!$A$408:$FN$450,EQ$1)","v":62},{"$f":"VLOOKUP(DropDownList!$B$47,CntyQryCensus!$A$408:$FN$450,ER$1)","v":40},{"$f":"VLOOKUP(DropDownList!$B$47,CntyQryCensus!$A$408:$FN$450,ES$1)","v":0},{"$f":"VLOOKUP(DropDownList!$B$47,CntyQryCensus!$A$408:$FN$450,ET$1)","v":315},{"$f":"VLOOKUP(DropDownList!$B$47,CntyQryCensus!$A$408:$FN$450,EU$1)","v":149},{"$f":"VLOOKUP(DropDownList!$B$47,CntyQryCensus!$A$408:$FN$450,EV$1)","v":110},{"$f":"VLOOKUP(DropDownList!$B$47,CntyQryCensus!$A$408:$FN$450,EW$1)","v":39},{"$f":"VLOOKUP(DropDownList!$B$47,CntyQryCensus!$A$408:$FN$450,EX$1)","v":9},{"$f":"VLOOKUP(DropDownList!$B$47,CntyQryCensus!$A$408:$FN$450,EY$1)","v":8},{"$f":"VLOOKUP(DropDownList!$B$47,CntyQryCensus!$A$408:$FN$450,EZ$1)","v":0},{"$f":"VLOOKUP(DropDownList!$B$47,CntyQryCensus!$A$408:$FN$450,FA$1)","v":362},{"$f":"VLOOKUP(DropDownList!$B$47,CntyQryCensus!$A$408:$FN$450,FB$1)","v":288},{"$f":"VLOOKUP(DropDownList!$B$47,CntyQryCensus!$A$408:$FN$450,FC$1)","v":45},{"$f":"VLOOKUP(DropDownList!$B$47,CntyQryCensus!$A$408:$FN$450,FD$1)","v":29},{"$f":"VLOOKUP(DropDownList!$B$47,CntyQryCensus!$A$408:$FN$450,FE$1)","v":0},{"$f":"VLOOKUP(DropDownList!$B$47,CntyQryCensus!$A$408:$FN$450,FF$1)","v":0},{"$f":"VLOOKUP(DropDownList!$B$47,CntyQryCensus!$A$408:$FN$450,FG$1)","v":0},{"$f":"VLOOKUP(DropDownList!$B$47,CntyQryCensus!$A$408:$FN$450,FH$1)","v":196},{"$f":"VLOOKUP(DropDownList!$B$47,CntyQryCensus!$A$408:$FN$450,FI$1)","v":196},{"$f":"VLOOKUP(DropDownList!$B$47,CntyQryCensus!$A$408:$FN$450,FJ$1)","v":0},{"$f":"VLOOKUP(DropDownList!$B$47,CntyQryCensus!$A$408:$FN$450,FK$1)","v":0},{"$f":"VLOOKUP(DropDownList!$B$47,CntyQryCensus!$A$408:$FN$450,FL$1)","v":0},{"$f":"VLOOKUP(DropDownList!$B$47,CntyQryCensus!$A$408:$FN$450,FM$1)","v":0},{"$f":"VLOOKUP(DropDownList!$B$47,CntyQryCensus!$A$408:$FN$450,FN$1)","v":0}]
[]
[]
["Census 2000 SummaryFile3 Sample Data  -  SF3TownQry9HHIncomeByTenure"]
["NAME","LOGRECNO","COUNTY","TotalPop","HCT11OccHU","HCT11OwnOccHU","HCT11OOHUInc<5K","HCT11OOHUInc5to10K","HCT11OOHUInc10to15K","HCT11OOHUInc15to20K","HCT11OOHUInc20to25K","HCT11OOHUInc25to35K","HCT11OOHUInc35to50K","HCT11OOHUInc50to75K","HCT11OOHUInc75to100K","HCT11OOHUInc100to150K","HCT11OOHUInc>150K","HCT11RentOccHU","HCT11ROHUInc<5K","HCT11ROHUInc5to10K","HCT11ROHUInc10to15K","HCT11ROHUInc15to20K","HCT11ROHUInc20to25K","HCT11ROHUInc25to35K","HCT11ROHUInc35to50K","HCT11ROHUInc50to75K","HCT11ROHUInc75to100K","HCT11ROHUInc100to150K","HCT11ROHUInc>150K","HCT12MedHHInc","HCT12MedOwnOccHHInc","HCT12MedRentOccHHInc","Summary Level"]
[{"$f":"VLOOKUP(DropDownList!$B$47,CntyQryCensus!$A$459:$AG$501,A$1)","v":"Atkinson"},{"$f":"VLOOKUP(DropDownList!$B$47,CntyQryCensus!$A$459:$AG$501,B$1)","v":"0003039"},{"$f":"VLOOKUP(DropDownList!$B$47,CntyQryCensus!$A$459:$AG$501,C$1)","v":"02340"},{"$f":"VLOOKUP(DropDownList!$B$47,CntyQryCensus!$A$459:$AG$501,D$1)","v":"Atkinson town"},{"$f":"VLOOKUP(DropDownList!$B$47,CntyQryCensus!$A$459:$AG$501,E$1)","v":"015"},{"$f":"VLOOKUP(DropDownList!$B$47,CntyQryCensus!$A$459:$AG$501,F$1)","v":6178},{"$f":"VLOOKUP(DropDownList!$B$47,CntyQryCensus!$A$459:$AG$501,G$1)","v":2317},{"$f":"VLOOKUP(DropDownList!$B$47,CntyQryCensus!$A$459:$AG$501,H$1)","v":2060},{"$f":"VLOOKUP(DropDownList!$B$47,CntyQryCensus!$A$459:$AG$501,I$1)","v":9},{"$f":"VLOOKUP(DropDownList!$B$47,CntyQryCensus!$A$459:$AG$501,J$1)","v":28},{"$f":"VLOOKUP(DropDownList!$B$47,CntyQryCensus!$A$459:$AG$501,K$1)","v":60},{"$f":"VLOOKUP(DropDownList!$B$47,CntyQryCensus!$A$459:$AG$501,L$1)","v":9},{"$f":"VLOOKUP(DropDownList!$B$47,CntyQryCensus!$A$459:$AG$501,M$1)","v":44},{"$f":"VLOOKUP(DropDownList!$B$47,CntyQryCensus!$A$459:$AG$501,N$1)","v":107},{"$f":"VLOOKUP(DropDownList!$B$47,CntyQryCensus!$A$459:$AG$501,O$1)","v":307},{"$f":"VLOOKUP(DropDownList!$B$47,CntyQryCensus!$A$459:$AG$501,P$1)","v":471},{"$f":"VLOOKUP(DropDownList!$B$47,CntyQryCensus!$A$459:$AG$501,Q$1)","v":382},{"$f":"VLOOKUP(DropDownList!$B$47,CntyQryCensus!$A$459:$AG$501,R$1)","v":423},{"$f":"VLOOKUP(DropDownList!$B$47,CntyQryCensus!$A$459:$AG$501,S$1)","v":220},{"$f":"VLOOKUP(DropDownList!$B$47,CntyQryCensus!$A$459:$AG$501,T$1)","v":257},{"$f":"VLOOKUP(DropDownList!$B$47,CntyQryCensus!$A$459:$AG$501,U$1)","v":20},{"$f":"VLOOKUP(DropDownList!$B$47,CntyQryCensus!$A$459:$AG$501,V$1)","v":28},{"$f":"VLOOKUP(DropDownList!$B$47,CntyQryCensus!$A$459:$AG$501,W$1)","v":19},{"$f":"VLOOKUP(DropDownList!$B$47,CntyQryCensus!$A$459:$AG$501,X$1)","v":29},{"$f":"VLOOKUP(DropDownList!$B$47,CntyQryCensus!$A$459:$AG$501,Y$1)","v":48},{"$f":"VLOOKUP(DropDownList!$B$47,CntyQryCensus!$A$459:$AG$501,Z$1)","v":19},{"$f":"VLOOKUP(DropDownList!$B$47,CntyQryCensus!$A$459:$AG$501,AA$1)","v":37},{"$f":"VLOOKUP(DropDownList!$B$47,CntyQryCensus!$A$459:$AG$501,AB$1)","v":16},{"$f":"VLOOKUP(DropDownList!$B$47,CntyQryCensus!$A$459:$AG$501,AC$1)","v":6},{"$f":"VLOOKUP(DropDownList!$B$47,CntyQryCensus!$A$459:$AG$501,AD$1)","v":27},{"$f":"VLOOKUP(DropDownList!$B$47,CntyQryCensus!$A$459:$AG$501,AE$1)","v":8},{"$f":"VLOOKUP(DropDownList!$B$47,CntyQryCensus!$A$459:$AG$501,AF$1)","v":69552},{"$f":"VLOOKUP(DropDownList!$B$47,CntyQryCensus!$A$459:$AG$501,AG$1)","v":74716}]
[]
[]
[]
[]
[]
[{"$f":"A80","v":"Atkinson"}]
[]
[]
[]
[]
[]
[]
[]
["Census 2000 SummaryFile3 Sample Data - SF3TownQry10Disabil"]
["NAME","LOGRECNO","COUNTY","TotalPop","PCT026001-NonInstPop5yrs+","PCT026002-MaleNonInstPop5yrs+","PCT026003","PCT026004","PCT026005","PCT026006","PCT026007","PCT026008","PCT026009","PCT026010","PCT026011","PCT026012","PCT026013","PCT026014","PCT026015","PCT026016","PCT026017","PCT026018","PCT026019","PCT026020","PCT026021","PCT026022","PCT026023","PCT026024","PCT026025","PCT026026","PCT026027","PCT026028","PCT026029","PCT026030","PCT026031","PCT026032","PCT026033","PCT026034","PCT026035","PCT026036","PCT026037","PCT026038","PCT026039","PCT026040","PCT026041","PCT026042","PCT026043","PCT026044","PCT026045","PCT026046","PCT026047","PCT026048","PCT026049","PCT026050","PCT026051","PCT026052","PCT026053","PCT026054","PCT026055","PCT026056","PCT026057","PCT026058","PCT026059","PCT026060","PCT026061","PCT026062","PCT026063","PCT026064","PCT026065","PCT026066","PCT026067","PCT026068","PCT026069","PCT026070","PCT026071","PCT026072","PCT026073","PCT026074","PCT026075","PCT026076","PCT026077","PCT026078","PCT026079","PCT026080","PCT026081","PCT026082","PCT026083","PCT026084","PCT026085","PCT026086","PCT026087","PCT026088","PCT026089","PCT026090","PCT026091","PCT026092","PCT026093","PCT026094","PCT026095","PCT026096","PCT026097","PCT026098","PCT026099","PCT026100","PCT026101"]
[{"$f":"VLOOKUP(DropDownList!$B$47,CntyQryCensus!$A$54:$DA$90,A$1)","v":"Atkinson"},{"$f":"VLOOKUP(DropDownList!$B$47,CntyQryCensus!$A$510:$DA$552,B$1)","v":"0003039"},{"$f":"VLOOKUP(DropDownList!$B$47,CntyQryCensus!$A$510:$DA$552,C$1)","v":"02340"},{"$f":"VLOOKUP(DropDownList!$B$47,CntyQryCensus!$A$510:$DA$552,D$1)","v":6178},{"$f":"VLOOKUP(DropDownList!$B$47,CntyQryCensus!$A$510:$DA$552,E$1)","v":5767},{"$f":"VLOOKUP(DropDownList!$B$47,CntyQryCensus!$A$510:$DA$552,F$1)","v":2833},{"$f":"VLOOKUP(DropDownList!$B$47,CntyQryCensus!$A$510:$DA$552,G$1)","v":434},{"$f":"VLOOKUP(DropDownList!$B$47,CntyQryCensus!$A$510:$DA$552,H$1)","v":9},{"$f":"VLOOKUP(DropDownList!$B$47,CntyQryCensus!$A$510:$DA$552,I$1)","v":0},{"$f":"VLOOKUP(DropDownList!$B$47,CntyQryCensus!$A$510:$DA$552,J$1)","v":0},{"$f":"VLOOKUP(DropDownList!$B$47,CntyQryCensus!$A$510:$DA$552,K$1)","v":9},{"$f":"VLOOKUP(DropDownList!$B$47,CntyQryCensus!$A$510:$DA$552,L$1)","v":0},{"$f":"VLOOKUP(DropDownList!$B$47,CntyQryCensus!$A$510:$DA$552,M$1)","v":10},{"$f":"VLOOKUP(DropDownList!$B$47,CntyQryCensus!$A$510:$DA$552,N$1)","v":10},{"$f":"VLOOKUP(DropDownList!$B$47,CntyQryCensus!$A$510:$DA$552,O$1)","v":0},{"$f":"VLOOKUP(DropDownList!$B$47,CntyQryCensus!$A$510:$DA$552,P$1)","v":415},{"$f":"VLOOKUP(DropDownList!$B$47,CntyQryCensus!$A$510:$DA$552,Q$1)","v":173},{"$f":"VLOOKUP(DropDownList!$B$47,CntyQryCensus!$A$510:$DA$552,R$1)","v":20},{"$f":"VLOOKUP(DropDownList!$B$47,CntyQryCensus!$A$510:$DA$552,S$1)","v":0},{"$f":"VLOOKUP(DropDownList!$B$47,CntyQryCensus!$A$510:$DA$552,T$1)","v":10},{"$f":"VLOOKUP(DropDownList!$B$47,CntyQryCensus!$A$510:$DA$552,U$1)","v":0},{"$f":"VLOOKUP(DropDownList!$B$47,CntyQryCensus!$A$510:$DA$552,V$1)","v":0},{"$f":"VLOOKUP(DropDownList!$B$47,CntyQryCensus!$A$510:$DA$552,W$1)","v":0},{"$f":"VLOOKUP(DropDownList!$B$47,CntyQryCensus!$A$510:$DA$552,X$1)","v":10},{"$f":"VLOOKUP(DropDownList!$B$47,CntyQryCensus!$A$510:$DA$552,Y$1)","v":6},{"$f":"VLOOKUP(DropDownList!$B$47,CntyQryCensus!$A$510:$DA$552,Z$1)","v":0},{"$f":"VLOOKUP(DropDownList!$B$47,CntyQryCensus!$A$510:$DA$552,AA$1)","v":6},{"$f":"VLOOKUP(DropDownList!$B$47,CntyQryCensus!$A$510:$DA$552,AB$1)","v":0},{"$f":"VLOOKUP(DropDownList!$B$47,CntyQryCensus!$A$510:$DA$552,AC$1)","v":6},{"$f":"VLOOKUP(DropDownList!$B$47,CntyQryCensus!$A$510:$DA$552,AD$1)","v":147},{"$f":"VLOOKUP(DropDownList!$B$47,CntyQryCensus!$A$510:$DA$552,AE$1)","v":1891},{"$f":"VLOOKUP(DropDownList!$B$47,CntyQryCensus!$A$510:$DA$552,AF$1)","v":233},{"$f":"VLOOKUP(DropDownList!$B$47,CntyQryCensus!$A$510:$DA$552,AG$1)","v":43},{"$f":"VLOOKUP(DropDownList!$B$47,CntyQryCensus!$A$510:$DA$552,AH$1)","v":13},{"$f":"VLOOKUP(DropDownList!$B$47,CntyQryCensus!$A$510:$DA$552,AI$1)","v":33},{"$f":"VLOOKUP(DropDownList!$B$47,CntyQryCensus!$A$510:$DA$552,AJ$1)","v":0},{"$f":"VLOOKUP(DropDownList!$B$47,CntyQryCensus!$A$510:$DA$552,AK$1)","v":0},{"$f":"VLOOKUP(DropDownList!$B$47,CntyQryCensus!$A$510:$DA$552,AL$1)","v":144},{"$f":"VLOOKUP(DropDownList!$B$47,CntyQryCensus!$A$510:$DA$552,AM$1)","v":64},{"$f":"VLOOKUP(DropDownList!$B$47,CntyQryCensus!$A$510:$DA$552,AN$1)","v":14},{"$f":"VLOOKUP(DropDownList!$B$47,CntyQryCensus!$A$510:$DA$552,AO$1)","v":50},{"$f":"VLOOKUP(DropDownList!$B$47,CntyQryCensus!$A$510:$DA$552,AP$1)","v":27},{"$f":"VLOOKUP(DropDownList!$B$47,CntyQryCensus!$A$510:$DA$552,AQ$1)","v":23},{"$f":"VLOOKUP(DropDownList!$B$47,CntyQryCensus!$A$510:$DA$552,AR$1)","v":1594},{"$f":"VLOOKUP(DropDownList!$B$47,CntyQryCensus!$A$510:$DA$552,AS$1)","v":335},{"$f":"VLOOKUP(DropDownList!$B$47,CntyQryCensus!$A$510:$DA$552,AT$1)","v":79},{"$f":"VLOOKUP(DropDownList!$B$47,CntyQryCensus!$A$510:$DA$552,AU$1)","v":51},{"$f":"VLOOKUP(DropDownList!$B$47,CntyQryCensus!$A$510:$DA$552,AV$1)","v":19},{"$f":"VLOOKUP(DropDownList!$B$47,CntyQryCensus!$A$510:$DA$552,AW$1)","v":9},{"$f":"VLOOKUP(DropDownList!$B$47,CntyQryCensus!$A$510:$DA$552,AX$1)","v":0},{"$f":"VLOOKUP(DropDownList!$B$47,CntyQryCensus!$A$510:$DA$552,AY$1)","v":0},{"$f":"VLOOKUP(DropDownList!$B$47,CntyQryCensus!$A$510:$DA$552,AZ$1)","v":15},{"$f":"VLOOKUP(DropDownList!$B$47,CntyQryCensus!$A$510:$DA$552,BA$1)","v":0},{"$f":"VLOOKUP(DropDownList!$B$47,CntyQryCensus!$A$510:$DA$552,BB$1)","v":15},{"$f":"VLOOKUP(DropDownList!$B$47,CntyQryCensus!$A$510:$DA$552,BC$1)","v":241},{"$f":"VLOOKUP(DropDownList!$B$47,CntyQryCensus!$A$510:$DA$552,BD$1)","v":2934},{"$f":"VLOOKUP(DropDownList!$B$47,CntyQryCensus!$A$510:$DA$552,BE$1)","v":531},{"$f":"VLOOKUP(DropDownList!$B$47,CntyQryCensus!$A$510:$DA$552,BF$1)","v":0},{"$f":"VLOOKUP(DropDownList!$B$47,CntyQryCensus!$A$510:$DA$552,BG$1)","v":0},{"$f":"VLOOKUP(DropDownList!$B$47,CntyQryCensus!$A$510:$DA$552,BH$1)","v":0},{"$f":"VLOOKUP(DropDownList!$B$47,CntyQryCensus!$A$510:$DA$552,BI$1)","v":0},{"$f":"VLOOKUP(DropDownList!$B$47,CntyQryCensus!$A$510:$DA$552,BJ$1)","v":0},{"$f":"VLOOKUP(DropDownList!$B$47,CntyQryCensus!$A$510:$DA$552,BK$1)","v":8},{"$f":"VLOOKUP(DropDownList!$B$47,CntyQryCensus!$A$510:$DA$552,BL$1)","v":8},{"$f":"VLOOKUP(DropDownList!$B$47,CntyQryCensus!$A$510:$DA$552,BM$1)","v":0},{"$f":"VLOOKUP(DropDownList!$B$47,CntyQryCensus!$A$510:$DA$552,BN$1)","v":523},{"$f":"VLOOKUP(DropDownList!$B$47,CntyQryCensus!$A$510:$DA$552,BO$1)","v":124},{"$f":"VLOOKUP(DropDownList!$B$47,CntyQryCensus!$A$510:$DA$552,BP$1)","v":7},{"$f":"VLOOKUP(DropDownList!$B$47,CntyQryCensus!$A$510:$DA$552,BQ$1)","v":0},{"$f":"VLOOKUP(DropDownList!$B$47,CntyQryCensus!$A$510:$DA$552,BR$1)","v":0},{"$f":"VLOOKUP(DropDownList!$B$47,CntyQryCensus!$A$510:$DA$552,BS$1)","v":0},{"$f":"VLOOKUP(DropDownList!$B$47,CntyQryCensus!$A$510:$DA$552,BT$1)","v":0},{"$f":"VLOOKUP(DropDownList!$B$47,CntyQryCensus!$A$510:$DA$552,BU$1)","v":0},{"$f":"VLOOKUP(DropDownList!$B$47,CntyQryCensus!$A$510:$DA$552,BV$1)","v":7},{"$f":"VLOOKUP(DropDownList!$B$47,CntyQryCensus!$A$510:$DA$552,BW$1)","v":0},{"$f":"VLOOKUP(DropDownList!$B$47,CntyQryCensus!$A$510:$DA$552,BX$1)","v":0},{"$f":"VLOOKUP(DropDownList!$B$47,CntyQryCensus!$A$510:$DA$552,BY$1)","v":0},{"$f":"VLOOKUP(DropDownList!$B$47,CntyQryCensus!$A$510:$DA$552,BZ$1)","v":0},{"$f":"VLOOKUP(DropDownList!$B$47,CntyQryCensus!$A$510:$DA$552,CA$1)","v":0},{"$f":"VLOOKUP(DropDownList!$B$47,CntyQryCensus!$A$510:$DA$552,CB$1)","v":117},{"$f":"VLOOKUP(DropDownList!$B$47,CntyQryCensus!$A$510:$DA$552,CC$1)","v":1917},{"$f":"VLOOKUP(DropDownList!$B$47,CntyQryCensus!$A$510:$DA$552,CD$1)","v":150},{"$f":"VLOOKUP(DropDownList!$B$47,CntyQryCensus!$A$510:$DA$552,CE$1)","v":7},{"$f":"VLOOKUP(DropDownList!$B$47,CntyQryCensus!$A$510:$DA$552,CF$1)","v":16},{"$f":"VLOOKUP(DropDownList!$B$47,CntyQryCensus!$A$510:$DA$552,CG$1)","v":0},{"$f":"VLOOKUP(DropDownList!$B$47,CntyQryCensus!$A$510:$DA$552,CH$1)","v":7},{"$f":"VLOOKUP(DropDownList!$B$47,CntyQryCensus!$A$510:$DA$552,CI$1)","v":16},{"$f":"VLOOKUP(DropDownList!$B$47,CntyQryCensus!$A$510:$DA$552,CJ$1)","v":104},{"$f":"VLOOKUP(DropDownList!$B$47,CntyQryCensus!$A$510:$DA$552,CK$1)","v":66},{"$f":"VLOOKUP(DropDownList!$B$47,CntyQryCensus!$A$510:$DA$552,CL$1)","v":26},{"$f":"VLOOKUP(DropDownList!$B$47,CntyQryCensus!$A$510:$DA$552,CM$1)","v":40},{"$f":"VLOOKUP(DropDownList!$B$47,CntyQryCensus!$A$510:$DA$552,CN$1)","v":7},{"$f":"VLOOKUP(DropDownList!$B$47,CntyQryCensus!$A$510:$DA$552,CO$1)","v":33},{"$f":"VLOOKUP(DropDownList!$B$47,CntyQryCensus!$A$510:$DA$552,CP$1)","v":1701},{"$f":"VLOOKUP(DropDownList!$B$47,CntyQryCensus!$A$510:$DA$552,CQ$1)","v":362},{"$f":"VLOOKUP(DropDownList!$B$47,CntyQryCensus!$A$510:$DA$552,CR$1)","v":16},{"$f":"VLOOKUP(DropDownList!$B$47,CntyQryCensus!$A$510:$DA$552,CS$1)","v":7},{"$f":"VLOOKUP(DropDownList!$B$47,CntyQryCensus!$A$510:$DA$552,CT$1)","v":9},{"$f":"VLOOKUP(DropDownList!$B$47,CntyQryCensus!$A$510:$DA$552,CU$1)","v":0},{"$f":"VLOOKUP(DropDownList!$B$47,CntyQryCensus!$A$510:$DA$552,CV$1)","v":0},{"$f":"VLOOKUP(DropDownList!$B$47,CntyQryCensus!$A$510:$DA$552,CW$1)","v":0},{"$f":"VLOOKUP(DropDownList!$B$47,CntyQryCensus!$A$510:$DA$552,CX$1)","v":63},{"$f":"VLOOKUP(DropDownList!$B$47,CntyQryCensus!$A$510:$DA$552,CY$1)","v":19},{"$f":"VLOOKUP(DropDownList!$B$47,CntyQryCensus!$A$510:$DA$552,CZ$1)","v":44},{"$f":"VLOOKUP(DropDownList!$B$47,CntyQryCensus!$A$510:$DA$552,DA$1)","v":283}]
[]
[]
[]
[]
[]
[]
[]
[]
["ACS",2,{"$f":"B105+1","v":3},{"$f":"C105+1","v":4},5,6,7,8,9,10,11,{"$f":"K105+1","v":12},13,14,15,{"$f":"O105+1","v":16},17,18,19,20,21,22,23,24,25,26,27,28,29,30,31,32,33,34,35,36,37,38,39,40,41,42,43,44,45,46,47,48,49,50,51,52,53,54,55,56,57,58,59,60,61,62,63,64,65,66,67,{"$f":"BO105+1","v":68},69,70,71,72,73,74,75,76,77,78,79,80,81,82,83,84,85,86,87,88,89,90,91,92,93,94,95,96,97,98,99,100,101,102,103,104,105,106,107,108,109,110,111,112,113,114,115,116,117,118,119,120,121,122,123,124,125]
["Househould Data (Housing Unit Type)"]
["NAME","TotalHU",{"$f":"\"MOE \"&B107","v":"MOE TotalHU"},"TotalOccHU",{"$f":"\"MOE \"&D107","v":"MOE TotalOccHU"},"TotalOwnerOccUn",{"$f":"\"MOE \"&F107","v":"MOE TotalOwnerOccUn"},"TotalRenterOccn",{"$f":"\"MOE \"&H107","v":"MOE TotalRenterOccn"},"TotalVacantUntis",{"$f":"\"MOE \"&J107","v":"MOE TotalVacantUntis"},"VacantUnitsForRent",{"$f":"\"MOE \"&L107","v":"MOE VacantUnitsForRent"},"VacantUnitRentedNotOcc",{"$f":"\"MOE \"&N107","v":"MOE VacantUnitRentedNotOcc"},"VacantUnitForSale",{"$f":"\"MOE \"&P107","v":"MOE VacantUnitForSale"},"VacantUnitSoldNotOcc",{"$f":"\"MOE \"&R107","v":"MOE VacantUnitSoldNotOcc"},"VacantUnitSeasonalRec",{"$f":"\"MOE \"&T107","v":"MOE VacantUnitSeasonalRec"},"TotalPopInHousingUnits",{"$f":"\"MOE \"&V107","v":"MOE TotalPopInHousingUnits"},"OwnerOccPopHousingUnits",{"$f":"\"MOE \"&X107","v":"MOE OwnerOccPopHousingUnits"},"RenterOccPopHousingUnits",{"$f":"\"MOE \"&Z107","v":"MOE RenterOccPopHousingUnits"},"TotalUntis",{"$f":"\"MOE \"&AB107","v":"MOE TotalUntis"},"TotalOwnerOccUnits",{"$f":"\"MOE \"&AD107","v":"MOE TotalOwnerOccUnits"},"SigFamOwnerOcc",{"$f":"\"MOE \"&AF107","v":"MOE SigFamOwnerOcc"},"MultiFamOwnerOcc",{"$f":"\"MOE \"&AH107","v":"MOE MultiFamOwnerOcc"},"MobileOwnerOcc",{"$f":"\"MOE \"&AJ107","v":"MOE MobileOwnerOcc"},"TotalRenterOccUnits",{"$f":"\"MOE \"&AL107","v":"MOE TotalRenterOccUnits"},"SigFamRenterOcc",{"$f":"\"MOE \"&AN107","v":"MOE SigFamRenterOcc"},"MultiFamRenterOcc",{"$f":"\"MOE \"&AP107","v":"MOE MultiFamRenterOcc"},"MobileRenterOcc",{"$f":"\"MOE \"&AR107","v":"MOE MobileRenterOcc"},"TotalSigFamilyUnits",{"$f":"\"MOE \"&AT107","v":"MOE TotalSigFamilyUnits"},"TotalMultiFamilyUnits",{"$f":"\"MOE \"&AV107","v":"MOE TotalMultiFamilyUnits"},"TotalMobileUnits",{"$f":"\"MOE \"&AX107","v":"MOE TotalMobileUnits"},"YrHouseBuilt2014Later",{"$f":"\"MOE \"&AZ107","v":"MOE YrHouseBuilt2014Later"},"YrHouseBuilt2010-2013",{"$f":"\"MOE \"&BB107","v":"MOE YrHouseBuilt2010-2013"},"YrHouseBuilt2000-2009",{"$f":"\"MOE \"&BD107","v":"MOE YrHouseBuilt2000-2009"},"YrHouseBuilt1990-1999",{"$f":"\"MOE \"&BF107","v":"MOE YrHouseBuilt1990-1999"},"YrHouseBuilt1980-1989",{"$f":"\"MOE \"&BH107","v":"MOE YrHouseBuilt1980-1989"},"YrHouseBuilt1970-1979",{"$f":"\"MOE \"&BJ107","v":"MOE YrHouseBuilt1970-1979"},"YrHouseBuilt1960-1969",{"$f":"\"MOE \"&BL107","v":"MOE YrHouseBuilt1960-1969"},"YrHouseBuilt1950-1959",{"$f":"\"MOE \"&BN107","v":"MOE YrHouseBuilt1950-1959"},"YrHouseBuilt1940-1949",{"$f":"\"MOE \"&BP107","v":"MOE YrHouseBuilt1940-1949"},"YrHouseBuilt1939orEarlier",{"$f":"\"MOE \"&BR107","v":"MOE YrHouseBuilt1939orEarlier"},"NoBedrooms",{"$f":"\"MOE \"&BT107","v":"MOE NoBedrooms"},"1Bedroom",{"$f":"\"MOE \"&BV107","v":"MOE 1Bedroom"},"2Bedroom",{"$f":"\"MOE \"&BX107","v":"MOE 2Bedroom"},"3Bedroom",{"$f":"\"MOE \"&BZ107","v":"MOE 3Bedroom"},"4+Bedroom",{"$f":"\"MOE \"&CB107","v":"MOE 4+Bedroom"}]
[{"$f":"VLOOKUP(DropDownList!$B$47,CntyQryCensus!$A$510:$DA$546,A$1)","v":"Atkinson"},2899,199,2745,185,2551,169,194,106,154,101,0,16,0,16,0,16,0,16,78,73,6952,33,6688,165,264,160,2745,185,2551,169,2087,162,464,124.55520864259351,0,22.627416997969522,194,106,18,29,176,130.10380470993152,0,22.627416997969522,2259,187,640,184.59685804476737,0,22.627416997969522,81,66,37,41,335,112,521,177,536,137,571,165,432,128,167,113,18,28,201,104,40,39,136,80,529,140,1352,223,842,203.39370688396434,81,79,36,74,28,76,114,30,114,142,91,44,40,134,119,76,105,14,132,142,84,108,151,154,137,30,701,207.10383868967759,300,141.01418368376991,207.27517941133232,197.81304304822774]
[]
["Disability Data"]
["NAME","TotalPop",{"$f":"\"MOE \"&B111","v":"MOE TotalPop"},"PopUnder 5 years:",{"$f":"\"MOE \"&D111","v":"MOE PopUnder 5 years:"},{"$f":"D$111&\"-WithDisability\"","v":"PopUnder 5 years:-WithDisability"},{"$f":"\"MOE \"&F111","v":"MOE PopUnder 5 years:-WithDisability"},{"$f":"D111&\"-NoDisability\"","v":"PopUnder 5 years:-NoDisability"},{"$f":"\"MOE \"&H111","v":"MOE PopUnder 5 years:-NoDisability"},"PopUnder 5 to 17years:",{"$f":"\"MOE \"&J111","v":"MOE PopUnder 5 to 17years:"},{"$f":"J$111&\"-WithDisability\"","v":"PopUnder 5 to 17years:-WithDisability"},{"$f":"\"MOE \"&L111","v":"MOE PopUnder 5 to 17years:-WithDisability"},{"$f":"J111&\"-NoDisability\"","v":"PopUnder 5 to 17years:-NoDisability"},{"$f":"\"MOE \"&N111","v":"MOE PopUnder 5 to 17years:-NoDisability"},"PopUnder 18 to 34 years:",{"$f":"\"MOE \"&P111","v":"MOE PopUnder 18 to 34 years:"},{"$f":"P$111&\"-WithDisability\"","v":"PopUnder 18 to 34 years:-WithDisability"},{"$f":"\"MOE \"&R111","v":"MOE PopUnder 18 to 34 years:-WithDisability"},{"$f":"P111&\"-NoDisability\"","v":"PopUnder 18 to 34 years:-NoDisability"},{"$f":"\"MOE \"&T111","v":"MOE PopUnder 18 to 34 years:-NoDisability"},"Pop 35 years to 64:",{"$f":"\"MOE \"&V111","v":"MOE Pop 35 years to 64:"},{"$f":"$V$111&\"-WithDisability\"","v":"Pop 35 years to 64:-WithDisability"},{"$f":"\"MOE \"&X111","v":"MOE Pop 35 years to 64:-WithDisability"},{"$f":"$V$111&\"-NoDisability\"","v":"Pop 35 years to 64:-NoDisability"},{"$f":"\"MOE \"&Z111","v":"MOE Pop 35 years to 64:-NoDisability"},"Pop 65 years to 74:",{"$f":"\"MOE \"&AB111","v":"MOE Pop 65 years to 74:"},{"$f":"$AB$111&\"-WithDisability\"","v":"Pop 65 years to 74:-WithDisability"},{"$f":"\"MOE \"&AD111","v":"MOE Pop 65 years to 74:-WithDisability"},{"$f":"$AB$111&\"-NoDisability\"","v":"Pop 65 years to 74:-NoDisability"},{"$f":"\"MOE \"&AF111","v":"MOE Pop 65 years to 74:-NoDisability"},"Pop 75 and older:",{"$f":"\"MOE \"&AH111","v":"MOE Pop 75 and older:"},{"$f":"$AH$111&\"-WithDisability\"","v":"Pop 75 and older:-WithDisability"},{"$f":"\"MOE \"&AJ111","v":"MOE Pop 75 and older:-WithDisability"},{"$f":"$AH$111&\"-NoDisability\"","v":"Pop 75 and older:-NoDisability"},{"$f":"\"MOE \"&AL111","v":"MOE Pop 75 and older:-NoDisability"},"TotalPopUnder5_HearingDisability",{"$f":"\"MOE \"&AN111","v":"MOE TotalPopUnder5_HearingDisability"},"TotalPopUnder5_HearingDisability",{"$f":"\"MOE \"&AP111","v":"MOE TotalPopUnder5_HearingDisability"},"TotalPop18To34_HearingDisability",{"$f":"\"MOE \"&AR111","v":"MOE TotalPop18To34_HearingDisability"},"TotalPop35To64_HearingDisability",{"$f":"\"MOE \"&AT111","v":"MOE TotalPop35To64_HearingDisability"},"TotalPop65To74_HearingDisability",{"$f":"\"MOE \"&AV111","v":"MOE TotalPop65To74_HearingDisability"},"TotalPop75andOlder_HearingDisability",{"$f":"\"MOE \"&AX111","v":"MOE TotalPop75andOlder_HearingDisability"},"TotalPopUnder5_VisionDisability",{"$f":"\"MOE \"&AZ111","v":"MOE TotalPopUnder5_VisionDisability"},"TotalPop5To17_VisionDisability",{"$f":"\"MOE \"&BB111","v":"MOE TotalPop5To17_VisionDisability"},"TotalPop18To34_VisionDisability",{"$f":"\"MOE \"&BD111","v":"MOE TotalPop18To34_VisionDisability"},"TotalPop35To64_VisionDisability",{"$f":"\"MOE \"&BF111","v":"MOE TotalPop35To64_VisionDisability"},"TotalPop65To74_VisionDisability",{"$f":"\"MOE \"&BH111","v":"MOE TotalPop65To74_VisionDisability"},"TotalPop75andOlder_VisionDisability",{"$f":"\"MOE \"&BJ111","v":"MOE TotalPop75andOlder_VisionDisability"},"TotalPop5To17_CongnitiveDisability",{"$f":"\"MOE \"&BL111","v":"MOE TotalPop5To17_CongnitiveDisability"},"TotalPop18To34_CongnitiveDisability",{"$f":"\"MOE \"&BN111","v":"MOE TotalPop18To34_CongnitiveDisability"},"TotalPop35To64_CongnitiveDisability",{"$f":"\"MOE \"&BP111","v":"MOE TotalPop35To64_CongnitiveDisability"},"TotalPop65To74_CongnitiveDisability",{"$f":"\"MOE \"&BR111","v":"MOE TotalPop65To74_CongnitiveDisability"},"TotalPop75andOlder_CongnitiveDisability",{"$f":"\"MOE \"&BT111","v":"MOE TotalPop75andOlder_CongnitiveDisability"},"TotalPop5To17_AmbulatoryDisability",{"$f":"\"MOE \"&BV111","v":"MOE TotalPop5To17_AmbulatoryDisability"},"TotalPop18To34_AmbulatoryDisability",{"$f":"\"MOE \"&BX111","v":"MOE TotalPop18To34_AmbulatoryDisability"},"TotalPop35To64_AmbulatoryDisability",{"$f":"\"MOE \"&BZ111","v":"MOE TotalPop35To64_AmbulatoryDisability"},"TotalPop65To74_AmbulatoryDisability",{"$f":"\"MOE \"&CB111","v":"MOE TotalPop65To74_AmbulatoryDisability"},"TotalPop75andOlder_AmbulatoryDisability",{"$f":"\"MOE \"&CD111","v":"MOE TotalPop75andOlder_AmbulatoryDisability"},"TotalPop5To17_SelfCareDisability",{"$f":"\"MOE \"&CF111","v":"MOE TotalPop5To17_SelfCareDisability"},"TotalPop18To34_SelfCareDisability",{"$f":"\"MOE \"&CH111","v":"MOE TotalPop18To34_SelfCareDisability"},"TotalPop35To64_SelfCareDisability",{"$f":"\"MOE \"&CJ111","v":"MOE TotalPop35To64_SelfCareDisability"},"TotalPop65To74_SelfCareDisability",{"$f":"\"MOE \"&CL111","v":"MOE TotalPop65To74_SelfCareDisability"},"TotalPop75andOlder_SelfCareDisability",{"$f":"\"MOE \"&CN111","v":"MOE TotalPop75andOlder_SelfCareDisability"},"TotalPop18To34_IndependantLivingDisability",{"$f":"\"MOE \"&CP111","v":"MOE TotalPop18To34_IndependantLivingDisability"},"TotalPop35To64_IndependantLivingDisability",{"$f":"\"MOE \"&CR111","v":"MOE TotalPop35To64_IndependantLivingDisability"},"TotalPop65To74_IndependantLivingDisability",{"$f":"\"MOE \"&CT111","v":"MOE TotalPop65To74_IndependantLivingDisability"},"TotalPop75andOlder_IndependantLivingDisability",{"$f":"\"MOE \"&CV111","v":"MOE TotalPop75andOlder_IndependantLivingDisability"},"TotalUnder5_HearingorVisionDisability",{"$f":"\"MOE \"&CX111","v":"MOE TotalUnder5_HearingorVisionDisability"},"TotalUnder5_HearingandVisionDisability",{"$f":"\"MOE \"&CZ111","v":"MOE TotalUnder5_HearingandVisionDisability"},"5to17YearWIthOneDisability",{"$f":"\"MOE \"&DB111","v":"MOE 5to17YearWIthOneDisability"},"5to17YearWIthTwoOrMoreDisability",{"$f":"\"MOE \"&DD111","v":"MOE 5to17YearWIthTwoOrMoreDisability"},"18to34YearWIthOneDisability",{"$f":"\"MOE \"&DF111","v":"MOE 18to34YearWIthOneDisability"},"18to34YearWIthTwoOrMoreDisability",{"$f":"\"MOE \"&DH111","v":"MOE 18to34YearWIthTwoOrMoreDisability"},"35to64YearWIthOneDisability",{"$f":"\"MOE \"&DJ111","v":"MOE 35to64YearWIthOneDisability"},"35to64YearWIthTwoOrMoreDisability",{"$f":"\"MOE \"&DL111","v":"MOE 35to64YearWIthTwoOrMoreDisability"},"65to74YearWIthOneDisability",{"$f":"\"MOE \"&DN111","v":"MOE 65to74YearWIthOneDisability"},"65to74YearWIthTwoOrMoreDisability",{"$f":"\"MOE \"&DP111","v":"MOE 65to74YearWIthTwoOrMoreDisability"},"75AndOlderWIthOneDisability",{"$f":"\"MOE \"&DR111","v":"MOE 75AndOlderWIthOneDisability"},"75AndOlderWIthTwoOrMoreDisability",{"$f":"\"MOE \"&DT111","v":"MOE 75AndOlderWIthTwoOrMoreDisability"}]
[{"$f":"VLOOKUP(DropDownList!$B$47,CntyQryCensus!$A$510:$DA$546,A$1)","v":"Atkinson"},6952,33,275,133.843191832831,0,22.627416997969522,275,133.843191832831,1110,282.33490751233722,144,111.83022847155415,966,274.41574298862668,1015,226.99118925632334,15,28.844410203711913,1000,229.8107917396396,3177,191.637678967368,347,137.05838172107534,2830,210.76052761368766,902,189.61276328348785,130,103.94229168149026,772,164.10362579784763,473,114.20157617125956,212,83.546394296821688,261,100.12492197250393,0,22.627416997969522,0,22.627416997969522,0,22.627416997969522,97,80.498447189992433,12,24.839484696748443,144,66.528189513919585,0,22.627416997969522,0,22.627416997969522,0,22.627416997969522,98,81.835200250259064,13,25.612496949731394,63,48.301138702933287,144,111.83022847155415,15,28.844410203711913,64,57.454329688892898,13,25.612496949731394,25,29.068883707497267,0,22.627416997969522,0,22.627416997969522,130,78.10249675906654,118,101.9803902718557,53,43.931765272977593,18,33.120990323358392,0,22.627416997969522,0,22.627416997969522,13,25.612496949731394,13,27.202941017470888,0,22.627416997969522,43,50.596442562694072,0,22.627416997969522,67,48.836461788299118,103,93,41,45,301,146,61,56,228,110,114,68]
[]
["Househould Income By Age"]
["NAME","TotalHouseholds",{"$f":"\"MOE \"&B115","v":"MOE TotalHouseholds"},"HHInc<10K",{"$f":"\"MOE \"&D115","v":"MOE HHInc<10K"},"HHInc10to15K",{"$f":"\"MOE \"&F115","v":"MOE HHInc10to15K"},"HHInc15to20K",{"$f":"\"MOE \"&H115","v":"MOE HHInc15to20K"},"HHInc20to25K",{"$f":"\"MOE \"&J115","v":"MOE HHInc20to25K"},"HHInc25to30K",{"$f":"\"MOE \"&L115","v":"MOE HHInc25to30K"},"HHInc30to35K",{"$f":"\"MOE \"&N115","v":"MOE HHInc30to35K"},"HHInc35to40K",{"$f":"\"MOE \"&P115","v":"MOE HHInc35to40K"},"HHInc40to45K",{"$f":"\"MOE \"&R115","v":"MOE HHInc40to45K"},"HHInc45to50K",{"$f":"\"MOE \"&T115","v":"MOE HHInc45to50K"},"HHInc50to60K",{"$f":"\"MOE \"&V115","v":"MOE HHInc50to60K"},"HHInc60to75K",{"$f":"\"MOE \"&X115","v":"MOE HHInc60to75K"},"HHInc75to100K",{"$f":"\"MOE \"&Z115","v":"MOE HHInc75to100K"},"HHInc100to125K",{"$f":"\"MOE \"&AB115","v":"MOE HHInc100to125K"},"HHInc125to150K",{"$f":"\"MOE \"&AD115","v":"MOE HHInc125to150K"},"HHInc150to200K",{"$f":"\"MOE \"&AF115","v":"MOE HHInc150to200K"},"HHInc>200K",{"$f":"\"MOE \"&AH115","v":"MOE HHInc>200K"},"TotalHH",{"$f":"\"MOE \"&AJ115","v":"MOE TotalHH"},"HHAgeHHUnder25yrs",{"$f":"\"MOE \"&AL115","v":"MOE HHAgeHHUnder25yrs"},"HHAgeHH<25HHInc<10K",{"$f":"\"MOE \"&AN115","v":"MOE HHAgeHH<25HHInc<10K"},"HHAgeHH<25HHInc10to15K",{"$f":"\"MOE \"&AP115","v":"MOE HHAgeHH<25HHInc10to15K"},"HHAgeHH<25HHInc15to20K",{"$f":"\"MOE \"&AR115","v":"MOE HHAgeHH<25HHInc15to20K"},"HHAgeHH<25HHInc20to25K",{"$f":"\"MOE \"&AT115","v":"MOE HHAgeHH<25HHInc20to25K"},"HHAgeHH<25HHInc25to30K",{"$f":"\"MOE \"&AV115","v":"MOE HHAgeHH<25HHInc25to30K"},"HHAgeHH<25HHInc30to35K",{"$f":"\"MOE \"&AX115","v":"MOE HHAgeHH<25HHInc30to35K"},"HHAgeHH<25HHInc35to40K",{"$f":"\"MOE \"&AZ115","v":"MOE HHAgeHH<25HHInc35to40K"},"HHAgeHH<25HHInc40to45K",{"$f":"\"MOE \"&BB115","v":"MOE HHAgeHH<25HHInc40to45K"},"HHAgeHH<25HHInc45to50K",{"$f":"\"MOE \"&BD115","v":"MOE HHAgeHH<25HHInc45to50K"},"HHAgeHH<25HHInc50to60K",{"$f":"\"MOE \"&BF115","v":"MOE HHAgeHH<25HHInc50to60K"},"HHAgeHH<25HHInc60to75K",{"$f":"\"MOE \"&BH115","v":"MOE HHAgeHH<25HHInc60to75K"},"HHAgeHH<25HHInc75to100K",{"$f":"\"MOE \"&BJ115","v":"MOE HHAgeHH<25HHInc75to100K"},"HHAgeHH<25HHInc100to125K",{"$f":"\"MOE \"&BL115","v":"MOE HHAgeHH<25HHInc100to125K"},"HHAgeHH<25HHInc125to150K",{"$f":"\"MOE \"&BN115","v":"MOE HHAgeHH<25HHInc125to150K"},"HHAgeHH<25HHInc150to200K",{"$f":"\"MOE \"&BP115","v":"MOE HHAgeHH<25HHInc150to200K"},"HHAge<25HHInc>200K",{"$f":"\"MOE \"&BR115","v":"MOE HHAge<25HHInc>200K"},"HHAgeHH25to44yrs",{"$f":"\"MOE \"&BT115","v":"MOE HHAgeHH25to44yrs"},"HHAgeHH25To44yrsHHInc<10K",{"$f":"\"MOE \"&BV115","v":"MOE HHAgeHH25To44yrsHHInc<10K"},"HHAgeHH25To44yrsHHInc10to15K",{"$f":"\"MOE \"&BX115","v":"MOE HHAgeHH25To44yrsHHInc10to15K"},"HHAgeHH25To44yrsHHInc15to20K",{"$f":"\"MOE \"&BZ115","v":"MOE HHAgeHH25To44yrsHHInc15to20K"},"HHAgeHH25To44yrsHHInc20to25K",{"$f":"\"MOE \"&CB115","v":"MOE HHAgeHH25To44yrsHHInc20to25K"},"HHAgeHH25To44yrsHHInc25to30K",{"$f":"\"MOE \"&CD115","v":"MOE HHAgeHH25To44yrsHHInc25to30K"},"HHAgeHH25To44yrsHHInc30to35K",{"$f":"\"MOE \"&CF115","v":"MOE HHAgeHH25To44yrsHHInc30to35K"},"HHAgeHH25To44yrsHHInc35to40K",{"$f":"\"MOE \"&CH115","v":"MOE HHAgeHH25To44yrsHHInc35to40K"},"HHAgeHH25To44yrsHHInc40to45K",{"$f":"\"MOE \"&CJ115","v":"MOE HHAgeHH25To44yrsHHInc40to45K"},"HHAgeHH25To44yrsHHInc45to50K",{"$f":"\"MOE \"&CL115","v":"MOE HHAgeHH25To44yrsHHInc45to50K"},"HHAgeHH25To44yrsHHInc50to60K",{"$f":"\"MOE \"&CN115","v":"MOE HHAgeHH25To44yrsHHInc50to60K"},"HHAgeHH25To44yrsHHInc60to75K",{"$f":"\"MOE \"&CP115","v":"MOE HHAgeHH25To44yrsHHInc60to75K"},"HHAgeHH25To44yrsHHInc75to100K",{"$f":"\"MOE \"&CR115","v":"MOE HHAgeHH25To44yrsHHInc75to100K"},"HHAgeHH25To44yrsHHInc100to125K",{"$f":"\"MOE \"&CT115","v":"MOE HHAgeHH25To44yrsHHInc100to125K"},"HHAgeHH25To44yrsHHInc125to150K",{"$f":"\"MOE \"&CV115","v":"MOE HHAgeHH25To44yrsHHInc125to150K"},"HHAgeHH25To44yrsHHInc150to200K",{"$f":"\"MOE \"&CX115","v":"MOE HHAgeHH25To44yrsHHInc150to200K"},"HHAge25To44yrsHHInc>200K",{"$f":"\"MOE \"&CZ115","v":"MOE HHAge25To44yrsHHInc>200K"},"HHAgeHH45To64yrs",{"$f":"\"MOE \"&DB115","v":"MOE HHAgeHH45To64yrs"},"HHAgeHH45To64yrsHHInc<10K",{"$f":"\"MOE \"&DD115","v":"MOE HHAgeHH45To64yrsHHInc<10K"},"HHAgeHH45To64yrsHHInc10to15K",{"$f":"\"MOE \"&DF115","v":"MOE HHAgeHH45To64yrsHHInc10to15K"},"HHAgeHH45To64yrsHHInc15to20K",{"$f":"\"MOE \"&DH115","v":"MOE HHAgeHH45To64yrsHHInc15to20K"},"HHAgeHH45To64yrsHHInc20to25K",{"$f":"\"MOE \"&DJ115","v":"MOE HHAgeHH45To64yrsHHInc20to25K"},"HHAgeHH45To64yrsHHInc25to30K",{"$f":"\"MOE \"&DL115","v":"MOE HHAgeHH45To64yrsHHInc25to30K"},"HHAgeHH45To64yrsHHInc30to35K",{"$f":"\"MOE \"&DN115","v":"MOE HHAgeHH45To64yrsHHInc30to35K"},"HHAgeHH45To64yrsHHInc35to40K",{"$f":"\"MOE \"&DP115","v":"MOE HHAgeHH45To64yrsHHInc35to40K"},"HHAgeHH45To64yrsHHInc40to45K",{"$f":"\"MOE \"&DR115","v":"MOE HHAgeHH45To64yrsHHInc40to45K"},"HHAgeHH45To64yrsHHInc45to50K",{"$f":"\"MOE \"&DT115","v":"MOE HHAgeHH45To64yrsHHInc45to50K"},"HHAgeHH45To64yrsHHInc50to60K",{"$f":"\"MOE \"&DV115","v":"MOE HHAgeHH45To64yrsHHInc50to60K"},"HHAgeHH45To64yrsHHInc60to75K",{"$f":"\"MOE \"&DX115","v":"MOE HHAgeHH45To64yrsHHInc60to75K"},"HHAgeHH45To64yrsHHInc75to100K",{"$f":"\"MOE \"&DZ115","v":"MOE HHAgeHH45To64yrsHHInc75to100K"},"HHAgeHH45To64yrsHHInc100to125K",{"$f":"\"MOE \"&EB115","v":"MOE HHAgeHH45To64yrsHHInc100to125K"},"HHAgeHH45To64yrsHHInc125to150K",{"$f":"\"MOE \"&ED115","v":"MOE HHAgeHH45To64yrsHHInc125to150K"},"HHAgeHH45To64yrsHHInc150to200K",{"$f":"\"MOE \"&EF115","v":"MOE HHAgeHH45To64yrsHHInc150to200K"},"HHAge45To64yrsHHInc>200K",{"$f":"\"MOE \"&EH115","v":"MOE HHAge45To64yrsHHInc>200K"},"HHAgeHH65yrsorOlder",{"$f":"\"MOE \"&EJ115","v":"MOE HHAgeHH65yrsorOlder"},"HHAgeHH65yrsorOlderHHInc<10K",{"$f":"\"MOE \"&EL115","v":"MOE HHAgeHH65yrsorOlderHHInc<10K"},"HHAgeHH65yrsorOlderHHInc10to15K",{"$f":"\"MOE \"&EN115","v":"MOE HHAgeHH65yrsorOlderHHInc10to15K"},"HHAgeHH65yrsorOlderHHInc15to20K",{"$f":"\"MOE \"&EP115","v":"MOE HHAgeHH65yrsorOlderHHInc15to20K"},"HHAgeHH65yrsorOlderHHInc20to25K",{"$f":"\"MOE \"&ER115","v":"MOE HHAgeHH65yrsorOlderHHInc20to25K"},"HHAgeHH65yrsorOlderHHInc25to30K",{"$f":"\"MOE \"&ET115","v":"MOE HHAgeHH65yrsorOlderHHInc25to30K"},"HHAgeHH65yrsorOlderHHInc30to35K",{"$f":"\"MOE \"&EV115","v":"MOE HHAgeHH65yrsorOlderHHInc30to35K"},"HHAgeHH65yrsorOlderHHInc35to40K",{"$f":"\"MOE \"&EX115","v":"MOE HHAgeHH65yrsorOlderHHInc35to40K"},"HHAgeHH65yrsorOlderHHInc40to45K",{"$f":"\"MOE \"&EZ115","v":"MOE HHAgeHH65yrsorOlderHHInc40to45K"},"HHAgeHH65yrsorOlderHHInc45to50K",{"$f":"\"MOE \"&FB115","v":"MOE HHAgeHH65yrsorOlderHHInc45to50K"},"HHAgeHH65yrsorOlderHHInc50to60K",{"$f":"\"MOE \"&FD115","v":"MOE HHAgeHH65yrsorOlderHHInc50to60K"},"HHAgeHH65yrsorOlderHHInc60to75K",{"$f":"\"MOE \"&FF115","v":"MOE HHAgeHH65yrsorOlderHHInc60to75K"},"HHAgeHH65yrsorOlderHHInc75to100K",{"$f":"\"MOE \"&FH115","v":"MOE HHAgeHH65yrsorOlderHHInc75to100K"},"HHAgeHH65yrsorOlderHHInc100to125K",{"$f":"\"MOE \"&FJ115","v":"MOE HHAgeHH65yrsorOlderHHInc100to125K"},"HHAgeHH65yrsorOlderHHInc125to150K",{"$f":"\"MOE \"&FL115","v":"MOE HHAgeHH65yrsorOlderHHInc125to150K"},"HHAgeHH65yrsorOlderHHInc150to200K",{"$f":"\"MOE \"&FN115","v":"MOE HHAgeHH65yrsorOlderHHInc150to200K"},"HHAge65yrsorOlderHHInc>200K",{"$f":"\"MOE \"&FP115","v":"MOE HHAge65yrsorOlderHHInc>200K"},"MedianHHInc",{"$f":"\"MOE \"&FR115","v":"MOE MedianHHInc"},"HH under 25 years",{"$f":"\"MOE \"&FT115","v":"MOE HH under 25 years"},"Householder 25 to 44 years",{"$f":"\"MOE \"&FV115","v":"MOE Householder 25 to 44 years"},"Householder 45 to 64 years",{"$f":"\"MOE \"&FX115","v":"MOE Householder 45 to 64 years"},"Householder 65 years and over",{"$f":"\"MOE \"&FZ115","v":"MOE Householder 65 years and over"}]
[{"$f":"VLOOKUP(DropDownList!$B$47,CntyQryCensus!$A$510:$DA$546,A$1)","v":"Atkinson"},2745,185,44,43,50,63,14,23,84,90,16,27,72,51,13,20,75,83,87,69,161,95,131,72,351,143,441,142,291,99,457,141,458,138,2745,185,0,16,0,16,0,16,0,16,0,16,0,16,0,16,0,16,0,16,0,16,0,16,0,16,0,16,0,16,0,16,0,16,0,16,551,142,0,16,0,16,0,16,53,83,0,16,19,31,0,16,0,16,0,16,32,42,11,19,99,65,96,68,53,49,129,85,59,44,1359,147,18,28,0,16,0,16,31,37,16,27,0,16,0,16,0,16,14,25,26,29,29,35,196,121,285,113,184,82,260,133,300,117,835,175,26,32,50,63,14,23,0,16,0,16,53,41,13,20,75,83,73,68,103,77,91,57,56,48,60,50,54,45,68,53,99,59,118712,8166,"-","**",112578,28786,137725,19549,63510,14401]
[]
["Number of Households by Income"]
["NAME","HHIncLessThn10k",{"$f":"\"MOE \"&B119","v":"MOE HHIncLessThn10k"},"HHInc10to15K",{"$f":"\"MOE \"&D119","v":"MOE HHInc10to15K"},"HHInc15to25K",{"$f":"\"MOE \"&F119","v":"MOE HHInc15to25K"},"HHInc25to35K",{"$f":"\"MOE \"&H119","v":"MOE HHInc25to35K"},"HHInc35to50K",{"$f":"\"MOE \"&J119","v":"MOE HHInc35to50K"},"HHInc50to75K",{"$f":"\"MOE \"&L119","v":"MOE HHInc50to75K"},"HHInc75to100K",{"$f":"\"MOE \"&N119","v":"MOE HHInc75to100K"},"HHInc100to150K",{"$f":"\"MOE \"&P119","v":"MOE HHInc100to150K"},"HHInc150to200K",{"$f":"\"MOE \"&R119","v":"MOE HHInc150to200K"},"HHIncOver200K",{"$f":"\"MOE \"&T119","v":"MOE HHIncOver200K"}]
[{"$f":"VLOOKUP(DropDownList!$B$47,CntyQryCensus!$A$510:$DA$546,A$1)","v":"Atkinson"},44,43,50,63,98,92.892410884851088,88,57.706152185014034,175,109.77249200050075,292,119.20151005754919,351,143,732,173.1040149736568,457,141,458,138]
[]
[]
["NAME","TotalPop",{"$f":"\"MOE \"&B123","v":"MOE TotalPop"},"Total Individuals living in Poverty",{"$f":"\"MOE \"&D123","v":"MOE Total Individuals living in Poverty"},"Under 5 yrs.",{"$f":"\"MOE \"&F123","v":"MOE Under 5 yrs."},"5 to 17 yrs.",{"$f":"\"MOE \"&H123","v":"MOE 5 to 17 yrs."},"18 to 64 yrs.",{"$f":"\"MOE \"&J123","v":"MOE 18 to 64 yrs."},"65 to 74 yrs.",{"$f":"\"MOE \"&L123","v":"MOE 65 to 74 yrs."},"75 yrs. & Over",{"$f":"\"MOE \"&N123","v":"MOE 75 yrs. & Over"},"Total Individuals  Not living Poverty",{"$f":"\"MOE \"&P123","v":"MOE Total Individuals  Not living Poverty"},"Under 5 yrs.",{"$f":"\"MOE \"&R123","v":"MOE Under 5 yrs."},"5 to 17 yrs.",{"$f":"\"MOE \"&T123","v":"MOE 5 to 17 yrs."},"18 to 64 yrs.",{"$f":"\"MOE \"&V123","v":"MOE 18 to 64 yrs."},"65 to 74 yrs.",{"$f":"\"MOE \"&X123","v":"MOE 65 to 74 yrs."},"75 yrs. & Over",{"$f":"\"MOE \"&Z123","v":"MOE 75 yrs. & Over"},"Total HH",{"$f":"\"MOE \"&AB123","v":"MOE Total HH"},"Total Households Below Poverty",{"$f":"\"MOE \"&AD123","v":"MOE Total Households Below Poverty"},"Family Households in Poverty",{"$f":"\"MOE \"&AF123","v":"MOE Family Households in Poverty"},"Married Couple Fam HH",{"$f":"\"MOE \"&AH123","v":"MOE Married Couple Fam HH"},"Other Family",{"$f":"\"MOE \"&AJ123","v":"MOE Other Family"},"Male Head of Family HH no wife",{"$f":"\"MOE \"&AL123","v":"MOE Male Head of Family HH no wife"},"Female Head of Family HH no husband",{"$f":"\"MOE \"&AN123","v":"MOE Female Head of Family HH no husband"},"Non-Family HH",{"$f":"\"MOE \"&AP123","v":"MOE Non-Family HH"},"Non-Family Male HH",{"$f":"\"MOE \"&AR123","v":"MOE Non-Family Male HH"},"Non-Family Female HH",{"$f":"\"MOE \"&AT123","v":"MOE Non-Family Female HH"},"Total Households at or Above Poverty",{"$f":"\"MOE \"&AV123","v":"MOE Total Households at or Above Poverty"},"Family Households above Poverty",{"$f":"\"MOE \"&AX123","v":"MOE Family Households above Poverty"},"Married Couple Fam HH",{"$f":"\"MOE \"&AZ123","v":"MOE Married Couple Fam HH"},"Other Family",{"$f":"\"MOE \"&BB123","v":"MOE Other Family"},"Male Head of Family HH no wife",{"$f":"\"MOE \"&BD123","v":"MOE Male Head of Family HH no wife"},"Female Head of Family HH no husband",{"$f":"\"MOE \"&BF123","v":"MOE Female Head of Family HH no husband"},"Non-Family HH",{"$f":"\"MOE \"&BH123","v":"MOE Non-Family HH"},"Non-Family Male HH",{"$f":"\"MOE \"&BJ123","v":"MOE Non-Family Male HH"},"Non-Family Female HH",{"$f":"\"MOE \"&BL123","v":"MOE Non-Family Female HH"},"Married Couple with Children Below Poverty",{"$f":"\"MOE \"&BN123","v":"MOE Married Couple with Children Below Poverty"},"Male HH with children below poverty",{"$f":"\"MOE \"&BP123","v":"MOE Male HH with children below poverty"},"Female HH with children below poverty",{"$f":"\"MOE \"&BR123","v":"MOE Female HH with children below poverty"},"Married Couple with Children At or Above Poverty",{"$f":"\"MOE \"&BT123","v":"MOE Married Couple with Children At or Above Poverty"},"Male HH with children at or above poverty",{"$f":"\"MOE \"&BV123","v":"MOE Male HH with children at or above poverty"},"Female HH with children at or above poverty",{"$f":"\"MOE \"&BX123","v":"MOE Female HH with children at or above poverty"}]
[{"$f":"VLOOKUP(DropDownList!$B$47,CntyQryCensus!$A$510:$DA$546,A$1)","v":"Atkinson"},6389,17,143,132,25,25.612496949731394,0,48.166378315169183,117,86.185845705660967,0,22.627416997969522,1,16.278820596099706,6246,133,361,147.62791064023091,1007,281.38763299050652,4091,414.15335324007702,472,115.96551211459379,315,168.90825912311098,729,240,290,154,132,107,0,16,158,110,0,21,158,110,439,176,148,123,291,135,10807,369,7582,290,6326,302,1256,238,377,139,879,202,3225,381,1572,294,1653,280,104,107,0,21,158,110,2264,247,210,99,515,167]
[]
["Household Income By Tenure"]
["NAME","TotalOccHU",{"$f":"\"MOE \"&B127","v":"MOE TotalOccHU"},"OwnOccHU",{"$f":"\"MOE \"&D127","v":"MOE OwnOccHU"},"OOHUInc<5K",{"$f":"\"MOE \"&F127","v":"MOE OOHUInc<5K"},"OOHUInc5to10K",{"$f":"\"MOE \"&H127","v":"MOE OOHUInc5to10K"},"OOHUInc10to15K",{"$f":"\"MOE \"&J127","v":"MOE OOHUInc10to15K"},"OOHUInc15to20K",{"$f":"\"MOE \"&L127","v":"MOE OOHUInc15to20K"},"OOHUInc20to25K",{"$f":"\"MOE \"&N127","v":"MOE OOHUInc20to25K"},"OOHUInc25to35K",{"$f":"\"MOE \"&P127","v":"MOE OOHUInc25to35K"},"OOHUInc35to50K",{"$f":"\"MOE \"&R127","v":"MOE OOHUInc35to50K"},"OOHUInc50to75K",{"$f":"\"MOE \"&T127","v":"MOE OOHUInc50to75K"},"OOHUInc75to100K",{"$f":"\"MOE \"&V127","v":"MOE OOHUInc75to100K"},"OOHUInc100to150K",{"$f":"\"MOE \"&X127","v":"MOE OOHUInc100to150K"},"OOHUInc>150K",{"$f":"\"MOE \"&Z127","v":"MOE OOHUInc>150K"},"RentOccHU",{"$f":"\"MOE \"&AB127","v":"MOE RentOccHU"},"ROHUInc<5K",{"$f":"\"MOE \"&AD127","v":"MOE ROHUInc<5K"},"ROHUInc5to10K",{"$f":"\"MOE \"&AF127","v":"MOE ROHUInc5to10K"},"ROHUInc10to15K",{"$f":"\"MOE \"&AH127","v":"MOE ROHUInc10to15K"},"ROHUInc15to20K",{"$f":"\"MOE \"&AJ127","v":"MOE ROHUInc15to20K"},"ROHUInc20to25K",{"$f":"\"MOE \"&AL127","v":"MOE ROHUInc20to25K"},"ROHUInc25to35K",{"$f":"\"MOE \"&AN127","v":"MOE ROHUInc25to35K"},"ROHUInc35to50K",{"$f":"\"MOE \"&AP127","v":"MOE ROHUInc35to50K"},"ROHUInc50to75K",{"$f":"\"MOE \"&AR127","v":"MOE ROHUInc50to75K"},"ROHUInc75to100K",{"$f":"\"MOE \"&AT127","v":"MOE ROHUInc75to100K"},"ROHUInc100to150K",{"$f":"\"MOE \"&AV127","v":"MOE ROHUInc100to150K"},"ROHUInc>150K",{"$f":"\"MOE \"&AX127","v":"MOE ROHUInc>150K"},"Total OCC HUInc<5K",{"$f":"\"MOE \"&AZ127","v":"MOE Total OCC HUInc<5K"},"Total OCC HUInc5to10K",{"$f":"\"MOE \"&BB127","v":"MOE Total OCC HUInc5to10K"},"Total OCC HUInc10to15K",{"$f":"\"MOE \"&BD127","v":"MOE Total OCC HUInc10to15K"},"Total OCC HUInc15to20K",{"$f":"\"MOE \"&BF127","v":"MOE Total OCC HUInc15to20K"},"Total OCC HUInc20to25K",{"$f":"\"MOE \"&BH127","v":"MOE Total OCC HUInc20to25K"},"Total OCC HUInc25to35K",{"$f":"\"MOE \"&BJ127","v":"MOE Total OCC HUInc25to35K"},"Total OCC HUInc35to50K",{"$f":"\"MOE \"&BL127","v":"MOE Total OCC HUInc35to50K"},"Total OCC HUInc50to75K",{"$f":"\"MOE \"&BN127","v":"MOE Total OCC HUInc50to75K"},"Total OCC HUInc75to100K",{"$f":"\"MOE \"&BP127","v":"MOE Total OCC HUInc75to100K"},"Total OCC HUInc100to150K",{"$f":"\"MOE \"&BR127","v":"MOE Total OCC HUInc100to150K"},"Total OCC HUInc>150K",{"$f":"\"MOE \"&BT127","v":"MOE Total OCC HUInc>150K"},"MedHHInc",{"$f":"\"MOE \"&BV127","v":"MOE MedHHInc"},"MedOwnOccHHInc",{"$f":"\"MOE \"&BX127","v":"MOE MedOwnOccHHInc"},"MedRentOccHHInc",{"$f":"\"MOE \"&BZ127","v":"MOE MedRentOccHHInc"}]
[{"$f":"VLOOKUP(DropDownList!$B$47,CntyQryCensus!$A$510:$DA$546,A$1)","v":"Atkinson"},2745,185,2551,169,12,21,14,22,50,63,14,23,31,37,88,58,114,84,278,109,321,137,714,165,915,179,194,106,0,16,18,28,0,16,0,16,53,83,0,16,61,90,14,22,30,34,18,29,0,16,12,26.40075756488817,32,35.608987629529715,50,65,14,28.0178514522438,84,90.87353850269065,88,60.166435825965294,175,123.10970717209915,292,111.19802156513397,351,141.15594213493105,732,167.5291019494822,915,179.71366113904642,118712,8166,121799,12929,41383,22276]
[]
["Population Data"]
["NAME","Total Population","MOE Total Population","Under 15 Years","MOE Under 15 yrs.","15 to 24 yrs.","MOE 15 to 24 yrs.","25 to 34 yrs.","MOE 25 to 34 yrs.","35 to 44 yrs.","MOE 35 to 44 yrs.","45 to 54 yrs.","MOE 45 to 54 yrs.","55 to 64 yrs.","MOE 55 to 64 yrs.","65 to 74 yrs.","MOE 65 to 74 yrs.","Over 74 yrs. ","MOE Over 74 yrs. ","TotalHH","MOE TotalHH","FamilyHH","MOE FamilyHH","MarriedFamilyHH","MOE MarriedFamilyHH","SingleFamilyHH","MOE SingleFamilyHH","Sfamily-MaleHH","MOE Sfamily-MaleHH","Sfamily-FemaleHH","MOE Sfamily-FemaleHH","NonFamilyHH","MOE NonFamilyHH","NonFamilyHH-LivingAlone","MOE NonFamilyHH-LivingAlone","NonFamilyHH-NotLivingAlone","MOE NonFamilyHH-NotLivingAlone","PopRaceWhite","MOE PopRaceWhite","PopRaceBlack","MOE PopRaceBlack","PopRaceAmerican Indian","MOE PopRaceAmerican Indian","PopRaceAsian &Pacific Is.","MOE PopRaceAsian &Pacific Is.","PopRaceOther*","MOE PopRaceOther*","PopRaceHispanic or Latino:","MOE PopRaceHispanic or Latino:","MedianAgeTotalPop","MOE MedianAgeTotalPop","MedianAgeMale","MOE MedianAgeMale","MedianAgeFemale","MOE MedianAgeFemale","AvgHHSizeTotal","MOE AvgHHSizeTotal","AvgHHSizeFamilyHH","MOE AvgHHSizeFamilyHH","AvgHHSizeNonFamilyHH","MOE AvgHHSizeNonFamilyHH"]
[{"$f":"VLOOKUP(DropDownList!$B$47,CntyQryCensus!$A$510:$DA$546,A$1)","v":"Atkinson"},6952,33,1032,283.33901955078477,907,234.58473948660856,461,148.98322053170955,620,165.23619458217985,1356,252.38660820257479,1201,227.65983396286663,902,195,473,132.57073583562851,2745,185,1994,146,1781,164,213,101,105,67,108,71,751,187,623,185,128,92,6627,190,0,16,0,16,110,91.411159056211517,70,80.603970125546539,145,107,48.6,2.9,47,3.8,50.1,4,2.5326047358834245,0.17,3.0020060180541623,0.26865136073637902,1.2862849533954728,0.51513607405477868]
[]
["Nativity and Prior Place of Residence"]
["NAME","TotalPop",{"$f":"\"MOE \"&B135","v":"MOE TotalPop"},"Native:",{"$f":"\"MOE \"&D135","v":"MOE Native:"},"NatBornInStateOfResidence",{"$f":"\"MOE \"&F135","v":"MOE NatBornInStateOfResidence"},"Born in other state in the United States:",{"$f":"\"MOE \"&H135","v":"MOE Born in other state in the United States:"},"Northeast",{"$f":"\"MOE \"&J135","v":"MOE Northeast"},"Midwest",{"$f":"\"MOE \"&L135","v":"MOE Midwest"},"South",{"$f":"\"MOE \"&N135","v":"MOE South"},"West",{"$f":"\"MOE \"&P135","v":"MOE West"},"Born outside the United States:",{"$f":"\"MOE \"&R135","v":"MOE Born outside the United States:"},"Puerto Rico",{"$f":"\"MOE \"&T135","v":"MOE Puerto Rico"},"U.S. Island Areas",{"$f":"\"MOE \"&V135","v":"MOE U.S. Island Areas"},"Born abroad of American parent(s)",{"$f":"\"MOE \"&X135","v":"MOE Born abroad of American parent(s)"},"Foreign born:",{"$f":"\"MOE \"&Z135","v":"MOE Foreign born:"},"Naturalized U.S. citizen",{"$f":"\"MOE \"&AB135","v":"MOE Naturalized U.S. citizen"},"Not a U.S. citizen",{"$f":"\"MOE \"&AD135","v":"MOE Not a U.S. citizen"},"CurrentResidenceTotal:",{"$f":"\"MOE \"&AF135","v":"MOE CurrentResidenceTotal:"},"SameHouse:",{"$f":"\"MOE \"&AH135","v":"MOE SameHouse:"},"DifferentHouse:",{"$f":"\"MOE \"&AJ135","v":"MOE DifferentHouse:"},"DiffHouseInNH",{"$f":"\"MOE \"&AL135","v":"MOE DiffHouseInNH"},"DiffHouseInNHSameCnty",{"$f":"\"MOE \"&AN135","v":"MOE DiffHouseInNHSameCnty"},"DiffHouseInNHDiffCnty",{"$f":"\"MOE \"&AP135","v":"MOE DiffHouseInNHDiffCnty"},"DiffHouseInDiffState",{"$f":"\"MOE \"&AR135","v":"MOE DiffHouseInDiffState"},"DiffHouseInElsewhere",{"$f":"\"MOE \"&AT135","v":"MOE DiffHouseInElsewhere"}]
[{"$f":"VLOOKUP(DropDownList!$B$47,CntyQryCensus!$A$510:$DA$546,A$1)","v":"Atkinson"},29234,32,26490,530,4380,509,21683,747,19767,777,697,195,867,213,352,133,427,200,108,115,0,21,319,166,2744,529,2121,444,623,220,28901,149,26049,583,2852,598.06688589153634,1254,385.81083447720852,1082,365,172,125,1500,447,98,95]
[]
["School Enrollment - Education"]
["NAME","Total Pop 3 Years and Older","MOE Total Pop 3 Years and Older","SchEnrlPop3yrOver",{"$f":"\"MOE \"&D139","v":"MOE SchEnrlPop3yrOver"},"TotalEnrollNursy&Kinder",{"$f":"\"MOE \"&F139","v":"MOE TotalEnrollNursy&Kinder"},"NurserSchEnrl",{"$f":"\"MOE \"&H139","v":"MOE NurserSchEnrl"},"KinderSchEnrl",{"$f":"\"MOE \"&J139","v":"MOE KinderSchEnrl"},"ElemSchEnrl (1-8)",{"$f":"\"MOE \"&L139","v":"MOE ElemSchEnrl (1-8)"},"HighSchEnrl(9-12)",{"$f":"\"MOE \"&N139","v":"MOE HighSchEnrl(9-12)"},"TotalElementry&HSEnroll",{"$f":"\"MOE \"&P139","v":"MOE TotalElementry&HSEnroll"},"CollGradSchEnrl",{"$f":"\"MOE \"&R139","v":"MOE CollGradSchEnrl"},"PopNotEnrolled","MOE PopNotEnrolled","Pop25yrsOver",{"$f":"\"MOE \"&V139","v":"MOE Pop25yrsOver"},"EduAtain<9grd",{"$f":"\"MOE \"&X139","v":"MOE EduAtain<9grd"},"EduAtainHSnoDip",{"$f":"\"MOE \"&Z139","v":"MOE EduAtainHSnoDip"},"EduAtainHSgrad",{"$f":"\"MOE \"&AB139","v":"MOE EduAtainHSgrad"},"EduAtainCollNoDeg",{"$f":"\"MOE \"&AD139","v":"MOE EduAtainCollNoDeg"},"EduAtainAssocDeg",{"$f":"\"MOE \"&AF139","v":"MOE EduAtainAssocDeg"},"EduAtainBachDeg",{"$f":"\"MOE \"&AH139","v":"MOE EduAtainBachDeg"},"EduAtainGradProfDeg",{"$f":"\"MOE \"&AJ139","v":"MOE EduAtainGradProfDeg"}]
[{"$f":"VLOOKUP(DropDownList!$B$47,CntyQryCensus!$A$510:$DA$546,A$1)","v":"Atkinson"},6070,120,1357,177,117,86.95401083331349,78,75,39,44,622,229.09386722476881,403,126,1025,261.457453517776,215,103.24727599312246,4713,159,4338,161,0,39.191835884530846,285,139.08630414242805,1194,238.8493248891443,1018,215.19990706317697,552,179.0111728356641,816,197.06090429103384,473,163.88410539158457]
[]
["Occupied Owner Housing Value"]
["NAME","Estimate; Total:","Margin of Error; Total:","Estimate; Total: - Less than $10,000","Margin of Error; Total: - Less than $10,000","Estimate; Total: - $10,000 to $14,999","Margin of Error; Total: - $10,000 to $14,999","Estimate; Total: - $15,000 to $19,999","Margin of Error; Total: - $15,000 to $19,999","Estimate; Total: - $20,000 to $24,999","Margin of Error; Total: - $20,000 to $24,999","Estimate; Total: - $25,000 to $29,999","Margin of Error; Total: - $25,000 to $29,999","Estimate; Total: - $30,000 to $34,999","Margin of Error; Total: - $30,000 to $34,999","Estimate; Total: - $35,000 to $39,999","Margin of Error; Total: - $35,000 to $39,999","Estimate; Total: - $40,000 to $49,999","Margin of Error; Total: - $40,000 to $49,999","Estimate; Total: - $50,000 to $59,999","Margin of Error; Total: - $50,000 to $59,999","Estimate; Total: - $60,000 to $69,999","Margin of Error; Total: - $60,000 to $69,999","Estimate; Total: - $70,000 to $79,999","Margin of Error; Total: - $70,000 to $79,999","Estimate; Total: - $80,000 to $89,999","Margin of Error; Total: - $80,000 to $89,999","Estimate; Total: - $90,000 to $99,999","Margin of Error; Total: - $90,000 to $99,999","Estimate; Total: - $100,000 to $124,999","Margin of Error; Total: - $100,000 to $124,999","Estimate; Total: - $125,000 to $149,999","Margin of Error; Total: - $125,000 to $149,999","Estimate; Total: - $150,000 to $174,999","Margin of Error; Total: - $150,000 to $174,999","Estimate; Total: - $175,000 to $199,999","Margin of Error; Total: - $175,000 to $199,999","Estimate; Total: - $200,000 to $249,999","Margin of Error; Total: - $200,000 to $249,999","Estimate; Total: - $250,000 to $299,999","Margin of Error; Total: - $250,000 to $299,999","Estimate; Total: - $300,000 to $399,999","Margin of Error; Total: - $300,000 to $399,999","Estimate; Total: - $400,000 to $499,999","Margin of Error; Total: - $400,000 to $499,999","Estimate; Total: - $500,000 to $749,999","Margin of Error; Total: - $500,000 to $749,999","Estimate; Total: - $750,000 to $999,999","Margin of Error; Total: - $750,000 to $999,999","Estimate; Total: - $1,000,000 to $1,499,999","Margin of Error; Total: - $1,000,000 to $1,499,999","Estimate; Total: - $1,500,000 to $1,999,999","Margin of Error; Total: - $1,500,000 to $1,999,999","Estimate; Total: - $2,000,000 or more","Margin of Error; Total: - $2,000,000 or more","MedianOwnOCCHomeValue","MOE MedianOwnOCCHomeValue","OnwerOccHsU","MOE OnwerOccHsU","OwnerCosts>20PctHHInc","MOE OwnerCosts>20PctHHInc","OwnerCosts20to29.9PctHHInc","MOE OwnerCosts20to29.9PctHHInc","OwnerCosts<30PctHHInc","MOE OwnerCosts<30PctHHInc","OwnerCosts>30PctHHInc","MOE OwnerCosts>30PctHHInc","OwnerCosts30to34.9PctHHInc","MOE OwnerCosts30to34.9PctHHInc","OwnerCosts<35PctHHInc","MOE OwnerCosts<35PctHHInc","OwnerCosts>35PctHHInc","MOE OwnerCosts>35PctHHInc","OwnerCosts>50PctHHInc","MOE OwnerCosts>50PctHHInc","OwnerCostsPctNotcomputed","MOE OwnerCostsPctNotcomputed","OwnerOHUHhInc<20k","MOE OwnerOHUHhInc<20k","OwnerOHUHhInc<20kHCosts<20pct","MOE OwnerOHUHhInc<20kHCosts<20pct","OwnerOHUHhInc<20kHCosts20to29pct","MOE OwnerOHUHhInc<20kHCosts20to29pct","OwnerOHUHhInc>20kHCosts30pct","MOE OwnerOHUHhInc>20kHCosts30pct","OwnerOHUHhInc20kTo34999","MOE OwnerOHUHhInc20kTo34999","OwnerOHUHhInc20kTo34999HCosts<20pct","MOE OwnerOHUHhInc20kTo34999HCosts<20pct","OwnerOHUHhInc20kTo34999HCosts20to29pct","MOE OwnerOHUHhInc20kTo34999HCosts20to29pct","OwnerOHUHhInc20kTo34999HCosts30pct","MOE OwnerOHUHhInc20kTo34999HCosts30pct","OwnerOHUHhInc35kTo49999","MOE OwnerOHUHhInc35kTo49999","OwnerOHUHhInc35kTo49999HCosts<20pct","MOE OwnerOHUHhInc35kTo49999HCosts<20pct","OwnerOHUHhInc35kTo49999HCosts20to29pct","MOE OwnerOHUHhInc35kTo49999HCosts20to29pct","OwnerOHUHhInc35kTo49999HCosts30pct","MOE OwnerOHUHhInc35kTo49999HCosts30pct","OwnerOHUHhInc50kTo74999","MOE OwnerOHUHhInc50kTo74999","OwnerOHUHhInc50kTo74999HCosts<20pct","MOE OwnerOHUHhInc50kTo74999HCosts<20pct","OwnerOHUHhInc50kTo74999HCosts20to29pct","MOE OwnerOHUHhInc50kTo74999HCosts20to29pct","OwnerOHUHhInc50kTo74999HCosts30pct","MOE OwnerOHUHhInc50kTo74999HCosts30pct","OwnerOHUHhInc>75000","MOE OwnerOHUHhInc>75000","OwnerOHUHhInc>75000HCosts<20pct","MOE OwnerOHUHhInc>75000HCosts<20pct","OwnerOHUHhInc>75000HCosts20to29pct","MOE OwnerOHUHhInc>75000HCosts20to29pct","OwnerOHUHhInc>75000HCosts30pct","MOE OwnerOHUHhInc>75000HCosts30pct","ZeroOrNegativeIncome","MOE ZeroOrNegativeIncome"]
[{"$f":"VLOOKUP(DropDownList!$B$47,CntyQryCensus!$A$510:$DA$546,A$1)","v":"Atkinson"},9006,348,27,30,31,29,0,21,8,12,71,49,110,116,13,20,29,29,59,50,37,33,53,38,135,80,23,26,222,138,37,29,197,109,178,83,965,227,1596,254,2776,321,1434,217,791,186,177,93,21,23,16,18,0,21,325600,8903,9006,348,4385,421.30986221544828,2171,291.00859093848067,6556,512.04296694711081,2315,392.48694245796253,577,160.96272860510285,7133,536.74668140567019,1738,357.96228851654195,839,284.3448610402516,135,103.24727599312246,402,170,0,21,0,21,402,170,564,139,49,40,123,73,392,124,798,180,141,68,338,112,319,140,1340,261,428,173,332,116,580,216,5767,305,3767,322,1378,202,622,140,135,104]
[]
["Occupied Rental Housing Value"]
["NAME","RntrOccHU","MOE RntrOccHU","RntrOccHUwRent","MOE RntrOccHUwRent","ROHUGRent<100","MOE ROHUGRent<100","ROHUGRent100to149","MOE ROHUGRent100to149","ROHUGRent150to199","MOE ROHUGRent150to199","ROHUGRent200to249","MOE ROHUGRent200to249","ROHUGRent250to299","MOE ROHUGRent250to299","ROHUGRent300to349","MOE ROHUGRent300to349","ROHUGRent350to399","MOE ROHUGRent350to399","ROHUGRent400to449","MOE ROHUGRent400to449","ROHUGRent450to499","MOE ROHUGRent450to499","ROHUGRent500to549","MOE ROHUGRent500to549","ROHUGRent550to599","MOE ROHUGRent550to599","ROHUGRent600to649","MOE ROHUGRent600to649","ROHUGRent650to699","MOE ROHUGRent650to699","ROHUGRent700to749","MOE ROHUGRent700to749","ROHUGRent750to799","MOE ROHUGRent750to799","ROHUGRent800to899","MOE ROHUGRent800to899","ROHUGRent900to999","MOE ROHUGRent900to999","ROHUGRent1000to1249","MOE ROHUGRent1000to1249","ROHUGRent1250to1499","MOE ROHUGRent1250to1499","ROHUGRent1500to1999","MOE ROHUGRent1500to1999","ROHUGRent2000-2499","MOE ROHUGRent2000-2499","ROHUGRent2500-2999","MOE ROHUGRent2500-2999","ROHUGRent3000-3499","MOE ROHUGRent3000-3499","ROHUGRent3500<","MOE ROHUGRent3500<","ROHUNoGRent","MOE ROHUNoGRent","MedianGrossRnt","MOE MedianGrossRnt","H73RenterOccHU","MOE H73RenterOccHU","H73ROHUHhInc<10k","MOE H73ROHUHhInc<10k","H73ROHUHhInc<10kRnt<20pct","MOE H73ROHUHhInc<10kRnt<20pct","H73ROHUHhInc<10kRnt20to25pct","MOE H73ROHUHhInc<10kRnt20to25pct","H73ROHUHhInc<10kRnt25to30pct","MOE H73ROHUHhInc<10kRnt25to30pct","H73ROHUHhInc<10kRnt30to35pct","MOE H73ROHUHhInc<10kRnt30to35pct","H73ROHUHhInc<10kRnt35to39.9","MOE H73ROHUHhInc<10kRnt35to39.9","H73ROHUHhInc<10kRnt40to49.9","MOE H73ROHUHhInc<10kRnt40to49.9","H73ROHUHhInc<10kRnt>50pct","MOE H73ROHUHhInc<10kRnt>50pct","H73ROHUHhInc<10kPctNotComput","MOE H73ROHUHhInc<10kPctNotComput","H73ROHUHhInc10to20k","MOE H73ROHUHhInc10to20k","H73ROHUHhInc10to20kRnt<20pct","MOE H73ROHUHhInc10to20kRnt<20pct","H73ROHUHhInc10to20kRnt20to25pct","MOE H73ROHUHhInc10to20kRnt20to25pct","H73ROHUHhInc10to20kRnt25to30pct","MOE H73ROHUHhInc10to20kRnt25to30pct","H73ROHUHhInc10to20kRnt30to35pct","MOE H73ROHUHhInc10to20kRnt30to35pct","H73ROHUHhInc10to20kRnt35to39.9","MOE H73ROHUHhInc10to20kRnt35to39.9","H73ROHUHhInc10to20kRnt40to49.9","MOE H73ROHUHhInc10to20kRnt40to49.9","H73ROHUHhInc10to20kRnt>50pct","MOE H73ROHUHhInc10to20kRnt>50pct","H73ROHUHhInc10to20kRntPctNC","MOE H73ROHUHhInc10to20kRntPctNC","H73ROHUHhInc20to34.9k","MOE H73ROHUHhInc20to34.9k","H73ROHUHhInc20to34.9kRnt<20pct","MOE H73ROHUHhInc20to34.9kRnt<20pct","H73ROHUHhInc20to34.9kRnt20to25pct","MOE H73ROHUHhInc20to34.9kRnt20to25pct","H73ROHUHhInc20to34.9kRnt25to30pct","MOE H73ROHUHhInc20to34.9kRnt25to30pct","H73ROHUHhInc20to34.9kRnt30to35pct","MOE H73ROHUHhInc20to34.9kRnt30to35pct","H73ROHUHhInc20to34.9kRnt35to39.9","MOE H73ROHUHhInc20to34.9kRnt35to39.9","H73ROHUHhInc20to34.9kRnt40to49.9","MOE H73ROHUHhInc20to34.9kRnt40to49.9","H73ROHUHhInc20to34.9kRnt>50pct","MOE H73ROHUHhInc20to34.9kRnt>50pct","H73ROHUHhInc20to34.9kRntPctNC","MOE H73ROHUHhInc20to34.9kRntPctNC","H73ROHUHhInc35to49.9k","MOE H73ROHUHhInc35to49.9k","H73ROHUHhInc35to49.9kRnt<20pct","MOE H73ROHUHhInc35to49.9kRnt<20pct","H73ROHUHhInc35to49.9kRnt20to25pct","MOE H73ROHUHhInc35to49.9kRnt20to25pct","H73ROHUHhInc35to49.9kRnt25to30pct","MOE H73ROHUHhInc35to49.9kRnt25to30pct","H73ROHUHhInc35to49.9kRnt30to35pct","MOE H73ROHUHhInc35to49.9kRnt30to35pct","H73ROHUHhInc35to49.9kRnt35to39.9","MOE H73ROHUHhInc35to49.9kRnt35to39.9","H73ROHUHhInc35to49.9kRnt40to49.9","MOE H73ROHUHhInc35to49.9kRnt40to49.9","H73ROHUHhInc35to49.9kRnt>50pct","MOE H73ROHUHhInc35to49.9kRnt>50pct","H73ROHUHhInc35to49.9kRntPctNC","MOE H73ROHUHhInc35to49.9kRntPctNC","H73ROHUHhInc50to74.9k","MOE H73ROHUHhInc50to74.9k","H73ROHUHhInc50to74.9kRnt<20pct","MOE H73ROHUHhInc50to74.9kRnt<20pct","H73ROHUHhInc50to74.9kRnt20to25pct","MOE H73ROHUHhInc50to74.9kRnt20to25pct","H73ROHUHhInc50to74.9kRnt25to30pct","MOE H73ROHUHhInc50to74.9kRnt25to30pct","H73ROHUHhInc50to74.9kRnt30to35pct","MOE H73ROHUHhInc50to74.9kRnt30to35pct","H73ROHUHhInc50to74.9kRnt35to39.9","MOE H73ROHUHhInc50to74.9kRnt35to39.9","H73ROHUHhInc50to74.9kRnt40to49.9","MOE H73ROHUHhInc50to74.9kRnt40to49.9","H73ROHUHhInc50to74.9kRnt>50pct","MOE H73ROHUHhInc50to74.9kRnt>50pct","H73ROHUHhInc50to74.9kRntPctNC","MOE H73ROHUHhInc50to74.9kRntPctNC","H73ROHUHhInc75to99.9k","MOE H73ROHUHhInc75to99.9k","H73ROHUHhInc75to99.9kRnt<20pct","MOE H73ROHUHhInc75to99.9kRnt<20pct","H73ROHUHhInc75to99.9kRnt20to25pct","MOE H73ROHUHhInc75to99.9kRnt20to25pct","H73ROHUHhInc75to99.9kRnt25to30pct","MOE H73ROHUHhInc75to99.9kRnt25to30pct","H73ROHUHhInc75to99.9kRnt30to35pct","MOE H73ROHUHhInc75to99.9kRnt30to35pct","H73ROHUHhInc75to99.9kRnt35to39.9","MOE H73ROHUHhInc75to99.9kRnt35to39.9","H73ROHUHhInc75to99.9kRnt40to49.9","MOE H73ROHUHhInc75to99.9kRnt40to49.9","H73ROHUHhInc75to99.9kRnt>50pct","MOE H73ROHUHhInc75to99.9kRnt>50pct","H73ROHUHhInc75to99.9kRntPctNC","MOE H73ROHUHhInc75to99.9kRntPctNC","H73ROHUHhInc>100k","MOE H73ROHUHhInc>100k","H73ROHUHhInc>100kRnt<20pct","MOE H73ROHUHhInc>100kRnt<20pct","H73ROHUHhInc>100kRnt20to25pct","MOE H73ROHUHhInc>100kRnt20to25pct","H73ROHUHhInc>100kRnt25to30pct","MOE H73ROHUHhInc>100kRnt25to30pct","H73ROHUHhInc>100kRnt30to35pct","MOE H73ROHUHhInc>100kRnt30to35pct","H73ROHUHhInc>100kRnt35to39.9","MOE H73ROHUHhInc>100kRnt35to39.9","H73ROHUHhInc>100kRnt40to49.9","MOE H73ROHUHhInc>100kRnt40to49.9","H73ROHUHhInc>100kRnt>50pct","MOE H73ROHUHhInc>100kRnt>50pct","H73ROHUHhInc>100kRntPctNC","MOE H73ROHUHhInc>100kRntPctNC"]
[{"$f":"VLOOKUP(DropDownList!$B$47,CntyQryCensus!$A$510:$DA$546,A$1)","v":"Atkinson"},2530,315,2429,303,10,16,0,21,17,29,34,44,0,21,50,80,10,16,0,21,17,28,15,24,18,29,0,21,0,21,34,55,82,86,163,132,309,134,770,174,338,135,376,121,135,81,0,21,51,78,0,21,101,89,1066,36,2530,315,165,91,0,21,17,29,0,21,0,21,0,21,0,21,128,80,20,30,379,153,16,28,10,16,0,21,65,83,0,21,0,21,280,136,8,12,505,197,28,37,0,21,0,21,18,29,41,40,205,135,213,138,0,21,372,138,0,21,107,103,47,42,91,67,32,38,43,51,42,40,10,15,464,172,0,21,166,128,217,110,55,54,17,26,0,21,0,21,9,15,284,123,140,77,50,50,0,21,31,37,0,21,9,15,0,21,54,80,361,128,322,124,19,31,0,21,0,21,0,21,0,21,0,21,20,24]
[]
[]
[]
[]
[]
["Occupied Rental Housing Cost Burdern All Incomes"]
["NAME","RenterOccHsU",{"$f":"\"MOE \"&B155","v":"MOE RenterOccHsU"},"GRnt<20PctHHInc",{"$f":"\"MOE \"&D155","v":"MOE GRnt<20PctHHInc"},"GRnt20to249PctHHInc",{"$f":"\"MOE \"&F155","v":"MOE GRnt20to249PctHHInc"},"GRnt25to29.9PctHHInc",{"$f":"\"MOE \"&H155","v":"MOE GRnt25to29.9PctHHInc"},"GRnt<30PctHHInc",{"$f":"\"MOE \"&J155","v":"MOE GRnt<30PctHHInc"},"GRnt>30PctHHInc",{"$f":"\"MOE \"&L155","v":"MOE GRnt>30PctHHInc"},"GRnt30to349PctHHInc",{"$f":"\"MOE \"&N155","v":"MOE GRnt30to349PctHHInc"},"GRnt<35PctHHInc",{"$f":"\"MOE \"&P155","v":"MOE GRnt<35PctHHInc"},"GRnt>35PctHHInc",{"$f":"\"MOE \"&R155","v":"MOE GRnt>35PctHHInc"},"GRnt>50PctHHInc",{"$f":"\"MOE \"&T155","v":"MOE GRnt>50PctHHInc"},"HCB Not Calculated",{"$f":"\"MOE \"&V155","v":"MOE HCB Not Calculated"}]
[{"$f":"VLOOKUP(DropDownList!$B$47,CntyQryCensus!$A$510:$DA$552,A$1)","v":"Atkinson"},2530,315,506,165.92468170829801,369,161,264,120,1139,260.48416458587269,1270,299.12204866910093,260,135,1399,293.38882050957568,1010,266.92508312258701,663,218,121,89]
[]
["Income By Household Type and Tenure"]
["NAME","TotalFamilyHouseholds",{"$f":"\"MOE \"&B159","v":"MOE TotalFamilyHouseholds"},"FamInc<10K",{"$f":"\"MOE \"&D159","v":"MOE FamInc<10K"},"FamInc10to15K",{"$f":"\"MOE \"&F159","v":"MOE FamInc10to15K"},"FamInc15to20K",{"$f":"\"MOE \"&H159","v":"MOE FamInc15to20K"},"FamInc20to25K",{"$f":"\"MOE \"&J159","v":"MOE FamInc20to25K"},"FamInc25to30K",{"$f":"\"MOE \"&L159","v":"MOE FamInc25to30K"},"FamInc30to35K",{"$f":"\"MOE \"&N159","v":"MOE FamInc30to35K"},"FamInc35to40K",{"$f":"\"MOE \"&P159","v":"MOE FamInc35to40K"},"FamInc40to45K",{"$f":"\"MOE \"&R159","v":"MOE FamInc40to45K"},"FamInc45to50K",{"$f":"\"MOE \"&T159","v":"MOE FamInc45to50K"},"FamInc50to60K",{"$f":"\"MOE \"&V159","v":"MOE FamInc50to60K"},"FamInc60to75K",{"$f":"\"MOE \"&X159","v":"MOE FamInc60to75K"},"FamInc75to100K",{"$f":"\"MOE \"&Z159","v":"MOE FamInc75to100K"},"FamInc100to125K",{"$f":"\"MOE \"&AB159","v":"MOE FamInc100to125K"},"FamInc125to150K",{"$f":"\"MOE \"&AD159","v":"MOE FamInc125to150K"},"FamInc150to200K",{"$f":"\"MOE \"&AF159","v":"MOE FamInc150to200K"},"FamInc>200K",{"$f":"\"MOE \"&AH159","v":"MOE FamInc>200K"},"MedFamInc",{"$f":"\"MOE \"&AJ159","v":"MOE MedFamInc"},"TotalNonNonFamilyHouseholds",{"$f":"\"MOE \"&AL159","v":"MOE TotalNonNonFamilyHouseholds"},"NonFamInc<10K",{"$f":"\"MOE \"&AN159","v":"MOE NonFamInc<10K"},"NonFamInc10to15K",{"$f":"\"MOE \"&AP159","v":"MOE NonFamInc10to15K"},"NonFamInc15to20K",{"$f":"\"MOE \"&AR159","v":"MOE NonFamInc15to20K"},"NonFamInc20to25K",{"$f":"\"MOE \"&AT159","v":"MOE NonFamInc20to25K"},"NonFamInc25to30K",{"$f":"\"MOE \"&AV159","v":"MOE NonFamInc25to30K"},"NonFamInc30to35K",{"$f":"\"MOE \"&AX159","v":"MOE NonFamInc30to35K"},"NonFamInc35to40K",{"$f":"\"MOE \"&AZ159","v":"MOE NonFamInc35to40K"},"NonFamInc40to45K",{"$f":"\"MOE \"&BB159","v":"MOE NonFamInc40to45K"},"NonFamInc45to50K",{"$f":"\"MOE \"&BD159","v":"MOE NonFamInc45to50K"},"NonFamInc50to60K",{"$f":"\"MOE \"&BF159","v":"MOE NonFamInc50to60K"},"NonFamInc60to75K",{"$f":"\"MOE \"&BH159","v":"MOE NonFamInc60to75K"},"NonFamInc75to100K",{"$f":"\"MOE \"&BJ159","v":"MOE NonFamInc75to100K"},"NonFamInc100to125K",{"$f":"\"MOE \"&BL159","v":"MOE NonFamInc100to125K"},"NonFamInc125to150K",{"$f":"\"MOE \"&BN159","v":"MOE NonFamInc125to150K"},"NonFamInc150to200K",{"$f":"\"MOE \"&BP159","v":"MOE NonFamInc150to200K"},"NonFamInc>200K",{"$f":"\"MOE \"&BR159","v":"MOE NonFamInc>200K"},"MedNonFamInc",{"$f":"\"MOE \"&BT159","v":"MOE MedNonFamInc"},"PerCapitaIncome","MOE PerCapitaIncome"]
[{"$f":"VLOOKUP(DropDownList!$B$47,CntyQryCensus!$A$510:$DA$552,A$1)","v":"Atkinson"},1994,146,0,16,0,16,0,16,0,16,27,35,33,38,0,16,15,24,37,38,32,35,118,66,262,119,413,140,280,96,403,138,374,107,132500,12176,751,187,44,43,50,63,14,23,84,90,0,16,39,35,13,20,60,80,50,60,129,84,21,32,70,59,28,34,11,19,54,66,84,72,51991,9834]
[]
[]
[]
["2010 Census"]
[]
["TownName","LOGRECNO","COUNTY","TotalPop","TotalPop1Race","TotalPopWhite","TotalPopAfricanAmerican","TotalPopAmericanIndAlaska","TotalPopAsian","TotalPopNativeHawaiianPIsland","TotalPopSomeOtherRace","TotalPopTwoOrMoreRaces","TotalPopHispanicLatino","TotalNonHispanicLatino","TotPopUnder15yrs","TotPop15to24yrs","TotPop25to34yrs","TotPop35to44yrs","TotPop45to54yrs","TotPop55to64yrs","TotPop65to74yrs","TotPopOver74yrs","MedianAge","MedianAgeMale","MedianAgeFemale","TotalHH","TotalPopInHouseholds","TotalPopInFamilyHH","TotalPopInNonFamilyHH","AvgHHSize","TotalFamilyHH","TotalFamilyHHSpouse","TotalSingleParentHH","TotalNonFamilyHH","AvgFamilyHHSize","AvgNonFamilyHHSize","AverageHHSizeOwnerOccupied","AverageHHSizeRentalOccupied","TotalHousingUnits","TotalOccupiedHU","TotalOwnerOccupiedHUs","TotalRentalOccupiedHU","TotalVacantHU","VacantHUForRent","VacantHURentNotOccupied","VacantHUForSale","VacantHUsSoldNotOccupied","VacantHUSeasonalRecreational","VacantHUsAllOtherVacants","HomeOwnerVacancyRate","HomeRentalVacancyRate","Total HH","Total Single Family HU","Total Multi-Family HU","Total Manufacture HU"]
[{"$f":"VLOOKUP(DropDownList!$B$47,CntyQryCensus!$A$551:$DA$587,A$1)","v":"Atkinson"},{"$f":"VLOOKUP(DropDownList!$B$47,CntyQryCensus!$A$551:$DA$587,B$1)","v":"0000179"},{"$f":"VLOOKUP(DropDownList!$B$47,CntyQryCensus!$A$551:$DA$587,C$1)","v":"015"},{"$f":"VLOOKUP(DropDownList!$B$47,CntyQryCensus!$A$551:$DA$587,D$1)","v":6751},{"$f":"VLOOKUP(DropDownList!$B$47,CntyQryCensus!$A$551:$DA$587,E$1)","v":6701},{"$f":"VLOOKUP(DropDownList!$B$47,CntyQryCensus!$A$551:$DA$587,F$1)","v":6583},{"$f":"VLOOKUP(DropDownList!$B$47,CntyQryCensus!$A$551:$DA$587,G$1)","v":34},{"$f":"VLOOKUP(DropDownList!$B$47,CntyQryCensus!$A$551:$DA$587,H$1)","v":3},{"$f":"VLOOKUP(DropDownList!$B$47,CntyQryCensus!$A$551:$DA$587,I$1)","v":64},{"$f":"VLOOKUP(DropDownList!$B$47,CntyQryCensus!$A$551:$DA$587,J$1)","v":1},{"$f":"VLOOKUP(DropDownList!$B$47,CntyQryCensus!$A$551:$DA$587,K$1)","v":16},{"$f":"VLOOKUP(DropDownList!$B$47,CntyQryCensus!$A$551:$DA$587,L$1)","v":50},{"$f":"VLOOKUP(DropDownList!$B$47,CntyQryCensus!$A$551:$DA$587,M$1)","v":96},{"$f":"VLOOKUP(DropDownList!$B$47,CntyQryCensus!$A$551:$DA$587,N$1)","v":6655},{"$f":"VLOOKUP(DropDownList!$B$47,CntyQryCensus!$A$551:$DA$587,O$1)","v":1129},{"$f":"VLOOKUP(DropDownList!$B$47,CntyQryCensus!$A$551:$DA$587,P$1)","v":709},{"$f":"VLOOKUP(DropDownList!$B$47,CntyQryCensus!$A$551:$DA$587,Q$1)","v":416},{"$f":"VLOOKUP(DropDownList!$B$47,CntyQryCensus!$A$551:$DA$587,R$1)","v":894},{"$f":"VLOOKUP(DropDownList!$B$47,CntyQryCensus!$A$551:$DA$587,S$1)","v":1289},{"$f":"VLOOKUP(DropDownList!$B$47,CntyQryCensus!$A$551:$DA$587,T$1)","v":1178},{"$f":"VLOOKUP(DropDownList!$B$47,CntyQryCensus!$A$551:$DA$587,U$1)","v":687},{"$f":"VLOOKUP(DropDownList!$B$47,CntyQryCensus!$A$551:$DA$587,V$1)","v":449},{"$f":"VLOOKUP(DropDownList!$B$47,CntyQryCensus!$A$551:$DA$587,W$1)","v":46.7},{"$f":"VLOOKUP(DropDownList!$B$47,CntyQryCensus!$A$551:$DA$587,X$1)","v":46.3},{"$f":"VLOOKUP(DropDownList!$B$47,CntyQryCensus!$A$551:$DA$587,Y$1)","v":47},{"$f":"VLOOKUP(DropDownList!$B$47,CntyQryCensus!$A$551:$DA$587,Z$1)","v":2666},{"$f":"VLOOKUP(DropDownList!$B$47,CntyQryCensus!$A$551:$DA$587,AA$1)","v":6751},{"$f":"VLOOKUP(DropDownList!$B$47,CntyQryCensus!$A$551:$DA$587,AB$1)","v":3875},{"$f":"VLOOKUP(DropDownList!$B$47,CntyQryCensus!$A$551:$DA$587,AC$1)","v":2876},{"$f":"VLOOKUP(DropDownList!$B$47,CntyQryCensus!$A$551:$DA$587,AD$1)","v":2.5299999999999998},{"$f":"VLOOKUP(DropDownList!$B$47,CntyQryCensus!$A$551:$DA$587,AE$1)","v":1967},{"$f":"VLOOKUP(DropDownList!$B$47,CntyQryCensus!$A$551:$DA$587,AF$1)","v":1717},{"$f":"VLOOKUP(DropDownList!$B$47,CntyQryCensus!$A$551:$DA$587,AG$1)","v":250},{"$f":"VLOOKUP(DropDownList!$B$47,CntyQryCensus!$A$551:$DA$587,AH$1)","v":699},{"$f":"VLOOKUP(DropDownList!$B$47,CntyQryCensus!$A$551:$DA$587,AI$1)","v":2.97},{"$f":"VLOOKUP(DropDownList!$B$47,CntyQryCensus!$A$551:$DA$587,AJ$1)","v":4.1144492131616595},{"$f":"VLOOKUP(DropDownList!$B$47,CntyQryCensus!$A$551:$DA$587,AK$1)","v":2.65},{"$f":"VLOOKUP(DropDownList!$B$47,CntyQryCensus!$A$551:$DA$587,AL$1)","v":1.65},{"$f":"VLOOKUP(DropDownList!$B$47,CntyQryCensus!$A$551:$DA$587,AM$1)","v":2788},{"$f":"VLOOKUP(DropDownList!$B$47,CntyQryCensus!$A$551:$DA$587,AN$1)","v":2666},{"$f":"VLOOKUP(DropDownList!$B$47,CntyQryCensus!$A$551:$DA$587,AO$1)","v":2342},{"$f":"VLOOKUP(DropDownList!$B$47,CntyQryCensus!$A$551:$DA$587,AP$1)","v":324},{"$f":"VLOOKUP(DropDownList!$B$47,CntyQryCensus!$A$551:$DA$587,AQ$1)","v":122},{"$f":"VLOOKUP(DropDownList!$B$47,CntyQryCensus!$A$551:$DA$587,AR$1)","v":7},{"$f":"VLOOKUP(DropDownList!$B$47,CntyQryCensus!$A$551:$DA$587,AS$1)","v":1},{"$f":"VLOOKUP(DropDownList!$B$47,CntyQryCensus!$A$551:$DA$587,AT$1)","v":17},{"$f":"VLOOKUP(DropDownList!$B$47,CntyQryCensus!$A$551:$DA$587,AU$1)","v":3},{"$f":"VLOOKUP(DropDownList!$B$47,CntyQryCensus!$A$551:$DA$587,AV$1)","v":75},{"$f":"VLOOKUP(DropDownList!$B$47,CntyQryCensus!$A$551:$DA$587,AW$1)","v":19},{"$f":"VLOOKUP(DropDownList!$B$47,CntyQryCensus!$A$551:$DA$587,AX$1)","v":0.7},{"$f":"VLOOKUP(DropDownList!$B$47,CntyQryCensus!$A$551:$DA$587,AY$1)","v":2.1},{"$f":"VLOOKUP(DropDownList!$B$47,CntyQryCensus!$A$551:$DA$587,AZ$1)","v":2788},{"$f":"VLOOKUP(DropDownList!$B$47,CntyQryCensus!$A$551:$DA$587,BA$1)","v":1898},{"$f":"VLOOKUP(DropDownList!$B$47,CntyQryCensus!$A$551:$DA$587,BB$1)","v":890},{"$f":"VLOOKUP(DropDownList!$B$47,CntyQryCensus!$A$551:$DA$587,BC$1)","v":0}]

{"sheet":"CntyQuery","index":9,"n_rows":245,"n_cols":243,"rows_kept":245,"cut":false,"hidden":true,"merged":[]}
["CountyName","Cnty_Code","Census_Cnty_Code","LandAcres","WaterAcres","HousingUnits90Cen","Persons90Cen","Families90Cen","Households90cen","MalePop90cen","FemalePop90cen","WhitePop","BlackPop","AmerIndianPop","AsianPIPop","OtherRacePop","HispanicOrPop","AgeUnder15_90cen","Age15to24_90cen","Age25to34_90cen","Age35to44_90cen","Age45to54_90cen","Age55to64_90cen","Age65to74_90cen","Age75andOver_90cen","PersonsInHH90cen","PersonsInFamHH90cen","PersonsInGC","PersonsPerHH90cen","PersonsPerFam90Cen","SinglePersonHH90cen","MarriedCoupleHH90cen","SingleParentHH90cen","NonFamilyHH90cen","TotalHousingUnits","OccupiedHousingUnits","VacantHousingUnits","OwnerOccHU","RenterOccHU","VacantForRent90","VacantForSale90","VacantSeasonalRec","SingFamHU90cen","MultiFamHU90cen","MobileHom90cen","SingFamOwnHU90cen","MultiFamOwnHU90cen","MobileHomOwnHU90cen","SingFamRntrHU90cen","MultiFamRntrHU90cen","MobileHomRntrHU90cen","HU<5yrs90cen","HU5to20yrs90cen","HU20to50yrs90cen","HU>50yrs90cen","Units0Bedroom90cen","Units1Bedroom90cen","Units2Bedroom90cen","Units3Bedroom90cen","Units4+Bedroom90cen","HI<5K","HI5Kto10K","HI10Kto15K","HI15Kto25K","HI25Kto35K","HI35Kto50K","HI50Kto75K","HI75Kto100K","HI>100K","MedHI","HH<25HI<5K","HH<25HI5Kto10K","HH<25HI10Kto15K","HH<25HI15Kto25K","HH<25HI25Kto35K","HH<25HI35Kto50K","HH<25HI50Kto75K","HH<25HI75Kto100K","HH<25HI>100K","HH25to34HI<5K","HH25to34HI5Kto10K","HH25to34HI10Kto15K","HH25to34HI15Kto25K","HH25to34HI25Kto35K","HH25to34HI35Kto50K","HH25to34HI50Kto75K","HH25to34HI75Kto100K","HH25to34HI>100K","HH35to44HI<5K","HH35to44HI5Kto10K","HH35to44HI10Kto15K","HH35to44HI15Kto25K","HH35to44HI25Kto35K","HH35to44HI35Kto50K","HH35to44HI50Kto75K","HH35to44HI75Kto100K","HH35to44HI>100K","HH45to54HI<5K","HH45to54HI5Kto10K","HH45to54HI10Kto15K","HH45to54HI15Kto25K","HH45to54HI25Kto35K","HH45to54HI35Kto50K","HH45to54HI50Kto75K","HH45to54HI75Kto100K","HH45to54HI>100K","HH55to64HI<5K","HH55to64HI5Kto10K","HH55to64HI10Kto15K","HH55to64HI15Kto25K","HH55to64HI25Kto35K","HH55to64HI35Kto50K","HH55to64HI50Kto75K","HH55to64HI75Kto100K","HH55to64HI>100K","HH65to74HI<5K","HH65to74HI5Kto10K","HH65to74HI10Kto15K","HH65to74HI15Kto25K","HH65to74HI25Kto35K","HH65to74HI35Kto50K","HH65to74HI50Kto75K","HH65to74HI75Kto100K","HH65to74HI>100K","HH>75HI<5K","HH>75HI5Kto10K","HH>75HI10Kto15K","HH>75HI15Kto25K","HH>75HI25Kto35K","HH>75HI35Kto50K","HH>75HI50Kto75K","HH>75HI75Kto100K","HH>75HI>100K","SchoolEnrollment1thru12","Pop25andOver","HSGradorHigher","CollGradorHigher","NativePop","ForeignBornPop","BornStateOfRes","NativePop2","ForeignBornPop2","DroveAlone","CarPooled","PublicTranspt","Walked","OtherMeans","WorkedAtHome","HHInc<10K","HHInc10to15K","HHInc15to25K","HHInc25to35K","HHInc35to50K","HHInc50to75K","HHInc75to100K","HHInc100to150K","HHInc>150K"]
["Census 1990 Data -           Query Name:  DPCnty90Census"]
["NAME","FIPS","COUSUBFP","LandAcres","WaterAcres","HousingUnits90Cen","Persons90Cen","Families90Cen","Households90cen","MalePop90cen","FemalePop90cen","WhitePop","BlackPop","AmerIndianPop","AsianPIPop","OtherRacePop","HispanicOrPop","AgeUnder15_90cen","Age15to24_90cen","Age25to34_90cen","Age35to44_90cen","Age45to54_90cen","Age55to64_90cen","Age65to74_90cen","Age75andOver_90cen","PersonsInHH90cen","PersonsInFamHH90cen","PersonsInGC","PersonsPerHH90cen","PersonsPerFam90Cen","SinglePersonHH90cen","MarriedCoupleHH90cen","SingleParentHH90cen","NonFamilyHH90cen","TotalHousingUnits","OccupiedHousingUnits","VacantHousingUnits","OwnerOccHU","RenterOccHU","VacantForRent90","VacantForSale90","VacantSeasonalRec","SingFamHU90cen","MultiFamHU90cen","MobileHom90cen","SingFamOwnHU90cen","MultiFamOwnHU90cen","MobileHomOwnHU90cen","SingFamRntrHU90cen","MultiFamRntrHU90cen","MobileHomRntrHU90cen","HU<5yrs90cen","HU5to20yrs90cen","HU20to50yrs90cen","HU>50yrs90cen","Units0Bedroom90cen","Units1Bedroom90cen","Units2Bedroom90cen","Units3Bedroom90cen","Units4+Bedroom90cen","HI<5K","HI5Kto10K","HI10Kto15K","HI15Kto25K","HI25Kto35K","HI35Kto50K","HI50Kto75K","HI75Kto100K","HI>100K","MedHI","HH<25HI<5K","HH<25HI5Kto10K","HH<25HI10Kto15K","HH<25HI15Kto25K","HH<25HI25Kto35K","HH<25HI35Kto50K","HH<25HI50Kto75K","HH<25HI75Kto100K","HH<25HI>100K","HH25to34HI<5K","HH25to34HI5Kto10K","HH25to34HI10Kto15K","HH25to34HI15Kto25K","HH25to34HI25Kto35K","HH25to34HI35Kto50K","HH25to34HI50Kto75K","HH25to34HI75Kto100K","HH25to34HI>100K","HH35to44HI<5K","HH35to44HI5Kto10K","HH35to44HI10Kto15K","HH35to44HI15Kto25K","HH35to44HI25Kto35K","HH35to44HI35Kto50K","HH35to44HI50Kto75K","HH35to44HI75Kto100K","HH35to44HI>100K","HH45to54HI<5K","HH45to54HI5Kto10K","HH45to54HI10Kto15K","HH45to54HI15Kto25K","HH45to54HI25Kto35K","HH45to54HI35Kto50K","HH45to54HI50Kto75K","HH45to54HI75Kto100K","HH45to54HI>100K","HH55to64HI<5K","HH55to64HI5Kto10K","HH55to64HI10Kto15K","HH55to64HI15Kto25K","HH55to64HI25Kto35K","HH55to64HI35Kto50K","HH55to64HI50Kto75K","HH55to64HI75Kto100K","HH55to64HI>100K","HH65to74HI<5K","HH65to74HI5Kto10K","HH65to74HI10Kto15K","HH65to74HI15Kto25K","HH65to74HI25Kto35K","HH65to74HI35Kto50K","HH65to74HI50Kto75K","HH65to74HI75Kto100K","HH65to74HI>100K","HH>75HI<5K","HH>75HI5Kto10K","HH>75HI10Kto15K","HH>75HI15Kto25K","HH>75HI25Kto35K","HH>75HI35Kto50K","HH>75HI50Kto75K","HH>75HI75Kto100K","HH>75HI>100K","SchoolEnrollment1thru12","Pop25andOver","HSGradorHigher","CollGradorHigher","NativePop","ForeignBornPop","BornStateOfRes","NativePop2","ForeignBornPop2","DroveAlone","CarPooled","PublicTranspt","Walked","OtherMeans","WorkedAtHome","HHInc<10K","HHInc10to15K","HHInc15to25K","HHInc25to35K","HHInc35to50K","HHInc50to75K","HHInc75to100K","HHInc100to150K","HHInc>150K"]
["Atkinson",15005,"02340",7154.53,103.92,1885,5188,1449,1774,2605,2583,5125,15,1,43,4,12,1072,752,685,1083,759,454,259,124,5188,4797,0,2.9244644870349492,3.31055900621118,271,1319,130,54,1885,1774,111,1549,225,2,18,74,1591,281,13,1436,104,13,58,164,3,257,892,562,174,8,196,251,946,484,39,42,51,124,133,287,502,328,219,58239,0,9,0,9,0,0,0,0,0,7,5,7,19,49,36,86,57,15,0,6,0,43,27,92,160,155,118,0,14,0,9,16,66,125,76,51,9,0,7,13,4,54,99,27,35,10,0,19,11,37,35,10,13,0,13,8,18,20,0,4,22,0,0,990,3364,3090,1012,5039,149,374,5039,149,2415,313,20,31,12,99,81,51,124,133,287,502,328,150,69,35,222,179,713,296,216,50,174]
["Auburn",15010,"02820",16308,2129.9299999999998,1354,4085,1129,1302,2070,2015,4037,15,4,21,8,17,1067,482,739,901,425,220,163,88,4085,3848,0,3.1374807987711213,3.408325952170062,116,1016,113,57,1354,1302,52,1192,110,4,17,18,1264,65,25,1155,23,25,68,38,4,232,527,401,194,0,41,292,715,306,75,24,45,44,130,374,414,108,103,49059,0,0,0,0,5,9,0,6,0,6,6,0,6,26,81,89,42,19,12,0,0,7,40,166,231,15,20,0,0,5,14,37,58,57,30,34,7,10,0,3,22,29,37,7,30,11,8,15,0,0,31,0,8,0,39,0,25,14,0,0,0,0,0,812,2536,2053,554,3949,136,2099,3949,136,1729,336,11,32,8,63,99,45,44,130,374,414,108,89,14,3,229,235,292,207,100,94,194]
["Brentwood",15015,"07220",10860.6,2.2400000000000002,778,2590,624,755,1309,1281,2538,19,8,11,14,18,480,314,323,524,323,188,148,290,2182,2011,408,2.8900662251655631,3.2227564102564101,97,548,76,34,778,755,23,673,82,4,10,4,640,46,92,582,21,92,40,24,18,129,269,161,219,0,35,164,320,259,20,44,24,94,101,156,172,75,66,43654,0,2,0,3,2,7,4,0,0,0,2,5,18,20,31,24,4,4,6,11,6,36,36,54,67,20,32,3,9,0,2,14,31,42,38,23,0,0,4,11,18,26,23,13,3,6,9,4,9,11,7,8,0,4,5,11,5,15,0,0,4,0,0,415,1796,1431,328,2488,102,929,2488,102,923,115,2,42,7,81,64,24,94,101,156,172,75,42,24,10,119,102,167,107,32,22,219]
["Candia",15020,"09300",19408.38,148.69999999999999,1192,3557,982,1160,1788,1769,3528,12,10,5,2,17,866,437,582,794,398,229,155,96,3557,3303,0,3.0663793103448276,3.3635437881873727,122,872,110,56,1192,1160,32,1076,84,6,11,3,1060,72,60,994,35,60,42,32,10,167,496,257,272,6,43,202,679,262,36,39,44,127,172,258,357,96,43,45500,0,0,0,0,8,8,0,0,0,5,0,7,40,32,81,81,18,13,0,7,0,13,50,125,167,31,12,0,7,0,13,34,33,75,39,18,7,0,15,30,32,0,34,0,0,9,13,11,10,6,11,0,8,0,15,12,11,21,10,0,0,0,0,726,2295,1950,500,3455,102,2070,3455,102,1480,225,21,32,21,80,75,44,127,172,258,357,96,32,11,18,149,147,349,135,85,37,272]
["Chester",15025,"12100",16661.66,56.09,924,2691,703,862,1351,1340,2659,6,6,18,2,14,626,366,453,563,331,194,90,68,2650,2431,41,3.074245939675174,3.4580369843527738,111,631,72,48,924,862,62,778,84,1,18,6,800,90,34,710,46,34,39,39,6,212,302,187,223,0,55,197,475,197,14,24,33,92,94,215,262,102,36,46429,0,0,0,0,0,0,0,0,0,0,6,0,10,18,73,77,27,0,0,0,12,39,27,48,89,17,28,7,9,6,14,6,54,51,40,0,0,0,0,13,29,33,20,18,8,0,9,0,9,0,0,16,0,0,7,0,15,7,14,7,9,0,0,505,1767,1522,476,2643,48,826,2643,48,1163,152,9,35,14,82,38,33,92,94,215,262,102,27,9,9,203,76,226,91,35,61,223]
["Danville",15030,"17140",7453.76,115.63,960,2534,705,895,1279,1255,2517,8,1,8,0,8,591,279,519,444,313,206,112,70,2534,2281,0,2.8312849162011173,3.2354609929078015,139,621,84,51,960,895,65,822,73,8,24,8,592,76,292,533,32,292,22,34,17,326,333,133,168,0,129,302,355,174,23,26,57,85,126,243,239,65,25,42824,4,0,0,3,11,19,6,3,0,0,0,0,17,31,62,68,6,10,3,2,18,13,40,83,76,10,4,10,2,5,10,11,35,51,29,5,2,3,8,17,17,30,28,17,6,2,8,18,20,9,5,7,0,0,2,11,8,5,7,9,3,0,0,397,1664,1419,252,2496,38,468,2496,38,1128,158,7,20,12,26,49,57,85,126,243,239,65,21,4,26,300,220,113,75,44,14,168]
["Deerfield",15035,"17460",32496.58,851.07,1227,3124,828,999,1565,1559,3111,7,1,5,0,11,812,349,592,595,345,187,152,92,3090,2862,34,3.0930930930930929,3.4565217391304346,127,724,104,44,1227,999,228,905,94,5,15,197,1043,72,112,788,39,112,43,27,24,363,342,235,287,12,115,376,440,284,23,18,64,190,134,202,202,86,76,40980,0,0,10,6,0,4,8,0,0,0,0,6,69,43,33,55,12,18,0,0,11,31,46,69,78,25,7,10,0,12,33,30,40,46,42,7,0,0,13,19,9,36,9,0,44,6,6,6,26,6,14,6,7,0,7,12,6,6,0,6,0,0,0,642,1994,1606,620,3054,70,1543,3054,70,1306,154,5,22,16,79,41,64,190,134,202,202,86,43,33,21,342,73,269,90,54,91,287]
["Derry",15040,"17940",22675.89,549.74,11869,29603,7839,10767,14658,14945,28894,276,71,244,118,407,7418,3858,7346,5258,2549,1448,952,774,29421,25477,182,2.7325160211758148,3.2500318918229367,2098,6644,1195,830,11869,10767,1102,6761,4006,443,183,286,5549,5747,573,4877,1449,573,297,3625,84,3305,4858,2162,1544,133,1401,5095,3872,1368,234,513,279,1091,1752,2746,3151,756,355,43419,10,35,26,104,217,55,119,0,0,35,72,28,310,706,1137,1225,242,53,48,31,36,197,400,927,1100,242,147,0,27,32,139,199,362,414,180,105,33,13,35,129,172,171,188,63,36,50,97,72,178,26,52,73,21,14,58,238,50,34,32,42,32,8,0,5007,18408,15885,4597,28551,1052,6870,28551,1052,13668,1986,97,189,95,374,747,279,1091,1752,2746,3151,756,280,75,305,3000,1930,2928,1382,507,273,1544]
["East Kingston",15045,"21380",6344.76,35.96,494,1352,380,463,681,671,1342,0,5,5,0,5,308,169,231,261,192,87,59,45,1352,1247,0,2.9200863930885528,3.2815789473684212,66,343,37,17,494,463,31,428,35,3,10,8,423,12,59,379,7,59,24,2,9,70,167,131,139,3,16,136,223,129,12,22,24,52,64,120,131,35,12,43654,0,0,0,6,3,0,0,0,0,3,0,3,19,16,40,32,4,3,2,0,4,8,22,37,52,14,5,0,0,1,7,7,17,30,15,2,0,8,11,4,3,13,16,2,2,0,2,2,4,7,8,1,0,0,7,12,3,4,6,5,0,0,0,228,871,756,196,1337,21,451,1337,21,570,60,2,6,8,32,34,24,52,64,120,131,35,12,0,10,60,46,121,48,69,14,139]
["Epping",15050,"24660",16690.3,85.3,2059,5162,1399,1846,2617,2545,5109,12,9,17,15,44,1271,563,1110,904,459,377,285,193,5089,4491,73,2.7567713976164678,3.2101501072194423,324,1186,213,123,2059,1846,213,1445,401,26,35,112,1252,407,400,1018,112,400,84,260,57,363,842,397,457,13,160,847,692,347,40,149,115,253,310,465,407,78,42,36860,0,18,7,12,17,7,5,0,0,14,16,14,72,101,171,134,8,13,0,5,25,26,76,126,151,53,13,0,5,0,46,38,67,73,17,10,0,25,20,27,44,65,36,0,6,7,61,14,50,22,20,8,0,0,19,19,35,20,12,9,0,0,0,861,3328,2590,513,5060,102,1984,5060,102,1943,373,7,49,61,177,189,115,253,310,465,407,78,36,6,70,293,306,536,163,136,98,457]
["Exeter",15055,"25380",12644.78,168.09,5346,12481,3372,4975,5918,6563,12297,54,13,101,16,61,2489,1438,2315,1999,1301,1000,951,988,12211,10267,270,2.4544723618090454,3.0447805456702253,1312,2796,576,291,5346,4975,371,3385,1590,160,100,26,2279,1945,1122,1995,444,1122,208,1271,111,738,1539,1274,1782,69,767,1960,1565,972,174,418,267,746,786,1083,941,298,312,36121,4,2,9,44,35,39,30,0,0,30,0,46,125,215,356,273,50,16,31,9,29,135,168,300,297,62,135,0,28,32,125,116,125,194,158,71,49,58,16,88,72,119,68,28,52,24,117,77,143,112,100,69,0,14,36,204,58,86,68,44,10,0,24,1863,8558,7388,2742,12162,313,4273,12162,313,5124,721,44,320,47,224,592,267,746,786,1083,941,298,188,124,43,695,421,1118,598,551,125,1782]
["Fremont",15060,"27940",11043.2,99.16,920,2576,720,865,1300,1276,2550,10,3,12,1,20,637,285,642,447,236,143,96,90,2541,2349,35,2.9375722543352603,3.2625000000000002,108,655,65,37,920,865,55,743,122,8,17,15,750,102,68,671,31,68,43,63,16,310,244,170,196,5,66,265,428,156,22,31,31,99,134,268,211,42,27,40938,0,0,3,3,10,7,0,2,2,2,7,3,17,52,111,85,17,10,4,0,8,29,26,83,75,9,3,0,0,0,12,15,41,33,10,10,4,2,4,15,15,21,11,2,2,4,10,5,14,10,5,2,2,0,8,12,8,9,6,0,5,0,0,430,1654,1370,284,2530,46,765,2530,46,1160,137,6,8,11,37,53,31,99,134,268,211,42,23,4,45,265,110,134,98,45,27,196]
["Greenland",15065,"31700",6745.76,1778.05,1082,2768,779,1010,1368,1400,2725,13,1,29,0,41,513,399,441,502,408,248,162,95,2766,2437,2,2.7386138613861388,3.1283697047496792,157,686,93,74,1082,1010,72,745,265,11,21,22,792,275,15,679,62,15,62,194,9,219,300,365,190,6,43,298,477,250,32,23,75,113,87,255,289,110,36,47125,0,0,8,8,7,10,24,0,0,0,6,7,14,14,46,54,26,13,15,6,12,15,23,87,71,21,0,6,0,0,7,0,34,108,31,19,0,0,23,33,13,56,14,32,4,11,5,0,10,24,22,13,0,0,0,6,25,26,6,0,5,0,0,344,1815,1620,552,2716,48,1319,2716,48,1349,105,0,16,24,123,55,75,113,87,255,289,110,23,13,42,177,125,175,176,141,48,190]
["Hampstead",15070,"32900",8580.25,433.85,2661,6732,1843,2359,3366,3366,6650,16,4,53,9,60,1659,772,1170,1378,792,430,315,216,6730,6093,2,2.8529037727850786,3.3060227889310907,410,1668,175,106,2661,2359,302,1922,437,52,39,195,2030,436,195,1701,39,195,91,341,5,778,937,645,301,8,376,617,1170,490,29,67,127,281,321,503,559,254,217,43458,12,0,0,13,35,29,10,0,0,7,7,16,36,86,127,114,50,59,0,0,7,60,75,169,297,95,81,0,0,17,28,40,89,77,69,53,0,0,29,62,64,28,50,29,24,0,40,19,61,0,51,0,11,0,10,20,39,21,21,10,11,0,0,1143,4301,3946,1322,6580,152,1004,6580,152,3123,221,8,34,44,124,96,127,281,321,503,559,254,184,33,206,572,496,441,353,176,116,301]
["Hampton",15075,"33060",8804.73,267.99,8599,12278,3257,5046,5994,6284,12163,38,12,55,10,86,2085,1644,2154,2033,1500,1207,1002,653,12134,9829,144,2.4046769718588981,3.0178077985876572,1368,2690,567,421,8599,5046,3553,3146,1900,1132,120,2000,4437,3736,426,2464,527,426,386,1467,47,1220,2566,3395,1421,587,1041,3340,2296,1338,107,357,339,673,641,1057,1046,473,299,40929,0,21,0,38,70,64,43,0,0,20,22,78,126,167,303,244,31,53,11,49,0,115,124,221,220,210,103,33,25,21,73,68,147,327,153,84,10,49,60,58,59,187,175,52,29,0,54,81,166,118,106,27,27,10,33,137,99,97,35,29,10,0,20,1629,8572,7670,2626,11926,347,3164,11926,347,5296,814,13,157,125,154,464,339,673,641,1057,1046,473,247,52,206,1014,1074,1492,1234,1440,721,1421]
["Hampton Falls",15073,"33460",7926.42,151.54,591,1503,444,533,749,754,1496,1,3,0,3,14,284,165,176,300,222,171,113,72,1503,1384,0,2.819887429643527,3.1171171171171173,67,405,39,22,591,533,58,500,33,17,15,15,539,39,13,474,17,13,27,4,2,90,154,186,161,12,9,75,253,242,9,23,15,55,53,78,135,77,87,55682,0,0,0,0,0,2,3,0,0,0,3,0,1,9,15,17,14,7,2,0,2,2,12,18,49,16,27,3,3,0,7,6,21,30,23,29,2,1,3,11,20,12,19,11,14,2,0,4,19,6,6,10,10,7,0,16,6,15,0,4,7,3,3,216,1054,963,342,1475,28,462,1475,28,614,79,2,15,12,36,32,15,55,53,78,135,77,55,32,12,78,40,114,83,59,44,161]
["Kensington",15085,"39780",7667.77,0,585,1631,449,559,814,817,1620,1,3,7,0,0,334,223,284,295,193,156,90,56,1631,1469,0,2.9177101967799643,3.2717149220489978,71,388,61,39,585,559,26,495,64,5,8,3,511,22,52,447,13,52,43,7,14,87,180,156,158,1,23,108,292,157,21,11,20,81,77,111,142,59,34,44773,0,0,0,4,4,0,4,0,0,4,4,4,12,22,30,38,13,6,3,2,0,15,19,41,46,19,17,2,0,5,4,19,19,20,5,6,3,0,3,18,9,9,24,15,4,0,1,0,25,2,10,5,5,1,9,4,8,3,2,2,5,2,0,279,1072,901,291,1585,37,547,1585,37,652,88,8,25,8,52,32,20,81,77,111,142,59,20,14,2,85,49,131,71,59,26,158]
["Kingston",15090,"40100",12704.19,746,2115,5591,1520,1911,2776,2815,5532,27,10,10,12,37,1301,726,1068,1053,613,356,261,213,5591,5085,0,2.9256933542647827,3.3453947368421053,307,1336,184,84,2115,1911,204,1579,332,21,24,130,1673,267,175,1399,58,175,113,181,38,311,745,621,438,19,192,630,823,451,53,41,101,185,257,377,634,150,115,46867,5,0,0,19,21,11,0,0,0,0,0,6,27,79,120,194,27,16,6,5,11,39,75,126,206,43,37,6,6,0,26,44,53,124,72,37,18,0,0,35,12,40,97,8,18,0,6,78,22,14,6,0,0,7,18,24,6,17,12,21,13,0,0,983,3564,2987,783,5442,149,1023,5442,149,2476,254,26,21,23,120,94,101,185,257,377,634,150,80,35,28,283,316,429,258,200,163,438]
["Londonderry",15095,"43220",26897.87,60.25,6739,19781,5351,6386,9830,9951,19454,79,21,188,39,185,5364,2495,3817,4206,2132,958,534,275,19777,18366,4,3.0969307860945818,3.4322556531489443,738,4753,598,297,6739,6386,353,5497,889,67,183,15,4395,1754,590,4085,985,590,196,575,118,1545,3994,972,228,6,203,1993,2980,1557,74,108,133,377,600,1604,2077,894,559,52882,0,0,0,5,20,50,40,12,11,14,32,7,50,167,611,637,218,100,11,25,9,115,142,527,815,349,206,0,0,25,64,112,211,435,266,158,26,8,42,26,69,99,111,49,58,6,18,12,66,90,55,29,0,26,17,25,38,51,0,51,10,0,0,4215,11964,10916,3998,19075,706,4893,19075,706,8831,1289,80,182,51,227,182,133,377,600,1604,2077,894,449,110,181,1364,1016,2978,704,142,126,228]
["New Castle",15100,"50980",521.16999999999996,826.43,399,840,220,345,470,370,828,2,1,3,6,16,88,108,125,121,104,120,102,72,729,585,111,2.1130434782608694,2.6590909090909092,109,197,23,16,399,345,54,261,84,4,15,27,316,61,22,243,15,22,50,33,1,22,37,122,227,3,22,99,190,94,11,13,21,38,33,63,89,28,45,47344,0,0,0,0,0,3,0,2,0,0,2,0,2,3,12,7,0,0,0,0,2,5,3,2,20,7,13,0,0,0,2,4,7,17,7,5,2,0,5,3,6,12,21,12,8,5,7,9,21,9,9,8,0,12,4,4,5,5,8,18,16,0,7,51,649,623,273,826,23,316,826,23,252,26,3,12,5,118,24,21,38,33,63,89,28,26,19,0,22,14,23,30,49,43,227]
["Newfields",15105,"51380",4540.46,106.24,324,888,250,312,440,448,884,0,3,0,1,4,193,105,161,167,97,80,51,34,888,802,0,2.8461538461538463,3.2080000000000002,43,221,29,19,324,312,12,257,55,2,2,2,260,50,14,229,18,14,22,29,4,38,54,66,165,0,21,45,168,89,3,7,16,29,57,73,81,18,16,42237,0,0,0,4,3,2,0,0,0,0,0,2,6,14,24,29,2,2,0,0,1,6,13,24,23,3,4,1,1,3,0,3,9,12,9,8,0,0,6,2,17,7,11,2,0,2,3,4,6,2,3,4,0,0,0,3,0,5,5,4,2,2,2,165,553,453,154,869,19,455,869,19,339,59,2,16,6,21,10,16,29,57,73,81,18,12,4,4,34,11,43,19,32,15,165]
["Newington",15110,"51620",5273.69,2643.03,320,990,220,296,551,439,943,39,0,5,3,17,158,183,253,154,88,84,48,22,770,670,220,2.6013513513513513,3.0454545454545454,61,189,31,15,320,296,24,205,91,0,3,5,213,51,56,148,13,56,44,36,11,35,93,108,92,2,17,120,96,93,4,8,14,43,49,60,77,20,17,41607,0,0,3,2,3,0,2,0,0,0,0,8,19,17,17,18,2,5,0,3,0,8,16,13,17,7,4,0,0,0,2,4,13,25,2,8,2,0,1,6,5,6,10,1,0,2,1,1,4,2,11,5,6,0,0,4,1,2,2,0,0,2,0,105,690,581,183,963,31,367,963,31,495,36,1,62,16,8,12,14,43,49,60,77,20,9,8,4,31,36,57,37,38,33,92]
["Newmarket",15115,"52340",8042.25,1038.05,3285,7157,1822,2898,3611,3546,6858,52,12,231,4,63,1509,1204,1852,1165,462,425,340,200,7157,5547,0,2.4696342305037957,3.0444566410537872,682,1514,308,394,3285,2898,387,1493,1405,299,45,8,1199,1852,234,1075,239,234,77,1286,42,914,1079,529,764,40,541,1413,967,325,117,194,165,487,592,689,523,92,65,32348,16,28,35,132,26,60,45,8,0,15,55,27,110,254,276,174,29,10,22,15,7,82,168,206,143,33,33,7,15,12,37,31,72,59,12,22,11,21,20,25,59,33,75,0,0,16,52,52,82,32,23,19,10,0,30,8,12,19,22,19,8,0,0,853,4460,3782,1259,6885,272,3275,6885,272,3023,689,70,31,71,94,311,165,487,592,689,523,92,48,17,113,801,572,507,155,248,126,764]
["Newton",15120,"52900",6294.34,70.55,1251,3473,963,1198,1709,1764,3430,16,11,3,13,36,833,388,727,660,353,205,188,119,3473,3160,0,2.8989983305509184,3.2814122533748704,172,838,125,63,1251,1198,53,973,225,14,11,22,1013,175,63,909,12,63,66,150,9,123,479,312,337,4,117,282,582,266,33,67,58,185,176,263,322,82,47,41419,0,0,0,12,0,0,0,0,0,0,0,0,36,87,63,143,13,6,6,4,12,58,28,112,122,15,18,0,0,0,17,33,36,34,43,7,0,11,12,11,7,14,14,11,16,21,23,6,40,11,38,0,0,0,6,29,28,11,10,0,9,0,0,614,2261,1911,366,3411,62,458,3411,62,1485,228,6,31,0,69,100,58,185,176,263,322,82,12,35,20,103,95,384,174,97,41,337]
["North Hampton",15125,"54580",8913.5499999999993,9.25,1495,3637,1053,1387,1765,1872,3612,13,0,12,0,6,664,420,516,629,527,432,293,156,3637,3213,0,2.6222062004325881,3.0512820512820511,259,904,149,75,1495,1387,108,1197,190,13,26,48,1106,125,264,939,23,264,97,80,13,126,354,681,331,25,49,367,540,511,12,68,61,153,134,281,401,100,164,47072,0,9,0,4,12,9,6,0,0,0,0,7,35,13,51,99,12,5,6,0,10,30,22,40,80,31,54,0,0,6,20,17,70,101,5,67,6,13,11,23,15,56,73,36,32,0,22,16,26,48,26,37,12,6,0,24,11,15,7,29,5,4,0,585,2530,2329,792,3576,66,1154,3576,66,1739,135,12,37,34,86,80,61,153,134,281,401,100,93,71,15,111,167,187,372,229,80,331]
["Northwood",15130,"56820",18002.61,1354.26,1791,3124,863,1148,1564,1560,3074,11,11,28,0,22,741,361,622,559,325,210,186,120,3124,2746,0,2.7212543554006969,3.1819235225955969,208,737,126,77,1791,1148,643,953,195,34,37,538,1354,144,293,737,28,293,83,81,31,481,436,446,428,28,213,644,655,251,45,78,88,187,259,247,182,48,14,31768,0,6,0,27,7,6,0,0,0,0,7,0,28,72,78,68,0,0,0,0,6,13,104,83,60,25,5,7,6,18,37,60,38,31,11,0,38,16,24,14,7,21,5,0,9,0,17,23,47,0,9,18,8,0,0,26,17,21,9,12,0,4,0,537,2022,1650,442,3021,103,1327,3021,103,1214,134,21,21,19,85,123,88,187,259,247,182,48,14,0,41,440,121,315,168,168,110,428]
["Nottingham",15135,"57460",29775.79,1220.76,1314,2939,824,1037,1455,1484,2904,9,1,20,5,14,701,299,616,578,355,203,114,73,2939,2638,0,2.8341369334619095,3.2014563106796117,151,745,79,62,1314,1037,277,912,125,4,17,233,1167,52,95,819,22,95,88,27,10,310,466,276,262,2,80,468,485,279,23,56,62,101,147,267,261,80,35,41761,3,0,0,4,5,2,3,0,3,0,11,14,16,55,82,76,9,2,4,8,4,40,37,96,90,21,12,5,7,9,5,20,45,56,35,18,0,13,6,5,21,36,23,10,0,5,6,19,17,5,6,11,5,0,6,11,10,14,4,0,2,0,0,517,1939,1672,493,2874,65,1225,2874,65,1283,191,11,29,10,57,79,62,101,147,267,261,80,32,3,39,271,95,371,148,71,57,262]
["Plaistow",15140,"62500",6789.6,0,2691,7316,2072,2601,3575,3741,7225,22,2,41,26,73,1566,993,1543,1208,807,625,382,192,7316,6604,0,2.8127643214148406,3.1872586872586872,388,1764,308,141,2691,2601,90,1941,660,28,36,3,1529,1080,82,1410,485,82,93,535,32,660,738,891,402,4,160,1088,917,522,29,106,100,241,496,583,707,186,142,43058,0,0,0,0,50,24,9,10,0,0,19,18,68,122,244,206,10,25,14,16,7,31,114,81,221,109,32,8,0,16,28,47,108,173,37,78,0,36,14,49,86,84,69,12,7,0,23,35,47,38,36,29,8,0,7,12,10,18,39,6,0,0,0,1256,4757,4032,829,7181,135,813,7181,135,3336,332,16,95,61,164,135,100,241,496,583,707,186,135,7,66,594,250,488,470,278,143,402]
["Portsmouth",15145,"62900",10033.91,729.44,11369,25925,6309,10329,12793,13132,24014,1193,71,447,200,518,5080,3829,6167,3783,2051,1863,1666,1486,24689,19258,1236,2.390260431793978,3.0524647329212238,2951,4998,1311,1069,11369,10329,1040,4326,6003,539,165,45,3854,6957,558,3283,693,558,452,5441,110,947,2055,3832,4535,284,1949,4291,3688,1157,399,702,800,2162,1834,1918,1628,549,319,30591,50,70,105,222,172,95,37,0,0,47,90,115,800,738,657,433,131,43,29,45,108,379,377,538,451,182,104,32,30,56,181,174,223,291,91,64,73,81,25,184,141,175,244,94,77,52,183,213,265,125,172,109,40,4,116,203,178,131,107,58,63,11,27,3289,17007,15102,4516,24878,1047,8457,24878,1047,10710,1672,186,923,181,538,1101,800,2162,1834,1918,1628,549,195,124,111,836,579,1476,753,1881,1198,4535]
["Raymond",15150,"64020",18440.14,503.34,3350,8713,2358,2999,4405,4308,8654,27,9,14,9,43,2372,1043,2074,1376,697,491,396,264,8713,7846,0,2.905301767255752,3.3273960983884647,456,2040,318,185,3350,2999,351,2314,685,119,59,128,1856,690,804,1556,91,804,122,470,93,810,1549,589,402,18,348,1349,1292,343,57,222,169,459,468,776,668,132,49,37775,17,16,15,14,23,53,8,0,0,7,33,16,141,189,304,265,30,18,0,20,29,112,152,165,234,57,12,0,8,0,47,39,155,97,30,12,8,55,25,45,30,56,56,15,7,25,41,54,39,21,28,0,0,0,0,49,30,61,14,15,8,0,0,1628,5298,4089,699,8573,140,3317,8573,140,3489,618,25,52,15,99,279,169,459,468,776,668,132,40,9,168,642,480,1069,398,144,47,402]
["Rye",15155,"66180",8090.96,334.62,2443,4612,1310,1905,2232,2380,4577,10,5,19,1,8,666,458,654,758,610,559,518,389,4576,3821,36,2.4020997375328084,2.9167938931297708,471,1138,172,124,2443,1905,538,1513,392,42,35,409,2026,330,87,1401,68,87,191,171,30,185,536,924,789,29,161,671,883,690,84,45,142,214,238,412,352,159,272,42143,0,0,0,0,0,12,0,0,0,16,0,8,19,30,86,55,10,40,0,7,14,41,80,82,133,40,49,15,8,0,15,56,37,76,48,73,0,0,0,22,32,84,18,42,89,17,8,52,44,33,87,41,19,11,36,22,68,73,7,24,29,0,10,599,3483,3229,1257,4424,179,1700,4424,179,2042,219,8,74,40,134,129,142,214,238,412,352,159,85,187,21,164,157,379,302,346,276,789]
["Salem",15160,"66660",15876.66,692.65,9897,25746,6911,9185,12746,13000,24917,239,38,456,96,364,5172,3512,4619,4389,3225,2309,1566,954,25583,22670,163,2.7853021230266739,3.2802778179713501,1775,5825,1086,499,9897,9185,712,7071,2114,155,102,321,6710,2321,866,5857,522,866,420,1583,111,1080,3340,4592,885,88,1004,3148,3924,1733,263,431,374,842,1292,2053,2361,917,626,44210,14,9,23,21,72,113,0,4,0,23,53,51,136,250,588,523,143,99,25,9,28,157,378,649,773,287,121,35,27,23,77,224,272,616,292,261,52,59,53,165,196,250,362,145,90,40,173,101,219,133,152,87,31,51,74,101,95,67,39,29,0,15,4,3873,17035,14043,3474,24231,1515,2021,24231,1515,11658,1705,59,170,228,275,694,374,842,1292,2053,2361,917,497,129,89,991,925,2415,2749,1280,563,885]
["Sandown",15165,"67620",8952.2000000000007,279.56,1488,4060,1126,1304,2046,2014,4031,9,7,5,8,15,1189,395,990,807,320,164,122,73,4060,3791,0,3.1134969325153374,3.366785079928952,113,996,130,65,1488,1304,184,1136,168,13,41,106,1215,174,99,1017,44,99,55,101,12,382,642,357,107,0,100,408,821,159,13,62,37,71,202,291,442,167,34,48413,0,0,0,7,0,8,18,0,0,0,13,12,11,71,132,155,40,7,7,0,19,0,57,98,153,72,6,6,0,0,8,34,25,78,38,8,0,6,0,6,16,23,33,17,6,0,25,0,34,6,5,5,0,0,0,18,6,5,18,0,0,0,7,728,2500,2245,590,3970,90,770,3970,90,1845,247,7,26,12,70,75,37,71,202,291,442,167,28,6,31,351,258,384,217,103,37,107]
["Seabrook",15170,"68260",5759.73,401.54,3469,6503,1815,2808,3234,3269,6427,14,19,33,10,51,963,864,1173,880,751,786,709,377,6503,5275,0,2.3158831908831909,2.9063360881542701,785,1434,381,208,3469,2808,661,1766,1042,138,54,425,1242,1221,1006,820,119,1006,115,822,105,417,1590,989,473,78,328,1711,987,365,98,188,251,700,592,579,286,89,44,28237,0,0,0,63,46,10,9,0,0,9,31,24,137,192,141,37,27,0,0,15,14,61,88,104,98,8,9,11,8,8,108,105,155,52,46,15,20,25,73,98,89,85,59,0,11,32,31,84,162,59,66,22,8,9,26,78,48,71,13,18,9,0,0,760,4676,3272,472,6270,233,1482,6270,233,2429,583,0,69,37,89,286,251,700,592,579,286,89,31,13,89,328,380,1210,494,371,124,473]
["South Hampton",15175,"71140",5062.99,83.58,263,740,219,257,355,385,735,3,1,1,0,1,146,82,107,158,79,83,57,28,740,694,0,2.8793774319066148,3.1689497716894977,30,197,22,8,263,257,6,238,19,0,0,0,243,18,2,227,10,2,10,8,1,30,89,77,71,0,6,51,118,92,0,6,6,29,38,56,49,42,30,47813,0,0,0,0,0,0,0,0,0,0,0,0,2,6,8,3,4,0,0,0,2,3,12,27,27,14,7,0,0,2,2,4,4,11,6,13,0,0,0,3,0,9,5,8,6,0,2,0,9,12,8,3,10,2,0,4,2,10,4,0,0,0,2,116,514,453,149,723,26,96,723,26,311,36,5,1,0,14,6,6,29,38,56,49,42,17,13,0,30,18,71,25,43,9,71]
["Stratham",15180,"74340",9679.3799999999992,222.16,1917,4955,1381,1812,2448,2507,4883,15,12,36,9,33,1194,454,967,1062,571,343,253,111,4948,4370,7,2.7306843267108167,3.1643736422881972,316,1269,112,115,1917,1812,105,1537,275,28,49,5,1193,659,65,1096,405,65,61,193,21,787,688,248,194,4,200,485,797,431,7,50,59,159,208,385,463,290,197,51567,0,0,0,0,22,21,10,0,0,0,0,8,28,78,152,79,51,35,0,0,6,57,49,69,218,141,85,0,0,13,34,30,46,74,66,51,7,22,14,16,17,61,42,14,7,0,14,6,24,12,11,32,12,19,0,14,12,0,0,25,8,6,0,812,3307,3078,1367,4802,153,1576,4802,153,2281,186,30,25,41,67,57,59,159,208,385,463,290,120,77,66,721,290,398,122,93,33,194]
["Windham",15185,"85780",17101.990000000002,670.34,3327,9000,2450,2830,4510,4490,8860,43,6,80,11,54,2199,1173,1301,2051,1186,548,318,224,8904,8376,96,3.1462897526501767,3.4187755102040818,257,2233,217,123,3327,2830,497,2590,240,13,69,368,3031,284,12,2402,183,12,174,66,0,773,1615,607,332,11,74,622,1418,1202,19,25,78,150,229,471,792,500,536,61183,0,0,0,0,0,7,0,7,0,0,0,0,35,50,93,162,32,117,10,0,9,59,95,184,368,245,134,9,0,0,24,28,100,130,131,193,0,7,17,0,24,57,102,57,56,0,0,33,27,21,23,7,23,36,0,18,19,5,11,7,23,5,0,1928,5628,5226,2154,8504,496,1247,8504,496,3867,518,25,66,40,210,44,78,150,229,471,792,500,433,103,108,665,625,990,336,192,79,332]
[]
[]
[]
[]
[]
[]
[]
[]
["Census 1990 Data -    Query Name:  CountySTF1Qry1"]
["NAME","COUSUBFP","Census_Cnty_Code","FIPS","LandAcres","WaterAcres","HousingUnits90Cen","P01Persons90Cen","P02Families90Cen","P03Households90cen","P05MalePop90cen","P05FemalePop90cen","P06WhitePop","P06BlackPop","P06AmerIndianPop","P06AsianPIPop","P06OtherRacePop","P08HispanicOrPop","P11AgeUnder15_90cen","P11Age15to24_90cen","P11Age25to34_90cen","P11Age35to44_90cen","P11Age45to54_90cen","P11Age55to64_90cen","P11Age65to74_90cen","P11Age75andOver_90cen","P15PersonsInHH90cen","P15PersonsInFamHH90cen","P15PersonsInGC","PersonsPerHH90cen","PersonsPerFam90Cen","P16SinglePersonHH90cen","P16MarriedCoupleHH90cen","P16SingleParentHH90cen","P16NonFamilyHH90cen","H01TotalHousingUnits","H02OccupiedHousingUnits","H02VacantHousingUnits","H03OwnerOccHU","H03RenterOccHU","H05VacantForRent90","H05VacantForSale90","H05VacantSeasonalRec","H23OOHUVal<15k","H23OOHUVal15to19k","H23OOHUVal20to24k","H23OOHUVal25to29k","H23OOHUVal30to34k","H23OOHUVal35to39k","H23OOHUVal40to44k","H23OOHUVal45to49k","H23OOHUVal50to59k","H23OOHUVal60to74k","H23OOHUVal75to99k","H23OOHUVal100to124k","H23OOHUVal125to149k","H23OOHUVal150to174k","H23OOHUVal175to199k","H23OOHUVal200to249k","H23OOHUVal250to299k","H23OOHUVal300to399k","H23OOHUVal400to499k","H23OOHUVal500kOrMore","H23BOOHUMedVal","H41SingFamHU90cen","H41MultiFamHU90cen","H41MobileHom90cen","H43SingFamOwnHU90cen","H43MultiFamOwnHU90cen","H43MobileHomOwnHU90cen","H43SingFamRntrHU90cen","H43MultiFamRntrHU90cen","H43MobileHomRntrHU90cen","H41HU1UnitDet","H41HU1UnitAtt","H41HU2Unit","H41HU3to4Unit","H41HU5to9Unit","H41HU10to19Unit","H41HU20to49Unit","H41HU50PlusUnit","H41HUMobilH","H41HUOther"]
["Atkinson",801,15005,"02340",7154.53,103.92,1885,5188,1449,1774,2605,2583,5125,15,1,43,4,12,1072,752,685,1083,759,454,259,124,5188,4797,0,2.9244644870349492,3.31055900621118,271,1319,130,54,1885,1774,111,1549,225,2,18,74,0,0,1,0,0,0,0,1,1,3,23,64,203,341,266,248,88,69,16,11,177900,1591,281,13,1436,104,9,58,164,3,1591,87,40,29,0,125,0,0,3,10]
["Auburn",802,15010,"02820",16308,2129.9299999999998,1354,4085,1129,1302,2070,2015,4037,15,4,21,8,17,1067,482,739,901,425,220,163,88,4085,3848,0,3.1374807987711213,3.408325952170062,116,1016,113,57,1354,1302,52,1192,110,4,17,18,4,1,0,0,1,0,1,1,6,22,95,211,278,181,86,83,27,4,1,5,139500,1264,65,25,1155,23,14,68,38,4,1264,8,28,18,10,1,0,0,23,2]
["Brentwood",803,15015,"07220",10860.6,2.2400000000000002,778,2590,624,755,1309,1281,2538,19,8,11,14,18,480,314,323,524,323,188,148,290,2182,2011,408,2.8900662251655631,3.2227564102564101,97,548,76,34,778,755,23,673,82,4,10,4,1,0,0,0,1,1,1,3,1,9,25,61,68,56,60,76,44,17,3,2,169400,640,46,92,582,21,70,40,24,18,640,8,26,6,5,1,0,0,83,9]
["Candia",804,15020,"09300",19408.38,148.69999999999999,1192,3557,982,1160,1788,1769,3528,12,10,5,2,17,866,437,582,794,398,229,155,96,3557,3303,0,3.0663793103448276,3.3635437881873727,122,872,110,56,1192,1160,32,1076,84,6,11,3,1,1,1,2,0,5,2,2,6,19,83,176,203,134,68,44,13,8,0,2,135700,1060,72,60,994,35,47,42,32,10,1060,22,20,14,13,3,0,0,49,11]
["Chester",805,15025,"12100",16661.66,56.09,924,2691,703,862,1351,1340,2659,6,6,18,2,14,626,366,453,563,331,194,90,68,2650,2431,41,3.074245939675174,3.4580369843527738,111,631,72,48,924,862,62,778,84,1,18,6,2,0,1,0,1,1,1,1,6,12,28,72,138,94,62,62,19,12,8,2,149600,800,90,34,710,46,22,39,39,6,800,44,24,10,11,1,0,0,27,7]
["Danville",806,15030,"17140",7453.76,115.63,960,2534,705,895,1279,1255,2517,8,1,8,0,8,591,279,519,444,313,206,112,70,2534,2281,0,2.8312849162011173,3.2354609929078015,139,621,84,51,960,895,65,822,73,8,24,8,1,0,1,0,1,2,0,0,10,24,40,66,100,91,60,55,16,0,2,1,147500,592,76,292,533,32,257,22,34,17,592,22,13,31,9,1,0,0,285,7]
["Deerfield",807,15035,"17460",32496.58,851.07,1227,3124,828,999,1565,1559,3111,7,1,5,0,11,812,349,592,595,345,187,152,92,3090,2862,34,3.0930930930930929,3.4565217391304346,127,724,104,44,1227,999,228,905,94,5,15,197,2,1,3,0,0,2,4,0,8,16,74,98,119,97,57,44,15,8,1,4,139400,1043,72,112,788,39,78,43,27,24,1043,23,44,5,0,0,0,0,97,15]
["Derry",808,15040,"17940",22675.89,549.74,11869,29603,7839,10767,14658,14945,28894,276,71,244,118,407,7418,3858,7346,5258,2549,1448,952,774,29421,25477,182,2.7325160211758148,3.2500318918229367,2098,6644,1195,830,11869,10767,1102,6761,4006,443,183,286,7,4,3,4,5,0,5,5,25,44,425,1233,1697,956,426,315,81,37,5,6,138000,5549,5747,573,4877,1449,435,297,3625,84,5549,1413,932,445,448,687,1749,73,455,118]
["East Kingston",809,15045,"21380",6344.76,35.96,494,1352,380,463,681,671,1342,0,5,5,0,5,308,169,231,261,192,87,59,45,1352,1247,0,2.9200863930885528,3.2815789473684212,66,343,37,17,494,463,31,428,35,3,10,8,0,0,0,0,0,0,0,2,1,6,20,32,49,65,32,67,16,4,3,2,165200,423,12,59,379,7,42,24,2,9,423,4,8,0,0,0,0,0,54,5]
["Epping",810,15050,"24660",16690.3,85.3,2059,5162,1399,1846,2617,2545,5109,12,9,17,15,44,1271,563,1110,904,459,377,285,193,5089,4491,73,2.7567713976164678,3.2101501072194423,324,1186,213,123,2059,1846,213,1445,401,26,35,112,2,1,0,3,1,3,2,2,3,18,134,290,248,96,30,27,12,5,0,1,123300,1252,407,400,1018,112,315,84,260,57,1252,86,70,74,117,40,20,0,370,30]
["Exeter",811,15055,"25380",12644.78,168.09,5346,12481,3372,4975,5918,6563,12297,54,13,101,16,61,2489,1438,2315,1999,1301,1000,951,988,12211,10267,270,2.4544723618090454,3.0447805456702253,1312,2796,576,291,5346,4975,371,3385,1590,160,100,26,2,1,3,0,1,5,3,6,11,21,128,302,403,316,215,220,121,83,23,10,154000,2279,1945,1122,1995,444,946,208,1271,111,2279,177,393,486,365,216,82,226,1023,99]
["Fremont",812,15060,"27940",11043.2,99.16,920,2576,720,865,1300,1276,2550,10,3,12,1,20,637,285,642,447,236,143,96,90,2541,2349,35,2.9375722543352603,3.2625000000000002,108,655,65,37,920,865,55,743,122,8,17,15,1,0,0,0,0,0,2,0,3,11,75,143,172,87,49,34,8,3,0,1,133600,750,102,68,671,31,41,43,63,16,750,17,32,31,22,0,0,0,53,15]
["Greenland",813,15065,"31700",6745.76,1778.05,1082,2768,779,1010,1368,1400,2725,13,1,29,0,41,513,399,441,502,408,248,162,95,2766,2437,2,2.7386138613861388,3.1283697047496792,157,686,93,74,1082,1010,72,745,265,11,21,22,1,0,1,1,0,0,0,0,0,8,42,85,107,98,66,116,48,40,8,11,168100,792,275,15,679,62,4,62,194,9,792,82,145,23,23,2,0,0,7,8]
["Hampstead",814,15070,"32900",8580.25,433.85,2661,6732,1843,2359,3366,3366,6650,16,4,53,9,60,1659,772,1170,1378,792,430,315,216,6730,6093,2,2.8529037727850786,3.3060227889310907,410,1668,175,106,2661,2359,302,1922,437,52,39,195,0,0,1,1,0,2,1,1,1,10,52,129,220,241,279,429,122,44,9,5,185300,2030,436,195,1701,39,182,91,341,5,2030,46,60,39,58,209,24,0,178,17]
["Hampton",815,15075,"33060",8804.73,267.99,8599,12278,3257,5046,5994,6284,12163,38,12,55,10,86,2085,1644,2154,2033,1500,1207,1002,653,12134,9829,144,2.4046769718588981,3.0178077985876572,1368,2690,567,421,8599,5046,3553,3146,1900,1132,120,2000,5,3,2,1,4,1,1,0,15,20,81,307,548,456,355,331,154,96,24,28,162500,4437,3736,426,2464,527,155,386,1467,47,4437,483,634,467,704,671,696,81,301,125]
["Hampton Falls",816,15073,"33460",7926.42,151.54,591,1503,444,533,749,754,1496,1,3,0,3,14,284,165,176,300,222,171,113,72,1503,1384,0,2.819887429643527,3.1171171171171173,67,405,39,22,591,533,58,500,33,17,15,15,1,0,1,1,0,0,0,0,1,1,3,18,36,49,40,92,50,44,27,16,221200,539,39,13,474,17,9,27,4,2,539,10,14,9,6,0,0,0,6,7]
["Kensington",817,15085,"39780",7667.77,0,585,1631,449,559,814,817,1620,1,3,7,0,0,334,223,284,295,193,156,90,56,1631,1469,0,2.9177101967799643,3.2717149220489978,71,388,61,39,585,559,26,495,64,5,8,3,2,0,0,0,0,0,0,1,3,5,17,38,60,56,49,61,39,8,4,3,171000,511,22,52,447,13,35,43,7,14,511,5,11,4,0,2,0,0,42,10]
["Kingston",818,15090,"40100",12704.19,746,2115,5591,1520,1911,2776,2815,5532,27,10,10,12,37,1301,726,1068,1053,613,356,261,213,5591,5085,0,2.9256933542647827,3.3453947368421053,307,1336,184,84,2115,1911,204,1579,332,21,24,130,1,2,2,0,0,1,0,1,7,27,94,226,285,228,150,166,38,21,3,5,148500,1673,267,175,1399,58,122,113,181,38,1673,34,80,63,70,20,0,0,143,32]
["Londonderry",819,15095,"43220",26897.87,60.25,6739,19781,5351,6386,9830,9951,19454,79,21,188,39,185,5364,2495,3817,4206,2132,958,534,275,19777,18366,4,3.0969307860945818,3.4322556531489443,738,4753,598,297,6739,6386,353,5497,889,67,183,15,1,1,0,1,2,2,6,9,17,51,364,503,1109,904,595,550,159,52,6,7,152900,4395,1754,590,4085,985,427,196,575,118,4395,957,150,101,231,244,71,0,524,66]
["New Castle",820,15100,"50980",521.16999999999996,826.43,399,840,220,345,470,370,828,2,1,3,6,16,88,108,125,121,104,120,102,72,729,585,111,2.1130434782608694,2.6590909090909092,109,197,23,16,399,345,54,261,84,4,15,27,0,0,0,0,0,0,0,0,0,1,2,11,5,6,14,44,35,40,33,38,295000,316,61,22,243,15,3,50,33,1,316,12,31,13,5,0,0,0,0,22]
["Newfields",821,15105,"51380",4540.46,106.24,324,888,250,312,440,448,884,0,3,0,1,4,193,105,161,167,97,80,51,34,888,802,0,2.8461538461538463,3.2080000000000002,43,221,29,19,324,312,12,257,55,2,2,2,1,0,0,0,0,0,2,0,1,2,18,37,45,27,24,17,7,3,2,0,142800,260,50,14,229,18,10,22,29,4,260,10,27,10,3,0,0,0,10,4]
["Newington",822,15110,"51620",5273.69,2643.03,320,990,220,296,551,439,943,39,0,5,3,17,158,183,253,154,88,84,48,22,770,670,220,2.6013513513513513,3.0454545454545454,61,189,31,15,320,296,24,205,91,0,3,5,1,0,0,0,0,0,1,0,1,2,10,10,11,11,14,21,11,13,5,8,197300,213,51,56,148,13,44,44,36,11,213,19,20,8,1,3,0,0,52,4]
["Newmarket",823,15115,"52340",8042.25,1038.05,3285,7157,1822,2898,3611,3546,6858,52,12,231,4,63,1509,1204,1852,1165,462,425,340,200,7157,5547,0,2.4696342305037957,3.0444566410537872,682,1514,308,394,3285,2898,387,1493,1405,299,45,8,1,0,1,2,1,1,2,2,12,30,128,267,275,169,72,42,15,9,5,3,131500,1199,1852,234,1075,239,179,77,1286,42,1199,243,248,325,211,262,496,67,198,36]
["Newton",824,15120,"52900",6294.34,70.55,1251,3473,963,1198,1709,1764,3430,16,11,3,13,36,833,388,727,660,353,205,188,119,3473,3160,0,2.8989983305509184,3.2814122533748704,172,838,125,63,1251,1198,53,973,225,14,11,22,0,0,2,0,2,1,5,2,12,16,72,152,283,162,44,33,8,6,1,0,137100,1013,175,63,909,12,52,66,150,9,1013,7,30,35,54,49,0,0,49,14]
["North Hampton",825,15125,"54580",8913.5499999999993,9.25,1495,3637,1053,1387,1765,1872,3612,13,0,12,0,6,664,420,516,629,527,432,293,156,3637,3213,0,2.6222062004325881,3.0512820512820511,259,904,149,75,1495,1387,108,1197,190,13,26,48,0,2,1,0,1,0,1,2,1,8,22,50,122,156,95,125,70,59,33,78,187400,1106,125,264,939,23,235,97,80,13,1106,8,45,33,27,12,0,0,251,13]
["Northwood",826,15130,"56820",18002.61,1354.26,1791,3124,863,1148,1564,1560,3074,11,11,28,0,22,741,361,622,559,325,210,186,120,3124,2746,0,2.7212543554006969,3.1819235225955969,208,737,126,77,1791,1148,643,953,195,34,37,538,0,0,0,2,0,2,2,2,11,32,117,160,88,58,34,38,6,5,3,1,117600,1354,144,293,737,28,188,83,81,31,1354,12,62,47,23,0,0,0,263,30]
["Nottingham",827,15135,"57460",29775.79,1220.76,1314,2939,824,1037,1455,1484,2904,9,1,20,5,14,701,299,616,578,355,203,114,73,2939,2638,0,2.8341369334619095,3.2014563106796117,151,745,79,62,1314,1037,277,912,125,4,17,233,1,0,0,0,2,0,0,5,1,16,104,172,149,87,42,41,16,5,1,2,128500,1167,52,95,819,22,71,88,27,10,1167,20,21,11,0,0,0,0,81,14]
["Plaistow",828,15140,"62500",6789.6,0,2691,7316,2072,2601,3575,3741,7225,22,2,41,26,73,1566,993,1543,1208,807,625,382,192,7316,6604,0,2.8127643214148406,3.1872586872586872,388,1764,308,141,2691,2601,90,1941,660,28,36,3,2,2,0,0,0,2,0,0,3,11,85,276,363,315,177,153,61,27,3,5,149900,1529,1080,82,1410,485,46,93,535,32,1529,387,231,241,84,137,0,0,29,53]
["Portsmouth",829,15145,"62900",10033.91,729.44,11369,25925,6309,10329,12793,13132,24014,1193,71,447,200,518,5080,3829,6167,3783,2051,1863,1666,1486,24689,19258,1236,2.390260431793978,3.0524647329212238,2951,4998,1311,1069,11369,10329,1040,4326,6003,539,165,45,8,2,3,3,3,2,13,11,47,89,359,676,837,544,262,199,109,69,22,17,137600,3854,6957,558,3283,693,350,452,5441,110,3854,1881,882,1399,1154,705,669,267,362,196]
["Raymond",830,15150,"64020",18440.14,503.34,3350,8713,2358,2999,4405,4308,8654,27,9,14,9,43,2372,1043,2074,1376,697,491,396,264,8713,7846,0,2.905301767255752,3.3273960983884647,456,2040,318,185,3350,2999,351,2314,685,119,59,128,9,3,0,0,4,3,6,6,19,39,232,530,354,133,49,29,12,3,0,1,118600,1856,690,804,1556,91,667,122,470,93,1856,59,161,107,130,144,89,0,769,35]
["Rye",831,15155,"66180",8090.96,334.62,2443,4612,1310,1905,2232,2380,4577,10,5,19,1,8,666,458,654,758,610,559,518,389,4576,3821,36,2.4020997375328084,2.9167938931297708,471,1138,172,124,2443,1905,538,1513,392,42,35,409,1,0,0,1,0,0,2,0,4,11,43,92,113,132,161,197,180,143,58,93,214100,2026,330,87,1401,68,44,191,171,30,2026,70,96,70,38,56,0,0,41,46]
["Salem",832,15160,"66660",15876.66,692.65,9897,25746,6911,9185,12746,13000,24917,239,38,456,96,364,5172,3512,4619,4389,3225,2309,1566,954,25583,22670,163,2.7853021230266739,3.2802778179713501,1775,5825,1086,499,9897,9185,712,7071,2114,155,102,321,10,3,2,10,14,8,18,8,36,77,320,734,1529,1245,552,534,219,157,51,40,150300,6710,2321,866,5857,522,692,420,1583,111,6710,246,387,202,236,586,664,0,800,66]
["Sandown",833,15165,"67620",8952.2000000000007,279.56,1488,4060,1126,1304,2046,2014,4031,9,7,5,8,15,1189,395,990,807,320,164,122,73,4060,3791,0,3.1134969325153374,3.366785079928952,113,996,130,65,1488,1304,184,1136,168,13,41,106,0,1,0,0,2,1,3,0,4,10,73,153,294,200,94,63,16,9,0,0,143200,1215,174,99,1017,44,75,55,101,12,1215,55,37,70,1,11,0,0,87,12]
["Seabrook",834,15170,"68260",5759.73,401.54,3469,6503,1815,2808,3234,3269,6427,14,19,33,10,51,963,864,1173,880,751,786,709,377,6503,5275,0,2.3158831908831909,2.9063360881542701,785,1434,381,208,3469,2808,661,1766,1042,138,54,425,2,0,2,4,0,1,3,4,14,25,80,107,168,115,59,82,42,26,8,17,145500,1242,1221,1006,820,119,827,115,822,105,1242,58,321,65,163,138,172,304,975,31]
["South Hampton",835,15175,"71140",5062.99,83.58,263,740,219,257,355,385,735,3,1,1,0,1,146,82,107,158,79,83,57,28,740,694,0,2.8793774319066148,3.1689497716894977,30,197,22,8,263,257,6,238,19,0,0,0,0,0,0,0,0,0,0,0,1,0,3,16,24,35,20,27,18,9,0,3,174300,243,18,2,227,10,1,10,8,1,243,3,15,0,0,0,0,0,1,1]
["Stratham",836,15180,"74340",9679.3799999999992,222.16,1917,4955,1381,1812,2448,2507,4883,15,12,36,9,33,1194,454,967,1062,571,343,253,111,4948,4370,7,2.7306843267108167,3.1643736422881972,316,1269,112,115,1917,1812,105,1537,275,28,49,5,4,0,0,0,0,0,0,1,5,11,90,102,147,194,165,221,95,74,21,14,177700,1193,659,65,1096,405,36,61,193,21,1193,369,63,85,140,2,0,0,27,38]
["Windham",837,15185,"85780",17101.990000000002,670.34,3327,9000,2450,2830,4510,4490,8860,43,6,80,11,54,2199,1173,1301,2051,1186,548,318,224,8904,8376,96,3.1462897526501767,3.4187755102040818,257,2233,217,123,3327,2830,497,2590,240,13,69,368,3,1,0,1,2,2,0,1,6,18,75,118,235,344,364,513,264,209,61,49,197500,3031,284,12,2402,183,5,174,66,0,3031,118,44,39,75,8,0,0,4,8]
[]
[]
[]
[]
[]
[]
[]
[]
[]
["Census 1990 Data -          Query Name: CountySTF3Qry1"]
[]
["NAME","FIPS","COUSUBFP","LandAcres","WaterAcres","HousingUnits90Cen","P01Persons90Cen","P02Families90Cen","P03Households90cen","H25HU<5yrs90cen","H25HU5to20yrs90cen","H25HU20to50yrs90cen","H25HU>50yrs90cen","H31Units0Bedroom90cen","H31Units1Bedroom90cen","H31Units2Bedroom90cen","H31Units3Bedroom90cen","H31Units4Bedroom90cen","H31Units5+Bedroom90cen","P80HI<5K","P80HI5Kto10K","P80HI10Kto15K","P80HI15Kto25K","P80HI25Kto35K","P80HI35Kto50K","P80HI50Kto75K","P80HI75Kto100K","P80HI>100K","P80AMedHI","P86HH<25HI<5K","P86HH<25HI5Kto10K","P86HH<25HI10Kto15K","P86HH<25HI15Kto25K","P86HH<25HI25Kto35K","P86HH<25HI35Kto50K","P86HH<25HI50Kto75K","P86HH<25HI75Kto100K","P86HH<25HI>100K","P86HH25to34HI<5K","P86HH25to34HI5Kto10K","P86HH25to34HI10Kto15K","P86HH25to34HI15Kto25K","P86HH25to34HI25Kto35K","P86HH25to34HI35Kto50K","P86HH25to34HI50Kto75K","P86HH25to34HI75Kto100K","P86HH25to34HI>100K","P86HH35to44HI<5K","P86HH35to44HI5Kto10K","P86HH35to44HI10Kto15K","P86HH35to44HI15Kto25K","P86HH35to44HI25Kto35K","P86HH35to44HI35Kto50K","P86HH35to44HI50Kto75K","P86HH35to44HI75Kto100K","P86HH35to44HI>100K","P86HH45to54HI<5K","P86HH45to54HI5Kto10K","P86HH45to54HI10Kto15K","P86HH45to54HI15Kto25K","P86HH45to54HI25Kto35K","P86HH45to54HI35Kto50K","P86HH45to54HI50Kto75K","P86HH45to54HI75Kto100K","P86HH45to54HI>100K","P86HH55to64HI<5K","P86HH55to64HI5Kto10K","P86HH55to64HI10Kto15K","P86HH55to64HI15Kto25K","P86HH55to64HI25Kto35K","P86HH55to64HI35Kto50K","P86HH55to64HI50Kto75K","P86HH55to64HI75Kto100K","P86HH55to64HI>100K","P86HH65to74HI<5K","P86HH65to74HI5Kto10K","P86HH65to74HI10Kto15K","P86HH65to74HI15Kto25K","P86HH65to74HI25Kto35K","P86HH65to74HI35Kto50K","P86HH65to74HI50Kto75K","P86HH65to74HI75Kto100K","P86HH65to74HI>100K","P86HH>75HI<5K","P86HH>75HI5Kto10K","P86HH>75HI10Kto15K","P86HH>75HI15Kto25K","P86HH>75HI25Kto35K","P86HH>75HI35Kto50K","P86HH>75HI50Kto75K","P86HH>75HI75Kto100K","P86HH>75HI>100K","P54SchlEnrlPrePrim","P54SchlEnrlElemThrHS","P54SchlEnrlCollege","P54NotEnrlInSch","P57Pop25andOver","P57LessThan9thGrade","P579thto12thNoDip","P57HSGrad","P57SomeCollege","P57AssocDeg","P57BachelDeg","P57GradorProfDeg","P57HSGradorHigher","P57CollGradorHigher","P42NativePop","P42ForeignBornPop","P42BornStateOfRes","P37NativePop2","P37ForeignBornPop2","P49DroveAlone","P49CarPooled","P49PublicTranspt","P49Walked","P49OtherMeans","P49WorkedAtHome","P80HHInc<10K","P80HHInc10to15K","P80HHInc15to25K","P80HHInc25to35K","P80HHInc35to50K","P80HHInc50to75K","P80HHInc75to100K","P80HHInc100to150K","P80HHInc>150K","H25YearStBlt89to90","H25YearStBlt85to88","H25YearStBlt80to84","H25YearStBlt70to79","H25YearStBlt60to69","H25YearStBlt50to59","H25YearStBlt40to49","H25YearStBlt39earlier","P107FamInc<10K","P107FamInc10to15K","P107FamInc15to25K","P107FamInc25to35K","P107FamInc35to50K","P107FamInc50to75K","P107FamInc75to100K","P107FamInc100to150K","P107FamInc>150K","P107AMedFamInc","P110NonFamInc<10K","P110NonFamInc10to15K","P110NonFamInc15to25K","P110NonFamInc25to35K","P110NonFamInc35to50K","P110NonFamInc50to75K","P110NonFamInc75to100K","P110NonFamInc100to150K","P110NonFamInc>150K","P110AMedNonFamInc","H16HU1Room","H16HU2Room","H16HU3Room","H16HU4Room","H16HU5Room","H16HU6Room","H16HU7Room","H16HU8Room","H16HU9+Room","H43GrossRnt<100","H43GrossRnt100to149","H43GrossRnt150to199","H43GrossRnt200to249","H43GrossRnt250to299","H43GrossRnt300to349","H43GrossRnt350to399","H43GrossRnt400to449","H43GrossRnt450to499","H43GrossRnt500to549","H43GrossRnt550to599","H43GrossRnt600to649","H43GrossRnt650to699","H43GrossRnt700to749","H43GrossRnt750to999","H43GrossRnt1000Plus","H43NoCashRent","H43MedGrossRent","H51GrossRnt<20PctHHInc","H51GrossRnt20to24PctHHInc","H51GrossRnt25to29PctHHInc","H51GrossRnt30to34PctHHInc","H51GrossRnt35PctOrMoreHHInc","H51GrossRntAsPctHHIncNotComp","H52HUwMtgMoOwnCst<200","H52HUwMtgMoOwnCst200to299","H52HUwMtgMoOwnCst300to399","H52HUwMtgMoOwnCst400to499","H52HUwMtgMoOwnCst500to599","H52HUwMtgMoOwnCst600to699","H52HUwMtgMoOwnCst700to799","H52HUwMtgMoOwnCst800to899","H52HUwMtgMoOwnCst900to999","H52HUwMtgMoOwnCst1000to1249","H52HUwMtgMoOwnCst1250to1499","H52HUwMtgMoOwnCst1500to1999","H52HUwMtgMoOwnCst2000More","H52HUwNoMtgMoOwnCst<100","H52HUwNoMtgMoOwnCst100to149","H52HUwNoMtgMoOwnCst150to199","H52HUwNoMtgMoOwnCst200to249","H52HUwNoMtgMoOwnCst250to299","H52HUwNoMtgMoOwnCst300to349","H52HUwNoMtgMoOwnCst350to399","H52HUwNoMtgMoOwnCst400More","H52AMedMoOwnCstWMortg","H52AMedMoOwnCstWNoMortg","H58HUwMtgMOC<20pHHInc","H58HUwMtgMOC20to24pHHInc","H58HUwMtgMOC25to29pHHInc","H58HUwMtgMOC30to34pHHInc","H58wMtgMOC>35pHHInc","H58HUwMtgMOCNotComp","H58HUwNoMtgMOC<20pHHInc","H58HUwNoMtgMOC20to24pHHInc","H58HUwNoMtgMOC25to29pHHInc","H58HUwNoMtgMOC30to34pHHInc","H58wNoMtgMOC>35pHHInc","H58HUwNoMtgMOCNotComp","H61OOHUVal<15k","H61OOHUVal15to19k","H61OOHUVal20to24k","H61OOHUVal25to29k","H61OOHUVal30to34k","H61OOHUVal35to39k","H61OOHUVal40to44k","H61OOHUVal45to49k","H61OOHUVal50to59k","H61OOHUVal60to74k","H61OOHUVal75to99k","H61OOHUVal100to124k","H61OOHUVal125to149k","H61OOHUVal150to174k","H61OOHUVal175to199k","H61OOHUVal200to249k","H61OOHUVal250to299k","H61OOHUVal300to399k","H61OOHUVal400to499k","H61OOHUVal500kOrMore","H61aOOHUMedVal"]
[]
[]
[]
[]
[]
[]
[]
[]
[]
[]
[]
[]
[]
[]
[]
["Other Demo Data -             Query Name: QryAllTowns-ACSDemographicSheet",null,null,null,"2020-12-18"]
[]
["TOWN_NAME","FIPS","TOWNCNTY","COUSUB","POP80","POP90CDCEN","POP2000CEN","POP2010CEN","POP2025-Proj","POP2030-Proj","POP2040-Proj","SF80","MF80","MH80","SF81","MF81","MH81","SF82","MF82","MH82","SF83","MF83","MH83","SF84_OSP","MF84_OSP","MH84_OSP","SF85_OSP","MF85_OSP","MH85_OSP","SF86_OSP","MF86_OSP","MH86_OSP","SF87_OSP","MF87_OSP","MH87_OSP","SF88_OSP","MF88_OSP","MH88_OSP","SF89_OSP","MF89_OSP","MH89_OSP","SF90_OSP","MF90_OSP","MH90_OSP","SF91_OSP","MF91_OSP","MH91_OSP","SF92_OSP","MF92_OSP","MH92_OSP","SF93_OSP","MF93_OSP","MH93_OSP","SF94_OSP","MF94_OSP","MH94_OSP","SF95_OSP","MF95_OSP","MH95_OSP","SF96_OSP","MF96_OSP","MH96_OSP","SF97_OSP","MF97_OSP","MH97_OSP","SF98_OSP","MF98_OSP","MH98_OSP","SF99_OSP","MF99_OSP","MH99_OSP","SF00_OSP","MF00_OSP","MH00_OSP","SF01_OSP","MF01_OSP","MH01_OSP","SF02_OSP","MF02_OSP","MH02_OSP","SF03_OSP","MF03_OSP","MH03_OSP","SF04_OSP","MF04_OSP","MH04_OSP","SF05_OSP","MF05_OSP","MH05_OSP","SF06_OSP","MF06_OSP","MH06_OSP","SF07_OSP","MF07_OSP","MH07_OSP","SF08_OSP","MF08_OSP","MH08_OSP","SF09_OSP","MF09_OSP","MH09_OSP","SF10_OSP","MF10_OSP","MH10_OSP","SF11_OSP","MF11_OSP","MH11_OSP","SF12_OSP","MF12_OSP","MH12_OSP","SF13_OSP","MF13_OSP","MH13_OSP","SF14_OSP","MF14_OSP","MH14_OSP","SF15_OSP","MF15_OSP","MH15_OSP","SF16_OSP","MF16_OSP","MH16_OSP","SF17_OSP","MF17_OSP","MH17_OSP","SF18_OSP","MF18_OSP","MH18_OSP","SF19_OSP","MF19_OSP","MH19_OSP","COMMENTS","CNTY_CODE"]
["Atkinson",15005,801,"02340",4397,5188,6178,6751,7358,7485,7536,24,0,0,21,0,0,37,0,0,23,0,0,42,0,14,60,0,0,59,0,0,196,0,0,73,0,0,21,0,0,13,54,0,20,43,0,11,44,0,18,48,0,25,28,0,33,8,0,49,16,0,34,8,0,45,13,0,49,76,0,30,44,2,34,54,0,11,14,0,16,8,0,4,2,0,10,8,0,6,0,0,8,0,0,3,0,0,5,-2,0,5,0,0,4,-1,0,5,-1,0,8,0,0,3,0,0,6,12,0,3,30,0,4,44,0,27,41,0,20,0,0,"",8]
["Auburn",15010,802,"02820",2883,4085,4682,4953,5229,5320,5356,11,0,5,18,0,0,21,0,0,66,0,0,105,1,0,70,0,1,52,2,-1,48,2,0,25,0,0,31,0,0,11,0,1,13,0,0,22,0,0,31,0,0,27,0,1,25,0,0,25,0,0,19,0,0,34,0,0,50,0,0,42,0,0,32,0,0,29,0,0,44,0,0,44,0,0,0,0,0,11,0,0,10,0,0,3,3,0,3,2,0,8,1,0,30,2,0,39,2,0,27,5,0,35,3,0,31,3,0,30,6,0,33,3,0,17,8,0,27,3,-1,"",8]
["Brentwood",15015,803,"07220",2004,2590,3197,4486,5916,6019,6060,0,0,0,6,0,3,9,0,2,17,0,0,24,0,5,20,1,4,20,0,2,23,0,1,5,1,1,21,0,3,4,0,1,8,1,0,24,2,1,32,0,0,31,0,0,14,0,2,24,0,2,33,-1,0,44,2,0,30,0,0,49,12,0,65,24,-1,49,20,0,37,7,0,36,3,0,15,2,0,24,7,-2,11,2,0,7,7,0,12,4,2,8,0,0,26,0,0,30,0,0,27,0,0,7,-3,0,1,0,0,0,2,-2,10,0,0,18,0,0,32,0,0,"",8]
["Candia",15020,804,"09300",2989,3557,3911,3909,3883,3950,3977,18,0,0,9,0,0,20,0,0,20,0,0,43,2,0,49,0,0,65,0,0,31,0,0,14,0,0,6,1,0,8,0,0,8,1,0,10,0,0,11,0,1,13,0,0,18,0,0,14,0,0,26,0,0,25,0,0,47,0,0,33,0,0,33,0,0,4,0,3,9,0,3,3,0,4,11,0,2,16,0,2,5,0,0,3,3,1,-1,0,0,1,0,2,3,0,0,5,0,0,2,0,0,2,0,0,0,0,0,6,2,0,4,2,0,8,2,0,6,1,2,"",8]
["Chester",15025,805,"12100",2006,2691,3792,4768,5842,5944,5984,8,0,0,7,4,0,7,0,0,0,0,0,0,0,0,49,0,0,56,0,0,76,2,0,28,0,0,24,0,0,8,0,0,23,0,1,36,0,0,30,0,0,47,0,0,38,0,0,33,0,0,30,0,0,44,0,0,85,0,0,91,0,0,79,0,0,47,0,0,29,0,0,21,12,1,10,0,0,10,4,4,8,0,0,2,2,1,2,2,1,9,0,0,14,0,0,21,0,0,19,6,0,23,4,0,17,16,0,28,16,0,30,18,0,15,4,0,11,2,0,"",8]
["Danville",15030,806,"17140",1318,2534,4023,4387,4772,4855,4888,8,0,1,3,0,0,18,0,35,0,0,0,45,4,0,33,4,36,32,0,3,35,13,1,44,0,0,32,0,1,37,2,0,22,2,1,31,0,1,30,0,0,44,0,0,72,0,0,84,0,0,91,0,0,67,0,3,10,0,0,25,0,0,26,0,5,53,0,0,33,0,0,41,0,0,4,0,0,5,0,0,12,4,0,0,0,0,5,4,0,13,8,0,9,0,0,2,0,0,3,2,0,3,10,0,0,0,0,5,6,0,6,0,0,13,0,7,24,1,4,"",8]
["Deerfield",15035,807,"17460",1979,3124,3678,4280,4935,5020,5054,9,0,3,10,0,0,6,0,1,33,0,1,28,0,3,42,15,3,95,0,-2,68,12,0,42,0,4,27,2,4,14,2,1,8,0,2,20,0,3,16,0,2,16,0,2,27,0,1,20,2,0,25,2,4,37,3,0,53,0,2,81,0,0,58,0,0,30,0,0,16,0,2,51,0,0,25,18,0,26,2,0,19,0,0,11,0,0,8,0,1,19,0,0,15,2,0,13,0,0,14,0,0,14,0,1,28,0,2,26,0,0,24,0,0,20,0,1,20,0,0,"",8]
["Derry",15040,808,"17940",18875,29603,34021,33109,31876,32429,32649,137,64,13,135,125,6,151,94,6,193,246,11,206,476,11,238,573,21,233,744,5,225,192,4,318,34,5,138,66,1,167,4,0,121,56,0,169,0,0,147,0,0,111,0,0,33,0,0,58,0,2,88,0,0,74,0,0,111,0,0,87,0,18,40,5,0,45,10,0,61,5,0,48,43,0,44,33,0,32,33,0,29,4,0,29,6,0,10,-6,3,11,6,0,18,0,2,19,4,0,37,-3,2,19,5,-4,15,4,1,6,39,5,22,11,8,17,0,4,24,32,0,"",8]
["East Kingston",15045,809,"21380",1135,1352,1784,2357,2991,3042,3063,6,0,1,3,0,3,10,0,2,9,0,-1,10,0,2,18,0,0,21,0,2,12,0,3,8,0,2,18,2,2,7,1,1,7,0,5,26,-1,0,25,0,1,15,0,0,16,0,2,8,0,0,10,0,0,10,0,-3,8,0,0,12,0,0,13,0,0,14,22,0,14,20,0,52,0,0,36,0,0,22,0,0,18,0,0,7,0,0,5,0,0,6,0,0,2,0,0,5,0,0,9,0,0,6,0,0,0,0,0,4,0,0,3,2,-1,1,2,0,3,0,0,"",8]
["Epping",15050,810,"24660",3460,5162,5476,6411,7429,7558,7609,50,12,7,15,0,7,16,0,5,38,0,12,29,0,14,37,94,0,46,0,30,64,9,12,56,2,4,39,10,0,33,0,4,35,0,1,18,0,1,21,0,8,19,0,3,15,0,5,19,0,6,19,5,6,36,0,10,56,10,6,88,6,5,11,2,3,40,0,0,18,2,6,39,4,0,50,5,5,13,11,2,23,13,4,27,32,1,41,6,-2,40,1,3,20,3,-1,32,6,-2,51,9,2,38,10,-2,24,1,1,15,18,-4,17,3,1,14,5,-5,21,25,-1,"2002, 2004 Did not submit data to OEP. Used Census Data",8]
["Exeter",15055,811,"25380",11024,12481,14058,14306,14499,14751,14851,20,3,1,21,21,1,10,12,1,43,11,23,51,67,19,100,62,24,127,9,7,272,0,33,59,82,3,25,3,1,14,4,0,12,3,0,22,12,0,14,164,0,12,32,0,10,19,-1,33,-3,1,45,1,0,62,-1,3,86,-1,0,36,4,0,24,7,-5,62,42,-2,40,34,-1,17,55,0,20,63,0,20,39,1,21,36,-2,9,124,-7,9,4,-6,15,39,-12,13,9,-8,13,58,-5,15,1,0,8,71,0,11,129,-8,16,106,0,2,91,0,1,30,0,-3,10,0,"",8]
["Fremont",15060,812,"27940",1333,2576,3510,4283,5131,5220,5255,5,0,0,12,0,0,10,0,1,15,0,0,64,2,0,81,1,0,87,10,0,75,0,0,21,0,7,21,0,5,9,0,4,21,6,0,17,0,1,28,2,1,51,0,0,39,0,0,26,3,0,21,0,1,46,0,1,61,0,4,49,2,10,13,0,13,19,2,9,33,20,1,32,20,0,27,28,0,4,4,2,7,8,3,11,0,0,2,6,0,2,6,0,3,24,0,7,18,3,16,22,2,7,16,3,12,16,5,10,4,7,5,0,1,8,0,0,7,0,0,"",8]
["Greenland",15065,813,"31700",2129,2768,3208,3549,3913,3981,4008,14,0,0,6,7,0,9,0,0,13,10,0,20,3,0,19,22,0,32,46,0,18,54,0,18,28,0,12,6,0,9,2,0,12,0,0,24,2,0,15,1,0,15,0,0,24,0,0,17,-4,0,20,2,0,27,12,0,20,10,0,22,6,0,18,0,0,12,10,0,9,6,0,8,0,0,7,8,0,3,11,0,15,2,0,9,3,0,15,0,0,14,4,0,15,4,0,19,14,0,25,12,0,28,10,0,15,0,0,60,0,0,36,0,0,7,2,0,5,0,0,"",8]
["Hampstead",15070,814,"32900",3785,6732,8297,8523,8726,8878,8938,24,24,0,28,0,3,31,32,0,66,5,20,114,20,9,153,14,30,135,4,5,94,32,0,95,90,0,51,4,5,49,17,2,34,8,1,50,16,3,18,0,6,47,14,9,39,0,10,31,8,6,37,24,17,37,38,9,34,14,11,12,2,16,13,0,1,9,34,0,22,37,12,16,14,4,13,60,19,8,42,16,1,29,5,5,12,3,8,26,3,6,0,4,0,0,1,11,2,5,6,6,9,18,2,8,15,2,9,6,2,1,11,6,2,7,2,2,8,2,1,"",8]
["Hampton",15075,815,"33060",10493,12278,14937,15430,14929,15188,15291,45,101,5,23,40,2,39,70,2,85,48,7,98,55,0,248,83,14,85,28,6,155,16,1,46,34,1,78,21,1,40,0,0,40,-1,0,43,2,1,81,0,0,69,0,0,118,4,0,80,0,0,99,0,0,80,0,3,71,11,0,47,1,4,41,2,0,39,83,0,25,79,2,18,89,1,0,53,1,6,30,0,8,-5,0,14,8,0,11,5,0,2,-26,0,13,9,0,11,84,0,15,26,0,9,40,1,13,78,0,8,0,-2,17,-2,0,10,-3,1,8,36,0,"",8]
["Hampton Falls",15073,816,"33460",1372,1503,1880,2236,2625,2670,2689,3,0,0,9,0,4,4,0,0,17,0,0,22,0,0,33,0,0,37,0,0,13,0,0,7,0,0,6,1,0,8,3,0,10,2,0,21,0,0,20,0,0,20,0,0,20,0,0,5,0,0,8,0,0,14,0,0,12,3,0,13,0,0,11,0,0,18,0,0,11,0,0,18,0,0,16,0,0,6,16,1,7,0,1,3,2,0,3,0,0,0,2,0,3,0,0,3,0,0,3,0,0,1,0,0,0,0,0,1,24,0,2,0,0,3,48,0,5,0,0,"",8]
["Kensington",15085,817,"39780",1322,1631,1893,2124,2372,2413,2430,5,0,1,7,0,1,4,0,1,16,0,2,11,0,2,37,0,1,41,0,0,17,0,-3,12,2,-2,5,1,-1,1,0,0,5,0,0,2,0,0,12,2,-1,12,0,1,12,0,-2,11,0,-2,20,0,-3,25,3,1,16,0,-3,12,0,0,22,0,0,11,0,-1,19,1,0,10,0,0,15,0,0,8,0,0,8,0,0,3,1,-1,0,0,0,1,0,0,0,0,0,0,0,0,3,0,0,2,0,0,3,0,-1,2,0,0,0,0,0,6,4,-1,6,1,-1,"",8]
["Kingston",15090,818,"40100",4111,5591,5862,6025,6173,6280,6322,21,0,6,37,0,5,50,2,2,39,4,5,67,2,2,58,12,2,45,2,0,47,7,0,55,10,0,23,1,0,22,-1,1,24,0,0,12,0,0,22,0,0,15,0,0,16,0,0,19,0,0,15,0,0,21,2,0,26,0,-1,29,56,0,13,-6,0,12,6,0,11,29,0,12,12,0,22,4,0,10,10,0,1,2,0,11,0,-2,5,4,-2,3,0,0,3,0,-1,8,0,0,8,2,0,14,5,0,16,0,-1,25,2,-1,35,0,-2,8,1,-1,-1,9,-1,"",8]
["Londonderry",15095,819,"43220",13598,19781,23236,24129,24991,25425,25598,98,13,8,74,22,9,59,14,6,160,35,11,260,56,0,249,97,5,330,70,7,202,92,-1,207,64,1,99,34,0,57,12,0,100,3,0,98,21,-1,79,4,1,69,16,0,95,6,0,98,12,2,127,32,2,175,13,-1,124,26,0,141,7,-2,108,0,0,40,0,0,57,74,2,76,98,1,32,56,-3,60,27,4,51,0,-3,30,5,-2,19,3,0,20,1,0,13,3,-2,41,1,6,49,8,9,79,155,-2,91,106,0,74,25,8,28,53,4,29,96,1,41,132,3,"",8]
["New Castle",15100,820,"50980",936,840,1010,968,915,930,937,1,0,0,0,0,0,1,0,0,1,0,0,0,3,0,0,0,0,3,1,0,1,0,0,4,0,0,0,0,-2,1,1,0,0,0,0,1,0,0,0,0,0,6,0,0,9,6,0,11,0,0,29,0,0,23,0,0,10,2,0,3,0,0,2,0,0,5,0,0,8,4,0,1,0,0,1,0,0,4,0,0,2,0,0,1,0,0,2,0,0,2,-2,0,2,0,0,2,0,0,-1,0,0,1,0,0,0,0,0,0,0,0,0,0,0,2,0,0,2,0,0,"",8]
["Newfields",15105,821,"51380",817,888,1551,1680,1816,1847,1860,2,0,0,2,0,0,2,2,0,2,1,0,9,2,0,11,4,1,5,2,1,2,1,0,17,4,0,7,4,2,8,0,0,6,0,0,20,0,0,24,0,0,23,0,0,35,0,1,27,0,0,28,0,0,19,0,0,8,0,1,8,0,0,8,0,0,10,0,0,8,0,0,2,0,0,9,0,-1,10,1,0,7,0,0,3,0,0,3,0,0,1,0,0,1,0,0,3,0,0,3,0,0,1,0,0,4,0,0,4,0,0,3,0,0,2,1,0,2,0,0,"",8]
["Newington",15110,822,"51620",716,990,775,753,724,736,741,1,0,0,1,0,0,0,0,0,0,0,0,6,0,0,7,3,-1,9,0,0,11,0,0,4,0,0,5,2,0,4,0,0,4,0,0,5,0,0,5,0,0,5,0,1,4,0,0,20,0,-1,2,0,0,5,0,0,5,0,0,4,0,0,1,2,0,0,0,0,1,0,0,7,0,0,1,0,0,0,0,0,1,1,0,1,0,0,-1,0,0,1,0,0,-1,0,0,0,0,0,4,0,0,3,0,0,7,3,0,2,2,0,2,0,0,2,0,0,4,0,0,"",8]
["Newmarket",15115,823,"52340",4290,7157,8027,8936,9909,10081,10150,37,27,5,17,38,6,9,0,7,59,227,10,69,6,7,84,258,9,81,0,14,285,73,5,56,0,3,33,4,2,28,1,7,5,0,0,13,0,1,10,1,3,24,0,2,35,2,6,22,0,6,25,5,3,59,5,3,62,5,5,42,36,3,69,45,3,87,36,7,36,139,4,12,95,5,13,69,4,7,12,0,0,0,0,6,0,0,-1,3,0,2,0,0,4,0,2,5,112,0,1,4,0,10,2,0,16,4,0,39,36,0,21,2,1,13,8,0,13,10,2,"",8]
["Newton",15120,824,"52900",3068,3473,4289,4603,4930,5016,5050,14,0,0,9,0,0,16,0,0,16,0,0,24,2,0,30,2,1,20,0,0,22,-1,1,20,0,0,27,0,0,16,0,0,12,0,0,6,0,0,10,0,0,17,0,0,34,0,0,20,0,0,63,0,0,66,2,0,38,0,0,52,0,0,11,0,0,8,0,0,7,0,0,10,0,0,40,0,0,10,1,0,14,0,0,16,0,0,10,0,0,27,0,0,15,0,0,20,0,0,30,0,0,30,0,0,18,0,1,10,4,1,0,4,1,2,0,0,10,2,0,"2001, 2002 Did not submit data to OEP. Used Census Data",8]
["North Hampton",15125,825,"54580",3425,3637,4259,4301,4322,4397,4427,10,0,0,7,1,2,12,0,14,19,0,63,25,2,0,31,0,20,30,0,2,17,0,0,13,0,0,11,0,3,15,1,0,15,1,0,33,0,5,26,0,12,21,0,0,17,0,18,18,0,10,14,0,0,38,0,0,26,0,0,57,0,0,13,0,7,17,0,0,13,0,0,15,0,0,5,0,0,8,0,0,6,0,7,6,0,5,11,0,1,9,0,7,16,4,14,6,0,11,6,10,10,3,12,10,9,0,-2,5,4,1,5,4,-1,8,0,1,1,0,4,"",8]
["Northwood",15130,826,"56820",2175,3124,3640,4241,4895,4980,5013,6,0,5,5,0,1,6,0,2,8,0,5,21,0,10,43,4,12,57,2,15,66,2,12,35,0,16,25,0,6,16,0,8,13,0,1,12,-2,4,1,0,5,8,0,4,13,0,4,18,0,8,14,0,17,12,0,11,19,0,18,23,0,5,15,0,2,27,2,2,60,4,1,35,26,9,37,31,1,27,0,2,41,0,2,10,0,-1,16,0,0,4,0,0,10,0,0,0,0,1,-3,0,1,0,0,0,2,0,0,13,0,2,9,2,1,15,0,2,14,0,2,"",8]
["Nottingham",15135,827,"57460",1952,2939,3701,4785,5981,6085,6127,18,0,3,13,0,1,18,0,5,25,2,1,26,4,3,54,2,5,61,0,6,71,2,8,54,4,11,33,2,3,17,0,2,17,0,2,16,0,0,22,0,0,24,0,5,18,0,0,22,0,2,32,6,0,34,1,0,41,2,0,34,7,1,39,0,2,53,2,0,74,0,0,103,0,0,51,0,0,35,0,0,28,0,0,14,0,0,20,0,0,20,0,0,10,0,0,9,0,0,12,0,0,26,0,0,30,0,0,29,0,0,17,0,0,23,0,3,24,0,3,"",8]
["Plaistow",15140,828,"62500",5609,7316,7747,7609,7406,7535,7586,18,12,2,14,12,1,17,0,4,42,24,2,23,122,3,38,245,0,54,16,-1,181,34,0,20,8,0,28,0,0,4,2,0,4,2,0,32,2,-1,36,8,0,33,0,0,24,0,0,40,0,0,33,0,0,26,12,0,34,0,0,17,0,0,15,1,0,23,1,1,5,0,0,0,0,0,3,3,0,1,2,0,1,0,0,-1,0,0,1,0,0,0,0,0,1,0,0,0,2,0,10,0,0,20,2,0,34,0,0,13,0,0,6,0,0,6,3,0,6,1,0,"",8]
["Portsmouth",15145,829,"62900",26254,25925,20784,20779,21611,21986,22135,34,6,16,9,30,5,12,26,0,17,27,0,96,180,0,39,321,0,299,17,0,37,42,-1,11,8,0,10,43,0,5,0,2,2,10,0,1,9,0,9,13,0,20,6,0,14,-49,0,14,2,0,9,94,0,12,-5,0,46,10,4,26,7,5,27,3,0,14,27,0,18,50,0,6,49,0,11,66,0,10,11,0,7,25,0,6,42,0,2,2,0,1,46,0,3,40,0,21,10,0,10,114,-1,6,26,12,8,32,3,25,154,11,27,61,5,22,120,4,6,104,5,"",8]
["Raymond",15150,830,"64020",5453,8713,9674,10138,10601,10785,10858,57,0,16,49,0,13,57,81,10,71,5,6,63,17,5,151,62,11,167,4,19,141,4,19,83,49,10,71,68,4,43,5,7,26,0,1,26,0,2,16,2,0,28,0,3,37,0,0,36,0,0,24,5,6,22,24,10,99,0,13,71,0,10,49,0,2,71,3,0,35,46,0,69,65,7,31,94,0,36,6,0,41,2,0,33,2,2,20,5,0,31,0,0,10,5,1,9,2,0,15,3,0,15,6,0,10,11,1,6,0,1,15,6,0,43,15,-6,32,6,-8,"",8]
["Rye",15155,831,"66180",4508,4612,5182,5298,5397,5491,5528,14,0,0,35,0,0,15,0,0,43,0,0,29,0,0,35,0,0,21,0,0,9,0,0,9,0,0,4,0,0,6,1,0,6,2,0,19,0,0,28,2,0,15,0,0,13,0,0,13,0,0,26,0,0,34,0,0,37,0,0,17,0,0,8,0,0,13,0,0,6,0,0,15,0,0,11,0,0,0,0,0,-2,0,0,4,0,0,1,0,0,3,0,0,5,0,0,4,6,0,5,0,0,18,0,-2,22,2,0,-3,3,0,3,0,0,3,0,0,15,3,0,"2001, 2002, 2004 Did not submit data to OEP. Used Census Data",8]
["Salem",15160,832,"66660",24124,25746,28112,28776,29351,29861,30063,64,6,0,35,14,0,39,83,3,145,38,0,141,55,0,152,130,3,130,65,0,136,40,20,76,50,13,39,61,0,60,44,0,33,49,0,60,20,0,147,21,0,94,24,0,98,10,0,98,17,0,71,10,0,130,7,17,127,14,23,108,0,10,125,0,11,78,2,13,44,372,8,52,176,24,28,71,22,31,8,19,21,0,5,8,0,8,9,26,0,-1,8,0,13,0,0,21,4,0,27,4,0,39,10,0,35,29,0,36,10,16,49,162,1,67,127,1,67,294,0,"",8]
["Sandown",15165,833,"67620",2057,4060,5143,5986,6903,7023,7070,26,8,3,36,0,0,19,8,5,70,9,1,97,10,0,99,5,1,49,28,0,98,0,10,35,0,3,42,0,0,24,0,1,11,0,1,50,0,0,56,0,0,65,0,0,33,0,0,22,0,0,33,0,0,22,0,0,19,0,0,17,0,0,61,0,0,63,0,7,41,12,0,37,6,30,26,8,9,23,0,6,30,0,0,11,0,0,23,0,0,35,2,0,25,0,0,19,0,0,24,0,-6,25,0,-1,8,0,0,0,0,0,14,43,0,12,6,1,14,0,1,"",8]
["Seabrook",15170,834,"68260",5917,6503,7934,8693,9498,9663,9729,4,0,37,8,0,41,6,0,56,11,0,56,17,4,53,20,6,63,11,26,53,43,2,44,6,14,6,25,0,4,2,6,6,6,48,4,11,4,0,5,5,3,14,2,7,15,6,2,25,10,15,85,7,13,55,10,29,77,11,20,49,17,27,49,27,12,31,24,-7,18,12,-3,15,16,5,44,38,13,0,0,0,0,0,0,8,2,0,19,0,3,30,2,12,18,2,5,20,0,10,15,2,11,17,0,4,12,0,8,11,0,2,3,3,-2,10,5,0,0,14,1,"",8]
["South Hampton",15175,835,"71140",660,740,844,814,775,789,794,3,0,0,4,0,0,2,0,0,3,0,0,10,0,0,7,0,0,2,0,0,2,0,0,2,0,0,1,0,0,5,0,0,6,0,0,1,0,0,3,-1,0,4,0,0,2,0,0,2,0,0,3,0,0,6,0,0,5,0,-1,5,0,0,2,2,0,3,1,0,2,0,0,6,0,0,2,1,0,2,0,0,3,0,0,1,0,0,0,0,0,1,0,0,-1,0,0,1,0,0,2,0,0,1,0,0,1,0,0,2,0,0,3,2,0,1,1,0,0,1,0,"",8]
["Stratham",15180,836,"74340",2507,4955,6355,7255,8228,8371,8428,34,3,3,23,12,0,46,6,0,59,1,0,0,0,0,52,13,0,105,115,0,148,0,0,69,0,0,68,2,6,23,8,18,14,1,0,65,1,1,59,2,1,54,6,3,30,5,0,37,0,1,35,6,0,47,2,1,67,3,0,46,6,0,32,7,0,54,2,0,72,7,0,76,19,0,51,0,-1,28,5,-1,28,4,0,9,0,0,1,1,0,3,2,0,14,0,0,9,2,0,17,0,0,18,2,0,14,4,0,16,0,0,18,3,0,30,6,2,51,1,-1,"2002 Did not submit data to OEP. Used Census Data",8]
["Windham",15185,837,"85780",5664,9000,10709,13592,16769,17060,17176,73,0,0,59,0,0,61,0,0,119,3,0,149,11,0,185,58,0,209,0,0,69,13,0,55,0,0,35,3,0,23,2,0,21,1,0,50,3,0,66,5,0,59,6,0,72,7,0,62,4,0,81,0,0,120,0,0,94,0,0,141,118,0,130,36,0,81,22,0,52,62,0,75,42,0,66,5,1,69,15,0,83,7,4,50,0,0,33,2,0,51,21,0,46,6,0,37,9,0,55,6,0,86,9,0,34,0,0,44,2,0,56,0,1,69,0,0,54,6,0,"",8]
[]
[]
[]
[]
[]
[]
[]
[]
[]
[]
[]
[]
[]
["NH Employment Data","Query Name: DPQryEmploymentByCnty-Good-Serv-Total","Updated:","2020-09-30"]
[]
["AreaName","COUNTYCODE","TOTP & G2001","TOT2001","GOODPRO2001","SERVICEPROMAN2001","WAGEP & G2001","WAGETOT2001","WAGEGOODPRO2001","WAGESERVICEPRO2001","TOTP & G2002","TOT2002","GOODPRO2002","SERVICEPROMAN2002","WAGEP & G2002","WAGETOT2002","WAGEGOODPRO2002","WAGESERVICEPRO2002","TOTP & G2003","TOT2003","GOODPRO2003","SERVICEPROMAN2003","WAGEP & G2003","WAGETOT2003","WAGEGOODPRO2003","WAGESERVICEPRO2003","TOTP & G2004","TOT2004","GOODPRO2004","SERVICEPROMAN2004","WAGEP & G2004","WAGETOT2004","WAGEGOODPRO2004","WAGESERVICEPRO2004","TOTP & G2005","TOT2005","GOODPRO2005","SERVICEPROMAN2005","WAGEP & G2005","WAGETOT2005","WAGEGOODPRO2005","WAGESERVICEPRO2005","TOTP & G2006","TOT2006","GOODPRO2006","SERVICEPROMAN2006","WAGEP & G2006","WAGETOT2006","WAGEGOODPRO2006","WAGESERVICEPRO2006","TOTP & G2007","TOT2007","GOODPRO2007","SERVICEPROMAN2007","WAGEP & G2007","WAGETOT2007","WAGEGOODPRO2007","WAGESERVICEPRO2007","TOTP & G2008","TOT2008","GOODPRO2008","SERVICEPROMAN2008","WAGEP & G2008","WAGETOT2008","WAGEGOODPRO2008","WAGESERVICEPRO2008","TOTP & G2009","TOT2009","GOODPRO2009","SERVICEPROMAN2009","WAGEP & G2009","WAGETOT2009","WAGEGOODPRO2009","WAGESERVICEPRO2009","TOTP & G2010","TOT2010","GOODPRO2010","SERVICEPROMAN2010","WAGEP & G2010","WAGETOT2010","WAGEGOODPRO2010","WAGESERVICEPRO2010","TOTP & G2011","TOT2011","GOODPRO2011","SERVICEPROMAN2011","WAGEP & G2011","WAGETOT2011","WAGEGOODPRO2011","WAGESERVICEPRO2011","TOTP & G2012","TOT2012","GOODPRO2012","SERVICEPROMAN2012","WAGEP & G2012","WAGETOT2012","WAGEGOODPRO2012","WAGESERVICEPRO2012","TOTP & G2013","TOT2013","GOODPRO2013","SERVICEPROMAN2013","WAGEP & G2013","WAGETOT2013","WAGEGOODPRO2013","WAGESERVICEPRO2013","TOTP & G2014","TOT2014","GOODPRO2014","SERVICEPROMAN2014","WAGEP & G2014","WAGETOT2014","WAGEGOODPRO2014","WAGESERVICEPRO2014","TOTP & G2015","TOT2015","GOODPRO2015","SERVICEPROMAN2015","WAGEP & G2015","WAGETOT2015","WAGEGOODPRO2015","WAGESERVICEPRO2015","TOTP & G2016","TOT2016","GOODPRO2016","SERVICEPROMAN2016","WAGEP & G2016","WAGETOT2016","WAGEGOODPRO2016","WAGESERVICEPRO2016","TOTP & G2017","TOT2017","GOODPRO2017","SERVICEPROMAN2017","WAGEP & G2017","WAGETOT2017","WAGEGOODPRO2017","WAGESERVICEPRO2017","TOTP & G2018","TOT2018","GOODPRO2018","SERVICEPROMAN2018","WAGEP & G2018","WAGETOT2018","WAGEGOODPRO2018","WAGESERVICEPRO2018","TOTP & G2019","TOT2019","TOTGov2019","GOODPRO2019","SERVICEPROMAN2019","WAGEP & G2019","WAGETOT2019","WAGEGov2019","WAGEGOODPRO2019","WAGESERVICEPRO2019","SummaryLevel"]
["Atkinson",8,799,743,261,482,745.92,773.45,806.51,755.52,939,848,250,598,675.63,719.84,866.61,658.49,996,924,244,680,661.16,685.27,878.72,615.87,952,891,239,652,697.71,715.81,984.22,617.16999999999996,971,901,236,665,752.67,779.44,1064.3399999999999,678.14,1014,954,318,636,730.61,745.35,943.26,646.19000000000005,1007,939,309,630,849.4,870.92,1096.54,760.51,1002,939,253,686,902.65,925,1140.47,845.58,922,856,221,636,847.83,870.43,1100.69,790.55,949,884,242,642,862.69,885.51,1069.5999999999999,816.24,958,893,286,608,882.75,906.06,1089.76,819.77,1112,1046,404,641,858.1,874.97,994.08,799.93,1164,1098,416,682,860.51,877.09,943.5,836.57,1197,1130,413,716,929,949.67,1041.71,896.53,1180,1114,381,733,962.04,980.76,1074.8599999999999,931.82,1194,1128,386,742,975.77,993.46,1193.6500000000001,889.25,1296,1226,407,818,970.74,988.17,1242.45,861.61,1237,1169,386,783,993.9,1009.02,1256.43,887.13,1265,1197,68,374,823,992.48,1004.54,779.19,1212.76,909.88,60]
["Auburn",8,1003,874,376,498,723.46,758.33,926.08,631.77,1151,1005,427,578,747.66,787.82,849.96,741.91,1211,1072,553,519,756.5,785.66,852.95,713.99,1186,1041,560,481,806.06,839.58,938.99,723.87,1320,1178,635,543,817.93,845.64,909.19,771.31,1393,1242,658,584,833.09,860.75,923.5,789.96,1439,1284,665,619,824.45,845.15,891.42,795.39,1732,1577,600,977,733.18,738.06,927.68,621.66999999999996,1689,1527,529,999,724.48,727.28,965.9,600.97,1588,1431,514,917,727.34,729.28,1003.81,575.29,1583,1430,534,896,768.75,777.64,1005.98,641.65,1620,1466,504,962,847.95,865.08,1048.69,768.98,1689,1541,486,1055,877.04,894.12,1089.81,804,1736,1591,514,1077,991.39,1016.08,1096.93,977.53,1782,1643,512,1131,1078.8900000000001,1102.79,1151.67,1080.6500000000001,1841,1699,534,1165,1064.08,1085.6600000000001,1181.24,1041.82,1699,1554,526,1028,1197.5899999999999,1233.02,1254.78,1221.9000000000001,1677,1540,527,1012,1290.6199999999999,1329.96,1340,1324.73,1781,1637,144,618,1019,1226.1400000000001,1258.27,862.26,1380.97,1183.8900000000001,60]
["Brentwood",8,1385,715,196,519,664.2,758.09,692.31,782.87,1454,730,165,565,682.67,784.85,735.31,799.33,1511,732,161,570,703.34,800.76,780.55,806.48,1646,832,218,614,744.64,802.92,764.63,816.51,1739,934,279,655,767.25,828.35,776.4,850.44,1819,1016,305,711,809.15,873.48,866.82,876.35,1829,1010,299,711,832.88,913.54,903.17,917.9,1816,975,290,685,840.13,919.71,931.78,914.6,1795,967,294,674,866.5,942.6,1036.53,901.62,1799,965,291,674,861.44,937.58,1038.42,894.09,2014,1193,282,911,804.24,830.4,1033.69,767.47,2059,1267,325,941,843.88,884.88,1186.82,780.57,2033,1293,327,967,852.48,897.51,1229.23,785.42,2067,1332,328,1004,848.12,879.52,1101.03,807.13,2041,1320,339,981,893.5,951.86,1121.6600000000001,893.23,1976,1296,376,920,927.02,989.56,1214.58,897.73,1902,1284,384,899,954.08,995.29,1208.51,904.23,2103,1469,400,1069,961.76,1011.69,1217.4000000000001,934.79,2136,1535,602,434,1101,990.79,1027.3,897.69,1288.9100000000001,924.24,60]
["Candia",8,623,502,158,344,547.69000000000005,560.54999999999995,857.92,424.38,658,527,176,351,621.79999999999995,653.29,990.67,483.71,688,559,208,351,676.81,710.66,988.14,546.19000000000005,736,600,223,377,705.05,741.55,995.03,591.36,728,615,229,386,771.82,800.02,1039.21,658.35,812,692,290,402,775.65,801.66,938.31,703.12,835,721,317,404,796.07,812.94,962.19,695.98,801,689,306,382,739.45,739.43,902.22,609.03,756,649,294,356,756.08,754.86,904.15,631.58000000000004,717,604,251,353,740.74,744.33,905.46,629.72,763,641,253,388,743.02,749.79,947.67,620.83000000000004,712,591,205,386,767.93,768.72,1027.97,631.1,755,636,217,420,751.55,754.71,1003.98,626.09,771,654,215,440,784.94,791.36,1020.85,679.26,795,679,228,451,875.05,884.17,1221.5899999999999,713.24,832,725,253,472,888.51,902.21,1288.28,695.06,802,698,243,455,896.31,905.06,1255.3699999999999,718.26,840,737,263,474,901.37,907.42,1242.99,721.44,876,775,100,278,497,868.38,870.91,848.88,1241.79,663.07,60]
["Chester",8,376,267,84,183,781.39,909.65,1171.9000000000001,790.16,406,270,81,190,741.05,883.26,1090.94,794.8,436,280,72,208,575.23,655.07000000000005,862.13,582.97,437,278,77,201,621.29999999999995,706.42,1035.94,580.38,473,311,105,206,621.63,693.8,896.98,590.07000000000005,452,270,100,170,648.25,772.88,967.99,658.56,452,266,95,170,696.98,823,990.73,729.04,461,264,92,173,684.39,812.28,936.9,746.12,489,290,84,206,660.18,741.75,880.97,684.8,525,327,78,250,629.4,671.19,875.35,607.73,636,464,71,394,615.51,623.35,1012.04,553.54,456,289,74,215,717.21,793.28,933.95,745.25,396,242,72,170,712.57,768.11,941.7,694.15,347,197,72,125,846.84,1003.07,1009.66,999.26,365,207,69,137,870.6,1048.73,1238.76,952.85,384,220,77,143,841.89,998.11,1114.0899999999999,935.73,399,242,81,160,910.53,1056.72,1192.24,988.21,427,267,107,160,911.83,1048.24,1107.5,1008.76,428,260,7,112,148,892.11,1007.77,1780.83,1106.9000000000001,932.75,60]
["Danville",8,190,150,103,47,776.77,930.22,1063.32,638.07000000000005,193,153,94,60,668.47,782.66,910.49,582.26,212,178,105,73,586.96,650.29999999999995,730.65,533.88,219,181,102,79,559.86,621.85,721.46,494.55,207,164,100,64,580.35,660.93,715.68,575.30999999999995,213,161,100,62,570.94000000000005,654.66,739.1,518.22,199,138,80,57,567.85,673.16,780.37,523.09,182,117,"n","n",558.23,676.03,"n","n",158,102,46,56,559.32000000000005,652.73,745.71,576.41999999999996,160,102,43,59,579.36,694.26,806.95,613.09,160,106,42,64,662.09,815.55,869.37,779.9,166,119,44,75,679.2,793.06,883.79,739.93,176,128,46,83,602.82000000000005,692.63,831.11,615.77,165,123,48,74,621.94000000000005,698.91,847.29,602.42999999999995,181,134,57,77,664.59,758.42,913.1,643.91999999999996,178,133,66,67,689.06,773.74,908.83,641.83000000000004,171,128,66,62,752.89,856.85,975.07,730.19,178,137,77,60,761.68,837.23,974.2,661.4,190,148,42,86,62,808.25,892.04,515.87,993.88,749.13,60]
["Deerfield",8,455,324,166,158,579.02,618.05999999999995,781,446.59,409,282,118,164,545.79,545.27,737.24,406.43,452,310,150,160,567.99,575.21,762.19,399.64,490,352,150,202,561.77,542.41999999999996,751.03,388.09,502,352,118,234,539.15,500.94,722.85,388.6,469,316,104,212,589.24,555.23,859.64,406.43,437,263,69,195,612.04999999999995,598.48,925.88,482.99,440,269,88,181,617.13,593.97,733.02,526.08000000000004,465,306,86,220,608.08000000000004,546.71,688.48,491.5,346,295,88,207,597.37,609.59,655.56,590.07000000000005,363,311,101,210,629.69000000000005,643.75,678.73,626.97,385,333,107,227,605.29,613.48,752.39,548.26,402,346,106,240,565.52,568.87,769.63,480.64,409,360,120,240,610.66999999999996,611.45000000000005,774.12,529.97,419,372,133,239,628.37,627.64,790.28,537.29,449,400,163,236,686.2,690.37,842.75,585.02,503,439,"n",0,727.35,753.44,"n",0,581,499,50,0,741.07,787.14,769.5,0,616,522,10,"n",0,752.37,806.65,1051.29,"n",0,60]
["Derry",8,8518,7497,1781,5717,591.75,588.67999999999995,696.22,555.17999999999995,7977,6945,1277,5668,595.1,591.15,729.35,560.02,7809,6764,1132,5632,613.88,601.48,748.45,571.94000000000005,8150,7091,1347,5744,666.99,654.74,901.55,596.84,8165,7081,1345,5737,717.69,706.94,1051.0899999999999,626.27,8229,7167,1282,5885,734.9,721.01,1051.82,648.98,8123,7042,1173,5869,768.63,755.03,1100.05,686.09,8243,7163,1107,6057,770.24,752.66,1095.93,689.93,7750,6688,842,5846,768.19,745.65,1066.29,699.47,7546,6476,730,5746,764.81,741.03,1069.04,699.34,7550,6528,672,5856,777.12,751.32,982.94,724.76,7733,6713,714,5999,780.24,754.18,896.08,737.3,7856,6817,787,6030,789.37,763.59,931.5,741.68,8003,6986,815,6171,807.09,781.31,1059.0899999999999,744.6,8109,7116,826,6291,818.91,789.86,1029.19,758.44,8234,7252,797,6455,819.72,792.95,1088.3900000000001,756.49,8371,7366,642,6725,827.43,799.79,1026.19,778.19,8520,7524,687,6837,848.15,820.74,1031.56,799.55,8854,7851,1003,716,7135,863.4,837.88,1063.22,1059.97,815.58,60]
["East Kingston",8,159,131,61,70,506.12,567.62,705.46,448.78,193,126,69,57,552.34,644.29,768.78,494.29,204,136,"n","n",572.89,657.79,"n","n",185,113,41,72,567.9,653.94000000000005,719.92,617,198,126,49,76,580.95000000000005,652.66,693.62,626.13,201,123,49,74,583.16,656.62,720.27,614.71,188,111,42,69,646.97,723.01,720.73,724.38,207,124,42,83,581.49,619.72,761.2,548.70000000000005,188,109,30,79,603.79999999999995,610.74,683.49,583.29999999999995,190,104,26,78,660.79,757.16,978.85,683.02,209,119,32,86,873.71,1144.4100000000001,791.04,1277.0899999999999,223,127,32,94,750.15,951.4,914.23,964.08,238,135,35,100,746.9,949.48,1159.07,876.65,219,122,32,90,829.43,1087.92,939.5,1140.31,210,117,35,82,856.71,1118.02,937.74,1196,219,129,40,89,820.36,999.24,1292.9100000000001,865.65,232,137,38,99,789.73,986,1045.08,963.11,237,141,41,100,817.06,993.7,1051.4000000000001,970.16,231,149,82,46,104,874.86,975.79,690.3,1057.43,940.01,60]
["Epping",8,1139,845,149,696,484.8,432.36,511.29,415.47,1168,849,153,696,566.71,517.91999999999996,509.74,519.72,1232,905,169,737,757.38,776.3,604.09,815.71,1743,1415,174,1241,533.71,485.75,626.46,466.02,1853,1514,186,1328,549.75,505.48,638.79,486.77,2133,1781,144,1637,553.36,513.42999999999995,730.68,494.33,2059,1703,115,1588,581.77,539.46,733.03,525.42999999999995,2144,1781,108,1672,584.91999999999996,542.53,714.4,531.4,2122,1766,102,1664,627.13,585.39,712.63,577.62,2349,1977,98,1879,604.57000000000005,569.16999999999996,683.34,563.22,2424,2059,104,1955,594.24,557.88,720.46,549.21,2583,2225,120,2105,606.42999999999995,574,808.07,560.66999999999996,2786,2427,129,2297,601.05999999999995,573.13,834.4,558.42999999999995,2985,2602,107,2495,610.94000000000005,587.09,827.43,576.77,3197,2807,118,2689,630.16999999999996,602.42999999999995,838.95,592.04,3458,3058,125,2933,638.74,613.77,851.81,603.63,3513,3123,150,2972,649.70000000000005,621.88,862.85,609.69000000000005,3335,2949,151,2798,644.38,612.37,886.03,597.64,3323,2939,384,164,2775,670.7,637.92999999999995,921.38,967.19,618.46,60]
["Exeter",8,9305,7969,1356,6613,789.55,815.68,1065.77,764.37,9122,7958,1034,6924,728.84,741.2,1000.4,702.5,9243,8128,1060,7068,743.2,751.04,1029.3499999999999,709.31,8737,7631,1136,6495,770.92,776.93,1075.6099999999999,724.69,9148,8065,1219,6846,847.52,862.2,1184.71,804.76,9816,8705,1236,7469,862.75,874.99,1078.72,841.27,9805,8921,1303,7618,881.98,890.45,1050.49,863.07,9553,8648,1271,7377,909.94,918.5,1086.52,889.56,9465,8558,1189,7369,887.6,890.98,1113.6300000000001,855.06,9660,8617,1211,7405,906.47,911.72,1173.07,868.97,9617,8691,1277,7414,950.23,957.55,1197.23,916.26,9832,8883,1466,7417,1029.8900000000001,1046.68,1491.24,958.8,9950,8991,1774,7218,1039.5899999999999,1056.94,1317.43,992.93,10199,9248,1878,7370,1096.68,1117.2,1367.49,1053.4100000000001,9942,9007,1195,7813,1150.19,1172.4100000000001,1230.29,1163.56,10314,9390,1241,8149,1133,1150.3800000000001,1273.6600000000001,1131.5999999999999,10645,9668,1308,8360,1145.23,1166.45,1282.21,1148.3399999999999,10951,9965,1349,8616,1173.42,1195.55,1314.74,1176.9000000000001,11069,10088,981,1273,8815,1217.5999999999999,1235.94,1029.07,1359.92,1218.04,60]
["Fremont",8,438,348,129,219,479.13,484.28,634.98,395.08,441,347,114,232,476.36,462.83,597.97,396.49,435,332,88,244,489.13,476.97,662.23,409.96,504,396,125,272,491.64,473.45,657.4,389.18,544,430,118,311,492.41,470.31,687.26,387.77,554,444,105,339,548.46,522.65,743.24,454.45,645,523,103,420,552.41999999999996,530.42999999999995,763.47,473.58,687,562,99,463,542.41999999999996,518.66,761.99,466.39,667,546,89,457,547.67999999999995,518.92999999999995,719.17,479.87,704,572,93,479,550.1,523.62,785.19,472.98,506,383,92,290,641.04,618.76,792.75,563.36,522,391,96,295,619,605.58000000000004,784.39,547.65,493,370,96,274,654.82000000000005,647.25,783.29,599.51,462,337,85,252,670.95,668.04,767.54,634.44000000000005,513,392,117,275,738.27,752.36,933.34,675.1,554,425,125,301,725.19,740.16,943.22,655.91,564,432,123,309,730.2,746.96,977.68,655.04999999999995,574,443,125,317,762.37,781.8,1063.3800000000001,670.73,608,476,132,133,343,761.5,771.9,723.9,963.77,697.4,60]
["Greenland",8,1594,1473,523,950,655.05999999999995,668.52,829.25,579.95000000000005,1743,1589,565,1024,696.13,723.06,837.54,659.86,1949,1804,582,1223,691.24,709.11,810.56,660.85,1896,1756,609,1147,734,751.79,878.61,684.51,1961,1838,587,1251,798.64,810.87,981.11,730.97,2149,2007,559,1449,788.25,804.63,943.55,751.05,2049,1909,510,1399,838.53,854.43,1033,789.36,1945,1809,"n","n",936.97,955.9,"n","n",1937,1806,421,1385,872.06,882.58,1032.8,836.89,2049,1928,"n","n",867.63,871.24,"n","n",2000,1862,376,1485,885.65,894.61,1205.45,815.82,1838,1706,349,1357,843.84,847.85,1333.94,722.9,1847,1706,342,1364,911.13,921.02,1452.42,787.91,1831,1692,333,1359,901.24,909.15,1385.24,792.61,1845,1709,325,1383,1005.35,1015.92,1468.94,909.4,1906,1753,330,1423,981.25,996.9,1397.72,904.01,1937,1792,332,1461,1055.83,1068.31,1566.86,955.17,1963,1806,326,1481,1054.8900000000001,1071.06,1599.92,954.7,1960,1804,156,315,1490,1111.3699999999999,1130.3399999999999,892.17,1580.83,1035.19,60]
["Hampstead",8,2179,2100,642,1458,597.83000000000004,608.39,756.51,543.14,2150,2064,592,1472,596.45000000000005,607.36,729.72,558.11,2105,2023,530,1493,602.38,611.16,740.69,565.21,2162,2078,499,1579,618.14,627.23,738.8,591.96,2196,2103,502,1601,615.14,625.05999999999995,767.26,580.52,2189,2096,496,1600,649.26,659.08,785.21,619.97,2414,2326,565,1760,672.93,678.26,853.82,621.9,2367,2274,581,1693,685.3,691.01,902.85,618.29999999999995,2254,2159,482,1677,671.99,677.41,869.75,622.11,2238,2136,468,1669,705.25,712.13,1010.93,628.42999999999995,2221,2123,472,1651,693.14,697.14,891.83,641.52,2202,2100,383,1717,693.38,698.18,911.1,650.65,2210,2109,387,1722,701.71,706,906.06,661.05,2191,2088,366,1722,721.88,727.72,947.94,680.89,2180,2070,344,1726,715.44,721.73,964.77,673.31,2222,2113,349,1764,739.4,744.92,1005.72,693.35,2246,2136,365,1770,786.4,793.24,1000.66,750.44,2272,2160,404,1756,813.11,819.94,1037.04,769.94,2317,2209,109,431,1778,927.8,937.25,736.02,1071.96,904.6,60]
["Hampton",8,6425,5396,1293,4104,771.35,795.05,907.5,759.63,6726,5678,1320,4358,759.98,779.16,899.21,742.8,6299,5258,1119,4139,800.4,819.82,935.44,788.58,6383,5325,1056,4269,1143.3599999999999,1222.3499999999999,1008.13,1275.32,6328,5242,906,4336,1200.74,1296.67,966.07,1365.76,6316,5225,920,4305,1732.87,1938.35,959.35,2147.59,6094,4999,966,4033,1408.18,1548.99,932.43,1696.65,6045,4954,920,4034,859.07,874.12,955.64,855.53,5487,4398,722,3677,860.04,875.02,982.39,853.94,5418,4320,707,3613,884.86,907.62,1095.51,870.87,5383,4355,719,3636,889.85,904.22,1057.73,873.87,5437,4404,740,3664,948.79,976.11,1228.19,925.16,5606,4583,794,3789,931.11,944.77,1093.17,913.68,5731,4701,823,3878,987.82,1011.74,1100.78,992.83,5735,4718,"n",3836,1025.45,1050.4100000000001,"n",1026.95,5876,4865,939,3927,1027.1500000000001,1052.0899999999999,1142.44,1030.49,5693,4704,965,3739,1037.3800000000001,1058.99,1253.01,1008.95,5846,4834,1020,3814,1063.72,1091.01,1192.26,1063.94,5944,4915,1029,1023,3892,1095.8900000000001,1124.3900000000001,959.74,1208.0899999999999,1102.4000000000001,60]
["Hampton Falls",8,579,501,112,389,711.08,728.04,619.91,759.08,571,485,115,371,647.07000000000005,658.54,664.12,656.82,586,499,119,380,647.55999999999995,656.4,648.86,658.76,540,457,116,340,649.78,644.39,652.41,641.66,532,443,100,343,708.65,717.41,652.69000000000005,736.25,519,423,89,334,685.02,694.03,677.45,698.44,484,385,86,299,663.24,662.14,659.66,662.86,453,351,74,277,706.28,710.52,648.54,727.05,416,319,64,255,667.45,640.91,604.23,650.05999999999995,413,313,77,236,669.97,643.16,643.19000000000005,643.15,497,407,62,345,590.19000000000005,544.13,720.2,512.48,496,403,62,341,638.21,610.30999999999995,805.72,574.76,491,399,61,337,658.94,634.25,787.6,606.37,537,446,92,354,692.99,672.69,785.29,643.6,626,535,99,436,721.41,702.8,783.14,684.52,639,544,102,442,694.91,676.47,795.22,649.12,591,494,70,425,743.69,732.76,799,721.89,567,470,72,399,803.1,797.57,834.27,790.97,532,431,101,71,360,857.07,860.95,840.51,907.24,851.85,60]
["Kensington",8,280,259,90,170,701.62,737.26,645.02,786.06,278,249,83,166,762.2,822.57,745.45,861.36,306,246,80,166,769.9,854.03,672.57,940.98,"n","n","n","n","n","n","n","n",288,225,37,188,642.29,685.87,588.27,705.29,263,201,40,161,735.48,789.42,578.12,842.38,260,196,29,167,792.78,864.03,558.13,917.08,277,208,37,171,834.67,911.7,587.79,982.11,297,226,33,194,785.82,837.92,671.52,866,278,211,24,187,824.59,881.03,666.67,908.66,271,207,25,182,846.76,902.27,708.37,928.99,297,231,41,190,792.09,832.3,786.94,842.06,311,248,35,213,762.64,783.67,696.93,797.9,300,237,33,204,768.46,800.1,682.04,819.33,352,293,37,255,827.87,867.83,699.22,892.31,362,304,29,275,832.06,867.02,807.56,873.21,354,294,32,262,882.98,944.88,832.64,958.53,317,252,27,226,989.44,1083.0899999999999,1025.26,1089.9000000000001,317,253,65,23,230,1014.37,1098.23,687.13,1120.01,1096.06,60]
["Kingston",8,1565,1290,130,1160,563.30999999999995,582.01,678.94,571.13,1477,1237,137,1100,590.67999999999995,594.09,736.37,576.41999999999996,1475,1252,112,1140,590.08000000000004,578.6,833.41,553.51,1547,1329,136,1193,608.78,593.28,773.14,572.79,1608,1334,170,1164,601.63,582.65,682.37,568.08000000000004,1627,1331,168,1163,593.17999999999995,571.64,636.11,562.36,1580,1256,120,1136,609.29999999999995,588.07000000000005,768,568.99,1512,1201,112,1089,630.03,598.96,942.07,563.76,1443,1130,94,1035,606.1,565.19000000000005,848.64,539.41,1441,1119,92,1026,640.79999999999995,608.92999999999995,872.52,585.26,1432,1124,106,1019,656.78,622.25,869.27,596.61,1430,1110,118,991,676.09,650.03,932.64,616.29,1493,1178,131,1047,710.33,686.96,1057.5999999999999,640.6,1543,1228,133,1095,721.39,696.5,1042.56,654.36,1601,1289,133,1157,771.95,749.56,1183.92,699.74,1692,1367,144,1223,789.04,781.39,1372.96,711.76,1712,1391,149,1243,792.77,778.24,1127.22,736.49,1674,1351,156,1195,830.49,821.59,1022.47,795.45,1642,1317,324,147,1170,823.91,803.26,907.81,994.57,779.23,60]
["Londonderry",8,12052,10942,2884,8059,710.65,719.8,972.63,629.33000000000004,12425,11330,3197,8133,732.44,734.6,968.41,642.70000000000005,12694,11532,2938,8593,750.56,757.29,986.88,678.78,13240,12085,3248,8838,748.82,752.8,949.91,680.37,13506,12344,3433,8911,773.84,775.53,992.19,692.06,13773,12490,3710,8780,809.78,815.06,1053.48,714.31,13579,12334,3792,8542,832.41,831.08,1073.67,723.41,13945,12705,4292,8413,861.5,862.62,1112.77,735.02,13240,11989,4139,7850,884.39,888.01,1185.58,731.13,13306,12136,4061,8075,979.29,985.14,1442.16,755.31,13346,12200,4045,8155,868.59,862.02,1091.5999999999999,748.15,13382,12250,3931,8320,915.95,911.92,1143.01,802.74,13221,12109,3894,8215,909.37,900.07,1171.6099999999999,771.36,13094,12007,3768,8240,922.66,914.72,1146.5999999999999,808.69,13213,12113,3639,8473,950.06,945.19,1197.4000000000001,836.86,13488,12445,3621,8824,980.42,972.13,1278.67,846.33,13951,12859,3665,9194,1003.84,998.64,1321.86,869.8,14407,13300,3932,9368,1045.54,1043.95,1354.59,913.56,14895,13803,1092,4259,9544,1078.25,1076.69,1098.01,1409.46,928.19,60]
["New Castle",8,86,49,"n","n",453.67,504.1,"n","n",91,51,"n","n",527.44000000000005,625.73,"n","n",82,45,"n","n",604.46,739.11,"n","n","n","n","n","n","n","n","n","n","n","n","n","n","n","n","n","n","n","n","n","n","n","n","n","n",349,303,"n","n",561.67999999999995,568.04999999999995,"n","n","n","n",0,"n","n","n",0,"n",325,278,0,278,571.74,574.38,0,574.38,"n","n",0,"n","n","n",0,"n",328,284,"n","n",603.21,597.83000000000004,"n","n",317,272,"n","n",645.54,572.44000000000005,"n","n",329,284,0,284,616.21,608.30999999999995,0,608.30999999999995,372,321,0,321,616.49,616.64,0,616.64,377,325,0,325,659.5,664.91,0,664.91,375,316,0,316,642.26,654.58000000000004,0,654.58000000000004,"n","n","n","n","n","n","n","n",355,307,"n","n",701.79,701.63,"n","n","n","n",50,0,"n","n","n",649.97,0,"n",60]
["Newfields",8,909,875,"n","n",609.51,618.29,"n","n",818,784,"n","n",653.91,666.11,"n","n",781,708,"n","n",651.75,674.68,"n","n",843,770,"n","n",641.87,661.35,"n","n",908,830,"n","n",645.52,666.18,"n","n",972,897,"n","n",683.48,699.86,"n","n",954,878,"n","n",656.72,668.87,"n","n",857,778,"n","n",679.95,694.78,"n","n",581,502,"n","n",725.71,748.28,"n","n",657,583,273,310,709.32,720.51,792.95,656.78,632,562,257,305,740.05,756.35,853.88,674.13,542,475,273,203,843.81,873.92,894.35,846.49,607,539,325,214,843.19,878.1,914.17,823.17,703,631,427,203,865.21,893.65,901.91,876.28,776,701,496,205,858.09,884.26,903.34,838,806,728,510,218,886.05,915,933.92,870.83,"n","n","n","n","n","n","n","n",706,626,400,225,897.99,935.78,986.96,844.89,"n","n",72,359,"n","n","n",649.41999999999996,999.52,"n",60]
["Newington",8,6120,5832,2305,3527,653.76,647.9,1048.1300000000001,386.39,5385,5154,1391,3762,614.04,603.09,1178.1300000000001,390.43,4980,4776,718,4058,551.88,537.83000000000004,1033.96,450.06,5273,5064,810,4254,599.73,588.91999999999996,1087.49,493.94,5120,4900,865,4034,625.22,610.16,1124.27,499.89,5118,4891,967,3924,671.56,652.11,1155.4100000000001,528.13,5093,4940,1244,3697,685.41,670.34,1145.23,510.61,5224,5147,1385,3762,705.35,699.07,1165.52,527.32000000000005,5012,4934,1243,3692,701.01,695.47,1167.18,536.67999999999995,4507,4432,1067,3365,671.32,663.81,1263.53,473.71,4376,4290,1075,3215,689.19,681.13,1304.53,472.74,4445,4347,943,3404,703.56,695.3,1327.78,520.19000000000005,4628,4536,1009,3526,738.54,732.83,1359.44,553.51,4772,4642,1105,3537,799.57,790.61,1387.14,604.26,5516,5356,1973,3383,966.23,963.14,1449.5,679.48,5715,5524,2223,3300,1036.53,1034.73,1469.83,741.63,5796,5595,2399,3196,1156.8800000000001,1158.33,1475.5,920.32,5575,5352,2309,3043,1195.8,1197.6600000000001,1467.07,993.26,5408,5198,210,2376,2822,1398.45,1406.36,1202.22,1491.67,1334.53,60]
["Newmarket",8,1864,1549,660,889,577.03,589.30999999999995,698.32,508.37,1484,1186,406,780,572.6,575.19000000000005,763.83,476.94,1453,1154,372,782,600.70000000000005,593.16999999999996,823.62,483.59,1550,1207,449,758,616.16999999999996,623.36,853.22,487.17,1531,1210,445,765,660.85,665.8,902.1,528.5,1457,1130,348,783,673.13,680.59,998.83,539.28,1465,1137,364,774,737.97,751.36,1047.29,612.17999999999995,1389,1049,326,723,755.02,770.27,1031.3,652.73,1269,924,250,674,756.07,771.31,997.12,687.69,1237,891,239,653,734.29,734.23,1014,631.99,1243,912,258,654,763.93,764.97,1028.4100000000001,660.94,1240,903,235,668,747.31,753.44,955.94,682.22,1246,925,227,698,753.53,746.79,936.06,685.17,1286,967,279,689,779.01,775.97,992.89,688.22,1331,1020,233,787,811.55,801.55,1125.79,705.58,1431,1113,246,867,812.43,805.91,1093.27,724.47,1524,1201,242,959,878.44,892.4,1040.7,854.94,1545,1235,201,1034,909.35,915.69,1000.45,899.23,1591,1282,309,200,1082,905.87,907.63,898.55,1053.8,880.6,60]
["Newton",8,391,258,"n","n",640.76,661.53,"n","n",389,246,91,155,678.25,725.42,912.2,615.67999999999995,418,256,95,161,679.18,726.99,879.19,637.1,423,254,100,154,727.1,806.32,990.5,686.79,430,267,104,163,793.14,880.99,1127.42,722.98,452,291,112,179,813.65,895.01,1155.48,731.48,451,276,118,158,831.79,936.38,1210.0999999999999,733,469,302,120,182,840.44,896.84,1182.8699999999999,708.86,442,270,96,174,768.86,826.11,994.99,732.97,463,283,115,168,772.03,844.84,1013.71,730.04,465,280,109,171,759.17,825.6,993.45,719.27,485,290,101,189,719.09,768.34,895.4,700.56,489,298,96,202,728.16,755.9,911.31,682.15,496,307,114,194,846.69,933.98,1237.23,755.86,497,320,130,191,933.15,1014.23,1235.71,863.73,532,356,148,208,955.74,1038,1258.1300000000001,881.61,499,331,145,186,1040.25,1152.72,1347.09,1001.75,508,337,153,184,1073.4100000000001,1208.51,1380.38,1066.1500000000001,554,386,168,163,222,1122.33,1255.58,816.66,1388.35,1158.0999999999999,60]
["North Hampton",8,2125,2053,274,1780,713.95,716.85,1223.5999999999999,638.91999999999996,2119,2043,232,1811,708.77,711.76,975.76,678,2315,2234,234,2000,666.69,666.51,830.84,647.28,2412,2330,242,2088,725.03,726.7,1049.0999999999999,689.3,2459,2375,235,2140,718.47,719.49,1121.5999999999999,675.33,2367,2281,217,2063,727.14,727.19,1013.05,697.08,2427,2337,196,2141,726.65,724.71,1018.79,697.84,2363,2269,195,2074,738.26,735.6,1033.73,707.59,2283,2187,192,1995,724.14,720.4,1077.72,685.95,2353,2262,176,2086,748.62,746.13,999.14,724.82,2338,2246,189,2057,739.13,735.62,1060.02,705.77,2351,2256,195,2061,1567.75,1599.49,1060.04,1650.52,2266,2167,196,1971,1340.16,1364.53,1171.05,1383.75,2187,2089,205,1884,1954.3,2006.69,1086.32,2106.77,2130,2027,217,1810,1969.86,2026.36,1268.17,2117.41,2276,2175,230,1946,1689.97,1727.67,1186.76,1791.46,2262,2163,232,1931,1582.59,1611.6,1358.7,1641.95,2303,2206,270,1936,973.08,973.63,1304.06,927.64,2376,2275,101,272,2004,1122.8399999999999,1129.0899999999999,981.98,1274.54,1109.3599999999999,60]
["Northwood",8,740,598,164,434,467.89,483.77,675.41,411.38,795,627,154,473,487.18,489.09,720.37,413.89,928,752,150,602,497.55,494.92,718.92,438.96,980,811,194,616,542.1,546.27,712.7,493.76,1031,855,199,656,542.41999999999996,547.12,716.67,495.63,1039,846,218,628,595.99,615.88,761.15,565.4,1019,825,205,620,646.54999999999995,662.26,767.18,627.54999999999995,1031,838,178,661,631.82000000000005,630.28,738.83,601.12,972,774,148,625,601.41999999999996,595.70000000000005,664.47,579.41999999999996,1015,803,160,643,628.46,635.08000000000004,701.9,618.45000000000005,996,805,159,646,672.27,674.32,722.86,662.38,983,793,158,636,689.39,700.53,744.21,689.71,983,796,165,631,686.98,694.06,759.2,677.09,976,793,179,614,703.03,712.85,733.84,706.73,958,779,178,601,729.6,738.75,801.29,720.2,1034,858,194,664,745.06,754.89,806.21,739.93,1046,868,201,668,746.27,754.08,798.2,740.81,1053,878,179,699,737.35,740.78,810.18,722.99,1074,895,179,158,737,757.81,759.94,747.1,878.52,734.51,60]
["Nottingham",8,270,156,113,43,545.65,610.96,581,689.06,273,162,122,40,592.46,639.64,623.29999999999995,688.85,274,163,125,38,629.76,678.9,657.24,750.73,259,144,111,33,636.77,672.81,666.6,693.59,317,191,125,66,626.22,651.62,734.93,492.73,319,192,126,66,652.96,690.81,773.95,532.9,319,166,115,51,637.23,717.3,745.54,653.42999999999995,291,141,92,49,663.13,727.28,758.68,668.66,281,130,71,60,718.64,851.23,718.41,1008.75,270,115,56,58,783.31,1004.46,722.86,1276.4000000000001,286,133,49,84,752.28,891.37,771.02,961.5,294,136,41,96,767.77,908.31,900.06,911.81,275,112,38,73,804.07,1030.01,985.94,1053.0899999999999,291,120,46,75,856.74,1125.6099999999999,1271.6600000000001,1036.19,303,136,51,85,833.95,1018.69,1165.3,930.43,316,147,59,89,920.99,1181.32,1257.97,1130.43,342,166,59,107,1006.45,1332.44,1626.24,1169.3900000000001,352,180,60,119,933.25,1146.8499999999999,1266.1500000000001,1086.4100000000001,345,167,178,62,105,959.39,1223.3599999999999,711,1174.27,1252.53,60]
["Plaistow",8,4925,4005,617,3388,523.94000000000005,503.26,830.75,443.62,5079,4116,560,3556,552.16,529.15,859.57,477.11,5021,4045,523,3522,592.78,569.03,869.51,524.45000000000005,5039,4064,579,3485,611.97,585.04999999999995,945.84,525.16,5110,4133,594,3540,627.41999999999996,593.16,901.63,541.41999999999996,5129,4102,545,3556,633.94000000000005,599.66,916.26,551.11,5099,4020,530,3491,623.72,582.1,928.69,529.5,4836,3767,517,3250,661.33,618.41999999999996,918.84,570.66999999999996,4586,3507,406,3100,627.17999999999995,568.4,956.96,517.46,4608,3532,444,3087,631.12,572.91,936.26,520.64,4615,3542,478,3064,651.34,594.99,968.6,536.71,4667,3602,487,3115,674.49,623.27,1018.62,561.46,4650,3574,483,3091,670.75,616.25,982.11,559.12,4743,3665,521,3144,671.45,616.72,964.89,559,4809,3757,565,3192,702.86,651.80999999999995,1065.18,578.62,4857,3831,588,3244,722.9,669.71,1132.83,585.79,4842,3810,600,3210,748.16,698.82,1215.0999999999999,602.37,4926,3906,636,3271,778.64,733.07,1226.75,637.09,4915,3904,1011,632,3272,796.34,753.68,961,1261.78,655.52,60]
["Portsmouth",8,27675,25851,2452,23399,773.66,777.56,802.37,774.96,27353,25548,2835,22713,811.34,814.85,902.06,803.96,27288,25502,2964,22538,841.8,843.94,900.04,836.57,28021,26234,2746,23489,894.71,897.17,994.79,885.77,28787,26979,2715,24264,915.16,917.77,978.23,911.01,28768,26958,2738,24220,955.07,959.05,1042.78,949.59,28941,27143,2782,24361,992.37,995.52,1135.46,979.55,28254,26400,2789,23611,1004.17,1007.93,1191.94,986.2,27128,25208,2531,22677,1012.25,1018.06,1159.55,1002.27,27842,25876,2289,23587,1039.04,1047.32,1224.32,1030.1500000000001,28568,26602,2286,24316,1047.82,1055.97,1286.52,1034.29,29274,27452,2300,25151,1066.69,1075.4100000000001,1399.72,1045.75,29885,28038,2410,25628,1108.67,1117.49,1367.44,1093.99,30369,28493,2447,26047,1163.3599999999999,1173.68,1307.8499999999999,1161.07,31735,29884,2651,27233,1185.98,1194.42,1387.16,1175.6500000000001,32396,30515,2706,27809,1204.3699999999999,1213.8699999999999,1428.72,1192.96,33188,31320,2874,28446,1237.4000000000001,1247.0999999999999,1476.38,1223.94,33104,31182,2869,28313,1312.09,1325.75,1537.71,1304.27,33745,31754,1991,2951,28802,1377.55,1395.69,1088.3,1662.27,1368.38,60]
["Raymond",8,3083,2675,452,2223,592.51,605.24,799.71,565.66999999999996,3059,2626,422,2204,608,622.83000000000004,833.4,582.55999999999995,3024,2606,409,2197,639.98,652.09,889.75,607.9,3002,2582,434,2148,710.26,729.87,904.8,694.57,3029,2628,479,2149,699.23,710.04,1070.5,629.64,3014,2615,456,2159,703.57,711.69,1048.51,640.48,2981,2549,395,2153,698.52,706.98,1073.8599999999999,639.62,2853,2428,414,2014,752.37,762.68,1229.1600000000001,666.76,2792,2358,324,2034,724.9,732.42,1007.07,688.71,2689,2265,264,2002,769.28,780.5,1259.94,717.31,2659,2253,295,1958,830.67,849.47,1473.72,755.55,2741,2318,332,1986,798.33,814.22,1402.2,715.79,2772,2346,331,2014,816.74,836.47,1470.36,732.2,2987,2559,352,2206,855.12,877.36,1623.89,758.21,2996,2588,341,2247,834.14,850.13,1402.23,766.39,3066,2651,347,2303,868.01,886.26,1421.11,805.65,3138,2739,390,2349,886.19,901.14,1542.77,794.55,3055,2681,414,2268,932.52,942.38,1565.11,828.72,3135,2739,396,432,2307,949.37,968.95,813.84,1556.67,858.85,60]
["Rye",8,1221,947,75,872,452.2,461.08,538.86,454.42,1222,971,52,919,491.19,487.78,680.91,476.76,1223,970,46,924,536.88,550.74,621.57000000000005,547.21,1315,1049,"n","n",549.1,556.80999999999995,"n","n","n","n","n","n","n","n","n","n","n","n","n","n","n","n","n","n",1239,969,"n","n",602.19000000000005,595.03,"n","n","n","n","n","n","n","n","n","n",1221,969,44,925,621.59,592.79,674.5,588.91,"n","n","n","n","n","n","n","n",1239,1019,"n","n",710.01,681.47,"n","n",1256,1038,"n","n",725.05,702.11,"n","n",1250,1031,21,1010,744.83,717.85,1204.68,707.72,1320,1102,21,1081,790.92,772.95,1231.48,764.12,1283,1079,22,1057,819.03,788.62,1372.56,776.47,1270,1062,23,1039,829.16,802.78,1414.39,789.39,1295,1091,22,1069,946.27,936.02,1486.41,924.64,1329,1118,"n","n",965.67,958.44,"n","n",1362,1154,208,23,1132,972.56,961.23,1035.52,1558.73,949.13,60]
["Salem",8,21176,20125,3596,16529,705.97,702.89,1197.57,595.26,20721,19623,3134,16489,709.48,705.92,1283.18,596.21,20567,19446,3190,16256,688.01,681.18,1132.0999999999999,592.70000000000005,20902,19784,3310,16474,711.6,704.62,1184.18,608.27,20919,19814,3214,16600,732.89,724.95,1146.3699999999999,643.36,20786,19601,2957,16644,743.5,736.71,1156.8399999999999,662.07,21251,19998,2997,17001,766.78,761.23,1245.4100000000001,675.88,20691,19415,2737,16678,770.99,764.49,1229.31,688.2,19474,18225,2180,16045,769.58,760.31,1335.8,682.14,19740,18504,2116,16388,789.43,782.14,1368.07,706.48,20552,19321,2066,17255,812.57,806.84,1410.4,734.57,21148,19948,2061,17887,834.86,830.05,1405.54,763.75,21741,20567,2166,18401,873.92,869.38,1458.9,799.97,21915,20741,2204,18537,919.23,915.67,1438.79,853.48,22032,20909,2366,18542,933.07,927.11,1483.28,856.14,22013,20910,2518,18392,963.18,958.2,1437.87,892.53,22009,20888,2668,18220,1001.93,997.76,1543.01,917.91,21751,20620,2760,17860,1019.87,1015.35,1493.66,941.44,21669,20522,1148,2872,17650,1043.7,1040.02,1109.48,1533.99,959.63,60]
["Sandown",8,228,174,73,101,556.53,629.48,648.01,616.16999999999996,218,166,74,92,528.66,578.96,652.9,520.02,221,169,75,94,567.47,637.1,670.24,610.67999999999995,244,187,79,108,607.53,685.42,677.49,691.26,242,192,"n","n",641.78,678.21,"n","n",253,194,"n","n",648.23,703.83,"n","n",270,202,"n","n",640.63,694.32,"n","n",258,200,67,133,689.66,721.65,943.17,610.89,265,203,48,155,576.20000000000005,612.74,734.01,574.75,257,189,48,141,591.57000000000005,645.6,683.14,632.74,251,188,45,143,607.75,658.19,515.16,703.34,266,199,51,148,593.35,634.04,560.04999999999995,659.64,284,222,53,169,579.99,603.98,558.54999999999995,618.29999999999995,268,209,52,157,676.32,709.35,614.61,740.9,271,214,53,161,693.93,716.73,643.53,740.79,281,229,61,168,680.35,680.3,619.54,702.55,273,216,76,141,720.74,735.45,696.81,756.26,279,224,74,150,731.48,731.9,734.44,730.66,311,250,60,80,171,768.21,795.74,654.07000000000005,761.63,811.69,60]
["Seabrook",8,5347,5052,1620,3432,734.3,737.19,822.97,696.69,5567,5264,1487,3777,759.03,762.52,903.78,706.89,5500,5185,1341,3844,740.86,745.57,852.16,708.39,5429,5097,1328,3769,839.6,842.81,902.02,821.95,5597,5262,1175,4087,792.27,789.79,973.42,736.99,5713,5373,1147,4227,803.6,801.59,994.71,749.21,5774,5325,1111,4214,836.53,825.51,1019.36,774.41,6025,5484,1220,4264,912.28,900.56,1076.26,850.3,6157,5614,1169,4446,914.2,902.49,1131.76,842.2,5951,5407,995,4412,877.1,859.89,1104.8900000000001,804.64,6027,5500,1094,4407,977.52,967.92,1205.25,909.02,6091,5568,1063,4506,962.14,950.98,1167.6400000000001,899.89,5917,5405,900,4505,937.01,919.42,1149.77,873.42,5954,5460,955,4505,986.72,971.95,1246.3699999999999,913.81,6494,5997,1101,4896,994.94,982.79,1276.3,916.8,6608,6113,1005,5108,952.92,939.06,1176.3599999999999,892.4,6818,6322,1103,5219,1013.7,1005.06,1335.06,935.33,6790,6277,1177,5100,1026.6199999999999,1015.17,1290.74,951.6,6868,6347,521,1191,5157,1012.97,1000.7,1162.53,1301.3699999999999,931.28,60]
["South Hampton",8,148,119,40,79,721.83,795.38,509.47,940.29,145,115,41,74,691.11,757.53,484.8,909.19,156,126,43,83,733.49,790.92,504.06,940.12,166,134,45,89,782.7,849.46,497.82,1024.96,165,134,44,90,834.3,908.95,490.51,1113.1300000000001,149,118,38,80,863.24,953.75,566.22,1138.25,145,113,28,85,798.12,874.32,657.88,946.18,143,109,27,82,828.53,918.01,704.68,987.6,138,101,"n","n",765.01,867.12,"n","n",131,94,28,66,775.83,878.52,948.71,848.25,119,84,28,56,800.76,905.1,770.8,973.46,116,82,43,40,735.15,796.02,650.52,953.18,127,93,47,46,634.91999999999996,657.72,632.88,682.87,119,86,48,38,679.15,710.1,701.26,721.29,131,96,55,41,692.48,719.35,685.73,764,136,100,53,47,711.72,754.91,738.17,773.7,149,109,55,53,711.15,760.5,750.29,771.06,146,106,50,56,746.72,803.69,823.09,786.43,149,105,44,43,62,798.03,880.95,600.39,919.73,854.18,60]
["Stratham",8,3093,2807,397,2410,986.7,1031.3399999999999,760.14,1076.03,3399,2957,410,2546,908.87,950.19,792.04,975.68,3433,2962,375,2587,1008.33,1066.6300000000001,806.19,1104.32,3597,3113,408,2705,1183.22,1261.73,892.17,1317.42,3634,3128,416,2712,1074.79,1136.76,969.85,1162.3900000000001,3860,3363,570,2793,1067.23,1111.06,1148.77,1103.3599999999999,3994,3476,571,2905,1036.8900000000001,1073.95,1150.24,1058.95,3966,3446,593,2854,963.57,981.17,1218.0999999999999,931.94,3811,3285,557,2728,1010.93,1030.5899999999999,1085.8499999999999,1019.32,3747,3372,556,2816,1049.98,1062.96,1203.1300000000001,1035.28,3756,3410,609,2801,1445.55,1491.55,1231.06,1548.16,3700,3325,608,2717,1079.3699999999999,1093.3,1227.3699999999999,1063.31,3707,3323,658,2665,1046.6600000000001,1057.23,1336.33,988.31,3983,3598,678,2920,1077.72,1088.02,1436,1007.26,4192,3796,715,3081,1121.01,1131.95,1685.86,1003.37,4354,3934,772,3162,1067.3399999999999,1076.56,1676.48,930.2,4458,4007,825,3182,1054.53,1069.77,1454.09,970.13,4548,4061,806,3255,1072.99,1090.29,1535.56,980,4392,3953,438,798,3155,1142.92,1160.1099999999999,987.96,1512.54,1071.02,60]
["Windham",8,2496,2155,402,1753,776.32,797.47,943.84,763.89,2648,2279,419,1861,747.82,760.8,948.27,718.6,2822,2436,445,1991,757.93,763.33,1037.75,702.02,2927,2544,423,2121,713.67,710.1,809.02,690.4,2974,2572,398,2173,780.74,784.86,1166.82,714.87,3074,2705,399,2306,795.39,786.23,881.14,769.81,3134,2701,379,2322,830.61,832.98,896.4,822.62,3095,2650,362,2288,837.61,829.23,903.19,817.53,3099,2634,332,2302,812.43,794.82,902.07,779.34,3175,2666,348,2318,849.09,827.58,956.31,808.26,3065,2554,356,2197,827.06,797.25,985.34,766.76,2995,2466,305,2161,807.74,774.61,911.34,755.3,3234,2647,299,2348,836.43,820.11,928.19,806.34,3447,2843,300,2543,880.76,874.79,1033.19,856.09,3535,2954,337,2617,939.01,932.95,967.6,928.5,3644,3038,336,2702,969.85,967.43,1073.05,954.31,3748,3187,326,2861,1013.24,1000.12,1050.4000000000001,994.4,3790,3220,312,2908,1100.26,1100.44,1114.94,1098.8800000000001,3837,3244,592,300,2945,1081.19,1075.96,1109.83,1133.8499999999999,1070.07,60]
[]
[]
[]
[]
[]
[]
[]
[]
[]
["Labor Force and Unemployment Rate","Query Name: DPQryUnempByTown",null,"2020-07-10"]
[]
["PlaceName","LaborForce1990","LaborForce1991","LaborForce1992","LaborForce1993","LaborForce1994","LaborForce1995","LaborForce1996","LaborForce1997","LaborForce1998","LaborForce1999","LaborForce2000","LaborForce2001","LaborForce2002","LaborForce2003","NumbEmployed1990","NumbEmployed1991","NumbEmployed1992","NumbEmployed1993","NumbEmployed1994","NumbEmployed1995","NumbEmployed1996","NumbEmployed1997","NumbEmployed1998","NumbEmployed1999","NumbEmployed2000","NumbEmployed2001","NumbEmployed2002","NumbEmployed2003","UnempRate1990","UnempRate1991","UnempRate1992","UnempRate1993","UnempRate1994","UnempRate1995","UnempRate1996","UnempRate1997","UnempRate1998","UnempRate1999","UnempRate2000","UnempRate2001","UnempRate2002","UnempRate2003","NumbUnEmp1990","NumbUnEmp1991","NumbUnEmp1992","NumbUnEmp1993","NumbUnEmp1994","NumbUnEmp1995","NumbUnEmp1996","NumbUnEmp1997","NumbUnEmp1998","NumbUnEmp1999","NumbUnEmp2000","NumbUnEmp2001","NumbUnEmp2002","NumbUnEmp2003","LaborForce2004","NumbEmployed2004","UnempRate2004","NumbUnEmp2004","LaborForce2005","NumbEmployed2005","NumbUnEmp2005","UnempRate2005","LaborForce2006","NumbEmployed2006","NumbUnEmp2006","UnempRate2006","LaborForce2007","NumbEmployed2007","NumbUnEmp2007","UnempRate2007","LaborForce2008","NumbEmployed2008","NumbUnEmp2008","UnempRate2008","LaborForce2009","NumbEmployed2009","NumbUnEmp2009","UnempRate2009","LaborForce2010","NumbEmployed2010","NumbUnEmp2010","UnempRate2010","LaborForce2011","NumbEmployed2011","NumbUnEmp2011","UnempRate2011","LaborForce2012","NumbEmployed2012","NumbUnEmp2012","UnempRate2012","LaborForce2013","NumbEmployed2013","NumbUnEmp2013","UnempRate2013","LaborForce2014","NumbEmployed2014","NumbUnEmp2014","UnempRate2014","LaborForce2015","NumbEmployed2015","NumbUnEmp2015","UnempRate2015","LaborForce2016","NumbEmployed2016","NumbUnEmp2016","UnempRate2016","LaborForce2017","NumbEmployed2017","NumbUnEmp2017","UnempRate2017","LaborForce2018","NumbEmployed2018","NumbUnEmp2018","UnempRate2018","LaborForce2019","NumbEmployed2019","NumbUnEmp2019","UnempRate2019","Place-TownIDNumber"]
["Concord",17158,19156,19345,19473,20493,20901,20846,21269,21945,22040,21450,21610,21650,21670,16236,17796,18081,18604,19817,20347,20327,20750,21448,21597,20940,20990,20950,20910,5.4,7.1000000000000005,6.5,4.5,3.3000000000000003,2.7,2.5,2.4,2.3000000000000003,2,2.4,2.9,3.2,3.5000000000000004,922,1360,1264,869,676,554,519,519,497,443,510,620,700,760,21380,20700,3.2,680,21470,20780,690,3.2,21760,21080,680,3.1,21910,21160,750,3.4000000000000004,22110,21300,810,3.7000000000000006,22350,21100,1250,5.6,22810,21650,1160,5.0999999999999996,22550,21470,1080,4.8,22600,21520,1080,4.8,22470,21450,1020,4.5,22380,21540,840,3.7000000000000006,22440,21760,680,3,22630,22060,570,2.5,22590,22060,530,2.4,22730,22220,510,2.2000000000000002,22930,22420,510,2.2000000000000002,708]
["Derry",17958,17746,18152,18497,18838,18314,18802,19008,19268,21920,19660,19960,19850,20060,16803,16278,16445,16998,17576,17406,17960,18213,18522,21159,19050,19020,18590,18830,6.4,8.3000000000000007,9.4,8.1,6.7,5,4.5,4.2,3.9,3.5,3.1,4.7,6.3,6.1,1155,1468,1707,1499,1262,908,842,795,746,761,610,940,1260,1230,20040,19040,5,1000,20230,19300,930,4.5999999999999996,19950,19140,810,4.0999999999999996,20050,19250,800,4,20240,19350,890,4.4000000000000004,20170,18770,1400,7.0000000000000009,19780,18450,1330,6.7,19590,18370,1220,6.2,19910,18600,1310,6.6000000000000005,19900,18710,1190,6,19920,18890,1030,5.2,19820,19010,810,4.0999999999999996,19960,19250,710,3.6000000000000005,20110,19410,700,3.5000000000000004,20250,19600,650,3.2,20630,20040,590,2.9,808]
["Dover",14442,14804,14525,14590,14159,14543,14597,14771,14778,14852,15820,15990,16200,16680,13728,13847,13574,13803,13638,14026,14138,14390,14439,14536,15420,15520,15600,16060,4.9000000000000004,6.5,6.5,5.4,3.7,3.6,3.1,2.6,2.3000000000000003,2.1,2.5,2.9,3.7000000000000006,3.7000000000000006,714,957,951,787,521,517,459,381,339,316,400,470,600,620,16980,16440,3.2,540,16980,16460,520,3.1,16890,16410,480,2.9,17220,16720,500,2.9,17420,16870,550,3.2,17280,16330,950,5.5,17370,16480,890,5.0999999999999996,17400,16580,820,4.7,17500,16660,840,4.8,17570,16840,730,4.2,17730,17090,640,3.6000000000000005,17840,17330,510,2.8,18210,17780,430,2.2999999999999998,18220,17810,410,2.2999999999999998,18490,18080,410,2.2000000000000002,18730,18330,400,2.1,902]
["Hudson",12484,12026,12188,12214,12119,12078,12442,12876,13125,13345,13500,13680,13660,14010,11727,11098,11160,11343,11344,11442,11918,12438,12722,12888,13130,13130,12920,13300,6.1000000000000005,7.7,8.4,7.1000000000000005,6.4,5.3,4.2,3.4,3.1,3.4,2.8,4,5.4,5.0999999999999996,757,928,1028,871,775,636,524,438,403,457,370,550,740,710,14420,13770,4.5,650,14750,14150,600,4.0999999999999996,14750,14200,550,3.8,14920,14350,570,3.8,14950,14330,620,4.0999999999999996,14930,13930,1000,6.7,14240,13290,950,6.7,14150,13280,870,6.1,14320,13400,920,6.5,14360,13500,860,6,14460,13690,770,5.3,14510,13890,620,4.2,14660,14160,500,3.4000000000000004,14710,14210,500,3.4000000000000004,14970,14490,480,3.2,31590,14810,480,3.1,614]
["Londonderry",11797,11497,11671,11945,12109,11969,12248,12747,13057,13288,13370,13700,13730,13880,11223,10806,10886,11198,11492,11495,11820,12345,12706,12914,13030,13180,13020,13200,4.9000000000000004,6,6.7,6.3,5.1000000000000005,4,3.5,3.2,2.7,2.8000000000000003,2.5,3.8,5.2,4.9000000000000004,574,691,785,747,617,474,428,402,351,374,340,520,710,680,14070,13500,4.0999999999999996,570,14490,13960,530,3.7000000000000006,14430,13940,490,3.4000000000000004,14620,14120,500,3.4000000000000004,14670,14120,550,3.7000000000000006,14540,13680,860,5.9,14270,13470,800,5.6,14160,13420,740,5.2,14410,13600,810,5.6,14440,13690,750,5.2,14510,13850,660,4.5,14960,14440,520,3.5000000000000004,15420,14980,440,2.8,15610,15180,430,2.8,15780,15330,450,2.8,16110,15670,440,2.8,819]
["Manchester",57227,54398,53484,53029,52584,54444,54748,56302,57027,57867,58440,59230,59350,60270,53493,49879,48873,49490,49803,52144,52888,54663,55481,56389,56950,57140,56610,57550,6.5,8.3000000000000007,8.6,6.7,5.3,4.2,3.4,2.9,2.7,2.6,2.6,3.5000000000000004,4.5999999999999996,4.5,3734,4519,4611,3539,2781,2300,1860,1639,1546,1478,1490,2090,2740,2720,60940,58510,4,2430,61140,58810,2330,3.8,61080,58710,2370,3.9,61520,59130,2390,3.9,61910,59230,2680,4.3,62170,57720,4450,7.2000000000000011,61300,57130,4170,6.8000000000000007,60990,57330,3660,6,61290,57460,3830,6.3,61390,57990,3400,5.5,61890,59020,2870,4.5999999999999996,61940,59690,2250,3.6000000000000005,62620,60720,1900,3,63530,61710,1820,2.9,64700,63010,1690,2.6,65780,64080,1700,2.6,617]
["Merrimack",13981,13473,13706,13893,13686,13315,13754,14250,14570,14810,15420,15760,15890,16040,13416,12714,12773,12999,12979,12783,13294,13866,14217,14403,15070,15270,15160,15360,4,5.6000000000000005,6.8,6.4,5.2,4,3.3000000000000003,2.7,2.4,2.7,2.2999999999999998,3.1,4.5999999999999996,4.2,565,759,933,894,707,532,460,384,353,407,350,490,730,680,16250,15710,3.3000000000000003,540,16520,16020,500,3,16440,15950,490,3,16550,16060,490,3,16510,15970,540,3.3000000000000003,16470,15520,950,5.8,61300,57130,4170,6.8000000000000007,60990,57330,3660,6,61290,57460,3830,6.3,61390,57990,3400,5.5,61890,59020,2870,4.5999999999999996,61940,59690,2250,3.6000000000000005,62620,60720,1900,3,15790,15380,410,2.6,16020,15610,410,2.5,16360,15960,400,2.4,619]
["Nashua",48381,45637,45669,45204,43405,44276,45430,46753,47362,48054,48150,48730,48350,48550,45749,42390,42064,41756,40901,42188,43654,45410,45982,46581,46830,46750,45610,46000,5.4,7.1000000000000005,7.9,7.6000000000000005,5.8,4.7,3.9,2.9,2.9,3.1,2.7,4.0999999999999996,5.7,5.2,2632,3247,3605,3448,2504,2088,1776,1343,1380,1473,1320,1980,2740,2550,48910,46770,4.4000000000000004,2140,49460,47490,1970,4,49190,47270,1920,3.9,49360,47510,1850,3.7000000000000006,49270,47280,1990,4,49520,46070,3450,7.0000000000000009,48410,45220,3190,6.6000000000000005,48090,45080,3010,6.2,48600,45500,3100,6.4,48830,45940,2890,5.9,48860,46380,2480,5.0999999999999996,49150,47210,1940,3.9,49370,47680,1690,3.4000000000000004,49680,48060,1620,3.3000000000000003,50200,48700,1500,3,51280,49770,1510,3,622]
["Rochester",14242,14280,14153,14123,13917,14056,14172,14407,14297,14288,15280,15450,15670,15900,13158,12952,12771,13032,13177,13387,13529,13825,13799,13892,14820,14880,14870,15210,7.6000000000000005,9.3000000000000007,9.8000000000000007,7.7,5.3,4.8,4.5,4,3.5,2.8000000000000003,3,3.7000000000000006,5.0999999999999996,4.3,1084,1328,1382,1091,740,669,643,582,498,396,460,570,800,690,16150,15550,3.7000000000000006,600,16360,15740,620,3.8,16340,15790,550,3.3000000000000003,16700,16100,600,3.6000000000000005,17120,16410,710,4.0999999999999996,17210,15950,1260,7.3,16910,15840,1070,6.3,16850,15890,960,5.7,16850,15860,990,5.9,16810,15920,890,5.3,16910,16210,700,4.2,16910,16360,550,3.2,17240,16800,440,2.5,17350,16940,410,2.4,17730,17310,420,2.4,17990,17560,430,2.4,910]
["Salem",15853,15251,15792,16067,15973,15983,16536,16695,17028,19224,16440,16840,17070,17060,14545,13832,14010,14242,14652,14897,15474,15785,16115,18409,15780,15940,15860,15880,8.3000000000000007,9.3000000000000007,11.3,11.4,8.3000000000000007,6.8,6.4,5.5,5.4,4.2,4,5.3,7.1,6.9,1308,1419,1782,1825,1321,1086,1062,910,913,815,660,900,1210,1180,17300,16210,6.3,1090,17440,16490,950,5.5,17510,16680,830,4.7,17840,16970,870,4.9000000000000004,17830,16880,950,5.3,17830,16410,1420,8,17320,16110,1210,7.0000000000000009,17300,16160,1140,6.6000000000000005,17530,16330,1200,6.8000000000000007,17580,16480,1100,6.2,17660,16730,930,5.2,17680,16920,760,4.3,17750,17110,640,3.6000000000000005,17840,17190,650,3.6000000000000005,18210,17610,600,3.3000000000000003,18410,17790,620,3.4000000000000004,832]
[]
[]
["NH Employment Data","Query Name: DPQryEmploymentByCnty-Good-Serv-Total","Updated:","2020-09-30"]
[]
["AreaName","COUNTYCODE","TOTP & G2001","TOT2001","GOODPRO2001","SERVICEPROMAN2001","WAGEP & G2001","WAGETOT2001","WAGEGOODPRO2001","WAGESERVICEPRO2001","TOTP & G2002","TOT2002","GOODPRO2002","SERVICEPROMAN2002","WAGEP & G2002","WAGETOT2002","WAGEGOODPRO2002","WAGESERVICEPRO2002","TOTP & G2003","TOT2003","GOODPRO2003","SERVICEPROMAN2003","WAGEP & G2003","WAGETOT2003","WAGEGOODPRO2003","WAGESERVICEPRO2003","TOTP & G2004","TOT2004","GOODPRO2004","SERVICEPROMAN2004","WAGEP & G2004","WAGETOT2004","WAGEGOODPRO2004","WAGESERVICEPRO2004","TOTP & G2005","TOT2005","GOODPRO2005","SERVICEPROMAN2005","WAGEP & G2005","WAGETOT2005","WAGEGOODPRO2005","WAGESERVICEPRO2005","TOTP & G2006","TOT2006","GOODPRO2006","SERVICEPROMAN2006","WAGEP & G2006","WAGETOT2006","WAGEGOODPRO2006","WAGESERVICEPRO2006","TOTP & G2007","TOT2007","GOODPRO2007","SERVICEPROMAN2007","WAGEP & G2007","WAGETOT2007","WAGEGOODPRO2007","WAGESERVICEPRO2007","TOTP & G2008","TOT2008","GOODPRO2008","SERVICEPROMAN2008","WAGEP & G2008","WAGETOT2008","WAGEGOODPRO2008","WAGESERVICEPRO2008","TOTP & G2009","TOT2009","GOODPRO2009","SERVICEPROMAN2009","WAGEP & G2009","WAGETOT2009","WAGEGOODPRO2009","WAGESERVICEPRO2009","TOTP & G2010","TOT2010","GOODPRO2010","SERVICEPROMAN2010","WAGEP & G2010","WAGETOT2010","WAGEGOODPRO2010","WAGESERVICEPRO2010","TOTP & G2011","TOT2011","GOODPRO2011","SERVICEPROMAN2011","WAGEP & G2011","WAGETOT2011","WAGEGOODPRO2011","WAGESERVICEPRO2011","TOTP & G2012","TOT2012","GOODPRO2012","SERVICEPROMAN2012","WAGEP & G2012","WAGETOT2012","WAGEGOODPRO2012","WAGESERVICEPRO2012","TOTP & G2013","TOT2013","GOODPRO2013","SERVICEPROMAN2013","WAGEP & G2013","WAGETOT2013","WAGEGOODPRO2013","WAGESERVICEPRO2013","TOTP & G2014","TOT2014","GOODPRO2014","SERVICEPROMAN2014","WAGEP & G2014","WAGETOT2014","WAGEGOODPRO2014","WAGESERVICEPRO2014","TOTP & G2015","TOT2015","GOODPRO2015","SERVICEPROMAN2015","WAGEP & G2015","WAGETOT2015","WAGEGOODPRO2015","WAGESERVICEPRO2015","TOTP & G2016","TOT2016","GOODPRO2016","SERVICEPROMAN2016","WAGEP & G2016","WAGETOT2016","WAGEGOODPRO2016","WAGESERVICEPRO2016","TOTP & G2017","TOT2017","GOODPRO2017","SERVICEPROMAN2017","WAGEP & G2017","WAGETOT2017","WAGEGOODPRO2017","WAGESERVICEPRO2017","TOTP & G2018","TOT2018","GOODPRO2018","SERVICEPROMAN2018","WAGEP & G2018","WAGETOT2018","WAGEGOODPRO2018","WAGESERVICEPRO2018","TOTP & G2019","TOT2019","TOTGov2019","GOODPRO2019","SERVICEPROMAN2019","WAGEP & G2019","WAGETOT2019","WAGEGov2019"]
["Belknap County",1,26173,22708,6138,16570,541.07000000000005,538.34,689.88,482.21,26052,22334,5408,16926,561.11,555.84,731.15,499.83,26286,22376,5281,17095,579.91,573.04,754.28,517.04999999999995,26931,23030,5431,17599,610.04,602.01,777.41,547.89,26940,22891,5467,17424,636.41999999999996,634.14,819.42,576,27237,23042,5133,17909,657.93,655.07000000000005,862.32,595.66999999999996,27266,23032,4820,18212,674.29,668.31,921.91,601.17999999999995,26793,22507,4572,17935,689.74,680.53,938.61,614.74,25570,21280,3944,17337,692.98,680.87,934.72,623.12,24943,20713,3480,17234,698.61,690.71,945.91,639.19000000000005,24953,20748,3411,17337,706.01,697.17,959.24,645.61,25196,20972,3400,17572,708.66,703.81,960.55,654.13,25517,21311,3517,17794,718.36,714.81,997.67,658.89,25490,21315,3554,17761,748.41,745.98,1036.05,687.93,25584,21457,3597,17859,776.57,774.35,1066.24,715.55,25708,21577,3626,17951,797.95,796.89,1088.81,737.93,25829,21725,3676,18049,823.13,823.31,1139.79,758.85,25898,21803,3774,18029,851.06,851.82,1167.98,785.64,26080,22008,4072,3799,18209,854.12,849.87,877.08]
["Carroll County",2,19495,16938,2563,14374,467.52,460.32,627.98,430.42,19756,17153,2497,14656,481.01,472.65,645.74,443.16,20167,17534,2567,14967,492.28,481.72,647.55999999999995,453.27,20405,17701,2526,15175,519.72,511.1,687.06,481.81,20205,17448,2541,14906,533.86,524.08000000000004,703.81,493.43,20294,17504,2588,14916,575.59,568.1,737.84,538.66,20402,17510,2544,14966,573.29999999999995,562.55999999999995,760.1,528.99,20584,17636,2552,15084,584.17999999999995,570.32000000000005,770.38,536.47,19942,16904,2265,14639,587.36,570.99,765.31,540.91999999999996,19810,16754,2124,14630,600.19000000000005,586.5,775.97,558.99,19997,17005,2189,14816,617.28,603.41999999999996,798.39,574.61,20082,17083,2162,14921,627.16999999999996,615.41,800.29,588.62,19971,16958,2084,14874,645.66999999999996,633.79,805.62,609.71,20015,16952,2024,14928,640.24,627.02,843.7,597.64,19806,16828,1996,14832,667.3,653.87,884.26,622.86,19997,17053,2030,15023,686.74,674.21,909.04,642.48,20005,17047,2057,14991,692.33,677.15,941.62,640.87,20015,17037,2078,14959,710.33,694.81,905.58,665.54,20228,17268,2960,2128,15140,735.27,721.26,816.99]
["Cheshire County",3,32349,27819,"n","n",571.92999999999995,577.30999999999995,"n","n",32369,27595,7795,19800,584.33000000000004,590.97,743.2,531.04,32548,27626,7754,19873,598.89,603.04,763.11,540.59,33075,28132,7648,20484,631.09,634.67999999999995,807.42,570.17999999999995,33995,28886,8110,20776,656.03,666.98,828.9,603.78,34194,29151,7889,21262,723.95,741.43,987.42,650.15,33638,28601,7473,21128,707.44,717.07,867.3,663.94,33220,28351,7351,21000,746.75,752.8,902.94,700.24,32207,27212,6761,20451,742.41,745.7,870.79,704.34,31527,26585,6300,20286,754.45,756.21,900.6,711.38,31690,26854,6240,20614,768.13,768.69,935.64,718.15,32021,27158,6245,20914,790.24,793.9,933.87,752.11,31923,27008,6032,20975,796.52,797.61,965.3,749.39,31904,26935,6025,20910,810.83,815.88,993.69,764.64,32067,27097,6073,21024,830.63,834.25,1010.79,783.25,32005,27109,6177,20932,838.96,843.47,1028.03,789.01,31743,26953,6194,20759,867.06,873.07,1043.75,822.14,31642,26825,6445,20380,895.81,907.01,1090.07,849.12,31737,26923,4814,6652,20272,913.17,927.09,835.36]
["Coos County",4,13872,11234,"n","n",489.02,487.7,"n","n",13737,11021,2332,8689,490.8,484.33,650.88,439.63,13946,11225,2578,8647,525.08000000000004,519.66,703.37,464.89,14103,11341,2590,8751,542.98,540.59,726.42,485.6,14026,11222,2533,8689,556.04,552.64,754.89,493.68,13898,10991,2334,8657,572.86,571.41999999999996,766.73,518.76,13876,11050,2184,8866,583.63,572.30999999999995,758.88,526.34,13566,10747,1988,8759,602.53,587.51,755.51,549.38,13002,10134,1720,8414,609.67999999999995,592.77,751.35,560.36,12832,9977,1593,8384,608.57000000000005,589.54,744.88,560.02,12555,9785,1473,8312,620.23,600.46,757.95,572.54,12371,9564,1568,7995,640.94000000000005,622.74,825.56,582.97,12515,9564,1649,7915,667.37,647.75,855.89,604.39,12064,9083,1293,7789,675.59,651.58000000000004,777.89,630.61,11974,9046,1222,7824,694.46,666.94,788.97,647.89,11990,9038,1167,7870,706.62,682.98,853.55,657.68,11999,9070,1223,7846,729.45,705.37,867.99,680.02,11970,9060,1296,7764,749.69,723.06,852.68,701.43,12083,9226,2857,1304,7921,766.79,735.31,868.44]
["Grafton County",5,49352,43256,8085,35171,617.73,624.04999999999995,672.45,612.92999999999995,49690,43362,7763,35599,658.93,668.77,701.81,661.56,50615,44009,7790,36220,704.15,717.01,753.77,709.11,51355,44704,7636,37069,728.96,740.6,770.78,734.38,51541,44954,7698,37256,768.82,783.94,809.26,778.7,52267,45531,7761,37770,803.4,820.96,855.22,813.92,52729,45992,7672,38320,843.04,860.73,901.98,852.47,52901,46166,7347,38819,867.61,884.82,928.14,876.62,51401,44646,6446,38200,879.4,895.26,899.95,894.47,51256,44376,6289,38086,905.77,925.54,949.83,921.53,51663,44867,6681,38186,926.58,946.3,981.6,940.12,52026,45246,6818,38428,950.95,973.52,996.15,969.5,52153,45454,6717,38736,965.05,986.68,1028.75,979.39,52226,45565,6778,38787,1004.06,1029.1500000000001,1069.54,1022.09,52654,46056,6882,39174,1037.55,1061.83,1078.8900000000001,1058.83,53361,46686,6801,39885,1058.5999999999999,1086.92,1082.4000000000001,1087.69,53790,47161,6781,40380,1079.6300000000001,1108.6099999999999,1125.3,1105.81,54119,47417,6926,40491,1105.33,1135.81,1167.74,1130.3399999999999,54388,47685,6703,6855,40830,1142.8,1174.8,915.17]
["Hillsborough County",6,192842,173003,47169,125834,756.14,762.49,941.37,695.43,188573,168164,42086,126078,768.52,773.3,968.23,708.23,190864,169969,41006,128962,801.91,806.79,1014.82,740.64,193543,172567,40910,131656,839.56,844.4,1064.01,776.16,196190,174854,40181,134673,866.71,873.18,1101.58,805.03,196502,175094,39123,135971,897.24,904,1171.1600000000001,827.13,197183,175821,38588,137233,946.54,951.14,1248.82,867.44,195976,174253,36628,137625,973.54,979.17,1267.17,902.52,187240,165260,33003,132257,959.3,962.96,1236.24,894.76,184628,162829,32117,130712,980.99,986.25,1287.9100000000001,912.12,186437,165030,32694,132336,1013.7,1018.86,1329.81,942.03,188425,167133,31642,135492,1029.82,1035.95,1325.69,968.28,190568,169383,30861,138522,1038.74,1045.24,1365.43,973.9,193565,172574,31422,141152,1092.9000000000001,1101.22,1393.55,1036.1500000000001,196842,175848,31842,144005,1099.51,1106.52,1401.46,1041.3,199729,178867,32654,146213,1118.6300000000001,1126.21,1436.51,1056.9100000000001,201740,180839,33513,147327,1147.78,1156.08,1490.14,1080.0899999999999,203961,182874,34296,148577,1182,1189.98,1525.57,1112.51,205989,184819,21170,35047,149772,1219.73,1229.8399999999999,1131.48]
["Merrimack County",7,71543,56168,12137,44031,631.86,633.92999999999995,772.48,595.74,71850,56025,11403,44622,653.27,655.12,799.93,618.12,72840,56631,11036,45595,667.06,666.91,826.68,628.24,72381,56515,10742,45773,690.51,689.4,845.49,652.77,72963,56979,11012,45967,710.07,710.67,861.87,674.44,74077,57818,10760,47058,739.28,739.89,906.79,701.73,74070,57629,10051,47579,774.05,772.96,972.47,730.82,73959,57295,9822,47472,795.3,789.49,978.78,750.33,72134,55582,8724,46857,810.16,788.36,966.04,755.28,71882,55306,8662,46645,821.15,806.64,998.67,770.98,72140,55913,9059,46854,835.3,821.63,1012.78,784.67,72901,56946,9282,47664,850.4,842.26,1036.72,804.39,73510,57805,9457,48348,866.04,857.51,1050.8699999999999,819.69,74884,58800,9698,49103,892.44,882.46,1086.78,842.11,75670,59563,9801,49762,929.04,918.53,1114.06,880.02,76413,60219,9936,50283,946.35,937.29,1126.3800000000001,899.92,76803,60570,10042,50528,980.03,971.23,1164.72,932.78,77469,61326,10142,51184,1012.33,1004.39,1186.1199999999999,968.39,77816,61536,16281,10313,51222,1038.6300000000001,1030.98,1067.56]
["New Hampshire",1026,610446,531225,127190,404035,682.38,691.51,842.11,644.1,603100,521320,115244,406076,695.8,703.84,868.13,657.22,604198,520362,111472,408890,717.94,724.91,888.81,680.22,613327,529515,111893,417622,753.7,760.58,928.63,715.56,620909,536173,112033,424140,779.84,788.93,958.48,744.15,627301,541435,110189,431246,816.3,827.48,1013.11,780.04,630171,543800,107673,436127,843.46,852.45,1054.1600000000001,802.65,628819,541768,104441,437326,863.66,870.64,1074.5999999999999,821.93,604915,517658,92952,424706,864.05,867.37,1066.42,823.81,600540,513386,89428,423957,883.88,890.13,1119.47,841.75,605864,520338,90996,429342,909.31,916.27,1140.95,868.65,612432,527263,90404,436858,928.33,938.02,1152.07,893.72,618756,534106,90890,443216,941.75,950.79,1173.1099999999999,905.2,626567,541441,92176,449265,983.96,996.35,1200.71,954.42,636798,552276,93968,458308,1010.64,1021.89,1224.55,980.34,647375,562836,96138,466699,1030.04,1042.6300000000001,1251.03,999.7,653496,569023,97995,471029,1060.3399999999999,1073.99,1294.46,1028.1199999999999,658816,574044,100089,473955,1091.97,1106.44,1317.59,1061.8499999999999,665374,580394,84980,101907,478487,1128.27,1145.04,1013.77]
["Rockingham County",8,130960,117604,24384,93220,704.6,714.62,913.02,662.73,130242,116589,22286,94302,712.56,720.57,945.47,667.42,130329,116466,21075,95392,725.68,731.51,920.38,689.79,133803,119786,21944,97841,774.11,781.14,964.22,740.08,136154,122028,22051,99976,796.86,803.2,996.54,760.55,138063,123549,22274,101275,842.13,851.8,1013.05,816.33,138382,123679,22407,101273,849.04,856.27,1052.77,812.8,137191,122378,22407,99970,839.01,841.86,1081.82,788.07,131375,116492,19644,96848,839.06,840.45,1104.3599999999999,786.93,131892,117079,18689,98391,862.17,865.32,1199.72,801.8,133444,119079,18941,100138,880.6,883.65,1146.49,833.93,135396,121125,18942,102183,907.06,912.95,1200.98,859.56,137505,123255,19558,103698,919.22,924.42,1204.8699999999999,871.53,139972,125705,20107,105598,967.99,976.63,1214.5999999999999,931.32,143650,129571,20954,108617,999.45,1007.52,1260.8800000000001,958.65,146926,132843,21711,111132,1008.63,1016.49,1289.1199999999999,963.24,149059,134948,22384,112564,1040.5999999999999,1049.82,1335.62,992.99,149817,135525,22957,112568,1068.69,1079.1600000000001,1345.67,1024.8,151694,137342,14352,23611,113731,1110.28,1122.81,990.42]
["Strafford County",9,43645,34821,9068,25753,655.37,655.92,770.85,615.45000000000005,42874,33684,7630,26054,655.35,652.99,800.21,609.88,43046,33530,7366,26164,668.52,656.47,806.84,614.13,43436,33873,7230,26643,693.72,673.65,820.17,633.9,43773,34267,7211,27056,709.03,692.76,828.02,656.71,44557,35064,7140,27925,723.22,705.71,858.22,666.71,45570,35960,6960,29000,746.96,729.16,880.17,692.91,46580,36991,6754,30237,803.35,784.14,900.05,758.25,44375,35115,5981,29133,822.2,798.7,916.04,774.61,44144,34793,5960,28833,843.68,824.98,964.85,796.07,44154,34870,6008,28863,879.87,868.02,1098.93,819.95,45017,35667,6036,29631,875.8,864.35,1039.17,828.73,45379,36187,6365,29822,896.63,880.93,1050.44,844.76,46249,36899,6431,30469,915.86,906.58,1082.2,869.52,46826,37517,6657,30860,954.37,941.53,1121.8,902.65,47632,38313,6879,31434,967.61,953.88,1119.03,917.74,48165,38780,6935,31845,990.95,980.7,1148.01,944.26,48371,39036,6997,32039,1004.47,991.1,1131.83,960.36,48714,39366,9348,7127,32239,1034.79,1028.5999999999999,1060.8599999999999]
["Sullivan County",10,14086,11544,"n","n",536.78,549.33000000000004,"n","n",13793,11231,4452,6779,561.15,569.74,685.65,493.64,13370,10809,4059,6750,577.41,588.45000000000005,688.92,528.03,13551,11127,4066,7061,602.70000000000005,607.34,721.67,541.5,13862,11386,4086,7300,615.79,621.85,741.34,554.98,13826,11306,3928,7377,642.61,650.96,800.27,571.45000000000005,13873,11351,3958,7393,676.8,687.32,843.22,603.85,13799,11227,3909,7318,687.34,698.53,866.24,608.95000000000005,13185,10586,3466,7121,698.02,705.82,887.35,617.47,13076,10479,3303,7176,714.38,723.66,917.55,634.42999999999995,13190,10617,3204,7413,723.57,732.12,955.94,635.39,13597,11070,3448,7622,757.15,771.77,1038.8399999999999,650.94000000000005,13793,11373,3704,7670,768.35,784.88,1012.65,674.88,13873,11439,3932,7507,795.94,816.28,1039.17,699.53,14090,11709,3948,7761,803.2,815.31,1021.57,710.37,14204,11783,4061,7722,810.76,830.28,1066.2,706.22,13997,11636,4031,7605,821.95,836.22,1048.48,723.72,13966,11628,3919,7708,836.09,849.04,1063.6199999999999,739.94,13735,11390,2344,3818,7573,854.16,864.16,805.53]

{"sheet":"BuildingPermitsSince2000","index":10,"n_rows":41,"n_cols":23,"rows_kept":41,"cut":false,"hidden":true,"merged":[[3,1,3,3]]}
[]
[null,{"$f":"CntyDataLink!A35","v":"Atkinson"}]
[]
[null,"HOUSING CHARACTERISTICS"]
[]
[]
[]
[]
[]
[]
[]
[]
[]
[]
[]
[]
[]
[]
[]
[]
[]
[]
[]
[]
[]
[]
[]
[]
[]
[]
[]
[]
[]
[]
[null,"Housing Units Authorized by Permit",null,null,null,"Source: New Hampshire Office of Strategic Initiatives"]
[]
[null,"Year",2000,{"$f":"C37+1","v":2001},{"$f":"D37+1","v":2002},2003,2004,2005,2006,2007,2008,2009,2010,2011,2012,2013,2014,2015,2016,2017,2018,2019,"Total"]
[null,"Single Family",{"$f":"CntyDataLink!$BT$20","v":30},{"$f":"CntyDataLink!$BW$20","v":34},{"$f":"CntyDataLink!$BZ$20","v":11},{"$f":"CntyDataLink!$CC$20","v":16},{"$f":"CntyDataLink!$CF$20","v":4},{"$f":"CntyDataLink!$CI$20","v":10},{"$f":"CntyDataLink!$CL$20","v":6},{"$f":"CntyDataLink!$CO$20","v":8},{"$f":"CntyDataLink!$CR$20","v":3},{"$f":"CntyDataLink!$CU$20","v":5},{"$f":"CntyDataLink!$CX$20","v":5},{"$f":"CntyDataLink!$DA$20","v":4},{"$f":"CntyDataLink!$DD$20","v":5},{"$f":"CntyDataLink!$DG$20","v":8},{"$f":"CntyDataLink!$DJ$20","v":3},{"$f":"CntyDataLink!$DM$20","v":6},{"$f":"CntyDataLink!$DP$20","v":3},{"$f":"CntyDataLink!$DS$20","v":4},{"$f":"CntyDataLink!$DV$20","v":27},{"$f":"CntyDataLink!$DY$20","v":20},{"$f":"SUM(C38:U38)","v":192}]
[null,"Multi-family",{"$f":"CntyDataLink!$BU$20","v":44},{"$f":"CntyDataLink!$BX$20","v":54},{"$f":"CntyDataLink!$CA$20","v":14},{"$f":"CntyDataLink!$CD$20","v":8},{"$f":"CntyDataLink!$CG$20","v":2},{"$f":"CntyDataLink!$CJ$20","v":8},{"$f":"CntyDataLink!$CM$20","v":0},{"$f":"CntyDataLink!$CP$20","v":0},{"$f":"CntyDataLink!$CS$20","v":0},{"$f":"CntyDataLink!$CV$20","v":-2},{"$f":"CntyDataLink!$CY$20","v":0},{"$f":"CntyDataLink!$DB$20","v":-1},{"$f":"CntyDataLink!$DE$20","v":-1},{"$f":"CntyDataLink!$DH$20","v":0},{"$f":"CntyDataLink!$DK$20","v":0},{"$f":"CntyDataLink!$DN$20","v":12},{"$f":"CntyDataLink!$DQ$20","v":30},{"$f":"CntyDataLink!$DT$20","v":44},{"$f":"CntyDataLink!$DW$20","v":41},{"$f":"CntyDataLink!$DZ$20","v":0},{"$f":"SUM(C39:U39)","v":253}]
[null,"Mobile Home",{"$f":"CntyDataLink!$BV$20","v":2},{"$f":"CntyDataLink!$BY$20","v":0},{"$f":"CntyDataLink!$CB$20","v":0},{"$f":"CntyDataLink!$CE$20","v":0},{"$f":"CntyDataLink!$CH$20","v":0},{"$f":"CntyDataLink!$CK$20","v":0},{"$f":"CntyDataLink!$CN$20","v":0},{"$f":"CntyDataLink!$CQ$20","v":0},{"$f":"CntyDataLink!$CT$20","v":0},{"$f":"CntyDataLink!$CW$20","v":0},{"$f":"CntyDataLink!$CZ$20","v":0},{"$f":"CntyDataLink!$DC$20","v":0},{"$f":"CntyDataLink!$DF$20","v":0},{"$f":"CntyDataLink!$DI$20","v":0},{"$f":"CntyDataLink!$DL$20","v":0},{"$f":"CntyDataLink!$DO$20","v":0},{"$f":"CntyDataLink!$DR$20","v":0},{"$f":"CntyDataLink!$DU$20","v":0},{"$f":"CntyDataLink!$DX$20","v":0},{"$f":"CntyDataLink!$EA$20","v":0},{"$f":"SUM(C40:U40)","v":2}]
[null,"Total",{"$f":"SUM(C38:C40)","v":76},{"$f":"SUM(D38:D40)","v":88},25,24,6,18,6,8,3,3,5,3,4,8,3,18,33,48,{"$f":"SUM(U38:U40)","v":68},20,{"$f":"SUM(W38:W40)","v":447}]

{"sheet":"EmploymentAndWages","index":11,"n_rows":115,"n_cols":14,"rows_kept":115,"cut":false,"hidden":true,"merged":[[35,1,35,2],[73,1,73,2]]}
[]
[null,{"$f":"CntyDataLink!A35","v":"Atkinson"}]
[]
[null,"EMPLOYMENT CHARACTERISTICS"]
[]
[]
[]
[]
[]
[]
[]
[]
[]
[]
[]
[]
[]
[]
[]
[]
[]
[]
[]
[]
[]
[]
[]
[]
[null,"Annual Average Covered Private Employment "]
[null,null,"Source: NH Department of Employment Security, Covered Private Employment by location of employment"]
[null,null,2009,{"$f":"C31+1","v":2010},{"$f":"D31+1","v":2011},2012,2013,2014,2015,2016,2017,2018,2019,"Total Change  "]
[null,"Goods Producing",{"$f":"IF((CntyDataLink!$BQ$25)=\"n\",NA(),IF(VALUE(CntyDataLink!$BQ$25)=\"\",NA(),VALUE(CntyDataLink!$BQ$25)))","v":221},{"$f":"IF((CntyDataLink!$BY$25)=\"n\",NA(),IF(VALUE(CntyDataLink!$BY$25)=\"\",NA(),VALUE(CntyDataLink!$BY$25)))","v":242},{"$f":"IF((CntyDataLink!$CG$25)=\"n\",NA(),IF(VALUE(CntyDataLink!$CG$25)=\"\",NA(),VALUE(CntyDataLink!$CG$25)))","v":286},{"$f":"IF((CntyDataLink!$CO$25)=\"n\",NA(),IF(VALUE(CntyDataLink!$CO$25)=\"\",NA(),VALUE(CntyDataLink!$CO$25)))","v":404},{"$f":"IF((CntyDataLink!$CW$25)=\"n\",NA(),IF(VALUE(CntyDataLink!$CW$25)=\"\",NA(),VALUE(CntyDataLink!$CW$25)))","v":416},{"$f":"IF((CntyDataLink!$DE$25)=\"n\",NA(),IF(VALUE(CntyDataLink!$DE$25)=\"\",NA(),VALUE(CntyDataLink!$DE$25)))","v":413},{"$f":"IF((CntyDataLink!$DM$25)=\"n\",NA(),IF(VALUE(CntyDataLink!$DM$25)=\"\",NA(),VALUE(CntyDataLink!$DM$25)))","v":381},{"$f":"IF((CntyDataLink!$DU$25)=\"n\",NA(),IF(VALUE(CntyDataLink!$DU$25)=\"\",NA(),VALUE(CntyDataLink!$DU$25)))","v":386},{"$f":"IF((CntyDataLink!$EC$25)=\"n\",NA(),IF(VALUE(CntyDataLink!$EC$25)=\"\",NA(),VALUE(CntyDataLink!$EC$25)))","v":407},{"$f":"IF((CntyDataLink!$EK$25)=\"n\",NA(),IF(VALUE(CntyDataLink!$EK$25)=\"\",NA(),VALUE(CntyDataLink!$EK$25)))","v":386},{"$f":"IF((CntyDataLink!$ET$25)=\"n\",NA(),IF(VALUE(CntyDataLink!$ET$25)=\"\",NA(),VALUE(CntyDataLink!$ET$25)))","v":374},{"$f":"$M32-C32","v":153}]
[null,"Service Providing",{"$f":"IF((CntyDataLink!$BR$25)=\"n\",NA(),IF(VALUE(CntyDataLink!$BR$25)=\"\",NA(),VALUE(CntyDataLink!$BR$25)))","v":636},{"$f":"IF((CntyDataLink!$BZ$25)=\"n\",NA(),IF(VALUE(CntyDataLink!$BZ$25)=\"\",NA(),VALUE(CntyDataLink!$BZ$25)))","v":642},{"$f":"IF((CntyDataLink!$CH$25)=\"n\",NA(),IF(VALUE(CntyDataLink!$CH$25)=\"\",NA(),VALUE(CntyDataLink!$CH$25)))","v":608},{"$f":"IF((CntyDataLink!$CP$25)=\"n\",NA(),IF(VALUE(CntyDataLink!$CP$25)=\"\",NA(),VALUE(CntyDataLink!$CP$25)))","v":641},{"$f":"IF((CntyDataLink!$CX$25)=\"n\",NA(),IF(VALUE(CntyDataLink!$CX$25)=\"\",NA(),VALUE(CntyDataLink!$CX$25)))","v":682},{"$f":"IF((CntyDataLink!$DF$25)=\"n\",NA(),IF(VALUE(CntyDataLink!$DF$25)=\"\",NA(),VALUE(CntyDataLink!$DF$25)))","v":716},{"$f":"IF((CntyDataLink!$DN$25)=\"n\",NA(),IF(VALUE(CntyDataLink!$DN$25)=\"\",NA(),VALUE(CntyDataLink!$DN$25)))","v":733},{"$f":"IF((CntyDataLink!$DV$25)=\"n\",NA(),IF(VALUE(CntyDataLink!$DV$25)=\"\",NA(),VALUE(CntyDataLink!$DV$25)))","v":742},{"$f":"IF((CntyDataLink!$ED$25)=\"n\",NA(),IF(VALUE(CntyDataLink!$ED$25)=\"\",NA(),VALUE(CntyDataLink!$ED$25)))","v":818},{"$f":"IF((CntyDataLink!$EL$25)=\"n\",NA(),IF(VALUE(CntyDataLink!$EL$25)=\"\",NA(),VALUE(CntyDataLink!$EL$25)))","v":783},{"$f":"IF((CntyDataLink!$EU$25)=\"n\",NA(),IF(VALUE(CntyDataLink!$EU$25)=\"\",NA(),VALUE(CntyDataLink!$EU$25)))","v":823},{"$f":"$M33-C33","v":187}]
[null,"Total Private Emp",{"$f":"IF((CntyDataLink!$BP$25)=\"n\",NA(),IF(VALUE(CntyDataLink!$BP$25)=\"\",NA(),VALUE(CntyDataLink!$BP$25)))","v":856},{"$f":"IF((CntyDataLink!$BX$25)=\"n\",NA(),IF(VALUE(CntyDataLink!$BX$25)=\"\",NA(),VALUE(CntyDataLink!$BX$25)))","v":884},{"$f":"IF((CntyDataLink!$CF$25)=\"n\",NA(),IF(VALUE(CntyDataLink!$CF$25)=\"\",NA(),VALUE(CntyDataLink!$CF$25)))","v":893},{"$f":"IF((CntyDataLink!$CN$25)=\"n\",NA(),IF(VALUE(CntyDataLink!$CN$25)=\"\",NA(),VALUE(CntyDataLink!$CN$25)))","v":1046},{"$f":"IF((CntyDataLink!$CV$25)=\"n\",NA(),IF(VALUE(CntyDataLink!$CV$25)=\"\",NA(),VALUE(CntyDataLink!$CV$25)))","v":1098},{"$f":"IF((CntyDataLink!$DD$25)=\"n\",NA(),IF(VALUE(CntyDataLink!$DD$25)=\"\",NA(),VALUE(CntyDataLink!$DD$25)))","v":1130},{"$f":"IF((CntyDataLink!$DL$25)=\"n\",NA(),IF(VALUE(CntyDataLink!$DL$25)=\"\",NA(),VALUE(CntyDataLink!$DL$25)))","v":1114},{"$f":"IF((CntyDataLink!$DT$25)=\"n\",NA(),IF(VALUE(CntyDataLink!$DT$25)=\"\",NA(),VALUE(CntyDataLink!$DT$25)))","v":1128},{"$f":"IF((CntyDataLink!$EB$25)=\"n\",NA(),IF(VALUE(CntyDataLink!$EB$25)=\"\",NA(),VALUE(CntyDataLink!$EB$25)))","v":1226},{"$f":"IF((CntyDataLink!$EJ$25)=\"n\",NA(),IF(VALUE(CntyDataLink!$EJ$25)=\"\",NA(),VALUE(CntyDataLink!$EJ$25)))","v":1169},{"$f":"IF((CntyDataLink!$ER$25)=\"n\",NA(),IF(VALUE(CntyDataLink!$ER$25)=\"\",NA(),VALUE(CntyDataLink!$ER$25)))","v":1197},{"$f":"$M34-C34","v":341}]
[]
[null,"% Change from prior Year",null,"09-10","10-11","11-12","12-13","13-14","14-15","15-16","16-17","17-18","18-19","Total % Change"]
[null,"Goods Producing",null,{"$f":"(D32-C32)/C32","v":9.5022624434389136E-2},0.18181818181818182,0.41258741258741261,2.9702970297029702E-2,-7.2115384615384619E-3,{"$f":"(I32-H32)/H32","v":-7.7481840193704604E-2},1.3123359580052493E-2,5.4404145077720206E-2,-5.1597051597051594E-2,-3.1088082901554404E-2,{"$f":"N32/C32","v":0.69230769230769229}]
[null,"Service Providing",null,9.433962264150943E-3,-5.2959501557632398E-2,5.4276315789473686E-2,{"$f":"(G33-F33)/F33","v":6.3962558502340089E-2},4.9853372434017593E-2,2.3743016759776536E-2,1.227830832196453E-2,0.10242587601078167,-4.2787286063569685E-2,5.108556832694764E-2,{"$f":"N33/C33","v":0.29402515723270439}]
[null,"Total Private Emp",null,3.2710280373831772E-2,1.0180995475113122E-2,0.17133258678611421,4.9713193116634802E-2,2.9143897996357013E-2,-1.415929203539823E-2,1.2567324955116697E-2,8.6879432624113476E-2,-4.6492659053833603E-2,2.3952095808383235E-2,{"$f":"N34/C34","v":0.39836448598130841}]
[]
[]
[null,"EMPLOYMENT CHARACTERISTICS"]
[]
[]
[]
[]
[]
[]
[]
[]
[]
[]
[]
[]
[]
[]
[]
[]
[]
[]
[]
[]
[]
[]
[]
[]
[null,"Covered Private Employment Average Wages",null,null,null,"Source: NH Department of Employment Security, Covered Private Employment"]
[]
[null,null,2009,{"$f":"C69+1","v":2010},{"$f":"D69+1","v":2011},{"$f":"E69+1","v":2012},2013,2014,2015,2016,2017,2018,2019,"Total $ Change"]
[null,"Goods Producing",{"$f":"IF((CntyDataLink!$BU$25)=\"n\",NA(),IF(VALUE(CntyDataLink!$BU$25)=\"\",NA(),VALUE(CntyDataLink!$BU$25)))","v":1100.69},{"$f":"IF((CntyDataLink!$CC$25)=\"n\",NA(),IF(VALUE(CntyDataLink!$CC$25)=\"\",NA(),VALUE(CntyDataLink!$CC$25)))","v":1069.5999999999999},{"$f":"IF((CntyDataLink!$CK$25)=\"n\",NA(),IF(VALUE(CntyDataLink!$CK$25)=\"\",NA(),VALUE(CntyDataLink!$CK$25)))","v":1089.76},{"$f":"IF((CntyDataLink!$CS$25)=\"n\",NA(),IF(VALUE(CntyDataLink!$CS$25)=\"\",NA(),VALUE(CntyDataLink!$CS$25)))","v":994.08},{"$f":"IF((CntyDataLink!$DA$25)=\"n\",NA(),IF(VALUE(CntyDataLink!$DA$25)=\"\",NA(),VALUE(CntyDataLink!$DA$25)))","v":943.5},{"$f":"IF((CntyDataLink!$DI$25)=\"n\",NA(),IF(VALUE(CntyDataLink!$DI$25)=\"\",NA(),VALUE(CntyDataLink!$DI$25)))","v":1041.71},{"$f":"IF((CntyDataLink!$DQ$25)=\"n\",NA(),IF(VALUE(CntyDataLink!$DQ$25)=\"\",NA(),VALUE(CntyDataLink!$DQ$25)))","v":1074.8599999999999},{"$f":"IF((CntyDataLink!$DY$25)=\"n\",NA(),IF(VALUE(CntyDataLink!$DY$25)=\"\",NA(),VALUE(CntyDataLink!$DY$25)))","v":1193.6500000000001},{"$f":"IF((CntyDataLink!$EG$25)=\"n\",NA(),IF(VALUE(CntyDataLink!$EG$25)=\"\",NA(),VALUE(CntyDataLink!$EG$25)))","v":1242.45},{"$f":"IF((CntyDataLink!$EO$25)=\"n\",NA(),IF(VALUE(CntyDataLink!$EO$25)=\"\",NA(),VALUE(CntyDataLink!$EO$25)))","v":1256.43},{"$f":"IF((CntyDataLink!$EY$25)=\"n\",NA(),IF(VALUE(CntyDataLink!$EY$25)=\"\",NA(),VALUE(CntyDataLink!$EY$25)))","v":1212.76},{"$f":"M70-C70","v":112.06999999999994}]
[null,"Service Providing",{"$f":"IF((CntyDataLink!$BV$25)=\"n\",NA(),IF(VALUE(CntyDataLink!$BV$25)=\"\",NA(),VALUE(CntyDataLink!$BV$25)))","v":790.55},{"$f":"IF((CntyDataLink!$CD$25)=\"n\",NA(),IF(VALUE(CntyDataLink!$CD$25)=\"\",NA(),VALUE(CntyDataLink!$CD$25)))","v":816.24},{"$f":"IF((CntyDataLink!$CL$25)=\"n\",NA(),IF(VALUE(CntyDataLink!$CL$25)=\"\",NA(),VALUE(CntyDataLink!$CL$25)))","v":819.77},{"$f":"IF((CntyDataLink!$CT$25)=\"n\",NA(),IF(VALUE(CntyDataLink!$CT$25)=\"\",NA(),VALUE(CntyDataLink!$CT$25)))","v":799.93},{"$f":"IF((CntyDataLink!$DB$25)=\"n\",NA(),IF(VALUE(CntyDataLink!$DB$25)=\"\",NA(),VALUE(CntyDataLink!$DB$25)))","v":836.57},{"$f":"IF((CntyDataLink!$DJ$25)=\"n\",NA(),IF(VALUE(CntyDataLink!$DJ$25)=\"\",NA(),VALUE(CntyDataLink!$DJ$25)))","v":896.53},{"$f":"IF((CntyDataLink!$DR$25)=\"n\",NA(),IF(VALUE(CntyDataLink!$DR$25)=\"\",NA(),VALUE(CntyDataLink!$DR$25)))","v":931.82},{"$f":"IF((CntyDataLink!$DZ$25)=\"n\",NA(),IF(VALUE(CntyDataLink!$DZ$25)=\"\",NA(),VALUE(CntyDataLink!$DZ$25)))","v":889.25},{"$f":"IF((CntyDataLink!EG$25)=\"n\",NA(),IF(VALUE(CntyDataLink!$EH$25)=\"\",NA(),VALUE(CntyDataLink!$EH$25)))","v":861.61},{"$f":"IF((CntyDataLink!EO$25)=\"n\",NA(),IF(VALUE(CntyDataLink!$EP$25)=\"\",NA(),VALUE(CntyDataLink!$EP$25)))","v":887.13},{"$f":"IF((CntyDataLink!EZ$25)=\"n\",NA(),IF(VALUE(CntyDataLink!$EZ$25)=\"\",NA(),VALUE(CntyDataLink!$EZ$25)))","v":909.88},{"$f":"M71-C71","v":119.33000000000004}]
[null,"Total Private Emp",{"$f":"IF((CntyDataLink!$BT$25)=\"n\",NA(),IF(VALUE(CntyDataLink!$BT$25)=\"\",NA(),VALUE(CntyDataLink!$BT$25)))","v":870.43},{"$f":"IF((CntyDataLink!$CB$25)=\"n\",NA(),IF(VALUE(CntyDataLink!$CB$25)=\"\",NA(),VALUE(CntyDataLink!$CB$25)))","v":885.51},{"$f":"IF((CntyDataLink!$CJ$25)=\"n\",NA(),IF(VALUE(CntyDataLink!$CJ$25)=\"\",NA(),VALUE(CntyDataLink!$CJ$25)))","v":906.06},{"$f":"IF((CntyDataLink!$CR$25)=\"n\",NA(),IF(VALUE(CntyDataLink!$CR$25)=\"\",NA(),VALUE(CntyDataLink!$CR$25)))","v":874.97},{"$f":"IF((CntyDataLink!$CZ$25)=\"n\",NA(),IF(VALUE(CntyDataLink!$CZ$25)=\"\",NA(),VALUE(CntyDataLink!$CZ$25)))","v":877.09},{"$f":"IF((CntyDataLink!$DH$25)=\"n\",NA(),IF(VALUE(CntyDataLink!$DH$25)=\"\",NA(),VALUE(CntyDataLink!$DH$25)))","v":949.67},{"$f":"IF((CntyDataLink!$DP$25)=\"n\",NA(),IF(VALUE(CntyDataLink!$DP$25)=\"\",NA(),VALUE(CntyDataLink!$DP$25)))","v":980.76},{"$f":"IF((CntyDataLink!$DX$25)=\"n\",NA(),IF(VALUE(CntyDataLink!$DX$25)=\"\",NA(),VALUE(CntyDataLink!$DX$25)))","v":993.46},{"$f":"IF((CntyDataLink!$EF$25)=\"n\",NA(),IF(VALUE(CntyDataLink!$EF$25)=\"\",NA(),VALUE(CntyDataLink!$EF$25)))","v":988.17},{"$f":"IF((CntyDataLink!$EN$25)=\"n\",NA(),IF(VALUE(CntyDataLink!$EN$25)=\"\",NA(),VALUE(CntyDataLink!$EN$25)))","v":1009.02},{"$f":"IF((CntyDataLink!$EW$25)=\"n\",NA(),IF(VALUE(CntyDataLink!$EW$25)=\"\",NA(),VALUE(CntyDataLink!$EW$25)))","v":1004.54},{"$f":"M72-C72","v":134.11000000000001}]
[]
[null,"% Change from prior Year",null,{"$f":"D36","v":"09-10"},"10-11","11-12","12-13","13-14","14-15","15-16","16-17","17-18","18-19","Total % Change"]
[null,"Goods Producing",null,{"$f":"(D70-C70)/C70","v":-2.8245918469323918E-2},1.8848167539267095E-2,-8.779914843635292E-2,-5.0881216803476619E-2,0.10409114997350295,3.1822676176670915E-2,0.1105167184563573,4.0883005906253884E-2,1.1251961849571425E-2,-3.4757208917329314E-2,{"$f":"N70/C70","v":0.1018179505582861}]
[null,"Service Providing",null,3.249636329137949E-2,4.3247084190923902E-3,-2.4201910291911186E-2,4.5804007850687063E-2,7.1673619661235657E-2,3.9362876869708852E-2,-4.5684788907729014E-2,-3.1082372786055648E-2,2.9618969139169671E-2,2.5644494042586768E-2,{"$f":"N71/C71","v":0.15094554424135101}]
[null,"Total Private Emp",null,1.7324770515722163E-2,2.3206965477521376E-2,-3.4313400878528924E-2,2.4229402150930941E-3,8.2750914957415919E-2,3.2737687828403583E-2,1.2949141482115957E-2,-5.3248243512572999E-3,2.1099608366981413E-2,-4.4399516362411233E-3,{"$f":"N72/C72","v":0.15407327412887886}]
[]
[]
[null,"LABOR FORCE AND UNEMPLOYMENT CHARACTERISTICS"]
[]
[]
[]
[]
[]
[]
[]
[]
[]
[]
[]
[]
[]
[]
[]
[]
[]
[]
[]
[]
[]
[]
[]
[]
[]
[]
[]
[]
[]
[null,"Annual Average Labor Force and Unemployment ",null,null,null,"Source: NH Department of Employment Security, Local Area Unemployment Statistics"]
[null,null,2009,{"$f":"C111+1","v":2010},{"$f":"D111+1","v":2011},2012,2013,2014,2015,2016,2017,2018,2019,"Total Change  "]
[null,"Civilian Labor Force",{"$f":"CntyDataLink!$BZ$30","v":{"$error":"#N/A"}},{"$f":"CntyDataLink!$CD$30","v":{"$error":"#N/A"}},{"$f":"CntyDataLink!$CH$30","v":{"$error":"#N/A"}},{"$f":"CntyDataLink!$CL$30","v":{"$error":"#N/A"}},{"$f":"CntyDataLink!$CP$30","v":{"$error":"#N/A"}},{"$f":"CntyDataLink!$CT$30","v":{"$error":"#N/A"}},{"$f":"CntyDataLink!$CX$30","v":{"$error":"#N/A"}},{"$f":"CntyDataLink!$DB$30","v":{"$error":"#N/A"}},{"$f":"CntyDataLink!$DF$30","v":{"$error":"#N/A"}},{"$f":"CntyDataLink!$DJ$30","v":{"$error":"#N/A"}},{"$f":"CntyDataLink!$DN$30","v":{"$error":"#N/A"}},{"$f":"M112-$C112","v":{"$error":"#N/A"}}]
[null,"Employed Labor Force",{"$f":"CntyDataLink!$CA$30","v":{"$error":"#N/A"}},{"$f":"CntyDataLink!$CE$30","v":{"$error":"#N/A"}},{"$f":"CntyDataLink!$CI$30","v":{"$error":"#N/A"}},{"$f":"CntyDataLink!$CM$30","v":{"$error":"#N/A"}},{"$f":"CntyDataLink!$CQ$30","v":{"$error":"#N/A"}},{"$f":"CntyDataLink!$CU$30","v":{"$error":"#N/A"}},{"$f":"CntyDataLink!$CY$30","v":{"$error":"#N/A"}},{"$f":"CntyDataLink!$DC$30","v":{"$error":"#N/A"}},{"$f":"CntyDataLink!$DG$30","v":{"$error":"#N/A"}},{"$f":"CntyDataLink!$DK$30","v":{"$error":"#N/A"}},{"$f":"CntyDataLink!O$30","v":{"$error":"#N/A"}},{"$f":"M113-$C113","v":{"$error":"#N/A"}}]
[null,"Unemployed Labor Force",{"$f":"CntyDataLink!$CB$30","v":{"$error":"#N/A"}},{"$f":"CntyDataLink!$CF$30","v":{"$error":"#N/A"}},{"$f":"CntyDataLink!$CJ$30","v":{"$error":"#N/A"}},{"$f":"CntyDataLink!$CN$30","v":{"$error":"#N/A"}},{"$f":"CntyDataLink!$CR$30","v":{"$error":"#N/A"}},{"$f":"CntyDataLink!$CV$30","v":{"$error":"#N/A"}},{"$f":"CntyDataLink!$CZ$30","v":{"$error":"#N/A"}},{"$f":"CntyDataLink!$DD$30","v":{"$error":"#N/A"}},{"$f":"CntyDataLink!$DH$30","v":{"$error":"#N/A"}},{"$f":"CntyDataLink!$DL$30","v":{"$error":"#N/A"}},{"$f":"CntyDataLink!$DP$30","v":{"$error":"#N/A"}},{"$f":"M114-$C114","v":{"$error":"#N/A"}}]
[null,"Unemployment Rate",{"$f":"CntyDataLink!$CC$30","v":{"$error":"#N/A"}},{"$f":"CntyDataLink!$CG$30","v":{"$error":"#N/A"}},{"$f":"CntyDataLink!$CK$30","v":{"$error":"#N/A"}},{"$f":"CntyDataLink!$CO$30","v":{"$error":"#N/A"}},{"$f":"CntyDataLink!$CS$30","v":{"$error":"#N/A"}},{"$f":"CntyDataLink!$CW$30","v":{"$error":"#N/A"}},{"$f":"CntyDataLink!$DA$30","v":{"$error":"#N/A"}},{"$f":"CntyDataLink!$DE$30","v":{"$error":"#N/A"}},{"$f":"CntyDataLink!$DI$30","v":{"$error":"#N/A"}},{"$f":"CntyDataLink!$DM$30","v":{"$error":"#N/A"}},{"$f":"CntyDataLink!$DQ$30","v":{"$error":"#N/A"}}]

{"sheet":"SmallTownEmploymentandWages","index":12,"n_rows":77,"n_cols":14,"rows_kept":77,"cut":false,"hidden":true,"merged":[[35,1,35,2],[66,1,67,3],[73,1,73,2]]}
[]
[null,{"$f":"CntyDataLink!A35","v":"Atkinson"}]
[]
[null,"EMPLOYMENT CHARACTERISTICS"]
[]
[]
[]
[]
[]
[]
[]
[]
[]
[]
[]
[]
[]
[]
[]
[]
[]
[]
[]
[]
[]
[]
[]
[]
[null,"Annual Average Covered Private Employment "]
[null,null,null,"Source: NH Department of Employment Security, Covered Private Employment by location of employment"]
[null,null,2009,{"$f":"C31+1","v":2010},{"$f":"D31+1","v":2011},2012,2013,2014,2015,2016,2017,2018,2019,"Total Change  "]
[null,"Goods Producing",{"$f":"IF((CntyDataLink!$BQ$25)=\"n\",NA(),IF(VALUE(CntyDataLink!$BQ$25)=\"\",NA(),VALUE(CntyDataLink!$BQ$25)))","v":221},{"$f":"IF((CntyDataLink!$BY$25)=\"n\",NA(),IF(VALUE(CntyDataLink!$BY$25)=\"\",NA(),VALUE(CntyDataLink!$BY$25)))","v":242},{"$f":"IF((CntyDataLink!$CG$25)=\"n\",NA(),IF(VALUE(CntyDataLink!$CG$25)=\"\",NA(),VALUE(CntyDataLink!$CG$25)))","v":286},{"$f":"IF((CntyDataLink!$CO$25)=\"n\",NA(),IF(VALUE(CntyDataLink!$CO$25)=\"\",NA(),VALUE(CntyDataLink!$CO$25)))","v":404},{"$f":"IF((CntyDataLink!$CW$25)=\"n\",NA(),IF(VALUE(CntyDataLink!$CW$25)=\"\",NA(),VALUE(CntyDataLink!$CW$25)))","v":416},{"$f":"IF((CntyDataLink!$DE$25)=\"n\",NA(),IF(VALUE(CntyDataLink!$DE$25)=\"\",NA(),VALUE(CntyDataLink!$DE$25)))","v":413},{"$f":"IF((CntyDataLink!$DM$25)=\"n\",NA(),IF(VALUE(CntyDataLink!$DM$25)=\"\",NA(),VALUE(CntyDataLink!$DM$25)))","v":381},{"$f":"IF((CntyDataLink!$DU$25)=\"n\",NA(),IF(VALUE(CntyDataLink!$DU$25)=\"\",NA(),VALUE(CntyDataLink!$DU$25)))","v":386},{"$f":"IF((CntyDataLink!$EC$25)=\"n\",NA(),IF(VALUE(CntyDataLink!$EC$25)=\"\",NA(),VALUE(CntyDataLink!$EC$25)))","v":407},{"$f":"IF((CntyDataLink!$EK$25)=\"n\",NA(),IF(VALUE(CntyDataLink!$EK$25)=\"\",NA(),VALUE(CntyDataLink!$EK$25)))","v":386},{"$f":"IF((CntyDataLink!$ET$25)=\"n\",NA(),IF(VALUE(CntyDataLink!$ET$25)=\"\",NA(),VALUE(CntyDataLink!$ET$25)))","v":374},{"$f":"$M32-C32","v":153}]
[null,"Service Providing",{"$f":"IF((CntyDataLink!$BR$25)=\"n\",NA(),IF(VALUE(CntyDataLink!$BR$25)=\"\",NA(),VALUE(CntyDataLink!$BR$25)))","v":636},{"$f":"IF((CntyDataLink!$BZ$25)=\"n\",NA(),IF(VALUE(CntyDataLink!$BZ$25)=\"\",NA(),VALUE(CntyDataLink!$BZ$25)))","v":642},{"$f":"IF((CntyDataLink!$CH$25)=\"n\",NA(),IF(VALUE(CntyDataLink!$CH$25)=\"\",NA(),VALUE(CntyDataLink!$CH$25)))","v":608},{"$f":"IF((CntyDataLink!$CP$25)=\"n\",NA(),IF(VALUE(CntyDataLink!$CP$25)=\"\",NA(),VALUE(CntyDataLink!$CP$25)))","v":641},{"$f":"IF((CntyDataLink!$CX$25)=\"n\",NA(),IF(VALUE(CntyDataLink!$CX$25)=\"\",NA(),VALUE(CntyDataLink!$CX$25)))","v":682},{"$f":"IF((CntyDataLink!$DF$25)=\"n\",NA(),IF(VALUE(CntyDataLink!$DF$25)=\"\",NA(),VALUE(CntyDataLink!$DF$25)))","v":716},{"$f":"IF((CntyDataLink!$DN$25)=\"n\",NA(),IF(VALUE(CntyDataLink!$DN$25)=\"\",NA(),VALUE(CntyDataLink!$DN$25)))","v":733},{"$f":"IF((CntyDataLink!$DV$25)=\"n\",NA(),IF(VALUE(CntyDataLink!$DV$25)=\"\",NA(),VALUE(CntyDataLink!$DV$25)))","v":742},{"$f":"IF((CntyDataLink!$ED$25)=\"n\",NA(),IF(VALUE(CntyDataLink!$ED$25)=\"\",NA(),VALUE(CntyDataLink!$ED$25)))","v":818},{"$f":"IF((CntyDataLink!$EL$25)=\"n\",NA(),IF(VALUE(CntyDataLink!$EL$25)=\"\",NA(),VALUE(CntyDataLink!$EL$25)))","v":783},{"$f":"IF((CntyDataLink!$EU$25)=\"n\",NA(),IF(VALUE(CntyDataLink!$EU$25)=\"\",NA(),VALUE(CntyDataLink!$EU$25)))","v":823},{"$f":"$M33-C33","v":187}]
[null,"Total Private Emp",{"$f":"IF((CntyDataLink!$BP$25)=\"n\",NA(),IF(VALUE(CntyDataLink!$BP$25)=\"\",NA(),VALUE(CntyDataLink!$BP$25)))","v":856},{"$f":"IF((CntyDataLink!$BX$25)=\"n\",NA(),IF(VALUE(CntyDataLink!$BX$25)=\"\",NA(),VALUE(CntyDataLink!$BX$25)))","v":884},{"$f":"IF((CntyDataLink!$CF$25)=\"n\",NA(),IF(VALUE(CntyDataLink!$CF$25)=\"\",NA(),VALUE(CntyDataLink!$CF$25)))","v":893},{"$f":"IF((CntyDataLink!$CN$25)=\"n\",NA(),IF(VALUE(CntyDataLink!$CN$25)=\"\",NA(),VALUE(CntyDataLink!$CN$25)))","v":1046},{"$f":"IF((CntyDataLink!$CV$25)=\"n\",NA(),IF(VALUE(CntyDataLink!$CV$25)=\"\",NA(),VALUE(CntyDataLink!$CV$25)))","v":1098},{"$f":"IF((CntyDataLink!$DD$25)=\"n\",NA(),IF(VALUE(CntyDataLink!$DD$25)=\"\",NA(),VALUE(CntyDataLink!$DD$25)))","v":1130},{"$f":"IF((CntyDataLink!$DL$25)=\"n\",NA(),IF(VALUE(CntyDataLink!$DL$25)=\"\",NA(),VALUE(CntyDataLink!$DL$25)))","v":1114},{"$f":"IF((CntyDataLink!$DT$25)=\"n\",NA(),IF(VALUE(CntyDataLink!$DT$25)=\"\",NA(),VALUE(CntyDataLink!$DT$25)))","v":1128},{"$f":"IF((CntyDataLink!$EB$25)=\"n\",NA(),IF(VALUE(CntyDataLink!$EB$25)=\"\",NA(),VALUE(CntyDataLink!$EB$25)))","v":1226},{"$f":"IF((CntyDataLink!$EJ$25)=\"n\",NA(),IF(VALUE(CntyDataLink!$EJ$25)=\"\",NA(),VALUE(CntyDataLink!$EJ$25)))","v":1169},{"$f":"IF((CntyDataLink!$ER$25)=\"n\",NA(),IF(VALUE(CntyDataLink!$ER$25)=\"\",NA(),VALUE(CntyDataLink!$ER$25)))","v":1197},{"$f":"$M34-C34","v":341}]
[]
[null,"% Change from prior Year",null,"09-10","10-11","11-12","12-13","13-14","14-15","15-16","16-17","17-18","18-19","Total % Change"]
[null,"Goods Producing",null,{"$f":"(D32-C32)/C32","v":9.5022624434389136E-2},0.18181818181818182,0.41258741258741261,2.9702970297029702E-2,-7.2115384615384619E-3,{"$f":"(I32-H32)/H32","v":-7.7481840193704604E-2},1.3123359580052493E-2,5.4404145077720206E-2,-5.1597051597051594E-2,-3.1088082901554404E-2,{"$f":"N32/C32","v":0.69230769230769229}]
[null,"Service Providing",null,9.433962264150943E-3,-5.2959501557632398E-2,5.4276315789473686E-2,{"$f":"(G33-F33)/F33","v":6.3962558502340089E-2},4.9853372434017593E-2,2.3743016759776536E-2,1.227830832196453E-2,0.10242587601078167,-4.2787286063569685E-2,5.108556832694764E-2,{"$f":"N33/C33","v":0.29402515723270439}]
[null,"Total Private Emp",null,3.2710280373831772E-2,1.0180995475113122E-2,0.17133258678611421,4.9713193116634802E-2,2.9143897996357013E-2,-1.415929203539823E-2,1.2567324955116697E-2,8.6879432624113476E-2,-4.6492659053833603E-2,2.3952095808383235E-2,{"$f":"N34/C34","v":0.39836448598130841}]
[]
[]
[null,"EMPLOYMENT CHARACTERISTICS"]
[]
[]
[]
[]
[]
[]
[]
[]
[]
[]
[]
[]
[]
[]
[]
[]
[]
[]
[]
[]
[]
[]
[]
[]
[null,"Covered Private Employment Average Wages",null,null,"Source: NH Department of Employment Security, Covered Private Employment"]
[]
[null,null,2009,{"$f":"C69+1","v":2010},{"$f":"D69+1","v":2011},{"$f":"E69+1","v":2012},2013,2014,2015,2016,2017,2018,2019,"Total $ Change"]
[null,"Goods Producing",{"$f":"IF((CntyDataLink!$BU$25)=\"n\",NA(),IF(VALUE(CntyDataLink!$BU$25)=\"\",NA(),VALUE(CntyDataLink!$BU$25)))","v":1100.69},{"$f":"IF((CntyDataLink!$CC$25)=\"n\",NA(),IF(VALUE(CntyDataLink!$CC$25)=\"\",NA(),VALUE(CntyDataLink!$CC$25)))","v":1069.5999999999999},{"$f":"IF((CntyDataLink!$CK$25)=\"n\",NA(),IF(VALUE(CntyDataLink!$CK$25)=\"\",NA(),VALUE(CntyDataLink!$CK$25)))","v":1089.76},{"$f":"IF((CntyDataLink!$CS$25)=\"n\",NA(),IF(VALUE(CntyDataLink!$CS$25)=\"\",NA(),VALUE(CntyDataLink!$CS$25)))","v":994.08},{"$f":"IF((CntyDataLink!$DA$25)=\"n\",NA(),IF(VALUE(CntyDataLink!$DA$25)=\"\",NA(),VALUE(CntyDataLink!$DA$25)))","v":943.5},{"$f":"IF((CntyDataLink!$DI$25)=\"n\",NA(),IF(VALUE(CntyDataLink!$DI$25)=\"\",NA(),VALUE(CntyDataLink!$DI$25)))","v":1041.71},{"$f":"IF((CntyDataLink!$DQ$25)=\"n\",NA(),IF(VALUE(CntyDataLink!$DQ$25)=\"\",NA(),VALUE(CntyDataLink!$DQ$25)))","v":1074.8599999999999},{"$f":"IF((CntyDataLink!$DY$25)=\"n\",NA(),IF(VALUE(CntyDataLink!$DY$25)=\"\",NA(),VALUE(CntyDataLink!$DY$25)))","v":1193.6500000000001},{"$f":"IF((CntyDataLink!$EG$25)=\"n\",NA(),IF(VALUE(CntyDataLink!$EG$25)=\"\",NA(),VALUE(CntyDataLink!$EG$25)))","v":1242.45},{"$f":"IF((CntyDataLink!$EO$25)=\"n\",NA(),IF(VALUE(CntyDataLink!$EO$25)=\"\",NA(),VALUE(CntyDataLink!$EO$25)))","v":1256.43},{"$f":"IF((CntyDataLink!$EY$25)=\"n\",NA(),IF(VALUE(CntyDataLink!$EY$25)=\"\",NA(),VALUE(CntyDataLink!$EY$25)))","v":1212.76},{"$f":"M70-C70","v":112.06999999999994}]
[null,"Service Providing",{"$f":"IF((CntyDataLink!$BV$25)=\"n\",NA(),IF(VALUE(CntyDataLink!$BV$25)=\"\",NA(),VALUE(CntyDataLink!$BV$25)))","v":790.55},{"$f":"IF((CntyDataLink!$CD$25)=\"n\",NA(),IF(VALUE(CntyDataLink!$CD$25)=\"\",NA(),VALUE(CntyDataLink!$CD$25)))","v":816.24},{"$f":"IF((CntyDataLink!$CL$25)=\"n\",NA(),IF(VALUE(CntyDataLink!$CL$25)=\"\",NA(),VALUE(CntyDataLink!$CL$25)))","v":819.77},{"$f":"IF((CntyDataLink!$CT$25)=\"n\",NA(),IF(VALUE(CntyDataLink!$CT$25)=\"\",NA(),VALUE(CntyDataLink!$CT$25)))","v":799.93},{"$f":"IF((CntyDataLink!$DB$25)=\"n\",NA(),IF(VALUE(CntyDataLink!$DB$25)=\"\",NA(),VALUE(CntyDataLink!$DB$25)))","v":836.57},{"$f":"IF((CntyDataLink!$DJ$25)=\"n\",NA(),IF(VALUE(CntyDataLink!$DJ$25)=\"\",NA(),VALUE(CntyDataLink!$DJ$25)))","v":896.53},{"$f":"IF((CntyDataLink!$DR$25)=\"n\",NA(),IF(VALUE(CntyDataLink!$DR$25)=\"\",NA(),VALUE(CntyDataLink!$DR$25)))","v":931.82},{"$f":"IF((CntyDataLink!$DZ$25)=\"n\",NA(),IF(VALUE(CntyDataLink!$DZ$25)=\"\",NA(),VALUE(CntyDataLink!$DZ$25)))","v":889.25},{"$f":"IF((CntyDataLink!EG$25)=\"n\",NA(),IF(VALUE(CntyDataLink!$EH$25)=\"\",NA(),VALUE(CntyDataLink!$EH$25)))","v":861.61},{"$f":"IF((CntyDataLink!EO$25)=\"n\",NA(),IF(VALUE(CntyDataLink!$EP$25)=\"\",NA(),VALUE(CntyDataLink!$EP$25)))","v":887.13},{"$f":"IF((CntyDataLink!EZ$25)=\"n\",NA(),IF(VALUE(CntyDataLink!$EZ$25)=\"\",NA(),VALUE(CntyDataLink!$EZ$25)))","v":909.88},{"$f":"M71-C71","v":119.33000000000004}]
[null,"Total Private Emp",{"$f":"IF((CntyDataLink!$BT$25)=\"n\",NA(),IF(VALUE(CntyDataLink!$BT$25)=\"\",NA(),VALUE(CntyDataLink!$BT$25)))","v":870.43},{"$f":"IF((CntyDataLink!$CB$25)=\"n\",NA(),IF(VALUE(CntyDataLink!$CB$25)=\"\",NA(),VALUE(CntyDataLink!$CB$25)))","v":885.51},{"$f":"IF((CntyDataLink!$CJ$25)=\"n\",NA(),IF(VALUE(CntyDataLink!$CJ$25)=\"\",NA(),VALUE(CntyDataLink!$CJ$25)))","v":906.06},{"$f":"IF((CntyDataLink!$CR$25)=\"n\",NA(),IF(VALUE(CntyDataLink!$CR$25)=\"\",NA(),VALUE(CntyDataLink!$CR$25)))","v":874.97},{"$f":"IF((CntyDataLink!$CZ$25)=\"n\",NA(),IF(VALUE(CntyDataLink!$CZ$25)=\"\",NA(),VALUE(CntyDataLink!$CZ$25)))","v":877.09},{"$f":"IF((CntyDataLink!$DH$25)=\"n\",NA(),IF(VALUE(CntyDataLink!$DH$25)=\"\",NA(),VALUE(CntyDataLink!$DH$25)))","v":949.67},{"$f":"IF((CntyDataLink!$DP$25)=\"n\",NA(),IF(VALUE(CntyDataLink!$DP$25)=\"\",NA(),VALUE(CntyDataLink!$DP$25)))","v":980.76},{"$f":"IF((CntyDataLink!$DX$25)=\"n\",NA(),IF(VALUE(CntyDataLink!$DX$25)=\"\",NA(),VALUE(CntyDataLink!$DX$25)))","v":993.46},{"$f":"IF((CntyDataLink!$EF$25)=\"n\",NA(),IF(VALUE(CntyDataLink!$EF$25)=\"\",NA(),VALUE(CntyDataLink!$EF$25)))","v":988.17},{"$f":"IF((CntyDataLink!$EN$25)=\"n\",NA(),IF(VALUE(CntyDataLink!$EN$25)=\"\",NA(),VALUE(CntyDataLink!$EN$25)))","v":1009.02},{"$f":"IF((CntyDataLink!$EW$25)=\"n\",NA(),IF(VALUE(CntyDataLink!$EW$25)=\"\",NA(),VALUE(CntyDataLink!$EW$25)))","v":1004.54},{"$f":"M72-C72","v":134.11000000000001}]
[]
[null,"% Change from prior Year",null,{"$f":"D36","v":"09-10"},"10-11","11-12","12-13","13-14","14-15","15-16","16-17","17-18","18-19","Total % Change"]
[null,"Goods Producing",null,{"$f":"(D70-C70)/C70","v":-2.8245918469323918E-2},1.8848167539267095E-2,-8.779914843635292E-2,-5.0881216803476619E-2,0.10409114997350295,3.1822676176670915E-2,0.1105167184563573,4.0883005906253884E-2,1.1251961849571425E-2,-3.4757208917329314E-2,{"$f":"N70/C70","v":0.1018179505582861}]
[null,"Service Providing",null,3.249636329137949E-2,4.3247084190923902E-3,-2.4201910291911186E-2,4.5804007850687063E-2,7.1673619661235657E-2,3.9362876869708852E-2,-4.5684788907729014E-2,-3.1082372786055648E-2,2.9618969139169671E-2,2.5644494042586768E-2,{"$f":"N71/C71","v":0.15094554424135101}]
[null,"Total Private Emp",null,1.7324770515722163E-2,2.3206965477521376E-2,-3.4313400878528924E-2,2.4229402150930941E-3,8.2750914957415919E-2,3.2737687828403583E-2,1.2949141482115957E-2,-5.3248243512572999E-3,2.1099608366981413E-2,-4.4399516362411233E-3,{"$f":"N72/C72","v":0.15407327412887886}]

{"sheet":"EmpVsHUxCounty","index":13,"n_rows":124,"n_cols":15,"rows_kept":124,"cut":false,"hidden":true,"merged":[[64,0,64,11],[79,0,80,9]]}
[]
[{"$f":"A45","v":"Atkinson"}]
[]
[]
[]
[]
[]
[]
[]
[]
[]
[]
[]
[]
[]
[]
[]
[]
[]
[]
[]
[]
[]
[]
[]
[]
[]
[]
[]
[]
[]
[]
[]
[]
[]
[]
[]
[]
[]
[]
[]
[]
[]
["Housing Units "]
[{"$f":"CntyDataLink!A20","v":"Atkinson"}]
[null,null,null,"Source: New Hampshire Office of Strategic Initiatives"]
["Units Authorized By Permit",2008,{"$f":"B47+1","v":2009},{"$f":"C47+1","v":2010},2011,2012,2013,2014,2015,2016,2017,2018,2019]
["Single Family",{"$f":"CntyDataLink!$CR$20","v":3},{"$f":"CntyDataLink!$CU$20","v":5},{"$f":"CntyDataLink!$CX$20","v":5},{"$f":"CntyDataLink!$DA$20","v":4},{"$f":"CntyDataLink!$DD$20","v":5},{"$f":"CntyDataLink!$DG$20","v":8},{"$f":"CntyDataLink!$DJ$20","v":3},{"$f":"CntyDataLink!$DM$20","v":6},{"$f":"CntyDataLink!$DP$20","v":3},{"$f":"CntyDataLink!$DS$20","v":4},{"$f":"CntyDataLink!$DV$20","v":27},{"$f":"CntyDataLink!$DY$20","v":20}]
["Multi-family",{"$f":"CntyDataLink!$CS$20","v":0},{"$f":"CntyDataLink!$CV$20","v":-2},{"$f":"CntyDataLink!$CY$20","v":0},{"$f":"CntyDataLink!$DB$20","v":-1},{"$f":"CntyDataLink!$DE$20","v":-1},{"$f":"CntyDataLink!$DH$20","v":0},{"$f":"CntyDataLink!$DK$20","v":0},{"$f":"CntyDataLink!$DN$20","v":12},{"$f":"CntyDataLink!$DQ$20","v":30},{"$f":"CntyDataLink!$DT$20","v":44},{"$f":"CntyDataLink!$DW$20","v":41},{"$f":"CntyDataLink!$DZ$20","v":0}]
["Mobile Home",{"$f":"CntyDataLink!$CT$20","v":0},{"$f":"CntyDataLink!$CW$20","v":0},{"$f":"CntyDataLink!$CZ$20","v":0},{"$f":"CntyDataLink!$DC$20","v":0},{"$f":"CntyDataLink!$DF$20","v":0},{"$f":"CntyDataLink!$DI$20","v":0},{"$f":"CntyDataLink!$DL$20","v":0},{"$f":"CntyDataLink!$DO$20","v":0},{"$f":"CntyDataLink!$DR$20","v":0},{"$f":"CntyDataLink!$DU$20","v":0},{"$f":"CntyDataLink!$DX$20","v":0},{"$f":"CntyDataLink!$EA$20","v":0}]
["Total",{"$f":"SUM(B48:B50)","v":3},3,5,3,4,8,3,18,33,48,{"$f":"SUM(L48:L50)","v":68},{"$f":"SUM(M48:M50)","v":20}]
[]
["Total Housing Units",2008,{"$f":"B53+1","v":2009},2010,"2010 Census",2011,{"$f":"F53+1","v":2012},2013,2014,2015,2016,2017,2018,2019,2020]
["Single Family",{"$f":"CntyDataLink!CF65+CntyDataLink!$BT$20+CntyDataLink!$BW$20+CntyDataLink!$BZ$20+CntyDataLink!$CC$20+CntyDataLink!$CF$20+CntyDataLink!$CI$20+CntyDataLink!$CO$20+CntyDataLink!$CR$20","v":1942},{"$f":"B54+B48","v":1945},{"$f":"C54+C48","v":1950},{"$f":"CntyDataLink!$BA$167","v":1898},{"$f":"D48+E54","v":1903},{"$f":"F54+E48","v":1907},1912,1920,1923,1929,1932,1936,1963,1983]
["Multi Family",{"$f":"SUM(CntyDataLink!CG65:CM65)+CntyDataLink!$BU$20+CntyDataLink!$BX$20+CntyDataLink!$CA$20+CntyDataLink!$CD$20+CntyDataLink!$CG$20+CntyDataLink!$CJ$20+CntyDataLink!$CP$20+CntyDataLink!$CS$20","v":725},{"$f":"B55+B49","v":725},{"$f":"C55+C49","v":723},{"$f":"CntyDataLink!$BB$167","v":890},{"$f":"D49+E55","v":890},{"$f":"F55+E49","v":889},888,888,888,900,930,974,1015,1015]
["Mobile Home",{"$f":"SUM(CntyDataLink!CN65:CO65)+CntyDataLink!$BV$20+CntyDataLink!$BY$20+CntyDataLink!$CB$20+CntyDataLink!$CE$20+CntyDataLink!$CH$20+CntyDataLink!$CK$20+CntyDataLink!$CQ$20+CntyDataLink!$CT$20","v":12},12,{"$f":"C56+C50","v":12},{"$f":"CntyDataLink!$BC$167","v":0},{"$f":"D50+E56","v":0},{"$f":"F56+E50","v":0},{"$f":"G56+F50","v":0},{"$f":"H56+G50","v":0},{"$f":"I56+H50","v":0},{"$f":"J56+I50","v":0},0,0,0,0]
["Total",{"$f":"SUM(B54:B56)","v":2679},{"$f":"SUM(C54:C56)","v":2682},{"$f":"C57+C51","v":2685},{"$f":"SUM(E54:E56)","v":2788},{"$f":"SUM(F54:F56)","v":2793},2796,2800,2808,2811,2829,2862,2910,2978,2998]
[]
["Percent Change",null,"08-09","09-10","2000-2010 Census"," 10-11"," 11-12","12-13","13-14","14-15","15-16","16-17","17-18","18-19","19-20"]
["Single Family",null,{"$f":"(C54-B54)/B54","v":1.544799176107106E-3},{"$f":"(D54-C54)/C54","v":2.5706940874035988E-3},{"$f":"(E54-CntyDataLink!CF$65)/CntyDataLink!CF$65","v":3.9430449069003289E-2},{"$f":"(F54-E54)/E54","v":2.6343519494204425E-3},2.1019442984760903E-3,2.6219192448872575E-3,4.1841004184100415E-3,1.5625000000000001E-3,3.1201248049921998E-3,1.5552099533437014E-3,2.070393374741201E-3,1.3946280991735538E-2,1.0188487009679063E-2]
["Multi Family",null,{"$f":"(C55-B55)/B55","v":0},-2.7586206896551722E-3,{"$f":"(E55-SUM(CntyDataLink!CG65:CM65))/SUM(CntyDataLink!CG65:CM65)","v":0.49579831932773111},{"$f":"(F55-E55)/E55","v":0},-1.1235955056179776E-3,-1.1248593925759281E-3,0,0,1.3513513513513514E-2,3.3333333333333333E-2,4.7311827956989246E-2,4.2094455852156057E-2,0]
["Mobile Home",null,0,0,{"$f":"(E56-SUM(CntyDataLink!CM65:CN65))/SUM(CntyDataLink!CM65:CN65)","v":-1},{"$f":"(F56-E56)/E56","v":{"$error":"#DIV/0!"}},{"$f":"(G56-F56)/F56","v":{"$error":"#DIV/0!"}},{"$error":"#DIV/0!"},{"$error":"#DIV/0!"},{"$error":"#DIV/0!"},{"$error":"#DIV/0!"},{"$error":"#DIV/0!"},{"$error":"#DIV/0!"},{"$error":"#DIV/0!"},{"$error":"#DIV/0!"}]
["Total",null,1.1198208286674132E-3,1.1185682326621924E-3,{"$f":"(E57-CntyDataLink!$CE65)/CntyDataLink!$CE65","v":0.14685314685314685},{"$f":"(F57-E57)/E57","v":1.7934002869440459E-3},1.0741138560687433E-3,1.4306151645207439E-3,2.8571428571428571E-3,1.0683760683760685E-3,6.4034151547491995E-3,1.166489925768823E-2,1.6771488469601678E-2,2.3367697594501718E-2,6.7159167226326392E-3]
[]
[]
[]
[]
["Private Employment"]
[{"$f":"CntyDataLink!A25","v":"Atkinson"}]
[null,null,2008,{"$f":"C70+1","v":2009},2010,2011,2012,2013,2014,2015,2016,2017,2018,2019]
["Goods Producing",null,{"$f":"IF((CntyDataLink!$BI$25)=\"n\",NA(),IF(VALUE(CntyDataLink!$BI$25)=\"\",NA(),VALUE(CntyDataLink!$BI$25)))","v":253},{"$f":"IF((CntyDataLink!$BQ$25)=\"n\",NA(),IF(VALUE(CntyDataLink!$BQ$25)=\"\",NA(),VALUE(CntyDataLink!$BQ$25)))","v":221},{"$f":"IF((CntyDataLink!$BY$25)=\"n\",NA(),IF(VALUE(CntyDataLink!$BY$25)=\"\",NA(),VALUE(CntyDataLink!$BY$25)))","v":242},{"$f":"IF((CntyDataLink!$CG$25)=\"n\",NA(),IF(VALUE(CntyDataLink!$CG$25)=\"\",NA(),VALUE(CntyDataLink!$CG$25)))","v":286},{"$f":"IF((CntyDataLink!$CO$25)=\"n\",NA(),IF(VALUE(CntyDataLink!$CO$25)=\"\",NA(),VALUE(CntyDataLink!$CO$25)))","v":404},{"$f":"IF((CntyDataLink!$CW$25)=\"n\",NA(),IF(VALUE(CntyDataLink!$CW$25)=\"\",NA(),VALUE(CntyDataLink!$CW$25)))","v":416},{"$f":"IF((CntyDataLink!$DE$25)=\"n\",NA(),IF(VALUE(CntyDataLink!$DE$25)=\"\",NA(),VALUE(CntyDataLink!$DE$25)))","v":413},{"$f":"IF((CntyDataLink!$DM$25)=\"n\",NA(),IF(VALUE(CntyDataLink!$DM$25)=\"\",NA(),VALUE(CntyDataLink!$DM$25)))","v":381},{"$f":"IF((CntyDataLink!$DU$25)=\"n\",NA(),IF(VALUE(CntyDataLink!$DU$25)=\"\",NA(),VALUE(CntyDataLink!$DU$25)))","v":386},{"$f":"IF((CntyDataLink!$EC$25)=\"n\",NA(),IF(VALUE(CntyDataLink!$EC$25)=\"\",NA(),VALUE(CntyDataLink!$EC$25)))","v":407},{"$f":"IF((CntyDataLink!$EK$25)=\"n\",NA(),IF(VALUE(CntyDataLink!$EK$25)=\"\",NA(),VALUE(CntyDataLink!$EK$25)))","v":386},{"$f":"IF((CntyDataLink!$ET$25)=\"n\",NA(),IF(VALUE(CntyDataLink!$ET$25)=\"\",NA(),VALUE(CntyDataLink!$ET$25)))","v":374}]
["Service Providing",null,{"$f":"IF((CntyDataLink!$BJ$25)=\"n\",NA(),IF(VALUE(CntyDataLink!$BJ$25)=\"\",NA(),VALUE(CntyDataLink!$BJ$25)))","v":686},{"$f":"IF((CntyDataLink!$BR$25)=\"n\",NA(),IF(VALUE(CntyDataLink!$BR$25)=\"\",NA(),VALUE(CntyDataLink!$BR$25)))","v":636},{"$f":"IF((CntyDataLink!$BZ$25)=\"n\",NA(),IF(VALUE(CntyDataLink!$BZ$25)=\"\",NA(),VALUE(CntyDataLink!$BZ$25)))","v":642},{"$f":"IF((CntyDataLink!$CH$25)=\"n\",NA(),IF(VALUE(CntyDataLink!$CH$25)=\"\",NA(),VALUE(CntyDataLink!$CH$25)))","v":608},{"$f":"IF((CntyDataLink!$CP$25)=\"n\",NA(),IF(VALUE(CntyDataLink!$CP$25)=\"\",NA(),VALUE(CntyDataLink!$CP$25)))","v":641},{"$f":"IF((CntyDataLink!$CX$25)=\"n\",NA(),IF(VALUE(CntyDataLink!$CX$25)=\"\",NA(),VALUE(CntyDataLink!$CX$25)))","v":682},{"$f":"IF((CntyDataLink!$DF$25)=\"n\",NA(),IF(VALUE(CntyDataLink!$DF$25)=\"\",NA(),VALUE(CntyDataLink!$DF$25)))","v":716},{"$f":"IF((CntyDataLink!$DN$25)=\"n\",NA(),IF(VALUE(CntyDataLink!$DN$25)=\"\",NA(),VALUE(CntyDataLink!$DN$25)))","v":733},{"$f":"IF((CntyDataLink!$DV$25)=\"n\",NA(),IF(VALUE(CntyDataLink!$DV$25)=\"\",NA(),VALUE(CntyDataLink!$DV$25)))","v":742},{"$f":"IF((CntyDataLink!$ED$25)=\"n\",NA(),IF(VALUE(CntyDataLink!$ED$25)=\"\",NA(),VALUE(CntyDataLink!$ED$25)))","v":818},{"$f":"IF((CntyDataLink!$EL$25)=\"n\",NA(),IF(VALUE(CntyDataLink!$EL$25)=\"\",NA(),VALUE(CntyDataLink!$EL$25)))","v":783},{"$f":"IF((CntyDataLink!$EU$25)=\"n\",NA(),IF(VALUE(CntyDataLink!$EU$25)=\"\",NA(),VALUE(CntyDataLink!$EU$25)))","v":823}]
["Total Private Emp",null,{"$f":"IF((CntyDataLink!$BH$25)=\"n\",NA(),IF(VALUE(CntyDataLink!$BH$25)=\"\",NA(),VALUE(CntyDataLink!$BH$25)))","v":939},{"$f":"IF((CntyDataLink!$BP$25)=\"n\",NA(),IF(VALUE(CntyDataLink!$BP$25)=\"\",NA(),VALUE(CntyDataLink!$BP$25)))","v":856},{"$f":"IF((CntyDataLink!$BX$25)=\"n\",NA(),IF(VALUE(CntyDataLink!$BX$25)=\"\",NA(),VALUE(CntyDataLink!$BX$25)))","v":884},{"$f":"IF((CntyDataLink!$CF$25)=\"n\",NA(),IF(VALUE(CntyDataLink!$CF$25)=\"\",NA(),VALUE(CntyDataLink!$CF$25)))","v":893},{"$f":"IF((CntyDataLink!$CN$25)=\"n\",NA(),IF(VALUE(CntyDataLink!$CN$25)=\"\",NA(),VALUE(CntyDataLink!$CN$25)))","v":1046},{"$f":"IF((CntyDataLink!$CV$25)=\"n\",NA(),IF(VALUE(CntyDataLink!$CV$25)=\"\",NA(),VALUE(CntyDataLink!$CV$25)))","v":1098},{"$f":"IF((CntyDataLink!$DD$25)=\"n\",NA(),IF(VALUE(CntyDataLink!$DD$25)=\"\",NA(),VALUE(CntyDataLink!$DD$25)))","v":1130},{"$f":"IF((CntyDataLink!$DL$25)=\"n\",NA(),IF(VALUE(CntyDataLink!$DL$25)=\"\",NA(),VALUE(CntyDataLink!$DL$25)))","v":1114},{"$f":"IF((CntyDataLink!$DT$25)=\"n\",NA(),IF(VALUE(CntyDataLink!$DT$25)=\"\",NA(),VALUE(CntyDataLink!$DT$25)))","v":1128},{"$f":"IF((CntyDataLink!$EB$25)=\"n\",NA(),IF(VALUE(CntyDataLink!$EB$25)=\"\",NA(),VALUE(CntyDataLink!$EB$25)))","v":1226},{"$f":"IF((CntyDataLink!$EJ$25)=\"n\",NA(),IF(VALUE(CntyDataLink!$EJ$25)=\"\",NA(),VALUE(CntyDataLink!$EJ$25)))","v":1169},{"$f":"IF((CntyDataLink!$ER$25)=\"n\",NA(),IF(VALUE(CntyDataLink!$ER$25)=\"\",NA(),VALUE(CntyDataLink!$ER$25)))","v":1197}]
[]
["Percent Change",null,null,"08-09","09-10","10-11","11-12","12-13","13-14","14-15","15-16","16-17","17-18","18-19"]
["Goods Producing",null,null,{"$f":"(D71-C71)/C71","v":-0.12648221343873517},9.5022624434389136E-2,0.18181818181818182,0.41258741258741261,2.9702970297029702E-2,-7.2115384615384619E-3,-7.7481840193704604E-2,1.3123359580052493E-2,5.4404145077720206E-2,-5.1597051597051594E-2,{"$f":"(N71-M71)/M71","v":-3.1088082901554404E-2}]
["Service Providing",null,null,-7.2886297376093298E-2,9.433962264150943E-3,-5.2959501557632398E-2,5.4276315789473686E-2,6.3962558502340089E-2,4.9853372434017593E-2,2.3743016759776536E-2,1.227830832196453E-2,0.10242587601078167,-4.2787286063569685E-2,5.108556832694764E-2]
["Total Private Emp",null,null,-8.8391906283280086E-2,{"$f":"(E73-D73)/D73","v":3.2710280373831772E-2},1.0180995475113122E-2,0.17133258678611421,4.9713193116634802E-2,2.9143897996357013E-2,-1.415929203539823E-2,1.2567324955116697E-2,8.6879432624113476E-2,-4.6492659053833603E-2,{"$f":"(N73-M73)/M73","v":2.3952095808383235E-2}]
[]
["Source: New Hampshire Department of Employment Security"]
[]
[]
[]
[{"$f":"A2","v":"Atkinson"}]
[]
[]
[]
[]
[]
[]
[]
[]
[]
[]
[]
[]
[]
[]
[]
[]
[]
[]
[]
[]
[]
[]
[]
[]
[]
[]
[]
[]
[]
[]
[]
[]
[]
[]
[]
[null,null,2008,{"$f":"C120+1","v":2009},2010,2011,2012,2013,2014,2015,2016,2017,2018,2019]
["Total Housing Units",null,{"$f":"B$57","v":2679},2682,{"$f":"$E$57","v":2788},{"$f":"F57","v":2793},2796,2800,2808,2811,2829,2862,2910,2978]
["Private & Government Emp.",null,{"$f":"VALUE(CntyDataLink!$BG$25)","v":1002},{"$f":"VALUE(CntyDataLink!$BO$25)","v":922},{"$f":"VALUE(CntyDataLink!$BW$25)","v":949},{"$f":"VALUE(CntyDataLink!$CE$25)","v":958},{"$f":"VALUE(CntyDataLink!$CM$25)","v":1112},{"$f":"VALUE(CntyDataLink!$CU$25)","v":1164},{"$f":"VALUE(CntyDataLink!$DC$25)","v":1197},{"$f":"VALUE(CntyDataLink!$DK$25)","v":1180},{"$f":"VALUE(CntyDataLink!$DS$25)","v":1194},{"$f":"VALUE(CntyDataLink!$EA$25)","v":1296},{"$f":"VALUE(CntyDataLink!$EI$25)","v":1237},{"$f":"VALUE(CntyDataLink!$EQ$25)","v":1265}]
[]
["Source: New Hampshire Department of Employment Security and New Hampshire Office of Strategic Initiatives"]

{"sheet":"HHIncome-10YearComparison","index":14,"n_rows":50,"n_cols":17,"rows_kept":50,"cut":false,"hidden":true,"merged":[[27,11,27,13],[27,15,27,16],[28,1,28,2],[3,1,3,3],[26,1,26,4],[27,4,27,7],[27,8,27,10]]}
[]
[null,{"$f":"CntyDataLink!A35","v":"Atkinson"}]
[]
[null,"INCOME CHARACTERISTICS"]
[]
[]
[]
[]
[]
[]
[]
[]
[]
[]
[]
[]
[]
[]
[]
[]
[]
[]
[]
[]
[]
[]
[null,"Households By Household Income"]
[null,null,null,null,"2005-2009",null,null,null,"2010-2014",null,null,"2015-2019",null,null,null,"Statistically Significant Change"]
[null,"Household Income",null,null,"Estimate","Margin of Error",null,null,"Estimate"," Margin of Error",null,"Estimate"," Margin of Error",null,null,"2009-2019","2014-2019"]
[null,"Less than $10,000",null,null,{"$f":"CntyDataLinkPrior10YearEstimate!$B$120","v":67},{"$f":"CntyDataLinkPrior10YearEstimate!$C$120","v":51},{"$f":"E30/SUM($E$30:$E$39)","v":7.4693422519509473E-2},null,{"$f":"CntyDataLinkPrior5YearEstimates!$B$120","v":40},{"$f":"CntyDataLinkPrior5YearEstimates!$C$120","v":47},{"$f":"I30/SUM($I$30:$I$39)","v":1.5402387370042356E-2},{"$f":"CntyDataLink!$B$120","v":44},{"$f":"CntyDataLink!$C$120","v":43},{"$f":"L30/SUM($L$30:$L$39)","v":1.6029143897996357E-2},null,{"$f":"StatisticallySignificantCalcs!$A$83","v":"N"},{"$f":"StatisticallySignificantCalcs!$J$83","v":"N"}]
[null,"$10,000 to $14,999",null,null,{"$f":"CntyDataLinkPrior10YearEstimate!$D$120","v":113},{"$f":"CntyDataLinkPrior10YearEstimate!$E$120","v":107},{"$f":"E31/SUM($E$30:$E$39)","v":0.12597547380156077},null,{"$f":"CntyDataLinkPrior5YearEstimates!$D$120","v":43},{"$f":"CntyDataLinkPrior5YearEstimates!$E$120","v":43},1.6557566422795534E-2,{"$f":"CntyDataLink!$D$120","v":50},{"$f":"CntyDataLink!$E$120","v":63},1.8214936247723135E-2,null,{"$f":"StatisticallySignificantCalcs!$A$84","v":"N"},{"$f":"StatisticallySignificantCalcs!$J$84","v":"N"}]
[null,"$15,000 to $24,999",null,null,{"$f":"CntyDataLinkPrior10YearEstimate!$F$120","v":111},{"$f":"CntyDataLinkPrior10YearEstimate!$G$120","v":61},0.12374581939799331,null,{"$f":"CntyDataLinkPrior5YearEstimates!$F$120","v":149},{"$f":"CntyDataLinkPrior5YearEstimates!$G$120","v":77.801028270839709},5.7373892953407779E-2,{"$f":"CntyDataLink!$F$120","v":98},{"$f":"CntyDataLink!$G$120","v":92.892410884851088},3.5701275045537342E-2,null,{"$f":"StatisticallySignificantCalcs!$A$85","v":"N"},{"$f":"StatisticallySignificantCalcs!$J$85","v":"N"}]
[null,"$25,000 to $34,999",null,null,{"$f":"CntyDataLinkPrior10YearEstimate!$H$120","v":134},{"$f":"CntyDataLinkPrior10YearEstimate!$I$120","v":111},0.14938684503901895,null,{"$f":"CntyDataLinkPrior5YearEstimates!$H$120","v":92},{"$f":"CntyDataLinkPrior5YearEstimates!$I$120","v":96.176920308356728},3.542549095109742E-2,{"$f":"CntyDataLink!$H$120","v":88},{"$f":"CntyDataLink!$I$120","v":57.706152185014034},3.2058287795992714E-2,null,{"$f":"StatisticallySignificantCalcs!$A$86","v":"N"},{"$f":"StatisticallySignificantCalcs!$J$86","v":"N"}]
[null,"$35,000 to $49,999",null,null,{"$f":"CntyDataLinkPrior10YearEstimate!$J$120","v":44},{"$f":"CntyDataLinkPrior10YearEstimate!$K$120","v":42},4.9052396878483832E-2,null,{"$f":"CntyDataLinkPrior5YearEstimates!$J$120","v":229},{"$f":"CntyDataLinkPrior5YearEstimates!$K$120","v":109.1146186356347},8.8178667693492488E-2,{"$f":"CntyDataLink!$J$120","v":175},{"$f":"CntyDataLink!$K$120","v":109.77249200050075},6.3752276867030971E-2,null,{"$f":"StatisticallySignificantCalcs!$A$87","v":"Y"},{"$f":"StatisticallySignificantCalcs!$J$87","v":"Y"}]
[null,"$50,000 to $74,999",null,null,{"$f":"CntyDataLinkPrior10YearEstimate!$L$120","v":89},{"$f":"CntyDataLinkPrior10YearEstimate!$M$120","v":65},9.9219620958751392E-2,null,{"$f":"CntyDataLinkPrior5YearEstimates!$L$120","v":463},{"$f":"CntyDataLinkPrior5YearEstimates!$M$120","v":136.78084661238211},0.17828263380824028,{"$f":"CntyDataLink!$L$120","v":292},{"$f":"CntyDataLink!$M$120","v":119.20151005754919},0.1063752276867031,null,{"$f":"StatisticallySignificantCalcs!$A$88","v":"Y"},{"$f":"StatisticallySignificantCalcs!$J$88","v":"Y"}]
[null,"$75,000 to $99,999",null,null,{"$f":"CntyDataLinkPrior10YearEstimate!$N$120","v":85},{"$f":"CntyDataLinkPrior10YearEstimate!$O$120","v":54},9.4760312151616496E-2,null,{"$f":"CntyDataLinkPrior5YearEstimates!$N$120","v":346},{"$f":"CntyDataLinkPrior5YearEstimates!$O$120","v":116},0.13323065075086638,{"$f":"CntyDataLink!$N$120","v":351},{"$f":"CntyDataLink!$O$120","v":143},0.12786885245901639,null,{"$f":"StatisticallySignificantCalcs!$A$89","v":"Y"},{"$f":"StatisticallySignificantCalcs!$J$89","v":"Y"}]
[null,"$100,000 to $149,999",null,null,{"$f":"CntyDataLinkPrior10YearEstimate!$P$120","v":41},{"$f":"CntyDataLinkPrior10YearEstimate!$Q$120","v":55},4.5707915273132664E-2,null,{"$f":"CntyDataLinkPrior5YearEstimates!$P$120","v":751},{"$f":"CntyDataLinkPrior5YearEstimates!$Q$120","v":190.30764566879597},0.28917982287254523,{"$f":"CntyDataLink!$P$120","v":732},{"$f":"CntyDataLink!$Q$120","v":173.1040149736568},0.26666666666666666,null,{"$f":"StatisticallySignificantCalcs!$A$90","v":"Y"},{"$f":"StatisticallySignificantCalcs!$J$90","v":"Y"}]
[null,"$150,000 to $199,999",null,null,{"$f":"CntyDataLinkPrior10YearEstimate!$R$120","v":88},{"$f":"CntyDataLinkPrior10YearEstimate!$S$120","v":64},9.8104793756967665E-2,null,{"$f":"CntyDataLinkPrior5YearEstimates!$R$120","v":237},{"$f":"CntyDataLinkPrior5YearEstimates!$S$120","v":98},9.1259145167500957E-2,{"$f":"CntyDataLink!$R$120","v":457},{"$f":"CntyDataLink!$S$120","v":141},0.16648451730418942,null,{"$f":"StatisticallySignificantCalcs!$A$91","v":"Y"},{"$f":"StatisticallySignificantCalcs!$J$91","v":"Y"}]
[null,"Greater than $200,000",null,null,{"$f":"CntyDataLinkPrior10YearEstimate!$T$120","v":125},{"$f":"CntyDataLinkPrior10YearEstimate!$U$120","v":72},0.13935340022296544,null,{"$f":"CntyDataLinkPrior5YearEstimates!$T$120","v":247},{"$f":"CntyDataLinkPrior5YearEstimates!$U$120","v":115},9.5109742010011558E-2,{"$f":"CntyDataLink!$T$120","v":458},{"$f":"CntyDataLink!$U$120","v":138},0.16684881602914389,null,{"$f":"StatisticallySignificantCalcs!$A$92","v":"Y"},{"$f":"StatisticallySignificantCalcs!$J$92","v":"N"}]
[null,null,null,null,491895,null,null,null,491895]
[null,null,"Median HH Income",null,{"$f":"CntyDataLinkPrior10YearEstimate!$BV$128","v":90399},{"$f":"CntyDataLinkPrior10YearEstimate!$BW$128","v":15663},null,null,{"$f":"CntyDataLinkPrior5YearEstimates!$BV$128","v":95341},{"$f":"CntyDataLinkPrior5YearEstimates!$BW$128","v":16514},null,{"$f":"CntyDataLink!$BV$128","v":118712},{"$f":"CntyDataLink!$BW$128","v":8166}]
[null,null,"HH Income in 2019 Dollars",null,{"$f":"($E$50)*E41","v":106670.81999999999},null,null,null,{"$f":"($E$49)*I41","v":102014.87000000001}]
[]
[null,{"$f":"\"Source:  \"& \" \"&E28&\", \"&I28&\" and \"&L28& \"  American Community Survey; Tables B25119; B19001\"","v":"Source:   2005-2009, 2010-2014 and 2015-2019  American Community Survey; Tables B25119; B19001"}]
[]
[null,"Data from the American Community Survey are estimates."]
[]
[null,"CPI Adjustment Factor"]
[null,"2010-2014",null,null,1.07]
[null,"2005-2009",null,null,1.18]

{"sheet":"HHIncomeByTenure","index":15,"n_rows":64,"n_cols":17,"rows_kept":64,"cut":false,"hidden":true,"merged":[[2,3,2,5],[58,3,58,6],[58,8,58,11],[58,13,58,16],[59,3,59,6],[59,8,59,11],[59,13,59,16],[63,3,63,4],[63,8,63,9],[63,13,63,14],[61,3,61,4],[61,8,61,9],[61,13,61,14],[62,3,62,4],[62,8,62,9],[62,13,62,14]]}
[]
[null,null,null,{"$f":"CntyDataLink!A80","v":"Atkinson"}]
[null,null,null,"INCOME CHARACTERISTICS"]
[]
[]
[]
[]
[]
[]
[]
[]
[]
[]
[]
[]
[]
[]
[]
[]
[]
[]
[]
[]
[]
[]
[]
[]
[null,null,null,{"$f":"D2","v":"Atkinson"}]
[null,null,null,"Household Income By Tenure"]
[null,null,null,null,null,"2019 Household Income 1",null,"Occupied Housing Units","Margin of Error Occupied Housing Units","Owner Occupied Housing Units","Margin of Error Owner Occupied Housing Units","Renter Occupied Housing Units","Margin of Error Renter Occupied Housing Units"]
[]
[null,null,null,null,null,"Total",null,{"$f":"CntyDataLink!$B$128","v":2745},{"$f":"CntyDataLink!$C$128","v":185},{"$f":"CntyDataLink!$D$128","v":2551},{"$f":"CntyDataLink!$E$128","v":169},{"$f":"CntyDataLink!$AB$128","v":194},{"$f":"CntyDataLink!$AC$128","v":106}]
[null,null,null,4999,{"$f":"VALUE(RIGHT(F33,7))","v":5000},"Less Than $5,000",null,{"$f":"CntyDataLink!$AZ$128","v":12},{"$f":"CntyDataLink!$BA$128","v":26.40075756488817},{"$f":"CntyDataLink!$F$128","v":12},{"$f":"CntyDataLink!$G$128","v":21},{"$f":"CntyDataLink!$AD$128","v":0},{"$f":"CntyDataLink!$AE$128","v":16}]
[null,null,{"$f":"VALUE(RIGHT($F33,7))","v":5000},4999,10000,"$5,000 to $10,000",null,{"$f":"CntyDataLink!$BB$128","v":32},{"$f":"CntyDataLink!$BC$128","v":35.608987629529715},{"$f":"CntyDataLink!$H$128","v":14},{"$f":"CntyDataLink!$I$128","v":22},{"$f":"CntyDataLink!$AF$128","v":18},{"$f":"CntyDataLink!$AG$128","v":28}]
[null,null,10000,4999,15000,"$10,000 to $15,000",null,{"$f":"CntyDataLink!$BD$128","v":50},{"$f":"CntyDataLink!$BE$128","v":65},{"$f":"CntyDataLink!$J$128","v":50},{"$f":"CntyDataLink!$K$128","v":63},{"$f":"CntyDataLink!$AH$128","v":0},{"$f":"CntyDataLink!$AI$128","v":16}]
[null,null,15000,4999,20000,"$15,000 to $20,000",null,{"$f":"CntyDataLink!$BF$128","v":14},{"$f":"CntyDataLink!$BG$128","v":28.0178514522438},{"$f":"CntyDataLink!$L$128","v":14},{"$f":"CntyDataLink!$M$128","v":23},{"$f":"CntyDataLink!$AJ$128","v":0},{"$f":"CntyDataLink!$AK$128","v":16}]
[null,null,20000,4999,25000,"$20,000 to $25,000",null,{"$f":"CntyDataLink!$BH$128","v":84},{"$f":"CntyDataLink!$BI$128","v":90.87353850269065},{"$f":"CntyDataLink!$N$128","v":31},{"$f":"CntyDataLink!$O$128","v":37},{"$f":"CntyDataLink!$AL$128","v":53},{"$f":"CntyDataLink!$AM$128","v":83}]
[null,null,25000,9999,35000,"$25,000 to $35,000",null,{"$f":"CntyDataLink!$BJ$128","v":88},{"$f":"CntyDataLink!$BK$128","v":60.166435825965294},{"$f":"CntyDataLink!$P$128","v":88},{"$f":"CntyDataLink!$Q$128","v":58},{"$f":"CntyDataLink!$AN$128","v":0},{"$f":"CntyDataLink!$AO$128","v":16}]
[null,null,35000,14999,50000,"$35,000 to $50,000",null,{"$f":"CntyDataLink!$BL$128","v":175},{"$f":"CntyDataLink!$BM$128","v":123.10970717209915},{"$f":"CntyDataLink!$R$128","v":114},{"$f":"CntyDataLink!$S$128","v":84},{"$f":"CntyDataLink!$AP$128","v":61},{"$f":"CntyDataLink!$AQ$128","v":90}]
[null,null,50000,24999,75000,"$50,000 to $75,000",null,{"$f":"CntyDataLink!$BN$128","v":292},{"$f":"CntyDataLink!$BO$128","v":111.19802156513397},{"$f":"CntyDataLink!$T$128","v":278},{"$f":"CntyDataLink!$U$128","v":109},{"$f":"CntyDataLink!$AR$128","v":14},{"$f":"CntyDataLink!$AS$128","v":22}]
[null,null,75000,24999,100000,"$75,000 to $100,000",null,{"$f":"CntyDataLink!$BP$128","v":351},{"$f":"CntyDataLink!$BQ$128","v":141.15594213493105},{"$f":"CntyDataLink!$V$128","v":321},{"$f":"CntyDataLink!$W$128","v":137},{"$f":"CntyDataLink!$AT$128","v":30},{"$f":"CntyDataLink!$AU$128","v":34}]
[null,null,100000,49999,150000,"$100,000 to $150,000",null,{"$f":"CntyDataLink!$BR$128","v":732},{"$f":"CntyDataLink!$BS$128","v":167.5291019494822},{"$f":"CntyDataLink!$X$128","v":714},{"$f":"CntyDataLink!$Y$128","v":165},{"$f":"CntyDataLink!$AV$128","v":18},{"$f":"CntyDataLink!$AW$128","v":29}]
[null,null,150000,null,null,"$150,000 and More",null,{"$f":"CntyDataLink!$BT$128","v":915},{"$f":"CntyDataLink!$BU$128","v":179.71366113904642},{"$f":"CntyDataLink!$Z$128","v":915},{"$f":"CntyDataLink!$AA$128","v":179},{"$f":"CntyDataLink!$AX$128","v":0},{"$f":"CntyDataLink!$AY$128","v":16}]
[]
[]
[null,null,null,null,null,"Median Household Income 2",null,{"$f":"CntyDataLink!$BV$128","v":118712},{"$f":"CntyDataLink!$BW$128","v":8166},{"$f":"CntyDataLink!$BX$128","v":121799},{"$f":"CntyDataLink!$BY$128","v":12929},{"$f":"CntyDataLink!$BZ$128","v":41383},{"$f":"CntyDataLink!$CA$128","v":22276}]
[]
[]
[null,null,null,null,null,"Data from the American Community Survey are estimates"]
[]
[null,null,null,"Source:",1,"2015-2019 American Community Survey Table B25118;  2019 Inflation Adjusted dollars"]
[null,null,null,null,2,"2015-2019 American Community Survey Table B25119;  2019 Inflation Adjusted dollars"]
[]
[]
[]
[null,null,null,"HOUSEHOLD INCOME IN THE PAST 12 MONTHS BY PERCENT OF MEDIAN THRESHOLD"]
[]
[]
[null,null,null,"All Occupied Housing Units",null,null,null,null,"Owner Occupied Households",null,null,null,null,"Renter Occupied Households"]
[]
[null,null,null,"HOUSEHOLD INCOME",null,"Estimate","Margin Of Error",null,"HOUSEHOLD INCOME",null,"Estimate","Margin Of Error",null,"HOUSEHOLD INCOME",null,"Estimate","Margin Of Error"]
[null,null,{"$f":"$H$46*0.3","v":35613.599999999999},"30% of Median Household Income",null,{"$f":"IF($C$62<$C$36,((($C$62-$C$35)/$D$35)*$H$35)+SUM($H$33:$H$34),IF($C$62<$C$37,((($C$62-$C$36)/$D$36)*$H$36)+SUM($H$33:$H$35),IF($C$62<$C$38,((($C$62-$C$37)/$D$37)*$H$37)+SUM($H$33:$H$36),IF($C$62<$C$39,((($C$62-$C$38)/$D$38)*$H$38)+SUM($H$33:$H$37),IF($C$62<$C$40,((($C$62-$C$39)/$D$39)*$H$39)+SUM($H$33:$H$38),IF($C$62<$C$41,((($C$62-$C$40)/$D$40)*$H$40)+SUM($H$33:$H$39),IF($C$62<$C$42,((($C$62-$C$41)/$D$41)*$H$41)+SUM($H$33:$H$40),\"False\")))))))","v":287.15914394292952},{"$f":"IF($C$62<$C$36,((($C$62-$C$35)/$D$35)*$I$35)+SQRT(SUM(($I$33^2),($I$34^2))),IF($C$62<$C$37,((($C$62-$C$36)/$D$36)*$I$36)+SQRT(SUM(($I$33^2),($I$34^2),($I$35^2))),IF($C$62<$C$38,((($C$62-$C$37)/$D$37)*$I$37)+SQRT(SUM(($I$33^2),($I$34^2),($I$35^2),($I$36^2))),IF($C$62<$C$39,((($C$62-$C$38)/$D$38)*$I$38)+SQRT(SUM(($I$33^2),($I$34^2),($I$35^2),($I$36^2),($I$37^2))),IF($C$62<$C$40,((($C$62-$C$39)/$D$39)*$I$39)+SQRT(SUM(($I$33^2),($I$34^2),($I$35^2),($I$36^2),($I$37^2),($I$38^2))),IF($C$62<$C$41,((($C$62-$C$40)/$D$40)*$I$40)+SQRT(SUM(($I$33^2),($I$34^2),($I$35^2),($I$36^2),($I$37^2),($I$38^2),($I$39^2))),IF($C$62<$C$42,((($C$62-$C$41)/$D$41)*$I$41)+SQRT((($I$33^2)+($I$34^2)+($I$35^2)+($I$36^2)+($I$37^2)+($I$38^2)+($I$39^2)+($I$40^2))),\"False\")))))))","v":142.34257060936355},{"$f":"$J$46*0.3","v":36539.699999999997},"30% of Median Household Income",null,{"$f":"IF($H$62<$C$36,((($H$62-$C$35)/$D$35)*$J$35)+SUM($J$33:$J$34),IF($H$62<$C$37,((($H$62-$C$36)/$D$36)*$J$36)+SUM($J$33:$J$35),IF($H$62<$C$38,((($H$62-$C$37)/$D$37)*$J$37)+SUM($J$33:$J$36),IF($H$62<$C$39,((($H$62-$C$38)/$D$38)*$J$38)+SUM($J$33:$J$37),IF($H$62<$C$40,((($H$62-$C$39)/$D$39)*$J$39)+SUM($J$33:$J$38),IF($H$62<$C$41,((($H$62-$C$40)/$D$40)*$J$40)+SUM($J$33:$J$39),IF($H$62<$C$42,((($H$62-$C$41)/$D$41)*$J$41)+SUM($J$33:$J$40),\"False\")))))))","v":220.70250016667777},{"$f":"IF($H$62<$C$36,((($H$62-$C$35)/$D$35)*$K$35)+SQRT(SUM(($K$33^2),($K$34^2))),IF($H$62<$C$37,((($H$62-$C$36)/$D$36)*$K$36)+SQRT(SUM(($K$33^2),($K$34^2),($K$35^2))),IF($H$62<$C$38,((($H$62-$C$37)/$D$37)*$K$37)+SQRT(SUM(($K$33^2),($K$34^2),($K$35^2),($K$36^2))),IF($H$62<$C$39,((($H$62-$C$38)/$D$38)*$K$38)+SQRT(SUM(($K$33^2),($K$34^2),($K$35^2),($K$36^2),($K$37^2))),IF($H$62<$C$40,((($H$62-$C$39)/$D$39)*$K$39)+SQRT(SUM(($K$33^2),($K$34^2),($K$35^2),($K$36^2),($K$37^2),($K$38^2))),IF($H$62<$C$41,((($H$62-$C$40)/$D$40)*$K$40)+SQRT(SUM(($K$33^2),($K$34^2),($K$35^2),($K$36^2),($K$37^2),($K$38^2),($K$39^2))),IF($H$62<$C$42,((($H$62-$C$41)/$D$41)*$K$41)+SQRT((($K$33^2)+($K$34^2)+($K$35^2)+($K$36^2)+($K$37^2)+($K$38^2)+($K$39^2)+($K$40^2))),\"False\")))))))","v":109.39987635841027},{"$f":"$L$46*0.3","v":12414.9},"30% of Median Household Income",null,{"$f":"IF($M$62<$C$36,((($M$62-$C$35)/$D$35)*$L$35)+SUM($L$33:$L$34),IF($M$62<$C$37,((($M$62-$C$36)/$D$36)*$L$36)+SUM($L$33:$L$35),IF($M$62<$C$38,((($M$62-$C$37)/$D$37)*$L$37)+SUM($L$33:$L$36),IF($M$62<$C$39,((($M$62-$C$38)/$D$38)*$L$38)+SUM($L$33:$L$37),IF($M$62<$C$40,((($M$62-$C$39)/$D$39)*$L$39)+SUM($L$33:$L$38),IF($M$62<$C$41,((($M$62-$C$40)/$D$40)*$L$40)+SUM($L$33:$L$39),IF($M$62<$C$42,((($M$62-$C$41)/$D$41)*$L$41)+SUM($L$33:$L$40),\"False\")))))))","v":18},{"$f":"IF($M$62<$C$36,((($M$62-$C$35)/$D$35)*$M$35)+SQRT(SUM(($M$33^2),($M$34^2))),IF($M$62<$C$37,((($M$62-$C$36)/$D$36)*$M$36)+SQRT(SUM(($M$33^2),($M$34^2),($M$35^2))),IF($M$62<$C$38,((($M$62-$C$37)/$D$37)*$M$37)+SQRT(SUM(($M$33^2),($M$34^2),($M$35^2),($M$36^2))),IF($M$62<$C$39,((($M$62-$C$38)/$D$38)*$M$38)+SQRT(SUM(($M$33^2),($M$34^2),($M$35^2),($M$36^2),($M$37^2))),IF($M$62<$C$40,((($M$62-$C$39)/$D$39)*$M$39)+SQRT(SUM(($M$33^2),($M$34^2),($M$35^2),($M$36^2),($M$37^2),($M$38^2))),IF($M$62<$C$41,((($M$62-$C$40)/$D$40)*$M$40)+SQRT(SUM(($M$33^2),($M$34^2),($M$35^2),($M$36^2),($M$37^2),($M$38^2),($M$39^2))),IF($M$62<$C$42,((($M$62-$C$41)/$D$41)*$M$41)+SQRT((($M$33^2)+($M$34^2)+($M$35^2)+($M$36^2)+($M$37^2)+($M$38^2)+($M$39^2)+($M$40^2))),\"False\")))))))","v":39.97825683836323}]
[490,null,{"$f":"$H$46*0.5","v":59356},"50% of Median Household Income",null,{"$f":"IF($C$63<$C$36,((($C$63-$C$35)/$D$35)*$H$35)+SUM($H$33:$H$34),IF($C$63<$C$37,((($C$63-$C$36)/$D$36)*$H$36)+SUM($H$33:$H$35),IF($C$63<$C$38,((($C$63-$C$37)/$D$37)*$H$37)+SUM($H$33:$H$36),IF($C$63<$C$39,((($C$63-$C$38)/$D$38)*$H$38)+SUM($H$33:$H$37),IF($C$63<$C$40,((($C$63-$C$39)/$D$39)*$H$39)+SUM($H$33:$H$38),IF($C$63<$C$41,((($C$63-$C$40)/$D$40)*$H$40)+SUM($H$33:$H$39),IF($C$63<$C$42,((($C$63-$C$41)/$D$41)*$H$41)+SUM($H$33:$H$40),\"False\")))))))","v":564.28245129805191},{"$f":"IF($C$63<$C$36,((($C$63-$C$35)/$D$35)*$I$35)+SQRT(SUM(($I$33^2),($I$34^2))),IF($C$63<$C$37,((($C$63-$C$36)/$D$36)*$I$36)+SQRT(SUM(($I$33^2),($I$34^2),($I$35^2))),IF($C$63<$C$38,((($C$63-$C$37)/$D$37)*$I$37)+SQRT(SUM(($I$33^2),($I$34^2),($I$35^2),($I$36^2))),IF($C$63<$C$39,((($C$63-$C$38)/$D$38)*$I$38)+SQRT(SUM(($I$33^2),($I$34^2),($I$35^2),($I$36^2),($I$37^2))),IF($C$63<$C$40,((($C$63-$C$39)/$D$39)*$I$39)+SQRT(SUM(($I$33^2),($I$34^2),($I$35^2),($I$36^2),($I$37^2),($I$38^2))),IF($C$63<$C$41,((($C$63-$C$40)/$D$40)*$I$40)+SQRT(SUM(($I$33^2),($I$34^2),($I$35^2),($I$36^2),($I$37^2),($I$38^2),($I$39^2))),IF($C$63<$C$42,((($C$63-$C$41)/$D$41)*$I$41)+SQRT((($I$33^2)+($I$34^2)+($I$35^2)+($I$36^2)+($I$37^2)+($I$38^2)+($I$39^2)+($I$40^2))),\"False\")))))))","v":226.0317044545863},{"$f":"$J$46*0.5","v":60899.5},"50% of Median Household Income",null,{"$f":"IF($H$63<$C$36,((($H$63-$C$35)/$D$35)*$J$35)+SUM($J$33:$J$34),IF($H$63<$C$37,((($H$63-$C$36)/$D$36)*$J$36)+SUM($J$33:$J$35),IF($H$63<$C$38,((($H$63-$C$37)/$D$37)*$J$37)+SUM($J$33:$J$36),IF($H$63<$C$39,((($H$63-$C$38)/$D$38)*$J$38)+SUM($J$33:$J$37),IF($H$63<$C$40,((($H$63-$C$39)/$D$39)*$J$39)+SUM($J$33:$J$38),IF($H$63<$C$41,((($H$63-$C$40)/$D$40)*$J$40)+SUM($J$33:$J$39),IF($H$63<$C$42,((($H$63-$C$41)/$D$41)*$J$41)+SUM($J$33:$J$40),\"False\")))))))","v":444.20728829153165},{"$f":"IF($H$63<$C$36,((($H$63-$C$35)/$D$35)*$K$35)+SQRT(SUM(($K$33^2),($K$34^2))),IF($H$63<$C$37,((($H$63-$C$36)/$D$36)*$K$36)+SQRT(SUM(($K$33^2),($K$34^2),($K$35^2))),IF($H$63<$C$38,((($H$63-$C$37)/$D$37)*$K$37)+SQRT(SUM(($K$33^2),($K$34^2),($K$35^2),($K$36^2))),IF($H$63<$C$39,((($H$63-$C$38)/$D$38)*$K$38)+SQRT(SUM(($K$33^2),($K$34^2),($K$35^2),($K$36^2),($K$37^2))),IF($H$63<$C$40,((($H$63-$C$39)/$D$39)*$K$39)+SQRT(SUM(($K$33^2),($K$34^2),($K$35^2),($K$36^2),($K$37^2),($K$38^2))),IF($H$63<$C$41,((($H$63-$C$40)/$D$40)*$K$40)+SQRT(SUM(($K$33^2),($K$34^2),($K$35^2),($K$36^2),($K$37^2),($K$38^2),($K$39^2))),IF($H$63<$C$42,((($H$63-$C$41)/$D$41)*$K$41)+SQRT((($K$33^2)+($K$34^2)+($K$35^2)+($K$36^2)+($K$37^2)+($K$38^2)+($K$39^2)+($K$40^2))),\"False\")))))))","v":178.71823302918375},{"$f":"$L$46*0.5","v":20691.5},"50% of Median Household Income",null,{"$f":"IF($M$63<$C$36,((($M$63-$C$35)/$D$35)*$L$35)+SUM($L$33:$L$34),IF($M$63<$C$37,((($M$63-$C$36)/$D$36)*$L$36)+SUM($L$33:$L$35),IF($M$63<$C$38,((($M$63-$C$37)/$D$37)*$L$37)+SUM($L$33:$L$36),IF($M$63<$C$39,((($M$63-$C$38)/$D$38)*$L$38)+SUM($L$33:$L$37),IF($M$63<$C$40,((($M$63-$C$39)/$D$39)*$L$39)+SUM($L$33:$L$38),IF($M$63<$C$41,((($M$63-$C$40)/$D$40)*$L$40)+SUM($L$33:$L$39),IF($M$63<$C$42,((($M$63-$C$41)/$D$41)*$L$41)+SUM($L$33:$L$40),\"False\")))))))","v":25.331366273254652},{"$f":"IF($M$63<$C$36,((($M$63-$C$35)/$D$35)*$M$35)+SQRT(SUM(($M$33^2),($M$34^2))),IF($M$63<$C$37,((($M$63-$C$36)/$D$36)*$M$36)+SQRT(SUM(($M$33^2),($M$34^2),($M$35^2))),IF($M$63<$C$38,((($M$63-$C$37)/$D$37)*$M$37)+SQRT(SUM(($M$33^2),($M$34^2),($M$35^2),($M$36^2))),IF($M$63<$C$39,((($M$63-$C$38)/$D$38)*$M$38)+SQRT(SUM(($M$33^2),($M$34^2),($M$35^2),($M$36^2),($M$37^2))),IF($M$63<$C$40,((($M$63-$C$39)/$D$39)*$M$39)+SQRT(SUM(($M$33^2),($M$34^2),($M$35^2),($M$36^2),($M$37^2),($M$38^2))),IF($M$63<$C$41,((($M$63-$C$40)/$D$40)*$M$40)+SQRT(SUM(($M$33^2),($M$34^2),($M$35^2),($M$36^2),($M$37^2),($M$38^2),($M$39^2))),IF($M$63<$C$42,((($M$63-$C$41)/$D$41)*$M$41)+SQRT((($M$33^2)+($M$34^2)+($M$35^2)+($M$36^2)+($M$37^2)+($M$38^2)+($M$39^2)+($M$40^2))),\"False\")))))))","v":50.876627446432266}]
[null,null,{"$f":"$H$46*0.8","v":94969.600000000006},"80% of Median Household Income",null,{"$f":"IF($C$64<$C$36,((($C$64-$C$35)/$D$35)*$H$35)+SUM($H$33:$H$34),IF($C$64<$C$37,((($C$64-$C$36)/$D$36)*$H$36)+SUM($H$33:$H$35),IF($C$64<$C$38,((($C$64-$C$37)/$D$37)*$H$37)+SUM($H$33:$H$36),IF($C$64<$C$39,((($C$64-$C$38)/$D$38)*$H$38)+SUM($H$33:$H$37),IF($C$64<$C$40,((($C$64-$C$39)/$D$39)*$H$39)+SUM($H$33:$H$38),IF($C$64<$C$41,((($C$64-$C$40)/$D$40)*$H$40)+SUM($H$33:$H$39),IF($C$64<$C$42,((($C$64-$C$41)/$D$41)*$H$41)+SUM($H$33:$H$40),\"False\")))))))","v":1027.3843993759751},{"$f":"IF($C$64<$C$36,((($C$64-$C$35)/$D$35)*$I$35)+SQRT(SUM(($I$33^2),($I$34^2))),IF($C$64<$C$37,((($C$64-$C$36)/$D$36)*$I$36)+SQRT(SUM(($I$33^2),($I$34^2),($I$35^2))),IF($C$64<$C$38,((($C$64-$C$37)/$D$37)*$I$37)+SQRT(SUM(($I$33^2),($I$34^2),($I$35^2),($I$36^2))),IF($C$64<$C$39,((($C$64-$C$38)/$D$38)*$I$38)+SQRT(SUM(($I$33^2),($I$34^2),($I$35^2),($I$36^2),($I$37^2))),IF($C$64<$C$40,((($C$64-$C$39)/$D$39)*$I$39)+SQRT(SUM(($I$33^2),($I$34^2),($I$35^2),($I$36^2),($I$37^2),($I$38^2))),IF($C$64<$C$41,((($C$64-$C$40)/$D$40)*$I$40)+SQRT(SUM(($I$33^2),($I$34^2),($I$35^2),($I$36^2),($I$37^2),($I$38^2),($I$39^2))),IF($C$64<$C$42,((($C$64-$C$41)/$D$41)*$I$41)+SQRT((($I$33^2)+($I$34^2)+($I$35^2)+($I$36^2)+($I$37^2)+($I$38^2)+($I$39^2)+($I$40^2))),\"False\")))))))","v":328.10385123080687},{"$f":"$J$46*0.8","v":97439.200000000012},"80% of Median Household Income",null,{"$f":"IF($H$64<$C$36,((($H$64-$C$35)/$D$35)*$J$35)+SUM($J$33:$J$34),IF($H$64<$C$37,((($H$64-$C$36)/$D$36)*$J$36)+SUM($J$33:$J$35),IF($H$64<$C$38,((($H$64-$C$37)/$D$37)*$J$37)+SUM($J$33:$J$36),IF($H$64<$C$39,((($H$64-$C$38)/$D$38)*$J$38)+SUM($J$33:$J$37),IF($H$64<$C$40,((($H$64-$C$39)/$D$39)*$J$39)+SUM($J$33:$J$38),IF($H$64<$C$41,((($H$64-$C$40)/$D$40)*$J$40)+SUM($J$33:$J$39),IF($H$64<$C$42,((($H$64-$C$41)/$D$41)*$J$41)+SUM($J$33:$J$40),\"False\")))))))","v":889.13085323412952},{"$f":"IF($H$64<$C$36,((($H$64-$C$35)/$D$35)*$K$35)+SQRT(SUM(($K$33^2),($K$34^2))),IF($H$64<$C$37,((($H$64-$C$36)/$D$36)*$K$36)+SQRT(SUM(($K$33^2),($K$34^2),($K$35^2))),IF($H$64<$C$38,((($H$64-$C$37)/$D$37)*$K$37)+SQRT(SUM(($K$33^2),($K$34^2),($K$35^2),($K$36^2))),IF($H$64<$C$39,((($H$64-$C$38)/$D$38)*$K$38)+SQRT(SUM(($K$33^2),($K$34^2),($K$35^2),($K$36^2),($K$37^2))),IF($H$64<$C$40,((($H$64-$C$39)/$D$39)*$K$39)+SQRT(SUM(($K$33^2),($K$34^2),($K$35^2),($K$36^2),($K$37^2),($K$38^2))),IF($H$64<$C$41,((($H$64-$C$40)/$D$40)*$K$40)+SQRT(SUM(($K$33^2),($K$34^2),($K$35^2),($K$36^2),($K$37^2),($K$38^2),($K$39^2))),IF($H$64<$C$42,((($H$64-$C$41)/$D$41)*$K$41)+SQRT((($K$33^2)+($K$34^2)+($K$35^2)+($K$36^2)+($K$37^2)+($K$38^2)+($K$39^2)+($K$40^2))),\"False\")))))))","v":293.5384373643426},{"$f":"$L$46*0.8","v":33106.400000000001},"80% of Median Household Income",null,{"$f":"IF($M$64<$C$36,((($M$64-$C$35)/$D$35)*$L$35)+SUM($L$33:$L$34),IF($M$64<$C$37,((($M$64-$C$36)/$D$36)*$L$36)+SUM($L$33:$L$35),IF($M$64<$C$38,((($M$64-$C$37)/$D$37)*$L$37)+SUM($L$33:$L$36),IF($M$64<$C$39,((($M$64-$C$38)/$D$38)*$L$38)+SUM($L$33:$L$37),IF($M$64<$C$40,((($M$64-$C$39)/$D$39)*$L$39)+SUM($L$33:$L$38),IF($M$64<$C$41,((($M$64-$C$40)/$D$40)*$L$40)+SUM($L$33:$L$39),IF($M$64<$C$42,((($M$64-$C$41)/$D$41)*$L$41)+SUM($L$33:$L$40),\"False\")))))))","v":71},{"$f":"IF($M$64<$C$36,((($M$64-$C$35)/$D$35)*$M$35)+SQRT(SUM(($M$33^2),($M$34^2))),IF($M$64<$C$37,((($M$64-$C$36)/$D$36)*$M$36)+SQRT(SUM(($M$33^2),($M$34^2),($M$35^2))),IF($M$64<$C$38,((($M$64-$C$37)/$D$37)*$M$37)+SQRT(SUM(($M$33^2),($M$34^2),($M$35^2),($M$36^2))),IF($M$64<$C$39,((($M$64-$C$38)/$D$38)*$M$38)+SQRT(SUM(($M$33^2),($M$34^2),($M$35^2),($M$36^2),($M$37^2))),IF($M$64<$C$40,((($M$64-$C$39)/$D$39)*$M$39)+SQRT(SUM(($M$33^2),($M$34^2),($M$35^2),($M$36^2),($M$37^2),($M$38^2))),IF($M$64<$C$41,((($M$64-$C$40)/$D$40)*$M$40)+SQRT(SUM(($M$33^2),($M$34^2),($M$35^2),($M$36^2),($M$37^2),($M$38^2),($M$39^2))),IF($M$64<$C$42,((($M$64-$C$41)/$D$41)*$M$41)+SQRT((($M$33^2)+($M$34^2)+($M$35^2)+($M$36^2)+($M$37^2)+($M$38^2)+($M$39^2)+($M$40^2))),\"False\")))))))","v":104.84645211966242}]

{"sheet":"OwnerHousingCost","index":16,"n_rows":112,"n_cols":17,"rows_kept":112,"cut":false,"hidden":true,"merged":[]}
[]
[null,null,"HIDE THIS COLUMN",{"$f":"DropDownList!$B$47","v":"Atkinson"}]
[null,null,null,"OWNER HOUSING COST CHARACTERISTICS"]
[]
[]
[]
[]
[]
[]
[]
[]
[]
[]
[]
[]
[]
[]
[]
[]
[]
[]
[]
[]
[]
[]
[]
[]
[]
[]
[]
[]
[]
[]
[]
[]
[]
[null,null,null,"Income in 2019 Inflation Adjusted Dollars"]
[null,null,null,"Source: 2015-2019 American Community Survey Table B25106"]
[null,null,null,"Data from the American Community Survey are estimates."]
[]
[]
[null,null,null,{"$f":"CntyDataLink!A$35","v":"Atkinson"}]
[]
[null,null,null,{"$f":"D3","v":"OWNER HOUSING COST CHARACTERISTICS"}]
[]
[null,null,null,"Owner Households by "]
[null,null,null,"Selected Monthly Housing Costs as a Percent of 2018 Household Income",null,null,null,"By Household Income"]
[null,null,"H73RenterOccHU",null,"Specified Owner Occ Housing Units","Margin of Error Owner Occ Housing Units",null,"Less than $20,000",{"$f":"\"Margin of Error \"&H48","v":"Margin of Error Less than $20,000"},"$20,000 to $34,999",{"$f":"\"Margin of Error \"&J48","v":"Margin of Error $20,000 to $34,999"},"$35,000 to $49,999",{"$f":"\"Margin of Error \"&L48","v":"Margin of Error $35,000 to $49,999"},"$50,000 to $74,999",{"$f":"\"Margin of Error \"&N48","v":"Margin of Error $50,000 to $74,999"},"$75,000 or More",{"$f":"\"Margin of Error \"&P48","v":"Margin of Error $75,000 or More"}]
[]
[null,null,null,"Total Households",{"$f":"CntyDataLink!$BF144","v":9006},{"$f":"CntyDataLink!$BG$144","v":348},null,{"$f":"CntyDataLink!$BZ$144","v":402},{"$f":"CntyDataLink!$CA$144","v":170},{"$f":"CntyDataLink!$CH$144","v":564},{"$f":"CntyDataLink!$CI$144","v":139},{"$f":"CntyDataLink!$CP$144","v":798},{"$f":"CntyDataLink!$CQ$144","v":180},{"$f":"CntyDataLink!$CX$144","v":1340},{"$f":"CntyDataLink!$CY$144","v":261},{"$f":"CntyDataLink!$DF$144","v":5767},{"$f":"CntyDataLink!$DG$144","v":305}]
[null,null,null,"Monthly Costs Less than 20% of HH Income",{"$f":"CntyDataLink!$BH$144","v":4385},{"$f":"CntyDataLink!$BI$144","v":421.30986221544828},null,{"$f":"CntyDataLink!$CB$144","v":0},{"$f":"CntyDataLink!$CC$144","v":21},{"$f":"CntyDataLink!CJ$144","v":49},{"$f":"CntyDataLink!CK$144","v":40},{"$f":"CntyDataLink!CR$144","v":141},{"$f":"CntyDataLink!CS$144","v":68},{"$f":"CntyDataLink!CZ$144","v":428},{"$f":"CntyDataLink!DA$144","v":173},{"$f":"CntyDataLink!DH$144","v":3767},{"$f":"CntyDataLink!DI$144","v":322}]
[null,null,null,"Monthly Costs 20% to 29.9% of HH Income",{"$f":"CntyDataLink!$BJ$144","v":2171},{"$f":"CntyDataLink!$BK$144","v":291.00859093848067},null,{"$f":"CntyDataLink!$CD$144","v":0},{"$f":"CntyDataLink!$CE$144","v":21},{"$f":"CntyDataLink!CL$144","v":123},{"$f":"CntyDataLink!CM$144","v":73},{"$f":"CntyDataLink!CT$144","v":338},{"$f":"CntyDataLink!CU$144","v":112},{"$f":"CntyDataLink!DB$144","v":332},{"$f":"CntyDataLink!DC$144","v":116},{"$f":"CntyDataLink!DJ$144","v":1378},{"$f":"CntyDataLink!DK$144","v":202}]
[null,null,null,"Monthly Costs Less Than 30% of HH Income",{"$f":"CntyDataLink!$BL$144","v":6556},{"$f":"CntyDataLink!$BM$144","v":512.04296694711081},null,{"$f":"H52+H51","v":0},{"$f":"SQRT((I52^2)+(I51^2))","v":29.698484809834994},{"$f":"J52+J51","v":172},{"$f":"SQRT((K52^2)+(K51^2))","v":83.240615086627031},{"$f":"L52+L51","v":479},{"$f":"SQRT((M52^2)+(M51^2))","v":131.02671483327359},{"$f":"N52+N51","v":760},{"$f":"SQRT((O52^2)+(O51^2))","v":208.29066229670499},{"$f":"P52+P51","v":5145},{"$f":"SQRT((Q52^2)+(Q51^2))","v":380.11577183800199}]
[null,null,null,"Monthly Costs 30% or More of HH Income",{"$f":"CntyDataLink!$BN$144","v":2315},{"$f":"CntyDataLink!$BO$144","v":392.48694245796253},null,{"$f":"CntyDataLink!$CF$144","v":402},{"$f":"CntyDataLink!$CG$144","v":170},{"$f":"CntyDataLink!CN$144","v":392},{"$f":"CntyDataLink!CO$144","v":124},{"$f":"CntyDataLink!CV$144","v":319},{"$f":"CntyDataLink!CW$144","v":140},{"$f":"CntyDataLink!DD$144","v":580},{"$f":"CntyDataLink!DE$144","v":216},{"$f":"CntyDataLink!$DL$144","v":622},{"$f":"CntyDataLink!$DM$144","v":140}]
[]
[null,null,null,"Monthly Costs 35% or More of HH Income",{"$f":"CntyDataLink!$BT$144","v":1738},{"$f":"CntyDataLink!$BU$144","v":357.96228851654195},null,"NA","NA","NA","NA","NA","NA","NA","NA","NA","NA"]
[null,null,null,"Monthly Costs 50% or More of HH Income",{"$f":"CntyDataLink!$BV$144","v":839},{"$f":"CntyDataLink!$BW$144","v":284.3448610402516},null,"NA","NA","NA","NA","NA","NA","NA","NA","NA","NA"]
[null,null,null,"Percent not computed",{"$f":"CntyDataLink!$BX$144","v":135},{"$f":"CntyDataLink!$BY$144","v":103.24727599312246},null,"NA","NA","NA","NA","NA","NA","NA","NA","NA","NA"]
[]
[null,null,null,"Percent of Owner Households Paying ",null,null,null,"By Household Income"]
[null,null,null,{"$f":"D53","v":"Monthly Costs Less Than 30% of HH Income"},{"$f":"E53/E$50","v":0.7279591383522096},null,null,{"$f":"H53/H$50","v":0},null,{"$f":"J53/J$50","v":0.30496453900709219},null,{"$f":"L53/L$50","v":0.60025062656641603},null,{"$f":"N53/N$50","v":0.56716417910447758},null,{"$f":"P53/P$50","v":0.89214496271891797}]
[null,null,null,{"$f":"D54","v":"Monthly Costs 30% or More of HH Income"},{"$f":"E54/E$50","v":0.25705085498556518},null,null,{"$f":"H54/H50","v":1},null,{"$f":"J54/J50","v":0.69503546099290781},null,{"$f":"L54/L50","v":0.39974937343358397},null,{"$f":"N54/N50","v":0.43283582089552236},null,{"$f":"P54/P50","v":0.10785503728108202}]
[]
[null,null,null,"Monthly Costs 35% or More of HH Income",{"$f":"E56/E$50","v":0.19298245614035087},null,null,"NA","NA","NA","NA","NA","NA","NA","NA","NA","NA"]
[null,null,null,"Monthly Costs 50% or More of HH Income",{"$f":"E57/E$50","v":9.3160115478569838E-2},null,null,"NA","NA","NA","NA","NA","NA","NA","NA","NA","NA"]
[null,null,null,"Percent not computed",{"$f":"E58/$E$50","v":1.4990006662225183E-2},null,null,"NA","NA","NA","NA","NA","NA","NA","NA","NA","NA"]
[]
[null,null,null,{"$f":"D37","v":"Income in 2019 Inflation Adjusted Dollars"}]
[null,null,null,"Source: Source: 2015-2019 American Community Survey Table B25091; B25106",null,null,null,"NA indicates that the American Community Survey does not provide that data."]
[null,null,null,"Data from the American Community Survey are estimates."]
[]
[null,null,null,{"$f":"D2","v":"Atkinson"}]
[null,null,"H62ROHUGRent250to299",{"$f":"D3","v":"OWNER HOUSING COST CHARACTERISTICS"}]
[null,null,"H62ROHUGRent300to349"]
[null,null,"H62ROHUGRent350to399","Value of Owner Occupied Housing Units"]
[null,null,"H62ROHUGRent400to449"]
[null,null,"H62ROHUGRent450to499","Owner Occupied Housing Units",{"$f":"CntyDataLink!$B$144","v":9006},{"$f":"CntyDataLink!$C$144","v":348}]
[null,null,"H62ROHUGRent500to549"]
[null,null,"H62ROHUGRent550to599","Value","Housing Units","Margin of Error"]
[null,null,"H62ROHUGRent600to649","Less than $10,000",{"$f":"CntyDataLink!$D$144","v":27},{"$f":"CntyDataLink!$E$144","v":30}]
[null,null,"H62ROHUGRent650to699","$10,000 to $14,999",{"$f":"CntyDataLink!$F$144","v":31},{"$f":"CntyDataLink!$G$144","v":29}]
[null,null,"H62ROHUGRent700to749","$15,000 to $19,999",{"$f":"CntyDataLink!$H$144","v":0},{"$f":"CntyDataLink!$I$144","v":21}]
[null,null,"H62ROHUGRent750to799","$20,000 to $24,999",{"$f":"CntyDataLink!$J$144","v":8},{"$f":"CntyDataLink!$K$144","v":12}]
[null,null,"H62ROHUGRent800to899","$25,000 to $29,999",{"$f":"CntyDataLink!$L$144","v":71},{"$f":"CntyDataLink!$M$144","v":49}]
[null,null,"H62ROHUGRent900to999","$30,000 to $34,999",{"$f":"CntyDataLink!$N$144","v":110},{"$f":"CntyDataLink!$O$144","v":116}]
[null,null,"H62ROHUGRent1000to1249","$35,000 to $39,999",{"$f":"CntyDataLink!$P$144","v":13},{"$f":"CntyDataLink!$Q$144","v":20}]
[null,null,"H62ROHUGRent1250to1499","$40,000 to $49,999",{"$f":"CntyDataLink!$R$144","v":29},{"$f":"CntyDataLink!$S$144","v":29}]
[null,null,"H62ROHUGRent1500to1999","$50,000 to $59,999",{"$f":"CntyDataLink!$T$144","v":59},{"$f":"CntyDataLink!$U$144","v":50}]
[null,null,"H62ROHUGRent2000>","$60,000 to $69,999",{"$f":"CntyDataLink!$V$144","v":37},{"$f":"CntyDataLink!$W$144","v":33}]
[null,null,"H62ROHUNoGRent","$70,000 to $79,999",{"$f":"CntyDataLink!$X$144","v":53},{"$f":"CntyDataLink!$Y$144","v":38}]
[null,null,"H63MedianGrossRnt","$80,000 to $89,999",{"$f":"CntyDataLink!$Z$144","v":135},{"$f":"CntyDataLink!$AA$144","v":80}]
[null,null,null,"$90,000 to $99,999",{"$f":"CntyDataLink!$AB$144","v":23},{"$f":"CntyDataLink!$AC$144","v":26}]
[null,null,null,"$100,000 to $124,999",{"$f":"CntyDataLink!$AD$144","v":222},{"$f":"CntyDataLink!$AE$144","v":138}]
[null,null,null,"$125,000 to $149,999",{"$f":"CntyDataLink!$AF$144","v":37},{"$f":"CntyDataLink!$AG$144","v":29}]
[null,null,null,"$150,000 to $174,999",{"$f":"CntyDataLink!$AH$144","v":197},{"$f":"CntyDataLink!$AI$144","v":109}]
[null,null,null,"$175,000 to $199,999",{"$f":"CntyDataLink!$AJ$144","v":178},{"$f":"CntyDataLink!$AK$144","v":83}]
[null,null,null,"$200,000 to $249,999",{"$f":"CntyDataLink!$AL$144","v":965},{"$f":"CntyDataLink!$AM$144","v":227}]
[null,null,null,"$250,000 to $299,999",{"$f":"CntyDataLink!$AN$144","v":1596},{"$f":"CntyDataLink!$AO$144","v":254}]
[null,null,null,"$300,000 to $399,999",{"$f":"CntyDataLink!$AP$144","v":2776},{"$f":"CntyDataLink!$AQ$144","v":321}]
[null,null,null,"$400,000 to $499,999",{"$f":"CntyDataLink!$AR$144","v":1434},{"$f":"CntyDataLink!$AS$144","v":217}]
[null,null,null,"$500,000 to $749,999",{"$f":"CntyDataLink!$AT$144","v":791},{"$f":"CntyDataLink!$AU$144","v":186}]
[null,null,null,"$750,000 to $999,999",{"$f":"CntyDataLink!$AV$144","v":177},{"$f":"CntyDataLink!$AW$144","v":93}]
[null,null,null,"$1,000,000 to $1,499,999",{"$f":"CntyDataLink!$AX$144","v":21},{"$f":"CntyDataLink!$AY$144","v":23}]
[null,null,null,"$1,500,000 to $1,999,999",{"$f":"CntyDataLink!$AZ$144","v":16},{"$f":"CntyDataLink!$BA$144","v":18}]
[null,null,null,"$2,000,000 or more",{"$f":"CntyDataLink!$BB$144","v":0},{"$f":"CntyDataLink!$BC$144","v":21}]
[]
[null,null,null,"Median Value",{"$f":"CntyDataLink!$BD$144","v":325600},{"$f":"CntyDataLink!$BE$144","v":8903}]
[]
[]
[]
[null,null,null,"Source: 2015-2019 American Community Survey Tables B25075 and B25077"]
[null,null,null,"Data from the American Community Survey are estimates."]

{"sheet":"OwnerHousingCostPrior5Year","index":17,"n_rows":70,"n_cols":17,"rows_kept":70,"cut":false,"hidden":true,"merged":[]}
[]
[null,null,"HIDE THIS COLUMN",{"$f":"DropDownList!$B$47","v":"Atkinson"}]
[null,null,null,"OWNER HOUSING COST CHARACTERISTICS"]
[]
[]
[]
[]
[]
[]
[]
[]
[]
[]
[]
[]
[]
[]
[]
[]
[]
[]
[]
[]
[]
[]
[]
[]
[]
[]
[]
[]
[]
[]
[]
[]
[]
[null,null,null,"Income in 2014 Inflation Adjusted Dollars"]
[null,null,null,"Source: 2010-2014 American Community Survey Table B25106"]
[null,null,null,"Data from the American Community Survey are estimates."]
[]
[]
[null,null,null,{"$f":"CntyDataLinkPrior5YearEstimates!$A$108","v":"Atkinson"}]
[]
[null,null,null,{"$f":"D3","v":"OWNER HOUSING COST CHARACTERISTICS"}]
[]
[null,null,null,"Owner Households by "]
[null,null,null,"Selected Monthly Housing Costs as a Percent of 2014 Household Income",null,null,null,"By Household Income"]
[null,null,"H73RenterOccHU",null,"Specified Owner Occ Housing Units","Margin of Error Owner Occ Housing Units",null,"Less than $20,000",{"$f":"\"Margin of Error \"&H48","v":"Margin of Error Less than $20,000"},"$20,000 to $34,999",{"$f":"\"Margin of Error \"&J48","v":"Margin of Error $20,000 to $34,999"},"$35,000 to $49,999",{"$f":"\"Margin of Error \"&L48","v":"Margin of Error $35,000 to $49,999"},"$50,000 to $74,999",{"$f":"\"Margin of Error \"&N48","v":"Margin of Error $50,000 to $74,999"},"$75,000 or More",{"$f":"\"Margin of Error \"&P48","v":"Margin of Error $75,000 or More"}]
[]
[null,null,null,"Total Households",{"$f":"CntyDataLinkPrior5YearEstimates!$BF144","v":8451},{"$f":"CntyDataLinkPrior5YearEstimates!$BG$144","v":334},null,{"$f":"CntyDataLinkPrior5YearEstimates!$BZ$144","v":8451},{"$f":"CntyDataLinkPrior5YearEstimates!$CA$144","v":334},{"$f":"CntyDataLinkPrior5YearEstimates!$CH$144","v":453},{"$f":"CntyDataLinkPrior5YearEstimates!$CI$144","v":142},{"$f":"CntyDataLinkPrior5YearEstimates!$CP$144","v":544},{"$f":"CntyDataLinkPrior5YearEstimates!$CQ$144","v":148},{"$f":"CntyDataLinkPrior5YearEstimates!$CX$144","v":500},{"$f":"CntyDataLinkPrior5YearEstimates!$CY$144","v":156},{"$f":"CntyDataLinkPrior5YearEstimates!$DF$144","v":678},{"$f":"CntyDataLinkPrior5YearEstimates!$DG$144","v":177}]
[null,null,null,"Monthly Costs Less than 20% of HH Income",{"$f":"CntyDataLinkPrior5YearEstimates!$BH$144","v":3297},{"$f":"CntyDataLinkPrior5YearEstimates!$BI$144","v":349.39232962387712},null,{"$f":"CntyDataLinkPrior5YearEstimates!$CB$144","v":494},{"$f":"CntyDataLinkPrior5YearEstimates!$CC$144","v":148},{"$f":"CntyDataLinkPrior5YearEstimates!CJ$144","v":726},{"$f":"CntyDataLinkPrior5YearEstimates!CK$144","v":169},{"$f":"CntyDataLinkPrior5YearEstimates!CR$144","v":964},{"$f":"CntyDataLinkPrior5YearEstimates!CS$144","v":205},{"$f":"CntyDataLinkPrior5YearEstimates!CZ$144","v":1211},{"$f":"CntyDataLinkPrior5YearEstimates!DA$144","v":212},{"$f":"CntyDataLinkPrior5YearEstimates!DH$144","v":4999},{"$f":"CntyDataLinkPrior5YearEstimates!DI$144","v":319}]
[null,null,null,"Monthly Costs 20% to 29.9% of HH Income",{"$f":"CntyDataLinkPrior5YearEstimates!$BJ$144","v":2293},{"$f":"CntyDataLinkPrior5YearEstimates!$BK$144","v":328.22248551858843},null,{"$f":"CntyDataLinkPrior5YearEstimates!$CD$144","v":24},{"$f":"CntyDataLinkPrior5YearEstimates!$CE$144","v":27},{"$f":"CntyDataLinkPrior5YearEstimates!CL$144","v":10},{"$f":"CntyDataLinkPrior5YearEstimates!CM$144","v":15},{"$f":"CntyDataLinkPrior5YearEstimates!CT$144","v":168},{"$f":"CntyDataLinkPrior5YearEstimates!CU$144","v":74},{"$f":"CntyDataLinkPrior5YearEstimates!DB$144","v":339},{"$f":"CntyDataLinkPrior5YearEstimates!DC$144","v":104},{"$f":"CntyDataLinkPrior5YearEstimates!DJ$144","v":2756},{"$f":"CntyDataLinkPrior5YearEstimates!DK$144","v":287}]
[null,null,null,"Monthly Costs Less Than 30% of HH Income",{"$f":"CntyDataLinkPrior5YearEstimates!$BL$144","v":5590},{"$f":"CntyDataLinkPrior5YearEstimates!$BM$144","v":479.37980766819953},null,{"$f":"H52+H51","v":518},{"$f":"SQRT((I52^2)+(I51^2))","v":150.44268011438774},{"$f":"J52+J51","v":736},{"$f":"SQRT((K52^2)+(K51^2))","v":169.66437457521835},{"$f":"L52+L51","v":1132},{"$f":"SQRT((M52^2)+(M51^2))","v":217.947241322298},{"$f":"N52+N51","v":1550},{"$f":"SQRT((O52^2)+(O51^2))","v":236.13555429032706},{"$f":"P52+P51","v":7755},{"$f":"SQRT((Q52^2)+(Q51^2))","v":429.1037170661657}]
[null,null,null,"Monthly Costs 30% or More of HH Income",{"$f":"CntyDataLinkPrior5YearEstimates!$BN$144","v":2804},{"$f":"CntyDataLinkPrior5YearEstimates!$BO$144","v":373.69506285205318},null,{"$f":"CntyDataLinkPrior5YearEstimates!$CF$144","v":17},{"$f":"CntyDataLinkPrior5YearEstimates!$CG$144","v":18},{"$f":"CntyDataLinkPrior5YearEstimates!CN$144","v":172},{"$f":"CntyDataLinkPrior5YearEstimates!CO$144","v":80},{"$f":"CntyDataLinkPrior5YearEstimates!CV$144","v":296},{"$f":"CntyDataLinkPrior5YearEstimates!CW$144","v":128},{"$f":"CntyDataLinkPrior5YearEstimates!DD$144","v":194},{"$f":"CntyDataLinkPrior5YearEstimates!DE$144","v":88},{"$f":"CntyDataLinkPrior5YearEstimates!$DL$144","v":1614},{"$f":"CntyDataLinkPrior5YearEstimates!$DM$144","v":235}]
[]
[null,null,null,"Monthly Costs 35% or More of HH Income",{"$f":"CntyDataLinkPrior5YearEstimates!$BT$144","v":1991},{"$f":"CntyDataLinkPrior5YearEstimates!$BU$144","v":312.79226333143214},null,"NA","NA","NA","NA","NA","NA","NA","NA","NA","NA"]
[null,null,null,"Monthly Costs 50% or More of HH Income",{"$f":"CntyDataLinkPrior5YearEstimates!$BV$144","v":1027},{"$f":"CntyDataLinkPrior5YearEstimates!$BW$144","v":225.24875138388668},null,"NA","NA","NA","NA","NA","NA","NA","NA","NA","NA"]
[null,null,null,"Percent not computed",{"$f":"CntyDataLinkPrior5YearEstimates!$BX$144","v":57},{"$f":"CntyDataLinkPrior5YearEstimates!$BY$144","v":38.948684188300895},null,"NA","NA","NA","NA","NA","NA","NA","NA","NA","NA"]
[]
[null,null,null,"Percent of Owner Households Paying ",null,null,null,"By Household Income"]
[null,null,null,{"$f":"D53","v":"Monthly Costs Less Than 30% of HH Income"},{"$f":"E53/E$50","v":0.66146018222695535},null,null,{"$f":"H53/H$50","v":6.1294521358419125E-2},null,{"$f":"J53/J$50","v":1.6247240618101546},null,{"$f":"L53/L$50","v":2.0808823529411766},null,{"$f":"N53/N$50","v":3.1},null,{"$f":"P53/P$50","v":11.438053097345133}]
[null,null,null,{"$f":"D54","v":"Monthly Costs 30% or More of HH Income"},{"$f":"E54/E$50","v":0.33179505383978225},null,null,{"$f":"H54/H50","v":2.0115962607975386E-3},null,{"$f":"J54/J50","v":0.37969094922737306},null,{"$f":"L54/L50","v":0.54411764705882348},null,{"$f":"N54/N50","v":0.38800000000000001},null,{"$f":"P54/P50","v":2.3805309734513274}]
[]
[null,null,null,"Monthly Costs 35% or More of HH Income",{"$f":"E56/E$50","v":0.23559342089693527},null,null,"NA","NA","NA","NA","NA","NA","NA","NA","NA","NA"]
[null,null,null,"Monthly Costs 50% or More of HH Income",{"$f":"E57/E$50","v":0.12152407999053366},null,null,"NA","NA","NA","NA","NA","NA","NA","NA","NA","NA"]
[null,null,null,"Percent not computed",{"$f":"E58/$E$50","v":6.7447639332623354E-3},null,null,"NA","NA","NA","NA","NA","NA","NA","NA","NA","NA"]
[]
[null,null,"H62ROHUGRent200to249",{"$f":"D37","v":"Income in 2014 Inflation Adjusted Dollars"}]
[null,null,null,"Source: 2010-2014 American Community Survey Table B25091; B25106",null,null,null,null,"NA indicates that the American Community Survey does not provide that data."]
[null,null,null,"Data from the American Community Survey are estimates."]

{"sheet":"CntyDataLinkPrior5YearEstimates","index":18,"n_rows":167,"n_cols":255,"rows_kept":167,"cut":false,"hidden":true,"merged":[]}
[1,{"$f":"A1+1","v":2},{"$f":"B1+1","v":3},4,5,6,7,8,9,10,11,12,13,14,15,{"$f":"O1+1","v":16},17,18,19,20,21,22,23,24,25,26,27,28,29,30,31,32,33,34,35,36,37,38,39,40,41,42,43,44,45,46,47,48,49,50,51,52,53,54,55,56,57,58,59,60,61,62,63,64,65,66,{"$f":"BN1+1","v":67},68,69,70,71,72,73,74,75,76,77,78,79,80,81,82,83,84,85,86,87,88,89,90,91,92,93,94,95,96,97,98,99,100,101,102,103,104,105,106,107,108,109,110,111,112,113,114,115,116,117,118,119,120,121,122,123,124,125,126,127,128,129,130,{"$f":"DZ1+1","v":131},132,133,134,135,136,137,138,139,140,141,142,143,144,145,146,147,148,149,150,151,152,153,154,155,156,157,158,159,160,161,162,163,164,165,166,167,168,169,170,171,172,173,174,175,176,177,178,179,180,181,182,183,184,185,186,187,188,189,190,191,192,193,194,{"$f":"GL1+1","v":195},196,197,198,199,200,201,202,203,204,205,206,207,208,209,210,211,212,213,214,215,216,217,218,219,220,221,222,223,224,225,226,227,228,229,230,231,232,233,234,235,236,237,238,239,240,241,242,243,244,245,246,247,248,249,250,251,252,253,254,255]
[]
["Census 1990 Data -           Query Name:  DPCnty90Census"]
["TownName","Cnty_Code","Census_Cnty_Code","LandAcres","WaterAcres","HousingUnits90Cen","Persons90Cen","Families90Cen","Households90cen","MalePop90cen","FemalePop90cen","WhitePop","BlackPop","AmerIndianPop","AsianPIPop","OtherRacePop","HispanicOrPop","AgeUnder15_90cen","Age15to24_90cen","Age25to34_90cen","Age35to44_90cen","Age45to54_90cen","Age55to64_90cen","Age65to74_90cen","Age75andOver_90cen","PersonsInHH90cen","PersonsInFamHH90cen","PersonsInGC","PersonsPerHH90cen","PersonsPerFam90Cen","SinglePersonHH90cen","MarriedCoupleHH90cen","SingleParentHH90cen","NonFamilyHH90cen","TotalHousingUnits","OccupiedHousingUnits","VacantHousingUnits","OwnerOccHU","RenterOccHU","VacantForRent90","VacantForSale90","VacantSeasonalRec","SingFamHU90cen","MultiFamHU90cen","MobileHom90cen","SingFamOwnHU90cen","MultiFamOwnHU90cen","MobileHomOwnHU90cen","SingFamRntrHU90cen","MultiFamRntrHU90cen","MobileHomRntrHU90cen","HU<5yrs90cen","HU5to20yrs90cen","HU20to50yrs90cen","HU>50yrs90cen","Units0Bedroom90cen","Units1Bedroom90cen","Units2Bedroom90cen","Units3Bedroom90cen","Units4+Bedroom90cen","HI<5K","HI5Kto10K","HI10Kto15K","HI15Kto25K","HI25Kto35K","HI35Kto50K","HI50Kto75K","HI75Kto100K","HI>100K","MedHI","HH<25HI<5K","HH<25HI5Kto10K","HH<25HI10Kto15K","HH<25HI15Kto25K","HH<25HI25Kto35K","HH<25HI35Kto50K","HH<25HI50Kto75K","HH<25HI75Kto100K","HH<25HI>100K","HH25to34HI<5K","HH25to34HI5Kto10K","HH25to34HI10Kto15K","HH25to34HI15Kto25K","HH25to34HI25Kto35K","HH25to34HI35Kto50K","HH25to34HI50Kto75K","HH25to34HI75Kto100K","HH25to34HI>100K","HH35to44HI<5K","HH35to44HI5Kto10K","HH35to44HI10Kto15K","HH35to44HI15Kto25K","HH35to44HI25Kto35K","HH35to44HI35Kto50K","HH35to44HI50Kto75K","HH35to44HI75Kto100K","HH35to44HI>100K","HH45to54HI<5K","HH45to54HI5Kto10K","HH45to54HI10Kto15K","HH45to54HI15Kto25K","HH45to54HI25Kto35K","HH45to54HI35Kto50K","HH45to54HI50Kto75K","HH45to54HI75Kto100K","HH45to54HI>100K","HH55to64HI<5K","HH55to64HI5Kto10K","HH55to64HI10Kto15K","HH55to64HI15Kto25K","HH55to64HI25Kto35K","HH55to64HI35Kto50K","HH55to64HI50Kto75K","HH55to64HI75Kto100K","HH55to64HI>100K","HH65to74HI<5K","HH65to74HI5Kto10K","HH65to74HI10Kto15K","HH65to74HI15Kto25K","HH65to74HI25Kto35K","HH65to74HI35Kto50K","HH65to74HI50Kto75K","HH65to74HI75Kto100K","HH65to74HI>100K","HH>75HI<5K","HH>75HI5Kto10K","HH>75HI10Kto15K","HH>75HI15Kto25K","HH>75HI25Kto35K","HH>75HI35Kto50K","HH>75HI50Kto75K","HH>75HI75Kto100K","HH>75HI>100K","SchoolEnrollment1thru12","Pop25andOver","HSGradorHigher","CollGradorHigher","NativePop","ForeignBornPop","BornStateOfRes","NativePop2","ForeignBornPop2","DroveAlone","CarPooled","PublicTranspt","Walked","OtherMeans","WorkedAtHome","HHInc<10K","HHInc10to15K","HHInc15to25K","HHInc25to35K","HHInc35to50K","HHInc50to75K","HHInc75to100K","HHInc100to150K","HHInc>150K"]
[null,{"$f":"VLOOKUP(DropDownList!$A$47,CntyQuery!$A$4:$FA$46,B1)","v":15005},{"$f":"VLOOKUP(DropDownList!$A$47,CntyQuery!$A$4:$FA$46,C1)","v":"02340"},{"$f":"VLOOKUP(DropDownList!$A$47,CntyQuery!$A$4:$FA$46,D1)","v":7154.53},{"$f":"VLOOKUP(DropDownList!$A$47,CntyQuery!$A$4:$FA$46,E1)","v":103.92},{"$f":"VLOOKUP(DropDownList!$A$47,CntyQuery!$A$4:$FA$46,F1)","v":1885},{"$f":"VLOOKUP(DropDownList!$A$47,CntyQuery!$A$4:$FA$46,G1)","v":5188},{"$f":"VLOOKUP(DropDownList!$A$47,CntyQuery!$A$4:$FA$46,H1)","v":1449},{"$f":"VLOOKUP(DropDownList!$A$47,CntyQuery!$A$4:$FA$46,I1)","v":1774},{"$f":"VLOOKUP(DropDownList!$A$47,CntyQuery!$A$4:$FA$46,J1)","v":2605},{"$f":"VLOOKUP(DropDownList!$A$47,CntyQuery!$A$4:$FA$46,K1)","v":2583},{"$f":"VLOOKUP(DropDownList!$A$47,CntyQuery!$A$4:$FA$46,L1)","v":5125},{"$f":"VLOOKUP(DropDownList!$A$47,CntyQuery!$A$4:$FA$46,M1)","v":15},{"$f":"VLOOKUP(DropDownList!$A$47,CntyQuery!$A$4:$FA$46,N1)","v":1},{"$f":"VLOOKUP(DropDownList!$A$47,CntyQuery!$A$4:$FA$46,O1)","v":43},{"$f":"VLOOKUP(DropDownList!$A$47,CntyQuery!$A$4:$FA$46,P1)","v":4},{"$f":"VLOOKUP(DropDownList!$A$47,CntyQuery!$A$4:$FA$46,Q1)","v":12},{"$f":"VLOOKUP(DropDownList!$A$47,CntyQuery!$A$4:$FA$46,R1)","v":1072},{"$f":"VLOOKUP(DropDownList!$A$47,CntyQuery!$A$4:$FA$46,S1)","v":752},{"$f":"VLOOKUP(DropDownList!$A$47,CntyQuery!$A$4:$FA$46,T1)","v":685},{"$f":"VLOOKUP(DropDownList!$A$47,CntyQuery!$A$4:$FA$46,U1)","v":1083},{"$f":"VLOOKUP(DropDownList!$A$47,CntyQuery!$A$4:$FA$46,V1)","v":759},{"$f":"VLOOKUP(DropDownList!$A$47,CntyQuery!$A$4:$FA$46,W1)","v":454},{"$f":"VLOOKUP(DropDownList!$A$47,CntyQuery!$A$4:$FA$46,X1)","v":259},{"$f":"VLOOKUP(DropDownList!$A$47,CntyQuery!$A$4:$FA$46,Y1)","v":124},{"$f":"VLOOKUP(DropDownList!$A$47,CntyQuery!$A$4:$FA$46,Z1)","v":5188},{"$f":"VLOOKUP(DropDownList!$A$47,CntyQuery!$A$4:$FA$46,AA1)","v":4797},{"$f":"VLOOKUP(DropDownList!$A$47,CntyQuery!$A$4:$FA$46,AB1)","v":0},{"$f":"VLOOKUP(DropDownList!$A$47,CntyQuery!$A$4:$FA$46,AC1)","v":2.9244644870349492},{"$f":"VLOOKUP(DropDownList!$A$47,CntyQuery!$A$4:$FA$46,AD1)","v":3.31055900621118},{"$f":"VLOOKUP(DropDownList!$A$47,CntyQuery!$A$4:$FA$46,AE1)","v":271},{"$f":"VLOOKUP(DropDownList!$A$47,CntyQuery!$A$4:$FA$46,AF1)","v":1319},{"$f":"VLOOKUP(DropDownList!$A$47,CntyQuery!$A$4:$FA$46,AG1)","v":130},{"$f":"VLOOKUP(DropDownList!$A$47,CntyQuery!$A$4:$FA$46,AH1)","v":54},{"$f":"VLOOKUP(DropDownList!$A$47,CntyQuery!$A$4:$FA$46,AI1)","v":1885},{"$f":"VLOOKUP(DropDownList!$A$47,CntyQuery!$A$4:$FA$46,AJ1)","v":1774},{"$f":"VLOOKUP(DropDownList!$A$47,CntyQuery!$A$4:$FA$46,AK1)","v":111},{"$f":"VLOOKUP(DropDownList!$A$47,CntyQuery!$A$4:$FA$46,AL1)","v":1549},{"$f":"VLOOKUP(DropDownList!$A$47,CntyQuery!$A$4:$FA$46,AM1)","v":225},{"$f":"VLOOKUP(DropDownList!$A$47,CntyQuery!$A$4:$FA$46,AN1)","v":2},{"$f":"VLOOKUP(DropDownList!$A$47,CntyQuery!$A$4:$FA$46,AO1)","v":18},{"$f":"VLOOKUP(DropDownList!$A$47,CntyQuery!$A$4:$FA$46,AP1)","v":74},{"$f":"VLOOKUP(DropDownList!$A$47,CntyQuery!$A$4:$FA$46,AQ1)","v":1591},{"$f":"VLOOKUP(DropDownList!$A$47,CntyQuery!$A$4:$FA$46,AR1)","v":281},{"$f":"VLOOKUP(DropDownList!$A$47,CntyQuery!$A$4:$FA$46,AS1)","v":13},{"$f":"VLOOKUP(DropDownList!$A$47,CntyQuery!$A$4:$FA$46,AT1)","v":1436},{"$f":"VLOOKUP(DropDownList!$A$47,CntyQuery!$A$4:$FA$46,AU1)","v":104},{"$f":"VLOOKUP(DropDownList!$A$47,CntyQuery!$A$4:$FA$46,AV1)","v":13},{"$f":"VLOOKUP(DropDownList!$A$47,CntyQuery!$A$4:$FA$46,AW1)","v":58},{"$f":"VLOOKUP(DropDownList!$A$47,CntyQuery!$A$4:$FA$46,AX1)","v":164},{"$f":"VLOOKUP(DropDownList!$A$47,CntyQuery!$A$4:$FA$46,AY1)","v":3},{"$f":"VLOOKUP(DropDownList!$A$47,CntyQuery!$A$4:$FA$46,AZ1)","v":257},{"$f":"VLOOKUP(DropDownList!$A$47,CntyQuery!$A$4:$FA$46,BA1)","v":892},{"$f":"VLOOKUP(DropDownList!$A$47,CntyQuery!$A$4:$FA$46,BB1)","v":562},{"$f":"VLOOKUP(DropDownList!$A$47,CntyQuery!$A$4:$FA$46,BC1)","v":174},{"$f":"VLOOKUP(DropDownList!$A$47,CntyQuery!$A$4:$FA$46,BD1)","v":8},{"$f":"VLOOKUP(DropDownList!$A$47,CntyQuery!$A$4:$FA$46,BE1)","v":196},{"$f":"VLOOKUP(DropDownList!$A$47,CntyQuery!$A$4:$FA$46,BF1)","v":251},{"$f":"VLOOKUP(DropDownList!$A$47,CntyQuery!$A$4:$FA$46,BG1)","v":946},{"$f":"VLOOKUP(DropDownList!$A$47,CntyQuery!$A$4:$FA$46,BH1)","v":484},{"$f":"VLOOKUP(DropDownList!$A$47,CntyQuery!$A$4:$FA$46,BI1)","v":39},{"$f":"VLOOKUP(DropDownList!$A$47,CntyQuery!$A$4:$FA$46,BJ1)","v":42},{"$f":"VLOOKUP(DropDownList!$A$47,CntyQuery!$A$4:$FA$46,BK1)","v":51},{"$f":"VLOOKUP(DropDownList!$A$47,CntyQuery!$A$4:$FA$46,BL1)","v":124},{"$f":"VLOOKUP(DropDownList!$A$47,CntyQuery!$A$4:$FA$46,BM1)","v":133},{"$f":"VLOOKUP(DropDownList!$A$47,CntyQuery!$A$4:$FA$46,BN1)","v":287},{"$f":"VLOOKUP(DropDownList!$A$47,CntyQuery!$A$4:$FA$46,BO1)","v":502},{"$f":"VLOOKUP(DropDownList!$A$47,CntyQuery!$A$4:$FA$46,BP1)","v":328},{"$f":"VLOOKUP(DropDownList!$A$47,CntyQuery!$A$4:$FA$46,BQ1)","v":219},{"$f":"VLOOKUP(DropDownList!$A$47,CntyQuery!$A$4:$FA$46,BR1)","v":58239},{"$f":"VLOOKUP(DropDownList!$A$47,CntyQuery!$A$4:$FA$46,BS1)","v":0},{"$f":"VLOOKUP(DropDownList!$A$47,CntyQuery!$A$4:$FA$46,BT1)","v":9},{"$f":"VLOOKUP(DropDownList!$A$47,CntyQuery!$A$4:$FA$46,BU1)","v":0},{"$f":"VLOOKUP(DropDownList!$A$47,CntyQuery!$A$4:$FA$46,BV1)","v":9},{"$f":"VLOOKUP(DropDownList!$A$47,CntyQuery!$A$4:$FA$46,BW1)","v":0},{"$f":"VLOOKUP(DropDownList!$A$47,CntyQuery!$A$4:$FA$46,BX1)","v":0},{"$f":"VLOOKUP(DropDownList!$A$47,CntyQuery!$A$4:$FA$46,BY1)","v":0},{"$f":"VLOOKUP(DropDownList!$A$47,CntyQuery!$A$4:$FA$46,BZ1)","v":0},{"$f":"VLOOKUP(DropDownList!$A$47,CntyQuery!$A$4:$FA$46,CA1)","v":0},{"$f":"VLOOKUP(DropDownList!$A$47,CntyQuery!$A$4:$FA$46,CB1)","v":7},{"$f":"VLOOKUP(DropDownList!$A$47,CntyQuery!$A$4:$FA$46,CC1)","v":5},{"$f":"VLOOKUP(DropDownList!$A$47,CntyQuery!$A$4:$FA$46,CD1)","v":7},{"$f":"VLOOKUP(DropDownList!$A$47,CntyQuery!$A$4:$FA$46,CE1)","v":19},{"$f":"VLOOKUP(DropDownList!$A$47,CntyQuery!$A$4:$FA$46,CF1)","v":49},{"$f":"VLOOKUP(DropDownList!$A$47,CntyQuery!$A$4:$FA$46,CG1)","v":36},{"$f":"VLOOKUP(DropDownList!$A$47,CntyQuery!$A$4:$FA$46,CH1)","v":86},{"$f":"VLOOKUP(DropDownList!$A$47,CntyQuery!$A$4:$FA$46,CI1)","v":57},{"$f":"VLOOKUP(DropDownList!$A$47,CntyQuery!$A$4:$FA$46,CJ1)","v":15},{"$f":"VLOOKUP(DropDownList!$A$47,CntyQuery!$A$4:$FA$46,CK1)","v":0},{"$f":"VLOOKUP(DropDownList!$A$47,CntyQuery!$A$4:$FA$46,CL1)","v":6},{"$f":"VLOOKUP(DropDownList!$A$47,CntyQuery!$A$4:$FA$46,CM1)","v":0},{"$f":"VLOOKUP(DropDownList!$A$47,CntyQuery!$A$4:$FA$46,CN1)","v":43},{"$f":"VLOOKUP(DropDownList!$A$47,CntyQuery!$A$4:$FA$46,CO1)","v":27},{"$f":"VLOOKUP(DropDownList!$A$47,CntyQuery!$A$4:$FA$46,CP1)","v":92},{"$f":"VLOOKUP(DropDownList!$A$47,CntyQuery!$A$4:$FA$46,CQ1)","v":160},{"$f":"VLOOKUP(DropDownList!$A$47,CntyQuery!$A$4:$FA$46,CR1)","v":155},{"$f":"VLOOKUP(DropDownList!$A$47,CntyQuery!$A$4:$FA$46,CS1)","v":118},{"$f":"VLOOKUP(DropDownList!$A$47,CntyQuery!$A$4:$FA$46,CT1)","v":0},{"$f":"VLOOKUP(DropDownList!$A$47,CntyQuery!$A$4:$FA$46,CU1)","v":14},{"$f":"VLOOKUP(DropDownList!$A$47,CntyQuery!$A$4:$FA$46,CV1)","v":0},{"$f":"VLOOKUP(DropDownList!$A$47,CntyQuery!$A$4:$FA$46,CW1)","v":9},{"$f":"VLOOKUP(DropDownList!$A$47,CntyQuery!$A$4:$FA$46,CX1)","v":16},{"$f":"VLOOKUP(DropDownList!$A$47,CntyQuery!$A$4:$FA$46,CY1)","v":66},{"$f":"VLOOKUP(DropDownList!$A$47,CntyQuery!$A$4:$FA$46,CZ1)","v":125},{"$f":"VLOOKUP(DropDownList!$A$47,CntyQuery!$A$4:$FA$46,DA1)","v":76},{"$f":"VLOOKUP(DropDownList!$A$47,CntyQuery!$A$4:$FA$46,DB1)","v":51},{"$f":"VLOOKUP(DropDownList!$A$47,CntyQuery!$A$4:$FA$46,DC1)","v":9},{"$f":"VLOOKUP(DropDownList!$A$47,CntyQuery!$A$4:$FA$46,DD1)","v":0},{"$f":"VLOOKUP(DropDownList!$A$47,CntyQuery!$A$4:$FA$46,DE1)","v":7},{"$f":"VLOOKUP(DropDownList!$A$47,CntyQuery!$A$4:$FA$46,DF1)","v":13},{"$f":"VLOOKUP(DropDownList!$A$47,CntyQuery!$A$4:$FA$46,DG1)","v":4},{"$f":"VLOOKUP(DropDownList!$A$47,CntyQuery!$A$4:$FA$46,DH1)","v":54},{"$f":"VLOOKUP(DropDownList!$A$47,CntyQuery!$A$4:$FA$46,DI1)","v":99},{"$f":"VLOOKUP(DropDownList!$A$47,CntyQuery!$A$4:$FA$46,DJ1)","v":27},{"$f":"VLOOKUP(DropDownList!$A$47,CntyQuery!$A$4:$FA$46,DK1)","v":35},{"$f":"VLOOKUP(DropDownList!$A$47,CntyQuery!$A$4:$FA$46,DL1)","v":10},{"$f":"VLOOKUP(DropDownList!$A$47,CntyQuery!$A$4:$FA$46,DM1)","v":0},{"$f":"VLOOKUP(DropDownList!$A$47,CntyQuery!$A$4:$FA$46,DN1)","v":19},{"$f":"VLOOKUP(DropDownList!$A$47,CntyQuery!$A$4:$FA$46,DO1)","v":11},{"$f":"VLOOKUP(DropDownList!$A$47,CntyQuery!$A$4:$FA$46,DP1)","v":37},{"$f":"VLOOKUP(DropDownList!$A$47,CntyQuery!$A$4:$FA$46,DQ1)","v":35},{"$f":"VLOOKUP(DropDownList!$A$47,CntyQuery!$A$4:$FA$46,DR1)","v":10},{"$f":"VLOOKUP(DropDownList!$A$47,CntyQuery!$A$4:$FA$46,DS1)","v":13},{"$f":"VLOOKUP(DropDownList!$A$47,CntyQuery!$A$4:$FA$46,DT1)","v":0},{"$f":"VLOOKUP(DropDownList!$A$47,CntyQuery!$A$4:$FA$46,DU1)","v":13},{"$f":"VLOOKUP(DropDownList!$A$47,CntyQuery!$A$4:$FA$46,DV1)","v":8},{"$f":"VLOOKUP(DropDownList!$A$47,CntyQuery!$A$4:$FA$46,DW1)","v":18},{"$f":"VLOOKUP(DropDownList!$A$47,CntyQuery!$A$4:$FA$46,DX1)","v":20},{"$f":"VLOOKUP(DropDownList!$A$47,CntyQuery!$A$4:$FA$46,DY1)","v":0},{"$f":"VLOOKUP(DropDownList!$A$47,CntyQuery!$A$4:$FA$46,DZ1)","v":4},{"$f":"VLOOKUP(DropDownList!$A$47,CntyQuery!$A$4:$FA$46,EA1)","v":22},{"$f":"VLOOKUP(DropDownList!$A$47,CntyQuery!$A$4:$FA$46,EB1)","v":0},{"$f":"VLOOKUP(DropDownList!$A$47,CntyQuery!$A$4:$FA$46,EC1)","v":0},{"$f":"VLOOKUP(DropDownList!$A$47,CntyQuery!$A$4:$FA$46,ED1)","v":990},{"$f":"VLOOKUP(DropDownList!$A$47,CntyQuery!$A$4:$FA$46,EE1)","v":3364},{"$f":"VLOOKUP(DropDownList!$A$47,CntyQuery!$A$4:$FA$46,EF1)","v":3090},{"$f":"VLOOKUP(DropDownList!$A$47,CntyQuery!$A$4:$FA$46,EG1)","v":1012},{"$f":"VLOOKUP(DropDownList!$A$47,CntyQuery!$A$4:$FA$46,EH1)","v":5039},{"$f":"VLOOKUP(DropDownList!$A$47,CntyQuery!$A$4:$FA$46,EI1)","v":149},{"$f":"VLOOKUP(DropDownList!$A$47,CntyQuery!$A$4:$FA$46,EJ1)","v":374},{"$f":"VLOOKUP(DropDownList!$A$47,CntyQuery!$A$4:$FA$46,EK1)","v":5039},{"$f":"VLOOKUP(DropDownList!$A$47,CntyQuery!$A$4:$FA$46,EL1)","v":149},{"$f":"VLOOKUP(DropDownList!$A$47,CntyQuery!$A$4:$FA$46,EM1)","v":2415},{"$f":"VLOOKUP(DropDownList!$A$47,CntyQuery!$A$4:$FA$46,EN1)","v":313},{"$f":"VLOOKUP(DropDownList!$A$47,CntyQuery!$A$4:$FA$46,EO1)","v":20},{"$f":"VLOOKUP(DropDownList!$A$47,CntyQuery!$A$4:$FA$46,EP1)","v":31},{"$f":"VLOOKUP(DropDownList!$A$47,CntyQuery!$A$4:$FA$46,EQ1)","v":12},{"$f":"VLOOKUP(DropDownList!$A$47,CntyQuery!$A$4:$FA$46,ER1)","v":99},{"$f":"VLOOKUP(DropDownList!$A$47,CntyQuery!$A$4:$FA$46,ES1)","v":81},{"$f":"VLOOKUP(DropDownList!$A$47,CntyQuery!$A$4:$FA$46,ET1)","v":51},{"$f":"VLOOKUP(DropDownList!$A$47,CntyQuery!$A$4:$FA$46,EU1)","v":124},{"$f":"VLOOKUP(DropDownList!$A$47,CntyQuery!$A$4:$FA$46,EV1)","v":133},{"$f":"VLOOKUP(DropDownList!$A$47,CntyQuery!$A$4:$FA$46,EW1)","v":287},{"$f":"VLOOKUP(DropDownList!$A$47,CntyQuery!$A$4:$FA$46,EX1)","v":502},{"$f":"VLOOKUP(DropDownList!$A$47,CntyQuery!$A$4:$FA$46,EY1)","v":328},{"$f":"VLOOKUP(DropDownList!$A$47,CntyQuery!$A$4:$FA$46,EZ1)","v":150},{"$f":"VLOOKUP(DropDownList!$A$47,CntyQuery!$A$4:$FA$46,FA1)","v":69}]
[]
[]
["Census 1990 Data -    Query Name:  TownSTF1Qry1"]
["NAME","COUSUBFP","Census_Cnty_Code","FIPS","LandAcres","WaterAcres","HousingUnits90Cen","P01Persons90Cen","P02Families90Cen","P03Households90cen","P05MalePop90cen","P05FemalePop90cen","P06WhitePop","P06BlackPop","P06AmerIndianPop","P06AsianPIPop","P06OtherRacePop","P08HispanicOrPop","P11AgeUnder15_90cen","P11Age15to24_90cen","P11Age25to34_90cen","P11Age35to44_90cen","P11Age45to54_90cen","P11Age55to64_90cen","P11Age65to74_90cen","P11Age75andOver_90cen","P15PersonsInHH90cen","P15PersonsInFamHH90cen","P15PersonsInGC","PersonsPerHH90cen","PersonsPerFam90Cen","P16SinglePersonHH90cen","P16MarriedCoupleHH90cen","P16SingleParentHH90cen","P16NonFamilyHH90cen","H01TotalHousingUnits","H02OccupiedHousingUnits","H02VacantHousingUnits","H03OwnerOccHU","H03RenterOccHU","H05VacantForRent90","H05VacantForSale90","H05VacantSeasonalRec","H23OOHUVal<15k","H23OOHUVal15to19k","H23OOHUVal20to24k","H23OOHUVal25to29k","H23OOHUVal30to34k","H23OOHUVal35to39k","H23OOHUVal40to44k","H23OOHUVal45to49k","H23OOHUVal50to59k","H23OOHUVal60to74k","H23OOHUVal75to99k","H23OOHUVal100to124k","H23OOHUVal125to149k","H23OOHUVal150to174k","H23OOHUVal175to199k","H23OOHUVal200to249k","H23OOHUVal250to299k","H23OOHUVal300to399k","H23OOHUVal400to499k","H23OOHUVal500kOrMore","H23BOOHUMedVal","H41SingFamHU90cen","H41MultiFamHU90cen","H41MobileHom90cen","H43SingFamOwnHU90cen","H43MultiFamOwnHU90cen","H43MobileHomOwnHU90cen","H43SingFamRntrHU90cen","H43MultiFamRntrHU90cen","H43MobileHomRntrHU90cen","H41HU1UnitDet","H41HU1UnitAtt","H41HU2Unit","H41HU3to4Unit","H41HU5to9Unit","H41HU10to19Unit","H41HU20to49Unit","H41HU50PlusUnit","H41HUMobilH","H41HUOther"]
[null,{"$f":"VLOOKUP(DropDownList!$B$47,CntyQuery!$A$51:$CE$93,B$1)","v":801},{"$f":"VLOOKUP(DropDownList!$B$47,CntyQuery!$A$51:$CE$93,C$1)","v":15005},{"$f":"VLOOKUP(DropDownList!$B$47,CntyQuery!$A$51:$CE$93,D$1)","v":"02340"},{"$f":"VLOOKUP(DropDownList!$B$47,CntyQuery!$A$51:$CE$93,E$1)","v":7154.53},{"$f":"VLOOKUP(DropDownList!$B$47,CntyQuery!$A$51:$CE$93,F$1)","v":103.92},{"$f":"VLOOKUP(DropDownList!$B$47,CntyQuery!$A$51:$CE$93,G$1)","v":1885},{"$f":"VLOOKUP(DropDownList!$B$47,CntyQuery!$A$51:$CE$93,H$1)","v":5188},{"$f":"VLOOKUP(DropDownList!$B$47,CntyQuery!$A$51:$CE$93,I$1)","v":1449},{"$f":"VLOOKUP(DropDownList!$B$47,CntyQuery!$A$51:$CE$93,J$1)","v":1774},{"$f":"VLOOKUP(DropDownList!$B$47,CntyQuery!$A$51:$CE$93,K$1)","v":2605},{"$f":"VLOOKUP(DropDownList!$B$47,CntyQuery!$A$51:$CE$93,L$1)","v":2583},{"$f":"VLOOKUP(DropDownList!$B$47,CntyQuery!$A$51:$CE$93,M$1)","v":5125},{"$f":"VLOOKUP(DropDownList!$B$47,CntyQuery!$A$51:$CE$93,N$1)","v":15},{"$f":"VLOOKUP(DropDownList!$B$47,CntyQuery!$A$51:$CE$93,O$1)","v":1},{"$f":"VLOOKUP(DropDownList!$B$47,CntyQuery!$A$51:$CE$93,P$1)","v":43},{"$f":"VLOOKUP(DropDownList!$B$47,CntyQuery!$A$51:$CE$93,Q$1)","v":4},{"$f":"VLOOKUP(DropDownList!$B$47,CntyQuery!$A$51:$CE$93,R$1)","v":12},{"$f":"VLOOKUP(DropDownList!$B$47,CntyQuery!$A$51:$CE$93,S$1)","v":1072},{"$f":"VLOOKUP(DropDownList!$B$47,CntyQuery!$A$51:$CE$93,T$1)","v":752},{"$f":"VLOOKUP(DropDownList!$B$47,CntyQuery!$A$51:$CE$93,U$1)","v":685},{"$f":"VLOOKUP(DropDownList!$B$47,CntyQuery!$A$51:$CE$93,V$1)","v":1083},{"$f":"VLOOKUP(DropDownList!$B$47,CntyQuery!$A$51:$CE$93,W$1)","v":759},{"$f":"VLOOKUP(DropDownList!$B$47,CntyQuery!$A$51:$CE$93,X$1)","v":454},{"$f":"VLOOKUP(DropDownList!$B$47,CntyQuery!$A$51:$CE$93,Y$1)","v":259},{"$f":"VLOOKUP(DropDownList!$B$47,CntyQuery!$A$51:$CE$93,Z$1)","v":124},{"$f":"VLOOKUP(DropDownList!$B$47,CntyQuery!$A$51:$CE$93,AA$1)","v":5188},{"$f":"VLOOKUP(DropDownList!$B$47,CntyQuery!$A$51:$CE$93,AB$1)","v":4797},{"$f":"VLOOKUP(DropDownList!$B$47,CntyQuery!$A$51:$CE$93,AC$1)","v":0},{"$f":"VLOOKUP(DropDownList!$B$47,CntyQuery!$A$51:$CE$93,AD$1)","v":2.9244644870349492},{"$f":"VLOOKUP(DropDownList!$B$47,CntyQuery!$A$51:$CE$93,AE$1)","v":3.31055900621118},{"$f":"VLOOKUP(DropDownList!$B$47,CntyQuery!$A$51:$CE$93,AF$1)","v":271},{"$f":"VLOOKUP(DropDownList!$B$47,CntyQuery!$A$51:$CE$93,AG$1)","v":1319},{"$f":"VLOOKUP(DropDownList!$B$47,CntyQuery!$A$51:$CE$93,AH$1)","v":130},{"$f":"VLOOKUP(DropDownList!$B$47,CntyQuery!$A$51:$CE$93,AI$1)","v":54},{"$f":"VLOOKUP(DropDownList!$B$47,CntyQuery!$A$51:$CE$93,AJ$1)","v":1885},{"$f":"VLOOKUP(DropDownList!$B$47,CntyQuery!$A$51:$CE$93,AK$1)","v":1774},{"$f":"VLOOKUP(DropDownList!$B$47,CntyQuery!$A$51:$CE$93,AL$1)","v":111},{"$f":"VLOOKUP(DropDownList!$B$47,CntyQuery!$A$51:$CE$93,AM$1)","v":1549},{"$f":"VLOOKUP(DropDownList!$B$47,CntyQuery!$A$51:$CE$93,AN$1)","v":225},{"$f":"VLOOKUP(DropDownList!$B$47,CntyQuery!$A$51:$CE$93,AO$1)","v":2},{"$f":"VLOOKUP(DropDownList!$B$47,CntyQuery!$A$51:$CE$93,AP$1)","v":18},{"$f":"VLOOKUP(DropDownList!$B$47,CntyQuery!$A$51:$CE$93,AQ$1)","v":74},{"$f":"VLOOKUP(DropDownList!$B$47,CntyQuery!$A$51:$CE$93,AR$1)","v":0},{"$f":"VLOOKUP(DropDownList!$B$47,CntyQuery!$A$51:$CE$93,AS$1)","v":0},{"$f":"VLOOKUP(DropDownList!$B$47,CntyQuery!$A$51:$CE$93,AT$1)","v":1},{"$f":"VLOOKUP(DropDownList!$B$47,CntyQuery!$A$51:$CE$93,AU$1)","v":0},{"$f":"VLOOKUP(DropDownList!$B$47,CntyQuery!$A$51:$CE$93,AV$1)","v":0},{"$f":"VLOOKUP(DropDownList!$B$47,CntyQuery!$A$51:$CE$93,AW$1)","v":0},{"$f":"VLOOKUP(DropDownList!$B$47,CntyQuery!$A$51:$CE$93,AX$1)","v":0},{"$f":"VLOOKUP(DropDownList!$B$47,CntyQuery!$A$51:$CE$93,AY$1)","v":1},{"$f":"VLOOKUP(DropDownList!$B$47,CntyQuery!$A$51:$CE$93,AZ$1)","v":1},{"$f":"VLOOKUP(DropDownList!$B$47,CntyQuery!$A$51:$CE$93,BA$1)","v":3},{"$f":"VLOOKUP(DropDownList!$B$47,CntyQuery!$A$51:$CE$93,BB$1)","v":23},{"$f":"VLOOKUP(DropDownList!$B$47,CntyQuery!$A$51:$CE$93,BC$1)","v":64},{"$f":"VLOOKUP(DropDownList!$B$47,CntyQuery!$A$51:$CE$93,BD$1)","v":203},{"$f":"VLOOKUP(DropDownList!$B$47,CntyQuery!$A$51:$CE$93,BE$1)","v":341},{"$f":"VLOOKUP(DropDownList!$B$47,CntyQuery!$A$51:$CE$93,BF$1)","v":266},{"$f":"VLOOKUP(DropDownList!$B$47,CntyQuery!$A$51:$CE$93,BG$1)","v":248},{"$f":"VLOOKUP(DropDownList!$B$47,CntyQuery!$A$51:$CE$93,BH$1)","v":88},{"$f":"VLOOKUP(DropDownList!$B$47,CntyQuery!$A$51:$CE$93,BI$1)","v":69},{"$f":"VLOOKUP(DropDownList!$B$47,CntyQuery!$A$51:$CE$93,BJ$1)","v":16},{"$f":"VLOOKUP(DropDownList!$B$47,CntyQuery!$A$51:$CE$93,BK$1)","v":11},{"$f":"VLOOKUP(DropDownList!$B$47,CntyQuery!$A$51:$CE$93,BL$1)","v":177900},{"$f":"VLOOKUP(DropDownList!$B$47,CntyQuery!$A$51:$CE$93,BM$1)","v":1591},{"$f":"VLOOKUP(DropDownList!$B$47,CntyQuery!$A$51:$CE$93,BN$1)","v":281},{"$f":"VLOOKUP(DropDownList!$B$47,CntyQuery!$A$51:$CE$93,BO$1)","v":13},{"$f":"VLOOKUP(DropDownList!$B$47,CntyQuery!$A$51:$CE$93,BP$1)","v":1436},{"$f":"VLOOKUP(DropDownList!$B$47,CntyQuery!$A$51:$CE$93,BQ$1)","v":104},{"$f":"VLOOKUP(DropDownList!$B$47,CntyQuery!$A$51:$CE$93,BR$1)","v":9},{"$f":"VLOOKUP(DropDownList!$B$47,CntyQuery!$A$51:$CE$93,BS$1)","v":58},{"$f":"VLOOKUP(DropDownList!$B$47,CntyQuery!$A$51:$CE$93,BT$1)","v":164},{"$f":"VLOOKUP(DropDownList!$B$47,CntyQuery!$A$51:$CE$93,BU$1)","v":3},{"$f":"VLOOKUP(DropDownList!$B$47,CntyQuery!$A$51:$CE$93,BV$1)","v":1591},{"$f":"VLOOKUP(DropDownList!$B$47,CntyQuery!$A$51:$CE$93,BW$1)","v":87},{"$f":"VLOOKUP(DropDownList!$B$47,CntyQuery!$A$51:$CE$93,BX$1)","v":40},{"$f":"VLOOKUP(DropDownList!$B$47,CntyQuery!$A$51:$CE$93,BY$1)","v":29},{"$f":"VLOOKUP(DropDownList!$B$47,CntyQuery!$A$51:$CE$93,BZ$1)","v":0},{"$f":"VLOOKUP(DropDownList!$B$47,CntyQuery!$A$51:$CE$93,CA$1)","v":125},{"$f":"VLOOKUP(DropDownList!$B$47,CntyQuery!$A$51:$CE$93,CB$1)","v":0},{"$f":"VLOOKUP(DropDownList!$B$47,CntyQuery!$A$51:$CE$93,CC$1)","v":0},{"$f":"VLOOKUP(DropDownList!$B$47,CntyQuery!$A$51:$CE$93,CD$1)","v":3},{"$f":"VLOOKUP(DropDownList!$B$47,CntyQuery!$A$51:$CE$93,CE$1)","v":10}]
[]
[]
["Census 1990 Data -          Query Name: TownSTF3Qry1"]
["NAME","FIPS","COUSUBFP","LandAcres","WaterAcres","HousingUnits90Cen","P01Persons90Cen","P02Families90Cen","P03Households90cen","H25HU<5yrs90cen","H25HU5to20yrs90cen","H25HU20to50yrs90cen","H25HU>50yrs90cen","H31Units0Bedroom90cen","H31Units1Bedroom90cen","H31Units2Bedroom90cen","H31Units3Bedroom90cen","H31Units4Bedroom90cen","H31Units5+Bedroom90cen","P80HI<5K","P80HI5Kto10K","P80HI10Kto15K","P80HI15Kto25K","P80HI25Kto35K","P80HI35Kto50K","P80HI50Kto75K","P80HI75Kto100K","P80HI>100K","P80AMedHI","P86HH<25HI<5K","P86HH<25HI5Kto10K","P86HH<25HI10Kto15K","P86HH<25HI15Kto25K","P86HH<25HI25Kto35K","P86HH<25HI35Kto50K","P86HH<25HI50Kto75K","P86HH<25HI75Kto100K","P86HH<25HI>100K","P86HH25to34HI<5K","P86HH25to34HI5Kto10K","P86HH25to34HI10Kto15K","P86HH25to34HI15Kto25K","P86HH25to34HI25Kto35K","P86HH25to34HI35Kto50K","P86HH25to34HI50Kto75K","P86HH25to34HI75Kto100K","P86HH25to34HI>100K","P86HH35to44HI<5K","P86HH35to44HI5Kto10K","P86HH35to44HI10Kto15K","P86HH35to44HI15Kto25K","P86HH35to44HI25Kto35K","P86HH35to44HI35Kto50K","P86HH35to44HI50Kto75K","P86HH35to44HI75Kto100K","P86HH35to44HI>100K","P86HH45to54HI<5K","P86HH45to54HI5Kto10K","P86HH45to54HI10Kto15K","P86HH45to54HI15Kto25K","P86HH45to54HI25Kto35K","P86HH45to54HI35Kto50K","P86HH45to54HI50Kto75K","P86HH45to54HI75Kto100K","P86HH45to54HI>100K","P86HH55to64HI<5K","P86HH55to64HI5Kto10K","P86HH55to64HI10Kto15K","P86HH55to64HI15Kto25K","P86HH55to64HI25Kto35K","P86HH55to64HI35Kto50K","P86HH55to64HI50Kto75K","P86HH55to64HI75Kto100K","P86HH55to64HI>100K","P86HH65to74HI<5K","P86HH65to74HI5Kto10K","P86HH65to74HI10Kto15K","P86HH65to74HI15Kto25K","P86HH65to74HI25Kto35K","P86HH65to74HI35Kto50K","P86HH65to74HI50Kto75K","P86HH65to74HI75Kto100K","P86HH65to74HI>100K","P86HH>75HI<5K","P86HH>75HI5Kto10K","P86HH>75HI10Kto15K","P86HH>75HI15Kto25K","P86HH>75HI25Kto35K","P86HH>75HI35Kto50K","P86HH>75HI50Kto75K","P86HH>75HI75Kto100K","P86HH>75HI>100K","P54SchlEnrlPrePrim","P54SchlEnrlElemThrHS","P54SchlEnrlCollege","P54NotEnrlInSch","P57Pop25andOver","P57LessThan9thGrade","P579thto12thNoDip","P57HSGrad","P57SomeCollege","P57AssocDeg","P57BachelDeg","P57GradorProfDeg","P57HSGradorHigher","P57CollGradorHigher","P42NativePop","P42ForeignBornPop","P42BornStateOfRes","P37NativePop2","P37ForeignBornPop2","P49DroveAlone","P49CarPooled","P49PublicTranspt","P49Walked","P49OtherMeans","P49WorkedAtHome","P80HHInc<10K","P80HHInc10to15K","P80HHInc15to25K","P80HHInc25to35K","P80HHInc35to50K","P80HHInc50to75K","P80HHInc75to100K","P80HHInc100to150K","P80HHInc>150K","H25YearStBlt89to90","H25YearStBlt85to88","H25YearStBlt80to84","H25YearStBlt70to79","H25YearStBlt60to69","H25YearStBlt50to59","H25YearStBlt40to49","H25YearStBlt39earlier","P107FamInc<10K","P107FamInc10to15K","P107FamInc15to25K","P107FamInc25to35K","P107FamInc35to50K","P107FamInc50to75K","P107FamInc75to100K","P107FamInc100to150K","P107FamInc>150K","P107AMedFamInc","P110NonFamInc<10K","P110NonFamInc10to15K","P110NonFamInc15to25K","P110NonFamInc25to35K","P110NonFamInc35to50K","P110NonFamInc50to75K","P110NonFamInc75to100K","P110NonFamInc100to150K","P110NonFamInc>150K","P110AMedNonFamInc","H16HU1Room","H16HU2Room","H16HU3Room","H16HU4Room","H16HU5Room","H16HU6Room","H16HU7Room","H16HU8Room","H16HU9+Room","H43GrossRnt<100","H43GrossRnt100to149","H43GrossRnt150to199","H43GrossRnt200to249","H43GrossRnt250to299","H43GrossRnt300to349","H43GrossRnt350to399","H43GrossRnt400to449","H43GrossRnt450to499","H43GrossRnt500to549","H43GrossRnt550to599","H43GrossRnt600to649","H43GrossRnt650to699","H43GrossRnt700to749","H43GrossRnt750to999","H43GrossRnt1000Plus","H43NoCashRent","H43MedGrossRent","H51GrossRnt<20PctHHInc","H51GrossRnt20to24PctHHInc","H51GrossRnt25to29PctHHInc","H51GrossRnt30to34PctHHInc","H51GrossRnt35PctOrMoreHHInc","H51GrossRntAsPctHHIncNotComp","H52HUwMtgMoOwnCst<200","H52HUwMtgMoOwnCst200to299","H52HUwMtgMoOwnCst300to399","H52HUwMtgMoOwnCst400to499","H52HUwMtgMoOwnCst500to599","H52HUwMtgMoOwnCst600to699","H52HUwMtgMoOwnCst700to799","H52HUwMtgMoOwnCst800to899","H52HUwMtgMoOwnCst900to999","H52HUwMtgMoOwnCst1000to1249","H52HUwMtgMoOwnCst1250to1499","H52HUwMtgMoOwnCst1500to1999","H52HUwMtgMoOwnCst2000More","H52HUwNoMtgMoOwnCst<100","H52HUwNoMtgMoOwnCst100to149","H52HUwNoMtgMoOwnCst150to199","H52HUwNoMtgMoOwnCst200to249","H52HUwNoMtgMoOwnCst250to299","H52HUwNoMtgMoOwnCst300to349","H52HUwNoMtgMoOwnCst350to399","H52HUwNoMtgMoOwnCst400More","H52AMedMoOwnCstWMortg","H52AMedMoOwnCstWNoMortg","H58HUwMtgMOC<20pHHInc","H58HUwMtgMOC20to24pHHInc","H58HUwMtgMOC25to29pHHInc","H58HUwMtgMOC30to34pHHInc","H58wMtgMOC>35pHHInc","H58HUwMtgMOCNotComp","H58HUwNoMtgMOC<20pHHInc","H58HUwNoMtgMOC20to24pHHInc","H58HUwNoMtgMOC25to29pHHInc","H58HUwNoMtgMOC30to34pHHInc","H58wNoMtgMOC>35pHHInc","H58HUwNoMtgMOCNotComp","H61OOHUVal<15k","H61OOHUVal15to19k","H61OOHUVal20to24k","H61OOHUVal25to29k","H61OOHUVal30to34k","H61OOHUVal35to39k","H61OOHUVal40to44k","H61OOHUVal45to49k","H61OOHUVal50to59k","H61OOHUVal60to74k","H61OOHUVal75to99k","H61OOHUVal100to124k","H61OOHUVal125to149k","H61OOHUVal150to174k","H61OOHUVal175to199k","H61OOHUVal200to249k","H61OOHUVal250to299k","H61OOHUVal300to399k","H61OOHUVal400to499k","H61OOHUVal500kOrMore","H61aOOHUMedVal"]
[]
[]
[]
["Other Demo Data -             Query Name: QryAllTowns-ACSDemographicSheet"]
["TOWN_NAME","FIPS","TOWNCNTY","COUSUB","POP80","POP90CDCEN","POP2000CEN","POP2010CEN","POP2020-Proj","POP2025-Proj","POP2030-Proj","SF80","MF80","MH80","SF81","MF81","MH81","SF82","MF82","MH82","SF83","MF83","MH83","SF84_OSP","MF84_OSP","MH84_OSP","SF85_OSP","MF85_OSP","MH85_OSP","SF86_OSP","MF86_OSP","MH86_OSP","SF87_OSP","MF87_OSP","MH87_OSP","SF88_OSP","MF88_OSP","MH88_OSP","SF89_OSP","MF89_OSP","MH89_OSP","SF90_OSP","MF90_OSP","MH90_OSP","SF91_OSP","MF91_OSP","MH91_OSP","SF92_OSP","MF92_OSP","MH92_OSP","SF93_OSP","MF93_OSP","MH93_OSP","SF94_OSP","MF94_OSP","MH94_OSP","SF95_OSP","MF95_OSP","MH95_OSP","SF96_OSP","MF96_OSP","MH96_OSP","SF97_OSP","MF97_OSP","MH97_OSP","SF98_OSP","MF98_OSP","MH98_OSP","SF99_OSP","MF99_OSP","MH99_OSP","SF00_OSP","MF00_OSP","MH00_OSP","SF01_OSP","MF01_OSP","MH01_OSP","SF02_OSP","MF02_OSP","MH02_OSP","SF03_OSP","MF03_OSP","MH03_OSP","SF04_OSP","MF04_OSP","MH04_OSP","SF05_OSP","MF05_OSP","MH05_OSP","SF06_OSP","MF06_OSP","MH06_OSP","SF07_OSP","MF07_OSP","MH07_OSP","SF08_OSP","MF08_OSP","MH08_OSP","SF09_OSP","MF09_OSP","MH09_OSP","SF10_OSP","MF10_OSP","MH10_OSP","SF11_OSP","MF11_OSP","MH11_OSP","SF12_OSP","MF12_OSP","MH12_OSP","SF13_OSP","MF13_OSP","MH13_OSP","SF14_OSP","MF14_OSP","MH14_OSP","SF15_OSP","MF15_OSP","MH15_OSP","SF16_OSP","MF16_OSP","MH16_OSP","SF17_OSP","MF17_OSP","MH17_OSP","SF18_OSP","MF18_OSP","MH18_OSP","COMMENTS","CNTY_CODE"]
[{"$f":"VLOOKUP(DropDownList!$B$47,CntyQuery!$A$118:$DZ$154,A$1)","v":"Atkinson"},{"$f":"VLOOKUP(DropDownList!$B$47,CntyQuery!$A$118:$DZ$154,B$1)","v":15005},{"$f":"VLOOKUP(DropDownList!$B$47,CntyQuery!$A$118:$DZ$154,C$1)","v":801},{"$f":"VLOOKUP(DropDownList!$B$47,CntyQuery!$A$118:$DZ$154,D$1)","v":"02340"},{"$f":"VLOOKUP(DropDownList!$B$47,CntyQuery!$A$118:$DZ$154,E$1)","v":4397},{"$f":"VLOOKUP(DropDownList!$B$47,CntyQuery!$A$118:$DZ$154,F$1)","v":5188},{"$f":"VLOOKUP(DropDownList!$B$47,CntyQuery!$A$118:$DZ$154,G$1)","v":6178},{"$f":"VLOOKUP(DropDownList!$B$47,CntyQuery!$A$118:$DZ$154,H$1)","v":6751},{"$f":"VLOOKUP(DropDownList!$B$47,CntyQuery!$A$118:$DZ$154,I$1)","v":7358},{"$f":"VLOOKUP(DropDownList!$B$47,CntyQuery!$A$118:$DZ$154,J$1)","v":7485},{"$f":"VLOOKUP(DropDownList!$B$47,CntyQuery!$A$118:$DZ$154,K$1)","v":7536},{"$f":"VLOOKUP(DropDownList!$B$47,CntyQuery!$A$118:$DZ$154,L$1)","v":24},{"$f":"VLOOKUP(DropDownList!$B$47,CntyQuery!$A$118:$DZ$154,M$1)","v":0},{"$f":"VLOOKUP(DropDownList!$B$47,CntyQuery!$A$118:$DZ$154,N$1)","v":0},{"$f":"VLOOKUP(DropDownList!$B$47,CntyQuery!$A$118:$DZ$154,O$1)","v":21},{"$f":"VLOOKUP(DropDownList!$B$47,CntyQuery!$A$118:$DZ$154,P$1)","v":0},{"$f":"VLOOKUP(DropDownList!$B$47,CntyQuery!$A$118:$DZ$154,Q$1)","v":0},{"$f":"VLOOKUP(DropDownList!$B$47,CntyQuery!$A$118:$DZ$154,R$1)","v":37},{"$f":"VLOOKUP(DropDownList!$B$47,CntyQuery!$A$118:$DZ$154,S$1)","v":0},{"$f":"VLOOKUP(DropDownList!$B$47,CntyQuery!$A$118:$DZ$154,T$1)","v":0},{"$f":"VLOOKUP(DropDownList!$B$47,CntyQuery!$A$118:$DZ$154,U$1)","v":23},{"$f":"VLOOKUP(DropDownList!$B$47,CntyQuery!$A$118:$DZ$154,V$1)","v":0},{"$f":"VLOOKUP(DropDownList!$B$47,CntyQuery!$A$118:$DZ$154,W$1)","v":0},{"$f":"VLOOKUP(DropDownList!$B$47,CntyQuery!$A$118:$DZ$154,X$1)","v":42},{"$f":"VLOOKUP(DropDownList!$B$47,CntyQuery!$A$118:$DZ$154,Y$1)","v":0},{"$f":"VLOOKUP(DropDownList!$B$47,CntyQuery!$A$118:$DZ$154,Z$1)","v":14},{"$f":"VLOOKUP(DropDownList!$B$47,CntyQuery!$A$118:$DZ$154,AA$1)","v":60},{"$f":"VLOOKUP(DropDownList!$B$47,CntyQuery!$A$118:$DZ$154,AB$1)","v":0},{"$f":"VLOOKUP(DropDownList!$B$47,CntyQuery!$A$118:$DZ$154,AC$1)","v":0},{"$f":"VLOOKUP(DropDownList!$B$47,CntyQuery!$A$118:$DZ$154,AD$1)","v":59},{"$f":"VLOOKUP(DropDownList!$B$47,CntyQuery!$A$118:$DZ$154,AE$1)","v":0},{"$f":"VLOOKUP(DropDownList!$B$47,CntyQuery!$A$118:$DZ$154,AF$1)","v":0},{"$f":"VLOOKUP(DropDownList!$B$47,CntyQuery!$A$118:$DZ$154,AG$1)","v":196},{"$f":"VLOOKUP(DropDownList!$B$47,CntyQuery!$A$118:$DZ$154,AH$1)","v":0},{"$f":"VLOOKUP(DropDownList!$B$47,CntyQuery!$A$118:$DZ$154,AI$1)","v":0},{"$f":"VLOOKUP(DropDownList!$B$47,CntyQuery!$A$118:$DZ$154,AJ$1)","v":73},{"$f":"VLOOKUP(DropDownList!$B$47,CntyQuery!$A$118:$DZ$154,AK$1)","v":0},{"$f":"VLOOKUP(DropDownList!$B$47,CntyQuery!$A$118:$DZ$154,AL$1)","v":0},{"$f":"VLOOKUP(DropDownList!$B$47,CntyQuery!$A$118:$DZ$154,AM$1)","v":21},{"$f":"VLOOKUP(DropDownList!$B$47,CntyQuery!$A$118:$DZ$154,AN$1)","v":0},{"$f":"VLOOKUP(DropDownList!$B$47,CntyQuery!$A$118:$DZ$154,AO$1)","v":0},{"$f":"VLOOKUP(DropDownList!$B$47,CntyQuery!$A$118:$DZ$154,AP$1)","v":13},{"$f":"VLOOKUP(DropDownList!$B$47,CntyQuery!$A$118:$DZ$154,AQ$1)","v":54},{"$f":"VLOOKUP(DropDownList!$B$47,CntyQuery!$A$118:$DZ$154,AR$1)","v":0},{"$f":"VLOOKUP(DropDownList!$B$47,CntyQuery!$A$118:$DZ$154,AS$1)","v":20},{"$f":"VLOOKUP(DropDownList!$B$47,CntyQuery!$A$118:$DZ$154,AT$1)","v":43},{"$f":"VLOOKUP(DropDownList!$B$47,CntyQuery!$A$118:$DZ$154,AU$1)","v":0},{"$f":"VLOOKUP(DropDownList!$B$47,CntyQuery!$A$118:$DZ$154,AV$1)","v":11},{"$f":"VLOOKUP(DropDownList!$B$47,CntyQuery!$A$118:$DZ$154,AW$1)","v":44},{"$f":"VLOOKUP(DropDownList!$B$47,CntyQuery!$A$118:$DZ$154,AX$1)","v":0},{"$f":"VLOOKUP(DropDownList!$B$47,CntyQuery!$A$118:$DZ$154,AY$1)","v":18},{"$f":"VLOOKUP(DropDownList!$B$47,CntyQuery!$A$118:$DZ$154,AZ$1)","v":48},{"$f":"VLOOKUP(DropDownList!$B$47,CntyQuery!$A$118:$DZ$154,BA$1)","v":0},{"$f":"VLOOKUP(DropDownList!$B$47,CntyQuery!$A$118:$DZ$154,BB$1)","v":25},{"$f":"VLOOKUP(DropDownList!$B$47,CntyQuery!$A$118:$DZ$154,BC$1)","v":28},{"$f":"VLOOKUP(DropDownList!$B$47,CntyQuery!$A$118:$DZ$154,BD$1)","v":0},{"$f":"VLOOKUP(DropDownList!$B$47,CntyQuery!$A$118:$DZ$154,BE$1)","v":33},{"$f":"VLOOKUP(DropDownList!$B$47,CntyQuery!$A$118:$DZ$154,BF$1)","v":8},{"$f":"VLOOKUP(DropDownList!$B$47,CntyQuery!$A$118:$DZ$154,BG$1)","v":0},{"$f":"VLOOKUP(DropDownList!$B$47,CntyQuery!$A$118:$DZ$154,BH$1)","v":49},{"$f":"VLOOKUP(DropDownList!$B$47,CntyQuery!$A$118:$DZ$154,BI$1)","v":16},{"$f":"VLOOKUP(DropDownList!$B$47,CntyQuery!$A$118:$DZ$154,BJ$1)","v":0},{"$f":"VLOOKUP(DropDownList!$B$47,CntyQuery!$A$118:$DZ$154,BK$1)","v":34},{"$f":"VLOOKUP(DropDownList!$B$47,CntyQuery!$A$118:$DZ$154,BL$1)","v":8},{"$f":"VLOOKUP(DropDownList!$B$47,CntyQuery!$A$118:$DZ$154,BM$1)","v":0},{"$f":"VLOOKUP(DropDownList!$B$47,CntyQuery!$A$118:$DZ$154,BN$1)","v":45},{"$f":"VLOOKUP(DropDownList!$B$47,CntyQuery!$A$118:$DZ$154,BO$1)","v":13},{"$f":"VLOOKUP(DropDownList!$B$47,CntyQuery!$A$118:$DZ$154,BP$1)","v":0},{"$f":"VLOOKUP(DropDownList!$B$47,CntyQuery!$A$118:$DZ$154,BQ$1)","v":49},{"$f":"VLOOKUP(DropDownList!$B$47,CntyQuery!$A$118:$DZ$154,BR$1)","v":76},{"$f":"VLOOKUP(DropDownList!$B$47,CntyQuery!$A$118:$DZ$154,BS$1)","v":0},{"$f":"VLOOKUP(DropDownList!$B$47,CntyQuery!$A$118:$DZ$154,BT$1)","v":30},{"$f":"VLOOKUP(DropDownList!$B$47,CntyQuery!$A$118:$DZ$154,BU$1)","v":44},{"$f":"VLOOKUP(DropDownList!$B$47,CntyQuery!$A$118:$DZ$154,BV$1)","v":2},{"$f":"VLOOKUP(DropDownList!$B$47,CntyQuery!$A$118:$DZ$154,BW$1)","v":34},{"$f":"VLOOKUP(DropDownList!$B$47,CntyQuery!$A$118:$DZ$154,BX$1)","v":54},{"$f":"VLOOKUP(DropDownList!$B$47,CntyQuery!$A$118:$DZ$154,BY$1)","v":0},{"$f":"VLOOKUP(DropDownList!$B$47,CntyQuery!$A$118:$DZ$154,BZ$1)","v":11},{"$f":"VLOOKUP(DropDownList!$B$47,CntyQuery!$A$118:$DZ$154,CA$1)","v":14},{"$f":"VLOOKUP(DropDownList!$B$47,CntyQuery!$A$118:$DZ$154,CB$1)","v":0},{"$f":"VLOOKUP(DropDownList!$B$47,CntyQuery!$A$118:$DZ$154,CC$1)","v":16},{"$f":"VLOOKUP(DropDownList!$B$47,CntyQuery!$A$118:$DZ$154,CD$1)","v":8},{"$f":"VLOOKUP(DropDownList!$B$47,CntyQuery!$A$118:$DZ$154,CE$1)","v":0},{"$f":"VLOOKUP(DropDownList!$B$47,CntyQuery!$A$118:$DZ$154,CF$1)","v":4},{"$f":"VLOOKUP(DropDownList!$B$47,CntyQuery!$A$118:$DZ$154,CG$1)","v":2},{"$f":"VLOOKUP(DropDownList!$B$47,CntyQuery!$A$118:$DZ$154,CH$1)","v":0},{"$f":"VLOOKUP(DropDownList!$B$47,CntyQuery!$A$118:$DZ$154,CI$1)","v":10},{"$f":"VLOOKUP(DropDownList!$B$47,CntyQuery!$A$118:$DZ$154,CJ$1)","v":8},{"$f":"VLOOKUP(DropDownList!$B$47,CntyQuery!$A$118:$DZ$154,CK$1)","v":0},{"$f":"VLOOKUP(DropDownList!$B$47,CntyQuery!$A$118:$DZ$154,CL$1)","v":6},{"$f":"VLOOKUP(DropDownList!$B$47,CntyQuery!$A$118:$DZ$154,CM$1)","v":0},{"$f":"VLOOKUP(DropDownList!$B$47,CntyQuery!$A$118:$DZ$154,CN$1)","v":0},{"$f":"VLOOKUP(DropDownList!$B$47,CntyQuery!$A$118:$DZ$154,CO$1)","v":8},{"$f":"VLOOKUP(DropDownList!$B$47,CntyQuery!$A$118:$DZ$154,CP$1)","v":0},{"$f":"VLOOKUP(DropDownList!$B$47,CntyQuery!$A$118:$DZ$154,CQ$1)","v":0},{"$f":"VLOOKUP(DropDownList!$B$47,CntyQuery!$A$118:$DZ$154,CR$1)","v":3},{"$f":"VLOOKUP(DropDownList!$B$47,CntyQuery!$A$118:$DZ$154,CS$1)","v":0},{"$f":"VLOOKUP(DropDownList!$B$47,CntyQuery!$A$118:$DZ$154,CT$1)","v":0},{"$f":"VLOOKUP(DropDownList!$B$47,CntyQuery!$A$118:$DZ$154,CU$1)","v":5},{"$f":"VLOOKUP(DropDownList!$B$47,CntyQuery!$A$118:$DZ$154,CV$1)","v":-2},{"$f":"VLOOKUP(DropDownList!$B$47,CntyQuery!$A$118:$DZ$154,CW$1)","v":0},{"$f":"VLOOKUP(DropDownList!$B$47,CntyQuery!$A$118:$DZ$154,CX$1)","v":5},{"$f":"VLOOKUP(DropDownList!$B$47,CntyQuery!$A$118:$DZ$154,CY$1)","v":0},{"$f":"VLOOKUP(DropDownList!$B$47,CntyQuery!$A$118:$DZ$154,CZ$1)","v":0},{"$f":"VLOOKUP(DropDownList!$B$47,CntyQuery!$A$118:$DZ$154,DA$1)","v":4},{"$f":"VLOOKUP(DropDownList!$B$47,CntyQuery!$A$118:$DZ$154,DB$1)","v":-1},{"$f":"VLOOKUP(DropDownList!$B$47,CntyQuery!$A$118:$DZ$154,DC$1)","v":0},{"$f":"VLOOKUP(DropDownList!$B$47,CntyQuery!$A$118:$DZ$154,DD$1)","v":5},{"$f":"VLOOKUP(DropDownList!$B$47,CntyQuery!$A$118:$DZ$154,DE$1)","v":-1},{"$f":"VLOOKUP(DropDownList!$B$47,CntyQuery!$A$118:$DZ$154,DF$1)","v":0},{"$f":"VLOOKUP(DropDownList!$B$47,CntyQuery!$A$118:$DZ$154,DG$1)","v":8},{"$f":"VLOOKUP(DropDownList!$B$47,CntyQuery!$A$118:$DZ$154,DH$1)","v":0},{"$f":"VLOOKUP(DropDownList!$B$47,CntyQuery!$A$118:$DZ$154,DI$1)","v":0},{"$f":"VLOOKUP(DropDownList!$B$47,CntyQuery!$A$118:$DZ$154,DJ$1)","v":3},{"$f":"VLOOKUP(DropDownList!$B$47,CntyQuery!$A$118:$DZ$154,DK$1)","v":0},{"$f":"VLOOKUP(DropDownList!$B$47,CntyQuery!$A$118:$DZ$154,DL$1)","v":0},{"$f":"VLOOKUP(DropDownList!$B$47,CntyQuery!$A$118:$DZ$154,DM$1)","v":6},{"$f":"VLOOKUP(DropDownList!$B$47,CntyQuery!$A$118:$DZ$154,DN$1)","v":12},{"$f":"VLOOKUP(DropDownList!$B$47,CntyQuery!$A$118:$DZ$154,DO$1)","v":0},{"$f":"VLOOKUP(DropDownList!$B$47,CntyQuery!$A$118:$DZ$154,DP$1)","v":3},{"$f":"VLOOKUP(DropDownList!$B$47,CntyQuery!$A$118:$DZ$154,DQ$1)","v":30},{"$f":"VLOOKUP(DropDownList!$B$47,CntyQuery!$A$118:$DZ$154,DR$1)","v":0},{"$f":"VLOOKUP(DropDownList!$B$47,CntyQuery!$A$118:$DZ$154,DS$1)","v":4},{"$f":"VLOOKUP(DropDownList!$B$47,CntyQuery!$A$118:$DZ$154,DT$1)","v":44},{"$f":"VLOOKUP(DropDownList!$B$47,CntyQuery!$A$118:$DZ$154,DU$1)","v":0},{"$f":"VLOOKUP(DropDownList!$B$47,CntyQuery!$A$118:$DZ$154,DV$1)","v":27},{"$f":"VLOOKUP(DropDownList!$B$47,CntyQuery!$A$118:$DZ$154,DW$1)","v":41},{"$f":"VLOOKUP(DropDownList!$B$47,CntyQuery!$A$118:$DZ$154,DX$1)","v":0},{"$f":"VLOOKUP(DropDownList!$B$47,CntyQuery!$A$118:$DZ$154,DY$1)","v":20}]
[]
[]
["NH Employment Data","Query Name: DPQryEmploymentByCnty"]
["AreaName","COUNTYCODE","TOTP & G2001","TOT2001","GOODPRO2001","SERVICEPROMAN2001","WAGEP & G2001","WAGETOT2001","WAGEGOODPRO2001","WAGESERVICEPRO2001","TOTP & G2002","TOT2002","GOODPRO2002","SERVICEPROMAN2002","WAGEP & G2002","WAGETOT2002","WAGEGOODPRO2002","WAGESERVICEPRO2002","TOTP & G2003","TOT2003","GOODPRO2003","SERVICEPROMAN2003","WAGEP & G2003","WAGETOT2003","WAGEGOODPRO2003","WAGESERVICEPRO2003","TOTP & G2004","TOT2004","GOODPRO2004","SERVICEPROMAN2004","WAGEP & G2004","WAGETOT2004","WAGEGOODPRO2004","WAGESERVICEPRO2004","TOTP & G2005","TOT2005","GOODPRO2005","SERVICEPROMAN2005","WAGEP & G2005","WAGETOT2005","WAGEGOODPRO2005","WAGESERVICEPRO2005","TOTP & G2006","TOT2006","GOODPRO2006","SERVICEPROMAN2006","WAGEP & G2006","WAGETOT2006","WAGEGOODPRO2006","WAGESERVICEPRO2006","TOTP & G2007","TOT2007","GOODPRO2007","SERVICEPROMAN2007","WAGEP & G2007","WAGETOT2007","WAGEGOODPRO2007","WAGESERVICEPRO2007","TOTP & G2008","TOT2008","GOODPRO2008","SERVICEPROMAN2008","WAGEP & G2008","WAGETOT2008","WAGEGOODPRO2008","WAGESERVICEPRO2008","TOTP & G2009","TOT2009","GOODPRO2009","SERVICEPROMAN2009","WAGEP & G2009","WAGETOT2009","WAGEGOODPRO2009","WAGESERVICEPRO2009","TOTP & G2010","TOT2010","GOODPRO2010","SERVICEPROMAN2010","WAGEP & G2010","WAGETOT2010","WAGEGOODPRO2010","WAGESERVICEPRO2010","TOTP & G2011","TOT2011","GOODPRO2011","SERVICEPROMAN2011","WAGEP & G2011","WAGETOT2011","WAGEGOODPRO2011","WAGESERVICEPRO2011","TOTP & G2012","TOT2012","GOODPRO2012","SERVICEPROMAN2012","WAGEP & G2012","WAGETOT2012","WAGEGOODPRO2012","WAGESERVICEPRO2012","TOTP & G2013","TOT2013","GOODPRO2013","SERVICEPROMAN2013","WAGEP & G2013","WAGETOT2013","WAGEGOODPRO2013","WAGESERVICEPRO2013","TOTP & G2014","TOT2014","GOODPRO2014","SERVICEPROMAN2014","WAGEP & G2014","WAGETOT2014","WAGEGOODPRO2014","WAGESERVICEPRO2014","TOTP & G2015","TOT2015","GOODPRO2015","SERVICEPROMAN2015","WAGEP & G2015","WAGETOT2015","WAGEGOODPRO2015","WAGESERVICEPRO2015","TOTP & G2016","TOT2016","GOODPRO2016","SERVICEPROMAN2016","WAGEP & G2016","WAGETOT2016","WAGEGOODPRO2016","WAGESERVICEPRO2016","TOTP & G2017","TOT2017","GOODPRO2017","SERVICEPROMAN2017","WAGEP & G2017","WAGETOT2017","WAGEGOODPRO2017","WAGESERVICEPRO2017","TOTP & G2018","TOT2018","GOODPRO2018","SERVICEPROMAN2018","WAGEP & G2018","WAGETOT2018","WAGEGOODPRO2018","WAGESERVICEPRO2018","TOTP & G2019","TOT2019","TOTGov2019","GOODPRO2019","SERVICEPROMAN2019","WAGEP & G2019","WAGETOT2019","WAGEGov2019","WAGEGOODPRO2019","WAGESERVICEPRO2019","SummaryLevel"]
[{"$f":"VLOOKUP(DropDownList!$B$47,CntyQuery!$A$170:$FJ$213,A$1)","v":"Atkinson"},{"$f":"VLOOKUP(DropDownList!$B$47,CntyQuery!$A$170:$FJ$213,B$1)","v":8},{"$f":"VLOOKUP(DropDownList!$B$47,CntyQuery!$A$170:$FJ$213,C$1)","v":799},{"$f":"VLOOKUP(DropDownList!$B$47,CntyQuery!$A$170:$FJ$213,D$1)","v":743},{"$f":"VLOOKUP(DropDownList!$B$47,CntyQuery!$A$170:$FJ$213,E$1)","v":261},{"$f":"VLOOKUP(DropDownList!$B$47,CntyQuery!$A$170:$FJ$213,F$1)","v":482},{"$f":"VLOOKUP(DropDownList!$B$47,CntyQuery!$A$170:$FJ$213,G$1)","v":745.92},{"$f":"VLOOKUP(DropDownList!$B$47,CntyQuery!$A$170:$FJ$213,H$1)","v":773.45},{"$f":"VLOOKUP(DropDownList!$B$47,CntyQuery!$A$170:$FJ$213,I$1)","v":806.51},{"$f":"VLOOKUP(DropDownList!$B$47,CntyQuery!$A$170:$FJ$213,J$1)","v":755.52},{"$f":"VLOOKUP(DropDownList!$B$47,CntyQuery!$A$170:$FJ$213,K$1)","v":939},{"$f":"VLOOKUP(DropDownList!$B$47,CntyQuery!$A$170:$FJ$213,L$1)","v":848},{"$f":"VLOOKUP(DropDownList!$B$47,CntyQuery!$A$170:$FJ$213,M$1)","v":250},{"$f":"VLOOKUP(DropDownList!$B$47,CntyQuery!$A$170:$FJ$213,N$1)","v":598},{"$f":"VLOOKUP(DropDownList!$B$47,CntyQuery!$A$170:$FJ$213,O$1)","v":675.63},{"$f":"VLOOKUP(DropDownList!$B$47,CntyQuery!$A$170:$FJ$213,P$1)","v":719.84},{"$f":"VLOOKUP(DropDownList!$B$47,CntyQuery!$A$170:$FJ$213,Q$1)","v":866.61},{"$f":"VLOOKUP(DropDownList!$B$47,CntyQuery!$A$170:$FJ$213,R$1)","v":658.49},{"$f":"VLOOKUP(DropDownList!$B$47,CntyQuery!$A$170:$FJ$213,S$1)","v":996},{"$f":"VLOOKUP(DropDownList!$B$47,CntyQuery!$A$170:$FJ$213,T$1)","v":924},{"$f":"VLOOKUP(DropDownList!$B$47,CntyQuery!$A$170:$FJ$213,U$1)","v":244},{"$f":"VLOOKUP(DropDownList!$B$47,CntyQuery!$A$170:$FJ$213,V$1)","v":680},{"$f":"VLOOKUP(DropDownList!$B$47,CntyQuery!$A$170:$FJ$213,W$1)","v":661.16},{"$f":"VLOOKUP(DropDownList!$B$47,CntyQuery!$A$170:$FJ$213,X$1)","v":685.27},{"$f":"VLOOKUP(DropDownList!$B$47,CntyQuery!$A$170:$FJ$213,Y$1)","v":878.72},{"$f":"VLOOKUP(DropDownList!$B$47,CntyQuery!$A$170:$FJ$213,Z$1)","v":615.87},{"$f":"VLOOKUP(DropDownList!$B$47,CntyQuery!$A$170:$FJ$213,AA$1)","v":952},{"$f":"VLOOKUP(DropDownList!$B$47,CntyQuery!$A$170:$FJ$213,AB$1)","v":891},{"$f":"VLOOKUP(DropDownList!$B$47,CntyQuery!$A$170:$FJ$213,AC$1)","v":239},{"$f":"VLOOKUP(DropDownList!$B$47,CntyQuery!$A$170:$FJ$213,AD$1)","v":652},{"$f":"VLOOKUP(DropDownList!$B$47,CntyQuery!$A$170:$FJ$213,AE$1)","v":697.71},{"$f":"VLOOKUP(DropDownList!$B$47,CntyQuery!$A$170:$FJ$213,AF$1)","v":715.81},{"$f":"VLOOKUP(DropDownList!$B$47,CntyQuery!$A$170:$FJ$213,AG$1)","v":984.22},{"$f":"VLOOKUP(DropDownList!$B$47,CntyQuery!$A$170:$FJ$213,AH$1)","v":617.16999999999996},{"$f":"VLOOKUP(DropDownList!$B$47,CntyQuery!$A$170:$FJ$213,AI$1)","v":971},{"$f":"VLOOKUP(DropDownList!$B$47,CntyQuery!$A$170:$FJ$213,AJ$1)","v":901},{"$f":"VLOOKUP(DropDownList!$B$47,CntyQuery!$A$170:$FJ$213,AK$1)","v":236},{"$f":"VLOOKUP(DropDownList!$B$47,CntyQuery!$A$170:$FJ$213,AL$1)","v":665},{"$f":"VLOOKUP(DropDownList!$B$47,CntyQuery!$A$170:$FJ$213,AM$1)","v":752.67},{"$f":"VLOOKUP(DropDownList!$B$47,CntyQuery!$A$170:$FJ$213,AN$1)","v":779.44},{"$f":"VLOOKUP(DropDownList!$B$47,CntyQuery!$A$170:$FJ$213,AO$1)","v":1064.3399999999999},{"$f":"VLOOKUP(DropDownList!$B$47,CntyQuery!$A$170:$FJ$213,AP$1)","v":678.14},{"$f":"VLOOKUP(DropDownList!$B$47,CntyQuery!$A$170:$FJ$213,AQ$1)","v":1014},{"$f":"VLOOKUP(DropDownList!$B$47,CntyQuery!$A$170:$FJ$213,AR$1)","v":954},{"$f":"VLOOKUP(DropDownList!$B$47,CntyQuery!$A$170:$FJ$213,AS$1)","v":318},{"$f":"VLOOKUP(DropDownList!$B$47,CntyQuery!$A$170:$FJ$213,AT$1)","v":636},{"$f":"VLOOKUP(DropDownList!$B$47,CntyQuery!$A$170:$FJ$213,AU$1)","v":730.61},{"$f":"VLOOKUP(DropDownList!$B$47,CntyQuery!$A$170:$FJ$213,AV$1)","v":745.35},{"$f":"VLOOKUP(DropDownList!$B$47,CntyQuery!$A$170:$FJ$213,AW$1)","v":943.26},{"$f":"VLOOKUP(DropDownList!$B$47,CntyQuery!$A$170:$FJ$213,AX$1)","v":646.19000000000005},{"$f":"VLOOKUP(DropDownList!$B$47,CntyQuery!$A$170:$FJ$213,AY$1)","v":1007},{"$f":"VLOOKUP(DropDownList!$B$47,CntyQuery!$A$170:$FJ$213,AZ$1)","v":939},{"$f":"VLOOKUP(DropDownList!$B$47,CntyQuery!$A$170:$FJ$213,BA$1)","v":309},{"$f":"VLOOKUP(DropDownList!$B$47,CntyQuery!$A$170:$FJ$213,BB$1)","v":630},{"$f":"VLOOKUP(DropDownList!$B$47,CntyQuery!$A$170:$FJ$213,BC$1)","v":849.4},{"$f":"VLOOKUP(DropDownList!$B$47,CntyQuery!$A$170:$FJ$213,BD$1)","v":870.92},{"$f":"VLOOKUP(DropDownList!$B$47,CntyQuery!$A$170:$FJ$213,BE$1)","v":1096.54},{"$f":"VLOOKUP(DropDownList!$B$47,CntyQuery!$A$170:$FJ$213,BF$1)","v":760.51},{"$f":"VLOOKUP(DropDownList!$B$47,CntyQuery!$A$170:$FJ$213,BG$1)","v":1002},{"$f":"VLOOKUP(DropDownList!$B$47,CntyQuery!$A$170:$FJ$213,BH$1)","v":939},{"$f":"VLOOKUP(DropDownList!$B$47,CntyQuery!$A$170:$FJ$213,BI$1)","v":253},{"$f":"VLOOKUP(DropDownList!$B$47,CntyQuery!$A$170:$FJ$213,BJ$1)","v":686},{"$f":"VLOOKUP(DropDownList!$B$47,CntyQuery!$A$170:$FJ$213,BK$1)","v":902.65},{"$f":"VLOOKUP(DropDownList!$B$47,CntyQuery!$A$170:$FJ$213,BL$1)","v":925},{"$f":"VLOOKUP(DropDownList!$B$47,CntyQuery!$A$170:$FJ$213,BM$1)","v":1140.47},{"$f":"VLOOKUP(DropDownList!$B$47,CntyQuery!$A$170:$FJ$213,BN$1)","v":845.58},{"$f":"VLOOKUP(DropDownList!$B$47,CntyQuery!$A$170:$FJ$213,BO$1)","v":922},{"$f":"VLOOKUP(DropDownList!$B$47,CntyQuery!$A$170:$FJ$213,BP$1)","v":856},{"$f":"VLOOKUP(DropDownList!$B$47,CntyQuery!$A$170:$FJ$213,BQ$1)","v":221},{"$f":"VLOOKUP(DropDownList!$B$47,CntyQuery!$A$170:$FJ$213,BR$1)","v":636},{"$f":"VLOOKUP(DropDownList!$B$47,CntyQuery!$A$170:$FJ$213,BS$1)","v":847.83},{"$f":"VLOOKUP(DropDownList!$B$47,CntyQuery!$A$170:$FJ$213,BT$1)","v":870.43},{"$f":"VLOOKUP(DropDownList!$B$47,CntyQuery!$A$170:$FJ$213,BU$1)","v":1100.69},{"$f":"VLOOKUP(DropDownList!$B$47,CntyQuery!$A$170:$FJ$213,BV$1)","v":790.55},{"$f":"VLOOKUP(DropDownList!$B$47,CntyQuery!$A$170:$FJ$213,BW$1)","v":949},{"$f":"VLOOKUP(DropDownList!$B$47,CntyQuery!$A$170:$FJ$213,BX$1)","v":884},{"$f":"VLOOKUP(DropDownList!$B$47,CntyQuery!$A$170:$FJ$213,BY$1)","v":242},{"$f":"VLOOKUP(DropDownList!$B$47,CntyQuery!$A$170:$FJ$213,BZ$1)","v":642},{"$f":"VLOOKUP(DropDownList!$B$47,CntyQuery!$A$170:$FJ$213,CA$1)","v":862.69},{"$f":"VLOOKUP(DropDownList!$B$47,CntyQuery!$A$170:$FJ$213,CB$1)","v":885.51},{"$f":"VLOOKUP(DropDownList!$B$47,CntyQuery!$A$170:$FJ$213,CC$1)","v":1069.5999999999999},{"$f":"VLOOKUP(DropDownList!$B$47,CntyQuery!$A$170:$FJ$213,CD$1)","v":816.24},{"$f":"VLOOKUP(DropDownList!$B$47,CntyQuery!$A$170:$FJ$213,CE$1)","v":958},{"$f":"VLOOKUP(DropDownList!$B$47,CntyQuery!$A$170:$FJ$213,CF$1)","v":893},{"$f":"VLOOKUP(DropDownList!$B$47,CntyQuery!$A$170:$FJ$213,CG$1)","v":286},{"$f":"VLOOKUP(DropDownList!$B$47,CntyQuery!$A$170:$FJ$213,CH$1)","v":608},{"$f":"VLOOKUP(DropDownList!$B$47,CntyQuery!$A$170:$FJ$213,CI$1)","v":882.75},{"$f":"VLOOKUP(DropDownList!$B$47,CntyQuery!$A$170:$FJ$213,CJ$1)","v":906.06},{"$f":"VLOOKUP(DropDownList!$B$47,CntyQuery!$A$170:$FJ$213,CK$1)","v":1089.76},{"$f":"VLOOKUP(DropDownList!$B$47,CntyQuery!$A$170:$FJ$213,CL$1)","v":819.77},{"$f":"VLOOKUP(DropDownList!$B$47,CntyQuery!$A$170:$FJ$213,CM$1)","v":1112},{"$f":"VLOOKUP(DropDownList!$B$47,CntyQuery!$A$170:$FJ$213,CN$1)","v":1046},{"$f":"VLOOKUP(DropDownList!$B$47,CntyQuery!$A$170:$FJ$213,CO$1)","v":404},{"$f":"VLOOKUP(DropDownList!$B$47,CntyQuery!$A$170:$FJ$213,CP$1)","v":641},{"$f":"VLOOKUP(DropDownList!$B$47,CntyQuery!$A$170:$FJ$213,CQ$1)","v":858.1},{"$f":"VLOOKUP(DropDownList!$B$47,CntyQuery!$A$170:$FJ$213,CR$1)","v":874.97},{"$f":"VLOOKUP(DropDownList!$B$47,CntyQuery!$A$170:$FJ$213,CS$1)","v":994.08},{"$f":"VLOOKUP(DropDownList!$B$47,CntyQuery!$A$170:$FJ$213,CT$1)","v":799.93},{"$f":"VLOOKUP(DropDownList!$B$47,CntyQuery!$A$170:$FJ$213,CU$1)","v":1164},{"$f":"VLOOKUP(DropDownList!$B$47,CntyQuery!$A$170:$FJ$213,CV$1)","v":1098},{"$f":"VLOOKUP(DropDownList!$B$47,CntyQuery!$A$170:$FJ$213,CW$1)","v":416},{"$f":"VLOOKUP(DropDownList!$B$47,CntyQuery!$A$170:$FJ$213,CX$1)","v":682},{"$f":"VLOOKUP(DropDownList!$B$47,CntyQuery!$A$170:$FJ$213,CY$1)","v":860.51},{"$f":"VLOOKUP(DropDownList!$B$47,CntyQuery!$A$170:$FJ$213,CZ$1)","v":877.09},{"$f":"VLOOKUP(DropDownList!$B$47,CntyQuery!$A$170:$FJ$213,DA$1)","v":943.5},{"$f":"VLOOKUP(DropDownList!$B$47,CntyQuery!$A$170:$FJ$213,DB$1)","v":836.57},{"$f":"VLOOKUP(DropDownList!$B$47,CntyQuery!$A$170:$FJ$213,DC$1)","v":1197},{"$f":"VLOOKUP(DropDownList!$B$47,CntyQuery!$A$170:$FJ$213,DD$1)","v":1130},{"$f":"VLOOKUP(DropDownList!$B$47,CntyQuery!$A$170:$FJ$213,DE$1)","v":413},{"$f":"VLOOKUP(DropDownList!$B$47,CntyQuery!$A$170:$FJ$213,DF$1)","v":716},{"$f":"VLOOKUP(DropDownList!$B$47,CntyQuery!$A$170:$FJ$213,DG$1)","v":929},{"$f":"VLOOKUP(DropDownList!$B$47,CntyQuery!$A$170:$FJ$213,DH$1)","v":949.67},{"$f":"VLOOKUP(DropDownList!$B$47,CntyQuery!$A$170:$FJ$213,DI$1)","v":1041.71},{"$f":"VLOOKUP(DropDownList!$B$47,CntyQuery!$A$170:$FJ$213,DJ$1)","v":896.53},{"$f":"VLOOKUP(DropDownList!$B$47,CntyQuery!$A$170:$FJ$213,DK$1)","v":1180},{"$f":"VLOOKUP(DropDownList!$B$47,CntyQuery!$A$170:$FJ$213,DL$1)","v":1114},{"$f":"VLOOKUP(DropDownList!$B$47,CntyQuery!$A$170:$FJ$213,DM$1)","v":381},{"$f":"VLOOKUP(DropDownList!$B$47,CntyQuery!$A$170:$FJ$213,DN$1)","v":733},{"$f":"VLOOKUP(DropDownList!$B$47,CntyQuery!$A$170:$FJ$213,DO$1)","v":962.04},{"$f":"VLOOKUP(DropDownList!$B$47,CntyQuery!$A$170:$FJ$213,DP$1)","v":980.76},{"$f":"VLOOKUP(DropDownList!$B$47,CntyQuery!$A$170:$FJ$213,DQ$1)","v":1074.8599999999999},{"$f":"VLOOKUP(DropDownList!$B$47,CntyQuery!$A$170:$FJ$213,DR$1)","v":931.82},{"$f":"VLOOKUP(DropDownList!$B$47,CntyQuery!$A$170:$FJ$213,DS$1)","v":1194},{"$f":"VLOOKUP(DropDownList!$B$47,CntyQuery!$A$170:$FJ$213,DT$1)","v":1128},{"$f":"VLOOKUP(DropDownList!$B$47,CntyQuery!$A$170:$FJ$213,DU$1)","v":386},{"$f":"VLOOKUP(DropDownList!$B$47,CntyQuery!$A$170:$FJ$213,DV$1)","v":742},{"$f":"VLOOKUP(DropDownList!$B$47,CntyQuery!$A$170:$FJ$213,DW$1)","v":975.77},{"$f":"VLOOKUP(DropDownList!$B$47,CntyQuery!$A$170:$FJ$213,DX$1)","v":993.46},{"$f":"VLOOKUP(DropDownList!$B$47,CntyQuery!$A$170:$FJ$213,DY$1)","v":1193.6500000000001},{"$f":"VLOOKUP(DropDownList!$B$47,CntyQuery!$A$170:$FJ$213,DZ$1)","v":889.25},{"$f":"VLOOKUP(DropDownList!$B$47,CntyQuery!$A$170:$FJ$213,EA$1)","v":1296},{"$f":"VLOOKUP(DropDownList!$B$47,CntyQuery!$A$170:$FJ$213,EB$1)","v":1226},{"$f":"VLOOKUP(DropDownList!$B$47,CntyQuery!$A$170:$FJ$213,EC$1)","v":407},{"$f":"VLOOKUP(DropDownList!$B$47,CntyQuery!$A$170:$FJ$213,ED$1)","v":818},{"$f":"VLOOKUP(DropDownList!$B$47,CntyQuery!$A$170:$FJ$213,EE$1)","v":970.74},{"$f":"VLOOKUP(DropDownList!$B$47,CntyQuery!$A$170:$FJ$213,EF$1)","v":988.17},{"$f":"VLOOKUP(DropDownList!$B$47,CntyQuery!$A$170:$FJ$213,EG$1)","v":1242.45},{"$f":"VLOOKUP(DropDownList!$B$47,CntyQuery!$A$170:$FJ$213,EH$1)","v":861.61},{"$f":"VLOOKUP(DropDownList!$B$47,CntyQuery!$A$170:$FJ$213,EI$1)","v":1237},{"$f":"VLOOKUP(DropDownList!$B$47,CntyQuery!$A$170:$FJ$213,EJ$1)","v":1169},{"$f":"VLOOKUP(DropDownList!$B$47,CntyQuery!$A$170:$FJ$213,EK$1)","v":386},{"$f":"VLOOKUP(DropDownList!$B$47,CntyQuery!$A$170:$FJ$213,EL$1)","v":783},{"$f":"VLOOKUP(DropDownList!$B$47,CntyQuery!$A$170:$FJ$213,EM$1)","v":993.9},{"$f":"VLOOKUP(DropDownList!$B$47,CntyQuery!$A$170:$FJ$213,EN$1)","v":1009.02},{"$f":"VLOOKUP(DropDownList!$B$47,CntyQuery!$A$170:$FJ$213,EO$1)","v":1256.43},{"$f":"VLOOKUP(DropDownList!$B$47,CntyQuery!$A$170:$FJ$213,EP$1)","v":887.13},{"$f":"VLOOKUP(DropDownList!$B$47,CntyQuery!$A$170:$FJ$213,EQ$1)","v":1265},{"$f":"VLOOKUP(DropDownList!$B$47,CntyQuery!$A$170:$FJ$213,ER$1)","v":1197},{"$f":"VLOOKUP(DropDownList!$B$47,CntyQuery!$A$170:$FJ$213,ES$1)","v":68},{"$f":"VLOOKUP(DropDownList!$B$47,CntyQuery!$A$170:$FJ$213,ET$1)","v":374},{"$f":"VLOOKUP(DropDownList!$B$47,CntyQuery!$A$170:$FJ$213,EU$1)","v":823},{"$f":"VLOOKUP(DropDownList!$B$47,CntyQuery!$A$170:$FJ$213,EV$1)","v":992.48},{"$f":"VLOOKUP(DropDownList!$B$47,CntyQuery!$A$170:$FJ$213,EW$1)","v":1004.54},{"$f":"VLOOKUP(DropDownList!$B$47,CntyQuery!$A$170:$FJ$213,EX$1)","v":779.19},{"$f":"VLOOKUP(DropDownList!$B$47,CntyQuery!$A$170:$FJ$213,EY$1)","v":1212.76},{"$f":"VLOOKUP(DropDownList!$B$47,CntyQuery!$A$170:$FJ$213,EZ$1)","v":909.88},{"$f":"VLOOKUP(DropDownList!$B$47,CntyQuery!$A$170:$FJ$213,FA$1)","v":60}]
[]
[]
["Labor Force and Unemployment Rate","Query Name: DPQryUnempByCnty"]
["PlaceName","LaborForce1990","LaborForce1991","LaborForce1992","LaborForce1993","LaborForce1994","LaborForce1995","LaborForce1996","LaborForce1997","LaborForce1998","LaborForce1999","LaborForce2000","LaborForce2001","LaborForce2002","LaborForce2003","NumbEmployed1990","NumbEmployed1991","NumbEmployed1992","NumbEmployed1993","NumbEmployed1994","NumbEmployed1995","NumbEmployed1996","NumbEmployed1997","NumbEmployed1998","NumbEmployed1999","NumbEmployed2000","NumbEmployed2001","NumbEmployed2002","NumbEmployed2003","UnempRate1990","UnempRate1991","UnempRate1992","UnempRate1993","UnempRate1994","UnempRate1995","UnempRate1996","UnempRate1997","UnempRate1998","UnempRate1999","UnempRate2000","UnempRate2001","UnempRate2002","UnempRate2003","NumbUnEmp1990","NumbUnEmp1991","NumbUnEmp1992","NumbUnEmp1993","NumbUnEmp1994","NumbUnEmp1995","NumbUnEmp1996","NumbUnEmp1997","NumbUnEmp1998","NumbUnEmp1999","NumbUnEmp2000","NumbUnEmp2001","NumbUnEmp2002","NumbUnEmp2003","LaborForce2004","NumbEmployed2004","UnempRate2004","NumbUnEmp2004","LaborForce2005","NumbEmployed2005","NumbUnEmp2005","UnempRate2005","LaborForce2006","NumbEmployed2006","NumbUnEmp2006","UnempRate2006","LaborForce2007","NumbEmployed2007","NumbUnEmp2007","UnempRate2007","LaborForce2008","NumbEmployed2008","NumbUnEmp2008","UnempRate2008","LaborForce2009","NumbEmployed2009","NumbUnEmp2009","UnempRate2009","LaborForce2010","NumbEmployed2010","NumbUnEmp2010","UnempRate2010","LaborForce2011","NumbEmployed2011","NumbUnEmp2011","UnempRate2011","LaborForce2012","NumbEmployed2012","NumbUnEmp2012","UnempRate2012","LaborForce2013","NumbEmployed2013","NumbUnEmp2013","UnempRate2013","LaborForce2014","NumbEmployed2014","NumbUnEmp2014","UnempRate2014","LaborForce2015","NumbEmployed2015","NumbUnEmp2015","UnempRate2015","LaborForce2016","NumbEmployed2016","NumbUnEmp2016","UnempRate2016","LaborForce2017","NumbEmployed2017","NumbUnEmp2017","UnempRate2017","LaborForce2018","NumbEmployed2018","NumbUnEmp2018","UnempRate2018","LaborForce2019","NumbEmployed2019","NumbUnEmp2019","UnempRate2019","Place-TownIDNumber"]
[{"$f":"VLOOKUP(DropDownList!$B$47,CntyQuery!$A$170:$FJ$213,A$1)","v":"Atkinson"},{"$f":"VLOOKUP(DropDownList!$B$47,CntyQuery!$A$220:$EF$229,B$1)","v":{"$error":"#N/A"}},{"$f":"VLOOKUP(DropDownList!$B$47,CntyQuery!$A$220:$EF$229,C$1)","v":{"$error":"#N/A"}},{"$f":"VLOOKUP(DropDownList!$B$47,CntyQuery!$A$220:$EF$229,D$1)","v":{"$error":"#N/A"}},{"$f":"VLOOKUP(DropDownList!$B$47,CntyQuery!$A$220:$EF$229,E$1)","v":{"$error":"#N/A"}},{"$f":"VLOOKUP(DropDownList!$B$47,CntyQuery!$A$220:$EF$229,F$1)","v":{"$error":"#N/A"}},{"$f":"VLOOKUP(DropDownList!$B$47,CntyQuery!$A$220:$EF$229,G$1)","v":{"$error":"#N/A"}},{"$f":"VLOOKUP(DropDownList!$B$47,CntyQuery!$A$220:$EF$229,H$1)","v":{"$error":"#N/A"}},{"$f":"VLOOKUP(DropDownList!$B$47,CntyQuery!$A$220:$EF$229,I$1)","v":{"$error":"#N/A"}},{"$f":"VLOOKUP(DropDownList!$B$47,CntyQuery!$A$220:$EF$229,J$1)","v":{"$error":"#N/A"}},{"$f":"VLOOKUP(DropDownList!$B$47,CntyQuery!$A$220:$EF$229,K$1)","v":{"$error":"#N/A"}},{"$f":"VLOOKUP(DropDownList!$B$47,CntyQuery!$A$220:$EF$229,L$1)","v":{"$error":"#N/A"}},{"$f":"VLOOKUP(DropDownList!$B$47,CntyQuery!$A$220:$EF$229,M$1)","v":{"$error":"#N/A"}},{"$f":"VLOOKUP(DropDownList!$B$47,CntyQuery!$A$220:$EF$229,N$1)","v":{"$error":"#N/A"}},{"$f":"VLOOKUP(DropDownList!$B$47,CntyQuery!$A$220:$EF$229,O$1)","v":{"$error":"#N/A"}},{"$f":"VLOOKUP(DropDownList!$B$47,CntyQuery!$A$220:$EF$229,P$1)","v":{"$error":"#N/A"}},{"$f":"VLOOKUP(DropDownList!$B$47,CntyQuery!$A$220:$EF$229,Q$1)","v":{"$error":"#N/A"}},{"$f":"VLOOKUP(DropDownList!$B$47,CntyQuery!$A$220:$EF$229,R$1)","v":{"$error":"#N/A"}},{"$f":"VLOOKUP(DropDownList!$B$47,CntyQuery!$A$220:$EF$229,S$1)","v":{"$error":"#N/A"}},{"$f":"VLOOKUP(DropDownList!$B$47,CntyQuery!$A$220:$EF$229,T$1)","v":{"$error":"#N/A"}},{"$f":"VLOOKUP(DropDownList!$B$47,CntyQuery!$A$220:$EF$229,U$1)","v":{"$error":"#N/A"}},{"$f":"VLOOKUP(DropDownList!$B$47,CntyQuery!$A$220:$EF$229,V$1)","v":{"$error":"#N/A"}},{"$f":"VLOOKUP(DropDownList!$B$47,CntyQuery!$A$220:$EF$229,W$1)","v":{"$error":"#N/A"}},{"$f":"VLOOKUP(DropDownList!$B$47,CntyQuery!$A$220:$EF$229,X$1)","v":{"$error":"#N/A"}},{"$f":"VLOOKUP(DropDownList!$B$47,CntyQuery!$A$220:$EF$229,Y$1)","v":{"$error":"#N/A"}},{"$f":"VLOOKUP(DropDownList!$B$47,CntyQuery!$A$220:$EF$229,Z$1)","v":{"$error":"#N/A"}},{"$f":"VLOOKUP(DropDownList!$B$47,CntyQuery!$A$220:$EF$229,AA$1)","v":{"$error":"#N/A"}},{"$f":"VLOOKUP(DropDownList!$B$47,CntyQuery!$A$220:$EF$229,AB$1)","v":{"$error":"#N/A"}},{"$f":"VLOOKUP(DropDownList!$B$47,CntyQuery!$A$220:$EF$229,AC$1)","v":{"$error":"#N/A"}},{"$f":"VLOOKUP(DropDownList!$B$47,CntyQuery!$A$220:$EF$229,AD$1)","v":{"$error":"#N/A"}},{"$f":"VLOOKUP(DropDownList!$B$47,CntyQuery!$A$220:$EF$229,AE$1)","v":{"$error":"#N/A"}},{"$f":"VLOOKUP(DropDownList!$B$47,CntyQuery!$A$220:$EF$229,AF$1)","v":{"$error":"#N/A"}},{"$f":"VLOOKUP(DropDownList!$B$47,CntyQuery!$A$220:$EF$229,AG$1)","v":{"$error":"#N/A"}},{"$f":"VLOOKUP(DropDownList!$B$47,CntyQuery!$A$220:$EF$229,AH$1)","v":{"$error":"#N/A"}},{"$f":"VLOOKUP(DropDownList!$B$47,CntyQuery!$A$220:$EF$229,AI$1)","v":{"$error":"#N/A"}},{"$f":"VLOOKUP(DropDownList!$B$47,CntyQuery!$A$220:$EF$229,AJ$1)","v":{"$error":"#N/A"}},{"$f":"VLOOKUP(DropDownList!$B$47,CntyQuery!$A$220:$EF$229,AK$1)","v":{"$error":"#N/A"}},{"$f":"VLOOKUP(DropDownList!$B$47,CntyQuery!$A$220:$EF$229,AL$1)","v":{"$error":"#N/A"}},{"$f":"VLOOKUP(DropDownList!$B$47,CntyQuery!$A$220:$EF$229,AM$1)","v":{"$error":"#N/A"}},{"$f":"VLOOKUP(DropDownList!$B$47,CntyQuery!$A$220:$EF$229,AN$1)","v":{"$error":"#N/A"}},{"$f":"VLOOKUP(DropDownList!$B$47,CntyQuery!$A$220:$EF$229,AO$1)","v":{"$error":"#N/A"}},{"$f":"VLOOKUP(DropDownList!$B$47,CntyQuery!$A$220:$EF$229,AP$1)","v":{"$error":"#N/A"}},{"$f":"VLOOKUP(DropDownList!$B$47,CntyQuery!$A$220:$EF$229,AQ$1)","v":{"$error":"#N/A"}},{"$f":"VLOOKUP(DropDownList!$B$47,CntyQuery!$A$220:$EF$229,AR$1)","v":{"$error":"#N/A"}},{"$f":"VLOOKUP(DropDownList!$B$47,CntyQuery!$A$220:$EF$229,AS$1)","v":{"$error":"#N/A"}},{"$f":"VLOOKUP(DropDownList!$B$47,CntyQuery!$A$220:$EF$229,AT$1)","v":{"$error":"#N/A"}},{"$f":"VLOOKUP(DropDownList!$B$47,CntyQuery!$A$220:$EF$229,AU$1)","v":{"$error":"#N/A"}},{"$f":"VLOOKUP(DropDownList!$B$47,CntyQuery!$A$220:$EF$229,AV$1)","v":{"$error":"#N/A"}},{"$f":"VLOOKUP(DropDownList!$B$47,CntyQuery!$A$220:$EF$229,AW$1)","v":{"$error":"#N/A"}},{"$f":"VLOOKUP(DropDownList!$B$47,CntyQuery!$A$220:$EF$229,AX$1)","v":{"$error":"#N/A"}},{"$f":"VLOOKUP(DropDownList!$B$47,CntyQuery!$A$220:$EF$229,AY$1)","v":{"$error":"#N/A"}},{"$f":"VLOOKUP(DropDownList!$B$47,CntyQuery!$A$220:$EF$229,AZ$1)","v":{"$error":"#N/A"}},{"$f":"VLOOKUP(DropDownList!$B$47,CntyQuery!$A$220:$EF$229,BA$1)","v":{"$error":"#N/A"}},{"$f":"VLOOKUP(DropDownList!$B$47,CntyQuery!$A$220:$EF$229,BB$1)","v":{"$error":"#N/A"}},{"$f":"VLOOKUP(DropDownList!$B$47,CntyQuery!$A$220:$EF$229,BC$1)","v":{"$error":"#N/A"}},{"$f":"VLOOKUP(DropDownList!$B$47,CntyQuery!$A$220:$EF$229,BD$1)","v":{"$error":"#N/A"}},{"$f":"VLOOKUP(DropDownList!$B$47,CntyQuery!$A$220:$EF$229,BE$1)","v":{"$error":"#N/A"}},{"$f":"VLOOKUP(DropDownList!$B$47,CntyQuery!$A$220:$EF$229,BF$1)","v":{"$error":"#N/A"}},{"$f":"VLOOKUP(DropDownList!$B$47,CntyQuery!$A$220:$EF$229,BG$1)","v":{"$error":"#N/A"}},{"$f":"VLOOKUP(DropDownList!$B$47,CntyQuery!$A$220:$EF$229,BH$1)","v":{"$error":"#N/A"}},{"$f":"VLOOKUP(DropDownList!$B$47,CntyQuery!$A$220:$EF$229,BI$1)","v":{"$error":"#N/A"}},{"$f":"VLOOKUP(DropDownList!$B$47,CntyQuery!$A$220:$EF$229,BJ$1)","v":{"$error":"#N/A"}},{"$f":"VLOOKUP(DropDownList!$B$47,CntyQuery!$A$220:$EF$229,BK$1)","v":{"$error":"#N/A"}},{"$f":"VLOOKUP(DropDownList!$B$47,CntyQuery!$A$220:$EF$229,BL$1)","v":{"$error":"#N/A"}},{"$f":"VLOOKUP(DropDownList!$B$47,CntyQuery!$A$220:$EF$229,BM$1)","v":{"$error":"#N/A"}},{"$f":"VLOOKUP(DropDownList!$B$47,CntyQuery!$A$220:$EF$229,BN$1)","v":{"$error":"#N/A"}},{"$f":"VLOOKUP(DropDownList!$B$47,CntyQuery!$A$220:$EF$229,BO$1)","v":{"$error":"#N/A"}},{"$f":"VLOOKUP(DropDownList!$B$47,CntyQuery!$A$220:$EF$229,BP$1)","v":{"$error":"#N/A"}},{"$f":"VLOOKUP(DropDownList!$B$47,CntyQuery!$A$220:$EF$229,BQ$1)","v":{"$error":"#N/A"}},{"$f":"VLOOKUP(DropDownList!$B$47,CntyQuery!$A$220:$EF$229,BR$1)","v":{"$error":"#N/A"}},{"$f":"VLOOKUP(DropDownList!$B$47,CntyQuery!$A$220:$EF$229,BS$1)","v":{"$error":"#N/A"}},{"$f":"VLOOKUP(DropDownList!$B$47,CntyQuery!$A$220:$EF$229,BT$1)","v":{"$error":"#N/A"}},{"$f":"VLOOKUP(DropDownList!$B$47,CntyQuery!$A$220:$EF$229,BU$1)","v":{"$error":"#N/A"}},{"$f":"VLOOKUP(DropDownList!$B$47,CntyQuery!$A$220:$EF$229,BV$1)","v":{"$error":"#N/A"}},{"$f":"VLOOKUP(DropDownList!$B$47,CntyQuery!$A$220:$EF$229,BW$1)","v":{"$error":"#N/A"}},{"$f":"VLOOKUP(DropDownList!$B$47,CntyQuery!$A$220:$EF$229,BX$1)","v":{"$error":"#N/A"}},{"$f":"VLOOKUP(DropDownList!$B$47,CntyQuery!$A$220:$EF$229,BY$1)","v":{"$error":"#N/A"}},{"$f":"VLOOKUP(DropDownList!$B$47,CntyQuery!$A$220:$EF$229,BZ$1)","v":{"$error":"#N/A"}},{"$f":"VLOOKUP(DropDownList!$B$47,CntyQuery!$A$220:$EF$229,CA$1)","v":{"$error":"#N/A"}},{"$f":"VLOOKUP(DropDownList!$B$47,CntyQuery!$A$220:$EF$229,CB$1)","v":{"$error":"#N/A"}},{"$f":"VLOOKUP(DropDownList!$B$47,CntyQuery!$A$220:$EF$229,CC$1)","v":{"$error":"#N/A"}},{"$f":"VLOOKUP(DropDownList!$B$47,CntyQuery!$A$220:$EF$229,CD$1)","v":{"$error":"#N/A"}},{"$f":"VLOOKUP(DropDownList!$B$47,CntyQuery!$A$220:$EF$229,CE$1)","v":{"$error":"#N/A"}},{"$f":"VLOOKUP(DropDownList!$B$47,CntyQuery!$A$220:$EF$229,CF$1)","v":{"$error":"#N/A"}},{"$f":"VLOOKUP(DropDownList!$B$47,CntyQuery!$A$220:$EF$229,CG$1)","v":{"$error":"#N/A"}},{"$f":"VLOOKUP(DropDownList!$B$47,CntyQuery!$A$220:$EF$229,CH$1)","v":{"$error":"#N/A"}},{"$f":"VLOOKUP(DropDownList!$B$47,CntyQuery!$A$220:$EF$229,CI$1)","v":{"$error":"#N/A"}},{"$f":"VLOOKUP(DropDownList!$B$47,CntyQuery!$A$220:$EF$229,CJ$1)","v":{"$error":"#N/A"}},{"$f":"VLOOKUP(DropDownList!$B$47,CntyQuery!$A$220:$EF$229,CK$1)","v":{"$error":"#N/A"}},{"$f":"VLOOKUP(DropDownList!$B$47,CntyQuery!$A$220:$EF$229,CL$1)","v":{"$error":"#N/A"}},{"$f":"VLOOKUP(DropDownList!$B$47,CntyQuery!$A$220:$EF$229,CM$1)","v":{"$error":"#N/A"}},{"$f":"VLOOKUP(DropDownList!$B$47,CntyQuery!$A$220:$EF$229,CN$1)","v":{"$error":"#N/A"}},{"$f":"VLOOKUP(DropDownList!$B$47,CntyQuery!$A$220:$EF$229,CO$1)","v":{"$error":"#N/A"}},{"$f":"VLOOKUP(DropDownList!$B$47,CntyQuery!$A$220:$EF$229,CP$1)","v":{"$error":"#N/A"}},{"$f":"VLOOKUP(DropDownList!$B$47,CntyQuery!$A$220:$EF$229,CQ$1)","v":{"$error":"#N/A"}},{"$f":"VLOOKUP(DropDownList!$B$47,CntyQuery!$A$220:$EF$229,CR$1)","v":{"$error":"#N/A"}},{"$f":"VLOOKUP(DropDownList!$B$47,CntyQuery!$A$220:$EF$229,CS$1)","v":{"$error":"#N/A"}},{"$f":"VLOOKUP(DropDownList!$B$47,CntyQuery!$A$220:$EF$229,CT$1)","v":{"$error":"#N/A"}},{"$f":"VLOOKUP(DropDownList!$B$47,CntyQuery!$A$220:$EF$229,CU$1)","v":{"$error":"#N/A"}},{"$f":"VLOOKUP(DropDownList!$B$47,CntyQuery!$A$220:$EF$229,CV$1)","v":{"$error":"#N/A"}},{"$f":"VLOOKUP(DropDownList!$B$47,CntyQuery!$A$220:$EF$229,CW$1)","v":{"$error":"#N/A"}},{"$f":"VLOOKUP(DropDownList!$B$47,CntyQuery!$A$220:$EF$229,CX$1)","v":{"$error":"#N/A"}},{"$f":"VLOOKUP(DropDownList!$B$47,CntyQuery!$A$220:$EF$229,CY$1)","v":{"$error":"#N/A"}},{"$f":"VLOOKUP(DropDownList!$B$47,CntyQuery!$A$220:$EF$229,CZ$1)","v":{"$error":"#N/A"}},{"$f":"VLOOKUP(DropDownList!$B$47,CntyQuery!$A$220:$EF$229,DA$1)","v":{"$error":"#N/A"}},{"$f":"VLOOKUP(DropDownList!$B$47,CntyQuery!$A$220:$EF$229,DB$1)","v":{"$error":"#N/A"}},{"$f":"VLOOKUP(DropDownList!$B$47,CntyQuery!$A$220:$EF$229,DC$1)","v":{"$error":"#N/A"}},{"$f":"VLOOKUP(DropDownList!$B$47,CntyQuery!$A$220:$EF$229,DD$1)","v":{"$error":"#N/A"}},{"$f":"VLOOKUP(DropDownList!$B$47,CntyQuery!$A$220:$EF$229,DE$1)","v":{"$error":"#N/A"}},{"$f":"VLOOKUP(DropDownList!$B$47,CntyQuery!$A$220:$EF$229,DF$1)","v":{"$error":"#N/A"}},{"$f":"VLOOKUP(DropDownList!$B$47,CntyQuery!$A$220:$EF$229,DG$1)","v":{"$error":"#N/A"}},{"$f":"VLOOKUP(DropDownList!$B$47,CntyQuery!$A$220:$EF$229,DH$1)","v":{"$error":"#N/A"}},{"$f":"VLOOKUP(DropDownList!$B$47,CntyQuery!$A$220:$EF$229,DI$1)","v":{"$error":"#N/A"}},{"$f":"VLOOKUP(DropDownList!$B$47,CntyQuery!$A$220:$EF$229,DJ$1)","v":{"$error":"#N/A"}},{"$f":"VLOOKUP(DropDownList!$B$47,CntyQuery!$A$220:$EF$229,DK$1)","v":{"$error":"#N/A"}},{"$f":"VLOOKUP(DropDownList!$B$47,CntyQuery!$A$220:$EF$229,DL$1)","v":{"$error":"#N/A"}},{"$f":"VLOOKUP(DropDownList!$B$47,CntyQuery!$A$220:$EF$229,DM$1)","v":{"$error":"#N/A"}},{"$f":"VLOOKUP(DropDownList!$B$47,CntyQuery!$A$220:$EF$229,DN$1)","v":{"$error":"#N/A"}},{"$f":"VLOOKUP(DropDownList!$B$47,CntyQuery!$A$220:$EF$229,DO$1)","v":{"$error":"#N/A"}},{"$f":"VLOOKUP(DropDownList!$B$47,CntyQuery!$A$220:$EF$229,DP$1)","v":{"$error":"#N/A"}},{"$f":"VLOOKUP(DropDownList!$B$47,CntyQuery!$A$220:$EF$229,DQ$1)","v":{"$error":"#N/A"}},{"$f":"VLOOKUP(DropDownList!$B$47,CntyQuery!$A$220:$EF$229,DR$1)","v":{"$error":"#N/A"}}]
[]
[null,null,null,null,null,null,null,null,null,null,null,null,{"$f":"IF((CntyDataLink!$BL$25)=\"n\",NA(),IF(VALUE(CntyDataLink!$BL$25)=\"\",NA(),VALUE(CntyDataLink!$BL$25)))","v":925}]
["Census 2000   -           Query Name:  TownAllQuery3",2,{"$f":"B33+1","v":3},{"$f":"C33+1","v":4},5,6,7,8,9,10,11,12,13,14,15,16,17,18,19,20,21,22,23,24,25,26,27,28,29,30,31,32,33,34,35,36,37,38,39,40,41,42,43,44,45,46,47,48,49,50,51,52,53,54,55,56,57,58,59,60,61,62,63,64,65,66,67,{"$f":"BO33+1","v":68},69,70,71,72,73,74,75,76,77,78,79,80,81,82,83,84,85,86,87,88,89,90,91,92,93,94,95,96,97,98,99,100,101,102]
["NAME","COUNTY","LOGRECNO","COUSUB","TRACT","AREALAND","AREAWATR","POP100","HU100","2000Population","PopOfOneRace","PopWhite","PopBlack","PopAmIndian","PopAsian","PopHawaiian","PopOtherRace","Pop2orMoreRaces","PopHispanicLatino","PopNotHispanicLatino","PopMale","PopMale<15","PopMale15to24","PopMale25to34","PopMale35to44","PopMale45to54","PopMale55to64","PopMale65to74","PopMale75to84","PopMale85andOver","PopFemale","PopFemale<15","PopFemale15to24","PopFemale25to34","PopFemale35t44","PopFemale45to54","PopFemale55to64","PopFemale65to74","PopFemale75to84","PopFemale85andOver","Households2000","PopInHH","AvgHHSize","HHs1Person","HHs2orMorePerson","HHsFamily","HHMarriedCoupleFam","HHSingleParentFam","HHsNonFamily","Families","PopInFam","AvgFamSize","TotHsUnits","OccHsUnits","OwnerOccHU","RenterOccHU","VctHsUnits","VctHUForRent","VctHUForSale","VctHUSeasonal","PopInOccHU","PopInOwnOccHU","PopInRntOccHU","AvgHHSize2","AvgHHSizOwnOcc","AvgHHSizRntOcc","OwnOccWhtHsHldr","OwnOccBlkHsHldr","OwnOccAmIHsHldr","OwnOccAsnHsHldr","OwnOccPIsHsHldr","OwnOccORHsHldr","OwnOcc2RcHsHldr","RntOccWhtHsHldr","RntOccBlkHsHldr","RntOccAmIHsHldr","RntOccAsnHsHldr","RntOccPIsHsHldr","RntOccORHsHldr","RntOcc2RcHsHldr","OwnOccHH15to24","OwnOccHH25to34","OwnOccHH35to44","OwnOccHH45to54","OwnOccHH55to64","OwnOccHH65to74","OwnOccHH75to84","OwnOccHH85Over","RntOccHH15to24","RntOccHH25to34","RntOccHH35to44","RntOccHH45to54","RntOccHH55to64","RntOccHH65to74","RntOccHH75to84","RntOccHH85Over","P27TotalPop","P27PopInHseHlds","P27PopInGrpQtrs","Median Age Total","Median Age (Male)","Median Age (Female)"]
[{"$f":"VLOOKUP(DropDownList!$B$47,CntyQryCensus!$A$4:$CW$46,A$1)","v":"Atkinson"},{"$f":"VLOOKUP(DropDownList!$B$47,CntyQryCensus!$A$4:$CW$46,B$1)","v":"015"},{"$f":"VLOOKUP(DropDownList!$B$47,CntyQryCensus!$A$4:$CW$46,C$1)","v":"0026822"},{"$f":"VLOOKUP(DropDownList!$B$47,CntyQryCensus!$A$4:$CW$46,D$1)","v":"02340"},{"$f":"VLOOKUP(DropDownList!$B$47,CntyQryCensus!$A$4:$CW$46,E$1)","v":""},{"$f":"VLOOKUP(DropDownList!$B$47,CntyQryCensus!$A$4:$CW$46,F$1)","v":"      28822322"},{"$f":"VLOOKUP(DropDownList!$B$47,CntyQryCensus!$A$4:$CW$46,G$1)","v":"        418679"},{"$f":"VLOOKUP(DropDownList!$B$47,CntyQryCensus!$A$4:$CW$46,H$1)","v":6178},{"$f":"VLOOKUP(DropDownList!$B$47,CntyQryCensus!$A$4:$CW$46,I$1)","v":2431},{"$f":"VLOOKUP(DropDownList!$B$47,CntyQryCensus!$A$4:$CW$46,J$1)","v":6178},{"$f":"VLOOKUP(DropDownList!$B$47,CntyQryCensus!$A$4:$CW$46,K$1)","v":6137},{"$f":"VLOOKUP(DropDownList!$B$47,CntyQryCensus!$A$4:$CW$46,L$1)","v":6031},{"$f":"VLOOKUP(DropDownList!$B$47,CntyQryCensus!$A$4:$CW$46,M$1)","v":16},{"$f":"VLOOKUP(DropDownList!$B$47,CntyQryCensus!$A$4:$CW$46,N$1)","v":4},{"$f":"VLOOKUP(DropDownList!$B$47,CntyQryCensus!$A$4:$CW$46,O$1)","v":73},{"$f":"VLOOKUP(DropDownList!$B$47,CntyQryCensus!$A$4:$CW$46,P$1)","v":0},{"$f":"VLOOKUP(DropDownList!$B$47,CntyQryCensus!$A$4:$CW$46,Q$1)","v":13},{"$f":"VLOOKUP(DropDownList!$B$47,CntyQryCensus!$A$4:$CW$46,R$1)","v":41},{"$f":"VLOOKUP(DropDownList!$B$47,CntyQryCensus!$A$4:$CW$46,S$1)","v":43},{"$f":"VLOOKUP(DropDownList!$B$47,CntyQryCensus!$A$4:$CW$46,T$1)","v":6135},{"$f":"VLOOKUP(DropDownList!$B$47,CntyQryCensus!$A$4:$CW$46,U$1)","v":3008},{"$f":"VLOOKUP(DropDownList!$B$47,CntyQryCensus!$A$4:$CW$46,V$1)","v":609},{"$f":"VLOOKUP(DropDownList!$B$47,CntyQryCensus!$A$4:$CW$46,W$1)","v":280},{"$f":"VLOOKUP(DropDownList!$B$47,CntyQryCensus!$A$4:$CW$46,X$1)","v":299},{"$f":"VLOOKUP(DropDownList!$B$47,CntyQryCensus!$A$4:$CW$46,Y$1)","v":569},{"$f":"VLOOKUP(DropDownList!$B$47,CntyQryCensus!$A$4:$CW$46,Z$1)","v":536},{"$f":"VLOOKUP(DropDownList!$B$47,CntyQryCensus!$A$4:$CW$46,AA$1)","v":378},{"$f":"VLOOKUP(DropDownList!$B$47,CntyQryCensus!$A$4:$CW$46,AB$1)","v":225},{"$f":"VLOOKUP(DropDownList!$B$47,CntyQryCensus!$A$4:$CW$46,AC$1)","v":86},{"$f":"VLOOKUP(DropDownList!$B$47,CntyQryCensus!$A$4:$CW$46,AD$1)","v":26},{"$f":"VLOOKUP(DropDownList!$B$47,CntyQryCensus!$A$4:$CW$46,AE$1)","v":3170},{"$f":"VLOOKUP(DropDownList!$B$47,CntyQryCensus!$A$4:$CW$46,AF$1)","v":681},{"$f":"VLOOKUP(DropDownList!$B$47,CntyQryCensus!$A$4:$CW$46,AG$1)","v":252},{"$f":"VLOOKUP(DropDownList!$B$47,CntyQryCensus!$A$4:$CW$46,AH$1)","v":316},{"$f":"VLOOKUP(DropDownList!$B$47,CntyQryCensus!$A$4:$CW$46,AI$1)","v":573},{"$f":"VLOOKUP(DropDownList!$B$47,CntyQryCensus!$A$4:$CW$46,AJ$1)","v":598},{"$f":"VLOOKUP(DropDownList!$B$47,CntyQryCensus!$A$4:$CW$46,AK$1)","v":382},{"$f":"VLOOKUP(DropDownList!$B$47,CntyQryCensus!$A$4:$CW$46,AL$1)","v":228},{"$f":"VLOOKUP(DropDownList!$B$47,CntyQryCensus!$A$4:$CW$46,AM$1)","v":104},{"$f":"VLOOKUP(DropDownList!$B$47,CntyQryCensus!$A$4:$CW$46,AN$1)","v":36},{"$f":"VLOOKUP(DropDownList!$B$47,CntyQryCensus!$A$4:$CW$46,AO$1)","v":2317},{"$f":"VLOOKUP(DropDownList!$B$47,CntyQryCensus!$A$4:$CW$46,AP$1)","v":6174},{"$f":"VLOOKUP(DropDownList!$B$47,CntyQryCensus!$A$4:$CW$46,AQ$1)","v":2.66},{"$f":"VLOOKUP(DropDownList!$B$47,CntyQryCensus!$A$4:$CW$46,AR$1)","v":441},{"$f":"VLOOKUP(DropDownList!$B$47,CntyQryCensus!$A$4:$CW$46,AS$1)","v":1876},{"$f":"VLOOKUP(DropDownList!$B$47,CntyQryCensus!$A$4:$CW$46,AT$1)","v":1777},{"$f":"VLOOKUP(DropDownList!$B$47,CntyQryCensus!$A$4:$CW$46,AU$1)","v":1593},{"$f":"VLOOKUP(DropDownList!$B$47,CntyQryCensus!$A$4:$CW$46,AV$1)","v":184},{"$f":"VLOOKUP(DropDownList!$B$47,CntyQryCensus!$A$4:$CW$46,AW$1)","v":99},{"$f":"VLOOKUP(DropDownList!$B$47,CntyQryCensus!$A$4:$CW$46,AX$1)","v":1777},{"$f":"VLOOKUP(DropDownList!$B$47,CntyQryCensus!$A$4:$CW$46,AY$1)","v":5474},{"$f":"VLOOKUP(DropDownList!$B$47,CntyQryCensus!$A$4:$CW$46,AZ$1)","v":3.08},{"$f":"VLOOKUP(DropDownList!$B$47,CntyQryCensus!$A$4:$CW$46,BA$1)","v":2431},{"$f":"VLOOKUP(DropDownList!$B$47,CntyQryCensus!$A$4:$CW$46,BB$1)","v":2317},{"$f":"VLOOKUP(DropDownList!$B$47,CntyQryCensus!$A$4:$CW$46,BC$1)","v":2060},{"$f":"VLOOKUP(DropDownList!$B$47,CntyQryCensus!$A$4:$CW$46,BD$1)","v":257},{"$f":"VLOOKUP(DropDownList!$B$47,CntyQryCensus!$A$4:$CW$46,BE$1)","v":114},{"$f":"VLOOKUP(DropDownList!$B$47,CntyQryCensus!$A$4:$CW$46,BF$1)","v":4},{"$f":"VLOOKUP(DropDownList!$B$47,CntyQryCensus!$A$4:$CW$46,BG$1)","v":30},{"$f":"VLOOKUP(DropDownList!$B$47,CntyQryCensus!$A$4:$CW$46,BH$1)","v":67},{"$f":"VLOOKUP(DropDownList!$B$47,CntyQryCensus!$A$4:$CW$46,BI$1)","v":6174},{"$f":"VLOOKUP(DropDownList!$B$47,CntyQryCensus!$A$4:$CW$46,BJ$1)","v":5766},{"$f":"VLOOKUP(DropDownList!$B$47,CntyQryCensus!$A$4:$CW$46,BK$1)","v":408},{"$f":"VLOOKUP(DropDownList!$B$47,CntyQryCensus!$A$4:$CW$46,BL$1)","v":2.66},{"$f":"VLOOKUP(DropDownList!$B$47,CntyQryCensus!$A$4:$CW$46,BM$1)","v":2.8},{"$f":"VLOOKUP(DropDownList!$B$47,CntyQryCensus!$A$4:$CW$46,BN$1)","v":1.59},{"$f":"VLOOKUP(DropDownList!$B$47,CntyQryCensus!$A$4:$CW$46,BO$1)","v":2031},{"$f":"VLOOKUP(DropDownList!$B$47,CntyQryCensus!$A$4:$CW$46,BP$1)","v":6},{"$f":"VLOOKUP(DropDownList!$B$47,CntyQryCensus!$A$4:$CW$46,BQ$1)","v":0},{"$f":"VLOOKUP(DropDownList!$B$47,CntyQryCensus!$A$4:$CW$46,BR$1)","v":15},{"$f":"VLOOKUP(DropDownList!$B$47,CntyQryCensus!$A$4:$CW$46,BS$1)","v":0},{"$f":"VLOOKUP(DropDownList!$B$47,CntyQryCensus!$A$4:$CW$46,BT$1)","v":2},{"$f":"VLOOKUP(DropDownList!$B$47,CntyQryCensus!$A$4:$CW$46,BU$1)","v":6},{"$f":"VLOOKUP(DropDownList!$B$47,CntyQryCensus!$A$4:$CW$46,BV$1)","v":250},{"$f":"VLOOKUP(DropDownList!$B$47,CntyQryCensus!$A$4:$CW$46,BW$1)","v":1},{"$f":"VLOOKUP(DropDownList!$B$47,CntyQryCensus!$A$4:$CW$46,BX$1)","v":1},{"$f":"VLOOKUP(DropDownList!$B$47,CntyQryCensus!$A$4:$CW$46,BY$1)","v":0},{"$f":"VLOOKUP(DropDownList!$B$47,CntyQryCensus!$A$4:$CW$46,BZ$1)","v":0},{"$f":"VLOOKUP(DropDownList!$B$47,CntyQryCensus!$A$4:$CW$46,CA$1)","v":2},{"$f":"VLOOKUP(DropDownList!$B$47,CntyQryCensus!$A$4:$CW$46,CB$1)","v":3},{"$f":"VLOOKUP(DropDownList!$B$47,CntyQryCensus!$A$4:$CW$46,CC$1)","v":5},{"$f":"VLOOKUP(DropDownList!$B$47,CntyQryCensus!$A$4:$CW$46,CD$1)","v":179},{"$f":"VLOOKUP(DropDownList!$B$47,CntyQryCensus!$A$4:$CW$46,CE$1)","v":528},{"$f":"VLOOKUP(DropDownList!$B$47,CntyQryCensus!$A$4:$CW$46,CF$1)","v":561},{"$f":"VLOOKUP(DropDownList!$B$47,CntyQryCensus!$A$4:$CW$46,CG$1)","v":399},{"$f":"VLOOKUP(DropDownList!$B$47,CntyQryCensus!$A$4:$CW$46,CH$1)","v":262},{"$f":"VLOOKUP(DropDownList!$B$47,CntyQryCensus!$A$4:$CW$46,CI$1)","v":100},{"$f":"VLOOKUP(DropDownList!$B$47,CntyQryCensus!$A$4:$CW$46,CJ$1)","v":26},{"$f":"VLOOKUP(DropDownList!$B$47,CntyQryCensus!$A$4:$CW$46,CK$1)","v":11},{"$f":"VLOOKUP(DropDownList!$B$47,CntyQryCensus!$A$4:$CW$46,CL$1)","v":49},{"$f":"VLOOKUP(DropDownList!$B$47,CntyQryCensus!$A$4:$CW$46,CM$1)","v":55},{"$f":"VLOOKUP(DropDownList!$B$47,CntyQryCensus!$A$4:$CW$46,CN$1)","v":56},{"$f":"VLOOKUP(DropDownList!$B$47,CntyQryCensus!$A$4:$CW$46,CO$1)","v":33},{"$f":"VLOOKUP(DropDownList!$B$47,CntyQryCensus!$A$4:$CW$46,CP$1)","v":31},{"$f":"VLOOKUP(DropDownList!$B$47,CntyQryCensus!$A$4:$CW$46,CQ$1)","v":12},{"$f":"VLOOKUP(DropDownList!$B$47,CntyQryCensus!$A$4:$CW$46,CR$1)","v":10},{"$f":"VLOOKUP(DropDownList!$B$47,CntyQryCensus!$A$4:$CW$46,CS$1)","v":6178},{"$f":"VLOOKUP(DropDownList!$B$47,CntyQryCensus!$A$4:$CW$46,CT$1)","v":6174},{"$f":"VLOOKUP(DropDownList!$B$47,CntyQryCensus!$A$4:$CW$46,CU$1)","v":4},{"$f":"VLOOKUP(DropDownList!$B$47,CntyQryCensus!$A$4:$CW$46,CV$1)","v":40.9},{"$f":"VLOOKUP(DropDownList!$B$47,CntyQryCensus!$A$4:$CW$46,CW$1)","v":40.700000000000003},{"$f":"VLOOKUP(DropDownList!$B$47,CntyQryCensus!$A$4:$CW$46,CX$1)","v":{"$error":"#REF!"}}]
[]
[]
["Census 2000 DemoProfile Sample Data Tables 2&3   -  DPTab23TownQry"]
["NAME","COUSUB","AREANAME","PopInSchool","Preschool","Kindergarten","Elementary","HighSchool","College","Pop25andOver","HighSchoolGrad","SomeCollege","AssocDegree","BachelDegree","GradDegree","HSGradorHigher","CollegeGradorHigher","Pop5to20yrs","Pop5to20wDis","Pop21to64","Pop21to64wDis","Pop65over","Pop65overwDis","Pop5yrsOver","SameHUin95","DiffHUinUSin95","HUinSameCountyin95","HUinSameStatein95","TotalPop","NativePop","NatPopBornUS","NatPopBornInStatRes","NatPopBornDiffState","NatPopBornOutUS","FornBornPop","FornPopEnt90to00","FornPopNatCit","FornPopNotCit","Households","HHIncLessThn10k","HHInc10to15K","HHInc15to25K","HHInc25to35K","HHInc35to50K","HHInc50to75K","HHInc75to100K","HHInc100to150K","HHInc150to200K","HHIncOver200K","MedianHHInc","HHwithPubAssistInc","MeanPubAssist","FamilyHH","FHHIncLessThn10k","FHHInc10to15K","FHHInc15to25K","FHHInc25to35K","FHHInc35to50K","FHHInc50to75K","FHHInc75to100K","FHHInc100to150K","FHHInc150to200K","FHHIncOver200K","MedianFHHInc","PerCapitaInc","PovStatFamilies","PovStatFHHwChilUnd18","PovStatFHHwChilUnd5","PovStFmalHH","DP3088","DP3089","PovStatIndiv","PovStatIndiv18yrOver","PovStatIndiv65yrOver","DP3093","DP3094","DP3095"]
[{"$f":"VLOOKUP(DropDownList!$B$47,CntyQryCensus!$A$53:$BY$96,A$1)","v":"Atkinson"},{"$f":"VLOOKUP(DropDownList!$B$47,CntyQryCensus!$A$53:$BY$96,B$1)","v":"02340"},{"$f":"VLOOKUP(DropDownList!$B$47,CntyQryCensus!$A$53:$BY$96,C$1)","v":"Atkinson town, Rockingham County, New Hampshire"},{"$f":"VLOOKUP(DropDownList!$B$47,CntyQryCensus!$A$53:$BY$96,D$1)","v":1575},{"$f":"VLOOKUP(DropDownList!$B$47,CntyQryCensus!$A$53:$BY$96,E$1)","v":120},{"$f":"VLOOKUP(DropDownList!$B$47,CntyQryCensus!$A$53:$BY$96,F$1)","v":97},{"$f":"VLOOKUP(DropDownList!$B$47,CntyQryCensus!$A$53:$BY$96,G$1)","v":725},{"$f":"VLOOKUP(DropDownList!$B$47,CntyQryCensus!$A$53:$BY$96,H$1)","v":335},{"$f":"VLOOKUP(DropDownList!$B$47,CntyQryCensus!$A$53:$BY$96,I$1)","v":298},{"$f":"VLOOKUP(DropDownList!$B$47,CntyQryCensus!$A$53:$BY$96,J$1)","v":4345},{"$f":"VLOOKUP(DropDownList!$B$47,CntyQryCensus!$A$53:$BY$96,K$1)","v":1044},{"$f":"VLOOKUP(DropDownList!$B$47,CntyQryCensus!$A$53:$BY$96,L$1)","v":898},{"$f":"VLOOKUP(DropDownList!$B$47,CntyQryCensus!$A$53:$BY$96,M$1)","v":494},{"$f":"VLOOKUP(DropDownList!$B$47,CntyQryCensus!$A$53:$BY$96,N$1)","v":1145},{"$f":"VLOOKUP(DropDownList!$B$47,CntyQryCensus!$A$53:$BY$96,O$1)","v":559},{"$f":"VLOOKUP(DropDownList!$B$47,CntyQryCensus!$A$53:$BY$96,P$1)","v":4140},{"$f":"VLOOKUP(DropDownList!$B$47,CntyQryCensus!$A$53:$BY$96,Q$1)","v":1704},{"$f":"VLOOKUP(DropDownList!$B$47,CntyQryCensus!$A$53:$BY$96,R$1)","v":1262},{"$f":"VLOOKUP(DropDownList!$B$47,CntyQryCensus!$A$53:$BY$96,S$1)","v":60},{"$f":"VLOOKUP(DropDownList!$B$47,CntyQryCensus!$A$53:$BY$96,T$1)","v":3808},{"$f":"VLOOKUP(DropDownList!$B$47,CntyQryCensus!$A$53:$BY$96,U$1)","v":513},{"$f":"VLOOKUP(DropDownList!$B$47,CntyQryCensus!$A$53:$BY$96,V$1)","v":697},{"$f":"VLOOKUP(DropDownList!$B$47,CntyQryCensus!$A$53:$BY$96,W$1)","v":173},{"$f":"VLOOKUP(DropDownList!$B$47,CntyQryCensus!$A$53:$BY$96,X$1)","v":5767},{"$f":"VLOOKUP(DropDownList!$B$47,CntyQryCensus!$A$53:$BY$96,Y$1)","v":3612},{"$f":"VLOOKUP(DropDownList!$B$47,CntyQryCensus!$A$53:$BY$96,Z$1)","v":2095},{"$f":"VLOOKUP(DropDownList!$B$47,CntyQryCensus!$A$53:$BY$96,AA$1)","v":903},{"$f":"VLOOKUP(DropDownList!$B$47,CntyQryCensus!$A$53:$BY$96,AB$1)","v":1192},{"$f":"VLOOKUP(DropDownList!$B$47,CntyQryCensus!$A$53:$BY$96,AC$1)","v":6178},{"$f":"VLOOKUP(DropDownList!$B$47,CntyQryCensus!$A$53:$BY$96,AD$1)","v":5916},{"$f":"VLOOKUP(DropDownList!$B$47,CntyQryCensus!$A$53:$BY$96,AE$1)","v":5889},{"$f":"VLOOKUP(DropDownList!$B$47,CntyQryCensus!$A$53:$BY$96,AF$1)","v":421},{"$f":"VLOOKUP(DropDownList!$B$47,CntyQryCensus!$A$53:$BY$96,AG$1)","v":5468},{"$f":"VLOOKUP(DropDownList!$B$47,CntyQryCensus!$A$53:$BY$96,AH$1)","v":27},{"$f":"VLOOKUP(DropDownList!$B$47,CntyQryCensus!$A$53:$BY$96,AI$1)","v":262},{"$f":"VLOOKUP(DropDownList!$B$47,CntyQryCensus!$A$53:$BY$96,AJ$1)","v":31},{"$f":"VLOOKUP(DropDownList!$B$47,CntyQryCensus!$A$53:$BY$96,AK$1)","v":232},{"$f":"VLOOKUP(DropDownList!$B$47,CntyQryCensus!$A$53:$BY$96,AL$1)","v":30},{"$f":"VLOOKUP(DropDownList!$B$47,CntyQryCensus!$A$53:$BY$96,AM$1)","v":2326},{"$f":"VLOOKUP(DropDownList!$B$47,CntyQryCensus!$A$53:$BY$96,AN$1)","v":80},{"$f":"VLOOKUP(DropDownList!$B$47,CntyQryCensus!$A$53:$BY$96,AO$1)","v":77},{"$f":"VLOOKUP(DropDownList!$B$47,CntyQryCensus!$A$53:$BY$96,AP$1)","v":133},{"$f":"VLOOKUP(DropDownList!$B$47,CntyQryCensus!$A$53:$BY$96,AQ$1)","v":120},{"$f":"VLOOKUP(DropDownList!$B$47,CntyQryCensus!$A$53:$BY$96,AR$1)","v":348},{"$f":"VLOOKUP(DropDownList!$B$47,CntyQryCensus!$A$53:$BY$96,AS$1)","v":485},{"$f":"VLOOKUP(DropDownList!$B$47,CntyQryCensus!$A$53:$BY$96,AT$1)","v":405},{"$f":"VLOOKUP(DropDownList!$B$47,CntyQryCensus!$A$53:$BY$96,AU$1)","v":449},{"$f":"VLOOKUP(DropDownList!$B$47,CntyQryCensus!$A$53:$BY$96,AV$1)","v":111},{"$f":"VLOOKUP(DropDownList!$B$47,CntyQryCensus!$A$53:$BY$96,AW$1)","v":118},{"$f":"VLOOKUP(DropDownList!$B$47,CntyQryCensus!$A$53:$BY$96,AX$1)","v":69729},{"$f":"VLOOKUP(DropDownList!$B$47,CntyQryCensus!$A$53:$BY$96,AY$1)","v":33},{"$f":"VLOOKUP(DropDownList!$B$47,CntyQryCensus!$A$53:$BY$96,AZ$1)","v":905},{"$f":"VLOOKUP(DropDownList!$B$47,CntyQryCensus!$A$53:$BY$96,BA$1)","v":1781},{"$f":"VLOOKUP(DropDownList!$B$47,CntyQryCensus!$A$53:$BY$96,BB$1)","v":24},{"$f":"VLOOKUP(DropDownList!$B$47,CntyQryCensus!$A$53:$BY$96,BC$1)","v":25},{"$f":"VLOOKUP(DropDownList!$B$47,CntyQryCensus!$A$53:$BY$96,BD$1)","v":8},{"$f":"VLOOKUP(DropDownList!$B$47,CntyQryCensus!$A$53:$BY$96,BE$1)","v":90},{"$f":"VLOOKUP(DropDownList!$B$47,CntyQryCensus!$A$53:$BY$96,BF$1)","v":250},{"$f":"VLOOKUP(DropDownList!$B$47,CntyQryCensus!$A$53:$BY$96,BG$1)","v":437},{"$f":"VLOOKUP(DropDownList!$B$47,CntyQryCensus!$A$53:$BY$96,BH$1)","v":337},{"$f":"VLOOKUP(DropDownList!$B$47,CntyQryCensus!$A$53:$BY$96,BI$1)","v":406},{"$f":"VLOOKUP(DropDownList!$B$47,CntyQryCensus!$A$53:$BY$96,BJ$1)","v":101},{"$f":"VLOOKUP(DropDownList!$B$47,CntyQryCensus!$A$53:$BY$96,BK$1)","v":103},{"$f":"VLOOKUP(DropDownList!$B$47,CntyQryCensus!$A$53:$BY$96,BL$1)","v":77631},{"$f":"VLOOKUP(DropDownList!$B$47,CntyQryCensus!$A$53:$BY$96,BM$1)","v":30412},{"$f":"VLOOKUP(DropDownList!$B$47,CntyQryCensus!$A$53:$BY$96,BN$1)","v":41},{"$f":"VLOOKUP(DropDownList!$B$47,CntyQryCensus!$A$53:$BY$96,BO$1)","v":34},{"$f":"VLOOKUP(DropDownList!$B$47,CntyQryCensus!$A$53:$BY$96,BP$1)","v":8},{"$f":"VLOOKUP(DropDownList!$B$47,CntyQryCensus!$A$53:$BY$96,BQ$1)","v":23},{"$f":"VLOOKUP(DropDownList!$B$47,CntyQryCensus!$A$53:$BY$96,BR$1)","v":16},{"$f":"VLOOKUP(DropDownList!$B$47,CntyQryCensus!$A$53:$BY$96,BS$1)","v":0},{"$f":"VLOOKUP(DropDownList!$B$47,CntyQryCensus!$A$53:$BY$96,BT$1)","v":202},{"$f":"VLOOKUP(DropDownList!$B$47,CntyQryCensus!$A$53:$BY$96,BU$1)","v":133},{"$f":"VLOOKUP(DropDownList!$B$47,CntyQryCensus!$A$53:$BY$96,BV$1)","v":15},{"$f":"VLOOKUP(DropDownList!$B$47,CntyQryCensus!$A$53:$BY$96,BW$1)","v":69},{"$f":"VLOOKUP(DropDownList!$B$47,CntyQryCensus!$A$53:$BY$96,BX$1)","v":53},{"$f":"VLOOKUP(DropDownList!$B$47,CntyQryCensus!$A$53:$BY$96,BY$1)","v":65}]
[]
[]
["Census 2000 DemoProfile Sample Data Table 4   -  DPTab4TownQry"]
["NAME","COUSUB","TotHousingUnits","1UnitDet","1UnitAtt","2Units","3to4Units","5to9Units","10to19Units","20orMoreUnits","MobileHomes","BoatRvVan","SingleFamilyUnits","MultiFamUnits","MobileHomeUnits","YearBuilt99to00","YearBuilt95to98","YearBUilt90to94","YearBuilt80to89","YearBuilt70to79","YearBuilt60to69","YearBuilt40to59","YearBuilt39orEarlier","Rooms1","Rooms2","Rooms3","Rooms4","Rooms5","Rooms6","Rooms7","Rooms8","Rooms9orMore","MedianRooms","OccHU1","YrHHMvdIn99to00","YrHHMvdIn95to98","YrHHMvdIn90to94","YrHHMvdIn80to89","YrHHMvdIn70to79","YrHHMvdIn69orBefore","HeatFuelNatGas","HeatFuelBotGas","HeatFuelElectric","HeatFuelOil","HeatFuelCoal","HeatFuelWood","HeatFuelSolar","HeatFuelOther","HeatFuelNone","LackCompPlumb","LackCompKit","NoTelephone","OccHU","OccPerRm1orLess","OccPerRm1to1_5","OccPerRm1_5orMore","SpecOwnOccUnits","Value<50K","Value50to100K","Value100to150K","Value150to200K","Value200to300K","Value300to500K","Value500Kto1mil","Value1MilorMore","MedianValue","WithMortg","MnthOwnCst<300","MnthOwnCst300to500","MnthOwnCst500to700","MnthOwnCst700to1000","MnthOwnCst1000to1500","MnthOwnCst1500to2000","MnthOwnCst2000orMore","MediMnthOwnCst","NotMrtg","NotMrtgMediMnthOwnCst","OwnCst%HHInc<15","OwnCst%HHInc15to20","OwnCst%HHInc20to25","OwnCst%HHInc25to30","OwnCst%HHInc30to35","OwnCst%HHInc35orMor","NotComputed","SpecRntOccUnits","Rnt<200","Rnt200to300","Rnt300to500","Rnt500to750","Rnt750to1000","Rnt1000to1500","Rnt1500orMore","NoRent","MedianRent","Rnt%HHInc<15","Rnt%HHInc15to20","Rnt%HHInc20to25","Rnt%HHInc25to30","Rnt%HHInc30to35","Rnt%HHInc35orMore","Rnt%NotCompute"]
[{"$f":"VLOOKUP(DropDownList!$B$47,CntyQryCensus!$A$103:$CX$146,A$1)","v":"Atkinson"},{"$f":"VLOOKUP(DropDownList!$B$47,CntyQryCensus!$A$103:$CX$146,B$1)","v":"02340"},{"$f":"VLOOKUP(DropDownList!$B$47,CntyQryCensus!$A$103:$CX$146,C$1)","v":2431},{"$f":"VLOOKUP(DropDownList!$B$47,CntyQryCensus!$A$103:$CX$146,D$1)","v":1826},{"$f":"VLOOKUP(DropDownList!$B$47,CntyQryCensus!$A$103:$CX$146,E$1)","v":322},{"$f":"VLOOKUP(DropDownList!$B$47,CntyQryCensus!$A$103:$CX$146,F$1)","v":81},{"$f":"VLOOKUP(DropDownList!$B$47,CntyQryCensus!$A$103:$CX$146,G$1)","v":61},{"$f":"VLOOKUP(DropDownList!$B$47,CntyQryCensus!$A$103:$CX$146,H$1)","v":0},{"$f":"VLOOKUP(DropDownList!$B$47,CntyQryCensus!$A$103:$CX$146,I$1)","v":125},{"$f":"VLOOKUP(DropDownList!$B$47,CntyQryCensus!$A$103:$CX$146,J$1)","v":6},{"$f":"VLOOKUP(DropDownList!$B$47,CntyQryCensus!$A$103:$CX$146,K$1)","v":10},{"$f":"VLOOKUP(DropDownList!$B$47,CntyQryCensus!$A$103:$CX$146,L$1)","v":0},{"$f":"VLOOKUP(DropDownList!$B$47,CntyQryCensus!$A$103:$CX$146,M$1)","v":1826},{"$f":"VLOOKUP(DropDownList!$B$47,CntyQryCensus!$A$103:$CX$146,N$1)","v":595},{"$f":"VLOOKUP(DropDownList!$B$47,CntyQryCensus!$A$103:$CX$146,O$1)","v":10},{"$f":"VLOOKUP(DropDownList!$B$47,CntyQryCensus!$A$103:$CX$146,P$1)","v":86},{"$f":"VLOOKUP(DropDownList!$B$47,CntyQryCensus!$A$103:$CX$146,Q$1)","v":246},{"$f":"VLOOKUP(DropDownList!$B$47,CntyQryCensus!$A$103:$CX$146,R$1)","v":316},{"$f":"VLOOKUP(DropDownList!$B$47,CntyQryCensus!$A$103:$CX$146,S$1)","v":426},{"$f":"VLOOKUP(DropDownList!$B$47,CntyQryCensus!$A$103:$CX$146,T$1)","v":613},{"$f":"VLOOKUP(DropDownList!$B$47,CntyQryCensus!$A$103:$CX$146,U$1)","v":355},{"$f":"VLOOKUP(DropDownList!$B$47,CntyQryCensus!$A$103:$CX$146,V$1)","v":272},{"$f":"VLOOKUP(DropDownList!$B$47,CntyQryCensus!$A$103:$CX$146,W$1)","v":117},{"$f":"VLOOKUP(DropDownList!$B$47,CntyQryCensus!$A$103:$CX$146,X$1)","v":0},{"$f":"VLOOKUP(DropDownList!$B$47,CntyQryCensus!$A$103:$CX$146,Y$1)","v":105},{"$f":"VLOOKUP(DropDownList!$B$47,CntyQryCensus!$A$103:$CX$146,Z$1)","v":36},{"$f":"VLOOKUP(DropDownList!$B$47,CntyQryCensus!$A$103:$CX$146,AA$1)","v":131},{"$f":"VLOOKUP(DropDownList!$B$47,CntyQryCensus!$A$103:$CX$146,AB$1)","v":409},{"$f":"VLOOKUP(DropDownList!$B$47,CntyQryCensus!$A$103:$CX$146,AC$1)","v":559},{"$f":"VLOOKUP(DropDownList!$B$47,CntyQryCensus!$A$103:$CX$146,AD$1)","v":457},{"$f":"VLOOKUP(DropDownList!$B$47,CntyQryCensus!$A$103:$CX$146,AE$1)","v":358},{"$f":"VLOOKUP(DropDownList!$B$47,CntyQryCensus!$A$103:$CX$146,AF$1)","v":376},{"$f":"VLOOKUP(DropDownList!$B$47,CntyQryCensus!$A$103:$CX$146,AG$1)","v":6.5},{"$f":"VLOOKUP(DropDownList!$B$47,CntyQryCensus!$A$103:$CX$146,AH$1)","v":2317},{"$f":"VLOOKUP(DropDownList!$B$47,CntyQryCensus!$A$103:$CX$146,AI$1)","v":256},{"$f":"VLOOKUP(DropDownList!$B$47,CntyQryCensus!$A$103:$CX$146,AJ$1)","v":632},{"$f":"VLOOKUP(DropDownList!$B$47,CntyQryCensus!$A$103:$CX$146,AK$1)","v":437},{"$f":"VLOOKUP(DropDownList!$B$47,CntyQryCensus!$A$103:$CX$146,AL$1)","v":479},{"$f":"VLOOKUP(DropDownList!$B$47,CntyQryCensus!$A$103:$CX$146,AM$1)","v":354},{"$f":"VLOOKUP(DropDownList!$B$47,CntyQryCensus!$A$103:$CX$146,AN$1)","v":159},{"$f":"VLOOKUP(DropDownList!$B$47,CntyQryCensus!$A$103:$CX$146,AO$1)","v":313},{"$f":"VLOOKUP(DropDownList!$B$47,CntyQryCensus!$A$103:$CX$146,AP$1)","v":223},{"$f":"VLOOKUP(DropDownList!$B$47,CntyQryCensus!$A$103:$CX$146,AQ$1)","v":85},{"$f":"VLOOKUP(DropDownList!$B$47,CntyQryCensus!$A$103:$CX$146,AR$1)","v":1657},{"$f":"VLOOKUP(DropDownList!$B$47,CntyQryCensus!$A$103:$CX$146,AS$1)","v":7},{"$f":"VLOOKUP(DropDownList!$B$47,CntyQryCensus!$A$103:$CX$146,AT$1)","v":32},{"$f":"VLOOKUP(DropDownList!$B$47,CntyQryCensus!$A$103:$CX$146,AU$1)","v":0},{"$f":"VLOOKUP(DropDownList!$B$47,CntyQryCensus!$A$103:$CX$146,AV$1)","v":0},{"$f":"VLOOKUP(DropDownList!$B$47,CntyQryCensus!$A$103:$CX$146,AW$1)","v":0},{"$f":"VLOOKUP(DropDownList!$B$47,CntyQryCensus!$A$103:$CX$146,AX$1)","v":0},{"$f":"VLOOKUP(DropDownList!$B$47,CntyQryCensus!$A$103:$CX$146,AY$1)","v":0},{"$f":"VLOOKUP(DropDownList!$B$47,CntyQryCensus!$A$103:$CX$146,AZ$1)","v":0},{"$f":"VLOOKUP(DropDownList!$B$47,CntyQryCensus!$A$103:$CX$146,BA$1)","v":2317},{"$f":"VLOOKUP(DropDownList!$B$47,CntyQryCensus!$A$103:$CX$146,BB$1)","v":2302},{"$f":"VLOOKUP(DropDownList!$B$47,CntyQryCensus!$A$103:$CX$146,BC$1)","v":15},{"$f":"VLOOKUP(DropDownList!$B$47,CntyQryCensus!$A$103:$CX$146,BD$1)","v":0},{"$f":"VLOOKUP(DropDownList!$B$47,CntyQryCensus!$A$103:$CX$146,BE$1)","v":1791},{"$f":"VLOOKUP(DropDownList!$B$47,CntyQryCensus!$A$103:$CX$146,BF$1)","v":0},{"$f":"VLOOKUP(DropDownList!$B$47,CntyQryCensus!$A$103:$CX$146,BG$1)","v":34},{"$f":"VLOOKUP(DropDownList!$B$47,CntyQryCensus!$A$103:$CX$146,BH$1)","v":226},{"$f":"VLOOKUP(DropDownList!$B$47,CntyQryCensus!$A$103:$CX$146,BI$1)","v":670},{"$f":"VLOOKUP(DropDownList!$B$47,CntyQryCensus!$A$103:$CX$146,BJ$1)","v":632},{"$f":"VLOOKUP(DropDownList!$B$47,CntyQryCensus!$A$103:$CX$146,BK$1)","v":170},{"$f":"VLOOKUP(DropDownList!$B$47,CntyQryCensus!$A$103:$CX$146,BL$1)","v":59},{"$f":"VLOOKUP(DropDownList!$B$47,CntyQryCensus!$A$103:$CX$146,BM$1)","v":0},{"$f":"VLOOKUP(DropDownList!$B$47,CntyQryCensus!$A$103:$CX$146,BN$1)","v":197900},{"$f":"VLOOKUP(DropDownList!$B$47,CntyQryCensus!$A$103:$CX$146,BO$1)","v":1426},{"$f":"VLOOKUP(DropDownList!$B$47,CntyQryCensus!$A$103:$CX$146,BP$1)","v":0},{"$f":"VLOOKUP(DropDownList!$B$47,CntyQryCensus!$A$103:$CX$146,BQ$1)","v":24},{"$f":"VLOOKUP(DropDownList!$B$47,CntyQryCensus!$A$103:$CX$146,BR$1)","v":58},{"$f":"VLOOKUP(DropDownList!$B$47,CntyQryCensus!$A$103:$CX$146,BS$1)","v":121},{"$f":"VLOOKUP(DropDownList!$B$47,CntyQryCensus!$A$103:$CX$146,BT$1)","v":552},{"$f":"VLOOKUP(DropDownList!$B$47,CntyQryCensus!$A$103:$CX$146,BU$1)","v":485},{"$f":"VLOOKUP(DropDownList!$B$47,CntyQryCensus!$A$103:$CX$146,BV$1)","v":186},{"$f":"VLOOKUP(DropDownList!$B$47,CntyQryCensus!$A$103:$CX$146,BW$1)","v":1465},{"$f":"VLOOKUP(DropDownList!$B$47,CntyQryCensus!$A$103:$CX$146,BX$1)","v":365},{"$f":"VLOOKUP(DropDownList!$B$47,CntyQryCensus!$A$103:$CX$146,BY$1)","v":459},{"$f":"VLOOKUP(DropDownList!$B$47,CntyQryCensus!$A$103:$CX$146,BZ$1)","v":595},{"$f":"VLOOKUP(DropDownList!$B$47,CntyQryCensus!$A$103:$CX$146,CA$1)","v":278},{"$f":"VLOOKUP(DropDownList!$B$47,CntyQryCensus!$A$103:$CX$146,CB$1)","v":253},{"$f":"VLOOKUP(DropDownList!$B$47,CntyQryCensus!$A$103:$CX$146,CC$1)","v":241},{"$f":"VLOOKUP(DropDownList!$B$47,CntyQryCensus!$A$103:$CX$146,CD$1)","v":114},{"$f":"VLOOKUP(DropDownList!$B$47,CntyQryCensus!$A$103:$CX$146,CE$1)","v":310},{"$f":"VLOOKUP(DropDownList!$B$47,CntyQryCensus!$A$103:$CX$146,CF$1)","v":0},{"$f":"VLOOKUP(DropDownList!$B$47,CntyQryCensus!$A$103:$CX$146,CG$1)","v":238},{"$f":"VLOOKUP(DropDownList!$B$47,CntyQryCensus!$A$103:$CX$146,CH$1)","v":10},{"$f":"VLOOKUP(DropDownList!$B$47,CntyQryCensus!$A$103:$CX$146,CI$1)","v":0},{"$f":"VLOOKUP(DropDownList!$B$47,CntyQryCensus!$A$103:$CX$146,CJ$1)","v":92},{"$f":"VLOOKUP(DropDownList!$B$47,CntyQryCensus!$A$103:$CX$146,CK$1)","v":102},{"$f":"VLOOKUP(DropDownList!$B$47,CntyQryCensus!$A$103:$CX$146,CL$1)","v":18},{"$f":"VLOOKUP(DropDownList!$B$47,CntyQryCensus!$A$103:$CX$146,CM$1)","v":0},{"$f":"VLOOKUP(DropDownList!$B$47,CntyQryCensus!$A$103:$CX$146,CN$1)","v":0},{"$f":"VLOOKUP(DropDownList!$B$47,CntyQryCensus!$A$103:$CX$146,CO$1)","v":16},{"$f":"VLOOKUP(DropDownList!$B$47,CntyQryCensus!$A$103:$CX$146,CP$1)","v":509},{"$f":"VLOOKUP(DropDownList!$B$47,CntyQryCensus!$A$103:$CX$146,CQ$1)","v":33},{"$f":"VLOOKUP(DropDownList!$B$47,CntyQryCensus!$A$103:$CX$146,CR$1)","v":43},{"$f":"VLOOKUP(DropDownList!$B$47,CntyQryCensus!$A$103:$CX$146,CS$1)","v":10},{"$f":"VLOOKUP(DropDownList!$B$47,CntyQryCensus!$A$103:$CX$146,CT$1)","v":30},{"$f":"VLOOKUP(DropDownList!$B$47,CntyQryCensus!$A$103:$CX$146,CU$1)","v":10},{"$f":"VLOOKUP(DropDownList!$B$47,CntyQryCensus!$A$103:$CX$146,CV$1)","v":96},{"$f":"VLOOKUP(DropDownList!$B$47,CntyQryCensus!$A$103:$CX$146,CW$1)","v":16}]
[]
[]
["Census 2000 SummaryFile3 Sample Data  -  SF3TownQry1SocialChar"]
["TOWN_NAME","LOGRECNO","COUSUB","P01TotalPopulation","P02SampleCountOfPop","P03Pop100pctCount","P05UrbanPopulation","P05RuralPopulation","P06WhiteAlone","P06BlackOrAfAm","P06AmIndAlone","P06AsianAlone","P06HawaiianOrPI","P06OtherRace","P06TwoPlusRaces","P07NotHispanicOrLatino","P07HispanicOrLatino","P08MalePop","P08FemalePop","P09PopInHouseholds","P09PopInFamHH","P09PopInNonFamHH","P09PopInGroupQtr","P13TotalHH","P13FamilyHH","P13FamHHolder15to24yrs","P13FamHHolder25to34yrs","P13FamHHolder35to44yrs","P13FamHHolder45to54yrs","P13FamHHolder55to64yrs","P13FamHHolder65to74yrs","P13FamHHolder75to84yrs","P13FamHHolder85yrsOver","P13NonFamilyHH","P13NonFamHHolder15to24yrs","P13NonFamHHolder25to34yrs","P13NonFamHHolder35to44yrs","P13NonFamHHolder45to54yrs","P13NonFamHHolder55to64yrs","P13NonFamHHolder65to74yrs","P13NonFamHHolder75to84yrs","P13NonFamHHolder85yrsOver","P18Pop15yrsOver","P18MaritalStatNeverMarried","P18MaritalStatNowMarried","P18MaritalStatSeparated","P18MaritalStatWidowed","P18MaritalStatWidowFemale","P18MaritalStatDivorced","P18MaritalStatDivorcedFemale","P21NativeBornPop","P21NatPopBornInState","P21NatPopBornOtherState","P021005","P021006","P021007","P021008","P21NatPopBornOutUS","P21ForeignBornPop","P021014","P021015","P24Pop5YrsPlus","P24ResSameHouseIn95","P24ResDiffHouseIn95","P24ResDiffHouseInUSIn95","P24ResDiffHouseSameCountyIn95","P24ResDiffHouseDiffCountyIn95","P24ResDiffHouseDiffCntySamStIn95","P24ResDiffHouseDiffCntyDifStIn95","P24ResDiffHouseDiffCntyNEStIn95","P24ResDiffHouseDiffCntyMWStIn95","P24ResDiffHouseDiffCntySoStIn95","P24ResDiffHouseDiffCntyWstStIn95","P24ResDiffInPR","P24ResDiffElsewhereIn95","P26Workers16yrsOver","P26WorkedInState","P26WorkedInCnty","P26WorkedOutsideCnty","P26WorkedOutsideState","P30Workers16Over","P30TranspToWrkCar","P30TranspToWrkPublic","P30TranspToWrkOther","P30WrkdAtHome","P31WrkrsNotWrkAtHom","P31TravTim<5min","P31TravTim5to9Min","P31TravTim10to14Min","P31TravTim15to19Min","P31TravTim20to24Min","P31TravTim25to29Min","P31TravTim30to34Min","P31TravTim35to39Min","P31TravTim40to44Min","P31TravTim45to59Min","P31TravTim60to89Min","P31TravTim90MinMore","P31WorkAtHome","P36SchEnrlPop3yrOver","P36NurserSchEnrl","P36KinderSchEnrl","P36ElemSchEnrl","P36HighSchEnrl","P36CollGradSchEnrl","P37Pop25yrsOver","P37EduAtain<9grd","P37EduAtainHSnoDip","P37EduAtainHSgrad","P37EduAtainCollNoDeg","P37EduAtainAssocDeg","P37EduAtainBachDeg","P37EduAtainGradProfDeg","P42NIPop5to15","P42NIPop5to15wDisabl","P42NIPop16to20","P42NIPop16to20wDisab","P42NIPop16to20wDisEmp","P42NIPop16to21NoDis","P42NIPop16to21NoDisEmpl","P42NIPop21to64","P42NIPop21to64wDis","P42NIPop21to64wDisEmp","P42NIPop21to64NoDis","P42NIPop21to64NoDisEmp","P42NIPop65to74","P42NIPop65to74wDis","P42NIPop75Over","P42NIPop75OverwDis","P43Pop16YrsOver","P43Pop16OvrInLaborForce","P43Pop16OvrCivlLabFrc","P43Pop16OvrCivlLbrFrcEmp","P48Families","P48MarriedFam","P48MarrFamNoWorkers","P48MarrFam1Worker","P48MarrFam2Worker","P48MarrFamHusbWifeWorked","P48MarrFamOther","P48MarrFam3PlusWorker","P48MarrFam3WorkHsbWif","P48MarrFam3PlsWrkOther","P48OtherFam","P48MaleHHNoWif","P48MaleHHNoWifNoWorker","P48MaleHHNoWif1Worker","P48MaleHHNoWif2Worker","P48MaleHHNoWif3PlusWorker","P48FemaleHHNoHsb","P48FemaleHHNoHsbNoWorker","P48FemaleHHNoHsb1Worker","P48FemaleHHNoHsb2Worker","P48FemaleHHNoHsb3Worker","P49EmpCivPop16YrOver","P49IndustAgricult","P49IndustConst","P49IndustMnftg","P49IndustWhlslTrd","P49IndustRtlTrd","P49IndustTrspWrhsUtlt","P49IndustInfrm","P49IndustFinInsRE","P49IndustPrfsScntfMngmt","P49IndustEduHlthSocSrv","P49IndustArtsEntRec","P49IndustOthrSrvc","P49IndustPubAdm","P50OccupMngmtProfs","P50OccupService","P50OccupSalesOff","P50OccupFarmFishForest","P50OccupConstExtrctMaint","P50OccupPrdctTrnspMatMv"]
[{"$f":"VLOOKUP(DropDownList!$B$47,CntyQryCensus!$A$156:$FR$198,A$1)","v":"Atkinson"},{"$f":"VLOOKUP(DropDownList!$B$47,CntyQryCensus!$A$156:$FR$198,B$1)","v":"0003039"},{"$f":"VLOOKUP(DropDownList!$B$47,CntyQryCensus!$A$156:$FR$198,C$1)","v":"02340"},{"$f":"VLOOKUP(DropDownList!$B$47,CntyQryCensus!$A$156:$FR$198,D$1)","v":6178},{"$f":"VLOOKUP(DropDownList!$B$47,CntyQryCensus!$A$156:$FR$198,E$1)","v":729},{"$f":"VLOOKUP(DropDownList!$B$47,CntyQryCensus!$A$156:$FR$198,F$1)","v":6178},{"$f":"VLOOKUP(DropDownList!$B$47,CntyQryCensus!$A$156:$FR$198,G$1)","v":6178},{"$f":"VLOOKUP(DropDownList!$B$47,CntyQryCensus!$A$156:$FR$198,H$1)","v":0},{"$f":"VLOOKUP(DropDownList!$B$47,CntyQryCensus!$A$156:$FR$198,I$1)","v":6069},{"$f":"VLOOKUP(DropDownList!$B$47,CntyQryCensus!$A$156:$FR$198,J$1)","v":0},{"$f":"VLOOKUP(DropDownList!$B$47,CntyQryCensus!$A$156:$FR$198,K$1)","v":0},{"$f":"VLOOKUP(DropDownList!$B$47,CntyQryCensus!$A$156:$FR$198,L$1)","v":58},{"$f":"VLOOKUP(DropDownList!$B$47,CntyQryCensus!$A$156:$FR$198,M$1)","v":0},{"$f":"VLOOKUP(DropDownList!$B$47,CntyQryCensus!$A$156:$FR$198,N$1)","v":19},{"$f":"VLOOKUP(DropDownList!$B$47,CntyQryCensus!$A$156:$FR$198,O$1)","v":32},{"$f":"VLOOKUP(DropDownList!$B$47,CntyQryCensus!$A$156:$FR$198,P$1)","v":6104},{"$f":"VLOOKUP(DropDownList!$B$47,CntyQryCensus!$A$156:$FR$198,Q$1)","v":74},{"$f":"VLOOKUP(DropDownList!$B$47,CntyQryCensus!$A$156:$FR$198,R$1)","v":3032},{"$f":"VLOOKUP(DropDownList!$B$47,CntyQryCensus!$A$156:$FR$198,S$1)","v":3146},{"$f":"VLOOKUP(DropDownList!$B$47,CntyQryCensus!$A$156:$FR$198,T$1)","v":6174},{"$f":"VLOOKUP(DropDownList!$B$47,CntyQryCensus!$A$156:$FR$198,U$1)","v":5528},{"$f":"VLOOKUP(DropDownList!$B$47,CntyQryCensus!$A$156:$FR$198,V$1)","v":646},{"$f":"VLOOKUP(DropDownList!$B$47,CntyQryCensus!$A$156:$FR$198,W$1)","v":4},{"$f":"VLOOKUP(DropDownList!$B$47,CntyQryCensus!$A$156:$FR$198,X$1)","v":2326},{"$f":"VLOOKUP(DropDownList!$B$47,CntyQryCensus!$A$156:$FR$198,Y$1)","v":1781},{"$f":"VLOOKUP(DropDownList!$B$47,CntyQryCensus!$A$156:$FR$198,Z$1)","v":9},{"$f":"VLOOKUP(DropDownList!$B$47,CntyQryCensus!$A$156:$FR$198,AA$1)","v":178},{"$f":"VLOOKUP(DropDownList!$B$47,CntyQryCensus!$A$156:$FR$198,AB$1)","v":504},{"$f":"VLOOKUP(DropDownList!$B$47,CntyQryCensus!$A$156:$FR$198,AC$1)","v":490},{"$f":"VLOOKUP(DropDownList!$B$47,CntyQryCensus!$A$156:$FR$198,AD$1)","v":342},{"$f":"VLOOKUP(DropDownList!$B$47,CntyQryCensus!$A$156:$FR$198,AE$1)","v":171},{"$f":"VLOOKUP(DropDownList!$B$47,CntyQryCensus!$A$156:$FR$198,AF$1)","v":74},{"$f":"VLOOKUP(DropDownList!$B$47,CntyQryCensus!$A$156:$FR$198,AG$1)","v":13},{"$f":"VLOOKUP(DropDownList!$B$47,CntyQryCensus!$A$156:$FR$198,AH$1)","v":545},{"$f":"VLOOKUP(DropDownList!$B$47,CntyQryCensus!$A$156:$FR$198,AI$1)","v":0},{"$f":"VLOOKUP(DropDownList!$B$47,CntyQryCensus!$A$156:$FR$198,AJ$1)","v":34},{"$f":"VLOOKUP(DropDownList!$B$47,CntyQryCensus!$A$156:$FR$198,AK$1)","v":104},{"$f":"VLOOKUP(DropDownList!$B$47,CntyQryCensus!$A$156:$FR$198,AL$1)","v":126},{"$f":"VLOOKUP(DropDownList!$B$47,CntyQryCensus!$A$156:$FR$198,AM$1)","v":96},{"$f":"VLOOKUP(DropDownList!$B$47,CntyQryCensus!$A$156:$FR$198,AN$1)","v":130},{"$f":"VLOOKUP(DropDownList!$B$47,CntyQryCensus!$A$156:$FR$198,AO$1)","v":21},{"$f":"VLOOKUP(DropDownList!$B$47,CntyQryCensus!$A$156:$FR$198,AP$1)","v":34},{"$f":"VLOOKUP(DropDownList!$B$47,CntyQryCensus!$A$156:$FR$198,AQ$1)","v":4882},{"$f":"VLOOKUP(DropDownList!$B$47,CntyQryCensus!$A$156:$FR$198,AR$1)","v":951},{"$f":"VLOOKUP(DropDownList!$B$47,CntyQryCensus!$A$156:$FR$198,AS$1)","v":3226},{"$f":"VLOOKUP(DropDownList!$B$47,CntyQryCensus!$A$156:$FR$198,AT$1)","v":72},{"$f":"VLOOKUP(DropDownList!$B$47,CntyQryCensus!$A$156:$FR$198,AU$1)","v":242},{"$f":"VLOOKUP(DropDownList!$B$47,CntyQryCensus!$A$156:$FR$198,AV$1)","v":169},{"$f":"VLOOKUP(DropDownList!$B$47,CntyQryCensus!$A$156:$FR$198,AW$1)","v":391},{"$f":"VLOOKUP(DropDownList!$B$47,CntyQryCensus!$A$156:$FR$198,AX$1)","v":205},{"$f":"VLOOKUP(DropDownList!$B$47,CntyQryCensus!$A$156:$FR$198,AY$1)","v":5916},{"$f":"VLOOKUP(DropDownList!$B$47,CntyQryCensus!$A$156:$FR$198,AZ$1)","v":421},{"$f":"VLOOKUP(DropDownList!$B$47,CntyQryCensus!$A$156:$FR$198,BA$1)","v":5468},{"$f":"VLOOKUP(DropDownList!$B$47,CntyQryCensus!$A$156:$FR$198,BB$1)","v":4943},{"$f":"VLOOKUP(DropDownList!$B$47,CntyQryCensus!$A$156:$FR$198,BC$1)","v":227},{"$f":"VLOOKUP(DropDownList!$B$47,CntyQryCensus!$A$156:$FR$198,BD$1)","v":206},{"$f":"VLOOKUP(DropDownList!$B$47,CntyQryCensus!$A$156:$FR$198,BE$1)","v":92},{"$f":"VLOOKUP(DropDownList!$B$47,CntyQryCensus!$A$156:$FR$198,BF$1)","v":27},{"$f":"VLOOKUP(DropDownList!$B$47,CntyQryCensus!$A$156:$FR$198,BG$1)","v":262},{"$f":"VLOOKUP(DropDownList!$B$47,CntyQryCensus!$A$156:$FR$198,BH$1)","v":232},{"$f":"VLOOKUP(DropDownList!$B$47,CntyQryCensus!$A$156:$FR$198,BI$1)","v":30},{"$f":"VLOOKUP(DropDownList!$B$47,CntyQryCensus!$A$156:$FR$198,BJ$1)","v":5767},{"$f":"VLOOKUP(DropDownList!$B$47,CntyQryCensus!$A$156:$FR$198,BK$1)","v":3612},{"$f":"VLOOKUP(DropDownList!$B$47,CntyQryCensus!$A$156:$FR$198,BL$1)","v":2155},{"$f":"VLOOKUP(DropDownList!$B$47,CntyQryCensus!$A$156:$FR$198,BM$1)","v":2095},{"$f":"VLOOKUP(DropDownList!$B$47,CntyQryCensus!$A$156:$FR$198,BN$1)","v":903},{"$f":"VLOOKUP(DropDownList!$B$47,CntyQryCensus!$A$156:$FR$198,BO$1)","v":1192},{"$f":"VLOOKUP(DropDownList!$B$47,CntyQryCensus!$A$156:$FR$198,BP$1)","v":116},{"$f":"VLOOKUP(DropDownList!$B$47,CntyQryCensus!$A$156:$FR$198,BQ$1)","v":1076},{"$f":"VLOOKUP(DropDownList!$B$47,CntyQryCensus!$A$156:$FR$198,BR$1)","v":905},{"$f":"VLOOKUP(DropDownList!$B$47,CntyQryCensus!$A$156:$FR$198,BS$1)","v":4},{"$f":"VLOOKUP(DropDownList!$B$47,CntyQryCensus!$A$156:$FR$198,BT$1)","v":134},{"$f":"VLOOKUP(DropDownList!$B$47,CntyQryCensus!$A$156:$FR$198,BU$1)","v":33},{"$f":"VLOOKUP(DropDownList!$B$47,CntyQryCensus!$A$156:$FR$198,BV$1)","v":0},{"$f":"VLOOKUP(DropDownList!$B$47,CntyQryCensus!$A$156:$FR$198,BW$1)","v":60},{"$f":"VLOOKUP(DropDownList!$B$47,CntyQryCensus!$A$156:$FR$198,BX$1)","v":3422},{"$f":"VLOOKUP(DropDownList!$B$47,CntyQryCensus!$A$156:$FR$198,BY$1)","v":1524},{"$f":"VLOOKUP(DropDownList!$B$47,CntyQryCensus!$A$156:$FR$198,BZ$1)","v":1279},{"$f":"VLOOKUP(DropDownList!$B$47,CntyQryCensus!$A$156:$FR$198,CA$1)","v":245},{"$f":"VLOOKUP(DropDownList!$B$47,CntyQryCensus!$A$156:$FR$198,CB$1)","v":1898},{"$f":"VLOOKUP(DropDownList!$B$47,CntyQryCensus!$A$156:$FR$198,CC$1)","v":3422},{"$f":"VLOOKUP(DropDownList!$B$47,CntyQryCensus!$A$156:$FR$198,CD$1)","v":3156},{"$f":"VLOOKUP(DropDownList!$B$47,CntyQryCensus!$A$156:$FR$198,CE$1)","v":24},{"$f":"VLOOKUP(DropDownList!$B$47,CntyQryCensus!$A$156:$FR$198,CF$1)","v":100},{"$f":"VLOOKUP(DropDownList!$B$47,CntyQryCensus!$A$156:$FR$198,CG$1)","v":208},{"$f":"VLOOKUP(DropDownList!$B$47,CntyQryCensus!$A$156:$FR$198,CH$1)","v":3214},{"$f":"VLOOKUP(DropDownList!$B$47,CntyQryCensus!$A$156:$FR$198,CI$1)","v":49},{"$f":"VLOOKUP(DropDownList!$B$47,CntyQryCensus!$A$156:$FR$198,CJ$1)","v":156},{"$f":"VLOOKUP(DropDownList!$B$47,CntyQryCensus!$A$156:$FR$198,CK$1)","v":428},{"$f":"VLOOKUP(DropDownList!$B$47,CntyQryCensus!$A$156:$FR$198,CL$1)","v":401},{"$f":"VLOOKUP(DropDownList!$B$47,CntyQryCensus!$A$156:$FR$198,CM$1)","v":436},{"$f":"VLOOKUP(DropDownList!$B$47,CntyQryCensus!$A$156:$FR$198,CN$1)","v":167},{"$f":"VLOOKUP(DropDownList!$B$47,CntyQryCensus!$A$156:$FR$198,CO$1)","v":526},{"$f":"VLOOKUP(DropDownList!$B$47,CntyQryCensus!$A$156:$FR$198,CP$1)","v":79},{"$f":"VLOOKUP(DropDownList!$B$47,CntyQryCensus!$A$156:$FR$198,CQ$1)","v":185},{"$f":"VLOOKUP(DropDownList!$B$47,CntyQryCensus!$A$156:$FR$198,CR$1)","v":406},{"$f":"VLOOKUP(DropDownList!$B$47,CntyQryCensus!$A$156:$FR$198,CS$1)","v":316},{"$f":"VLOOKUP(DropDownList!$B$47,CntyQryCensus!$A$156:$FR$198,CT$1)","v":65},{"$f":"VLOOKUP(DropDownList!$B$47,CntyQryCensus!$A$156:$FR$198,CU$1)","v":208},{"$f":"VLOOKUP(DropDownList!$B$47,CntyQryCensus!$A$156:$FR$198,CV$1)","v":5932},{"$f":"VLOOKUP(DropDownList!$B$47,CntyQryCensus!$A$156:$FR$198,CW$1)","v":120},{"$f":"VLOOKUP(DropDownList!$B$47,CntyQryCensus!$A$156:$FR$198,CX$1)","v":97},{"$f":"VLOOKUP(DropDownList!$B$47,CntyQryCensus!$A$156:$FR$198,CY$1)","v":725},{"$f":"VLOOKUP(DropDownList!$B$47,CntyQryCensus!$A$156:$FR$198,CZ$1)","v":335},{"$f":"VLOOKUP(DropDownList!$B$47,CntyQryCensus!$A$156:$FR$198,DA$1)","v":298},{"$f":"VLOOKUP(DropDownList!$B$47,CntyQryCensus!$A$156:$FR$198,DB$1)","v":4345},{"$f":"VLOOKUP(DropDownList!$B$47,CntyQryCensus!$A$156:$FR$198,DC$1)","v":43},{"$f":"VLOOKUP(DropDownList!$B$47,CntyQryCensus!$A$156:$FR$198,DD$1)","v":162},{"$f":"VLOOKUP(DropDownList!$B$47,CntyQryCensus!$A$156:$FR$198,DE$1)","v":1044},{"$f":"VLOOKUP(DropDownList!$B$47,CntyQryCensus!$A$156:$FR$198,DF$1)","v":898},{"$f":"VLOOKUP(DropDownList!$B$47,CntyQryCensus!$A$156:$FR$198,DG$1)","v":494},{"$f":"VLOOKUP(DropDownList!$B$47,CntyQryCensus!$A$156:$FR$198,DH$1)","v":1145},{"$f":"VLOOKUP(DropDownList!$B$47,CntyQryCensus!$A$156:$FR$198,DI$1)","v":559},{"$f":"VLOOKUP(DropDownList!$B$47,CntyQryCensus!$A$156:$FR$198,DJ$1)","v":965},{"$f":"VLOOKUP(DropDownList!$B$47,CntyQryCensus!$A$156:$FR$198,DK$1)","v":27},{"$f":"VLOOKUP(DropDownList!$B$47,CntyQryCensus!$A$156:$FR$198,DL$1)","v":297},{"$f":"VLOOKUP(DropDownList!$B$47,CntyQryCensus!$A$156:$FR$198,DM$1)","v":33},{"$f":"VLOOKUP(DropDownList!$B$47,CntyQryCensus!$A$156:$FR$198,DN$1)","v":23},{"$f":"VLOOKUP(DropDownList!$B$47,CntyQryCensus!$A$156:$FR$198,DO$1)","v":264},{"$f":"VLOOKUP(DropDownList!$B$47,CntyQryCensus!$A$156:$FR$198,DP$1)","v":109},{"$f":"VLOOKUP(DropDownList!$B$47,CntyQryCensus!$A$156:$FR$198,DQ$1)","v":3808},{"$f":"VLOOKUP(DropDownList!$B$47,CntyQryCensus!$A$156:$FR$198,DR$1)","v":513},{"$f":"VLOOKUP(DropDownList!$B$47,CntyQryCensus!$A$156:$FR$198,DS$1)","v":410},{"$f":"VLOOKUP(DropDownList!$B$47,CntyQryCensus!$A$156:$FR$198,DT$1)","v":3295},{"$f":"VLOOKUP(DropDownList!$B$47,CntyQryCensus!$A$156:$FR$198,DU$1)","v":2805},{"$f":"VLOOKUP(DropDownList!$B$47,CntyQryCensus!$A$156:$FR$198,DV$1)","v":446},{"$f":"VLOOKUP(DropDownList!$B$47,CntyQryCensus!$A$156:$FR$198,DW$1)","v":97},{"$f":"VLOOKUP(DropDownList!$B$47,CntyQryCensus!$A$156:$FR$198,DX$1)","v":251},{"$f":"VLOOKUP(DropDownList!$B$47,CntyQryCensus!$A$156:$FR$198,DY$1)","v":76},{"$f":"VLOOKUP(DropDownList!$B$47,CntyQryCensus!$A$156:$FR$198,DZ$1)","v":4802},{"$f":"VLOOKUP(DropDownList!$B$47,CntyQryCensus!$A$156:$FR$198,EA$1)","v":3551},{"$f":"VLOOKUP(DropDownList!$B$47,CntyQryCensus!$A$156:$FR$198,EB$1)","v":3551},{"$f":"VLOOKUP(DropDownList!$B$47,CntyQryCensus!$A$156:$FR$198,EC$1)","v":3459},{"$f":"VLOOKUP(DropDownList!$B$47,CntyQryCensus!$A$156:$FR$198,ED$1)","v":1781},{"$f":"VLOOKUP(DropDownList!$B$47,CntyQryCensus!$A$156:$FR$198,EE$1)","v":1550},{"$f":"VLOOKUP(DropDownList!$B$47,CntyQryCensus!$A$156:$FR$198,EF$1)","v":122},{"$f":"VLOOKUP(DropDownList!$B$47,CntyQryCensus!$A$156:$FR$198,EG$1)","v":278},{"$f":"VLOOKUP(DropDownList!$B$47,CntyQryCensus!$A$156:$FR$198,EH$1)","v":865},{"$f":"VLOOKUP(DropDownList!$B$47,CntyQryCensus!$A$156:$FR$198,EI$1)","v":826},{"$f":"VLOOKUP(DropDownList!$B$47,CntyQryCensus!$A$156:$FR$198,EJ$1)","v":39},{"$f":"VLOOKUP(DropDownList!$B$47,CntyQryCensus!$A$156:$FR$198,EK$1)","v":285},{"$f":"VLOOKUP(DropDownList!$B$47,CntyQryCensus!$A$156:$FR$198,EL$1)","v":271},{"$f":"VLOOKUP(DropDownList!$B$47,CntyQryCensus!$A$156:$FR$198,EM$1)","v":14},{"$f":"VLOOKUP(DropDownList!$B$47,CntyQryCensus!$A$156:$FR$198,EN$1)","v":231},{"$f":"VLOOKUP(DropDownList!$B$47,CntyQryCensus!$A$156:$FR$198,EO$1)","v":91},{"$f":"VLOOKUP(DropDownList!$B$47,CntyQryCensus!$A$156:$FR$198,EP$1)","v":0},{"$f":"VLOOKUP(DropDownList!$B$47,CntyQryCensus!$A$156:$FR$198,EQ$1)","v":23},{"$f":"VLOOKUP(DropDownList!$B$47,CntyQryCensus!$A$156:$FR$198,ER$1)","v":46},{"$f":"VLOOKUP(DropDownList!$B$47,CntyQryCensus!$A$156:$FR$198,ES$1)","v":22},{"$f":"VLOOKUP(DropDownList!$B$47,CntyQryCensus!$A$156:$FR$198,ET$1)","v":140},{"$f":"VLOOKUP(DropDownList!$B$47,CntyQryCensus!$A$156:$FR$198,EU$1)","v":20},{"$f":"VLOOKUP(DropDownList!$B$47,CntyQryCensus!$A$156:$FR$198,EV$1)","v":49},{"$f":"VLOOKUP(DropDownList!$B$47,CntyQryCensus!$A$156:$FR$198,EW$1)","v":53},{"$f":"VLOOKUP(DropDownList!$B$47,CntyQryCensus!$A$156:$FR$198,EX$1)","v":18},{"$f":"VLOOKUP(DropDownList!$B$47,CntyQryCensus!$A$156:$FR$198,EY$1)","v":3459},{"$f":"VLOOKUP(DropDownList!$B$47,CntyQryCensus!$A$156:$FR$198,EZ$1)","v":46},{"$f":"VLOOKUP(DropDownList!$B$47,CntyQryCensus!$A$156:$FR$198,FA$1)","v":150},{"$f":"VLOOKUP(DropDownList!$B$47,CntyQryCensus!$A$156:$FR$198,FB$1)","v":668},{"$f":"VLOOKUP(DropDownList!$B$47,CntyQryCensus!$A$156:$FR$198,FC$1)","v":156},{"$f":"VLOOKUP(DropDownList!$B$47,CntyQryCensus!$A$156:$FR$198,FD$1)","v":517},{"$f":"VLOOKUP(DropDownList!$B$47,CntyQryCensus!$A$156:$FR$198,FE$1)","v":126},{"$f":"VLOOKUP(DropDownList!$B$47,CntyQryCensus!$A$156:$FR$198,FF$1)","v":138},{"$f":"VLOOKUP(DropDownList!$B$47,CntyQryCensus!$A$156:$FR$198,FG$1)","v":244},{"$f":"VLOOKUP(DropDownList!$B$47,CntyQryCensus!$A$156:$FR$198,FH$1)","v":363},{"$f":"VLOOKUP(DropDownList!$B$47,CntyQryCensus!$A$156:$FR$198,FI$1)","v":696},{"$f":"VLOOKUP(DropDownList!$B$47,CntyQryCensus!$A$156:$FR$198,FJ$1)","v":193},{"$f":"VLOOKUP(DropDownList!$B$47,CntyQryCensus!$A$156:$FR$198,FK$1)","v":60},{"$f":"VLOOKUP(DropDownList!$B$47,CntyQryCensus!$A$156:$FR$198,FL$1)","v":102},{"$f":"VLOOKUP(DropDownList!$B$47,CntyQryCensus!$A$156:$FR$198,FM$1)","v":1670},{"$f":"VLOOKUP(DropDownList!$B$47,CntyQryCensus!$A$156:$FR$198,FN$1)","v":297},{"$f":"VLOOKUP(DropDownList!$B$47,CntyQryCensus!$A$156:$FR$198,FO$1)","v":856},{"$f":"VLOOKUP(DropDownList!$B$47,CntyQryCensus!$A$156:$FR$198,FP$1)","v":22},{"$f":"VLOOKUP(DropDownList!$B$47,CntyQryCensus!$A$156:$FR$198,FQ$1)","v":172},{"$f":"VLOOKUP(DropDownList!$B$47,CntyQryCensus!$A$156:$FR$198,FR$1)","v":442}]
[]
[]
["Census 2000 SummaryFile3 Sample Data  -  SF3TownQry2aIncomeChar"]
["NAME","LOGRECNO","COUNTY","TotalPop","P52Households1","P52HHInc<10K","P52HHInc10to15K","P52HHInc15to20K","P52HHInc20to25K","P52HHInc25to30K","P52HHInc30to35K","P52HHInc35to40K","P52HHInc40to45K","P52HHInc45to50K","P52HHInc50to60K","P52HHInc60to75K","P52HHInc75to100K","P52HHInc100to125K","P52HHInc125to150K","P52HHInc150to200K","P52HHInc>200K","P53MedianHHInc","P54AggregHHInc","P55Households2","P55HHUnder25yrs","P55HH<25HHInc<10K","P55HH<25HHInc10to15K","P55HH<25HHInc15to20K","P55HH<25HHInc20to25K","P55HH<25HHInc25to30K","P55HH<25HHInc30to35K","P55HH<25HHInc35to40K","P55HH<25HHInc40to45K","P55HH<25HHInc45to50K","P55HH<25HHInc50to60K","P55HH<25HHInc60to75K","P55HH<25HHInc75to100K","P55HH<25HHInc100to125K","P55HH<25HHInc125to150K","P55HH<25HHInc150to200K","P55HH<25HHInc>200K","P55HH25to34yrs","P55HH25to34HHInc<10K","P55HH25to34HHInc10to15K","P55HH25to34HHInc15to20K","P55HH25to34HHInc20to25K","P55HH25to34HHInc25to30K","P55HH25to34HHInc30to35K","P55HH25to34HHInc35to40K","P55HH25to34HHInc40to45K","P55HH25to34HHInc45to50K","P55HH25to34HHInc50to60K","P55HH25to34HHInc60to75K","P55HH25to34HHInc75to100K","P55HH25to34HHInc100to125K","P55HH25to34HHInc125to150K","P55HH25to34HHInc150to200K","P55HH25to34HHInc>200K","P55HH35to44yrs","P55HH35to44HHInc<10K","P55HH35to44HHInc10to15K","P55HH35to44HHInc15to20K","P55HH35to44HHInc20to25K","P55HH35to44HHInc25to30K","P55HH35to44HHInc30to35K","P55HH35to44HHInc35to40K","P55HH35to44HHInc40to45K","P55HH35to44HHInc45to50K","P55HH35to44HHInc50to60K","P55HH35to44HHInc60to75K","P55HH35to44HHInc75to100K","P55HH35to44HHInc100to125K","P55HH35to44HHInc125to150K","P55HH35to44HHInc150to200K","P55HH35to44HHInc>200K","P55HH45to54yrs","P55HH45to55HHInc<10K","P55HH45to55HHInc10to15K","P55HH45to55HHInc15to20K","P55HH45to55HHInc20to25K","P55HH45to55HHInc25to30K","P55HH45to55HHInc30to35K","P55HH45to55HHInc35to40K","P55HH45to55HHInc40to45K","P55HH45to55HHInc45to50K","P55HH45to55HHInc50to60K","P55HH45to55HHInc60to75K","P55HH45to55HHInc75to100K","P55HH45to55HHInc100to125K","P55HH45to55HHInc125to150K","P55HH45to55HHInc150to200K","P55HH45to55HHInc>200K","P55HH55to64yrs","P55HH55to64HHInc<10K","P55HH55to64HHInc10to15K","P55HH55to64HHInc15to20K","P55HH55to64HHInc20to25K","P55HH55to64HHInc25to30K","P55HH55to64HHInc30to35K","P55HH55to64HHInc35to40K","P55HH55to64HHInc40to45K","P55HH55to64HHInc45to50K","P55HH55to64HHInc50to60K","P55HH55to64HHInc60to75K","P55HH55to64HHInc75to100K","P55HH55to64HHInc100to125K","P55HH55to64HHInc125to150K","P55HH55to64HHInc150to200K","P55HH55to64HHInc>200K","P55HH65to74yrs","P55HH65to74HHInc<10K","P55HH65to74HHInc10to15K","P55HH65to74HHInc15to20K","P55HH65to74HHInc20to25K","P55HH65to74HHInc25to30K","P55HH65to74HHInc30to35K","P55HH65to74HHInc35to40K","P55HH65to74HHInc40to45K","P55HH65to74HHInc45to50K","P55HH65to74HHInc50to60K","P55HH65to74HHInc60to75K","P55HH65to74HHInc75to100K","P55HH65to74HHInc100to125K","P55HH65to74HHInc125to150K","P55HH65to74HHInc150to200K","P55HH65to74HHInc>200K","P55HH>75yrs","P55HH>75HHInc<10K","P55HH>75HHInc10to15K","P55HH>75HHInc15to20K","P55HH>75HHInc20to25K","P55HH>75HHInc25to30K","P55HH>75HHInc30to35K","P55HH>75HHInc35to40K","P55HH>75HHInc40to45K","P55HH>75HHInc45to50K","P55HH>75HHInc50to60K","P55HH>75HHInc60to75K","P55HH>75HHInc75to100K","P55HH>75HHInc100to125K","P55HH>75HHInc125to150K","P55HH>75HHInc150to200K","P55HH>75HHInc>200K","P56MedHHInc","P56MedHHIncHH<25y","P56MedHHIncHH25to34y","P56MedHHIncHH35to44y","P56MedHHIncHH45to54y","P56MedHHIncHH55to64y","P56MedHHIncHH65to74y","P56MedHHIncHH>75y","P58Households3","P58HHwithEarnings","P58HHNoEarnings","P59HHwWageSalInc","P59HHNoWageSalInc","P60HHwSelfEmpInc","P60HHNoSelfEmpInc","P61HHwIndDivInc","P61HHNoIndDivInc","P62HHwSocSecInc","P62HHNoSocSecInc","P63HHwSSI","P63HHNoSSI","P64HHwPubAssInc","P64HHNoPubAssInc","P65HHwRetInc","P65HHNoRetInc","P66HHwOtherTypInc","P66HHNoOtherTypInc","P67AggregEarnings","P68AggregWageSalInc","P69AggregSelfEmpInc","P70AggregIntDivInc","P71AggregSocSecInc","P72AggregSSIInc","P73AggregPublicAssInc","P74AggregRetireInc","P76Families1","P76FamInc<10K","P76FamInc10to15K","P76FamInc15to20K","P76FamInc20to25K","P76FamInc25to30K","P76FamInc30to35K","P76FamInc35to40K","P76FamInc40to45K","P76FamInc45to50K","P76FamInc50to60K","P76FamInc60to75K","P76FamInc75to100K","P76FamInc100to125K","P76FamInc125to150K","P76FamInc150to200K","P76FamInc>200K","P77MedFamInc","P78AggregFamInc","P79NonFamHH","P79NonFamHHwInc<10K","P79NonFamHHwInc10to15K","P79NonFamHHwInc15to20K","P79NonFamHHwInc20to25K","P79NonFamHHwInc25to30K","P79NonFamHHwInc30to35K","P79NonFamHHwInc35to40K","P79NonFamHHwInc40to45K","P79NonFamHHwInc45to50K","P79NonFamHHwInc50to60K","P79NonFamHHwInc60to75K","P79NonFamHHwInc75to100K","P79NonFamHHwInc100to125K","P79NonFamHHwInc125to150K","P79NonFamHHwInc150to200K","P79NonFamHHwInc200KorMore","P80MedNonFamInc","P82PerCapitaInc"]
[{"$f":"VLOOKUP(DropDownList!$B$47,CntyQryCensus!$A$206:$HH$248,A$1)","v":"Atkinson"},{"$f":"VLOOKUP(DropDownList!$B$47,CntyQryCensus!$A$206:$HH$248,B$1)","v":"0003039"},{"$f":"VLOOKUP(DropDownList!$B$47,CntyQryCensus!$A$206:$HH$248,C$1)","v":"02340"},{"$f":"VLOOKUP(DropDownList!$B$47,CntyQryCensus!$A$206:$HH$248,D$1)","v":6178},{"$f":"VLOOKUP(DropDownList!$B$47,CntyQryCensus!$A$206:$HH$248,E$1)","v":2326},{"$f":"VLOOKUP(DropDownList!$B$47,CntyQryCensus!$A$206:$HH$248,F$1)","v":80},{"$f":"VLOOKUP(DropDownList!$B$47,CntyQryCensus!$A$206:$HH$248,G$1)","v":77},{"$f":"VLOOKUP(DropDownList!$B$47,CntyQryCensus!$A$206:$HH$248,H$1)","v":42},{"$f":"VLOOKUP(DropDownList!$B$47,CntyQryCensus!$A$206:$HH$248,I$1)","v":91},{"$f":"VLOOKUP(DropDownList!$B$47,CntyQryCensus!$A$206:$HH$248,J$1)","v":46},{"$f":"VLOOKUP(DropDownList!$B$47,CntyQryCensus!$A$206:$HH$248,K$1)","v":74},{"$f":"VLOOKUP(DropDownList!$B$47,CntyQryCensus!$A$206:$HH$248,L$1)","v":85},{"$f":"VLOOKUP(DropDownList!$B$47,CntyQryCensus!$A$206:$HH$248,M$1)","v":169},{"$f":"VLOOKUP(DropDownList!$B$47,CntyQryCensus!$A$206:$HH$248,N$1)","v":94},{"$f":"VLOOKUP(DropDownList!$B$47,CntyQryCensus!$A$206:$HH$248,O$1)","v":212},{"$f":"VLOOKUP(DropDownList!$B$47,CntyQryCensus!$A$206:$HH$248,P$1)","v":273},{"$f":"VLOOKUP(DropDownList!$B$47,CntyQryCensus!$A$206:$HH$248,Q$1)","v":405},{"$f":"VLOOKUP(DropDownList!$B$47,CntyQryCensus!$A$206:$HH$248,R$1)","v":267},{"$f":"VLOOKUP(DropDownList!$B$47,CntyQryCensus!$A$206:$HH$248,S$1)","v":182},{"$f":"VLOOKUP(DropDownList!$B$47,CntyQryCensus!$A$206:$HH$248,T$1)","v":111},{"$f":"VLOOKUP(DropDownList!$B$47,CntyQryCensus!$A$206:$HH$248,U$1)","v":118},{"$f":"VLOOKUP(DropDownList!$B$47,CntyQryCensus!$A$206:$HH$248,V$1)","v":69729},{"$f":"VLOOKUP(DropDownList!$B$47,CntyQryCensus!$A$206:$HH$248,W$1)","v":186834100},{"$f":"VLOOKUP(DropDownList!$B$47,CntyQryCensus!$A$206:$HH$248,X$1)","v":2326},{"$f":"VLOOKUP(DropDownList!$B$47,CntyQryCensus!$A$206:$HH$248,Y$1)","v":9},{"$f":"VLOOKUP(DropDownList!$B$47,CntyQryCensus!$A$206:$HH$248,Z$1)","v":0},{"$f":"VLOOKUP(DropDownList!$B$47,CntyQryCensus!$A$206:$HH$248,AA$1)","v":0},{"$f":"VLOOKUP(DropDownList!$B$47,CntyQryCensus!$A$206:$HH$248,AB$1)","v":0},{"$f":"VLOOKUP(DropDownList!$B$47,CntyQryCensus!$A$206:$HH$248,AC$1)","v":0},{"$f":"VLOOKUP(DropDownList!$B$47,CntyQryCensus!$A$206:$HH$248,AD$1)","v":0},{"$f":"VLOOKUP(DropDownList!$B$47,CntyQryCensus!$A$206:$HH$248,AE$1)","v":0},{"$f":"VLOOKUP(DropDownList!$B$47,CntyQryCensus!$A$206:$HH$248,AF$1)","v":0},{"$f":"VLOOKUP(DropDownList!$B$47,CntyQryCensus!$A$206:$HH$248,AG$1)","v":0},{"$f":"VLOOKUP(DropDownList!$B$47,CntyQryCensus!$A$206:$HH$248,AH$1)","v":9},{"$f":"VLOOKUP(DropDownList!$B$47,CntyQryCensus!$A$206:$HH$248,AI$1)","v":0},{"$f":"VLOOKUP(DropDownList!$B$47,CntyQryCensus!$A$206:$HH$248,AJ$1)","v":0},{"$f":"VLOOKUP(DropDownList!$B$47,CntyQryCensus!$A$206:$HH$248,AK$1)","v":0},{"$f":"VLOOKUP(DropDownList!$B$47,CntyQryCensus!$A$206:$HH$248,AL$1)","v":0},{"$f":"VLOOKUP(DropDownList!$B$47,CntyQryCensus!$A$206:$HH$248,AM$1)","v":0},{"$f":"VLOOKUP(DropDownList!$B$47,CntyQryCensus!$A$206:$HH$248,AN$1)","v":0},{"$f":"VLOOKUP(DropDownList!$B$47,CntyQryCensus!$A$206:$HH$248,AO$1)","v":0},{"$f":"VLOOKUP(DropDownList!$B$47,CntyQryCensus!$A$206:$HH$248,AP$1)","v":212},{"$f":"VLOOKUP(DropDownList!$B$47,CntyQryCensus!$A$206:$HH$248,AQ$1)","v":8},{"$f":"VLOOKUP(DropDownList!$B$47,CntyQryCensus!$A$206:$HH$248,AR$1)","v":9},{"$f":"VLOOKUP(DropDownList!$B$47,CntyQryCensus!$A$206:$HH$248,AS$1)","v":0},{"$f":"VLOOKUP(DropDownList!$B$47,CntyQryCensus!$A$206:$HH$248,AT$1)","v":0},{"$f":"VLOOKUP(DropDownList!$B$47,CntyQryCensus!$A$206:$HH$248,AU$1)","v":0},{"$f":"VLOOKUP(DropDownList!$B$47,CntyQryCensus!$A$206:$HH$248,AV$1)","v":0},{"$f":"VLOOKUP(DropDownList!$B$47,CntyQryCensus!$A$206:$HH$248,AW$1)","v":9},{"$f":"VLOOKUP(DropDownList!$B$47,CntyQryCensus!$A$206:$HH$248,AX$1)","v":10},{"$f":"VLOOKUP(DropDownList!$B$47,CntyQryCensus!$A$206:$HH$248,AY$1)","v":0},{"$f":"VLOOKUP(DropDownList!$B$47,CntyQryCensus!$A$206:$HH$248,AZ$1)","v":34},{"$f":"VLOOKUP(DropDownList!$B$47,CntyQryCensus!$A$206:$HH$248,BA$1)","v":72},{"$f":"VLOOKUP(DropDownList!$B$47,CntyQryCensus!$A$206:$HH$248,BB$1)","v":36},{"$f":"VLOOKUP(DropDownList!$B$47,CntyQryCensus!$A$206:$HH$248,BC$1)","v":16},{"$f":"VLOOKUP(DropDownList!$B$47,CntyQryCensus!$A$206:$HH$248,BD$1)","v":0},{"$f":"VLOOKUP(DropDownList!$B$47,CntyQryCensus!$A$206:$HH$248,BE$1)","v":18},{"$f":"VLOOKUP(DropDownList!$B$47,CntyQryCensus!$A$206:$HH$248,BF$1)","v":0},{"$f":"VLOOKUP(DropDownList!$B$47,CntyQryCensus!$A$206:$HH$248,BG$1)","v":608},{"$f":"VLOOKUP(DropDownList!$B$47,CntyQryCensus!$A$206:$HH$248,BH$1)","v":16},{"$f":"VLOOKUP(DropDownList!$B$47,CntyQryCensus!$A$206:$HH$248,BI$1)","v":7},{"$f":"VLOOKUP(DropDownList!$B$47,CntyQryCensus!$A$206:$HH$248,BJ$1)","v":0},{"$f":"VLOOKUP(DropDownList!$B$47,CntyQryCensus!$A$206:$HH$248,BK$1)","v":0},{"$f":"VLOOKUP(DropDownList!$B$47,CntyQryCensus!$A$206:$HH$248,BL$1)","v":25},{"$f":"VLOOKUP(DropDownList!$B$47,CntyQryCensus!$A$206:$HH$248,BM$1)","v":18},{"$f":"VLOOKUP(DropDownList!$B$47,CntyQryCensus!$A$206:$HH$248,BN$1)","v":8},{"$f":"VLOOKUP(DropDownList!$B$47,CntyQryCensus!$A$206:$HH$248,BO$1)","v":51},{"$f":"VLOOKUP(DropDownList!$B$47,CntyQryCensus!$A$206:$HH$248,BP$1)","v":28},{"$f":"VLOOKUP(DropDownList!$B$47,CntyQryCensus!$A$206:$HH$248,BQ$1)","v":29},{"$f":"VLOOKUP(DropDownList!$B$47,CntyQryCensus!$A$206:$HH$248,BR$1)","v":92},{"$f":"VLOOKUP(DropDownList!$B$47,CntyQryCensus!$A$206:$HH$248,BS$1)","v":99},{"$f":"VLOOKUP(DropDownList!$B$47,CntyQryCensus!$A$206:$HH$248,BT$1)","v":89},{"$f":"VLOOKUP(DropDownList!$B$47,CntyQryCensus!$A$206:$HH$248,BU$1)","v":64},{"$f":"VLOOKUP(DropDownList!$B$47,CntyQryCensus!$A$206:$HH$248,BV$1)","v":60},{"$f":"VLOOKUP(DropDownList!$B$47,CntyQryCensus!$A$206:$HH$248,BW$1)","v":22},{"$f":"VLOOKUP(DropDownList!$B$47,CntyQryCensus!$A$206:$HH$248,BX$1)","v":616},{"$f":"VLOOKUP(DropDownList!$B$47,CntyQryCensus!$A$206:$HH$248,BY$1)","v":12},{"$f":"VLOOKUP(DropDownList!$B$47,CntyQryCensus!$A$206:$HH$248,BZ$1)","v":22},{"$f":"VLOOKUP(DropDownList!$B$47,CntyQryCensus!$A$206:$HH$248,CA$1)","v":24},{"$f":"VLOOKUP(DropDownList!$B$47,CntyQryCensus!$A$206:$HH$248,CB$1)","v":23},{"$f":"VLOOKUP(DropDownList!$B$47,CntyQryCensus!$A$206:$HH$248,CC$1)","v":12},{"$f":"VLOOKUP(DropDownList!$B$47,CntyQryCensus!$A$206:$HH$248,CD$1)","v":9},{"$f":"VLOOKUP(DropDownList!$B$47,CntyQryCensus!$A$206:$HH$248,CE$1)","v":33},{"$f":"VLOOKUP(DropDownList!$B$47,CntyQryCensus!$A$206:$HH$248,CF$1)","v":25},{"$f":"VLOOKUP(DropDownList!$B$47,CntyQryCensus!$A$206:$HH$248,CG$1)","v":7},{"$f":"VLOOKUP(DropDownList!$B$47,CntyQryCensus!$A$206:$HH$248,CH$1)","v":11},{"$f":"VLOOKUP(DropDownList!$B$47,CntyQryCensus!$A$206:$HH$248,CI$1)","v":24},{"$f":"VLOOKUP(DropDownList!$B$47,CntyQryCensus!$A$206:$HH$248,CJ$1)","v":148},{"$f":"VLOOKUP(DropDownList!$B$47,CntyQryCensus!$A$206:$HH$248,CK$1)","v":111},{"$f":"VLOOKUP(DropDownList!$B$47,CntyQryCensus!$A$206:$HH$248,CL$1)","v":59},{"$f":"VLOOKUP(DropDownList!$B$47,CntyQryCensus!$A$206:$HH$248,CM$1)","v":17},{"$f":"VLOOKUP(DropDownList!$B$47,CntyQryCensus!$A$206:$HH$248,CN$1)","v":79},{"$f":"VLOOKUP(DropDownList!$B$47,CntyQryCensus!$A$206:$HH$248,CO$1)","v":438},{"$f":"VLOOKUP(DropDownList!$B$47,CntyQryCensus!$A$206:$HH$248,CP$1)","v":9},{"$f":"VLOOKUP(DropDownList!$B$47,CntyQryCensus!$A$206:$HH$248,CQ$1)","v":5},{"$f":"VLOOKUP(DropDownList!$B$47,CntyQryCensus!$A$206:$HH$248,CR$1)","v":9},{"$f":"VLOOKUP(DropDownList!$B$47,CntyQryCensus!$A$206:$HH$248,CS$1)","v":17},{"$f":"VLOOKUP(DropDownList!$B$47,CntyQryCensus!$A$206:$HH$248,CT$1)","v":0},{"$f":"VLOOKUP(DropDownList!$B$47,CntyQryCensus!$A$206:$HH$248,CU$1)","v":0},{"$f":"VLOOKUP(DropDownList!$B$47,CntyQryCensus!$A$206:$HH$248,CV$1)","v":26},{"$f":"VLOOKUP(DropDownList!$B$47,CntyQryCensus!$A$206:$HH$248,CW$1)","v":25},{"$f":"VLOOKUP(DropDownList!$B$47,CntyQryCensus!$A$206:$HH$248,CX$1)","v":25},{"$f":"VLOOKUP(DropDownList!$B$47,CntyQryCensus!$A$206:$HH$248,CY$1)","v":71},{"$f":"VLOOKUP(DropDownList!$B$47,CntyQryCensus!$A$206:$HH$248,CZ$1)","v":58},{"$f":"VLOOKUP(DropDownList!$B$47,CntyQryCensus!$A$206:$HH$248,DA$1)","v":91},{"$f":"VLOOKUP(DropDownList!$B$47,CntyQryCensus!$A$206:$HH$248,DB$1)","v":28},{"$f":"VLOOKUP(DropDownList!$B$47,CntyQryCensus!$A$206:$HH$248,DC$1)","v":51},{"$f":"VLOOKUP(DropDownList!$B$47,CntyQryCensus!$A$206:$HH$248,DD$1)","v":8},{"$f":"VLOOKUP(DropDownList!$B$47,CntyQryCensus!$A$206:$HH$248,DE$1)","v":15},{"$f":"VLOOKUP(DropDownList!$B$47,CntyQryCensus!$A$206:$HH$248,DF$1)","v":301},{"$f":"VLOOKUP(DropDownList!$B$47,CntyQryCensus!$A$206:$HH$248,DG$1)","v":17},{"$f":"VLOOKUP(DropDownList!$B$47,CntyQryCensus!$A$206:$HH$248,DH$1)","v":18},{"$f":"VLOOKUP(DropDownList!$B$47,CntyQryCensus!$A$206:$HH$248,DI$1)","v":9},{"$f":"VLOOKUP(DropDownList!$B$47,CntyQryCensus!$A$206:$HH$248,DJ$1)","v":35},{"$f":"VLOOKUP(DropDownList!$B$47,CntyQryCensus!$A$206:$HH$248,DK$1)","v":9},{"$f":"VLOOKUP(DropDownList!$B$47,CntyQryCensus!$A$206:$HH$248,DL$1)","v":32},{"$f":"VLOOKUP(DropDownList!$B$47,CntyQryCensus!$A$206:$HH$248,DM$1)","v":9},{"$f":"VLOOKUP(DropDownList!$B$47,CntyQryCensus!$A$206:$HH$248,DN$1)","v":33},{"$f":"VLOOKUP(DropDownList!$B$47,CntyQryCensus!$A$206:$HH$248,DO$1)","v":18},{"$f":"VLOOKUP(DropDownList!$B$47,CntyQryCensus!$A$206:$HH$248,DP$1)","v":39},{"$f":"VLOOKUP(DropDownList!$B$47,CntyQryCensus!$A$206:$HH$248,DQ$1)","v":27},{"$f":"VLOOKUP(DropDownList!$B$47,CntyQryCensus!$A$206:$HH$248,DR$1)","v":22},{"$f":"VLOOKUP(DropDownList!$B$47,CntyQryCensus!$A$206:$HH$248,DS$1)","v":23},{"$f":"VLOOKUP(DropDownList!$B$47,CntyQryCensus!$A$206:$HH$248,DT$1)","v":8},{"$f":"VLOOKUP(DropDownList!$B$47,CntyQryCensus!$A$206:$HH$248,DU$1)","v":0},{"$f":"VLOOKUP(DropDownList!$B$47,CntyQryCensus!$A$206:$HH$248,DV$1)","v":2},{"$f":"VLOOKUP(DropDownList!$B$47,CntyQryCensus!$A$206:$HH$248,DW$1)","v":142},{"$f":"VLOOKUP(DropDownList!$B$47,CntyQryCensus!$A$206:$HH$248,DX$1)","v":18},{"$f":"VLOOKUP(DropDownList!$B$47,CntyQryCensus!$A$206:$HH$248,DY$1)","v":16},{"$f":"VLOOKUP(DropDownList!$B$47,CntyQryCensus!$A$206:$HH$248,DZ$1)","v":0},{"$f":"VLOOKUP(DropDownList!$B$47,CntyQryCensus!$A$206:$HH$248,EA$1)","v":16},{"$f":"VLOOKUP(DropDownList!$B$47,CntyQryCensus!$A$206:$HH$248,EB$1)","v":0},{"$f":"VLOOKUP(DropDownList!$B$47,CntyQryCensus!$A$206:$HH$248,EC$1)","v":15},{"$f":"VLOOKUP(DropDownList!$B$47,CntyQryCensus!$A$206:$HH$248,ED$1)","v":0},{"$f":"VLOOKUP(DropDownList!$B$47,CntyQryCensus!$A$206:$HH$248,EE$1)","v":25},{"$f":"VLOOKUP(DropDownList!$B$47,CntyQryCensus!$A$206:$HH$248,EF$1)","v":7},{"$f":"VLOOKUP(DropDownList!$B$47,CntyQryCensus!$A$206:$HH$248,EG$1)","v":28},{"$f":"VLOOKUP(DropDownList!$B$47,CntyQryCensus!$A$206:$HH$248,EH$1)","v":0},{"$f":"VLOOKUP(DropDownList!$B$47,CntyQryCensus!$A$206:$HH$248,EI$1)","v":9},{"$f":"VLOOKUP(DropDownList!$B$47,CntyQryCensus!$A$206:$HH$248,EJ$1)","v":0},{"$f":"VLOOKUP(DropDownList!$B$47,CntyQryCensus!$A$206:$HH$248,EK$1)","v":0},{"$f":"VLOOKUP(DropDownList!$B$47,CntyQryCensus!$A$206:$HH$248,EL$1)","v":8},{"$f":"VLOOKUP(DropDownList!$B$47,CntyQryCensus!$A$206:$HH$248,EM$1)","v":0},{"$f":"VLOOKUP(DropDownList!$B$47,CntyQryCensus!$A$206:$HH$248,EN$1)","v":69729},{"$f":"VLOOKUP(DropDownList!$B$47,CntyQryCensus!$A$206:$HH$248,EO$1)","v":48750},{"$f":"VLOOKUP(DropDownList!$B$47,CntyQryCensus!$A$206:$HH$248,EP$1)","v":67586},{"$f":"VLOOKUP(DropDownList!$B$47,CntyQryCensus!$A$206:$HH$248,EQ$1)","v":80000},{"$f":"VLOOKUP(DropDownList!$B$47,CntyQryCensus!$A$206:$HH$248,ER$1)","v":84035},{"$f":"VLOOKUP(DropDownList!$B$47,CntyQryCensus!$A$206:$HH$248,ES$1)","v":66563},{"$f":"VLOOKUP(DropDownList!$B$47,CntyQryCensus!$A$206:$HH$248,ET$1)","v":42946},{"$f":"VLOOKUP(DropDownList!$B$47,CntyQryCensus!$A$206:$HH$248,EU$1)","v":41250},{"$f":"VLOOKUP(DropDownList!$B$47,CntyQryCensus!$A$206:$HH$248,EV$1)","v":2326},{"$f":"VLOOKUP(DropDownList!$B$47,CntyQryCensus!$A$206:$HH$248,EW$1)","v":2037},{"$f":"VLOOKUP(DropDownList!$B$47,CntyQryCensus!$A$206:$HH$248,EX$1)","v":289},{"$f":"VLOOKUP(DropDownList!$B$47,CntyQryCensus!$A$206:$HH$248,EY$1)","v":2000},{"$f":"VLOOKUP(DropDownList!$B$47,CntyQryCensus!$A$206:$HH$248,EZ$1)","v":326},{"$f":"VLOOKUP(DropDownList!$B$47,CntyQryCensus!$A$206:$HH$248,FA$1)","v":356},{"$f":"VLOOKUP(DropDownList!$B$47,CntyQryCensus!$A$206:$HH$248,FB$1)","v":1970},{"$f":"VLOOKUP(DropDownList!$B$47,CntyQryCensus!$A$206:$HH$248,FC$1)","v":1231},{"$f":"VLOOKUP(DropDownList!$B$47,CntyQryCensus!$A$206:$HH$248,FD$1)","v":1095},{"$f":"VLOOKUP(DropDownList!$B$47,CntyQryCensus!$A$206:$HH$248,FE$1)","v":589},{"$f":"VLOOKUP(DropDownList!$B$47,CntyQryCensus!$A$206:$HH$248,FF$1)","v":1737},{"$f":"VLOOKUP(DropDownList!$B$47,CntyQryCensus!$A$206:$HH$248,FG$1)","v":61},{"$f":"VLOOKUP(DropDownList!$B$47,CntyQryCensus!$A$206:$HH$248,FH$1)","v":2265},{"$f":"VLOOKUP(DropDownList!$B$47,CntyQryCensus!$A$206:$HH$248,FI$1)","v":33},{"$f":"VLOOKUP(DropDownList!$B$47,CntyQryCensus!$A$206:$HH$248,FJ$1)","v":2293},{"$f":"VLOOKUP(DropDownList!$B$47,CntyQryCensus!$A$206:$HH$248,FK$1)","v":476},{"$f":"VLOOKUP(DropDownList!$B$47,CntyQryCensus!$A$206:$HH$248,FL$1)","v":1850},{"$f":"VLOOKUP(DropDownList!$B$47,CntyQryCensus!$A$206:$HH$248,FM$1)","v":244},{"$f":"VLOOKUP(DropDownList!$B$47,CntyQryCensus!$A$206:$HH$248,FN$1)","v":2082},{"$f":"VLOOKUP(DropDownList!$B$47,CntyQryCensus!$A$206:$HH$248,FO$1)","v":158909200},{"$f":"VLOOKUP(DropDownList!$B$47,CntyQryCensus!$A$206:$HH$248,FP$1)","v":149002200},{"$f":"VLOOKUP(DropDownList!$B$47,CntyQryCensus!$A$206:$HH$248,FQ$1)","v":9907000},{"$f":"VLOOKUP(DropDownList!$B$47,CntyQryCensus!$A$206:$HH$248,FR$1)","v":11253600},{"$f":"VLOOKUP(DropDownList!$B$47,CntyQryCensus!$A$206:$HH$248,FS$1)","v":6617000},{"$f":"VLOOKUP(DropDownList!$B$47,CntyQryCensus!$A$206:$HH$248,FT$1)","v":428800},{"$f":"VLOOKUP(DropDownList!$B$47,CntyQryCensus!$A$206:$HH$248,FU$1)","v":29900},{"$f":"VLOOKUP(DropDownList!$B$47,CntyQryCensus!$A$206:$HH$248,FV$1)","v":8026100},{"$f":"VLOOKUP(DropDownList!$B$47,CntyQryCensus!$A$206:$HH$248,FW$1)","v":1781},{"$f":"VLOOKUP(DropDownList!$B$47,CntyQryCensus!$A$206:$HH$248,FX$1)","v":24},{"$f":"VLOOKUP(DropDownList!$B$47,CntyQryCensus!$A$206:$HH$248,FY$1)","v":25},{"$f":"VLOOKUP(DropDownList!$B$47,CntyQryCensus!$A$206:$HH$248,FZ$1)","v":0},{"$f":"VLOOKUP(DropDownList!$B$47,CntyQryCensus!$A$206:$HH$248,GA$1)","v":8},{"$f":"VLOOKUP(DropDownList!$B$47,CntyQryCensus!$A$206:$HH$248,GB$1)","v":26},{"$f":"VLOOKUP(DropDownList!$B$47,CntyQryCensus!$A$206:$HH$248,GC$1)","v":64},{"$f":"VLOOKUP(DropDownList!$B$47,CntyQryCensus!$A$206:$HH$248,GD$1)","v":58},{"$f":"VLOOKUP(DropDownList!$B$47,CntyQryCensus!$A$206:$HH$248,GE$1)","v":118},{"$f":"VLOOKUP(DropDownList!$B$47,CntyQryCensus!$A$206:$HH$248,GF$1)","v":74},{"$f":"VLOOKUP(DropDownList!$B$47,CntyQryCensus!$A$206:$HH$248,GG$1)","v":188},{"$f":"VLOOKUP(DropDownList!$B$47,CntyQryCensus!$A$206:$HH$248,GH$1)","v":249},{"$f":"VLOOKUP(DropDownList!$B$47,CntyQryCensus!$A$206:$HH$248,GI$1)","v":337},{"$f":"VLOOKUP(DropDownList!$B$47,CntyQryCensus!$A$206:$HH$248,GJ$1)","v":243},{"$f":"VLOOKUP(DropDownList!$B$47,CntyQryCensus!$A$206:$HH$248,GK$1)","v":163},{"$f":"VLOOKUP(DropDownList!$B$47,CntyQryCensus!$A$206:$HH$248,GL$1)","v":101},{"$f":"VLOOKUP(DropDownList!$B$47,CntyQryCensus!$A$206:$HH$248,GM$1)","v":103},{"$f":"VLOOKUP(DropDownList!$B$47,CntyQryCensus!$A$206:$HH$248,GN$1)","v":77631},{"$f":"VLOOKUP(DropDownList!$B$47,CntyQryCensus!$A$206:$HH$248,GO$1)","v":159092300},{"$f":"VLOOKUP(DropDownList!$B$47,CntyQryCensus!$A$206:$HH$248,GP$1)","v":545},{"$f":"VLOOKUP(DropDownList!$B$47,CntyQryCensus!$A$206:$HH$248,GQ$1)","v":56},{"$f":"VLOOKUP(DropDownList!$B$47,CntyQryCensus!$A$206:$HH$248,GR$1)","v":52},{"$f":"VLOOKUP(DropDownList!$B$47,CntyQryCensus!$A$206:$HH$248,GS$1)","v":42},{"$f":"VLOOKUP(DropDownList!$B$47,CntyQryCensus!$A$206:$HH$248,GT$1)","v":83},{"$f":"VLOOKUP(DropDownList!$B$47,CntyQryCensus!$A$206:$HH$248,GU$1)","v":29},{"$f":"VLOOKUP(DropDownList!$B$47,CntyQryCensus!$A$206:$HH$248,GV$1)","v":17},{"$f":"VLOOKUP(DropDownList!$B$47,CntyQryCensus!$A$206:$HH$248,GW$1)","v":27},{"$f":"VLOOKUP(DropDownList!$B$47,CntyQryCensus!$A$206:$HH$248,GX$1)","v":68},{"$f":"VLOOKUP(DropDownList!$B$47,CntyQryCensus!$A$206:$HH$248,GY$1)","v":19},{"$f":"VLOOKUP(DropDownList!$B$47,CntyQryCensus!$A$206:$HH$248,GZ$1)","v":24},{"$f":"VLOOKUP(DropDownList!$B$47,CntyQryCensus!$A$206:$HH$248,HA$1)","v":20},{"$f":"VLOOKUP(DropDownList!$B$47,CntyQryCensus!$A$206:$HH$248,HB$1)","v":40},{"$f":"VLOOKUP(DropDownList!$B$47,CntyQryCensus!$A$206:$HH$248,HC$1)","v":24},{"$f":"VLOOKUP(DropDownList!$B$47,CntyQryCensus!$A$206:$HH$248,HD$1)","v":19},{"$f":"VLOOKUP(DropDownList!$B$47,CntyQryCensus!$A$206:$HH$248,HE$1)","v":10},{"$f":"VLOOKUP(DropDownList!$B$47,CntyQryCensus!$A$206:$HH$248,HF$1)","v":15},{"$f":"VLOOKUP(DropDownList!$B$47,CntyQryCensus!$A$206:$HH$248,HG$1)","v":34044},{"$f":"VLOOKUP(DropDownList!$B$47,CntyQryCensus!$A$206:$HH$248,HH$1)","v":30412}]
[]
[]
["Census 2000 SummaryFile3 Sample Data  -  SF3TownQry2bPovertyChar"]
["NAME","LOGRECNO","COUNTY","TotalPop","P52Households1","P82PerCapitaInc","P87PopForPovStatus","P87PopWIncBelowPovStatus","P87PopUnder5yrBelowPoverty","P87Pop5yrBelowPoverty","P87Pop5to11yrBelowPoverty","P87Pop12to17yrBelowPoverty","P87Pop18to64yrBelowPoverty","P87Pop65to74yrBelowPoverty","P87PopOver75yrBelowPoverty","P87PopWIncAbovePovStatus","P87PopUnder5yrAbovePoverty","P87Pop5yrAbovePoverty","P87Pop5to11yrAbovePoverty","P87Pop12to17yrAbovePoverty","P87Pop18to64yrAbovePoverty","P87Pop65to74yrAbovePoverty","P87PopOver75yrAbovePoverty","P90Families","P90FamWIncBelowPov","P90MarCupFamWIncBelowPov","P90MCFamWRltdChld<18WIncBelowPov","P90MCFamWRltdChld<5WIncBelowPov","P90MaleHhlrWIncBelowPov","P90MaleHhlrWRltdChld<18yrWIncBelowPov","P90MaleHhlrWRltdChld<5yrWIncBelowPov","P90FemaleHhlrWIncBelowPov","P90FemaleHhlrWRltdChld<18yWIncBelowPov","P90FemaleHhlrWRltdChld<5yWIncBelowPov","P90FamWIncAbovePov","P90MarCupFamWIncAbovePov","P90MCFamWRltdChld<18WIncAbovePov","P90MCFamWRltdChld<5WIncAbovePov","P90MaleHhlrWIncAbovePov","P90MaleHhlrWRltdChld<18yrWIncAbovePov","P90MaleHhlrWRltdChld<5yrWIncAbovePov","P90FemaleHhlrWIncAbovePov","P90FemaleHhlrWRltdChld<18yWIncAbovePov","P90FemaleHhlrWRltdChld<5yWIncAbovePov","P92Households","P92HHwIncBelowPov","P92FamHHwIncBelowPov","P92MCFamHHwIncBelowPov","P92MaleFamHHwIncBelowPov","P92FemaleFamHHwIncBelowPov","P92NonFamHHwIncBelowPov","P92NonFamMaleHHwIncBelowPov","P92NonFamFemaleHHwIncBelowPov","P92HHwIncAbovePov","P92FamHHwIncAbovePov","P92MCFamHHwIncAbovePov","P92MaleFamHHwIncAbovePov","P92FemaleFamHHwIncAbovePov","P92NonFamHHwIncAbovePov","P92NonFamMaleHHwIncAbovePov","P92NonFamFemaleHHwIncAbovePov"]
[{"$f":"VLOOKUP(DropDownList!$B$47,CntyQryCensus!$A$256:$BI$298,A$1)","v":"Atkinson"},{"$f":"VLOOKUP(DropDownList!$B$47,CntyQryCensus!$A$256:$BI$298,B$1)","v":"0003039"},{"$f":"VLOOKUP(DropDownList!$B$47,CntyQryCensus!$A$256:$BI$298,C$1)","v":"02340"},{"$f":"VLOOKUP(DropDownList!$B$47,CntyQryCensus!$A$256:$BI$298,D$1)","v":6178},{"$f":"VLOOKUP(DropDownList!$B$47,CntyQryCensus!$A$256:$BI$298,E$1)","v":2326},{"$f":"VLOOKUP(DropDownList!$B$47,CntyQryCensus!$A$256:$BI$298,F$1)","v":30412},{"$f":"VLOOKUP(DropDownList!$B$47,CntyQryCensus!$A$256:$BI$298,G$1)","v":6178},{"$f":"VLOOKUP(DropDownList!$B$47,CntyQryCensus!$A$256:$BI$298,H$1)","v":202},{"$f":"VLOOKUP(DropDownList!$B$47,CntyQryCensus!$A$256:$BI$298,I$1)","v":16},{"$f":"VLOOKUP(DropDownList!$B$47,CntyQryCensus!$A$256:$BI$298,J$1)","v":0},{"$f":"VLOOKUP(DropDownList!$B$47,CntyQryCensus!$A$256:$BI$298,K$1)","v":35},{"$f":"VLOOKUP(DropDownList!$B$47,CntyQryCensus!$A$256:$BI$298,L$1)","v":18},{"$f":"VLOOKUP(DropDownList!$B$47,CntyQryCensus!$A$256:$BI$298,M$1)","v":118},{"$f":"VLOOKUP(DropDownList!$B$47,CntyQryCensus!$A$256:$BI$298,N$1)","v":9},{"$f":"VLOOKUP(DropDownList!$B$47,CntyQryCensus!$A$256:$BI$298,O$1)","v":6},{"$f":"VLOOKUP(DropDownList!$B$47,CntyQryCensus!$A$256:$BI$298,P$1)","v":5976},{"$f":"VLOOKUP(DropDownList!$B$47,CntyQryCensus!$A$256:$BI$298,Q$1)","v":395},{"$f":"VLOOKUP(DropDownList!$B$47,CntyQryCensus!$A$256:$BI$298,R$1)","v":35},{"$f":"VLOOKUP(DropDownList!$B$47,CntyQryCensus!$A$256:$BI$298,S$1)","v":544},{"$f":"VLOOKUP(DropDownList!$B$47,CntyQryCensus!$A$256:$BI$298,T$1)","v":477},{"$f":"VLOOKUP(DropDownList!$B$47,CntyQryCensus!$A$256:$BI$298,U$1)","v":3843},{"$f":"VLOOKUP(DropDownList!$B$47,CntyQryCensus!$A$256:$BI$298,V$1)","v":437},{"$f":"VLOOKUP(DropDownList!$B$47,CntyQryCensus!$A$256:$BI$298,W$1)","v":245},{"$f":"VLOOKUP(DropDownList!$B$47,CntyQryCensus!$A$256:$BI$298,X$1)","v":1781},{"$f":"VLOOKUP(DropDownList!$B$47,CntyQryCensus!$A$256:$BI$298,Y$1)","v":41},{"$f":"VLOOKUP(DropDownList!$B$47,CntyQryCensus!$A$256:$BI$298,Z$1)","v":18},{"$f":"VLOOKUP(DropDownList!$B$47,CntyQryCensus!$A$256:$BI$298,AA$1)","v":18},{"$f":"VLOOKUP(DropDownList!$B$47,CntyQryCensus!$A$256:$BI$298,AB$1)","v":8},{"$f":"VLOOKUP(DropDownList!$B$47,CntyQryCensus!$A$256:$BI$298,AC$1)","v":0},{"$f":"VLOOKUP(DropDownList!$B$47,CntyQryCensus!$A$256:$BI$298,AD$1)","v":0},{"$f":"VLOOKUP(DropDownList!$B$47,CntyQryCensus!$A$256:$BI$298,AE$1)","v":0},{"$f":"VLOOKUP(DropDownList!$B$47,CntyQryCensus!$A$256:$BI$298,AF$1)","v":23},{"$f":"VLOOKUP(DropDownList!$B$47,CntyQryCensus!$A$256:$BI$298,AG$1)","v":16},{"$f":"VLOOKUP(DropDownList!$B$47,CntyQryCensus!$A$256:$BI$298,AH$1)","v":0},{"$f":"VLOOKUP(DropDownList!$B$47,CntyQryCensus!$A$256:$BI$298,AI$1)","v":1740},{"$f":"VLOOKUP(DropDownList!$B$47,CntyQryCensus!$A$256:$BI$298,AJ$1)","v":1532},{"$f":"VLOOKUP(DropDownList!$B$47,CntyQryCensus!$A$256:$BI$298,AK$1)","v":709},{"$f":"VLOOKUP(DropDownList!$B$47,CntyQryCensus!$A$256:$BI$298,AL$1)","v":150},{"$f":"VLOOKUP(DropDownList!$B$47,CntyQryCensus!$A$256:$BI$298,AM$1)","v":91},{"$f":"VLOOKUP(DropDownList!$B$47,CntyQryCensus!$A$256:$BI$298,AN$1)","v":49},{"$f":"VLOOKUP(DropDownList!$B$47,CntyQryCensus!$A$256:$BI$298,AO$1)","v":21},{"$f":"VLOOKUP(DropDownList!$B$47,CntyQryCensus!$A$256:$BI$298,AP$1)","v":117},{"$f":"VLOOKUP(DropDownList!$B$47,CntyQryCensus!$A$256:$BI$298,AQ$1)","v":45},{"$f":"VLOOKUP(DropDownList!$B$47,CntyQryCensus!$A$256:$BI$298,AR$1)","v":3},{"$f":"VLOOKUP(DropDownList!$B$47,CntyQryCensus!$A$256:$BI$298,AS$1)","v":2326},{"$f":"VLOOKUP(DropDownList!$B$47,CntyQryCensus!$A$256:$BI$298,AT$1)","v":76},{"$f":"VLOOKUP(DropDownList!$B$47,CntyQryCensus!$A$256:$BI$298,AU$1)","v":41},{"$f":"VLOOKUP(DropDownList!$B$47,CntyQryCensus!$A$256:$BI$298,AV$1)","v":18},{"$f":"VLOOKUP(DropDownList!$B$47,CntyQryCensus!$A$256:$BI$298,AW$1)","v":0},{"$f":"VLOOKUP(DropDownList!$B$47,CntyQryCensus!$A$256:$BI$298,AX$1)","v":23},{"$f":"VLOOKUP(DropDownList!$B$47,CntyQryCensus!$A$256:$BI$298,AY$1)","v":35},{"$f":"VLOOKUP(DropDownList!$B$47,CntyQryCensus!$A$256:$BI$298,AZ$1)","v":0},{"$f":"VLOOKUP(DropDownList!$B$47,CntyQryCensus!$A$256:$BI$298,BA$1)","v":35},{"$f":"VLOOKUP(DropDownList!$B$47,CntyQryCensus!$A$256:$BI$298,BB$1)","v":2250},{"$f":"VLOOKUP(DropDownList!$B$47,CntyQryCensus!$A$256:$BI$298,BC$1)","v":1740},{"$f":"VLOOKUP(DropDownList!$B$47,CntyQryCensus!$A$256:$BI$298,BD$1)","v":1532},{"$f":"VLOOKUP(DropDownList!$B$47,CntyQryCensus!$A$256:$BI$298,BE$1)","v":91},{"$f":"VLOOKUP(DropDownList!$B$47,CntyQryCensus!$A$256:$BI$298,BF$1)","v":117},{"$f":"VLOOKUP(DropDownList!$B$47,CntyQryCensus!$A$256:$BI$298,BG$1)","v":510},{"$f":"VLOOKUP(DropDownList!$B$47,CntyQryCensus!$A$256:$BI$298,BH$1)","v":275},{"$f":"VLOOKUP(DropDownList!$B$47,CntyQryCensus!$A$256:$BI$298,BI$1)","v":235}]
[null,null,null,null,null,null,null,null,null,null,null,null,null,null,null,null,null,null,{"$f":"SUM(R60:T60)","v":1056}]
[]
["Census 2000 SummaryFile3 Sample Data  -  SF3TownQry7HousingA"]
["NAME","LOGRECNO","COUNTY","TotalPop","H1HousingUnitsTotal","H2SampleHU","H2SampleOccHU","H2SampleVacHU","H3HU100pctCount","H5HUTotal","H5HUUrban","H5HUUrbanInUrbanAreas","H5HUUrbanInUrbanClusters","H5HURural","H5HURuralFarm","H5HURuralNonFarm","H7HUOcc","H7HUOwnrOcc","H7HURentrOcc","H8HUVacant","H8HUVacantForRent","H8HUVacantForSale","H8HUVacRentedorSold","H8HUVacSeasonal","H8HUVacForMigrantWrkrs","H8HUOtherVacant","H14OccHUa","H14OwnerOccHU","H14OwnOccHuHh15to24","H14OwnOccHuHh25to34","H14OwnOccHuHh35to44","H14OwnOccHuHh45to54","H14OwnOccHuHh55to59","H14OwnOccHuHh60to64","H14OwnOccHuHh65to74","H14OwnOccHuHh75to84","H14OwnOccHuHh85Over","H14RenterOccHU1","H14RntrOccHuHh15to24","H14RntrOccHuHh25to34","H14RntrOccHuHh35to44","H14RntrOccHuHh45to54","H14RntrOccHuHh55to59","H14RntrOccHuHh60to64","H14RntrOccHuHh65to74","H14RntrOccHuHh75to84","H14RntrOccHuHh85Over","H15PopInOccHU","H15PopInOwnOccHU1","H15PopInRentOccHU1","H17OccupHUb","H17OwnOccHU2","H17OwnOccHU1PersonHH","H17OwnOccHU2PersonHH","H17OwnOccHU3PersonHH","H17OwnOccHU4PersonHH","H17OwnOccHU5PersonHH","H17OwnOccHU6PersonHH","H17OwnOccHU7PlusPersonHH","H17RentOccHU2","H17RntOccHU1PersonHH","H17RntOccHU2PersonHH","H17RntOccHU3PersonHH","H17RntOccHU4PersonHH","H17RntOccHU5PersonHH","H17RntOccHU6PersonHH","H17RntOccHU7PlusPersonHH","H18AvgHHSize","H18AvgHHSizeOwnOcc","H18AvgHHSizeRentOcc","H23TotHU","H23HU1Room","H23HU2Room","H23HU3Room","H23HU4Room","H23HU5Room","H23HU6Room","H23HU7Room","H23HU8Room","H23HU9orMoreRoom","H24MedianNumRooms","H25AggregNumRooms","H30TotalHU","H30Det1HU","H30Att1HU","H30Units2","H30Units3or4","H30Units5to9","H30Units10to19","H30Units20to49","H30Units50orMore","H30UnitsMobileHome","H30UnitsBoatRv","H32OccHUcTotal","H32OwnerOccHU3","H32OwnOccHU1Det","H32OwnOccHU1Att","H32OwnOccHU2Unit","H32OwnOccHU3to4Unit","H32OwnOccHU5to9Unit","H32OwnOccHU10to19Unit","H32OwnOccHU20to49Unit","H32OwnOccHU50plusUnit","H32OwnOccHUMobHom","H32OwnOccHUBoatRVOth","H32RentrOccHU3","H32RntrOccHU1Det","H32RntrOccHU1Att","H32RntrOccHU2Unit","H32RntrOccHU3to4Unit","H32RntrOccHU5to9Unit","H32RntrOccHU10to19Unit","H32RntrOccHU20to49Unit","H32RntrOccHU50PlusUnit","H32RntrOccHUMobHom","H32RntrOccHUBoatRVOth","H33TotPopInOccHU","H33PopInOwnOccHU2","H33PopInOOHU1Det","H33PopInOOHU1Att","H33PopInOOHU2unit","H33PopInOOHU3to4Unit","H33PopInOOHU5to9Unit","H33PopInOOHU10to19Unit","H33PopInOOHU20to49Unit","H33PopInOOHU50PlusUnit","H33PopInOOHUMobilHome","H33PopInOOHUOtherUnit","H33PopInRentOccHU2","H33PopInROHU1Det","H33PopInROHU1Att","H33PopInROHU2Unit","H33PopInROHU3to4Unit","H33PopInROHU5to9Unit","H33PopInROHU10to19Unit","H33PopInROHU20to49Unit","H33PopInROHU50PlusUnit","H33PopInROHUMobilHome","H33PopInROHUOtherUnit","H36OccHousingUnitsdTotal","H36OwnerOccHU4","H36OOHUBuilt99to0300","H36OOHUBuilt95to98","H36OOHUBuilt90to94","H36OOHUBuilt80to89","H36OOHUBuilt70to79","H36OOHUBuilt60to69","H36OOHUBuilt50to59","H36OOHUBuilt40to49","H36OOHUBuilt39Earlier","H36RentOccHU4","H36ROHUBuilt99to0300","H36ROHUBuilt95to98","H36ROHUBuilt90to94","H36ROHUBuilt80to89","H36ROHUBuilt70to79","H36ROHUBuilt60to69","H36ROHUBuilt50to59","H36ROHUBuilt40to49","H36ROHUBuilt39Earlier","H40OccupHousUnitse","H40HeatFuelUtilGas","H40HeatFuelBotGas","H40HeatFuelElect","H40HeatFuelOilKero","H40HeatFuelCoal","H40HeatFuelWood","H40HeatFuelSolar","H40HeatFuelOther","H40HeatFuelNone","H41TotalHU","H41HUNoBdrm","H41HU1Bdrm","H41HU2Bdrm","H41HU3Bdrm","H41HU4Bdrm","H41HU5MoreBdrm","H42OccuHousUnitf","H42OwnerOccHU5","H42OOHUNoBdrm","H42OOHU1Bdrm","H42OOHU2Bdrm","H42OOHU3Bdrm","H42OOHU4Bdrm","H42OOHU5PlusBdrm","H42RentOccHU5","H42ROHUNoBdrm","H42ROHU1Bdrm","H42ROHU2Bdrm","H42ROHU3Bdrm","H42ROHU4Bdrm","H42ROHU5PlusBdrm","H48OccupHousUnitsg","H48OwnerOccHU6","H48OOHUwCompltPlumFacil","H48OOHULackCompltPlumFacil","H48RentOccHU6","H48ROHUwCompltPlumFacil","H48ROHULackCompltPlumFacil","H51OccupHousUnitf","H51OwnerOccHU7","H51OOHUwCompleteKitFacil","H51OOHULackCompleteKitFacil","H51RenterOccHU7","H51ROHUwCompleteKitFacil","H51ROHULackCompleteKitFacil"]
[{"$f":"VLOOKUP(DropDownList!$B47,CntyQryCensus!$A$306:$GX$348,A$1)","v":"Atkinson"},{"$f":"VLOOKUP(DropDownList!$B47,CntyQryCensus!$A$306:$GX$348,B$1)","v":"0003039"},{"$f":"VLOOKUP(DropDownList!$B47,CntyQryCensus!$A$306:$GX$348,C$1)","v":"02340"},{"$f":"VLOOKUP(DropDownList!$B47,CntyQryCensus!$A$306:$GX$348,D$1)","v":6178},{"$f":"VLOOKUP(DropDownList!$B47,CntyQryCensus!$A$306:$GX$348,E$1)","v":2431},{"$f":"VLOOKUP(DropDownList!$B47,CntyQryCensus!$A$306:$GX$348,F$1)","v":280},{"$f":"VLOOKUP(DropDownList!$B47,CntyQryCensus!$A$306:$GX$348,G$1)","v":272},{"$f":"VLOOKUP(DropDownList!$B47,CntyQryCensus!$A$306:$GX$348,H$1)","v":8},{"$f":"VLOOKUP(DropDownList!$B47,CntyQryCensus!$A$306:$GX$348,I$1)","v":2431},{"$f":"VLOOKUP(DropDownList!$B47,CntyQryCensus!$A$306:$GX$348,J$1)","v":2431},{"$f":"VLOOKUP(DropDownList!$B47,CntyQryCensus!$A$306:$GX$348,K$1)","v":2431},{"$f":"VLOOKUP(DropDownList!$B47,CntyQryCensus!$A$306:$GX$348,L$1)","v":2431},{"$f":"VLOOKUP(DropDownList!$B47,CntyQryCensus!$A$306:$GX$348,M$1)","v":0},{"$f":"VLOOKUP(DropDownList!$B47,CntyQryCensus!$A$306:$GX$348,N$1)","v":0},{"$f":"VLOOKUP(DropDownList!$B47,CntyQryCensus!$A$306:$GX$348,O$1)","v":0},{"$f":"VLOOKUP(DropDownList!$B47,CntyQryCensus!$A$306:$GX$348,P$1)","v":0},{"$f":"VLOOKUP(DropDownList!$B47,CntyQryCensus!$A$306:$GX$348,Q$1)","v":2317},{"$f":"VLOOKUP(DropDownList!$B47,CntyQryCensus!$A$306:$GX$348,R$1)","v":2060},{"$f":"VLOOKUP(DropDownList!$B47,CntyQryCensus!$A$306:$GX$348,S$1)","v":257},{"$f":"VLOOKUP(DropDownList!$B47,CntyQryCensus!$A$306:$GX$348,T$1)","v":114},{"$f":"VLOOKUP(DropDownList!$B47,CntyQryCensus!$A$306:$GX$348,U$1)","v":0},{"$f":"VLOOKUP(DropDownList!$B47,CntyQryCensus!$A$306:$GX$348,V$1)","v":8},{"$f":"VLOOKUP(DropDownList!$B47,CntyQryCensus!$A$306:$GX$348,W$1)","v":24},{"$f":"VLOOKUP(DropDownList!$B47,CntyQryCensus!$A$306:$GX$348,X$1)","v":75},{"$f":"VLOOKUP(DropDownList!$B47,CntyQryCensus!$A$306:$GX$348,Y$1)","v":0},{"$f":"VLOOKUP(DropDownList!$B47,CntyQryCensus!$A$306:$GX$348,Z$1)","v":7},{"$f":"VLOOKUP(DropDownList!$B47,CntyQryCensus!$A$306:$GX$348,AA$1)","v":2317},{"$f":"VLOOKUP(DropDownList!$B47,CntyQryCensus!$A$306:$GX$348,AB$1)","v":2060},{"$f":"VLOOKUP(DropDownList!$B47,CntyQryCensus!$A$306:$GX$348,AC$1)","v":0},{"$f":"VLOOKUP(DropDownList!$B47,CntyQryCensus!$A$306:$GX$348,AD$1)","v":178},{"$f":"VLOOKUP(DropDownList!$B47,CntyQryCensus!$A$306:$GX$348,AE$1)","v":596},{"$f":"VLOOKUP(DropDownList!$B47,CntyQryCensus!$A$306:$GX$348,AF$1)","v":471},{"$f":"VLOOKUP(DropDownList!$B47,CntyQryCensus!$A$306:$GX$348,AG$1)","v":251},{"$f":"VLOOKUP(DropDownList!$B47,CntyQryCensus!$A$306:$GX$348,AH$1)","v":168},{"$f":"VLOOKUP(DropDownList!$B47,CntyQryCensus!$A$306:$GX$348,AI$1)","v":269},{"$f":"VLOOKUP(DropDownList!$B47,CntyQryCensus!$A$306:$GX$348,AJ$1)","v":96},{"$f":"VLOOKUP(DropDownList!$B47,CntyQryCensus!$A$306:$GX$348,AK$1)","v":31},{"$f":"VLOOKUP(DropDownList!$B47,CntyQryCensus!$A$306:$GX$348,AL$1)","v":257},{"$f":"VLOOKUP(DropDownList!$B47,CntyQryCensus!$A$306:$GX$348,AM$1)","v":8},{"$f":"VLOOKUP(DropDownList!$B47,CntyQryCensus!$A$306:$GX$348,AN$1)","v":15},{"$f":"VLOOKUP(DropDownList!$B47,CntyQryCensus!$A$306:$GX$348,AO$1)","v":47},{"$f":"VLOOKUP(DropDownList!$B47,CntyQryCensus!$A$306:$GX$348,AP$1)","v":65},{"$f":"VLOOKUP(DropDownList!$B47,CntyQryCensus!$A$306:$GX$348,AQ$1)","v":34},{"$f":"VLOOKUP(DropDownList!$B47,CntyQryCensus!$A$306:$GX$348,AR$1)","v":9},{"$f":"VLOOKUP(DropDownList!$B47,CntyQryCensus!$A$306:$GX$348,AS$1)","v":59},{"$f":"VLOOKUP(DropDownList!$B47,CntyQryCensus!$A$306:$GX$348,AT$1)","v":0},{"$f":"VLOOKUP(DropDownList!$B47,CntyQryCensus!$A$306:$GX$348,AU$1)","v":20},{"$f":"VLOOKUP(DropDownList!$B47,CntyQryCensus!$A$306:$GX$348,AV$1)","v":6174},{"$f":"VLOOKUP(DropDownList!$B47,CntyQryCensus!$A$306:$GX$348,AW$1)","v":5741},{"$f":"VLOOKUP(DropDownList!$B47,CntyQryCensus!$A$306:$GX$348,AX$1)","v":433},{"$f":"VLOOKUP(DropDownList!$B47,CntyQryCensus!$A$306:$GX$348,AY$1)","v":2317},{"$f":"VLOOKUP(DropDownList!$B47,CntyQryCensus!$A$306:$GX$348,AZ$1)","v":2060},{"$f":"VLOOKUP(DropDownList!$B47,CntyQryCensus!$A$306:$GX$348,BA$1)","v":275},{"$f":"VLOOKUP(DropDownList!$B47,CntyQryCensus!$A$306:$GX$348,BB$1)","v":778},{"$f":"VLOOKUP(DropDownList!$B47,CntyQryCensus!$A$306:$GX$348,BC$1)","v":391},{"$f":"VLOOKUP(DropDownList!$B47,CntyQryCensus!$A$306:$GX$348,BD$1)","v":392},{"$f":"VLOOKUP(DropDownList!$B47,CntyQryCensus!$A$306:$GX$348,BE$1)","v":169},{"$f":"VLOOKUP(DropDownList!$B47,CntyQryCensus!$A$306:$GX$348,BF$1)","v":47},{"$f":"VLOOKUP(DropDownList!$B47,CntyQryCensus!$A$306:$GX$348,BG$1)","v":8},{"$f":"VLOOKUP(DropDownList!$B47,CntyQryCensus!$A$306:$GX$348,BH$1)","v":257},{"$f":"VLOOKUP(DropDownList!$B47,CntyQryCensus!$A$306:$GX$348,BI$1)","v":165},{"$f":"VLOOKUP(DropDownList!$B47,CntyQryCensus!$A$306:$GX$348,BJ$1)","v":60},{"$f":"VLOOKUP(DropDownList!$B47,CntyQryCensus!$A$306:$GX$348,BK$1)","v":25},{"$f":"VLOOKUP(DropDownList!$B47,CntyQryCensus!$A$306:$GX$348,BL$1)","v":0},{"$f":"VLOOKUP(DropDownList!$B47,CntyQryCensus!$A$306:$GX$348,BM$1)","v":0},{"$f":"VLOOKUP(DropDownList!$B47,CntyQryCensus!$A$306:$GX$348,BN$1)","v":7},{"$f":"VLOOKUP(DropDownList!$B47,CntyQryCensus!$A$306:$GX$348,BO$1)","v":0},{"$f":"VLOOKUP(DropDownList!$B47,CntyQryCensus!$A$306:$GX$348,BP$1)","v":3},{"$f":"VLOOKUP(DropDownList!$B47,CntyQryCensus!$A$306:$GX$348,BQ$1)","v":3},{"$f":"VLOOKUP(DropDownList!$B47,CntyQryCensus!$A$306:$GX$348,BR$1)","v":2},{"$f":"VLOOKUP(DropDownList!$B47,CntyQryCensus!$A$306:$GX$348,BS$1)","v":2431},{"$f":"VLOOKUP(DropDownList!$B47,CntyQryCensus!$A$306:$GX$348,BT$1)","v":0},{"$f":"VLOOKUP(DropDownList!$B47,CntyQryCensus!$A$306:$GX$348,BU$1)","v":105},{"$f":"VLOOKUP(DropDownList!$B47,CntyQryCensus!$A$306:$GX$348,BV$1)","v":36},{"$f":"VLOOKUP(DropDownList!$B47,CntyQryCensus!$A$306:$GX$348,BW$1)","v":131},{"$f":"VLOOKUP(DropDownList!$B47,CntyQryCensus!$A$306:$GX$348,BX$1)","v":409},{"$f":"VLOOKUP(DropDownList!$B47,CntyQryCensus!$A$306:$GX$348,BY$1)","v":559},{"$f":"VLOOKUP(DropDownList!$B47,CntyQryCensus!$A$306:$GX$348,BZ$1)","v":457},{"$f":"VLOOKUP(DropDownList!$B47,CntyQryCensus!$A$306:$GX$348,CA$1)","v":358},{"$f":"VLOOKUP(DropDownList!$B47,CntyQryCensus!$A$306:$GX$348,CB$1)","v":376},{"$f":"VLOOKUP(DropDownList!$B47,CntyQryCensus!$A$306:$GX$348,CC$1)","v":6},{"$f":"VLOOKUP(DropDownList!$B47,CntyQryCensus!$A$306:$GX$348,CD$1)","v":16064},{"$f":"VLOOKUP(DropDownList!$B47,CntyQryCensus!$A$306:$GX$348,CE$1)","v":2431},{"$f":"VLOOKUP(DropDownList!$B47,CntyQryCensus!$A$306:$GX$348,CF$1)","v":1826},{"$f":"VLOOKUP(DropDownList!$B47,CntyQryCensus!$A$306:$GX$348,CG$1)","v":322},{"$f":"VLOOKUP(DropDownList!$B47,CntyQryCensus!$A$306:$GX$348,CH$1)","v":81},{"$f":"VLOOKUP(DropDownList!$B47,CntyQryCensus!$A$306:$GX$348,CI$1)","v":61},{"$f":"VLOOKUP(DropDownList!$B47,CntyQryCensus!$A$306:$GX$348,CJ$1)","v":0},{"$f":"VLOOKUP(DropDownList!$B47,CntyQryCensus!$A$306:$GX$348,CK$1)","v":125},{"$f":"VLOOKUP(DropDownList!$B47,CntyQryCensus!$A$306:$GX$348,CL$1)","v":6},{"$f":"VLOOKUP(DropDownList!$B47,CntyQryCensus!$A$306:$GX$348,CM$1)","v":0},{"$f":"VLOOKUP(DropDownList!$B47,CntyQryCensus!$A$306:$GX$348,CN$1)","v":10},{"$f":"VLOOKUP(DropDownList!$B47,CntyQryCensus!$A$306:$GX$348,CO$1)","v":0},{"$f":"VLOOKUP(DropDownList!$B47,CntyQryCensus!$A$306:$GX$348,CP$1)","v":2317},{"$f":"VLOOKUP(DropDownList!$B47,CntyQryCensus!$A$306:$GX$348,CQ$1)","v":2060},{"$f":"VLOOKUP(DropDownList!$B47,CntyQryCensus!$A$306:$GX$348,CR$1)","v":1669},{"$f":"VLOOKUP(DropDownList!$B47,CntyQryCensus!$A$306:$GX$348,CS$1)","v":266},{"$f":"VLOOKUP(DropDownList!$B47,CntyQryCensus!$A$306:$GX$348,CT$1)","v":53},{"$f":"VLOOKUP(DropDownList!$B47,CntyQryCensus!$A$306:$GX$348,CU$1)","v":56},{"$f":"VLOOKUP(DropDownList!$B47,CntyQryCensus!$A$306:$GX$348,CV$1)","v":0},{"$f":"VLOOKUP(DropDownList!$B47,CntyQryCensus!$A$306:$GX$348,CW$1)","v":0},{"$f":"VLOOKUP(DropDownList!$B47,CntyQryCensus!$A$306:$GX$348,CX$1)","v":6},{"$f":"VLOOKUP(DropDownList!$B47,CntyQryCensus!$A$306:$GX$348,CY$1)","v":0},{"$f":"VLOOKUP(DropDownList!$B47,CntyQryCensus!$A$306:$GX$348,CZ$1)","v":10},{"$f":"VLOOKUP(DropDownList!$B47,CntyQryCensus!$A$306:$GX$348,DA$1)","v":0},{"$f":"VLOOKUP(DropDownList!$B47,CntyQryCensus!$A$306:$GX$348,DB$1)","v":257},{"$f":"VLOOKUP(DropDownList!$B47,CntyQryCensus!$A$306:$GX$348,DC$1)","v":96},{"$f":"VLOOKUP(DropDownList!$B47,CntyQryCensus!$A$306:$GX$348,DD$1)","v":8},{"$f":"VLOOKUP(DropDownList!$B47,CntyQryCensus!$A$306:$GX$348,DE$1)","v":28},{"$f":"VLOOKUP(DropDownList!$B47,CntyQryCensus!$A$306:$GX$348,DF$1)","v":0},{"$f":"VLOOKUP(DropDownList!$B47,CntyQryCensus!$A$306:$GX$348,DG$1)","v":0},{"$f":"VLOOKUP(DropDownList!$B47,CntyQryCensus!$A$306:$GX$348,DH$1)","v":125},{"$f":"VLOOKUP(DropDownList!$B47,CntyQryCensus!$A$306:$GX$348,DI$1)","v":0},{"$f":"VLOOKUP(DropDownList!$B47,CntyQryCensus!$A$306:$GX$348,DJ$1)","v":0},{"$f":"VLOOKUP(DropDownList!$B47,CntyQryCensus!$A$306:$GX$348,DK$1)","v":0},{"$f":"VLOOKUP(DropDownList!$B47,CntyQryCensus!$A$306:$GX$348,DL$1)","v":0},{"$f":"VLOOKUP(DropDownList!$B47,CntyQryCensus!$A$306:$GX$348,DM$1)","v":6174},{"$f":"VLOOKUP(DropDownList!$B47,CntyQryCensus!$A$306:$GX$348,DN$1)","v":5741},{"$f":"VLOOKUP(DropDownList!$B47,CntyQryCensus!$A$306:$GX$348,DO$1)","v":4967},{"$f":"VLOOKUP(DropDownList!$B47,CntyQryCensus!$A$306:$GX$348,DP$1)","v":477},{"$f":"VLOOKUP(DropDownList!$B47,CntyQryCensus!$A$306:$GX$348,DQ$1)","v":117},{"$f":"VLOOKUP(DropDownList!$B47,CntyQryCensus!$A$306:$GX$348,DR$1)","v":159},{"$f":"VLOOKUP(DropDownList!$B47,CntyQryCensus!$A$306:$GX$348,DS$1)","v":0},{"$f":"VLOOKUP(DropDownList!$B47,CntyQryCensus!$A$306:$GX$348,DT$1)","v":0},{"$f":"VLOOKUP(DropDownList!$B47,CntyQryCensus!$A$306:$GX$348,DU$1)","v":12},{"$f":"VLOOKUP(DropDownList!$B47,CntyQryCensus!$A$306:$GX$348,DV$1)","v":0},{"$f":"VLOOKUP(DropDownList!$B47,CntyQryCensus!$A$306:$GX$348,DW$1)","v":9},{"$f":"VLOOKUP(DropDownList!$B47,CntyQryCensus!$A$306:$GX$348,DX$1)","v":0},{"$f":"VLOOKUP(DropDownList!$B47,CntyQryCensus!$A$306:$GX$348,DY$1)","v":433},{"$f":"VLOOKUP(DropDownList!$B47,CntyQryCensus!$A$306:$GX$348,DZ$1)","v":238},{"$f":"VLOOKUP(DropDownList!$B47,CntyQryCensus!$A$306:$GX$348,EA$1)","v":20},{"$f":"VLOOKUP(DropDownList!$B47,CntyQryCensus!$A$306:$GX$348,EB$1)","v":42},{"$f":"VLOOKUP(DropDownList!$B47,CntyQryCensus!$A$306:$GX$348,EC$1)","v":0},{"$f":"VLOOKUP(DropDownList!$B47,CntyQryCensus!$A$306:$GX$348,ED$1)","v":0},{"$f":"VLOOKUP(DropDownList!$B47,CntyQryCensus!$A$306:$GX$348,EE$1)","v":133},{"$f":"VLOOKUP(DropDownList!$B47,CntyQryCensus!$A$306:$GX$348,EF$1)","v":0},{"$f":"VLOOKUP(DropDownList!$B47,CntyQryCensus!$A$306:$GX$348,EG$1)","v":0},{"$f":"VLOOKUP(DropDownList!$B47,CntyQryCensus!$A$306:$GX$348,EH$1)","v":0},{"$f":"VLOOKUP(DropDownList!$B47,CntyQryCensus!$A$306:$GX$348,EI$1)","v":0},{"$f":"VLOOKUP(DropDownList!$B47,CntyQryCensus!$A$306:$GX$348,EJ$1)","v":2317},{"$f":"VLOOKUP(DropDownList!$B47,CntyQryCensus!$A$306:$GX$348,EK$1)","v":2060},{"$f":"VLOOKUP(DropDownList!$B47,CntyQryCensus!$A$306:$GX$348,EL$1)","v":38},{"$f":"VLOOKUP(DropDownList!$B47,CntyQryCensus!$A$306:$GX$348,EM$1)","v":242},{"$f":"VLOOKUP(DropDownList!$B47,CntyQryCensus!$A$306:$GX$348,EN$1)","v":264},{"$f":"VLOOKUP(DropDownList!$B47,CntyQryCensus!$A$306:$GX$348,EO$1)","v":373},{"$f":"VLOOKUP(DropDownList!$B47,CntyQryCensus!$A$306:$GX$348,EP$1)","v":529},{"$f":"VLOOKUP(DropDownList!$B47,CntyQryCensus!$A$306:$GX$348,EQ$1)","v":317},{"$f":"VLOOKUP(DropDownList!$B47,CntyQryCensus!$A$306:$GX$348,ER$1)","v":165},{"$f":"VLOOKUP(DropDownList!$B47,CntyQryCensus!$A$306:$GX$348,ES$1)","v":42},{"$f":"VLOOKUP(DropDownList!$B47,CntyQryCensus!$A$306:$GX$348,ET$1)","v":90},{"$f":"VLOOKUP(DropDownList!$B47,CntyQryCensus!$A$306:$GX$348,EU$1)","v":257},{"$f":"VLOOKUP(DropDownList!$B47,CntyQryCensus!$A$306:$GX$348,EV$1)","v":0},{"$f":"VLOOKUP(DropDownList!$B47,CntyQryCensus!$A$306:$GX$348,EW$1)","v":0},{"$f":"VLOOKUP(DropDownList!$B47,CntyQryCensus!$A$306:$GX$348,EX$1)","v":20},{"$f":"VLOOKUP(DropDownList!$B47,CntyQryCensus!$A$306:$GX$348,EY$1)","v":53},{"$f":"VLOOKUP(DropDownList!$B47,CntyQryCensus!$A$306:$GX$348,EZ$1)","v":61},{"$f":"VLOOKUP(DropDownList!$B47,CntyQryCensus!$A$306:$GX$348,FA$1)","v":38},{"$f":"VLOOKUP(DropDownList!$B47,CntyQryCensus!$A$306:$GX$348,FB$1)","v":40},{"$f":"VLOOKUP(DropDownList!$B47,CntyQryCensus!$A$306:$GX$348,FC$1)","v":18},{"$f":"VLOOKUP(DropDownList!$B47,CntyQryCensus!$A$306:$GX$348,FD$1)","v":27},{"$f":"VLOOKUP(DropDownList!$B47,CntyQryCensus!$A$306:$GX$348,FE$1)","v":2317},{"$f":"VLOOKUP(DropDownList!$B47,CntyQryCensus!$A$306:$GX$348,FF$1)","v":313},{"$f":"VLOOKUP(DropDownList!$B47,CntyQryCensus!$A$306:$GX$348,FG$1)","v":223},{"$f":"VLOOKUP(DropDownList!$B47,CntyQryCensus!$A$306:$GX$348,FH$1)","v":85},{"$f":"VLOOKUP(DropDownList!$B47,CntyQryCensus!$A$306:$GX$348,FI$1)","v":1657},{"$f":"VLOOKUP(DropDownList!$B47,CntyQryCensus!$A$306:$GX$348,FJ$1)","v":7},{"$f":"VLOOKUP(DropDownList!$B47,CntyQryCensus!$A$306:$GX$348,FK$1)","v":32},{"$f":"VLOOKUP(DropDownList!$B47,CntyQryCensus!$A$306:$GX$348,FL$1)","v":0},{"$f":"VLOOKUP(DropDownList!$B47,CntyQryCensus!$A$306:$GX$348,FM$1)","v":0},{"$f":"VLOOKUP(DropDownList!$B47,CntyQryCensus!$A$306:$GX$348,FN$1)","v":0},{"$f":"VLOOKUP(DropDownList!$B47,CntyQryCensus!$A$306:$GX$348,FO$1)","v":2431},{"$f":"VLOOKUP(DropDownList!$B47,CntyQryCensus!$A$306:$GX$348,FP$1)","v":0},{"$f":"VLOOKUP(DropDownList!$B47,CntyQryCensus!$A$306:$GX$348,FQ$1)","v":141},{"$f":"VLOOKUP(DropDownList!$B47,CntyQryCensus!$A$306:$GX$348,FR$1)","v":556},{"$f":"VLOOKUP(DropDownList!$B47,CntyQryCensus!$A$306:$GX$348,FS$1)","v":1189},{"$f":"VLOOKUP(DropDownList!$B47,CntyQryCensus!$A$306:$GX$348,FT$1)","v":475},{"$f":"VLOOKUP(DropDownList!$B47,CntyQryCensus!$A$306:$GX$348,FU$1)","v":70},{"$f":"VLOOKUP(DropDownList!$B47,CntyQryCensus!$A$306:$GX$348,FV$1)","v":2317},{"$f":"VLOOKUP(DropDownList!$B47,CntyQryCensus!$A$306:$GX$348,FW$1)","v":2060},{"$f":"VLOOKUP(DropDownList!$B47,CntyQryCensus!$A$306:$GX$348,FX$1)","v":0},{"$f":"VLOOKUP(DropDownList!$B47,CntyQryCensus!$A$306:$GX$348,FY$1)","v":6},{"$f":"VLOOKUP(DropDownList!$B47,CntyQryCensus!$A$306:$GX$348,FZ$1)","v":443},{"$f":"VLOOKUP(DropDownList!$B47,CntyQryCensus!$A$306:$GX$348,GA$1)","v":1094},{"$f":"VLOOKUP(DropDownList!$B47,CntyQryCensus!$A$306:$GX$348,GB$1)","v":457},{"$f":"VLOOKUP(DropDownList!$B47,CntyQryCensus!$A$306:$GX$348,GC$1)","v":60},{"$f":"VLOOKUP(DropDownList!$B47,CntyQryCensus!$A$306:$GX$348,GD$1)","v":257},{"$f":"VLOOKUP(DropDownList!$B47,CntyQryCensus!$A$306:$GX$348,GE$1)","v":0},{"$f":"VLOOKUP(DropDownList!$B47,CntyQryCensus!$A$306:$GX$348,GF$1)","v":135},{"$f":"VLOOKUP(DropDownList!$B47,CntyQryCensus!$A$306:$GX$348,GG$1)","v":61},{"$f":"VLOOKUP(DropDownList!$B47,CntyQryCensus!$A$306:$GX$348,GH$1)","v":41},{"$f":"VLOOKUP(DropDownList!$B47,CntyQryCensus!$A$306:$GX$348,GI$1)","v":10},{"$f":"VLOOKUP(DropDownList!$B47,CntyQryCensus!$A$306:$GX$348,GJ$1)","v":10},{"$f":"VLOOKUP(DropDownList!$B47,CntyQryCensus!$A$306:$GX$348,GK$1)","v":2317},{"$f":"VLOOKUP(DropDownList!$B47,CntyQryCensus!$A$306:$GX$348,GL$1)","v":2060},{"$f":"VLOOKUP(DropDownList!$B47,CntyQryCensus!$A$306:$GX$348,GM$1)","v":2060},{"$f":"VLOOKUP(DropDownList!$B47,CntyQryCensus!$A$306:$GX$348,GN$1)","v":0},{"$f":"VLOOKUP(DropDownList!$B47,CntyQryCensus!$A$306:$GX$348,GO$1)","v":257},{"$f":"VLOOKUP(DropDownList!$B47,CntyQryCensus!$A$306:$GX$348,GP$1)","v":257},{"$f":"VLOOKUP(DropDownList!$B47,CntyQryCensus!$A$306:$GX$348,GQ$1)","v":0},{"$f":"VLOOKUP(DropDownList!$B47,CntyQryCensus!$A$306:$GX$348,GR$1)","v":2317},{"$f":"VLOOKUP(DropDownList!$B47,CntyQryCensus!$A$306:$GX$348,GS$1)","v":2060},{"$f":"VLOOKUP(DropDownList!$B47,CntyQryCensus!$A$306:$GX$348,GT$1)","v":2060},{"$f":"VLOOKUP(DropDownList!$B47,CntyQryCensus!$A$306:$GX$348,GU$1)","v":0},{"$f":"VLOOKUP(DropDownList!$B47,CntyQryCensus!$A$306:$GX$348,GV$1)","v":257},{"$f":"VLOOKUP(DropDownList!$B47,CntyQryCensus!$A$306:$GX$348,GW$1)","v":257},{"$f":"VLOOKUP(DropDownList!$B47,CntyQryCensus!$A$306:$GX$348,GX$1)","v":0}]
[]
[]
["Census 2000 SummaryFile3 Sample Data  -  SF3TownQry8HousingCostA"]
["NAME","LOGRECNO","COUNTY","TotalPop","H62RntrOccHU","H62RntrOccHUwRent","H62ROHUGRent<100","H62ROHUGRent100to149","H62ROHUGRent150to199","H62ROHUGRent200to249","H62ROHUGRent250to299","H62ROHUGRent300to349","H62ROHUGRent350to399","H62ROHUGRent400to449","H62ROHUGRent450to499","H62ROHUGRent500to549","H62ROHUGRent550to599","H62ROHUGRent600to649","H62ROHUGRent650to699","H62ROHUGRent700to749","H62ROHUGRent750to799","H62ROHUGRent800to899","H62ROHUGRent900to999","H62ROHUGRent1000to1249","H62ROHUGRent1250to1499","H62ROHUGRent1500to1999","H62ROHUGRent2000>","H62ROHUNoGRent","H63MedianGrossRnt","H69RenterOccHsU","H69GRnt<10PctHHInc","H69GRnt10to15PctHHInc","H69GRnt15to20PctHHInc","H69GRnt20to25PctHHInc","H69GRnt25to30PctHHInc","H69GRnt30to35PctHHInc","H69GRnt35to40PctHHInc","H69GRnt40to50PctHHInc","H69GRnt>50PctHHInc","H69GRntPctNotcomputed","H73RenterOccHU","H73ROHUHhInc<10k","H73ROHUHhInc<10kRnt<20pct","H73ROHUHhInc<10kRnt20to25pct","H73ROHUHhInc<10kRnt25to30pct","H73ROHUHhInc<10kRnt30to35pct","H73ROHUHhInc<10kRnt>35pct","H73ROHUHhInc<10kPctNotComput","H73ROHUHhInc10to20k","H73ROHUHhInc10to20kRnt<20pct","H73ROHUHhInc10to20kRnt20to25pct","H73ROHUHhInc10to20kRnt25to30pct","H73ROHUHhInc10to20kRnt30to35pct","H73ROHUHhInc10to20kRnt>35pct","H73ROHUHhInc10to20kRntPctNC","H73ROHUHhInc20to35k","H73ROHUHhInc20to35kRnt<20pct","H73ROHUHhInc20to35kRnt20to25pct","H73ROHUHhInc20to35kRnt25to30pct","H73ROHUHhInc20to35kRnt30to35pct","H73ROHUHhInc20to35kRnt>35pct","H73ROHUHhInc20to35kRntPctNC","H73ROHUHhInc35to40k","H73ROHUHhInc35to40kRnt<20pct","H73ROHUHhInc35to40kRnt20to25pct","H73ROHUHhInc35to40kRnt25to30pct","H73ROHUHhInc35to40kRnt30to35pct","H73ROHUHhInc35to40kRnt>35pct","H73ROHUHhInc35to40kRntPctNC","H73ROHUHhInc50to75k","H73ROHUHhInc50to75kRnt<20pct","H73ROHUHhInc50to75kRnt20to25pct","H73ROHUHhInc50to75kRnt25to30pct","H73ROHUHhInc50to75kRnt30to35pct","H73ROHUHhInc50to75kRnt>35pct","H73ROHUHhInc50to75kRntPctNC","H73ROHUHhInc75to100k","H73ROHUHhInc75to100kRnt<20pct","H73ROHUHhInc75to100kRnt20to25pct","H73ROHUHhInc75to100kRnt25to30pct","H73ROHUHhInc75to100kRnt30to35pct","H73ROHUHhInc75to100kRnt>35pct","H73ROHUHhInc75to100kRntPctNC","H73ROHUHhInc>100k","H73ROHUHhInc>100kRnt<20pct","H73ROHUHhInc>100kRnt20to25pct","H73ROHUHhInc>100kRnt25to30pct","H73ROHUHhInc>100kRnt30to35pct","H73ROHUHhInc>100kRnt>35pct","H73ROHUHhInc>100kRntPctNC","H73ROHUHhInc>100kRntPctNC"]
[{"$f":"VLOOKUP(DropDownList!$B$47,CntyQryCensus!$A$357:$CM$399,A$1)","v":"Atkinson"},{"$f":"VLOOKUP(DropDownList!$B$47,CntyQryCensus!$A$357:$CM$399,B$1)","v":"0003039"},{"$f":"VLOOKUP(DropDownList!$B$47,CntyQryCensus!$A$357:$CM$399,C$1)","v":"02340"},{"$f":"VLOOKUP(DropDownList!$B$47,CntyQryCensus!$A$357:$CM$399,D$1)","v":6178},{"$f":"VLOOKUP(DropDownList!$B$47,CntyQryCensus!$A$357:$CM$399,E$1)","v":238},{"$f":"VLOOKUP(DropDownList!$B$47,CntyQryCensus!$A$357:$CM$399,F$1)","v":222},{"$f":"VLOOKUP(DropDownList!$B$47,CntyQryCensus!$A$357:$CM$399,G$1)","v":0},{"$f":"VLOOKUP(DropDownList!$B$47,CntyQryCensus!$A$357:$CM$399,H$1)","v":10},{"$f":"VLOOKUP(DropDownList!$B$47,CntyQryCensus!$A$357:$CM$399,I$1)","v":0},{"$f":"VLOOKUP(DropDownList!$B$47,CntyQryCensus!$A$357:$CM$399,J$1)","v":0},{"$f":"VLOOKUP(DropDownList!$B$47,CntyQryCensus!$A$357:$CM$399,K$1)","v":0},{"$f":"VLOOKUP(DropDownList!$B$47,CntyQryCensus!$A$357:$CM$399,L$1)","v":0},{"$f":"VLOOKUP(DropDownList!$B$47,CntyQryCensus!$A$357:$CM$399,M$1)","v":0},{"$f":"VLOOKUP(DropDownList!$B$47,CntyQryCensus!$A$357:$CM$399,N$1)","v":27},{"$f":"VLOOKUP(DropDownList!$B$47,CntyQryCensus!$A$357:$CM$399,O$1)","v":65},{"$f":"VLOOKUP(DropDownList!$B$47,CntyQryCensus!$A$357:$CM$399,P$1)","v":50},{"$f":"VLOOKUP(DropDownList!$B$47,CntyQryCensus!$A$357:$CM$399,Q$1)","v":10},{"$f":"VLOOKUP(DropDownList!$B$47,CntyQryCensus!$A$357:$CM$399,R$1)","v":0},{"$f":"VLOOKUP(DropDownList!$B$47,CntyQryCensus!$A$357:$CM$399,S$1)","v":17},{"$f":"VLOOKUP(DropDownList!$B$47,CntyQryCensus!$A$357:$CM$399,T$1)","v":25},{"$f":"VLOOKUP(DropDownList!$B$47,CntyQryCensus!$A$357:$CM$399,U$1)","v":9},{"$f":"VLOOKUP(DropDownList!$B$47,CntyQryCensus!$A$357:$CM$399,V$1)","v":9},{"$f":"VLOOKUP(DropDownList!$B$47,CntyQryCensus!$A$357:$CM$399,W$1)","v":0},{"$f":"VLOOKUP(DropDownList!$B$47,CntyQryCensus!$A$357:$CM$399,X$1)","v":0},{"$f":"VLOOKUP(DropDownList!$B$47,CntyQryCensus!$A$357:$CM$399,Y$1)","v":0},{"$f":"VLOOKUP(DropDownList!$B$47,CntyQryCensus!$A$357:$CM$399,Z$1)","v":0},{"$f":"VLOOKUP(DropDownList!$B$47,CntyQryCensus!$A$357:$CM$399,AA$1)","v":0},{"$f":"VLOOKUP(DropDownList!$B$47,CntyQryCensus!$A$357:$CM$399,AB$1)","v":16},{"$f":"VLOOKUP(DropDownList!$B$47,CntyQryCensus!$A$357:$CM$399,AC$1)","v":509},{"$f":"VLOOKUP(DropDownList!$B$47,CntyQryCensus!$A$357:$CM$399,AD$1)","v":238},{"$f":"VLOOKUP(DropDownList!$B$47,CntyQryCensus!$A$357:$CM$399,AE$1)","v":23},{"$f":"VLOOKUP(DropDownList!$B$47,CntyQryCensus!$A$357:$CM$399,AF$1)","v":10},{"$f":"VLOOKUP(DropDownList!$B$47,CntyQryCensus!$A$357:$CM$399,AG$1)","v":43},{"$f":"VLOOKUP(DropDownList!$B$47,CntyQryCensus!$A$357:$CM$399,AH$1)","v":10},{"$f":"VLOOKUP(DropDownList!$B$47,CntyQryCensus!$A$357:$CM$399,AI$1)","v":30},{"$f":"VLOOKUP(DropDownList!$B$47,CntyQryCensus!$A$357:$CM$399,AJ$1)","v":10},{"$f":"VLOOKUP(DropDownList!$B$47,CntyQryCensus!$A$357:$CM$399,AK$1)","v":29},{"$f":"VLOOKUP(DropDownList!$B$47,CntyQryCensus!$A$357:$CM$399,AL$1)","v":10},{"$f":"VLOOKUP(DropDownList!$B$47,CntyQryCensus!$A$357:$CM$399,AM$1)","v":57},{"$f":"VLOOKUP(DropDownList!$B$47,CntyQryCensus!$A$357:$CM$399,AN$1)","v":16},{"$f":"VLOOKUP(DropDownList!$B$47,CntyQryCensus!$A$357:$CM$399,AO$1)","v":238},{"$f":"VLOOKUP(DropDownList!$B$47,CntyQryCensus!$A$357:$CM$399,AP$1)","v":48},{"$f":"VLOOKUP(DropDownList!$B$47,CntyQryCensus!$A$357:$CM$399,AQ$1)","v":0},{"$f":"VLOOKUP(DropDownList!$B$47,CntyQryCensus!$A$357:$CM$399,AR$1)","v":0},{"$f":"VLOOKUP(DropDownList!$B$47,CntyQryCensus!$A$357:$CM$399,AS$1)","v":0},{"$f":"VLOOKUP(DropDownList!$B$47,CntyQryCensus!$A$357:$CM$399,AT$1)","v":0},{"$f":"VLOOKUP(DropDownList!$B$47,CntyQryCensus!$A$357:$CM$399,AU$1)","v":48},{"$f":"VLOOKUP(DropDownList!$B$47,CntyQryCensus!$A$357:$CM$399,AV$1)","v":0},{"$f":"VLOOKUP(DropDownList!$B$47,CntyQryCensus!$A$357:$CM$399,AW$1)","v":48},{"$f":"VLOOKUP(DropDownList!$B$47,CntyQryCensus!$A$357:$CM$399,AX$1)","v":0},{"$f":"VLOOKUP(DropDownList!$B$47,CntyQryCensus!$A$357:$CM$399,AY$1)","v":0},{"$f":"VLOOKUP(DropDownList!$B$47,CntyQryCensus!$A$357:$CM$399,AZ$1)","v":0},{"$f":"VLOOKUP(DropDownList!$B$47,CntyQryCensus!$A$357:$CM$399,BA$1)","v":0},{"$f":"VLOOKUP(DropDownList!$B$47,CntyQryCensus!$A$357:$CM$399,BB$1)","v":48},{"$f":"VLOOKUP(DropDownList!$B$47,CntyQryCensus!$A$357:$CM$399,BC$1)","v":0},{"$f":"VLOOKUP(DropDownList!$B$47,CntyQryCensus!$A$357:$CM$399,BD$1)","v":67},{"$f":"VLOOKUP(DropDownList!$B$47,CntyQryCensus!$A$357:$CM$399,BE$1)","v":9},{"$f":"VLOOKUP(DropDownList!$B$47,CntyQryCensus!$A$357:$CM$399,BF$1)","v":10},{"$f":"VLOOKUP(DropDownList!$B$47,CntyQryCensus!$A$357:$CM$399,BG$1)","v":30},{"$f":"VLOOKUP(DropDownList!$B$47,CntyQryCensus!$A$357:$CM$399,BH$1)","v":10},{"$f":"VLOOKUP(DropDownList!$B$47,CntyQryCensus!$A$357:$CM$399,BI$1)","v":0},{"$f":"VLOOKUP(DropDownList!$B$47,CntyQryCensus!$A$357:$CM$399,BJ$1)","v":8},{"$f":"VLOOKUP(DropDownList!$B$47,CntyQryCensus!$A$357:$CM$399,BK$1)","v":28},{"$f":"VLOOKUP(DropDownList!$B$47,CntyQryCensus!$A$357:$CM$399,BL$1)","v":28},{"$f":"VLOOKUP(DropDownList!$B$47,CntyQryCensus!$A$357:$CM$399,BM$1)","v":0},{"$f":"VLOOKUP(DropDownList!$B$47,CntyQryCensus!$A$357:$CM$399,BN$1)","v":0},{"$f":"VLOOKUP(DropDownList!$B$47,CntyQryCensus!$A$357:$CM$399,BO$1)","v":0},{"$f":"VLOOKUP(DropDownList!$B$47,CntyQryCensus!$A$357:$CM$399,BP$1)","v":0},{"$f":"VLOOKUP(DropDownList!$B$47,CntyQryCensus!$A$357:$CM$399,BQ$1)","v":0},{"$f":"VLOOKUP(DropDownList!$B$47,CntyQryCensus!$A$357:$CM$399,BR$1)","v":16},{"$f":"VLOOKUP(DropDownList!$B$47,CntyQryCensus!$A$357:$CM$399,BS$1)","v":16},{"$f":"VLOOKUP(DropDownList!$B$47,CntyQryCensus!$A$357:$CM$399,BT$1)","v":0},{"$f":"VLOOKUP(DropDownList!$B$47,CntyQryCensus!$A$357:$CM$399,BU$1)","v":0},{"$f":"VLOOKUP(DropDownList!$B$47,CntyQryCensus!$A$357:$CM$399,BV$1)","v":0},{"$f":"VLOOKUP(DropDownList!$B$47,CntyQryCensus!$A$357:$CM$399,BW$1)","v":0},{"$f":"VLOOKUP(DropDownList!$B$47,CntyQryCensus!$A$357:$CM$399,BX$1)","v":0},{"$f":"VLOOKUP(DropDownList!$B$47,CntyQryCensus!$A$357:$CM$399,BY$1)","v":6},{"$f":"VLOOKUP(DropDownList!$B$47,CntyQryCensus!$A$357:$CM$399,BZ$1)","v":6},{"$f":"VLOOKUP(DropDownList!$B$47,CntyQryCensus!$A$357:$CM$399,CA$1)","v":0},{"$f":"VLOOKUP(DropDownList!$B$47,CntyQryCensus!$A$357:$CM$399,CB$1)","v":0},{"$f":"VLOOKUP(DropDownList!$B$47,CntyQryCensus!$A$357:$CM$399,CC$1)","v":0},{"$f":"VLOOKUP(DropDownList!$B$47,CntyQryCensus!$A$357:$CM$399,CD$1)","v":0},{"$f":"VLOOKUP(DropDownList!$B$47,CntyQryCensus!$A$357:$CM$399,CE$1)","v":0},{"$f":"VLOOKUP(DropDownList!$B$47,CntyQryCensus!$A$357:$CM$399,CF$1)","v":25},{"$f":"VLOOKUP(DropDownList!$B$47,CntyQryCensus!$A$357:$CM$399,CG$1)","v":17},{"$f":"VLOOKUP(DropDownList!$B$47,CntyQryCensus!$A$357:$CM$399,CH$1)","v":0},{"$f":"VLOOKUP(DropDownList!$B$47,CntyQryCensus!$A$357:$CM$399,CI$1)","v":0},{"$f":"VLOOKUP(DropDownList!$B$47,CntyQryCensus!$A$357:$CM$399,CJ$1)","v":0},{"$f":"VLOOKUP(DropDownList!$B$47,CntyQryCensus!$A$357:$CM$399,CK$1)","v":0},{"$f":"VLOOKUP(DropDownList!$B$47,CntyQryCensus!$A$357:$CM$399,CL$1)","v":8},{"$f":"VLOOKUP(DropDownList!$B$47,CntyQryCensus!$A$357:$CM$399,CM$1)","v":0}]
[]
[]
["Census 2000 SummaryFile3 Sample Data  -  SF3TownQry8HousingCostB"]
["NAME","LOGRECNO","COUNTY","TotalPop","H74SpecOwnerOccHU","H74OOHU<10k","H74OOHU10to15k","H74OOHU15to20k","H74OOHU20to25k","H74OOHU25to30k","H74OOHU30to35k","H74OOHU35to40k","H74OOHU40to50k","H74OOHU50to60k","H74OOHU60to70k","H74OOHU70to80k","H74OOHU80to90k","H74OOHU90to100k","H74OOHU100to125k","H74OOHU125to150k","H74OOHU150to175k","H74OOHU175to200k","H74OOHU200to250k","H74OOHU250to300k","H74OOHU300to400k","H74OOHU400to500k","H74OOHU500to750k","H74OOHU750to1000k","H74OOHU1000kmore","H76OOHUMedianVal","H84OwnerOccHU","H84AllOOHU<10k","H84AllOOHU10to15k","H84AllOOHU15to20k","H84AllOOHU20to25k","H84AllOOHU25to30k","H84AllOOHU30to35k","H84AllOOHU35to40k","H84AllOOHU40to50k","H84AllOOHU50to60k","H84AllOOHU60to70k","H84AllOOHU70to80k","H84AllOOHU80to90k","H84AllOOHU90to100k","H84AllOOHU100to125k","H84AllOOHU125to150k","H84AllOOHU150to175k","H84AllOOHU175to200k","H84AllOOHU200to250k","H84AllOOHU250to300k","H84AllOOHU300to400k","H84AllOOHU400to500k","H84AllOOHU500to750k","H84AllOOHU750to1000k","H84AllOOHU1000kmore","H85OOHUMedVal","H90SOOHU","H90HUwMorgt","H90HUwMtgHC<200","H90HUwMtgHC200to300","H90HUwMtgHC300to400","H90HUwMtgHC400to500","H90HUwMtgHC500to600","H90HUwMtgHC600to700","H90HUwMtgHC700to800","H90HUwMtgHC800to900","H90HUwMtgHC900to1000","H90HUwMtgHC1000to1250","H90HUwMtgHC1250to1500","H90HUwMtgHC1500to2000","H90HUwMtgHC2000to2500","H90HUwMtgHC2500to3000","H90HUwMtgHC3000orMore","H90HUwOutMorgt","H90HUwOutMtgHC<100","H90HUwOutMtgHC100to150","H90HUwOutMtgHC150to200","H90HUwOutMtgHC200to250","H90HUwOutMtgHC250to300","H90HUwOutMtgHC300to350","H90HUwOutMtgHC350to400","H90HUwOutMtgHC400to500","H90HUwOutMtgHC500to600","H90HUwOutMtgHC600to700","H90HUwOutMtgHC700to800","H90HUwOutMtgHC800to900","H90HUwOutMtgHC900to1000","H90HUwOutMtgHC1000orMore","H91MedianOCHUwMtg","H91MedianOCHUwOutMtg","H94SpecOOHU","H94HUwMortg","H94HUwMtgHC<10pct","H94HUwMtgHC10to15pct","H94HUwMtgHC15to20pct","H94HUwMtgHC20to25pct","H94HUwMtgHC25to30pct","H94HUwMtgHC30to35pct","H94HUwMtgHC35to40pct","H94HUwMtgHC40to50pct","H94HUwMtgHC50pctOrMore","H94HUwMtgHCpctNotComp","H94HUWOutMortg","H94HUWOutMortgHC<10pct","H94HUWOutMortgHC10to15pct","H94HUWOutMortgHC15to20pct","H94HUWOutMortgHC20to25pct","H94HUWOutMortgHC25to30pct","H94HUWOutMortgHC30to35pct","H94HUWOutMortgHC35to40pct","H94HUWOutMortgHC40to50pct","H94HUWOutMortgHC50pctOrMore","H94HUWOutMortgHCpctNotComp","H97SpecifOwnOccHU","H97SOOHUInc<10k","H97SOOHUInc<10kHC<20pct","H97SOOHUInc<10kHC20to25pct","H97SOOHUInc<10kHC25to30pct","H97SOOHUInc<10kHC30to35pct","H97SOOHUInc<10kHC>35pct","H97SOOHUInc<10kHCpctNotComput","H97SOOHUInc10to20k","H97SOOHUInc10to20kHC<20pct","H97SOOHUInc10to20kHC20to25pct","H97SOOHUInc10to20kHC25to30pct","H97SOOHUInc10to20kHC30to35pct","H97SOOHUInc10to20kHC>35pct","H97SOOHUInc10to20kHCpctNotComput","H97SOOHUInc20to35k","H97SOOHUInc20to35kRC<20pct","H97SOOHUInc20to35kRC20to25pct","H97SOOHUInc20to35kRC25to30pct","H97SOOHUInc20to35kRC30to35pct","H97SOOHUInc20to35kRC>35pct","H97SOOHUInc20to35kRCpctNotComput","H97SOOHUInc35to50k","H97SOOHUInc35to50kRC<20pct","H97SOOHUInc35to50kRC20to25pct","H97SOOHUInc35to50kRC25to30pct","H97SOOHUInc35to50kRC30to35pct","H97SOOHUInc35to50kRC>35pct","H97SOOHUInc35to50kRCpctNotCompute","H97SOOHUInc50to75k","H97SOOHUInc50to75kRC<20pct","H97SOOHUInc50to75kRC20to25pct","H97SOOHUInc50to75kRC25to30pct","H97SOOHUInc50to75kRC30to35pct","H97SOOHUInc50to75kRC>35pct","H97SOOHUInc50to75kRCpctNotComput","H97SOOHUInc75to100k","H97SOOHUInc75to100kRC<20pct","H97SOOHUInc75to100kRC20to25pct","H97SOOHUInc75to100kRC25to30pct","H97SOOHUInc75to100kRC30to35pct","H97SOOHUInc75to100kRC>35pct","H97SOOHUInc75to100kRCpctNotCompute","H97SOOHUInc100to150k","H97SOOHUInc100to150kRC<20pct","H97SOOHUInc100to150kRC20to25pct","H97SOOHUInc100to150kRC25to30pct","H97SOOHUInc100to150kRC30to35pct","H97SOOHUInc100to150kRC>35pct","H97SOOHUInc100to150kRCpctNotCompute","H97SOOHUInc>150k","H97SOOHUInc>150kRC<20pct","H97SOOHUInc>150kRC20to25pct","H97SOOHUInc>150kRC25to30pct","H97SOOHUInc>150kRC30to35pct","H97SOOHUInc>150kRC>35pct","H97SOOHUInc>150kRCpctNotCompute"]
[{"$f":"VLOOKUP(DropDownList!$B$47,CntyQryCensus!$A$408:$FN$450,A$1)","v":"Atkinson"},{"$f":"VLOOKUP(DropDownList!$B$47,CntyQryCensus!$A$408:$FN$450,B$1)","v":"0003039"},{"$f":"VLOOKUP(DropDownList!$B$47,CntyQryCensus!$A$408:$FN$450,C$1)","v":"02340"},{"$f":"VLOOKUP(DropDownList!$B$47,CntyQryCensus!$A$408:$FN$450,D$1)","v":6178},{"$f":"VLOOKUP(DropDownList!$B$47,CntyQryCensus!$A$408:$FN$450,E$1)","v":1791},{"$f":"VLOOKUP(DropDownList!$B$47,CntyQryCensus!$A$408:$FN$450,F$1)","v":0},{"$f":"VLOOKUP(DropDownList!$B$47,CntyQryCensus!$A$408:$FN$450,G$1)","v":0},{"$f":"VLOOKUP(DropDownList!$B$47,CntyQryCensus!$A$408:$FN$450,H$1)","v":0},{"$f":"VLOOKUP(DropDownList!$B$47,CntyQryCensus!$A$408:$FN$450,I$1)","v":0},{"$f":"VLOOKUP(DropDownList!$B$47,CntyQryCensus!$A$408:$FN$450,J$1)","v":0},{"$f":"VLOOKUP(DropDownList!$B$47,CntyQryCensus!$A$408:$FN$450,K$1)","v":0},{"$f":"VLOOKUP(DropDownList!$B$47,CntyQryCensus!$A$408:$FN$450,L$1)","v":0},{"$f":"VLOOKUP(DropDownList!$B$47,CntyQryCensus!$A$408:$FN$450,M$1)","v":0},{"$f":"VLOOKUP(DropDownList!$B$47,CntyQryCensus!$A$408:$FN$450,N$1)","v":0},{"$f":"VLOOKUP(DropDownList!$B$47,CntyQryCensus!$A$408:$FN$450,O$1)","v":0},{"$f":"VLOOKUP(DropDownList!$B$47,CntyQryCensus!$A$408:$FN$450,P$1)","v":9},{"$f":"VLOOKUP(DropDownList!$B$47,CntyQryCensus!$A$408:$FN$450,Q$1)","v":18},{"$f":"VLOOKUP(DropDownList!$B$47,CntyQryCensus!$A$408:$FN$450,R$1)","v":7},{"$f":"VLOOKUP(DropDownList!$B$47,CntyQryCensus!$A$408:$FN$450,S$1)","v":46},{"$f":"VLOOKUP(DropDownList!$B$47,CntyQryCensus!$A$408:$FN$450,T$1)","v":180},{"$f":"VLOOKUP(DropDownList!$B$47,CntyQryCensus!$A$408:$FN$450,U$1)","v":252},{"$f":"VLOOKUP(DropDownList!$B$47,CntyQryCensus!$A$408:$FN$450,V$1)","v":418},{"$f":"VLOOKUP(DropDownList!$B$47,CntyQryCensus!$A$408:$FN$450,W$1)","v":427},{"$f":"VLOOKUP(DropDownList!$B$47,CntyQryCensus!$A$408:$FN$450,X$1)","v":205},{"$f":"VLOOKUP(DropDownList!$B$47,CntyQryCensus!$A$408:$FN$450,Y$1)","v":153},{"$f":"VLOOKUP(DropDownList!$B$47,CntyQryCensus!$A$408:$FN$450,Z$1)","v":17},{"$f":"VLOOKUP(DropDownList!$B$47,CntyQryCensus!$A$408:$FN$450,AA$1)","v":39},{"$f":"VLOOKUP(DropDownList!$B$47,CntyQryCensus!$A$408:$FN$450,AB$1)","v":20},{"$f":"VLOOKUP(DropDownList!$B$47,CntyQryCensus!$A$408:$FN$450,AC$1)","v":0},{"$f":"VLOOKUP(DropDownList!$B$47,CntyQryCensus!$A$408:$FN$450,AD$1)","v":197900},{"$f":"VLOOKUP(DropDownList!$B$47,CntyQryCensus!$A$408:$FN$450,AE$1)","v":2060},{"$f":"VLOOKUP(DropDownList!$B$47,CntyQryCensus!$A$408:$FN$450,AF$1)","v":0},{"$f":"VLOOKUP(DropDownList!$B$47,CntyQryCensus!$A$408:$FN$450,AG$1)","v":0},{"$f":"VLOOKUP(DropDownList!$B$47,CntyQryCensus!$A$408:$FN$450,AH$1)","v":10},{"$f":"VLOOKUP(DropDownList!$B$47,CntyQryCensus!$A$408:$FN$450,AI$1)","v":0},{"$f":"VLOOKUP(DropDownList!$B$47,CntyQryCensus!$A$408:$FN$450,AJ$1)","v":0},{"$f":"VLOOKUP(DropDownList!$B$47,CntyQryCensus!$A$408:$FN$450,AK$1)","v":0},{"$f":"VLOOKUP(DropDownList!$B$47,CntyQryCensus!$A$408:$FN$450,AL$1)","v":0},{"$f":"VLOOKUP(DropDownList!$B$47,CntyQryCensus!$A$408:$FN$450,AM$1)","v":0},{"$f":"VLOOKUP(DropDownList!$B$47,CntyQryCensus!$A$408:$FN$450,AN$1)","v":0},{"$f":"VLOOKUP(DropDownList!$B$47,CntyQryCensus!$A$408:$FN$450,AO$1)","v":0},{"$f":"VLOOKUP(DropDownList!$B$47,CntyQryCensus!$A$408:$FN$450,AP$1)","v":9},{"$f":"VLOOKUP(DropDownList!$B$47,CntyQryCensus!$A$408:$FN$450,AQ$1)","v":18},{"$f":"VLOOKUP(DropDownList!$B$47,CntyQryCensus!$A$408:$FN$450,AR$1)","v":16},{"$f":"VLOOKUP(DropDownList!$B$47,CntyQryCensus!$A$408:$FN$450,AS$1)","v":52},{"$f":"VLOOKUP(DropDownList!$B$47,CntyQryCensus!$A$408:$FN$450,AT$1)","v":193},{"$f":"VLOOKUP(DropDownList!$B$47,CntyQryCensus!$A$408:$FN$450,AU$1)","v":295},{"$f":"VLOOKUP(DropDownList!$B$47,CntyQryCensus!$A$408:$FN$450,AV$1)","v":509},{"$f":"VLOOKUP(DropDownList!$B$47,CntyQryCensus!$A$408:$FN$450,AW$1)","v":460},{"$f":"VLOOKUP(DropDownList!$B$47,CntyQryCensus!$A$408:$FN$450,AX$1)","v":221},{"$f":"VLOOKUP(DropDownList!$B$47,CntyQryCensus!$A$408:$FN$450,AY$1)","v":177},{"$f":"VLOOKUP(DropDownList!$B$47,CntyQryCensus!$A$408:$FN$450,AZ$1)","v":23},{"$f":"VLOOKUP(DropDownList!$B$47,CntyQryCensus!$A$408:$FN$450,BA$1)","v":57},{"$f":"VLOOKUP(DropDownList!$B$47,CntyQryCensus!$A$408:$FN$450,BB$1)","v":20},{"$f":"VLOOKUP(DropDownList!$B$47,CntyQryCensus!$A$408:$FN$450,BC$1)","v":0},{"$f":"VLOOKUP(DropDownList!$B$47,CntyQryCensus!$A$408:$FN$450,BD$1)","v":196500},{"$f":"VLOOKUP(DropDownList!$B$47,CntyQryCensus!$A$408:$FN$450,BE$1)","v":1791},{"$f":"VLOOKUP(DropDownList!$B$47,CntyQryCensus!$A$408:$FN$450,BF$1)","v":1426},{"$f":"VLOOKUP(DropDownList!$B$47,CntyQryCensus!$A$408:$FN$450,BG$1)","v":0},{"$f":"VLOOKUP(DropDownList!$B$47,CntyQryCensus!$A$408:$FN$450,BH$1)","v":0},{"$f":"VLOOKUP(DropDownList!$B$47,CntyQryCensus!$A$408:$FN$450,BI$1)","v":8},{"$f":"VLOOKUP(DropDownList!$B$47,CntyQryCensus!$A$408:$FN$450,BJ$1)","v":16},{"$f":"VLOOKUP(DropDownList!$B$47,CntyQryCensus!$A$408:$FN$450,BK$1)","v":25},{"$f":"VLOOKUP(DropDownList!$B$47,CntyQryCensus!$A$408:$FN$450,BL$1)","v":33},{"$f":"VLOOKUP(DropDownList!$B$47,CntyQryCensus!$A$408:$FN$450,BM$1)","v":26},{"$f":"VLOOKUP(DropDownList!$B$47,CntyQryCensus!$A$408:$FN$450,BN$1)","v":17},{"$f":"VLOOKUP(DropDownList!$B$47,CntyQryCensus!$A$408:$FN$450,BO$1)","v":78},{"$f":"VLOOKUP(DropDownList!$B$47,CntyQryCensus!$A$408:$FN$450,BP$1)","v":252},{"$f":"VLOOKUP(DropDownList!$B$47,CntyQryCensus!$A$408:$FN$450,BQ$1)","v":300},{"$f":"VLOOKUP(DropDownList!$B$47,CntyQryCensus!$A$408:$FN$450,BR$1)","v":485},{"$f":"VLOOKUP(DropDownList!$B$47,CntyQryCensus!$A$408:$FN$450,BS$1)","v":149},{"$f":"VLOOKUP(DropDownList!$B$47,CntyQryCensus!$A$408:$FN$450,BT$1)","v":28},{"$f":"VLOOKUP(DropDownList!$B$47,CntyQryCensus!$A$408:$FN$450,BU$1)","v":9},{"$f":"VLOOKUP(DropDownList!$B$47,CntyQryCensus!$A$408:$FN$450,BV$1)","v":365},{"$f":"VLOOKUP(DropDownList!$B$47,CntyQryCensus!$A$408:$FN$450,BW$1)","v":0},{"$f":"VLOOKUP(DropDownList!$B$47,CntyQryCensus!$A$408:$FN$450,BX$1)","v":0},{"$f":"VLOOKUP(DropDownList!$B$47,CntyQryCensus!$A$408:$FN$450,BY$1)","v":0},{"$f":"VLOOKUP(DropDownList!$B$47,CntyQryCensus!$A$408:$FN$450,BZ$1)","v":10},{"$f":"VLOOKUP(DropDownList!$B$47,CntyQryCensus!$A$408:$FN$450,CA$1)","v":15},{"$f":"VLOOKUP(DropDownList!$B$47,CntyQryCensus!$A$408:$FN$450,CB$1)","v":44},{"$f":"VLOOKUP(DropDownList!$B$47,CntyQryCensus!$A$408:$FN$450,CC$1)","v":31},{"$f":"VLOOKUP(DropDownList!$B$47,CntyQryCensus!$A$408:$FN$450,CD$1)","v":140},{"$f":"VLOOKUP(DropDownList!$B$47,CntyQryCensus!$A$408:$FN$450,CE$1)","v":15},{"$f":"VLOOKUP(DropDownList!$B$47,CntyQryCensus!$A$408:$FN$450,CF$1)","v":44},{"$f":"VLOOKUP(DropDownList!$B$47,CntyQryCensus!$A$408:$FN$450,CG$1)","v":41},{"$f":"VLOOKUP(DropDownList!$B$47,CntyQryCensus!$A$408:$FN$450,CH$1)","v":0},{"$f":"VLOOKUP(DropDownList!$B$47,CntyQryCensus!$A$408:$FN$450,CI$1)","v":25},{"$f":"VLOOKUP(DropDownList!$B$47,CntyQryCensus!$A$408:$FN$450,CJ$1)","v":0},{"$f":"VLOOKUP(DropDownList!$B$47,CntyQryCensus!$A$408:$FN$450,CK$1)","v":1465},{"$f":"VLOOKUP(DropDownList!$B$47,CntyQryCensus!$A$408:$FN$450,CL$1)","v":459},{"$f":"VLOOKUP(DropDownList!$B$47,CntyQryCensus!$A$408:$FN$450,CM$1)","v":1791},{"$f":"VLOOKUP(DropDownList!$B$47,CntyQryCensus!$A$408:$FN$450,CN$1)","v":1426},{"$f":"VLOOKUP(DropDownList!$B$47,CntyQryCensus!$A$408:$FN$450,CO$1)","v":115},{"$f":"VLOOKUP(DropDownList!$B$47,CntyQryCensus!$A$408:$FN$450,CP$1)","v":225},{"$f":"VLOOKUP(DropDownList!$B$47,CntyQryCensus!$A$408:$FN$450,CQ$1)","v":268},{"$f":"VLOOKUP(DropDownList!$B$47,CntyQryCensus!$A$408:$FN$450,CR$1)","v":236},{"$f":"VLOOKUP(DropDownList!$B$47,CntyQryCensus!$A$408:$FN$450,CS$1)","v":241},{"$f":"VLOOKUP(DropDownList!$B$47,CntyQryCensus!$A$408:$FN$450,CT$1)","v":95},{"$f":"VLOOKUP(DropDownList!$B$47,CntyQryCensus!$A$408:$FN$450,CU$1)","v":38},{"$f":"VLOOKUP(DropDownList!$B$47,CntyQryCensus!$A$408:$FN$450,CV$1)","v":94},{"$f":"VLOOKUP(DropDownList!$B$47,CntyQryCensus!$A$408:$FN$450,CW$1)","v":114},{"$f":"VLOOKUP(DropDownList!$B$47,CntyQryCensus!$A$408:$FN$450,CX$1)","v":0},{"$f":"VLOOKUP(DropDownList!$B$47,CntyQryCensus!$A$408:$FN$450,CY$1)","v":365},{"$f":"VLOOKUP(DropDownList!$B$47,CntyQryCensus!$A$408:$FN$450,CZ$1)","v":113},{"$f":"VLOOKUP(DropDownList!$B$47,CntyQryCensus!$A$408:$FN$450,DA$1)","v":142},{"$f":"VLOOKUP(DropDownList!$B$47,CntyQryCensus!$A$408:$FN$450,DB$1)","v":10},{"$f":"VLOOKUP(DropDownList!$B$47,CntyQryCensus!$A$408:$FN$450,DC$1)","v":17},{"$f":"VLOOKUP(DropDownList!$B$47,CntyQryCensus!$A$408:$FN$450,DD$1)","v":0},{"$f":"VLOOKUP(DropDownList!$B$47,CntyQryCensus!$A$408:$FN$450,DE$1)","v":19},{"$f":"VLOOKUP(DropDownList!$B$47,CntyQryCensus!$A$408:$FN$450,DF$1)","v":0},{"$f":"VLOOKUP(DropDownList!$B$47,CntyQryCensus!$A$408:$FN$450,DG$1)","v":37},{"$f":"VLOOKUP(DropDownList!$B$47,CntyQryCensus!$A$408:$FN$450,DH$1)","v":27},{"$f":"VLOOKUP(DropDownList!$B$47,CntyQryCensus!$A$408:$FN$450,DI$1)","v":0},{"$f":"VLOOKUP(DropDownList!$B$47,CntyQryCensus!$A$408:$FN$450,DJ$1)","v":1791},{"$f":"VLOOKUP(DropDownList!$B$47,CntyQryCensus!$A$408:$FN$450,DK$1)","v":28},{"$f":"VLOOKUP(DropDownList!$B$47,CntyQryCensus!$A$408:$FN$450,DL$1)","v":0},{"$f":"VLOOKUP(DropDownList!$B$47,CntyQryCensus!$A$408:$FN$450,DM$1)","v":0},{"$f":"VLOOKUP(DropDownList!$B$47,CntyQryCensus!$A$408:$FN$450,DN$1)","v":0},{"$f":"VLOOKUP(DropDownList!$B$47,CntyQryCensus!$A$408:$FN$450,DO$1)","v":10},{"$f":"VLOOKUP(DropDownList!$B$47,CntyQryCensus!$A$408:$FN$450,DP$1)","v":18},{"$f":"VLOOKUP(DropDownList!$B$47,CntyQryCensus!$A$408:$FN$450,DQ$1)","v":0},{"$f":"VLOOKUP(DropDownList!$B$47,CntyQryCensus!$A$408:$FN$450,DR$1)","v":60},{"$f":"VLOOKUP(DropDownList!$B$47,CntyQryCensus!$A$408:$FN$450,DS$1)","v":0},{"$f":"VLOOKUP(DropDownList!$B$47,CntyQryCensus!$A$408:$FN$450,DT$1)","v":0},{"$f":"VLOOKUP(DropDownList!$B$47,CntyQryCensus!$A$408:$FN$450,DU$1)","v":0},{"$f":"VLOOKUP(DropDownList!$B$47,CntyQryCensus!$A$408:$FN$450,DV$1)","v":9},{"$f":"VLOOKUP(DropDownList!$B$47,CntyQryCensus!$A$408:$FN$450,DW$1)","v":51},{"$f":"VLOOKUP(DropDownList!$B$47,CntyQryCensus!$A$408:$FN$450,DX$1)","v":0},{"$f":"VLOOKUP(DropDownList!$B$47,CntyQryCensus!$A$408:$FN$450,DY$1)","v":151},{"$f":"VLOOKUP(DropDownList!$B$47,CntyQryCensus!$A$408:$FN$450,DZ$1)","v":26},{"$f":"VLOOKUP(DropDownList!$B$47,CntyQryCensus!$A$408:$FN$450,EA$1)","v":17},{"$f":"VLOOKUP(DropDownList!$B$47,CntyQryCensus!$A$408:$FN$450,EB$1)","v":9},{"$f":"VLOOKUP(DropDownList!$B$47,CntyQryCensus!$A$408:$FN$450,EC$1)","v":0},{"$f":"VLOOKUP(DropDownList!$B$47,CntyQryCensus!$A$408:$FN$450,ED$1)","v":99},{"$f":"VLOOKUP(DropDownList!$B$47,CntyQryCensus!$A$408:$FN$450,EE$1)","v":0},{"$f":"VLOOKUP(DropDownList!$B$47,CntyQryCensus!$A$408:$FN$450,EF$1)","v":235},{"$f":"VLOOKUP(DropDownList!$B$47,CntyQryCensus!$A$408:$FN$450,EG$1)","v":79},{"$f":"VLOOKUP(DropDownList!$B$47,CntyQryCensus!$A$408:$FN$450,EH$1)","v":9},{"$f":"VLOOKUP(DropDownList!$B$47,CntyQryCensus!$A$408:$FN$450,EI$1)","v":29},{"$f":"VLOOKUP(DropDownList!$B$47,CntyQryCensus!$A$408:$FN$450,EJ$1)","v":24},{"$f":"VLOOKUP(DropDownList!$B$47,CntyQryCensus!$A$408:$FN$450,EK$1)","v":94},{"$f":"VLOOKUP(DropDownList!$B$47,CntyQryCensus!$A$408:$FN$450,EL$1)","v":0},{"$f":"VLOOKUP(DropDownList!$B$47,CntyQryCensus!$A$408:$FN$450,EM$1)","v":444},{"$f":"VLOOKUP(DropDownList!$B$47,CntyQryCensus!$A$408:$FN$450,EN$1)","v":135},{"$f":"VLOOKUP(DropDownList!$B$47,CntyQryCensus!$A$408:$FN$450,EO$1)","v":72},{"$f":"VLOOKUP(DropDownList!$B$47,CntyQryCensus!$A$408:$FN$450,EP$1)","v":135},{"$f":"VLOOKUP(DropDownList!$B$47,CntyQryCensus!$A$408:$FN$450,EQ$1)","v":62},{"$f":"VLOOKUP(DropDownList!$B$47,CntyQryCensus!$A$408:$FN$450,ER$1)","v":40},{"$f":"VLOOKUP(DropDownList!$B$47,CntyQryCensus!$A$408:$FN$450,ES$1)","v":0},{"$f":"VLOOKUP(DropDownList!$B$47,CntyQryCensus!$A$408:$FN$450,ET$1)","v":315},{"$f":"VLOOKUP(DropDownList!$B$47,CntyQryCensus!$A$408:$FN$450,EU$1)","v":149},{"$f":"VLOOKUP(DropDownList!$B$47,CntyQryCensus!$A$408:$FN$450,EV$1)","v":110},{"$f":"VLOOKUP(DropDownList!$B$47,CntyQryCensus!$A$408:$FN$450,EW$1)","v":39},{"$f":"VLOOKUP(DropDownList!$B$47,CntyQryCensus!$A$408:$FN$450,EX$1)","v":9},{"$f":"VLOOKUP(DropDownList!$B$47,CntyQryCensus!$A$408:$FN$450,EY$1)","v":8},{"$f":"VLOOKUP(DropDownList!$B$47,CntyQryCensus!$A$408:$FN$450,EZ$1)","v":0},{"$f":"VLOOKUP(DropDownList!$B$47,CntyQryCensus!$A$408:$FN$450,FA$1)","v":362},{"$f":"VLOOKUP(DropDownList!$B$47,CntyQryCensus!$A$408:$FN$450,FB$1)","v":288},{"$f":"VLOOKUP(DropDownList!$B$47,CntyQryCensus!$A$408:$FN$450,FC$1)","v":45},{"$f":"VLOOKUP(DropDownList!$B$47,CntyQryCensus!$A$408:$FN$450,FD$1)","v":29},{"$f":"VLOOKUP(DropDownList!$B$47,CntyQryCensus!$A$408:$FN$450,FE$1)","v":0},{"$f":"VLOOKUP(DropDownList!$B$47,CntyQryCensus!$A$408:$FN$450,FF$1)","v":0},{"$f":"VLOOKUP(DropDownList!$B$47,CntyQryCensus!$A$408:$FN$450,FG$1)","v":0},{"$f":"VLOOKUP(DropDownList!$B$47,CntyQryCensus!$A$408:$FN$450,FH$1)","v":196},{"$f":"VLOOKUP(DropDownList!$B$47,CntyQryCensus!$A$408:$FN$450,FI$1)","v":196},{"$f":"VLOOKUP(DropDownList!$B$47,CntyQryCensus!$A$408:$FN$450,FJ$1)","v":0},{"$f":"VLOOKUP(DropDownList!$B$47,CntyQryCensus!$A$408:$FN$450,FK$1)","v":0},{"$f":"VLOOKUP(DropDownList!$B$47,CntyQryCensus!$A$408:$FN$450,FL$1)","v":0},{"$f":"VLOOKUP(DropDownList!$B$47,CntyQryCensus!$A$408:$FN$450,FM$1)","v":0},{"$f":"VLOOKUP(DropDownList!$B$47,CntyQryCensus!$A$408:$FN$450,FN$1)","v":0}]
[]
[]
["Census 2000 SummaryFile3 Sample Data  -  SF3TownQry9HHIncomeByTenure"]
["NAME","LOGRECNO","COUNTY","TotalPop","HCT11OccHU","HCT11OwnOccHU","HCT11OOHUInc<5K","HCT11OOHUInc5to10K","HCT11OOHUInc10to15K","HCT11OOHUInc15to20K","HCT11OOHUInc20to25K","HCT11OOHUInc25to35K","HCT11OOHUInc35to50K","HCT11OOHUInc50to75K","HCT11OOHUInc75to100K","HCT11OOHUInc100to150K","HCT11OOHUInc>150K","HCT11RentOccHU","HCT11ROHUInc<5K","HCT11ROHUInc5to10K","HCT11ROHUInc10to15K","HCT11ROHUInc15to20K","HCT11ROHUInc20to25K","HCT11ROHUInc25to35K","HCT11ROHUInc35to50K","HCT11ROHUInc50to75K","HCT11ROHUInc75to100K","HCT11ROHUInc100to150K","HCT11ROHUInc>150K","HCT12MedHHInc","HCT12MedOwnOccHHInc","HCT12MedRentOccHHInc","Summary Level"]
[{"$f":"VLOOKUP(DropDownList!$B$47,CntyQryCensus!$A$459:$AG$501,A$1)","v":"Atkinson"},{"$f":"VLOOKUP(DropDownList!$B$47,CntyQryCensus!$A$459:$AG$501,B$1)","v":"0003039"},{"$f":"VLOOKUP(DropDownList!$B$47,CntyQryCensus!$A$459:$AG$501,C$1)","v":"02340"},{"$f":"VLOOKUP(DropDownList!$B$47,CntyQryCensus!$A$459:$AG$501,D$1)","v":"Atkinson town"},{"$f":"VLOOKUP(DropDownList!$B$47,CntyQryCensus!$A$459:$AG$501,E$1)","v":"015"},{"$f":"VLOOKUP(DropDownList!$B$47,CntyQryCensus!$A$459:$AG$501,F$1)","v":6178},{"$f":"VLOOKUP(DropDownList!$B$47,CntyQryCensus!$A$459:$AG$501,G$1)","v":2317},{"$f":"VLOOKUP(DropDownList!$B$47,CntyQryCensus!$A$459:$AG$501,H$1)","v":2060},{"$f":"VLOOKUP(DropDownList!$B$47,CntyQryCensus!$A$459:$AG$501,I$1)","v":9},{"$f":"VLOOKUP(DropDownList!$B$47,CntyQryCensus!$A$459:$AG$501,J$1)","v":28},{"$f":"VLOOKUP(DropDownList!$B$47,CntyQryCensus!$A$459:$AG$501,K$1)","v":60},{"$f":"VLOOKUP(DropDownList!$B$47,CntyQryCensus!$A$459:$AG$501,L$1)","v":9},{"$f":"VLOOKUP(DropDownList!$B$47,CntyQryCensus!$A$459:$AG$501,M$1)","v":44},{"$f":"VLOOKUP(DropDownList!$B$47,CntyQryCensus!$A$459:$AG$501,N$1)","v":107},{"$f":"VLOOKUP(DropDownList!$B$47,CntyQryCensus!$A$459:$AG$501,O$1)","v":307},{"$f":"VLOOKUP(DropDownList!$B$47,CntyQryCensus!$A$459:$AG$501,P$1)","v":471},{"$f":"VLOOKUP(DropDownList!$B$47,CntyQryCensus!$A$459:$AG$501,Q$1)","v":382},{"$f":"VLOOKUP(DropDownList!$B$47,CntyQryCensus!$A$459:$AG$501,R$1)","v":423},{"$f":"VLOOKUP(DropDownList!$B$47,CntyQryCensus!$A$459:$AG$501,S$1)","v":220},{"$f":"VLOOKUP(DropDownList!$B$47,CntyQryCensus!$A$459:$AG$501,T$1)","v":257},{"$f":"VLOOKUP(DropDownList!$B$47,CntyQryCensus!$A$459:$AG$501,U$1)","v":20},{"$f":"VLOOKUP(DropDownList!$B$47,CntyQryCensus!$A$459:$AG$501,V$1)","v":28},{"$f":"VLOOKUP(DropDownList!$B$47,CntyQryCensus!$A$459:$AG$501,W$1)","v":19},{"$f":"VLOOKUP(DropDownList!$B$47,CntyQryCensus!$A$459:$AG$501,X$1)","v":29},{"$f":"VLOOKUP(DropDownList!$B$47,CntyQryCensus!$A$459:$AG$501,Y$1)","v":48},{"$f":"VLOOKUP(DropDownList!$B$47,CntyQryCensus!$A$459:$AG$501,Z$1)","v":19},{"$f":"VLOOKUP(DropDownList!$B$47,CntyQryCensus!$A$459:$AG$501,AA$1)","v":37},{"$f":"VLOOKUP(DropDownList!$B$47,CntyQryCensus!$A$459:$AG$501,AB$1)","v":16},{"$f":"VLOOKUP(DropDownList!$B$47,CntyQryCensus!$A$459:$AG$501,AC$1)","v":6},{"$f":"VLOOKUP(DropDownList!$B$47,CntyQryCensus!$A$459:$AG$501,AD$1)","v":27},{"$f":"VLOOKUP(DropDownList!$B$47,CntyQryCensus!$A$459:$AG$501,AE$1)","v":8},{"$f":"VLOOKUP(DropDownList!$B$47,CntyQryCensus!$A$459:$AG$501,AF$1)","v":69552},{"$f":"VLOOKUP(DropDownList!$B$47,CntyQryCensus!$A$459:$AG$501,AG$1)","v":74716}]
[]
[]
[]
[]
[]
[{"$f":"A80","v":"Atkinson"}]
[]
[]
[]
[]
[]
[]
[]
["Census 2000 SummaryFile3 Sample Data - SF3TownQry10Disabil"]
["NAME","LOGRECNO","COUNTY","TotalPop","PCT026001-NonInstPop5yrs+","PCT026002-MaleNonInstPop5yrs+","PCT026003","PCT026004","PCT026005","PCT026006","PCT026007","PCT026008","PCT026009","PCT026010","PCT026011","PCT026012","PCT026013","PCT026014","PCT026015","PCT026016","PCT026017","PCT026018","PCT026019","PCT026020","PCT026021","PCT026022","PCT026023","PCT026024","PCT026025","PCT026026","PCT026027","PCT026028","PCT026029","PCT026030","PCT026031","PCT026032","PCT026033","PCT026034","PCT026035","PCT026036","PCT026037","PCT026038","PCT026039","PCT026040","PCT026041","PCT026042","PCT026043","PCT026044","PCT026045","PCT026046","PCT026047","PCT026048","PCT026049","PCT026050","PCT026051","PCT026052","PCT026053","PCT026054","PCT026055","PCT026056","PCT026057","PCT026058","PCT026059","PCT026060","PCT026061","PCT026062","PCT026063","PCT026064","PCT026065","PCT026066","PCT026067","PCT026068","PCT026069","PCT026070","PCT026071","PCT026072","PCT026073","PCT026074","PCT026075","PCT026076","PCT026077","PCT026078","PCT026079","PCT026080","PCT026081","PCT026082","PCT026083","PCT026084","PCT026085","PCT026086","PCT026087","PCT026088","PCT026089","PCT026090","PCT026091","PCT026092","PCT026093","PCT026094","PCT026095","PCT026096","PCT026097","PCT026098","PCT026099","PCT026100","PCT026101"]
[{"$f":"VLOOKUP(DropDownList!$B$47,CntyQryCensus!$A$54:$DA$90,A$1)","v":"Atkinson"},{"$f":"VLOOKUP(DropDownList!$B$47,CntyQryCensus!$A$510:$DA$552,B$1)","v":"0003039"},{"$f":"VLOOKUP(DropDownList!$B$47,CntyQryCensus!$A$510:$DA$552,C$1)","v":"02340"},{"$f":"VLOOKUP(DropDownList!$B$47,CntyQryCensus!$A$510:$DA$552,D$1)","v":6178},{"$f":"VLOOKUP(DropDownList!$B$47,CntyQryCensus!$A$510:$DA$552,E$1)","v":5767},{"$f":"VLOOKUP(DropDownList!$B$47,CntyQryCensus!$A$510:$DA$552,F$1)","v":2833},{"$f":"VLOOKUP(DropDownList!$B$47,CntyQryCensus!$A$510:$DA$552,G$1)","v":434},{"$f":"VLOOKUP(DropDownList!$B$47,CntyQryCensus!$A$510:$DA$552,H$1)","v":9},{"$f":"VLOOKUP(DropDownList!$B$47,CntyQryCensus!$A$510:$DA$552,I$1)","v":0},{"$f":"VLOOKUP(DropDownList!$B$47,CntyQryCensus!$A$510:$DA$552,J$1)","v":0},{"$f":"VLOOKUP(DropDownList!$B$47,CntyQryCensus!$A$510:$DA$552,K$1)","v":9},{"$f":"VLOOKUP(DropDownList!$B$47,CntyQryCensus!$A$510:$DA$552,L$1)","v":0},{"$f":"VLOOKUP(DropDownList!$B$47,CntyQryCensus!$A$510:$DA$552,M$1)","v":10},{"$f":"VLOOKUP(DropDownList!$B$47,CntyQryCensus!$A$510:$DA$552,N$1)","v":10},{"$f":"VLOOKUP(DropDownList!$B$47,CntyQryCensus!$A$510:$DA$552,O$1)","v":0},{"$f":"VLOOKUP(DropDownList!$B$47,CntyQryCensus!$A$510:$DA$552,P$1)","v":415},{"$f":"VLOOKUP(DropDownList!$B$47,CntyQryCensus!$A$510:$DA$552,Q$1)","v":173},{"$f":"VLOOKUP(DropDownList!$B$47,CntyQryCensus!$A$510:$DA$552,R$1)","v":20},{"$f":"VLOOKUP(DropDownList!$B$47,CntyQryCensus!$A$510:$DA$552,S$1)","v":0},{"$f":"VLOOKUP(DropDownList!$B$47,CntyQryCensus!$A$510:$DA$552,T$1)","v":10},{"$f":"VLOOKUP(DropDownList!$B$47,CntyQryCensus!$A$510:$DA$552,U$1)","v":0},{"$f":"VLOOKUP(DropDownList!$B$47,CntyQryCensus!$A$510:$DA$552,V$1)","v":0},{"$f":"VLOOKUP(DropDownList!$B$47,CntyQryCensus!$A$510:$DA$552,W$1)","v":0},{"$f":"VLOOKUP(DropDownList!$B$47,CntyQryCensus!$A$510:$DA$552,X$1)","v":10},{"$f":"VLOOKUP(DropDownList!$B$47,CntyQryCensus!$A$510:$DA$552,Y$1)","v":6},{"$f":"VLOOKUP(DropDownList!$B$47,CntyQryCensus!$A$510:$DA$552,Z$1)","v":0},{"$f":"VLOOKUP(DropDownList!$B$47,CntyQryCensus!$A$510:$DA$552,AA$1)","v":6},{"$f":"VLOOKUP(DropDownList!$B$47,CntyQryCensus!$A$510:$DA$552,AB$1)","v":0},{"$f":"VLOOKUP(DropDownList!$B$47,CntyQryCensus!$A$510:$DA$552,AC$1)","v":6},{"$f":"VLOOKUP(DropDownList!$B$47,CntyQryCensus!$A$510:$DA$552,AD$1)","v":147},{"$f":"VLOOKUP(DropDownList!$B$47,CntyQryCensus!$A$510:$DA$552,AE$1)","v":1891},{"$f":"VLOOKUP(DropDownList!$B$47,CntyQryCensus!$A$510:$DA$552,AF$1)","v":233},{"$f":"VLOOKUP(DropDownList!$B$47,CntyQryCensus!$A$510:$DA$552,AG$1)","v":43},{"$f":"VLOOKUP(DropDownList!$B$47,CntyQryCensus!$A$510:$DA$552,AH$1)","v":13},{"$f":"VLOOKUP(DropDownList!$B$47,CntyQryCensus!$A$510:$DA$552,AI$1)","v":33},{"$f":"VLOOKUP(DropDownList!$B$47,CntyQryCensus!$A$510:$DA$552,AJ$1)","v":0},{"$f":"VLOOKUP(DropDownList!$B$47,CntyQryCensus!$A$510:$DA$552,AK$1)","v":0},{"$f":"VLOOKUP(DropDownList!$B$47,CntyQryCensus!$A$510:$DA$552,AL$1)","v":144},{"$f":"VLOOKUP(DropDownList!$B$47,CntyQryCensus!$A$510:$DA$552,AM$1)","v":64},{"$f":"VLOOKUP(DropDownList!$B$47,CntyQryCensus!$A$510:$DA$552,AN$1)","v":14},{"$f":"VLOOKUP(DropDownList!$B$47,CntyQryCensus!$A$510:$DA$552,AO$1)","v":50},{"$f":"VLOOKUP(DropDownList!$B$47,CntyQryCensus!$A$510:$DA$552,AP$1)","v":27},{"$f":"VLOOKUP(DropDownList!$B$47,CntyQryCensus!$A$510:$DA$552,AQ$1)","v":23},{"$f":"VLOOKUP(DropDownList!$B$47,CntyQryCensus!$A$510:$DA$552,AR$1)","v":1594},{"$f":"VLOOKUP(DropDownList!$B$47,CntyQryCensus!$A$510:$DA$552,AS$1)","v":335},{"$f":"VLOOKUP(DropDownList!$B$47,CntyQryCensus!$A$510:$DA$552,AT$1)","v":79},{"$f":"VLOOKUP(DropDownList!$B$47,CntyQryCensus!$A$510:$DA$552,AU$1)","v":51},{"$f":"VLOOKUP(DropDownList!$B$47,CntyQryCensus!$A$510:$DA$552,AV$1)","v":19},{"$f":"VLOOKUP(DropDownList!$B$47,CntyQryCensus!$A$510:$DA$552,AW$1)","v":9},{"$f":"VLOOKUP(DropDownList!$B$47,CntyQryCensus!$A$510:$DA$552,AX$1)","v":0},{"$f":"VLOOKUP(DropDownList!$B$47,CntyQryCensus!$A$510:$DA$552,AY$1)","v":0},{"$f":"VLOOKUP(DropDownList!$B$47,CntyQryCensus!$A$510:$DA$552,AZ$1)","v":15},{"$f":"VLOOKUP(DropDownList!$B$47,CntyQryCensus!$A$510:$DA$552,BA$1)","v":0},{"$f":"VLOOKUP(DropDownList!$B$47,CntyQryCensus!$A$510:$DA$552,BB$1)","v":15},{"$f":"VLOOKUP(DropDownList!$B$47,CntyQryCensus!$A$510:$DA$552,BC$1)","v":241},{"$f":"VLOOKUP(DropDownList!$B$47,CntyQryCensus!$A$510:$DA$552,BD$1)","v":2934},{"$f":"VLOOKUP(DropDownList!$B$47,CntyQryCensus!$A$510:$DA$552,BE$1)","v":531},{"$f":"VLOOKUP(DropDownList!$B$47,CntyQryCensus!$A$510:$DA$552,BF$1)","v":0},{"$f":"VLOOKUP(DropDownList!$B$47,CntyQryCensus!$A$510:$DA$552,BG$1)","v":0},{"$f":"VLOOKUP(DropDownList!$B$47,CntyQryCensus!$A$510:$DA$552,BH$1)","v":0},{"$f":"VLOOKUP(DropDownList!$B$47,CntyQryCensus!$A$510:$DA$552,BI$1)","v":0},{"$f":"VLOOKUP(DropDownList!$B$47,CntyQryCensus!$A$510:$DA$552,BJ$1)","v":0},{"$f":"VLOOKUP(DropDownList!$B$47,CntyQryCensus!$A$510:$DA$552,BK$1)","v":8},{"$f":"VLOOKUP(DropDownList!$B$47,CntyQryCensus!$A$510:$DA$552,BL$1)","v":8},{"$f":"VLOOKUP(DropDownList!$B$47,CntyQryCensus!$A$510:$DA$552,BM$1)","v":0},{"$f":"VLOOKUP(DropDownList!$B$47,CntyQryCensus!$A$510:$DA$552,BN$1)","v":523},{"$f":"VLOOKUP(DropDownList!$B$47,CntyQryCensus!$A$510:$DA$552,BO$1)","v":124},{"$f":"VLOOKUP(DropDownList!$B$47,CntyQryCensus!$A$510:$DA$552,BP$1)","v":7},{"$f":"VLOOKUP(DropDownList!$B$47,CntyQryCensus!$A$510:$DA$552,BQ$1)","v":0},{"$f":"VLOOKUP(DropDownList!$B$47,CntyQryCensus!$A$510:$DA$552,BR$1)","v":0},{"$f":"VLOOKUP(DropDownList!$B$47,CntyQryCensus!$A$510:$DA$552,BS$1)","v":0},{"$f":"VLOOKUP(DropDownList!$B$47,CntyQryCensus!$A$510:$DA$552,BT$1)","v":0},{"$f":"VLOOKUP(DropDownList!$B$47,CntyQryCensus!$A$510:$DA$552,BU$1)","v":0},{"$f":"VLOOKUP(DropDownList!$B$47,CntyQryCensus!$A$510:$DA$552,BV$1)","v":7},{"$f":"VLOOKUP(DropDownList!$B$47,CntyQryCensus!$A$510:$DA$552,BW$1)","v":0},{"$f":"VLOOKUP(DropDownList!$B$47,CntyQryCensus!$A$510:$DA$552,BX$1)","v":0},{"$f":"VLOOKUP(DropDownList!$B$47,CntyQryCensus!$A$510:$DA$552,BY$1)","v":0},{"$f":"VLOOKUP(DropDownList!$B$47,CntyQryCensus!$A$510:$DA$552,BZ$1)","v":0},{"$f":"VLOOKUP(DropDownList!$B$47,CntyQryCensus!$A$510:$DA$552,CA$1)","v":0},{"$f":"VLOOKUP(DropDownList!$B$47,CntyQryCensus!$A$510:$DA$552,CB$1)","v":117},{"$f":"VLOOKUP(DropDownList!$B$47,CntyQryCensus!$A$510:$DA$552,CC$1)","v":1917},{"$f":"VLOOKUP(DropDownList!$B$47,CntyQryCensus!$A$510:$DA$552,CD$1)","v":150},{"$f":"VLOOKUP(DropDownList!$B$47,CntyQryCensus!$A$510:$DA$552,CE$1)","v":7},{"$f":"VLOOKUP(DropDownList!$B$47,CntyQryCensus!$A$510:$DA$552,CF$1)","v":16},{"$f":"VLOOKUP(DropDownList!$B$47,CntyQryCensus!$A$510:$DA$552,CG$1)","v":0},{"$f":"VLOOKUP(DropDownList!$B$47,CntyQryCensus!$A$510:$DA$552,CH$1)","v":7},{"$f":"VLOOKUP(DropDownList!$B$47,CntyQryCensus!$A$510:$DA$552,CI$1)","v":16},{"$f":"VLOOKUP(DropDownList!$B$47,CntyQryCensus!$A$510:$DA$552,CJ$1)","v":104},{"$f":"VLOOKUP(DropDownList!$B$47,CntyQryCensus!$A$510:$DA$552,CK$1)","v":66},{"$f":"VLOOKUP(DropDownList!$B$47,CntyQryCensus!$A$510:$DA$552,CL$1)","v":26},{"$f":"VLOOKUP(DropDownList!$B$47,CntyQryCensus!$A$510:$DA$552,CM$1)","v":40},{"$f":"VLOOKUP(DropDownList!$B$47,CntyQryCensus!$A$510:$DA$552,CN$1)","v":7},{"$f":"VLOOKUP(DropDownList!$B$47,CntyQryCensus!$A$510:$DA$552,CO$1)","v":33},{"$f":"VLOOKUP(DropDownList!$B$47,CntyQryCensus!$A$510:$DA$552,CP$1)","v":1701},{"$f":"VLOOKUP(DropDownList!$B$47,CntyQryCensus!$A$510:$DA$552,CQ$1)","v":362},{"$f":"VLOOKUP(DropDownList!$B$47,CntyQryCensus!$A$510:$DA$552,CR$1)","v":16},{"$f":"VLOOKUP(DropDownList!$B$47,CntyQryCensus!$A$510:$DA$552,CS$1)","v":7},{"$f":"VLOOKUP(DropDownList!$B$47,CntyQryCensus!$A$510:$DA$552,CT$1)","v":9},{"$f":"VLOOKUP(DropDownList!$B$47,CntyQryCensus!$A$510:$DA$552,CU$1)","v":0},{"$f":"VLOOKUP(DropDownList!$B$47,CntyQryCensus!$A$510:$DA$552,CV$1)","v":0},{"$f":"VLOOKUP(DropDownList!$B$47,CntyQryCensus!$A$510:$DA$552,CW$1)","v":0},{"$f":"VLOOKUP(DropDownList!$B$47,CntyQryCensus!$A$510:$DA$552,CX$1)","v":63},{"$f":"VLOOKUP(DropDownList!$B$47,CntyQryCensus!$A$510:$DA$552,CY$1)","v":19},{"$f":"VLOOKUP(DropDownList!$B$47,CntyQryCensus!$A$510:$DA$552,CZ$1)","v":44},{"$f":"VLOOKUP(DropDownList!$B$47,CntyQryCensus!$A$510:$DA$552,DA$1)","v":283}]
[]
[]
[]
[]
[]
[]
[]
[]
["ACS",2,{"$f":"B105+1","v":3},{"$f":"C105+1","v":4},5,6,7,8,9,10,11,{"$f":"K105+1","v":12},13,14,15,{"$f":"O105+1","v":16},17,18,19,20,21,22,23,24,25,26,27,28,29,30,31,32,33,34,35,36,37,38,39,40,41,42,43,44,45,46,47,48,49,50,51,52,53,54,55,56,57,58,59,60,61,62,63,64,65,66,67,{"$f":"BO105+1","v":68},69,70,71,72,73,74,75,76,77,78,79,80,81,82,83,84,85,86,87,88,89,90,91,92,93,94,95,96,97,98,99,100,101,102,103,104,105,106,107,108,109,110,111,112,113,114,115,116,117,118,119,120,121,122,123,124,125]
["Househould Data (Housing Unit Type)"]
["NAME","TotalHU",{"$f":"\"MOE \"&B107","v":"MOE TotalHU"},"TotalOccHU",{"$f":"\"MOE \"&D107","v":"MOE TotalOccHU"},"TotalOwnerOccUn",{"$f":"\"MOE \"&F107","v":"MOE TotalOwnerOccUn"},"TotalRenterOccn",{"$f":"\"MOE \"&H107","v":"MOE TotalRenterOccn"},"TotalVacantUntis",{"$f":"\"MOE \"&J107","v":"MOE TotalVacantUntis"},"VacantUnitsForRent",{"$f":"\"MOE \"&L107","v":"MOE VacantUnitsForRent"},"VacantUnitRentedNotOcc",{"$f":"\"MOE \"&N107","v":"MOE VacantUnitRentedNotOcc"},"VacantUnitForSale",{"$f":"\"MOE \"&P107","v":"MOE VacantUnitForSale"},"VacantUnitSoldNotOcc",{"$f":"\"MOE \"&R107","v":"MOE VacantUnitSoldNotOcc"},"VacantUnitSeasonalRec",{"$f":"\"MOE \"&T107","v":"MOE VacantUnitSeasonalRec"},"TotalPopInHousingUnits",{"$f":"\"MOE \"&V107","v":"MOE TotalPopInHousingUnits"},"OwnerOccPopHousingUnits",{"$f":"\"MOE \"&X107","v":"MOE OwnerOccPopHousingUnits"},"RenterOccPopHousingUnits",{"$f":"\"MOE \"&Z107","v":"MOE RenterOccPopHousingUnits"},"TotalUntis",{"$f":"\"MOE \"&AB107","v":"MOE TotalUntis"},"TotalOwnerOccUnits",{"$f":"\"MOE \"&AD107","v":"MOE TotalOwnerOccUnits"},"SigFamOwnerOcc",{"$f":"\"MOE \"&AF107","v":"MOE SigFamOwnerOcc"},"MultiFamOwnerOcc",{"$f":"\"MOE \"&AH107","v":"MOE MultiFamOwnerOcc"},"MobileOwnerOcc",{"$f":"\"MOE \"&AJ107","v":"MOE MobileOwnerOcc"},"TotalRenterOccUnits",{"$f":"\"MOE \"&AL107","v":"MOE TotalRenterOccUnits"},"SigFamRenterOcc",{"$f":"\"MOE \"&AN107","v":"MOE SigFamRenterOcc"},"MultiFamRenterOcc",{"$f":"\"MOE \"&AP107","v":"MOE MultiFamRenterOcc"},"MobileRenterOcc",{"$f":"\"MOE \"&AR107","v":"MOE MobileRenterOcc"},"TotalSigFamilyUnits",{"$f":"\"MOE \"&AT107","v":"MOE TotalSigFamilyUnits"},"TotalMultiFamilyUnits",{"$f":"\"MOE \"&AV107","v":"MOE TotalMultiFamilyUnits"},"TotalMobileUnits",{"$f":"\"MOE \"&AX107","v":"MOE TotalMobileUnits"},"YrHouseBuilt2014Later",{"$f":"\"MOE \"&AZ107","v":"MOE YrHouseBuilt2014Later"},"YrHouseBuilt2010-2013",{"$f":"\"MOE \"&BB107","v":"MOE YrHouseBuilt2010-2013"},"YrHouseBuilt2000-2009",{"$f":"\"MOE \"&BD107","v":"MOE YrHouseBuilt2000-2009"},"YrHouseBuilt1990-1999",{"$f":"\"MOE \"&BF107","v":"MOE YrHouseBuilt1990-1999"},"YrHouseBuilt1980-1989",{"$f":"\"MOE \"&BH107","v":"MOE YrHouseBuilt1980-1989"},"YrHouseBuilt1970-1979",{"$f":"\"MOE \"&BJ107","v":"MOE YrHouseBuilt1970-1979"},"YrHouseBuilt1960-1969",{"$f":"\"MOE \"&BL107","v":"MOE YrHouseBuilt1960-1969"},"YrHouseBuilt1950-1959",{"$f":"\"MOE \"&BN107","v":"MOE YrHouseBuilt1950-1959"},"YrHouseBuilt1940-1949",{"$f":"\"MOE \"&BP107","v":"MOE YrHouseBuilt1940-1949"},"YrHouseBuilt1939orEarlier",{"$f":"\"MOE \"&BR107","v":"MOE YrHouseBuilt1939orEarlier"},"NoBedrooms",{"$f":"\"MOE \"&BT107","v":"MOE NoBedrooms"},"1Bedroom",{"$f":"\"MOE \"&BV107","v":"MOE 1Bedroom"},"2Bedroom",{"$f":"\"MOE \"&BX107","v":"MOE 2Bedroom"},"3Bedroom",{"$f":"\"MOE \"&BZ107","v":"MOE 3Bedroom"},"4+Bedroom",{"$f":"\"MOE \"&CB107","v":"MOE 4+Bedroom"}]
[{"$f":"VLOOKUP(DropDownList!$B$47,CntyQryCensus!$A$510:$DA$546,A$1)","v":"Atkinson"},2738,133,2597,115,2395,123,202,108,141,89,0,15,0,15,39,44,0,15,39,61,6787,19,6484,179,303,176,2597,115,2395,123,1861,161,534,166.50825805346713,0,21.213203435596427,202,108,33,36,169,106.81292056675541,0,21.213203435596427,1960,168,778,208.31946620515328,0,21.213203435596427,0,15,322,119,523,125,550,177,742,182,173,83,274,109,82,55,72,51,77,93,196,83,818,187,1045,178,602,161.05899540230592,null,"4 + bedrooms",81,79,36,74,28,76,114,30,114,142,91,44,40,134,119,76,105,14,132,142,84,108,151,154,137,30,701,207.10383868967759,300,141.01418368376991,207.27517941133232,197.81304304822774]
[]
["Disability Data"]
["NAME","TotalPop",{"$f":"\"MOE \"&B111","v":"MOE TotalPop"},"PopUnder 5 years:",{"$f":"\"MOE \"&D111","v":"MOE PopUnder 5 years:"},{"$f":"D$111&\"-WithDisability\"","v":"PopUnder 5 years:-WithDisability"},{"$f":"\"MOE \"&F111","v":"MOE PopUnder 5 years:-WithDisability"},{"$f":"D111&\"-NoDisability\"","v":"PopUnder 5 years:-NoDisability"},{"$f":"\"MOE \"&H111","v":"MOE PopUnder 5 years:-NoDisability"},"PopUnder 5 to 17years:",{"$f":"\"MOE \"&J111","v":"MOE PopUnder 5 to 17years:"},{"$f":"J$111&\"-WithDisability\"","v":"PopUnder 5 to 17years:-WithDisability"},{"$f":"\"MOE \"&L111","v":"MOE PopUnder 5 to 17years:-WithDisability"},{"$f":"J111&\"-NoDisability\"","v":"PopUnder 5 to 17years:-NoDisability"},{"$f":"\"MOE \"&N111","v":"MOE PopUnder 5 to 17years:-NoDisability"},"PopUnder 18 to 34 years:",{"$f":"\"MOE \"&P111","v":"MOE PopUnder 18 to 34 years:"},{"$f":"P$111&\"-WithDisability\"","v":"PopUnder 18 to 34 years:-WithDisability"},{"$f":"\"MOE \"&R111","v":"MOE PopUnder 18 to 34 years:-WithDisability"},{"$f":"P111&\"-NoDisability\"","v":"PopUnder 18 to 34 years:-NoDisability"},{"$f":"\"MOE \"&T111","v":"MOE PopUnder 18 to 34 years:-NoDisability"},"Pop 35 years to 64:",{"$f":"\"MOE \"&V111","v":"MOE Pop 35 years to 64:"},{"$f":"$V$111&\"-WithDisability\"","v":"Pop 35 years to 64:-WithDisability"},{"$f":"\"MOE \"&X111","v":"MOE Pop 35 years to 64:-WithDisability"},{"$f":"$V$111&\"-NoDisability\"","v":"Pop 35 years to 64:-NoDisability"},{"$f":"\"MOE \"&Z111","v":"MOE Pop 35 years to 64:-NoDisability"},"Pop 65 years to 74:",{"$f":"\"MOE \"&AB111","v":"MOE Pop 65 years to 74:"},{"$f":"$AB$111&\"-WithDisability\"","v":"Pop 65 years to 74:-WithDisability"},{"$f":"\"MOE \"&AD111","v":"MOE Pop 65 years to 74:-WithDisability"},{"$f":"$AB$111&\"-NoDisability\"","v":"Pop 65 years to 74:-NoDisability"},{"$f":"\"MOE \"&AF111","v":"MOE Pop 65 years to 74:-NoDisability"},"Pop 75 and older:",{"$f":"\"MOE \"&AH111","v":"MOE Pop 75 and older:"},{"$f":"$AH$111&\"-WithDisability\"","v":"Pop 75 and older:-WithDisability"},{"$f":"\"MOE \"&AJ111","v":"MOE Pop 75 and older:-WithDisability"},{"$f":"$AH$111&\"-NoDisability\"","v":"Pop 75 and older:-NoDisability"},{"$f":"\"MOE \"&AL111","v":"MOE Pop 75 and older:-NoDisability"},"TotalPopUnder5_HearingDisability",{"$f":"\"MOE \"&AN111","v":"MOE TotalPopUnder5_HearingDisability"},"TotalPopUnder5_HearingDisability",{"$f":"\"MOE \"&AP111","v":"MOE TotalPopUnder5_HearingDisability"},"TotalPop18To34_HearingDisability",{"$f":"\"MOE \"&AR111","v":"MOE TotalPop18To34_HearingDisability"},"TotalPop35To64_HearingDisability",{"$f":"\"MOE \"&AT111","v":"MOE TotalPop35To64_HearingDisability"},"TotalPop65To74_HearingDisability",{"$f":"\"MOE \"&AV111","v":"MOE TotalPop65To74_HearingDisability"},"TotalPop75andOlder_HearingDisability",{"$f":"\"MOE \"&AX111","v":"MOE TotalPop75andOlder_HearingDisability"},"TotalPopUnder5_VisionDisability",{"$f":"\"MOE \"&AZ111","v":"MOE TotalPopUnder5_VisionDisability"},"TotalPop5To17_VisionDisability",{"$f":"\"MOE \"&BB111","v":"MOE TotalPop5To17_VisionDisability"},"TotalPop18To34_VisionDisability",{"$f":"\"MOE \"&BD111","v":"MOE TotalPop18To34_VisionDisability"},"TotalPop35To64_VisionDisability",{"$f":"\"MOE \"&BF111","v":"MOE TotalPop35To64_VisionDisability"},"TotalPop65To74_VisionDisability",{"$f":"\"MOE \"&BH111","v":"MOE TotalPop65To74_VisionDisability"},"TotalPop75andOlder_VisionDisability",{"$f":"\"MOE \"&BJ111","v":"MOE TotalPop75andOlder_VisionDisability"},"TotalPop5To17_CongnitiveDisability",{"$f":"\"MOE \"&BL111","v":"MOE TotalPop5To17_CongnitiveDisability"},"TotalPop18To34_CongnitiveDisability",{"$f":"\"MOE \"&BN111","v":"MOE TotalPop18To34_CongnitiveDisability"},"TotalPop35To64_CongnitiveDisability",{"$f":"\"MOE \"&BP111","v":"MOE TotalPop35To64_CongnitiveDisability"},"TotalPop65To74_CongnitiveDisability",{"$f":"\"MOE \"&BR111","v":"MOE TotalPop65To74_CongnitiveDisability"},"TotalPop75andOlder_CongnitiveDisability",{"$f":"\"MOE \"&BT111","v":"MOE TotalPop75andOlder_CongnitiveDisability"},"TotalPop5To17_AmbulatoryDisability",{"$f":"\"MOE \"&BV111","v":"MOE TotalPop5To17_AmbulatoryDisability"},"TotalPop18To34_AmbulatoryDisability",{"$f":"\"MOE \"&BX111","v":"MOE TotalPop18To34_AmbulatoryDisability"},"TotalPop35To64_AmbulatoryDisability",{"$f":"\"MOE \"&BZ111","v":"MOE TotalPop35To64_AmbulatoryDisability"},"TotalPop65To74_AmbulatoryDisability",{"$f":"\"MOE \"&CB111","v":"MOE TotalPop65To74_AmbulatoryDisability"},"TotalPop75andOlder_AmbulatoryDisability",{"$f":"\"MOE \"&CD111","v":"MOE TotalPop75andOlder_AmbulatoryDisability"},"TotalPop5To17_SelfCareDisability",{"$f":"\"MOE \"&CF111","v":"MOE TotalPop5To17_SelfCareDisability"},"TotalPop18To34_SelfCareDisability",{"$f":"\"MOE \"&CH111","v":"MOE TotalPop18To34_SelfCareDisability"},"TotalPop35To64_SelfCareDisability",{"$f":"\"MOE \"&CJ111","v":"MOE TotalPop35To64_SelfCareDisability"},"TotalPop65To74_SelfCareDisability",{"$f":"\"MOE \"&CL111","v":"MOE TotalPop65To74_SelfCareDisability"},"TotalPop75andOlder_SelfCareDisability",{"$f":"\"MOE \"&CN111","v":"MOE TotalPop75andOlder_SelfCareDisability"},"TotalPop18To34_IndependantLivingDisability",{"$f":"\"MOE \"&CP111","v":"MOE TotalPop18To34_IndependantLivingDisability"},"TotalPop35To64_IndependantLivingDisability",{"$f":"\"MOE \"&CR111","v":"MOE TotalPop35To64_IndependantLivingDisability"},"TotalPop65To74_IndependantLivingDisability",{"$f":"\"MOE \"&CT111","v":"MOE TotalPop65To74_IndependantLivingDisability"},"TotalPop75andOlder_IndependantLivingDisability",{"$f":"\"MOE \"&CV111","v":"MOE TotalPop75andOlder_IndependantLivingDisability"},"TotalUnder5_HearingorVisionDisability",{"$f":"\"MOE \"&CX111","v":"MOE TotalUnder5_HearingorVisionDisability"},"TotalUnder5_HearingandVisionDisability",{"$f":"\"MOE \"&CZ111","v":"MOE TotalUnder5_HearingandVisionDisability"},"5to17YearWIthOneDisability",{"$f":"\"MOE \"&DB111","v":"MOE 5to17YearWIthOneDisability"},"5to17YearWIthTwoOrMoreDisability",{"$f":"\"MOE \"&DD111","v":"MOE 5to17YearWIthTwoOrMoreDisability"},"18to34YearWIthOneDisability",{"$f":"\"MOE \"&DF111","v":"MOE 18to34YearWIthOneDisability"},"18to34YearWIthTwoOrMoreDisability",{"$f":"\"MOE \"&DH111","v":"MOE 18to34YearWIthTwoOrMoreDisability"},"35to64YearWIthOneDisability",{"$f":"\"MOE \"&DJ111","v":"MOE 35to64YearWIthOneDisability"},"35to64YearWIthTwoOrMoreDisability",{"$f":"\"MOE \"&DL111","v":"MOE 35to64YearWIthTwoOrMoreDisability"},"65to74YearWIthOneDisability",{"$f":"\"MOE \"&DN111","v":"MOE 65to74YearWIthOneDisability"},"65to74YearWIthTwoOrMoreDisability",{"$f":"\"MOE \"&DP111","v":"MOE 65to74YearWIthTwoOrMoreDisability"},"75AndOlderWIthOneDisability",{"$f":"\"MOE \"&DR111","v":"MOE 75AndOlderWIthOneDisability"},"75AndOlderWIthTwoOrMoreDisability",{"$f":"\"MOE \"&DT111","v":"MOE 75AndOlderWIthTwoOrMoreDisability"}]
[{"$f":"VLOOKUP(DropDownList!$B$47,CntyQryCensus!$A$510:$DA$546,A$1)","v":"Atkinson"},6788,19,211,120.90492132250036,0,21.213203435596427,211,120.90492132250036,1220,209.34660255184463,0,21.213203435596427,1220,209.34660255184463,981,199.42417105255822,0,21.213203435596427,981,199.42417105255822,3245,188.09572031282372,249,96.896852374058057,2996,191.16746585127919,622,142.43595051811886,172,97.082439194738001,450,127.06297651164952,509,126.73200069437868,133,65.604877867426907,376,116.38728452885221,0,21.213203435596427,0,21.213203435596427,0,21.213203435596427,64,53.823786563191554,41,36.61966684720111,67,49.33558553417604,0,21.213203435596427,0,21.213203435596427,0,21.213203435596427,13,26.627053911388696,73,79.81227975693966,16,30.886890422961002,0,21.213203435596427,0,21.213203435596427,141,81.565924257621205,14,24.207436873820409,24,39.924929555354261,0,21.213203435596427,0,21.213203435596427,88,64.637450444769243,57,45.276925690687087,63,43.840620433565945,0,21.213203435596427,0,21.213203435596427,48,54.644304369257,13,24.207436873820409,26,30.016662039607269,0,21.213203435596427,69,60.926184846911269,28,34.438350715445125,36,41.146081222881968,0,15,0,15,114,55,135,82,214,104,91,54]
[]
["Househould Income By Age"]
["NAME","TotalHouseholds",{"$f":"\"MOE \"&B115","v":"MOE TotalHouseholds"},"HHInc<10K",{"$f":"\"MOE \"&D115","v":"MOE HHInc<10K"},"HHInc10to15K",{"$f":"\"MOE \"&F115","v":"MOE HHInc10to15K"},"HHInc15to20K",{"$f":"\"MOE \"&H115","v":"MOE HHInc15to20K"},"HHInc20to25K",{"$f":"\"MOE \"&J115","v":"MOE HHInc20to25K"},"HHInc25to30K",{"$f":"\"MOE \"&L115","v":"MOE HHInc25to30K"},"HHInc30to35K",{"$f":"\"MOE \"&N115","v":"MOE HHInc30to35K"},"HHInc35to40K",{"$f":"\"MOE \"&P115","v":"MOE HHInc35to40K"},"HHInc40to45K",{"$f":"\"MOE \"&R115","v":"MOE HHInc40to45K"},"HHInc45to50K",{"$f":"\"MOE \"&T115","v":"MOE HHInc45to50K"},"HHInc50to60K",{"$f":"\"MOE \"&V115","v":"MOE HHInc50to60K"},"HHInc60to75K",{"$f":"\"MOE \"&X115","v":"MOE HHInc60to75K"},"HHInc75to100K",{"$f":"\"MOE \"&Z115","v":"MOE HHInc75to100K"},"HHInc100to125K",{"$f":"\"MOE \"&AB115","v":"MOE HHInc100to125K"},"HHInc125to150K",{"$f":"\"MOE \"&AD115","v":"MOE HHInc125to150K"},"HHInc150to200K",{"$f":"\"MOE \"&AF115","v":"MOE HHInc150to200K"},"HHInc>200K",{"$f":"\"MOE \"&AH115","v":"MOE HHInc>200K"},"TotalHH",{"$f":"\"MOE \"&AJ115","v":"MOE TotalHH"},"HHAgeHHUnder25yrs",{"$f":"\"MOE \"&AL115","v":"MOE HHAgeHHUnder25yrs"},"HHAgeHH<25HHInc<10K",{"$f":"\"MOE \"&AN115","v":"MOE HHAgeHH<25HHInc<10K"},"HHAgeHH<25HHInc10to15K",{"$f":"\"MOE \"&AP115","v":"MOE HHAgeHH<25HHInc10to15K"},"HHAgeHH<25HHInc15to20K",{"$f":"\"MOE \"&AR115","v":"MOE HHAgeHH<25HHInc15to20K"},"HHAgeHH<25HHInc20to25K",{"$f":"\"MOE \"&AT115","v":"MOE HHAgeHH<25HHInc20to25K"},"HHAgeHH<25HHInc25to30K",{"$f":"\"MOE \"&AV115","v":"MOE HHAgeHH<25HHInc25to30K"},"HHAgeHH<25HHInc30to35K",{"$f":"\"MOE \"&AX115","v":"MOE HHAgeHH<25HHInc30to35K"},"HHAgeHH<25HHInc35to40K",{"$f":"\"MOE \"&AZ115","v":"MOE HHAgeHH<25HHInc35to40K"},"HHAgeHH<25HHInc40to45K",{"$f":"\"MOE \"&BB115","v":"MOE HHAgeHH<25HHInc40to45K"},"HHAgeHH<25HHInc45to50K",{"$f":"\"MOE \"&BD115","v":"MOE HHAgeHH<25HHInc45to50K"},"HHAgeHH<25HHInc50to60K",{"$f":"\"MOE \"&BF115","v":"MOE HHAgeHH<25HHInc50to60K"},"HHAgeHH<25HHInc60to75K",{"$f":"\"MOE \"&BH115","v":"MOE HHAgeHH<25HHInc60to75K"},"HHAgeHH<25HHInc75to100K",{"$f":"\"MOE \"&BJ115","v":"MOE HHAgeHH<25HHInc75to100K"},"HHAgeHH<25HHInc100to125K",{"$f":"\"MOE \"&BL115","v":"MOE HHAgeHH<25HHInc100to125K"},"HHAgeHH<25HHInc125to150K",{"$f":"\"MOE \"&BN115","v":"MOE HHAgeHH<25HHInc125to150K"},"HHAgeHH<25HHInc150to200K",{"$f":"\"MOE \"&BP115","v":"MOE HHAgeHH<25HHInc150to200K"},"HHAge<25HHInc>200K",{"$f":"\"MOE \"&BR115","v":"MOE HHAge<25HHInc>200K"},"HHAgeHH25to44yrs",{"$f":"\"MOE \"&BT115","v":"MOE HHAgeHH25to44yrs"},"HHAgeHH25To44yrsHHInc<10K",{"$f":"\"MOE \"&BV115","v":"MOE HHAgeHH25To44yrsHHInc<10K"},"HHAgeHH25To44yrsHHInc10to15K",{"$f":"\"MOE \"&BX115","v":"MOE HHAgeHH25To44yrsHHInc10to15K"},"HHAgeHH25To44yrsHHInc15to20K",{"$f":"\"MOE \"&BZ115","v":"MOE HHAgeHH25To44yrsHHInc15to20K"},"HHAgeHH25To44yrsHHInc20to25K",{"$f":"\"MOE \"&CB115","v":"MOE HHAgeHH25To44yrsHHInc20to25K"},"HHAgeHH25To44yrsHHInc25to30K",{"$f":"\"MOE \"&CD115","v":"MOE HHAgeHH25To44yrsHHInc25to30K"},"HHAgeHH25To44yrsHHInc30to35K",{"$f":"\"MOE \"&CF115","v":"MOE HHAgeHH25To44yrsHHInc30to35K"},"HHAgeHH25To44yrsHHInc35to40K",{"$f":"\"MOE \"&CH115","v":"MOE HHAgeHH25To44yrsHHInc35to40K"},"HHAgeHH25To44yrsHHInc40to45K",{"$f":"\"MOE \"&CJ115","v":"MOE HHAgeHH25To44yrsHHInc40to45K"},"HHAgeHH25To44yrsHHInc45to50K",{"$f":"\"MOE \"&CL115","v":"MOE HHAgeHH25To44yrsHHInc45to50K"},"HHAgeHH25To44yrsHHInc50to60K",{"$f":"\"MOE \"&CN115","v":"MOE HHAgeHH25To44yrsHHInc50to60K"},"HHAgeHH25To44yrsHHInc60to75K",{"$f":"\"MOE \"&CP115","v":"MOE HHAgeHH25To44yrsHHInc60to75K"},"HHAgeHH25To44yrsHHInc75to100K",{"$f":"\"MOE \"&CR115","v":"MOE HHAgeHH25To44yrsHHInc75to100K"},"HHAgeHH25To44yrsHHInc100to125K",{"$f":"\"MOE \"&CT115","v":"MOE HHAgeHH25To44yrsHHInc100to125K"},"HHAgeHH25To44yrsHHInc125to150K",{"$f":"\"MOE \"&CV115","v":"MOE HHAgeHH25To44yrsHHInc125to150K"},"HHAgeHH25To44yrsHHInc150to200K",{"$f":"\"MOE \"&CX115","v":"MOE HHAgeHH25To44yrsHHInc150to200K"},"HHAge25To44yrsHHInc>200K",{"$f":"\"MOE \"&CZ115","v":"MOE HHAge25To44yrsHHInc>200K"},"HHAgeHH45To64yrs",{"$f":"\"MOE \"&DB115","v":"MOE HHAgeHH45To64yrs"},"HHAgeHH45To64yrsHHInc<10K",{"$f":"\"MOE \"&DD115","v":"MOE HHAgeHH45To64yrsHHInc<10K"},"HHAgeHH45To64yrsHHInc10to15K",{"$f":"\"MOE \"&DF115","v":"MOE HHAgeHH45To64yrsHHInc10to15K"},"HHAgeHH45To64yrsHHInc15to20K",{"$f":"\"MOE \"&DH115","v":"MOE HHAgeHH45To64yrsHHInc15to20K"},"HHAgeHH45To64yrsHHInc20to25K",{"$f":"\"MOE \"&DJ115","v":"MOE HHAgeHH45To64yrsHHInc20to25K"},"HHAgeHH45To64yrsHHInc25to30K",{"$f":"\"MOE \"&DL115","v":"MOE HHAgeHH45To64yrsHHInc25to30K"},"HHAgeHH45To64yrsHHInc30to35K",{"$f":"\"MOE \"&DN115","v":"MOE HHAgeHH45To64yrsHHInc30to35K"},"HHAgeHH45To64yrsHHInc35to40K",{"$f":"\"MOE \"&DP115","v":"MOE HHAgeHH45To64yrsHHInc35to40K"},"HHAgeHH45To64yrsHHInc40to45K",{"$f":"\"MOE \"&DR115","v":"MOE HHAgeHH45To64yrsHHInc40to45K"},"HHAgeHH45To64yrsHHInc45to50K",{"$f":"\"MOE \"&DT115","v":"MOE HHAgeHH45To64yrsHHInc45to50K"},"HHAgeHH45To64yrsHHInc50to60K",{"$f":"\"MOE \"&DV115","v":"MOE HHAgeHH45To64yrsHHInc50to60K"},"HHAgeHH45To64yrsHHInc60to75K",{"$f":"\"MOE \"&DX115","v":"MOE HHAgeHH45To64yrsHHInc60to75K"},"HHAgeHH45To64yrsHHInc75to100K",{"$f":"\"MOE \"&DZ115","v":"MOE HHAgeHH45To64yrsHHInc75to100K"},"HHAgeHH45To64yrsHHInc100to125K",{"$f":"\"MOE \"&EB115","v":"MOE HHAgeHH45To64yrsHHInc100to125K"},"HHAgeHH45To64yrsHHInc125to150K",{"$f":"\"MOE \"&ED115","v":"MOE HHAgeHH45To64yrsHHInc125to150K"},"HHAgeHH45To64yrsHHInc150to200K",{"$f":"\"MOE \"&EF115","v":"MOE HHAgeHH45To64yrsHHInc150to200K"},"HHAge45To64yrsHHInc>200K",{"$f":"\"MOE \"&EH115","v":"MOE HHAge45To64yrsHHInc>200K"},"HHAgeHH65yrsorOlder",{"$f":"\"MOE \"&EJ115","v":"MOE HHAgeHH65yrsorOlder"},"HHAgeHH65yrsorOlderHHInc<10K",{"$f":"\"MOE \"&EL115","v":"MOE HHAgeHH65yrsorOlderHHInc<10K"},"HHAgeHH65yrsorOlderHHInc10to15K",{"$f":"\"MOE \"&EN115","v":"MOE HHAgeHH65yrsorOlderHHInc10to15K"},"HHAgeHH65yrsorOlderHHInc15to20K",{"$f":"\"MOE \"&EP115","v":"MOE HHAgeHH65yrsorOlderHHInc15to20K"},"HHAgeHH65yrsorOlderHHInc20to25K",{"$f":"\"MOE \"&ER115","v":"MOE HHAgeHH65yrsorOlderHHInc20to25K"},"HHAgeHH65yrsorOlderHHInc25to30K",{"$f":"\"MOE \"&ET115","v":"MOE HHAgeHH65yrsorOlderHHInc25to30K"},"HHAgeHH65yrsorOlderHHInc30to35K",{"$f":"\"MOE \"&EV115","v":"MOE HHAgeHH65yrsorOlderHHInc30to35K"},"HHAgeHH65yrsorOlderHHInc35to40K",{"$f":"\"MOE \"&EX115","v":"MOE HHAgeHH65yrsorOlderHHInc35to40K"},"HHAgeHH65yrsorOlderHHInc40to45K",{"$f":"\"MOE \"&EZ115","v":"MOE HHAgeHH65yrsorOlderHHInc40to45K"},"HHAgeHH65yrsorOlderHHInc45to50K",{"$f":"\"MOE \"&FB115","v":"MOE HHAgeHH65yrsorOlderHHInc45to50K"},"HHAgeHH65yrsorOlderHHInc50to60K",{"$f":"\"MOE \"&FD115","v":"MOE HHAgeHH65yrsorOlderHHInc50to60K"},"HHAgeHH65yrsorOlderHHInc60to75K",{"$f":"\"MOE \"&FF115","v":"MOE HHAgeHH65yrsorOlderHHInc60to75K"},"HHAgeHH65yrsorOlderHHInc75to100K",{"$f":"\"MOE \"&FH115","v":"MOE HHAgeHH65yrsorOlderHHInc75to100K"},"HHAgeHH65yrsorOlderHHInc100to125K",{"$f":"\"MOE \"&FJ115","v":"MOE HHAgeHH65yrsorOlderHHInc100to125K"},"HHAgeHH65yrsorOlderHHInc125to150K",{"$f":"\"MOE \"&FL115","v":"MOE HHAgeHH65yrsorOlderHHInc125to150K"},"HHAgeHH65yrsorOlderHHInc150to200K",{"$f":"\"MOE \"&FN115","v":"MOE HHAgeHH65yrsorOlderHHInc150to200K"},"HHAge65yrsorOlderHHInc>200K",{"$f":"\"MOE \"&FP115","v":"MOE HHAge65yrsorOlderHHInc>200K"},"MedianHHInc",{"$f":"\"MOE \"&FR115","v":"MOE MedianHHInc"},"HH under 25 years",{"$f":"\"MOE \"&FT115","v":"MOE HH under 25 years"},"Householder 25 to 44 years",{"$f":"\"MOE \"&FV115","v":"MOE Householder 25 to 44 years"},"Householder 45 to 64 years",{"$f":"\"MOE \"&FX115","v":"MOE Householder 45 to 64 years"},"Householder 65 years and over",{"$f":"\"MOE \"&FZ115","v":"MOE Householder 65 years and over"}]
[{"$f":"VLOOKUP(DropDownList!$B$47,CntyQryCensus!$A$510:$DA$546,A$1)","v":"Atkinson"},2597,115,40,47,43,43,89,62,60,47,0,15,92,95,49,47,113,81,67,56,198,90,265,103,346,116,468,156,283,109,237,98,247,115,2597,115,0,15,0,15,0,15,0,15,0,15,0,15,0,15,0,15,0,15,0,15,0,15,0,15,0,15,0,15,0,15,0,15,0,15,553,106,0,15,16,28,0,15,0,15,0,15,57,87,0,15,37,37,0,15,46,58,45,42,53,43,87,68,81,53,65,46,66,58,1388,145,40,47,0,15,24,39,0,15,0,15,19,30,11,18,31,49,39,44,97,54,97,73,206,95,282,117,202,102,172,85,168,97,656,91,0,15,27,31,65,50,60,47,0,15,16,26,38,43,45,52,28,33,55,42,123,72,87,57,99,55,0,15,0,15,13,21,95341,16514,"-","**",117882,36607,107600,10605,59063,16449]
[]
["Number of Households by Income"]
["NAME","HHIncLessThn10k",{"$f":"\"MOE \"&B119","v":"MOE HHIncLessThn10k"},"HHInc10to15K",{"$f":"\"MOE \"&D119","v":"MOE HHInc10to15K"},"HHInc15to25K",{"$f":"\"MOE \"&F119","v":"MOE HHInc15to25K"},"HHInc25to35K",{"$f":"\"MOE \"&H119","v":"MOE HHInc25to35K"},"HHInc35to50K",{"$f":"\"MOE \"&J119","v":"MOE HHInc35to50K"},"HHInc50to75K",{"$f":"\"MOE \"&L119","v":"MOE HHInc50to75K"},"HHInc75to100K",{"$f":"\"MOE \"&N119","v":"MOE HHInc75to100K"},"HHInc100to150K",{"$f":"\"MOE \"&P119","v":"MOE HHInc100to150K"},"HHInc150to200K",{"$f":"\"MOE \"&R119","v":"MOE HHInc150to200K"},"HHIncOver200K",{"$f":"\"MOE \"&T119","v":"MOE HHIncOver200K"}]
[{"$f":"VLOOKUP(DropDownList!$B$47,CntyQryCensus!$A$510:$DA$546,A$1)","v":"Atkinson"},40,47,43,43,149,77.801028270839709,92,96.176920308356728,229,109.1146186356347,463,136.78084661238211,346,116,751,190.30764566879597,237,98,247,115]
[]
[]
["NAME","TotalPop",{"$f":"\"MOE \"&B123","v":"MOE TotalPop"},"Total Individuals living in Poverty",{"$f":"\"MOE \"&D123","v":"MOE Total Individuals living in Poverty"},"Under 5 yrs.",{"$f":"\"MOE \"&F123","v":"MOE Under 5 yrs."},"5 to 17 yrs.",{"$f":"\"MOE \"&H123","v":"MOE 5 to 17 yrs."},"18 to 64 yrs.",{"$f":"\"MOE \"&J123","v":"MOE 18 to 64 yrs."},"65 to 74 yrs.",{"$f":"\"MOE \"&L123","v":"MOE 65 to 74 yrs."},"75 yrs. & Over",{"$f":"\"MOE \"&N123","v":"MOE 75 yrs. & Over"},"Total Individuals  Not living Poverty",{"$f":"\"MOE \"&P123","v":"MOE Total Individuals  Not living Poverty"},"Under 5 yrs.",{"$f":"\"MOE \"&R123","v":"MOE Under 5 yrs."},"5 to 17 yrs.",{"$f":"\"MOE \"&T123","v":"MOE 5 to 17 yrs."},"18 to 64 yrs.",{"$f":"\"MOE \"&V123","v":"MOE 18 to 64 yrs."},"65 to 74 yrs.",{"$f":"\"MOE \"&X123","v":"MOE 65 to 74 yrs."},"75 yrs. & Over",{"$f":"\"MOE \"&Z123","v":"MOE 75 yrs. & Over"},"Total HH",{"$f":"\"MOE \"&AB123","v":"MOE Total HH"},"Total Households Below Poverty",{"$f":"\"MOE \"&AD123","v":"MOE Total Households Below Poverty"},"Family Households in Poverty",{"$f":"\"MOE \"&AF123","v":"MOE Family Households in Poverty"},"Married Couple Fam HH",{"$f":"\"MOE \"&AH123","v":"MOE Married Couple Fam HH"},"Other Family",{"$f":"\"MOE \"&AJ123","v":"MOE Other Family"},"Male Head of Family HH no wife",{"$f":"\"MOE \"&AL123","v":"MOE Male Head of Family HH no wife"},"Female Head of Family HH no husband",{"$f":"\"MOE \"&AN123","v":"MOE Female Head of Family HH no husband"},"Non-Family HH",{"$f":"\"MOE \"&AP123","v":"MOE Non-Family HH"},"Non-Family Male HH",{"$f":"\"MOE \"&AR123","v":"MOE Non-Family Male HH"},"Non-Family Female HH",{"$f":"\"MOE \"&AT123","v":"MOE Non-Family Female HH"},"Total Households at or Above Poverty",{"$f":"\"MOE \"&AV123","v":"MOE Total Households at or Above Poverty"},"Family Households above Poverty",{"$f":"\"MOE \"&AX123","v":"MOE Family Households above Poverty"},"Married Couple Fam HH",{"$f":"\"MOE \"&AZ123","v":"MOE Married Couple Fam HH"},"Other Family",{"$f":"\"MOE \"&BB123","v":"MOE Other Family"},"Male Head of Family HH no wife",{"$f":"\"MOE \"&BD123","v":"MOE Male Head of Family HH no wife"},"Female Head of Family HH no husband",{"$f":"\"MOE \"&BF123","v":"MOE Female Head of Family HH no husband"},"Non-Family HH",{"$f":"\"MOE \"&BH123","v":"MOE Non-Family HH"},"Non-Family Male HH",{"$f":"\"MOE \"&BJ123","v":"MOE Non-Family Male HH"},"Non-Family Female HH",{"$f":"\"MOE \"&BL123","v":"MOE Non-Family Female HH"},"Married Couple with Children Below Poverty",{"$f":"\"MOE \"&BN123","v":"MOE Married Couple with Children Below Poverty"},"Male HH with children below poverty",{"$f":"\"MOE \"&BP123","v":"MOE Male HH with children below poverty"},"Female HH with children below poverty",{"$f":"\"MOE \"&BR123","v":"MOE Female HH with children below poverty"},"Married Couple with Children At or Above Poverty",{"$f":"\"MOE \"&BT123","v":"MOE Married Couple with Children At or Above Poverty"},"Male HH with children at or above poverty",{"$f":"\"MOE \"&BV123","v":"MOE Male HH with children at or above poverty"},"Female HH with children at or above poverty",{"$f":"\"MOE \"&BX123","v":"MOE Female HH with children at or above poverty"}]
[{"$f":"VLOOKUP(DropDownList!$B$47,CntyQryCensus!$A$510:$DA$546,A$1)","v":"Atkinson"},28681,91,1155,288,0,49.244289008980523,137,76.039463438401512,730,200.59162494979694,122,61.619802012015583,166,96.005208192055917,27526,299,1125,216.81558984537989,4433,490.15915782529248,17872,788.55056908228778,2578,268.00186566514793,1518,235.74774654278247,528,174,147,69,96,55,0,20,51,36,0,20,51,36,381,145,156,82,225,118,10565,287,7733,266,6263,313,1470,270,398,173,1072,210,2832,353,2832,353,1354,234,40,38,0,20,51,36,2651,204,128,77,557,164]
[]
["Household Income By Tenure"]
["NAME","TotalOccHU",{"$f":"\"MOE \"&B127","v":"MOE TotalOccHU"},"OwnOccHU",{"$f":"\"MOE \"&D127","v":"MOE OwnOccHU"},"OOHUInc<5K",{"$f":"\"MOE \"&F127","v":"MOE OOHUInc<5K"},"OOHUInc5to10K",{"$f":"\"MOE \"&H127","v":"MOE OOHUInc5to10K"},"OOHUInc10to15K",{"$f":"\"MOE \"&J127","v":"MOE OOHUInc10to15K"},"OOHUInc15to20K",{"$f":"\"MOE \"&L127","v":"MOE OOHUInc15to20K"},"OOHUInc20to25K",{"$f":"\"MOE \"&N127","v":"MOE OOHUInc20to25K"},"OOHUInc25to35K",{"$f":"\"MOE \"&P127","v":"MOE OOHUInc25to35K"},"OOHUInc35to50K",{"$f":"\"MOE \"&R127","v":"MOE OOHUInc35to50K"},"OOHUInc50to75K",{"$f":"\"MOE \"&T127","v":"MOE OOHUInc50to75K"},"OOHUInc75to100K",{"$f":"\"MOE \"&V127","v":"MOE OOHUInc75to100K"},"OOHUInc100to150K",{"$f":"\"MOE \"&X127","v":"MOE OOHUInc100to150K"},"OOHUInc>150K",{"$f":"\"MOE \"&Z127","v":"MOE OOHUInc>150K"},"RentOccHU",{"$f":"\"MOE \"&AB127","v":"MOE RentOccHU"},"ROHUInc<5K",{"$f":"\"MOE \"&AD127","v":"MOE ROHUInc<5K"},"ROHUInc5to10K",{"$f":"\"MOE \"&AF127","v":"MOE ROHUInc5to10K"},"ROHUInc10to15K",{"$f":"\"MOE \"&AH127","v":"MOE ROHUInc10to15K"},"ROHUInc15to20K",{"$f":"\"MOE \"&AJ127","v":"MOE ROHUInc15to20K"},"ROHUInc20to25K",{"$f":"\"MOE \"&AL127","v":"MOE ROHUInc20to25K"},"ROHUInc25to35K",{"$f":"\"MOE \"&AN127","v":"MOE ROHUInc25to35K"},"ROHUInc35to50K",{"$f":"\"MOE \"&AP127","v":"MOE ROHUInc35to50K"},"ROHUInc50to75K",{"$f":"\"MOE \"&AR127","v":"MOE ROHUInc50to75K"},"ROHUInc75to100K",{"$f":"\"MOE \"&AT127","v":"MOE ROHUInc75to100K"},"ROHUInc100to150K",{"$f":"\"MOE \"&AV127","v":"MOE ROHUInc100to150K"},"ROHUInc>150K",{"$f":"\"MOE \"&AX127","v":"MOE ROHUInc>150K"},"Total OCC HUInc<5K",{"$f":"\"MOE \"&AZ127","v":"MOE Total OCC HUInc<5K"},"Total OCC HUInc5to10K",{"$f":"\"MOE \"&BB127","v":"MOE Total OCC HUInc5to10K"},"Total OCC HUInc10to15K",{"$f":"\"MOE \"&BD127","v":"MOE Total OCC HUInc10to15K"},"Total OCC HUInc15to20K",{"$f":"\"MOE \"&BF127","v":"MOE Total OCC HUInc15to20K"},"Total OCC HUInc20to25K",{"$f":"\"MOE \"&BH127","v":"MOE Total OCC HUInc20to25K"},"Total OCC HUInc25to35K",{"$f":"\"MOE \"&BJ127","v":"MOE Total OCC HUInc25to35K"},"Total OCC HUInc35to50K",{"$f":"\"MOE \"&BL127","v":"MOE Total OCC HUInc35to50K"},"Total OCC HUInc50to75K",{"$f":"\"MOE \"&BN127","v":"MOE Total OCC HUInc50to75K"},"Total OCC HUInc75to100K",{"$f":"\"MOE \"&BP127","v":"MOE Total OCC HUInc75to100K"},"Total OCC HUInc100to150K",{"$f":"\"MOE \"&BR127","v":"MOE Total OCC HUInc100to150K"},"Total OCC HUInc>150K",{"$f":"\"MOE \"&BT127","v":"MOE Total OCC HUInc>150K"},"MedHHInc",{"$f":"\"MOE \"&BV127","v":"MOE MedHHInc"},"MedOwnOccHHInc",{"$f":"\"MOE \"&BX127","v":"MOE MedOwnOccHHInc"},"MedRentOccHHInc",{"$f":"\"MOE \"&BZ127","v":"MOE MedRentOccHHInc"}]
[{"$f":"VLOOKUP(DropDownList!$B$47,CntyQryCensus!$A$510:$DA$546,A$1)","v":"Atkinson"},2597,115,2395,123,0,15,0,15,43,43,65,50,60,47,35,39,229,104,415,115,328,114,751,176,469,141,202,108,0,15,40,47,0,15,24,39,0,15,57,87,0,15,48,56,18,27,0,15,15,24,0,21.213203435596427,40,49.33558553417604,43,45.541190146942803,89,63.411355449950761,60,49.33558553417604,92,95.341491492424225,229,105.07616285342742,463,127.91012469699183,346,117.15374513859982,751,176.63804799646084,484,143.02796929272262,95341,16514,100750,10780,31623,27224]
[]
["Population Data"]
["NAME","Total Population","MOE Total Population","Under 15 Years","MOE Under 15 yrs.","15 to 24 yrs.","MOE 15 to 24 yrs.","25 to 34 yrs.","MOE 25 to 34 yrs.","35 to 44 yrs.","MOE 35 to 44 yrs.","45 to 54 yrs.","MOE 45 to 54 yrs.","55 to 64 yrs.","MOE 55 to 64 yrs.","65 to 74 yrs.","MOE 65 to 74 yrs.","Over 74 yrs. ","MOE Over 74 yrs. ","TotalHH","MOE TotalHH","FamilyHH","MOE FamilyHH","MarriedFamilyHH","MOE MarriedFamilyHH","SingleFamilyHH","MOE SingleFamilyHH","Sfamily-MaleHH","MOE Sfamily-MaleHH","Sfamily-FemaleHH","MOE Sfamily-FemaleHH","NonFamilyHH","MOE NonFamilyHH","NonFamilyHH-LivingAlone","MOE NonFamilyHH-LivingAlone","NonFamilyHH-NotLivingAlone","MOE NonFamilyHH-NotLivingAlone","PopRaceWhite","MOE PopRaceWhite","PopRaceBlack","MOE PopRaceBlack","PopRaceAmerican Indian","MOE PopRaceAmerican Indian","PopRaceAsian &Pacific Is.","MOE PopRaceAsian &Pacific Is.","PopRaceOther*","MOE PopRaceOther*","PopRaceHispanic or Latino:","MOE PopRaceHispanic or Latino:","MedianAgeTotalPop","MOE MedianAgeTotalPop","MedianAgeMale","MOE MedianAgeMale","MedianAgeFemale","MOE MedianAgeFemale","AvgHHSizeTotal","MOE AvgHHSizeTotal","AvgHHSizeFamilyHH","MOE AvgHHSizeFamilyHH","AvgHHSizeNonFamilyHH","MOE AvgHHSizeNonFamilyHH"]
[{"$f":"VLOOKUP(DropDownList!$B$47,CntyQryCensus!$A$510:$DA$546,A$1)","v":"Atkinson"},6788,19,1022,220.03636063160107,965,223.90846343986195,425,145.52319402761884,728,180.32470712578461,1295,214.79525134415798,1222,231.39792566053828,622,156.16017418023074,509,171.79348066792289,2597,115,2033,101,1842,137,191,94,33,40,158,87,564,152,504,150,60,59,6553,168,0,15,0,15,0,21.213203435596427,19,26.627053911388696,216,171,47.2,2,47.7,3.6,47,1.9,2.6134000770119368,0.12,3.030988686669946,0.17393817153950464,1.1081560283687943,0.42938539643174739]
[]
["Nativity and Prior Place of Residence"]
["NAME","TotalPop",{"$f":"\"MOE \"&B135","v":"MOE TotalPop"},"Native:",{"$f":"\"MOE \"&D135","v":"MOE Native:"},"NatBornInStateOfResidence",{"$f":"\"MOE \"&F135","v":"MOE NatBornInStateOfResidence"},"Born in other state in the United States:",{"$f":"\"MOE \"&H135","v":"MOE Born in other state in the United States:"},"Northeast",{"$f":"\"MOE \"&J135","v":"MOE Northeast"},"Midwest",{"$f":"\"MOE \"&L135","v":"MOE Midwest"},"South",{"$f":"\"MOE \"&N135","v":"MOE South"},"West",{"$f":"\"MOE \"&P135","v":"MOE West"},"Born outside the United States:",{"$f":"\"MOE \"&R135","v":"MOE Born outside the United States:"},"Puerto Rico",{"$f":"\"MOE \"&T135","v":"MOE Puerto Rico"},"U.S. Island Areas",{"$f":"\"MOE \"&V135","v":"MOE U.S. Island Areas"},"Born abroad of American parent(s)",{"$f":"\"MOE \"&X135","v":"MOE Born abroad of American parent(s)"},"Foreign born:",{"$f":"\"MOE \"&Z135","v":"MOE Foreign born:"},"Naturalized U.S. citizen",{"$f":"\"MOE \"&AB135","v":"MOE Naturalized U.S. citizen"},"Not a U.S. citizen",{"$f":"\"MOE \"&AD135","v":"MOE Not a U.S. citizen"},"CurrentResidenceTotal:",{"$f":"\"MOE \"&AF135","v":"MOE CurrentResidenceTotal:"},"SameHouse:",{"$f":"\"MOE \"&AH135","v":"MOE SameHouse:"},"DifferentHouse:",{"$f":"\"MOE \"&AJ135","v":"MOE DifferentHouse:"},"DiffHouseInNH",{"$f":"\"MOE \"&AL135","v":"MOE DiffHouseInNH"},"DiffHouseInNHSameCnty",{"$f":"\"MOE \"&AN135","v":"MOE DiffHouseInNHSameCnty"},"DiffHouseInNHDiffCnty",{"$f":"\"MOE \"&AP135","v":"MOE DiffHouseInNHDiffCnty"},"DiffHouseInDiffState",{"$f":"\"MOE \"&AR135","v":"MOE DiffHouseInDiffState"},"DiffHouseInElsewhere",{"$f":"\"MOE \"&AT135","v":"MOE DiffHouseInElsewhere"}]
[{"$f":"VLOOKUP(DropDownList!$B$47,CntyQryCensus!$A$510:$DA$546,A$1)","v":"Atkinson"},28841,26,26402,460,3170,479,22901,600,21013,609,451,146,856,272,581,153,331,139,88,66,8,12,235,119,2439,461,1429,292,1010,340,28522,101,25905,524,2617,492.42765966180252,1401,313.08784709726439,1195,290,206,118,1108,365,108,106]
[]
["School Enrollment - Education"]
["NAME","Total Pop 3 Years and Older","MOE Total Pop 3 Years and Older","SchEnrlPop3yrOver",{"$f":"\"MOE \"&D139","v":"MOE SchEnrlPop3yrOver"},"TotalEnrollNursy&Kinder",{"$f":"\"MOE \"&F139","v":"MOE TotalEnrollNursy&Kinder"},"NurserSchEnrl",{"$f":"\"MOE \"&H139","v":"MOE NurserSchEnrl"},"KinderSchEnrl",{"$f":"\"MOE \"&J139","v":"MOE KinderSchEnrl"},"ElemSchEnrl (1-8)",{"$f":"\"MOE \"&L139","v":"MOE ElemSchEnrl (1-8)"},"HighSchEnrl(9-12)",{"$f":"\"MOE \"&N139","v":"MOE HighSchEnrl(9-12)"},"TotalElementry&HSEnroll",{"$f":"\"MOE \"&P139","v":"MOE TotalElementry&HSEnroll"},"CollGradSchEnrl",{"$f":"\"MOE \"&R139","v":"MOE CollGradSchEnrl"},"PopNotEnrolled","MOE PopNotEnrolled","Pop25yrsOver",{"$f":"\"MOE \"&V139","v":"MOE Pop25yrsOver"},"EduAtain<9grd",{"$f":"\"MOE \"&X139","v":"MOE EduAtain<9grd"},"EduAtainHSnoDip",{"$f":"\"MOE \"&Z139","v":"MOE EduAtainHSnoDip"},"EduAtainHSgrad",{"$f":"\"MOE \"&AB139","v":"MOE EduAtainHSgrad"},"EduAtainCollNoDeg",{"$f":"\"MOE \"&AD139","v":"MOE EduAtainCollNoDeg"},"EduAtainAssocDeg",{"$f":"\"MOE \"&AF139","v":"MOE EduAtainAssocDeg"},"EduAtainBachDeg",{"$f":"\"MOE \"&AH139","v":"MOE EduAtainBachDeg"},"EduAtainGradProfDeg",{"$f":"\"MOE \"&AJ139","v":"MOE EduAtainGradProfDeg"}]
[{"$f":"VLOOKUP(DropDownList!$B$47,CntyQryCensus!$A$510:$DA$546,A$1)","v":"Atkinson"},28134,177,6951,418,664,160,409,128,255,96,2786,383.34579689883128,1581,232,4367,448.08258167440522,1920,307.35321699959479,21183,374,514,171.93894265116325,989,202.96797776989354,6701,482.59714048054616,3939,406.44310794993191,1818,221.14474897677312,4558,448.26443088873333,1791,275.19992732557182,952,223.21066282774217]
[]
["Occupied Owner Housing Value"]
["NAME","Estimate; Total:","Margin of Error; Total:","Estimate; Total: - Less than $10,000","Margin of Error; Total: - Less than $10,000","Estimate; Total: - $10,000 to $14,999","Margin of Error; Total: - $10,000 to $14,999","Estimate; Total: - $15,000 to $19,999","Margin of Error; Total: - $15,000 to $19,999","Estimate; Total: - $20,000 to $24,999","Margin of Error; Total: - $20,000 to $24,999","Estimate; Total: - $25,000 to $29,999","Margin of Error; Total: - $25,000 to $29,999","Estimate; Total: - $30,000 to $34,999","Margin of Error; Total: - $30,000 to $34,999","Estimate; Total: - $35,000 to $39,999","Margin of Error; Total: - $35,000 to $39,999","Estimate; Total: - $40,000 to $49,999","Margin of Error; Total: - $40,000 to $49,999","Estimate; Total: - $50,000 to $59,999","Margin of Error; Total: - $50,000 to $59,999","Estimate; Total: - $60,000 to $69,999","Margin of Error; Total: - $60,000 to $69,999","Estimate; Total: - $70,000 to $79,999","Margin of Error; Total: - $70,000 to $79,999","Estimate; Total: - $80,000 to $89,999","Margin of Error; Total: - $80,000 to $89,999","Estimate; Total: - $90,000 to $99,999","Margin of Error; Total: - $90,000 to $99,999","Estimate; Total: - $100,000 to $124,999","Margin of Error; Total: - $100,000 to $124,999","Estimate; Total: - $125,000 to $149,999","Margin of Error; Total: - $125,000 to $149,999","Estimate; Total: - $150,000 to $174,999","Margin of Error; Total: - $150,000 to $174,999","Estimate; Total: - $175,000 to $199,999","Margin of Error; Total: - $175,000 to $199,999","Estimate; Total: - $200,000 to $249,999","Margin of Error; Total: - $200,000 to $249,999","Estimate; Total: - $250,000 to $299,999","Margin of Error; Total: - $250,000 to $299,999","Estimate; Total: - $300,000 to $399,999","Margin of Error; Total: - $300,000 to $399,999","Estimate; Total: - $400,000 to $499,999","Margin of Error; Total: - $400,000 to $499,999","Estimate; Total: - $500,000 to $749,999","Margin of Error; Total: - $500,000 to $749,999","Estimate; Total: - $750,000 to $999,999","Margin of Error; Total: - $750,000 to $999,999","Estimate; Total: - $1,000,000 to $1,499,999","Margin of Error; Total: - $1,000,000 to $1,499,999","Estimate; Total: - $1,500,000 to $1,999,999","Margin of Error; Total: - $1,500,000 to $1,999,999","Estimate; Total: - $2,000,000 or more","Margin of Error; Total: - $2,000,000 or more","MedianOwnOCCHomeValue","MOE MedianOwnOCCHomeValue","OnwerOccHsU","MOE OnwerOccHsU","OwnerCosts>20PctHHInc","MOE OwnerCosts>20PctHHInc","OwnerCosts20to29.9PctHHInc","MOE OwnerCosts20to29.9PctHHInc","OwnerCosts<30PctHHInc","MOE OwnerCosts<30PctHHInc","OwnerCosts>30PctHHInc","MOE OwnerCosts>30PctHHInc","OwnerCosts30to34.9PctHHInc","MOE OwnerCosts30to34.9PctHHInc","OwnerCosts<35PctHHInc","MOE OwnerCosts<35PctHHInc","OwnerCosts>35PctHHInc","MOE OwnerCosts>35PctHHInc","OwnerCosts>50PctHHInc","MOE OwnerCosts>50PctHHInc","OwnerCostsPctNotcomputed","MOE OwnerCostsPctNotcomputed","OwnerOHUHhInc<20k","MOE OwnerOHUHhInc<20k","OwnerOHUHhInc<20kHCosts<20pct","MOE OwnerOHUHhInc<20kHCosts<20pct","OwnerOHUHhInc<20kHCosts20to29pct","MOE OwnerOHUHhInc<20kHCosts20to29pct","OwnerOHUHhInc>20kHCosts30pct","MOE OwnerOHUHhInc>20kHCosts30pct","OwnerOHUHhInc20kTo34999","MOE OwnerOHUHhInc20kTo34999","OwnerOHUHhInc20kTo34999HCosts<20pct","MOE OwnerOHUHhInc20kTo34999HCosts<20pct","OwnerOHUHhInc20kTo34999HCosts20to29pct","MOE OwnerOHUHhInc20kTo34999HCosts20to29pct","OwnerOHUHhInc20kTo34999HCosts30pct","MOE OwnerOHUHhInc20kTo34999HCosts30pct","OwnerOHUHhInc35kTo49999","MOE OwnerOHUHhInc35kTo49999","OwnerOHUHhInc35kTo49999HCosts<20pct","MOE OwnerOHUHhInc35kTo49999HCosts<20pct","OwnerOHUHhInc35kTo49999HCosts20to29pct","MOE OwnerOHUHhInc35kTo49999HCosts20to29pct","OwnerOHUHhInc35kTo49999HCosts30pct","MOE OwnerOHUHhInc35kTo49999HCosts30pct","OwnerOHUHhInc50kTo74999","MOE OwnerOHUHhInc50kTo74999","OwnerOHUHhInc50kTo74999HCosts<20pct","MOE OwnerOHUHhInc50kTo74999HCosts<20pct","OwnerOHUHhInc50kTo74999HCosts20to29pct","MOE OwnerOHUHhInc50kTo74999HCosts20to29pct","OwnerOHUHhInc50kTo74999HCosts30pct","MOE OwnerOHUHhInc50kTo74999HCosts30pct","OwnerOHUHhInc>75000","MOE OwnerOHUHhInc>75000","OwnerOHUHhInc>75000HCosts<20pct","MOE OwnerOHUHhInc>75000HCosts<20pct","OwnerOHUHhInc>75000HCosts20to29pct","MOE OwnerOHUHhInc>75000HCosts20to29pct","OwnerOHUHhInc>75000HCosts30pct","MOE OwnerOHUHhInc>75000HCosts30pct","ZeroOrNegativeIncome","MOE ZeroOrNegativeIncome"]
[{"$f":"VLOOKUP(DropDownList!$B$47,CntyQryCensus!$A$510:$DA$546,A$1)","v":"Atkinson"},8451,334,47,30,45,42,17,26,53,37,8,13,64,54,32,30,29,33,45,37,74,49,129,64,75,63,55,40,154,79,181,100,254,98,470,156,1438,229,1631,237,2232,304,789,189,434,114,112,64,83,81,null,null,null,null,282400,8390,8451,334,3297,349.39232962387712,2293,328.22248551858843,5590,479.37980766819953,2804,373.69506285205318,813,204.47249203743763,6403,521.16600042596792,1991,312.79226333143214,1027,225.24875138388668,57,38.948684188300895,8451,334,494,148,24,27,17,18,453,142,726,169,10,15,172,80,544,148,964,205,168,74,296,128,500,156,1211,212,339,104,194,88,678,177,4999,319,2756,287,1614,235,629,180,57,39]
[]
["Occupied Rental Housing Value"]
["NAME","RntrOccHU","MOE RntrOccHU","RntrOccHUwRent","MOE RntrOccHUwRent","ROHUGRent<100","MOE ROHUGRent<100","ROHUGRent100to149","MOE ROHUGRent100to149","ROHUGRent150to199","MOE ROHUGRent150to199","ROHUGRent200to249","MOE ROHUGRent200to249","ROHUGRent250to299","MOE ROHUGRent250to299","ROHUGRent300to349","MOE ROHUGRent300to349","ROHUGRent350to399","MOE ROHUGRent350to399","ROHUGRent400to449","MOE ROHUGRent400to449","ROHUGRent450to499","MOE ROHUGRent450to499","ROHUGRent500to549","MOE ROHUGRent500to549","ROHUGRent550to599","MOE ROHUGRent550to599","ROHUGRent600to649","MOE ROHUGRent600to649","ROHUGRent650to699","MOE ROHUGRent650to699","ROHUGRent700to749","MOE ROHUGRent700to749","ROHUGRent750to799","MOE ROHUGRent750to799","ROHUGRent800to899","MOE ROHUGRent800to899","ROHUGRent900to999","MOE ROHUGRent900to999","ROHUGRent1000to1249","MOE ROHUGRent1000to1249","ROHUGRent1250to1499","MOE ROHUGRent1250to1499","ROHUGRent1500to1999","MOE ROHUGRent1500to1999","ROHUGRent2000-2499","MOE ROHUGRent2000-2499","ROHUGRent2500-2999","MOE ROHUGRent2500-2999","ROHUGRent3000-3499","MOE ROHUGRent3000-3499","ROHUGRent3500<","MOE ROHUGRent3500<","ROHUNoGRent","MOE ROHUNoGRent","MedianGrossRnt","MOE MedianGrossRnt","H73RenterOccHU","MOE H73RenterOccHU","H73ROHUHhInc<10k","MOE H73ROHUHhInc<10k","H73ROHUHhInc<10kRnt<20pct","MOE H73ROHUHhInc<10kRnt<20pct","H73ROHUHhInc<10kRnt20to25pct","MOE H73ROHUHhInc<10kRnt20to25pct","H73ROHUHhInc<10kRnt25to30pct","MOE H73ROHUHhInc<10kRnt25to30pct","H73ROHUHhInc<10kRnt30to35pct","MOE H73ROHUHhInc<10kRnt30to35pct","H73ROHUHhInc<10kRnt35to39.9","MOE H73ROHUHhInc<10kRnt35to39.9","H73ROHUHhInc<10kRnt40to49.9","MOE H73ROHUHhInc<10kRnt40to49.9","H73ROHUHhInc<10kRnt>50pct","MOE H73ROHUHhInc<10kRnt>50pct","H73ROHUHhInc<10kPctNotComput","MOE H73ROHUHhInc<10kPctNotComput","H73ROHUHhInc10to20k","MOE H73ROHUHhInc10to20k","H73ROHUHhInc10to20kRnt<20pct","MOE H73ROHUHhInc10to20kRnt<20pct","H73ROHUHhInc10to20kRnt20to25pct","MOE H73ROHUHhInc10to20kRnt20to25pct","H73ROHUHhInc10to20kRnt25to30pct","MOE H73ROHUHhInc10to20kRnt25to30pct","H73ROHUHhInc10to20kRnt30to35pct","MOE H73ROHUHhInc10to20kRnt30to35pct","H73ROHUHhInc10to20kRnt35to39.9","MOE H73ROHUHhInc10to20kRnt35to39.9","H73ROHUHhInc10to20kRnt40to49.9","MOE H73ROHUHhInc10to20kRnt40to49.9","H73ROHUHhInc10to20kRnt>50pct","MOE H73ROHUHhInc10to20kRnt>50pct","H73ROHUHhInc10to20kRntPctNC","MOE H73ROHUHhInc10to20kRntPctNC","H73ROHUHhInc20to34.9k","MOE H73ROHUHhInc20to34.9k","H73ROHUHhInc20to34.9kRnt<20pct","MOE H73ROHUHhInc20to34.9kRnt<20pct","H73ROHUHhInc20to34.9kRnt20to25pct","MOE H73ROHUHhInc20to34.9kRnt20to25pct","H73ROHUHhInc20to34.9kRnt25to30pct","MOE H73ROHUHhInc20to34.9kRnt25to30pct","H73ROHUHhInc20to34.9kRnt30to35pct","MOE H73ROHUHhInc20to34.9kRnt30to35pct","H73ROHUHhInc20to34.9kRnt35to39.9","MOE H73ROHUHhInc20to34.9kRnt35to39.9","H73ROHUHhInc20to34.9kRnt40to49.9","MOE H73ROHUHhInc20to34.9kRnt40to49.9","H73ROHUHhInc20to34.9kRnt>50pct","MOE H73ROHUHhInc20to34.9kRnt>50pct","H73ROHUHhInc20to34.9kRntPctNC","MOE H73ROHUHhInc20to34.9kRntPctNC","H73ROHUHhInc35to49.9k","MOE H73ROHUHhInc35to49.9k","H73ROHUHhInc35to49.9kRnt<20pct","MOE H73ROHUHhInc35to49.9kRnt<20pct","H73ROHUHhInc35to49.9kRnt20to25pct","MOE H73ROHUHhInc35to49.9kRnt20to25pct","H73ROHUHhInc35to49.9kRnt25to30pct","MOE H73ROHUHhInc35to49.9kRnt25to30pct","H73ROHUHhInc35to49.9kRnt30to35pct","MOE H73ROHUHhInc35to49.9kRnt30to35pct","H73ROHUHhInc35to49.9kRnt35to39.9","MOE H73ROHUHhInc35to49.9kRnt35to39.9","H73ROHUHhInc35to49.9kRnt40to49.9","MOE H73ROHUHhInc35to49.9kRnt40to49.9","H73ROHUHhInc35to49.9kRnt>50pct","MOE H73ROHUHhInc35to49.9kRnt>50pct","H73ROHUHhInc35to49.9kRntPctNC","MOE H73ROHUHhInc35to49.9kRntPctNC","H73ROHUHhInc50to74.9k","MOE H73ROHUHhInc50to74.9k","H73ROHUHhInc50to74.9kRnt<20pct","MOE H73ROHUHhInc50to74.9kRnt<20pct","H73ROHUHhInc50to74.9kRnt20to25pct","MOE H73ROHUHhInc50to74.9kRnt20to25pct","H73ROHUHhInc50to74.9kRnt25to30pct","MOE H73ROHUHhInc50to74.9kRnt25to30pct","H73ROHUHhInc50to74.9kRnt30to35pct","MOE H73ROHUHhInc50to74.9kRnt30to35pct","H73ROHUHhInc50to74.9kRnt35to39.9","MOE H73ROHUHhInc50to74.9kRnt35to39.9","H73ROHUHhInc50to74.9kRnt40to49.9","MOE H73ROHUHhInc50to74.9kRnt40to49.9","H73ROHUHhInc50to74.9kRnt>50pct","MOE H73ROHUHhInc50to74.9kRnt>50pct","H73ROHUHhInc50to74.9kRntPctNC","MOE H73ROHUHhInc50to74.9kRntPctNC","H73ROHUHhInc75to99.9k","MOE H73ROHUHhInc75to99.9k","H73ROHUHhInc75to99.9kRnt<20pct","MOE H73ROHUHhInc75to99.9kRnt<20pct","H73ROHUHhInc75to99.9kRnt20to25pct","MOE H73ROHUHhInc75to99.9kRnt20to25pct","H73ROHUHhInc75to99.9kRnt25to30pct","MOE H73ROHUHhInc75to99.9kRnt25to30pct","H73ROHUHhInc75to99.9kRnt30to35pct","MOE H73ROHUHhInc75to99.9kRnt30to35pct","H73ROHUHhInc75to99.9kRnt35to39.9","MOE H73ROHUHhInc75to99.9kRnt35to39.9","H73ROHUHhInc75to99.9kRnt40to49.9","MOE H73ROHUHhInc75to99.9kRnt40to49.9","H73ROHUHhInc75to99.9kRnt>50pct","MOE H73ROHUHhInc75to99.9kRnt>50pct","H73ROHUHhInc75to99.9kRntPctNC","MOE H73ROHUHhInc75to99.9kRntPctNC","H73ROHUHhInc>100k","MOE H73ROHUHhInc>100k","H73ROHUHhInc>100kRnt<20pct","MOE H73ROHUHhInc>100kRnt<20pct","H73ROHUHhInc>100kRnt20to25pct","MOE H73ROHUHhInc>100kRnt20to25pct","H73ROHUHhInc>100kRnt25to30pct","MOE H73ROHUHhInc>100kRnt25to30pct","H73ROHUHhInc>100kRnt30to35pct","MOE H73ROHUHhInc>100kRnt30to35pct","H73ROHUHhInc>100kRnt35to39.9","MOE H73ROHUHhInc>100kRnt35to39.9","H73ROHUHhInc>100kRnt40to49.9","MOE H73ROHUHhInc>100kRnt40to49.9","H73ROHUHhInc>100kRnt>50pct","MOE H73ROHUHhInc>100kRnt>50pct","H73ROHUHhInc>100kRntPctNC","MOE H73ROHUHhInc>100kRntPctNC"]
[{"$f":"VLOOKUP(DropDownList!$B$47,CntyQryCensus!$A$510:$DA$546,A$1)","v":"Atkinson"},211,92,211,92,0,16,0,16,0,16,0,16,0,16,0,16,0,16,0,16,0,16,34,54,0,16,0,16,0,16,0,16,0,16,33,52,22,34,8,14,9,14,19,30,80,66,6,12,1066,36,2642,297,108,82,18,28,0,20,0,20,0,20,0,20,0,20,82,76,8,13,324,115,0,20,30,34,16,25,48,76,0,20,57,71,161,91,12,20,346,114,0,20,16,26,15,24,0,20,62,52,93,59,149,73,11,19,590,168,35,37,42,35,165,88,110,77,134,97,62,79,42,43,0,20,564,163,135,78,241,99,137,107,0,20,51,77,0,20,0,20,0,20,439,173,271,128,70,59,22,26,7,12,0,20,15,25,0,20,54,82,271,134,195,110,0,20,0,20,0,20,0,20,0,20,0,20,76,84,0,16,0,16,0,16]
[]
[]
[]
[]
[]
["Occupied Rental Housing Cost Burdern All Incomes"]
["NAME","RenterOccHsU",{"$f":"\"MOE \"&B155","v":"MOE RenterOccHsU"},"GRnt<20PctHHInc",{"$f":"\"MOE \"&D155","v":"MOE GRnt<20PctHHInc"},"GRnt20to249PctHHInc",{"$f":"\"MOE \"&F155","v":"MOE GRnt20to249PctHHInc"},"GRnt25to29.9PctHHInc",{"$f":"\"MOE \"&H155","v":"MOE GRnt25to29.9PctHHInc"},"GRnt<30PctHHInc",{"$f":"\"MOE \"&J155","v":"MOE GRnt<30PctHHInc"},"GRnt>30PctHHInc",{"$f":"\"MOE \"&L155","v":"MOE GRnt>30PctHHInc"},"GRnt30to349PctHHInc",{"$f":"\"MOE \"&N155","v":"MOE GRnt30to349PctHHInc"},"GRnt<35PctHHInc",{"$f":"\"MOE \"&P155","v":"MOE GRnt<35PctHHInc"},"GRnt>35PctHHInc",{"$f":"\"MOE \"&R155","v":"MOE GRnt>35PctHHInc"},"GRnt>50PctHHInc",{"$f":"\"MOE \"&T155","v":"MOE GRnt>50PctHHInc"},"HCB Not Calculated",{"$f":"\"MOE \"&V155","v":"MOE HCB Not Calculated"}]
[{"$f":"VLOOKUP(DropDownList!$B$47,CntyQryCensus!$A$510:$DA$552,A$1)","v":"Atkinson"},2642,297,654,180.78163623554246,399,122,355,134,1408,255.9726547895302,1073,263.03611919278308,165,108,1573,277.82368509542164,908,239.84161440417299,434,154,161,90]
[]
["Income By Household Type and Tenure"]
["NAME","TotalFamilyHouseholds",{"$f":"\"MOE \"&B159","v":"MOE TotalFamilyHouseholds"},"FamInc<10K",{"$f":"\"MOE \"&D159","v":"MOE FamInc<10K"},"FamInc10to15K",{"$f":"\"MOE \"&F159","v":"MOE FamInc10to15K"},"FamInc15to20K",{"$f":"\"MOE \"&H159","v":"MOE FamInc15to20K"},"FamInc20to25K",{"$f":"\"MOE \"&J159","v":"MOE FamInc20to25K"},"FamInc25to30K",{"$f":"\"MOE \"&L159","v":"MOE FamInc25to30K"},"FamInc30to35K",{"$f":"\"MOE \"&N159","v":"MOE FamInc30to35K"},"FamInc35to40K",{"$f":"\"MOE \"&P159","v":"MOE FamInc35to40K"},"FamInc40to45K",{"$f":"\"MOE \"&R159","v":"MOE FamInc40to45K"},"FamInc45to50K",{"$f":"\"MOE \"&T159","v":"MOE FamInc45to50K"},"FamInc50to60K",{"$f":"\"MOE \"&V159","v":"MOE FamInc50to60K"},"FamInc60to75K",{"$f":"\"MOE \"&X159","v":"MOE FamInc60to75K"},"FamInc75to100K",{"$f":"\"MOE \"&Z159","v":"MOE FamInc75to100K"},"FamInc100to125K",{"$f":"\"MOE \"&AB159","v":"MOE FamInc100to125K"},"FamInc125to150K",{"$f":"\"MOE \"&AD159","v":"MOE FamInc125to150K"},"FamInc150to200K",{"$f":"\"MOE \"&AF159","v":"MOE FamInc150to200K"},"FamInc>200K",{"$f":"\"MOE \"&AH159","v":"MOE FamInc>200K"},"MedFamInc",{"$f":"\"MOE \"&AJ159","v":"MOE MedFamInc"},"TotalNonNonFamilyHouseholds",{"$f":"\"MOE \"&AL159","v":"MOE TotalNonNonFamilyHouseholds"},"NonFamInc<10K",{"$f":"\"MOE \"&AN159","v":"MOE NonFamInc<10K"},"NonFamInc10to15K",{"$f":"\"MOE \"&AP159","v":"MOE NonFamInc10to15K"},"NonFamInc15to20K",{"$f":"\"MOE \"&AR159","v":"MOE NonFamInc15to20K"},"NonFamInc20to25K",{"$f":"\"MOE \"&AT159","v":"MOE NonFamInc20to25K"},"NonFamInc25to30K",{"$f":"\"MOE \"&AV159","v":"MOE NonFamInc25to30K"},"NonFamInc30to35K",{"$f":"\"MOE \"&AX159","v":"MOE NonFamInc30to35K"},"NonFamInc35to40K",{"$f":"\"MOE \"&AZ159","v":"MOE NonFamInc35to40K"},"NonFamInc40to45K",{"$f":"\"MOE \"&BB159","v":"MOE NonFamInc40to45K"},"NonFamInc45to50K",{"$f":"\"MOE \"&BD159","v":"MOE NonFamInc45to50K"},"NonFamInc50to60K",{"$f":"\"MOE \"&BF159","v":"MOE NonFamInc50to60K"},"NonFamInc60to75K",{"$f":"\"MOE \"&BH159","v":"MOE NonFamInc60to75K"},"NonFamInc75to100K",{"$f":"\"MOE \"&BJ159","v":"MOE NonFamInc75to100K"},"NonFamInc100to125K",{"$f":"\"MOE \"&BL159","v":"MOE NonFamInc100to125K"},"NonFamInc125to150K",{"$f":"\"MOE \"&BN159","v":"MOE NonFamInc125to150K"},"NonFamInc150to200K",{"$f":"\"MOE \"&BP159","v":"MOE NonFamInc150to200K"},"NonFamInc>200K",{"$f":"\"MOE \"&BR159","v":"MOE NonFamInc>200K"},"MedNonFamInc",{"$f":"\"MOE \"&BT159","v":"MOE MedNonFamInc"},"PerCapitaIncome","MOE PerCapitaIncome"]
[{"$f":"VLOOKUP(DropDownList!$B$47,CntyQryCensus!$A$510:$DA$552,A$1)","v":"Atkinson"},2033,101,0,15,30,37,16,27,16,26,0,15,35,39,36,43,80,75,20,31,150,81,215,91,303,106,399,150,262,108,254,100,217,121,105799,7016,564,152,40,47,13,20,73,56,44,40,0,15,57,87,13,21,33,36,47,47,48,38,50,52,43,40,69,65,21,33,0,15,13,21,null,null,46500,13893]
[]
[]
[]
["2010 Census"]
[]
["TownName","LOGRECNO","COUNTY","TotalPop","TotalPop1Race","TotalPopWhite","TotalPopAfricanAmerican","TotalPopAmericanIndAlaska","TotalPopAsian","TotalPopNativeHawaiianPIsland","TotalPopSomeOtherRace","TotalPopTwoOrMoreRaces","TotalPopHispanicLatino","TotalNonHispanicLatino","TotPopUnder15yrs","TotPop15to24yrs","TotPop25to34yrs","TotPop35to44yrs","TotPop45to54yrs","TotPop55to64yrs","TotPop65to74yrs","TotPopOver74yrs","MedianAge","MedianAgeMale","MedianAgeFemale","TotalHH","TotalPopInHouseholds","TotalPopInFamilyHH","TotalPopInNonFamilyHH","AvgHHSize","TotalFamilyHH","TotalFamilyHHSpouse","TotalSingleParentHH","TotalNonFamilyHH","AvgFamilyHHSize","AvgNonFamilyHHSize","AverageHHSizeOwnerOccupied","AverageHHSizeRentalOccupied","TotalHousingUnits","TotalOccupiedHU","TotalOwnerOccupiedHUs","TotalRentalOccupiedHU","TotalVacantHU","VacantHUForRent","VacantHURentNotOccupied","VacantHUForSale","VacantHUsSoldNotOccupied","VacantHUSeasonalRecreational","VacantHUsAllOtherVacants","HomeOwnerVacancyRate","HomeRentalVacancyRate","Total HH","Total Single Family HU","Total Multi-Family HU","Total Manufacture HU"]
[{"$f":"VLOOKUP(DropDownList!$B$47,CntyQryCensus!$A$551:$DA$587,A$1)","v":"Atkinson"},{"$f":"VLOOKUP(DropDownList!$B$47,CntyQryCensus!$A$551:$DA$587,B$1)","v":"0000179"},{"$f":"VLOOKUP(DropDownList!$B$47,CntyQryCensus!$A$551:$DA$587,C$1)","v":"015"},{"$f":"VLOOKUP(DropDownList!$B$47,CntyQryCensus!$A$551:$DA$587,D$1)","v":6751},{"$f":"VLOOKUP(DropDownList!$B$47,CntyQryCensus!$A$551:$DA$587,E$1)","v":6701},{"$f":"VLOOKUP(DropDownList!$B$47,CntyQryCensus!$A$551:$DA$587,F$1)","v":6583},{"$f":"VLOOKUP(DropDownList!$B$47,CntyQryCensus!$A$551:$DA$587,G$1)","v":34},{"$f":"VLOOKUP(DropDownList!$B$47,CntyQryCensus!$A$551:$DA$587,H$1)","v":3},{"$f":"VLOOKUP(DropDownList!$B$47,CntyQryCensus!$A$551:$DA$587,I$1)","v":64},{"$f":"VLOOKUP(DropDownList!$B$47,CntyQryCensus!$A$551:$DA$587,J$1)","v":1},{"$f":"VLOOKUP(DropDownList!$B$47,CntyQryCensus!$A$551:$DA$587,K$1)","v":16},{"$f":"VLOOKUP(DropDownList!$B$47,CntyQryCensus!$A$551:$DA$587,L$1)","v":50},{"$f":"VLOOKUP(DropDownList!$B$47,CntyQryCensus!$A$551:$DA$587,M$1)","v":96},{"$f":"VLOOKUP(DropDownList!$B$47,CntyQryCensus!$A$551:$DA$587,N$1)","v":6655},{"$f":"VLOOKUP(DropDownList!$B$47,CntyQryCensus!$A$551:$DA$587,O$1)","v":1129},{"$f":"VLOOKUP(DropDownList!$B$47,CntyQryCensus!$A$551:$DA$587,P$1)","v":709},{"$f":"VLOOKUP(DropDownList!$B$47,CntyQryCensus!$A$551:$DA$587,Q$1)","v":416},{"$f":"VLOOKUP(DropDownList!$B$47,CntyQryCensus!$A$551:$DA$587,R$1)","v":894},{"$f":"VLOOKUP(DropDownList!$B$47,CntyQryCensus!$A$551:$DA$587,S$1)","v":1289},{"$f":"VLOOKUP(DropDownList!$B$47,CntyQryCensus!$A$551:$DA$587,T$1)","v":1178},{"$f":"VLOOKUP(DropDownList!$B$47,CntyQryCensus!$A$551:$DA$587,U$1)","v":687},{"$f":"VLOOKUP(DropDownList!$B$47,CntyQryCensus!$A$551:$DA$587,V$1)","v":449},{"$f":"VLOOKUP(DropDownList!$B$47,CntyQryCensus!$A$551:$DA$587,W$1)","v":46.7},{"$f":"VLOOKUP(DropDownList!$B$47,CntyQryCensus!$A$551:$DA$587,X$1)","v":46.3},{"$f":"VLOOKUP(DropDownList!$B$47,CntyQryCensus!$A$551:$DA$587,Y$1)","v":47},{"$f":"VLOOKUP(DropDownList!$B$47,CntyQryCensus!$A$551:$DA$587,Z$1)","v":2666},{"$f":"VLOOKUP(DropDownList!$B$47,CntyQryCensus!$A$551:$DA$587,AA$1)","v":6751},{"$f":"VLOOKUP(DropDownList!$B$47,CntyQryCensus!$A$551:$DA$587,AB$1)","v":3875},{"$f":"VLOOKUP(DropDownList!$B$47,CntyQryCensus!$A$551:$DA$587,AC$1)","v":2876},{"$f":"VLOOKUP(DropDownList!$B$47,CntyQryCensus!$A$551:$DA$587,AD$1)","v":2.5299999999999998},{"$f":"VLOOKUP(DropDownList!$B$47,CntyQryCensus!$A$551:$DA$587,AE$1)","v":1967},{"$f":"VLOOKUP(DropDownList!$B$47,CntyQryCensus!$A$551:$DA$587,AF$1)","v":1717},{"$f":"VLOOKUP(DropDownList!$B$47,CntyQryCensus!$A$551:$DA$587,AG$1)","v":250},{"$f":"VLOOKUP(DropDownList!$B$47,CntyQryCensus!$A$551:$DA$587,AH$1)","v":699},{"$f":"VLOOKUP(DropDownList!$B$47,CntyQryCensus!$A$551:$DA$587,AI$1)","v":2.97},{"$f":"VLOOKUP(DropDownList!$B$47,CntyQryCensus!$A$551:$DA$587,AJ$1)","v":4.1144492131616595},{"$f":"VLOOKUP(DropDownList!$B$47,CntyQryCensus!$A$551:$DA$587,AK$1)","v":2.65},{"$f":"VLOOKUP(DropDownList!$B$47,CntyQryCensus!$A$551:$DA$587,AL$1)","v":1.65},{"$f":"VLOOKUP(DropDownList!$B$47,CntyQryCensus!$A$551:$DA$587,AM$1)","v":2788},{"$f":"VLOOKUP(DropDownList!$B$47,CntyQryCensus!$A$551:$DA$587,AN$1)","v":2666},{"$f":"VLOOKUP(DropDownList!$B$47,CntyQryCensus!$A$551:$DA$587,AO$1)","v":2342},{"$f":"VLOOKUP(DropDownList!$B$47,CntyQryCensus!$A$551:$DA$587,AP$1)","v":324},{"$f":"VLOOKUP(DropDownList!$B$47,CntyQryCensus!$A$551:$DA$587,AQ$1)","v":122},{"$f":"VLOOKUP(DropDownList!$B$47,CntyQryCensus!$A$551:$DA$587,AR$1)","v":7},{"$f":"VLOOKUP(DropDownList!$B$47,CntyQryCensus!$A$551:$DA$587,AS$1)","v":1},{"$f":"VLOOKUP(DropDownList!$B$47,CntyQryCensus!$A$551:$DA$587,AT$1)","v":17},{"$f":"VLOOKUP(DropDownList!$B$47,CntyQryCensus!$A$551:$DA$587,AU$1)","v":3},{"$f":"VLOOKUP(DropDownList!$B$47,CntyQryCensus!$A$551:$DA$587,AV$1)","v":75},{"$f":"VLOOKUP(DropDownList!$B$47,CntyQryCensus!$A$551:$DA$587,AW$1)","v":19},{"$f":"VLOOKUP(DropDownList!$B$47,CntyQryCensus!$A$551:$DA$587,AX$1)","v":0.7},{"$f":"VLOOKUP(DropDownList!$B$47,CntyQryCensus!$A$551:$DA$587,AY$1)","v":2.1},{"$f":"VLOOKUP(DropDownList!$B$47,CntyQryCensus!$A$551:$DA$587,AZ$1)","v":2788},{"$f":"VLOOKUP(DropDownList!$B$47,CntyQryCensus!$A$551:$DA$587,BA$1)","v":1898},{"$f":"VLOOKUP(DropDownList!$B$47,CntyQryCensus!$A$551:$DA$587,BB$1)","v":890},{"$f":"VLOOKUP(DropDownList!$B$47,CntyQryCensus!$A$551:$DA$587,BC$1)","v":0}]

{"sheet":"CntyDataLinkPrior10YearEstimate","index":19,"n_rows":167,"n_cols":255,"rows_kept":167,"cut":false,"hidden":true,"merged":[]}
[1,{"$f":"A1+1","v":2},{"$f":"B1+1","v":3},4,5,6,7,8,9,10,11,12,13,14,15,{"$f":"O1+1","v":16},17,18,19,20,21,22,23,24,25,26,27,28,29,30,31,32,33,34,35,36,37,38,39,40,41,42,43,44,45,46,47,48,49,50,51,52,53,54,55,56,57,58,59,60,61,62,63,64,65,66,{"$f":"BN1+1","v":67},68,69,70,71,72,73,74,75,76,77,78,79,80,81,82,83,84,85,86,87,88,89,90,91,92,93,94,95,96,97,98,99,100,101,102,103,104,105,106,107,108,109,110,111,112,113,114,115,116,117,118,119,120,121,122,123,124,125,126,127,128,129,130,{"$f":"DZ1+1","v":131},132,133,134,135,136,137,138,139,140,141,142,143,144,145,146,147,148,149,150,151,152,153,154,155,156,157,158,159,160,161,162,163,164,165,166,167,168,169,170,171,172,173,174,175,176,177,178,179,180,181,182,183,184,185,186,187,188,189,190,191,192,193,194,{"$f":"GL1+1","v":195},196,197,198,199,200,201,202,203,204,205,206,207,208,209,210,211,212,213,214,215,216,217,218,219,220,221,222,223,224,225,226,227,228,229,230,231,232,233,234,235,236,237,238,239,240,241,242,243,244,245,246,247,248,249,250,251,252,253,254,255]
[]
["Census 1990 Data -           Query Name:  DPCnty90Census"]
["TownName","Cnty_Code","Census_Cnty_Code","LandAcres","WaterAcres","HousingUnits90Cen","Persons90Cen","Families90Cen","Households90cen","MalePop90cen","FemalePop90cen","WhitePop","BlackPop","AmerIndianPop","AsianPIPop","OtherRacePop","HispanicOrPop","AgeUnder15_90cen","Age15to24_90cen","Age25to34_90cen","Age35to44_90cen","Age45to54_90cen","Age55to64_90cen","Age65to74_90cen","Age75andOver_90cen","PersonsInHH90cen","PersonsInFamHH90cen","PersonsInGC","PersonsPerHH90cen","PersonsPerFam90Cen","SinglePersonHH90cen","MarriedCoupleHH90cen","SingleParentHH90cen","NonFamilyHH90cen","TotalHousingUnits","OccupiedHousingUnits","VacantHousingUnits","OwnerOccHU","RenterOccHU","VacantForRent90","VacantForSale90","VacantSeasonalRec","SingFamHU90cen","MultiFamHU90cen","MobileHom90cen","SingFamOwnHU90cen","MultiFamOwnHU90cen","MobileHomOwnHU90cen","SingFamRntrHU90cen","MultiFamRntrHU90cen","MobileHomRntrHU90cen","HU<5yrs90cen","HU5to20yrs90cen","HU20to50yrs90cen","HU>50yrs90cen","Units0Bedroom90cen","Units1Bedroom90cen","Units2Bedroom90cen","Units3Bedroom90cen","Units4+Bedroom90cen","HI<5K","HI5Kto10K","HI10Kto15K","HI15Kto25K","HI25Kto35K","HI35Kto50K","HI50Kto75K","HI75Kto100K","HI>100K","MedHI","HH<25HI<5K","HH<25HI5Kto10K","HH<25HI10Kto15K","HH<25HI15Kto25K","HH<25HI25Kto35K","HH<25HI35Kto50K","HH<25HI50Kto75K","HH<25HI75Kto100K","HH<25HI>100K","HH25to34HI<5K","HH25to34HI5Kto10K","HH25to34HI10Kto15K","HH25to34HI15Kto25K","HH25to34HI25Kto35K","HH25to34HI35Kto50K","HH25to34HI50Kto75K","HH25to34HI75Kto100K","HH25to34HI>100K","HH35to44HI<5K","HH35to44HI5Kto10K","HH35to44HI10Kto15K","HH35to44HI15Kto25K","HH35to44HI25Kto35K","HH35to44HI35Kto50K","HH35to44HI50Kto75K","HH35to44HI75Kto100K","HH35to44HI>100K","HH45to54HI<5K","HH45to54HI5Kto10K","HH45to54HI10Kto15K","HH45to54HI15Kto25K","HH45to54HI25Kto35K","HH45to54HI35Kto50K","HH45to54HI50Kto75K","HH45to54HI75Kto100K","HH45to54HI>100K","HH55to64HI<5K","HH55to64HI5Kto10K","HH55to64HI10Kto15K","HH55to64HI15Kto25K","HH55to64HI25Kto35K","HH55to64HI35Kto50K","HH55to64HI50Kto75K","HH55to64HI75Kto100K","HH55to64HI>100K","HH65to74HI<5K","HH65to74HI5Kto10K","HH65to74HI10Kto15K","HH65to74HI15Kto25K","HH65to74HI25Kto35K","HH65to74HI35Kto50K","HH65to74HI50Kto75K","HH65to74HI75Kto100K","HH65to74HI>100K","HH>75HI<5K","HH>75HI5Kto10K","HH>75HI10Kto15K","HH>75HI15Kto25K","HH>75HI25Kto35K","HH>75HI35Kto50K","HH>75HI50Kto75K","HH>75HI75Kto100K","HH>75HI>100K","SchoolEnrollment1thru12","Pop25andOver","HSGradorHigher","CollGradorHigher","NativePop","ForeignBornPop","BornStateOfRes","NativePop2","ForeignBornPop2","DroveAlone","CarPooled","PublicTranspt","Walked","OtherMeans","WorkedAtHome","HHInc<10K","HHInc10to15K","HHInc15to25K","HHInc25to35K","HHInc35to50K","HHInc50to75K","HHInc75to100K","HHInc100to150K","HHInc>150K"]
[null,{"$f":"VLOOKUP(DropDownList!$A$47,CntyQuery!$A$4:$FA$46,B1)","v":15005},{"$f":"VLOOKUP(DropDownList!$A$47,CntyQuery!$A$4:$FA$46,C1)","v":"02340"},{"$f":"VLOOKUP(DropDownList!$A$47,CntyQuery!$A$4:$FA$46,D1)","v":7154.53},{"$f":"VLOOKUP(DropDownList!$A$47,CntyQuery!$A$4:$FA$46,E1)","v":103.92},{"$f":"VLOOKUP(DropDownList!$A$47,CntyQuery!$A$4:$FA$46,F1)","v":1885},{"$f":"VLOOKUP(DropDownList!$A$47,CntyQuery!$A$4:$FA$46,G1)","v":5188},{"$f":"VLOOKUP(DropDownList!$A$47,CntyQuery!$A$4:$FA$46,H1)","v":1449},{"$f":"VLOOKUP(DropDownList!$A$47,CntyQuery!$A$4:$FA$46,I1)","v":1774},{"$f":"VLOOKUP(DropDownList!$A$47,CntyQuery!$A$4:$FA$46,J1)","v":2605},{"$f":"VLOOKUP(DropDownList!$A$47,CntyQuery!$A$4:$FA$46,K1)","v":2583},{"$f":"VLOOKUP(DropDownList!$A$47,CntyQuery!$A$4:$FA$46,L1)","v":5125},{"$f":"VLOOKUP(DropDownList!$A$47,CntyQuery!$A$4:$FA$46,M1)","v":15},{"$f":"VLOOKUP(DropDownList!$A$47,CntyQuery!$A$4:$FA$46,N1)","v":1},{"$f":"VLOOKUP(DropDownList!$A$47,CntyQuery!$A$4:$FA$46,O1)","v":43},{"$f":"VLOOKUP(DropDownList!$A$47,CntyQuery!$A$4:$FA$46,P1)","v":4},{"$f":"VLOOKUP(DropDownList!$A$47,CntyQuery!$A$4:$FA$46,Q1)","v":12},{"$f":"VLOOKUP(DropDownList!$A$47,CntyQuery!$A$4:$FA$46,R1)","v":1072},{"$f":"VLOOKUP(DropDownList!$A$47,CntyQuery!$A$4:$FA$46,S1)","v":752},{"$f":"VLOOKUP(DropDownList!$A$47,CntyQuery!$A$4:$FA$46,T1)","v":685},{"$f":"VLOOKUP(DropDownList!$A$47,CntyQuery!$A$4:$FA$46,U1)","v":1083},{"$f":"VLOOKUP(DropDownList!$A$47,CntyQuery!$A$4:$FA$46,V1)","v":759},{"$f":"VLOOKUP(DropDownList!$A$47,CntyQuery!$A$4:$FA$46,W1)","v":454},{"$f":"VLOOKUP(DropDownList!$A$47,CntyQuery!$A$4:$FA$46,X1)","v":259},{"$f":"VLOOKUP(DropDownList!$A$47,CntyQuery!$A$4:$FA$46,Y1)","v":124},{"$f":"VLOOKUP(DropDownList!$A$47,CntyQuery!$A$4:$FA$46,Z1)","v":5188},{"$f":"VLOOKUP(DropDownList!$A$47,CntyQuery!$A$4:$FA$46,AA1)","v":4797},{"$f":"VLOOKUP(DropDownList!$A$47,CntyQuery!$A$4:$FA$46,AB1)","v":0},{"$f":"VLOOKUP(DropDownList!$A$47,CntyQuery!$A$4:$FA$46,AC1)","v":2.9244644870349492},{"$f":"VLOOKUP(DropDownList!$A$47,CntyQuery!$A$4:$FA$46,AD1)","v":3.31055900621118},{"$f":"VLOOKUP(DropDownList!$A$47,CntyQuery!$A$4:$FA$46,AE1)","v":271},{"$f":"VLOOKUP(DropDownList!$A$47,CntyQuery!$A$4:$FA$46,AF1)","v":1319},{"$f":"VLOOKUP(DropDownList!$A$47,CntyQuery!$A$4:$FA$46,AG1)","v":130},{"$f":"VLOOKUP(DropDownList!$A$47,CntyQuery!$A$4:$FA$46,AH1)","v":54},{"$f":"VLOOKUP(DropDownList!$A$47,CntyQuery!$A$4:$FA$46,AI1)","v":1885},{"$f":"VLOOKUP(DropDownList!$A$47,CntyQuery!$A$4:$FA$46,AJ1)","v":1774},{"$f":"VLOOKUP(DropDownList!$A$47,CntyQuery!$A$4:$FA$46,AK1)","v":111},{"$f":"VLOOKUP(DropDownList!$A$47,CntyQuery!$A$4:$FA$46,AL1)","v":1549},{"$f":"VLOOKUP(DropDownList!$A$47,CntyQuery!$A$4:$FA$46,AM1)","v":225},{"$f":"VLOOKUP(DropDownList!$A$47,CntyQuery!$A$4:$FA$46,AN1)","v":2},{"$f":"VLOOKUP(DropDownList!$A$47,CntyQuery!$A$4:$FA$46,AO1)","v":18},{"$f":"VLOOKUP(DropDownList!$A$47,CntyQuery!$A$4:$FA$46,AP1)","v":74},{"$f":"VLOOKUP(DropDownList!$A$47,CntyQuery!$A$4:$FA$46,AQ1)","v":1591},{"$f":"VLOOKUP(DropDownList!$A$47,CntyQuery!$A$4:$FA$46,AR1)","v":281},{"$f":"VLOOKUP(DropDownList!$A$47,CntyQuery!$A$4:$FA$46,AS1)","v":13},{"$f":"VLOOKUP(DropDownList!$A$47,CntyQuery!$A$4:$FA$46,AT1)","v":1436},{"$f":"VLOOKUP(DropDownList!$A$47,CntyQuery!$A$4:$FA$46,AU1)","v":104},{"$f":"VLOOKUP(DropDownList!$A$47,CntyQuery!$A$4:$FA$46,AV1)","v":13},{"$f":"VLOOKUP(DropDownList!$A$47,CntyQuery!$A$4:$FA$46,AW1)","v":58},{"$f":"VLOOKUP(DropDownList!$A$47,CntyQuery!$A$4:$FA$46,AX1)","v":164},{"$f":"VLOOKUP(DropDownList!$A$47,CntyQuery!$A$4:$FA$46,AY1)","v":3},{"$f":"VLOOKUP(DropDownList!$A$47,CntyQuery!$A$4:$FA$46,AZ1)","v":257},{"$f":"VLOOKUP(DropDownList!$A$47,CntyQuery!$A$4:$FA$46,BA1)","v":892},{"$f":"VLOOKUP(DropDownList!$A$47,CntyQuery!$A$4:$FA$46,BB1)","v":562},{"$f":"VLOOKUP(DropDownList!$A$47,CntyQuery!$A$4:$FA$46,BC1)","v":174},{"$f":"VLOOKUP(DropDownList!$A$47,CntyQuery!$A$4:$FA$46,BD1)","v":8},{"$f":"VLOOKUP(DropDownList!$A$47,CntyQuery!$A$4:$FA$46,BE1)","v":196},{"$f":"VLOOKUP(DropDownList!$A$47,CntyQuery!$A$4:$FA$46,BF1)","v":251},{"$f":"VLOOKUP(DropDownList!$A$47,CntyQuery!$A$4:$FA$46,BG1)","v":946},{"$f":"VLOOKUP(DropDownList!$A$47,CntyQuery!$A$4:$FA$46,BH1)","v":484},{"$f":"VLOOKUP(DropDownList!$A$47,CntyQuery!$A$4:$FA$46,BI1)","v":39},{"$f":"VLOOKUP(DropDownList!$A$47,CntyQuery!$A$4:$FA$46,BJ1)","v":42},{"$f":"VLOOKUP(DropDownList!$A$47,CntyQuery!$A$4:$FA$46,BK1)","v":51},{"$f":"VLOOKUP(DropDownList!$A$47,CntyQuery!$A$4:$FA$46,BL1)","v":124},{"$f":"VLOOKUP(DropDownList!$A$47,CntyQuery!$A$4:$FA$46,BM1)","v":133},{"$f":"VLOOKUP(DropDownList!$A$47,CntyQuery!$A$4:$FA$46,BN1)","v":287},{"$f":"VLOOKUP(DropDownList!$A$47,CntyQuery!$A$4:$FA$46,BO1)","v":502},{"$f":"VLOOKUP(DropDownList!$A$47,CntyQuery!$A$4:$FA$46,BP1)","v":328},{"$f":"VLOOKUP(DropDownList!$A$47,CntyQuery!$A$4:$FA$46,BQ1)","v":219},{"$f":"VLOOKUP(DropDownList!$A$47,CntyQuery!$A$4:$FA$46,BR1)","v":58239},{"$f":"VLOOKUP(DropDownList!$A$47,CntyQuery!$A$4:$FA$46,BS1)","v":0},{"$f":"VLOOKUP(DropDownList!$A$47,CntyQuery!$A$4:$FA$46,BT1)","v":9},{"$f":"VLOOKUP(DropDownList!$A$47,CntyQuery!$A$4:$FA$46,BU1)","v":0},{"$f":"VLOOKUP(DropDownList!$A$47,CntyQuery!$A$4:$FA$46,BV1)","v":9},{"$f":"VLOOKUP(DropDownList!$A$47,CntyQuery!$A$4:$FA$46,BW1)","v":0},{"$f":"VLOOKUP(DropDownList!$A$47,CntyQuery!$A$4:$FA$46,BX1)","v":0},{"$f":"VLOOKUP(DropDownList!$A$47,CntyQuery!$A$4:$FA$46,BY1)","v":0},{"$f":"VLOOKUP(DropDownList!$A$47,CntyQuery!$A$4:$FA$46,BZ1)","v":0},{"$f":"VLOOKUP(DropDownList!$A$47,CntyQuery!$A$4:$FA$46,CA1)","v":0},{"$f":"VLOOKUP(DropDownList!$A$47,CntyQuery!$A$4:$FA$46,CB1)","v":7},{"$f":"VLOOKUP(DropDownList!$A$47,CntyQuery!$A$4:$FA$46,CC1)","v":5},{"$f":"VLOOKUP(DropDownList!$A$47,CntyQuery!$A$4:$FA$46,CD1)","v":7},{"$f":"VLOOKUP(DropDownList!$A$47,CntyQuery!$A$4:$FA$46,CE1)","v":19},{"$f":"VLOOKUP(DropDownList!$A$47,CntyQuery!$A$4:$FA$46,CF1)","v":49},{"$f":"VLOOKUP(DropDownList!$A$47,CntyQuery!$A$4:$FA$46,CG1)","v":36},{"$f":"VLOOKUP(DropDownList!$A$47,CntyQuery!$A$4:$FA$46,CH1)","v":86},{"$f":"VLOOKUP(DropDownList!$A$47,CntyQuery!$A$4:$FA$46,CI1)","v":57},{"$f":"VLOOKUP(DropDownList!$A$47,CntyQuery!$A$4:$FA$46,CJ1)","v":15},{"$f":"VLOOKUP(DropDownList!$A$47,CntyQuery!$A$4:$FA$46,CK1)","v":0},{"$f":"VLOOKUP(DropDownList!$A$47,CntyQuery!$A$4:$FA$46,CL1)","v":6},{"$f":"VLOOKUP(DropDownList!$A$47,CntyQuery!$A$4:$FA$46,CM1)","v":0},{"$f":"VLOOKUP(DropDownList!$A$47,CntyQuery!$A$4:$FA$46,CN1)","v":43},{"$f":"VLOOKUP(DropDownList!$A$47,CntyQuery!$A$4:$FA$46,CO1)","v":27},{"$f":"VLOOKUP(DropDownList!$A$47,CntyQuery!$A$4:$FA$46,CP1)","v":92},{"$f":"VLOOKUP(DropDownList!$A$47,CntyQuery!$A$4:$FA$46,CQ1)","v":160},{"$f":"VLOOKUP(DropDownList!$A$47,CntyQuery!$A$4:$FA$46,CR1)","v":155},{"$f":"VLOOKUP(DropDownList!$A$47,CntyQuery!$A$4:$FA$46,CS1)","v":118},{"$f":"VLOOKUP(DropDownList!$A$47,CntyQuery!$A$4:$FA$46,CT1)","v":0},{"$f":"VLOOKUP(DropDownList!$A$47,CntyQuery!$A$4:$FA$46,CU1)","v":14},{"$f":"VLOOKUP(DropDownList!$A$47,CntyQuery!$A$4:$FA$46,CV1)","v":0},{"$f":"VLOOKUP(DropDownList!$A$47,CntyQuery!$A$4:$FA$46,CW1)","v":9},{"$f":"VLOOKUP(DropDownList!$A$47,CntyQuery!$A$4:$FA$46,CX1)","v":16},{"$f":"VLOOKUP(DropDownList!$A$47,CntyQuery!$A$4:$FA$46,CY1)","v":66},{"$f":"VLOOKUP(DropDownList!$A$47,CntyQuery!$A$4:$FA$46,CZ1)","v":125},{"$f":"VLOOKUP(DropDownList!$A$47,CntyQuery!$A$4:$FA$46,DA1)","v":76},{"$f":"VLOOKUP(DropDownList!$A$47,CntyQuery!$A$4:$FA$46,DB1)","v":51},{"$f":"VLOOKUP(DropDownList!$A$47,CntyQuery!$A$4:$FA$46,DC1)","v":9},{"$f":"VLOOKUP(DropDownList!$A$47,CntyQuery!$A$4:$FA$46,DD1)","v":0},{"$f":"VLOOKUP(DropDownList!$A$47,CntyQuery!$A$4:$FA$46,DE1)","v":7},{"$f":"VLOOKUP(DropDownList!$A$47,CntyQuery!$A$4:$FA$46,DF1)","v":13},{"$f":"VLOOKUP(DropDownList!$A$47,CntyQuery!$A$4:$FA$46,DG1)","v":4},{"$f":"VLOOKUP(DropDownList!$A$47,CntyQuery!$A$4:$FA$46,DH1)","v":54},{"$f":"VLOOKUP(DropDownList!$A$47,CntyQuery!$A$4:$FA$46,DI1)","v":99},{"$f":"VLOOKUP(DropDownList!$A$47,CntyQuery!$A$4:$FA$46,DJ1)","v":27},{"$f":"VLOOKUP(DropDownList!$A$47,CntyQuery!$A$4:$FA$46,DK1)","v":35},{"$f":"VLOOKUP(DropDownList!$A$47,CntyQuery!$A$4:$FA$46,DL1)","v":10},{"$f":"VLOOKUP(DropDownList!$A$47,CntyQuery!$A$4:$FA$46,DM1)","v":0},{"$f":"VLOOKUP(DropDownList!$A$47,CntyQuery!$A$4:$FA$46,DN1)","v":19},{"$f":"VLOOKUP(DropDownList!$A$47,CntyQuery!$A$4:$FA$46,DO1)","v":11},{"$f":"VLOOKUP(DropDownList!$A$47,CntyQuery!$A$4:$FA$46,DP1)","v":37},{"$f":"VLOOKUP(DropDownList!$A$47,CntyQuery!$A$4:$FA$46,DQ1)","v":35},{"$f":"VLOOKUP(DropDownList!$A$47,CntyQuery!$A$4:$FA$46,DR1)","v":10},{"$f":"VLOOKUP(DropDownList!$A$47,CntyQuery!$A$4:$FA$46,DS1)","v":13},{"$f":"VLOOKUP(DropDownList!$A$47,CntyQuery!$A$4:$FA$46,DT1)","v":0},{"$f":"VLOOKUP(DropDownList!$A$47,CntyQuery!$A$4:$FA$46,DU1)","v":13},{"$f":"VLOOKUP(DropDownList!$A$47,CntyQuery!$A$4:$FA$46,DV1)","v":8},{"$f":"VLOOKUP(DropDownList!$A$47,CntyQuery!$A$4:$FA$46,DW1)","v":18},{"$f":"VLOOKUP(DropDownList!$A$47,CntyQuery!$A$4:$FA$46,DX1)","v":20},{"$f":"VLOOKUP(DropDownList!$A$47,CntyQuery!$A$4:$FA$46,DY1)","v":0},{"$f":"VLOOKUP(DropDownList!$A$47,CntyQuery!$A$4:$FA$46,DZ1)","v":4},{"$f":"VLOOKUP(DropDownList!$A$47,CntyQuery!$A$4:$FA$46,EA1)","v":22},{"$f":"VLOOKUP(DropDownList!$A$47,CntyQuery!$A$4:$FA$46,EB1)","v":0},{"$f":"VLOOKUP(DropDownList!$A$47,CntyQuery!$A$4:$FA$46,EC1)","v":0},{"$f":"VLOOKUP(DropDownList!$A$47,CntyQuery!$A$4:$FA$46,ED1)","v":990},{"$f":"VLOOKUP(DropDownList!$A$47,CntyQuery!$A$4:$FA$46,EE1)","v":3364},{"$f":"VLOOKUP(DropDownList!$A$47,CntyQuery!$A$4:$FA$46,EF1)","v":3090},{"$f":"VLOOKUP(DropDownList!$A$47,CntyQuery!$A$4:$FA$46,EG1)","v":1012},{"$f":"VLOOKUP(DropDownList!$A$47,CntyQuery!$A$4:$FA$46,EH1)","v":5039},{"$f":"VLOOKUP(DropDownList!$A$47,CntyQuery!$A$4:$FA$46,EI1)","v":149},{"$f":"VLOOKUP(DropDownList!$A$47,CntyQuery!$A$4:$FA$46,EJ1)","v":374},{"$f":"VLOOKUP(DropDownList!$A$47,CntyQuery!$A$4:$FA$46,EK1)","v":5039},{"$f":"VLOOKUP(DropDownList!$A$47,CntyQuery!$A$4:$FA$46,EL1)","v":149},{"$f":"VLOOKUP(DropDownList!$A$47,CntyQuery!$A$4:$FA$46,EM1)","v":2415},{"$f":"VLOOKUP(DropDownList!$A$47,CntyQuery!$A$4:$FA$46,EN1)","v":313},{"$f":"VLOOKUP(DropDownList!$A$47,CntyQuery!$A$4:$FA$46,EO1)","v":20},{"$f":"VLOOKUP(DropDownList!$A$47,CntyQuery!$A$4:$FA$46,EP1)","v":31},{"$f":"VLOOKUP(DropDownList!$A$47,CntyQuery!$A$4:$FA$46,EQ1)","v":12},{"$f":"VLOOKUP(DropDownList!$A$47,CntyQuery!$A$4:$FA$46,ER1)","v":99},{"$f":"VLOOKUP(DropDownList!$A$47,CntyQuery!$A$4:$FA$46,ES1)","v":81},{"$f":"VLOOKUP(DropDownList!$A$47,CntyQuery!$A$4:$FA$46,ET1)","v":51},{"$f":"VLOOKUP(DropDownList!$A$47,CntyQuery!$A$4:$FA$46,EU1)","v":124},{"$f":"VLOOKUP(DropDownList!$A$47,CntyQuery!$A$4:$FA$46,EV1)","v":133},{"$f":"VLOOKUP(DropDownList!$A$47,CntyQuery!$A$4:$FA$46,EW1)","v":287},{"$f":"VLOOKUP(DropDownList!$A$47,CntyQuery!$A$4:$FA$46,EX1)","v":502},{"$f":"VLOOKUP(DropDownList!$A$47,CntyQuery!$A$4:$FA$46,EY1)","v":328},{"$f":"VLOOKUP(DropDownList!$A$47,CntyQuery!$A$4:$FA$46,EZ1)","v":150},{"$f":"VLOOKUP(DropDownList!$A$47,CntyQuery!$A$4:$FA$46,FA1)","v":69}]
[]
[]
["Census 1990 Data -    Query Name:  TownSTF1Qry1"]
["NAME","COUSUBFP","Census_Cnty_Code","FIPS","LandAcres","WaterAcres","HousingUnits90Cen","P01Persons90Cen","P02Families90Cen","P03Households90cen","P05MalePop90cen","P05FemalePop90cen","P06WhitePop","P06BlackPop","P06AmerIndianPop","P06AsianPIPop","P06OtherRacePop","P08HispanicOrPop","P11AgeUnder15_90cen","P11Age15to24_90cen","P11Age25to34_90cen","P11Age35to44_90cen","P11Age45to54_90cen","P11Age55to64_90cen","P11Age65to74_90cen","P11Age75andOver_90cen","P15PersonsInHH90cen","P15PersonsInFamHH90cen","P15PersonsInGC","PersonsPerHH90cen","PersonsPerFam90Cen","P16SinglePersonHH90cen","P16MarriedCoupleHH90cen","P16SingleParentHH90cen","P16NonFamilyHH90cen","H01TotalHousingUnits","H02OccupiedHousingUnits","H02VacantHousingUnits","H03OwnerOccHU","H03RenterOccHU","H05VacantForRent90","H05VacantForSale90","H05VacantSeasonalRec","H23OOHUVal<15k","H23OOHUVal15to19k","H23OOHUVal20to24k","H23OOHUVal25to29k","H23OOHUVal30to34k","H23OOHUVal35to39k","H23OOHUVal40to44k","H23OOHUVal45to49k","H23OOHUVal50to59k","H23OOHUVal60to74k","H23OOHUVal75to99k","H23OOHUVal100to124k","H23OOHUVal125to149k","H23OOHUVal150to174k","H23OOHUVal175to199k","H23OOHUVal200to249k","H23OOHUVal250to299k","H23OOHUVal300to399k","H23OOHUVal400to499k","H23OOHUVal500kOrMore","H23BOOHUMedVal","H41SingFamHU90cen","H41MultiFamHU90cen","H41MobileHom90cen","H43SingFamOwnHU90cen","H43MultiFamOwnHU90cen","H43MobileHomOwnHU90cen","H43SingFamRntrHU90cen","H43MultiFamRntrHU90cen","H43MobileHomRntrHU90cen","H41HU1UnitDet","H41HU1UnitAtt","H41HU2Unit","H41HU3to4Unit","H41HU5to9Unit","H41HU10to19Unit","H41HU20to49Unit","H41HU50PlusUnit","H41HUMobilH","H41HUOther"]
[null,{"$f":"VLOOKUP(DropDownList!$B$47,CntyQuery!$A$51:$CE$93,B$1)","v":801},{"$f":"VLOOKUP(DropDownList!$B$47,CntyQuery!$A$51:$CE$93,C$1)","v":15005},{"$f":"VLOOKUP(DropDownList!$B$47,CntyQuery!$A$51:$CE$93,D$1)","v":"02340"},{"$f":"VLOOKUP(DropDownList!$B$47,CntyQuery!$A$51:$CE$93,E$1)","v":7154.53},{"$f":"VLOOKUP(DropDownList!$B$47,CntyQuery!$A$51:$CE$93,F$1)","v":103.92},{"$f":"VLOOKUP(DropDownList!$B$47,CntyQuery!$A$51:$CE$93,G$1)","v":1885},{"$f":"VLOOKUP(DropDownList!$B$47,CntyQuery!$A$51:$CE$93,H$1)","v":5188},{"$f":"VLOOKUP(DropDownList!$B$47,CntyQuery!$A$51:$CE$93,I$1)","v":1449},{"$f":"VLOOKUP(DropDownList!$B$47,CntyQuery!$A$51:$CE$93,J$1)","v":1774},{"$f":"VLOOKUP(DropDownList!$B$47,CntyQuery!$A$51:$CE$93,K$1)","v":2605},{"$f":"VLOOKUP(DropDownList!$B$47,CntyQuery!$A$51:$CE$93,L$1)","v":2583},{"$f":"VLOOKUP(DropDownList!$B$47,CntyQuery!$A$51:$CE$93,M$1)","v":5125},{"$f":"VLOOKUP(DropDownList!$B$47,CntyQuery!$A$51:$CE$93,N$1)","v":15},{"$f":"VLOOKUP(DropDownList!$B$47,CntyQuery!$A$51:$CE$93,O$1)","v":1},{"$f":"VLOOKUP(DropDownList!$B$47,CntyQuery!$A$51:$CE$93,P$1)","v":43},{"$f":"VLOOKUP(DropDownList!$B$47,CntyQuery!$A$51:$CE$93,Q$1)","v":4},{"$f":"VLOOKUP(DropDownList!$B$47,CntyQuery!$A$51:$CE$93,R$1)","v":12},{"$f":"VLOOKUP(DropDownList!$B$47,CntyQuery!$A$51:$CE$93,S$1)","v":1072},{"$f":"VLOOKUP(DropDownList!$B$47,CntyQuery!$A$51:$CE$93,T$1)","v":752},{"$f":"VLOOKUP(DropDownList!$B$47,CntyQuery!$A$51:$CE$93,U$1)","v":685},{"$f":"VLOOKUP(DropDownList!$B$47,CntyQuery!$A$51:$CE$93,V$1)","v":1083},{"$f":"VLOOKUP(DropDownList!$B$47,CntyQuery!$A$51:$CE$93,W$1)","v":759},{"$f":"VLOOKUP(DropDownList!$B$47,CntyQuery!$A$51:$CE$93,X$1)","v":454},{"$f":"VLOOKUP(DropDownList!$B$47,CntyQuery!$A$51:$CE$93,Y$1)","v":259},{"$f":"VLOOKUP(DropDownList!$B$47,CntyQuery!$A$51:$CE$93,Z$1)","v":124},{"$f":"VLOOKUP(DropDownList!$B$47,CntyQuery!$A$51:$CE$93,AA$1)","v":5188},{"$f":"VLOOKUP(DropDownList!$B$47,CntyQuery!$A$51:$CE$93,AB$1)","v":4797},{"$f":"VLOOKUP(DropDownList!$B$47,CntyQuery!$A$51:$CE$93,AC$1)","v":0},{"$f":"VLOOKUP(DropDownList!$B$47,CntyQuery!$A$51:$CE$93,AD$1)","v":2.9244644870349492},{"$f":"VLOOKUP(DropDownList!$B$47,CntyQuery!$A$51:$CE$93,AE$1)","v":3.31055900621118},{"$f":"VLOOKUP(DropDownList!$B$47,CntyQuery!$A$51:$CE$93,AF$1)","v":271},{"$f":"VLOOKUP(DropDownList!$B$47,CntyQuery!$A$51:$CE$93,AG$1)","v":1319},{"$f":"VLOOKUP(DropDownList!$B$47,CntyQuery!$A$51:$CE$93,AH$1)","v":130},{"$f":"VLOOKUP(DropDownList!$B$47,CntyQuery!$A$51:$CE$93,AI$1)","v":54},{"$f":"VLOOKUP(DropDownList!$B$47,CntyQuery!$A$51:$CE$93,AJ$1)","v":1885},{"$f":"VLOOKUP(DropDownList!$B$47,CntyQuery!$A$51:$CE$93,AK$1)","v":1774},{"$f":"VLOOKUP(DropDownList!$B$47,CntyQuery!$A$51:$CE$93,AL$1)","v":111},{"$f":"VLOOKUP(DropDownList!$B$47,CntyQuery!$A$51:$CE$93,AM$1)","v":1549},{"$f":"VLOOKUP(DropDownList!$B$47,CntyQuery!$A$51:$CE$93,AN$1)","v":225},{"$f":"VLOOKUP(DropDownList!$B$47,CntyQuery!$A$51:$CE$93,AO$1)","v":2},{"$f":"VLOOKUP(DropDownList!$B$47,CntyQuery!$A$51:$CE$93,AP$1)","v":18},{"$f":"VLOOKUP(DropDownList!$B$47,CntyQuery!$A$51:$CE$93,AQ$1)","v":74},{"$f":"VLOOKUP(DropDownList!$B$47,CntyQuery!$A$51:$CE$93,AR$1)","v":0},{"$f":"VLOOKUP(DropDownList!$B$47,CntyQuery!$A$51:$CE$93,AS$1)","v":0},{"$f":"VLOOKUP(DropDownList!$B$47,CntyQuery!$A$51:$CE$93,AT$1)","v":1},{"$f":"VLOOKUP(DropDownList!$B$47,CntyQuery!$A$51:$CE$93,AU$1)","v":0},{"$f":"VLOOKUP(DropDownList!$B$47,CntyQuery!$A$51:$CE$93,AV$1)","v":0},{"$f":"VLOOKUP(DropDownList!$B$47,CntyQuery!$A$51:$CE$93,AW$1)","v":0},{"$f":"VLOOKUP(DropDownList!$B$47,CntyQuery!$A$51:$CE$93,AX$1)","v":0},{"$f":"VLOOKUP(DropDownList!$B$47,CntyQuery!$A$51:$CE$93,AY$1)","v":1},{"$f":"VLOOKUP(DropDownList!$B$47,CntyQuery!$A$51:$CE$93,AZ$1)","v":1},{"$f":"VLOOKUP(DropDownList!$B$47,CntyQuery!$A$51:$CE$93,BA$1)","v":3},{"$f":"VLOOKUP(DropDownList!$B$47,CntyQuery!$A$51:$CE$93,BB$1)","v":23},{"$f":"VLOOKUP(DropDownList!$B$47,CntyQuery!$A$51:$CE$93,BC$1)","v":64},{"$f":"VLOOKUP(DropDownList!$B$47,CntyQuery!$A$51:$CE$93,BD$1)","v":203},{"$f":"VLOOKUP(DropDownList!$B$47,CntyQuery!$A$51:$CE$93,BE$1)","v":341},{"$f":"VLOOKUP(DropDownList!$B$47,CntyQuery!$A$51:$CE$93,BF$1)","v":266},{"$f":"VLOOKUP(DropDownList!$B$47,CntyQuery!$A$51:$CE$93,BG$1)","v":248},{"$f":"VLOOKUP(DropDownList!$B$47,CntyQuery!$A$51:$CE$93,BH$1)","v":88},{"$f":"VLOOKUP(DropDownList!$B$47,CntyQuery!$A$51:$CE$93,BI$1)","v":69},{"$f":"VLOOKUP(DropDownList!$B$47,CntyQuery!$A$51:$CE$93,BJ$1)","v":16},{"$f":"VLOOKUP(DropDownList!$B$47,CntyQuery!$A$51:$CE$93,BK$1)","v":11},{"$f":"VLOOKUP(DropDownList!$B$47,CntyQuery!$A$51:$CE$93,BL$1)","v":177900},{"$f":"VLOOKUP(DropDownList!$B$47,CntyQuery!$A$51:$CE$93,BM$1)","v":1591},{"$f":"VLOOKUP(DropDownList!$B$47,CntyQuery!$A$51:$CE$93,BN$1)","v":281},{"$f":"VLOOKUP(DropDownList!$B$47,CntyQuery!$A$51:$CE$93,BO$1)","v":13},{"$f":"VLOOKUP(DropDownList!$B$47,CntyQuery!$A$51:$CE$93,BP$1)","v":1436},{"$f":"VLOOKUP(DropDownList!$B$47,CntyQuery!$A$51:$CE$93,BQ$1)","v":104},{"$f":"VLOOKUP(DropDownList!$B$47,CntyQuery!$A$51:$CE$93,BR$1)","v":9},{"$f":"VLOOKUP(DropDownList!$B$47,CntyQuery!$A$51:$CE$93,BS$1)","v":58},{"$f":"VLOOKUP(DropDownList!$B$47,CntyQuery!$A$51:$CE$93,BT$1)","v":164},{"$f":"VLOOKUP(DropDownList!$B$47,CntyQuery!$A$51:$CE$93,BU$1)","v":3},{"$f":"VLOOKUP(DropDownList!$B$47,CntyQuery!$A$51:$CE$93,BV$1)","v":1591},{"$f":"VLOOKUP(DropDownList!$B$47,CntyQuery!$A$51:$CE$93,BW$1)","v":87},{"$f":"VLOOKUP(DropDownList!$B$47,CntyQuery!$A$51:$CE$93,BX$1)","v":40},{"$f":"VLOOKUP(DropDownList!$B$47,CntyQuery!$A$51:$CE$93,BY$1)","v":29},{"$f":"VLOOKUP(DropDownList!$B$47,CntyQuery!$A$51:$CE$93,BZ$1)","v":0},{"$f":"VLOOKUP(DropDownList!$B$47,CntyQuery!$A$51:$CE$93,CA$1)","v":125},{"$f":"VLOOKUP(DropDownList!$B$47,CntyQuery!$A$51:$CE$93,CB$1)","v":0},{"$f":"VLOOKUP(DropDownList!$B$47,CntyQuery!$A$51:$CE$93,CC$1)","v":0},{"$f":"VLOOKUP(DropDownList!$B$47,CntyQuery!$A$51:$CE$93,CD$1)","v":3},{"$f":"VLOOKUP(DropDownList!$B$47,CntyQuery!$A$51:$CE$93,CE$1)","v":10}]
[]
[]
["Census 1990 Data -          Query Name: TownSTF3Qry1"]
["NAME","FIPS","COUSUBFP","LandAcres","WaterAcres","HousingUnits90Cen","P01Persons90Cen","P02Families90Cen","P03Households90cen","H25HU<5yrs90cen","H25HU5to20yrs90cen","H25HU20to50yrs90cen","H25HU>50yrs90cen","H31Units0Bedroom90cen","H31Units1Bedroom90cen","H31Units2Bedroom90cen","H31Units3Bedroom90cen","H31Units4Bedroom90cen","H31Units5+Bedroom90cen","P80HI<5K","P80HI5Kto10K","P80HI10Kto15K","P80HI15Kto25K","P80HI25Kto35K","P80HI35Kto50K","P80HI50Kto75K","P80HI75Kto100K","P80HI>100K","P80AMedHI","P86HH<25HI<5K","P86HH<25HI5Kto10K","P86HH<25HI10Kto15K","P86HH<25HI15Kto25K","P86HH<25HI25Kto35K","P86HH<25HI35Kto50K","P86HH<25HI50Kto75K","P86HH<25HI75Kto100K","P86HH<25HI>100K","P86HH25to34HI<5K","P86HH25to34HI5Kto10K","P86HH25to34HI10Kto15K","P86HH25to34HI15Kto25K","P86HH25to34HI25Kto35K","P86HH25to34HI35Kto50K","P86HH25to34HI50Kto75K","P86HH25to34HI75Kto100K","P86HH25to34HI>100K","P86HH35to44HI<5K","P86HH35to44HI5Kto10K","P86HH35to44HI10Kto15K","P86HH35to44HI15Kto25K","P86HH35to44HI25Kto35K","P86HH35to44HI35Kto50K","P86HH35to44HI50Kto75K","P86HH35to44HI75Kto100K","P86HH35to44HI>100K","P86HH45to54HI<5K","P86HH45to54HI5Kto10K","P86HH45to54HI10Kto15K","P86HH45to54HI15Kto25K","P86HH45to54HI25Kto35K","P86HH45to54HI35Kto50K","P86HH45to54HI50Kto75K","P86HH45to54HI75Kto100K","P86HH45to54HI>100K","P86HH55to64HI<5K","P86HH55to64HI5Kto10K","P86HH55to64HI10Kto15K","P86HH55to64HI15Kto25K","P86HH55to64HI25Kto35K","P86HH55to64HI35Kto50K","P86HH55to64HI50Kto75K","P86HH55to64HI75Kto100K","P86HH55to64HI>100K","P86HH65to74HI<5K","P86HH65to74HI5Kto10K","P86HH65to74HI10Kto15K","P86HH65to74HI15Kto25K","P86HH65to74HI25Kto35K","P86HH65to74HI35Kto50K","P86HH65to74HI50Kto75K","P86HH65to74HI75Kto100K","P86HH65to74HI>100K","P86HH>75HI<5K","P86HH>75HI5Kto10K","P86HH>75HI10Kto15K","P86HH>75HI15Kto25K","P86HH>75HI25Kto35K","P86HH>75HI35Kto50K","P86HH>75HI50Kto75K","P86HH>75HI75Kto100K","P86HH>75HI>100K","P54SchlEnrlPrePrim","P54SchlEnrlElemThrHS","P54SchlEnrlCollege","P54NotEnrlInSch","P57Pop25andOver","P57LessThan9thGrade","P579thto12thNoDip","P57HSGrad","P57SomeCollege","P57AssocDeg","P57BachelDeg","P57GradorProfDeg","P57HSGradorHigher","P57CollGradorHigher","P42NativePop","P42ForeignBornPop","P42BornStateOfRes","P37NativePop2","P37ForeignBornPop2","P49DroveAlone","P49CarPooled","P49PublicTranspt","P49Walked","P49OtherMeans","P49WorkedAtHome","P80HHInc<10K","P80HHInc10to15K","P80HHInc15to25K","P80HHInc25to35K","P80HHInc35to50K","P80HHInc50to75K","P80HHInc75to100K","P80HHInc100to150K","P80HHInc>150K","H25YearStBlt89to90","H25YearStBlt85to88","H25YearStBlt80to84","H25YearStBlt70to79","H25YearStBlt60to69","H25YearStBlt50to59","H25YearStBlt40to49","H25YearStBlt39earlier","P107FamInc<10K","P107FamInc10to15K","P107FamInc15to25K","P107FamInc25to35K","P107FamInc35to50K","P107FamInc50to75K","P107FamInc75to100K","P107FamInc100to150K","P107FamInc>150K","P107AMedFamInc","P110NonFamInc<10K","P110NonFamInc10to15K","P110NonFamInc15to25K","P110NonFamInc25to35K","P110NonFamInc35to50K","P110NonFamInc50to75K","P110NonFamInc75to100K","P110NonFamInc100to150K","P110NonFamInc>150K","P110AMedNonFamInc","H16HU1Room","H16HU2Room","H16HU3Room","H16HU4Room","H16HU5Room","H16HU6Room","H16HU7Room","H16HU8Room","H16HU9+Room","H43GrossRnt<100","H43GrossRnt100to149","H43GrossRnt150to199","H43GrossRnt200to249","H43GrossRnt250to299","H43GrossRnt300to349","H43GrossRnt350to399","H43GrossRnt400to449","H43GrossRnt450to499","H43GrossRnt500to549","H43GrossRnt550to599","H43GrossRnt600to649","H43GrossRnt650to699","H43GrossRnt700to749","H43GrossRnt750to999","H43GrossRnt1000Plus","H43NoCashRent","H43MedGrossRent","H51GrossRnt<20PctHHInc","H51GrossRnt20to24PctHHInc","H51GrossRnt25to29PctHHInc","H51GrossRnt30to34PctHHInc","H51GrossRnt35PctOrMoreHHInc","H51GrossRntAsPctHHIncNotComp","H52HUwMtgMoOwnCst<200","H52HUwMtgMoOwnCst200to299","H52HUwMtgMoOwnCst300to399","H52HUwMtgMoOwnCst400to499","H52HUwMtgMoOwnCst500to599","H52HUwMtgMoOwnCst600to699","H52HUwMtgMoOwnCst700to799","H52HUwMtgMoOwnCst800to899","H52HUwMtgMoOwnCst900to999","H52HUwMtgMoOwnCst1000to1249","H52HUwMtgMoOwnCst1250to1499","H52HUwMtgMoOwnCst1500to1999","H52HUwMtgMoOwnCst2000More","H52HUwNoMtgMoOwnCst<100","H52HUwNoMtgMoOwnCst100to149","H52HUwNoMtgMoOwnCst150to199","H52HUwNoMtgMoOwnCst200to249","H52HUwNoMtgMoOwnCst250to299","H52HUwNoMtgMoOwnCst300to349","H52HUwNoMtgMoOwnCst350to399","H52HUwNoMtgMoOwnCst400More","H52AMedMoOwnCstWMortg","H52AMedMoOwnCstWNoMortg","H58HUwMtgMOC<20pHHInc","H58HUwMtgMOC20to24pHHInc","H58HUwMtgMOC25to29pHHInc","H58HUwMtgMOC30to34pHHInc","H58wMtgMOC>35pHHInc","H58HUwMtgMOCNotComp","H58HUwNoMtgMOC<20pHHInc","H58HUwNoMtgMOC20to24pHHInc","H58HUwNoMtgMOC25to29pHHInc","H58HUwNoMtgMOC30to34pHHInc","H58wNoMtgMOC>35pHHInc","H58HUwNoMtgMOCNotComp","H61OOHUVal<15k","H61OOHUVal15to19k","H61OOHUVal20to24k","H61OOHUVal25to29k","H61OOHUVal30to34k","H61OOHUVal35to39k","H61OOHUVal40to44k","H61OOHUVal45to49k","H61OOHUVal50to59k","H61OOHUVal60to74k","H61OOHUVal75to99k","H61OOHUVal100to124k","H61OOHUVal125to149k","H61OOHUVal150to174k","H61OOHUVal175to199k","H61OOHUVal200to249k","H61OOHUVal250to299k","H61OOHUVal300to399k","H61OOHUVal400to499k","H61OOHUVal500kOrMore","H61aOOHUMedVal"]
[]
[]
[]
["Other Demo Data -             Query Name: QryAllTowns-ACSDemographicSheet"]
["TOWN_NAME","FIPS","TOWNCNTY","COUSUB","POP80","POP90CDCEN","POP2000CEN","POP2010CEN","POP2020-Proj","POP2025-Proj","POP2030-Proj","SF80","MF80","MH80","SF81","MF81","MH81","SF82","MF82","MH82","SF83","MF83","MH83","SF84_OSP","MF84_OSP","MH84_OSP","SF85_OSP","MF85_OSP","MH85_OSP","SF86_OSP","MF86_OSP","MH86_OSP","SF87_OSP","MF87_OSP","MH87_OSP","SF88_OSP","MF88_OSP","MH88_OSP","SF89_OSP","MF89_OSP","MH89_OSP","SF90_OSP","MF90_OSP","MH90_OSP","SF91_OSP","MF91_OSP","MH91_OSP","SF92_OSP","MF92_OSP","MH92_OSP","SF93_OSP","MF93_OSP","MH93_OSP","SF94_OSP","MF94_OSP","MH94_OSP","SF95_OSP","MF95_OSP","MH95_OSP","SF96_OSP","MF96_OSP","MH96_OSP","SF97_OSP","MF97_OSP","MH97_OSP","SF98_OSP","MF98_OSP","MH98_OSP","SF99_OSP","MF99_OSP","MH99_OSP","SF00_OSP","MF00_OSP","MH00_OSP","SF01_OSP","MF01_OSP","MH01_OSP","SF02_OSP","MF02_OSP","MH02_OSP","SF03_OSP","MF03_OSP","MH03_OSP","SF04_OSP","MF04_OSP","MH04_OSP","SF05_OSP","MF05_OSP","MH05_OSP","SF06_OSP","MF06_OSP","MH06_OSP","SF07_OSP","MF07_OSP","MH07_OSP","SF08_OSP","MF08_OSP","MH08_OSP","SF09_OSP","MF09_OSP","MH09_OSP","SF10_OSP","MF10_OSP","MH10_OSP","SF11_OSP","MF11_OSP","MH11_OSP","SF12_OSP","MF12_OSP","MH12_OSP","SF13_OSP","MF13_OSP","MH13_OSP","SF14_OSP","MF14_OSP","MH14_OSP","SF15_OSP","MF15_OSP","MH15_OSP","SF16_OSP","MF16_OSP","MH16_OSP","SF17_OSP","MF17_OSP","MH17_OSP","SF18_OSP","MF18_OSP","MH18_OSP","COMMENTS","CNTY_CODE"]
[{"$f":"VLOOKUP(DropDownList!$B$47,CntyQuery!$A$118:$DZ$154,A$1)","v":"Atkinson"},{"$f":"VLOOKUP(DropDownList!$B$47,CntyQuery!$A$118:$DZ$154,B$1)","v":15005},{"$f":"VLOOKUP(DropDownList!$B$47,CntyQuery!$A$118:$DZ$154,C$1)","v":801},{"$f":"VLOOKUP(DropDownList!$B$47,CntyQuery!$A$118:$DZ$154,D$1)","v":"02340"},{"$f":"VLOOKUP(DropDownList!$B$47,CntyQuery!$A$118:$DZ$154,E$1)","v":4397},{"$f":"VLOOKUP(DropDownList!$B$47,CntyQuery!$A$118:$DZ$154,F$1)","v":5188},{"$f":"VLOOKUP(DropDownList!$B$47,CntyQuery!$A$118:$DZ$154,G$1)","v":6178},{"$f":"VLOOKUP(DropDownList!$B$47,CntyQuery!$A$118:$DZ$154,H$1)","v":6751},{"$f":"VLOOKUP(DropDownList!$B$47,CntyQuery!$A$118:$DZ$154,I$1)","v":7358},{"$f":"VLOOKUP(DropDownList!$B$47,CntyQuery!$A$118:$DZ$154,J$1)","v":7485},{"$f":"VLOOKUP(DropDownList!$B$47,CntyQuery!$A$118:$DZ$154,K$1)","v":7536},{"$f":"VLOOKUP(DropDownList!$B$47,CntyQuery!$A$118:$DZ$154,L$1)","v":24},{"$f":"VLOOKUP(DropDownList!$B$47,CntyQuery!$A$118:$DZ$154,M$1)","v":0},{"$f":"VLOOKUP(DropDownList!$B$47,CntyQuery!$A$118:$DZ$154,N$1)","v":0},{"$f":"VLOOKUP(DropDownList!$B$47,CntyQuery!$A$118:$DZ$154,O$1)","v":21},{"$f":"VLOOKUP(DropDownList!$B$47,CntyQuery!$A$118:$DZ$154,P$1)","v":0},{"$f":"VLOOKUP(DropDownList!$B$47,CntyQuery!$A$118:$DZ$154,Q$1)","v":0},{"$f":"VLOOKUP(DropDownList!$B$47,CntyQuery!$A$118:$DZ$154,R$1)","v":37},{"$f":"VLOOKUP(DropDownList!$B$47,CntyQuery!$A$118:$DZ$154,S$1)","v":0},{"$f":"VLOOKUP(DropDownList!$B$47,CntyQuery!$A$118:$DZ$154,T$1)","v":0},{"$f":"VLOOKUP(DropDownList!$B$47,CntyQuery!$A$118:$DZ$154,U$1)","v":23},{"$f":"VLOOKUP(DropDownList!$B$47,CntyQuery!$A$118:$DZ$154,V$1)","v":0},{"$f":"VLOOKUP(DropDownList!$B$47,CntyQuery!$A$118:$DZ$154,W$1)","v":0},{"$f":"VLOOKUP(DropDownList!$B$47,CntyQuery!$A$118:$DZ$154,X$1)","v":42},{"$f":"VLOOKUP(DropDownList!$B$47,CntyQuery!$A$118:$DZ$154,Y$1)","v":0},{"$f":"VLOOKUP(DropDownList!$B$47,CntyQuery!$A$118:$DZ$154,Z$1)","v":14},{"$f":"VLOOKUP(DropDownList!$B$47,CntyQuery!$A$118:$DZ$154,AA$1)","v":60},{"$f":"VLOOKUP(DropDownList!$B$47,CntyQuery!$A$118:$DZ$154,AB$1)","v":0},{"$f":"VLOOKUP(DropDownList!$B$47,CntyQuery!$A$118:$DZ$154,AC$1)","v":0},{"$f":"VLOOKUP(DropDownList!$B$47,CntyQuery!$A$118:$DZ$154,AD$1)","v":59},{"$f":"VLOOKUP(DropDownList!$B$47,CntyQuery!$A$118:$DZ$154,AE$1)","v":0},{"$f":"VLOOKUP(DropDownList!$B$47,CntyQuery!$A$118:$DZ$154,AF$1)","v":0},{"$f":"VLOOKUP(DropDownList!$B$47,CntyQuery!$A$118:$DZ$154,AG$1)","v":196},{"$f":"VLOOKUP(DropDownList!$B$47,CntyQuery!$A$118:$DZ$154,AH$1)","v":0},{"$f":"VLOOKUP(DropDownList!$B$47,CntyQuery!$A$118:$DZ$154,AI$1)","v":0},{"$f":"VLOOKUP(DropDownList!$B$47,CntyQuery!$A$118:$DZ$154,AJ$1)","v":73},{"$f":"VLOOKUP(DropDownList!$B$47,CntyQuery!$A$118:$DZ$154,AK$1)","v":0},{"$f":"VLOOKUP(DropDownList!$B$47,CntyQuery!$A$118:$DZ$154,AL$1)","v":0},{"$f":"VLOOKUP(DropDownList!$B$47,CntyQuery!$A$118:$DZ$154,AM$1)","v":21},{"$f":"VLOOKUP(DropDownList!$B$47,CntyQuery!$A$118:$DZ$154,AN$1)","v":0},{"$f":"VLOOKUP(DropDownList!$B$47,CntyQuery!$A$118:$DZ$154,AO$1)","v":0},{"$f":"VLOOKUP(DropDownList!$B$47,CntyQuery!$A$118:$DZ$154,AP$1)","v":13},{"$f":"VLOOKUP(DropDownList!$B$47,CntyQuery!$A$118:$DZ$154,AQ$1)","v":54},{"$f":"VLOOKUP(DropDownList!$B$47,CntyQuery!$A$118:$DZ$154,AR$1)","v":0},{"$f":"VLOOKUP(DropDownList!$B$47,CntyQuery!$A$118:$DZ$154,AS$1)","v":20},{"$f":"VLOOKUP(DropDownList!$B$47,CntyQuery!$A$118:$DZ$154,AT$1)","v":43},{"$f":"VLOOKUP(DropDownList!$B$47,CntyQuery!$A$118:$DZ$154,AU$1)","v":0},{"$f":"VLOOKUP(DropDownList!$B$47,CntyQuery!$A$118:$DZ$154,AV$1)","v":11},{"$f":"VLOOKUP(DropDownList!$B$47,CntyQuery!$A$118:$DZ$154,AW$1)","v":44},{"$f":"VLOOKUP(DropDownList!$B$47,CntyQuery!$A$118:$DZ$154,AX$1)","v":0},{"$f":"VLOOKUP(DropDownList!$B$47,CntyQuery!$A$118:$DZ$154,AY$1)","v":18},{"$f":"VLOOKUP(DropDownList!$B$47,CntyQuery!$A$118:$DZ$154,AZ$1)","v":48},{"$f":"VLOOKUP(DropDownList!$B$47,CntyQuery!$A$118:$DZ$154,BA$1)","v":0},{"$f":"VLOOKUP(DropDownList!$B$47,CntyQuery!$A$118:$DZ$154,BB$1)","v":25},{"$f":"VLOOKUP(DropDownList!$B$47,CntyQuery!$A$118:$DZ$154,BC$1)","v":28},{"$f":"VLOOKUP(DropDownList!$B$47,CntyQuery!$A$118:$DZ$154,BD$1)","v":0},{"$f":"VLOOKUP(DropDownList!$B$47,CntyQuery!$A$118:$DZ$154,BE$1)","v":33},{"$f":"VLOOKUP(DropDownList!$B$47,CntyQuery!$A$118:$DZ$154,BF$1)","v":8},{"$f":"VLOOKUP(DropDownList!$B$47,CntyQuery!$A$118:$DZ$154,BG$1)","v":0},{"$f":"VLOOKUP(DropDownList!$B$47,CntyQuery!$A$118:$DZ$154,BH$1)","v":49},{"$f":"VLOOKUP(DropDownList!$B$47,CntyQuery!$A$118:$DZ$154,BI$1)","v":16},{"$f":"VLOOKUP(DropDownList!$B$47,CntyQuery!$A$118:$DZ$154,BJ$1)","v":0},{"$f":"VLOOKUP(DropDownList!$B$47,CntyQuery!$A$118:$DZ$154,BK$1)","v":34},{"$f":"VLOOKUP(DropDownList!$B$47,CntyQuery!$A$118:$DZ$154,BL$1)","v":8},{"$f":"VLOOKUP(DropDownList!$B$47,CntyQuery!$A$118:$DZ$154,BM$1)","v":0},{"$f":"VLOOKUP(DropDownList!$B$47,CntyQuery!$A$118:$DZ$154,BN$1)","v":45},{"$f":"VLOOKUP(DropDownList!$B$47,CntyQuery!$A$118:$DZ$154,BO$1)","v":13},{"$f":"VLOOKUP(DropDownList!$B$47,CntyQuery!$A$118:$DZ$154,BP$1)","v":0},{"$f":"VLOOKUP(DropDownList!$B$47,CntyQuery!$A$118:$DZ$154,BQ$1)","v":49},{"$f":"VLOOKUP(DropDownList!$B$47,CntyQuery!$A$118:$DZ$154,BR$1)","v":76},{"$f":"VLOOKUP(DropDownList!$B$47,CntyQuery!$A$118:$DZ$154,BS$1)","v":0},{"$f":"VLOOKUP(DropDownList!$B$47,CntyQuery!$A$118:$DZ$154,BT$1)","v":30},{"$f":"VLOOKUP(DropDownList!$B$47,CntyQuery!$A$118:$DZ$154,BU$1)","v":44},{"$f":"VLOOKUP(DropDownList!$B$47,CntyQuery!$A$118:$DZ$154,BV$1)","v":2},{"$f":"VLOOKUP(DropDownList!$B$47,CntyQuery!$A$118:$DZ$154,BW$1)","v":34},{"$f":"VLOOKUP(DropDownList!$B$47,CntyQuery!$A$118:$DZ$154,BX$1)","v":54},{"$f":"VLOOKUP(DropDownList!$B$47,CntyQuery!$A$118:$DZ$154,BY$1)","v":0},{"$f":"VLOOKUP(DropDownList!$B$47,CntyQuery!$A$118:$DZ$154,BZ$1)","v":11},{"$f":"VLOOKUP(DropDownList!$B$47,CntyQuery!$A$118:$DZ$154,CA$1)","v":14},{"$f":"VLOOKUP(DropDownList!$B$47,CntyQuery!$A$118:$DZ$154,CB$1)","v":0},{"$f":"VLOOKUP(DropDownList!$B$47,CntyQuery!$A$118:$DZ$154,CC$1)","v":16},{"$f":"VLOOKUP(DropDownList!$B$47,CntyQuery!$A$118:$DZ$154,CD$1)","v":8},{"$f":"VLOOKUP(DropDownList!$B$47,CntyQuery!$A$118:$DZ$154,CE$1)","v":0},{"$f":"VLOOKUP(DropDownList!$B$47,CntyQuery!$A$118:$DZ$154,CF$1)","v":4},{"$f":"VLOOKUP(DropDownList!$B$47,CntyQuery!$A$118:$DZ$154,CG$1)","v":2},{"$f":"VLOOKUP(DropDownList!$B$47,CntyQuery!$A$118:$DZ$154,CH$1)","v":0},{"$f":"VLOOKUP(DropDownList!$B$47,CntyQuery!$A$118:$DZ$154,CI$1)","v":10},{"$f":"VLOOKUP(DropDownList!$B$47,CntyQuery!$A$118:$DZ$154,CJ$1)","v":8},{"$f":"VLOOKUP(DropDownList!$B$47,CntyQuery!$A$118:$DZ$154,CK$1)","v":0},{"$f":"VLOOKUP(DropDownList!$B$47,CntyQuery!$A$118:$DZ$154,CL$1)","v":6},{"$f":"VLOOKUP(DropDownList!$B$47,CntyQuery!$A$118:$DZ$154,CM$1)","v":0},{"$f":"VLOOKUP(DropDownList!$B$47,CntyQuery!$A$118:$DZ$154,CN$1)","v":0},{"$f":"VLOOKUP(DropDownList!$B$47,CntyQuery!$A$118:$DZ$154,CO$1)","v":8},{"$f":"VLOOKUP(DropDownList!$B$47,CntyQuery!$A$118:$DZ$154,CP$1)","v":0},{"$f":"VLOOKUP(DropDownList!$B$47,CntyQuery!$A$118:$DZ$154,CQ$1)","v":0},{"$f":"VLOOKUP(DropDownList!$B$47,CntyQuery!$A$118:$DZ$154,CR$1)","v":3},{"$f":"VLOOKUP(DropDownList!$B$47,CntyQuery!$A$118:$DZ$154,CS$1)","v":0},{"$f":"VLOOKUP(DropDownList!$B$47,CntyQuery!$A$118:$DZ$154,CT$1)","v":0},{"$f":"VLOOKUP(DropDownList!$B$47,CntyQuery!$A$118:$DZ$154,CU$1)","v":5},{"$f":"VLOOKUP(DropDownList!$B$47,CntyQuery!$A$118:$DZ$154,CV$1)","v":-2},{"$f":"VLOOKUP(DropDownList!$B$47,CntyQuery!$A$118:$DZ$154,CW$1)","v":0},{"$f":"VLOOKUP(DropDownList!$B$47,CntyQuery!$A$118:$DZ$154,CX$1)","v":5},{"$f":"VLOOKUP(DropDownList!$B$47,CntyQuery!$A$118:$DZ$154,CY$1)","v":0},{"$f":"VLOOKUP(DropDownList!$B$47,CntyQuery!$A$118:$DZ$154,CZ$1)","v":0},{"$f":"VLOOKUP(DropDownList!$B$47,CntyQuery!$A$118:$DZ$154,DA$1)","v":4},{"$f":"VLOOKUP(DropDownList!$B$47,CntyQuery!$A$118:$DZ$154,DB$1)","v":-1},{"$f":"VLOOKUP(DropDownList!$B$47,CntyQuery!$A$118:$DZ$154,DC$1)","v":0},{"$f":"VLOOKUP(DropDownList!$B$47,CntyQuery!$A$118:$DZ$154,DD$1)","v":5},{"$f":"VLOOKUP(DropDownList!$B$47,CntyQuery!$A$118:$DZ$154,DE$1)","v":-1},{"$f":"VLOOKUP(DropDownList!$B$47,CntyQuery!$A$118:$DZ$154,DF$1)","v":0},{"$f":"VLOOKUP(DropDownList!$B$47,CntyQuery!$A$118:$DZ$154,DG$1)","v":8},{"$f":"VLOOKUP(DropDownList!$B$47,CntyQuery!$A$118:$DZ$154,DH$1)","v":0},{"$f":"VLOOKUP(DropDownList!$B$47,CntyQuery!$A$118:$DZ$154,DI$1)","v":0},{"$f":"VLOOKUP(DropDownList!$B$47,CntyQuery!$A$118:$DZ$154,DJ$1)","v":3},{"$f":"VLOOKUP(DropDownList!$B$47,CntyQuery!$A$118:$DZ$154,DK$1)","v":0},{"$f":"VLOOKUP(DropDownList!$B$47,CntyQuery!$A$118:$DZ$154,DL$1)","v":0},{"$f":"VLOOKUP(DropDownList!$B$47,CntyQuery!$A$118:$DZ$154,DM$1)","v":6},{"$f":"VLOOKUP(DropDownList!$B$47,CntyQuery!$A$118:$DZ$154,DN$1)","v":12},{"$f":"VLOOKUP(DropDownList!$B$47,CntyQuery!$A$118:$DZ$154,DO$1)","v":0},{"$f":"VLOOKUP(DropDownList!$B$47,CntyQuery!$A$118:$DZ$154,DP$1)","v":3},{"$f":"VLOOKUP(DropDownList!$B$47,CntyQuery!$A$118:$DZ$154,DQ$1)","v":30},{"$f":"VLOOKUP(DropDownList!$B$47,CntyQuery!$A$118:$DZ$154,DR$1)","v":0},{"$f":"VLOOKUP(DropDownList!$B$47,CntyQuery!$A$118:$DZ$154,DS$1)","v":4},{"$f":"VLOOKUP(DropDownList!$B$47,CntyQuery!$A$118:$DZ$154,DT$1)","v":44},{"$f":"VLOOKUP(DropDownList!$B$47,CntyQuery!$A$118:$DZ$154,DU$1)","v":0},{"$f":"VLOOKUP(DropDownList!$B$47,CntyQuery!$A$118:$DZ$154,DV$1)","v":27},{"$f":"VLOOKUP(DropDownList!$B$47,CntyQuery!$A$118:$DZ$154,DW$1)","v":41},{"$f":"VLOOKUP(DropDownList!$B$47,CntyQuery!$A$118:$DZ$154,DX$1)","v":0},{"$f":"VLOOKUP(DropDownList!$B$47,CntyQuery!$A$118:$DZ$154,DY$1)","v":20}]
[]
[]
["NH Employment Data","Query Name: DPQryEmploymentByCnty"]
["AreaName","COUNTYCODE","TOTP & G2001","TOT2001","GOODPRO2001","SERVICEPROMAN2001","WAGEP & G2001","WAGETOT2001","WAGEGOODPRO2001","WAGESERVICEPRO2001","TOTP & G2002","TOT2002","GOODPRO2002","SERVICEPROMAN2002","WAGEP & G2002","WAGETOT2002","WAGEGOODPRO2002","WAGESERVICEPRO2002","TOTP & G2003","TOT2003","GOODPRO2003","SERVICEPROMAN2003","WAGEP & G2003","WAGETOT2003","WAGEGOODPRO2003","WAGESERVICEPRO2003","TOTP & G2004","TOT2004","GOODPRO2004","SERVICEPROMAN2004","WAGEP & G2004","WAGETOT2004","WAGEGOODPRO2004","WAGESERVICEPRO2004","TOTP & G2005","TOT2005","GOODPRO2005","SERVICEPROMAN2005","WAGEP & G2005","WAGETOT2005","WAGEGOODPRO2005","WAGESERVICEPRO2005","TOTP & G2006","TOT2006","GOODPRO2006","SERVICEPROMAN2006","WAGEP & G2006","WAGETOT2006","WAGEGOODPRO2006","WAGESERVICEPRO2006","TOTP & G2007","TOT2007","GOODPRO2007","SERVICEPROMAN2007","WAGEP & G2007","WAGETOT2007","WAGEGOODPRO2007","WAGESERVICEPRO2007","TOTP & G2008","TOT2008","GOODPRO2008","SERVICEPROMAN2008","WAGEP & G2008","WAGETOT2008","WAGEGOODPRO2008","WAGESERVICEPRO2008","TOTP & G2009","TOT2009","GOODPRO2009","SERVICEPROMAN2009","WAGEP & G2009","WAGETOT2009","WAGEGOODPRO2009","WAGESERVICEPRO2009","TOTP & G2010","TOT2010","GOODPRO2010","SERVICEPROMAN2010","WAGEP & G2010","WAGETOT2010","WAGEGOODPRO2010","WAGESERVICEPRO2010","TOTP & G2011","TOT2011","GOODPRO2011","SERVICEPROMAN2011","WAGEP & G2011","WAGETOT2011","WAGEGOODPRO2011","WAGESERVICEPRO2011","TOTP & G2012","TOT2012","GOODPRO2012","SERVICEPROMAN2012","WAGEP & G2012","WAGETOT2012","WAGEGOODPRO2012","WAGESERVICEPRO2012","TOTP & G2013","TOT2013","GOODPRO2013","SERVICEPROMAN2013","WAGEP & G2013","WAGETOT2013","WAGEGOODPRO2013","WAGESERVICEPRO2013","TOTP & G2014","TOT2014","GOODPRO2014","SERVICEPROMAN2014","WAGEP & G2014","WAGETOT2014","WAGEGOODPRO2014","WAGESERVICEPRO2014","TOTP & G2015","TOT2015","GOODPRO2015","SERVICEPROMAN2015","WAGEP & G2015","WAGETOT2015","WAGEGOODPRO2015","WAGESERVICEPRO2015","TOTP & G2016","TOT2016","GOODPRO2016","SERVICEPROMAN2016","WAGEP & G2016","WAGETOT2016","WAGEGOODPRO2016","WAGESERVICEPRO2016","TOTP & G2017","TOT2017","GOODPRO2017","SERVICEPROMAN2017","WAGEP & G2017","WAGETOT2017","WAGEGOODPRO2017","WAGESERVICEPRO2017","TOTP & G2018","TOT2018","GOODPRO2018","SERVICEPROMAN2018","WAGEP & G2018","WAGETOT2018","WAGEGOODPRO2018","WAGESERVICEPRO2018","TOTP & G2019","TOT2019","TOTGov2019","GOODPRO2019","SERVICEPROMAN2019","WAGEP & G2019","WAGETOT2019","WAGEGov2019","WAGEGOODPRO2019","WAGESERVICEPRO2019","SummaryLevel"]
[{"$f":"VLOOKUP(DropDownList!$B$47,CntyQuery!$A$170:$FJ$213,A$1)","v":"Atkinson"},{"$f":"VLOOKUP(DropDownList!$B$47,CntyQuery!$A$170:$FJ$213,B$1)","v":8},{"$f":"VLOOKUP(DropDownList!$B$47,CntyQuery!$A$170:$FJ$213,C$1)","v":799},{"$f":"VLOOKUP(DropDownList!$B$47,CntyQuery!$A$170:$FJ$213,D$1)","v":743},{"$f":"VLOOKUP(DropDownList!$B$47,CntyQuery!$A$170:$FJ$213,E$1)","v":261},{"$f":"VLOOKUP(DropDownList!$B$47,CntyQuery!$A$170:$FJ$213,F$1)","v":482},{"$f":"VLOOKUP(DropDownList!$B$47,CntyQuery!$A$170:$FJ$213,G$1)","v":745.92},{"$f":"VLOOKUP(DropDownList!$B$47,CntyQuery!$A$170:$FJ$213,H$1)","v":773.45},{"$f":"VLOOKUP(DropDownList!$B$47,CntyQuery!$A$170:$FJ$213,I$1)","v":806.51},{"$f":"VLOOKUP(DropDownList!$B$47,CntyQuery!$A$170:$FJ$213,J$1)","v":755.52},{"$f":"VLOOKUP(DropDownList!$B$47,CntyQuery!$A$170:$FJ$213,K$1)","v":939},{"$f":"VLOOKUP(DropDownList!$B$47,CntyQuery!$A$170:$FJ$213,L$1)","v":848},{"$f":"VLOOKUP(DropDownList!$B$47,CntyQuery!$A$170:$FJ$213,M$1)","v":250},{"$f":"VLOOKUP(DropDownList!$B$47,CntyQuery!$A$170:$FJ$213,N$1)","v":598},{"$f":"VLOOKUP(DropDownList!$B$47,CntyQuery!$A$170:$FJ$213,O$1)","v":675.63},{"$f":"VLOOKUP(DropDownList!$B$47,CntyQuery!$A$170:$FJ$213,P$1)","v":719.84},{"$f":"VLOOKUP(DropDownList!$B$47,CntyQuery!$A$170:$FJ$213,Q$1)","v":866.61},{"$f":"VLOOKUP(DropDownList!$B$47,CntyQuery!$A$170:$FJ$213,R$1)","v":658.49},{"$f":"VLOOKUP(DropDownList!$B$47,CntyQuery!$A$170:$FJ$213,S$1)","v":996},{"$f":"VLOOKUP(DropDownList!$B$47,CntyQuery!$A$170:$FJ$213,T$1)","v":924},{"$f":"VLOOKUP(DropDownList!$B$47,CntyQuery!$A$170:$FJ$213,U$1)","v":244},{"$f":"VLOOKUP(DropDownList!$B$47,CntyQuery!$A$170:$FJ$213,V$1)","v":680},{"$f":"VLOOKUP(DropDownList!$B$47,CntyQuery!$A$170:$FJ$213,W$1)","v":661.16},{"$f":"VLOOKUP(DropDownList!$B$47,CntyQuery!$A$170:$FJ$213,X$1)","v":685.27},{"$f":"VLOOKUP(DropDownList!$B$47,CntyQuery!$A$170:$FJ$213,Y$1)","v":878.72},{"$f":"VLOOKUP(DropDownList!$B$47,CntyQuery!$A$170:$FJ$213,Z$1)","v":615.87},{"$f":"VLOOKUP(DropDownList!$B$47,CntyQuery!$A$170:$FJ$213,AA$1)","v":952},{"$f":"VLOOKUP(DropDownList!$B$47,CntyQuery!$A$170:$FJ$213,AB$1)","v":891},{"$f":"VLOOKUP(DropDownList!$B$47,CntyQuery!$A$170:$FJ$213,AC$1)","v":239},{"$f":"VLOOKUP(DropDownList!$B$47,CntyQuery!$A$170:$FJ$213,AD$1)","v":652},{"$f":"VLOOKUP(DropDownList!$B$47,CntyQuery!$A$170:$FJ$213,AE$1)","v":697.71},{"$f":"VLOOKUP(DropDownList!$B$47,CntyQuery!$A$170:$FJ$213,AF$1)","v":715.81},{"$f":"VLOOKUP(DropDownList!$B$47,CntyQuery!$A$170:$FJ$213,AG$1)","v":984.22},{"$f":"VLOOKUP(DropDownList!$B$47,CntyQuery!$A$170:$FJ$213,AH$1)","v":617.16999999999996},{"$f":"VLOOKUP(DropDownList!$B$47,CntyQuery!$A$170:$FJ$213,AI$1)","v":971},{"$f":"VLOOKUP(DropDownList!$B$47,CntyQuery!$A$170:$FJ$213,AJ$1)","v":901},{"$f":"VLOOKUP(DropDownList!$B$47,CntyQuery!$A$170:$FJ$213,AK$1)","v":236},{"$f":"VLOOKUP(DropDownList!$B$47,CntyQuery!$A$170:$FJ$213,AL$1)","v":665},{"$f":"VLOOKUP(DropDownList!$B$47,CntyQuery!$A$170:$FJ$213,AM$1)","v":752.67},{"$f":"VLOOKUP(DropDownList!$B$47,CntyQuery!$A$170:$FJ$213,AN$1)","v":779.44},{"$f":"VLOOKUP(DropDownList!$B$47,CntyQuery!$A$170:$FJ$213,AO$1)","v":1064.3399999999999},{"$f":"VLOOKUP(DropDownList!$B$47,CntyQuery!$A$170:$FJ$213,AP$1)","v":678.14},{"$f":"VLOOKUP(DropDownList!$B$47,CntyQuery!$A$170:$FJ$213,AQ$1)","v":1014},{"$f":"VLOOKUP(DropDownList!$B$47,CntyQuery!$A$170:$FJ$213,AR$1)","v":954},{"$f":"VLOOKUP(DropDownList!$B$47,CntyQuery!$A$170:$FJ$213,AS$1)","v":318},{"$f":"VLOOKUP(DropDownList!$B$47,CntyQuery!$A$170:$FJ$213,AT$1)","v":636},{"$f":"VLOOKUP(DropDownList!$B$47,CntyQuery!$A$170:$FJ$213,AU$1)","v":730.61},{"$f":"VLOOKUP(DropDownList!$B$47,CntyQuery!$A$170:$FJ$213,AV$1)","v":745.35},{"$f":"VLOOKUP(DropDownList!$B$47,CntyQuery!$A$170:$FJ$213,AW$1)","v":943.26},{"$f":"VLOOKUP(DropDownList!$B$47,CntyQuery!$A$170:$FJ$213,AX$1)","v":646.19000000000005},{"$f":"VLOOKUP(DropDownList!$B$47,CntyQuery!$A$170:$FJ$213,AY$1)","v":1007},{"$f":"VLOOKUP(DropDownList!$B$47,CntyQuery!$A$170:$FJ$213,AZ$1)","v":939},{"$f":"VLOOKUP(DropDownList!$B$47,CntyQuery!$A$170:$FJ$213,BA$1)","v":309},{"$f":"VLOOKUP(DropDownList!$B$47,CntyQuery!$A$170:$FJ$213,BB$1)","v":630},{"$f":"VLOOKUP(DropDownList!$B$47,CntyQuery!$A$170:$FJ$213,BC$1)","v":849.4},{"$f":"VLOOKUP(DropDownList!$B$47,CntyQuery!$A$170:$FJ$213,BD$1)","v":870.92},{"$f":"VLOOKUP(DropDownList!$B$47,CntyQuery!$A$170:$FJ$213,BE$1)","v":1096.54},{"$f":"VLOOKUP(DropDownList!$B$47,CntyQuery!$A$170:$FJ$213,BF$1)","v":760.51},{"$f":"VLOOKUP(DropDownList!$B$47,CntyQuery!$A$170:$FJ$213,BG$1)","v":1002},{"$f":"VLOOKUP(DropDownList!$B$47,CntyQuery!$A$170:$FJ$213,BH$1)","v":939},{"$f":"VLOOKUP(DropDownList!$B$47,CntyQuery!$A$170:$FJ$213,BI$1)","v":253},{"$f":"VLOOKUP(DropDownList!$B$47,CntyQuery!$A$170:$FJ$213,BJ$1)","v":686},{"$f":"VLOOKUP(DropDownList!$B$47,CntyQuery!$A$170:$FJ$213,BK$1)","v":902.65},{"$f":"VLOOKUP(DropDownList!$B$47,CntyQuery!$A$170:$FJ$213,BL$1)","v":925},{"$f":"VLOOKUP(DropDownList!$B$47,CntyQuery!$A$170:$FJ$213,BM$1)","v":1140.47},{"$f":"VLOOKUP(DropDownList!$B$47,CntyQuery!$A$170:$FJ$213,BN$1)","v":845.58},{"$f":"VLOOKUP(DropDownList!$B$47,CntyQuery!$A$170:$FJ$213,BO$1)","v":922},{"$f":"VLOOKUP(DropDownList!$B$47,CntyQuery!$A$170:$FJ$213,BP$1)","v":856},{"$f":"VLOOKUP(DropDownList!$B$47,CntyQuery!$A$170:$FJ$213,BQ$1)","v":221},{"$f":"VLOOKUP(DropDownList!$B$47,CntyQuery!$A$170:$FJ$213,BR$1)","v":636},{"$f":"VLOOKUP(DropDownList!$B$47,CntyQuery!$A$170:$FJ$213,BS$1)","v":847.83},{"$f":"VLOOKUP(DropDownList!$B$47,CntyQuery!$A$170:$FJ$213,BT$1)","v":870.43},{"$f":"VLOOKUP(DropDownList!$B$47,CntyQuery!$A$170:$FJ$213,BU$1)","v":1100.69},{"$f":"VLOOKUP(DropDownList!$B$47,CntyQuery!$A$170:$FJ$213,BV$1)","v":790.55},{"$f":"VLOOKUP(DropDownList!$B$47,CntyQuery!$A$170:$FJ$213,BW$1)","v":949},{"$f":"VLOOKUP(DropDownList!$B$47,CntyQuery!$A$170:$FJ$213,BX$1)","v":884},{"$f":"VLOOKUP(DropDownList!$B$47,CntyQuery!$A$170:$FJ$213,BY$1)","v":242},{"$f":"VLOOKUP(DropDownList!$B$47,CntyQuery!$A$170:$FJ$213,BZ$1)","v":642},{"$f":"VLOOKUP(DropDownList!$B$47,CntyQuery!$A$170:$FJ$213,CA$1)","v":862.69},{"$f":"VLOOKUP(DropDownList!$B$47,CntyQuery!$A$170:$FJ$213,CB$1)","v":885.51},{"$f":"VLOOKUP(DropDownList!$B$47,CntyQuery!$A$170:$FJ$213,CC$1)","v":1069.5999999999999},{"$f":"VLOOKUP(DropDownList!$B$47,CntyQuery!$A$170:$FJ$213,CD$1)","v":816.24},{"$f":"VLOOKUP(DropDownList!$B$47,CntyQuery!$A$170:$FJ$213,CE$1)","v":958},{"$f":"VLOOKUP(DropDownList!$B$47,CntyQuery!$A$170:$FJ$213,CF$1)","v":893},{"$f":"VLOOKUP(DropDownList!$B$47,CntyQuery!$A$170:$FJ$213,CG$1)","v":286},{"$f":"VLOOKUP(DropDownList!$B$47,CntyQuery!$A$170:$FJ$213,CH$1)","v":608},{"$f":"VLOOKUP(DropDownList!$B$47,CntyQuery!$A$170:$FJ$213,CI$1)","v":882.75},{"$f":"VLOOKUP(DropDownList!$B$47,CntyQuery!$A$170:$FJ$213,CJ$1)","v":906.06},{"$f":"VLOOKUP(DropDownList!$B$47,CntyQuery!$A$170:$FJ$213,CK$1)","v":1089.76},{"$f":"VLOOKUP(DropDownList!$B$47,CntyQuery!$A$170:$FJ$213,CL$1)","v":819.77},{"$f":"VLOOKUP(DropDownList!$B$47,CntyQuery!$A$170:$FJ$213,CM$1)","v":1112},{"$f":"VLOOKUP(DropDownList!$B$47,CntyQuery!$A$170:$FJ$213,CN$1)","v":1046},{"$f":"VLOOKUP(DropDownList!$B$47,CntyQuery!$A$170:$FJ$213,CO$1)","v":404},{"$f":"VLOOKUP(DropDownList!$B$47,CntyQuery!$A$170:$FJ$213,CP$1)","v":641},{"$f":"VLOOKUP(DropDownList!$B$47,CntyQuery!$A$170:$FJ$213,CQ$1)","v":858.1},{"$f":"VLOOKUP(DropDownList!$B$47,CntyQuery!$A$170:$FJ$213,CR$1)","v":874.97},{"$f":"VLOOKUP(DropDownList!$B$47,CntyQuery!$A$170:$FJ$213,CS$1)","v":994.08},{"$f":"VLOOKUP(DropDownList!$B$47,CntyQuery!$A$170:$FJ$213,CT$1)","v":799.93},{"$f":"VLOOKUP(DropDownList!$B$47,CntyQuery!$A$170:$FJ$213,CU$1)","v":1164},{"$f":"VLOOKUP(DropDownList!$B$47,CntyQuery!$A$170:$FJ$213,CV$1)","v":1098},{"$f":"VLOOKUP(DropDownList!$B$47,CntyQuery!$A$170:$FJ$213,CW$1)","v":416},{"$f":"VLOOKUP(DropDownList!$B$47,CntyQuery!$A$170:$FJ$213,CX$1)","v":682},{"$f":"VLOOKUP(DropDownList!$B$47,CntyQuery!$A$170:$FJ$213,CY$1)","v":860.51},{"$f":"VLOOKUP(DropDownList!$B$47,CntyQuery!$A$170:$FJ$213,CZ$1)","v":877.09},{"$f":"VLOOKUP(DropDownList!$B$47,CntyQuery!$A$170:$FJ$213,DA$1)","v":943.5},{"$f":"VLOOKUP(DropDownList!$B$47,CntyQuery!$A$170:$FJ$213,DB$1)","v":836.57},{"$f":"VLOOKUP(DropDownList!$B$47,CntyQuery!$A$170:$FJ$213,DC$1)","v":1197},{"$f":"VLOOKUP(DropDownList!$B$47,CntyQuery!$A$170:$FJ$213,DD$1)","v":1130},{"$f":"VLOOKUP(DropDownList!$B$47,CntyQuery!$A$170:$FJ$213,DE$1)","v":413},{"$f":"VLOOKUP(DropDownList!$B$47,CntyQuery!$A$170:$FJ$213,DF$1)","v":716},{"$f":"VLOOKUP(DropDownList!$B$47,CntyQuery!$A$170:$FJ$213,DG$1)","v":929},{"$f":"VLOOKUP(DropDownList!$B$47,CntyQuery!$A$170:$FJ$213,DH$1)","v":949.67},{"$f":"VLOOKUP(DropDownList!$B$47,CntyQuery!$A$170:$FJ$213,DI$1)","v":1041.71},{"$f":"VLOOKUP(DropDownList!$B$47,CntyQuery!$A$170:$FJ$213,DJ$1)","v":896.53},{"$f":"VLOOKUP(DropDownList!$B$47,CntyQuery!$A$170:$FJ$213,DK$1)","v":1180},{"$f":"VLOOKUP(DropDownList!$B$47,CntyQuery!$A$170:$FJ$213,DL$1)","v":1114},{"$f":"VLOOKUP(DropDownList!$B$47,CntyQuery!$A$170:$FJ$213,DM$1)","v":381},{"$f":"VLOOKUP(DropDownList!$B$47,CntyQuery!$A$170:$FJ$213,DN$1)","v":733},{"$f":"VLOOKUP(DropDownList!$B$47,CntyQuery!$A$170:$FJ$213,DO$1)","v":962.04},{"$f":"VLOOKUP(DropDownList!$B$47,CntyQuery!$A$170:$FJ$213,DP$1)","v":980.76},{"$f":"VLOOKUP(DropDownList!$B$47,CntyQuery!$A$170:$FJ$213,DQ$1)","v":1074.8599999999999},{"$f":"VLOOKUP(DropDownList!$B$47,CntyQuery!$A$170:$FJ$213,DR$1)","v":931.82},{"$f":"VLOOKUP(DropDownList!$B$47,CntyQuery!$A$170:$FJ$213,DS$1)","v":1194},{"$f":"VLOOKUP(DropDownList!$B$47,CntyQuery!$A$170:$FJ$213,DT$1)","v":1128},{"$f":"VLOOKUP(DropDownList!$B$47,CntyQuery!$A$170:$FJ$213,DU$1)","v":386},{"$f":"VLOOKUP(DropDownList!$B$47,CntyQuery!$A$170:$FJ$213,DV$1)","v":742},{"$f":"VLOOKUP(DropDownList!$B$47,CntyQuery!$A$170:$FJ$213,DW$1)","v":975.77},{"$f":"VLOOKUP(DropDownList!$B$47,CntyQuery!$A$170:$FJ$213,DX$1)","v":993.46},{"$f":"VLOOKUP(DropDownList!$B$47,CntyQuery!$A$170:$FJ$213,DY$1)","v":1193.6500000000001},{"$f":"VLOOKUP(DropDownList!$B$47,CntyQuery!$A$170:$FJ$213,DZ$1)","v":889.25},{"$f":"VLOOKUP(DropDownList!$B$47,CntyQuery!$A$170:$FJ$213,EA$1)","v":1296},{"$f":"VLOOKUP(DropDownList!$B$47,CntyQuery!$A$170:$FJ$213,EB$1)","v":1226},{"$f":"VLOOKUP(DropDownList!$B$47,CntyQuery!$A$170:$FJ$213,EC$1)","v":407},{"$f":"VLOOKUP(DropDownList!$B$47,CntyQuery!$A$170:$FJ$213,ED$1)","v":818},{"$f":"VLOOKUP(DropDownList!$B$47,CntyQuery!$A$170:$FJ$213,EE$1)","v":970.74},{"$f":"VLOOKUP(DropDownList!$B$47,CntyQuery!$A$170:$FJ$213,EF$1)","v":988.17},{"$f":"VLOOKUP(DropDownList!$B$47,CntyQuery!$A$170:$FJ$213,EG$1)","v":1242.45},{"$f":"VLOOKUP(DropDownList!$B$47,CntyQuery!$A$170:$FJ$213,EH$1)","v":861.61},{"$f":"VLOOKUP(DropDownList!$B$47,CntyQuery!$A$170:$FJ$213,EI$1)","v":1237},{"$f":"VLOOKUP(DropDownList!$B$47,CntyQuery!$A$170:$FJ$213,EJ$1)","v":1169},{"$f":"VLOOKUP(DropDownList!$B$47,CntyQuery!$A$170:$FJ$213,EK$1)","v":386},{"$f":"VLOOKUP(DropDownList!$B$47,CntyQuery!$A$170:$FJ$213,EL$1)","v":783},{"$f":"VLOOKUP(DropDownList!$B$47,CntyQuery!$A$170:$FJ$213,EM$1)","v":993.9},{"$f":"VLOOKUP(DropDownList!$B$47,CntyQuery!$A$170:$FJ$213,EN$1)","v":1009.02},{"$f":"VLOOKUP(DropDownList!$B$47,CntyQuery!$A$170:$FJ$213,EO$1)","v":1256.43},{"$f":"VLOOKUP(DropDownList!$B$47,CntyQuery!$A$170:$FJ$213,EP$1)","v":887.13},{"$f":"VLOOKUP(DropDownList!$B$47,CntyQuery!$A$170:$FJ$213,EQ$1)","v":1265},{"$f":"VLOOKUP(DropDownList!$B$47,CntyQuery!$A$170:$FJ$213,ER$1)","v":1197},{"$f":"VLOOKUP(DropDownList!$B$47,CntyQuery!$A$170:$FJ$213,ES$1)","v":68},{"$f":"VLOOKUP(DropDownList!$B$47,CntyQuery!$A$170:$FJ$213,ET$1)","v":374},{"$f":"VLOOKUP(DropDownList!$B$47,CntyQuery!$A$170:$FJ$213,EU$1)","v":823},{"$f":"VLOOKUP(DropDownList!$B$47,CntyQuery!$A$170:$FJ$213,EV$1)","v":992.48},{"$f":"VLOOKUP(DropDownList!$B$47,CntyQuery!$A$170:$FJ$213,EW$1)","v":1004.54},{"$f":"VLOOKUP(DropDownList!$B$47,CntyQuery!$A$170:$FJ$213,EX$1)","v":779.19},{"$f":"VLOOKUP(DropDownList!$B$47,CntyQuery!$A$170:$FJ$213,EY$1)","v":1212.76},{"$f":"VLOOKUP(DropDownList!$B$47,CntyQuery!$A$170:$FJ$213,EZ$1)","v":909.88},{"$f":"VLOOKUP(DropDownList!$B$47,CntyQuery!$A$170:$FJ$213,FA$1)","v":60}]
[]
[]
["Labor Force and Unemployment Rate","Query Name: DPQryUnempByCnty"]
["PlaceName","LaborForce1990","LaborForce1991","LaborForce1992","LaborForce1993","LaborForce1994","LaborForce1995","LaborForce1996","LaborForce1997","LaborForce1998","LaborForce1999","LaborForce2000","LaborForce2001","LaborForce2002","LaborForce2003","NumbEmployed1990","NumbEmployed1991","NumbEmployed1992","NumbEmployed1993","NumbEmployed1994","NumbEmployed1995","NumbEmployed1996","NumbEmployed1997","NumbEmployed1998","NumbEmployed1999","NumbEmployed2000","NumbEmployed2001","NumbEmployed2002","NumbEmployed2003","UnempRate1990","UnempRate1991","UnempRate1992","UnempRate1993","UnempRate1994","UnempRate1995","UnempRate1996","UnempRate1997","UnempRate1998","UnempRate1999","UnempRate2000","UnempRate2001","UnempRate2002","UnempRate2003","NumbUnEmp1990","NumbUnEmp1991","NumbUnEmp1992","NumbUnEmp1993","NumbUnEmp1994","NumbUnEmp1995","NumbUnEmp1996","NumbUnEmp1997","NumbUnEmp1998","NumbUnEmp1999","NumbUnEmp2000","NumbUnEmp2001","NumbUnEmp2002","NumbUnEmp2003","LaborForce2004","NumbEmployed2004","UnempRate2004","NumbUnEmp2004","LaborForce2005","NumbEmployed2005","NumbUnEmp2005","UnempRate2005","LaborForce2006","NumbEmployed2006","NumbUnEmp2006","UnempRate2006","LaborForce2007","NumbEmployed2007","NumbUnEmp2007","UnempRate2007","LaborForce2008","NumbEmployed2008","NumbUnEmp2008","UnempRate2008","LaborForce2009","NumbEmployed2009","NumbUnEmp2009","UnempRate2009","LaborForce2010","NumbEmployed2010","NumbUnEmp2010","UnempRate2010","LaborForce2011","NumbEmployed2011","NumbUnEmp2011","UnempRate2011","LaborForce2012","NumbEmployed2012","NumbUnEmp2012","UnempRate2012","LaborForce2013","NumbEmployed2013","NumbUnEmp2013","UnempRate2013","LaborForce2014","NumbEmployed2014","NumbUnEmp2014","UnempRate2014","LaborForce2015","NumbEmployed2015","NumbUnEmp2015","UnempRate2015","LaborForce2016","NumbEmployed2016","NumbUnEmp2016","UnempRate2016","LaborForce2017","NumbEmployed2017","NumbUnEmp2017","UnempRate2017","LaborForce2018","NumbEmployed2018","NumbUnEmp2018","UnempRate2018","LaborForce2019","NumbEmployed2019","NumbUnEmp2019","UnempRate2019","Place-TownIDNumber"]
[{"$f":"VLOOKUP(DropDownList!$B$47,CntyQuery!$A$170:$FJ$213,A$1)","v":"Atkinson"},{"$f":"VLOOKUP(DropDownList!$B$47,CntyQuery!$A$220:$EF$229,B$1)","v":{"$error":"#N/A"}},{"$f":"VLOOKUP(DropDownList!$B$47,CntyQuery!$A$220:$EF$229,C$1)","v":{"$error":"#N/A"}},{"$f":"VLOOKUP(DropDownList!$B$47,CntyQuery!$A$220:$EF$229,D$1)","v":{"$error":"#N/A"}},{"$f":"VLOOKUP(DropDownList!$B$47,CntyQuery!$A$220:$EF$229,E$1)","v":{"$error":"#N/A"}},{"$f":"VLOOKUP(DropDownList!$B$47,CntyQuery!$A$220:$EF$229,F$1)","v":{"$error":"#N/A"}},{"$f":"VLOOKUP(DropDownList!$B$47,CntyQuery!$A$220:$EF$229,G$1)","v":{"$error":"#N/A"}},{"$f":"VLOOKUP(DropDownList!$B$47,CntyQuery!$A$220:$EF$229,H$1)","v":{"$error":"#N/A"}},{"$f":"VLOOKUP(DropDownList!$B$47,CntyQuery!$A$220:$EF$229,I$1)","v":{"$error":"#N/A"}},{"$f":"VLOOKUP(DropDownList!$B$47,CntyQuery!$A$220:$EF$229,J$1)","v":{"$error":"#N/A"}},{"$f":"VLOOKUP(DropDownList!$B$47,CntyQuery!$A$220:$EF$229,K$1)","v":{"$error":"#N/A"}},{"$f":"VLOOKUP(DropDownList!$B$47,CntyQuery!$A$220:$EF$229,L$1)","v":{"$error":"#N/A"}},{"$f":"VLOOKUP(DropDownList!$B$47,CntyQuery!$A$220:$EF$229,M$1)","v":{"$error":"#N/A"}},{"$f":"VLOOKUP(DropDownList!$B$47,CntyQuery!$A$220:$EF$229,N$1)","v":{"$error":"#N/A"}},{"$f":"VLOOKUP(DropDownList!$B$47,CntyQuery!$A$220:$EF$229,O$1)","v":{"$error":"#N/A"}},{"$f":"VLOOKUP(DropDownList!$B$47,CntyQuery!$A$220:$EF$229,P$1)","v":{"$error":"#N/A"}},{"$f":"VLOOKUP(DropDownList!$B$47,CntyQuery!$A$220:$EF$229,Q$1)","v":{"$error":"#N/A"}},{"$f":"VLOOKUP(DropDownList!$B$47,CntyQuery!$A$220:$EF$229,R$1)","v":{"$error":"#N/A"}},{"$f":"VLOOKUP(DropDownList!$B$47,CntyQuery!$A$220:$EF$229,S$1)","v":{"$error":"#N/A"}},{"$f":"VLOOKUP(DropDownList!$B$47,CntyQuery!$A$220:$EF$229,T$1)","v":{"$error":"#N/A"}},{"$f":"VLOOKUP(DropDownList!$B$47,CntyQuery!$A$220:$EF$229,U$1)","v":{"$error":"#N/A"}},{"$f":"VLOOKUP(DropDownList!$B$47,CntyQuery!$A$220:$EF$229,V$1)","v":{"$error":"#N/A"}},{"$f":"VLOOKUP(DropDownList!$B$47,CntyQuery!$A$220:$EF$229,W$1)","v":{"$error":"#N/A"}},{"$f":"VLOOKUP(DropDownList!$B$47,CntyQuery!$A$220:$EF$229,X$1)","v":{"$error":"#N/A"}},{"$f":"VLOOKUP(DropDownList!$B$47,CntyQuery!$A$220:$EF$229,Y$1)","v":{"$error":"#N/A"}},{"$f":"VLOOKUP(DropDownList!$B$47,CntyQuery!$A$220:$EF$229,Z$1)","v":{"$error":"#N/A"}},{"$f":"VLOOKUP(DropDownList!$B$47,CntyQuery!$A$220:$EF$229,AA$1)","v":{"$error":"#N/A"}},{"$f":"VLOOKUP(DropDownList!$B$47,CntyQuery!$A$220:$EF$229,AB$1)","v":{"$error":"#N/A"}},{"$f":"VLOOKUP(DropDownList!$B$47,CntyQuery!$A$220:$EF$229,AC$1)","v":{"$error":"#N/A"}},{"$f":"VLOOKUP(DropDownList!$B$47,CntyQuery!$A$220:$EF$229,AD$1)","v":{"$error":"#N/A"}},{"$f":"VLOOKUP(DropDownList!$B$47,CntyQuery!$A$220:$EF$229,AE$1)","v":{"$error":"#N/A"}},{"$f":"VLOOKUP(DropDownList!$B$47,CntyQuery!$A$220:$EF$229,AF$1)","v":{"$error":"#N/A"}},{"$f":"VLOOKUP(DropDownList!$B$47,CntyQuery!$A$220:$EF$229,AG$1)","v":{"$error":"#N/A"}},{"$f":"VLOOKUP(DropDownList!$B$47,CntyQuery!$A$220:$EF$229,AH$1)","v":{"$error":"#N/A"}},{"$f":"VLOOKUP(DropDownList!$B$47,CntyQuery!$A$220:$EF$229,AI$1)","v":{"$error":"#N/A"}},{"$f":"VLOOKUP(DropDownList!$B$47,CntyQuery!$A$220:$EF$229,AJ$1)","v":{"$error":"#N/A"}},{"$f":"VLOOKUP(DropDownList!$B$47,CntyQuery!$A$220:$EF$229,AK$1)","v":{"$error":"#N/A"}},{"$f":"VLOOKUP(DropDownList!$B$47,CntyQuery!$A$220:$EF$229,AL$1)","v":{"$error":"#N/A"}},{"$f":"VLOOKUP(DropDownList!$B$47,CntyQuery!$A$220:$EF$229,AM$1)","v":{"$error":"#N/A"}},{"$f":"VLOOKUP(DropDownList!$B$47,CntyQuery!$A$220:$EF$229,AN$1)","v":{"$error":"#N/A"}},{"$f":"VLOOKUP(DropDownList!$B$47,CntyQuery!$A$220:$EF$229,AO$1)","v":{"$error":"#N/A"}},{"$f":"VLOOKUP(DropDownList!$B$47,CntyQuery!$A$220:$EF$229,AP$1)","v":{"$error":"#N/A"}},{"$f":"VLOOKUP(DropDownList!$B$47,CntyQuery!$A$220:$EF$229,AQ$1)","v":{"$error":"#N/A"}},{"$f":"VLOOKUP(DropDownList!$B$47,CntyQuery!$A$220:$EF$229,AR$1)","v":{"$error":"#N/A"}},{"$f":"VLOOKUP(DropDownList!$B$47,CntyQuery!$A$220:$EF$229,AS$1)","v":{"$error":"#N/A"}},{"$f":"VLOOKUP(DropDownList!$B$47,CntyQuery!$A$220:$EF$229,AT$1)","v":{"$error":"#N/A"}},{"$f":"VLOOKUP(DropDownList!$B$47,CntyQuery!$A$220:$EF$229,AU$1)","v":{"$error":"#N/A"}},{"$f":"VLOOKUP(DropDownList!$B$47,CntyQuery!$A$220:$EF$229,AV$1)","v":{"$error":"#N/A"}},{"$f":"VLOOKUP(DropDownList!$B$47,CntyQuery!$A$220:$EF$229,AW$1)","v":{"$error":"#N/A"}},{"$f":"VLOOKUP(DropDownList!$B$47,CntyQuery!$A$220:$EF$229,AX$1)","v":{"$error":"#N/A"}},{"$f":"VLOOKUP(DropDownList!$B$47,CntyQuery!$A$220:$EF$229,AY$1)","v":{"$error":"#N/A"}},{"$f":"VLOOKUP(DropDownList!$B$47,CntyQuery!$A$220:$EF$229,AZ$1)","v":{"$error":"#N/A"}},{"$f":"VLOOKUP(DropDownList!$B$47,CntyQuery!$A$220:$EF$229,BA$1)","v":{"$error":"#N/A"}},{"$f":"VLOOKUP(DropDownList!$B$47,CntyQuery!$A$220:$EF$229,BB$1)","v":{"$error":"#N/A"}},{"$f":"VLOOKUP(DropDownList!$B$47,CntyQuery!$A$220:$EF$229,BC$1)","v":{"$error":"#N/A"}},{"$f":"VLOOKUP(DropDownList!$B$47,CntyQuery!$A$220:$EF$229,BD$1)","v":{"$error":"#N/A"}},{"$f":"VLOOKUP(DropDownList!$B$47,CntyQuery!$A$220:$EF$229,BE$1)","v":{"$error":"#N/A"}},{"$f":"VLOOKUP(DropDownList!$B$47,CntyQuery!$A$220:$EF$229,BF$1)","v":{"$error":"#N/A"}},{"$f":"VLOOKUP(DropDownList!$B$47,CntyQuery!$A$220:$EF$229,BG$1)","v":{"$error":"#N/A"}},{"$f":"VLOOKUP(DropDownList!$B$47,CntyQuery!$A$220:$EF$229,BH$1)","v":{"$error":"#N/A"}},{"$f":"VLOOKUP(DropDownList!$B$47,CntyQuery!$A$220:$EF$229,BI$1)","v":{"$error":"#N/A"}},{"$f":"VLOOKUP(DropDownList!$B$47,CntyQuery!$A$220:$EF$229,BJ$1)","v":{"$error":"#N/A"}},{"$f":"VLOOKUP(DropDownList!$B$47,CntyQuery!$A$220:$EF$229,BK$1)","v":{"$error":"#N/A"}},{"$f":"VLOOKUP(DropDownList!$B$47,CntyQuery!$A$220:$EF$229,BL$1)","v":{"$error":"#N/A"}},{"$f":"VLOOKUP(DropDownList!$B$47,CntyQuery!$A$220:$EF$229,BM$1)","v":{"$error":"#N/A"}},{"$f":"VLOOKUP(DropDownList!$B$47,CntyQuery!$A$220:$EF$229,BN$1)","v":{"$error":"#N/A"}},{"$f":"VLOOKUP(DropDownList!$B$47,CntyQuery!$A$220:$EF$229,BO$1)","v":{"$error":"#N/A"}},{"$f":"VLOOKUP(DropDownList!$B$47,CntyQuery!$A$220:$EF$229,BP$1)","v":{"$error":"#N/A"}},{"$f":"VLOOKUP(DropDownList!$B$47,CntyQuery!$A$220:$EF$229,BQ$1)","v":{"$error":"#N/A"}},{"$f":"VLOOKUP(DropDownList!$B$47,CntyQuery!$A$220:$EF$229,BR$1)","v":{"$error":"#N/A"}},{"$f":"VLOOKUP(DropDownList!$B$47,CntyQuery!$A$220:$EF$229,BS$1)","v":{"$error":"#N/A"}},{"$f":"VLOOKUP(DropDownList!$B$47,CntyQuery!$A$220:$EF$229,BT$1)","v":{"$error":"#N/A"}},{"$f":"VLOOKUP(DropDownList!$B$47,CntyQuery!$A$220:$EF$229,BU$1)","v":{"$error":"#N/A"}},{"$f":"VLOOKUP(DropDownList!$B$47,CntyQuery!$A$220:$EF$229,BV$1)","v":{"$error":"#N/A"}},{"$f":"VLOOKUP(DropDownList!$B$47,CntyQuery!$A$220:$EF$229,BW$1)","v":{"$error":"#N/A"}},{"$f":"VLOOKUP(DropDownList!$B$47,CntyQuery!$A$220:$EF$229,BX$1)","v":{"$error":"#N/A"}},{"$f":"VLOOKUP(DropDownList!$B$47,CntyQuery!$A$220:$EF$229,BY$1)","v":{"$error":"#N/A"}},{"$f":"VLOOKUP(DropDownList!$B$47,CntyQuery!$A$220:$EF$229,BZ$1)","v":{"$error":"#N/A"}},{"$f":"VLOOKUP(DropDownList!$B$47,CntyQuery!$A$220:$EF$229,CA$1)","v":{"$error":"#N/A"}},{"$f":"VLOOKUP(DropDownList!$B$47,CntyQuery!$A$220:$EF$229,CB$1)","v":{"$error":"#N/A"}},{"$f":"VLOOKUP(DropDownList!$B$47,CntyQuery!$A$220:$EF$229,CC$1)","v":{"$error":"#N/A"}},{"$f":"VLOOKUP(DropDownList!$B$47,CntyQuery!$A$220:$EF$229,CD$1)","v":{"$error":"#N/A"}},{"$f":"VLOOKUP(DropDownList!$B$47,CntyQuery!$A$220:$EF$229,CE$1)","v":{"$error":"#N/A"}},{"$f":"VLOOKUP(DropDownList!$B$47,CntyQuery!$A$220:$EF$229,CF$1)","v":{"$error":"#N/A"}},{"$f":"VLOOKUP(DropDownList!$B$47,CntyQuery!$A$220:$EF$229,CG$1)","v":{"$error":"#N/A"}},{"$f":"VLOOKUP(DropDownList!$B$47,CntyQuery!$A$220:$EF$229,CH$1)","v":{"$error":"#N/A"}},{"$f":"VLOOKUP(DropDownList!$B$47,CntyQuery!$A$220:$EF$229,CI$1)","v":{"$error":"#N/A"}},{"$f":"VLOOKUP(DropDownList!$B$47,CntyQuery!$A$220:$EF$229,CJ$1)","v":{"$error":"#N/A"}},{"$f":"VLOOKUP(DropDownList!$B$47,CntyQuery!$A$220:$EF$229,CK$1)","v":{"$error":"#N/A"}},{"$f":"VLOOKUP(DropDownList!$B$47,CntyQuery!$A$220:$EF$229,CL$1)","v":{"$error":"#N/A"}},{"$f":"VLOOKUP(DropDownList!$B$47,CntyQuery!$A$220:$EF$229,CM$1)","v":{"$error":"#N/A"}},{"$f":"VLOOKUP(DropDownList!$B$47,CntyQuery!$A$220:$EF$229,CN$1)","v":{"$error":"#N/A"}},{"$f":"VLOOKUP(DropDownList!$B$47,CntyQuery!$A$220:$EF$229,CO$1)","v":{"$error":"#N/A"}},{"$f":"VLOOKUP(DropDownList!$B$47,CntyQuery!$A$220:$EF$229,CP$1)","v":{"$error":"#N/A"}},{"$f":"VLOOKUP(DropDownList!$B$47,CntyQuery!$A$220:$EF$229,CQ$1)","v":{"$error":"#N/A"}},{"$f":"VLOOKUP(DropDownList!$B$47,CntyQuery!$A$220:$EF$229,CR$1)","v":{"$error":"#N/A"}},{"$f":"VLOOKUP(DropDownList!$B$47,CntyQuery!$A$220:$EF$229,CS$1)","v":{"$error":"#N/A"}},{"$f":"VLOOKUP(DropDownList!$B$47,CntyQuery!$A$220:$EF$229,CT$1)","v":{"$error":"#N/A"}},{"$f":"VLOOKUP(DropDownList!$B$47,CntyQuery!$A$220:$EF$229,CU$1)","v":{"$error":"#N/A"}},{"$f":"VLOOKUP(DropDownList!$B$47,CntyQuery!$A$220:$EF$229,CV$1)","v":{"$error":"#N/A"}},{"$f":"VLOOKUP(DropDownList!$B$47,CntyQuery!$A$220:$EF$229,CW$1)","v":{"$error":"#N/A"}},{"$f":"VLOOKUP(DropDownList!$B$47,CntyQuery!$A$220:$EF$229,CX$1)","v":{"$error":"#N/A"}},{"$f":"VLOOKUP(DropDownList!$B$47,CntyQuery!$A$220:$EF$229,CY$1)","v":{"$error":"#N/A"}},{"$f":"VLOOKUP(DropDownList!$B$47,CntyQuery!$A$220:$EF$229,CZ$1)","v":{"$error":"#N/A"}},{"$f":"VLOOKUP(DropDownList!$B$47,CntyQuery!$A$220:$EF$229,DA$1)","v":{"$error":"#N/A"}},{"$f":"VLOOKUP(DropDownList!$B$47,CntyQuery!$A$220:$EF$229,DB$1)","v":{"$error":"#N/A"}},{"$f":"VLOOKUP(DropDownList!$B$47,CntyQuery!$A$220:$EF$229,DC$1)","v":{"$error":"#N/A"}},{"$f":"VLOOKUP(DropDownList!$B$47,CntyQuery!$A$220:$EF$229,DD$1)","v":{"$error":"#N/A"}},{"$f":"VLOOKUP(DropDownList!$B$47,CntyQuery!$A$220:$EF$229,DE$1)","v":{"$error":"#N/A"}},{"$f":"VLOOKUP(DropDownList!$B$47,CntyQuery!$A$220:$EF$229,DF$1)","v":{"$error":"#N/A"}},{"$f":"VLOOKUP(DropDownList!$B$47,CntyQuery!$A$220:$EF$229,DG$1)","v":{"$error":"#N/A"}},{"$f":"VLOOKUP(DropDownList!$B$47,CntyQuery!$A$220:$EF$229,DH$1)","v":{"$error":"#N/A"}},{"$f":"VLOOKUP(DropDownList!$B$47,CntyQuery!$A$220:$EF$229,DI$1)","v":{"$error":"#N/A"}},{"$f":"VLOOKUP(DropDownList!$B$47,CntyQuery!$A$220:$EF$229,DJ$1)","v":{"$error":"#N/A"}},{"$f":"VLOOKUP(DropDownList!$B$47,CntyQuery!$A$220:$EF$229,DK$1)","v":{"$error":"#N/A"}},{"$f":"VLOOKUP(DropDownList!$B$47,CntyQuery!$A$220:$EF$229,DL$1)","v":{"$error":"#N/A"}},{"$f":"VLOOKUP(DropDownList!$B$47,CntyQuery!$A$220:$EF$229,DM$1)","v":{"$error":"#N/A"}},{"$f":"VLOOKUP(DropDownList!$B$47,CntyQuery!$A$220:$EF$229,DN$1)","v":{"$error":"#N/A"}},{"$f":"VLOOKUP(DropDownList!$B$47,CntyQuery!$A$220:$EF$229,DO$1)","v":{"$error":"#N/A"}},{"$f":"VLOOKUP(DropDownList!$B$47,CntyQuery!$A$220:$EF$229,DP$1)","v":{"$error":"#N/A"}},{"$f":"VLOOKUP(DropDownList!$B$47,CntyQuery!$A$220:$EF$229,DQ$1)","v":{"$error":"#N/A"}},{"$f":"VLOOKUP(DropDownList!$B$47,CntyQuery!$A$220:$EF$229,DR$1)","v":{"$error":"#N/A"}}]
[]
[null,null,null,null,null,null,null,null,null,null,null,null,{"$f":"IF((CntyDataLink!$BL$25)=\"n\",NA(),IF(VALUE(CntyDataLink!$BL$25)=\"\",NA(),VALUE(CntyDataLink!$BL$25)))","v":925}]
["Census 2000   -           Query Name:  TownAllQuery3",2,{"$f":"B33+1","v":3},{"$f":"C33+1","v":4},5,6,7,8,9,10,11,12,13,14,15,16,17,18,19,20,21,22,23,24,25,26,27,28,29,30,31,32,33,34,35,36,37,38,39,40,41,42,43,44,45,46,47,48,49,50,51,52,53,54,55,56,57,58,59,60,61,62,63,64,65,66,67,{"$f":"BO33+1","v":68},69,70,71,72,73,74,75,76,77,78,79,80,81,82,83,84,85,86,87,88,89,90,91,92,93,94,95,96,97,98,99,100,101,102]
["NAME","COUNTY","LOGRECNO","COUSUB","TRACT","AREALAND","AREAWATR","POP100","HU100","2000Population","PopOfOneRace","PopWhite","PopBlack","PopAmIndian","PopAsian","PopHawaiian","PopOtherRace","Pop2orMoreRaces","PopHispanicLatino","PopNotHispanicLatino","PopMale","PopMale<15","PopMale15to24","PopMale25to34","PopMale35to44","PopMale45to54","PopMale55to64","PopMale65to74","PopMale75to84","PopMale85andOver","PopFemale","PopFemale<15","PopFemale15to24","PopFemale25to34","PopFemale35t44","PopFemale45to54","PopFemale55to64","PopFemale65to74","PopFemale75to84","PopFemale85andOver","Households2000","PopInHH","AvgHHSize","HHs1Person","HHs2orMorePerson","HHsFamily","HHMarriedCoupleFam","HHSingleParentFam","HHsNonFamily","Families","PopInFam","AvgFamSize","TotHsUnits","OccHsUnits","OwnerOccHU","RenterOccHU","VctHsUnits","VctHUForRent","VctHUForSale","VctHUSeasonal","PopInOccHU","PopInOwnOccHU","PopInRntOccHU","AvgHHSize2","AvgHHSizOwnOcc","AvgHHSizRntOcc","OwnOccWhtHsHldr","OwnOccBlkHsHldr","OwnOccAmIHsHldr","OwnOccAsnHsHldr","OwnOccPIsHsHldr","OwnOccORHsHldr","OwnOcc2RcHsHldr","RntOccWhtHsHldr","RntOccBlkHsHldr","RntOccAmIHsHldr","RntOccAsnHsHldr","RntOccPIsHsHldr","RntOccORHsHldr","RntOcc2RcHsHldr","OwnOccHH15to24","OwnOccHH25to34","OwnOccHH35to44","OwnOccHH45to54","OwnOccHH55to64","OwnOccHH65to74","OwnOccHH75to84","OwnOccHH85Over","RntOccHH15to24","RntOccHH25to34","RntOccHH35to44","RntOccHH45to54","RntOccHH55to64","RntOccHH65to74","RntOccHH75to84","RntOccHH85Over","P27TotalPop","P27PopInHseHlds","P27PopInGrpQtrs","Median Age Total","Median Age (Male)","Median Age (Female)"]
[{"$f":"VLOOKUP(DropDownList!$B$47,CntyQryCensus!$A$4:$CW$46,A$1)","v":"Atkinson"},{"$f":"VLOOKUP(DropDownList!$B$47,CntyQryCensus!$A$4:$CW$46,B$1)","v":"015"},{"$f":"VLOOKUP(DropDownList!$B$47,CntyQryCensus!$A$4:$CW$46,C$1)","v":"0026822"},{"$f":"VLOOKUP(DropDownList!$B$47,CntyQryCensus!$A$4:$CW$46,D$1)","v":"02340"},{"$f":"VLOOKUP(DropDownList!$B$47,CntyQryCensus!$A$4:$CW$46,E$1)","v":""},{"$f":"VLOOKUP(DropDownList!$B$47,CntyQryCensus!$A$4:$CW$46,F$1)","v":"      28822322"},{"$f":"VLOOKUP(DropDownList!$B$47,CntyQryCensus!$A$4:$CW$46,G$1)","v":"        418679"},{"$f":"VLOOKUP(DropDownList!$B$47,CntyQryCensus!$A$4:$CW$46,H$1)","v":6178},{"$f":"VLOOKUP(DropDownList!$B$47,CntyQryCensus!$A$4:$CW$46,I$1)","v":2431},{"$f":"VLOOKUP(DropDownList!$B$47,CntyQryCensus!$A$4:$CW$46,J$1)","v":6178},{"$f":"VLOOKUP(DropDownList!$B$47,CntyQryCensus!$A$4:$CW$46,K$1)","v":6137},{"$f":"VLOOKUP(DropDownList!$B$47,CntyQryCensus!$A$4:$CW$46,L$1)","v":6031},{"$f":"VLOOKUP(DropDownList!$B$47,CntyQryCensus!$A$4:$CW$46,M$1)","v":16},{"$f":"VLOOKUP(DropDownList!$B$47,CntyQryCensus!$A$4:$CW$46,N$1)","v":4},{"$f":"VLOOKUP(DropDownList!$B$47,CntyQryCensus!$A$4:$CW$46,O$1)","v":73},{"$f":"VLOOKUP(DropDownList!$B$47,CntyQryCensus!$A$4:$CW$46,P$1)","v":0},{"$f":"VLOOKUP(DropDownList!$B$47,CntyQryCensus!$A$4:$CW$46,Q$1)","v":13},{"$f":"VLOOKUP(DropDownList!$B$47,CntyQryCensus!$A$4:$CW$46,R$1)","v":41},{"$f":"VLOOKUP(DropDownList!$B$47,CntyQryCensus!$A$4:$CW$46,S$1)","v":43},{"$f":"VLOOKUP(DropDownList!$B$47,CntyQryCensus!$A$4:$CW$46,T$1)","v":6135},{"$f":"VLOOKUP(DropDownList!$B$47,CntyQryCensus!$A$4:$CW$46,U$1)","v":3008},{"$f":"VLOOKUP(DropDownList!$B$47,CntyQryCensus!$A$4:$CW$46,V$1)","v":609},{"$f":"VLOOKUP(DropDownList!$B$47,CntyQryCensus!$A$4:$CW$46,W$1)","v":280},{"$f":"VLOOKUP(DropDownList!$B$47,CntyQryCensus!$A$4:$CW$46,X$1)","v":299},{"$f":"VLOOKUP(DropDownList!$B$47,CntyQryCensus!$A$4:$CW$46,Y$1)","v":569},{"$f":"VLOOKUP(DropDownList!$B$47,CntyQryCensus!$A$4:$CW$46,Z$1)","v":536},{"$f":"VLOOKUP(DropDownList!$B$47,CntyQryCensus!$A$4:$CW$46,AA$1)","v":378},{"$f":"VLOOKUP(DropDownList!$B$47,CntyQryCensus!$A$4:$CW$46,AB$1)","v":225},{"$f":"VLOOKUP(DropDownList!$B$47,CntyQryCensus!$A$4:$CW$46,AC$1)","v":86},{"$f":"VLOOKUP(DropDownList!$B$47,CntyQryCensus!$A$4:$CW$46,AD$1)","v":26},{"$f":"VLOOKUP(DropDownList!$B$47,CntyQryCensus!$A$4:$CW$46,AE$1)","v":3170},{"$f":"VLOOKUP(DropDownList!$B$47,CntyQryCensus!$A$4:$CW$46,AF$1)","v":681},{"$f":"VLOOKUP(DropDownList!$B$47,CntyQryCensus!$A$4:$CW$46,AG$1)","v":252},{"$f":"VLOOKUP(DropDownList!$B$47,CntyQryCensus!$A$4:$CW$46,AH$1)","v":316},{"$f":"VLOOKUP(DropDownList!$B$47,CntyQryCensus!$A$4:$CW$46,AI$1)","v":573},{"$f":"VLOOKUP(DropDownList!$B$47,CntyQryCensus!$A$4:$CW$46,AJ$1)","v":598},{"$f":"VLOOKUP(DropDownList!$B$47,CntyQryCensus!$A$4:$CW$46,AK$1)","v":382},{"$f":"VLOOKUP(DropDownList!$B$47,CntyQryCensus!$A$4:$CW$46,AL$1)","v":228},{"$f":"VLOOKUP(DropDownList!$B$47,CntyQryCensus!$A$4:$CW$46,AM$1)","v":104},{"$f":"VLOOKUP(DropDownList!$B$47,CntyQryCensus!$A$4:$CW$46,AN$1)","v":36},{"$f":"VLOOKUP(DropDownList!$B$47,CntyQryCensus!$A$4:$CW$46,AO$1)","v":2317},{"$f":"VLOOKUP(DropDownList!$B$47,CntyQryCensus!$A$4:$CW$46,AP$1)","v":6174},{"$f":"VLOOKUP(DropDownList!$B$47,CntyQryCensus!$A$4:$CW$46,AQ$1)","v":2.66},{"$f":"VLOOKUP(DropDownList!$B$47,CntyQryCensus!$A$4:$CW$46,AR$1)","v":441},{"$f":"VLOOKUP(DropDownList!$B$47,CntyQryCensus!$A$4:$CW$46,AS$1)","v":1876},{"$f":"VLOOKUP(DropDownList!$B$47,CntyQryCensus!$A$4:$CW$46,AT$1)","v":1777},{"$f":"VLOOKUP(DropDownList!$B$47,CntyQryCensus!$A$4:$CW$46,AU$1)","v":1593},{"$f":"VLOOKUP(DropDownList!$B$47,CntyQryCensus!$A$4:$CW$46,AV$1)","v":184},{"$f":"VLOOKUP(DropDownList!$B$47,CntyQryCensus!$A$4:$CW$46,AW$1)","v":99},{"$f":"VLOOKUP(DropDownList!$B$47,CntyQryCensus!$A$4:$CW$46,AX$1)","v":1777},{"$f":"VLOOKUP(DropDownList!$B$47,CntyQryCensus!$A$4:$CW$46,AY$1)","v":5474},{"$f":"VLOOKUP(DropDownList!$B$47,CntyQryCensus!$A$4:$CW$46,AZ$1)","v":3.08},{"$f":"VLOOKUP(DropDownList!$B$47,CntyQryCensus!$A$4:$CW$46,BA$1)","v":2431},{"$f":"VLOOKUP(DropDownList!$B$47,CntyQryCensus!$A$4:$CW$46,BB$1)","v":2317},{"$f":"VLOOKUP(DropDownList!$B$47,CntyQryCensus!$A$4:$CW$46,BC$1)","v":2060},{"$f":"VLOOKUP(DropDownList!$B$47,CntyQryCensus!$A$4:$CW$46,BD$1)","v":257},{"$f":"VLOOKUP(DropDownList!$B$47,CntyQryCensus!$A$4:$CW$46,BE$1)","v":114},{"$f":"VLOOKUP(DropDownList!$B$47,CntyQryCensus!$A$4:$CW$46,BF$1)","v":4},{"$f":"VLOOKUP(DropDownList!$B$47,CntyQryCensus!$A$4:$CW$46,BG$1)","v":30},{"$f":"VLOOKUP(DropDownList!$B$47,CntyQryCensus!$A$4:$CW$46,BH$1)","v":67},{"$f":"VLOOKUP(DropDownList!$B$47,CntyQryCensus!$A$4:$CW$46,BI$1)","v":6174},{"$f":"VLOOKUP(DropDownList!$B$47,CntyQryCensus!$A$4:$CW$46,BJ$1)","v":5766},{"$f":"VLOOKUP(DropDownList!$B$47,CntyQryCensus!$A$4:$CW$46,BK$1)","v":408},{"$f":"VLOOKUP(DropDownList!$B$47,CntyQryCensus!$A$4:$CW$46,BL$1)","v":2.66},{"$f":"VLOOKUP(DropDownList!$B$47,CntyQryCensus!$A$4:$CW$46,BM$1)","v":2.8},{"$f":"VLOOKUP(DropDownList!$B$47,CntyQryCensus!$A$4:$CW$46,BN$1)","v":1.59},{"$f":"VLOOKUP(DropDownList!$B$47,CntyQryCensus!$A$4:$CW$46,BO$1)","v":2031},{"$f":"VLOOKUP(DropDownList!$B$47,CntyQryCensus!$A$4:$CW$46,BP$1)","v":6},{"$f":"VLOOKUP(DropDownList!$B$47,CntyQryCensus!$A$4:$CW$46,BQ$1)","v":0},{"$f":"VLOOKUP(DropDownList!$B$47,CntyQryCensus!$A$4:$CW$46,BR$1)","v":15},{"$f":"VLOOKUP(DropDownList!$B$47,CntyQryCensus!$A$4:$CW$46,BS$1)","v":0},{"$f":"VLOOKUP(DropDownList!$B$47,CntyQryCensus!$A$4:$CW$46,BT$1)","v":2},{"$f":"VLOOKUP(DropDownList!$B$47,CntyQryCensus!$A$4:$CW$46,BU$1)","v":6},{"$f":"VLOOKUP(DropDownList!$B$47,CntyQryCensus!$A$4:$CW$46,BV$1)","v":250},{"$f":"VLOOKUP(DropDownList!$B$47,CntyQryCensus!$A$4:$CW$46,BW$1)","v":1},{"$f":"VLOOKUP(DropDownList!$B$47,CntyQryCensus!$A$4:$CW$46,BX$1)","v":1},{"$f":"VLOOKUP(DropDownList!$B$47,CntyQryCensus!$A$4:$CW$46,BY$1)","v":0},{"$f":"VLOOKUP(DropDownList!$B$47,CntyQryCensus!$A$4:$CW$46,BZ$1)","v":0},{"$f":"VLOOKUP(DropDownList!$B$47,CntyQryCensus!$A$4:$CW$46,CA$1)","v":2},{"$f":"VLOOKUP(DropDownList!$B$47,CntyQryCensus!$A$4:$CW$46,CB$1)","v":3},{"$f":"VLOOKUP(DropDownList!$B$47,CntyQryCensus!$A$4:$CW$46,CC$1)","v":5},{"$f":"VLOOKUP(DropDownList!$B$47,CntyQryCensus!$A$4:$CW$46,CD$1)","v":179},{"$f":"VLOOKUP(DropDownList!$B$47,CntyQryCensus!$A$4:$CW$46,CE$1)","v":528},{"$f":"VLOOKUP(DropDownList!$B$47,CntyQryCensus!$A$4:$CW$46,CF$1)","v":561},{"$f":"VLOOKUP(DropDownList!$B$47,CntyQryCensus!$A$4:$CW$46,CG$1)","v":399},{"$f":"VLOOKUP(DropDownList!$B$47,CntyQryCensus!$A$4:$CW$46,CH$1)","v":262},{"$f":"VLOOKUP(DropDownList!$B$47,CntyQryCensus!$A$4:$CW$46,CI$1)","v":100},{"$f":"VLOOKUP(DropDownList!$B$47,CntyQryCensus!$A$4:$CW$46,CJ$1)","v":26},{"$f":"VLOOKUP(DropDownList!$B$47,CntyQryCensus!$A$4:$CW$46,CK$1)","v":11},{"$f":"VLOOKUP(DropDownList!$B$47,CntyQryCensus!$A$4:$CW$46,CL$1)","v":49},{"$f":"VLOOKUP(DropDownList!$B$47,CntyQryCensus!$A$4:$CW$46,CM$1)","v":55},{"$f":"VLOOKUP(DropDownList!$B$47,CntyQryCensus!$A$4:$CW$46,CN$1)","v":56},{"$f":"VLOOKUP(DropDownList!$B$47,CntyQryCensus!$A$4:$CW$46,CO$1)","v":33},{"$f":"VLOOKUP(DropDownList!$B$47,CntyQryCensus!$A$4:$CW$46,CP$1)","v":31},{"$f":"VLOOKUP(DropDownList!$B$47,CntyQryCensus!$A$4:$CW$46,CQ$1)","v":12},{"$f":"VLOOKUP(DropDownList!$B$47,CntyQryCensus!$A$4:$CW$46,CR$1)","v":10},{"$f":"VLOOKUP(DropDownList!$B$47,CntyQryCensus!$A$4:$CW$46,CS$1)","v":6178},{"$f":"VLOOKUP(DropDownList!$B$47,CntyQryCensus!$A$4:$CW$46,CT$1)","v":6174},{"$f":"VLOOKUP(DropDownList!$B$47,CntyQryCensus!$A$4:$CW$46,CU$1)","v":4},{"$f":"VLOOKUP(DropDownList!$B$47,CntyQryCensus!$A$4:$CW$46,CV$1)","v":40.9},{"$f":"VLOOKUP(DropDownList!$B$47,CntyQryCensus!$A$4:$CW$46,CW$1)","v":40.700000000000003},{"$f":"VLOOKUP(DropDownList!$B$47,CntyQryCensus!$A$4:$CW$46,CX$1)","v":{"$error":"#REF!"}}]
[]
[]
["Census 2000 DemoProfile Sample Data Tables 2&3   -  DPTab23TownQry"]
["NAME","COUSUB","AREANAME","PopInSchool","Preschool","Kindergarten","Elementary","HighSchool","College","Pop25andOver","HighSchoolGrad","SomeCollege","AssocDegree","BachelDegree","GradDegree","HSGradorHigher","CollegeGradorHigher","Pop5to20yrs","Pop5to20wDis","Pop21to64","Pop21to64wDis","Pop65over","Pop65overwDis","Pop5yrsOver","SameHUin95","DiffHUinUSin95","HUinSameCountyin95","HUinSameStatein95","TotalPop","NativePop","NatPopBornUS","NatPopBornInStatRes","NatPopBornDiffState","NatPopBornOutUS","FornBornPop","FornPopEnt90to00","FornPopNatCit","FornPopNotCit","Households","HHIncLessThn10k","HHInc10to15K","HHInc15to25K","HHInc25to35K","HHInc35to50K","HHInc50to75K","HHInc75to100K","HHInc100to150K","HHInc150to200K","HHIncOver200K","MedianHHInc","HHwithPubAssistInc","MeanPubAssist","FamilyHH","FHHIncLessThn10k","FHHInc10to15K","FHHInc15to25K","FHHInc25to35K","FHHInc35to50K","FHHInc50to75K","FHHInc75to100K","FHHInc100to150K","FHHInc150to200K","FHHIncOver200K","MedianFHHInc","PerCapitaInc","PovStatFamilies","PovStatFHHwChilUnd18","PovStatFHHwChilUnd5","PovStFmalHH","DP3088","DP3089","PovStatIndiv","PovStatIndiv18yrOver","PovStatIndiv65yrOver","DP3093","DP3094","DP3095"]
[{"$f":"VLOOKUP(DropDownList!$B$47,CntyQryCensus!$A$53:$BY$96,A$1)","v":"Atkinson"},{"$f":"VLOOKUP(DropDownList!$B$47,CntyQryCensus!$A$53:$BY$96,B$1)","v":"02340"},{"$f":"VLOOKUP(DropDownList!$B$47,CntyQryCensus!$A$53:$BY$96,C$1)","v":"Atkinson town, Rockingham County, New Hampshire"},{"$f":"VLOOKUP(DropDownList!$B$47,CntyQryCensus!$A$53:$BY$96,D$1)","v":1575},{"$f":"VLOOKUP(DropDownList!$B$47,CntyQryCensus!$A$53:$BY$96,E$1)","v":120},{"$f":"VLOOKUP(DropDownList!$B$47,CntyQryCensus!$A$53:$BY$96,F$1)","v":97},{"$f":"VLOOKUP(DropDownList!$B$47,CntyQryCensus!$A$53:$BY$96,G$1)","v":725},{"$f":"VLOOKUP(DropDownList!$B$47,CntyQryCensus!$A$53:$BY$96,H$1)","v":335},{"$f":"VLOOKUP(DropDownList!$B$47,CntyQryCensus!$A$53:$BY$96,I$1)","v":298},{"$f":"VLOOKUP(DropDownList!$B$47,CntyQryCensus!$A$53:$BY$96,J$1)","v":4345},{"$f":"VLOOKUP(DropDownList!$B$47,CntyQryCensus!$A$53:$BY$96,K$1)","v":1044},{"$f":"VLOOKUP(DropDownList!$B$47,CntyQryCensus!$A$53:$BY$96,L$1)","v":898},{"$f":"VLOOKUP(DropDownList!$B$47,CntyQryCensus!$A$53:$BY$96,M$1)","v":494},{"$f":"VLOOKUP(DropDownList!$B$47,CntyQryCensus!$A$53:$BY$96,N$1)","v":1145},{"$f":"VLOOKUP(DropDownList!$B$47,CntyQryCensus!$A$53:$BY$96,O$1)","v":559},{"$f":"VLOOKUP(DropDownList!$B$47,CntyQryCensus!$A$53:$BY$96,P$1)","v":4140},{"$f":"VLOOKUP(DropDownList!$B$47,CntyQryCensus!$A$53:$BY$96,Q$1)","v":1704},{"$f":"VLOOKUP(DropDownList!$B$47,CntyQryCensus!$A$53:$BY$96,R$1)","v":1262},{"$f":"VLOOKUP(DropDownList!$B$47,CntyQryCensus!$A$53:$BY$96,S$1)","v":60},{"$f":"VLOOKUP(DropDownList!$B$47,CntyQryCensus!$A$53:$BY$96,T$1)","v":3808},{"$f":"VLOOKUP(DropDownList!$B$47,CntyQryCensus!$A$53:$BY$96,U$1)","v":513},{"$f":"VLOOKUP(DropDownList!$B$47,CntyQryCensus!$A$53:$BY$96,V$1)","v":697},{"$f":"VLOOKUP(DropDownList!$B$47,CntyQryCensus!$A$53:$BY$96,W$1)","v":173},{"$f":"VLOOKUP(DropDownList!$B$47,CntyQryCensus!$A$53:$BY$96,X$1)","v":5767},{"$f":"VLOOKUP(DropDownList!$B$47,CntyQryCensus!$A$53:$BY$96,Y$1)","v":3612},{"$f":"VLOOKUP(DropDownList!$B$47,CntyQryCensus!$A$53:$BY$96,Z$1)","v":2095},{"$f":"VLOOKUP(DropDownList!$B$47,CntyQryCensus!$A$53:$BY$96,AA$1)","v":903},{"$f":"VLOOKUP(DropDownList!$B$47,CntyQryCensus!$A$53:$BY$96,AB$1)","v":1192},{"$f":"VLOOKUP(DropDownList!$B$47,CntyQryCensus!$A$53:$BY$96,AC$1)","v":6178},{"$f":"VLOOKUP(DropDownList!$B$47,CntyQryCensus!$A$53:$BY$96,AD$1)","v":5916},{"$f":"VLOOKUP(DropDownList!$B$47,CntyQryCensus!$A$53:$BY$96,AE$1)","v":5889},{"$f":"VLOOKUP(DropDownList!$B$47,CntyQryCensus!$A$53:$BY$96,AF$1)","v":421},{"$f":"VLOOKUP(DropDownList!$B$47,CntyQryCensus!$A$53:$BY$96,AG$1)","v":5468},{"$f":"VLOOKUP(DropDownList!$B$47,CntyQryCensus!$A$53:$BY$96,AH$1)","v":27},{"$f":"VLOOKUP(DropDownList!$B$47,CntyQryCensus!$A$53:$BY$96,AI$1)","v":262},{"$f":"VLOOKUP(DropDownList!$B$47,CntyQryCensus!$A$53:$BY$96,AJ$1)","v":31},{"$f":"VLOOKUP(DropDownList!$B$47,CntyQryCensus!$A$53:$BY$96,AK$1)","v":232},{"$f":"VLOOKUP(DropDownList!$B$47,CntyQryCensus!$A$53:$BY$96,AL$1)","v":30},{"$f":"VLOOKUP(DropDownList!$B$47,CntyQryCensus!$A$53:$BY$96,AM$1)","v":2326},{"$f":"VLOOKUP(DropDownList!$B$47,CntyQryCensus!$A$53:$BY$96,AN$1)","v":80},{"$f":"VLOOKUP(DropDownList!$B$47,CntyQryCensus!$A$53:$BY$96,AO$1)","v":77},{"$f":"VLOOKUP(DropDownList!$B$47,CntyQryCensus!$A$53:$BY$96,AP$1)","v":133},{"$f":"VLOOKUP(DropDownList!$B$47,CntyQryCensus!$A$53:$BY$96,AQ$1)","v":120},{"$f":"VLOOKUP(DropDownList!$B$47,CntyQryCensus!$A$53:$BY$96,AR$1)","v":348},{"$f":"VLOOKUP(DropDownList!$B$47,CntyQryCensus!$A$53:$BY$96,AS$1)","v":485},{"$f":"VLOOKUP(DropDownList!$B$47,CntyQryCensus!$A$53:$BY$96,AT$1)","v":405},{"$f":"VLOOKUP(DropDownList!$B$47,CntyQryCensus!$A$53:$BY$96,AU$1)","v":449},{"$f":"VLOOKUP(DropDownList!$B$47,CntyQryCensus!$A$53:$BY$96,AV$1)","v":111},{"$f":"VLOOKUP(DropDownList!$B$47,CntyQryCensus!$A$53:$BY$96,AW$1)","v":118},{"$f":"VLOOKUP(DropDownList!$B$47,CntyQryCensus!$A$53:$BY$96,AX$1)","v":69729},{"$f":"VLOOKUP(DropDownList!$B$47,CntyQryCensus!$A$53:$BY$96,AY$1)","v":33},{"$f":"VLOOKUP(DropDownList!$B$47,CntyQryCensus!$A$53:$BY$96,AZ$1)","v":905},{"$f":"VLOOKUP(DropDownList!$B$47,CntyQryCensus!$A$53:$BY$96,BA$1)","v":1781},{"$f":"VLOOKUP(DropDownList!$B$47,CntyQryCensus!$A$53:$BY$96,BB$1)","v":24},{"$f":"VLOOKUP(DropDownList!$B$47,CntyQryCensus!$A$53:$BY$96,BC$1)","v":25},{"$f":"VLOOKUP(DropDownList!$B$47,CntyQryCensus!$A$53:$BY$96,BD$1)","v":8},{"$f":"VLOOKUP(DropDownList!$B$47,CntyQryCensus!$A$53:$BY$96,BE$1)","v":90},{"$f":"VLOOKUP(DropDownList!$B$47,CntyQryCensus!$A$53:$BY$96,BF$1)","v":250},{"$f":"VLOOKUP(DropDownList!$B$47,CntyQryCensus!$A$53:$BY$96,BG$1)","v":437},{"$f":"VLOOKUP(DropDownList!$B$47,CntyQryCensus!$A$53:$BY$96,BH$1)","v":337},{"$f":"VLOOKUP(DropDownList!$B$47,CntyQryCensus!$A$53:$BY$96,BI$1)","v":406},{"$f":"VLOOKUP(DropDownList!$B$47,CntyQryCensus!$A$53:$BY$96,BJ$1)","v":101},{"$f":"VLOOKUP(DropDownList!$B$47,CntyQryCensus!$A$53:$BY$96,BK$1)","v":103},{"$f":"VLOOKUP(DropDownList!$B$47,CntyQryCensus!$A$53:$BY$96,BL$1)","v":77631},{"$f":"VLOOKUP(DropDownList!$B$47,CntyQryCensus!$A$53:$BY$96,BM$1)","v":30412},{"$f":"VLOOKUP(DropDownList!$B$47,CntyQryCensus!$A$53:$BY$96,BN$1)","v":41},{"$f":"VLOOKUP(DropDownList!$B$47,CntyQryCensus!$A$53:$BY$96,BO$1)","v":34},{"$f":"VLOOKUP(DropDownList!$B$47,CntyQryCensus!$A$53:$BY$96,BP$1)","v":8},{"$f":"VLOOKUP(DropDownList!$B$47,CntyQryCensus!$A$53:$BY$96,BQ$1)","v":23},{"$f":"VLOOKUP(DropDownList!$B$47,CntyQryCensus!$A$53:$BY$96,BR$1)","v":16},{"$f":"VLOOKUP(DropDownList!$B$47,CntyQryCensus!$A$53:$BY$96,BS$1)","v":0},{"$f":"VLOOKUP(DropDownList!$B$47,CntyQryCensus!$A$53:$BY$96,BT$1)","v":202},{"$f":"VLOOKUP(DropDownList!$B$47,CntyQryCensus!$A$53:$BY$96,BU$1)","v":133},{"$f":"VLOOKUP(DropDownList!$B$47,CntyQryCensus!$A$53:$BY$96,BV$1)","v":15},{"$f":"VLOOKUP(DropDownList!$B$47,CntyQryCensus!$A$53:$BY$96,BW$1)","v":69},{"$f":"VLOOKUP(DropDownList!$B$47,CntyQryCensus!$A$53:$BY$96,BX$1)","v":53},{"$f":"VLOOKUP(DropDownList!$B$47,CntyQryCensus!$A$53:$BY$96,BY$1)","v":65}]
[]
[]
["Census 2000 DemoProfile Sample Data Table 4   -  DPTab4TownQry"]
["NAME","COUSUB","TotHousingUnits","1UnitDet","1UnitAtt","2Units","3to4Units","5to9Units","10to19Units","20orMoreUnits","MobileHomes","BoatRvVan","SingleFamilyUnits","MultiFamUnits","MobileHomeUnits","YearBuilt99to00","YearBuilt95to98","YearBUilt90to94","YearBuilt80to89","YearBuilt70to79","YearBuilt60to69","YearBuilt40to59","YearBuilt39orEarlier","Rooms1","Rooms2","Rooms3","Rooms4","Rooms5","Rooms6","Rooms7","Rooms8","Rooms9orMore","MedianRooms","OccHU1","YrHHMvdIn99to00","YrHHMvdIn95to98","YrHHMvdIn90to94","YrHHMvdIn80to89","YrHHMvdIn70to79","YrHHMvdIn69orBefore","HeatFuelNatGas","HeatFuelBotGas","HeatFuelElectric","HeatFuelOil","HeatFuelCoal","HeatFuelWood","HeatFuelSolar","HeatFuelOther","HeatFuelNone","LackCompPlumb","LackCompKit","NoTelephone","OccHU","OccPerRm1orLess","OccPerRm1to1_5","OccPerRm1_5orMore","SpecOwnOccUnits","Value<50K","Value50to100K","Value100to150K","Value150to200K","Value200to300K","Value300to500K","Value500Kto1mil","Value1MilorMore","MedianValue","WithMortg","MnthOwnCst<300","MnthOwnCst300to500","MnthOwnCst500to700","MnthOwnCst700to1000","MnthOwnCst1000to1500","MnthOwnCst1500to2000","MnthOwnCst2000orMore","MediMnthOwnCst","NotMrtg","NotMrtgMediMnthOwnCst","OwnCst%HHInc<15","OwnCst%HHInc15to20","OwnCst%HHInc20to25","OwnCst%HHInc25to30","OwnCst%HHInc30to35","OwnCst%HHInc35orMor","NotComputed","SpecRntOccUnits","Rnt<200","Rnt200to300","Rnt300to500","Rnt500to750","Rnt750to1000","Rnt1000to1500","Rnt1500orMore","NoRent","MedianRent","Rnt%HHInc<15","Rnt%HHInc15to20","Rnt%HHInc20to25","Rnt%HHInc25to30","Rnt%HHInc30to35","Rnt%HHInc35orMore","Rnt%NotCompute"]
[{"$f":"VLOOKUP(DropDownList!$B$47,CntyQryCensus!$A$103:$CX$146,A$1)","v":"Atkinson"},{"$f":"VLOOKUP(DropDownList!$B$47,CntyQryCensus!$A$103:$CX$146,B$1)","v":"02340"},{"$f":"VLOOKUP(DropDownList!$B$47,CntyQryCensus!$A$103:$CX$146,C$1)","v":2431},{"$f":"VLOOKUP(DropDownList!$B$47,CntyQryCensus!$A$103:$CX$146,D$1)","v":1826},{"$f":"VLOOKUP(DropDownList!$B$47,CntyQryCensus!$A$103:$CX$146,E$1)","v":322},{"$f":"VLOOKUP(DropDownList!$B$47,CntyQryCensus!$A$103:$CX$146,F$1)","v":81},{"$f":"VLOOKUP(DropDownList!$B$47,CntyQryCensus!$A$103:$CX$146,G$1)","v":61},{"$f":"VLOOKUP(DropDownList!$B$47,CntyQryCensus!$A$103:$CX$146,H$1)","v":0},{"$f":"VLOOKUP(DropDownList!$B$47,CntyQryCensus!$A$103:$CX$146,I$1)","v":125},{"$f":"VLOOKUP(DropDownList!$B$47,CntyQryCensus!$A$103:$CX$146,J$1)","v":6},{"$f":"VLOOKUP(DropDownList!$B$47,CntyQryCensus!$A$103:$CX$146,K$1)","v":10},{"$f":"VLOOKUP(DropDownList!$B$47,CntyQryCensus!$A$103:$CX$146,L$1)","v":0},{"$f":"VLOOKUP(DropDownList!$B$47,CntyQryCensus!$A$103:$CX$146,M$1)","v":1826},{"$f":"VLOOKUP(DropDownList!$B$47,CntyQryCensus!$A$103:$CX$146,N$1)","v":595},{"$f":"VLOOKUP(DropDownList!$B$47,CntyQryCensus!$A$103:$CX$146,O$1)","v":10},{"$f":"VLOOKUP(DropDownList!$B$47,CntyQryCensus!$A$103:$CX$146,P$1)","v":86},{"$f":"VLOOKUP(DropDownList!$B$47,CntyQryCensus!$A$103:$CX$146,Q$1)","v":246},{"$f":"VLOOKUP(DropDownList!$B$47,CntyQryCensus!$A$103:$CX$146,R$1)","v":316},{"$f":"VLOOKUP(DropDownList!$B$47,CntyQryCensus!$A$103:$CX$146,S$1)","v":426},{"$f":"VLOOKUP(DropDownList!$B$47,CntyQryCensus!$A$103:$CX$146,T$1)","v":613},{"$f":"VLOOKUP(DropDownList!$B$47,CntyQryCensus!$A$103:$CX$146,U$1)","v":355},{"$f":"VLOOKUP(DropDownList!$B$47,CntyQryCensus!$A$103:$CX$146,V$1)","v":272},{"$f":"VLOOKUP(DropDownList!$B$47,CntyQryCensus!$A$103:$CX$146,W$1)","v":117},{"$f":"VLOOKUP(DropDownList!$B$47,CntyQryCensus!$A$103:$CX$146,X$1)","v":0},{"$f":"VLOOKUP(DropDownList!$B$47,CntyQryCensus!$A$103:$CX$146,Y$1)","v":105},{"$f":"VLOOKUP(DropDownList!$B$47,CntyQryCensus!$A$103:$CX$146,Z$1)","v":36},{"$f":"VLOOKUP(DropDownList!$B$47,CntyQryCensus!$A$103:$CX$146,AA$1)","v":131},{"$f":"VLOOKUP(DropDownList!$B$47,CntyQryCensus!$A$103:$CX$146,AB$1)","v":409},{"$f":"VLOOKUP(DropDownList!$B$47,CntyQryCensus!$A$103:$CX$146,AC$1)","v":559},{"$f":"VLOOKUP(DropDownList!$B$47,CntyQryCensus!$A$103:$CX$146,AD$1)","v":457},{"$f":"VLOOKUP(DropDownList!$B$47,CntyQryCensus!$A$103:$CX$146,AE$1)","v":358},{"$f":"VLOOKUP(DropDownList!$B$47,CntyQryCensus!$A$103:$CX$146,AF$1)","v":376},{"$f":"VLOOKUP(DropDownList!$B$47,CntyQryCensus!$A$103:$CX$146,AG$1)","v":6.5},{"$f":"VLOOKUP(DropDownList!$B$47,CntyQryCensus!$A$103:$CX$146,AH$1)","v":2317},{"$f":"VLOOKUP(DropDownList!$B$47,CntyQryCensus!$A$103:$CX$146,AI$1)","v":256},{"$f":"VLOOKUP(DropDownList!$B$47,CntyQryCensus!$A$103:$CX$146,AJ$1)","v":632},{"$f":"VLOOKUP(DropDownList!$B$47,CntyQryCensus!$A$103:$CX$146,AK$1)","v":437},{"$f":"VLOOKUP(DropDownList!$B$47,CntyQryCensus!$A$103:$CX$146,AL$1)","v":479},{"$f":"VLOOKUP(DropDownList!$B$47,CntyQryCensus!$A$103:$CX$146,AM$1)","v":354},{"$f":"VLOOKUP(DropDownList!$B$47,CntyQryCensus!$A$103:$CX$146,AN$1)","v":159},{"$f":"VLOOKUP(DropDownList!$B$47,CntyQryCensus!$A$103:$CX$146,AO$1)","v":313},{"$f":"VLOOKUP(DropDownList!$B$47,CntyQryCensus!$A$103:$CX$146,AP$1)","v":223},{"$f":"VLOOKUP(DropDownList!$B$47,CntyQryCensus!$A$103:$CX$146,AQ$1)","v":85},{"$f":"VLOOKUP(DropDownList!$B$47,CntyQryCensus!$A$103:$CX$146,AR$1)","v":1657},{"$f":"VLOOKUP(DropDownList!$B$47,CntyQryCensus!$A$103:$CX$146,AS$1)","v":7},{"$f":"VLOOKUP(DropDownList!$B$47,CntyQryCensus!$A$103:$CX$146,AT$1)","v":32},{"$f":"VLOOKUP(DropDownList!$B$47,CntyQryCensus!$A$103:$CX$146,AU$1)","v":0},{"$f":"VLOOKUP(DropDownList!$B$47,CntyQryCensus!$A$103:$CX$146,AV$1)","v":0},{"$f":"VLOOKUP(DropDownList!$B$47,CntyQryCensus!$A$103:$CX$146,AW$1)","v":0},{"$f":"VLOOKUP(DropDownList!$B$47,CntyQryCensus!$A$103:$CX$146,AX$1)","v":0},{"$f":"VLOOKUP(DropDownList!$B$47,CntyQryCensus!$A$103:$CX$146,AY$1)","v":0},{"$f":"VLOOKUP(DropDownList!$B$47,CntyQryCensus!$A$103:$CX$146,AZ$1)","v":0},{"$f":"VLOOKUP(DropDownList!$B$47,CntyQryCensus!$A$103:$CX$146,BA$1)","v":2317},{"$f":"VLOOKUP(DropDownList!$B$47,CntyQryCensus!$A$103:$CX$146,BB$1)","v":2302},{"$f":"VLOOKUP(DropDownList!$B$47,CntyQryCensus!$A$103:$CX$146,BC$1)","v":15},{"$f":"VLOOKUP(DropDownList!$B$47,CntyQryCensus!$A$103:$CX$146,BD$1)","v":0},{"$f":"VLOOKUP(DropDownList!$B$47,CntyQryCensus!$A$103:$CX$146,BE$1)","v":1791},{"$f":"VLOOKUP(DropDownList!$B$47,CntyQryCensus!$A$103:$CX$146,BF$1)","v":0},{"$f":"VLOOKUP(DropDownList!$B$47,CntyQryCensus!$A$103:$CX$146,BG$1)","v":34},{"$f":"VLOOKUP(DropDownList!$B$47,CntyQryCensus!$A$103:$CX$146,BH$1)","v":226},{"$f":"VLOOKUP(DropDownList!$B$47,CntyQryCensus!$A$103:$CX$146,BI$1)","v":670},{"$f":"VLOOKUP(DropDownList!$B$47,CntyQryCensus!$A$103:$CX$146,BJ$1)","v":632},{"$f":"VLOOKUP(DropDownList!$B$47,CntyQryCensus!$A$103:$CX$146,BK$1)","v":170},{"$f":"VLOOKUP(DropDownList!$B$47,CntyQryCensus!$A$103:$CX$146,BL$1)","v":59},{"$f":"VLOOKUP(DropDownList!$B$47,CntyQryCensus!$A$103:$CX$146,BM$1)","v":0},{"$f":"VLOOKUP(DropDownList!$B$47,CntyQryCensus!$A$103:$CX$146,BN$1)","v":197900},{"$f":"VLOOKUP(DropDownList!$B$47,CntyQryCensus!$A$103:$CX$146,BO$1)","v":1426},{"$f":"VLOOKUP(DropDownList!$B$47,CntyQryCensus!$A$103:$CX$146,BP$1)","v":0},{"$f":"VLOOKUP(DropDownList!$B$47,CntyQryCensus!$A$103:$CX$146,BQ$1)","v":24},{"$f":"VLOOKUP(DropDownList!$B$47,CntyQryCensus!$A$103:$CX$146,BR$1)","v":58},{"$f":"VLOOKUP(DropDownList!$B$47,CntyQryCensus!$A$103:$CX$146,BS$1)","v":121},{"$f":"VLOOKUP(DropDownList!$B$47,CntyQryCensus!$A$103:$CX$146,BT$1)","v":552},{"$f":"VLOOKUP(DropDownList!$B$47,CntyQryCensus!$A$103:$CX$146,BU$1)","v":485},{"$f":"VLOOKUP(DropDownList!$B$47,CntyQryCensus!$A$103:$CX$146,BV$1)","v":186},{"$f":"VLOOKUP(DropDownList!$B$47,CntyQryCensus!$A$103:$CX$146,BW$1)","v":1465},{"$f":"VLOOKUP(DropDownList!$B$47,CntyQryCensus!$A$103:$CX$146,BX$1)","v":365},{"$f":"VLOOKUP(DropDownList!$B$47,CntyQryCensus!$A$103:$CX$146,BY$1)","v":459},{"$f":"VLOOKUP(DropDownList!$B$47,CntyQryCensus!$A$103:$CX$146,BZ$1)","v":595},{"$f":"VLOOKUP(DropDownList!$B$47,CntyQryCensus!$A$103:$CX$146,CA$1)","v":278},{"$f":"VLOOKUP(DropDownList!$B$47,CntyQryCensus!$A$103:$CX$146,CB$1)","v":253},{"$f":"VLOOKUP(DropDownList!$B$47,CntyQryCensus!$A$103:$CX$146,CC$1)","v":241},{"$f":"VLOOKUP(DropDownList!$B$47,CntyQryCensus!$A$103:$CX$146,CD$1)","v":114},{"$f":"VLOOKUP(DropDownList!$B$47,CntyQryCensus!$A$103:$CX$146,CE$1)","v":310},{"$f":"VLOOKUP(DropDownList!$B$47,CntyQryCensus!$A$103:$CX$146,CF$1)","v":0},{"$f":"VLOOKUP(DropDownList!$B$47,CntyQryCensus!$A$103:$CX$146,CG$1)","v":238},{"$f":"VLOOKUP(DropDownList!$B$47,CntyQryCensus!$A$103:$CX$146,CH$1)","v":10},{"$f":"VLOOKUP(DropDownList!$B$47,CntyQryCensus!$A$103:$CX$146,CI$1)","v":0},{"$f":"VLOOKUP(DropDownList!$B$47,CntyQryCensus!$A$103:$CX$146,CJ$1)","v":92},{"$f":"VLOOKUP(DropDownList!$B$47,CntyQryCensus!$A$103:$CX$146,CK$1)","v":102},{"$f":"VLOOKUP(DropDownList!$B$47,CntyQryCensus!$A$103:$CX$146,CL$1)","v":18},{"$f":"VLOOKUP(DropDownList!$B$47,CntyQryCensus!$A$103:$CX$146,CM$1)","v":0},{"$f":"VLOOKUP(DropDownList!$B$47,CntyQryCensus!$A$103:$CX$146,CN$1)","v":0},{"$f":"VLOOKUP(DropDownList!$B$47,CntyQryCensus!$A$103:$CX$146,CO$1)","v":16},{"$f":"VLOOKUP(DropDownList!$B$47,CntyQryCensus!$A$103:$CX$146,CP$1)","v":509},{"$f":"VLOOKUP(DropDownList!$B$47,CntyQryCensus!$A$103:$CX$146,CQ$1)","v":33},{"$f":"VLOOKUP(DropDownList!$B$47,CntyQryCensus!$A$103:$CX$146,CR$1)","v":43},{"$f":"VLOOKUP(DropDownList!$B$47,CntyQryCensus!$A$103:$CX$146,CS$1)","v":10},{"$f":"VLOOKUP(DropDownList!$B$47,CntyQryCensus!$A$103:$CX$146,CT$1)","v":30},{"$f":"VLOOKUP(DropDownList!$B$47,CntyQryCensus!$A$103:$CX$146,CU$1)","v":10},{"$f":"VLOOKUP(DropDownList!$B$47,CntyQryCensus!$A$103:$CX$146,CV$1)","v":96},{"$f":"VLOOKUP(DropDownList!$B$47,CntyQryCensus!$A$103:$CX$146,CW$1)","v":16}]
[]
[]
["Census 2000 SummaryFile3 Sample Data  -  SF3TownQry1SocialChar"]
["TOWN_NAME","LOGRECNO","COUSUB","P01TotalPopulation","P02SampleCountOfPop","P03Pop100pctCount","P05UrbanPopulation","P05RuralPopulation","P06WhiteAlone","P06BlackOrAfAm","P06AmIndAlone","P06AsianAlone","P06HawaiianOrPI","P06OtherRace","P06TwoPlusRaces","P07NotHispanicOrLatino","P07HispanicOrLatino","P08MalePop","P08FemalePop","P09PopInHouseholds","P09PopInFamHH","P09PopInNonFamHH","P09PopInGroupQtr","P13TotalHH","P13FamilyHH","P13FamHHolder15to24yrs","P13FamHHolder25to34yrs","P13FamHHolder35to44yrs","P13FamHHolder45to54yrs","P13FamHHolder55to64yrs","P13FamHHolder65to74yrs","P13FamHHolder75to84yrs","P13FamHHolder85yrsOver","P13NonFamilyHH","P13NonFamHHolder15to24yrs","P13NonFamHHolder25to34yrs","P13NonFamHHolder35to44yrs","P13NonFamHHolder45to54yrs","P13NonFamHHolder55to64yrs","P13NonFamHHolder65to74yrs","P13NonFamHHolder75to84yrs","P13NonFamHHolder85yrsOver","P18Pop15yrsOver","P18MaritalStatNeverMarried","P18MaritalStatNowMarried","P18MaritalStatSeparated","P18MaritalStatWidowed","P18MaritalStatWidowFemale","P18MaritalStatDivorced","P18MaritalStatDivorcedFemale","P21NativeBornPop","P21NatPopBornInState","P21NatPopBornOtherState","P021005","P021006","P021007","P021008","P21NatPopBornOutUS","P21ForeignBornPop","P021014","P021015","P24Pop5YrsPlus","P24ResSameHouseIn95","P24ResDiffHouseIn95","P24ResDiffHouseInUSIn95","P24ResDiffHouseSameCountyIn95","P24ResDiffHouseDiffCountyIn95","P24ResDiffHouseDiffCntySamStIn95","P24ResDiffHouseDiffCntyDifStIn95","P24ResDiffHouseDiffCntyNEStIn95","P24ResDiffHouseDiffCntyMWStIn95","P24ResDiffHouseDiffCntySoStIn95","P24ResDiffHouseDiffCntyWstStIn95","P24ResDiffInPR","P24ResDiffElsewhereIn95","P26Workers16yrsOver","P26WorkedInState","P26WorkedInCnty","P26WorkedOutsideCnty","P26WorkedOutsideState","P30Workers16Over","P30TranspToWrkCar","P30TranspToWrkPublic","P30TranspToWrkOther","P30WrkdAtHome","P31WrkrsNotWrkAtHom","P31TravTim<5min","P31TravTim5to9Min","P31TravTim10to14Min","P31TravTim15to19Min","P31TravTim20to24Min","P31TravTim25to29Min","P31TravTim30to34Min","P31TravTim35to39Min","P31TravTim40to44Min","P31TravTim45to59Min","P31TravTim60to89Min","P31TravTim90MinMore","P31WorkAtHome","P36SchEnrlPop3yrOver","P36NurserSchEnrl","P36KinderSchEnrl","P36ElemSchEnrl","P36HighSchEnrl","P36CollGradSchEnrl","P37Pop25yrsOver","P37EduAtain<9grd","P37EduAtainHSnoDip","P37EduAtainHSgrad","P37EduAtainCollNoDeg","P37EduAtainAssocDeg","P37EduAtainBachDeg","P37EduAtainGradProfDeg","P42NIPop5to15","P42NIPop5to15wDisabl","P42NIPop16to20","P42NIPop16to20wDisab","P42NIPop16to20wDisEmp","P42NIPop16to21NoDis","P42NIPop16to21NoDisEmpl","P42NIPop21to64","P42NIPop21to64wDis","P42NIPop21to64wDisEmp","P42NIPop21to64NoDis","P42NIPop21to64NoDisEmp","P42NIPop65to74","P42NIPop65to74wDis","P42NIPop75Over","P42NIPop75OverwDis","P43Pop16YrsOver","P43Pop16OvrInLaborForce","P43Pop16OvrCivlLabFrc","P43Pop16OvrCivlLbrFrcEmp","P48Families","P48MarriedFam","P48MarrFamNoWorkers","P48MarrFam1Worker","P48MarrFam2Worker","P48MarrFamHusbWifeWorked","P48MarrFamOther","P48MarrFam3PlusWorker","P48MarrFam3WorkHsbWif","P48MarrFam3PlsWrkOther","P48OtherFam","P48MaleHHNoWif","P48MaleHHNoWifNoWorker","P48MaleHHNoWif1Worker","P48MaleHHNoWif2Worker","P48MaleHHNoWif3PlusWorker","P48FemaleHHNoHsb","P48FemaleHHNoHsbNoWorker","P48FemaleHHNoHsb1Worker","P48FemaleHHNoHsb2Worker","P48FemaleHHNoHsb3Worker","P49EmpCivPop16YrOver","P49IndustAgricult","P49IndustConst","P49IndustMnftg","P49IndustWhlslTrd","P49IndustRtlTrd","P49IndustTrspWrhsUtlt","P49IndustInfrm","P49IndustFinInsRE","P49IndustPrfsScntfMngmt","P49IndustEduHlthSocSrv","P49IndustArtsEntRec","P49IndustOthrSrvc","P49IndustPubAdm","P50OccupMngmtProfs","P50OccupService","P50OccupSalesOff","P50OccupFarmFishForest","P50OccupConstExtrctMaint","P50OccupPrdctTrnspMatMv"]
[{"$f":"VLOOKUP(DropDownList!$B$47,CntyQryCensus!$A$156:$FR$198,A$1)","v":"Atkinson"},{"$f":"VLOOKUP(DropDownList!$B$47,CntyQryCensus!$A$156:$FR$198,B$1)","v":"0003039"},{"$f":"VLOOKUP(DropDownList!$B$47,CntyQryCensus!$A$156:$FR$198,C$1)","v":"02340"},{"$f":"VLOOKUP(DropDownList!$B$47,CntyQryCensus!$A$156:$FR$198,D$1)","v":6178},{"$f":"VLOOKUP(DropDownList!$B$47,CntyQryCensus!$A$156:$FR$198,E$1)","v":729},{"$f":"VLOOKUP(DropDownList!$B$47,CntyQryCensus!$A$156:$FR$198,F$1)","v":6178},{"$f":"VLOOKUP(DropDownList!$B$47,CntyQryCensus!$A$156:$FR$198,G$1)","v":6178},{"$f":"VLOOKUP(DropDownList!$B$47,CntyQryCensus!$A$156:$FR$198,H$1)","v":0},{"$f":"VLOOKUP(DropDownList!$B$47,CntyQryCensus!$A$156:$FR$198,I$1)","v":6069},{"$f":"VLOOKUP(DropDownList!$B$47,CntyQryCensus!$A$156:$FR$198,J$1)","v":0},{"$f":"VLOOKUP(DropDownList!$B$47,CntyQryCensus!$A$156:$FR$198,K$1)","v":0},{"$f":"VLOOKUP(DropDownList!$B$47,CntyQryCensus!$A$156:$FR$198,L$1)","v":58},{"$f":"VLOOKUP(DropDownList!$B$47,CntyQryCensus!$A$156:$FR$198,M$1)","v":0},{"$f":"VLOOKUP(DropDownList!$B$47,CntyQryCensus!$A$156:$FR$198,N$1)","v":19},{"$f":"VLOOKUP(DropDownList!$B$47,CntyQryCensus!$A$156:$FR$198,O$1)","v":32},{"$f":"VLOOKUP(DropDownList!$B$47,CntyQryCensus!$A$156:$FR$198,P$1)","v":6104},{"$f":"VLOOKUP(DropDownList!$B$47,CntyQryCensus!$A$156:$FR$198,Q$1)","v":74},{"$f":"VLOOKUP(DropDownList!$B$47,CntyQryCensus!$A$156:$FR$198,R$1)","v":3032},{"$f":"VLOOKUP(DropDownList!$B$47,CntyQryCensus!$A$156:$FR$198,S$1)","v":3146},{"$f":"VLOOKUP(DropDownList!$B$47,CntyQryCensus!$A$156:$FR$198,T$1)","v":6174},{"$f":"VLOOKUP(DropDownList!$B$47,CntyQryCensus!$A$156:$FR$198,U$1)","v":5528},{"$f":"VLOOKUP(DropDownList!$B$47,CntyQryCensus!$A$156:$FR$198,V$1)","v":646},{"$f":"VLOOKUP(DropDownList!$B$47,CntyQryCensus!$A$156:$FR$198,W$1)","v":4},{"$f":"VLOOKUP(DropDownList!$B$47,CntyQryCensus!$A$156:$FR$198,X$1)","v":2326},{"$f":"VLOOKUP(DropDownList!$B$47,CntyQryCensus!$A$156:$FR$198,Y$1)","v":1781},{"$f":"VLOOKUP(DropDownList!$B$47,CntyQryCensus!$A$156:$FR$198,Z$1)","v":9},{"$f":"VLOOKUP(DropDownList!$B$47,CntyQryCensus!$A$156:$FR$198,AA$1)","v":178},{"$f":"VLOOKUP(DropDownList!$B$47,CntyQryCensus!$A$156:$FR$198,AB$1)","v":504},{"$f":"VLOOKUP(DropDownList!$B$47,CntyQryCensus!$A$156:$FR$198,AC$1)","v":490},{"$f":"VLOOKUP(DropDownList!$B$47,CntyQryCensus!$A$156:$FR$198,AD$1)","v":342},{"$f":"VLOOKUP(DropDownList!$B$47,CntyQryCensus!$A$156:$FR$198,AE$1)","v":171},{"$f":"VLOOKUP(DropDownList!$B$47,CntyQryCensus!$A$156:$FR$198,AF$1)","v":74},{"$f":"VLOOKUP(DropDownList!$B$47,CntyQryCensus!$A$156:$FR$198,AG$1)","v":13},{"$f":"VLOOKUP(DropDownList!$B$47,CntyQryCensus!$A$156:$FR$198,AH$1)","v":545},{"$f":"VLOOKUP(DropDownList!$B$47,CntyQryCensus!$A$156:$FR$198,AI$1)","v":0},{"$f":"VLOOKUP(DropDownList!$B$47,CntyQryCensus!$A$156:$FR$198,AJ$1)","v":34},{"$f":"VLOOKUP(DropDownList!$B$47,CntyQryCensus!$A$156:$FR$198,AK$1)","v":104},{"$f":"VLOOKUP(DropDownList!$B$47,CntyQryCensus!$A$156:$FR$198,AL$1)","v":126},{"$f":"VLOOKUP(DropDownList!$B$47,CntyQryCensus!$A$156:$FR$198,AM$1)","v":96},{"$f":"VLOOKUP(DropDownList!$B$47,CntyQryCensus!$A$156:$FR$198,AN$1)","v":130},{"$f":"VLOOKUP(DropDownList!$B$47,CntyQryCensus!$A$156:$FR$198,AO$1)","v":21},{"$f":"VLOOKUP(DropDownList!$B$47,CntyQryCensus!$A$156:$FR$198,AP$1)","v":34},{"$f":"VLOOKUP(DropDownList!$B$47,CntyQryCensus!$A$156:$FR$198,AQ$1)","v":4882},{"$f":"VLOOKUP(DropDownList!$B$47,CntyQryCensus!$A$156:$FR$198,AR$1)","v":951},{"$f":"VLOOKUP(DropDownList!$B$47,CntyQryCensus!$A$156:$FR$198,AS$1)","v":3226},{"$f":"VLOOKUP(DropDownList!$B$47,CntyQryCensus!$A$156:$FR$198,AT$1)","v":72},{"$f":"VLOOKUP(DropDownList!$B$47,CntyQryCensus!$A$156:$FR$198,AU$1)","v":242},{"$f":"VLOOKUP(DropDownList!$B$47,CntyQryCensus!$A$156:$FR$198,AV$1)","v":169},{"$f":"VLOOKUP(DropDownList!$B$47,CntyQryCensus!$A$156:$FR$198,AW$1)","v":391},{"$f":"VLOOKUP(DropDownList!$B$47,CntyQryCensus!$A$156:$FR$198,AX$1)","v":205},{"$f":"VLOOKUP(DropDownList!$B$47,CntyQryCensus!$A$156:$FR$198,AY$1)","v":5916},{"$f":"VLOOKUP(DropDownList!$B$47,CntyQryCensus!$A$156:$FR$198,AZ$1)","v":421},{"$f":"VLOOKUP(DropDownList!$B$47,CntyQryCensus!$A$156:$FR$198,BA$1)","v":5468},{"$f":"VLOOKUP(DropDownList!$B$47,CntyQryCensus!$A$156:$FR$198,BB$1)","v":4943},{"$f":"VLOOKUP(DropDownList!$B$47,CntyQryCensus!$A$156:$FR$198,BC$1)","v":227},{"$f":"VLOOKUP(DropDownList!$B$47,CntyQryCensus!$A$156:$FR$198,BD$1)","v":206},{"$f":"VLOOKUP(DropDownList!$B$47,CntyQryCensus!$A$156:$FR$198,BE$1)","v":92},{"$f":"VLOOKUP(DropDownList!$B$47,CntyQryCensus!$A$156:$FR$198,BF$1)","v":27},{"$f":"VLOOKUP(DropDownList!$B$47,CntyQryCensus!$A$156:$FR$198,BG$1)","v":262},{"$f":"VLOOKUP(DropDownList!$B$47,CntyQryCensus!$A$156:$FR$198,BH$1)","v":232},{"$f":"VLOOKUP(DropDownList!$B$47,CntyQryCensus!$A$156:$FR$198,BI$1)","v":30},{"$f":"VLOOKUP(DropDownList!$B$47,CntyQryCensus!$A$156:$FR$198,BJ$1)","v":5767},{"$f":"VLOOKUP(DropDownList!$B$47,CntyQryCensus!$A$156:$FR$198,BK$1)","v":3612},{"$f":"VLOOKUP(DropDownList!$B$47,CntyQryCensus!$A$156:$FR$198,BL$1)","v":2155},{"$f":"VLOOKUP(DropDownList!$B$47,CntyQryCensus!$A$156:$FR$198,BM$1)","v":2095},{"$f":"VLOOKUP(DropDownList!$B$47,CntyQryCensus!$A$156:$FR$198,BN$1)","v":903},{"$f":"VLOOKUP(DropDownList!$B$47,CntyQryCensus!$A$156:$FR$198,BO$1)","v":1192},{"$f":"VLOOKUP(DropDownList!$B$47,CntyQryCensus!$A$156:$FR$198,BP$1)","v":116},{"$f":"VLOOKUP(DropDownList!$B$47,CntyQryCensus!$A$156:$FR$198,BQ$1)","v":1076},{"$f":"VLOOKUP(DropDownList!$B$47,CntyQryCensus!$A$156:$FR$198,BR$1)","v":905},{"$f":"VLOOKUP(DropDownList!$B$47,CntyQryCensus!$A$156:$FR$198,BS$1)","v":4},{"$f":"VLOOKUP(DropDownList!$B$47,CntyQryCensus!$A$156:$FR$198,BT$1)","v":134},{"$f":"VLOOKUP(DropDownList!$B$47,CntyQryCensus!$A$156:$FR$198,BU$1)","v":33},{"$f":"VLOOKUP(DropDownList!$B$47,CntyQryCensus!$A$156:$FR$198,BV$1)","v":0},{"$f":"VLOOKUP(DropDownList!$B$47,CntyQryCensus!$A$156:$FR$198,BW$1)","v":60},{"$f":"VLOOKUP(DropDownList!$B$47,CntyQryCensus!$A$156:$FR$198,BX$1)","v":3422},{"$f":"VLOOKUP(DropDownList!$B$47,CntyQryCensus!$A$156:$FR$198,BY$1)","v":1524},{"$f":"VLOOKUP(DropDownList!$B$47,CntyQryCensus!$A$156:$FR$198,BZ$1)","v":1279},{"$f":"VLOOKUP(DropDownList!$B$47,CntyQryCensus!$A$156:$FR$198,CA$1)","v":245},{"$f":"VLOOKUP(DropDownList!$B$47,CntyQryCensus!$A$156:$FR$198,CB$1)","v":1898},{"$f":"VLOOKUP(DropDownList!$B$47,CntyQryCensus!$A$156:$FR$198,CC$1)","v":3422},{"$f":"VLOOKUP(DropDownList!$B$47,CntyQryCensus!$A$156:$FR$198,CD$1)","v":3156},{"$f":"VLOOKUP(DropDownList!$B$47,CntyQryCensus!$A$156:$FR$198,CE$1)","v":24},{"$f":"VLOOKUP(DropDownList!$B$47,CntyQryCensus!$A$156:$FR$198,CF$1)","v":100},{"$f":"VLOOKUP(DropDownList!$B$47,CntyQryCensus!$A$156:$FR$198,CG$1)","v":208},{"$f":"VLOOKUP(DropDownList!$B$47,CntyQryCensus!$A$156:$FR$198,CH$1)","v":3214},{"$f":"VLOOKUP(DropDownList!$B$47,CntyQryCensus!$A$156:$FR$198,CI$1)","v":49},{"$f":"VLOOKUP(DropDownList!$B$47,CntyQryCensus!$A$156:$FR$198,CJ$1)","v":156},{"$f":"VLOOKUP(DropDownList!$B$47,CntyQryCensus!$A$156:$FR$198,CK$1)","v":428},{"$f":"VLOOKUP(DropDownList!$B$47,CntyQryCensus!$A$156:$FR$198,CL$1)","v":401},{"$f":"VLOOKUP(DropDownList!$B$47,CntyQryCensus!$A$156:$FR$198,CM$1)","v":436},{"$f":"VLOOKUP(DropDownList!$B$47,CntyQryCensus!$A$156:$FR$198,CN$1)","v":167},{"$f":"VLOOKUP(DropDownList!$B$47,CntyQryCensus!$A$156:$FR$198,CO$1)","v":526},{"$f":"VLOOKUP(DropDownList!$B$47,CntyQryCensus!$A$156:$FR$198,CP$1)","v":79},{"$f":"VLOOKUP(DropDownList!$B$47,CntyQryCensus!$A$156:$FR$198,CQ$1)","v":185},{"$f":"VLOOKUP(DropDownList!$B$47,CntyQryCensus!$A$156:$FR$198,CR$1)","v":406},{"$f":"VLOOKUP(DropDownList!$B$47,CntyQryCensus!$A$156:$FR$198,CS$1)","v":316},{"$f":"VLOOKUP(DropDownList!$B$47,CntyQryCensus!$A$156:$FR$198,CT$1)","v":65},{"$f":"VLOOKUP(DropDownList!$B$47,CntyQryCensus!$A$156:$FR$198,CU$1)","v":208},{"$f":"VLOOKUP(DropDownList!$B$47,CntyQryCensus!$A$156:$FR$198,CV$1)","v":5932},{"$f":"VLOOKUP(DropDownList!$B$47,CntyQryCensus!$A$156:$FR$198,CW$1)","v":120},{"$f":"VLOOKUP(DropDownList!$B$47,CntyQryCensus!$A$156:$FR$198,CX$1)","v":97},{"$f":"VLOOKUP(DropDownList!$B$47,CntyQryCensus!$A$156:$FR$198,CY$1)","v":725},{"$f":"VLOOKUP(DropDownList!$B$47,CntyQryCensus!$A$156:$FR$198,CZ$1)","v":335},{"$f":"VLOOKUP(DropDownList!$B$47,CntyQryCensus!$A$156:$FR$198,DA$1)","v":298},{"$f":"VLOOKUP(DropDownList!$B$47,CntyQryCensus!$A$156:$FR$198,DB$1)","v":4345},{"$f":"VLOOKUP(DropDownList!$B$47,CntyQryCensus!$A$156:$FR$198,DC$1)","v":43},{"$f":"VLOOKUP(DropDownList!$B$47,CntyQryCensus!$A$156:$FR$198,DD$1)","v":162},{"$f":"VLOOKUP(DropDownList!$B$47,CntyQryCensus!$A$156:$FR$198,DE$1)","v":1044},{"$f":"VLOOKUP(DropDownList!$B$47,CntyQryCensus!$A$156:$FR$198,DF$1)","v":898},{"$f":"VLOOKUP(DropDownList!$B$47,CntyQryCensus!$A$156:$FR$198,DG$1)","v":494},{"$f":"VLOOKUP(DropDownList!$B$47,CntyQryCensus!$A$156:$FR$198,DH$1)","v":1145},{"$f":"VLOOKUP(DropDownList!$B$47,CntyQryCensus!$A$156:$FR$198,DI$1)","v":559},{"$f":"VLOOKUP(DropDownList!$B$47,CntyQryCensus!$A$156:$FR$198,DJ$1)","v":965},{"$f":"VLOOKUP(DropDownList!$B$47,CntyQryCensus!$A$156:$FR$198,DK$1)","v":27},{"$f":"VLOOKUP(DropDownList!$B$47,CntyQryCensus!$A$156:$FR$198,DL$1)","v":297},{"$f":"VLOOKUP(DropDownList!$B$47,CntyQryCensus!$A$156:$FR$198,DM$1)","v":33},{"$f":"VLOOKUP(DropDownList!$B$47,CntyQryCensus!$A$156:$FR$198,DN$1)","v":23},{"$f":"VLOOKUP(DropDownList!$B$47,CntyQryCensus!$A$156:$FR$198,DO$1)","v":264},{"$f":"VLOOKUP(DropDownList!$B$47,CntyQryCensus!$A$156:$FR$198,DP$1)","v":109},{"$f":"VLOOKUP(DropDownList!$B$47,CntyQryCensus!$A$156:$FR$198,DQ$1)","v":3808},{"$f":"VLOOKUP(DropDownList!$B$47,CntyQryCensus!$A$156:$FR$198,DR$1)","v":513},{"$f":"VLOOKUP(DropDownList!$B$47,CntyQryCensus!$A$156:$FR$198,DS$1)","v":410},{"$f":"VLOOKUP(DropDownList!$B$47,CntyQryCensus!$A$156:$FR$198,DT$1)","v":3295},{"$f":"VLOOKUP(DropDownList!$B$47,CntyQryCensus!$A$156:$FR$198,DU$1)","v":2805},{"$f":"VLOOKUP(DropDownList!$B$47,CntyQryCensus!$A$156:$FR$198,DV$1)","v":446},{"$f":"VLOOKUP(DropDownList!$B$47,CntyQryCensus!$A$156:$FR$198,DW$1)","v":97},{"$f":"VLOOKUP(DropDownList!$B$47,CntyQryCensus!$A$156:$FR$198,DX$1)","v":251},{"$f":"VLOOKUP(DropDownList!$B$47,CntyQryCensus!$A$156:$FR$198,DY$1)","v":76},{"$f":"VLOOKUP(DropDownList!$B$47,CntyQryCensus!$A$156:$FR$198,DZ$1)","v":4802},{"$f":"VLOOKUP(DropDownList!$B$47,CntyQryCensus!$A$156:$FR$198,EA$1)","v":3551},{"$f":"VLOOKUP(DropDownList!$B$47,CntyQryCensus!$A$156:$FR$198,EB$1)","v":3551},{"$f":"VLOOKUP(DropDownList!$B$47,CntyQryCensus!$A$156:$FR$198,EC$1)","v":3459},{"$f":"VLOOKUP(DropDownList!$B$47,CntyQryCensus!$A$156:$FR$198,ED$1)","v":1781},{"$f":"VLOOKUP(DropDownList!$B$47,CntyQryCensus!$A$156:$FR$198,EE$1)","v":1550},{"$f":"VLOOKUP(DropDownList!$B$47,CntyQryCensus!$A$156:$FR$198,EF$1)","v":122},{"$f":"VLOOKUP(DropDownList!$B$47,CntyQryCensus!$A$156:$FR$198,EG$1)","v":278},{"$f":"VLOOKUP(DropDownList!$B$47,CntyQryCensus!$A$156:$FR$198,EH$1)","v":865},{"$f":"VLOOKUP(DropDownList!$B$47,CntyQryCensus!$A$156:$FR$198,EI$1)","v":826},{"$f":"VLOOKUP(DropDownList!$B$47,CntyQryCensus!$A$156:$FR$198,EJ$1)","v":39},{"$f":"VLOOKUP(DropDownList!$B$47,CntyQryCensus!$A$156:$FR$198,EK$1)","v":285},{"$f":"VLOOKUP(DropDownList!$B$47,CntyQryCensus!$A$156:$FR$198,EL$1)","v":271},{"$f":"VLOOKUP(DropDownList!$B$47,CntyQryCensus!$A$156:$FR$198,EM$1)","v":14},{"$f":"VLOOKUP(DropDownList!$B$47,CntyQryCensus!$A$156:$FR$198,EN$1)","v":231},{"$f":"VLOOKUP(DropDownList!$B$47,CntyQryCensus!$A$156:$FR$198,EO$1)","v":91},{"$f":"VLOOKUP(DropDownList!$B$47,CntyQryCensus!$A$156:$FR$198,EP$1)","v":0},{"$f":"VLOOKUP(DropDownList!$B$47,CntyQryCensus!$A$156:$FR$198,EQ$1)","v":23},{"$f":"VLOOKUP(DropDownList!$B$47,CntyQryCensus!$A$156:$FR$198,ER$1)","v":46},{"$f":"VLOOKUP(DropDownList!$B$47,CntyQryCensus!$A$156:$FR$198,ES$1)","v":22},{"$f":"VLOOKUP(DropDownList!$B$47,CntyQryCensus!$A$156:$FR$198,ET$1)","v":140},{"$f":"VLOOKUP(DropDownList!$B$47,CntyQryCensus!$A$156:$FR$198,EU$1)","v":20},{"$f":"VLOOKUP(DropDownList!$B$47,CntyQryCensus!$A$156:$FR$198,EV$1)","v":49},{"$f":"VLOOKUP(DropDownList!$B$47,CntyQryCensus!$A$156:$FR$198,EW$1)","v":53},{"$f":"VLOOKUP(DropDownList!$B$47,CntyQryCensus!$A$156:$FR$198,EX$1)","v":18},{"$f":"VLOOKUP(DropDownList!$B$47,CntyQryCensus!$A$156:$FR$198,EY$1)","v":3459},{"$f":"VLOOKUP(DropDownList!$B$47,CntyQryCensus!$A$156:$FR$198,EZ$1)","v":46},{"$f":"VLOOKUP(DropDownList!$B$47,CntyQryCensus!$A$156:$FR$198,FA$1)","v":150},{"$f":"VLOOKUP(DropDownList!$B$47,CntyQryCensus!$A$156:$FR$198,FB$1)","v":668},{"$f":"VLOOKUP(DropDownList!$B$47,CntyQryCensus!$A$156:$FR$198,FC$1)","v":156},{"$f":"VLOOKUP(DropDownList!$B$47,CntyQryCensus!$A$156:$FR$198,FD$1)","v":517},{"$f":"VLOOKUP(DropDownList!$B$47,CntyQryCensus!$A$156:$FR$198,FE$1)","v":126},{"$f":"VLOOKUP(DropDownList!$B$47,CntyQryCensus!$A$156:$FR$198,FF$1)","v":138},{"$f":"VLOOKUP(DropDownList!$B$47,CntyQryCensus!$A$156:$FR$198,FG$1)","v":244},{"$f":"VLOOKUP(DropDownList!$B$47,CntyQryCensus!$A$156:$FR$198,FH$1)","v":363},{"$f":"VLOOKUP(DropDownList!$B$47,CntyQryCensus!$A$156:$FR$198,FI$1)","v":696},{"$f":"VLOOKUP(DropDownList!$B$47,CntyQryCensus!$A$156:$FR$198,FJ$1)","v":193},{"$f":"VLOOKUP(DropDownList!$B$47,CntyQryCensus!$A$156:$FR$198,FK$1)","v":60},{"$f":"VLOOKUP(DropDownList!$B$47,CntyQryCensus!$A$156:$FR$198,FL$1)","v":102},{"$f":"VLOOKUP(DropDownList!$B$47,CntyQryCensus!$A$156:$FR$198,FM$1)","v":1670},{"$f":"VLOOKUP(DropDownList!$B$47,CntyQryCensus!$A$156:$FR$198,FN$1)","v":297},{"$f":"VLOOKUP(DropDownList!$B$47,CntyQryCensus!$A$156:$FR$198,FO$1)","v":856},{"$f":"VLOOKUP(DropDownList!$B$47,CntyQryCensus!$A$156:$FR$198,FP$1)","v":22},{"$f":"VLOOKUP(DropDownList!$B$47,CntyQryCensus!$A$156:$FR$198,FQ$1)","v":172},{"$f":"VLOOKUP(DropDownList!$B$47,CntyQryCensus!$A$156:$FR$198,FR$1)","v":442}]
[]
[]
["Census 2000 SummaryFile3 Sample Data  -  SF3TownQry2aIncomeChar"]
["NAME","LOGRECNO","COUNTY","TotalPop","P52Households1","P52HHInc<10K","P52HHInc10to15K","P52HHInc15to20K","P52HHInc20to25K","P52HHInc25to30K","P52HHInc30to35K","P52HHInc35to40K","P52HHInc40to45K","P52HHInc45to50K","P52HHInc50to60K","P52HHInc60to75K","P52HHInc75to100K","P52HHInc100to125K","P52HHInc125to150K","P52HHInc150to200K","P52HHInc>200K","P53MedianHHInc","P54AggregHHInc","P55Households2","P55HHUnder25yrs","P55HH<25HHInc<10K","P55HH<25HHInc10to15K","P55HH<25HHInc15to20K","P55HH<25HHInc20to25K","P55HH<25HHInc25to30K","P55HH<25HHInc30to35K","P55HH<25HHInc35to40K","P55HH<25HHInc40to45K","P55HH<25HHInc45to50K","P55HH<25HHInc50to60K","P55HH<25HHInc60to75K","P55HH<25HHInc75to100K","P55HH<25HHInc100to125K","P55HH<25HHInc125to150K","P55HH<25HHInc150to200K","P55HH<25HHInc>200K","P55HH25to34yrs","P55HH25to34HHInc<10K","P55HH25to34HHInc10to15K","P55HH25to34HHInc15to20K","P55HH25to34HHInc20to25K","P55HH25to34HHInc25to30K","P55HH25to34HHInc30to35K","P55HH25to34HHInc35to40K","P55HH25to34HHInc40to45K","P55HH25to34HHInc45to50K","P55HH25to34HHInc50to60K","P55HH25to34HHInc60to75K","P55HH25to34HHInc75to100K","P55HH25to34HHInc100to125K","P55HH25to34HHInc125to150K","P55HH25to34HHInc150to200K","P55HH25to34HHInc>200K","P55HH35to44yrs","P55HH35to44HHInc<10K","P55HH35to44HHInc10to15K","P55HH35to44HHInc15to20K","P55HH35to44HHInc20to25K","P55HH35to44HHInc25to30K","P55HH35to44HHInc30to35K","P55HH35to44HHInc35to40K","P55HH35to44HHInc40to45K","P55HH35to44HHInc45to50K","P55HH35to44HHInc50to60K","P55HH35to44HHInc60to75K","P55HH35to44HHInc75to100K","P55HH35to44HHInc100to125K","P55HH35to44HHInc125to150K","P55HH35to44HHInc150to200K","P55HH35to44HHInc>200K","P55HH45to54yrs","P55HH45to55HHInc<10K","P55HH45to55HHInc10to15K","P55HH45to55HHInc15to20K","P55HH45to55HHInc20to25K","P55HH45to55HHInc25to30K","P55HH45to55HHInc30to35K","P55HH45to55HHInc35to40K","P55HH45to55HHInc40to45K","P55HH45to55HHInc45to50K","P55HH45to55HHInc50to60K","P55HH45to55HHInc60to75K","P55HH45to55HHInc75to100K","P55HH45to55HHInc100to125K","P55HH45to55HHInc125to150K","P55HH45to55HHInc150to200K","P55HH45to55HHInc>200K","P55HH55to64yrs","P55HH55to64HHInc<10K","P55HH55to64HHInc10to15K","P55HH55to64HHInc15to20K","P55HH55to64HHInc20to25K","P55HH55to64HHInc25to30K","P55HH55to64HHInc30to35K","P55HH55to64HHInc35to40K","P55HH55to64HHInc40to45K","P55HH55to64HHInc45to50K","P55HH55to64HHInc50to60K","P55HH55to64HHInc60to75K","P55HH55to64HHInc75to100K","P55HH55to64HHInc100to125K","P55HH55to64HHInc125to150K","P55HH55to64HHInc150to200K","P55HH55to64HHInc>200K","P55HH65to74yrs","P55HH65to74HHInc<10K","P55HH65to74HHInc10to15K","P55HH65to74HHInc15to20K","P55HH65to74HHInc20to25K","P55HH65to74HHInc25to30K","P55HH65to74HHInc30to35K","P55HH65to74HHInc35to40K","P55HH65to74HHInc40to45K","P55HH65to74HHInc45to50K","P55HH65to74HHInc50to60K","P55HH65to74HHInc60to75K","P55HH65to74HHInc75to100K","P55HH65to74HHInc100to125K","P55HH65to74HHInc125to150K","P55HH65to74HHInc150to200K","P55HH65to74HHInc>200K","P55HH>75yrs","P55HH>75HHInc<10K","P55HH>75HHInc10to15K","P55HH>75HHInc15to20K","P55HH>75HHInc20to25K","P55HH>75HHInc25to30K","P55HH>75HHInc30to35K","P55HH>75HHInc35to40K","P55HH>75HHInc40to45K","P55HH>75HHInc45to50K","P55HH>75HHInc50to60K","P55HH>75HHInc60to75K","P55HH>75HHInc75to100K","P55HH>75HHInc100to125K","P55HH>75HHInc125to150K","P55HH>75HHInc150to200K","P55HH>75HHInc>200K","P56MedHHInc","P56MedHHIncHH<25y","P56MedHHIncHH25to34y","P56MedHHIncHH35to44y","P56MedHHIncHH45to54y","P56MedHHIncHH55to64y","P56MedHHIncHH65to74y","P56MedHHIncHH>75y","P58Households3","P58HHwithEarnings","P58HHNoEarnings","P59HHwWageSalInc","P59HHNoWageSalInc","P60HHwSelfEmpInc","P60HHNoSelfEmpInc","P61HHwIndDivInc","P61HHNoIndDivInc","P62HHwSocSecInc","P62HHNoSocSecInc","P63HHwSSI","P63HHNoSSI","P64HHwPubAssInc","P64HHNoPubAssInc","P65HHwRetInc","P65HHNoRetInc","P66HHwOtherTypInc","P66HHNoOtherTypInc","P67AggregEarnings","P68AggregWageSalInc","P69AggregSelfEmpInc","P70AggregIntDivInc","P71AggregSocSecInc","P72AggregSSIInc","P73AggregPublicAssInc","P74AggregRetireInc","P76Families1","P76FamInc<10K","P76FamInc10to15K","P76FamInc15to20K","P76FamInc20to25K","P76FamInc25to30K","P76FamInc30to35K","P76FamInc35to40K","P76FamInc40to45K","P76FamInc45to50K","P76FamInc50to60K","P76FamInc60to75K","P76FamInc75to100K","P76FamInc100to125K","P76FamInc125to150K","P76FamInc150to200K","P76FamInc>200K","P77MedFamInc","P78AggregFamInc","P79NonFamHH","P79NonFamHHwInc<10K","P79NonFamHHwInc10to15K","P79NonFamHHwInc15to20K","P79NonFamHHwInc20to25K","P79NonFamHHwInc25to30K","P79NonFamHHwInc30to35K","P79NonFamHHwInc35to40K","P79NonFamHHwInc40to45K","P79NonFamHHwInc45to50K","P79NonFamHHwInc50to60K","P79NonFamHHwInc60to75K","P79NonFamHHwInc75to100K","P79NonFamHHwInc100to125K","P79NonFamHHwInc125to150K","P79NonFamHHwInc150to200K","P79NonFamHHwInc200KorMore","P80MedNonFamInc","P82PerCapitaInc"]
[{"$f":"VLOOKUP(DropDownList!$B$47,CntyQryCensus!$A$206:$HH$248,A$1)","v":"Atkinson"},{"$f":"VLOOKUP(DropDownList!$B$47,CntyQryCensus!$A$206:$HH$248,B$1)","v":"0003039"},{"$f":"VLOOKUP(DropDownList!$B$47,CntyQryCensus!$A$206:$HH$248,C$1)","v":"02340"},{"$f":"VLOOKUP(DropDownList!$B$47,CntyQryCensus!$A$206:$HH$248,D$1)","v":6178},{"$f":"VLOOKUP(DropDownList!$B$47,CntyQryCensus!$A$206:$HH$248,E$1)","v":2326},{"$f":"VLOOKUP(DropDownList!$B$47,CntyQryCensus!$A$206:$HH$248,F$1)","v":80},{"$f":"VLOOKUP(DropDownList!$B$47,CntyQryCensus!$A$206:$HH$248,G$1)","v":77},{"$f":"VLOOKUP(DropDownList!$B$47,CntyQryCensus!$A$206:$HH$248,H$1)","v":42},{"$f":"VLOOKUP(DropDownList!$B$47,CntyQryCensus!$A$206:$HH$248,I$1)","v":91},{"$f":"VLOOKUP(DropDownList!$B$47,CntyQryCensus!$A$206:$HH$248,J$1)","v":46},{"$f":"VLOOKUP(DropDownList!$B$47,CntyQryCensus!$A$206:$HH$248,K$1)","v":74},{"$f":"VLOOKUP(DropDownList!$B$47,CntyQryCensus!$A$206:$HH$248,L$1)","v":85},{"$f":"VLOOKUP(DropDownList!$B$47,CntyQryCensus!$A$206:$HH$248,M$1)","v":169},{"$f":"VLOOKUP(DropDownList!$B$47,CntyQryCensus!$A$206:$HH$248,N$1)","v":94},{"$f":"VLOOKUP(DropDownList!$B$47,CntyQryCensus!$A$206:$HH$248,O$1)","v":212},{"$f":"VLOOKUP(DropDownList!$B$47,CntyQryCensus!$A$206:$HH$248,P$1)","v":273},{"$f":"VLOOKUP(DropDownList!$B$47,CntyQryCensus!$A$206:$HH$248,Q$1)","v":405},{"$f":"VLOOKUP(DropDownList!$B$47,CntyQryCensus!$A$206:$HH$248,R$1)","v":267},{"$f":"VLOOKUP(DropDownList!$B$47,CntyQryCensus!$A$206:$HH$248,S$1)","v":182},{"$f":"VLOOKUP(DropDownList!$B$47,CntyQryCensus!$A$206:$HH$248,T$1)","v":111},{"$f":"VLOOKUP(DropDownList!$B$47,CntyQryCensus!$A$206:$HH$248,U$1)","v":118},{"$f":"VLOOKUP(DropDownList!$B$47,CntyQryCensus!$A$206:$HH$248,V$1)","v":69729},{"$f":"VLOOKUP(DropDownList!$B$47,CntyQryCensus!$A$206:$HH$248,W$1)","v":186834100},{"$f":"VLOOKUP(DropDownList!$B$47,CntyQryCensus!$A$206:$HH$248,X$1)","v":2326},{"$f":"VLOOKUP(DropDownList!$B$47,CntyQryCensus!$A$206:$HH$248,Y$1)","v":9},{"$f":"VLOOKUP(DropDownList!$B$47,CntyQryCensus!$A$206:$HH$248,Z$1)","v":0},{"$f":"VLOOKUP(DropDownList!$B$47,CntyQryCensus!$A$206:$HH$248,AA$1)","v":0},{"$f":"VLOOKUP(DropDownList!$B$47,CntyQryCensus!$A$206:$HH$248,AB$1)","v":0},{"$f":"VLOOKUP(DropDownList!$B$47,CntyQryCensus!$A$206:$HH$248,AC$1)","v":0},{"$f":"VLOOKUP(DropDownList!$B$47,CntyQryCensus!$A$206:$HH$248,AD$1)","v":0},{"$f":"VLOOKUP(DropDownList!$B$47,CntyQryCensus!$A$206:$HH$248,AE$1)","v":0},{"$f":"VLOOKUP(DropDownList!$B$47,CntyQryCensus!$A$206:$HH$248,AF$1)","v":0},{"$f":"VLOOKUP(DropDownList!$B$47,CntyQryCensus!$A$206:$HH$248,AG$1)","v":0},{"$f":"VLOOKUP(DropDownList!$B$47,CntyQryCensus!$A$206:$HH$248,AH$1)","v":9},{"$f":"VLOOKUP(DropDownList!$B$47,CntyQryCensus!$A$206:$HH$248,AI$1)","v":0},{"$f":"VLOOKUP(DropDownList!$B$47,CntyQryCensus!$A$206:$HH$248,AJ$1)","v":0},{"$f":"VLOOKUP(DropDownList!$B$47,CntyQryCensus!$A$206:$HH$248,AK$1)","v":0},{"$f":"VLOOKUP(DropDownList!$B$47,CntyQryCensus!$A$206:$HH$248,AL$1)","v":0},{"$f":"VLOOKUP(DropDownList!$B$47,CntyQryCensus!$A$206:$HH$248,AM$1)","v":0},{"$f":"VLOOKUP(DropDownList!$B$47,CntyQryCensus!$A$206:$HH$248,AN$1)","v":0},{"$f":"VLOOKUP(DropDownList!$B$47,CntyQryCensus!$A$206:$HH$248,AO$1)","v":0},{"$f":"VLOOKUP(DropDownList!$B$47,CntyQryCensus!$A$206:$HH$248,AP$1)","v":212},{"$f":"VLOOKUP(DropDownList!$B$47,CntyQryCensus!$A$206:$HH$248,AQ$1)","v":8},{"$f":"VLOOKUP(DropDownList!$B$47,CntyQryCensus!$A$206:$HH$248,AR$1)","v":9},{"$f":"VLOOKUP(DropDownList!$B$47,CntyQryCensus!$A$206:$HH$248,AS$1)","v":0},{"$f":"VLOOKUP(DropDownList!$B$47,CntyQryCensus!$A$206:$HH$248,AT$1)","v":0},{"$f":"VLOOKUP(DropDownList!$B$47,CntyQryCensus!$A$206:$HH$248,AU$1)","v":0},{"$f":"VLOOKUP(DropDownList!$B$47,CntyQryCensus!$A$206:$HH$248,AV$1)","v":0},{"$f":"VLOOKUP(DropDownList!$B$47,CntyQryCensus!$A$206:$HH$248,AW$1)","v":9},{"$f":"VLOOKUP(DropDownList!$B$47,CntyQryCensus!$A$206:$HH$248,AX$1)","v":10},{"$f":"VLOOKUP(DropDownList!$B$47,CntyQryCensus!$A$206:$HH$248,AY$1)","v":0},{"$f":"VLOOKUP(DropDownList!$B$47,CntyQryCensus!$A$206:$HH$248,AZ$1)","v":34},{"$f":"VLOOKUP(DropDownList!$B$47,CntyQryCensus!$A$206:$HH$248,BA$1)","v":72},{"$f":"VLOOKUP(DropDownList!$B$47,CntyQryCensus!$A$206:$HH$248,BB$1)","v":36},{"$f":"VLOOKUP(DropDownList!$B$47,CntyQryCensus!$A$206:$HH$248,BC$1)","v":16},{"$f":"VLOOKUP(DropDownList!$B$47,CntyQryCensus!$A$206:$HH$248,BD$1)","v":0},{"$f":"VLOOKUP(DropDownList!$B$47,CntyQryCensus!$A$206:$HH$248,BE$1)","v":18},{"$f":"VLOOKUP(DropDownList!$B$47,CntyQryCensus!$A$206:$HH$248,BF$1)","v":0},{"$f":"VLOOKUP(DropDownList!$B$47,CntyQryCensus!$A$206:$HH$248,BG$1)","v":608},{"$f":"VLOOKUP(DropDownList!$B$47,CntyQryCensus!$A$206:$HH$248,BH$1)","v":16},{"$f":"VLOOKUP(DropDownList!$B$47,CntyQryCensus!$A$206:$HH$248,BI$1)","v":7},{"$f":"VLOOKUP(DropDownList!$B$47,CntyQryCensus!$A$206:$HH$248,BJ$1)","v":0},{"$f":"VLOOKUP(DropDownList!$B$47,CntyQryCensus!$A$206:$HH$248,BK$1)","v":0},{"$f":"VLOOKUP(DropDownList!$B$47,CntyQryCensus!$A$206:$HH$248,BL$1)","v":25},{"$f":"VLOOKUP(DropDownList!$B$47,CntyQryCensus!$A$206:$HH$248,BM$1)","v":18},{"$f":"VLOOKUP(DropDownList!$B$47,CntyQryCensus!$A$206:$HH$248,BN$1)","v":8},{"$f":"VLOOKUP(DropDownList!$B$47,CntyQryCensus!$A$206:$HH$248,BO$1)","v":51},{"$f":"VLOOKUP(DropDownList!$B$47,CntyQryCensus!$A$206:$HH$248,BP$1)","v":28},{"$f":"VLOOKUP(DropDownList!$B$47,CntyQryCensus!$A$206:$HH$248,BQ$1)","v":29},{"$f":"VLOOKUP(DropDownList!$B$47,CntyQryCensus!$A$206:$HH$248,BR$1)","v":92},{"$f":"VLOOKUP(DropDownList!$B$47,CntyQryCensus!$A$206:$HH$248,BS$1)","v":99},{"$f":"VLOOKUP(DropDownList!$B$47,CntyQryCensus!$A$206:$HH$248,BT$1)","v":89},{"$f":"VLOOKUP(DropDownList!$B$47,CntyQryCensus!$A$206:$HH$248,BU$1)","v":64},{"$f":"VLOOKUP(DropDownList!$B$47,CntyQryCensus!$A$206:$HH$248,BV$1)","v":60},{"$f":"VLOOKUP(DropDownList!$B$47,CntyQryCensus!$A$206:$HH$248,BW$1)","v":22},{"$f":"VLOOKUP(DropDownList!$B$47,CntyQryCensus!$A$206:$HH$248,BX$1)","v":616},{"$f":"VLOOKUP(DropDownList!$B$47,CntyQryCensus!$A$206:$HH$248,BY$1)","v":12},{"$f":"VLOOKUP(DropDownList!$B$47,CntyQryCensus!$A$206:$HH$248,BZ$1)","v":22},{"$f":"VLOOKUP(DropDownList!$B$47,CntyQryCensus!$A$206:$HH$248,CA$1)","v":24},{"$f":"VLOOKUP(DropDownList!$B$47,CntyQryCensus!$A$206:$HH$248,CB$1)","v":23},{"$f":"VLOOKUP(DropDownList!$B$47,CntyQryCensus!$A$206:$HH$248,CC$1)","v":12},{"$f":"VLOOKUP(DropDownList!$B$47,CntyQryCensus!$A$206:$HH$248,CD$1)","v":9},{"$f":"VLOOKUP(DropDownList!$B$47,CntyQryCensus!$A$206:$HH$248,CE$1)","v":33},{"$f":"VLOOKUP(DropDownList!$B$47,CntyQryCensus!$A$206:$HH$248,CF$1)","v":25},{"$f":"VLOOKUP(DropDownList!$B$47,CntyQryCensus!$A$206:$HH$248,CG$1)","v":7},{"$f":"VLOOKUP(DropDownList!$B$47,CntyQryCensus!$A$206:$HH$248,CH$1)","v":11},{"$f":"VLOOKUP(DropDownList!$B$47,CntyQryCensus!$A$206:$HH$248,CI$1)","v":24},{"$f":"VLOOKUP(DropDownList!$B$47,CntyQryCensus!$A$206:$HH$248,CJ$1)","v":148},{"$f":"VLOOKUP(DropDownList!$B$47,CntyQryCensus!$A$206:$HH$248,CK$1)","v":111},{"$f":"VLOOKUP(DropDownList!$B$47,CntyQryCensus!$A$206:$HH$248,CL$1)","v":59},{"$f":"VLOOKUP(DropDownList!$B$47,CntyQryCensus!$A$206:$HH$248,CM$1)","v":17},{"$f":"VLOOKUP(DropDownList!$B$47,CntyQryCensus!$A$206:$HH$248,CN$1)","v":79},{"$f":"VLOOKUP(DropDownList!$B$47,CntyQryCensus!$A$206:$HH$248,CO$1)","v":438},{"$f":"VLOOKUP(DropDownList!$B$47,CntyQryCensus!$A$206:$HH$248,CP$1)","v":9},{"$f":"VLOOKUP(DropDownList!$B$47,CntyQryCensus!$A$206:$HH$248,CQ$1)","v":5},{"$f":"VLOOKUP(DropDownList!$B$47,CntyQryCensus!$A$206:$HH$248,CR$1)","v":9},{"$f":"VLOOKUP(DropDownList!$B$47,CntyQryCensus!$A$206:$HH$248,CS$1)","v":17},{"$f":"VLOOKUP(DropDownList!$B$47,CntyQryCensus!$A$206:$HH$248,CT$1)","v":0},{"$f":"VLOOKUP(DropDownList!$B$47,CntyQryCensus!$A$206:$HH$248,CU$1)","v":0},{"$f":"VLOOKUP(DropDownList!$B$47,CntyQryCensus!$A$206:$HH$248,CV$1)","v":26},{"$f":"VLOOKUP(DropDownList!$B$47,CntyQryCensus!$A$206:$HH$248,CW$1)","v":25},{"$f":"VLOOKUP(DropDownList!$B$47,CntyQryCensus!$A$206:$HH$248,CX$1)","v":25},{"$f":"VLOOKUP(DropDownList!$B$47,CntyQryCensus!$A$206:$HH$248,CY$1)","v":71},{"$f":"VLOOKUP(DropDownList!$B$47,CntyQryCensus!$A$206:$HH$248,CZ$1)","v":58},{"$f":"VLOOKUP(DropDownList!$B$47,CntyQryCensus!$A$206:$HH$248,DA$1)","v":91},{"$f":"VLOOKUP(DropDownList!$B$47,CntyQryCensus!$A$206:$HH$248,DB$1)","v":28},{"$f":"VLOOKUP(DropDownList!$B$47,CntyQryCensus!$A$206:$HH$248,DC$1)","v":51},{"$f":"VLOOKUP(DropDownList!$B$47,CntyQryCensus!$A$206:$HH$248,DD$1)","v":8},{"$f":"VLOOKUP(DropDownList!$B$47,CntyQryCensus!$A$206:$HH$248,DE$1)","v":15},{"$f":"VLOOKUP(DropDownList!$B$47,CntyQryCensus!$A$206:$HH$248,DF$1)","v":301},{"$f":"VLOOKUP(DropDownList!$B$47,CntyQryCensus!$A$206:$HH$248,DG$1)","v":17},{"$f":"VLOOKUP(DropDownList!$B$47,CntyQryCensus!$A$206:$HH$248,DH$1)","v":18},{"$f":"VLOOKUP(DropDownList!$B$47,CntyQryCensus!$A$206:$HH$248,DI$1)","v":9},{"$f":"VLOOKUP(DropDownList!$B$47,CntyQryCensus!$A$206:$HH$248,DJ$1)","v":35},{"$f":"VLOOKUP(DropDownList!$B$47,CntyQryCensus!$A$206:$HH$248,DK$1)","v":9},{"$f":"VLOOKUP(DropDownList!$B$47,CntyQryCensus!$A$206:$HH$248,DL$1)","v":32},{"$f":"VLOOKUP(DropDownList!$B$47,CntyQryCensus!$A$206:$HH$248,DM$1)","v":9},{"$f":"VLOOKUP(DropDownList!$B$47,CntyQryCensus!$A$206:$HH$248,DN$1)","v":33},{"$f":"VLOOKUP(DropDownList!$B$47,CntyQryCensus!$A$206:$HH$248,DO$1)","v":18},{"$f":"VLOOKUP(DropDownList!$B$47,CntyQryCensus!$A$206:$HH$248,DP$1)","v":39},{"$f":"VLOOKUP(DropDownList!$B$47,CntyQryCensus!$A$206:$HH$248,DQ$1)","v":27},{"$f":"VLOOKUP(DropDownList!$B$47,CntyQryCensus!$A$206:$HH$248,DR$1)","v":22},{"$f":"VLOOKUP(DropDownList!$B$47,CntyQryCensus!$A$206:$HH$248,DS$1)","v":23},{"$f":"VLOOKUP(DropDownList!$B$47,CntyQryCensus!$A$206:$HH$248,DT$1)","v":8},{"$f":"VLOOKUP(DropDownList!$B$47,CntyQryCensus!$A$206:$HH$248,DU$1)","v":0},{"$f":"VLOOKUP(DropDownList!$B$47,CntyQryCensus!$A$206:$HH$248,DV$1)","v":2},{"$f":"VLOOKUP(DropDownList!$B$47,CntyQryCensus!$A$206:$HH$248,DW$1)","v":142},{"$f":"VLOOKUP(DropDownList!$B$47,CntyQryCensus!$A$206:$HH$248,DX$1)","v":18},{"$f":"VLOOKUP(DropDownList!$B$47,CntyQryCensus!$A$206:$HH$248,DY$1)","v":16},{"$f":"VLOOKUP(DropDownList!$B$47,CntyQryCensus!$A$206:$HH$248,DZ$1)","v":0},{"$f":"VLOOKUP(DropDownList!$B$47,CntyQryCensus!$A$206:$HH$248,EA$1)","v":16},{"$f":"VLOOKUP(DropDownList!$B$47,CntyQryCensus!$A$206:$HH$248,EB$1)","v":0},{"$f":"VLOOKUP(DropDownList!$B$47,CntyQryCensus!$A$206:$HH$248,EC$1)","v":15},{"$f":"VLOOKUP(DropDownList!$B$47,CntyQryCensus!$A$206:$HH$248,ED$1)","v":0},{"$f":"VLOOKUP(DropDownList!$B$47,CntyQryCensus!$A$206:$HH$248,EE$1)","v":25},{"$f":"VLOOKUP(DropDownList!$B$47,CntyQryCensus!$A$206:$HH$248,EF$1)","v":7},{"$f":"VLOOKUP(DropDownList!$B$47,CntyQryCensus!$A$206:$HH$248,EG$1)","v":28},{"$f":"VLOOKUP(DropDownList!$B$47,CntyQryCensus!$A$206:$HH$248,EH$1)","v":0},{"$f":"VLOOKUP(DropDownList!$B$47,CntyQryCensus!$A$206:$HH$248,EI$1)","v":9},{"$f":"VLOOKUP(DropDownList!$B$47,CntyQryCensus!$A$206:$HH$248,EJ$1)","v":0},{"$f":"VLOOKUP(DropDownList!$B$47,CntyQryCensus!$A$206:$HH$248,EK$1)","v":0},{"$f":"VLOOKUP(DropDownList!$B$47,CntyQryCensus!$A$206:$HH$248,EL$1)","v":8},{"$f":"VLOOKUP(DropDownList!$B$47,CntyQryCensus!$A$206:$HH$248,EM$1)","v":0},{"$f":"VLOOKUP(DropDownList!$B$47,CntyQryCensus!$A$206:$HH$248,EN$1)","v":69729},{"$f":"VLOOKUP(DropDownList!$B$47,CntyQryCensus!$A$206:$HH$248,EO$1)","v":48750},{"$f":"VLOOKUP(DropDownList!$B$47,CntyQryCensus!$A$206:$HH$248,EP$1)","v":67586},{"$f":"VLOOKUP(DropDownList!$B$47,CntyQryCensus!$A$206:$HH$248,EQ$1)","v":80000},{"$f":"VLOOKUP(DropDownList!$B$47,CntyQryCensus!$A$206:$HH$248,ER$1)","v":84035},{"$f":"VLOOKUP(DropDownList!$B$47,CntyQryCensus!$A$206:$HH$248,ES$1)","v":66563},{"$f":"VLOOKUP(DropDownList!$B$47,CntyQryCensus!$A$206:$HH$248,ET$1)","v":42946},{"$f":"VLOOKUP(DropDownList!$B$47,CntyQryCensus!$A$206:$HH$248,EU$1)","v":41250},{"$f":"VLOOKUP(DropDownList!$B$47,CntyQryCensus!$A$206:$HH$248,EV$1)","v":2326},{"$f":"VLOOKUP(DropDownList!$B$47,CntyQryCensus!$A$206:$HH$248,EW$1)","v":2037},{"$f":"VLOOKUP(DropDownList!$B$47,CntyQryCensus!$A$206:$HH$248,EX$1)","v":289},{"$f":"VLOOKUP(DropDownList!$B$47,CntyQryCensus!$A$206:$HH$248,EY$1)","v":2000},{"$f":"VLOOKUP(DropDownList!$B$47,CntyQryCensus!$A$206:$HH$248,EZ$1)","v":326},{"$f":"VLOOKUP(DropDownList!$B$47,CntyQryCensus!$A$206:$HH$248,FA$1)","v":356},{"$f":"VLOOKUP(DropDownList!$B$47,CntyQryCensus!$A$206:$HH$248,FB$1)","v":1970},{"$f":"VLOOKUP(DropDownList!$B$47,CntyQryCensus!$A$206:$HH$248,FC$1)","v":1231},{"$f":"VLOOKUP(DropDownList!$B$47,CntyQryCensus!$A$206:$HH$248,FD$1)","v":1095},{"$f":"VLOOKUP(DropDownList!$B$47,CntyQryCensus!$A$206:$HH$248,FE$1)","v":589},{"$f":"VLOOKUP(DropDownList!$B$47,CntyQryCensus!$A$206:$HH$248,FF$1)","v":1737},{"$f":"VLOOKUP(DropDownList!$B$47,CntyQryCensus!$A$206:$HH$248,FG$1)","v":61},{"$f":"VLOOKUP(DropDownList!$B$47,CntyQryCensus!$A$206:$HH$248,FH$1)","v":2265},{"$f":"VLOOKUP(DropDownList!$B$47,CntyQryCensus!$A$206:$HH$248,FI$1)","v":33},{"$f":"VLOOKUP(DropDownList!$B$47,CntyQryCensus!$A$206:$HH$248,FJ$1)","v":2293},{"$f":"VLOOKUP(DropDownList!$B$47,CntyQryCensus!$A$206:$HH$248,FK$1)","v":476},{"$f":"VLOOKUP(DropDownList!$B$47,CntyQryCensus!$A$206:$HH$248,FL$1)","v":1850},{"$f":"VLOOKUP(DropDownList!$B$47,CntyQryCensus!$A$206:$HH$248,FM$1)","v":244},{"$f":"VLOOKUP(DropDownList!$B$47,CntyQryCensus!$A$206:$HH$248,FN$1)","v":2082},{"$f":"VLOOKUP(DropDownList!$B$47,CntyQryCensus!$A$206:$HH$248,FO$1)","v":158909200},{"$f":"VLOOKUP(DropDownList!$B$47,CntyQryCensus!$A$206:$HH$248,FP$1)","v":149002200},{"$f":"VLOOKUP(DropDownList!$B$47,CntyQryCensus!$A$206:$HH$248,FQ$1)","v":9907000},{"$f":"VLOOKUP(DropDownList!$B$47,CntyQryCensus!$A$206:$HH$248,FR$1)","v":11253600},{"$f":"VLOOKUP(DropDownList!$B$47,CntyQryCensus!$A$206:$HH$248,FS$1)","v":6617000},{"$f":"VLOOKUP(DropDownList!$B$47,CntyQryCensus!$A$206:$HH$248,FT$1)","v":428800},{"$f":"VLOOKUP(DropDownList!$B$47,CntyQryCensus!$A$206:$HH$248,FU$1)","v":29900},{"$f":"VLOOKUP(DropDownList!$B$47,CntyQryCensus!$A$206:$HH$248,FV$1)","v":8026100},{"$f":"VLOOKUP(DropDownList!$B$47,CntyQryCensus!$A$206:$HH$248,FW$1)","v":1781},{"$f":"VLOOKUP(DropDownList!$B$47,CntyQryCensus!$A$206:$HH$248,FX$1)","v":24},{"$f":"VLOOKUP(DropDownList!$B$47,CntyQryCensus!$A$206:$HH$248,FY$1)","v":25},{"$f":"VLOOKUP(DropDownList!$B$47,CntyQryCensus!$A$206:$HH$248,FZ$1)","v":0},{"$f":"VLOOKUP(DropDownList!$B$47,CntyQryCensus!$A$206:$HH$248,GA$1)","v":8},{"$f":"VLOOKUP(DropDownList!$B$47,CntyQryCensus!$A$206:$HH$248,GB$1)","v":26},{"$f":"VLOOKUP(DropDownList!$B$47,CntyQryCensus!$A$206:$HH$248,GC$1)","v":64},{"$f":"VLOOKUP(DropDownList!$B$47,CntyQryCensus!$A$206:$HH$248,GD$1)","v":58},{"$f":"VLOOKUP(DropDownList!$B$47,CntyQryCensus!$A$206:$HH$248,GE$1)","v":118},{"$f":"VLOOKUP(DropDownList!$B$47,CntyQryCensus!$A$206:$HH$248,GF$1)","v":74},{"$f":"VLOOKUP(DropDownList!$B$47,CntyQryCensus!$A$206:$HH$248,GG$1)","v":188},{"$f":"VLOOKUP(DropDownList!$B$47,CntyQryCensus!$A$206:$HH$248,GH$1)","v":249},{"$f":"VLOOKUP(DropDownList!$B$47,CntyQryCensus!$A$206:$HH$248,GI$1)","v":337},{"$f":"VLOOKUP(DropDownList!$B$47,CntyQryCensus!$A$206:$HH$248,GJ$1)","v":243},{"$f":"VLOOKUP(DropDownList!$B$47,CntyQryCensus!$A$206:$HH$248,GK$1)","v":163},{"$f":"VLOOKUP(DropDownList!$B$47,CntyQryCensus!$A$206:$HH$248,GL$1)","v":101},{"$f":"VLOOKUP(DropDownList!$B$47,CntyQryCensus!$A$206:$HH$248,GM$1)","v":103},{"$f":"VLOOKUP(DropDownList!$B$47,CntyQryCensus!$A$206:$HH$248,GN$1)","v":77631},{"$f":"VLOOKUP(DropDownList!$B$47,CntyQryCensus!$A$206:$HH$248,GO$1)","v":159092300},{"$f":"VLOOKUP(DropDownList!$B$47,CntyQryCensus!$A$206:$HH$248,GP$1)","v":545},{"$f":"VLOOKUP(DropDownList!$B$47,CntyQryCensus!$A$206:$HH$248,GQ$1)","v":56},{"$f":"VLOOKUP(DropDownList!$B$47,CntyQryCensus!$A$206:$HH$248,GR$1)","v":52},{"$f":"VLOOKUP(DropDownList!$B$47,CntyQryCensus!$A$206:$HH$248,GS$1)","v":42},{"$f":"VLOOKUP(DropDownList!$B$47,CntyQryCensus!$A$206:$HH$248,GT$1)","v":83},{"$f":"VLOOKUP(DropDownList!$B$47,CntyQryCensus!$A$206:$HH$248,GU$1)","v":29},{"$f":"VLOOKUP(DropDownList!$B$47,CntyQryCensus!$A$206:$HH$248,GV$1)","v":17},{"$f":"VLOOKUP(DropDownList!$B$47,CntyQryCensus!$A$206:$HH$248,GW$1)","v":27},{"$f":"VLOOKUP(DropDownList!$B$47,CntyQryCensus!$A$206:$HH$248,GX$1)","v":68},{"$f":"VLOOKUP(DropDownList!$B$47,CntyQryCensus!$A$206:$HH$248,GY$1)","v":19},{"$f":"VLOOKUP(DropDownList!$B$47,CntyQryCensus!$A$206:$HH$248,GZ$1)","v":24},{"$f":"VLOOKUP(DropDownList!$B$47,CntyQryCensus!$A$206:$HH$248,HA$1)","v":20},{"$f":"VLOOKUP(DropDownList!$B$47,CntyQryCensus!$A$206:$HH$248,HB$1)","v":40},{"$f":"VLOOKUP(DropDownList!$B$47,CntyQryCensus!$A$206:$HH$248,HC$1)","v":24},{"$f":"VLOOKUP(DropDownList!$B$47,CntyQryCensus!$A$206:$HH$248,HD$1)","v":19},{"$f":"VLOOKUP(DropDownList!$B$47,CntyQryCensus!$A$206:$HH$248,HE$1)","v":10},{"$f":"VLOOKUP(DropDownList!$B$47,CntyQryCensus!$A$206:$HH$248,HF$1)","v":15},{"$f":"VLOOKUP(DropDownList!$B$47,CntyQryCensus!$A$206:$HH$248,HG$1)","v":34044},{"$f":"VLOOKUP(DropDownList!$B$47,CntyQryCensus!$A$206:$HH$248,HH$1)","v":30412}]
[]
[]
["Census 2000 SummaryFile3 Sample Data  -  SF3TownQry2bPovertyChar"]
["NAME","LOGRECNO","COUNTY","TotalPop","P52Households1","P82PerCapitaInc","P87PopForPovStatus","P87PopWIncBelowPovStatus","P87PopUnder5yrBelowPoverty","P87Pop5yrBelowPoverty","P87Pop5to11yrBelowPoverty","P87Pop12to17yrBelowPoverty","P87Pop18to64yrBelowPoverty","P87Pop65to74yrBelowPoverty","P87PopOver75yrBelowPoverty","P87PopWIncAbovePovStatus","P87PopUnder5yrAbovePoverty","P87Pop5yrAbovePoverty","P87Pop5to11yrAbovePoverty","P87Pop12to17yrAbovePoverty","P87Pop18to64yrAbovePoverty","P87Pop65to74yrAbovePoverty","P87PopOver75yrAbovePoverty","P90Families","P90FamWIncBelowPov","P90MarCupFamWIncBelowPov","P90MCFamWRltdChld<18WIncBelowPov","P90MCFamWRltdChld<5WIncBelowPov","P90MaleHhlrWIncBelowPov","P90MaleHhlrWRltdChld<18yrWIncBelowPov","P90MaleHhlrWRltdChld<5yrWIncBelowPov","P90FemaleHhlrWIncBelowPov","P90FemaleHhlrWRltdChld<18yWIncBelowPov","P90FemaleHhlrWRltdChld<5yWIncBelowPov","P90FamWIncAbovePov","P90MarCupFamWIncAbovePov","P90MCFamWRltdChld<18WIncAbovePov","P90MCFamWRltdChld<5WIncAbovePov","P90MaleHhlrWIncAbovePov","P90MaleHhlrWRltdChld<18yrWIncAbovePov","P90MaleHhlrWRltdChld<5yrWIncAbovePov","P90FemaleHhlrWIncAbovePov","P90FemaleHhlrWRltdChld<18yWIncAbovePov","P90FemaleHhlrWRltdChld<5yWIncAbovePov","P92Households","P92HHwIncBelowPov","P92FamHHwIncBelowPov","P92MCFamHHwIncBelowPov","P92MaleFamHHwIncBelowPov","P92FemaleFamHHwIncBelowPov","P92NonFamHHwIncBelowPov","P92NonFamMaleHHwIncBelowPov","P92NonFamFemaleHHwIncBelowPov","P92HHwIncAbovePov","P92FamHHwIncAbovePov","P92MCFamHHwIncAbovePov","P92MaleFamHHwIncAbovePov","P92FemaleFamHHwIncAbovePov","P92NonFamHHwIncAbovePov","P92NonFamMaleHHwIncAbovePov","P92NonFamFemaleHHwIncAbovePov"]
[{"$f":"VLOOKUP(DropDownList!$B$47,CntyQryCensus!$A$256:$BI$298,A$1)","v":"Atkinson"},{"$f":"VLOOKUP(DropDownList!$B$47,CntyQryCensus!$A$256:$BI$298,B$1)","v":"0003039"},{"$f":"VLOOKUP(DropDownList!$B$47,CntyQryCensus!$A$256:$BI$298,C$1)","v":"02340"},{"$f":"VLOOKUP(DropDownList!$B$47,CntyQryCensus!$A$256:$BI$298,D$1)","v":6178},{"$f":"VLOOKUP(DropDownList!$B$47,CntyQryCensus!$A$256:$BI$298,E$1)","v":2326},{"$f":"VLOOKUP(DropDownList!$B$47,CntyQryCensus!$A$256:$BI$298,F$1)","v":30412},{"$f":"VLOOKUP(DropDownList!$B$47,CntyQryCensus!$A$256:$BI$298,G$1)","v":6178},{"$f":"VLOOKUP(DropDownList!$B$47,CntyQryCensus!$A$256:$BI$298,H$1)","v":202},{"$f":"VLOOKUP(DropDownList!$B$47,CntyQryCensus!$A$256:$BI$298,I$1)","v":16},{"$f":"VLOOKUP(DropDownList!$B$47,CntyQryCensus!$A$256:$BI$298,J$1)","v":0},{"$f":"VLOOKUP(DropDownList!$B$47,CntyQryCensus!$A$256:$BI$298,K$1)","v":35},{"$f":"VLOOKUP(DropDownList!$B$47,CntyQryCensus!$A$256:$BI$298,L$1)","v":18},{"$f":"VLOOKUP(DropDownList!$B$47,CntyQryCensus!$A$256:$BI$298,M$1)","v":118},{"$f":"VLOOKUP(DropDownList!$B$47,CntyQryCensus!$A$256:$BI$298,N$1)","v":9},{"$f":"VLOOKUP(DropDownList!$B$47,CntyQryCensus!$A$256:$BI$298,O$1)","v":6},{"$f":"VLOOKUP(DropDownList!$B$47,CntyQryCensus!$A$256:$BI$298,P$1)","v":5976},{"$f":"VLOOKUP(DropDownList!$B$47,CntyQryCensus!$A$256:$BI$298,Q$1)","v":395},{"$f":"VLOOKUP(DropDownList!$B$47,CntyQryCensus!$A$256:$BI$298,R$1)","v":35},{"$f":"VLOOKUP(DropDownList!$B$47,CntyQryCensus!$A$256:$BI$298,S$1)","v":544},{"$f":"VLOOKUP(DropDownList!$B$47,CntyQryCensus!$A$256:$BI$298,T$1)","v":477},{"$f":"VLOOKUP(DropDownList!$B$47,CntyQryCensus!$A$256:$BI$298,U$1)","v":3843},{"$f":"VLOOKUP(DropDownList!$B$47,CntyQryCensus!$A$256:$BI$298,V$1)","v":437},{"$f":"VLOOKUP(DropDownList!$B$47,CntyQryCensus!$A$256:$BI$298,W$1)","v":245},{"$f":"VLOOKUP(DropDownList!$B$47,CntyQryCensus!$A$256:$BI$298,X$1)","v":1781},{"$f":"VLOOKUP(DropDownList!$B$47,CntyQryCensus!$A$256:$BI$298,Y$1)","v":41},{"$f":"VLOOKUP(DropDownList!$B$47,CntyQryCensus!$A$256:$BI$298,Z$1)","v":18},{"$f":"VLOOKUP(DropDownList!$B$47,CntyQryCensus!$A$256:$BI$298,AA$1)","v":18},{"$f":"VLOOKUP(DropDownList!$B$47,CntyQryCensus!$A$256:$BI$298,AB$1)","v":8},{"$f":"VLOOKUP(DropDownList!$B$47,CntyQryCensus!$A$256:$BI$298,AC$1)","v":0},{"$f":"VLOOKUP(DropDownList!$B$47,CntyQryCensus!$A$256:$BI$298,AD$1)","v":0},{"$f":"VLOOKUP(DropDownList!$B$47,CntyQryCensus!$A$256:$BI$298,AE$1)","v":0},{"$f":"VLOOKUP(DropDownList!$B$47,CntyQryCensus!$A$256:$BI$298,AF$1)","v":23},{"$f":"VLOOKUP(DropDownList!$B$47,CntyQryCensus!$A$256:$BI$298,AG$1)","v":16},{"$f":"VLOOKUP(DropDownList!$B$47,CntyQryCensus!$A$256:$BI$298,AH$1)","v":0},{"$f":"VLOOKUP(DropDownList!$B$47,CntyQryCensus!$A$256:$BI$298,AI$1)","v":1740},{"$f":"VLOOKUP(DropDownList!$B$47,CntyQryCensus!$A$256:$BI$298,AJ$1)","v":1532},{"$f":"VLOOKUP(DropDownList!$B$47,CntyQryCensus!$A$256:$BI$298,AK$1)","v":709},{"$f":"VLOOKUP(DropDownList!$B$47,CntyQryCensus!$A$256:$BI$298,AL$1)","v":150},{"$f":"VLOOKUP(DropDownList!$B$47,CntyQryCensus!$A$256:$BI$298,AM$1)","v":91},{"$f":"VLOOKUP(DropDownList!$B$47,CntyQryCensus!$A$256:$BI$298,AN$1)","v":49},{"$f":"VLOOKUP(DropDownList!$B$47,CntyQryCensus!$A$256:$BI$298,AO$1)","v":21},{"$f":"VLOOKUP(DropDownList!$B$47,CntyQryCensus!$A$256:$BI$298,AP$1)","v":117},{"$f":"VLOOKUP(DropDownList!$B$47,CntyQryCensus!$A$256:$BI$298,AQ$1)","v":45},{"$f":"VLOOKUP(DropDownList!$B$47,CntyQryCensus!$A$256:$BI$298,AR$1)","v":3},{"$f":"VLOOKUP(DropDownList!$B$47,CntyQryCensus!$A$256:$BI$298,AS$1)","v":2326},{"$f":"VLOOKUP(DropDownList!$B$47,CntyQryCensus!$A$256:$BI$298,AT$1)","v":76},{"$f":"VLOOKUP(DropDownList!$B$47,CntyQryCensus!$A$256:$BI$298,AU$1)","v":41},{"$f":"VLOOKUP(DropDownList!$B$47,CntyQryCensus!$A$256:$BI$298,AV$1)","v":18},{"$f":"VLOOKUP(DropDownList!$B$47,CntyQryCensus!$A$256:$BI$298,AW$1)","v":0},{"$f":"VLOOKUP(DropDownList!$B$47,CntyQryCensus!$A$256:$BI$298,AX$1)","v":23},{"$f":"VLOOKUP(DropDownList!$B$47,CntyQryCensus!$A$256:$BI$298,AY$1)","v":35},{"$f":"VLOOKUP(DropDownList!$B$47,CntyQryCensus!$A$256:$BI$298,AZ$1)","v":0},{"$f":"VLOOKUP(DropDownList!$B$47,CntyQryCensus!$A$256:$BI$298,BA$1)","v":35},{"$f":"VLOOKUP(DropDownList!$B$47,CntyQryCensus!$A$256:$BI$298,BB$1)","v":2250},{"$f":"VLOOKUP(DropDownList!$B$47,CntyQryCensus!$A$256:$BI$298,BC$1)","v":1740},{"$f":"VLOOKUP(DropDownList!$B$47,CntyQryCensus!$A$256:$BI$298,BD$1)","v":1532},{"$f":"VLOOKUP(DropDownList!$B$47,CntyQryCensus!$A$256:$BI$298,BE$1)","v":91},{"$f":"VLOOKUP(DropDownList!$B$47,CntyQryCensus!$A$256:$BI$298,BF$1)","v":117},{"$f":"VLOOKUP(DropDownList!$B$47,CntyQryCensus!$A$256:$BI$298,BG$1)","v":510},{"$f":"VLOOKUP(DropDownList!$B$47,CntyQryCensus!$A$256:$BI$298,BH$1)","v":275},{"$f":"VLOOKUP(DropDownList!$B$47,CntyQryCensus!$A$256:$BI$298,BI$1)","v":235}]
[null,null,null,null,null,null,null,null,null,null,null,null,null,null,null,null,null,null,{"$f":"SUM(R60:T60)","v":1056}]
[]
["Census 2000 SummaryFile3 Sample Data  -  SF3TownQry7HousingA"]
["NAME","LOGRECNO","COUNTY","TotalPop","H1HousingUnitsTotal","H2SampleHU","H2SampleOccHU","H2SampleVacHU","H3HU100pctCount","H5HUTotal","H5HUUrban","H5HUUrbanInUrbanAreas","H5HUUrbanInUrbanClusters","H5HURural","H5HURuralFarm","H5HURuralNonFarm","H7HUOcc","H7HUOwnrOcc","H7HURentrOcc","H8HUVacant","H8HUVacantForRent","H8HUVacantForSale","H8HUVacRentedorSold","H8HUVacSeasonal","H8HUVacForMigrantWrkrs","H8HUOtherVacant","H14OccHUa","H14OwnerOccHU","H14OwnOccHuHh15to24","H14OwnOccHuHh25to34","H14OwnOccHuHh35to44","H14OwnOccHuHh45to54","H14OwnOccHuHh55to59","H14OwnOccHuHh60to64","H14OwnOccHuHh65to74","H14OwnOccHuHh75to84","H14OwnOccHuHh85Over","H14RenterOccHU1","H14RntrOccHuHh15to24","H14RntrOccHuHh25to34","H14RntrOccHuHh35to44","H14RntrOccHuHh45to54","H14RntrOccHuHh55to59","H14RntrOccHuHh60to64","H14RntrOccHuHh65to74","H14RntrOccHuHh75to84","H14RntrOccHuHh85Over","H15PopInOccHU","H15PopInOwnOccHU1","H15PopInRentOccHU1","H17OccupHUb","H17OwnOccHU2","H17OwnOccHU1PersonHH","H17OwnOccHU2PersonHH","H17OwnOccHU3PersonHH","H17OwnOccHU4PersonHH","H17OwnOccHU5PersonHH","H17OwnOccHU6PersonHH","H17OwnOccHU7PlusPersonHH","H17RentOccHU2","H17RntOccHU1PersonHH","H17RntOccHU2PersonHH","H17RntOccHU3PersonHH","H17RntOccHU4PersonHH","H17RntOccHU5PersonHH","H17RntOccHU6PersonHH","H17RntOccHU7PlusPersonHH","H18AvgHHSize","H18AvgHHSizeOwnOcc","H18AvgHHSizeRentOcc","H23TotHU","H23HU1Room","H23HU2Room","H23HU3Room","H23HU4Room","H23HU5Room","H23HU6Room","H23HU7Room","H23HU8Room","H23HU9orMoreRoom","H24MedianNumRooms","H25AggregNumRooms","H30TotalHU","H30Det1HU","H30Att1HU","H30Units2","H30Units3or4","H30Units5to9","H30Units10to19","H30Units20to49","H30Units50orMore","H30UnitsMobileHome","H30UnitsBoatRv","H32OccHUcTotal","H32OwnerOccHU3","H32OwnOccHU1Det","H32OwnOccHU1Att","H32OwnOccHU2Unit","H32OwnOccHU3to4Unit","H32OwnOccHU5to9Unit","H32OwnOccHU10to19Unit","H32OwnOccHU20to49Unit","H32OwnOccHU50plusUnit","H32OwnOccHUMobHom","H32OwnOccHUBoatRVOth","H32RentrOccHU3","H32RntrOccHU1Det","H32RntrOccHU1Att","H32RntrOccHU2Unit","H32RntrOccHU3to4Unit","H32RntrOccHU5to9Unit","H32RntrOccHU10to19Unit","H32RntrOccHU20to49Unit","H32RntrOccHU50PlusUnit","H32RntrOccHUMobHom","H32RntrOccHUBoatRVOth","H33TotPopInOccHU","H33PopInOwnOccHU2","H33PopInOOHU1Det","H33PopInOOHU1Att","H33PopInOOHU2unit","H33PopInOOHU3to4Unit","H33PopInOOHU5to9Unit","H33PopInOOHU10to19Unit","H33PopInOOHU20to49Unit","H33PopInOOHU50PlusUnit","H33PopInOOHUMobilHome","H33PopInOOHUOtherUnit","H33PopInRentOccHU2","H33PopInROHU1Det","H33PopInROHU1Att","H33PopInROHU2Unit","H33PopInROHU3to4Unit","H33PopInROHU5to9Unit","H33PopInROHU10to19Unit","H33PopInROHU20to49Unit","H33PopInROHU50PlusUnit","H33PopInROHUMobilHome","H33PopInROHUOtherUnit","H36OccHousingUnitsdTotal","H36OwnerOccHU4","H36OOHUBuilt99to0300","H36OOHUBuilt95to98","H36OOHUBuilt90to94","H36OOHUBuilt80to89","H36OOHUBuilt70to79","H36OOHUBuilt60to69","H36OOHUBuilt50to59","H36OOHUBuilt40to49","H36OOHUBuilt39Earlier","H36RentOccHU4","H36ROHUBuilt99to0300","H36ROHUBuilt95to98","H36ROHUBuilt90to94","H36ROHUBuilt80to89","H36ROHUBuilt70to79","H36ROHUBuilt60to69","H36ROHUBuilt50to59","H36ROHUBuilt40to49","H36ROHUBuilt39Earlier","H40OccupHousUnitse","H40HeatFuelUtilGas","H40HeatFuelBotGas","H40HeatFuelElect","H40HeatFuelOilKero","H40HeatFuelCoal","H40HeatFuelWood","H40HeatFuelSolar","H40HeatFuelOther","H40HeatFuelNone","H41TotalHU","H41HUNoBdrm","H41HU1Bdrm","H41HU2Bdrm","H41HU3Bdrm","H41HU4Bdrm","H41HU5MoreBdrm","H42OccuHousUnitf","H42OwnerOccHU5","H42OOHUNoBdrm","H42OOHU1Bdrm","H42OOHU2Bdrm","H42OOHU3Bdrm","H42OOHU4Bdrm","H42OOHU5PlusBdrm","H42RentOccHU5","H42ROHUNoBdrm","H42ROHU1Bdrm","H42ROHU2Bdrm","H42ROHU3Bdrm","H42ROHU4Bdrm","H42ROHU5PlusBdrm","H48OccupHousUnitsg","H48OwnerOccHU6","H48OOHUwCompltPlumFacil","H48OOHULackCompltPlumFacil","H48RentOccHU6","H48ROHUwCompltPlumFacil","H48ROHULackCompltPlumFacil","H51OccupHousUnitf","H51OwnerOccHU7","H51OOHUwCompleteKitFacil","H51OOHULackCompleteKitFacil","H51RenterOccHU7","H51ROHUwCompleteKitFacil","H51ROHULackCompleteKitFacil"]
[{"$f":"VLOOKUP(DropDownList!$B47,CntyQryCensus!$A$306:$GX$348,A$1)","v":"Atkinson"},{"$f":"VLOOKUP(DropDownList!$B47,CntyQryCensus!$A$306:$GX$348,B$1)","v":"0003039"},{"$f":"VLOOKUP(DropDownList!$B47,CntyQryCensus!$A$306:$GX$348,C$1)","v":"02340"},{"$f":"VLOOKUP(DropDownList!$B47,CntyQryCensus!$A$306:$GX$348,D$1)","v":6178},{"$f":"VLOOKUP(DropDownList!$B47,CntyQryCensus!$A$306:$GX$348,E$1)","v":2431},{"$f":"VLOOKUP(DropDownList!$B47,CntyQryCensus!$A$306:$GX$348,F$1)","v":280},{"$f":"VLOOKUP(DropDownList!$B47,CntyQryCensus!$A$306:$GX$348,G$1)","v":272},{"$f":"VLOOKUP(DropDownList!$B47,CntyQryCensus!$A$306:$GX$348,H$1)","v":8},{"$f":"VLOOKUP(DropDownList!$B47,CntyQryCensus!$A$306:$GX$348,I$1)","v":2431},{"$f":"VLOOKUP(DropDownList!$B47,CntyQryCensus!$A$306:$GX$348,J$1)","v":2431},{"$f":"VLOOKUP(DropDownList!$B47,CntyQryCensus!$A$306:$GX$348,K$1)","v":2431},{"$f":"VLOOKUP(DropDownList!$B47,CntyQryCensus!$A$306:$GX$348,L$1)","v":2431},{"$f":"VLOOKUP(DropDownList!$B47,CntyQryCensus!$A$306:$GX$348,M$1)","v":0},{"$f":"VLOOKUP(DropDownList!$B47,CntyQryCensus!$A$306:$GX$348,N$1)","v":0},{"$f":"VLOOKUP(DropDownList!$B47,CntyQryCensus!$A$306:$GX$348,O$1)","v":0},{"$f":"VLOOKUP(DropDownList!$B47,CntyQryCensus!$A$306:$GX$348,P$1)","v":0},{"$f":"VLOOKUP(DropDownList!$B47,CntyQryCensus!$A$306:$GX$348,Q$1)","v":2317},{"$f":"VLOOKUP(DropDownList!$B47,CntyQryCensus!$A$306:$GX$348,R$1)","v":2060},{"$f":"VLOOKUP(DropDownList!$B47,CntyQryCensus!$A$306:$GX$348,S$1)","v":257},{"$f":"VLOOKUP(DropDownList!$B47,CntyQryCensus!$A$306:$GX$348,T$1)","v":114},{"$f":"VLOOKUP(DropDownList!$B47,CntyQryCensus!$A$306:$GX$348,U$1)","v":0},{"$f":"VLOOKUP(DropDownList!$B47,CntyQryCensus!$A$306:$GX$348,V$1)","v":8},{"$f":"VLOOKUP(DropDownList!$B47,CntyQryCensus!$A$306:$GX$348,W$1)","v":24},{"$f":"VLOOKUP(DropDownList!$B47,CntyQryCensus!$A$306:$GX$348,X$1)","v":75},{"$f":"VLOOKUP(DropDownList!$B47,CntyQryCensus!$A$306:$GX$348,Y$1)","v":0},{"$f":"VLOOKUP(DropDownList!$B47,CntyQryCensus!$A$306:$GX$348,Z$1)","v":7},{"$f":"VLOOKUP(DropDownList!$B47,CntyQryCensus!$A$306:$GX$348,AA$1)","v":2317},{"$f":"VLOOKUP(DropDownList!$B47,CntyQryCensus!$A$306:$GX$348,AB$1)","v":2060},{"$f":"VLOOKUP(DropDownList!$B47,CntyQryCensus!$A$306:$GX$348,AC$1)","v":0},{"$f":"VLOOKUP(DropDownList!$B47,CntyQryCensus!$A$306:$GX$348,AD$1)","v":178},{"$f":"VLOOKUP(DropDownList!$B47,CntyQryCensus!$A$306:$GX$348,AE$1)","v":596},{"$f":"VLOOKUP(DropDownList!$B47,CntyQryCensus!$A$306:$GX$348,AF$1)","v":471},{"$f":"VLOOKUP(DropDownList!$B47,CntyQryCensus!$A$306:$GX$348,AG$1)","v":251},{"$f":"VLOOKUP(DropDownList!$B47,CntyQryCensus!$A$306:$GX$348,AH$1)","v":168},{"$f":"VLOOKUP(DropDownList!$B47,CntyQryCensus!$A$306:$GX$348,AI$1)","v":269},{"$f":"VLOOKUP(DropDownList!$B47,CntyQryCensus!$A$306:$GX$348,AJ$1)","v":96},{"$f":"VLOOKUP(DropDownList!$B47,CntyQryCensus!$A$306:$GX$348,AK$1)","v":31},{"$f":"VLOOKUP(DropDownList!$B47,CntyQryCensus!$A$306:$GX$348,AL$1)","v":257},{"$f":"VLOOKUP(DropDownList!$B47,CntyQryCensus!$A$306:$GX$348,AM$1)","v":8},{"$f":"VLOOKUP(DropDownList!$B47,CntyQryCensus!$A$306:$GX$348,AN$1)","v":15},{"$f":"VLOOKUP(DropDownList!$B47,CntyQryCensus!$A$306:$GX$348,AO$1)","v":47},{"$f":"VLOOKUP(DropDownList!$B47,CntyQryCensus!$A$306:$GX$348,AP$1)","v":65},{"$f":"VLOOKUP(DropDownList!$B47,CntyQryCensus!$A$306:$GX$348,AQ$1)","v":34},{"$f":"VLOOKUP(DropDownList!$B47,CntyQryCensus!$A$306:$GX$348,AR$1)","v":9},{"$f":"VLOOKUP(DropDownList!$B47,CntyQryCensus!$A$306:$GX$348,AS$1)","v":59},{"$f":"VLOOKUP(DropDownList!$B47,CntyQryCensus!$A$306:$GX$348,AT$1)","v":0},{"$f":"VLOOKUP(DropDownList!$B47,CntyQryCensus!$A$306:$GX$348,AU$1)","v":20},{"$f":"VLOOKUP(DropDownList!$B47,CntyQryCensus!$A$306:$GX$348,AV$1)","v":6174},{"$f":"VLOOKUP(DropDownList!$B47,CntyQryCensus!$A$306:$GX$348,AW$1)","v":5741},{"$f":"VLOOKUP(DropDownList!$B47,CntyQryCensus!$A$306:$GX$348,AX$1)","v":433},{"$f":"VLOOKUP(DropDownList!$B47,CntyQryCensus!$A$306:$GX$348,AY$1)","v":2317},{"$f":"VLOOKUP(DropDownList!$B47,CntyQryCensus!$A$306:$GX$348,AZ$1)","v":2060},{"$f":"VLOOKUP(DropDownList!$B47,CntyQryCensus!$A$306:$GX$348,BA$1)","v":275},{"$f":"VLOOKUP(DropDownList!$B47,CntyQryCensus!$A$306:$GX$348,BB$1)","v":778},{"$f":"VLOOKUP(DropDownList!$B47,CntyQryCensus!$A$306:$GX$348,BC$1)","v":391},{"$f":"VLOOKUP(DropDownList!$B47,CntyQryCensus!$A$306:$GX$348,BD$1)","v":392},{"$f":"VLOOKUP(DropDownList!$B47,CntyQryCensus!$A$306:$GX$348,BE$1)","v":169},{"$f":"VLOOKUP(DropDownList!$B47,CntyQryCensus!$A$306:$GX$348,BF$1)","v":47},{"$f":"VLOOKUP(DropDownList!$B47,CntyQryCensus!$A$306:$GX$348,BG$1)","v":8},{"$f":"VLOOKUP(DropDownList!$B47,CntyQryCensus!$A$306:$GX$348,BH$1)","v":257},{"$f":"VLOOKUP(DropDownList!$B47,CntyQryCensus!$A$306:$GX$348,BI$1)","v":165},{"$f":"VLOOKUP(DropDownList!$B47,CntyQryCensus!$A$306:$GX$348,BJ$1)","v":60},{"$f":"VLOOKUP(DropDownList!$B47,CntyQryCensus!$A$306:$GX$348,BK$1)","v":25},{"$f":"VLOOKUP(DropDownList!$B47,CntyQryCensus!$A$306:$GX$348,BL$1)","v":0},{"$f":"VLOOKUP(DropDownList!$B47,CntyQryCensus!$A$306:$GX$348,BM$1)","v":0},{"$f":"VLOOKUP(DropDownList!$B47,CntyQryCensus!$A$306:$GX$348,BN$1)","v":7},{"$f":"VLOOKUP(DropDownList!$B47,CntyQryCensus!$A$306:$GX$348,BO$1)","v":0},{"$f":"VLOOKUP(DropDownList!$B47,CntyQryCensus!$A$306:$GX$348,BP$1)","v":3},{"$f":"VLOOKUP(DropDownList!$B47,CntyQryCensus!$A$306:$GX$348,BQ$1)","v":3},{"$f":"VLOOKUP(DropDownList!$B47,CntyQryCensus!$A$306:$GX$348,BR$1)","v":2},{"$f":"VLOOKUP(DropDownList!$B47,CntyQryCensus!$A$306:$GX$348,BS$1)","v":2431},{"$f":"VLOOKUP(DropDownList!$B47,CntyQryCensus!$A$306:$GX$348,BT$1)","v":0},{"$f":"VLOOKUP(DropDownList!$B47,CntyQryCensus!$A$306:$GX$348,BU$1)","v":105},{"$f":"VLOOKUP(DropDownList!$B47,CntyQryCensus!$A$306:$GX$348,BV$1)","v":36},{"$f":"VLOOKUP(DropDownList!$B47,CntyQryCensus!$A$306:$GX$348,BW$1)","v":131},{"$f":"VLOOKUP(DropDownList!$B47,CntyQryCensus!$A$306:$GX$348,BX$1)","v":409},{"$f":"VLOOKUP(DropDownList!$B47,CntyQryCensus!$A$306:$GX$348,BY$1)","v":559},{"$f":"VLOOKUP(DropDownList!$B47,CntyQryCensus!$A$306:$GX$348,BZ$1)","v":457},{"$f":"VLOOKUP(DropDownList!$B47,CntyQryCensus!$A$306:$GX$348,CA$1)","v":358},{"$f":"VLOOKUP(DropDownList!$B47,CntyQryCensus!$A$306:$GX$348,CB$1)","v":376},{"$f":"VLOOKUP(DropDownList!$B47,CntyQryCensus!$A$306:$GX$348,CC$1)","v":6},{"$f":"VLOOKUP(DropDownList!$B47,CntyQryCensus!$A$306:$GX$348,CD$1)","v":16064},{"$f":"VLOOKUP(DropDownList!$B47,CntyQryCensus!$A$306:$GX$348,CE$1)","v":2431},{"$f":"VLOOKUP(DropDownList!$B47,CntyQryCensus!$A$306:$GX$348,CF$1)","v":1826},{"$f":"VLOOKUP(DropDownList!$B47,CntyQryCensus!$A$306:$GX$348,CG$1)","v":322},{"$f":"VLOOKUP(DropDownList!$B47,CntyQryCensus!$A$306:$GX$348,CH$1)","v":81},{"$f":"VLOOKUP(DropDownList!$B47,CntyQryCensus!$A$306:$GX$348,CI$1)","v":61},{"$f":"VLOOKUP(DropDownList!$B47,CntyQryCensus!$A$306:$GX$348,CJ$1)","v":0},{"$f":"VLOOKUP(DropDownList!$B47,CntyQryCensus!$A$306:$GX$348,CK$1)","v":125},{"$f":"VLOOKUP(DropDownList!$B47,CntyQryCensus!$A$306:$GX$348,CL$1)","v":6},{"$f":"VLOOKUP(DropDownList!$B47,CntyQryCensus!$A$306:$GX$348,CM$1)","v":0},{"$f":"VLOOKUP(DropDownList!$B47,CntyQryCensus!$A$306:$GX$348,CN$1)","v":10},{"$f":"VLOOKUP(DropDownList!$B47,CntyQryCensus!$A$306:$GX$348,CO$1)","v":0},{"$f":"VLOOKUP(DropDownList!$B47,CntyQryCensus!$A$306:$GX$348,CP$1)","v":2317},{"$f":"VLOOKUP(DropDownList!$B47,CntyQryCensus!$A$306:$GX$348,CQ$1)","v":2060},{"$f":"VLOOKUP(DropDownList!$B47,CntyQryCensus!$A$306:$GX$348,CR$1)","v":1669},{"$f":"VLOOKUP(DropDownList!$B47,CntyQryCensus!$A$306:$GX$348,CS$1)","v":266},{"$f":"VLOOKUP(DropDownList!$B47,CntyQryCensus!$A$306:$GX$348,CT$1)","v":53},{"$f":"VLOOKUP(DropDownList!$B47,CntyQryCensus!$A$306:$GX$348,CU$1)","v":56},{"$f":"VLOOKUP(DropDownList!$B47,CntyQryCensus!$A$306:$GX$348,CV$1)","v":0},{"$f":"VLOOKUP(DropDownList!$B47,CntyQryCensus!$A$306:$GX$348,CW$1)","v":0},{"$f":"VLOOKUP(DropDownList!$B47,CntyQryCensus!$A$306:$GX$348,CX$1)","v":6},{"$f":"VLOOKUP(DropDownList!$B47,CntyQryCensus!$A$306:$GX$348,CY$1)","v":0},{"$f":"VLOOKUP(DropDownList!$B47,CntyQryCensus!$A$306:$GX$348,CZ$1)","v":10},{"$f":"VLOOKUP(DropDownList!$B47,CntyQryCensus!$A$306:$GX$348,DA$1)","v":0},{"$f":"VLOOKUP(DropDownList!$B47,CntyQryCensus!$A$306:$GX$348,DB$1)","v":257},{"$f":"VLOOKUP(DropDownList!$B47,CntyQryCensus!$A$306:$GX$348,DC$1)","v":96},{"$f":"VLOOKUP(DropDownList!$B47,CntyQryCensus!$A$306:$GX$348,DD$1)","v":8},{"$f":"VLOOKUP(DropDownList!$B47,CntyQryCensus!$A$306:$GX$348,DE$1)","v":28},{"$f":"VLOOKUP(DropDownList!$B47,CntyQryCensus!$A$306:$GX$348,DF$1)","v":0},{"$f":"VLOOKUP(DropDownList!$B47,CntyQryCensus!$A$306:$GX$348,DG$1)","v":0},{"$f":"VLOOKUP(DropDownList!$B47,CntyQryCensus!$A$306:$GX$348,DH$1)","v":125},{"$f":"VLOOKUP(DropDownList!$B47,CntyQryCensus!$A$306:$GX$348,DI$1)","v":0},{"$f":"VLOOKUP(DropDownList!$B47,CntyQryCensus!$A$306:$GX$348,DJ$1)","v":0},{"$f":"VLOOKUP(DropDownList!$B47,CntyQryCensus!$A$306:$GX$348,DK$1)","v":0},{"$f":"VLOOKUP(DropDownList!$B47,CntyQryCensus!$A$306:$GX$348,DL$1)","v":0},{"$f":"VLOOKUP(DropDownList!$B47,CntyQryCensus!$A$306:$GX$348,DM$1)","v":6174},{"$f":"VLOOKUP(DropDownList!$B47,CntyQryCensus!$A$306:$GX$348,DN$1)","v":5741},{"$f":"VLOOKUP(DropDownList!$B47,CntyQryCensus!$A$306:$GX$348,DO$1)","v":4967},{"$f":"VLOOKUP(DropDownList!$B47,CntyQryCensus!$A$306:$GX$348,DP$1)","v":477},{"$f":"VLOOKUP(DropDownList!$B47,CntyQryCensus!$A$306:$GX$348,DQ$1)","v":117},{"$f":"VLOOKUP(DropDownList!$B47,CntyQryCensus!$A$306:$GX$348,DR$1)","v":159},{"$f":"VLOOKUP(DropDownList!$B47,CntyQryCensus!$A$306:$GX$348,DS$1)","v":0},{"$f":"VLOOKUP(DropDownList!$B47,CntyQryCensus!$A$306:$GX$348,DT$1)","v":0},{"$f":"VLOOKUP(DropDownList!$B47,CntyQryCensus!$A$306:$GX$348,DU$1)","v":12},{"$f":"VLOOKUP(DropDownList!$B47,CntyQryCensus!$A$306:$GX$348,DV$1)","v":0},{"$f":"VLOOKUP(DropDownList!$B47,CntyQryCensus!$A$306:$GX$348,DW$1)","v":9},{"$f":"VLOOKUP(DropDownList!$B47,CntyQryCensus!$A$306:$GX$348,DX$1)","v":0},{"$f":"VLOOKUP(DropDownList!$B47,CntyQryCensus!$A$306:$GX$348,DY$1)","v":433},{"$f":"VLOOKUP(DropDownList!$B47,CntyQryCensus!$A$306:$GX$348,DZ$1)","v":238},{"$f":"VLOOKUP(DropDownList!$B47,CntyQryCensus!$A$306:$GX$348,EA$1)","v":20},{"$f":"VLOOKUP(DropDownList!$B47,CntyQryCensus!$A$306:$GX$348,EB$1)","v":42},{"$f":"VLOOKUP(DropDownList!$B47,CntyQryCensus!$A$306:$GX$348,EC$1)","v":0},{"$f":"VLOOKUP(DropDownList!$B47,CntyQryCensus!$A$306:$GX$348,ED$1)","v":0},{"$f":"VLOOKUP(DropDownList!$B47,CntyQryCensus!$A$306:$GX$348,EE$1)","v":133},{"$f":"VLOOKUP(DropDownList!$B47,CntyQryCensus!$A$306:$GX$348,EF$1)","v":0},{"$f":"VLOOKUP(DropDownList!$B47,CntyQryCensus!$A$306:$GX$348,EG$1)","v":0},{"$f":"VLOOKUP(DropDownList!$B47,CntyQryCensus!$A$306:$GX$348,EH$1)","v":0},{"$f":"VLOOKUP(DropDownList!$B47,CntyQryCensus!$A$306:$GX$348,EI$1)","v":0},{"$f":"VLOOKUP(DropDownList!$B47,CntyQryCensus!$A$306:$GX$348,EJ$1)","v":2317},{"$f":"VLOOKUP(DropDownList!$B47,CntyQryCensus!$A$306:$GX$348,EK$1)","v":2060},{"$f":"VLOOKUP(DropDownList!$B47,CntyQryCensus!$A$306:$GX$348,EL$1)","v":38},{"$f":"VLOOKUP(DropDownList!$B47,CntyQryCensus!$A$306:$GX$348,EM$1)","v":242},{"$f":"VLOOKUP(DropDownList!$B47,CntyQryCensus!$A$306:$GX$348,EN$1)","v":264},{"$f":"VLOOKUP(DropDownList!$B47,CntyQryCensus!$A$306:$GX$348,EO$1)","v":373},{"$f":"VLOOKUP(DropDownList!$B47,CntyQryCensus!$A$306:$GX$348,EP$1)","v":529},{"$f":"VLOOKUP(DropDownList!$B47,CntyQryCensus!$A$306:$GX$348,EQ$1)","v":317},{"$f":"VLOOKUP(DropDownList!$B47,CntyQryCensus!$A$306:$GX$348,ER$1)","v":165},{"$f":"VLOOKUP(DropDownList!$B47,CntyQryCensus!$A$306:$GX$348,ES$1)","v":42},{"$f":"VLOOKUP(DropDownList!$B47,CntyQryCensus!$A$306:$GX$348,ET$1)","v":90},{"$f":"VLOOKUP(DropDownList!$B47,CntyQryCensus!$A$306:$GX$348,EU$1)","v":257},{"$f":"VLOOKUP(DropDownList!$B47,CntyQryCensus!$A$306:$GX$348,EV$1)","v":0},{"$f":"VLOOKUP(DropDownList!$B47,CntyQryCensus!$A$306:$GX$348,EW$1)","v":0},{"$f":"VLOOKUP(DropDownList!$B47,CntyQryCensus!$A$306:$GX$348,EX$1)","v":20},{"$f":"VLOOKUP(DropDownList!$B47,CntyQryCensus!$A$306:$GX$348,EY$1)","v":53},{"$f":"VLOOKUP(DropDownList!$B47,CntyQryCensus!$A$306:$GX$348,EZ$1)","v":61},{"$f":"VLOOKUP(DropDownList!$B47,CntyQryCensus!$A$306:$GX$348,FA$1)","v":38},{"$f":"VLOOKUP(DropDownList!$B47,CntyQryCensus!$A$306:$GX$348,FB$1)","v":40},{"$f":"VLOOKUP(DropDownList!$B47,CntyQryCensus!$A$306:$GX$348,FC$1)","v":18},{"$f":"VLOOKUP(DropDownList!$B47,CntyQryCensus!$A$306:$GX$348,FD$1)","v":27},{"$f":"VLOOKUP(DropDownList!$B47,CntyQryCensus!$A$306:$GX$348,FE$1)","v":2317},{"$f":"VLOOKUP(DropDownList!$B47,CntyQryCensus!$A$306:$GX$348,FF$1)","v":313},{"$f":"VLOOKUP(DropDownList!$B47,CntyQryCensus!$A$306:$GX$348,FG$1)","v":223},{"$f":"VLOOKUP(DropDownList!$B47,CntyQryCensus!$A$306:$GX$348,FH$1)","v":85},{"$f":"VLOOKUP(DropDownList!$B47,CntyQryCensus!$A$306:$GX$348,FI$1)","v":1657},{"$f":"VLOOKUP(DropDownList!$B47,CntyQryCensus!$A$306:$GX$348,FJ$1)","v":7},{"$f":"VLOOKUP(DropDownList!$B47,CntyQryCensus!$A$306:$GX$348,FK$1)","v":32},{"$f":"VLOOKUP(DropDownList!$B47,CntyQryCensus!$A$306:$GX$348,FL$1)","v":0},{"$f":"VLOOKUP(DropDownList!$B47,CntyQryCensus!$A$306:$GX$348,FM$1)","v":0},{"$f":"VLOOKUP(DropDownList!$B47,CntyQryCensus!$A$306:$GX$348,FN$1)","v":0},{"$f":"VLOOKUP(DropDownList!$B47,CntyQryCensus!$A$306:$GX$348,FO$1)","v":2431},{"$f":"VLOOKUP(DropDownList!$B47,CntyQryCensus!$A$306:$GX$348,FP$1)","v":0},{"$f":"VLOOKUP(DropDownList!$B47,CntyQryCensus!$A$306:$GX$348,FQ$1)","v":141},{"$f":"VLOOKUP(DropDownList!$B47,CntyQryCensus!$A$306:$GX$348,FR$1)","v":556},{"$f":"VLOOKUP(DropDownList!$B47,CntyQryCensus!$A$306:$GX$348,FS$1)","v":1189},{"$f":"VLOOKUP(DropDownList!$B47,CntyQryCensus!$A$306:$GX$348,FT$1)","v":475},{"$f":"VLOOKUP(DropDownList!$B47,CntyQryCensus!$A$306:$GX$348,FU$1)","v":70},{"$f":"VLOOKUP(DropDownList!$B47,CntyQryCensus!$A$306:$GX$348,FV$1)","v":2317},{"$f":"VLOOKUP(DropDownList!$B47,CntyQryCensus!$A$306:$GX$348,FW$1)","v":2060},{"$f":"VLOOKUP(DropDownList!$B47,CntyQryCensus!$A$306:$GX$348,FX$1)","v":0},{"$f":"VLOOKUP(DropDownList!$B47,CntyQryCensus!$A$306:$GX$348,FY$1)","v":6},{"$f":"VLOOKUP(DropDownList!$B47,CntyQryCensus!$A$306:$GX$348,FZ$1)","v":443},{"$f":"VLOOKUP(DropDownList!$B47,CntyQryCensus!$A$306:$GX$348,GA$1)","v":1094},{"$f":"VLOOKUP(DropDownList!$B47,CntyQryCensus!$A$306:$GX$348,GB$1)","v":457},{"$f":"VLOOKUP(DropDownList!$B47,CntyQryCensus!$A$306:$GX$348,GC$1)","v":60},{"$f":"VLOOKUP(DropDownList!$B47,CntyQryCensus!$A$306:$GX$348,GD$1)","v":257},{"$f":"VLOOKUP(DropDownList!$B47,CntyQryCensus!$A$306:$GX$348,GE$1)","v":0},{"$f":"VLOOKUP(DropDownList!$B47,CntyQryCensus!$A$306:$GX$348,GF$1)","v":135},{"$f":"VLOOKUP(DropDownList!$B47,CntyQryCensus!$A$306:$GX$348,GG$1)","v":61},{"$f":"VLOOKUP(DropDownList!$B47,CntyQryCensus!$A$306:$GX$348,GH$1)","v":41},{"$f":"VLOOKUP(DropDownList!$B47,CntyQryCensus!$A$306:$GX$348,GI$1)","v":10},{"$f":"VLOOKUP(DropDownList!$B47,CntyQryCensus!$A$306:$GX$348,GJ$1)","v":10},{"$f":"VLOOKUP(DropDownList!$B47,CntyQryCensus!$A$306:$GX$348,GK$1)","v":2317},{"$f":"VLOOKUP(DropDownList!$B47,CntyQryCensus!$A$306:$GX$348,GL$1)","v":2060},{"$f":"VLOOKUP(DropDownList!$B47,CntyQryCensus!$A$306:$GX$348,GM$1)","v":2060},{"$f":"VLOOKUP(DropDownList!$B47,CntyQryCensus!$A$306:$GX$348,GN$1)","v":0},{"$f":"VLOOKUP(DropDownList!$B47,CntyQryCensus!$A$306:$GX$348,GO$1)","v":257},{"$f":"VLOOKUP(DropDownList!$B47,CntyQryCensus!$A$306:$GX$348,GP$1)","v":257},{"$f":"VLOOKUP(DropDownList!$B47,CntyQryCensus!$A$306:$GX$348,GQ$1)","v":0},{"$f":"VLOOKUP(DropDownList!$B47,CntyQryCensus!$A$306:$GX$348,GR$1)","v":2317},{"$f":"VLOOKUP(DropDownList!$B47,CntyQryCensus!$A$306:$GX$348,GS$1)","v":2060},{"$f":"VLOOKUP(DropDownList!$B47,CntyQryCensus!$A$306:$GX$348,GT$1)","v":2060},{"$f":"VLOOKUP(DropDownList!$B47,CntyQryCensus!$A$306:$GX$348,GU$1)","v":0},{"$f":"VLOOKUP(DropDownList!$B47,CntyQryCensus!$A$306:$GX$348,GV$1)","v":257},{"$f":"VLOOKUP(DropDownList!$B47,CntyQryCensus!$A$306:$GX$348,GW$1)","v":257},{"$f":"VLOOKUP(DropDownList!$B47,CntyQryCensus!$A$306:$GX$348,GX$1)","v":0}]
[]
[]
["Census 2000 SummaryFile3 Sample Data  -  SF3TownQry8HousingCostA"]
["NAME","LOGRECNO","COUNTY","TotalPop","H62RntrOccHU","H62RntrOccHUwRent","H62ROHUGRent<100","H62ROHUGRent100to149","H62ROHUGRent150to199","H62ROHUGRent200to249","H62ROHUGRent250to299","H62ROHUGRent300to349","H62ROHUGRent350to399","H62ROHUGRent400to449","H62ROHUGRent450to499","H62ROHUGRent500to549","H62ROHUGRent550to599","H62ROHUGRent600to649","H62ROHUGRent650to699","H62ROHUGRent700to749","H62ROHUGRent750to799","H62ROHUGRent800to899","H62ROHUGRent900to999","H62ROHUGRent1000to1249","H62ROHUGRent1250to1499","H62ROHUGRent1500to1999","H62ROHUGRent2000>","H62ROHUNoGRent","H63MedianGrossRnt","H69RenterOccHsU","H69GRnt<10PctHHInc","H69GRnt10to15PctHHInc","H69GRnt15to20PctHHInc","H69GRnt20to25PctHHInc","H69GRnt25to30PctHHInc","H69GRnt30to35PctHHInc","H69GRnt35to40PctHHInc","H69GRnt40to50PctHHInc","H69GRnt>50PctHHInc","H69GRntPctNotcomputed","H73RenterOccHU","H73ROHUHhInc<10k","H73ROHUHhInc<10kRnt<20pct","H73ROHUHhInc<10kRnt20to25pct","H73ROHUHhInc<10kRnt25to30pct","H73ROHUHhInc<10kRnt30to35pct","H73ROHUHhInc<10kRnt>35pct","H73ROHUHhInc<10kPctNotComput","H73ROHUHhInc10to20k","H73ROHUHhInc10to20kRnt<20pct","H73ROHUHhInc10to20kRnt20to25pct","H73ROHUHhInc10to20kRnt25to30pct","H73ROHUHhInc10to20kRnt30to35pct","H73ROHUHhInc10to20kRnt>35pct","H73ROHUHhInc10to20kRntPctNC","H73ROHUHhInc20to35k","H73ROHUHhInc20to35kRnt<20pct","H73ROHUHhInc20to35kRnt20to25pct","H73ROHUHhInc20to35kRnt25to30pct","H73ROHUHhInc20to35kRnt30to35pct","H73ROHUHhInc20to35kRnt>35pct","H73ROHUHhInc20to35kRntPctNC","H73ROHUHhInc35to40k","H73ROHUHhInc35to40kRnt<20pct","H73ROHUHhInc35to40kRnt20to25pct","H73ROHUHhInc35to40kRnt25to30pct","H73ROHUHhInc35to40kRnt30to35pct","H73ROHUHhInc35to40kRnt>35pct","H73ROHUHhInc35to40kRntPctNC","H73ROHUHhInc50to75k","H73ROHUHhInc50to75kRnt<20pct","H73ROHUHhInc50to75kRnt20to25pct","H73ROHUHhInc50to75kRnt25to30pct","H73ROHUHhInc50to75kRnt30to35pct","H73ROHUHhInc50to75kRnt>35pct","H73ROHUHhInc50to75kRntPctNC","H73ROHUHhInc75to100k","H73ROHUHhInc75to100kRnt<20pct","H73ROHUHhInc75to100kRnt20to25pct","H73ROHUHhInc75to100kRnt25to30pct","H73ROHUHhInc75to100kRnt30to35pct","H73ROHUHhInc75to100kRnt>35pct","H73ROHUHhInc75to100kRntPctNC","H73ROHUHhInc>100k","H73ROHUHhInc>100kRnt<20pct","H73ROHUHhInc>100kRnt20to25pct","H73ROHUHhInc>100kRnt25to30pct","H73ROHUHhInc>100kRnt30to35pct","H73ROHUHhInc>100kRnt>35pct","H73ROHUHhInc>100kRntPctNC","H73ROHUHhInc>100kRntPctNC"]
[{"$f":"VLOOKUP(DropDownList!$B$47,CntyQryCensus!$A$357:$CM$399,A$1)","v":"Atkinson"},{"$f":"VLOOKUP(DropDownList!$B$47,CntyQryCensus!$A$357:$CM$399,B$1)","v":"0003039"},{"$f":"VLOOKUP(DropDownList!$B$47,CntyQryCensus!$A$357:$CM$399,C$1)","v":"02340"},{"$f":"VLOOKUP(DropDownList!$B$47,CntyQryCensus!$A$357:$CM$399,D$1)","v":6178},{"$f":"VLOOKUP(DropDownList!$B$47,CntyQryCensus!$A$357:$CM$399,E$1)","v":238},{"$f":"VLOOKUP(DropDownList!$B$47,CntyQryCensus!$A$357:$CM$399,F$1)","v":222},{"$f":"VLOOKUP(DropDownList!$B$47,CntyQryCensus!$A$357:$CM$399,G$1)","v":0},{"$f":"VLOOKUP(DropDownList!$B$47,CntyQryCensus!$A$357:$CM$399,H$1)","v":10},{"$f":"VLOOKUP(DropDownList!$B$47,CntyQryCensus!$A$357:$CM$399,I$1)","v":0},{"$f":"VLOOKUP(DropDownList!$B$47,CntyQryCensus!$A$357:$CM$399,J$1)","v":0},{"$f":"VLOOKUP(DropDownList!$B$47,CntyQryCensus!$A$357:$CM$399,K$1)","v":0},{"$f":"VLOOKUP(DropDownList!$B$47,CntyQryCensus!$A$357:$CM$399,L$1)","v":0},{"$f":"VLOOKUP(DropDownList!$B$47,CntyQryCensus!$A$357:$CM$399,M$1)","v":0},{"$f":"VLOOKUP(DropDownList!$B$47,CntyQryCensus!$A$357:$CM$399,N$1)","v":27},{"$f":"VLOOKUP(DropDownList!$B$47,CntyQryCensus!$A$357:$CM$399,O$1)","v":65},{"$f":"VLOOKUP(DropDownList!$B$47,CntyQryCensus!$A$357:$CM$399,P$1)","v":50},{"$f":"VLOOKUP(DropDownList!$B$47,CntyQryCensus!$A$357:$CM$399,Q$1)","v":10},{"$f":"VLOOKUP(DropDownList!$B$47,CntyQryCensus!$A$357:$CM$399,R$1)","v":0},{"$f":"VLOOKUP(DropDownList!$B$47,CntyQryCensus!$A$357:$CM$399,S$1)","v":17},{"$f":"VLOOKUP(DropDownList!$B$47,CntyQryCensus!$A$357:$CM$399,T$1)","v":25},{"$f":"VLOOKUP(DropDownList!$B$47,CntyQryCensus!$A$357:$CM$399,U$1)","v":9},{"$f":"VLOOKUP(DropDownList!$B$47,CntyQryCensus!$A$357:$CM$399,V$1)","v":9},{"$f":"VLOOKUP(DropDownList!$B$47,CntyQryCensus!$A$357:$CM$399,W$1)","v":0},{"$f":"VLOOKUP(DropDownList!$B$47,CntyQryCensus!$A$357:$CM$399,X$1)","v":0},{"$f":"VLOOKUP(DropDownList!$B$47,CntyQryCensus!$A$357:$CM$399,Y$1)","v":0},{"$f":"VLOOKUP(DropDownList!$B$47,CntyQryCensus!$A$357:$CM$399,Z$1)","v":0},{"$f":"VLOOKUP(DropDownList!$B$47,CntyQryCensus!$A$357:$CM$399,AA$1)","v":0},{"$f":"VLOOKUP(DropDownList!$B$47,CntyQryCensus!$A$357:$CM$399,AB$1)","v":16},{"$f":"VLOOKUP(DropDownList!$B$47,CntyQryCensus!$A$357:$CM$399,AC$1)","v":509},{"$f":"VLOOKUP(DropDownList!$B$47,CntyQryCensus!$A$357:$CM$399,AD$1)","v":238},{"$f":"VLOOKUP(DropDownList!$B$47,CntyQryCensus!$A$357:$CM$399,AE$1)","v":23},{"$f":"VLOOKUP(DropDownList!$B$47,CntyQryCensus!$A$357:$CM$399,AF$1)","v":10},{"$f":"VLOOKUP(DropDownList!$B$47,CntyQryCensus!$A$357:$CM$399,AG$1)","v":43},{"$f":"VLOOKUP(DropDownList!$B$47,CntyQryCensus!$A$357:$CM$399,AH$1)","v":10},{"$f":"VLOOKUP(DropDownList!$B$47,CntyQryCensus!$A$357:$CM$399,AI$1)","v":30},{"$f":"VLOOKUP(DropDownList!$B$47,CntyQryCensus!$A$357:$CM$399,AJ$1)","v":10},{"$f":"VLOOKUP(DropDownList!$B$47,CntyQryCensus!$A$357:$CM$399,AK$1)","v":29},{"$f":"VLOOKUP(DropDownList!$B$47,CntyQryCensus!$A$357:$CM$399,AL$1)","v":10},{"$f":"VLOOKUP(DropDownList!$B$47,CntyQryCensus!$A$357:$CM$399,AM$1)","v":57},{"$f":"VLOOKUP(DropDownList!$B$47,CntyQryCensus!$A$357:$CM$399,AN$1)","v":16},{"$f":"VLOOKUP(DropDownList!$B$47,CntyQryCensus!$A$357:$CM$399,AO$1)","v":238},{"$f":"VLOOKUP(DropDownList!$B$47,CntyQryCensus!$A$357:$CM$399,AP$1)","v":48},{"$f":"VLOOKUP(DropDownList!$B$47,CntyQryCensus!$A$357:$CM$399,AQ$1)","v":0},{"$f":"VLOOKUP(DropDownList!$B$47,CntyQryCensus!$A$357:$CM$399,AR$1)","v":0},{"$f":"VLOOKUP(DropDownList!$B$47,CntyQryCensus!$A$357:$CM$399,AS$1)","v":0},{"$f":"VLOOKUP(DropDownList!$B$47,CntyQryCensus!$A$357:$CM$399,AT$1)","v":0},{"$f":"VLOOKUP(DropDownList!$B$47,CntyQryCensus!$A$357:$CM$399,AU$1)","v":48},{"$f":"VLOOKUP(DropDownList!$B$47,CntyQryCensus!$A$357:$CM$399,AV$1)","v":0},{"$f":"VLOOKUP(DropDownList!$B$47,CntyQryCensus!$A$357:$CM$399,AW$1)","v":48},{"$f":"VLOOKUP(DropDownList!$B$47,CntyQryCensus!$A$357:$CM$399,AX$1)","v":0},{"$f":"VLOOKUP(DropDownList!$B$47,CntyQryCensus!$A$357:$CM$399,AY$1)","v":0},{"$f":"VLOOKUP(DropDownList!$B$47,CntyQryCensus!$A$357:$CM$399,AZ$1)","v":0},{"$f":"VLOOKUP(DropDownList!$B$47,CntyQryCensus!$A$357:$CM$399,BA$1)","v":0},{"$f":"VLOOKUP(DropDownList!$B$47,CntyQryCensus!$A$357:$CM$399,BB$1)","v":48},{"$f":"VLOOKUP(DropDownList!$B$47,CntyQryCensus!$A$357:$CM$399,BC$1)","v":0},{"$f":"VLOOKUP(DropDownList!$B$47,CntyQryCensus!$A$357:$CM$399,BD$1)","v":67},{"$f":"VLOOKUP(DropDownList!$B$47,CntyQryCensus!$A$357:$CM$399,BE$1)","v":9},{"$f":"VLOOKUP(DropDownList!$B$47,CntyQryCensus!$A$357:$CM$399,BF$1)","v":10},{"$f":"VLOOKUP(DropDownList!$B$47,CntyQryCensus!$A$357:$CM$399,BG$1)","v":30},{"$f":"VLOOKUP(DropDownList!$B$47,CntyQryCensus!$A$357:$CM$399,BH$1)","v":10},{"$f":"VLOOKUP(DropDownList!$B$47,CntyQryCensus!$A$357:$CM$399,BI$1)","v":0},{"$f":"VLOOKUP(DropDownList!$B$47,CntyQryCensus!$A$357:$CM$399,BJ$1)","v":8},{"$f":"VLOOKUP(DropDownList!$B$47,CntyQryCensus!$A$357:$CM$399,BK$1)","v":28},{"$f":"VLOOKUP(DropDownList!$B$47,CntyQryCensus!$A$357:$CM$399,BL$1)","v":28},{"$f":"VLOOKUP(DropDownList!$B$47,CntyQryCensus!$A$357:$CM$399,BM$1)","v":0},{"$f":"VLOOKUP(DropDownList!$B$47,CntyQryCensus!$A$357:$CM$399,BN$1)","v":0},{"$f":"VLOOKUP(DropDownList!$B$47,CntyQryCensus!$A$357:$CM$399,BO$1)","v":0},{"$f":"VLOOKUP(DropDownList!$B$47,CntyQryCensus!$A$357:$CM$399,BP$1)","v":0},{"$f":"VLOOKUP(DropDownList!$B$47,CntyQryCensus!$A$357:$CM$399,BQ$1)","v":0},{"$f":"VLOOKUP(DropDownList!$B$47,CntyQryCensus!$A$357:$CM$399,BR$1)","v":16},{"$f":"VLOOKUP(DropDownList!$B$47,CntyQryCensus!$A$357:$CM$399,BS$1)","v":16},{"$f":"VLOOKUP(DropDownList!$B$47,CntyQryCensus!$A$357:$CM$399,BT$1)","v":0},{"$f":"VLOOKUP(DropDownList!$B$47,CntyQryCensus!$A$357:$CM$399,BU$1)","v":0},{"$f":"VLOOKUP(DropDownList!$B$47,CntyQryCensus!$A$357:$CM$399,BV$1)","v":0},{"$f":"VLOOKUP(DropDownList!$B$47,CntyQryCensus!$A$357:$CM$399,BW$1)","v":0},{"$f":"VLOOKUP(DropDownList!$B$47,CntyQryCensus!$A$357:$CM$399,BX$1)","v":0},{"$f":"VLOOKUP(DropDownList!$B$47,CntyQryCensus!$A$357:$CM$399,BY$1)","v":6},{"$f":"VLOOKUP(DropDownList!$B$47,CntyQryCensus!$A$357:$CM$399,BZ$1)","v":6},{"$f":"VLOOKUP(DropDownList!$B$47,CntyQryCensus!$A$357:$CM$399,CA$1)","v":0},{"$f":"VLOOKUP(DropDownList!$B$47,CntyQryCensus!$A$357:$CM$399,CB$1)","v":0},{"$f":"VLOOKUP(DropDownList!$B$47,CntyQryCensus!$A$357:$CM$399,CC$1)","v":0},{"$f":"VLOOKUP(DropDownList!$B$47,CntyQryCensus!$A$357:$CM$399,CD$1)","v":0},{"$f":"VLOOKUP(DropDownList!$B$47,CntyQryCensus!$A$357:$CM$399,CE$1)","v":0},{"$f":"VLOOKUP(DropDownList!$B$47,CntyQryCensus!$A$357:$CM$399,CF$1)","v":25},{"$f":"VLOOKUP(DropDownList!$B$47,CntyQryCensus!$A$357:$CM$399,CG$1)","v":17},{"$f":"VLOOKUP(DropDownList!$B$47,CntyQryCensus!$A$357:$CM$399,CH$1)","v":0},{"$f":"VLOOKUP(DropDownList!$B$47,CntyQryCensus!$A$357:$CM$399,CI$1)","v":0},{"$f":"VLOOKUP(DropDownList!$B$47,CntyQryCensus!$A$357:$CM$399,CJ$1)","v":0},{"$f":"VLOOKUP(DropDownList!$B$47,CntyQryCensus!$A$357:$CM$399,CK$1)","v":0},{"$f":"VLOOKUP(DropDownList!$B$47,CntyQryCensus!$A$357:$CM$399,CL$1)","v":8},{"$f":"VLOOKUP(DropDownList!$B$47,CntyQryCensus!$A$357:$CM$399,CM$1)","v":0}]
[]
[]
["Census 2000 SummaryFile3 Sample Data  -  SF3TownQry8HousingCostB"]
["NAME","LOGRECNO","COUNTY","TotalPop","H74SpecOwnerOccHU","H74OOHU<10k","H74OOHU10to15k","H74OOHU15to20k","H74OOHU20to25k","H74OOHU25to30k","H74OOHU30to35k","H74OOHU35to40k","H74OOHU40to50k","H74OOHU50to60k","H74OOHU60to70k","H74OOHU70to80k","H74OOHU80to90k","H74OOHU90to100k","H74OOHU100to125k","H74OOHU125to150k","H74OOHU150to175k","H74OOHU175to200k","H74OOHU200to250k","H74OOHU250to300k","H74OOHU300to400k","H74OOHU400to500k","H74OOHU500to750k","H74OOHU750to1000k","H74OOHU1000kmore","H76OOHUMedianVal","H84OwnerOccHU","H84AllOOHU<10k","H84AllOOHU10to15k","H84AllOOHU15to20k","H84AllOOHU20to25k","H84AllOOHU25to30k","H84AllOOHU30to35k","H84AllOOHU35to40k","H84AllOOHU40to50k","H84AllOOHU50to60k","H84AllOOHU60to70k","H84AllOOHU70to80k","H84AllOOHU80to90k","H84AllOOHU90to100k","H84AllOOHU100to125k","H84AllOOHU125to150k","H84AllOOHU150to175k","H84AllOOHU175to200k","H84AllOOHU200to250k","H84AllOOHU250to300k","H84AllOOHU300to400k","H84AllOOHU400to500k","H84AllOOHU500to750k","H84AllOOHU750to1000k","H84AllOOHU1000kmore","H85OOHUMedVal","H90SOOHU","H90HUwMorgt","H90HUwMtgHC<200","H90HUwMtgHC200to300","H90HUwMtgHC300to400","H90HUwMtgHC400to500","H90HUwMtgHC500to600","H90HUwMtgHC600to700","H90HUwMtgHC700to800","H90HUwMtgHC800to900","H90HUwMtgHC900to1000","H90HUwMtgHC1000to1250","H90HUwMtgHC1250to1500","H90HUwMtgHC1500to2000","H90HUwMtgHC2000to2500","H90HUwMtgHC2500to3000","H90HUwMtgHC3000orMore","H90HUwOutMorgt","H90HUwOutMtgHC<100","H90HUwOutMtgHC100to150","H90HUwOutMtgHC150to200","H90HUwOutMtgHC200to250","H90HUwOutMtgHC250to300","H90HUwOutMtgHC300to350","H90HUwOutMtgHC350to400","H90HUwOutMtgHC400to500","H90HUwOutMtgHC500to600","H90HUwOutMtgHC600to700","H90HUwOutMtgHC700to800","H90HUwOutMtgHC800to900","H90HUwOutMtgHC900to1000","H90HUwOutMtgHC1000orMore","H91MedianOCHUwMtg","H91MedianOCHUwOutMtg","H94SpecOOHU","H94HUwMortg","H94HUwMtgHC<10pct","H94HUwMtgHC10to15pct","H94HUwMtgHC15to20pct","H94HUwMtgHC20to25pct","H94HUwMtgHC25to30pct","H94HUwMtgHC30to35pct","H94HUwMtgHC35to40pct","H94HUwMtgHC40to50pct","H94HUwMtgHC50pctOrMore","H94HUwMtgHCpctNotComp","H94HUWOutMortg","H94HUWOutMortgHC<10pct","H94HUWOutMortgHC10to15pct","H94HUWOutMortgHC15to20pct","H94HUWOutMortgHC20to25pct","H94HUWOutMortgHC25to30pct","H94HUWOutMortgHC30to35pct","H94HUWOutMortgHC35to40pct","H94HUWOutMortgHC40to50pct","H94HUWOutMortgHC50pctOrMore","H94HUWOutMortgHCpctNotComp","H97SpecifOwnOccHU","H97SOOHUInc<10k","H97SOOHUInc<10kHC<20pct","H97SOOHUInc<10kHC20to25pct","H97SOOHUInc<10kHC25to30pct","H97SOOHUInc<10kHC30to35pct","H97SOOHUInc<10kHC>35pct","H97SOOHUInc<10kHCpctNotComput","H97SOOHUInc10to20k","H97SOOHUInc10to20kHC<20pct","H97SOOHUInc10to20kHC20to25pct","H97SOOHUInc10to20kHC25to30pct","H97SOOHUInc10to20kHC30to35pct","H97SOOHUInc10to20kHC>35pct","H97SOOHUInc10to20kHCpctNotComput","H97SOOHUInc20to35k","H97SOOHUInc20to35kRC<20pct","H97SOOHUInc20to35kRC20to25pct","H97SOOHUInc20to35kRC25to30pct","H97SOOHUInc20to35kRC30to35pct","H97SOOHUInc20to35kRC>35pct","H97SOOHUInc20to35kRCpctNotComput","H97SOOHUInc35to50k","H97SOOHUInc35to50kRC<20pct","H97SOOHUInc35to50kRC20to25pct","H97SOOHUInc35to50kRC25to30pct","H97SOOHUInc35to50kRC30to35pct","H97SOOHUInc35to50kRC>35pct","H97SOOHUInc35to50kRCpctNotCompute","H97SOOHUInc50to75k","H97SOOHUInc50to75kRC<20pct","H97SOOHUInc50to75kRC20to25pct","H97SOOHUInc50to75kRC25to30pct","H97SOOHUInc50to75kRC30to35pct","H97SOOHUInc50to75kRC>35pct","H97SOOHUInc50to75kRCpctNotComput","H97SOOHUInc75to100k","H97SOOHUInc75to100kRC<20pct","H97SOOHUInc75to100kRC20to25pct","H97SOOHUInc75to100kRC25to30pct","H97SOOHUInc75to100kRC30to35pct","H97SOOHUInc75to100kRC>35pct","H97SOOHUInc75to100kRCpctNotCompute","H97SOOHUInc100to150k","H97SOOHUInc100to150kRC<20pct","H97SOOHUInc100to150kRC20to25pct","H97SOOHUInc100to150kRC25to30pct","H97SOOHUInc100to150kRC30to35pct","H97SOOHUInc100to150kRC>35pct","H97SOOHUInc100to150kRCpctNotCompute","H97SOOHUInc>150k","H97SOOHUInc>150kRC<20pct","H97SOOHUInc>150kRC20to25pct","H97SOOHUInc>150kRC25to30pct","H97SOOHUInc>150kRC30to35pct","H97SOOHUInc>150kRC>35pct","H97SOOHUInc>150kRCpctNotCompute"]
[{"$f":"VLOOKUP(DropDownList!$B$47,CntyQryCensus!$A$408:$FN$450,A$1)","v":"Atkinson"},{"$f":"VLOOKUP(DropDownList!$B$47,CntyQryCensus!$A$408:$FN$450,B$1)","v":"0003039"},{"$f":"VLOOKUP(DropDownList!$B$47,CntyQryCensus!$A$408:$FN$450,C$1)","v":"02340"},{"$f":"VLOOKUP(DropDownList!$B$47,CntyQryCensus!$A$408:$FN$450,D$1)","v":6178},{"$f":"VLOOKUP(DropDownList!$B$47,CntyQryCensus!$A$408:$FN$450,E$1)","v":1791},{"$f":"VLOOKUP(DropDownList!$B$47,CntyQryCensus!$A$408:$FN$450,F$1)","v":0},{"$f":"VLOOKUP(DropDownList!$B$47,CntyQryCensus!$A$408:$FN$450,G$1)","v":0},{"$f":"VLOOKUP(DropDownList!$B$47,CntyQryCensus!$A$408:$FN$450,H$1)","v":0},{"$f":"VLOOKUP(DropDownList!$B$47,CntyQryCensus!$A$408:$FN$450,I$1)","v":0},{"$f":"VLOOKUP(DropDownList!$B$47,CntyQryCensus!$A$408:$FN$450,J$1)","v":0},{"$f":"VLOOKUP(DropDownList!$B$47,CntyQryCensus!$A$408:$FN$450,K$1)","v":0},{"$f":"VLOOKUP(DropDownList!$B$47,CntyQryCensus!$A$408:$FN$450,L$1)","v":0},{"$f":"VLOOKUP(DropDownList!$B$47,CntyQryCensus!$A$408:$FN$450,M$1)","v":0},{"$f":"VLOOKUP(DropDownList!$B$47,CntyQryCensus!$A$408:$FN$450,N$1)","v":0},{"$f":"VLOOKUP(DropDownList!$B$47,CntyQryCensus!$A$408:$FN$450,O$1)","v":0},{"$f":"VLOOKUP(DropDownList!$B$47,CntyQryCensus!$A$408:$FN$450,P$1)","v":9},{"$f":"VLOOKUP(DropDownList!$B$47,CntyQryCensus!$A$408:$FN$450,Q$1)","v":18},{"$f":"VLOOKUP(DropDownList!$B$47,CntyQryCensus!$A$408:$FN$450,R$1)","v":7},{"$f":"VLOOKUP(DropDownList!$B$47,CntyQryCensus!$A$408:$FN$450,S$1)","v":46},{"$f":"VLOOKUP(DropDownList!$B$47,CntyQryCensus!$A$408:$FN$450,T$1)","v":180},{"$f":"VLOOKUP(DropDownList!$B$47,CntyQryCensus!$A$408:$FN$450,U$1)","v":252},{"$f":"VLOOKUP(DropDownList!$B$47,CntyQryCensus!$A$408:$FN$450,V$1)","v":418},{"$f":"VLOOKUP(DropDownList!$B$47,CntyQryCensus!$A$408:$FN$450,W$1)","v":427},{"$f":"VLOOKUP(DropDownList!$B$47,CntyQryCensus!$A$408:$FN$450,X$1)","v":205},{"$f":"VLOOKUP(DropDownList!$B$47,CntyQryCensus!$A$408:$FN$450,Y$1)","v":153},{"$f":"VLOOKUP(DropDownList!$B$47,CntyQryCensus!$A$408:$FN$450,Z$1)","v":17},{"$f":"VLOOKUP(DropDownList!$B$47,CntyQryCensus!$A$408:$FN$450,AA$1)","v":39},{"$f":"VLOOKUP(DropDownList!$B$47,CntyQryCensus!$A$408:$FN$450,AB$1)","v":20},{"$f":"VLOOKUP(DropDownList!$B$47,CntyQryCensus!$A$408:$FN$450,AC$1)","v":0},{"$f":"VLOOKUP(DropDownList!$B$47,CntyQryCensus!$A$408:$FN$450,AD$1)","v":197900},{"$f":"VLOOKUP(DropDownList!$B$47,CntyQryCensus!$A$408:$FN$450,AE$1)","v":2060},{"$f":"VLOOKUP(DropDownList!$B$47,CntyQryCensus!$A$408:$FN$450,AF$1)","v":0},{"$f":"VLOOKUP(DropDownList!$B$47,CntyQryCensus!$A$408:$FN$450,AG$1)","v":0},{"$f":"VLOOKUP(DropDownList!$B$47,CntyQryCensus!$A$408:$FN$450,AH$1)","v":10},{"$f":"VLOOKUP(DropDownList!$B$47,CntyQryCensus!$A$408:$FN$450,AI$1)","v":0},{"$f":"VLOOKUP(DropDownList!$B$47,CntyQryCensus!$A$408:$FN$450,AJ$1)","v":0},{"$f":"VLOOKUP(DropDownList!$B$47,CntyQryCensus!$A$408:$FN$450,AK$1)","v":0},{"$f":"VLOOKUP(DropDownList!$B$47,CntyQryCensus!$A$408:$FN$450,AL$1)","v":0},{"$f":"VLOOKUP(DropDownList!$B$47,CntyQryCensus!$A$408:$FN$450,AM$1)","v":0},{"$f":"VLOOKUP(DropDownList!$B$47,CntyQryCensus!$A$408:$FN$450,AN$1)","v":0},{"$f":"VLOOKUP(DropDownList!$B$47,CntyQryCensus!$A$408:$FN$450,AO$1)","v":0},{"$f":"VLOOKUP(DropDownList!$B$47,CntyQryCensus!$A$408:$FN$450,AP$1)","v":9},{"$f":"VLOOKUP(DropDownList!$B$47,CntyQryCensus!$A$408:$FN$450,AQ$1)","v":18},{"$f":"VLOOKUP(DropDownList!$B$47,CntyQryCensus!$A$408:$FN$450,AR$1)","v":16},{"$f":"VLOOKUP(DropDownList!$B$47,CntyQryCensus!$A$408:$FN$450,AS$1)","v":52},{"$f":"VLOOKUP(DropDownList!$B$47,CntyQryCensus!$A$408:$FN$450,AT$1)","v":193},{"$f":"VLOOKUP(DropDownList!$B$47,CntyQryCensus!$A$408:$FN$450,AU$1)","v":295},{"$f":"VLOOKUP(DropDownList!$B$47,CntyQryCensus!$A$408:$FN$450,AV$1)","v":509},{"$f":"VLOOKUP(DropDownList!$B$47,CntyQryCensus!$A$408:$FN$450,AW$1)","v":460},{"$f":"VLOOKUP(DropDownList!$B$47,CntyQryCensus!$A$408:$FN$450,AX$1)","v":221},{"$f":"VLOOKUP(DropDownList!$B$47,CntyQryCensus!$A$408:$FN$450,AY$1)","v":177},{"$f":"VLOOKUP(DropDownList!$B$47,CntyQryCensus!$A$408:$FN$450,AZ$1)","v":23},{"$f":"VLOOKUP(DropDownList!$B$47,CntyQryCensus!$A$408:$FN$450,BA$1)","v":57},{"$f":"VLOOKUP(DropDownList!$B$47,CntyQryCensus!$A$408:$FN$450,BB$1)","v":20},{"$f":"VLOOKUP(DropDownList!$B$47,CntyQryCensus!$A$408:$FN$450,BC$1)","v":0},{"$f":"VLOOKUP(DropDownList!$B$47,CntyQryCensus!$A$408:$FN$450,BD$1)","v":196500},{"$f":"VLOOKUP(DropDownList!$B$47,CntyQryCensus!$A$408:$FN$450,BE$1)","v":1791},{"$f":"VLOOKUP(DropDownList!$B$47,CntyQryCensus!$A$408:$FN$450,BF$1)","v":1426},{"$f":"VLOOKUP(DropDownList!$B$47,CntyQryCensus!$A$408:$FN$450,BG$1)","v":0},{"$f":"VLOOKUP(DropDownList!$B$47,CntyQryCensus!$A$408:$FN$450,BH$1)","v":0},{"$f":"VLOOKUP(DropDownList!$B$47,CntyQryCensus!$A$408:$FN$450,BI$1)","v":8},{"$f":"VLOOKUP(DropDownList!$B$47,CntyQryCensus!$A$408:$FN$450,BJ$1)","v":16},{"$f":"VLOOKUP(DropDownList!$B$47,CntyQryCensus!$A$408:$FN$450,BK$1)","v":25},{"$f":"VLOOKUP(DropDownList!$B$47,CntyQryCensus!$A$408:$FN$450,BL$1)","v":33},{"$f":"VLOOKUP(DropDownList!$B$47,CntyQryCensus!$A$408:$FN$450,BM$1)","v":26},{"$f":"VLOOKUP(DropDownList!$B$47,CntyQryCensus!$A$408:$FN$450,BN$1)","v":17},{"$f":"VLOOKUP(DropDownList!$B$47,CntyQryCensus!$A$408:$FN$450,BO$1)","v":78},{"$f":"VLOOKUP(DropDownList!$B$47,CntyQryCensus!$A$408:$FN$450,BP$1)","v":252},{"$f":"VLOOKUP(DropDownList!$B$47,CntyQryCensus!$A$408:$FN$450,BQ$1)","v":300},{"$f":"VLOOKUP(DropDownList!$B$47,CntyQryCensus!$A$408:$FN$450,BR$1)","v":485},{"$f":"VLOOKUP(DropDownList!$B$47,CntyQryCensus!$A$408:$FN$450,BS$1)","v":149},{"$f":"VLOOKUP(DropDownList!$B$47,CntyQryCensus!$A$408:$FN$450,BT$1)","v":28},{"$f":"VLOOKUP(DropDownList!$B$47,CntyQryCensus!$A$408:$FN$450,BU$1)","v":9},{"$f":"VLOOKUP(DropDownList!$B$47,CntyQryCensus!$A$408:$FN$450,BV$1)","v":365},{"$f":"VLOOKUP(DropDownList!$B$47,CntyQryCensus!$A$408:$FN$450,BW$1)","v":0},{"$f":"VLOOKUP(DropDownList!$B$47,CntyQryCensus!$A$408:$FN$450,BX$1)","v":0},{"$f":"VLOOKUP(DropDownList!$B$47,CntyQryCensus!$A$408:$FN$450,BY$1)","v":0},{"$f":"VLOOKUP(DropDownList!$B$47,CntyQryCensus!$A$408:$FN$450,BZ$1)","v":10},{"$f":"VLOOKUP(DropDownList!$B$47,CntyQryCensus!$A$408:$FN$450,CA$1)","v":15},{"$f":"VLOOKUP(DropDownList!$B$47,CntyQryCensus!$A$408:$FN$450,CB$1)","v":44},{"$f":"VLOOKUP(DropDownList!$B$47,CntyQryCensus!$A$408:$FN$450,CC$1)","v":31},{"$f":"VLOOKUP(DropDownList!$B$47,CntyQryCensus!$A$408:$FN$450,CD$1)","v":140},{"$f":"VLOOKUP(DropDownList!$B$47,CntyQryCensus!$A$408:$FN$450,CE$1)","v":15},{"$f":"VLOOKUP(DropDownList!$B$47,CntyQryCensus!$A$408:$FN$450,CF$1)","v":44},{"$f":"VLOOKUP(DropDownList!$B$47,CntyQryCensus!$A$408:$FN$450,CG$1)","v":41},{"$f":"VLOOKUP(DropDownList!$B$47,CntyQryCensus!$A$408:$FN$450,CH$1)","v":0},{"$f":"VLOOKUP(DropDownList!$B$47,CntyQryCensus!$A$408:$FN$450,CI$1)","v":25},{"$f":"VLOOKUP(DropDownList!$B$47,CntyQryCensus!$A$408:$FN$450,CJ$1)","v":0},{"$f":"VLOOKUP(DropDownList!$B$47,CntyQryCensus!$A$408:$FN$450,CK$1)","v":1465},{"$f":"VLOOKUP(DropDownList!$B$47,CntyQryCensus!$A$408:$FN$450,CL$1)","v":459},{"$f":"VLOOKUP(DropDownList!$B$47,CntyQryCensus!$A$408:$FN$450,CM$1)","v":1791},{"$f":"VLOOKUP(DropDownList!$B$47,CntyQryCensus!$A$408:$FN$450,CN$1)","v":1426},{"$f":"VLOOKUP(DropDownList!$B$47,CntyQryCensus!$A$408:$FN$450,CO$1)","v":115},{"$f":"VLOOKUP(DropDownList!$B$47,CntyQryCensus!$A$408:$FN$450,CP$1)","v":225},{"$f":"VLOOKUP(DropDownList!$B$47,CntyQryCensus!$A$408:$FN$450,CQ$1)","v":268},{"$f":"VLOOKUP(DropDownList!$B$47,CntyQryCensus!$A$408:$FN$450,CR$1)","v":236},{"$f":"VLOOKUP(DropDownList!$B$47,CntyQryCensus!$A$408:$FN$450,CS$1)","v":241},{"$f":"VLOOKUP(DropDownList!$B$47,CntyQryCensus!$A$408:$FN$450,CT$1)","v":95},{"$f":"VLOOKUP(DropDownList!$B$47,CntyQryCensus!$A$408:$FN$450,CU$1)","v":38},{"$f":"VLOOKUP(DropDownList!$B$47,CntyQryCensus!$A$408:$FN$450,CV$1)","v":94},{"$f":"VLOOKUP(DropDownList!$B$47,CntyQryCensus!$A$408:$FN$450,CW$1)","v":114},{"$f":"VLOOKUP(DropDownList!$B$47,CntyQryCensus!$A$408:$FN$450,CX$1)","v":0},{"$f":"VLOOKUP(DropDownList!$B$47,CntyQryCensus!$A$408:$FN$450,CY$1)","v":365},{"$f":"VLOOKUP(DropDownList!$B$47,CntyQryCensus!$A$408:$FN$450,CZ$1)","v":113},{"$f":"VLOOKUP(DropDownList!$B$47,CntyQryCensus!$A$408:$FN$450,DA$1)","v":142},{"$f":"VLOOKUP(DropDownList!$B$47,CntyQryCensus!$A$408:$FN$450,DB$1)","v":10},{"$f":"VLOOKUP(DropDownList!$B$47,CntyQryCensus!$A$408:$FN$450,DC$1)","v":17},{"$f":"VLOOKUP(DropDownList!$B$47,CntyQryCensus!$A$408:$FN$450,DD$1)","v":0},{"$f":"VLOOKUP(DropDownList!$B$47,CntyQryCensus!$A$408:$FN$450,DE$1)","v":19},{"$f":"VLOOKUP(DropDownList!$B$47,CntyQryCensus!$A$408:$FN$450,DF$1)","v":0},{"$f":"VLOOKUP(DropDownList!$B$47,CntyQryCensus!$A$408:$FN$450,DG$1)","v":37},{"$f":"VLOOKUP(DropDownList!$B$47,CntyQryCensus!$A$408:$FN$450,DH$1)","v":27},{"$f":"VLOOKUP(DropDownList!$B$47,CntyQryCensus!$A$408:$FN$450,DI$1)","v":0},{"$f":"VLOOKUP(DropDownList!$B$47,CntyQryCensus!$A$408:$FN$450,DJ$1)","v":1791},{"$f":"VLOOKUP(DropDownList!$B$47,CntyQryCensus!$A$408:$FN$450,DK$1)","v":28},{"$f":"VLOOKUP(DropDownList!$B$47,CntyQryCensus!$A$408:$FN$450,DL$1)","v":0},{"$f":"VLOOKUP(DropDownList!$B$47,CntyQryCensus!$A$408:$FN$450,DM$1)","v":0},{"$f":"VLOOKUP(DropDownList!$B$47,CntyQryCensus!$A$408:$FN$450,DN$1)","v":0},{"$f":"VLOOKUP(DropDownList!$B$47,CntyQryCensus!$A$408:$FN$450,DO$1)","v":10},{"$f":"VLOOKUP(DropDownList!$B$47,CntyQryCensus!$A$408:$FN$450,DP$1)","v":18},{"$f":"VLOOKUP(DropDownList!$B$47,CntyQryCensus!$A$408:$FN$450,DQ$1)","v":0},{"$f":"VLOOKUP(DropDownList!$B$47,CntyQryCensus!$A$408:$FN$450,DR$1)","v":60},{"$f":"VLOOKUP(DropDownList!$B$47,CntyQryCensus!$A$408:$FN$450,DS$1)","v":0},{"$f":"VLOOKUP(DropDownList!$B$47,CntyQryCensus!$A$408:$FN$450,DT$1)","v":0},{"$f":"VLOOKUP(DropDownList!$B$47,CntyQryCensus!$A$408:$FN$450,DU$1)","v":0},{"$f":"VLOOKUP(DropDownList!$B$47,CntyQryCensus!$A$408:$FN$450,DV$1)","v":9},{"$f":"VLOOKUP(DropDownList!$B$47,CntyQryCensus!$A$408:$FN$450,DW$1)","v":51},{"$f":"VLOOKUP(DropDownList!$B$47,CntyQryCensus!$A$408:$FN$450,DX$1)","v":0},{"$f":"VLOOKUP(DropDownList!$B$47,CntyQryCensus!$A$408:$FN$450,DY$1)","v":151},{"$f":"VLOOKUP(DropDownList!$B$47,CntyQryCensus!$A$408:$FN$450,DZ$1)","v":26},{"$f":"VLOOKUP(DropDownList!$B$47,CntyQryCensus!$A$408:$FN$450,EA$1)","v":17},{"$f":"VLOOKUP(DropDownList!$B$47,CntyQryCensus!$A$408:$FN$450,EB$1)","v":9},{"$f":"VLOOKUP(DropDownList!$B$47,CntyQryCensus!$A$408:$FN$450,EC$1)","v":0},{"$f":"VLOOKUP(DropDownList!$B$47,CntyQryCensus!$A$408:$FN$450,ED$1)","v":99},{"$f":"VLOOKUP(DropDownList!$B$47,CntyQryCensus!$A$408:$FN$450,EE$1)","v":0},{"$f":"VLOOKUP(DropDownList!$B$47,CntyQryCensus!$A$408:$FN$450,EF$1)","v":235},{"$f":"VLOOKUP(DropDownList!$B$47,CntyQryCensus!$A$408:$FN$450,EG$1)","v":79},{"$f":"VLOOKUP(DropDownList!$B$47,CntyQryCensus!$A$408:$FN$450,EH$1)","v":9},{"$f":"VLOOKUP(DropDownList!$B$47,CntyQryCensus!$A$408:$FN$450,EI$1)","v":29},{"$f":"VLOOKUP(DropDownList!$B$47,CntyQryCensus!$A$408:$FN$450,EJ$1)","v":24},{"$f":"VLOOKUP(DropDownList!$B$47,CntyQryCensus!$A$408:$FN$450,EK$1)","v":94},{"$f":"VLOOKUP(DropDownList!$B$47,CntyQryCensus!$A$408:$FN$450,EL$1)","v":0},{"$f":"VLOOKUP(DropDownList!$B$47,CntyQryCensus!$A$408:$FN$450,EM$1)","v":444},{"$f":"VLOOKUP(DropDownList!$B$47,CntyQryCensus!$A$408:$FN$450,EN$1)","v":135},{"$f":"VLOOKUP(DropDownList!$B$47,CntyQryCensus!$A$408:$FN$450,EO$1)","v":72},{"$f":"VLOOKUP(DropDownList!$B$47,CntyQryCensus!$A$408:$FN$450,EP$1)","v":135},{"$f":"VLOOKUP(DropDownList!$B$47,CntyQryCensus!$A$408:$FN$450,EQ$1)","v":62},{"$f":"VLOOKUP(DropDownList!$B$47,CntyQryCensus!$A$408:$FN$450,ER$1)","v":40},{"$f":"VLOOKUP(DropDownList!$B$47,CntyQryCensus!$A$408:$FN$450,ES$1)","v":0},{"$f":"VLOOKUP(DropDownList!$B$47,CntyQryCensus!$A$408:$FN$450,ET$1)","v":315},{"$f":"VLOOKUP(DropDownList!$B$47,CntyQryCensus!$A$408:$FN$450,EU$1)","v":149},{"$f":"VLOOKUP(DropDownList!$B$47,CntyQryCensus!$A$408:$FN$450,EV$1)","v":110},{"$f":"VLOOKUP(DropDownList!$B$47,CntyQryCensus!$A$408:$FN$450,EW$1)","v":39},{"$f":"VLOOKUP(DropDownList!$B$47,CntyQryCensus!$A$408:$FN$450,EX$1)","v":9},{"$f":"VLOOKUP(DropDownList!$B$47,CntyQryCensus!$A$408:$FN$450,EY$1)","v":8},{"$f":"VLOOKUP(DropDownList!$B$47,CntyQryCensus!$A$408:$FN$450,EZ$1)","v":0},{"$f":"VLOOKUP(DropDownList!$B$47,CntyQryCensus!$A$408:$FN$450,FA$1)","v":362},{"$f":"VLOOKUP(DropDownList!$B$47,CntyQryCensus!$A$408:$FN$450,FB$1)","v":288},{"$f":"VLOOKUP(DropDownList!$B$47,CntyQryCensus!$A$408:$FN$450,FC$1)","v":45},{"$f":"VLOOKUP(DropDownList!$B$47,CntyQryCensus!$A$408:$FN$450,FD$1)","v":29},{"$f":"VLOOKUP(DropDownList!$B$47,CntyQryCensus!$A$408:$FN$450,FE$1)","v":0},{"$f":"VLOOKUP(DropDownList!$B$47,CntyQryCensus!$A$408:$FN$450,FF$1)","v":0},{"$f":"VLOOKUP(DropDownList!$B$47,CntyQryCensus!$A$408:$FN$450,FG$1)","v":0},{"$f":"VLOOKUP(DropDownList!$B$47,CntyQryCensus!$A$408:$FN$450,FH$1)","v":196},{"$f":"VLOOKUP(DropDownList!$B$47,CntyQryCensus!$A$408:$FN$450,FI$1)","v":196},{"$f":"VLOOKUP(DropDownList!$B$47,CntyQryCensus!$A$408:$FN$450,FJ$1)","v":0},{"$f":"VLOOKUP(DropDownList!$B$47,CntyQryCensus!$A$408:$FN$450,FK$1)","v":0},{"$f":"VLOOKUP(DropDownList!$B$47,CntyQryCensus!$A$408:$FN$450,FL$1)","v":0},{"$f":"VLOOKUP(DropDownList!$B$47,CntyQryCensus!$A$408:$FN$450,FM$1)","v":0},{"$f":"VLOOKUP(DropDownList!$B$47,CntyQryCensus!$A$408:$FN$450,FN$1)","v":0}]
[]
[]
["Census 2000 SummaryFile3 Sample Data  -  SF3TownQry9HHIncomeByTenure"]
["NAME","LOGRECNO","COUNTY","TotalPop","HCT11OccHU","HCT11OwnOccHU","HCT11OOHUInc<5K","HCT11OOHUInc5to10K","HCT11OOHUInc10to15K","HCT11OOHUInc15to20K","HCT11OOHUInc20to25K","HCT11OOHUInc25to35K","HCT11OOHUInc35to50K","HCT11OOHUInc50to75K","HCT11OOHUInc75to100K","HCT11OOHUInc100to150K","HCT11OOHUInc>150K","HCT11RentOccHU","HCT11ROHUInc<5K","HCT11ROHUInc5to10K","HCT11ROHUInc10to15K","HCT11ROHUInc15to20K","HCT11ROHUInc20to25K","HCT11ROHUInc25to35K","HCT11ROHUInc35to50K","HCT11ROHUInc50to75K","HCT11ROHUInc75to100K","HCT11ROHUInc100to150K","HCT11ROHUInc>150K","HCT12MedHHInc","HCT12MedOwnOccHHInc","HCT12MedRentOccHHInc","Summary Level"]
[{"$f":"VLOOKUP(DropDownList!$B$47,CntyQryCensus!$A$459:$AG$501,A$1)","v":"Atkinson"},{"$f":"VLOOKUP(DropDownList!$B$47,CntyQryCensus!$A$459:$AG$501,B$1)","v":"0003039"},{"$f":"VLOOKUP(DropDownList!$B$47,CntyQryCensus!$A$459:$AG$501,C$1)","v":"02340"},{"$f":"VLOOKUP(DropDownList!$B$47,CntyQryCensus!$A$459:$AG$501,D$1)","v":"Atkinson town"},{"$f":"VLOOKUP(DropDownList!$B$47,CntyQryCensus!$A$459:$AG$501,E$1)","v":"015"},{"$f":"VLOOKUP(DropDownList!$B$47,CntyQryCensus!$A$459:$AG$501,F$1)","v":6178},{"$f":"VLOOKUP(DropDownList!$B$47,CntyQryCensus!$A$459:$AG$501,G$1)","v":2317},{"$f":"VLOOKUP(DropDownList!$B$47,CntyQryCensus!$A$459:$AG$501,H$1)","v":2060},{"$f":"VLOOKUP(DropDownList!$B$47,CntyQryCensus!$A$459:$AG$501,I$1)","v":9},{"$f":"VLOOKUP(DropDownList!$B$47,CntyQryCensus!$A$459:$AG$501,J$1)","v":28},{"$f":"VLOOKUP(DropDownList!$B$47,CntyQryCensus!$A$459:$AG$501,K$1)","v":60},{"$f":"VLOOKUP(DropDownList!$B$47,CntyQryCensus!$A$459:$AG$501,L$1)","v":9},{"$f":"VLOOKUP(DropDownList!$B$47,CntyQryCensus!$A$459:$AG$501,M$1)","v":44},{"$f":"VLOOKUP(DropDownList!$B$47,CntyQryCensus!$A$459:$AG$501,N$1)","v":107},{"$f":"VLOOKUP(DropDownList!$B$47,CntyQryCensus!$A$459:$AG$501,O$1)","v":307},{"$f":"VLOOKUP(DropDownList!$B$47,CntyQryCensus!$A$459:$AG$501,P$1)","v":471},{"$f":"VLOOKUP(DropDownList!$B$47,CntyQryCensus!$A$459:$AG$501,Q$1)","v":382},{"$f":"VLOOKUP(DropDownList!$B$47,CntyQryCensus!$A$459:$AG$501,R$1)","v":423},{"$f":"VLOOKUP(DropDownList!$B$47,CntyQryCensus!$A$459:$AG$501,S$1)","v":220},{"$f":"VLOOKUP(DropDownList!$B$47,CntyQryCensus!$A$459:$AG$501,T$1)","v":257},{"$f":"VLOOKUP(DropDownList!$B$47,CntyQryCensus!$A$459:$AG$501,U$1)","v":20},{"$f":"VLOOKUP(DropDownList!$B$47,CntyQryCensus!$A$459:$AG$501,V$1)","v":28},{"$f":"VLOOKUP(DropDownList!$B$47,CntyQryCensus!$A$459:$AG$501,W$1)","v":19},{"$f":"VLOOKUP(DropDownList!$B$47,CntyQryCensus!$A$459:$AG$501,X$1)","v":29},{"$f":"VLOOKUP(DropDownList!$B$47,CntyQryCensus!$A$459:$AG$501,Y$1)","v":48},{"$f":"VLOOKUP(DropDownList!$B$47,CntyQryCensus!$A$459:$AG$501,Z$1)","v":19},{"$f":"VLOOKUP(DropDownList!$B$47,CntyQryCensus!$A$459:$AG$501,AA$1)","v":37},{"$f":"VLOOKUP(DropDownList!$B$47,CntyQryCensus!$A$459:$AG$501,AB$1)","v":16},{"$f":"VLOOKUP(DropDownList!$B$47,CntyQryCensus!$A$459:$AG$501,AC$1)","v":6},{"$f":"VLOOKUP(DropDownList!$B$47,CntyQryCensus!$A$459:$AG$501,AD$1)","v":27},{"$f":"VLOOKUP(DropDownList!$B$47,CntyQryCensus!$A$459:$AG$501,AE$1)","v":8},{"$f":"VLOOKUP(DropDownList!$B$47,CntyQryCensus!$A$459:$AG$501,AF$1)","v":69552},{"$f":"VLOOKUP(DropDownList!$B$47,CntyQryCensus!$A$459:$AG$501,AG$1)","v":74716}]
[]
[]
[]
[]
[]
[{"$f":"A80","v":"Atkinson"}]
[]
[]
[]
[]
[]
[]
[]
["Census 2000 SummaryFile3 Sample Data - SF3TownQry10Disabil"]
["NAME","LOGRECNO","COUNTY","TotalPop","PCT026001-NonInstPop5yrs+","PCT026002-MaleNonInstPop5yrs+","PCT026003","PCT026004","PCT026005","PCT026006","PCT026007","PCT026008","PCT026009","PCT026010","PCT026011","PCT026012","PCT026013","PCT026014","PCT026015","PCT026016","PCT026017","PCT026018","PCT026019","PCT026020","PCT026021","PCT026022","PCT026023","PCT026024","PCT026025","PCT026026","PCT026027","PCT026028","PCT026029","PCT026030","PCT026031","PCT026032","PCT026033","PCT026034","PCT026035","PCT026036","PCT026037","PCT026038","PCT026039","PCT026040","PCT026041","PCT026042","PCT026043","PCT026044","PCT026045","PCT026046","PCT026047","PCT026048","PCT026049","PCT026050","PCT026051","PCT026052","PCT026053","PCT026054","PCT026055","PCT026056","PCT026057","PCT026058","PCT026059","PCT026060","PCT026061","PCT026062","PCT026063","PCT026064","PCT026065","PCT026066","PCT026067","PCT026068","PCT026069","PCT026070","PCT026071","PCT026072","PCT026073","PCT026074","PCT026075","PCT026076","PCT026077","PCT026078","PCT026079","PCT026080","PCT026081","PCT026082","PCT026083","PCT026084","PCT026085","PCT026086","PCT026087","PCT026088","PCT026089","PCT026090","PCT026091","PCT026092","PCT026093","PCT026094","PCT026095","PCT026096","PCT026097","PCT026098","PCT026099","PCT026100","PCT026101"]
[{"$f":"VLOOKUP(DropDownList!$B$47,CntyQryCensus!$A$54:$DA$90,A$1)","v":"Atkinson"},{"$f":"VLOOKUP(DropDownList!$B$47,CntyQryCensus!$A$510:$DA$552,B$1)","v":"0003039"},{"$f":"VLOOKUP(DropDownList!$B$47,CntyQryCensus!$A$510:$DA$552,C$1)","v":"02340"},{"$f":"VLOOKUP(DropDownList!$B$47,CntyQryCensus!$A$510:$DA$552,D$1)","v":6178},{"$f":"VLOOKUP(DropDownList!$B$47,CntyQryCensus!$A$510:$DA$552,E$1)","v":5767},{"$f":"VLOOKUP(DropDownList!$B$47,CntyQryCensus!$A$510:$DA$552,F$1)","v":2833},{"$f":"VLOOKUP(DropDownList!$B$47,CntyQryCensus!$A$510:$DA$552,G$1)","v":434},{"$f":"VLOOKUP(DropDownList!$B$47,CntyQryCensus!$A$510:$DA$552,H$1)","v":9},{"$f":"VLOOKUP(DropDownList!$B$47,CntyQryCensus!$A$510:$DA$552,I$1)","v":0},{"$f":"VLOOKUP(DropDownList!$B$47,CntyQryCensus!$A$510:$DA$552,J$1)","v":0},{"$f":"VLOOKUP(DropDownList!$B$47,CntyQryCensus!$A$510:$DA$552,K$1)","v":9},{"$f":"VLOOKUP(DropDownList!$B$47,CntyQryCensus!$A$510:$DA$552,L$1)","v":0},{"$f":"VLOOKUP(DropDownList!$B$47,CntyQryCensus!$A$510:$DA$552,M$1)","v":10},{"$f":"VLOOKUP(DropDownList!$B$47,CntyQryCensus!$A$510:$DA$552,N$1)","v":10},{"$f":"VLOOKUP(DropDownList!$B$47,CntyQryCensus!$A$510:$DA$552,O$1)","v":0},{"$f":"VLOOKUP(DropDownList!$B$47,CntyQryCensus!$A$510:$DA$552,P$1)","v":415},{"$f":"VLOOKUP(DropDownList!$B$47,CntyQryCensus!$A$510:$DA$552,Q$1)","v":173},{"$f":"VLOOKUP(DropDownList!$B$47,CntyQryCensus!$A$510:$DA$552,R$1)","v":20},{"$f":"VLOOKUP(DropDownList!$B$47,CntyQryCensus!$A$510:$DA$552,S$1)","v":0},{"$f":"VLOOKUP(DropDownList!$B$47,CntyQryCensus!$A$510:$DA$552,T$1)","v":10},{"$f":"VLOOKUP(DropDownList!$B$47,CntyQryCensus!$A$510:$DA$552,U$1)","v":0},{"$f":"VLOOKUP(DropDownList!$B$47,CntyQryCensus!$A$510:$DA$552,V$1)","v":0},{"$f":"VLOOKUP(DropDownList!$B$47,CntyQryCensus!$A$510:$DA$552,W$1)","v":0},{"$f":"VLOOKUP(DropDownList!$B$47,CntyQryCensus!$A$510:$DA$552,X$1)","v":10},{"$f":"VLOOKUP(DropDownList!$B$47,CntyQryCensus!$A$510:$DA$552,Y$1)","v":6},{"$f":"VLOOKUP(DropDownList!$B$47,CntyQryCensus!$A$510:$DA$552,Z$1)","v":0},{"$f":"VLOOKUP(DropDownList!$B$47,CntyQryCensus!$A$510:$DA$552,AA$1)","v":6},{"$f":"VLOOKUP(DropDownList!$B$47,CntyQryCensus!$A$510:$DA$552,AB$1)","v":0},{"$f":"VLOOKUP(DropDownList!$B$47,CntyQryCensus!$A$510:$DA$552,AC$1)","v":6},{"$f":"VLOOKUP(DropDownList!$B$47,CntyQryCensus!$A$510:$DA$552,AD$1)","v":147},{"$f":"VLOOKUP(DropDownList!$B$47,CntyQryCensus!$A$510:$DA$552,AE$1)","v":1891},{"$f":"VLOOKUP(DropDownList!$B$47,CntyQryCensus!$A$510:$DA$552,AF$1)","v":233},{"$f":"VLOOKUP(DropDownList!$B$47,CntyQryCensus!$A$510:$DA$552,AG$1)","v":43},{"$f":"VLOOKUP(DropDownList!$B$47,CntyQryCensus!$A$510:$DA$552,AH$1)","v":13},{"$f":"VLOOKUP(DropDownList!$B$47,CntyQryCensus!$A$510:$DA$552,AI$1)","v":33},{"$f":"VLOOKUP(DropDownList!$B$47,CntyQryCensus!$A$510:$DA$552,AJ$1)","v":0},{"$f":"VLOOKUP(DropDownList!$B$47,CntyQryCensus!$A$510:$DA$552,AK$1)","v":0},{"$f":"VLOOKUP(DropDownList!$B$47,CntyQryCensus!$A$510:$DA$552,AL$1)","v":144},{"$f":"VLOOKUP(DropDownList!$B$47,CntyQryCensus!$A$510:$DA$552,AM$1)","v":64},{"$f":"VLOOKUP(DropDownList!$B$47,CntyQryCensus!$A$510:$DA$552,AN$1)","v":14},{"$f":"VLOOKUP(DropDownList!$B$47,CntyQryCensus!$A$510:$DA$552,AO$1)","v":50},{"$f":"VLOOKUP(DropDownList!$B$47,CntyQryCensus!$A$510:$DA$552,AP$1)","v":27},{"$f":"VLOOKUP(DropDownList!$B$47,CntyQryCensus!$A$510:$DA$552,AQ$1)","v":23},{"$f":"VLOOKUP(DropDownList!$B$47,CntyQryCensus!$A$510:$DA$552,AR$1)","v":1594},{"$f":"VLOOKUP(DropDownList!$B$47,CntyQryCensus!$A$510:$DA$552,AS$1)","v":335},{"$f":"VLOOKUP(DropDownList!$B$47,CntyQryCensus!$A$510:$DA$552,AT$1)","v":79},{"$f":"VLOOKUP(DropDownList!$B$47,CntyQryCensus!$A$510:$DA$552,AU$1)","v":51},{"$f":"VLOOKUP(DropDownList!$B$47,CntyQryCensus!$A$510:$DA$552,AV$1)","v":19},{"$f":"VLOOKUP(DropDownList!$B$47,CntyQryCensus!$A$510:$DA$552,AW$1)","v":9},{"$f":"VLOOKUP(DropDownList!$B$47,CntyQryCensus!$A$510:$DA$552,AX$1)","v":0},{"$f":"VLOOKUP(DropDownList!$B$47,CntyQryCensus!$A$510:$DA$552,AY$1)","v":0},{"$f":"VLOOKUP(DropDownList!$B$47,CntyQryCensus!$A$510:$DA$552,AZ$1)","v":15},{"$f":"VLOOKUP(DropDownList!$B$47,CntyQryCensus!$A$510:$DA$552,BA$1)","v":0},{"$f":"VLOOKUP(DropDownList!$B$47,CntyQryCensus!$A$510:$DA$552,BB$1)","v":15},{"$f":"VLOOKUP(DropDownList!$B$47,CntyQryCensus!$A$510:$DA$552,BC$1)","v":241},{"$f":"VLOOKUP(DropDownList!$B$47,CntyQryCensus!$A$510:$DA$552,BD$1)","v":2934},{"$f":"VLOOKUP(DropDownList!$B$47,CntyQryCensus!$A$510:$DA$552,BE$1)","v":531},{"$f":"VLOOKUP(DropDownList!$B$47,CntyQryCensus!$A$510:$DA$552,BF$1)","v":0},{"$f":"VLOOKUP(DropDownList!$B$47,CntyQryCensus!$A$510:$DA$552,BG$1)","v":0},{"$f":"VLOOKUP(DropDownList!$B$47,CntyQryCensus!$A$510:$DA$552,BH$1)","v":0},{"$f":"VLOOKUP(DropDownList!$B$47,CntyQryCensus!$A$510:$DA$552,BI$1)","v":0},{"$f":"VLOOKUP(DropDownList!$B$47,CntyQryCensus!$A$510:$DA$552,BJ$1)","v":0},{"$f":"VLOOKUP(DropDownList!$B$47,CntyQryCensus!$A$510:$DA$552,BK$1)","v":8},{"$f":"VLOOKUP(DropDownList!$B$47,CntyQryCensus!$A$510:$DA$552,BL$1)","v":8},{"$f":"VLOOKUP(DropDownList!$B$47,CntyQryCensus!$A$510:$DA$552,BM$1)","v":0},{"$f":"VLOOKUP(DropDownList!$B$47,CntyQryCensus!$A$510:$DA$552,BN$1)","v":523},{"$f":"VLOOKUP(DropDownList!$B$47,CntyQryCensus!$A$510:$DA$552,BO$1)","v":124},{"$f":"VLOOKUP(DropDownList!$B$47,CntyQryCensus!$A$510:$DA$552,BP$1)","v":7},{"$f":"VLOOKUP(DropDownList!$B$47,CntyQryCensus!$A$510:$DA$552,BQ$1)","v":0},{"$f":"VLOOKUP(DropDownList!$B$47,CntyQryCensus!$A$510:$DA$552,BR$1)","v":0},{"$f":"VLOOKUP(DropDownList!$B$47,CntyQryCensus!$A$510:$DA$552,BS$1)","v":0},{"$f":"VLOOKUP(DropDownList!$B$47,CntyQryCensus!$A$510:$DA$552,BT$1)","v":0},{"$f":"VLOOKUP(DropDownList!$B$47,CntyQryCensus!$A$510:$DA$552,BU$1)","v":0},{"$f":"VLOOKUP(DropDownList!$B$47,CntyQryCensus!$A$510:$DA$552,BV$1)","v":7},{"$f":"VLOOKUP(DropDownList!$B$47,CntyQryCensus!$A$510:$DA$552,BW$1)","v":0},{"$f":"VLOOKUP(DropDownList!$B$47,CntyQryCensus!$A$510:$DA$552,BX$1)","v":0},{"$f":"VLOOKUP(DropDownList!$B$47,CntyQryCensus!$A$510:$DA$552,BY$1)","v":0},{"$f":"VLOOKUP(DropDownList!$B$47,CntyQryCensus!$A$510:$DA$552,BZ$1)","v":0},{"$f":"VLOOKUP(DropDownList!$B$47,CntyQryCensus!$A$510:$DA$552,CA$1)","v":0},{"$f":"VLOOKUP(DropDownList!$B$47,CntyQryCensus!$A$510:$DA$552,CB$1)","v":117},{"$f":"VLOOKUP(DropDownList!$B$47,CntyQryCensus!$A$510:$DA$552,CC$1)","v":1917},{"$f":"VLOOKUP(DropDownList!$B$47,CntyQryCensus!$A$510:$DA$552,CD$1)","v":150},{"$f":"VLOOKUP(DropDownList!$B$47,CntyQryCensus!$A$510:$DA$552,CE$1)","v":7},{"$f":"VLOOKUP(DropDownList!$B$47,CntyQryCensus!$A$510:$DA$552,CF$1)","v":16},{"$f":"VLOOKUP(DropDownList!$B$47,CntyQryCensus!$A$510:$DA$552,CG$1)","v":0},{"$f":"VLOOKUP(DropDownList!$B$47,CntyQryCensus!$A$510:$DA$552,CH$1)","v":7},{"$f":"VLOOKUP(DropDownList!$B$47,CntyQryCensus!$A$510:$DA$552,CI$1)","v":16},{"$f":"VLOOKUP(DropDownList!$B$47,CntyQryCensus!$A$510:$DA$552,CJ$1)","v":104},{"$f":"VLOOKUP(DropDownList!$B$47,CntyQryCensus!$A$510:$DA$552,CK$1)","v":66},{"$f":"VLOOKUP(DropDownList!$B$47,CntyQryCensus!$A$510:$DA$552,CL$1)","v":26},{"$f":"VLOOKUP(DropDownList!$B$47,CntyQryCensus!$A$510:$DA$552,CM$1)","v":40},{"$f":"VLOOKUP(DropDownList!$B$47,CntyQryCensus!$A$510:$DA$552,CN$1)","v":7},{"$f":"VLOOKUP(DropDownList!$B$47,CntyQryCensus!$A$510:$DA$552,CO$1)","v":33},{"$f":"VLOOKUP(DropDownList!$B$47,CntyQryCensus!$A$510:$DA$552,CP$1)","v":1701},{"$f":"VLOOKUP(DropDownList!$B$47,CntyQryCensus!$A$510:$DA$552,CQ$1)","v":362},{"$f":"VLOOKUP(DropDownList!$B$47,CntyQryCensus!$A$510:$DA$552,CR$1)","v":16},{"$f":"VLOOKUP(DropDownList!$B$47,CntyQryCensus!$A$510:$DA$552,CS$1)","v":7},{"$f":"VLOOKUP(DropDownList!$B$47,CntyQryCensus!$A$510:$DA$552,CT$1)","v":9},{"$f":"VLOOKUP(DropDownList!$B$47,CntyQryCensus!$A$510:$DA$552,CU$1)","v":0},{"$f":"VLOOKUP(DropDownList!$B$47,CntyQryCensus!$A$510:$DA$552,CV$1)","v":0},{"$f":"VLOOKUP(DropDownList!$B$47,CntyQryCensus!$A$510:$DA$552,CW$1)","v":0},{"$f":"VLOOKUP(DropDownList!$B$47,CntyQryCensus!$A$510:$DA$552,CX$1)","v":63},{"$f":"VLOOKUP(DropDownList!$B$47,CntyQryCensus!$A$510:$DA$552,CY$1)","v":19},{"$f":"VLOOKUP(DropDownList!$B$47,CntyQryCensus!$A$510:$DA$552,CZ$1)","v":44},{"$f":"VLOOKUP(DropDownList!$B$47,CntyQryCensus!$A$510:$DA$552,DA$1)","v":283}]
[]
[]
[]
[]
[]
[]
[]
[]
["ACS",2,{"$f":"B105+1","v":3},{"$f":"C105+1","v":4},5,6,7,8,9,10,11,{"$f":"K105+1","v":12},13,14,15,{"$f":"O105+1","v":16},17,18,19,20,21,22,23,24,25,26,27,28,29,30,31,32,33,34,35,36,37,38,39,40,41,42,43,44,45,46,47,48,49,50,51,52,53,54,55,56,57,58,59,60,61,62,63,64,65,66,67,{"$f":"BO105+1","v":68},69,70,71,72,73,74,75,76,77,78,79,80,81,82,83,84,85,86,87,88,89,90,91,92,93,94,95,96,97,98,99,100,101,102,103,104,105,106,107,108,109,110,111,112,113,114,115,116,117,118,119,120,121,122,123,124,125]
["Househould Data (Housing Unit Type)"]
["NAME","TotalHU",{"$f":"\"MOE \"&B107","v":"MOE TotalHU"},"TotalOccHU",{"$f":"\"MOE \"&D107","v":"MOE TotalOccHU"},"TotalOwnerOccUn",{"$f":"\"MOE \"&F107","v":"MOE TotalOwnerOccUn"},"TotalRenterOccn",{"$f":"\"MOE \"&H107","v":"MOE TotalRenterOccn"},"TotalVacantUntis",{"$f":"\"MOE \"&J107","v":"MOE TotalVacantUntis"},"VacantUnitsForRent",{"$f":"\"MOE \"&L107","v":"MOE VacantUnitsForRent"},"VacantUnitRentedNotOcc",{"$f":"\"MOE \"&N107","v":"MOE VacantUnitRentedNotOcc"},"VacantUnitForSale",{"$f":"\"MOE \"&P107","v":"MOE VacantUnitForSale"},"VacantUnitSoldNotOcc",{"$f":"\"MOE \"&R107","v":"MOE VacantUnitSoldNotOcc"},"VacantUnitSeasonalRec",{"$f":"\"MOE \"&T107","v":"MOE VacantUnitSeasonalRec"},"TotalPopInHousingUnits",{"$f":"\"MOE \"&V107","v":"MOE TotalPopInHousingUnits"},"OwnerOccPopHousingUnits",{"$f":"\"MOE \"&X107","v":"MOE OwnerOccPopHousingUnits"},"RenterOccPopHousingUnits",{"$f":"\"MOE \"&Z107","v":"MOE RenterOccPopHousingUnits"},"TotalUntis",{"$f":"\"MOE \"&AB107","v":"MOE TotalUntis"},"TotalOwnerOccUnits",{"$f":"\"MOE \"&AD107","v":"MOE TotalOwnerOccUnits"},"SigFamOwnerOcc",{"$f":"\"MOE \"&AF107","v":"MOE SigFamOwnerOcc"},"MultiFamOwnerOcc",{"$f":"\"MOE \"&AH107","v":"MOE MultiFamOwnerOcc"},"MobileOwnerOcc",{"$f":"\"MOE \"&AJ107","v":"MOE MobileOwnerOcc"},"TotalRenterOccUnits",{"$f":"\"MOE \"&AL107","v":"MOE TotalRenterOccUnits"},"SigFamRenterOcc",{"$f":"\"MOE \"&AN107","v":"MOE SigFamRenterOcc"},"MultiFamRenterOcc",{"$f":"\"MOE \"&AP107","v":"MOE MultiFamRenterOcc"},"MobileRenterOcc",{"$f":"\"MOE \"&AR107","v":"MOE MobileRenterOcc"},"TotalSigFamilyUnits",{"$f":"\"MOE \"&AT107","v":"MOE TotalSigFamilyUnits"},"TotalMultiFamilyUnits",{"$f":"\"MOE \"&AV107","v":"MOE TotalMultiFamilyUnits"},"TotalMobileUnits",{"$f":"\"MOE \"&AX107","v":"MOE TotalMobileUnits"},"YrHouseBuilt2014Later",{"$f":"\"MOE \"&AZ107","v":"MOE YrHouseBuilt2014Later"},"YrHouseBuilt2010-2013",{"$f":"\"MOE \"&BB107","v":"MOE YrHouseBuilt2010-2013"},"YrHouseBuilt2000-2009",{"$f":"\"MOE \"&BD107","v":"MOE YrHouseBuilt2000-2009"},"YrHouseBuilt1990-1999",{"$f":"\"MOE \"&BF107","v":"MOE YrHouseBuilt1990-1999"},"YrHouseBuilt1980-1989",{"$f":"\"MOE \"&BH107","v":"MOE YrHouseBuilt1980-1989"},"YrHouseBuilt1970-1979",{"$f":"\"MOE \"&BJ107","v":"MOE YrHouseBuilt1970-1979"},"YrHouseBuilt1960-1969",{"$f":"\"MOE \"&BL107","v":"MOE YrHouseBuilt1960-1969"},"YrHouseBuilt1950-1959",{"$f":"\"MOE \"&BN107","v":"MOE YrHouseBuilt1950-1959"},"YrHouseBuilt1940-1949",{"$f":"\"MOE \"&BP107","v":"MOE YrHouseBuilt1940-1949"},"YrHouseBuilt1939orEarlier",{"$f":"\"MOE \"&BR107","v":"MOE YrHouseBuilt1939orEarlier"},"NoBedrooms",{"$f":"\"MOE \"&BT107","v":"MOE NoBedrooms"},"1Bedroom",{"$f":"\"MOE \"&BV107","v":"MOE 1Bedroom"},"2Bedroom",{"$f":"\"MOE \"&BX107","v":"MOE 2Bedroom"},"3Bedroom",{"$f":"\"MOE \"&BZ107","v":"MOE 3Bedroom"},"4+Bedroom",{"$f":"\"MOE \"&CB107","v":"MOE 4+Bedroom"}]
[{"$f":"VLOOKUP(DropDownList!$B$47,CntyQryCensus!$A$510:$DA$546,A$1)","v":"Atkinson"},2701,107,2613,114,2211,142,402,127,88,84,15,23,0,114,47,73,0,114,26,43,6646,22,6118,208,528,207,2613,114,2211,142,1679,136,532,254.73515658424535,0,161.22034611053283,402,127,72,65,330,271.79403966974701,0,161.22034611053283,1824,156,877,247.11738101558134,0,161.22034611053283,0,114,203,74,454,128,515,149,711,181,400,150,144,76,75,61,199,87,34,41,336,110,624,118,984,153,723,165.01212076693034,null,"4 + bedrooms",81,79,36,74,28,76,114,30,114,142,91,44,40,134,119,76,105,14,132,142,84,108,151,154,137,30,701,207.10383868967759,300,141.01418368376991,207.27517941133232,197.81304304822774]
[]
["Disability Data"]
["NAME","TotalPop",{"$f":"\"MOE \"&B111","v":"MOE TotalPop"},"PopUnder 5 years:",{"$f":"\"MOE \"&D111","v":"MOE PopUnder 5 years:"},{"$f":"D$111&\"-WithDisability\"","v":"PopUnder 5 years:-WithDisability"},{"$f":"\"MOE \"&F111","v":"MOE PopUnder 5 years:-WithDisability"},{"$f":"D111&\"-NoDisability\"","v":"PopUnder 5 years:-NoDisability"},{"$f":"\"MOE \"&H111","v":"MOE PopUnder 5 years:-NoDisability"},"PopUnder 5 to 17years:",{"$f":"\"MOE \"&J111","v":"MOE PopUnder 5 to 17years:"},{"$f":"J$111&\"-WithDisability\"","v":"PopUnder 5 to 17years:-WithDisability"},{"$f":"\"MOE \"&L111","v":"MOE PopUnder 5 to 17years:-WithDisability"},{"$f":"J111&\"-NoDisability\"","v":"PopUnder 5 to 17years:-NoDisability"},{"$f":"\"MOE \"&N111","v":"MOE PopUnder 5 to 17years:-NoDisability"},"PopUnder 18 to 34 years:",{"$f":"\"MOE \"&P111","v":"MOE PopUnder 18 to 34 years:"},{"$f":"P$111&\"-WithDisability\"","v":"PopUnder 18 to 34 years:-WithDisability"},{"$f":"\"MOE \"&R111","v":"MOE PopUnder 18 to 34 years:-WithDisability"},{"$f":"P111&\"-NoDisability\"","v":"PopUnder 18 to 34 years:-NoDisability"},{"$f":"\"MOE \"&T111","v":"MOE PopUnder 18 to 34 years:-NoDisability"},"Pop 35 years to 64:",{"$f":"\"MOE \"&V111","v":"MOE Pop 35 years to 64:"},{"$f":"$V$111&\"-WithDisability\"","v":"Pop 35 years to 64:-WithDisability"},{"$f":"\"MOE \"&X111","v":"MOE Pop 35 years to 64:-WithDisability"},{"$f":"$V$111&\"-NoDisability\"","v":"Pop 35 years to 64:-NoDisability"},{"$f":"\"MOE \"&Z111","v":"MOE Pop 35 years to 64:-NoDisability"},"Pop 65 years to 74:",{"$f":"\"MOE \"&AB111","v":"MOE Pop 65 years to 74:"},{"$f":"$AB$111&\"-WithDisability\"","v":"Pop 65 years to 74:-WithDisability"},{"$f":"\"MOE \"&AD111","v":"MOE Pop 65 years to 74:-WithDisability"},{"$f":"$AB$111&\"-NoDisability\"","v":"Pop 65 years to 74:-NoDisability"},{"$f":"\"MOE \"&AF111","v":"MOE Pop 65 years to 74:-NoDisability"},"Pop 75 and older:",{"$f":"\"MOE \"&AH111","v":"MOE Pop 75 and older:"},{"$f":"$AH$111&\"-WithDisability\"","v":"Pop 75 and older:-WithDisability"},{"$f":"\"MOE \"&AJ111","v":"MOE Pop 75 and older:-WithDisability"},{"$f":"$AH$111&\"-NoDisability\"","v":"Pop 75 and older:-NoDisability"},{"$f":"\"MOE \"&AL111","v":"MOE Pop 75 and older:-NoDisability"},"TotalPopUnder5_HearingDisability",{"$f":"\"MOE \"&AN111","v":"MOE TotalPopUnder5_HearingDisability"},"TotalPopUnder5_HearingDisability",{"$f":"\"MOE \"&AP111","v":"MOE TotalPopUnder5_HearingDisability"},"TotalPop18To34_HearingDisability",{"$f":"\"MOE \"&AR111","v":"MOE TotalPop18To34_HearingDisability"},"TotalPop35To64_HearingDisability",{"$f":"\"MOE \"&AT111","v":"MOE TotalPop35To64_HearingDisability"},"TotalPop65To74_HearingDisability",{"$f":"\"MOE \"&AV111","v":"MOE TotalPop65To74_HearingDisability"},"TotalPop75andOlder_HearingDisability",{"$f":"\"MOE \"&AX111","v":"MOE TotalPop75andOlder_HearingDisability"},"TotalPopUnder5_VisionDisability",{"$f":"\"MOE \"&AZ111","v":"MOE TotalPopUnder5_VisionDisability"},"TotalPop5To17_VisionDisability",{"$f":"\"MOE \"&BB111","v":"MOE TotalPop5To17_VisionDisability"},"TotalPop18To34_VisionDisability",{"$f":"\"MOE \"&BD111","v":"MOE TotalPop18To34_VisionDisability"},"TotalPop35To64_VisionDisability",{"$f":"\"MOE \"&BF111","v":"MOE TotalPop35To64_VisionDisability"},"TotalPop65To74_VisionDisability",{"$f":"\"MOE \"&BH111","v":"MOE TotalPop65To74_VisionDisability"},"TotalPop75andOlder_VisionDisability",{"$f":"\"MOE \"&BJ111","v":"MOE TotalPop75andOlder_VisionDisability"},"TotalPop5To17_CongnitiveDisability",{"$f":"\"MOE \"&BL111","v":"MOE TotalPop5To17_CongnitiveDisability"},"TotalPop18To34_CongnitiveDisability",{"$f":"\"MOE \"&BN111","v":"MOE TotalPop18To34_CongnitiveDisability"},"TotalPop35To64_CongnitiveDisability",{"$f":"\"MOE \"&BP111","v":"MOE TotalPop35To64_CongnitiveDisability"},"TotalPop65To74_CongnitiveDisability",{"$f":"\"MOE \"&BR111","v":"MOE TotalPop65To74_CongnitiveDisability"},"TotalPop75andOlder_CongnitiveDisability",{"$f":"\"MOE \"&BT111","v":"MOE TotalPop75andOlder_CongnitiveDisability"},"TotalPop5To17_AmbulatoryDisability",{"$f":"\"MOE \"&BV111","v":"MOE TotalPop5To17_AmbulatoryDisability"},"TotalPop18To34_AmbulatoryDisability",{"$f":"\"MOE \"&BX111","v":"MOE TotalPop18To34_AmbulatoryDisability"},"TotalPop35To64_AmbulatoryDisability",{"$f":"\"MOE \"&BZ111","v":"MOE TotalPop35To64_AmbulatoryDisability"},"TotalPop65To74_AmbulatoryDisability",{"$f":"\"MOE \"&CB111","v":"MOE TotalPop65To74_AmbulatoryDisability"},"TotalPop75andOlder_AmbulatoryDisability",{"$f":"\"MOE \"&CD111","v":"MOE TotalPop75andOlder_AmbulatoryDisability"},"TotalPop5To17_SelfCareDisability",{"$f":"\"MOE \"&CF111","v":"MOE TotalPop5To17_SelfCareDisability"},"TotalPop18To34_SelfCareDisability",{"$f":"\"MOE \"&CH111","v":"MOE TotalPop18To34_SelfCareDisability"},"TotalPop35To64_SelfCareDisability",{"$f":"\"MOE \"&CJ111","v":"MOE TotalPop35To64_SelfCareDisability"},"TotalPop65To74_SelfCareDisability",{"$f":"\"MOE \"&CL111","v":"MOE TotalPop65To74_SelfCareDisability"},"TotalPop75andOlder_SelfCareDisability",{"$f":"\"MOE \"&CN111","v":"MOE TotalPop75andOlder_SelfCareDisability"},"TotalPop18To34_IndependantLivingDisability",{"$f":"\"MOE \"&CP111","v":"MOE TotalPop18To34_IndependantLivingDisability"},"TotalPop35To64_IndependantLivingDisability",{"$f":"\"MOE \"&CR111","v":"MOE TotalPop35To64_IndependantLivingDisability"},"TotalPop65To74_IndependantLivingDisability",{"$f":"\"MOE \"&CT111","v":"MOE TotalPop65To74_IndependantLivingDisability"},"TotalPop75andOlder_IndependantLivingDisability",{"$f":"\"MOE \"&CV111","v":"MOE TotalPop75andOlder_IndependantLivingDisability"},"TotalUnder5_HearingorVisionDisability",{"$f":"\"MOE \"&CX111","v":"MOE TotalUnder5_HearingorVisionDisability"},"TotalUnder5_HearingandVisionDisability",{"$f":"\"MOE \"&CZ111","v":"MOE TotalUnder5_HearingandVisionDisability"},"5to17YearWIthOneDisability",{"$f":"\"MOE \"&DB111","v":"MOE 5to17YearWIthOneDisability"},"5to17YearWIthTwoOrMoreDisability",{"$f":"\"MOE \"&DD111","v":"MOE 5to17YearWIthTwoOrMoreDisability"},"18to34YearWIthOneDisability",{"$f":"\"MOE \"&DF111","v":"MOE 18to34YearWIthOneDisability"},"18to34YearWIthTwoOrMoreDisability",{"$f":"\"MOE \"&DH111","v":"MOE 18to34YearWIthTwoOrMoreDisability"},"35to64YearWIthOneDisability",{"$f":"\"MOE \"&DJ111","v":"MOE 35to64YearWIthOneDisability"},"35to64YearWIthTwoOrMoreDisability",{"$f":"\"MOE \"&DL111","v":"MOE 35to64YearWIthTwoOrMoreDisability"},"65to74YearWIthOneDisability",{"$f":"\"MOE \"&DN111","v":"MOE 65to74YearWIthOneDisability"},"65to74YearWIthTwoOrMoreDisability",{"$f":"\"MOE \"&DP111","v":"MOE 65to74YearWIthTwoOrMoreDisability"},"75AndOlderWIthOneDisability",{"$f":"\"MOE \"&DR111","v":"MOE 75AndOlderWIthOneDisability"},"75AndOlderWIthTwoOrMoreDisability",{"$f":"\"MOE \"&DT111","v":"MOE 75AndOlderWIthTwoOrMoreDisability"}]
[{"$f":"VLOOKUP(DropDownList!$B$47,CntyQryCensus!$A$510:$DA$546,A$1)","v":"Atkinson"},5078,20,202,84.628600366542756,0,21.213203435596427,202,84.628600366542756,962,143.93401265857906,30,27.459060435491963,932,144.1700384962146,797,185.52627846210896,55,66.940271884718243,742,162.11415730897781,2640,113.17243480636087,168,61.911226768656427,2472,112.44998888394787,313,60.811183182043088,23,21.2602916254693,290,62.936475910238251,164,48.166378315169183,52,30.886890422961002,112,43.185645763378368,0,21.213203435596427,0,21.213203435596427,44,66.708320320631671,81,44.654227123532216,8,20.518284528683193,52,30.886890422961002,0,21.213203435596427,0,21.213203435596427,44,66.708320320631671,19,20.615528128088304,0,21.213203435596427,8,19.849433241279208,20,27.459060435491963,55,66.940271884718243,64,44.598206241955516,0,21.213203435596427,8,19.849433241279208,10,21.213203435596427,44,66.708320320631671,60,40.496913462633174,15,21.931712199461309,15,22.671568097509269,10,21.213203435596427,44,66.708320320631671,32,35.341194094144583,0,21.213203435596427,8,19.849433241279208,11,21.931712199461309,41,34.928498393145958,0,21.213203435596427,0,21.213203435596427,12,18,18,25,127,54,96,73,60,36,15,17]
[]
["Househould Income By Age"]
["NAME","TotalHouseholds",{"$f":"\"MOE \"&B115","v":"MOE TotalHouseholds"},"HHInc<10K",{"$f":"\"MOE \"&D115","v":"MOE HHInc<10K"},"HHInc10to15K",{"$f":"\"MOE \"&F115","v":"MOE HHInc10to15K"},"HHInc15to20K",{"$f":"\"MOE \"&H115","v":"MOE HHInc15to20K"},"HHInc20to25K",{"$f":"\"MOE \"&J115","v":"MOE HHInc20to25K"},"HHInc25to30K",{"$f":"\"MOE \"&L115","v":"MOE HHInc25to30K"},"HHInc30to35K",{"$f":"\"MOE \"&N115","v":"MOE HHInc30to35K"},"HHInc35to40K",{"$f":"\"MOE \"&P115","v":"MOE HHInc35to40K"},"HHInc40to45K",{"$f":"\"MOE \"&R115","v":"MOE HHInc40to45K"},"HHInc45to50K",{"$f":"\"MOE \"&T115","v":"MOE HHInc45to50K"},"HHInc50to60K",{"$f":"\"MOE \"&V115","v":"MOE HHInc50to60K"},"HHInc60to75K",{"$f":"\"MOE \"&X115","v":"MOE HHInc60to75K"},"HHInc75to100K",{"$f":"\"MOE \"&Z115","v":"MOE HHInc75to100K"},"HHInc100to125K",{"$f":"\"MOE \"&AB115","v":"MOE HHInc100to125K"},"HHInc125to150K",{"$f":"\"MOE \"&AD115","v":"MOE HHInc125to150K"},"HHInc150to200K",{"$f":"\"MOE \"&AF115","v":"MOE HHInc150to200K"},"HHInc>200K",{"$f":"\"MOE \"&AH115","v":"MOE HHInc>200K"},"TotalHH",{"$f":"\"MOE \"&AJ115","v":"MOE TotalHH"},"HHAgeHHUnder25yrs",{"$f":"\"MOE \"&AL115","v":"MOE HHAgeHHUnder25yrs"},"HHAgeHH<25HHInc<10K",{"$f":"\"MOE \"&AN115","v":"MOE HHAgeHH<25HHInc<10K"},"HHAgeHH<25HHInc10to15K",{"$f":"\"MOE \"&AP115","v":"MOE HHAgeHH<25HHInc10to15K"},"HHAgeHH<25HHInc15to20K",{"$f":"\"MOE \"&AR115","v":"MOE HHAgeHH<25HHInc15to20K"},"HHAgeHH<25HHInc20to25K",{"$f":"\"MOE \"&AT115","v":"MOE HHAgeHH<25HHInc20to25K"},"HHAgeHH<25HHInc25to30K",{"$f":"\"MOE \"&AV115","v":"MOE HHAgeHH<25HHInc25to30K"},"HHAgeHH<25HHInc30to35K",{"$f":"\"MOE \"&AX115","v":"MOE HHAgeHH<25HHInc30to35K"},"HHAgeHH<25HHInc35to40K",{"$f":"\"MOE \"&AZ115","v":"MOE HHAgeHH<25HHInc35to40K"},"HHAgeHH<25HHInc40to45K",{"$f":"\"MOE \"&BB115","v":"MOE HHAgeHH<25HHInc40to45K"},"HHAgeHH<25HHInc45to50K",{"$f":"\"MOE \"&BD115","v":"MOE HHAgeHH<25HHInc45to50K"},"HHAgeHH<25HHInc50to60K",{"$f":"\"MOE \"&BF115","v":"MOE HHAgeHH<25HHInc50to60K"},"HHAgeHH<25HHInc60to75K",{"$f":"\"MOE \"&BH115","v":"MOE HHAgeHH<25HHInc60to75K"},"HHAgeHH<25HHInc75to100K",{"$f":"\"MOE \"&BJ115","v":"MOE HHAgeHH<25HHInc75to100K"},"HHAgeHH<25HHInc100to125K",{"$f":"\"MOE \"&BL115","v":"MOE HHAgeHH<25HHInc100to125K"},"HHAgeHH<25HHInc125to150K",{"$f":"\"MOE \"&BN115","v":"MOE HHAgeHH<25HHInc125to150K"},"HHAgeHH<25HHInc150to200K",{"$f":"\"MOE \"&BP115","v":"MOE HHAgeHH<25HHInc150to200K"},"HHAge<25HHInc>200K",{"$f":"\"MOE \"&BR115","v":"MOE HHAge<25HHInc>200K"},"HHAgeHH25to44yrs",{"$f":"\"MOE \"&BT115","v":"MOE HHAgeHH25to44yrs"},"HHAgeHH25To44yrsHHInc<10K",{"$f":"\"MOE \"&BV115","v":"MOE HHAgeHH25To44yrsHHInc<10K"},"HHAgeHH25To44yrsHHInc10to15K",{"$f":"\"MOE \"&BX115","v":"MOE HHAgeHH25To44yrsHHInc10to15K"},"HHAgeHH25To44yrsHHInc15to20K",{"$f":"\"MOE \"&BZ115","v":"MOE HHAgeHH25To44yrsHHInc15to20K"},"HHAgeHH25To44yrsHHInc20to25K",{"$f":"\"MOE \"&CB115","v":"MOE HHAgeHH25To44yrsHHInc20to25K"},"HHAgeHH25To44yrsHHInc25to30K",{"$f":"\"MOE \"&CD115","v":"MOE HHAgeHH25To44yrsHHInc25to30K"},"HHAgeHH25To44yrsHHInc30to35K",{"$f":"\"MOE \"&CF115","v":"MOE HHAgeHH25To44yrsHHInc30to35K"},"HHAgeHH25To44yrsHHInc35to40K",{"$f":"\"MOE \"&CH115","v":"MOE HHAgeHH25To44yrsHHInc35to40K"},"HHAgeHH25To44yrsHHInc40to45K",{"$f":"\"MOE \"&CJ115","v":"MOE HHAgeHH25To44yrsHHInc40to45K"},"HHAgeHH25To44yrsHHInc45to50K",{"$f":"\"MOE \"&CL115","v":"MOE HHAgeHH25To44yrsHHInc45to50K"},"HHAgeHH25To44yrsHHInc50to60K",{"$f":"\"MOE \"&CN115","v":"MOE HHAgeHH25To44yrsHHInc50to60K"},"HHAgeHH25To44yrsHHInc60to75K",{"$f":"\"MOE \"&CP115","v":"MOE HHAgeHH25To44yrsHHInc60to75K"},"HHAgeHH25To44yrsHHInc75to100K",{"$f":"\"MOE \"&CR115","v":"MOE HHAgeHH25To44yrsHHInc75to100K"},"HHAgeHH25To44yrsHHInc100to125K",{"$f":"\"MOE \"&CT115","v":"MOE HHAgeHH25To44yrsHHInc100to125K"},"HHAgeHH25To44yrsHHInc125to150K",{"$f":"\"MOE \"&CV115","v":"MOE HHAgeHH25To44yrsHHInc125to150K"},"HHAgeHH25To44yrsHHInc150to200K",{"$f":"\"MOE \"&CX115","v":"MOE HHAgeHH25To44yrsHHInc150to200K"},"HHAge25To44yrsHHInc>200K",{"$f":"\"MOE \"&CZ115","v":"MOE HHAge25To44yrsHHInc>200K"},"HHAgeHH45To64yrs",{"$f":"\"MOE \"&DB115","v":"MOE HHAgeHH45To64yrs"},"HHAgeHH45To64yrsHHInc<10K",{"$f":"\"MOE \"&DD115","v":"MOE HHAgeHH45To64yrsHHInc<10K"},"HHAgeHH45To64yrsHHInc10to15K",{"$f":"\"MOE \"&DF115","v":"MOE HHAgeHH45To64yrsHHInc10to15K"},"HHAgeHH45To64yrsHHInc15to20K",{"$f":"\"MOE \"&DH115","v":"MOE HHAgeHH45To64yrsHHInc15to20K"},"HHAgeHH45To64yrsHHInc20to25K",{"$f":"\"MOE \"&DJ115","v":"MOE HHAgeHH45To64yrsHHInc20to25K"},"HHAgeHH45To64yrsHHInc25to30K",{"$f":"\"MOE \"&DL115","v":"MOE HHAgeHH45To64yrsHHInc25to30K"},"HHAgeHH45To64yrsHHInc30to35K",{"$f":"\"MOE \"&DN115","v":"MOE HHAgeHH45To64yrsHHInc30to35K"},"HHAgeHH45To64yrsHHInc35to40K",{"$f":"\"MOE \"&DP115","v":"MOE HHAgeHH45To64yrsHHInc35to40K"},"HHAgeHH45To64yrsHHInc40to45K",{"$f":"\"MOE \"&DR115","v":"MOE HHAgeHH45To64yrsHHInc40to45K"},"HHAgeHH45To64yrsHHInc45to50K",{"$f":"\"MOE \"&DT115","v":"MOE HHAgeHH45To64yrsHHInc45to50K"},"HHAgeHH45To64yrsHHInc50to60K",{"$f":"\"MOE \"&DV115","v":"MOE HHAgeHH45To64yrsHHInc50to60K"},"HHAgeHH45To64yrsHHInc60to75K",{"$f":"\"MOE \"&DX115","v":"MOE HHAgeHH45To64yrsHHInc60to75K"},"HHAgeHH45To64yrsHHInc75to100K",{"$f":"\"MOE \"&DZ115","v":"MOE HHAgeHH45To64yrsHHInc75to100K"},"HHAgeHH45To64yrsHHInc100to125K",{"$f":"\"MOE \"&EB115","v":"MOE HHAgeHH45To64yrsHHInc100to125K"},"HHAgeHH45To64yrsHHInc125to150K",{"$f":"\"MOE \"&ED115","v":"MOE HHAgeHH45To64yrsHHInc125to150K"},"HHAgeHH45To64yrsHHInc150to200K",{"$f":"\"MOE \"&EF115","v":"MOE HHAgeHH45To64yrsHHInc150to200K"},"HHAge45To64yrsHHInc>200K",{"$f":"\"MOE \"&EH115","v":"MOE HHAge45To64yrsHHInc>200K"},"HHAgeHH65yrsorOlder",{"$f":"\"MOE \"&EJ115","v":"MOE HHAgeHH65yrsorOlder"},"HHAgeHH65yrsorOlderHHInc<10K",{"$f":"\"MOE \"&EL115","v":"MOE HHAgeHH65yrsorOlderHHInc<10K"},"HHAgeHH65yrsorOlderHHInc10to15K",{"$f":"\"MOE \"&EN115","v":"MOE HHAgeHH65yrsorOlderHHInc10to15K"},"HHAgeHH65yrsorOlderHHInc15to20K",{"$f":"\"MOE \"&EP115","v":"MOE HHAgeHH65yrsorOlderHHInc15to20K"},"HHAgeHH65yrsorOlderHHInc20to25K",{"$f":"\"MOE \"&ER115","v":"MOE HHAgeHH65yrsorOlderHHInc20to25K"},"HHAgeHH65yrsorOlderHHInc25to30K",{"$f":"\"MOE \"&ET115","v":"MOE HHAgeHH65yrsorOlderHHInc25to30K"},"HHAgeHH65yrsorOlderHHInc30to35K",{"$f":"\"MOE \"&EV115","v":"MOE HHAgeHH65yrsorOlderHHInc30to35K"},"HHAgeHH65yrsorOlderHHInc35to40K",{"$f":"\"MOE \"&EX115","v":"MOE HHAgeHH65yrsorOlderHHInc35to40K"},"HHAgeHH65yrsorOlderHHInc40to45K",{"$f":"\"MOE \"&EZ115","v":"MOE HHAgeHH65yrsorOlderHHInc40to45K"},"HHAgeHH65yrsorOlderHHInc45to50K",{"$f":"\"MOE \"&FB115","v":"MOE HHAgeHH65yrsorOlderHHInc45to50K"},"HHAgeHH65yrsorOlderHHInc50to60K",{"$f":"\"MOE \"&FD115","v":"MOE HHAgeHH65yrsorOlderHHInc50to60K"},"HHAgeHH65yrsorOlderHHInc60to75K",{"$f":"\"MOE \"&FF115","v":"MOE HHAgeHH65yrsorOlderHHInc60to75K"},"HHAgeHH65yrsorOlderHHInc75to100K",{"$f":"\"MOE \"&FH115","v":"MOE HHAgeHH65yrsorOlderHHInc75to100K"},"HHAgeHH65yrsorOlderHHInc100to125K",{"$f":"\"MOE \"&FJ115","v":"MOE HHAgeHH65yrsorOlderHHInc100to125K"},"HHAgeHH65yrsorOlderHHInc125to150K",{"$f":"\"MOE \"&FL115","v":"MOE HHAgeHH65yrsorOlderHHInc125to150K"},"HHAgeHH65yrsorOlderHHInc150to200K",{"$f":"\"MOE \"&FN115","v":"MOE HHAgeHH65yrsorOlderHHInc150to200K"},"HHAge65yrsorOlderHHInc>200K",{"$f":"\"MOE \"&FP115","v":"MOE HHAge65yrsorOlderHHInc>200K"},"MedianHHInc",{"$f":"\"MOE \"&FR115","v":"MOE MedianHHInc"},"HH under 25 years",{"$f":"\"MOE \"&FT115","v":"MOE HH under 25 years"},"Householder 25 to 44 years",{"$f":"\"MOE \"&FV115","v":"MOE Householder 25 to 44 years"},"Householder 45 to 64 years",{"$f":"\"MOE \"&FX115","v":"MOE Householder 45 to 64 years"},"Householder 65 years and over",{"$f":"\"MOE \"&FZ115","v":"MOE Householder 65 years and over"}]
[{"$f":"VLOOKUP(DropDownList!$B$47,CntyQryCensus!$A$510:$DA$546,A$1)","v":"Atkinson"},2613,114,67,51,113,107,111,61,134,111,44,42,89,65,85,54,41,55,88,64,125,72,321,146,240,92,399,98,229,90,238,73,289,100,2613,114,0,114,0,114,0,114,0,114,0,114,0,114,0,114,0,114,0,114,0,114,0,114,0,114,0,114,0,114,0,114,0,114,0,114,637,106,0,114,0,114,0,114,0,114,0,114,0,114,0,114,0,114,21,34,33,36,137,97,99,72,188,75,96,56,47,42,16,25,1273,153,0,114,17,27,36,27,85,105,12,19,43,40,10,18,41,55,10,16,66,46,155,108,108,57,160,66,111,62,176,65,243,89,703,146,67,51,96,104,75,54,49,43,32,37,46,40,75,52,0,114,57,47,26,31,29,32,33,34,51,41,22,27,15,24,30,33,90399,15663,"**","**",102969,11079,109081,19133,32750,10097]
[]
["Number of Households by Income"]
["NAME","HHIncLessThn10k",{"$f":"\"MOE \"&B119","v":"MOE HHIncLessThn10k"},"HHInc10to15K",{"$f":"\"MOE \"&D119","v":"MOE HHInc10to15K"},"HHInc15to25K",{"$f":"\"MOE \"&F119","v":"MOE HHInc15to25K"},"HHInc25to35K",{"$f":"\"MOE \"&H119","v":"MOE HHInc25to35K"},"HHInc35to50K",{"$f":"\"MOE \"&J119","v":"MOE HHInc35to50K"},"HHInc50to75K",{"$f":"\"MOE \"&L119","v":"MOE HHInc50to75K"},"HHInc75to100K",{"$f":"\"MOE \"&N119","v":"MOE HHInc75to100K"},"HHInc100to150K",{"$f":"\"MOE \"&P119","v":"MOE HHInc100to150K"},"HHInc150to200K",{"$f":"\"MOE \"&R119","v":"MOE HHInc150to200K"},"HHIncOver200K",{"$f":"\"MOE \"&T119","v":"MOE HHIncOver200K"}]
[{"$f":"VLOOKUP(DropDownList!$B$47,CntyQryCensus!$A$510:$DA$546,A$1)","v":"Atkinson"},67,51,113,107,111,61,134,111,44,42,89,65,85,54,41,55,88,64,125,72,321,146,240,92,399,98,229,90,238,73,289,100]
[]
[]
["NAME","TotalPop",{"$f":"\"MOE \"&B123","v":"MOE TotalPop"},"Total Individuals living in Poverty",{"$f":"\"MOE \"&D123","v":"MOE Total Individuals living in Poverty"},"Under 5 yrs.",{"$f":"\"MOE \"&F123","v":"MOE Under 5 yrs."},"5 to 17 yrs.",{"$f":"\"MOE \"&H123","v":"MOE 5 to 17 yrs."},"18 to 64 yrs.",{"$f":"\"MOE \"&J123","v":"MOE 18 to 64 yrs."},"65 to 74 yrs.",{"$f":"\"MOE \"&L123","v":"MOE 65 to 74 yrs."},"75 yrs. & Over",{"$f":"\"MOE \"&N123","v":"MOE 75 yrs. & Over"},"Total Individuals  Not living Poverty",{"$f":"\"MOE \"&P123","v":"MOE Total Individuals  Not living Poverty"},"Under 5 yrs.",{"$f":"\"MOE \"&R123","v":"MOE Under 5 yrs."},"5 to 17 yrs.",{"$f":"\"MOE \"&T123","v":"MOE 5 to 17 yrs."},"18 to 64 yrs.",{"$f":"\"MOE \"&V123","v":"MOE 18 to 64 yrs."},"65 to 74 yrs.",{"$f":"\"MOE \"&X123","v":"MOE 65 to 74 yrs."},"75 yrs. & Over",{"$f":"\"MOE \"&Z123","v":"MOE 75 yrs. & Over"},"Total HH",{"$f":"\"MOE \"&AB123","v":"MOE Total HH"},"Total Households Below Poverty",{"$f":"\"MOE \"&AD123","v":"MOE Total Households Below Poverty"},"Family Households in Poverty",{"$f":"\"MOE \"&AF123","v":"MOE Family Households in Poverty"},"Married Couple Fam HH",{"$f":"\"MOE \"&AH123","v":"MOE Married Couple Fam HH"},"Other Family",{"$f":"\"MOE \"&AJ123","v":"MOE Other Family"},"Male Head of Family HH no wife",{"$f":"\"MOE \"&AL123","v":"MOE Male Head of Family HH no wife"},"Female Head of Family HH no husband",{"$f":"\"MOE \"&AN123","v":"MOE Female Head of Family HH no husband"},"Non-Family HH",{"$f":"\"MOE \"&AP123","v":"MOE Non-Family HH"},"Non-Family Male HH",{"$f":"\"MOE \"&AR123","v":"MOE Non-Family Male HH"},"Non-Family Female HH",{"$f":"\"MOE \"&AT123","v":"MOE Non-Family Female HH"},"Total Households at or Above Poverty",{"$f":"\"MOE \"&AV123","v":"MOE Total Households at or Above Poverty"},"Family Households above Poverty",{"$f":"\"MOE \"&AX123","v":"MOE Family Households above Poverty"},"Married Couple Fam HH",{"$f":"\"MOE \"&AZ123","v":"MOE Married Couple Fam HH"},"Other Family",{"$f":"\"MOE \"&BB123","v":"MOE Other Family"},"Male Head of Family HH no wife",{"$f":"\"MOE \"&BD123","v":"MOE Male Head of Family HH no wife"},"Female Head of Family HH no husband",{"$f":"\"MOE \"&BF123","v":"MOE Female Head of Family HH no husband"},"Non-Family HH",{"$f":"\"MOE \"&BH123","v":"MOE Non-Family HH"},"Non-Family Male HH",{"$f":"\"MOE \"&BJ123","v":"MOE Non-Family Male HH"},"Non-Family Female HH",{"$f":"\"MOE \"&BL123","v":"MOE Non-Family Female HH"},"Married Couple with Children Below Poverty",{"$f":"\"MOE \"&BN123","v":"MOE Married Couple with Children Below Poverty"},"Male HH with children below poverty",{"$f":"\"MOE \"&BP123","v":"MOE Male HH with children below poverty"},"Female HH with children below poverty",{"$f":"\"MOE \"&BR123","v":"MOE Female HH with children below poverty"},"Married Couple with Children At or Above Poverty",{"$f":"\"MOE \"&BT123","v":"MOE Married Couple with Children At or Above Poverty"},"Male HH with children at or above poverty",{"$f":"\"MOE \"&BV123","v":"MOE Male HH with children at or above poverty"},"Female HH with children at or above poverty",{"$f":"\"MOE \"&BX123","v":"MOE Female HH with children at or above poverty"}]
[{"$f":"VLOOKUP(DropDownList!$B$47,CntyQryCensus!$A$510:$DA$546,A$1)","v":"Atkinson"},29257,221,1042,263,26,58.240879114244144,131,236.24140195994434,622,164.34110867339311,135,69.526973183074787,128,72.917761896536561,28215,358,1547,272.64078931810627,5095,431.4811699251776,18050,742.58130867939303,1914,193.50710581268069,1609,193.21749403198459,451,132,174,68,64,50,0,15,110,57,0,114,110,57,277,101,131,84,146,64,10518,295,7807,254,1354,80,2711,324,393,135,1047,219,1214,240,2711,324,1497,206,null,null,174,68,53,46,2651,204,7807,254,3254,265]
[]
["Household Income By Tenure"]
["NAME","TotalOccHU",{"$f":"\"MOE \"&B127","v":"MOE TotalOccHU"},"OwnOccHU",{"$f":"\"MOE \"&D127","v":"MOE OwnOccHU"},"OOHUInc<5K",{"$f":"\"MOE \"&F127","v":"MOE OOHUInc<5K"},"OOHUInc5to10K",{"$f":"\"MOE \"&H127","v":"MOE OOHUInc5to10K"},"OOHUInc10to15K",{"$f":"\"MOE \"&J127","v":"MOE OOHUInc10to15K"},"OOHUInc15to20K",{"$f":"\"MOE \"&L127","v":"MOE OOHUInc15to20K"},"OOHUInc20to25K",{"$f":"\"MOE \"&N127","v":"MOE OOHUInc20to25K"},"OOHUInc25to35K",{"$f":"\"MOE \"&P127","v":"MOE OOHUInc25to35K"},"OOHUInc35to50K",{"$f":"\"MOE \"&R127","v":"MOE OOHUInc35to50K"},"OOHUInc50to75K",{"$f":"\"MOE \"&T127","v":"MOE OOHUInc50to75K"},"OOHUInc75to100K",{"$f":"\"MOE \"&V127","v":"MOE OOHUInc75to100K"},"OOHUInc100to150K",{"$f":"\"MOE \"&X127","v":"MOE OOHUInc100to150K"},"OOHUInc>150K",{"$f":"\"MOE \"&Z127","v":"MOE OOHUInc>150K"},"RentOccHU",{"$f":"\"MOE \"&AB127","v":"MOE RentOccHU"},"ROHUInc<5K",{"$f":"\"MOE \"&AD127","v":"MOE ROHUInc<5K"},"ROHUInc5to10K",{"$f":"\"MOE \"&AF127","v":"MOE ROHUInc5to10K"},"ROHUInc10to15K",{"$f":"\"MOE \"&AH127","v":"MOE ROHUInc10to15K"},"ROHUInc15to20K",{"$f":"\"MOE \"&AJ127","v":"MOE ROHUInc15to20K"},"ROHUInc20to25K",{"$f":"\"MOE \"&AL127","v":"MOE ROHUInc20to25K"},"ROHUInc25to35K",{"$f":"\"MOE \"&AN127","v":"MOE ROHUInc25to35K"},"ROHUInc35to50K",{"$f":"\"MOE \"&AP127","v":"MOE ROHUInc35to50K"},"ROHUInc50to75K",{"$f":"\"MOE \"&AR127","v":"MOE ROHUInc50to75K"},"ROHUInc75to100K",{"$f":"\"MOE \"&AT127","v":"MOE ROHUInc75to100K"},"ROHUInc100to150K",{"$f":"\"MOE \"&AV127","v":"MOE ROHUInc100to150K"},"ROHUInc>150K",{"$f":"\"MOE \"&AX127","v":"MOE ROHUInc>150K"},"Total OCC HUInc<5K",{"$f":"\"MOE \"&AZ127","v":"MOE Total OCC HUInc<5K"},"Total OCC HUInc5to10K",{"$f":"\"MOE \"&BB127","v":"MOE Total OCC HUInc5to10K"},"Total OCC HUInc10to15K",{"$f":"\"MOE \"&BD127","v":"MOE Total OCC HUInc10to15K"},"Total OCC HUInc15to20K",{"$f":"\"MOE \"&BF127","v":"MOE Total OCC HUInc15to20K"},"Total OCC HUInc20to25K",{"$f":"\"MOE \"&BH127","v":"MOE Total OCC HUInc20to25K"},"Total OCC HUInc25to35K",{"$f":"\"MOE \"&BJ127","v":"MOE Total OCC HUInc25to35K"},"Total OCC HUInc35to50K",{"$f":"\"MOE \"&BL127","v":"MOE Total OCC HUInc35to50K"},"Total OCC HUInc50to75K",{"$f":"\"MOE \"&BN127","v":"MOE Total OCC HUInc50to75K"},"Total OCC HUInc75to100K",{"$f":"\"MOE \"&BP127","v":"MOE Total OCC HUInc75to100K"},"Total OCC HUInc100to150K",{"$f":"\"MOE \"&BR127","v":"MOE Total OCC HUInc100to150K"},"Total OCC HUInc>150K",{"$f":"\"MOE \"&BT127","v":"MOE Total OCC HUInc>150K"},"MedHHInc",{"$f":"\"MOE \"&BV127","v":"MOE MedHHInc"},"MedOwnOccHHInc",{"$f":"\"MOE \"&BX127","v":"MOE MedOwnOccHHInc"},"MedRentOccHHInc",{"$f":"\"MOE \"&BZ127","v":"MOE MedRentOccHHInc"}]
[{"$f":"VLOOKUP(DropDownList!$B$47,CntyQryCensus!$A$510:$DA$546,A$1)","v":"Atkinson"},2613,114,2211,142,0,114,38,45,32,36,93,52,52,48,133,71,152,71,316,97,240,92,628,124,527,127,402,127,13,20,16,26,81,103,18,30,82,102,0,114,62,62,130,121,0,114,0,114,0,114,13,115.7410903698423,54,51.97114584074513,113,109.11003620199197,111,60.033324079214538,134,112.72976536833562,133,134.30189872075525,214,94.260277954183863,446,155.08062419270823,240,146.49232061783991,628,168.43990026119107,527,170.66048165876012,90399,15663,103906,9585,22226,43806]
[]
["Population Data"]
["NAME","Total Population","MOE Total Population","Under 15 Years","MOE Under 15 yrs.","15 to 24 yrs.","MOE 15 to 24 yrs.","25 to 34 yrs.","MOE 25 to 34 yrs.","35 to 44 yrs.","MOE 35 to 44 yrs.","45 to 54 yrs.","MOE 45 to 54 yrs.","55 to 64 yrs.","MOE 55 to 64 yrs.","65 to 74 yrs.","MOE 65 to 74 yrs.","Over 74 yrs. ","MOE Over 74 yrs. ","TotalHH","MOE TotalHH","FamilyHH","MOE FamilyHH","MarriedFamilyHH","MOE MarriedFamilyHH","SingleFamilyHH","MOE SingleFamilyHH","Sfamily-MaleHH","MOE Sfamily-MaleHH","Sfamily-FemaleHH","MOE Sfamily-FemaleHH","NonFamilyHH","MOE NonFamilyHH","NonFamilyHH-LivingAlone","MOE NonFamilyHH-LivingAlone","NonFamilyHH-NotLivingAlone","MOE NonFamilyHH-NotLivingAlone","PopRaceWhite","MOE PopRaceWhite","PopRaceBlack","MOE PopRaceBlack","PopRaceAmerican Indian","MOE PopRaceAmerican Indian","PopRaceAsian &Pacific Is.","MOE PopRaceAsian &Pacific Is.","PopRaceOther*","MOE PopRaceOther*","PopRaceHispanic or Latino:","MOE PopRaceHispanic or Latino:","MedianAgeTotalPop","MOE MedianAgeTotalPop","MedianAgeMale","MOE MedianAgeMale","MedianAgeFemale","MOE MedianAgeFemale","AvgHHSizeTotal","MOE AvgHHSizeTotal","AvgHHSizeFamilyHH","MOE AvgHHSizeFamilyHH","AvgHHSizeNonFamilyHH","MOE AvgHHSizeNonFamilyHH"]
[{"$f":"VLOOKUP(DropDownList!$B$47,CntyQryCensus!$A$510:$DA$546,A$1)","v":"Atkinson"},6646,22,1164,207.96874765214125,630,224.34794405119919,441,158.08225706890701,956,159.91872935963443,1254,210.40437257813821,1099,166.5653025092561,556,138.78040207464454,546,154.12657136263039,2613,114,1927,128,1771,145,156,71,29,26,127,69,686,175,630,167,56,50,6419,171,84,121,17,27,0,161.22034611053283,26,118.68024266911489,100,76,46.3,1.9,45.4,3.3,47.3,2.7,2.5434366628396479,0.11,3.0487804878048781,0.22972831433355057,0,0.16618075801749271]
[]
["Nativity and Prior Place of Residence"]
["NAME","TotalPop",{"$f":"\"MOE \"&B135","v":"MOE TotalPop"},"Native:",{"$f":"\"MOE \"&D135","v":"MOE Native:"},"NatBornInStateOfResidence",{"$f":"\"MOE \"&F135","v":"MOE NatBornInStateOfResidence"},"Born in other state in the United States:",{"$f":"\"MOE \"&H135","v":"MOE Born in other state in the United States:"},"Northeast",{"$f":"\"MOE \"&J135","v":"MOE Northeast"},"Midwest",{"$f":"\"MOE \"&L135","v":"MOE Midwest"},"South",{"$f":"\"MOE \"&N135","v":"MOE South"},"West",{"$f":"\"MOE \"&P135","v":"MOE West"},"Born outside the United States:",{"$f":"\"MOE \"&R135","v":"MOE Born outside the United States:"},"Puerto Rico",{"$f":"\"MOE \"&T135","v":"MOE Puerto Rico"},"U.S. Island Areas",{"$f":"\"MOE \"&V135","v":"MOE U.S. Island Areas"},"Born abroad of American parent(s)",{"$f":"\"MOE \"&X135","v":"MOE Born abroad of American parent(s)"},"Foreign born:",{"$f":"\"MOE \"&Z135","v":"MOE Foreign born:"},"Naturalized U.S. citizen",{"$f":"\"MOE \"&AB135","v":"MOE Naturalized U.S. citizen"},"Not a U.S. citizen",{"$f":"\"MOE \"&AD135","v":"MOE Not a U.S. citizen"},"CurrentResidenceTotal:",{"$f":"\"MOE \"&AF135","v":"MOE CurrentResidenceTotal:"},"SameHouse:",{"$f":"\"MOE \"&AH135","v":"MOE SameHouse:"},"DifferentHouse:",{"$f":"\"MOE \"&AJ135","v":"MOE DifferentHouse:"},"DiffHouseInNH",{"$f":"\"MOE \"&AL135","v":"MOE DiffHouseInNH"},"DiffHouseInNHSameCnty",{"$f":"\"MOE \"&AN135","v":"MOE DiffHouseInNHSameCnty"},"DiffHouseInNHDiffCnty",{"$f":"\"MOE \"&AP135","v":"MOE DiffHouseInNHDiffCnty"},"DiffHouseInDiffState",{"$f":"\"MOE \"&AR135","v":"MOE DiffHouseInDiffState"},"DiffHouseInElsewhere",{"$f":"\"MOE \"&AT135","v":"MOE DiffHouseInElsewhere"}]
[{"$f":"VLOOKUP(DropDownList!$B$47,CntyQryCensus!$A$510:$DA$546,A$1)","v":"Atkinson"},29423,51,26792,529,3315,431,23293,661,21592,663,552,233,834,215,315,134,184,94,97,73,0,114,87,64,2631,528,1525,426,1106,368,26638,506,2483,577.86330563551098,1185,416.36762602296545,1063,399,122,119,1168,390,130,92]
[]
["School Enrollment - Education"]
["NAME","Total Pop 3 Years and Older","MOE Total Pop 3 Years and Older","SchEnrlPop3yrOver",{"$f":"\"MOE \"&D139","v":"MOE SchEnrlPop3yrOver"},"TotalEnrollNursy&Kinder",{"$f":"\"MOE \"&F139","v":"MOE TotalEnrollNursy&Kinder"},"NurserSchEnrl",{"$f":"\"MOE \"&H139","v":"MOE NurserSchEnrl"},"KinderSchEnrl",{"$f":"\"MOE \"&J139","v":"MOE KinderSchEnrl"},"ElemSchEnrl (1-8)",{"$f":"\"MOE \"&L139","v":"MOE ElemSchEnrl (1-8)"},"HighSchEnrl(9-12)",{"$f":"\"MOE \"&N139","v":"MOE HighSchEnrl(9-12)"},"TotalElementry&HSEnroll",{"$f":"\"MOE \"&P139","v":"MOE TotalElementry&HSEnroll"},"CollGradSchEnrl",{"$f":"\"MOE \"&R139","v":"MOE CollGradSchEnrl"},"PopNotEnrolled","MOE PopNotEnrolled","Pop25yrsOver",{"$f":"\"MOE \"&V139","v":"MOE Pop25yrsOver"},"EduAtain<9grd",{"$f":"\"MOE \"&X139","v":"MOE EduAtain<9grd"},"EduAtainHSnoDip",{"$f":"\"MOE \"&Z139","v":"MOE EduAtainHSnoDip"},"EduAtainHSgrad",{"$f":"\"MOE \"&AB139","v":"MOE EduAtainHSgrad"},"EduAtainCollNoDeg",{"$f":"\"MOE \"&AD139","v":"MOE EduAtainCollNoDeg"},"EduAtainAssocDeg",{"$f":"\"MOE \"&AF139","v":"MOE EduAtainAssocDeg"},"EduAtainBachDeg",{"$f":"\"MOE \"&AH139","v":"MOE EduAtainBachDeg"},"EduAtainGradProfDeg",{"$f":"\"MOE \"&AJ139","v":"MOE EduAtainGradProfDeg"}]
[{"$f":"VLOOKUP(DropDownList!$B$47,CntyQryCensus!$A$510:$DA$546,A$1)","v":"Atkinson"},28402,261,7744,440,799,161.96604582442581,418,117,381,112,3237,351.09542862304545,1984,283,5221,450.95121687384324,1724,271.93565415369864,20658,441,20080,403,484,130.14222988715076,1488,302.03476621077914,6309,491.8089059787348,3733,392.1504813206277,2267,283.80451018262551,3686,376.94164004524629,1145,250.59329599971346]
[]
["Occupied Owner Housing Value"]
["NAME","Estimate; Total:","Margin of Error; Total:","Estimate; Total: - Less than $10,000","Margin of Error; Total: - Less than $10,000","Estimate; Total: - $10,000 to $14,999","Margin of Error; Total: - $10,000 to $14,999","Estimate; Total: - $15,000 to $19,999","Margin of Error; Total: - $15,000 to $19,999","Estimate; Total: - $20,000 to $24,999","Margin of Error; Total: - $20,000 to $24,999","Estimate; Total: - $25,000 to $29,999","Margin of Error; Total: - $25,000 to $29,999","Estimate; Total: - $30,000 to $34,999","Margin of Error; Total: - $30,000 to $34,999","Estimate; Total: - $35,000 to $39,999","Margin of Error; Total: - $35,000 to $39,999","Estimate; Total: - $40,000 to $49,999","Margin of Error; Total: - $40,000 to $49,999","Estimate; Total: - $50,000 to $59,999","Margin of Error; Total: - $50,000 to $59,999","Estimate; Total: - $60,000 to $69,999","Margin of Error; Total: - $60,000 to $69,999","Estimate; Total: - $70,000 to $79,999","Margin of Error; Total: - $70,000 to $79,999","Estimate; Total: - $80,000 to $89,999","Margin of Error; Total: - $80,000 to $89,999","Estimate; Total: - $90,000 to $99,999","Margin of Error; Total: - $90,000 to $99,999","Estimate; Total: - $100,000 to $124,999","Margin of Error; Total: - $100,000 to $124,999","Estimate; Total: - $125,000 to $149,999","Margin of Error; Total: - $125,000 to $149,999","Estimate; Total: - $150,000 to $174,999","Margin of Error; Total: - $150,000 to $174,999","Estimate; Total: - $175,000 to $199,999","Margin of Error; Total: - $175,000 to $199,999","Estimate; Total: - $200,000 to $249,999","Margin of Error; Total: - $200,000 to $249,999","Estimate; Total: - $250,000 to $299,999","Margin of Error; Total: - $250,000 to $299,999","Estimate; Total: - $300,000 to $399,999","Margin of Error; Total: - $300,000 to $399,999","Estimate; Total: - $400,000 to $499,999","Margin of Error; Total: - $400,000 to $499,999","Estimate; Total: - $500,000 to $749,999","Margin of Error; Total: - $500,000 to $749,999","Estimate; Total: - $750,000 to $999,999","Margin of Error; Total: - $750,000 to $999,999","Estimate; Total: - $1,000,000 to $1,499,999","Margin of Error; Total: - $1,000,000 to $1,499,999","Estimate; Total: - $1,500,000 to $1,999,999","Margin of Error; Total: - $1,500,000 to $1,999,999","Estimate; Total: - $2,000,000 or more","Margin of Error; Total: - $2,000,000 or more","MedianOwnOCCHomeValue","MOE MedianOwnOCCHomeValue","OnwerOccHsU","MOE OnwerOccHsU","OwnerCosts>20PctHHInc","MOE OwnerCosts>20PctHHInc","OwnerCosts20to29.9PctHHInc","MOE OwnerCosts20to29.9PctHHInc","OwnerCosts<30PctHHInc","MOE OwnerCosts<30PctHHInc","OwnerCosts>30PctHHInc","MOE OwnerCosts>30PctHHInc","OwnerCosts30to34.9PctHHInc","MOE OwnerCosts30to34.9PctHHInc","OwnerCosts<35PctHHInc","MOE OwnerCosts<35PctHHInc","OwnerCosts>35PctHHInc","MOE OwnerCosts>35PctHHInc","OwnerCosts>50PctHHInc","MOE OwnerCosts>50PctHHInc","OwnerCostsPctNotcomputed","MOE OwnerCostsPctNotcomputed","OwnerOHUHhInc<20k","MOE OwnerOHUHhInc<20k","OwnerOHUHhInc<20kHCosts<20pct","MOE OwnerOHUHhInc<20kHCosts<20pct","OwnerOHUHhInc<20kHCosts20to29pct","MOE OwnerOHUHhInc<20kHCosts20to29pct","OwnerOHUHhInc>20kHCosts30pct","MOE OwnerOHUHhInc>20kHCosts30pct","OwnerOHUHhInc20kTo34999","MOE OwnerOHUHhInc20kTo34999","OwnerOHUHhInc20kTo34999HCosts<20pct","MOE OwnerOHUHhInc20kTo34999HCosts<20pct","OwnerOHUHhInc20kTo34999HCosts20to29pct","MOE OwnerOHUHhInc20kTo34999HCosts20to29pct","OwnerOHUHhInc20kTo34999HCosts30pct","MOE OwnerOHUHhInc20kTo34999HCosts30pct","OwnerOHUHhInc35kTo49999","MOE OwnerOHUHhInc35kTo49999","OwnerOHUHhInc35kTo49999HCosts<20pct","MOE OwnerOHUHhInc35kTo49999HCosts<20pct","OwnerOHUHhInc35kTo49999HCosts20to29pct","MOE OwnerOHUHhInc35kTo49999HCosts20to29pct","OwnerOHUHhInc35kTo49999HCosts30pct","MOE OwnerOHUHhInc35kTo49999HCosts30pct","OwnerOHUHhInc50kTo74999","MOE OwnerOHUHhInc50kTo74999","OwnerOHUHhInc50kTo74999HCosts<20pct","MOE OwnerOHUHhInc50kTo74999HCosts<20pct","OwnerOHUHhInc50kTo74999HCosts20to29pct","MOE OwnerOHUHhInc50kTo74999HCosts20to29pct","OwnerOHUHhInc50kTo74999HCosts30pct","MOE OwnerOHUHhInc50kTo74999HCosts30pct","OwnerOHUHhInc>75000","MOE OwnerOHUHhInc>75000","OwnerOHUHhInc>75000HCosts<20pct","MOE OwnerOHUHhInc>75000HCosts<20pct","OwnerOHUHhInc>75000HCosts20to29pct","MOE OwnerOHUHhInc>75000HCosts20to29pct","OwnerOHUHhInc>75000HCosts30pct","MOE OwnerOHUHhInc>75000HCosts30pct","ZeroOrNegativeIncome","MOE ZeroOrNegativeIncome"]
[{"$f":"VLOOKUP(DropDownList!$B$47,CntyQryCensus!$A$510:$DA$546,A$1)","v":"Atkinson"},14,23,0,114,30,31,90,59,16,25,11,17,0,114,43,51,139,85,43,38,11,18,88,68,60,47,266,106,197,75,132,62,246,83,912,193,1509,301,2719,285,1130,213,853,180,145,66,28,32]
[]
["Occupied Rental Housing Value"]
["NAME","RntrOccHU","MOE RntrOccHU","RntrOccHUwRent","MOE RntrOccHUwRent","ROHUGRent<100","MOE ROHUGRent<100","ROHUGRent100to149","MOE ROHUGRent100to149","ROHUGRent150to199","MOE ROHUGRent150to199","ROHUGRent200to249","MOE ROHUGRent200to249","ROHUGRent250to299","MOE ROHUGRent250to299","ROHUGRent300to349","MOE ROHUGRent300to349","ROHUGRent350to399","MOE ROHUGRent350to399","ROHUGRent400to449","MOE ROHUGRent400to449","ROHUGRent450to499","MOE ROHUGRent450to499","ROHUGRent500to549","MOE ROHUGRent500to549","ROHUGRent550to599","MOE ROHUGRent550to599","ROHUGRent600to649","MOE ROHUGRent600to649","ROHUGRent650to699","MOE ROHUGRent650to699","ROHUGRent700to749","MOE ROHUGRent700to749","ROHUGRent750to799","MOE ROHUGRent750to799","ROHUGRent800to899","MOE ROHUGRent800to899","ROHUGRent900to999","MOE ROHUGRent900to999","ROHUGRent1000to1249","MOE ROHUGRent1000to1249","ROHUGRent1250to1499","MOE ROHUGRent1250to1499","ROHUGRent1500to1999","MOE ROHUGRent1500to1999","ROHUGRent2000-2499","MOE ROHUGRent2000-2499","ROHUGRent2500-2999","MOE ROHUGRent2500-2999","ROHUGRent3000-3499","MOE ROHUGRent3000-3499","ROHUGRent3500<","MOE ROHUGRent3500<","ROHUNoGRent","MOE ROHUNoGRent","MedianGrossRnt","MOE MedianGrossRnt","H73RenterOccHU","MOE H73RenterOccHU","H73ROHUHhInc<10k","MOE H73ROHUHhInc<10k","H73ROHUHhInc<10kRnt<20pct","MOE H73ROHUHhInc<10kRnt<20pct","H73ROHUHhInc<10kRnt20to25pct","MOE H73ROHUHhInc<10kRnt20to25pct","H73ROHUHhInc<10kRnt25to30pct","MOE H73ROHUHhInc<10kRnt25to30pct","H73ROHUHhInc<10kRnt30to35pct","MOE H73ROHUHhInc<10kRnt30to35pct","H73ROHUHhInc<10kRnt35to39.9","MOE H73ROHUHhInc<10kRnt35to39.9","H73ROHUHhInc<10kRnt40to49.9","MOE H73ROHUHhInc<10kRnt40to49.9","H73ROHUHhInc<10kRnt>50pct","MOE H73ROHUHhInc<10kRnt>50pct","H73ROHUHhInc<10kPctNotComput","MOE H73ROHUHhInc<10kPctNotComput","H73ROHUHhInc10to20k","MOE H73ROHUHhInc10to20k","H73ROHUHhInc10to20kRnt<20pct","MOE H73ROHUHhInc10to20kRnt<20pct","H73ROHUHhInc10to20kRnt20to25pct","MOE H73ROHUHhInc10to20kRnt20to25pct","H73ROHUHhInc10to20kRnt25to30pct","MOE H73ROHUHhInc10to20kRnt25to30pct","H73ROHUHhInc10to20kRnt30to35pct","MOE H73ROHUHhInc10to20kRnt30to35pct","H73ROHUHhInc10to20kRnt35to39.9","MOE H73ROHUHhInc10to20kRnt35to39.9","H73ROHUHhInc10to20kRnt40to49.9","MOE H73ROHUHhInc10to20kRnt40to49.9","H73ROHUHhInc10to20kRnt>50pct","MOE H73ROHUHhInc10to20kRnt>50pct","H73ROHUHhInc10to20kRntPctNC","MOE H73ROHUHhInc10to20kRntPctNC","H73ROHUHhInc20to34.9k","MOE H73ROHUHhInc20to34.9k","H73ROHUHhInc20to34.9kRnt<20pct","MOE H73ROHUHhInc20to34.9kRnt<20pct","H73ROHUHhInc20to34.9kRnt20to25pct","MOE H73ROHUHhInc20to34.9kRnt20to25pct","H73ROHUHhInc20to34.9kRnt25to30pct","MOE H73ROHUHhInc20to34.9kRnt25to30pct","H73ROHUHhInc20to34.9kRnt30to35pct","MOE H73ROHUHhInc20to34.9kRnt30to35pct","H73ROHUHhInc20to34.9kRnt35to39.9","MOE H73ROHUHhInc20to34.9kRnt35to39.9","H73ROHUHhInc20to34.9kRnt40to49.9","MOE H73ROHUHhInc20to34.9kRnt40to49.9","H73ROHUHhInc20to34.9kRnt>50pct","MOE H73ROHUHhInc20to34.9kRnt>50pct","H73ROHUHhInc20to34.9kRntPctNC","MOE H73ROHUHhInc20to34.9kRntPctNC","H73ROHUHhInc35to49.9k","MOE H73ROHUHhInc35to49.9k","H73ROHUHhInc35to49.9kRnt<20pct","MOE H73ROHUHhInc35to49.9kRnt<20pct","H73ROHUHhInc35to49.9kRnt20to25pct","MOE H73ROHUHhInc35to49.9kRnt20to25pct","H73ROHUHhInc35to49.9kRnt25to30pct","MOE H73ROHUHhInc35to49.9kRnt25to30pct","H73ROHUHhInc35to49.9kRnt30to35pct","MOE H73ROHUHhInc35to49.9kRnt30to35pct","H73ROHUHhInc35to49.9kRnt35to39.9","MOE H73ROHUHhInc35to49.9kRnt35to39.9","H73ROHUHhInc35to49.9kRnt40to49.9","MOE H73ROHUHhInc35to49.9kRnt40to49.9","H73ROHUHhInc35to49.9kRnt>50pct","MOE H73ROHUHhInc35to49.9kRnt>50pct","H73ROHUHhInc35to49.9kRntPctNC","MOE H73ROHUHhInc35to49.9kRntPctNC","H73ROHUHhInc50to74.9k","MOE H73ROHUHhInc50to74.9k","H73ROHUHhInc50to74.9kRnt<20pct","MOE H73ROHUHhInc50to74.9kRnt<20pct","H73ROHUHhInc50to74.9kRnt20to25pct","MOE H73ROHUHhInc50to74.9kRnt20to25pct","H73ROHUHhInc50to74.9kRnt25to30pct","MOE H73ROHUHhInc50to74.9kRnt25to30pct","H73ROHUHhInc50to74.9kRnt30to35pct","MOE H73ROHUHhInc50to74.9kRnt30to35pct","H73ROHUHhInc50to74.9kRnt35to39.9","MOE H73ROHUHhInc50to74.9kRnt35to39.9","H73ROHUHhInc50to74.9kRnt40to49.9","MOE H73ROHUHhInc50to74.9kRnt40to49.9","H73ROHUHhInc50to74.9kRnt>50pct","MOE H73ROHUHhInc50to74.9kRnt>50pct","H73ROHUHhInc50to74.9kRntPctNC","MOE H73ROHUHhInc50to74.9kRntPctNC","H73ROHUHhInc75to99.9k","MOE H73ROHUHhInc75to99.9k","H73ROHUHhInc75to99.9kRnt<20pct","MOE H73ROHUHhInc75to99.9kRnt<20pct","H73ROHUHhInc75to99.9kRnt20to25pct","MOE H73ROHUHhInc75to99.9kRnt20to25pct","H73ROHUHhInc75to99.9kRnt25to30pct","MOE H73ROHUHhInc75to99.9kRnt25to30pct","H73ROHUHhInc75to99.9kRnt30to35pct","MOE H73ROHUHhInc75to99.9kRnt30to35pct","H73ROHUHhInc75to99.9kRnt35to39.9","MOE H73ROHUHhInc75to99.9kRnt35to39.9","H73ROHUHhInc75to99.9kRnt40to49.9","MOE H73ROHUHhInc75to99.9kRnt40to49.9","H73ROHUHhInc75to99.9kRnt>50pct","MOE H73ROHUHhInc75to99.9kRnt>50pct","H73ROHUHhInc75to99.9kRntPctNC","MOE H73ROHUHhInc75to99.9kRntPctNC","H73ROHUHhInc>100k","MOE H73ROHUHhInc>100k","H73ROHUHhInc>100kRnt<20pct","MOE H73ROHUHhInc>100kRnt<20pct","H73ROHUHhInc>100kRnt20to25pct","MOE H73ROHUHhInc>100kRnt20to25pct","H73ROHUHhInc>100kRnt25to30pct","MOE H73ROHUHhInc>100kRnt25to30pct","H73ROHUHhInc>100kRnt30to35pct","MOE H73ROHUHhInc>100kRnt30to35pct","H73ROHUHhInc>100kRnt35to39.9","MOE H73ROHUHhInc>100kRnt35to39.9","H73ROHUHhInc>100kRnt40to49.9","MOE H73ROHUHhInc>100kRnt40to49.9","H73ROHUHhInc>100kRnt>50pct","MOE H73ROHUHhInc>100kRnt>50pct","H73ROHUHhInc>100kRntPctNC","MOE H73ROHUHhInc>100kRntPctNC"]
[{"$f":"VLOOKUP(DropDownList!$B$47,CntyQryCensus!$A$510:$DA$546,A$1)","v":"Atkinson"},211,92,211,92,0,16,0,16,0,16,0,16,0,16,0,16,0,16,0,16,0,16,34,54,0,16,0,16,0,16,0,16,0,16,33,52,22,34,8,14,9,14,19,30,80,66,6,12,1059,86,2287,261,129,64,13,20,0,114,0,114,0,114,116,62,0,114,208,88,12,20,74,60,30,23,12,20,80,52,0,114,357,127,0,114,20,25,35,55,46,39,241,113,15,23,643,184,0,114,164,93,167,115,110,89,202,123,0,114,448,149,114,96,147,103,92,80,39,30,19,22,37,33,278,133,197,116,13,21,38,61,0,114,12,19,18,28,224,138,200,134,0,114,0,114,0,114,0,114,24,29,0,15,0,15,0,15,0,15,0,15,15,24,15,24,0,15,0,15,0,15,0,15,0,15,0,15,0,15,0,16,0,16,0,16]
[]
[]
[]
[]
[]
["Occupied Rental Housing Cost Burdern All Incomes"]
["NAME","RenterOccHsU",{"$f":"\"MOE \"&B155","v":"MOE RenterOccHsU"},"GRnt<20PctHHInc",{"$f":"\"MOE \"&D155","v":"MOE GRnt<20PctHHInc"},"GRnt20to249PctHHInc",{"$f":"\"MOE \"&F155","v":"MOE GRnt20to249PctHHInc"},"GRnt25to29.9PctHHInc",{"$f":"\"MOE \"&H155","v":"MOE GRnt25to29.9PctHHInc"},"GRnt<30PctHHInc",{"$f":"\"MOE \"&J155","v":"MOE GRnt<30PctHHInc"},"GRnt>30PctHHInc",{"$f":"\"MOE \"&L155","v":"MOE GRnt>30PctHHInc"},"GRnt30to349PctHHInc",{"$f":"\"MOE \"&N155","v":"MOE GRnt30to349PctHHInc"},"GRnt<35PctHHInc",{"$f":"\"MOE \"&P155","v":"MOE GRnt<35PctHHInc"},"GRnt>35PctHHInc",{"$f":"\"MOE \"&R155","v":"MOE GRnt>35PctHHInc"},"GRnt>50PctHHInc",{"$f":"\"MOE \"&T155","v":"MOE GRnt>50PctHHInc"},"HCB Not Calculated",{"$f":"\"MOE \"&V155","v":"MOE HCB Not Calculated"}]
[{"$f":"VLOOKUP(DropDownList!$B$47,CntyQryCensus!$A$510:$DA$552,A$1)","v":"Atkinson"},2287,261,536,179.88051589874874,418,148,362,166,1316,286.03671093060763,877,202.73874814647544,207,98,1523,302.35905807499796,670,177.47957628978045,451,143,94,56]
[]
["Income By Household Type and Tenure"]
["NAME","TotalFamilyHouseholds",{"$f":"\"MOE \"&B159","v":"MOE TotalFamilyHouseholds"},"FamInc<10K",{"$f":"\"MOE \"&D159","v":"MOE FamInc<10K"},"FamInc10to15K",{"$f":"\"MOE \"&F159","v":"MOE FamInc10to15K"},"FamInc15to20K",{"$f":"\"MOE \"&H159","v":"MOE FamInc15to20K"},"FamInc20to25K",{"$f":"\"MOE \"&J159","v":"MOE FamInc20to25K"},"FamInc25to30K",{"$f":"\"MOE \"&L159","v":"MOE FamInc25to30K"},"FamInc30to35K",{"$f":"\"MOE \"&N159","v":"MOE FamInc30to35K"},"FamInc35to40K",{"$f":"\"MOE \"&P159","v":"MOE FamInc35to40K"},"FamInc40to45K",{"$f":"\"MOE \"&R159","v":"MOE FamInc40to45K"},"FamInc45to50K",{"$f":"\"MOE \"&T159","v":"MOE FamInc45to50K"},"FamInc50to60K",{"$f":"\"MOE \"&V159","v":"MOE FamInc50to60K"},"FamInc60to75K",{"$f":"\"MOE \"&X159","v":"MOE FamInc60to75K"},"FamInc75to100K",{"$f":"\"MOE \"&Z159","v":"MOE FamInc75to100K"},"FamInc100to125K",{"$f":"\"MOE \"&AB159","v":"MOE FamInc100to125K"},"FamInc125to150K",{"$f":"\"MOE \"&AD159","v":"MOE FamInc125to150K"},"FamInc150to200K",{"$f":"\"MOE \"&AF159","v":"MOE FamInc150to200K"},"FamInc>200K",{"$f":"\"MOE \"&AH159","v":"MOE FamInc>200K"},"MedFamInc",{"$f":"\"MOE \"&AJ159","v":"MOE MedFamInc"},"TotalNonNonFamilyHouseholds",{"$f":"\"MOE \"&AL159","v":"MOE TotalNonNonFamilyHouseholds"},"NonFamInc<10K",{"$f":"\"MOE \"&AN159","v":"MOE NonFamInc<10K"},"NonFamInc10to15K",{"$f":"\"MOE \"&AP159","v":"MOE NonFamInc10to15K"},"NonFamInc15to20K",{"$f":"\"MOE \"&AR159","v":"MOE NonFamInc15to20K"},"NonFamInc20to25K",{"$f":"\"MOE \"&AT159","v":"MOE NonFamInc20to25K"},"NonFamInc25to30K",{"$f":"\"MOE \"&AV159","v":"MOE NonFamInc25to30K"},"NonFamInc30to35K",{"$f":"\"MOE \"&AX159","v":"MOE NonFamInc30to35K"},"NonFamInc35to40K",{"$f":"\"MOE \"&AZ159","v":"MOE NonFamInc35to40K"},"NonFamInc40to45K",{"$f":"\"MOE \"&BB159","v":"MOE NonFamInc40to45K"},"NonFamInc45to50K",{"$f":"\"MOE \"&BD159","v":"MOE NonFamInc45to50K"},"NonFamInc50to60K",{"$f":"\"MOE \"&BF159","v":"MOE NonFamInc50to60K"},"NonFamInc60to75K",{"$f":"\"MOE \"&BH159","v":"MOE NonFamInc60to75K"},"NonFamInc75to100K",{"$f":"\"MOE \"&BJ159","v":"MOE NonFamInc75to100K"},"NonFamInc100to125K",{"$f":"\"MOE \"&BL159","v":"MOE NonFamInc100to125K"},"NonFamInc125to150K",{"$f":"\"MOE \"&BN159","v":"MOE NonFamInc125to150K"},"NonFamInc150to200K",{"$f":"\"MOE \"&BP159","v":"MOE NonFamInc150to200K"},"NonFamInc>200K",{"$f":"\"MOE \"&BR159","v":"MOE NonFamInc>200K"},"MedNonFamInc",{"$f":"\"MOE \"&BT159","v":"MOE MedNonFamInc"},"PerCapitaIncome","MOE PerCapitaIncome"]
[{"$f":"VLOOKUP(DropDownList!$B$47,CntyQryCensus!$A$510:$DA$552,A$1)","v":"Atkinson"},1927,128,13,20,0,114,29,31,35,40,12,19,28,31,74,51,41,55,57,47,106,61,272,117,244,88,349,86,165,78,229,72,273,96,104094,8949,686,175,54,51,113,107,82,54,99,104,32,37,61,51,11,18,0,114,31,39,19,29,61,94,10,16,58,51,44,36,11,18,0,114,22374,14813,46500,13893]
[]
[]
[]
["2010 Census"]
[]
["TownName","LOGRECNO","COUNTY","TotalPop","TotalPop1Race","TotalPopWhite","TotalPopAfricanAmerican","TotalPopAmericanIndAlaska","TotalPopAsian","TotalPopNativeHawaiianPIsland","TotalPopSomeOtherRace","TotalPopTwoOrMoreRaces","TotalPopHispanicLatino","TotalNonHispanicLatino","TotPopUnder15yrs","TotPop15to24yrs","TotPop25to34yrs","TotPop35to44yrs","TotPop45to54yrs","TotPop55to64yrs","TotPop65to74yrs","TotPopOver74yrs","MedianAge","MedianAgeMale","MedianAgeFemale","TotalHH","TotalPopInHouseholds","TotalPopInFamilyHH","TotalPopInNonFamilyHH","AvgHHSize","TotalFamilyHH","TotalFamilyHHSpouse","TotalSingleParentHH","TotalNonFamilyHH","AvgFamilyHHSize","AvgNonFamilyHHSize","AverageHHSizeOwnerOccupied","AverageHHSizeRentalOccupied","TotalHousingUnits","TotalOccupiedHU","TotalOwnerOccupiedHUs","TotalRentalOccupiedHU","TotalVacantHU","VacantHUForRent","VacantHURentNotOccupied","VacantHUForSale","VacantHUsSoldNotOccupied","VacantHUSeasonalRecreational","VacantHUsAllOtherVacants","HomeOwnerVacancyRate","HomeRentalVacancyRate","Total HH","Total Single Family HU","Total Multi-Family HU","Total Manufacture HU"]
[{"$f":"VLOOKUP(DropDownList!$B$47,CntyQryCensus!$A$551:$DA$587,A$1)","v":"Atkinson"},{"$f":"VLOOKUP(DropDownList!$B$47,CntyQryCensus!$A$551:$DA$587,B$1)","v":"0000179"},{"$f":"VLOOKUP(DropDownList!$B$47,CntyQryCensus!$A$551:$DA$587,C$1)","v":"015"},{"$f":"VLOOKUP(DropDownList!$B$47,CntyQryCensus!$A$551:$DA$587,D$1)","v":6751},{"$f":"VLOOKUP(DropDownList!$B$47,CntyQryCensus!$A$551:$DA$587,E$1)","v":6701},{"$f":"VLOOKUP(DropDownList!$B$47,CntyQryCensus!$A$551:$DA$587,F$1)","v":6583},{"$f":"VLOOKUP(DropDownList!$B$47,CntyQryCensus!$A$551:$DA$587,G$1)","v":34},{"$f":"VLOOKUP(DropDownList!$B$47,CntyQryCensus!$A$551:$DA$587,H$1)","v":3},{"$f":"VLOOKUP(DropDownList!$B$47,CntyQryCensus!$A$551:$DA$587,I$1)","v":64},{"$f":"VLOOKUP(DropDownList!$B$47,CntyQryCensus!$A$551:$DA$587,J$1)","v":1},{"$f":"VLOOKUP(DropDownList!$B$47,CntyQryCensus!$A$551:$DA$587,K$1)","v":16},{"$f":"VLOOKUP(DropDownList!$B$47,CntyQryCensus!$A$551:$DA$587,L$1)","v":50},{"$f":"VLOOKUP(DropDownList!$B$47,CntyQryCensus!$A$551:$DA$587,M$1)","v":96},{"$f":"VLOOKUP(DropDownList!$B$47,CntyQryCensus!$A$551:$DA$587,N$1)","v":6655},{"$f":"VLOOKUP(DropDownList!$B$47,CntyQryCensus!$A$551:$DA$587,O$1)","v":1129},{"$f":"VLOOKUP(DropDownList!$B$47,CntyQryCensus!$A$551:$DA$587,P$1)","v":709},{"$f":"VLOOKUP(DropDownList!$B$47,CntyQryCensus!$A$551:$DA$587,Q$1)","v":416},{"$f":"VLOOKUP(DropDownList!$B$47,CntyQryCensus!$A$551:$DA$587,R$1)","v":894},{"$f":"VLOOKUP(DropDownList!$B$47,CntyQryCensus!$A$551:$DA$587,S$1)","v":1289},{"$f":"VLOOKUP(DropDownList!$B$47,CntyQryCensus!$A$551:$DA$587,T$1)","v":1178},{"$f":"VLOOKUP(DropDownList!$B$47,CntyQryCensus!$A$551:$DA$587,U$1)","v":687},{"$f":"VLOOKUP(DropDownList!$B$47,CntyQryCensus!$A$551:$DA$587,V$1)","v":449},{"$f":"VLOOKUP(DropDownList!$B$47,CntyQryCensus!$A$551:$DA$587,W$1)","v":46.7},{"$f":"VLOOKUP(DropDownList!$B$47,CntyQryCensus!$A$551:$DA$587,X$1)","v":46.3},{"$f":"VLOOKUP(DropDownList!$B$47,CntyQryCensus!$A$551:$DA$587,Y$1)","v":47},{"$f":"VLOOKUP(DropDownList!$B$47,CntyQryCensus!$A$551:$DA$587,Z$1)","v":2666},{"$f":"VLOOKUP(DropDownList!$B$47,CntyQryCensus!$A$551:$DA$587,AA$1)","v":6751},{"$f":"VLOOKUP(DropDownList!$B$47,CntyQryCensus!$A$551:$DA$587,AB$1)","v":3875},{"$f":"VLOOKUP(DropDownList!$B$47,CntyQryCensus!$A$551:$DA$587,AC$1)","v":2876},{"$f":"VLOOKUP(DropDownList!$B$47,CntyQryCensus!$A$551:$DA$587,AD$1)","v":2.5299999999999998},{"$f":"VLOOKUP(DropDownList!$B$47,CntyQryCensus!$A$551:$DA$587,AE$1)","v":1967},{"$f":"VLOOKUP(DropDownList!$B$47,CntyQryCensus!$A$551:$DA$587,AF$1)","v":1717},{"$f":"VLOOKUP(DropDownList!$B$47,CntyQryCensus!$A$551:$DA$587,AG$1)","v":250},{"$f":"VLOOKUP(DropDownList!$B$47,CntyQryCensus!$A$551:$DA$587,AH$1)","v":699},{"$f":"VLOOKUP(DropDownList!$B$47,CntyQryCensus!$A$551:$DA$587,AI$1)","v":2.97},{"$f":"VLOOKUP(DropDownList!$B$47,CntyQryCensus!$A$551:$DA$587,AJ$1)","v":4.1144492131616595},{"$f":"VLOOKUP(DropDownList!$B$47,CntyQryCensus!$A$551:$DA$587,AK$1)","v":2.65},{"$f":"VLOOKUP(DropDownList!$B$47,CntyQryCensus!$A$551:$DA$587,AL$1)","v":1.65},{"$f":"VLOOKUP(DropDownList!$B$47,CntyQryCensus!$A$551:$DA$587,AM$1)","v":2788},{"$f":"VLOOKUP(DropDownList!$B$47,CntyQryCensus!$A$551:$DA$587,AN$1)","v":2666},{"$f":"VLOOKUP(DropDownList!$B$47,CntyQryCensus!$A$551:$DA$587,AO$1)","v":2342},{"$f":"VLOOKUP(DropDownList!$B$47,CntyQryCensus!$A$551:$DA$587,AP$1)","v":324},{"$f":"VLOOKUP(DropDownList!$B$47,CntyQryCensus!$A$551:$DA$587,AQ$1)","v":122},{"$f":"VLOOKUP(DropDownList!$B$47,CntyQryCensus!$A$551:$DA$587,AR$1)","v":7},{"$f":"VLOOKUP(DropDownList!$B$47,CntyQryCensus!$A$551:$DA$587,AS$1)","v":1},{"$f":"VLOOKUP(DropDownList!$B$47,CntyQryCensus!$A$551:$DA$587,AT$1)","v":17},{"$f":"VLOOKUP(DropDownList!$B$47,CntyQryCensus!$A$551:$DA$587,AU$1)","v":3},{"$f":"VLOOKUP(DropDownList!$B$47,CntyQryCensus!$A$551:$DA$587,AV$1)","v":75},{"$f":"VLOOKUP(DropDownList!$B$47,CntyQryCensus!$A$551:$DA$587,AW$1)","v":19},{"$f":"VLOOKUP(DropDownList!$B$47,CntyQryCensus!$A$551:$DA$587,AX$1)","v":0.7},{"$f":"VLOOKUP(DropDownList!$B$47,CntyQryCensus!$A$551:$DA$587,AY$1)","v":2.1},{"$f":"VLOOKUP(DropDownList!$B$47,CntyQryCensus!$A$551:$DA$587,AZ$1)","v":2788},{"$f":"VLOOKUP(DropDownList!$B$47,CntyQryCensus!$A$551:$DA$587,BA$1)","v":1898},{"$f":"VLOOKUP(DropDownList!$B$47,CntyQryCensus!$A$551:$DA$587,BB$1)","v":890},{"$f":"VLOOKUP(DropDownList!$B$47,CntyQryCensus!$A$551:$DA$587,BC$1)","v":0}]

{"sheet":"StatisticallySignificantCalcs","index":20,"n_rows":271,"n_cols":16,"rows_kept":271,"cut":false,"hidden":true,"merged":[]}
[]
["Statistically Significant Change  10 Year","Standard Error Estimate  1","Standard Error Estimate  2","Square Root of Sum of Squared SE","Difference between the estimates","Value","Test Statistic (90%) Confidence Interval",null,null,"Statistically Significant Change  5Year","Standard Error Estimate  1","Standard Error Estimate  2","Square Root of Sum of Squared SE","Difference between the estimates","Value","Test Statistic (90%) Confidence Interval"]
[{"$f":"IF(F3>G3,\"Y\",\"N\")","v":"Y"},{"$f":"PopulationCharacteristics!Q22/1.645","v":133.76070555112526},{"$f":"PopulationCharacteristics!T22/1.645","v":172.2425650764649},{"$f":"SQRT((B3^2)+(C3^2))","v":218.08124076512192},{"$f":"(PopulationCharacteristics!M22-PopulationCharacteristics!S22)","v":-1032},{"$f":"ABS((E3/D3))","v":4.7321814401793763},1.645,"Population By Age Under 15 yrs.",null,{"$f":"IF(O3>P3,\"Y\",\"N\")","v":"N"},{"$f":"PopulationCharacteristics!P22/1.645","v":621.27659574468089},{"$f":"PopulationCharacteristics!T22/1.645","v":172.2425650764649},{"$f":"SQRT((K3^2)+(L3^2))","v":644.71087290677815},{"$f":"(PopulationCharacteristics!P22-PopulationCharacteristics!S22)","v":-10},{"$f":"ABS((N3/M3))","v":1.5510828838535733E-2},1.645]
["Y",{"$f":"PopulationCharacteristics!Q23/1.645","v":136.11456744064557},{"$f":"PopulationCharacteristics!T23/1.645","v":142.6047048550812},197.13771155301279,{"$f":"(PopulationCharacteristics!M23-PopulationCharacteristics!S23)","v":-907},4.6008447234921688,1.645,"Population By Age 15 to 24 yrs.",null,{"$f":"IF(O4>P4,\"Y\",\"N\")","v":"N"},{"$f":"PopulationCharacteristics!P23/1.645","v":586.62613981762922},{"$f":"PopulationCharacteristics!T23/1.645","v":142.6047048550812},603.71046848976994,{"$f":"(PopulationCharacteristics!P23-PopulationCharacteristics!S23)","v":58},9.6072543093532303E-2,1.645]
["Y",{"$f":"PopulationCharacteristics!Q24/1.645","v":88.463947737154314},{"$f":"PopulationCharacteristics!T24/1.645","v":90.567307314109144},126.60295100577339,{"$f":"(PopulationCharacteristics!M24-PopulationCharacteristics!S24)","v":-461},3.6413053277010685,1.645,"Population By Age 25 to 34 yrs.",null,"N",{"$f":"PopulationCharacteristics!P24/1.645","v":258.35866261398178},{"$f":"PopulationCharacteristics!T24/1.645","v":90.567307314109144},273.77296378900081,{"$f":"(PopulationCharacteristics!P24-PopulationCharacteristics!S24)","v":-36},0.13149581865850535,1.645]
["Y",{"$f":"PopulationCharacteristics!Q25/1.645","v":109.61988275123684},{"$f":"PopulationCharacteristics!T25/1.645","v":100.44753470041329},148.6816260396208,{"$f":"(PopulationCharacteristics!M25-PopulationCharacteristics!S25)","v":-620},4.169983988706055,1.645,"Population By Age 35 to 44 yrs.",null,"N",{"$f":"PopulationCharacteristics!P25/1.645","v":442.55319148936172},{"$f":"PopulationCharacteristics!T25/1.645","v":100.44753470041329},453.80946940848469,{"$f":"(PopulationCharacteristics!P25-PopulationCharacteristics!S25)","v":108},0.2379853380776121,1.645]
["Y",{"$f":"PopulationCharacteristics!Q26/1.645","v":130.57462087790759},{"$f":"PopulationCharacteristics!T26/1.645","v":153.42650954563817},201.46817477896377,{"$f":"(PopulationCharacteristics!M26-PopulationCharacteristics!S26)","v":-1356},6.7305915760030315,1.645,"Population By Age 45 to 54 yrs.",null,"N",{"$f":"PopulationCharacteristics!P26/1.645","v":787.23404255319144},{"$f":"PopulationCharacteristics!T26/1.645","v":153.42650954563817},802.04559196220123,{"$f":"(PopulationCharacteristics!P26-PopulationCharacteristics!S26)","v":-61},7.6055526782166774E-2,1.645]
["Y",{"$f":"PopulationCharacteristics!Q27/1.645","v":140.66743201248528},{"$f":"PopulationCharacteristics!T27/1.645","v":138.39503584368791},197.33350545501094,{"$f":"(PopulationCharacteristics!M27-PopulationCharacteristics!S27)","v":-1201},6.0861433400817475,1.645,"Population By Age 55 to 64 yrs.",null,"N",{"$f":"PopulationCharacteristics!P27/1.645","v":742.85714285714289},{"$f":"PopulationCharacteristics!T27/1.645","v":138.39503584368791},755.63875009163826,{"$f":"(PopulationCharacteristics!P27-PopulationCharacteristics!S27)","v":21},2.7791057562166148E-2,1.645]
["Y",{"$f":"PopulationCharacteristics!Q28/1.645","v":94.930197070049076},{"$f":"PopulationCharacteristics!T28/1.645","v":118.54103343465046},151.86743865461506,{"$f":"(PopulationCharacteristics!M28-PopulationCharacteristics!S28)","v":-902},5.9393903524729614,1.645,"Population By Age 65 to 74 yrs.",null,"N",{"$f":"PopulationCharacteristics!P28/1.645","v":378.11550151975683},{"$f":"PopulationCharacteristics!T28/1.645","v":118.54103343465046},396.2616674588802,{"$f":"(PopulationCharacteristics!P28-PopulationCharacteristics!S28)","v":-280},0.70660379994755718,1.645]
["Y",{"$f":"PopulationCharacteristics!Q29/1.645","v":104.43372684980115},{"$f":"PopulationCharacteristics!T29/1.645","v":80.590112969986933},131.91349291203736,{"$f":"(PopulationCharacteristics!M29-PopulationCharacteristics!S29)","v":-473},3.5856832349622203,1.645,"Population By Age Over 74 yrs. ",null,"N",{"$f":"PopulationCharacteristics!P29/1.645","v":309.42249240121578},{"$f":"PopulationCharacteristics!T29/1.645","v":80.590112969986933},319.74528161068412,{"$f":"(PopulationCharacteristics!P29-PopulationCharacteristics!S29)","v":36},0.11258962077142683,1.645]
["N",{"$f":"PopulationCharacteristics!Q$30/1.645","v":1.21580547112462},{"$f":"PopulationCharacteristics!T$30/1.645","v":1.762917933130699},2.1415094168764179,{"$f":"(PopulationCharacteristics!P30-PopulationCharacteristics!S30)","v":-1.3999999999999986},0.65374449860791328,1.645,"Population By Age Median Age        ",null,"N",{"$f":"PopulationCharacteristics!P30/1.645","v":28.693009118541035},{"$f":"PopulationCharacteristics!T30/1.645","v":1.762917933130699},{"$f":"SQRT((K11^2)+(L11^2))","v":28.747115540791789},{"$f":"(PopulationCharacteristics!P30-PopulationCharacteristics!S30)","v":-1.3999999999999986},4.8700538250991354E-2,1.645]
["N",{"$f":"PopulationCharacteristics!E51/1.645","v":69.300911854103347},{"$f":"PopulationCharacteristics!K51/1.645","v":112.46200607902736},132.09965630208652,{"$f":"PopulationCharacteristics!D51-PopulationCharacteristics!J51","v":-132},0.99924559756719866,1.645,"Total Households",null,"N",{"$f":"PopulationCharacteristics!H51/1.645","v":69.908814589665653},{"$f":"PopulationCharacteristics!K51/1.645","v":112.46200607902736},132.41958000481438,{"$f":"PopulationCharacteristics!G51-PopulationCharacteristics!J51","v":-148},1.1176594880803818,1.645]
["N",{"$f":"PopulationCharacteristics!E52/1.645","v":6.6869300911854099E-2},{"$f":"PopulationCharacteristics!K52/1.645","v":0.10334346504559271},0.12309092237882423,{"$f":"PopulationCharacteristics!D52-PopulationCharacteristics!J52","v":1.083192695622337E-2},8.7999397087033485E-2,1.645,"Persons per Household",null,"N",{"$f":"PopulationCharacteristics!H52/1.645","v":7.29483282674772E-2},{"$f":"PopulationCharacteristics!K52/1.645","v":0.10334346504559271},0.12649636502543957,{"$f":"PopulationCharacteristics!G52-PopulationCharacteristics!J52","v":8.0795341128512277E-2},0.63871670235159406,1.645]
["N",{"$f":"PopulationCharacteristics!E53/1.645","v":69.300911854103347},{"$f":"PopulationCharacteristics!K53/1.645","v":112.46200607902736},132.09965630208652,{"$f":"PopulationCharacteristics!D53-PopulationCharacteristics!J53","v":-67},0.50719284118941144,1.645,"Family Households",null,"N",{"$f":"PopulationCharacteristics!H53/1.645","v":69.908814589665653},{"$f":"PopulationCharacteristics!K53/1.645","v":112.46200607902736},132.41958000481438,{"$f":"PopulationCharacteristics!G53-PopulationCharacteristics!J53","v":39},0.29451837861577629,1.645]
["N",{"$f":"PopulationCharacteristics!E54/1.645","v":0.13965247071948361},{"$f":"PopulationCharacteristics!K54/1.645","v":0.16331389710418176},0.21488192470613135,{"$f":"PopulationCharacteristics!D54-PopulationCharacteristics!J54","v":4.6774469750715753E-2},0.21767521774892734,1.645,"Persons per Family Household",null,"N",{"$f":"PopulationCharacteristics!H54/1.645","v":0.10573749029757121},{"$f":"PopulationCharacteristics!K54/1.645","v":0.16331389710418176},0.1945555083820148,{"$f":"PopulationCharacteristics!G54-PopulationCharacteristics!J54","v":2.8982668615783691E-2},0.14896863551596529,1.645]
["N",{"$f":"PopulationCharacteristics!E55/1.645","v":88.145896656534958},{"$f":"PopulationCharacteristics!K55/1.645","v":99.696048632218847},133.07517127647174,{"$f":"PopulationCharacteristics!D55-PopulationCharacteristics!J55","v":-10},7.5145497872209338E-2,1.645,"Married-Couple Family Hh",null,"N",{"$f":"PopulationCharacteristics!H55/1.645","v":83.282674772036472},{"$f":"PopulationCharacteristics!K55/1.645","v":99.696048632218847},129.90498847258539,{"$f":"PopulationCharacteristics!G55-PopulationCharacteristics!J55","v":61},0.46957396107135013,1.645]
["N",{"$f":"PopulationCharacteristics!E56/1.645","v":43.161094224924014},{"$f":"PopulationCharacteristics!K56/1.645","v":61.398176291793312},75.050756869274139,{"$f":"PopulationCharacteristics!D56-PopulationCharacteristics!J56","v":-57},0.75948601157060236,1.645,"Single-Parent Family Hh",null,"N",{"$f":"PopulationCharacteristics!H56/1.645","v":57.142857142857139},{"$f":"PopulationCharacteristics!K56/1.645","v":61.398176291793312},83.875158267553275,{"$f":"PopulationCharacteristics!G56-PopulationCharacteristics!J56","v":-22},0.26229458703162412,1.645]
["N",{"$f":"PopulationCharacteristics!E57/1.645","v":106.38297872340425},{"$f":"PopulationCharacteristics!K57/1.645","v":113.67781155015197},155.69194905612861,{"$f":"PopulationCharacteristics!D57-PopulationCharacteristics!J57","v":-65},0.4174910802649584,1.645,"Non-Family Households*",null,"N",{"$f":"PopulationCharacteristics!H57/1.645","v":92.401215805471125},{"$f":"PopulationCharacteristics!K57/1.645","v":113.67781155015197},146.49446925109874,{"$f":"PopulationCharacteristics!G57-PopulationCharacteristics!J57","v":-187},1.2764987030293464,1.645]
["Y",{"$f":"PopulationCharacteristics!E58/1.645","v":0.1010217373966521},{"$f":"PopulationCharacteristics!K58/1.645","v":0.3131526286047287},0.32904400956207863,{"$f":"PopulationCharacteristics!D58-PopulationCharacteristics!J58","v":-1.2862849533954728},3.9091577904954917,1.645,"Persons per Non-Family Hh",null,"N",{"$f":"PopulationCharacteristics!H58/1.645","v":0.26102455710136618},{"$f":"PopulationCharacteristics!K58/1.645","v":0.3131526286047287},0.40767436540947183,{"$f":"PopulationCharacteristics!G58-PopulationCharacteristics!J58","v":-0.17812892502667843},0.43693923420415243,1.645]
["N",{"$f":"PopulationCharacteristics!D36/1.645","v":103.95136778115501},{"$f":"PopulationCharacteristics!J36/1.645","v":115.5015197568389},155.3914023674167,{"$f":"PopulationCharacteristics!C36-PopulationCharacteristics!I36","v":-208},1.3385553951575286,1.645,"Ethnicity -White",null,"N",{"$f":"PopulationCharacteristics!G36/1.645","v":102.12765957446808},{"$f":"PopulationCharacteristics!J36/1.645","v":115.5015197568389},154.17736512308767,{"$f":"PopulationCharacteristics!F36-PopulationCharacteristics!I36","v":-74},{"$f":"ABS((N20/M20))","v":0.47996669252274493},1.645]
["N",{"$f":"PopulationCharacteristics!D37/1.645","v":73.556231003039514},{"$f":"PopulationCharacteristics!J37/1.645","v":9.7264437689969601},74.19651493004217,{"$f":"PopulationCharacteristics!C37-PopulationCharacteristics!I37","v":84},1.1321286461931703,1.645,"Ethnicity -Black",null,"N",{"$f":"PopulationCharacteristics!G37/1.645","v":9.1185410334346511},{"$f":"PopulationCharacteristics!J37/1.645","v":9.7264437689969601},13.332347841617818,{"$f":"PopulationCharacteristics!F37-PopulationCharacteristics!I37","v":0},{"$f":"ABS((N21/M21))","v":0},1.645]
["N",{"$f":"PopulationCharacteristics!D38/1.645","v":16.413373860182372},{"$f":"PopulationCharacteristics!J38/1.645","v":9.7264437689969601},19.078850852857407,{"$f":"PopulationCharacteristics!C38-PopulationCharacteristics!I38","v":17},0.89103899029924749,1.645,"Ethnicity -American Indian",null,"N",{"$f":"PopulationCharacteristics!G38/1.645","v":9.1185410334346511},{"$f":"PopulationCharacteristics!J38/1.645","v":9.7264437689969601},13.332347841617818,{"$f":"PopulationCharacteristics!F38-PopulationCharacteristics!I38","v":0},0,1.645]
["N",{"$f":"PopulationCharacteristics!D39/1.645","v":98.006289428895343},{"$f":"PopulationCharacteristics!J39/1.645","v":55.569093651192411},112.66391142169438,{"$f":"PopulationCharacteristics!C39-PopulationCharacteristics!I39","v":-110},0.97635523755496545,1.645,"Ethnicity -Asian &Pacific Is",null,"Y",{"$f":"PopulationCharacteristics!G39/1.645","v":12.895564398538861},{"$f":"PopulationCharacteristics!J39/1.645","v":55.569093651192411},57.045768908586517,{"$f":"PopulationCharacteristics!F39-PopulationCharacteristics!I39","v":-110},1.9282762263450326,1.645]
["N",{"$f":"PopulationCharacteristics!D40/1.645","v":72.14604417575373},{"$f":"PopulationCharacteristics!J40/1.645","v":48.999373936502458},87.212329038840636,{"$f":"PopulationCharacteristics!C40-PopulationCharacteristics!I40","v":-44},0.50451582344973589,1.645,"Ethnicity -Other*",null,"N",{"$f":"PopulationCharacteristics!G40/1.645","v":16.186658912698295},{"$f":"PopulationCharacteristics!J40/1.645","v":48.999373936502458},51.603745725724515,{"$f":"PopulationCharacteristics!F40-PopulationCharacteristics!I40","v":-51},0.98830035073551747,1.645]
["N",{"$f":"PopulationCharacteristics!D42/1.645","v":46.200607902735563},{"$f":"PopulationCharacteristics!J42/1.645","v":65.045592705167167},79.783615491833956,{"$f":"PopulationCharacteristics!C42-PopulationCharacteristics!I42","v":-45},0.56402557997143987,1.645,"Ethnicity -Hispanic",null,"Y",{"$f":"PopulationCharacteristics!G42/1.645","v":103.95136778115501},{"$f":"PopulationCharacteristics!J42/1.645","v":65.045592705167167},122.62469569356512,{"$f":"PopulationCharacteristics!F42-PopulationCharacteristics!I41","v":-6736},54.931838663502425,1.645]
["N",{"$f":"PlaceOfBirthAndPriorRes!E8/1.645","v":321.580547112462},{"$f":"PlaceOfBirthAndPriorRes!M8/1.645","v":322.18844984802433},455.21362622028715,{"$f":"PlaceOfBirthAndPriorRes!D8-PlaceOfBirthAndPriorRes!L8","v":302},0.66342478037741348,1.645,"Place of Birth - United States Native",null,"N",{"$f":"PlaceOfBirthAndPriorRes!I8/1.645","v":279.63525835866261},{"$f":"PlaceOfBirthAndPriorRes!M8/1.645","v":322.18844984802433},426.61607439568996,{"$f":"PlaceOfBirthAndPriorRes!H8-PlaceOfBirthAndPriorRes!L8","v":-88},0.20627445912499601,1.645]
["Y",{"$f":"PlaceOfBirthAndPriorRes!E9/1.645","v":262.00607902735561},{"$f":"PlaceOfBirthAndPriorRes!M9/1.645","v":309.42249240121578},405.44970619186461,{"$f":"PlaceOfBirthAndPriorRes!D9-PlaceOfBirthAndPriorRes!L9","v":-1065},2.626712965222934,1.645,"Place of Birth - New Hampshire Native",null,"Y",{"$f":"PlaceOfBirthAndPriorRes!I9/1.645","v":291.1854103343465},{"$f":"PlaceOfBirthAndPriorRes!M9/1.645","v":309.42249240121578},424.88965861192975,{"$f":"PlaceOfBirthAndPriorRes!H9-PlaceOfBirthAndPriorRes!L9","v":-1210},2.8477981882471415,1.645]
["Y",{"$f":"PlaceOfBirthAndPriorRes!E10/1.645","v":401.82370820668694},{"$f":"PlaceOfBirthAndPriorRes!M10/1.645","v":454.10334346504561},606.35974390052138,{"$f":"PlaceOfBirthAndPriorRes!D10-PlaceOfBirthAndPriorRes!L10","v":1610},2.6551894583954021,1.645,"Place of Birth - Born in Different State",null,"Y",{"$f":"PlaceOfBirthAndPriorRes!I10/1.645","v":364.741641337386},{"$f":"PlaceOfBirthAndPriorRes!M10/1.645","v":454.10334346504561},582.44854834708235,{"$f":"PlaceOfBirthAndPriorRes!H10-PlaceOfBirthAndPriorRes!L10","v":1218},2.0911718356179869,1.645]
["Y",{"$f":"PlaceOfBirthAndPriorRes!E11/1.645","v":403.03951367781156},{"$f":"PlaceOfBirthAndPriorRes!M11/1.645","v":472.34042553191489},620.92376921592984,{"$f":"PlaceOfBirthAndPriorRes!D11-PlaceOfBirthAndPriorRes!L11","v":1825},2.9391691709668559,1.645,"Place of Birth - Northeast",null,"Y",{"$f":"PlaceOfBirthAndPriorRes!I11/1.645","v":370.21276595744678},{"$f":"PlaceOfBirthAndPriorRes!M11/1.645","v":472.34042553191489},600.13579269156548,{"$f":"PlaceOfBirthAndPriorRes!H11-PlaceOfBirthAndPriorRes!L11","v":1246},2.0761967794185052,1.645]
["N",{"$f":"PlaceOfBirthAndPriorRes!E12/1.645","v":141.64133738601822},{"$f":"PlaceOfBirthAndPriorRes!M12/1.645","v":118.54103343465046},184.70041977281687,{"$f":"PlaceOfBirthAndPriorRes!D12-PlaceOfBirthAndPriorRes!L12","v":-145},0.78505506472779685,1.645,"Place of Birth - Midwest",null,"Y",{"$f":"PlaceOfBirthAndPriorRes!I12/1.645","v":88.753799392097264},{"$f":"PlaceOfBirthAndPriorRes!M12/1.645","v":118.54103343465046},148.08515629288291,{"$f":"PlaceOfBirthAndPriorRes!H12-PlaceOfBirthAndPriorRes!L12","v":-246},1.6612063366665937,1.645]
["N",{"$f":"PlaceOfBirthAndPriorRes!E13/1.645","v":130.69908814589667},{"$f":"PlaceOfBirthAndPriorRes!M13/1.645","v":129.48328267477203},183.97872739641335,{"$f":"PlaceOfBirthAndPriorRes!D13-PlaceOfBirthAndPriorRes!L13","v":-33},0.17936856324098768,1.645,"Place of Birth - South",null,"N",{"$f":"PlaceOfBirthAndPriorRes!I13/1.645","v":165.34954407294833},{"$f":"PlaceOfBirthAndPriorRes!M13/1.645","v":129.48328267477203},210.0152190136867,{"$f":"PlaceOfBirthAndPriorRes!H13-PlaceOfBirthAndPriorRes!L13","v":-11},5.2377156530180463E-2,1.645]
["N",{"$f":"PlaceOfBirthAndPriorRes!E14/1.645","v":81.458966565349542},{"$f":"PlaceOfBirthAndPriorRes!M14/1.645","v":80.851063829787236},114.77132811073969,{"$f":"PlaceOfBirthAndPriorRes!D14-PlaceOfBirthAndPriorRes!L14","v":-37},0.32238016766957439,1.645,"Place of Birth - West",null,"Y",{"$f":"PlaceOfBirthAndPriorRes!I14/1.645","v":93.00911854103343},{"$f":"PlaceOfBirthAndPriorRes!M14/1.645","v":80.851063829787236},123.23794324066083,{"$f":"PlaceOfBirthAndPriorRes!H14-PlaceOfBirthAndPriorRes!L14","v":229},1.8581939456162906,1.645]
["Y",{"$f":"PlaceOfBirthAndPriorRes!E15/1.645","v":57.142857142857139},{"$f":"PlaceOfBirthAndPriorRes!M15/1.645","v":121.580547112462},134.33962765548583,{"$f":"PlaceOfBirthAndPriorRes!D15-PlaceOfBirthAndPriorRes!L15","v":-243},1.8088482470948473,1.645,"Place of Birth - Native Born Outside US",null,"N",{"$f":"PlaceOfBirthAndPriorRes!I15/1.645","v":84.498480243161097},{"$f":"PlaceOfBirthAndPriorRes!M15/1.645","v":121.580547112462},148.06019924196198,{"$f":"PlaceOfBirthAndPriorRes!H15-PlaceOfBirthAndPriorRes!L15","v":-96},0.64838491702361889,1.645]
["N",{"$f":"PlaceOfBirthAndPriorRes!E16/1.645","v":320.97264437689967},{"$f":"PlaceOfBirthAndPriorRes!M16/1.645","v":321.580547112462},454.3539223110659,{"$f":"PlaceOfBirthAndPriorRes!D16-PlaceOfBirthAndPriorRes!L16","v":-113},0.24870479696802622,1.645,"Place of Birth - Foreign Born",null,"N",{"$f":"PlaceOfBirthAndPriorRes!I16/1.645","v":280.24316109422494},{"$f":"PlaceOfBirthAndPriorRes!M16/1.645","v":321.580547112462},426.55630064650796,{"$f":"PlaceOfBirthAndPriorRes!H16-PlaceOfBirthAndPriorRes!L16","v":-305},0.71502870673279995,1.645]
["N",{"$f":"PlaceOfBirthAndPriorRes!E17/1.645","v":258.96656534954406},{"$f":"PlaceOfBirthAndPriorRes!M17/1.645","v":269.90881458966567},374.05140042798689,{"$f":"PlaceOfBirthAndPriorRes!D17-PlaceOfBirthAndPriorRes!L17","v":-596},1.5933639048485346,1.645,"Place of Birth - Naturalized Citizen",null,"Y",{"$f":"PlaceOfBirthAndPriorRes!I17/1.645","v":177.50759878419453},{"$f":"PlaceOfBirthAndPriorRes!M17/1.645","v":269.90881458966567},323.04754420878839,{"$f":"PlaceOfBirthAndPriorRes!H17-PlaceOfBirthAndPriorRes!L17","v":-692},2.1420995528532929,1.645]
["Y",{"$f":"PlaceOfBirthAndPriorRes!E18/1.645","v":223.70820668693008},{"$f":"PlaceOfBirthAndPriorRes!M18/1.645","v":133.73860182370819},260.63648124704758,{"$f":"PlaceOfBirthAndPriorRes!D18-PlaceOfBirthAndPriorRes!L18","v":483},1.8531557734704927,1.645,"Place of Birth - Not a Citizen",null,"N",{"$f":"PlaceOfBirthAndPriorRes!I18/1.645","v":206.68693009118542},{"$f":"PlaceOfBirthAndPriorRes!M18/1.645","v":133.73860182370819},246.18184475764846,{"$f":"PlaceOfBirthAndPriorRes!H18-PlaceOfBirthAndPriorRes!L18","v":387},1.5720086929276962,1.645]
["Y",{"$f":"PlaceOfBirthAndPriorRes!E43/1.645","v":307.59878419452889},{"$f":"PlaceOfBirthAndPriorRes!I43/1.645","v":61.398176291793312},313.66661934275135,{"$f":"PlaceOfBirthAndPriorRes!D43-PlaceOfBirthAndPriorRes!H43","v":-1884},6.0063771017384102,1.645,"Place of Residence for Population Total:",null,"Y",{"$f":"PlaceOfBirthAndPriorRes!I43/1.645","v":61.398176291793312},{"$f":"PlaceOfBirthAndPriorRes!M43/1.645","v":90.577507598784194},{"$f":"SQRT((K37^2)+(L37^2))","v":109.42586958651934},{"$f":"PlaceOfBirthAndPriorRes!H43-PlaceOfBirthAndPriorRes!L43","v":-379},3.463531991402979,1.645]
["Y",{"$f":"PlaceOfBirthAndPriorRes!E44/1.645","v":351.28468427690638},{"$f":"PlaceOfBirthAndPriorRes!I44/1.645","v":318.54103343465044},474.20387955935246,{"$f":"PlaceOfBirthAndPriorRes!D44-PlaceOfBirthAndPriorRes!H44","v":-23422},49.392257232826893,1.645,"Place of Residence for Population  Same house ",null,"N",{"$f":"PlaceOfBirthAndPriorRes!I8/1.645","v":279.63525835866261},{"$f":"PlaceOfBirthAndPriorRes!M8/1.645","v":322.18844984802433},{"$f":"SQRT((K38^2)+(L38^2))","v":426.61607439568996},{"$f":"PlaceOfBirthAndPriorRes!H8-PlaceOfBirthAndPriorRes!L8","v":-88},0.20627445912499601,1.645]
["Y",{"$f":"PlaceOfBirthAndPriorRes!E45/1.645","v":253.11101885894556},{"$f":"PlaceOfBirthAndPriorRes!I45/1.645","v":299.34812137495595},392.01337431078656,{"$f":"PlaceOfBirthAndPriorRes!D45-PlaceOfBirthAndPriorRes!H45","v":-1432},3.6529365930885724,1.645,"Place of Residence for Population  Different house",null,"Y",{"$f":"PlaceOfBirthAndPriorRes!I9/1.645","v":291.1854103343465},{"$f":"PlaceOfBirthAndPriorRes!M9/1.645","v":309.42249240121578},424.88965861192975,{"$f":"PlaceOfBirthAndPriorRes!H9-PlaceOfBirthAndPriorRes!L9","v":-1210},2.8477981882471415,1.645]
["N",{"$f":"PlaceOfBirthAndPriorRes!E46/1.645","v":242.55319148936169},{"$f":"PlaceOfBirthAndPriorRes!I46/1.645","v":190.32695872174128},308.31218256491644,{"$f":"PlaceOfBirthAndPriorRes!D46-PlaceOfBirthAndPriorRes!H46","v":-338},1.0962914186137704,1.645,"Place of Residence for Population in New Hampshire",null,"Y",{"$f":"PlaceOfBirthAndPriorRes!I10/1.645","v":364.741641337386},{"$f":"PlaceOfBirthAndPriorRes!M10/1.645","v":454.10334346504561},582.44854834708235,{"$f":"PlaceOfBirthAndPriorRes!H10-PlaceOfBirthAndPriorRes!L10","v":1218},2.0911718356179869,1.645]
["Y",{"$f":"PlaceOfBirthAndPriorRes!E47/1.645","v":72.340425531914889},{"$f":"PlaceOfBirthAndPriorRes!I47/1.645","v":176.29179331306992},190.5569037208484,{"$f":"PlaceOfBirthAndPriorRes!D47-PlaceOfBirthAndPriorRes!H47","v":-1073},5.6308639521760107,1.645,"Place of Residence for Population Same county",null,"Y",{"$f":"PlaceOfBirthAndPriorRes!I11/1.645","v":370.21276595744678},{"$f":"PlaceOfBirthAndPriorRes!M11/1.645","v":472.34042553191489},600.13579269156548,{"$f":"PlaceOfBirthAndPriorRes!H11-PlaceOfBirthAndPriorRes!L11","v":1246},2.0761967794185052,1.645]
["Y",{"$f":"PlaceOfBirthAndPriorRes!E48/1.645","v":237.08206686930092},{"$f":"PlaceOfBirthAndPriorRes!I48/1.645","v":71.732522796352583},247.69630852668942,{"$f":"PlaceOfBirthAndPriorRes!D48-PlaceOfBirthAndPriorRes!H48","v":962},3.8837881990330265,1.645,"Place of Residence for Population Different county",null,"Y",{"$f":"PlaceOfBirthAndPriorRes!I12/1.645","v":88.753799392097264},{"$f":"PlaceOfBirthAndPriorRes!M12/1.645","v":118.54103343465046},148.08515629288291,{"$f":"PlaceOfBirthAndPriorRes!H12-PlaceOfBirthAndPriorRes!L12","v":-246},1.6612063366665937,1.645]
["Y",{"$f":"PlaceOfBirthAndPriorRes!E49/1.645","v":55.927051671732521},{"$f":"PlaceOfBirthAndPriorRes!I49/1.645","v":221.88449848024317},228.82431202676361,{"$f":"PlaceOfBirthAndPriorRes!D49-PlaceOfBirthAndPriorRes!H49","v":-978},4.2740213718444906,1.645,"Place of Residence for Population in Different state",null,"N",{"$f":"PlaceOfBirthAndPriorRes!I13/1.645","v":165.34954407294833},{"$f":"PlaceOfBirthAndPriorRes!M13/1.645","v":129.48328267477203},210.0152190136867,{"$f":"PlaceOfBirthAndPriorRes!H13-PlaceOfBirthAndPriorRes!L13","v":-11},5.2377156530180463E-2,1.645]
["Y",{"$f":"PlaceOfBirthAndPriorRes!E50/1.645","v":0},{"$f":"PlaceOfBirthAndPriorRes!I50/1.645","v":64.437689969604861},64.437689969604861,{"$f":"PlaceOfBirthAndPriorRes!D50-PlaceOfBirthAndPriorRes!H50","v":-108},1.6760377358490566,1.645,"Place of Residence for Population Elsewhere",null,"Y",{"$f":"PlaceOfBirthAndPriorRes!I14/1.645","v":93.00911854103343},{"$f":"PlaceOfBirthAndPriorRes!M14/1.645","v":80.851063829787236},123.23794324066083,{"$f":"PlaceOfBirthAndPriorRes!H14-PlaceOfBirthAndPriorRes!L14","v":229},1.8581939456162906,1.645]
["Y",{"$f":"SchoolEnrolEduAttain!G23/1.645","v":158.66261398176292},{"$f":"SchoolEnrolEduAttain!M23/1.645","v":72.948328267477208},{"$f":"SQRT((B45^2)+(C45^2))","v":174.62898863746972},{"$f":"SchoolEnrolEduAttain!F23-SchoolEnrolEduAttain!L23","v":22332},127.88254787617934,1.645,"Total Population 3 years & over",null,"Y",{"$f":"SchoolEnrolEduAttain!J23/1.645","v":107.59878419452887},{"$f":"SchoolEnrolEduAttain!M23/1.645","v":72.948328267477208},{"$f":"SQRT((K45^2)+(L45^2))","v":129.99598823486983},{"$f":"SchoolEnrolEduAttain!I23-SchoolEnrolEduAttain!L23","v":22064},169.72831469334224,1.645]
["Y",{"$f":"SchoolEnrolEduAttain!G24/1.645","v":267.47720364741639},{"$f":"SchoolEnrolEduAttain!M24/1.645","v":107.59878419452887},{"$f":"SQRT((B46^2)+(C46^2))","v":288.30808665589359},{"$f":"SchoolEnrolEduAttain!F24-SchoolEnrolEduAttain!L24","v":6387},22.153384853277188,1.645,"Population 3 years & over enrolled in school",null,"Y",{"$f":"SchoolEnrolEduAttain!J24/1.645","v":254.10334346504558},{"$f":"SchoolEnrolEduAttain!M24/1.645","v":107.59878419452887},{"$f":"SQRT((K46^2)+(L46^2))","v":275.94566044831311},{"$f":"SchoolEnrolEduAttain!I24-SchoolEnrolEduAttain!L24","v":5594},20.272107163822575,1.645]
["Y",{"$f":"SchoolEnrolEduAttain!G25/1.645","v":98.459602324878901},{"$f":"SchoolEnrolEduAttain!M25/1.645","v":52.859581053686014},111.75163801548727,{"$f":"SchoolEnrolEduAttain!F25-SchoolEnrolEduAttain!L25","v":682},6.1028188231610887,1.645,"Preprimary (Nursery, Preschool, Kindergarten)",null,"Y",{"$f":"SchoolEnrolEduAttain!J25/1.645","v":97.264437689969597},{"$f":"SchoolEnrolEduAttain!M25/1.645","v":52.859581053686014},110.70007293727127,{"$f":"SchoolEnrolEduAttain!I25-SchoolEnrolEduAttain!L25","v":547},4.9412794904838062,1.645]
["Y",{"$f":"SchoolEnrolEduAttain!G26/1.645","v":71.124620060790278},{"$f":"SchoolEnrolEduAttain!M26/1.645","v":45.59270516717325},84.483171953073338,{"$f":"SchoolEnrolEduAttain!F26-SchoolEnrolEduAttain!L26","v":340},4.0244701061751673,1.645,"Nursery school and Preschool",null,"Y",{"$f":"SchoolEnrolEduAttain!J26/1.645","v":77.81155015197568},{"$f":"SchoolEnrolEduAttain!M26/1.645","v":45.59270516717325},90.184988227055911,{"$f":"SchoolEnrolEduAttain!I26-SchoolEnrolEduAttain!L26","v":331},3.670233888223744,1.645]
["Y",{"$f":"SchoolEnrolEduAttain!G27/1.645","v":68.085106382978722},{"$f":"SchoolEnrolEduAttain!M27/1.645","v":26.747720364741642},73.150681855276943,{"$f":"SchoolEnrolEduAttain!F27-SchoolEnrolEduAttain!L27","v":342},4.6752810954875441,1.645,"Kindergarten",null,"Y",{"$f":"SchoolEnrolEduAttain!J27/1.645","v":58.358662613981764},{"$f":"SchoolEnrolEduAttain!M27/1.645","v":26.747720364741642},64.196370978451483,{"$f":"SchoolEnrolEduAttain!I27-SchoolEnrolEduAttain!L27","v":216},3.3646761757374692,1.645]
["Y",{"$f":"SchoolEnrolEduAttain!G28/1.645","v":274.13447834276184},{"$f":"SchoolEnrolEduAttain!M28/1.645","v":158.94070122661154},316.87830270099772,{"$f":"SchoolEnrolEduAttain!F28-SchoolEnrolEduAttain!L28","v":4196},13.241676581306645,1.645,"Elementary through High school",null,"Y",{"$f":"SchoolEnrolEduAttain!J28/1.645","v":272.39062715769313},{"$f":"SchoolEnrolEduAttain!M28/1.645","v":158.94070122661154},315.37089318732063,{"$f":"SchoolEnrolEduAttain!I28-SchoolEnrolEduAttain!L28","v":3342},10.597046437050087,1.645]
["Y",{"$f":"SchoolEnrolEduAttain!G29/1.645","v":213.4318715033711},{"$f":"SchoolEnrolEduAttain!M29/1.645","v":139.2667885864856},254.84976393284023,{"$f":"SchoolEnrolEduAttain!F29-SchoolEnrolEduAttain!L29","v":2615},10.260947311252455,1.645,"Elementary school (grades 1-8)",null,"Y",{"$f":"SchoolEnrolEduAttain!J29/1.645","v":233.03695860111324},{"$f":"SchoolEnrolEduAttain!M29/1.645","v":139.2667885864856},271.48013274869646,{"$f":"SchoolEnrolEduAttain!I29-SchoolEnrolEduAttain!L29","v":2164},7.9711173635058223,1.645]
["Y",{"$f":"SchoolEnrolEduAttain!G30/1.645","v":172.03647416413375},{"$f":"SchoolEnrolEduAttain!M30/1.645","v":76.59574468085107},188.31743558693864,{"$f":"SchoolEnrolEduAttain!F30-SchoolEnrolEduAttain!L30","v":1581},8.3953989447255157,1.645,"High school (grades 9-12)",null,"Y",{"$f":"SchoolEnrolEduAttain!J30/1.645","v":141.03343465045592},{"$f":"SchoolEnrolEduAttain!M30/1.645","v":76.59574468085107},160.49092744612869,{"$f":"SchoolEnrolEduAttain!I30-SchoolEnrolEduAttain!L30","v":1178},7.3399787685532205,1.645]
["Y",{"$f":"SchoolEnrolEduAttain!G31/1.645","v":165.31042805695967},{"$f":"SchoolEnrolEduAttain!M31/1.645","v":62.764301515575958},176.8244755940573,{"$f":"SchoolEnrolEduAttain!F31-SchoolEnrolEduAttain!L31","v":1509},8.533886470921983,1.645,"College or Graduate School",null,"Y",{"$f":"SchoolEnrolEduAttain!J31/1.645","v":186.84086139792996},{"$f":"SchoolEnrolEduAttain!M31/1.645","v":62.764301515575958},197.10115431589588,{"$f":"SchoolEnrolEduAttain!I31-SchoolEnrolEduAttain!L31","v":1705},8.6503805922281938,1.645]
["Y",{"$f":"SchoolEnrolEduAttain!G52/1.645","v":244.98480243161094},{"$f":"SchoolEnrolEduAttain!M52/1.645","v":97.872340425531917},{"$f":"SQRT((B54^2)+(C54^2))","v":263.81157753750432},{"$f":"SchoolEnrolEduAttain!I52-SchoolEnrolEduAttain!L52","v":-3824},14.495194015722708,1.645,"Population 25 years and over",null,"Y",{"$f":"SchoolEnrolEduAttain!J52/1.645","v":104.52215358733328},{"$f":"SchoolEnrolEduAttain!M52/1.645","v":97.872340425531917},{"$f":"SQRT((K54^2)+(L54^2))","v":143.19174421350309},{"$f":"SchoolEnrolEduAttain!I52-SchoolEnrolEduAttain!L52","v":-3824},26.705450240890311,1.645]
["Y",{"$f":"SchoolEnrolEduAttain!G53/1.645","v":79.113817560577971},{"$f":"SchoolEnrolEduAttain!M53/1.645","v":23.824824245915408},{"$f":"SQRT((B55^2)+(C55^2))","v":82.623352506159989},{"$f":"SchoolEnrolEduAttain!I53-SchoolEnrolEduAttain!L53","v":989},11.969981488299752,1.645,"Less than 9th Grade",null,"Y",{"$f":"SchoolEnrolEduAttain!J53/1.645","v":123.38478891786841},{"$f":"SchoolEnrolEduAttain!M53/1.645","v":23.824824245915408},{"$f":"SQRT((K55^2)+(L55^2))","v":125.66395022700704},{"$f":"SchoolEnrolEduAttain!I53-SchoolEnrolEduAttain!L53","v":989},7.8701966491854662,1.645]
["Y",{"$f":"SchoolEnrolEduAttain!G54/1.645","v":183.6077606144554},{"$f":"SchoolEnrolEduAttain!M54/1.645","v":84.550944767433464},202.14022860113903,{"$f":"SchoolEnrolEduAttain!I54-SchoolEnrolEduAttain!L54","v":6416},31.740342060560263,1.645,"9th to 12th Grade, no Diploma",null,"Y",{"$f":"SchoolEnrolEduAttain!J54/1.645","v":293.37212187267244},{"$f":"SchoolEnrolEduAttain!M54/1.645","v":84.550944767433464},305.31305925744442,{"$f":"SchoolEnrolEduAttain!I54-SchoolEnrolEduAttain!L54","v":6416},21.014495795248429,1.645]
["Y",{"$f":"SchoolEnrolEduAttain!G55/1.645","v":298.97197931837979},{"$f":"SchoolEnrolEduAttain!M55/1.645","v":145.19715798732176},332.36494867110309,{"$f":"SchoolEnrolEduAttain!I55-SchoolEnrolEduAttain!L55","v":2745},8.2589936483234805,1.645,"High School Graduate ",null,"Y",{"$f":"SchoolEnrolEduAttain!J55/1.645","v":247.07787717321088},{"$f":"SchoolEnrolEduAttain!M55/1.645","v":145.19715798732176},286.58278398399221,{"$f":"SchoolEnrolEduAttain!I55-SchoolEnrolEduAttain!L55","v":2745},9.5783841647421806,1.645]
["Y",{"$f":"SchoolEnrolEduAttain!G56/1.645","v":238.38935034688615},{"$f":"SchoolEnrolEduAttain!M56/1.645","v":130.82061219646016},271.9255687394384,{"$f":"SchoolEnrolEduAttain!I56-SchoolEnrolEduAttain!L56","v":800},2.9419815271824157,1.645,"Some College, No Degree",null,"Y",{"$f":"SchoolEnrolEduAttain!J56/1.645","v":134.43449785822074},{"$f":"SchoolEnrolEduAttain!M56/1.645","v":130.82061219646016},187.58109390300658,{"$f":"SchoolEnrolEduAttain!I56-SchoolEnrolEduAttain!L56","v":800},4.2648221276162284,1.645]
["Y",{"$f":"SchoolEnrolEduAttain!G57/1.645","v":172.52553810493953},{"$f":"SchoolEnrolEduAttain!M57/1.645","v":108.82138166301769},203.97831846901548,{"$f":"SchoolEnrolEduAttain!I57-SchoolEnrolEduAttain!L57","v":4006},19.63934221081696,1.645,"Associate Degree",null,"Y",{"$f":"SchoolEnrolEduAttain!J57/1.645","v":272.50117379254306},{"$f":"SchoolEnrolEduAttain!M57/1.645","v":108.82138166301769},293.42628175635855,{"$f":"SchoolEnrolEduAttain!I57-SchoolEnrolEduAttain!L57","v":4006},13.65249212177358,1.645]
["Y",{"$f":"SchoolEnrolEduAttain!G58/1.645","v":229.14385413084881},{"$f":"SchoolEnrolEduAttain!M58/1.645","v":119.79386279090203},258.5681253524981,{"$f":"SchoolEnrolEduAttain!I58-SchoolEnrolEduAttain!L58","v":975},3.7707664031319097,1.645,"Bachelor's Degree",null,"Y",{"$f":"SchoolEnrolEduAttain!J58/1.645","v":167.29478864776402},{"$f":"SchoolEnrolEduAttain!M58/1.645","v":119.79386279090203},205.76228000064904,{"$f":"SchoolEnrolEduAttain!I58-SchoolEnrolEduAttain!L58","v":975},4.7384778201180726,1.645]
["Y",{"$f":"SchoolEnrolEduAttain!G59/1.645","v":152.3363501518015},{"$f":"SchoolEnrolEduAttain!M59/1.645","v":99.625595982726182},182.02094097242124,{"$f":"SchoolEnrolEduAttain!I59-SchoolEnrolEduAttain!L59","v":479},2.6315653432017765,1.645,"Graduate or Professional Degree",null,"Y",{"$f":"SchoolEnrolEduAttain!J59/1.645","v":135.6903725396609},{"$f":"SchoolEnrolEduAttain!M59/1.645","v":99.625595982726182},168.33637923771957,{"$f":"SchoolEnrolEduAttain!I59-SchoolEnrolEduAttain!L59","v":479},2.8454930667337845,1.645]
["N",{"$f":"HousingCharacteristics!D32/1.645","v":80.851063829787236},{"$f":"HousingCharacteristics!J32/1.645","v":120.97264437689969},145.50352301558945,{"$f":"HousingCharacteristics!C32-HousingCharacteristics!I32","v":-198},1.3607917931910556,1.645,"Total Housing Units",null,"N",{"$f":"HousingCharacteristics!G32/1.645","v":80.851063829787236},{"$f":"HousingCharacteristics!J32/1.645","v":120.97264437689969},{"$f":"SQRT((K62^2)+(L62^2))","v":145.50352301558945},{"$f":"HousingCharacteristics!F32-HousingCharacteristics!I32","v":-161},{"$f":"ABS((N62/M62))","v":1.1065024176957574},1.645]
["N",{"$f":"HousingCharacteristics!D33/1.645","v":69.908814589665653},{"$f":"HousingCharacteristics!J33/1.645","v":112.46200607902736},132.41958000481438,{"$f":"HousingCharacteristics!C33-HousingCharacteristics!I33","v":-132},0.99683143531493512,1.645,"Occupied Units",null,"N",{"$f":"HousingCharacteristics!G33/1.645","v":69.908814589665653},{"$f":"HousingCharacteristics!J33/1.645","v":112.46200607902736},{"$f":"SQRT((K63^2)+(L63^2))","v":132.41958000481438},{"$f":"HousingCharacteristics!F33-HousingCharacteristics!I33","v":-148},{"$f":"ABS((N63/M63))","v":1.1176594880803818},1.645]
["Y",{"$f":"HousingCharacteristics!D34/1.645","v":74.772036474164139},{"$f":"HousingCharacteristics!J34/1.645","v":102.73556231003039},127.0647598732704,{"$f":"HousingCharacteristics!C34-HousingCharacteristics!I34","v":-340},2.6758009092300901,1.645,"Owner Occupied",null,"N",{"$f":"HousingCharacteristics!G34/1.645","v":74.772036474164139},{"$f":"HousingCharacteristics!J34/1.645","v":102.73556231003039},127.0647598732704,{"$f":"HousingCharacteristics!F34-HousingCharacteristics!I34","v":-156},1.2277204171761589,1.645]
["Y",{"$f":"HousingCharacteristics!D35/1.645","v":65.653495440729486},{"$f":"HousingCharacteristics!J35/1.645","v":64.437689969604861},91.992376598307317,{"$f":"HousingCharacteristics!C35-HousingCharacteristics!I35","v":208},2.2610569233171356,1.645,"Renter Occupied",null,"N",{"$f":"HousingCharacteristics!G35/1.645","v":65.653495440729486},{"$f":"HousingCharacteristics!J35/1.645","v":64.437689969604861},91.992376598307317,{"$f":"HousingCharacteristics!F35-HousingCharacteristics!I35","v":8},8.6963727819889827E-2,1.645]
["N",{"$f":"HousingCharacteristics!D36/1.645","v":54.10334346504559},{"$f":"HousingCharacteristics!J36/1.645","v":61.398176291793312},81.834637080241407,{"$f":"HousingCharacteristics!C36-HousingCharacteristics!I36","v":-66},0.80650446259430397,1.645,"Vacant Units",null,"N",{"$f":"HousingCharacteristics!G36/1.645","v":54.10334346504559},{"$f":"HousingCharacteristics!J36/1.645","v":61.398176291793312},81.834637080241407,{"$f":"HousingCharacteristics!F36-HousingCharacteristics!I36","v":-13},0.15885693960190836,1.645]
["Y",{"$f":"HousingCharacteristics!D37/1.645","v":26.747720364741642},{"$f":"HousingCharacteristics!J37/1.645","v":9.7264437689969601},28.461276378649544,{"$f":"HousingCharacteristics!C37-HousingCharacteristics!I37","v":47},1.6513665576592844,1.645,"Vacant For Sale",null,"N",{"$f":"HousingCharacteristics!G37/1.645","v":26.747720364741642},{"$f":"HousingCharacteristics!J37/1.645","v":9.7264437689969601},28.461276378649544,{"$f":"HousingCharacteristics!F37-HousingCharacteristics!I37","v":39},1.3702828882704701,1.645]
[{"$f":"IF(F68>G68,\"Y\",\"N\")","v":"N"},{"$f":"HousingCharacteristics!D38/1.645","v":9.1185410334346511},{"$f":"HousingCharacteristics!J38/1.645","v":9.7264437689969601},13.332347841617818,{"$f":"HousingCharacteristics!C38-HousingCharacteristics!I38","v":15},{"$f":"ABS((E68/D68))","v":1.1250831570097874},1.645,"Vacant For Rent",null,"N",{"$f":"HousingCharacteristics!G38/1.645","v":9.1185410334346511},{"$f":"HousingCharacteristics!J38/1.645","v":9.7264437689969601},13.332347841617818,{"$f":"HousingCharacteristics!F38-HousingCharacteristics!I38","v":0},0,1.645]
["N",{"$f":"HousingCharacteristics!D39/1.645","v":37.08206686930091},{"$f":"HousingCharacteristics!J39/1.645","v":44.376899696048632},57.830691764256677,{"$f":"HousingCharacteristics!C39-HousingCharacteristics!I39","v":-52},0.89917651706424095,1.645,"Vacant Seasonal",null,{"$f":"IF(O69>P69,\"Y\",\"N\")","v":"N"},{"$f":"HousingCharacteristics!G39/1.645","v":37.08206686930091},{"$f":"HousingCharacteristics!J39/1.645","v":44.376899696048632},57.830691764256677,{"$f":"HousingCharacteristics!F39-HousingCharacteristics!I39","v":-39},0.67438238779818072,1.645]
["N",{"$f":"HousingCharacteristics!E71/1.645","v":65.045592705167167},{"$f":"HousingCharacteristics!K71/1.645","v":120.97264437689969},137.35104592942253,{"$f":"HousingCharacteristics!D71-HousingCharacteristics!J71","v":-198},1.4415616470932575,1.645,"Total Housing Units",null,"N",{"$f":"HousingCharacteristics!H71/1.645","v":80.851063829787236},{"$f":"HousingCharacteristics!K71/1.645","v":120.97264437689969},145.50352301558945,{"$f":"HousingCharacteristics!G71-HousingCharacteristics!J71","v":-161},1.1065024176957574,1.645]
["Y",{"$f":"HousingCharacteristics!E72/1.645","v":94.832826747720361},{"$f":"HousingCharacteristics!K72/1.645","v":113.67781155015197},148.04023057194624,{"$f":"HousingCharacteristics!D72-HousingCharacteristics!J72","v":-435},2.9383904518346036,1.645,"Single Family Units",null,"Y",{"$f":"HousingCharacteristics!H72/1.645","v":102.12765957446808},{"$f":"HousingCharacteristics!K72/1.645","v":113.67781155015197},152.81591438390933,{"$f":"HousingCharacteristics!G72-HousingCharacteristics!J72","v":-299},1.9566024991928657,1.645]
["Y",{"$f":"HousingCharacteristics!E73/1.645","v":82.674772036474167},{"$f":"HousingCharacteristics!K73/1.645","v":98.480243161094222},128.58256578693403,{"$f":"HousingCharacteristics!D73-HousingCharacteristics!J73","v":-408},3.1730584741641477,1.645,"SF Owner Occ.",null,"N",{"$f":"HousingCharacteristics!H73/1.645","v":97.872340425531917},{"$f":"HousingCharacteristics!K73/1.645","v":98.480243161094222},138.84290876180697,{"$f":"HousingCharacteristics!G73-HousingCharacteristics!J73","v":-226},1.6277388742101051,1.645]
["N",{"$f":"HousingCharacteristics!E74/1.645","v":39.513677811550153},{"$f":"HousingCharacteristics!K74/1.645","v":17.62917933130699},43.267986989116707,{"$f":"HousingCharacteristics!D74-HousingCharacteristics!J74","v":54},1.2480358749664675,1.645,"SF Renter Occ.",null,"N",{"$f":"HousingCharacteristics!H74/1.645","v":21.88449848024316},{"$f":"HousingCharacteristics!K74/1.645","v":17.62917933130699},28.101943662799314,{"$f":"HousingCharacteristics!G74-HousingCharacteristics!J74","v":15},0.53377090851750031,1.645]
["N",{"$f":"HousingCharacteristics!E75/1.645","v":150.22333192436557},{"$f":"HousingCharacteristics!K75/1.645","v":112.21693498162151},187.50917297862412,{"$f":"HousingCharacteristics!D75-HousingCharacteristics!J75","v":237},1.2639381649185653,1.645,"Multi-family Units",null,"N",{"$f":"HousingCharacteristics!H75/1.645","v":126.63797337699287},{"$f":"HousingCharacteristics!K75/1.645","v":112.21693498162151},169.20347749884286,{"$f":"HousingCharacteristics!G75-HousingCharacteristics!J75","v":138},0.81558607447027054,1.645]
["N",{"$f":"HousingCharacteristics!E76/1.645","v":154.85419853145615},{"$f":"HousingCharacteristics!K76/1.645","v":75.717452062366874},172.37446257968858,{"$f":"HousingCharacteristics!D76-HousingCharacteristics!J76","v":68},0.39448998988793743,1.645,"MF Owner Occ.",null,"N",{"$f":"HousingCharacteristics!H76/1.645","v":101.22082556441771},{"$f":"HousingCharacteristics!K76/1.645","v":75.717452062366874},126.4072311015438,{"$f":"HousingCharacteristics!G76-HousingCharacteristics!J76","v":70},0.55376578847588642,1.645]
["N",{"$f":"HousingCharacteristics!E77/1.645","v":165.2243402247702},{"$f":"HousingCharacteristics!K77/1.645","v":79.090458790231935},183.17855571643747,{"$f":"HousingCharacteristics!D77-HousingCharacteristics!J77","v":154},0.84070976210989334,1.645,"MF Renter Occ.",null,"N",{"$f":"HousingCharacteristics!H77/1.645","v":64.931866605930338},{"$f":"HousingCharacteristics!K77/1.645","v":79.090458790231935},102.33009319149332,{"$f":"HousingCharacteristics!G77-HousingCharacteristics!J77","v":-7},6.8406074710600465E-2,1.645]
["N",{"$f":"HousingCharacteristics!E78/1.645","v":98.006289428895343},{"$f":"HousingCharacteristics!K78/1.645","v":13.755268691774786},98.966864072796213,{"$f":"HousingCharacteristics!D78-HousingCharacteristics!J78","v":0},0,1.645,"Mobile Home & Other",null,"N",{"$f":"HousingCharacteristics!H78/1.645","v":12.895564398538861},{"$f":"HousingCharacteristics!K78/1.645","v":13.755268691774786},18.854787135891581,{"$f":"HousingCharacteristics!G78-HousingCharacteristics!J78","v":0},0,1.645]
["N",{"$f":"HousingCharacteristics!$D88/1.645","v":24.924012158054712},{"$f":"HousingCharacteristics!L88/1.645","v":23.70820668693009},34.398916354516977,{"$f":"HousingCharacteristics!$D88-HousingCharacteristics!$K88","v":1},2.9070683206818181E-2,1.645,"No Bedrooms",null,"N",{"$f":"HousingCharacteristics!H88/1.645","v":56.534954407294833},{"$f":"HousingCharacteristics!L88/1.645","v":23.70820668693009},61.304813303239918,{"$f":"HousingCharacteristics!G88-HousingCharacteristics!K88","v":37},0.60354151666659717,1.645]
["N",{"$f":"HousingCharacteristics!$D89/1.645","v":66.869300911854097},{"$f":"HousingCharacteristics!L89/1.645","v":48.632218844984799},82.683711299303596,{"$f":"HousingCharacteristics!$D89-HousingCharacteristics!$K89","v":-26},0.31445129386952164,1.645,"1 Bedroom",null,"N",{"$f":"HousingCharacteristics!H89/1.645","v":50.455927051671729},{"$f":"HousingCharacteristics!L89/1.645","v":48.632218844984799},70.07776597773443,{"$f":"HousingCharacteristics!G89-HousingCharacteristics!K89","v":60},0.85619167738685609,1.645]
["Y",{"$f":"HousingCharacteristics!$D90/1.645","v":71.732522796352583},{"$f":"HousingCharacteristics!L90/1.645","v":85.106382978723403},111.30431820217213,{"$f":"HousingCharacteristics!$D90-HousingCharacteristics!$K90","v":-411},3.6925791077886432,1.645,"2 Bedrooms",null,"Y",{"$f":"HousingCharacteristics!H90/1.645","v":113.67781155015197},{"$f":"HousingCharacteristics!L90/1.645","v":85.106382978723403},142.00613107381318,{"$f":"HousingCharacteristics!G90-HousingCharacteristics!K90","v":289},2.0351233979452696,1.645]
["Y",{"$f":"HousingCharacteristics!$D91/1.645","v":93.00911854103343},{"$f":"HousingCharacteristics!L91/1.645","v":135.56231003039514},164.40144778120714,{"$f":"HousingCharacteristics!$D91-HousingCharacteristics!$K91","v":-1199},7.2931231213710674,1.645,"3 Bedrooms",null,"Y",{"$f":"HousingCharacteristics!H91/1.645","v":108.20668693009118},{"$f":"HousingCharacteristics!L91/1.645","v":135.56231003039514},173.45266500450126,{"$f":"HousingCharacteristics!G91-HousingCharacteristics!K91","v":-307},1.7699353307257231,1.645]
["Y",{"$f":"HousingCharacteristics!$D92/1.645","v":100.31131961515521},{"$f":"HousingCharacteristics!L92/1.645","v":123.64359081092057},159.21714226662965,{"$f":"HousingCharacteristics!$D92-HousingCharacteristics!$K92","v":-676.98787923306963},4.2519785846888656,1.645,"4+ Bedrooms",null,"N",{"$f":"HousingCharacteristics!H92/1.645","v":97.908203891979284},{"$f":"HousingCharacteristics!L92/1.645","v":123.64359081092057},157.71415262420729,{"$f":"HousingCharacteristics!G92-HousingCharacteristics!K92","v":-240},1.5217404145832045,1.645]
["N",{"$f":"'HHIncome-10YearComparison'!$F$30/1.645","v":31.003039513677813},{"$f":"'HHIncome-10YearComparison'!$M$30/1.645","v":26.13981762917933},{"$f":"SQRT((B83^2)+(C83^2))","v":40.552170407678823},{"$f":"'HHIncome-10YearComparison'!$E$30-'HHIncome-10YearComparison'!$L$30","v":23},0.5671706290631684,1.645,"Household Income Less than $10,000",null,"N",{"$f":"'HHIncome-10YearComparison'!$F$30/1.645","v":31.003039513677813},{"$f":"'HHIncome-10YearComparison'!$J$30/1.645","v":28.571428571428569},{"$f":"SQRT((K83^2)+(L83^2))","v":42.160585737142135},{"$f":"'HHIncome-10YearComparison'!$E$30-'HHIncome-10YearComparison'!$I$30","v":27},0.64040855998387747,1.645]
["N",{"$f":"'HHIncome-10YearComparison'!$F$31/1.645","v":65.045592705167167},{"$f":"'HHIncome-10YearComparison'!$M$31/1.645","v":38.297872340425535},{"$f":"SQRT((B84^2)+(C84^2))","v":75.48282027170174},{"$f":"'HHIncome-10YearComparison'!$E$31-'HHIncome-10YearComparison'!$L$31","v":63},0.83462700218712538,1.645,"Household Income $10,000 to $14,999",null,"N",{"$f":"'HHIncome-10YearComparison'!$F$31/1.645","v":65.045592705167167},{"$f":"'HHIncome-10YearComparison'!$J$31/1.645","v":26.13981762917933},{"$f":"SQRT((K84^2)+(L84^2))","v":70.101492110034641},{"$f":"'HHIncome-10YearComparison'!$E$31-'HHIncome-10YearComparison'!$I$31","v":70},0.99855221184343212,1.645]
["N",{"$f":"'HHIncome-10YearComparison'!$F$32/1.645","v":37.08206686930091},{"$f":"'HHIncome-10YearComparison'!$M$32/1.645","v":56.469550689879078},67.556567692683501,{"$f":"'HHIncome-10YearComparison'!$E$32-'HHIncome-10YearComparison'!$L$32","v":13},0.19243132746378297,1.645,"Household Income $15,000 to $24,999",null,"N",{"$f":"'HHIncome-10YearComparison'!$F$32/1.645","v":37.08206686930091},{"$f":"'HHIncome-10YearComparison'!$J$32/1.645","v":47.295457915404079},60.099417823528562,{"$f":"'HHIncome-10YearComparison'!$E$32-'HHIncome-10YearComparison'!$I$32","v":-38},0.63228565893234379,1.645]
["N",{"$f":"'HHIncome-10YearComparison'!$F$33/1.645","v":67.477203647416417},{"$f":"'HHIncome-10YearComparison'!$M$33/1.645","v":35.079727772045004},76.051037551342404,{"$f":"'HHIncome-10YearComparison'!$E$33-'HHIncome-10YearComparison'!$L$33","v":46},0.60485696817673507,1.645,"Household Income $25,000 to $34,999",null,"N",{"$f":"'HHIncome-10YearComparison'!$F$33/1.645","v":67.477203647416417},{"$f":"'HHIncome-10YearComparison'!$J$33/1.645","v":58.466212953408345},89.283095091894083,{"$f":"'HHIncome-10YearComparison'!$E$33-'HHIncome-10YearComparison'!$I$33","v":42},0.47041379957506801,1.645]
["Y",{"$f":"'HHIncome-10YearComparison'!$F$34/1.645","v":25.531914893617021},{"$f":"'HHIncome-10YearComparison'!$M$34/1.645","v":66.730998176596202},71.448616472117834,{"$f":"'HHIncome-10YearComparison'!$E$34-'HHIncome-10YearComparison'!$L$34","v":-131},1.833485467855372,1.645,"Household Income $35,000 to $49,999",null,"Y",{"$f":"'HHIncome-10YearComparison'!$F$34/1.645","v":25.531914893617021},{"$f":"'HHIncome-10YearComparison'!$J$34/1.645","v":66.331075158440541},71.075243297575781,{"$f":"'HHIncome-10YearComparison'!$E$34-'HHIncome-10YearComparison'!$I$34","v":-185},2.6028753672421119,1.645]
["Y",{"$f":"'HHIncome-10YearComparison'!$F$35/1.645","v":39.513677811550153},{"$f":"'HHIncome-10YearComparison'!$M$35/1.645","v":72.462924047142366},82.536089655719181,{"$f":"'HHIncome-10YearComparison'!$E$35-'HHIncome-10YearComparison'!$L$35","v":-203},2.4595301382312762,1.645,"Household Income $50,000 to $74,999",null,"Y",{"$f":"'HHIncome-10YearComparison'!$F$35/1.645","v":39.513677811550153},{"$f":"'HHIncome-10YearComparison'!$J$35/1.645","v":83.14945082819581},92.060642552751844,{"$f":"'HHIncome-10YearComparison'!$E$35-'HHIncome-10YearComparison'!$I$35","v":-374},4.062539535129722,1.645]
["Y",{"$f":"'HHIncome-10YearComparison'!$F$36/1.645","v":32.826747720364743},{"$f":"'HHIncome-10YearComparison'!$M$36/1.645","v":86.930091185410333},92.921666576747469,{"$f":"'HHIncome-10YearComparison'!$E$36-'HHIncome-10YearComparison'!$L$36","v":-266},2.8626262291615343,1.645,"Household Income $75,000 to $99,999",null,"Y",{"$f":"'HHIncome-10YearComparison'!$F$36/1.645","v":32.826747720364743},{"$f":"'HHIncome-10YearComparison'!$J$36/1.645","v":70.516717325227958},77.783049491663519,{"$f":"'HHIncome-10YearComparison'!$E$36-'HHIncome-10YearComparison'!$I$36","v":-261},3.355486853571779,1.645]
["Y",{"$f":"'HHIncome-10YearComparison'!$F$37/1.645","v":33.434650455927049},{"$f":"'HHIncome-10YearComparison'!$M$37/1.645","v":105.23040423930505},110.41428271504358,{"$f":"'HHIncome-10YearComparison'!$E$37-'HHIncome-10YearComparison'!$L$37","v":-691},6.2582483262906123,1.645,"Household Income $100,000 to $149,999",null,"Y",{"$f":"'HHIncome-10YearComparison'!$F$37/1.645","v":33.434650455927049},{"$f":"'HHIncome-10YearComparison'!$J$37/1.645","v":115.68853840048388},120.42306161342293,{"$f":"'HHIncome-10YearComparison'!$E$37-'HHIncome-10YearComparison'!$I$37","v":-710},5.8958806601281424,1.645]
["Y",{"$f":"'HHIncome-10YearComparison'!$F$38/1.645","v":38.90577507598784},{"$f":"'HHIncome-10YearComparison'!$M$38/1.645","v":85.714285714285708},94.13075007548575,{"$f":"'HHIncome-10YearComparison'!$E$38-'HHIncome-10YearComparison'!$L$38","v":-369},3.9200792483231024,1.645,"Household Income $150,000 to $199,999",null,"Y",{"$f":"'HHIncome-10YearComparison'!$F$38/1.645","v":38.90577507598784},{"$f":"'HHIncome-10YearComparison'!$J$38/1.645","v":59.574468085106382},71.153190946623866,{"$f":"'HHIncome-10YearComparison'!$E$38-'HHIncome-10YearComparison'!$I$38","v":-149},2.0940733369466669,1.645]
["Y",{"$f":"'HHIncome-10YearComparison'!$F$39/1.645","v":43.768996960486319},{"$f":"'HHIncome-10YearComparison'!$M$39/1.645","v":83.890577507598778},94.622164895364222,{"$f":"'HHIncome-10YearComparison'!$E$39-'HHIncome-10YearComparison'!$L$39","v":-333},3.5192599996865481,1.645,"Household Income Greater than $200,000",null,"N",{"$f":"'HHIncome-10YearComparison'!$F$39/1.645","v":43.768996960486319},{"$f":"'HHIncome-10YearComparison'!$J$39/1.645","v":69.908814589665653},82.480103372021247,{"$f":"'HHIncome-10YearComparison'!$E$39-'HHIncome-10YearComparison'!$I$39","v":-122},1.4791446059388018,1.645]
["N",{"$f":"'HHIncome-10YearComparison'!$F$41/1.645","v":9521.5805471124622},{"$f":"'HHIncome-10YearComparison'!$M$41/1.645","v":4964.133738601824},10737.929031702313,{"$f":"'HHIncome-10YearComparison'!$E$41-'HHIncome-10YearComparison'!$I$41","v":-4942},0.46023772232144572,1.645,"Median Household Income",null,"N",{"$f":"'HHIncome-10YearComparison'!$F$41/1.645","v":9521.5805471124622},{"$f":"'HHIncome-10YearComparison'!$J$41/1.645","v":10038.905775075988},13836.188972256936,{"$f":"'HHIncome-10YearComparison'!$E$41-'HHIncome-10YearComparison'!$I$41","v":-4942},0.35717927891193507,1.645]
["N",{"$f":"PovertyCharacteristics!$E$54/1.645","v":41.337386018237083},{"$f":"PovertyCharacteristics!$M54/1.645","v":93.61702127659575},102.33731555753906,{"$f":"PovertyCharacteristics!$D54-PovertyCharacteristics!$L54","v":-116},1.1335063790566122,1.645,"Total Households Below Poverty Level",null,"N",{"$f":"PovertyCharacteristics!$I$54/1.645","v":41.945288753799389},{"$f":"PovertyCharacteristics!$M54/1.645","v":93.61702127659575},102.58437464517776,{"$f":"PovertyCharacteristics!$H54-PovertyCharacteristics!$L54","v":-143},1.3939744770547478,1.645]
["N",{"$f":"PovertyCharacteristics!$E$55/1.645","v":30.3951367781155},{"$f":"PovertyCharacteristics!$M55/1.645","v":65.045592705167167},71.79689039315592,{"$f":"PovertyCharacteristics!$D55-PovertyCharacteristics!$L55","v":-68},0.94711622784267746,1.645,"Family Households Below Poverty Level",null,"N",{"$f":"PovertyCharacteristics!$I$55/1.645","v":33.434650455927049},{"$f":"PovertyCharacteristics!$M55/1.645","v":65.045592705167167},73.135524756964159,{"$f":"PovertyCharacteristics!$H55-PovertyCharacteristics!$L55","v":-36},0.49223684549514335,1.645]
["N",{"$f":"PovertyCharacteristics!$E$56/1.645","v":9.1185410334346511},{"$f":"PovertyCharacteristics!$M56/1.645","v":9.7264437689969601},13.332347841617818,{"$f":"PovertyCharacteristics!$D56-PovertyCharacteristics!$L56","v":0},0,1.645,"Married Couple Fam HH Below Poverty Level",null,"N",{"$f":"PovertyCharacteristics!$I$56/1.645","v":12.1580547112462},{"$f":"PovertyCharacteristics!$M56/1.645","v":9.7264437689969601},15.569906960323035,{"$f":"PovertyCharacteristics!$H56-PovertyCharacteristics!$L56","v":0},0,1.645]
["N",{"$f":"PovertyCharacteristics!$E$57/1.645","v":0},{"$f":"PovertyCharacteristics!$M57/1.645","v":65.045592705167167},65.045592705167167,{"$f":"PovertyCharacteristics!$D57-PovertyCharacteristics!$L57","v":-104},1.5988785046728973,1.645,"M C Fam HH w/Children Below Poverty Level",null,"N",{"$f":"PovertyCharacteristics!$I$57/1.645","v":23.100303951367781},{"$f":"PovertyCharacteristics!$M57/1.645","v":65.045592705167167},69.02574282839754,{"$f":"PovertyCharacteristics!$H57-PovertyCharacteristics!$L57","v":-64},0.92719031157850973,1.645]
["N",{"$f":"PovertyCharacteristics!$E$58/1.645","v":69.300911854103347},{"$f":"PovertyCharacteristics!$M58/1.645","v":12.76595744680851},70.46691460071122,{"$f":"PovertyCharacteristics!$D58-PovertyCharacteristics!$L58","v":0},0,1.645,"Male Head of Family HH  Below Poverty Level",null,"N",{"$f":"PovertyCharacteristics!$I$58/1.645","v":12.1580547112462},{"$f":"PovertyCharacteristics!$M58/1.645","v":12.76595744680851},17.62917933130699,{"$f":"PovertyCharacteristics!$H58-PovertyCharacteristics!$L58","v":0},0,1.645]
["Y",{"$f":"PovertyCharacteristics!$E$59/1.645","v":41.337386018237083},{"$f":"PovertyCharacteristics!$M59/1.645","v":12.76595744680851},43.263716349320575,{"$f":"PovertyCharacteristics!$D59-PovertyCharacteristics!$L59","v":174},4.021845894954712,1.645,"Male Head of HH w/Children Below Poverty Level",null,"N",{"$f":"PovertyCharacteristics!$I$59/1.645","v":12.1580547112462},{"$f":"PovertyCharacteristics!$M59/1.645","v":12.76595744680851},17.62917933130699,{"$f":"PovertyCharacteristics!$H59-PovertyCharacteristics!$L59","v":0},0,1.645]
["N",{"$f":"PovertyCharacteristics!$E$60/1.645","v":34.650455927051674},{"$f":"PovertyCharacteristics!$M60/1.645","v":66.869300911854097},75.313727171031985,{"$f":"PovertyCharacteristics!$D60-PovertyCharacteristics!$L60","v":-48},0.63733401337309326,1.645,"Female Head of Family HH  Below Poverty Level",null,"N",{"$f":"PovertyCharacteristics!$I$60/1.645","v":21.88449848024316},{"$f":"PovertyCharacteristics!$M60/1.645","v":66.869300911854097},70.359325452791651,{"$f":"PovertyCharacteristics!$H60-PovertyCharacteristics!$L60","v":-107},1.5207650060800086,1.645]
["N",{"$f":"PovertyCharacteristics!$E$61/1.645","v":27.96352583586626},{"$f":"PovertyCharacteristics!$M61/1.645","v":66.869300911854097},72.480771116298499,{"$f":"PovertyCharacteristics!$D61-PovertyCharacteristics!$L61","v":-105},1.4486600843625548,1.645,"Female Head of HH w/Children Below Poverty Level",null,"N",{"$f":"PovertyCharacteristics!$I$61/1.645","v":21.88449848024316},{"$f":"PovertyCharacteristics!$M61/1.645","v":66.869300911854097},70.359325452791651,{"$f":"PovertyCharacteristics!$H61-PovertyCharacteristics!$L61","v":-107},1.5207650060800086,1.645]
["N",{"$f":"PovertyCharacteristics!$E$62/1.645","v":61.398176291793312},{"$f":"PovertyCharacteristics!$M62/1.645","v":106.99088145896657},123.35633249786882,{"$f":"PovertyCharacteristics!$D62-PovertyCharacteristics!$L62","v":-162},1.3132686155597144,1.645,"Non-Family HH  Below Poverty Level",null,"N",{"$f":"PovertyCharacteristics!$I$62/1.645","v":88.145896656534958},{"$f":"PovertyCharacteristics!$M62/1.645","v":106.99088145896657},138.62448489625191,{"$f":"PovertyCharacteristics!$H62-PovertyCharacteristics!$L62","v":-58},0.41839650508644149,1.645]
["N",{"$f":"PovertyCharacteristics!$E$68/1.645","v":179.33130699088144},{"$f":"PovertyCharacteristics!$M68/1.645","v":224.31610942249239},287.18884834460641,{"$f":"PovertyCharacteristics!$D68-PovertyCharacteristics!$L68","v":-289},1.0063064832281383,1.645,"Total Households At or Above Poverty Level",null,"N",{"$f":"PovertyCharacteristics!$I$68/1.645","v":174.46808510638297},{"$f":"PovertyCharacteristics!$M68/1.645","v":224.31610942249239},284.17746157486113,{"$f":"PovertyCharacteristics!$H68-PovertyCharacteristics!$L68","v":-242},0.85158055342911043,1.645]
["N",{"$f":"PovertyCharacteristics!$E$69/1.645","v":154.40729483282675},{"$f":"PovertyCharacteristics!$M69/1.645","v":176.29179331306992},234.35103816098118,{"$f":"PovertyCharacteristics!$D69-PovertyCharacteristics!$L69","v":225},0.96009815772799034,1.645,"Family Households At or Above Poverty Level",null,"N",{"$f":"PovertyCharacteristics!$I$69/1.645","v":161.70212765957447},{"$f":"PovertyCharacteristics!$M69/1.645","v":176.29179331306992},239.22034712618299,{"$f":"PovertyCharacteristics!$H69-PovertyCharacteristics!$L69","v":151},0.63121720963121553,1.645]
["Y",{"$f":"PovertyCharacteristics!$E$70/1.645","v":48.632218844984799},{"$f":"PovertyCharacteristics!$M70/1.645","v":183.58662613981764},189.91877739493708,{"$f":"PovertyCharacteristics!$D70-PovertyCharacteristics!$L70","v":-4972},26.179612506986079,1.645,"Married Couple Fam HH At or Above Poverty Level",null,"N",{"$f":"PovertyCharacteristics!$I$70/1.645","v":190.27355623100303},{"$f":"PovertyCharacteristics!$M70/1.645","v":183.58662613981764},264.4013530566624,{"$f":"PovertyCharacteristics!$H70-PovertyCharacteristics!$L70","v":-63},0.23827412103484513,1.645]
["Y",{"$f":"PovertyCharacteristics!$E$71/1.645","v":124.01215805471125},{"$f":"PovertyCharacteristics!$M71/1.645","v":150.15197568389058},194.74247391661211,{"$f":"PovertyCharacteristics!$D71-PovertyCharacteristics!$L71","v":387},1.9872398260982951,1.645,"M C Fam HH w/Children At or Above Poverty Level",null,"Y",{"$f":"PovertyCharacteristics!$I$71/1.645","v":124.01215805471125},{"$f":"PovertyCharacteristics!$M71/1.645","v":150.15197568389058},194.74247391661211,{"$f":"PovertyCharacteristics!$H71-PovertyCharacteristics!$L71","v":387},1.9872398260982951,1.645]
["N",{"$f":"PovertyCharacteristics!$E$72/1.645","v":82.066869300911847},{"$f":"PovertyCharacteristics!$M72/1.645","v":84.498480243161097},117.79203793235277,{"$f":"PovertyCharacteristics!$D72-PovertyCharacteristics!$L72","v":16},0.13583261042812333,1.645,"Male Head of Family HH  At or Above Poverty Level",null,"N",{"$f":"PovertyCharacteristics!$I$72/1.645","v":105.16717325227964},{"$f":"PovertyCharacteristics!$M72/1.645","v":84.498480243161097},134.90784815302217,{"$f":"PovertyCharacteristics!$H72-PovertyCharacteristics!$L72","v":21},0.15566181128454656,1.645]
["Y",{"$f":"PovertyCharacteristics!$E$73/1.645","v":154.40729483282675},{"$f":"PovertyCharacteristics!$M73/1.645","v":60.182370820668694},165.72124322243047,{"$f":"PovertyCharacteristics!$D73-PovertyCharacteristics!$L73","v":7597},45.842040840855468,1.645,"Male Head of HH w/Children At or Above Poverty Level",null,"N",{"$f":"PovertyCharacteristics!$I$73/1.645","v":46.808510638297875},{"$f":"PovertyCharacteristics!$M73/1.645","v":60.182370820668694},76.242733593255423,{"$f":"PovertyCharacteristics!$H73-PovertyCharacteristics!$L73","v":-82},1.075512329312047,1.645]
["N",{"$f":"PovertyCharacteristics!$E$74/1.645","v":133.13069908814589},{"$f":"PovertyCharacteristics!$M74/1.645","v":122.79635258358662},181.11523195891331,{"$f":"PovertyCharacteristics!$D74-PovertyCharacteristics!$L74","v":168},0.92758625645639481,1.645,"Female Head of Family HH  At or Above Poverty Level",null,"N",{"$f":"PovertyCharacteristics!$I$74/1.645","v":127.65957446808511},{"$f":"PovertyCharacteristics!$M74/1.645","v":122.79635258358662},177.13246783468324,{"$f":"PovertyCharacteristics!$H74-PovertyCharacteristics!$L74","v":193},1.0895800321605966,1.645]
["Y",{"$f":"PovertyCharacteristics!$E$75/1.645","v":161.09422492401217},{"$f":"PovertyCharacteristics!$M75/1.645","v":101.51975683890578},190.41431231002247,{"$f":"PovertyCharacteristics!$D75-PovertyCharacteristics!$L75","v":2739},14.384422928989212,1.645,"Female Head of HH w/Children At or Above Poverty Level",null,"N",{"$f":"PovertyCharacteristics!$I$75/1.645","v":99.696048632218847},{"$f":"PovertyCharacteristics!$M75/1.645","v":101.51975683890578},142.28690432189572,{"$f":"PovertyCharacteristics!$H75-PovertyCharacteristics!$L75","v":42},0.2951782541068107,1.645]
["Y",{"$f":"PovertyCharacteristics!$E$76/1.645","v":145.89665653495442},{"$f":"PovertyCharacteristics!$M76/1.645","v":231.61094224924011},273.7324660277975,{"$f":"PovertyCharacteristics!$D76-PovertyCharacteristics!$L76","v":-2011},7.3465892781449726,1.645,"Non-Family HH  At or Above Poverty Level",null,"N",{"$f":"PovertyCharacteristics!$I$76/1.645","v":214.58966565349544},{"$f":"PovertyCharacteristics!$M76/1.645","v":231.61094224924011},315.74095897564479,{"$f":"PovertyCharacteristics!$H76-PovertyCharacteristics!$L76","v":-393},1.2446912218009534,1.645]
["Y",{"$f":"PovertyCharacteristics!$E24/1.645","v":159.87841945288753},{"$f":"PovertyCharacteristics!M24/1.645","v":80.243161094224916},178.88564478221045,{"$f":"PovertyCharacteristics!H24-PovertyCharacteristics!L24","v":1012},5.657245449919075,1.645,"Total Individuals Living in Poverty",null,{"$f":"IF(O112>P112,\"Y\",\"N\")","v":"Y"},{"$f":"PovertyCharacteristics!$I24/1.645","v":175.07598784194528},{"$f":"PovertyCharacteristics!$M24/1.645","v":80.243161094224916},192.58911293535442,{"$f":"PovertyCharacteristics!$H24-PovertyCharacteristics!$L24","v":1012},5.2547103238369131,1.645]
["N",{"$f":"PovertyCharacteristics!$E25/1.645","v":35.404789735102824},{"$f":"PovertyCharacteristics!M25/1.645","v":15.569906960323035},38.677139746107883,{"$f":"PovertyCharacteristics!H25-PovertyCharacteristics!L25","v":-25},0.64637664946554829,1.645,"Individuals Under 5 yrs. Living in Poverty",null,"N",{"$f":"PovertyCharacteristics!$I25/1.645","v":29.935737999380258},{"$f":"PovertyCharacteristics!$M25/1.645","v":15.569906960323035},33.742709024627153,{"$f":"PovertyCharacteristics!$H25-PovertyCharacteristics!$L25","v":-25},0.74090079672481901,1.645]
["N",{"$f":"PovertyCharacteristics!$E26/1.645","v":143.61179450452542},{"$f":"PovertyCharacteristics!M26/1.645","v":29.280473139920474},146.56634548254127,{"$f":"PovertyCharacteristics!H26-PovertyCharacteristics!L26","v":137},0.9347302721436771,1.645,"Individuals 5 to 17 yrs. Living in Poverty",null,"Y",{"$f":"PovertyCharacteristics!$I26/1.645","v":46.224597834894539},{"$f":"PovertyCharacteristics!$M26/1.645","v":29.280473139920474},54.71800025855606,{"$f":"PovertyCharacteristics!$H26-PovertyCharacteristics!$L26","v":137},2.5037464701312397,1.645]
["Y",{"$f":"PovertyCharacteristics!$E27/1.645","v":99.903409527898546},{"$f":"PovertyCharacteristics!M27/1.645","v":52.392611371222472},112.80814226639387,{"$f":"PovertyCharacteristics!H27-PovertyCharacteristics!L27","v":613},5.4340049191876094,1.645,"Individuals 18 to 64 yrs. Living in Poverty",null,"Y",{"$f":"PovertyCharacteristics!$I27/1.645","v":121.94019753787047},{"$f":"PovertyCharacteristics!$M27/1.645","v":52.392611371222472},132.7192431483499,{"$f":"PovertyCharacteristics!$H27-PovertyCharacteristics!$L27","v":613},4.618772571772471,1.645]
["Y",{"$f":"PovertyCharacteristics!$E28/1.645","v":42.265637193358536},{"$f":"PovertyCharacteristics!M28/1.645","v":13.755268691774786},44.447626529923191,{"$f":"PovertyCharacteristics!H28-PovertyCharacteristics!L28","v":122},2.7448034805158095,1.645,"Individuals 65 to 74 yrs. Living in Poverty",null,"Y",{"$f":"PovertyCharacteristics!$I28/1.645","v":37.45884620791221},{"$f":"PovertyCharacteristics!$M28/1.645","v":13.755268691774786},39.904543300367919,{"$f":"PovertyCharacteristics!$H28-PovertyCharacteristics!$L28","v":122},3.0572959846122374,1.645]
["Y",{"$f":"PovertyCharacteristics!$E29/1.645","v":44.326906927985753},{"$f":"PovertyCharacteristics!M29/1.645","v":9.8959395720970864},45.41810539660267,{"$f":"PovertyCharacteristics!H29-PovertyCharacteristics!L29","v":165},3.6329124378742184,1.645,"Individuals 75 yrs. & Over Living in Poverty",null,"Y",{"$f":"PovertyCharacteristics!$I29/1.645","v":58.361828688179891},{"$f":"PovertyCharacteristics!$M29/1.645","v":9.8959395720970864},59.194870283184628,{"$f":"PovertyCharacteristics!$H29-PovertyCharacteristics!$L29","v":165},2.7874036924255452,1.645]
[null,null,null,null,null,null,null,"Under 5",null,"N",{"$f":"DisabilityByAgePrior5YearEst!$E$31/1.645","v":73.498432414893827},{"$f":"DisabilityByAge!$E$31/1.645","v":81.363642451568992},{"$f":"SQRT((K118^2)+(L118^2))","v":109.64516350680259},{"$f":"DisabilityByAge!$D$31-DisabilityByAgePrior5YearEst!$D$31","v":64},0.58370107675592386,1.645]
[null,null,null,null,null,null,null,"5 to 17",null,"N",{"$f":"DisabilityByAgePrior5YearEst!$F$31/1.645","v":741.64133738601822},{"$f":"DisabilityByAge!$F$31/1.645","v":674.77203647416411},{"$f":"SQRT((K119^2)+(L119^2))","v":1002.671020089447},{"$f":"DisabilityByAge!$D$31-DisabilityByAgePrior5YearEst!$D$31","v":64},6.3829510096233402E-2,1.645]
[null,null,null,null,null,null,null,"18 to 34",null,"N",{"$f":"DisabilityByAgePrior5YearEst!$I$31/1.645","v":121.23049912009618},{"$f":"DisabilityByAge!$I$31/1.645","v":137.988564897461},183.6781913003513,{"$f":"DisabilityByAge!$D$31-DisabilityByAgePrior5YearEst!$D$31","v":64},0.34843548679846781,1.645]
[null,null,null,null,null,null,null,"35 to 64",null,"N",{"$f":"DisabilityByAgePrior5YearEst!$K$31/1.645","v":114.3439029257287},{"$f":"DisabilityByAge!$K$31/1.645","v":116.49706928107477},163.23631730521245,{"$f":"DisabilityByAge!$D$31-DisabilityByAgePrior5YearEst!$D$31","v":64},0.39206961451069416,1.645]
[null,null,null,null,null,null,null,"65 to 74",null,"N",{"$f":"DisabilityByAgePrior5YearEst!$M$31/1.645","v":86.58720396238229},{"$f":"DisabilityByAge!$M$31/1.645","v":115.266117497561},144.16525841195141,{"$f":"DisabilityByAge!$D$31-DisabilityByAgePrior5YearEst!$D$31","v":64},0.44393497230185902,1.645]
[null,null,null,null,null,null,null,"75 and Over",null,"N",{"$f":"DisabilityByAgePrior5YearEst!$O$31/1.645","v":77.04072990539737},{"$f":"DisabilityByAge!$O$31/1.645","v":69.423450560036201},103.70578359965359,{"$f":"DisabilityByAge!$D$31-DisabilityByAgePrior5YearEst!$D$31","v":64},0.61713047988785252,1.645]
[null,null,null,null,null,null,null,"With a Disability -Under 5",null,"Y",{"$f":"DisabilityByAgePrior5YearEst!$E$33/1.645","v":12.895564398538861},{"$f":"DisabilityByAge!$E$33/1.645","v":13.755268691774786},18.854787135891581,{"$f":"DisabilityByAge!$D$31-DisabilityByAgePrior5YearEst!$D$31","v":64},3.394363433473663,1.645]
[null,null,null,null,null,null,null,"With a Disability -5 to 17",null,"N",{"$f":"DisabilityByAgePrior5YearEst!$F$33/1.645","v":0},{"$f":"DisabilityByAge!$F$33/1.645","v":87.537993920972639},87.537993920972639,{"$f":"DisabilityByAge!$D$31-DisabilityByAgePrior5YearEst!$D$31","v":64},0.73111111111111116,1.645]
[null,null,null,null,null,null,null,"With a Disability -18 to 34",null,"Y",{"$f":"DisabilityByAgePrior5YearEst!$I$33/1.645","v":12.895564398538861},{"$f":"DisabilityByAge!$I$33/1.645","v":17.534595868517879},21.76597421272724,{"$f":"DisabilityByAge!$D$31-DisabilityByAgePrior5YearEst!$D$31","v":64},2.940369191587906,1.645]
[null,null,null,null,null,null,null,"With a Disability -35 to 64",null,"N",{"$f":"DisabilityByAgePrior5YearEst!$K$33/1.645","v":58.90386162556721},{"$f":"DisabilityByAge!$K$33/1.645","v":83.318165179985002},102.03715775815805,{"$f":"DisabilityByAge!$D$31-DisabilityByAgePrior5YearEst!$D$31","v":64},{"$f":"ABS((N127/M127))","v":0.62722248841631512},1.645]
[null,null,null,null,null,null,null,"With a Disability -65 to 74",null,"N",{"$f":"DisabilityByAgePrior5YearEst!$M$33/1.645","v":59.016680361542853},{"$f":"DisabilityByAge!$M$33/1.645","v":63.186803453793473},86.461209172696897,{"$f":"DisabilityByAge!$D$31-DisabilityByAgePrior5YearEst!$D$31","v":64},0.74021634224623134,1.645]
[null,null,null,null,null,null,null,"With a Disability -75 and Over",null,"N",{"$f":"DisabilityByAgePrior5YearEst!$O$33/1.645","v":39.881384721840064},{"$f":"DisabilityByAge!$O$33/1.645","v":50.788081639405284},64.575181640800011,{"$f":"DisabilityByAge!$D$31-DisabilityByAgePrior5YearEst!$D$31","v":64},0.99109283743095822,1.645]
[null,null,null,null,null,null,null,"Hearing Disability - Under 5",null,"Y",{"$f":"DisabilityByAgePrior5YearEst!$E$38/1.645","v":12.895564398538861},{"$f":"DisabilityByAge!$E$38/1.645","v":13.755268691774786},18.854787135891581,{"$f":"DisabilityByAge!$D$31-DisabilityByAgePrior5YearEst!$D$31","v":64},3.394363433473663,1.645]
[null,null,null,null,null,null,null,"Hearing Disability - 5 to 17",null,{"$error":"#DIV/0!"},{"$f":"DisabilityByAgePrior5YearEst!$F$38/1.645","v":0},{"$f":"DisabilityByAge!$F$38/1.645","v":0},0,{"$f":"DisabilityByAge!$D$31-DisabilityByAgePrior5YearEst!$D$31","v":64},{"$error":"#DIV/0!"},1.645]
[null,null,null,null,null,null,null,"Hearing Disability - 18 to 34",null,"Y",{"$f":"DisabilityByAgePrior5YearEst!$I$38/1.645","v":12.895564398538861},{"$f":"DisabilityByAge!$I$38/1.645","v":13.755268691774786},18.854787135891581,{"$f":"DisabilityByAge!$D$31-DisabilityByAgePrior5YearEst!$D$31","v":64},3.394363433473663,1.645]
[null,null,null,null,null,null,null,"Hearing Disability - 35 to 64",null,"N",{"$f":"DisabilityByAgePrior5YearEst!$K$38/1.645","v":32.71962709008605},{"$f":"DisabilityByAge!$K$38/1.645","v":48.935226255314547},58.866207331312921,{"$f":"DisabilityByAge!$D$31-DisabilityByAgePrior5YearEst!$D$31","v":64},1.0872112014927831,1.645]
[null,null,null,null,null,null,null,"Hearing Disability - 65 to 74",null,"Y",{"$f":"DisabilityByAgePrior5YearEst!$M$38/1.645","v":22.261195651793987},{"$f":"DisabilityByAge!$M$38/1.645","v":15.099990697111515},26.899266735364847,{"$f":"DisabilityByAge!$D$31-DisabilityByAgePrior5YearEst!$D$31","v":64},2.3792470118101137,1.645]
[null,null,null,null,null,null,null,"Hearing Disability - 75 and Over",null,"N",{"$f":"DisabilityByAgePrior5YearEst!$O$38/1.645","v":29.991237406793946},{"$f":"DisabilityByAge!$O$38/1.645","v":40.442668397519505},50.349615175315883,{"$f":"DisabilityByAge!$D$31-DisabilityByAgePrior5YearEst!$D$31","v":64},1.2711119991116888,1.645]
[null,null,null,null,null,null,null,"Visual Disability - Under 5",null,"Y",{"$f":"DisabilityByAgePrior5YearEst!$E$39/1.645","v":12.895564398538861},{"$f":"DisabilityByAge!$E$39/1.645","v":13.755268691774786},18.854787135891581,{"$f":"DisabilityByAge!$D$31-DisabilityByAgePrior5YearEst!$D$31","v":64},3.394363433473663,1.645]
[null,null,null,null,null,null,null,"Visual Disability - 5 to 17",null,{"$error":"#DIV/0!"},{"$f":"DisabilityByAgePrior5YearEst!$F$39/1.645","v":0},{"$f":"DisabilityByAge!$F$39/1.645","v":0},0,{"$f":"DisabilityByAge!$D$31-DisabilityByAgePrior5YearEst!$D$31","v":64},{"$error":"#DIV/0!"},1.645]
[null,null,null,null,null,null,null,"Visual Disability - 18 to 34",null,"Y",{"$f":"DisabilityByAgePrior5YearEst!$I$39/1.645","v":12.895564398538861},{"$f":"DisabilityByAge!$I$39/1.645","v":13.755268691774786},18.854787135891581,{"$f":"DisabilityByAge!$D$31-DisabilityByAgePrior5YearEst!$D$31","v":64},3.394363433473663,1.645]
[null,null,null,null,null,null,null,"Visual Disability - 35 to 64",null,"N",{"$f":"DisabilityByAgePrior5YearEst!$K$39/1.645","v":16.186658912698295},{"$f":"DisabilityByAge!$K$39/1.645","v":49.747842097421923},{"$f":"SQRT((K140^2)+(L140^2))","v":50.955160096524928},{"$f":"DisabilityByAge!$D$31-DisabilityByAgePrior5YearEst!$D$31","v":64},{"$f":"ABS((N140/M140))","v":1.2560062588119454},1.645]
[null,null,null,null,null,null,null,"Visual Disability - 65 to 74",null,"N",{"$f":"DisabilityByAgePrior5YearEst!$M$39/1.645","v":48.518103195708001},{"$f":"DisabilityByAge!$M$39/1.645","v":15.569906960323035},50.955160096524928,{"$f":"DisabilityByAge!$D$31-DisabilityByAgePrior5YearEst!$D$31","v":64},1.2560062588119454,1.645]
[null,null,null,null,null,null,null,"Visual Disability - 75 and Over",null,"Y",{"$f":"DisabilityByAgePrior5YearEst!$O$39/1.645","v":18.776225181131309},{"$f":"DisabilityByAge!$O$39/1.645","v":29.362394348287712},34.852501114222889,{"$f":"DisabilityByAge!$D$31-DisabilityByAgePrior5YearEst!$D$31","v":64},1.8363101055574564,1.645]
[null,null,null,null,null,null,null,"Cognative Disability - 5 to 17",null,"N",{"$f":"DisabilityByAgePrior5YearEst!$F$40/1.645","v":0},{"$f":"DisabilityByAge!$F$40/1.645","v":87.537993920972639},87.537993920972639,{"$f":"DisabilityByAge!$D$31-DisabilityByAgePrior5YearEst!$D$31","v":64},0.73111111111111116,1.645]
[null,null,null,null,null,null,null,"Cognative Disability - 18 to 34",null,"Y",{"$f":"DisabilityByAgePrior5YearEst!$I$40/1.645","v":12.895564398538861},{"$f":"DisabilityByAge!$I$40/1.645","v":17.534595868517879},21.76597421272724,{"$f":"DisabilityByAge!$D$31-DisabilityByAgePrior5YearEst!$D$31","v":64},2.940369191587906,1.645]
[null,null,null,null,null,null,null,"Cognative Disability - 35 to 64",null,{"$f":"IF(O144>P144,\"Y\",\"N\")","v":"Y"},{"$f":"DisabilityByAgePrior5YearEst!$K$40/1.645","v":49.58414848487611},{"$f":"DisabilityByAge!$K$40/1.645","v":34.926644187776837},{"$f":"SQRT((K145^2)+(L145^2))","v":21.423720591739933},{"$f":"DisabilityByAge!$D$31-DisabilityByAgePrior5YearEst!$D$31","v":64},{"$f":"ABS((N145/M145))","v":2.9873429186093685},1.645]
[null,null,null,null,null,null,null,"Cognative Disability - 65 to 74",null,"Y",{"$f":"DisabilityByAgePrior5YearEst!$M$40/1.645","v":14.715767096547362},{"$f":"DisabilityByAge!$M$40/1.645","v":15.569906960323035},{"$f":"SQRT((K145^2)+(L145^2))","v":21.423720591739933},{"$f":"DisabilityByAge!$D$31-DisabilityByAgePrior5YearEst!$D$31","v":64},{"$f":"ABS((N145/M145))","v":2.9873429186093685},1.645]
[null,null,null,null,null,null,null,"Cognative Disability - 75 and Over",null,"Y",{"$f":"DisabilityByAgePrior5YearEst!$O$40/1.645","v":24.270473893832378},{"$f":"DisabilityByAge!$O$40/1.645","v":17.671053925530252},{"$f":"SQRT((K146^2)+(L146^2))","v":30.022026078700904},{"$f":"DisabilityByAge!$D$31-DisabilityByAgePrior5YearEst!$D$31","v":64},{"$f":"ABS((N146/M146))","v":2.1317681835405753},1.645]
[null,null,null,null,null,null,null,"Amblatory Disability - 5 to 17",null,{"$error":"#DIV/0!"},{"$f":"DisabilityByAgePrior5YearEst!$F$41/1.645","v":0},{"$f":"DisabilityByAge!$F$41/1.645","v":0},{"$f":"SQRT((K147^2)+(L147^2))","v":0},{"$f":"DisabilityByAge!$D$31-DisabilityByAgePrior5YearEst!$D$31","v":64},{"$f":"ABS((N147/M147))","v":{"$error":"#DIV/0!"}},1.645]
[null,null,null,null,null,null,null,"Amblatory Disability - 18 to 34",null,"Y",{"$f":"DisabilityByAgePrior5YearEst!$I$41/1.645","v":12.895564398538861},{"$f":"DisabilityByAge!$I$41/1.645","v":13.755268691774786},{"$f":"SQRT((K148^2)+(L148^2))","v":18.854787135891581},{"$f":"DisabilityByAge!$D$31-DisabilityByAgePrior5YearEst!$D$31","v":64},{"$f":"ABS((N148/M148))","v":3.394363433473663},1.645]
[null,null,null,null,null,null,null,"Amblatory Disability - 35 to 64",null,"N",{"$f":"DisabilityByAgePrior5YearEst!$K$41/1.645","v":39.293282945148476},{"$f":"DisabilityByAge!$K$41/1.645","v":47.478721434082999},{"$f":"SQRT((K150^2)+(L150^2))","v":67.829524633499688},{"$f":"DisabilityByAge!$D$31-DisabilityByAgePrior5YearEst!$D$31","v":64},{"$f":"ABS((N150/M150))","v":0.94354192139497384},1.645]
[null,null,null,null,null,null,null,"Amblatory Disability - 65 to 74",null,"N",{"$f":"DisabilityByAgePrior5YearEst!$M$41/1.645","v":27.523966985220113},{"$f":"DisabilityByAge!$M$41/1.645","v":61.994158219973066},{"$f":"SQRT((K150^2)+(L150^2))","v":67.829524633499688},{"$f":"DisabilityByAge!$D$31-DisabilityByAgePrior5YearEst!$D$31","v":64},{"$f":"ABS((N150/M150))","v":0.94354192139497384},1.645]
[null,null,null,null,null,null,null,"Amblatory Disability - 75 and Over",null,"Y",{"$f":"DisabilityByAgePrior5YearEst!$O$41/1.645","v":26.650833090313643},{"$f":"DisabilityByAge!$O$41/1.645","v":26.706240287524373},{"$f":"SQRT((K151^2)+(L151^2))","v":37.729168751812523},{"$f":"DisabilityByAge!$D$31-DisabilityByAgePrior5YearEst!$D$31","v":64},{"$f":"ABS((N151/M151))","v":1.6963002927787911},1.645]
[null,null,null,null,null,null,null,"Self Care Disability - 5 to 17",null,"Y",{"$f":"DisabilityByAgePrior5YearEst!$F$42/1.645","v":0},{"$f":"DisabilityByAge!$F$42/1.645","v":10.94224924012158},{"$f":"SQRT((K152^2)+(L152^2))","v":10.94224924012158},{"$f":"DisabilityByAge!$D$31-DisabilityByAgePrior5YearEst!$D$31","v":64},{"$f":"ABS((N152/M152))","v":5.8488888888888892},1.645]
[null,null,null,null,null,null,null,"Self Care Disability - 18 to 34",null,"Y",{"$f":"DisabilityByAgePrior5YearEst!$I$42/1.645","v":12.895564398538861},{"$f":"DisabilityByAge!$I$42/1.645","v":13.755268691774786},{"$f":"SQRT((K153^2)+(L153^2))","v":18.854787135891581},{"$f":"DisabilityByAge!$D$31-DisabilityByAgePrior5YearEst!$D$31","v":64},{"$f":"ABS((N153/M153))","v":3.394363433473663},1.645]
[null,null,null,null,null,null,null,"Self Care Disability - 35 to 64",null,"Y",{"$f":"DisabilityByAgePrior5YearEst!$K$42/1.645","v":33.21842210897082},{"$f":"DisabilityByAge!$K$42/1.645","v":13.755268691774786},{"$f":"SQRT((K155^2)+(L155^2))","v":21.423720591739933},{"$f":"DisabilityByAge!$D$31-DisabilityByAgePrior5YearEst!$D$31","v":64},{"$f":"ABS((N155/M155))","v":2.9873429186093685},1.645]
[null,null,null,null,null,null,null,"Self Care Disability - 65 to 74",null,"Y",{"$f":"DisabilityByAgePrior5YearEst!$M$42/1.645","v":14.715767096547362},{"$f":"DisabilityByAge!$M$42/1.645","v":15.569906960323035},{"$f":"SQRT((K155^2)+(L155^2))","v":21.423720591739933},{"$f":"DisabilityByAge!$D$31-DisabilityByAgePrior5YearEst!$D$31","v":64},{"$f":"ABS((N155/M155))","v":2.9873429186093685},1.645]
[null,null,null,null,null,null,null,"Self Care Disability - 75 and Over",null,"Y",{"$f":"DisabilityByAgePrior5YearEst!$O$42/1.645","v":18.247210966326605},{"$f":"DisabilityByAge!$O$42/1.645","v":16.536742259860723},{"$f":"SQRT((K156^2)+(L156^2))","v":24.625688876023215},{"$f":"DisabilityByAge!$D$31-DisabilityByAgePrior5YearEst!$D$31","v":64},{"$f":"ABS((N156/M156))","v":2.5989120678899487},1.645]
[null,null,null,null,null,null,null,"Independant Living Disability - 18 to 34",null,"Y",{"$f":"DisabilityByAgePrior5YearEst!$I$43/1.645","v":12.895564398538861},{"$f":"DisabilityByAge!$I$43/1.645","v":13.755268691774786},{"$f":"SQRT((K157^2)+(L157^2))","v":18.854787135891581},{"$f":"DisabilityByAge!$D$31-DisabilityByAgePrior5YearEst!$D$31","v":64},{"$f":"ABS((N157/M157))","v":3.394363433473663},1.645]
[null,null,null,null,null,null,null,"Independant Living Disability - 35 to 64",null,"Y",{"$f":"DisabilityByAgePrior5YearEst!$K$43/1.645","v":37.037194435812324},{"$f":"DisabilityByAge!$K$43/1.645","v":30.757715843583021},{"$f":"SQRT((K159^2)+(L159^2))","v":25.049723742293633},{"$f":"DisabilityByAge!$D$31-DisabilityByAgePrior5YearEst!$D$31","v":64},{"$f":"ABS((N159/M159))","v":2.5549183958441515},1.645]
[null,null,null,null,null,null,null,"Independant Living Disability - 65 to 74",null,"Y",{"$f":"DisabilityByAgePrior5YearEst!$M$43/1.645","v":20.935167608173327},{"$f":"DisabilityByAge!$M$43/1.645","v":13.755268691774786},{"$f":"SQRT((K159^2)+(L159^2))","v":25.049723742293633},{"$f":"DisabilityByAge!$D$31-DisabilityByAgePrior5YearEst!$D$31","v":64},{"$f":"ABS((N159/M159))","v":2.5549183958441515},1.645]
[null,null,null,null,null,null,null,"Independant Living Disability - 75 and Over",null,"Y",{"$f":"DisabilityByAgePrior5YearEst!$O$43/1.645","v":25.012815333058946},{"$f":"DisabilityByAge!$O$43/1.645","v":29.687818716291257},{"$f":"SQRT((K160^2)+(L160^2))","v":38.820194628789309},{"$f":"DisabilityByAge!$D$31-DisabilityByAgePrior5YearEst!$D$31","v":64},1.648626458779709,1.645]
[null,null,null,null,null,null,null,"No Disability - Under 5",null,"N",{"$f":"DisabilityByAgePrior5YearEst!$E$47/1.645","v":73.498432414893827},{"$f":"DisabilityByAge!$E$47/1.645","v":81.363642451568992},{"$f":"SQRT((K161^2)+(L161^2))","v":109.64516350680259},{"$f":"DisabilityByAge!$D$47-DisabilityByAgePrior5YearEst!$D$47","v":64},0.58370107675592386,1.645]
[null,null,null,null,null,null,null,"No Disability - 5 to 17",null,"N",{"$f":"DisabilityByAgePrior5YearEst!$F$47/1.645","v":741.64133738601822},{"$f":"DisabilityByAge!$F$47/1.645","v":587.23404255319144},{"$f":"SQRT((K162^2)+(L162^2))","v":945.97869640551903},{"$f":"DisabilityByAge!$D$47-DisabilityByAgePrior5YearEst!$D$47","v":64},6.7654800518430161E-2,1.645]
[null,null,null,null,null,null,null,"No Disability - 18 to 34",null,"N",{"$f":"DisabilityByAgePrior5YearEst!$I$47/1.645","v":121.23049912009618},{"$f":"DisabilityByAge!$I$47/1.645","v":139.70260896026724},184.96932953117656,{"$f":"DisabilityByAge!$D$47-DisabilityByAgePrior5YearEst!$D$47","v":64},0.34600330856047573,1.645]
[null,null,null,null,null,null,null,"No Disability - 35 to 64",null,"N",{"$f":"DisabilityByAgePrior5YearEst!$K$47/1.645","v":116.21122544150711},{"$f":"DisabilityByAge!$K$47/1.645","v":128.1219012849165},172.97476841284882,{"$f":"DisabilityByAge!$D$47-DisabilityByAgePrior5YearEst!$D$47","v":64},0.36999615948175474,1.645]
[null,null,null,null,null,null,null,"No Disability - 65 to 74",null,{"$f":"IF(O165>P165,\"Y\",\"N\")","v":"N"},{"$f":"DisabilityByAgePrior5YearEst!$M$47/1.645","v":77.241931010121291},{"$f":"DisabilityByAge!$M$47/1.645","v":99.759043038205249},126.16728012472498,{"$f":"DisabilityByAge!$D$47-DisabilityByAgePrior5YearEst!$D$47","v":64},0.50726305533995519,1.645]
[null,null,null,null,null,null,null,"No Disability - 75 and Over",null,"N",{"$f":"DisabilityByAgePrior5YearEst!$O$47/1.645","v":70.752148649758183},{"$f":"DisabilityByAge!$O$47/1.645","v":60.866213965047976},93.330394518594417,{"$f":"DisabilityByAge!$D$47-DisabilityByAgePrior5YearEst!$D$47","v":64},{"$f":"ABS((N166/M166))","v":0.68573587768611799},1.645]
[{"$f":"IF(F167>G167,\"Y\",\"N\")","v":"N"},null,null,null,null,null,null,"Renter Total:",null,"N",{"$f":"'RentalHousingCost-Prior5Yr'!$F$52/1.645","v":180.54711246200608},{"$f":"RentalHousingCost!$F$52/1.645","v":191.48936170212767},263.18327352523102,{"$f":"'RentalHousingCost-Prior5Yr'!$E$52-RentalHousingCost!$E$52","v":112},{"$f":"ABS((N167/M167))","v":0.42555895935104976},1.645]
["N",null,null,null,null,null,null,"Renter Less than 20.0 percent",null,"N",{"$f":"'RentalHousingCost-Prior5Yr'!$F$53/1.645","v":109.89765120701669},{"$f":"RentalHousingCost!$F$53/1.645","v":100.86606790777995},149.16922402424694,{"$f":"'RentalHousingCost-Prior5Yr'!$E$53-RentalHousingCost!$E$53","v":148},0.99216176103418696,1.645]
["N",null,null,null,null,null,null,"Renter 20.0 to 24.9 percent",null,"N",{"$f":"'RentalHousingCost-Prior5Yr'!$F$54/1.645","v":74.164133738601819},{"$f":"RentalHousingCost!$F$54/1.645","v":97.872340425531917},122.7978572841091,{"$f":"'RentalHousingCost-Prior5Yr'!$E$54-RentalHousingCost!$E$54","v":30},0.24430393708410586,1.645]
["N",null,null,null,null,null,null,"Renter 25.0 to 29.9 percent",null,"N",{"$f":"'RentalHousingCost-Prior5Yr'!$F$55/1.645","v":81.458966565349542},{"$f":"RentalHousingCost!$F$55/1.645","v":72.948328267477208},109.34816793579282,{"$f":"'RentalHousingCost-Prior5Yr'!$E$55-RentalHousingCost!$E$55","v":91},0.83220415776360779,1.645]
["N",null,null,null,null,null,null,"Renter 30.0 to 34.9 percent",null,"N",{"$f":"'RentalHousingCost-Prior5Yr'!$F$56/1.645","v":155.60647707570226},{"$f":"RentalHousingCost!$F$56/1.645","v":158.34903622241501},222.00854258446623,{"$f":"'RentalHousingCost-Prior5Yr'!$E$56-RentalHousingCost!$E$56","v":269},1.2116650867056398,1.645]
["N",null,null,null,null,null,null,"Renter 35.0 to 39.9 percent",null,"N",{"$f":"'RentalHousingCost-Prior5Yr'!$F$57/1.645","v":159.90037640898666},{"$f":"RentalHousingCost!$F$57/1.645","v":181.83711165294889},242.14224239075389,{"$f":"'RentalHousingCost-Prior5Yr'!$E$57-RentalHousingCost!$E$57","v":-197},0.81357138702834764,1.645]
["N",null,null,null,null,null,null,"Renter 40.0 to 49.9 percent",null,"N",{"$f":"'RentalHousingCost-Prior5Yr'!$F$58/1.645","v":65.653495440729486},{"$f":"RentalHousingCost!$F$58/1.645","v":82.066869300911847},105.0968719821805,{"$f":"'RentalHousingCost-Prior5Yr'!$E$58-RentalHousingCost!$E$58","v":-95},0.90392794959784861,1.645]
["N",null,null,null,null,null,null,"Renter 50.0 percent or more",null,"N",{"$f":"'RentalHousingCost-Prior5Yr'!$F$59/1.645","v":168.8897781735086},{"$f":"RentalHousingCost!$F$59/1.645","v":178.35186657117063},245.62806330083211,{"$f":"'RentalHousingCost-Prior5Yr'!$E$59-RentalHousingCost!$E$59","v":174},0.70838811193529672,1.645]
["N",null,null,null,null,null,null,"Renter Not computed",null,"N",{"$f":"'RentalHousingCost-Prior5Yr'!$F$60/1.645","v":145.80037349797749},{"$f":"RentalHousingCost!$F$60/1.645","v":162.26448822041763},{"$f":"SQRT((K175^2)+(L175^2))","v":218.14562349399495},{"$f":"'RentalHousingCost-Prior5Yr'!$E$60-RentalHousingCost!$E$60","v":-102},0.46757756752707819,1.645]
["N",null,null,null,null,null,null,"Renter Less than $10,000:",null,"N",{"$f":"'RentalHousingCost-Prior5Yr'!$I$52/1.645","v":49.848024316109424},{"$f":"RentalHousingCost!$I$52/1.645","v":55.319148936170215},{"$f":"SQRT((K176^2)+(L176^2))","v":74.464983497222505},{"$f":"'RentalHousingCost-Prior5Yr'!$H$52-RentalHousingCost!$H$52","v":-57},0.76546045299434007,1.645]
["N",null,null,null,null,null,null,"Renter Less than 20.0 percent",null,"N",{"$f":"'RentalHousingCost-Prior5Yr'!$I$53/1.645","v":17.021276595744681},{"$f":"RentalHousingCost!$I$53/1.645","v":12.76595744680851},21.276595744680851,{"$f":"'RentalHousingCost-Prior5Yr'!$H$53-RentalHousingCost!$H$53","v":18},0.84599999999999997,1.645]
["N",null,null,null,null,null,null,"Renter 20.0 to 24.9 percent",null,"N",{"$f":"'RentalHousingCost-Prior5Yr'!$I$54/1.645","v":12.1580547112462},{"$f":"RentalHousingCost!$I$54/1.645","v":17.62917933130699},21.415094168764178,{"$f":"'RentalHousingCost-Prior5Yr'!$H$54-RentalHousingCost!$H$54","v":-17},0.79383260545246703,1.645]
["N",null,null,null,null,null,null,"Renter 25.0 to 29.9 percent",null,"N",{"$f":"'RentalHousingCost-Prior5Yr'!$I$55/1.645","v":12.1580547112462},{"$f":"RentalHousingCost!$I$55/1.645","v":12.76595744680851},17.62917933130699,{"$f":"'RentalHousingCost-Prior5Yr'!$H$55-RentalHousingCost!$H$55","v":0},0,1.645]
["N",null,null,null,null,null,null,"Renter 30.0 to 34.9 percent",null,"N",{"$f":"'RentalHousingCost-Prior5Yr'!$I$56/1.645","v":24.194223394689846},{"$f":"RentalHousingCost!$I$56/1.645","v":25.233456024944996},34.958371653081763,{"$f":"'RentalHousingCost-Prior5Yr'!$H$56-RentalHousingCost!$H$56","v":1},2.8605451361515141E-2,1.645]
["N",null,null,null,null,null,null,"Renter 35.0 to 39.9 percent",null,"N",{"$f":"'RentalHousingCost-Prior5Yr'!$I$57/1.645","v":50.773527095005718},{"$f":"RentalHousingCost!$I$57/1.645","v":53.422857639662752},73.701782692516687,{"$f":"'RentalHousingCost-Prior5Yr'!$H$57-RentalHousingCost!$H$57","v":-46},0.62413687050029265,1.645]
["N",null,null,null,null,null,null,"Renter 40.0 to 49.9 percent",null,"N",{"$f":"'RentalHousingCost-Prior5Yr'!$I$58/1.645","v":12.1580547112462},{"$f":"RentalHousingCost!$I$58/1.645","v":12.76595744680851},17.62917933130699,{"$f":"'RentalHousingCost-Prior5Yr'!$H$58-RentalHousingCost!$H$58","v":0},0,1.645]
["N",null,null,null,null,null,null,"Renter 50.0 percent or more",null,"N",{"$f":"'RentalHousingCost-Prior5Yr'!$I$59/1.645","v":27.077273497045699},{"$f":"RentalHousingCost!$I$59/1.645","v":28.278913920031631},39.15195668840029,{"$f":"'RentalHousingCost-Prior5Yr'!$H$59-RentalHousingCost!$H$59","v":1},2.5541507617581578E-2,1.645]
["N",null,null,null,null,null,null,"Renter Not computed",null,"N",{"$f":"'RentalHousingCost-Prior5Yr'!$I$60/1.645","v":49.296376736080958},{"$f":"RentalHousingCost!$I$60/1.645","v":51.875158301965179},{"$f":"SQRT((K184^2)+(L184^2))","v":71.562314161572289},{"$f":"'RentalHousingCost-Prior5Yr'!$H$60-RentalHousingCost!$H$60","v":-46},0.64279642908335677,1.645]
["N",null,null,null,null,null,null,"Renter $10,000 to $19,999:",null,"N",{"$f":"'RentalHousingCost-Prior5Yr'!$K$52/1.645","v":69.908814589665653},{"$f":"RentalHousingCost!$K$52/1.645","v":93.00911854103343},{"$f":"SQRT((K185^2)+(L185^2))","v":116.35264710831575},{"$f":"'RentalHousingCost-Prior5Yr'!$J$52-RentalHousingCost!$J$52","v":-55},0.47270089135831217,1.645]
["N",null,null,null,null,null,null,"Renter Less than 20.0 percent",null,"N",{"$f":"'RentalHousingCost-Prior5Yr'!$K$53/1.645","v":12.1580547112462},{"$f":"RentalHousingCost!$K$53/1.645","v":17.021276595744681},20.917508248127966,{"$f":"'RentalHousingCost-Prior5Yr'!$J$53-RentalHousingCost!$J$53","v":-16},0.76490946293433093,1.645]
["N",null,null,null,null,null,null,"Renter 20.0 to 24.9 percent",null,"N",{"$f":"'RentalHousingCost-Prior5Yr'!$K$54/1.645","v":20.668693009118542},{"$f":"RentalHousingCost!$K$54/1.645","v":9.7264437689969601},22.842910915569526,{"$f":"'RentalHousingCost-Prior5Yr'!$J$54-RentalHousingCost!$J$54","v":20},0.87554515595331495,1.645]
["N",null,null,null,null,null,null,"Renter 25.0 to 29.9 percent",null,"N",{"$f":"'RentalHousingCost-Prior5Yr'!$K$55/1.645","v":15.19756838905775},{"$f":"RentalHousingCost!$K$55/1.645","v":12.76595744680851},19.847814853877821,{"$f":"'RentalHousingCost-Prior5Yr'!$J$55-RentalHousingCost!$J$55","v":16},0.80613408165050249,1.645]
["N",null,null,null,null,null,null,"Renter 30.0 to 34.9 percent",null,"N",{"$f":"'RentalHousingCost-Prior5Yr'!$K$56/1.645","v":28.389773687138277},{"$f":"RentalHousingCost!$K$56/1.645","v":23.39438468680104},36.786906432601256,{"$f":"'RentalHousingCost-Prior5Yr'!$J$56-RentalHousingCost!$J$56","v":20},0.54367170114298113,1.645]
["N",null,null,null,null,null,null,"Renter 35.0 to 39.9 percent",null,"N",{"$f":"'RentalHousingCost-Prior5Yr'!$K$57/1.645","v":84.884643833021528},{"$f":"RentalHousingCost!$K$57/1.645","v":98.523387299635829},130.04714761828865,{"$f":"'RentalHousingCost-Prior5Yr'!$J$57-RentalHousingCost!$J$57","v":-79},0.6074719934025693,1.645]
["N",null,null,null,null,null,null,"Renter 40.0 to 49.9 percent",null,"N",{"$f":"'RentalHousingCost-Prior5Yr'!$K$58/1.645","v":46.200607902735563},{"$f":"RentalHousingCost!$K$58/1.645","v":50.455927051671729},68.412694328069918,{"$f":"'RentalHousingCost-Prior5Yr'!$J$58-RentalHousingCost!$J$58","v":-17},0.24849189418673215,1.645]
["N",null,null,null,null,null,null,"Renter 50.0 percent or more",null,"N",{"$f":"'RentalHousingCost-Prior5Yr'!$K$59/1.645","v":54.226150707838748},{"$f":"RentalHousingCost!$K$59/1.645","v":55.615625587757705},77.676078879581013,{"$f":"'RentalHousingCost-Prior5Yr'!$J$59-RentalHousingCost!$J$59","v":3},3.8621928955126755E-2,1.645]
["N",null,null,null,null,null,null,"Renter Not computed",null,"N",{"$f":"'RentalHousingCost-Prior5Yr'!$K$60/1.645","v":71.210298328799382},{"$f":"RentalHousingCost!$K$60/1.645","v":84.623030377967567},{"$f":"SQRT((K193^2)+(L193^2))","v":110.59820911039667},{"$f":"'RentalHousingCost-Prior5Yr'!$J$60-RentalHousingCost!$J$60","v":-62},0.56058773915690607,1.645]
["N",null,null,null,null,null,null,"Renter $20,000 to $34,999:",null,"N",{"$f":"'RentalHousingCost-Prior5Yr'!$M$52/1.645","v":69.300911854103347},{"$f":"RentalHousingCost!$M$52/1.645","v":119.75683890577507},{"$f":"SQRT((K194^2)+(L194^2))","v":138.36298944628928},{"$f":"'RentalHousingCost-Prior5Yr'!$L$52-RentalHousingCost!$L$52","v":-159},1.1491512335509471,1.645]
["N",null,null,null,null,null,null,"Renter Less than 20.0 percent",null,"N",{"$f":"'RentalHousingCost-Prior5Yr'!$M$53/1.645","v":12.1580547112462},{"$f":"RentalHousingCost!$M$53/1.645","v":22.492401215805472},25.568073975456645,{"$f":"'RentalHousingCost-Prior5Yr'!$L$53-RentalHousingCost!$L$53","v":-28},1.0951157301436867,1.645]
["N",null,null,null,null,null,null,"Renter 20.0 to 24.9 percent",null,"N",{"$f":"'RentalHousingCost-Prior5Yr'!$M$54/1.645","v":15.805471124620061},{"$f":"RentalHousingCost!$M$54/1.645","v":12.76595744680851},20.317051631694106,{"$f":"'RentalHousingCost-Prior5Yr'!$L$54-RentalHousingCost!$L$54","v":16},0.78751584088315207,1.645]
["N",null,null,null,null,null,null,"Renter 25.0 to 29.9 percent",null,"N",{"$f":"'RentalHousingCost-Prior5Yr'!$M$55/1.645","v":14.589665653495441},{"$f":"RentalHousingCost!$M$55/1.645","v":12.76595744680851},19.386284156962887,{"$f":"'RentalHousingCost-Prior5Yr'!$L$55-RentalHousingCost!$L$55","v":15},0.77374291424550878,1.645]
["N",null,null,null,null,null,null,"Renter 30.0 to 34.9 percent",null,"N",{"$f":"'RentalHousingCost-Prior5Yr'!$M$56/1.645","v":24.708086848512554},{"$f":"RentalHousingCost!$M$56/1.645","v":28.841765749000505},37.978112212613432,{"$f":"'RentalHousingCost-Prior5Yr'!$L$56-RentalHousingCost!$L$56","v":3},7.8992867870974079E-2,1.645]
["N",null,null,null,null,null,null,"Renter 35.0 to 39.9 percent",null,"N",{"$f":"'RentalHousingCost-Prior5Yr'!$M$57/1.645","v":66.353356339841028},{"$f":"RentalHousingCost!$M$57/1.645","v":121.13901589807222},138.12106671436953,{"$f":"'RentalHousingCost-Prior5Yr'!$L$57-RentalHousingCost!$L$57","v":-173},1.2525243550121077,1.645]
["N",null,null,null,null,null,null,"Renter 40.0 to 49.9 percent",null,"N",{"$f":"'RentalHousingCost-Prior5Yr'!$M$58/1.645","v":12.1580547112462},{"$f":"RentalHousingCost!$M$58/1.645","v":17.62917933130699},21.415094168764178,{"$f":"'RentalHousingCost-Prior5Yr'!$L$58-RentalHousingCost!$L$58","v":-18},0.84052864106731795,1.645]
["N",null,null,null,null,null,null,"Renter 50.0 percent or more",null,"N",{"$f":"'RentalHousingCost-Prior5Yr'!$M$59/1.645","v":27.537390037461702},{"$f":"RentalHousingCost!$M$59/1.645","v":33.802890636979555},43.599808090069558,{"$f":"'RentalHousingCost-Prior5Yr'!$L$59-RentalHousingCost!$L$59","v":-15},0.34403821156764336,1.645]
["N",null,null,null,null,null,null,"Renter Not computed",null,"N",{"$f":"'RentalHousingCost-Prior5Yr'!$M$60/1.645","v":65.229974729416128},{"$f":"RentalHousingCost!$M$60/1.645","v":119.84937717342552},136.45080729720246,{"$f":"'RentalHousingCost-Prior5Yr'!$L$60-RentalHousingCost!$L$60","v":-155},1.1359405127035687,1.645]
["N",null,null,null,null,null,null,"Renter $35,000 to $49,999:",null,"Y",{"$f":"'RentalHousingCost-Prior5Yr'!$O$52/1.645","v":102.12765957446808},{"$f":"RentalHousingCost!$O$52/1.645","v":83.890577507598778},132.16538065891868,{"$f":"'RentalHousingCost-Prior5Yr'!$N$52-RentalHousingCost!$N$52","v":218},1.6494485841386566,1.645]
["N",null,null,null,null,null,null,"Renter Less than 20.0 percent",null,"N",{"$f":"'RentalHousingCost-Prior5Yr'!$O$53/1.645","v":22.492401215805472},{"$f":"RentalHousingCost!$O$53/1.645","v":12.76595744680851},25.862671594143038,{"$f":"'RentalHousingCost-Prior5Yr'!$N$53-RentalHousingCost!$N$53","v":35},1.3533017991817302,1.645]
["N",null,null,null,null,null,null,"Renter 20.0 to 24.9 percent",null,"N",{"$f":"'RentalHousingCost-Prior5Yr'!$O$54/1.645","v":21.276595744680851},{"$f":"RentalHousingCost!$O$54/1.645","v":62.61398176291793},66.130206703817208,{"$f":"'RentalHousingCost-Prior5Yr'!$N$54-RentalHousingCost!$N$54","v":-65},0.98290937288493352,1.645]
["N",null,null,null,null,null,null,"Renter 25.0 to 29.9 percent",null,"Y",{"$f":"'RentalHousingCost-Prior5Yr'!$O$55/1.645","v":53.495440729483285},{"$f":"RentalHousingCost!$O$55/1.645","v":25.531914893617021},59.275972003642096,{"$f":"'RentalHousingCost-Prior5Yr'!$N$55-RentalHousingCost!$N$55","v":118},1.9906885709567061,1.645]
["N",null,null,null,null,null,null,"Renter 30.0 to 34.9 percent",null,"N",{"$f":"'RentalHousingCost-Prior5Yr'!$O$56/1.645","v":61.809091708073154},{"$f":"RentalHousingCost!$O$56/1.645","v":68.813945242775091},92.497150646128802,{"$f":"'RentalHousingCost-Prior5Yr'!$N$56-RentalHousingCost!$N$56","v":88},0.95138065751523759,1.645]
["N",null,null,null,null,null,null,"Renter 35.0 to 39.9 percent",null,{"$f":"IF(O208>P208,\"Y\",\"N\")","v":"N"},{"$f":"'RentalHousingCost-Prior5Yr'!$O$57/1.645","v":93.046856479744591},{"$f":"RentalHousingCost!$O$57/1.645","v":61.196213017249306},111.36738296473857,{"$f":"'RentalHousingCost-Prior5Yr'!$N$57-RentalHousingCost!$N$57","v":140},1.2571005645730866,1.645]
["N",null,null,null,null,null,null,"Renter 40.0 to 49.9 percent",null,"N",{"$f":"'RentalHousingCost-Prior5Yr'!$O$58/1.645","v":46.808510638297875},{"$f":"RentalHousingCost!$O$58/1.645","v":40.729483282674771},62.047783817388101,{"$f":"'RentalHousingCost-Prior5Yr'!$N$58-RentalHousingCost!$N$58","v":19},0.30621561047077223,1.645]
["N",null,null,null,null,null,null,"Renter 50.0 percent or more",null,"N",{"$f":"'RentalHousingCost-Prior5Yr'!$O$59/1.645","v":108.61760234637103},{"$f":"RentalHousingCost!$O$59/1.645","v":109.54342852544985},154.26453342419549,{"$f":"'RentalHousingCost-Prior5Yr'!$N$59-RentalHousingCost!$N$59","v":107},0.69361374014448396,1.645]
["N",null,null,null,null,null,null,"Renter Not computed",null,"N",{"$f":"'RentalHousingCost-Prior5Yr'!$O$60/1.645","v":80.415675291491169},{"$f":"RentalHousingCost!$O$60/1.645","v":45.673686945317534},92.48116841695618,{"$f":"'RentalHousingCost-Prior5Yr'!$N$60-RentalHousingCost!$N$60","v":121},1.3083744731085705,1.645]
["N",null,null,null,null,null,null,"Renter $50,000 to $74,999:",null,"N",{"$f":"'RentalHousingCost-Prior5Yr'!$Q$52/1.645","v":99.088145896656528},{"$f":"RentalHousingCost!$Q$52/1.645","v":104.55927051671732},144.05242694319719,{"$f":"'RentalHousingCost-Prior5Yr'!$P$52-RentalHousingCost!$P$52","v":100},0.6941917059087942,1.645]
["N",null,null,null,null,null,null,"Renter Less than 20.0 percent",null,"Y",{"$f":"'RentalHousingCost-Prior5Yr'!$Q$53/1.645","v":47.416413373860181},{"$f":"RentalHousingCost!$Q$53/1.645","v":12.76595744680851},49.104846265664165,{"$f":"'RentalHousingCost-Prior5Yr'!$P$53-RentalHousingCost!$P$53","v":135},2.7492194817112532,1.645]
["N",null,null,null,null,null,null,"Renter 20.0 to 24.9 percent",null,"N",{"$f":"'RentalHousingCost-Prior5Yr'!$Q$54/1.645","v":60.182370820668694},{"$f":"RentalHousingCost!$Q$54/1.645","v":77.81155015197568},98.369482537268141,{"$f":"'RentalHousingCost-Prior5Yr'!$P$54-RentalHousingCost!$P$54","v":75},0.76243158005416556,1.645]
["N",null,null,null,null,null,null,"Renter 25.0 to 29.9 percent",null,"N",{"$f":"'RentalHousingCost-Prior5Yr'!$Q$55/1.645","v":65.045592705167167},{"$f":"RentalHousingCost!$Q$55/1.645","v":66.869300911854097},93.286829374818964,{"$f":"'RentalHousingCost-Prior5Yr'!$P$55-RentalHousingCost!$P$55","v":-80},0.85757014721302671,1.645]
["N",null,null,null,null,null,null,"Renter 30.0 to 34.9 percent",null,"N",{"$f":"'RentalHousingCost-Prior5Yr'!$Q$56/1.645","v":100.50454290828728},{"$f":"RentalHousingCost!$Q$56/1.645","v":103.38815411364709},144.1883266989079,{"$f":"'RentalHousingCost-Prior5Yr'!$P$56-RentalHousingCost!$P$56","v":130},0.9015986451626159,1.645]
["N",null,null,null,null,null,null,"Renter 35.0 to 39.9 percent",null,"N",{"$f":"'RentalHousingCost-Prior5Yr'!$Q$57/1.645","v":51.327298304709288},{"$f":"RentalHousingCost!$Q$57/1.645","v":40.661377527515242},65.481594159700592,{"$f":"'RentalHousingCost-Prior5Yr'!$P$57-RentalHousingCost!$P$57","v":-21},0.32070080561545111,1.645]
["N",null,null,null,null,null,null,"Renter 40.0 to 49.9 percent",null,"N",{"$f":"'RentalHousingCost-Prior5Yr'!$Q$58/1.645","v":12.1580547112462},{"$f":"RentalHousingCost!$Q$58/1.645","v":32.826747720364743},35.005908933466188,{"$f":"'RentalHousingCost-Prior5Yr'!$P$58-RentalHousingCost!$P$58","v":-55},1.571163317156983,1.645]
["N",null,null,null,null,null,null,"Renter 50.0 percent or more",null,"N",{"$f":"'RentalHousingCost-Prior5Yr'!$Q$59/1.645","v":101.23725322017293},{"$f":"RentalHousingCost!$Q$59/1.645","v":108.47444757602462},148.37684191439419,{"$f":"'RentalHousingCost-Prior5Yr'!$P$59-RentalHousingCost!$P$59","v":75},0.50546971503323368,1.645]
["N",null,null,null,null,null,null,"Renter Not computed",null,"N",{"$f":"'RentalHousingCost-Prior5Yr'!$Q$60/1.645","v":49.866554491953387},{"$f":"RentalHousingCost!$Q$60/1.645","v":23.994838122784863},55.339186056876606,{"$f":"'RentalHousingCost-Prior5Yr'!$P$60-RentalHousingCost!$P$60","v":34},0.61439284569627428,1.645]
["N",null,null,null,null,null,null,"Renter $75,000 to $99,999:",null,"N",{"$f":"'RentalHousingCost-Prior5Yr'!$S$52/1.645","v":105.16717325227964},{"$f":"RentalHousingCost!$S$52/1.645","v":74.772036474164139},129.03872197278125,{"$f":"'RentalHousingCost-Prior5Yr'!$R$52-RentalHousingCost!$R$52","v":155},1.2011898260484546,1.645]
["N",null,null,null,null,null,null,"Renter Less than 20.0 percent",null,"N",{"$f":"'RentalHousingCost-Prior5Yr'!$S$53/1.645","v":77.81155015197568},{"$f":"RentalHousingCost!$S$53/1.645","v":46.808510638297875},90.805693682880218,{"$f":"'RentalHousingCost-Prior5Yr'!$R$53-RentalHousingCost!$R$53","v":131},1.4426408156463177,1.645]
["N",null,null,null,null,null,null,"Renter 20.0 to 24.9 percent",null,"N",{"$f":"'RentalHousingCost-Prior5Yr'!$S$54/1.645","v":35.866261398176292},{"$f":"RentalHousingCost!$S$54/1.645","v":30.3951367781155},47.013328391453634,{"$f":"'RentalHousingCost-Prior5Yr'!$R$54-RentalHousingCost!$R$54","v":20},0.42541127557426289,1.645]
["N",null,null,null,null,null,null,"Renter 25.0 to 29.9 percent",null,"N",{"$f":"'RentalHousingCost-Prior5Yr'!$S$55/1.645","v":15.805471124620061},{"$f":"RentalHousingCost!$S$55/1.645","v":12.76595744680851},20.317051631694106,{"$f":"'RentalHousingCost-Prior5Yr'!$R$55-RentalHousingCost!$R$55","v":22},1.0828342812143341,1.645]
["N",null,null,null,null,null,null,"Renter 30.0 to 34.9 percent",null,"Y",{"$f":"'RentalHousingCost-Prior5Yr'!$S$56/1.645","v":87.125420866742076},{"$f":"RentalHousingCost!$S$56/1.645","v":57.252691443020566},104.25310373641956,{"$f":"'RentalHousingCost-Prior5Yr'!$R$56-RentalHousingCost!$R$56","v":173},1.6594230176340021,1.645]
["N",null,null,null,null,null,null,"Renter 35.0 to 39.9 percent",null,"N",{"$f":"'RentalHousingCost-Prior5Yr'!$S$57/1.645","v":24.079394918344509},{"$f":"RentalHousingCost!$S$57/1.645","v":30.248888278722745},38.662805145672571,{"$f":"'RentalHousingCost-Prior5Yr'!$R$57-RentalHousingCost!$R$57","v":-18},0.46556373579672072,1.645]
["N",null,null,null,null,null,null,"Renter 40.0 to 49.9 percent",null,"N",{"$f":"'RentalHousingCost-Prior5Yr'!$S$58/1.645","v":7.2948328267477205},{"$f":"RentalHousingCost!$S$58/1.645","v":22.492401215805472},23.645775487874438,{"$f":"'RentalHousingCost-Prior5Yr'!$R$58-RentalHousingCost!$R$58","v":-24},1.0149804565431659,1.645]
["N",null,null,null,null,null,null,"Renter 50.0 percent or more",null,"N",{"$f":"'RentalHousingCost-Prior5Yr'!$S$59/1.645","v":87.43027820599184},{"$f":"RentalHousingCost!$S$59/1.645","v":61.512427930642495},106.90103992524871,{"$f":"'RentalHousingCost-Prior5Yr'!$R$59-RentalHousingCost!$R$59","v":149},1.3938124465785298,1.645]
["N",null,null,null,null,null,null,"Renter Not computed",null,"N",{"$f":"'RentalHousingCost-Prior5Yr'!$S$60/1.645","v":22.94782503121808},{"$f":"RentalHousingCost!$S$60/1.645","v":20.225902443299848},30.589047113456832,{"$f":"'RentalHousingCost-Prior5Yr'!$R$60-RentalHousingCost!$R$60","v":6},0.19614864032036031,1.645]
["N",null,null,null,null,null,null,"Renter $100,000 or more:",null,"N",{"$f":"'RentalHousingCost-Prior5Yr'!$U$52/1.645","v":81.458966565349542},{"$f":"RentalHousingCost!$U$52/1.645","v":77.81155015197568},112.65079036983344,{"$f":"'RentalHousingCost-Prior5Yr'!$T$52-RentalHousingCost!$T$52","v":-90},0.79892914825123984,1.645]
[{"$f":"IF(F231>G231,\"Y\",\"N\")","v":"N"},null,null,null,null,null,null,"Renter Less than 20.0 percent",null,"N",{"$f":"'RentalHousingCost-Prior5Yr'!$U$53/1.645","v":66.869300911854097},{"$f":"RentalHousingCost!$U$53/1.645","v":75.379939209726444},100.76526504556094,{"$f":"'RentalHousingCost-Prior5Yr'!$T$53-RentalHousingCost!$T$53","v":-127},{"$f":"ABS((N231/M231))","v":1.2603549441623267},1.645]
["N",null,null,null,null,null,null,"Renter 20.0 to 24.9 percent",null,"N",{"$f":"'RentalHousingCost-Prior5Yr'!$U$54/1.645","v":12.1580547112462},{"$f":"RentalHousingCost!$U$54/1.645","v":18.844984802431611},22.426585709053761,{"$f":"'RentalHousingCost-Prior5Yr'!$T$54-RentalHousingCost!$T$54","v":-19},0.84720876581447591,1.645]
["N",null,null,null,null,null,null,"Renter 25.0 to 29.9 percent",null,"N",{"$f":"'RentalHousingCost-Prior5Yr'!$U$55/1.645","v":12.1580547112462},{"$f":"RentalHousingCost!$U$55/1.645","v":12.76595744680851},17.62917933130699,{"$f":"'RentalHousingCost-Prior5Yr'!$T$55-RentalHousingCost!$T$55","v":0},0,1.645]
["N",null,null,null,null,null,null,"Renter 30.0 to 34.9 percent",null,"N",{"$f":"'RentalHousingCost-Prior5Yr'!$U$56/1.645","v":69.04447836839239},{"$f":"RentalHousingCost!$U$56/1.645","v":78.741592294032614},104.72525173119929,{"$f":"'RentalHousingCost-Prior5Yr'!$T$56-RentalHousingCost!$T$56","v":-146},1.3941241256191157,1.645]
["N",null,null,null,null,null,null,"Renter 35.0 to 39.9 percent",null,"N",{"$f":"'RentalHousingCost-Prior5Yr'!$U$57/1.645","v":24.316109422492399},{"$f":"RentalHousingCost!$U$57/1.645","v":25.531914893617021},35.258358662613979,{"$f":"'RentalHousingCost-Prior5Yr'!$T$57-RentalHousingCost!$T$57","v":0},0,1.645]
["N",null,null,null,null,null,null,"Renter 40.0 to 49.9 percent",null,"N",{"$f":"'RentalHousingCost-Prior5Yr'!$U$58/1.645","v":12.1580547112462},{"$f":"RentalHousingCost!$U$58/1.645","v":12.76595744680851},17.62917933130699,{"$f":"'RentalHousingCost-Prior5Yr'!$T$58-RentalHousingCost!$T$58","v":0},0,1.645]
["N",null,null,null,null,null,null,"Renter 50.0 percent or more",null,"N",{"$f":"'RentalHousingCost-Prior5Yr'!$U$59/1.645","v":70.106763493439487},{"$f":"RentalHousingCost!$U$59/1.645","v":79.769718731692805},106.19871145196839,{"$f":"'RentalHousingCost-Prior5Yr'!$T$59-RentalHousingCost!$T$59","v":-146},1.3747812756281224,1.645]
["N",null,null,null,null,null,null,"Renter Not computed",null,"N",{"$f":"'RentalHousingCost-Prior5Yr'!$U$60/1.645","v":21.058368481080578},{"$f":"RentalHousingCost!$U$60/1.645","v":22.111286905134605},30.534634297566839,{"$f":"'RentalHousingCost-Prior5Yr'!$T$60-RentalHousingCost!$T$60","v":0},0,1.645]
[null,null,null,null,null,null,null,"Total Owner Housing",null,"Y",{"$f":"OwnerHousingCostPrior5Year!$F$50/1.645","v":203.03951367781156},{"$f":"OwnerHousingCost!$F$50/1.645","v":211.55015197568389},293.2209250982221,{"$f":"OwnerHousingCostPrior5Year!$E$50-OwnerHousingCost!$E$50","v":-555},1.8927707830336054,1.645]
[null,null,null,null,null,null,null,"Monthly Costs Less than 20% of HH Income",null,"Y",{"$f":"OwnerHousingCostPrior5Year!$F$51/1.645","v":212.39655296284323},{"$f":"OwnerHousingCost!$F$51/1.645","v":256.11541776015093},332.7272199940283,{"$f":"OwnerHousingCostPrior5Year!$E$51-OwnerHousingCost!$E$51","v":-1088},3.2699458734380888,1.645]
[null,null,null,null,null,null,null,"Monthly Costs 20% to 29.9% of HH Income",null,"N",{"$f":"OwnerHousingCostPrior5Year!$F$52/1.645","v":199.52734681981059},{"$f":"OwnerHousingCost!$F$52/1.645","v":176.90491850363566},266.65804379341523,{"$f":"OwnerHousingCostPrior5Year!$E$52-OwnerHousingCost!$E$52","v":122},0.45751479409530055,1.645]
[null,null,null,null,null,null,null,"Monthly Costs Less Than 30% of HH Income",null,"Y",{"$f":"OwnerHousingCostPrior5Year!$F$53/1.645","v":291.41629645483255},{"$f":"OwnerHousingCost!$F$53/1.645","v":311.27232033259014},426.39642968097826,{"$f":"OwnerHousingCostPrior5Year!$E$53-OwnerHousingCost!$E$53","v":-966},2.265497393406279,1.645]
[null,null,null,null,null,null,null,"Monthly Costs 30% or More of HH Income",null,"N",{"$f":"OwnerHousingCostPrior5Year!$F$54/1.645","v":227.17025097389251},{"$f":"OwnerHousingCost!$F$54/1.645","v":238.59388599268237},329.44402462426058,{"$f":"OwnerHousingCostPrior5Year!$E$54-OwnerHousingCost!$E$54","v":489},1.4843189235492042,1.645]
[null,null,null,null,null,null,null,"Monthly Costs 35% or More of HH Income",null,"N",{"$f":"OwnerHousingCostPrior5Year!$F$56/1.645","v":190.14727254190404},{"$f":"OwnerHousingCost!$F$56/1.645","v":217.60625441735073},288.97831617039003,{"$f":"OwnerHousingCostPrior5Year!$E$56-OwnerHousingCost!$E$56","v":253},0.87549821506615688,1.645]
[null,null,null,null,null,null,null,"Monthly Costs 50% or More of HH Income",null,"N",{"$f":"OwnerHousingCostPrior5Year!$F$57/1.645","v":136.92933214825939},{"$f":"OwnerHousingCost!$F$57/1.645","v":172.85401886945385},220.51792181564258,{"$f":"OwnerHousingCostPrior5Year!$E$57-OwnerHousingCost!$E$57","v":188},0.85253841706875777,1.645]
[null,null,null,null,null,null,null,"Percent not computed",null,"N",{"$f":"OwnerHousingCostPrior5Year!$F$58/1.645","v":23.677011664620604},{"$f":"OwnerHousingCost!$F$58/1.645","v":62.764301515575958},67.081729450758132,{"$f":"OwnerHousingCostPrior5Year!$E$58-OwnerHousingCost!$E$58","v":-78},1.1627607194781182,1.645]
[null,null,null,null,null,null,null,"Owner Less than $20,000:",null,"Y",{"$f":"OwnerHousingCostPrior5Year!$I$50/1.645","v":203.03951367781156},{"$f":"OwnerHousingCost!$I$50/1.645","v":103.34346504559271},227.82650390626608,{"$f":"OwnerHousingCostPrior5Year!$H$50-OwnerHousingCost!$H$50","v":8049},35.329515495315569,1.645]
[null,null,null,null,null,null,null,"Owner Less than 20.0 percent",null,"Y",{"$f":"OwnerHousingCostPrior5Year!$I$51/1.645","v":89.969604863221889},{"$f":"OwnerHousingCost!$I$51/1.645","v":12.76595744680851},90.87078446221318,{"$f":"OwnerHousingCostPrior5Year!$H$51-OwnerHousingCost!$H$51","v":494},5.4362906947878296,1.645]
[null,null,null,null,null,null,null,"Owner 20.0 to 24.9 percent",null,"N",{"$f":"OwnerHousingCostPrior5Year!$I$52/1.645","v":16.413373860182372},{"$f":"OwnerHousingCost!$I$52/1.645","v":12.76595744680851},20.793472798160572,{"$f":"OwnerHousingCostPrior5Year!$H$52-OwnerHousingCost!$H$52","v":24},1.1542083534080505,1.645]
[null,null,null,null,null,null,null,"Owner 25.0 to 29.9 percent",null,"Y",{"$f":"OwnerHousingCostPrior5Year!$I$53/1.645","v":91.454516786861845},{"$f":"OwnerHousingCost!$I$53/1.645","v":18.053790157954403},93.219461378973037,{"$f":"OwnerHousingCostPrior5Year!$H$53-OwnerHousingCost!$H$53","v":518},5.5567795859078224,1.645]
[null,null,null,null,null,null,null,"Owner 30.0 or more",null,"Y",{"$f":"OwnerHousingCostPrior5Year!$I$54/1.645","v":10.94224924012158},{"$f":"OwnerHousingCost!$I$54/1.645","v":103.34346504559271},103.92114600052572,{"$f":"OwnerHousingCostPrior5Year!$H$54-OwnerHousingCost!$H$54","v":-385},3.7047320474896641,1.645]
[null,null,null,null,null,null,null,"Owner $20,000 to $34,999:",null,"N",{"$f":"OwnerHousingCostPrior5Year!$J$50/1.645","v":275.37993920972644},{"$f":"OwnerHousingCost!$J$50/1.645","v":342.85714285714283},439.75576326788018,{"$f":"OwnerHousingCostPrior5Year!$K$50-OwnerHousingCost!$K$50","v":3},6.8219685802560588E-3,1.645]
[null,null,null,null,null,null,null,"Owner Less than 20.0 percent",null,"N",{"$f":"OwnerHousingCostPrior5Year!$J$51/1.645","v":441.33738601823705},{"$f":"OwnerHousingCost!$J$51/1.645","v":29.787234042553191},442.34146042318508,{"$f":"OwnerHousingCostPrior5Year!$K$51-OwnerHousingCost!$K$51","v":129},0.29162990933878674,1.645]
[null,null,null,null,null,null,null,"Owner 20.0 to 24.9 percent",null,"N",{"$f":"OwnerHousingCostPrior5Year!$J$52/1.645","v":6.0790273556230998},{"$f":"OwnerHousingCost!$J$52/1.645","v":74.772036474164139},75.018744404876216,{"$f":"OwnerHousingCostPrior5Year!$K$52-OwnerHousingCost!$K$52","v":-58},0.77314010598436522,1.645]
[null,null,null,null,null,null,null,"Owner 25.0 to 29.9 percent",null,"N",{"$f":"OwnerHousingCostPrior5Year!$J$53/1.645","v":447.41641337386017},{"$f":"OwnerHousingCost!$J$53/1.645","v":104.55927051671732},459.47153122616533,{"$f":"OwnerHousingCostPrior5Year!$K$53-OwnerHousingCost!$K$53","v":86.423759488591315},0.18809382870350463,1.645]
[null,null,null,null,null,null,null,"Owner 30.0 or more",null,"N",{"$f":"OwnerHousingCostPrior5Year!$J$54/1.645","v":104.55927051671732},{"$f":"OwnerHousingCost!$J$54/1.645","v":238.29787234042553},260.22781752334203,{"$f":"OwnerHousingCostPrior5Year!$K$54-OwnerHousingCost!$K$54","v":-44},0.16908261545118353,1.645]
[null,null,null,null,null,null,null,"Owner $35,000 to $49,999:",null,"Y",{"$f":"OwnerHousingCostPrior5Year!$M$50/1.645","v":89.969604863221889},{"$f":"OwnerHousingCost!$M$50/1.645","v":109.42249240121581},141.66090371919279,{"$f":"OwnerHousingCostPrior5Year!$L$50-OwnerHousingCost!$L$50","v":-254},1.793014115620011,1.645]
[null,null,null,null,null,null,null,"Owner Less than 20.0 percent",null,"Y",{"$f":"OwnerHousingCostPrior5Year!$M$51/1.645","v":124.62006079027356},{"$f":"OwnerHousingCost!$M$51/1.645","v":41.337386018237083},{"$f":"SQRT((K258^2)+(L258^2))","v":131.29714023615372},{"$f":"OwnerHousingCostPrior5Year!$L$51-OwnerHousingCost!$L$51","v":823},6.2682248716136186,1.645]
[null,null,null,null,null,null,null,"Owner 20.0 to 24.9 percent",null,"Y",{"$f":"OwnerHousingCostPrior5Year!$M$52/1.645","v":44.984802431610944},{"$f":"OwnerHousingCost!$M$52/1.645","v":68.085106382978722},81.604008240971837,{"$f":"OwnerHousingCostPrior5Year!$L$52-OwnerHousingCost!$L$52","v":-170},2.083231003776187,1.645]
[null,null,null,null,null,null,null,"Owner 25.0 to 29.9 percent",null,"Y",{"$f":"OwnerHousingCostPrior5Year!$M$53/1.645","v":132.49072420808389},{"$f":"OwnerHousingCost!$M$53/1.645","v":79.651498378889713},154.59027522837528,{"$f":"OwnerHousingCostPrior5Year!$L$53-OwnerHousingCost!$L$53","v":653},4.2240690692563101,1.645]
[null,null,null,null,null,null,null,"Owner 30.0 or more",null,"N",{"$f":"OwnerHousingCostPrior5Year!$M$54/1.645","v":77.81155015197568},{"$f":"OwnerHousingCost!$M$54/1.645","v":85.106382978723403},115.31580013499696,{"$f":"OwnerHousingCostPrior5Year!$L$54-OwnerHousingCost!$L$54","v":-23},0.19945228644361437,1.645]
[null,null,null,null,null,null,null,"Owner $50,000 to $74,999:",null,"Y",{"$f":"OwnerHousingCostPrior5Year!$O$50/1.645","v":94.832826747720361},{"$f":"OwnerHousingCost!$O$50/1.645","v":158.66261398176292},184.84342050635468,{"$f":"OwnerHousingCostPrior5Year!$N$50-OwnerHousingCost!$N$50","v":-840},4.5443867988318356,1.645]
[null,null,null,null,null,null,null,"Owner Less than 20.0 percent",null,"Y",{"$f":"OwnerHousingCostPrior5Year!$O$51/1.645","v":128.87537993920972},{"$f":"OwnerHousingCost!$O$51/1.645","v":105.16717325227964},166.34000686651021,{"$f":"OwnerHousingCostPrior5Year!$N$51-OwnerHousingCost!$N$51","v":783},4.707225968965882,1.645]
[null,null,null,null,null,null,null,"Owner 20.0 to 24.9 percent",null,"N",{"$f":"OwnerHousingCostPrior5Year!$O$52/1.645","v":63.221884498480243},{"$f":"OwnerHousingCost!$O$52/1.645","v":70.516717325227958},94.708046658482417,{"$f":"OwnerHousingCostPrior5Year!$N$52-OwnerHousingCost!$N$52","v":7},7.3911354388313241E-2,1.645]
[null,null,null,null,null,null,null,"Owner 25.0 to 29.9 percent",null,"Y",{"$f":"OwnerHousingCostPrior5Year!$O$53/1.645","v":143.54744941661221},{"$f":"OwnerHousingCost!$O$53/1.645","v":126.62046340225227},191.41215213830063,{"$f":"OwnerHousingCostPrior5Year!$N$53-OwnerHousingCost!$N$53","v":790},4.12721967322745,1.645]
[null,null,null,null,null,null,null,"Owner 30.0 or more",null,"Y",{"$f":"OwnerHousingCostPrior5Year!$O$54/1.645","v":53.495440729483285},{"$f":"OwnerHousingCost!$O$54/1.645","v":131.30699088145897},141.78606431234772,{"$f":"OwnerHousingCostPrior5Year!$N$54-OwnerHousingCost!$N$54","v":-386},2.7224114151984713,1.645]
[null,null,null,null,null,null,null,"Owner $75,000 or more",null,"Y",{"$f":"OwnerHousingCostPrior5Year!$Q$50/1.645","v":107.59878419452887},{"$f":"OwnerHousingCost!$Q$50/1.645","v":185.41033434650456},214.3699849387115,{"$f":"OwnerHousingCostPrior5Year!$P$50-OwnerHousingCost!$P$50","v":-5089},23.739330865069324,1.645]
[null,null,null,null,null,null,null,"Owner Less than 20.0 percent",null,"Y",{"$f":"OwnerHousingCostPrior5Year!$Q$51/1.645","v":193.92097264437689},{"$f":"OwnerHousingCost!$Q$51/1.645","v":195.74468085106383},275.53824364836544,{"$f":"OwnerHousingCostPrior5Year!$P$51-OwnerHousingCost!$P$51","v":1232},4.4712486502318187,1.645]
[null,null,null,null,null,null,null,"Owner 20.0 to 24.9 percent",null,"Y",{"$f":"OwnerHousingCostPrior5Year!$Q$52/1.645","v":174.46808510638297},{"$f":"OwnerHousingCost!$Q$52/1.645","v":122.79635258358662},213.34961197180701,{"$f":"OwnerHousingCostPrior5Year!$P$52-OwnerHousingCost!$P$52","v":1378},6.4588821477776825,1.645]
[null,null,null,null,null,null,null,"Owner 25.0 to 29.9 percent",null,"Y",{"$f":"OwnerHousingCostPrior5Year!$Q$53/1.645","v":260.85332344447761},{"$f":"OwnerHousingCost!$Q$53/1.645","v":231.07341753070028},348.48153558165257,{"$f":"OwnerHousingCostPrior5Year!$P$53-OwnerHousingCost!$P$53","v":2610},7.4896364183073105,1.645]
[null,null,null,null,null,null,null,"Owner 30.0 or more",null,"Y",{"$f":"OwnerHousingCostPrior5Year!$Q$54/1.645","v":142.85714285714286},{"$f":"OwnerHousingCost!$Q$54/1.645","v":85.106382978723403},166.28667922905692,{"$f":"OwnerHousingCostPrior5Year!$P$54-OwnerHousingCost!$P$54","v":992},5.9656011209024014,1.645]

{"sheet":"ACS_Source_Table_List","index":21,"n_rows":45,"n_cols":4,"rows_kept":45,"cut":false,"hidden":true,"merged":[]}
[]
["ACS Table B01001","x"]
["ACS Table B01002","x"]
["ACS Table B03002","x"]
["ACS Table B05002 ","x"]
["ACS Table B07003","x","Replaces C07001"]
["ACS Table B11001","x"]
["ACS Table B11002","x"]
["ACS Table B14001 & B15002","x","Replaces C15002"]
["ACS Table B17001 ","x"]
["ACS Table B17010 ","x","Replaces C17010","Poverty Status by family type"]
["ACS Table B17017","x","Replaces C17017","Poverty Status by HH type"]
["ACS Table B18001 ",null,"Removed Disability Tables"]
["ACS Table C18001 ",null,"Removed Disability Tables"]
["ACS Table B18003",null,"Removed Disability Tables"]
["ACS Table B18004",null,"Removed Disability Tables"]
["ACS Table B18005",null,"Removed Disability Tables"]
["ACS Table B18006",null,"Removed Disability Tables"]
["ACS Table B18007",null,"Removed Disability Tables"]
["ACS Table B18008",null,"Removed Disability Tables"]
["ACS Table B19001","x"]
["ACS Table B19037 ","x"]
["ACS Table B19049 ","x"]
["ACS Table B19101& B19113 ","s"]
["ACS Table B19201 & B19202","s"]
["ACS Table B25001, B25003 & B25004 ","x"]
["ACS Table B25008","x"]
["ACS Table B25010","x"]
["ACS Table B25024","x"]
["ACS Table B25075 & B25077","x"]
["ACS Table B25088","x"]
["ACS Table B25091","x"]
["ACS Table B25118 & B25119","x"]
[]
[]
[]
[]
[]
[]
["Tables Removed from 5 Year Estimates"]
["ACS Table C19001 ","x","May have to consolidate this table from Table B19001. This has already been done. For 5 year estimates remove worksheet."]
["ACS Table B25094","x","No Comparison Table for B25094 Removed"]
["ACS Table B25101",null,"No Comparison Table for B25101 Removed"]
["ACS Table B25104 & B25105",null,"No Comparison Table for B25104 & B25105 Removed"]
["ACS Table B25106","x","No Comparison Table for  B25106 Removed"]

{"sheet":"ACS_Table_B14001","index":22,"n_rows":98,"n_cols":76,"rows_kept":98,"cut":false,"hidden":true,"merged":[]}
[null,"B14001. SCHOOL ENROLLMENT BY LEVEL OF SCHOOL FOR THE POPULATION 3 YEARS AND OVER"]
[null,"Universe: POPULATION 3 YEARS AND OVER"]
[null,"Data Set: 2015-2019 American Community Survey 5-Year Estimates"]
[]
[null,null,"Atkinson",null,"Auburn",null,"Brentwood",null,"Candia",null,"Chester",null,"Danville",null,"Deerfield",null,"Derry",null,"East Kingston",null,"Epping",null,"Exeter",null,"Fremont",null,"Greenland",null,"Hampstead",null,"Hampton",null,"Hampton Falls",null,"Kensington",null,"Kingston",null,"Londonderry",null,"New Castle",null,"Newfields",null,"Newington",null,"Newmarket",null,"Newton",null,"North Hampton",null,"Northwood",null,"Nottingham",null,"Plaistow",null,"Portsmouth",null,"Raymond",null,"Rye",null,"Salem",null,"Sandown",null,"Seabrook",null,"South Hampton",null,"Stratham",null,"Windham"]
[null,null,"Estimate","Margin Of Error","Estimate","Margin Of Error","Estimate","Margin Of Error","Estimate","Margin Of Error","Estimate","Margin Of Error","Estimate","Margin Of Error","Estimate","Margin Of Error","Estimate","Margin Of Error","Estimate","Margin Of Error","Estimate","Margin Of Error","Estimate","Margin Of Error","Estimate","Margin Of Error","Estimate","Margin Of Error","Estimate","Margin Of Error","Estimate","Margin Of Error","Estimate","Margin Of Error","Estimate","Margin Of Error","Estimate","Margin Of Error","Estimate","Margin Of Error","Estimate","Margin Of Error","Estimate","Margin Of Error","Estimate","Margin Of Error","Estimate","Margin Of Error","Estimate","Margin Of Error","Estimate","Margin Of Error","Estimate","Margin Of Error","Estimate","Margin Of Error","Estimate","Margin Of Error","Estimate","Margin Of Error","Estimate","Margin Of Error","Estimate","Margin Of Error","Estimate","Margin Of Error","Estimate","Margin Of Error","Estimate","Margin Of Error","Estimate","Margin Of Error","Estimate","Margin Of Error","Estimate","Margin Of Error"]
[null,"Total:",6823,94,5262,83,4432,92,3813,72,5033,44,4436,61,4388,63,32403,252,2420,193,6672,110,14752,156,4553,71,3941,39,8332,103,15219,106,2366,161,2207,132,6246,37,25165,169,817,169,1718,220,696,85,8767,117,4783,70,4387,51,4217,65,4893,83,7503,107,21301,146,10060,133,5381,75,28400,229,6070,120,8664,95,761,94,7282,107,14021,174]
[null,"Enrolled in school:",1592,238,1228,192,1017,108,666,136,1280,156,1042,144,1006,124,7696,518,620,85,1244,217,3204,265,914,121,986,139,1937,257,2743,242,504,90,496,69,1237,301,6666,337,160,82,467,104,80,31,1895,274,1026,174,891,203,960,204,1150,174,1615,266,3921,392,2284,350,948,164,5726,489,1357,177,1418,239,173,50,1829,195,3972,369]
[null,"Enrolled in nursery school, preschool",85,60,112,56,65,38,47,35,213,82,35,30,82,50,376,128,31,21,103,57,242,95,87,57,117,55,82,53,96,61,49,30,59,20,19,27,494,146,0,11,42,29,12,9,130,87,22,24,21,22,48,34,89,44,30,37,344,123,28,30,117,73,427,152,78,75,33,32,8,6,194,90,119,93]
[null,"Enrolled in kindergarten",49,58,104,50,73,41,15,23,42,34,8,13,7,12,333,133,20,18,127,97,119,71,38,36,58,35,32,31,214,77,24,17,9,7,57,64,256,96,0,11,18,20,0,11,62,46,37,30,27,25,21,22,36,34,69,58,176,81,49,37,89,67,249,135,39,44,59,69,3,4,102,56,123,84]
[null,"Enrolled in grade 1 to grade 4",381,185,155,67,237,78,74,43,260,106,187,65,155,72,1542,253,95,30,382,176,592,119,237,113,256,66,328,118,541,151,136,46,64,26,339,175,1152,244,13,12,94,38,18,13,275,104,185,79,155,70,242,51,280,84,307,138,759,157,481,140,169,80,1043,243,321,190,503,123,17,12,316,104,1118,240]
[null,"Enrolled in grade 5 to grade 8",292,146,167,69,262,79,196,88,253,72,271,73,172,70,1668,284,147,37,153,91,817,157,194,76,236,71,570,162,639,142,136,40,133,58,218,115,1203,184,32,32,100,36,20,15,387,120,299,74,262,126,163,82,160,58,352,156,722,160,576,187,175,98,1018,213,301,128,299,103,37,18,557,180,1080,211]
[null,"Enrolled in grade 9 to grade 12",438,158,332,95,286,101,155,70,259,65,367,108,371,97,1985,307,204,85,239,144,687,157,177,81,168,64,513,169,698,157,96,64,113,32,234,151,1923,240,72,49,147,55,15,11,336,140,209,77,229,77,128,62,373,109,423,162,699,172,568,168,166,88,1375,243,403,126,268,101,72,36,469,186,835,236]
[null,"Enrolled in college, undergraduate years",310,132,302,154,74,44,137,75,162,74,148,71,166,73,1416,308,94,44,168,109,435,130,169,78,109,62,277,117,415,147,57,36,89,36,257,158,1307,250,15,16,48,24,10,10,474,221,213,130,128,77,302,194,195,70,240,120,767,217,366,140,154,76,1299,337,215,102,246,98,33,24,172,101,475,158]
[null,"Graduate or professional school",37,40,56,45,20,22,42,33,91,71,26,31,53,44,376,116,29,31,72,55,312,137,12,18,42,33,135,57,140,53,6,8,29,16,113,89,331,132,28,24,18,12,5,6,231,114,61,44,69,49,56,52,17,18,194,116,454,120,216,130,78,59,315,125,0,16,10,16,3,4,19,31,222,116]
[null,"Not enrolled in school",5231,218,4034,167,3415,116,3147,129,3753,149,3394,149,3382,120,24707,526,1800,138,5428,216,11548,277,3639,113,2955,136,6395,259,12476,250,1862,150,1711,113,5009,302,18499,300,657,121,1251,151,616,77,6872,266,3757,165,3496,204,3257,172,3743,148,5888,237,17380,402,7776,367,4433,163,22674,450,4713,159,7246,258,588,62,5453,157,10049,308]
[]
[]
[]
[null,"B14001. Calculated  SCHOOL ENROLLMENT BY LEVEL OF SCHOOL FOR THE POPULATION 3 YEARS AND OVER "]
[null,"Universe: POPULATION 3 YEARS AND OVER"]
[null,"Data Set: 2015-2019 American Community Survey 5-Year Estimates"]
[]
[null,null,"Atkinson",null,"Auburn",null,"Brentwood",null,"Candia",null,"Chester",null,"Danville",null,"Deerfield",null,"Derry",null,"East Kingston",null,"Epping",null,"Exeter",null,"Fremont",null,"Greenland",null,"Hampstead",null,"Hampton",null,"Hampton Falls",null,"Kensington",null,"Kingston",null,"Londonderry",null,"New Castle",null,"Newfields",null,"Newington",null,"Newmarket",null,"Newton",null,"North Hampton",null,"Northwood",null,"Nottingham",null,"Plaistow",null,"Portsmouth",null,"Raymond",null,"Rye",null,"Salem",null,"Sandown",null,"Seabrook",null,"South Hampton",null,"Stratham",null,"Windham"]
[null,null,"Estimate","Margin Of Error","Estimate","Margin Of Error","Estimate","Margin Of Error","Estimate","Margin Of Error","Estimate","Margin Of Error","Estimate","Margin Of Error","Estimate","Margin Of Error","Estimate","Margin Of Error","Estimate","Margin Of Error","Estimate","Margin Of Error","Estimate","Margin Of Error","Estimate","Margin Of Error","Estimate","Margin Of Error","Estimate","Margin Of Error","Estimate","Margin Of Error","Estimate","Margin Of Error","Estimate","Margin Of Error","Estimate","Margin Of Error","Estimate","Margin Of Error","Estimate","Margin Of Error","Estimate","Margin Of Error","Estimate","Margin Of Error","Estimate","Margin Of Error","Estimate","Margin Of Error","Estimate","Margin Of Error","Estimate","Margin Of Error","Estimate","Margin Of Error","Estimate","Margin Of Error","Estimate","Margin Of Error","Estimate","Margin Of Error","Estimate","Margin Of Error","Estimate","Margin Of Error","Estimate","Margin Of Error","Estimate","Margin Of Error","Estimate","Margin Of Error","Estimate","Margin Of Error","Estimate","Margin Of Error"]
[null,"Total:",{"$f":"C7","v":6823},94,5262,83,4432,92,3813,72,5033,44,4436,61,4388,63,32403,252,2420,193,6672,110,14752,156,{"$f":"Y7","v":4553},71,3941,39,8332,103,15219,106,2366,161,2207,132,6246,37,25165,169,{"$f":"AO7","v":817},169,1718,220,696,85,8767,117,{"$f":"AW7","v":4783},70,4387,51,4217,65,4893,83,7503,107,21301,146,10060,133,5381,75,28400,229,6070,120,8664,95,761,94,7282,107,14021,174]
[null,"Enrolled in school:",{"$f":"C8","v":1592},238,1228,192,1017,108,666,136,1280,156,1042,144,1006,124,7696,518,620,85,1244,217,3204,265,{"$f":"Y8","v":914},121,986,139,1937,257,2743,242,504,90,496,69,1237,301,6666,337,{"$f":"AO8","v":160},82,467,104,80,31,1895,274,{"$f":"AW8","v":1026},174,891,203,960,204,1150,174,1615,266,3921,392,2284,350,948,164,5726,489,1357,177,1418,239,173,50,1829,195,3972,369]
[null,"Enrolled in nursery school, preschool, and Kindergarten",{"$f":"C9+C10","v":134},{"$f":"SQRT((D9^2)+(D10^2))","v":83.450584180100265},{"$f":"E9+E10","v":216},{"$f":"SQRT((F9^2)+(F10^2))","v":75.073297516493838},{"$f":"G9+G10","v":138},{"$f":"SQRT((H9^2)+(H10^2))","v":55.901699437494742},{"$f":"I9+I10","v":62},{"$f":"SQRT((J9^2)+(J10^2))","v":41.880783182743848},{"$f":"K9+K10","v":255},{"$f":"SQRT((L9^2)+(L10^2))","v":88.76936408468859},{"$f":"M9+M10","v":43},{"$f":"SQRT((N9^2)+(N10^2))","v":32.695565448543633},{"$f":"O9+O10","v":89},{"$f":"SQRT((P9^2)+(P10^2))","v":51.419840528729765},{"$f":"Q9+Q10","v":709},{"$f":"SQRT((R9^2)+(R10^2))","v":184.58873205046942},{"$f":"S9+S10","v":51},{"$f":"SQRT((T9^2)+(T10^2))","v":27.658633371878661},{"$f":"U9+U10","v":230},{"$f":"SQRT((V9^2)+(V10^2))","v":112.50777750893491},{"$f":"W9+W10","v":361},{"$f":"SQRT((X9^2)+(X10^2))","v":118.60016863394419},{"$f":"Y9+Y10","v":125},{"$f":"SQRT((Z9^2)+(Z10^2))","v":67.416615162732697},{"$f":"AA9+AA10","v":175},{"$f":"SQRT((AB9^2)+(AB10^2))","v":65.192024052026483},{"$f":"AC9+AC10","v":114},{"$f":"SQRT((AD9^2)+(AD10^2))","v":61.400325732035007},{"$f":"AE9+AE10","v":310},{"$f":"SQRT((AF9^2)+(AF10^2))","v":98.2344135219425},{"$f":"AG9+AG10","v":73},{"$f":"SQRT((AH9^2)+(AH10^2))","v":34.481879299133332},{"$f":"AI9+AI10","v":68},{"$f":"SQRT((AJ9^2)+(AJ10^2))","v":21.189620100417091},{"$f":"AK9+AK10","v":76},{"$f":"SQRT((AL9^2)+(AL10^2))","v":69.462219947249025},{"$f":"AM9+AM10","v":750},{"$f":"SQRT((AN9^2)+(AN10^2))","v":174.73408368146153},{"$f":"AO9+AO10","v":0},{"$f":"SQRT((AP9^2)+(AP10^2))","v":15.556349186104045},{"$f":"AQ9+AQ10","v":60},{"$f":"SQRT((AR9^2)+(AR10^2))","v":35.227829907617071},{"$f":"AS9+AS10","v":12},{"$f":"SQRT((AT9^2)+(AT10^2))","v":14.212670403551895},{"$f":"AU9+AU10","v":192},{"$f":"SQRT((AV9^2)+(AV10^2))","v":98.412397592986224},{"$f":"AW9+AW10","v":59},{"$f":"SQRT((AX9^2)+(AX10^2))","v":38.418745424597091},{"$f":"AY9+AY10","v":48},{"$f":"SQRT((AZ9^2)+(AZ10^2))","v":33.301651610693426},{"$f":"BA9+BA10","v":69},{"$f":"SQRT((BB9^2)+(BB10^2))","v":40.496913462633174},{"$f":"BC9+BC10","v":125},{"$f":"SQRT((BD9^2)+(BD10^2))","v":55.605755097831377},{"$f":"BE9+BE10","v":99},{"$f":"SQRT((BF9^2)+(BF10^2))","v":68.796802251267465},{"$f":"BG9+BG10","v":520},{"$f":"SQRT((BH9^2)+(BH10^2))","v":147.27525250360293},{"$f":"BI9+BI10","v":77},{"$f":"SQRT((BJ9^2)+(BJ10^2))","v":47.634021455258214},{"$f":"BK9+BK10","v":206},{"$f":"SQRT((BL9^2)+(BL10^2))","v":99.085821387320593},{"$f":"BM9+BM10","v":676},{"$f":"SQRT((BN9^2)+(BN10^2))","v":203.29535164385831},{"$f":"BO9+BO10","v":117},{"$f":"SQRT((BP9^2)+(BP10^2))","v":86.95401083331349},{"$f":"BQ9+BQ10","v":92},{"$f":"SQRT((BR9^2)+(BR10^2))","v":76.05918747922567},{"$f":"BS9+BS10","v":11},{"$f":"SQRT((BT9^2)+(BT10^2))","v":7.2111025509279782},{"$f":"BU9+BU10","v":296},{"$f":"SQRT((BV9^2)+(BV10^2))","v":106},{"$f":"BW9+BW10","v":242},{"$f":"SQRT((BX9^2)+(BX10^2))","v":125.31959144523253}]
[null,{"$f":"B9","v":"Enrolled in nursery school, preschool"},{"$f":"C9","v":85},60,112,56,65,38,47,35,213,82,35,30,82,50,376,128,31,21,103,57,242,95,87,57,117,55,82,53,96,61,49,30,59,20,19,27,494,146,0,11,42,29,12,9,130,87,{"$f":"AW9","v":22},24,21,22,48,34,89,44,30,37,344,123,28,30,117,73,427,152,78,75,33,32,8,6,194,90,119,93]
[null,"Enrolled in kindergarten",{"$f":"C10","v":49},58,104,50,73,41,15,23,42,34,8,13,7,12,333,133,20,18,127,97,119,71,38,36,58,35,32,31,214,77,24,17,9,7,57,64,256,96,0,11,18,20,0,11,62,46,{"$f":"AW10","v":37},30,27,25,21,22,36,34,69,58,176,81,49,37,89,67,249,135,39,44,59,69,3,4,102,56,123,84]
[null,"Enrolled in grade Elementary School (grade 1 to grade 8)",{"$f":"C11+C12","v":673},{"$f":"SQRT((D11^2)+(D12^2))","v":235.67138137669579},{"$f":"E11+E12","v":322},{"$f":"SQRT((F11^2)+(F12^2))","v":96.176920308356728},{"$f":"G11+G12","v":499},{"$f":"SQRT((H11^2)+(H12^2))","v":111.01801655587259},{"$f":"I11+I12","v":270},{"$f":"SQRT((J11^2)+(J12^2))","v":97.943861471763512},{"$f":"K11+K12","v":513},{"$f":"SQRT((L11^2)+(L12^2))","v":128.14054783713078},{"$f":"M11+M12","v":458},{"$f":"SQRT((N11^2)+(N12^2))","v":97.744565066299216},{"$f":"O11+O12","v":327},{"$f":"SQRT((P11^2)+(P12^2))","v":100.41912168506553},{"$f":"Q11+Q12","v":3210},{"$f":"SQRT((R11^2)+(R12^2))","v":380.34852438257207},{"$f":"S11+S12","v":242},{"$f":"SQRT((T11^2)+(T12^2))","v":47.634021455258214},{"$f":"U11+U12","v":535},{"$f":"SQRT((V11^2)+(V12^2))","v":198.13379318026495},{"$f":"W11+W12","v":1409},{"$f":"SQRT((X11^2)+(X12^2))","v":197.00253805471644},{"$f":"Y11+Y12","v":431},{"$f":"SQRT((Z11^2)+(Z12^2))","v":136.18002790424151},{"$f":"AA11+AA12","v":492},{"$f":"SQRT((AB11^2)+(AB12^2))","v":96.938124595021947},{"$f":"AC11+AC12","v":898},{"$f":"SQRT((AD11^2)+(AD12^2))","v":200.4195599236761},{"$f":"AE11+AE12","v":1180},{"$f":"SQRT((AF11^2)+(AF12^2))","v":207.28000385951367},{"$f":"AG11+AG12","v":272},{"$f":"SQRT((AH11^2)+(AH12^2))","v":60.959002616512684},{"$f":"AI11+AI12","v":197},{"$f":"SQRT((AJ11^2)+(AJ12^2))","v":63.560994328282817},{"$f":"AK11+AK12","v":557},{"$f":"SQRT((AL11^2)+(AL12^2))","v":209.40391591371923},{"$f":"AM11+AM12","v":2355},{"$f":"SQRT((AN11^2)+(AN12^2))","v":305.60104711862493},{"$f":"AO11+AO12","v":45},{"$f":"SQRT((AP11^2)+(AP12^2))","v":34.176014981270121},{"$f":"AQ11+AQ12","v":194},{"$f":"SQRT((AR11^2)+(AR12^2))","v":52.345009313209601},{"$f":"AS11+AS12","v":38},{"$f":"SQRT((AT11^2)+(AT12^2))","v":19.849433241279208},{"$f":"AU11+AU12","v":662},{"$f":"SQRT((AV11^2)+(AV12^2))","v":158.79546593023366},{"$f":"AW11+AW12","v":484},{"$f":"SQRT((AX11^2)+(AX12^2))","v":108.2450922675019},{"$f":"AY11+AY12","v":417},{"$f":"SQRT((AZ11^2)+(AZ12^2))","v":144.13882197381801},{"$f":"BA11+BA12","v":405},{"$f":"SQRT((BB11^2)+(BB12^2))","v":96.566039579139826},{"$f":"BC11+BC12","v":440},{"$f":"SQRT((BD11^2)+(BD12^2))","v":102.07840124139877},{"$f":"BE11+BE12","v":659},{"$f":"SQRT((BF11^2)+(BF12^2))","v":208.27865949251739},{"$f":"BG11+BG12","v":1481},{"$f":"SQRT((BH11^2)+(BH12^2))","v":224.16288720481811},{"$f":"BI11+BI12","v":1057},{"$f":"SQRT((BJ11^2)+(BJ12^2))","v":233.60008561642266},{"$f":"BK11+BK12","v":344},{"$f":"SQRT((BL11^2)+(BL12^2))","v":126.50691680694776},{"$f":"BM11+BM12","v":2061},{"$f":"SQRT((BN11^2)+(BN12^2))","v":323.13774152828387},{"$f":"BO11+BO12","v":622},{"$f":"SQRT((BP11^2)+(BP12^2))","v":229.09386722476881},{"$f":"BQ11+BQ12","v":802},{"$f":"SQRT((BR11^2)+(BR12^2))","v":160.43067038443741},{"$f":"BS11+BS12","v":54},{"$f":"SQRT((BT11^2)+(BT12^2))","v":21.633307652783937},{"$f":"BU11+BU12","v":873},{"$f":"SQRT((BV11^2)+(BV12^2))","v":207.88458336298052},{"$f":"BW11+BW12","v":2198},{"$f":"SQRT((BX11^2)+(BX12^2))","v":319.56376515493741}]
[null,"Enrolled in grade 9 to grade 12",{"$f":"C13","v":438},158,332,95,286,101,155,70,259,65,367,108,371,97,1985,307,204,85,239,144,687,157,{"$f":"Y13","v":177},81,168,64,513,169,698,157,96,64,113,32,234,151,1923,240,{"$f":"AO13","v":72},49,147,55,15,11,336,140,{"$f":"AW13","v":209},77,229,77,128,62,373,109,423,162,699,172,568,168,166,88,1375,243,403,126,268,101,72,36,469,186,835,236]
[null,"Enrolled in Elementary and High School",{"$f":"C11+C12+C13","v":1111},{"$f":"SQRT((D11^2)+(D12^2)+(D13^2))","v":283.73403038761495},{"$f":"E11+E12+E13","v":654},{"$f":"SQRT((F11^2)+(F12^2)+(F13^2))","v":135.18505834595774},{"$f":"G11+G12+G13","v":785},{"$f":"SQRT((H11^2)+(H12^2)+(H13^2))","v":150.08664164408503},{"$f":"I11+I12+I13","v":425},{"$f":"SQRT((J11^2)+(J12^2)+(J13^2))","v":120.38687636117153},{"$f":"K11+K12+K13","v":772},{"$f":"SQRT((L11^2)+(L12^2)+(L13^2))","v":143.68368035375485},{"$f":"M11+M12+M13","v":825},{"$f":"SQRT((N11^2)+(N12^2)+(N13^2))","v":145.6639969244288},{"$f":"O11+O12+O13","v":698},{"$f":"SQRT((P11^2)+(P12^2)+(P13^2))","v":139.61733416735902},{"$f":"Q11+Q12+Q13","v":5195},{"$f":"SQRT((R11^2)+(R12^2)+(R13^2))","v":488.78829773225954},{"$f":"S11+S12+S13","v":446},{"$f":"SQRT((T11^2)+(T12^2)+(T13^2))","v":97.437159236094317},{"$f":"U11+U12+U13","v":774},{"$f":"SQRT((V11^2)+(V12^2)+(V13^2))","v":244.93468517137379},{"$f":"W11+W12+W13","v":2096},{"$f":"SQRT((X11^2)+(X12^2)+(X13^2))","v":251.91069846276875},{"$f":"Y11+Y12+Y13","v":608},{"$f":"SQRT((Z11^2)+(Z12^2)+(Z13^2))","v":158.44872987815333},{"$f":"AA11+AA12+AA13","v":660},{"$f":"SQRT((AB11^2)+(AB12^2)+(AB13^2))","v":116.15937327654622},{"$f":"AC11+AC12+AC13","v":1411},{"$f":"SQRT((AD11^2)+(AD12^2)+(AD13^2))","v":262.16216355530787},{"$f":"AE11+AE12+AE13","v":1878},{"$f":"SQRT((AF11^2)+(AF12^2)+(AF13^2))","v":260.02692168312109},{"$f":"AG11+AG12+AG13","v":368},{"$f":"SQRT((AH11^2)+(AH12^2)+(AH13^2))","v":88.385519175937418},{"$f":"AI11+AI12+AI13","v":310},{"$f":"SQRT((AJ11^2)+(AJ12^2)+(AJ13^2))","v":71.161787498628783},{"$f":"AK11+AK12+AK13","v":791},{"$f":"SQRT((AL11^2)+(AL12^2)+(AL13^2))","v":258.16854959502717},{"$f":"AM11+AM12+AM13","v":4278},{"$f":"SQRT((AN11^2)+(AN12^2)+(AN13^2))","v":388.57689071791185},{"$f":"AO11+AO12+AO13","v":117},{"$f":"SQRT((AP11^2)+(AP12^2)+(AP13^2))","v":59.741108124975383},{"$f":"AQ11+AQ12+AQ13","v":341},{"$f":"SQRT((AR11^2)+(AR12^2)+(AR13^2))","v":75.927597090912869},{"$f":"AS11+AS12+AS13","v":53},{"$f":"SQRT((AT11^2)+(AT12^2)+(AT13^2))","v":22.693611435820433},{"$f":"AU11+AU12+AU13","v":998},{"$f":"SQRT((AV11^2)+(AV12^2)+(AV13^2))","v":211.69789795838787},{"$f":"AW11+AW12+AW13","v":693},{"$f":"SQRT((AX11^2)+(AX12^2)+(AX13^2))","v":132.83824750424856},{"$f":"AY11+AY12+AY13","v":646},{"$f":"SQRT((AZ11^2)+(AZ12^2)+(AZ13^2))","v":163.41664541900252},{"$f":"BA11+BA12+BA13","v":533},{"$f":"SQRT((BB11^2)+(BB12^2)+(BB13^2))","v":114.75626344561765},{"$f":"BC11+BC12+BC13","v":813},{"$f":"SQRT((BD11^2)+(BD12^2)+(BD13^2))","v":149.33519344079613},{"$f":"BE11+BE12+BE13","v":1082},{"$f":"SQRT((BF11^2)+(BF12^2)+(BF13^2))","v":263.86360112755227},{"$f":"BG11+BG12+BG13","v":2180},{"$f":"SQRT((BH11^2)+(BH12^2)+(BH13^2))","v":282.54734116604249},{"$f":"BI11+BI12+BI13","v":1625},{"$f":"SQRT((BJ11^2)+(BJ12^2)+(BJ13^2))","v":287.73772780085687},{"$f":"BK11+BK12+BK13","v":510},{"$f":"SQRT((BL11^2)+(BL12^2)+(BL13^2))","v":154.10386108076591},{"$f":"BM11+BM12+BM13","v":3436},{"$f":"SQRT((BN11^2)+(BN12^2)+(BN13^2))","v":404.31052422612004},{"$f":"BO11+BO12+BO13","v":1025},{"$f":"SQRT((BP11^2)+(BP12^2)+(BP13^2))","v":261.457453517776},{"$f":"BQ11+BQ12+BQ13","v":1070},{"$f":"SQRT((BR11^2)+(BR12^2)+(BR13^2))","v":189.57584234284704},{"$f":"BS11+BS12+BS13","v":126},{"$f":"SQRT((BT11^2)+(BT12^2)+(BT13^2))","v":42},{"$f":"BU11+BU12+BU13","v":1342},{"$f":"SQRT((BV11^2)+(BV12^2)+(BV13^2))","v":278.94802383239784},{"$f":"BW11+BW12+BW13","v":3033},{"$f":"SQRT((BX11^2)+(BX12^2)+(BX13^2))","v":397.26187836237193}]
[null,"Enrolled in College or Graduate School",{"$f":"C14+C15","v":347},{"$f":"SQRT((D14^2)+(D15^2))","v":137.92751719653333},{"$f":"E14+E15","v":358},{"$f":"SQRT((F14^2)+(F15^2))","v":160.4400199451496},{"$f":"G14+G15","v":94},{"$f":"SQRT((H14^2)+(H15^2))","v":49.193495504995376},{"$f":"I14+I15","v":179},{"$f":"SQRT((J14^2)+(J15^2))","v":81.939001702485982},{"$f":"K14+K15","v":253},{"$f":"SQRT((L14^2)+(L15^2))","v":102.55242561733974},{"$f":"M14+M15","v":174},{"$f":"SQRT((N14^2)+(N15^2))","v":77.472575792986262},{"$f":"O14+O15","v":219},{"$f":"SQRT((P14^2)+(P15^2))","v":85.234969349440135},{"$f":"Q14+Q15","v":1792},{"$f":"SQRT((R14^2)+(R15^2))","v":329.1200388915874},{"$f":"S14+S15","v":123},{"$f":"SQRT((T14^2)+(T15^2))","v":53.823786563191554},{"$f":"U14+U15","v":240},{"$f":"SQRT((V14^2)+(V15^2))","v":122.09013064126027},{"$f":"W14+W15","v":747},{"$f":"SQRT((X14^2)+(X15^2))","v":188.86238376129853},{"$f":"Y14+Y15","v":181},{"$f":"SQRT((Z14^2)+(Z15^2))","v":80.049984384758005},{"$f":"AA14+AA15","v":151},{"$f":"SQRT((AB14^2)+(AB15^2))","v":70.235318750611498},{"$f":"AC14+AC15","v":412},{"$f":"SQRT((AD14^2)+(AD15^2))","v":130.14607178090316},{"$f":"AE14+AE15","v":555},{"$f":"SQRT((AF14^2)+(AF15^2))","v":156.26259949200897},{"$f":"AG14+AG15","v":63},{"$f":"SQRT((AH14^2)+(AH15^2))","v":36.878177829171548},{"$f":"AI14+AI15","v":118},{"$f":"SQRT((AJ14^2)+(AJ15^2))","v":39.395431207184416},{"$f":"AK14+AK15","v":370},{"$f":"SQRT((AL14^2)+(AL15^2))","v":181.34221791960084},{"$f":"AM14+AM15","v":1638},{"$f":"SQRT((AN14^2)+(AN15^2))","v":282.70833026283469},{"$f":"AO14+AO15","v":43},{"$f":"SQRT((AP14^2)+(AP15^2))","v":28.844410203711913},{"$f":"AQ14+AQ15","v":66},{"$f":"SQRT((AR14^2)+(AR15^2))","v":26.832815729997478},{"$f":"AS14+AS15","v":15},{"$f":"SQRT((AT14^2)+(AT15^2))","v":11.661903789690601},{"$f":"AU14+AU15","v":705},{"$f":"SQRT((AV14^2)+(AV15^2))","v":248.67046467162118},{"$f":"AW14+AW15","v":274},{"$f":"SQRT((AX14^2)+(AX15^2))","v":137.2443077143821},{"$f":"AY14+AY15","v":197},{"$f":"SQRT((AZ14^2)+(AZ15^2))","v":91.268833672837076},{"$f":"BA14+BA15","v":358},{"$f":"SQRT((BB14^2)+(BB15^2))","v":200.84820138602188},{"$f":"BC14+BC15","v":212},{"$f":"SQRT((BD14^2)+(BD15^2))","v":72.277243998370608},{"$f":"BE14+BE15","v":434},{"$f":"SQRT((BF14^2)+(BF15^2))","v":166.90116836020053},{"$f":"BG14+BG15","v":1221},{"$f":"SQRT((BH14^2)+(BH15^2))","v":247.96975622039071},{"$f":"BI14+BI15","v":582},{"$f":"SQRT((BJ14^2)+(BJ15^2))","v":191.04973174542801},{"$f":"BK14+BK15","v":232},{"$f":"SQRT((BL14^2)+(BL15^2))","v":96.213304693269947},{"$f":"BM14+BM15","v":1614},{"$f":"SQRT((BN14^2)+(BN15^2))","v":359.43566879206634},{"$f":"BO14+BO15","v":215},{"$f":"SQRT((BP14^2)+(BP15^2))","v":103.24727599312246},{"$f":"BQ14+BQ15","v":256},{"$f":"SQRT((BR14^2)+(BR15^2))","v":99.297532698451278},{"$f":"BS14+BS15","v":36},{"$f":"SQRT((BT14^2)+(BT15^2))","v":24.331050121192877},{"$f":"BU14+BU15","v":191},{"$f":"SQRT((BV14^2)+(BV15^2))","v":105.65036677645753},{"$f":"BW14+BW15","v":697},{"$f":"SQRT((BX14^2)+(BX15^2))","v":196.01020381602586}]
[null,"Not enrolled in school",{"$f":"C16","v":5231},218,4034,167,3415,116,3147,129,3753,149,3394,149,3382,120,24707,526,1800,138,5428,216,11548,277,{"$f":"Y16","v":3639},113,2955,136,6395,259,12476,250,1862,150,1711,113,5009,302,18499,300,{"$f":"AO16","v":657},121,1251,151,616,77,6872,266,{"$f":"AW16","v":3757},165,3496,204,3257,172,3743,148,5888,237,17380,402,7776,367,4433,163,22674,450,4713,159,7246,258,588,62,5453,157,10049,308]
[]
[]
[null,"B14001. Calculated  SCHOOL ENROLLMENT BY LEVEL OF SCHOOL FOR THE POPULATION 3 YEARS AND OVER "]
[null,"Universe: POPULATION 3 YEARS AND OVER"]
[null,"Data Set: 2010-2014 American Community Survey 5-Year Estimates"]
[]
[null,null,"Atkinson",null,"Auburn",null,"Brentwood",null,"Candia",null,"Chester",null,"Danville",null,"Deerfield",null,"Derry",null,"East Kingston",null,"Epping",null,"Exeter",null,"Fremont",null,"Greenland",null,"Hampstead",null,"Hampton",null,"Hampton Falls",null,"Kensington",null,"Kingston",null,"Londonderry",null,"New Castle",null,"Newfields",null,"Newington",null,"Newmarket",null,"Newton",null,"North Hampton",null,"Northwood",null,"Nottingham",null,"Plaistow",null,"Portsmouth",null,"Raymond",null,"Rye",null,"Salem",null,"Sandown",null,"Seabrook",null,"South Hampton",null,"Stratham",null,"Windham"]
[null,null,"Estimate","Margin Of Error","Estimate","Margin Of Error","Estimate","Margin Of Error","Estimate","Margin Of Error","Estimate","Margin Of Error","Estimate","Margin Of Error","Estimate","Margin Of Error","Estimate","Margin Of Error","Estimate","Margin Of Error","Estimate","Margin Of Error","Estimate","Margin Of Error","Estimate","Margin Of Error","Estimate","Margin Of Error","Estimate","Margin Of Error","Estimate","Margin Of Error","Estimate","Margin Of Error","Estimate","Margin Of Error","Estimate","Margin Of Error","Estimate","Margin Of Error","Estimate","Margin Of Error","Estimate","Margin Of Error","Estimate","Margin Of Error","Estimate","Margin Of Error","Estimate","Margin Of Error","Estimate","Margin Of Error","Estimate","Margin Of Error","Estimate","Margin Of Error","Estimate","Margin Of Error","Estimate","Margin Of Error","Estimate","Margin Of Error","Estimate","Margin Of Error","Estimate","Margin Of Error","Estimate","Margin Of Error","Estimate","Margin Of Error","Estimate","Margin Of Error","Estimate","Margin Of Error","Estimate","Margin Of Error"]
[null,"Total:",6633,119,4969,55,4511,57,3886,33,4672,64,4247,97,4199,64,32244,237,2365,131,6277,126,14177,105,4174,116,3501,75,8329,120,14813,110,2230,120,2016,145,5860,134,23663,148,954,155,1576,209,783,130,8711,113,4586,79,4186,113,4083,106,4683,70,7439,103,20746,173,9789,135,5237,66,28134,177,5933,118,8575,96,786,120,7159,143,13562,131]
[null,"Enrolled in school:",1730,254,1354,119,1325,138,873,136,1303,165,1177,141,1087,117,8297,467,580,84,1268,255,3376,273,961,138,815,88,1984,231,3186,334,568,85,515,76,1223,143,6842,367,158,78,465,100,154,54,2372,297,1398,196,842,147,826,204,1056,128,2081,261,4174,389,2305,279,970,156,6951,418,1539,225,1302,238,182,52,1826,192,4106,288]
[null,"Enrolled in nursery school, preschool, and Kindergarten",111,95.880133500115647,137,69.526973183074787,144,63.071388124885914,124,56.080299571239813,151,72.897187874430387,182,80,132,65.946948375190189,618,173.40415219942111,53,25.553864678361276,199,98.473346647709704,321,110.75197515168747,82,49.578221024962161,80,51.662365412357957,343,113.85077953180645,308,86.683331731077345,37,27.513632984395208,77,37,202,102,763,148.51935900750448,3,12.083045973594572,53,27.018512172212592,14,12.806248474865697,291,138.13037319865606,199,82.764726786234249,137,76.896033707857782,117,65.80273550544841,169,80.622577482985491,307,140.01428498549711,551,136.61991070118586,370,120.37026210821342,113,65.215028942721474,664,160,252,117.04699910719626,131,98.994949366116657,31,21.377558326431949,153,80.081208782085696,458,174.63103962354458]
[null,"Enrolled in nursery school, preschool",95,92,62,45,110,57,57,36,100,65,59,48,77,50,278,105,28,22,46,56,197,85,46,33,34,35,206,89,194,67,30,26,59,35,157,90,403,107,3,5,27,17,9,10,188,114,126,73,107,72,72,53,63,56,171,100,308,101,191,67,70,53,409,128,195,110,81,70,28,21,132,77,359,164]
[null,"Enrolled in kindergarten",16,27,75,53,34,27,67,43,51,33,123,64,55,43,340,138,25,13,153,81,124,71,36,37,46,38,137,71,114,55,7,9,18,12,45,48,360,103,0,11,26,21,5,8,103,78,73,39,30,27,45,39,106,58,136,98,243,92,179,100,43,38,255,96,57,40,50,70,3,4,21,22,99,60]
[null,"Enrolled in grade Elementary School (grade 1 to grade 8)",688,169.71151993898351,602,122.57650672131263,533,116.40017182117903,365,77.89736837660179,593,130.09611831257686,486,110.60289327137876,510,148.71785366928881,3400,316.57068720903391,256,57.008771254956898,477,139.34489585198304,1774,252.40641830191245,427,99.362970970075168,484,124.61942063739504,910,176.07100840286,1306,222.40728405337808,307,67.742158217759794,209,38.288379438153292,497,137.3608386695422,2864,299.34762400927787,28,30.083217912982647,221,63.7808748764079,13,14.866068747318506,853,195.16659550240661,501,162.24980739587951,432,149.37536610833797,372,130.81666560496029,428,109.98636279102969,708,160.03124694883809,1423,219.1118435867856,978,190.24457942343588,405,136.65284482951682,2786,383.34579689883128,572,172.20046457544765,569,189.43336559328719,59,26.40075756488817,1059,195.67319693816015,1931,262.68041419184647]
[null,"Enrolled in grade 9 to grade 12",563,139,262,79,439,107,254,98,243,95,297,92,267,87,2300,339,143,41,377,146,820,184,258,77,167,56,392,118,855,207,96,39,160,44,305,121,1823,232,74,61,141,49,52,26,521,132,339,116,123,56,191,78,189,75,480,155,838,181,607,178,229,113,1581,232,408,141,232,91,51,27,332,133,1027,263]
[null,"Enrolled in Elementary and High School",1251,219.36955121438345,864,145.8286665919976,972,158.10755832660246,619,125.1878588362306,836,161.09003693587013,783,143.86451960090784,777,172.29625648864226,5700,463.82971013077633,399,70.221079456243046,854,201.82418091001881,2594,312.35396587845656,685,125.70600622086441,651,136.62357044082839,1302,211.95518394226644,2161,303.8321905262838,403,78.166488983451217,369,58.32666628567074,802,183.05463665255792,4687,378.72549425672418,102,68.01470429252781,362,80.430093870391573,65,29.949958263743873,1374,235.61409125941512,840,199.45174855087132,555,159.52742710894574,563,152.30561381643159,617,133.12400234367956,1188,222.78913797579989,2261,284.20239267113851,1585,260.53214772845212,634,177.32174147577052,4367,448.08258167440522,980,222.56235081432797,801,210.15708410615142,110,37.76241517699841,1391,236.59458996350699,2958,371.71225430432071]
[null,"Enrolled in College or Graduate School",368,131.48383931114881,353,120.7393887677091,209,80.777472107017559,130,55.542776307995261,316,109.20164833920778,212,81.60882305241266,178,75.073297516493838,1979,315.73406531446682,128,48.301138702933287,215,98.386991009990751,461,145.03103116229988,194,73.061617830431317,84,52.009614495783374,339,134.48048185517482,717,182.70194306574848,128,51.97114584074513,69,21.023796041628639,219,106.60675400742676,1392,249.39326374222702,53,44.77722635447622,50,28.792360097775937,75,34.928498393145958,707,210.23796041628637,359,151.32745950421557,150,74,146,86.648716089737874,270,107.42439201596628,586,162.85576440519384,1362,277.83808234293582,350,125.31959144523253,223,112.00892821556681,1920,307.35321699959479,307,126.88971589533961,370,192.65772758962979,41,20.808652046684813,282,123.16655390161731,690,196.73586353280888]
[null,"Not enrolled in school",4903,221,3615,120,3186,140,3013,132,3369,154,3070,125,3112,121,23947,481,1785,102,5009,221,10801,248,3213,121,2686,87,6345,190,11627,316,1662,101,1501,116,4637,202,16821,368,796,125,1111,145,629,98,6339,310,3188,182,3344,140,3257,192,3627,146,5358,251,16572,361,7484,273,4267,178,21183,374,4394,179,7273,256,604,83,5333,175,9456,264]
[]
[]
[]
[]
[]
[]
[]
[]
[]
[]
[]
[]
[]
[]
[]
[]
[]
[]
[]
[]
[]
[]
[]
[]
[]
[]
[]
[]
[]
[null,"B14001.Calculated  SCHOOL ENROLLMENT BY LEVEL OF SCHOOL FOR THE POPULATION 3 YEARS AND OVER "]
[null,"Universe: POPULATION 3 YEARS AND OVER"]
[null,"Data Set: 2005-2009 American Community Survey 5-Year Estimates"]
[]
[null,null,"Atkinson",null,"Auburn",null,"Brentwood",null,"Candia",null,"Chester",null,"Danville",null,"Deerfield",null,"Derry",null,"East Kingston",null,"Epping",null,"Exeter",null,"Fremont",null,"Greenland",null,"Hampstead",null,"Hampton",null,"Hampton Falls",null,"Kensington",null,"Kingston",null,"Londonderry",null,"New Castle",null,"Newfields",null,"Newington",null,"Newmarket",null,"Newton",null,"North Hampton",null,"Northwood",null,"Nottingham",null,"Plaistow",null,"Portsmouth",null,"Raymond",null,"Rye",null,"Salem",null,"Sandown",null,"Seabrook",null,"South Hampton",null,"Stratham",null,"Windham"]
[null,null,"Estimate","Margin Of Error","Estimate","Margin Of Error","Estimate","Margin Of Error","Estimate","Margin Of Error","Estimate","Margin Of Error","Estimate","Margin Of Error","Estimate","Margin Of Error","Estimate","Margin Of Error","Estimate","Margin Of Error","Estimate","Margin Of Error","Estimate","Margin Of Error","Estimate","Margin Of Error","Estimate","Margin Of Error","Estimate","Margin Of Error","Estimate","Margin Of Error","Estimate","Margin Of Error","Estimate","Margin Of Error","Estimate","Margin Of Error","Estimate","Margin Of Error","Estimate","Margin Of Error","Estimate","Margin Of Error","Estimate","Margin Of Error","Estimate","Margin Of Error","Estimate","Margin Of Error","Estimate","Margin Of Error","Estimate","Margin Of Error","Estimate","Margin Of Error","Estimate","Margin Of Error","Estimate","Margin Of Error","Estimate","Margin Of Error","Estimate","Margin Of Error","Estimate","Margin Of Error","Estimate","Margin Of Error","Estimate","Margin Of Error","Estimate","Margin Of Error","Estimate","Margin Of Error","Estimate","Margin Of Error"]
[null,"Total:",6522,71,4938,107,3747,58,4081,56,4559,75,4251,62,3998,77,32709,292,2229,117,6047,94,14243,144,3906,69,3296,105,8743,85,14977,138,2208,126,2087,160,6036,86,24360,206,722,135,1782,229,687,107,8918,120,4319,81,4379,75,4008,48,4139,98,7406,122,19822,182,9792,107,4993,117,28402,261,5553,104,8297,97,786,127,7006,93,12519,130]
[null,"Enrolled in school:",1672,163,1352,135,992,101,970,120,1435,146,1302,122,1018,129,8565,488,589,85,1256,211,3374,351,1025,157,889,124,2580,224,2925,339,589,99,575,82,1768,225,8187,391,99,51,652,124,108,42,2163,238,1155,156,1120,138,1133,152,1015,163,2174,306,3899,330,2170,265,1065,201,7744,440,1905,178,1702,286,162,45,1963,186,3767,240]
[null,"Enrolled in nursery school, preschool, and Kindergarten",203,78.790862414368831,214,71.028163428319047,171,66.708320320631671,94,50.566787519082126,225,86.092973000123536,82,50.990195135927848,106,55.865910893853687,547,152.50573759698355,89,28.231188426986208,109,76.157731058639087,363,135.09256086106296,148,61.220911460055866,106,53.665631459994955,246,97.416631023660429,302,127.63228431709588,100,36.674241641784498,135,60.207972893961475,232,149.90663761154806,1194,271.2489631316588,0,161.22034611053283,69,29.529646120466801,14,13.928388277184119,294,116,123,64.007812023221035,176,62.968245965724662,198,79.981247802219244,114,55.317266743757322,134,84.864598037108507,557,151.32745950421557,388,128.70120434556935,121,71.112586790244109,799,161.96604582442581,268,120.41594578792295,219,128.16005617976296,20,12.041594578792296,208,83.240615086627031,505,128.54960132182441]
[null,"Enrolled in nursery school, preschool",176,72,154,58,93,43,77,46,177,74,33,34,43,39,412,137,75,26,90,70,211,111,90,48,76,48,167,83,196,111,71,33,72,45,189,146,762,226,0,114,40,26,11,13,144,80,87,56,104,46,82,54,106,54,22,31,264,108,143,70,93,64,418,117,171,102,156,108,9,8,124,65,312,99]
[null,"Enrolled in kindergarten",27,32,60,41,78,51,17,21,48,44,49,38,63,40,135,67,14,11,19,30,152,77,58,38,30,24,79,51,106,63,29,16,63,40,43,34,432,150,0,114,29,14,3,5,150,84,36,31,72,43,116,59,8,12,112,79,293,106,245,108,28,31,381,112,97,64,63,69,11,9,84,52,193,82]
[null,"Enrolled in grade Elementary School (grade 1 to grade 8)",765,148.51935900750448,631,118.86967653695369,495,90.603531939985658,483,128.54960132182441,701,182.45273360517237,779,137.2443077143821,475,113.56936206565572,4077,381.87956216587452,223,46.010868281309364,569,161.01242188104618,1393,264.0151510803878,495,122.09013064126027,406,93.434469014384618,1024,231.79516819813134,1227,209.124364912365,192,47.010637094172637,210,41.036569057366385,608,129.634100452003,3286,381.6818046488462,55,31.906112267087632,315,72.917761896536561,36,22.825424421026653,780,191.81762171396036,432,104.1393297462587,373,111.60645142642964,496,159.89058759038946,433,120.41594578792295,1044,210.8885961829136,1478,265.43737491167292,807,183.3712082089225,443,130.83195328359201,3237,351.09542862304545,761,140.80127840328723,801,211.85136298829894,88,31.780497164141408,1007,163.89325794552991,1500,184.28781837115551]
[null,"Enrolled in grade 9 to grade 12",440,145,253,78,209,59,312,108,249,102,336,93,291,87,2111,330,150,40,365,123,848,262,210,75,211,75,766,210,944,205,170,47,152,39,433,133,2224,255,30,22,185,57,31,17,362,98,326,93,315,101,229,74,237,90,549,136,808,190,589,167,327,157,1984,283,302,90,416,174,26,14,474,117,906,147]
[null,"Enrolled in Elementary and High School",1205,207.56444782283887,884,142.17594733287342,704,108.12030336620407,795,167.89580101956093,950,209.02870616257471,1115,165.78600664712326,766,143.06292321912062,6188,504.7098176180051,373,60.967204298704729,934,202.61786693181824,2241,371.95160975589283,705,143.28642643321103,617,119.81235328629515,1790,312.77627787285917,2171,292.84466872388168,362,66.475559418481012,362,56.612719418872643,1041,185.72560405070703,5510,459.02723230762683,85,38.7556447501522,500,92.552687697332701,67,28.460498941515414,1142,215.40194985189896,758,139.62091533864114,688,150.52242357868147,725,176.18456232031227,670,150.33296378372907,1593,250.93823941360552,2286,326.43069708592054,1396,248.02016047087784,770,204.36731636932555,5221,450.95121687384324,1063,167.10774967068403,1217,274.14777037211155,114,34.727510708370673,1481,201.37030565602268,2406,235.73502073302558]
[null,"Enrolled in College or Graduate School",264,93.1933474020544,254,111.40017953306898,117,46.957427527495582,81,52.773099207835045,260,90.824005637276315,105,51.107729356722551,146,66.098411478642959,1830,304.59973736035954,127,37.947331922020552,213,110.02272492535349,770,238.19529802244207,172,76.550636836018555,166,74.732857566133518,544,181.24017214734707,452,166.23477373883,127,41.109609582188931,78,29.154759474226502,495,166.35504200354134,1483,250.04999500099976,14,115.91807451816995,83,28.301943396169811,27,115.57248807566617,727,185.18099254513137,274,99.282425433709065,256,111.13955191559843,210,99.864908751773257,231,105.80170130957252,447,164.62381358722072,1056,231.92455669894036,386,145.3616180427282,174,107.44766167767449,1724,271.93565415369864,574,177.63445611704955,266,103.24727599312246,28,15,274,99.624294225856374,856,188.78824115924169]
[null,"Not enrolled in school",4850,153,3586,133,2755,104,3111,108,3124,136,2949,134,2980,113,24144,503,1640,98,4791,212,10869,306,2881,144,2407,112,6163,202,12052,335,1619,101,1512,107,4268,202,16173,370,623,116,1130,133,579,92,6755,247,3164,147,3259,126,2875,144,3124,138,5232,323,15923,347,7622,266,3928,169,20658,441,3648,195,6595,281,624,101,5043,213,8752,212]

{"sheet":"ACS_Table_B15002","index":23,"n_rows":141,"n_cols":76,"rows_kept":141,"cut":false,"hidden":true,"merged":[]}
[null,"B15002. SEX BY EDUCATIONAL ATTAINMENT FOR THE POPULATION 25 YEARS AND OVER"]
[null,"Universe: Population 25 years an over"]
[null,"Data Set: 2015-2019 American Community Survey 5-Year Estimates"]
[]
[null,null,"Atkinson",null,"Auburn",null,"Brentwood",null,"Candia",null,"Chester",null,"Danville",null,"Deerfield",null,"Derry",null,"East Kingston",null,"Epping",null,"Exeter",null,"Fremont",null,"Greenland",null,"Hampstead",null,"Hampton",null,"Hampton Falls",null,"Kensington",null,"Kingston",null,"Londonderry",null,"New Castle",null,"Newfields",null,"Newington",null,"Newmarket",null,"Newton",null,"North Hampton",null,"Northwood",null,"Nottingham",null,"Plaistow",null,"Portsmouth",null,"Raymond",null,"Rye",null,"Salem",null,"Sandown",null,"Seabrook",null,"South Hampton",null,"Stratham",null,"Windham"]
[null,null,"Estimate","Margin Of Error","Estimate","Margin Of Error","Estimate","Margin Of Error","Estimate","Margin Of Error","Estimate","Margin Of Error","Estimate","Margin Of Error","Estimate","Margin Of Error","Estimate","Margin Of Error","Estimate","Margin Of Error","Estimate","Margin Of Error","Estimate","Margin Of Error","Estimate","Margin Of Error","Estimate","Margin Of Error","Estimate","Margin Of Error","Estimate","Margin Of Error","Estimate","Margin Of Error","Estimate","Margin Of Error","Estimate","Margin Of Error","Estimate","Margin Of Error","Estimate","Margin Of Error","Estimate","Margin Of Error","Estimate","Margin Of Error","Estimate","Margin Of Error","Estimate","Margin Of Error","Estimate","Margin Of Error","Estimate","Margin Of Error","Estimate","Margin Of Error","Estimate","Margin Of Error","Estimate","Margin Of Error","Estimate","Margin Of Error","Estimate","Margin Of Error","Estimate","Margin Of Error","Estimate","Margin Of Error","Estimate","Margin Of Error","Estimate","Margin Of Error","Estimate","Margin Of Error","Estimate","Margin Of Error"]
[null,"Total:",5013,223,3946,203,3329,112,2942,135,3480,167,3162,161,3263,115,23123,476,1758,120,5253,190,11346,303,3470,113,2841,130,6170,236,12009,240,1796,130,1654,91,4569,286,17766,289,696,130,1238,145,569,70,6405,347,3577,172,3430,183,3166,155,3690,146,5739,236,16659,342,7403,367,4476,156,21482,463,4338,161,7082,236,594,67,5403,185,9820,267]
[null,"Male:",2374,145,1990,131,1692,111,1568,108,1694,98,1583,121,1586,96,11312,385,886,81,2511,143,5060,274,1720,85,1410,92,2956,179,5823,213,938,72,813,53,2418,243,8434,224,314,69,617,77,273,41,3266,226,1786,133,1702,125,1556,115,1751,127,2724,223,8045,354,3625,251,2325,171,10545,406,2007,131,3400,201,288,37,2606,181,5094,243]
[null,"No schooling completed",0,16,0,16,0,11,0,11,0,16,23,25,12,18,79,45,0,11,0,16,20,21,0,11,0,11,0,16,16,15,0,11,10,8,0,16,18,19,0,11,0,11,3,4,63,58,24,25,4,10,29,48,0,16,16,26,16,22,35,35,17,27,68,44,0,16,31,35,0,11,21,30,15,23]
[null,"Nursery to 4th grade",0,16,0,16,0,11,46,62,0,16,0,11,0,11,20,23,0,11,0,16,0,18,0,11,0,11,0,16,0,18,0,11,0,11,0,16,34,42,0,11,0,11,0,11,0,16,11,17,13,21,0,11,0,16,9,17,21,34,0,18,0,16,38,47,0,16,0,16,0,11,0,16,0,18]
[null,"5th and 6th grade",0,16,0,16,10,14,30,34,0,16,0,11,0,11,21,23,0,11,0,16,0,18,0,11,0,11,0,16,0,18,0,11,0,11,0,16,0,21,0,11,0,11,0,11,0,16,0,11,0,11,0,11,0,16,0,16,17,27,16,26,0,16,56,73,0,16,0,16,0,11,22,33,18,29]
[null,"7th and 8th grade",0,16,8,12,30,30,9,16,0,16,9,14,0,11,76,48,12,12,86,72,71,76,0,11,0,11,39,43,6,11,0,11,5,6,0,16,0,21,0,11,3,4,0,11,0,16,15,19,0,11,21,22,14,16,0,16,35,43,29,33,0,16,117,79,0,16,69,73,2,4,1,4,35,51]
[null,"9th grade",22,28,8,14,21,24,16,16,0,16,20,16,24,34,87,71,0,11,0,16,44,50,0,11,0,11,14,23,58,36,0,11,4,6,0,16,41,47,0,11,0,11,2,3,19,24,7,11,11,18,51,48,9,15,16,27,100,104,73,53,0,16,25,34,55,80,62,36,2,4,0,16,1,3]
[null,"10th grade",19,29,10,17,14,17,27,24,16,20,29,31,43,35,159,78,11,12,66,81,93,70,0,11,8,13,37,35,12,20,16,17,11,9,20,33,49,46,0,11,0,11,3,5,0,16,0,11,0,11,0,11,0,16,0,16,19,20,36,33,0,16,216,126,0,16,106,77,0,11,21,34,60,64]
[null,"11th grade",41,64,0,16,43,26,31,45,10,16,77,55,27,40,177,122,5,7,43,39,13,17,43,38,0,11,0,16,24,28,8,11,0,11,0,16,173,91,0,11,12,19,3,5,29,24,0,11,18,21,30,30,61,57,0,16,88,67,0,18,3,7,121,114,30,40,37,36,2,3,0,16,38,60]
[null,"12th grade, no diploma",21,33,21,24,0,11,18,21,57,41,12,17,32,30,150,83,22,17,90,65,99,83,36,33,10,15,39,31,29,27,14,15,9,9,88,65,40,32,0,11,16,14,3,4,78,55,7,12,23,23,26,25,9,14,65,91,53,50,107,58,30,34,120,70,94,68,59,47,3,4,17,28,21,33]
[null,"High school graduate, GED, or alternative",637,137,529,169,380,102,401,94,401,112,563,113,402,85,3930,321,195,53,944,206,1277,281,431,117,252,82,690,212,1307,182,203,67,142,35,678,179,1899,231,12,11,125,45,45,16,699,169,663,133,317,106,587,121,541,119,1190,240,1210,236,1378,210,294,146,3272,478,576,157,1637,234,68,26,350,143,729,179]
[null,"Some college, less than 1 year",83,67,71,39,57,35,155,67,83,41,103,60,17,18,861,200,32,21,129,76,341,120,126,61,65,34,212,115,346,103,13,15,29,14,337,186,529,139,17,21,22,15,21,9,278,95,222,81,73,53,50,35,89,54,145,76,326,103,228,86,48,39,632,159,134,81,175,83,23,15,82,57,215,93]
[null,"Some college, 1 or more years, no degree",266,124,239,73,212,84,198,75,200,79,261,95,184,65,1510,244,146,69,392,180,419,119,193,62,150,75,429,122,827,172,89,47,132,41,251,126,1278,207,56,36,55,27,17,12,396,133,180,82,275,84,111,63,225,97,271,134,992,228,446,146,167,111,1362,223,435,125,190,87,55,25,300,182,608,174]
[null,"Associate's degree",186,94,190,79,172,74,213,73,274,105,147,60,116,59,1329,283,124,42,140,76,297,104,214,82,71,41,251,88,389,97,119,61,44,15,137,79,782,155,15,17,58,29,38,26,264,100,97,57,102,60,147,58,133,68,269,104,455,138,436,130,225,138,589,147,200,142,427,128,24,12,239,88,711,230]
[null,"Bachelor's degree",607,148,689,123,467,105,299,104,416,117,273,80,434,86,1962,264,203,45,385,140,1311,238,459,118,526,95,897,176,1800,235,346,64,284,46,676,210,2182,234,126,48,189,46,96,31,1059,183,371,95,543,126,331,90,341,95,498,164,2836,307,679,174,908,197,2591,371,253,103,456,118,75,16,797,180,1627,286]
[null,"Master's degree",332,110,168,73,233,75,90,43,182,86,66,45,230,88,681,169,121,38,181,90,657,142,164,59,229,79,308,93,720,152,69,35,101,29,177,100,1130,179,46,27,85,34,26,13,290,94,143,53,237,60,134,71,232,75,210,86,1365,200,109,49,473,162,1013,199,203,104,114,58,29,15,594,153,817,193]
[null,"Professional school degree",78,72,45,36,36,27,35,32,23,21,0,11,42,33,68,56,6,9,14,22,193,86,32,48,37,28,32,28,221,79,26,20,27,14,21,24,162,80,22,19,27,16,5,6,11,18,10,16,74,58,39,59,49,34,0,16,269,91,31,37,128,74,264,100,27,31,30,33,5,5,60,58,120,65]
[null,"Doctorate degree",82,52,12,19,17,19,0,11,32,29,0,11,23,25,202,106,9,9,41,56,225,88,22,29,62,47,8,13,68,47,35,22,15,11,33,53,117,64,20,19,25,16,11,8,80,49,36,26,12,19,0,11,48,38,35,41,243,100,22,28,32,25,61,43,0,16,7,13,0,11,102,66,79,64]
[null,"Female:",2639,182,1956,117,1637,103,1374,98,1786,135,1579,97,1677,78,11811,338,872,62,2742,156,6286,291,1750,91,1431,103,3214,208,6186,229,858,97,841,62,2151,232,9332,253,382,75,621,76,296,40,3139,242,1791,159,1728,104,1610,91,1939,100,3015,230,8614,354,3778,241,2151,160,10937,345,2331,161,3682,197,306,41,2797,193,4726,182]
[null,"No schooling completed",13,20,0,16,0,11,0,11,10,15,20,21,0,11,54,42,0,11,20,35,18,22,15,24,0,11,0,16,9,13,0,11,0,11,0,16,0,21,3,6,5,8,0,11,21,30,9,14,0,11,19,21,8,12,0,16,17,21,1,4,18,28,72,66,0,16,24,28,0,11,32,37,14,24]
[null,"Nursery to 4th grade",0,16,0,16,2,4,0,11,0,16,0,11,0,11,0,24,0,11,0,16,0,18,0,11,0,11,0,16,0,18,0,11,0,11,0,16,8,14,0,11,0,11,0,11,0,16,9,14,0,11,28,46,0,16,0,16,0,21,0,18,13,21,22,24,0,16,23,37,0,11,0,16,0,18]
[null,"5th and 6th grade",0,16,0,16,0,11,0,11,0,16,0,11,0,11,9,13,0,11,0,16,22,29,0,11,0,11,0,16,0,18,0,11,0,11,39,51,12,19,0,11,0,11,0,11,0,16,0,11,0,11,0,11,0,16,0,16,60,52,0,18,0,16,65,66,0,16,10,16,0,11,15,25,14,21]
[null,"7th and 8th grade",0,16,9,14,35,31,21,32,11,16,0,11,29,24,79,63,5,9,0,16,18,30,29,47,0,11,9,15,12,15,7,9,4,5,54,62,73,56,0,11,3,5,0,11,50,83,10,15,8,14,11,18,7,11,0,16,45,40,25,27,5,9,124,90,0,16,67,84,2,4,0,16,0,18]
[null,"9th grade",0,16,0,16,11,18,8,12,0,16,0,11,10,16,88,80,0,11,55,82,28,45,4,8,0,11,0,16,5,8,0,11,0,11,0,16,43,34,0,11,0,11,1,4,0,16,56,60,11,18,0,11,31,40,16,25,26,37,28,43,0,16,56,52,0,16,84,66,0,11,11,19,11,18]
[null,"10th grade",0,16,0,16,32,23,16,17,0,16,0,11,38,26,138,75,6,9,28,33,46,48,0,11,17,19,11,18,42,40,0,11,0,11,81,89,65,60,0,11,0,11,0,11,0,16,17,20,0,11,25,25,0,16,20,29,82,59,69,44,0,16,101,73,1,2,45,37,3,5,18,30,29,34]
[null,"11th grade",0,16,0,16,0,11,0,11,0,16,8,11,9,14,142,80,15,12,48,49,108,112,18,25,0,11,18,20,8,11,9,12,3,4,0,16,62,55,0,11,0,11,4,5,21,31,0,11,0,11,23,26,18,21,0,16,34,35,15,25,0,16,144,89,37,43,11,16,2,3,2,4,33,37]
[null,"12th grade, no diploma",0,16,36,40,8,13,9,13,10,15,13,19,0,11,128,83,0,11,0,16,29,27,17,19,0,11,10,15,67,52,0,11,10,7,40,51,67,40,0,11,0,11,0,11,9,14,38,40,0,11,0,11,0,16,14,22,80,57,16,21,0,16,158,87,68,66,48,47,3,4,0,16,64,51]
[null,"High school graduate, GED, or alternative",347,133,406,116,235,87,432,111,396,124,537,123,425,113,3735,398,187,47,796,202,1214,231,431,109,251,67,700,177,1421,207,133,48,180,40,545,150,2121,248,47,31,86,29,50,18,699,163,514,178,345,103,429,118,480,131,960,225,1508,257,1437,241,383,149,3167,368,618,180,1426,208,50,19,357,151,655,160]
[null,"Some college, less than 1 year",162,100,118,59,105,53,76,44,62,44,88,47,96,45,840,201,56,24,176,90,403,137,108,60,93,54,212,97,293,93,26,22,28,13,138,79,647,114,0,11,51,31,13,9,125,73,107,65,87,45,139,54,109,60,351,153,234,84,192,77,116,52,580,160,100,85,294,112,39,20,130,76,168,87]
[null,"Some college, 1 or more years, no degree",487,151,256,95,189,84,165,88,192,83,203,125,204,80,1541,284,135,44,283,109,854,254,196,71,182,66,428,150,769,169,80,48,121,47,453,174,1172,209,26,23,61,29,29,24,274,104,237,87,234,98,224,75,193,83,423,143,742,167,662,198,197,116,1278,224,349,130,380,117,50,25,343,134,583,243]
[null,"Associate's degree",272,119,250,98,151,69,167,75,223,89,205,68,198,79,1298,215,152,47,480,141,448,144,358,102,190,62,441,126,580,134,104,42,96,29,81,75,959,169,66,42,74,33,44,26,344,123,185,65,160,80,142,61,246,83,547,180,744,198,468,159,182,83,1325,284,352,109,586,133,29,14,278,109,651,198]
[null,"Bachelor's degree",818,169,523,119,616,109,277,74,424,108,371,101,437,102,2583,348,201,41,569,169,1644,243,344,85,462,107,860,157,1654,223,284,55,212,43,447,166,2759,305,134,44,185,46,90,27,963,183,375,104,470,102,370,91,502,114,475,149,2940,290,589,157,831,178,2201,290,563,168,392,119,79,23,955,213,1398,272]
[null,"Master's degree",474,149,293,118,209,67,134,52,347,110,102,51,171,91,975,185,97,33,239,104,1159,231,191,66,209,75,455,135,1109,171,177,48,153,29,246,123,1051,176,100,42,123,35,45,19,547,145,218,82,318,86,190,72,269,93,186,88,1565,219,267,114,269,89,1252,180,194,115,243,106,43,14,525,165,914,190]
[null,"Professional school degree",66,44,41,33,28,27,49,30,89,62,24,25,29,26,72,54,14,12,31,41,205,92,39,47,27,24,41,28,155,76,28,18,20,18,27,42,215,84,6,8,22,15,8,7,44,34,16,18,58,50,10,18,21,25,0,16,339,104,9,13,68,66,288,165,28,32,49,43,4,6,49,42,142,67]
[null,"Doctorate degree",0,16,24,28,16,18,20,22,22,22,8,12,31,33,129,72,4,7,17,29,90,63,0,11,0,11,29,27,62,41,10,12,14,10,0,16,78,44,0,11,11,10,12,10,42,38,0,11,37,40,0,11,55,34,23,38,198,86,0,18,69,55,104,60,21,24,0,16,2,4,82,60,50,44]
[]
[]
[]
[]
[]
[]
[]
[]
[null,"Calculated B15002. SEX BY EDUCATIONAL ATTAINMENT FOR THE POPULATION 25 YEARS AND OVER"]
[null,{"$f":"B2","v":"Universe: Population 25 years an over"}]
[null,{"$f":"B3","v":"Data Set: 2015-2019 American Community Survey 5-Year Estimates"},"Atkinson",null,"Auburn",null,"Brentwood",null,"Candia",null,"Chester",null,"Danville",null,"Deerfield",null,"Derry",null,"East Kingston",null,"Epping",null,"Exeter",null,"Fremont",null,"Greenland",null,"Hampstead",null,"Hampton",null,"Hampton Falls",null,"Kensington",null,"Kingston",null,"Londonderry",null,"New Castle",null,"Newfields",null,"Newington",null,"Newmarket",null,"Newton",null,"North Hampton",null,"Northwood",null,"Nottingham",null,"Plaistow",null,"Portsmouth",null,"Raymond",null,"Rye",null,"Salem",null,"Sandown",null,"Seabrook",null,"South Hampton",null,"Stratham",null,"Windham"]
[null,null,"Estimate","Margin Of Error","Estimate","Margin Of Error","Estimate","Margin Of Error","Estimate","Margin Of Error","Estimate","Margin Of Error","Estimate","Margin Of Error","Estimate","Margin Of Error","Estimate","Margin Of Error","Estimate","Margin Of Error","Estimate","Margin Of Error","Estimate","Margin Of Error","Estimate","Margin Of Error","Estimate","Margin Of Error","Estimate","Margin Of Error","Estimate","Margin Of Error","Estimate","Margin Of Error","Estimate","Margin Of Error","Estimate","Margin Of Error","Estimate","Margin Of Error","Estimate","Margin Of Error","Estimate","Margin Of Error","Estimate","Margin Of Error","Estimate","Margin Of Error","Estimate","Margin Of Error","Estimate","Margin Of Error","Estimate","Margin Of Error","Estimate","Margin Of Error","Estimate","Margin Of Error","Estimate","Margin Of Error","Estimate","Margin Of Error","Estimate","Margin Of Error","Estimate","Margin Of Error","Estimate","Margin Of Error","Estimate","Margin Of Error","Estimate","Margin Of Error","Estimate","Margin Of Error","Estimate","Margin Of Error"]
[null,"Total:",{"$f":"C7","v":5013},{"$f":"D7","v":223},{"$f":"E7","v":3946},{"$f":"F7","v":203},{"$f":"G7","v":3329},112,2942,135,3480,167,3162,161,3263,115,23123,476,1758,120,5253,190,11346,303,3470,113,2841,130,6170,236,12009,240,1796,130,1654,91,4569,286,17766,289,{"$f":"AO7","v":696},130,1238,145,569,70,6405,347,3577,172,3430,183,3166,155,{"$f":"BC7","v":3690},146,5739,236,16659,342,7403,367,4476,156,21482,463,4338,161,7082,236,594,67,5403,185,9820,267]
[null,"Less than 9th grade",{"$f":"(C12+C11+C10)+(C27+C28+C29)","v":0},{"$f":"SQRT((D12^2)+(D11^2)+(D10^2)+(D27^2)+(D28^2)+(D29^2))","v":39.191835884530846},{"$f":"(E12+E11+E10)+(E27+E28+E29)","v":17},{"$f":"SQRT((F12^2)+(F11^2)+(F10^2)+(F27^2)+(F28^2)+(F29^2))","v":36.932370625238775},{"$f":"(G12+G11+G10)+(G27+G28+G29)","v":77},{"$f":"SQRT((H12^2)+(H11^2)+(H10^2)+(H27^2)+(H28^2)+(H29^2))","v":48.114446894877631},{"$f":"(I12+I11+I10)+(I27+I28+I29)","v":106},{"$f":"SQRT((J12^2)+(J11^2)+(J10^2)+(J27^2)+(J28^2)+(J29^2))","v":80.758900438279866},{"$f":"(K12+K11+K10)+(K27+K28+K29)","v":11},{"$f":"SQRT((L12^2)+(L11^2)+(L10^2)+(L27^2)+(L28^2)+(L29^2))","v":39.191835884530846},{"$f":"(M12+M11+M10)+(M27+M28+M29)","v":9},{"$f":"SQRT((N12^2)+(N11^2)+(N10^2)+(N27^2)+(N28^2)+(N29^2))","v":28.301943396169811},{"$f":"(O12+O11+O10)+(O27+O28+O29)","v":29},{"$f":"SQRT((P12^2)+(P11^2)+(P10^2)+(P27^2)+(P28^2)+(P29^2))","v":34.365680554879162},{"$f":"(Q12+Q11+Q10)+(Q27+Q28+Q29)","v":205},{"$f":"SQRT((R12^2)+(R11^2)+(R10^2)+(R27^2)+(R28^2)+(R29^2))","v":89.866567754643881},{"$f":"(S12+S11+S10)+(S27+S28+S29)","v":17},{"$f":"SQRT((T12^2)+(T11^2)+(T10^2)+(T27^2)+(T28^2)+(T29^2))","v":26.627053911388696},{"$f":"(U12+U11+U10)+(U27+U28+U29)","v":86},{"$f":"SQRT((V12^2)+(V11^2)+(V10^2)+(V27^2)+(V28^2)+(V29^2))","v":80.39900496896712},{"$f":"(W12+W11+W10)+(W27+W28+W29)","v":111},{"$f":"SQRT((X12^2)+(X11^2)+(X10^2)+(X27^2)+(X28^2)+(X29^2))","v":92.135769384099675},{"$f":"(Y12+Y11+Y10)+(Y27+Y28+Y29)","v":29},{"$f":"SQRT((Z12^2)+(Z11^2)+(Z10^2)+(Z27^2)+(Z28^2)+(Z29^2))","v":53.047148839499378},{"$f":"(AA12+AA11+AA10)+(AA27+AA28+AA29)","v":0},{"$f":"SQRT((AB12^2)+(AB11^2)+(AB10^2)+(AB27^2)+(AB28^2)+(AB29^2))","v":26.944387170614959},{"$f":"(AC12+AC11+AC10)+(AC27+AC28+AC29)","v":48},{"$f":"SQRT((AD12^2)+(AD11^2)+(AD10^2)+(AD27^2)+(AD28^2)+(AD29^2))","v":55.659680200302986},{"$f":"(AE12+AE11+AE10)+(AE27+AE28+AE29)","v":18},{"$f":"SQRT((AF12^2)+(AF11^2)+(AF10^2)+(AF27^2)+(AF28^2)+(AF29^2))","v":40.521599178709621},{"$f":"(AG12+AG11+AG10)+(AG27+AG28+AG29)","v":7},{"$f":"SQRT((AH12^2)+(AH11^2)+(AH10^2)+(AH27^2)+(AH28^2)+(AH29^2))","v":26.19160170741759},{"$f":"(AI12+AI11+AI10)+(AI27+AI28+AI29)","v":9},{"$f":"SQRT((AJ12^2)+(AJ11^2)+(AJ10^2)+(AJ27^2)+(AJ28^2)+(AJ29^2))","v":23.345235059857504},{"$f":"(AK12+AK11+AK10)+(AK27+AK28+AK29)","v":93},{"$f":"SQRT((AL12^2)+(AL11^2)+(AL10^2)+(AL27^2)+(AL28^2)+(AL29^2))","v":86.423376467249881},{"$f":"(AM12+AM11+AM10)+(AM27+AM28+AM29)","v":127},{"$f":"SQRT((AN12^2)+(AN11^2)+(AN10^2)+(AN27^2)+(AN28^2)+(AN29^2))","v":79.617837197452175},{"$f":"(AO12+AO11+AO10)+(AO27+AO28+AO29)","v":0},{"$f":"SQRT((AP12^2)+(AP11^2)+(AP10^2)+(AP27^2)+(AP28^2)+(AP29^2))","v":26.944387170614959},{"$f":"(AQ12+AQ11+AQ10)+(AQ27+AQ28+AQ29)","v":6},{"$f":"SQRT((AR12^2)+(AR11^2)+(AR10^2)+(AR27^2)+(AR28^2)+(AR29^2))","v":22.912878474779198},{"$f":"(AS12+AS11+AS10)+(AS27+AS28+AS29)","v":0},{"$f":"SQRT((AT12^2)+(AT11^2)+(AT10^2)+(AT27^2)+(AT28^2)+(AT29^2))","v":26.944387170614959},{"$f":"(AU12+AU11+AU10)+(AU27+AU28+AU29)","v":50},{"$f":"SQRT((AV12^2)+(AV11^2)+(AV10^2)+(AV27^2)+(AV28^2)+(AV29^2))","v":90.382520433986571},{"$f":"(AW12+AW11+AW10)+(AW27+AW28+AW29)","v":45},{"$f":"SQRT((AX12^2)+(AX11^2)+(AX10^2)+(AX27^2)+(AX28^2)+(AX29^2))","v":36.235341863986875},{"$f":"(AY12+AY11+AY10)+(AY27+AY28+AY29)","v":21},{"$f":"SQRT((AZ12^2)+(AZ11^2)+(AZ10^2)+(AZ27^2)+(AZ28^2)+(AZ29^2))","v":33.481338085566414},{"$f":"(BA12+BA11+BA10)+(BA27+BA28+BA29)","v":60},{"$f":"SQRT((BB12^2)+(BB11^2)+(BB10^2)+(BB27^2)+(BB28^2)+(BB29^2))","v":57.332364332896653},{"$f":"(BC12+BC11+BC10)+(BC27+BC28+BC29)","v":21},{"$f":"SQRT((BD12^2)+(BD11^2)+(BD10^2)+(BD27^2)+(BD28^2)+(BD29^2))","v":37.429934544425805},{"$f":"(BE12+BE11+BE10)+(BE27+BE28+BE29)","v":9},{"$f":"SQRT((BF12^2)+(BF11^2)+(BF10^2)+(BF27^2)+(BF28^2)+(BF29^2))","v":39.610604640676719},{"$f":"(BG12+BG11+BG10)+(BG27+BG28+BG29)","v":178},{"$f":"SQRT((BH12^2)+(BH11^2)+(BH10^2)+(BH27^2)+(BH28^2)+(BH29^2))","v":92.081485652654408},{"$f":"(BI12+BI11+BI10)+(BI27+BI28+BI29)","v":70},{"$f":"SQRT((BJ12^2)+(BJ11^2)+(BJ10^2)+(BJ27^2)+(BJ28^2)+(BJ29^2))","v":58.872744118140105},{"$f":"(BK12+BK11+BK10)+(BK27+BK28+BK29)","v":18},{"$f":"SQRT((BL12^2)+(BL11^2)+(BL10^2)+(BL27^2)+(BL28^2)+(BL29^2))","v":39.319206502675002},{"$f":"(BM12+BM11+BM10)+(BM27+BM28+BM29)","v":422},{"$f":"SQRT((BN12^2)+(BN11^2)+(BN10^2)+(BN27^2)+(BN28^2)+(BN29^2))","v":163.74064858794227},{"$f":"(BO12+BO11+BO10)+(BO27+BO28+BO29)","v":0},{"$f":"SQRT((BP12^2)+(BP11^2)+(BP10^2)+(BP27^2)+(BP28^2)+(BP29^2))","v":39.191835884530846},{"$f":"(BQ12+BQ11+BQ10)+(BQ27+BQ28+BQ29)","v":169},{"$f":"SQRT((BR12^2)+(BR11^2)+(BR10^2)+(BR27^2)+(BR28^2)+(BR29^2))","v":120.50726119201282},{"$f":"(BS12+BS11+BS10)+(BS27+BS28+BS29)","v":4},{"$f":"SQRT((BT12^2)+(BT11^2)+(BT10^2)+(BT27^2)+(BT28^2)+(BT29^2))","v":22.715633383201094},{"$f":"(BU12+BU11+BU10)+(BU27+BU28+BU29)","v":38},{"$f":"SQRT((BV12^2)+(BV11^2)+(BV10^2)+(BV27^2)+(BV28^2)+(BV29^2))","v":49.979995998399197},{"$f":"(BW12+BW11+BW10)+(BW27+BW28+BW29)","v":67},{"$f":"SQRT((BX12^2)+(BX11^2)+(BX10^2)+(BX27^2)+(BX28^2)+(BX29^2))","v":69.677830046579373}]
[null,"9th to 12th grade, no diploma",{"$f":"(C13+C14+C15+C16)+(C30+C31+C32+C33)","v":103},{"$f":"SQRT((D13^2)+(D14^2)+(D15^2)+(D16^2)+(D30^2)+(D31^2)+(D32^2)+(D33^2))","v":88.509886453435243},{"$f":"(E13+E14+E15+E16)+(E30+E31+E32+E33)","v":75},{"$f":"SQRT((F13^2)+(F14^2)+(F15^2)+(F16^2)+(F30^2)+(F31^2)+(F32^2)+(F33^2))","v":60.704200843104758},{"$f":"(G13+G14+G15+G16)+(G30+G31+G32+G33)","v":129},{"$f":"SQRT((H13^2)+(H14^2)+(H15^2)+(H16^2)+(H30^2)+(H31^2)+(H32^2)+(H33^2))","v":52.962250707461443},{"$f":"(I13+I14+I15+I16)+(I30+I31+I32+I33)","v":125},{"$f":"SQRT((J13^2)+(J14^2)+(J15^2)+(J16^2)+(J30^2)+(J31^2)+(J32^2)+(J33^2))","v":63.411355449950761},{"$f":"(K13+K14+K15+K16)+(K30+K31+K32+K33)","v":93},{"$f":"SQRT((L13^2)+(L14^2)+(L15^2)+(L16^2)+(L30^2)+(L31^2)+(L32^2)+(L33^2))","v":59.883219686319471},{"$f":"(M13+M14+M15+M16)+(M30+M31+M32+M33)","v":159},{"$f":"SQRT((N13^2)+(N14^2)+(N15^2)+(N16^2)+(N30^2)+(N31^2)+(N32^2)+(N33^2))","v":72.491378797757733},{"$f":"(O13+O14+O15+O16)+(O30+O31+O32+O33)","v":183},{"$f":"SQRT((P13^2)+(P14^2)+(P15^2)+(P16^2)+(P30^2)+(P31^2)+(P32^2)+(P33^2))","v":78.294316524253531},{"$f":"(Q13+Q14+Q15+Q16)+(Q30+Q31+Q32+Q33)","v":1069},{"$f":"SQRT((R13^2)+(R14^2)+(R15^2)+(R16^2)+(R30^2)+(R31^2)+(R32^2)+(R33^2))","v":241.2716311545972},{"$f":"(S13+S14+S15+S16)+(S30+S31+S32+S33)","v":59},{"$f":"SQRT((T13^2)+(T14^2)+(T15^2)+(T16^2)+(T30^2)+(T31^2)+(T32^2)+(T33^2))","v":32.710854467592249},{"$f":"(U13+U14+U15+U16)+(U30+U31+U32+U33)","v":330},{"$f":"SQRT((V13^2)+(V14^2)+(V15^2)+(V16^2)+(V30^2)+(V31^2)+(V32^2)+(V33^2))","v":151.76626766182267},{"$f":"(W13+W14+W15+W16)+(W30+W31+W32+W33)","v":460},{"$f":"SQRT((X13^2)+(X14^2)+(X15^2)+(X16^2)+(X30^2)+(X31^2)+(X32^2)+(X33^2))","v":179.38784797192923},{"$f":"(Y13+Y14+Y15+Y16)+(Y30+Y31+Y32+Y33)","v":118},{"$f":"SQRT((Z13^2)+(Z14^2)+(Z15^2)+(Z16^2)+(Z30^2)+(Z31^2)+(Z32^2)+(Z33^2))","v":62.81719509815764},{"$f":"(AA13+AA14+AA15+AA16)+(AA30+AA31+AA32+AA33)","v":35},{"$f":"SQRT((AB13^2)+(AB14^2)+(AB15^2)+(AB16^2)+(AB30^2)+(AB31^2)+(AB32^2)+(AB33^2))","v":36.878177829171548},{"$f":"(AC13+AC14+AC15+AC16)+(AC30+AC31+AC32+AC33)","v":129},{"$f":"SQRT((AD13^2)+(AD14^2)+(AD15^2)+(AD16^2)+(AD30^2)+(AD31^2)+(AD32^2)+(AD33^2))","v":64.621977685614041},{"$f":"(AE13+AE14+AE15+AE16)+(AE30+AE31+AE32+AE33)","v":245},{"$f":"SQRT((AF13^2)+(AF14^2)+(AF15^2)+(AF16^2)+(AF30^2)+(AF31^2)+(AF32^2)+(AF33^2))","v":87.738247076175398},{"$f":"(AG13+AG14+AG15+AG16)+(AG30+AG31+AG32+AG33)","v":47},{"$f":"SQRT((AH13^2)+(AH14^2)+(AH15^2)+(AH16^2)+(AH30^2)+(AH31^2)+(AH32^2)+(AH33^2))","v":35.538711287833721},{"$f":"(AI13+AI14+AI15+AI16)+(AI30+AI31+AI32+AI33)","v":37},{"$f":"SQRT((AJ13^2)+(AJ14^2)+(AJ15^2)+(AJ16^2)+(AJ30^2)+(AJ31^2)+(AJ32^2)+(AJ33^2))","v":25.019992006393608},{"$f":"(AK13+AK14+AK15+AK16)+(AK30+AK31+AK32+AK33)","v":229},{"$f":"SQRT((AL13^2)+(AL14^2)+(AL15^2)+(AL16^2)+(AL30^2)+(AL31^2)+(AL32^2)+(AL33^2))","v":129.84606270503545},{"$f":"(AM13+AM14+AM15+AM16)+(AM30+AM31+AM32+AM33)","v":540},{"$f":"SQRT((AN13^2)+(AN14^2)+(AN15^2)+(AN16^2)+(AN30^2)+(AN31^2)+(AN32^2)+(AN33^2))","v":151.69377047196105},{"$f":"(AO13+AO14+AO15+AO16)+(AO30+AO31+AO32+AO33)","v":0},{"$f":"SQRT((AP13^2)+(AP14^2)+(AP15^2)+(AP16^2)+(AP30^2)+(AP31^2)+(AP32^2)+(AP33^2))","v":31.11269837220809},{"$f":"(AQ13+AQ14+AQ15+AQ16)+(AQ30+AQ31+AQ32+AQ33)","v":28},{"$f":"SQRT((AR13^2)+(AR14^2)+(AR15^2)+(AR16^2)+(AR30^2)+(AR31^2)+(AR32^2)+(AR33^2))","v":35.818989377144632},{"$f":"(AS13+AS14+AS15+AS16)+(AS30+AS31+AS32+AS33)","v":16},{"$f":"SQRT((AT13^2)+(AT14^2)+(AT15^2)+(AT16^2)+(AT30^2)+(AT31^2)+(AT32^2)+(AT33^2))","v":18.920887928424502},{"$f":"(AU13+AU14+AU15+AU16)+(AU30+AU31+AU32+AU33)","v":156},{"$f":"SQRT((AV13^2)+(AV14^2)+(AV15^2)+(AV16^2)+(AV30^2)+(AV31^2)+(AV32^2)+(AV33^2))","v":78.115299397749226},{"$f":"(AW13+AW14+AW15+AW16)+(AW30+AW31+AW32+AW33)","v":125},{"$f":"SQRT((AX13^2)+(AX14^2)+(AX15^2)+(AX16^2)+(AX30^2)+(AX31^2)+(AX32^2)+(AX33^2))","v":78.917678627795439},{"$f":"(AY13+AY14+AY15+AY16)+(AY30+AY31+AY32+AY33)","v":63},{"$f":"SQRT((AZ13^2)+(AZ14^2)+(AZ15^2)+(AZ16^2)+(AZ30^2)+(AZ31^2)+(AZ32^2)+(AZ33^2))","v":45.847573545390603},{"$f":"(BA13+BA14+BA15+BA16)+(BA30+BA31+BA32+BA33)","v":155},{"$f":"SQRT((BB13^2)+(BB14^2)+(BB15^2)+(BB16^2)+(BB30^2)+(BB31^2)+(BB32^2)+(BB33^2))","v":74.114775854751116},{"$f":"(BC13+BC14+BC15+BC16)+(BC30+BC31+BC32+BC33)","v":128},{"$f":"SQRT((BD13^2)+(BD14^2)+(BD15^2)+(BD16^2)+(BD30^2)+(BD31^2)+(BD32^2)+(BD33^2))","v":80.492235650402947},{"$f":"(BE13+BE14+BE15+BE16)+(BE30+BE31+BE32+BE33)","v":131},{"$f":"SQRT((BF13^2)+(BF14^2)+(BF15^2)+(BF16^2)+(BF30^2)+(BF31^2)+(BF32^2)+(BF33^2))","v":108.29589096544707},{"$f":"(BG13+BG14+BG15+BG16)+(BG30+BG31+BG32+BG33)","v":482},{"$f":"SQRT((BH13^2)+(BH14^2)+(BH15^2)+(BH16^2)+(BH30^2)+(BH31^2)+(BH32^2)+(BH33^2))","v":165.91865476793137},{"$f":"(BI13+BI14+BI15+BI16)+(BI30+BI31+BI32+BI33)","v":344},{"$f":"SQRT((BJ13^2)+(BJ14^2)+(BJ15^2)+(BJ16^2)+(BJ30^2)+(BJ31^2)+(BJ32^2)+(BJ33^2))","v":111.5212984142491},{"$f":"(BK13+BK14+BK15+BK16)+(BK30+BK31+BK32+BK33)","v":33},{"$f":"SQRT((BL13^2)+(BL14^2)+(BL15^2)+(BL16^2)+(BL30^2)+(BL31^2)+(BL32^2)+(BL33^2))","v":52.354560450833695},{"$f":"(BM13+BM14+BM15+BM16)+(BM30+BM31+BM32+BM33)","v":941},{"$f":"SQRT((BN13^2)+(BN14^2)+(BN15^2)+(BN16^2)+(BN30^2)+(BN31^2)+(BN32^2)+(BN33^2))","v":241.76641619546749},{"$f":"(BO13+BO14+BO15+BO16)+(BO30+BO31+BO32+BO33)","v":285},{"$f":"SQRT((BP13^2)+(BP14^2)+(BP15^2)+(BP16^2)+(BP30^2)+(BP31^2)+(BP32^2)+(BP33^2))","v":139.08630414242805},{"$f":"(BQ13+BQ14+BQ15+BQ16)+(BQ30+BQ31+BQ32+BQ33)","v":452},{"$f":"SQRT((BR13^2)+(BR14^2)+(BR15^2)+(BR16^2)+(BR30^2)+(BR31^2)+(BR32^2)+(BR33^2))","v":137.5499909123952},{"$f":"(BS13+BS14+BS15+BS16)+(BS30+BS31+BS32+BS33)","v":15},{"$f":"SQRT((BT13^2)+(BT14^2)+(BT15^2)+(BT16^2)+(BT30^2)+(BT31^2)+(BT32^2)+(BT33^2))","v":18.248287590894659},{"$f":"(BU13+BU14+BU15+BU16)+(BU30+BU31+BU32+BU33)","v":69},{"$f":"SQRT((BV13^2)+(BV14^2)+(BV15^2)+(BV16^2)+(BV30^2)+(BV31^2)+(BV32^2)+(BV33^2))","v":63.126856408346519},{"$f":"(BW13+BW14+BW15+BW16)+(BW30+BW31+BW32+BW33)","v":257},{"$f":"SQRT((BX13^2)+(BX14^2)+(BX15^2)+(BX16^2)+(BX30^2)+(BX31^2)+(BX32^2)+(BX33^2))","v":119.34822998268554}]
[null,"High school graduate (includes equivalency)",{"$f":"C17+C34","v":984},{"$f":"SQRT((D17^2)+(D34^2))","v":190.93978108293726},{"$f":"E17+E34","v":935},{"$f":"SQRT((F17^2)+(F34^2))","v":204.98048687619024},{"$f":"G17+G34","v":615},{"$f":"SQRT((H17^2)+(H34^2))","v":134.06341782902598},{"$f":"I17+I34","v":833},{"$f":"SQRT((J17^2)+(J34^2))","v":145.45446022724775},{"$f":"K17+K34","v":797},{"$f":"SQRT((L17^2)+(L34^2))","v":167.09278859364338},{"$f":"M17+M34","v":1100},{"$f":"SQRT((N17^2)+(N34^2))","v":167.02694393420481},{"$f":"O17+O34","v":827},{"$f":"SQRT((P17^2)+(P34^2))","v":141.40014144264495},{"$f":"Q17+Q34","v":7665},{"$f":"SQRT((R17^2)+(R34^2))","v":511.3169271596629},{"$f":"S17+S34","v":382},{"$f":"SQRT((T17^2)+(T34^2))","v":70.837842993699354},{"$f":"U17+U34","v":1740},{"$f":"SQRT((V17^2)+(V34^2))","v":288.51343122981297},{"$f":"W17+W34","v":2491},{"$f":"SQRT((X17^2)+(X34^2))","v":363.76091048929379},{"$f":"Y17+Y34","v":862},{"$f":"SQRT((Z17^2)+(Z34^2))","v":159.90622251807463},{"$f":"AA17+AA34","v":503},{"$f":"SQRT((AB17^2)+(AB34^2))","v":105.89145385724005},{"$f":"AC17+AC34","v":1390},{"$f":"SQRT((AD17^2)+(AD34^2))","v":276.17566873278321},{"$f":"AE17+AE34","v":2728},{"$f":"SQRT((AF17^2)+(AF34^2))","v":275.6320010448714},{"$f":"AG17+AG34","v":336},{"$f":"SQRT((AH17^2)+(AH34^2))","v":82.419657849326214},{"$f":"AI17+AI34","v":322},{"$f":"SQRT((AJ17^2)+(AJ34^2))","v":53.150729063673246},{"$f":"AK17+AK34","v":1223},{"$f":"SQRT((AL17^2)+(AL34^2))","v":233.54014644167714},{"$f":"AM17+AM34","v":4020},{"$f":"SQRT((AN17^2)+(AN34^2))","v":338.91739406527955},{"$f":"AO17+AO34","v":59},{"$f":"SQRT((AP17^2)+(AP34^2))","v":32.893768406797051},{"$f":"AQ17+AQ34","v":211},{"$f":"SQRT((AR17^2)+(AR34^2))","v":53.535035257296691},{"$f":"AS17+AS34","v":95},{"$f":"SQRT((AT17^2)+(AT34^2))","v":24.083189157584592},{"$f":"AU17+AU34","v":1398},{"$f":"SQRT((AV17^2)+(AV34^2))","v":234.79778533878891},{"$f":"AW17+AW34","v":1177},{"$f":"SQRT((AX17^2)+(AX34^2))","v":222.20036003571192},{"$f":"AY17+AY34","v":662},{"$f":"SQRT((AZ17^2)+(AZ34^2))","v":147.80054127099805},{"$f":"BA17+BA34","v":1016},{"$f":"SQRT((BB17^2)+(BB34^2))","v":169.01183390520322},{"$f":"BC17+BC34","v":1021},{"$f":"SQRT((BD17^2)+(BD34^2))","v":176.98022488402484},{"$f":"BE17+BE34","v":2150},{"$f":"SQRT((BF17^2)+(BF34^2))","v":328.97568299191965},{"$f":"BG17+BG34","v":2718},{"$f":"SQRT((BH17^2)+(BH34^2))","v":348.919761549844},{"$f":"BI17+BI34","v":2815},{"$f":"SQRT((BJ17^2)+(BJ34^2))","v":319.65762934740036},{"$f":"BK17+BK34","v":677},{"$f":"SQRT((BL17^2)+(BL34^2))","v":208.60728654579637},{"$f":"BM17+BM34","v":6439},{"$f":"SQRT((BN17^2)+(BN34^2))","v":603.2478760841185},{"$f":"BO17+BO34","v":1194},{"$f":"SQRT((BP17^2)+(BP34^2))","v":238.8493248891443},{"$f":"BQ17+BQ34","v":3063},{"$f":"SQRT((BR17^2)+(BR34^2))","v":313.0814590485997},{"$f":"BS17+BS34","v":118},{"$f":"SQRT((BT17^2)+(BT34^2))","v":32.202484376209235},{"$f":"BU17+BU34","v":707},{"$f":"SQRT((BV17^2)+(BV34^2))","v":207.96634343085421},{"$f":"BW17+BW34","v":1384},{"$f":"SQRT((BX17^2)+(BX34^2))","v":240.08540147205952}]
[null,"Some college, no degree",{"$f":"(C18+C19)+(C35+C36)","v":998},{"$f":"SQRT((D18^2)+(D19^2)+(D35^2)+(D36^2))","v":229.49074055394914},{"$f":"(E18+E19)+(E35+E36)","v":684},{"$f":"SQRT((F18^2)+(F19^2)+(F35^2)+(F36^2))","v":139.12584231550946},{"$f":"(G18+G19)+(G35+G36)","v":563},{"$f":"SQRT((H18^2)+(H19^2)+(H35^2)+(H36^2))","v":134.70708964267618},{"$f":"(I18+I19)+(I35+I36)","v":594},{"$f":"SQRT((J18^2)+(J19^2)+(J35^2)+(J36^2))","v":140.6911511076656},{"$f":"(K18+K19)+(K35+K36)","v":537},{"$f":"SQRT((L18^2)+(L19^2)+(L35^2)+(L36^2))","v":129.41020052530635},{"$f":"(M18+M19)+(M35+M36)","v":655},{"$f":"SQRT((N18^2)+(N19^2)+(N35^2)+(N36^2))","v":174.52506983238825},{"$f":"(O18+O19)+(O35+O36)","v":501},{"$f":"SQRT((P18^2)+(P19^2)+(P35^2)+(P36^2))","v":113.9034679015525},{"$f":"(Q18+Q19)+(Q35+Q36)","v":4752},{"$f":"SQRT((R18^2)+(R19^2)+(R35^2)+(R36^2))","v":469.67329070322916},{"$f":"(S18+S19)+(S35+S36)","v":369},{"$f":"SQRT((T18^2)+(T19^2)+(T35^2)+(T36^2))","v":87.829380050185947},{"$f":"(U18+U19)+(U35+U36)","v":980},{"$f":"SQRT((V18^2)+(V19^2)+(V35^2)+(V36^2))","v":241.15762480170517},{"$f":"(W18+W19)+(W35+W36)","v":2017},{"$f":"SQRT((X18^2)+(X19^2)+(X35^2)+(X36^2))","v":334.43384996139372},{"$f":"(Y18+Y19)+(Y35+Y36)","v":623},{"$f":"SQRT((Z18^2)+(Z19^2)+(Z35^2)+(Z36^2))","v":127.30278865759382},{"$f":"(AA18+AA19)+(AA35+AA36)","v":490},{"$f":"SQRT((AB18^2)+(AB19^2)+(AB35^2)+(AB36^2))","v":118.54534997206765},{"$f":"(AC18+AC19)+(AC35+AC36)","v":1281},{"$f":"SQRT((AD18^2)+(AD19^2)+(AD35^2)+(AD36^2))","v":244.98571386919687},{"$f":"(AE18+AE19)+(AE35+AE36)","v":2235},{"$f":"SQRT((AF18^2)+(AF19^2)+(AF35^2)+(AF36^2))","v":278.21394645128771},{"$f":"(AG18+AG19)+(AG35+AG36)","v":208},{"$f":"SQRT((AH18^2)+(AH19^2)+(AH35^2)+(AH36^2))","v":72.263407060558663},{"$f":"(AI18+AI19)+(AI35+AI36)","v":310},{"$f":"SQRT((AJ18^2)+(AJ19^2)+(AJ35^2)+(AJ36^2))","v":65.230361029201731},{"$f":"(AK18+AK19)+(AK35+AK36)","v":1179},{"$f":"SQRT((AL18^2)+(AL19^2)+(AL35^2)+(AL36^2))","v":294.93897673925704},{"$f":"(AM18+AM19)+(AM35+AM36)","v":3626},{"$f":"SQRT((AN18^2)+(AN19^2)+(AN35^2)+(AN36^2))","v":344.74193246543132},{"$f":"(AO18+AO19)+(AO35+AO36)","v":99},{"$f":"SQRT((AP18^2)+(AP19^2)+(AP35^2)+(AP36^2))","v":48.856934001224431},{"$f":"(AQ18+AQ19)+(AQ35+AQ36)","v":189},{"$f":"SQRT((AR18^2)+(AR19^2)+(AR35^2)+(AR36^2))","v":52.497618993626752},{"$f":"(AS18+AS19)+(AS35+AS36)","v":80},{"$f":"SQRT((AT18^2)+(AT19^2)+(AT35^2)+(AT36^2))","v":29.698484809834994},{"$f":"(AU18+AU19)+(AU35+AU36)","v":1073},{"$f":"SQRT((AV18^2)+(AV19^2)+(AV35^2)+(AV36^2))","v":207.02415318025092},{"$f":"(AW18+AW19)+(AW35+AW36)","v":746},{"$f":"SQRT((AX18^2)+(AX19^2)+(AX35^2)+(AX36^2))","v":158.36350589703426},{"$f":"(AY18+AY19)+(AY35+AY36)","v":669},{"$f":"SQRT((AZ18^2)+(AZ19^2)+(AZ35^2)+(AZ36^2))","v":146.60832172833847},{"$f":"(BA18+BA19)+(BA35+BA36)","v":524},{"$f":"SQRT((BB18^2)+(BB19^2)+(BB35^2)+(BB36^2))","v":117.19641632746284},{"$f":"(BC18+BC19)+(BC35+BC36)","v":616},{"$f":"SQRT((BD18^2)+(BD19^2)+(BD35^2)+(BD36^2))","v":151.04304022363957},{"$f":"(BE18+BE19)+(BE35+BE36)","v":1190},{"$f":"SQRT((BF18^2)+(BF19^2)+(BF35^2)+(BF36^2))","v":259.98076851951953},{"$f":"(BG18+BG19)+(BG35+BG36)","v":2294},{"$f":"SQRT((BH18^2)+(BH19^2)+(BH35^2)+(BH36^2))","v":312.31074269067341},{"$f":"(BI18+BI19)+(BI35+BI36)","v":1528},{"$f":"SQRT((BJ18^2)+(BJ19^2)+(BJ35^2)+(BJ36^2))","v":271.74436516697085},{"$f":"(BK18+BK19)+(BK35+BK36)","v":528},{"$f":"SQRT((BL18^2)+(BL19^2)+(BL35^2)+(BL36^2))","v":173.21085416335779},{"$f":"(BM18+BM19)+(BM35+BM36)","v":3852},{"$f":"SQRT((BN18^2)+(BN19^2)+(BN35^2)+(BN36^2))","v":388.3117304434673},{"$f":"(BO18+BO19)+(BO35+BO36)","v":1018},{"$f":"SQRT((BP18^2)+(BP19^2)+(BP35^2)+(BP36^2))","v":215.19990706317697},{"$f":"(BQ18+BQ19)+(BQ35+BQ36)","v":1039},{"$f":"SQRT((BR18^2)+(BR19^2)+(BR35^2)+(BR36^2))","v":201.72010311319991},{"$f":"(BS18+BS19)+(BS35+BS36)","v":167},{"$f":"SQRT((BT18^2)+(BT19^2)+(BT35^2)+(BT36^2))","v":43.301270189221931},{"$f":"(BU18+BU19)+(BU35+BU36)","v":855},{"$f":"SQRT((BV18^2)+(BV19^2)+(BV35^2)+(BV36^2))","v":245.16321094324084},{"$f":"(BW18+BW19)+(BW35+BW36)","v":1574},{"$f":"SQRT((BX18^2)+(BX19^2)+(BX35^2)+(BX36^2))","v":324.87382166004079}]
[null,"Associate's degree",{"$f":"C20+C37","v":458},{"$f":"SQRT((D20^2)+(D37^2))","v":151.64761785138597},{"$f":"E20+E37","v":440},{"$f":"SQRT((F20^2)+(F37^2))","v":125.87692401707312},{"$f":"G20+G37","v":323},{"$f":"SQRT((H20^2)+(H37^2))","v":101.17806086301516},{"$f":"I20+I37","v":380},{"$f":"SQRT((J20^2)+(J37^2))","v":104.66135867644753},{"$f":"K20+K37","v":497},{"$f":"SQRT((L20^2)+(L37^2))","v":137.64446955835166},{"$f":"M20+M37","v":352},{"$f":"SQRT((N20^2)+(N37^2))","v":90.686272390037075},{"$f":"O20+O37","v":314},{"$f":"SQRT((P20^2)+(P37^2))","v":98.600202839547947},{"$f":"Q20+Q37","v":2627},{"$f":"SQRT((R20^2)+(R37^2))","v":355.40680916380882},{"$f":"S20+S37","v":276},{"$f":"SQRT((T20^2)+(T37^2))","v":63.031738037277698},{"$f":"U20+U37","v":620},{"$f":"SQRT((V20^2)+(V37^2))","v":160.17802595861892},{"$f":"W20+W37","v":745},{"$f":"SQRT((X20^2)+(X37^2))","v":177.62882648939615},{"$f":"Y20+Y37","v":572},{"$f":"SQRT((Z20^2)+(Z37^2))","v":130.87398519186308},{"$f":"AA20+AA37","v":261},{"$f":"SQRT((AB20^2)+(AB37^2))","v":74.330343736592525},{"$f":"AC20+AC37","v":692},{"$f":"SQRT((AD20^2)+(AD37^2))","v":153.68799562750502},{"$f":"AE20+AE37","v":969},{"$f":"SQRT((AF20^2)+(AF37^2))","v":165.42369842317032},{"$f":"AG20+AG37","v":223},{"$f":"SQRT((AH20^2)+(AH37^2))","v":74.060785845142092},{"$f":"AI20+AI37","v":140},{"$f":"SQRT((AJ20^2)+(AJ37^2))","v":32.649655434629018},{"$f":"AK20+AK37","v":218},{"$f":"SQRT((AL20^2)+(AL37^2))","v":108.93117092916977},{"$f":"AM20+AM37","v":1741},{"$f":"SQRT((AN20^2)+(AN37^2))","v":229.31637534201522},{"$f":"AO20+AO37","v":81},{"$f":"SQRT((AP20^2)+(AP37^2))","v":45.310043036836767},{"$f":"AQ20+AQ37","v":132},{"$f":"SQRT((AR20^2)+(AR37^2))","v":43.931765272977593},{"$f":"AS20+AS37","v":82},{"$f":"SQRT((AT20^2)+(AT37^2))","v":36.76955262170047},{"$f":"AU20+AU37","v":608},{"$f":"SQRT((AV20^2)+(AV37^2))","v":158.52129194527782},{"$f":"AW20+AW37","v":282},{"$f":"SQRT((AX20^2)+(AX37^2))","v":86.452298986203942},{"$f":"AY20+AY37","v":262},{"$f":"SQRT((AZ20^2)+(AZ37^2))","v":100},{"$f":"BA20+BA37","v":289},{"$f":"SQRT((BB20^2)+(BB37^2))","v":84.172442046075858},{"$f":"BC20+BC37","v":379},{"$f":"SQRT((BD20^2)+(BD37^2))","v":107.29864864013899},{"$f":"BE20+BE37","v":816},{"$f":"SQRT((BF20^2)+(BF37^2))","v":207.88458336298052},{"$f":"BG20+BG37","v":1199},{"$f":"SQRT((BH20^2)+(BH37^2))","v":241.3462243334252},{"$f":"BI20+BI37","v":904},{"$f":"SQRT((BJ20^2)+(BJ37^2))","v":205.38013535880242},{"$f":"BK20+BK37","v":407},{"$f":"SQRT((BL20^2)+(BL37^2))","v":161.0372627685903},{"$f":"BM20+BM37","v":1914},{"$f":"SQRT((BN20^2)+(BN37^2))","v":319.78899293127648},{"$f":"BO20+BO37","v":552},{"$f":"SQRT((BP20^2)+(BP37^2))","v":179.0111728356641},{"$f":"BQ20+BQ37","v":1013},{"$f":"SQRT((BR20^2)+(BR37^2))","v":184.58873205046942},{"$f":"BS20+BS37","v":53},{"$f":"SQRT((BT20^2)+(BT37^2))","v":18.439088914585774},{"$f":"BU20+BU37","v":517},{"$f":"SQRT((BV20^2)+(BV37^2))","v":140.08925726121899},{"$f":"BW20+BW37","v":1362},{"$f":"SQRT((BX20^2)+(BX37^2))","v":303.48640826238}]
[null,"Bachelor's degree",{"$f":"C21+C38","v":1425},{"$f":"SQRT((D21^2)+(D38^2))","v":224.64416306683776},{"$f":"E21+E38","v":1212},{"$f":"SQRT((F21^2)+(F38^2))","v":171.14321488157222},{"$f":"G21+G38","v":1083},{"$f":"SQRT((H21^2)+(H38^2))","v":151.34728276384746},{"$f":"I21+I38","v":576},{"$f":"SQRT((J21^2)+(J38^2))","v":127.6401190848708},{"$f":"K21+K38","v":840},{"$f":"SQRT((L21^2)+(L38^2))","v":159.2262541165872},{"$f":"M21+M38","v":644},{"$f":"SQRT((N21^2)+(N38^2))","v":128.84486796143648},{"$f":"O21+O38","v":871},{"$f":"SQRT((P21^2)+(P38^2))","v":133.41664064126334},{"$f":"Q21+Q38","v":4545},{"$f":"SQRT((R21^2)+(R38^2))","v":436.80659335683112},{"$f":"S21+S38","v":404},{"$f":"SQRT((T21^2)+(T38^2))","v":60.876925020897694},{"$f":"U21+U38","v":954},{"$f":"SQRT((V21^2)+(V38^2))","v":219.45614596087302},{"$f":"W21+W38","v":2955},{"$f":"SQRT((X21^2)+(X38^2))","v":340.13673721019904},{"$f":"Y21+Y38","v":803},{"$f":"SQRT((Z21^2)+(Z38^2))","v":145.42695761102891},{"$f":"AA21+AA38","v":988},{"$f":"SQRT((AB21^2)+(AB38^2))","v":143.0873858870865},{"$f":"AC21+AC38","v":1757},{"$f":"SQRT((AD21^2)+(AD38^2))","v":235.84952830141509},{"$f":"AE21+AE38","v":3454},{"$f":"SQRT((AF21^2)+(AF38^2))","v":323.96604760375737},{"$f":"AG21+AG38","v":630},{"$f":"SQRT((AH21^2)+(AH38^2))","v":84.38601779915912},{"$f":"AI21+AI38","v":496},{"$f":"SQRT((AJ21^2)+(AJ38^2))","v":62.968245965724662},{"$f":"AK21+AK38","v":1123},{"$f":"SQRT((AL21^2)+(AL38^2))","v":267.68638366566199},{"$f":"AM21+AM38","v":4941},{"$f":"SQRT((AN21^2)+(AN38^2))","v":384.42294416436698},{"$f":"AO21+AO38","v":260},{"$f":"SQRT((AP21^2)+(AP38^2))","v":65.115282384398824},{"$f":"AQ21+AQ38","v":374},{"$f":"SQRT((AR21^2)+(AR38^2))","v":65.053823869162372},{"$f":"AS21+AS38","v":186},{"$f":"SQRT((AT21^2)+(AT38^2))","v":41.109609582188931},{"$f":"AU21+AU38","v":2022},{"$f":"SQRT((AV21^2)+(AV38^2))","v":258.80108191427638},{"$f":"AW21+AW38","v":746},{"$f":"SQRT((AX21^2)+(AX38^2))","v":140.85808461000738},{"$f":"AY21+AY38","v":1013},{"$f":"SQRT((AZ21^2)+(AZ38^2))","v":162.11107303327555},{"$f":"BA21+BA38","v":701},{"$f":"SQRT((BB21^2)+(BB38^2))","v":127.98828071350908},{"$f":"BC21+BC38","v":843},{"$f":"SQRT((BD21^2)+(BD38^2))","v":148.39474384222643},{"$f":"BE21+BE38","v":973},{"$f":"SQRT((BF21^2)+(BF38^2))","v":221.57842855296181},{"$f":"BG21+BG38","v":5776},{"$f":"SQRT((BH21^2)+(BH38^2))","v":422.31386432368049},{"$f":"BI21+BI38","v":1268},{"$f":"SQRT((BJ21^2)+(BJ38^2))","v":234.3608329051593},{"$f":"BK21+BK38","v":1739},{"$f":"SQRT((BL21^2)+(BL38^2))","v":265.50517885721177},{"$f":"BM21+BM38","v":4792},{"$f":"SQRT((BN21^2)+(BN38^2))","v":470.89383092157834},{"$f":"BO21+BO38","v":816},{"$f":"SQRT((BP21^2)+(BP38^2))","v":197.06090429103384},{"$f":"BQ21+BQ38","v":848},{"$f":"SQRT((BR21^2)+(BR38^2))","v":167.58579892103029},{"$f":"BS21+BS38","v":154},{"$f":"SQRT((BT21^2)+(BT38^2))","v":28.0178514522438},{"$f":"BU21+BU38","v":1752},{"$f":"SQRT((BV21^2)+(BV38^2))","v":278.87093789063067},{"$f":"BW21+BW38","v":3025},{"$f":"SQRT((BX21^2)+(BX38^2))","v":394.68975157710901}]
[null,"Graduate or professional degree",{"$f":"(C22+C23+C24)+(C39+C40+C41)","v":1032},{"$f":"SQRT((D22^2)+(D23^2)+(D24^2)+(D39^2)+(D41^2)+(D40^2))","v":210.66798522794107},{"$f":"(E22+E23+E24)+(E39+E40+E41)","v":583},{"$f":"SQRT((F22^2)+(F23^2)+(F24^2)+(F39^2)+(F41^2)+(F40^2))","v":150.94038558318314},{"$f":"(G22+G23+G24)+(G39+G40+G41)","v":539},{"$f":"SQRT((H22^2)+(H23^2)+(H24^2)+(H39^2)+(H41^2)+(H40^2))","v":110.71133636624572},{"$f":"(I22+I23+I24)+(I39+I40+I41)","v":328},{"$f":"SQRT((J22^2)+(J23^2)+(J24^2)+(J39^2)+(J41^2)+(J40^2))","v":84.15461959987698},{"$f":"(K22+K23+K24)+(K39+K40+K41)","v":695},{"$f":"SQRT((L22^2)+(L23^2)+(L24^2)+(L39^2)+(L41^2)+(L40^2))","v":158.44872987815333},{"$f":"(M22+M23+M24)+(M39+M40+M41)","v":200},{"$f":"SQRT((N22^2)+(N23^2)+(N24^2)+(N39^2)+(N41^2)+(N40^2))","v":75.07995737878386},{"$f":"(O22+O23+O24)+(O39+O40+O41)","v":526},{"$f":"SQRT((P22^2)+(P23^2)+(P24^2)+(P39^2)+(P41^2)+(P40^2))","v":139.65672200076872},{"$f":"(Q22+Q23+Q24)+(Q39+Q40+Q41)","v":2127},{"$f":"SQRT((R22^2)+(R23^2)+(R24^2)+(R39^2)+(R41^2)+(R40^2))","v":291.98972584664688},{"$f":"(S22+S23+S24)+(S39+S40+S41)","v":251},{"$f":"SQRT((T22^2)+(T23^2)+(T24^2)+(T39^2)+(T41^2)+(T40^2))","v":53.740115370177612},{"$f":"(U22+U23+U24)+(U39+U40+U41)","v":523},{"$f":"SQRT((V22^2)+(V23^2)+(V24^2)+(V39^2)+(V41^2)+(V40^2))","v":158.29718885690926},{"$f":"(W22+W23+W24)+(W39+W40+W41)","v":2529},{"$f":"SQRT((X22^2)+(X23^2)+(X24^2)+(X39^2)+(X41^2)+(X40^2))","v":317.9591168688201},{"$f":"(Y22+Y23+Y24)+(Y39+Y40+Y41)","v":448},{"$f":"SQRT((Z22^2)+(Z23^2)+(Z24^2)+(Z39^2)+(Z41^2)+(Z40^2))","v":115.37764081484765},{"$f":"(AA22+AA23+AA24)+(AA39+AA40+AA41)","v":564},{"$f":"SQRT((AB22^2)+(AB23^2)+(AB24^2)+(AB39^2)+(AB41^2)+(AB40^2))","v":124.72369462135092},{"$f":"(AC22+AC23+AC24)+(AC39+AC40+AC41)","v":873},{"$f":"SQRT((AD22^2)+(AD23^2)+(AD24^2)+(AD39^2)+(AD41^2)+(AD40^2))","v":171.28922908344236},{"$f":"(AE22+AE23+AE24)+(AE39+AE40+AE41)","v":2335},{"$f":"SQRT((AF22^2)+(AF23^2)+(AF24^2)+(AF39^2)+(AF41^2)+(AF40^2))","v":261.25083731923235},{"$f":"(AG22+AG23+AG24)+(AG39+AG40+AG41)","v":345},{"$f":"SQRT((AH22^2)+(AH23^2)+(AH24^2)+(AH39^2)+(AH41^2)+(AH40^2))","v":69.864153898834275},{"$f":"(AI22+AI23+AI24)+(AI39+AI40+AI41)","v":330},{"$f":"SQRT((AJ22^2)+(AJ23^2)+(AJ24^2)+(AJ39^2)+(AJ41^2)+(AJ40^2))","v":49.223977896955873},{"$f":"(AK22+AK23+AK24)+(AK39+AK40+AK41)","v":504},{"$f":"SQRT((AL22^2)+(AL23^2)+(AL24^2)+(AL39^2)+(AL41^2)+(AL40^2))","v":174.73980656965372},{"$f":"(AM22+AM23+AM24)+(AM39+AM40+AM41)","v":2753},{"$f":"SQRT((AN22^2)+(AN23^2)+(AN24^2)+(AN39^2)+(AN41^2)+(AN40^2))","v":287.23683607782618},{"$f":"(AO22+AO23+AO24)+(AO39+AO40+AO41)","v":194},{"$f":"SQRT((AP22^2)+(AP23^2)+(AP24^2)+(AP39^2)+(AP41^2)+(AP40^2))","v":58.309518948453004},{"$f":"(AQ22+AQ23+AQ24)+(AQ39+AQ40+AQ41)","v":293},{"$f":"SQRT((AR22^2)+(AR23^2)+(AR24^2)+(AR39^2)+(AR41^2)+(AR40^2))","v":56.727418414731339},{"$f":"(AS22+AS23+AS24)+(AS39+AS40+AS41)","v":107},{"$f":"SQRT((AT22^2)+(AT23^2)+(AT24^2)+(AT39^2)+(AT41^2)+(AT40^2))","v":27.910571473905726},{"$f":"(AU22+AU23+AU24)+(AU39+AU40+AU41)","v":1014},{"$f":"SQRT((AV22^2)+(AV23^2)+(AV24^2)+(AV39^2)+(AV41^2)+(AV40^2))","v":187.57931655702342},{"$f":"(AW22+AW23+AW24)+(AW39+AW40+AW41)","v":423},{"$f":"SQRT((AX22^2)+(AX23^2)+(AX24^2)+(AX39^2)+(AX41^2)+(AX40^2))","v":104.45094542415593},{"$f":"(AY22+AY23+AY24)+(AY39+AY40+AY41)","v":736},{"$f":"SQRT((AZ22^2)+(AZ23^2)+(AZ24^2)+(AZ39^2)+(AZ41^2)+(AZ40^2))","v":137.18964975536602},{"$f":"(BA22+BA23+BA24)+(BA39+BA40+BA41)","v":373},{"$f":"SQRT((BB22^2)+(BB23^2)+(BB24^2)+(BB39^2)+(BB41^2)+(BB40^2))","v":119.46547618454463},{"$f":"(BC22+BC23+BC24)+(BC39+BC40+BC41)","v":674},{"$f":"SQRT((BD22^2)+(BD23^2)+(BD24^2)+(BD39^2)+(BD41^2)+(BD40^2))","v":136.58330791132568},{"$f":"(BE22+BE23+BE24)+(BE39+BE40+BE41)","v":454},{"$f":"SQRT((BF22^2)+(BF23^2)+(BF24^2)+(BF39^2)+(BF41^2)+(BF40^2))","v":137.0291939697523},{"$f":"(BG22+BG23+BG24)+(BG39+BG40+BG41)","v":3979},{"$f":"SQRT((BH22^2)+(BH23^2)+(BH24^2)+(BH39^2)+(BH41^2)+(BH40^2))","v":352.78038494224705},{"$f":"(BI22+BI23+BI24)+(BI39+BI40+BI41)","v":438},{"$f":"SQRT((BJ22^2)+(BJ23^2)+(BJ24^2)+(BJ39^2)+(BJ41^2)+(BJ40^2))","v":134.32423459673984},{"$f":"(BK22+BK23+BK24)+(BK39+BK40+BK41)","v":1039},{"$f":"SQRT((BL22^2)+(BL23^2)+(BL24^2)+(BL39^2)+(BL41^2)+(BL40^2))","v":218.28192779064418},{"$f":"(BM22+BM23+BM24)+(BM39+BM40+BM41)","v":2982},{"$f":"SQRT((BN22^2)+(BN23^2)+(BN24^2)+(BN39^2)+(BN41^2)+(BN40^2))","v":338.63697376394089},{"$f":"(BO22+BO23+BO24)+(BO39+BO40+BO41)","v":473},{"$f":"SQRT((BP22^2)+(BP23^2)+(BP24^2)+(BP39^2)+(BP41^2)+(BP40^2))","v":163.88410539158457},{"$f":"(BQ22+BQ23+BQ24)+(BQ39+BQ40+BQ41)","v":443},{"$f":"SQRT((BR22^2)+(BR23^2)+(BR24^2)+(BR39^2)+(BR41^2)+(BR40^2))","v":134.02611685787215},{"$f":"(BS22+BS23+BS24)+(BS39+BS40+BS41)","v":83},{"$f":"SQRT((BT22^2)+(BT23^2)+(BT24^2)+(BT39^2)+(BT41^2)+(BT40^2))","v":24.879710609249457},{"$f":"(BU22+BU23+BU24)+(BU39+BU40+BU41)","v":1412},{"$f":"SQRT((BV22^2)+(BV23^2)+(BV24^2)+(BV39^2)+(BV41^2)+(BV40^2))","v":252.42424606206117},{"$f":"(BW22+BW23+BW24)+(BW39+BW40+BW41)","v":2122},{"$f":"SQRT((BX22^2)+(BX23^2)+(BX24^2)+(BX39^2)+(BX41^2)+(BX40^2))","v":296.80801875960157}]
[]
[]
[]
[]
[]
[]
[]
[]
[]
[]
[]
[]
[]
[]
[]
[]
[]
[]
[]
[]
[]
[]
[]
[]
[]
[]
[]
[null,"Calculated B15002. SEX BY EDUCATIONAL ATTAINMENT FOR THE POPULATION 25 YEARS AND OVER"]
[null,"Universe: Population 25 years an over"]
[null,"Data Set: 2010-2014 American Community Survey 5-Year Estimates","Atkinson",null,"Auburn",null,"Brentwood",null,"Candia",null,"Chester",null,"Danville",null,"Deerfield",null,"Derry",null,"East Kingston",null,"Epping",null,"Exeter",null,"Fremont",null,"Greenland",null,"Hampstead",null,"Hampton",null,"Hampton Falls",null,"Kensington",null,"Kingston",null,"Londonderry",null,"New Castle",null,"Newfields",null,"Newington",null,"Newmarket",null,"Newton",null,"North Hampton",null,"Northwood",null,"Nottingham",null,"Plaistow",null,"Portsmouth",null,"Raymond",null,"Rye",null,"Salem",null,"Sandown",null,"Seabrook",null,"South Hampton",null,"Stratham",null,"Windham"]
[null,null,"Estimate","Margin Of Error","Estimate","Margin Of Error","Estimate","Margin Of Error","Estimate","Margin Of Error","Estimate","Margin Of Error","Estimate","Margin Of Error","Estimate","Margin Of Error","Estimate","Margin Of Error","Estimate","Margin Of Error","Estimate","Margin Of Error","Estimate","Margin Of Error","Estimate","Margin Of Error","Estimate","Margin Of Error","Estimate","Margin Of Error","Estimate","Margin Of Error","Estimate","Margin Of Error","Estimate","Margin Of Error","Estimate","Margin Of Error","Estimate","Margin Of Error","Estimate","Margin Of Error","Estimate","Margin Of Error","Estimate","Margin Of Error","Estimate","Margin Of Error","Estimate","Margin Of Error","Estimate","Margin Of Error","Estimate","Margin Of Error","Estimate","Margin Of Error","Estimate","Margin Of Error","Estimate","Margin Of Error","Estimate","Margin Of Error","Estimate","Margin Of Error","Estimate","Margin Of Error","Estimate","Margin Of Error","Estimate","Margin Of Error","Estimate","Margin Of Error","Estimate","Margin Of Error","Estimate","Margin Of Error"]
[null,"Total:",4801,154,3553,134,2972,171,2952,105,3214,143,2850,151,3051,115,22847,478,1703,91,4756,219,10327,302,3160,135,2682,83,6022,185,11196,302,1670,109,1471,104,4486,190,16387,309,802,117,1079,145,616,95,5967,282,3119,135,3258,123,3051,176,3563,143,5302,233,16245,339,7057,240,4176,181,20425,394,4138,172,6788,307,594,82,5245,161,9297,242]
[null,"Less than 9th grade",48,54.753995288015282,29,36.76955262170047,9,28.301943396169811,6,26.944387170614959,32,42.871902220452036,57,51.283525619832339,43,36.455452267116371,153,85.562842402528915,7,26.551836094703507,43,71.372263520221921,174,100.67770358922576,47,55.263007518592396,8,24.919871588754223,87,81.951204994191514,133,73.143694191638971,0,26.944387170614959,0,26.944387170614959,23,43.692104549906958,68,74.094534211370814,3,25.099800796022265,6,24.289915602982237,23,33.674916480965472,96,68.095521144932874,37,41.048751503547585,14,30.561413579872251,27,46.108567533594012,29,33.674916480965472,67,83.072257703760528,156,84.083292038311626,99,73.464277033126791,35,46.36809247747852,514,171.93894265116325,45,49.678969393496885,134,87.544274512957159,2,24.779023386727733,34,48.631265663151311,86,77.653074633268702]
[null,"9th to 12th grade, no diploma",95,74.979997332621991,101,61.220911460055866,102,60.183054093324309,150,64.109281699298421,96,64.91532946846992,121,64.007812023221035,70,40.93897898091744,1017,221.82650878558226,85,35.832945734337834,305,150.69505632236249,258,101.80864403379509,186,85.796270315206598,41,30.265491900843113,236,100.48880534666536,277,124.07658925034973,24,27.892651361962706,34,29.017236257093817,217,119.80818002123227,691,156.16657773031974,2,29.529646120466801,16,24.289915602982237,9,25.903667693977237,181,108.85311203635843,100,52.858301145610042,121,81.547532151500448,105,61.951594006934158,111,51.029403288692293,257,118.81919036923287,511,130.51053597315428,677,178.77080298527497,134,110.08632975987527,989,202.96797776989354,116,65.589633327226338,622,195.78815081613087,20,22.338307903688676,77,64.892218331630488,393,183.13656106850974]
[null,"High school graduate (includes equivalency)",1072,226.25870149013053,1029,169.71151993898351,755,155.32224567009067,958,186.86893802876924,907,146.45477117526761,1058,181.39735389470266,972,168.36270370839262,7791,555.31702657130904,486,82.024386617639507,1282,273.23982140237172,2204,308.05843601498725,898,134.80726983364065,460,94.260277954183863,1664,240.62003241625581,2690,321.17907777437807,367,82.365041127896006,381,64.443773942872099,1440,257.87012234844116,4003,364.16067882186292,63,36.235341863986875,197,45.967379738244816,157,37.013511046643494,1290,221.05655384991417,780,183.00273222004091,628,130.66751700403586,1027,176.81911661356077,863,179.38784797192923,2212,277.79488836189915,2956,324.56894491001447,2546,304.69985231371544,855,230.8679276123039,6701,482.59714048054616,1405,209.95475703112803,2738,454.32697476597184,162,40.311288741492746,826,189.63649437806004,1907,279.41546127585713]
[null,"Some college, no degree",936,225.31533458688514,741,150.99337733821309,434,101.63168797181321,487,113.47246362003426,758,151.3373714586057,490,126.0674422680178,553,140.89002803605371,5056,513.05555254767489,360,68.425141578224014,1201,268.7117414628546,1615,259.48988419589693,817,141.5132502630054,530,135.90437814875574,1131,217.10596491114654,1986,281.9503502391866,229,81.822979657306547,278,57.436921923097515,1009,224.10042391749283,2780,290.11204731965199,114,50.139804546886701,201,58.472215624174872,133,42.661458015403085,1142,242.16936222404354,903,192.57206443303244,545,132.12494087037467,666,145.79094622095022,681,132.89469515371937,947,223.19946236494388,2382,285.76563824224911,1445,243.20773014030618,761,197.97222027345148,3939,406.44310794993191,999,224.9155397032406,1931,356.44775213206213,124,35.071355833500363,734,209.63062753328771,1363,247.80234058620189]
[null,"Associate's degree",734,193.98195792392653,411,98.716766559688324,283,95.425363504678359,365,92.282175960474618,362,98.310731865854805,265,87.681240867131891,398,109.55363982999378,2346,329.44347011285561,135,37.443290453698111,574,173.92527130926086,1101,218.58865478336244,310,87.321245982864909,212,75.073297516493838,728,148.55302083767936,812,163.41664541900252,131,41.725292090050132,167,41.036569057366385,496,170.07351351694948,1852,249.94799459087486,85,37.536648758246919,73,25,44,18.384776310850235,564,159.67780058605516,380,104.1393297462587,322,99.322706366671255,256,87.80091115700337,500,119.6202324023825,629,211.00947846009194,1209,202.27703774773843,562,131.52946437965906,357,128.69343417595164,1818,221.14474897677312,516,173.58859409534949,531,146.68674105044394,50,15.556349186104045,478,167.26027621644059,860,238.29813259864207]
[null,"Bachelor's degree",1469,260.35360569809666,831,155.87815754620658,922,143.17821063276352,714,130.41855696180662,581,125.31959144523253,588,137.88763541376724,635,128.76334882255898,4360,414.22940504025064,403,73.109506905736964,805,181.10770276274835,2656,312.55399533520603,687,122.34786471369249,773,129.63024338479042,1240,194.51735141112732,3108,281.3698633471609,555,87.321245982864909,381,57.688820407423826,967,197.28405916343064,4427,374.06015558997996,235,66.603303221386852,333,67.94115100585212,149,35.355339059327378,1608,250.60127693210185,588,132.93607486307093,982,165.58381563425817,589,130.38404810405297,777,146.10270360263701,669,181.46625030566977,5591,428.36082920827391,1269,232.76812496559748,1148,234.10467744152402,4558,448.26443088873333,861,210.8885961829136,639,182.70467974302136,155,37.643060449437421,1802,293.2047066470796,2687,339.07226368430668]
[null,"Graduate or professional degree",434,130.39938650162432,401,108.24047302187847,457,105.51777101512333,272,85.358069331493198,455,113.55615351005862,271,93.616237907747603,380,105.99528291391084,2022,280.48351110181147,221,51.019604075296392,502,148.35767590522573,2286,281.79425118337667,215,72.794230540613583,658,140.24977718342373,925,161.03415786720529,2166,266.4713868316822,361,76.295478240849903,226,42.778499272414876,314,133.47658970770868,2548,282.45707638506775,300,67.57958271549181,250,56.142675390472796,101,29.916550603303182,1013,187.53399691789221,316,104.45573225055675,646,138.09779143780685,346,113.45042970390196,559,141.62979912433681,515,178.8798479426903,3398,343.6073340311583,439,126.22598781550494,886,222.80709144908292,1791,275.19992732557182,181,82.267855204812534,162,75.013332148358799,81,28.354893757515651,1294,244.59354038894813,1944,308.87699817241167]
[null,"Graduate or professional degree",282,114.58621208504974,197,85.270158906853226,178,68.080834307461302,86,45.552167895721496,243,84.231822964957843,141,64.544558252419705,175,75.08661665037252,944,212.8426648959273,104,32.419130154894653,274,110.68423555321688,1109,191.11776474205635,81,47.539457296018853,364,109.38007131100254,586,139.82131454109563,774,182.70467974302136,189,54.166410255803363,129,35.62302626111375,93,73.810568348983736,1374,239.42639787625757,149,53.525694764290542,131,42.813549257215293,47,19.157244060668017,399,127.93357651531517,162,78.03204469959762,330,94.525128934056468,233,111.67810886650973,203,81.092539730853176,208,124.63546846704592,1665,245.18768321430829,70,55.253959134165221,495,158.35087622113116,952,223.21066282774217,129,64.132674979295857,95,53.740115370177612,43,23.706539182259394,686,151.83543723386842,1101,219.54726142678254]
[]
[]
[]
[]
[]
[]
[]
[]
[]
[]
[]
[]
[]
[]
[]
[]
[]
[]
[]
[]
[]
[]
[]
[]
[]
[]
[]
[null,"Calculated B15002. SEX BY EDUCATIONAL ATTAINMENT FOR THE POPULATION 25 YEARS AND OVER"]
[null,"Universe: Population 25 years an over"]
[null,"Data Set: 2005-2009 American Community Survey 5-Year Estimates","Atkinson",null,"Auburn",null,"Brentwood",null,"Candia",null,"Chester",null,"Danville",null,"Deerfield",null,"Derry",null,"East Kingston",null,"Epping",null,"Exeter",null,"Fremont",null,"Greenland",null,"Hampstead",null,"Hampton",null,"Hampton Falls",null,"Kensington",null,"Kingston",null,"Londonderry",null,"New Castle",null,"Newfields",null,"Newington",null,"Newmarket",null,"Newton",null,"North Hampton",null,"Northwood",null,"Nottingham",null,"Plaistow",null,"Portsmouth",null,"Raymond",null,"Rye",null,"Salem",null,"Sandown",null,"Seabrook",null,"South Hampton",null,"Stratham",null,"Windham"]
[]
[null,null,"Estimate","Margin Of Error","Estimate","Margin Of Error","Estimate","Margin Of Error","Estimate","Margin Of Error","Estimate","Margin Of Error","Estimate","Margin Of Error","Estimate","Margin Of Error","Estimate","Margin Of Error","Estimate","Margin Of Error","Estimate","Margin Of Error","Estimate","Margin Of Error","Estimate","Margin Of Error","Estimate","Margin Of Error","Estimate","Margin Of Error","Estimate","Margin Of Error","Estimate","Margin Of Error","Estimate","Margin Of Error","Estimate","Margin Of Error","Estimate","Margin Of Error","Estimate","Margin Of Error","Estimate","Margin Of Error","Estimate","Margin Of Error","Estimate","Margin Of Error","Estimate","Margin Of Error","Estimate","Margin Of Error","Estimate","Margin Of Error","Estimate","Margin Of Error","Estimate","Margin Of Error","Estimate","Margin Of Error","Estimate","Margin Of Error","Estimate","Margin Of Error","Estimate","Margin Of Error","Estimate","Margin Of Error","Estimate","Margin Of Error","Estimate","Margin Of Error","Estimate","Margin Of Error","Estimate","Margin Of Error"]
[null,"Total:",4852,134,3480,114,2576,105,2997,103,3033,111,2837,131,2745,126,22213,420,1559,84,4511,195,10564,335,2805,145,2358,100,5892,219,11520,351,1557,91,1468,103,4230,202,15753,320,626,109,1119,123,565,91,6341,297,2993,129,3266,131,2742,133,3017,102,5004,371,14922,400,7031,270,3780,206,20080,403,3602,135,6511,270,627,101,4915,201,8751,176]
[null,"Less than 9th grade",30,257.44125543509921,90,236.3133512944201,80,201.58620984581262,30,199.67223141939391,11,255.47798339583002,96,204.3428491530839,70,174.27277469530347,498,188.91267824050348,11,197.69926656414282,122,216.38391807156094,170,210.35446275275456,103,238.46173697262208,7,255.19404381764085,74,208.70792989246959,70,124.22560122615627,15,197.79282090106304,7,255.0372521809314,41,258.03100588882722,296,212.56763629489791,0,279.24183067728228,2,254.94313091354314,0,279.24183067728228,45,230.62740513651016,37,231.72828916642871,26,229.74768769239006,8,255.24302145210552,9,255.35269726399994,98,205.57966825539921,143,236.03813251252433,185,216.72563300172871,29,230.62740513651016,484,130.14222988715076,10,255.41339040856883,253,229.88910370002316,16,197.74731350893239,32,230.72927859289987,54,201.55892438688991]
[null,"9th to 12th grade, no diploma",126,174.26990560621763,133,214.05840324546944,104,167.46940019000485,105,172.03197377231942,174,211.98348992315417,138,175.28548142958104,210,181.87358246870269,1489,302.14400540139798,34,162.3853441662763,363,130.91218430688565,728,211.43556938225885,136,239.26763257908496,92,203.99754900488389,300,175.95169791735458,522,163.38910612400082,33,198.08836412066208,60,163.77118183612157,231,197.02791680368546,530,153.00653580811507,6,279.35103364763125,49,162.7083279982927,10,228.17975370308383,225,101.93625459079807,153,181.8845787855584,125,241.66712643634426,209,148.84219831754703,99,175.38814099020493,304,104.32641084595981,399,139.97142565538152,677,169.61721610732798,62,233.2337882897759,1488,302.03476621077914,123,174.6539435569664,627,171.61293657530601,17,228.24767249634769,108,248.17735593724097,262,90.730369777710038]
[null,"High school graduate (includes equivalency)",968,195.18196638009363,1075,169.77926846349644,654,135.2479205015737,864,129.63024338479042,736,150,1017,143.17821063276352,804,155.56670594957006,7412,502.81308654409543,431,62.289646009589745,1738,227.29936207565564,2460,337.82983882422229,860,133.30416347586447,597,109.12378292562992,1796,303.94900888142405,3049,369.89863476363359,312,61.71709649683789,432,73.246160308919954,1179,209.30360723121808,4240,404.99135793248723,97,42.154477816715982,198,48.795491595023407,146,43.600458713183279,1342,254.62128740543278,963,149.20120642943877,532,129.40247292845683,902,147.24808997063425,693,137.90213921473443,1602,253.71243564319033,3071,310.42068230064825,2742,286.174771774173,494,141.87318280774559,6309,491.8089059787348,1016,157.74663229368798,2922,398.62890010635203,139,46.097722286464439,525,130.38404810405297,2064,287.25598340156466]
[null,"Some college, no degree",1158,230.64258063072396,603,122.5969004502153,444,91.296221170429618,651,145.95204691952765,529,126.97637575549241,751,144.31216164966833,539,128.07810117268292,4837,467.64730299660664,383,59.949979149287451,841,195.74728606036916,1572,273.33678859604686,499,134.23114392718256,508,121.28478882366082,1154,211.63648078722156,2506,341.07623781201761,243,49.809637621649088,267,48.631265663151311,986,211.74985242025554,2777,365.69522829810069,40,21.400934559032695,168,42.190046219457976,100,32.511536414017719,1342,255.42709331627293,578,137.65536676788159,659,140.3638130003599,666,171.02631376487071,654,133.07516672918354,863,207.2245159241541,2615,315.30620038305619,1497,254.82935466700064,651,140.06070112633307,3733,392.1504813206277,861,160.22172137385118,1112,225.70112981551509,188,55.299186250793966,871,177.57815180928085,1387,238.12811677750278]
[null,"Associate's degree",492,136.40014662748717,447,134.6291201783626,267,65.192024052026483,345,93.509357820487679,284,88.865066252155572,262,84.148677945645701,270,82.879430499973878,2051,292.13866570517501,129,34.132096331752024,373,115.24755962709145,925,216.60101569475614,439,115,129,50.24937810560445,525,149.21461054467824,996,218.17882573705452,119,33.941125496954278,156,47.413078364518789,581,140.75865870347016,1642,304.13319450530224,46,30.675723300355934,96,31.064449134018133,73,31.11269837220809,716,196.65706191235543,423,113.70136322841516,288,99.904954832080278,195,80.05623023850174,272,99.085821387320593,633,147.41099009232656,1252,228.80996481796853,635,157.38487856207789,421,120.42009799032718,2267,283.80451018262551,576,141.67568598739871,375,169.72919607421701,49,17.691806012954132,433,144.46106741956464,816,161.81779877380609]
[null,"Bachelor's degree",1308,173.27723451163456,798,148.07092894960846,663,112.04463396343441,606,138.05795884337854,843,150.74813431681335,417,99.085821387320593,599,139.60300856356929,4001,381.32007552710883,345,58.796258384356399,661,185.80096878111266,2891,301.39011264472498,513,106.15083607772479,661,124.61942063739504,1296,224.55511572885621,2897,331.63986491373441,520,76.367532368147138,329,52.630789467763066,754,155.24174696260025,4050,379.11080174534726,251,62.968245965724662,418,70.724818840347695,156,38.600518131237564,1761,231.63117234085743,513,119.20151005754919,981,149.93331851193051,485,122.58874336577564,933,173.97126199461795,954,170.55204484262273,4598,466.07831959875585,1121,203.29535164385831,1247,200.83824337013107,3686,376.94164004524629,619,127.01574705523721,726,193.65949499056327,129,29.698484809834994,2143,233.54014644167714,2642,308.05843601498725]
[null,"Graduate or professional degree",395,115.03912377969506,153,132.44999056247607,210,62.465990746965666,213,77.136243102707567,300,92.320095320574708,52,200.53179299053804,172,143.93401265857906,1332,237.52263050075882,131,35.468295701936398,171,148.65396059304979,876,180.24150465417225,155,174.32441022415651,202,72.187256493095788,350,139.88209320710067,720,168.66831356244717,190,47.106262853255508,114,30.495901363953813,159,140.44571905188138,1287,243.39474110999194,92,120.48651376813922,96,31.937438845342623,49,115.50324670761424,460,122.5969004502153,198,139.96070877214075,287,85.819578185866192,112,52.630789467763066,120,210.51603264359701,259,95.937479641691652,1388,237.64469276632289,65,167.28717822953436,464,145.52319402761884,1145,250.59329599971346,208,140.65560778013793,200,195.29464918425185,60,30.870698080866262,523,127.40094191174569,726,152.79070652366264]

{"sheet":"ACS_Table_B01001","index":24,"n_rows":265,"n_cols":76,"rows_kept":265,"cut":false,"hidden":true,"merged":[[65102,10,65102,11],[65102,12,65102,13],[65102,14,65102,15],[65102,2,65102,3],[65102,4,65102,5],[65102,6,65102,7],[65102,8,65102,9],[64918,2,64918,3],[64918,4,64918,5],[64918,6,64918,7],[64918,8,64918,9],[64918,10,64918,11],[64918,12,64918,13],[64918,14,64918,15],[64856,2,64856,3],[64856,4,64856,5],[64938,14,64938,15],[65000,2,65000,3],[65000,4,65000,5],[65000,6,65000,7],[65000,8,65000,9],[65000,10,65000,11],[65000,12,65000,13],[65000,14,65000,15],[64938,2,64938,3],[64938,4,64938,5],[65020,6,65020,7],[65020,8,65020,9],[64938,10,64938,11],[64938,12,64938,13],[64938,6,64938,7],[64938,8,64938,9],[65020,10,65020,11],[65020,12,65020,13],[65020,14,65020,15],[65082,2,65082,3],[65082,4,65082,5],[65082,6,65082,7],[65082,8,65082,9],[65082,10,65082,11],[65082,12,65082,13],[65082,14,65082,15],[65020,2,65020,3],[65020,4,65020,5],[64692,6,64692,7],[64692,8,64692,9],[64610,10,64610,11],[64610,12,64610,13],[64610,6,64610,7],[64610,8,64610,9],[64692,10,64692,11],[64692,12,64692,13],[64692,14,64692,15],[64754,2,64754,3],[64754,4,64754,5],[64754,6,64754,7],[64754,8,64754,9],[64754,10,64754,11],[64754,12,64754,13],[64754,14,64754,15],[64692,2,64692,3],[64692,4,64692,5],[64774,14,64774,15],[64836,2,64836,3],[64836,4,64836,5],[64836,6,64836,7],[64836,8,64836,9],[64836,10,64836,11],[64836,12,64836,13],[64836,14,64836,15],[64774,2,64774,3],[64774,4,64774,5],[64856,6,64856,7],[64856,8,64856,9],[64774,10,64774,11],[64774,12,64774,13],[64774,6,64774,7],[64774,8,64774,9],[64856,10,64856,11],[64856,12,64856,13],[64856,14,64856,15],[64446,14,64446,15],[64508,2,64508,3],[64508,4,64508,5],[64508,6,64508,7],[64508,8,64508,9],[64508,10,64508,11],[64508,12,64508,13],[64508,14,64508,15],[64446,2,64446,3],[64446,4,64446,5],[64528,6,64528,7],[64528,8,64528,9],[64446,10,64446,11],[64446,12,64446,13],[64446,6,64446,7],[64446,8,64446,9],[64528,10,64528,11],[64528,12,64528,13],[64528,14,64528,15],[64590,2,64590,3],[64590,4,64590,5],[64590,6,64590,7],[64590,8,64590,9],[64590,10,64590,11],[64590,12,64590,13],[64590,14,64590,15],[64528,2,64528,3],[64528,4,64528,5],[64610,14,64610,15],[64672,2,64672,3],[64672,4,64672,5],[64672,6,64672,7],[64672,8,64672,9],[64672,10,64672,11],[64672,12,64672,13],[64672,14,64672,15],[64610,2,64610,3],[64610,4,64610,5],[64262,2,64262,3],[64262,4,64262,5],[64262,6,64262,7],[64262,8,64262,9],[64262,10,64262,11],[64262,12,64262,13],[64262,14,64262,15],[64200,2,64200,3],[64200,4,64200,5],[64282,14,64282,15],[64344,2,64344,3],[64344,4,64344,5],[64344,6,64344,7],[64344,8,64344,9],[64344,10,64344,11],[64344,12,64344,13],[64344,14,64344,15],[64282,2,64282,3],[64282,4,64282,5],[64364,6,64364,7],[64364,8,64364,9],[64282,10,64282,11],[64282,12,64282,13],[64282,6,64282,7],[64282,8,64282,9],[64364,10,64364,11],[64364,12,64364,13],[64364,14,64364,15],[64426,2,64426,3],[64426,4,64426,5],[64426,6,64426,7],[64426,8,64426,9],[64426,10,64426,11],[64426,12,64426,13],[64426,14,64426,15],[64364,2,64364,3],[64364,4,64364,5],[64036,6,64036,7],[64036,8,64036,9],[63954,10,63954,11],[63954,12,63954,13],[63954,6,63954,7],[63954,8,63954,9],[64036,10,64036,11],[64036,12,64036,13],[64036,14,64036,15],[64098,2,64098,3],[64098,4,64098,5],[64098,6,64098,7],[64098,8,64098,9],[64098,10,64098,11],[64098,12,64098,13],[64098,14,64098,15],[64036,2,64036,3],[64036,4,64036,5],[64118,14,64118,15],[64180,2,64180,3],[64180,4,64180,5],[64180,6,64180,7],[64180,8,64180,9],[64180,10,64180,11],[64180,12,64180,13],[64180,14,64180,15],[64118,2,64118,3],[64118,4,64118,5],[64200,6,64200,7],[64200,8,64200,9],[64118,10,64118,11],[64118,12,64118,13],[64118,6,64118,7],[64118,8,64118,9],[64200,10,64200,11],[64200,12,64200,13],[64200,14,64200,15],[63790,14,63790,15],[63852,2,63852,3],[63852,4,63852,5],[63852,6,63852,7],[63852,8,63852,9],[63852,10,63852,11],[63852,12,63852,13],[63852,14,63852,15],[63790,2,63790,3],[63790,4,63790,5],[63872,6,63872,7],[63872,8,63872,9],[63790,10,63790,11],[63790,12,63790,13],[63790,6,63790,7],[63790,8,63790,9],[63872,10,63872,11],[63872,12,63872,13],[63872,14,63872,15],[63934,2,63934,3],[63934,4,63934,5],[63934,6,63934,7],[63934,8,63934,9],[63934,10,63934,11],[63934,12,63934,13],[63934,14,63934,15],[63872,2,63872,3],[63872,4,63872,5],[63954,14,63954,15],[64016,2,64016,3],[64016,4,64016,5],[64016,6,64016,7],[64016,8,64016,9],[64016,10,64016,11],[64016,12,64016,13],[64016,14,64016,15],[63954,2,63954,3],[63954,4,63954,5],[63606,2,63606,3],[63606,4,63606,5],[63606,6,63606,7],[63606,8,63606,9],[63606,10,63606,11],[63606,12,63606,13],[63606,14,63606,15],[63544,2,63544,3],[63544,4,63544,5],[63626,14,63626,15],[63688,2,63688,3],[63688,4,63688,5],[63688,6,63688,7],[63688,8,63688,9],[63688,10,63688,11],[63688,12,63688,13],[63688,14,63688,15],[63626,2,63626,3],[63626,4,63626,5],[63708,6,63708,7],[63708,8,63708,9],[63626,10,63626,11],[63626,12,63626,13],[63626,6,63626,7],[63626,8,63626,9],[63708,10,63708,11],[63708,12,63708,13],[63708,14,63708,15],[63770,2,63770,3],[63770,4,63770,5],[63770,6,63770,7],[63770,8,63770,9],[63770,10,63770,11],[63770,12,63770,13],[63770,14,63770,15],[63708,2,63708,3],[63708,4,63708,5],[63380,6,63380,7],[63380,8,63380,9],[63298,10,63298,11],[63298,12,63298,13],[63298,6,63298,7],[63298,8,63298,9],[63380,10,63380,11],[63380,12,63380,13],[63380,14,63380,15],[63442,2,63442,3],[63442,4,63442,5],[63442,6,63442,7],[63442,8,63442,9],[63442,10,63442,11],[63442,12,63442,13],[63442,14,63442,15],[63380,2,63380,3],[63380,4,63380,5],[63462,14,63462,15],[63524,2,63524,3],[63524,4,63524,5],[63524,6,63524,7],[63524,8,63524,9],[63524,10,63524,11],[63524,12,63524,13],[63524,14,63524,15],[63462,2,63462,3],[63462,4,63462,5],[63544,6,63544,7],[63544,8,63544,9],[63462,10,63462,11],[63462,12,63462,13],[63462,6,63462,7],[63462,8,63462,9],[63544,10,63544,11],[63544,12,63544,13],[63544,14,63544,15],[63134,14,63134,15],[63196,2,63196,3],[63196,4,63196,5],[63196,6,63196,7],[63196,8,63196,9],[63196,10,63196,11],[63196,12,63196,13],[63196,14,63196,15],[63134,2,63134,3],[63134,4,63134,5],[63216,6,63216,7],[63216,8,63216,9],[63134,10,63134,11],[63134,12,63134,13],[63134,6,63134,7],[63134,8,63134,9],[63216,10,63216,11],[63216,12,63216,13],[63216,14,63216,15],[63278,2,63278,3],[63278,4,63278,5],[63278,6,63278,7],[63278,8,63278,9],[63278,10,63278,11],[63278,12,63278,13],[63278,14,63278,15],[63216,2,63216,3],[63216,4,63216,5],[63298,14,63298,15],[63360,2,63360,3],[63360,4,63360,5],[63360,6,63360,7],[63360,8,63360,9],[63360,10,63360,11],[63360,12,63360,13],[63360,14,63360,15],[63298,2,63298,3],[63298,4,63298,5],[62950,2,62950,3],[62950,4,62950,5],[62950,6,62950,7],[62950,8,62950,9],[62950,10,62950,11],[62950,12,62950,13],[62950,14,62950,15],[62888,2,62888,3],[62888,4,62888,5],[62970,14,62970,15],[63032,2,63032,3],[63032,4,63032,5],[63032,6,63032,7],[63032,8,63032,9],[63032,10,63032,11],[63032,12,63032,13],[63032,14,63032,15],[62970,2,62970,3],[62970,4,62970,5],[63052,6,63052,7],[63052,8,63052,9],[62970,10,62970,11],[62970,12,62970,13],[62970,6,62970,7],[62970,8,62970,9],[63052,10,63052,11],[63052,12,63052,13],[63052,14,63052,15],[63114,2,63114,3],[63114,4,63114,5],[63114,6,63114,7],[63114,8,63114,9],[63114,10,63114,11],[63114,12,63114,13],[63114,14,63114,15],[63052,2,63052,3],[63052,4,63052,5],[62724,6,62724,7],[62724,8,62724,9],[62642,10,62642,11],[62642,12,62642,13],[62642,6,62642,7],[62642,8,62642,9],[62724,10,62724,11],[62724,12,62724,13],[62724,14,62724,15],[62786,2,62786,3],[62786,4,62786,5],[62786,6,62786,7],[62786,8,62786,9],[62786,10,62786,11],[62786,12,62786,13],[62786,14,62786,15],[62724,2,62724,3],[62724,4,62724,5],[62806,14,62806,15],[62868,2,62868,3],[62868,4,62868,5],[62868,6,62868,7],[62868,8,62868,9],[62868,10,62868,11],[62868,12,62868,13],[62868,14,62868,15],[62806,2,62806,3],[62806,4,62806,5],[62888,6,62888,7],[62888,8,62888,9],[62806,10,62806,11],[62806,12,62806,13],[62806,6,62806,7],[62806,8,62806,9],[62888,10,62888,11],[62888,12,62888,13],[62888,14,62888,15],[62478,14,62478,15],[62540,2,62540,3],[62540,4,62540,5],[62540,6,62540,7],[62540,8,62540,9],[62540,10,62540,11],[62540,12,62540,13],[62540,14,62540,15],[62478,2,62478,3],[62478,4,62478,5],[62560,6,62560,7],[62560,8,62560,9],[62478,10,62478,11],[62478,12,62478,13],[62478,6,62478,7],[62478,8,62478,9],[62560,10,62560,11],[62560,12,62560,13],[62560,14,62560,15],[62622,2,62622,3],[62622,4,62622,5],[62622,6,62622,7],[62622,8,62622,9],[62622,10,62622,11],[62622,12,62622,13],[62622,14,62622,15],[62560,2,62560,3],[62560,4,62560,5],[62642,14,62642,15],[62704,2,62704,3],[62704,4,62704,5],[62704,6,62704,7],[62704,8,62704,9],[62704,10,62704,11],[62704,12,62704,13],[62704,14,62704,15],[62642,2,62642,3],[62642,4,62642,5],[62294,2,62294,3],[62294,4,62294,5],[62294,6,62294,7],[62294,8,62294,9],[62294,10,62294,11],[62294,12,62294,13],[62294,14,62294,15],[62232,2,62232,3],[62232,4,62232,5],[62314,14,62314,15],[62376,2,62376,3],[62376,4,62376,5],[62376,6,62376,7],[62376,8,62376,9],[62376,10,62376,11],[62376,12,62376,13],[62376,14,62376,15],[62314,2,62314,3],[62314,4,62314,5],[62396,6,62396,7],[62396,8,62396,9],[62314,10,62314,11],[62314,12,62314,13],[62314,6,62314,7],[62314,8,62314,9],[62396,10,62396,11],[62396,12,62396,13],[62396,14,62396,15],[62458,2,62458,3],[62458,4,62458,5],[62458,6,62458,7],[62458,8,62458,9],[62458,10,62458,11],[62458,12,62458,13],[62458,14,62458,15],[62396,2,62396,3],[62396,4,62396,5],[62068,6,62068,7],[62068,8,62068,9],[61986,10,61986,11],[61986,12,61986,13],[61986,6,61986,7],[61986,8,61986,9],[62068,10,62068,11],[62068,12,62068,13],[62068,14,62068,15],[62130,2,62130,3],[62130,4,62130,5],[62130,6,62130,7],[62130,8,62130,9],[62130,10,62130,11],[62130,12,62130,13],[62130,14,62130,15],[62068,2,62068,3],[62068,4,62068,5],[62150,14,62150,15],[62212,2,62212,3],[62212,4,62212,5],[62212,6,62212,7],[62212,8,62212,9],[62212,10,62212,11],[62212,12,62212,13],[62212,14,62212,15],[62150,2,62150,3],[62150,4,62150,5],[62232,6,62232,7],[62232,8,62232,9],[62150,10,62150,11],[62150,12,62150,13],[62150,6,62150,7],[62150,8,62150,9],[62232,10,62232,11],[62232,12,62232,13],[62232,14,62232,15],[61822,14,61822,15],[61884,2,61884,3],[61884,4,61884,5],[61884,6,61884,7],[61884,8,61884,9],[61884,10,61884,11],[61884,12,61884,13],[61884,14,61884,15],[61822,2,61822,3],[61822,4,61822,5],[61904,6,61904,7],[61904,8,61904,9],[61822,10,61822,11],[61822,12,61822,13],[61822,6,61822,7],[61822,8,61822,9],[61904,10,61904,11],[61904,12,61904,13],[61904,14,61904,15],[61966,2,61966,3],[61966,4,61966,5],[61966,6,61966,7],[61966,8,61966,9],[61966,10,61966,11],[61966,12,61966,13],[61966,14,61966,15],[61904,2,61904,3],[61904,4,61904,5],[61986,14,61986,15],[62048,2,62048,3],[62048,4,62048,5],[62048,6,62048,7],[62048,8,62048,9],[62048,10,62048,11],[62048,12,62048,13],[62048,14,62048,15],[61986,2,61986,3],[61986,4,61986,5],[61638,2,61638,3],[61638,4,61638,5],[61638,6,61638,7],[61638,8,61638,9],[61638,10,61638,11],[61638,12,61638,13],[61638,14,61638,15],[61576,2,61576,3],[61576,4,61576,5],[61658,14,61658,15],[61720,2,61720,3],[61720,4,61720,5],[61720,6,61720,7],[61720,8,61720,9],[61720,10,61720,11],[61720,12,61720,13],[61720,14,61720,15],[61658,2,61658,3],[61658,4,61658,5],[61740,6,61740,7],[61740,8,61740,9],[61658,10,61658,11],[61658,12,61658,13],[61658,6,61658,7],[61658,8,61658,9],[61740,10,61740,11],[61740,12,61740,13],[61740,14,61740,15],[61802,2,61802,3],[61802,4,61802,5],[61802,6,61802,7],[61802,8,61802,9],[61802,10,61802,11],[61802,12,61802,13],[61802,14,61802,15],[61740,2,61740,3],[61740,4,61740,5],[61412,6,61412,7],[61412,8,61412,9],[61330,10,61330,11],[61330,12,61330,13],[61330,6,61330,7],[61330,8,61330,9],[61412,10,61412,11],[61412,12,61412,13],[61412,14,61412,15],[61474,2,61474,3],[61474,4,61474,5],[61474,6,61474,7],[61474,8,61474,9],[61474,10,61474,11],[61474,12,61474,13],[61474,14,61474,15],[61412,2,61412,3],[61412,4,61412,5],[61494,14,61494,15],[61556,2,61556,3],[61556,4,61556,5],[61556,6,61556,7],[61556,8,61556,9],[61556,10,61556,11],[61556,12,61556,13],[61556,14,61556,15],[61494,2,61494,3],[61494,4,61494,5],[61576,6,61576,7],[61576,8,61576,9],[61494,10,61494,11],[61494,12,61494,13],[61494,6,61494,7],[61494,8,61494,9],[61576,10,61576,11],[61576,12,61576,13],[61576,14,61576,15],[61166,14,61166,15],[61228,2,61228,3],[61228,4,61228,5],[61228,6,61228,7],[61228,8,61228,9],[61228,10,61228,11],[61228,12,61228,13],[61228,14,61228,15],[61166,2,61166,3],[61166,4,61166,5],[61248,6,61248,7],[61248,8,61248,9],[61166,10,61166,11],[61166,12,61166,13],[61166,6,61166,7],[61166,8,61166,9],[61248,10,61248,11],[61248,12,61248,13],[61248,14,61248,15],[61310,2,61310,3],[61310,4,61310,5],[61310,6,61310,7],[61310,8,61310,9],[61310,10,61310,11],[61310,12,61310,13],[61310,14,61310,15],[61248,2,61248,3],[61248,4,61248,5],[61330,14,61330,15],[61392,2,61392,3],[61392,4,61392,5],[61392,6,61392,7],[61392,8,61392,9],[61392,10,61392,11],[61392,12,61392,13],[61392,14,61392,15],[61330,2,61330,3],[61330,4,61330,5],[60982,2,60982,3],[60982,4,60982,5],[60982,6,60982,7],[60982,8,60982,9],[60982,10,60982,11],[60982,12,60982,13],[60982,14,60982,15],[60920,2,60920,3],[60920,4,60920,5],[61002,14,61002,15],[61064,2,61064,3],[61064,4,61064,5],[61064,6,61064,7],[61064,8,61064,9],[61064,10,61064,11],[61064,12,61064,13],[61064,14,61064,15],[61002,2,61002,3],[61002,4,61002,5],[61084,6,61084,7],[61084,8,61084,9],[61002,10,61002,11],[61002,12,61002,13],[61002,6,61002,7],[61002,8,61002,9],[61084,10,61084,11],[61084,12,61084,13],[61084,14,61084,15],[61146,2,61146,3],[61146,4,61146,5],[61146,6,61146,7],[61146,8,61146,9],[61146,10,61146,11],[61146,12,61146,13],[61146,14,61146,15],[61084,2,61084,3],[61084,4,61084,5],[60756,6,60756,7],[60756,8,60756,9],[60674,10,60674,11],[60674,12,60674,13],[60674,6,60674,7],[60674,8,60674,9],[60756,10,60756,11],[60756,12,60756,13],[60756,14,60756,15],[60818,2,60818,3],[60818,4,60818,5],[60818,6,60818,7],[60818,8,60818,9],[60818,10,60818,11],[60818,12,60818,13],[60818,14,60818,15],[60756,2,60756,3],[60756,4,60756,5],[60838,14,60838,15],[60900,2,60900,3],[60900,4,60900,5],[60900,6,60900,7],[60900,8,60900,9],[60900,10,60900,11],[60900,12,60900,13],[60900,14,60900,15],[60838,2,60838,3],[60838,4,60838,5],[60920,6,60920,7],[60920,8,60920,9],[60838,10,60838,11],[60838,12,60838,13],[60838,6,60838,7],[60838,8,60838,9],[60920,10,60920,11],[60920,12,60920,13],[60920,14,60920,15],[60510,14,60510,15],[60572,2,60572,3],[60572,4,60572,5],[60572,6,60572,7],[60572,8,60572,9],[60572,10,60572,11],[60572,12,60572,13],[60572,14,60572,15],[60510,2,60510,3],[60510,4,60510,5],[60592,6,60592,7],[60592,8,60592,9],[60510,10,60510,11],[60510,12,60510,13],[60510,6,60510,7],[60510,8,60510,9],[60592,10,60592,11],[60592,12,60592,13],[60592,14,60592,15],[60654,2,60654,3],[60654,4,60654,5],[60654,6,60654,7],[60654,8,60654,9],[60654,10,60654,11],[60654,12,60654,13],[60654,14,60654,15],[60592,2,60592,3],[60592,4,60592,5],[60674,14,60674,15],[60736,2,60736,3],[60736,4,60736,5],[60736,6,60736,7],[60736,8,60736,9],[60736,10,60736,11],[60736,12,60736,13],[60736,14,60736,15],[60674,2,60674,3],[60674,4,60674,5],[60326,2,60326,3],[60326,4,60326,5],[60326,6,60326,7],[60326,8,60326,9],[60326,10,60326,11],[60326,12,60326,13],[60326,14,60326,15],[60264,2,60264,3],[60264,4,60264,5],[60346,14,60346,15],[60408,2,60408,3],[60408,4,60408,5],[60408,6,60408,7],[60408,8,60408,9],[60408,10,60408,11],[60408,12,60408,13],[60408,14,60408,15],[60346,2,60346,3],[60346,4,60346,5],[60428,6,60428,7],[60428,8,60428,9],[60346,10,60346,11],[60346,12,60346,13],[60346,6,60346,7],[60346,8,60346,9],[60428,10,60428,11],[60428,12,60428,13],[60428,14,60428,15],[60490,2,60490,3],[60490,4,60490,5],[60490,6,60490,7],[60490,8,60490,9],[60490,10,60490,11],[60490,12,60490,13],[60490,14,60490,15],[60428,2,60428,3],[60428,4,60428,5],[60100,6,60100,7],[60100,8,60100,9],[60018,10,60018,11],[60018,12,60018,13],[60018,6,60018,7],[60018,8,60018,9],[60100,10,60100,11],[60100,12,60100,13],[60100,14,60100,15],[60162,2,60162,3],[60162,4,60162,5],[60162,6,60162,7],[60162,8,60162,9],[60162,10,60162,11],[60162,12,60162,13],[60162,14,60162,15],[60100,2,60100,3],[60100,4,60100,5],[60182,14,60182,15],[60244,2,60244,3],[60244,4,60244,5],[60244,6,60244,7],[60244,8,60244,9],[60244,10,60244,11],[60244,12,60244,13],[60244,14,60244,15],[60182,2,60182,3],[60182,4,60182,5],[60264,6,60264,7],[60264,8,60264,9],[60182,10,60182,11],[60182,12,60182,13],[60182,6,60182,7],[60182,8,60182,9],[60264,10,60264,11],[60264,12,60264,13],[60264,14,60264,15],[59854,14,59854,15],[59916,2,59916,3],[59916,4,59916,5],[59916,6,59916,7],[59916,8,59916,9],[59916,10,59916,11],[59916,12,59916,13],[59916,14,59916,15],[59854,2,59854,3],[59854,4,59854,5],[59936,6,59936,7],[59936,8,59936,9],[59854,10,59854,11],[59854,12,59854,13],[59854,6,59854,7],[59854,8,59854,9],[59936,10,59936,11],[59936,12,59936,13],[59936,14,59936,15],[59998,2,59998,3],[59998,4,59998,5],[59998,6,59998,7],[59998,8,59998,9],[59998,10,59998,11],[59998,12,59998,13],[59998,14,59998,15],[59936,2,59936,3],[59936,4,59936,5],[60018,14,60018,15],[60080,2,60080,3],[60080,4,60080,5],[60080,6,60080,7],[60080,8,60080,9],[60080,10,60080,11],[60080,12,60080,13],[60080,14,60080,15],[60018,2,60018,3],[60018,4,60018,5],[59670,2,59670,3],[59670,4,59670,5],[59670,6,59670,7],[59670,8,59670,9],[59670,10,59670,11],[59670,12,59670,13],[59670,14,59670,15],[59608,2,59608,3],[59608,4,59608,5],[59690,14,59690,15],[59752,2,59752,3],[59752,4,59752,5],[59752,6,59752,7],[59752,8,59752,9],[59752,10,59752,11],[59752,12,59752,13],[59752,14,59752,15],[59690,2,59690,3],[59690,4,59690,5],[59772,6,59772,7],[59772,8,59772,9],[59690,10,59690,11],[59690,12,59690,13],[59690,6,59690,7],[59690,8,59690,9],[59772,10,59772,11],[59772,12,59772,13],[59772,14,59772,15],[59834,2,59834,3],[59834,4,59834,5],[59834,6,59834,7],[59834,8,59834,9],[59834,10,59834,11],[59834,12,59834,13],[59834,14,59834,15],[59772,2,59772,3],[59772,4,59772,5],[59444,6,59444,7],[59444,8,59444,9],[59362,10,59362,11],[59362,12,59362,13],[59362,6,59362,7],[59362,8,59362,9],[59444,10,59444,11],[59444,12,59444,13],[59444,14,59444,15],[59506,2,59506,3],[59506,4,59506,5],[59506,6,59506,7],[59506,8,59506,9],[59506,10,59506,11],[59506,12,59506,13],[59506,14,59506,15],[59444,2,59444,3],[59444,4,59444,5],[59526,14,59526,15],[59588,2,59588,3],[59588,4,59588,5],[59588,6,59588,7],[59588,8,59588,9],[59588,10,59588,11],[59588,12,59588,13],[59588,14,59588,15],[59526,2,59526,3],[59526,4,59526,5],[59608,6,59608,7],[59608,8,59608,9],[59526,10,59526,11],[59526,12,59526,13],[59526,6,59526,7],[59526,8,59526,9],[59608,10,59608,11],[59608,12,59608,13],[59608,14,59608,15],[59198,14,59198,15],[59260,2,59260,3],[59260,4,59260,5],[59260,6,59260,7],[59260,8,59260,9],[59260,10,59260,11],[59260,12,59260,13],[59260,14,59260,15],[59198,2,59198,3],[59198,4,59198,5],[59280,6,59280,7],[59280,8,59280,9],[59198,10,59198,11],[59198,12,59198,13],[59198,6,59198,7],[59198,8,59198,9],[59280,10,59280,11],[59280,12,59280,13],[59280,14,59280,15],[59342,2,59342,3],[59342,4,59342,5],[59342,6,59342,7],[59342,8,59342,9]],"merged_total":58630,"flags":["merged_cut"]}
[null,"B01001. GENDER BY AGE"]
[null,"Universe:  TOTAL POPULATION"]
[null,"Data Set: 2015-2019 American Community Survey 5-Year Estimates"]
[]
[null,null,"Atkinson",null,"Auburn",null,"Brentwood",null,"Candia",null,"Chester",null,"Danville",null,"Deerfield",null,"Derry",null,"East Kingston",null,"Epping",null,"Exeter",null,"Fremont",null,"Greenland",null,"Hampstead",null,"Hampton",null,"Hampton Falls",null,"Kensington",null,"Kingston",null,"Londonderry",null,"New Castle",null,"Newfields",null,"Newington",null,"Newmarket",null,"Newton",null,"North Hampton",null,"Northwood",null,"Nottingham",null,"Plaistow",null,"Portsmouth",null,"Raymond",null,"Rye",null,"Salem",null,"Sandown",null,"Seabrook",null,"South Hampton",null,"Stratham",null,"Windham"]
[null,null,"Estimate","Margin Of Error","Estimate","Margin Of Error","Estimate","Margin Of Error","Estimate","Margin Of Error","Estimate","Margin Of Error","Estimate","Margin Of Error","Estimate","Margin Of Error","Estimate","Margin Of Error","Estimate","Margin Of Error","Estimate","Margin Of Error","Estimate","Margin Of Error","Estimate","Margin Of Error","Estimate","Margin Of Error","Estimate","Margin Of Error","Estimate","Margin Of Error","Estimate","Margin Of Error","Estimate","Margin Of Error","Estimate","Margin Of Error","Estimate","Margin Of Error","Estimate","Margin Of Error","Estimate","Margin Of Error","Estimate","Margin Of Error","Estimate","Margin Of Error","Estimate","Margin Of Error","Estimate","Margin Of Error","Estimate","Margin Of Error","Estimate","Margin Of Error","Estimate","Margin Of Error","Estimate","Margin Of Error","Estimate","Margin Of Error","Estimate","Margin Of Error","Estimate","Margin Of Error","Estimate","Margin Of Error","Estimate","Margin Of Error","Estimate","Margin Of Error","Estimate","Margin Of Error","Estimate","Margin Of Error"]
[null,"Total:",6952,33,5446,21,4612,33,3936,18,5129,26,4515,29,4476,31,33448,33,2442,194,6966,22,15077,30,4677,25,4009,19,8621,20,15467,18,2383,164,2291,139,6260,29,25927,34,835,178,1757,227,713,89,9063,22,4920,22,4457,17,4299,18,5058,23,7689,26,21775,26,10428,23,5466,31,29234,32,6389,17,8830,26,775,94,7427,21,14610,19]
[null,"Male:",3495,246,2769,154,2425,120,2075,136,2559,150,2318,114,2181,105,16655,532,1231,151,3522,207,6903,325,2315,139,1928,111,4141,247,7583,271,1287,105,1165,82,3315,286,12738,290,379,101,811,111,371,61,4657,275,2553,179,2102,122,1971,168,2328,125,3609,274,10706,345,5176,302,2888,210,14824,421,3128,242,4293,197,373,49,3833,250,7237,321]
[null,"Under 5 years",163,117,196,72,130,72,88,46,134,61,77,64,111,65,906,251,37,22,218,112,330,127,139,83,100,53,135,76,284,122,31,21,86,30,145,126,724,147,0,11,32,22,22,17,179,90,85,53,31,29,58,45,123,66,151,94,377,128,297,122,78,61,876,229,170,95,94,64,12,8,230,101,410,143]
[null,"5 to 9 years",163,91,182,71,191,65,69,59,195,94,74,44,107,45,942,248,57,30,370,179,389,102,174,94,137,51,148,73,241,92,101,48,35,18,142,99,806,174,0,11,41,25,12,8,167,98,61,38,91,60,123,48,124,58,84,67,488,140,389,123,162,79,836,181,112,97,247,109,3,4,266,88,433,133]
[null,"10 to 14 years",159,99,102,47,186,69,159,84,190,65,219,69,145,65,1143,199,67,31,166,108,434,134,94,44,104,50,352,111,431,104,93,35,101,56,184,92,913,178,16,17,51,23,12,10,334,149,214,73,64,63,104,65,128,72,208,102,419,118,352,135,106,77,631,159,264,111,191,87,24,12,329,111,633,168]
[null,"15 to 17 years",282,117,107,69,124,54,39,57,81,40,134,87,107,76,792,168,138,85,43,45,251,93,29,37,45,25,241,120,255,78,36,22,40,17,121,91,706,135,42,41,22,14,6,7,149,73,86,44,73,45,35,33,59,56,170,98,298,95,117,78,96,61,484,142,202,136,131,85,22,16,232,115,346,133]
[null,"18 and 19 years",49,53,26,26,13,21,23,25,59,51,70,50,53,37,567,191,12,19,138,108,103,51,93,75,37,36,44,34,142,89,0,11,15,11,27,39,354,111,3,5,24,17,2,4,65,56,126,78,91,60,35,32,73,50,54,50,213,92,47,45,17,27,451,152,37,42,91,78,15,11,128,89,96,103]
[null,"20 years",100,97,65,60,0,11,29,30,26,28,22,25,0,11,201,108,0,11,15,23,64,55,35,31,8,15,15,17,63,54,20,28,7,7,43,50,270,72,0,11,0,11,0,11,16,24,24,27,8,13,16,24,20,22,20,29,113,100,95,81,36,39,94,73,36,40,41,34,3,4,21,33,18,31]
[null,"21 years",20,30,21,23,13,18,26,29,77,87,25,40,21,21,117,63,4,6,19,29,38,42,11,17,4,11,40,31,54,42,0,11,3,6,27,41,189,74,0,11,8,8,7,7,0,16,74,65,6,10,10,15,10,15,18,28,40,49,50,64,17,28,154,103,75,67,0,16,0,11,0,16,160,136]
[null,"22 to 24 years",185,83,80,67,76,40,74,48,103,69,114,64,51,33,675,207,30,33,42,43,234,149,20,22,83,58,210,80,290,116,68,43,65,35,208,157,342,94,4,5,16,13,37,35,481,234,97,58,36,31,34,33,40,28,180,100,713,168,204,116,51,47,753,228,225,125,98,66,6,6,21,33,165,100]
[null,"25 to 29 years",42,43,180,89,165,79,56,40,117,51,71,54,119,49,1086,256,53,38,87,51,264,131,147,66,74,44,287,111,427,143,124,44,74,25,447,154,532,133,5,7,26,19,3,5,540,159,139,64,92,74,93,51,114,74,390,182,1167,209,237,126,93,65,1241,289,118,72,238,128,27,16,84,68,314,129]
[null,"30 to 34 years",133,81,79,42,102,62,127,67,139,55,48,35,205,74,834,173,79,41,453,179,419,144,76,44,69,45,223,92,265,101,36,24,47,20,102,105,669,163,21,23,31,17,8,7,334,92,155,65,120,56,144,67,144,62,257,133,1112,196,452,138,192,174,983,246,248,95,192,77,16,13,252,145,312,133]
[null,"35 to 39 years",184,86,217,61,185,72,77,55,135,57,158,74,89,45,1091,224,28,18,211,106,388,117,91,55,108,52,210,116,264,89,45,23,54,17,79,75,855,156,0,11,37,17,7,6,497,137,155,59,117,53,161,64,124,51,237,119,654,157,239,94,78,42,838,173,75,65,223,100,11,8,246,115,363,153]
[null,"40 to 44 years",159,93,183,72,157,63,141,66,129,76,211,84,48,34,1288,253,72,27,241,126,302,116,191,65,157,53,201,69,419,96,53,25,40,20,164,83,883,194,0,11,57,26,10,8,168,89,76,42,100,53,121,69,217,83,186,92,711,151,328,96,157,116,757,173,162,110,295,111,31,18,173,83,525,113]
[null,"45 to 49 years",258,119,194,76,224,59,124,60,160,62,182,71,224,79,927,200,93,33,208,124,644,145,262,77,174,72,229,94,630,169,88,32,74,25,169,87,927,150,17,18,83,28,21,16,349,102,337,104,144,68,225,87,176,78,250,115,715,161,265,109,268,123,941,195,290,123,340,141,29,12,277,110,724,177]
[null,"50 to 54 years",331,121,216,84,289,98,99,48,296,85,272,81,101,47,1562,266,89,40,280,116,737,162,176,65,101,48,255,99,595,158,83,32,70,22,471,166,1044,174,23,17,100,40,42,17,345,119,225,80,187,67,94,43,301,108,299,116,731,159,391,141,182,102,1060,183,273,120,264,99,30,13,294,108,678,159]
[null,"55 to 59 years",346,122,341,101,207,65,240,82,267,88,215,89,323,89,1487,237,122,37,239,111,466,118,192,69,177,85,412,116,763,166,168,67,93,24,212,127,967,145,45,33,95,31,47,15,261,94,125,49,223,67,219,72,236,70,293,126,747,141,753,175,431,123,1375,216,318,123,394,133,20,10,315,116,616,176]
[null,"60 and 61 years",94,66,47,29,93,63,151,62,66,36,55,43,51,39,507,152,61,34,30,34,180,78,125,52,93,46,170,86,326,107,106,48,49,21,74,49,360,106,36,27,28,18,18,11,102,58,115,59,71,41,34,28,45,34,78,55,225,93,103,84,50,46,470,145,58,55,224,101,21,16,176,94,130,69]
[null,"62 to 64 years",188,98,127,52,20,22,135,53,53,38,75,42,90,50,695,179,72,29,131,95,317,162,77,40,96,44,127,57,406,100,32,18,79,28,130,79,606,148,21,20,31,26,34,23,48,45,64,29,166,80,121,56,43,31,155,91,365,97,175,92,152,81,517,167,150,77,230,87,9,8,202,97,299,113]
[null,"65 and 66 years",89,64,79,52,55,34,57,38,82,39,61,37,46,27,294,86,19,15,145,96,200,78,28,29,90,36,132,57,244,85,37,32,80,26,36,44,204,70,21,17,24,15,12,8,110,62,70,55,71,34,46,39,77,41,124,67,217,78,161,69,129,89,390,118,48,48,202,93,13,7,58,43,130,77]
[null,"67 to 69 years",130,66,147,52,41,30,94,43,95,41,76,52,62,32,467,124,29,18,103,78,159,61,73,39,84,40,222,76,342,82,54,28,47,20,158,96,503,130,31,21,18,12,13,9,124,65,110,51,89,55,72,44,45,28,26,32,300,104,187,70,139,75,509,120,100,48,261,98,29,13,142,89,267,119]
[null,"70 to 74 years",193,94,125,48,46,29,107,47,109,73,65,32,113,50,538,118,77,25,249,108,231,82,54,47,68,31,168,65,460,100,51,25,35,18,145,54,417,110,31,26,35,23,20,9,158,56,113,44,178,60,95,49,75,41,177,77,490,110,156,66,216,101,647,173,80,51,247,87,21,10,159,74,175,78]
[null,"75 to 79 years",79,55,35,24,41,29,46,35,46,28,53,36,26,19,310,127,28,16,83,69,269,108,128,52,37,27,149,66,380,109,28,14,48,24,142,76,297,120,18,12,20,16,18,9,82,71,69,53,72,49,58,47,134,72,90,85,287,92,82,66,110,70,285,93,41,38,185,73,13,15,103,72,160,76]
[null,"80 to 84 years",110,79,0,16,39,33,38,30,0,16,9,13,26,23,169,77,44,20,0,16,183,77,43,30,27,24,127,83,199,78,33,20,13,9,43,50,77,49,27,23,24,24,8,9,106,72,20,21,37,29,29,27,10,16,75,55,175,85,68,49,60,54,234,96,18,21,80,60,14,7,84,57,138,74]
[null,"85 years and over",38,36,20,22,28,28,76,67,0,16,32,28,63,68,57,40,20,28,51,46,301,105,57,57,55,40,44,47,103,79,0,11,10,9,46,44,93,47,18,21,8,9,12,19,42,37,13,20,35,29,44,42,10,17,87,77,149,84,28,36,68,47,298,127,28,36,25,23,4,5,41,32,145,90]
[null,"Female:",3457,247,2677,155,2187,126,1861,135,2570,151,2197,113,2295,108,16793,531,1211,95,3444,210,8174,322,2362,143,2081,108,4480,250,7884,273,1096,100,1126,96,2945,286,13189,287,456,101,946,135,342,48,4406,280,2367,177,2355,120,2328,165,2730,124,4080,272,11069,347,5252,298,2578,208,14410,426,3261,239,4537,195,402,60,3594,250,7373,322]
[null,"Under 5 years",112,65,146,75,145,69,92,65,131,59,67,50,74,40,724,159,11,12,220,109,315,123,119,59,63,35,244,105,123,65,33,20,74,24,75,72,661,139,18,28,50,40,6,7,252,110,118,52,72,44,82,59,158,72,130,74,432,118,277,120,96,69,597,193,216,112,129,77,7,7,95,70,534,134]
[null,"5 to 9 years",198,158,109,69,125,53,50,38,169,82,116,61,91,68,1050,204,58,29,226,99,360,96,103,53,237,71,178,104,411,140,39,20,37,16,247,161,585,139,8,9,76,39,13,11,196,95,109,45,135,74,141,61,148,72,290,129,602,161,167,75,124,75,602,162,270,187,293,98,17,12,137,75,605,176]
[null,"10 to 14 years",237,139,136,61,101,52,63,57,113,54,134,66,86,42,716,206,99,41,59,44,524,121,168,72,160,77,381,110,446,121,82,28,57,23,109,85,793,156,21,19,81,29,8,7,192,88,165,69,211,100,132,54,177,66,207,123,446,110,347,154,88,58,596,177,118,99,177,104,29,20,267,96,749,178]
[null,"15 to 17 years",71,56,135,53,119,66,91,48,82,45,127,58,166,74,833,194,60,32,60,49,250,91,79,47,94,59,159,94,227,94,20,24,41,25,139,92,703,118,23,24,75,36,9,9,94,91,69,52,123,55,68,44,198,84,151,95,264,81,346,147,29,31,493,125,41,44,36,35,19,11,97,91,232,93]
[null,"18 and 19 years",98,114,63,55,15,25,15,24,68,44,39,37,53,38,293,159,31,20,37,60,215,87,25,27,32,34,82,58,152,108,35,32,35,25,28,46,238,100,4,6,29,20,3,6,0,16,0,11,15,25,55,57,88,55,88,85,188,99,61,60,39,43,470,218,124,113,58,57,3,6,43,70,32,40]
[null,"20 years",24,35,46,62,14,22,56,56,34,29,9,13,36,33,322,155,6,9,0,16,50,46,11,18,5,11,38,44,41,40,0,11,11,9,42,52,228,125,0,11,0,11,0,11,14,21,26,29,9,15,123,75,0,16,38,43,71,72,10,18,15,25,129,73,19,34,29,33,3,4,0,16,42,49]
[null,"21 years",0,16,8,13,0,11,0,11,79,57,58,59,23,23,260,138,28,24,37,41,29,32,25,31,0,11,9,14,48,37,0,11,9,8,0,16,144,86,0,11,5,8,2,5,57,56,0,11,0,11,11,18,0,16,48,56,56,46,117,73,0,16,90,54,0,16,0,16,2,5,106,97,29,34]
[null,"22 to 24 years",78,61,78,58,31,36,120,64,108,81,68,61,89,58,784,195,46,36,63,49,145,95,82,46,59,58,175,91,250,111,29,35,21,20,154,125,505,127,0,11,9,10,5,6,462,203,89,56,62,41,106,98,22,25,113,98,396,137,149,91,36,45,496,165,142,80,133,90,16,10,52,51,170,123]
[null,"25 to 29 years",160,85,156,66,54,42,43,35,165,86,68,59,182,74,1035,193,55,25,157,107,580,199,146,66,17,19,269,111,388,131,67,69,42,19,215,107,506,133,0,11,19,14,16,12,468,155,122,65,72,43,102,47,108,59,298,125,1053,225,240,95,68,55,948,193,226,107,193,119,28,17,154,123,155,99]
[null,"30 to 34 years",126,81,109,77,135,63,108,60,88,43,104,45,186,70,1270,242,31,22,369,140,472,116,105,61,136,51,174,96,212,107,55,30,57,21,150,121,776,162,24,24,46,23,11,9,282,97,184,82,43,29,121,57,126,58,244,150,1059,179,430,117,15,23,853,198,164,90,275,99,6,6,188,76,206,105]
[null,"35 to 39 years",164,73,238,64,124,67,51,37,79,51,136,85,93,61,1045,184,32,22,348,126,314,90,124,57,98,40,294,97,379,93,50,26,51,18,133,84,838,161,0,11,49,26,7,7,319,86,176,85,169,64,132,71,192,67,394,147,773,159,233,87,201,121,808,159,208,111,160,96,23,10,214,107,390,150]
[null,"40 to 44 years",113,77,121,57,148,61,159,63,179,67,198,62,88,45,905,216,77,24,151,83,566,134,154,56,173,51,186,67,395,97,72,29,51,24,111,84,739,158,4,7,57,31,17,14,205,84,217,83,106,48,207,64,216,80,117,75,751,152,297,101,59,53,752,166,205,97,280,111,24,11,214,84,747,144]
[null,"45 to 49 years",345,144,199,84,197,63,73,42,228,89,307,82,176,77,1417,212,140,37,216,98,527,113,242,84,118,56,386,108,567,142,132,36,102,45,229,101,1001,161,14,13,93,32,19,11,269,97,210,76,117,54,92,57,191,75,265,117,572,111,229,115,162,86,1245,251,152,76,437,138,35,19,309,112,525,165]
[null,"50 to 54 years",422,119,277,82,243,89,168,70,227,75,204,64,222,71,1323,245,114,35,324,122,566,136,204,80,234,82,173,60,645,135,69,29,127,39,396,153,1369,218,39,27,84,26,40,19,244,100,203,79,187,81,175,60,271,81,347,124,732,171,520,158,207,98,998,182,356,129,254,97,30,13,345,109,799,177]
[null,"55 to 59 years",350,120,267,79,157,62,211,57,321,91,120,48,224,68,1551,252,81,33,307,130,661,136,206,67,152,47,409,133,840,185,130,37,55,17,262,120,1120,175,50,32,87,27,41,15,274,99,186,74,273,86,260,66,175,68,453,173,762,185,743,183,441,126,1213,213,343,111,384,127,33,14,498,128,543,150]
[null,"60 and 61 years",86,53,95,50,65,37,174,63,72,42,58,52,85,52,494,121,45,17,58,70,194,83,58,38,68,35,180,68,217,71,25,18,66,25,56,53,348,80,16,19,48,25,16,9,191,86,60,38,75,38,35,29,43,30,75,62,318,120,178,84,80,58,363,112,64,49,222,121,15,7,121,77,147,77]
[null,"62 to 64 years",137,76,145,63,83,41,111,59,123,49,127,65,83,59,560,160,61,35,165,79,300,111,84,40,70,40,303,110,515,119,90,36,72,24,93,75,558,101,52,34,28,17,27,21,199,75,70,42,83,49,85,57,140,56,136,81,433,118,175,78,86,65,640,142,140,69,188,87,17,9,124,62,302,124]
[null,"65 and 66 years",97,60,71,41,23,19,40,28,29,23,39,29,62,36,363,110,13,11,117,67,230,102,45,31,61,33,89,50,258,75,49,26,64,20,53,40,343,114,28,21,6,8,25,13,101,44,76,43,81,58,42,29,50,30,139,94,220,71,118,58,125,68,454,113,33,33,213,75,10,10,133,75,198,98]
[null,"67 to 69 years",214,96,63,34,90,63,94,42,72,35,37,26,90,42,462,130,56,19,183,120,262,103,99,50,74,34,144,60,340,79,53,27,14,11,117,91,533,127,48,30,42,24,16,11,172,73,125,53,92,58,127,53,130,48,113,65,522,149,183,81,164,86,481,119,126,78,164,74,23,14,58,52,230,88]
[null,"70 to 74 years",179,89,84,37,64,33,65,36,102,67,101,48,79,35,612,162,68,26,170,83,434,110,91,47,92,37,266,93,603,152,41,19,59,21,179,71,472,89,31,23,13,11,18,11,200,66,55,25,186,68,81,57,160,79,111,56,509,112,174,72,228,112,674,132,85,59,265,92,18,9,219,86,182,77]
[null,"75 to 79 years",98,50,64,42,81,45,28,33,28,23,30,25,42,34,383,135,59,26,84,64,377,156,92,48,60,37,207,117,415,102,18,15,33,14,46,42,346,113,36,24,31,25,11,10,35,29,28,26,136,64,85,56,74,47,139,84,366,109,118,53,63,54,508,172,120,101,332,122,11,7,75,58,252,119]
[null,"80 to 84 years",67,47,25,27,87,40,32,29,19,20,20,21,47,31,195,77,40,25,52,50,336,118,26,27,54,41,67,42,204,63,5,9,28,21,90,71,225,96,19,19,6,6,10,8,23,25,42,38,20,21,20,21,31,40,92,67,302,101,79,49,125,106,431,134,18,22,163,67,21,15,42,45,148,85]
[null,"85 years and over",81,48,42,34,86,47,17,19,54,46,30,27,18,23,196,85,0,11,41,44,467,135,74,65,24,36,67,60,208,88,2,5,20,11,21,34,158,82,21,23,12,10,22,21,157,93,37,47,88,53,46,44,32,41,92,93,242,98,61,48,127,84,569,155,91,91,152,106,12,8,103,68,156,105]
[]
[]
[]
[]
[]
[]
[]
[]
[]
[]
[]
[]
[]
[null,"Calculated B01001. GENDER BY AGE"]
[null,"Universe:  TOTAL POPULATION"]
[null,"Data Set: 2015-2019 American Community Survey 5-Year Estimates"]
[]
[null,null,"Atkinson",null,"Auburn",null,"Brentwood",null,"Candia",null,"Chester",null,"Danville",null,"Deerfield",null,"Derry",null,"East Kingston",null,"Epping",null,"Exeter",null,"Fremont",null,"Greenland",null,"Hampstead",null,"Hampton",null,"Hampton Falls",null,"Kensington",null,"Kingston",null,"Londonderry",null,"New Castle",null,"Newfields",null,"Newington",null,"Newmarket",null,"Newton",null,"North Hampton",null,"Northwood",null,"Nottingham",null,"Plaistow",null,"Portsmouth",null,"Raymond",null,"Rye",null,"Salem",null,"Sandown",null,"Seabrook",null,"South Hampton",null,"Stratham",null,"Windham"]
[null,null,"Estimate","Margin Of Error","Estimate","Margin Of Error","Estimate","Margin Of Error","Estimate","Margin Of Error","Estimate","Margin Of Error","Estimate","Margin Of Error","Estimate","Margin Of Error","Estimate","Margin Of Error","Estimate","Margin Of Error","Estimate","Margin Of Error","Estimate","Margin Of Error","Estimate","Margin Of Error","Estimate","Margin Of Error","Estimate","Margin Of Error","Estimate","Margin Of Error","Estimate","Margin Of Error","Estimate","Margin Of Error","Estimate","Margin Of Error","Estimate","Margin Of Error","Estimate","Margin Of Error","Estimate","Margin Of Error","Estimate","Margin Of Error","Estimate","Margin Of Error","Estimate","Margin Of Error","Estimate","Margin Of Error","Estimate","Margin Of Error","Estimate","Margin Of Error","Estimate","Margin Of Error","Estimate","Margin Of Error","Estimate","Margin Of Error","Estimate","Margin Of Error","Estimate","Margin Of Error","Estimate","Margin Of Error","Estimate","Margin Of Error","Estimate","Margin Of Error","Estimate","Margin Of Error","Estimate","Margin Of Error"]
[null,"Total",{"$f":"C7","v":6952},33,5446,21,4612,33,3936,18,5129,26,4515,29,4476,31,33448,33,2442,194,6966,22,15077,30,{"$f":"Y7","v":4677},25,4009,19,8621,20,15467,18,2383,164,2291,139,6260,29,25927,34,{"$f":"AO7","v":835},178,1757,227,713,89,9063,22,4920,22,4457,17,{"$f":"BA7","v":4299},18,5058,23,7689,26,{"$f":"BG7","v":21775},26,10428,23,5466,31,29234,32,6389,17,8830,26,775,94,7427,21,14610,19]
[null,"Under 15 yrs.",{"$f":"C9+C10+C11+C33+C34+C35","v":1032},{"$f":"SQRT((D9^2)+(D10^2)+(D11^2)+(D33^2)+(D34^2)+(D35^2))","v":283.33901955078477},{"$f":"E9+E10+E11+E33+E34+E35","v":871},{"$f":"SQRT((F9^2)+(F10^2)+(F11^2)+(F33^2)+(F34^2)+(F35^2))","v":162.91408778862558},{"$f":"G9+G10+G11+G33+G34+G35","v":878},{"$f":"SQRT((H9^2)+(H10^2)+(H11^2)+(H33^2)+(H34^2)+(H35^2))","v":156.34577064954459},{"$f":"I9+I10+I11+I33+I34+I35","v":521},{"$f":"SQRT((J9^2)+(J10^2)+(J11^2)+(J33^2)+(J34^2)+(J35^2))","v":146.87069142616576},{"$f":"K9+K10+K11+K33+K34+K35","v":932},{"$f":"SQRT((L9^2)+(L10^2)+(L11^2)+(L33^2)+(L34^2)+(L35^2))","v":172.92483916430282},{"$f":"M9+M10+M11+M33+M34+M35","v":687},{"$f":"SQRT((N9^2)+(N10^2)+(N11^2)+(N33^2)+(N34^2)+(N35^2))","v":146.18481453283715},{"$f":"O9+O10+O11+O33+O34+O35","v":614},{"$f":"SQRT((P9^2)+(P10^2)+(P11^2)+(P33^2)+(P34^2)+(P35^2))","v":135.87862230682205},{"$f":"Q9+Q10+Q11+Q33+Q34+Q35","v":5481},{"$f":"SQRT((R9^2)+(R10^2)+(R11^2)+(R33^2)+(R34^2)+(R35^2))","v":522.91395085616136},{"$f":"S9+S10+S11+S33+S34+S35","v":329},{"$f":"SQRT((T9^2)+(T10^2)+(T11^2)+(T33^2)+(T34^2)+(T35^2))","v":70.78841713161836},{"$f":"U9+U10+U11+U33+U34+U35","v":1259},{"$f":"SQRT((V9^2)+(V10^2)+(V11^2)+(V33^2)+(V34^2)+(V35^2))","v":282.6075016697186},{"$f":"W9+W10+W11+W33+W34+W35","v":2352},{"$f":"SQRT((X9^2)+(X10^2)+(X11^2)+(X33^2)+(X34^2)+(X35^2))","v":288.92040426387337},{"$f":"Y9+Y10+Y11+Y33+Y34+Y35","v":797},{"$f":"SQRT((Z9^2)+(Z10^2)+(Z11^2)+(Z33^2)+(Z34^2)+(Z35^2))","v":170.68977708111285},{"$f":"AA9+AA10+AA11+AA33+AA34+AA35","v":801},{"$f":"SQRT((AB9^2)+(AB10^2)+(AB11^2)+(AB33^2)+(AB34^2)+(AB35^2))","v":141.79210133149166},{"$f":"AC9+AC10+AC11+AC33+AC34+AC35","v":1438},{"$f":"SQRT((AD9^2)+(AD10^2)+(AD11^2)+(AD33^2)+(AD34^2)+(AD35^2))","v":239.51409144348898},{"$f":"AE9+AE10+AE11+AE33+AE34+AE35","v":1936},{"$f":"SQRT((AF9^2)+(AF10^2)+(AF11^2)+(AF33^2)+(AF34^2)+(AF35^2))","v":269.49953617770848},{"$f":"AG9+AG10+AG11+AG33+AG34+AG35","v":379},{"$f":"SQRT((AH9^2)+(AH10^2)+(AH11^2)+(AH33^2)+(AH34^2)+(AH35^2))","v":74.525163535546838},{"$f":"AI9+AI10+AI11+AI33+AI34+AI35","v":390},{"$f":"SQRT((AJ9^2)+(AJ10^2)+(AJ11^2)+(AJ33^2)+(AJ34^2)+(AJ35^2))","v":75.637292389402731},{"$f":"AK9+AK10+AK11+AK33+AK34+AK35","v":902},{"$f":"SQRT((AL9^2)+(AL10^2)+(AL11^2)+(AL33^2)+(AL34^2)+(AL35^2))","v":269.20438332241173},{"$f":"AM9+AM10+AM11+AM33+AM34+AM35","v":4482},{"$f":"SQRT((AN9^2)+(AN10^2)+(AN11^2)+(AN33^2)+(AN34^2)+(AN35^2))","v":382.81457652498028},{"$f":"AO9+AO10+AO11+AO33+AO34+AO35","v":63},{"$f":"SQRT((AP9^2)+(AP10^2)+(AP11^2)+(AP33^2)+(AP34^2)+(AP35^2))","v":41.916583830269374},{"$f":"AQ9+AQ10+AQ11+AQ33+AQ34+AQ35","v":331},{"$f":"SQRT((AR9^2)+(AR10^2)+(AR11^2)+(AR33^2)+(AR34^2)+(AR35^2))","v":74.833147735478832},{"$f":"AS9+AS10+AS11+AS33+AS34+AS35","v":73},{"$f":"SQRT((AT9^2)+(AT10^2)+(AT11^2)+(AT33^2)+(AT34^2)+(AT35^2))","v":25.922962793631442},{"$f":"AU9+AU10+AU11+AU33+AU34+AU35","v":1320},{"$f":"SQRT((AV9^2)+(AV10^2)+(AV11^2)+(AV33^2)+(AV34^2)+(AV35^2))","v":262.24797425337721},{"$f":"AW9+AW10+AW11+AW33+AW34+AW35","v":752},{"$f":"SQRT((AX9^2)+(AX10^2)+(AX11^2)+(AX33^2)+(AX34^2)+(AX35^2))","v":138.10141201305655},{"$f":"AY9+AY10+AY11+AY33+AY34+AY35","v":604},{"$f":"SQRT((AZ9^2)+(AZ10^2)+(AZ11^2)+(AZ33^2)+(AZ34^2)+(AZ35^2))","v":160.69225245792032},{"$f":"BA9+BA10+BA11+BA33+BA34+BA35","v":640},{"$f":"SQRT((BB9^2)+(BB10^2)+(BB11^2)+(BB33^2)+(BB34^2)+(BB35^2))","v":136.64552682030978},{"$f":"BC9+BC10+BC11+BC33+BC34+BC35","v":858},{"$f":"SQRT((BD9^2)+(BD10^2)+(BD11^2)+(BD33^2)+(BD34^2)+(BD35^2))","v":166.21672599350524},{"$f":"BE9+BE10+BE11+BE33+BE34+BE35","v":1070},{"$f":"SQRT((BF9^2)+(BF10^2)+(BF11^2)+(BF33^2)+(BF34^2)+(BF35^2))","v":246.93116449731491},{"$f":"BG9+BG10+BG11+BG33+BG34+BG35","v":2764},{"$f":"SQRT((BH9^2)+(BH10^2)+(BH11^2)+(BH33^2)+(BH34^2)+(BH35^2))","v":319.14416804948826},{"$f":"BI9+BI10+BI11+BI33+BI34+BI35","v":1829},{"$f":"SQRT((BJ9^2)+(BJ10^2)+(BJ11^2)+(BJ33^2)+(BJ34^2)+(BJ35^2))","v":303.2803983115295},{"$f":"BK9+BK10+BK11+BK33+BK34+BK35","v":654},{"$f":"SQRT((BL9^2)+(BL10^2)+(BL11^2)+(BL33^2)+(BL34^2)+(BL35^2))","v":172.16561793807728},{"$f":"BM9+BM10+BM11+BM33+BM34+BM35","v":4138},{"$f":"SQRT((BN9^2)+(BN10^2)+(BN11^2)+(BN33^2)+(BN34^2)+(BN35^2))","v":453.10594787532858},{"$f":"BO9+BO10+BO11+BO33+BO34+BO35","v":1150},{"$f":"SQRT((BP9^2)+(BP10^2)+(BP11^2)+(BP33^2)+(BP34^2)+(BP35^2))","v":296.7642161716941},{"$f":"BQ9+BQ10+BQ11+BQ33+BQ34+BQ35","v":1131},{"$f":"SQRT((BR9^2)+(BR10^2)+(BR11^2)+(BR33^2)+(BR34^2)+(BR35^2))","v":223.37188721949769},{"$f":"BS9+BS10+BS11+BS33+BS34+BS35","v":92},{"$f":"SQRT((BT9^2)+(BT10^2)+(BT11^2)+(BT33^2)+(BT34^2)+(BT35^2))","v":28.583211855912904},{"$f":"BU9+BU10+BU11+BU33+BU34+BU35","v":1324},{"$f":"SQRT((BV9^2)+(BV10^2)+(BV11^2)+(BV33^2)+(BV34^2)+(BV35^2))","v":223.62244967802314},{"$f":"BW9+BW10+BW11+BW33+BW34+BW35","v":3364},{"$f":"SQRT((BX9^2)+(BX10^2)+(BX11^2)+(BX33^2)+(BX34^2)+(BX35^2))","v":383.37709895088932}]
[null,"15 to 24 yrs.",{"$f":"C12+C13+C14+C15+C16+C36+C37+C38+C39+C40","v":907},{"$f":"SQRT((D12^2)+(D13^2)+(D14^2)+(D15^2)+(D16^2)+(D36^2)+(D37^2)+(D38^2)+(D39^2)+(D40^2))","v":234.58473948660856},{"$f":"E12+E13+E14+E15+E16+E36+E37+E38+E39+E40","v":629},{"$f":"SQRT((F12^2)+(F13^2)+(F14^2)+(F15^2)+(F16^2)+(F36^2)+(F37^2)+(F38^2)+(F39^2)+(F40^2))","v":165.12419568312816},{"$f":"G12+G13+G14+G15+G16+G36+G37+G38+G39+G40","v":405},{"$f":"SQRT((H12^2)+(H13^2)+(H14^2)+(H15^2)+(H16^2)+(H36^2)+(H37^2)+(H38^2)+(H39^2)+(H40^2))","v":110.83320801997928},{"$f":"I12+I13+I14+I15+I16+I36+I37+I38+I39+I40","v":473},{"$f":"SQRT((J12^2)+(J13^2)+(J14^2)+(J15^2)+(J16^2)+(J36^2)+(J37^2)+(J38^2)+(J39^2)+(J40^2))","v":134.72935834479432},{"$f":"K12+K13+K14+K15+K16+K36+K37+K38+K39+K40","v":717},{"$f":"SQRT((L12^2)+(L13^2)+(L14^2)+(L15^2)+(L16^2)+(L36^2)+(L37^2)+(L38^2)+(L39^2)+(L40^2))","v":178.68128049686683},{"$f":"M12+M13+M14+M15+M16+M36+M37+M38+M39+M40","v":666},{"$f":"SQRT((N12^2)+(N13^2)+(N14^2)+(N15^2)+(N16^2)+(N36^2)+(N37^2)+(N38^2)+(N39^2)+(N40^2))","v":168.80165875962237},{"$f":"O12+O13+O14+O15+O16+O36+O37+O38+O39+O40","v":599},{"$f":"SQRT((P12^2)+(P13^2)+(P14^2)+(P15^2)+(P16^2)+(P36^2)+(P37^2)+(P38^2)+(P39^2)+(P40^2))","v":143.86799505101891},{"$f":"Q12+Q13+Q14+Q15+Q16+Q36+Q37+Q38+Q39+Q40","v":4844},{"$f":"SQRT((R12^2)+(R13^2)+(R14^2)+(R15^2)+(R16^2)+(R36^2)+(R37^2)+(R38^2)+(R39^2)+(R40^2))","v":516.91198477110197},{"$f":"S12+S13+S14+S15+S16+S36+S37+S38+S39+S40","v":355},{"$f":"SQRT((T12^2)+(T13^2)+(T14^2)+(T15^2)+(T16^2)+(T36^2)+(T37^2)+(T38^2)+(T39^2)+(T40^2))","v":110.4943437466371},{"$f":"U12+U13+U14+U15+U16+U36+U37+U38+U39+U40","v":454},{"$f":"SQRT((V12^2)+(V13^2)+(V14^2)+(V15^2)+(V16^2)+(V36^2)+(V37^2)+(V38^2)+(V39^2)+(V40^2))","v":165.06665320409206},{"$f":"W12+W13+W14+W15+W16+W36+W37+W38+W39+W40","v":1379},{"$f":"SQRT((X12^2)+(X13^2)+(X14^2)+(X15^2)+(X16^2)+(X36^2)+(X37^2)+(X38^2)+(X39^2)+(X40^2))","v":257.40046620004404},{"$f":"Y12+Y13+Y14+Y15+Y16+Y36+Y37+Y38+Y39+Y40","v":410},{"$f":"SQRT((Z12^2)+(Z13^2)+(Z14^2)+(Z15^2)+(Z16^2)+(Z36^2)+(Z37^2)+(Z38^2)+(Z39^2)+(Z40^2))","v":122.74770873625299},{"$f":"AA12+AA13+AA14+AA15+AA16+AA36+AA37+AA38+AA39+AA40","v":367},{"$f":"SQRT((AB12^2)+(AB13^2)+(AB14^2)+(AB15^2)+(AB16^2)+(AB36^2)+(AB37^2)+(AB38^2)+(AB39^2)+(AB40^2))","v":117.78794505381271},{"$f":"AC12+AC13+AC14+AC15+AC16+AC36+AC37+AC38+AC39+AC40","v":1013},{"$f":"SQRT((AD12^2)+(AD13^2)+(AD14^2)+(AD15^2)+(AD16^2)+(AD36^2)+(AD37^2)+(AD38^2)+(AD39^2)+(AD40^2))","v":214.05373157223866},{"$f":"AE12+AE13+AE14+AE15+AE16+AE36+AE37+AE38+AE39+AE40","v":1522},{"$f":"SQRT((AF12^2)+(AF13^2)+(AF14^2)+(AF15^2)+(AF16^2)+(AF36^2)+(AF37^2)+(AF38^2)+(AF39^2)+(AF40^2))","v":260.63576116872372},{"$f":"AG12+AG13+AG14+AG15+AG16+AG36+AG37+AG38+AG39+AG40","v":208},{"$f":"SQRT((AH12^2)+(AH13^2)+(AH14^2)+(AH15^2)+(AH16^2)+(AH36^2)+(AH37^2)+(AH38^2)+(AH39^2)+(AH40^2))","v":80.162335295324326},{"$f":"AI12+AI13+AI14+AI15+AI16+AI36+AI37+AI38+AI39+AI40","v":247},{"$f":"SQRT((AJ12^2)+(AJ13^2)+(AJ14^2)+(AJ15^2)+(AJ16^2)+(AJ36^2)+(AJ37^2)+(AJ38^2)+(AJ39^2)+(AJ40^2))","v":59.287435431126553},{"$f":"AK12+AK13+AK14+AK15+AK16+AK36+AK37+AK38+AK39+AK40","v":789},{"$f":"SQRT((AL12^2)+(AL13^2)+(AL14^2)+(AL15^2)+(AL16^2)+(AL36^2)+(AL37^2)+(AL38^2)+(AL39^2)+(AL40^2))","v":260.37857054680978},{"$f":"AM12+AM13+AM14+AM15+AM16+AM36+AM37+AM38+AM39+AM40","v":3679},{"$f":"SQRT((AN12^2)+(AN13^2)+(AN14^2)+(AN15^2)+(AN16^2)+(AN36^2)+(AN37^2)+(AN38^2)+(AN39^2)+(AN40^2))","v":336.32722161609223},{"$f":"AO12+AO13+AO14+AO15+AO16+AO36+AO37+AO38+AO39+AO40","v":76},{"$f":"SQRT((AP12^2)+(AP13^2)+(AP14^2)+(AP15^2)+(AP16^2)+(AP36^2)+(AP37^2)+(AP38^2)+(AP39^2)+(AP40^2))","v":54.295487841992909},{"$f":"AQ12+AQ13+AQ14+AQ15+AQ16+AQ36+AQ37+AQ38+AQ39+AQ40","v":188},{"$f":"SQRT((AR12^2)+(AR13^2)+(AR14^2)+(AR15^2)+(AR16^2)+(AR36^2)+(AR37^2)+(AR38^2)+(AR39^2)+(AR40^2))","v":53.103672189407014},{"$f":"AS12+AS13+AS14+AS15+AS16+AS36+AS37+AS38+AS39+AS40","v":71},{"$f":"SQRT((AT12^2)+(AT13^2)+(AT14^2)+(AT15^2)+(AT16^2)+(AT36^2)+(AT37^2)+(AT38^2)+(AT39^2)+(AT40^2))","v":41.940433951021539},{"$f":"AU12+AU13+AU14+AU15+AU16+AU36+AU37+AU38+AU39+AU40","v":1338},{"$f":"SQRT((AV12^2)+(AV13^2)+(AV14^2)+(AV15^2)+(AV16^2)+(AV36^2)+(AV37^2)+(AV38^2)+(AV39^2)+(AV40^2))","v":342.60180968582171},{"$f":"AW12+AW13+AW14+AW15+AW16+AW36+AW37+AW38+AW39+AW40","v":591},{"$f":"SQRT((AX12^2)+(AX13^2)+(AX14^2)+(AX15^2)+(AX16^2)+(AX36^2)+(AX37^2)+(AX38^2)+(AX39^2)+(AX40^2))","v":152.51557297535226},{"$f":"AY12+AY13+AY14+AY15+AY16+AY36+AY37+AY38+AY39+AY40","v":423},{"$f":"SQRT((AZ12^2)+(AZ13^2)+(AZ14^2)+(AZ15^2)+(AZ16^2)+(AZ36^2)+(AZ37^2)+(AZ38^2)+(AZ39^2)+(AZ40^2))","v":111.94641575325224},{"$f":"BA12+BA13+BA14+BA15+BA16+BA36+BA37+BA38+BA39+BA40","v":493},{"$f":"SQRT((BB12^2)+(BB13^2)+(BB14^2)+(BB15^2)+(BB16^2)+(BB36^2)+(BB37^2)+(BB38^2)+(BB39^2)+(BB40^2))","v":157.29272074701996},{"$f":"BC12+BC13+BC14+BC15+BC16+BC36+BC37+BC38+BC39+BC40","v":510},{"$f":"SQRT((BD12^2)+(BD13^2)+(BD14^2)+(BD15^2)+(BD16^2)+(BD36^2)+(BD37^2)+(BD38^2)+(BD39^2)+(BD40^2))","v":135.45109818676258},{"$f":"BE12+BE13+BE14+BE15+BE16+BE36+BE37+BE38+BE39+BE40","v":880},{"$f":"SQRT((BF12^2)+(BF13^2)+(BF14^2)+(BF15^2)+(BF16^2)+(BF36^2)+(BF37^2)+(BF38^2)+(BF39^2)+(BF40^2))","v":233.59794519644217},{"$f":"BG12+BG13+BG14+BG15+BG16+BG36+BG37+BG38+BG39+BG40","v":2352},{"$f":"SQRT((BH12^2)+(BH13^2)+(BH14^2)+(BH15^2)+(BH16^2)+(BH36^2)+(BH37^2)+(BH38^2)+(BH39^2)+(BH40^2))","v":317.08831577338196},{"$f":"BI12+BI13+BI14+BI15+BI16+BI36+BI37+BI38+BI39+BI40","v":1196},{"$f":"SQRT((BJ12^2)+(BJ13^2)+(BJ14^2)+(BJ15^2)+(BJ16^2)+(BJ36^2)+(BJ37^2)+(BJ38^2)+(BJ39^2)+(BJ40^2))","v":267.14228418578739},{"$f":"BK12+BK13+BK14+BK15+BK16+BK36+BK37+BK38+BK39+BK40","v":336},{"$f":"SQRT((BL12^2)+(BL13^2)+(BL14^2)+(BL15^2)+(BL16^2)+(BL36^2)+(BL37^2)+(BL38^2)+(BL39^2)+(BL40^2))","v":121.16104984688768},{"$f":"BM12+BM13+BM14+BM15+BM16+BM36+BM37+BM38+BM39+BM40","v":3614},{"$f":"SQRT((BN12^2)+(BN13^2)+(BN14^2)+(BN15^2)+(BN16^2)+(BN36^2)+(BN37^2)+(BN38^2)+(BN39^2)+(BN40^2))","v":458.04912400309206},{"$f":"BO12+BO13+BO14+BO15+BO16+BO36+BO37+BO38+BO39+BO40","v":901},{"$f":"SQRT((BP12^2)+(BP13^2)+(BP14^2)+(BP15^2)+(BP16^2)+(BP36^2)+(BP37^2)+(BP38^2)+(BP39^2)+(BP40^2))","v":253.95078263317086},{"$f":"BQ12+BQ13+BQ14+BQ15+BQ16+BQ36+BQ37+BQ38+BQ39+BQ40","v":617},{"$f":"SQRT((BR12^2)+(BR13^2)+(BR14^2)+(BR15^2)+(BR16^2)+(BR36^2)+(BR37^2)+(BR38^2)+(BR39^2)+(BR40^2))","v":181.64801127455263},{"$f":"BS12+BS13+BS14+BS15+BS16+BS36+BS37+BS38+BS39+BS40","v":89},{"$f":"SQRT((BT12^2)+(BT13^2)+(BT14^2)+(BT15^2)+(BT16^2)+(BT36^2)+(BT37^2)+(BT38^2)+(BT39^2)+(BT40^2))","v":29.120439557122072},{"$f":"BU12+BU13+BU14+BU15+BU16+BU36+BU37+BU38+BU39+BU40","v":700},{"$f":"SQRT((BV12^2)+(BV13^2)+(BV14^2)+(BV15^2)+(BV16^2)+(BV36^2)+(BV37^2)+(BV38^2)+(BV39^2)+(BV40^2))","v":221.4204145963059},{"$f":"BW12+BW13+BW14+BW15+BW16+BW36+BW37+BW38+BW39+BW40","v":1290},{"$f":"SQRT((BX12^2)+(BX13^2)+(BX14^2)+(BX15^2)+(BX16^2)+(BX36^2)+(BX37^2)+(BX38^2)+(BX39^2)+(BX40^2))","v":294.43165590676557}]
[null,"25 to 34 yrs.",{"$f":"C17+C18+C41+C42","v":461},{"$f":"SQRT((D17^2)+(D18^2)+(D41^2)+(D42^2))","v":148.98322053170955},{"$f":"E17+E18+E41+E42","v":524},{"$f":"SQRT((F17^2)+(F18^2)+(F41^2)+(F42^2))","v":141.315250415516},{"$f":"G17+G18+G41+G42","v":456},{"$f":"SQRT((H17^2)+(H18^2)+(H41^2)+(H42^2))","v":125.76963067449948},{"$f":"I17+I18+I41+I42","v":334},{"$f":"SQRT((J17^2)+(J18^2)+(J41^2)+(J42^2))","v":104.47009141376301},{"$f":"K17+K18+K41+K42","v":509},{"$f":"SQRT((L17^2)+(L18^2)+(L41^2)+(L42^2))","v":121.94670967270909},{"$f":"M17+M18+M41+M42","v":291},{"$f":"SQRT((N17^2)+(N18^2)+(N41^2)+(N42^2))","v":98.219142737044905},{"$f":"O17+O18+O41+O42","v":692},{"$f":"SQRT((P17^2)+(P18^2)+(P41^2)+(P42^2))","v":135.10366390294527},{"$f":"Q17+Q18+Q41+Q42","v":4225},{"$f":"SQRT((R17^2)+(R18^2)+(R41^2)+(R42^2))","v":437.35340401098972},{"$f":"S17+S18+S41+S42","v":218},{"$f":"SQRT((T17^2)+(T18^2)+(T41^2)+(T42^2))","v":65.069193939989759},{"$f":"U17+U18+U41+U42","v":1066},{"$f":"SQRT((V17^2)+(V18^2)+(V41^2)+(V42^2))","v":256.30255558616653},{"$f":"W17+W18+W41+W42","v":1735},{"$f":"SQRT((X17^2)+(X18^2)+(X41^2)+(X42^2))","v":301.58580868469261},{"$f":"Y17+Y18+Y41+Y42","v":474},{"$f":"SQRT((Z17^2)+(Z18^2)+(Z41^2)+(Z42^2))","v":119.87076374162301},{"$f":"AA17+AA18+AA41+AA42","v":296},{"$f":"SQRT((AB17^2)+(AB18^2)+(AB41^2)+(AB42^2))","v":83.204567182336817},{"$f":"AC17+AC18+AC41+AC42","v":953},{"$f":"SQRT((AD17^2)+(AD18^2)+(AD41^2)+(AD42^2))","v":205.72311488989271},{"$f":"AE17+AE18+AE41+AE42","v":1292},{"$f":"SQRT((AF17^2)+(AF18^2)+(AF41^2)+(AF42^2))","v":243.43376922686795},{"$f":"AG17+AG18+AG41+AG42","v":282},{"$f":"SQRT((AH17^2)+(AH18^2)+(AH41^2)+(AH42^2))","v":90.404645898316531},{"$f":"AI17+AI18+AI41+AI42","v":220},{"$f":"SQRT((AJ17^2)+(AJ18^2)+(AJ41^2)+(AJ42^2))","v":42.743420546325019},{"$f":"AK17+AK18+AK41+AK42","v":914},{"$f":"SQRT((AL17^2)+(AL18^2)+(AL41^2)+(AL42^2))","v":246.63941290880499},{"$f":"AM17+AM18+AM41+AM42","v":2483},{"$f":"SQRT((AN17^2)+(AN18^2)+(AN41^2)+(AN42^2))","v":296.96969542362399},{"$f":"AO17+AO18+AO41+AO42","v":50},{"$f":"SQRT((AP17^2)+(AP18^2)+(AP41^2)+(AP42^2))","v":35.707142142714247},{"$f":"AQ17+AQ18+AQ41+AQ42","v":122},{"$f":"SQRT((AR17^2)+(AR18^2)+(AR41^2)+(AR42^2))","v":37.080992435478315},{"$f":"AS17+AS18+AS41+AS42","v":38},{"$f":"SQRT((AT17^2)+(AT18^2)+(AT41^2)+(AT42^2))","v":17.291616465790582},{"$f":"AU17+AU18+AU41+AU42","v":1624},{"$f":"SQRT((AV17^2)+(AV18^2)+(AV41^2)+(AV42^2))","v":259.18912014203067},{"$f":"AW17+AW18+AW41+AW42","v":600},{"$f":"SQRT((AX17^2)+(AX18^2)+(AX41^2)+(AX42^2))","v":138.81642554107205},{"$f":"AY17+AY18+AY41+AY42","v":327},{"$f":"SQRT((AZ17^2)+(AZ18^2)+(AZ41^2)+(AZ42^2))","v":106.310864919819},{"$f":"BA17+BA18+BA41+BA42","v":460},{"$f":"SQRT((BB17^2)+(BB18^2)+(BB41^2)+(BB42^2))","v":112.01785571952357},{"$f":"BC17+BC18+BC41+BC42","v":492},{"$f":"SQRT((BD17^2)+(BD18^2)+(BD41^2)+(BD42^2))","v":127.1416532848303},{"$f":"BE17+BE18+BE41+BE42","v":1189},{"$f":"SQRT((BF17^2)+(BF18^2)+(BF41^2)+(BF42^2))","v":298.22474746405607},{"$f":"BG17+BG18+BG41+BG42","v":4391},{"$f":"SQRT((BH17^2)+(BH18^2)+(BH41^2)+(BH42^2))","v":405.91008856642134},{"$f":"BI17+BI18+BI41+BI42","v":1359},{"$f":"SQRT((BJ17^2)+(BJ18^2)+(BJ41^2)+(BJ42^2))","v":240.0708228835816},{"$f":"BK17+BK18+BK41+BK42","v":368},{"$f":"SQRT((BL17^2)+(BL18^2)+(BL41^2)+(BL42^2))","v":195.0769079107007},{"$f":"BM17+BM18+BM41+BM42","v":4025},{"$f":"SQRT((BN17^2)+(BN18^2)+(BN41^2)+(BN42^2))","v":469.56362721147815},{"$f":"BO17+BO18+BO41+BO42","v":756},{"$f":"SQRT((BP17^2)+(BP18^2)+(BP41^2)+(BP42^2))","v":183.73350266078313},{"$f":"BQ17+BQ18+BQ41+BQ42","v":898},{"$f":"SQRT((BR17^2)+(BR18^2)+(BR41^2)+(BR42^2))","v":215.11624764298952},{"$f":"BS17+BS18+BS41+BS42","v":77},{"$f":"SQRT((BT17^2)+(BT18^2)+(BT41^2)+(BT42^2))","v":27.386127875258307},{"$f":"BU17+BU18+BU41+BU42","v":678},{"$f":"SQRT((BV17^2)+(BV18^2)+(BV41^2)+(BV42^2))","v":215.76375970027959},{"$f":"BW17+BW18+BW41+BW42","v":987},{"$f":"SQRT((BX17^2)+(BX18^2)+(BX41^2)+(BX42^2))","v":234.85314560380067}]
[null,"35 to 44 yrs.",{"$f":"C19+C20+C43+C44","v":620},{"$f":"SQRT((D19^2)+(D20^2)+(D43^2)+(D44^2))","v":165.23619458217985},{"$f":"E19+E20+E43+E44","v":759},{"$f":"SQRT((F19^2)+(F20^2)+(F43^2)+(F44^2))","v":127.47548783981962},{"$f":"G19+G20+G43+G44","v":614},{"$f":"SQRT((H19^2)+(H20^2)+(H43^2)+(H44^2))","v":131.76873680809118},{"$f":"I19+I20+I43+I44","v":428},{"$f":"SQRT((J19^2)+(J20^2)+(J43^2)+(J44^2))","v":112.7785440586994},{"$f":"K19+K20+K43+K44","v":522},{"$f":"SQRT((L19^2)+(L20^2)+(L43^2)+(L44^2))","v":126.94486992391619},{"$f":"M19+M20+M43+M44","v":703},{"$f":"SQRT((N19^2)+(N20^2)+(N43^2)+(N44^2))","v":153.62616964566942},{"$f":"O19+O20+O43+O44","v":318},{"$f":"SQRT((P19^2)+(P20^2)+(P43^2)+(P44^2))","v":94.482802667998797},{"$f":"Q19+Q20+Q43+Q44","v":4329},{"$f":"SQRT((R19^2)+(R20^2)+(R43^2)+(R44^2))","v":441.24482999804087},{"$f":"S19+S20+S43+S44","v":209},{"$f":"SQRT((T19^2)+(T20^2)+(T43^2)+(T44^2))","v":45.967379738244816},{"$f":"U19+U20+U43+U44","v":951},{"$f":"SQRT((V19^2)+(V20^2)+(V43^2)+(V44^2))","v":223.33159203301264},{"$f":"W19+W20+W43+W44","v":1570},{"$f":"SQRT((X19^2)+(X20^2)+(X43^2)+(X44^2))","v":230.6534196581529},{"$f":"Y19+Y20+Y43+Y44","v":560},{"$f":"SQRT((Z19^2)+(Z20^2)+(Z43^2)+(Z44^2))","v":116.76900273617139},{"$f":"AA19+AA20+AA43+AA44","v":536},{"$f":"SQRT((AB19^2)+(AB20^2)+(AB43^2)+(AB44^2))","v":98.559626622669384},{"$f":"AC19+AC20+AC43+AC44","v":891},{"$f":"SQRT((AD19^2)+(AD20^2)+(AD43^2)+(AD44^2))","v":179.20658470045123},{"$f":"AE19+AE20+AE43+AE44","v":1457},{"$f":"SQRT((AF19^2)+(AF20^2)+(AF43^2)+(AF44^2))","v":187.60330487494085},{"$f":"AG19+AG20+AG43+AG44","v":220},{"$f":"SQRT((AH19^2)+(AH20^2)+(AH43^2)+(AH44^2))","v":51.681718237690198},{"$f":"AI19+AI20+AI43+AI44","v":196},{"$f":"SQRT((AJ19^2)+(AJ20^2)+(AJ43^2)+(AJ44^2))","v":39.862262855989499},{"$f":"AK19+AK20+AK43+AK44","v":487},{"$f":"SQRT((AL19^2)+(AL20^2)+(AL43^2)+(AL44^2))","v":163.17475294910057},{"$f":"AM19+AM20+AM43+AM44","v":3315},{"$f":"SQRT((AN19^2)+(AN20^2)+(AN43^2)+(AN44^2))","v":335.94195927272915},{"$f":"AO19+AO20+AO43+AO44","v":4},{"$f":"SQRT((AP19^2)+(AP20^2)+(AP43^2)+(AP44^2))","v":20.297783130184438},{"$f":"AQ19+AQ20+AQ43+AQ44","v":200},{"$f":"SQRT((AR19^2)+(AR20^2)+(AR43^2)+(AR44^2))","v":51.009802979427398},{"$f":"AS19+AS20+AS43+AS44","v":41},{"$f":"SQRT((AT19^2)+(AT20^2)+(AT43^2)+(AT44^2))","v":18.574175621006709},{"$f":"AU19+AU20+AU43+AU44","v":1189},{"$f":"SQRT((AV19^2)+(AV20^2)+(AV43^2)+(AV44^2))","v":202.83490823820242},{"$f":"AW19+AW20+AW43+AW44","v":624},{"$f":"SQRT((AX19^2)+(AX20^2)+(AX43^2)+(AX44^2))","v":139.13662350366275},{"$f":"AY19+AY20+AY43+AY44","v":492},{"$f":"SQRT((AZ19^2)+(AZ20^2)+(AZ43^2)+(AZ44^2))","v":109.62663909835054},{"$f":"BA19+BA20+BA43+BA44","v":621},{"$f":"SQRT((BB19^2)+(BB20^2)+(BB43^2)+(BB44^2))","v":134.14171610651178},{"$f":"BC19+BC20+BC43+BC44","v":749},{"$f":"SQRT((BD19^2)+(BD20^2)+(BD43^2)+(BD44^2))","v":142.75503493747601},{"$f":"BE19+BE20+BE43+BE44","v":934},{"$f":"SQRT((BF19^2)+(BF20^2)+(BF43^2)+(BF44^2))","v":223.29128957485108},{"$f":"BG19+BG20+BG43+BG44","v":2889},{"$f":"SQRT((BH19^2)+(BH20^2)+(BH43^2)+(BH44^2))","v":309.57228558125161},{"$f":"BI19+BI20+BI43+BI44","v":1097},{"$f":"SQRT((BJ19^2)+(BJ20^2)+(BJ43^2)+(BJ44^2))","v":189.26700716184001},{"$f":"BK19+BK20+BK43+BK44","v":495},{"$f":"SQRT((BL19^2)+(BL20^2)+(BL43^2)+(BL44^2))","v":180.74844397670481},{"$f":"BM19+BM20+BM43+BM44","v":3155},{"$f":"SQRT((BN19^2)+(BN20^2)+(BN43^2)+(BN44^2))","v":335.70075960593238},{"$f":"BO19+BO20+BO43+BO44","v":650},{"$f":"SQRT((BP19^2)+(BP20^2)+(BP43^2)+(BP44^2))","v":195.0769079107007},{"$f":"BQ19+BQ20+BQ43+BQ44","v":958},{"$f":"SQRT((BR19^2)+(BR20^2)+(BR43^2)+(BR44^2))","v":209.42301688209918},{"$f":"BS19+BS20+BS43+BS44","v":89},{"$f":"SQRT((BT19^2)+(BT20^2)+(BT43^2)+(BT44^2))","v":24.677925358506133},{"$f":"BU19+BU20+BU43+BU44","v":847},{"$f":"SQRT((BV19^2)+(BV20^2)+(BV43^2)+(BV44^2))","v":196.5171748219478},{"$f":"BW19+BW20+BW43+BW44","v":2025},{"$f":"SQRT((BX19^2)+(BX20^2)+(BX43^2)+(BX44^2))","v":281.80489704758503}]
[null,"45 to 54 yrs.",{"$f":"C21+C22+C45+C46","v":1356},{"$f":"SQRT((D21^2)+(D22^2)+(D45^2)+(D46^2))","v":252.38660820257479},{"$f":"E21+E22+E45+E46","v":886},{"$f":"SQRT((F21^2)+(F22^2)+(F45^2)+(F46^2))","v":163.13184851524241},{"$f":"G21+G22+G45+G46","v":953},{"$f":"SQRT((H21^2)+(H22^2)+(H45^2)+(H46^2))","v":158.03480629279107},{"$f":"I21+I22+I45+I46","v":464},{"$f":"SQRT((J21^2)+(J22^2)+(J45^2)+(J46^2))","v":112.10709165793214},{"$f":"K21+K22+K45+K46","v":911},{"$f":"SQRT((L21^2)+(L22^2)+(L45^2)+(L46^2))","v":156.89168237991458},{"$f":"M21+M22+M45+M46","v":965},{"$f":"SQRT((N21^2)+(N22^2)+(N45^2)+(N46^2))","v":149.73977427524059},{"$f":"O21+O22+O45+O46","v":723},{"$f":"SQRT((P21^2)+(P22^2)+(P45^2)+(P46^2))","v":139.35566009315875},{"$f":"Q21+Q22+Q45+Q46","v":5229},{"$f":"SQRT((R21^2)+(R22^2)+(R45^2)+(R46^2))","v":464.46205442425543},{"$f":"S21+S22+S45+S46","v":436},{"$f":"SQRT((T21^2)+(T22^2)+(T45^2)+(T46^2))","v":72.684248637514301},{"$f":"U21+U22+U45+U46","v":1028},{"$f":"SQRT((V21^2)+(V22^2)+(V45^2)+(V46^2))","v":230.91123835794568},{"$f":"W21+W22+W45+W46","v":2474},{"$f":"SQRT((X21^2)+(X22^2)+(X45^2)+(X46^2))","v":280.23918355576188},{"$f":"Y21+Y22+Y45+Y46","v":884},{"$f":"SQRT((Z21^2)+(Z22^2)+(Z45^2)+(Z46^2))","v":153.65545873804808},{"$f":"AA21+AA22+AA45+AA46","v":627},{"$f":"SQRT((AB21^2)+(AB22^2)+(AB45^2)+(AB46^2))","v":131.71180660821565},{"$f":"AC21+AC22+AC45+AC46","v":1043},{"$f":"SQRT((AD21^2)+(AD22^2)+(AD45^2)+(AD46^2))","v":184.12224200242619},{"$f":"AE21+AE22+AE45+AE46","v":2437},{"$f":"SQRT((AF21^2)+(AF22^2)+(AF45^2)+(AF46^2))","v":303.17321781450289},{"$f":"AG21+AG22+AG45+AG46","v":372},{"$f":"SQRT((AH21^2)+(AH22^2)+(AH45^2)+(AH46^2))","v":64.691575958543467},{"$f":"AI21+AI22+AI45+AI46","v":373},{"$f":"SQRT((AJ21^2)+(AJ22^2)+(AJ45^2)+(AJ46^2))","v":68.227560413662744},{"$f":"AK21+AK22+AK45+AK46","v":1265},{"$f":"SQRT((AL21^2)+(AL22^2)+(AL45^2)+(AL46^2))","v":262.17360660447878},{"$f":"AM21+AM22+AM45+AM46","v":4341},{"$f":"SQRT((AN21^2)+(AN22^2)+(AN45^2)+(AN46^2))","v":355.27594908746636},{"$f":"AO21+AO22+AO45+AO46","v":93},{"$f":"SQRT((AP21^2)+(AP22^2)+(AP45^2)+(AP46^2))","v":38.871583451153619},{"$f":"AQ21+AQ22+AQ45+AQ46","v":360},{"$f":"SQRT((AR21^2)+(AR22^2)+(AR45^2)+(AR46^2))","v":63.906181234681831},{"$f":"AS21+AS22+AS45+AS46","v":122},{"$f":"SQRT((AT21^2)+(AT22^2)+(AT45^2)+(AT46^2))","v":32.046840717924134},{"$f":"AU21+AU22+AU45+AU46","v":1207},{"$f":"SQRT((AV21^2)+(AV22^2)+(AV45^2)+(AV46^2))","v":209.69978540761554},{"$f":"AW21+AW22+AW45+AW46","v":975},{"$f":"SQRT((AX21^2)+(AX22^2)+(AX45^2)+(AX46^2))","v":170.97660658698311},{"$f":"AY21+AY22+AY45+AY46","v":635},{"$f":"SQRT((AZ21^2)+(AZ22^2)+(AZ45^2)+(AZ46^2))","v":136.34515026211969},{"$f":"BA21+BA22+BA45+BA46","v":586},{"$f":"SQRT((BB21^2)+(BB22^2)+(BB45^2)+(BB46^2))","v":127.54214989563255},{"$f":"BC21+BC22+BC45+BC46","v":939},{"$f":"SQRT((BD21^2)+(BD22^2)+(BD45^2)+(BD46^2))","v":173.01445026355458},{"$f":"BE21+BE22+BE45+BE46","v":1161},{"$f":"SQRT((BF21^2)+(BF22^2)+(BF45^2)+(BF46^2))","v":236.10590843941199},{"$f":"BG21+BG22+BG45+BG46","v":2750},{"$f":"SQRT((BH21^2)+(BH22^2)+(BH45^2)+(BH46^2))","v":304.57183060815061},{"$f":"BI21+BI22+BI45+BI46","v":1405},{"$f":"SQRT((BJ21^2)+(BJ22^2)+(BJ45^2)+(BJ46^2))","v":264.48251359967071},{"$f":"BK21+BK22+BK45+BK46","v":819},{"$f":"SQRT((BL21^2)+(BL22^2)+(BL45^2)+(BL46^2))","v":206.23530250662714},{"$f":"BM21+BM22+BM45+BM46","v":4244},{"$f":"SQRT((BN21^2)+(BN22^2)+(BN45^2)+(BN46^2))","v":409.43741890550257},{"$f":"BO21+BO22+BO45+BO46","v":1071},{"$f":"SQRT((BP21^2)+(BP22^2)+(BP45^2)+(BP46^2))","v":227.91665143205313},{"$f":"BQ21+BQ22+BQ45+BQ46","v":1295},{"$f":"SQRT((BR21^2)+(BR22^2)+(BR45^2)+(BR46^2))","v":241.11200716679375},{"$f":"BS21+BS22+BS45+BS46","v":124},{"$f":"SQRT((BT21^2)+(BT22^2)+(BT45^2)+(BT46^2))","v":29.03446228191595},{"$f":"BU21+BU22+BU45+BU46","v":1225},{"$f":"SQRT((BV21^2)+(BV22^2)+(BV45^2)+(BV46^2))","v":219.51993075800658},{"$f":"BW21+BW22+BW45+BW46","v":2726},{"$f":"SQRT((BX21^2)+(BX22^2)+(BX45^2)+(BX46^2))","v":339.35821781710251}]
[null,"55 to 64 yrs.",{"$f":"C23+C24+C25+C47+C48+C49","v":1201},{"$f":"SQRT((D23^2)+(D24^2)+(D25^2)+(D47^2)+(D48^2)+(D49^2))","v":227.65983396286663},{"$f":"E23+E24+E25+E47+E48+E49","v":1022},{"$f":"SQRT((F23^2)+(F24^2)+(F25^2)+(F47^2)+(F48^2)+(F49^2))","v":162.6530048907797},{"$f":"G23+G24+G25+G47+G48+G49","v":625},{"$f":"SQRT((H23^2)+(H24^2)+(H25^2)+(H47^2)+(H48^2)+(H49^2))","v":124.78781991845197},{"$f":"I23+I24+I25+I47+I48+I49","v":1022},{"$f":"SQRT((J23^2)+(J24^2)+(J25^2)+(J47^2)+(J48^2)+(J49^2))","v":155.16442891333051},{"$f":"K23+K24+K25+K47+K48+K49","v":902},{"$f":"SQRT((L23^2)+(L24^2)+(L25^2)+(L47^2)+(L48^2)+(L49^2))","v":151.42654985173505},{"$f":"M23+M24+M25+M47+M48+M49","v":650},{"$f":"SQRT((N23^2)+(N24^2)+(N25^2)+(N47^2)+(N48^2)+(N49^2))","v":144.10759868931271},{"$f":"O23+O24+O25+O47+O48+O49","v":856},{"$f":"SQRT((P23^2)+(P24^2)+(P25^2)+(P47^2)+(P48^2)+(P49^2))","v":150.8343462212768},{"$f":"Q23+Q24+Q25+Q47+Q48+Q49","v":5294},{"$f":"SQRT((R23^2)+(R24^2)+(R25^2)+(R47^2)+(R48^2)+(R49^2))","v":463.7445417468544},{"$f":"S23+S24+S25+S47+S48+S49","v":442},{"$f":"SQRT((T23^2)+(T24^2)+(T25^2)+(T47^2)+(T48^2)+(T49^2))","v":77.259303646874784},{"$f":"U23+U24+U25+U47+U48+U49","v":930},{"$f":"SQRT((V23^2)+(V24^2)+(V25^2)+(V47^2)+(V48^2)+(V49^2))","v":224.81770392920572},{"$f":"W23+W24+W25+W47+W48+W49","v":2118},{"$f":"SQRT((X23^2)+(X24^2)+(X25^2)+(X47^2)+(X48^2)+(X49^2))","v":289.75506898068238},{"$f":"Y23+Y24+Y25+Y47+Y48+Y49","v":742},{"$f":"SQRT((Z23^2)+(Z24^2)+(Z25^2)+(Z47^2)+(Z48^2)+(Z49^2))","v":128.83322552819982},{"$f":"AA23+AA24+AA25+AA47+AA48+AA49","v":656},{"$f":"SQRT((AB23^2)+(AB24^2)+(AB25^2)+(AB47^2)+(AB48^2)+(AB49^2))","v":127.7145254072535},{"$f":"AC23+AC24+AC25+AC47+AC48+AC49","v":1601},{"$f":"SQRT((AD23^2)+(AD24^2)+(AD25^2)+(AD47^2)+(AD48^2)+(AD49^2))","v":241.89667215569543},{"$f":"AE23+AE24+AE25+AE47+AE48+AE49","v":3067},{"$f":"SQRT((AF23^2)+(AF24^2)+(AF25^2)+(AF47^2)+(AF48^2)+(AF49^2))","v":320.04999609436021},{"$f":"AG23+AG24+AG25+AG47+AG48+AG49","v":551},{"$f":"SQRT((AH23^2)+(AH24^2)+(AH25^2)+(AH47^2)+(AH48^2)+(AH49^2))","v":100.52860289489753},{"$f":"AI23+AI24+AI25+AI47+AI48+AI49","v":414},{"$f":"SQRT((AJ23^2)+(AJ24^2)+(AJ25^2)+(AJ47^2)+(AJ48^2)+(AJ49^2))","v":57.367238037053866},{"$f":"AK23+AK24+AK25+AK47+AK48+AK49","v":827},{"$f":"SQRT((AL23^2)+(AL24^2)+(AL25^2)+(AL47^2)+(AL48^2)+(AL49^2))","v":218.18570072303089},{"$f":"AM23+AM24+AM25+AM47+AM48+AM49","v":3959},{"$f":"SQRT((AN23^2)+(AN24^2)+(AN25^2)+(AN47^2)+(AN48^2)+(AN49^2))","v":318.41953457663368},{"$f":"AO23+AO24+AO25+AO47+AO48+AO49","v":220},{"$f":"SQRT((AP23^2)+(AP24^2)+(AP25^2)+(AP47^2)+(AP48^2)+(AP49^2))","v":68.985505724028727},{"$f":"AQ23+AQ24+AQ25+AQ47+AQ48+AQ49","v":317},{"$f":"SQRT((AR23^2)+(AR24^2)+(AR25^2)+(AR47^2)+(AR48^2)+(AR49^2))","v":60.033324079214538},{"$f":"AS23+AS24+AS25+AS47+AS48+AS49","v":183},{"$f":"SQRT((AT23^2)+(AT24^2)+(AT25^2)+(AT47^2)+(AT48^2)+(AT49^2))","v":40.274061131204533},{"$f":"AU23+AU24+AU25+AU47+AU48+AU49","v":1075},{"$f":"SQRT((AV23^2)+(AV24^2)+(AV25^2)+(AV47^2)+(AV48^2)+(AV49^2))","v":192.47597252644289},{"$f":"AW23+AW24+AW25+AW47+AW48+AW49","v":620},{"$f":"SQRT((AX23^2)+(AX24^2)+(AX25^2)+(AX47^2)+(AX48^2)+(AX49^2))","v":124.12493705939995},{"$f":"AY23+AY24+AY25+AY47+AY48+AY49","v":891},{"$f":"SQRT((AZ23^2)+(AZ24^2)+(AZ25^2)+(AZ47^2)+(AZ48^2)+(AZ49^2))","v":154.30813329180026},{"$f":"BA23+BA24+BA25+BA47+BA48+BA49","v":754},{"$f":"SQRT((BB23^2)+(BB24^2)+(BB25^2)+(BB47^2)+(BB48^2)+(BB49^2))","v":132.47641299491769},{"$f":"BC23+BC24+BC25+BC47+BC48+BC49","v":682},{"$f":"SQRT((BD23^2)+(BD24^2)+(BD25^2)+(BD47^2)+(BD48^2)+(BD49^2))","v":125.2078272313676},{"$f":"BE23+BE24+BE25+BE47+BE48+BE49","v":1190},{"$f":"SQRT((BF23^2)+(BF24^2)+(BF25^2)+(BF47^2)+(BF48^2)+(BF49^2))","v":259.83841132519262},{"$f":"BG23+BG24+BG25+BG47+BG48+BG49","v":2850},{"$f":"SQRT((BH23^2)+(BH24^2)+(BH25^2)+(BH47^2)+(BH48^2)+(BH49^2))","v":316.99842270900973},{"$f":"BI23+BI24+BI25+BI47+BI48+BI49","v":2127},{"$f":"SQRT((BJ23^2)+(BJ24^2)+(BJ25^2)+(BJ47^2)+(BJ48^2)+(BJ49^2))","v":304.58824665439738},{"$f":"BK23+BK24+BK25+BK47+BK48+BK49","v":1240},{"$f":"SQRT((BL23^2)+(BL24^2)+(BL25^2)+(BL47^2)+(BL48^2)+(BL49^2))","v":217.41895041601134},{"$f":"BM23+BM24+BM25+BM47+BM48+BM49","v":4578},{"$f":"SQRT((BN23^2)+(BN24^2)+(BN25^2)+(BN47^2)+(BN48^2)+(BN49^2))","v":416.70973110787804},{"$f":"BO23+BO24+BO25+BO47+BO48+BO49","v":1073},{"$f":"SQRT((BP23^2)+(BP24^2)+(BP25^2)+(BP47^2)+(BP48^2)+(BP49^2))","v":208.72469906553943},{"$f":"BQ23+BQ24+BQ25+BQ47+BQ48+BQ49","v":1642},{"$f":"SQRT((BR23^2)+(BR24^2)+(BR25^2)+(BR47^2)+(BR48^2)+(BR49^2))","v":271.65787306831362},{"$f":"BS23+BS24+BS25+BS47+BS48+BS49","v":115},{"$f":"SQRT((BT23^2)+(BT24^2)+(BT25^2)+(BT47^2)+(BT48^2)+(BT49^2))","v":27.313000567495326},{"$f":"BU23+BU24+BU25+BU47+BU48+BU49","v":1436},{"$f":"SQRT((BV23^2)+(BV24^2)+(BV25^2)+(BV47^2)+(BV48^2)+(BV49^2))","v":240.5368994561957},{"$f":"BW23+BW24+BW25+BW47+BW48+BW49","v":2037},{"$f":"SQRT((BX23^2)+(BX24^2)+(BX25^2)+(BX47^2)+(BX48^2)+(BX49^2))","v":303.82725355043448}]
[null,"65 to 74 yrs.",{"$f":"C26+C27+C28+C50+C51+C52","v":902},{"$f":"SQRT((D26^2)+(D27^2)+(D28^2)+(D50^2)+(D51^2)+(D52^2))","v":195},{"$f":"E26+E27+E28+E50+E51+E52","v":569},{"$f":"SQRT((F26^2)+(F27^2)+(F28^2)+(F50^2)+(F51^2)+(F52^2))","v":109.16959283610066},{"$f":"G26+G27+G28+G50+G51+G52","v":319},{"$f":"SQRT((H26^2)+(H27^2)+(H28^2)+(H50^2)+(H51^2)+(H52^2))","v":91.192104921423976},{"$f":"I26+I27+I28+I50+I51+I52","v":457},{"$f":"SQRT((J26^2)+(J27^2)+(J28^2)+(J50^2)+(J51^2)+(J52^2))","v":96.674712308855618},{"$f":"K26+K27+K28+K50+K51+K52","v":489},{"$f":"SQRT((L26^2)+(L27^2)+(L28^2)+(L50^2)+(L51^2)+(L52^2))","v":121.54834429147935},{"$f":"M26+M27+M28+M50+M51+M52","v":379},{"$f":"SQRT((N26^2)+(N27^2)+(N28^2)+(N50^2)+(N51^2)+(N52^2))","v":94.435162942624288},{"$f":"O26+O27+O28+O50+O51+O52","v":452},{"$f":"SQRT((P26^2)+(P27^2)+(P28^2)+(P50^2)+(P51^2)+(P52^2))","v":92.401298692172077},{"$f":"Q26+Q27+Q28+Q50+Q51+Q52","v":2736},{"$f":"SQRT((R26^2)+(R27^2)+(R28^2)+(R50^2)+(R51^2)+(R52^2))","v":303.21609455963909},{"$f":"S26+S27+S28+S50+S51+S52","v":262},{"$f":"SQRT((T26^2)+(T27^2)+(T28^2)+(T50^2)+(T51^2)+(T52^2))","v":48.290785870598548},{"$f":"U26+U27+U28+U50+U51+U52","v":967},{"$f":"SQRT((V26^2)+(V27^2)+(V28^2)+(V50^2)+(V51^2)+(V52^2))","v":229.65626488297679},{"$f":"W26+W27+W28+W50+W51+W52","v":1516},{"$f":"SQRT((X26^2)+(X27^2)+(X28^2)+(X50^2)+(X51^2)+(X52^2))","v":222.80484734403782},{"$f":"Y26+Y27+Y28+Y50+Y51+Y52","v":390},{"$f":"SQRT((Z26^2)+(Z27^2)+(Z28^2)+(Z50^2)+(Z51^2)+(Z52^2))","v":101.19782606360673},{"$f":"AA26+AA27+AA28+AA50+AA51+AA52","v":469},{"$f":"SQRT((AB26^2)+(AB27^2)+(AB28^2)+(AB50^2)+(AB51^2)+(AB52^2))","v":86.434946636184137},{"$f":"AC26+AC27+AC28+AC50+AC51+AC52","v":1021},{"$f":"SQRT((AD26^2)+(AD27^2)+(AD28^2)+(AD50^2)+(AD51^2)+(AD52^2))","v":167.3290172086121},{"$f":"AE26+AE27+AE28+AE50+AE51+AE52","v":2247},{"$f":"SQRT((AF26^2)+(AF27^2)+(AF28^2)+(AF50^2)+(AF51^2)+(AF52^2))","v":242.73236290202425},{"$f":"AG26+AG27+AG28+AG50+AG51+AG52","v":285},{"$f":"SQRT((AH26^2)+(AH27^2)+(AH28^2)+(AH50^2)+(AH51^2)+(AH52^2))","v":64.79969135728966},{"$f":"AI26+AI27+AI28+AI50+AI51+AI52","v":299},{"$f":"SQRT((AJ26^2)+(AJ27^2)+(AJ28^2)+(AJ50^2)+(AJ51^2)+(AJ52^2))","v":48.60041152089147},{"$f":"AK26+AK27+AK28+AK50+AK51+AK52","v":688},{"$f":"SQRT((AL26^2)+(AL27^2)+(AL28^2)+(AL50^2)+(AL51^2)+(AL52^2))","v":170.26450011673015},{"$f":"AM26+AM27+AM28+AM50+AM51+AM52","v":2472},{"$f":"SQRT((AN26^2)+(AN27^2)+(AN28^2)+(AN50^2)+(AN51^2)+(AN52^2))","v":266.35690342095512},{"$f":"AO26+AO27+AO28+AO50+AO51+AO52","v":190},{"$f":"SQRT((AP26^2)+(AP27^2)+(AP28^2)+(AP50^2)+(AP51^2)+(AP52^2))","v":57.23635208501674},{"$f":"AQ26+AQ27+AQ28+AQ50+AQ51+AQ52","v":138},{"$f":"SQRT((AR26^2)+(AR27^2)+(AR28^2)+(AR50^2)+(AR51^2)+(AR52^2))","v":40.730823708832602},{"$f":"AS26+AS27+AS28+AS50+AS51+AS52","v":104},{"$f":"SQRT((AT26^2)+(AT27^2)+(AT28^2)+(AT50^2)+(AT51^2)+(AT52^2))","v":25.238858928247925},{"$f":"AU26+AU27+AU28+AU50+AU51+AU52","v":865},{"$f":"SQRT((AV26^2)+(AV27^2)+(AV28^2)+(AV50^2)+(AV51^2)+(AV52^2))","v":151.08275877809487},{"$f":"AW26+AW27+AW28+AW50+AW51+AW52","v":549},{"$f":"SQRT((AX26^2)+(AX27^2)+(AX28^2)+(AX50^2)+(AX51^2)+(AX52^2))","v":113.33578428722325},{"$f":"AY26+AY27+AY28+AY50+AY51+AY52","v":697},{"$f":"SQRT((AZ26^2)+(AZ27^2)+(AZ28^2)+(AZ50^2)+(AZ51^2)+(AZ52^2))","v":138.32208789632983},{"$f":"BA26+BA27+BA28+BA50+BA51+BA52","v":463},{"$f":"SQRT((BB26^2)+(BB27^2)+(BB28^2)+(BB50^2)+(BB51^2)+(BB52^2))","v":112.94689017409908},{"$f":"BC26+BC27+BC28+BC50+BC51+BC52","v":537},{"$f":"SQRT((BD26^2)+(BD27^2)+(BD28^2)+(BD50^2)+(BD51^2)+(BD52^2))","v":116.58044432922702},{"$f":"BE26+BE27+BE28+BE50+BE51+BE52","v":690},{"$f":"SQRT((BF26^2)+(BF27^2)+(BF28^2)+(BF50^2)+(BF51^2)+(BF52^2))","v":166.24981202996892},{"$f":"BG26+BG27+BG28+BG50+BG51+BG52","v":2258},{"$f":"SQRT((BH26^2)+(BH27^2)+(BH28^2)+(BH50^2)+(BH51^2)+(BH52^2))","v":262.27085236449744},{"$f":"BI26+BI27+BI28+BI50+BI51+BI52","v":979},{"$f":"SQRT((BJ26^2)+(BJ27^2)+(BJ28^2)+(BJ50^2)+(BJ51^2)+(BJ52^2))","v":170.66341142728865},{"$f":"BK26+BK27+BK28+BK50+BK51+BK52","v":1001},{"$f":"SQRT((BL26^2)+(BL27^2)+(BL28^2)+(BL50^2)+(BL51^2)+(BL52^2))","v":219.79763420018878},{"$f":"BM26+BM27+BM28+BM50+BM51+BM52","v":3155},{"$f":"SQRT((BN26^2)+(BN27^2)+(BN28^2)+(BN50^2)+(BN51^2)+(BN52^2))","v":320.32327420904028},{"$f":"BO26+BO27+BO28+BO50+BO51+BO52","v":472},{"$f":"SQRT((BP26^2)+(BP27^2)+(BP28^2)+(BP50^2)+(BP51^2)+(BP52^2))","v":133.65253458127907},{"$f":"BQ26+BQ27+BQ28+BQ50+BQ51+BQ52","v":1352},{"$f":"SQRT((BR26^2)+(BR27^2)+(BR28^2)+(BR50^2)+(BR51^2)+(BR52^2))","v":213.04224933097191},{"$f":"BS26+BS27+BS28+BS50+BS51+BS52","v":114},{"$f":"SQRT((BT26^2)+(BT27^2)+(BT28^2)+(BT50^2)+(BT51^2)+(BT52^2))","v":26.362852652928137},{"$f":"BU26+BU27+BU28+BU50+BU51+BU52","v":769},{"$f":"SQRT((BV26^2)+(BV27^2)+(BV28^2)+(BV50^2)+(BV51^2)+(BV52^2))","v":175.9857948812915},{"$f":"BW26+BW27+BW28+BW50+BW51+BW52","v":1182},{"$f":"SQRT((BX26^2)+(BX27^2)+(BX28^2)+(BX50^2)+(BX51^2)+(BX52^2))","v":222.37580803675564}]
[null,"Over 74 yrs. ",{"$f":"C29+C30+C31+C53+C54+C55","v":473},{"$f":"SQRT((D29^2)+(D30^2)+(D31^2)+(D53^2)+(D54^2)+(D55^2))","v":132.57073583562851},{"$f":"E29+E30+E31+E53+E54+E55","v":186},{"$f":"SQRT((F29^2)+(F30^2)+(F31^2)+(F53^2)+(F54^2)+(F55^2))","v":70.46275611981126},{"$f":"G29+G30+G31+G53+G54+G55","v":362},{"$f":"SQRT((H29^2)+(H30^2)+(H31^2)+(H53^2)+(H54^2)+(H55^2))","v":92.455394650609762},{"$f":"I29+I30+I31+I53+I54+I55","v":237},{"$f":"SQRT((J29^2)+(J30^2)+(J31^2)+(J53^2)+(J54^2)+(J55^2))","v":94.36630754670864},{"$f":"K29+K30+K31+K53+K54+K55","v":147},{"$f":"SQRT((L29^2)+(L30^2)+(L31^2)+(L53^2)+(L54^2)+(L55^2))","v":65.886265640116534},{"$f":"M29+M30+M31+M53+M54+M55","v":174},{"$f":"SQRT((N29^2)+(N30^2)+(N31^2)+(N53^2)+(N54^2)+(N55^2))","v":63.592452382338585},{"$f":"O29+O30+O31+O53+O54+O55","v":222},{"$f":"SQRT((P29^2)+(P30^2)+(P31^2)+(P53^2)+(P54^2)+(P55^2))","v":90.332718325089715},{"$f":"Q29+Q30+Q31+Q53+Q54+Q55","v":1310},{"$f":"SQRT((R29^2)+(R30^2)+(R31^2)+(R53^2)+(R54^2)+(R55^2))","v":234.59965899378454},{"$f":"S29+S30+S31+S53+S54+S55","v":191},{"$f":"SQRT((T29^2)+(T30^2)+(T31^2)+(T53^2)+(T54^2)+(T55^2))","v":53.497663500381023},{"$f":"U29+U30+U31+U53+U54+U55","v":311},{"$f":"SQRT((V29^2)+(V30^2)+(V31^2)+(V53^2)+(V54^2)+(V55^2))","v":125.15989773086265},{"$f":"W29+W30+W31+W53+W54+W55","v":1933},{"$f":"SQRT((X29^2)+(X30^2)+(X31^2)+(X53^2)+(X54^2)+(X55^2))","v":291.72418480475699},{"$f":"Y29+Y30+Y31+Y53+Y54+Y55","v":420},{"$f":"SQRT((Z29^2)+(Z30^2)+(Z31^2)+(Z53^2)+(Z54^2)+(Z55^2))","v":118.78973019583806},{"$f":"AA29+AA30+AA31+AA53+AA54+AA55","v":257},{"$f":"SQRT((AB29^2)+(AB30^2)+(AB31^2)+(AB53^2)+(AB54^2)+(AB55^2))","v":85.152803829351384},{"$f":"AC29+AC30+AC31+AC53+AC54+AC55","v":661},{"$f":"SQRT((AD29^2)+(AD30^2)+(AD31^2)+(AD53^2)+(AD54^2)+(AD55^2))","v":180.29697723478338},{"$f":"AE29+AE30+AE31+AE53+AE54+AE55","v":1509},{"$f":"SQRT((AF29^2)+(AF30^2)+(AF31^2)+(AF53^2)+(AF54^2)+(AF55^2))","v":215.2277863102253},{"$f":"AG29+AG30+AG31+AG53+AG54+AG55","v":86},{"$f":"SQRT((AH29^2)+(AH30^2)+(AH31^2)+(AH53^2)+(AH54^2)+(AH55^2))","v":32.372828112477293},{"$f":"AI29+AI30+AI31+AI53+AI54+AI55","v":152},{"$f":"SQRT((AJ29^2)+(AJ30^2)+(AJ31^2)+(AJ53^2)+(AJ54^2)+(AJ55^2))","v":38.678159211627431},{"$f":"AK29+AK30+AK31+AK53+AK54+AK55","v":388},{"$f":"SQRT((AL29^2)+(AL30^2)+(AL31^2)+(AL53^2)+(AL54^2)+(AL55^2))","v":134.80726983364065},{"$f":"AM29+AM30+AM31+AM53+AM54+AM55","v":1196},{"$f":"SQRT((AN29^2)+(AN30^2)+(AN31^2)+(AN53^2)+(AN54^2)+(AN55^2))","v":218.44678985968184},{"$f":"AO29+AO30+AO31+AO53+AO54+AO55","v":139},{"$f":"SQRT((AP29^2)+(AP30^2)+(AP31^2)+(AP53^2)+(AP54^2)+(AP55^2))","v":50.793700396801178},{"$f":"AQ29+AQ30+AQ31+AQ53+AQ54+AQ55","v":101},{"$f":"SQRT((AR29^2)+(AR30^2)+(AR31^2)+(AR53^2)+(AR54^2)+(AR55^2))","v":40.914545090957567},{"$f":"AS29+AS30+AS31+AS53+AS54+AS55","v":81},{"$f":"SQRT((AT29^2)+(AT30^2)+(AT31^2)+(AT53^2)+(AT54^2)+(AT55^2))","v":33.585711247493329},{"$f":"AU29+AU30+AU31+AU53+AU54+AU55","v":445},{"$f":"SQRT((AV29^2)+(AV30^2)+(AV31^2)+(AV53^2)+(AV54^2)+(AV55^2))","v":147.33974345029924},{"$f":"AW29+AW30+AW31+AW53+AW54+AW55","v":209},{"$f":"SQRT((AX29^2)+(AX30^2)+(AX31^2)+(AX53^2)+(AX54^2)+(AX55^2))","v":89.325248390362731},{"$f":"AY29+AY30+AY31+AY53+AY54+AY55","v":388},{"$f":"SQRT((AZ29^2)+(AZ30^2)+(AZ31^2)+(AZ53^2)+(AZ54^2)+(AZ55^2))","v":106.90650120549265},{"$f":"BA29+BA30+BA31+BA53+BA54+BA55","v":282},{"$f":"SQRT((BB29^2)+(BB30^2)+(BB31^2)+(BB53^2)+(BB54^2)+(BB55^2))","v":101.0692831675381},{"$f":"BC29+BC30+BC31+BC53+BC54+BC55","v":291},{"$f":"SQRT((BD29^2)+(BD30^2)+(BD31^2)+(BD53^2)+(BD54^2)+(BD55^2))","v":105.9197809665409},{"$f":"BE29+BE30+BE31+BE53+BE54+BE55","v":575},{"$f":"SQRT((BF29^2)+(BF30^2)+(BF31^2)+(BF53^2)+(BF54^2)+(BF55^2))","v":190.71706793048176},{"$f":"BG29+BG30+BG31+BG53+BG54+BG55","v":1521},{"$f":"SQRT((BH29^2)+(BH30^2)+(BH31^2)+(BH53^2)+(BH54^2)+(BH55^2))","v":233.30452203075706},{"$f":"BI29+BI30+BI31+BI53+BI54+BI55","v":436},{"$f":"SQRT((BJ29^2)+(BJ30^2)+(BJ31^2)+(BJ53^2)+(BJ54^2)+(BJ55^2))","v":124.76778430348116},{"$f":"BK29+BK30+BK31+BK53+BK54+BK55","v":553},{"$f":"SQRT((BL29^2)+(BL30^2)+(BL31^2)+(BL53^2)+(BL54^2)+(BL55^2))","v":176.72860549441339},{"$f":"BM29+BM30+BM31+BM53+BM54+BM55","v":2325},{"$f":"SQRT((BN29^2)+(BN30^2)+(BN31^2)+(BN53^2)+(BN54^2)+(BN55^2))","v":324.89844567187453},{"$f":"BO29+BO30+BO31+BO53+BO54+BO55","v":316},{"$f":"SQRT((BP29^2)+(BP30^2)+(BP31^2)+(BP53^2)+(BP54^2)+(BP55^2))","v":148.81868162297366},{"$f":"BQ29+BQ30+BQ31+BQ53+BQ54+BQ55","v":937},{"$f":"SQRT((BR29^2)+(BR30^2)+(BR31^2)+(BR53^2)+(BR54^2)+(BR55^2))","v":200.16742991805634},{"$f":"BS29+BS30+BS31+BS53+BS54+BS55","v":75},{"$f":"SQRT((BT29^2)+(BT30^2)+(BT31^2)+(BT53^2)+(BT54^2)+(BT55^2))","v":25.238858928247925},{"$f":"BU29+BU30+BU31+BU53+BU54+BU55","v":448},{"$f":"SQRT((BV29^2)+(BV30^2)+(BV31^2)+(BV53^2)+(BV54^2)+(BV55^2))","v":139.53494186045302},{"$f":"BW29+BW30+BW31+BW53+BW54+BW55","v":999},{"$f":"SQRT((BX29^2)+(BX30^2)+(BX31^2)+(BX53^2)+(BX54^2)+(BX55^2))","v":227.51483468116976}]
[]
[]
[]
[]
[]
[]
[]
[]
[]
[]
[]
[]
[]
[]
[]
[]
[]
[]
[]
[]
[]
[]
[]
[]
[]
[]
[]
[]
[]
[]
[]
[]
[]
[]
[]
[]
[]
[]
[]
[]
[]
[]
[]
[]
[]
[]
[]
[]
[]
[]
[]
[]
[]
[]
[]
[]
[]
[]
[]
[]
[]
[]
[]
[]
[]
[]
[]
[]
[]
[]
[]
[]
[]
[]
[]
[]
[null,"Calculated B01001. GENDER BY AGE"]
[null,"Universe:  TOTAL POPULATION"]
[null,"Data Set: 2010-2014 American Community Survey 5-Year Estimates"]
[]
[null,null,"Atkinson",null,"Auburn",null,"Brentwood",null,"Candia",null,"Chester",null,"Danville",null,"Deerfield",null,"Derry",null,"East Kingston",null,"Epping",null,"Exeter",null,"Fremont",null,"Greenland",null,"Hampstead",null,"Hampton",null,"Hampton Falls",null,"Kensington",null,"Kingston",null,"Londonderry",null,"New Castle",null,"Newfields",null,"Newington",null,"Newmarket",null,"Newton",null,"North Hampton",null,"Northwood",null,"Nottingham",null,"Plaistow",null,"Portsmouth",null,"Raymond",null,"Rye",null,"Salem",null,"Sandown",null,"Seabrook",null,"South Hampton",null,"Stratham",null,"Windham"]
[null,null,"Estimate","Margin Of Error","Estimate","Margin Of Error","Estimate","Margin Of Error","Estimate","Margin Of Error","Estimate","Margin Of Error","Estimate","Margin Of Error","Estimate","Margin Of Error","Estimate","Margin Of Error","Estimate","Margin Of Error","Estimate","Margin Of Error","Estimate","Margin Of Error","Estimate","Margin Of Error","Estimate","Margin Of Error","Estimate","Margin Of Error","Estimate","Margin Of Error","Estimate","Margin Of Error","Estimate","Margin Of Error","Estimate","Margin Of Error","Estimate","Margin Of Error","Estimate","Margin Of Error","Estimate","Margin Of Error","Estimate","Margin Of Error","Estimate","Margin Of Error","Estimate","Margin Of Error","Estimate","Margin Of Error","Estimate","Margin Of Error","Estimate","Margin Of Error","Estimate","Margin Of Error","Estimate","Margin Of Error","Estimate","Margin Of Error","Estimate","Margin Of Error","Estimate","Margin Of Error","Estimate","Margin Of Error","Estimate","Margin Of Error","Estimate","Margin Of Error","Estimate","Margin Of Error","Estimate","Margin Of Error"]
[null,"Total",6788,19,5078,20,4598,18,3920,21,4802,18,4423,38,4330,19,33180,26,2453,130,6587,17,14434,32,4375,17,3668,15,8543,38,15073,30,2307,123,2055,149,6060,19,24247,24,980,160,1625,222,800,136,8928,25,4717,34,4344,22,4269,16,4855,17,7614,26,21366,32,10202,23,5315,18,28841,26,6133,38,8747,19,799,123,7303,19,13943,21]
[null,"Under 15 yrs.",1022,220.03636063160107,906,164.9818171799547,850,155.00967711726904,573,114.52947218947619,976,188.7114198982139,951,186.80203425016549,816,183.40392580312997,5930,522.30642347189257,431,81.621075709647442,1225,232.08403650402153,2784,332.04216599703119,815,167.75577486334114,741,152.77761616153069,1559,248.08264751892665,2013,284.89120730552565,459,88.543774484714618,382,66.843099868273612,949,224.41256649305538,4637,389.57027607352182,71,37.841775856849004,330,72.138755187485728,58,30.331501776206203,1484,282.24634630053231,889,198.92460883460348,759,181.25120689253356,748,207.14970432032965,889,162.04937519163718,1276,295.67380675332066,2835,334.7416914577567,2033,334.06735847729868,647,171.77310616042314,4532,450.07110549334311,1098,246.44471996778506,1119,276.32770400377882,113,31.670175244226233,1513,267.43410403312441,2985,358.92617625355774]
[null,"15 to 24 yrs.",965,223.90846343986195,619,172.9942195566083,776,178.84350701101786,395,111.29690022637648,612,151.9802618763371,622,145.27215837867902,463,125.76565508913791,4403,473.59054044606933,319,64.976918978972833,606,189.7340243604188,1323,263.03231740605565,400,100.31450543166726,245,75.789181285985663,962,192.1145491627326,1864,348.30733555295672,178,65.642973729105236,202,48.28043081829324,625,189.309270771402,3223,321.38606068092002,107,64.884512790033341,216,51.468436929831086,126,38.470768123342687,1477,280.96974926137511,709,184.71599822430107,327,98.605273692637752,470,154.94515158597252,403,124.48694710691559,1036,242.56751637430762,2286,369.39680561694087,1112,228.85148022243595,492,175.28548142958104,3884,430.55893905480582,897,228.9606953169037,840,253.06323320466765,92,38.17066936798463,545,186.34376834227646,1661,304.78517024291062]
[null,"25 to 34 yrs.",425,145.52319402761884,436,140.16418943510499,285,102.59142264341595,354,92.558089867931045,404,123.94353553130554,338,104.52750834110607,344,98.341242619767627,4964,433.14431775102395,204,69.043464571239468,691,174.55658108475888,1395,265.15090043218788,563,142.25681003031102,292,89.587945617700157,671,181.98351573700296,830,184.8621107744905,245,74.337070160183202,153,42.497058721751557,731,196.50445287575548,2366,303.33150182597257,38,32.511536414017719,105,47.265209192385896,114,41.689327171351664,1388,264.09657324547021,526,172.41229654522905,307,110.02272492535349,392,125.43524225671189,481,122.3396910246221,694,216.06711920141851,3711,396.09342332333671,1507,236.36624124438751,218,101.69070754006975,2777,334.44282022492274,728,219.23275302746165,1119,517.88512239684974,60,24.859605789312106,561,175.55625878902751,1003,216.12496385193452]
[null,"35 to 44 yrs.",728,180.32470712578461,798,135.45478950557637,683,112.03124564156198,445,99.899949949937408,645,127.75366922323602,648,117.01709276853532,671,144.26364753464401,4395,425.06940609740428,295,51.117511676528231,1146,233.27022956219682,1945,249.17062427180295,592,119.12178642045291,542,114.27160627207444,826,162.03394706048482,1871,263.67593746870421,297,56.026779311325761,246,48.104053883222775,653,160.09372255026116,3225,299.94999583263876,96,51.507281038703645,279,70.675313936338483,50,21.400934559032695,1213,219.21906851366739,759,171.38553031105047,490,119.62441222426132,634,141.86613408421334,726,138.33654614742989,883,199.98749960935058,3002,342.22215007214248,1384,242.22097349321342,733,180.00555546982432,4008,365.81552728116941,874,175.28262891684389,883,212.26869764522513,86,26.343879744638983,1075,188.8570888264457,1959,260.76234390724437]
[null,"45 to 54 yrs.",1295,214.79525134415798,952,158.48659249286672,874,139.45967159003351,929,137.38267721950973,1006,135.65765735851406,907,142.97552238058094,862,141.11697275664611,6063,441.62653905760692,422,65.749524713111043,1015,193.72919243108407,2575,287.74120316701254,866,138.33654614742989,760,158.7765725792064,1883,239.6309662794022,2708,302.47479233813851,465,75.08661665037252,399,64.768819658845104,1223,245.7742866941129,4520,377.09813046473727,135,51.088159097779204,334,58.855755878248644,149,37.134889255254286,1451,219.65655009582574,794,132.28000604777731,837,146.74126890551273,752,148.8321201891581,1038,184.49390233826156,1204,233.39665807376076,3154,316.48854639623215,1575,255.24693925686944,942,254.33639141892377,5332,480.21037056690062,1275,224.36577279077127,1359,260.57052788064885,178,41.400483088968905,1242,192.26544151250894,2557,332.45902003104084]
[null,"55 to 64 yrs.",1222,231.39792566053828,890,147.85465836421929,641,129.58780806850621,741,138.58210562695314,691,130.47605144240072,523,122.94307625889309,725,135.07775538555561,3975,383.78900453243835,344,66.309878600401618,1032,232.32520310977887,1691,234.50159914166898,553,114.30660523346846,513,102.03430795570674,1244,199.59458910501556,2758,304.66046674946193,308,63.21392251711643,419,60.315835400000886,967,224.64638879803965,3646,333.73192834968609,205,61.538605769061746,189,49.274739979019678,156,35.608987629529715,1014,161.67869371070512,616,116.64904628842878,811,156.65886505397643,641,123.91529364852427,865,146.574213284602,1485,265.3375209049787,2825,300.41138460451197,1566,266.96629000680969,1005,210.73205736194956,3833,415.08432878151399,709,176.99717511870068,1672,302.60865817091224,136,32.984845004941285,1481,235.83468786419016,1954,307.0358285282029]
[null,"65 to 74 yrs.",622,156.16017418023074,313,75.676944970050158,278,78.498407627161455,315,101.48891565092219,322,90.299501659754469,226,101.21264743103995,336,90.487568206908946,1858,235.88768513849976,313,57.784080852774665,548,167.07782617690475,1360,230.90474226399076,395,111.15754585272202,280,76.302031427741156,935,163.25440269714014,1774,228.50820554194547,241,52.163205422979907,190,39.1279950930277,564,150.39614356757954,1892,232.2003445303215,154,45.617978911828175,87,30.430248109405877,87,34,513,117.39676315810415,249,91.142745185779873,526,111.83469944520797,405,104.0096149401583,279,75.888075479616688,527,149.03019828209315,1860,223.85486369520765,741,180.78440198202941,554,189.8815420202817,2720,318.04244999685181,325,102.62066068779717,1081,224.08703666209698,80,22.203603311174518,475,132.38202294873727,953,215.94906806930194]
[null,"Over 74 yrs. ",509,171.79348066792289,164,57.122675007390889,211,86.087165129303685,168,74.047282191853611,146,67.815927332743897,208,84.793867702800299,113,50.279220359906141,1592,267.47149380821872,125,44.50842616853577,324,160.80111939908875,1361,229.10477952238361,191,84.089238312640219,295,75.146523539016755,463,135.63922736435799,1255,212.52999788265186,114,35.972211497209898,64,21.071307505705477,348,117.94914158229385,738,155.12897859523216,174,51.224993899462788,85,33.466401061363023,60,24.248711305964282,388,135.07405376311175,175,59.623820743055369,287,81.774079022634055,227,95.262794416288244,174,69.942833800182839,509,169.57889019568444,1693,254.45235310368031,284,95.036834964133774,724,192.79782156445648,1755,257.61017060667461,227,91.569645625611116,674,242.11980505526597,54,19.974984355438178,411,121.26005112979294,871,214.70211922568441]
[]
[]
[]
[]
[]
[]
[]
[]
[]
[]
[]
[]
[]
[]
[]
[]
[]
[]
[]
[]
[]
[]
[]
[]
[]
[]
[]
[]
[]
[]
[]
[]
[]
[]
[]
[]
[]
[]
[]
[]
[]
[]
[]
[]
[]
[]
[]
[]
[]
[]
[]
[]
[]
[]
[]
[]
[]
[]
[]
[]
[]
[]
[]
[]
[]
[]
[]
[]
[]
[]
[]
[]
[]
[]
[]
[]
[null,"Calculated B01001. GENDER BY AGE"]
[null,"Universe:  TOTAL POPULATION"]
[null,"Data Set: 2005-2009 American Community Survey 5-Year Estimates"]
[]
[null,null,"Atkinson",null,"Auburn",null,"Brentwood",null,"Candia",null,"Chester",null,"Danville",null,"Deerfield",null,"Derry",null,"East Kingston",null,"Epping",null,"Exeter",null,"Fremont",null,"Greenland",null,"Hampstead",null,"Hampton",null,"Hampton Falls",null,"Kensington",null,"Kingston",null,"Londonderry",null,"New Castle",null,"Newfields",null,"Newington",null,"Newmarket",null,"Newton",null,"North Hampton",null,"Northwood",null,"Nottingham",null,"Plaistow",null,"Portsmouth",null,"Raymond",null,"Rye",null,"Salem",null,"Sandown",null,"Seabrook",null,"South Hampton",null,"Stratham",null,"Windham"]
[null,null,"Estimate","Margin Of Error","Estimate","Margin Of Error","Estimate","Margin Of Error","Estimate","Margin Of Error","Estimate","Margin Of Error","Estimate","Margin Of Error","Estimate","Margin Of Error","Estimate","Margin Of Error","Estimate","Margin Of Error","Estimate","Margin Of Error","Estimate","Margin Of Error","Estimate","Margin Of Error","Estimate","Margin Of Error","Estimate","Margin Of Error","Estimate","Margin Of Error","Estimate","Margin Of Error","Estimate","Margin Of Error","Estimate","Margin Of Error","Estimate","Margin Of Error","Estimate","Margin Of Error","Estimate","Margin Of Error","Estimate","Margin Of Error","Estimate","Margin Of Error","Estimate","Margin Of Error","Estimate","Margin Of Error","Estimate","Margin Of Error","Estimate","Margin Of Error","Estimate","Margin Of Error","Estimate","Margin Of Error","Estimate","Margin Of Error","Estimate","Margin Of Error","Estimate","Margin Of Error","Estimate","Margin Of Error","Estimate","Margin Of Error","Estimate","Margin Of Error","Estimate","Margin Of Error","Estimate","Margin Of Error"]
[null,"Total",6646,22,5157,19,3852,30,4170,24,4693,27,4357,22,4171,17,34194,21,2318,115,6228,15,14783,48,4083,20,3406,18,8879,20,15399,22,2342,147,2119,162,6233,31,24954,23,727,133,1836,240,691,109,9401,30,4523,25,4542,22,4077,20,4471,16,7665,30,20557,24,10181,17,5177,23,29423,51,5822,18,8494,17,798,129,7214,17,13097,27]
[null,"Under 15 yrs.",1164,207.96874765214125,1191,172.93929570806051,831,132.61975720080324,714,154.85477067239486,1129,238.03991261971174,1032,171.91858538273283,895,190.2918810669546,7162,550.92467724726214,456,66.708320320631671,1003,203.32978138974133,2421,346.93515244206662,908,171.30966114028712,717,168.14279645586961,1611,277.87047342242033,2224,300.32648900821255,492,79.145435749637514,445,82.704292512541329,1055,237.59208741033444,5688,575.87238169580598,60,118.57487086225311,494,81.301906496711382,57,31.496031496047245,1693,285.04561038542585,828,148.2700239428051,806,181.48829163337231,872,182.65815065307106,1065,209.01913787976449,1654,321.3627234139019,3103,379.76045081077098,1825,268.4809117982133,843,191.59331929897763,5616,474.16558289272746,1367,216.84787294322257,1384,277.45089655648979,126,35.735136770411273,1616,233.79905902291395,2804,324.07097987940853]
[null,"15 to 24 yrs.",630,224.34794405119919,486,162.22823428737675,445,92.184597411932103,459,216.85479012463617,531,152.82342752340034,488,235.43576618687314,531,130.14222988715076,4819,485.16182867162996,303,63.749509802036911,714,209.75938596401355,1798,318.87928750547599,370,159.28904544883179,331,150.08331019803634,1376,267.32564411219511,1655,303.36941177383062,293,126.45552577882866,206,167.18851635205093,948,214.78593994952277,3513,363.25748443769191,41,280.31946061591941,223,172.78888853164142,69,199.83493188129046,1367,253.25678668102856,702,204.87313147409057,470,169.29264603047588,463,167.10176540060851,389,184.03260580668851,1007,235.0957251844448,2532,428.31530441953623,1325,247.69537742961614,554,266.4169664266899,3727,438.85874720688889,853,186.23372412106247,599,237.49526311065659,45,255.62472493872733,683,157.89870170460554,1542,275.31436577120343]
[null,"25 to 34 yrs.",441,158.08225706890701,438,117.86008654332475,262,64.389440128020993,283,94.154128958851288,227,86.05230967266364,465,111.63332835672328,293,82.140124178138421,4257,415.43832273876706,114,33.181320046074113,861,198.27253970229967,1307,251.98015794899408,503,118.76447280226525,243,102.46950765959599,498,148.34082378091338,1184,232.84973695497274,158,50.921508225896062,134,50.931326312987373,683,172.66731016611106,2511,341.26236241343696,14,114.84772527133482,107,41.581245772583578,49,22.693611435820433,1640,258.80108191427638,466,115.90944741478151,541,149.70971912337555,470,143.90621946253748,590,148.32059870429327,576,188.09572031282372,3848,398.70415096911142,987,179.89163404672269,248,98.168222964460341,2750,379.13717834050516,569,136.58330791132568,793,226.31615055050756,90,121.64292005702592,520,148.81532179181013,1040,183.82328470571949]
[null,"35 to 44 yrs.",956,159.91872935963443,987,160.29660008871056,765,93.112834775878241,692,134.95554823718808,1104,173.61739544181626,752,135.31444860028807,708,132.82695509571843,5698,458.03602478407743,385,49.899899799498598,930,192.85746031719904,2100,277.47972898934438,801,135.22573719525437,678,120.5487453273571,1345,201.52419209613521,2636,338.79639903635342,345,50.537115073973112,388,62.513998432351137,816,163.55427233796127,4206,424.52561760157653,53,26.095976701399778,330,63.482280992415511,78,33.136083051561783,1452,253.59613561724476,960,160.49299050114308,639,128.55349081219072,557,129.67266481413884,807,157.23867208800766,1034,181.09389829588406,2906,262.13355374694021,1864,257.27028588626399,685,144.33987668000827,4851,401.55946010522524,1013,169.94999264489539,1509,269.06504789734396,133,38.183766184073569,1389,228.34184898962346,2212,254.6644851564505]
[null,"45 to 54 yrs.",1254,210.40437257813821,972,138.69390758068647,705,107.88419717456306,1032,165,827,148.41495881480412,925,150.05332385522155,863,154.92256130079957,5719,418.71589413348045,462,61.895072501775132,1175,229.00218339570478,2396,296.36801446849825,757,124.59935794377112,651,121.93440859740946,1869,254.91763375647437,2638,286.33546759002803,469,64.241730985396089,474,58.557663887829406,1146,242.76943794472976,4396,378.5894874398918,121,48.052055106935853,414,68.753181744556372,131,38.974350539810153,1322,190.84810714282708,764,154.463587942272,834,144.08677940741129,657,128.46400274006723,730,146.78555787270082,1500,232.25632391820895,3292,333.37816365203048,1820,247.78014448296699,1013,196.22945752358385,5289,423.48317558080157,1254,191.15961916681044,1256,257.17309346041628,142,28.0178514522438,1370,211.72859986312668,2167,238.62522917746983]
[null,"55 to 64 yrs.",1099,166.5653025092561,704,151.85519418182574,296,70.34912934784623,559,113.03539268742335,578,111.83469944520797,293,88.876318555619747,505,113.88590782006349,3721,360.35399262391974,307,53.497663500381023,717,156.34257257701756,1734,241.57400522407207,423,109.35264057168442,360,84.823345842993007,1112,203.05417996190081,2535,296.59231277968081,330,59.799665550904216,273,50.189640365318418,888,189.65231345807516,2960,319.35246985110354,185,58.668560575490517,157,41.340053217188775,159,44.50842616853577,1031,198.38094666575216,445,115.26057435220423,560,107.25670142233538,596,138.30039768561767,523,119.00420160649792,998,192.97668252926312,2056,252.91105155765732,1443,242.30971916124207,905,185.68791021496256,3277,323.2723310151984,407,93.300589494386372,1265,256.59111442136884,139,41.928510586473259,991,195.94386951369518,2009,263.51470547200967]
[null,"65 to 74 yrs.",556,138.78040207464454,213,69.856996786291916,156,52.848841046895245,315,79.113842025273939,214,64.637450444769243,287,83.731714421717172,233,68.8839603971781,1597,234.49946695035365,201,44.988887516807971,440,139.98214171814917,1329,232.61126369976154,180,75.617458301638251,249,74.417739820556221,624,156.43529013620935,1494,232.72086283786419,123,31.176914536239792,107,27.477263328068172,326,116.27983488120371,1137,227.66861883008821,119,48.19751030914356,75,20.928449536456348,94,33.045423283716609,543,136.24243098242192,185,139.30900904105232,328,94.609724658726279,214,70.562029449272501,252,70.753091805234916,349,152.34500319997372,1277,209.12914670126688,601,143.80542409798039,405,129.38315191708693,2049,254.22234362856463,298,106,899,186.66011893278113,41,15.066519173319364,370,111.74972035759194,892,192.05467971387731]
[null,"Over 74 yrs. ",546,154.12657136263039,166,74.833147735478832,392,147.42455697745882,116,58.266628527828857,83,121.12803143781376,115,130.0769003320728,143,184.22811946062956,1221,236.8733838995002,90,30.232432915661949,388,148.69095466772686,1698,276.46157056632666,141,67.749538743817283,177,60.876925020897694,444,179.71644332113854,1033,197.46138863079031,132,35.580893749314392,92,24.919871588754223,371,136,543,130.56798995159571,134,45.486261662176638,36,115.35163631262454,54,20.760539492026695,353,110.75197515168747,173,182.3567931281969,364,97.596106479715672,248,86.804377769787621,115,127.23993083933989,547,176.78518037437414,1543,223.98660674245681,316,98.427638394914254,524,137.08391590555036,1864,256.32791498391276,61,168.54079624826744,789,180.94197965093673,82,119.05040949110591,275,101.70054080485511,431,183.61917111238685]

{"sheet":"ACS_Table_B01002","index":25,"n_rows":49,"n_cols":76,"rows_kept":49,"cut":false,"hidden":true,"merged":[[64774,16,64774,17],[64774,18,64774,19],[64774,20,64774,21],[64774,22,64774,23],[64754,16,64754,17],[64754,18,64754,19],[64754,20,64754,21],[64754,22,64754,23],[64856,16,64856,17],[64856,18,64856,19],[64856,20,64856,21],[64856,22,64856,23],[64836,16,64836,17],[64836,18,64836,19],[64836,20,64836,21],[64836,22,64836,23],[64938,16,64938,17],[64938,18,64938,19],[64938,20,64938,21],[64938,22,64938,23],[64918,16,64918,17],[64918,18,64918,19],[64918,20,64918,21],[64918,22,64918,23],[64364,16,64364,17],[64364,18,64364,19],[64364,20,64364,21],[64364,22,64364,23],[64344,16,64344,17],[64344,18,64344,19],[64344,20,64344,21],[64344,22,64344,23],[64446,16,64446,17],[64446,18,64446,19],[64446,20,64446,21],[64446,22,64446,23],[64426,16,64426,17],[64426,18,64426,19],[64426,20,64426,21],[64426,22,64426,23],[64528,16,64528,17],[64528,18,64528,19],[64528,20,64528,21],[64528,22,64528,23],[64508,16,64508,17],[64508,18,64508,19],[64508,20,64508,21],[64508,22,64508,23],[64610,16,64610,17],[64610,18,64610,19],[64610,20,64610,21],[64610,22,64610,23],[64590,16,64590,17],[64590,18,64590,19],[64590,20,64590,21],[64590,22,64590,23],[64692,16,64692,17],[64692,18,64692,19],[64692,20,64692,21],[64692,22,64692,23],[64672,16,64672,17],[64672,18,64672,19],[64672,20,64672,21],[64672,22,64672,23],[63954,16,63954,17],[63954,18,63954,19],[63954,20,63954,21],[63954,22,63954,23],[63934,16,63934,17],[63934,18,63934,19],[63934,20,63934,21],[63934,22,63934,23],[64036,16,64036,17],[64036,18,64036,19],[64036,20,64036,21],[64036,22,64036,23],[64016,16,64016,17],[64016,18,64016,19],[64016,20,64016,21],[64016,22,64016,23],[64118,16,64118,17],[64118,18,64118,19],[64118,20,64118,21],[64118,22,64118,23],[64098,16,64098,17],[64098,18,64098,19],[64098,20,64098,21],[64098,22,64098,23],[64200,16,64200,17],[64200,18,64200,19],[64200,20,64200,21],[64200,22,64200,23],[64180,16,64180,17],[64180,18,64180,19],[64180,20,64180,21],[64180,22,64180,23],[64282,16,64282,17],[64282,18,64282,19],[64282,20,64282,21],[64282,22,64282,23],[64262,16,64262,17],[64262,18,64262,19],[64262,20,64262,21],[64262,22,64262,23],[63544,16,63544,17],[63544,18,63544,19],[63544,20,63544,21],[63544,22,63544,23],[63524,16,63524,17],[63524,18,63524,19],[63524,20,63524,21],[63524,22,63524,23],[63626,16,63626,17],[63626,18,63626,19],[63626,20,63626,21],[63626,22,63626,23],[63606,16,63606,17],[63606,18,63606,19],[63606,20,63606,21],[63606,22,63606,23],[63708,16,63708,17],[63708,18,63708,19],[63708,20,63708,21],[63708,22,63708,23],[63688,16,63688,17],[63688,18,63688,19],[63688,20,63688,21],[63688,22,63688,23],[63790,16,63790,17],[63790,18,63790,19],[63790,20,63790,21],[63790,22,63790,23],[63770,16,63770,17],[63770,18,63770,19],[63770,20,63770,21],[63770,22,63770,23],[63872,16,63872,17],[63872,18,63872,19],[63872,20,63872,21],[63872,22,63872,23],[63852,16,63852,17],[63852,18,63852,19],[63852,20,63852,21],[63852,22,63852,23],[63134,16,63134,17],[63134,18,63134,19],[63134,20,63134,21],[63134,22,63134,23],[63114,16,63114,17],[63114,18,63114,19],[63114,20,63114,21],[63114,22,63114,23],[63216,16,63216,17],[63216,18,63216,19],[63216,20,63216,21],[63216,22,63216,23],[63196,16,63196,17],[63196,18,63196,19],[63196,20,63196,21],[63196,22,63196,23],[63298,16,63298,17],[63298,18,63298,19],[63298,20,63298,21],[63298,22,63298,23],[63278,16,63278,17],[63278,18,63278,19],[63278,20,63278,21],[63278,22,63278,23],[63380,16,63380,17],[63380,18,63380,19],[63380,20,63380,21],[63380,22,63380,23],[63360,16,63360,17],[63360,18,63360,19],[63360,20,63360,21],[63360,22,63360,23],[63462,16,63462,17],[63462,18,63462,19],[63462,20,63462,21],[63462,22,63462,23],[63442,16,63442,17],[63442,18,63442,19],[63442,20,63442,21],[63442,22,63442,23],[62724,16,62724,17],[62724,18,62724,19],[62724,20,62724,21],[62724,22,62724,23],[62704,16,62704,17],[62704,18,62704,19],[62704,20,62704,21],[62704,22,62704,23],[62806,16,62806,17],[62806,18,62806,19],[62806,20,62806,21],[62806,22,62806,23],[62786,16,62786,17],[62786,18,62786,19],[62786,20,62786,21],[62786,22,62786,23],[62888,16,62888,17],[62888,18,62888,19],[62888,20,62888,21],[62888,22,62888,23],[62868,16,62868,17],[62868,18,62868,19],[62868,20,62868,21],[62868,22,62868,23],[62970,16,62970,17],[62970,18,62970,19],[62970,20,62970,21],[62970,22,62970,23],[62950,16,62950,17],[62950,18,62950,19],[62950,20,62950,21],[62950,22,62950,23],[63052,16,63052,17],[63052,18,63052,19],[63052,20,63052,21],[63052,22,63052,23],[63032,16,63032,17],[63032,18,63032,19],[63032,20,63032,21],[63032,22,63032,23],[62314,16,62314,17],[62314,18,62314,19],[62314,20,62314,21],[62314,22,62314,23],[62294,16,62294,17],[62294,18,62294,19],[62294,20,62294,21],[62294,22,62294,23],[62396,16,62396,17],[62396,18,62396,19],[62396,20,62396,21],[62396,22,62396,23],[62376,16,62376,17],[62376,18,62376,19],[62376,20,62376,21],[62376,22,62376,23],[62478,16,62478,17],[62478,18,62478,19],[62478,20,62478,21],[62478,22,62478,23],[62458,16,62458,17],[62458,18,62458,19],[62458,20,62458,21],[62458,22,62458,23],[62560,16,62560,17],[62560,18,62560,19],[62560,20,62560,21],[62560,22,62560,23],[62540,16,62540,17],[62540,18,62540,19],[62540,20,62540,21],[62540,22,62540,23],[62642,16,62642,17],[62642,18,62642,19],[62642,20,62642,21],[62642,22,62642,23],[62622,16,62622,17],[62622,18,62622,19],[62622,20,62622,21],[62622,22,62622,23],[61904,16,61904,17],[61904,18,61904,19],[61904,20,61904,21],[61904,22,61904,23],[61884,16,61884,17],[61884,18,61884,19],[61884,20,61884,21],[61884,22,61884,23],[61986,16,61986,17],[61986,18,61986,19],[61986,20,61986,21],[61986,22,61986,23],[61966,16,61966,17],[61966,18,61966,19],[61966,20,61966,21],[61966,22,61966,23],[62068,16,62068,17],[62068,18,62068,19],[62068,20,62068,21],[62068,22,62068,23],[62048,16,62048,17],[62048,18,62048,19],[62048,20,62048,21],[62048,22,62048,23],[62150,16,62150,17],[62150,18,62150,19],[62150,20,62150,21],[62150,22,62150,23],[62130,16,62130,17],[62130,18,62130,19],[62130,20,62130,21],[62130,22,62130,23],[62232,16,62232,17],[62232,18,62232,19],[62232,20,62232,21],[62232,22,62232,23],[62212,16,62212,17],[62212,18,62212,19],[62212,20,62212,21],[62212,22,62212,23],[61494,16,61494,17],[61494,18,61494,19],[61494,20,61494,21],[61494,22,61494,23],[61474,16,61474,17],[61474,18,61474,19],[61474,20,61474,21],[61474,22,61474,23],[61576,16,61576,17],[61576,18,61576,19],[61576,20,61576,21],[61576,22,61576,23],[61556,16,61556,17],[61556,18,61556,19],[61556,20,61556,21],[61556,22,61556,23],[61658,16,61658,17],[61658,18,61658,19],[61658,20,61658,21],[61658,22,61658,23],[61638,16,61638,17],[61638,18,61638,19],[61638,20,61638,21],[61638,22,61638,23],[61740,16,61740,17],[61740,18,61740,19],[61740,20,61740,21],[61740,22,61740,23],[61720,16,61720,17],[61720,18,61720,19],[61720,20,61720,21],[61720,22,61720,23],[61822,16,61822,17],[61822,18,61822,19],[61822,20,61822,21],[61822,22,61822,23],[61802,16,61802,17],[61802,18,61802,19],[61802,20,61802,21],[61802,22,61802,23],[61084,16,61084,17],[61084,18,61084,19],[61084,20,61084,21],[61084,22,61084,23],[61064,16,61064,17],[61064,18,61064,19],[61064,20,61064,21],[61064,22,61064,23],[61166,16,61166,17],[61166,18,61166,19],[61166,20,61166,21],[61166,22,61166,23],[61146,16,61146,17],[61146,18,61146,19],[61146,20,61146,21],[61146,22,61146,23],[61248,16,61248,17],[61248,18,61248,19],[61248,20,61248,21],[61248,22,61248,23],[61228,16,61228,17],[61228,18,61228,19],[61228,20,61228,21],[61228,22,61228,23],[61330,16,61330,17],[61330,18,61330,19],[61330,20,61330,21],[61330,22,61330,23],[61310,16,61310,17],[61310,18,61310,19],[61310,20,61310,21],[61310,22,61310,23],[61412,16,61412,17],[61412,18,61412,19],[61412,20,61412,21],[61412,22,61412,23],[61392,16,61392,17],[61392,18,61392,19],[61392,20,61392,21],[61392,22,61392,23],[60674,16,60674,17],[60674,18,60674,19],[60674,20,60674,21],[60674,22,60674,23],[60654,16,60654,17],[60654,18,60654,19],[60654,20,60654,21],[60654,22,60654,23],[60756,16,60756,17],[60756,18,60756,19],[60756,20,60756,21],[60756,22,60756,23],[60736,16,60736,17],[60736,18,60736,19],[60736,20,60736,21],[60736,22,60736,23],[60838,16,60838,17],[60838,18,60838,19],[60838,20,60838,21],[60838,22,60838,23],[60818,16,60818,17],[60818,18,60818,19],[60818,20,60818,21],[60818,22,60818,23],[60920,16,60920,17],[60920,18,60920,19],[60920,20,60920,21],[60920,22,60920,23],[60900,16,60900,17],[60900,18,60900,19],[60900,20,60900,21],[60900,22,60900,23],[61002,16,61002,17],[61002,18,61002,19],[61002,20,61002,21],[61002,22,61002,23],[60982,16,60982,17],[60982,18,60982,19],[60982,20,60982,21],[60982,22,60982,23],[60264,16,60264,17],[60264,18,60264,19],[60264,20,60264,21],[60264,22,60264,23],[60244,16,60244,17],[60244,18,60244,19],[60244,20,60244,21],[60244,22,60244,23],[60346,16,60346,17],[60346,18,60346,19],[60346,20,60346,21],[60346,22,60346,23],[60326,16,60326,17],[60326,18,60326,19],[60326,20,60326,21],[60326,22,60326,23],[60428,16,60428,17],[60428,18,60428,19],[60428,20,60428,21],[60428,22,60428,23],[60408,16,60408,17],[60408,18,60408,19],[60408,20,60408,21],[60408,22,60408,23],[60510,16,60510,17],[60510,18,60510,19],[60510,20,60510,21],[60510,22,60510,23],[60490,16,60490,17],[60490,18,60490,19],[60490,20,60490,21],[60490,22,60490,23],[60592,16,60592,17],[60592,18,60592,19],[60592,20,60592,21],[60592,22,60592,23],[60572,16,60572,17],[60572,18,60572,19],[60572,20,60572,21],[60572,22,60572,23],[59854,16,59854,17],[59854,18,59854,19],[59854,20,59854,21],[59854,22,59854,23],[59834,16,59834,17],[59834,18,59834,19],[59834,20,59834,21],[59834,22,59834,23],[59936,16,59936,17],[59936,18,59936,19],[59936,20,59936,21],[59936,22,59936,23],[59916,16,59916,17],[59916,18,59916,19],[59916,20,59916,21],[59916,22,59916,23],[60018,16,60018,17],[60018,18,60018,19],[60018,20,60018,21],[60018,22,60018,23],[59998,16,59998,17],[59998,18,59998,19],[59998,20,59998,21],[59998,22,59998,23],[60100,16,60100,17],[60100,18,60100,19],[60100,20,60100,21],[60100,22,60100,23],[60080,16,60080,17],[60080,18,60080,19],[60080,20,60080,21],[60080,22,60080,23],[60182,16,60182,17],[60182,18,60182,19],[60182,20,60182,21],[60182,22,60182,23],[60162,16,60162,17],[60162,18,60162,19],[60162,20,60162,21],[60162,22,60162,23],[59444,16,59444,17],[59444,18,59444,19],[59444,20,59444,21],[59444,22,59444,23],[59424,16,59424,17],[59424,18,59424,19],[59424,20,59424,21],[59424,22,59424,23],[59526,16,59526,17],[59526,18,59526,19],[59526,20,59526,21],[59526,22,59526,23],[59506,16,59506,17],[59506,18,59506,19],[59506,20,59506,21],[59506,22,59506,23],[59608,16,59608,17],[59608,18,59608,19],[59608,20,59608,21],[59608,22,59608,23],[59588,16,59588,17],[59588,18,59588,19],[59588,20,59588,21],[59588,22,59588,23],[59690,16,59690,17],[59690,18,59690,19],[59690,20,59690,21],[59690,22,59690,23],[59670,16,59670,17],[59670,18,59670,19],[59670,20,59670,21],[59670,22,59670,23],[59772,16,59772,17],[59772,18,59772,19],[59772,20,59772,21],[59772,22,59772,23],[59752,16,59752,17],[59752,18,59752,19],[59752,20,59752,21],[59752,22,59752,23],[59034,16,59034,17],[59034,18,59034,19],[59034,20,59034,21],[59034,22,59034,23],[59014,16,59014,17],[59014,18,59014,19],[59014,20,59014,21],[59014,22,59014,23],[59116,16,59116,17],[59116,18,59116,19],[59116,20,59116,21],[59116,22,59116,23],[59096,16,59096,17],[59096,18,59096,19],[59096,20,59096,21],[59096,22,59096,23],[59198,16,59198,17],[59198,18,59198,19],[59198,20,59198,21],[59198,22,59198,23],[59178,16,59178,17],[59178,18,59178,19],[59178,20,59178,21],[59178,22,59178,23],[59280,16,59280,17],[59280,18,59280,19],[59280,20,59280,21],[59280,22,59280,23],[59260,16,59260,17],[59260,18,59260,19],[59260,20,59260,21],[59260,22,59260,23],[59362,16,59362,17],[59362,18,59362,19],[59362,20,59362,21],[59362,22,59362,23],[59342,16,59342,17],[59342,18,59342,19],[59342,20,59342,21],[59342,22,59342,23],[58624,16,58624,17],[58624,18,58624,19],[58624,20,58624,21],[58624,22,58624,23],[58604,16,58604,17],[58604,18,58604,19],[58604,20,58604,21],[58604,22,58604,23],[58706,16,58706,17],[58706,18,58706,19],[58706,20,58706,21],[58706,22,58706,23],[58686,16,58686,17],[58686,18,58686,19],[58686,20,58686,21],[58686,22,58686,23],[58788,16,58788,17],[58788,18,58788,19],[58788,20,58788,21],[58788,22,58788,23],[58768,16,58768,17],[58768,18,58768,19],[58768,20,58768,21],[58768,22,58768,23],[58870,16,58870,17],[58870,18,58870,19],[58870,20,58870,21],[58870,22,58870,23],[58850,16,58850,17],[58850,18,58850,19],[58850,20,58850,21],[58850,22,58850,23],[58952,16,58952,17],[58952,18,58952,19],[58952,20,58952,21],[58952,22,58952,23],[58932,16,58932,17],[58932,18,58932,19],[58932,20,58932,21],[58932,22,58932,23],[58214,16,58214,17],[58214,18,58214,19],[58214,20,58214,21],[58214,22,58214,23],[58194,16,58194,17],[58194,18,58194,19],[58194,20,58194,21],[58194,22,58194,23],[58296,16,58296,17],[58296,18,58296,19],[58296,20,58296,21],[58296,22,58296,23],[58276,16,58276,17],[58276,18,58276,19],[58276,20,58276,21],[58276,22,58276,23],[58378,16,58378,17],[58378,18,58378,19],[58378,20,58378,21],[58378,22,58378,23],[58358,16,58358,17],[58358,18,58358,19],[58358,20,58358,21],[58358,22,58358,23],[58460,16,58460,17],[58460,18,58460,19],[58460,20,58460,21],[58460,22,58460,23],[58440,16,58440,17],[58440,18,58440,19],[58440,20,58440,21],[58440,22,58440,23],[58542,16,58542,17],[58542,18,58542,19],[58542,20,58542,21],[58542,22,58542,23],[58522,16,58522,17],[58522,18,58522,19],[58522,20,58522,21],[58522,22,58522,23],[57804,16,57804,17],[57804,18,57804,19],[57804,20,57804,21],[57804,22,57804,23],[57784,16,57784,17],[57784,18,57784,19],[57784,20,57784,21],[57784,22,57784,23],[57886,16,57886,17],[57886,18,57886,19],[57886,20,57886,21],[57886,22,57886,23],[57866,16,57866,17],[57866,18,57866,19],[57866,20,57866,21],[57866,22,57866,23],[57968,16,57968,17],[57968,18,57968,19],[57968,20,57968,21],[57968,22,57968,23],[57948,16,57948,17],[57948,18,57948,19],[57948,20,57948,21],[57948,22,57948,23],[58050,16,58050,17],[58050,18,58050,19],[58050,20,58050,21],[58050,22,58050,23],[58030,16,58030,17],[58030,18,58030,19],[58030,20,58030,21],[58030,22,58030,23],[58132,16,58132,17],[58132,18,58132,19],[58132,20,58132,21],[58132,22,58132,23],[58112,16,58112,17],[58112,18,58112,19],[58112,20,58112,21],[58112,22,58112,23],[57394,16,57394,17],[57394,18,57394,19],[57394,20,57394,21],[57394,22,57394,23],[57374,16,57374,17],[57374,18,57374,19],[57374,20,57374,21],[57374,22,57374,23],[57476,16,57476,17],[57476,18,57476,19],[57476,20,57476,21],[57476,22,57476,23],[57456,16,57456,17],[57456,18,57456,19],[57456,20,57456,21],[57456,22,57456,23],[57558,16,57558,17],[57558,18,57558,19],[57558,20,57558,21],[57558,22,57558,23],[57538,16,57538,17],[57538,18,57538,19],[57538,20,57538,21],[57538,22,57538,23],[57640,16,57640,17],[57640,18,57640,19],[57640,20,57640,21],[57640,22,57640,23],[57620,16,57620,17],[57620,18,57620,19],[57620,20,57620,21],[57620,22,57620,23],[57722,16,57722,17],[57722,18,57722,19],[57722,20,57722,21],[57722,22,57722,23],[57702,16,57702,17],[57702,18,57702,19],[57702,20,57702,21],[57702,22,57702,23],[56984,16,56984,17],[56984,18,56984,19],[56984,20,56984,21],[56984,22,56984,23],[56964,16,56964,17],[56964,18,56964,19],[56964,20,56964,21],[56964,22,56964,23],[57066,16,57066,17],[57066,18,57066,19],[57066,20,57066,21],[57066,22,57066,23],[57046,16,57046,17],[57046,18,57046,19],[57046,20,57046,21],[57046,22,57046,23],[57148,16,57148,17],[57148,18,57148,19],[57148,20,57148,21],[57148,22,57148,23],[57128,16,57128,17],[57128,18,57128,19],[57128,20,57128,21],[57128,22,57128,23],[57230,16,57230,17],[57230,18,57230,19],[57230,20,57230,21],[57230,22,57230,23],[57210,16,57210,17],[57210,18,57210,19],[57210,20,57210,21],[57210,22,57210,23],[57312,16,57312,17],[57312,18,57312,19],[57312,20,57312,21],[57312,22,57312,23],[57292,16,57292,17],[57292,18,57292,19],[57292,20,57292,21],[57292,22,57292,23],[56574,16,56574,17],[56574,18,56574,19],[56574,20,56574,21],[56574,22,56574,23],[56554,16,56554,17],[56554,18,56554,19],[56554,20,56554,21],[56554,22,56554,23],[56656,16,56656,17],[56656,18,56656,19],[56656,20,56656,21],[56656,22,56656,23],[56636,16,56636,17],[56636,18,56636,19],[56636,20,56636,21],[56636,22,56636,23],[56738,16,56738,17],[56738,18,56738,19],[56738,20,56738,21],[56738,22,56738,23],[56718,16,56718,17],[56718,18,56718,19],[56718,20,56718,21],[56718,22,56718,23],[56820,16,56820,17],[56820,18,56820,19],[56820,20,56820,21],[56820,22,56820,23],[56800,16,56800,17],[56800,18,56800,19],[56800,20,56800,21],[56800,22,56800,23],[56902,16,56902,17],[56902,18,56902,19],[56902,20,56902,21],[56902,22,56902,23],[56882,16,56882,17],[56882,18,56882,19],[56882,20,56882,21],[56882,22,56882,23],[56164,16,56164,17],[56164,18,56164,19],[56164,20,56164,21],[56164,22,56164,23],[56144,16,56144,17],[56144,18,56144,19],[56144,20,56144,21],[56144,22,56144,23],[56246,16,56246,17],[56246,18,56246,19],[56246,20,56246,21],[56246,22,56246,23],[56226,16,56226,17],[56226,18,56226,19],[56226,20,56226,21],[56226,22,56226,23],[56328,16,56328,17],[56328,18,56328,19],[56328,20,56328,21],[56328,22,56328,23],[56308,16,56308,17],[56308,18,56308,19],[56308,20,56308,21],[56308,22,56308,23],[56410,16,56410,17],[56410,18,56410,19],[56410,20,56410,21],[56410,22,56410,23],[56390,16,56390,17],[56390,18,56390,19],[56390,20,56390,21],[56390,22,56390,23],[56492,16,56492,17],[56492,18,56492,19],[56492,20,56492,21],[56492,22,56492,23],[56472,16,56472,17],[56472,18,56472,19],[56472,20,56472,21],[56472,22,56472,23],[55754,16,55754,17],[55754,18,55754,19],[55754,20,55754,21],[55754,22,55754,23],[55734,16,55734,17],[55734,18,55734,19],[55734,20,55734,21],[55734,22,55734,23],[55836,16,55836,17],[55836,18,55836,19],[55836,20,55836,21],[55836,22,55836,23],[55816,16,55816,17],[55816,18,55816,19],[55816,20,55816,21],[55816,22,55816,23],[55918,16,55918,17],[55918,18,55918,19],[55918,20,55918,21],[55918,22,55918,23],[55898,16,55898,17],[55898,18,55898,19],[55898,20,55898,21],[55898,22,55898,23],[56000,16,56000,17],[56000,18,56000,19],[56000,20,56000,21],[56000,22,56000,23],[55980,16,55980,17],[55980,18,55980,19],[55980,20,55980,21],[55980,22,55980,23],[56082,16,56082,17],[56082,18,56082,19],[56082,20,56082,21],[56082,22,56082,23],[56062,16,56062,17],[56062,18,56062,19],[56062,20,56062,21],[56062,22,56062,23],[55344,16,55344,17],[55344,18,55344,19],[55344,20,55344,21],[55344,22,55344,23],[55324,16,55324,17],[55324,18,55324,19],[55324,20,55324,21],[55324,22,55324,23],[55426,16,55426,17],[55426,18,55426,19],[55426,20,55426,21],[55426,22,55426,23],[55406,16,55406,17],[55406,18,55406,19],[55406,20,55406,21],[55406,22,55406,23],[55508,16,55508,17],[55508,18,55508,19],[55508,20,55508,21],[55508,22,55508,23],[55488,16,55488,17],[55488,18,55488,19],[55488,20,55488,21],[55488,22,55488,23],[55590,16,55590,17],[55590,18,55590,19],[55590,20,55590,21],[55590,22,55590,23],[55570,16,55570,17],[55570,18,55570,19],[55570,20,55570,21],[55570,22,55570,23],[55672,16,55672,17],[55672,18,55672,19],[55672,20,55672,21],[55672,22,55672,23],[55652,16,55652,17],[55652,18,55652,19],[55652,20,55652,21],[55652,22,55652,23],[54934,16,54934,17],[54934,18,54934,19],[54934,20,54934,21],[54934,22,54934,23],[54914,16,54914,17],[54914,18,54914,19],[54914,20,54914,21],[54914,22,54914,23],[55016,16,55016,17],[55016,18,55016,19],[55016,20,55016,21],[55016,22,55016,23],[54996,16,54996,17],[54996,18,54996,19],[54996,20,54996,21],[54996,22,54996,23],[55098,16,55098,17],[55098,18,55098,19],[55098,20,55098,21],[55098,22,55098,23],[55078,16,55078,17],[55078,18,55078,19],[55078,20,55078,21],[55078,22,55078,23],[55180,16,55180,17],[55180,18,55180,19],[55180,20,55180,21],[55180,22,55180,23],[55160,16,55160,17],[55160,18,55160,19],[55160,20,55160,21],[55160,22,55160,23],[55262,16,55262,17],[55262,18,55262,19],[55262,20,55262,21],[55262,22,55262,23],[55242,16,55242,17],[55242,18,55242,19],[55242,20,55242,21],[55242,22,55242,23],[54524,16,54524,17],[54524,18,54524,19],[54524,20,54524,21],[54524,22,54524,23],[54504,16,54504,17],[54504,18,54504,19],[54504,20,54504,21],[54504,22,54504,23],[54606,16,54606,17],[54606,18,54606,19],[54606,20,54606,21],[54606,22,54606,23],[54586,16,54586,17],[54586,18,54586,19],[54586,20,54586,21],[54586,22,54586,23]],"merged_total":58608,"flags":["merged_cut"]}
[null,"B01001. GENDER BY AGE"]
[null,"Universe:  TOTAL POPULATION, Median Age"]
[null,"Data Set: 2015-2019 American Community Survey 5-Year Estimates"]
[]
[null,null,"Atkinson",null,"Auburn",null,"Brentwood",null,"Candia",null,"Chester",null,"Danville",null,"Deerfield",null,"Derry",null,"East Kingston",null,"Epping",null,"Exeter",null,"Fremont",null,"Greenland",null,"Hampstead",null,"Hampton",null,"Hampton Falls",null,"Kensington",null,"Kingston",null,"Londonderry",null,"New Castle",null,"Newfields",null,"Newington",null,"Newmarket",null,"Newton",null,"North Hampton",null,"Northwood",null,"Nottingham",null,"Plaistow",null,"Portsmouth",null,"Raymond",null,"Rye",null,"Salem",null,"Sandown",null,"Seabrook",null,"South Hampton",null,"Stratham",null,"Windham"]
[null,null,"Estimate","Margin Of Error","Estimate","Margin Of Error","Estimate","Margin Of Error","Estimate","Margin Of Error","Estimate","Margin Of Error","Estimate","Margin Of Error","Estimate","Margin Of Error","Estimate","Margin Of Error","Estimate","Margin Of Error","Estimate","Margin Of Error","Estimate","Margin Of Error","Estimate","Margin Of Error","Estimate","Margin Of Error","Estimate","Margin Of Error","Estimate","Margin Of Error","Estimate","Margin Of Error","Estimate","Margin Of Error","Estimate","Margin Of Error","Estimate","Margin Of Error","Estimate","Margin Of Error","Estimate","Margin Of Error","Estimate","Margin Of Error","Estimate","Margin Of Error","Estimate","Margin Of Error","Estimate","Margin Of Error","Estimate","Margin Of Error","Estimate","Margin Of Error","Estimate","Margin Of Error","Estimate","Margin Of Error","Estimate","Margin Of Error","Estimate","Margin Of Error","Estimate","Margin Of Error","Estimate","Margin Of Error","Estimate","Margin Of Error","Estimate","Margin Of Error","Estimate","Margin Of Error","Estimate","Margin Of Error"]
[null,"Total:",48.6,2.9,44.4,2,44.5,2,50.5,3.5,42.5,3.1,44.1,1.6,45.2,4.2,40.1,1.3,47.3,2.9,42.2,3.1,47.3,1.1000000000000001,46.1,1.3,45.2,3.4,45.2,2.6,51.4,1.1000000000000001,47.4,3.1,48.2,2.2999999999999998,45.5,5.0999999999999996,42.1,1.2,61.6,4.5,46.8,4.5999999999999996,55.7,3.3,36.299999999999997,1.5,43.7,2.6,51.8,3,44.2,2.2000000000000002,44.4,1.5,42.1,4.8,39.799999999999997,1.6,42.1,2.8,55.4,1.6,44,1.3,41.7,2.9,50.3,3.2,47.4,5,46.9,2.2000000000000002,44,1.4]
[null,"Male:",47,3.8,44,3.2,41.1,4.2,51.1,5.0999999999999996,40.6,3.6,43.6,2.4,46,5.0999999999999996,39.9,1.7,46.9,3.5,40,5,47.1,1.4,46.3,2.1,46.4,3.2,44.5,3.5,50.5,2.9,46.5,4.7,46.6,4.8,43.1,7.1,40,1.2,61.3,5,48.5,3,54.7,4.3,35.799999999999997,2.4,43.3,5.5,51.7,3,45.8,2.1,44.8,2.2000000000000002,41.5,5.6,37.4,2.5,41.2,3,53,5.0999999999999996,40.9,2.9,40.1,8.5,49.5,3.1,47.1,6.3,42.3,6.1,43.6,2.5]
[null,"Female:",50.1,4,44.8,2.7,47.2,2.5,50.3,4.5,44.5,3.4,44.5,1.9,44.4,4.4000000000000004,40.299999999999997,1.9,47.8,3.2,44.9,6.7,47.7,1.8,46,1.9,44,4.3,46.1,3,51.9,2.7,48,2.4,48.8,2.4,46.4,4.5999999999999996,44.2,1.7,62.2,6.1,42.6,5.2,56.7,3,37.700000000000003,3.3,43.8,2.2999999999999998,52,4.5,42.5,3.3,44.1,2.2000000000000002,42.6,7.2,41.5,1.7,43.4,5.9,56.3,1.3,46.8,1.5,42.7,4.2,52.2,4.8,47.7,4.4000000000000004,49.2,2.2000000000000002,44.1,1.2]
[]
[]
[]
[]
[]
[]
[]
[]
[]
[]
[]
[null,"B01001. GENDER BY AGE"]
[null,"Universe:  TOTAL POPULATION, Median Age"]
[null,"Data Set: 2010-2014 American Community Survey 5-Year Estimates"]
[]
[null,null,"Atkinson",null,"Auburn",null,"Brentwood",null,"Candia",null,"Chester",null,"Danville",null,"Deerfield",null,"Derry",null,"East Kingston",null,"Epping",null,"Exeter",null,"Fremont",null,"Greenland",null,"Hampstead",null,"Hampton",null,"Hampton Falls",null,"Kensington",null,"Kingston",null,"Londonderry",null,"New Castle",null,"Newfields",null,"Newington",null,"Newmarket",null,"Newton",null,"North Hampton",null,"Northwood",null,"Nottingham",null,"Plaistow",null,"Portsmouth",null,"Raymond",null,"Rye",null,"Salem",null,"Sandown",null,"Seabrook",null,"South Hampton",null,"Stratham",null,"Windham"]
[null,null,"Estimate","Margin Of Error","Estimate","Margin Of Error","Estimate","Margin Of Error","Estimate","Margin Of Error","Estimate","Margin Of Error","Estimate","Margin Of Error","Estimate","Margin Of Error","Estimate","Margin Of Error","Estimate","Margin Of Error","Estimate","Margin Of Error","Estimate","Margin Of Error","Estimate","Margin Of Error","Estimate","Margin Of Error","Estimate","Margin Of Error","Estimate","Margin Of Error","Estimate","Margin Of Error","Estimate","Margin Of Error","Estimate","Margin Of Error","Estimate","Margin Of Error","Estimate","Margin Of Error","Estimate","Margin Of Error","Estimate","Margin Of Error","Estimate","Margin Of Error","Estimate","Margin Of Error","Estimate","Margin Of Error","Estimate","Margin Of Error","Estimate","Margin Of Error","Estimate","Margin Of Error","Estimate","Margin Of Error","Estimate","Margin Of Error","Estimate","Margin Of Error","Estimate","Margin Of Error","Estimate","Margin Of Error","Estimate","Margin Of Error","Estimate","Margin Of Error","Estimate","Margin Of Error","Estimate","Margin Of Error"]
[null,"Total:",47.2,2,42.7,1.7,42.4,1.4,47.1,1.8,42.8,1.9,41.1,2.2000000000000002,42.3,2.4,38.5,1.6,44.5,2,41.6,3.8,44.3,1.3,43.5,2.4,45.2,2,46.2,1.4,48.6,1.3,44.5,1.9,45.8,2.1,45.4,2.6,41.4,1,55.9,4.0999999999999996,42.5,1.3,50.2,4.3,35.799999999999997,3.4,38.5,3.3,50.2,2.4,43.3,4.2,43.7,2.9,44.1,3.5,41.5,1.4,38.299999999999997,1.7,50.8,4.3,43.2,1.1000000000000001,39.700000000000003,2.9,48.6,3.9,48.5,2.9,44.7,1.9,42.7,1.1000000000000001]
[null,"Male:",47.7,3.6,43.7,1.5,40.200000000000003,4,45.8,2.2000000000000002,42.7,3.3,41.6,1.7,41.6,3.4,37.200000000000003,1.8,44.2,2.8,40.4,3,43.4,2,44.1,1.3,45.8,1.3,44.2,4,46.3,2.2000000000000002,44.9,2,45.6,2.2000000000000002,49.4,4.4000000000000004,40.1,1.3,56.4,6,42.1,2,52.2,4,35.9,4,41.2,3.6,50.5,3.7,42.6,5.3,46.1,3.3,43.3,4.2,38.299999999999997,1.7,37.6,3.4,50.3,6.9,42.1,1.2,41.9,4.4000000000000004,46.5,7.2,49,2.6,42.6,2.6,43.5,1.5]
[null,"Female:",47,1.9,40.6,1.6,43.9,1.7,47.9,2.5,43,2.9,39.799999999999997,3,42.7,3.5,39.700000000000003,1.4,44.8,2.9,43.5,2.6,45.6,2.6,42.5,4.3,43.9,3.4,48.4,2,49.8,1.3,43.9,2.9,46.4,2.4,44,2.2999999999999998,42.7,1.5,55.5,5.3,43.2,1.6,48.4,5.0999999999999996,35.799999999999997,3.4,35.299999999999997,3.6,50,3.6,44.6,3.8,41.5,3.4,46.1,7.7,44.5,1.5,38.700000000000003,1.6,51.3,3.7,44.3,1.4,38.9,3.3,49.8,2,48.2,4.5999999999999996,47.4,3,41.8,2.6]
[]
[]
[]
[]
[]
[]
[]
[]
[]
[]
[]
[null,"B01001. GENDER BY AGE"]
[null,"Universe:  TOTAL POPULATION, Median Age"]
[null,"Data Set: 2005-2009 American Community Survey 5-Year Estimates"]
[]
[null,null,"Atkinson",null,"Auburn",null,"Brentwood",null,"Candia",null,"Chester",null,"Danville",null,"Deerfield",null,"Derry",null,"East Kingston",null,"Epping",null,"Exeter",null,"Fremont",null,"Greenland",null,"Hampstead",null,"Hampton",null,"Hampton Falls",null,"Kensington",null,"Kingston",null,"Londonderry",null,"New Castle",null,"Newfields",null,"Newington",null,"Newmarket",null,"Newton",null,"North Hampton",null,"Northwood",null,"Nottingham",null,"Plaistow",null,"Portsmouth",null,"Raymond",null,"Rye",null,"Salem",null,"Sandown",null,"Seabrook",null,"South Hampton",null,"Stratham",null,"Windham"]
[null,null,"Estimate","Margin Of Error","Estimate","Margin Of Error","Estimate","Margin Of Error","Estimate","Margin Of Error","Estimate","Margin Of Error","Estimate","Margin Of Error","Estimate","Margin Of Error","Estimate","Margin Of Error","Estimate","Margin Of Error","Estimate","Margin Of Error","Estimate","Margin Of Error","Estimate","Margin Of Error","Estimate","Margin Of Error","Estimate","Margin Of Error","Estimate","Margin Of Error","Estimate","Margin Of Error","Estimate","Margin Of Error","Estimate","Margin Of Error","Estimate","Margin Of Error","Estimate","Margin Of Error","Estimate","Margin Of Error","Estimate","Margin Of Error","Estimate","Margin Of Error","Estimate","Margin Of Error","Estimate","Margin Of Error","Estimate","Margin Of Error","Estimate","Margin Of Error","Estimate","Margin Of Error","Estimate","Margin Of Error","Estimate","Margin Of Error","Estimate","Margin Of Error","Estimate","Margin Of Error","Estimate","Margin Of Error","Estimate","Margin Of Error","Estimate","Margin Of Error","Estimate","Margin Of Error","Estimate","Margin Of Error"]
[null,"Total:",46.3,1.9,39.9,1.9,40.9,2.2000000000000002,44.4,1.4,39.799999999999997,0.9,38.4,2.8,40.200000000000003,1.7,36.6,1.1000000000000001,43.4,0.6,41.1,2.6,43.9,1.7,37.799999999999997,3.2,41.8,2.2999999999999998,43,1.2,45,1.5,41.3,2.2000000000000002,43.3,1.9,41.8,3.4,36.799999999999997,1.1000000000000001,61.9,4.4000000000000004,39.200000000000003,2.1,52.7,4.4000000000000004,35,1.5,38.299999999999997,1.9,42.6,2.1,39.200000000000003,4.4000000000000004,36.9,1.5,41.6,1.8,37.5,1.1000000000000001,40.4,1.8,47.4,2.7,41.1,1.5,36.1,1.6,44.9,1.9,45.3,3.5,41.6,1.3,40.700000000000003,1.8]
[null,"Male:",45.4,3.3,40.9,2,38.9,2.7,45.1,0.9,42.7,3.3,35.200000000000003,7.1,40.299999999999997,1.9,35.200000000000003,2,43.5,2,40.1,3.7,42.2,2.1,36.799999999999997,3.7,41.1,3,41.8,2,44.4,1.5,42.8,2.2999999999999998,43.3,2,42.5,4.2,37.799999999999997,2.1,61.8,4.3,37.6,6.4,49.9,4.8,34.299999999999997,1.9,38.5,4.5,42.2,2.8,35.9,4.8,36.9,2.4,41.5,1.8,34.9,3.3,39.700000000000003,1.8,45.6,3.5,40.200000000000003,2.2000000000000002,36.1,2.2000000000000002,44.8,1.8,45.8,5.4,41.8,1.2,40.4,2.2999999999999998]
[null,"Female:",47.3,2.7,39.5,1.3,42.5,2.8,43.5,2.4,38.799999999999997,2,39.700000000000003,3.2,40,3.2,37.9,1.3,43.4,0.6,42.1,2.9,46.4,3.3,38.799999999999997,3.3,42.9,2,44.3,2,45.9,2.7,39.6,1.7,43.3,2.4,39.799999999999997,3.4,36.4,1.3,62,7,40.5,2.1,54.8,4.8,35.5,1.9,38.200000000000003,1.9,43.5,3.3,41.4,2.7,36.9,2.2000000000000002,41.6,2.7,39.5,3,41.1,2.9,49.3,5.2,41.8,1.4,36.200000000000003,1.9,45,4.4000000000000004,43.9,5,41.3,2.8,40.9,2.1]

{"sheet":"ACS_Tbl_B11001_B11002_B25010","index":26,"n_rows":202,"n_cols":76,"rows_kept":202,"cut":false,"hidden":true,"merged":[]}
[null,"B11001. HOUSEHOLD TYPE (INCLUDING LIVING ALONE)"]
[null,"Universe:  HOUSEHOLDS"]
[null,"Data Set: 2015-2019 American Community Survey 5-Year Estimates"]
[]
[null,null,"Atkinson",null,"Auburn",null,"Brentwood",null,"Candia",null,"Chester",null,"Danville",null,"Deerfield",null,"Derry",null,"East Kingston",null,"Epping",null,"Exeter",null,"Fremont",null,"Greenland",null,"Hampstead",null,"Hampton",null,"Hampton Falls",null,"Kensington",null,"Kingston",null,"Londonderry",null,"New Castle",null,"Newfields",null,"Newington",null,"Newmarket",null,"Newton",null,"North Hampton",null,"Northwood",null,"Nottingham",null,"Plaistow",null,"Portsmouth",null,"Raymond",null,"Rye",null,"Salem",null,"Sandown",null,"Seabrook",null,"South Hampton",null,"Stratham",null,"Windham"]
[null,null,"Estimate","Margin Of Error","Estimate","Margin Of Error","Estimate","Margin Of Error","Estimate","Margin Of Error","Estimate","Margin Of Error","Estimate","Margin Of Error","Estimate","Margin Of Error","Estimate","Margin Of Error","Estimate","Margin Of Error","Estimate","Margin Of Error","Estimate","Margin Of Error","Estimate","Margin Of Error","Estimate","Margin Of Error","Estimate","Margin Of Error","Estimate","Margin Of Error","Estimate","Margin Of Error","Estimate","Margin Of Error","Estimate","Margin Of Error","Estimate","Margin Of Error","Estimate","Margin Of Error","Estimate","Margin Of Error","Estimate","Margin Of Error","Estimate","Margin Of Error","Estimate","Margin Of Error","Estimate","Margin Of Error","Estimate","Margin Of Error","Estimate","Margin Of Error","Estimate","Margin Of Error","Estimate","Margin Of Error","Estimate","Margin Of Error","Estimate","Margin Of Error","Estimate","Margin Of Error","Estimate","Margin Of Error","Estimate","Margin Of Error","Estimate","Margin Of Error","Estimate","Margin Of Error","Estimate","Margin Of Error"]
[null,"Total:",2745,185,1973,91,1533,82,1537,80,1687,101,1685,93,1653,86,12741,353,888,65,2680,155,6542,249,1764,77,1516,85,3573,147,7088,199,909,54,845,53,2411,198,9338,206,436,85,600,67,307,39,4035,177,1853,107,1820,118,1611,107,1900,108,3119,164,10063,259,4112,193,2364,153,11536,318,2229,137,3824,194,302,41,2817,137,5009,196]
[null,"Family households:",1994,146,1655,103,1245,70,1118,85,1474,95,1330,86,1290,78,9009,292,716,54,2034,136,3834,221,1351,98,1125,74,2415,138,4327,212,676,65,668,47,1623,136,7418,221,257,61,524,67,209,30,2149,159,1358,86,1376,99,1170,98,1447,97,2155,157,5106,277,2816,186,1595,133,7872,279,1674,110,2476,156,225,35,2233,115,4228,161]
[null,"Married-couple family",1781,164,1406,127,1137,86,995,87,1270,101,1099,115,1118,103,6671,361,635,52,1709,192,3122,241,1242,103,915,94,1851,138,3594,238,595,61,572,51,1224,153,6030,259,234,58,466,67,187,28,1745,156,1098,107,1069,116,1031,101,1282,117,1591,231,4029,225,2176,234,1366,141,6458,290,1448,126,1868,225,198,35,2012,161,3748,201]
[null,"Other family:",213,101,249,80,108,50,123,72,204,67,231,95,172,82,2338,317,81,34,325,136,712,182,109,57,210,78,564,158,733,158,81,41,96,31,399,149,1388,237,23,19,58,24,22,12,404,123,260,93,307,110,139,54,165,82,564,181,1077,185,640,176,229,93,1414,240,226,111,608,183,27,10,221,127,480,164]
[null,"Male householder, no spouse present",105,67,152,66,36,31,76,55,104,49,108,66,33,30,515,151,45,33,96,94,182,104,27,28,106,63,334,142,267,99,23,23,55,24,193,138,444,142,20,18,8,9,9,7,232,106,145,75,69,58,63,41,48,44,157,102,328,126,167,104,115,85,377,139,125,93,205,110,8,6,117,107,206,101]
[null,"Female householder, no spouse present",108,71,97,52,72,43,47,46,100,46,123,88,139,71,1823,293,36,24,229,89,530,139,82,51,104,55,230,95,466,133,58,32,41,18,206,100,944,181,3,5,50,23,13,10,172,73,115,54,238,100,76,45,117,67,407,190,749,147,473,146,114,71,1037,211,101,67,403,145,19,10,104,71,274,145]
[null,"Nonfamily households:",751,187,318,106,288,83,419,113,213,94,355,99,363,104,3732,399,172,49,646,174,2708,297,413,92,391,99,1158,197,2761,283,233,64,177,40,788,243,1920,240,179,59,76,33,98,30,1886,234,495,121,444,114,441,111,453,144,964,224,4957,367,1296,213,769,215,3664,382,555,130,1348,238,77,23,584,150,781,209]
[null,"Householder living alone",623,185,256,98,247,81,306,93,144,79,246,93,210,95,2734,346,155,48,495,156,2128,250,267,89,267,83,946,204,2238,242,152,62,119,35,615,219,1552,213,161,59,55,30,74,28,1227,224,355,103,378,108,289,88,332,128,774,204,3456,365,865,180,583,194,3147,373,349,130,1099,220,71,23,480,129,709,187]
[null,"Householder not living alone",128,92,62,48,41,31,113,64,69,49,109,72,153,63,998,203,17,14,151,97,580,184,146,67,124,63,212,89,523,143,81,39,58,22,173,134,368,119,18,20,21,15,24,12,659,153,140,58,66,37,152,79,121,60,190,107,1501,255,431,141,186,130,517,164,206,109,249,99,6,8,104,66,72,61]
[]
[]
[]
[]
[]
[]
[]
[]
[]
[]
[]
[]
[]
[]
[]
[]
[]
[null,"B11002. HOUSEHOLD TYPE BY RELATIVES AND NONRELATIVES FOR POPULATION IN HOUSEHOLDS "]
[null,"Universe:  POPULATION IN HOUSEHOLDS"]
[null,{"$f":"B3","v":"Data Set: 2015-2019 American Community Survey 5-Year Estimates"}]
[]
[null,null,"Atkinson",null,"Auburn",null,"Brentwood",null,"Candia",null,"Chester",null,"Danville",null,"Deerfield",null,"Derry",null,"East Kingston",null,"Epping",null,"Exeter",null,"Fremont",null,"Greenland",null,"Hampstead",null,"Hampton",null,"Hampton Falls",null,"Kensington",null,"Kingston",null,"Londonderry",null,"New Castle",null,"Newfields",null,"Newington",null,"Newmarket",null,"Newton",null,"North Hampton",null,"Northwood",null,"Nottingham",null,"Plaistow",null,"Portsmouth",null,"Raymond",null,"Rye",null,"Salem",null,"Sandown",null,"Seabrook",null,"South Hampton",null,"Stratham",null,"Windham"]
[null,null,"Estimate","Margin Of Error","Estimate","Margin Of Error","Estimate","Margin Of Error","Estimate","Margin Of Error","Estimate","Margin Of Error","Estimate","Margin Of Error","Estimate","Margin Of Error","Estimate","Margin Of Error","Estimate","Margin Of Error","Estimate","Margin Of Error","Estimate","Margin Of Error","Estimate","Margin Of Error","Estimate","Margin Of Error","Estimate","Margin Of Error","Estimate","Margin Of Error","Estimate","Margin Of Error","Estimate","Margin Of Error","Estimate","Margin Of Error","Estimate","Margin Of Error","Estimate","Margin Of Error","Estimate","Margin Of Error","Estimate","Margin Of Error","Estimate","Margin Of Error","Estimate","Margin Of Error","Estimate","Margin Of Error","Estimate","Margin Of Error","Estimate","Margin Of Error","Estimate","Margin Of Error","Estimate","Margin Of Error","Estimate","Margin Of Error","Estimate","Margin Of Error","Estimate","Margin Of Error","Estimate","Margin Of Error","Estimate","Margin Of Error","Estimate","Margin Of Error","Estimate","Margin Of Error","Estimate","Margin Of Error"]
[null,"Total:",6952,33,5441,20,4323,130,3936,18,5105,29,4510,25,4476,31,33232,116,2442,194,6966,22,14651,252,4623,84,3986,38,8607,20,15389,99,2383,164,2291,139,6260,29,25916,36,835,178,1757,227,694,96,9058,23,4920,22,4425,22,4299,18,5048,23,7681,32,20819,117,10420,31,5410,90,29079,107,6384,19,8830,26,775,94,7422,21,14507,48]
[null,"In family households:",5986,308,5064,133,3995,152,3397,160,4822,136,4049,145,3949,153,28298,578,2253,201,6159,238,11286,498,4043,163,3438,156,7235,230,12035,411,2063,203,2047,151,5280,338,23535,337,639,163,1659,238,558,92,6262,392,4275,163,3901,138,3688,178,4438,181,6393,385,14000,618,8561,368,4439,323,24821,485,5615,204,7175,311,687,91,6737,191,13653,245]
[null,"In married-couple family:",5285,464,4260,283,3632,223,3074,200,4160,276,3363,287,3365,276,20869,1071,1874,155,5037,558,9204,632,3691,259,2910,225,5786,369,9995,583,1821,201,1717,146,3926,551,19430,747,559,142,1485,244,484,80,5068,444,3503,297,3044,313,3312,209,3891,304,4657,694,11396,520,6617,621,3796,353,20374,753,4897,374,5153,615,607,90,6035,432,12076,579]
[null,"Relatives",5285,464,4189,288,3632,223,3025,196,4032,266,3348,287,3306,257,20737,1064,1874,155,5006,575,9146,629,3674,259,2903,226,5734,371,9981,586,1795,201,1710,145,3897,547,19328,739,556,144,1482,244,482,80,5047,443,3458,294,2962,310,3272,209,3841,302,4657,694,11287,514,6595,619,3773,349,20300,745,4888,374,5086,620,600,87,6014,431,12076,579]
[null,"Nonrelatives",0,16,71,61,0,11,49,35,128,98,15,23,59,63,132,84,0,11,31,52,58,45,17,27,7,11,52,43,14,15,26,26,7,7,29,34,102,51,3,6,3,6,2,5,21,21,45,36,82,53,40,61,50,33,0,16,109,76,22,25,23,28,74,82,9,15,67,62,7,8,21,30,0,18]
[null,"In male householder, no spouse present, family:",403,266,481,213,128,130,206,145,408,196,380,256,118,106,1516,473,255,212,324,363,480,260,76,85,274,170,806,327,763,269,63,70,215,125,681,529,1204,381,74,81,27,31,27,23,636,301,432,220,180,152,147,95,112,101,394,236,698,260,500,303,325,244,1167,447,415,295,650,374,31,26,396,365,721,341]
[null,"Relatives",357,234,414,168,119,117,197,143,365,173,316,199,112,101,1283,381,151,104,253,275,445,242,76,85,263,166,734,307,696,251,63,70,149,59,490,329,1036,341,74,81,23,26,27,23,532,238,360,188,180,152,131,85,103,94,364,225,654,245,396,255,266,196,982,351,302,212,582,327,18,15,374,361,608,289]
[null,"Nonrelatives",46,61,67,64,9,14,9,13,43,42,64,62,6,10,233,143,104,119,71,90,35,42,0,11,11,15,72,60,67,45,0,11,66,79,191,238,168,103,0,11,4,6,0,11,104,74,72,54,0,11,16,24,9,13,30,35,44,41,104,75,59,62,185,126,113,90,68,77,13,13,22,34,113,91]
[null,"In female householder, no spouse present, family:",298,202,323,168,235,140,117,112,254,128,306,224,466,229,5913,993,124,89,798,358,1602,500,276,181,254,131,643,263,1277,377,179,102,115,53,673,353,2901,570,6,10,147,72,47,37,558,290,340,167,677,283,229,142,435,259,1342,611,1906,395,1444,469,318,196,3280,653,303,208,1372,469,49,24,306,215,856,500]
[null,"Relatives",257,169,299,154,225,134,101,100,231,112,306,224,432,221,5381,863,115,87,665,281,1453,399,262,177,245,128,581,243,1179,348,145,84,109,49,569,283,2511,500,6,10,130,60,46,36,485,238,263,127,606,259,208,128,398,243,1140,545,1814,378,1270,423,318,196,3062,624,285,200,1224,421,47,22,306,215,752,412]
[null,"Nonrelatives",41,66,24,26,10,17,16,24,23,27,0,11,34,32,532,195,9,11,133,119,149,133,14,22,9,13,62,58,98,62,34,23,6,8,104,97,390,141,0,11,17,17,1,4,73,68,77,62,71,54,21,22,37,42,202,186,92,60,174,107,0,16,218,113,18,27,148,86,2,4,0,16,104,101]
[null,"In nonfamily households",966,303,377,130,328,94,539,160,283,129,461,145,527,145,4934,559,189,54,807,236,3365,445,580,148,548,151,1372,228,3354,398,320,89,244,56,980,334,2381,338,196,65,98,42,136,48,2796,389,645,159,524,134,611,178,610,184,1288,385,6819,608,1859,367,971,306,4258,483,769,204,1655,310,88,27,685,193,854,244]
[]
[]
[]
[null,"Calculated Average  Household Size by Household Type"]
[null,"Universe:  POPULATION IN HOUSEHOLDS"]
[null,{"$f":"B35","v":"Data Set: 2015-2019 American Community Survey 5-Year Estimates"}]
[]
[null,null,"Atkinson",null,"Auburn",null,"Brentwood",null,"Candia",null,"Chester",null,"Danville",null,"Deerfield",null,"Derry",null,"East Kingston",null,"Epping",null,"Exeter",null,"Fremont",null,"Greenland",null,"Hampstead",null,"Hampton",null,"Hampton Falls",null,"Kensington",null,"Kingston",null,"Londonderry",null,"New Castle",null,"Newfields",null,"Newington",null,"Newmarket",null,"Newton",null,"North Hampton",null,"Northwood",null,"Nottingham",null,"Plaistow",null,"Portsmouth",null,"Raymond",null,"Rye",null,"Salem",null,"Sandown",null,"Seabrook",null,"South Hampton",null,"Stratham",null,"Windham"]
[null,null,"Estimate","Margin Of Error","Estimate","Margin Of Error","Estimate","Margin Of Error","Estimate","Margin Of Error","Estimate","Margin Of Error","Estimate","Margin Of Error","Estimate","Margin Of Error","Estimate","Margin Of Error","Estimate","Margin Of Error","Estimate","Margin Of Error","Estimate","Margin Of Error","Estimate","Margin Of Error","Estimate","Margin Of Error","Estimate","Margin Of Error","Estimate","Margin Of Error","Estimate","Margin Of Error","Estimate","Margin Of Error","Estimate","Margin Of Error","Estimate","Margin Of Error","Estimate","Margin Of Error","Estimate","Margin Of Error","Estimate","Margin Of Error","Estimate","Margin Of Error","Estimate","Margin Of Error","Estimate","Margin Of Error","Estimate","Margin Of Error","Estimate","Margin Of Error","Estimate","Margin Of Error","Estimate","Margin Of Error","Estimate","Margin Of Error","Estimate","Margin Of Error","Estimate","Margin Of Error","Estimate","Margin Of Error","Estimate","Margin Of Error","Estimate","Margin Of Error","Estimate","Margin Of Error","Estimate","Margin Of Error"]
[null,"Total:",{"$f":"C39/C7","v":2.5326047358834245},{"$f":"D73","v":0.17},{"$f":"E39/E7","v":2.7577293461733401},{"$f":"(SQRT((F$39^2)+((E$39^2)/(E$7^2))*(F$7^2)))/E$7","v":0.12759709571301492},{"$f":"G39/G7","v":2.8199608610567513},{"$f":"(SQRT((H$39^2)+((G$39^2)/(G$7^2))*(H$7^2)))/G$7","v":0.17304259509719108},{"$f":"I39/I7","v":2.560832791151594},{"$f":"(SQRT((J$39^2)+((I$39^2)/(I$7^2))*(J$7^2)))/I$7","v":0.13380342317931285},{"$f":"K39/K7","v":3.0260818020154119},{"$f":"(SQRT((L$39^2)+((K$39^2)/(K$7^2))*(L$7^2)))/K$7","v":0.1819839991787805},{"$f":"M39/M7","v":2.6765578635014835},{"$f":"(SQRT((N$39^2)+((M$39^2)/(M$7^2))*(N$7^2)))/M$7","v":0.14847012186557934},{"$f":"O39/O7","v":2.7078039927404718},{"$f":"(SQRT((P$39^2)+((O$39^2)/(O$7^2))*(P$7^2)))/O$7","v":0.14212066244499746},{"$f":"Q39/Q7","v":2.608272506082725},{"$f":"(SQRT((R$39^2)+((Q$39^2)/(Q$7^2))*(R$7^2)))/Q$7","v":7.2835628937431771E-2},{"$f":"S39/S7","v":2.75},{"$f":"(SQRT((T$39^2)+((S$39^2)/(S$7^2))*(T$7^2)))/S$7","v":0.2970659301815759},{"$f":"U39/U7","v":2.5992537313432837},{"$f":"(SQRT((V$39^2)+((U$39^2)/(U$7^2))*(V$7^2)))/U$7","v":0.15055393654309338},{"$f":"W39/W7","v":2.2395291959645367},{"$f":"(SQRT((X$39^2)+((W$39^2)/(W$7^2))*(X$7^2)))/W$7","v":9.3540063775403956E-2},{"$f":"Y39/Y7","v":2.620748299319728},{"$f":"(SQRT((Z$39^2)+((Y$39^2)/(Y$7^2))*(Z$7^2)))/Y$7","v":0.12391294262889578},{"$f":"AA39/AA7","v":2.629287598944591},{"$f":"(SQRT((AB$39^2)+((AA$39^2)/(AA$7^2))*(AB$7^2)))/AA$7","v":0.14953628350138334},{"$f":"AC39/AC7","v":2.4089000839630561},{"$f":"(SQRT((AD$39^2)+((AC$39^2)/(AC$7^2))*(AD$7^2)))/AC$7","v":9.9264668787289415E-2},{"$f":"AE39/AE7","v":2.1711343115124153},{"$f":"(SQRT((AF$39^2)+((AE$39^2)/(AE$7^2))*(AF$7^2)))/AE$7","v":6.2535683003593315E-2},{"$f":"AG39/AG7","v":2.6215621562156217},{"$f":"(SQRT((AH$39^2)+((AG$39^2)/(AG$7^2))*(AH$7^2)))/AG$7","v":0.23833691576173008},{"$f":"AI39/AI7","v":2.7112426035502959},{"$f":"(SQRT((AJ$39^2)+((AI$39^2)/(AI$7^2))*(AJ$7^2)))/AI$7","v":0.23659613546308716},{"$f":"AK39/AK7","v":2.5964330153463293},{"$f":"(SQRT((AL$39^2)+((AK$39^2)/(AK$7^2))*(AL$7^2)))/AK$7","v":0.21356741252548361},{"$f":"AM39/AM7","v":2.7753266224030844},{"$f":"(SQRT((AN$39^2)+((AM$39^2)/(AM$7^2))*(AN$7^2)))/AM$7","v":6.1346068780038558E-2},{"$f":"AO39/AO7","v":1.915137614678899},{"$f":"(SQRT((AP$39^2)+((AO$39^2)/(AO$7^2))*(AP$7^2)))/AO$7","v":0.55323986262569702},{"$f":"AQ39/AQ7","v":2.9283333333333332},{"$f":"(SQRT((AR$39^2)+((AQ$39^2)/(AQ$7^2))*(AR$7^2)))/AQ$7","v":0.5000632904464799},{"$f":"AS39/AS7","v":2.2605863192182412},{"$f":"(SQRT((AT$39^2)+((AS$39^2)/(AS$7^2))*(AT$7^2)))/AS$7","v":0.42456245255007757},{"$f":"AU39/AU7","v":2.2448574969021067},{"$f":"(SQRT((AV$39^2)+((AU$39^2)/(AU$7^2))*(AV$7^2)))/AU$7","v":9.8638140617592504E-2},{"$f":"AW39/AW7","v":2.6551538046411225},{"$f":"(SQRT((AX$39^2)+((AW$39^2)/(AW$7^2))*(AX$7^2)))/AW$7","v":0.15377873303573486},{"$f":"AY39/AY7","v":2.4313186813186811},{"$f":"(SQRT((AZ$39^2)+((AY$39^2)/(AY$7^2))*(AZ$7^2)))/AY$7","v":0.15809773648775038},{"$f":"BA39/BA7","v":2.6685288640595903},{"$f":"(SQRT((BB$39^2)+((BA$39^2)/(BA$7^2))*(BB$7^2)))/BA$7","v":0.17759117734254906},{"$f":"BC39/BC7","v":2.6568421052631579},{"$f":"(SQRT((BD$39^2)+((BC$39^2)/(BC$7^2))*(BD$7^2)))/BC$7","v":0.15150487912286045},{"$f":"BE39/BE7","v":2.4626482847066367},{"$f":"(SQRT((BF$39^2)+((BE$39^2)/(BE$7^2))*(BF$7^2)))/BE$7","v":0.12989421494030701},{"$f":"BG39/BG7","v":2.0688661432972273},{"$f":"(SQRT((BH$39^2)+((BG$39^2)/(BG$7^2))*(BH$7^2)))/BG$7","v":5.4502742315768515E-2},{"$f":"BI39/BI7","v":2.5340466926070038},{"$f":"(SQRT((BJ$39^2)+((BI$39^2)/(BI$7^2))*(BJ$7^2)))/BI$7","v":0.11917619205673979},{"$f":"BK39/BK7","v":2.2884940778341796},{"$f":"(SQRT((BL$39^2)+((BK$39^2)/(BK$7^2))*(BL$7^2)))/BK$7","v":0.15292784153016542},{"$f":"BM39/BM7","v":2.5207177531206657},{"$f":"(SQRT((BN$39^2)+((BM$39^2)/(BM$7^2))*(BN$7^2)))/BM$7","v":7.0102129058485979E-2},{"$f":"BO39/BO7","v":2.8640646029609691},{"$f":"(SQRT((BP$39^2)+((BO$39^2)/(BO$7^2))*(BP$7^2)))/BO$7","v":0.17623894042506136},{"$f":"BQ39/BQ7","v":2.3091004184100417},{"$f":"(SQRT((BR$39^2)+((BQ$39^2)/(BQ$7^2))*(BR$7^2)))/BQ$7","v":0.11734293128372994},{"$f":"BS39/BS7","v":2.5662251655629138},{"$f":"(SQRT((BT$39^2)+((BS$39^2)/(BS$7^2))*(BT$7^2)))/BS$7","v":0.46718375124752598},{"$f":"BU39/BU7","v":2.6347177848775294},{"$f":"(SQRT((BV$39^2)+((BU$39^2)/(BU$7^2))*(BV$7^2)))/BU$7","v":0.12835168537166047},{"$f":"BW39/BW7","v":2.8961868636454384},{"$f":"(SQRT((BX$39^2)+((BW$39^2)/(BW$7^2))*(BX$7^2)))/BW$7","v":0.11373096839159257}]
[null,"In family households:",{"$f":"C40/C8","v":3.0020060180541623},{"$f":"(SQRT((D$40^2)+((C$40^2)/(C$8^2))*(D$8^2)))/C$8","v":0.26865136073637902},{"$f":"E40/E8","v":3.0598187311178249},{"$f":"(SQRT((F$40^2)+((E$40^2)/(E$8^2))*(F$8^2)))/E$8","v":0.20669215895977541},{"$f":"G40/G8","v":3.2088353413654618},{"$f":"(SQRT((H$40^2)+((G$40^2)/(G$8^2))*(H$8^2)))/G$8","v":0.21784319963723198},{"$f":"I40/I8","v":3.0384615384615383},{"$f":"(SQRT((J$40^2)+((I$40^2)/(I$8^2))*(J$8^2)))/I$8","v":0.27174783594426954},{"$f":"K40/K8","v":3.2713704206241521},{"$f":"(SQRT((L$40^2)+((K$40^2)/(K$8^2))*(L$8^2)))/K$8","v":0.23014580285101896},{"$f":"M40/M8","v":3.0443609022556393},{"$f":"(SQRT((N$40^2)+((M$40^2)/(M$8^2))*(N$8^2)))/M$8","v":0.22502707283728721},{"$f":"O40/O8","v":3.0612403100775194},{"$f":"(SQRT((P$40^2)+((O$40^2)/(O$8^2))*(P$8^2)))/O$8","v":0.21983727144040277},{"$f":"Q40/Q8","v":3.1410811410811412},{"$f":"(SQRT((R$40^2)+((Q$40^2)/(Q$8^2))*(R$8^2)))/Q$8","v":0.12033824741365816},{"$f":"S40/S8","v":3.1466480446927374},{"$f":"(SQRT((T$40^2)+((S$40^2)/(S$8^2))*(T$8^2)))/S$8","v":0.36759570822657078},{"$f":"U40/U8","v":3.028023598820059},{"$f":"(SQRT((V$40^2)+((U$40^2)/(U$8^2))*(V$8^2)))/U$8","v":0.2338441566425368},{"$f":"W40/W8","v":2.943661971830986},{"$f":"(SQRT((X$40^2)+((W$40^2)/(W$8^2))*(X$8^2)))/W$8","v":0.21368784219841297},{"$f":"Y40/Y8","v":2.9925980754996298},{"$f":"(SQRT((Z$40^2)+((Y$40^2)/(Y$8^2))*(Z$8^2)))/Y$8","v":0.248355247049587},{"$f":"AA40/AA8","v":3.056},{"$f":"(SQRT((AB$40^2)+((AA$40^2)/(AA$8^2))*(AB$8^2)))/AA$8","v":0.24420531129156947},{"$f":"AC40/AC8","v":2.9958592132505175},{"$f":"(SQRT((AD$40^2)+((AC$40^2)/(AC$8^2))*(AD$8^2)))/AC$8","v":0.19590043454772182},{"$f":"AE40/AE8","v":2.7813727755951003},{"$f":"(SQRT((AF$40^2)+((AE$40^2)/(AE$8^2))*(AF$8^2)))/AE$8","v":0.16610940771009816},{"$f":"AG40/AG8","v":3.0517751479289941},{"$f":"(SQRT((AH$40^2)+((AG$40^2)/(AG$8^2))*(AH$8^2)))/AG$8","v":0.41986258209303789},{"$f":"AI40/AI8","v":3.0643712574850301},{"$f":"(SQRT((AJ$40^2)+((AI$40^2)/(AI$8^2))*(AJ$8^2)))/AI$8","v":0.31238440433995451},{"$f":"AK40/AK8","v":3.2532347504621071},{"$f":"(SQRT((AL$40^2)+((AK$40^2)/(AK$8^2))*(AL$8^2)))/AK$8","v":0.3430522620951123},{"$f":"AM40/AM8","v":3.1726880560798061},{"$f":"(SQRT((AN$40^2)+((AM$40^2)/(AM$8^2))*(AN$8^2)))/AM$8","v":0.10487274723575028},{"$f":"AO40/AO8","v":2.4863813229571985},{"$f":"(SQRT((AP$40^2)+((AO$40^2)/(AO$8^2))*(AP$8^2)))/AO$8","v":0.86633841165397518},{"$f":"AQ40/AQ8","v":3.1660305343511452},{"$f":"(SQRT((AR$40^2)+((AQ$40^2)/(AQ$8^2))*(AR$8^2)))/AQ$8","v":0.60841840908873313},{"$f":"AS40/AS8","v":2.6698564593301435},{"$f":"(SQRT((AT$40^2)+((AS$40^2)/(AS$8^2))*(AT$8^2)))/AS$8","v":0.58364028147632874},{"$f":"AU40/AU8","v":2.9139134481154025},{"$f":"(SQRT((AV$40^2)+((AU$40^2)/(AU$8^2))*(AV$8^2)))/AU$8","v":0.28240836096573252},{"$f":"AW40/AW8","v":3.1480117820324005},{"$f":"(SQRT((AX$40^2)+((AW$40^2)/(AW$8^2))*(AX$8^2)))/AW$8","v":0.23270352725547849},{"$f":"AY40/AY8","v":2.8350290697674421},{"$f":"(SQRT((AZ$40^2)+((AY$40^2)/(AY$8^2))*(AZ$8^2)))/AY$8","v":0.2272960934740372},{"$f":"BA40/BA8","v":3.152136752136752},{"$f":"(SQRT((BB$40^2)+((BA$40^2)/(BA$8^2))*(BB$8^2)))/BA$8","v":0.30472095504895896},{"$f":"BC40/BC8","v":3.0670352453351764},{"$f":"(SQRT((BD$40^2)+((BC$40^2)/(BC$8^2))*(BD$8^2)))/BC$8","v":0.24066105183757938},{"$f":"BE40/BE8","v":2.9665893271461719},{"$f":"(SQRT((BF$40^2)+((BE$40^2)/(BE$8^2))*(BF$8^2)))/BE$8","v":0.28040756883986734},{"$f":"BG40/BG8","v":2.7418723070896984},{"$f":"(SQRT((BH$40^2)+((BG$40^2)/(BG$8^2))*(BH$8^2)))/BG$8","v":0.19176733541555019},{"$f":"BI40/BI8","v":3.0401278409090908},{"$f":"(SQRT((BJ$40^2)+((BI$40^2)/(BI$8^2))*(BJ$8^2)))/BI$8","v":0.23958285266134274},{"$f":"BK40/BK8","v":2.7830721003134795},{"$f":"(SQRT((BL$40^2)+((BK$40^2)/(BK$8^2))*(BL$8^2)))/BK$8","v":0.30800165308699073},{"$f":"BM40/BM8","v":3.1530741869918697},{"$f":"(SQRT((BN$40^2)+((BM$40^2)/(BM$8^2))*(BN$8^2)))/BM$8","v":0.12760988168820014},{"$f":"BO40/BO8","v":3.3542413381123057},{"$f":"(SQRT((BP$40^2)+((BO$40^2)/(BO$8^2))*(BP$8^2)))/BO$8","v":0.2518559275387286},{"$f":"BQ40/BQ8","v":2.8978190630048464},{"$f":"(SQRT((BR$40^2)+((BQ$40^2)/(BQ$8^2))*(BR$8^2)))/BQ$8","v":0.22161013602619373},{"$f":"BS40/BS8","v":3.0533333333333332},{"$f":"(SQRT((BT$40^2)+((BS$40^2)/(BS$8^2))*(BT$8^2)))/BS$8","v":0.62383100662641988},{"$f":"BU40/BU8","v":3.0170174652933275},{"$f":"(SQRT((BV$40^2)+((BU$40^2)/(BU$8^2))*(BV$8^2)))/BU$8","v":0.17736487277841628},{"$f":"BW40/BW8","v":3.2291863765373701},{"$f":"(SQRT((BX$40^2)+((BW$40^2)/(BW$8^2))*(BX$8^2)))/BW$8","v":0.13593535985845412}]
[null,"In nonfamily households",{"$f":"C50/C13","v":1.2862849533954728},{"$f":"(SQRT((D$50^2)+((C$50^2)/(C$13^2))*(D$13^2)))/C$13","v":0.51513607405477868},{"$f":"E50/E13","v":1.1855345911949686},{"$f":"(SQRT((F$50^2)+((E$50^2)/(E$13^2))*(F$13^2)))/E$13","v":0.5685836448329683},{"$f":"G50/G13","v":1.1388888888888888},{"$f":"(SQRT((H$50^2)+((G$50^2)/(G$13^2))*(H$13^2)))/G$13","v":0.46288122389597702},{"$f":"I50/I13","v":1.2863961813842482},{"$f":"(SQRT((J$50^2)+((I$50^2)/(I$13^2))*(J$13^2)))/I$13","v":0.51592363254796958},{"$f":"K50/K13","v":1.3286384976525822},{"$f":"(SQRT((L$50^2)+((K$50^2)/(K$13^2))*(L$13^2)))/K$13","v":0.8429683866636245},{"$f":"M50/M13","v":1.2985915492957747},{"$f":"(SQRT((N$50^2)+((M$50^2)/(M$13^2))*(N$13^2)))/M$13","v":0.5458746365956566},{"$f":"O50/O13","v":1.4517906336088153},{"$f":"(SQRT((P$50^2)+((O$50^2)/(O$13^2))*(P$13^2)))/O$13","v":0.57668503476495381},{"$f":"Q50/Q13","v":1.3220793140407288},{"$f":"(SQRT((R$50^2)+((Q$50^2)/(Q$13^2))*(R$13^2)))/Q$13","v":0.20594880876049865},{"$f":"S50/S13","v":1.0988372093023255},{"$f":"(SQRT((T$50^2)+((S$50^2)/(S$13^2))*(T$13^2)))/S$13","v":0.44335240600775183},{"$f":"U50/U13","v":1.2492260061919505},{"$f":"(SQRT((V$50^2)+((U$50^2)/(U$13^2))*(V$13^2)))/U$13","v":0.49666932273886255},{"$f":"W50/W13","v":1.2426144756277695},{"$f":"(SQRT((X$50^2)+((W$50^2)/(W$13^2))*(X$13^2)))/W$13","v":0.2134875532824837},{"$f":"Y50/Y13","v":1.4043583535108959},{"$f":"(SQRT((Z$50^2)+((Y$50^2)/(Y$13^2))*(Z$13^2)))/Y$13","v":0.47569228286462528},{"$f":"AA50/AA13","v":1.4015345268542199},{"$f":"(SQRT((AB$50^2)+((AA$50^2)/(AA$13^2))*(AB$13^2)))/AA$13","v":0.52447189881309975},{"$f":"AC50/AC13","v":1.1848013816925733},{"$f":"(SQRT((AD$50^2)+((AC$50^2)/(AC$13^2))*(AD$13^2)))/AC$13","v":0.28176650508023693},{"$f":"AE50/AE13","v":1.2147772546178921},{"$f":"(SQRT((AF$50^2)+((AE$50^2)/(AE$13^2))*(AF$13^2)))/AE$13","v":0.19048108686760382},{"$f":"AG50/AG13","v":1.3733905579399142},{"$f":"(SQRT((AH$50^2)+((AG$50^2)/(AG$13^2))*(AH$13^2)))/AG$13","v":0.53685620942197665},{"$f":"AI50/AI13","v":1.3785310734463276},{"$f":"(SQRT((AJ$50^2)+((AI$50^2)/(AI$13^2))*(AJ$13^2)))/AI$13","v":0.44401735861440417},{"$f":"AK50/AK13","v":1.2436548223350254},{"$f":"(SQRT((AL$50^2)+((AK$50^2)/(AK$13^2))*(AL$13^2)))/AK$13","v":0.57160965223742555},{"$f":"AM50/AM13","v":1.2401041666666666},{"$f":"(SQRT((AN$50^2)+((AM$50^2)/(AM$13^2))*(AN$13^2)))/AM$13","v":0.23456279549547751},{"$f":"AO50/AO13","v":1.0949720670391061},{"$f":"(SQRT((AP$50^2)+((AO$50^2)/(AO$13^2))*(AP$13^2)))/AO$13","v":0.51197674983751584},{"$f":"AQ50/AQ13","v":1.2894736842105263},{"$f":"(SQRT((AR$50^2)+((AQ$50^2)/(AQ$13^2))*(AR$13^2)))/AQ$13","v":0.78669758115308219},{"$f":"AS50/AS13","v":1.3877551020408163},{"$f":"(SQRT((AT$50^2)+((AS$50^2)/(AS$13^2))*(AT$13^2)))/AS$13","v":0.64836302704523741},{"$f":"AU50/AU13","v":1.4825026511134676},{"$f":"(SQRT((AV$50^2)+((AU$50^2)/(AU$13^2))*(AV$13^2)))/AU$13","v":0.27635973291748772},{"$f":"AW50/AW13","v":1.303030303030303},{"$f":"(SQRT((AX$50^2)+((AW$50^2)/(AW$13^2))*(AX$13^2)))/AW$13","v":0.4523618832890568},{"$f":"AY50/AY13","v":1.1801801801801801},{"$f":"(SQRT((AZ$50^2)+((AY$50^2)/(AY$13^2))*(AZ$13^2)))/AY$13","v":0.42767392324588532},{"$f":"BA50/BA13","v":1.3854875283446713},{"$f":"(SQRT((BB$50^2)+((BA$50^2)/(BA$13^2))*(BB$13^2)))/BA$13","v":0.5334107071848746},{"$f":"BC50/BC13","v":1.3465783664459161},{"$f":"(SQRT((BD$50^2)+((BC$50^2)/(BC$13^2))*(BD$13^2)))/BC$13","v":0.5900940767622157},{"$f":"BE50/BE13","v":1.3360995850622406},{"$f":"(SQRT((BF$50^2)+((BE$50^2)/(BE$13^2))*(BF$13^2)))/BE$13","v":0.50585543426923241},{"$f":"BG50/BG13","v":1.3756304216259834},{"$f":"(SQRT((BH$50^2)+((BG$50^2)/(BG$13^2))*(BH$13^2)))/BG$13","v":0.15942726052830045},{"$f":"BI50/BI13","v":1.4344135802469136},{"$f":"(SQRT((BJ$50^2)+((BI$50^2)/(BI$13^2))*(BJ$13^2)))/BI$13","v":0.36846671708317791},{"$f":"BK50/BK13","v":1.2626788036410923},{"$f":"(SQRT((BL$50^2)+((BK$50^2)/(BK$13^2))*(BL$13^2)))/BK$13","v":0.53194569380468293},{"$f":"BM50/BM13","v":1.162117903930131},{"$f":"(SQRT((BN$50^2)+((BM$50^2)/(BM$13^2))*(BN$13^2)))/BM$13","v":0.17904470814053577},{"$f":"BO50/BO13","v":1.3855855855855856},{"$f":"(SQRT((BP$50^2)+((BO$50^2)/(BO$13^2))*(BP$13^2)))/BO$13","v":0.4903464529319515},{"$f":"BQ50/BQ13","v":1.2277448071216617},{"$f":"(SQRT((BR$50^2)+((BQ$50^2)/(BQ$13^2))*(BR$13^2)))/BQ$13","v":0.31602961393424661},{"$f":"BS50/BS13","v":1.1428571428571428},{"$f":"(SQRT((BT$50^2)+((BS$50^2)/(BS$13^2))*(BT$13^2)))/BS$13","v":0.48937759726552765},{"$f":"BU50/BU13","v":1.172945205479452},{"$f":"(SQRT((BV$50^2)+((BU$50^2)/(BU$13^2))*(BV$13^2)))/BU$13","v":0.44719166489675927},{"$f":"BW50/BW13","v":1.0934699103713188},{"$f":"(SQRT((BX$50^2)+((BW$50^2)/(BW$13^2))*(BX$13^2)))/BW$13","v":0.4280560114168005}]
[]
[]
[]
[null,"B25010. AVERAGE HOUSEHOLD SIZE OF OCCUPIED HOUSING UNITS BY TENURE"]
[null,"Universe:  OCCUPIED HOUSING UNITS"]
[null,{"$f":"B3","v":"Data Set: 2015-2019 American Community Survey 5-Year Estimates"}]
[]
[null,null,"Atkinson",null,"Auburn",null,"Brentwood",null,"Candia",null,"Chester",null,"Danville",null,"Deerfield",null,"Derry",null,"East Kingston",null,"Epping",null,"Exeter",null,"Fremont",null,"Greenland",null,"Hampstead",null,"Hampton",null,"Hampton Falls",null,"Kensington",null,"Kingston",null,"Londonderry",null,"New Castle",null,"Newfields",null,"Newington",null,"Newmarket",null,"Newton",null,"North Hampton",null,"Northwood",null,"Nottingham",null,"Plaistow",null,"Portsmouth",null,"Raymond",null,"Rye",null,"Salem",null,"Sandown",null,"Seabrook",null,"South Hampton",null,"Stratham",null,"Windham"]
[null,null,"Estimate","Margin Of Error","Estimate","Margin Of Error","Estimate","Margin Of Error","Estimate","Margin Of Error","Estimate","Margin Of Error","Estimate","Margin Of Error","Estimate","Margin Of Error","Estimate","Margin Of Error","Estimate","Margin Of Error","Estimate","Margin Of Error","Estimate","Margin Of Error","Estimate","Margin Of Error","Estimate","Margin Of Error","Estimate","Margin Of Error","Estimate","Margin Of Error","Estimate","Margin Of Error","Estimate","Margin Of Error","Estimate","Margin Of Error","Estimate","Margin Of Error","Estimate","Margin Of Error","Estimate","Margin Of Error","Estimate","Margin Of Error","Estimate","Margin Of Error","Estimate","Margin Of Error","Estimate","Margin Of Error","Estimate","Margin Of Error","Estimate","Margin Of Error","Estimate","Margin Of Error","Estimate","Margin Of Error","Estimate","Margin Of Error","Estimate","Margin Of Error","Estimate","Margin Of Error","Estimate","Margin Of Error","Estimate","Margin Of Error","Estimate","Margin Of Error","Estimate","Margin Of Error","Estimate","Margin Of Error"]
[null,"Average household size --"]
[null,"Total:",2.5299999999999998,0.17,2.76,0.13,2.82,0.12,2.56,0.13,3.03,0.18,2.68,0.14000000000000001,2.71,0.14000000000000001,2.61,0.08,2.75,0.2,2.6,0.15,2.2400000000000002,0.08,2.62,0.1,2.63,0.14000000000000001,2.41,0.1,2.17,0.06,2.62,0.18,2.71,0.17,2.6,0.21,2.78,0.06,1.92,0.2,2.93,0.23,2.2599999999999998,0.28000000000000003,2.2400000000000002,0.1,2.66,0.16,2.4300000000000002,0.15,2.67,0.17,2.66,0.15,2.46,0.13,2.0699999999999998,0.05,2.5299999999999998,0.12,2.29,0.15,2.52,7.0000000000000007E-2,2.86,0.18,2.31,0.12,2.57,0.22,2.63,0.13,2.9,0.11]
[null,"Owner occupied",2.62,0.17,2.74,0.14000000000000001,2.88,0.14000000000000001,2.59,0.14000000000000001,3.06,0.18,2.74,0.17,2.72,0.17,2.84,0.09,2.77,0.2,2.66,0.15,2.52,0.11,2.69,0.13,2.73,0.15,2.57,0.1,2.2799999999999998,0.08,2.64,0.19,2.71,0.13,2.77,0.25,2.82,7.0000000000000007E-2,1.89,0.17,2.99,0.23,2.27,0.28999999999999998,2.48,0.16,2.74,0.16,2.4900000000000002,0.17,2.72,0.2,2.66,0.15,2.54,0.14000000000000001,2.31,0.08,2.57,0.13,2.42,0.15,2.66,0.09,2.94,0.19,2.36,0.15,2.61,0.22,2.71,0.15,2.93,0.11]
[null,"Renter occupied",1.36,0.45,2.99,1.1100000000000001,2.23,0.64,1.99,0.45,1.84,2.0699999999999998,2.33,0.48,2.62,0.34,2.1800000000000002,0.16,2.36,1.04,2.27,0.65,1.64,0.1,1.92,0.49,2.16,0.43,1.82,0.27,1.83,0.15,2.48,0.72,2.69,1,1.67,0.3,2.52,0.2,2.11,1.36,2.13,0.67,2.23,0.48,1.99,0.15,2.31,0.53,1.97,0.45,2.13,0.51,2.67,0.87,2.1,0.42,1.81,0.08,2.4,0.43,1.69,0.4,2.0099999999999998,0.16,2.12,0.51,2.21,0.17,2.2599999999999998,0.64,2.06,0.45,2.0499999999999998,0.5]
[]
[]
[]
[]
[]
[]
[null,"B11001. HOUSEHOLD TYPE (INCLUDING LIVING ALONE)"]
[null,"Universe:  HOUSEHOLDS"]
[null,"Data Set: 2010-2014 American Community Survey 5-Year Estimates"]
[]
[null,null,"Atkinson",null,"Auburn",null,"Brentwood",null,"Candia",null,"Chester",null,"Danville",null,"Deerfield",null,"Derry",null,"East Kingston",null,"Epping",null,"Exeter",null,"Fremont",null,"Greenland",null,"Hampstead",null,"Hampton",null,"Hampton Falls",null,"Kensington",null,"Kingston",null,"Londonderry",null,"New Castle",null,"Newfields",null,"Newington",null,"Newmarket",null,"Newton",null,"North Hampton",null,"Northwood",null,"Nottingham",null,"Plaistow",null,"Portsmouth",null,"Raymond",null,"Rye",null,"Salem",null,"Sandown",null,"Seabrook",null,"South Hampton",null,"Stratham",null,"Windham"]
[null,null,"Estimate","Margin Of Error","Estimate","Margin Of Error","Estimate","Margin Of Error","Estimate","Margin Of Error","Estimate","Margin Of Error","Estimate","Margin Of Error","Estimate","Margin Of Error","Estimate","Margin Of Error","Estimate","Margin Of Error","Estimate","Margin Of Error","Estimate","Margin Of Error","Estimate","Margin Of Error","Estimate","Margin Of Error","Estimate","Margin Of Error","Estimate","Margin Of Error","Estimate","Margin Of Error","Estimate","Margin Of Error","Estimate","Margin Of Error","Estimate","Margin Of Error","Estimate","Margin Of Error","Estimate","Margin Of Error","Estimate","Margin Of Error","Estimate","Margin Of Error","Estimate","Margin Of Error","Estimate","Margin Of Error","Estimate","Margin Of Error","Estimate","Margin Of Error","Estimate","Margin Of Error","Estimate","Margin Of Error","Estimate","Margin Of Error","Estimate","Margin Of Error","Estimate","Margin Of Error","Estimate","Margin Of Error","Estimate","Margin Of Error","Estimate","Margin Of Error","Estimate","Margin Of Error","Estimate","Margin Of Error"]
[null,"Total:",2597,115,1830,82,1400,111,1466,88,1612,80,1537,101,1540,71,12934,350,882,46,2604,154,6248,214,1608,79,1397,55,3447,156,6618,217,902,46,746,53,2442,126,8750,224,451,65,574,71,314,47,3816,203,1747,101,1735,82,1676,118,1824,108,2949,182,10325,302,3864,150,2315,152,11093,285,2130,134,3837,258,306,49,2781,123,4987,197]
[null,"Family households:",2033,101,1476,71,1167,84,1178,78,1300,77,1158,77,1279,61,8832,317,721,50,1971,136,3786,185,1345,66,1062,72,2354,125,4383,186,675,57,588,54,1813,128,6729,210,326,64,491,63,239,44,2040,190,1252,107,1361,74,1279,104,1363,87,2275,135,4770,250,2714,141,1525,164,7880,261,1692,136,2372,232,226,42,2193,96,3961,172]
[null,"Married-couple family",1842,137,1363,80,1065,83,1060,87,1078,100,989,92,1139,80,6814,363,620,62,1640,197,2914,213,1194,91,967,77,1966,147,3619,243,586,64,510,54,1436,131,5612,261,287,62,405,64,204,44,1547,225,882,126,1155,94,1096,139,1192,101,1707,184,3866,208,2051,200,1376,159,6359,314,1427,159,1832,246,184,36,2025,115,3341,213]
[null,"Other family:",191,94,113,57,102,48,118,63,222,92,169,81,140,71,2018,324,101,51,331,155,872,203,151,75,95,47,388,150,764,196,89,45,78,22,377,136,1117,195,39,26,86,42,35,17,493,155,370,113,206,81,183,77,171,69,568,188,904,165,663,179,149,86,1521,265,265,126,540,217,42,24,168,82,620,195]
[null,"Male householder, no spouse present",33,40,0,15,46,36,65,37,57,53,92,66,34,28,549,163,33,27,157,129,199,111,90,64,8,12,104,70,188,91,26,20,43,17,166,91,398,130,13,16,12,12,15,14,214,106,113,68,11,16,57,40,58,58,132,91,219,94,126,78,12,20,398,173,167,111,188,133,6,7,52,55,323,165]
[null,"Female householder, no spouse present",158,87,113,57,56,38,53,45,165,73,77,50,106,66,1469,283,68,40,174,95,673,191,61,38,87,46,284,133,576,178,63,39,35,16,211,113,719,139,26,22,74,41,20,12,279,125,257,108,195,81,126,74,113,49,436,164,685,154,537,180,137,80,1123,212,98,61,352,171,36,23,116,63,297,104]
[null,"Nonfamily households:",564,152,354,86,233,78,288,93,312,89,379,113,261,82,4102,380,161,44,633,203,2462,249,263,99,335,85,1093,211,2235,253,227,65,158,41,629,156,2021,275,125,43,83,32,75,29,1776,250,495,126,374,109,397,137,461,124,674,159,5555,364,1150,187,790,217,3213,377,438,180,1465,253,80,30,588,139,1026,274]
[null,"Householder living alone",504,150,263,77,194,68,190,72,209,78,296,105,163,69,3060,366,133,42,551,191,1978,248,239,97,197,57,990,207,2000,249,167,56,105,40,422,126,1538,247,102,38,64,29,58,25,1106,185,335,110,280,103,260,104,298,89,589,154,4279,367,707,174,551,189,2429,340,234,111,1084,254,56,28,556,138,863,226]
[null,"Householder not living alone",60,59,91,49,39,34,98,58,103,68,83,46,98,55,1042,280,28,16,82,51,484,148,24,24,138,78,103,51,235,78,60,34,53,21,207,116,483,158,23,19,19,13,17,13,670,220,160,96,94,54,137,86,163,87,85,68,1276,207,443,136,239,120,784,185,204,111,381,156,24,18,32,37,163,109]
[]
[]
[]
[]
[]
[]
[]
[]
[]
[]
[]
[]
[]
[]
[]
[]
[]
[null,"B11002. HOUSEHOLD TYPE BY RELATIVES AND NONRELATIVES FOR POPULATION IN HOUSEHOLDS "]
[null,"Universe:  POPULATION IN HOUSEHOLDS"]
[]
[]
[null,null,"Atkinson",null,"Auburn",null,"Brentwood",null,"Candia",null,"Chester",null,"Danville",null,"Deerfield",null,"Derry",null,"East Kingston",null,"Epping",null,"Exeter",null,"Fremont",null,"Greenland",null,"Hampstead",null,"Hampton",null,"Hampton Falls",null,"Kensington",null,"Kingston",null,"Londonderry",null,"New Castle",null,"Newfields",null,"Newington",null,"Newmarket",null,"Newton",null,"North Hampton",null,"Northwood",null,"Nottingham",null,"Plaistow",null,"Portsmouth",null,"Raymond",null,"Rye",null,"Salem",null,"Sandown",null,"Seabrook",null,"South Hampton",null,"Stratham",null,"Windham"]
[null,null,"Estimate","Margin Of Error","Estimate","Margin Of Error","Estimate","Margin Of Error","Estimate","Margin Of Error","Estimate","Margin Of Error","Estimate","Margin Of Error","Estimate","Margin Of Error","Estimate","Margin Of Error","Estimate","Margin Of Error","Estimate","Margin Of Error","Estimate","Margin Of Error","Estimate","Margin Of Error","Estimate","Margin Of Error","Estimate","Margin Of Error","Estimate","Margin Of Error","Estimate","Margin Of Error","Estimate","Margin Of Error","Estimate","Margin Of Error","Estimate","Margin Of Error","Estimate","Margin Of Error","Estimate","Margin Of Error","Estimate","Margin Of Error","Estimate","Margin Of Error","Estimate","Margin Of Error","Estimate","Margin Of Error","Estimate","Margin Of Error","Estimate","Margin Of Error","Estimate","Margin Of Error","Estimate","Margin Of Error","Estimate","Margin Of Error","Estimate","Margin Of Error","Estimate","Margin Of Error","Estimate","Margin Of Error","Estimate","Margin Of Error","Estimate","Margin Of Error","Estimate","Margin Of Error","Estimate","Margin Of Error"]
[null,"Total:",6787,19,5073,25,4174,164,3920,21,4696,60,4418,42,4326,21,32989,140,2453,130,6584,18,14065,116,4328,39,3644,48,8530,51,14754,193,2307,123,2055,149,6060,19,24235,24,966,162,1625,222,784,131,8916,32,4717,34,4319,44,4269,16,4848,17,7607,28,20682,316,10192,24,5268,66,28711,56,6130,56,8747,19,799,123,7292,20,13903,54]
[null,"In family households:",6162,177,4619,121,3904,178,3517,145,4235,173,3936,150,3961,120,27673,585,2262,142,5875,228,11119,322,4041,110,3126,168,7308,233,12275,337,2002,150,1826,161,5201,247,21650,422,817,169,1520,221,687,135,6312,489,4001,228,3844,150,3722,203,4157,228,6846,192,13484,554,8581,276,4132,351,24686,501,5435,311,6717,492,682,124,6673,150,12707,357]
[null,"In married-couple family:",5585,419,4277,210,3623,196,3129,280,3534,334,3403,269,3526,208,21787,992,1951,167,4848,515,8617,573,3575,239,2877,203,6111,406,10077,642,1747,171,1581,173,4171,350,18002,788,720,169,1327,240,588,131,4460,631,2917,365,3332,226,3025,346,3582,321,5240,584,11127,555,6563,619,3783,395,20066,815,4535,460,5332,650,567,107,6196,268,10833,604]
[null,"Relatives",5585,419,4249,207,3583,196,3119,280,3500,333,3403,269,3526,208,21633,988,1940,166,4787,512,8604,568,3547,245,2877,203,6091,405,9974,637,1739,170,1568,170,4126,344,17921,781,720,169,1322,237,578,129,4460,631,2902,362,3332,226,3016,345,3551,308,5203,582,11075,552,6482,617,3730,394,20045,816,4535,460,5267,646,561,106,6174,271,10749,608]
[null,"Nonrelatives",0,15,28,31,40,46,10,15,34,35,0,11,0,11,154,68,11,11,61,62,13,21,28,30,0,11,20,33,103,61,8,9,13,17,45,51,81,55,0,11,5,8,10,12,0,15,15,25,0,11,9,13,31,31,37,41,52,62,81,51,53,68,21,26,0,15,65,58,6,6,22,31,84,93]
[null,"In male householder, no spouse present, family:",160,220,0,15,115,97,230,154,222,236,222,157,140,112,1554,481,107,98,387,336,495,271,301,218,17,25,281,178,526,286,88,69,136,49,435,217,1209,434,43,47,29,32,35,30,724,427,336,192,21,32,185,146,159,165,353,224,572,263,352,223,26,41,1219,496,532,366,413,300,20,24,142,133,924,430]
[null,"Relatives",98,126,0,15,107,93,161,98,186,192,215,155,120,98,1306,394,107,98,375,335,420,228,225,161,17,25,281,178,487,253,56,42,118,42,381,192,1079,384,39,45,29,32,33,29,634,391,260,144,21,32,185,146,128,123,325,213,526,248,278,168,26,41,1035,405,471,314,380,270,16,19,123,124,909,418]
[null,"Nonrelatives",62,97,0,15,8,12,69,60,36,46,7,11,20,21,248,144,0,11,12,20,75,65,76,61,0,11,0,15,39,45,32,36,18,9,54,49,130,87,4,7,0,11,2,4,90,71,76,58,0,11,0,11,31,50,28,31,46,39,74,66,0,15,184,111,61,90,33,59,4,6,19,35,15,24]
[null,"In female householder, no spouse present, family:",417,260,342,171,166,100,158,135,479,220,311,209,295,199,4332,818,204,125,640,363,2007,594,165,98,232,128,916,409,1672,530,167,94,109,50,595,308,2439,558,54,43,164,83,64,38,1128,591,748,322,491,209,512,361,416,209,1253,473,1785,391,1666,623,323,193,3401,684,368,264,972,506,95,66,335,187,950,341]
[null,"Relatives",417,260,292,147,146,86,125,103,461,214,269,179,228,141,3896,730,156,86,570,309,1867,546,165,98,228,126,795,341,1589,518,161,93,101,46,546,283,2292,499,54,43,160,80,59,37,1115,591,676,287,442,194,506,363,366,183,1071,419,1727,390,1496,541,323,193,3127,630,353,259,811,397,89,63,335,187,879,318]
[null,"Nonrelatives",0,15,50,43,20,27,33,40,18,22,42,39,67,62,436,181,48,42,70,74,140,96,0,11,4,8,121,86,83,68,6,10,8,9,49,58,147,116,0,11,4,6,5,6,13,21,72,70,49,38,6,11,50,38,182,101,58,51,170,115,0,15,274,134,15,24,161,165,6,11,0,15,71,54]
[null,"In nonfamily households",625,174,454,120,270,98,403,148,461,163,482,148,365,123,5316,593,191,52,709,226,2946,322,287,105,518,166,1222,232,2479,280,305,101,229,56,859,247,2585,423,149,55,105,40,97,39,2604,490,716,223,475,140,547,204,691,229,761,190,7198,520,1611,282,1136,365,4025,486,695,317,2030,491,117,49,619,149,1196,349]
[]
[]
[]
[null,"Calculated Average  Household Size by Household Type"]
[null,"Universe:  POPULATION IN HOUSEHOLDS"]
[null,"Data Set: 2010-2014 American Community Survey 5-Year Estimates"]
[]
[null,null,"Atkinson",null,"Auburn",null,"Brentwood",null,"Candia",null,"Chester",null,"Danville",null,"Deerfield",null,"Derry",null,"East Kingston",null,"Epping",null,"Exeter",null,"Fremont",null,"Greenland",null,"Hampstead",null,"Hampton",null,"Hampton Falls",null,"Kensington",null,"Kingston",null,"Londonderry",null,"New Castle",null,"Newfields",null,"Newington",null,"Newmarket",null,"Newton",null,"North Hampton",null,"Northwood",null,"Nottingham",null,"Plaistow",null,"Portsmouth",null,"Raymond",null,"Rye",null,"Salem",null,"Sandown",null,"Seabrook",null,"South Hampton",null,"Stratham",null,"Windham"]
[null,null,"Estimate","Margin Of Error","Estimate","Margin Of Error","Estimate","Margin Of Error","Estimate","Margin Of Error","Estimate","Margin Of Error","Estimate","Margin Of Error","Estimate","Margin Of Error","Estimate","Margin Of Error","Estimate","Margin Of Error","Estimate","Margin Of Error","Estimate","Margin Of Error","Estimate","Margin Of Error","Estimate","Margin Of Error","Estimate","Margin Of Error","Estimate","Margin Of Error","Estimate","Margin Of Error","Estimate","Margin Of Error","Estimate","Margin Of Error","Estimate","Margin Of Error","Estimate","Margin Of Error","Estimate","Margin Of Error","Estimate","Margin Of Error","Estimate","Margin Of Error","Estimate","Margin Of Error","Estimate","Margin Of Error","Estimate","Margin Of Error","Estimate","Margin Of Error","Estimate","Margin Of Error","Estimate","Margin Of Error","Estimate","Margin Of Error","Estimate","Margin Of Error","Estimate","Margin Of Error","Estimate","Margin Of Error","Estimate","Margin Of Error","Estimate","Margin Of Error","Estimate","Margin Of Error","Estimate","Margin Of Error"]
[null,"Total:",2.6134000770119368,0.12,2.7721311475409838,0.1249646818399745,2.9814285714285713,0.26381844605556931,2.6739427012278307,0.16114745776876513,2.9131513647642682,0.14928771293338983,2.8744307091737151,0.19085219452705379,2.8090909090909091,0.13022595627403355,2.5505644038967064,6.9863060184705644E-2,2.7811791383219955,0.20679467084997744,2.5284178187403992,0.1496897741843457,2.2511203585147248,7.9306822078165473E-2,2.6915422885572138,0.13443958985343982,2.6084466714387973,0.1082902405368124,2.4746156077748767,0.11296613985649391,2.2293744333635539,7.8702286521755066E-2,2.5576496674057649,0.18870132536046161,2.7546916890080428,0.27963317476070376,2.4815724815724818,0.12827799824653449,2.7697142857142856,7.095771784342951E-2,2.1419068736141909,0.47362637401788871,2.8310104529616726,0.52173468487380315,2.4968152866242037,0.56011220395086003,2.3364779874213837,0.12457633122365235,2.7000572409845449,0.15730801865711352,2.4893371757925071,0.12035388185715749,2.5471360381861574,0.17958688545474469,2.6578947368421053,0.15765108715382578,2.5795184808409632,0.15948002788453569,2.0030992736077482,6.6101502676301049E-2,2.63768115942029,0.10258266501857927,2.2755939524838014,0.15210832836301885,2.5882087803119083,6.6687293600719691E-2,2.8779342723004695,0.1829520732611925,2.2796455564242897,0.15336340077791832,2.6111111111111112,0.57999659782261859,2.6220783890686805,0.1161938769436241,2.7878484058552235,0.11065861068419605]
[null,"In family households:",3.030988686669946,0.17393817153950464,3.1294037940379402,0.17140835773087357,3.3453299057412167,0.28503851487920678,2.9855687606112054,0.23287546932216302,3.2576923076923077,0.23439568948164419,3.3989637305699483,0.26049901895815858,3.0969507427677874,0.17498404766768336,3.1332653985507246,0.13051618120113118,3.1373092926490984,0.29346886778471143,2.980720446473871,0.23597011386919861,2.9368726888536716,0.16681754134705623,3.0044609665427511,0.16859574786714196,2.9435028248587569,0.25465415157013077,3.1045029736618521,0.19228491912694293,2.8005932010038785,0.14155063995017803,2.9659259259259261,0.33482966937601832,3.1054421768707483,0.39535690754069025,2.8687258687258685,0.24409323742108396,3.2174171496507653,0.11838550894604473,2.5061349693251533,0.71470943359543948,3.095723014256619,0.60030671819026804,2.8744769874476988,0.77401818682187251,3.0941176470588236,0.37484030333405893,3.1956869009584663,0.32826012331993093,2.8243938280675973,0.18902340901270628,2.910086004691165,0.28492942116988146,3.0498899486426998,0.25667070171892453,3.0092307692307694,0.19750890955697614,2.8268343815513628,0.18825400937441902,3.1617538688282978,0.19319391287395818,2.7095081967213113,0.3713214137319954,3.1327411167512689,0.12169151232134119,3.2121749408983451,0.3169325802878174,2.8317875210792578,0.34602865609681122,3.0176991150442478,0.78457054757432521,3.0428636570907432,0.14973848298395007,3.2080282756879575,0.16591755949524475]
[null,"In nonfamily households",1.1081560283687943,0.42938539643174739,1.2824858757062148,0.46041488081622772,1.1587982832618027,0.57218006394484355,1.3993055555555556,0.68429410592685747,1.4775641025641026,0.67125893795991953,1.2717678100263852,0.54430675021360464,1.3984674329501916,0.64430732167345839,1.2959531935641151,0.18791393405178489,1.186335403726708,0.45763839905545645,1.1200631911532386,0.5064525602727401,1.1965881397238018,0.17818882516521647,1.0912547528517109,0.57282593294273709,1.5462686567164179,0.63203688185230611,1.1180237877401646,0.30271629303872133,1.1091722595078299,0.17736861648180516,1.3436123348017621,0.58820665369733716,1.4493670886075949,0.5167913479277827,1.3656597774244834,0.51857621405456344,1.2790697674418605,0.2722113054217557,1.1919999999999999,0.60144772200416552,1.2650602409638554,0.68566671229697895,1.2933333333333332,0.72144916438382789,1.4662162162162162,0.34455681326597776,1.4464646464646465,0.58182421201575851,1.2700534759358288,0.52643574704080898,1.3778337531486147,0.70008675908191287,1.4989154013015185,0.6397734606678146,1.129080118694362,0.38783045871911542,1.2957695769576958,0.12638023708626586,1.4008695652173913,0.33469610215455581,1.4379746835443037,0.60785105043876975,1.252723311546841,0.21091609854802923,1.58675799086758,0.97418181100271928,1.3856655290102389,0.41181555135905246,1.4624999999999999,0.82215566738072776,1.0527210884353742,0.35516520501739729,1.165692007797271,0.4611044165459825]
[]
[]
[]
[null,"B25010. AVERAGE HOUSEHOLD SIZE OF OCCUPIED HOUSING UNITS BY TENURE"]
[null,"Universe:  OCCUPIED HOUSING UNITS"]
[null,"Data Set: 2010-2014 American Community Survey 5-Year Estimates"]
[]
[null,null,"Atkinson",null,"Auburn",null,"Brentwood",null,"Candia",null,"Chester",null,"Danville",null,"Deerfield",null,"Derry",null,"East Kingston",null,"Epping",null,"Exeter",null,"Fremont",null,"Greenland",null,"Hampstead",null,"Hampton",null,"Hampton Falls",null,"Kensington",null,"Kingston",null,"Londonderry",null,"New Castle",null,"Newfields",null,"Newington",null,"Newmarket",null,"Newton",null,"North Hampton",null,"Northwood",null,"Nottingham",null,"Plaistow",null,"Portsmouth",null,"Raymond",null,"Rye",null,"Salem",null,"Sandown",null,"Seabrook",null,"South Hampton",null,"Stratham",null,"Windham"]
[null,null,"Estimate","Margin Of Error","Estimate","Margin Of Error","Estimate","Margin Of Error","Estimate","Margin Of Error","Estimate","Margin Of Error","Estimate","Margin Of Error","Estimate","Margin Of Error","Estimate","Margin Of Error","Estimate","Margin Of Error","Estimate","Margin Of Error","Estimate","Margin Of Error","Estimate","Margin Of Error","Estimate","Margin Of Error","Estimate","Margin Of Error","Estimate","Margin Of Error","Estimate","Margin Of Error","Estimate","Margin Of Error","Estimate","Margin Of Error","Estimate","Margin Of Error","Estimate","Margin Of Error","Estimate","Margin Of Error","Estimate","Margin Of Error","Estimate","Margin Of Error","Estimate","Margin Of Error","Estimate","Margin Of Error","Estimate","Margin Of Error","Estimate","Margin Of Error","Estimate","Margin Of Error","Estimate","Margin Of Error","Estimate","Margin Of Error","Estimate","Margin Of Error","Estimate","Margin Of Error","Estimate","Margin Of Error","Estimate","Margin Of Error","Estimate","Margin Of Error","Estimate","Margin Of Error","Estimate","Margin Of Error"]
[null,"Average household size --"]
[null,"Total:",2.61,0.12,2.77,0.12,2.98,0.2,2.67,0.16,2.91,0.14000000000000001,2.87,0.18,2.81,0.13,2.5499999999999998,7.0000000000000007E-2,2.78,0.11,2.5299999999999998,0.15,2.25,0.08,2.69,0.13,2.61,0.1,2.4700000000000002,0.11,2.23,7.0000000000000007E-2,2.56,0.14000000000000001,2.75,0.16,2.48,0.13,2.77,7.0000000000000007E-2,2.14,0.21,2.83,0.23,2.5,0.27,2.34,0.12,2.7,0.16,2.4900000000000002,0.11,2.5499999999999998,0.18,2.66,0.16,2.58,0.16,2,0.05,2.64,0.1,2.2799999999999998,0.15,2.59,7.0000000000000007E-2,2.88,0.18,2.2799999999999998,0.15,2.61,0.23,2.62,0.11,2.79,0.11]
[null,"Owner occupied",2.71,0.12,2.84,0.13,2.94,0.14000000000000001,2.7,0.16,2.97,0.15,2.98,0.2,2.8,0.14000000000000001,2.78,0.09,2.81,0.12,2.63,0.19,2.39,0.09,2.6,0.15,2.68,0.09,2.63,0.11,2.34,0.09,2.67,0.13,2.68,0.17,2.5099999999999998,0.16,2.84,7.0000000000000007E-2,2.11,0.2,2.92,0.23,2.75,0.28999999999999998,2.65,0.19,2.84,0.17,2.5299999999999998,0.11,2.6,0.2,2.68,0.16,2.62,0.16,2.17,7.0000000000000007E-2,2.6,0.13,2.3199999999999998,0.15,2.74,0.08,2.87,0.18,2.4900000000000002,0.2,2.67,0.25,2.65,0.12,2.83,0.12]
[null,"Renter occupied",1.5,0.46,2.09,0.42,3.15,0.99,1.72,0.38,2.29,0.62,2.13,0.53,2.94,0.65,2.15,0.12,2.4700000000000002,0.56000000000000005,1.89,0.36,1.94,0.2,3.39,0.6,2.13,0.44,1.87,0.35,1.96,0.2,1.86,0.41,3.7,0.86,2.3199999999999998,0.42,2.31,0.26,2.2400000000000002,0.63,1.9,0.55000000000000004,1.88,0.28000000000000003,1.98,0.16,2.17,0.41,2.06,0.8,2.2200000000000002,0.46,2.14,0.62,2.4300000000000002,0.46,1.81,0.08,2.76,0.32,2.0299999999999998,0.54,2.1,0.15,3,0.89,1.92,0.26,2.31,0.56999999999999995,2.2799999999999998,0.56999999999999995,2.3199999999999998,0.6]
[]
[]
[]
[]
[]
[]
[null,"B11001. HOUSEHOLD TYPE (INCLUDING LIVING ALONE)"]
[null,"Universe:  HOUSEHOLDS"]
[null,"Data Set: 2005-2009 American Community Survey 5-Year Estimates"]
[]
[null,null,"Atkinson",null,"Auburn",null,"Brentwood",null,"Candia",null,"Chester",null,"Danville",null,"Deerfield",null,"Derry",null,"East Kingston",null,"Epping",null,"Exeter",null,"Fremont",null,"Greenland",null,"Hampstead",null,"Hampton",null,"Hampton Falls",null,"Kensington",null,"Kingston",null,"Londonderry",null,"New Castle",null,"Newfields",null,"Newington",null,"Newmarket",null,"Newton",null,"North Hampton",null,"Northwood",null,"Nottingham",null,"Plaistow",null,"Portsmouth",null,"Raymond",null,"Rye",null,"Salem",null,"Sandown",null,"Seabrook",null,"South Hampton",null,"Stratham",null,"Windham"]
[null,null,"Estimate","Margin Of Error","Estimate","Margin Of Error","Estimate","Margin Of Error","Estimate","Margin Of Error","Estimate","Margin Of Error","Estimate","Margin Of Error","Estimate","Margin Of Error","Estimate","Margin Of Error","Estimate","Margin Of Error","Estimate","Margin Of Error","Estimate","Margin Of Error","Estimate","Margin Of Error","Estimate","Margin Of Error","Estimate","Margin Of Error","Estimate","Margin Of Error","Estimate","Margin Of Error","Estimate","Margin Of Error","Estimate","Margin Of Error","Estimate","Margin Of Error","Estimate","Margin Of Error","Estimate","Margin Of Error","Estimate","Margin Of Error","Estimate","Margin Of Error","Estimate","Margin Of Error","Estimate","Margin Of Error","Estimate","Margin Of Error","Estimate","Margin Of Error","Estimate","Margin Of Error","Estimate","Margin Of Error","Estimate","Margin Of Error","Estimate","Margin Of Error","Estimate","Margin Of Error","Estimate","Margin Of Error","Estimate","Margin Of Error","Estimate","Margin Of Error","Estimate","Margin Of Error","Estimate","Margin Of Error"]
[null,"Total:",2613,114,1763,97,1017,95,1552,69,1528,81,1451,105,1417,91,12592,332,846,51,2363,137,6202,222,1441,103,1275,88,3376,148,6966,265,819,58,764,55,2302,119,8372,211,372,69,577,66,288,40,4039,185,1656,78,1775,93,1553,101,1590,97,2849,248,9410,326,4043,211,2292,121,10969,289,1892,113,3846,231,321,42,2717,107,4364,175]
[null,"Family households:",1927,128,1433,83,899,84,1179,77,1276,67,1153,77,1065,81,8773,292,682,54,1728,132,3611,183,1203,71,929,78,2467,148,4174,212,644,60,620,58,1687,118,6713,198,219,50,487,64,199,38,2422,167,1341,74,1295,97,1119,75,1307,65,2082,148,4676,267,2783,167,1515,108,7981,255,1617,85,2359,186,217,39,2049,115,3565,164]
[null,"Married-couple family",1771,145,1288,102,822,81,1086,87,1198,71,926,105,848,114,7055,308,582,56,1353,138,3090,206,1033,86,853,80,2152,166,3202,247,570,62,534,61,1388,158,5792,248,216,49,456,63,169,38,1985,177,1059,118,1076,101,921,89,1157,106,1794,170,3550,304,2267,181,1211,133,6431,293,1373,95,1701,229,199,39,1744,149,3191,175]
[null,"Other family:",156,71,145,75,77,26,93,45,78,46,227,74,217,106,1718,272,100,37,375,135,521,131,170,68,76,39,315,151,972,239,74,33,86,27,299,121,921,210,3,5,31,14,30,14,437,139,282,100,219,78,198,72,150,86,288,98,1126,218,516,151,304,109,1550,260,244,90,658,180,18,9,305,133,374,119]
[null,"Male householder, no spouse present",29,26,0,114,26,17,25,23,56,40,21,22,49,37,367,146,28,18,68,54,117,76,25,28,32,29,75,68,249,105,30,20,23,14,89,56,315,134,0,114,7,8,18,10,155,76,111,57,58,53,59,54,33,25,86,57,293,103,153,71,127,82,393,135,78,44,390,155,7,5,101,65,132,82]
[null,"Female householder, no spouse present",127,69,145,75,51,23,68,41,22,25,206,74,168,91,1351,246,72,31,307,126,404,116,145,62,44,29,240,114,723,207,44,26,63,24,210,118,606,160,3,5,24,11,12,11,282,110,171,85,161,73,139,55,117,79,202,92,833,194,363,139,177,78,1157,218,166,82,268,144,11,8,204,116,242,84]
[null,"Nonfamily households:",686,175,330,107,118,49,373,94,252,69,298,107,352,100,3819,417,164,36,635,166,2591,289,238,104,346,112,909,181,2792,343,175,37,144,38,615,165,1659,267,153,57,90,31,89,34,1617,252,315,101,480,126,434,124,283,124,767,214,4734,376,1260,234,777,175,2988,327,275,94,1487,298,104,33,668,144,799,148]
[null,"Householder living alone",630,167,230,94,90,42,258,82,176,60,204,95,241,92,2802,329,133,35,440,136,2153,305,205,89,211,80,748,177,2201,294,127,32,96,33,462,149,1392,255,134,55,68,29,47,21,1096,208,265,90,344,107,244,95,206,94,631,203,3406,387,1045,226,661,162,2356,306,196,83,1256,267,90,33,522,125,640,137]
[null,"Householder not living alone",56,50,100,79,28,21,115,62,76,39,94,49,111,47,1017,261,31,18,195,119,438,152,33,33,135,78,161,106,591,181,48,21,48,25,153,77,267,113,19,19,22,14,42,26,521,173,50,34,136,78,190,93,77,82,136,98,1328,234,215,80,116,89,632,208,79,53,231,130,14,12,146,71,159,67]
[]
[]
[]
[null,"Calculated Average  Household Size by Household Type"]
[null,"Universe:  POPULATION IN HOUSEHOLDS"]
[null,"Data Set: 2005-2009 American Community Survey 5-Year Estimates"]
[]
[null,null,"Atkinson",null,"Auburn",null,"Brentwood",null,"Candia",null,"Chester",null,"Danville",null,"Deerfield",null,"Derry",null,"East Kingston",null,"Epping",null,"Exeter",null,"Fremont",null,"Greenland",null,"Hampstead",null,"Hampton",null,"Hampton Falls",null,"Kensington",null,"Kingston",null,"Londonderry",null,"New Castle",null,"Newfields",null,"Newington",null,"Newmarket",null,"Newton",null,"North Hampton",null,"Northwood",null,"Nottingham",null,"Plaistow",null,"Portsmouth",null,"Raymond",null,"Rye",null,"Salem",null,"Sandown",null,"Seabrook",null,"South Hampton",null,"Stratham",null,"Windham"]
[null,null,"Estimate","Margin Of Error","Estimate","Margin Of Error","Estimate","Margin Of Error","Estimate","Margin Of Error","Estimate","Margin Of Error","Estimate","Margin Of Error","Estimate","Margin Of Error","Estimate","Margin Of Error","Estimate","Margin Of Error","Estimate","Margin Of Error","Estimate","Margin Of Error","Estimate","Margin Of Error","Estimate","Margin Of Error","Estimate","Margin Of Error","Estimate","Margin Of Error","Estimate","Margin Of Error","Estimate","Margin Of Error","Estimate","Margin Of Error","Estimate","Margin Of Error","Estimate","Margin Of Error","Estimate","Margin Of Error","Estimate","Margin Of Error","Estimate","Margin Of Error","Estimate","Margin Of Error","Estimate","Margin Of Error","Estimate","Margin Of Error","Estimate","Margin Of Error","Estimate","Margin Of Error","Estimate","Margin Of Error","Estimate","Margin Of Error","Estimate","Margin Of Error","Estimate","Margin Of Error","Estimate","Margin Of Error","Estimate","Margin Of Error","Estimate","Margin Of Error","Estimate","Margin Of Error","Estimate","Margin Of Error"]
[null,"Total:",2.5434366628396479,0.11,2.9251276233692569,0.16130052159038874,3.2586037364798428,0.37514700505551829,2.6868556701030926,0.12045105874139313,3.0713350785340312,0.16376898755491476,3.0027567195037905,0.21781948463695644,2.9435426958362738,0.18941517241172728,2.6968710292249045,7.2875251213850564E-2,2.7399527186761228,0.21391727403291866,2.6356326703343207,0.15293825873522346,2.3119961302805545,8.8190141209883124E-2,2.8334489937543372,0.20300467616461901,2.6713725490196079,0.18491678588779317,2.6300355450236967,0.11544986281029472,2.1907838070628767,8.7255487833468412E-2,2.8595848595848596,0.27060314551023301,2.7735602094240837,0.29125382166794112,2.707645525629887,0.14061583265497907,2.980649784997611,7.5171706674654171E-2,1.9543010752688172,0.50914186075587831,3.1819757365684573,0.55270575738817096,2.3993055555555554,0.50426981170414831,2.3045308244615006,0.11248508643990873,2.731280193236715,0.12953001284641572,2.5588732394366196,0.134642231218184,2.6252414681262075,0.17121868009634411,2.8119496855345911,0.17184150630885067,2.6904176904176906,0.2344323212679949,2.141020191285866,7.7427448508510688E-2,2.5181795696265148,0.13148844315122415,2.2587260034904015,0.11966488623437348,2.6657853952046677,7.3483630721388249E-2,3.0771670190274842,0.18403036666062386,2.2085283411336452,0.13272314277556907,2.485981308411215,0.51700916003494635,2.6551343393448659,0.10475066053380035,2.9734188817598532,0.12774075009278019]
[null,"In family households:",3.0487804878048781,0.22972831433355057,3.272854152128402,0.2274048809711402,3.5205784204671859,0.4113269251539341,3.1043256997455471,0.23801258982077492,3.3910658307210033,0.20063994038187125,3.4275802254986991,0.26159164312889377,3.4723004694835682,0.29054339135362506,3.2908925111136442,0.13783190070432555,3.1085043988269794,0.31311328354754198,3.1041666666666665,0.2849339011593548,3.0897258377180838,0.19522019570868257,3.1662510390689942,0.21422005898792695,3.155005382131324,0.31714319181050521,3.1605188488042155,0.21255429542700247,2.8021082894106373,0.19025308012115014,3.2872670807453415,0.40130379474776373,3.0854838709677419,0.40371257346711364,3.2299940723177238,0.26116009685423058,3.4151646059883807,0.11418617073173332,2.4611872146118721,0.79771057313523208,3.5297741273100618,0.67678785204798408,2.7688442211055277,0.74696127886354846,2.9265070189925679,0.26498842415241713,3.0827740492170022,0.1995962952012359,2.996911196911197,0.27737782208059808,3.0840035746201968,0.27209384301471007,3.1629686304514153,0.20074135377999924,3.2291066282420751,0.26701456186344885,2.9020530367835757,0.21036776291818829,3.0786920589292133,0.21722510758113808,2.8191419141914191,0.25266336359723551,3.1893246460343314,0.12545265151401913,3.3809523809523809,0.19356321089491699,2.8478168715557439,0.27934236526959394,3.129032258064516,0.82503759890852701,3.1166422645192777,0.19983823929836703,3.3694249649368864,0.17263976492042107]
[null,"In nonfamily households",0,0.16618075801749271,2.3363636363636364,0.98741602206230017,3.9576271186440679,2.2422648262548459,0.39946380697050937,0.19893361710028354,2.0238095238095237,0.80170641452570057,1.2281879194630871,0.59044378240588757,1.1505681818181819,0.51921118142916345,0.12385441214977742,3.6142174163070556E-2,31.024390243902438,7.9166458411671208,0.31181102362204727,0.10905057337067166,0.33346198379004244,0.11282941976276756,13.369747899159664,6.0780222381483382,0.79190751445086704,0.45007491240120168,0.52255225522552251,0.20447179505363525,0.38753581661891118,9.8577068823230141E-2,20.37142857142857,5.1591402374818385,1.5625,0.55734912844118734,0.33495934959349594,0.1326433084490837,0.47257383966244726,0.1497458949140166,13.254901960784315,5.4841613738738744,2.088888888888889,1.1264103354751609,1.3146067415730338,0.68913957384136826,8.6580086580086577E-2,3.9482880454442995E-2,7.0476190476190474,2.5874122056125879,0.81041666666666667,0.35932495216876476,1.5230414746543779,0.65247671353815073,2.2120141342756185,1.1932997087673796,0.43937418513689702,0.24646944781350211,0.19898605830164764,6.2038456235334959E-2,5.2198412698412699,1.079692892932731,2.0759330759330759,0.6205260127688137,0.30321285140562249,8.3822375635130328E-2,13.770909090909091,5.0646554391694183,0.23873570948217887,9.7894480750071039E-2,17.076923076923077,6.6061582969144803,0.17814371257485029,6.6174789303915127E-2,1.0362953692115144,0.31148339864200331]
[]
[]
[]
[null,"B25010. AVERAGE HOUSEHOLD SIZE OF OCCUPIED HOUSING UNITS BY TENURE"]
[null,"Universe:  OCCUPIED HOUSING UNITS"]
[null,"Data Set: 2005-2009 American Community Survey 5-Year Estimates"]
[]
[null,null,"Atkinson",null,"Auburn",null,"Brentwood",null,"Candia",null,"Chester",null,"Danville",null,"Deerfield",null,"Derry",null,"East Kingston",null,"Epping",null,"Exeter",null,"Fremont",null,"Greenland",null,"Hampstead",null,"Hampton",null,"Hampton Falls",null,"Kensington",null,"Kingston",null,"Londonderry",null,"New Castle",null,"Newfields",null,"Newington",null,"Newmarket",null,"Newton",null,"North Hampton",null,"Northwood",null,"Nottingham",null,"Plaistow",null,"Portsmouth",null,"Raymond",null,"Rye",null,"Salem",null,"Sandown",null,"Seabrook",null,"South Hampton",null,"Stratham",null,"Windham"]
[null,null,"Estimate","Margin Of Error","Estimate","Margin Of Error","Estimate","Margin Of Error","Estimate","Margin Of Error","Estimate","Margin Of Error","Estimate","Margin Of Error","Estimate","Margin Of Error","Estimate","Margin Of Error","Estimate","Margin Of Error","Estimate","Margin Of Error","Estimate","Margin Of Error","Estimate","Margin Of Error","Estimate","Margin Of Error","Estimate","Margin Of Error","Estimate","Margin Of Error","Estimate","Margin Of Error","Estimate","Margin Of Error","Estimate","Margin Of Error","Estimate","Margin Of Error","Estimate","Margin Of Error","Estimate","Margin Of Error","Estimate","Margin Of Error","Estimate","Margin Of Error","Estimate","Margin Of Error","Estimate","Margin Of Error","Estimate","Margin Of Error","Estimate","Margin Of Error","Estimate","Margin Of Error","Estimate","Margin Of Error","Estimate","Margin Of Error","Estimate","Margin Of Error","Estimate","Margin Of Error","Estimate","Margin Of Error","Estimate","Margin Of Error","Estimate","Margin Of Error","Estimate","Margin Of Error","Estimate","Margin Of Error"]
[null,"Average household size --"]
[null,"Total:",2.54,0.11,2.93,0.16,3.26,0.16,2.69,0.12,"-","-",3,0.22,2.94,0.19,2.7,7.0000000000000007E-2,2.74,0.15,2.64,0.15,2.31,0.08,2.83,0.2,2.67,0.18,2.63,0.12,2.19,0.08,2.86,0.21,2.77,0.14000000000000001,2.71,0.14000000000000001,2.98,0.08,1.95,0.22,3.18,0.2,2.4,0.22,2.2999999999999998,0.1,2.73,0.13,2.56,0.13,2.63,0.17,2.81,0.17,2.69,0.23,2.14,7.0000000000000007E-2,2.52,0.13,2.2599999999999998,0.12,2.67,7.0000000000000007E-2,3.08,0.19,2.21,0.13,2.4900000000000002,0.26,2.66,0.11,2.97,0.11]
[null,"Owner occupied",2.77,0.13,3.02,0.17,3.24,0.16,2.7,0.13,"-","-",3.12,0.22,3.09,0.22,2.96,0.09,2.76,0.16,2.77,0.14000000000000001,2.56,0.1,2.76,0.17,2.78,0.2,2.85,0.12,2.3199999999999998,0.1,2.88,0.22,2.81,0.15,2.77,0.15,3.03,0.08,1.88,0.24,3.27,0.2,2.4,0.27,2.5,0.12,2.87,0.14000000000000001,2.62,0.15,2.71,0.18,2.74,0.18,2.82,0.26,2.39,0.1,2.63,0.15,2.2999999999999998,0.14000000000000001,2.8,0.08,3.11,0.2,2.3199999999999998,0.19,2.5499999999999998,0.27,2.72,0.12,3.07,0.12]
[null,"Renter occupied",1.31,0.24,1.44,0.61,3.68,0.75,2.41,0.77,"-","-",1.76,0.65,1.97,0.46,2.11,0.15,2.5,0.56999999999999995,1.86,0.57999999999999996,1.75,0.18,3.75,1.28,1.9,0.42,1.51,0.19,1.89,0.19,2.66,0.76,2.19,0.35,1.94,0.78,2.56,0.41,2.54,0.77,1.65,0.69,2.39,0.44,2.0099999999999998,0.18,1.84,0.53,2.25,0.59,2.16,0.44,3.45,0.74,2.19,0.5,1.87,0.11,1.88,0.39,2.02,0.34,2.14,0.15,2.82,0.47,1.95,0.3,1.91,1.23,1.73,0.31,1.61,0.3]

{"sheet":"ACS_Table_B19001","index":27,"n_rows":162,"n_cols":76,"rows_kept":162,"cut":false,"hidden":true,"merged":[]}
[null,"B19001. HOUSEHOLD INCOME IN THE PAST 12 MONTHS (IN 2019 INFLATION-ADJUSTED DOLLARS)"]
[null,"  ",null,null,null,null,null,null,null,null,null,null,null,null,{"$f":"B1","v":"B19001. HOUSEHOLD INCOME IN THE PAST 12 MONTHS (IN 2019 INFLATION-ADJUSTED DOLLARS)"}]
[null,"Data Set: 2015-2019 American Community Survey 5-Year Estimates",null,null,null,null,null,null,null,null,null,null,null,null,{"$f":"B3","v":"Data Set: 2015-2019 American Community Survey 5-Year Estimates"}]
[]
[null,null,"Atkinson",null,"Auburn",null,"Brentwood",null,"Candia",null,"Chester",null,"Danville",null,"Deerfield",null,"Derry",null,"East Kingston",null,"Epping",null,"Exeter",null,"Fremont",null,"Greenland",null,"Hampstead",null,"Hampton",null,"Hampton Falls",null,"Kensington",null,"Kingston",null,"Londonderry",null,"New Castle",null,"Newfields",null,"Newington",null,"Newmarket",null,"Newton",null,"North Hampton",null,"Northwood",null,"Nottingham",null,"Plaistow",null,"Portsmouth",null,"Raymond",null,"Rye",null,"Salem",null,"Sandown",null,"Seabrook",null,"South Hampton",null,"Stratham",null,"Windham"]
[null,null,"Estimate","Margin Of Error","Estimate","Margin Of Error","Estimate","Margin Of Error","Estimate","Margin Of Error","Estimate","Margin Of Error","Estimate","Margin Of Error","Estimate","Margin Of Error","Estimate","Margin Of Error","Estimate","Margin Of Error","Estimate","Margin Of Error","Estimate","Margin Of Error","Estimate","Margin Of Error","Estimate","Margin Of Error","Estimate","Margin Of Error","Estimate","Margin Of Error","Estimate","Margin Of Error","Estimate","Margin Of Error","Estimate","Margin Of Error","Estimate","Margin Of Error","Estimate","Margin Of Error","Estimate","Margin Of Error","Estimate","Margin Of Error","Estimate","Margin Of Error","Estimate","Margin Of Error","Estimate","Margin Of Error","Estimate","Margin Of Error","Estimate","Margin Of Error","Estimate","Margin Of Error","Estimate","Margin Of Error","Estimate","Margin Of Error","Estimate","Margin Of Error","Estimate","Margin Of Error","Estimate","Margin Of Error","Estimate","Margin Of Error","Estimate","Margin Of Error","Estimate","Margin Of Error","Estimate","Margin Of Error"]
[null,"Total Households",2745,185,1973,91,1533,82,1537,80,1687,101,1685,93,1653,86,12741,353,888,65,2680,155,6542,249,1764,77,1516,85,3573,147,7088,199,909,54,845,53,2411,198,9338,206,436,85,600,67,307,39,4035,177,1853,107,1820,118,1611,107,1900,108,3119,164,10063,259,4112,193,2364,153,11536,318,2229,137,3824,194,302,41,2817,137,5009,196]
[null,"Households With"]
[null,"Income Less than $10,000 ",44,43,13,18,19,22,64,65,0,16,9,14,63,46,577,204,17,14,34,38,251,114,8,14,41,36,107,66,192,85,37,39,14,10,39,43,116,57,5,8,7,8,10,8,148,105,34,29,61,36,39,39,14,21,103,105,413,135,90,66,37,41,424,172,12,20,127,77,13,10,64,62,12,19]
[null,"Income $10,000 to $14,999 ",50,63,10,16,21,23,21,24,12,20,10,15,48,33,352,122,24,18,46,45,188,86,28,25,36,27,53,55,150,88,0,11,11,9,87,88,55,30,0,11,3,5,6,6,80,64,54,50,25,24,0,11,24,26,96,64,292,114,217,104,0,16,236,141,40,49,70,49,0,11,31,35,56,57]
[null,"Income $15,000 to $19,999 ",14,23,0,16,53,57,55,40,0,16,43,44,15,18,264,92,12,13,91,79,170,73,8,12,18,14,152,122,254,94,11,12,18,18,15,26,203,101,6,8,12,11,2,5,144,82,74,56,26,25,40,32,19,20,0,16,362,132,61,38,0,16,421,184,43,68,296,107,5,5,0,16,158,108]
[null,"Income $20,000 to $24,999 ",84,90,56,40,49,38,36,44,11,19,99,79,0,11,341,154,0,11,139,100,321,124,37,49,35,34,90,68,168,66,0,11,14,10,61,53,144,75,19,22,0,11,5,6,163,119,7,12,34,28,47,32,105,70,82,83,335,135,171,85,80,66,455,155,11,18,84,85,0,11,33,39,68,63]
[null,"Income $25,000 to $29,999 ",16,27,18,21,19,21,20,30,54,53,66,55,33,29,373,161,22,16,110,84,192,78,17,20,0,11,82,67,126,53,21,20,11,10,137,129,293,120,17,21,4,6,0,11,109,66,18,21,65,56,9,15,60,51,91,81,242,107,57,40,104,111,298,116,71,78,58,42,9,10,33,38,16,28]
[null,"Income $30,000 to $34,999 ",72,51,19,21,19,22,76,53,9,14,71,56,48,42,403,164,29,20,20,32,267,97,17,18,65,39,126,97,256,95,38,37,18,10,49,50,278,99,32,29,4,7,12,12,139,83,37,27,36,30,27,26,11,17,82,85,307,103,185,95,66,53,316,144,60,53,190,76,6,6,59,50,89,65]
[null,"Income $35,000 to $39,999 ",13,20,39,36,20,27,55,51,44,32,35,31,22,21,452,143,17,16,29,32,235,129,34,25,10,14,31,29,148,63,24,22,41,31,97,75,224,88,13,18,8,9,5,6,241,104,25,25,28,24,61,50,11,16,159,107,220,81,163,86,69,48,417,143,108,94,123,85,12,14,84,61,108,80]
[null,"Income $40,000 to $44,999 ",75,83,41,32,15,17,26,40,38,31,86,50,46,34,405,159,47,35,213,142,209,113,14,22,62,55,258,142,213,72,7,10,7,10,137,107,144,88,4,7,3,5,0,11,125,68,38,30,73,51,74,47,26,25,142,87,186,80,126,68,31,35,364,127,63,59,199,81,19,17,85,64,63,60]
[null,"Income $45,000 to $49,999 ",87,69,57,63,12,17,18,19,0,16,0,11,12,20,626,195,19,29,73,49,235,133,72,39,43,31,107,86,246,97,10,11,15,10,53,55,212,66,0,11,15,20,5,6,180,105,45,49,43,35,17,20,26,23,16,28,277,128,185,112,39,44,389,125,17,25,150,98,9,6,99,68,57,48]
[null,"Income $50,000 to $59,999 ",161,95,84,41,93,47,119,64,0,16,94,67,89,44,798,205,55,29,223,107,540,151,80,44,18,20,248,118,491,131,58,39,59,24,40,40,573,132,29,29,34,17,21,10,322,115,61,34,149,78,159,80,140,79,195,81,631,202,284,108,120,75,724,193,166,92,269,103,21,9,75,55,152,98]
[null,"Income $60,000 to $74,999 ",131,72,81,41,118,56,89,51,189,88,146,70,77,41,1632,235,70,27,320,140,596,197,209,83,64,50,345,107,760,156,19,16,79,27,316,136,763,176,28,18,26,18,34,14,405,141,128,77,172,71,142,51,269,85,529,174,1342,189,438,130,199,102,1080,236,155,100,456,161,25,15,296,142,471,153]
[null,"Income $75,000 to $99,999 ",351,143,313,95,94,49,166,59,164,78,236,79,298,97,1427,249,108,33,381,125,893,151,256,72,210,79,372,102,1098,214,76,30,108,38,331,156,1300,193,27,20,43,22,36,17,556,155,248,98,238,91,265,77,340,95,331,109,1078,179,613,158,293,125,1410,234,235,100,578,150,18,11,418,154,441,155]
[null,"Income $100,000 to $124,999 ",441,142,383,105,226,85,232,100,229,86,265,78,291,110,1928,289,115,42,235,109,532,176,325,73,209,62,498,133,722,135,70,29,83,28,314,135,1267,232,32,19,60,29,35,19,512,126,380,92,169,67,257,95,208,78,376,148,1382,225,606,190,208,86,974,168,306,111,466,121,35,16,239,102,410,130]
[null,"Income $125,000 to $149,999 ",291,99,204,89,117,57,108,51,158,65,109,46,183,76,1135,219,46,22,260,93,441,130,272,105,133,59,233,63,606,129,145,55,89,29,139,102,1051,189,12,15,62,29,29,14,359,130,191,74,121,64,190,79,254,96,391,144,695,138,477,143,128,96,1166,190,341,99,268,104,41,22,270,110,430,166]
[null,"Income $150,000 to $199,999 ",457,141,378,102,258,90,250,85,409,106,254,98,194,77,1012,207,185,46,329,122,509,143,211,72,293,105,403,95,644,154,151,45,83,24,398,117,1341,193,45,31,126,37,64,26,333,106,320,100,222,74,135,68,226,73,302,141,955,192,297,105,434,162,1268,201,347,122,255,95,45,19,309,120,955,207]
[null,"Income $200,000 or more ",458,138,277,86,400,91,202,76,370,114,162,57,234,63,1016,198,122,38,177,93,963,186,176,81,279,79,468,109,1014,153,242,48,195,35,198,96,1374,192,167,58,193,47,43,16,219,81,193,84,358,100,149,63,167,60,224,103,1346,145,142,82,556,164,1594,246,254,156,235,76,44,15,722,156,1523,215]
[]
[]
[]
[]
[null,"Calculated B19001. HOUSEHOLD INCOME IN THE PAST 12 MONTHS (IN 2018 INFLATION-ADJUSTED DOLLARS)"]
[null,"Universe:  HOUSEHOLDS"]
[null,"Data Set: 2015-2019 American Community Survey 5-Year Estimates"]
[null,null,"Atkinson",null,"Auburn",null,"Brentwood",null,"Candia",null,"Chester",null,"Danville",null,"Deerfield",null,"Derry",null,"East Kingston",null,"Epping",null,"Exeter",null,"Fremont",null,"Greenland",null,"Hampstead",null,"Hampton",null,"Hampton Falls",null,"Kensington",null,"Kingston",null,"Londonderry",null,"New Castle",null,"Newfields",null,"Newington",null,"Newmarket",null,"Newton",null,"North Hampton",null,"Northwood",null,"Nottingham",null,"Plaistow",null,"Portsmouth",null,"Raymond",null,"Rye",null,"Salem",null,"Sandown",null,"Seabrook",null,"South Hampton",null,"Stratham",null,"Windham"]
[null,null,"Estimate","Margin Of Error","Estimate","Margin Of Error","Estimate","Margin Of Error","Estimate","Margin Of Error","Estimate","Margin Of Error","Estimate","Margin Of Error","Estimate","Margin Of Error","Estimate","Margin Of Error","Estimate","Margin Of Error","Estimate","Margin Of Error","Estimate","Margin Of Error","Estimate","Margin Of Error","Estimate","Margin Of Error","Estimate","Margin Of Error","Estimate","Margin Of Error","Estimate","Margin Of Error","Estimate","Margin Of Error","Estimate","Margin Of Error","Estimate","Margin Of Error","Estimate","Margin Of Error","Estimate","Margin Of Error","Estimate","Margin Of Error","Estimate","Margin Of Error","Estimate","Margin Of Error","Estimate","Margin Of Error","Estimate","Margin Of Error","Estimate","Margin Of Error","Estimate","Margin Of Error","Estimate","Margin Of Error","Estimate","Margin Of Error","Estimate","Margin Of Error","Estimate","Margin Of Error","Estimate","Margin Of Error","Estimate","Margin Of Error","Estimate","Margin Of Error","Estimate","Margin Of Error","Estimate","Margin Of Error"]
[null,"Total Households",{"$f":"C7","v":2745},{"$f":"D7","v":185},{"$f":"E7","v":1973},91,1533,82,1537,80,1687,101,1685,93,1653,86,12741,353,888,65,2680,155,6542,249,1764,77,1516,85,3573,147,7088,199,909,54,845,53,2411,198,9338,206,436,85,600,67,307,39,4035,177,1853,107,1820,118,1611,107,1900,108,3119,164,10063,259,4112,193,2364,153,11536,318,2229,137,{"$f":"BQ7","v":3824},194,302,41,2817,137,5009,196]
[null,"Households With"]
[null,"Income Less than $10,000 ",{"$f":"C9","v":44},{"$f":"D9","v":43},{"$f":"E9","v":13},18,19,22,64,65,0,16,9,14,63,46,577,204,17,14,34,38,251,114,8,14,41,36,107,66,192,85,37,39,14,10,39,43,116,57,5,8,7,8,10,8,148,105,34,29,61,36,39,39,14,21,103,105,413,135,90,66,37,41,424,172,12,20,{"$f":"BQ9","v":127},77,13,10,64,62,12,19]
[null,"Income $10,000 to $14,999 ",{"$f":"C10","v":50},{"$f":"D10","v":63},{"$f":"E10","v":10},16,21,23,21,24,12,20,10,15,48,33,352,122,24,18,46,45,188,86,28,25,36,27,53,55,150,88,0,11,11,9,87,88,55,30,0,11,3,5,6,6,80,64,54,50,25,24,0,11,24,26,96,64,292,114,217,104,0,16,236,141,40,49,{"$f":"BQ10","v":70},49,0,11,31,35,56,57]
[null,"Income $15,000 to $24,999 ",{"$f":"C11+C12","v":98},{"$f":"SQRT((D11^2)+(D12^2))","v":92.892410884851088},{"$f":"E11+E12","v":56},{"$f":"SQRT((F11^2)+(F12^2))","v":43.08131845707603},{"$f":"G11+G12","v":102},{"$f":"SQRT((H11^2)+(H12^2))","v":68.505474233815804},{"$f":"I11+I12","v":91},{"$f":"SQRT((J11^2)+(J12^2))","v":59.464274989274024},{"$f":"K11+K12","v":11},{"$f":"SQRT((L11^2)+(L12^2))","v":24.839484696748443},{"$f":"M11+M12","v":142},{"$f":"SQRT((N11^2)+(N12^2))","v":90.426765949026404},{"$f":"O11+O12","v":15},{"$f":"SQRT((P11^2)+(P12^2))","v":21.095023109728988},{"$f":"Q11+Q12","v":605},{"$f":"SQRT((R11^2)+(R12^2))","v":179.38784797192923},{"$f":"S11+S12","v":12},{"$f":"SQRT((T11^2)+(T12^2))","v":17.029386365926403},{"$f":"U11+U12","v":230},{"$f":"SQRT((V11^2)+(V12^2))","v":127.4401820463232},{"$f":"W11+W12","v":491},{"$f":"SQRT((X11^2)+(X12^2))","v":143.89232085139221},{"$f":"Y11+Y12","v":45},{"$f":"SQRT((Z11^2)+(Z12^2))","v":50.447993022517757},{"$f":"AA11+AA12","v":53},{"$f":"SQRT((AB11^2)+(AB12^2))","v":36.76955262170047},{"$f":"AC11+AC12","v":242},{"$f":"SQRT((AD11^2)+(AD12^2))","v":139.67104209534631},{"$f":"AE11+AE12","v":422},{"$f":"SQRT((AF11^2)+(AF12^2))","v":114.85643212288984},{"$f":"AG11+AG12","v":11},{"$f":"SQRT((AH11^2)+(AH12^2))","v":16.278820596099706},{"$f":"AI11+AI12","v":32},{"$f":"SQRT((AJ11^2)+(AJ12^2))","v":20.591260281974002},{"$f":"AK11+AK12","v":76},{"$f":"SQRT((AL11^2)+(AL12^2))","v":59.033888572581766},{"$f":"AM11+AM12","v":347},{"$f":"SQRT((AN11^2)+(AN12^2))","v":125.80143083447024},{"$f":"AO11+AO12","v":25},{"$f":"SQRT((AP11^2)+(AP12^2))","v":23.409399821439251},{"$f":"AQ11+AQ12","v":12},{"$f":"SQRT((AR11^2)+(AR12^2))","v":15.556349186104045},{"$f":"AS11+AS12","v":7},{"$f":"SQRT((AT11^2)+(AT12^2))","v":7.810249675906654},{"$f":"AU11+AU12","v":307},{"$f":"SQRT((AV11^2)+(AV12^2))","v":144.51643505151932},{"$f":"AW11+AW12","v":81},{"$f":"SQRT((AX11^2)+(AX12^2))","v":57.271284253105414},{"$f":"AY11+AY12","v":60},{"$f":"SQRT((AZ11^2)+(AZ12^2))","v":37.536648758246919},{"$f":"BA11+BA12","v":87},{"$f":"SQRT((BB11^2)+(BB12^2))","v":45.254833995939045},{"$f":"BC11+BC12","v":124},{"$f":"SQRT((BD11^2)+(BD12^2))","v":72.801098892805186},{"$f":"BE11+BE12","v":82},{"$f":"SQRT((BF11^2)+(BF12^2))","v":84.528101836016646},{"$f":"BG11+BG12","v":697},{"$f":"SQRT((BH11^2)+(BH12^2))","v":188.80942773071476},{"$f":"BI11+BI12","v":232},{"$f":"SQRT((BJ11^2)+(BJ12^2))","v":93.107464792034804},{"$f":"BK11+BK12","v":80},{"$f":"SQRT((BL11^2)+(BL12^2))","v":67.911707385398586},{"$f":"BM11+BM12","v":876},{"$f":"SQRT((BN11^2)+(BN12^2))","v":240.58470441821524},{"$f":"BO11+BO12","v":54},{"$f":"SQRT((BP11^2)+(BP12^2))","v":70.342021580275897},{"$f":"BQ11+BQ12","v":380},{"$f":"SQRT((BR11^2)+(BR12^2))","v":136.65284482951682},{"$f":"BS11+BS12","v":5},{"$f":"SQRT((BT11^2)+(BT12^2))","v":12.083045973594572},{"$f":"BU11+BU12","v":33},{"$f":"SQRT((BV11^2)+(BV12^2))","v":42.154477816715982},{"$f":"BW11+BW12","v":226},{"$f":"SQRT((BX11^2)+(BX12^2))","v":125.03199590504823}]
[null,"Income $25,000 to $34,999 ",{"$f":"C13+C14","v":88},{"$f":"SQRT((D13^2)+(D14^2))","v":57.706152185014034},{"$f":"E13+E14","v":37},{"$f":"SQRT((F13^2)+(F14^2))","v":29.698484809834994},{"$f":"G13+G14","v":38},{"$f":"SQRT((H13^2)+(H14^2))","v":30.413812651491099},{"$f":"I13+I14","v":96},{"$f":"SQRT((J13^2)+(J14^2))","v":60.901559914340453},{"$f":"K13+K14","v":63},{"$f":"SQRT((L13^2)+(L14^2))","v":54.817880294662984},{"$f":"M13+M14","v":137},{"$f":"SQRT((N13^2)+(N14^2))","v":78.492037812761623},{"$f":"O13+O14","v":81},{"$f":"SQRT((P13^2)+(P14^2))","v":51.039200620699383},{"$f":"Q13+Q14","v":776},{"$f":"SQRT((R13^2)+(R14^2))","v":229.8194943863553},{"$f":"S13+S14","v":51},{"$f":"SQRT((T13^2)+(T14^2))","v":25.612496949731394},{"$f":"U13+U14","v":130},{"$f":"SQRT((V13^2)+(V14^2))","v":89.888820216976924},{"$f":"W13+W14","v":459},{"$f":"SQRT((X13^2)+(X14^2))","v":124.47088012864695},{"$f":"Y13+Y14","v":34},{"$f":"SQRT((Z13^2)+(Z14^2))","v":26.90724809414742},{"$f":"AA13+AA14","v":65},{"$f":"SQRT((AB13^2)+(AB14^2))","v":40.521599178709621},{"$f":"AC13+AC14","v":208},{"$f":"SQRT((AD13^2)+(AD14^2))","v":117.88977903109328},{"$f":"AE13+AE14","v":382},{"$f":"SQRT((AF13^2)+(AF14^2))","v":108.78419002777932},{"$f":"AG13+AG14","v":59},{"$f":"SQRT((AH13^2)+(AH14^2))","v":42.059481689626182},{"$f":"AI13+AI14","v":29},{"$f":"SQRT((AJ13^2)+(AJ14^2))","v":14.142135623730951},{"$f":"AK13+AK14","v":186},{"$f":"SQRT((AL13^2)+(AL14^2))","v":138.35100288758301},{"$f":"AM13+AM14","v":571},{"$f":"SQRT((AN13^2)+(AN14^2))","v":155.56670594957006},{"$f":"AO13+AO14","v":49},{"$f":"SQRT((AP13^2)+(AP14^2))","v":35.805027579936315},{"$f":"AQ13+AQ14","v":8},{"$f":"SQRT((AR13^2)+(AR14^2))","v":9.2195444572928871},{"$f":"AS13+AS14","v":12},{"$f":"SQRT((AT13^2)+(AT14^2))","v":16.278820596099706},{"$f":"AU13+AU14","v":248},{"$f":"SQRT((AV13^2)+(AV14^2))","v":106.04244433244644},{"$f":"AW13+AW14","v":55},{"$f":"SQRT((AX13^2)+(AX14^2))","v":34.205262752974143},{"$f":"AY13+AY14","v":101},{"$f":"SQRT((AZ13^2)+(AZ14^2))","v":63.529520697074361},{"$f":"BA13+BA14","v":36},{"$f":"SQRT((BB13^2)+(BB14^2))","v":30.016662039607269},{"$f":"BC13+BC14","v":71},{"$f":"SQRT((BD13^2)+(BD14^2))","v":53.758720222862451},{"$f":"BE13+BE14","v":173},{"$f":"SQRT((BF13^2)+(BF14^2))","v":117.41379816699569},{"$f":"BG13+BG14","v":549},{"$f":"SQRT((BH13^2)+(BH14^2))","v":148.51935900750448},{"$f":"BI13+BI14","v":242},{"$f":"SQRT((BJ13^2)+(BJ14^2))","v":103.07764064044152},{"$f":"BK13+BK14","v":170},{"$f":"SQRT((BL13^2)+(BL14^2))","v":123.00406497347964},{"$f":"BM13+BM14","v":614},{"$f":"SQRT((BN13^2)+(BN14^2))","v":184.91078930121952},{"$f":"BO13+BO14","v":131},{"$f":"SQRT((BP13^2)+(BP14^2))","v":94.30270409696638},{"$f":"BQ13+BQ14","v":248},{"$f":"SQRT((BR13^2)+(BR14^2))","v":86.833173384369644},{"$f":"BS13+BS14","v":15},{"$f":"SQRT((BT13^2)+(BT14^2))","v":11.661903789690601},{"$f":"BU13+BU14","v":92},{"$f":"SQRT((BV13^2)+(BV14^2))","v":62.801273872430329},{"$f":"BW13+BW14","v":105},{"$f":"SQRT((BX13^2)+(BX14^2))","v":70.774289116881988}]
[null,"Income $35,000 to $49,999 ",{"$f":"C15+C16+C17","v":175},{"$f":"SQRT((D15^2)+(D16^2)+(D17^2))","v":109.77249200050075},{"$f":"E15+E16+E17","v":137},{"$f":"SQRT((F15^2)+(F16^2)+(F17^2))","v":79.303215571627362},{"$f":"G15+G16+G17","v":47},{"$f":"SQRT((H15^2)+(H16^2)+(H17^2))","v":36.152454965050438},{"$f":"I15+I16+I17","v":99},{"$f":"SQRT((J15^2)+(J16^2)+(J17^2))","v":67.542579163073128},{"$f":"K15+K16+K17","v":82},{"$f":"SQRT((L15^2)+(L16^2)+(L17^2))","v":47.339201514178498},{"$f":"M15+M16+M17","v":121},{"$f":"SQRT((N15^2)+(N16^2)+(N17^2))","v":59.849812029780011},{"$f":"O15+O16+O17","v":80},{"$f":"SQRT((P15^2)+(P16^2)+(P17^2))","v":44.687805943008662},{"$f":"Q15+Q16+Q17","v":1483},{"$f":"SQRT((R15^2)+(R16^2)+(R17^2))","v":289.40456112507974},{"$f":"S15+S16+S17","v":83},{"$f":"SQRT((T15^2)+(T16^2)+(T17^2))","v":48.187135212627034},{"$f":"U15+U16+U17","v":315},{"$f":"SQRT((V15^2)+(V16^2)+(V17^2))","v":153.58710883404245},{"$f":"W15+W16+W17","v":679},{"$f":"SQRT((X15^2)+(X16^2)+(X17^2))","v":217.02304025149036},{"$f":"Y15+Y16+Y17","v":120},{"$f":"SQRT((Z15^2)+(Z16^2)+(Z17^2))","v":51.283525619832339},{"$f":"AA15+AA16+AA17","v":115},{"$f":"SQRT((AB15^2)+(AB16^2)+(AB17^2))","v":64.668384856898967},{"$f":"AC15+AC16+AC17","v":396},{"$f":"SQRT((AD15^2)+(AD16^2)+(AD17^2))","v":168.52596239155557},{"$f":"AE15+AE16+AE17","v":607},{"$f":"SQRT((AF15^2)+(AF16^2)+(AF17^2))","v":136.24243098242192},{"$f":"AG15+AG16+AG17","v":41},{"$f":"SQRT((AH15^2)+(AH16^2)+(AH17^2))","v":26.551836094703507},{"$f":"AI15+AI16+AI17","v":63},{"$f":"SQRT((AJ15^2)+(AJ16^2)+(AJ17^2))","v":34.073450074801642},{"$f":"AK15+AK16+AK17","v":287},{"$f":"SQRT((AL15^2)+(AL16^2)+(AL17^2))","v":141.7709420156331},{"$f":"AM15+AM16+AM17","v":580},{"$f":"SQRT((AN15^2)+(AN16^2)+(AN17^2))","v":140.86873322352267},{"$f":"AO15+AO16+AO17","v":17},{"$f":"SQRT((AP15^2)+(AP16^2)+(AP17^2))","v":22.22611077089287},{"$f":"AQ15+AQ16+AQ17","v":26},{"$f":"SQRT((AR15^2)+(AR16^2)+(AR17^2))","v":22.494443758403985},{"$f":"AS15+AS16+AS17","v":10},{"$f":"SQRT((AT15^2)+(AT16^2)+(AT17^2))","v":13.892443989449804},{"$f":"AU15+AU16+AU17","v":546},{"$f":"SQRT((AV15^2)+(AV16^2)+(AV17^2))","v":162.6806687962648},{"$f":"AW15+AW16+AW17","v":108},{"$f":"SQRT((AX15^2)+(AX16^2)+(AX17^2))","v":62.657800791282163},{"$f":"AY15+AY16+AY17","v":144},{"$f":"SQRT((AZ15^2)+(AZ16^2)+(AZ17^2))","v":66.347569661593482},{"$f":"BA15+BA16+BA17","v":152},{"$f":"SQRT((BB15^2)+(BB16^2)+(BB17^2))","v":71.477269114033732},{"$f":"BC15+BC16+BC17","v":63},{"$f":"SQRT((BD15^2)+(BD16^2)+(BD17^2))","v":37.549966711037172},{"$f":"BE15+BE16+BE17","v":317},{"$f":"SQRT((BF15^2)+(BF16^2)+(BF17^2))","v":140.71957930579526},{"$f":"BG15+BG16+BG17","v":683},{"$f":"SQRT((BH15^2)+(BH16^2)+(BH17^2))","v":171.30382365843442},{"$f":"BI15+BI16+BI17","v":474},{"$f":"SQRT((BJ15^2)+(BJ16^2)+(BJ17^2))","v":156.72906558772053},{"$f":"BK15+BK16+BK17","v":139},{"$f":"SQRT((BL15^2)+(BL16^2)+(BL17^2))","v":73.925638313104884},{"$f":"BM15+BM16+BM17","v":1170},{"$f":"SQRT((BN15^2)+(BN16^2)+(BN17^2))","v":228.4797584032336},{"$f":"BO15+BO16+BO17","v":188},{"$f":"SQRT((BP15^2)+(BP16^2)+(BP17^2))","v":113.76291135515125},{"$f":"BQ15+BQ16+BQ17","v":472},{"$f":"SQRT((BR15^2)+(BR16^2)+(BR17^2))","v":152.93789589241771},{"$f":"BS15+BS16+BS17","v":40},{"$f":"SQRT((BT15^2)+(BT16^2)+(BT17^2))","v":22.825424421026653},{"$f":"BU15+BU16+BU17","v":268},{"$f":"SQRT((BV15^2)+(BV16^2)+(BV17^2))","v":111.53923076657827},{"$f":"BW15+BW16+BW17","v":228},{"$f":"SQRT((BX15^2)+(BX16^2)+(BX17^2))","v":110.92339699089638}]
[null,"Income $50,000 to $74,999 ",{"$f":"C18+C19","v":292},{"$f":"SQRT((D18^2)+(D19^2))","v":119.20151005754919},{"$f":"E18+E19","v":165},{"$f":"SQRT((F18^2)+(F19^2))","v":57.982756057296896},{"$f":"G18+G19","v":211},{"$f":"SQRT((H18^2)+(H19^2))","v":73.109506905736964},{"$f":"I18+I19","v":208},{"$f":"SQRT((J18^2)+(J19^2))","v":81.835200250259064},{"$f":"K18+K19","v":189},{"$f":"SQRT((L18^2)+(L19^2))","v":89.442719099991592},{"$f":"M18+M19","v":240},{"$f":"SQRT((N18^2)+(N19^2))","v":96.896852374058057},{"$f":"O18+O19","v":166},{"$f":"SQRT((P18^2)+(P19^2))","v":60.141499815019579},{"$f":"Q18+Q19","v":2430},{"$f":"SQRT((R18^2)+(R19^2))","v":311.84932259025351},{"$f":"S18+S19","v":125},{"$f":"SQRT((T18^2)+(T19^2))","v":39.623225512317902},{"$f":"U18+U19","v":543},{"$f":"SQRT((V18^2)+(V19^2))","v":176.20726432244501},{"$f":"W18+W19","v":1136},{"$f":"SQRT((X18^2)+(X19^2))","v":248.21361767638777},{"$f":"Y18+Y19","v":289},{"$f":"SQRT((Z18^2)+(Z19^2))","v":93.941471140279674},{"$f":"AA18+AA19","v":82},{"$f":"SQRT((AB18^2)+(AB19^2))","v":53.851648071345039},{"$f":"AC18+AC19","v":593},{"$f":"SQRT((AD18^2)+(AD19^2))","v":159.28904544883179},{"$f":"AE18+AE19","v":1251},{"$f":"SQRT((AF18^2)+(AF19^2))","v":203.70812453115363},{"$f":"AG18+AG19","v":77},{"$f":"SQRT((AH18^2)+(AH19^2))","v":42.154477816715982},{"$f":"AI18+AI19","v":138},{"$f":"SQRT((AJ18^2)+(AJ19^2))","v":36.124783736376884},{"$f":"AK18+AK19","v":356},{"$f":"SQRT((AL18^2)+(AL19^2))","v":141.7603611733548},{"$f":"AM18+AM19","v":1336},{"$f":"SQRT((AN18^2)+(AN19^2))","v":220},{"$f":"AO18+AO19","v":57},{"$f":"SQRT((AP18^2)+(AP19^2))","v":34.132096331752024},{"$f":"AQ18+AQ19","v":60},{"$f":"SQRT((AR18^2)+(AR19^2))","v":24.758836806279895},{"$f":"AS18+AS19","v":55},{"$f":"SQRT((AT18^2)+(AT19^2))","v":17.204650534085253},{"$f":"AU18+AU19","v":727},{"$f":"SQRT((AV18^2)+(AV19^2))","v":181.9505427307102},{"$f":"AW18+AW19","v":189},{"$f":"SQRT((AX18^2)+(AX19^2))","v":84.172442046075858},{"$f":"AY18+AY19","v":321},{"$f":"SQRT((AZ18^2)+(AZ19^2))","v":105.47511554864494},{"$f":"BA18+BA19","v":301},{"$f":"SQRT((BB18^2)+(BB19^2))","v":94.873600121424715},{"$f":"BC18+BC19","v":409},{"$f":"SQRT((BD18^2)+(BD19^2))","v":116.04309544302927},{"$f":"BE18+BE19","v":724},{"$f":"SQRT((BF18^2)+(BF19^2))","v":191.92967462067975},{"$f":"BG18+BG19","v":1973},{"$f":"SQRT((BH18^2)+(BH19^2))","v":276.63152387246106},{"$f":"BI18+BI19","v":722},{"$f":"SQRT((BJ18^2)+(BJ19^2))","v":169.00887550658396},{"$f":"BK18+BK19","v":319},{"$f":"SQRT((BL18^2)+(BL19^2))","v":126.60568707605516},{"$f":"BM18+BM19","v":1804},{"$f":"SQRT((BN18^2)+(BN19^2))","v":304.86882425069308},{"$f":"BO18+BO19","v":321},{"$f":"SQRT((BP18^2)+(BP19^2))","v":135.88230201170424},{"$f":"BQ18+BQ19","v":725},{"$f":"SQRT((BR18^2)+(BR19^2))","v":191.12822920751398},{"$f":"BS18+BS19","v":46},{"$f":"SQRT((BT18^2)+(BT19^2))","v":17.4928556845359},{"$f":"BU18+BU19","v":371},{"$f":"SQRT((BV18^2)+(BV19^2))","v":152.27934856703322},{"$f":"BW18+BW19","v":623},{"$f":"SQRT((BX18^2)+(BX19^2))","v":181.69479904499192}]
[null,"Income $75,000 to $99,999 ",{"$f":"C20","v":351},{"$f":"D20","v":143},{"$f":"E20","v":313},95,94,49,166,59,164,78,236,79,298,97,1427,249,108,33,381,125,893,151,256,72,210,79,372,102,1098,214,76,30,108,38,331,156,1300,193,27,20,43,22,36,17,556,155,248,98,238,91,265,77,340,95,331,109,1078,179,613,158,293,125,1410,234,235,100,{"$f":"BQ20","v":578},150,18,11,418,154,441,155]
[null,"Income $100,000 to $149,999 ",{"$f":"C21+C22","v":732},{"$f":"SQRT((D21^2)+(D22^2))","v":173.1040149736568},{"$f":"E21+E22","v":587},{"$f":"SQRT((F21^2)+(F22^2))","v":137.64446955835166},{"$f":"G21+G22","v":343},{"$f":"SQRT((H21^2)+(H22^2))","v":102.34256201600583},{"$f":"I21+I22","v":340},{"$f":"SQRT((J21^2)+(J22^2))","v":112.25417586887359},{"$f":"K21+K22","v":387},{"$f":"SQRT((L21^2)+(L22^2))","v":107.80074211247342},{"$f":"M21+M22","v":374},{"$f":"SQRT((N21^2)+(N22^2))","v":90.553851381374173},{"$f":"O21+O22","v":474},{"$f":"SQRT((P21^2)+(P22^2))","v":133.70115930686615},{"$f":"Q21+Q22","v":3063},{"$f":"SQRT((R21^2)+(R22^2))","v":362.60446770551516},{"$f":"S21+S22","v":161},{"$f":"SQRT((T21^2)+(T22^2))","v":47.413078364518789},{"$f":"U21+U22","v":495},{"$f":"SQRT((V21^2)+(V22^2))","v":143.28293687665675},{"$f":"W21+W22","v":973},{"$f":"SQRT((X21^2)+(X22^2))","v":218.80585001320233},{"$f":"Y21+Y22","v":597},{"$f":"SQRT((Z21^2)+(Z22^2))","v":127.88275880665071},{"$f":"AA21+AA22","v":342},{"$f":"SQRT((AB21^2)+(AB22^2))","v":85.586213843118443},{"$f":"AC21+AC22","v":731},{"$f":"SQRT((AD21^2)+(AD22^2))","v":147.16657229140046},{"$f":"AE21+AE22","v":1328},{"$f":"SQRT((AF21^2)+(AF22^2))","v":186.72439583514523},{"$f":"AG21+AG22","v":215},{"$f":"SQRT((AH21^2)+(AH22^2))","v":62.177166226839255},{"$f":"AI21+AI22","v":172},{"$f":"SQRT((AJ21^2)+(AJ22^2))","v":40.311288741492746},{"$f":"AK21+AK22","v":453},{"$f":"SQRT((AL21^2)+(AL22^2))","v":169.20106382644289},{"$f":"AM21+AM22","v":2318},{"$f":"SQRT((AN21^2)+(AN22^2))","v":299.2407057871639},{"$f":"AO21+AO22","v":44},{"$f":"SQRT((AP21^2)+(AP22^2))","v":24.207436873820409},{"$f":"AQ21+AQ22","v":122},{"$f":"SQRT((AR21^2)+(AR22^2))","v":41.012193308819754},{"$f":"AS21+AS22","v":64},{"$f":"SQRT((AT21^2)+(AT22^2))","v":23.600847442411894},{"$f":"AU21+AU22","v":871},{"$f":"SQRT((AV21^2)+(AV22^2))","v":181.04143172213369},{"$f":"AW21+AW22","v":571},{"$f":"SQRT((AX21^2)+(AX22^2))","v":118.06777714516353},{"$f":"AY21+AY22","v":290},{"$f":"SQRT((AZ21^2)+(AZ22^2))","v":92.655275079188016},{"$f":"BA21+BA22","v":447},{"$f":"SQRT((BB21^2)+(BB22^2))","v":123.5556554755791},{"$f":"BC21+BC22","v":462},{"$f":"SQRT((BD21^2)+(BD22^2))","v":123.69316876852982},{"$f":"BE21+BE22","v":767},{"$f":"SQRT((BF21^2)+(BF22^2))","v":206.49455198624491},{"$f":"BG21+BG22","v":2077},{"$f":"SQRT((BH21^2)+(BH22^2))","v":263.94885868288958},{"$f":"BI21+BI22","v":1083},{"$f":"SQRT((BJ21^2)+(BJ22^2))","v":237.80033641691932},{"$f":"BK21+BK22","v":336},{"$f":"SQRT((BL21^2)+(BL22^2))","v":128.8875478857442},{"$f":"BM21+BM22","v":2140},{"$f":"SQRT((BN21^2)+(BN22^2))","v":253.62176562747922},{"$f":"BO21+BO22","v":647},{"$f":"SQRT((BP21^2)+(BP22^2))","v":148.73466307488647},{"$f":"BQ21+BQ22","v":734},{"$f":"SQRT((BR21^2)+(BR22^2))","v":159.55249919697278},{"$f":"BS21+BS22","v":76},{"$f":"SQRT((BT21^2)+(BT22^2))","v":27.202941017470888},{"$f":"BU21+BU22","v":509},{"$f":"SQRT((BV21^2)+(BV22^2))","v":150.0133327407934},{"$f":"BW21+BW22","v":840},{"$f":"SQRT((BX21^2)+(BX22^2))","v":210.84591530309521}]
[null,"Income $150,000 to $199,999 ",{"$f":"C23","v":457},{"$f":"D23","v":141},{"$f":"E23","v":378},102,258,90,250,85,409,106,254,98,194,77,1012,207,185,46,329,122,509,143,211,72,293,105,403,95,644,154,151,45,83,24,398,117,1341,193,45,31,126,37,64,26,333,106,320,100,222,74,135,68,226,73,302,141,955,192,297,105,434,162,1268,201,347,122,{"$f":"BQ23","v":255},95,45,19,309,120,955,207]
[null,"Income $200,000 or more ",{"$f":"C24","v":458},{"$f":"D24","v":138},{"$f":"E24","v":277},86,400,91,202,76,370,114,162,57,234,63,1016,198,122,38,177,93,963,186,176,81,279,79,468,109,1014,153,242,48,195,35,198,96,1374,192,167,58,193,47,43,16,219,81,193,84,358,100,149,63,167,60,224,103,1346,145,142,82,556,164,1594,246,254,156,{"$f":"BQ24","v":235},76,44,15,722,156,1523,215]
[]
[]
[]
[]
[]
[]
[]
[]
[]
[]
[]
[]
[]
[]
[]
[]
[]
[]
[]
[]
[]
[]
[]
[]
[null,"B19001. HOUSEHOLD INCOME IN THE PAST 12 MONTHS (IN 2014 INFLATION-ADJUSTED DOLLARS)",null,null,null,null,null,null,null,null,null,null,null,null,{"$f":"B70","v":"B19001. HOUSEHOLD INCOME IN THE PAST 12 MONTHS (IN 2014 INFLATION-ADJUSTED DOLLARS)"}]
[null,"Universe:  HOUSEHOLDS",null,null,null,null,null,null,null,null,null,null,null,null,{"$f":"B72","v":"Data Set: 2010-2014 American Community Survey 5-Year Estimates"}]
[null,"Data Set: 2010-2014 American Community Survey 5-Year Estimates"]
[]
[null,null,"Atkinson",null,"Auburn",null,"Brentwood",null,"Candia",null,"Chester",null,"Danville",null,"Deerfield",null,"Derry",null,"East Kingston",null,"Epping",null,"Exeter",null,"Fremont",null,"Greenland",null,"Hampstead",null,"Hampton",null,"Hampton Falls",null,"Kensington",null,"Kingston",null,"Londonderry",null,"New Castle",null,"Newfields",null,"Newington",null,"Newmarket",null,"Newton",null,"North Hampton",null,"Northwood",null,"Nottingham",null,"Plaistow",null,"Portsmouth",null,"Raymond",null,"Rye",null,"Salem",null,"Sandown",null,"Seabrook",null,"South Hampton",null,"Stratham",null,"Windham"]
[null,null,"Estimate","Margin Of Error","Estimate","Margin Of Error","Estimate","Margin Of Error","Estimate","Margin Of Error","Estimate","Margin Of Error","Estimate","Margin Of Error","Estimate","Margin Of Error","Estimate","Margin Of Error","Estimate","Margin Of Error","Estimate","Margin Of Error","Estimate","Margin Of Error","Estimate","Margin Of Error","Estimate","Margin Of Error","Estimate","Margin Of Error","Estimate","Margin Of Error","Estimate","Margin Of Error","Estimate","Margin Of Error","Estimate","Margin Of Error","Estimate","Margin Of Error","Estimate","Margin Of Error","Estimate","Margin Of Error","Estimate","Margin Of Error","Estimate","Margin Of Error","Estimate","Margin Of Error","Estimate","Margin Of Error","Estimate","Margin Of Error","Estimate","Margin Of Error","Estimate","Margin Of Error","Estimate","Margin Of Error","Estimate","Margin Of Error","Estimate","Margin Of Error","Estimate","Margin Of Error","Estimate","Margin Of Error","Estimate","Margin Of Error","Estimate","Margin Of Error","Estimate","Margin Of Error","Estimate","Margin Of Error"]
[null,"Total Households",2597,115,1830,82,1400,111,1466,88,1612,80,1537,101,1540,71,12934,350,882,46,2604,154,6248,214,1608,79,1397,55,3447,156,6618,217,902,46,746,53,2442,126,8750,224,451,65,574,71,314,47,3816,203,1747,101,1735,82,1676,118,1824,108,2949,182,10325,302,3864,150,2315,152,11093,285,2130,134,3837,258,306,49,2781,123,4987,197]
[null,"Households With"]
[null,"Income Less than $10,000 ",40,47,46,38,24,23,15,19,30,28,7,10,8,12,366,148,32,25,37,41,262,111,46,38,38,34,158,107,151,76,6,9,11,11,127,95,165,67,11,14,0,11,9,8,294,109,99,88,46,37,8,12,14,17,54,69,471,171,95,58,105,69,282,118,18,27,240,156,4,5,0,15,47,48]
[null,"Income $10,000 to $14,999 ",43,43,16,19,21,23,29,28,20,24,57,45,25,24,661,183,3,4,71,58,276,129,13,19,0,11,72,54,251,88,10,11,3,5,42,39,137,98,0,11,0,11,2,3,135,69,36,32,35,29,21,16,0,11,41,39,461,155,76,56,17,26,345,130,9,15,97,66,6,7,31,35,83,74]
[null,"Income $15,000 to $19,999 ",89,62,35,21,34,28,45,36,5,9,34,41,9,14,624,224,35,19,81,67,186,96,11,15,27,24,152,88,308,136,31,23,12,9,62,49,183,70,0,11,5,6,2,4,219,154,28,24,28,26,72,56,8,12,55,71,270,84,194,111,99,84,356,113,49,60,266,139,9,14,34,38,71,60]
[null,"Income $20,000 to $24,999 ",60,47,8,13,24,23,54,38,77,69,33,23,8,13,482,188,21,20,124,121,293,130,17,19,19,21,87,73,168,67,9,11,5,6,72,52,193,81,13,16,14,12,3,4,115,63,0,11,39,28,108,70,45,39,45,36,427,125,158,90,57,45,261,93,104,77,352,171,7,6,78,58,175,130]
[null,"Income $25,000 to $29,999 ",0,15,28,25,92,63,20,24,22,21,37,33,63,41,360,155,45,23,105,49,245,114,32,30,31,29,83,44,314,129,34,35,16,12,28,32,183,76,2,5,19,13,8,7,202,91,16,19,0,11,77,62,32,26,101,69,497,143,204,107,45,37,341,118,38,47,122,86,7,7,114,69,106,99]
[null,"Income $30,000 to $34,999 ",92,95,18,22,34,32,33,28,60,59,16,19,30,27,606,143,24,15,116,102,244,115,33,28,56,40,228,129,252,84,12,11,23,14,118,96,296,105,7,9,10,10,12,11,179,77,31,37,118,67,44,35,37,33,216,132,370,134,135,74,102,60,470,154,55,41,171,133,10,12,59,58,106,78]
[null,"Income $35,000 to $39,999 ",49,47,66,61,33,28,17,21,23,22,11,14,80,61,626,184,10,11,21,20,164,81,57,35,29,24,90,85,236,87,21,27,4,5,143,95,350,115,25,26,14,16,17,14,109,57,43,39,32,29,25,23,65,42,196,121,546,132,91,55,61,58,627,172,80,68,158,134,7,7,103,93,65,50]
[null,"Income $40,000 to $44,999 ",113,81,117,78,14,16,22,24,7,11,41,37,18,23,436,139,25,19,78,89,218,87,53,43,18,20,122,78,300,125,26,19,26,29,94,63,273,104,6,6,28,25,16,11,82,50,209,100,76,62,83,59,69,37,96,68,400,154,178,95,0,15,415,114,122,78,139,96,8,6,124,75,155,87]
[null,"Income $45,000 to $49,999 ",67,56,28,27,0,11,39,30,28,26,108,69,86,44,604,196,30,19,35,41,294,122,47,35,38,29,71,57,226,83,16,15,19,13,121,83,278,98,14,15,27,19,4,6,159,83,65,65,76,62,111,59,33,30,226,111,371,119,143,85,91,93,512,159,51,41,261,125,9,7,13,21,109,90]
[null,"Income $50,000 to $59,999 ",198,90,47,46,21,20,88,45,106,61,124,82,99,50,1084,218,71,37,254,131,428,137,119,63,134,73,153,75,469,125,55,32,24,14,127,95,563,114,34,22,33,24,22,17,346,136,96,68,116,50,234,94,98,54,186,94,647,180,443,137,138,83,802,191,209,114,335,136,25,22,173,80,125,89]
[null,"Income $60,000 to $74,999 ",265,103,180,71,164,66,158,79,129,65,122,64,241,75,1575,285,77,31,367,136,527,139,199,82,196,70,302,109,664,171,70,35,70,26,293,114,821,186,30,23,52,30,41,29,523,165,175,76,142,63,80,52,257,114,374,134,1208,218,483,119,209,115,973,178,237,114,417,167,42,23,220,94,375,133]
[null,"Income $75,000 to $99,999 ",346,116,281,88,200,76,299,69,237,78,298,105,261,102,1889,318,112,45,367,118,922,221,381,102,220,69,412,123,888,185,134,43,115,35,410,144,1349,196,48,29,82,31,62,25,507,100,272,92,257,84,313,86,346,108,501,144,1345,249,581,169,265,136,1817,295,364,115,512,157,27,13,237,105,632,182]
[null,"Income $100,000 to $124,999 ",468,156,249,72,161,56,204,65,205,60,274,82,245,88,1287,229,109,33,351,134,784,204,288,84,106,43,505,129,700,136,109,39,145,46,256,105,1152,165,47,32,52,27,28,15,336,108,251,90,172,74,206,74,317,118,426,129,1315,201,565,142,234,117,1035,209,171,81,328,164,27,14,272,81,752,201]
[null,"Income $125,000 to $149,999 ",283,109,230,84,95,48,107,43,215,71,160,65,134,71,936,192,139,46,307,156,437,129,66,47,135,57,318,105,397,132,108,45,79,26,167,98,788,157,71,40,63,30,29,18,267,109,133,58,91,62,126,51,180,64,133,77,656,142,160,68,359,149,1032,197,253,102,158,70,38,24,230,77,543,163]
[null,"Income $150,000 to $199,999 ",237,98,278,96,217,76,267,75,242,77,144,64,173,67,975,186,77,34,274,119,462,122,106,53,108,51,442,108,819,153,97,45,92,25,146,85,1139,169,44,25,48,20,32,18,212,75,224,88,138,49,96,67,223,92,141,82,608,167,332,130,237,122,944,197,206,94,191,108,37,18,482,137,670,141]
[null,"Income $200,000 or more ",247,115,203,80,266,77,69,55,206,68,71,41,60,42,423,121,72,27,16,28,506,104,140,60,242,85,252,78,475,128,164,48,102,27,236,129,880,162,99,38,127,35,27,14,131,70,69,46,369,94,72,47,100,63,158,93,733,149,26,23,296,104,881,191,164,86,90,53,43,17,611,139,973,211]
[]
[]
[]
[]
[null,"Calculated B19001. HOUSEHOLD INCOME IN THE PAST 12 MONTHS (IN 2014 INFLATION-ADJUSTED DOLLARS)"]
[null,"Universe:  HOUSEHOLDS"]
[null,"Data Set: 2010-2014 American Community Survey 5-Year Estimates"]
[null,null,"Atkinson",null,"Auburn",null,"Brentwood",null,"Candia",null,"Chester",null,"Danville",null,"Deerfield",null,"Derry",null,"East Kingston",null,"Epping",null,"Exeter",null,"Fremont",null,"Greenland",null,"Hampstead",null,"Hampton",null,"Hampton Falls",null,"Kensington",null,"Kingston",null,"Londonderry",null,"New Castle",null,"Newfields",null,"Newington",null,"Newmarket",null,"Newton",null,"North Hampton",null,"Northwood",null,"Nottingham",null,"Plaistow",null,"Portsmouth",null,"Raymond",null,"Rye",null,"Salem",null,"Sandown",null,"Seabrook",null,"South Hampton",null,"Stratham",null,"Windham"]
[null,null,"Estimate","Margin Of Error","Estimate","Margin Of Error","Estimate","Margin Of Error","Estimate","Margin Of Error","Estimate","Margin Of Error","Estimate","Margin Of Error","Estimate","Margin Of Error","Estimate","Margin Of Error","Estimate","Margin Of Error","Estimate","Margin Of Error","Estimate","Margin Of Error","Estimate","Margin Of Error","Estimate","Margin Of Error","Estimate","Margin Of Error","Estimate","Margin Of Error","Estimate","Margin Of Error","Estimate","Margin Of Error","Estimate","Margin Of Error","Estimate","Margin Of Error","Estimate","Margin Of Error","Estimate","Margin Of Error","Estimate","Margin Of Error","Estimate","Margin Of Error","Estimate","Margin Of Error","Estimate","Margin Of Error","Estimate","Margin Of Error","Estimate","Margin Of Error","Estimate","Margin Of Error","Estimate","Margin Of Error","Estimate","Margin Of Error","Estimate","Margin Of Error","Estimate","Margin Of Error","Estimate","Margin Of Error","Estimate","Margin Of Error","Estimate","Margin Of Error","Estimate","Margin Of Error","Estimate","Margin Of Error"]
[null,"Total Households",2597,115,1830,82,1400,111,1466,88,1612,80,1537,101,1540,71,12934,350,882,46,2604,154,6248,214,1608,79,1397,55,3447,156,6618,217,902,46,746,53,2442,126,8750,224,451,65,574,71,314,47,3816,203,1747,101,1735,82,1676,118,1824,108,2949,182,10325,302,3864,150,2315,152,11093,285,2130,134,3837,258,306,49,2781,123,4987,197]
[null,"Households With"]
[null,"Income Less than $10,000 ",40,47,46,38,24,23,15,19,30,28,7,10,8,12,366,148,32,25,37,41,262,111,46,38,38,34,158,107,151,76,6,9,11,11,127,95,165,67,11,14,0,11,9,8,294,109,99,88,46,37,8,12,14,17,54,69,471,171,95,58,105,69,282,118,18,27,240,156,4,5,0,15,47,48]
[null,"Income $10,000 to $14,999 ",43,43,16,19,21,23,29,28,20,24,57,45,25,24,661,183,3,4,71,58,276,129,13,19,0,11,72,54,251,88,10,11,3,5,42,39,137,98,0,11,0,11,2,3,135,69,36,32,35,29,21,16,0,11,41,39,461,155,76,56,17,26,345,130,9,15,97,66,6,7,31,35,83,74]
[null,"Income $15,000 to $24,999 ",149,77.801028270839709,43,24.698178070456937,58,36.235341863986875,99,52.345009313209601,82,69.584481028459209,67,47.010637094172637,17,19.104973174542799,1106,292.43802762294786,56,27.586228448267445,205,138.31124321616085,479,161.60445538412608,28,24.207436873820409,46,31.89043743820395,239,114.33722053644648,476,151.60804727981954,40,25.495097567963924,17,10.816653826391969,134,71.449282711584999,376,107.05606008068857,13,19.416487838947599,19,13.416407864998739,5,5.6568542494923806,334,166.38810053606599,28,26.40075756488817,67,38.209946349085598,180,89.643739324059879,53,40.80441152620633,100,79.605276207045478,697,150.60212481900777,352,142.90206436577463,156,95.294281045611541,617,146.34889818512471,153,97.616596949494195,618,220.3678742466787,16,15.231546211727817,112,69.339743293438858,246,143.17821063276352]
[null,"Income $25,000 to $34,999 ",92,96.176920308356728,46,33.301651610693426,126,70.661163307718056,53,36.878177829171548,82,62.625873247404705,53,38.078865529319543,93,49.091750834534309,966,210.8885961829136,69,27.459060435491963,221,113.1591799192624,489,161.92899678562824,65,41.036569057366385,87,49.406477308142499,311,136.2974687952788,566,153.93829932800998,46,36.687872655688281,39,18.439088914585774,146,101.19288512538814,479,129.61867149450345,9,10.295630140987001,29,16.401219466856727,20,13.038404810405298,381,119.20570456148481,47,41.593268686170845,118,67.896980787071826,121,71.196910045310247,69,42.01190307520001,317,148.94629904767692,867,195.97193676646665,339,130.09611831257686,147,70.49113419430843,811,194.01030900444439,93,62.369864518050704,293,158.38244852255568,17,13.892443989449804,173,90.13878188659973,212,126.03570922560003]
[null,"Income $35,000 to $49,999 ",229,109.1146186356347,211,102.6352765865616,47,34.073450074801642,78,43.783558557979269,58,35.791060336346561,160,79.536155300592696,184,78.651128408942739,1666,302.64335446198055,65,29.03446228191595,134,100.00999950005,676,170.33496411482875,157,65.566759871142025,85,42.626282971894227,283,128.67789242911931,762,173.44451562387323,63,36.262928728937489,49,32.171415884290823,358,141.00709202022429,901,183.42573429047516,45,30.610455730027933,69,35.242020373412188,37,18.788294228055936,350,112.41885962773328,317,125.48306658669129,184,92.352585237230912,219,86.550563256399428,167,63.505905237229712,518,177.72450590731714,1317,235.16164653276266,412,138.83443376914821,152,110.62549434917794,1554,260.50143953536991,253,111.30588483993108,558,206.87435800504613,24,11.575836902790225,240,121.30539971493437,329,134.79243302203577]
[null,"Income $50,000 to $74,999 ",463,136.78084661238211,227,84.599054368237475,185,68.963758598266665,246,90.917545061445651,235,89.140338792266206,246,104.01922899156675,340,90.13878188659973,2659,358.81610889144872,148,48.270073544588683,621,188.83061192507955,955,195.16659550240661,318,103.40696301506973,330,101.13851887386922,455,132.31024147812596,1133,211.81595785020542,125,47.423622805517503,94,29.529646120466801,420,148.39474384222643,1384,218.15590755237412,64,31.827660925679098,85,38.418745424597091,63,33.61547262794322,869,213.82469455140114,271,101.9803902718557,258,80.430093870391573,314,107.42439201596628,355,126.14277624977183,560,163.68261972488099,1855,282.70833026283469,926,181.46625030566977,347,141.8238343861849,1775,261.08427758101408,446,161.22034611053283,752,215.37177159507232,67,31.827660925679098,393,123.43419299367578,500,160.03124694883809]
[null,"Income $75,000 to $99,999 ",346,116,281,88,200,76,299,69,237,78,298,105,261,102,1889,318,112,45,367,118,922,221,381,102,220,69,412,123,888,185,134,43,115,35,410,144,1349,196,48,29,82,31,62,25,507,100,272,92,257,84,313,86,346,108,501,144,1345,249,581,169,265,136,1817,295,364,115,512,157,27,13,237,105,632,182]
[null,"Income $100,000 to $149,999 ",751,190.30764566879597,479,110.63453348751464,256,73.756355658343097,311,77.935871073594853,420,92.956979296876895,434,104.63746938836012,379,113.07077429645558,2223,298.83942176359528,248,56.612719418872643,658,205.65018842685265,1221,241.36486902612816,354,96.254870006665115,241,71.400280111495363,823,166.33099530754933,1097,189.52572384771415,217,59.548299723837623,224,52.839379254491625,423,143.62799170078233,1940,227.75864418282788,118,51.224993899462788,115,40.36087214122113,57,23.430749027719962,603,153.44380078712857,384,107.07007051459338,263,96.540147089177367,332,89.872131386765275,497,134.23859355639868,559,150.23315213360866,1971,246.09957334379919,725,157.44205283214521,593,189.44656238633627,2067,287.21072403376581,424,130.24976007655445,486,178.31432920547917,65,27.784887978899608,502,111.75866856758807,1295,258.78562556679998]
[null,"Income $150,000 to $199,999 ",237,98,278,96,217,76,267,75,242,77,144,64,173,67,975,186,77,34,274,119,462,122,106,53,108,51,442,108,819,153,97,45,92,25,146,85,1139,169,44,25,48,20,32,18,212,75,224,88,138,49,96,67,223,92,141,82,608,167,332,130,237,122,944,197,206,94,191,108,37,18,482,137,670,141]
[null,"Income $200,000 or more ",247,115,203,80,266,77,69,55,206,68,71,41,60,42,423,121,72,27,16,28,506,104,140,60,242,85,252,78,475,128,164,48,102,27,236,129,880,162,99,38,127,35,27,14,131,70,69,46,369,94,72,47,100,63,158,93,733,149,26,23,296,104,881,191,164,86,90,53,43,17,611,139,973,211]
[]
[]
[]
[null,"B19001. HOUSEHOLD INCOME IN THE PAST 12 MONTHS (IN 2009 INFLATION-ADJUSTED DOLLARS)",null,null,null,null,null,null,null,null,null,null,null,null,{"$f":"B118","v":"B19001. HOUSEHOLD INCOME IN THE PAST 12 MONTHS (IN 2009 INFLATION-ADJUSTED DOLLARS)"}]
[null,"Universe:  HOUSEHOLDS",null,null,null,null,null,null,null,null,null,null,null,null,{"$f":"B120","v":"Data Set: 2005-2009 American Community Survey 5-Year Estimates"}]
[null,"Data Set: 2005-2009 American Community Survey 5-Year Estimates"]
[]
[null,null,"Atkinson",null,"Auburn",null,"Brentwood",null,"Candia",null,"Chester",null,"Danville",null,"Deerfield",null,"Derry",null,"East Kingston",null,"Epping",null,"Exeter",null,"Fremont",null,"Greenland",null,"Hampstead",null,"Hampton",null,"Hampton Falls",null,"Kensington",null,"Kingston",null,"Londonderry",null,"New Castle",null,"Newfields",null,"Newington",null,"Newmarket",null,"Newton",null,"North Hampton",null,"Northwood",null,"Nottingham",null,"Plaistow",null,"Portsmouth",null,"Raymond",null,"Rye",null,"Salem",null,"Sandown",null,"Seabrook",null,"South Hampton",null,"Stratham",null,"Windham"]
[null,null,"Estimate","Margin Of Error","Estimate","Margin Of Error","Estimate","Margin Of Error","Estimate","Margin Of Error","Estimate","Margin Of Error","Estimate","Margin Of Error","Estimate","Margin Of Error","Estimate","Margin Of Error","Estimate","Margin Of Error","Estimate","Margin Of Error","Estimate","Margin Of Error","Estimate","Margin Of Error","Estimate","Margin Of Error","Estimate","Margin Of Error","Estimate","Margin Of Error","Estimate","Margin Of Error","Estimate","Margin Of Error","Estimate","Margin Of Error","Estimate","Margin Of Error","Estimate","Margin Of Error","Estimate","Margin Of Error","Estimate","Margin Of Error","Estimate","Margin Of Error","Estimate","Margin Of Error","Estimate","Margin Of Error","Estimate","Margin Of Error","Estimate","Margin Of Error","Estimate","Margin Of Error","Estimate","Margin Of Error","Estimate","Margin Of Error","Estimate","Margin Of Error","Estimate","Margin Of Error","Estimate","Margin Of Error","Estimate","Margin Of Error","Estimate","Margin Of Error","Estimate","Margin Of Error","Estimate","Margin Of Error"]
[null,"Total Households",2613,114,1763,97,1017,95,1552,69,1528,81,1451,105,1417,91,12592,332,846,51,2363,137,6202,222,1441,103,1275,88,3376,148,6966,265,819,58,764,55,2302,119,8372,211,372,69,577,66,288,40,4039,185,1656,78,1775,93,1553,101,1590,97,2849,248,9410,326,4043,211,2292,121,10969,289,1892,113,3846,231,321,42,2717,107,4364,175]
[null,"Households With"]
[null,"Income Less than $10,000 ",67,51,32,29,30,21,57,40,12,19,8,14,31,28,501,183,44,24,106,88,278,139,9,15,28,25,10,15,343,118,20,19,8,6,67,56,146,97,8,13,10,13,6,7,166,85,52,53,76,59,21,24,0,114,54,45,677,163,276,130,74,56,262,91,39,31,85,62,8,6,43,41,58,59]
[null,"Income $10,000 to $14,999 ",113,107,27,35,10,16,9,15,0,114,20,24,26,41,360,152,19,15,26,32,173,87,23,28,0,114,150,101,275,124,20,18,12,10,35,55,137,85,15,13,4,6,3,6,146,76,24,27,32,29,18,21,11,16,100,96,288,87,94,59,46,40,343,109,22,29,146,87,7,7,9,15,70,34]
[null,"Income $15,000 to $19,999 ",111,61,27,31,0,114,0,114,0,114,51,34,8,13,391,150,24,19,67,51,273,104,69,45,12,18,59,46,183,82,24,11,7,7,51,48,89,75,10,10,10,10,9,9,124,65,55,54,31,28,58,43,17,20,88,73,384,126,181,94,41,36,409,130,55,46,467,181,11,9,63,57,73,65]
[null,"Income $20,000 to $24,999 ",134,111,116,94,6,9,48,34,20,23,12,18,37,27,515,150,36,22,80,61,429,146,0,114,19,21,163,101,289,111,22,17,11,10,143,90,163,101,24,21,21,17,21,22,169,68,54,55,34,32,58,37,60,32,188,105,283,111,189,75,73,56,344,112,28,21,240,105,9,8,43,43,106,65]
[null,"Income $25,000 to $29,999 ",44,42,38,33,32,24,34,32,38,32,91,60,54,45,592,186,2,3,117,94,285,113,29,31,39,40,68,49,241,111,18,16,47,23,41,41,355,135,22,23,33,28,13,10,177,87,72,68,62,42,31,27,10,17,57,41,355,101,115,64,51,46,271,121,50,37,200,108,14,9,59,48,60,39]
[null,"Income $30,000 to $34,999 ",89,65,77,45,21,24,46,34,39,40,29,23,72,62,583,158,11,10,168,87,311,116,61,58,37,30,228,127,454,160,3,4,40,18,90,73,267,111,6,7,8,7,3,5,166,115,35,30,65,42,59,52,30,27,35,36,345,92,177,98,88,60,571,168,69,57,133,73,10,9,84,48,132,64]
[null,"Income $35,000 to $39,999 ",85,54,72,55,55,32,53,34,29,28,96,53,36,29,490,143,22,16,21,25,267,111,27,25,31,28,27,32,411,159,26,18,21,21,102,64,309,148,32,26,14,12,6,8,224,107,52,39,34,31,77,58,53,46,165,85,352,105,135,65,69,52,427,168,69,51,96,84,34,30,55,47,114,76]
[null,"Income $40,000 to $44,999 ",41,55,29,30,5,9,72,58,19,22,19,23,76,57,707,193,34,23,112,89,323,116,39,32,59,42,125,92,228,83,9,8,14,11,97,61,324,106,5,7,14,11,3,5,198,112,55,45,54,40,57,44,65,47,39,37,486,146,289,133,103,88,612,182,30,26,338,132,6,6,26,29,96,59]
[null,"Income $45,000 to $49,999 ",88,64,44,33,23,18,29,24,26,23,49,34,58,37,519,146,22,16,91,57,242,113,32,31,48,36,129,95,261,118,19,11,29,17,129,70,245,114,20,20,14,11,11,11,165,88,43,29,39,31,122,69,10,15,37,36,516,161,234,97,164,91,448,144,60,39,193,106,0,114,17,28,98,55]
[null,"Income $50,000 to $59,999 ",125,72,84,55,27,17,62,45,94,47,118,83,36,30,875,213,22,16,162,91,459,184,154,76,87,44,285,122,643,161,24,13,51,22,162,97,451,131,27,21,30,14,17,11,278,95,61,44,188,89,123,62,122,62,223,91,721,160,508,148,105,60,925,203,106,56,381,145,9,7,87,58,181,81]
[null,"Income $60,000 to $74,999 ",321,146,156,70,68,31,182,71,144,63,204,79,241,73,1105,270,96,34,388,130,589,166,156,65,241,92,411,126,782,197,62,26,76,32,346,136,940,216,16,22,31,16,39,16,496,165,98,48,252,86,315,106,162,53,414,155,1200,213,442,132,261,115,1155,238,208,97,482,171,44,32,258,108,356,107]
[null,"Income $75,000 to $99,999 ",240,92,287,84,172,55,258,93,406,90,179,90,235,79,2364,320,138,39,349,119,752,160,392,88,135,52,541,131,1044,199,73,25,110,26,425,111,1236,197,43,25,78,29,75,30,649,129,384,102,255,86,296,98,279,97,517,170,1270,217,711,168,261,108,1841,268,445,108,479,155,43,17,514,133,550,137]
[null,"Income $100,000 to $124,999 ",399,98,260,80,161,54,291,83,316,89,291,86,127,63,1436,247,121,35,317,147,722,165,231,80,124,63,358,109,731,184,162,44,83,27,299,99,1316,225,33,24,64,29,26,14,459,126,328,106,137,54,232,82,384,103,355,130,1012,197,366,128,269,93,1176,238,271,92,320,144,43,21,518,133,605,124]
[null,"Income $125,000 to $149,999 ",229,90,254,81,121,46,153,66,105,55,147,66,227,80,1026,170,80,23,166,83,450,137,108,55,120,60,248,92,347,114,68,25,93,31,85,61,967,206,51,34,54,21,22,12,297,94,221,83,158,80,32,26,205,100,295,126,614,143,176,75,184,73,819,201,138,59,152,72,15,11,222,85,544,129]
[null,"Income $150,000 to $199,999 ",238,73,189,82,158,45,186,75,113,54,88,45,105,53,748,160,90,27,112,68,304,122,101,56,130,55,273,87,372,108,137,39,110,47,175,74,794,162,12,9,91,28,20,14,201,90,98,47,164,64,47,38,126,82,174,78,459,155,110,51,249,112,851,186,175,75,33,39,56,23,351,104,755,137]
[null,"Income $200,000 or more ",289,100,71,37,128,47,72,45,167,75,49,32,48,39,380,142,85,31,81,61,345,108,10,15,165,65,301,147,362,120,132,34,52,19,55,51,633,180,48,32,101,39,14,12,124,70,24,26,194,67,7,12,56,42,108,59,448,142,40,32,254,82,515,145,127,83,101,100,12,9,368,115,566,134]
[]
[]
[]
[]
[null,"Calculated B19001. HOUSEHOLD INCOME IN THE PAST 12 MONTHS (IN 2009 INFLATION-ADJUSTED DOLLARS)"]
[null,"Universe:  HOUSEHOLDS"]
[null,"Data Set: 2005-2009 American Community Survey 5-Year Estimates"]
[null,null,"Atkinson",null,"Auburn",null,"Brentwood",null,"Candia",null,"Chester",null,"Danville",null,"Deerfield",null,"Derry",null,"East Kingston",null,"Epping",null,"Exeter",null,"Fremont",null,"Greenland",null,"Hampstead",null,"Hampton",null,"Hampton Falls",null,"Kensington",null,"Kingston",null,"Londonderry",null,"New Castle",null,"Newfields",null,"Newington",null,"Newmarket",null,"Newton",null,"North Hampton",null,"Northwood",null,"Nottingham",null,"Plaistow",null,"Portsmouth",null,"Raymond",null,"Rye",null,"Salem",null,"Sandown",null,"Seabrook",null,"South Hampton",null,"Stratham",null,"Windham"]
[null,null,"Estimate","Margin Of Error","Estimate","Margin Of Error","Estimate","Margin Of Error","Estimate","Margin Of Error","Estimate","Margin Of Error","Estimate","Margin Of Error","Estimate","Margin Of Error","Estimate","Margin Of Error","Estimate","Margin Of Error","Estimate","Margin Of Error","Estimate","Margin Of Error","Estimate","Margin Of Error","Estimate","Margin Of Error","Estimate","Margin Of Error","Estimate","Margin Of Error","Estimate","Margin Of Error","Estimate","Margin Of Error","Estimate","Margin Of Error","Estimate","Margin Of Error","Estimate","Margin Of Error","Estimate","Margin Of Error","Estimate","Margin Of Error","Estimate","Margin Of Error","Estimate","Margin Of Error","Estimate","Margin Of Error","Estimate","Margin Of Error","Estimate","Margin Of Error","Estimate","Margin Of Error","Estimate","Margin Of Error","Estimate","Margin Of Error","Estimate","Margin Of Error","Estimate","Margin Of Error","Estimate","Margin Of Error","Estimate","Margin Of Error","Estimate","Margin Of Error","Estimate","Margin Of Error","Estimate","Margin Of Error"]
[null,"Total Households",2613,114,1763,97,1017,95,1552,69,1528,81,1451,105,1417,91,12592,332,846,51,2363,137,6202,222,1441,103,1275,88,3376,148,6966,265,819,58,764,55,2302,119,8372,211,372,69,577,66,288,40,4039,185,1656,78,1775,93,1553,101,1590,97,2849,248,9410,326,4043,211,2292,121,10969,289,1892,113,3846,231,321,42,2717,107,4364,175]
[null,"Households With"]
[null,"Income Less than $10,000 ",67,51,32,29,30,21,57,40,12,19,8,14,31,28,501,183,44,24,106,88,278,139,9,15,28,25,10,15,343,118,20,19,8,6,67,56,146,97,8,13,10,13,6,7,166,85,52,53,76,59,21,24,0,114,54,45,677,163,276,130,74,56,262,91,39,31,85,62,8,6,43,41,58,59]
[null,"Income $10,000 to $14,999 ",113,107,27,35,10,16,9,15,0,114,20,24,26,41,360,152,19,15,26,32,173,87,23,28,0,114,150,101,275,124,20,18,12,10,35,55,137,85,15,13,4,6,3,6,146,76,24,27,32,29,18,21,11,16,100,96,288,87,94,59,46,40,343,109,22,29,146,87,7,7,9,15,70,34]
[null,"Income $15,000 to $24,999 ",245,126.65701717630967,143,98.979795918156952,6,114.35471131527551,48,118.96217886370441,20,116.29703349613007,63,38.470768123342687,45,29.966648127543394,906,212.13203435596427,60,29.068883707497267,147,79.511005527536881,702,179.25400971805345,69,122.56018929489298,31,27.658633371878661,222,110.98198051936178,472,138.00362314084367,46,20.248456731316587,18,12.206555615733702,194,102,252,125.80143083447024,34,23.259406699226016,31,19.723082923316021,30,23.769728648009426,293,94.069123520951337,109,77.077882690172544,65,42.5205832509386,116,56.727418414731339,77,37.735924528226413,276,127.88275880665071,667,167.91962362987834,370,120.25389806571761,114,66.573267908372955,753,171.5925406304132,83,50.566787519082126,707,209.25104539762759,20,12.041594578792296,106,71.400280111495363,179,91.923881554251182]
[null,"Income $25,000 to $34,999 ",133,77.388629655783419,115,55.803225713214822,53,33.941125496954278,80,46.690470119715009,77,51.224993899462788,120,64.257295305669373,126,76.609398901179219,1175,244.0491753725056,13,10.440306508910551,285,128.08200498118384,596,161.94134740701648,90,65.76473218982953,76,50,296,136.12494260788506,695,194.7331507473753,21,16.492422502470642,87,29.206163733020468,131,83.725742755737912,622,174.77413996355409,28,24.041630560342615,41,28.861739379323623,16,11.180339887498949,343,144.20124826089406,107,74.323616704248181,127,59.396969619669989,90,58.591808301161009,40,31.906112267087632,92,54.561891462814962,700,136.61991070118586,292,117.04699910719626,139,75.604232685743199,842,207.03864373589778,119,67.955868032128024,333,130.3572015655445,24,12.727922061357855,143,67.882250993908556,192,74.94664769020693]
[null,"Income $35,000 to $49,999 ",214,100.18482919085105,145,70.809603868401922,83,37.802116342871599,154,71.386273190298994,74,42.391036788453285,164,67.037303048377481,170,73.885045848263502,1716,281.09429023016457,78,32.264531609803356,224,108.60478810807561,832,196.33135256499406,98,51.088159097779204,138,62,281,136.06248564538279,900,214.69513268819114,54,22.561028345356956,64,29.171904291629644,328,112.76967677527502,878,214.79292353334176,57,33.541019662496844,42,19.646882704388499,20,14.491376746189438,587,178.1488141975691,150,66.234432133143557,127,59.346440499831161,256,100.30453628824571,128,67.453687816160212,241,99.448479123614561,1354,241.37522656643949,658,176.98305003587208,336,136.85393673548452,1487,286.50305408494341,159,69.267597042195717,627,188.98677202386415,40,118.03389343743601,98,61.919302321650882,308,110.82418508610834]
[null,"Income $50,000 to $74,999 ",446,162.78820596099706,240,89.022469073824283,95,35.355339059327378,244,84.059502734670033,238,78.600254452514335,322,114.58621208504974,277,78.924014089502563,1980,343.9026024908797,118,37.576588456111871,550,158.68522300453813,1048,247.81444671366518,310,100.00499987500625,328,101.9803902718557,696,175.38529014715002,1425,254.42091109026396,86,29.068883707497267,127,38.832975677895199,508,167.04789732289359,1391,252.62026838715852,43,30.413812651491099,61,21.2602916254693,56,19.416487838947599,774,190.3943276465977,159,65.115282384398824,440,123.76186811776881,438,122.80065146407001,284,81.565924257621205,637,179.73869922751749,1921,266.40007507506448,950,198.31288409984865,366,129.71121771072848,2080,312.8146416010606,314,112.0044641967453,863,224.2008028531566,53,32.756678708318397,345,122.58874336577564,537,134.20134127496641]
[null,"Income $75,000 to $99,999 ",240,92,287,84,172,55,258,93,406,90,179,90,235,79,2364,320,138,39,349,119,752,160,392,88,135,52,541,131,1044,199,73,25,110,26,425,111,1236,197,43,25,78,29,75,30,649,129,384,102,255,86,296,98,279,97,517,170,1270,217,711,168,261,108,1841,268,445,108,479,155,43,17,514,133,550,137]
[null,"Income $100,000 to $149,999 ",628,133.05637902783917,514,113.84638773364749,282,70.936591403872796,444,106.04244433244644,421,104.62313319720452,438,108.40664186294121,354,101.82828683622247,2462,299.84829497597616,201,41.880783182743848,483,168.81350656863924,1172,214.46211786700232,339,97.082439194738001,244,87,606,142.63590010933433,1078,216.45322820415501,230,50.606323715519977,176,41.109609582188931,384,116.2841347734075,2283,305.05901068481813,84,41.617304093369626,118,35.805027579936315,48,18.439088914585774,756,157.20050890502867,549,134.6291201783626,295,96.519428096109237,264,86.023252670426274,589,143.55835050598765,650,181.04143172213369,1626,243.42966129870041,542,148.35430563350698,453,118.2285921425101,1995,311.52046481732145,409,109.29318368498559,472,160.99689437998487,58,23.706539182259394,740,157.84169284444462,1149,178.93294833540301]
[null,"Income $150,000 to $199,999 ",238,73,189,82,158,45,186,75,113,54,88,45,105,53,748,160,90,27,112,68,304,122,101,56,130,55,273,87,372,108,137,39,110,47,175,74,794,162,12,9,91,28,20,14,201,90,98,47,164,64,47,38,126,82,174,78,459,155,110,51,249,112,851,186,175,75,33,39,56,23,351,104,755,137]
[null,"Income $200,000 or more ",289,100,71,37,128,47,72,45,167,75,49,32,48,39,380,142,85,31,81,61,345,108,10,15,165,65,301,147,362,120,132,34,52,19,55,51,633,180,48,32,101,39,14,12,124,70,24,26,194,67,7,12,56,42,108,59,448,142,40,32,254,82,515,145,127,83,101,100,12,9,368,115,566,134]

{"sheet":"ACS_Table_B19037","index":28,"n_rows":253,"n_cols":76,"rows_kept":253,"cut":false,"hidden":true,"merged":[]}
[null,"B19037. AGE OF HOUSEHOLDER BY HOUSEHOLD INCOME IN THE PAST 12 MONTHS (IN 2019 INFLATION-ADJUSTED DOLLARS)"]
[null,"Universe:  HOUSEHOLDS"]
[null,"Data Set: 2015-2019 American Community Survey 5-Year Estimates"]
[]
[null,null,"Atkinson",null,"Auburn",null,"Brentwood",null,"Candia",null,"Chester",null,"Danville",null,"Deerfield",null,"Derry",null,"East Kingston",null,"Epping",null,"Exeter",null,"Fremont",null,"Greenland",null,"Hampstead",null,"Hampton",null,"Hampton Falls",null,"Kensington",null,"Kingston",null,"Londonderry",null,"New Castle",null,"Newfields",null,"Newington",null,"Newmarket",null,"Newton",null,"North Hampton",null,"Northwood",null,"Nottingham",null,"Plaistow",null,"Portsmouth",null,"Raymond",null,"Rye",null,"Salem",null,"Sandown",null,"Seabrook",null,"South Hampton",null,"Stratham",null,"Windham"]
[null,null,"Estimate","Margin Of Error","Estimate","Margin Of Error","Estimate","Margin Of Error","Estimate","Margin Of Error","Estimate","Margin Of Error","Estimate","Margin Of Error","Estimate","Margin Of Error","Estimate","Margin Of Error","Estimate","Margin Of Error","Estimate","Margin Of Error","Estimate","Margin Of Error","Estimate","Margin Of Error","Estimate","Margin Of Error","Estimate","Margin Of Error","Estimate","Margin Of Error","Estimate","Margin Of Error","Estimate","Margin Of Error","Estimate","Margin Of Error","Estimate","Margin Of Error","Estimate","Margin Of Error","Estimate","Margin Of Error","Estimate","Margin Of Error","Estimate","Margin Of Error","Estimate","Margin Of Error","Estimate","Margin Of Error","Estimate","Margin Of Error","Estimate","Margin Of Error","Estimate","Margin Of Error","Estimate","Margin Of Error","Estimate","Margin Of Error","Estimate","Margin Of Error","Estimate","Margin Of Error","Estimate","Margin Of Error","Estimate","Margin Of Error","Estimate","Margin Of Error","Estimate","Margin Of Error","Estimate","Margin Of Error"]
[null,"Total:",2745,185,1973,91,1533,82,1537,80,1687,101,1685,93,1653,86,12741,353,888,65,2680,155,6542,249,1764,77,1516,85,3573,147,7088,199,909,54,845,53,2411,198,9338,206,436,85,600,67,307,39,4035,177,1853,107,1820,118,1611,107,1900,108,3119,164,10063,259,4112,193,2364,153,11536,318,2229,137,3824,194,302,41,2817,137,5009,196]
[null,"Householder under 25 years:",0,16,48,60,0,11,26,29,12,19,43,52,22,25,305,135,0,11,0,16,156,105,0,11,11,16,91,69,81,57,31,30,26,27,72,110,62,45,0,11,0,11,7,9,311,138,59,49,20,23,9,17,0,16,29,32,423,135,106,82,0,16,57,55,87,95,9,14,0,11,0,16,0,18]
[null,"Less than $10,000",0,16,0,16,0,11,0,11,0,16,0,11,0,11,17,26,0,11,0,16,0,18,0,11,0,11,0,16,0,18,0,11,0,11,0,16,0,21,0,11,0,11,0,11,28,31,0,11,0,11,0,11,0,16,0,16,14,24,0,18,0,16,0,21,0,16,9,14,0,11,0,16,0,18]
[null,"$10,000 to $14,999",0,16,0,16,0,11,0,11,0,16,0,11,0,11,12,20,0,11,0,16,0,18,0,11,0,11,0,16,0,18,0,11,0,11,0,16,0,21,0,11,0,11,0,11,13,21,0,11,0,11,0,11,0,16,0,16,0,21,0,18,0,16,0,21,0,16,0,16,0,11,0,16,0,18]
[null,"$15,000 to $19,999",0,16,0,16,0,11,16,26,0,16,0,11,0,11,0,24,0,11,0,16,0,18,0,11,0,11,0,16,10,18,0,11,0,11,0,16,0,21,0,11,0,11,0,11,14,21,0,11,0,11,9,17,0,16,0,16,22,38,0,18,0,16,20,32,0,16,0,16,0,11,0,16,0,18]
[null,"$20,000 to $24,999",0,16,0,16,0,11,0,11,0,16,0,11,0,11,18,27,0,11,0,16,0,18,0,11,0,11,0,16,0,18,0,11,0,11,0,16,0,21,0,11,0,11,0,11,17,28,0,11,0,11,0,11,0,16,0,16,17,22,0,18,0,16,0,21,0,16,0,16,0,11,0,16,0,18]
[null,"$25,000 to $29,999",0,16,0,16,0,11,0,11,0,16,43,52,0,11,12,20,0,11,0,16,14,23,0,11,0,11,17,29,0,18,6,9,0,11,72,110,6,11,0,11,0,11,0,11,0,16,0,11,0,11,0,11,0,16,0,16,0,21,11,19,0,16,0,21,0,16,0,16,0,11,0,16,0,18]
[null,"$30,000 to $34,999",0,16,0,16,0,11,10,16,0,16,0,11,0,11,0,24,0,11,0,16,18,28,0,11,0,11,0,16,0,18,6,8,0,11,0,16,0,21,0,11,0,11,0,11,0,16,0,11,8,13,0,11,0,16,13,21,48,38,10,17,0,16,0,21,0,16,0,16,0,11,0,16,0,18]
[null,"$35,000 to $39,999",0,16,0,16,0,11,0,11,0,16,0,11,0,11,26,32,0,11,0,16,0,18,0,11,0,11,0,16,0,18,0,11,13,21,0,16,18,29,0,11,0,11,0,11,0,16,0,11,0,11,0,11,0,16,0,16,0,21,11,18,0,16,0,21,48,74,0,16,0,11,0,16,0,18]
[null,"$40,000 to $44,999",0,16,0,16,0,11,0,11,0,16,0,11,0,11,20,31,0,11,0,16,0,18,0,11,0,11,0,16,31,38,0,11,0,11,0,16,0,21,0,11,0,11,0,11,20,30,0,11,0,11,0,11,0,16,0,16,9,16,0,18,0,16,0,21,0,16,0,16,0,11,0,16,0,18]
[null,"$45,000 to $49,999",0,16,0,16,0,11,0,11,0,16,0,11,0,11,21,33,0,11,0,16,0,18,0,11,0,11,0,16,0,18,0,11,0,11,0,16,0,21,0,11,0,11,0,11,0,16,13,19,0,11,0,11,0,16,0,16,0,21,32,50,0,16,0,21,0,16,0,16,0,11,0,16,0,18]
[null,"$50,000 to $59,999",0,16,10,17,0,11,0,11,0,16,0,11,0,11,0,24,0,11,0,16,0,18,0,11,0,11,16,24,7,10,0,11,0,11,0,16,12,18,0,11,0,11,0,11,109,95,0,11,0,11,0,11,0,16,0,16,35,31,0,18,0,16,17,26,0,16,0,16,0,11,0,16,0,18]
[null,"$60,000 to $74,999",0,16,0,16,0,11,0,11,12,19,0,11,8,14,118,79,0,11,0,16,85,85,0,11,0,11,0,16,21,28,0,11,0,11,0,16,22,25,0,11,0,11,0,11,50,78,9,14,12,18,0,11,0,16,16,26,178,93,0,18,0,16,20,34,0,16,0,16,0,11,0,16,0,18]
[null,"$75,000 to $99,999",0,16,38,58,0,11,0,11,0,16,0,11,14,21,0,24,0,11,0,16,0,18,0,11,11,16,43,53,0,18,0,11,13,19,0,16,0,21,0,11,0,11,0,11,12,20,11,17,0,11,0,11,0,16,0,16,68,52,36,61,0,16,0,21,0,16,0,16,0,11,0,16,0,18]
[null,"$100,000 to $124,999",0,16,0,16,0,11,0,11,0,16,0,11,0,11,51,49,0,11,0,16,39,59,0,11,0,11,0,16,12,20,0,11,0,11,0,16,0,21,0,11,0,11,0,11,0,16,26,42,0,11,0,11,0,16,0,16,32,36,6,14,0,16,0,21,0,16,0,16,0,11,0,16,0,18]
[null,"$125,000 to $149,999",0,16,0,16,0,11,0,11,0,16,0,11,0,11,10,14,0,11,0,16,0,18,0,11,0,11,0,16,0,18,19,29,0,11,0,16,0,21,0,11,0,11,0,11,35,53,0,11,0,11,0,11,0,16,0,16,0,21,0,18,0,16,0,21,39,65,0,16,0,11,0,16,0,18]
[null,"$150,000 to $199,999",0,16,0,16,0,11,0,11,0,16,0,11,0,11,0,24,0,11,0,16,0,18,0,11,0,11,15,24,0,18,0,11,0,11,0,16,4,8,0,11,0,11,7,9,13,20,0,11,0,11,0,11,0,16,0,16,0,21,0,18,0,16,0,21,0,16,0,16,0,11,0,16,0,18]
[null,"$200,000 or more",0,16,0,16,0,11,0,11,0,16,0,11,0,11,0,24,0,11,0,16,0,18,0,11,0,11,0,16,0,18,0,11,0,11,0,16,0,21,0,11,0,11,0,11,0,16,0,11,0,11,0,11,0,16,0,16,0,21,0,18,0,16,0,21,0,16,0,16,0,11,0,16,0,18]
[null,"Householder 25 to 44 years:",551,142,534,85,360,70,287,61,397,93,444,85,425,91,4105,302,149,39,888,105,1555,204,480,78,363,64,875,148,1288,132,172,50,146,28,481,185,2504,193,32,28,128,43,21,13,1503,163,438,87,330,62,472,105,496,95,999,160,3896,253,1234,138,359,147,3206,266,576,112,722,127,68,27,590,83,1149,163]
[null,"Less than $10,000",0,16,0,16,0,11,0,11,0,16,0,11,8,13,224,150,0,11,0,16,61,49,0,11,15,22,18,30,17,28,0,11,4,5,0,16,8,13,0,11,4,7,0,11,16,25,0,11,16,23,22,34,14,21,0,16,202,114,56,65,0,16,9,14,0,16,9,13,3,4,0,16,0,18]
[null,"$10,000 to $14,999",0,16,0,16,0,11,0,11,0,16,0,11,0,11,74,67,0,11,0,16,0,18,0,11,0,11,0,16,0,18,0,11,5,6,0,16,0,21,0,11,0,11,0,11,43,52,23,37,0,11,0,11,0,16,0,16,10,15,55,63,0,16,60,66,40,49,0,16,0,11,0,16,0,18]
[null,"$15,000 to $19,999",0,16,0,16,0,11,0,11,0,16,0,11,0,11,10,18,0,11,0,16,25,29,0,11,0,11,0,16,11,11,0,11,0,11,0,16,25,39,0,11,9,10,0,11,0,16,14,15,0,11,10,17,0,16,0,16,61,60,12,20,0,16,131,118,0,16,16,26,0,11,0,16,0,18]
[null,"$20,000 to $24,999",53,83,0,16,0,11,0,11,0,16,37,57,0,11,96,118,0,11,0,16,32,33,0,11,0,11,23,34,19,21,0,11,0,11,24,39,0,21,0,11,0,11,0,11,19,28,0,11,0,11,8,11,52,53,49,74,136,89,14,21,0,16,84,83,0,16,0,16,0,11,14,23,0,18]
[null,"$25,000 to $29,999",0,16,0,16,0,11,0,11,0,16,0,11,0,11,96,111,0,11,12,21,27,43,0,11,0,11,36,45,10,10,0,11,0,11,0,16,40,58,0,11,0,11,0,11,23,27,0,11,0,11,0,11,25,38,18,28,31,29,8,15,67,105,22,36,0,16,0,16,0,11,0,16,0,18]
[null,"$30,000 to $34,999",19,31,13,19,0,11,0,11,0,16,28,44,22,34,169,125,0,11,20,32,28,28,0,11,0,11,61,91,25,31,0,11,3,6,23,37,44,30,0,11,0,11,0,11,64,47,0,11,9,13,19,22,0,16,14,22,88,61,14,20,0,16,119,99,0,16,33,31,0,11,0,16,0,18]
[null,"$35,000 to $39,999",0,16,21,32,0,11,0,11,0,16,0,11,0,11,128,90,0,11,0,16,69,72,0,11,0,11,12,20,8,10,0,11,0,11,31,49,17,19,0,11,0,11,0,11,93,78,10,17,0,11,8,13,0,16,64,97,115,74,85,68,0,16,122,91,18,30,19,23,8,13,0,16,42,62]
[null,"$40,000 to $44,999",0,16,0,16,0,11,0,11,0,16,0,11,9,14,104,64,0,11,116,120,51,48,14,22,25,41,0,16,11,12,0,11,0,11,49,82,50,50,0,11,0,11,0,11,27,31,0,11,0,11,0,11,0,16,72,76,84,49,38,45,0,16,117,88,26,44,14,23,0,11,21,34,0,18]
[null,"$45,000 to $49,999",0,16,11,17,0,11,0,11,0,16,0,11,0,11,192,115,19,29,26,30,45,43,9,15,0,11,0,16,86,59,0,11,0,11,0,16,34,27,0,11,0,11,0,11,107,98,0,11,0,11,8,13,0,16,16,28,67,56,23,30,21,34,119,88,0,16,22,27,0,11,28,32,0,18]
[null,"$50,000 to $59,999",32,42,13,19,0,11,30,33,0,16,13,19,19,21,204,99,0,11,24,27,156,111,14,23,0,11,84,65,122,67,6,9,9,9,0,16,112,65,10,15,4,7,0,11,64,41,16,18,7,12,34,29,23,35,86,66,299,147,142,84,16,25,77,69,45,47,69,50,5,6,44,42,0,18]
[null,"$60,000 to $74,999",11,19,8,12,28,29,0,11,34,52,79,59,11,17,474,168,9,13,93,59,118,64,59,62,0,11,116,60,144,75,0,11,15,11,27,42,234,109,9,15,0,11,2,5,197,101,0,11,41,38,41,33,33,30,136,113,557,154,146,76,0,16,299,136,20,33,115,79,0,11,20,33,187,102]
[null,"$75,000 to $99,999",99,65,84,54,12,18,49,34,22,25,50,41,95,66,592,161,12,11,174,78,270,120,58,41,55,32,22,35,222,96,6,9,13,14,104,124,441,125,0,11,7,8,6,7,316,97,55,63,21,24,100,55,62,44,103,71,389,117,133,64,61,101,382,128,43,41,83,66,3,5,119,97,98,103]
[null,"$100,000 to $124,999",96,68,84,58,109,56,65,58,98,48,78,42,112,70,791,208,25,19,83,62,157,79,120,59,70,34,209,95,168,67,13,10,23,13,86,79,521,152,4,7,16,18,2,4,199,75,109,45,89,54,126,78,94,57,210,123,544,167,200,97,29,33,306,104,56,52,159,77,3,4,82,55,43,43]
[null,"$125,000 to $149,999",53,49,41,34,32,29,28,30,37,30,39,32,75,52,406,135,11,11,176,94,81,58,79,48,19,20,15,23,140,82,48,40,26,13,48,56,295,102,0,11,19,14,5,6,182,84,61,50,20,21,53,35,55,35,108,89,300,93,170,95,16,26,439,124,126,70,103,79,18,17,58,54,112,74]
[null,"$150,000 to $199,999",129,85,86,51,83,51,69,46,142,62,97,53,34,32,313,122,43,28,65,59,57,48,80,51,73,45,141,62,163,75,67,29,22,12,89,82,409,131,9,15,10,10,6,6,99,66,102,49,59,41,32,29,99,53,123,100,559,168,85,72,104,86,531,159,108,81,66,51,21,12,23,37,279,98]
[null,"$200,000 or more",59,44,173,64,96,48,46,50,64,65,23,23,40,31,232,94,30,19,99,96,378,134,47,40,106,51,138,68,142,73,32,21,26,14,0,16,274,92,0,11,59,32,0,11,54,39,48,35,68,38,11,18,39,26,0,16,454,108,53,45,45,43,389,150,94,110,14,23,7,7,181,90,388,137]
[null,"Householder 45 to 64 years:",1359,147,984,105,798,71,843,85,920,103,899,102,804,88,5879,352,450,45,1106,151,2579,204,881,78,756,91,1475,196,3304,215,476,61,452,43,1198,180,4575,225,199,59,362,56,167,31,1392,146,907,73,829,94,697,95,925,115,1249,184,3380,268,1935,195,1061,174,5000,234,1158,149,1680,193,119,25,1498,134,2624,162]
[null,"Less than $10,000",18,28,0,16,8,12,0,11,0,16,9,14,30,45,227,115,6,8,14,22,86,84,8,14,26,29,10,16,61,35,20,30,6,7,39,43,29,25,0,11,0,11,4,6,37,42,8,13,8,13,17,20,0,16,59,75,66,41,24,27,21,33,191,119,12,20,52,55,6,6,46,46,12,19]
[null,"$10,000 to $14,999",0,16,0,16,0,11,11,17,12,20,10,15,22,25,80,57,11,13,0,16,90,67,19,21,19,20,0,16,17,21,0,11,6,7,0,16,7,10,0,11,0,11,4,5,15,24,22,35,0,11,0,11,0,16,19,30,186,95,78,63,0,16,21,22,0,16,17,27,0,11,14,23,40,50]
[null,"$15,000 to $19,999",0,16,0,16,0,11,19,21,0,16,24,39,6,10,135,80,0,11,15,25,32,38,0,11,9,13,78,101,123,70,0,11,4,5,15,26,52,45,3,5,0,11,0,11,73,67,0,11,0,11,0,11,0,16,0,16,140,88,10,17,0,16,44,37,0,16,89,71,0,11,0,16,0,18]
[null,"$20,000 to $24,999",31,37,43,36,10,16,36,44,11,19,0,11,0,11,43,48,0,11,55,72,51,31,0,11,35,34,46,51,49,40,0,11,10,8,0,16,37,37,19,22,0,11,3,4,19,22,0,11,0,11,11,17,22,23,20,34,39,31,87,77,21,35,76,50,11,18,9,16,0,11,19,32,26,41]
[null,"$25,000 to $29,999",16,27,0,16,0,11,20,30,0,16,0,11,0,11,87,71,0,11,50,57,60,38,0,11,0,11,0,16,50,39,0,11,2,5,23,37,64,43,0,11,4,6,0,11,42,42,0,11,9,13,0,11,12,20,0,16,119,92,0,18,0,16,63,59,28,34,30,30,0,11,0,16,16,28]
[null,"$30,000 to $34,999",0,16,6,9,0,11,56,49,0,16,28,30,9,14,166,95,8,11,0,16,128,59,0,11,37,30,10,16,155,81,32,36,4,5,18,30,67,48,21,23,4,7,3,5,26,31,21,22,19,22,0,11,0,16,55,77,82,56,108,83,48,45,88,72,38,44,10,19,0,11,24,33,60,54]
[null,"$35,000 to $39,999",0,16,0,16,10,15,44,46,12,18,18,23,0,11,168,79,6,9,13,20,100,108,0,11,0,11,6,10,39,41,6,8,7,7,0,16,96,63,0,11,8,9,3,4,83,45,8,13,4,7,44,47,0,16,15,23,58,45,17,29,0,16,71,40,23,35,92,78,2,3,45,42,23,35]
[null,"$40,000 to $44,999",0,16,8,12,15,17,26,40,20,23,72,48,9,15,193,118,11,11,70,83,34,34,0,11,10,14,79,94,72,43,7,10,0,11,31,35,58,58,4,7,0,11,0,11,56,49,21,23,25,40,19,20,17,19,13,22,42,36,24,30,31,35,147,73,18,31,108,68,3,4,31,37,39,61]
[null,"$45,000 to $49,999",14,25,46,60,0,11,0,11,0,16,0,11,12,20,245,142,0,11,27,31,43,47,17,20,14,21,60,73,76,60,0,11,4,5,28,45,65,41,0,11,3,5,0,11,46,35,23,34,26,29,9,15,8,12,0,16,111,91,56,74,0,16,58,57,0,16,41,54,2,4,38,42,19,29]
[null,"$50,000 to $59,999",26,29,12,18,32,30,60,40,0,16,51,57,39,34,426,163,36,28,106,67,144,71,44,28,0,11,97,81,142,73,43,37,28,19,16,24,198,73,4,6,8,8,6,6,109,60,20,22,16,18,57,37,47,40,15,25,72,49,46,39,52,47,328,127,86,64,103,64,7,6,11,18,63,70]
[null,"$60,000 to $74,999",29,35,27,26,49,37,36,28,74,45,48,35,42,33,747,186,14,13,90,85,188,83,88,53,48,47,79,55,308,119,12,13,56,25,261,137,250,117,5,6,20,15,17,9,53,41,90,67,72,51,61,35,140,79,213,92,301,101,211,108,111,99,542,185,124,91,214,112,12,8,114,100,106,64]
[null,"$75,000 to $99,999",196,121,121,57,66,38,58,35,72,44,140,62,118,57,645,181,64,27,163,99,292,73,166,63,77,63,198,81,550,159,42,20,56,31,131,84,591,140,12,11,28,19,16,12,135,83,105,45,146,77,138,64,176,73,171,84,344,112,318,118,99,61,618,145,89,60,270,127,9,7,119,66,220,114]
[null,"$100,000 to $124,999",285,113,236,92,95,63,146,70,105,62,182,68,126,61,861,195,55,33,139,90,189,83,175,61,58,36,212,75,389,111,37,22,42,21,172,87,564,153,21,17,36,20,21,13,211,82,183,67,73,42,59,39,95,46,105,100,582,140,363,164,61,54,512,124,180,86,222,93,22,11,115,68,233,99]
[null,"$125,000 to $149,999",184,82,139,75,66,44,60,36,100,50,54,36,93,52,628,155,30,18,41,39,315,113,138,59,84,52,161,52,322,89,50,28,37,22,91,87,654,156,2,4,28,17,17,11,135,74,119,55,101,60,128,64,181,88,237,130,256,85,307,114,112,90,553,152,158,77,124,72,13,13,196,90,229,124]
[null,"$150,000 to $199,999",260,133,268,85,175,72,130,59,257,97,143,70,135,68,569,134,122,34,252,112,312,107,106,60,188,91,207,61,287,101,67,32,51,20,224,83,809,133,0,11,95,35,39,23,204,89,170,68,103,47,68,46,127,51,149,87,258,95,212,70,170,91,649,142,239,88,142,59,16,12,229,99,534,169]
[null,"$200,000 or more",300,117,78,48,272,89,141,54,257,93,120,50,163,55,659,159,87,28,71,54,515,118,120,66,151,52,232,75,664,129,160,38,139,30,149,78,1034,155,108,45,128,35,34,14,148,62,117,58,227,72,86,48,100,52,178,93,724,123,74,62,335,110,1039,189,152,90,157,74,27,12,497,124,1004,175]
[null,"Householder 65 years and over:",835,175,407,60,375,77,381,70,358,77,299,71,402,90,2452,208,289,39,686,162,2252,202,403,77,386,58,1132,138,2415,167,230,48,221,42,660,156,2197,164,205,51,110,36,112,25,829,131,449,87,641,112,433,82,479,91,842,178,2364,226,837,107,944,164,3273,260,408,126,1413,163,115,26,729,119,1236,150]
[null,"Less than $10,000",26,32,13,18,11,19,64,65,0,16,0,11,25,24,109,92,11,12,20,31,104,61,0,11,0,11,79,52,114,82,17,27,4,6,0,16,79,48,5,8,3,4,6,6,67,86,26,24,37,28,0,11,0,16,44,73,131,63,10,16,16,24,224,127,0,16,57,47,4,4,18,30,0,18]
[null,"$10,000 to $14,999",50,63,10,16,21,23,10,17,0,16,0,11,26,29,186,88,13,14,46,45,98,63,9,15,17,19,53,55,133,83,0,11,0,11,87,88,48,28,0,11,3,5,2,4,9,14,9,15,25,24,0,11,24,26,77,48,96,55,84,52,0,16,155,120,0,16,53,41,0,11,17,27,16,27]
[null,"$15,000 to $19,999",14,23,0,16,53,57,20,22,0,16,19,21,9,14,119,54,12,13,76,76,113,61,8,12,9,14,74,68,110,51,11,12,14,17,0,16,126,85,3,6,3,4,2,5,57,36,60,54,26,25,21,22,19,20,0,16,139,67,39,29,0,16,226,124,43,68,191,82,5,5,0,16,158,108]
[null,"$20,000 to $24,999",0,16,13,18,39,34,0,11,0,16,62,57,0,11,184,92,0,11,84,69,238,122,37,49,0,11,21,23,100,50,0,11,4,5,37,35,107,67,0,11,0,11,2,4,108,99,7,12,34,28,28,26,31,40,13,20,143,98,70,42,59,56,295,124,0,16,75,83,0,11,0,16,42,42]
[null,"$25,000 to $29,999",0,16,18,21,19,21,0,11,54,53,23,22,33,29,178,102,22,16,48,52,91,49,17,20,0,11,29,43,66,37,15,18,9,9,42,52,183,103,17,21,0,11,0,11,44,43,18,21,56,54,9,15,23,27,73,75,92,51,38,33,37,42,213,87,43,67,28,27,9,10,33,38,0,18]
[null,"$30,000 to $34,999",53,41,0,16,19,22,10,16,9,14,15,16,17,18,68,56,21,16,0,16,93,65,17,18,28,24,55,43,76,45,0,11,11,9,8,14,167,78,11,18,0,11,9,10,49,60,16,17,0,11,8,14,11,17,0,16,89,53,53,39,18,28,109,59,22,28,147,64,6,6,35,38,29,34]
[null,"$35,000 to $39,999",13,20,18,20,10,15,11,16,32,24,17,20,22,21,130,75,11,12,16,25,66,39,34,25,10,14,13,20,101,48,18,21,21,20,66,48,93,56,13,18,0,11,2,3,65,49,7,13,24,23,9,15,11,16,80,56,47,40,50,51,69,48,224,102,19,21,12,19,2,3,39,43,43,41]
[null,"$40,000 to $44,999",75,83,33,29,0,11,0,11,18,21,14,16,28,26,88,54,36,31,27,29,124,92,0,11,27,33,179,105,99,50,0,11,7,10,57,47,36,27,0,11,3,5,0,11,22,23,17,19,48,33,55,44,9,16,57,45,51,37,64,42,0,16,100,56,19,22,77,43,16,16,33,39,24,28]
[null,"$45,000 to $49,999",73,68,0,16,12,17,18,19,0,16,0,11,0,11,168,77,0,11,20,32,147,119,46,30,29,23,47,35,84,45,10,11,11,9,25,31,113,53,0,11,12,19,5,6,27,26,9,13,17,19,0,11,18,19,0,16,99,64,74,53,18,29,212,78,17,25,87,77,7,5,33,40,38,36]
[null,"$50,000 to $59,999",103,77,49,27,61,38,29,34,0,16,30,26,31,21,168,74,19,15,93,77,240,86,22,22,18,20,51,39,220,79,9,10,22,14,24,30,251,89,15,19,22,11,15,10,40,34,25,20,126,79,68,63,70,56,94,57,225,84,96,68,52,48,302,138,35,49,97,48,9,5,20,30,89,70]
[null,"$60,000 to $74,999",91,57,46,32,41,30,53,40,69,37,19,21,16,17,293,77,47,20,137,97,205,89,62,39,16,17,150,66,287,88,7,10,8,7,28,26,257,75,14,10,6,8,15,13,105,56,29,25,47,33,40,31,96,44,164,101,306,86,81,51,88,64,219,80,11,20,127,71,13,14,162,100,178,93]
[null,"$75,000 to $99,999",56,48,70,35,16,12,59,33,70,60,46,33,71,59,190,80,32,18,44,43,331,98,32,28,67,36,109,57,326,109,28,19,26,11,96,66,268,98,15,16,8,8,14,10,93,49,77,53,71,39,27,25,102,75,57,52,277,88,126,69,133,73,410,111,103,79,225,83,6,6,180,85,123,63]
[null,"$100,000 to $124,999",60,50,63,34,22,19,21,18,26,20,5,9,53,35,225,99,35,17,13,22,147,85,30,30,81,37,77,40,153,62,20,16,18,12,56,44,182,72,7,7,8,8,12,11,102,47,62,42,7,12,72,51,19,23,61,55,224,88,37,41,118,64,156,69,70,69,85,57,10,6,42,47,134,69]
[null,"$125,000 to $149,999",54,45,24,21,19,20,20,21,21,18,16,19,15,19,91,47,5,7,43,39,45,46,55,55,30,26,57,37,144,64,28,18,26,14,0,16,102,41,10,15,15,12,7,6,7,11,11,18,0,11,9,14,18,20,46,54,139,54,0,18,0,16,174,84,18,26,41,36,10,8,16,26,89,57]
[null,"$150,000 to $199,999",68,53,24,21,0,11,51,38,10,16,14,21,25,21,130,67,20,16,12,20,140,78,25,31,32,22,40,33,194,87,17,14,10,8,85,88,119,57,36,28,21,13,12,10,17,20,48,42,60,36,35,29,0,16,30,35,138,60,0,18,160,110,88,49,0,16,47,42,8,6,57,50,142,94]
[null,"$200,000 or more",99,59,26,26,32,28,15,19,49,30,19,25,31,28,125,59,5,7,7,13,70,50,9,13,22,20,98,53,208,81,50,24,30,16,49,50,66,41,59,32,6,8,9,7,17,22,28,45,63,48,52,37,28,25,46,46,168,70,15,17,176,103,166,76,8,13,64,45,10,7,44,40,131,90]
[]
[]
[]
[]
[]
[]
[]
[]
[]
[]
[]
[]
[]
[]
[null,"B19037. AGE OF HOUSEHOLDER BY HOUSEHOLD INCOME IN THE PAST 12 MONTHS (IN 2014 INFLATION-ADJUSTED DOLLARS)"]
[null,"Universe:  HOUSEHOLDS"]
[null,"Data Set: 2010-2014 American Community Survey 5-Year Estimates"]
[]
[null,null,"Atkinson",null,"Auburn",null,"Brentwood",null,"Candia",null,"Chester",null,"Danville",null,"Deerfield",null,"Derry",null,"East Kingston",null,"Epping",null,"Exeter",null,"Fremont",null,"Greenland",null,"Hampstead",null,"Hampton",null,"Hampton Falls",null,"Kensington",null,"Kingston",null,"Londonderry",null,"New Castle",null,"Newfields",null,"Newington",null,"Newmarket",null,"Newton",null,"North Hampton",null,"Northwood",null,"Nottingham",null,"Plaistow",null,"Portsmouth",null,"Raymond",null,"Rye",null,"Salem",null,"Sandown",null,"Seabrook",null,"South Hampton",null,"Stratham",null,"Windham"]
[null,null,"Estimate","Margin Of Error","Estimate","Margin Of Error","Estimate","Margin Of Error","Estimate","Margin Of Error","Estimate","Margin Of Error","Estimate","Margin Of Error","Estimate","Margin Of Error","Estimate","Margin Of Error","Estimate","Margin Of Error","Estimate","Margin Of Error","Estimate","Margin Of Error","Estimate","Margin Of Error","Estimate","Margin Of Error","Estimate","Margin Of Error","Estimate","Margin Of Error","Estimate","Margin Of Error","Estimate","Margin Of Error","Estimate","Margin Of Error","Estimate","Margin Of Error","Estimate","Margin Of Error","Estimate","Margin Of Error","Estimate","Margin Of Error","Estimate","Margin Of Error","Estimate","Margin Of Error","Estimate","Margin Of Error","Estimate","Margin Of Error","Estimate","Margin Of Error","Estimate","Margin Of Error","Estimate","Margin Of Error","Estimate","Margin Of Error","Estimate","Margin Of Error","Estimate","Margin Of Error","Estimate","Margin Of Error","Estimate","Margin Of Error","Estimate","Margin Of Error","Estimate","Margin Of Error","Estimate","Margin Of Error"]
[null,"Total:",2597,115,1830,82,1400,111,1466,88,1612,80,1537,101,1540,71,12934,350,882,46,2604,154,6248,214,1608,79,1397,55,3447,156,6618,217,902,46,746,53,2442,126,8750,224,451,65,574,71,314,47,3816,203,1747,101,1735,82,1676,118,1824,108,2949,182,10325,302,3864,150,2315,152,11093,285,2130,134,3837,258,306,49,2781,123,4987,197]
[null,"Householder under 25 years:",0,15,27,44,21,24,0,11,6,9,61,54,9,15,453,183,0,11,0,15,116,76,0,11,14,21,96,69,207,102,19,31,0,11,72,81,85,64,0,11,6,5,3,5,308,143,51,58,9,13,79,62,0,11,50,63,360,126,40,37,18,28,144,112,0,15,174,120,0,11,25,30,0,17]
[null,"Less than $10,000",0,15,0,15,0,11,0,11,0,11,0,11,0,11,81,72,0,11,0,15,24,40,0,11,0,11,0,15,53,45,0,11,0,11,39,63,0,20,0,11,0,11,0,11,57,62,0,11,0,11,0,11,0,11,0,15,9,14,0,17,0,15,0,20,0,15,16,26,0,11,0,15,0,17]
[null,"$10,000 to $14,999",0,15,0,15,0,11,0,11,0,11,0,11,0,11,11,18,0,11,0,15,0,17,0,11,0,11,0,15,14,20,0,11,0,11,0,15,0,20,0,11,0,11,0,11,0,15,0,11,0,11,0,11,0,11,0,15,0,20,0,17,0,15,0,20,0,15,0,15,0,11,0,15,0,17]
[null,"$15,000 to $19,999",0,15,0,15,8,12,0,11,0,11,23,37,0,11,10,17,0,11,0,15,0,17,0,11,0,11,0,15,0,17,0,11,0,11,0,15,0,20,0,11,0,11,0,11,0,15,0,11,0,11,37,48,0,11,0,15,19,20,0,17,0,15,0,20,0,15,24,29,0,11,0,15,0,17]
[null,"$20,000 to $24,999",0,15,0,15,0,11,0,11,0,11,5,10,0,11,0,23,0,11,0,15,0,17,0,11,0,11,0,15,30,35,0,11,0,11,0,15,0,20,0,11,0,11,0,11,9,13,0,11,0,11,0,11,0,11,0,15,16,19,9,15,0,15,13,21,0,15,0,15,0,11,0,15,0,17]
[null,"$25,000 to $29,999",0,15,0,15,0,11,0,11,6,9,0,11,9,15,52,46,0,11,0,15,0,17,0,11,14,21,21,23,18,28,19,31,0,11,0,15,0,20,0,11,0,11,0,11,17,19,0,11,0,11,0,11,0,11,0,15,18,28,0,17,0,15,17,28,0,15,0,15,0,11,0,15,0,17]
[null,"$30,000 to $34,999",0,15,0,15,0,11,0,11,0,11,0,11,0,11,74,89,0,11,0,15,0,17,0,11,0,11,42,58,7,13,0,11,0,11,0,15,21,33,0,11,2,4,0,11,0,15,23,37,0,11,0,11,0,11,0,15,28,34,20,31,0,15,0,20,0,15,75,113,0,11,0,15,0,17]
[null,"$35,000 to $39,999",0,15,0,15,13,20,0,11,0,11,0,11,0,11,28,27,0,11,0,15,0,17,0,11,0,11,0,15,0,17,0,11,0,11,33,52,14,22,0,11,0,11,0,11,0,15,0,11,0,11,0,11,0,11,0,15,57,54,0,17,0,15,0,20,0,15,0,15,0,11,0,15,0,17]
[null,"$40,000 to $44,999",0,15,27,44,0,11,0,11,0,11,0,11,0,11,53,84,0,11,0,15,0,17,0,11,0,11,25,42,52,52,0,11,0,11,0,15,0,20,0,11,0,11,0,11,28,34,28,42,0,11,21,33,0,11,0,15,7,13,11,17,0,15,0,20,0,15,0,15,0,11,11,18,0,17]
[null,"$45,000 to $49,999",0,15,0,15,0,11,0,11,0,11,0,11,0,11,47,74,0,11,0,15,0,17,0,11,0,11,0,15,0,17,0,11,0,11,0,15,0,20,0,11,0,11,0,11,6,12,0,11,0,11,0,11,0,11,34,49,15,24,0,17,0,15,0,20,0,15,11,16,0,11,0,15,0,17]
[null,"$50,000 to $59,999",0,15,0,15,0,11,0,11,0,11,0,11,0,11,0,23,0,11,0,15,0,17,0,11,0,11,8,14,19,23,0,11,0,11,0,15,9,15,0,11,4,6,0,11,68,77,0,11,0,11,21,32,0,11,0,15,18,28,0,17,0,15,56,74,0,15,22,21,0,11,14,24,0,17]
[null,"$60,000 to $74,999",0,15,0,15,0,11,0,11,0,11,10,16,0,11,55,86,0,11,0,15,32,40,0,11,0,11,0,15,0,17,0,11,0,11,0,15,26,41,0,11,0,11,0,11,41,68,0,11,0,11,0,11,0,11,0,15,95,74,0,17,18,28,10,17,0,15,0,15,0,11,0,15,0,17]
[null,"$75,000 to $99,999",0,15,0,15,0,11,0,11,0,11,0,11,0,11,34,45,0,11,0,15,0,17,0,11,0,11,0,15,14,21,0,11,0,11,0,15,15,22,0,11,0,11,3,5,82,75,0,11,0,11,0,11,0,11,16,25,19,24,0,17,0,15,48,76,0,15,26,39,0,11,0,15,0,17]
[null,"$100,000 to $124,999",0,15,0,15,0,11,0,11,0,11,0,11,0,11,0,23,0,11,0,15,29,43,0,11,0,11,0,15,0,17,0,11,0,11,0,15,0,20,0,11,0,11,0,11,0,15,0,11,0,11,0,11,0,11,0,15,59,65,0,17,0,15,0,20,0,15,0,15,0,11,0,15,0,17]
[null,"$125,000 to $149,999",0,15,0,15,0,11,0,11,0,11,0,11,0,11,8,13,0,11,0,15,18,27,0,11,0,11,0,15,0,17,0,11,0,11,0,15,0,20,0,11,0,11,0,11,0,15,0,11,9,13,0,11,0,11,0,15,0,20,0,17,0,15,0,20,0,15,0,15,0,11,0,15,0,17]
[null,"$150,000 to $199,999",0,15,0,15,0,11,0,11,0,11,23,35,0,11,0,23,0,11,0,15,0,17,0,11,0,11,0,15,0,17,0,11,0,11,0,15,0,20,0,11,0,11,0,11,0,15,0,11,0,11,0,11,0,11,0,15,0,20,0,17,0,15,0,20,0,15,0,15,0,11,0,15,0,17]
[null,"$200,000 or more",0,15,0,15,0,11,0,11,0,11,0,11,0,11,0,23,0,11,0,15,13,20,0,11,0,11,0,15,0,17,0,11,0,11,0,15,0,20,0,11,0,11,0,11,0,15,0,11,0,11,0,11,0,11,0,15,0,20,0,17,0,15,0,20,0,15,0,15,0,11,0,15,0,17]
[null,"Householder 25 to 44 years:",553,106,582,84,358,52,313,61,408,43,472,104,504,83,4782,329,223,38,881,181,1823,174,548,90,356,71,737,138,1344,172,222,45,155,34,574,135,2521,175,60,35,174,54,71,35,1448,204,616,103,363,73,458,89,530,77,736,165,3920,311,1487,189,499,115,3255,245,763,103,817,163,56,27,762,110,1477,170]
[null,"Less than $10,000",0,15,15,22,0,11,9,14,11,20,0,11,0,11,120,87,0,11,0,15,83,62,0,11,20,27,41,64,19,29,0,11,4,5,13,20,39,36,0,11,0,11,4,6,59,43,55,79,0,11,0,11,0,11,42,66,121,95,0,17,0,15,76,72,0,15,164,137,0,11,0,15,11,18]
[null,"$10,000 to $14,999",16,28,0,15,0,11,9,15,0,11,5,8,0,11,218,125,0,11,0,15,24,25,0,11,0,11,0,15,0,17,0,11,0,11,0,15,0,20,0,11,0,11,0,11,16,18,6,10,0,11,0,11,0,11,0,15,106,57,0,17,0,15,38,35,9,15,0,15,0,11,0,15,0,17]
[null,"$15,000 to $19,999",0,15,0,15,10,16,0,11,0,11,0,11,0,11,180,133,0,11,12,19,44,48,8,13,0,11,0,15,44,23,9,14,4,5,0,15,74,59,0,11,0,11,0,11,129,136,0,11,10,17,5,10,0,11,0,15,54,43,49,65,11,20,12,20,49,60,24,41,0,11,0,15,11,18]
[null,"$20,000 to $24,999",0,15,0,15,0,11,0,11,0,11,8,12,0,11,137,107,0,11,0,15,128,107,0,11,0,11,0,15,5,8,0,11,2,3,0,15,55,55,0,11,4,6,0,11,28,38,0,11,0,11,44,66,13,21,0,15,58,53,33,37,0,15,74,47,0,15,58,79,0,11,0,15,93,115]
[null,"$25,000 to $29,999",0,15,0,15,0,11,13,20,0,11,0,11,29,28,133,100,6,8,24,30,67,81,9,15,0,11,0,15,22,31,0,11,5,8,9,16,0,20,0,11,0,11,0,11,48,49,0,11,0,11,0,11,0,11,12,19,201,92,46,61,0,15,45,39,0,15,13,21,0,11,0,15,0,17]
[null,"$30,000 to $34,999",57,87,0,15,0,11,12,18,0,11,0,11,12,19,235,123,0,11,0,15,61,72,0,11,0,11,52,63,43,33,0,11,3,4,40,64,54,47,0,11,0,11,5,8,93,70,0,11,52,57,0,11,13,19,60,93,156,94,10,18,20,33,183,111,25,30,16,26,0,11,33,52,0,17]
[null,"$35,000 to $39,999",0,15,28,45,8,12,4,8,0,11,11,14,51,54,157,100,0,11,0,15,32,29,15,17,0,11,69,81,52,45,17,27,0,11,38,60,40,37,12,20,0,11,5,8,49,47,20,30,0,11,0,11,0,11,77,80,93,55,35,36,27,41,171,106,0,15,50,46,0,11,13,22,0,17]
[null,"$40,000 to $44,999",37,37,43,52,0,11,0,11,0,11,0,11,10,17,160,87,8,11,0,15,87,62,22,34,0,11,26,42,42,27,13,16,0,11,6,12,107,84,0,11,17,23,4,6,33,32,119,91,18,19,18,20,23,20,0,15,178,106,55,49,0,15,139,82,0,15,13,20,0,11,17,24,0,17]
[null,"$45,000 to $49,999",0,15,0,15,0,11,0,11,0,11,19,17,20,22,204,87,9,9,0,15,108,96,7,12,10,15,8,13,18,23,0,11,0,11,30,46,45,54,0,11,0,11,0,11,90,69,0,11,38,57,20,26,6,10,8,13,123,69,65,66,0,15,178,121,0,15,9,16,2,3,0,15,0,17]
[null,"$50,000 to $59,999",46,58,36,41,0,11,30,27,10,17,73,72,18,21,421,170,21,25,143,121,73,81,40,41,0,11,47,52,31,29,31,26,9,9,69,80,146,73,13,20,0,11,0,11,167,109,0,11,18,21,76,55,6,10,83,60,295,149,219,120,19,30,219,110,148,81,23,39,0,11,74,59,12,18]
[null,"$60,000 to $74,999",45,42,34,35,14,16,43,43,49,49,61,49,116,65,673,174,10,11,106,62,206,103,82,64,61,41,28,33,164,93,5,9,19,13,84,67,208,97,0,11,17,24,24,24,196,110,62,50,29,33,51,42,67,60,44,46,555,191,152,59,50,61,253,97,129,88,49,45,3,5,34,55,40,37]
[null,"$75,000 to $99,999",53,43,80,52,60,28,58,33,38,33,80,48,53,55,952,237,39,23,151,75,225,91,116,57,30,25,51,35,206,90,17,12,27,14,124,75,529,152,0,11,36,22,2,4,127,58,94,54,30,23,133,66,121,58,193,96,581,142,337,138,120,71,526,155,263,98,147,111,7,7,71,56,210,115]
[null,"$100,000 to $124,999",87,68,78,46,40,29,20,20,28,29,122,61,81,59,442,154,34,21,121,71,174,81,134,69,33,30,201,91,223,72,48,32,26,22,42,38,446,123,0,11,15,14,3,5,192,82,82,52,71,52,26,29,140,68,134,80,552,132,369,125,39,47,320,146,17,26,169,146,11,11,127,62,243,82]
[null,"$125,000 to $149,999",81,53,105,69,26,25,70,34,39,36,52,38,88,61,275,116,56,39,235,139,181,94,43,41,78,52,71,49,120,92,7,10,0,11,8,15,240,83,23,27,9,10,9,10,66,46,50,40,15,23,39,38,71,46,43,41,300,104,43,34,112,102,374,126,18,26,59,54,10,17,104,52,265,111]
[null,"$150,000 to $199,999",65,46,99,46,81,49,36,26,148,66,20,22,17,20,333,108,20,16,89,72,151,72,55,48,35,37,108,60,285,118,39,30,18,15,49,45,351,97,3,4,8,9,12,15,110,67,96,57,27,26,46,50,55,54,29,45,292,147,66,50,78,54,395,114,39,45,23,31,10,11,121,70,302,112]
[null,"$200,000 or more",66,58,64,43,119,61,9,14,85,52,21,32,9,14,142,84,20,15,0,15,179,67,17,20,89,71,35,31,70,51,36,23,38,18,62,65,187,68,9,14,68,29,3,5,45,40,32,33,55,37,0,11,15,17,11,19,255,91,8,13,23,34,252,129,66,65,0,15,13,10,168,74,290,105]
[null,"Householder 45 to 64 years:",1388,145,956,79,815,93,932,99,928,79,767,116,788,89,5628,284,396,41,1154,161,2464,208,816,96,665,87,1739,177,3195,212,460,56,459,51,1208,142,4550,216,207,62,294,54,157,41,1440,176,805,95,849,111,699,107,1002,106,1510,205,3728,269,1757,190,957,139,5054,299,1078,115,1730,296,183,40,1448,130,2425,234]
[null,"Less than $10,000",40,47,31,28,16,18,6,11,19,21,7,10,8,12,53,43,15,15,23,34,87,59,25,25,0,11,29,33,63,41,0,11,3,5,0,15,39,29,8,13,0,11,0,11,134,72,36,40,35,31,8,12,0,11,0,15,201,126,89,58,22,36,94,75,0,15,37,48,0,11,0,15,12,19]
[null,"$10,000 to $14,999",0,15,0,15,9,13,0,11,0,11,32,31,9,14,198,114,0,11,54,51,40,29,0,11,0,11,34,45,71,49,0,11,3,5,12,18,15,19,0,11,0,11,2,3,72,48,9,14,16,18,10,15,0,11,0,15,157,86,58,53,0,15,126,76,0,15,47,53,0,11,0,15,22,36]
[null,"$15,000 to $19,999",24,39,9,13,9,15,11,16,0,11,0,11,0,11,198,98,7,10,49,55,54,40,0,11,0,11,78,74,155,120,7,10,8,7,0,15,23,26,0,11,2,5,0,11,30,28,8,13,0,11,11,17,0,11,13,21,76,45,25,23,13,21,79,64,0,15,117,100,9,14,0,15,0,17]
[null,"$20,000 to $24,999",0,15,8,13,0,11,54,38,44,44,6,9,8,13,121,79,3,4,25,32,32,28,10,15,0,11,8,13,44,32,4,7,3,5,46,52,70,53,3,5,3,6,0,11,33,28,0,11,24,22,0,11,22,25,31,35,134,87,75,76,12,19,31,29,52,65,178,125,6,6,38,45,0,17]
[null,"$25,000 to $29,999",0,15,12,19,75,61,0,11,0,11,8,13,9,15,77,59,3,4,16,25,45,36,15,18,8,12,26,24,130,86,8,13,3,4,19,29,108,54,0,11,14,12,5,6,61,41,0,11,0,11,54,58,9,15,0,15,171,79,93,82,0,15,81,64,38,47,8,13,4,5,51,49,45,70]
[null,"$30,000 to $34,999",19,30,0,15,0,11,21,23,44,50,6,11,9,13,171,66,6,6,15,23,119,74,11,17,29,31,64,67,99,52,5,8,0,11,45,56,148,82,2,5,4,6,0,11,58,46,0,11,40,31,19,22,24,27,98,90,103,52,67,50,49,35,121,59,21,24,26,30,7,11,26,30,15,23]
[null,"$35,000 to $39,999",11,18,11,18,8,12,13,20,17,19,0,11,7,13,319,121,0,11,0,15,69,57,24,21,29,24,6,12,104,62,0,11,0,11,22,28,215,92,10,16,6,7,4,5,12,20,12,15,0,11,18,19,46,37,76,53,300,117,32,31,0,15,230,113,57,63,23,29,5,5,56,82,0,17]
[null,"$40,000 to $44,999",31,49,30,28,7,11,11,16,0,11,32,33,0,11,100,53,7,9,78,89,78,38,22,22,0,11,20,23,156,105,6,9,26,29,44,47,106,61,0,11,3,5,8,7,8,14,24,24,35,54,10,14,19,19,63,55,80,48,32,43,0,15,130,68,60,63,100,85,5,5,56,55,72,58]
[null,"$45,000 to $49,999",39,44,12,19,0,11,9,15,28,26,41,46,44,32,266,127,15,14,35,41,66,42,27,26,19,20,42,50,76,50,5,8,12,10,43,45,166,79,0,11,15,13,0,11,45,32,8,13,0,11,65,44,12,18,120,96,143,98,68,54,16,26,194,98,26,30,159,92,5,5,13,21,109,90]
[null,"$50,000 to $59,999",97,54,11,17,21,20,24,27,45,49,32,26,57,40,499,136,16,14,38,43,151,78,73,44,106,69,41,46,278,90,13,13,9,10,47,47,242,76,4,8,18,21,15,16,43,30,83,67,54,39,56,41,62,40,91,79,165,76,103,60,47,45,336,126,61,64,149,96,23,22,30,35,71,73]
[null,"$60,000 to $74,999",97,73,121,60,128,63,115,56,45,30,51,34,110,46,689,198,48,23,228,121,205,101,98,52,85,47,186,87,228,89,54,33,33,17,127,80,449,151,11,14,27,17,8,7,249,94,98,59,91,47,10,17,165,93,227,118,254,87,305,94,93,82,497,160,63,54,236,137,23,18,94,53,183,85]
[null,"$75,000 to $99,999",206,95,170,76,114,57,214,64,168,69,168,70,182,88,759,167,46,26,148,83,463,156,198,68,103,54,240,97,454,115,83,38,63,29,221,113,530,139,29,25,33,15,44,22,244,89,144,67,90,53,122,46,197,88,252,119,470,146,225,104,40,36,962,227,82,54,253,106,13,9,119,91,352,143]
[null,"$100,000 to $124,999",282,117,146,53,107,43,170,63,160,58,149,60,126,59,736,160,60,27,201,96,376,132,116,53,47,27,242,83,364,100,48,26,111,38,170,105,600,126,27,25,34,21,18,13,124,59,169,70,80,48,142,64,148,82,225,98,549,121,184,77,125,116,508,147,129,70,148,85,11,8,118,64,420,167]
[null,"$125,000 to $149,999",202,102,108,48,50,32,37,30,160,63,84,48,46,32,607,138,66,26,54,49,129,56,23,20,44,29,227,94,215,100,84,39,73,24,141,92,503,129,35,28,47,31,17,14,192,94,60,36,43,35,71,41,103,47,90,65,291,90,117,59,219,91,591,145,235,97,99,60,23,17,112,69,235,115]
[null,"$150,000 to $199,999",172,85,156,79,128,56,195,57,77,43,101,43,140,58,565,123,52,29,174,96,286,100,51,29,58,36,307,90,432,101,53,28,59,20,97,69,721,142,26,22,37,17,17,10,66,35,117,57,84,44,40,37,115,61,112,68,215,71,266,120,127,100,480,152,167,77,73,54,27,14,327,117,304,95]
[null,"$200,000 or more",168,97,131,69,143,52,52,49,121,44,50,31,33,26,270,88,52,22,16,28,264,86,123,60,137,56,189,67,326,104,90,35,53,22,174,111,615,144,52,31,51,20,19,11,69,52,37,37,257,85,63,44,80,59,112,77,419,111,18,20,194,74,594,152,87,53,77,50,22,11,408,108,585,166]
[null,"Householder 65 years and over:",656,91,265,42,206,63,221,58,270,65,237,77,239,66,2071,230,263,40,569,154,1845,186,244,59,362,60,875,149,1872,187,201,40,132,25,588,123,1594,175,184,44,100,35,83,25,620,111,275,90,514,74,440,92,292,68,653,129,2317,181,580,134,841,193,2640,234,289,68,1116,209,67,19,546,84,1085,190]
[null,"Less than $10,000",0,15,0,15,8,14,0,11,0,11,0,11,0,11,112,76,17,18,14,22,68,47,21,24,18,19,88,79,16,20,6,9,4,6,75,65,87,55,3,5,0,11,5,6,44,29,8,13,11,19,0,11,14,17,12,20,140,66,6,10,83,59,112,57,18,27,23,27,4,5,0,15,24,40]
[null,"$10,000 to $14,999",27,31,16,19,12,18,20,22,20,24,20,33,16,19,234,107,3,4,17,28,212,118,13,19,0,11,38,31,166,70,10,11,0,11,30,34,122,92,0,11,0,11,0,11,47,41,21,25,19,21,11,16,0,11,41,39,198,120,18,15,17,26,181,109,0,15,50,35,6,7,31,35,61,57]
[null,"$15,000 to $19,999",65,50,26,21,7,11,34,30,5,9,11,17,9,14,236,118,28,17,20,32,88,69,3,7,27,24,74,48,109,52,15,15,0,11,62,49,86,46,0,11,3,4,2,4,60,59,20,20,18,20,19,21,8,12,42,69,121,51,120,86,75,81,265,105,0,15,101,100,0,11,34,38,60,58]
[null,"$20,000 to $24,999",60,47,0,15,24,23,0,11,33,42,14,15,0,11,224,121,18,20,99,117,133,76,7,12,19,21,79,72,89,41,5,8,0,11,26,29,68,39,10,15,7,8,3,4,45,47,0,11,15,18,64,37,10,16,14,21,219,80,41,39,45,40,143,71,52,36,116,75,1,2,40,37,82,63]
[null,"$25,000 to $29,999",0,15,16,17,17,18,7,11,16,17,29,30,16,17,98,66,36,19,65,41,133,75,8,12,9,13,36,28,144,85,7,9,8,8,0,15,75,45,2,5,5,7,3,4,76,72,16,19,0,11,23,24,23,21,89,64,107,69,65,54,45,37,198,99,0,15,101,82,3,4,63,46,61,73]
[null,"$30,000 to $34,999",16,26,18,22,34,32,0,11,16,18,10,17,9,14,126,55,18,15,101,99,64,53,22,24,27,24,70,49,103,47,7,8,20,13,33,40,73,47,5,6,4,7,7,8,28,25,8,12,26,23,25,25,0,11,58,48,83,56,38,32,33,41,166,82,9,14,54,42,3,4,0,15,91,75]
[null,"$35,000 to $39,999",38,43,27,25,4,7,0,11,6,11,0,11,22,26,122,49,10,11,21,20,63,47,18,19,0,11,15,17,80,48,4,7,4,5,50,44,81,45,3,4,8,13,8,10,48,32,11,15,32,29,7,13,19,21,43,68,96,67,24,30,34,42,226,108,23,27,85,122,2,4,34,39,65,50]
[null,"$40,000 to $44,999",45,52,17,23,7,12,11,17,7,11,9,16,8,14,123,66,10,13,0,15,53,40,9,13,18,20,51,36,50,41,7,9,0,11,44,41,60,44,6,6,8,8,4,6,13,15,38,26,23,21,34,45,27,24,33,39,135,73,80,80,0,15,146,71,62,38,26,31,3,4,40,40,83,63]
[null,"$45,000 to $49,999",28,33,16,20,0,11,30,26,0,11,48,47,22,17,87,52,6,9,0,15,120,63,13,21,9,13,21,26,132,67,11,13,7,7,48,49,67,41,14,15,12,15,4,6,18,20,57,64,38,25,26,26,15,21,64,47,90,51,10,18,75,90,140,68,25,29,82,73,2,3,0,15,0,17]
[null,"$50,000 to $59,999",55,42,0,15,0,11,34,21,51,33,19,23,24,21,164,73,34,16,73,47,204,92,6,10,28,24,57,40,141,78,11,10,6,8,11,17,166,78,17,16,11,9,7,8,68,36,13,15,44,25,81,66,30,26,12,19,169,67,121,62,72,55,191,75,0,15,141,85,2,4,55,41,42,46]
[null,"$60,000 to $74,999",123,72,25,23,22,19,0,11,35,35,0,11,15,17,158,66,19,15,33,27,84,57,19,21,50,27,88,42,272,83,11,12,18,15,82,62,138,59,19,20,8,7,9,9,37,28,15,18,22,20,19,23,25,23,103,49,304,100,26,31,48,50,213,74,45,42,132,68,16,10,92,55,152,96]
[null,"$75,000 to $99,999",87,57,31,25,26,19,27,23,31,25,50,54,26,22,144,63,27,19,68,49,234,89,67,56,87,33,121,73,214,90,34,17,25,13,65,48,275,92,19,15,13,11,13,10,54,34,34,23,137,64,58,38,28,23,40,39,275,126,19,22,105,111,281,100,19,23,86,49,7,6,47,43,70,56]
[null,"$100,000 to $124,999",99,55,25,21,14,15,14,15,17,18,3,6,38,40,109,67,15,14,29,33,205,83,38,32,26,22,62,37,113,52,13,11,8,8,44,43,106,62,20,14,3,5,7,7,20,21,0,11,21,21,38,31,29,28,67,69,155,64,12,18,70,51,207,114,25,30,11,18,5,6,27,34,89,57]
[null,"$125,000 to $149,999",0,15,17,17,19,18,0,11,16,18,24,33,0,11,46,39,17,14,18,29,109,58,0,11,13,15,20,22,62,40,17,14,6,7,18,28,45,37,13,14,7,8,3,4,9,15,23,20,24,39,16,19,6,11,0,15,65,36,0,17,28,33,67,51,0,15,0,15,5,5,14,23,43,48]
[null,"$150,000 to $199,999",0,15,23,23,8,13,36,53,17,19,0,11,16,18,77,56,5,7,11,17,25,29,0,11,15,16,27,25,102,57,5,8,15,10,0,15,67,49,15,15,3,4,3,5,36,32,11,17,27,17,10,15,53,46,0,15,101,55,0,17,32,37,69,49,0,15,95,86,0,11,34,37,64,51]
[null,"$200,000 or more",13,21,8,12,4,9,8,13,0,11,0,11,18,21,11,12,0,11,0,15,50,44,0,11,16,17,28,28,79,38,38,30,11,9,0,15,78,51,38,24,8,13,5,6,17,20,0,11,57,28,9,14,5,10,35,36,59,39,0,17,79,62,35,25,11,19,13,21,8,7,35,39,98,64]
[]
[]
[]
[]
[]
[]
[]
[]
[]
[]
[]
[]
[]
[]
[null,"B19037. AGE OF HOUSEHOLDER BY HOUSEHOLD INCOME IN THE PAST 12 MONTHS (IN 2009 INFLATION-ADJUSTED DOLLARS)"]
[null,"Universe:  HOUSEHOLDS"]
[null,"Data Set: 2005-2009 American Community Survey 5-Year Estimates"]
[]
[null,null,"Atkinson",null,"Auburn",null,"Brentwood",null,"Candia",null,"Chester",null,"Danville",null,"Deerfield",null,"Derry",null,"East Kingston",null,"Epping",null,"Exeter",null,"Fremont",null,"Greenland",null,"Hampstead",null,"Hampton",null,"Hampton Falls",null,"Kensington",null,"Kingston",null,"Londonderry",null,"New Castle",null,"Newfields",null,"Newington",null,"Newmarket",null,"Newton",null,"North Hampton",null,"Northwood",null,"Nottingham",null,"Plaistow",null,"Portsmouth",null,"Raymond",null,"Rye",null,"Salem",null,"Sandown",null,"Seabrook",null,"South Hampton",null,"Stratham",null,"Windham"]
[null,null,"Estimate","Margin Of Error","Estimate","Margin Of Error","Estimate","Margin Of Error","Estimate","Margin Of Error","Estimate","Margin Of Error","Estimate","Margin Of Error","Estimate","Margin Of Error","Estimate","Margin Of Error","Estimate","Margin Of Error","Estimate","Margin Of Error","Estimate","Margin Of Error","Estimate","Margin Of Error","Estimate","Margin Of Error","Estimate","Margin Of Error","Estimate","Margin Of Error","Estimate","Margin Of Error","Estimate","Margin Of Error","Estimate","Margin Of Error","Estimate","Margin Of Error","Estimate","Margin Of Error","Estimate","Margin Of Error","Estimate","Margin Of Error","Estimate","Margin Of Error","Estimate","Margin Of Error","Estimate","Margin Of Error","Estimate","Margin Of Error","Estimate","Margin Of Error","Estimate","Margin Of Error","Estimate","Margin Of Error","Estimate","Margin Of Error","Estimate","Margin Of Error","Estimate","Margin Of Error","Estimate","Margin Of Error","Estimate","Margin Of Error","Estimate","Margin Of Error","Estimate","Margin Of Error","Estimate","Margin Of Error"]
[null,"Total:",2613,114,1763,97,1017,95,1552,69,1528,81,1451,105,1417,91,12592,332,846,51,2363,137,6202,222,1441,103,1275,88,3376,148,6966,265,819,58,764,55,2302,119,8372,211,372,69,577,66,288,40,4039,185,1656,78,1775,93,1553,101,1590,97,2849,248,9410,326,4043,211,2292,121,10969,289,1892,113,3846,231,321,42,2717,107,4364,175]
[null,"Householder under 25 years:",0,114,0,114,0,114,27,29,0,114,0,114,9,14,551,169,26,21,11,20,160,90,0,114,12,18,90,92,255,134,7,10,11,18,38,41,100,78,11,17,5,7,4,6,371,135,7,11,34,39,35,43,55,73,67,83,528,165,114,68,59,67,147,91,0,114,120,105,0,114,35,39,28,36]
[null,"Less than $10,000",0,114,0,114,0,114,0,114,0,114,0,114,0,114,87,90,0,114,0,114,12,21,0,114,0,114,0,114,38,61,0,114,0,114,0,114,0,114,0,114,0,114,0,114,78,64,0,114,19,30,0,114,0,114,0,114,104,82,0,114,0,114,0,114,0,114,0,114,0,114,18,29,0,114]
[null,"$10,000 to $14,999",0,114,0,114,0,114,0,114,0,114,0,114,0,114,0,114,0,114,0,114,0,114,0,114,0,114,0,114,8,13,0,114,0,114,0,114,0,114,0,114,0,114,0,114,10,18,0,114,0,114,0,114,0,114,49,79,25,23,0,114,0,114,0,114,0,114,18,29,0,114,0,114,0,114]
[null,"$15,000 to $19,999",0,114,0,114,0,114,0,114,0,114,0,114,0,114,45,70,8,12,0,114,22,34,0,114,0,114,0,114,0,114,0,114,0,114,0,114,0,114,0,114,0,114,0,114,31,34,0,114,0,114,0,114,0,114,0,114,0,114,0,114,0,114,0,114,0,114,49,79,0,114,0,114,0,114]
[null,"$20,000 to $24,999",0,114,0,114,0,114,0,114,0,114,0,114,0,114,13,19,0,114,0,114,15,24,0,114,0,114,0,114,0,114,7,10,0,114,0,114,0,114,0,114,0,114,0,114,17,27,0,114,0,114,0,114,0,114,0,114,56,78,0,114,0,114,42,53,0,114,0,114,0,114,0,114,0,114]
[null,"$25,000 to $29,999",0,114,0,114,0,114,0,114,0,114,0,114,9,14,93,96,0,114,0,114,7,13,0,114,0,114,0,114,10,16,0,114,0,114,0,114,14,23,0,114,0,114,0,114,27,29,0,114,0,114,0,114,0,114,0,114,23,27,28,28,0,114,9,15,0,114,0,114,0,114,0,114,0,114]
[null,"$30,000 to $34,999",0,114,0,114,0,114,0,114,0,114,0,114,0,114,23,27,0,114,0,114,13,20,0,114,0,114,0,114,39,65,0,114,0,114,0,114,11,19,0,114,0,114,0,114,30,33,0,114,15,24,0,114,0,114,0,114,22,24,0,114,0,114,0,114,0,114,0,114,0,114,0,114,0,114]
[null,"$35,000 to $39,999",0,114,0,114,0,114,0,114,0,114,0,114,0,114,9,14,0,114,0,114,42,67,0,114,0,114,0,114,70,84,0,114,11,18,0,114,0,114,0,114,5,7,0,114,26,29,0,114,0,114,0,114,0,114,0,114,50,56,0,114,0,114,0,114,0,114,0,114,0,114,0,114,0,114]
[null,"$40,000 to $44,999",0,114,0,114,0,114,0,114,0,114,0,114,0,114,66,77,0,114,0,114,0,114,0,114,0,114,0,114,12,19,0,114,0,114,0,114,12,18,0,114,0,114,0,114,0,114,0,114,0,114,12,19,0,114,0,114,56,71,40,52,0,114,64,72,0,114,38,59,0,114,0,114,0,114]
[null,"$45,000 to $49,999",0,114,0,114,0,114,0,114,0,114,0,114,0,114,8,14,0,114,0,114,0,114,0,114,0,114,80,91,57,63,0,114,0,114,0,114,22,38,0,114,0,114,0,114,8,13,0,114,0,114,0,114,0,114,0,114,59,54,14,19,14,25,16,26,0,114,0,114,0,114,0,114,0,114]
[null,"$50,000 to $59,999",0,114,0,114,0,114,0,114,0,114,0,114,0,114,54,42,9,12,11,20,36,40,0,114,12,18,10,15,0,114,0,114,0,114,0,114,0,114,0,114,0,114,0,114,24,24,0,114,0,114,0,114,0,114,0,114,0,114,0,114,0,114,16,25,0,114,15,24,0,114,0,114,0,114]
[null,"$60,000 to $74,999",0,114,0,114,0,114,14,22,0,114,0,114,0,114,36,34,9,14,0,114,13,22,0,114,0,114,0,114,7,13,0,114,0,114,23,36,41,65,0,114,0,114,0,114,91,77,7,11,0,114,23,38,0,114,18,28,54,51,18,26,45,63,0,114,0,114,0,114,0,114,0,114,10,16]
[null,"$75,000 to $99,999",0,114,0,114,0,114,13,19,0,114,0,114,0,114,56,72,0,114,0,114,0,114,0,114,0,114,0,114,0,114,0,114,0,114,0,114,0,114,0,114,0,114,4,6,0,114,0,114,0,114,0,114,9,15,0,114,37,57,0,114,0,114,0,114,0,114,0,114,0,114,17,27,0,114]
[null,"$100,000 to $124,999",0,114,0,114,0,114,0,114,0,114,0,114,0,114,61,59,0,114,0,114,0,114,0,114,0,114,0,114,0,114,0,114,0,114,0,114,0,114,0,114,0,114,0,114,29,47,0,114,0,114,0,114,46,71,0,114,42,53,8,14,0,114,0,114,0,114,0,114,0,114,0,114,18,32]
[null,"$125,000 to $149,999",0,114,0,114,0,114,0,114,0,114,0,114,0,114,0,114,0,114,0,114,0,114,0,114,0,114,0,114,14,21,0,114,0,114,15,22,0,114,0,114,0,114,0,114,0,114,0,114,0,114,0,114,0,114,0,114,0,114,6,10,0,114,0,114,0,114,0,114,0,114,0,114,0,114]
[null,"$150,000 to $199,999",0,114,0,114,0,114,0,114,0,114,0,114,0,114,0,114,0,114,0,114,0,114,0,114,0,114,0,114,0,114,0,114,0,114,0,114,0,114,0,114,0,114,0,114,0,114,0,114,0,114,0,114,0,114,0,114,0,114,0,114,0,114,0,114,0,114,0,114,0,114,0,114,0,114]
[null,"$200,000 or more",0,114,0,114,0,114,0,114,0,114,0,114,0,114,0,114,0,114,0,114,0,114,0,114,0,114,0,114,0,114,0,114,0,114,0,114,0,114,11,17,0,114,0,114,0,114,0,114,0,114,0,114,0,114,0,114,0,114,0,114,0,114,0,114,0,114,0,114,0,114,0,114,0,114]
[null,"Householder 25 to 44 years:",637,106,670,104,388,40,404,95,537,79,547,81,433,75,5017,288,233,28,779,122,1771,217,643,76,494,82,972,124,2012,229,206,33,224,53,650,107,3288,220,33,18,185,52,40,18,1636,190,672,97,566,90,535,82,712,91,791,161,3888,252,1473,157,434,110,3741,237,778,89,1080,193,99,35,937,148,1559,117]
[null,"Less than $10,000",0,114,10,16,11,9,12,19,0,114,0,114,20,23,26,30,17,14,31,38,130,105,9,15,10,16,0,114,63,64,0,114,0,114,0,114,27,35,0,114,0,114,0,114,28,38,0,114,0,114,11,17,0,114,0,114,263,128,87,70,0,114,53,42,12,19,20,38,0,114,0,114,0,114]
[null,"$10,000 to $14,999",0,114,0,114,10,16,0,114,0,114,0,114,0,114,97,73,10,12,0,114,0,114,0,114,0,114,0,114,103,88,10,16,0,114,35,55,15,24,0,114,0,114,3,6,57,61,13,20,0,114,0,114,0,114,0,114,71,42,0,114,18,28,40,37,0,114,26,39,0,114,0,114,10,16]
[null,"$15,000 to $19,999",0,114,0,114,0,114,0,114,0,114,0,114,0,114,47,44,0,114,29,33,15,23,14,22,12,18,0,114,71,76,0,114,4,5,15,24,0,114,0,114,0,114,0,114,36,39,0,114,0,114,0,114,0,114,51,63,70,56,45,70,0,114,25,38,11,14,109,90,0,114,34,49,0,114]
[null,"$20,000 to $24,999",0,114,55,68,0,114,0,114,13,20,0,114,0,114,136,100,4,6,0,114,66,73,0,114,0,114,73,76,68,78,0,114,7,6,0,114,19,32,0,114,4,6,0,114,62,49,33,51,0,114,4,10,0,114,41,62,47,52,28,30,16,26,82,80,12,18,29,32,0,114,0,114,21,31]
[null,"$25,000 to $29,999",0,114,11,16,4,6,0,114,0,114,30,45,0,114,174,100,0,114,37,52,59,42,29,31,30,46,0,114,48,62,9,14,21,19,10,18,110,90,0,114,0,114,7,8,69,56,32,51,19,22,0,114,0,114,0,114,65,41,0,114,0,114,44,43,14,20,63,52,5,6,0,114,11,17]
[null,"$30,000 to $34,999",0,114,22,29,0,114,0,114,0,114,9,15,10,16,187,97,0,114,32,35,102,77,16,21,0,114,72,85,202,118,0,114,13,10,0,114,77,61,0,114,3,5,0,114,12,18,8,15,13,20,36,45,20,31,0,114,134,67,62,61,39,39,93,59,36,44,29,33,3,5,9,14,45,55]
[null,"$35,000 to $39,999",0,114,0,114,20,23,0,114,0,114,36,36,0,114,249,120,0,114,8,15,41,38,18,21,11,16,13,22,67,69,0,114,3,5,44,48,154,125,5,8,0,114,0,114,111,85,0,114,0,114,51,53,33,35,44,46,68,41,36,35,15,23,155,115,26,42,45,66,0,114,16,26,36,54]
[null,"$40,000 to $44,999",0,114,14,24,0,114,36,48,0,114,0,114,24,36,235,120,0,114,11,17,96,60,20,23,21,24,7,12,35,33,0,114,0,114,8,16,114,65,0,114,4,6,0,114,67,56,13,20,23,27,8,13,33,36,0,114,172,80,130,109,0,114,219,130,0,114,120,89,4,5,0,114,10,16]
[null,"$45,000 to $49,999",21,34,12,20,0,114,0,114,0,114,29,22,8,13,222,77,7,8,34,37,32,35,25,27,11,17,21,34,85,73,7,8,3,4,20,25,84,77,0,114,3,6,0,114,42,39,0,114,9,13,68,56,10,15,18,30,234,117,70,57,14,21,142,83,8,13,46,42,0,114,17,28,47,41]
[null,"$50,000 to $59,999",33,36,60,47,9,11,12,19,32,33,42,49,8,13,404,176,4,6,32,37,165,133,49,39,12,18,69,55,79,48,6,6,13,9,45,66,140,81,0,114,7,9,11,10,105,70,0,114,54,40,17,18,74,48,54,44,354,121,226,111,15,24,357,147,63,45,174,99,6,6,0,114,44,41]
[null,"$60,000 to $74,999",137,97,71,55,29,26,52,37,63,45,52,30,88,46,557,175,14,10,125,68,202,98,57,43,117,77,142,89,221,103,7,7,23,20,68,44,488,171,0,114,7,8,8,9,239,142,24,26,76,61,108,64,72,39,96,65,561,148,170,73,37,42,556,183,75,53,132,93,27,30,96,55,164,74]
[null,"$75,000 to $99,999",99,72,144,68,72,31,68,46,110,54,70,49,133,67,1111,224,28,17,178,85,269,85,248,69,36,31,157,57,322,142,15,10,16,11,181,80,447,121,4,8,21,20,8,10,260,120,135,53,135,72,116,59,161,81,207,124,643,157,416,134,33,34,782,176,236,81,122,73,10,8,165,84,175,68]
[null,"$100,000 to $124,999",188,75,89,50,41,22,99,47,181,72,180,63,46,40,671,167,54,20,143,66,220,110,72,50,53,55,131,57,320,147,37,16,21,12,149,79,589,194,0,114,25,21,0,114,241,91,182,73,42,32,89,40,154,74,88,57,450,136,112,64,91,68,459,175,99,56,89,70,10,8,236,91,246,90]
[null,"$125,000 to $149,999",96,56,120,71,60,31,48,40,46,38,72,46,68,48,404,120,33,16,76,53,176,90,39,34,36,29,100,56,148,76,26,19,25,14,14,22,428,140,5,7,24,15,0,114,169,72,155,58,73,64,15,16,111,87,77,52,290,131,41,36,40,29,362,158,47,36,50,39,3,4,71,45,173,76]
[null,"$150,000 to $199,999",47,42,49,40,83,30,66,56,32,29,0,114,28,29,301,106,28,21,19,23,78,75,47,40,73,41,31,31,64,51,43,25,62,43,35,31,311,127,3,5,39,24,0,114,87,77,53,35,47,38,12,19,31,32,86,56,234,100,31,31,31,34,241,102,95,56,14,22,29,19,195,80,342,117]
[null,"$200,000 or more",16,25,13,21,49,30,11,18,60,47,27,25,0,114,196,124,34,17,24,38,120,73,0,114,72,52,156,89,116,72,46,19,13,11,26,29,285,129,16,18,48,28,3,5,51,59,24,26,75,43,0,114,13,21,29,33,232,90,19,24,85,59,131,80,44,48,12,21,2,3,98,65,235,92]
[null,"Householder 45 to 64 years:",1273,153,909,110,514,62,833,90,846,104,708,79,776,72,5407,326,422,53,1132,162,2385,210,631,82,557,84,1659,189,3115,316,443,50,422,45,1182,162,3885,271,160,49,318,57,161,37,1436,171,775,101,748,96,713,105,598,114,1417,167,3155,261,1906,192,1108,127,4833,290,934,98,1601,218,136,26,1306,143,2120,180]
[null,"Less than $10,000",0,114,22,26,19,19,35,31,12,19,0,114,11,16,257,125,4,5,75,82,65,46,0,114,10,15,0,114,81,46,20,19,8,6,37,44,70,70,0,114,8,11,0,114,36,38,0,114,6,10,0,114,0,114,30,35,185,90,118,85,17,27,74,49,16,16,31,37,8,6,25,31,25,29]
[null,"$10,000 to $14,999",17,27,27,35,0,114,9,15,0,114,20,24,0,114,154,101,3,5,26,32,61,49,7,13,0,114,43,68,68,63,7,7,0,114,0,114,94,75,9,13,4,6,0,114,16,24,11,18,20,21,0,114,0,114,15,24,23,28,54,39,16,25,78,47,9,14,0,114,0,114,0,114,0,114]
[null,"$15,000 to $19,999",36,27,15,24,0,114,0,114,0,114,10,16,0,114,127,88,14,14,11,17,37,34,10,15,0,114,13,20,26,27,0,114,3,6,0,114,63,63,0,114,0,114,4,7,22,28,33,51,5,9,23,37,8,12,24,27,76,60,53,56,12,18,116,56,34,38,128,95,6,7,13,21,31,49]
[null,"$20,000 to $24,999",85,105,40,60,6,9,8,14,0,114,0,114,19,22,138,68,12,15,67,57,119,88,0,114,10,15,41,65,114,62,10,11,2,5,16,25,14,23,3,5,10,15,13,20,48,33,0,114,8,12,16,21,12,18,28,31,100,57,81,63,20,24,76,53,16,18,105,84,9,8,15,26,29,28]
[null,"$25,000 to $29,999",12,19,8,13,15,14,16,26,18,20,31,26,22,25,242,133,0,114,41,66,58,48,0,114,0,114,40,37,59,41,0,114,14,15,0,114,141,89,19,22,30,27,3,5,57,56,4,7,19,22,21,23,0,114,0,114,175,69,49,39,12,20,112,76,24,22,55,68,0,114,44,41,9,14]
[null,"$30,000 to $34,999",43,40,17,22,6,9,20,23,39,40,0,114,62,55,248,119,5,7,43,40,122,91,45,52,28,27,70,72,73,49,3,4,19,14,49,46,70,50,3,5,0,114,0,114,114,106,27,27,12,19,23,25,0,114,35,36,109,54,69,62,22,35,219,100,7,11,57,48,0,114,14,23,24,23]
[null,"$35,000 to $39,999",10,18,63,54,35,29,22,25,9,15,42,39,19,22,145,70,16,15,13,19,100,53,9,14,13,19,0,114,206,105,12,12,7,8,46,41,127,71,9,16,9,10,6,8,74,64,12,18,34,31,15,17,0,114,68,50,59,37,82,48,27,39,160,87,22,25,41,48,7,7,22,27,56,43]
[null,"$40,000 to $44,999",41,55,0,114,5,9,0,114,19,22,9,15,38,48,265,132,22,16,25,30,82,52,19,22,18,21,84,82,83,46,3,4,9,9,69,53,77,47,2,5,7,9,0,114,24,27,42,35,20,21,37,36,6,10,16,26,146,92,58,54,90,86,228,109,8,12,99,81,2,4,0,114,37,26]
[null,"$45,000 to $49,999",10,16,32,25,18,16,22,20,0,114,0,114,33,29,203,103,7,6,57,45,102,72,7,12,29,30,12,19,72,49,7,7,12,14,70,53,122,64,16,19,8,8,4,6,91,68,43,29,19,22,30,24,0,114,19,22,62,44,128,79,25,28,186,97,52,37,58,49,0,114,0,114,23,28]
[null,"$50,000 to $59,999",66,46,11,19,5,7,20,23,31,27,56,54,18,21,360,125,6,6,106,81,150,74,63,46,63,38,98,77,360,123,12,10,28,19,94,62,223,90,15,11,14,9,0,114,113,53,41,37,96,72,65,40,36,39,139,79,213,101,282,115,51,41,345,129,34,29,110,69,3,4,47,45,99,57]
[null,"$60,000 to $74,999",155,108,72,43,29,21,103,51,63,41,143,81,127,57,389,125,55,25,223,101,215,85,90,46,68,38,209,82,394,124,31,16,43,23,218,111,280,95,13,21,17,12,23,14,119,68,67,35,76,45,175,71,80,40,229,120,422,137,234,99,120,86,410,128,97,61,260,123,15,11,146,90,154,75]
[null,"$75,000 to $99,999",108,57,133,59,86,42,148,81,296,87,109,63,95,48,1009,210,86,31,113,70,212,85,119,73,57,32,326,106,579,132,48,21,84,23,208,83,683,134,17,12,44,20,45,28,309,88,238,83,72,34,143,70,80,46,243,102,498,129,223,82,134,65,916,199,209,80,292,127,20,12,278,107,316,122]
[null,"$100,000 to $124,999",160,66,160,66,110,45,166,67,135,57,111,53,72,44,676,174,49,24,138,92,441,136,129,54,62,38,188,74,342,126,103,42,57,23,150,65,643,154,16,17,36,19,15,11,169,65,146,75,95,49,114,59,168,56,196,100,437,125,246,111,129,58,596,127,152,65,222,119,29,18,203,99,309,91]
[null,"$125,000 to $149,999",111,62,118,52,57,28,99,50,51,40,67,43,151,73,622,135,47,20,90,62,255,101,69,39,76,52,148,75,141,64,32,16,58,24,56,52,479,138,30,26,30,14,19,11,112,55,66,51,61,36,9,14,70,36,218,115,268,89,129,67,101,55,421,139,91,41,58,49,9,9,122,60,333,100]
[null,"$150,000 to $199,999",176,65,140,64,67,38,120,60,81,45,88,45,70,54,406,127,48,18,66,55,207,82,54,34,46,30,242,85,279,94,83,28,48,23,140,68,469,107,6,7,52,19,18,13,94,57,45,35,100,57,35,33,95,74,78,51,215,109,79,42,190,105,580,148,80,53,19,31,21,12,118,55,362,105]
[null,"$200,000 or more",243,89,51,31,56,32,45,34,92,60,22,25,39,31,166,94,48,28,38,36,159,78,10,15,77,41,145,101,238,95,72,24,30,15,29,42,330,115,2,5,49,25,11,11,38,29,0,114,105,50,7,12,43,37,79,49,167,78,21,23,142,53,316,113,83,71,66,96,7,6,259,91,313,86]
[null,"Householder 65 years and over:",703,146,184,53,115,30,288,60,145,38,196,69,199,68,1617,205,165,27,441,140,1886,198,167,47,212,41,655,109,1584,171,163,28,107,26,432,92,1099,150,168,52,69,20,83,25,596,113,202,76,427,81,270,57,225,38,574,125,1839,195,550,104,691,107,2248,209,180,55,1045,156,86,25,439,76,657,101]
[null,"Less than $10,000",67,51,0,114,0,114,10,16,0,114,8,14,0,114,131,91,23,19,0,114,71,75,0,114,8,13,10,15,161,63,0,114,0,114,30,35,49,40,8,13,2,5,6,7,24,27,52,53,51,50,10,16,0,114,24,27,125,59,71,64,57,49,135,65,11,17,34,31,0,114,0,114,33,51]
[null,"$10,000 to $14,999",96,104,0,114,0,114,0,114,0,114,0,114,26,41,109,55,6,6,0,114,112,70,16,24,0,114,107,75,96,54,3,4,12,10,0,114,28,31,6,7,0,114,0,114,63,45,0,114,12,19,18,21,11,16,36,51,169,64,40,39,12,21,225,94,13,25,102,61,7,7,9,15,60,30]
[null,"$15,000 to $19,999",75,54,12,19,0,114,0,114,0,114,41,28,8,13,172,81,2,5,27,33,199,93,45,39,0,114,46,41,86,49,24,11,0,114,36,41,26,30,10,10,10,10,5,6,35,29,22,23,26,27,35,26,9,16,13,22,238,90,83,52,29,31,268,101,10,16,181,98,5,6,16,25,42,44]
[null,"$20,000 to $24,999",49,43,21,23,0,114,40,30,7,11,12,18,18,20,228,107,20,15,13,21,229,110,0,114,9,14,49,39,107,63,5,6,2,4,127,89,130,89,21,21,7,6,8,8,42,34,21,23,26,30,38,31,48,28,119,98,80,45,80,49,37,35,144,65,0,114,106,66,0,114,28,32,56,50]
[null,"$25,000 to $29,999",32,37,19,27,13,13,18,19,20,24,30,31,23,38,83,53,2,3,39,35,161,91,0,114,9,14,28,32,124,72,9,9,12,9,31,35,90,60,3,5,3,4,3,4,24,32,36,46,24,26,10,15,10,17,57,41,92,52,38,36,39,36,106,67,12,20,82,60,9,8,15,25,40,37]
[null,"$30,000 to $34,999",46,40,38,29,15,22,26,25,0,114,20,17,0,114,125,61,6,7,93,88,74,46,0,114,9,13,86,58,140,63,0,114,8,7,41,47,109,81,3,5,5,5,3,5,10,15,0,114,25,29,0,114,10,16,0,114,80,53,46,36,27,31,259,113,26,34,47,35,7,7,61,45,63,32]
[null,"$35,000 to $39,999",75,52,9,14,0,114,31,26,20,23,18,20,17,18,87,69,6,6,0,114,84,45,0,114,7,11,14,24,68,49,14,13,0,114,12,19,28,30,18,19,0,114,0,114,13,20,40,38,0,114,11,17,20,21,53,43,175,77,17,29,27,31,112,56,21,25,10,17,27,29,17,27,22,26]
[null,"$40,000 to $44,999",0,114,15,18,0,114,36,35,0,114,10,16,14,18,141,70,12,14,76,77,145,87,0,114,20,23,34,38,98,60,6,6,5,6,20,32,121,62,3,5,3,5,3,5,107,89,0,114,11,19,0,114,26,27,23,27,112,58,61,46,13,21,101,45,22,23,81,55,0,114,26,29,49,49]
[null,"$45,000 to $49,999",57,47,0,114,5,9,7,11,26,23,20,23,17,19,86,53,8,12,0,114,108,76,0,114,8,12,16,26,47,36,5,6,14,9,39,41,17,20,4,6,3,4,7,9,24,28,0,114,11,17,24,24,0,114,0,114,161,75,22,24,111,79,104,46,0,114,89,76,0,114,0,114,28,21]
[null,"$50,000 to $59,999",26,31,13,19,13,12,30,32,31,23,20,23,10,15,57,47,3,4,13,20,108,56,42,34,0,114,108,80,204,86,6,6,10,8,23,34,88,53,12,19,9,8,6,7,36,28,20,23,38,36,41,33,12,17,30,26,154,69,0,114,39,35,207,87,9,15,82,57,0,114,40,36,38,29]
[null,"$60,000 to $74,999",29,32,13,15,10,10,13,16,18,19,9,14,26,22,123,88,18,12,40,36,159,73,9,15,56,36,60,44,160,91,24,20,10,7,37,40,131,70,3,6,7,8,8,8,47,27,0,114,100,49,9,13,10,15,71,50,163,63,20,29,59,48,189,75,36,49,90,52,2,4,16,26,28,25]
[null,"$75,000 to $99,999",33,34,10,17,14,12,29,26,0,114,0,114,7,11,188,83,24,17,58,40,271,92,25,28,42,25,58,51,143,67,10,9,10,8,36,39,106,57,22,21,13,11,18,15,80,52,11,19,48,37,37,44,29,27,67,43,92,48,72,48,94,72,143,70,0,114,65,71,13,9,54,43,59,41]
[null,"$100,000 to $124,999",51,41,11,17,10,12,26,28,0,114,0,114,9,13,28,31,18,13,36,57,61,41,30,32,9,14,39,38,69,47,22,12,5,7,0,114,84,56,17,16,3,4,11,8,20,17,0,114,0,114,29,27,16,18,71,43,83,47,0,114,49,44,121,66,20,32,9,15,4,5,79,50,32,32]
[null,"$125,000 to $149,999",22,27,16,19,4,8,6,10,8,12,8,11,8,14,0,114,0,114,0,114,19,20,0,114,8,12,0,114,44,39,10,10,10,6,0,114,60,49,16,20,0,114,3,4,16,19,0,114,24,26,8,13,24,26,0,114,56,42,0,114,43,37,36,33,0,114,44,42,3,4,29,33,38,29]
[null,"$150,000 to $199,999",15,24,0,114,8,10,0,114,0,114,0,114,7,12,41,37,14,12,27,31,19,23,0,114,11,16,0,114,29,30,11,10,0,114,0,114,14,22,3,6,0,114,2,3,20,22,0,114,17,19,0,114,0,114,10,17,10,16,0,114,28,31,30,33,0,114,0,114,6,6,38,49,51,37]
[null,"$200,000 or more",30,33,7,13,23,16,16,20,15,18,0,114,9,15,18,20,3,4,19,30,66,43,0,114,16,17,0,114,8,15,14,10,9,8,0,114,18,27,19,20,4,6,0,114,35,31,0,114,14,21,0,114,0,114,0,114,49,60,0,114,27,30,68,46,0,114,23,37,3,4,11,17,18,21]

{"sheet":"DisabilityByAge","index":29,"n_rows":72,"n_cols":15,"rows_kept":72,"cut":false,"hidden":true,"merged":[[28,11,28,12],[28,13,28,14],[51,3,51,4],[51,5,51,6],[51,7,51,8],[51,9,51,10],[51,11,51,12],[51,13,51,14],[28,3,28,4],[28,5,28,6],[28,7,28,8],[28,9,28,10]]}
[]
[]
[]
[]
[null,{"$f":"CntyDataLink!A20","v":"Atkinson"}]
[null,"SOCIAL CHARACTERISTICS"]
[]
[null,"Disabilities By Age"]
[null,null,"Universe: Civilian Non-institutionalized Population"]
[]
[]
[]
[]
[]
[]
[]
[]
[]
[]
[]
[]
[]
[]
[]
[]
[]
[]
[]
[null,null,null,"Under 5",null,"5 to 17 years",null,"18 to 34 years",null,"35 to 64 years",null,"65 to 74 years",null,"75 years and older"]
[null,null,null,"Estimate","Margin of Error","Estimate","Margin of Error","Estimate","Margin of Error","Estimate","Margin of Error","Estimate","Margin of Error","Estimate","Margin of Error"]
[null,"Total ",null,{"$f":"CntyDataLink!D112","v":275},{"$f":"CntyDataLink!E112","v":133.843191832831},{"$f":"CntyDataLink!J112","v":1110},{"$f":"CntyDataLink!K112","v":282.33490751233722},{"$f":"CntyDataLink!P112","v":1015},{"$f":"CntyDataLink!Q112","v":226.99118925632334},{"$f":"CntyDataLink!V112","v":3177},{"$f":"CntyDataLink!W112","v":191.637678967368},{"$f":"CntyDataLink!AB112","v":902},{"$f":"CntyDataLink!AC112","v":189.61276328348785},{"$f":"CntyDataLink!AH112","v":473},{"$f":"CntyDataLink!AI112","v":114.20157617125956}]
[]
[null,"With a disability:",null,{"$f":"CntyDataLink!F112","v":0},{"$f":"CntyDataLink!G112","v":22.627416997969522},{"$f":"CntyDataLink!L112","v":144},{"$f":"CntyDataLink!M112","v":111.83022847155415},{"$f":"CntyDataLink!R112","v":15},{"$f":"CntyDataLink!S112","v":28.844410203711913},{"$f":"CntyDataLink!X112","v":347},{"$f":"CntyDataLink!Y112","v":137.05838172107534},{"$f":"CntyDataLink!AD112","v":130},{"$f":"CntyDataLink!AE112","v":103.94229168149026},{"$f":"CntyDataLink!AJ112","v":212},{"$f":"CntyDataLink!AK112","v":83.546394296821688}]
[]
[]
[]
[null,"Type of disability"]
[null,null,"Hearing disability",{"$f":"CntyDataLink!AN112","v":0},{"$f":"CntyDataLink!AO112","v":22.627416997969522},{"$f":"CntyDataLink!AP112","v":0},{"$f":"CntyDataLink!AQ112","v":22.627416997969522},{"$f":"CntyDataLink!AR112","v":0},{"$f":"CntyDataLink!AS112","v":22.627416997969522},{"$f":"CntyDataLink!AT112","v":97},{"$f":"CntyDataLink!AU112","v":80.498447189992433},{"$f":"CntyDataLink!AV112","v":12},{"$f":"CntyDataLink!AW112","v":24.839484696748443},{"$f":"CntyDataLink!AX112","v":144},{"$f":"CntyDataLink!AY112","v":66.528189513919585}]
[null,null,"Visual disability",{"$f":"CntyDataLink!AZ112","v":0},{"$f":"CntyDataLink!BA112","v":22.627416997969522},{"$f":"CntyDataLink!BB112","v":0},{"$f":"CntyDataLink!BC112","v":22.627416997969522},{"$f":"CntyDataLink!BD112","v":0},{"$f":"CntyDataLink!BE112","v":22.627416997969522},{"$f":"CntyDataLink!BF112","v":98},{"$f":"CntyDataLink!BG112","v":81.835200250259064},{"$f":"CntyDataLink!BH112","v":13},{"$f":"CntyDataLink!BI112","v":25.612496949731394},{"$f":"CntyDataLink!BJ112","v":63},{"$f":"CntyDataLink!BK112","v":48.301138702933287}]
[null,null,"Cognitive disability","NA","NA",{"$f":"CntyDataLink!BL112","v":144},{"$f":"CntyDataLink!BM112","v":111.83022847155415},{"$f":"CntyDataLink!BN112","v":15},{"$f":"CntyDataLink!BO112","v":28.844410203711913},{"$f":"CntyDataLink!BP112","v":64},{"$f":"CntyDataLink!BQ112","v":57.454329688892898},{"$f":"CntyDataLink!BR112","v":13},{"$f":"CntyDataLink!BS112","v":25.612496949731394},{"$f":"CntyDataLink!BT112","v":25},{"$f":"CntyDataLink!BU112","v":29.068883707497267}]
[null,null,"Ambulatory disability","NA","NA",{"$f":"CntyDataLink!BV112","v":0},{"$f":"CntyDataLink!BW112","v":22.627416997969522},{"$f":"CntyDataLink!BX112","v":0},{"$f":"CntyDataLink!BY112","v":22.627416997969522},{"$f":"CntyDataLink!BZ112","v":130},{"$f":"CntyDataLink!CA112","v":78.10249675906654},{"$f":"CntyDataLink!CB112","v":118},{"$f":"CntyDataLink!CC112","v":101.9803902718557},{"$f":"CntyDataLink!CD112","v":53},{"$f":"CntyDataLink!CE112","v":43.931765272977593}]
[null,null,"Self-care disability","NA","NA",{"$f":"CntyDataLink!CF112","v":18},{"$f":"CntyDataLink!CG112","v":33.120990323358392},{"$f":"CntyDataLink!CH112","v":0},{"$f":"CntyDataLink!CI112","v":22.627416997969522},{"$f":"CntyDataLink!CJ112","v":0},{"$f":"CntyDataLink!CK112","v":22.627416997969522},{"$f":"CntyDataLink!CL112","v":13},{"$f":"CntyDataLink!CM112","v":25.612496949731394},{"$f":"CntyDataLink!CN112","v":13},{"$f":"CntyDataLink!CO112","v":27.202941017470888}]
[null,null,"Independent living disability","NA","NA","NA","NA",{"$f":"CntyDataLink!CP112","v":0},{"$f":"CntyDataLink!CQ112","v":22.627416997969522},{"$f":"CntyDataLink!CR112","v":43},{"$f":"CntyDataLink!CS112","v":50.596442562694072},{"$f":"CntyDataLink!CT112","v":0},{"$f":"CntyDataLink!CU112","v":22.627416997969522},{"$f":"CntyDataLink!CV112","v":67},{"$f":"CntyDataLink!CW112","v":48.836461788299118}]
[]
[]
[]
[null,"No disability",null,{"$f":"CntyDataLink!H112","v":275},{"$f":"CntyDataLink!I112","v":133.843191832831},{"$f":"CntyDataLink!N112","v":966},{"$f":"CntyDataLink!O112","v":274.41574298862668},{"$f":"CntyDataLink!T112","v":1000},{"$f":"CntyDataLink!U112","v":229.8107917396396},{"$f":"CntyDataLink!Z112","v":2830},{"$f":"CntyDataLink!AA112","v":210.76052761368766},{"$f":"CntyDataLink!AF112","v":772},{"$f":"CntyDataLink!AG112","v":164.10362579784763},{"$f":"CntyDataLink!AL112","v":261},{"$f":"CntyDataLink!AM112","v":100.12492197250393}]
[null,"Source: 2015-2019 American Community Survey Tables B18101;  B18102; B18103; B18104; B18105; B18106; and B18107"]
[null,"NA indicates that the American Community Survey does not calculate the number for that disability."]
[null,"Percent of Population with Disabilities"]
[]
[null,null,null,"Under 5",null,"5 to 17 years",null,"18 to 34 years",null,"35 to 64 years",null,"65 to 74 years",null,"75 years and older"]
[]
[null,"With a disability:",null,{"$f":"D33/D$31","v":0},null,{"$f":"F33/F$31","v":0.12972972972972974},null,{"$f":"H33/H$31","v":1.4778325123152709E-2},null,{"$f":"J33/J$31","v":0.10922253698457665},null,{"$f":"L33/L$31","v":0.14412416851441243},null,{"$f":"N33/N$31","v":0.44820295983086683}]
[]
[null,"Type of disability"]
[null,null,"Hearing disability",{"$f":"D38/D$31","v":0},null,{"$f":"F38/F$31","v":0},null,{"$f":"H38/H$31","v":0},null,{"$f":"J38/J$31","v":3.0531948378973876E-2},null,{"$f":"L38/L$31","v":1.3303769401330377E-2},null,{"$f":"N38/N$31","v":0.30443974630021142}]
[null,null,"Visual disability",{"$f":"D39/D$31","v":0},null,{"$f":"F39/F$31","v":0},null,0,null,3.0846710733396284E-2,null,1.4412416851441241E-2,null,0.1331923890063425]
[null,null,"Cognitive disability","NA",null,{"$f":"F40/F$31","v":0.12972972972972974},null,1.4778325123152709E-2,null,2.0144790683034309E-2,null,1.4412416851441241E-2,null,5.2854122621564484E-2]
[null,null,"Ambulatory disability","NA",null,{"$f":"F41/F$31","v":0},null,0,null,4.091910607491344E-2,null,0.13082039911308205,null,0.11205073995771671]
[null,null,"Self-care disability","NA",null,{"$f":"F42/F$31","v":1.6216216216216217E-2},null,0,null,0,null,1.4412416851441241E-2,null,2.748414376321353E-2]
[null,null,"Independent living disability","NA",null,"NA",null,0,null,1.3534781240163676E-2,null,0,null,0.14164904862579281]
[]
[]
[]
[null,"No disability",null,{"$f":"D47/D$31","v":1},null,{"$f":"F47/F$31","v":0.87027027027027026},null,{"$f":"H47/H$31","v":0.98522167487684731},null,{"$f":"J47/J$31","v":0.89077746301542338},null,{"$f":"L47/L$31","v":0.85587583148558755},null,{"$f":"N47/N$31","v":0.55179704016913322}]
[]
[]
[null,"Source: 2015-2019 American Community Survey Tables B18101;  B18102; B18103; B18104; B18105; B18106; and B18107"]
[null,"NA indicates that the American Community Survey does not calculate the number for that disability."]
[]
[null,"Data from the American Community Survey are estimates."]

{"sheet":"DisabilityByAgePrior5YearEst","index":30,"n_rows":72,"n_cols":15,"rows_kept":72,"cut":false,"hidden":true,"merged":[[51,13,51,14],[28,3,28,4],[28,5,28,6],[28,7,28,8],[28,9,28,10],[28,11,28,12],[28,13,28,14],[51,3,51,4],[51,5,51,6],[51,7,51,8],[51,9,51,10],[51,11,51,12]]}
[]
[]
[]
[]
[null,{"$f":"CntyDataLink!A20","v":"Atkinson"}]
[null,"SOCIAL CHARACTERISTICS"]
[]
[null,"Disabilities By Age"]
[null,null,"Universe: Civilian Non-institutionalized Population"]
[]
[]
[]
[]
[]
[]
[]
[]
[]
[]
[]
[]
[]
[]
[]
[]
[]
[]
[]
[null,null,null,"Under 5",null,"5 to 17 years",null,"18 to 34 years",null,"35 to 64 years",null,"65 to 74 years",null,"75 years and older"]
[null,null,null,"Estimate","Margin of Error","Estimate","Margin of Error","Estimate","Margin of Error","Estimate","Margin of Error","Estimate","Margin of Error","Estimate","Margin of Error"]
[null,"Total ",null,{"$f":"CntyDataLinkPrior5YearEstimates!D112","v":211},{"$f":"CntyDataLinkPrior5YearEstimates!E112","v":120.90492132250036},{"$f":"CntyDataLinkPrior5YearEstimates!J112","v":1220},{"$f":"CntyDataLinkPrior5YearEstimates!K112","v":209.34660255184463},{"$f":"CntyDataLinkPrior5YearEstimates!P112","v":981},{"$f":"CntyDataLinkPrior5YearEstimates!Q112","v":199.42417105255822},{"$f":"CntyDataLinkPrior5YearEstimates!V112","v":3245},{"$f":"CntyDataLinkPrior5YearEstimates!W112","v":188.09572031282372},{"$f":"CntyDataLinkPrior5YearEstimates!AB112","v":622},{"$f":"CntyDataLinkPrior5YearEstimates!AC112","v":142.43595051811886},{"$f":"CntyDataLinkPrior5YearEstimates!AH112","v":509},{"$f":"CntyDataLinkPrior5YearEstimates!AI112","v":126.73200069437868}]
[]
[null,"With a disability:",null,{"$f":"CntyDataLinkPrior5YearEstimates!F112","v":0},{"$f":"CntyDataLinkPrior5YearEstimates!G112","v":21.213203435596427},{"$f":"CntyDataLinkPrior5YearEstimates!L112","v":0},{"$f":"CntyDataLinkPrior5YearEstimates!M112","v":21.213203435596427},{"$f":"CntyDataLinkPrior5YearEstimates!R112","v":0},{"$f":"CntyDataLinkPrior5YearEstimates!S112","v":21.213203435596427},{"$f":"CntyDataLinkPrior5YearEstimates!X112","v":249},{"$f":"CntyDataLinkPrior5YearEstimates!Y112","v":96.896852374058057},{"$f":"CntyDataLinkPrior5YearEstimates!AD112","v":172},{"$f":"CntyDataLinkPrior5YearEstimates!AE112","v":97.082439194738001},{"$f":"CntyDataLinkPrior5YearEstimates!AJ112","v":133},{"$f":"CntyDataLinkPrior5YearEstimates!AK112","v":65.604877867426907}]
[]
[null,"With one disability:",null,{"$f":"CntyDataLinkPrior5YearEstimates!CX112","v":0},{"$f":"CntyDataLinkPrior5YearEstimates!CY112","v":15},{"$f":"CntyDataLinkPrior5YearEstimates!DB112","v":114},{"$f":"CntyDataLinkPrior5YearEstimates!DC112","v":55},{"$f":"CntyDataLinkPrior5YearEstimates!DF112","v":214},{"$f":"CntyDataLinkPrior5YearEstimates!DG112","v":104},{"$f":"CntyDataLinkPrior5YearEstimates!DJ112","v":0},{"$f":"CntyDataLinkPrior5YearEstimates!DK112","v":0},{"$f":"CntyDataLinkPrior5YearEstimates!DN112","v":0},{"$f":"CntyDataLinkPrior5YearEstimates!DO112","v":0},{"$f":"CntyDataLinkPrior5YearEstimates!DR112","v":0},{"$f":"CntyDataLinkPrior5YearEstimates!DS112","v":0}]
[]
[null,"Type of disability"]
[null,null,"Hearing disability",{"$f":"CntyDataLinkPrior5YearEstimates!AN112","v":0},{"$f":"CntyDataLinkPrior5YearEstimates!AO112","v":21.213203435596427},{"$f":"CntyDataLinkPrior5YearEstimates!AP112","v":0},{"$f":"CntyDataLinkPrior5YearEstimates!AQ112","v":21.213203435596427},{"$f":"CntyDataLinkPrior5YearEstimates!AR112","v":0},{"$f":"CntyDataLinkPrior5YearEstimates!AS112","v":21.213203435596427},{"$f":"CntyDataLinkPrior5YearEstimates!AT112","v":64},{"$f":"CntyDataLinkPrior5YearEstimates!AU112","v":53.823786563191554},{"$f":"CntyDataLinkPrior5YearEstimates!AV112","v":41},{"$f":"CntyDataLinkPrior5YearEstimates!AW112","v":36.61966684720111},{"$f":"CntyDataLinkPrior5YearEstimates!AX112","v":67},{"$f":"CntyDataLinkPrior5YearEstimates!AY112","v":49.33558553417604}]
[null,null,"Visual disability",{"$f":"CntyDataLinkPrior5YearEstimates!AZ112","v":0},{"$f":"CntyDataLinkPrior5YearEstimates!BA112","v":21.213203435596427},{"$f":"CntyDataLinkPrior5YearEstimates!BB112","v":0},{"$f":"CntyDataLinkPrior5YearEstimates!BC112","v":21.213203435596427},{"$f":"CntyDataLinkPrior5YearEstimates!BD112","v":0},{"$f":"CntyDataLinkPrior5YearEstimates!BE112","v":21.213203435596427},{"$f":"CntyDataLinkPrior5YearEstimates!BF112","v":13},{"$f":"CntyDataLinkPrior5YearEstimates!BG112","v":26.627053911388696},{"$f":"CntyDataLinkPrior5YearEstimates!BH112","v":73},{"$f":"CntyDataLinkPrior5YearEstimates!BI112","v":79.81227975693966},{"$f":"CntyDataLinkPrior5YearEstimates!BJ112","v":16},{"$f":"CntyDataLinkPrior5YearEstimates!BK112","v":30.886890422961002}]
[null,null,"Cognitive disability","NA","NA",{"$f":"CntyDataLinkPrior5YearEstimates!BL112","v":0},{"$f":"CntyDataLinkPrior5YearEstimates!BM112","v":21.213203435596427},{"$f":"CntyDataLinkPrior5YearEstimates!BN112","v":0},{"$f":"CntyDataLinkPrior5YearEstimates!BO112","v":21.213203435596427},{"$f":"CntyDataLinkPrior5YearEstimates!BP112","v":141},{"$f":"CntyDataLinkPrior5YearEstimates!BQ112","v":81.565924257621205},{"$f":"CntyDataLinkPrior5YearEstimates!BR112","v":14},{"$f":"CntyDataLinkPrior5YearEstimates!BS112","v":24.207436873820409},{"$f":"CntyDataLinkPrior5YearEstimates!BT112","v":24},{"$f":"CntyDataLinkPrior5YearEstimates!BU112","v":39.924929555354261}]
[null,null,"Ambulatory disability","NA","NA",{"$f":"CntyDataLinkPrior5YearEstimates!BV112","v":0},{"$f":"CntyDataLinkPrior5YearEstimates!BW112","v":21.213203435596427},{"$f":"CntyDataLinkPrior5YearEstimates!BX112","v":0},{"$f":"CntyDataLinkPrior5YearEstimates!BY112","v":21.213203435596427},{"$f":"CntyDataLinkPrior5YearEstimates!BZ112","v":88},{"$f":"CntyDataLinkPrior5YearEstimates!CA112","v":64.637450444769243},{"$f":"CntyDataLinkPrior5YearEstimates!CB112","v":57},{"$f":"CntyDataLinkPrior5YearEstimates!CC112","v":45.276925690687087},{"$f":"CntyDataLinkPrior5YearEstimates!CD112","v":63},{"$f":"CntyDataLinkPrior5YearEstimates!CE112","v":43.840620433565945}]
[null,null,"Self-care disability","NA","NA",{"$f":"CntyDataLinkPrior5YearEstimates!CF112","v":0},{"$f":"CntyDataLinkPrior5YearEstimates!CG112","v":21.213203435596427},{"$f":"CntyDataLinkPrior5YearEstimates!CH112","v":0},{"$f":"CntyDataLinkPrior5YearEstimates!CI112","v":21.213203435596427},{"$f":"CntyDataLinkPrior5YearEstimates!CJ112","v":48},{"$f":"CntyDataLinkPrior5YearEstimates!CK112","v":54.644304369257},{"$f":"CntyDataLinkPrior5YearEstimates!CL112","v":13},{"$f":"CntyDataLinkPrior5YearEstimates!CM112","v":24.207436873820409},{"$f":"CntyDataLinkPrior5YearEstimates!CN112","v":26},{"$f":"CntyDataLinkPrior5YearEstimates!CO112","v":30.016662039607269}]
[null,null,"Independent living disability","NA","NA","NA","NA",{"$f":"CntyDataLinkPrior5YearEstimates!CP112","v":0},{"$f":"CntyDataLinkPrior5YearEstimates!CQ112","v":21.213203435596427},{"$f":"CntyDataLinkPrior5YearEstimates!CR112","v":69},{"$f":"CntyDataLinkPrior5YearEstimates!CS112","v":60.926184846911269},{"$f":"CntyDataLinkPrior5YearEstimates!CT112","v":28},{"$f":"CntyDataLinkPrior5YearEstimates!CU112","v":34.438350715445125},{"$f":"CntyDataLinkPrior5YearEstimates!CV112","v":36},{"$f":"CntyDataLinkPrior5YearEstimates!CW112","v":41.146081222881968}]
[]
[null,"With two or more types of disability:",null,{"$f":"CntyDataLinkPrior5YearEstimates!CZ112","v":0},{"$f":"CntyDataLinkPrior5YearEstimates!DA112","v":15},{"$f":"CntyDataLinkPrior5YearEstimates!DD112","v":135},{"$f":"CntyDataLinkPrior5YearEstimates!DE112","v":82},{"$f":"CntyDataLinkPrior5YearEstimates!DH112","v":91},{"$f":"CntyDataLinkPrior5YearEstimates!DI112","v":54},{"$f":"CntyDataLinkPrior5YearEstimates!DL112","v":0},{"$f":"CntyDataLinkPrior5YearEstimates!DM112","v":0},{"$f":"CntyDataLinkPrior5YearEstimates!DP112","v":0},{"$f":"CntyDataLinkPrior5YearEstimates!DQ112","v":0},{"$f":"CntyDataLinkPrior5YearEstimates!DT112","v":0},{"$f":"CntyDataLinkPrior5YearEstimates!DU112","v":0}]
[]
[null,"No disability",null,{"$f":"CntyDataLinkPrior5YearEstimates!H112","v":211},{"$f":"CntyDataLinkPrior5YearEstimates!I112","v":120.90492132250036},{"$f":"CntyDataLinkPrior5YearEstimates!N112","v":1220},{"$f":"CntyDataLinkPrior5YearEstimates!O112","v":209.34660255184463},{"$f":"CntyDataLinkPrior5YearEstimates!T112","v":981},{"$f":"CntyDataLinkPrior5YearEstimates!U112","v":199.42417105255822},{"$f":"CntyDataLinkPrior5YearEstimates!Z112","v":2996},{"$f":"CntyDataLinkPrior5YearEstimates!AA112","v":191.16746585127919},{"$f":"CntyDataLinkPrior5YearEstimates!AF112","v":450},{"$f":"CntyDataLinkPrior5YearEstimates!AG112","v":127.06297651164952},{"$f":"CntyDataLinkPrior5YearEstimates!AL112","v":376},{"$f":"CntyDataLinkPrior5YearEstimates!AM112","v":116.38728452885221}]
[null,"Source: 2010-2014 American Community Survey Tables B18101;  B18102; B18103; B18104; B18105; B18106;  and B18107"]
[null,"NA indicates that the American Community Survey does not calculate the number for that disability."]
[null,"Percent of Population with Disabilities"]
[]
[null,null,null,"Under 5",null,"5 to 17 years",null,"18 to 34 years",null,"35 to 64 years",null,"65 to 74 years",null,"75 years and older"]
[]
[null,"With one disability:",null,{"$f":"D33/D$31","v":0},null,{"$f":"F33/F$31","v":0},null,{"$f":"H33/H$31","v":0},null,{"$f":"J33/J$31","v":7.673343605546995E-2},null,{"$f":"L33/L$31","v":0.27652733118971062},null,{"$f":"N33/N$31","v":0.26129666011787817}]
[]
[null,"Type of disability"]
[null,null,"Hearing disability",{"$f":"D38/D$31","v":0},null,{"$f":"F38/F$31","v":0},null,{"$f":"H38/H$31","v":0},null,{"$f":"J38/J$31","v":1.9722650231124808E-2},null,{"$f":"L38/L$31","v":6.591639871382636E-2},null,{"$f":"N38/N$31","v":0.13163064833005894}]
[null,null,"Visual disability",{"$f":"D39/D$31","v":0},null,{"$f":"F39/F$31","v":0},null,0,null,4.0061633281972264E-3,null,0.11736334405144695,null,3.1434184675834968E-2]
[null,null,"Cognitive disability","NA",null,{"$f":"F40/F$31","v":0},null,0,null,4.3451463790446843E-2,null,2.2508038585209004E-2,null,4.7151277013752456E-2]
[null,null,"Ambulatory disability","NA",null,{"$f":"F41/F$31","v":0},null,0,null,2.7118644067796609E-2,null,9.1639871382636656E-2,null,0.1237721021611002]
[null,null,"Self-care disability","NA",null,{"$f":"F42/F$31","v":0},null,0,null,1.4791987673343606E-2,null,2.0900321543408359E-2,null,5.1080550098231828E-2]
[null,null,"Independent living disability","NA",null,"NA",null,0,null,2.1263482280431432E-2,null,4.5016077170418008E-2,null,7.072691552062868E-2]
[]
[]
[]
[null,"No disability",null,{"$f":"D47/D$31","v":1},null,{"$f":"F47/F$31","v":1},null,{"$f":"H47/H$31","v":1},null,{"$f":"J47/J$31","v":0.92326656394452999},null,{"$f":"L47/L$31","v":0.72347266881028938},null,{"$f":"N47/N$31","v":0.73870333988212178}]
[]
[]
[null,"Source: 2010-2014 American Community Survey Tables B18101;  B18102; B18103; B18104; B18105; B18106;  and B18107"]
[null,"NA indicates that the American Community Survey does not calculate the number for that disability."]
[]
[null,"Data from the American Community Survey are estimates."]

{"sheet":"ACS_Table_B18101","index":31,"n_rows":125,"n_cols":76,"rows_kept":125,"cut":false,"hidden":true,"merged":[]}
["B18101. SEX BY AGE BY DISABILITY STATUS\n"]
["Universe:  Civilian non-institutionalized population"]
["Data Set: 2015-2019 American Community Survey 5-Year Estimates"]
[]
[null,null,"Atkinson",null,"Auburn",null,"Brentwood",null,"Candia",null,"Chester",null,"Danville",null,"Deerfield",null,"Derry",null,"East Kingston",null,"Epping",null,"Exeter",null,"Fremont",null,"Greenland",null,"Hampstead",null,"Hampton",null,"Hampton Falls",null,"Kensington",null,"Kingston",null,"Londonderry",null,"New Castle",null,"Newfields",null,"Newington",null,"Newmarket",null,"Newton",null,"North Hampton",null,"Northwood",null,"Nottingham",null,"Plaistow",null,"Portsmouth",null,"Raymond",null,"Rye",null,"Salem",null,"Sandown",null,"Seabrook",null,"South Hampton",null,"Stratham",null,"Windham"]
[null,null,"Estimate","Margin Of Error","Estimate","Margin Of Error","Estimate","Margin Of Error","Estimate","Margin Of Error","Estimate","Margin Of Error","Estimate","Margin Of Error","Estimate","Margin Of Error","Estimate","Margin Of Error","Estimate","Margin Of Error","Estimate","Margin Of Error","Estimate","Margin Of Error","Estimate","Margin Of Error","Estimate","Margin Of Error","Estimate","Margin Of Error","Estimate","Margin Of Error","Estimate","Margin Of Error","Estimate","Margin Of Error","Estimate","Margin Of Error","Estimate","Margin Of Error","Estimate","Margin Of Error","Estimate","Margin Of Error","Estimate","Margin Of Error","Estimate","Margin Of Error","Estimate","Margin Of Error","Estimate","Margin Of Error","Estimate","Margin Of Error","Estimate","Margin Of Error","Estimate","Margin Of Error","Estimate","Margin Of Error","Estimate","Margin Of Error","Estimate","Margin Of Error","Estimate","Margin Of Error","Estimate","Margin Of Error","Estimate","Margin Of Error","Estimate","Margin Of Error","Estimate","Margin Of Error","Estimate","Margin Of Error"]
[null,"Total",6952,33,5446,21,4317,134,3936,18,5129,26,4515,29,4476,31,33242,113,2432,192,6952,32,14914,113,4623,84,3992,32,8612,20,15379,100,2383,164,2291,139,6260,29,25907,39,835,178,1757,227,710,89,9034,41,4920,22,4444,25,4286,27,5050,25,7689,26,20695,172,10428,23,5410,90,29090,108,6389,17,8820,31,775,94,7427,21,14512,46]
[null,"Male:",3495,246,2769,154,2150,112,2075,136,2559,150,2318,114,2181,105,16573,536,1221,149,3508,210,6847,330,2303,144,1911,108,4136,248,7537,274,1287,105,1165,82,3315,286,12718,292,379,101,811,111,368,61,4628,275,2553,179,2089,123,1958,167,2320,123,3609,274,9881,356,5176,302,2865,216,14779,424,3128,242,4283,199,373,49,3833,250,7227,322]
[null,"Under 5 years:",163,117,196,72,130,72,88,46,134,61,77,64,111,65,906,251,37,22,218,112,330,127,139,83,100,53,135,76,284,122,31,21,86,30,145,126,724,147,0,11,32,22,22,17,179,90,85,53,31,29,58,45,123,66,151,94,377,128,297,122,78,61,876,229,170,95,94,64,12,8,230,101,410,143]
[null,"With a disability",0,16,0,16,0,11,0,11,0,16,0,11,0,11,0,24,0,11,0,16,0,18,0,11,0,11,0,16,0,18,6,10,0,11,0,16,6,10,0,11,0,11,0,11,0,16,0,11,0,11,0,11,0,16,0,16,29,47,0,18,0,16,0,21,0,16,0,16,0,11,0,16,0,18]
[null,"No disability",163,117,196,72,130,72,88,46,134,61,77,64,111,65,906,251,37,22,218,112,330,127,139,83,100,53,135,76,284,122,25,18,86,30,145,126,718,147,0,11,32,22,22,17,179,90,85,53,31,29,58,45,123,66,151,94,348,122,297,122,78,61,876,229,170,95,94,64,12,8,230,101,410,143]
[null,"5 to 17 years:",604,207,391,97,501,84,267,114,466,107,427,121,359,98,2877,337,262,87,579,179,1074,190,297,94,286,77,741,168,927,159,230,57,176,55,447,184,2425,261,58,55,114,40,30,18,650,194,361,87,228,96,262,82,311,104,462,163,1198,203,858,240,364,99,1951,275,578,155,569,160,49,20,827,169,1412,251]
[null,"With a disability",106,95,50,49,26,28,38,54,70,36,0,11,26,28,228,100,16,13,36,42,82,83,0,11,31,28,58,51,43,42,18,16,13,10,0,16,227,111,0,11,0,11,0,11,22,26,48,42,0,11,39,31,0,16,0,16,58,71,92,78,0,16,220,99,108,87,32,36,2,3,0,16,69,57]
[null,"No disability",498,198,341,84,475,81,229,99,396,106,427,121,333,102,2649,319,246,88,543,180,992,171,297,94,255,66,683,164,884,157,212,53,163,55,447,184,2198,236,58,55,114,40,30,18,628,196,313,89,228,96,223,77,311,104,462,163,1140,182,766,201,364,99,1731,280,470,118,537,149,47,20,827,169,1343,243]
[null,"18 to 34 years:",529,159,451,110,177,73,335,97,521,167,350,82,449,94,3469,371,172,65,740,212,1122,240,382,96,275,80,818,124,1241,211,248,78,211,51,854,247,2336,248,33,27,105,38,57,40,1407,230,615,141,340,109,319,86,401,90,919,218,2691,306,1085,263,406,178,3676,376,739,152,650,157,67,26,506,172,1065,288]
[null,"With a disability",15,24,10,16,13,21,14,16,51,46,37,29,26,26,385,155,13,14,33,37,36,35,30,26,5,12,104,54,37,34,28,37,20,20,23,41,121,60,5,7,15,11,0,11,41,38,13,19,4,8,25,26,22,26,40,32,215,107,78,54,34,37,47,42,40,58,118,66,6,6,0,16,42,38]
[null,"No disability",514,163,441,108,164,73,321,95,470,140,313,78,423,91,3084,339,159,64,707,211,1086,231,352,96,270,81,714,128,1204,205,220,58,191,46,831,237,2215,255,28,24,90,37,57,40,1366,227,602,144,336,108,294,83,379,83,879,214,2476,282,1007,267,372,178,3629,382,699,145,532,153,61,25,506,172,1023,281]
[null,"35 to 64 years:",1560,134,1325,85,1092,91,967,101,1106,71,1168,95,926,94,7546,340,533,48,1340,184,3024,251,1114,102,889,96,1600,143,3373,210,575,75,459,48,1299,186,5642,233,142,51,431,63,176,34,1770,196,1097,81,1008,115,975,109,1134,129,1498,195,4083,256,2254,220,1318,186,5934,286,1326,171,1970,181,151,26,1683,158,3335,186]
[null,"With a disability",184,112,87,60,58,43,117,52,42,34,136,90,27,28,920,230,30,20,140,82,329,121,65,38,106,61,84,70,354,113,18,22,28,13,111,76,388,116,13,17,28,17,13,9,93,56,42,31,55,48,72,44,60,41,165,90,439,189,231,109,69,56,401,153,173,107,236,98,13,8,95,62,99,67]
[null,"No disability",1376,152,1238,88,1034,106,850,101,1064,79,1032,113,899,92,6626,318,503,45,1200,176,2695,251,1049,103,783,113,1516,141,3019,216,557,76,431,48,1188,169,5254,231,129,49,403,60,163,34,1677,186,1055,85,953,112,903,105,1074,129,1333,189,3644,248,2023,221,1249,199,5533,290,1153,185,1734,174,138,25,1588,170,3236,181]
[null,"65 to 74 years:",412,112,351,62,142,50,258,48,286,81,202,60,221,61,1273,154,125,26,497,130,567,100,155,48,242,49,522,91,1041,128,142,48,162,37,339,110,1124,152,83,32,77,27,45,15,392,99,293,67,338,76,213,62,197,65,327,102,1003,142,504,105,484,132,1535,185,228,82,710,124,63,18,359,109,562,122]
[null,"With a disability",13,20,93,42,33,27,73,46,45,30,22,24,44,34,318,84,37,18,168,93,116,67,0,11,0,11,141,80,171,81,5,7,12,8,77,53,229,108,0,11,22,22,12,8,132,66,88,52,72,51,65,50,48,32,66,47,201,80,94,59,64,52,282,102,51,40,226,95,16,8,54,45,44,40]
[null,"No disability",399,113,258,64,109,44,185,56,241,76,180,58,177,50,955,152,88,27,329,116,451,106,155,48,242,49,381,97,870,106,137,47,150,37,262,103,895,135,83,32,55,21,33,13,260,82,205,61,266,69,148,47,149,58,261,93,802,133,410,105,420,141,1253,191,177,81,484,105,47,16,305,100,518,120]
[null,"75 years and over:",227,91,55,33,108,41,160,76,46,28,94,47,115,73,502,145,92,36,134,81,730,149,216,68,119,53,320,110,671,133,61,24,71,26,231,97,467,140,63,32,52,29,38,23,230,95,102,58,144,62,131,66,154,69,252,122,529,123,178,82,215,95,807,171,87,57,290,76,31,19,228,86,443,125]
[null,"With a disability",96,62,0,16,63,39,116,73,8,13,39,29,100,61,303,114,37,19,134,81,424,125,124,60,73,45,142,77,240,83,23,18,34,22,103,70,174,78,22,22,29,25,18,23,180,95,20,21,45,45,44,42,31,27,144,95,133,62,42,44,77,53,275,131,52,45,127,57,17,16,86,46,145,76]
[null,"No disability",131,77,55,33,45,30,44,36,38,25,55,37,15,22,199,81,55,35,0,16,306,105,92,41,46,28,178,89,431,116,38,24,37,17,128,72,293,107,41,24,23,17,20,9,50,43,82,57,99,47,87,51,123,67,108,72,396,105,136,66,138,73,532,140,35,34,163,74,14,7,142,71,298,102]
[null,"Female:",3457,247,2677,155,2167,128,1861,135,2570,151,2197,113,2295,108,16669,542,1211,95,3444,210,8067,324,2320,149,2081,108,4476,250,7842,285,1096,100,1126,96,2945,286,13189,287,456,101,946,135,342,48,4406,280,2367,177,2355,120,2328,165,2730,124,4080,272,10814,356,5252,298,2545,210,14311,444,3261,239,4537,195,402,60,3594,250,7285,316]
[null,"Under 5 years:",112,65,146,75,145,69,92,65,131,59,67,50,74,40,724,159,11,12,220,109,315,123,119,59,63,35,244,105,123,65,33,20,74,24,75,72,661,139,18,28,50,40,6,7,252,110,118,52,72,44,82,59,158,72,130,74,432,118,277,120,96,69,597,193,216,112,129,77,7,7,95,70,534,134]
[null,"With a disability",0,16,0,16,0,11,0,11,0,16,0,11,0,11,0,24,0,11,0,16,0,18,0,11,0,11,0,16,0,18,0,11,0,11,0,16,29,35,0,11,0,11,0,11,0,16,0,11,0,11,0,11,0,16,0,16,21,28,0,18,0,16,0,21,0,16,0,16,0,11,0,16,0,18]
[null,"No disability",112,65,146,75,145,69,92,65,131,59,67,50,74,40,724,159,11,12,220,109,315,123,119,59,63,35,244,105,123,65,33,20,74,24,75,72,632,140,18,28,50,40,6,7,252,110,118,52,72,44,82,59,158,72,130,74,411,113,277,120,96,69,597,193,216,112,129,77,7,7,95,70,534,134]
[null,"5 to 17 years:",506,192,380,106,345,81,204,67,364,95,377,101,343,85,2599,285,217,42,345,121,1134,153,350,88,491,105,718,160,1084,159,141,39,135,36,495,174,2081,188,52,35,232,72,30,18,482,169,343,91,469,151,341,68,523,122,648,148,1304,179,860,278,241,83,1691,308,429,195,506,137,65,28,501,162,1586,213]
[null,"With a disability",38,59,10,15,0,11,0,11,0,16,21,25,40,40,116,81,3,7,16,26,25,29,0,11,0,11,21,25,63,58,6,9,4,5,18,30,49,40,0,11,4,6,0,11,14,21,0,11,9,14,60,46,30,27,51,51,85,55,31,37,16,25,64,64,0,16,50,45,3,4,17,27,41,40]
[null,"No disability",468,190,370,107,345,81,204,67,364,95,356,106,303,80,2483,279,214,40,329,121,1109,149,350,88,491,105,697,161,1021,152,135,38,131,36,477,175,2032,193,52,35,228,72,30,18,468,167,343,91,460,150,281,79,493,119,597,138,1219,167,829,288,225,76,1627,299,429,195,456,138,62,28,484,157,1545,211]
[null,"18 to 34 years:",486,162,460,115,249,74,342,101,542,109,346,80,569,98,3964,412,197,56,663,176,1491,232,394,80,249,79,746,145,1091,203,186,76,175,45,589,189,2397,278,28,24,108,34,37,19,1283,211,421,117,201,86,518,180,344,94,829,214,2822,298,1007,177,173,85,2986,359,675,143,688,163,58,24,543,168,634,186]
[null,"With a disability",0,16,11,17,1,3,0,11,53,53,42,35,103,44,206,98,10,11,14,26,44,38,0,11,0,11,62,53,59,44,11,16,3,5,17,28,257,100,0,11,5,8,5,7,12,19,20,22,0,11,33,49,15,19,16,26,78,58,59,45,17,26,177,86,44,53,71,59,7,7,0,16,14,25]
[null,"No disability",486,162,449,117,248,73,342,101,489,127,304,82,466,95,3758,415,187,54,649,178,1447,237,394,80,249,79,684,143,1032,196,175,76,172,45,572,191,2140,273,28,24,103,34,32,17,1271,209,401,115,201,86,485,139,329,95,813,223,2744,295,948,182,156,86,2809,340,631,137,617,153,51,21,543,168,620,186]
[null,"35 to 64 years:",1617,137,1342,94,1017,94,947,71,1229,96,1150,87,971,89,7290,368,550,42,1569,174,3128,242,1072,85,913,98,1928,177,3558,175,568,53,524,61,1280,180,5973,229,175,61,446,60,167,29,1701,153,1122,94,1010,90,986,105,1228,95,1787,192,4332,304,2375,229,1236,150,6019,258,1468,130,1925,195,177,32,1825,149,3449,192]
[null,"With a disability",163,79,83,42,42,31,140,75,38,41,165,86,99,71,879,194,24,19,229,123,388,125,62,41,89,58,221,136,352,103,24,17,38,24,101,68,704,183,4,6,25,16,5,5,230,79,87,61,76,40,111,61,123,64,62,44,303,98,378,149,18,29,690,158,81,61,353,133,9,6,158,82,122,71]
[null,"No disability",1454,146,1259,101,975,100,807,99,1191,104,985,102,872,100,6411,375,526,43,1340,180,2740,235,1010,90,824,89,1707,154,3206,185,544,55,486,60,1179,186,5269,277,171,61,421,58,162,29,1471,159,1035,95,934,97,875,107,1105,107,1725,180,4029,301,1997,231,1218,151,5329,260,1387,130,1572,206,168,32,1667,148,3327,193]
[null,"65 to 74 years:",490,153,218,56,162,71,199,43,203,70,177,64,231,61,1405,194,137,31,470,132,908,172,232,55,227,49,499,94,1189,160,143,38,137,29,349,117,1348,128,107,42,61,26,59,20,473,90,256,67,359,95,250,76,340,84,363,105,1214,202,475,116,517,142,1597,184,244,82,642,126,51,18,410,100,589,108]
[null,"With a disability",117,102,23,19,24,27,52,37,55,60,72,46,47,38,299,113,33,22,255,126,233,128,36,28,31,24,78,55,209,74,16,13,26,12,76,45,185,62,21,21,3,5,4,5,34,25,32,23,33,27,51,53,27,24,128,66,197,90,73,51,99,88,296,87,64,64,123,65,11,13,103,65,76,60]
[null,"No disability",373,119,195,58,138,65,147,46,148,47,105,47,184,57,1106,187,104,29,215,104,675,143,196,54,196,49,421,86,980,148,127,38,111,27,273,109,1163,139,86,36,58,25,55,20,439,92,224,66,326,91,199,65,313,92,235,88,1017,184,402,102,418,115,1301,172,180,86,519,107,40,13,307,92,513,108]
[null,"75 years and over:",246,69,131,56,249,74,77,45,101,52,80,39,107,50,687,154,99,35,177,81,1091,188,153,65,138,41,341,129,797,128,25,18,81,28,157,83,729,167,76,37,49,27,43,23,215,100,107,62,244,79,151,76,137,73,323,137,710,161,258,75,282,119,1421,219,229,159,647,148,44,18,220,88,493,133]
[null,"With a disability",116,56,62,38,130,60,21,23,84,51,39,31,64,40,226,113,35,21,75,61,622,177,27,25,53,37,115,98,269,103,13,13,45,21,63,42,294,86,18,14,33,25,23,21,175,93,64,51,89,53,31,29,69,49,193,106,272,93,50,32,190,108,578,176,124,101,283,113,16,10,56,52,215,95]
[null,"No disability",130,64,69,44,119,53,56,39,17,18,41,30,43,31,461,119,64,29,102,70,469,161,126,64,85,37,226,91,528,104,12,13,36,17,94,72,435,142,58,34,16,13,20,10,40,34,43,33,155,67,120,70,68,48,130,79,438,128,208,71,92,62,843,192,105,92,364,122,28,15,164,78,278,114]
[]
[]
[{"$f":"A1& \"-Calculated\"","v":"B18101. SEX BY AGE BY DISABILITY STATUS\n-Calculated"}]
[{"$f":"A2","v":"Universe:  Civilian non-institutionalized population"}]
[{"$f":"A3","v":"Data Set: 2015-2019 American Community Survey 5-Year Estimates"}]
[]
[]
[null,null,"Atkinson",null,"Auburn",null,"Brentwood",null,"Candia",null,"Chester",null,"Danville",null,"Deerfield",null,"Derry",null,"East Kingston",null,"Epping",null,"Exeter",null,"Fremont",null,"Greenland",null,"Hampstead",null,"Hampton",null,"Hampton Falls",null,"Kensington",null,"Kingston",null,"Londonderry",null,"New Castle",null,"Newfields",null,"Newington",null,"Newmarket",null,"Newton",null,"North Hampton",null,"Northwood",null,"Nottingham",null,"Plaistow",null,"Portsmouth",null,"Raymond",null,"Rye",null,"Salem",null,"Sandown",null,"Seabrook",null,"South Hampton",null,"Stratham",null,"Windham"]
[null,null,"Estimate","Margin Of Error","Estimate","Margin Of Error","Estimate","Margin Of Error","Estimate","Margin Of Error","Estimate","Margin Of Error","Estimate","Margin Of Error","Estimate","Margin Of Error","Estimate","Margin Of Error","Estimate","Margin Of Error","Estimate","Margin Of Error","Estimate","Margin Of Error","Estimate","Margin Of Error","Estimate","Margin Of Error","Estimate","Margin Of Error","Estimate","Margin Of Error","Estimate","Margin Of Error","Estimate","Margin Of Error","Estimate","Margin Of Error","Estimate","Margin Of Error","Estimate","Margin Of Error","Estimate","Margin Of Error","Estimate","Margin Of Error","Estimate","Margin Of Error","Estimate","Margin Of Error","Estimate","Margin Of Error","Estimate","Margin Of Error","Estimate","Margin Of Error","Estimate","Margin Of Error","Estimate","Margin Of Error","Estimate","Margin Of Error","Estimate","Margin Of Error","Estimate","Margin Of Error","Estimate","Margin Of Error","Estimate","Margin Of Error","Estimate","Margin Of Error","Estimate","Margin Of Error","Estimate","Margin Of Error"]
[null,"Total",{"$f":"C7","v":6952},33,5446,21,4317,134,3936,18,5129,26,4515,29,4476,31,33242,113,2432,192,6952,32,14914,113,{"$f":"Y7","v":4623},84,3992,32,8612,20,15379,100,2383,164,2291,139,6260,29,25907,39,835,178,1757,227,710,89,9034,41,4920,22,4444,25,4286,27,5050,25,7689,26,20695,172,10428,23,5410,90,29090,108,6389,17,8820,31,775,94,7427,21,14512,46]
[null,"Under 5 years:",{"$f":"C28+C9","v":275},{"$f":"SQRT((D28^2)+(D9^2))","v":133.843191832831},{"$f":"E28+E9","v":342},{"$f":"SQRT((F28^2)+(F9^2))","v":103.96634070698073},{"$f":"G28+G9","v":275},{"$f":"SQRT((H28^2)+(H9^2))","v":99.724620831567975},{"$f":"I28+I9","v":180},{"$f":"SQRT((J28^2)+(J9^2))","v":79.630396206473819},{"$f":"K28+K9","v":265},{"$f":"SQRT((L28^2)+(L9^2))","v":84.864598037108507},{"$f":"M28+M9","v":144},{"$f":"SQRT((N28^2)+(N9^2))","v":81.21576201698781},{"$f":"O28+O9","v":185},{"$f":"SQRT((P28^2)+(P9^2))","v":76.321687612368734},{"$f":"Q28+Q9","v":1630},{"$f":"SQRT((R28^2)+(R9^2))","v":297.12287020692298},{"$f":"S28+S9","v":48},{"$f":"SQRT((T28^2)+(T9^2))","v":25.059928172283335},{"$f":"U28+U9","v":438},{"$f":"SQRT((V28^2)+(V9^2))","v":156.28499608087785},{"$f":"W28+W9","v":645},{"$f":"SQRT((X28^2)+(X9^2))","v":176.7993212656655},{"$f":"Y28+Y9","v":258},{"$f":"SQRT((Z28^2)+(Z9^2))","v":101.83319694480774},{"$f":"AA28+AA9","v":163},{"$f":"SQRT((AB28^2)+(AB9^2))","v":63.513778032801667},{"$f":"AC28+AC9","v":379},{"$f":"SQRT((AD28^2)+(AD9^2))","v":129.61867149450345},{"$f":"AE28+AE9","v":407},{"$f":"SQRT((AF28^2)+(AF9^2))","v":138.23530663329106},{"$f":"AG28+AG9","v":64},{"$f":"SQRT((AH28^2)+(AH9^2))","v":29},{"$f":"AI28+AI9","v":160},{"$f":"SQRT((AJ28^2)+(AJ9^2))","v":38.418745424597091},{"$f":"AK28+AK9","v":220},{"$f":"SQRT((AL28^2)+(AL9^2))","v":145.12063946937388},{"$f":"AM28+AM9","v":1385},{"$f":"SQRT((AN28^2)+(AN9^2))","v":202.3116407921205},{"$f":"AO28+AO9","v":18},{"$f":"SQRT((AP28^2)+(AP9^2))","v":30.083217912982647},{"$f":"AQ28+AQ9","v":82},{"$f":"SQRT((AR28^2)+(AR9^2))","v":45.650848842053307},{"$f":"AS28+AS9","v":28},{"$f":"SQRT((AT28^2)+(AT9^2))","v":18.384776310850235},{"$f":"AU28+AU9","v":431},{"$f":"SQRT((AV28^2)+(AV9^2))","v":142.12670403551894},{"$f":"AW28+AW9","v":203},{"$f":"SQRT((AX28^2)+(AX9^2))","v":74.249579123386283},{"$f":"AY28+AY9","v":103},{"$f":"SQRT((AZ28^2)+(AZ9^2))","v":52.697248505021591},{"$f":"BA28+BA9","v":140},{"$f":"SQRT((BB28^2)+(BB9^2))","v":74.202425836356596},{"$f":"BC28+BC9","v":281},{"$f":"SQRT((BD28^2)+(BD9^2))","v":97.672923576598237},{"$f":"BE28+BE9","v":281},{"$f":"SQRT((BF28^2)+(BF9^2))","v":119.63277142990545},{"$f":"BG28+BG9","v":809},{"$f":"SQRT((BH28^2)+(BH9^2))","v":174.0919297382851},{"$f":"BI28+BI9","v":574},{"$f":"SQRT((BJ28^2)+(BJ9^2))","v":171.12568480505783},{"$f":"BK28+BK9","v":174},{"$f":"SQRT((BL28^2)+(BL9^2))","v":92.097774131626011},{"$f":"BM28+BM9","v":1473},{"$f":"SQRT((BN28^2)+(BN9^2))","v":299.48288765804301},{"$f":"BO28+BO9","v":386},{"$f":"SQRT((BP28^2)+(BP9^2))","v":146.86388255796589},{"$f":"BQ28+BQ9","v":223},{"$f":"SQRT((BR28^2)+(BR9^2))","v":100.12492197250393},{"$f":"BS28+BS9","v":19},{"$f":"SQRT((BT28^2)+(BT9^2))","v":10.63014581273465},{"$f":"BU28+BU9","v":325},{"$f":"SQRT((BV28^2)+(BV9^2))","v":122.88612614937456},{"$f":"BW28+BW9","v":944},{"$f":"SQRT((BX28^2)+(BX9^2))","v":195.97193676646665}]
[null,"With a disability",{"$f":"C29+C10","v":0},{"$f":"SQRT((D29^2)+(D10^2))","v":22.627416997969522},{"$f":"E29+E10","v":0},{"$f":"SQRT((F29^2)+(F10^2))","v":22.627416997969522},{"$f":"G29+G10","v":0},{"$f":"SQRT((H29^2)+(H10^2))","v":15.556349186104045},{"$f":"I29+I10","v":0},{"$f":"SQRT((J29^2)+(J10^2))","v":15.556349186104045},{"$f":"K29+K10","v":0},{"$f":"SQRT((L29^2)+(L10^2))","v":22.627416997969522},{"$f":"M29+M10","v":0},{"$f":"SQRT((N29^2)+(N10^2))","v":15.556349186104045},{"$f":"O29+O10","v":0},{"$f":"SQRT((P29^2)+(P10^2))","v":15.556349186104045},{"$f":"Q29+Q10","v":0},{"$f":"SQRT((R29^2)+(R10^2))","v":33.941125496954278},{"$f":"S29+S10","v":0},{"$f":"SQRT((T29^2)+(T10^2))","v":15.556349186104045},{"$f":"U29+U10","v":0},{"$f":"SQRT((V29^2)+(V10^2))","v":22.627416997969522},0,25.45584412271571,0,15.556349186104045,0,15.556349186104045,0,22.627416997969522,0,25.45584412271571,6,14.866068747318506,0,15.556349186104045,0,22.627416997969522,35,36.400549446402593,0,15.556349186104045,0,15.556349186104045,0,15.556349186104045,0,22.627416997969522,0,15.556349186104045,0,15.556349186104045,0,15.556349186104045,0,22.627416997969522,0,22.627416997969522,50,54.708317466359723,0,25.45584412271571,0,22.627416997969522,0,29.698484809834994,0,22.627416997969522,0,22.627416997969522,0,15.556349186104045,0,22.627416997969522,0,25.45584412271571]
[null,"No disability",{"$f":"C30+C11","v":275},133.843191832831,342,103.96634070698073,275,99.724620831567975,180,79.630396206473819,265,84.864598037108507,144,81.21576201698781,185,76.321687612368734,1630,297.12287020692298,48,25.059928172283335,438,156.28499608087785,645,176.7993212656655,258,101.83319694480774,163,63.513778032801667,379,129.61867149450345,407,138.23530663329106,58,26.90724809414742,160,38.418745424597091,220,145.12063946937388,1350,203,18,30.083217912982647,82,45.650848842053307,28,18.384776310850235,431,142.12670403551894,203,74.249579123386283,103,52.697248505021591,140,74.202425836356596,281,97.672923576598237,281,119.63277142990545,759,166.29191201017565,574,171.12568480505783,174,92.097774131626011,1473,299.48288765804301,386,146.86388255796589,223,100.12492197250393,19,10.63014581273465,325,122.88612614937456,944,195.97193676646665]
[null,"5 to 17 years:",1110,282.33490751233722,771,143.68368035375485,846,116.69190203266035,471,132.23085872821065,830,143.0873858870865,804,157.61345120261785,702,129.72663566130126,5476,441.35473261312154,479,96.607453128627711,924,216.06017680266763,2208,243.94466585682909,647,128.76334882255898,777,130.20752666416791,1459,232,2011,224.85995641732211,371,69.06518659932803,311,65.73431371817918,942,253.24296633865274,4506,321.65975812961125,110,65.192024052026483,346,82.365041127896006,60,25.45584412271571,1132,257.28777662376422,704,125.89678312014172,697,178.93294833540301,603,106.5269918846862,834,160.31219541881399,1110,220.16584657934573,2502,270.64737205448716,1718,367.26557148744558,605,129.18978287774928,3642,412.90313634071612,1007,249.09837414162303,1075,210.63950246807934,114,34.409301068170507,1328,234.10467744152402,2998,329.1959902550455]
[null,"With a disability",144,111.83022847155415,60,51.244511901275828,26,30.083217912982647,38,55.108982933819419,70,39.395431207184416,21,27.313000567495326,66,48.826222462934808,344,128.68954891520912,19,14.7648230602334,52,49.396356140913873,107,87.920418561333065,0,15.556349186104045,31,30.083217912982647,79,56.797887284651708,106,71.61005515987263,24,18.357559750685819,17,11.180339887498949,18,34,276,117.98728745080972,0,15.556349186104045,4,12.529964086141668,0,15.556349186104045,36,33.421549934136806,48,43.416586692184822,9,17.804493814764857,99,55.470712993434653,30,31.384709652950431,51,53.450912059571067,143,89.810912477270818,123,86.330759292386631,16,29.681644159311659,284,117.88553770501282,108,88.459030064770658,82,57.628118136895637,5,5,17,31.384709652950431,110,69.634761434214738]
[null,"No disability",966,274.41574298862668,711,136.03308421115798,820,114.5512985522207,433,119.54078801814885,760,142.3411395205195,783,160.86329600005092,636,129.63024338479042,5132,423.79476164766362,460,96.664367788756579,872,216.88937272259329,2101,226.80828909014767,647,128.76334882255898,746,124.02015965156633,1380,229.8194943863553,1905,218.52459815773602,347,65.215028942721474,294,65.73431371817918,924,253.93109301540841,4230,304.86882425069308,110,65.192024052026483,342,82.365041127896006,60,25.45584412271571,1096,257.4975728040946,656,127.28707711311466,688,178.08986495586996,504,110.3177229641729,804,158.04113388608675,1059,213.57200191036279,2359,247.00809703327542,1595,351.20506830055854,589,124.80785231707178,3358,409.63520356531859,899,227.92323269030737,993,203.08865059377396,109,34.409301068170507,1311,230.67292862405853,2888,321.82293268193303]
[null,"18 to 34 years:",1015,226.99118925632334,911,159.13830462839547,426,103.9471019317037,677,140.03570973148243,1063,199.42417105255822,696,114.56002793295748,1018,135.79396157414365,7433,554.42312361588961,369,85.796270315206598,1403,275.5358415887124,2613,333.80233672040106,776,124.96399481450646,524,112.43220179290273,1564,190.79046097748179,2332,292.79685790663808,434,108.90362712049586,386,68.01470429252781,1443,311.01446911679204,4733,372.54261501202785,61,36.124783736376884,213,50.990195135927848,94,44.283179650969061,2690,312.1233730434169,1036,183.22117781522965,541,138.84163640637487,837,199.48934808655824,745,130.13838787997952,1748,305.48322376196046,5513,427.12995680471766,2092,317.0141952657641,579,197.25364381932212,6662,519.86248181610495,1414,208.69355524308841,1338,226.31394124092313,125,35.383612025908263,1049,240.4329428343795,1699,342.84107105187968]
[null,"With a disability",15,28.844410203711913,21,23.345235059857504,14,21.213203435596427,14,19.416487838947599,104,70.178344238091,79,45.453272709454048,129,51.107729356722551,591,183.38211472223784,23,17.804493814764857,47,45.221676218380054,80,51.662365412357957,30,28.231188426986208,5,16.278820596099706,166,75.663729752107784,96,55.605755097831377,39,40.311288741492746,23,20.615528128088304,40,49.648766349225639,378,116.61903789690601,5,13.038404810405298,20,13.601470508735444,5,13.038404810405298,53,42.485291572496003,33,29.068883707497267,4,13.601470508735444,58,55.470712993434653,37,32.202484376209235,56,41.231056256176608,293,121.70866854912184,137,70.292247083159893,51,45.221676218380054,224,95.707888912043188,84,78.568441501661468,189,88.526832090615329,13,9.2195444572928871,0,22.627416997969522,56,45.486261662176638]
[null,"No disability",1000,229.8107917396396,890,159.2262541165872,412,103.23759005323593,663,138.65785228395831,959,189.02116283633427,617,113.17243480636087,889,131.55227098001768,6842,535.86005635800097,346,83.737685661833282,1356,276.05253123273474,2533,330.9531688925187,746,124.96399481450646,519,113.14592347937243,1398,191.91925385432282,2236,283.6212262860451,395,95.603347221736954,363,64.350602172784676,1403,304.38462510448846,4355,373.56927068483566,56,33.941125496954278,193,50.24937810560445,89,43.46262762420146,2637,308.56117707838752,1003,184.28510520386612,537,138.05795884337854,779,161.89502771858065,708,126.15070352558483,1692,309.07118921051182,5220,408.10415337264089,1955,323.13000479683097,528,197.68662069042509,6438,511.39417282561993,1330,199.48433522459854,1149,216.37467504308356,112,32.649655434629018,1049,240.4329428343795,1643,336.98219537536403]
[null,"35 to 64 years:",3177,191.637678967368,2667,126.73200069437868,2109,130.83195328359201,1914,123.45849504995596,2335,119.4026800369238,2318,128.81770064707723,1897,129.4488315899375,14836,501.02295356600183,1083,63.7808748764079,2909,253.24296633865274,6152,348.66172717979816,2186,132.77424449041311,1802,137.18600511714013,3528,227.547797176769,6931,273.3587386567329,1143,91.836811791350854,983,77.620873481300123,2579,258.83585532147589,11615,326.69557695199978,317,79.511005527536881,877,87,343,44.687805943008662,3471,248.64633518312712,2219,124.08464852672147,2018,146.03081866510234,1961,151.34728276384746,2362,160.20611723651504,3285,273.65854636754904,8415,397.43175514797508,4629,317.55471969410246,2554,238.94769302087852,11953,385.17528477304978,2794,214.80456233516085,3895,266.05638500137525,328,41.231056256176608,3508,217.17504460687928,6784,267.32003291934558]
[null,"With a disability",347,137.05838172107534,170,73.23933369440222,100,53.009433122794285,257,91.263355187062899,80,53.263495942343098,301,124.48293055676348,126,76.321687612368734,1799,300.89200720524298,54,27.586228448267445,369,147.82760229402356,717,173.97126199461795,127,55.901699437494742,195,84.172442046075858,305,{"$f":"SQRT((AD38^2)+(AD19^2))","v":152.95751043999115},706,152.89865924853626,42,27.802877548915689,66,27.294688127912362,212,101.9803902718557,1092,216.6679487141557,17,18.027756377319946,53,23.345235059857504,18,10.295630140987001,323,96.834911060009759,129,68.425141578224014,131,62.481997407253232,183,75.213030785895072,183,76.006578662639456,227,100.17983829094555,742,212.8966885604377,609,184.61310896033359,87,63.063460101710248,1091,219.93862780330335,254,123.16655390161731,589,165.20593209688326,22,10,253,102.80077820717118,221,97.621718894926246]
[null,"No disability",2830,210.76052761368766,2497,133.9589489358587,2009,145.72576985557495,1657,141.42842712835352,2255,130.60245020672468,2017,152.22680447279973,1771,135.88230201170424,13037,491.67977383658967,1029,62.241465278381739,2540,251.745903640953,5435,343.84007910655208,2059,136.78084661238211,1607,143.84018909887459,3223,208.79894635749483,6225,284.3958508839396,1101,93.813645062965122,917,76.837490849194182,2367,251.31056483960239,10523,360.67991349671803,300,78.243210568074218,824,83.450584180100265,325,44.687805943008662,3148,244.69777277286363,2090,127.47548783981962,1887,148.16544806398016,1778,149.91330828182001,2179,167.60071598892409,3058,261,7673,390.00641020372984,4020,319.69047530384762,2467,249.80392310770461,10862,389.48684188300894,2540,226.10838109190027,3306,269.65162710430656,306,40.607881008493905,3255,225.39742678211746,6563,264.59402865522117]
[null,"65 to 74 years:",902,189.61276328348785,569,83.546394296821688,304,86.838931361457924,457,64.443773942872099,489,107.05606008068857,379,87.726848797845236,452,86.267027304758798,2678,247.69335881286764,262,40.459856648287818,967,185.26737435393204,1475,198.9572818471342,387,73,469,69.296464556281663,1021,130.83195328359201,2230,204.89997559785115,285,61.220911460055866,299,47.010637094172637,688,160.58953888718904,2472,198.71587757398754,190,52.801515129776341,138,37.483329627982627,104,25,865,133.79461872586654,549,94.752308678997366,697,121.65936051122412,463,98.081598681913832,537,106.21205204683694,690,146.38647478507022,2217,246.91699009991191,979,156.46405337968207,1001,193.87624919004389,3132,260.92336039534672,472,115.96551211459379,1352,176.78235206037959,114,25.45584412271571,769,147.92227688891217,1151,162.93557008830209]
[null,"With a disability",130,103.94229168149026,116,46.097722286464439,57,38.183766184073569,125,59.033888572581766,100,67.082039324993687,94,51.884487084291386,91,50.990195135927848,617,140.80127840328723,70,28.42534080710379,423,156.60459763365824,349,144.4749113168096,36,30.083217912982647,31,26.40075756488817,219,97.082439194738001,380,109.71326264403953,21,14.7648230602334,38,14.422205101855956,153,69.526973183074787,414,124.53112060846478,21,23.706539182259394,25,22.561028345356956,16,9.4339811320566032,166,70.576199954375554,120,56.859475903318,105,57.706152185014034,116,72.862884927787476,75,40,194,81.024687595818591,398,120.41594578792295,167,77.987178433380961,163,102.2154587134451,578,134.06341782902598,115,75.471849056452825,349,115.10864433221339,27,15.264337522473747,157,79.05694150420949,120,72.111025509279784]
[null,"No disability",772,164.10362579784763,453,86.371291526756735,247,78.492037812761623,332,72.47068372797375,389,89.358827208060418,285,74.652528423356159,361,75.822160349069449,2061,240.98340191805741,192,39.623225512317902,544,155.79473675320358,1126,178.0028089666003,351,72.249567472753768,438,69.296464556281663,802,129.634100452003,1850,182.04395073717774,264,60.440052945046304,261,45.803929962395145,535,149.96666296213968,2058,193.76790239872031,169,48.166378315169183,113,32.649655434629018,88,23.853720883753127,699,123.23960402403117,429,89.872131386765275,592,114.20157617125956,347,80.212218520621903,462,108.75660899458019,496,128.03515142334936,1819,227.03523955544875,812,146.38647478507022,838,181.9505427307102,2554,257.0311265197272,357,118.1397477566293,1003,149.91330828182001,87,20.615528128088304,612,135.88230201170424,1031,161.44348856488452]
[null,"75 years and over:",473,114.20157617125956,186,65,357,84.599054368237475,237,88.323269867006175,147,59.059292240933601,174,61.073725938409879,222,88.481636512894582,1189,211.52068456772733,191,50.209560842532767,311,114.5512985522207,1821,239.88538930080756,369,94.069123520951337,257,67.007462271003817,661,169.53170794869024,1468,184.58873205046942,86,30,152,38.209946349085598,388,127.66362050325849,1196,217.91970998512272,139,48.918299234540036,101,39.623225512317902,81,32.526911934581186,445,137.93114224133723,209,84.899941107164494,388,100.42410069301094,282,100.65783625729296,291,100.44899203078147,575,183.44754018519845,1239,202.60799589354809,436,111.12605455067681,497,152.26949793047851,2228,277.85247884444004,316,168.90825912311098,937,166.37307474468338,75,26.172504656604801,448,123.04470732217619,936,182.52123164169149]
[null,"With a disability",212,83.546394296821688,62,41.231056256176608,193,71.56116265125938,137,76.53757247260981,92,52.630789467763066,78,42.449970553582247,164,72.945184899347538,529,160.51479682571323,72,28.319604517012593,209,101.40019723846694,1046,216.6887168266959,151,65,126,58.258046654518033,257,124.63145670335399,509,132.28000604777731,36,22.203603311174518,79,30.413812651491099,166,81.6333265278342,468,116.10340218959993,40,26.076809620810597,62,35.355339059327378,41,31.144823004794873,355,132.94359706281458,84,55.154328932550705,134,69.526973183074787,75,51.039200620699383,100,55.946402922797461,337,142.3411395205195,405,111.77208953938367,92,54.405882034941776,267,120.30378215168466,853,219.40145851839728,176,110.57124400132251,410,126.56223765404908,33,18.867962264113206,142,69.426219830839131,360,121.65936051122412]
[null,"No disability",261,100.12492197250393,124,55,164,60.901559914340453,100,53.075418038862395,55,30.805843601498726,96,47.634021455258214,58,38.013155617496423,660,143.95138068111746,119,45.453272709454048,102,71.805292284064961,775,192.21342304844373,218,76.006578662639456,131,46.400431032480725,404,127.28707711311466,959,155.79473675320358,50,27.294688127912362,73,24.041630560342615,222,101.82337649086284,728,177.80044994318772,99,41.617304093369626,39,21.400934559032695,40,13.45362404707371,90,54.817880294662984,125,65.863495200300449,254,81.841309862440497,207,86.608313688698502,191,82.419657849326214,238,106.88779163215975,834,165.55663683464942,344,96.938124595021947,230,95.775779819325933,1375,237.62154784446633,140,98.081598681913832,527,142.68847185389575,42,16.552945357246848,306,105.47511554864494,576,152.97058540778355]
[]
[]
[]
[]
[]
[]
[]
[]
[]
[]
[]
[]
[]
[]
[]
[]
[]
[]
[]
[]
[]
[]
[]
[]
[]
[]
["B18101. SEX BY AGE BY DISABILITY STATUS\n-Calculated"]
["Universe:  Civilian non-institutionalized population"]
["Data Set: 2010-2014 American Community Survey 5-Year Estimates"]
[]
[]
[null,null,"Atkinson",null,"Auburn",null,"Brentwood",null,"Candia",null,"Chester",null,"Danville",null,"Deerfield",null,"Derry",null,"East Kingston",null,"Epping",null,"Exeter",null,"Fremont",null,"Greenland",null,"Hampstead",null,"Hampton",null,"Hampton Falls",null,"Kensington",null,"Kingston",null,"Londonderry",null,"New Castle",null,"Newfields",null,"Newington",null,"Newmarket",null,"Newton",null,"North Hampton",null,"Northwood",null,"Nottingham",null,"Plaistow",null,"Portsmouth",null,"Raymond",null,"Rye",null,"Salem",null,"Sandown",null,"Seabrook",null,"South Hampton",null,"Stratham",null,"Windham"]
[null,null,"Estimate","Margin Of Error","Estimate","Margin Of Error","Estimate","Margin Of Error","Estimate","Margin Of Error","Estimate","Margin Of Error","Estimate","Margin Of Error","Estimate","Margin Of Error","Estimate","Margin Of Error","Estimate","Margin Of Error","Estimate","Margin Of Error","Estimate","Margin Of Error","Estimate","Margin Of Error","Estimate","Margin Of Error","Estimate","Margin Of Error","Estimate","Margin Of Error","Estimate","Margin Of Error","Estimate","Margin Of Error","Estimate","Margin Of Error","Estimate","Margin Of Error","Estimate","Margin Of Error","Estimate","Margin Of Error","Estimate","Margin Of Error","Estimate","Margin Of Error","Estimate","Margin Of Error","Estimate","Margin Of Error","Estimate","Margin Of Error","Estimate","Margin Of Error","Estimate","Margin Of Error","Estimate","Margin Of Error","Estimate","Margin Of Error","Estimate","Margin Of Error","Estimate","Margin Of Error","Estimate","Margin Of Error","Estimate","Margin Of Error","Estimate","Margin Of Error","Estimate","Margin Of Error","Estimate","Margin Of Error"]
[null,"Total",6788,19,5078,20,4184,165,3920,21,4802,18,4416,39,4330,19,33018,137,2453,130,6587,17,14251,110,4306,45,3668,15,8496,64,14765,183,2307,123,2055,149,6060,19,24247,24,966,162,1621,222,798,136,8911,33,4700,39,4344,22,4269,16,4855,17,7614,26,20789,309,10202,23,5275,65,28729,56,6133,38,8736,25,799,123,7303,19,13908,55]
[null,"Under 5 years:",211,120.90492132250036,202,84.628600366542756,159,77.935871073594853,128,58,274,108.46658471621571,234,99.569071503153026,213,79.404030124421269,1416,290.9518860567843,133,42.5205832509386,479,147.10540438746634,639,189.58902921846507,275,113.74093370462545,201,81.344944526380985,380,129.1394595001853,415,121.01652779682617,117,47.634021455258214,101,43.324358044868937,344,149.21796138535066,1076,187.44865963777923,26,25.238858928247925,66,34.828149534535996,28,19.849433241279208,430,135.20355024924456,301,119.55333537798099,282,112.29425630903836,294,119.88327656516567,274,95,406,192.83671849520775,1063,200.17242567346781,688,159.80613254815975,129,81.024687595818591,1171,225.36414976655004,453,174.7483905505284,453,185.56400513030539,39,21.023796041628639,296,170.18813119603846,772,181.02486017119307]
[null,"With a disability",0,21.213203435596427,0,21.213203435596427,0,15.556349186104045,0,15.556349186104045,0,15.556349186104045,0,15.556349186104045,0,15.556349186104045,0,32.526911934581186,0,15.556349186104045,0,21.213203435596427,0,24.041630560342615,0,15.556349186104045,0,15.556349186104045,0,21.213203435596427,0,24.041630560342615,0,15.556349186104045,0,15.556349186104045,0,21.213203435596427,0,28.284271247461902,0,15.556349186104045,0,15.556349186104045,0,15.556349186104045,0,21.213203435596427,0,15.556349186104045,0,15.556349186104045,0,15.556349186104045,0,15.556349186104045,14,27.459060435491963,6,22.360679774997898,37,46.238512086787566,25,42.720018726587654,12,27.586228448267445,0,21.213203435596427,0,21.213203435596427,0,15.556349186104045,48,71.589105316381762,0,24.041630560342615]
[null,"No disability",211,120.90492132250036,202,84.628600366542756,159,77.935871073594853,128,58,274,108.46658471621571,234,99.569071503153026,213,79.404030124421269,1416,290.9518860567843,133,42.5205832509386,479,147.10540438746634,639,189.58902921846507,275,113.74093370462545,201,81.344944526380985,380,129.1394595001853,415,121.01652779682617,117,47.634021455258214,101,43.324358044868937,344,149.21796138535066,1076,187.44865963777923,26,25.238858928247925,66,34.828149534535996,28,19.849433241279208,430,135.20355024924456,301,119.55333537798099,282,112.29425630903836,294,119.88327656516567,274,95,392,192.41881404893857,1057,200.17242567346781,651,156.64609794054877,104,74.652528423356159,1159,222.27235545609355,453,174.7483905505284,453,185.56400513030539,39,21.023796041628639,248,124.35433245367851,772,181.02486017119307]
[null,"5 to 17 years:",1220,209.34660255184463,962,143.93401265857906,1026,152.05262246998569,651,122.57650672131263,925,182.23611058184929,922,137.18600511714013,811,136.61991070118586,6028,450.62734049322842,420,68.818602136341013,976,218.04815981796315,2696,292.17973920174546,718,116.04309544302927,678,122.34786471369249,1471,211.3409567499873,2349,316.90061533547077,412,74.276510418839678,383,65.80273550544841,884,208.06008747474851,4891,333.04804458215932,94,49.203658400570177,377,79.195959492893323,71,29.206163733020468,1468,285.03508555965527,930,179.61069010501575,585,140.08925726121899,623,240.160363090998,765,117.6860229593982,1263,256.22255950637913,2321,287.21072403376581,1785,275.33434220961249,660,118.22436297142819,4582,386.87077946001557,1026,220.7306050369998,856,173.55690709389816,110,31.89043743820395,1413,197.64867821465441,2824,276.55198426335687]
[null,"With a disability",0,21.213203435596427,30,27.459060435491963,29,24.083189157584592,22,20.518284528683193,98,65.969690009882569,112,72.249567472753768,107,77.826730626437083,257,98.473346647709704,6,14.212670403551895,67,62.81719509815764,175,104.48444860360799,47,39.560080889704963,33,33.837848631377263,32,27.202941017470888,78,58.309518948453004,12,17.804493814764857,8,7.0710678118654755,52,55.081757415681643,311,110.3177229641729,0,15.556349186104045,20,17.029386365926403,5,13.038404810405298,65,50.596442562694072,0,15.556349186104045,0,15.556349186104045,49,48.270073544588683,45,34.481879299133332,79,77.414468931847622,94,59.169248769948062,69,53.758720222862451,19,25,193,106.15083607772479,20,29.154759474226502,59,66.708320320631671,4,12.083045973594572,60,68.154236845554948,35,40.718546143004666]
[null,"No disability",1220,209.34660255184463,932,144.1700384962146,997,149.77316181479245,629,120.50726119201282,827,179.17589123540031,810,138.19189556555045,704,164.2589419179364,5771,442.9740398714128,414,68.818602136341013,909,224.26992665089986,2521,290,671,105.55093557141026,645,123.79418403139947,1439,209.95475703112803,2271,311.5670072392133,400,75.663729752107784,375,64.404968752418469,832,203.03940504246953,4580,333.67798848590536,94,49.203658400570177,357,77.794601355106892,66,26.172504656604801,1403,280.82912954321529,930,179.61069010501575,585,140.08925726121899,574,240.160363090998,720,113.95174417269794,1184,261.6123085789352,2227,286.29530209208815,1716,272.85344051340087,641,115.93532679903913,4389,387.2376531278951,1006,221.46105752479374,797,168.43396332094071,106,31.240998703626616,1353,204.47493733951845,2789,273.12268305653413]
[null,"18 to 34 years:",981,199.42417105255822,797,185.52627846210896,525,138.77319625922004,543,105.41821474489122,793,148.55302083767936,748,138.70832707519762,599,119.20570456148481,7853,528.2319566251175,401,79.39773296511683,1067,207.71133815947553,2158,269.43088167468852,772,139.51702405083043,399,94.810336989170125,1330,206.60348496576722,1768,258.00193797721755,353,85.796270315206598,253,47.201694884823787,1077,209.38003725283841,4259,354.7745763157219,82,42.43819034784589,208,54.203320931470607,199,58.051701094799967,2434,300.70749907509787,885,199.98499943745782,526,127.02755606560333,693,159.66527487215245,734,161.44348856488452,1337,271.44796923167428,5132,464.96128871122164,2179,230.58620947489467,568,164.61470165206995,5430,423.58588267315992,1244,235.35717537394095,1769,531.26641151121157,116,40.311288741492746,910,207.87015177749788,2053,307.35321699959479]
[null,"With a disability",0,21.213203435596427,55,66.940271884718243,66,41.593268686170845,20,25.495097567963924,11,22.825424421026653,73,54.230987451824994,64,40.36087214122113,497,138.00362314084367,22,17.691806012954132,91,82.764726786234249,95,60.901559914340453,46,34.132096331752024,30,26.92582403567252,12,22.671568097509269,50,47.010637094172637,5,13.601470508735444,22,18.867962264113206,62,68.117545463705611,175,78.746428490440124,8,17.029386365926403,8,17.029386365926403,3,12.083045973594572,203,123.89108119634763,10,20.248456731316587,64,64.938432380216881,15,20.248456731316587,34,32.756678708318397,154,95.707888912043188,255,105.94810050208545,140,86.034876648949762,72,90.470989825468365,128,76.400261779656233,48,44.77722635447622,50,49.979995998399197,19,22.360679774997898,198,122.42957159118053,38,36.674241641784498]
[null,"No disability",981,199.42417105255822,742,162.11415730897781,459,126.21014222319853,523,103.39245620450265,782,149.28161306738349,675,134.31678971744373,535,117.44360348695028,7356,533.34604151526241,379,75.927597090912869,976,195.34584715319647,2063,272.94321753800733,726,139.05394636614957,369,90,1318,207.40781084616847,1718,260,348,85.796270315206598,231,46.61544808322666,1015,206.51876428063383,4084,356.85431200981725,74,40.80441152620633,200,54.203320931470607,196,58.728187440104094,2231,287.58650872389683,875,200.81085628023203,462,115.6027681329474,678,156.63013758533191,700,159.36436239009021,1183,261.01724080987447,4877,459.65421786381989,2039,229.10696191953662,496,143.83671297690307,5302,431.41859023458875,1196,229.10696191953662,1719,530.47902880321294,97,34.132096331752024,712,195.23319389898839,2015,308.69078379504629]
[null,"35 to 64 years:",3245,188.09572031282372,2640,113.17243480636087,2088,124.84390253432484,2115,121.37956994486346,2342,131.03434664239754,2078,138.77319625922004,2258,115.97413504743201,14408,482.97929562249351,1061,65.053823869162372,3193,239.73527066328811,6190,306.18458485038076,2002,152.62044423995101,1815,136.03308421115798,3917,246.1097316239242,7316,330.49357028541419,1070,86.556340033529608,1064,73.246160308919954,2843,181.04143172213369,11391,305.52250326285298,436,91.285267157411553,798,91.934759476489631,353,51.623637996561229,3678,287.76726707532254,2160,146.38647478507022,2138,153.83757668398187,2027,153.63918770938616,2629,182.98087331740442,3572,268.06902096288559,8965,394.08755372378863,4525,286.00699292150182,2676,222.87440409342656,13162,403.75859123986453,2858,185.97042775667319,3903,344.98840560227529,400,52.497618993626752,3798,176.47662734764623,6470,269.32879534130768]
[null,"With a disability",249,96.896852374058057,168,61.911226768656427,63,36.069377593742864,144,66.573267908372955,175,63.702433234531945,131,63.126856408346519,184,80.230916734136841,1587,285.70264261990997,76,29.732137494637012,385,148.00337833982033,575,184.28781837115551,120,47.801673610868477,100,50.990195135927848,156,67.119296778199342,771,208.47062143141417,52,22.803508501982758,88,39.05124837953327,222,110.67971810589327,815,181.57092278225608,12,14.866068747318506,43,25.059928172283335,19,15.811388300841896,517,148.52945835759317,191,77.155686763841331,166,69.971422738143602,122,75.166481891864535,236,74.330343736592525,382,148.22280526288793,931,183.22117781522965,701,169.71151993898351,115,72.249567472753768,1073,226.0486673263083,195,88.41379982785493,663,189.76301009416983,25,12.727922061357855,268,139.20129309744217,238,100.00499987500625]
[null,"No disability",2996,191.16746585127919,2472,112.44998888394787,2025,128.42507543311004,1971,126.40015822774906,2167,148.22280526288793,1947,140.07141035914503,2074,128.03515142334936,12821,536.13804192577118,985,68.593002558570063,2808,245.57687187518292,5615,291.81158304632118,1882,156.84705926475002,1715,142.05632685663809,3761,249.65776575143823,6545,379.06463828745621,1018,87.321245982864909,976,73.006848993775918,2621,205.45559130868159,10576,340.87241014784405,424,86.977008456258133,755,89.10667763978185,334,49.51767361255979,3161,278.77230852435827,1969,149.24141516348604,1972,150.04665940966495,1905,146.64924138910504,2393,193.33132182861627,3190,272.72146963523056,8034,382.35062442737035,3824,298.51968109322371,2561,223.80795338861395,12089,449.77438788797213,2663,205.29978080845581,3240,350.02428487177855,375,53.150729063673246,3530,228.03727765433439,6232,285.60287113402762]
[null,"65 to 74 years:",622,142.43595051811886,313,60.811183182043088,243,62.241465278381739,315,86.313382508160345,322,86.278618440491968,226,92.849340331528467,336,76.216796049164913,1839,212.20744567521658,313,50.447993022517757,548,148.40485167271319,1351,169.01183390520322,395,93.434469014384618,280,65.299310869258036,935,145.60219778561037,1728,187.49133313302778,241,45.793012567421243,190,32.015621187164243,564,132.90974381135493,1892,218.58865478336244,154,45.967379738244816,87,32.015621187164243,87,31.827660925679098,513,107.44766167767449,249,84.958813551037778,526,101.86265262597475,405,95.414883535012507,279,66.030296076876709,527,141.24092891226678,1831,211.51832071950648,741,164.65721970202219,554,190.4337155022713,2700,270.86712609691119,325,86.313382508160345,1081,206.86710710018642,80,19.798989873223331,475,116.03878661895772,952,201.13676938839401]
[null,"With a disability",172,97.082439194738001,23,21.2602916254693,62,38.418745424597091,28,27.202941017470888,34,27.313000567495326,83,61.26989472816156,39,28.319604517012593,363,97.082439194738001,33,19.209372712298546,147,112.53888216967503,314,109.55363982999378,43,30,39,26.40075756488817,140,60.141499815019579,275,90.824005637276315,60,33.241540277189323,49,19.723082923316021,100,64.257295305669373,265,81.21576201698781,12,8.9442719099991592,12,9.2195444572928871,39,26.90724809414742,122,62.289646009589745,60,37.947331922020552,114,56.612719418872643,63,39.623225512317902,42,27.730849247724095,138,82.292162445763935,404,116.60617479361889,169,78.517513969814402,56,41.109609582188931,507,128.84486796143648,91,53.851648071345039,339,131.13733259449805,5,5,126,70.455659815234142,102,72.201108024738787]
[null,"No disability",450,127.06297651164952,290,62.936475910238251,181,55.901699437494742,287,85.586213843118443,288,83.546394296821688,143,79.208585393251411,297,78.006409993025571,1476,212.20744567521658,280,48.836461788299118,401,111.94641575325224,1037,153.52198539622916,352,91.967385523347346,241,63.126856408346519,795,140.66271716414411,1453,181.04419349981927,181,46.141087980237309,141,29.206163733020468,464,123.98790263570072,1627,210.8885961829136,142,45.967379738244816,75,29.206163733020468,48,17.204650534085253,391,87.418533504057365,189,83.486525858967212,412,93.434469014384618,342,89.587945617700157,237,62.481997407253232,389,120.34118164618461,1427,197.62590923257,572,142.43595051811886,498,189.76301009416983,2193,251.38217916153087,234,81.344944526380985,742,177.34147850968199,75,18.439088914585774,349,102.82509421342633,850,187.01871564097536]
[null,"75 years and over:",509,126.73200069437868,164,48.166378315169183,143,48.020828814171878,168,75.153176912223742,146,63.513778032801667,208,81.320354155647891,113,49.51767361255979,1474,212.41704263076446,125,41.617304093369626,324,158.52129194527782,1217,191.12822920751398,144,65,295,65.604877867426907,463,129.634100452003,1189,214.86972797488249,114,36.76955262170047,64,21.400934559032695,348,106.88779163215975,738,145.45446022724775,174,49.51767361255979,85,30.413812651491099,60,22.671568097509269,388,144.01388821915754,175,61.073725938409879,287,74.94664769020693,227,93.605555390692487,174,63.890531379853151,509,145.42695761102891,1477,193.70596273734063,284,82.97590011563598,688,186.45374761586316,1684,235.77955806218657,227,84.38601779915912,674,213.71476317746513,54,21.2602916254693,411,99.297532698451278,837,214.27319011019554]
[null,"With a disability",133,65.604877867426907,52,30.886890422961002,37,26.172504656604801,70,58.523499553598128,80,49.03060268852505,100,61.220911460055866,75,42.720018726587654,706,162.74212730574712,61,27.313000567495326,143,108.90821823902914,601,152.55490814785344,75,53.160135440008048,125,47.381430961928537,145,61.911226768656427,509,150.65523555456014,42,24.596747752497688,34,13.601470508735444,127,63.28506932918696,318,99.322706366671255,70,28.231188426986208,29,17.888543819998318,16,13,136,55.605755097831377,75,39.623225512317902,173,64.660652641308843,73,53.235326616824658,41,27.202941017470888,190,101.17806086301516,617,165.9548131269473,113,61.073725938409879,278,115.97413504743201,860,176.32356620712955,109,60.876925020897694,377,200.24984394500785,15,14.866068747318506,194,81.884064383737083,318,125.25573839150046]
[null,"No disability",376,116.38728452885221,112,43.185645763378368,106,45.650848842053307,98,41.109609582188931,66,36.235341863986875,108,57.008771254956898,38,27.313000567495326,768,180.54362353736008,64,35.383612025908263,181,117.04699910719626,616,131.24404748406687,69,41.231056256176608,170,58.249463516842795,318,110.39021695784459,680,146.57762448614045,72,31.400636936215164,30,16.401219466856727,221,99.35793878699377,420,103.07764064044152,104,42.201895692018383,56,24.839484696748443,44,17.888543819998318,252,133.75350462698165,100,45.607017003965517,114,45.486261662176638,154,74.953318805774032,133,58,319,122.41323457861898,860,156.24659996300718,171,76.550636836018555,410,142.21462653327893,824,189.61276328348785,118,65,297,118.15244390193544,39,18.439088914585774,217,74.632432628181164,519,180.40509970618902]

{"sheet":"ACS_Table_B18102","index":32,"n_rows":125,"n_cols":76,"rows_kept":125,"cut":false,"hidden":true,"merged":[]}
["B18102. SEX BY AGE BY HEARING DIFFICULTY\n\n"]
["Universe:  Civilian non-institutionalized population"]
["Data Set: 2015-2019 American Community Survey 5-Year Estimates"]
[]
[null,null,"Atkinson",null,"Auburn",null,"Brentwood",null,"Candia",null,"Chester",null,"Danville",null,"Deerfield",null,"Derry",null,"East Kingston",null,"Epping",null,"Exeter",null,"Fremont",null,"Greenland",null,"Hampstead",null,"Hampton",null,"Hampton Falls",null,"Kensington",null,"Kingston",null,"Londonderry",null,"New Castle",null,"Newfields",null,"Newington",null,"Newmarket",null,"Newton",null,"North Hampton",null,"Northwood",null,"Nottingham",null,"Plaistow",null,"Portsmouth",null,"Raymond",null,"Rye",null,"Salem",null,"Sandown",null,"Seabrook",null,"South Hampton",null,"Stratham",null,"Windham"]
[null,null,"Estimate","Margin Of Error","Estimate","Margin Of Error","Estimate","Margin Of Error","Estimate","Margin Of Error","Estimate","Margin Of Error","Estimate","Margin Of Error","Estimate","Margin Of Error","Estimate","Margin Of Error","Estimate","Margin Of Error","Estimate","Margin Of Error","Estimate","Margin Of Error","Estimate","Margin Of Error","Estimate","Margin Of Error","Estimate","Margin Of Error","Estimate","Margin Of Error","Estimate","Margin Of Error","Estimate","Margin Of Error","Estimate","Margin Of Error","Estimate","Margin Of Error","Estimate","Margin Of Error","Estimate","Margin Of Error","Estimate","Margin Of Error","Estimate","Margin Of Error","Estimate","Margin Of Error","Estimate","Margin Of Error","Estimate","Margin Of Error","Estimate","Margin Of Error","Estimate","Margin Of Error","Estimate","Margin Of Error","Estimate","Margin Of Error","Estimate","Margin Of Error","Estimate","Margin Of Error","Estimate","Margin Of Error","Estimate","Margin Of Error","Estimate","Margin Of Error","Estimate","Margin Of Error","Estimate","Margin Of Error"]
[null,"Total:",6952,33,5446,21,4317,134,3936,18,5129,26,4515,29,4476,31,33242,113,2432,192,6952,32,14914,113,4623,84,3992,32,8612,20,15379,100,2383,164,2291,139,6260,29,25907,39,835,178,1757,227,710,89,9034,41,4920,22,4444,25,4286,27,5050,25,7689,26,20695,172,10428,23,5410,90,29090,108,6389,17,8820,31,775,94,7427,21,14512,46]
[null,"Male:",3495,246,2769,154,2150,112,2075,136,2559,150,2318,114,2181,105,16573,536,1221,149,3508,210,6847,330,2303,144,1911,108,4136,248,7537,274,1287,105,1165,82,3315,286,12718,292,379,101,811,111,368,61,4628,275,2553,179,2089,123,1958,167,2320,123,3609,274,9881,356,5176,302,2865,216,14779,424,3128,242,4283,199,373,49,3833,250,7227,322]
[null,"Under 5 years:",163,117,196,72,130,72,88,46,134,61,77,64,111,65,906,251,37,22,218,112,330,127,139,83,100,53,135,76,284,122,31,21,86,30,145,126,724,147,0,11,32,22,22,17,179,90,85,53,31,29,58,45,123,66,151,94,377,128,297,122,78,61,876,229,170,95,94,64,12,8,230,101,410,143]
[null,"With hearing difficulty",0,16,0,16,0,11,0,11,0,16,0,11,0,11,0,24,0,11,0,16,0,18,0,11,0,11,0,16,0,18,0,11,0,11,0,16,0,21,0,11,0,11,0,11,0,16,0,11,0,11,0,11,0,16,0,16,0,21,0,18,0,16,0,21,0,16,0,16,0,11,0,16,0,18]
[null,"With no hearing difficulty",163,117,196,72,130,72,88,46,134,61,77,64,111,65,906,251,37,22,218,112,330,127,139,83,100,53,135,76,284,122,31,21,86,30,145,126,724,147,0,11,32,22,22,17,179,90,85,53,31,29,58,45,123,66,151,94,377,128,297,122,78,61,876,229,170,95,94,64,12,8,230,101,410,143]
[null,"5 to 17  years:",604,207,391,97,501,84,267,114,466,107,427,121,359,98,2877,337,262,87,579,179,1074,190,297,94,286,77,741,168,927,159,230,57,176,55,447,184,2425,261,58,55,114,40,30,18,650,194,361,87,228,96,262,82,311,104,462,163,1198,203,858,240,364,99,1951,275,578,155,569,160,49,20,827,169,1412,251]
[null,"With hearing difficulty",0,16,0,16,0,11,0,11,14,22,0,11,0,11,8,14,6,9,0,16,0,18,0,11,0,11,0,16,6,8,5,7,0,11,0,16,39,48,0,11,0,11,0,11,0,16,0,11,0,11,8,14,0,16,0,16,13,20,0,18,0,16,15,24,50,68,0,16,0,11,0,16,0,18]
[null,"With no hearing difficulty",604,207,391,97,501,84,267,114,452,104,427,121,359,98,2869,335,256,89,579,179,1074,190,297,94,286,77,741,168,921,160,225,56,176,55,447,184,2386,265,58,55,114,40,30,18,650,194,361,87,228,96,254,80,311,104,462,163,1185,203,858,240,364,99,1936,276,528,131,569,160,49,20,827,169,1412,251]
[null,"18 to 34  years:",529,159,451,110,177,73,335,97,521,167,350,82,449,94,3469,371,172,65,740,212,1122,240,382,96,275,80,818,124,1241,211,248,78,211,51,854,247,2336,248,33,27,105,38,57,40,1407,230,615,141,340,109,319,86,401,90,919,218,2691,306,1085,263,406,178,3676,376,739,152,650,157,67,26,506,172,1065,288]
[null,"With hearing difficulty",0,16,0,16,0,11,7,11,0,16,0,11,0,11,40,37,6,8,0,16,0,18,9,15,0,11,0,16,17,26,0,11,0,11,0,16,20,26,0,11,0,11,0,11,0,16,0,11,0,11,0,11,0,16,0,16,11,17,29,34,0,16,11,19,0,16,47,58,0,11,0,16,0,18]
[null,"With no hearing difficulty",529,159,451,110,177,73,328,96,521,167,350,82,449,94,3429,368,166,66,740,212,1122,240,373,95,275,80,818,124,1224,209,248,78,211,51,854,247,2316,249,33,27,105,38,57,40,1407,230,615,141,340,109,319,86,401,90,919,218,2680,306,1056,258,406,178,3665,376,739,152,603,160,67,26,506,172,1065,288]
[null,"35 to 64  years:",1560,134,1325,85,1092,91,967,101,1106,71,1168,95,926,94,7546,340,533,48,1340,184,3024,251,1114,102,889,96,1600,143,3373,210,575,75,459,48,1299,186,5642,233,142,51,431,63,176,34,1770,196,1097,81,1008,115,975,109,1134,129,1498,195,4083,256,2254,220,1318,186,5934,286,1326,171,1970,181,151,26,1683,158,3335,186]
[null,"With hearing difficulty",73,72,24,26,34,38,52,31,12,18,60,61,19,23,123,84,6,9,15,23,143,82,38,29,50,44,57,61,55,47,18,22,14,8,18,29,69,46,4,7,14,13,11,9,18,29,9,14,12,20,44,32,20,21,90,81,46,45,40,38,35,39,113,68,105,80,73,81,0,11,72,57,53,43]
[null,"With no hearing difficulty",1487,133,1301,86,1058,106,915,105,1094,73,1108,99,907,94,7423,350,527,49,1325,181,2881,234,1076,101,839,111,1543,142,3318,217,557,76,445,49,1281,177,5573,229,138,51,417,61,165,34,1752,191,1088,80,996,115,931,105,1114,127,1408,185,4037,253,2214,223,1283,194,5821,286,1221,189,1897,194,151,26,1611,167,3282,184]
[null,"65 to 74  years:",412,112,351,62,142,50,258,48,286,81,202,60,221,61,1273,154,125,26,497,130,567,100,155,48,242,49,522,91,1041,128,142,48,162,37,339,110,1124,152,83,32,77,27,45,15,392,99,293,67,338,76,213,62,197,65,327,102,1003,142,504,105,484,132,1535,185,228,82,710,124,63,18,359,109,562,122]
[null,"With hearing difficulty",0,16,47,27,8,12,32,27,30,24,7,12,20,27,163,63,25,16,73,54,16,20,0,11,0,11,65,40,72,39,0,11,9,7,50,43,168,106,0,11,14,19,7,8,71,53,55,35,29,27,29,26,33,31,11,18,45,40,47,47,32,38,79,47,25,30,49,48,10,7,38,38,44,40]
[null,"With no hearing difficulty",412,112,304,67,134,47,226,49,256,79,195,58,201,58,1110,169,100,26,424,136,551,96,155,48,242,49,457,81,969,122,142,48,153,37,289,104,956,145,83,32,63,22,38,13,321,94,238,65,309,77,184,59,164,60,316,101,958,140,457,104,452,137,1456,186,203,80,661,111,53,16,321,101,518,120]
[null,"75  years and Older:",227,91,55,33,108,41,160,76,46,28,94,47,115,73,502,145,92,36,134,81,730,149,216,68,119,53,320,110,671,133,61,24,71,26,231,97,467,140,63,32,52,29,38,23,230,95,102,58,144,62,131,66,154,69,252,122,529,123,178,82,215,95,807,171,87,57,290,76,31,19,228,86,443,125]
[null,"With hearing difficulty",54,45,0,16,23,23,81,67,8,13,31,26,87,59,161,72,26,16,101,71,262,95,96,63,46,36,70,53,120,60,12,14,6,7,42,51,123,63,18,20,26,25,7,7,121,83,20,21,18,20,19,21,10,16,90,85,86,51,15,16,60,44,100,55,10,18,99,53,6,5,54,41,130,73]
[null,"With no hearing difficulty",173,81,55,33,85,42,79,47,38,25,63,39,28,26,341,127,66,36,33,49,468,127,120,49,73,38,250,103,551,124,49,19,65,26,189,84,344,133,45,25,26,19,31,22,109,71,82,57,126,59,112,63,144,67,162,87,443,112,163,78,155,78,707,166,77,54,191,76,25,18,174,76,313,105]
[null,"Female:",3457,247,2677,155,2167,128,1861,135,2570,151,2197,113,2295,108,16669,542,1211,95,3444,210,8067,324,2320,149,2081,108,4476,250,7842,285,1096,100,1126,96,2945,286,13189,287,456,101,946,135,342,48,4406,280,2367,177,2355,120,2328,165,2730,124,4080,272,10814,356,5252,298,2545,210,14311,444,3261,239,4537,195,402,60,3594,250,7285,316]
[null,"Under 5 years:",112,65,146,75,145,69,92,65,131,59,67,50,74,40,724,159,11,12,220,109,315,123,119,59,63,35,244,105,123,65,33,20,74,24,75,72,661,139,18,28,50,40,6,7,252,110,118,52,72,44,82,59,158,72,130,74,432,118,277,120,96,69,597,193,216,112,129,77,7,7,95,70,534,134]
[null,"With hearing difficulty",0,16,0,16,0,11,0,11,0,16,0,11,0,11,0,24,0,11,0,16,0,18,0,11,0,11,0,16,0,18,0,11,0,11,0,16,29,35,0,11,0,11,0,11,0,16,0,11,0,11,0,11,0,16,0,16,17,27,0,18,0,16,0,21,0,16,0,16,0,11,0,16,0,18]
[null,"With no hearing difficulty",112,65,146,75,145,69,92,65,131,59,67,50,74,40,724,159,11,12,220,109,315,123,119,59,63,35,244,105,123,65,33,20,74,24,75,72,632,140,18,28,50,40,6,7,252,110,118,52,72,44,82,59,158,72,130,74,415,114,277,120,96,69,597,193,216,112,129,77,7,7,95,70,534,134]
[null,"5 to 17  years:",506,192,380,106,345,81,204,67,364,95,377,101,343,85,2599,285,217,42,345,121,1134,153,350,88,491,105,718,160,1084,159,141,39,135,36,495,174,2081,188,52,35,232,72,30,18,482,169,343,91,469,151,341,68,523,122,648,148,1304,179,860,278,241,83,1691,308,429,195,506,137,65,28,501,162,1586,213]
[null,"With hearing difficulty",0,16,0,16,0,11,0,11,0,16,0,11,0,11,18,30,3,7,0,16,0,18,0,11,0,11,8,13,0,18,0,11,0,11,0,16,13,20,0,11,0,11,0,11,0,16,0,11,0,11,0,11,0,16,0,16,0,21,0,18,0,16,15,24,0,16,0,16,0,11,0,16,21,32]
[null,"With no hearing difficulty",506,192,380,106,345,81,204,67,364,95,377,101,343,85,2581,280,214,40,345,121,1134,153,350,88,491,105,710,162,1084,159,141,39,135,36,495,174,2068,187,52,35,232,72,30,18,482,169,343,91,469,151,341,68,523,122,648,148,1304,179,860,278,241,83,1676,308,429,195,506,137,65,28,501,162,1565,211]
[null,"18 to 34  years:",486,162,460,115,249,74,342,101,542,109,346,80,569,98,3964,412,197,56,663,176,1491,232,394,80,249,79,746,145,1091,203,186,76,175,45,589,189,2397,278,28,24,108,34,37,19,1283,211,421,117,201,86,518,180,344,94,829,214,2822,298,1007,177,173,85,2986,359,675,143,688,163,58,24,543,168,634,186]
[null,"With hearing difficulty",0,16,0,16,0,11,0,11,0,16,0,11,36,37,12,18,0,11,0,16,0,18,0,11,0,11,0,16,0,18,0,11,0,11,0,16,27,41,0,11,0,11,0,11,0,16,0,11,0,11,0,11,0,16,0,16,0,21,12,20,0,16,14,19,0,16,0,16,0,11,0,16,0,18]
[null,"With no hearing difficulty",486,162,460,115,249,74,342,101,542,109,346,80,533,105,3952,412,197,56,663,176,1491,232,394,80,249,79,746,145,1091,203,186,76,175,45,589,189,2370,275,28,24,108,34,37,19,1283,211,421,117,201,86,518,180,344,94,829,214,2822,298,995,179,173,85,2972,359,675,143,688,163,58,24,543,168,634,186]
[null,"35 to 64  years:",1617,137,1342,94,1017,94,947,71,1229,96,1150,87,971,89,7290,368,550,42,1569,174,3128,242,1072,85,913,98,1928,177,3558,175,568,53,524,61,1280,180,5973,229,175,61,446,60,167,29,1701,153,1122,94,1010,90,986,105,1228,95,1787,192,4332,304,2375,229,1236,150,6019,258,1468,130,1925,195,177,32,1825,149,3449,192]
[null,"With hearing difficulty",24,36,8,14,9,16,0,11,0,16,19,21,44,53,201,90,13,13,36,40,90,62,12,18,17,17,7,11,68,47,0,11,16,17,17,28,156,75,0,11,0,11,0,11,46,37,21,25,29,26,27,25,30,27,0,16,81,44,105,75,0,16,71,66,17,28,24,29,5,5,24,33,18,25]
[null,"With no hearing difficulty",1593,139,1334,93,1008,98,947,71,1229,96,1131,90,927,88,7089,381,537,41,1533,176,3038,247,1060,86,896,104,1921,176,3490,179,568,53,508,61,1263,181,5817,239,175,61,446,60,167,29,1655,157,1101,94,981,93,959,111,1198,98,1787,192,4251,301,2270,222,1236,150,5948,264,1451,132,1901,197,172,32,1801,158,3431,189]
[null,"65 to 74  years:",490,153,218,56,162,71,199,43,203,70,177,64,231,61,1405,194,137,31,470,132,908,172,232,55,227,49,499,94,1189,160,143,38,137,29,349,117,1348,128,107,42,61,26,59,20,473,90,256,67,359,95,250,76,340,84,363,105,1214,202,475,116,517,142,1597,184,244,82,642,126,51,18,410,100,589,108]
[null,"With hearing difficulty",12,19,14,16,13,18,21,32,7,10,0,11,26,29,40,29,15,15,67,53,114,76,36,28,0,11,24,37,108,53,6,10,12,8,57,40,58,39,0,11,0,11,0,11,3,6,16,17,9,14,0,11,9,14,20,29,33,36,7,10,0,16,67,50,8,13,23,26,0,11,0,16,43,52]
[null,"With no hearing difficulty",478,151,204,56,149,67,178,49,196,66,177,64,205,58,1365,190,122,31,403,136,794,147,196,54,227,49,475,91,1081,153,137,37,125,27,292,109,1290,128,107,42,61,26,59,20,470,90,240,67,350,95,250,76,331,86,343,101,1181,200,468,113,517,142,1530,179,236,82,619,125,51,18,410,100,546,112]
[null,"75  years and Older:",246,69,131,56,249,74,77,45,101,52,80,39,107,50,687,154,99,35,177,81,1091,188,153,65,138,41,341,129,797,128,25,18,81,28,157,83,729,167,76,37,49,27,43,23,215,100,107,62,244,79,151,76,137,73,323,137,710,161,258,75,282,119,1421,219,229,159,647,148,44,18,220,88,493,133]
[null,"With hearing difficulty",90,49,17,18,37,27,0,11,64,49,10,16,35,28,120,87,18,13,24,37,262,97,9,15,21,23,23,25,115,80,5,9,15,9,10,16,97,62,10,11,21,23,5,5,77,89,64,51,60,50,10,17,29,41,93,58,77,57,10,16,51,50,272,126,47,68,209,109,6,7,17,27,114,72]
[null,"With no hearing difficulty",156,69,114,52,212,65,77,45,37,27,70,37,72,42,567,138,81,31,153,80,829,179,144,65,117,37,318,125,682,113,20,16,66,27,147,82,632,155,66,35,28,16,38,22,138,105,43,33,184,69,141,74,108,63,230,118,633,155,248,74,231,111,1149,203,182,114,438,127,38,17,203,85,379,128]
[]
[]
[{"$f":"A1& \"-Calculated\"","v":"B18102. SEX BY AGE BY HEARING DIFFICULTY\n\n-Calculated"}]
[{"$f":"A2","v":"Universe:  Civilian non-institutionalized population"}]
[{"$f":"A3","v":"Data Set: 2015-2019 American Community Survey 5-Year Estimates"}]
[]
[]
[null,null,"Atkinson",null,"Auburn",null,"Brentwood",null,"Candia",null,"Chester",null,"Danville",null,"Deerfield",null,"Derry",null,"East Kingston",null,"Epping",null,"Exeter",null,"Fremont",null,"Greenland",null,"Hampstead",null,"Hampton",null,"Hampton Falls",null,"Kensington",null,"Kingston",null,"Londonderry",null,"New Castle",null,"Newfields",null,"Newington",null,"Newmarket",null,"Newton",null,"North Hampton",null,"Northwood",null,"Nottingham",null,"Plaistow",null,"Portsmouth",null,"Raymond",null,"Rye",null,"Salem",null,"Sandown",null,"Seabrook",null,"South Hampton",null,"Stratham",null,"Windham"]
[null,null,"Estimate","Margin Of Error","Estimate","Margin Of Error","Estimate","Margin Of Error","Estimate","Margin Of Error","Estimate","Margin Of Error","Estimate","Margin Of Error","Estimate","Margin Of Error","Estimate","Margin Of Error","Estimate","Margin Of Error","Estimate","Margin Of Error","Estimate","Margin Of Error","Estimate","Margin Of Error","Estimate","Margin Of Error","Estimate","Margin Of Error","Estimate","Margin Of Error","Estimate","Margin Of Error","Estimate","Margin Of Error","Estimate","Margin Of Error","Estimate","Margin Of Error","Estimate","Margin Of Error","Estimate","Margin Of Error","Estimate","Margin Of Error","Estimate","Margin Of Error","Estimate","Margin Of Error","Estimate","Margin Of Error","Estimate","Margin Of Error","Estimate","Margin Of Error","Estimate","Margin Of Error","Estimate","Margin Of Error","Estimate","Margin Of Error","Estimate","Margin Of Error","Estimate","Margin Of Error","Estimate","Margin Of Error","Estimate","Margin Of Error","Estimate","Margin Of Error","Estimate","Margin Of Error","Estimate","Margin Of Error"]
[null,"Total",{"$f":"C7","v":6952},33,5446,21,4317,134,3936,18,5129,26,4515,29,4476,31,33242,113,2432,192,6952,32,14914,113,{"$f":"Y7","v":4623},84,3992,32,8612,20,15379,100,2383,164,2291,139,6260,29,25907,39,835,178,1757,227,710,89,9034,41,4920,22,4444,25,4286,27,5050,25,7689,26,20695,172,10428,23,5410,90,29090,108,6389,17,8820,31,775,94,7427,21,14512,46]
[null,"Under 5 years:",{"$f":"C28+C9","v":275},{"$f":"SQRT((D28^2)+(D9^2))","v":133.843191832831},{"$f":"E28+E9","v":342},{"$f":"SQRT((F28^2)+(F9^2))","v":103.96634070698073},{"$f":"G28+G9","v":275},{"$f":"SQRT((H28^2)+(H9^2))","v":99.724620831567975},{"$f":"I28+I9","v":180},{"$f":"SQRT((J28^2)+(J9^2))","v":79.630396206473819},{"$f":"K28+K9","v":265},{"$f":"SQRT((L28^2)+(L9^2))","v":84.864598037108507},{"$f":"M28+M9","v":144},{"$f":"SQRT((N28^2)+(N9^2))","v":81.21576201698781},{"$f":"O28+O9","v":185},{"$f":"SQRT((P28^2)+(P9^2))","v":76.321687612368734},{"$f":"Q28+Q9","v":1630},{"$f":"SQRT((R28^2)+(R9^2))","v":297.12287020692298},{"$f":"S28+S9","v":48},{"$f":"SQRT((T28^2)+(T9^2))","v":25.059928172283335},{"$f":"U28+U9","v":438},{"$f":"SQRT((V28^2)+(V9^2))","v":156.28499608087785},{"$f":"W28+W9","v":645},{"$f":"SQRT((X28^2)+(X9^2))","v":176.7993212656655},{"$f":"Y28+Y9","v":258},{"$f":"SQRT((Z28^2)+(Z9^2))","v":101.83319694480774},{"$f":"AA28+AA9","v":163},{"$f":"SQRT((AB28^2)+(AB9^2))","v":63.513778032801667},{"$f":"AC28+AC9","v":379},{"$f":"SQRT((AD28^2)+(AD9^2))","v":129.61867149450345},{"$f":"AE28+AE9","v":407},{"$f":"SQRT((AF28^2)+(AF9^2))","v":138.23530663329106},{"$f":"AG28+AG9","v":64},{"$f":"SQRT((AH28^2)+(AH9^2))","v":29},{"$f":"AI28+AI9","v":160},{"$f":"SQRT((AJ28^2)+(AJ9^2))","v":38.418745424597091},{"$f":"AK28+AK9","v":220},{"$f":"SQRT((AL28^2)+(AL9^2))","v":145.12063946937388},{"$f":"AM28+AM9","v":1385},{"$f":"SQRT((AN28^2)+(AN9^2))","v":202.3116407921205},{"$f":"AO28+AO9","v":18},{"$f":"SQRT((AP28^2)+(AP9^2))","v":30.083217912982647},{"$f":"AQ28+AQ9","v":82},{"$f":"SQRT((AR28^2)+(AR9^2))","v":45.650848842053307},{"$f":"AS28+AS9","v":28},{"$f":"SQRT((AT28^2)+(AT9^2))","v":18.384776310850235},{"$f":"AU28+AU9","v":431},{"$f":"SQRT((AV28^2)+(AV9^2))","v":142.12670403551894},{"$f":"AW28+AW9","v":203},{"$f":"SQRT((AX28^2)+(AX9^2))","v":74.249579123386283},{"$f":"AY28+AY9","v":103},{"$f":"SQRT((AZ28^2)+(AZ9^2))","v":52.697248505021591},{"$f":"BA28+BA9","v":140},{"$f":"SQRT((BB28^2)+(BB9^2))","v":74.202425836356596},{"$f":"BC28+BC9","v":281},{"$f":"SQRT((BD28^2)+(BD9^2))","v":97.672923576598237},{"$f":"BE28+BE9","v":281},{"$f":"SQRT((BF28^2)+(BF9^2))","v":119.63277142990545},{"$f":"BG28+BG9","v":809},{"$f":"SQRT((BH28^2)+(BH9^2))","v":174.0919297382851},{"$f":"BI28+BI9","v":574},{"$f":"SQRT((BJ28^2)+(BJ9^2))","v":171.12568480505783},{"$f":"BK28+BK9","v":174},{"$f":"SQRT((BL28^2)+(BL9^2))","v":92.097774131626011},{"$f":"BM28+BM9","v":1473},{"$f":"SQRT((BN28^2)+(BN9^2))","v":299.48288765804301},{"$f":"BO28+BO9","v":386},{"$f":"SQRT((BP28^2)+(BP9^2))","v":146.86388255796589},{"$f":"BQ28+BQ9","v":223},{"$f":"SQRT((BR28^2)+(BR9^2))","v":100.12492197250393},{"$f":"BS28+BS9","v":19},{"$f":"SQRT((BT28^2)+(BT9^2))","v":10.63014581273465},{"$f":"BU28+BU9","v":325},{"$f":"SQRT((BV28^2)+(BV9^2))","v":122.88612614937456},{"$f":"BW28+BW9","v":944},{"$f":"SQRT((BX28^2)+(BX9^2))","v":195.97193676646665}]
[null,"With hearing difficulty",{"$f":"C29+C10","v":0},{"$f":"SQRT((D29^2)+(D10^2))","v":22.627416997969522},{"$f":"E29+E10","v":0},{"$f":"SQRT((F29^2)+(F10^2))","v":22.627416997969522},{"$f":"G29+G10","v":0},{"$f":"SQRT((H29^2)+(H10^2))","v":15.556349186104045},{"$f":"I29+I10","v":0},{"$f":"SQRT((J29^2)+(J10^2))","v":15.556349186104045},{"$f":"K29+K10","v":0},{"$f":"SQRT((L29^2)+(L10^2))","v":22.627416997969522},{"$f":"M29+M10","v":0},{"$f":"SQRT((N29^2)+(N10^2))","v":15.556349186104045},{"$f":"O29+O10","v":0},{"$f":"SQRT((P29^2)+(P10^2))","v":15.556349186104045},{"$f":"Q29+Q10","v":0},{"$f":"SQRT((R29^2)+(R10^2))","v":33.941125496954278},{"$f":"S29+S10","v":0},{"$f":"SQRT((T29^2)+(T10^2))","v":15.556349186104045},{"$f":"U29+U10","v":0},{"$f":"SQRT((V29^2)+(V10^2))","v":22.627416997969522},0,25.45584412271571,0,{"$f":"SQRT((Z29^2)+(Z10^2))","v":15.556349186104045},0,{"$f":"SQRT((AB29^2)+(AB10^2))","v":15.556349186104045},0,{"$f":"SQRT((AD29^2)+(AD10^2))","v":22.627416997969522},0,{"$f":"SQRT((AF29^2)+(AF10^2))","v":25.45584412271571},0,{"$f":"SQRT((AH29^2)+(AH10^2))","v":15.556349186104045},0,{"$f":"SQRT((AJ29^2)+(AJ10^2))","v":15.556349186104045},0,{"$f":"SQRT((AL29^2)+(AL10^2))","v":22.627416997969522},29,{"$f":"SQRT((AN29^2)+(AN10^2))","v":40.8166632639171},0,{"$f":"SQRT((AP29^2)+(AP10^2))","v":15.556349186104045},0,{"$f":"SQRT((AR29^2)+(AR10^2))","v":15.556349186104045},0,{"$f":"SQRT((AT29^2)+(AT10^2))","v":15.556349186104045},0,{"$f":"SQRT((AV29^2)+(AV10^2))","v":22.627416997969522},0,{"$f":"SQRT((AX29^2)+(AX10^2))","v":15.556349186104045},0,{"$f":"SQRT((AZ29^2)+(AZ10^2))","v":15.556349186104045},0,{"$f":"SQRT((BB29^2)+(BB10^2))","v":15.556349186104045},0,{"$f":"SQRT((BD29^2)+(BD10^2))","v":22.627416997969522},0,{"$f":"SQRT((BF29^2)+(BF10^2))","v":22.627416997969522},17,{"$f":"SQRT((BH29^2)+(BH10^2))","v":34.205262752974143},0,{"$f":"SQRT((BJ29^2)+(BJ10^2))","v":25.45584412271571},0,{"$f":"SQRT((BL29^2)+(BL10^2))","v":22.627416997969522},0,{"$f":"SQRT((BN29^2)+(BN10^2))","v":29.698484809834994},0,{"$f":"SQRT((BP29^2)+(BP10^2))","v":22.627416997969522},0,{"$f":"SQRT((BR29^2)+(BR10^2))","v":22.627416997969522},0,{"$f":"SQRT((BT29^2)+(BT10^2))","v":15.556349186104045},0,{"$f":"SQRT((BV29^2)+(BV10^2))","v":22.627416997969522},0,{"$f":"SQRT((BX29^2)+(BX10^2))","v":25.45584412271571}]
[null,"With no hearing difficulty",275,133.843191832831,342,103.96634070698073,275,99.724620831567975,180,79.630396206473819,265,84.864598037108507,144,81.21576201698781,185,76.321687612368734,1630,297.12287020692298,48,25.059928172283335,438,156.28499608087785,645,176.7993212656655,258,{"$f":"SQRT((Z30^2)+(Z11^2))","v":101.83319694480774},163,63.513778032801667,379,129.61867149450345,407,138.23530663329106,64,29,160,38.418745424597091,220,145.12063946937388,1356,203,18,30.083217912982647,82,45.650848842053307,28,18.384776310850235,431,142.12670403551894,203,74.249579123386283,103,52.697248505021591,140,74.202425836356596,281,97.672923576598237,281,119.63277142990545,792,171.40595088852663,574,171.12568480505783,174,92.097774131626011,1473,299.48288765804301,386,146.86388255796589,223,100.12492197250393,19,10.63014581273465,325,122.88612614937456,944,195.97193676646665]
[null,"5 to 17 years:",1110,282.33490751233722,771,143.68368035375485,846,116.69190203266035,471,132.23085872821065,830,143.0873858870865,804,157.61345120261785,702,129.72663566130126,5476,441.35473261312154,479,96.607453128627711,924,216.06017680266763,2208,243.94466585682909,647,128.76334882255898,777,130.20752666416791,1459,232,2011,224.85995641732211,371,69.06518659932803,311,65.73431371817918,942,253.24296633865274,4506,321.65975812961125,110,65.192024052026483,346,82.365041127896006,60,25.45584412271571,1132,257.28777662376422,704,125.89678312014172,697,178.93294833540301,603,106.5269918846862,834,160.31219541881399,1110,220.16584657934573,2502,270.64737205448716,1718,367.26557148744558,605,129.18978287774928,3642,412.90313634071612,1007,249.09837414162303,1075,210.63950246807934,114,34.409301068170507,1328,234.10467744152402,2998,329.1959902550455]
[null,"With hearing difficulty",0,22.627416997969522,0,22.627416997969522,0,15.556349186104045,0,15.556349186104045,14,27.202941017470888,0,15.556349186104045,0,15.556349186104045,26,33.105890714493697,9,11.401754250991379,0,22.627416997969522,0,25.45584412271571,0,15.556349186104045,0,15.556349186104045,8,20.615528128088304,6,19.697715603592208,5,13.038404810405298,0,15.556349186104045,0,22.627416997969522,52,52,0,15.556349186104045,0,15.556349186104045,0,15.556349186104045,0,22.627416997969522,0,15.556349186104045,0,15.556349186104045,8,17.804493814764857,0,22.627416997969522,0,22.627416997969522,13,29,0,25.45584412271571,0,22.627416997969522,30,33.941125496954278,50,69.856996786291916,0,22.627416997969522,0,15.556349186104045,0,22.627416997969522,21,36.715119501371639]
[null,"With no hearing difficulty",1110,282.33490751233722,771,143.68368035375485,846,116.69190203266035,471,132.23085872821065,816,140.85808461000738,804,157.61345120261785,702,129.72663566130126,5450,436.6062299143245,470,97.575611707024422,924,216.06017680266763,2208,243.94466585682909,647,128.76334882255898,777,130.20752666416791,1451,233.3838040653207,2005,225.56817151362469,366,68.24221567329127,311,65.73431371817918,942,253.24296633865274,4454,324.33624527641064,110,65.192024052026483,346,82.365041127896006,60,25.45584412271571,1132,257.28777662376422,704,125.89678312014172,697,178.93294833540301,595,104.9952379872535,834,160.31219541881399,1110,220.16584657934573,2489,270.64737205448716,1718,367.26557148744558,605,129.18978287774928,3612,413.5698248180106,957,234.9170066214875,1075,210.63950246807934,114,34.409301068170507,1328,234.10467744152402,2977,327.90547418425331]
[null,"18 to 34 years:",1015,226.99118925632334,911,159.13830462839547,426,103.9471019317037,677,140.03570973148243,1063,199.42417105255822,696,114.56002793295748,1018,135.79396157414365,7433,554.42312361588961,369,85.796270315206598,1403,275.5358415887124,2613,333.80233672040106,776,124.96399481450646,524,112.43220179290273,1564,190.79046097748179,2332,292.79685790663808,434,108.90362712049586,386,68.01470429252781,1443,311.01446911679204,4733,372.54261501202785,61,36.124783736376884,213,50.990195135927848,94,44.283179650969061,2690,312.1233730434169,1036,183.22117781522965,541,138.84163640637487,837,199.48934808655824,745,130.13838787997952,1748,305.48322376196046,5513,427.12995680471766,2092,317.0141952657641,579,197.25364381932212,6662,519.86248181610495,1414,208.69355524308841,1338,226.31394124092313,125,35.383612025908263,1049,240.4329428343795,1699,342.84107105187968]
[null,"With hearing difficulty",0,22.627416997969522,0,22.627416997969522,0,15.556349186104045,7,15.556349186104045,0,22.627416997969522,0,15.556349186104045,36,38.600518131237564,52,41.146081222881968,6,13.601470508735444,0,22.627416997969522,0,25.45584412271571,9,18.601075237738275,0,15.556349186104045,0,22.627416997969522,17,31.622776601683793,0,15.556349186104045,0,15.556349186104045,0,22.627416997969522,47,48.548944375753422,0,15.556349186104045,0,15.556349186104045,0,15.556349186104045,0,22.627416997969522,0,15.556349186104045,0,15.556349186104045,0,15.556349186104045,0,22.627416997969522,0,22.627416997969522,11,27.018512172212592,41,39.446165846632042,0,22.627416997969522,25,26.870057685088806,0,22.627416997969522,47,60.166435825965294,0,15.556349186104045,0,22.627416997969522,0,25.45584412271571]
[null,"With no hearing difficulty",1015,226.99118925632334,911,159.13830462839547,426,103.9471019317037,670,139.34489585198304,1063,199.42417105255822,696,114.56002793295748,982,140.92906016858268,7381,552.4201299735555,363,86.556340033529608,1403,275.5358415887124,2613,333.80233672040106,767,124.19742348374221,524,112.43220179290273,1564,190.79046097748179,2315,291.35888522576414,434,108.90362712049586,386,68.01470429252781,1443,311.01446911679204,4686,370.97978381577616,61,36.124783736376884,213,50.990195135927848,94,44.283179650969061,2690,312.1233730434169,1036,183.22117781522965,541,138.84163640637487,837,199.48934808655824,745,130.13838787997952,1748,305.48322376196046,5502,427.12995680471766,2051,314.01433088316207,579,197.25364381932212,6637,519.86248181610495,1414,208.69355524308841,1291,228.40534144367115,125,35.383612025908263,1049,240.4329428343795,1699,342.84107105187968]
[null,"35 to 64 years:",3177,191.637678967368,2667,126.73200069437868,2109,130.83195328359201,1914,123.45849504995596,2335,119.4026800369238,2318,128.81770064707723,1897,129.4488315899375,14836,501.02295356600183,1083,63.7808748764079,2909,253.24296633865274,6152,348.66172717979816,2186,132.77424449041311,1802,137.18600511714013,3528,227.547797176769,6931,273.3587386567329,1143,91.836811791350854,983,77.620873481300123,2579,258.83585532147589,11615,326.69557695199978,317,79.511005527536881,877,87,343,44.687805943008662,3471,248.64633518312712,2219,124.08464852672147,2018,146.03081866510234,1961,151.34728276384746,2362,160.20611723651504,3285,273.65854636754904,8415,397.43175514797508,4629,317.55471969410246,2554,238.94769302087852,11953,385.17528477304978,2794,214.80456233516085,3895,266.05638500137525,328,41.231056256176608,3508,217.17504460687928,6784,267.32003291934558]
[null,"With hearing difficulty",97,80.498447189992433,32,29.529646120466801,43,41.231056256176608,52,32.893768406797051,12,24.083189157584592,79,64.513564465157245,63,57.77542730261716,324,123.10970717209915,19,15.811388300841896,51,46.141087980237309,233,102.80077820717118,50,34.132096331752024,67,47.169905660283021,64,61.98386886924694,123,66.468037431535464,18,24.596747752497688,30,18.788294228055936,35,40.311288741492746,225,87.982952894296517,4,13.038404810405298,14,17.029386365926403,11,14.212670403551895,64,47.010637094172637,30,28.653097563788805,41,32.802438933713454,71,40.607881008493905,50,34.205262752974143,90,82.565125809872058,127,62.936475910238251,145,84.077345343439575,35,42.154477816715982,184,94.762861923857074,122,84.758480401668365,97,86.034876648949762,5,12.083045973594572,96,65.863495200300449,71,49.739320461783549]
[null,"With no hearing difficulty",3080,192.37983262286096,2635,126.66885963013956,2066,144.36065946094871,1862,126.75172582651489,2323,120.60265337047937,2239,133.79461872586654,1834,128.76334882255898,14512,517.35964280179417,1064,63.890531379853151,2858,252.46187831036985,5919,340.24256053586242,2136,132.65368445693471,1735,152.10851389715174,3464,226.14154859291116,6808,281.30055101261354,1125,92.655275079188016,953,78.243210568074218,2544,253.16002844051033,11390,331.00151057057127,313,79.511005527536881,863,85.562842402528915,332,44.687805943008662,3407,247.24481794367298,2189,123.43419299367578,1977,147.89861392183499,1890,152.79397893896211,2312,160.41508657230466,3195,266.62520511009456,8288,393.20478125272081,4484,314.66331212901196,2519,245.22642598219304,11769,389.21973228499093,2672,{"$f":"SQRT((BP39^2)+(BP20^2))","v":230.53199344125753},3798,{"$f":"SQRT((BR39^2)+(BR20^2))","v":276.48688938175712},323,{"$f":"SQRT((BT39^2)+(BT20^2))","v":41.231056256176608},3412,{"$f":"SQRT((BV39^2)+(BV20^2))","v":229.8978033822855},6713,{"$f":"SQRT((BX39^2)+(BX20^2))","v":263.77452492611945}]
[null,"65 to 74 years:",902,189.61276328348785,569,83.546394296821688,304,86.838931361457924,457,64.443773942872099,489,107.05606008068857,379,87.726848797845236,452,86.267027304758798,2678,247.69335881286764,262,40.459856648287818,967,185.26737435393204,1475,198.9572818471342,387,{"$f":"SQRT((Z40^2)+(Z21^2))","v":73},469,{"$f":"SQRT((AB40^2)+(AB21^2))","v":69.296464556281663},1021,{"$f":"SQRT((AD40^2)+(AD21^2))","v":130.83195328359201},2230,{"$f":"SQRT((AF40^2)+(AF21^2))","v":204.89997559785115},285,{"$f":"SQRT((AH40^2)+(AH21^2))","v":61.220911460055866},299,{"$f":"SQRT((AJ40^2)+(AJ21^2))","v":47.010637094172637},688,{"$f":"SQRT((AL40^2)+(AL21^2))","v":160.58953888718904},2472,{"$f":"SQRT((AN40^2)+(AN21^2))","v":198.71587757398754},190,{"$f":"SQRT((AP40^2)+(AP21^2))","v":52.801515129776341},138,{"$f":"SQRT((AR40^2)+(AR21^2))","v":37.483329627982627},104,{"$f":"SQRT((AT40^2)+(AT21^2))","v":25},865,{"$f":"SQRT((AV40^2)+(AV21^2))","v":133.79461872586654},549,{"$f":"SQRT((AX40^2)+(AX21^2))","v":94.752308678997366},697,{"$f":"SQRT((AZ40^2)+(AZ21^2))","v":121.65936051122412},463,{"$f":"SQRT((BB40^2)+(BB21^2))","v":98.081598681913832},537,{"$f":"SQRT((BD40^2)+(BD21^2))","v":106.21205204683694},690,{"$f":"SQRT((BF40^2)+(BF21^2))","v":146.38647478507022},2217,{"$f":"SQRT((BH40^2)+(BH21^2))","v":246.91699009991191},979,{"$f":"SQRT((BJ40^2)+(BJ21^2))","v":156.46405337968207},1001,{"$f":"SQRT((BL40^2)+(BL21^2))","v":193.87624919004389},3132,{"$f":"SQRT((BN40^2)+(BN21^2))","v":260.92336039534672},472,115.96551211459379,1352,176.78235206037959,114,25.45584412271571,769,147.92227688891217,1151,162.93557008830209]
[null,"With hearing difficulty",12,24.839484696748443,61,31.384709652950431,21,21.633307652783937,53,41.868842830916641,37,26,7,16.278820596099706,46,39.623225512317902,203,69.354163537598808,40,21.931712199461309,140,75.663729752107784,130,78.587530817553997,36,30.083217912982647,0,15.556349186104045,89,54.488530903301111,180,65.80273550544841,6,14.866068747318506,21,10.63014581273465,107,58.728187440104094,226,112.94689017409908,0,15.556349186104045,14,21.95449840010015,7,13.601470508735444,74,53.338541412378348,71,38.910152916687437,38,30.413812651491099,29,28.231188426986208,42,34.014702703389901,31,34.132096331752024,78,53.814496188294839,54,48.052055106935853,32,41.231056256176608,146,68.622153857191051,33,32.695565448543633,72,54.589376255824725,10,13.038404810405298,38,41.231056256176608,87,65.604877867426907]
[null,"With no hearing difficulty",890,188.00265955565629,508,87.321245982864909,283,81.841309862440497,404,69.296464556281663,452,102.94173109094289,372,86.371291526756735,406,82.024386617639507,2475,254.28527287281111,222,40.459856648287818,827,192.33304448274092,1345,175.57049866079439,351,72.249567472753768,469,69.296464556281663,932,121.82774724995944,2050,195.68597292601225,279,60.605280298007038,278,45.803929962395145,581,150.65523555456014,2246,193.41406360448559,190,52.801515129776341,124,34.058772731852805,97,23.853720883753127,791,130.13838787997952,478,93.348808240919709,659,122.28654872879518,434,96.213304693269947,495,104.86181383134664,659,142.83556979968259,2139,244.13111231467406,925,153.57408635573907,969,197.31446981911895,2986,258.14143410154054,439,114.56002793295748,1280,167.17057157286985,104,24.083189157584592,731,142.13022197970423,1064,164.14627622946554]
[null,"75 years and over:",473,114.20157617125956,186,65,357,84.599054368237475,237,88.323269867006175,147,59.059292240933601,174,61.073725938409879,222,88.481636512894582,1189,211.52068456772733,191,50.209560842532767,311,114.5512985522207,1821,239.88538930080756,369,94.069123520951337,257,67.007462271003817,661,169.53170794869024,1468,184.58873205046942,86,30,152,38.209946349085598,388,127.66362050325849,1196,217.91970998512272,139,48.918299234540036,101,39.623225512317902,81,32.526911934581186,445,137.93114224133723,209,84.899941107164494,388,100.42410069301094,282,100.65783625729296,291,100.44899203078147,575,183.44754018519845,1239,202.60799589354809,436,111.12605455067681,497,152.26949793047851,2228,277.85247884444004,316,168.90825912311098,937,166.37307474468338,75,26.172504656604801,448,123.04470732217619,936,182.52123164169149]
[null,"With hearing difficulty",144,66.528189513919585,17,24.083189157584592,60,35.468295701936398,81,67.896980787071826,72,50.695167422546305,41,30.528675044947494,122,65.30696746902278,281,112.92918134831227,44,20.615528128088304,125,80.062475604992386,524,135.77186748365804,105,64.76109943476871,67,42.720018726587654,93,58.600341295934449,235,100,17,16.643316977093239,21,11.401754250991379,52,53.450912059571067,220,88.391176030189797,28,22.825424421026653,47,33.97057550292606,12,8.6023252670426267,198,121.69634341261039,84,55.154328932550705,78,53.851648071345039,29,27.018512172212592,39,44.011362169330773,183,102.90286682109493,163,76.485292703891773,25,22.627416997969522,111,66.603303221386852,372,137.48090776540573,57,70.342021580275897,308,121.2023102090055,12,8.6023252670426267,71,49.091750834534309,244,102.53292154230269]
[null,"With no hearing difficulty",329,106.40488710580919,169,61.587336360651285,297,77.388629655783419,156,65.069193939989759,75,36.796738985948195,133,53.758720222862451,100,49.396356140913873,908,187.5446613476374,147,47.507894080878813,186,93.813645062965122,1297,219.47665023869851,264,81.400245699874887,190,53.037722424704477,568,161.96913286178943,1233,167.76471619503309,69,24.839484696748443,131,37.483329627982627,336,117.38824472663352,976,204.24005483743878,111,43.011626335213137,54,24.839484696748443,69,31.11269837220809,247,126.75172582651489,125,65.863495200300449,310,90.785461391128038,253,97.185389848474657,252,91.967385523347346,392,146.60491124106312,1076,191.23022773609824,411,107.5174404457249,386,135.66502865514016,1856,262.23081436017395,259,126.14277624977183,629,148.00337833982033,63,24.758836806279895,377,114.02192771568107,692,165.55663683464942]
[]
[]
[]
[]
[]
[]
[]
[]
[]
[]
[]
[]
[]
[]
[]
[]
[]
[]
[]
[]
[]
[]
[]
[]
[]
[]
["B18102. SEX BY AGE BY HEARING DIFFICULTY\n\n-Calculated"]
["Universe:  Civilian non-institutionalized population"]
["Data Set: 2010-2014 American Community Survey 5-Year Estimates"]
[]
[]
[null,null,"Atkinson",null,"Auburn",null,"Brentwood",null,"Candia",null,"Chester",null,"Danville",null,"Deerfield",null,"Derry",null,"East Kingston",null,"Epping",null,"Exeter",null,"Fremont",null,"Greenland",null,"Hampstead",null,"Hampton",null,"Hampton Falls",null,"Kensington",null,"Kingston",null,"Londonderry",null,"New Castle",null,"Newfields",null,"Newington",null,"Newmarket",null,"Newton",null,"North Hampton",null,"Northwood",null,"Nottingham",null,"Plaistow",null,"Portsmouth",null,"Raymond",null,"Rye",null,"Salem",null,"Sandown",null,"Seabrook",null,"South Hampton",null,"Stratham",null,"Windham"]
[null,null,"Estimate","Margin Of Error","Estimate","Margin Of Error","Estimate","Margin Of Error","Estimate","Margin Of Error","Estimate","Margin Of Error","Estimate","Margin Of Error","Estimate","Margin Of Error","Estimate","Margin Of Error","Estimate","Margin Of Error","Estimate","Margin Of Error","Estimate","Margin Of Error","Estimate","Margin Of Error","Estimate","Margin Of Error","Estimate","Margin Of Error","Estimate","Margin Of Error","Estimate","Margin Of Error","Estimate","Margin Of Error","Estimate","Margin Of Error","Estimate","Margin Of Error","Estimate","Margin Of Error","Estimate","Margin Of Error","Estimate","Margin Of Error","Estimate","Margin Of Error","Estimate","Margin Of Error","Estimate","Margin Of Error","Estimate","Margin Of Error","Estimate","Margin Of Error","Estimate","Margin Of Error","Estimate","Margin Of Error","Estimate","Margin Of Error","Estimate","Margin Of Error","Estimate","Margin Of Error","Estimate","Margin Of Error","Estimate","Margin Of Error","Estimate","Margin Of Error","Estimate","Margin Of Error","Estimate","Margin Of Error"]
[null,"Total",6788,19,5078,20,4184,165,3920,21,4802,18,4416,39,4330,19,33018,137,2453,130,6587,17,14251,110,4306,45,3668,15,8496,64,14765,183,2307,123,2055,149,6060,19,24247,24,966,162,1621,222,798,136,8911,33,4700,39,4344,22,4269,16,4855,17,7614,26,20789,309,10202,23,5275,65,28729,56,6133,38,8736,25,799,123,7303,19,13908,55]
[null,"Under 5 years:",211,120.90492132250036,202,84.628600366542756,159,77.935871073594853,128,58,274,108.46658471621571,234,99.569071503153026,213,79.404030124421269,1416,290.9518860567843,133,42.5205832509386,479,147.10540438746634,639,189.58902921846507,275,113.74093370462545,201,81.344944526380985,380,129.1394595001853,415,121.01652779682617,117,47.634021455258214,101,43.324358044868937,344,149.21796138535066,1076,187.44865963777923,26,25.238858928247925,66,34.828149534535996,28,19.849433241279208,430,135.20355024924456,301,119.55333537798099,282,112.29425630903836,294,119.88327656516567,274,95,406,192.83671849520775,1063,200.17242567346781,688,159.80613254815975,129,81.024687595818591,1171,225.36414976655004,453,174.7483905505284,453,185.56400513030539,39,21.023796041628639,296,170.18813119603846,772,181.02486017119307]
[null,"With hearing difficulty",0,21.213203435596427,0,21.213203435596427,0,15.556349186104045,0,15.556349186104045,0,15.556349186104045,0,15.556349186104045,0,15.556349186104045,0,32.526911934581186,0,15.556349186104045,0,21.213203435596427,0,24.041630560342615,0,15.556349186104045,0,15.556349186104045,0,21.213203435596427,0,24.041630560342615,0,15.556349186104045,0,15.556349186104045,0,21.213203435596427,0,28.284271247461902,0,15.556349186104045,0,15.556349186104045,0,15.556349186104045,0,21.213203435596427,0,15.556349186104045,0,15.556349186104045,0,15.556349186104045,0,15.556349186104045,14,27.459060435491963,6,22.360679774997898,24,41.629316592997299,0,21.213203435596427,12,27.586228448267445,0,21.213203435596427,0,21.213203435596427,0,15.556349186104045,0,21.213203435596427,0,24.041630560342615]
[null,"With no hearing difficulty",211,120.90492132250036,202,84.628600366542756,159,77.935871073594853,128,58,274,108.46658471621571,234,99.569071503153026,213,79.404030124421269,1416,290.9518860567843,133,42.5205832509386,479,147.10540438746634,639,189.58902921846507,275,113.74093370462545,201,81.344944526380985,380,129.1394595001853,415,121.01652779682617,117,47.634021455258214,101,43.324358044868937,344,149.21796138535066,1076,187.44865963777923,26,25.238858928247925,66,34.828149534535996,28,19.849433241279208,430,135.20355024924456,301,119.55333537798099,282,112.29425630903836,294,119.88327656516567,274,95,392,192.41881404893857,1057,200.17242567346781,664,156.64609794054877,129,81.024687595818591,1159,222.27235545609355,453,174.7483905505284,453,185.56400513030539,39,21.023796041628639,296,170.18813119603846,772,181.02486017119307]
[null,"5 to 17 years:",1220,209.34660255184463,962,143.93401265857906,1026,152.05262246998569,651,122.57650672131263,925,182.23611058184929,922,137.18600511714013,811,136.61991070118586,6028,450.62734049322842,420,68.818602136341013,976,218.04815981796315,2696,292.17973920174546,718,116.04309544302927,678,122.34786471369249,1471,211.3409567499873,2349,316.90061533547077,412,74.276510418839678,383,65.80273550544841,884,208.06008747474851,4891,333.04804458215932,94,49.203658400570177,377,79.195959492893323,71,29.206163733020468,1468,285.03508555965527,930,179.61069010501575,585,140.08925726121899,623,240.160363090998,765,117.6860229593982,1263,256.22255950637913,2321,287.21072403376581,1785,275.33434220961249,660,118.22436297142819,4582,386.87077946001557,1026,220.7306050369998,856,173.55690709389816,110,31.89043743820395,1413,197.64867821465441,2824,276.55198426335687]
[null,"With hearing difficulty",0,21.213203435596427,0,21.213203435596427,0,15.556349186104045,0,15.556349186104045,34,38.600518131237564,32,45.354161881794269,19,22.203603311174518,74,71.784399419372448,0,15.556349186104045,0,21.213203435596427,0,24.041630560342615,0,15.556349186104045,0,15.556349186104045,0,21.213203435596427,0,24.041630560342615,0,15.556349186104045,0,15.556349186104045,0,21.213203435596427,54,41.593268686170845,0,15.556349186104045,4,12.529964086141668,0,15.556349186104045,9,20.518284528683193,0,15.556349186104045,0,15.556349186104045,0,15.556349186104045,0,15.556349186104045,0,21.213203435596427,0,28.284271247461902,23,38.910152916687437,0,21.213203435596427,35,52,0,21.213203435596427,0,21.213203435596427,0,15.556349186104045,0,21.213203435596427,0,24.041630560342615]
[null,"With no hearing difficulty",1220,209.34660255184463,962,143.93401265857906,1026,152.05262246998569,651,122.57650672131263,891,185.60711193270586,890,145.09651959988565,792,136.61991070118586,5954,446.27906067840559,420,68.818602136341013,976,218.04815981796315,2696,292.17973920174546,718,116.04309544302927,678,122.34786471369249,1471,211.3409567499873,2349,316.90061533547077,412,74.276510418839678,383,65.80273550544841,884,208.06008747474851,4837,333.80233672040106,94,49.203658400570177,373,79.195959492893323,71,29.206163733020468,1459,286.42101878179261,930,179.61069010501575,585,140.08925726121899,623,240.160363090998,765,117.6860229593982,1263,256.22255950637913,2321,287.21072403376581,1762,277.85067932254549,660,118.22436297142819,4547,385.64361786499205,1026,220.7306050369998,856,173.55690709389816,110,31.89043743820395,1413,197.64867821465441,2824,276.55198426335687]
[null,"18 to 34 years:",981,199.42417105255822,797,185.52627846210896,525,138.77319625922004,543,105.41821474489122,793,148.55302083767936,748,138.70832707519762,599,119.20570456148481,7853,528.2319566251175,401,79.39773296511683,1067,207.71133815947553,2158,269.43088167468852,772,139.51702405083043,399,94.810336989170125,1330,206.60348496576722,1768,258.00193797721755,353,85.796270315206598,253,47.201694884823787,1077,209.38003725283841,4259,354.7745763157219,82,42.43819034784589,208,54.203320931470607,199,58.051701094799967,2434,300.70749907509787,885,199.98499943745782,526,127.02755606560333,693,159.66527487215245,734,161.44348856488452,1337,271.44796923167428,5132,464.96128871122164,2179,230.58620947489467,568,164.61470165206995,5430,423.58588267315992,1244,235.35717537394095,1769,531.26641151121157,116,40.311288741492746,910,207.87015177749788,2053,307.35321699959479]
[null,"With hearing difficulty",0,21.213203435596427,44,66.708320320631671,25,29.966648127543394,0,15.556349186104045,0,15.556349186104045,21,35.735136770411273,9,17.804493814764857,69,55.461698495448189,11,14.317821063276353,0,21.213203435596427,54,50.596442562694072,0,15.556349186104045,9,17.029386365926403,0,21.213203435596427,0,24.041630560342615,5,13.601470508735444,0,15.556349186104045,29,46.486557196677836,26,25,0,15.556349186104045,0,15.556349186104045,0,15.556349186104045,0,21.213203435596427,0,15.556349186104045,38,58.051701094799967,0,15.556349186104045,10,20.248456731316587,24,39,79,84.723078319900537,7,20.808652046684813,0,21.213203435596427,45,58.523499553598128,19,34.438350715445125,0,21.213203435596427,2,11.704699910719626,81,77.466121627457255,13,27.018512172212592]
[null,"With no hearing difficulty",981,199.42417105255822,753,165.0969412193939,500,135.28118864054971,543,105.41821474489122,793,148.55302083767936,727,137.3608386695422,590,119.20570456148481,7784,531.0376634477069,390,76.694197955256044,1067,207.71133815947553,2104,272.237029075767,772,139.51702405083043,390,94.201910808645493,1330,206.60348496576722,1768,258.00193797721755,348,85.796270315206598,253,47.201694884823787,1048,212.8497122384712,4233,354.7745763157219,82,42.43819034784589,208,54.203320931470607,199,58.051701094799967,2434,300.70749907509787,885,199.98499943745782,488,118.81077392223317,693,159.66527487215245,724,160.70158679988197,1313,268.93121797217964,5053,463.49217900629134,2172,232.03878986066101,568,164.61470165206995,5385,432.25108444051358,1225,233.80547470065795,1769,531.26641151121157,114,40.311288741492746,829,213.40337391897066,2040,305.36044275577018]
[null,"35 to 64 years:",3245,188.09572031282372,2640,113.17243480636087,2088,124.84390253432484,2115,121.37956994486346,2342,131.03434664239754,2078,138.77319625922004,2258,115.97413504743201,14408,482.97929562249351,1061,65.053823869162372,3193,239.73527066328811,6190,306.18458485038076,2002,152.62044423995101,1815,136.03308421115798,3917,246.1097316239242,7316,330.49357028541419,1070,86.556340033529608,1064,73.246160308919954,2843,181.04143172213369,11391,305.52250326285298,436,91.285267157411553,798,91.934759476489631,353,51.623637996561229,3678,287.76726707532254,2160,146.38647478507022,2138,153.83757668398187,2027,153.63918770938616,2629,182.98087331740442,3572,268.06902096288559,8965,394.08755372378863,4525,286.00699292150182,2676,222.87440409342656,13162,403.75859123986453,2858,185.97042775667319,3903,344.98840560227529,400,52.497618993626752,3798,176.47662734764623,6470,269.32879534130768]
[null,"With hearing difficulty",64,53.823786563191554,81,44.654227123532216,15,18.867962264113206,64,45.793012567421243,53,38.078865529319543,34,36.687872655688281,23,24.596747752497688,279,116.93160394008115,24,18.027756377319946,47,45.541190146942803,226,117.06835610018618,55,33.241540277189323,24,22.825424421026653,37,53.160135440008048,234,110.38568747804219,19,14.142135623730951,23,22.472205054244231,73,59.033888572581766,212,75.286120898874842,12,14.866068747318506,23,20.615528128088304,10,13.601470508735444,116,61.684682053164543,58,36.069377593742864,47,41.761226035642203,31,27.202941017470888,93,51.86520991955976,60,72.090221250874237,221,102.6498904042279,136,95.587656106842587,56,52.201532544552748,306,103.58571330062848,26,29.732137494637012,99,64.621977685614041,7,5.8309518948453007,88,96.041657628343756,87,57.688820407423826]
[null,"With no hearing difficulty",3181,192.33824372703418,2559,108.2081327812286,2073,127.01574705523721,2051,120.7393887677091,2289,142.05632685663809,2044,141.01418368376991,2235,117.37972567696688,14129,504.16763085307252,1037,68.680419334771102,3146,246.27220712049501,5964,304.86226398162171,1947,154.93224325491451,1791,136.03308421115798,3880,250.45957757690161,7082,351.87639875388061,1051,88.617154095581284,1041,69.526973183074787,2770,196.82479518597245,11179,317.49803148996057,424,86.977008456258133,775,89.805345052507874,343,49.51767361255979,3562,285.80587817607949,2102,150.61540425866141,2091,156.84705926475002,1996,146.65946952038249,2536,190.03157632351525,3512,266.85014521262678,8744,390.44846010709273,4389,298.40241285887754,2620,225.81629702038779,12856,408.0012254883556,2832,184.58873205046942,3804,338.65764423677194,393,52.630789467763066,3710,207.4728897952694,6383,277.79488836189915]
[null,"65 to 74 years:",622,142.43595051811886,313,60.811183182043088,243,62.241465278381739,315,86.313382508160345,322,86.278618440491968,226,92.849340331528467,336,76.216796049164913,1839,212.20744567521658,313,50.447993022517757,548,148.40485167271319,1351,169.01183390520322,395,93.434469014384618,280,65.299310869258036,935,145.60219778561037,1728,187.49133313302778,241,45.793012567421243,190,32.015621187164243,564,132.90974381135493,1892,218.58865478336244,154,45.967379738244816,87,32.015621187164243,87,31.827660925679098,513,107.44766167767449,249,84.958813551037778,526,101.86265262597475,405,95.414883535012507,279,66.030296076876709,527,141.24092891226678,1831,211.51832071950648,741,164.65721970202219,554,190.4337155022713,2700,270.86712609691119,325,86.313382508160345,1081,206.86710710018642,80,19.798989873223331,475,116.03878661895772,952,201.13676938839401]
[null,"With hearing difficulty",41,36.61966684720111,8,20.518284528683193,7,15.556349186104045,0,15.556349186104045,0,15.556349186104045,50,55.108982933819419,31,24.839484696748443,115,58.180752831155424,15,12.041594578792296,119,109.77249200050075,53,39.812058474788763,17,23.706539182259394,8,16.278820596099706,57,40.311288741492746,133,62.393909959225986,43,32.893768406797051,26,16.492422502470642,43,54.120236510939236,104,44.721359549995796,12,8.9442719099991592,2,11.704699910719626,15,17.720045146669349,54,32.310988842807021,33,33.241540277189323,40,39.560080889704963,30,26.627053911388696,13,20.248456731316587,44,34.669871646719429,178,79.93122043357026,108,72.201108024738787,13,16.643316977093239,161,66.708320320631671,50,36.878177829171548,187,103.24727599312246,5,5,62,50.931326312987373,41,40.718546143004666]
[null,"With no hearing difficulty",581,142.43595051811886,305,61.522353661088097,236,61.554853586049575,315,86.313382508160345,322,86.278618440491968,176,82.807004534640669,305,77.420927403383644,1724,211.45448682872635,298,48.918299234540036,429,111.94641575325224,1298,164.87874332369228,378,92.69843580125827,272,63.7808748764079,878,145.60219778561037,1595,178.10390225932727,198,46.647615158762406,164,29.410882339705484,521,126.81088281373961,1788,215.72436116489024,142,45.967379738244816,85,32.015621187164243,72,26.92582403567252,459,106.04244433244644,216,84.219950130595535,486,95.900990610107883,375,88.75246475450696,266,65.215028942721474,483,137.63720427268203,1653,198.33809518093088,633,149.6262009141447,541,190.50721771103582,2539,264.55245226608656,275,83.438600180012614,894,195.41238445912276,75,18.439088914585774,413,112.92918134831227,911,197.43606560099397]
[null,"75 years and over:",509,126.73200069437868,164,48.166378315169183,143,48.020828814171878,168,75.153176912223742,146,63.513778032801667,208,81.320354155647891,113,49.51767361255979,1474,212.41704263076446,125,41.617304093369626,324,158.52129194527782,1217,191.12822920751398,144,65,295,65.604877867426907,463,129.634100452003,1189,214.86972797488249,114,36.76955262170047,64,21.400934559032695,348,106.88779163215975,738,145.45446022724775,174,49.51767361255979,85,30.413812651491099,60,22.671568097509269,388,144.01388821915754,175,61.073725938409879,287,74.94664769020693,227,93.605555390692487,174,63.890531379853151,509,145.42695761102891,1477,193.70596273734063,284,82.97590011563598,688,186.45374761586316,1684,235.77955806218657,227,84.38601779915912,674,213.71476317746513,54,21.2602916254693,411,99.297532698451278,837,214.27319011019554]
[null,"With hearing difficulty",67,49.33558553417604,52,30.886890422961002,7,15.556349186104045,65,57.974132162542979,47,46.097722286464439,42,38.600518131237564,38,32.893768406797051,267,96.664367788756579,31,21.470910553583888,70,51.478150704935004,275,98.812954616284998,27,26.40075756488817,83,35.805027579936315,111,54.203320931470607,292,107.71258050942797,22,18.027756377319946,3,11.704699910719626,56,43.829214001622255,215,84.053554356731397,49,24.698178070456937,13,15.556349186104045,9,8.9442719099991592,81,44.045431091090478,52,34.713109915419565,93,51,52,49.244289008980523,12,17.029386365926403,94,76.661594035083823,310,124.77980605851253,43,35.805027579936315,133,74.215901261117892,367,122.38055401083949,62,48.166378315169183,221,191.637678967368,7,13.038404810405298,124,75.166481891864535,122,72.201108024738787]
[null,"With no hearing difficulty",442,122.78843593759146,112,43.185645763378368,136,47.507894080878813,103,41.109609582188931,99,43.863424398922618,166,72.622310621461224,75,38.470768123342687,1207,203.00246303924493,94,37.643060449437421,254,151.85519418182574,942,185.41305239923105,117,59.908263203000637,212,58.830264320330912,352,113.86395390991831,897,179.13402803487674,92,34.655446902326915,61,21.400934559032695,292,107.81465577554843,523,120.28299963003916,125,44.045431091090478,72,28.42534080710379,51,19.416487838947599,307,141.03191128251791,123,51.855568649856693,194,56.400354608814297,175,77.781745930520231,162,62.625873247404705,415,136.40014662748717,1167,190.58856209122308,241,84.02380615040002,555,175.37673733993344,1317,216.22673285234646,165,69.814038702828242,453,133.05637902783917,47,19.104973174542799,287,87.367041840730764,715,212.80977421161839]

{"sheet":"ACS_Table_B18103","index":33,"n_rows":125,"n_cols":76,"rows_kept":125,"cut":false,"hidden":true,"merged":[]}
["B18103. SEX BY AGE BY VISION DIFFICULTY\n\n\n"]
["Universe:  Civilian non-institutionalized population"]
["Data Set: 2015-2019 American Community Survey 5-Year Estimates"]
[]
[null,null,"Atkinson",null,"Auburn",null,"Brentwood",null,"Candia",null,"Chester",null,"Danville",null,"Deerfield",null,"Derry",null,"East Kingston",null,"Epping",null,"Exeter",null,"Fremont",null,"Greenland",null,"Hampstead",null,"Hampton",null,"Hampton Falls",null,"Kensington",null,"Kingston",null,"Londonderry",null,"New Castle",null,"Newfields",null,"Newington",null,"Newmarket",null,"Newton",null,"North Hampton",null,"Northwood",null,"Nottingham",null,"Plaistow",null,"Portsmouth",null,"Raymond",null,"Rye",null,"Salem",null,"Sandown",null,"Seabrook",null,"South Hampton",null,"Stratham",null,"Windham"]
[null,null,"Estimate","Margin Of Error","Estimate","Margin Of Error","Estimate","Margin Of Error","Estimate","Margin Of Error","Estimate","Margin Of Error","Estimate","Margin Of Error","Estimate","Margin Of Error","Estimate","Margin Of Error","Estimate","Margin Of Error","Estimate","Margin Of Error","Estimate","Margin Of Error","Estimate","Margin Of Error","Estimate","Margin Of Error","Estimate","Margin Of Error","Estimate","Margin Of Error","Estimate","Margin Of Error","Estimate","Margin Of Error","Estimate","Margin Of Error","Estimate","Margin Of Error","Estimate","Margin Of Error","Estimate","Margin Of Error","Estimate","Margin Of Error","Estimate","Margin Of Error","Estimate","Margin Of Error","Estimate","Margin Of Error","Estimate","Margin Of Error","Estimate","Margin Of Error","Estimate","Margin Of Error","Estimate","Margin Of Error","Estimate","Margin Of Error","Estimate","Margin Of Error","Estimate","Margin Of Error","Estimate","Margin Of Error","Estimate","Margin Of Error","Estimate","Margin Of Error","Estimate","Margin Of Error","Estimate","Margin Of Error"]
[null,"Total:",6952,33,5446,21,4317,134,3936,18,5129,26,4515,29,4476,31,33242,113,2432,192,6952,32,14914,113,4623,84,3992,32,8612,20,15379,100,2383,164,2291,139,6260,29,25907,39,835,178,1757,227,710,89,9034,41,4920,22,4444,25,4286,27,5050,25,7689,26,20695,172,10428,23,5410,90,29090,108,6389,17,8820,31,775,94,7427,21,14512,46]
[null,"Male:",3495,246,2769,154,2150,112,2075,136,2559,150,2318,114,2181,105,16573,536,1221,149,3508,210,6847,330,2303,144,1911,108,4136,248,7537,274,1287,105,1165,82,3315,286,12718,292,379,101,811,111,368,61,4628,275,2553,179,2089,123,1958,167,2320,123,3609,274,9881,356,5176,302,2865,216,14779,424,3128,242,4283,199,373,49,3833,250,7227,322]
[null,"Under 5 years:",163,117,196,72,130,72,88,46,134,61,77,64,111,65,906,251,37,22,218,112,330,127,139,83,100,53,135,76,284,122,31,21,86,30,145,126,724,147,0,11,32,22,22,17,179,90,85,53,31,29,58,45,123,66,151,94,377,128,297,122,78,61,876,229,170,95,94,64,12,8,230,101,410,143]
[null,"With vision difficulty",0,16,0,16,0,11,0,11,0,16,0,11,0,11,0,24,0,11,0,16,0,18,0,11,0,11,0,16,0,18,6,10,0,11,0,16,6,10,0,11,0,11,0,11,0,16,0,11,0,11,0,11,0,16,0,16,29,47,0,18,0,16,0,21,0,16,0,16,0,11,0,16,0,18]
[null,"With no vision difficulty",163,117,196,72,130,72,88,46,134,61,77,64,111,65,906,251,37,22,218,112,330,127,139,83,100,53,135,76,284,122,25,18,86,30,145,126,718,147,0,11,32,22,22,17,179,90,85,53,31,29,58,45,123,66,151,94,348,122,297,122,78,61,876,229,170,95,94,64,12,8,230,101,410,143]
[null,"5 to 17  years:",604,207,391,97,501,84,267,114,466,107,427,121,359,98,2877,337,262,87,579,179,1074,190,297,94,286,77,741,168,927,159,230,57,176,55,447,184,2425,261,58,55,114,40,30,18,650,194,361,87,228,96,262,82,311,104,462,163,1198,203,858,240,364,99,1951,275,578,155,569,160,49,20,827,169,1412,251]
[null,"With vision difficulty",0,16,0,16,0,11,0,11,0,16,0,11,0,11,4,8,0,11,0,16,0,18,0,11,0,11,0,16,0,18,0,11,0,11,0,16,0,21,0,11,0,11,0,11,0,16,0,11,0,11,8,14,0,16,0,16,0,21,10,14,0,16,15,25,20,30,0,16,0,11,0,16,0,18]
[null,"With no vision difficulty",604,207,391,97,501,84,267,114,466,107,427,121,359,98,2873,336,262,87,579,179,1074,190,297,94,286,77,741,168,927,159,230,57,176,55,447,184,2425,261,58,55,114,40,30,18,650,194,361,87,228,96,254,80,311,104,462,163,1198,203,848,239,364,99,1936,275,558,154,569,160,49,20,827,169,1412,251]
[null,"18 to 34  years:",529,159,451,110,177,73,335,97,521,167,350,82,449,94,3469,371,172,65,740,212,1122,240,382,96,275,80,818,124,1241,211,248,78,211,51,854,247,2336,248,33,27,105,38,57,40,1407,230,615,141,340,109,319,86,401,90,919,218,2691,306,1085,263,406,178,3676,376,739,152,650,157,67,26,506,172,1065,288]
[null,"With vision difficulty",0,16,0,16,0,11,0,11,0,16,0,11,0,11,99,115,0,11,0,16,0,18,0,11,0,11,0,16,0,18,0,11,0,11,0,16,16,26,0,11,4,7,0,11,15,23,13,19,0,11,0,11,0,16,20,33,16,17,8,16,0,16,17,28,0,16,38,57,0,11,0,16,13,22]
[null,"With no vision difficulty",529,159,451,110,177,73,335,97,521,167,350,82,449,94,3370,352,172,65,740,212,1122,240,382,96,275,80,818,124,1241,211,248,78,211,51,854,247,2320,247,33,27,101,37,57,40,1392,228,602,144,340,109,319,86,401,90,899,219,2675,307,1077,269,406,178,3659,377,739,152,612,158,67,26,506,172,1052,287]
[null,"35 to 64  years:",1560,134,1325,85,1092,91,967,101,1106,71,1168,95,926,94,7546,340,533,48,1340,184,3024,251,1114,102,889,96,1600,143,3373,210,575,75,459,48,1299,186,5642,233,142,51,431,63,176,34,1770,196,1097,81,1008,115,975,109,1134,129,1498,195,4083,256,2254,220,1318,186,5934,286,1326,171,1970,181,151,26,1683,158,3335,186]
[null,"With vision difficulty",42,64,0,16,0,11,17,19,25,28,7,11,0,11,150,87,0,11,36,41,55,68,8,14,26,38,12,18,52,47,0,11,0,11,0,16,16,19,9,15,0,11,0,11,22,24,10,15,0,11,17,21,0,16,40,64,145,101,45,46,0,16,41,42,64,65,61,46,0,11,0,16,26,44]
[null,"With no vision difficulty",1518,145,1325,85,1092,91,950,103,1081,76,1161,95,926,94,7396,346,533,48,1304,181,2969,232,1106,103,863,107,1588,144,3321,206,575,75,459,48,1299,186,5626,235,133,50,431,63,176,34,1748,190,1087,83,1008,115,958,107,1134,129,1458,192,3938,242,2209,210,1318,186,5893,292,1262,186,1909,178,151,26,1683,158,3309,188]
[null,"65 to 74  years:",412,112,351,62,142,50,258,48,286,81,202,60,221,61,1273,154,125,26,497,130,567,100,155,48,242,49,522,91,1041,128,142,48,162,37,339,110,1124,152,83,32,77,27,45,15,392,99,293,67,338,76,213,62,197,65,327,102,1003,142,504,105,484,132,1535,185,228,82,710,124,63,18,359,109,562,122]
[null,"With vision difficulty",0,16,10,15,0,11,0,11,10,16,0,11,0,11,9,15,3,6,12,18,17,18,0,11,0,11,13,22,46,38,0,11,0,11,19,21,70,81,0,11,2,5,0,11,33,30,0,11,6,10,0,11,0,16,18,28,24,32,44,37,16,25,37,37,17,23,53,41,2,3,0,16,0,18]
[null,"With no vision difficulty",412,112,341,61,142,50,258,48,276,79,202,60,221,61,1264,153,122,27,485,129,550,99,155,48,242,49,509,91,995,118,142,48,162,37,320,108,1054,143,83,32,75,27,45,15,359,95,293,67,332,75,213,62,197,65,309,99,979,141,460,102,468,132,1498,184,211,80,657,119,61,17,359,109,562,122]
[null,"75  years and Older:",227,91,55,33,108,41,160,76,46,28,94,47,115,73,502,145,92,36,134,81,730,149,216,68,119,53,320,110,671,133,61,24,71,26,231,97,467,140,63,32,52,29,38,23,230,95,102,58,144,62,131,66,154,69,252,122,529,123,178,82,215,95,807,171,87,57,290,76,31,19,228,86,443,125]
[null,"With vision difficulty",13,22,0,16,0,11,0,11,0,16,9,13,20,18,27,30,5,8,0,16,24,24,9,13,17,19,0,16,15,12,0,11,7,8,0,16,11,16,11,18,0,11,0,11,72,69,0,11,0,11,0,11,0,16,31,36,10,15,0,18,0,16,33,26,14,23,18,21,2,4,0,16,44,42]
[null,"With no vision difficulty",214,89,55,33,108,41,160,76,46,28,85,45,95,72,475,140,87,37,134,81,706,144,207,66,102,47,320,110,656,133,61,24,64,25,231,97,456,131,52,27,52,29,38,23,158,84,102,58,144,62,131,66,154,69,221,118,519,120,178,82,215,95,774,178,73,54,272,76,29,18,228,86,399,118]
[null,"Female:",3457,247,2677,155,2167,128,1861,135,2570,151,2197,113,2295,108,16669,542,1211,95,3444,210,8067,324,2320,149,2081,108,4476,250,7842,285,1096,100,1126,96,2945,286,13189,287,456,101,946,135,342,48,4406,280,2367,177,2355,120,2328,165,2730,124,4080,272,10814,356,5252,298,2545,210,14311,444,3261,239,4537,195,402,60,3594,250,7285,316]
[null,"Under 5 years:",112,65,146,75,145,69,92,65,131,59,67,50,74,40,724,159,11,12,220,109,315,123,119,59,63,35,244,105,123,65,33,20,74,24,75,72,661,139,18,28,50,40,6,7,252,110,118,52,72,44,82,59,158,72,130,74,432,118,277,120,96,69,597,193,216,112,129,77,7,7,95,70,534,134]
[null,"With vision difficulty",0,16,0,16,0,11,0,11,0,16,0,11,0,11,0,24,0,11,0,16,0,18,0,11,0,11,0,16,0,18,0,11,0,11,0,16,0,21,0,11,0,11,0,11,0,16,0,11,0,11,0,11,0,16,0,16,21,28,0,18,0,16,0,21,0,16,0,16,0,11,0,16,0,18]
[null,"With no vision difficulty",112,65,146,75,145,69,92,65,131,59,67,50,74,40,724,159,11,12,220,109,315,123,119,59,63,35,244,105,123,65,33,20,74,24,75,72,661,139,18,28,50,40,6,7,252,110,118,52,72,44,82,59,158,72,130,74,411,113,277,120,96,69,597,193,216,112,129,77,7,7,95,70,534,134]
[null,"5 to 17  years:",506,192,380,106,345,81,204,67,364,95,377,101,343,85,2599,285,217,42,345,121,1134,153,350,88,491,105,718,160,1084,159,141,39,135,36,495,174,2081,188,52,35,232,72,30,18,482,169,343,91,469,151,341,68,523,122,648,148,1304,179,860,278,241,83,1691,308,429,195,506,137,65,28,501,162,1586,213]
[null,"With vision difficulty",0,16,0,16,0,11,0,11,0,16,0,11,0,11,0,24,0,11,0,16,0,18,0,11,0,11,0,16,0,18,0,11,0,11,0,16,12,19,0,11,4,6,0,11,14,21,0,11,9,14,8,14,0,16,0,16,38,45,12,18,0,16,0,21,0,16,0,16,0,11,0,16,0,18]
[null,"With no vision difficulty",506,192,380,106,345,81,204,67,364,95,377,101,343,85,2599,285,217,42,345,121,1134,153,350,88,491,105,718,160,1084,159,141,39,135,36,495,174,2069,191,52,35,228,72,30,18,468,167,343,91,460,150,333,71,523,122,648,148,1266,169,848,278,241,83,1691,308,429,195,506,137,65,28,501,162,1586,213]
[null,"18 to 34  years:",486,162,460,115,249,74,342,101,542,109,346,80,569,98,3964,412,197,56,663,176,1491,232,394,80,249,79,746,145,1091,203,186,76,175,45,589,189,2397,278,28,24,108,34,37,19,1283,211,421,117,201,86,518,180,344,94,829,214,2822,298,1007,177,173,85,2986,359,675,143,688,163,58,24,543,168,634,186]
[null,"With vision difficulty",0,16,0,16,0,11,0,11,0,16,13,19,11,17,29,33,0,11,0,16,9,12,0,11,0,11,0,16,23,26,0,11,0,11,0,16,73,58,0,11,0,11,0,11,0,16,11,17,0,11,0,11,0,16,0,16,24,29,0,18,0,16,36,33,0,16,0,16,0,11,0,16,0,18]
[null,"With no vision difficulty",486,162,460,115,249,74,342,101,542,109,333,82,558,100,3935,408,197,56,663,176,1482,231,394,80,249,79,746,145,1068,199,186,76,175,45,589,189,2324,279,28,24,108,34,37,19,1283,211,410,118,201,86,518,180,344,94,829,214,2798,294,1007,177,173,85,2950,356,675,143,688,163,58,24,543,168,634,186]
[null,"35 to 64  years:",1617,137,1342,94,1017,94,947,71,1229,96,1150,87,971,89,7290,368,550,42,1569,174,3128,242,1072,85,913,98,1928,177,3558,175,568,53,524,61,1280,180,5973,229,175,61,446,60,167,29,1701,153,1122,94,1010,90,986,105,1228,95,1787,192,4332,304,2375,229,1236,150,6019,258,1468,130,1925,195,177,32,1825,149,3449,192]
[null,"With vision difficulty",56,51,25,25,15,22,17,19,10,15,68,62,0,11,130,67,6,9,95,93,30,26,8,14,0,11,7,11,70,44,5,8,3,4,0,16,88,58,0,11,0,11,0,11,44,32,11,17,10,16,8,12,8,12,0,16,38,35,76,68,0,16,74,64,0,16,63,59,0,11,0,16,0,18]
[null,"With no vision difficulty",1561,151,1317,92,1002,95,930,73,1219,95,1082,82,971,89,7160,353,544,42,1474,173,3098,235,1064,84,913,98,1921,177,3488,168,563,53,521,61,1280,180,5885,233,175,61,446,60,167,29,1657,158,1111,94,1000,90,978,106,1220,94,1787,192,4294,298,2299,240,1236,150,5945,259,1468,130,1862,198,177,32,1825,149,3449,192]
[null,"65 to 74  years:",490,153,218,56,162,71,199,43,203,70,177,64,231,61,1405,194,137,31,470,132,908,172,232,55,227,49,499,94,1189,160,143,38,137,29,349,117,1348,128,107,42,61,26,59,20,473,90,256,67,359,95,250,76,340,84,363,105,1214,202,475,116,517,142,1597,184,244,82,642,126,51,18,410,100,589,108]
[null,"With vision difficulty",13,20,0,16,0,11,21,32,7,10,19,22,17,26,50,47,5,8,12,18,24,26,0,11,0,11,8,13,52,40,0,11,3,4,18,29,29,27,13,15,3,5,2,3,14,18,16,17,0,11,0,11,0,16,0,16,38,31,0,18,0,16,0,21,0,16,27,30,10,13,20,31,0,18]
[null,"With no vision difficulty",477,150,218,56,162,71,178,49,196,70,158,62,214,59,1355,199,132,32,458,130,884,173,232,55,227,49,491,91,1137,158,143,38,134,29,331,114,1319,128,94,40,58,25,57,19,459,92,240,67,359,95,250,76,340,84,363,105,1176,198,475,116,517,142,1597,184,244,82,615,120,41,13,390,99,589,108]
[null,"75  years and Older:",246,69,131,56,249,74,77,45,101,52,80,39,107,50,687,154,99,35,177,81,1091,188,153,65,138,41,341,129,797,128,25,18,81,28,157,83,729,167,76,37,49,27,43,23,215,100,107,62,244,79,151,76,137,73,323,137,710,161,258,75,282,119,1421,219,229,159,647,148,44,18,220,88,493,133]
[null,"With vision difficulty",50,43,0,16,12,17,0,11,0,16,0,11,0,11,47,74,0,11,24,37,88,59,9,13,0,11,12,19,11,11,2,5,0,11,0,16,24,26,0,11,19,24,0,11,59,93,0,11,8,13,0,11,41,44,95,96,82,53,7,12,21,33,86,74,3,6,49,45,2,4,0,16,45,36]
[null,"With no vision difficulty",196,74,131,56,237,66,77,45,101,52,80,39,107,50,640,147,99,35,153,80,1003,191,144,65,138,41,329,128,786,128,23,18,81,28,157,83,705,171,76,37,30,18,43,23,156,97,107,62,236,79,151,76,96,59,228,105,628,154,251,72,261,114,1335,212,226,159,598,146,42,18,220,88,448,135]
[]
[]
[{"$f":"A1& \"-Calculated\"","v":"B18103. SEX BY AGE BY VISION DIFFICULTY\n\n\n-Calculated"}]
[{"$f":"A2","v":"Universe:  Civilian non-institutionalized population"}]
[{"$f":"A3","v":"Data Set: 2015-2019 American Community Survey 5-Year Estimates"}]
[]
[]
[null,null,"Atkinson",null,"Auburn",null,"Brentwood",null,"Candia",null,"Chester",null,"Danville",null,"Deerfield",null,"Derry",null,"East Kingston",null,"Epping",null,"Exeter",null,"Fremont",null,"Greenland",null,"Hampstead",null,"Hampton",null,"Hampton Falls",null,"Kensington",null,"Kingston",null,"Londonderry",null,"New Castle",null,"Newfields",null,"Newington",null,"Newmarket",null,"Newton",null,"North Hampton",null,"Northwood",null,"Nottingham",null,"Plaistow",null,"Portsmouth",null,"Raymond",null,"Rye",null,"Salem",null,"Sandown",null,"Seabrook",null,"South Hampton",null,"Stratham",null,"Windham"]
[null,null,"Estimate","Margin Of Error","Estimate","Margin Of Error","Estimate","Margin Of Error","Estimate","Margin Of Error","Estimate","Margin Of Error","Estimate","Margin Of Error","Estimate","Margin Of Error","Estimate","Margin Of Error","Estimate","Margin Of Error","Estimate","Margin Of Error","Estimate","Margin Of Error","Estimate","Margin Of Error","Estimate","Margin Of Error","Estimate","Margin Of Error","Estimate","Margin Of Error","Estimate","Margin Of Error","Estimate","Margin Of Error","Estimate","Margin Of Error","Estimate","Margin Of Error","Estimate","Margin Of Error","Estimate","Margin Of Error","Estimate","Margin Of Error","Estimate","Margin Of Error","Estimate","Margin Of Error","Estimate","Margin Of Error","Estimate","Margin Of Error","Estimate","Margin Of Error","Estimate","Margin Of Error","Estimate","Margin Of Error","Estimate","Margin Of Error","Estimate","Margin Of Error","Estimate","Margin Of Error","Estimate","Margin Of Error","Estimate","Margin Of Error","Estimate","Margin Of Error","Estimate","Margin Of Error","Estimate","Margin Of Error"]
[null,"Total",{"$f":"C7","v":6952},33,5446,21,4317,134,3936,18,5129,26,4515,29,4476,31,33242,113,2432,192,6952,32,14914,113,{"$f":"Y7","v":4623},84,3992,32,8612,20,15379,100,2383,164,2291,139,6260,29,25907,39,835,178,1757,227,710,89,9034,41,4920,22,4444,25,4286,27,5050,25,7689,26,20695,172,10428,23,5410,90,29090,108,6389,17,8820,31,775,94,7427,21,14512,46]
[null,"Under 5 years:",{"$f":"C28+C9","v":275},{"$f":"SQRT((D28^2)+(D9^2))","v":133.843191832831},{"$f":"E28+E9","v":342},{"$f":"SQRT((F28^2)+(F9^2))","v":103.96634070698073},{"$f":"G28+G9","v":275},{"$f":"SQRT((H28^2)+(H9^2))","v":99.724620831567975},{"$f":"I28+I9","v":180},{"$f":"SQRT((J28^2)+(J9^2))","v":79.630396206473819},{"$f":"K28+K9","v":265},{"$f":"SQRT((L28^2)+(L9^2))","v":84.864598037108507},{"$f":"M28+M9","v":144},{"$f":"SQRT((N28^2)+(N9^2))","v":81.21576201698781},{"$f":"O28+O9","v":185},{"$f":"SQRT((P28^2)+(P9^2))","v":76.321687612368734},{"$f":"Q28+Q9","v":1630},{"$f":"SQRT((R28^2)+(R9^2))","v":297.12287020692298},{"$f":"S28+S9","v":48},{"$f":"SQRT((T28^2)+(T9^2))","v":25.059928172283335},{"$f":"U28+U9","v":438},{"$f":"SQRT((V28^2)+(V9^2))","v":156.28499608087785},{"$f":"W28+W9","v":645},{"$f":"SQRT((X28^2)+(X9^2))","v":176.7993212656655},{"$f":"Y28+Y9","v":258},{"$f":"SQRT((Z28^2)+(Z9^2))","v":101.83319694480774},{"$f":"AA28+AA9","v":163},{"$f":"SQRT((AB28^2)+(AB9^2))","v":63.513778032801667},{"$f":"AC28+AC9","v":379},{"$f":"SQRT((AD28^2)+(AD9^2))","v":129.61867149450345},{"$f":"AE28+AE9","v":407},{"$f":"SQRT((AF28^2)+(AF9^2))","v":138.23530663329106},{"$f":"AG28+AG9","v":64},{"$f":"SQRT((AH28^2)+(AH9^2))","v":29},{"$f":"AI28+AI9","v":160},{"$f":"SQRT((AJ28^2)+(AJ9^2))","v":38.418745424597091},{"$f":"AK28+AK9","v":220},{"$f":"SQRT((AL28^2)+(AL9^2))","v":145.12063946937388},{"$f":"AM28+AM9","v":1385},{"$f":"SQRT((AN28^2)+(AN9^2))","v":202.3116407921205},{"$f":"AO28+AO9","v":18},{"$f":"SQRT((AP28^2)+(AP9^2))","v":30.083217912982647},{"$f":"AQ28+AQ9","v":82},{"$f":"SQRT((AR28^2)+(AR9^2))","v":45.650848842053307},{"$f":"AS28+AS9","v":28},{"$f":"SQRT((AT28^2)+(AT9^2))","v":18.384776310850235},{"$f":"AU28+AU9","v":431},{"$f":"SQRT((AV28^2)+(AV9^2))","v":142.12670403551894},{"$f":"AW28+AW9","v":203},{"$f":"SQRT((AX28^2)+(AX9^2))","v":74.249579123386283},{"$f":"AY28+AY9","v":103},{"$f":"SQRT((AZ28^2)+(AZ9^2))","v":52.697248505021591},{"$f":"BA28+BA9","v":140},{"$f":"SQRT((BB28^2)+(BB9^2))","v":74.202425836356596},{"$f":"BC28+BC9","v":281},{"$f":"SQRT((BD28^2)+(BD9^2))","v":97.672923576598237},{"$f":"BE28+BE9","v":281},{"$f":"SQRT((BF28^2)+(BF9^2))","v":119.63277142990545},{"$f":"BG28+BG9","v":809},{"$f":"SQRT((BH28^2)+(BH9^2))","v":174.0919297382851},{"$f":"BI28+BI9","v":574},{"$f":"SQRT((BJ28^2)+(BJ9^2))","v":171.12568480505783},{"$f":"BK28+BK9","v":174},{"$f":"SQRT((BL28^2)+(BL9^2))","v":92.097774131626011},{"$f":"BM28+BM9","v":1473},{"$f":"SQRT((BN28^2)+(BN9^2))","v":299.48288765804301},{"$f":"BO28+BO9","v":386},{"$f":"SQRT((BP28^2)+(BP9^2))","v":146.86388255796589},{"$f":"BQ28+BQ9","v":223},{"$f":"SQRT((BR28^2)+(BR9^2))","v":100.12492197250393},{"$f":"BS28+BS9","v":19},{"$f":"SQRT((BT28^2)+(BT9^2))","v":10.63014581273465},{"$f":"BU28+BU9","v":325},{"$f":"SQRT((BV28^2)+(BV9^2))","v":122.88612614937456},{"$f":"BW28+BW9","v":944},{"$f":"SQRT((BX28^2)+(BX9^2))","v":195.97193676646665}]
[null,"With vision difficulty",{"$f":"C29+C10","v":0},{"$f":"SQRT((D29^2)+(D10^2))","v":22.627416997969522},{"$f":"E29+E10","v":0},{"$f":"SQRT((F29^2)+(F10^2))","v":22.627416997969522},{"$f":"G29+G10","v":0},{"$f":"SQRT((H29^2)+(H10^2))","v":15.556349186104045},{"$f":"I29+I10","v":0},{"$f":"SQRT((J29^2)+(J10^2))","v":15.556349186104045},{"$f":"K29+K10","v":0},{"$f":"SQRT((L29^2)+(L10^2))","v":22.627416997969522},{"$f":"M29+M10","v":0},{"$f":"SQRT((N29^2)+(N10^2))","v":15.556349186104045},{"$f":"O29+O10","v":0},{"$f":"SQRT((P29^2)+(P10^2))","v":15.556349186104045},{"$f":"Q29+Q10","v":0},{"$f":"SQRT((R29^2)+(R10^2))","v":33.941125496954278},{"$f":"S29+S10","v":0},{"$f":"SQRT((T29^2)+(T10^2))","v":15.556349186104045},{"$f":"U29+U10","v":0},{"$f":"SQRT((V29^2)+(V10^2))","v":22.627416997969522},0,25.45584412271571,0,{"$f":"SQRT((Z29^2)+(Z10^2))","v":15.556349186104045},0,{"$f":"SQRT((AB29^2)+(AB10^2))","v":15.556349186104045},0,{"$f":"SQRT((AD29^2)+(AD10^2))","v":22.627416997969522},0,{"$f":"SQRT((AF29^2)+(AF10^2))","v":25.45584412271571},6,{"$f":"SQRT((AH29^2)+(AH10^2))","v":14.866068747318506},0,{"$f":"SQRT((AJ29^2)+(AJ10^2))","v":15.556349186104045},0,{"$f":"SQRT((AL29^2)+(AL10^2))","v":22.627416997969522},6,{"$f":"SQRT((AN29^2)+(AN10^2))","v":23.259406699226016},0,{"$f":"SQRT((AP29^2)+(AP10^2))","v":15.556349186104045},0,{"$f":"SQRT((AR29^2)+(AR10^2))","v":15.556349186104045},0,{"$f":"SQRT((AT29^2)+(AT10^2))","v":15.556349186104045},0,{"$f":"SQRT((AV29^2)+(AV10^2))","v":22.627416997969522},0,{"$f":"SQRT((AX29^2)+(AX10^2))","v":15.556349186104045},0,{"$f":"SQRT((AZ29^2)+(AZ10^2))","v":15.556349186104045},0,{"$f":"SQRT((BB29^2)+(BB10^2))","v":15.556349186104045},0,{"$f":"SQRT((BD29^2)+(BD10^2))","v":22.627416997969522},0,{"$f":"SQRT((BF29^2)+(BF10^2))","v":22.627416997969522},50,{"$f":"SQRT((BH29^2)+(BH10^2))","v":54.708317466359723},0,{"$f":"SQRT((BJ29^2)+(BJ10^2))","v":25.45584412271571},0,{"$f":"SQRT((BL29^2)+(BL10^2))","v":22.627416997969522},0,{"$f":"SQRT((BN29^2)+(BN10^2))","v":29.698484809834994},0,{"$f":"SQRT((BP29^2)+(BP10^2))","v":22.627416997969522},0,{"$f":"SQRT((BR29^2)+(BR10^2))","v":22.627416997969522},0,{"$f":"SQRT((BT29^2)+(BT10^2))","v":15.556349186104045},0,{"$f":"SQRT((BV29^2)+(BV10^2))","v":22.627416997969522},0,{"$f":"SQRT((BX29^2)+(BX10^2))","v":25.45584412271571}]
[null,"With no vision difficulty",275,133.843191832831,342,103.96634070698073,275,99.724620831567975,180,79.630396206473819,265,84.864598037108507,144,81.21576201698781,185,76.321687612368734,1630,297.12287020692298,48,25.059928172283335,438,156.28499608087785,645,176.7993212656655,258,{"$f":"SQRT((Z30^2)+(Z11^2))","v":101.83319694480774},163,63.513778032801667,379,129.61867149450345,407,138.23530663329106,58,26.90724809414742,160,38.418745424597091,220,145.12063946937388,1379,202.3116407921205,18,30.083217912982647,82,45.650848842053307,28,18.384776310850235,431,142.12670403551894,203,74.249579123386283,103,52.697248505021591,140,74.202425836356596,281,97.672923576598237,281,119.63277142990545,759,166.29191201017565,574,171.12568480505783,174,92.097774131626011,1473,299.48288765804301,386,146.86388255796589,223,100.12492197250393,19,10.63014581273465,325,122.88612614937456,944,195.97193676646665]
[null,"5 to 17 years:",1110,282.33490751233722,771,143.68368035375485,846,116.69190203266035,471,132.23085872821065,830,143.0873858870865,804,157.61345120261785,702,129.72663566130126,5476,441.35473261312154,479,96.607453128627711,924,216.06017680266763,2208,243.94466585682909,647,128.76334882255898,777,130.20752666416791,1459,232,2011,224.85995641732211,371,69.06518659932803,311,65.73431371817918,942,253.24296633865274,4506,321.65975812961125,110,65.192024052026483,346,82.365041127896006,60,25.45584412271571,1132,257.28777662376422,704,125.89678312014172,697,178.93294833540301,603,106.5269918846862,834,160.31219541881399,1110,220.16584657934573,2502,270.64737205448716,1718,367.26557148744558,605,129.18978287774928,3642,412.90313634071612,1007,249.09837414162303,1075,210.63950246807934,114,34.409301068170507,1328,234.10467744152402,2998,329.1959902550455]
[null,"With vision difficulty",0,22.627416997969522,0,22.627416997969522,0,15.556349186104045,0,15.556349186104045,0,22.627416997969522,0,15.556349186104045,0,15.556349186104045,4,25.298221281347036,0,15.556349186104045,0,22.627416997969522,0,25.45584412271571,0,15.556349186104045,0,15.556349186104045,0,22.627416997969522,0,25.45584412271571,0,15.556349186104045,0,15.556349186104045,0,22.627416997969522,12,28.319604517012593,0,15.556349186104045,4,12.529964086141668,0,15.556349186104045,14,26.40075756488817,0,15.556349186104045,9,17.804493814764857,16,19.798989873223331,0,22.627416997969522,0,22.627416997969522,38,49.658836071740545,22,22.803508501982758,0,22.627416997969522,15,32.649655434629018,20,34,0,22.627416997969522,0,15.556349186104045,0,22.627416997969522,0,25.45584412271571]
[null,"With no vision difficulty",1110,282.33490751233722,771,143.68368035375485,846,116.69190203266035,471,132.23085872821065,830,143.0873858870865,804,157.61345120261785,702,129.72663566130126,5472,440.59164767389768,479,96.607453128627711,924,216.06017680266763,2208,243.94466585682909,647,128.76334882255898,777,130.20752666416791,1459,232,2011,224.85995641732211,371,69.06518659932803,311,65.73431371817918,942,253.24296633865274,4494,323.42232452321531,110,65.192024052026483,342,82.365041127896006,60,25.45584412271571,1118,255.97851472340409,704,125.89678312014172,688,178.08986495586996,587,106.96261028976434,834,160.31219541881399,1110,220.16584657934573,2464,264.14011433328335,1696,366.61287484211465,605,129.18978287774928,3627,412.90313634071612,987,248.47736315407084,1075,210.63950246807934,114,34.409301068170507,1328,234.10467744152402,2998,329.1959902550455]
[null,"18 to 34 years:",1015,226.99118925632334,911,159.13830462839547,426,103.9471019317037,677,140.03570973148243,1063,199.42417105255822,696,114.56002793295748,1018,135.79396157414365,7433,554.42312361588961,369,85.796270315206598,1403,275.5358415887124,2613,333.80233672040106,776,124.96399481450646,524,112.43220179290273,1564,190.79046097748179,2332,292.79685790663808,434,108.90362712049586,386,68.01470429252781,1443,311.01446911679204,4733,372.54261501202785,61,36.124783736376884,213,50.990195135927848,94,44.283179650969061,2690,312.1233730434169,1036,183.22117781522965,541,138.84163640637487,837,199.48934808655824,745,130.13838787997952,1748,305.48322376196046,5513,427.12995680471766,2092,317.0141952657641,579,197.25364381932212,6662,519.86248181610495,1414,208.69355524308841,1338,226.31394124092313,125,35.383612025908263,1049,240.4329428343795,1699,342.84107105187968]
[null,"With vision difficulty",0,22.627416997969522,0,22.627416997969522,0,15.556349186104045,0,15.556349186104045,0,22.627416997969522,13,21.95449840010015,11,20.248456731316587,128,119.64113005150027,0,15.556349186104045,0,22.627416997969522,9,21.633307652783937,0,15.556349186104045,0,15.556349186104045,0,22.627416997969522,23,31.622776601683793,0,15.556349186104045,0,15.556349186104045,0,22.627416997969522,89,63.560994328282817,0,15.556349186104045,4,13.038404810405298,0,15.556349186104045,15,28.0178514522438,24,25.495097567963924,0,15.556349186104045,0,15.556349186104045,0,22.627416997969522,20,36.674241641784498,40,33.61547262794322,8,24.083189157584592,0,22.627416997969522,53,43.278170016764804,0,22.627416997969522,38,59.203040462462738,0,15.556349186104045,0,22.627416997969522,13,28.42534080710379]
[null,"With no vision difficulty",1015,226.99118925632334,911,159.13830462839547,426,103.9471019317037,677,140.03570973148243,1063,199.42417105255822,683,115.96551211459379,1007,137.2443077143821,7305,538.85805180956515,369,85.796270315206598,1403,275.5358415887124,2604,333.10809056520981,776,124.96399481450646,524,112.43220179290273,1564,190.79046097748179,2309,290.03792855418067,434,108.90362712049586,386,68.01470429252781,1443,311.01446911679204,4644,372.62581767773418,61,36.124783736376884,209,50.24937810560445,94,44.283179650969061,2675,310.65253902068787,1012,186.17196351760379,541,138.84163640637487,837,199.48934808655824,745,130.13838787997952,1728,306.19764858666042,5473,425.07058237426878,2084,322.00931663540422,579,197.25364381932212,6609,518.52193781941378,1414,208.69355524308841,1300,227.00881040171106,125,35.383612025908263,1049,240.4329428343795,1686,342.00146198517922]
[null,"35 to 64 years:",3177,191.637678967368,2667,126.73200069437868,2109,130.83195328359201,1914,123.45849504995596,2335,119.4026800369238,2318,128.81770064707723,1897,129.4488315899375,14836,501.02295356600183,1083,63.7808748764079,2909,253.24296633865274,6152,348.66172717979816,2186,132.77424449041311,1802,137.18600511714013,3528,227.547797176769,6931,273.3587386567329,1143,91.836811791350854,983,77.620873481300123,2579,258.83585532147589,11615,326.69557695199978,317,79.511005527536881,877,87,343,44.687805943008662,3471,248.64633518312712,2219,124.08464852672147,2018,146.03081866510234,1961,151.34728276384746,2362,160.20611723651504,3285,273.65854636754904,8415,397.43175514797508,4629,317.55471969410246,2554,238.94769302087852,11953,385.17528477304978,2794,214.80456233516085,3895,266.05638500137525,328,41.231056256176608,3508,217.17504460687928,6784,267.32003291934558]
[null,"With vision difficulty",98,81.835200250259064,25,29.681644159311659,15,24.596747752497688,34,26.870057685088806,35,31.76476034853718,75,62.968245965724662,0,15.556349186104045,280,109.80892495603443,6,14.212670403551895,131,101.6366075781753,85,72.801098892805186,16,19.798989873223331,26,39.560080889704963,19,21.095023109728988,122,64.381674411279491,5,13.601470508735444,3,11.704699910719626,0,22.627416997969522,104,61.032778078668514,9,18.601075237738275,0,15.556349186104045,0,15.556349186104045,66,40,21,22.671568097509269,10,19.416487838947599,25,24.186773244895647,8,20,40,65.969690009882569,183,106.89246933250256,121,82.09750300709517,0,22.627416997969522,115,76.550636836018555,64,66.940271884718243,124,74.813100457072352,0,15.556349186104045,0,22.627416997969522,26,47.539457296018853]
[null,"With no vision difficulty",3079,209.34660255184463,2642,125.25573839150046,2094,131.55227098001768,1880,126.24579200908045,2300,121.65936051122412,2243,125.49501982150527,1897,129.4488315899375,14556,494.29242357131068,1077,63.7808748764079,2778,250.3797116381437,6067,330.22568040659706,2170,132.90974381135493,1776,145.09651959988565,3509,228.17756243767704,6809,265.81948762270986,1138,91.836811791350854,980,77.620873481300123,2579,258.83585532147589,11511,330.92899540535882,308,78.87331614684399,877,87,343,44.687805943008662,3405,247.1113109511582,2198,125.39936203984452,2008,146.03081866510234,1936,150.61540425866141,2354,159.6151621870554,3245,271.52900397563423,8232,383.88539956606843,4508,318.90437438203946,2554,238.94769302087852,11838,390.31397617815327,2730,{"$f":"SQRT((BP39^2)+(BP20^2))","v":226.92730113408567},3771,{"$f":"SQRT((BR39^2)+(BR20^2))","v":266.24800468735913},328,{"$f":"SQRT((BT39^2)+(BT20^2))","v":41.231056256176608},3508,{"$f":"SQRT((BV39^2)+(BV20^2))","v":217.17504460687928},6758,{"$f":"SQRT((BX39^2)+(BX20^2))","v":268.71546289709494}]
[null,"65 to 74 years:",902,189.61276328348785,569,83.546394296821688,304,86.838931361457924,457,64.443773942872099,489,107.05606008068857,379,87.726848797845236,452,86.267027304758798,2678,247.69335881286764,262,40.459856648287818,967,185.26737435393204,1475,198.9572818471342,387,{"$f":"SQRT((Z40^2)+(Z21^2))","v":73},469,{"$f":"SQRT((AB40^2)+(AB21^2))","v":69.296464556281663},1021,{"$f":"SQRT((AD40^2)+(AD21^2))","v":130.83195328359201},2230,{"$f":"SQRT((AF40^2)+(AF21^2))","v":204.89997559785115},285,{"$f":"SQRT((AH40^2)+(AH21^2))","v":61.220911460055866},299,{"$f":"SQRT((AJ40^2)+(AJ21^2))","v":47.010637094172637},688,{"$f":"SQRT((AL40^2)+(AL21^2))","v":160.58953888718904},2472,{"$f":"SQRT((AN40^2)+(AN21^2))","v":198.71587757398754},190,{"$f":"SQRT((AP40^2)+(AP21^2))","v":52.801515129776341},138,{"$f":"SQRT((AR40^2)+(AR21^2))","v":37.483329627982627},104,{"$f":"SQRT((AT40^2)+(AT21^2))","v":25},865,{"$f":"SQRT((AV40^2)+(AV21^2))","v":133.79461872586654},549,{"$f":"SQRT((AX40^2)+(AX21^2))","v":94.752308678997366},697,{"$f":"SQRT((AZ40^2)+(AZ21^2))","v":121.65936051122412},463,{"$f":"SQRT((BB40^2)+(BB21^2))","v":98.081598681913832},537,{"$f":"SQRT((BD40^2)+(BD21^2))","v":106.21205204683694},690,{"$f":"SQRT((BF40^2)+(BF21^2))","v":146.38647478507022},2217,{"$f":"SQRT((BH40^2)+(BH21^2))","v":246.91699009991191},979,{"$f":"SQRT((BJ40^2)+(BJ21^2))","v":156.46405337968207},1001,{"$f":"SQRT((BL40^2)+(BL21^2))","v":193.87624919004389},3132,{"$f":"SQRT((BN40^2)+(BN21^2))","v":260.92336039534672},472,115.96551211459379,1352,176.78235206037959,114,25.45584412271571,769,147.92227688891217,1151,162.93557008830209]
[null,"With vision difficulty",13,25.612496949731394,10,21.931712199461309,0,15.556349186104045,21,33.837848631377263,17,18.867962264113206,19,24.596747752497688,17,28.231188426986208,59,49.33558553417604,8,10,24,25.45584412271571,41,31.622776601683793,0,15.556349186104045,0,15.556349186104045,21,25.553864678361276,98,55.172456896534889,0,15.556349186104045,3,11.704699910719626,37,35.805027579936315,99,85.381496824546247,13,18.601075237738275,5,7.0710678118654755,2,11.401754250991379,47,34.985711369071801,16,20.248456731316587,6,14.866068747318506,0,15.556349186104045,0,22.627416997969522,18,32.249030993194197,62,44.553338819890925,44,41.146081222881968,16,29.681644159311659,37,42.544094772365298,17,28.0178514522438,80,50.803543183522152,12,13.341664064126334,20,34.885527085024819,0,25.45584412271571]
[null,"With no vision difficulty",889,187.20042734993956,559,82.807004534640669,304,86.838931361457924,436,68.593002558570063,472,105.55093557141026,360,86.278618440491968,435,84.864598037108507,2619,251.01792764661252,254,41.868842830916641,943,183.14202139323461,1434,199.32385707686876,387,73,469,69.296464556281663,1000,128.69343417595164,2132,197.20040567909589,285,61.220911460055866,296,47.010637094172637,651,157.0350279396288,2373,191.91925385432282,177,51.224993899462788,133,36.796738985948195,102,24.207436873820409,818,132.24598292575845,533,94.752308678997366,691,121.03718436910205,463,98.081598681913832,537,106.21205204683694,672,144.31216164966833,2155,243.0740627874558,935,154.46682491719702,985,193.87624919004389,3095,260.21529547664949,455,114.56002793295748,1272,169,102,21.400934559032695,749,147.24808997063425,1151,162.93557008830209]
[null,"75 years and over:",473,114.20157617125956,186,65,357,84.599054368237475,237,88.323269867006175,147,59.059292240933601,174,61.073725938409879,222,88.481636512894582,1189,211.52068456772733,191,50.209560842532767,311,114.5512985522207,1821,239.88538930080756,369,94.069123520951337,257,67.007462271003817,661,169.53170794869024,1468,184.58873205046942,86,30,152,38.209946349085598,388,127.66362050325849,1196,217.91970998512272,139,48.918299234540036,101,39.623225512317902,81,32.526911934581186,445,137.93114224133723,209,84.899941107164494,388,100.42410069301094,282,100.65783625729296,291,100.44899203078147,575,183.44754018519845,1239,202.60799589354809,436,111.12605455067681,497,152.26949793047851,2228,277.85247884444004,316,168.90825912311098,937,166.37307474468338,75,26.172504656604801,448,123.04470732217619,936,182.52123164169149]
[null,"With vision difficulty",63,48.301138702933287,0,22.627416997969522,12,20.248456731316587,0,15.556349186104045,0,22.627416997969522,9,17.029386365926403,20,21.095023109728988,74,79.849859110708522,5,13.601470508735444,24,40.311288741492746,112,63.694583757176716,18,18.384776310850235,17,21.95449840010015,12,24.839484696748443,26,16.278820596099706,2,12.083045973594572,7,13.601470508735444,0,22.627416997969522,35,30.528675044947494,11,21.095023109728988,19,26.40075756488817,0,15.556349186104045,131,115.80155439371269,0,15.556349186104045,8,17.029386365926403,0,15.556349186104045,41,46.818799642878503,126,102.52804494381037,92,55.081757415681643,7,21.633307652783937,21,36.674241641784498,119,78.434686204510314,17,23.769728648009426,67,49.658836071740545,4,5.6568542494923806,0,22.627416997969522,89,55.317266743757322]
[null,"With no vision difficulty",410,115.74541027617467,186,65,345,77.698133825723247,237,88.323269867006175,147,59.059292240933601,165,59.548299723837623,202,87.658428003244509,1115,203,186,50.931326312987373,287,113.84638773364749,1709,239.20075250717753,351,92.633687176966021,240,62.369864518050704,649,168.77203559831824,1442,184.58873205046942,84,30,145,37.536648758246919,388,127.66362050325849,1161,215.41123461880997,128,45.803929962395145,82,34.132096331752024,81,32.526911934581186,314,128.31601614763451,209,84.899941107164494,380,100.42410069301094,282,100.65783625729296,250,90.785461391128038,449,157.95252451290546,1147,195.23319389898839,429,109.12378292562992,476,148.39474384222643,2109,276.8176294963888,299,167.91962362987834,870,164.59647626847908,71,25.45584412271571,448,123.04470732217619,847,179.30142219179413]
[]
[]
[]
[]
[]
[]
[]
[]
[]
[]
[]
[]
[]
[]
[]
[]
[]
[]
[]
[]
[]
[]
[]
[]
[]
[]
["B18103. SEX BY AGE BY VISION DIFFICULTY\n\n\n-Calculated"]
["Universe:  Civilian non-institutionalized population"]
["Data Set: 2010-2014 American Community Survey 5-Year Estimates"]
[]
[]
[null,null,"Atkinson",null,"Auburn",null,"Brentwood",null,"Candia",null,"Chester",null,"Danville",null,"Deerfield",null,"Derry",null,"East Kingston",null,"Epping",null,"Exeter",null,"Fremont",null,"Greenland",null,"Hampstead",null,"Hampton",null,"Hampton Falls",null,"Kensington",null,"Kingston",null,"Londonderry",null,"New Castle",null,"Newfields",null,"Newington",null,"Newmarket",null,"Newton",null,"North Hampton",null,"Northwood",null,"Nottingham",null,"Plaistow",null,"Portsmouth",null,"Raymond",null,"Rye",null,"Salem",null,"Sandown",null,"Seabrook",null,"South Hampton",null,"Stratham",null,"Windham"]
[null,null,"Estimate","Margin Of Error","Estimate","Margin Of Error","Estimate","Margin Of Error","Estimate","Margin Of Error","Estimate","Margin Of Error","Estimate","Margin Of Error","Estimate","Margin Of Error","Estimate","Margin Of Error","Estimate","Margin Of Error","Estimate","Margin Of Error","Estimate","Margin Of Error","Estimate","Margin Of Error","Estimate","Margin Of Error","Estimate","Margin Of Error","Estimate","Margin Of Error","Estimate","Margin Of Error","Estimate","Margin Of Error","Estimate","Margin Of Error","Estimate","Margin Of Error","Estimate","Margin Of Error","Estimate","Margin Of Error","Estimate","Margin Of Error","Estimate","Margin Of Error","Estimate","Margin Of Error","Estimate","Margin Of Error","Estimate","Margin Of Error","Estimate","Margin Of Error","Estimate","Margin Of Error","Estimate","Margin Of Error","Estimate","Margin Of Error","Estimate","Margin Of Error","Estimate","Margin Of Error","Estimate","Margin Of Error","Estimate","Margin Of Error","Estimate","Margin Of Error","Estimate","Margin Of Error","Estimate","Margin Of Error"]
[null,"Total",6788,19,5078,20,4184,165,3920,21,4802,18,4416,39,4330,19,33018,137,2453,130,6587,17,14251,110,4306,45,3668,15,8496,64,14765,183,2307,123,2055,149,6060,19,24247,24,966,162,1621,222,798,136,8911,33,4700,39,4344,22,4269,16,4855,17,7614,26,20789,309,10202,23,5275,65,28729,56,6133,38,8736,25,799,123,7303,19,13908,55]
[null,"Under 5 years:",211,120.90492132250036,202,84.628600366542756,159,77.935871073594853,128,58,274,108.46658471621571,234,99.569071503153026,213,79.404030124421269,1416,290.9518860567843,133,42.5205832509386,479,147.10540438746634,639,189.58902921846507,275,113.74093370462545,201,81.344944526380985,380,129.1394595001853,415,121.01652779682617,117,47.634021455258214,101,43.324358044868937,344,149.21796138535066,1076,187.44865963777923,26,25.238858928247925,66,34.828149534535996,28,19.849433241279208,430,135.20355024924456,301,119.55333537798099,282,112.29425630903836,294,119.88327656516567,274,95,406,192.83671849520775,1063,200.17242567346781,688,159.80613254815975,129,81.024687595818591,1171,225.36414976655004,453,174.7483905505284,453,185.56400513030539,39,21.023796041628639,296,170.18813119603846,772,181.02486017119307]
[null,"With vision difficulty",0,21.213203435596427,0,21.213203435596427,0,15.556349186104045,0,15.556349186104045,0,15.556349186104045,0,15.556349186104045,0,15.556349186104045,0,32.526911934581186,0,15.556349186104045,0,21.213203435596427,0,24.041630560342615,0,15.556349186104045,0,15.556349186104045,0,21.213203435596427,0,24.041630560342615,0,15.556349186104045,0,15.556349186104045,0,21.213203435596427,0,28.284271247461902,0,15.556349186104045,0,15.556349186104045,0,15.556349186104045,0,21.213203435596427,0,15.556349186104045,0,15.556349186104045,0,15.556349186104045,0,15.556349186104045,0,21.213203435596427,0,28.284271247461902,13,27.018512172212592,25,42.720018726587654,0,28.284271247461902,0,21.213203435596427,0,21.213203435596427,0,15.556349186104045,48,71.589105316381762,0,24.041630560342615]
[null,"With no vision difficulty",211,120.90492132250036,202,84.628600366542756,159,77.935871073594853,128,58,274,108.46658471621571,234,99.569071503153026,213,79.404030124421269,1416,290.9518860567843,133,42.5205832509386,479,147.10540438746634,639,189.58902921846507,275,113.74093370462545,201,81.344944526380985,380,129.1394595001853,415,121.01652779682617,117,47.634021455258214,101,43.324358044868937,344,149.21796138535066,1076,187.44865963777923,26,25.238858928247925,66,34.828149534535996,28,19.849433241279208,430,135.20355024924456,301,119.55333537798099,282,112.29425630903836,294,119.88327656516567,274,95,406,192.83671849520775,1063,200.17242567346781,675,159.80613254815975,104,74.652528423356159,1171,225.36414976655004,453,174.7483905505284,453,185.56400513030539,39,21.023796041628639,248,124.35433245367851,772,181.02486017119307]
[null,"5 to 17 years:",1220,209.34660255184463,962,143.93401265857906,1026,152.05262246998569,651,122.57650672131263,925,182.23611058184929,922,137.18600511714013,811,136.61991070118586,6028,450.62734049322842,420,68.818602136341013,976,218.04815981796315,2696,292.17973920174546,718,116.04309544302927,678,122.34786471369249,1471,211.3409567499873,2349,316.90061533547077,412,74.276510418839678,383,65.80273550544841,884,208.06008747474851,4891,333.04804458215932,94,49.203658400570177,377,79.195959492893323,71,29.206163733020468,1468,285.03508555965527,930,179.61069010501575,585,140.08925726121899,623,240.160363090998,765,117.6860229593982,1263,256.22255950637913,2321,287.21072403376581,1785,275.33434220961249,660,118.22436297142819,4582,386.87077946001557,1026,220.7306050369998,856,173.55690709389816,110,31.89043743820395,1413,197.64867821465441,2824,276.55198426335687]
[null,"With vision difficulty",0,21.213203435596427,0,21.213203435596427,0,15.556349186104045,0,15.556349186104045,20,31.016124838541646,0,15.556349186104045,0,15.556349186104045,48,43.863424398922618,0,15.556349186104045,0,21.213203435596427,0,24.041630560342615,0,15.556349186104045,0,15.556349186104045,0,21.213203435596427,0,24.041630560342615,0,15.556349186104045,0,15.556349186104045,11,23.430749027719962,11,15.556349186104045,0,15.556349186104045,0,15.556349186104045,0,15.556349186104045,21,21.931712199461309,0,15.556349186104045,0,15.556349186104045,0,15.556349186104045,0,15.556349186104045,23,39.924929555354261,6,22.360679774997898,32,41.629316592997299,0,21.213203435596427,74,76.157731058639087,8,20.518284528683193,0,21.213203435596427,0,15.556349186104045,17,30.016662039607269,0,24.041630560342615]
[null,"With no vision difficulty",1220,209.34660255184463,962,143.93401265857906,1026,152.05262246998569,651,122.57650672131263,905,183.07648674802562,922,137.18600511714013,811,136.61991070118586,5980,449.25827760877149,420,68.818602136341013,976,218.04815981796315,2696,292.17973920174546,718,116.04309544302927,678,122.34786471369249,1471,211.3409567499873,2349,316.90061533547077,412,74.276510418839678,383,65.80273550544841,873,204.89997559785115,4880,333.04804458215932,94,49.203658400570177,377,79.195959492893323,71,29.206163733020468,1447,282.89927536139078,930,179.61069010501575,585,140.08925726121899,623,240.160363090998,765,117.6860229593982,1240,257.93410011086166,2315,285.66063782047394,1753,275.33434220961249,660,118.22436297142819,4508,386.01165785504458,1018,220.7306050369998,856,173.55690709389816,110,31.89043743820395,1396,197.64867821465441,2824,276.55198426335687]
[null,"18 to 34 years:",981,199.42417105255822,797,185.52627846210896,525,138.77319625922004,543,105.41821474489122,793,148.55302083767936,748,138.70832707519762,599,119.20570456148481,7853,528.2319566251175,401,79.39773296511683,1067,207.71133815947553,2158,269.43088167468852,772,139.51702405083043,399,94.810336989170125,1330,206.60348496576722,1768,258.00193797721755,353,85.796270315206598,253,47.201694884823787,1077,209.38003725283841,4259,354.7745763157219,82,42.43819034784589,208,54.203320931470607,199,58.051701094799967,2434,300.70749907509787,885,199.98499943745782,526,127.02755606560333,693,159.66527487215245,734,161.44348856488452,1337,271.44796923167428,5132,464.96128871122164,2179,230.58620947489467,568,164.61470165206995,5430,423.58588267315992,1244,235.35717537394095,1769,531.26641151121157,116,40.311288741492746,910,207.87015177749788,2053,307.35321699959479]
[null,"With vision difficulty",0,21.213203435596427,44,66.708320320631671,21,23.853720883753127,0,15.556349186104045,0,15.556349186104045,7,16.278820596099706,19,23.430749027719962,35,35.355339059327378,0,15.556349186104045,0,21.213203435596427,11,25.495097567963924,18,24.596747752497688,9,17.029386365926403,0,21.213203435596427,12,25.495097567963924,0,15.556349186104045,0,15.556349186104045,33,54.120236510939236,39,38.587562763149478,0,15.556349186104045,0,15.556349186104045,0,15.556349186104045,0,21.213203435596427,0,15.556349186104045,38,58.051701094799967,0,15.556349186104045,23,27.018512172212592,42,44.598206241955516,15,24.413111231467404,0,24.041630560342615,0,21.213203435596427,0,28.284271247461902,0,21.213203435596427,0,21.213203435596427,0,15.556349186104045,64,74.525163535546838,0,24.041630560342615]
[null,"With no vision difficulty",981,199.42417105255822,753,165.0969412193939,504,132.65368445693471,543,105.41821474489122,793,148.55302083767936,741,137.3608386695422,580,121.51131634543344,7818,524.69038489379625,401,79.39773296511683,1067,207.71133815947553,2147,268.71546289709494,754,139.51702405083043,390,94.201910808645493,1330,206.60348496576722,1756,257.20031104180259,353,85.796270315206598,253,47.201694884823787,1044,202.94087809014724,4220,360.01388862098082,82,42.43819034784589,208,54.203320931470607,199,58.051701094799967,2434,300.70749907509787,885,199.98499943745782,488,118.81077392223317,693,159.66527487215245,711,158.70097668256489,1295,270.18512172212593,5117,464.22623794869673,2179,230.58620947489467,568,164.61470165206995,5430,423.58588267315992,1244,235.35717537394095,1769,531.26641151121157,116,40.311288741492746,846,213.40337391897066,2053,307.35321699959479]
[null,"35 to 64 years:",3245,188.09572031282372,2640,113.17243480636087,2088,124.84390253432484,2115,121.37956994486346,2342,131.03434664239754,2078,138.77319625922004,2258,115.97413504743201,14408,482.97929562249351,1061,65.053823869162372,3193,239.73527066328811,6190,306.18458485038076,2002,152.62044423995101,1815,136.03308421115798,3917,246.1097316239242,7316,330.49357028541419,1070,86.556340033529608,1064,73.246160308919954,2843,181.04143172213369,11391,305.52250326285298,436,91.285267157411553,798,91.934759476489631,353,51.623637996561229,3678,287.76726707532254,2160,146.38647478507022,2138,153.83757668398187,2027,153.63918770938616,2629,182.98087331740442,3572,268.06902096288559,8965,394.08755372378863,4525,286.00699292150182,2676,222.87440409342656,13162,403.75859123986453,2858,185.97042775667319,3903,344.98840560227529,400,52.497618993626752,3798,176.47662734764623,6470,269.32879534130768]
[null,"With vision difficulty",13,26.627053911388696,19,20.615528128088304,0,15.556349186104045,10,18.601075237738275,38,29.832867780352597,17,22.825424421026653,12,15.231546211727817,71,43.829214001622255,27,18.867962264113206,47,45.486261662176638,36,38.013155617496423,10,18.601075237738275,1,11.704699910719626,38,53.160135440008048,52,38.209946349085598,6,14.212670403551895,8,9.4339811320566032,0,21.213203435596427,148,77.420927403383644,0,15.556349186104045,5,12.529964086141668,0,15.556349186104045,101,75.286120898874842,77,56.0357029044876,30,32.310988842807021,12,21.095023109728988,9,14.866068747318506,49,43.416586692184822,161,86.034876648949762,117,72.622310621461224,12,24.207436873820409,77,54.708317466359723,49,45.276925690687087,121,75.802374632988901,0,15.556349186104045,61,57.974132162542979,68,55.072679252057455]
[null,"With no vision difficulty",3232,189.52572384771415,2621,111.72287142747452,2088,124.84390253432484,2105,121.37956994486346,2304,130.87398519186308,2061,138.03260484392808,2246,115.26057435220423,14337,485.08349796710257,1034,67.94115100585212,3146,239.50782868207042,6154,306.18458485038076,1992,152.62044423995101,1814,136.03308421115798,3879,251.19116226491727,7264,330.60550509633077,1064,85.0411665018772,1056,71.840100222647237,2843,181.04143172213369,11243,318.1980515339464,436,91.285267157411553,793,90.553851381374173,353,51.623637996561229,3577,297.14979387507572,2083,148.55302083767936,2108,156.48642113614844,2015,153.63918770938616,2620,183.63278574372279,3523,268.1063221932672,8804,392.78110952539458,4408,302.60535355475787,2664,223.60679774997897,13085,411.57502353762914,2809,192.33304448274092,3782,333.66450215748154,400,52.497618993626752,3737,184.19554826325202,6402,273.76632371422164]
[null,"65 to 74 years:",622,142.43595051811886,313,60.811183182043088,243,62.241465278381739,315,86.313382508160345,322,86.278618440491968,226,92.849340331528467,336,76.216796049164913,1839,212.20744567521658,313,50.447993022517757,548,148.40485167271319,1351,169.01183390520322,395,93.434469014384618,280,65.299310869258036,935,145.60219778561037,1728,187.49133313302778,241,45.793012567421243,190,32.015621187164243,564,132.90974381135493,1892,218.58865478336244,154,45.967379738244816,87,32.015621187164243,87,31.827660925679098,513,107.44766167767449,249,84.958813551037778,526,101.86265262597475,405,95.414883535012507,279,66.030296076876709,527,141.24092891226678,1831,211.51832071950648,741,164.65721970202219,554,190.4337155022713,2700,270.86712609691119,325,86.313382508160345,1081,206.86710710018642,80,19.798989873223331,475,116.03878661895772,952,201.13676938839401]
[null,"With vision difficulty",73,79.81227975693966,0,21.213203435596427,0,15.556349186104045,0,15.556349186104045,19,28.231188426986208,19,21.095023109728988,0,15.556349186104045,54,38.948684188300895,0,15.556349186104045,0,21.213203435596427,82,66.098411478642959,0,15.556349186104045,0,15.556349186104045,27,25.495097567963924,62,43.139309220245984,0,15.556349186104045,11,12.083045973594572,30,34.655446902326915,39,25.553864678361276,0,15.556349186104045,2,11.704699910719626,2,11.704699910719626,0,21.213203435596427,8,17.804493814764857,17,18.439088914585774,11,20.248456731316587,0,15.556349186104045,0,21.213203435596427,74,53.851648071345039,8,21.400934559032695,17,30.016662039607269,81,50.990195135927848,13,25.80697580112788,76,65.80273550544841,2,11.401754250991379,14,26.627053911388696,14,28.600699292150182]
[null,"With no vision difficulty",549,129.63024338479042,313,60.811183182043088,243,62.241465278381739,315,86.313382508160345,303,86.278618440491968,207,93.434469014384618,336,76.216796049164913,1785,213.66328650472454,313,50.447993022517757,548,148.40485167271319,1269,164.79381056338249,395,93.434469014384618,280,65.299310869258036,908,145.2067491544384,1666,186.1316738225926,241,45.793012567421243,179,31.89043743820395,534,135.47324459095236,1853,218.63439802556229,154,45.967379738244816,85,32.015621187164243,85,31.11269837220809,513,107.44766167767449,241,84.219950130595535,509,102.53292154230269,394,92.913938674452936,279,66.030296076876709,527,141.24092891226678,1757,208.33866659840174,733,165.42369842317032,537,190.4337155022713,2619,269.43088167468852,312,84.148677945645701,1005,199.52944644838766,78,19.798989873223331,461,114.47707194019246,938,199.80990966416056]
[null,"75 years and over:",509,126.73200069437868,164,48.166378315169183,143,48.020828814171878,168,75.153176912223742,146,63.513778032801667,208,81.320354155647891,113,49.51767361255979,1474,212.41704263076446,125,41.617304093369626,324,158.52129194527782,1217,191.12822920751398,144,65,295,65.604877867426907,463,129.634100452003,1189,214.86972797488249,114,36.76955262170047,64,21.400934559032695,348,106.88779163215975,738,145.45446022724775,174,49.51767361255979,85,30.413812651491099,60,22.671568097509269,388,144.01388821915754,175,61.073725938409879,287,74.94664769020693,227,93.605555390692487,174,63.890531379853151,509,145.42695761102891,1477,193.70596273734063,284,82.97590011563598,688,186.45374761586316,1684,235.77955806218657,227,84.38601779915912,674,213.71476317746513,54,21.2602916254693,411,99.297532698451278,837,214.27319011019554]
[null,"With vision difficulty",16,30.886890422961002,8,19.849433241279208,0,15.556349186104045,55,57.070132293521098,23,26.40075756488817,19,33.837848631377263,12,22.825424421026653,103,65.620118866091673,6,14.212670403551895,24,30.016662039607269,101,67.675697262754525,9,17.804493814764857,47,30.413812651491099,24,26.40075756488817,68,48.259714048054619,0,15.556349186104045,5,13.038404810405298,27,43.657759905886145,46,33.61547262794322,14,14.560219778561036,6,13.038404810405298,0,15.556349186104045,36,27.202941017470888,5,15.556349186104045,24,21.400934559032695,20,21.931712199461309,2,11.704699910719626,12,25,83,46.010868281309364,24,41.629316592997299,28,46.486557196677836,129,78.089692021418557,43,41.109609582188931,75,117.957619508025,0,15.556349186104045,17,30.886890422961002,48,45.310043036836767]
[null,"With no vision difficulty",493,124.52309022827855,156,48.166378315169183,143,48.020828814171878,113,44.553338819890925,123,61.032778078668514,189,74.652528423356159,101,45,1371,212.2851855405836,119,40.80441152620633,300,156.20499351813308,1116,192.77447963877376,135,64.140470843298303,248,61.611687202997452,439,127.5617497528158,1121,201.65812654093563,114,36.76955262170047,59,21.400934559032695,321,104.89041900955492,692,136.61991070118586,160,47.423622805517503,79,29.732137494637012,60,22.671568097509269,352,143.10835055998655,170,59.203040462462738,263,74.793047805260613,207,90.785461391128038,172,63.126856408346519,497,146.60491124106312,1394,194.25756098540927,260,80.721744282442259,660,189.70766985021982,1555,230.05434140654683,184,74.202425836356596,599,185.07566020414461,54,21.2602916254693,394,97.652444925869617,789,215.05813167606567]

{"sheet":"ACS_Table_B18104","index":34,"n_rows":122,"n_cols":76,"rows_kept":122,"cut":false,"hidden":true,"merged":[]}
["B18104. SEX BY AGE BY COGNITIVE DIFFICULTY\n\n"]
["Universe:  Civilian non-institutionalized population 5 years and over"]
["Data Set: 2015-2019 American Community Survey 5-Year Estimates"]
[]
[null,null,"Atkinson",null,"Auburn",null,"Brentwood",null,"Candia",null,"Chester",null,"Danville",null,"Deerfield",null,"Derry",null,"East Kingston",null,"Epping",null,"Exeter",null,"Fremont",null,"Greenland",null,"Hampstead",null,"Hampton",null,"Hampton Falls",null,"Kensington",null,"Kingston",null,"Londonderry",null,"New Castle",null,"Newfields",null,"Newington",null,"Newmarket",null,"Newton",null,"North Hampton",null,"Northwood",null,"Nottingham",null,"Plaistow",null,"Portsmouth",null,"Raymond",null,"Rye",null,"Salem",null,"Sandown",null,"Seabrook",null,"South Hampton",null,"Stratham",null,"Windham"]
[null,null,"Estimate","Margin Of Error","Estimate","Margin Of Error","Estimate","Margin Of Error","Estimate","Margin Of Error","Estimate","Margin Of Error","Estimate","Margin Of Error","Estimate","Margin Of Error","Estimate","Margin Of Error","Estimate","Margin Of Error","Estimate","Margin Of Error","Estimate","Margin Of Error","Estimate","Margin Of Error","Estimate","Margin Of Error","Estimate","Margin Of Error","Estimate","Margin Of Error","Estimate","Margin Of Error","Estimate","Margin Of Error","Estimate","Margin Of Error","Estimate","Margin Of Error","Estimate","Margin Of Error","Estimate","Margin Of Error","Estimate","Margin Of Error","Estimate","Margin Of Error","Estimate","Margin Of Error","Estimate","Margin Of Error","Estimate","Margin Of Error","Estimate","Margin Of Error","Estimate","Margin Of Error","Estimate","Margin Of Error","Estimate","Margin Of Error","Estimate","Margin Of Error","Estimate","Margin Of Error","Estimate","Margin Of Error","Estimate","Margin Of Error","Estimate","Margin Of Error","Estimate","Margin Of Error","Estimate","Margin Of Error"]
[null,"Total:",6677,150,5104,98,4042,156,3756,88,4864,87,4371,77,4291,93,31612,320,2384,190,6514,124,14269,222,4365,116,3829,64,8233,140,14972,156,2319,161,2131,127,6040,145,24522,218,817,169,1675,209,682,82,8603,151,4717,92,4341,60,4146,78,4769,110,7408,130,19886,257,9854,197,5236,121,27617,335,6003,145,8597,96,756,94,7102,112,13568,192]
[null,"Male:",3332,234,2573,146,2020,105,1987,137,2425,164,2241,125,2070,115,15667,489,1184,146,3290,230,6517,312,2164,141,1811,97,4001,254,7253,277,1256,103,1079,78,3170,269,11994,324,379,101,779,103,346,56,4449,259,2468,188,2058,122,1900,145,2197,135,3458,268,9504,385,4879,299,2787,203,13903,437,2958,212,4189,208,361,49,3603,242,6817,323]
[null,"5 to 17  years:",604,207,391,97,501,84,267,114,466,107,427,121,359,98,2877,337,262,87,579,179,1074,190,297,94,286,77,741,168,927,159,230,57,176,55,447,184,2425,261,58,55,114,40,30,18,650,194,361,87,228,96,262,82,311,104,462,163,1198,203,858,240,364,99,1951,275,578,155,569,160,49,20,827,169,1412,251]
[null,"With cognitive difficulty",106,95,50,49,26,28,38,54,56,32,0,11,26,28,192,96,16,13,36,42,67,81,0,11,22,25,58,51,43,42,13,15,13,10,0,16,214,111,0,11,0,11,0,11,22,26,48,42,0,11,39,31,0,16,0,16,58,71,82,79,0,16,190,90,58,61,32,36,2,3,0,16,69,57]
[null,"With no cognitive difficulty",498,198,341,84,475,81,229,99,410,110,427,121,333,102,2685,325,246,88,543,180,1007,175,297,94,264,65,683,164,884,157,217,54,163,55,447,184,2211,236,58,55,114,40,30,18,628,196,313,89,228,96,223,77,311,104,462,163,1140,182,776,203,364,99,1761,278,520,147,537,149,47,20,827,169,1343,243]
[null,"18 to 34  years:",529,159,451,110,177,73,335,97,521,167,350,82,449,94,3469,371,172,65,740,212,1122,240,382,96,275,80,818,124,1241,211,248,78,211,51,854,247,2336,248,33,27,105,38,57,40,1407,230,615,141,340,109,319,86,401,90,919,218,2691,306,1085,263,406,178,3676,376,739,152,650,157,67,26,506,172,1065,288]
[null,"With cognitive difficulty",15,24,10,16,13,21,7,12,43,44,37,29,26,26,258,109,7,11,17,26,36,35,30,26,0,11,70,47,37,34,28,37,20,20,23,41,91,45,5,7,15,11,0,11,26,29,13,19,4,8,25,26,22,26,20,29,137,85,13,20,34,37,36,36,0,16,71,46,6,6,0,16,29,31]
[null,"With no cognitive difficulty",514,163,441,108,164,73,328,96,478,140,313,78,423,91,3211,363,165,63,723,213,1086,231,352,96,275,80,748,130,1204,205,220,58,191,46,831,237,2245,255,28,24,90,37,57,40,1381,230,602,144,336,108,294,83,379,83,899,215,2554,292,1072,262,372,178,3640,382,739,152,579,153,61,25,506,172,1036,282]
[null,"35 to 64  years:",1560,134,1325,85,1092,91,967,101,1106,71,1168,95,926,94,7546,340,533,48,1340,184,3024,251,1114,102,889,96,1600,143,3373,210,575,75,459,48,1299,186,5642,233,142,51,431,63,176,34,1770,196,1097,81,1008,115,975,109,1134,129,1498,195,4083,256,2254,220,1318,186,5934,286,1326,171,1970,181,151,26,1683,158,3335,186]
[null,"With cognitive difficulty",18,30,28,29,26,34,27,31,5,9,65,68,0,11,427,165,0,11,41,40,110,76,19,21,41,40,0,16,94,57,0,11,7,7,60,45,114,60,0,11,3,6,5,6,39,36,12,18,35,43,29,27,31,27,69,72,259,164,94,80,0,16,38,34,0,16,96,65,6,6,44,46,0,18]
[null,"With no cognitive difficulty",1542,139,1297,84,1066,102,940,93,1101,72,1103,111,926,94,7119,291,533,48,1299,177,2914,257,1095,103,848,107,1600,143,3279,214,575,75,452,48,1239,187,5528,232,142,51,428,63,171,33,1731,189,1085,84,973,111,946,107,1103,129,1429,192,3824,253,2160,225,1318,186,5896,288,1326,171,1874,170,145,26,1639,164,3335,186]
[null,"65 to 74  years:",412,112,351,62,142,50,258,48,286,81,202,60,221,61,1273,154,125,26,497,130,567,100,155,48,242,49,522,91,1041,128,142,48,162,37,339,110,1124,152,83,32,77,27,45,15,392,99,293,67,338,76,213,62,197,65,327,102,1003,142,504,105,484,132,1535,185,228,82,710,124,63,18,359,109,562,122]
[null,"With cognitive difficulty",13,20,26,23,0,11,0,11,0,16,0,11,0,11,28,24,0,11,95,98,50,40,0,11,0,11,10,13,23,37,0,11,0,11,26,30,96,90,0,11,14,20,2,3,7,12,10,15,33,46,9,14,0,16,0,16,79,50,57,46,0,16,30,36,0,16,40,34,2,3,0,16,0,18]
[null,"With no cognitive difficulty",399,113,325,57,142,50,258,48,286,81,202,60,221,61,1245,158,125,26,402,126,517,105,155,48,242,49,512,91,1018,126,142,48,162,37,313,106,1028,145,83,32,63,23,43,15,385,98,283,67,305,69,204,61,197,65,327,102,924,141,447,103,484,132,1505,190,228,82,670,124,61,18,359,109,562,122]
[null,"75  years and Older:",227,91,55,33,108,41,160,76,46,28,94,47,115,73,502,145,92,36,134,81,730,149,216,68,119,53,320,110,671,133,61,24,71,26,231,97,467,140,63,32,52,29,38,23,230,95,102,58,144,62,131,66,154,69,252,122,529,123,178,82,215,95,807,171,87,57,290,76,31,19,228,86,443,125]
[null,"With cognitive difficulty",13,22,0,16,31,30,25,25,0,16,0,11,34,53,2,4,27,16,0,16,94,67,10,15,9,14,14,23,48,41,0,11,6,6,32,50,0,21,15,19,15,23,9,21,60,70,0,11,4,10,10,16,21,23,25,31,14,14,0,18,17,27,115,102,24,30,25,24,2,4,0,16,15,24]
[null,"With no cognitive difficulty",214,89,55,33,77,28,135,73,46,28,94,47,81,38,500,145,65,35,134,81,636,141,206,72,110,53,306,109,623,128,61,24,65,25,199,84,467,140,48,26,37,21,29,12,170,84,102,58,140,60,121,64,133,68,227,117,515,123,178,82,198,91,692,136,63,46,265,74,29,18,228,86,428,123]
[null,"Female:",3345,255,2531,159,2022,125,1769,123,2439,136,2130,117,2221,116,15945,507,1200,94,3224,194,7752,332,2201,129,2018,113,4232,236,7719,289,1063,99,1052,86,2870,294,12528,279,438,91,896,126,336,47,4154,268,2249,171,2283,122,2246,180,2572,125,3950,282,10382,370,4975,283,2449,184,13714,446,3045,244,4408,179,395,60,3499,244,6751,284]
[null,"5 to 17  years:",506,192,380,106,345,81,204,67,364,95,377,101,343,85,2599,285,217,42,345,121,1134,153,350,88,491,105,718,160,1084,159,141,39,135,36,495,174,2081,188,52,35,232,72,30,18,482,169,343,91,469,151,341,68,523,122,648,148,1304,179,860,278,241,83,1691,308,429,195,506,137,65,28,501,162,1586,213]
[null,"With cognitive difficulty",38,59,10,15,0,11,0,11,0,16,21,25,40,40,98,73,3,7,16,26,25,29,0,11,0,11,13,21,63,58,6,9,4,5,18,30,24,28,0,11,0,11,0,11,0,16,0,11,0,11,52,45,30,27,28,40,44,31,19,32,0,16,10,15,0,16,50,45,3,4,17,27,7,13]
[null,"With no cognitive difficulty",468,190,370,107,345,81,204,67,364,95,356,106,303,80,2501,284,214,40,329,121,1109,149,350,88,491,105,705,159,1021,152,135,38,131,36,477,175,2057,190,52,35,232,72,30,18,482,169,343,91,469,151,289,76,493,119,620,144,1260,176,841,288,241,83,1681,306,429,195,456,138,62,28,484,157,1579,212]
[null,"18 to 34  years:",486,162,460,115,249,74,342,101,542,109,346,80,569,98,3964,412,197,56,663,176,1491,232,394,80,249,79,746,145,1091,203,186,76,175,45,589,189,2397,278,28,24,108,34,37,19,1283,211,421,117,201,86,518,180,344,94,829,214,2822,298,1007,177,173,85,2986,359,675,143,688,163,58,24,543,168,634,186]
[null,"With cognitive difficulty",0,16,11,17,1,3,0,11,33,44,13,20,77,48,164,91,5,8,0,16,20,24,0,11,0,11,62,53,36,35,0,11,3,5,17,28,164,79,0,11,5,8,5,7,12,19,11,17,0,11,33,49,15,19,16,26,25,25,47,39,17,26,89,64,44,53,39,45,5,6,0,16,14,25]
[null,"With no cognitive difficulty",486,162,449,117,248,73,342,101,509,125,333,81,492,95,3800,420,192,55,663,176,1471,234,394,80,249,79,684,143,1055,200,186,76,172,45,572,191,2233,276,28,24,103,34,32,17,1271,209,410,118,201,86,485,139,329,95,813,223,2797,292,960,180,156,86,2897,354,631,137,649,155,53,22,543,168,620,186]
[null,"35 to 64  years:",1617,137,1342,94,1017,94,947,71,1229,96,1150,87,971,89,7290,368,550,42,1569,174,3128,242,1072,85,913,98,1928,177,3558,175,568,53,524,61,1280,180,5973,229,175,61,446,60,167,29,1701,153,1122,94,1010,90,986,105,1228,95,1787,192,4332,304,2375,229,1236,150,6019,258,1468,130,1925,195,177,32,1825,149,3449,192]
[null,"With cognitive difficulty",46,49,29,24,25,25,40,33,0,16,58,61,0,11,452,163,5,7,90,91,107,64,25,26,10,14,77,95,92,51,5,8,13,16,39,42,285,112,4,6,10,10,2,4,71,53,69,56,9,15,51,50,76,55,33,39,165,65,160,100,0,16,233,122,30,40,263,124,2,3,44,41,51,36]
[null,"With no cognitive difficulty",1571,133,1313,98,992,97,907,70,1229,96,1092,83,971,89,6838,382,545,44,1479,173,3021,232,1047,89,903,98,1851,166,3466,178,563,51,511,61,1241,178,5688,240,171,61,436,59,165,29,1630,146,1053,97,1001,92,935,94,1152,102,1754,182,4167,300,2215,233,1236,150,5786,270,1438,135,1662,209,175,32,1781,146,3398,195]
[null,"65 to 74  years:",490,153,218,56,162,71,199,43,203,70,177,64,231,61,1405,194,137,31,470,132,908,172,232,55,227,49,499,94,1189,160,143,38,137,29,349,117,1348,128,107,42,61,26,59,20,473,90,256,67,359,95,250,76,340,84,363,105,1214,202,475,116,517,142,1597,184,244,82,642,126,51,18,410,100,589,108]
[null,"With cognitive difficulty",0,16,0,16,11,19,0,11,4,7,36,41,0,11,141,91,10,10,38,62,72,66,7,12,0,11,27,30,13,20,5,7,0,11,18,29,45,35,8,14,0,11,0,11,0,16,0,11,0,11,9,14,9,14,20,31,48,37,1,4,0,16,14,23,45,61,10,15,3,5,0,16,16,26]
[null,"With no cognitive difficulty",490,153,218,56,151,69,199,43,199,70,141,55,231,61,1264,205,127,29,432,116,836,153,225,57,227,49,472,93,1176,159,138,40,137,29,331,114,1303,127,99,38,61,26,59,20,473,90,256,67,359,95,241,77,331,84,343,101,1166,196,474,115,517,142,1583,182,199,88,632,125,48,18,410,100,573,102]
[null,"75  years and Older:",246,69,131,56,249,74,77,45,101,52,80,39,107,50,687,154,99,35,177,81,1091,188,153,65,138,41,341,129,797,128,25,18,81,28,157,83,729,167,76,37,49,27,43,23,215,100,107,62,244,79,151,76,137,73,323,137,710,161,258,75,282,119,1421,219,229,159,647,148,44,18,220,88,493,133]
[null,"With cognitive difficulty",12,19,32,28,28,24,0,11,20,21,19,21,9,18,60,70,5,9,51,50,152,112,9,15,0,11,15,24,67,65,2,5,31,20,0,16,55,37,0,11,3,5,3,4,51,83,0,11,9,13,11,17,29,42,0,16,43,37,25,24,74,98,74,71,76,77,36,36,10,7,35,39,17,29]
[null,"With no cognitive difficulty",234,67,99,53,221,74,77,45,81,48,61,34,98,47,627,143,94,34,126,72,939,177,144,63,138,41,326,124,730,127,23,18,50,20,157,83,674,160,76,37,46,27,40,25,164,107,107,62,235,79,140,75,108,63,323,137,667,164,233,77,208,97,1347,203,153,146,611,145,34,17,185,82,476,129]
[]
[]
[{"$f":"A1& \"-Calculated\"","v":"B18104. SEX BY AGE BY COGNITIVE DIFFICULTY\n\n-Calculated"}]
[{"$f":"A2","v":"Universe:  Civilian non-institutionalized population 5 years and over"}]
[{"$f":"A3","v":"Data Set: 2015-2019 American Community Survey 5-Year Estimates"}]
[]
[]
[null,null,"Atkinson",null,"Auburn",null,"Brentwood",null,"Candia",null,"Chester",null,"Danville",null,"Deerfield",null,"Derry",null,"East Kingston",null,"Epping",null,"Exeter",null,"Fremont",null,"Greenland",null,"Hampstead",null,"Hampton",null,"Hampton Falls",null,"Kensington",null,"Kingston",null,"Londonderry",null,"New Castle",null,"Newfields",null,"Newington",null,"Newmarket",null,"Newton",null,"North Hampton",null,"Northwood",null,"Nottingham",null,"Plaistow",null,"Portsmouth",null,"Raymond",null,"Rye",null,"Salem",null,"Sandown",null,"Seabrook",null,"South Hampton",null,"Stratham",null,"Windham"]
[null,null,"Estimate","Margin Of Error","Estimate","Margin Of Error","Estimate","Margin Of Error","Estimate","Margin Of Error","Estimate","Margin Of Error","Estimate","Margin Of Error","Estimate","Margin Of Error","Estimate","Margin Of Error","Estimate","Margin Of Error","Estimate","Margin Of Error","Estimate","Margin Of Error","Estimate","Margin Of Error","Estimate","Margin Of Error","Estimate","Margin Of Error","Estimate","Margin Of Error","Estimate","Margin Of Error","Estimate","Margin Of Error","Estimate","Margin Of Error","Estimate","Margin Of Error","Estimate","Margin Of Error","Estimate","Margin Of Error","Estimate","Margin Of Error","Estimate","Margin Of Error","Estimate","Margin Of Error","Estimate","Margin Of Error","Estimate","Margin Of Error","Estimate","Margin Of Error","Estimate","Margin Of Error","Estimate","Margin Of Error","Estimate","Margin Of Error","Estimate","Margin Of Error","Estimate","Margin Of Error","Estimate","Margin Of Error","Estimate","Margin Of Error","Estimate","Margin Of Error","Estimate","Margin Of Error","Estimate","Margin Of Error"]
[null,"Total:",{"$f":"C7","v":6677},150,5104,98,4042,156,3756,88,4864,87,4371,77,4291,93,31612,320,2384,190,6514,124,14269,222,4365,116,3829,64,8233,140,14972,156,2319,161,2131,127,6040,145,24522,218,817,169,1675,209,682,82,8603,151,4717,92,4341,60,4146,78,4769,110,7408,130,19886,257,9854,197,5236,121,27617,335,{"$f":"BO7","v":6003},145,8597,96,756,94,7102,112,13568,192]
[null,"5 to 17  years:",{"$f":"C25+C9","v":1110},{"$f":"SQRT((D25^2)+(D9^2))","v":282.33490751233722},{"$f":"E25+E9","v":771},{"$f":"SQRT((F25^2)+(F9^2))","v":143.68368035375485},{"$f":"G25+G9","v":846},{"$f":"SQRT((H25^2)+(H9^2))","v":116.69190203266035},{"$f":"I25+I9","v":471},{"$f":"SQRT((J25^2)+(J9^2))","v":132.23085872821065},{"$f":"K25+K9","v":830},{"$f":"SQRT((L25^2)+(L9^2))","v":143.0873858870865},{"$f":"M25+M9","v":804},{"$f":"SQRT((N25^2)+(N9^2))","v":157.61345120261785},{"$f":"O25+O9","v":702},{"$f":"SQRT((P25^2)+(P9^2))","v":129.72663566130126},{"$f":"Q25+Q9","v":5476},{"$f":"SQRT((R25^2)+(R9^2))","v":441.35473261312154},{"$f":"S25+S9","v":479},{"$f":"SQRT((T25^2)+(T9^2))","v":96.607453128627711},{"$f":"U25+U9","v":924},{"$f":"SQRT((V25^2)+(V9^2))","v":216.06017680266763},{"$f":"W25+W9","v":2208},{"$f":"SQRT((X25^2)+(X9^2))","v":243.94466585682909},{"$f":"Y25+Y9","v":647},{"$f":"SQRT((Z25^2)+(Z9^2))","v":128.76334882255898},{"$f":"AA25+AA9","v":777},{"$f":"SQRT((AB25^2)+(AB9^2))","v":130.20752666416791},{"$f":"AC25+AC9","v":1459},{"$f":"SQRT((AD25^2)+(AD9^2))","v":232},{"$f":"AE25+AE9","v":2011},{"$f":"SQRT((AF25^2)+(AF9^2))","v":224.85995641732211},{"$f":"AG25+AG9","v":371},{"$f":"SQRT((AH25^2)+(AH9^2))","v":69.06518659932803},{"$f":"AI25+AI9","v":311},{"$f":"SQRT((AJ25^2)+(AJ9^2))","v":65.73431371817918},{"$f":"AK25+AK9","v":942},{"$f":"SQRT((AL25^2)+(AL9^2))","v":253.24296633865274},{"$f":"AM25+AM9","v":4506},{"$f":"SQRT((AN25^2)+(AN9^2))","v":321.65975812961125},{"$f":"AO25+AO9","v":110},{"$f":"SQRT((AP25^2)+(AP9^2))","v":65.192024052026483},{"$f":"AQ25+AQ9","v":346},{"$f":"SQRT((AR25^2)+(AR9^2))","v":82.365041127896006},{"$f":"AS25+AS9","v":60},{"$f":"SQRT((AT25^2)+(AT9^2))","v":25.45584412271571},{"$f":"AU25+AU9","v":1132},{"$f":"SQRT((AV25^2)+(AV9^2))","v":257.28777662376422},{"$f":"AW25+AW9","v":704},{"$f":"SQRT((AX25^2)+(AX9^2))","v":125.89678312014172},{"$f":"AY25+AY9","v":697},{"$f":"SQRT((AZ25^2)+(AZ9^2))","v":178.93294833540301},{"$f":"BA25+BA9","v":603},{"$f":"SQRT((BB25^2)+(BB9^2))","v":106.5269918846862},{"$f":"BC25+BC9","v":834},{"$f":"SQRT((BD25^2)+(BD9^2))","v":160.31219541881399},{"$f":"BE25+BE9","v":1110},{"$f":"SQRT((BF25^2)+(BF9^2))","v":220.16584657934573},{"$f":"BG25+BG9","v":2502},{"$f":"SQRT((BH25^2)+(BH9^2))","v":270.64737205448716},{"$f":"BI25+BI9","v":1718},{"$f":"SQRT((BJ25^2)+(BJ9^2))","v":367.26557148744558},{"$f":"BK25+BK9","v":605},{"$f":"SQRT((BL25^2)+(BL9^2))","v":129.18978287774928},{"$f":"BM25+BM9","v":3642},{"$f":"SQRT((BN25^2)+(BN9^2))","v":412.90313634071612},{"$f":"BO25+BO9","v":1007},{"$f":"SQRT((BP25^2)+(BP9^2))","v":249.09837414162303},{"$f":"BQ25+BQ9","v":1075},{"$f":"SQRT((BR25^2)+(BR9^2))","v":210.63950246807934},{"$f":"BS25+BS9","v":114},{"$f":"SQRT((BT25^2)+(BT9^2))","v":34.409301068170507},{"$f":"BU25+BU9","v":1328},{"$f":"SQRT((BV25^2)+(BV9^2))","v":234.10467744152402},{"$f":"BW25+BW9","v":2998},{"$f":"SQRT((BX25^2)+(BX9^2))","v":329.1959902550455}]
[null,"With cognitive difficulty",144,111.83022847155415,60,51.244511901275828,26,30.083217912982647,38,55.108982933819419,56,35.777087639996637,21,27.313000567495326,66,48.826222462934808,290,120.60265337047937,19,14.7648230602334,52,49.396356140913873,92,86.034876648949762,0,15.556349186104045,22,27.313000567495326,71,55.154328932550705,106,71.61005515987263,19,17.4928556845359,17,11.180339887498949,18,34,238,114.47707194019246,0,15.556349186104045,0,15.556349186104045,0,15.556349186104045,22,30.528675044947494,48,43.416586692184822,0,15.556349186104045,91,54.644304369257,30,31.384709652950431,28,43.08131845707603,102,77.472575792986262,101,85.234969349440135,0,22.627416997969522,200,91.241437954473298,58,63.063460101710248,82,57.628118136895637,5,5,17,31.384709652950431,76,58.463663928973865]
[null,"With no cognitive difficulty",966,274.41574298862668,711,136.03308421115798,820,114.5512985522207,433,119.54078801814885,774,145.34441853748632,783,160.86329600005092,636,129.63024338479042,5186,431.60282668212449,460,96.664367788756579,872,216.88937272259329,2116,229.83907413666634,647,128.76334882255898,755,123.49089035228469,1388,228.42285349763057,1905,218.52459815773602,352,66.030296076876709,294,65.73431371817918,924,253.93109301540841,4268,302.97854709533476,110,65.192024052026483,346,82.365041127896006,60,25.45584412271571,1110,258.7991499213241,656,127.28707711311466,697,178.93294833540301,512,108.18964830333815,804,158.04113388608675,1082,217.49712641779891,2400,253.17977802344325,1617,352.35351566289216,605,129.18978287774928,3442,413.42472107990835,949,244.20073709962466,993,203.08865059377396,109,34.409301068170507,1311,230.67292862405853,2922,322.479456710036]
[null,"18 to 34  years:",1015,226.99118925632334,911,159.13830462839547,426,103.9471019317037,677,140.03570973148243,1063,199.42417105255822,696,114.56002793295748,1018,135.79396157414365,7433,554.42312361588961,369,85.796270315206598,1403,275.5358415887124,2613,333.80233672040106,776,124.96399481450646,524,112.43220179290273,1564,190.79046097748179,2332,292.79685790663808,434,108.90362712049586,386,68.01470429252781,1443,311.01446911679204,4733,372.54261501202785,61,36.124783736376884,213,50.990195135927848,94,44.283179650969061,2690,312.1233730434169,1036,183.22117781522965,541,138.84163640637487,837,199.48934808655824,745,130.13838787997952,1748,305.48322376196046,5513,427.12995680471766,2092,317.0141952657641,579,197.25364381932212,6662,519.86248181610495,1414,208.69355524308841,1338,226.31394124092313,125,35.383612025908263,1049,240.4329428343795,1699,342.84107105187968]
[null,"With cognitive difficulty",15,28.844410203711913,21,23.345235059857504,14,21.213203435596427,7,16.278820596099706,76,62.22539674441618,50,35.227829907617071,103,54.589376255824725,422,141.99295757184581,12,13.601470508735444,17,30.528675044947494,56,42.43819034784589,30,28.231188426986208,0,15.556349186104045,132,70.837842993699354,73,48.795491595023407,28,38.600518131237564,23,20.615528128088304,40,49.648766349225639,255,90.917545061445651,5,13.038404810405298,20,13.601470508735444,5,13.038404810405298,38,34.669871646719429,24,25.495097567963924,4,13.601470508735444,58,55.470712993434653,37,32.202484376209235,36,38.948684188300895,162,88.600225733346747,60,43.829214001622255,51,45.221676218380054,125,73.430239002743278,44,55.362442142665635,110,64.350602172784676,11,8.4852813742385695,0,22.627416997969522,43,39.824615503479755]
[null,"With no cognitive difficulty",1000,229.8107917396396,890,159.2262541165872,412,103.23759005323593,670,139.34489585198304,987,187.68324379123459,646,112.44998888394787,915,131.55227098001768,7011,555.12971457128833,357,83.630138108220294,1386,276.3059898011623,2557,328.81149614938954,746,124.96399481450646,524,112.43220179290273,1432,193.25889371514057,2259,286.40006983239374,406,95.603347221736954,363,64.350602172784676,1403,304.38462510448846,4478,375.76721517450136,56,33.941125496954278,193,50.24937810560445,89,43.46262762420146,2652,310.77483810630486,1012,186.17196351760379,537,138.05795884337854,779,161.89502771858065,708,126.15070352558483,1712,309.76442662126328,5351,412.95036021294374,2032,317.8741889490243,528,197.68662069042509,6537,520.80706600429301,1370,204.62893246068603,1228,217.79348015953096,114,33.301651610693426,1049,240.4329428343795,1656,337.81651824622196]
[null,"35 to 64  years:",3177,191.637678967368,2667,126.73200069437868,2109,130.83195328359201,1914,123.45849504995596,2335,119.4026800369238,2318,128.81770064707723,1897,129.4488315899375,14836,501.02295356600183,1083,63.7808748764079,2909,253.24296633865274,6152,348.66172717979816,2186,132.77424449041311,1802,137.18600511714013,3528,227.547797176769,6931,273.3587386567329,1143,91.836811791350854,983,77.620873481300123,2579,258.83585532147589,11615,326.69557695199978,317,79.511005527536881,877,87,343,44.687805943008662,3471,248.64633518312712,2219,124.08464852672147,2018,146.03081866510234,1961,151.34728276384746,2362,160.20611723651504,3285,273.65854636754904,8415,397.43175514797508,4629,317.55471969410246,2554,238.94769302087852,11953,385.17528477304978,2794,214.80456233516085,3895,266.05638500137525,328,41.231056256176608,3508,217.17504460687928,6784,267.32003291934558]
[null,"With cognitive difficulty",64,57.454329688892898,57,37.643060449437421,51,42.201895692018383,67,45.276925690687087,5,18.357559750685819,123,91.35097153287424,0,15.556349186104045,879,231.93533581582605,5,13.038404810405298,131,99.403219263764285,217,99.35793878699377,44,33.421549934136806,51,42.379240200834182,77,96.337946833010719,186,76.485292703891773,5,13.601470508735444,20,17.464249196572979,99,61.554853586049575,399,127.05904139414872,4,12.529964086141668,13,11.661903789690601,7,7.2111025509279782,110,64.070273918565391,81,58.821764679410968,44,45.541190146942803,80,56.824290580701486,107,61.26989472816156,102,81.884064383737083,424,176.41145087550296,254,128.06248474865697,0,22.627416997969522,271,126.64912159190051,30,43.08131845707603,359,140.00357138301865,8,6.7082039324993694,88,61.619802012015583,51,40.249223594996216]
[null,"With no cognitive difficulty",3113,192.37983262286096,2610,129.07362240210043,2058,140.75865870347016,1847,116.40017182117903,2330,120,2195,138.60014430006919,1897,129.4488315899375,13957,480.21349418774145,1078,65.115282384398824,2778,247.50353532828578,5935,346.22680427719632,2142,136.12494260788506,1751,145.09651959988565,3451,219.10043359153812,6745,278.35229476330892,1138,90.697298746985851,963,77.620873481300123,2480,258.17242300447197,11216,333.80233672040106,313,79.511005527536881,864,86.313382508160345,336,43.931765272977593,3361,238.82420312857741,2138,128.31601614763451,1974,144.1700384962146,1881,142.42541907960108,2255,164.45364088398895,3183,264.55245226608656,7991,392.43980430124566,4375,323.90430685620714,2554,238.94769302087852,11682,394.77081959030357,2764,217.86693186438367,3536,269.40861159213154,320,41.231056256176608,3420,219.57231155134292,6733,269.48283804353849]
[null,"65 to 74  years:",902,189.61276328348785,569,83.546394296821688,304,86.838931361457924,457,64.443773942872099,489,107.05606008068857,379,87.726848797845236,452,86.267027304758798,2678,247.69335881286764,262,40.459856648287818,967,185.26737435393204,1475,198.9572818471342,387,73,469,69.296464556281663,1021,130.83195328359201,2230,204.89997559785115,285,61.220911460055866,299,47.010637094172637,688,160.58953888718904,2472,198.71587757398754,190,52.801515129776341,138,37.483329627982627,104,25,865,133.79461872586654,549,94.752308678997366,697,121.65936051122412,463,98.081598681913832,537,106.21205204683694,690,146.38647478507022,2217,246.91699009991191,979,156.46405337968207,1001,193.87624919004389,3132,260.92336039534672,472,115.96551211459379,1352,176.78235206037959,114,25.45584412271571,769,147.92227688891217,1151,162.93557008830209]
[null,"With cognitive difficulty",13,25.612496949731394,26,28.0178514522438,11,21.95449840010015,0,15.556349186104045,4,17.464249196572979,36,42.449970553582247,0,15.556349186104045,169,94.111635837445732,10,14.866068747318506,133,115.96551211459379,122,77.175125526298956,7,16.278820596099706,0,15.556349186104045,37,32.695565448543633,36,42.059481689626182,5,13.038404810405298,0,15.556349186104045,44,41.725292090050132,141,96.566039579139826,8,17.804493814764857,14,22.825424421026653,2,11.401754250991379,7,20,10,18.601075237738275,33,47.296934361541872,18,19.798989873223331,9,21.2602916254693,20,34.885527085024819,127,62.201286160335947,58,46.173585522460783,0,22.627416997969522,44,42.720018726587654,45,63.063460101710248,50,37.161808352124091,5,5.8309518948453007,0,22.627416997969522,16,31.622776601683793]
[null,"With no cognitive difficulty",889,190.20515240129538,543,79.906195003891909,293,85.211501571090736,457,64.443773942872099,485,107.05606008068857,343,81.394102980498531,452,86.267027304758798,2509,258.82233288493478,252,38.948684188300895,834,171.26587517658035,1353,185.56400513030539,380,74.518454090245328,469,69.296464556281663,984,130.11533345459327,2194,202.87188075236054,280,62.481997407253232,299,47.010637094172637,644,155.66630977832037,2331,192.75372888740699,182,49.678969393496885,124,34.713109915419565,102,25,858,133.05637902783917,539,94.752308678997366,664,117.41379816699569,445,98.2344135219425,528,106.21205204683694,670,143.54441821262157,2090,241.4477169078225,921,154.38264151127873,1001,193.87624919004389,3088,263.10454196003536,427,120.28299963003916,1302,176.07100840286,109,25.45584412271571,769,147.92227688891217,1135,159.02201105507376]
[null,"75  years and Older:",473,114.20157617125956,186,65,357,84.599054368237475,237,88.323269867006175,147,59.059292240933601,174,61.073725938409879,222,88.481636512894582,1189,211.52068456772733,191,50.209560842532767,311,114.5512985522207,1821,239.88538930080756,369,94.069123520951337,257,67.007462271003817,661,169.53170794869024,1468,184.58873205046942,86,30,152,38.209946349085598,388,127.66362050325849,1196,217.91970998512272,139,48.918299234540036,101,39.623225512317902,81,32.526911934581186,445,137.93114224133723,209,84.899941107164494,388,100.42410069301094,282,100.65783625729296,291,100.44899203078147,575,183.44754018519845,1239,202.60799589354809,436,111.12605455067681,497,152.26949793047851,2228,277.85247884444004,316,168.90825912311098,937,166.37307474468338,75,26.172504656604801,448,123.04470732217619,936,182.52123164169149]
[null,"With cognitive difficulty",25,29.068883707497267,32,32.249030993194197,59,38.418745424597091,25,27.313000567495326,20,26.40075756488817,19,23.706539182259394,43,55.97320787662612,62,70.114192571832419,32,18.357559750685819,51,52.497618993626752,246,130.51053597315428,19,21.213203435596427,9,17.804493814764857,29,33.241540277189323,115,76.850504227363402,2,12.083045973594572,37,20.880613017821101,32,52.497618993626752,55,42.544094772365298,15,21.95449840010015,18,23.53720459187964,12,21.377558326431949,111,108.57716150277645,0,15.556349186104045,13,16.401219466856727,21,23.345235059857504,50,47.885279575251516,25,34.885527085024819,57,39.560080889704963,25,30,91,101.65136496870073,189,124.27791436936813,100,82.637763764516279,61,43.266615305567875,12,8.0622577482985491,35,42.154477816715982,32,37.643060449437421]
[null,"With no cognitive difficulty",448,111.40017953306898,154,62.433965115151864,298,79.120161779409926,212,85.755466298073387,127,55.569775957799216,155,58.008620049092706,179,60.440052945046304,1127,203.65166338628319,159,48.795491595023407,260,108.37435120913067,1575,226.29626598775332,350,95.671312314611839,248,67.007462271003817,632,165.0969412193939,1353,180.31361568112376,84,30,115,32.015621187164243,356,118.0889495253472,1141,212.60291625469299,124,45.221676218380054,83,34.205262752974143,69,27.730849247724095,334,136.03308421115798,209,84.899941107164494,375,99.201814499534237,261,98.595131725658746,241,92.69843580125827,550,180.16103907338012,1182,205,411,112.48555462813881,406,133.00375934536586,2039,244.3460660620506,216,153.07514494521962,876,162.79127740760561,63,24.758836806279895,413,118.82760622010359,904,178.24140933015536]
[]
[]
[]
[]
[]
[]
[]
[]
[]
[]
[]
[]
[]
[]
[]
[]
[]
[]
[]
[]
[]
[]
[]
[]
[]
[]
[]
[]
[]
[]
[]
[]
[]
[]
[]
["B18104. SEX BY AGE BY COGNITIVE DIFFICULTY\n\n-Calculated"]
["Universe:  Civilian non-institutionalized population 5 years and over"]
["Data Set: 2010-2014 American Community Survey 5-Year Estimates"]
[]
[]
[null,null,"Atkinson",null,"Auburn",null,"Brentwood",null,"Candia",null,"Chester",null,"Danville",null,"Deerfield",null,"Derry",null,"East Kingston",null,"Epping",null,"Exeter",null,"Fremont",null,"Greenland",null,"Hampstead",null,"Hampton",null,"Hampton Falls",null,"Kensington",null,"Kingston",null,"Londonderry",null,"New Castle",null,"Newfields",null,"Newington",null,"Newmarket",null,"Newton",null,"North Hampton",null,"Northwood",null,"Nottingham",null,"Plaistow",null,"Portsmouth",null,"Raymond",null,"Rye",null,"Salem",null,"Sandown",null,"Seabrook",null,"South Hampton",null,"Stratham",null,"Windham"]
[null,null,"Estimate","Margin Of Error","Estimate","Margin Of Error","Estimate","Margin Of Error","Estimate","Margin Of Error","Estimate","Margin Of Error","Estimate","Margin Of Error","Estimate","Margin Of Error","Estimate","Margin Of Error","Estimate","Margin Of Error","Estimate","Margin Of Error","Estimate","Margin Of Error","Estimate","Margin Of Error","Estimate","Margin Of Error","Estimate","Margin Of Error","Estimate","Margin Of Error","Estimate","Margin Of Error","Estimate","Margin Of Error","Estimate","Margin Of Error","Estimate","Margin Of Error","Estimate","Margin Of Error","Estimate","Margin Of Error","Estimate","Margin Of Error","Estimate","Margin Of Error","Estimate","Margin Of Error","Estimate","Margin Of Error","Estimate","Margin Of Error","Estimate","Margin Of Error","Estimate","Margin Of Error","Estimate","Margin Of Error","Estimate","Margin Of Error","Estimate","Margin Of Error","Estimate","Margin Of Error","Estimate","Margin Of Error","Estimate","Margin Of Error","Estimate","Margin Of Error","Estimate","Margin Of Error","Estimate","Margin Of Error"]
[null,"Total:",6577,124,4876,87,4025,175,3792,54,4528,101,4182,100,4117,84,31602,317,2320,128,6108,162,13612,249,4031,126,3467,88,8116,153,14350,223,2190,111,1954,136,5716,147,23171,187,940,158,1555,205,770,126,8481,150,4399,133,4062,126,3975,143,4581,101,7208,184,19726,352,9514,146,5146,114,27558,248,5680,180,8283,217,760,114,7007,165,13136,205]
[null,"5 to 17  years:",1220,209.34660255184463,962,143.93401265857906,1026,152.05262246998569,651,122.57650672131263,925,182.23611058184929,922,137.18600511714013,811,136.61991070118586,6028,450.62734049322842,420,68.818602136341013,976,218.04815981796315,2696,292.17973920174546,718,116.04309544302927,678,122.34786471369249,1471,211.3409567499873,2349,316.90061533547077,412,74.276510418839678,383,65.80273550544841,884,208.06008747474851,4891,333.04804458215932,94,49.203658400570177,377,79.195959492893323,71,29.206163733020468,1468,285.03508555965527,930,179.61069010501575,585,140.08925726121899,623,240.160363090998,765,117.6860229593982,1263,256.22255950637913,2321,287.21072403376581,1785,275.33434220961249,660,118.22436297142819,4582,386.87077946001557,1026,220.7306050369998,856,173.55690709389816,110,31.89043743820395,1413,197.64867821465441,2824,276.55198426335687]
[null,"With cognitive difficulty",0,21.213203435596427,20,27.459060435491963,29,24.083189157584592,13,16.124515496597098,84,64.031242374328485,80,59.933296255086788,96,71.309185944028272,134,61.522353661088097,1,11.401754250991379,67,62.81719509815764,175,104.48444860360799,47,39.560080889704963,0,15.556349186104045,32,27.202941017470888,78,58.309518948453004,12,17.804493814764857,8,7.0710678118654755,41,44.598206241955516,262,103.24727599312246,0,15.556349186104045,16,16.278820596099706,5,13.038404810405298,35,47.434164902525687,0,15.556349186104045,0,15.556349186104045,29,44.384682042344295,35,29.732137494637012,79,77.414468931847622,85,56.797887284651708,48,44.384682042344295,11,25,104,65.604877867426907,12,25.80697580112788,59,66.708320320631671,4,12.083045973594572,60,68.154236845554948,25,33.61547262794322]
[null,"With no cognitive difficulty",1220,209.34660255184463,942,142.63590010933433,997,149.77316181479245,638,119.85407794480753,841,178.33956375409244,842,131.55227098001768,715,162.5423021862309,5894,453.11367227220148,419,68.818602136341013,909,224.26992665089986,2521,290,671,105.55093557141026,678,122.34786471369249,1439,209.95475703112803,2271,311.5670072392133,400,75.663729752107784,375,64.404968752418469,843,204.27677303110113,4629,330.10604356782079,94,49.203658400570177,361,78.492037812761623,66,26.172504656604801,1433,282.96996307028775,930,179.61069010501575,585,140.08925726121899,594,239.240464804765,730,116.18089343777659,1184,261.6123085789352,2236,284.7542800380707,1737,275.96014204953582,649,116.49892703368559,4478,386.80873826737678,1014,221.46105752479374,797,168.43396332094071,106,31.240998703626616,1353,204.47493733951845,2799,273.12268305653413]
[null,"18 to 34  years:",981,199.42417105255822,797,185.52627846210896,525,138.77319625922004,543,105.41821474489122,793,148.55302083767936,748,138.70832707519762,599,119.20570456148481,7853,528.2319566251175,401,79.39773296511683,1067,207.71133815947553,2158,269.43088167468852,772,139.51702405083043,399,94.810336989170125,1330,206.60348496576722,1768,258.00193797721755,353,85.796270315206598,253,47.201694884823787,1077,209.38003725283841,4259,354.7745763157219,82,42.43819034784589,208,54.203320931470607,199,58.051701094799967,2434,300.70749907509787,885,199.98499943745782,526,127.02755606560333,693,159.66527487215245,734,161.44348856488452,1337,271.44796923167428,5132,464.96128871122164,2179,230.58620947489467,568,164.61470165206995,5430,423.58588267315992,1244,235.35717537394095,1769,531.26641151121157,116,40.311288741492746,910,207.87015177749788,2053,307.35321699959479]
[null,"With cognitive difficulty",0,21.213203435596427,55,66.940271884718243,23,23.323807579381203,20,25.495097567963924,11,22.825424421026653,25,35.735136770411273,46,34.205262752974143,289,109.9317970379817,9,14.866068747318506,91,82.764726786234249,48,42.059481689626182,37,29.206163733020468,21,23.600847442411894,12,22.671568097509269,38,43.382023926967726,5,13.601470508735444,18,18.027756377319946,0,21.213203435596427,110,63.7808748764079,8,17.029386365926403,8,17.029386365926403,3,12.083045973594572,194,123.89108119634763,10,20.248456731316587,11,21.095023109728988,15,20.248456731316587,24,30.083217912982647,61,52.801515129776341,146,64.845971347493901,86,43.56604182158393,72,90.470989825468365,83,56.302753041036986,29,32.557641192199412,31,48.383881613611777,16,24.596747752497688,141,116.91449867317569,15,30.232432915661949]
[null,"With no cognitive difficulty",981,199.42417105255822,742,162.11415730897781,502,136.56134152826706,523,103.39245620450265,782,149.28161306738349,723,134.71451295239129,553,116.03878661895772,7564,534.58020913610335,392,78.644770964127048,976,195.34584715319647,2110,272.9468812791236,735,138.2931668593933,378,90,1318,207.40781084616847,1730,260,348,85.796270315206598,235,46.61544808322666,1077,209.38003725283841,4149,352.20590568586437,74,40.80441152620633,200,54.203320931470607,196,58.728187440104094,2240,286.92333470807148,875,200.81085628023203,515,125.36347155371855,678,156.63013758533191,710,160.11246047700348,1276,263.47295876427245,4986,462.58620818178315,2093,229.8107917396396,496,143.83671297690307,5347,423.55755216971403,1215,230.67292862405853,1738,529.42988204293874,100,33.286633954186478,769,196.81463360228071,2038,310.0354818403855]
[null,"35 to 64  years:",3245,188.09572031282372,2640,113.17243480636087,2088,124.84390253432484,2115,121.37956994486346,2342,131.03434664239754,2078,138.77319625922004,2258,115.97413504743201,14408,482.97929562249351,1061,65.053823869162372,3193,239.73527066328811,6190,306.18458485038076,2002,152.62044423995101,1815,136.03308421115798,3917,246.1097316239242,7316,330.49357028541419,1070,86.556340033529608,1064,73.246160308919954,2843,181.04143172213369,11391,305.52250326285298,436,91.285267157411553,798,91.934759476489631,353,51.623637996561229,3678,287.76726707532254,2160,146.38647478507022,2138,153.83757668398187,2027,153.63918770938616,2629,182.98087331740442,3572,268.06902096288559,8965,394.08755372378863,4525,286.00699292150182,2676,222.87440409342656,13162,403.75859123986453,2858,185.97042775667319,3903,344.98840560227529,400,52.497618993626752,3798,176.47662734764623,6470,269.32879534130768]
[null,"With cognitive difficulty",141,81.565924257621205,64,44.598206241955516,39,28.844410203711913,26,25.079872407968907,51,35.805027579936315,39,38.910152916687437,77,38.013155617496423,418,139.46325680981354,21,17.691806012954132,60,48.020828814171878,282,140.90067423543437,45,31.906112267087632,47,32.802438933713454,96,58.523499553598128,350,157.30543537970962,16,14.142135623730951,18,12.206555615733702,33,43.657759905886145,253,96.426137535421375,0,15.556349186104045,5,7.0710678118654755,0,15.556349186104045,203,99.02019995940222,48,43.416586692184822,100,66.640828326184547,86,69.835521047673154,96,46.141087980237309,160,83.096329642168911,455,131.89389675038038,239,111.31936040060597,28,39.924929555354261,283,103.23274674249446,3,28.301943396169811,204,91.787798753429101,3,5.6568542494923806,86,94.201910808645493,84,56.222771187482387]
[null,"With no cognitive difficulty",3104,195.78048932414077,2576,117.5925167687128,2049,127.66362050325849,2089,123.5556554755791,2291,133.06013678032951,2039,140.80127840328723,2181,121.62236636408618,13990,503.46797316214662,1040,67.896980787071826,3133,246.2194143441983,5908,286.5658737533135,1957,149.68299836654796,1768,139.40229553346674,3821,251.92459189209774,6966,362.35341863986878,1054,86.05230967266364,1046,71.840100222647237,2810,183.14202139323461,11138,316.09650425147066,436,91.285267157411553,793,91.967385523347346,353,51.623637996561229,3475,275.60116110060204,2112,150.69505632236249,2038,145.34441853748632,1941,148.82204137828509,2533,190.06577808748213,3412,277.54639251844009,8510,383.4188310451118,4286,302.55247478743252,2648,222.19360926903366,12879,407.35488213595772,2855,186.67619023324855,3699,331.55693327089392,397,53.263495942343098,3712,196.5807722031837,6386,275.93658691808162]
[null,"65 to 74  years:",622,142.43595051811886,313,60.811183182043088,243,62.241465278381739,315,86.313382508160345,322,86.278618440491968,226,92.849340331528467,336,76.216796049164913,1839,212.20744567521658,313,50.447993022517757,548,148.40485167271319,1351,169.01183390520322,395,93.434469014384618,280,65.299310869258036,935,145.60219778561037,1728,187.49133313302778,241,45.793012567421243,190,32.015621187164243,564,132.90974381135493,1892,218.58865478336244,154,45.967379738244816,87,32.015621187164243,87,31.827660925679098,513,107.44766167767449,249,84.958813551037778,526,101.86265262597475,405,95.414883535012507,279,66.030296076876709,527,141.24092891226678,1831,211.51832071950648,741,164.65721970202219,554,190.4337155022713,2700,270.86712609691119,325,86.313382508160345,1081,206.86710710018642,80,19.798989873223331,475,116.03878661895772,952,201.13676938839401]
[null,"With cognitive difficulty",14,24.207436873820409,0,21.213203435596427,8,16.278820596099706,0,15.556349186104045,0,15.556349186104045,0,15.556349186104045,0,15.556349186104045,91,40.718546143004666,0,15.556349186104045,0,21.213203435596427,51,44.643028571099428,0,15.556349186104045,0,15.556349186104045,11,13.341664064126334,29,26.172504656604801,17,13.892443989449804,16,12.206555615733702,11,22.671568097509269,52,27.294688127912362,0,15.556349186104045,4,12.529964086141668,13,18.439088914585774,11,13.152946437965905,7,15.556349186104045,2,11.704699910719626,0,15.556349186104045,10,20.248456731316587,80,76.157731058639087,58,45.617978911828175,28,34.481879299133332,8,20.518284528683193,79,50.990195135927848,13,25.80697580112788,56,47.127486671792717,0,15.556349186104045,0,21.213203435596427,14,28.600699292150182]
[null,"With no cognitive difficulty",608,140.08925726121899,313,60.811183182043088,235,61.554853586049575,315,86.313382508160345,322,86.278618440491968,226,92.849340331528467,336,76.216796049164913,1748,212.86850401127921,313,50.447993022517757,548,148.40485167271319,1300,166.1836333698358,395,93.434469014384618,280,65.299310869258036,924,145.60219778561037,1699,184.11409506064439,224,45.276925690687087,174,33.241540277189323,553,131.36590120727678,1840,216.49018453500381,154,45.967379738244816,83,31.240998703626616,74,26.419689627245813,502,109.80892495603443,242,84.219950130595535,524,101.86265262597475,405,95.414883535012507,269,63.600314464631381,447,124.57929201917949,1773,211.51832071950648,713,162.74212730574712,546,191.17531221368517,2621,265.27909830968588,312,84.148677945645701,1025,204.04411287758342,80,19.798989873223331,475,116.03878661895772,938,199.80990966416056]
[null,"75  years and Older:",509,126.73200069437868,164,48.166378315169183,143,48.020828814171878,168,75.153176912223742,146,63.513778032801667,208,81.320354155647891,113,49.51767361255979,1474,212.41704263076446,125,41.617304093369626,324,158.52129194527782,1217,191.12822920751398,144,65,295,65.604877867426907,463,129.634100452003,1189,214.86972797488249,114,36.76955262170047,64,21.400934559032695,348,106.88779163215975,738,145.45446022724775,174,49.51767361255979,85,30.413812651491099,60,22.671568097509269,388,144.01388821915754,175,61.073725938409879,287,74.94664769020693,227,93.605555390692487,174,63.890531379853151,509,145.42695761102891,1477,193.70596273734063,284,82.97590011563598,688,186.45374761586316,1684,235.77955806218657,227,84.38601779915912,674,213.71476317746513,54,21.2602916254693,411,99.297532698451278,837,214.27319011019554]
[null,"With cognitive difficulty",24,39.924929555354261,8,19.849433241279208,8,16.278820596099706,0,15.556349186104045,26,26.40075756488817,10,20.248456731316587,15,19.416487838947599,193,107.41508273980894,6,13.601470508735444,61,41.400483088968905,60,42.941821107167776,0,15.556349186104045,33,24.758836806279895,22,25.45584412271571,122,78.230428862431779,10,9.4339811320566032,10,6.4031242374328485,16,29.154759474226502,42,40.311288741492746,19,16.552945357246848,3,12.083045973594572,1,11.401754250991379,23,25,20,21.95449840010015,75,47.801673610868477,0,15.556349186104045,9,11.704699910719626,65,73.545904032787575,104,76.557168181692816,14,27.802877548915689,48,43.657759905886145,149,78.262379212492633,25,30.413812651491099,170,152.11837495845134,3,11.704699910719626,70,46.065171225124082,111,80.808415403347695]
[null,"With no cognitive difficulty",485,126.73200069437868,156,48.166378315169183,135,46.324939287601879,168,75.153176912223742,120,62.681735776859277,198,80.610173055266415,98,47.381430961928537,1281,206.63494380186523,119,40.80441152620633,263,154.15900881881669,1157,180.42172818150257,144,65,262,65.604877867426907,441,129.72663566130126,1067,186.47251808242416,104,35.355339059327378,54,20,332,104.23531071570709,696,137.2443077143821,155,46.690470119715009,82,30.413812651491099,59,22.671568097509269,365,141.77799547179387,155,57.314919523628397,212,64.498061986388393,227,93.605555390692487,165,63.7808748764079,444,129.72663566130126,1373,175.78680269007683,270,80.430093870391573,640,186.45374761586316,1535,228.07893370497854,202,77.987178433380961,504,170.89177862027185,51,21.2602916254693,341,90.271811768680038,726,207.03864373589778]

{"sheet":"ACS_Table_B18105","index":35,"n_rows":122,"n_cols":76,"rows_kept":122,"cut":false,"hidden":true,"merged":[]}
["B18105. SEX BY AGE BY AMBULATORY DIFFICULTY\n\n"]
["Universe:  Civilian non-institutionalized population 5 years and over"]
["Data Set: 2015-2019 American Community Survey 5-Year Estimates"]
[]
[null,null,"Atkinson",null,"Auburn",null,"Brentwood",null,"Candia",null,"Chester",null,"Danville",null,"Deerfield",null,"Derry",null,"East Kingston",null,"Epping",null,"Exeter",null,"Fremont",null,"Greenland",null,"Hampstead",null,"Hampton",null,"Hampton Falls",null,"Kensington",null,"Kingston",null,"Londonderry",null,"New Castle",null,"Newfields",null,"Newington",null,"Newmarket",null,"Newton",null,"North Hampton",null,"Northwood",null,"Nottingham",null,"Plaistow",null,"Portsmouth",null,"Raymond",null,"Rye",null,"Salem",null,"Sandown",null,"Seabrook",null,"South Hampton",null,"Stratham",null,"Windham"]
[null,null,"Estimate","Margin Of Error","Estimate","Margin Of Error","Estimate","Margin Of Error","Estimate","Margin Of Error","Estimate","Margin Of Error","Estimate","Margin Of Error","Estimate","Margin Of Error","Estimate","Margin Of Error","Estimate","Margin Of Error","Estimate","Margin Of Error","Estimate","Margin Of Error","Estimate","Margin Of Error","Estimate","Margin Of Error","Estimate","Margin Of Error","Estimate","Margin Of Error","Estimate","Margin Of Error","Estimate","Margin Of Error","Estimate","Margin Of Error","Estimate","Margin Of Error","Estimate","Margin Of Error","Estimate","Margin Of Error","Estimate","Margin Of Error","Estimate","Margin Of Error","Estimate","Margin Of Error","Estimate","Margin Of Error","Estimate","Margin Of Error","Estimate","Margin Of Error","Estimate","Margin Of Error","Estimate","Margin Of Error","Estimate","Margin Of Error","Estimate","Margin Of Error","Estimate","Margin Of Error","Estimate","Margin Of Error","Estimate","Margin Of Error","Estimate","Margin Of Error","Estimate","Margin Of Error","Estimate","Margin Of Error"]
[null,"Total:",6677,150,5104,98,4042,156,3756,88,4864,87,4371,77,4291,93,31612,320,2384,190,6514,124,14269,222,4365,116,3829,64,8233,140,14972,156,2319,161,2131,127,6040,145,24522,218,817,169,1675,209,682,82,8603,151,4717,92,4341,60,4146,78,4769,110,7408,130,19886,257,9854,197,5236,121,27617,335,6003,145,8597,96,756,94,7102,112,13568,192]
[null,"Male:",3332,234,2573,146,2020,105,1987,137,2425,164,2241,125,2070,115,15667,489,1184,146,3290,230,6517,312,2164,141,1811,97,4001,254,7253,277,1256,103,1079,78,3170,269,11994,324,379,101,779,103,346,56,4449,259,2468,188,2058,122,1900,145,2197,135,3458,268,9504,385,4879,299,2787,203,13903,437,2958,212,4189,208,361,49,3603,242,6817,323]
[null,"5 to 17  years:",604,207,391,97,501,84,267,114,466,107,427,121,359,98,2877,337,262,87,579,179,1074,190,297,94,286,77,741,168,927,159,230,57,176,55,447,184,2425,261,58,55,114,40,30,18,650,194,361,87,228,96,262,82,311,104,462,163,1198,203,858,240,364,99,1951,275,578,155,569,160,49,20,827,169,1412,251]
[null,"With ambulatory difficulty",0,16,0,16,0,11,0,11,9,14,0,11,0,11,14,19,0,11,0,16,15,24,0,11,23,24,0,16,0,18,6,10,0,11,0,16,0,21,0,11,0,11,0,11,0,16,0,11,0,11,0,11,0,16,0,16,0,21,0,18,0,16,0,21,20,30,19,32,0,11,0,16,0,18]
[null,"With no ambulatory difficulty",604,207,391,97,501,84,267,114,457,107,427,121,359,98,2863,333,262,87,579,179,1059,187,297,94,263,68,741,168,927,159,224,55,176,55,447,184,2425,261,58,55,114,40,30,18,650,194,361,87,228,96,262,82,311,104,462,163,1198,203,858,240,364,99,1951,275,558,154,550,152,49,20,827,169,1412,251]
[null,"18 to 34  years:",529,159,451,110,177,73,335,97,521,167,350,82,449,94,3469,371,172,65,740,212,1122,240,382,96,275,80,818,124,1241,211,248,78,211,51,854,247,2336,248,33,27,105,38,57,40,1407,230,615,141,340,109,319,86,401,90,919,218,2691,306,1085,263,406,178,3676,376,739,152,650,157,67,26,506,172,1065,288]
[null,"With ambulatory difficulty",0,16,10,16,13,21,0,11,0,16,12,20,0,11,29,29,7,11,17,26,0,18,0,11,5,12,56,42,0,18,0,11,13,19,0,16,12,19,0,11,8,9,0,11,0,16,0,11,0,11,0,11,10,17,3,5,3,6,25,34,0,16,17,28,0,16,0,16,0,11,0,16,0,18]
[null,"With no ambulatory difficulty",529,159,441,108,164,73,335,97,521,167,338,82,449,94,3440,374,165,63,723,213,1122,240,382,96,270,81,762,128,1241,211,248,78,198,46,854,247,2324,247,33,27,97,37,57,40,1407,230,615,141,340,109,319,86,391,89,916,218,2688,305,1060,256,406,178,3659,377,739,152,650,157,67,26,506,172,1065,288]
[null,"35 to 64  years:",1560,134,1325,85,1092,91,967,101,1106,71,1168,95,926,94,7546,340,533,48,1340,184,3024,251,1114,102,889,96,1600,143,3373,210,575,75,459,48,1299,186,5642,233,142,51,431,63,176,34,1770,196,1097,81,1008,115,975,109,1134,129,1498,195,4083,256,2254,220,1318,186,5934,286,1326,171,1970,181,151,26,1683,158,3335,186]
[null,"With ambulatory difficulty",51,50,35,41,24,25,50,32,0,16,62,66,0,11,408,142,24,18,56,52,124,83,9,14,77,59,15,25,170,84,0,11,11,9,59,54,249,105,0,11,7,8,2,4,48,43,12,18,33,42,8,15,11,17,128,78,178,119,115,73,34,40,277,152,101,77,138,77,7,6,43,46,20,32]
[null,"With no ambulatory difficulty",1509,137,1290,85,1068,93,917,107,1106,71,1106,111,926,94,7138,349,509,44,1284,188,2900,242,1105,104,812,112,1585,141,3203,213,575,75,448,49,1240,173,5393,239,142,51,424,64,174,33,1722,198,1085,84,975,112,967,108,1123,129,1370,198,3905,243,2139,213,1284,191,5657,299,1225,176,1832,170,144,25,1640,164,3315,182]
[null,"65 to 74  years:",412,112,351,62,142,50,258,48,286,81,202,60,221,61,1273,154,125,26,497,130,567,100,155,48,242,49,522,91,1041,128,142,48,162,37,339,110,1124,152,83,32,77,27,45,15,392,99,293,67,338,76,213,62,197,65,327,102,1003,142,504,105,484,132,1535,185,228,82,710,124,63,18,359,109,562,122]
[null,"With ambulatory difficulty",13,20,38,27,25,23,50,41,15,19,15,17,24,23,134,76,12,11,107,100,75,61,0,11,0,11,62,67,79,59,5,7,9,7,27,29,132,92,0,11,18,21,5,6,39,33,41,41,45,47,27,41,7,12,48,35,114,68,8,12,16,25,138,79,34,32,118,52,6,6,16,25,0,18]
[null,"With no ambulatory difficulty",399,113,313,63,117,46,208,57,271,78,187,58,197,54,1139,141,113,27,390,124,492,111,155,48,242,49,460,104,962,115,137,47,153,37,312,108,992,143,83,32,59,22,40,16,353,96,252,66,293,70,186,52,190,64,279,95,889,131,496,104,468,136,1397,188,194,83,592,104,57,18,343,108,562,122]
[null,"75  years and Older:",227,91,55,33,108,41,160,76,46,28,94,47,115,73,502,145,92,36,134,81,730,149,216,68,119,53,320,110,671,133,61,24,71,26,231,97,467,140,63,32,52,29,38,23,230,95,102,58,144,62,131,66,154,69,252,122,529,123,178,82,215,95,807,171,87,57,290,76,31,19,228,86,443,125]
[null,"With ambulatory difficulty",27,33,0,16,32,30,16,18,0,16,17,19,40,54,181,100,22,15,84,63,175,92,58,56,56,40,99,54,144,68,11,11,28,21,73,62,80,49,18,21,26,24,2,4,136,87,0,11,31,40,25,36,21,23,73,82,73,43,35,43,37,42,179,119,24,30,57,41,9,14,32,38,91,60]
[null,"With no ambulatory difficulty",200,88,55,33,76,33,144,73,46,28,77,43,75,36,321,103,70,35,50,53,555,130,158,57,63,37,221,92,527,121,50,28,43,16,158,80,387,122,45,25,26,17,36,22,94,57,102,58,113,51,106,55,133,68,179,90,456,111,143,68,178,90,628,139,63,47,233,75,22,10,196,87,352,116]
[null,"Female:",3345,255,2531,159,2022,125,1769,123,2439,136,2130,117,2221,116,15945,507,1200,94,3224,194,7752,332,2201,129,2018,113,4232,236,7719,289,1063,99,1052,86,2870,294,12528,279,438,91,896,126,336,47,4154,268,2249,171,2283,122,2246,180,2572,125,3950,282,10382,370,4975,283,2449,184,13714,446,3045,244,4408,179,395,60,3499,244,6751,284]
[null,"5 to 17  years:",506,192,380,106,345,81,204,67,364,95,377,101,343,85,2599,285,217,42,345,121,1134,153,350,88,491,105,718,160,1084,159,141,39,135,36,495,174,2081,188,52,35,232,72,30,18,482,169,343,91,469,151,341,68,523,122,648,148,1304,179,860,278,241,83,1691,308,429,195,506,137,65,28,501,162,1586,213]
[null,"With ambulatory difficulty",0,16,0,16,0,11,0,11,0,16,0,11,0,11,27,32,0,11,0,16,0,18,0,11,0,11,0,16,0,18,0,11,0,11,0,16,0,21,0,11,0,11,0,11,0,16,0,11,0,11,0,11,0,16,23,34,0,21,0,18,0,16,0,21,0,16,0,16,0,11,0,16,0,18]
[null,"With no ambulatory difficulty",506,192,380,106,345,81,204,67,364,95,377,101,343,85,2572,283,217,42,345,121,1134,153,350,88,491,105,718,160,1084,159,141,39,135,36,495,174,2081,188,52,35,232,72,30,18,482,169,343,91,469,151,341,68,523,122,625,143,1304,179,860,278,241,83,1691,308,429,195,506,137,65,28,501,162,1586,213]
[null,"18 to 34  years:",486,162,460,115,249,74,342,101,542,109,346,80,569,98,3964,412,197,56,663,176,1491,232,394,80,249,79,746,145,1091,203,186,76,175,45,589,189,2397,278,28,24,108,34,37,19,1283,211,421,117,201,86,518,180,344,94,829,214,2822,298,1007,177,173,85,2986,359,675,143,688,163,58,24,543,168,634,186]
[null,"With ambulatory difficulty",0,16,0,16,0,11,0,11,5,11,0,11,6,10,1,4,0,11,14,26,29,30,0,11,0,11,27,42,0,18,11,16,0,11,0,16,74,36,0,11,0,11,0,11,12,19,0,11,0,11,0,11,0,16,0,16,42,42,6,11,17,26,19,27,1,2,18,29,0,11,0,16,0,18]
[null,"With no ambulatory difficulty",486,162,460,115,249,74,342,101,537,108,346,80,563,99,3963,411,197,56,649,178,1462,235,394,80,249,79,719,143,1091,203,175,76,175,45,589,189,2323,274,28,24,108,34,37,19,1271,209,421,117,201,86,518,180,344,94,829,214,2780,301,1001,178,156,86,2967,357,674,142,670,159,58,24,543,168,634,186]
[null,"35 to 64  years:",1617,137,1342,94,1017,94,947,71,1229,96,1150,87,971,89,7290,368,550,42,1569,174,3128,242,1072,85,913,98,1928,177,3558,175,568,53,524,61,1280,180,5973,229,175,61,446,60,167,29,1701,153,1122,94,1010,90,986,105,1228,95,1787,192,4332,304,2375,229,1236,150,6019,258,1468,130,1925,195,177,32,1825,149,3449,192]
[null,"With ambulatory difficulty",79,60,32,23,31,28,93,67,28,38,85,49,47,50,430,148,0,11,93,53,177,90,41,34,62,58,194,133,179,80,14,13,3,4,65,53,253,113,4,6,22,15,3,4,101,58,42,43,28,25,33,28,37,31,29,32,129,61,235,118,0,16,372,148,34,39,122,72,4,4,90,54,50,51]
[null,"With no ambulatory difficulty",1538,144,1310,99,986,96,854,99,1201,105,1065,100,924,102,6860,366,550,42,1476,172,2951,252,1031,89,851,85,1734,154,3379,190,554,57,521,61,1215,187,5720,239,171,61,424,58,164,29,1600,153,1080,89,982,95,953,113,1191,97,1758,192,4203,303,2140,208,1236,150,5647,284,1434,124,1803,201,173,33,1735,138,3399,191]
[null,"65 to 74  years:",490,153,218,56,162,71,199,43,203,70,177,64,231,61,1405,194,137,31,470,132,908,172,232,55,227,49,499,94,1189,160,143,38,137,29,349,117,1348,128,107,42,61,26,59,20,473,90,256,67,359,95,250,76,340,84,363,105,1214,202,475,116,517,142,1597,184,244,82,642,126,51,18,410,100,589,108]
[null,"With ambulatory difficulty",105,100,9,13,0,11,52,37,44,54,53,44,38,34,235,106,19,16,188,116,173,120,7,12,31,24,19,21,112,56,5,7,11,7,29,27,129,48,13,15,0,11,2,3,23,19,25,21,33,27,51,53,18,20,128,66,130,66,66,49,99,88,212,79,11,20,80,52,10,13,86,59,26,26]
[null,"With no ambulatory difficulty",385,122,209,58,162,71,147,46,159,49,124,53,193,57,1170,190,118,27,282,100,735,149,225,54,196,49,480,93,1077,159,138,37,126,29,320,118,1219,136,94,40,61,26,57,19,450,90,231,66,326,91,199,65,322,90,235,88,1084,190,409,105,418,115,1385,179,233,80,562,109,41,13,324,94,563,110]
[null,"75  years and Older:",246,69,131,56,249,74,77,45,101,52,80,39,107,50,687,154,99,35,177,81,1091,188,153,65,138,41,341,129,797,128,25,18,81,28,157,83,729,167,76,37,49,27,43,23,215,100,107,62,244,79,151,76,137,73,323,137,710,161,258,75,282,119,1421,219,229,159,647,148,44,18,220,88,493,133]
[null,"With ambulatory difficulty",26,29,36,31,72,40,21,23,74,49,39,31,32,27,182,110,11,13,75,61,381,126,9,15,28,34,29,27,183,94,8,10,26,11,32,35,188,70,14,12,17,12,15,22,124,100,46,48,79,51,31,29,56,47,141,105,182,84,36,28,114,89,412,164,36,38,136,90,10,6,38,42,133,76]
[null,"With no ambulatory difficulty",220,66,95,49,177,64,56,39,27,22,41,30,75,47,505,128,88,32,102,70,710,169,144,63,110,43,312,123,614,107,17,16,55,26,125,79,541,154,62,34,32,25,28,12,91,89,61,41,165,68,120,70,81,52,182,103,528,137,222,68,168,87,1009,210,193,152,511,134,34,15,182,80,360,111]
[]
[]
[{"$f":"A1& \"-Calculated\"","v":"B18105. SEX BY AGE BY AMBULATORY DIFFICULTY\n\n-Calculated"}]
[{"$f":"A2","v":"Universe:  Civilian non-institutionalized population 5 years and over"}]
[{"$f":"A3","v":"Data Set: 2015-2019 American Community Survey 5-Year Estimates"}]
[]
[]
[null,null,"Atkinson",null,"Auburn",null,"Brentwood",null,"Candia",null,"Chester",null,"Danville",null,"Deerfield",null,"Derry",null,"East Kingston",null,"Epping",null,"Exeter",null,"Fremont",null,"Greenland",null,"Hampstead",null,"Hampton",null,"Hampton Falls",null,"Kensington",null,"Kingston",null,"Londonderry",null,"New Castle",null,"Newfields",null,"Newington",null,"Newmarket",null,"Newton",null,"North Hampton",null,"Northwood",null,"Nottingham",null,"Plaistow",null,"Portsmouth",null,"Raymond",null,"Rye",null,"Salem",null,"Sandown",null,"Seabrook",null,"South Hampton",null,"Stratham",null,"Windham"]
[null,null,"Estimate","Margin Of Error","Estimate","Margin Of Error","Estimate","Margin Of Error","Estimate","Margin Of Error","Estimate","Margin Of Error","Estimate","Margin Of Error","Estimate","Margin Of Error","Estimate","Margin Of Error","Estimate","Margin Of Error","Estimate","Margin Of Error","Estimate","Margin Of Error","Estimate","Margin Of Error","Estimate","Margin Of Error","Estimate","Margin Of Error","Estimate","Margin Of Error","Estimate","Margin Of Error","Estimate","Margin Of Error","Estimate","Margin Of Error","Estimate","Margin Of Error","Estimate","Margin Of Error","Estimate","Margin Of Error","Estimate","Margin Of Error","Estimate","Margin Of Error","Estimate","Margin Of Error","Estimate","Margin Of Error","Estimate","Margin Of Error","Estimate","Margin Of Error","Estimate","Margin Of Error","Estimate","Margin Of Error","Estimate","Margin Of Error","Estimate","Margin Of Error","Estimate","Margin Of Error","Estimate","Margin Of Error","Estimate","Margin Of Error","Estimate","Margin Of Error","Estimate","Margin Of Error","Estimate","Margin Of Error"]
[null,"Total:",{"$f":"C7","v":6677},150,5104,98,4042,156,3756,88,4864,87,4371,77,4291,93,31612,320,2384,190,6514,124,14269,222,{"$f":"Y7","v":4365},116,3829,64,8233,140,14972,156,2319,161,2131,127,6040,145,24522,218,817,169,1675,209,682,82,8603,151,4717,92,4341,60,4146,78,4769,110,7408,130,19886,257,9854,197,5236,121,27617,335,6003,145,8597,96,756,94,7102,112,13568,192]
[null,"5 to 17  years:",{"$f":"C25+C9","v":1110},{"$f":"SQRT((D25^2)+(D9^2))","v":282.33490751233722},{"$f":"E25+E9","v":771},{"$f":"SQRT((F25^2)+(F9^2))","v":143.68368035375485},{"$f":"G25+G9","v":846},{"$f":"SQRT((H25^2)+(H9^2))","v":116.69190203266035},{"$f":"I25+I9","v":471},{"$f":"SQRT((J25^2)+(J9^2))","v":132.23085872821065},{"$f":"K25+K9","v":830},{"$f":"SQRT((L25^2)+(L9^2))","v":143.0873858870865},{"$f":"M25+M9","v":804},{"$f":"SQRT((N25^2)+(N9^2))","v":157.61345120261785},{"$f":"O25+O9","v":702},{"$f":"SQRT((P25^2)+(P9^2))","v":129.72663566130126},{"$f":"Q25+Q9","v":5476},{"$f":"SQRT((R25^2)+(R9^2))","v":441.35473261312154},{"$f":"S25+S9","v":479},{"$f":"SQRT((T25^2)+(T9^2))","v":96.607453128627711},{"$f":"U25+U9","v":924},{"$f":"SQRT((V25^2)+(V9^2))","v":216.06017680266763},{"$f":"W25+W9","v":2208},{"$f":"SQRT((X25^2)+(X9^2))","v":243.94466585682909},{"$f":"Y25+Y9","v":647},{"$f":"SQRT((Z25^2)+(Z9^2))","v":128.76334882255898},{"$f":"AA25+AA9","v":777},{"$f":"SQRT((AB25^2)+(AB9^2))","v":130.20752666416791},{"$f":"AC25+AC9","v":1459},{"$f":"SQRT((AD25^2)+(AD9^2))","v":232},{"$f":"AE25+AE9","v":2011},{"$f":"SQRT((AF25^2)+(AF9^2))","v":224.85995641732211},{"$f":"AG25+AG9","v":371},{"$f":"SQRT((AH25^2)+(AH9^2))","v":69.06518659932803},{"$f":"AI25+AI9","v":311},{"$f":"SQRT((AJ25^2)+(AJ9^2))","v":65.73431371817918},{"$f":"AK25+AK9","v":942},{"$f":"SQRT((AL25^2)+(AL9^2))","v":253.24296633865274},{"$f":"AM25+AM9","v":4506},{"$f":"SQRT((AN25^2)+(AN9^2))","v":321.65975812961125},{"$f":"AO25+AO9","v":110},{"$f":"SQRT((AP25^2)+(AP9^2))","v":65.192024052026483},{"$f":"AQ25+AQ9","v":346},{"$f":"SQRT((AR25^2)+(AR9^2))","v":82.365041127896006},{"$f":"AS25+AS9","v":60},{"$f":"SQRT((AT25^2)+(AT9^2))","v":25.45584412271571},{"$f":"AU25+AU9","v":1132},{"$f":"SQRT((AV25^2)+(AV9^2))","v":257.28777662376422},{"$f":"AW25+AW9","v":704},{"$f":"SQRT((AX25^2)+(AX9^2))","v":125.89678312014172},{"$f":"AY25+AY9","v":697},{"$f":"SQRT((AZ25^2)+(AZ9^2))","v":178.93294833540301},{"$f":"BA25+BA9","v":603},{"$f":"SQRT((BB25^2)+(BB9^2))","v":106.5269918846862},{"$f":"BC25+BC9","v":834},{"$f":"SQRT((BD25^2)+(BD9^2))","v":160.31219541881399},{"$f":"BE25+BE9","v":1110},{"$f":"SQRT((BF25^2)+(BF9^2))","v":220.16584657934573},{"$f":"BG25+BG9","v":2502},{"$f":"SQRT((BH25^2)+(BH9^2))","v":270.64737205448716},{"$f":"BI25+BI9","v":1718},{"$f":"SQRT((BJ25^2)+(BJ9^2))","v":367.26557148744558},{"$f":"BK25+BK9","v":605},{"$f":"SQRT((BL25^2)+(BL9^2))","v":129.18978287774928},{"$f":"BM25+BM9","v":3642},{"$f":"SQRT((BN25^2)+(BN9^2))","v":412.90313634071612},{"$f":"BO25+BO9","v":1007},{"$f":"SQRT((BP25^2)+(BP9^2))","v":249.09837414162303},{"$f":"BQ25+BQ9","v":1075},{"$f":"SQRT((BR25^2)+(BR9^2))","v":210.63950246807934},{"$f":"BS25+BS9","v":114},{"$f":"SQRT((BT25^2)+(BT9^2))","v":34.409301068170507},{"$f":"BU25+BU9","v":1328},{"$f":"SQRT((BV25^2)+(BV9^2))","v":234.10467744152402},{"$f":"BW25+BW9","v":2998},{"$f":"SQRT((BX25^2)+(BX9^2))","v":329.1959902550455}]
[null,"With ambulatory difficulty",0,22.627416997969522,0,22.627416997969522,0,15.556349186104045,0,15.556349186104045,9,21.2602916254693,0,15.556349186104045,0,15.556349186104045,41,37.215588131856791,0,15.556349186104045,0,22.627416997969522,15,30,0,15.556349186104045,23,26.40075756488817,0,22.627416997969522,0,25.45584412271571,6,14.866068747318506,0,15.556349186104045,0,22.627416997969522,0,29.698484809834994,0,15.556349186104045,0,15.556349186104045,0,15.556349186104045,0,22.627416997969522,0,15.556349186104045,0,15.556349186104045,0,15.556349186104045,0,22.627416997969522,23,37.576588456111871,0,29.698484809834994,0,25.45584412271571,0,22.627416997969522,0,29.698484809834994,20,34,19,35.777087639996637,0,15.556349186104045,0,22.627416997969522,0,25.45584412271571]
[null,"With no ambulatory difficulty",1110,282.33490751233722,771,143.68368035375485,846,116.69190203266035,471,132.23085872821065,821,143.0873858870865,804,157.61345120261785,702,129.72663566130126,5435,437.01029736151526,479,96.607453128627711,924,216.06017680266763,2193,241.61539686038222,647,128.76334882255898,754,125.0959631642844,1459,232,2011,224.85995641732211,365,67.424031324150292,311,65.73431371817918,942,253.24296633865274,4506,321.65975812961125,110,65.192024052026483,346,82.365041127896006,60,25.45584412271571,1132,257.28777662376422,704,125.89678312014172,697,178.93294833540301,603,106.5269918846862,834,160.31219541881399,1087,216.83634381717471,2502,270.64737205448716,1718,367.26557148744558,605,129.18978287774928,3642,412.90313634071612,987,248.47736315407084,1056,204.62893246068603,114,34.409301068170507,1328,234.10467744152402,2998,329.1959902550455]
[null,"18 to 34  years:",1015,226.99118925632334,911,159.13830462839547,426,103.9471019317037,677,140.03570973148243,1063,199.42417105255822,696,114.56002793295748,1018,135.79396157414365,7433,554.42312361588961,369,85.796270315206598,1403,275.5358415887124,2613,333.80233672040106,776,124.96399481450646,524,112.43220179290273,1564,190.79046097748179,2332,292.79685790663808,434,108.90362712049586,386,68.01470429252781,1443,311.01446911679204,4733,372.54261501202785,61,36.124783736376884,213,50.990195135927848,94,44.283179650969061,2690,312.1233730434169,1036,183.22117781522965,541,138.84163640637487,837,199.48934808655824,745,130.13838787997952,1748,305.48322376196046,5513,427.12995680471766,2092,317.0141952657641,579,197.25364381932212,6662,519.86248181610495,1414,208.69355524308841,1338,226.31394124092313,125,35.383612025908263,1049,240.4329428343795,1699,342.84107105187968]
[null,"With ambulatory difficulty",0,22.627416997969522,10,22.627416997969522,13,23.706539182259394,0,15.556349186104045,5,19.416487838947599,12,22.825424421026653,6,14.866068747318506,30,29.274562336608895,7,15.556349186104045,31,36.76955262170047,29,34.985711369071801,0,15.556349186104045,5,16.278820596099706,83,59.396969619669989,0,25.45584412271571,11,19.416487838947599,13,21.95449840010015,0,22.627416997969522,86,40.70626487409524,0,15.556349186104045,8,14.212670403551895,0,15.556349186104045,12,24.839484696748443,0,15.556349186104045,0,15.556349186104045,0,15.556349186104045,10,23.345235059857504,3,16.763054614240211,45,42.426406871192853,31,35.735136770411273,17,30.528675044947494,36,38.897300677553446,1,16.124515496597098,18,33.120990323358392,0,15.556349186104045,0,22.627416997969522,0,25.45584412271571]
[null,"With no ambulatory difficulty",1015,226.99118925632334,901,157.76247969653622,413,103.9471019317037,677,140.03570973148243,1058,198.8793604173143,684,114.56002793295748,1012,136.517398158623,7403,555.69506026237093,362,84.291162051546067,1372,277.58422145359776,2584,335.89432862136869,776,124.96399481450646,519,113.14592347937243,1481,191.91925385432282,2332,292.79685790663808,423,108.90362712049586,373,64.350602172784676,1443,311.01446911679204,4647,368.89700459613385,61,36.124783736376884,205,50.24937810560445,94,44.283179650969061,2678,310.77483810630486,1036,183.22117781522965,541,138.84163640637487,837,199.48934808655824,735,129.4488315899375,1745,305.48322376196046,5468,428.51604404036027,2061,311.80121872757331,562,197.68662069042509,6626,519.20901378924464,1413,208.00961516237658,1320,223.45021816950637,125,35.383612025908263,1049,240.4329428343795,1699,342.84107105187968]
[null,"35 to 64  years:",3177,191.637678967368,2667,126.73200069437868,2109,130.83195328359201,1914,123.45849504995596,2335,119.4026800369238,2318,128.81770064707723,1897,129.4488315899375,14836,501.02295356600183,1083,63.7808748764079,2909,253.24296633865274,6152,348.66172717979816,2186,132.77424449041311,1802,137.18600511714013,3528,227.547797176769,6931,273.3587386567329,1143,91.836811791350854,983,77.620873481300123,2579,258.83585532147589,11615,326.69557695199978,317,79.511005527536881,877,87,343,44.687805943008662,3471,248.64633518312712,2219,124.08464852672147,2018,146.03081866510234,1961,151.34728276384746,2362,160.20611723651504,3285,273.65854636754904,8415,397.43175514797508,4629,317.55471969410246,2554,238.94769302087852,11953,385.17528477304978,2794,214.80456233516085,3895,266.05638500137525,328,41.231056256176608,3508,217.17504460687928,6784,267.32003291934558]
[null,"With ambulatory difficulty",130,78.10249675906654,67,47.010637094172637,55,37.536648758246919,143,74.249579123386283,28,41.231056256176608,147,82.200973230248309,47,51.195702944680818,838,205.10485123467947,24,21.095023109728988,149,74.249579123386283,301,122.42957159118053,50,36.76955262170047,139,82.734515167492219,209,135.32922818075923,349,116,14,17.029386365926403,14,9.8488578017961039,124,75.663729752107784,502,154.25303886795876,4,12.529964086141668,29,17,5,5.6568542494923806,149,72.201108024738787,54,46.61544808322666,61,48.877397639399746,41,31.76476034853718,48,35.355339059327378,157,84.308955633431964,307,133.7235955244997,350,138.75518008348374,34,43.08131845707603,649,212.15088969881791,135,86.313382508160345,260,105.41821474489122,11,7.2111025509279782,133,70.936591403872796,70,60.207972893961475]
[null,"With no ambulatory difficulty",3047,198.75864761061342,2600,130.48371545905641,2054,133.66001645967279,1771,145.7737973711325,2307,126.75172582651489,2171,149.40214188558343,1850,138.70832707519762,13998,505.7242331547896,1059,60.827625302982199,2760,254.80973293812778,5851,349.38231208806206,2136,136.88316185711082,1663,140.60227594174995,3319,208.79894635749483,6582,285.42774917656482,1129,94.201910808645493,969,78.243210568074218,2455,254.7508586835381,11113,337.99704140716972,313,79.511005527536881,848,86.371291526756735,338,43.931765272977593,3322,250.2258979402412,2165,122.38055401083949,1957,146.86388255796589,1920,156.31058825300352,2314,161.40012391568973,3128,275.80427842946887,8108,388.40442839905933,4279,297.71294899617652,2520,242.86004199950224,11304,412.37967942176783,2659,215.29514625276622,3635,263.25083095785283,317,41.400483088968905,3375,214.3361845326169,6714,263.82759522081841]
[null,"65 to 74  years:",902,189.61276328348785,569,83.546394296821688,304,86.838931361457924,457,64.443773942872099,489,107.05606008068857,379,87.726848797845236,452,86.267027304758798,2678,247.69335881286764,262,40.459856648287818,967,185.26737435393204,1475,198.9572818471342,387,73,469,69.296464556281663,1021,130.83195328359201,2230,204.89997559785115,285,61.220911460055866,299,47.010637094172637,688,160.58953888718904,2472,198.71587757398754,190,52.801515129776341,138,37.483329627982627,104,25,865,133.79461872586654,549,94.752308678997366,697,121.65936051122412,463,98.081598681913832,537,106.21205204683694,690,146.38647478507022,2217,246.91699009991191,979,156.46405337968207,1001,193.87624919004389,3132,260.92336039534672,472,115.96551211459379,1352,176.78235206037959,114,25.45584412271571,769,147.92227688891217,1151,162.93557008830209]
[null,"With ambulatory difficulty",118,101.9803902718557,47,29.966648127543394,25,25.495097567963924,102,55.226805085936306,59,57.245087125446844,68,47.169905660283021,62,41.048751503547585,369,130.43005788544295,31,19.416487838947599,295,153.15351775261317,248,134.61426373159719,7,16.278820596099706,31,26.40075756488817,81,{"$f":"SQRT((AD35^2)+(AD19^2))","v":70.213958726167832},191,81.344944526380985,10,9.8994949366116654,20,9.8994949366116654,56,39.623225512317902,261,103.76897416858277,13,18.601075237738275,18,23.706539182259394,7,6.7082039324993694,62,38.078865529319543,66,46.065171225124082,78,54.203320931470607,78,67.007462271003817,25,23.323807579381203,176,74.706090782479038,244,94.762861923857074,74,50.447993022517757,115,91.482238713315269,350,111.72287142747452,45,37.735924528226413,198,73.53910524340094,16,14.317821063276353,102,64.078077374403179,26,31.622776601683793]
[null,"With no ambulatory difficulty",784,166.29191201017565,522,85.632937588290176,279,84.599054368237475,355,73.246160308919954,430,92.114059730314779,311,78.568441501661468,390,78.517513969814402,2309,236.60304309116566,231,38.183766184073569,672,159.29846201391902,1227,185.80096878111266,380,72.249567472753768,438,69.296464556281663,940,139.51702405083043,2039,196.22945752358385,275,59.816385714952723,279,47.010637094172637,632,159.96249560443849,2211,197.3448757885545,177,51.224993899462788,120,34.058772731852805,97,24.839484696748443,803,131.59027319676784,483,93.338095116624274,619,114.80853626799707,385,83.240615086627031,512,110.43550153822818,514,129.49517365523704,1973,230.7834482799839,905,147.78700890132393,886,178.10390225932727,2782,259.58620918685182,427,115.27792503337315,1154,150.65523555456014,98,22.203603311174518,667,143.17821063276352,1125,164.26807358704855]
[null,"75  years and Older:",473,114.20157617125956,186,65,357,84.599054368237475,237,88.323269867006175,147,59.059292240933601,174,61.073725938409879,222,88.481636512894582,1189,211.52068456772733,191,50.209560842532767,311,114.5512985522207,1821,239.88538930080756,369,94.069123520951337,257,67.007462271003817,661,169.53170794869024,1468,184.58873205046942,86,30,152,38.209946349085598,388,127.66362050325849,1196,217.91970998512272,139,48.918299234540036,101,39.623225512317902,81,32.526911934581186,445,137.93114224133723,209,84.899941107164494,388,100.42410069301094,282,100.65783625729296,291,100.44899203078147,575,183.44754018519845,1239,202.60799589354809,436,111.12605455067681,497,152.26949793047851,2228,277.85247884444004,316,168.90825912311098,937,166.37307474468338,75,26.172504656604801,448,123.04470732217619,936,182.52123164169149]
[null,"With ambulatory difficulty",53,43.931765272977593,36,34.885527085024819,104,50,37,29.206163733020468,74,51.546095875439491,56,36.359317925395686,72,60.373835392494321,363,148.66068747318505,33,19.849433241279208,159,87.692645073575008,556,156.01281998605114,67,57.974132162542979,84,52.497618993626752,128,60.373835392494321,327,116.01724009818541,19,14.866068747318506,54,23.706539182259394,105,71.196910045310247,268,85.445889310135925,32,24.186773244895647,43,26.832815729997478,17,22.360679774997898,260,132.54810447531869,46,49.244289008980523,110,64.815121692395209,56,46.227697325304881,77,52.32590180780452,214,133.22537295875736,255,94.36630754670864,71,51.312766442669997,151,98.412397592986224,591,202.62526989494671,60,48.414873747640819,193,98.89893831583835,19,15.231546211727817,70,56.639209034025185,224,96.829747495281637]
[null,"With no ambulatory difficulty",420,110,150,59.076221950967721,253,72.006944109578768,200,82.764726786234249,73,35.608987629529715,118,52.430906915673319,150,59.203040462462738,826,164.29546554911369,158,47.423622805517503,152,87.80091115700337,1265,213.21585306913744,302,84.958813551037778,173,56.727418414731339,533,153.60013020827813,1141,161.52399202595259,67,32.249030993194197,98,30.528675044947494,283,112.43220179290273,928,196.468827043885,107,42.201895692018383,58,30.232432915661949,64,25.059928172283335,185,105.6882207249228,163,71.028163428319047,278,85,226,89.022469073824283,214,85.603738236130781,361,136.78084661238211,984,176.32356620712955,365,96.166522241370458,346,125.1758762701504,1637,251.83526361492744,256,159.10059710761615,744,153.56106277308712,56,18.027756377319946,378,118.1905241548577,712,160.55217220579732]
[]
[]
[]
[]
[]
[]
[]
[]
[]
[]
[]
[]
[]
[]
[]
[]
[]
[]
[]
[]
[]
[]
[]
[]
[]
[]
[]
[]
[]
[]
[]
[]
[]
[]
[]
["B18105. SEX BY AGE BY AMBULATORY DIFFICULTY\n\n-Calculated"]
["Universe:  Civilian non-institutionalized population 5 years and over"]
["Data Set: 2010-2014 American Community Survey 5-Year Estimates"]
[]
[]
[null,null,"Atkinson",null,"Auburn",null,"Brentwood",null,"Candia",null,"Chester",null,"Danville",null,"Deerfield",null,"Derry",null,"East Kingston",null,"Epping",null,"Exeter",null,"Fremont",null,"Greenland",null,"Hampstead",null,"Hampton",null,"Hampton Falls",null,"Kensington",null,"Kingston",null,"Londonderry",null,"New Castle",null,"Newfields",null,"Newington",null,"Newmarket",null,"Newton",null,"North Hampton",null,"Northwood",null,"Nottingham",null,"Plaistow",null,"Portsmouth",null,"Raymond",null,"Rye",null,"Salem",null,"Sandown",null,"Seabrook",null,"South Hampton",null,"Stratham",null,"Windham"]
[null,null,"Estimate","Margin Of Error","Estimate","Margin Of Error","Estimate","Margin Of Error","Estimate","Margin Of Error","Estimate","Margin Of Error","Estimate","Margin Of Error","Estimate","Margin Of Error","Estimate","Margin Of Error","Estimate","Margin Of Error","Estimate","Margin Of Error","Estimate","Margin Of Error","Estimate","Margin Of Error","Estimate","Margin Of Error","Estimate","Margin Of Error","Estimate","Margin Of Error","Estimate","Margin Of Error","Estimate","Margin Of Error","Estimate","Margin Of Error","Estimate","Margin Of Error","Estimate","Margin Of Error","Estimate","Margin Of Error","Estimate","Margin Of Error","Estimate","Margin Of Error","Estimate","Margin Of Error","Estimate","Margin Of Error","Estimate","Margin Of Error","Estimate","Margin Of Error","Estimate","Margin Of Error","Estimate","Margin Of Error","Estimate","Margin Of Error","Estimate","Margin Of Error","Estimate","Margin Of Error","Estimate","Margin Of Error","Estimate","Margin Of Error","Estimate","Margin Of Error","Estimate","Margin Of Error","Estimate","Margin Of Error"]
[null,"Total:",6577,124,4876,87,4025,175,3792,54,4528,101,4182,100,4117,84,31602,317,2320,128,6108,162,13612,249,4031,126,3467,88,8116,153,14350,223,2190,111,1954,136,5716,147,23171,187,940,158,1555,205,770,126,8481,150,4399,133,4062,126,3975,143,4581,101,7208,184,19726,352,9514,146,5146,114,27558,248,5680,180,8283,217,760,114,7007,165,13136,205]
[null,"5 to 17  years:",1220,209.34660255184463,962,143.93401265857906,1026,152.05262246998569,651,122.57650672131263,925,182.23611058184929,922,137.18600511714013,811,136.61991070118586,6028,450.62734049322842,420,68.818602136341013,976,218.04815981796315,2696,292.17973920174546,718,116.04309544302927,678,122.34786471369249,1471,211.3409567499873,2349,316.90061533547077,412,74.276510418839678,383,65.80273550544841,884,208.06008747474851,4891,333.04804458215932,94,49.203658400570177,377,79.195959492893323,71,29.206163733020468,1468,285.03508555965527,930,179.61069010501575,585,140.08925726121899,623,240.160363090998,765,117.6860229593982,1263,256.22255950637913,2321,287.21072403376581,1785,275.33434220961249,660,118.22436297142819,4582,386.87077946001557,1026,220.7306050369998,856,173.55690709389816,110,31.89043743820395,1413,197.64867821465441,2824,276.55198426335687]
[null,"With ambulatory difficulty",0,21.213203435596427,10,21.213203435596427,0,15.556349186104045,9,17.029386365926403,0,15.556349186104045,0,15.556349186104045,0,15.556349186104045,76,69.375788283809797,0,15.556349186104045,0,21.213203435596427,0,24.041630560342615,0,15.556349186104045,0,15.556349186104045,0,21.213203435596427,0,24.041630560342615,0,15.556349186104045,0,15.556349186104045,0,21.213203435596427,70,61.26989472816156,0,15.556349186104045,3,12.083045973594572,0,15.556349186104045,0,21.213203435596427,0,15.556349186104045,0,15.556349186104045,0,15.556349186104045,0,15.556349186104045,23,39.924929555354261,0,28.284271247461902,35,43.46262762420146,0,21.213203435596427,24,42.059481689626182,12,25.80697580112788,0,21.213203435596427,0,15.556349186104045,17,30.016662039607269,0,24.041630560342615]
[null,"With no ambulatory difficulty",1220,209.34660255184463,952,145.45446022724775,1026,152.05262246998569,642,123.23960402403117,925,182.23611058184929,922,137.18600511714013,811,136.61991070118586,5952,444.86514810670434,420,68.818602136341013,976,218.04815981796315,2696,292.17973920174546,718,116.04309544302927,678,122.34786471369249,1471,211.3409567499873,2349,316.90061533547077,412,74.276510418839678,383,65.80273550544841,884,208.06008747474851,4821,336.65709557352272,94,49.203658400570177,374,78.492037812761623,71,29.206163733020468,1468,285.03508555965527,930,179.61069010501575,585,140.08925726121899,623,240.160363090998,765,117.6860229593982,1240,257.93410011086166,2321,287.21072403376581,1750,276.58814146669414,660,118.22436297142819,4558,384.42294416436698,1014,221.46105752479374,856,173.55690709389816,110,31.89043743820395,1396,197.64867821465441,2824,276.55198426335687]
[null,"18 to 34  years:",981,199.42417105255822,797,185.52627846210896,525,138.77319625922004,543,105.41821474489122,793,148.55302083767936,748,138.70832707519762,599,119.20570456148481,7853,528.2319566251175,401,79.39773296511683,1067,207.71133815947553,2158,269.43088167468852,772,139.51702405083043,399,94.810336989170125,1330,206.60348496576722,1768,258.00193797721755,353,85.796270315206598,253,47.201694884823787,1077,209.38003725283841,4259,354.7745763157219,82,42.43819034784589,208,54.203320931470607,199,58.051701094799967,2434,300.70749907509787,885,199.98499943745782,526,127.02755606560333,693,159.66527487215245,734,161.44348856488452,1337,271.44796923167428,5132,464.96128871122164,2179,230.58620947489467,568,164.61470165206995,5430,423.58588267315992,1244,235.35717537394095,1769,531.26641151121157,116,40.311288741492746,910,207.87015177749788,2053,307.35321699959479]
[null,"With ambulatory difficulty",0,21.213203435596427,44,66.708320320631671,10,16.278820596099706,0,15.556349186104045,0,15.556349186104045,0,15.556349186104045,0,15.556349186104045,138,105.55093557141026,0,15.556349186104045,16,30.016662039607269,11,25.495097567963924,17,21.095023109728988,0,15.556349186104045,0,21.213203435596427,25,42.544094772365298,0,15.556349186104045,0,15.556349186104045,0,21.213203435596427,13,29.732137494637012,0,15.556349186104045,0,15.556349186104045,0,15.556349186104045,0,21.213203435596427,0,15.556349186104045,0,15.556349186104045,0,15.556349186104045,13,23.706539182259394,0,21.213203435596427,20,22.671568097509269,10,25.495097567963924,0,21.213203435596427,0,28.284271247461902,0,21.213203435596427,0,21.213203435596427,3,11.704699910719626,121,114.23659658795863,10,23.345235059857504]
[null,"With no ambulatory difficulty",981,199.42417105255822,753,165.0969412193939,515,137.2953021774598,543,105.41821474489122,793,148.55302083767936,748,138.70832707519762,599,119.20570456148481,7715,532.6584271369411,401,79.39773296511683,1051,208.49220608934041,2147,268.71546289709494,755,140.2640367307315,399,94.810336989170125,1330,206.60348496576722,1743,258.80494585691366,353,85.796270315206598,253,47.201694884823787,1077,209.38003725283841,4246,353.44165006405228,82,42.43819034784589,208,54.203320931470607,199,58.051701094799967,2434,300.70749907509787,885,199.98499943745782,526,127.02755606560333,693,159.66527487215245,721,159.45218719101973,1337,271.44796923167428,5112,465.53624993119496,2169,231.27689032845456,568,164.61470165206995,5430,423.58588267315992,1244,235.35717537394095,1769,531.26641151121157,113,41.012193308819754,789,203.19940944796076,2043,307.35321699959479]
[null,"35 to 64  years:",3245,188.09572031282372,2640,113.17243480636087,2088,124.84390253432484,2115,121.37956994486346,2342,131.03434664239754,2078,138.77319625922004,2258,115.97413504743201,14408,482.97929562249351,1061,65.053823869162372,3193,239.73527066328811,6190,306.18458485038076,2002,152.62044423995101,1815,136.03308421115798,3917,246.1097316239242,7316,330.49357028541419,1070,86.556340033529608,1064,73.246160308919954,2843,181.04143172213369,11391,305.52250326285298,436,91.285267157411553,798,91.934759476489631,353,51.623637996561229,3678,287.76726707532254,2160,146.38647478507022,2138,153.83757668398187,2027,153.63918770938616,2629,182.98087331740442,3572,268.06902096288559,8965,394.08755372378863,4525,286.00699292150182,2676,222.87440409342656,13162,403.75859123986453,2858,185.97042775667319,3903,344.98840560227529,400,52.497618993626752,3798,176.47662734764623,6470,269.32879534130768]
[null,"With ambulatory difficulty",88,64.637450444769243,60,40.496913462633174,11,17.029386365926403,65,46.238512086787566,84,46.010868281309364,77,48.795491595023407,92,69.426219830839131,1008,235.46761985462035,38,19.723082923316021,298,133.98880550254935,269,136.40014662748717,79,39.623225512317902,44,36.055512754639892,70,31.827660925679098,268,94.641428560646744,23,18.027756377319946,48,30,117,79.711981533518539,380,112.92918134831227,0,15.556349186104045,11,10,9,8.5440037453175304,249,108.40664186294121,107,61.554853586049575,51,33.941125496954278,58,40.607881008493905,126,58.591808301161009,233,114.05700329221349,474,141.49558296992879,526,160.43067038443741,42,47.381430961928537,574,199.12307751739877,92,55.97320787662612,434,167.65738874263789,11,8.0622577482985491,150,123.10970717209915,85,61.98386886924694]
[null,"With no ambulatory difficulty",3157,180.31361568112376,2580,112.48555462813881,2077,126.15070352558483,2050,129.20139318134306,2258,140.58449416631979,2001,139.34489585198304,2166,122.38055401083949,13400,515.62098483285183,1023,65.79513659838392,2895,240.26027553467927,5921,290.51850199255813,1923,157.61345120261785,1771,137.80058055030102,3847,245.36707195546839,7048,342.14762895568924,1047,86.05230967266364,1016,75.213030785895072,2726,185.45619428857049,11011,306.89737698455491,436,91.285267157411553,787,92.655275079188016,344,50.911688245431421,3429,288.46663585239804,2053,144.97241116847025,2087,155.24174696260025,1969,150.81445554057476,2503,190.26297590440447,3339,270.56237728109943,8491,395.32391781929914,3999,288.25162618795406,2634,220.23850707812201,12588,454.00991178607546,2766,195.20758181996928,3469,355.83282591689039,389,52.497618993626752,3648,225.51496624392803,6385,274.05291459862275]
[null,"65 to 74  years:",622,142.43595051811886,313,60.811183182043088,243,62.241465278381739,315,86.313382508160345,322,86.278618440491968,226,92.849340331528467,336,76.216796049164913,1839,212.20744567521658,313,50.447993022517757,548,148.40485167271319,1351,169.01183390520322,395,93.434469014384618,280,65.299310869258036,935,145.60219778561037,1728,187.49133313302778,241,45.793012567421243,190,32.015621187164243,564,132.90974381135493,1892,218.58865478336244,154,45.967379738244816,87,32.015621187164243,87,31.827660925679098,513,107.44766167767449,249,84.958813551037778,526,101.86265262597475,405,95.414883535012507,279,66.030296076876709,527,141.24092891226678,1831,211.51832071950648,741,164.65721970202219,554,190.4337155022713,2700,270.86712609691119,325,86.313382508160345,1081,206.86710710018642,80,19.798989873223331,475,116.03878661895772,952,201.13676938839401]
[null,"With ambulatory difficulty",57,45.276925690687087,15,21.931712199461309,49,35.383612025908263,28,27.202941017470888,34,27.313000567495326,26,29.154759474226502,17,19.104973174542799,181,71.805292284064961,18,15.811388300841896,28,35.341194094144583,227,99.478640923567099,26,22.203603311174518,15,16.278820596099706,57,33.97057550292606,150,65.604877867426907,0,15.556349186104045,16,9.8994949366116654,38,35.227829907617071,158,65,0,15.556349186104045,12,9.2195444572928871,14,9.8488578017961039,65,53.150729063673246,19,18.601075237738275,65,38.078865529319543,63,39.623225512317902,34,22.472205054244231,81,76.967525619575426,245,92.649878575203758,83,49.203658400570177,51,39.824615503479755,343,109.62207806824317,41,41.785164831552358,213,103.27632836231156,0,15.556349186104045,81,57.801384066473702,61,61.684682053164543]
[null,"With no ambulatory difficulty",565,140.20698984002189,298,62.241465278381739,194,55.901699437494742,287,85.586213843118443,288,83.546394296821688,200,90.271811768680038,319,79.202272694664515,1658,214.39449619801343,295,50.328918128646478,520,150,1124,159.10059710761615,369,91.967385523347346,265,64.536811201050213,878,139.40229553346674,1578,187.5446613476374,241,45.793012567421243,174,31.240998703626616,526,128.06248474865697,1734,211.02132593650339,154,45.967379738244816,75,29.206163733020468,73,31.144823004794873,448,92.005434622091755,230,85.702975444263316,461,96.876209669866839,342,89.587945617700157,245,63.253458403473878,446,125.99206324209474,1586,214.01401823245129,658,158.90248582070703,503,190.4337155022713,2357,257.52669764511796,284,83.438600180012614,868,189.90787240133042,80,19.798989873223331,394,106.66770832824712,891,191.55155963865187]
[null,"75  years and Older:",509,126.73200069437868,164,48.166378315169183,143,48.020828814171878,168,75.153176912223742,146,63.513778032801667,208,81.320354155647891,113,49.51767361255979,1474,212.41704263076446,125,41.617304093369626,324,158.52129194527782,1217,191.12822920751398,144,65,295,65.604877867426907,463,129.634100452003,1189,214.86972797488249,114,36.76955262170047,64,21.400934559032695,348,106.88779163215975,738,145.45446022724775,174,49.51767361255979,85,30.413812651491099,60,22.671568097509269,388,144.01388821915754,175,61.073725938409879,287,74.94664769020693,227,93.605555390692487,174,63.890531379853151,509,145.42695761102891,1477,193.70596273734063,284,82.97590011563598,688,186.45374761586316,1684,235.77955806218657,227,84.38601779915912,674,213.71476317746513,54,21.2602916254693,411,99.297532698451278,837,214.27319011019554]
[null,"With ambulatory difficulty",63,43.840620433565945,15,22.671568097509269,15,19.416487838947599,61,58.523499553598128,58,47.074409183759279,81,51.662365412357957,37,29.206163733020468,496,157.8131806916013,20,15.524174696260024,143,108.90821823902914,318,121.82774724995944,38,45.354161881794269,72,41.036569057366385,50,36.61966684720111,288,112.80070921762859,28,19.723082923316021,18,9.8488578017961039,96,57.140178508646613,145,67.97793759742936,36,19.416487838947599,24,16.124515496597098,12,10.295630140987001,103,49.091750834534309,36,25.80697580112788,95,51.478150704935004,30,27.313000567495326,22,24.596747752497688,131,90.027773492406226,320,119.86659251017358,46,38.078865529319543,164,99.624294225856374,606,158.38244852255568,91,57.280013966478741,205,139.71399357258383,11,13.038404810405298,101,58.872744118140105,152,102.85912696499032]
[null,"With no ambulatory difficulty",446,124.65151423067431,149,45.967379738244816,128,47.169905660283021,107,45,88,39.408120990476064,127,65.069193939989759,76,39.824615503479755,978,204.48227307030797,105,40.80441152620633,181,117.04699910719626,899,145.42695761102891,106,48.104053883222775,223,61.846584384264908,413,121.6552506059644,901,180.20543831971332,86,32.649655434629018,46,19.209372712298546,252,101.23734488813898,593,131.52186130069785,138,46.690470119715009,61,25.495097567963924,48,18.867962264113206,285,135.95587519485872,139,53.150729063673246,192,60.207972893961475,197,88.600225733346747,152,58.694122363316758,378,133.70115930686615,1157,181.34221791960084,238,80.156097709406993,524,159.0125781188394,1078,205.60155641434235,136,71.56116265125938,469,182.53766734567415,43,19.798989873223331,310,84.958813551037778,685,196.98730923589977]

{"sheet":"ACS_Table_B18106","index":36,"n_rows":122,"n_cols":76,"rows_kept":122,"cut":false,"hidden":true,"merged":[]}
["B18106. SEX BY AGE BY SELF-CARE DIFFICULTY\n\n\n\n"]
["Universe:  Civilian non-institutionalized population 5 years and over"]
["Data Set: 2015-2019 American Community Survey 5-Year Estimates"]
[]
[null,null,"Atkinson",null,"Auburn",null,"Brentwood",null,"Candia",null,"Chester",null,"Danville",null,"Deerfield",null,"Derry",null,"East Kingston",null,"Epping",null,"Exeter",null,"Fremont",null,"Greenland",null,"Hampstead",null,"Hampton",null,"Hampton Falls",null,"Kensington",null,"Kingston",null,"Londonderry",null,"New Castle",null,"Newfields",null,"Newington",null,"Newmarket",null,"Newton",null,"North Hampton",null,"Northwood",null,"Nottingham",null,"Plaistow",null,"Portsmouth",null,"Raymond",null,"Rye",null,"Salem",null,"Sandown",null,"Seabrook",null,"South Hampton",null,"Stratham",null,"Windham"]
[null,null,"Estimate","Margin Of Error","Estimate","Margin Of Error","Estimate","Margin Of Error","Estimate","Margin Of Error","Estimate","Margin Of Error","Estimate","Margin Of Error","Estimate","Margin Of Error","Estimate","Margin Of Error","Estimate","Margin Of Error","Estimate","Margin Of Error","Estimate","Margin Of Error","Estimate","Margin Of Error","Estimate","Margin Of Error","Estimate","Margin Of Error","Estimate","Margin Of Error","Estimate","Margin Of Error","Estimate","Margin Of Error","Estimate","Margin Of Error","Estimate","Margin Of Error","Estimate","Margin Of Error","Estimate","Margin Of Error","Estimate","Margin Of Error","Estimate","Margin Of Error","Estimate","Margin Of Error","Estimate","Margin Of Error","Estimate","Margin Of Error","Estimate","Margin Of Error","Estimate","Margin Of Error","Estimate","Margin Of Error","Estimate","Margin Of Error","Estimate","Margin Of Error","Estimate","Margin Of Error","Estimate","Margin Of Error","Estimate","Margin Of Error","Estimate","Margin Of Error","Estimate","Margin Of Error","Estimate","Margin Of Error"]
[null,"Total:",6677,150,5104,98,4042,156,3756,88,4864,87,4371,77,4291,93,31612,320,2384,190,6514,124,14269,222,4365,116,3829,64,8233,140,14972,156,2319,161,2131,127,6040,145,24522,218,817,169,1675,209,682,82,8603,151,4717,92,4341,60,4146,78,4769,110,7408,130,19886,257,9854,197,5236,121,27617,335,6003,145,8597,96,756,94,7102,112,13568,192]
[null,"Male:",3332,234,2573,146,2020,105,1987,137,2425,164,2241,125,2070,115,15667,489,1184,146,3290,230,6517,312,2164,141,1811,97,4001,254,7253,277,1256,103,1079,78,3170,269,11994,324,379,101,779,103,346,56,4449,259,2468,188,2058,122,1900,145,2197,135,3458,268,9504,385,4879,299,2787,203,13903,437,2958,212,4189,208,361,49,3603,242,6817,323]
[null,"5 to 17  years:",604,207,391,97,501,84,267,114,466,107,427,121,359,98,2877,337,262,87,579,179,1074,190,297,94,286,77,741,168,927,159,230,57,176,55,447,184,2425,261,58,55,114,40,30,18,650,194,361,87,228,96,262,82,311,104,462,163,1198,203,858,240,364,99,1951,275,578,155,569,160,49,20,827,169,1412,251]
[null,"With self care difficulty",18,29,0,16,0,11,0,11,9,14,0,11,0,11,50,76,5,7,0,16,15,24,0,11,22,25,27,41,10,16,6,10,4,5,0,16,43,38,0,11,0,11,0,11,0,16,0,11,0,11,0,11,0,16,0,16,0,21,0,18,0,16,43,44,20,30,19,32,0,11,0,16,0,18]
[null,"With no self care difficulty",586,210,391,97,501,84,267,114,457,107,427,121,359,98,2827,334,257,87,579,179,1059,187,297,94,264,65,714,166,917,160,224,55,172,55,447,184,2382,251,58,55,114,40,30,18,650,194,361,87,228,96,262,82,311,104,462,163,1198,203,858,240,364,99,1908,280,558,154,550,152,49,20,827,169,1412,251]
[null,"18 to 34  years:",529,159,451,110,177,73,335,97,521,167,350,82,449,94,3469,371,172,65,740,212,1122,240,382,96,275,80,818,124,1241,211,248,78,211,51,854,247,2336,248,33,27,105,38,57,40,1407,230,615,141,340,109,319,86,401,90,919,218,2691,306,1085,263,406,178,3676,376,739,152,650,157,67,26,506,172,1065,288]
[null,"With self care difficulty",0,16,0,16,13,21,0,11,0,16,37,29,0,11,21,31,7,11,17,26,12,18,0,11,0,11,8,13,0,18,0,11,0,11,0,16,6,11,5,7,8,9,0,11,0,16,13,19,0,11,0,11,0,16,17,28,4,7,7,16,14,23,26,32,0,16,16,24,3,4,0,16,29,31]
[null,"With no self care difficulty",529,159,451,110,164,73,335,97,521,167,313,78,449,94,3448,374,165,63,723,213,1110,238,382,96,275,80,810,123,1241,211,248,78,211,51,854,247,2330,249,28,24,97,37,57,40,1407,230,602,144,340,109,319,86,401,90,902,215,2687,305,1078,263,392,180,3650,381,739,152,634,159,64,25,506,172,1036,282]
[null,"35 to 64  years:",1560,134,1325,85,1092,91,967,101,1106,71,1168,95,926,94,7546,340,533,48,1340,184,3024,251,1114,102,889,96,1600,143,3373,210,575,75,459,48,1299,186,5642,233,142,51,431,63,176,34,1770,196,1097,81,1008,115,975,109,1134,129,1498,195,4083,256,2254,220,1318,186,5934,286,1326,171,1970,181,151,26,1683,158,3335,186]
[null,"With self care difficulty",0,16,0,16,0,11,52,34,0,16,0,11,0,11,145,74,0,11,15,26,42,66,0,11,26,38,0,16,106,68,0,11,4,5,19,31,92,66,0,11,8,9,2,4,12,18,0,11,33,42,0,11,9,15,51,69,91,92,33,34,0,16,85,66,16,25,39,31,0,11,22,33,20,32]
[null,"With no self care difficulty",1560,134,1325,85,1092,91,915,108,1106,71,1168,95,926,94,7401,350,533,48,1325,181,2982,231,1114,102,863,107,1600,143,3267,212,575,75,455,48,1280,177,5550,237,142,51,423,62,174,33,1758,194,1097,81,975,112,975,109,1125,128,1447,195,3992,249,2221,208,1318,186,5849,286,1310,169,1931,181,151,26,1661,163,3315,182]
[null,"65 to 74  years:",412,112,351,62,142,50,258,48,286,81,202,60,221,61,1273,154,125,26,497,130,567,100,155,48,242,49,522,91,1041,128,142,48,162,37,339,110,1124,152,83,32,77,27,45,15,392,99,293,67,338,76,213,62,197,65,327,102,1003,142,504,105,484,132,1535,185,228,82,710,124,63,18,359,109,562,122]
[null,"With self care difficulty",0,16,0,16,0,11,9,16,5,10,9,14,0,11,18,21,0,11,12,18,33,32,0,11,0,11,0,16,40,47,0,11,3,4,4,9,17,19,0,11,0,11,0,11,26,29,10,15,27,44,9,14,8,11,17,24,9,14,0,18,0,16,36,39,18,27,136,96,2,3,16,25,0,18]
[null,"With no self care difficulty",412,112,351,62,142,50,249,49,281,80,193,58,221,61,1255,153,125,26,485,129,534,103,155,48,242,49,522,91,1001,122,142,48,159,37,335,110,1107,151,83,32,77,27,45,15,366,92,283,67,311,69,204,61,189,65,310,99,994,144,504,105,484,132,1499,189,210,87,574,108,61,18,343,108,562,122]
[null,"75  years and Older:",227,91,55,33,108,41,160,76,46,28,94,47,115,73,502,145,92,36,134,81,730,149,216,68,119,53,320,110,671,133,61,24,71,26,231,97,467,140,63,32,52,29,38,23,230,95,102,58,144,62,131,66,154,69,252,122,529,123,178,82,215,95,807,171,87,57,290,76,31,19,228,86,443,125]
[null,"With self care difficulty",13,22,0,16,0,11,16,18,0,16,0,11,34,53,81,52,21,14,17,27,88,76,0,11,20,20,25,29,9,10,5,8,6,6,25,28,49,41,0,11,3,4,11,22,96,78,0,11,4,10,0,11,10,17,0,16,0,21,0,18,20,31,119,109,24,30,24,30,0,11,0,16,33,40]
[null,"With no self care difficulty",214,89,55,33,108,41,144,73,46,28,94,47,81,38,421,136,71,36,117,79,642,143,216,68,99,50,295,106,662,133,56,27,65,25,206,96,418,119,63,32,49,29,27,11,134,68,102,58,140,60,131,66,144,68,252,122,529,123,178,82,195,93,688,140,63,46,266,77,31,19,228,86,410,118]
[null,"Female:",3345,255,2531,159,2022,125,1769,123,2439,136,2130,117,2221,116,15945,507,1200,94,3224,194,7752,332,2201,129,2018,113,4232,236,7719,289,1063,99,1052,86,2870,294,12528,279,438,91,896,126,336,47,4154,268,2249,171,2283,122,2246,180,2572,125,3950,282,10382,370,4975,283,2449,184,13714,446,3045,244,4408,179,395,60,3499,244,6751,284]
[null,"5 to 17  years:",506,192,380,106,345,81,204,67,364,95,377,101,343,85,2599,285,217,42,345,121,1134,153,350,88,491,105,718,160,1084,159,141,39,135,36,495,174,2081,188,52,35,232,72,30,18,482,169,343,91,469,151,341,68,523,122,648,148,1304,179,860,278,241,83,1691,308,429,195,506,137,65,28,501,162,1586,213]
[null,"With self care difficulty",0,16,0,16,0,11,0,11,0,16,14,21,0,11,0,24,3,7,0,16,0,18,0,11,0,11,0,16,0,18,0,11,0,11,0,16,10,16,0,11,0,11,0,11,0,16,0,11,0,11,0,11,13,20,51,51,0,21,0,18,16,25,39,57,0,16,0,16,0,11,0,16,13,22]
[null,"With no self care difficulty",506,192,380,106,345,81,204,67,364,95,363,104,343,85,2599,285,214,40,345,121,1134,153,350,88,491,105,718,160,1084,159,141,39,135,36,495,174,2071,188,52,35,232,72,30,18,482,169,343,91,469,151,341,68,510,120,597,138,1304,179,860,278,225,76,1652,302,429,195,506,137,65,28,501,162,1573,215]
[null,"18 to 34  years:",486,162,460,115,249,74,342,101,542,109,346,80,569,98,3964,412,197,56,663,176,1491,232,394,80,249,79,746,145,1091,203,186,76,175,45,589,189,2397,278,28,24,108,34,37,19,1283,211,421,117,201,86,518,180,344,94,829,214,2822,298,1007,177,173,85,2986,359,675,143,688,163,58,24,543,168,634,186]
[null,"With self care difficulty",0,16,0,16,0,11,0,11,0,16,0,11,6,10,1,4,0,11,14,26,7,11,0,11,0,11,27,42,0,18,0,11,0,11,0,16,59,39,0,11,0,11,0,11,12,19,11,17,0,11,0,11,0,16,0,16,0,21,6,11,17,26,26,31,1,2,0,16,0,11,0,16,0,18]
[null,"With no self care difficulty",486,162,460,115,249,74,342,101,542,109,346,80,563,99,3963,411,197,56,649,178,1484,231,394,80,249,79,719,143,1091,203,186,76,175,45,589,189,2338,274,28,24,108,34,37,19,1271,209,410,118,201,86,518,180,344,94,829,214,2822,298,1001,178,156,86,2960,356,674,142,688,163,58,24,543,168,634,186]
[null,"35 to 64  years:",1617,137,1342,94,1017,94,947,71,1229,96,1150,87,971,89,7290,368,550,42,1569,174,3128,242,1072,85,913,98,1928,177,3558,175,568,53,524,61,1280,180,5973,229,175,61,446,60,167,29,1701,153,1122,94,1010,90,986,105,1228,95,1787,192,4332,304,2375,229,1236,150,6019,258,1468,130,1925,195,177,32,1825,149,3449,192]
[null,"With self care difficulty",0,16,0,16,0,11,39,36,0,16,16,21,44,48,222,119,0,11,43,32,58,42,24,26,35,43,9,14,43,33,0,11,13,16,20,31,74,47,0,11,11,11,3,4,35,39,11,17,0,11,25,25,51,35,13,21,32,24,29,33,0,16,150,90,0,16,61,57,0,11,23,28,0,18]
[null,"With no self care difficulty",1617,137,1342,94,1017,94,908,77,1229,96,1134,89,927,103,7068,376,550,42,1526,175,3070,248,1048,87,878,77,1919,177,3515,174,568,53,511,60,1260,181,5899,228,175,61,435,58,164,29,1666,145,1111,94,1010,90,961,111,1177,95,1774,193,4300,303,2346,234,1236,150,5869,274,1468,130,1864,199,177,32,1802,144,3449,192]
[null,"65 to 74  years:",490,153,218,56,162,71,199,43,203,70,177,64,231,61,1405,194,137,31,470,132,908,172,232,55,227,49,499,94,1189,160,143,38,137,29,349,117,1348,128,107,42,61,26,59,20,473,90,256,67,359,95,250,76,340,84,363,105,1214,202,475,116,517,142,1597,184,244,82,642,126,51,18,410,100,589,108]
[null,"With self care difficulty",13,20,9,13,0,11,29,29,0,16,10,16,0,11,74,59,0,11,0,16,75,65,0,11,8,13,0,16,25,28,0,11,3,4,0,16,51,28,21,21,0,11,0,11,0,16,0,11,0,11,0,11,9,14,0,16,48,32,20,32,0,16,48,44,0,16,0,16,2,3,20,30,11,17]
[null,"With no self care difficulty",477,150,209,58,162,71,170,45,203,70,167,62,231,61,1331,206,137,31,470,132,833,152,232,55,219,48,499,94,1164,164,143,38,134,29,349,117,1297,135,86,36,61,26,59,20,473,90,256,67,359,95,250,76,331,84,363,105,1166,198,455,113,517,142,1549,185,244,82,642,126,49,17,390,101,578,109]
[null,"75  years and Older:",246,69,131,56,249,74,77,45,101,52,80,39,107,50,687,154,99,35,177,81,1091,188,153,65,138,41,341,129,797,128,25,18,81,28,157,83,729,167,76,37,49,27,43,23,215,100,107,62,244,79,151,76,137,73,323,137,710,161,258,75,282,119,1421,219,229,159,647,148,44,18,220,88,493,133]
[null,"With self care difficulty",0,16,14,20,32,28,0,11,54,52,11,17,0,11,89,74,5,9,55,50,123,91,0,11,0,11,15,24,72,71,0,11,19,9,0,16,89,59,0,11,6,6,0,11,110,85,0,11,40,45,0,11,29,42,69,89,77,46,9,12,78,99,92,64,15,23,88,85,5,5,17,27,47,44]
[null,"With no self care difficulty",246,69,117,53,217,65,77,45,47,30,69,37,107,50,598,143,94,34,122,76,968,171,153,65,138,41,326,124,725,114,25,18,62,27,157,83,640,162,76,37,43,27,43,23,105,52,107,62,204,70,151,76,108,63,254,111,633,158,249,74,204,96,1329,213,214,155,559,136,39,17,203,85,446,128]
[]
[]
[{"$f":"A1& \"-Calculated\"","v":"B18106. SEX BY AGE BY SELF-CARE DIFFICULTY\n\n\n\n-Calculated"}]
[{"$f":"A2","v":"Universe:  Civilian non-institutionalized population 5 years and over"}]
[{"$f":"A3","v":"Data Set: 2015-2019 American Community Survey 5-Year Estimates"}]
[]
[]
[null,null,"Atkinson",null,"Auburn",null,"Brentwood",null,"Candia",null,"Chester",null,"Danville",null,"Deerfield",null,"Derry",null,"East Kingston",null,"Epping",null,"Exeter",null,"Fremont",null,"Greenland",null,"Hampstead",null,"Hampton",null,"Hampton Falls",null,"Kensington",null,"Kingston",null,"Londonderry",null,"New Castle",null,"Newfields",null,"Newington",null,"Newmarket",null,"Newton",null,"North Hampton",null,"Northwood",null,"Nottingham",null,"Plaistow",null,"Portsmouth",null,"Raymond",null,"Rye",null,"Salem",null,"Sandown",null,"Seabrook",null,"South Hampton",null,"Stratham",null,"Windham"]
[null,null,"Estimate","Margin Of Error","Estimate","Margin Of Error","Estimate","Margin Of Error","Estimate","Margin Of Error","Estimate","Margin Of Error","Estimate","Margin Of Error","Estimate","Margin Of Error","Estimate","Margin Of Error","Estimate","Margin Of Error","Estimate","Margin Of Error","Estimate","Margin Of Error","Estimate","Margin Of Error","Estimate","Margin Of Error","Estimate","Margin Of Error","Estimate","Margin Of Error","Estimate","Margin Of Error","Estimate","Margin Of Error","Estimate","Margin Of Error","Estimate","Margin Of Error","Estimate","Margin Of Error","Estimate","Margin Of Error","Estimate","Margin Of Error","Estimate","Margin Of Error","Estimate","Margin Of Error","Estimate","Margin Of Error","Estimate","Margin Of Error","Estimate","Margin Of Error","Estimate","Margin Of Error","Estimate","Margin Of Error","Estimate","Margin Of Error","Estimate","Margin Of Error","Estimate","Margin Of Error","Estimate","Margin Of Error","Estimate","Margin Of Error","Estimate","Margin Of Error","Estimate","Margin Of Error","Estimate","Margin Of Error"]
[null,"Total:",{"$f":"C7","v":6677},150,5104,98,4042,156,3756,88,4864,87,4371,77,4291,93,31612,320,2384,190,6514,124,14269,222,{"$f":"Y7","v":4365},116,3829,64,8233,140,14972,156,2319,161,2131,127,6040,145,24522,218,817,169,1675,209,682,82,8603,151,4717,92,4341,60,4146,78,4769,110,7408,130,19886,257,9854,197,5236,121,27617,335,6003,145,8597,96,756,94,7102,112,13568,192]
[null,"5 to 17  years:",{"$f":"C25+C9","v":1110},{"$f":"SQRT((D25^2)+(D9^2))","v":282.33490751233722},{"$f":"E25+E9","v":771},{"$f":"SQRT((F25^2)+(F9^2))","v":143.68368035375485},{"$f":"G25+G9","v":846},{"$f":"SQRT((H25^2)+(H9^2))","v":116.69190203266035},{"$f":"I25+I9","v":471},{"$f":"SQRT((J25^2)+(J9^2))","v":132.23085872821065},{"$f":"K25+K9","v":830},{"$f":"SQRT((L25^2)+(L9^2))","v":143.0873858870865},{"$f":"M25+M9","v":804},{"$f":"SQRT((N25^2)+(N9^2))","v":157.61345120261785},{"$f":"O25+O9","v":702},{"$f":"SQRT((P25^2)+(P9^2))","v":129.72663566130126},{"$f":"Q25+Q9","v":5476},{"$f":"SQRT((R25^2)+(R9^2))","v":441.35473261312154},{"$f":"S25+S9","v":479},{"$f":"SQRT((T25^2)+(T9^2))","v":96.607453128627711},{"$f":"U25+U9","v":924},{"$f":"SQRT((V25^2)+(V9^2))","v":216.06017680266763},{"$f":"W25+W9","v":2208},{"$f":"SQRT((X25^2)+(X9^2))","v":243.94466585682909},{"$f":"Y25+Y9","v":647},{"$f":"SQRT((Z25^2)+(Z9^2))","v":128.76334882255898},{"$f":"AA25+AA9","v":777},{"$f":"SQRT((AB25^2)+(AB9^2))","v":130.20752666416791},{"$f":"AC25+AC9","v":1459},{"$f":"SQRT((AD25^2)+(AD9^2))","v":232},{"$f":"AE25+AE9","v":2011},{"$f":"SQRT((AF25^2)+(AF9^2))","v":224.85995641732211},{"$f":"AG25+AG9","v":371},{"$f":"SQRT((AH25^2)+(AH9^2))","v":69.06518659932803},{"$f":"AI25+AI9","v":311},{"$f":"SQRT((AJ25^2)+(AJ9^2))","v":65.73431371817918},{"$f":"AK25+AK9","v":942},{"$f":"SQRT((AL25^2)+(AL9^2))","v":253.24296633865274},{"$f":"AM25+AM9","v":4506},{"$f":"SQRT((AN25^2)+(AN9^2))","v":321.65975812961125},{"$f":"AO25+AO9","v":110},{"$f":"SQRT((AP25^2)+(AP9^2))","v":65.192024052026483},{"$f":"AQ25+AQ9","v":346},{"$f":"SQRT((AR25^2)+(AR9^2))","v":82.365041127896006},{"$f":"AS25+AS9","v":60},{"$f":"SQRT((AT25^2)+(AT9^2))","v":25.45584412271571},{"$f":"AU25+AU9","v":1132},{"$f":"SQRT((AV25^2)+(AV9^2))","v":257.28777662376422},{"$f":"AW25+AW9","v":704},{"$f":"SQRT((AX25^2)+(AX9^2))","v":125.89678312014172},{"$f":"AY25+AY9","v":697},{"$f":"SQRT((AZ25^2)+(AZ9^2))","v":178.93294833540301},{"$f":"BA25+BA9","v":603},{"$f":"SQRT((BB25^2)+(BB9^2))","v":106.5269918846862},{"$f":"BC25+BC9","v":834},{"$f":"SQRT((BD25^2)+(BD9^2))","v":160.31219541881399},{"$f":"BE25+BE9","v":1110},{"$f":"SQRT((BF25^2)+(BF9^2))","v":220.16584657934573},{"$f":"BG25+BG9","v":2502},{"$f":"SQRT((BH25^2)+(BH9^2))","v":270.64737205448716},{"$f":"BI25+BI9","v":1718},{"$f":"SQRT((BJ25^2)+(BJ9^2))","v":367.26557148744558},{"$f":"BK25+BK9","v":605},{"$f":"SQRT((BL25^2)+(BL9^2))","v":129.18978287774928},{"$f":"BM25+BM9","v":3642},{"$f":"SQRT((BN25^2)+(BN9^2))","v":412.90313634071612},{"$f":"BO25+BO9","v":1007},{"$f":"SQRT((BP25^2)+(BP9^2))","v":249.09837414162303},{"$f":"BQ25+BQ9","v":1075},{"$f":"SQRT((BR25^2)+(BR9^2))","v":210.63950246807934},{"$f":"BS25+BS9","v":114},{"$f":"SQRT((BT25^2)+(BT9^2))","v":34.409301068170507},{"$f":"BU25+BU9","v":1328},{"$f":"SQRT((BV25^2)+(BV9^2))","v":234.10467744152402},{"$f":"BW25+BW9","v":2998},{"$f":"SQRT((BX25^2)+(BX9^2))","v":329.1959902550455}]
[null,"With self care difficulty",18,33.120990323358392,0,22.627416997969522,0,15.556349186104045,0,15.556349186104045,9,21.2602916254693,14,23.706539182259394,0,15.556349186104045,50,79.699435380685102,8,9.8994949366116654,0,22.627416997969522,15,30,0,15.556349186104045,22,27.313000567495326,27,44.011362169330773,10,24.083189157584592,6,14.866068747318506,4,12.083045973594572,0,22.627416997969522,53,41.231056256176608,0,15.556349186104045,0,15.556349186104045,0,15.556349186104045,0,22.627416997969522,0,15.556349186104045,0,15.556349186104045,0,15.556349186104045,13,25.612496949731394,51,53.450912059571067,0,29.698484809834994,0,25.45584412271571,16,29.681644159311659,82,72.006944109578768,20,34,19,35.777087639996637,0,15.556349186104045,0,22.627416997969522,13,28.42534080710379]
[null,"With no self care difficulty",1092,284.54173683310501,771,143.68368035375485,846,116.69190203266035,471,132.23085872821065,821,143.0873858870865,790,159.55249919697278,702,129.72663566130126,5426,439.06833181180355,471,95.75489543621255,924,216.06017680266763,2193,241.61539686038222,647,128.76334882255898,755,123.49089035228469,1432,230.5558500667463,2001,225.56817151362469,365,67.424031324150292,307,65.73431371817918,942,253.24296633865274,4453,313.60006377550371,110,65.192024052026483,346,82.365041127896006,60,25.45584412271571,1132,257.28777662376422,704,125.89678312014172,697,178.93294833540301,603,106.5269918846862,821,158.79546593023366,1059,213.57200191036279,2502,270.64737205448716,1718,367.26557148744558,589,124.80785231707178,3560,411.83006204015754,987,248.47736315407084,1056,204.62893246068603,114,34.409301068170507,1328,234.10467744152402,2985,330.49357028541419]
[null,"18 to 34  years:",1015,226.99118925632334,911,159.13830462839547,426,103.9471019317037,677,140.03570973148243,1063,199.42417105255822,696,114.56002793295748,1018,135.79396157414365,7433,554.42312361588961,369,85.796270315206598,1403,275.5358415887124,2613,333.80233672040106,776,124.96399481450646,524,112.43220179290273,1564,190.79046097748179,2332,292.79685790663808,434,108.90362712049586,386,68.01470429252781,1443,311.01446911679204,4733,372.54261501202785,61,36.124783736376884,213,50.990195135927848,94,44.283179650969061,2690,312.1233730434169,1036,183.22117781522965,541,138.84163640637487,837,199.48934808655824,745,130.13838787997952,1748,305.48322376196046,5513,427.12995680471766,2092,317.0141952657641,579,197.25364381932212,6662,519.86248181610495,1414,208.69355524308841,1338,226.31394124092313,125,35.383612025908263,1049,240.4329428343795,1699,342.84107105187968]
[null,"With self care difficulty",0,22.627416997969522,0,22.627416997969522,13,23.706539182259394,0,15.556349186104045,0,22.627416997969522,37,31.016124838541646,6,14.866068747318506,22,31.256999216175569,7,15.556349186104045,31,36.76955262170047,19,21.095023109728988,0,15.556349186104045,0,15.556349186104045,35,43.965895873961216,0,25.45584412271571,0,15.556349186104045,0,15.556349186104045,0,22.627416997969522,65,40.521599178709621,5,13.038404810405298,8,14.212670403551895,0,15.556349186104045,12,24.839484696748443,24,25.495097567963924,0,15.556349186104045,0,15.556349186104045,0,22.627416997969522,17,32.249030993194197,4,22.135943621178654,13,19.416487838947599,31,34.713109915419565,52,44.553338819890925,1,16.124515496597098,16,28.844410203711913,3,11.704699910719626,0,22.627416997969522,29,35.846896657869841]
[null,"With no self care difficulty",1015,226.99118925632334,911,159.13830462839547,413,103.9471019317037,677,140.03570973148243,1063,199.42417105255822,659,111.73182178770737,1012,136.517398158623,7411,555.69506026237093,362,84.291162051546067,1372,277.58422145359776,2594,331.67001673349972,776,124.96399481450646,524,112.43220179290273,1529,188.62131374794313,2332,292.79685790663808,434,108.90362712049586,386,68.01470429252781,1443,311.01446911679204,4668,370.23911192633335,56,33.941125496954278,205,50.24937810560445,94,44.283179650969061,2678,310.77483810630486,1012,186.17196351760379,541,138.84163640637487,837,199.48934808655824,745,130.13838787997952,1731,303.34963326168702,5509,426.41411796515371,2079,317.57361351346555,548,199.48934808655824,6610,521.43743632386042,1413,208.00961516237658,1322,227.70595073471401,122,34.655446902326915,1049,240.4329428343795,1670,337.81651824622196]
[null,"35 to 64  years:",3177,191.637678967368,2667,126.73200069437868,2109,130.83195328359201,1914,123.45849504995596,2335,119.4026800369238,2318,128.81770064707723,1897,129.4488315899375,14836,501.02295356600183,1083,63.7808748764079,2909,253.24296633865274,6152,348.66172717979816,2186,132.77424449041311,1802,137.18600511714013,3528,227.547797176769,6931,273.3587386567329,1143,91.836811791350854,983,77.620873481300123,2579,258.83585532147589,11615,326.69557695199978,317,79.511005527536881,877,87,343,44.687805943008662,3471,248.64633518312712,2219,124.08464852672147,2018,146.03081866510234,1961,151.34728276384746,2362,160.20611723651504,3285,273.65854636754904,8415,397.43175514797508,4629,317.55471969410246,2554,238.94769302087852,11953,385.17528477304978,2794,214.80456233516085,3895,266.05638500137525,328,41.231056256176608,3508,217.17504460687928,6784,267.32003291934558]
[null,"With self care difficulty",0,22.627416997969522,0,22.627416997969522,0,15.556349186104045,91,49.51767361255979,0,22.627416997969522,16,23.706539182259394,44,49.244289008980523,367,140.13208055259867,0,15.556349186104045,58,41.231056256176608,100,78.230428862431779,24,28.231188426986208,61,57.384666941614292,9,21.2602916254693,149,75.584389922787622,0,15.556349186104045,17,16.763054614240211,39,43.840620433565945,166,81.024687595818591,0,15.556349186104045,19,14.212670403551895,5,5.6568542494923806,47,42.953463189829058,11,20.248456731316587,33,43.416586692184822,25,27.313000567495326,60,38.078865529319543,64,72.124891681027847,123,95.078914592037705,62,47.381430961928537,0,22.627416997969522,235,111.60645142642964,16,29.681644159311659,100,64.884512790033341,0,15.556349186104045,45,43.278170016764804,20,36.715119501371639]
[null,"With no self care difficulty",3177,191.637678967368,2667,126.73200069437868,2109,130.83195328359201,1823,132.63860674780929,2335,119.4026800369238,2302,130.17680284904833,1853,139.44532978913278,14469,513.68862163766096,1083,63.7808748764079,2851,251.76576415390556,6052,338.91739406527955,2162,134.06341782902598,1741,131.82564242210239,3519,227.547797176769,6782,274.26264783962108,1143,91.836811791350854,966,76.837490849194182,2540,253.16002844051033,11449,328.86623420472949,317,79.511005527536881,858,84.899941107164494,338,43.931765272977593,3424,242.20033030530738,2208,124.08464852672147,1985,143.68020044529447,1936,155.56991997169632,2302,159.40200751558933,3221,274.36107595648474,8292,392.186180276664,4567,313.0814590485997,2554,238.94769302087852,11718,396.07070075934678,2778,213.21585306913744,3795,269.00185872963777,328,41.231056256176608,3463,217.49712641779891,6764,264.55245226608656]
[null,"65 to 74  years:",902,189.61276328348785,569,83.546394296821688,304,86.838931361457924,457,64.443773942872099,489,107.05606008068857,379,87.726848797845236,452,86.267027304758798,2678,247.69335881286764,262,40.459856648287818,967,185.26737435393204,1475,198.9572818471342,387,73,469,69.296464556281663,1021,130.83195328359201,2230,204.89997559785115,285,61.220911460055866,299,47.010637094172637,688,160.58953888718904,2472,198.71587757398754,190,52.801515129776341,138,37.483329627982627,104,25,865,133.79461872586654,549,94.752308678997366,697,121.65936051122412,463,98.081598681913832,537,106.21205204683694,690,146.38647478507022,2217,246.91699009991191,979,156.46405337968207,1001,193.87624919004389,3132,260.92336039534672,472,115.96551211459379,1352,176.78235206037959,114,25.45584412271571,769,147.92227688891217,1151,162.93557008830209]
[null,"With self care difficulty",13,25.612496949731394,9,20.615528128088304,0,15.556349186104045,38,33.120990323358392,5,18.867962264113206,19,21.2602916254693,0,15.556349186104045,92,62.625873247404705,0,15.556349186104045,12,24.083189157584592,108,72.449982746719826,0,15.556349186104045,8,17.029386365926403,0,{"$f":"SQRT((AD35^2)+(AD19^2))","v":22.627416997969522},65,54.708317466359723,0,15.556349186104045,6,5.6568542494923806,4,18.357559750685819,68,33.837848631377263,21,23.706539182259394,0,15.556349186104045,0,15.556349186104045,26,33.120990323358392,10,18.601075237738275,27,45.354161881794269,9,17.804493814764857,17,17.804493814764857,17,28.844410203711913,57,34.928498393145958,20,36.715119501371639,0,22.627416997969522,84,58.796258384356399,18,31.384709652950431,136,97.324200484771509,4,4.2426406871192848,36,39.05124837953327,11,24.758836806279895]
[null,"With no self care difficulty",889,187.20042734993956,560,84.899941107164494,304,86.838931361457924,419,66.528189513919585,484,106.30145812734649,360,84.899941107164494,452,86.267027304758798,2586,256.60280590827529,262,40.459856648287818,955,184.5670609832643,1367,183.61100184901775,387,73,461,68.593002558570063,1021,130.83195328359201,2165,204.40156555173445,285,61.220911460055866,293,47.010637094172637,684,160.58953888718904,2404,202.54875956174109,169,48.166378315169183,138,37.483329627982627,104,25,839,128.70120434556935,539,94.752308678997366,670,117.41379816699569,454,97.452552557642122,520,106.21205204683694,673,144.31216164966833,2160,244.82646915723797,959,154.25303886795876,1001,193.87624919004389,3048,264.47306101000157,454,119.55333537798099,1216,165.95180023127196,110,24.758836806279895,733,147.8681845428556,1140,163.60012224934309]
[null,"75  years and Older:",473,114.20157617125956,186,65,357,84.599054368237475,237,88.323269867006175,147,59.059292240933601,174,61.073725938409879,222,88.481636512894582,1189,211.52068456772733,191,50.209560842532767,311,114.5512985522207,1821,239.88538930080756,369,94.069123520951337,257,67.007462271003817,661,169.53170794869024,1468,184.58873205046942,86,30,152,38.209946349085598,388,127.66362050325849,1196,217.91970998512272,139,48.918299234540036,101,39.623225512317902,81,32.526911934581186,445,137.93114224133723,209,84.899941107164494,388,100.42410069301094,282,100.65783625729296,291,100.44899203078147,575,183.44754018519845,1239,202.60799589354809,436,111.12605455067681,497,152.26949793047851,2228,277.85247884444004,316,168.90825912311098,937,166.37307474468338,75,26.172504656604801,448,123.04470732217619,936,182.52123164169149]
[null,"With self care difficulty",13,27.202941017470888,14,25.612496949731394,32,30.083217912982647,16,21.095023109728988,54,54.405882034941776,11,20.248456731316587,34,54.12947441089743,170,90.443352436760108,26,16.643316977093239,72,56.824290580701486,211,118.56221995222593,0,15.556349186104045,20,22.825424421026653,40,37.643060449437421,81,71.700767080973407,5,13.601470508735444,25,10.816653826391969,25,32.249030993194197,138,71.847059786744225,0,15.556349186104045,9,7.2111025509279782,11,24.596747752497688,206,115.36463929644994,0,15.556349186104045,44,46.097722286464439,0,15.556349186104045,39,45.310043036836767,69,90.426765949026404,77,50.566787519082126,9,21.633307652783937,98,103.74005976477939,211,126.40015822774906,39,37.802116342871599,112,90.13878188659973,5,12.083045973594572,17,31.384709652950431,80,59.464274989274024]
[null,"With no self care difficulty",460,112.61438629233834,172,62.433965115151864,325,76.850504227363402,221,85.755466298073387,93,41.036569057366385,163,59.816385714952723,188,62.801273872430329,1019,197.3448757885545,165,49.51767361255979,239,109.62207806824317,1610,222.91253890259293,369,94.069123520951337,237,64.660652641308843,621,163.13184851524241,1387,175.17134468856486,81,32.449961479175904,127,36.796738985948195,363,126.90547663517127,1058,201.00995000248122,139,48.918299234540036,92,39.623225512317902,70,25.495097567963924,239,85.603738236130781,209,84.899941107164494,344,92.195444572928878,282,100.65783625729296,252,92.69843580125827,506,164.93938280471406,1162,200.23236501624805,427,110.45361017187261,399,133.66001645967279,2017,254.89017242726328,277,161.68178623456632,825,156.28499608087785,70,25.495097567963924,431,120.91732712891069,856,174.0919297382851]
[]
[]
[]
[]
[]
[]
[]
[]
[]
[]
[]
[]
[]
[]
[]
[]
[]
[]
[]
[]
[]
[]
[]
[]
[]
[]
[]
[]
[]
[]
[]
[]
[]
[]
[]
["B18106. SEX BY AGE BY SELF-CARE DIFFICULTY\n\n\n\n-Calculated"]
["Universe:  Civilian non-institutionalized population 5 years and over"]
["Data Set: 2010-2014 American Community Survey 5-Year Estimates"]
[]
[]
[null,null,"Atkinson",null,"Auburn",null,"Brentwood",null,"Candia",null,"Chester",null,"Danville",null,"Deerfield",null,"Derry",null,"East Kingston",null,"Epping",null,"Exeter",null,"Fremont",null,"Greenland",null,"Hampstead",null,"Hampton",null,"Hampton Falls",null,"Kensington",null,"Kingston",null,"Londonderry",null,"New Castle",null,"Newfields",null,"Newington",null,"Newmarket",null,"Newton",null,"North Hampton",null,"Northwood",null,"Nottingham",null,"Plaistow",null,"Portsmouth",null,"Raymond",null,"Rye",null,"Salem",null,"Sandown",null,"Seabrook",null,"South Hampton",null,"Stratham",null,"Windham"]
[null,null,"Estimate","Margin Of Error","Estimate","Margin Of Error","Estimate","Margin Of Error","Estimate","Margin Of Error","Estimate","Margin Of Error","Estimate","Margin Of Error","Estimate","Margin Of Error","Estimate","Margin Of Error","Estimate","Margin Of Error","Estimate","Margin Of Error","Estimate","Margin Of Error","Estimate","Margin Of Error","Estimate","Margin Of Error","Estimate","Margin Of Error","Estimate","Margin Of Error","Estimate","Margin Of Error","Estimate","Margin Of Error","Estimate","Margin Of Error","Estimate","Margin Of Error","Estimate","Margin Of Error","Estimate","Margin Of Error","Estimate","Margin Of Error","Estimate","Margin Of Error","Estimate","Margin Of Error","Estimate","Margin Of Error","Estimate","Margin Of Error","Estimate","Margin Of Error","Estimate","Margin Of Error","Estimate","Margin Of Error","Estimate","Margin Of Error","Estimate","Margin Of Error","Estimate","Margin Of Error","Estimate","Margin Of Error","Estimate","Margin Of Error","Estimate","Margin Of Error","Estimate","Margin Of Error","Estimate","Margin Of Error"]
[null,"Total:",6577,124,4876,87,4025,175,3792,54,4528,101,4182,100,4117,84,31602,317,2320,128,6108,162,13612,249,4031,126,3467,88,8116,153,14350,223,2190,111,1954,136,5716,147,23171,187,940,158,1555,205,770,126,8481,150,4399,133,4062,126,3975,143,4581,101,7208,184,19726,352,9514,146,5146,114,27558,248,5680,180,8283,217,760,114,7007,165,13136,205]
[null,"5 to 17  years:",1220,209.34660255184463,962,143.93401265857906,1026,152.05262246998569,651,122.57650672131263,925,182.23611058184929,922,137.18600511714013,811,136.61991070118586,6028,450.62734049322842,420,68.818602136341013,976,218.04815981796315,2696,292.17973920174546,718,116.04309544302927,678,122.34786471369249,1471,211.3409567499873,2349,316.90061533547077,412,74.276510418839678,383,65.80273550544841,884,208.06008747474851,4891,333.04804458215932,94,49.203658400570177,377,79.195959492893323,71,29.206163733020468,1468,285.03508555965527,930,179.61069010501575,585,140.08925726121899,623,240.160363090998,765,117.6860229593982,1263,256.22255950637913,2321,287.21072403376581,1785,275.33434220961249,660,118.22436297142819,4582,386.87077946001557,1026,220.7306050369998,856,173.55690709389816,110,31.89043743820395,1413,197.64867821465441,2824,276.55198426335687]
[null,"With self care difficulty",0,21.213203435596427,10,21.213203435596427,10,19.416487838947599,9,17.029386365926403,30,33.120990323358392,0,15.556349186104045,0,15.556349186104045,27,26.90724809414742,6,14.212670403551895,0,21.213203435596427,51,62.169124169478209,0,15.556349186104045,19,28.231188426986208,0,21.213203435596427,45,52.810983706043572,0,15.556349186104045,4,12.083045973594572,0,21.213203435596427,109,74.094534211370814,0,15.556349186104045,7,14.212670403551895,0,15.556349186104045,28,45.541190146942803,0,15.556349186104045,0,15.556349186104045,20,24.596747752497688,0,15.556349186104045,23,39.924929555354261,9,28.284271247461902,35,43.46262762420146,8,20.518284528683193,24,42.059481689626182,12,25.80697580112788,21,34.438350715445125,0,15.556349186104045,17,30.016662039607269,10,23.345235059857504]
[null,"With no self care difficulty",1220,209.34660255184463,952,145.45446022724775,1016,152.05262246998569,642,123.23960402403117,895,182.53766734567415,922,137.18600511714013,811,136.61991070118586,6001,451.40225963103018,414,68.818602136341013,976,218.04815981796315,2645,290.03792855418067,718,116.04309544302927,659,122.34786471369249,1471,211.3409567499873,2304,313.12936623702353,412,74.276510418839678,379,65.215028942721474,884,208.06008747474851,4782,341.74405627603824,94,49.203658400570177,370,77.794601355106892,71,29.206163733020468,1440,282.96996307028775,930,179.61069010501575,585,140.08925726121899,603,241.0808992848666,765,117.6860229593982,1240,257.93410011086166,2312,288.76634152892541,1750,276.58814146669414,652,118.22436297142819,4558,384.42294416436698,1014,221.46105752479374,835,174.4161689752415,110,31.89043743820395,1396,197.64867821465441,2814,275.86228448267445]
[null,"18 to 34  years:",981,199.42417105255822,797,185.52627846210896,525,138.77319625922004,543,105.41821474489122,793,148.55302083767936,748,138.70832707519762,599,119.20570456148481,7853,528.2319566251175,401,79.39773296511683,1067,207.71133815947553,2158,269.43088167468852,772,139.51702405083043,399,94.810336989170125,1330,206.60348496576722,1768,258.00193797721755,353,85.796270315206598,253,47.201694884823787,1077,209.38003725283841,4259,354.7745763157219,82,42.43819034784589,208,54.203320931470607,199,58.051701094799967,2434,300.70749907509787,885,199.98499943745782,526,127.02755606560333,693,159.66527487215245,734,161.44348856488452,1337,271.44796923167428,5132,464.96128871122164,2179,230.58620947489467,568,164.61470165206995,5430,423.58588267315992,1244,235.35717537394095,1769,531.26641151121157,116,40.311288741492746,910,207.87015177749788,2053,307.35321699959479]
[null,"With self care difficulty",0,21.213203435596427,44,66.708320320631671,8,17.029386365926403,0,15.556349186104045,0,15.556349186104045,0,15.556349186104045,0,15.556349186104045,52,51.478150704935004,0,15.556349186104045,16,30.016662039607269,0,24.041630560342615,0,15.556349186104045,0,15.556349186104045,0,21.213203435596427,25,42.544094772365298,0,15.556349186104045,4,12.529964086141668,0,21.213203435596427,22,32.015621187164243,8,17.029386365926403,0,15.556349186104045,0,15.556349186104045,9,19.849433241279208,0,15.556349186104045,0,15.556349186104045,0,15.556349186104045,13,23.706539182259394,0,21.213203435596427,27,32.015621187164243,10,25.495097567963924,0,21.213203435596427,8,23.853720883753127,0,21.213203435596427,0,21.213203435596427,0,15.556349186104045,48,72.567210226106937,0,24.041630560342615]
[null,"With no self care difficulty",981,199.42417105255822,753,165.0969412193939,517,137.2953021774598,543,105.41821474489122,793,148.55302083767936,748,138.70832707519762,599,119.20570456148481,7801,530.42247312873155,401,79.39773296511683,1051,208.49220608934041,2158,269.43088167468852,772,139.51702405083043,399,94.810336989170125,1330,206.60348496576722,1743,258.80494585691366,353,85.796270315206598,249,47.201694884823787,1077,209.38003725283841,4237,353.44165006405228,74,40.80441152620633,208,54.203320931470607,199,58.051701094799967,2425,300.70749907509787,885,199.98499943745782,526,127.02755606560333,693,159.66527487215245,721,159.45218719101973,1337,271.44796923167428,5105,461.29600041621865,2169,231.27689032845456,568,164.61470165206995,5422,425.01882311257697,1244,235.35717537394095,1769,531.26641151121157,116,40.311288741492746,862,215,2053,307.35321699959479]
[null,"35 to 64  years:",3245,188.09572031282372,2640,113.17243480636087,2088,124.84390253432484,2115,121.37956994486346,2342,131.03434664239754,2078,138.77319625922004,2258,115.97413504743201,14408,482.97929562249351,1061,65.053823869162372,3193,239.73527066328811,6190,306.18458485038076,2002,152.62044423995101,1815,136.03308421115798,3917,246.1097316239242,7316,330.49357028541419,1070,86.556340033529608,1064,73.246160308919954,2843,181.04143172213369,11391,305.52250326285298,436,91.285267157411553,798,91.934759476489631,353,51.623637996561229,3678,287.76726707532254,2160,146.38647478507022,2138,153.83757668398187,2027,153.63918770938616,2629,182.98087331740442,3572,268.06902096288559,8965,394.08755372378863,4525,286.00699292150182,2676,222.87440409342656,13162,403.75859123986453,2858,185.97042775667319,3903,344.98840560227529,400,52.497618993626752,3798,176.47662734764623,6470,269.32879534130768]
[null,"With self care difficulty",48,54.644304369257,32,35.341194094144583,19,17.691806012954132,19,22.671568097509269,67,36.76955262170047,9,18.601075237738275,26,22.803508501982758,286,127.4401820463232,10,14.866068747318506,124,75.006666370396701,62,48.466483264210538,19,24.596747752497688,42,34.132096331752024,46,21.931712199461309,69,64.404968752418469,11,16.278820596099706,3,11.704699910719626,0,21.213203435596427,91,57.982756057296896,0,15.556349186104045,6,13.601470508735444,2,11.401754250991379,61,52.478567053607705,0,15.556349186104045,10,12.529964086141668,44,34.985711369071801,5,14.212670403551895,63,58.412327466040935,104,61.846584384264908,126,53.758720222862451,40,44.598206241955516,188,86.267027304758798,44,46.486557196677836,141,106.66770832824712,2,11.704699910719626,13,25.80697580112788,35,34.713109915419565]
[null,"With no self care difficulty",3197,183.89671013914307,2608,111.73182178770737,2069,126.15070352558483,2096,120.10412149464314,2275,135.60235986147143,2069,138.77319625922004,2232,116.69190203266035,14122,506.28845532956802,1051,64.350602172784676,3069,236.90715480964266,6128,311.13983994339264,1983,152.62044423995101,1773,140,3871,249.61770770520269,7247,326.1564041989671,1059,88.090862182180956,1061,73.246160308919954,2843,181.04143172213369,11300,312.59238634362163,436,91.285267157411553,792,92.655275079188016,351,51.623637996561229,3617,289.27841260626411,2160,146.38647478507022,2128,153.22206107476822,1983,152.16109883935513,2624,182.33211456021672,3509,283.27018904219341,8861,387.07234465923807,4399,288.20999288713085,2636,222.25210910135362,12974,415.07710127155894,2814,196.9009903479411,3762,330.49357028541419,398,52.497618993626752,3785,176.47662734764623,6435,272.24988521577012]
[null,"65 to 74  years:",622,142.43595051811886,313,60.811183182043088,243,62.241465278381739,315,86.313382508160345,322,86.278618440491968,226,92.849340331528467,336,76.216796049164913,1839,212.20744567521658,313,50.447993022517757,548,148.40485167271319,1351,169.01183390520322,395,93.434469014384618,280,65.299310869258036,935,145.60219778561037,1728,187.49133313302778,241,45.793012567421243,190,32.015621187164243,564,132.90974381135493,1892,218.58865478336244,154,45.967379738244816,87,32.015621187164243,87,31.827660925679098,513,107.44766167767449,249,84.958813551037778,526,101.86265262597475,405,95.414883535012507,279,66.030296076876709,527,141.24092891226678,1831,211.51832071950648,741,164.65721970202219,554,190.4337155022713,2700,270.86712609691119,325,86.313382508160345,1081,206.86710710018642,80,19.798989873223331,475,116.03878661895772,952,201.13676938839401]
[null,"With self care difficulty",13,24.207436873820409,0,21.213203435596427,21,17.204650534085253,12,21.095023109728988,0,15.556349186104045,0,15.556349186104045,0,15.556349186104045,32,27.459060435491963,6,14.212670403551895,16,29.154759474226502,43,50.039984012787215,0,15.556349186104045,0,15.556349186104045,9,10.440306508910551,29,29.832867780352597,12,16.278820596099706,0,15.556349186104045,15,27.459060435491963,62,33.241540277189323,0,15.556349186104045,3,12.083045973594572,2,11.704699910719626,11,13.152946437965905,7,15.556349186104045,1,11.401754250991379,11,19.416487838947599,15,18.601075237738275,0,21.213203435596427,51,41.036569057366385,10,13.341664064126334,14,23.430749027719962,85,61.351446600711867,28,34.438350715445125,42,63.788713735268246,0,15.556349186104045,0,21.213203435596427,48,60.440052945046304]
[null,"With no self care difficulty",609,140.08925726121899,313,60.811183182043088,222,62.968245965724662,303,85.586213843118443,322,86.278618440491968,226,92.849340331528467,336,76.216796049164913,1807,215.86338272157229,307,50.447993022517757,532,148.40485167271319,1308,165.55965692160635,395,93.434469014384618,280,65.299310869258036,926,145.60219778561037,1699,186.81006396872735,229,45.276925690687087,190,32.015621187164243,549,132.13629327327143,1830,219.27608168699112,154,45.967379738244816,84,30.805843601498726,85,31.11269837220809,502,109.80892495603443,242,84.219950130595535,525,101.17806086301516,394,95.963534741067136,264,62.801273872430329,527,141.24092891226678,1780,213.33541665649423,731,163.89325794552991,540,190.4337155022713,2615,264.59402865522117,297,84.864598037108507,1039,204.62893246068603,80,19.798989873223331,475,116.03878661895772,904,194.61757371830529]
[null,"75  years and Older:",509,126.73200069437868,164,48.166378315169183,143,48.020828814171878,168,75.153176912223742,146,63.513778032801667,208,81.320354155647891,113,49.51767361255979,1474,212.41704263076446,125,41.617304093369626,324,158.52129194527782,1217,191.12822920751398,144,65,295,65.604877867426907,463,129.634100452003,1189,214.86972797488249,114,36.76955262170047,64,21.400934559032695,348,106.88779163215975,738,145.45446022724775,174,49.51767361255979,85,30.413812651491099,60,22.671568097509269,388,144.01388821915754,175,61.073725938409879,287,74.94664769020693,227,93.605555390692487,174,63.890531379853151,509,145.42695761102891,1477,193.70596273734063,284,82.97590011563598,688,186.45374761586316,1684,235.77955806218657,227,84.38601779915912,674,213.71476317746513,54,21.2602916254693,411,99.297532698451278,837,214.27319011019554]
[null,"With self care difficulty",26,30.016662039607269,8,19.849433241279208,15,19.416487838947599,5,14.212670403551895,17,22.825424421026653,0,15.556349186104045,24,22.203603311174518,254,109,0,15.556349186104045,51,39.11521443121589,51,43.185645763378368,0,15.556349186104045,30,24.698178070456937,21,24.186773244895647,60,43.416586692184822,4,12.529964086141668,0,15.556349186104045,18,31.76476034853718,21,28.284271247461902,12,14.560219778561036,9,9.4339811320566032,6,6.4031242374328485,21,28.301943396169811,0,15.556349186104045,47,32.802438933713454,0,15.556349186104045,2,11.704699910719626,131,90.027773492406226,121,83.432607534464609,6,20.248456731316587,106,99.76472322419383,182,101.59232254457027,25,30.413812651491099,75,117.957619508025,3,11.704699910719626,52,38.275318418009277,32,36.235341863986875]
[null,"With no self care difficulty",483,125.25573839150046,156,48.166378315169183,128,47.169905660283021,163,74.732857566133518,129,62.681735776859277,208,81.320354155647891,89,45.967379738244816,1220,205,125,41.617304093369626,273,155.43809056984713,1166,188.43831882077487,144,65,265,63.600314464631381,442,127.5617497528158,1129,205.65018842685265,110,36.069377593742864,64,21.400934559032695,330,104.89041900955492,717,143.93401265857906,162,47.423622805517503,76,29.698484809834994,54,20.615528128088304,367,141.35416513141735,175,61.073725938409879,240,71.589105316381762,227,93.605555390692487,172,63.126856408346519,378,133.70115930686615,1356,193.70596273734063,278,83.737685661833282,582,169.29264603047588,1502,217.20036832381294,202,77.987178433380961,599,185.07566020414461,51,21.2602916254693,359,93.407708461347028,805,209.89759407863636]

{"sheet":"ACS_Table_B18107","index":37,"n_rows":119,"n_cols":76,"rows_kept":119,"cut":false,"hidden":true,"merged":[]}
["B18107. SEX BY AGE BY INDEPENDENT LIVING DIFFICULTY\n\n\n"]
["Universe:  Civilian non-institutionalized population 18 years and over"]
["Data Set: 2015-2019 American Community Survey 5-Year Estimates"]
[]
[null,null,"Atkinson",null,"Auburn",null,"Brentwood",null,"Candia",null,"Chester",null,"Danville",null,"Deerfield",null,"Derry",null,"East Kingston",null,"Epping",null,"Exeter",null,"Fremont",null,"Greenland",null,"Hampstead",null,"Hampton",null,"Hampton Falls",null,"Kensington",null,"Kingston",null,"Londonderry",null,"New Castle",null,"Newfields",null,"Newington",null,"Newmarket",null,"Newton",null,"North Hampton",null,"Northwood",null,"Nottingham",null,"Plaistow",null,"Portsmouth",null,"Raymond",null,"Rye",null,"Salem",null,"Sandown",null,"Seabrook",null,"South Hampton",null,"Stratham",null,"Windham"]
[null,null,"Estimate","Margin Of Error","Estimate","Margin Of Error","Estimate","Margin Of Error","Estimate","Margin Of Error","Estimate","Margin Of Error","Estimate","Margin Of Error","Estimate","Margin Of Error","Estimate","Margin Of Error","Estimate","Margin Of Error","Estimate","Margin Of Error","Estimate","Margin Of Error","Estimate","Margin Of Error","Estimate","Margin Of Error","Estimate","Margin Of Error","Estimate","Margin Of Error","Estimate","Margin Of Error","Estimate","Margin Of Error","Estimate","Margin Of Error","Estimate","Margin Of Error","Estimate","Margin Of Error","Estimate","Margin Of Error","Estimate","Margin Of Error","Estimate","Margin Of Error","Estimate","Margin Of Error","Estimate","Margin Of Error","Estimate","Margin Of Error","Estimate","Margin Of Error","Estimate","Margin Of Error","Estimate","Margin Of Error","Estimate","Margin Of Error","Estimate","Margin Of Error","Estimate","Margin Of Error","Estimate","Margin Of Error","Estimate","Margin Of Error","Estimate","Margin Of Error","Estimate","Margin Of Error","Estimate","Margin Of Error"]
[null,"Total:",5567,244,4333,83,3196,142,3285,119,4034,132,3567,125,3589,123,26136,397,1905,146,5590,174,12061,230,3718,97,3052,91,6774,203,12961,251,1948,142,1820,103,5098,214,20016,212,707,132,1329,151,622,77,7471,211,4013,97,3644,182,3543,113,3935,132,6298,168,17384,255,8136,351,4631,128,23975,354,4996,132,7522,243,642,72,5774,131,10570,232]
[null,"Male:",2728,182,2182,100,1519,100,1720,108,1959,153,1814,107,1711,105,12790,402,922,91,2711,168,5443,280,1867,104,1525,89,3260,178,6326,268,1026,92,903,67,2723,280,9569,245,321,70,665,81,316,53,3799,198,2107,149,1830,120,1638,108,1886,114,2996,225,8306,322,4021,285,2423,161,11952,386,2380,147,3620,197,312,41,2776,176,5405,281]
[null,"18 to 34  years:",529,159,451,110,177,73,335,97,521,167,350,82,449,94,3469,371,172,65,740,212,1122,240,382,96,275,80,818,124,1241,211,248,78,211,51,854,247,2336,248,33,27,105,38,57,40,1407,230,615,141,340,109,319,86,401,90,919,218,2691,306,1085,263,406,178,3676,376,739,152,650,157,67,26,506,172,1065,288]
[null,"With independent living difficulty",0,16,10,16,13,21,0,11,8,13,37,29,12,16,217,91,7,11,33,37,12,18,30,26,5,12,41,32,17,26,0,11,4,6,23,41,62,42,0,11,12,11,0,11,14,23,13,19,0,11,15,21,0,16,0,16,53,56,34,34,14,23,38,39,40,58,50,38,3,4,0,16,29,31]
[null,"With no independent living difficulty",529,159,441,108,164,73,335,97,513,167,313,78,437,94,3252,363,165,63,707,211,1110,238,352,96,270,81,777,124,1224,209,248,78,207,51,831,237,2274,257,33,27,93,37,57,40,1393,229,602,144,340,109,304,80,401,90,919,218,2638,296,1051,267,392,180,3638,381,699,145,600,154,64,25,506,172,1036,282]
[null,"35 to 64  years:",1560,134,1325,85,1092,91,967,101,1106,71,1168,95,926,94,7546,340,533,48,1340,184,3024,251,1114,102,889,96,1600,143,3373,210,575,75,459,48,1299,186,5642,233,142,51,431,63,176,34,1770,196,1097,81,1008,115,975,109,1134,129,1498,195,4083,256,2254,220,1318,186,5934,286,1326,171,1970,181,151,26,1683,158,3335,186]
[null,"With independent living difficulty",0,16,0,16,26,34,24,22,0,16,0,11,8,14,271,124,0,11,12,18,64,74,0,11,41,45,0,16,68,49,0,11,7,7,19,30,88,66,0,11,7,9,2,4,40,37,23,25,43,44,17,21,10,15,79,67,263,152,95,80,0,16,94,67,26,39,33,32,0,11,43,46,0,18]
[null,"With no independent living difficulty",1560,134,1325,85,1066,102,943,104,1106,71,1168,95,918,92,7275,329,533,48,1328,183,2960,240,1114,102,848,108,1600,143,3305,213,575,75,452,48,1280,190,5554,239,142,51,424,63,174,33,1730,194,1074,86,965,112,958,107,1124,130,1419,192,3820,246,2159,223,1318,186,5840,285,1300,172,1937,178,151,26,1640,164,3335,186]
[null,"65 to 74  years:",412,112,351,62,142,50,258,48,286,81,202,60,221,61,1273,154,125,26,497,130,567,100,155,48,242,49,522,91,1041,128,142,48,162,37,339,110,1124,152,83,32,77,27,45,15,392,99,293,67,338,76,213,62,197,65,327,102,1003,142,504,105,484,132,1535,185,228,82,710,124,63,18,359,109,562,122]
[null,"With independent living difficulty",0,16,8,14,0,11,0,11,5,10,0,11,8,13,13,16,3,6,12,18,33,32,0,11,0,11,10,13,17,26,0,11,0,11,13,17,67,80,0,11,12,19,2,3,26,27,10,15,27,44,9,14,0,16,0,16,29,37,1,4,16,25,53,46,0,16,143,89,4,5,16,25,0,18]
[null,"With no independent living difficulty",412,112,343,57,142,50,258,48,281,80,202,60,213,57,1260,153,122,27,485,129,534,103,155,48,242,49,512,91,1024,124,142,48,162,37,326,110,1057,145,83,32,65,23,43,14,366,96,283,67,311,69,204,61,197,65,327,102,974,139,503,105,468,136,1482,187,228,82,567,105,59,18,343,108,562,122]
[null,"75  years and Older:",227,91,55,33,108,41,160,76,46,28,94,47,115,73,502,145,92,36,134,81,730,149,216,68,119,53,320,110,671,133,61,24,71,26,231,97,467,140,63,32,52,29,38,23,230,95,102,58,144,62,131,66,154,69,252,122,529,123,178,82,215,95,807,171,87,57,290,76,31,19,228,86,443,125]
[null,"With independent living difficulty",28,33,0,16,31,30,42,32,0,16,9,13,6,10,87,60,21,14,51,45,164,88,27,25,20,20,33,28,72,57,5,8,9,8,45,42,81,54,0,11,18,23,11,22,121,85,0,11,12,17,0,11,21,23,25,31,30,28,0,18,0,16,156,110,24,30,24,30,0,11,0,16,47,42]
[null,"With no independent living difficulty",199,86,55,33,77,28,118,70,46,28,85,45,109,72,415,133,71,36,83,70,566,130,189,73,99,46,287,106,599,127,56,27,62,25,186,91,386,119,63,32,34,20,27,11,109,60,102,58,132,59,131,66,133,68,227,117,499,118,178,82,215,95,651,139,63,47,266,77,31,19,228,86,396,122]
[null,"Female:",2839,218,2151,115,1677,105,1565,114,2075,125,1753,91,1878,101,13346,433,983,80,2879,166,6618,285,1851,95,1527,104,3514,206,6635,275,922,90,917,67,2375,235,10447,237,386,76,664,80,306,43,3672,247,1906,163,1814,121,1905,167,2049,101,3302,224,9078,364,4115,242,2208,159,12023,418,2616,158,3902,214,330,45,2998,195,5165,210]
[null,"18 to 34  years:",486,162,460,115,249,74,342,101,542,109,346,80,569,98,3964,412,197,56,663,176,1491,232,394,80,249,79,746,145,1091,203,186,76,175,45,589,189,2397,278,28,24,108,34,37,19,1283,211,421,117,201,86,518,180,344,94,829,214,2822,298,1007,177,173,85,2986,359,675,143,688,163,58,24,543,168,634,186]
[null,"With independent living difficulty",0,16,0,16,0,11,0,11,15,23,16,23,51,37,114,81,10,11,14,26,42,38,0,11,0,11,39,44,0,18,11,16,0,11,0,16,165,84,0,11,5,8,5,7,12,19,20,22,0,11,0,11,0,16,0,16,13,19,47,39,17,26,104,62,1,2,14,20,5,5,0,16,14,25]
[null,"With no independent living difficulty",486,162,460,115,249,74,342,101,527,111,330,81,518,94,3850,422,187,54,649,178,1449,237,394,80,249,79,707,140,1091,203,175,76,175,45,589,189,2232,272,28,24,103,34,32,17,1271,209,401,115,201,86,518,180,344,94,829,214,2809,294,960,180,156,86,2882,342,674,142,674,164,53,23,543,168,620,186]
[null,"35 to 64  years:",1617,137,1342,94,1017,94,947,71,1229,96,1150,87,971,89,7290,368,550,42,1569,174,3128,242,1072,85,913,98,1928,177,3558,175,568,53,524,61,1280,180,5973,229,175,61,446,60,167,29,1701,153,1122,94,1010,90,986,105,1228,95,1787,192,4332,304,2375,229,1236,150,6019,258,1468,130,1925,195,177,32,1825,149,3449,192]
[null,"With independent living difficulty",43,48,9,14,23,25,35,34,0,16,67,54,0,11,412,160,5,7,85,99,65,42,24,26,35,43,105,102,93,59,6,9,0,11,84,60,195,80,0,11,14,12,3,4,91,56,32,30,9,14,48,34,50,32,49,39,68,43,110,75,18,29,293,121,12,20,174,99,0,11,58,52,15,22]
[null,"With no independent living difficulty",1574,148,1333,97,994,96,912,76,1229,96,1083,102,971,89,6878,381,545,44,1484,175,3063,246,1048,87,878,77,1823,172,3465,178,562,52,524,61,1196,185,5778,234,175,61,432,58,164,29,1610,161,1090,92,1001,93,938,109,1178,95,1738,181,4264,299,2265,225,1218,151,5726,278,1456,128,1751,190,177,32,1767,149,3434,193]
[null,"65 to 74  years:",490,153,218,56,162,71,199,43,203,70,177,64,231,61,1405,194,137,31,470,132,908,172,232,55,227,49,499,94,1189,160,143,38,137,29,349,117,1348,128,107,42,61,26,59,20,473,90,256,67,359,95,250,76,340,84,363,105,1214,202,475,116,517,142,1597,184,244,82,642,126,51,18,410,100,589,108]
[null,"With independent living difficulty",0,16,0,16,0,11,29,29,0,16,41,43,0,11,149,89,0,11,0,16,83,63,0,11,0,11,17,21,39,35,5,7,6,6,0,16,41,22,0,11,0,11,2,3,0,16,0,11,9,14,0,11,9,14,20,31,79,50,20,32,0,16,88,52,0,16,0,16,11,13,54,48,11,17]
[null,"With no independent living difficulty",490,153,218,56,162,71,170,45,203,70,136,55,231,61,1256,206,137,31,470,132,825,151,232,55,227,49,482,91,1150,163,138,40,131,28,349,117,1307,130,107,42,61,26,57,20,473,90,256,67,350,96,250,76,331,84,343,101,1135,198,455,113,517,142,1509,182,244,82,642,126,40,13,356,96,578,109]
[null,"75  years and Older:",246,69,131,56,249,74,77,45,101,52,80,39,107,50,687,154,99,35,177,81,1091,188,153,65,138,41,341,129,797,128,25,18,81,28,157,83,729,167,76,37,49,27,43,23,215,100,107,62,244,79,151,76,137,73,323,137,710,161,258,75,282,119,1421,219,229,159,647,148,44,18,220,88,493,133]
[null,"With independent living difficulty",39,36,45,33,75,52,11,16,54,52,39,31,21,26,119,81,11,12,75,61,307,142,18,20,4,11,93,94,122,73,2,5,26,11,21,34,119,50,0,11,24,23,16,20,51,83,46,48,40,45,11,17,30,42,92,95,146,65,26,23,108,106,298,128,36,38,110,88,5,4,35,39,61,51]
[null,"With no independent living difficulty",207,71,86,48,174,56,66,42,47,30,41,30,86,43,568,139,88,34,102,70,784,160,135,63,134,44,248,96,675,128,23,18,55,26,136,81,610,155,76,37,25,17,27,12,164,107,61,41,204,70,140,75,107,63,231,110,564,151,232,76,174,89,1123,199,193,152,537,133,39,16,185,82,432,124]
[]
[]
[{"$f":"A1& \"-Calculated\"","v":"B18107. SEX BY AGE BY INDEPENDENT LIVING DIFFICULTY\n\n\n-Calculated"}]
[{"$f":"A2","v":"Universe:  Civilian non-institutionalized population 18 years and over"}]
[{"$f":"A3","v":"Data Set: 2015-2019 American Community Survey 5-Year Estimates"}]
[]
[]
[null,null,"Atkinson",null,"Auburn",null,"Brentwood",null,"Candia",null,"Chester",null,"Danville",null,"Deerfield",null,"Derry",null,"East Kingston",null,"Epping",null,"Exeter",null,"Fremont",null,"Greenland",null,"Hampstead",null,"Hampton",null,"Hampton Falls",null,"Kensington",null,"Kingston",null,"Londonderry",null,"New Castle",null,"Newfields",null,"Newington",null,"Newmarket",null,"Newton",null,"North Hampton",null,"Northwood",null,"Nottingham",null,"Plaistow",null,"Portsmouth",null,"Raymond",null,"Rye",null,"Salem",null,"Sandown",null,"Seabrook",null,"South Hampton",null,"Stratham",null,"Windham"]
[null,null,"Estimate","Margin Of Error","Estimate","Margin Of Error","Estimate","Margin Of Error","Estimate","Margin Of Error","Estimate","Margin Of Error","Estimate","Margin Of Error","Estimate","Margin Of Error","Estimate","Margin Of Error","Estimate","Margin Of Error","Estimate","Margin Of Error","Estimate","Margin Of Error","Estimate","Margin Of Error","Estimate","Margin Of Error","Estimate","Margin Of Error","Estimate","Margin Of Error","Estimate","Margin Of Error","Estimate","Margin Of Error","Estimate","Margin Of Error","Estimate","Margin Of Error","Estimate","Margin Of Error","Estimate","Margin Of Error","Estimate","Margin Of Error","Estimate","Margin Of Error","Estimate","Margin Of Error","Estimate","Margin Of Error","Estimate","Margin Of Error","Estimate","Margin Of Error","Estimate","Margin Of Error","Estimate","Margin Of Error","Estimate","Margin Of Error","Estimate","Margin Of Error","Estimate","Margin Of Error","Estimate","Margin Of Error","Estimate","Margin Of Error","Estimate","Margin Of Error","Estimate","Margin Of Error","Estimate","Margin Of Error"]
[null,"Total:",{"$f":"C7","v":5567},244,4333,83,3196,142,3285,119,4034,132,3567,125,3589,123,26136,397,1905,146,5590,174,12061,230,{"$f":"Y7","v":3718},97,3052,91,6774,203,12961,251,1948,142,1820,103,5098,214,20016,212,707,132,1329,151,622,77,7471,211,4013,97,3644,182,3543,113,3935,132,6298,168,17384,255,8136,351,4631,128,23975,354,4996,132,7522,243,642,72,5774,131,10570,232]
[null,"18 to 34  years:",{"$f":"C22+C9","v":1015},{"$f":"SQRT((D22^2)+(D9^2))","v":226.99118925632334},{"$f":"E22+E9","v":911},{"$f":"SQRT((F22^2)+(F9^2))","v":159.13830462839547},{"$f":"G22+G9","v":426},{"$f":"SQRT((H22^2)+(H9^2))","v":103.9471019317037},{"$f":"I22+I9","v":677},{"$f":"SQRT((J22^2)+(J9^2))","v":140.03570973148243},{"$f":"K22+K9","v":1063},{"$f":"SQRT((L22^2)+(L9^2))","v":199.42417105255822},{"$f":"M22+M9","v":696},{"$f":"SQRT((N22^2)+(N9^2))","v":114.56002793295748},{"$f":"O22+O9","v":1018},{"$f":"SQRT((P22^2)+(P9^2))","v":135.79396157414365},{"$f":"Q22+Q9","v":7433},{"$f":"SQRT((R22^2)+(R9^2))","v":554.42312361588961},{"$f":"S22+S9","v":369},{"$f":"SQRT((T22^2)+(T9^2))","v":85.796270315206598},{"$f":"U22+U9","v":1403},{"$f":"SQRT((V22^2)+(V9^2))","v":275.5358415887124},{"$f":"W22+W9","v":2613},{"$f":"SQRT((X22^2)+(X9^2))","v":333.80233672040106},{"$f":"Y22+Y9","v":776},{"$f":"SQRT((Z22^2)+(Z9^2))","v":124.96399481450646},{"$f":"AA22+AA9","v":524},{"$f":"SQRT((AB22^2)+(AB9^2))","v":112.43220179290273},{"$f":"AC22+AC9","v":1564},{"$f":"SQRT((AD22^2)+(AD9^2))","v":190.79046097748179},{"$f":"AE22+AE9","v":2332},{"$f":"SQRT((AF22^2)+(AF9^2))","v":292.79685790663808},{"$f":"AG22+AG9","v":434},{"$f":"SQRT((AH22^2)+(AH9^2))","v":108.90362712049586},{"$f":"AI22+AI9","v":386},{"$f":"SQRT((AJ22^2)+(AJ9^2))","v":68.01470429252781},{"$f":"AK22+AK9","v":1443},{"$f":"SQRT((AL22^2)+(AL9^2))","v":311.01446911679204},{"$f":"AM22+AM9","v":4733},{"$f":"SQRT((AN22^2)+(AN9^2))","v":372.54261501202785},{"$f":"AO22+AO9","v":61},{"$f":"SQRT((AP22^2)+(AP9^2))","v":36.124783736376884},{"$f":"AQ22+AQ9","v":213},{"$f":"SQRT((AR22^2)+(AR9^2))","v":50.990195135927848},{"$f":"AS22+AS9","v":94},{"$f":"SQRT((AT22^2)+(AT9^2))","v":44.283179650969061},{"$f":"AU22+AU9","v":2690},{"$f":"SQRT((AV22^2)+(AV9^2))","v":312.1233730434169},{"$f":"AW22+AW9","v":1036},{"$f":"SQRT((AX22^2)+(AX9^2))","v":183.22117781522965},{"$f":"AY22+AY9","v":541},{"$f":"SQRT((AZ22^2)+(AZ9^2))","v":138.84163640637487},{"$f":"BA22+BA9","v":837},{"$f":"SQRT((BB22^2)+(BB9^2))","v":199.48934808655824},{"$f":"BC22+BC9","v":745},{"$f":"SQRT((BD22^2)+(BD9^2))","v":130.13838787997952},{"$f":"BE22+BE9","v":1748},{"$f":"SQRT((BF22^2)+(BF9^2))","v":305.48322376196046},{"$f":"BG22+BG9","v":5513},{"$f":"SQRT((BH22^2)+(BH9^2))","v":427.12995680471766},{"$f":"BI22+BI9","v":2092},{"$f":"SQRT((BJ22^2)+(BJ9^2))","v":317.0141952657641},{"$f":"BK22+BK9","v":579},{"$f":"SQRT((BL22^2)+(BL9^2))","v":197.25364381932212},{"$f":"BM22+BM9","v":6662},{"$f":"SQRT((BN22^2)+(BN9^2))","v":519.86248181610495},{"$f":"BO22+BO9","v":1414},{"$f":"SQRT((BP22^2)+(BP9^2))","v":208.69355524308841},{"$f":"BQ22+BQ9","v":1338},{"$f":"SQRT((BR22^2)+(BR9^2))","v":226.31394124092313},{"$f":"BS22+BS9","v":125},{"$f":"SQRT((BT22^2)+(BT9^2))","v":35.383612025908263},{"$f":"BU22+BU9","v":1049},{"$f":"SQRT((BV22^2)+(BV9^2))","v":240.4329428343795},{"$f":"BW22+BW9","v":1699},{"$f":"SQRT((BX22^2)+(BX9^2))","v":342.84107105187968}]
[null,"With independent living difficulty",{"$f":"C23+C10","v":0},{"$f":"SQRT((D23^2)+(D10^2))","v":22.627416997969522},10,22.627416997969522,13,23.706539182259394,0,15.556349186104045,23,26.419689627245813,53,37.013511046643494,63,40.311288741492746,331,121.82774724995944,17,15.556349186104045,47,45.221676218380054,54,42.047592083257278,30,28.231188426986208,5,16.278820596099706,80,54.405882034941776,17,31.622776601683793,11,19.416487838947599,4,12.529964086141668,23,44.011362169330773,227,93.914855054991165,0,15.556349186104045,17,13.601470508735444,5,13.038404810405298,26,29.832867780352597,33,29.068883707497267,0,15.556349186104045,15,23.706539182259394,0,22.627416997969522,0,22.627416997969522,66,59.135437767890075,81,51.739733281106119,31,34.713109915419565,142,73.246160308919954,41,58.034472514187634,64,42.941821107167776,8,6.4031242374328485,0,22.627416997969522,43,39.824615503479755]
[null,"With no independent living difficulty",1015,226.99118925632334,901,157.76247969653622,413,103.9471019317037,677,140.03570973148243,1040,200.52431274037571,643,112.44998888394787,955,132.93607486307093,7102,556.64441073274054,352,82.97590011563598,1356,276.05253123273474,2559,335.87646538571289,746,124.96399481450646,519,113.14592347937243,1484,187.01871564097536,2315,291.35888522576414,423,108.90362712049586,382,68.01470429252781,1420,303.13363389765908,4506,374.20983418397759,61,36.124783736376884,196,50.24937810560445,89,43.46262762420146,2664,310.0354818403855,1003,184.28510520386612,541,138.84163640637487,822,196.97715603592209,745,130.13838787997952,1748,305.48322376196046,5447,417.19539786531681,2011,322.00776388155612,548,199.48934808655824,6520,511.98144497628039,1373,202.95073293782411,1274,224.97110925627763,117,33.97057550292606,1049,240.4329428343795,1656,337.81651824622196]
[null,"35 to 64  years:",3177,191.637678967368,2667,126.73200069437868,2109,130.83195328359201,1914,123.45849504995596,2335,119.4026800369238,2318,128.81770064707723,1897,129.4488315899375,14836,501.02295356600183,1083,63.7808748764079,2909,253.24296633865274,6152,348.66172717979816,2186,132.77424449041311,1802,137.18600511714013,3528,227.547797176769,6931,273.3587386567329,1143,91.836811791350854,983,77.620873481300123,2579,258.83585532147589,11615,326.69557695199978,317,79.511005527536881,877,87,343,44.687805943008662,3471,248.64633518312712,2219,124.08464852672147,2018,146.03081866510234,1961,151.34728276384746,2362,160.20611723651504,3285,273.65854636754904,8415,397.43175514797508,4629,317.55471969410246,2554,238.94769302087852,11953,385.17528477304978,2794,214.80456233516085,3895,266.05638500137525,328,41.231056256176608,3508,217.17504460687928,6784,267.32003291934558]
[null,"With independent living difficulty",43,50.596442562694072,9,21.2602916254693,49,42.201895692018383,59,40.496913462633174,0,22.627416997969522,67,55.108982933819419,8,17.804493814764857,683,202.42529486207991,5,13.038404810405298,97,100.62305898749054,129,85.088189544730596,24,28.231188426986208,76,62.241465278381739,105,103.24727599312246,161,76.694197955256044,6,14.212670403551895,7,13.038404810405298,103,67.082039324993687,283,103.71113729971339,0,15.556349186104045,21,15,5,5.6568542494923806,131,67.119296778199342,55,39.05124837953327,52,46.173585522460783,65,39.962482405376171,60,35.341194094144583,128,77.52418977325722,331,157.96518603793686,205,109.65856099730654,18,33.120990323358392,387,138.31124321616085,38,43.829214001622255,207,104.04326023342406,0,15.556349186104045,101,69.426219830839131,15,28.42534080710379]
[null,"With no independent living difficulty",3134,199.64969321288726,2658,128.97286536322281,2060,140.07141035914503,1855,128.80993750483694,2335,119.4026800369238,2251,139.38794782907166,1889,128.00390619039717,14153,503.39050447937535,1078,65.115282384398824,2812,253.20742485164214,6023,343.68008379887249,2162,134.06341782902598,1726,132.63860674780929,3423,223.68057582186256,6770,277.58422145359776,1137,91.263355187062899,976,77.620873481300123,2476,265.18861212352238,11332,334.48019373350047,317,79.511005527536881,856,85.632937588290176,338,43.931765272977593,3340,252.10513679812237,2164,125.93649193144932,1966,145.57815770231468,1896,152.74161188098023,2302,161.01242188104618,3157,263.86549603917524,8084,387.19116725462629,4424,316.78699468254689,2536,239.57671005337727,11566,398.13188769552232,2756,214.40149253211834,3688,260.35360569809666,328,41.231056256176608,3407,221.57842855296181,6769,268.03917624108607]
[null,"65 to 74  years:",902,189.61276328348785,569,83.546394296821688,304,86.838931361457924,457,64.443773942872099,489,107.05606008068857,379,87.726848797845236,452,86.267027304758798,2678,247.69335881286764,262,40.459856648287818,967,185.26737435393204,1475,198.9572818471342,387,73,469,69.296464556281663,1021,130.83195328359201,2230,204.89997559785115,285,61.220911460055866,299,47.010637094172637,688,160.58953888718904,2472,198.71587757398754,190,52.801515129776341,138,37.483329627982627,104,25,865,133.79461872586654,549,94.752308678997366,697,121.65936051122412,463,98.081598681913832,537,106.21205204683694,690,146.38647478507022,2217,246.91699009991191,979,156.46405337968207,1001,193.87624919004389,3132,260.92336039534672,472,115.96551211459379,1352,176.78235206037959,114,25.45584412271571,769,147.92227688891217,1151,162.93557008830209]
[null,"With independent living difficulty",0,22.627416997969522,8,21.2602916254693,0,15.556349186104045,29,31.016124838541646,5,18.867962264113206,41,44.384682042344295,8,17.029386365926403,162,90.426765949026404,3,12.529964086141668,12,24.083189157584592,116,70.661163307718056,0,15.556349186104045,0,15.556349186104045,27,24.698178070456937,56,43.600458713183279,5,13.038404810405298,6,12.529964086141668,13,23.345235059857504,108,82.969874050766165,0,15.556349186104045,12,21.95449840010015,4,4.2426406871192848,26,31.384709652950431,10,18.601075237738275,36,46.173585522460783,9,17.804493814764857,9,21.2602916254693,20,34.885527085024819,108,62.201286160335947,21,32.249030993194197,16,29.681644159311659,141,69.426219830839131,0,22.627416997969522,143,90.426765949026404,15,13.928388277184119,70,54.120236510939236,11,24.758836806279895]
[null,"With no independent living difficulty",902,189.61276328348785,561,79.906195003891909,304,86.838931361457924,428,65.79513659838392,484,106.30145812734649,338,81.394102980498531,444,83.486525858967212,2516,256.60280590827529,259,41.109609582188931,955,184.5670609832643,1359,182.78402556022229,387,73,469,69.296464556281663,994,128.69343417595164,2174,204.80478510034868,280,62.481997407253232,293,46.400431032480725,675,160.58953888718904,2364,194.74342094150447,190,52.801515129776341,126,34.713109915419565,100,24.413111231467404,839,131.59027319676784,539,94.752308678997366,661,118.22436297142819,454,97.452552557642122,528,106.21205204683694,670,143.54441821262157,2109,241.91940806805889,958,154.25303886795876,985,196.62146373170961,2991,260.94635464018268,472,115.96551211459379,1209,164.01524319403975,99,22.203603311174518,699,144.49913494550754,1140,163.60012224934309]
[null,"75  years and Older:",473,114.20157617125956,186,65,357,84.599054368237475,237,88.323269867006175,147,59.059292240933601,174,61.073725938409879,222,88.481636512894582,1189,211.52068456772733,191,50.209560842532767,311,114.5512985522207,1821,239.88538930080756,369,94.069123520951337,257,67.007462271003817,661,169.53170794869024,1468,184.58873205046942,86,30,152,38.209946349085598,388,127.66362050325849,1196,217.91970998512272,139,48.918299234540036,101,39.623225512317902,81,32.526911934581186,445,137.93114224133723,209,84.899941107164494,388,100.42410069301094,282,100.65783625729296,291,100.44899203078147,575,183.44754018519845,1239,202.60799589354809,436,111.12605455067681,497,152.26949793047851,2228,277.85247884444004,316,168.90825912311098,937,166.37307474468338,75,26.172504656604801,448,123.04470732217619,936,182.52123164169149]
[null,"With independent living difficulty",67,48.836461788299118,45,36.674241641784498,106,60.033324079214538,53,35.777087639996637,54,54.405882034941776,48,33.61547262794322,27,27.856776554368238,206,100.80178569846865,32,18.439088914585774,126,75.802374632988901,471,167.05687654209268,45,32.015621187164243,24,22.825424421026653,126,98.081598681913832,194,92.617492948146676,7,9.4339811320566032,35,13.601470508735444,66,54.037024344425184,200,73.593477971896391,0,15.556349186104045,42,32.526911934581186,27,29.732137494637012,172,118.80235687897779,46,49.244289008980523,52,48.104053883222775,11,20.248456731316587,51,47.885279575251516,117,99.929975482834976,176,70.774289116881988,26,29.206163733020468,108,107.20074626605917,454,168.77203559831824,60,48.414873747640819,134,92.973114393355672,5,11.704699910719626,35,42.154477816715982,108,66.068146636635717]
[null,"With no independent living difficulty",{"$f":"C33+C20","v":406},111.5212984142491,141,58.249463516842795,251,62.609903369994115,184,81.6333265278342,93,41.036569057366385,126,54.083269131959838,195,83.86298349093002,983,192.37983262286096,159,49.51767361255979,185,98.994949366116657,1350,206.15528128088303,324,96.426137535421375,233,63.655321851358195,535,143.01048912579805,1274,180.31361568112376,79,32.449961479175904,117,36.069377593742864,322,121.82774724995944,996,195.41238445912276,139,48.918299234540036,59,26.248809496813376,54,16.278820596099706,273,122.67436570041843,163,71.028163428319047,336,91.547801721286575,271,99.904954832080278,240,92.69843580125827,458,160.58953888718904,1063,191.637678967368,410,111.80339887498948,389,130.17680284904833,1774,242.7385424690525,256,159.10059710761615,803,153.68148880070103,70,24.839484696748443,413,118.82760622010359,828,173.95401691251627]
[]
[]
[]
[]
[]
[]
[]
[]
[]
[]
[]
[]
[]
[]
[]
[]
[]
[]
[]
[]
[]
[]
[]
[]
[]
[]
[]
[]
[]
[]
[]
[]
[]
[]
[]
[]
[]
[]
[]
[]
[]
[]
[]
[]
["B18107. SEX BY AGE BY INDEPENDENT LIVING DIFFICULTY\n\n\n-Calculated"]
["Universe:  Civilian non-institutionalized population 18 years and over"]
["Data Set: 2010-2014 American Community Survey 5-Year Estimates"]
[]
[]
[null,null,"Atkinson",null,"Auburn",null,"Brentwood",null,"Candia",null,"Chester",null,"Danville",null,"Deerfield",null,"Derry",null,"East Kingston",null,"Epping",null,"Exeter",null,"Fremont",null,"Greenland",null,"Hampstead",null,"Hampton",null,"Hampton Falls",null,"Kensington",null,"Kingston",null,"Londonderry",null,"New Castle",null,"Newfields",null,"Newington",null,"Newmarket",null,"Newton",null,"North Hampton",null,"Northwood",null,"Nottingham",null,"Plaistow",null,"Portsmouth",null,"Raymond",null,"Rye",null,"Salem",null,"Sandown",null,"Seabrook",null,"South Hampton",null,"Stratham",null,"Windham"]
[null,null,"Estimate","Margin Of Error","Estimate","Margin Of Error","Estimate","Margin Of Error","Estimate","Margin Of Error","Estimate","Margin Of Error","Estimate","Margin Of Error","Estimate","Margin Of Error","Estimate","Margin Of Error","Estimate","Margin Of Error","Estimate","Margin Of Error","Estimate","Margin Of Error","Estimate","Margin Of Error","Estimate","Margin Of Error","Estimate","Margin Of Error","Estimate","Margin Of Error","Estimate","Margin Of Error","Estimate","Margin Of Error","Estimate","Margin Of Error","Estimate","Margin Of Error","Estimate","Margin Of Error","Estimate","Margin Of Error","Estimate","Margin Of Error","Estimate","Margin Of Error","Estimate","Margin Of Error","Estimate","Margin Of Error","Estimate","Margin Of Error","Estimate","Margin Of Error","Estimate","Margin Of Error","Estimate","Margin Of Error","Estimate","Margin Of Error","Estimate","Margin Of Error","Estimate","Margin Of Error","Estimate","Margin Of Error","Estimate","Margin Of Error","Estimate","Margin Of Error","Estimate","Margin Of Error","Estimate","Margin Of Error"]
[null,"Total:",5357,119,3914,96,2999,174,3141,111,3603,96,3260,111,3306,103,25574,450,1900,97,5132,184,10916,308,3313,106,2789,70,6645,179,12001,338,1778,101,1571,105,4832,143,18280,269,846,130,1178,149,699,114,7013,243,3469,123,3477,126,3352,170,3816,121,5945,259,17405,359,7729,240,4486,158,22976,328,4654,173,7427,283,650,98,5594,142,10312,184]
[null,"18 to 34  years:",981,199.42417105255822,797,185.52627846210896,525,138.77319625922004,543,105.41821474489122,793,148.55302083767936,748,138.70832707519762,599,119.20570456148481,7853,528.2319566251175,401,79.39773296511683,1067,207.71133815947553,2158,269.43088167468852,772,139.51702405083043,399,94.810336989170125,1330,206.60348496576722,1768,258.00193797721755,353,85.796270315206598,253,47.201694884823787,1077,209.38003725283841,4259,354.7745763157219,82,42.43819034784589,208,54.203320931470607,199,58.051701094799967,2434,300.70749907509787,885,199.98499943745782,526,127.02755606560333,693,159.66527487215245,734,161.44348856488452,1337,271.44796923167428,5132,464.96128871122164,2179,230.58620947489467,568,164.61470165206995,5430,423.58588267315992,1244,235.35717537394095,1769,531.26641151121157,116,40.311288741492746,910,207.87015177749788,2053,307.35321699959479]
[null,"With independent living difficulty",0,21.213203435596427,11,21.931712199461309,36,32.695565448543633,11,20.248456731316587,0,15.556349186104045,45,39.962482405376171,46,34.205262752974143,161,89.308454247064432,15,16.278820596099706,32,36.76955262170047,6,19.723082923316021,17,21.95449840010015,11,17.804493814764857,0,21.213203435596427,38,43.382023926967726,0,15.556349186104045,7,14.866068747318506,0,21.213203435596427,64,46.324939287601879,8,17.029386365926403,0,15.556349186104045,0,15.556349186104045,142,115.16944039110375,0,15.556349186104045,26,31.016124838541646,0,15.556349186104045,24,30.083217912982647,42,67.683085036070864,106,56.044625076808217,80,79.075912893876861,0,21.213203435596427,40,49.244289008980523,14,26.627053911388696,19,21.400934559032695,0,15.556349186104045,108,83.570329663104715,15,30.232432915661949]
[null,"With no independent living difficulty",981,199.42417105255822,786,182.87700784953805,489,132.65368445693471,532,103.39245620450265,793,148.55302083767936,703,136.23509092741122,553,116.03878661895772,7692,530.51861418804151,386,77.89736837660179,1035,211.64593074283286,2152,270.1481075262235,755,138.77319625922004,388,94.201910808645493,1330,206.60348496576722,1730,260,353,85.796270315206598,246,47.201694884823787,1077,209.38003725283841,4195,349.7227473299385,74,40.80441152620633,208,54.203320931470607,199,58.051701094799967,2292,296.54679226051326,885,199.98499943745782,500,123.70933675353692,693,159.66527487215245,710,160.11246047700348,1295,272.7196362567243,5026,460.48344161326798,2099,229.83689869122406,568,164.61470165206995,5390,418.60721446243616,1230,232.24555969921147,1750,532.31945296034405,116,40.311288741492746,802,208.90428430264421,2038,310.0354818403855]
[null,"35 to 64  years:",3245,188.09572031282372,2640,113.17243480636087,2088,124.84390253432484,2115,121.37956994486346,2342,131.03434664239754,2078,138.77319625922004,2258,115.97413504743201,14408,482.97929562249351,1061,65.053823869162372,3193,239.73527066328811,6190,306.18458485038076,2002,152.62044423995101,1815,136.03308421115798,3917,246.1097316239242,7316,330.49357028541419,1070,86.556340033529608,1064,73.246160308919954,2843,181.04143172213369,11391,305.52250326285298,436,91.285267157411553,798,91.934759476489631,353,51.623637996561229,3678,287.76726707532254,2160,146.38647478507022,2138,153.83757668398187,2027,153.63918770938616,2629,182.98087331740442,3572,268.06902096288559,8965,394.08755372378863,4525,286.00699292150182,2676,222.87440409342656,13162,403.75859123986453,2858,185.97042775667319,3903,344.98840560227529,400,52.497618993626752,3798,176.47662734764623,6470,269.32879534130768]
[null,"With independent living difficulty",69,60.926184846911269,41,34.928498393145958,36,26.172504656604801,25,31.016124838541646,77,45,64,46.324939287601879,92,59.464274989274024,469,155.72411502397438,15,17.804493814764857,110,68.505474233815804,221,126.57408897558773,49,33.241540277189323,43,35.510561809129406,42,29.966648127543394,169,82.879430499973878,15,17.804493814764857,20,13.45362404707371,22,26.076809620810597,211,87.464278422679513,0,15.556349186104045,12,10.63014581273465,2,11.401754250991379,167,74.202425836356596,0,15.556349186104045,45,32.649655434629018,57,41.725292090050132,76,42.485291572496003,117,74.966659255965254,283,102.7277956543408,281,102.7277956543408,0,21.213203435596427,213,94.36630754670864,55,50.119856344566671,237,103.31021246711285,5,12.529964086141668,116,121.01652779682617,79,61]
[null,"With no independent living difficulty",3176,192.52012881774206,2599,111.03603018840326,2052,126.15070352558483,2090,122.14745187681976,2265,136.82470537150812,2014,140.07141035914503,2166,122.34786471369249,13939,501.42297514174595,1046,65.76473218982953,3083,244.98979570586201,5969,291.79616172938256,1953,152.62044423995101,1772,140.20698984002189,3875,247.52373623553763,7147,336.20380723602761,1055,88.090862182180956,1044,72.622310621461224,2821,183.25119372053214,11180,324.62439834368581,436,91.285267157411553,786,91.967385523347346,351,51.623637996561229,3511,285.39446385660671,2160,146.38647478507022,2093,153.40469353966978,1970,151.48597294799279,2553,191.94269978303421,3455,277.79488836189915,8682,375.88961145527816,4244,296.02195864496269,2676,222.87440409342656,12949,406.66079230729878,2803,191.68985366993215,3666,344.29202720946068,395,53.150729063673246,3682,224.58851261807672,6391,272.05881717011124]
[null,"65 to 74  years:",622,142.43595051811886,313,60.811183182043088,243,62.241465278381739,315,86.313382508160345,322,86.278618440491968,226,92.849340331528467,336,76.216796049164913,1839,212.20744567521658,313,50.447993022517757,548,148.40485167271319,1351,169.01183390520322,395,93.434469014384618,280,65.299310869258036,935,145.60219778561037,1728,187.49133313302778,241,45.793012567421243,190,32.015621187164243,564,132.90974381135493,1892,218.58865478336244,154,45.967379738244816,87,32.015621187164243,87,31.827660925679098,513,107.44766167767449,249,84.958813551037778,526,101.86265262597475,405,95.414883535012507,279,66.030296076876709,527,141.24092891226678,1831,211.51832071950648,741,164.65721970202219,554,190.4337155022713,2700,270.86712609691119,325,86.313382508160345,1081,206.86710710018642,80,19.798989873223331,475,116.03878661895772,952,201.13676938839401]
[null,"With independent living difficulty",28,34.438350715445125,0,21.213203435596427,27,19.723082923316021,22,24.083189157584592,0,15.556349186104045,12,21.095023109728988,0,15.556349186104045,118,47.927027865287037,6,14.212670403551895,16,29.154759474226502,107,77.201036262475128,0,15.556349186104045,16,21.095023109728988,2,15.297058540778355,58,44.598206241955516,17,13.892443989449804,12,14.212670403551895,15,27.459060435491963,53,36.069377593742864,0,15.556349186104045,5,12.529964086141668,25,25.45584412271571,68,58,6,14.212670403551895,12,17.262676501632068,21,24.596747752497688,21,20.808652046684813,56,72.422372233999624,87,50.990195135927848,12,13.601470508735444,31,34.438350715445125,135,72.111025509279784,41,41.785164831552358,37,34.669871646719429,0,15.556349186104045,0,21.213203435596427,14,28.600699292150182]
[null,"With no independent living difficulty",594,143.22360140703069,313,60.811183182043088,216,62.968245965724662,293,85.586213843118443,322,86.278618440491968,214,94.175368329515976,336,76.216796049164913,1721,213.55093069335942,307,50.447993022517757,532,148.40485167271319,1244,161.24515496597098,395,93.434469014384618,264,64.660652641308843,933,145.60219778561037,1670,188.11166896287961,224,45.276925690687087,178,31.240998703626616,549,132.13629327327143,1839,222.82953125651906,154,45.967379738244816,82,30.805843601498726,62,18.439088914585774,445,90.443352436760108,243,85.702975444263316,514,99.724620831567975,384,94.339811320566042,258,64.815121692395209,471,126.0634760745554,1744,216.640254800441,729,163.89325794552991,523,190.4337155022713,2565,258.44341740504825,284,83.438600180012614,1044,206.20620747203515,80,19.798989873223331,475,116.03878661895772,938,199.80990966416056]
[null,"75  years and Older:",509,126.73200069437868,164,48.166378315169183,143,48.020828814171878,168,75.153176912223742,146,63.513778032801667,208,81.320354155647891,113,49.51767361255979,1474,212.41704263076446,125,41.617304093369626,324,158.52129194527782,1217,191.12822920751398,144,65,295,65.604877867426907,463,129.634100452003,1189,214.86972797488249,114,36.76955262170047,64,21.400934559032695,348,106.88779163215975,738,145.45446022724775,174,49.51767361255979,85,30.413812651491099,60,22.671568097509269,388,144.01388821915754,175,61.073725938409879,287,74.94664769020693,227,93.605555390692487,174,63.890531379853151,509,145.42695761102891,1477,193.70596273734063,284,82.97590011563598,688,186.45374761586316,1684,235.77955806218657,227,84.38601779915912,674,213.71476317746513,54,21.2602916254693,411,99.297532698451278,837,214.27319011019554]
[null,"With independent living difficulty",36,41.146081222881968,0,21.213203435596427,37,26.172504656604801,14,15.811388300841896,59,48.270073544588683,6,14.866068747318506,36,29.206163733020468,409,143.93401265857906,33,17.464249196572979,61,41.400483088968905,236,101.9803902718557,62,50.289163842720633,56,33.837848631377263,62,40.36087214122113,163,68.01470429252781,5,13.038404810405298,19,12.041594578792296,73,59.908263203000637,62,46.518813398452032,21,16.492422502470642,15,11.401754250991379,7,7.6157731058639087,64,35.341194094144583,35,26.172504656604801,110,49.244289008980523,10,18.601075237738275,29,24.596747752497688,152,94.641428560646744,283,114.63420083029322,30,28.319604517012593,181,113.00442469213318,433,138.00362314084367,61,48.270073544588683,132,123.36936410632909,7,12.529964086141668,88,57.008771254956898,91,60.811183182043088]
[null,"With no independent living difficulty",473,128.22246293064254,164,48.166378315169183,106,45.650848842053307,154,74.732857566133518,87,42.43819034784589,202,81.320354155647891,77,40.607881008493905,1065,203.03940504246953,92,39.204591567825318,263,154.15900881881669,981,175.6359872008012,82,45.254833995939045,239,62.201286160335947,401,121.69634341261039,1026,195.13328778042973,109,35.383612025908263,45,20,275,101.04454463255303,676,137.97463535012514,153,47.423622805517503,70,28.319604517012593,53,20.248456731316587,324,140.00357138301865,140,52.801515129776341,177,62.769419305900861,217,92.314679222754165,145,59.396969619669989,357,124.80785231707178,1194,181.59570479501986,254,84.811555816409836,507,159.47727110782904,1251,212.20037700249262,166,70.292247083159893,542,188.48076824970764,47,20.518284528683193,323,92.617492948146676,746,215.52262062252305]

{"sheet":"ACS_Table_C18108","index":38,"n_rows":118,"n_cols":76,"rows_kept":118,"cut":false,"hidden":true,"merged":[]}
["B18108. AGE BY NUMBER OF DISABILITIES\n\n"]
["Universe:  Civilian non-institutionalized population"]
["Data Set: 2015-2019 American Community Survey 5-Year Estimates"]
[]
[null,null,"Atkinson",null,"Auburn",null,"Brentwood",null,"Candia",null,"Chester",null,"Danville",null,"Deerfield",null,"Derry",null,"East Kingston",null,"Epping",null,"Exeter",null,"Fremont",null,"Greenland",null,"Hampstead",null,"Hampton",null,"Hampton Falls",null,"Kensington",null,"Kingston",null,"Londonderry",null,"New Castle",null,"Newfields",null,"Newington",null,"Newmarket",null,"Newton",null,"North Hampton",null,"Northwood",null,"Nottingham",null,"Plaistow",null,"Portsmouth",null,"Raymond",null,"Rye",null,"Salem",null,"Sandown",null,"Seabrook",null,"South Hampton",null,"Stratham",null,"Windham"]
[null,null,"Estimate","Margin Of Error","Estimate","Margin Of Error","Estimate","Margin Of Error","Estimate","Margin Of Error","Estimate","Margin Of Error","Estimate","Margin Of Error","Estimate","Margin Of Error","Estimate","Margin Of Error","Estimate","Margin Of Error","Estimate","Margin Of Error","Estimate","Margin Of Error","Estimate","Margin Of Error","Estimate","Margin Of Error","Estimate","Margin Of Error","Estimate","Margin Of Error","Estimate","Margin Of Error","Estimate","Margin Of Error","Estimate","Margin Of Error","Estimate","Margin Of Error","Estimate","Margin Of Error","Estimate","Margin Of Error","Estimate","Margin Of Error","Estimate","Margin Of Error","Estimate","Margin Of Error","Estimate","Margin Of Error","Estimate","Margin Of Error","Estimate","Margin Of Error","Estimate","Margin Of Error","Estimate","Margin Of Error","Estimate","Margin Of Error","Estimate","Margin Of Error","Estimate","Margin Of Error","Estimate","Margin Of Error","Estimate","Margin Of Error","Estimate","Margin Of Error","Estimate","Margin Of Error","Estimate","Margin Of Error"]
[null,"Total:",6952,33,5446,21,4317,134,3936,18,5129,26,4515,29,4476,31,33242,113,2432,192,6952,32,14914,113,4623,84,3992,32,8612,20,15379,100,2383,164,2291,139,6260,29,25907,39,835,178,1757,227,710,89,9034,41,4920,22,4444,25,4286,27,5050,25,7689,26,20695,172,10428,23,5410,90,29090,108,6389,17,8820,31,775,94,7427,21,14512,46]
[null,"Under 18 years:",1385,246,1113,81,1121,104,651,118,1095,132,948,117,887,125,7106,405,527,80,1362,171,2853,214,905,74,940,95,1838,205,2418,228,435,81,471,65,1162,215,5891,206,128,81,428,112,88,38,1563,209,907,96,800,178,743,113,1115,133,1391,170,3311,222,2292,351,779,93,5115,368,1393,131,1298,243,133,42,1653,134,3942,228]
[null,"With one type of disability",103,93,50,49,26,28,38,54,49,34,7,12,66,57,267,105,5,7,52,50,66,62,0,11,9,13,52,42,79,69,24,17,13,10,18,30,225,97,0,11,4,6,0,11,25,29,48,42,9,14,75,52,8,12,0,16,163,98,123,94,16,25,221,101,88,88,63,48,5,5,17,27,110,70]
[null,"With two or more types of disability",41,45,10,15,0,11,0,11,21,23,14,21,0,11,77,85,14,14,0,16,41,51,0,11,22,25,27,41,27,25,6,10,4,5,0,16,86,64,0,11,0,11,0,11,11,18,0,11,0,11,24,31,22,24,51,51,30,33,0,18,0,16,63,57,20,30,19,32,0,11,0,16,0,18]
[null,"No disability",1241,272,1053,79,1095,107,613,122,1025,136,927,121,821,133,6762,425,508,82,1310,164,2746,196,905,74,909,99,1759,215,2312,229,405,76,454,64,1144,213,5580,203,128,81,424,112,88,38,1527,215,859,99,791,178,644,144,1085,130,1340,179,3118,222,2169,354,763,97,4831,404,1285,136,1216,240,128,41,1636,140,3832,237]
[null,"18 to 64  years:",4192,231,3578,86,2535,144,2591,121,3398,151,3014,133,2915,130,22269,467,1452,132,4312,213,8765,309,2962,121,2326,129,5092,200,9263,289,1577,142,1369,106,4022,229,16348,346,378,114,1090,138,437,77,6161,224,3255,137,2559,169,2798,170,3107,133,5033,253,13928,345,6721,327,3133,243,18615,359,4208,223,5233,272,453,72,4557,208,8483,247]
[null,"With one type of disability",301,146,161,67,52,34,166,76,184,129,173,78,156,73,1182,248,60,30,236,107,602,168,94,48,109,67,209,94,563,138,64,39,55,26,81,58,810,189,13,17,32,19,8,7,213,86,71,46,83,37,161,74,136,64,122,72,654,150,331,117,107,64,731,181,250,129,443,155,27,11,140,74,202,96]
[null,"With two or more types of disability",61,56,30,27,62,46,105,52,0,16,207,122,99,61,1208,226,17,15,180,110,195,109,63,39,91,58,262,134,239,96,17,18,34,26,171,97,660,178,9,10,41,24,15,11,163,73,91,63,52,46,80,48,84,43,161,88,381,170,415,164,31,35,584,159,88,67,335,134,8,7,113,71,75,59]
[null,"No disability",3830,239,3387,105,2421,153,2320,123,3214,133,2634,173,2660,171,19879,493,1375,131,3896,244,7968,343,2805,140,2126,151,4621,255,8461,351,1496,132,1280,99,3770,226,14878,384,356,112,1017,132,414,74,5785,237,3093,156,2424,157,2557,145,2887,135,4750,279,12893,411,5975,337,2995,235,17300,405,3870,238,4455,293,418,69,4304,205,8206,273]
[null,"65 years and over:",1375,211,755,72,661,93,694,82,636,134,553,91,674,126,3867,266,453,52,1278,186,3296,243,756,93,726,109,1682,173,3698,243,371,68,451,67,1076,186,3668,264,329,73,239,72,185,49,1310,167,758,129,1085,157,745,134,828,143,1265,239,3456,285,1415,143,1498,235,5360,306,788,193,2289,251,189,44,1217,177,2087,180]
[null,"With one type of disability",228,110,88,36,166,63,179,89,106,72,53,38,144,64,624,131,97,30,349,151,654,169,96,51,83,43,367,126,502,113,45,29,63,39,184,84,402,108,16,12,23,18,24,12,211,84,115,55,110,50,142,72,113,62,253,99,450,126,129,64,272,116,798,198,173,118,351,121,33,17,191,85,249,96]
[null,"With two or more types of disability",114,68,90,40,84,47,83,55,86,55,119,62,111,76,522,156,45,20,283,133,741,223,91,61,74,47,109,50,387,131,12,9,54,18,135,69,480,129,45,30,64,49,33,40,310,138,89,59,129,71,49,35,62,49,278,145,353,110,130,67,158,119,633,181,118,62,408,180,27,19,108,70,231,99]
[null,"No disability",1033,185,577,79,411,90,432,96,444,89,381,82,419,87,2721,301,311,54,646,150,1901,281,569,79,569,80,1206,144,2809,216,314,67,334,55,757,170,2786,216,268,61,152,48,128,31,789,145,554,106,846,133,554,128,653,156,734,164,2653,272,1156,142,1068,214,3929,348,497,158,1530,201,129,30,918,183,1607,190]
[]
[]
[]
[]
[]
[]
[]
[]
[]
[]
[]
[]
[]
[]
[]
[]
[]
[]
[]
[]
[]
[]
[]
[]
[]
[]
[]
[]
[]
[]
[]
[]
[]
[]
[]
[]
[]
[]
[]
[]
[]
[]
[]
[]
[]
[]
[]
[]
[]
[]
[]
[]
[]
[]
[]
[]
[]
[]
[]
[]
[]
[]
[]
[]
[]
[]
[]
[]
[]
[]
[]
[]
[]
[]
[]
[]
[]
[]
[]
[]
["B18108. AGE BY NUMBER OF DISABILITIES\n\n"]
["Universe:  Civilian non-institutionalized population"]
["Data Set: 2010-2014 American Community Survey 5-Year Estimates"]
[]
[null,null,"Atkinson",null,"Auburn",null,"Brentwood",null,"Candia",null,"Chester",null,"Danville",null,"Deerfield",null,"Derry",null,"East Kingston",null,"Epping",null,"Exeter",null,"Fremont",null,"Greenland",null,"Hampstead",null,"Hampton",null,"Hampton Falls",null,"Kensington",null,"Kingston",null,"Londonderry",null,"New Castle",null,"Newfields",null,"Newington",null,"Newmarket",null,"Newton",null,"North Hampton",null,"Northwood",null,"Nottingham",null,"Plaistow",null,"Portsmouth",null,"Raymond",null,"Rye",null,"Salem",null,"Sandown",null,"Seabrook",null,"South Hampton",null,"Stratham",null,"Windham"]
[null,null,"Estimate","Margin Of Error","Estimate","Margin Of Error","Estimate","Margin Of Error","Estimate","Margin Of Error","Estimate","Margin Of Error","Estimate","Margin Of Error","Estimate","Margin Of Error","Estimate","Margin Of Error","Estimate","Margin Of Error","Estimate","Margin Of Error","Estimate","Margin Of Error","Estimate","Margin Of Error","Estimate","Margin Of Error","Estimate","Margin Of Error","Estimate","Margin Of Error","Estimate","Margin Of Error","Estimate","Margin Of Error","Estimate","Margin Of Error","Estimate","Margin Of Error","Estimate","Margin Of Error","Estimate","Margin Of Error","Estimate","Margin Of Error","Estimate","Margin Of Error","Estimate","Margin Of Error","Estimate","Margin Of Error","Estimate","Margin Of Error","Estimate","Margin Of Error","Estimate","Margin Of Error","Estimate","Margin Of Error","Estimate","Margin Of Error","Estimate","Margin Of Error","Estimate","Margin Of Error","Estimate","Margin Of Error","Estimate","Margin Of Error","Estimate","Margin Of Error","Estimate","Margin Of Error","Estimate","Margin Of Error"]
[null,"Total:",6788,19,5078,20,4184,165,3920,21,4802,18,4416,39,4330,19,33018,137,2453,130,6587,17,14251,110,4306,45,3668,15,8496,64,14765,183,2307,123,2055,149,6060,19,24247,24,966,162,1621,222,798,136,8911,33,4700,39,4344,22,4269,16,4855,17,7614,26,20789,309,10202,23,5275,65,28729,56,6133,38,8736,25,799,123,7303,19,13908,55]
[null,"Under 18 years:",1431,121,1164,96,1185,125,779,108,1199,95,1156,115,1024,99,7444,423,553,61,1455,184,3335,295,993,98,879,68,1851,170,2764,306,529,65,484,72,1228,143,5967,266,120,67,443,99,99,40,1898,237,1231,118,867,122,917,169,1039,121,1669,258,3384,238,2473,241,789,141,5753,325,1479,170,1309,281,149,47,1709,141,3596,185]
[null,"With one type of disability",0,15,12,18,19,18,13,16,68,57,112,89,99,71,173,73,5,9,67,61,124,78,37,34,33,32,24,23,33,30,12,14,4,5,30,39,191,76,0,11,13,11,5,7,37,36,0,11,0,11,49,47,45,40,70,71,94,59,71,50,44,46,177,99,8,14,38,58,0,11,91,90,10,16]
[null,"With two or more types of disability",0,15,18,25,10,16,9,13,30,33,0,11,8,13,84,67,1,3,0,15,51,62,10,15,0,11,8,11,45,50,0,11,4,5,22,35,120,78,0,11,7,8,0,11,28,43,0,11,0,11,0,11,0,11,23,37,6,10,35,40,0,15,28,38,12,21,21,31,4,5,17,26,25,29]
[null,"No disability",1431,121,1134,101,1156,124,757,105,1101,126,1044,144,917,131,7187,434,547,62,1388,186,3160,314,946,108,846,80,1819,168,2686,307,517,66,476,70,1176,145,5656,256,120,67,423,99,94,37,1833,234,1231,118,867,122,868,176,994,127,1576,259,3284,244,2367,253,745,141,5548,336,1459,177,1250,287,145,46,1601,164,3561,189]
[null,"18 to 64 years:",4226,139,3437,103,2613,172,2658,147,3135,108,2826,118,2857,105,22261,500,1462,96,4260,233,8348,264,2774,127,2214,84,5247,224,9084,311,1423,106,1317,101,3920,159,15650,297,518,128,1006,144,552,112,6112,277,3045,137,2664,115,2720,150,3363,125,4909,233,14097,364,6704,247,3244,289,18592,341,4102,172,5672,371,516,93,4708,158,8523,319]
[null,"With one type of disability",114,55,127,54,68,42,106,60,108,48,122,63,128,73,1291,254,61,31,305,135,304,125,83,42,63,37,76,46,565,207,25,16,92,56,261,104,629,188,12,15,40,26,20,16,402,128,135,61,120,70,66,39,128,56,370,150,673,162,437,167,145,100,809,207,192,87,385,203,39,25,195,115,103,61]
[null,"With two or more types of disability",135,82,96,73,61,41,58,41,78,45,82,51,120,70,793,200,37,20,171,75,366,155,83,39,67,43,92,51,256,101,32,17,18,16,23,27,361,118,8,13,11,9,2,3,318,137,66,48,110,69,71,54,142,68,166,87,513,141,404,119,42,37,392,127,51,50,328,122,5,5,271,268,173,81]
[null,"No disability",3977,160,3214,114,2484,172,2494,138,2949,119,2622,134,2609,124,20177,618,1364,101,3784,236,7678,276,2608,122,2084,105,5079,229,8263,350,1366,103,1207,98,3636,182,14660,364,498,122,955,144,530,110,5392,337,2844,156,2434,143,2583,156,3093,134,4373,294,12911,391,5863,268,3057,280,17391,483,3859,201,4959,406,472,80,4242,234,8247,353]
[null,"65 years and over:",1131,156,477,49,386,86,483,149,468,74,434,125,449,87,3313,314,438,67,872,215,2568,212,539,122,575,74,1398,189,2917,272,355,52,254,38,912,149,2630,238,328,70,172,53,147,51,901,138,424,116,813,121,632,126,453,79,1036,169,3308,224,1025,199,1242,286,4384,333,552,113,1755,342,134,36,886,118,1789,299]
[null,"With one type of disability",214,104,60,36,56,48,6,11,22,20,123,83,61,37,501,132,62,25,191,136,465,144,66,41,90,36,195,65,393,117,71,38,42,18,114,70,373,107,53,25,12,13,23,13,93,47,74,46,138,52,76,62,28,21,109,52,490,133,191,107,154,80,687,138,97,46,379,166,11,8,185,87,276,127]
[null,"With two or more types of disability",91,54,15,17,43,31,92,62,92,52,60,41,53,40,568,159,32,20,99,60,450,146,52,48,74,47,90,53,391,137,31,19,41,20,113,57,210,70,29,18,29,17,32,37,165,66,61,33,149,60,60,33,55,27,219,107,531,178,91,60,180,110,680,197,103,60,337,168,9,8,135,70,144,93]
[null,"No disability",826,135,402,60,287,73,385,106,354,90,251,105,335,81,2244,311,344,73,582,139,1653,197,421,120,411,71,1113,184,2133,239,253,53,171,33,685,158,2047,215,246,65,131,46,92,28,643,133,289,94,526,108,496,120,370,75,708,167,2287,246,743,146,908,272,3017,303,352,84,1039,227,114,34,566,114,1369,273]

{"sheet":"ACS_Table_B19049","index":39,"n_rows":56,"n_cols":76,"rows_kept":56,"cut":false,"hidden":true,"merged":[]}
[null,"B19049. MEDIAN HOUSEHOLD INCOME IN THE PAST 12 MONTHS (IN 2019 INFLATION-ADJUSTED DOLLARS) BY AGE OF HOUSEHOLDER "]
[null,"Universe:  HOUSEHOLDS"]
[null,"Data Set: 2015-2019 American Community Survey 5-Year Estimates"]
[]
[null,null,"Atkinson",null,"Auburn",null,"Brentwood",null,"Candia",null,"Chester",null,"Danville",null,"Deerfield",null,"Derry",null,"East Kingston",null,"Epping",null,"Exeter",null,"Fremont",null,"Greenland",null,"Hampstead",null,"Hampton",null,"Hampton Falls",null,"Kensington",null,"Kingston",null,"Londonderry",null,"New Castle",null,"Newfields",null,"Newington",null,"Newmarket",null,"Newton",null,"North Hampton",null,"Northwood",null,"Nottingham",null,"Plaistow",null,"Portsmouth",null,"Raymond",null,"Rye",null,"Salem",null,"Sandown",null,"Seabrook",null,"South Hampton",null,"Stratham",null,"Windham"]
[null,null,"Estimate","Margin Of Error","Estimate","Margin Of Error","Estimate","Margin Of Error","Estimate","Margin Of Error","Estimate","Margin Of Error","Estimate","Margin Of Error","Estimate","Margin Of Error","Estimate","Margin Of Error","Estimate","Margin Of Error","Estimate","Margin Of Error","Estimate","Margin Of Error","Estimate","Margin Of Error","Estimate","Margin Of Error","Estimate","Margin Of Error","Estimate","Margin Of Error","Estimate","Margin Of Error","Estimate","Margin Of Error","Estimate","Margin Of Error","Estimate","Margin Of Error","Estimate","Margin Of Error","Estimate","Margin Of Error","Estimate","Margin Of Error","Estimate","Margin Of Error","Estimate","Margin Of Error","Estimate","Margin Of Error","Estimate","Margin Of Error","Estimate","Margin Of Error","Estimate","Margin Of Error","Estimate","Margin Of Error","Estimate","Margin Of Error","Estimate","Margin Of Error","Estimate","Margin Of Error","Estimate","Margin Of Error","Estimate","Margin Of Error","Estimate","Margin Of Error","Estimate","Margin Of Error","Estimate","Margin Of Error"]
[null,"Median household income in the past 12 months"]
[null,"Total:",118712,8166,115089,8661,125625,20006,100904,7600,139688,20140,91417,15039,108173,7435,76536,4065,101538,4830,76071,10090,77120,8017,110181,9466,115833,11463,88142,16412,85549,4107,134525,5993,107583,13944,94473,13679,107868,6014,136000,65413,154375,11480,111125,12726,73734,8073,107319,15569,95417,8713,91411,9745,95227,6872,86659,18875,83923,7364,76234,3246,112054,32323,86587,5967,111960,12776,72963,5863,104000,14124,109483,18490,148459,13572]
[null,"Householder under 25 years","-","**","-","**","-","**","-","**","-","**","-","**","-","**",64087,19170,"-","**","-","**",68259,20459,"-","**","-","**",80919,25350,44960,31749,"-","**","-","**","-","**",58958,23281,"-","**","-","**","-","**",51726,9658,"-","**","-","**","-","**","-","**","-","**",64358,4995,46641,41250,"-","**",53750,49111,"-","**","-","**","-","**","-","**","-","**"]
[null,"Householder 25 to 44 years",112578,28786,140962,34310,139643,59960,119968,65212,150670,18766,113438,40924,111483,11611,85785,12106,149250,52672,98409,27680,91010,11709,114000,19485,139375,71622,113081,10259,95851,19773,157167,38629,127708,22149,97079,17161,111760,6195,"-","**",163333,84608,138125,74876,80426,10721,123750,20176,106897,47041,94583,24639,120000,21660,90966,33178,92756,14524,80526,17244,110083,105901,105833,15113,138110,17850,84219,28191,136250,26274,110972,32262,158542,24436]
[null,"Householder 45 to 64 years",137725,19549,124028,13257,168947,17129,103170,11243,159306,13953,108431,8099,123281,31580,89215,7393,141136,32375,91094,24684,105507,11173,117694,11893,137250,27570,106799,14455,100294,9498,137143,44508,127750,23421,106917,16454,131228,8886,228875,140949,171250,20816,136250,36344,102661,21273,122039,13347,127986,17289,98125,26672,110078,22894,119479,39629,106518,7839,98973,15083,144399,24196,112021,14128,121341,12694,79271,13749,121250,25198,145857,20609,171051,13080]
[null,"Householder 65 years and over",63510,14401,78375,24964,50972,17323,70913,18803,74250,29697,44911,28404,71563,36202,49907,7829,59750,17809,50259,14345,52788,6066,62792,16109,85357,14009,53929,14896,63168,6763,106250,53976,69844,27821,55833,27797,56182,4679,135625,80340,81250,45158,71500,21316,42969,17137,75536,28337,54775,5521,67313,25415,64028,11626,57639,12815,63085,6625,45795,6643,94444,23415,47905,5979,73864,50601,49085,8997,57188,26210,74329,5259,77632,22599]
[]
[]
[]
[]
[]
[]
[]
[]
[]
[]
[]
[]
[]
[]
[]
[]
[]
[null,"B19049. MEDIAN HOUSEHOLD INCOME IN THE PAST 12 MONTHS (IN 2014 INFLATION-ADJUSTED DOLLARS) BY AGE OF HOUSEHOLDER "]
[null,"Universe:  HOUSEHOLDS"]
[null,"Data Set: 2010-2014 American Community Survey 5-Year Estimates"]
[]
[null,null,"Atkinson",null,"Auburn",null,"Brentwood",null,"Candia",null,"Chester",null,"Danville",null,"Deerfield",null,"Derry",null,"East Kingston",null,"Epping",null,"Exeter",null,"Fremont",null,"Greenland",null,"Hampstead",null,"Hampton",null,"Hampton Falls",null,"Kensington",null,"Kingston",null,"Londonderry",null,"New Castle",null,"Newfields",null,"Newington",null,"Newmarket",null,"Newton",null,"North Hampton",null,"Northwood",null,"Nottingham",null,"Plaistow",null,"Portsmouth",null,"Raymond",null,"Rye",null,"Salem",null,"Sandown",null,"Seabrook",null,"South Hampton",null,"Stratham",null,"Windham"]
[null,null,"Estimate","Margin Of Error","Estimate","Margin Of Error","Estimate","Margin Of Error","Estimate","Margin Of Error","Estimate","Margin Of Error","Estimate","Margin Of Error","Estimate","Margin Of Error","Estimate","Margin Of Error","Estimate","Margin Of Error","Estimate","Margin Of Error","Estimate","Margin Of Error","Estimate","Margin Of Error","Estimate","Margin Of Error","Estimate","Margin Of Error","Estimate","Margin Of Error","Estimate","Margin Of Error","Estimate","Margin Of Error","Estimate","Margin Of Error","Estimate","Margin Of Error","Estimate","Margin Of Error","Estimate","Margin Of Error","Estimate","Margin Of Error","Estimate","Margin Of Error","Estimate","Margin Of Error","Estimate","Margin Of Error","Estimate","Margin Of Error","Estimate","Margin Of Error","Estimate","Margin Of Error","Estimate","Margin Of Error","Estimate","Margin Of Error","Estimate","Margin Of Error","Estimate","Margin Of Error","Estimate","Margin Of Error","Estimate","Margin Of Error","Estimate","Margin Of Error","Estimate","Margin Of Error","Estimate","Margin Of Error"]
[null,"Median household income in the past 12 months"]
[null,"Total:",95341,16514,106222,11763,101840,14787,93977,9313,107833,16108,90938,11320,87982,8157,65637,3070,85333,11321,77321,14601,74071,6863,82218,6170,86972,6428,88689,13786,73750,8082,105909,13043,107054,6658,74817,7605,91861,4372,122604,31606,102500,20977,87857,15151,63298,7284,78980,4962,86853,14266,71379,19077,86250,19210,70264,8936,67679,3601,66563,7527,95583,14917,78395,4868,78840,11890,51684,7970,91250,23180,116875,15950,111982,7400]
[null,"Householder under 25 years","-","**","-","**","-","**","-","**","-","**",60625,147650,"-","**",34712,10408,"-","**","-","**",115172,111388,"-","**","-","**",31607,7778,25903,17433,"-","**","-","**","-","**",59583,37009,"-","**","-","**","-","**",55563,21865,"-","**","-","**",42798,55082,"-","**","-","**",51528,23118,31375,6206,"-","**",52188,27333,"-","**",34067,11912,"-","**","-","**","-","**"]
[null,"Householder 25 to 44 years",117882,36607,118611,25960,155298,17254,93309,27690,156250,20453,84922,33651,71591,30291,68388,6740,110625,23761,101607,27313,74688,17499,93333,15128,129435,30181,101615,5156,100970,9617,106136,14129,106250,18777,74848,15819,97245,11097,134583,109939,115833,72671,73375,32071,61154,9901,82308,22413,85694,45102,81042,15211,107955,28993,79342,14654,76220,8083,79261,5613,117660,50650,86817,9007,77745,9438,74095,44899,136250,33584,132558,30836,132813,11362]
[null,"Householder 45 to 64 years",107600,10605,112895,11510,101385,20717,98800,5580,108571,16276,100045,6140,94034,9135,79403,5273,115536,15340,77588,16319,88367,6551,83816,5977,87350,12060,105865,12141,86284,5751,123929,28764,118063,12324,96369,17920,107652,9280,132875,21470,117857,14349,98438,6086,74321,6266,94653,24998,110284,20763,90446,16273,84500,29219,79231,17514,79350,9012,70123,6770,127196,11907,87310,9794,116726,23344,64783,18450,78125,35383,151019,17560,116099,14963]
[null,"Householder 65 years and over",59063,16449,49453,37394,38125,47615,55694,17774,55625,12858,48125,9897,57679,23973,35286,5803,40750,15650,34220,14668,49536,4724,68056,41377,62500,11423,42589,12557,55000,10116,78750,20922,74750,5046,41023,6691,53750,7768,84583,35983,53438,15136,58750,30050,36563,12215,45680,2685,75938,13532,52778,11072,57500,29766,43854,13768,47439,8381,35556,12363,56776,19083,41859,5853,42361,7087,45156,14927,67679,5233,55278,14441,51550,21955]
[]
[]
[]
[null,"B19049. MEDIAN HOUSEHOLD INCOME IN THE PAST 12 MONTHS (IN 2009 INFLATION-ADJUSTED DOLLARS) BY AGE OF HOUSEHOLDER "]
[null,"Universe:  HOUSEHOLDS"]
[null,"Data Set: 2005-2009 American Community Survey 5-Year Estimates"]
[]
[null,null,"Atkinson",null,"Auburn",null,"Brentwood",null,"Candia",null,"Chester",null,"Danville",null,"Deerfield",null,"Derry",null,"East Kingston",null,"Epping",null,"Exeter",null,"Fremont",null,"Greenland",null,"Hampstead",null,"Hampton",null,"Hampton Falls",null,"Kensington",null,"Kingston",null,"Londonderry",null,"New Castle",null,"Newfields",null,"Newington",null,"Newmarket",null,"Newton",null,"North Hampton",null,"Northwood",null,"Nottingham",null,"Plaistow",null,"Portsmouth",null,"Raymond",null,"Rye",null,"Salem",null,"Sandown",null,"Seabrook",null,"South Hampton",null,"Stratham",null,"Windham"]
[null,null,"Estimate","Margin Of Error","Estimate","Margin Of Error","Estimate","Margin Of Error","Estimate","Margin Of Error","Estimate","Margin Of Error","Estimate","Margin Of Error","Estimate","Margin Of Error","Estimate","Margin Of Error","Estimate","Margin Of Error","Estimate","Margin Of Error","Estimate","Margin Of Error","Estimate","Margin Of Error","Estimate","Margin Of Error","Estimate","Margin Of Error","Estimate","Margin Of Error","Estimate","Margin Of Error","Estimate","Margin Of Error","Estimate","Margin Of Error","Estimate","Margin Of Error","Estimate","Margin Of Error","Estimate","Margin Of Error","Estimate","Margin Of Error","Estimate","Margin Of Error","Estimate","Margin Of Error","Estimate","Margin Of Error","Estimate","Margin Of Error","Estimate","Margin Of Error","Estimate","Margin Of Error","Estimate","Margin Of Error","Estimate","Margin Of Error","Estimate","Margin Of Error","Estimate","Margin Of Error","Estimate","Margin Of Error","Estimate","Margin Of Error","Estimate","Margin Of Error","Estimate","Margin Of Error","Estimate","Margin Of Error"]
[null,"Median household income in the past 12 months"]
[null,"Total:",90399,15663,84750,15754,112440,9967,93929,9318,94953,8176,79813,20331,79866,10920,70303,4759,90000,10127,70984,6298,61089,7358,81754,5976,82216,14313,77825,9332,63548,5142,114107,8402,88971,10157,70063,5319,86962,4211,75227,28222,107596,16560,81250,15878,68343,4379,92949,5297,77832,8790,64325,1980,99167,6226,76392,7922,62395,2873,54108,4871,77064,12614,70813,4764,85645,7353,50718,5131,78375,13039,103271,5650,113867,6508]
[null,"Householder under 25 years","**","**","**","**","**","**",72411,36051,"**","**","**","**","**","**",42708,23810,56389,33435,"**","**",38155,13815,"**","**","**","**",48098,2060,38438,7639,"**","**","**","**",64565,128139,48977,36516,"**","**","**","**","**","**",34375,10790,"**","**",4737,57736,63098,32533,116005,11926,14209,80808,39200,12767,42339,5423,73361,26460,41148,16026,"**","**",19643,38366,"**","**",7431,171085,123056,79536]
[null,"Householder 25 to 44 years",102969,11079,80982,15737,124444,18380,106786,13627,103802,6948,102737,18147,86791,5232,78587,5984,111583,7711,78523,9467,68719,22551,86157,7055,92292,42462,87273,16146,73085,12514,136250,30574,116429,28050,89826,3005,98198,17439,154583,152072,141563,37430,57143,9127,74444,12630,107286,8794,90245,13402,64794,11069,97650,13175,89099,10701,71741,5060,64950,12351,105850,11529,77252,7047,87308,11188,53882,9017,86250,48668,106589,10709,122464,11828]
[null,"Householder 45 to 64 years",109081,19133,101908,17167,110192,12167,100888,9376,92258,6145,90500,19305,83500,17337,78453,4060,92778,17527,71579,11954,87841,16725,81594,21058,87917,20778,93859,7263,75757,5867,118958,11861,93571,11569,73750,11508,97220,11977,70769,37831,101818,27253,88375,10038,75370,10529,91686,4154,97500,18109,67656,6792,109643,7169,87260,17225,76442,12517,58833,8579,104167,26406,84691,7437,89107,14503,67871,5136,98333,34403,112500,24233,120539,9538]
[null,"Householder 65 years and over",32750,10097,35556,18914,80938,32760,42375,8296,49938,9340,30875,5515,43375,17645,33878,4224,46719,30976,41595,23570,40428,5806,58319,25087,69688,7560,37768,14353,40556,5898,67188,10561,52917,13106,26855,10203,43825,8583,59167,39624,56250,17357,63125,27484,43913,7742,27917,12763,57981,13718,48854,17851,40703,9389,37375,16609,39229,3359,25093,6104,49761,13915,34549,5258,39167,15876,31287,13166,38889,12103,68672,31994,40638,9477]

{"sheet":"ACS_Table_B25118","index":40,"n_rows":191,"n_cols":76,"rows_kept":191,"cut":false,"hidden":true,"merged":[]}
[null,"B25118. TENURE BY HOUSEHOLD INCOME IN THE PAST 12 MONTHS (IN 2019 INFLATION-ADJUSTED DOLLARS) "]
[null,"Universe:  OCCUPIED HOUSING UNITS"]
[null,"Data Set: 2014-2018 American Community Survey 5-Year Estimates"]
[]
[null,null,"Atkinson",null,"Auburn",null,"Brentwood",null,"Candia",null,"Chester",null,"Danville",null,"Deerfield",null,"Derry",null,"East Kingston",null,"Epping",null,"Exeter",null,"Fremont",null,"Greenland",null,"Hampstead",null,"Hampton",null,"Hampton Falls",null,"Kensington",null,"Kingston",null,"Londonderry",null,"New Castle",null,"Newfields",null,"Newington",null,"Newmarket",null,"Newton",null,"North Hampton",null,"Northwood",null,"Nottingham",null,"Plaistow",null,"Portsmouth",null,"Raymond",null,"Rye",null,"Salem",null,"Sandown",null,"Seabrook",null,"South Hampton",null,"Stratham",null,"Windham"]
[null,null,"Estimate","Margin Of Error","Estimate","Margin Of Error","Estimate","Margin Of Error","Estimate","Margin Of Error","Estimate","Margin Of Error","Estimate","Margin Of Error","Estimate","Margin Of Error","Estimate","Margin Of Error","Estimate","Margin Of Error","Estimate","Margin Of Error","Estimate","Margin Of Error","Estimate","Margin Of Error","Estimate","Margin Of Error","Estimate","Margin Of Error","Estimate","Margin Of Error","Estimate","Margin Of Error","Estimate","Margin Of Error","Estimate","Margin Of Error","Estimate","Margin Of Error","Estimate","Margin Of Error","Estimate","Margin Of Error","Estimate","Margin Of Error","Estimate","Margin Of Error","Estimate","Margin Of Error","Estimate","Margin Of Error","Estimate","Margin Of Error","Estimate","Margin Of Error","Estimate","Margin Of Error","Estimate","Margin Of Error","Estimate","Margin Of Error","Estimate","Margin Of Error","Estimate","Margin Of Error","Estimate","Margin Of Error","Estimate","Margin Of Error","Estimate","Margin Of Error","Estimate","Margin Of Error","Estimate","Margin Of Error"]
[null,"Total:",2745,185,1973,91,1533,82,1537,80,1687,101,1685,93,1653,86,12741,353,888,65,2680,155,6542,249,1764,77,1516,85,3573,147,7088,199,909,54,845,53,2411,198,9338,206,436,85,600,67,307,39,4035,177,1853,107,1820,118,1611,107,1900,108,3119,164,10063,259,4112,193,2364,153,11536,318,2229,137,3824,194,302,41,2817,137,5009,196]
[null,"Owner occupied:",2551,169,1819,147,1400,110,1454,91,1642,95,1430,117,1453,121,8291,386,849,65,2288,170,4479,253,1614,99,1256,86,2789,176,5394,240,828,64,760,46,2031,186,7989,256,391,80,560,66,259,37,2121,197,1487,144,1612,123,1460,120,1767,119,2548,220,5237,245,3224,225,1941,155,9006,348,2025,145,2600,211,264,36,2487,162,4805,205]
[null,"Less than $5,000",12,21,13,18,8,12,9,16,0,16,9,14,52,43,163,85,11,12,14,22,111,94,0,11,41,36,43,41,50,38,0,11,7,8,0,16,43,37,0,11,0,11,2,3,19,23,8,13,20,22,0,11,0,16,46,72,37,31,12,18,21,33,177,110,0,16,12,20,0,11,64,62,12,19]
[null,"$5,000 to $9,999",14,22,0,16,11,19,55,63,0,16,0,11,11,19,24,24,6,9,0,16,26,24,0,11,0,11,45,42,86,73,37,39,3,4,20,32,27,24,5,8,3,4,2,3,0,16,8,13,32,25,22,34,0,16,0,16,24,25,12,20,16,24,82,92,12,20,0,16,9,8,0,16,0,18]
[null,"$10,000 to $14,999",50,63,10,16,21,23,21,24,12,20,10,15,36,34,77,57,19,16,28,32,94,66,28,25,36,27,53,55,81,52,0,11,6,7,19,21,48,28,0,11,3,5,4,6,0,16,0,11,19,23,0,11,24,26,62,51,68,43,101,57,0,16,61,50,13,23,60,47,0,11,31,35,56,57]
[null,"$15,000 to $19,999",14,23,0,16,20,23,39,30,0,16,43,44,9,14,87,54,12,13,80,72,72,40,8,12,18,14,76,70,154,66,6,9,14,17,15,26,154,87,6,8,8,9,2,5,27,26,58,55,26,25,31,28,19,20,0,16,91,65,26,23,0,16,217,132,0,16,153,84,5,5,0,16,142,104]
[null,"$20,000 to $24,999",31,37,56,40,49,38,28,42,0,16,62,57,0,11,138,75,0,11,50,42,101,65,37,49,35,34,57,54,87,46,0,11,10,8,37,35,109,63,19,22,0,11,5,6,53,36,0,11,27,25,36,27,93,67,82,83,92,64,126,80,59,56,188,74,11,18,75,83,0,11,0,16,51,54]
[null,"$25,000 to $34,999",88,58,37,31,38,31,76,53,63,55,36,25,48,35,281,134,47,23,98,81,272,93,25,23,37,28,55,43,167,68,59,42,26,12,91,72,369,100,38,32,8,10,9,9,81,59,28,24,65,56,18,21,71,54,107,86,145,65,164,75,34,38,376,131,131,83,128,65,15,10,92,61,88,57]
[null,"$35,000 to $49,999",114,84,95,67,35,33,68,50,82,46,93,49,54,37,708,158,78,47,234,124,321,140,106,49,80,52,145,49,317,87,29,20,47,24,171,81,496,124,17,19,15,20,10,8,221,87,62,38,110,57,136,70,63,33,184,91,220,85,288,120,118,63,798,180,120,81,282,116,23,10,196,95,228,103]
[null,"$50,000 to $74,999",278,109,165,63,182,65,200,80,155,66,230,96,147,59,1389,273,106,36,477,160,726,144,224,68,42,29,403,125,891,168,56,37,115,32,325,148,1069,191,38,22,55,20,51,19,257,91,143,60,298,88,248,74,339,101,514,144,734,163,513,119,263,112,1340,261,287,129,483,147,42,18,289,125,597,174]
[null,"$75,000 to $99,999",321,137,259,83,85,47,166,59,164,78,206,71,242,85,881,194,108,33,316,118,699,147,232,70,181,76,338,88,858,194,70,30,91,33,331,156,1033,158,27,20,34,19,28,16,350,106,182,77,195,85,248,75,323,98,291,99,644,130,586,148,217,85,1126,207,235,100,369,139,15,9,379,150,415,155]
[null,"$100,000 to $149,999",714,165,560,116,312,91,340,114,387,108,353,84,430,100,2578,330,161,48,485,138,814,182,567,118,292,77,703,144,1107,164,181,56,170,36,426,140,2005,256,44,24,119,35,46,17,611,119,502,98,264,81,447,108,462,124,736,183,1345,222,957,203,336,128,1912,218,647,152,603,127,66,24,469,140,825,208]
[null,"$150,000 or more",915,179,624,96,639,108,452,108,779,103,388,97,424,98,1965,198,301,46,506,120,1243,172,387,109,494,92,871,129,1596,172,390,64,271,40,596,134,2636,260,197,63,315,52,100,29,502,115,496,117,556,111,274,87,373,86,526,154,1837,195,439,127,877,173,2729,278,569,161,435,113,89,25,967,164,2391,247]
[null,"Renter occupied:",194,106,154,88,133,73,83,62,45,45,255,107,200,79,4450,369,39,27,392,148,2063,256,150,72,260,79,784,169,1694,197,81,38,85,34,380,139,1349,200,45,31,40,20,48,19,1914,180,366,104,208,75,151,72,133,66,571,169,4826,262,888,167,423,174,2530,315,204,103,1224,199,38,26,330,133,204,109]
[null,"Less than $5,000",0,16,0,16,0,11,0,11,0,16,0,11,0,11,188,139,0,11,20,31,77,52,0,11,0,11,9,14,44,33,0,11,4,5,19,30,10,16,0,11,0,11,2,4,114,98,0,11,0,11,0,11,0,16,13,22,165,98,0,18,0,16,91,63,0,16,44,36,4,5,0,16,0,18]
[null,"$5,000 to $9,999",18,28,0,16,0,11,0,11,0,16,0,11,0,11,202,134,0,11,0,16,37,38,8,14,0,11,10,16,12,21,0,11,0,11,0,16,36,33,0,11,4,7,4,5,15,23,18,20,9,13,17,20,14,21,44,73,187,98,66,59,0,16,74,62,0,16,71,64,0,11,0,16,0,18]
[null,"$10,000 to $14,999",0,16,0,16,0,11,0,11,0,16,0,11,12,18,275,116,5,9,18,30,94,51,0,11,0,11,0,16,69,69,0,11,5,6,68,85,7,10,0,11,0,11,2,4,80,64,54,50,6,10,0,11,0,16,34,39,224,101,116,73,0,16,175,125,27,42,10,16,0,11,0,16,0,18]
[null,"$15,000 to $19,999",0,16,0,16,33,52,16,26,0,16,0,11,6,10,177,76,0,11,11,18,98,62,0,11,0,11,76,100,100,57,5,7,4,5,0,16,49,49,0,11,4,6,0,11,117,78,16,13,0,11,9,17,0,16,0,16,271,124,35,37,0,16,204,114,43,68,143,72,0,11,0,16,16,25]
[null,"$20,000 to $24,999",53,83,0,16,0,11,8,13,11,19,37,57,0,11,203,138,0,11,89,90,220,114,0,11,0,11,33,38,81,47,0,11,4,5,24,39,35,45,0,11,0,11,0,11,110,114,7,12,7,12,11,17,12,19,0,16,243,121,45,31,21,35,267,151,0,16,9,16,0,11,33,39,17,29]
[null,"$25,000 to $34,999",0,16,0,16,0,11,20,30,0,16,101,74,33,38,495,201,4,8,32,39,187,92,9,14,28,27,153,107,215,85,0,11,3,5,95,116,202,97,11,17,0,11,3,5,167,88,27,24,36,29,18,21,0,16,66,79,404,141,78,67,136,116,238,124,0,16,120,55,0,11,0,16,17,27]
[null,"$35,000 to $49,999",61,90,42,38,12,17,31,45,0,16,28,45,26,23,775,225,5,8,81,93,358,134,14,22,35,35,251,143,290,99,12,19,16,22,116,104,84,61,0,11,11,11,0,11,325,125,46,50,34,26,16,20,0,16,133,121,463,150,186,97,21,34,372,138,68,68,190,94,17,19,72,58,0,18]
[null,"$50,000 to $74,999",14,22,0,16,29,26,8,12,34,52,10,17,19,21,1041,192,19,18,66,53,410,166,65,61,40,46,190,91,360,111,21,18,23,15,31,35,267,99,19,21,5,7,4,7,470,135,46,58,23,34,53,55,70,54,210,142,1239,230,209,110,56,50,464,172,34,40,242,109,4,7,82,82,26,28]
[null,"$75,000 to $99,999",30,34,54,61,9,14,0,11,0,16,30,34,56,53,546,174,0,11,65,53,194,73,24,26,29,25,34,51,240,95,6,8,17,19,0,16,267,99,0,11,9,8,8,7,206,91,66,72,43,34,17,21,17,25,40,47,434,134,27,32,76,104,284,123,0,16,209,98,3,5,39,33,26,31]
[null,"$100,000 to $149,999",18,29,27,30,31,46,0,11,0,16,21,23,44,54,485,155,0,11,10,18,159,94,30,29,50,31,28,28,221,82,34,31,2,5,27,44,313,128,0,11,3,5,18,15,260,97,69,65,26,24,0,11,0,16,31,46,732,169,126,108,0,16,228,102,0,16,131,77,10,7,40,47,15,24]
[null,"$150,000 or more",0,16,31,48,19,23,0,11,0,16,28,44,4,7,63,55,6,8,0,16,229,107,0,11,78,58,0,16,62,44,3,5,7,7,0,16,79,45,15,17,4,6,7,9,50,37,17,20,24,28,10,16,20,22,0,16,464,132,0,18,113,92,133,89,32,37,55,43,0,11,64,67,87,74]
[]
[]
[]
[]
[]
[null,"Calculated B25118. TENURE BY HOUSEHOLD INCOME IN THE PAST 12 MONTHS (IN 2019 INFLATION-ADJUSTED DOLLARS) "]
[null,"Universe:  OCCUPIED HOUSING UNITS"]
[null,"Data Set: 2014-2018 American Community Survey 5-Year Estimates"]
[null,null,"Atkinson",null,"Auburn",null,"Brentwood",null,"Candia",null,"Chester",null,"Danville",null,"Deerfield",null,"Derry",null,"East Kingston",null,"Epping",null,"Exeter",null,"Fremont",null,"Greenland",null,"Hampstead",null,"Hampton",null,"Hampton Falls",null,"Kensington",null,"Kingston",null,"Londonderry",null,"New Castle",null,"Newfields",null,"Newington",null,"Newmarket",null,"Newton",null,"North Hampton",null,"Northwood",null,"Nottingham",null,"Plaistow",null,"Portsmouth",null,"Raymond",null,"Rye",null,"Salem",null,"Sandown",null,"Seabrook",null,"South Hampton",null,"Stratham",null,"Windham"]
[null,null,"Estimate","Margin Of Error","Estimate","Margin Of Error","Estimate","Margin Of Error","Estimate","Margin Of Error","Estimate","Margin Of Error","Estimate","Margin Of Error","Estimate","Margin Of Error","Estimate","Margin Of Error","Estimate","Margin Of Error","Estimate","Margin Of Error","Estimate","Margin Of Error","Estimate","Margin Of Error","Estimate","Margin Of Error","Estimate","Margin Of Error","Estimate","Margin Of Error","Estimate","Margin Of Error","Estimate","Margin Of Error","Estimate","Margin Of Error","Estimate","Margin Of Error","Estimate","Margin Of Error","Estimate","Margin Of Error","Estimate","Margin Of Error","Estimate","Margin Of Error","Estimate","Margin Of Error","Estimate","Margin Of Error","Estimate","Margin Of Error","Estimate","Margin Of Error","Estimate","Margin Of Error","Estimate","Margin Of Error","Estimate","Margin Of Error","Estimate","Margin Of Error","Estimate","Margin Of Error","Estimate","Margin Of Error","Estimate","Margin Of Error","Estimate","Margin Of Error","Estimate","Margin Of Error","Estimate","Margin Of Error"]
[null,{"$f":"B7","v":"Total:"},2745,185,1973,91,1533,82,1537,80,1687,101,1685,93,1653,86,12741,353,888,65,2680,155,6542,249,{"$f":"Y7","v":1764},77,1516,85,3573,147,7088,199,909,54,845,53,2411,198,9338,206,{"$f":"AO7","v":436},85,600,67,307,39,4035,177,1853,107,1820,118,1611,107,1900,108,{"$f":"BE7","v":3119},164,10063,259,4112,193,2364,153,11536,318,2229,137,3824,194,302,41,2817,137,5009,196]
[null,"Less than $5,000",{"$f":"C9+C21","v":12},{"$f":"SQRT((D9^2)+(D21^2))","v":26.40075756488817},{"$f":"E9+E21","v":13},{"$f":"SQRT((F9^2)+(F21^2))","v":24.083189157584592},{"$f":"G9+G21","v":8},{"$f":"SQRT((H9^2)+(H21^2))","v":16.278820596099706},{"$f":"I9+I21","v":9},{"$f":"SQRT((J9^2)+(J21^2))","v":19.416487838947599},{"$f":"K9+K21","v":0},{"$f":"SQRT((L9^2)+(L21^2))","v":22.627416997969522},{"$f":"M9+M21","v":9},{"$f":"SQRT((N9^2)+(N21^2))","v":17.804493814764857},{"$f":"O9+O21","v":52},{"$f":"SQRT((P9^2)+(P21^2))","v":44.384682042344295},{"$f":"Q9+Q21","v":351},{"$f":"SQRT((R9^2)+(R21^2))","v":162.92943257741985},{"$f":"S9+S21","v":11},{"$f":"SQRT((T9^2)+(T21^2))","v":16.278820596099706},{"$f":"U9+U21","v":34},{"$f":"SQRT((V9^2)+(V21^2))","v":38.013155617496423},{"$f":"W9+W21","v":188},{"$f":"SQRT((X9^2)+(X21^2))","v":107.42439201596628},{"$f":"Y9+Y21","v":0},{"$f":"SQRT((Z9^2)+(Z21^2))","v":15.556349186104045},{"$f":"AA9+AA21","v":41},{"$f":"SQRT((AB9^2)+(AB21^2))","v":37.643060449437421},{"$f":"AC9+AC21","v":52},{"$f":"SQRT((AD9^2)+(AD21^2))","v":43.324358044868937},{"$f":"AE9+AE21","v":94},{"$f":"SQRT((AF9^2)+(AF21^2))","v":50.328918128646478},{"$f":"AG9+AG21","v":0},{"$f":"SQRT((AH9^2)+(AH21^2))","v":15.556349186104045},{"$f":"AI9+AI21","v":11},{"$f":"SQRT((AJ9^2)+(AJ21^2))","v":9.4339811320566032},{"$f":"AK9+AK21","v":19},{"$f":"SQRT((AL9^2)+(AL21^2))","v":34},{"$f":"AM9+AM21","v":53},{"$f":"SQRT((AN9^2)+(AN21^2))","v":40.311288741492746},0,15.556349186104045,{"$f":"AQ9+AQ21","v":0},{"$f":"SQRT((AR9^2)+(AR21^2))","v":15.556349186104045},{"$f":"AS9+AS21","v":4},{"$f":"SQRT((AT9^2)+(AT21^2))","v":5},{"$f":"AU9+AU21","v":133},{"$f":"SQRT((AV9^2)+(AV21^2))","v":100.66280345788111},{"$f":"AW9+AW21","v":8},{"$f":"SQRT((AX9^2)+(AX21^2))","v":17.029386365926403},{"$f":"AY9+AY21","v":20},{"$f":"SQRT((AZ9^2)+(AZ21^2))","v":24.596747752497688},{"$f":"BA9+BA21","v":0},{"$f":"SQRT((BB9^2)+(BB21^2))","v":15.556349186104045},{"$f":"BC9+BC21","v":0},{"$f":"SQRT((BD9^2)+(BD21^2))","v":22.627416997969522},59,75.286120898874842,{"$f":"BG9+BG21","v":202},{"$f":"SQRT((BH9^2)+(BH21^2))","v":102.7861858422619},{"$f":"BI9+BI21","v":12},{"$f":"SQRT((BJ9^2)+(BJ21^2))","v":25.45584412271571},{"$f":"BK9+BK21","v":21},{"$f":"SQRT((BL9^2)+(BL21^2))","v":36.674241641784498},{"$f":"BM9+BM21","v":268},{"$f":"SQRT((BN9^2)+(BN21^2))","v":126.763559432512},{"$f":"BO9+BO21","v":0},{"$f":"SQRT((BP9^2)+(BP21^2))","v":22.627416997969522},{"$f":"BQ9+BQ21","v":56},{"$f":"SQRT((BR9^2)+(BR21^2))","v":41.182520563948003},{"$f":"BS9+BS21","v":4},{"$f":"SQRT((BT9^2)+(BT21^2))","v":12.083045973594572},{"$f":"BU9+BU21","v":64},{"$f":"SQRT((BV9^2)+(BV21^2))","v":64.031242374328485},{"$f":"BW9+BW21","v":12},{"$f":"SQRT((BX9^2)+(BX21^2))","v":26.172504656604801}]
[null,"$5,000 to $9,999",{"$f":"C10+C22","v":32},{"$f":"SQRT((D10^2)+(D22^2))","v":35.608987629529715},{"$f":"E10+E22","v":0},22.627416997969522,{"$f":"G10+G22","v":11},21.95449840010015,{"$f":"I10+I22","v":55},63.953107821277925,{"$f":"K10+K22","v":0},22.627416997969522,{"$f":"M10+M22","v":0},15.556349186104045,{"$f":"O10+O22","v":11},21.95449840010015,{"$f":"Q10+Q22","v":226},136.13228860193308,6,14.212670403551895,0,22.627416997969522,63,44.944410108488462,8,17.804493814764857,0,15.556349186104045,55,44.944410108488462,98,75.960516059331766,37,40.521599178709621,3,11.704699910719626,20,35.777087639996637,63,40.80441152620633,5,13.601470508735444,7,8.0622577482985491,6,5.8309518948453007,15,28.0178514522438,26,23.853720883753127,41,28.178005607210743,39,39.446165846632042,14,26.40075756488817,44,74.732857566133518,211,101.13851887386922,78,62.297672508690084,16,28.844410203711913,156,110.94142598686931,12,25.612496949731394,71,65.969690009882569,9,13.601470508735444,0,22.627416997969522,0,25.45584412271571]
[null,"$10,000 to $14,999",{"$f":"C11+C23","v":50},65,{"$f":"E11+E23","v":10},22.627416997969522,{"$f":"G11+G23","v":21},25.495097567963924,{"$f":"I11+I23","v":21},26.40075756488817,{"$f":"K11+K23","v":12},25.612496949731394,{"$f":"M11+M23","v":10},18.601075237738275,{"$f":"O11+O23","v":48},38.470768123342687,{"$f":"Q11+Q23","v":352},129.24782396620841,24,18.357559750685819,46,43.863424398922618,188,83.408632646747066,28,27.313000567495326,36,29.154759474226502,53,57.280013966478741,150,86.400231481171389,0,15.556349186104045,11,9.2195444572928871,87,87.555696559390128,55,29.732137494637012,0,15.556349186104045,3,12.083045973594572,6,7.2111025509279782,80,65.969690009882569,54,51.195702944680818,25,25.079872407968907,0,15.556349186104045,24,30.528675044947494,96,64.202803677098089,292,109.77249200050075,217,92.617492948146676,0,22.627416997969522,236,134.6291201783626,40,47.885279575251516,70,49.648766349225639,0,15.556349186104045,31,38.483762809787713,56,59.774576535513823]
[null,"$15,000 to $19,999",{"$f":"C12+C24","v":14},28.0178514522438,0,22.627416997969522,53,56.859475903318,55,39.698866482558415,0,22.627416997969522,43,45.354161881794269,15,17.204650534085253,264,93.23089616645332,12,17.029386365926403,91,74.215901261117892,170,73.783466982786862,8,16.278820596099706,18,17.804493814764857,152,122.06555615733703,254,87.206651122491792,11,11.401754250991379,18,17.720045146669349,15,30.528675044947494,203,99.84988733093293,6,13.601470508735444,12,10.816653826391969,2,12.083045973594572,144,82.219219164377861,74,56.515484603779164,26,27.313000567495326,40,32.756678708318397,19,25.612496949731394,0,22.627416997969522,362,140.00357138301865,61,43.56604182158393,0,22.627416997969522,421,174.41330224498358,43,69.856996786291916,296,110.63453348751464,5,12.083045973594572,0,22.627416997969522,158,106.96261028976434]
[null,"$20,000 to $24,999",84,90.87353850269065,56,43.08131845707603,49,39.560080889704963,36,43.965895873961216,11,24.839484696748443,99,80.610173055266415,0,15.556349186104045,341,157.06368135250111,0,15.556349186104045,139,99.31767214348109,321,131.22880781291889,37,50.219518117958877,35,35.735136770411273,90,66.030296076876709,168,65.76473218982953,0,15.556349186104045,14,9.4339811320566032,61,52.40229002629561,144,77.420927403383644,19,24.596747752497688,0,15.556349186104045,5,12.529964086141668,163,119.54915307102765,7,16.278820596099706,34,27.730849247724095,47,31.906112267087632,105,69.641941385920603,82,84.528101836016646,335,136.88316185711082,171,85.796270315206598,80,66.037867924396224,455,168.15766411317682,11,24.083189157584592,84,84.528101836016646,0,15.556349186104045,33,42.154477816715982,68,61.294371682887821]
[null,"$25,000 to $34,999",88,60.166435825965294,37,34.885527085024819,38,32.893768406797051,96,60.901559914340453,63,57.280013966478741,137,78.108898340714035,81,51.662365412357957,776,241.57193545608729,51,24.351591323771842,130,89.899944382630181,459,130.81666560496029,34,26.92582403567252,65,38.897300677553446,208,115.31695452100702,382,108.85311203635843,59,43.416586692184822,29,13,186,136.5283853270081,571,139.31618714277246,49,36.235341863986875,8,14.866068747318506,12,10.295630140987001,248,105.94810050208545,55,33.941125496954278,101,63.063460101710248,36,29.698484809834994,71,56.320511361314892,173,116.77756633874505,549,155.26107045875989,242,100.56838469419701,170,122.06555615733703,614,180.38015411901608,131,84.528101836016646,248,85.14693182963201,15,14.866068747318506,92,63.063460101710248,105,63.071388124885914]
[null,"$35,000 to $49,999",175,123.10970717209915,137,77.025969646606853,47,37.12142238654117,99,67.268120235368556,82,48.703182647543684,121,66.528189513919585,80,43.56604182158393,1483,274.93453766305896,83,47.675989764240867,315,155,679,193.79370474811611,120,53.712196007983138,115,62.681735776859277,396,151.16216457830973,607,131.79529581893277,41,27.586228448267445,63,32.557641192199412,287,131.82184947875675,580,138.19189556555045,17,21.95449840010015,26,22.825424421026653,10,13.601470508735444,546,152.29576487873851,108,62.801273872430329,144,62.649820430708338,152,72.801098892805186,63,36.674241641784498,317,151.40013210033868,683,172.40939649566667,474,154.30165261590687,139,71.589105316381762,1170,226.8126980572296,188,105.75916035975324,472,149.30505684671232,40,21.470910553583888,268,111.30588483993108,228,104.5609869884557]
[null,"$50,000 to $74,999",292,111.19802156513397,165,65,211,70.007142492748557,208,80.894993664626739,189,84.02380615040002,240,97.49358953285082,166,62.625873247404705,2430,333.75589882427545,125,40.249223594996216,543,168.54969593564979,1136,219.75440837443966,289,91.35097153287424,82,54.378304497290095,593,154.61565250646521,1251,201.35789033459801,77,41.146081222881968,138,35.341194094144583,356,152.08221460775746,1336,215.13251730038394,57,30.413812651491099,60,21.189620100417091,55,20.248456731316587,727,162.80663377147749,189,83.450584180100265,321,94.339811320566042,301,92.200867674876037,409,114.52947218947619,724,202.23748416156684,1973,281.90246540248631,722,162.05246064160829,319,122.65398485169571,1804,312.57799026802894,321,135.05924625881784,725,183.00273222004091,46,19.313207915827967,371,149.49581933953871,623,176.23847480048164]
[null,"$75,000 to $99,999",351,141.15594213493105,313,103.00485425454472,94,49.040799340956916,166,60.016664352494629,164,79.624116949577527,236,78.721026416072604,298,100.16985574512923,1427,260.59930928534709,108,34.785054261852174,381,129.3560976529518,893,164.12799883018133,256,74.672618810377884,210,80.006249755878443,372,101.71037311896953,1098,216.01157376399996,76,31.048349392520048,108,38.078865529319543,331,156.81836627130127,1300,186.45374761586316,27,22.825424421026653,43,20.615528128088304,36,17.464249196572979,556,139.70325694127536,248,105.41821474489122,238,91.547801721286575,265,77.884529914483011,340,101.13851887386922,331,109.59014554237986,1078,186.69761648183942,613,151.4199458459816,293,134.31678971744373,1410,240.78621222985339,235,101.27191120937731,578,170.07351351694948,18,10.295630140987001,418,153.58710883404245,441,158.06960492137634]
[null,"$100,000 to $149,999",732,167.5291019494822,587,119.81652640600127,343,101.96568050084302,340,114.52947218947619,387,109.17875251164945,374,87.091905479212016,474,113.64858116140297,3063,364.58880948268285,161,49.244289008980523,495,139.16896205691842,973,204.84140206510986,597,121.51131634543344,342,83.006023877788536,731,146.69696656713799,1328,183.35757415498276,215,64.007812023221035,172,36.345563690772494,453,146.75149062275312,2318,286.2167011199731,44,26.40075756488817,122,35.355339059327378,64,22.671568097509269,871,153.52524222420234,571,117.5967686630887,290,84.480767041972342,447,108.55873986004075,462,125.02799686470227,767,188.69287214942699,2077,279.00716836669267,1083,229.94129685639334,336,128.99612397277679,2140,240.68236329236922,647,152.83978539634239,734,148.51935900750448,76,25,509,147.67870530310049,840,209.38003725283841]
[null,"$150,000 or more",915,179.71366113904642,{"$f":"E19+E31","v":655},107.33126291998991,658,110.42191811411355,452,108.55873986004075,779,104.23531071570709,416,106.51291001564083,428,98.249681933327395,2028,205.49695861496346,307,46.690470119715009,506,121.06196760337245,1472,202.56603861457131,387,109.55363982999378,572,108.75660899458019,871,129.98846102635417,1658,177.53872816937718,393,64.195015382816138,278,40.607881008493905,596,134.9518432626987,2715,263.86549603917524,212,65.253352404301808,319,52.345009313209601,107,30.364452901377952,552,120.8056290079233,513,118.69709347747316,580,114.47707194019246,284,88.459030064770658,393,88.76936408468859,526,154.82893786369524,2301,235.47611343828487,439,128.26924806827239,990,195.94131774590065,2862,291.89895511974686,601,165.19685227025363,490,120.90492132250036,89,27.313000567495326,1031,177.15812146215595,2478,257.84685377176896]
[]
[]
[]
[]
[]
[]
[]
[]
[]
[]
[]
[]
[]
[]
[]
[]
[null,"B25118. TENURE BY HOUSEHOLD INCOME IN THE PAST 12 MONTHS (IN 2014 INFLATION-ADJUSTED DOLLARS) "]
[null,"Universe:  OCCUPIED HOUSING UNITS"]
[null,"Data Set: 2010-2014 American Community Survey 5-Year Estimates"]
[]
[null,null,"Atkinson",null,"Auburn",null,"Brentwood",null,"Candia",null,"Chester",null,"Danville",null,"Deerfield",null,"Derry",null,"East Kingston",null,"Epping",null,"Exeter",null,"Fremont",null,"Greenland",null,"Hampstead",null,"Hampton",null,"Hampton Falls",null,"Kensington",null,"Kingston",null,"Londonderry",null,"New Castle",null,"Newfields",null,"Newington",null,"Newmarket",null,"Newton",null,"North Hampton",null,"Northwood",null,"Nottingham",null,"Plaistow",null,"Portsmouth",null,"Raymond",null,"Rye",null,"Salem",null,"Sandown",null,"Seabrook",null,"South Hampton",null,"Stratham",null,"Windham"]
[null,null,"Estimate","Margin Of Error","Estimate","Margin Of Error","Estimate","Margin Of Error","Estimate","Margin Of Error","Estimate","Margin Of Error","Estimate","Margin Of Error","Estimate","Margin Of Error","Estimate","Margin Of Error","Estimate","Margin Of Error","Estimate","Margin Of Error","Estimate","Margin Of Error","Estimate","Margin Of Error","Estimate","Margin Of Error","Estimate","Margin Of Error","Estimate","Margin Of Error","Estimate","Margin Of Error","Estimate","Margin Of Error","Estimate","Margin Of Error","Estimate","Margin Of Error","Estimate","Margin Of Error","Estimate","Margin Of Error","Estimate","Margin Of Error","Estimate","Margin Of Error","Estimate","Margin Of Error","Estimate","Margin Of Error","Estimate","Margin Of Error","Estimate","Margin Of Error","Estimate","Margin Of Error","Estimate","Margin Of Error","Estimate","Margin Of Error","Estimate","Margin Of Error","Estimate","Margin Of Error","Estimate","Margin Of Error","Estimate","Margin Of Error","Estimate","Margin Of Error","Estimate","Margin Of Error","Estimate","Margin Of Error"]
[null,"Total:",2597,115,1830,82,1400,111,1466,88,1612,80,1537,101,1540,71,12934,350,882,46,2604,154,6248,214,1608,79,1397,55,3447,156,6618,217,902,46,746,53,2442,126,8750,224,451,65,574,71,314,47,3816,203,1747,101,1735,82,1676,118,1824,108,2949,182,10325,302,3864,150,2315,152,11093,285,2130,134,3837,258,306,49,2781,123,4987,197]
[null,"Owner occupied:",2395,123,1660,73,1148,138,1427,91,1487,100,1340,101,1431,108,8244,408,804,59,2236,215,4262,269,1416,112,1206,91,2758,200,4694,303,776,63,692,57,2067,180,7591,258,347,60,523,62,222,38,2036,198,1387,125,1581,105,1460,121,1748,106,2281,256,5452,291,2954,205,1950,183,8451,334,1956,152,2419,259,254,41,2584,163,4611,247]
[null,"Less than $5,000",0,15,19,22,0,11,15,19,19,21,0,11,0,11,71,51,14,17,23,34,33,34,11,16,31,31,34,37,75,61,0,11,4,5,44,43,74,47,8,13,0,11,2,5,31,28,0,11,19,24,0,11,14,17,12,20,126,106,39,37,73,58,123,66,0,15,95,107,0,11,0,15,36,44]
[null,"$5,000 to $9,999",0,15,12,18,24,23,0,11,0,11,0,11,8,12,15,23,10,10,14,22,39,39,26,27,0,11,124,100,12,19,6,9,7,8,32,48,59,45,0,11,0,11,0,11,17,18,19,33,20,24,8,12,0,11,0,15,74,58,7,11,32,38,51,42,18,27,68,83,0,11,0,15,0,17]
[null,"$10,000 to $14,999",43,43,16,19,0,11,29,28,12,15,52,45,25,24,183,106,3,4,33,38,175,107,13,19,0,11,52,48,66,48,10,11,3,5,15,25,120,95,0,11,0,11,0,11,66,45,24,28,35,29,21,16,0,11,41,39,38,36,40,35,17,26,189,91,0,15,10,15,2,4,31,35,68,69]
[null,"$15,000 to $19,999",65,50,26,21,9,15,45,36,5,9,11,17,9,14,285,151,27,20,31,37,42,33,11,15,27,24,42,36,93,49,31,23,4,5,62,49,103,44,0,11,5,6,2,4,49,34,14,16,9,14,65,55,8,12,0,15,108,59,127,86,46,40,188,77,13,21,112,94,0,11,34,38,71,60]
[null,"$20,000 to $24,999",60,47,8,13,14,15,43,33,51,40,20,18,8,13,187,90,21,20,124,121,132,64,17,19,19,21,45,34,81,44,9,11,5,6,60,57,145,64,13,16,10,12,3,4,22,22,0,11,31,24,97,69,32,28,45,36,147,65,136,90,57,45,158,77,104,77,158,114,4,5,78,58,104,72]
[null,"$25,000 to $34,999",35,39,46,34,45,33,41,33,43,32,53,41,73,47,399,125,63,25,180,100,225,103,51,37,54,32,156,62,256,81,24,15,32,16,96,83,301,96,9,12,21,11,10,9,76,61,15,17,77,46,109,62,61,39,149,98,218,78,201,95,127,62,568,144,55,41,174,86,13,12,147,99,168,113]
[null,"$35,000 to $49,999",229,104,135,72,7,11,78,41,48,31,86,61,135,60,794,184,55,28,134,105,506,129,127,52,64,36,165,85,434,111,46,25,49,30,268,110,630,155,30,22,61,31,25,14,139,58,169,88,149,73,141,60,139,62,357,131,617,176,260,109,68,57,964,205,215,96,357,183,24,11,189,108,274,111]
[null,"$50,000 to $74,999",415,115,181,69,164,60,230,90,235,86,210,93,300,92,1619,269,138,45,465,135,634,158,225,74,260,77,346,108,811,171,103,41,77,27,347,122,1124,175,39,25,63,31,31,16,469,148,213,88,231,76,228,92,337,118,523,156,833,181,699,158,278,138,1211,212,415,149,503,169,67,31,334,110,447,153]
[null,"$75,000 to $99,999",328,114,281,88,194,75,299,69,237,78,278,100,261,102,1362,271,105,44,354,118,724,197,361,103,182,71,377,115,700,159,105,39,105,33,386,145,1205,194,27,20,73,31,42,20,382,88,256,87,249,84,313,86,344,108,339,112,650,153,421,135,244,132,1378,238,342,114,365,129,18,11,237,105,587,179]
[null,"$100,000 to $149,999",751,176,455,105,245,70,311,74,389,72,415,87,379,98,2009,255,219,46,588,176,902,201,354,90,219,57,749,140,1003,153,196,52,216,49,375,118,1835,209,95,43,115,42,48,21,466,137,384,101,254,95,310,80,497,123,516,146,1521,205,680,135,534,161,1935,238,424,120,331,114,50,21,441,116,1260,243]
[null,"$150,000 or more",469,141,481,108,446,101,336,81,448,79,215,70,233,81,1320,207,149,41,290,125,850,146,220,69,350,95,668,138,1163,165,246,64,190,36,382,137,1995,218,126,45,175,40,59,22,319,103,293,98,507,96,168,76,316,112,299,125,1120,196,344,132,474,133,1686,265,370,115,246,118,76,26,1093,150,1596,258]
[null,"Renter occupied:",202,108,170,69,252,69,39,39,125,71,197,68,109,71,4690,381,78,39,368,168,1986,226,192,77,191,85,689,159,1924,278,126,46,54,22,375,142,1159,205,104,45,51,32,92,33,1780,197,360,105,154,72,216,99,76,39,668,179,4873,295,910,166,365,177,2642,297,174,100,1418,222,52,26,197,101,376,161]
[null,"Less than $5,000",0,15,0,15,0,11,0,11,11,20,0,11,0,11,80,81,0,11,0,15,57,49,0,11,0,11,0,15,13,12,0,11,0,11,0,15,3,6,3,5,0,11,0,11,119,80,8,13,0,11,0,11,0,11,42,66,75,49,12,18,0,15,30,37,0,15,16,26,0,11,0,15,0,17]
[null,"$5,000 to $9,999",40,47,15,22,0,11,0,11,0,11,7,10,0,11,200,123,8,11,0,15,133,81,9,15,7,11,0,15,51,36,0,11,0,11,51,66,29,28,0,11,0,11,7,7,127,87,72,81,7,12,0,11,0,11,0,15,196,94,37,45,0,15,78,74,0,15,61,52,4,5,0,15,11,18]
[null,"$10,000 to $14,999",0,15,0,15,21,23,0,11,8,14,5,8,0,11,478,153,0,11,38,44,101,59,0,11,0,11,20,23,185,70,0,11,0,11,27,30,17,20,0,11,0,11,2,3,69,49,12,14,0,11,0,11,0,11,0,15,423,152,36,41,0,15,156,85,9,15,87,63,4,6,0,15,15,24]
[null,"$15,000 to $19,999",24,39,9,13,25,23,0,11,0,11,23,37,0,11,339,148,8,11,50,53,144,83,0,11,0,11,110,81,215,131,0,11,8,7,0,15,80,61,0,11,0,11,0,11,170,146,14,17,19,22,7,11,0,11,55,71,162,67,67,67,53,72,168,100,36,55,154,100,9,14,0,15,0,17]
[null,"$20,000 to $24,999",0,15,0,15,10,16,11,19,26,42,13,15,0,11,295,156,0,11,0,15,161,109,0,11,0,11,42,66,87,49,0,11,0,11,12,20,48,53,0,11,4,6,0,11,93,61,0,11,8,12,11,17,13,21,0,15,280,110,22,26,0,15,103,55,0,15,194,123,3,4,0,15,71,110]
[null,"$25,000 to $34,999",57,87,0,15,81,59,12,18,39,51,0,11,20,23,567,181,6,8,41,35,264,129,14,17,33,35,155,113,310,124,22,32,7,8,50,65,178,91,0,11,8,9,10,9,305,101,32,39,41,50,12,19,8,13,168,112,649,167,138,96,20,33,243,102,38,47,119,120,4,5,26,30,44,68]
[null,"$35,000 to $49,999",0,15,76,46,40,30,0,11,10,16,74,49,49,53,872,211,10,11,0,15,170,100,30,35,21,22,118,95,328,109,17,27,0,11,90,77,271,127,15,20,8,13,12,10,211,96,148,94,35,54,78,54,28,31,161,113,700,163,152,92,84,96,590,168,38,60,201,98,0,11,51,45,55,68]
[null,"$50,000 to $74,999",48,56,46,44,21,33,16,26,0,11,36,36,40,47,1040,248,10,11,156,128,321,133,93,65,70,60,109,76,322,116,22,19,17,13,73,74,260,113,25,22,22,22,32,25,400,132,58,65,27,24,86,68,18,19,37,37,1022,195,227,112,69,55,564,163,31,38,249,114,0,11,59,62,53,51]
[null,"$75,000 to $99,999",18,27,0,15,6,10,0,11,0,11,20,33,0,11,527,169,7,9,13,22,198,97,20,24,38,29,35,47,188,84,29,23,10,8,24,28,144,72,21,21,9,12,20,16,125,75,16,26,8,13,0,11,2,7,162,113,695,178,160,90,21,31,439,173,22,32,147,91,9,8,0,15,45,39]
[null,"$100,000 to $149,999",0,15,24,28,11,17,0,11,31,46,19,30,0,11,214,113,29,34,70,74,319,116,0,11,22,34,74,69,94,75,21,24,8,12,48,68,105,75,23,27,0,11,9,9,137,66,0,11,9,14,22,35,0,11,43,67,450,121,45,55,59,51,132,102,0,15,155,142,15,17,61,49,35,32]
[null,"$150,000 or more",15,24,0,15,37,42,0,11,0,11,0,11,0,11,78,44,0,11,0,15,118,64,26,29,0,11,26,28,131,102,15,16,4,6,0,15,24,31,17,18,0,11,0,11,24,31,0,11,0,11,0,11,7,10,0,15,221,128,14,21,59,93,139,107,0,15,35,33,4,5,0,15,47,45]
[]
[]
[]
[]
[]
[null,"Calculated B25118. TENURE BY HOUSEHOLD INCOME IN THE PAST 12 MONTHS (IN 2013 INFLATION-ADJUSTED DOLLARS) "]
[null,"Universe:  OCCUPIED HOUSING UNITS"]
[null,"Data Set: 2010-2014 American Community Survey 5-Year Estimates"]
[null,null,"Atkinson",null,"Auburn",null,"Brentwood",null,"Candia",null,"Chester",null,"Danville",null,"Deerfield",null,"Derry",null,"East Kingston",null,"Epping",null,"Exeter",null,"Fremont",null,"Greenland",null,"Hampstead",null,"Hampton",null,"Hampton Falls",null,"Kensington",null,"Kingston",null,"Londonderry",null,"New Castle",null,"Newfields",null,"Newington",null,"Newmarket",null,"Newton",null,"North Hampton",null,"Northwood",null,"Nottingham",null,"Plaistow",null,"Portsmouth",null,"Raymond",null,"Rye",null,"Salem",null,"Sandown",null,"Seabrook",null,"South Hampton",null,"Stratham",null,"Windham"]
[null,null,"Estimate","Margin Of Error","Estimate","Margin Of Error","Estimate","Margin Of Error","Estimate","Margin Of Error","Estimate","Margin Of Error","Estimate","Margin Of Error","Estimate","Margin Of Error","Estimate","Margin Of Error","Estimate","Margin Of Error","Estimate","Margin Of Error","Estimate","Margin Of Error","Estimate","Margin Of Error","Estimate","Margin Of Error","Estimate","Margin Of Error","Estimate","Margin Of Error","Estimate","Margin Of Error","Estimate","Margin Of Error","Estimate","Margin Of Error","Estimate","Margin Of Error","Estimate","Margin Of Error","Estimate","Margin Of Error","Estimate","Margin Of Error","Estimate","Margin Of Error","Estimate","Margin Of Error","Estimate","Margin Of Error","Estimate","Margin Of Error","Estimate","Margin Of Error","Estimate","Margin Of Error","Estimate","Margin Of Error","Estimate","Margin Of Error","Estimate","Margin Of Error","Estimate","Margin Of Error","Estimate","Margin Of Error","Estimate","Margin Of Error","Estimate","Margin Of Error","Estimate","Margin Of Error","Estimate","Margin Of Error"]
[null,{"$f":"B76","v":"Total:"},2597,115,1830,82,1400,111,1466,88,1612,80,1537,101,1540,71,12934,350,882,46,2604,154,6248,214,1608,79,1397,55,3447,156,6618,217,902,46,746,53,2442,126,8750,224,451,65,574,71,314,47,3816,203,1747,101,1735,82,1676,118,1824,108,2949,182,10325,302,3864,150,2315,152,11093,{"$f":"BN76","v":285},2130,134,3837,258,306,49,2781,123,4987,197]
[null,"Less than $5,000",{"$f":"C78+C90","v":0},{"$f":"SQRT((D78^2)+(D90^2))","v":21.213203435596427},{"$f":"E78+E90","v":19},{"$f":"SQRT((F78^2)+(F90^2))","v":26.627053911388696},{"$f":"G78+G90","v":0},{"$f":"SQRT((H78^2)+(H90^2))","v":15.556349186104045},{"$f":"I78+I90","v":15},{"$f":"SQRT((J78^2)+(J90^2))","v":21.95449840010015},{"$f":"K78+K90","v":30},{"$f":"SQRT((L78^2)+(L90^2))","v":29},{"$f":"M78+M90","v":0},{"$f":"SQRT((N78^2)+(N90^2))","v":15.556349186104045},{"$f":"O78+O90","v":0},{"$f":"SQRT((P78^2)+(P90^2))","v":15.556349186104045},{"$f":"Q78+Q90","v":151},{"$f":"SQRT((R78^2)+(R90^2))","v":95.718336801262907},{"$f":"S78+S90","v":14},{"$f":"SQRT((T78^2)+(T90^2))","v":20.248456731316587},{"$f":"U78+U90","v":23},{"$f":"SQRT((V78^2)+(V90^2))","v":37.161808352124091},{"$f":"W78+W90","v":90},{"$f":"SQRT((X78^2)+(X90^2))","v":59.640590204993778},{"$f":"Y78+Y90","v":11},{"$f":"SQRT((Z78^2)+(Z90^2))","v":19.416487838947599},{"$f":"AA78+AA90","v":31},{"$f":"SQRT((AB78^2)+(AB90^2))","v":32.893768406797051},{"$f":"AC78+AC90","v":34},{"$f":"SQRT((AD78^2)+(AD90^2))","v":39.924929555354261},{"$f":"AE78+AE90","v":88},{"$f":"SQRT((AF78^2)+(AF90^2))","v":62.169124169478209},{"$f":"AG78+AG90","v":0},{"$f":"SQRT((AH78^2)+(AH90^2))","v":15.556349186104045},{"$f":"AI78+AI90","v":4},{"$f":"SQRT((AJ78^2)+(AJ90^2))","v":12.083045973594572},{"$f":"AK78+AK90","v":44},{"$f":"SQRT((AL78^2)+(AL90^2))","v":45.541190146942803},{"$f":"AM78+AM90","v":77},{"$f":"SQRT((AN78^2)+(AN90^2))","v":47.381430961928537},11,13.928388277184119,{"$f":"AQ78+AQ90","v":0},{"$f":"SQRT((AR78^2)+(AR90^2))","v":15.556349186104045},{"$f":"AS78+AS90","v":2},{"$f":"SQRT((AT78^2)+(AT90^2))","v":12.083045973594572},{"$f":"AU78+AU90","v":150},{"$f":"SQRT((AV78^2)+(AV90^2))","v":84.758480401668365},{"$f":"AW78+AW90","v":8},{"$f":"SQRT((AX78^2)+(AX90^2))","v":17.029386365926403},{"$f":"AY78+AY90","v":19},{"$f":"SQRT((AZ78^2)+(AZ90^2))","v":26.40075756488817},{"$f":"BA78+BA90","v":0},{"$f":"SQRT((BB78^2)+(BB90^2))","v":15.556349186104045},{"$f":"BC78+BC90","v":14},{"$f":"SQRT((BD78^2)+(BD90^2))","v":20.248456731316587},54,68.963758598266665,{"$f":"BG78+BG90","v":201},{"$f":"SQRT((BH78^2)+(BH90^2))","v":116.77756633874505},{"$f":"BI78+BI90","v":51},{"$f":"SQRT((BJ78^2)+(BJ90^2))","v":41.146081222881968},{"$f":"BK78+BK90","v":73},{"$f":"SQRT((BL78^2)+(BL90^2))","v":59.908263203000637},{"$f":"BM78+BM90","v":153},{"$f":"SQRT((BN78^2)+(BN90^2))","v":75.663729752107784},{"$f":"BO78+BO90","v":0},{"$f":"SQRT((BP78^2)+(BP90^2))","v":21.213203435596427},{"$f":"BQ78+BQ90","v":111},{"$f":"SQRT((BR78^2)+(BR90^2))","v":110.11357772772621},{"$f":"BS78+BS90","v":0},{"$f":"SQRT((BT78^2)+(BT90^2))","v":15.556349186104045},{"$f":"BU78+BU90","v":0},{"$f":"SQRT((BV78^2)+(BV90^2))","v":21.213203435596427},{"$f":"BW78+BW90","v":36},{"$f":"SQRT((BX78^2)+(BX90^2))","v":47.169905660283021}]
[null,"$5,000 to $9,999",{"$f":"C79+C91","v":40},{"$f":"SQRT((D79^2)+(D91^2))","v":49.33558553417604},{"$f":"E79+E91","v":27},28.42534080710379,{"$f":"G79+G91","v":24},25.495097567963924,{"$f":"I79+I91","v":0},15.556349186104045,{"$f":"K79+K91","v":0},15.556349186104045,{"$f":"M79+M91","v":7},14.866068747318506,{"$f":"O79+O91","v":8},16.278820596099706,{"$f":"Q79+Q91","v":215},125.13193037750197,18,14.866068747318506,14,26.627053911388696,172,89.899944382630181,35,30.886890422961002,7,15.556349186104045,124,101.11874208078342,63,40.70626487409524,6,14.212670403551895,7,13.601470508735444,83,81.60882305241266,88,53,0,15.556349186104045,0,15.556349186104045,7,13.038404810405298,144,88.842557369765089,91,87.464278422679513,27,26.832815729997478,8,16.278820596099706,0,15.556349186104045,0,21.213203435596427,270,110.45361017187261,44,46.324939287601879,32,40.853396431630991,129,85.088189544730596,18,30.886890422961002,129,97.943861471763512,4,12.083045973594572,0,21.213203435596427,11,24.758836806279895]
[null,"$10,000 to $14,999",{"$f":"C80+C92","v":43},45.541190146942803,{"$f":"E80+E92","v":16},24.207436873820409,{"$f":"G80+G92","v":21},25.495097567963924,{"$f":"I80+I92","v":29},30.083217912982647,{"$f":"K80+K92","v":20},20.518284528683193,{"$f":"M80+M92","v":57},45.705579528105758,{"$f":"O80+O92","v":25},26.40075756488817,{"$f":"Q80+Q92","v":661},186.1316738225926,3,11.704699910719626,71,58.137767414994535,276,122.18837915284743,13,21.95449840010015,0,15.556349186104045,72,53.225933528685054,251,84.876380695691779,10,15.556349186104045,3,12.083045973594572,42,39.05124837953327,137,97.082439194738001,0,15.556349186104045,0,15.556349186104045,2,11.401754250991379,135,66.528189513919585,36,31.304951684997057,35,31.016124838541646,21,19.416487838947599,0,15.556349186104045,41,41.785164831552358,461,156.20499351813308,76,53.907327887774215,17,30.016662039607269,345,124.52309022827855,9,21.213203435596427,97,64.76109943476871,6,7.2111025509279782,31,38.078865529319543,83,73.054773971315527]
[null,"$15,000 to $19,999",{"$f":"C81+C93","v":89},63.411355449950761,35,24.698178070456937,34,27.459060435491963,45,37.643060449437421,5,14.212670403551895,34,40.718546143004666,9,17.804493814764857,624,211.43556938225885,35,22.825424421026653,81,64.637450444769243,186,89.319650693450427,11,18.601075237738275,27,26.40075756488817,152,88.639720216164946,308,139.86421987055874,31,25.495097567963924,12,8.6023252670426267,62,51.244511901275828,183,75.213030785895072,0,15.556349186104045,5,12.529964086141668,2,11.704699910719626,219,149.90663761154806,28,23.345235059857504,28,26.076809620810597,72,56.089214649520635,8,16.278820596099706,55,72.567210226106937,270,89.274856482662571,194,109.01834707974616,99,82.365041127896006,356,126.21014222319853,49,58.872744118140105,266,137.2443077143821,9,17.804493814764857,34,40.853396431630991,71,62.361847310675458]
[null,"$20,000 to $24,999",60,49.33558553417604,8,19.849433241279208,24,21.931712199461309,54,38.078865529319543,77,58,33,23.430749027719962,8,17.029386365926403,482,180.09997223764361,21,22.825424421026653,124,121.92620719107111,293,126.40015822774906,17,21.95449840010015,19,23.706539182259394,87,74.242844773082339,168,65.855903304107827,9,15.556349186104045,5,12.529964086141668,72,60.406953242155822,193,83.096329642168911,13,19.416487838947599,14,13.416407864998739,3,11.704699910719626,115,64.845971347493901,0,15.556349186104045,39,26.832815729997478,108,71.06335201775947,45,35,45,39,427,127.76932339180638,158,93.680307429042955,57,47.434164902525687,261,94.62557793746889,104,78.447434629820748,352,167.70509831248424,7,6.4031242374328485,78,59.908263203000637,175,131.46862743635836]
[null,"$25,000 to $34,999",92,95.341491492424225,46,37.161808352124091,126,67.601775124622279,53,37.589892258425003,82,60.207972893961475,53,42.449970553582247,93,52.32590180780452,966,219.9681795169474,69,26.248809496813376,221,105.94810050208545,489,165.07574019219177,65,40.718546143004666,87,47.423622805517503,311,128.89142717807107,566,148.11144452742334,46,35.341194094144583,39,17.888543819998318,146,105.42295765154761,479,132.27622613304328,9,16.278820596099706,29,14.212670403551895,20,12.727922061357855,381,117.99152511939153,47,42.544094772365298,118,67.94115100585212,121,64.845971347493901,69,41.109609582188931,317,148.82204137828509,867,184.31766057543157,339,135.05924625881784,147,70.235318750611498,811,176.46529403823291,93,62.369864518050704,293,147.63468427168462,17,13,173,103.4456378974,212,131.88252348207476]
[null,"$35,000 to $49,999",229,105.07616285342742,211,85.440037453175307,47,31.953090617340916,78,42.449970553582247,58,34.885527085024819,160,78.243210568074218,184,80.05623023850174,1666,279.95892555873263,65,30.083217912982647,134,106.06601717798213,676,163.22070947033652,157,62.681735776859277,85,42.190046219457976,283,127.47548783981962,762,155.56991997169632,63,36.796738985948195,49,31.953090617340916,358,134.27211177307072,901,200.38463014912097,45,29.732137494637012,69,33.61547262794322,37,17.204650534085253,350,112.16059914247963,317,128.76334882255898,184,90.801982357215081,219,80.721744282442259,167,69.318107302493488,518,173.00289014926889,1317,239.88538930080756,412,142.63590010933433,152,111.64676439557037,1554,265.04527915056326,253,113.20777358467925,558,207.5885353289049,24,15.556349186104045,240,117,329,130.17296186228538]
[null,"$50,000 to $74,999",463,127.91012469699183,227,81.835200250259064,185,68.47627326307996,246,93.680307429042955,235,86.700634369074834,246,99.724620831567975,340,103.31021246711285,2659,365.87566193995468,148,46.324939287601879,621,186.03494295427404,955,206.52602741543257,318,98.493654617949886,330,97.616596949494195,455,132.06059215375342,1133,206.63252406143619,125,45.188494110780013,94,29.966648127543394,420,142.68847185389575,1384,208.31226560142829,64,33.301651610693426,85,38.013155617496423,63,29.681644159311659,869,198.31288409984865,271,109.40292500660117,258,79.699435380685102,314,114.40279716860073,355,119.5198728245642,560,160.3277892319357,1855,266.05638500137525,926,193.66982212001952,347,148.55638660118251,1775,267.41914665932205,446,153.76930773076921,752,203.85534086699815,67,32.893768406797051,393,126.26955294131677,500,161.27616066858735]
[null,"$75,000 to $99,999",346,117.15374513859982,281,89.26925562588724,200,75.663729752107784,299,69.871310278253688,237,78.771822373231913,298,105.30432089900205,261,102.59142264341595,1889,319.3775195595332,112,44.911023145771239,367,120.03332870498926,922,219.58597405116748,381,105.75916035975324,220,76.694197955256044,412,124.23365083583433,888,179.82491484774852,134,45.276925690687087,115,33.955853692699293,410,147.67870530310049,1349,206.92993983471797,48,29,82,33.241540277189323,62,25.612496949731394,507,115.62439189029277,272,90.801982357215081,257,85,313,86.700634369074834,346,108.22661410207751,501,159.10059710761615,1345,234.71898091121648,581,162.24980739587951,265,135.5912976558599,1817,294.23290094753168,364,118.40608092492548,512,157.86703265723341,27,13.601470508735444,237,106.06601717798213,632,183.19934497699495]
[null,"$100,000 to $149,999",751,176.63804799646084,479,108.66922287382016,256,72.034713853808015,311,74.813100457072352,420,85.440037453175307,434,92.027169901067808,379,98.615414616580097,2223,278.91575789115967,248,57.201398584300364,658,190.92406867652909,1221,232.07110979180499,354,90.669730340395304,241,66.370174024180471,823,156.08010763707205,1097,170.39366185395511,217,57.271284253105414,224,50.447993022517757,423,136.19104228986575,1940,222.04954402114859,118,50.774009099144415,115,43.416586692184822,57,22.847319317591726,603,152.0690632574555,384,101.59724405711013,263,96.026038135497402,332,87.321245982864909,497,123.49089035228469,559,160.63934760823702,1971,238.04621400055913,725,145.7737973711325,593,168.88457596832222,2067,258.93628559937287,424,120.93386622447825,486,182.0988742414406,65,27.018512172212592,502,125.92458060283545,1295,245.09793960782289]
[null,"$150,000 or more",484,143.02796929272262,{"$f":"E88+E100","v":481},109.03669107231748,483,109.38464243210744,336,81.743501270743224,448,79.762146410437069,215,70.859014952227497,233,81.743501270743224,1398,211.62466774929618,149,42.449970553582247,290,125.89678312014172,968,159.4114174079134,246,74.846509604656916,350,95.634721728041853,694,140.81193131265547,1294,193.98195792392653,261,65.969690009882569,194,36.496575181789318,382,137.81872151489435,2019,220.19309707617992,143,48.466483264210538,175,41.484937025383083,59,24.596747752497688,343,107.56393447619885,293,98.615414616580097,507,96.628153247384375,168,76.791926658991954,323,112.44554237496477,299,125.89678312014172,1341,234.09399821439251,358,133.66001645967279,533,162.28986413205232,1825,285.78663369723927,370,115.97413504743201,281,122.5275479229059,80,26.476404589747453,1093,150.74813431681335,1643,261.89501713472902]
[]
[]
[]
[]
[]
[]
[]
[]
[]
[]
[]
[]
[]
[]
[]
[]
[null,"B25118. TENURE BY HOUSEHOLD INCOME IN THE PAST 12 MONTHS (IN 2009 INFLATION-ADJUSTED DOLLARS) "]
[null,"Universe:  OCCUPIED HOUSING UNITS"]
[null,"Data Set: 2005-2009 American Community Survey 5-Year Estimates"]
[]
[null,null,"Atkinson",null,"Auburn",null,"Brentwood",null,"Candia",null,"Chester",null,"Danville",null,"Deerfield",null,"Derry",null,"East Kingston",null,"Epping",null,"Exeter",null,"Fremont",null,"Greenland",null,"Hampstead",null,"Hampton",null,"Hampton Falls",null,"Kensington",null,"Kingston",null,"Londonderry",null,"New Castle",null,"Newfields",null,"Newington",null,"Newmarket",null,"Newton",null,"North Hampton",null,"Northwood",null,"Nottingham",null,"Plaistow",null,"Portsmouth",null,"Raymond",null,"Rye",null,"Salem",null,"Sandown",null,"Seabrook",null,"South Hampton",null,"Stratham",null,"Windham"]
[null,null,"Estimate","Margin Of Error","Estimate","Margin Of Error","Estimate","Margin Of Error","Estimate","Margin Of Error","Estimate","Margin Of Error","Estimate","Margin Of Error","Estimate","Margin Of Error","Estimate","Margin Of Error","Estimate","Margin Of Error","Estimate","Margin Of Error","Estimate","Margin Of Error","Estimate","Margin Of Error","Estimate","Margin Of Error","Estimate","Margin Of Error","Estimate","Margin Of Error","Estimate","Margin Of Error","Estimate","Margin Of Error","Estimate","Margin Of Error","Estimate","Margin Of Error","Estimate","Margin Of Error","Estimate","Margin Of Error","Estimate","Margin Of Error","Estimate","Margin Of Error","Estimate","Margin Of Error","Estimate","Margin Of Error","Estimate","Margin Of Error","Estimate","Margin Of Error","Estimate","Margin Of Error","Estimate","Margin Of Error","Estimate","Margin Of Error","Estimate","Margin Of Error","Estimate","Margin Of Error","Estimate","Margin Of Error","Estimate","Margin Of Error","Estimate","Margin Of Error","Estimate","Margin Of Error","Estimate","Margin Of Error"]
[null,"Total:",2613,114,1763,97,1017,95,1552,69,1528,81,1451,105,1417,91,12592,332,846,51,2363,137,6202,222,1441,103,1275,88,3376,148,6966,265,819,58,764,55,2302,119,8372,211,372,69,577,66,288,40,4039,185,1656,78,1775,93,1553,101,1590,97,2849,248,9410,326,4043,211,2292,121,10969,289,1892,113,3846,231,321,42,2717,107,4364,175]
[null,"Owner occupied:",2211,142,1654,116,979,99,1483,83,1519,78,1328,120,1231,101,8746,341,786,61,2016,144,4295,235,1334,130,1116,89,2829,146,4900,302,743,60,721,54,2142,124,7545,288,331,66,546,64,231,40,2426,206,1431,93,1495,105,1302,114,1427,149,2276,245,4903,303,3424,216,1933,169,8682,341,1681,133,2686,223,288,36,2540,143,4088,189]
[null,"Less than $5,000",0,114,10,16,15,16,23,26,0,114,0,114,8,14,76,52,27,22,58,79,39,35,0,114,10,15,0,114,74,44,14,18,5,6,37,44,40,37,8,13,6,11,0,114,26,29,0,114,25,32,0,114,0,114,0,114,56,44,78,67,13,22,51,43,0,114,12,18,2,5,14,23,44,55]
[null,"$5,000 to $9,999",38,45,22,26,10,11,20,22,12,19,8,14,15,21,97,88,11,9,27,29,51,38,9,15,18,21,0,114,145,73,0,114,3,4,12,21,79,77,0,114,4,7,6,7,0,114,0,114,0,114,11,17,0,114,27,31,35,33,55,52,27,31,82,49,23,26,11,18,6,7,11,20,14,22]
[null,"$10,000 to $14,999",32,36,27,35,10,16,9,15,0,114,11,18,26,41,91,54,9,10,12,21,58,41,23,28,0,114,69,42,32,31,10,8,9,10,0,114,91,74,15,13,4,6,0,114,66,46,13,20,32,29,11,18,11,16,51,56,83,45,73,52,30,34,213,87,13,25,41,38,7,7,9,15,41,32]
[null,"$15,000 to $19,999",93,52,27,31,0,114,0,114,0,114,51,34,8,13,146,87,24,19,67,51,145,85,69,45,0,114,59,46,49,39,22,11,3,6,37,42,47,52,10,10,10,10,5,6,53,42,55,54,31,28,27,24,17,20,76,70,166,72,116,76,41,36,331,113,33,29,207,100,11,9,29,32,42,44]
[null,"$20,000 to $24,999",52,48,73,72,6,9,48,34,20,23,12,18,21,23,232,106,36,22,35,34,253,117,0,114,19,21,49,39,150,74,15,14,7,10,108,93,150,99,24,21,21,17,8,8,55,35,11,17,34,32,58,37,60,32,96,65,78,54,166,71,57,46,185,74,20,17,215,104,9,8,43,43,85,61]
[null,"$25,000 to $34,999",133,71,98,44,49,31,80,44,77,52,90,43,74,48,557,169,11,10,213,102,325,93,90,65,76,49,197,82,350,117,12,10,85,28,98,68,484,157,28,24,30,23,12,10,116,108,75,57,93,51,54,37,20,23,45,37,243,89,217,90,93,65,644,184,61,39,249,113,22,11,143,73,192,78]
[null,"$35,000 to $49,999",152,71,136,72,77,36,109,47,74,44,153,65,106,54,1070,212,64,28,189,99,504,139,98,51,97,51,188,102,435,116,48,22,48,23,328,108,690,185,44,28,33,17,13,13,232,115,115,55,108,46,226,86,118,64,218,102,549,150,564,177,277,121,844,173,159,66,398,139,40,32,98,61,241,81]
[null,"$50,000 to $74,999",316,97,240,90,80,28,234,85,229,76,249,86,255,80,1274,272,95,30,436,128,616,171,269,86,222,73,571,166,1031,198,83,29,120,34,508,133,1234,260,43,29,50,19,44,20,437,137,152,61,357,93,358,90,230,73,449,120,908,178,821,160,236,91,1632,268,287,110,570,177,28,14,345,110,497,122]
[null,"$75,000 to $99,999",240,92,287,84,172,55,258,93,406,90,179,90,216,76,1942,296,135,38,327,116,654,135,336,98,135,52,516,123,933,184,66,25,106,25,425,111,1171,188,39,25,78,29,64,28,506,113,384,102,207,81,246,81,246,93,397,134,779,163,652,162,232,103,1563,247,382,97,387,140,37,16,442,115,531,137]
[null,"$100,000 to $149,999",628,124,474,95,274,66,444,94,421,102,438,109,354,88,2160,269,201,46,473,165,1068,175,339,82,244,89,606,131,975,206,204,43,173,43,359,115,2162,270,77,38,118,36,45,17,652,133,516,105,257,81,257,85,543,125,635,160,1181,192,532,140,424,102,1856,245,401,89,462,164,58,24,687,127,1129,161]
[null,"$150,000 or more",527,127,260,83,286,62,258,91,280,79,137,51,148,58,1101,206,173,40,179,86,582,149,101,56,295,73,574,151,726,143,269,45,162,47,230,82,1397,234,43,28,192,49,34,16,283,105,110,48,351,84,54,40,182,82,282,87,825,206,150,59,503,137,1281,216,302,108,134,106,68,26,719,143,1272,162]
[null,"Renter occupied:",402,127,109,92,38,27,69,53,9,14,123,80,186,89,3846,312,60,27,347,145,1907,282,107,58,159,81,547,137,2066,208,76,33,43,23,160,86,827,194,41,29,31,24,57,31,1613,206,225,91,280,103,251,88,163,90,573,170,4507,293,619,154,359,135,2287,261,211,101,1160,200,33,30,177,114,276,108]
[null,"Less than $5,000",13,20,0,114,0,114,0,114,0,114,0,114,0,114,47,41,4,6,21,34,24,29,0,114,0,114,0,114,54,55,3,4,0,114,18,30,27,31,0,114,0,114,0,114,38,48,11,17,12,17,0,114,0,114,0,114,153,90,106,82,17,27,42,38,16,16,46,48,0,114,0,114,0,114]
[null,"$5,000 to $9,999",16,26,0,114,5,8,14,22,0,114,0,114,8,12,281,142,2,5,0,114,164,123,0,114,0,114,10,15,70,67,3,4,0,114,0,114,0,114,0,114,0,114,0,114,102,68,41,51,39,46,10,16,0,114,27,32,433,122,37,46,17,28,87,53,0,114,16,28,0,114,18,29,0,114]
[null,"$10,000 to $14,999",81,103,0,114,0,114,0,114,0,114,9,17,0,114,269,133,10,11,14,23,115,81,0,114,0,114,81,92,243,122,10,16,3,4,35,55,46,42,0,114,0,114,3,6,80,65,11,18,0,114,7,12,0,114,49,79,205,72,21,25,16,25,130,71,9,14,105,73,0,114,0,114,29,21]
[null,"$15,000 to $19,999",18,30,0,114,0,114,0,114,0,114,0,114,0,114,245,115,0,114,0,114,128,77,0,114,12,18,0,114,134,86,2,4,4,5,14,23,42,44,0,114,0,114,4,7,71,46,0,114,0,114,31,39,0,114,12,19,218,99,65,73,0,114,78,59,22,33,260,142,0,114,34,49,31,49]
[null,"$20,000 to $24,999",82,102,43,66,0,114,0,114,0,114,0,114,16,14,283,110,0,114,45,49,176,110,0,114,0,114,114,97,139,90,7,10,4,6,35,29,13,22,0,114,0,114,13,20,114,60,43,53,0,114,0,114,0,114,92,93,205,97,23,25,16,26,159,108,8,12,25,29,0,114,0,114,21,31]
[null,"$25,000 to $34,999",0,114,17,28,4,8,0,114,0,114,30,45,52,63,618,185,2,3,72,73,271,122,0,114,0,114,99,105,345,129,9,14,2,4,33,38,138,92,0,114,11,18,4,6,227,97,32,51,34,33,36,45,20,31,47,40,457,110,75,76,46,46,198,87,58,52,84,59,2,3,0,114,0,114]
[null,"$35,000 to $49,999",62,62,9,14,6,8,45,49,0,114,11,17,64,55,646,166,14,16,35,48,328,136,0,114,41,33,93,92,465,171,6,6,16,20,0,114,188,114,13,17,9,10,7,8,355,145,35,33,19,21,30,28,10,15,23,27,805,183,94,79,59,53,643,184,0,114,229,115,0,114,0,114,67,60]
[null,"$50,000 to $74,999",130,121,0,114,15,24,10,16,9,14,73,71,22,25,706,202,23,19,114,93,432,170,41,33,106,77,125,88,394,138,3,4,7,8,0,114,157,110,0,114,11,10,12,11,337,148,7,11,83,69,80,66,54,44,188,110,1013,183,129,83,130,100,448,149,27,24,293,141,25,31,0,114,40,49]
[null,"$75,000 to $99,999",0,114,0,114,0,114,0,114,0,114,0,114,19,25,422,136,3,5,22,35,98,67,56,53,0,114,25,29,111,83,7,7,4,5,0,114,65,48,4,8,0,114,11,9,143,97,0,114,48,45,50,53,33,50,120,104,491,150,59,63,29,32,278,133,63,65,92,69,6,6,72,81,19,21]
[null,"$100,000 to $149,999",0,114,40,59,8,9,0,114,0,114,0,114,0,114,302,133,0,114,10,21,104,70,0,114,0,114,0,114,103,75,26,24,3,4,25,37,121,93,7,8,0,114,3,5,104,67,33,38,38,51,7,12,46,71,15,23,445,154,10,16,29,34,139,136,8,13,10,17,0,114,53,51,20,24]
[null,"$150,000 or more",0,114,0,114,0,114,0,114,0,114,0,114,5,10,27,31,2,4,14,22,67,49,10,15,0,114,0,114,8,15,0,114,0,114,0,114,30,35,17,19,0,114,0,114,42,41,12,18,7,11,0,114,0,114,0,114,82,64,0,114,0,114,85,63,0,114,0,114,0,114,0,114,49,50]
[]
[]
[]
[]
[]
[null,"Calculated B25118. TENURE BY HOUSEHOLD INCOME IN THE PAST 12 MONTHS (IN 2009 INFLATION-ADJUSTED DOLLARS) "]
[null,"Universe:  OCCUPIED HOUSING UNITS"]
[null,"Data Set: 2005-2009 American Community Survey 5-Year Estimates"]
[null,null,"Atkinson",null,"Auburn",null,"Brentwood",null,"Candia",null,"Chester",null,"Danville",null,"Deerfield",null,"Derry",null,"East Kingston",null,"Epping",null,"Exeter",null,"Fremont",null,"Greenland",null,"Hampstead",null,"Hampton",null,"Hampton Falls",null,"Kensington",null,"Kingston",null,"Londonderry",null,"New Castle",null,"Newfields",null,"Newington",null,"Newmarket",null,"Newton",null,"North Hampton",null,"Northwood",null,"Nottingham",null,"Plaistow",null,"Portsmouth",null,"Raymond",null,"Rye",null,"Salem",null,"Sandown",null,"Seabrook",null,"South Hampton",null,"Stratham",null,"Windham"]
[null,null,"Estimate","Margin Of Error","Estimate","Margin Of Error","Estimate","Margin Of Error","Estimate","Margin Of Error","Estimate","Margin Of Error","Estimate","Margin Of Error","Estimate","Margin Of Error","Estimate","Margin Of Error","Estimate","Margin Of Error","Estimate","Margin Of Error","Estimate","Margin Of Error","Estimate","Margin Of Error","Estimate","Margin Of Error","Estimate","Margin Of Error","Estimate","Margin Of Error","Estimate","Margin Of Error","Estimate","Margin Of Error","Estimate","Margin Of Error","Estimate","Margin Of Error","Estimate","Margin Of Error","Estimate","Margin Of Error","Estimate","Margin Of Error","Estimate","Margin Of Error","Estimate","Margin Of Error","Estimate","Margin Of Error","Estimate","Margin Of Error","Estimate","Margin Of Error","Estimate","Margin Of Error","Estimate","Margin Of Error","Estimate","Margin Of Error","Estimate","Margin Of Error","Estimate","Margin Of Error","Estimate","Margin Of Error","Estimate","Margin Of Error","Estimate","Margin Of Error","Estimate","Margin Of Error","Estimate","Margin Of Error"]
[null,"Total:",{"$f":"C145","v":2613},114,1763,97,1017,95,1552,69,1528,81,1451,105,1417,91,12592,332,846,51,2363,137,6202,222,1441,103,1275,88,3376,148,6966,265,819,58,764,55,2302,119,8372,211,372,69,577,66,288,40,4039,185,1656,78,1775,93,1553,101,1590,97,2849,248,9410,326,4043,211,2292,121,10969,289,{"$f":"BO145","v":1892},113,3846,231,321,42,2717,107,4364,175]
[null,"Less than $5,000",{"$f":"C147+C159","v":13},{"$f":"SQRT((D147^2)+(D159^2))","v":115.7410903698423},{"$f":"E147+E159","v":10},{"$f":"SQRT((F147^2)+(F159^2))","v":115.11733144926528},{"$f":"G147+G159","v":15},{"$f":"SQRT((H147^2)+(H159^2))","v":115.11733144926528},{"$f":"I147+I159","v":23},{"$f":"SQRT((J147^2)+(J159^2))","v":116.92732785794773},{"$f":"K147+K159","v":0},{"$f":"SQRT((L147^2)+(L159^2))","v":161.22034611053283},{"$f":"M147+M159","v":0},{"$f":"SQRT((N147^2)+(N159^2))","v":161.22034611053283},{"$f":"O147+O159","v":8},{"$f":"SQRT((P147^2)+(P159^2))","v":114.85643212288984},{"$f":"Q147+Q159","v":123},{"$f":"SQRT((R147^2)+(R159^2))","v":66.219332524573218},{"$f":"S147+S159","v":31},{"$f":"SQRT((T147^2)+(T159^2))","v":22.803508501982758},{"$f":"U147+U159","v":79},{"$f":"SQRT((V147^2)+(V159^2))","v":86.005813756978085},63,{"$f":"SQRT((X147^2)+(X159^2))","v":45.453272709454048},0,{"$f":"SQRT((Z147^2)+(Z159^2))","v":161.22034611053283},10,{"$f":"SQRT((AB147^2)+(AB159^2))","v":114.9826073804208},0,{"$f":"SQRT((AD147^2)+(AD159^2))","v":161.22034611053283},128,{"$f":"SQRT((AF147^2)+(AF159^2))","v":70.434366611761334},17,{"$f":"SQRT((AH147^2)+(AH159^2))","v":18.439088914585774},5,{"$f":"SQRT((AJ147^2)+(AJ159^2))","v":114.15778554264269},{"$f":"AK147+AK159","v":55},{"$f":"SQRT((AL147^2)+(AL159^2))","v":53.254107822777392},67,{"$f":"SQRT((AN147^2)+(AN159^2))","v":48.270073544588683},8,{"$f":"SQRT((AP147^2)+(AP159^2))","v":114.73883387938018},6,{"$f":"SQRT((AR147^2)+(AR159^2))","v":114.52947218947619},0,{"$f":"SQRT((AT147^2)+(AT159^2))","v":161.22034611053283},64,{"$f":"SQRT((AV147^2)+(AV159^2))","v":56.080299571239813},11,{"$f":"SQRT((AX147^2)+(AX159^2))","v":115.26057435220423},37,{"$f":"SQRT((AZ147^2)+(AZ159^2))","v":36.235341863986875},0,{"$f":"SQRT((BB147^2)+(BB159^2))","v":161.22034611053283},0,{"$f":"SQRT((BD147^2)+(BD159^2))","v":161.22034611053283},0,{"$f":"SQRT((BF147^2)+(BF159^2))","v":161.22034611053283},209,{"$f":"SQRT((BH147^2)+(BH159^2))","v":100.17983829094555},184,{"$f":"SQRT((BJ147^2)+(BJ159^2))","v":105.89145385724005},30,{"$f":"SQRT((BL147^2)+(BL159^2))","v":34.828149534535996},93,{"$f":"SQRT((BN147^2)+(BN159^2))","v":57.384666941614292},16,{"$f":"SQRT((BP147^2)+(BP159^2))","v":115.11733144926528},58,{"$f":"SQRT((BR147^2)+(BR159^2))","v":51.264022471905186},2,{"$f":"SQRT((BT147^2)+(BT159^2))","v":114.10959644131601},14,{"$f":"SQRT((BV147^2)+(BV159^2))","v":116.29703349613007},44,{"$f":"SQRT((BX147^2)+(BX159^2))","v":126.57408897558773}]
[null,"$5,000 to $9,999",{"$f":"C148+C160","v":54},{"$f":"SQRT((D148^2)+(D160^2))","v":51.97114584074513},{"$f":"E148+E160","v":22},116.92732785794773,{"$f":"G148+G160","v":15},13.601470508735444,{"$f":"I148+I160","v":34},31.11269837220809,{"$f":"K148+K160","v":12},115.57248807566617,{"$f":"M148+M160","v":8},114.85643212288984,{"$f":"O148+O160","v":23},24.186773244895647,{"$f":"Q148+Q160","v":378},167.05687654209268,13,10.295630140987001,27,117.63077828527702,215,128.73616430513999,9,114.9826073804208,18,115.91807451816995,10,114.9826073804208,215,99.085821387320593,3,114.0701538527936,3,114.0701538527936,12,115.91807451816995,79,137.56816492197603,0,161.22034611053283,4,114.21471008587291,6,114.21471008587291,102,132.74034804836094,41,124.88794977899188,39,122.93087488503447,21,23.345235059857504,0,161.22034611053283,54,44.553338819890925,468,126.38433447227548,92,69.426219830839131,44,41.773197148410844,169,72.180329730474355,23,116.92732785794773,27,33.286633954186478,6,114.21471008587291,29,35.227829907617071,14,116.10340218959993]
[null,"$10,000 to $14,999",{"$f":"C149+C161","v":113},109.11003620199197,{"$f":"E149+E161","v":27},119.25183436744275,{"$f":"G149+G161","v":10},115.11733144926528,{"$f":"I149+I161","v":9},114.9826073804208,{"$f":"K149+K161","v":0},161.22034611053283,{"$f":"M149+M161","v":20},24.758836806279895,{"$f":"O149+O161","v":26},121.14866899805379,{"$f":"Q149+Q161","v":360},143.54441821262157,19,14.866068747318506,26,31.144823004794873,173,90.785461391128038,23,117.38824472663352,0,161.22034611053283,150,101.13357503816425,275,125.87692401707312,20,17.888543819998318,12,10.770329614269007,35,126.57408897558773,137,85.088189544730596,15,114.73883387938018,4,114.15778554264269,3,114.15778554264269,146,79.630396206473819,24,26.90724809414742,32,117.63077828527702,18,21.633307652783937,11,115.11733144926528,100,96.834911060009759,288,84.905830188509441,94,57.697486947006624,46,42.201895692018383,343,112.29425630903836,22,28.653097563788805,146,82.29823813423954,7,114.21471008587291,9,114.9826073804208,70,38.275318418009277]
[null,"$15,000 to $19,999",{"$f":"C150+C162","v":111},60.033324079214538,27,118.1397477566293,0,161.22034611053283,0,161.22034611053283,0,161.22034611053283,51,118.96217886370441,8,114.73883387938018,391,144.20124826089406,24,115.57248807566617,67,124.88794977899188,273,114.69088891450794,69,122.56018929489298,12,115.41230437002807,59,122.93087488503447,183,94.429868156214212,24,11.704699910719626,7,7.810249675906654,51,47.885279575251516,89,68.117545463705611,10,114.43775600735974,10,114.43775600735974,9,9.2195444572928871,124,62.289646009589745,55,126.14277624977183,31,117.38824472663352,58,45.793012567421243,17,115.7410903698423,88,72.532751223154364,384,122.41323457861898,181,105.38026380684383,41,119.54915307102765,409,127.47548783981962,55,43.931765272977593,467,173.67786272291585,11,114.35471131527551,63,58.523499553598128,73,65.855903304107827]
[null,"$20,000 to $24,999",134,112.72976536833562,116,97.672923576598237,6,114.35471131527551,48,118.96217886370441,20,116.29703349613007,12,115.41230437002807,37,26.92582403567252,515,152.76125163142649,36,116.10340218959993,80,59.640590204993778,429,160.58953888718904,0,161.22034611053283,19,115.91807451816995,163,104.54664030948101,289,116.51609330903607,22,17.204650534085253,11,11.661903789690601,143,97.416631023660429,163,101.41498903022176,24,115.91807451816995,21,115.26057435220423,21,21.540659228538015,169,69.462219947249025,54,55.659680200302986,34,118.40608092492548,58,119.85407794480753,60,118.40608092492548,188,113.46365056704283,283,111.01801655587259,189,75.272837066235255,73,52.839379254491625,344,130.91982279242512,28,20.808652046684813,240,107.96758772891057,9,114.28035701729323,43,121.8400590938793,106,68.425141578224014]
[null,"$25,000 to $34,999",133,134.30189872075525,115,52.153619241621193,53,32.015621187164243,80,122.19656296312102,77,125.29964086141668,120,62.241465278381739,126,79.202272694664515,1175,250.57134712492567,13,10.440306508910551,285,125.4312560727987,596,153.40469353966978,90,131.22880781291889,76,124.08464852672147,296,133.22537295875736,695,174.1551032843999,21,17.204650534085253,87,28.284271247461902,131,77.89736837660179,622,181.96977771047588,28,116.49892703368559,41,29.206163733020468,16,11.661903789690601,343,145.16542288024377,107,76.485292703891773,127,60.745370193949761,90,58.258046654518033,40,38.600518131237564,92,54.488530903301111,700,141.49558296992879,292,117.79643458101778,139,79.630396206473819,842,203.5313243704762,119,65,333,127.47548783981962,24,11.401754250991379,143,135.36986370680884,192,138.13037319865606]
[null,"$35,000 to $49,999",214,94.260277954183863,145,73.348483283568996,83,36.878177829171548,154,67.896980787071826,74,122.19656296312102,164,67.186308128963304,170,77.077882690172544,1716,269.2582403567252,78,32.249030993194197,224,110.02272492535349,832,194.46593532030229,98,124.88794977899188,138,60.745370193949761,281,137.3608386695422,900,206.63252406143619,54,22.803508501982758,64,30.479501308256342,328,157.0350279396288,878,217.30393461693234,57,32.756678708318397,42,19.723082923316021,20,15.264337522473747,587,185.06755523321746,150,64.140470843298303,127,50.566787519082126,256,90.443352436760108,128,65.73431371817918,241,105.51303237041384,1354,236.61994844053194,658,193.82982226685345,336,132.09844813622905,1487,252.55692427648862,159,131.7269904006009,627,180.40509970618902,40,118.40608092492548,98,129.29423807734048,308,100.80178569846865]
[null,"$50,000 to $74,999",446,155.08062419270823,240,145.24462124292245,95,36.878177829171548,244,86.49277426467485,238,77.278716345446625,322,111.5212984142491,277,83.815273071201048,1980,338.80377801907701,118,35.510561809129406,550,158.21820375671064,1048,241.12444919584576,310,92.114059730314779,328,106.10372283760829,696,187.88294228055935,1425,241.3462243334252,86,29.274562336608895,127,34.928498393145958,508,175.17134468856486,1391,282.31188426986211,43,117.63077828527702,61,21.470910553583888,56,22.825424421026653,774,201.67548190099856,159,61.98386886924694,440,115.80155439371269,438,111.60645142642964,284,85.234969349440135,637,162.78820596099706,1921,255.29003114105336,950,180.24705268048075,366,135.20724832641184,2080,306.63496212923928,314,112.58774356030055,863,226.29626598775332,53,34.014702703389901,345,158.41717078650282,537,131.47243057006287]
[null,"$75,000 to $99,999",240,146.49232061783991,287,141.60508465447137,172,126.57408897558773,258,147.12239802287073,406,145.24462124292245,179,145.24462124292245,235,80.006249755878443,2364,325.74836914403733,138,38.327535793473601,349,121.16517651536682,752,150.71164520368026,392,111.4136436887332,135,125.29964086141668,541,126.37246535539299,1044,201.8539075668341,73,25.96150997149434,110,25.495097567963924,425,159.11316727411344,1236,194.03092537015846,43,26.248809496813376,78,117.63077828527702,75,29.410882339705484,649,148.92279879185725,384,152.97058540778355,255,92.660671268883007,296,96.79876032264049,279,105.58882516630251,517,169.62311163281967,1270,221.51523649627356,711,173.81887124245171,261,107.8563859954523,1841,280.53163814443462,445,116.76472069936193,479,156.08010763707205,43,17.088007490635061,514,140.66271716414411,550,138.60014430006919]
[null,"$100,000 to $149,999",628,168.43990026119107,514,111.83022847155415,282,66.610809933523555,444,147.75655653811103,421,152.97058540778355,438,157.72444325468391,354,144.01388821915754,2462,300.08332176247319,201,122.93087488503447,483,166.33099530754933,1172,188.48076824970764,339,140.42791745233566,244,144.62710672622887,606,173.65770930194836,1078,219.22819161777528,230,49.244289008980523,176,43.185645763378368,384,120.8056290079233,2283,285.56785533389433,84,38.832975677895199,118,119.54915307102765,48,17.720045146669349,756,148.92279879185725,549,111.66467659918243,295,95.718336801262907,264,85.84287972802403,589,143.75673897247393,650,161.64467204334326,1626,246.13004692641653,542,140.91131963046828,453,107.5174404457249,1995,280.2159881234474,409,89.944427287075428,472,164.87874332369228,58,116.49892703368559,740,136.85759021698431,1149,162.77899127344412]
[null,"$150,000 or more",527,170.66048165876012,{"$f":"E157+E169","v":260},141.01418368376991,286,129.76902558006668,258,145.86637720873168,280,138.69751259485514,137,124.88794977899188,153,58.855755878248644,1128,208.31946620515328,175,40.19950248448356,193,88.76936408468859,649,156.85024705112835,111,57.974132162542979,295,135.36986370680884,574,189.20095137181525,734,143.78456106272327,269,122.56018929489298,162,123.30855606972291,230,140.42791745233566,1427,236.60304309116566,60,33.837848631377263,192,124.08464852672147,34,115.11733144926528,325,112.72089424769483,122,51.264022471905186,358,84.717176534631989,54,120.81390648431164,182,140.42791745233566,282,143.40502083260543,907,215.7127719909046,150,128.36276718737409,503,178.22738285684386,1366,225,302,157.0350279396288,134,155.66630977832037,68,116.92732785794773,719,182.87974190707948,1321,169.54055562018192]

{"sheet":"ACS_TableB19101_ACS_Tbl_B19113","index":41,"n_rows":130,"n_cols":76,"rows_kept":130,"cut":false,"hidden":true,"merged":[]}
[null,"B19101. FAMILY INCOME IN THE PAST 12 MONTHS (IN 2019 INFLATION-ADJUSTED DOLLARS)"]
[null,"Universe:  FAMILIES"]
[null,"Data Set: 2015-2019 American Community Survey 5-Year Estimates"]
[]
[null,null,"Atkinson",null,"Auburn",null,"Brentwood",null,"Candia",null,"Chester",null,"Danville",null,"Deerfield",null,"Derry",null,"East Kingston",null,"Epping",null,"Exeter",null,"Fremont",null,"Greenland",null,"Hampstead",null,"Hampton",null,"Hampton Falls",null,"Kensington",null,"Kingston",null,"Londonderry",null,"New Castle",null,"Newfields",null,"Newington",null,"Newmarket",null,"Newton",null,"North Hampton",null,"Northwood",null,"Nottingham",null,"Plaistow",null,"Portsmouth",null,"Raymond",null,"Rye",null,"Salem",null,"Sandown",null,"Seabrook",null,"South Hampton",null,"Stratham",null,"Windham"]
[null,null,"Estimate","Margin Of Error","Estimate","Margin Of Error","Estimate","Margin Of Error","Estimate","Margin Of Error","Estimate","Margin Of Error","Estimate","Margin Of Error","Estimate","Margin Of Error","Estimate","Margin Of Error","Estimate","Margin Of Error","Estimate","Margin Of Error","Estimate","Margin Of Error","Estimate","Margin Of Error","Estimate","Margin Of Error","Estimate","Margin Of Error","Estimate","Margin Of Error","Estimate","Margin Of Error","Estimate","Margin Of Error","Estimate","Margin Of Error","Estimate","Margin Of Error","Estimate","Margin Of Error","Estimate","Margin Of Error","Estimate","Margin Of Error","Estimate","Margin Of Error","Estimate","Margin Of Error","Estimate","Margin Of Error","Estimate","Margin Of Error","Estimate","Margin Of Error","Estimate","Margin Of Error","Estimate","Margin Of Error","Estimate","Margin Of Error","Estimate","Margin Of Error","Estimate","Margin Of Error","Estimate","Margin Of Error","Estimate","Margin Of Error","Estimate","Margin Of Error","Estimate","Margin Of Error","Estimate","Margin Of Error"]
[null,"Total Families",1994,146,1655,103,1245,70,1118,85,1474,95,1330,86,1290,78,9009,292,716,54,2034,136,3834,221,1351,98,1125,74,2415,138,4327,212,676,65,668,47,1623,136,7418,221,257,61,524,67,209,30,2149,159,1358,86,1376,99,1170,98,1447,97,2155,157,5106,277,2816,186,1595,133,7872,279,1674,110,2476,156,225,35,2233,115,4228,161]
[null,"Less than $10,000",0,16,0,16,8,12,0,11,0,16,9,14,38,47,353,183,11,12,53,51,22,29,0,11,24,26,25,29,62,50,20,30,3,4,20,32,62,41,0,11,3,4,2,4,36,35,17,19,47,41,0,11,0,16,0,16,110,64,56,66,16,24,78,65,0,16,21,25,5,5,18,32,12,19]
[null,"$10,000 to $14,999",0,16,0,16,0,11,10,17,12,20,10,15,39,30,110,75,7,10,28,32,15,24,0,11,10,14,10,16,56,44,0,11,3,4,10,15,16,19,0,11,0,11,2,4,27,31,0,11,0,11,0,11,21,24,0,16,90,63,55,63,0,16,68,70,27,42,13,22,0,11,0,16,0,18]
[null,"$15,000 to $19,999",0,16,0,16,20,23,9,14,0,16,0,11,6,10,88,65,0,11,27,31,27,34,0,11,9,13,51,64,23,20,0,11,0,11,42,49,35,42,0,11,5,8,0,11,36,33,20,23,0,11,19,22,19,20,29,42,131,81,6,11,0,16,131,118,0,16,75,75,0,11,0,16,12,20]
[null,"$20,000 to $24,999",0,16,28,30,29,28,8,13,11,19,75,73,0,11,227,138,0,11,35,41,51,51,0,11,35,34,54,59,32,34,0,11,10,8,25,29,24,29,0,11,0,11,0,11,0,16,0,11,16,19,19,21,31,25,69,80,98,77,81,70,40,46,114,77,48,74,36,36,0,11,0,16,35,45]
[null,"$25,000 to $29,999",27,35,28,28,0,11,0,11,10,15,31,48,7,10,123,73,9,10,47,53,37,43,17,20,0,11,54,53,24,19,16,18,18,19,55,63,139,91,4,6,8,9,0,11,32,26,10,16,27,22,0,11,34,42,16,28,27,23,54,63,0,16,61,49,22,34,0,16,6,9,0,16,80,93]
[null,"$30,000 to $34,999",33,38,0,16,7,12,35,44,0,16,32,25,48,42,215,115,16,14,0,16,119,71,8,13,21,23,71,93,143,69,0,11,6,6,31,40,203,95,10,16,0,11,0,11,66,66,0,11,27,25,29,23,0,16,20,26,63,46,63,50,13,22,113,73,46,47,96,62,6,6,42,44,52,48]
[null,"$35,000 to $39,999",0,16,39,36,10,15,57,53,44,32,35,31,6,9,262,114,26,31,0,16,24,28,16,16,0,11,28,26,26,28,0,11,21,22,63,57,149,80,0,11,0,11,3,4,70,50,18,21,13,15,17,20,11,16,115,101,39,40,47,40,17,26,260,116,32,37,148,97,4,4,12,20,78,70]
[null,"$40,000 to $44,999",15,24,28,25,15,17,48,44,29,27,38,41,46,34,305,154,34,31,183,139,112,57,14,22,62,55,113,78,63,46,7,10,7,10,24,28,173,96,0,11,0,11,0,11,60,47,22,25,43,44,36,42,9,14,112,80,55,37,116,68,31,35,183,105,34,46,84,50,14,16,54,50,24,28]
[null,"$45,000 to $49,999",37,38,46,60,0,11,18,19,0,16,0,11,12,20,441,165,10,12,60,47,70,47,50,36,52,34,78,76,187,84,5,7,8,7,79,111,147,58,0,11,15,20,0,11,85,57,13,19,18,20,17,20,26,23,16,25,169,101,103,80,0,16,252,117,17,25,79,77,9,6,14,24,30,35]
[null,"$50,000 to $59,999",32,35,53,34,41,32,83,52,0,16,94,70,68,42,583,199,39,26,215,101,317,117,51,31,7,11,132,90,205,89,41,28,51,24,40,40,373,122,8,9,29,15,13,8,93,52,114,63,129,76,88,49,62,48,81,56,272,143,241,104,83,64,339,104,120,70,196,77,8,6,59,52,136,93]
[null,"$60,000 to $74,999",118,66,78,38,107,54,49,43,124,57,115,62,87,44,942,193,49,23,134,78,394,122,134,62,17,18,231,78,506,132,13,14,47,21,105,64,642,164,10,9,20,15,15,9,210,105,102,71,103,58,103,47,158,71,354,139,501,128,264,94,135,80,673,185,96,73,314,133,14,9,266,145,330,115]
[null,"$75,000 to $99,999",262,119,287,98,71,44,148,56,168,80,232,83,216,85,1070,209,91,32,294,118,639,145,182,67,172,72,196,68,600,148,68,27,87,33,187,99,1056,177,19,13,41,21,23,11,357,109,225,97,168,77,217,75,346,96,283,121,505,130,445,121,183,81,1152,215,159,69,390,127,17,11,335,150,274,112]
[null,"$100,000 to $124,999",413,140,323,100,206,82,158,76,223,79,197,72,222,94,1515,255,77,28,238,110,355,124,310,70,164,57,428,122,463,121,69,31,76,26,229,112,945,191,17,13,57,28,30,19,358,102,267,85,182,69,249,95,196,76,346,137,874,182,528,182,172,77,842,164,299,121,412,128,30,14,200,91,465,155]
[null,"$125,000 to $149,999",280,96,145,64,107,54,79,43,186,77,92,44,145,63,970,212,46,22,304,129,321,109,235,87,123,57,204,60,478,125,126,51,77,26,140,106,958,179,12,15,55,28,24,13,244,101,162,71,121,67,162,75,189,72,313,140,496,120,404,135,142,112,1123,180,225,101,230,98,39,21,270,110,430,166]
[null,"$150,000 to $199,999",403,138,330,102,224,84,241,82,297,97,208,91,148,62,903,210,179,44,295,119,455,125,177,64,202,76,342,94,563,149,119,39,82,25,375,115,1214,191,25,22,118,34,57,25,289,99,275,89,170,65,111,59,195,66,195,82,613,132,211,81,286,113,1106,198,343,118,235,92,35,18,301,117,848,191]
[null,"$200,000 or more",374,107,270,87,400,91,175,75,370,114,162,57,202,61,902,199,122,38,121,68,876,175,157,77,227,69,398,104,896,141,192,44,172,36,198,96,1282,183,152,51,173,47,40,16,186,73,113,60,312,93,103,54,150,58,206,99,1063,123,142,82,477,148,1377,213,206,154,147,66,38,12,662,154,1422,201]
[]
[]
[null,"B19113. MEDIAN FAMILY INCOME IN THE PAST 12 MONTHS (IN 2019 INFLATION-ADJUSTED DOLLARS)"]
[null,"Universe:  FAMILIES"]
[null,"Data Set: 2015-2019 American Community Survey 5-Year Estimates"]
[]
[null,null,"Atkinson",null,"Auburn",null,"Brentwood",null,"Candia",null,"Chester",null,"Danville",null,"Deerfield",null,"Derry",null,"East Kingston",null,"Epping",null,"Exeter",null,"Fremont",null,"Greenland",null,"Hampstead",null,"Hampton",null,"Hampton Falls",null,"Kensington",null,"Kingston",null,"Londonderry",null,"New Castle",null,"Newfields",null,"Newington",null,"Newmarket",null,"Newton",null,"North Hampton",null,"Northwood",null,"Nottingham",null,"Plaistow",null,"Portsmouth",null,"Raymond",null,"Rye",null,"Salem",null,"Sandown",null,"Seabrook",null,"South Hampton",null,"Stratham",null,"Windham"]
[null,null,"Estimate","Margin Of Error","Estimate","Margin Of Error","Estimate","Margin Of Error","Estimate","Margin Of Error","Estimate","Margin Of Error","Estimate","Margin Of Error","Estimate","Margin Of Error","Estimate","Margin Of Error","Estimate","Margin Of Error","Estimate","Margin Of Error","Estimate","Margin Of Error","Estimate","Margin Of Error","Estimate","Margin Of Error","Estimate","Margin Of Error","Estimate","Margin Of Error","Estimate","Margin Of Error","Estimate","Margin Of Error","Estimate","Margin Of Error","Estimate","Margin Of Error","Estimate","Margin Of Error","Estimate","Margin Of Error","Estimate","Margin Of Error","Estimate","Margin Of Error","Estimate","Margin Of Error","Estimate","Margin Of Error","Estimate","Margin Of Error","Estimate","Margin Of Error","Estimate","Margin Of Error","Estimate","Margin Of Error","Estimate","Margin Of Error","Estimate","Margin Of Error","Estimate","Margin Of Error","Estimate","Margin Of Error","Estimate","Margin Of Error","Estimate","Margin Of Error","Estimate","Margin Of Error","Estimate","Margin Of Error"]
[null,"Median family income in the past 12 months",132500,12176,118609,7629,152841,36736,118698,12624,138542,19458,96618,25571,107949,8293,94253,9211,119167,21420,93500,17921,104573,8818,118004,8218,118456,18989,111838,9637,111773,10167,140735,15710,122500,13965,110750,17067,118224,6880,230987,28477,161667,12069,145938,26192,100133,7844,112941,14205,107434,12296,109857,9915,100855,14148,98011,11265,116200,6782,90747,9766,143341,28164,112143,11693,119756,13157,86000,9104,122188,21534,133445,15027,156145,10211]
[]
[]
[]
[]
[]
[]
[]
[]
[]
[]
[]
[]
[]
[]
[]
[]
[]
[null,"B19101. FAMILY INCOME IN THE PAST 12 MONTHS (IN 2013 INFLATION-ADJUSTED DOLLARS)"]
[null,"Universe:  FAMILIES"]
[null,"Data Set: 2010-2014 American Community Survey 5-Year Estimates"]
[]
[null,null,"Atkinson",null,"Auburn",null,"Brentwood",null,"Candia",null,"Chester",null,"Danville",null,"Deerfield",null,"Derry",null,"East Kingston",null,"Epping",null,"Exeter",null,"Fremont",null,"Greenland",null,"Hampstead",null,"Hampton",null,"Hampton Falls",null,"Kensington",null,"Kingston",null,"Londonderry",null,"New Castle",null,"Newfields",null,"Newington",null,"Newmarket",null,"Newton",null,"North Hampton",null,"Northwood",null,"Nottingham",null,"Plaistow",null,"Portsmouth",null,"Raymond",null,"Rye",null,"Salem",null,"Sandown",null,"Seabrook",null,"South Hampton",null,"Stratham",null,"Windham"]
[null,null,"Estimate","Margin Of Error","Estimate","Margin Of Error","Estimate","Margin Of Error","Estimate","Margin Of Error","Estimate","Margin Of Error","Estimate","Margin Of Error","Estimate","Margin Of Error","Estimate","Margin Of Error","Estimate","Margin Of Error","Estimate","Margin Of Error","Estimate","Margin Of Error","Estimate","Margin Of Error","Estimate","Margin Of Error","Estimate","Margin Of Error","Estimate","Margin Of Error","Estimate","Margin Of Error","Estimate","Margin Of Error","Estimate","Margin Of Error","Estimate","Margin Of Error","Estimate","Margin Of Error","Estimate","Margin Of Error","Estimate","Margin Of Error","Estimate","Margin Of Error","Estimate","Margin Of Error","Estimate","Margin Of Error","Estimate","Margin Of Error","Estimate","Margin Of Error","Estimate","Margin Of Error","Estimate","Margin Of Error","Estimate","Margin Of Error","Estimate","Margin Of Error","Estimate","Margin Of Error","Estimate","Margin Of Error","Estimate","Margin Of Error","Estimate","Margin Of Error","Estimate","Margin Of Error","Estimate","Margin Of Error"]
[null,"Total Families",2033,101,1476,71,1167,84,1178,78,1300,77,1158,77,1279,61,8832,317,721,50,1971,136,3786,185,1345,66,1062,72,2354,125,4383,186,675,57,588,54,1813,128,6729,210,326,64,491,63,239,44,2040,190,1252,107,1361,74,1279,104,1363,87,2275,135,4770,250,2714,141,1525,164,7880,261,1692,136,2372,232,226,42,2193,96,3961,172]
[null,"Less than $10,000",0,15,24,28,8,12,9,14,35,30,23,37,8,12,201,109,13,16,0,15,142,84,9,15,38,34,57,69,51,50,0,11,0,11,115,92,57,39,11,14,0,11,0,11,62,58,78,84,19,24,0,11,5,9,42,66,88,83,16,22,13,21,89,55,0,15,124,131,6,9,0,15,21,24]
[null,"$10,000 to $14,999",30,37,9,14,0,11,9,15,0,11,27,35,16,18,161,92,3,4,16,26,25,27,0,11,0,11,64,71,61,56,0,11,0,11,0,15,22,27,0,11,0,11,2,3,20,23,40,61,0,11,28,19,0,11,0,15,69,43,81,89,0,15,31,30,9,15,0,15,0,11,0,15,18,27]
[null,"$15,000 to $19,999",16,27,8,12,10,16,0,11,5,9,11,17,9,14,247,153,7,10,61,59,65,53,3,7,10,16,7,11,198,129,15,17,8,7,0,15,24,20,0,11,2,5,0,11,71,73,0,11,0,11,16,19,8,12,13,21,75,40,105,81,23,27,67,50,49,60,139,122,0,11,0,15,11,18]
[null,"$20,000 to $24,999",16,26,0,15,14,15,21,23,44,44,14,15,9,15,185,105,18,20,25,32,118,107,10,15,0,11,29,44,35,29,9,11,2,3,26,42,149,77,3,5,11,12,3,4,63,56,0,11,5,8,78,69,10,16,17,28,79,50,96,83,43,39,68,40,35,38,182,133,6,6,15,24,108,117]
[null,"$25,000 to $29,999",0,15,8,12,45,46,7,11,9,13,8,13,11,17,195,100,16,13,35,37,121,90,23,25,22,24,31,25,106,89,4,6,3,4,35,43,133,69,2,5,8,9,3,4,69,40,9,15,0,11,31,27,15,20,62,57,188,90,158,105,10,17,159,94,27,44,34,33,7,7,72,60,0,17]
[null,"$30,000 to $34,999",35,39,18,22,20,22,21,23,41,57,0,11,21,23,254,107,12,12,101,99,69,68,56,44,18,19,71,66,70,45,12,11,16,12,0,15,209,93,0,11,2,4,8,8,85,67,8,12,85,60,44,35,20,24,135,120,129,68,117,62,9,16,304,122,41,33,38,32,0,11,18,27,15,23]
[null,"$35,000 to $39,999",36,43,57,50,12,14,11,14,17,19,0,11,71,57,305,133,16,20,21,20,79,54,50,33,11,16,35,36,97,62,17,27,5,6,81,86,144,90,0,11,8,9,8,10,50,45,43,41,32,29,18,19,28,23,218,126,181,93,54,37,0,15,340,137,63,81,124,136,7,7,73,87,51,47]
[null,"$40,000 to $44,999",80,75,58,54,14,16,22,24,7,11,22,22,44,46,291,110,25,19,28,32,49,38,50,43,23,22,36,30,114,80,20,18,0,11,106,65,119,55,0,11,22,23,5,6,36,32,74,57,41,30,18,20,64,37,92,68,174,84,101,84,0,15,214,86,91,69,103,77,5,5,42,37,102,71]
[null,"$45,000 to $49,999",20,31,16,20,0,11,45,32,20,23,85,60,46,32,342,133,20,15,35,41,130,54,26,25,29,25,34,43,109,58,11,13,14,10,111,81,179,84,2,5,24,19,0,11,66,68,8,13,59,61,88,50,42,54,198,109,215,91,121,86,18,29,402,140,51,41,189,112,12,8,13,21,30,34]
[null,"$50,000 to $59,999",150,81,21,24,15,18,79,45,98,62,44,33,89,43,794,184,78,47,188,114,283,131,60,41,84,44,92,55,321,115,39,28,28,15,75,59,360,102,27,23,25,18,15,15,126,85,88,67,75,36,173,75,66,40,80,54,202,69,230,100,95,71,589,162,101,66,273,129,21,22,61,55,48,43]
[null,"$60,000 to $74,999",215,91,152,69,132,59,125,70,96,60,94,59,198,74,1056,222,74,32,307,131,226,84,147,59,180,66,228,88,481,134,51,30,51,21,250,104,602,156,24,23,49,30,39,27,252,83,97,57,110,54,69,48,151,73,306,132,508,122,304,101,103,71,670,154,184,97,325,148,28,15,206,89,367,144]
[null,"$75,000 to $99,999",303,106,283,90,213,75,246,63,193,75,244,97,216,85,1613,270,91,37,361,115,652,198,366,112,148,58,324,102,704,156,85,34,93,26,332,131,1025,161,31,21,69,28,44,23,394,102,223,83,224,85,283,79,193,69,367,150,649,150,438,133,265,136,1554,264,301,111,344,130,16,10,229,103,542,186]
[null,"$100,000 to $124,999",399,150,173,58,139,54,173,65,141,50,233,78,200,79,1118,214,96,31,310,118,602,172,276,83,84,39,413,116,593,137,86,37,128,45,212,103,1043,160,44,32,42,24,29,15,269,93,224,88,163,71,167,69,280,108,327,130,724,145,436,129,177,105,953,208,171,81,162,94,15,9,241,77,620,175]
[null,"$125,000 to $149,999",262,108,200,75,107,48,107,43,177,57,160,65,125,70,835,203,103,33,224,117,341,119,66,47,135,57,304,111,373,126,104,44,64,29,208,120,760,155,65,39,56,31,32,18,200,85,135,56,67,52,126,51,174,63,136,78,447,111,160,68,334,146,900,164,199,91,127,68,29,19,197,66,526,160]
[null,"$150,000 to $199,999",254,100,278,96,184,72,234,80,223,78,130,64,156,65,857,166,82,35,243,119,449,130,90,44,108,51,405,100,646,147,93,45,77,24,129,80,1065,171,34,24,46,20,29,17,174,69,175,70,130,52,96,67,212,94,124,75,404,126,279,111,199,121,766,166,206,94,128,74,37,18,442,129,583,123]
[null,"$200,000 or more",217,121,171,72,254,80,69,55,194,69,63,40,60,42,378,99,67,28,16,28,435,100,113,54,172,82,224,71,424,125,129,39,99,27,133,82,838,149,83,34,127,35,22,12,103,65,50,37,351,94,44,31,95,62,158,93,638,133,18,20,236,88,774,174,164,86,80,50,37,15,584,131,919,221]
[]
[]
[null,"B19113. MEDIAN FAMILY INCOME IN THE PAST 12 MONTHS (IN 2013 INFLATION-ADJUSTED DOLLARS)"]
[null,"Universe:  FAMILIES"]
[null,"Data Set: 2010-2014 American Community Survey 5-Year Estimates"]
[]
[null,null,"Atkinson",null,"Auburn",null,"Brentwood",null,"Candia",null,"Chester",null,"Danville",null,"Deerfield",null,"Derry",null,"East Kingston",null,"Epping",null,"Exeter",null,"Fremont",null,"Greenland",null,"Hampstead",null,"Hampton",null,"Hampton Falls",null,"Kensington",null,"Kingston",null,"Londonderry",null,"New Castle",null,"Newfields",null,"Newington",null,"Newmarket",null,"Newton",null,"North Hampton",null,"Northwood",null,"Nottingham",null,"Plaistow",null,"Portsmouth",null,"Raymond",null,"Rye",null,"Salem",null,"Sandown",null,"Seabrook",null,"South Hampton",null,"Stratham",null,"Windham"]
[null,null,"Estimate","Margin Of Error","Estimate","Margin Of Error","Estimate","Margin Of Error","Estimate","Margin Of Error","Estimate","Margin Of Error","Estimate","Margin Of Error","Estimate","Margin Of Error","Estimate","Margin Of Error","Estimate","Margin Of Error","Estimate","Margin Of Error","Estimate","Margin Of Error","Estimate","Margin Of Error","Estimate","Margin Of Error","Estimate","Margin Of Error","Estimate","Margin Of Error","Estimate","Margin Of Error","Estimate","Margin Of Error","Estimate","Margin Of Error","Estimate","Margin Of Error","Estimate","Margin Of Error","Estimate","Margin Of Error","Estimate","Margin Of Error","Estimate","Margin Of Error","Estimate","Margin Of Error","Estimate","Margin Of Error","Estimate","Margin Of Error","Estimate","Margin Of Error","Estimate","Margin Of Error","Estimate","Margin Of Error","Estimate","Margin Of Error","Estimate","Margin Of Error","Estimate","Margin Of Error","Estimate","Margin Of Error","Estimate","Margin Of Error","Estimate","Margin Of Error","Estimate","Margin Of Error","Estimate","Margin Of Error"]
[null,"Median family income in the past 12 months",105799,7016,108833,12805,118631,19188,98333,11296,114359,17637,100625,10961,88690,6386,80816,4161,89464,21551,86475,13976,96538,8954,90791,7290,89917,25725,107533,9197,94489,7243,122946,24673,116538,8693,80503,6232,109085,3912,135833,18175,116250,15800,98438,9885,86838,8436,91071,19720,107411,16698,81829,6196,105347,11849,72035,11769,90208,10948,73143,10046,125232,28016,90353,6299,93681,12572,59231,11517,103750,35887,142637,15911,127868,14800]
[]
[]
[]
[]
[]
[]
[]
[]
[]
[]
[]
[]
[]
[]
[]
[]
[]
[null,"B19101. FAMILY INCOME IN THE PAST 12 MONTHS (IN 2009 INFLATION-ADJUSTED DOLLARS)"]
[null,"Universe:  FAMILIES"]
[null,"Data Set: 2005-2009 American Community Survey 5-Year Estimates"]
[]
[null,null,"Atkinson",null,"Auburn",null,"Brentwood",null,"Candia",null,"Chester",null,"Danville",null,"Deerfield",null,"Derry",null,"East Kingston",null,"Epping",null,"Exeter",null,"Fremont",null,"Greenland",null,"Hampstead",null,"Hampton",null,"Hampton Falls",null,"Kensington",null,"Kingston",null,"Londonderry",null,"New Castle",null,"Newfields",null,"Newington",null,"Newmarket",null,"Newton",null,"North Hampton",null,"Northwood",null,"Nottingham",null,"Plaistow",null,"Portsmouth",null,"Raymond",null,"Rye",null,"Salem",null,"Sandown",null,"Seabrook",null,"South Hampton",null,"Stratham",null,"Windham"]
[null,null,"Estimate","Margin Of Error","Estimate","Margin Of Error","Estimate","Margin Of Error","Estimate","Margin Of Error","Estimate","Margin Of Error","Estimate","Margin Of Error","Estimate","Margin Of Error","Estimate","Margin Of Error","Estimate","Margin Of Error","Estimate","Margin Of Error","Estimate","Margin Of Error","Estimate","Margin Of Error","Estimate","Margin Of Error","Estimate","Margin Of Error","Estimate","Margin Of Error","Estimate","Margin Of Error","Estimate","Margin Of Error","Estimate","Margin Of Error","Estimate","Margin Of Error","Estimate","Margin Of Error","Estimate","Margin Of Error","Estimate","Margin Of Error","Estimate","Margin Of Error","Estimate","Margin Of Error","Estimate","Margin Of Error","Estimate","Margin Of Error","Estimate","Margin Of Error","Estimate","Margin Of Error","Estimate","Margin Of Error","Estimate","Margin Of Error","Estimate","Margin Of Error","Estimate","Margin Of Error","Estimate","Margin Of Error","Estimate","Margin Of Error","Estimate","Margin Of Error","Estimate","Margin Of Error","Estimate","Margin Of Error"]
[null,null,1927,128,1433,83,899,84,1179,77,1276,67,1153,77,1065,81,8773,292,682,54,1728,132,3611,183,1203,71,929,78,2467,148,4174,212,644,60,620,58,1687,118,6713,198,219,50,487,64,199,38,2422,167,1341,74,1295,97,1119,75,1307,65,2082,148,4676,267,2783,167,1515,108,7981,255,1617,85,2359,186,217,39,2049,115,3565,164]
[null,"Less than $10,000",13,20,10,16,15,12,11,17,0,114,11,16,20,23,241,120,15,16,36,33,9,15,0,114,18,21,0,114,164,87,25,22,2,4,24,39,35,35,0,114,0,114,0,114,12,25,0,114,27,27,4,10,16,22,30,35,132,78,24,27,12,19,61,44,28,25,42,66,2,3,14,23,11,19]
[null,"$10,000 to $14,999",0,114,27,35,0,114,9,15,0,114,11,18,8,12,162,109,10,12,12,21,10,18,29,31,0,114,29,31,62,73,17,18,0,114,35,55,107,78,9,13,0,114,3,6,45,58,13,20,0,114,0,114,22,17,51,56,43,36,18,20,18,28,101,55,22,29,26,39,0,114,9,15,21,23]
[null,"$15,000 to $19,999",29,31,0,114,0,114,0,114,0,114,20,21,0,114,138,71,15,14,29,33,136,105,32,35,12,18,29,32,57,74,6,8,4,5,15,24,24,29,10,10,5,6,9,9,79,68,33,51,5,9,21,18,0,114,12,19,83,61,135,84,0,114,106,70,34,38,213,139,0,114,63,57,33,41]
[null,"$20,000 to $24,999",35,40,21,22,11,12,0,114,20,23,12,18,21,22,213,98,24,20,57,52,44,37,0,114,10,15,15,25,100,61,9,11,9,8,67,63,13,21,16,16,14,16,0,114,77,46,0,114,21,17,39,32,48,28,114,93,173,82,109,60,31,32,177,98,49,45,76,50,3,4,0,114,56,40]
[null,"$25,000 to $29,999",12,19,26,23,13,14,7,12,41,34,60,57,22,25,369,134,0,114,73,65,139,74,0,114,30,46,41,38,131,90,9,9,36,21,26,32,161,97,8,9,15,20,13,10,77,54,68,68,37,30,31,29,0,114,57,41,134,62,59,43,25,28,96,58,21,24,64,70,3,4,13,21,23,26]
[null,"$30,000 to $34,999",28,31,54,34,21,24,36,30,22,24,19,22,39,29,312,113,8,8,158,80,194,82,61,58,11,17,129,94,220,124,13,13,38,18,51,48,195,104,0,114,8,7,0,114,19,21,45,36,53,37,32,28,10,16,16,25,124,64,64,44,60,50,421,141,49,49,52,42,7,9,23,26,81,57]
[null,"$35,000 to $39,999",74,51,72,55,28,21,43,31,11,17,51,42,0,114,227,96,11,9,48,60,68,45,29,29,18,20,40,38,203,83,16,13,7,8,72,56,169,125,7,8,4,7,3,5,54,40,40,38,12,19,69,57,88,85,43,41,132,68,145,83,0,114,222,95,69,51,10,17,27,29,55,47,70,41]
[null,"$40,000 to $44,999",41,55,15,18,5,9,56,54,19,22,19,23,46,37,329,110,22,13,77,78,75,51,30,28,40,33,43,55,122,64,3,4,8,8,59,46,168,73,3,5,11,11,0,114,54,40,38,36,45,53,14,21,40,33,56,44,259,118,191,112,81,84,340,124,22,23,336,139,0,114,0,114,78,58]
[null,"$45,000 to $49,999",57,47,32,25,12,13,29,24,26,23,29,28,38,31,354,119,9,6,80,53,160,85,41,29,38,32,48,34,81,70,5,6,7,9,106,66,161,86,0,114,6,7,4,6,93,70,43,29,30,28,122,72,10,15,19,22,190,86,134,68,64,41,315,125,60,39,126,76,0,114,17,28,66,33]
[null,"$50,000 to $59,999",106,61,71,51,22,15,52,41,81,48,48,51,8,13,500,164,7,7,91,59,207,77,135,73,43,31,204,108,315,109,21,13,45,18,178,102,329,106,20,21,25,14,13,10,194,72,11,17,116,63,111,57,105,59,127,64,361,98,509,167,89,52,875,203,90,51,208,96,9,7,67,49,127,55]
[null,"$60,000 to $74,999",272,117,139,71,74,32,130,60,154,67,185,76,186,71,826,198,70,23,235,98,337,121,130,59,140,52,336,121,482,156,19,11,73,30,188,85,795,207,16,22,20,13,28,14,334,142,96,49,245,94,232,86,115,47,334,106,573,147,309,105,190,87,951,225,134,76,227,104,20,12,182,76,269,96]
[null,"$75,000 to $99,999",244,88,299,85,167,55,209,83,275,92,168,87,228,79,1900,301,130,38,294,112,561,145,335,81,103,47,434,121,830,174,54,19,89,27,348,97,1120,198,21,13,73,28,65,30,477,109,353,100,128,55,174,61,238,93,390,141,677,160,524,141,169,74,1324,237,386,94,416,147,28,13,338,113,517,133]
[null,"$100,000 to $124,999",349,86,230,75,150,53,258,78,269,88,280,82,94,54,1228,212,111,33,254,121,682,164,185,71,124,63,370,109,552,141,148,42,66,25,257,105,1183,233,33,24,66,29,26,14,363,116,296,103,117,50,190,69,305,85,270,114,611,148,282,109,235,86,1015,203,224,83,312,143,46,21,419,114,524,128]
[null,"$125,000 to $149,999",165,78,214,64,106,42,126,57,88,50,121,59,210,81,949,165,82,23,158,82,369,125,85,47,85,41,218,87,235,98,55,24,78,30,45,40,900,195,46,33,54,21,10,9,274,91,209,83,124,62,26,23,145,65,281,125,530,144,140,71,143,66,741,186,127,56,152,72,15,11,207,81,481,119]
[null,"$150,000 to $199,999",229,72,162,74,158,45,141,72,103,51,88,45,105,53,669,153,85,25,64,55,287,118,101,56,111,53,273,87,313,98,118,36,106,48,161,70,720,160,9,8,89,28,14,11,158,81,84,44,153,60,47,38,121,81,174,78,323,131,110,52,208,107,743,173,175,75,33,39,48,23,335,100,662,133]
[null,"$200,000 or more",273,96,61,38,117,45,72,45,167,75,31,29,40,37,356,140,83,30,62,53,333,108,10,15,146,63,258,114,307,107,126,34,52,19,55,51,633,180,21,20,97,38,11,10,112,69,12,18,182,67,7,12,44,36,108,59,331,119,30,28,190,71,493,140,127,83,66,96,9,7,307,101,546,125]
[]
[]
[null,"B19113. MEDIAN FAMILY INCOME IN THE PAST 12 MONTHS (IN 2009 INFLATION-ADJUSTED DOLLARS)"]
[null,"Universe:  FAMILIES"]
[null,"Data Set: 2005-2009 American Community Survey 5-Year Estimates"]
[]
[null,null,"Atkinson",null,"Auburn",null,"Brentwood",null,"Candia",null,"Chester",null,"Danville",null,"Deerfield",null,"Derry",null,"East Kingston",null,"Epping",null,"Exeter",null,"Fremont",null,"Greenland",null,"Hampstead",null,"Hampton",null,"Hampton Falls",null,"Kensington",null,"Kingston",null,"Londonderry",null,"New Castle",null,"Newfields",null,"Newington",null,"Newmarket",null,"Newton",null,"North Hampton",null,"Northwood",null,"Nottingham",null,"Plaistow",null,"Portsmouth",null,"Raymond",null,"Rye",null,"Salem",null,"Sandown",null,"Seabrook",null,"South Hampton",null,"Stratham",null,"Windham"]
[null,null,"Estimate","Margin Of Error","Estimate","Margin Of Error","Estimate","Margin Of Error","Estimate","Margin Of Error","Estimate","Margin Of Error","Estimate","Margin Of Error","Estimate","Margin Of Error","Estimate","Margin Of Error","Estimate","Margin Of Error","Estimate","Margin Of Error","Estimate","Margin Of Error","Estimate","Margin Of Error","Estimate","Margin Of Error","Estimate","Margin Of Error","Estimate","Margin Of Error","Estimate","Margin Of Error","Estimate","Margin Of Error","Estimate","Margin Of Error","Estimate","Margin Of Error","Estimate","Margin Of Error","Estimate","Margin Of Error","Estimate","Margin Of Error","Estimate","Margin Of Error","Estimate","Margin Of Error","Estimate","Margin Of Error","Estimate","Margin Of Error","Estimate","Margin Of Error","Estimate","Margin Of Error","Estimate","Margin Of Error","Estimate","Margin Of Error","Estimate","Margin Of Error","Estimate","Margin Of Error","Estimate","Margin Of Error","Estimate","Margin Of Error","Estimate","Margin Of Error","Estimate","Margin Of Error","Estimate","Margin Of Error"]
[null,"Median family income in the past 12 months",104094,8949,94330,11567,118060,13034,100426,8321,99329,6176,95225,9470,90347,9983,85263,4211,104239,7385,70798,12352,94213,5880,82708,8626,100375,23219,94432,8441,78156,4275,122045,8713,97045,12880,78705,15204,101041,5305,99792,21880,123906,13324,86875,3431,82212,5540,97553,6107,89781,18026,64502,3637,97269,11499,94189,12262,80820,5818,60313,12667,103150,17169,79362,4131,88608,7060,61743,9333,102375,20010,113925,9739,121420,5806]

{"sheet":"ACS_TableB19201_ACS_Tbl_B19202","index":42,"n_rows":115,"n_cols":76,"rows_kept":115,"cut":false,"hidden":true,"merged":[]}
[null,"B19102. NON-FAMILY INCOME IN THE PAST 12 MONTHS (IN 2019 INFLATION-ADJUSTED DOLLARS)"]
[null,"Universe:  FAMILIES"]
[null,"Data Set: 2015-2019 American Community Survey 5-Year Estimates"]
[]
[null,null,"Atkinson",null,"Auburn",null,"Brentwood",null,"Candia",null,"Chester",null,"Danville",null,"Deerfield",null,"Derry",null,"East Kingston",null,"Epping",null,"Exeter",null,"Fremont",null,"Greenland",null,"Hampstead",null,"Hampton",null,"Hampton Falls",null,"Kensington",null,"Kingston",null,"Londonderry",null,"New Castle",null,"Newfields",null,"Newington",null,"Newmarket",null,"Newton",null,"North Hampton",null,"Northwood",null,"Nottingham",null,"Plaistow",null,"Portsmouth",null,"Raymond",null,"Rye",null,"Salem",null,"Sandown",null,"Seabrook",null,"South Hampton",null,"Stratham",null,"Windham"]
[null,null,"Estimate","Margin Of Error","Estimate","Margin Of Error","Estimate","Margin Of Error","Estimate","Margin Of Error","Estimate","Margin Of Error","Estimate","Margin Of Error","Estimate","Margin Of Error","Estimate","Margin Of Error","Estimate","Margin Of Error","Estimate","Margin Of Error","Estimate","Margin Of Error","Estimate","Margin Of Error","Estimate","Margin Of Error","Estimate","Margin Of Error","Estimate","Margin Of Error","Estimate","Margin Of Error","Estimate","Margin Of Error","Estimate","Margin Of Error","Estimate","Margin Of Error","Estimate","Margin Of Error","Estimate","Margin Of Error","Estimate","Margin Of Error","Estimate","Margin Of Error","Estimate","Margin Of Error","Estimate","Margin Of Error","Estimate","Margin Of Error","Estimate","Margin Of Error","Estimate","Margin Of Error","Estimate","Margin Of Error","Estimate","Margin Of Error","Estimate","Margin Of Error","Estimate","Margin Of Error","Estimate","Margin Of Error","Estimate","Margin Of Error","Estimate","Margin Of Error","Estimate","Margin Of Error","Estimate","Margin Of Error"]
[null,"Total:",751,187,318,106,288,83,419,113,213,94,355,99,363,104,3732,399,172,49,646,174,2708,297,413,92,391,99,1158,197,2761,283,233,64,177,40,788,243,1920,240,179,59,76,33,98,30,1886,234,495,121,444,114,441,111,453,144,964,224,4957,367,1296,213,769,215,3664,382,555,130,1348,238,77,23,584,150,781,209]
[null,"Less than $10,000",44,43,13,18,11,19,64,65,0,16,0,11,25,24,390,178,6,9,0,16,229,110,8,14,17,25,82,54,149,82,17,27,11,9,19,30,54,40,5,8,4,7,8,7,112,95,17,21,37,28,39,39,14,21,103,105,326,125,46,38,21,33,346,148,12,20,106,72,8,8,46,44,0,18]
[null,"$10,000 to $14,999",50,63,10,16,21,23,11,17,0,16,0,11,9,14,252,102,17,15,18,30,173,81,28,25,26,23,43,53,95,73,0,11,8,7,77,86,39,28,0,11,3,5,4,6,64,58,54,50,25,24,0,11,24,26,96,64,229,100,162,72,0,16,193,125,13,23,70,49,0,11,31,35,56,57]
[null,"$15,000 to $19,999",14,23,0,16,33,52,46,36,0,16,43,44,9,14,208,85,12,13,80,72,143,68,8,12,9,14,101,106,231,92,11,12,18,18,0,16,168,96,6,8,7,8,2,5,108,75,54,51,26,25,21,24,0,16,0,16,231,109,43,31,0,16,302,136,43,68,221,89,5,5,0,16,146,106]
[null,"$20,000 to $24,999",84,90,28,29,20,24,28,42,0,16,24,38,0,11,153,90,0,11,104,100,270,120,37,49,0,11,36,34,155,65,0,11,4,5,36,44,137,75,19,22,0,11,5,6,163,119,7,12,25,23,39,31,62,62,13,20,237,103,90,50,40,46,377,129,11,18,48,78,0,11,33,39,33,40]
[null,"$25,000 to $29,999",0,16,0,16,19,21,20,30,44,52,35,26,26,26,258,139,13,13,63,61,155,69,0,11,0,11,28,46,102,53,5,9,6,6,82,113,159,99,13,20,0,11,0,11,66,56,8,13,38,49,9,15,26,30,91,81,215,103,49,38,104,111,237,91,49,70,58,42,3,4,33,38,0,18]
[null,"$30,000 to $34,999",39,35,19,21,12,19,41,33,9,14,49,52,0,11,125,81,13,15,20,32,148,71,9,14,44,31,55,43,147,75,38,37,12,9,18,30,131,60,22,24,4,7,12,12,86,58,37,27,9,13,8,14,11,17,62,77,244,92,130,89,53,47,203,120,14,24,115,58,2,3,17,27,37,42]
[null,"$35,000 to $39,999",13,20,0,16,10,15,7,11,0,16,0,11,16,19,195,89,11,13,29,32,211,126,18,20,10,14,13,20,122,56,24,22,20,22,61,57,102,59,13,18,8,9,2,3,171,94,7,13,15,18,44,47,0,16,44,41,181,80,121,81,52,49,217,100,28,35,18,21,8,13,72,58,30,34]
[null,"$40,000 to $44,999",60,80,13,20,0,11,0,11,9,15,38,47,0,11,122,70,17,14,30,34,113,98,0,11,0,11,145,124,150,62,0,11,0,11,113,101,9,14,4,7,3,5,0,11,65,52,16,18,30,26,38,30,8,12,30,39,134,73,34,32,0,16,172,77,29,36,136,71,5,5,31,38,39,61]
[null,"$45,000 to $49,999",50,60,11,17,12,17,0,11,0,16,0,11,0,11,202,118,19,29,26,30,165,129,22,21,0,11,29,26,68,38,5,8,7,7,44,52,80,37,0,11,0,11,5,6,100,96,32,37,25,28,0,11,0,16,16,28,147,79,67,67,39,44,136,80,0,16,50,56,0,11,85,63,27,32]
[null,"$50,000 to $59,999",129,84,21,24,52,37,36,34,0,16,18,20,32,28,288,111,16,13,41,39,223,104,29,30,11,16,129,78,268,88,17,27,8,8,0,16,248,82,21,28,3,5,8,7,229,106,0,11,24,22,71,59,78,63,69,50,378,138,49,44,37,42,369,175,66,61,97,77,13,7,36,36,16,27]
[null,"$60,000 to $74,999",21,32,11,18,11,16,33,30,65,58,31,28,0,11,550,154,21,15,138,113,225,123,75,63,47,47,114,74,275,102,6,9,36,18,184,143,186,85,18,16,6,8,19,14,210,104,26,23,46,36,26,22,123,63,191,112,787,188,176,103,89,99,422,172,59,71,89,56,11,13,30,35,158,100]
[null,"$75,000 to $99,999",70,59,57,51,23,21,18,21,6,11,22,22,93,63,366,138,12,13,54,43,314,112,74,45,29,25,178,86,438,141,12,12,14,10,96,75,235,95,11,15,3,6,15,14,182,85,35,27,70,38,44,31,0,16,107,61,542,142,132,73,95,109,255,97,76,73,175,94,3,4,83,54,119,93]
[null,"$100,000 to $124,999",28,34,60,43,30,27,65,58,19,31,46,34,46,57,370,138,9,11,10,18,125,82,24,26,55,34,66,46,247,86,6,8,3,5,58,54,163,87,12,15,0,11,3,5,148,73,97,46,0,11,8,12,21,24,31,46,537,144,123,76,39,43,105,65,43,43,65,48,9,9,19,29,12,20]
[null,"$125,000 to $149,999",11,19,36,54,10,17,14,16,0,16,17,14,48,45,153,112,0,11,12,19,97,73,37,48,10,15,29,30,115,62,19,29,9,9,0,16,57,35,0,11,7,8,5,7,105,74,0,11,18,20,28,25,47,60,62,50,166,72,61,50,16,26,56,53,80,75,17,20,2,4,0,16,0,18]
[null,"$150,000 to $199,999",54,66,36,30,24,25,9,13,61,45,32,36,36,47,83,56,6,9,21,34,55,51,25,38,91,67,55,42,81,45,32,24,6,8,0,16,88,49,20,22,12,20,7,9,44,40,35,29,39,30,35,44,22,25,31,37,338,125,13,21,105,95,163,96,13,20,8,14,2,3,8,17,53,55]
[null,"$200,000 or more",84,72,3,8,0,11,27,25,0,16,0,11,23,25,17,20,0,11,0,16,62,44,19,21,42,27,55,41,118,57,41,23,15,9,0,16,64,42,15,19,16,13,3,4,33,30,70,55,17,20,31,30,17,21,18,30,265,105,0,18,79,59,111,64,19,29,75,51,6,7,60,50,55,44]
[]
[]
[null,"B19112. MEDIAN NON-FAMILY INCOME IN THE PAST 12 MONTHS (IN 2018 INFLATION-ADJUSTED DOLLARS)"]
[null,"Universe:  FAMILIES"]
[null,"Data Set: 2015-2019 American Community Survey 5-Year Estimates"]
[]
[null,null,"Atkinson",null,"Auburn",null,"Brentwood",null,"Candia",null,"Chester",null,"Danville",null,"Deerfield",null,"Derry",null,"East Kingston",null,"Epping",null,"Exeter",null,"Fremont",null,"Greenland",null,"Hampstead",null,"Hampton",null,"Hampton Falls",null,"Kensington",null,"Kingston",null,"Londonderry",null,"New Castle",null,"Newfields",null,"Newington",null,"Newmarket",null,"Newton",null,"North Hampton",null,"Northwood",null,"Nottingham",null,"Plaistow",null,"Portsmouth",null,"Raymond",null,"Rye",null,"Salem",null,"Sandown",null,"Seabrook",null,"South Hampton",null,"Stratham",null,"Windham"]
[null,null,"Estimate","Margin Of Error","Estimate","Margin Of Error","Estimate","Margin Of Error","Estimate","Margin Of Error","Estimate","Margin Of Error","Estimate","Margin Of Error","Estimate","Margin Of Error","Estimate","Margin Of Error","Estimate","Margin Of Error","Estimate","Margin Of Error","Estimate","Margin Of Error","Estimate","Margin Of Error","Estimate","Margin Of Error","Estimate","Margin Of Error","Estimate","Margin Of Error","Estimate","Margin Of Error","Estimate","Margin Of Error","Estimate","Margin Of Error","Estimate","Margin Of Error","Estimate","Margin Of Error","Estimate","Margin Of Error","Estimate","Margin Of Error","Estimate","Margin Of Error","Estimate","Margin Of Error","Estimate","Margin Of Error","Estimate","Margin Of Error","Estimate","Margin Of Error","Estimate","Margin Of Error","Estimate","Margin Of Error","Estimate","Margin Of Error","Estimate","Margin Of Error","Estimate","Margin Of Error","Estimate","Margin Of Error","Estimate","Margin Of Error","Estimate","Margin Of Error","Estimate","Margin Of Error","Estimate","Margin Of Error"]
[null,"Median family income in the past 12 months",51991,9834,90278,17573,51667,19975,34948,34355,67386,29312,41743,24237,91434,16584,49167,5701,44559,6224,43250,20399,41689,7786,70708,17577,103194,31501,53455,7934,55239,6096,"-","**",53281,17751,44531,8488,52600,5156,51705,23577,"-","**",61250,15087,50145,5057,63456,38107,48750,13936,51705,9289,60213,6506,50978,13965,62070,4735,42188,10605,72785,28304,39356,4679,65822,22536,42621,9270,55536,11623,47197,5512,60250,20839]
[]
[]
[]
[]
[]
[]
[]
[]
[]
[]
[]
[]
[]
[]
[]
[]
[]
[null,"B19102. NON-FAMILY INCOME IN THE PAST 12 MONTHS (IN 2014 INFLATION-ADJUSTED DOLLARS)"]
[null,"Universe:  FAMILIES"]
[null,"Data Set: 2010-2014 American Community Survey 5-Year Estimates"]
[]
[null,null,"Atkinson",null,"Auburn",null,"Brentwood",null,"Candia",null,"Chester",null,"Danville",null,"Deerfield",null,"Derry",null,"East Kingston",null,"Epping",null,"Exeter",null,"Fremont",null,"Greenland",null,"Hampstead",null,"Hampton",null,"Hampton Falls",null,"Kensington",null,"Kingston",null,"Londonderry",null,"New Castle",null,"Newfields",null,"Newington",null,"Newmarket",null,"Newton",null,"North Hampton",null,"Northwood",null,"Nottingham",null,"Plaistow",null,"Portsmouth",null,"Raymond",null,"Rye",null,"Salem",null,"Sandown",null,"Seabrook",null,"South Hampton",null,"Stratham",null,"Windham"]
[null,null,"Estimate","Margin Of Error","Estimate","Margin Of Error","Estimate","Margin Of Error","Estimate","Margin Of Error","Estimate","Margin Of Error","Estimate","Margin Of Error","Estimate","Margin Of Error","Estimate","Margin Of Error","Estimate","Margin Of Error","Estimate","Margin Of Error","Estimate","Margin Of Error","Estimate","Margin Of Error","Estimate","Margin Of Error","Estimate","Margin Of Error","Estimate","Margin Of Error","Estimate","Margin Of Error","Estimate","Margin Of Error","Estimate","Margin Of Error","Estimate","Margin Of Error","Estimate","Margin Of Error","Estimate","Margin Of Error","Estimate","Margin Of Error","Estimate","Margin Of Error","Estimate","Margin Of Error","Estimate","Margin Of Error","Estimate","Margin Of Error","Estimate","Margin Of Error","Estimate","Margin Of Error","Estimate","Margin Of Error","Estimate","Margin Of Error","Estimate","Margin Of Error","Estimate","Margin Of Error","Estimate","Margin Of Error","Estimate","Margin Of Error","Estimate","Margin Of Error","Estimate","Margin Of Error","Estimate","Margin Of Error"]
[null,"Total:",564,152,354,86,233,78,288,93,312,89,379,113,261,82,4102,380,161,44,633,203,2462,249,263,99,335,85,1093,211,2235,253,227,65,158,41,629,156,2021,275,125,43,83,32,75,29,1776,250,495,126,374,109,397,137,461,124,674,159,5555,364,1150,187,790,217,3213,377,438,180,1465,253,80,30,588,139,1026,274]
[null,"Less than $10,000",40,47,22,24,24,23,6,11,8,13,7,10,0,11,226,109,19,18,37,41,139,77,37,35,0,11,101,82,100,51,6,9,11,11,12,20,116,59,0,11,0,11,9,8,232,105,44,42,27,28,8,12,9,14,12,20,385,148,89,58,92,65,209,100,18,27,116,80,4,5,0,15,36,44]
[null,"$10,000 to $14,999",13,20,7,12,21,23,20,22,20,24,30,30,9,14,500,162,0,11,55,52,251,124,13,19,0,11,72,54,229,82,10,11,3,5,42,39,130,96,0,11,0,11,0,11,115,66,36,32,35,29,0,11,0,11,41,39,392,149,51,40,17,26,298,116,0,15,97,66,6,7,31,35,65,60]
[null,"$15,000 to $19,999",73,56,27,18,16,19,45,36,0,11,0,11,0,11,427,179,28,17,20,32,121,79,8,13,17,18,145,87,130,54,22,18,4,6,62,49,159,70,0,11,3,4,2,4,177,140,28,24,28,26,49,52,0,11,42,69,195,72,89,72,76,81,289,113,0,15,127,69,9,14,34,38,60,58]
[null,"$20,000 to $24,999",44,40,8,13,10,16,33,31,33,42,19,18,8,13,332,156,3,4,99,117,175,79,7,12,19,21,87,73,118,54,0,11,5,6,46,43,51,41,10,15,3,4,0,11,80,52,0,11,34,27,30,28,35,32,28,21,348,117,62,42,14,24,175,81,86,77,170,99,1,2,63,53,67,58]
[null,"$25,000 to $29,999",0,15,20,23,47,51,13,20,7,12,29,30,43,36,162,95,29,16,70,45,124,77,9,15,9,13,52,37,208,94,30,34,13,11,0,15,41,34,0,11,11,10,5,6,145,85,7,11,0,11,46,57,17,18,39,36,309,108,68,64,35,40,230,105,11,19,88,79,0,11,42,38,106,99]
[null,"$30,000 to $34,999",57,87,0,15,14,21,12,18,19,27,16,19,9,14,355,130,12,11,15,23,187,99,0,11,38,36,119,84,182,68,0,11,7,7,118,96,87,54,7,9,8,9,7,8,94,54,0,11,33,28,0,11,17,21,81,58,241,111,49,53,93,57,184,90,14,21,133,127,10,12,41,52,91,75]
[null,"$35,000 to $39,999",13,21,45,49,21,24,13,20,6,11,11,14,9,15,302,121,6,8,0,15,91,60,7,12,18,19,55,76,134,69,4,7,0,11,95,71,206,90,25,26,10,15,9,11,59,34,18,19,0,11,7,13,37,34,23,28,383,134,37,36,61,58,298,110,70,66,68,54,0,11,30,34,14,21]
[null,"$40,000 to $44,999",33,36,67,60,0,11,0,11,0,11,19,30,0,11,157,103,0,11,50,80,157,75,3,7,0,11,60,51,198,109,6,9,25,29,0,15,154,93,6,6,6,8,11,9,46,39,110,85,35,54,65,55,25,28,34,39,224,114,77,62,0,15,215,87,31,35,76,62,3,4,82,63,53,50]
[null,"$45,000 to $49,999",47,47,12,19,0,11,9,15,8,12,23,38,40,28,290,140,10,11,0,15,171,102,21,24,9,14,37,30,117,59,5,8,5,8,10,16,120,64,12,15,3,4,4,6,81,49,57,64,17,17,32,29,24,27,28,30,170,80,60,41,73,90,122,80,0,15,126,74,0,11,0,15,79,79]
[null,"$50,000 to $59,999",48,38,0,15,6,10,9,14,8,12,86,74,28,26,276,127,15,11,80,76,138,64,36,35,50,59,61,56,162,64,16,15,0,11,12,19,205,98,7,9,13,16,7,10,192,106,8,14,41,34,61,54,28,30,120,85,449,165,136,90,43,43,222,120,91,94,48,39,4,4,112,55,77,76]
[null,"$60,000 to $74,999",50,52,28,25,32,30,23,26,26,33,33,28,33,28,468,185,10,9,56,45,304,109,62,58,16,16,85,55,156,71,33,24,24,15,43,45,246,116,6,5,3,4,2,4,242,125,71,52,47,41,11,19,84,66,72,55,712,191,179,74,121,96,317,136,0,15,138,92,15,17,43,39,41,40]
[null,"$75,000 to $99,999",43,40,25,28,0,11,65,51,53,33,43,36,37,44,306,109,9,13,20,33,273,105,48,48,72,47,88,69,194,86,41,28,22,20,66,56,305,134,17,20,8,8,17,15,132,71,65,44,33,29,21,24,132,81,114,76,706,183,102,78,0,15,228,108,63,51,116,73,7,6,0,15,103,65]
[null,"$100,000 to $124,999",69,65,39,32,22,20,31,27,55,34,41,37,19,21,158,93,13,12,35,41,176,91,12,19,17,19,52,42,135,65,17,16,13,10,44,42,97,56,3,4,10,10,0,11,48,44,13,10,9,15,39,33,42,35,40,43,549,139,100,55,57,55,83,53,0,15,117,127,6,6,10,18,76,63]
[null,"$125,000 to $149,999",21,33,33,28,0,11,0,11,38,48,0,11,9,13,55,51,7,8,83,104,90,56,0,11,0,11,36,27,4,6,4,7,11,9,0,15,39,32,6,11,3,4,0,11,67,49,9,15,9,13,0,11,0,11,0,15,213,104,0,17,10,16,120,79,54,51,26,41,9,14,33,37,29,38]
[null,"$150,000 to $199,999",0,15,0,15,20,20,9,13,19,24,14,15,17,20,49,41,0,11,13,20,23,25,0,11,0,11,15,17,117,74,4,6,12,10,17,27,34,25,10,9,2,4,0,11,38,33,10,16,8,12,0,11,11,18,0,15,184,131,43,69,38,33,116,80,0,15,9,14,0,11,40,46,75,69]
[null,"$200,000 or more",13,21,21,24,0,11,0,11,12,18,8,13,0,11,39,61,0,11,0,15,42,37,0,11,70,45,28,31,51,37,29,29,3,4,62,90,31,30,16,17,0,11,2,3,28,24,19,22,18,20,28,37,0,11,0,15,95,60,8,13,60,55,107,81,0,15,10,16,6,6,27,33,54,52]
[]
[]
[null,"B19112. MEDIAN NON-FAMILY INCOME IN THE PAST 12 MONTHS (IN 2014 INFLATION-ADJUSTED DOLLARS)"]
[null,"Universe:  FAMILIES"]
[null,"Data Set: 2010-2014 American Community Survey 5-Year Estimates"]
[]
[null,null,"Atkinson",null,"Auburn",null,"Brentwood",null,"Candia",null,"Chester",null,"Danville",null,"Deerfield",null,"Derry",null,"East Kingston",null,"Epping",null,"Exeter",null,"Fremont",null,"Greenland",null,"Hampstead",null,"Hampton",null,"Hampton Falls",null,"Kensington",null,"Kingston",null,"Londonderry",null,"New Castle",null,"Newfields",null,"Newington",null,"Newmarket",null,"Newton",null,"North Hampton",null,"Northwood",null,"Nottingham",null,"Plaistow",null,"Portsmouth",null,"Raymond",null,"Rye",null,"Salem",null,"Sandown",null,"Seabrook",null,"South Hampton",null,"Stratham",null,"Windham"]
[null,null,"Estimate","Margin Of Error","Estimate","Margin Of Error","Estimate","Margin Of Error","Estimate","Margin Of Error","Estimate","Margin Of Error","Estimate","Margin Of Error","Estimate","Margin Of Error","Estimate","Margin Of Error","Estimate","Margin Of Error","Estimate","Margin Of Error","Estimate","Margin Of Error","Estimate","Margin Of Error","Estimate","Margin Of Error","Estimate","Margin Of Error","Estimate","Margin Of Error","Estimate","Margin Of Error","Estimate","Margin Of Error","Estimate","Margin Of Error","Estimate","Margin Of Error","Estimate","Margin Of Error","Estimate","Margin Of Error","Estimate","Margin Of Error","Estimate","Margin Of Error","Estimate","Margin Of Error","Estimate","Margin Of Error","Estimate","Margin Of Error","Estimate","Margin Of Error","Estimate","Margin Of Error","Estimate","Margin Of Error","Estimate","Margin Of Error","Estimate","Margin Of Error","Estimate","Margin Of Error","Estimate","Margin Of Error","Estimate","Margin Of Error","Estimate","Margin Of Error","Estimate","Margin Of Error","Estimate","Margin Of Error"]
[null,"Median family income in the past 12 months",46500,13893,44136,4612,27420,14827,45556,34443,86563,14066,53601,6590,55972,16163,35795,3897,31875,8622,43525,28790,44493,3850,58417,18262,64844,31177,32194,7571,40261,4287,66563,12465,61500,28067,36391,9426,48089,5911,54063,26535,47917,14932,42708,9470,39000,10935,45197,6829,42143,13958,44226,9201,66038,10773,50750,8669,52973,6463,49563,8019,45307,15357,39244,2692,41613,14648,35082,8076,60750,25981,42986,9912,45665,9562]
[]
[]
[null,"B19102. NON-FAMILY INCOME IN THE PAST 12 MONTHS (IN 2009 INFLATION-ADJUSTED DOLLARS)"]
[null,"Universe:  FAMILIES"]
[null,"Data Set: 2005-2009 American Community Survey 5-Year Estimates"]
[]
[null,null,"Atkinson",null,"Auburn",null,"Brentwood",null,"Candia",null,"Chester",null,"Danville",null,"Deerfield",null,"Derry",null,"East Kingston",null,"Epping",null,"Exeter",null,"Fremont",null,"Greenland",null,"Hampstead",null,"Hampton",null,"Hampton Falls",null,"Kensington",null,"Kingston",null,"Londonderry",null,"New Castle",null,"Newfields",null,"Newington",null,"Newmarket",null,"Newton",null,"North Hampton",null,"Northwood",null,"Nottingham",null,"Plaistow",null,"Portsmouth",null,"Raymond",null,"Rye",null,"Salem",null,"Sandown",null,"Seabrook",null,"South Hampton",null,"Stratham",null,"Windham"]
[null,null,"Estimate","Margin Of Error","Estimate","Margin Of Error","Estimate","Margin Of Error","Estimate","Margin Of Error","Estimate","Margin Of Error","Estimate","Margin Of Error","Estimate","Margin Of Error","Estimate","Margin Of Error","Estimate","Margin Of Error","Estimate","Margin Of Error","Estimate","Margin Of Error","Estimate","Margin Of Error","Estimate","Margin Of Error","Estimate","Margin Of Error","Estimate","Margin Of Error","Estimate","Margin Of Error","Estimate","Margin Of Error","Estimate","Margin Of Error","Estimate","Margin Of Error","Estimate","Margin Of Error","Estimate","Margin Of Error","Estimate","Margin Of Error","Estimate","Margin Of Error","Estimate","Margin Of Error","Estimate","Margin Of Error","Estimate","Margin Of Error","Estimate","Margin Of Error","Estimate","Margin Of Error","Estimate","Margin Of Error","Estimate","Margin Of Error","Estimate","Margin Of Error","Estimate","Margin Of Error","Estimate","Margin Of Error","Estimate","Margin Of Error","Estimate","Margin Of Error","Estimate","Margin Of Error","Estimate","Margin Of Error"]
[null,"Total:",686,175,330,107,118,49,373,94,252,69,298,107,352,100,3819,417,164,36,635,166,2591,289,238,104,346,112,909,181,2792,343,175,37,144,38,615,165,1659,267,153,57,90,31,89,34,1617,252,315,101,480,126,434,124,283,124,767,214,4734,376,1260,234,777,175,2988,327,275,94,1487,298,104,33,668,144,799,148]
[null,"Less than $10,000",54,51,22,26,15,16,46,36,12,19,8,14,11,16,376,168,29,19,81,84,269,139,9,15,10,15,10,15,221,112,3,4,6,6,43,39,128,92,8,13,10,13,6,7,154,76,52,53,57,51,21,24,0,114,24,27,548,147,252,127,62,54,201,83,11,17,85,62,8,6,29,34,47,55]
[null,"$10,000 to $14,999",113,107,0,114,10,16,0,114,0,114,9,17,26,41,279,128,9,8,14,23,173,87,7,13,0,114,121,98,225,101,3,4,12,10,0,114,30,33,6,7,4,6,0,114,101,56,11,18,32,29,18,21,0,114,49,79,245,75,76,55,28,32,250,92,0,114,120,69,7,7,0,114,49,31]
[null,"$15,000 to $19,999",82,54,27,31,0,114,0,114,0,114,31,26,8,13,253,120,12,13,27,33,209,84,37,32,0,114,30,33,126,60,18,9,3,6,36,41,65,70,0,114,5,8,0,114,80,52,22,23,26,27,43,44,17,20,76,71,312,109,58,44,41,36,350,122,21,21,271,131,11,9,0,114,65,59]
[null,"$20,000 to $24,999",99,104,95,88,0,114,48,34,0,114,0,114,16,18,276,109,21,16,23,27,313,128,0,114,9,14,163,101,197,94,13,13,2,5,98,78,150,96,8,13,7,6,21,22,104,55,54,55,26,30,15,18,12,18,88,67,117,72,80,45,42,45,177,65,8,13,133,84,6,7,43,43,50,46]
[null,"$25,000 to $29,999",32,37,12,18,19,15,27,31,9,13,30,31,32,40,236,142,2,3,50,67,136,82,29,31,9,14,27,31,150,83,9,14,11,7,15,24,206,98,14,21,18,19,0,114,120,76,4,7,25,27,22,23,10,17,0,114,238,84,64,47,26,31,167,90,29,28,136,83,9,7,46,43,37,34]
[null,"$30,000 to $34,999",61,51,29,35,0,114,19,23,17,26,10,15,33,53,296,120,3,5,10,18,132,92,0,114,26,26,99,79,226,113,3,4,2,3,51,48,106,61,6,7,0,114,3,5,147,113,5,9,12,19,27,43,20,31,19,27,236,71,113,84,28,33,178,77,20,21,70,52,3,4,61,45,51,31]
[null,"$35,000 to $39,999",11,18,0,114,27,26,10,16,18,21,45,35,36,29,203,106,11,14,13,19,199,96,9,14,13,19,0,114,231,134,5,6,18,20,30,32,140,74,25,24,10,9,3,5,158,99,12,18,22,25,8,12,0,114,122,73,206,93,69,45,69,52,230,128,0,114,86,81,7,7,0,114,62,61]
[null,"$40,000 to $44,999",0,114,14,24,0,114,16,26,0,114,0,114,42,48,315,146,17,17,35,48,248,110,9,15,19,23,82,74,106,63,6,6,6,6,38,42,144,77,2,5,3,5,3,5,144,102,21,24,44,37,43,38,39,38,0,114,247,94,98,65,22,25,241,122,8,12,36,34,6,6,26,29,18,21]
[null,"$45,000 to $49,999",31,39,12,20,11,12,0,114,0,114,10,16,20,20,177,87,13,14,11,19,103,84,12,19,10,16,92,93,120,61,14,10,25,17,11,19,84,60,20,20,8,8,7,8,63,49,0,114,9,13,24,39,0,114,18,30,324,140,55,56,100,84,121,68,0,114,67,68,0,114,0,114,7,11]
[null,"$50,000 to $59,999",19,29,13,19,5,7,10,16,29,25,70,63,28,26,386,149,3,4,82,73,242,135,17,19,44,34,68,56,328,116,3,4,14,15,35,39,148,75,7,8,5,6,7,8,59,42,35,33,82,71,12,19,27,32,65,50,343,119,60,42,31,35,144,71,16,19,156,102,0,114,20,32,63,53]
[null,"$60,000 to $74,999",61,94,11,17,0,114,52,40,0,114,19,20,47,29,277,151,21,19,121,84,252,104,15,21,101,82,64,50,309,124,35,24,6,10,127,89,111,70,0,114,11,10,11,10,158,89,14,22,22,25,43,45,26,24,93,100,625,157,111,62,71,78,224,124,74,53,236,127,24,30,86,71,87,56]
[null,"$75,000 to $99,999",10,16,0,114,5,7,40,35,105,54,21,23,3,6,468,154,8,6,44,45,195,84,80,57,32,24,92,56,229,118,19,14,22,13,117,71,151,74,22,21,5,7,14,10,155,93,36,40,68,48,110,76,42,36,127,86,577,120,135,73,92,77,417,155,41,40,48,42,15,10,176,84,35,33]
[null,"$100,000 to $124,999",58,51,30,32,11,13,39,32,35,31,11,18,33,31,126,85,10,9,63,75,65,62,14,23,0,114,0,114,126,87,10,10,5,5,0,114,76,66,0,114,0,114,0,114,105,71,23,27,10,16,42,40,18,22,72,52,401,129,43,55,46,43,105,81,47,48,8,16,0,114,89,60,111,57]
[null,"$125,000 to $149,999",44,36,40,59,4,6,27,29,17,19,24,27,9,13,91,62,0,114,15,23,43,35,0,114,35,49,18,32,84,58,13,10,8,7,0,114,67,56,5,7,0,114,9,9,23,25,0,114,34,52,6,9,60,79,14,23,104,59,36,32,41,36,96,81,0,114,0,114,0,114,15,23,54,44]
[null,"$150,000 to $199,999",11,18,15,23,0,114,39,31,10,15,0,114,0,114,43,52,3,4,27,31,0,114,0,114,19,21,0,114,59,49,15,12,4,6,14,23,53,44,3,6,0,114,2,3,34,38,14,23,11,18,0,114,0,114,0,114,107,74,10,15,14,23,65,44,0,114,0,114,5,7,16,26,43,33]
[null,"$200,000 or more",0,114,10,16,11,13,0,114,0,114,10,16,8,12,17,27,2,4,19,30,12,19,0,114,19,21,43,69,55,36,6,5,0,114,0,114,0,114,27,25,4,7,3,5,12,20,12,18,0,114,0,114,12,19,0,114,104,69,0,114,64,52,22,25,0,114,35,33,3,4,61,51,20,22]
[]
[]
[null,"B19112. MEDIAN NON-FAMILY INCOME IN THE PAST 12 MONTHS (IN 2009 INFLATION-ADJUSTED DOLLARS)"]
[null,"Universe:  FAMILIES"]
[null,"Data Set: 2005-2009 American Community Survey 5-Year Estimates"]
[]
[null,null,"Atkinson",null,"Auburn",null,"Brentwood",null,"Candia",null,"Chester",null,"Danville",null,"Deerfield",null,"Derry",null,"East Kingston",null,"Epping",null,"Exeter",null,"Fremont",null,"Greenland",null,"Hampstead",null,"Hampton",null,"Hampton Falls",null,"Kensington",null,"Kingston",null,"Londonderry",null,"New Castle",null,"Newfields",null,"Newington",null,"Newmarket",null,"Newton",null,"North Hampton",null,"Northwood",null,"Nottingham",null,"Plaistow",null,"Portsmouth",null,"Raymond",null,"Rye",null,"Salem",null,"Sandown",null,"Seabrook",null,"South Hampton",null,"Stratham",null,"Windham"]
[null,null,"Estimate","Margin Of Error","Estimate","Margin Of Error","Estimate","Margin Of Error","Estimate","Margin Of Error","Estimate","Margin Of Error","Estimate","Margin Of Error","Estimate","Margin Of Error","Estimate","Margin Of Error","Estimate","Margin Of Error","Estimate","Margin Of Error","Estimate","Margin Of Error","Estimate","Margin Of Error","Estimate","Margin Of Error","Estimate","Margin Of Error","Estimate","Margin Of Error","Estimate","Margin Of Error","Estimate","Margin Of Error","Estimate","Margin Of Error","Estimate","Margin Of Error","Estimate","Margin Of Error","Estimate","Margin Of Error","Estimate","Margin Of Error","Estimate","Margin Of Error","Estimate","Margin Of Error","Estimate","Margin Of Error","Estimate","Margin Of Error","Estimate","Margin Of Error","Estimate","Margin Of Error","Estimate","Margin Of Error","Estimate","Margin Of Error","Estimate","Margin Of Error","Estimate","Margin Of Error","Estimate","Margin Of Error","Estimate","Margin Of Error","Estimate","Margin Of Error","Estimate","Margin Of Error","Estimate","Margin Of Error"]
[null,"Median family income in the past 12 months",22374,14813,31875,22631,36389,7929,66875,32836,82500,9551,51250,16613,43158,9650,39800,4469,38438,20148,55673,17426,36960,4424,54688,26134,67542,9044,40181,14156,40926,6954,65938,11389,46667,3855,44539,14317,40106,5136,46563,17976,35833,16138,53438,16198,38099,4377,39479,25818,44706,16786,47083,31180,67188,38754,45764,18040,47523,3578,34476,8237,47542,13764,39048,2917,64414,6567,29935,8485,42917,34754,83750,18166,54034,18170]

{"sheet":"ACS_Table_B25119","index":43,"n_rows":68,"n_cols":76,"rows_kept":68,"cut":false,"hidden":true,"merged":[[48897,2,48897,3],[48885,18,48885,19],[48885,20,48885,21],[48885,22,48885,23],[48879,18,48879,19],[48879,20,48879,21],[48879,22,48879,23],[48885,4,48885,5],[48885,6,48885,7],[48885,8,48885,9],[48891,10,48891,11],[48891,12,48891,13],[48891,14,48891,15],[48891,16,48891,17],[48891,2,48891,3],[48891,4,48891,5],[48891,6,48891,7],[48891,8,48891,9],[48897,4,48897,5],[48897,6,48897,7],[48897,8,48897,9],[48897,22,48897,23],[48891,18,48891,19],[48891,20,48891,21],[48891,22,48891,23],[48897,10,48897,11],[48897,12,48897,13],[48897,16,48897,17],[48897,14,48897,15],[48897,18,48897,19],[48897,20,48897,21],[48867,10,48867,11],[48867,12,48867,13],[48867,14,48867,15],[48867,16,48867,17],[48867,2,48867,3],[48867,4,48867,5],[48867,6,48867,7],[48867,8,48867,9],[48873,20,48873,21],[48873,22,48873,23],[48867,18,48867,19],[48867,20,48867,21],[48867,22,48867,23],[48873,4,48873,5],[48873,6,48873,7],[48873,8,48873,9],[48873,10,48873,11],[48873,12,48873,13],[48879,2,48879,3],[48879,4,48879,5],[48879,6,48879,7],[48879,8,48879,9],[48879,12,48879,13],[48885,2,48885,3],[48873,18,48873,19],[48873,16,48873,17],[48873,14,48873,15],[48873,2,48873,3],[48885,10,48885,11],[48885,12,48885,13],[48885,16,48885,17],[48885,14,48885,15],[48879,10,48879,11],[48879,14,48879,15],[48879,16,48879,17],[48837,20,48837,21],[48837,22,48837,23],[48831,18,48831,19],[48831,20,48831,21],[48831,22,48831,23],[48837,4,48837,5],[48837,8,48837,9],[48837,10,48837,11],[48837,12,48837,13],[48843,2,48843,3],[48843,4,48843,5],[48843,6,48843,7],[48843,8,48843,9],[48843,12,48843,13],[48837,18,48837,19],[48837,16,48837,17],[48837,14,48837,15],[48837,2,48837,3],[48849,10,48849,11],[48849,12,48849,13],[48849,16,48849,17],[48849,14,48849,15],[48843,10,48843,11],[48837,6,48837,7],[48849,22,48849,23],[48843,18,48843,19],[48843,20,48843,21],[48843,22,48843,23],[48849,4,48849,5],[48849,2,48849,3],[48843,14,48843,15],[48843,16,48843,17],[48861,2,48861,3],[48849,18,48849,19],[48849,20,48849,21],[48861,8,48861,9],[48849,6,48849,7],[48849,8,48849,9],[48855,10,48855,11],[48855,12,48855,13],[48855,14,48855,15],[48861,16,48861,17],[48861,14,48861,15],[48861,18,48861,19],[48861,20,48861,21],[48855,16,48855,17],[48855,2,48855,3],[48855,4,48855,5],[48855,6,48855,7],[48855,8,48855,9],[48861,4,48861,5],[48861,6,48861,7],[48861,22,48861,23],[48855,18,48855,19],[48855,20,48855,21],[48855,22,48855,23],[48861,10,48861,11],[48861,12,48861,13],[48825,2,48825,3],[48813,18,48813,19],[48813,20,48813,21],[48825,8,48825,9],[48813,6,48813,7],[48813,8,48813,9],[48819,10,48819,11],[48819,12,48819,13],[48819,14,48819,15],[48825,16,48825,17],[48825,14,48825,15],[48825,18,48825,19],[48825,20,48825,21],[48819,16,48819,17],[48819,2,48819,3],[48819,4,48819,5],[48819,6,48819,7],[48819,8,48819,9],[48825,4,48825,5],[48825,6,48825,7],[48825,22,48825,23],[48819,18,48819,19],[48819,20,48819,21],[48819,22,48819,23],[48831,10,48831,11],[48831,12,48831,13],[48831,14,48831,15],[48831,16,48831,17],[48825,10,48825,11],[48825,12,48825,13],[48831,2,48831,3],[48831,4,48831,5],[48831,6,48831,7],[48831,8,48831,9],[48795,10,48795,11],[48795,12,48795,13],[48795,14,48795,15],[48795,16,48795,17],[48789,10,48789,11],[48789,12,48789,13],[48795,2,48795,3],[48795,4,48795,5],[48795,6,48795,7],[48795,8,48795,9],[48801,20,48801,21],[48801,22,48801,23],[48795,18,48795,19],[48795,20,48795,21],[48795,22,48795,23],[48801,4,48801,5],[48801,8,48801,9],[48801,10,48801,11],[48801,12,48801,13],[48807,2,48807,3],[48807,4,48807,5],[48807,6,48807,7],[48807,8,48807,9],[48807,12,48807,13],[48801,18,48801,19],[48801,16,48801,17],[48801,14,48801,15],[48801,2,48801,3],[48813,10,48813,11],[48813,12,48813,13],[48813,16,48813,17],[48813,14,48813,15],[48807,10,48807,11],[48801,6,48801,7],[48813,22,48813,23],[48807,18,48807,19],[48807,20,48807,21],[48807,22,48807,23],[48813,4,48813,5],[48813,2,48813,3],[48807,14,48807,15],[48807,16,48807,17],[48765,20,48765,21],[48765,22,48765,23],[48759,18,48759,19],[48759,20,48759,21],[48759,22,48759,23],[48765,4,48765,5],[48765,8,48765,9],[48765,10,48765,11],[48765,12,48765,13],[48771,2,48771,3],[48771,4,48771,5],[48771,6,48771,7],[48771,8,48771,9],[48771,12,48771,13],[48765,18,48765,19],[48765,16,48765,17],[48765,14,48765,15],[48765,2,48765,3],[48777,10,48777,11],[48777,12,48777,13],[48777,16,48777,17],[48777,14,48777,15],[48771,10,48771,11],[48765,6,48765,7],[48777,22,48777,23],[48771,18,48771,19],[48771,20,48771,21],[48771,22,48771,23],[48777,4,48777,5],[48777,2,48777,3],[48771,14,48771,15],[48771,16,48771,17],[48789,2,48789,3],[48777,18,48777,19],[48777,20,48777,21],[48789,8,48789,9],[48777,6,48777,7],[48777,8,48777,9],[48783,10,48783,11],[48783,12,48783,13],[48783,14,48783,15],[48789,16,48789,17],[48789,14,48789,15],[48789,18,48789,19],[48789,20,48789,21],[48783,16,48783,17],[48783,2,48783,3],[48783,4,48783,5],[48783,6,48783,7],[48783,8,48783,9],[48789,4,48789,5],[48789,6,48789,7],[48789,22,48789,23],[48783,18,48783,19],[48783,20,48783,21],[48783,22,48783,23],[48753,2,48753,3],[48741,18,48741,19],[48741,20,48741,21],[48753,8,48753,9],[48741,6,48741,7],[48741,8,48741,9],[48747,10,48747,11],[48747,12,48747,13],[48747,14,48747,15],[48753,16,48753,17],[48753,14,48753,15],[48753,18,48753,19],[48753,20,48753,21],[48747,16,48747,17],[48747,2,48747,3],[48747,4,48747,5],[48747,6,48747,7],[48747,8,48747,9],[48753,4,48753,5],[48753,6,48753,7],[48753,22,48753,23],[48747,18,48747,19],[48747,20,48747,21],[48747,22,48747,23],[48759,10,48759,11],[48759,12,48759,13],[48759,14,48759,15],[48759,16,48759,17],[48753,10,48753,11],[48753,12,48753,13],[48759,2,48759,3],[48759,4,48759,5],[48759,6,48759,7],[48759,8,48759,9],[48723,10,48723,11],[48723,12,48723,13],[48723,14,48723,15],[48723,16,48723,17],[48717,10,48717,11],[48717,12,48717,13],[48723,2,48723,3],[48723,4,48723,5],[48723,6,48723,7],[48723,8,48723,9],[48729,20,48729,21],[48729,22,48729,23],[48723,18,48723,19],[48723,20,48723,21],[48723,22,48723,23],[48729,4,48729,5],[48729,8,48729,9],[48729,10,48729,11],[48729,12,48729,13],[48735,2,48735,3],[48735,4,48735,5],[48735,6,48735,7],[48735,8,48735,9],[48735,12,48735,13],[48729,18,48729,19],[48729,16,48729,17],[48729,14,48729,15],[48729,2,48729,3],[48741,10,48741,11],[48741,12,48741,13],[48741,16,48741,17],[48741,14,48741,15],[48735,10,48735,11],[48729,6,48729,7],[48741,22,48741,23],[48735,18,48735,19],[48735,20,48735,21],[48735,22,48735,23],[48741,4,48741,5],[48741,2,48741,3],[48735,14,48735,15],[48735,16,48735,17],[48693,20,48693,21],[48693,22,48693,23],[48687,18,48687,19],[48687,20,48687,21],[48687,22,48687,23],[48693,4,48693,5],[48693,8,48693,9],[48693,10,48693,11],[48693,12,48693,13],[48699,2,48699,3],[48699,4,48699,5],[48699,6,48699,7],[48699,8,48699,9],[48699,12,48699,13],[48693,18,48693,19],[48693,16,48693,17],[48693,14,48693,15],[48693,2,48693,3],[48705,10,48705,11],[48705,12,48705,13],[48705,16,48705,17],[48705,14,48705,15],[48699,10,48699,11],[48693,6,48693,7],[48705,22,48705,23],[48699,18,48699,19],[48699,20,48699,21],[48699,22,48699,23],[48705,4,48705,5],[48705,2,48705,3],[48699,14,48699,15],[48699,16,48699,17],[48717,2,48717,3],[48705,18,48705,19],[48705,20,48705,21],[48717,8,48717,9],[48705,6,48705,7],[48705,8,48705,9],[48711,10,48711,11],[48711,12,48711,13],[48711,14,48711,15],[48717,16,48717,17],[48717,14,48717,15],[48717,18,48717,19],[48717,20,48717,21],[48711,16,48711,17],[48711,2,48711,3],[48711,4,48711,5],[48711,6,48711,7],[48711,8,48711,9],[48717,4,48717,5],[48717,6,48717,7],[48717,22,48717,23],[48711,18,48711,19],[48711,20,48711,21],[48711,22,48711,23],[48681,2,48681,3],[48669,18,48669,19],[48669,20,48669,21],[48681,8,48681,9],[48669,6,48669,7],[48669,8,48669,9],[48675,10,48675,11],[48675,12,48675,13],[48675,14,48675,15],[48681,16,48681,17],[48681,14,48681,15],[48681,18,48681,19],[48681,20,48681,21],[48675,16,48675,17],[48675,2,48675,3],[48675,4,48675,5],[48675,6,48675,7],[48675,8,48675,9],[48681,4,48681,5],[48681,6,48681,7],[48681,22,48681,23],[48675,18,48675,19],[48675,20,48675,21],[48675,22,48675,23],[48687,10,48687,11],[48687,12,48687,13],[48687,14,48687,15],[48687,16,48687,17],[48681,10,48681,11],[48681,12,48681,13],[48687,2,48687,3],[48687,4,48687,5],[48687,6,48687,7],[48687,8,48687,9],[48651,10,48651,11],[48651,12,48651,13],[48651,14,48651,15],[48651,16,48651,17],[48645,10,48645,11],[48645,12,48645,13],[48651,2,48651,3],[48651,4,48651,5],[48651,6,48651,7],[48651,8,48651,9],[48657,20,48657,21],[48657,22,48657,23],[48651,18,48651,19],[48651,20,48651,21],[48651,22,48651,23],[48657,4,48657,5],[48657,8,48657,9],[48657,10,48657,11],[48657,12,48657,13],[48663,2,48663,3],[48663,4,48663,5],[48663,6,48663,7],[48663,8,48663,9],[48663,12,48663,13],[48657,18,48657,19],[48657,16,48657,17],[48657,14,48657,15],[48657,2,48657,3],[48669,10,48669,11],[48669,12,48669,13],[48669,16,48669,17],[48669,14,48669,15],[48663,10,48663,11],[48657,6,48657,7],[48669,22,48669,23],[48663,18,48663,19],[48663,20,48663,21],[48663,22,48663,23],[48669,4,48669,5],[48669,2,48669,3],[48663,14,48663,15],[48663,16,48663,17],[48621,20,48621,21],[48621,22,48621,23],[48615,18,48615,19],[48615,20,48615,21],[48615,22,48615,23],[48621,4,48621,5],[48621,8,48621,9],[48621,10,48621,11],[48621,12,48621,13],[48627,2,48627,3],[48627,4,48627,5],[48627,6,48627,7],[48627,8,48627,9],[48627,12,48627,13],[48621,18,48621,19],[48621,16,48621,17],[48621,14,48621,15],[48621,2,48621,3],[48633,10,48633,11],[48633,12,48633,13],[48633,16,48633,17],[48633,14,48633,15],[48627,10,48627,11],[48621,6,48621,7],[48633,22,48633,23],[48627,18,48627,19],[48627,20,48627,21],[48627,22,48627,23],[48633,4,48633,5],[48633,2,48633,3],[48627,14,48627,15],[48627,16,48627,17],[48645,2,48645,3],[48633,18,48633,19],[48633,20,48633,21],[48645,8,48645,9],[48633,6,48633,7],[48633,8,48633,9],[48639,10,48639,11],[48639,12,48639,13],[48639,14,48639,15],[48645,16,48645,17],[48645,14,48645,15],[48645,18,48645,19],[48645,20,48645,21],[48639,16,48639,17],[48639,2,48639,3],[48639,4,48639,5],[48639,6,48639,7],[48639,8,48639,9],[48645,4,48645,5],[48645,6,48645,7],[48645,22,48645,23],[48639,18,48639,19],[48639,20,48639,21],[48639,22,48639,23],[48609,2,48609,3],[48597,18,48597,19],[48597,20,48597,21],[48609,8,48609,9],[48597,6,48597,7],[48597,8,48597,9],[48603,10,48603,11],[48603,12,48603,13],[48603,14,48603,15],[48609,16,48609,17],[48609,14,48609,15],[48609,18,48609,19],[48609,20,48609,21],[48603,16,48603,17],[48603,2,48603,3],[48603,4,48603,5],[48603,6,48603,7],[48603,8,48603,9],[48609,4,48609,5],[48609,6,48609,7],[48609,22,48609,23],[48603,18,48603,19],[48603,20,48603,21],[48603,22,48603,23],[48615,10,48615,11],[48615,12,48615,13],[48615,14,48615,15],[48615,16,48615,17],[48609,10,48609,11],[48609,12,48609,13],[48615,2,48615,3],[48615,4,48615,5],[48615,6,48615,7],[48615,8,48615,9],[48579,10,48579,11],[48579,12,48579,13],[48579,14,48579,15],[48579,16,48579,17],[48573,10,48573,11],[48573,12,48573,13],[48579,2,48579,3],[48579,4,48579,5],[48579,6,48579,7],[48579,8,48579,9],[48585,20,48585,21],[48585,22,48585,23],[48579,18,48579,19],[48579,20,48579,21],[48579,22,48579,23],[48585,4,48585,5],[48585,8,48585,9],[48585,10,48585,11],[48585,12,48585,13],[48591,2,48591,3],[48591,4,48591,5],[48591,6,48591,7],[48591,8,48591,9],[48591,12,48591,13],[48585,18,48585,19],[48585,16,48585,17],[48585,14,48585,15],[48585,2,48585,3],[48597,10,48597,11],[48597,12,48597,13],[48597,16,48597,17],[48597,14,48597,15],[48591,10,48591,11],[48585,6,48585,7],[48597,22,48597,23],[48591,18,48591,19],[48591,20,48591,21],[48591,22,48591,23],[48597,4,48597,5],[48597,2,48597,3],[48591,14,48591,15],[48591,16,48591,17],[48549,20,48549,21],[48549,22,48549,23],[48543,18,48543,19],[48543,20,48543,21],[48543,22,48543,23],[48549,4,48549,5],[48549,8,48549,9],[48549,10,48549,11],[48549,12,48549,13],[48555,2,48555,3],[48555,4,48555,5],[48555,6,48555,7],[48555,8,48555,9],[48555,12,48555,13],[48549,18,48549,19],[48549,16,48549,17],[48549,14,48549,15],[48549,2,48549,3],[48561,10,48561,11],[48561,12,48561,13],[48561,16,48561,17],[48561,14,48561,15],[48555,10,48555,11],[48549,6,48549,7],[48561,22,48561,23],[48555,18,48555,19],[48555,20,48555,21],[48555,22,48555,23],[48561,4,48561,5],[48561,2,48561,3],[48555,14,48555,15],[48555,16,48555,17],[48573,2,48573,3],[48561,18,48561,19],[48561,20,48561,21],[48573,8,48573,9],[48561,6,48561,7],[48561,8,48561,9],[48567,10,48567,11],[48567,12,48567,13],[48567,14,48567,15],[48573,16,48573,17],[48573,14,48573,15],[48573,18,48573,19],[48573,20,48573,21],[48567,16,48567,17],[48567,2,48567,3],[48567,4,48567,5],[48567,6,48567,7],[48567,8,48567,9],[48573,4,48573,5],[48573,6,48573,7],[48573,22,48573,23],[48567,18,48567,19],[48567,20,48567,21],[48567,22,48567,23],[48537,2,48537,3],[48525,18,48525,19],[48525,20,48525,21],[48537,8,48537,9],[48525,6,48525,7],[48525,8,48525,9],[48531,10,48531,11],[48531,12,48531,13],[48531,14,48531,15],[48537,16,48537,17],[48537,14,48537,15],[48537,18,48537,19],[48537,20,48537,21],[48531,16,48531,17],[48531,2,48531,3],[48531,4,48531,5],[48531,6,48531,7],[48531,8,48531,9],[48537,4,48537,5],[48537,6,48537,7],[48537,22,48537,23],[48531,18,48531,19],[48531,20,48531,21],[48531,22,48531,23],[48543,10,48543,11],[48543,12,48543,13],[48543,14,48543,15],[48543,16,48543,17],[48537,10,48537,11],[48537,12,48537,13],[48543,2,48543,3],[48543,4,48543,5],[48543,6,48543,7],[48543,8,48543,9],[48507,10,48507,11],[48507,12,48507,13],[48507,14,48507,15],[48507,16,48507,17],[48501,10,48501,11],[48501,12,48501,13],[48507,2,48507,3],[48507,4,48507,5],[48507,6,48507,7],[48507,8,48507,9],[48513,20,48513,21],[48513,22,48513,23],[48507,18,48507,19],[48507,20,48507,21],[48507,22,48507,23],[48513,4,48513,5],[48513,8,48513,9],[48513,10,48513,11],[48513,12,48513,13],[48519,2,48519,3],[48519,4,48519,5],[48519,6,48519,7],[48519,8,48519,9],[48519,12,48519,13],[48513,18,48513,19],[48513,16,48513,17],[48513,14,48513,15],[48513,2,48513,3],[48525,10,48525,11],[48525,12,48525,13],[48525,16,48525,17],[48525,14,48525,15],[48519,10,48519,11],[48513,6,48513,7],[48525,22,48525,23],[48519,18,48519,19],[48519,20,48519,21],[48519,22,48519,23],[48525,4,48525,5],[48525,2,48525,3],[48519,14,48519,15],[48519,16,48519,17],[48477,20,48477,21],[48477,22,48477,23],[48471,18,48471,19],[48471,20,48471,21],[48471,22,48471,23],[48477,4,48477,5],[48477,8,48477,9],[48477,10,48477,11],[48477,12,48477,13],[48483,2,48483,3],[48483,4,48483,5],[48483,6,48483,7],[48483,8,48483,9],[48483,12,48483,13],[48477,18,48477,19],[48477,16,48477,17],[48477,14,48477,15],[48477,2,48477,3],[48489,10,48489,11],[48489,12,48489,13],[48489,16,48489,17],[48489,14,48489,15],[48483,10,48483,11],[48477,6,48477,7],[48489,22,48489,23],[48483,18,48483,19],[48483,20,48483,21],[48483,22,48483,23],[48489,4,48489,5],[48489,2,48489,3],[48483,14,48483,15],[48483,16,48483,17],[48501,2,48501,3],[48489,18,48489,19],[48489,20,48489,21],[48501,8,48501,9],[48489,6,48489,7],[48489,8,48489,9],[48495,10,48495,11],[48495,12,48495,13],[48495,14,48495,15],[48501,16,48501,17],[48501,14,48501,15],[48501,18,48501,19],[48501,20,48501,21],[48495,16,48495,17],[48495,2,48495,3],[48495,4,48495,5],[48495,6,48495,7],[48495,8,48495,9],[48501,4,48501,5],[48501,6,48501,7],[48501,22,48501,23],[48495,18,48495,19],[48495,20,48495,21],[48495,22,48495,23],[48465,2,48465,3],[48453,18,48453,19],[48453,20,48453,21],[48465,8,48465,9],[48453,6,48453,7],[48453,8,48453,9],[48459,10,48459,11],[48459,12,48459,13],[48459,14,48459,15],[48465,16,48465,17],[48465,14,48465,15],[48465,18,48465,19],[48465,20,48465,21],[48459,16,48459,17],[48459,2,48459,3],[48459,4,48459,5],[48459,6,48459,7],[48459,8,48459,9],[48465,4,48465,5],[48465,6,48465,7],[48465,22,48465,23],[48459,18,48459,19],[48459,20,48459,21],[48459,22,48459,23],[48471,10,48471,11],[48471,12,48471,13],[48471,14,48471,15],[48471,16,48471,17],[48465,10,48465,11],[48465,12,48465,13],[48471,2,48471,3],[48471,4,48471,5],[48471,6,48471,7],[48471,8,48471,9],[48435,10,48435,11],[48435,12,48435,13],[48435,14,48435,15],[48435,16,48435,17],[48429,10,48429,11],[48429,12,48429,13],[48435,2,48435,3],[48435,4,48435,5],[48435,6,48435,7],[48435,8,48435,9],[48441,20,48441,21],[48441,22,48441,23],[48435,18,48435,19],[48435,20,48435,21],[48435,22,48435,23],[48441,4,48441,5],[48441,8,48441,9],[48441,10,48441,11],[48441,12,48441,13],[48447,2,48447,3],[48447,4,48447,5],[48447,6,48447,7],[48447,8,48447,9],[48447,12,48447,13],[48441,18,48441,19],[48441,16,48441,17],[48441,14,48441,15],[48441,2,48441,3],[48453,10,48453,11],[48453,12,48453,13],[48453,16,48453,17],[48453,14,48453,15],[48447,10,48447,11],[48441,6,48441,7],[48453,22,48453,23],[48447,18,48447,19],[48447,20,48447,21],[48447,22,48447,23],[48453,4,48453,5],[48453,2,48453,3],[48447,14,48447,15],[48447,16,48447,17],[48405,20,48405,21],[48405,22,48405,23],[48399,18,48399,19],[48399,20,48399,21],[48399,22,48399,23],[48405,4,48405,5],[48405,8,48405,9],[48405,10,48405,11],[48405,12,48405,13],[48411,2,48411,3],[48411,4,48411,5],[48411,6,48411,7],[48411,8,48411,9],[48411,12,48411,13],[48405,18,48405,19],[48405,16,48405,17],[48405,14,48405,15],[48405,2,48405,3],[48417,10,48417,11],[48417,12,48417,13],[48417,16,48417,17],[48417,14,48417,15],[48411,10,48411,11],[48405,6,48405,7],[48417,22,48417,23],[48411,18,48411,19],[48411,20,48411,21],[48411,22,48411,23],[48417,4,48417,5],[48417,2,48417,3],[48411,14,48411,15],[48411,16,48411,17],[48429,2,48429,3],[48417,18,48417,19],[48417,20,48417,21],[48429,8,48429,9],[48417,6,48417,7],[48417,8,48417,9],[48423,10,48423,11],[48423,12,48423,13],[48423,14,48423,15],[48429,16,48429,17],[48429,14,48429,15],[48429,18,48429,19],[48429,20,48429,21],[48423,16,48423,17],[48423,2,48423,3],[48423,4,48423,5],[48423,6,48423,7],[48423,8,48423,9],[48429,4,48429,5],[48429,6,48429,7],[48429,22,48429,23],[48423,18,48423,19],[48423,20,48423,21],[48423,22,48423,23],[48393,2,48393,3],[48381,18,48381,19],[48381,20,48381,21],[48393,8,48393,9],[48381,6,48381,7],[48381,8,48381,9],[48387,10,48387,11],[48387,12,48387,13],[48387,14,48387,15],[48393,16,48393,17],[48393,14,48393,15],[48393,18,48393,19],[48393,20,48393,21],[48387,16,48387,17],[48387,2,48387,3],[48387,4,48387,5],[48387,6,48387,7],[48387,8,48387,9],[48393,4,48393,5],[48393,6,48393,7],[48393,22,48393,23],[48387,18,48387,19],[48387,20,48387,21],[48387,22,48387,23],[48399,10,48399,11],[48399,12,48399,13],[48399,14,48399,15],[48399,16,48399,17],[48393,10,48393,11],[48393,12,48393,13],[48399,2,48399,3],[48399,4,48399,5],[48399,6,48399,7],[48399,8,48399,9],[48363,10,48363,11],[48363,12,48363,13],[48363,14,48363,15],[48363,16,48363,17],[48357,10,48357,11],[48357,12,48357,13],[48363,2,48363,3],[48363,4,48363,5],[48363,6,48363,7],[48363,8,48363,9],[48369,20,48369,21],[48369,22,48369,23],[48363,18,48363,19],[48363,20,48363,21],[48363,22,48363,23],[48369,4,48369,5],[48369,8,48369,9],[48369,10,48369,11],[48369,12,48369,13],[48375,2,48375,3],[48375,4,48375,5],[48375,6,48375,7],[48375,8,48375,9],[48375,12,48375,13],[48369,18,48369,19],[48369,16,48369,17],[48369,14,48369,15],[48369,2,48369,3],[48381,10,48381,11],[48381,12,48381,13],[48381,16,48381,17],[48381,14,48381,15],[48375,10,48375,11],[48369,6,48369,7],[48381,22,48381,23],[48375,18,48375,19],[48375,20,48375,21],[48375,22,48375,23],[48381,4,48381,5],[48381,2,48381,3],[48375,14,48375,15],[48375,16,48375,17],[48333,20,48333,21],[48333,22,48333,23],[48327,18,48327,19],[48327,20,48327,21],[48327,22,48327,23],[48333,4,48333,5],[48333,8,48333,9],[48333,10,48333,11]],"merged_total":89529,"flags":["merged_cut"]}
[null,"B25119. MEDIAN HOUSEHOLD INCOME THE PAST 12 MONTHS (IN 2019 INFLATION-ADJUSTED DOLLARS) BY TENURE"]
[null," Universe:  OCCUPIED HOUSING UNITS"]
[null,"Data Set: 2015-2019 American Community Survey 5-Year Estimates"]
[]
[null,null,"Atkinson",null,"Auburn",null,"Brentwood",null,"Candia",null,"Chester",null,"Danville",null,"Deerfield",null,"Derry",null,"East Kingston",null,"Epping",null,"Exeter",null,"Fremont",null,"Greenland",null,"Hampstead",null,"Hampton",null,"Hampton Falls",null,"Kensington",null,"Kingston",null,"Londonderry",null,"New Castle",null,"Newfields",null,"Newington",null,"Newmarket",null,"Newton",null,"North Hampton",null,"Northwood",null,"Nottingham",null,"Plaistow",null,"Portsmouth",null,"Raymond",null,"Rye",null,"Salem",null,"Sandown",null,"Seabrook",null,"South Hampton",null,"Stratham",null,"Windham"]
[null,null,"Estimate","Margin Of Error","Estimate","Margin Of Error","Estimate","Margin Of Error","Estimate","Margin Of Error","Estimate","Margin Of Error","Estimate","Margin Of Error","Estimate","Margin Of Error","Estimate","Margin Of Error","Estimate","Margin Of Error","Estimate","Margin Of Error","Estimate","Margin Of Error","Estimate","Margin Of Error","Estimate","Margin Of Error","Estimate","Margin Of Error","Estimate","Margin Of Error","Estimate","Margin Of Error","Estimate","Margin Of Error","Estimate","Margin Of Error","Estimate","Margin Of Error","Estimate","Margin Of Error","Estimate","Margin Of Error","Estimate","Margin Of Error","Estimate","Margin Of Error","Estimate","Margin Of Error","Estimate","Margin Of Error","Estimate","Margin Of Error","Estimate","Margin Of Error","Estimate","Margin Of Error","Estimate","Margin Of Error","Estimate","Margin Of Error","Estimate","Margin Of Error","Estimate","Margin Of Error","Estimate","Margin Of Error","Estimate","Margin Of Error","Estimate","Margin Of Error","Estimate","Margin Of Error","Estimate","Margin Of Error"]
[null,"Median household income in the past 12 months"]
[null,"Total:",118712,8166,115089,8661,125625,20006,100904,7600,139688,20140,91417,15039,108173,7435,76536,4065,101538,4830,76071,10090,77120,8017,110181,9466,115833,11463,88142,16412,85549,4107,134525,5993,107583,13944,94473,13679,107868,6014,136000,65413,154375,11480,111125,12726,73734,8073,107319,15569,95417,8713,91411,9745,95227,6872,86659,18875,83923,7364,76234,3246,112054,32323,86587,5967,111960,12776,72963,5863,104000,14124,109483,18490,148459,13572]
[null,"Owner occupied (dollars)",121799,12929,118187,8384,136250,26100,102500,6816,147981,21124,104083,13820,112411,11000,107893,5228,102404,10913,88056,13070,94485,4326,115517,10699,121500,16194,112702,7430,100155,7041,141176,19152,118250,11822,100325,12306,116392,5672,150417,66052,159375,13604,116250,26470,102770,6814,120324,12386,100700,9745,98875,21913,97795,7271,99333,11113,116790,5233,88333,10142,133047,30284,103110,6497,118018,11718,78596,7279,116250,24681,121583,26931,149331,13247]
[null,"Renter occupied (dollars)",41383,22276,79803,33622,64896,50690,29688,16480,"-","**",33750,15405,86111,58239,48736,3832,60139,25676,43091,22863,48781,5096,70750,11929,97045,33583,43415,3236,51636,7895,91042,72114,68068,20779,33261,11243,70563,15643,"-","**",56250,38641,101250,26057,50697,4065,72905,46342,61304,32894,50341,18254,67542,26378,44788,26290,60799,3487,39928,10088,59453,48690,42273,7490,36667,17243,54286,14611,44444,26936,74113,11170,111250,98918]
[]
[]
[]
[]
[]
[]
[]
[]
[]
[]
[]
[]
[]
[]
[]
[]
[]
[]
[]
[null,"B25119. MEDIAN HOUSEHOLD INCOME THE PAST 12 MONTHS (IN 2014 INFLATION-ADJUSTED DOLLARS) BY TENURE"]
[null," Universe:  OCCUPIED HOUSING UNITS"]
[null,"Data Set: 2010-2014 American Community Survey 5-Year Estimates"]
[]
[null,null,"Atkinson",null,"Auburn",null,"Brentwood",null,"Candia",null,"Chester",null,"Danville",null,"Deerfield",null,"Derry",null,"East Kingston",null,"Epping",null,"Exeter",null,"Fremont",null,"Greenland",null,"Hampstead",null,"Hampton",null,"Hampton Falls",null,"Kensington",null,"Kingston",null,"Londonderry",null,"New Castle",null,"Newfields",null,"Newington",null,"Newmarket",null,"Newton",null,"North Hampton",null,"Northwood",null,"Nottingham",null,"Plaistow",null,"Portsmouth",null,"Raymond",null,"Rye",null,"Salem",null,"Sandown",null,"Seabrook",null,"South Hampton",null,"Stratham",null,"Windham"]
[null,null,"Estimate","Margin Of Error","Estimate","Margin Of Error","Estimate","Margin Of Error","Estimate","Margin Of Error","Estimate","Margin Of Error","Estimate","Margin Of Error","Estimate","Margin Of Error","Estimate","Margin Of Error","Estimate","Margin Of Error","Estimate","Margin Of Error","Estimate","Margin Of Error","Estimate","Margin Of Error","Estimate","Margin Of Error","Estimate","Margin Of Error","Estimate","Margin Of Error","Estimate","Margin Of Error","Estimate","Margin Of Error","Estimate","Margin Of Error","Estimate","Margin Of Error","Estimate","Margin Of Error","Estimate","Margin Of Error","Estimate","Margin Of Error","Estimate","Margin Of Error","Estimate","Margin Of Error","Estimate","Margin Of Error","Estimate","Margin Of Error","Estimate","Margin Of Error","Estimate","Margin Of Error","Estimate","Margin Of Error","Estimate","Margin Of Error","Estimate","Margin Of Error","Estimate","Margin Of Error","Estimate","Margin Of Error","Estimate","Margin Of Error","Estimate","Margin Of Error","Estimate","Margin Of Error","Estimate","Margin Of Error"]
[null,"Median household income in the past 12 months"]
[null,"Total:",95341,16514,106222,11763,101840,14787,93977,9313,107833,16108,90938,11320,87982,8157,65637,3070,85333,11321,77321,14601,74071,6863,82218,6170,86972,6428,88689,13786,73750,8082,105909,13043,107054,6658,74817,7605,91861,4372,122604,31606,102500,20977,87857,15151,63298,7284,78980,4962,86853,14266,71379,19077,86250,19210,70264,8936,67679,3601,66563,7527,95583,14917,78395,4868,78840,11890,51684,7970,91250,23180,116875,15950,111982,7400]
[null,"Owner occupied (dollars)",100750,10780,110741,10263,117976,19699,95087,7178,112724,14385,97000,6685,89623,6772,85033,4605,85583,11287,81860,16163,86632,5993,86352,5358,89808,22256,101056,5567,93253,7553,114737,17271,109773,7925,80179,6417,101120,7812,125156,21907,115625,13029,99000,9016,87594,5619,97574,19980,98525,14945,81111,6812,89697,21671,75865,8867,94412,9674,72714,7720,100859,11684,87850,5449,85217,15600,62175,10525,94375,32961,121938,22040,115923,8417]
[null,"Renter occupied (dollars)",31623,27224,43986,17255,31125,12640,31771,75582,33371,15716,46790,4859,39094,17047,40811,5053,61250,69934,51833,6049,46215,12835,69052,11595,58994,12129,35931,9973,40000,5754,77955,16711,59643,28288,39349,14210,47675,7438,88750,43100,52917,13986,65000,20130,35350,12094,40858,6457,40143,16195,51250,11790,42885,19626,45392,17404,48800,5147,47154,9991,55855,38925,48951,3604,37763,19369,43235,14545,89167,98828,64205,28991,47000,29196]
[]
[]
[]
[]
[]
[]
[]
[]
[]
[]
[]
[]
[]
[]
[]
[]
[]
[]
[]
[null,"B25119. MEDIAN HOUSEHOLD INCOME THE PAST 12 MONTHS (IN 2009 INFLATION-ADJUSTED DOLLARS) BY TENURE"]
[null," Universe:  OCCUPIED HOUSING UNITS"]
[null,"Data Set: 2005-2009 American Community Survey 5-Year Estimates"]
[]
[null,null,"Atkinson",null,"Auburn",null,"Brentwood",null,"Candia",null,"Chester",null,"Danville",null,"Deerfield",null,"Derry",null,"East Kingston",null,"Epping",null,"Exeter",null,"Fremont",null,"Greenland",null,"Hampstead",null,"Hampton",null,"Hampton Falls",null,"Kensington",null,"Kingston",null,"Londonderry",null,"New Castle",null,"Newfields",null,"Newington",null,"Newmarket",null,"Newton",null,"North Hampton",null,"Northwood",null,"Nottingham",null,"Plaistow",null,"Portsmouth",null,"Raymond",null,"Rye",null,"Salem",null,"Sandown",null,"Seabrook",null,"South Hampton",null,"Stratham",null,"Windham"]
[null,null,"Estimate","Margin Of Error","Estimate","Margin Of Error","Estimate","Margin Of Error","Estimate","Margin Of Error","Estimate","Margin Of Error","Estimate","Margin Of Error","Estimate","Margin Of Error","Estimate","Margin Of Error","Estimate","Margin Of Error","Estimate","Margin Of Error","Estimate","Margin Of Error","Estimate","Margin Of Error","Estimate","Margin Of Error","Estimate","Margin Of Error","Estimate","Margin Of Error","Estimate","Margin Of Error","Estimate","Margin Of Error","Estimate","Margin Of Error","Estimate","Margin Of Error","Estimate","Margin Of Error","Estimate","Margin Of Error","Estimate","Margin Of Error","Estimate","Margin Of Error","Estimate","Margin Of Error","Estimate","Margin Of Error","Estimate","Margin Of Error","Estimate","Margin Of Error","Estimate","Margin Of Error","Estimate","Margin Of Error","Estimate","Margin Of Error","Estimate","Margin Of Error","Estimate","Margin Of Error","Estimate","Margin Of Error","Estimate","Margin Of Error","Estimate","Margin Of Error","Estimate","Margin Of Error","Estimate","Margin Of Error"]
[null,"Median household income in the past 12 months"]
[null,"Total:",90399,15663,84750,15754,112440,9967,93929,9318,94953,8176,79813,20331,79866,10920,70303,4759,90000,10127,70984,6298,61089,7358,81754,5976,82216,14313,77825,9332,63548,5142,114107,8402,88971,10157,70063,5319,86962,4211,75227,28222,107596,16560,81250,15878,68343,4379,92949,5297,77832,8790,64325,1980,99167,6226,76392,7922,62395,2873,54108,4871,77064,12614,70813,4764,85645,7353,50718,5131,78375,13039,103271,5650,113867,6508]
[null,"Owner occupied (dollars)",103906,9585,87833,15062,113813,9781,97083,8283,95875,7601,90000,12086,86935,9336,85950,3367,93750,9718,73902,8159,81952,7880,81250,4444,92500,21561,89275,8371,78410,3316,118092,8085,94107,11877,71804,6629,92340,6793,71250,27469,115000,19014,87054,4198,84388,7407,97219,4838,79668,18539,65550,4856,100898,6204,88031,9128,88005,6568,59385,7734,93750,20307,78863,2941,88542,10435,59243,6321,82000,14699,105563,6526,115972,6356]
[null,"Renter occupied (dollars)",22226,43806,34191,140489,73167,47896,41139,12573,"**","**",53185,27594,41771,8745,39390,5084,49167,16805,41536,25191,40281,9141,91042,23953,60469,9667,33185,12916,35784,3852,45833,70818,36932,8307,21806,11660,47750,10565,143250,118197,39750,25575,48438,34767,40391,7512,25508,13050,57880,10355,62911,32853,71932,36562,55508,25357,46059,3217,33674,15464,54432,20935,44859,3188,33438,62944,38944,11601,63807,831,87074,21388,45000,26127]

{"sheet":"ACS_Table_B25001","index":44,"n_rows":29,"n_cols":76,"rows_kept":29,"cut":false,"hidden":true,"merged":[]}
[null,"B25001. HOUSING UNITS"]
[null,"Universe:  HOUSING UNITS"]
[null,"Data Set: 2015-2019 American Community Survey 5-Year Estimates"]
[]
[null,null,"Atkinson",null,"Auburn",null,"Brentwood",null,"Candia",null,"Chester",null,"Danville",null,"Deerfield",null,"Derry",null,"East Kingston",null,"Epping",null,"Exeter",null,"Fremont",null,"Greenland",null,"Hampstead",null,"Hampton",null,"Hampton Falls",null,"Kensington",null,"Kingston",null,"Londonderry",null,"New Castle",null,"Newfields",null,"Newington",null,"Newmarket",null,"Newton",null,"North Hampton",null,"Northwood",null,"Nottingham",null,"Plaistow",null,"Portsmouth",null,"Raymond",null,"Rye",null,"Salem",null,"Sandown",null,"Seabrook",null,"South Hampton",null,"Stratham",null,"Windham"]
[null,null,"Estimate","Margin Of Error","Estimate","Margin Of Error","Estimate","Margin Of Error","Estimate","Margin Of Error","Estimate","Margin Of Error","Estimate","Margin Of Error","Estimate","Margin Of Error","Estimate","Margin Of Error","Estimate","Margin Of Error","Estimate","Margin Of Error","Estimate","Margin Of Error","Estimate","Margin Of Error","Estimate","Margin Of Error","Estimate","Margin Of Error","Estimate","Margin Of Error","Estimate","Margin Of Error","Estimate","Margin Of Error","Estimate","Margin Of Error","Estimate","Margin Of Error","Estimate","Margin Of Error","Estimate","Margin Of Error","Estimate","Margin Of Error","Estimate","Margin Of Error","Estimate","Margin Of Error","Estimate","Margin Of Error","Estimate","Margin Of Error","Estimate","Margin Of Error","Estimate","Margin Of Error","Estimate","Margin Of Error","Estimate","Margin Of Error","Estimate","Margin Of Error","Estimate","Margin Of Error","Estimate","Margin Of Error","Estimate","Margin Of Error","Estimate","Margin Of Error","Estimate","Margin Of Error","Estimate","Margin Of Error"]
[null,"Total",2899,199,2022,106,1578,83,1565,84,1805,120,1716,93,1920,146,13539,368,929,57,2979,182,7013,275,1848,86,1599,93,3759,127,9654,290,950,46,903,60,2763,235,9686,245,567,83,611,64,329,40,4189,187,1903,115,2018,144,2164,127,2013,124,3262,190,10615,267,4281,241,3059,210,12005,327,2364,159,4773,236,375,43,2960,144,5554,199]
[]
[]
[]
[]
[null,"B25001. HOUSING UNITS"]
[null,"Universe:  HOUSING UNITS"]
[null,"Data Set: 2010-2014 American Community Survey 5-Year Estimates"]
[]
[null,null,"Atkinson",null,"Auburn",null,"Brentwood",null,"Candia",null,"Chester",null,"Danville",null,"Deerfield",null,"Derry",null,"East Kingston",null,"Epping",null,"Exeter",null,"Fremont",null,"Greenland",null,"Hampstead",null,"Hampton",null,"Hampton Falls",null,"Kensington",null,"Kingston",null,"Londonderry",null,"New Castle",null,"Newfields",null,"Newington",null,"Newmarket",null,"Newton",null,"North Hampton",null,"Northwood",null,"Nottingham",null,"Plaistow",null,"Portsmouth",null,"Raymond",null,"Rye",null,"Salem",null,"Sandown",null,"Seabrook",null,"South Hampton",null,"Stratham",null,"Windham"]
[null,null,"Estimate","Margin Of Error","Estimate","Margin Of Error","Estimate","Margin Of Error","Estimate","Margin Of Error","Estimate","Margin Of Error","Estimate","Margin Of Error","Estimate","Margin Of Error","Estimate","Margin Of Error","Estimate","Margin Of Error","Estimate","Margin Of Error","Estimate","Margin Of Error","Estimate","Margin Of Error","Estimate","Margin Of Error","Estimate","Margin Of Error","Estimate","Margin Of Error","Estimate","Margin Of Error","Estimate","Margin Of Error","Estimate","Margin Of Error","Estimate","Margin Of Error","Estimate","Margin Of Error","Estimate","Margin Of Error","Estimate","Margin Of Error","Estimate","Margin Of Error","Estimate","Margin Of Error","Estimate","Margin Of Error","Estimate","Margin Of Error","Estimate","Margin Of Error","Estimate","Margin Of Error","Estimate","Margin Of Error","Estimate","Margin Of Error","Estimate","Margin Of Error","Estimate","Margin Of Error","Estimate","Margin Of Error","Estimate","Margin Of Error","Estimate","Margin Of Error","Estimate","Margin Of Error","Estimate","Margin Of Error"]
[null,"Total",2738,133,1911,81,1400,111,1520,99,1635,84,1630,111,1672,104,13356,347,928,40,2909,183,6469,226,1608,79,1443,70,3599,167,9516,297,929,42,837,55,2644,151,9045,234,545,68,579,71,334,45,4050,214,1817,114,1853,87,2106,163,2115,115,3088,212,11072,354,4110,177,2921,178,11789,295,2198,139,4671,316,462,63,2812,130,5157,201]
[]
[]
[]
[]
[null,"B25001. HOUSING UNITS"]
[null,"Universe:  HOUSING UNITS"]
[null,"Data Set: 2005-2009 American Community Survey 5-Year Estimates"]
[]
[null,null,"Atkinson",null,"Auburn",null,"Brentwood",null,"Candia",null,"Chester",null,"Danville",null,"Deerfield",null,"Derry",null,"East Kingston",null,"Epping",null,"Exeter",null,"Fremont",null,"Greenland",null,"Hampstead",null,"Hampton",null,"Hampton Falls",null,"Kensington",null,"Kingston",null,"Londonderry",null,"New Castle",null,"Newfields",null,"Newington",null,"Newmarket",null,"Newton",null,"North Hampton",null,"Northwood",null,"Nottingham",null,"Plaistow",null,"Portsmouth",null,"Raymond",null,"Rye",null,"Salem",null,"Sandown",null,"Seabrook",null,"South Hampton",null,"Stratham",null,"Windham"]
[null,null,"Estimate","Margin Of Error","Estimate","Margin Of Error","Estimate","Margin Of Error","Estimate","Margin Of Error","Estimate","Margin Of Error","Estimate","Margin Of Error","Estimate","Margin Of Error","Estimate","Margin Of Error","Estimate","Margin Of Error","Estimate","Margin Of Error","Estimate","Margin Of Error","Estimate","Margin Of Error","Estimate","Margin Of Error","Estimate","Margin Of Error","Estimate","Margin Of Error","Estimate","Margin Of Error","Estimate","Margin Of Error","Estimate","Margin Of Error","Estimate","Margin Of Error","Estimate","Margin Of Error","Estimate","Margin Of Error","Estimate","Margin Of Error","Estimate","Margin Of Error","Estimate","Margin Of Error","Estimate","Margin Of Error","Estimate","Margin Of Error","Estimate","Margin Of Error","Estimate","Margin Of Error","Estimate","Margin Of Error","Estimate","Margin Of Error","Estimate","Margin Of Error","Estimate","Margin Of Error","Estimate","Margin Of Error","Estimate","Margin Of Error","Estimate","Margin Of Error","Estimate","Margin Of Error","Estimate","Margin Of Error"]
[null,"Total",2701,107,1908,129,1017,95,1552,69,1579,100,1525,131,1570,82,13276,378,871,51,2649,157,6563,249,1522,112,1297,92,3590,154,9624,335,859,59,772,57,2501,142,8614,220,442,72,587,67,312,43,4312,216,1755,94,1873,120,2013,160,1886,116,2939,267,9997,360,4292,234,2782,146,11728,361,1928,115,4565,260,326,43,2822,142,4808,189]

{"sheet":"ACS_Table_B25003","index":45,"n_rows":42,"n_cols":76,"rows_kept":42,"cut":false,"hidden":true,"merged":[]}
[null,"B25003. TENURE"]
[null,"Universe:  OCCUPIED HOUSING UNITS"]
[null,"Data Set: 2015-2019 American Community Survey 5-Year Estimates"]
[]
[null,null,"Atkinson",null,"Auburn",null,"Brentwood",null,"Candia",null,"Chester",null,"Danville",null,"Deerfield",null,"Derry",null,"East Kingston",null,"Epping",null,"Exeter",null,"Fremont",null,"Greenland",null,"Hampstead",null,"Hampton",null,"Hampton Falls",null,"Kensington",null,"Kingston",null,"Londonderry",null,"New Castle",null,"Newfields",null,"Newington",null,"Newmarket",null,"Newton",null,"North Hampton",null,"Northwood",null,"Nottingham",null,"Plaistow",null,"Portsmouth",null,"Raymond",null,"Rye",null,"Salem",null,"Sandown",null,"Seabrook",null,"South Hampton",null,"Stratham",null,"Windham"]
[null,null,"Estimate","Margin Of Error","Estimate","Margin Of Error","Estimate","Margin Of Error","Estimate","Margin Of Error","Estimate","Margin Of Error","Estimate","Margin Of Error","Estimate","Margin Of Error","Estimate","Margin Of Error","Estimate","Margin Of Error","Estimate","Margin Of Error","Estimate","Margin Of Error","Estimate","Margin Of Error","Estimate","Margin Of Error","Estimate","Margin Of Error","Estimate","Margin Of Error","Estimate","Margin Of Error","Estimate","Margin Of Error","Estimate","Margin Of Error","Estimate","Margin Of Error","Estimate","Margin Of Error","Estimate","Margin Of Error","Estimate","Margin Of Error","Estimate","Margin Of Error","Estimate","Margin Of Error","Estimate","Margin Of Error","Estimate","Margin Of Error","Estimate","Margin Of Error","Estimate","Margin Of Error","Estimate","Margin Of Error","Estimate","Margin Of Error","Estimate","Margin Of Error","Estimate","Margin Of Error","Estimate","Margin Of Error","Estimate","Margin Of Error","Estimate","Margin Of Error","Estimate","Margin Of Error","Estimate","Margin Of Error"]
[null,"Total:",2745,185,1973,91,1533,82,1537,80,1687,101,1685,93,1653,86,12741,353,888,65,2680,155,6542,249,1764,77,1516,85,3573,147,7088,199,909,54,845,53,2411,198,9338,206,436,85,600,67,307,39,4035,177,1853,107,1820,118,1611,107,1900,108,3119,164,10063,259,4112,193,2364,153,11536,318,2229,137,3824,194,302,41,2817,137,5009,196]
[null,"Owner occupied",2551,169,1819,147,1400,110,1454,91,1642,95,1430,117,1453,121,8291,386,849,65,2288,170,4479,253,1614,99,1256,86,2789,176,5394,240,828,64,760,46,2031,186,7989,256,391,80,560,66,259,37,2121,197,1487,144,1612,123,1460,120,1767,119,2548,220,5237,245,3224,225,1941,155,9006,348,2025,145,2600,211,264,36,2487,162,4805,205]
[null,"Renter occupied",194,106,154,88,133,73,83,62,45,45,255,107,200,79,4450,369,39,27,392,148,2063,256,150,72,260,79,784,169,1694,197,81,38,85,34,380,139,1349,200,45,31,40,20,48,19,1914,180,366,104,208,75,151,72,133,66,571,169,4826,262,888,167,423,174,2530,315,204,103,1224,199,38,26,330,133,204,109]
[]
[]
[]
[]
[]
[]
[]
[]
[]
[]
[]
[]
[null,"B25003. TENURE"]
[null,"Universe:  OCCUPIED HOUSING UNITS"]
[null,"Data Set: 2010-2014 American Community Survey 5-Year Estimates"]
[]
[null,null,"Atkinson",null,"Auburn",null,"Brentwood",null,"Candia",null,"Chester",null,"Danville",null,"Deerfield",null,"Derry",null,"East Kingston",null,"Epping",null,"Exeter",null,"Fremont",null,"Greenland",null,"Hampstead",null,"Hampton",null,"Hampton Falls",null,"Kensington",null,"Kingston",null,"Londonderry",null,"New Castle",null,"Newfields",null,"Newington",null,"Newmarket",null,"Newton",null,"North Hampton",null,"Northwood",null,"Nottingham",null,"Plaistow",null,"Portsmouth",null,"Raymond",null,"Rye",null,"Salem",null,"Sandown",null,"Seabrook",null,"South Hampton",null,"Stratham",null,"Windham"]
[null,null,"Estimate","Margin Of Error","Estimate","Margin Of Error","Estimate","Margin Of Error","Estimate","Margin Of Error","Estimate","Margin Of Error","Estimate","Margin Of Error","Estimate","Margin Of Error","Estimate","Margin Of Error","Estimate","Margin Of Error","Estimate","Margin Of Error","Estimate","Margin Of Error","Estimate","Margin Of Error","Estimate","Margin Of Error","Estimate","Margin Of Error","Estimate","Margin Of Error","Estimate","Margin Of Error","Estimate","Margin Of Error","Estimate","Margin Of Error","Estimate","Margin Of Error","Estimate","Margin Of Error","Estimate","Margin Of Error","Estimate","Margin Of Error","Estimate","Margin Of Error","Estimate","Margin Of Error","Estimate","Margin Of Error","Estimate","Margin Of Error","Estimate","Margin Of Error","Estimate","Margin Of Error","Estimate","Margin Of Error","Estimate","Margin Of Error","Estimate","Margin Of Error","Estimate","Margin Of Error","Estimate","Margin Of Error","Estimate","Margin Of Error","Estimate","Margin Of Error","Estimate","Margin Of Error","Estimate","Margin Of Error"]
[null,"Total:",2597,115,1830,82,1400,111,1466,88,1612,80,1537,101,1540,71,12934,350,882,46,2604,154,6248,214,1608,79,1397,55,3447,156,6618,217,902,46,746,53,2442,126,8750,224,451,65,574,71,314,47,3816,203,1747,101,1735,82,1676,118,1824,108,2949,182,10325,302,3864,150,2315,152,11093,285,2130,134,3837,258,306,49,2781,123,4987,197]
[null,"Owner occupied",2395,123,1660,73,1148,138,1427,91,1487,100,1340,101,1431,108,8244,408,804,59,2236,215,4262,269,1416,112,1206,91,2758,200,4694,303,776,63,692,57,2067,180,7591,258,347,60,523,62,222,38,2036,198,1387,125,1581,105,1460,121,1748,106,2281,256,5452,291,2954,205,1950,183,8451,334,1956,152,2419,259,254,41,2584,163,4611,247]
[null,"Renter occupied",202,108,170,69,252,69,39,39,125,71,197,68,109,71,4690,381,78,39,368,168,1986,226,192,77,191,85,689,159,1924,278,126,46,54,22,375,142,1159,205,104,45,51,32,92,33,1780,197,360,105,154,72,216,99,76,39,668,179,4873,295,910,166,365,177,2642,297,174,100,1418,222,52,26,197,101,376,161]
[]
[]
[]
[null,"B25003. TENURE"]
[null,"Universe:  OCCUPIED HOUSING UNITS"]
[null,"Data Set: 2005-2009 American Community Survey 5-Year Estimates"]
[]
[null,null,"Atkinson",null,"Auburn",null,"Brentwood",null,"Candia",null,"Chester",null,"Danville",null,"Deerfield",null,"Derry",null,"East Kingston",null,"Epping",null,"Exeter",null,"Fremont",null,"Greenland",null,"Hampstead",null,"Hampton",null,"Hampton Falls",null,"Kensington",null,"Kingston",null,"Londonderry",null,"New Castle",null,"Newfields",null,"Newington",null,"Newmarket",null,"Newton",null,"North Hampton",null,"Northwood",null,"Nottingham",null,"Plaistow",null,"Portsmouth",null,"Raymond",null,"Rye",null,"Salem",null,"Sandown",null,"Seabrook",null,"South Hampton",null,"Stratham",null,"Windham"]
[null,null,"Estimate","Margin Of Error","Estimate","Margin Of Error","Estimate","Margin Of Error","Estimate","Margin Of Error","Estimate","Margin Of Error","Estimate","Margin Of Error","Estimate","Margin Of Error","Estimate","Margin Of Error","Estimate","Margin Of Error","Estimate","Margin Of Error","Estimate","Margin Of Error","Estimate","Margin Of Error","Estimate","Margin Of Error","Estimate","Margin Of Error","Estimate","Margin Of Error","Estimate","Margin Of Error","Estimate","Margin Of Error","Estimate","Margin Of Error","Estimate","Margin Of Error","Estimate","Margin Of Error","Estimate","Margin Of Error","Estimate","Margin Of Error","Estimate","Margin Of Error","Estimate","Margin Of Error","Estimate","Margin Of Error","Estimate","Margin Of Error","Estimate","Margin Of Error","Estimate","Margin Of Error","Estimate","Margin Of Error","Estimate","Margin Of Error","Estimate","Margin Of Error","Estimate","Margin Of Error","Estimate","Margin Of Error","Estimate","Margin Of Error","Estimate","Margin Of Error","Estimate","Margin Of Error","Estimate","Margin Of Error"]
[null,"Total:",2613,114,1763,97,1017,95,1552,69,1528,81,1451,105,1417,91,12592,332,846,51,2363,137,6202,222,1441,103,1275,88,3376,148,6966,265,819,58,764,55,2302,119,8372,211,372,69,577,66,288,40,4039,185,1656,78,1775,93,1553,101,1590,97,2849,248,9410,326,4043,211,2292,121,10969,289,1892,113,3846,231,321,42,2717,107,4364,175]
[null,"Owner occupied",2211,142,1654,116,979,99,1483,83,1519,78,1328,120,1231,101,8746,341,786,61,2016,144,4295,235,1334,130,1116,89,2829,146,4900,302,743,60,721,54,2142,124,7545,288,331,66,546,64,231,40,2426,206,1431,93,1495,105,1302,114,1427,149,2276,245,4903,303,3424,216,1933,169,8682,341,1681,133,2686,223,288,36,2540,143,4088,189]
[null,"Renter occupied",402,127,109,92,38,27,69,53,9,14,123,80,186,89,3846,312,60,27,347,145,1907,282,107,58,159,81,547,137,2066,208,76,33,43,23,160,86,827,194,41,29,31,24,57,31,1613,206,225,91,280,103,251,88,163,90,573,170,4507,293,619,154,359,135,2287,261,211,101,1160,200,33,30,177,114,276,108]

{"sheet":"ACS_Table_B25004","index":46,"n_rows":56,"n_cols":76,"rows_kept":56,"cut":false,"hidden":true,"merged":[]}
[null,"B25004. VACANCY STATUS"]
[null,"Universe:  VACANT HOUSING UNITS"]
[null,"Data Set: 2015-2019 American Community Survey 5-Year Estimates"]
[]
[null,null,"Atkinson",null,"Auburn",null,"Brentwood",null,"Candia",null,"Chester",null,"Danville",null,"Deerfield",null,"Derry",null,"East Kingston",null,"Epping",null,"Exeter",null,"Fremont",null,"Greenland",null,"Hampstead",null,"Hampton",null,"Hampton Falls",null,"Kensington",null,"Kingston",null,"Londonderry",null,"New Castle",null,"Newfields",null,"Newington",null,"Newmarket",null,"Newton",null,"North Hampton",null,"Northwood",null,"Nottingham",null,"Plaistow",null,"Portsmouth",null,"Raymond",null,"Rye",null,"Salem",null,"Sandown",null,"Seabrook",null,"South Hampton",null,"Stratham",null,"Windham"]
[null,null,"Estimate","Margin Of Error","Estimate","Margin Of Error","Estimate","Margin Of Error","Estimate","Margin Of Error","Estimate","Margin Of Error","Estimate","Margin Of Error","Estimate","Margin Of Error","Estimate","Margin Of Error","Estimate","Margin Of Error","Estimate","Margin Of Error","Estimate","Margin Of Error","Estimate","Margin Of Error","Estimate","Margin Of Error","Estimate","Margin Of Error","Estimate","Margin Of Error","Estimate","Margin Of Error","Estimate","Margin Of Error","Estimate","Margin Of Error","Estimate","Margin Of Error","Estimate","Margin Of Error","Estimate","Margin Of Error","Estimate","Margin Of Error","Estimate","Margin Of Error","Estimate","Margin Of Error","Estimate","Margin Of Error","Estimate","Margin Of Error","Estimate","Margin Of Error","Estimate","Margin Of Error","Estimate","Margin Of Error","Estimate","Margin Of Error","Estimate","Margin Of Error","Estimate","Margin Of Error","Estimate","Margin Of Error","Estimate","Margin Of Error","Estimate","Margin Of Error","Estimate","Margin Of Error","Estimate","Margin Of Error"]
[null,"Total:",154,101,49,50,45,49,28,42,118,77,31,38,267,121,798,249,41,33,299,148,471,180,84,67,83,69,186,90,2566,226,41,32,58,36,352,165,348,131,131,55,11,18,22,19,154,119,50,54,198,88,553,111,113,75,143,118,552,200,169,117,695,233,469,185,135,111,949,186,73,30,143,92,545,168]
[null,"For rent",0,16,0,16,0,11,0,11,0,16,0,11,0,11,245,151,0,11,0,16,164,129,25,37,0,11,28,49,167,92,5,9,11,17,0,16,86,84,0,11,0,11,0,11,0,16,0,11,0,11,0,11,0,16,35,55,112,86,0,18,17,26,21,34,0,16,95,66,0,11,0,16,0,18]
[null,"Rented, not occupied",0,16,0,16,0,11,0,11,0,16,0,11,0,11,118,110,10,16,0,16,0,18,0,11,0,11,0,16,16,26,0,11,0,11,17,26,0,21,0,11,0,11,0,11,43,62,0,11,0,11,0,11,0,16,0,16,49,54,0,18,0,16,35,55,0,16,0,16,0,11,0,16,0,18]
[null,"For sale only",0,16,27,44,0,11,0,11,15,24,7,11,21,30,97,89,0,11,103,93,25,40,0,11,0,11,24,37,41,24,17,24,11,17,56,86,34,39,0,11,0,11,0,11,0,16,0,11,53,53,0,11,0,16,37,57,27,44,0,18,102,138,96,93,79,85,23,38,0,11,49,72,0,18]
[null,"Sold, not occupied",0,16,10,15,0,11,0,11,70,64,0,11,0,11,63,74,0,11,0,16,73,70,33,48,0,11,27,40,0,18,0,11,0,11,0,16,0,21,8,14,0,11,0,11,0,16,0,11,0,11,0,11,0,16,0,16,9,14,0,18,0,16,10,15,0,16,38,63,0,11,0,16,80,77]
[null,"For seasonal, recreational, or occasional use",78,73,0,16,8,13,0,11,0,16,24,37,154,86,80,83,17,26,161,112,25,40,0,11,27,42,107,52,2158,209,0,11,4,5,148,117,66,61,94,45,0,11,16,15,49,77,23,36,100,59,517,110,113,75,0,16,146,128,76,79,576,218,80,74,42,65,597,175,53,28,45,72,312,132]
[null,"For migrant workers",0,16,0,16,0,11,0,11,0,16,0,11,0,11,0,24,0,11,0,16,0,18,0,11,0,11,0,16,0,18,0,11,0,11,0,16,0,21,0,11,0,11,0,11,0,16,0,11,0,11,0,11,0,16,0,16,0,21,0,18,0,16,0,21,0,16,0,16,0,11,0,16,0,18]
[null,"Other vacant",76,85,12,19,37,47,28,42,33,30,0,11,92,79,195,135,14,16,35,52,184,122,26,31,56,59,0,16,184,111,19,23,32,29,131,104,162,91,29,26,11,18,6,12,62,82,27,39,45,50,36,46,0,16,71,79,209,127,93,88,0,16,227,127,14,22,196,115,20,17,49,70,153,120]
[]
[]
[]
[]
[]
[]
[]
[null,"B25004. VACANCY STATUS"]
[null,"Universe:  VACANT HOUSING UNITS"]
[null,"Data Set: 2010-2014 American Community Survey 5-Year Estimates"]
[]
[null,null,"Atkinson",null,"Auburn",null,"Brentwood",null,"Candia",null,"Chester",null,"Danville",null,"Deerfield",null,"Derry",null,"East Kingston",null,"Epping",null,"Exeter",null,"Fremont",null,"Greenland",null,"Hampstead",null,"Hampton",null,"Hampton Falls",null,"Kensington",null,"Kingston",null,"Londonderry",null,"New Castle",null,"Newfields",null,"Newington",null,"Newmarket",null,"Newton",null,"North Hampton",null,"Northwood",null,"Nottingham",null,"Plaistow",null,"Portsmouth",null,"Raymond",null,"Rye",null,"Salem",null,"Sandown",null,"Seabrook",null,"South Hampton",null,"Stratham",null,"Windham"]
[null,null,"Estimate","Margin Of Error","Estimate","Margin Of Error","Estimate","Margin Of Error","Estimate","Margin Of Error","Estimate","Margin Of Error","Estimate","Margin Of Error","Estimate","Margin Of Error","Estimate","Margin Of Error","Estimate","Margin Of Error","Estimate","Margin Of Error","Estimate","Margin Of Error","Estimate","Margin Of Error","Estimate","Margin Of Error","Estimate","Margin Of Error","Estimate","Margin Of Error","Estimate","Margin Of Error","Estimate","Margin Of Error","Estimate","Margin Of Error","Estimate","Margin Of Error","Estimate","Margin Of Error","Estimate","Margin Of Error","Estimate","Margin Of Error","Estimate","Margin Of Error","Estimate","Margin Of Error","Estimate","Margin Of Error","Estimate","Margin Of Error","Estimate","Margin Of Error","Estimate","Margin Of Error","Estimate","Margin Of Error","Estimate","Margin Of Error","Estimate","Margin Of Error","Estimate","Margin Of Error","Estimate","Margin Of Error","Estimate","Margin Of Error","Estimate","Margin Of Error","Estimate","Margin Of Error","Estimate","Margin Of Error"]
[null,"Total:",141,89,81,68,0,11,54,57,23,35,93,59,132,70,422,157,46,39,305,170,221,123,0,11,46,52,152,109,2898,237,27,28,91,49,202,94,295,125,94,39,5,10,20,20,234,127,70,61,118,79,430,110,291,110,139,88,747,228,246,104,606,193,696,218,68,73,834,232,156,46,31,50,170,121]
[null,"For rent",0,15,9,14,0,11,26,37,0,11,0,11,0,11,145,109,0,11,0,15,0,17,0,11,9,14,0,15,302,132,0,11,20,29,0,15,57,63,0,11,0,11,0,11,144,114,24,40,0,11,33,53,0,11,0,15,206,131,47,50,20,33,0,20,0,15,0,15,0,11,0,15,0,17]
[null,"Rented, not occupied",0,15,0,15,0,11,0,11,0,11,0,11,0,11,64,54,0,11,54,87,0,17,0,11,0,11,0,15,22,27,0,11,14,21,0,15,0,20,0,11,0,11,6,11,0,15,0,11,0,11,0,11,0,11,0,15,0,20,16,26,0,15,0,20,0,15,25,40,0,11,0,15,0,17]
[null,"For sale only",39,44,8,14,0,11,0,11,0,11,50,46,27,44,39,60,18,21,117,126,12,20,0,11,37,52,0,15,18,23,0,11,9,13,31,50,27,38,0,11,0,11,0,11,0,15,0,11,26,41,28,31,36,56,30,49,24,34,0,17,57,92,39,64,0,15,62,73,4,5,31,50,17,26]
[null,"Sold, not occupied",0,15,0,15,0,11,0,11,0,11,0,11,0,11,0,23,0,11,0,15,0,17,0,11,0,11,0,15,32,36,0,11,0,11,0,15,0,20,0,11,5,10,0,11,26,43,0,11,0,11,0,11,0,11,0,15,23,35,0,17,50,79,74,83,0,15,0,15,0,11,0,15,0,17]
[null,"For seasonal, recreational, or occasional use",39,61,0,15,0,11,0,11,0,11,33,40,96,57,11,18,19,30,79,92,39,41,0,11,0,11,152,109,2309,239,11,13,27,21,143,82,0,20,74,34,0,11,7,12,0,15,46,48,86,72,315,98,222,100,0,15,251,133,116,70,464,189,279,153,68,73,565,198,144,42,0,15,116,115]
[null,"For migrant workers",0,15,0,15,0,11,0,11,0,11,0,11,0,11,0,23,0,11,0,15,0,17,0,11,0,11,0,15,0,17,0,11,0,11,0,15,0,20,0,11,0,11,0,11,0,15,0,11,0,11,0,11,0,11,0,15,0,20,0,17,0,15,0,20,0,15,0,15,0,11,0,15,0,17]
[null,"Other vacant",63,72,64,68,0,11,28,43,23,35,10,15,9,14,163,97,9,12,55,86,170,117,0,11,0,11,0,15,215,138,16,25,21,23,28,33,211,113,20,19,0,11,7,11,64,72,0,11,6,11,54,60,33,47,109,77,243,141,67,85,15,23,304,135,0,15,182,124,8,12,0,15,37,34]
[]
[]
[]
[]
[]
[]
[]
[null,"B25004. VACANCY STATUS"]
[null,"Universe:  VACANT HOUSING UNITS"]
[null,"Data Set: 2005-2009 American Community Survey 5-Year Estimates"]
[]
[null,null,"Atkinson",null,"Auburn",null,"Brentwood",null,"Candia",null,"Chester",null,"Danville",null,"Deerfield",null,"Derry",null,"East Kingston",null,"Epping",null,"Exeter",null,"Fremont",null,"Greenland",null,"Hampstead",null,"Hampton",null,"Hampton Falls",null,"Kensington",null,"Kingston",null,"Londonderry",null,"New Castle",null,"Newfields",null,"Newington",null,"Newmarket",null,"Newton",null,"North Hampton",null,"Northwood",null,"Nottingham",null,"Plaistow",null,"Portsmouth",null,"Raymond",null,"Rye",null,"Salem",null,"Sandown",null,"Seabrook",null,"South Hampton",null,"Stratham",null,"Windham"]
[null,null,"Estimate","Margin Of Error","Estimate","Margin Of Error","Estimate","Margin Of Error","Estimate","Margin Of Error","Estimate","Margin Of Error","Estimate","Margin Of Error","Estimate","Margin Of Error","Estimate","Margin Of Error","Estimate","Margin Of Error","Estimate","Margin Of Error","Estimate","Margin Of Error","Estimate","Margin Of Error","Estimate","Margin Of Error","Estimate","Margin Of Error","Estimate","Margin Of Error","Estimate","Margin Of Error","Estimate","Margin Of Error","Estimate","Margin Of Error","Estimate","Margin Of Error","Estimate","Margin Of Error","Estimate","Margin Of Error","Estimate","Margin Of Error","Estimate","Margin Of Error","Estimate","Margin Of Error","Estimate","Margin Of Error","Estimate","Margin Of Error","Estimate","Margin Of Error","Estimate","Margin Of Error","Estimate","Margin Of Error","Estimate","Margin Of Error","Estimate","Margin Of Error","Estimate","Margin Of Error","Estimate","Margin Of Error","Estimate","Margin Of Error","Estimate","Margin Of Error","Estimate","Margin Of Error","Estimate","Margin Of Error"]
[null,"Total:",88,84,145,100,0,114,0,114,51,49,74,67,153,69,684,242,25,19,286,139,361,175,81,54,22,23,214,125,2658,297,40,30,8,14,199,99,242,139,70,38,10,17,24,24,273,139,99,80,98,83,460,116,296,101,90,82,587,211,249,117,490,136,759,246,36,34,719,231,5,7,105,79,444,142]
[null,"For rent",15,23,44,64,0,114,0,114,0,114,0,114,25,40,168,118,8,11,66,74,87,80,39,46,0,114,19,33,517,174,0,114,0,114,0,114,0,114,0,114,0,114,0,114,116,104,34,42,33,50,0,114,0,114,5,12,164,111,56,61,58,75,86,70,0,114,155,117,0,114,0,114,0,114]
[null,"Rented, not occupied",0,114,0,114,0,114,0,114,0,114,0,114,0,114,29,45,0,114,0,114,32,52,0,114,0,114,0,114,0,114,0,114,0,114,0,114,0,114,0,114,0,114,0,114,29,47,0,114,0,114,0,114,0,114,0,114,81,75,0,114,0,114,65,59,0,114,0,114,0,114,0,114,0,114]
[null,"For sale only",47,73,38,52,0,114,0,114,29,40,28,39,25,39,142,91,7,11,0,114,84,83,0,114,10,16,42,66,80,93,30,30,0,114,0,114,144,100,9,14,0,114,0,114,0,114,0,114,65,67,9,14,34,53,37,56,168,132,93,85,13,21,192,140,0,114,53,67,0,114,39,58,130,94]
[null,"Sold, not occupied",0,114,29,47,0,114,0,114,9,13,0,114,0,114,0,114,0,114,0,114,0,114,0,114,0,114,0,114,29,46,0,114,8,14,0,114,30,47,0,114,0,114,0,114,59,78,0,114,0,114,0,114,0,114,0,114,0,114,0,114,0,114,82,87,0,114,53,80,0,114,0,114,0,114]
[null,"For seasonal, recreational, or occasional use",26,43,34,43,0,114,0,114,0,114,16,27,103,55,40,55,0,114,132,101,66,74,0,114,0,114,140,103,1681,268,0,114,0,114,182,95,0,114,17,20,10,17,20,23,26,40,65,70,0,114,426,125,231,98,0,114,70,66,83,74,325,135,208,118,24,27,148,93,5,7,11,17,278,113]
[null,"For migrant workers",0,114,0,114,0,114,0,114,0,114,0,114,0,114,0,114,0,114,0,114,0,114,0,114,0,114,0,114,0,114,0,114,0,114,0,114,0,114,0,114,0,114,0,114,0,114,0,114,0,114,0,114,0,114,0,114,0,114,0,114,0,114,0,114,0,114,0,114,0,114,0,114,0,114]
[null,"Other vacant",0,114,0,114,0,114,0,114,13,23,30,49,0,114,305,153,10,13,88,87,92,79,42,43,12,18,13,19,351,173,10,12,0,114,17,27,68,70,44,33,0,114,4,5,43,68,0,114,0,114,25,41,31,38,48,59,104,64,17,19,94,93,126,105,12,20,310,159,0,114,55,53,36,43]

{"sheet":"ACS_Table_B25008","index":47,"n_rows":51,"n_cols":76,"rows_kept":51,"cut":false,"hidden":true,"merged":[]}
[null,"B25008. TOTAL POPULATION IN OCCUPIED HOUSING UNITS BY TENURE"]
[null,"Universe:  TOTAL POPULATION IN OCCUPIED HOUSING UNITS"]
[null,"Data Set: 2015-2019 American Community Survey 5-Year Estimates"]
[]
[null,null,"Atkinson",null,"Auburn",null,"Brentwood",null,"Candia",null,"Chester",null,"Danville",null,"Deerfield",null,"Derry",null,"East Kingston",null,"Epping",null,"Exeter",null,"Fremont",null,"Greenland",null,"Hampstead",null,"Hampton",null,"Hampton Falls",null,"Kensington",null,"Kingston",null,"Londonderry",null,"New Castle",null,"Newfields",null,"Newington",null,"Newmarket",null,"Newton",null,"North Hampton",null,"Northwood",null,"Nottingham",null,"Plaistow",null,"Portsmouth",null,"Raymond",null,"Rye",null,"Salem",null,"Sandown",null,"Seabrook",null,"South Hampton",null,"Stratham",null,"Windham"]
[null,null,"Estimate","Margin Of Error","Estimate","Margin Of Error","Estimate","Margin Of Error","Estimate","Margin Of Error","Estimate","Margin Of Error","Estimate","Margin Of Error","Estimate","Margin Of Error","Estimate","Margin Of Error","Estimate","Margin Of Error","Estimate","Margin Of Error","Estimate","Margin Of Error","Estimate","Margin Of Error","Estimate","Margin Of Error","Estimate","Margin Of Error","Estimate","Margin Of Error","Estimate","Margin Of Error","Estimate","Margin Of Error","Estimate","Margin Of Error","Estimate","Margin Of Error","Estimate","Margin Of Error","Estimate","Margin Of Error","Estimate","Margin Of Error","Estimate","Margin Of Error","Estimate","Margin Of Error","Estimate","Margin Of Error","Estimate","Margin Of Error","Estimate","Margin Of Error","Estimate","Margin Of Error","Estimate","Margin Of Error","Estimate","Margin Of Error","Estimate","Margin Of Error","Estimate","Margin Of Error","Estimate","Margin Of Error","Estimate","Margin Of Error","Estimate","Margin Of Error","Estimate","Margin Of Error","Estimate","Margin Of Error"]
[null,"Total:",6952,33,5441,20,4323,130,3936,18,5105,29,4510,25,4476,31,33232,116,2442,194,6966,22,14651,252,4623,84,3986,38,8607,20,15389,99,2383,164,2291,139,6260,29,25916,36,835,178,1757,227,694,96,9058,23,4920,22,4425,22,4299,18,5048,23,7681,32,20819,117,10420,31,5410,90,29079,107,6384,19,8830,26,775,94,7422,21,14507,48]
[null,"Owner occupied",6688,165,4981,369,4026,221,3771,123,5022,75,3917,265,3952,220,23543,1047,2350,188,6075,386,11274,520,4335,158,3424,174,7179,376,12283,445,2182,178,2062,127,5625,280,22522,584,740,157,1672,228,587,82,5252,410,4076,308,4015,183,3977,160,4693,198,6480,463,12097,473,8292,591,4694,294,23997,704,5952,243,6131,489,689,95,6741,348,14088,259]
[null,"Renter occupied",264,160,460,369,297,167,165,123,83,67,593,262,524,219,9689,1050,92,80,891,385,3377,485,288,147,562,165,1428,378,3106,423,201,103,229,112,635,278,3394,580,95,84,85,46,107,50,3806,405,844,306,410,187,322,159,355,195,1201,461,8722,474,2128,593,716,292,5082,708,432,243,2699,486,86,50,681,349,419,253]
[]
[]
[]
[]
[]
[]
[]
[]
[]
[]
[]
[]
[null,"B25008. TOTAL POPULATION IN OCCUPIED HOUSING UNITS BY TENURE"]
[null,"Universe:  TOTAL POPULATION IN OCCUPIED HOUSING UNITS"]
[null,"Data Set: 2010-2014 American Community Survey 5-Year Estimates"]
[]
[null,null,"Atkinson",null,"Auburn",null,"Brentwood",null,"Candia",null,"Chester",null,"Danville",null,"Deerfield",null,"Derry",null,"East Kingston",null,"Epping",null,"Exeter",null,"Fremont",null,"Greenland",null,"Hampstead",null,"Hampton",null,"Hampton Falls",null,"Kensington",null,"Kingston",null,"Londonderry",null,"New Castle",null,"Newfields",null,"Newington",null,"Newmarket",null,"Newton",null,"North Hampton",null,"Northwood",null,"Nottingham",null,"Plaistow",null,"Portsmouth",null,"Raymond",null,"Rye",null,"Salem",null,"Sandown",null,"Seabrook",null,"South Hampton",null,"Stratham",null,"Windham"]
[null,null,"Estimate","Margin Of Error","Estimate","Margin Of Error","Estimate","Margin Of Error","Estimate","Margin Of Error","Estimate","Margin Of Error","Estimate","Margin Of Error","Estimate","Margin Of Error","Estimate","Margin Of Error","Estimate","Margin Of Error","Estimate","Margin Of Error","Estimate","Margin Of Error","Estimate","Margin Of Error","Estimate","Margin Of Error","Estimate","Margin Of Error","Estimate","Margin Of Error","Estimate","Margin Of Error","Estimate","Margin Of Error","Estimate","Margin Of Error","Estimate","Margin Of Error","Estimate","Margin Of Error","Estimate","Margin Of Error","Estimate","Margin Of Error","Estimate","Margin Of Error","Estimate","Margin Of Error","Estimate","Margin Of Error","Estimate","Margin Of Error","Estimate","Margin Of Error","Estimate","Margin Of Error","Estimate","Margin Of Error","Estimate","Margin Of Error","Estimate","Margin Of Error","Estimate","Margin Of Error","Estimate","Margin Of Error","Estimate","Margin Of Error","Estimate","Margin Of Error","Estimate","Margin Of Error","Estimate","Margin Of Error"]
[null,"Total:",6787,19,5073,25,4174,164,3920,21,4696,60,4418,42,4326,21,32989,140,2453,130,6584,18,14065,116,4328,39,3644,48,8530,51,14754,193,2307,123,2055,149,6060,19,24235,24,966,162,1625,222,784,131,8916,32,4717,34,4319,44,4269,16,4848,17,7607,28,20682,316,10192,24,5268,66,28711,56,6130,56,8747,19,799,123,7292,20,13903,54]
[null,"Owner occupied",6484,179,4718,162,3379,371,3853,69,4410,166,3998,173,4006,228,22890,936,2260,148,5888,359,10204,611,3677,283,3237,187,7241,410,10987,672,2073,151,1855,156,5189,389,21557,532,733,136,1528,210,611,124,5398,401,3935,273,4002,211,3790,224,4685,93,5986,549,11841,572,7680,557,4528,389,23167,668,5608,301,6030,532,679,110,6842,278,13031,347]
[null,"Renter occupied",303,176,355,164,795,345,67,65,286,155,420,167,320,227,10099,910,193,115,696,360,3861,608,651,285,407,180,1289,404,3767,692,234,91,200,87,871,388,2678,531,233,129,97,62,173,64,3518,406,782,272,317,201,479,226,163,93,1621,554,8841,553,2512,558,740,382,5544,664,522,299,2717,532,120,55,450,281,872,354]
[]
[]
[]
[]
[]
[]
[]
[]
[]
[]
[]
[]
[null,"B25008. TOTAL POPULATION IN OCCUPIED HOUSING UNITS BY TENURE"]
[null,"Universe:  TOTAL POPULATION IN OCCUPIED HOUSING UNITS"]
[null,"Data Set: 2005-2009 American Community Survey 5-Year Estimates"]
[]
[null,null,"Atkinson",null,"Auburn",null,"Brentwood",null,"Candia",null,"Chester",null,"Danville",null,"Deerfield",null,"Derry",null,"East Kingston",null,"Epping",null,"Exeter",null,"Fremont",null,"Greenland",null,"Hampstead",null,"Hampton",null,"Hampton Falls",null,"Kensington",null,"Kingston",null,"Londonderry",null,"New Castle",null,"Newfields",null,"Newington",null,"Newmarket",null,"Newton",null,"North Hampton",null,"Northwood",null,"Nottingham",null,"Plaistow",null,"Portsmouth",null,"Raymond",null,"Rye",null,"Salem",null,"Sandown",null,"Seabrook",null,"South Hampton",null,"Stratham",null,"Windham"]
[null,null,"Estimate","Margin Of Error","Estimate","Margin Of Error","Estimate","Margin Of Error","Estimate","Margin Of Error","Estimate","Margin Of Error","Estimate","Margin Of Error","Estimate","Margin Of Error","Estimate","Margin Of Error","Estimate","Margin Of Error","Estimate","Margin Of Error","Estimate","Margin Of Error","Estimate","Margin Of Error","Estimate","Margin Of Error","Estimate","Margin Of Error","Estimate","Margin Of Error","Estimate","Margin Of Error","Estimate","Margin Of Error","Estimate","Margin Of Error","Estimate","Margin Of Error","Estimate","Margin Of Error","Estimate","Margin Of Error","Estimate","Margin Of Error","Estimate","Margin Of Error","Estimate","Margin Of Error","Estimate","Margin Of Error","Estimate","Margin Of Error","Estimate","Margin Of Error","Estimate","Margin Of Error","Estimate","Margin Of Error","Estimate","Margin Of Error","Estimate","Margin Of Error","Estimate","Margin Of Error","Estimate","Margin Of Error","Estimate","Margin Of Error","Estimate","Margin Of Error","Estimate","Margin Of Error","Estimate","Margin Of Error"]
[null,"Total:",6646,22,5157,19,3314,223,4170,24,4693,27,4357,22,4171,17,33959,201,2318,115,6228,15,14339,189,4083,20,3406,18,8879,20,15261,180,2342,147,2119,162,6233,31,24954,23,727,133,1836,240,691,109,9308,157,4523,25,4542,22,4077,20,4471,16,7665,30,20147,209,10181,17,5177,23,29241,237,5822,18,8494,17,798,129,7214,17,12976,200]
[null,"Owner occupied",6118,208,5000,133,3174,263,4004,157,4676,41,4140,159,3805,171,25854,851,2168,134,5583,301,11000,597,3682,278,3104,146,8055,250,11352,600,2140,166,2025,160,5923,239,22834,708,623,132,1785,235,555,104,6068,409,4110,208,3911,248,3534,216,3908,327,6409,440,11720,639,9016,375,4452,317,24341,644,5228,309,6230,485,735,130,6907,210,12533,242]
[null,"Renter occupied",528,207,157,131,140,105,166,154,17,28,217,158,366,172,8105,823,150,75,645,300,3339,564,401,277,302,142,824,251,3909,546,202,102,94,47,310,238,2120,706,104,67,51,37,136,75,3240,419,413,208,631,248,543,214,563,328,1256,437,8427,648,1165,376,725,315,4900,641,594,307,2264,485,63,41,307,209,443,165]

{"sheet":"ACS_Table_B25024","index":48,"n_rows":78,"n_cols":76,"rows_kept":78,"cut":false,"hidden":true,"merged":[]}
[null,"B25024. UNITS IN STRUCTURE "]
[null,"Universe:  HOUSING UNITS"]
[null,"Data Set: 2015-2019 American Community Survey 5-Year Estimates"]
[]
[null,null,"Atkinson",null,"Auburn",null,"Brentwood",null,"Candia",null,"Chester",null,"Danville",null,"Deerfield",null,"Derry",null,"East Kingston",null,"Epping",null,"Exeter",null,"Fremont",null,"Greenland",null,"Hampstead",null,"Hampton",null,"Hampton Falls",null,"Kensington",null,"Kingston",null,"Londonderry",null,"New Castle",null,"Newfields",null,"Newington",null,"Newmarket",null,"Newton",null,"North Hampton",null,"Northwood",null,"Nottingham",null,"Plaistow",null,"Portsmouth",null,"Raymond",null,"Rye",null,"Salem",null,"Sandown",null,"Seabrook",null,"South Hampton",null,"Stratham",null,"Windham"]
[null,null,"Estimate","Margin Of Error","Estimate","Margin Of Error","Estimate","Margin Of Error","Estimate","Margin Of Error","Estimate","Margin Of Error","Estimate","Margin Of Error","Estimate","Margin Of Error","Estimate","Margin Of Error","Estimate","Margin Of Error","Estimate","Margin Of Error","Estimate","Margin Of Error","Estimate","Margin Of Error","Estimate","Margin Of Error","Estimate","Margin Of Error","Estimate","Margin Of Error","Estimate","Margin Of Error","Estimate","Margin Of Error","Estimate","Margin Of Error","Estimate","Margin Of Error","Estimate","Margin Of Error","Estimate","Margin Of Error","Estimate","Margin Of Error","Estimate","Margin Of Error","Estimate","Margin Of Error","Estimate","Margin Of Error","Estimate","Margin Of Error","Estimate","Margin Of Error","Estimate","Margin Of Error","Estimate","Margin Of Error","Estimate","Margin Of Error","Estimate","Margin Of Error","Estimate","Margin Of Error","Estimate","Margin Of Error","Estimate","Margin Of Error","Estimate","Margin Of Error","Estimate","Margin Of Error","Estimate","Margin Of Error"]
[null,"Total:",2899,199,2022,106,1578,83,1565,84,1805,120,1716,93,1920,146,13539,368,929,57,2979,182,7013,275,1848,86,1599,93,3759,127,9654,290,950,46,903,60,2763,235,9686,245,567,83,611,64,329,40,4189,187,1903,115,2018,144,2164,127,2013,124,3262,190,10615,267,4281,241,3059,210,12005,327,2364,159,4773,236,375,43,2960,144,5554,199]
[null,"1, detached",2259,187,1942,138,1330,107,1458,102,1640,122,1294,131,1662,148,6951,431,809,50,2225,189,3075,249,1498,122,1160,116,2488,168,5479,274,825,62,863,56,2274,252,6765,261,486,78,551,65,286,43,1633,191,1574,153,1552,120,1651,146,1784,142,2111,235,4244,256,2596,216,2483,261,8230,379,2048,191,2260,272,314,32,2243,168,4738,241]
[null,"1, attached",434,123,10,17,122,49,9,14,84,40,116,79,44,35,1589,284,97,28,157,95,392,149,145,57,246,77,291,117,878,167,48,25,10,9,198,126,1236,192,7,8,9,8,23,13,350,83,30,29,68,61,36,44,55,42,399,139,800,139,419,143,102,68,395,140,107,76,309,109,0,11,388,151,430,135]
[null,2,26,33,59,65,33,52,16,26,26,30,61,51,81,45,750,191,10,10,20,31,159,79,60,47,101,50,172,101,537,148,47,39,3,4,24,39,244,146,44,32,40,28,18,17,320,94,36,31,53,44,90,51,70,54,192,137,747,186,151,84,155,116,318,161,0,16,340,145,13,16,40,36,63,73]
[null,"3 or 4",116,101,11,17,0,11,0,11,45,45,0,11,42,51,426,175,0,11,80,59,564,125,74,53,10,15,43,38,657,153,5,9,0,11,38,47,35,25,9,15,4,6,0,11,463,135,151,83,24,21,0,11,28,27,165,92,1412,227,165,81,21,34,382,146,97,91,87,79,0,11,99,76,61,55]
[null,"5 to 9",0,16,0,16,9,14,8,13,0,16,0,11,0,11,573,155,0,11,64,46,418,141,30,44,26,26,106,82,677,138,0,11,0,11,138,93,373,112,0,11,0,11,0,11,307,124,16,18,8,12,61,65,0,16,99,71,1391,194,165,93,49,36,191,110,0,16,63,38,0,11,78,60,157,124]
[null,"10 to 19",64,83,0,16,0,11,0,11,0,16,0,11,27,18,777,214,0,11,0,16,270,107,0,11,31,46,362,126,494,160,0,11,0,11,0,16,341,99,5,7,3,7,2,4,312,103,34,54,0,11,0,11,0,16,195,132,655,154,51,47,52,82,605,168,63,70,164,69,0,11,0,16,25,29]
[null,"20 to 49",0,16,0,16,23,17,0,11,0,16,0,11,0,11,1825,296,0,11,44,49,441,154,0,11,0,11,27,31,550,146,5,7,0,11,19,30,277,91,0,11,0,11,0,11,516,176,9,14,9,15,0,11,0,16,42,33,632,138,99,54,0,16,1044,197,14,23,386,117,0,11,29,34,80,57]
[null,"50 or more",0,16,0,16,0,11,0,11,10,15,0,11,0,11,365,130,0,11,23,29,721,151,0,11,0,11,13,22,236,99,0,11,0,11,0,16,100,57,0,11,0,11,0,11,162,101,0,11,0,11,0,11,0,16,0,16,440,129,11,19,21,33,236,112,0,16,154,58,0,11,33,37,0,18]
[null,"Mobile home",0,16,0,16,61,35,74,66,0,16,208,79,64,43,283,95,13,13,366,128,973,161,41,31,25,41,257,76,146,67,20,30,27,20,72,57,315,112,16,17,4,6,0,11,126,52,53,31,304,102,326,106,76,56,59,74,294,109,624,143,176,158,577,182,35,55,997,209,48,29,34,32,0,18]
[null,"Boat, RV, van, etc.",0,16,0,16,0,11,0,11,0,16,37,57,0,11,0,24,0,11,0,16,0,18,0,11,0,11,0,16,0,18,0,11,0,11,0,16,0,21,0,11,0,11,0,11,0,16,0,11,0,11,0,11,0,16,0,16,0,21,0,18,0,16,27,44,0,16,13,22,0,11,16,26,0,18]
[]
[]
[null,"Calculated B25024. UNITS IN STRUCTURE "]
[null,"Universe:  HOUSING UNITS"]
[null,"Data Set: 2015-2019 American Community Survey 5-Year Estimates"]
[]
[null,null,"Atkinson",null,"Auburn",null,"Brentwood",null,"Candia",null,"Chester",null,"Danville",null,"Deerfield",null,"Derry",null,"East Kingston",null,"Epping",null,"Exeter",null,"Fremont",null,"Greenland",null,"Hampstead",null,"Hampton",null,"Hampton Falls",null,"Kensington",null,"Kingston",null,"Londonderry",null,"New Castle",null,"Newfields",null,"Newington",null,"Newmarket",null,"Newton",null,"North Hampton",null,"Northwood",null,"Nottingham",null,"Plaistow",null,"Portsmouth",null,"Raymond",null,"Rye",null,"Salem",null,"Sandown",null,"Seabrook",null,"South Hampton",null,"Stratham",null,"Windham"]
[null,null,"Estimate","Margin Of Error","Estimate","Margin Of Error","Estimate","Margin Of Error","Estimate","Margin Of Error","Estimate","Margin Of Error","Estimate","Margin Of Error","Estimate","Margin Of Error","Estimate","Margin Of Error","Estimate","Margin Of Error","Estimate","Margin Of Error","Estimate","Margin Of Error","Estimate","Margin Of Error","Estimate","Margin Of Error","Estimate","Margin Of Error","Estimate","Margin Of Error","Estimate","Margin Of Error","Estimate","Margin Of Error","Estimate","Margin Of Error","Estimate","Margin Of Error","Estimate","Margin Of Error","Estimate","Margin Of Error","Estimate","Margin Of Error","Estimate","Margin Of Error","Estimate","Margin Of Error","Estimate","Margin Of Error","Estimate","Margin Of Error","Estimate","Margin Of Error","Estimate","Margin Of Error","Estimate","Margin Of Error","Estimate","Margin Of Error","Estimate","Margin Of Error","Estimate","Margin Of Error","Estimate","Margin Of Error","Estimate","Margin Of Error","Estimate","Margin Of Error","Estimate","Margin Of Error","Estimate","Margin Of Error"]
[null,"Total:",{"$f":"C7","v":2899},199,2022,106,1578,83,1565,84,1805,120,1716,93,1920,146,13539,368,929,57,2979,182,7013,275,{"$f":"Y7","v":1848},86,1599,93,3759,127,9654,290,950,46,903,60,2763,235,9686,245,{"$f":"AO7","v":567},83,611,64,329,40,4189,187,1903,115,2018,144,2164,127,2013,124,{"$f":"BE7","v":3262},190,10615,267,4281,241,3059,210,12005,327,2364,159,4773,236,375,43,2960,144,5554,199]
[null,"Single Family",{"$f":"C8","v":2259},{"$f":"D8","v":187},1942,138,1330,107,1458,102,1640,122,1294,131,1662,148,6951,431,809,50,2225,189,3075,249,{"$f":"Y8","v":1498},122,1160,116,2488,168,5479,274,825,62,863,56,2274,252,6765,261,{"$f":"AO8","v":486},78,551,65,286,43,1633,191,1574,153,1552,120,1651,146,1784,142,{"$f":"BE8","v":2111},235,4244,256,2596,216,2483,261,8230,379,2048,191,2260,272,314,32,2243,168,4738,241]
[null,"Multi-Family",{"$f":"C9+C10+C11+C12+C13+C14+C15","v":640},{"$f":"SQRT((D9^2)+(D10^2)+(D11^2)+(D12^2)+(D13^2)+(D14^2)+(D15^2))","v":184.59685804476737},{"$f":"E9+E10+E11+E12+E13+E14+E15","v":80},{"$f":"SQRT((F9^2)+(F10^2)+(F11^2)+(F12^2)+(F13^2)+(F14^2)+(F15^2))","v":76.334788923530795},{"$f":"G9+G10+G11+G12+G13+G14+G15","v":187},{"$f":"SQRT((H9^2)+(H10^2)+(H11^2)+(H12^2)+(H13^2)+(H14^2)+(H15^2))","v":77.155686763841331},{"$f":"I9+I10+I11+I12+I13+I14+I15","v":33},{"$f":"SQRT((J9^2)+(J10^2)+(J11^2)+(J12^2)+(J13^2)+(J14^2)+(J15^2))","v":39.05124837953327},{"$f":"K9+K10+K11+K12+K13+K14+K15","v":165},{"$f":"SQRT((L9^2)+(L10^2)+(L11^2)+(L12^2)+(L13^2)+(L14^2)+(L15^2))","v":74.283241717092551},{"$f":"M9+M10+M11+M12+M13+M14+M15","v":177},{"$f":"SQRT((N9^2)+(N10^2)+(N11^2)+(N12^2)+(N13^2)+(N14^2)+(N15^2))","v":97.19567891629751},{"$f":"O9+O10+O11+O12+O13+O14+O15","v":194},{"$f":"SQRT((P9^2)+(P10^2)+(P11^2)+(P12^2)+(P13^2)+(P14^2)+(P15^2))","v":80.857900046934191},{"$f":"Q9+Q10+Q11+Q12+Q13+Q14+Q15","v":6305},{"$f":"SQRT((R9^2)+(R10^2)+(R11^2)+(R12^2)+(R13^2)+(R14^2)+(R15^2))","v":567.53766394839386},{"$f":"S9+S10+S11+S12+S13+S14+S15","v":107},{"$f":"SQRT((T9^2)+(T10^2)+(T11^2)+(T12^2)+(T13^2)+(T14^2)+(T15^2))","v":38.587562763149478},{"$f":"U9+U10+U11+U12+U13+U14+U15","v":388},{"$f":"SQRT((V9^2)+(V10^2)+(V11^2)+(V12^2)+(V13^2)+(V14^2)+(V15^2))","v":138.13399291991817},{"$f":"W9+W10+W11+W12+W13+W14+W15","v":2965},{"$f":"SQRT((X9^2)+(X10^2)+(X11^2)+(X12^2)+(X13^2)+(X14^2)+(X15^2))","v":349.16185358655662},{"$f":"Y9+Y10+Y11+Y12+Y13+Y14+Y15","v":309},{"$f":"SQRT((Z9^2)+(Z10^2)+(Z11^2)+(Z12^2)+(Z13^2)+(Z14^2)+(Z15^2))","v":102.79105019407089},{"$f":"AA9+AA10+AA11+AA12+AA13+AA14+AA15","v":414},{"$f":"SQRT((AB9^2)+(AB10^2)+(AB11^2)+(AB12^2)+(AB13^2)+(AB14^2)+(AB15^2))","v":108.11105401391663},{"$f":"AC9+AC10+AC11+AC12+AC13+AC14+AC15","v":1014},{"$f":"SQRT((AD9^2)+(AD10^2)+(AD11^2)+(AD12^2)+(AD13^2)+(AD14^2)+(AD15^2))","v":222.2138609538118},{"$f":"AE9+AE10+AE11+AE12+AE13+AE14+AE15","v":4029},{"$f":"SQRT((AF9^2)+(AF10^2)+(AF11^2)+(AF12^2)+(AF13^2)+(AF14^2)+(AF15^2))","v":385.95725151886961},{"$f":"AG9+AG10+AG11+AG12+AG13+AG14+AG15","v":105},{"$f":"SQRT((AH9^2)+(AH10^2)+(AH11^2)+(AH12^2)+(AH13^2)+(AH14^2)+(AH15^2))","v":51.371198156165292},{"$f":"AI9+AI10+AI11+AI12+AI13+AI14+AI15","v":13},{"$f":"SQRT((AJ9^2)+(AJ10^2)+(AJ11^2)+(AJ12^2)+(AJ13^2)+(AJ14^2)+(AJ15^2))","v":26.49528259898354},{"$f":"AK9+AK10+AK11+AK12+AK13+AK14+AK15","v":417},{"$f":"SQRT((AL9^2)+(AL10^2)+(AL11^2)+(AL12^2)+(AL13^2)+(AL14^2)+(AL15^2))","v":172.24111007538241},{"$f":"AM9+AM10+AM11+AM12+AM13+AM14+AM15","v":2606},{"$f":"SQRT((AN9^2)+(AN10^2)+(AN11^2)+(AN12^2)+(AN13^2)+(AN14^2)+(AN15^2))","v":304.43390087176562},{"$f":"AO9+AO10+AO11+AO12+AO13+AO14+AO15","v":65},{"$f":"SQRT((AP9^2)+(AP10^2)+(AP11^2)+(AP12^2)+(AP13^2)+(AP14^2)+(AP15^2))","v":41.533119314590373},{"$f":"AQ9+AQ10+AQ11+AQ12+AQ13+AQ14+AQ15","v":56},{"$f":"SQRT((AR9^2)+(AR10^2)+(AR11^2)+(AR12^2)+(AR13^2)+(AR14^2)+(AR15^2))","v":36},{"$f":"AS9+AS10+AS11+AS12+AS13+AS14+AS15","v":43},{"$f":"SQRT((AT9^2)+(AT10^2)+(AT11^2)+(AT12^2)+(AT13^2)+(AT14^2)+(AT15^2))","v":30.951575081084322},{"$f":"AU9+AU10+AU11+AU12+AU13+AU14+AU15","v":2430},{"$f":"SQRT((AV9^2)+(AV10^2)+(AV11^2)+(AV12^2)+(AV13^2)+(AV14^2)+(AV15^2))","v":317.98113151569231},{"$f":"AW9+AW10+AW11+AW12+AW13+AW14+AW15","v":276},{"$f":"SQRT((AX9^2)+(AX10^2)+(AX11^2)+(AX12^2)+(AX13^2)+(AX14^2)+(AX15^2))","v":110.67068265805538},{"$f":"AY9+AY10+AY11+AY12+AY13+AY14+AY15","v":162},{"$f":"SQRT((AZ9^2)+(AZ10^2)+(AZ11^2)+(AZ12^2)+(AZ13^2)+(AZ14^2)+(AZ15^2))","v":81.908485518900903},{"$f":"BA9+BA10+BA11+BA12+BA13+BA14+BA15","v":187},{"$f":"SQRT((BB9^2)+(BB10^2)+(BB11^2)+(BB12^2)+(BB13^2)+(BB14^2)+(BB15^2))","v":96.156123049964947},{"$f":"BC9+BC10+BC11+BC12+BC13+BC14+BC15","v":153},{"$f":"SQRT((BD9^2)+(BD10^2)+(BD11^2)+(BD12^2)+(BD13^2)+(BD14^2)+(BD15^2))","v":80.205984814102251},{"$f":"BE9+BE10+BE11+BE12+BE13+BE14+BE15","v":1092},{"$f":"SQRT((BF9^2)+(BF10^2)+(BF11^2)+(BF12^2)+(BF13^2)+(BF14^2)+(BF15^2))","v":265.26213450094986},{"$f":"BG9+BG10+BG11+BG12+BG13+BG14+BG15","v":6077},{"$f":"SQRT((BH9^2)+(BH10^2)+(BH11^2)+(BH12^2)+(BH13^2)+(BH14^2)+(BH15^2))","v":449.98111071466099},{"$f":"BI9+BI10+BI11+BI12+BI13+BI14+BI15","v":1061},{"$f":"SQRT((BJ9^2)+(BJ10^2)+(BJ11^2)+(BJ12^2)+(BJ13^2)+(BJ14^2)+(BJ15^2))","v":219.54726142678254},{"$f":"BK9+BK10+BK11+BK12+BK13+BK14+BK15","v":400},{"$f":"SQRT((BL9^2)+(BL10^2)+(BL11^2)+(BL12^2)+(BL13^2)+(BL14^2)+(BL15^2))","v":169.11830178901394},{"$f":"BM9+BM10+BM11+BM12+BM13+BM14+BM15","v":3171},{"$f":"SQRT((BN9^2)+(BN10^2)+(BN11^2)+(BN12^2)+(BN13^2)+(BN14^2)+(BN15^2))","v":398.13816697222086},{"$f":"BO9+BO10+BO11+BO12+BO13+BO14+BO15","v":281},{"$f":"SQRT((BP9^2)+(BP10^2)+(BP11^2)+(BP12^2)+(BP13^2)+(BP14^2)+(BP15^2))","v":142.31654858097141},{"$f":"BQ9+BQ10+BQ11+BQ12+BQ13+BQ14+BQ15","v":1503},{"$f":"SQRT((BR9^2)+(BR10^2)+(BR11^2)+(BR12^2)+(BR13^2)+(BR14^2)+(BR15^2))","v":249.80992774507581},{"$f":"BS9+BS10+BS11+BS12+BS13+BS14+BS15","v":13},{"$f":"SQRT((BT9^2)+(BT10^2)+(BT11^2)+(BT12^2)+(BT13^2)+(BT14^2)+(BT15^2))","v":31.336879231984796},{"$f":"BU9+BU10+BU11+BU12+BU13+BU14+BU15","v":667},{"$f":"SQRT((BV9^2)+(BV10^2)+(BV11^2)+(BV12^2)+(BV13^2)+(BV14^2)+(BV15^2))","v":190.40483187146276},{"$f":"BW9+BW10+BW11+BW12+BW13+BW14+BW15","v":816},{"$f":"SQRT((BX9^2)+(BX10^2)+(BX11^2)+(BX12^2)+(BX13^2)+(BX14^2)+(BX15^2))","v":215.3346233191495}]
[null,"Mobile Home & Other",{"$f":"C16+C17","v":0},{"$f":"SQRT((D16^2)+(D17^2))","v":22.627416997969522},{"$f":"E16+E17","v":0},{"$f":"SQRT((F16^2)+(F17^2))","v":22.627416997969522},{"$f":"G16+G17","v":61},{"$f":"SQRT((H16^2)+(H17^2))","v":36.687872655688281},{"$f":"I16+I17","v":74},{"$f":"SQRT((J16^2)+(J17^2))","v":66.91038783328041},{"$f":"K16+K17","v":0},{"$f":"SQRT((L16^2)+(L17^2))","v":22.627416997969522},{"$f":"M16+M17","v":245},{"$f":"SQRT((N16^2)+(N17^2))","v":97.416631023660429},{"$f":"O16+O17","v":64},{"$f":"SQRT((P16^2)+(P17^2))","v":44.384682042344295},{"$f":"Q16+Q17","v":283},{"$f":"SQRT((R16^2)+(R17^2))","v":97.984692682071525},{"$f":"S16+S17","v":13},{"$f":"SQRT((T16^2)+(T17^2))","v":17.029386365926403},{"$f":"U16+U17","v":366},{"$f":"SQRT((V16^2)+(V17^2))","v":128.99612397277679},{"$f":"W16+W17","v":973},{"$f":"SQRT((X16^2)+(X17^2))","v":162.00308639035245},{"$f":"Y16+Y17","v":41},{"$f":"SQRT((Z16^2)+(Z17^2))","v":32.893768406797051},{"$f":"AA16+AA17","v":25},{"$f":"SQRT((AB16^2)+(AB17^2))","v":42.449970553582247},{"$f":"AC16+AC17","v":257},{"$f":"SQRT((AD16^2)+(AD17^2))","v":77.665951355790398},{"$f":"AE16+AE17","v":146},{"$f":"SQRT((AF16^2)+(AF17^2))","v":69.375788283809797},{"$f":"AG16+AG17","v":20},{"$f":"SQRT((AH16^2)+(AH17^2))","v":31.953090617340916},{"$f":"AI16+AI17","v":27},{"$f":"SQRT((AJ16^2)+(AJ17^2))","v":22.825424421026653},{"$f":"AK16+AK17","v":72},{"$f":"SQRT((AL16^2)+(AL17^2))","v":59.203040462462738},{"$f":"AM16+AM17","v":315},{"$f":"SQRT((AN16^2)+(AN17^2))","v":113.95174417269794},{"$f":"AO16+AO17","v":16},{"$f":"SQRT((AP16^2)+(AP17^2))","v":20.248456731316587},{"$f":"AQ16+AQ17","v":4},{"$f":"SQRT((AR16^2)+(AR17^2))","v":12.529964086141668},{"$f":"AS16+AS17","v":0},{"$f":"SQRT((AT16^2)+(AT17^2))","v":15.556349186104045},{"$f":"AU16+AU17","v":126},{"$f":"SQRT((AV16^2)+(AV17^2))","v":54.405882034941776},{"$f":"AW16+AW17","v":53},{"$f":"SQRT((AX16^2)+(AX17^2))","v":32.893768406797051},{"$f":"AY16+AY17","v":304},{"$f":"SQRT((AZ16^2)+(AZ17^2))","v":102.59142264341595},{"$f":"BA16+BA17","v":326},{"$f":"SQRT((BB16^2)+(BB17^2))","v":106.56922632730333},{"$f":"BC16+BC17","v":76},{"$f":"SQRT((BD16^2)+(BD17^2))","v":58.240879114244144},{"$f":"BE16+BE17","v":59},{"$f":"SQRT((BF16^2)+(BF17^2))","v":75.709972922990801},{"$f":"BG16+BG17","v":294},{"$f":"SQRT((BH16^2)+(BH17^2))","v":111.00450441310929},{"$f":"BI16+BI17","v":624},{"$f":"SQRT((BJ16^2)+(BJ17^2))","v":144.12841496387864},{"$f":"BK16+BK17","v":176},{"$f":"SQRT((BL16^2)+(BL17^2))","v":158.80806024884254},{"$f":"BM16+BM17","v":604},{"$f":"SQRT((BN16^2)+(BN17^2))","v":187.2431574183687},{"$f":"BO16+BO17","v":35},{"$f":"SQRT((BP16^2)+(BP17^2))","v":57.280013966478741},{"$f":"BQ16+BQ17","v":1010},{"$f":"SQRT((BR16^2)+(BR17^2))","v":210.15470491997081},{"$f":"BS16+BS17","v":48},{"$f":"SQRT((BT16^2)+(BT17^2))","v":31.016124838541646},{"$f":"BU16+BU17","v":50},{"$f":"SQRT((BV16^2)+(BV17^2))","v":41.231056256176608},{"$f":"BW16+BW17","v":0},{"$f":"SQRT((BX16^2)+(BX17^2))","v":25.45584412271571}]
[]
[]
[]
[]
[]
[]
[]
[]
[]
[]
[]
[]
[]
[]
[]
[]
[]
[]
[]
[]
[]
[]
[]
[]
[]
[]
[]
[null,"Calculated B25024. UNITS IN STRUCTURE "]
[null,"Universe:  HOUSING UNITS"]
[null,"Data Set: 2010-2014 American Community Survey 5-Year Estimates"]
[]
[null,null,"Atkinson",null,"Auburn",null,"Brentwood",null,"Candia",null,"Chester",null,"Danville",null,"Deerfield",null,"Derry",null,"East Kingston",null,"Epping",null,"Exeter",null,"Fremont",null,"Greenland",null,"Hampstead",null,"Hampton",null,"Hampton Falls",null,"Kensington",null,"Kingston",null,"Londonderry",null,"New Castle",null,"Newfields",null,"Newington",null,"Newmarket",null,"Newton",null,"North Hampton",null,"Northwood",null,"Nottingham",null,"Plaistow",null,"Portsmouth",null,"Raymond",null,"Rye",null,"Salem",null,"Sandown",null,"Seabrook",null,"South Hampton",null,"Stratham",null,"Windham"]
[null,null,"Estimate","Margin Of Error","Estimate","Margin Of Error","Estimate","Margin Of Error","Estimate","Margin Of Error","Estimate","Margin Of Error","Estimate","Margin Of Error","Estimate","Margin Of Error","Estimate","Margin Of Error","Estimate","Margin Of Error","Estimate","Margin Of Error","Estimate","Margin Of Error","Estimate","Margin Of Error","Estimate","Margin Of Error","Estimate","Margin Of Error","Estimate","Margin Of Error","Estimate","Margin Of Error","Estimate","Margin Of Error","Estimate","Margin Of Error","Estimate","Margin Of Error","Estimate","Margin Of Error","Estimate","Margin Of Error","Estimate","Margin Of Error","Estimate","Margin Of Error","Estimate","Margin Of Error","Estimate","Margin Of Error","Estimate","Margin Of Error","Estimate","Margin Of Error","Estimate","Margin Of Error","Estimate","Margin Of Error","Estimate","Margin Of Error","Estimate","Margin Of Error","Estimate","Margin Of Error","Estimate","Margin Of Error","Estimate","Margin Of Error","Estimate","Margin Of Error","Estimate","Margin Of Error","Estimate","Margin Of Error"]
[null,"Total:",2738,133,1911,81,1400,111,1520,99,1635,84,1630,111,1672,104,13356,347,928,40,2909,183,6469,226,1608,79,1443,70,3599,167,9516,297,929,42,837,55,2644,151,9045,234,545,68,579,71,334,45,4050,214,1817,114,1853,87,2106,163,2115,115,3088,212,11072,354,4110,177,2921,178,11789,295,2198,139,4671,316,462,63,2812,130,5157,201]
[null,"Single Family",1960,168,1690,83,1190,96,1398,97,1459,96,1221,134,1468,138,6519,322,822,48,2119,248,3041,231,1397,94,1119,102,2378,178,5280,367,816,59,810,60,2073,178,6219,249,453,64,520,64,254,37,1572,191,1466,161,1526,93,1662,169,2004,116,1991,223,4411,297,2662,235,2407,241,7800,327,1924,177,2181,271,372,59,2211,145,4367,231]
[null,"Multi-Family",778,208.31946620515328,175,83.851058431006109,160,69.663476800975133,55,46.086874487211652,138,71.979163651712426,105,61.392181912683313,126,74.141756116239918,6362,538.49233977838537,70,37.067505985701274,416,183.26756396045647,2528,318.75852929764875,145,66.550732527899342,294,94.657276529593858,1035,212.88494545176275,3962,444.79433449629278,107,59.135437767890075,18,25.278449319529077,461,156.49920127591707,2348,282.04432275796654,92,50.892042599997893,56,36.441734316577197,58,35.791060336346561,2327,317.71528134479149,280,123.16655390161731,35,34.073450074801642,101,69.115844782509896,34,32.695565448543633,1083,255.34878108187633,6327,497.92770559590275,929,207.99038439312525,320,176.41995352000293,3305,376.4066949457727,260,131.03816238027761,1462,325.77139223694888,12,26.172504656604801,543,136.0036764208968,790,225.58590381493255]
[null,"Mobile Home & Other",0,21.213203435596427,46,57.974132162542979,50,33.837848631377263,67,31.016124838541646,38,30.083217912982647,304,88.68483523128404,78,44.384682042344295,475,121.2023102090055,36,24.166091947189145,374,138.81282361511128,900,152.9477034806342,66,55.108982933819419,30,32.893768406797051,186,60.876925020897694,274,133.09019498069722,6,14.212670403551895,9,13.601470508735444,110,83.546394296821688,478,113.77170122662314,0,15.556349186104045,3,12.083045973594572,22,18.601075237738275,151,66.708320320631671,71,52.172789842982326,292,64.938432380216881,343,105.57461816175325,77,47.296934361541872,14,28.301943396169811,334,101,519,136.62357044082839,194,149.75313018431368,684,144.3918280236108,14,25.80697580112788,1028,232.48440807933767,78,39.560080889704963,58,57.974132162542979,0,24.041630560342615]
[]
[]
[null,"Calculated B25024. UNITS IN STRUCTURE "]
[null,"Universe:  HOUSING UNITS"]
[null,"Data Set: 2005-2009 American Community Survey 5-Year Estimates"]
[]
[null,null,"Atkinson",null,"Auburn",null,"Brentwood",null,"Candia",null,"Chester",null,"Danville",null,"Deerfield",null,"Derry",null,"East Kingston",null,"Epping",null,"Exeter",null,"Fremont",null,"Greenland",null,"Hampstead",null,"Hampton",null,"Hampton Falls",null,"Kensington",null,"Kingston",null,"Londonderry",null,"New Castle",null,"Newfields",null,"Newington",null,"Newmarket",null,"Newton",null,"North Hampton",null,"Northwood",null,"Nottingham",null,"Plaistow",null,"Portsmouth",null,"Raymond",null,"Rye",null,"Salem",null,"Sandown",null,"Seabrook",null,"South Hampton",null,"Stratham",null,"Windham"]
[null,null,"Estimate","Margin Of Error","Estimate","Margin Of Error","Estimate","Margin Of Error","Estimate","Margin Of Error","Estimate","Margin Of Error","Estimate","Margin Of Error","Estimate","Margin Of Error","Estimate","Margin Of Error","Estimate","Margin Of Error","Estimate","Margin Of Error","Estimate","Margin Of Error","Estimate","Margin Of Error","Estimate","Margin Of Error","Estimate","Margin Of Error","Estimate","Margin Of Error","Estimate","Margin Of Error","Estimate","Margin Of Error","Estimate","Margin Of Error","Estimate","Margin Of Error","Estimate","Margin Of Error","Estimate","Margin Of Error","Estimate","Margin Of Error","Estimate","Margin Of Error","Estimate","Margin Of Error","Estimate","Margin Of Error","Estimate","Margin Of Error","Estimate","Margin Of Error","Estimate","Margin Of Error","Estimate","Margin Of Error","Estimate","Margin Of Error","Estimate","Margin Of Error","Estimate","Margin Of Error","Estimate","Margin Of Error","Estimate","Margin Of Error","Estimate","Margin Of Error","Estimate","Margin Of Error","Estimate","Margin Of Error"]
[null,"Total:",2701,107,1908,129,1017,95,1552,69,1579,100,1525,131,1570,82,13276,378,871,51,2649,157,6563,249,1522,112,1297,92,3590,154,9624,335,859,59,772,57,2501,142,8614,220,442,72,587,67,312,43,4312,216,1755,94,1873,120,2013,160,1886,116,2939,267,9997,360,4292,234,2782,146,11728,361,1928,115,4565,260,326,43,2822,142,4808,189]
[null,"Single Family",1824,156,1843,152,932,84,1462,82,1520,105,1155,124,1384,105,7291,359,701,53,1920,190,2868,228,1277,137,1030,92,2437,196,5164,341,821,60,713,57,2058,152,5910,307,402,68,534,66,255,43,1669,142,1498,97,1353,112,1660,179,1771,148,1639,157,4151,277,2541,188,2253,187,8016,352,1682,99,1784,273,308,45,2136,154,4117,210]
[null,"Multi-Family",877,247.11738101558134,55,232.31444208227779,39,255.65015157437321,34,281.95212359547855,47,256.27719367903183,118,243.04937769926505,109,236.52484013312429,5254,478.57287846262244,98,229.9652147608416,523,239.80617173042066,2604,321.32071206195224,218,183.89671013914307,267,249.85996077803262,905,237.92435772740882,4220,499.39563474263571,24,228.79903845951802,24,255.30765754281637,387,198.91455452027637,2340,340.12203692204361,37,229.34253857494471,35,255.97070144842749,57,230.06955470031232,2502,354.3134205756254,163,184.929716378953,175,252.92884374859267,180,217.42584942917895,79,265.79315265822783,1300,295.14572671817564,5668,467.73496769003702,968,257.11087102648929,470,203.3740396412482,2936,395.43014553774225,194,176.44829270922403,1785,343.08599505080355,18,279.49955277245078,640,273.5324478009876,657,171.99709299868996]
[null,"Mobile Home & Other",0,161.22034611053283,10,115.11733144926528,46,117.63077828527702,56,117.63077828527702,12,115.26057435220423,252,90.426765949026404,77,121.8400590938793,731,175.93180496999398,72,115.91807451816995,206,136.45878498652991,1091,174.52220489095365,27,116.10340218959993,0,161.22034611053283,248,147.75655653811103,240,166.97305171793442,14,114.62983904725679,35,115.7410903698423,56,123.69316876852982,364,152.97058540778355,3,114.10959644131601,18,114.73883387938018,0,161.22034611053283,141,132.23085872821065,94,125.29964086141668,345,144.01388821915754,173,142.20056258679148,36,33.61547262794322,0,161.22034611053283,178,136.45878498652991,783,209.69501663129716,59,121.14866899805379,776,201.37527157027003,52,117.881296226331,996,219.86359407596339,0,161.22034611053283,46,120.16655108639841,34,120.48651376813922]

{"sheet":"ACS_Table_B25032","index":49,"n_rows":119,"n_cols":76,"rows_kept":119,"cut":false,"hidden":true,"merged":[]}
[null,"B25032. TENURE BY UNITS IN STRUCTURE "]
[null,"Universe:  OCCUPIED HOUSING UNITS"]
[null,"Data Set: 2015-2019 American Community Survey 5-Year Estimates"]
[]
[null,null,"Atkinson",null,"Auburn",null,"Brentwood",null,"Candia",null,"Chester",null,"Danville",null,"Deerfield",null,"Derry",null,"East Kingston",null,"Epping",null,"Exeter",null,"Fremont",null,"Greenland",null,"Hampstead",null,"Hampton",null,"Hampton Falls",null,"Kensington",null,"Kingston",null,"Londonderry",null,"New Castle",null,"Newfields",null,"Newington",null,"Newmarket",null,"Newton",null,"North Hampton",null,"Northwood",null,"Nottingham",null,"Plaistow",null,"Portsmouth",null,"Raymond",null,"Rye",null,"Salem",null,"Sandown",null,"Seabrook",null,"South Hampton",null,"Stratham",null,"Windham"]
[null,null,"Estimate","Margin Of Error","Estimate","Margin Of Error","Estimate","Margin Of Error","Estimate","Margin Of Error","Estimate","Margin Of Error","Estimate","Margin Of Error","Estimate","Margin Of Error","Estimate","Margin Of Error","Estimate","Margin Of Error","Estimate","Margin Of Error","Estimate","Margin Of Error","Estimate","Margin Of Error","Estimate","Margin Of Error","Estimate","Margin Of Error","Estimate","Margin Of Error","Estimate","Margin Of Error","Estimate","Margin Of Error","Estimate","Margin Of Error","Estimate","Margin Of Error","Estimate","Margin Of Error","Estimate","Margin Of Error","Estimate","Margin Of Error","Estimate","Margin Of Error","Estimate","Margin Of Error","Estimate","Margin Of Error","Estimate","Margin Of Error","Estimate","Margin Of Error","Estimate","Margin Of Error","Estimate","Margin Of Error","Estimate","Margin Of Error","Estimate","Margin Of Error","Estimate","Margin Of Error","Estimate","Margin Of Error","Estimate","Margin Of Error","Estimate","Margin Of Error","Estimate","Margin Of Error","Estimate","Margin Of Error"]
[null,"Total:",2745,185,1973,91,1533,82,1537,80,1687,101,1685,93,1653,86,12741,353,888,65,2680,155,6542,249,1764,77,1516,85,3573,147,7088,199,909,54,845,53,2411,198,9338,206,436,85,600,67,307,39,4035,177,1853,107,1820,118,1611,107,1900,108,3119,164,10063,259,4112,193,2364,153,11536,318,2229,137,3824,194,302,41,2817,137,5009,196]
[null,"Owner-occupied housing units:",2551,169,1819,147,1400,110,1454,91,1642,95,1430,117,1453,121,8291,386,849,65,2288,170,4479,253,1614,99,1256,86,2789,176,5394,240,828,64,760,46,2031,186,7989,256,391,80,560,66,259,37,2121,197,1487,144,1612,123,1460,120,1767,119,2548,220,5237,245,3224,225,1941,155,9006,348,2025,145,2600,211,264,36,2487,162,4805,205]
[null,"1, detached",2087,162,1809,147,1251,104,1371,99,1537,98,1216,124,1348,117,6247,374,744,61,1842,163,2780,215,1415,112,978,101,2257,168,3972,219,737,73,737,46,1839,193,6275,254,366,79,526,69,239,38,1507,172,1409,144,1270,93,1102,117,1577,124,1879,191,3605,232,2270,222,1760,154,7449,366,1929,167,1645,199,262,36,2036,163,4082,198]
[null,"1, attached",384,111,10,17,93,46,9,14,84,40,98,73,40,34,1031,217,87,27,86,50,225,118,136,54,166,50,220,88,489,114,43,23,10,9,109,54,1010,163,7,8,9,8,15,10,315,84,21,25,68,61,9,14,55,42,376,133,619,131,321,126,66,53,339,118,87,63,216,104,0,11,318,134,430,135]
[null,2,12,20,0,16,0,11,0,11,11,18,11,18,11,17,414,148,5,7,0,16,28,28,0,11,38,28,43,53,150,93,28,27,3,4,0,16,22,20,14,19,22,25,5,9,59,40,19,22,0,11,58,50,43,49,71,75,168,80,85,64,66,83,150,124,0,16,92,79,2,4,14,23,63,73]
[null,"3 or 4",51,36,0,16,0,11,0,11,0,16,0,11,11,17,56,45,0,11,34,40,72,64,22,24,10,15,26,25,141,66,0,11,0,11,11,18,35,25,0,11,0,11,0,11,72,78,8,12,10,15,0,11,16,19,79,49,246,81,11,18,0,16,18,29,9,16,29,33,0,11,0,16,61,55]
[null,"5 to 9",0,16,0,16,9,14,0,11,0,16,0,11,0,11,33,38,0,11,26,30,159,81,0,11,8,13,0,16,239,75,0,11,0,11,0,16,163,74,0,11,0,11,0,11,0,16,0,11,0,11,28,46,0,16,0,16,174,68,18,30,49,36,32,31,0,16,11,16,0,11,65,57,157,124]
[null,"10 to 19",17,27,0,16,0,11,0,11,0,16,0,11,0,11,46,46,0,11,0,16,88,49,0,11,31,46,0,16,141,83,0,11,0,11,0,16,56,38,0,11,3,7,0,11,19,21,0,11,0,11,0,11,0,16,74,85,134,59,0,18,0,16,94,54,0,16,0,16,0,11,0,16,12,20]
[null,"20 to 49",0,16,0,16,11,17,0,11,0,16,0,11,0,11,233,112,0,11,0,16,182,88,0,11,0,11,17,26,168,60,0,11,0,11,0,16,179,76,0,11,0,11,0,11,25,27,0,11,9,15,0,11,0,16,10,17,88,41,15,24,0,16,369,120,0,16,12,20,0,11,10,16,0,18]
[null,"50 or more",0,16,0,16,0,11,0,11,10,15,0,11,0,11,25,39,0,11,0,16,119,65,0,11,0,11,0,16,11,11,0,11,0,11,0,16,11,17,0,11,0,11,0,11,9,13,0,11,0,11,0,11,0,16,0,16,0,21,0,18,0,16,27,32,0,16,0,16,0,11,33,37,0,18]
[null,"Mobile home",0,16,0,16,36,34,74,66,0,16,105,60,43,33,206,78,13,13,300,127,826,146,41,31,25,41,226,67,83,41,20,30,10,8,72,57,238,102,4,6,0,11,0,11,115,49,30,25,255,93,263,80,76,56,59,74,203,79,504,115,0,16,528,177,0,16,595,154,0,11,11,18,0,18]
[null,"Boat, RV, van, etc.",0,16,0,16,0,11,0,11,0,16,0,11,0,11,0,24,0,11,0,16,0,18,0,11,0,11,0,16,0,18,0,11,0,11,0,16,0,21,0,11,0,11,0,11,0,16,0,11,0,11,0,11,0,16,0,16,0,21,0,18,0,16,0,21,0,16,0,16,0,11,0,16,0,18]
[null,"Renter-occupied housing units:",194,106,154,88,133,73,83,62,45,45,255,107,200,79,4450,369,39,27,392,148,2063,256,150,72,260,79,784,169,1694,197,81,38,85,34,380,139,1349,200,45,31,40,20,48,19,1914,180,366,104,208,75,151,72,133,66,571,169,4826,262,888,167,423,174,2530,315,204,103,1224,199,38,26,330,133,204,109]
[null,"1, detached",18,29,84,60,49,50,59,54,0,16,54,40,75,60,283,152,24,21,119,90,164,94,33,30,126,78,124,101,243,91,52,29,77,34,83,68,335,107,21,22,14,12,31,19,77,60,115,65,134,61,86,51,94,54,161,137,468,149,242,127,206,119,509,170,19,32,170,105,29,19,158,107,124,85]
[null,"1, attached",50,47,0,16,22,24,0,11,0,16,18,28,4,7,474,190,10,12,71,89,140,100,9,15,53,38,44,68,138,66,5,9,0,11,89,112,203,80,0,11,0,11,8,7,24,26,9,14,0,11,0,11,0,16,23,39,181,61,98,83,19,30,39,46,20,33,61,37,0,11,21,35,0,18]
[null,2,14,25,59,65,33,52,16,26,0,16,50,48,42,40,306,118,5,8,20,31,76,50,35,34,63,44,129,84,213,99,19,29,0,11,24,39,122,97,3,5,18,12,7,7,210,70,17,20,31,25,32,26,27,31,121,124,501,159,66,64,37,41,147,95,0,16,119,83,9,14,26,30,0,18]
[null,"3 or 4",65,86,11,17,0,11,0,11,45,45,0,11,31,49,370,164,0,11,46,43,454,121,43,45,0,11,17,29,266,103,0,11,0,11,27,44,0,21,9,15,4,6,0,11,348,113,143,81,14,15,0,11,12,19,49,43,1009,189,154,79,21,34,301,130,88,84,14,21,0,11,54,50,0,18]
[null,"5 to 9",0,16,0,16,0,11,8,13,0,16,0,11,0,11,540,158,0,11,38,36,220,124,30,44,18,22,82,71,265,91,0,11,0,11,138,93,140,74,0,11,0,11,0,11,307,124,16,18,8,12,33,50,0,16,64,53,1147,205,147,93,0,16,131,97,0,16,25,29,0,11,13,20,0,18]
[null,"10 to 19",47,77,0,16,0,11,0,11,0,16,0,11,27,18,625,183,0,11,0,16,182,95,0,11,0,11,334,139,226,101,0,11,0,11,0,16,285,99,0,11,0,11,2,4,293,101,34,54,0,11,0,11,0,16,121,111,472,145,51,47,52,82,491,164,63,70,164,69,0,11,0,16,0,18]
[null,"20 to 49",0,16,0,16,12,17,0,11,0,16,0,11,0,11,1484,278,0,11,44,49,174,84,0,11,0,11,10,16,205,70,5,7,0,11,19,30,98,65,0,11,0,11,0,11,491,175,9,14,0,11,0,11,0,16,32,27,536,136,84,48,0,16,652,174,14,23,304,101,0,11,19,29,80,57]
[null,"50 or more",0,16,0,16,0,11,0,11,0,16,0,11,0,11,291,112,0,11,23,29,564,149,0,11,0,11,13,22,122,78,0,11,0,11,0,16,89,54,0,11,0,11,0,11,153,103,0,11,0,11,0,11,0,16,0,16,430,129,11,19,21,33,209,110,0,16,147,57,0,11,0,16,0,18]
[null,"Mobile home",0,16,0,16,17,19,0,11,0,16,96,76,21,23,77,66,0,11,31,37,89,56,0,11,0,11,31,47,16,25,0,11,8,8,0,16,77,65,12,17,4,6,0,11,11,18,23,34,21,23,0,11,0,16,0,16,82,83,35,36,67,105,24,28,0,16,207,92,0,11,23,35,0,18]
[null,"Boat, RV, van, etc.",0,16,0,16,0,11,0,11,0,16,37,57,0,11,0,24,0,11,0,16,0,18,0,11,0,11,0,16,0,18,0,11,0,11,0,16,0,21,0,11,0,11,0,11,0,16,0,11,0,11,0,11,0,16,0,16,0,21,0,18,0,16,27,44,0,16,13,22,0,11,16,26,0,18]
[]
[]
[null,"Calculated B25032. TENURE BY UNITS IN STRUCTURE "]
[null,"Universe:  OCCUPIED HOUSING UNITS"]
[null,"Data Set: 2015-2019 American Community Survey 5-Year Estimates"]
[]
[null,null,"Atkinson",null,"Auburn",null,"Brentwood",null,"Candia",null,"Chester",null,"Danville",null,"Deerfield",null,"Derry",null,"East Kingston",null,"Epping",null,"Exeter",null,"Fremont",null,"Greenland",null,"Hampstead",null,"Hampton",null,"Hampton Falls",null,"Kensington",null,"Kingston",null,"Londonderry",null,"New Castle",null,"Newfields",null,"Newington",null,"Newmarket",null,"Newton",null,"North Hampton",null,"Northwood",null,"Nottingham",null,"Plaistow",null,"Portsmouth",null,"Raymond",null,"Rye",null,"Salem",null,"Sandown",null,"Seabrook",null,"South Hampton",null,"Stratham",null,"Windham"]
[null,null,"Estimate","Margin Of Error","Estimate","Margin Of Error","Estimate","Margin Of Error","Estimate","Margin Of Error","Estimate","Margin Of Error","Estimate","Margin Of Error","Estimate","Margin Of Error","Estimate","Margin Of Error","Estimate","Margin Of Error","Estimate","Margin Of Error","Estimate","Margin Of Error","Estimate","Margin Of Error","Estimate","Margin Of Error","Estimate","Margin Of Error","Estimate","Margin Of Error","Estimate","Margin Of Error","Estimate","Margin Of Error","Estimate","Margin Of Error","Estimate","Margin Of Error","Estimate","Margin Of Error","Estimate","Margin Of Error","Estimate","Margin Of Error","Estimate","Margin Of Error","Estimate","Margin Of Error","Estimate","Margin Of Error","Estimate","Margin Of Error","Estimate","Margin Of Error","Estimate","Margin Of Error","Estimate","Margin Of Error","Estimate","Margin Of Error","Estimate","Margin Of Error","Estimate","Margin Of Error","Estimate","Margin Of Error","Estimate","Margin Of Error","Estimate","Margin Of Error","Estimate","Margin Of Error","Estimate","Margin Of Error"]
[null,"Total:",{"$f":"C7","v":2745},185,{"$f":"E7","v":1973},91,1533,82,1537,80,1687,101,1685,93,1653,86,12741,353,888,65,2680,155,6542,249,1764,77,1516,85,3573,147,7088,199,909,54,845,53,2411,198,9338,206,436,85,600,67,307,39,4035,177,1853,107,1820,118,1611,107,1900,108,{"$f":"BE7","v":3119},164,10063,259,4112,193,2364,153,11536,318,2229,137,3824,194,302,41,2817,137,5009,196]
[null,"Owner-occupied housing units:",2551,169,{"$f":"E8","v":1819},147,1400,110,1454,91,1642,95,1430,117,1453,121,8291,386,849,65,2288,170,4479,253,1614,99,1256,86,2789,176,5394,240,828,64,760,46,2031,186,7989,256,391,80,560,66,259,37,2121,197,1487,144,1612,123,1460,120,1767,119,{"$f":"BE8","v":2548},220,5237,245,3224,225,1941,155,9006,348,2025,145,2600,211,264,36,2487,162,4805,205]
[null,"Single Family",{"$f":"C9","v":2087},162,1809,{"$f":"F9","v":147},1251,104,1371,99,1537,98,1216,124,1348,117,6247,374,744,61,1842,163,2780,215,1415,112,978,101,2257,168,3972,219,737,73,737,46,1839,193,6275,254,366,79,526,69,239,38,1507,172,1409,144,1270,93,1102,117,1577,124,{"$f":"BE9","v":1879},191,3605,232,2270,222,1760,154,7449,366,1929,167,1645,199,262,36,2036,163,4082,198]
[null,"Multi-Family",{"$f":"C10+C11+C12+C13+C14+C15+C16","v":464},{"$f":"SQRT((D10^2)+(D11^2)+(D12^2)+(D13^2)+(D14^2)+(D15^2)+(D16^2))","v":124.55520864259351},{"$f":"E10+E11+E12+E13+E14+E15+E16","v":10},{"$f":"SQRT((F10^2)+(F11^2)+(F12^2)+(F13^2)+(F14^2)+(F15^2)+(F16^2))","v":42.720018726587654},{"$f":"G10+G11+G12+G13+G14+G15+G16","v":113},{"$f":"SQRT((H10^2)+(H11^2)+(H12^2)+(H13^2)+(H14^2)+(H15^2)+(H16^2))","v":55.542776307995261},{"$f":"I10+I11+I12+I13+I14+I15+I16","v":9},{"$f":"SQRT((J10^2)+(J11^2)+(J12^2)+(J13^2)+(J14^2)+(J15^2)+(J16^2))","v":30.364452901377952},{"$f":"K10+K11+K12+K13+K14+K15+K16","v":105},{"$f":"SQRT((L10^2)+(L11^2)+(L12^2)+(L13^2)+(L14^2)+(L15^2)+(L16^2))","v":56.329388422030647},{"$f":"M10+M11+M12+M13+M14+M15+M16","v":109},{"$f":"SQRT((N10^2)+(N11^2)+(N12^2)+(N13^2)+(N14^2)+(N15^2)+(N16^2))","v":79.107521766264426},{"$f":"O10+O11+O12+O13+O14+O15+O16","v":62},{"$f":"SQRT((P10^2)+(P11^2)+(P12^2)+(P13^2)+(P14^2)+(P15^2)+(P16^2))","v":47.095647357266465},{"$f":"Q10+Q11+Q12+Q13+Q14+Q15+Q16","v":1838},{"$f":"SQRT((R10^2)+(R11^2)+(R12^2)+(R13^2)+(R14^2)+(R15^2)+(R16^2))","v":297.72974322361546},{"$f":"S10+S11+S12+S13+S14+S15+S16","v":92},{"$f":"SQRT((T10^2)+(T11^2)+(T12^2)+(T13^2)+(T14^2)+(T15^2)+(T16^2))","v":37.188707963574103},{"$f":"U10+U11+U12+U13+U14+U15+U16","v":146},{"$f":"SQRT((V10^2)+(V11^2)+(V12^2)+(V13^2)+(V14^2)+(V15^2)+(V16^2))","v":77.61443164772902},{"$f":"W10+W11+W12+W13+W14+W15+W16","v":873},{"$f":"SQRT((X10^2)+(X11^2)+(X12^2)+(X13^2)+(X14^2)+(X15^2)+(X16^2))","v":199.33639908456257},{"$f":"Y10+Y11+Y12+Y13+Y14+Y15+Y16","v":158},{"$f":"SQRT((Z10^2)+(Z11^2)+(Z12^2)+(Z13^2)+(Z14^2)+(Z15^2)+(Z16^2))","v":64.007812023221035},{"$f":"AA10+AA11+AA12+AA13+AA14+AA15+AA16","v":253},{"$f":"SQRT((AB10^2)+(AB11^2)+(AB12^2)+(AB13^2)+(AB14^2)+(AB15^2)+(AB16^2))","v":77.691698398220126},{"$f":"AC10+AC11+AC12+AC13+AC14+AC15+AC16","v":306},{"$f":"SQRT((AD10^2)+(AD11^2)+(AD12^2)+(AD13^2)+(AD14^2)+(AD15^2)+(AD16^2))","v":112.34767465328332},{"$f":"AE10+AE11+AE12+AE13+AE14+AE15+AE16","v":1339},{"$f":"SQRT((AF10^2)+(AF11^2)+(AF12^2)+(AF13^2)+(AF14^2)+(AF15^2)+(AF16^2))","v":205.51398979144949},{"$f":"AG10+AG11+AG12+AG13+AG14+AG15+AG16","v":71},{"$f":"SQRT((AH10^2)+(AH11^2)+(AH12^2)+(AH13^2)+(AH14^2)+(AH15^2)+(AH16^2))","v":43.162483709814474},{"$f":"AI10+AI11+AI12+AI13+AI14+AI15+AI16","v":13},{"$f":"SQRT((AJ10^2)+(AJ11^2)+(AJ12^2)+(AJ13^2)+(AJ14^2)+(AJ15^2)+(AJ16^2))","v":26.49528259898354},{"$f":"AK10+AK11+AK12+AK13+AK14+AK15+AK16","v":120},{"$f":"SQRT((AL10^2)+(AL11^2)+(AL12^2)+(AL13^2)+(AL14^2)+(AL15^2)+(AL16^2))","v":67.230945255886439},{"$f":"AM10+AM11+AM12+AM13+AM14+AM15+AM16","v":1476},{"$f":"SQRT((AN10^2)+(AN11^2)+(AN12^2)+(AN13^2)+(AN14^2)+(AN15^2)+(AN16^2))","v":201.44229943087922},{"$f":"AO10+AO11+AO12+AO13+AO14+AO15+AO16","v":21},{"$f":"SQRT((AP10^2)+(AP11^2)+(AP12^2)+(AP13^2)+(AP14^2)+(AP15^2)+(AP16^2))","v":32.093613071762427},{"$f":"AQ10+AQ11+AQ12+AQ13+AQ14+AQ15+AQ16","v":34},{"$f":"SQRT((AR10^2)+(AR11^2)+(AR12^2)+(AR13^2)+(AR14^2)+(AR15^2)+(AR16^2))","v":34.957116585897069},{"$f":"AS10+AS11+AS12+AS13+AS14+AS15+AS16","v":20},{"$f":"SQRT((AT10^2)+(AT11^2)+(AT12^2)+(AT13^2)+(AT14^2)+(AT15^2)+(AT16^2))","v":28.035691537752374},{"$f":"AU10+AU11+AU12+AU13+AU14+AU15+AU16","v":499},{"$f":"SQRT((AV10^2)+(AV11^2)+(AV12^2)+(AV13^2)+(AV14^2)+(AV15^2)+(AV16^2))","v":127.80845042484475},{"$f":"AW10+AW11+AW12+AW13+AW14+AW15+AW16","v":48},{"$f":"SQRT((AX10^2)+(AX11^2)+(AX12^2)+(AX13^2)+(AX14^2)+(AX15^2)+(AX16^2))","v":41.677331968349414},{"$f":"AY10+AY11+AY12+AY13+AY14+AY15+AY16","v":87},{"$f":"SQRT((AZ10^2)+(AZ11^2)+(AZ12^2)+(AZ13^2)+(AZ14^2)+(AZ15^2)+(AZ16^2))","v":68.227560413662744},{"$f":"BA10+BA11+BA12+BA13+BA14+BA15+BA16","v":95},{"$f":"SQRT((BB10^2)+(BB11^2)+(BB12^2)+(BB13^2)+(BB14^2)+(BB15^2)+(BB16^2))","v":72.773621594641014},{"$f":"BC10+BC11+BC12+BC13+BC14+BC15+BC16","v":114},{"$f":"SQRT((BD10^2)+(BD11^2)+(BD12^2)+(BD13^2)+(BD14^2)+(BD15^2)+(BD16^2))","v":74.498322128756698},{"$f":"BE10+BE11+BE12+BE13+BE14+BE15+BE16","v":610},{"$f":"SQRT((BF10^2)+(BF11^2)+(BF12^2)+(BF13^2)+(BF14^2)+(BF15^2)+(BF16^2))","v":183.6872341780996},{"$f":"BG10+BG11+BG12+BG13+BG14+BG15+BG16","v":1429},{"$f":"SQRT((BH10^2)+(BH11^2)+(BH12^2)+(BH13^2)+(BH14^2)+(BH15^2)+(BH16^2))","v":200.8706051168264},{"$f":"BI10+BI11+BI12+BI13+BI14+BI15+BI16","v":450},{"$f":"SQRT((BJ10^2)+(BJ11^2)+(BJ12^2)+(BJ13^2)+(BJ14^2)+(BJ15^2)+(BJ16^2))","v":149.73309587395835},{"$f":"BK10+BK11+BK12+BK13+BK14+BK15+BK16","v":181},{"$f":"SQRT((BL10^2)+(BL11^2)+(BL12^2)+(BL13^2)+(BL14^2)+(BL15^2)+(BL16^2))","v":109.62663909835054},{"$f":"BM10+BM11+BM12+BM13+BM14+BM15+BM16","v":1029},{"$f":"SQRT((BN10^2)+(BN11^2)+(BN12^2)+(BN13^2)+(BN14^2)+(BN15^2)+(BN16^2))","v":222.35557110178283},{"$f":"BO10+BO11+BO12+BO13+BO14+BO15+BO16","v":96},{"$f":"SQRT((BP10^2)+(BP11^2)+(BP12^2)+(BP13^2)+(BP14^2)+(BP15^2)+(BP16^2))","v":74.195687206198173},{"$f":"BQ10+BQ11+BQ12+BQ13+BQ14+BQ15+BQ16","v":360},{"$f":"SQRT((BR10^2)+(BR11^2)+(BR12^2)+(BR13^2)+(BR14^2)+(BR15^2)+(BR16^2))","v":138.97481786280562},{"$f":"BS10+BS11+BS12+BS13+BS14+BS15+BS16","v":2},{"$f":"SQRT((BT10^2)+(BT11^2)+(BT12^2)+(BT13^2)+(BT14^2)+(BT15^2)+(BT16^2))","v":27.239676943752471},{"$f":"BU10+BU11+BU12+BU13+BU14+BU15+BU16","v":440},{"$f":"SQRT((BV10^2)+(BV11^2)+(BV12^2)+(BV13^2)+(BV14^2)+(BV15^2)+(BV16^2))","v":154.50242716540086},{"$f":"BW10+BW11+BW12+BW13+BW14+BW15+BW16","v":723},{"$f":"SQRT((BX10^2)+(BX11^2)+(BX12^2)+(BX13^2)+(BX14^2)+(BX15^2)+(BX16^2))","v":207.37164704944598}]
[null,"Mobile Home & Other",{"$f":"C17+C18","v":0},{"$f":"SQRT((D17^2)+(D18^2))","v":22.627416997969522},{"$f":"E17+E18","v":0},{"$f":"SQRT((F17^2)+(F18^2))","v":22.627416997969522},{"$f":"G17+G18","v":36},{"$f":"SQRT((H17^2)+(H18^2))","v":35.735136770411273},{"$f":"I17+I18","v":74},{"$f":"SQRT((J17^2)+(J18^2))","v":66.91038783328041},{"$f":"K17+K18","v":0},{"$f":"SQRT((L17^2)+(L18^2))","v":22.627416997969522},{"$f":"M17+M18","v":105},{"$f":"SQRT((N17^2)+(N18^2))","v":61},{"$f":"O17+O18","v":43},{"$f":"SQRT((P17^2)+(P18^2))","v":34.785054261852174},{"$f":"Q17+Q18","v":206},{"$f":"SQRT((R17^2)+(R18^2))","v":81.60882305241266},{"$f":"S17+S18","v":13},{"$f":"SQRT((T17^2)+(T18^2))","v":17.029386365926403},{"$f":"U17+U18","v":300},{"$f":"SQRT((V17^2)+(V18^2))","v":128.00390619039717},{"$f":"W17+W18","v":826},{"$f":"SQRT((X17^2)+(X18^2))","v":147.10540438746634},{"$f":"Y17+Y18","v":41},{"$f":"SQRT((Z17^2)+(Z18^2))","v":32.893768406797051},{"$f":"AA17+AA18","v":25},{"$f":"SQRT((AB17^2)+(AB18^2))","v":42.449970553582247},{"$f":"AC17+AC18","v":226},{"$f":"SQRT((AD17^2)+(AD18^2))","v":68.8839603971781},{"$f":"AE17+AE18","v":83},{"$f":"SQRT((AF17^2)+(AF18^2))","v":44.77722635447622},{"$f":"AG17+AG18","v":20},{"$f":"SQRT((AH17^2)+(AH18^2))","v":31.953090617340916},{"$f":"AI17+AI18","v":10},{"$f":"SQRT((AJ17^2)+(AJ18^2))","v":13.601470508735444},{"$f":"AK17+AK18","v":72},{"$f":"SQRT((AL17^2)+(AL18^2))","v":59.203040462462738},{"$f":"AM17+AM18","v":238},{"$f":"SQRT((AN17^2)+(AN18^2))","v":104.1393297462587},{"$f":"AO17+AO18","v":4},{"$f":"SQRT((AP17^2)+(AP18^2))","v":12.529964086141668},{"$f":"AQ17+AQ18","v":0},{"$f":"SQRT((AR17^2)+(AR18^2))","v":15.556349186104045},{"$f":"AS17+AS18","v":0},{"$f":"SQRT((AT17^2)+(AT18^2))","v":15.556349186104045},{"$f":"AU17+AU18","v":115},{"$f":"SQRT((AV17^2)+(AV18^2))","v":51.546095875439491},{"$f":"AW17+AW18","v":30},{"$f":"SQRT((AX17^2)+(AX18^2))","v":27.313000567495326},{"$f":"AY17+AY18","v":255},{"$f":"SQRT((AZ17^2)+(AZ18^2))","v":93.648278147545241},{"$f":"BA17+BA18","v":263},{"$f":"SQRT((BB17^2)+(BB18^2))","v":80.752708932889675},{"$f":"BC17+BC18","v":76},{"$f":"SQRT((BD17^2)+(BD18^2))","v":58.240879114244144},{"$f":"BE17+BE18","v":59},{"$f":"SQRT((BF17^2)+(BF18^2))","v":75.709972922990801},{"$f":"BG17+BG18","v":203},{"$f":"SQRT((BH17^2)+(BH18^2))","v":81.743501270743224},{"$f":"BI17+BI18","v":504},{"$f":"SQRT((BJ17^2)+(BJ18^2))","v":116.40017182117903},{"$f":"BK17+BK18","v":0},{"$f":"SQRT((BL17^2)+(BL18^2))","v":22.627416997969522},{"$f":"BM17+BM18","v":528},{"$f":"SQRT((BN17^2)+(BN18^2))","v":178.24140933015536},{"$f":"BO17+BO18","v":0},{"$f":"SQRT((BP17^2)+(BP18^2))","v":22.627416997969522},{"$f":"BQ17+BQ18","v":595},{"$f":"SQRT((BR17^2)+(BR18^2))","v":154.82893786369524},{"$f":"BS17+BS18","v":0},{"$f":"SQRT((BT17^2)+(BT18^2))","v":15.556349186104045},{"$f":"BU17+BU18","v":11},{"$f":"SQRT((BV17^2)+(BV18^2))","v":24.083189157584592},{"$f":"BW17+BW18","v":0},{"$f":"SQRT((BX17^2)+(BX18^2))","v":25.45584412271571}]
[null,"Renter-occupied housing units:",{"$f":"C19","v":194},{"$f":"D19","v":106},{"$f":"E19","v":154},88,133,73,83,62,45,45,255,107,200,79,4450,369,39,27,392,148,2063,256,150,72,260,79,784,169,1694,197,81,38,85,34,380,139,1349,200,45,31,40,20,48,19,1914,180,366,104,208,75,151,72,133,66,{"$f":"BE19","v":571},169,4826,262,888,167,423,174,2530,315,204,103,1224,199,38,26,330,133,204,109]
[null,"Single Family",{"$f":"C20","v":18},{"$f":"D20","v":29},{"$f":"E20","v":84},60,49,50,59,54,0,16,54,40,75,60,283,152,24,21,119,90,164,94,33,30,126,78,124,101,243,91,52,29,77,34,83,68,335,107,21,22,14,12,31,19,77,60,115,65,134,61,86,51,94,54,{"$f":"BE20","v":161},137,468,149,242,127,206,119,509,170,19,32,170,105,29,19,158,107,124,85]
[null,"Multi-Family",{"$f":"C21+C22+C23+C24+C25+C26+C27","v":176},{"$f":"SQRT((D21^2)+(D22^2)+(D23^2)+(D24^2)+(D25^2)+(D26^2)+(D27^2))","v":130.10380470993152},{"$f":"E21+E22+E23+E24+E25+E26+E27","v":70},{"$f":"SQRT((F21^2)+(F22^2)+(F23^2)+(F24^2)+(F25^2)+(F26^2)+(F27^2))","v":76.118328935940255},{"$f":"G21+G22+G23+G24+G25+G26+G27","v":67},{"$f":"SQRT((H21^2)+(H22^2)+(H23^2)+(H24^2)+(H25^2)+(H26^2)+(H27^2))","v":63.66317616958802},{"$f":"I21+I22+I23+I24+I25+I26+I27","v":24},{"$f":"SQRT((J21^2)+(J22^2)+(J23^2)+(J24^2)+(J25^2)+(J26^2)+(J27^2))","v":38.078865529319543},{"$f":"K21+K22+K23+K24+K25+K26+K27","v":45},{"$f":"SQRT((L21^2)+(L22^2)+(L23^2)+(L24^2)+(L25^2)+(L26^2)+(L27^2))","v":59.674114991342769},{"$f":"M21+M22+M23+M24+M25+M26+M27","v":68},{"$f":"SQRT((N21^2)+(N22^2)+(N23^2)+(N24^2)+(N25^2)+(N26^2)+(N27^2))","v":60.770058416953987},{"$f":"O21+O22+O23+O24+O25+O26+O27","v":104},{"$f":"SQRT((P21^2)+(P22^2)+(P23^2)+(P24^2)+(P25^2)+(P26^2)+(P27^2))","v":68.825867230279059},{"$f":"Q21+Q22+Q23+Q24+Q25+Q26+Q27","v":4090},{"$f":"SQRT((R21^2)+(R22^2)+(R23^2)+(R24^2)+(R25^2)+(R26^2)+(R27^2))","v":474.55347433139713},{"$f":"S21+S22+S23+S24+S25+S26+S27","v":15},{"$f":"SQRT((T21^2)+(T22^2)+(T23^2)+(T24^2)+(T25^2)+(T26^2)+(T27^2))","v":28.513154858766505},{"$f":"U21+U22+U23+U24+U25+U26+U27","v":242},{"$f":"SQRT((V21^2)+(V22^2)+(V23^2)+(V24^2)+(V25^2)+(V26^2)+(V27^2))","v":124.59935794377112},{"$f":"W21+W22+W23+W24+W25+W26+W27","v":1810},{"$f":"SQRT((X21^2)+(X22^2)+(X23^2)+(X24^2)+(X25^2)+(X26^2)+(X27^2))","v":284.2516490717336},{"$f":"Y21+Y22+Y23+Y24+Y25+Y26+Y27","v":117},{"$f":"SQRT((Z21^2)+(Z22^2)+(Z23^2)+(Z24^2)+(Z25^2)+(Z26^2)+(Z27^2))","v":75.531450403126769},{"$f":"AA21+AA22+AA23+AA24+AA25+AA26+AA27","v":134},{"$f":"SQRT((AB21^2)+(AB22^2)+(AB23^2)+(AB24^2)+(AB25^2)+(AB26^2)+(AB27^2))","v":65.939366087338144},{"$f":"AC21+AC22+AC23+AC24+AC25+AC26+AC27","v":629},{"$f":"SQRT((AD21^2)+(AD22^2)+(AD23^2)+(AD24^2)+(AD25^2)+(AD26^2)+(AD27^2))","v":193.96649195157394},{"$f":"AE21+AE22+AE23+AE24+AE25+AE26+AE27","v":1435},{"$f":"SQRT((AF21^2)+(AF22^2)+(AF23^2)+(AF24^2)+(AF25^2)+(AF26^2)+(AF27^2))","v":232.87765028014175},{"$f":"AG21+AG22+AG23+AG24+AG25+AG26+AG27","v":29},{"$f":"SQRT((AH21^2)+(AH22^2)+(AH23^2)+(AH24^2)+(AH25^2)+(AH26^2)+(AH27^2))","v":38.144462245521304},{"$f":"AI21+AI22+AI23+AI24+AI25+AI26+AI27","v":0},{"$f":"SQRT((AJ21^2)+(AJ22^2)+(AJ23^2)+(AJ24^2)+(AJ25^2)+(AJ26^2)+(AJ27^2))","v":29.103264421710495},{"$f":"AK21+AK22+AK23+AK24+AK25+AK26+AK27","v":297},{"$f":"SQRT((AL21^2)+(AL22^2)+(AL23^2)+(AL24^2)+(AL25^2)+(AL26^2)+(AL27^2))","v":161.4372943281694},{"$f":"AM21+AM22+AM23+AM24+AM25+AM26+AM27","v":937},{"$f":"SQRT((AN21^2)+(AN22^2)+(AN23^2)+(AN24^2)+(AN25^2)+(AN26^2)+(AN27^2))","v":196.64180633832675},{"$f":"AO21+AO22+AO23+AO24+AO25+AO26+AO27","v":12},{"$f":"SQRT((AP21^2)+(AP22^2)+(AP23^2)+(AP24^2)+(AP25^2)+(AP26^2)+(AP27^2))","v":29.240383034426891},{"$f":"AQ21+AQ22+AQ23+AQ24+AQ25+AQ26+AQ27","v":22},{"$f":"SQRT((AR21^2)+(AR22^2)+(AR23^2)+(AR24^2)+(AR25^2)+(AR26^2)+(AR27^2))","v":28.0178514522438},{"$f":"AS21+AS22+AS23+AS24+AS25+AS26+AS27","v":17},{"$f":"SQRT((AT21^2)+(AT22^2)+(AT23^2)+(AT24^2)+(AT25^2)+(AT26^2)+(AT27^2))","v":24.454038521274967},{"$f":"AU21+AU22+AU23+AU24+AU25+AU26+AU27","v":1826},{"$f":"SQRT((AV21^2)+(AV22^2)+(AV23^2)+(AV24^2)+(AV25^2)+(AV26^2)+(AV27^2))","v":291.81500989496755},{"$f":"AW21+AW22+AW23+AW24+AW25+AW26+AW27","v":228},{"$f":"SQRT((AX21^2)+(AX22^2)+(AX23^2)+(AX24^2)+(AX25^2)+(AX26^2)+(AX27^2))","v":103.50845376103345},{"$f":"AY21+AY22+AY23+AY24+AY25+AY26+AY27","v":53},{"$f":"SQRT((AZ21^2)+(AZ22^2)+(AZ23^2)+(AZ24^2)+(AZ25^2)+(AZ26^2)+(AZ27^2))","v":38.444765573482172},{"$f":"BA21+BA22+BA23+BA24+BA25+BA26+BA27","v":65},{"$f":"SQRT((BB21^2)+(BB22^2)+(BB23^2)+(BB24^2)+(BB25^2)+(BB26^2)+(BB27^2))","v":61.489836558572833},{"$f":"BC21+BC22+BC23+BC24+BC25+BC26+BC27","v":39},{"$f":"SQRT((BD21^2)+(BD22^2)+(BD23^2)+(BD24^2)+(BD25^2)+(BD26^2)+(BD27^2))","v":51.009802979427398},{"$f":"BE21+BE22+BE23+BE24+BE25+BE26+BE27","v":410},{"$f":"SQRT((BF21^2)+(BF22^2)+(BF23^2)+(BF24^2)+(BF25^2)+(BF26^2)+(BF27^2))","v":186.71100663860179},{"$f":"BG21+BG22+BG23+BG24+BG25+BG26+BG27","v":4276},{"$f":"SQRT((BH21^2)+(BH22^2)+(BH23^2)+(BH24^2)+(BH25^2)+(BH26^2)+(BH27^2))","v":403.6211094578677},{"$f":"BI21+BI22+BI23+BI24+BI25+BI26+BI27","v":611},{"$f":"SQRT((BJ21^2)+(BJ22^2)+(BJ23^2)+(BJ24^2)+(BJ25^2)+(BJ26^2)+(BJ27^2))","v":175.35392781457733},{"$f":"BK21+BK22+BK23+BK24+BK25+BK26+BK27","v":150},{"$f":"SQRT((BL21^2)+(BL22^2)+(BL23^2)+(BL24^2)+(BL25^2)+(BL26^2)+(BL27^2))","v":109.82713690158731},{"$f":"BM21+BM22+BM23+BM24+BM25+BM26+BM27","v":1970},{"$f":"SQRT((BN21^2)+(BN22^2)+(BN23^2)+(BN24^2)+(BN25^2)+(BN26^2)+(BN27^2))","v":326.68333290818498},{"$f":"BO21+BO22+BO23+BO24+BO25+BO26+BO27","v":185},{"$f":"SQRT((BP21^2)+(BP22^2)+(BP23^2)+(BP24^2)+(BP25^2)+(BP26^2)+(BP27^2))","v":119.75808949711914},{"$f":"BQ21+BQ22+BQ23+BQ24+BQ25+BQ26+BQ27","v":834},{"$f":"SQRT((BR21^2)+(BR22^2)+(BR23^2)+(BR24^2)+(BR25^2)+(BR26^2)+(BR27^2))","v":166.58631396366269},{"$f":"BS21+BS22+BS23+BS24+BS25+BS26+BS27","v":9},{"$f":"SQRT((BT21^2)+(BT22^2)+(BT23^2)+(BT24^2)+(BT25^2)+(BT26^2)+(BT27^2))","v":30.364452901377952},{"$f":"BU21+BU22+BU23+BU24+BU25+BU26+BU27","v":133},{"$f":"SQRT((BV21^2)+(BV22^2)+(BV23^2)+(BV24^2)+(BV25^2)+(BV26^2)+(BV27^2))","v":79.862381632405629},{"$f":"BW21+BW22+BW23+BW24+BW25+BW26+BW27","v":80},{"$f":"SQRT((BX21^2)+(BX22^2)+(BX23^2)+(BX24^2)+(BX25^2)+(BX26^2)+(BX27^2))","v":72.062472896785877}]
[null,"Mobile Home & Other",{"$f":"C28+C29","v":0},{"$f":"SQRT((D28^2)+(D29^2))","v":22.627416997969522},{"$f":"E28+E29","v":0},{"$f":"SQRT((F28^2)+(F29^2))","v":22.627416997969522},{"$f":"G28+G29","v":17},{"$f":"SQRT((H28^2)+(H29^2))","v":21.95449840010015},{"$f":"I28+I29","v":0},{"$f":"SQRT((J28^2)+(J29^2))","v":15.556349186104045},{"$f":"K28+K29","v":0},{"$f":"SQRT((L28^2)+(L29^2))","v":22.627416997969522},{"$f":"M28+M29","v":133},{"$f":"SQRT((N28^2)+(N29^2))","v":95},{"$f":"O28+O29","v":21},{"$f":"SQRT((P28^2)+(P29^2))","v":25.495097567963924},{"$f":"Q28+Q29","v":77},{"$f":"SQRT((R28^2)+(R29^2))","v":70.228199464317754},{"$f":"S28+S29","v":0},{"$f":"SQRT((T28^2)+(T29^2))","v":15.556349186104045},{"$f":"U28+U29","v":31},{"$f":"SQRT((V28^2)+(V29^2))","v":40.311288741492746},{"$f":"W28+W29","v":89},{"$f":"SQRT((X28^2)+(X29^2))","v":58.821764679410968},{"$f":"Y28+Y29","v":0},{"$f":"SQRT((Z28^2)+(Z29^2))","v":15.556349186104045},{"$f":"AA28+AA29","v":0},{"$f":"SQRT((AB28^2)+(AB29^2))","v":15.556349186104045},{"$f":"AC28+AC29","v":31},{"$f":"SQRT((AD28^2)+(AD29^2))","v":49.648766349225639},{"$f":"AE28+AE29","v":16},{"$f":"SQRT((AF28^2)+(AF29^2))","v":30.805843601498726},{"$f":"AG28+AG29","v":0},{"$f":"SQRT((AH28^2)+(AH29^2))","v":15.556349186104045},{"$f":"AI28+AI29","v":8},{"$f":"SQRT((AJ28^2)+(AJ29^2))","v":13.601470508735444},{"$f":"AK28+AK29","v":0},{"$f":"SQRT((AL28^2)+(AL29^2))","v":22.627416997969522},{"$f":"AM28+AM29","v":77},{"$f":"SQRT((AN28^2)+(AN29^2))","v":68.308125431752259},{"$f":"AO28+AO29","v":12},{"$f":"SQRT((AP28^2)+(AP29^2))","v":20.248456731316587},{"$f":"AQ28+AQ29","v":4},{"$f":"SQRT((AR28^2)+(AR29^2))","v":12.529964086141668},{"$f":"AS28+AS29","v":0},{"$f":"SQRT((AT28^2)+(AT29^2))","v":15.556349186104045},{"$f":"AU28+AU29","v":11},{"$f":"SQRT((AV28^2)+(AV29^2))","v":24.083189157584592},{"$f":"AW28+AW29","v":23},{"$f":"SQRT((AX28^2)+(AX29^2))","v":35.735136770411273},{"$f":"AY28+AY29","v":21},{"$f":"SQRT((AZ28^2)+(AZ29^2))","v":25.495097567963924},{"$f":"BA28+BA29","v":0},{"$f":"SQRT((BB28^2)+(BB29^2))","v":15.556349186104045},{"$f":"BC28+BC29","v":0},{"$f":"SQRT((BD28^2)+(BD29^2))","v":22.627416997969522},{"$f":"BE28+BE29","v":0},{"$f":"SQRT((BF28^2)+(BF29^2))","v":22.627416997969522},{"$f":"BG28+BG29","v":82},{"$f":"SQRT((BH28^2)+(BH29^2))","v":85.615419172015976},{"$f":"BI28+BI29","v":35},{"$f":"SQRT((BJ28^2)+(BJ29^2))","v":40.249223594996216},{"$f":"BK28+BK29","v":67},{"$f":"SQRT((BL28^2)+(BL29^2))","v":106.21205204683694},{"$f":"BM28+BM29","v":51},{"$f":"SQRT((BN28^2)+(BN29^2))","v":52.153619241621193},{"$f":"BO28+BO29","v":0},{"$f":"SQRT((BP28^2)+(BP29^2))","v":22.627416997969522},{"$f":"BQ28+BQ29","v":220},{"$f":"SQRT((BR28^2)+(BR29^2))","v":94.593868723083744},{"$f":"BS28+BS29","v":0},{"$f":"SQRT((BT28^2)+(BT29^2))","v":15.556349186104045},{"$f":"BU28+BU29","v":39},{"$f":"SQRT((BV28^2)+(BV29^2))","v":43.600458713183279},{"$f":"BW28+BW29","v":0},{"$f":"SQRT((BX28^2)+(BX29^2))","v":25.45584412271571}]
[]
[]
[]
[]
[]
[]
[]
[]
[]
[]
[]
[]
[]
[]
[]
[]
[]
[]
[]
[]
[]
[]
[]
[]
[]
[]
[]
[]
[]
[]
[]
[]
[]
[]
[]
[]
[]
[]
[]
[]
[null,"Calculated B25032. TENURE BY UNITS IN STRUCTURE "]
[null,"Universe:  OCCUPIED HOUSING UNITS"]
[null,"Data Set: 2010-2014 American Community Survey 5-Year Estimates"]
[]
[null,null,"Atkinson",null,"Auburn",null,"Brentwood",null,"Candia",null,"Chester",null,"Danville",null,"Deerfield",null,"Derry",null,"East Kingston",null,"Epping",null,"Exeter",null,"Fremont",null,"Greenland",null,"Hampstead",null,"Hampton",null,"Hampton Falls",null,"Kensington",null,"Kingston",null,"Londonderry",null,"New Castle",null,"Newfields",null,"Newington",null,"Newmarket",null,"Newton",null,"North Hampton",null,"Northwood",null,"Nottingham",null,"Plaistow",null,"Portsmouth",null,"Raymond",null,"Rye",null,"Salem",null,"Sandown",null,"Seabrook",null,"South Hampton",null,"Stratham",null,"Windham"]
[null,null,"Estimate","Margin Of Error","Estimate","Margin Of Error","Estimate","Margin Of Error","Estimate","Margin Of Error","Estimate","Margin Of Error","Estimate","Margin Of Error","Estimate","Margin Of Error","Estimate","Margin Of Error","Estimate","Margin Of Error","Estimate","Margin Of Error","Estimate","Margin Of Error","Estimate","Margin Of Error","Estimate","Margin Of Error","Estimate","Margin Of Error","Estimate","Margin Of Error","Estimate","Margin Of Error","Estimate","Margin Of Error","Estimate","Margin Of Error","Estimate","Margin Of Error","Estimate","Margin Of Error","Estimate","Margin Of Error","Estimate","Margin Of Error","Estimate","Margin Of Error","Estimate","Margin Of Error","Estimate","Margin Of Error","Estimate","Margin Of Error","Estimate","Margin Of Error","Estimate","Margin Of Error","Estimate","Margin Of Error","Estimate","Margin Of Error","Estimate","Margin Of Error","Estimate","Margin Of Error","Estimate","Margin Of Error","Estimate","Margin Of Error","Estimate","Margin Of Error","Estimate","Margin Of Error","Estimate","Margin Of Error"]
[null,"Total:",2597,115,1830,82,1400,111,1466,88,1612,80,1537,101,1540,71,12934,350,882,46,2604,154,6248,214,1608,79,1397,55,3447,156,6618,217,902,46,746,53,2442,126,8750,224,451,65,574,71,314,47,3816,203,1747,101,1735,82,1676,118,1824,108,2949,182,10325,302,3864,150,2315,152,11093,285,2130,134,3837,258,306,49,2781,123,4987,197]
[null,"Owner-occupied housing units:",2395,123,1660,73,1148,138,1427,91,1487,100,1340,101,1431,108,8244,408,804,59,2236,215,4262,269,1416,112,1206,91,2758,200,4694,303,776,63,692,57,2067,180,7591,258,347,60,523,62,222,38,2036,198,1387,125,1581,105,1460,121,1748,106,2281,256,5452,291,2954,205,1950,183,8451,334,1956,152,2419,259,254,41,2584,163,4611,247]
[null,"Single Family",1861,161,1629,73,1071,130,1344,83,1369,94,1051,111,1308,120,5995,354,742,58,1812,202,2746,212,1286,110,1026,96,2168,164,3619,246,725,59,674,59,1819,182,5979,250,339,58,500,62,212,37,1390,171,1257,134,1353,97,1173,121,1674,111,1747,198,3833,260,2201,217,1778,213,6879,331,1804,161,1579,243,247,42,2094,138,3998,247]
[null,"Multi-Family",534,166.50825805346713,18,40.074929819027759,62,39.204591567825318,16,33.555923471125034,86,55.045435778091537,73,53.981478305063121,77,58.838762733422598,1923,276.70019877116101,47,34.885527085024819,145,95.210293561148106,774,151.05297084135751,87,52.249401910452526,150,62.689712074629917,404,113.03981599418853,980,170.00294115102832,45,36.510272527057367,12,29.103264421710495,204,88.238313673823114,1326,204.73397373176735,8,25.88435821108957,20,27.459060435491963,10,26.267851073127396,533,139.57077057894321,59,42.871902220452036,0,29.103264421710495,21,36.083237105337432,25,31.575306807693888,520,174.83992679019286,1362,249.5395760195164,373,120.82218339361361,115,88.204308284799779,1104,197.44619520264249,138,104.95237014951115,301,149.50585272824605,7,25.416530054277668,432,124.3583531573171,613,203.14280691178806]
[null,"Mobile Home & Other",0,21.213203435596427,13,24.207436873820409,15,18.601075237738275,67,31.016124838541646,32,29.154759474226502,216,78.771822373231913,46,31.953090617340916,326,106.51291001564083,15,13.45362404707371,279,127.88275880665071,742,145,43,45.354161881794269,30,32.893768406797051,186,60.876925020897694,95,60.440052945046304,6,14.212670403551895,6,13.038404810405298,44,43.08131845707603,286,101,0,15.556349186104045,3,12.083045973594572,0,15.556349186104045,113,54.120236510939236,71,52.172789842982326,228,59.033888572581766,266,89.677198885781436,49,37.643060449437421,14,28.301943396169811,257,96.104110213871706,380,111.00450441310929,57,85.328775919967356,468,111.80339887498948,14,25.80697580112788,539,161.69724796668618,0,15.556349186104045,58,57.974132162542979,0,24.041630560342615]
[null,"Renter-occupied housing units:",202,108,170,69,252,69,39,39,125,71,197,68,109,71,4690,381,78,39,368,168,1986,226,192,77,191,85,689,159,1924,278,126,46,54,22,375,142,1159,205,104,45,51,32,92,33,1780,197,360,105,154,72,216,99,76,39,668,179,4873,295,910,166,365,177,2642,297,174,100,1418,222,52,26,197,101,376,161]
[null,"Single Family",33,36,44,38,119,61,0,11,67,65,85,58,51,51,370,113,43,35,109,80,213,113,111,62,47,31,58,49,461,168,64,33,45,20,118,99,164,91,43,25,15,13,42,21,182,104,163,94,110,68,140,81,39,27,122,85,460,142,278,137,271,150,546,165,52,50,202,135,48,26,86,69,242,143]
[null,"Multi-Family",169,106.81292056675541,126,68.227560413662744,98,63.071388124885914,39,42.953463189829058,52,59.833101206606365,32,41.255302689472536,49,57.262553208881634,4196,475.80983596390689,14,30.838287890218549,218,136.03308421115798,1697,282.3756363427978,58,47.180504448341793,144,81.240384046359608,631,185.89782139659411,1439,254.59772190654024,62,53.944415837044708,6,25.278449319529077,257,127.95702403541588,833,188.88091486436633,61,46.636895265444075,36,34.292856398964496,42,35.791060336346561,1560,267.10297639674479,197,109.94998863119541,35,34.073450074801642,47,39.11521443121589,9,27.459060435491963,546,204.09801566894274,4387,414.57206852367659,493,163.75286257039906,94,101.06433594498111,2047,302.78044851013743,122,97.903013232484327,964,242.7282431032697,4,27.604347483684521,111,71.847059786744225,134,96.524608261313347]
[null,"Mobile Home & Other",0,21.213203435596427,0,21.213203435596427,35,29.154759474226502,0,15.556349186104045,6,14.212670403551895,80,58.051701094799967,9,18.601075237738275,124,75.584389922787622,21,20.248456731316587,41,47.434164902525687,76,56.612719418872643,23,36.687872655688281,0,15.556349186104045,0,21.213203435596427,24,43.46262762420146,0,15.556349186104045,3,11.704699910719626,0,21.213203435596427,162,92.195444572928878,0,15.556349186104045,0,15.556349186104045,8,16.278820596099706,38,46.486557196677836,0,15.556349186104045,9,17.804493814764857,29,45.354161881794269,28,32.893768406797051,0,21.213203435596427,26,35.227829907617071,139,97.49358953285082,0,21.213203435596427,49,60.406953242155822,0,21.213203435596427,252,131.85598204101322,0,15.556349186104045,0,21.213203435596427,0,24.041630560342615]
[]
[]
[]
[null,"Calculated B25032. TENURE BY UNITS IN STRUCTURE "]
[null,"Universe:  OCCUPIED HOUSING UNITS"]
[null,"Data Set: 2005-2009 American Community Survey 5-Year Estimates"]
[]
[null,null,"Atkinson",null,"Auburn",null,"Brentwood",null,"Candia",null,"Chester",null,"Danville",null,"Deerfield",null,"Derry",null,"East Kingston",null,"Epping",null,"Exeter",null,"Fremont",null,"Greenland",null,"Hampstead",null,"Hampton",null,"Hampton Falls",null,"Kensington",null,"Kingston",null,"Londonderry",null,"New Castle",null,"Newfields",null,"Newington",null,"Newmarket",null,"Newton",null,"North Hampton",null,"Northwood",null,"Nottingham",null,"Plaistow",null,"Portsmouth",null,"Raymond",null,"Rye",null,"Salem",null,"Sandown",null,"Seabrook",null,"South Hampton",null,"Stratham",null,"Windham"]
[null,null,"Estimate","Margin Of Error","Estimate","Margin Of Error","Estimate","Margin Of Error","Estimate","Margin Of Error","Estimate","Margin Of Error","Estimate","Margin Of Error","Estimate","Margin Of Error","Estimate","Margin Of Error","Estimate","Margin Of Error","Estimate","Margin Of Error","Estimate","Margin Of Error","Estimate","Margin Of Error","Estimate","Margin Of Error","Estimate","Margin Of Error","Estimate","Margin Of Error","Estimate","Margin Of Error","Estimate","Margin Of Error","Estimate","Margin Of Error","Estimate","Margin Of Error","Estimate","Margin Of Error","Estimate","Margin Of Error","Estimate","Margin Of Error","Estimate","Margin Of Error","Estimate","Margin Of Error","Estimate","Margin Of Error","Estimate","Margin Of Error","Estimate","Margin Of Error","Estimate","Margin Of Error","Estimate","Margin Of Error","Estimate","Margin Of Error","Estimate","Margin Of Error","Estimate","Margin Of Error","Estimate","Margin Of Error","Estimate","Margin Of Error","Estimate","Margin Of Error","Estimate","Margin Of Error","Estimate","Margin Of Error"]
[null,"Total:",2613,114,1763,97,1017,95,1552,69,1528,81,1451,105,1417,91,12592,332,846,51,2363,137,6202,222,1441,103,1275,88,3376,148,6966,265,819,58,764,55,2302,119,8372,211,372,69,577,66,288,40,4039,185,1656,78,1775,93,1553,101,1590,97,2849,248,9410,326,4043,211,2292,121,10969,289,1892,113,3846,231,321,42,2717,107,4364,175]
[null,"Owner-occupied housing units:",2211,142,1654,116,979,99,1483,83,1519,78,1328,120,1231,101,8746,341,786,61,2016,144,4295,235,1334,130,1116,89,2829,146,4900,302,743,60,721,54,2142,124,7545,288,331,66,546,64,231,40,2426,206,1431,93,1495,105,1302,114,1427,149,2276,245,4903,303,3424,216,1933,169,8682,341,1681,133,2686,223,288,36,2540,143,4088,189]
[null,"Single Family",1679,136,1606,126,912,91,1407,93,1460,86,1099,103,1178,105,6682,322,664,59,1646,141,2558,205,1224,133,973,92,2261,173,3749,281,721,61,680,54,1841,147,5596,277,318,66,513,65,212,40,1647,137,1337,91,1210,108,1067,123,1384,154,1609,160,3342,259,2312,184,1755,164,7222,350,1563,122,1391,216,270,39,1954,144,3573,183]
[null,"Multi-Family",532,254.73515658424535,38,257.25862473394358,30,255.5092953299351,20,280.95729212818094,47,256.27719367903183,16,279.95713957675736,16,279.75882470442286,1552,280.26059302013903,84,229.58440713602482,201,224.13611935607344,840,175.7042970447792,83,232.80463912903454,143,234.66998103720042,320,224.53952881397075,1031,223.79231443461146,8,255.03137061938085,21,255.21951336055793,259,216.6541021997968,1677,289.18333285305363,10,279.3564031841762,15,255.2038400965001,19,255.31353273964936,671,183,0,301.61564946136332,0,301.61564946136332,62,259.23927171630459,33,280.35869881278876,667,268.17158686184484,1391,224.53507521097902,427,252.94070451392358,119,243.40501227378206,878,231.99137915017445,74,234.52291998864419,391,264.77159968546476,18,279.49955277245078,558,270.16661525806626,481,185.02702505309867]
[null,"Mobile Home & Other",0,161.22034611053283,10,115.11733144926528,37,117.38824472663352,56,117.63077828527702,12,115.26057435220423,213,80.603970125546539,37,117.38824472663352,512,166.24379687675568,38,115.41230437002807,169,129.29423807734048,897,159.66527487215245,27,116.10340218959993,0,161.22034611053283,248,147.75655653811103,120,130.24976007655445,14,114.62983904725679,20,114.43775600735974,42,121.49074038789952,272,147.75655653811103,3,114.10959644131601,18,114.73883387938018,0,161.22034611053283,108,130.24976007655445,94,125.29964086141668,285,138.69751259485514,173,142.20056258679148,10,115.11733144926528,0,161.22034611053283,170,135.36986370680884,685,200.55173896029922,59,121.14866899805379,582,166.24379687675568,44,117.63077828527702,904,233.69210512980536,0,161.22034611053283,28,116.70903992407786,34,120.48651376813922]
[null,"Renter-occupied housing units:",402,127,109,92,38,27,69,53,9,14,123,80,186,89,3846,312,60,27,347,145,1907,282,107,58,159,81,547,137,2066,208,76,33,43,23,160,86,827,194,41,29,31,24,57,31,1613,206,225,91,280,103,251,88,163,90,573,170,4507,293,619,154,359,135,2287,261,211,101,1160,200,33,30,177,114,276,108]
[null,"Single Family",72,65,92,84,20,25,55,53,9,14,10,17,78,72,370,129,22,18,72,75,219,93,11,20,45,30,36,41,244,101,60,30,25,13,35,55,111,60,23,21,11,10,19,15,22,26,88,54,113,47,133,77,106,65,17,25,527,149,129,98,159,77,411,157,95,70,76,45,33,30,90,85,100,64]
[null,"Multi-Family",330,271.79403966974701,17,280.64212085857673,9,279.3564031841762,14,280.10712236571209,0,301.61564946136332,102,242.42524621004307,68,232.49086003540009,3293,392.40158001720636,11,255.31353273964936,256,232.87120904053381,1559,282.4606167238187,96,207.16659962455338,114,242.83327613817676,511,228.42066456430774,1822,319.27261078896197,16,255.49168283918755,3,279.30628349537716,111,209.02870616257471,624,229.88475373543153,18,255.54842985234717,20,279.95713957675736,38,229.24441105510076,1558,259.31833718424156,137,182.66636253016043,142,247.72969139770066,118,212.07310060448495,46,288.12670823788619,556,254.82739256210272,3972,388.68496240528782,459,191.82804800132851,200,197.45379206285202,1759,319.09246308867904,108,173.63755354185338,1047,245.43023448629958,0,301.61564946136332,69,262.90872941003687,176,187.32591918898996]
[null,"Mobile Home & Other",0,161.22034611053283,0,161.22034611053283,9,114.43775600735974,0,161.22034611053283,0,161.22034611053283,11,115.26057435220423,40,117.881296226331,183,135.36986370680884,27,115.26057435220423,19,118.1397477566293,129,150.98675438593943,0,161.22034611053283,0,161.22034611053283,0,161.22034611053283,0,161.22034611053283,0,161.22034611053283,15,115.57248807566617,14,116.29703349613007,92,128.82546332150332,0,161.22034611053283,0,161.22034611053283,0,161.22034611053283,33,120.48651376813922,0,161.22034611053283,25,117.15374513859982,0,161.22034611053283,11,115.26057435220423,0,161.22034611053283,8,114.52947218947619,31,124.48293055676348,0,161.22034611053283,117,132.23085872821065,8,114.62983904725679,37,119.85407794480753,0,161.22034611053283,18,117.63077828527702,0,161.22034611053283]

{"sheet":"ACS_Table_B25034","index":50,"n_rows":58,"n_cols":76,"rows_kept":58,"cut":false,"hidden":true,"merged":[]}
[null,"B25034. YEAR STRUCTURE BUILT"]
[null,"Universe:  HOUSING UNITS"]
[null,"Data Set: 2015-2019 American Community Survey 5-Year Estimates"]
[]
[null,null,"Atkinson",null,"Auburn",null,"Brentwood",null,"Candia",null,"Chester",null,"Danville",null,"Deerfield",null,"Derry",null,"East Kingston",null,"Epping",null,"Exeter",null,"Fremont",null,"Greenland",null,"Hampstead",null,"Hampton",null,"Hampton Falls",null,"Kensington",null,"Kingston",null,"Londonderry",null,"New Castle",null,"Newfields",null,"Newington",null,"Newmarket",null,"Newton",null,"North Hampton",null,"Northwood",null,"Nottingham",null,"Plaistow",null,"Portsmouth",null,"Raymond",null,"Rye",null,"Salem",null,"Sandown",null,"Seabrook",null,"South Hampton",null,"Stratham",null,"Windham"]
[null,null,"Estimate","Margin Of Error","Estimate","Margin Of Error","Estimate","Margin Of Error","Estimate","Margin Of Error","Estimate","Margin Of Error","Estimate","Margin Of Error","Estimate","Margin Of Error","Estimate","Margin Of Error","Estimate","Margin Of Error","Estimate","Margin Of Error","Estimate","Margin Of Error","Estimate","Margin Of Error","Estimate","Margin Of Error","Estimate","Margin Of Error","Estimate","Margin Of Error","Estimate","Margin Of Error","Estimate","Margin Of Error","Estimate","Margin Of Error","Estimate","Margin Of Error","Estimate","Margin Of Error","Estimate","Margin Of Error","Estimate","Margin Of Error","Estimate","Margin Of Error","Estimate","Margin Of Error","Estimate","Margin Of Error","Estimate","Margin Of Error","Estimate","Margin Of Error","Estimate","Margin Of Error","Estimate","Margin Of Error","Estimate","Margin Of Error","Estimate","Margin Of Error","Estimate","Margin Of Error","Estimate","Margin Of Error","Estimate","Margin Of Error","Estimate","Margin Of Error","Estimate","Margin Of Error","Estimate","Margin Of Error"]
[null,"Total:",2899,199,2022,106,1578,83,1565,84,1805,120,1716,93,1920,146,13539,368,929,57,2979,182,7013,275,1848,86,1599,93,3759,127,9654,290,950,46,903,60,2763,235,9686,245,567,83,611,64,329,40,4189,187,1903,115,2018,144,2164,127,2013,124,3262,190,10615,267,4281,241,3059,210,12005,327,2364,159,4773,236,375,43,2960,144,5554,199]
[null,"Built 2014 or later",81,66,89,58,89,54,10,17,80,41,38,35,0,11,117,67,5,8,129,94,243,108,61,40,41,23,57,55,166,72,5,7,4,6,115,86,524,132,3,4,6,7,16,21,135,106,63,33,50,39,56,68,39,31,99,54,113,77,8,16,157,131,252,99,58,56,41,41,2,5,54,41,124,78]
[null,"Built 2010 or 2013",37,41,67,58,118,45,24,26,66,46,0,11,71,39,185,73,47,30,239,109,395,127,71,47,127,57,73,95,204,127,19,18,3,4,56,69,153,85,4,6,10,10,3,4,68,45,96,51,54,50,102,68,46,34,16,25,212,113,200,109,136,116,167,89,149,99,160,76,5,5,38,42,240,97]
[null,"Built 2000 to 2009",335,112,207,70,382,80,76,60,417,117,294,97,326,94,791,213,263,50,573,190,851,183,319,96,233,70,465,122,1019,191,128,35,134,32,266,132,1017,144,54,37,103,35,19,10,514,133,213,89,223,87,305,119,456,100,111,59,672,143,1041,201,208,85,1365,255,382,132,681,141,49,21,423,125,1339,231]
[null,"Built 1990 to 1999",521,177,225,72,293,79,165,59,342,86,581,118,370,104,1241,235,160,43,466,156,791,187,361,103,185,62,594,144,1078,157,170,52,121,31,274,127,1515,188,127,54,203,40,64,19,498,127,347,93,342,98,181,60,226,85,377,115,636,119,437,131,271,122,1427,283,262,128,596,150,58,22,589,158,722,182]
[null,"Built 1980 to 1989",536,137,489,127,160,64,266,85,307,95,436,115,324,94,3929,361,170,52,592,199,1008,188,480,87,404,105,1061,155,1465,183,183,49,152,39,491,162,2980,284,40,22,66,21,65,28,934,195,232,103,189,74,310,106,405,116,897,212,1395,231,937,196,422,173,1899,266,854,208,897,218,36,19,938,158,1320,236]
[null,"Built 1970 to 1979",571,165,343,86,222,71,435,93,256,106,128,67,168,72,3076,382,67,37,282,131,958,198,100,58,254,73,506,149,1477,245,101,37,126,33,447,146,2401,221,34,24,39,22,34,20,636,182,361,91,288,99,187,64,290,99,545,154,1125,220,823,210,305,133,2394,382,231,108,1020,252,66,26,553,164,894,215]
[null,"Built 1960 to 1969",432,128,178,80,47,27,153,74,22,20,67,54,31,26,1281,268,42,21,57,39,489,139,71,36,128,48,360,134,1013,216,67,30,113,36,243,117,473,137,36,27,26,20,30,13,190,101,183,85,277,97,261,111,87,51,474,182,1016,188,254,109,287,117,2404,330,237,91,335,105,31,22,90,59,321,139]
[null,"Built 1950 to 1959",167,113,100,57,67,49,90,41,17,18,60,44,86,61,755,227,32,17,60,51,532,139,55,42,76,36,211,88,1480,200,75,50,64,25,273,145,179,98,41,28,34,17,16,10,188,75,33,30,157,53,192,82,43,59,288,146,1117,163,223,124,578,205,1220,273,35,42,544,157,26,11,58,45,256,135]
[null,"Built 1940 to 1949",18,28,51,32,22,24,59,60,11,18,0,11,49,50,298,96,26,30,0,16,312,115,45,33,24,22,80,61,531,145,8,11,13,9,68,58,99,63,10,10,4,7,28,18,84,89,93,59,38,39,42,28,76,69,125,107,536,119,59,38,254,166,359,135,18,31,188,104,12,8,10,17,142,100]
[null,"Built 1939 or earlier",201,104,273,91,178,72,287,89,287,90,112,42,495,132,1866,299,117,46,581,162,1434,217,285,88,127,70,352,108,1221,179,194,52,173,48,530,188,345,107,218,63,120,36,54,21,942,144,282,87,400,98,528,111,345,115,330,158,3793,246,299,116,441,156,518,136,138,73,311,116,90,25,207,123,196,108]
[]
[]
[]
[]
[null,"B25034. YEAR STRUCTURE BUILT"]
[null,"Universe:  HOUSING UNITS"]
[null,"Data Set: 2010-2014 American Community Survey 5-Year Estimates"]
[]
[null,null,"Atkinson",null,"Auburn",null,"Brentwood",null,"Candia",null,"Chester",null,"Danville",null,"Deerfield",null,"Derry",null,"East Kingston",null,"Epping",null,"Exeter",null,"Fremont",null,"Greenland",null,"Hampstead",null,"Hampton",null,"Hampton Falls",null,"Kensington",null,"Kingston",null,"Londonderry",null,"New Castle",null,"Newfields",null,"Newington",null,"Newmarket",null,"Newton",null,"North Hampton",null,"Northwood",null,"Nottingham",null,"Plaistow",null,"Portsmouth",null,"Raymond",null,"Rye",null,"Salem",null,"Sandown",null,"Seabrook",null,"South Hampton",null,"Stratham",null,"Windham"]
[null,null,"Estimate","Margin Of Error","Estimate","Margin Of Error","Estimate","Margin Of Error","Estimate","Margin Of Error","Estimate","Margin Of Error","Estimate","Margin Of Error","Estimate","Margin Of Error","Estimate","Margin Of Error","Estimate","Margin Of Error","Estimate","Margin Of Error","Estimate","Margin Of Error","Estimate","Margin Of Error","Estimate","Margin Of Error","Estimate","Margin Of Error","Estimate","Margin Of Error","Estimate","Margin Of Error","Estimate","Margin Of Error","Estimate","Margin Of Error","Estimate","Margin Of Error","Estimate","Margin Of Error","Estimate","Margin Of Error","Estimate","Margin Of Error","Estimate","Margin Of Error","Estimate","Margin Of Error","Estimate","Margin Of Error","Estimate","Margin Of Error","Estimate","Margin Of Error","Estimate","Margin Of Error","Estimate","Margin Of Error","Estimate","Margin Of Error","Estimate","Margin Of Error","Estimate","Margin Of Error","Estimate","Margin Of Error","Estimate","Margin Of Error","Estimate","Margin Of Error","Estimate","Margin Of Error","Estimate","Margin Of Error"]
[null,"Total:",2738,133,1911,81,1400,111,1520,99,1635,84,1630,111,1672,104,13356,347,928,40,2909,183,6469,226,1608,79,1443,70,3599,167,9516,297,929,42,837,55,2644,151,9045,234,545,68,579,71,334,45,4050,214,1817,114,1853,87,2106,163,2115,115,3088,212,11072,354,4110,177,2921,178,11789,295,2198,139,4671,316,462,63,2812,130,5157,201]
[null,"Built 2010 or later",0,15,36,26,28,24,0,11,14,21,42,60,17,19,132,85,12,12,129,78,80,51,36,41,47,36,15,22,68,65,3,6,4,5,10,16,40,28,0,11,0,11,0,11,0,15,21,25,0,11,0,11,0,11,23,33,71,41,97,57,14,23,58,47,35,30,24,28,0,11,25,39,85,58]
[null,"Built 2000 to 2009",322,119,218,70,421,92,105,40,374,102,244,83,236,70,961,243,299,55,500,132,913,191,321,88,160,61,593,153,972,204,127,38,157,38,217,67,1010,164,53,34,74,29,23,13,598,135,142,57,258,73,435,107,432,99,177,104,377,126,895,179,271,128,1155,237,309,98,768,219,31,22,542,106,1247,183]
[null,"Built 1990 to 1999",523,125,309,92,227,67,214,81,263,99,387,84,253,89,1590,201,188,45,379,170,707,160,332,102,154,58,657,140,968,172,136,45,115,48,191,84,1536,201,117,38,198,41,53,17,413,94,365,101,306,94,363,109,430,130,349,123,722,167,403,129,274,131,1360,235,520,125,769,197,45,22,517,140,764,204]
[null,"Built 1980 to 1989",550,177,511,115,212,76,306,89,343,93,637,124,328,96,4501,350,122,37,722,227,1213,207,335,82,327,71,966,140,1960,251,137,52,103,30,768,186,2308,264,71,35,59,25,50,22,1393,240,141,64,432,100,399,110,355,105,559,150,1705,278,917,204,464,174,2040,319,607,161,768,230,55,37,1058,182,992,177]
[null,"Built 1970 to 1979",742,182,270,91,155,69,340,99,244,86,89,43,169,87,2627,266,94,36,413,153,878,140,150,80,231,67,382,122,1364,239,98,40,157,33,376,154,2869,291,33,23,51,31,67,25,342,99,469,93,261,86,121,60,259,84,532,167,1142,224,727,158,572,204,2252,293,339,132,1046,269,123,39,260,99,1004,241]
[null,"Built 1960 to 1969",173,83,123,61,86,46,127,55,91,45,26,34,181,76,1035,203,68,35,208,138,376,107,131,60,109,45,343,129,889,202,101,53,52,21,389,135,684,169,11,15,16,12,30,17,178,72,121,47,232,83,258,107,193,76,550,158,665,135,314,107,304,162,2242,277,177,111,472,182,34,20,136,81,410,117]
[null,"Built 1950 to 1959",274,109,102,66,69,44,130,59,71,42,20,22,124,68,452,129,19,13,83,93,530,117,45,29,185,61,168,83,1216,219,74,34,42,17,252,117,181,88,49,28,69,35,20,14,142,90,193,103,156,67,138,67,144,78,329,144,1280,240,229,89,407,178,1221,255,62,46,374,135,57,32,155,70,177,100]
[null,"Built 1940 to 1949",82,55,92,41,12,19,0,11,37,45,14,16,90,61,386,163,21,19,105,88,309,120,24,21,24,21,84,50,769,167,10,11,47,28,90,71,67,43,27,21,0,11,20,13,103,80,71,55,15,18,54,58,10,14,68,56,778,169,129,87,46,36,600,148,64,55,127,112,7,6,0,15,101,115]
[null,"Built 1939 or earlier",72,51,250,101,190,74,298,77,198,68,171,63,274,80,1672,250,105,39,370,157,1463,228,234,66,206,75,391,145,1310,206,243,52,160,46,351,137,350,97,184,53,112,30,71,37,881,164,294,107,193,79,338,100,292,108,501,172,4332,303,399,136,569,181,861,171,85,68,323,134,110,37,119,73,377,147]
[]
[]
[]
[]
[]
[null,"B25034. YEAR STRUCTURE BUILT"]
[null,"Universe:  HOUSING UNITS"]
[null,"Data Set: 2005-2009 American Community Survey 5-Year Estimates"]
[]
[null,null,"Atkinson",null,"Auburn",null,"Brentwood",null,"Candia",null,"Chester",null,"Danville",null,"Deerfield",null,"Derry",null,"East Kingston",null,"Epping",null,"Exeter",null,"Fremont",null,"Greenland",null,"Hampstead",null,"Hampton",null,"Hampton Falls",null,"Kensington",null,"Kingston",null,"Londonderry",null,"New Castle",null,"Newfields",null,"Newington",null,"Newmarket",null,"Newton",null,"North Hampton",null,"Northwood",null,"Nottingham",null,"Plaistow",null,"Portsmouth",null,"Raymond",null,"Rye",null,"Salem",null,"Sandown",null,"Seabrook",null,"South Hampton",null,"Stratham",null,"Windham"]
[null,null,"Estimate","Margin Of Error","Estimate","Margin Of Error","Estimate","Margin Of Error","Estimate","Margin Of Error","Estimate","Margin Of Error","Estimate","Margin Of Error","Estimate","Margin Of Error","Estimate","Margin Of Error","Estimate","Margin Of Error","Estimate","Margin Of Error","Estimate","Margin Of Error","Estimate","Margin Of Error","Estimate","Margin Of Error","Estimate","Margin Of Error","Estimate","Margin Of Error","Estimate","Margin Of Error","Estimate","Margin Of Error","Estimate","Margin Of Error","Estimate","Margin Of Error","Estimate","Margin Of Error","Estimate","Margin Of Error","Estimate","Margin Of Error","Estimate","Margin Of Error","Estimate","Margin Of Error","Estimate","Margin Of Error","Estimate","Margin Of Error","Estimate","Margin Of Error","Estimate","Margin Of Error","Estimate","Margin Of Error","Estimate","Margin Of Error","Estimate","Margin Of Error","Estimate","Margin Of Error","Estimate","Margin Of Error","Estimate","Margin Of Error","Estimate","Margin Of Error","Estimate","Margin Of Error","Estimate","Margin Of Error"]
[null,"Total:",2701,107,1908,129,1017,95,1552,69,1579,100,1525,131,1570,82,13276,378,871,51,2649,157,6563,249,1522,112,1297,92,3590,154,9624,335,859,59,772,57,2501,142,8614,220,442,72,587,67,312,43,4312,216,1755,94,1873,120,2013,160,1886,116,2939,267,9997,360,4292,234,2782,146,11728,361,1928,115,4565,260,326,43,2822,142,4808,189]
[null,"Built 2005 or later",0,114,83,63,41,30,0,114,34,29,0,114,26,28,134,60,59,32,144,81,200,69,51,36,41,30,200,106,86,62,20,15,38,22,10,16,204,90,9,13,26,18,7,8,141,67,63,42,0,114,61,38,109,63,0,114,77,48,184,87,89,58,281,121,97,70,61,53,0,114,52,38,322,119]
[null,"Built 2000 to 2004",203,74,221,83,203,40,154,61,324,70,210,89,244,77,411,129,112,30,234,76,470,129,311,83,57,35,398,151,456,95,51,23,54,39,343,110,581,155,3,5,25,15,14,11,583,127,143,88,135,72,258,104,356,114,124,70,323,122,427,116,100,48,918,184,266,82,488,150,18,10,459,108,702,141]
[null,"Built 1990 to 1999",454,128,276,85,209,58,224,77,405,102,485,103,222,87,1388,215,192,35,428,154,684,155,351,100,254,76,717,151,1139,220,160,37,119,29,247,102,1259,202,116,44,231,46,63,25,434,98,346,89,302,84,195,88,302,70,432,136,717,153,423,148,260,103,1196,214,317,75,969,243,29,12,591,125,583,138]
[null,"Built 1980 to 1989",515,149,426,103,203,56,247,79,227,75,333,105,295,89,3979,341,128,34,437,105,1286,237,334,77,247,99,1067,164,2016,320,158,39,154,32,594,142,2510,280,47,25,68,28,38,21,1285,211,298,95,280,93,392,107,305,110,678,151,1611,222,1171,215,276,111,1852,256,550,113,496,169,17,9,900,152,1228,176]
[null,"Built 1970 to 1979",711,181,251,102,117,38,390,109,128,58,314,92,231,83,3023,362,108,34,477,150,1051,184,54,38,234,77,385,154,1240,277,131,34,121,34,306,118,2705,293,19,15,20,14,43,23,617,161,263,84,449,124,113,53,287,100,635,159,1047,213,1005,140,586,166,2119,298,330,111,1138,247,41,16,531,138,899,194]
[null,"Built 1960 to 1969",400,150,88,51,60,27,99,55,66,37,10,15,67,43,1647,266,58,24,17,27,487,134,100,66,184,65,246,85,1335,270,117,34,58,21,168,77,692,170,26,22,13,12,23,15,63,40,189,83,246,74,278,110,209,103,304,106,607,117,320,135,231,95,2599,338,149,62,510,165,39,21,122,76,420,97]
[null,"Built 1950 to 1959",144,76,128,91,28,20,53,37,74,47,27,27,64,39,685,182,26,16,188,94,487,142,112,57,63,32,196,109,1268,218,95,33,57,22,276,132,251,119,26,21,40,17,23,16,111,57,108,59,148,62,184,81,78,48,278,126,1046,196,257,98,346,142,1161,188,24,22,503,190,63,34,55,48,181,90]
[null,"Built 1940 to 1949",75,61,146,64,8,10,0,114,19,20,19,23,69,60,303,122,26,15,79,44,215,102,56,46,11,18,81,51,602,174,6,6,38,22,64,50,111,86,35,32,0,114,11,9,140,94,41,42,41,30,67,52,42,35,58,43,729,138,88,54,160,96,592,176,63,44,104,63,9,7,0,114,78,54]
[null,"Built 1939 or earlier",199,87,289,78,148,40,385,94,302,86,127,58,352,116,1706,246,162,37,645,183,1683,215,153,65,206,76,300,117,1482,251,121,46,133,33,493,142,301,105,161,52,164,33,90,36,938,162,304,95,272,104,465,113,198,80,430,155,3840,296,417,102,734,171,1010,253,132,81,296,131,110,37,112,68,395,122]

{"sheet":"ACS_Table_B25041","index":51,"n_rows":73,"n_cols":76,"rows_kept":73,"cut":false,"hidden":true,"merged":[]}
[null,"B25041. BEDROOMS "]
[null,"Universe:  HOUSING UNITS"]
[null,"Data Set: 2015-2019 American Community Survey 5-Year Estimates"]
[]
[null,null,"Atkinson",null,"Auburn",null,"Brentwood",null,"Candia",null,"Chester",null,"Danville",null,"Deerfield",null,"Derry",null,"East Kingston",null,"Epping",null,"Exeter",null,"Fremont",null,"Greenland",null,"Hampstead",null,"Hampton",null,"Hampton Falls",null,"Kensington",null,"Kingston",null,"Londonderry",null,"New Castle",null,"Newfields",null,"Newington",null,"Newmarket",null,"Newton",null,"North Hampton",null,"Northwood",null,"Nottingham",null,"Plaistow",null,"Portsmouth",null,"Raymond",null,"Rye",null,"Salem",null,"Sandown",null,"Seabrook",null,"South Hampton",null,"Stratham",null,"Windham"]
[null,null,"Estimate","Margin Of Error","Estimate","Margin Of Error","Estimate","Margin Of Error","Estimate","Margin Of Error","Estimate","Margin Of Error","Estimate","Margin Of Error","Estimate","Margin Of Error","Estimate","Margin Of Error","Estimate","Margin Of Error","Estimate","Margin Of Error","Estimate","Margin Of Error","Estimate","Margin Of Error","Estimate","Margin Of Error","Estimate","Margin Of Error","Estimate","Margin Of Error","Estimate","Margin Of Error","Estimate","Margin Of Error","Estimate","Margin Of Error","Estimate","Margin Of Error","Estimate","Margin Of Error","Estimate","Margin Of Error","Estimate","Margin Of Error","Estimate","Margin Of Error","Estimate","Margin Of Error","Estimate","Margin Of Error","Estimate","Margin Of Error","Estimate","Margin Of Error","Estimate","Margin Of Error","Estimate","Margin Of Error","Estimate","Margin Of Error","Estimate","Margin Of Error","Estimate","Margin Of Error","Estimate","Margin Of Error","Estimate","Margin Of Error","Estimate","Margin Of Error","Estimate","Margin Of Error","Estimate","Margin Of Error"]
[null,"Total:",2899,199,2022,106,1578,83,1565,84,1805,120,1716,93,1920,146,13539,368,929,57,2979,182,7013,275,1848,86,1599,93,3759,127,9654,290,950,46,903,60,2763,235,9686,245,567,83,611,64,329,40,4189,187,1903,115,2018,144,2164,127,2013,124,3262,190,10615,267,4281,241,3059,210,12005,327,2364,159,4773,236,375,43,2960,144,5554,199]
[null,"No bedroom",40,39,0,16,42,27,0,11,0,16,0,11,34,38,368,163,0,11,0,16,167,100,0,11,31,46,10,16,444,142,22,27,3,5,0,16,36,30,27,30,0,11,6,12,184,88,0,11,58,56,37,47,0,16,60,77,298,134,27,31,18,27,198,120,0,16,78,44,7,10,16,26,34,40]
[null,"1 bedroom",136,80,24,25,47,50,124,91,29,47,179,88,87,53,1479,313,43,31,158,113,1109,176,54,33,58,38,526,139,1044,189,22,22,15,10,271,112,236,93,24,23,4,6,16,12,599,174,172,67,88,53,112,74,135,79,177,78,1904,262,374,146,223,148,1100,230,105,73,565,190,28,20,173,89,184,100]
[null,"2 bedrooms",529,140,242,84,341,117,273,86,305,100,382,105,492,133,4796,423,254,52,845,202,2468,252,532,109,345,112,1245,217,3505,340,140,42,167,44,683,176,2725,218,130,47,83,30,54,20,1421,204,486,117,427,112,713,138,524,124,1044,194,4180,344,1540,254,700,225,3292,322,620,187,1648,261,97,38,765,179,1003,208]
[null,"3 bedrooms",1352,223,1195,152,615,110,802,127,843,144,927,122,820,136,4947,417,392,63,1470,219,2256,285,978,144,624,97,1119,163,2829,327,365,67,450,54,1351,241,3797,310,220,60,251,49,157,36,1496,219,944,135,799,125,870,145,1064,151,1444,235,2581,225,1915,263,1177,221,4958,361,1221,169,1749,186,135,29,1227,185,2003,288]
[null,"4 bedrooms",810,200,476,94,449,93,248,90,465,95,197,74,428,121,1715,274,220,47,403,154,849,147,230,81,455,105,746,127,1548,201,326,66,222,34,290,139,2607,253,163,54,236,41,74,23,441,145,264,76,473,119,332,101,254,79,469,152,1258,188,389,144,700,176,1939,290,315,130,447,123,86,20,731,164,1941,270]
[null,"5 or more bedrooms",32,37,85,59,84,46,118,61,163,89,31,30,59,42,234,120,20,16,103,79,164,65,54,55,86,44,113,70,284,94,75,32,46,22,168,119,285,84,3,5,37,25,22,10,48,39,37,30,173,72,100,69,36,29,68,82,394,153,36,38,241,139,518,159,103,79,286,138,22,15,48,42,389,172]
[]
[]
[null,"Calculated B25041. BEDROOMS "]
[null,"Universe:  HOUSING UNITS"]
[null,"Data Set: 2015-2019 American Community Survey 5-Year Estimates"]
[]
[null,null,"Atkinson",null,"Auburn",null,"Brentwood",null,"Candia",null,"Chester",null,"Danville",null,"Deerfield",null,"Derry",null,"East Kingston",null,"Epping",null,"Exeter",null,"Fremont",null,"Greenland",null,"Hampstead",null,"Hampton",null,"Hampton Falls",null,"Kensington",null,"Kingston",null,"Londonderry",null,"New Castle",null,"Newfields",null,"Newington",null,"Newmarket",null,"Newton",null,"North Hampton",null,"Northwood",null,"Nottingham",null,"Plaistow",null,"Portsmouth",null,"Raymond",null,"Rye",null,"Salem",null,"Sandown",null,"Seabrook",null,"South Hampton",null,"Stratham",null,"Windham"]
[null,null,"Estimate","Margin Of Error","Estimate","Margin Of Error","Estimate","Margin Of Error","Estimate","Margin Of Error","Estimate","Margin Of Error","Estimate","Margin Of Error","Estimate","Margin Of Error","Estimate","Margin Of Error","Estimate","Margin Of Error","Estimate","Margin Of Error","Estimate","Margin Of Error","Estimate","Margin Of Error","Estimate","Margin Of Error","Estimate","Margin Of Error","Estimate","Margin Of Error","Estimate","Margin Of Error","Estimate","Margin Of Error","Estimate","Margin Of Error","Estimate","Margin Of Error","Estimate","Margin Of Error","Estimate","Margin Of Error","Estimate","Margin Of Error","Estimate","Margin Of Error","Estimate","Margin Of Error","Estimate","Margin Of Error","Estimate","Margin Of Error","Estimate","Margin Of Error","Estimate","Margin Of Error","Estimate","Margin Of Error","Estimate","Margin Of Error","Estimate","Margin Of Error","Estimate","Margin Of Error","Estimate","Margin Of Error","Estimate","Margin Of Error","Estimate","Margin Of Error","Estimate","Margin Of Error","Estimate","Margin Of Error"]
[null,"Total:",{"$f":"C7","v":2899},{"$f":"D7","v":199},2022,106,1578,83,1565,84,1805,120,1716,93,1920,146,13539,368,929,57,2979,182,7013,275,{"$f":"Y7","v":1848},86,1599,93,3759,127,9654,290,950,46,903,60,2763,235,9686,245,{"$f":"AO7","v":567},83,611,64,329,40,4189,187,1903,115,2018,144,2164,127,2013,124,{"$f":"BE7","v":3262},190,10615,267,4281,241,3059,210,12005,327,2364,159,4773,236,375,43,2960,144,5554,199]
[null,"No bedroom",{"$f":"C8","v":40},39,0,16,42,27,0,11,0,16,0,11,34,38,368,163,0,11,0,16,167,100,{"$f":"Y8","v":0},11,31,46,10,16,444,142,22,27,3,5,0,16,36,30,{"$f":"AO8","v":27},30,0,11,6,12,184,88,0,11,58,56,37,47,0,16,{"$f":"BE8","v":60},77,298,134,27,31,18,27,198,120,0,16,78,44,7,10,16,26,34,40]
[null,"1 bedroom",{"$f":"C9","v":136},{"$f":"D9","v":80},24,25,47,50,124,91,29,47,179,88,87,53,1479,313,43,31,158,113,1109,176,{"$f":"Y9","v":54},33,58,38,526,139,1044,189,22,22,15,10,271,112,236,93,{"$f":"AO9","v":24},23,4,6,16,12,599,174,172,67,88,53,112,74,135,79,{"$f":"BE9","v":177},78,1904,262,374,146,223,148,1100,230,105,73,565,190,28,20,173,89,184,100]
[null,"2 bedrooms",{"$f":"C10","v":529},140,242,84,341,117,273,86,305,100,382,105,492,133,4796,423,254,52,845,202,2468,252,{"$f":"Y10","v":532},109,345,112,1245,217,3505,340,140,42,167,44,683,176,2725,218,{"$f":"AO10","v":130},47,83,30,54,20,1421,204,486,117,427,112,713,138,524,124,{"$f":"BE10","v":1044},194,4180,344,1540,254,700,225,3292,322,620,187,1648,261,97,38,765,179,1003,208]
[null,"3 bedrooms",{"$f":"C11","v":1352},223,1195,152,615,110,802,127,843,144,927,122,820,136,4947,417,392,63,1470,219,2256,285,{"$f":"Y11","v":978},144,624,97,1119,163,2829,327,365,67,450,54,1351,241,3797,310,{"$f":"AO11","v":220},60,251,49,157,36,1496,219,944,135,799,125,870,145,1064,151,{"$f":"BE11","v":1444},235,2581,225,1915,263,1177,221,4958,361,1221,169,1749,186,135,29,1227,185,2003,288]
[null,"4 + bedrooms",{"$f":"C12+C13","v":842},{"$f":"SQRT((D12^2)+(D13^2))","v":203.39370688396434},{"$f":"E12+E13","v":561},{"$f":"SQRT((F12^2)+(F13^2))","v":110.98198051936178},{"$f":"G12+G13","v":533},{"$f":"SQRT((H12^2)+(H13^2))","v":103.75451797391764},{"$f":"I12+I13","v":366},{"$f":"SQRT((J12^2)+(J13^2))","v":108.72442227944924},{"$f":"K12+K13","v":628},{"$f":"SQRT((L12^2)+(L13^2))","v":130.17680284904833},{"$f":"M12+M13","v":228},{"$f":"SQRT((N12^2)+(N13^2))","v":79.849859110708522},{"$f":"O12+O13","v":487},{"$f":"SQRT((P12^2)+(P13^2))","v":128.08200498118384},{"$f":"Q12+Q13","v":1949},{"$f":"SQRT((R12^2)+(R13^2))","v":299.12539176739909},{"$f":"S12+S13","v":240},{"$f":"SQRT((T12^2)+(T13^2))","v":49.648766349225639},{"$f":"U12+U13","v":506},{"$f":"SQRT((V12^2)+(V13^2))","v":173.08090593707902},{"$f":"W12+W13","v":1013},{"$f":"SQRT((X12^2)+(X13^2))","v":160.72958657322553},{"$f":"Y12+Y13","v":284},{"$f":"SQRT((Z12^2)+(Z13^2))","v":97.908120194394499},{"$f":"AA12+AA13","v":541},{"$f":"SQRT((AB12^2)+(AB13^2))","v":113.84638773364749},{"$f":"AC12+AC13","v":859},{"$f":"SQRT((AD12^2)+(AD13^2))","v":145.01379244747721},{"$f":"AE12+AE13","v":1832},{"$f":"SQRT((AF12^2)+(AF13^2))","v":221.89411889457548},{"$f":"AG12+AG13","v":401},{"$f":"SQRT((AH12^2)+(AH13^2))","v":73.348483283568996},{"$f":"AI12+AI13","v":268},{"$f":"SQRT((AJ12^2)+(AJ13^2))","v":40.496913462633174},{"$f":"AK12+AK13","v":458},{"$f":"SQRT((AL12^2)+(AL13^2))","v":182.98087331740442},{"$f":"AM12+AM13","v":2892},{"$f":"SQRT((AN12^2)+(AN13^2))","v":266.58019431308094},{"$f":"AO12+AO13","v":166},{"$f":"SQRT((AP12^2)+(AP13^2))","v":54.230987451824994},{"$f":"AQ12+AQ13","v":273},{"$f":"SQRT((AR12^2)+(AR13^2))","v":48.020828814171878},{"$f":"AS12+AS13","v":96},{"$f":"SQRT((AT12^2)+(AT13^2))","v":25.079872407968907},{"$f":"AU12+AU13","v":489},{"$f":"SQRT((AV12^2)+(AV13^2))","v":150.15325504297269},{"$f":"AW12+AW13","v":301},{"$f":"SQRT((AX12^2)+(AX13^2))","v":81.706792863261981},{"$f":"AY12+AY13","v":646},{"$f":"SQRT((AZ12^2)+(AZ13^2))","v":139.08630414242805},{"$f":"BA12+BA13","v":432},{"$f":"SQRT((BB12^2)+(BB13^2))","v":122.31925441237777},{"$f":"BC12+BC13","v":290},{"$f":"SQRT((BD12^2)+(BD13^2))","v":84.15461959987698},{"$f":"BE12+BE13","v":537},{"$f":"SQRT((BF12^2)+(BF13^2))","v":172.70784579746226},{"$f":"BG12+BG13","v":1652},{"$f":"SQRT((BH12^2)+(BH13^2))","v":242.39018131929353},{"$f":"BI12+BI13","v":425},{"$f":"SQRT((BJ12^2)+(BJ13^2))","v":148.92951352905172},{"$f":"BK12+BK13","v":941},{"$f":"SQRT((BL12^2)+(BL13^2))","v":224.26992665089986},{"$f":"BM12+BM13","v":2457},{"$f":"SQRT((BN12^2)+(BN13^2))","v":330.72798490602514},{"$f":"BO12+BO13","v":418},{"$f":"SQRT((BP12^2)+(BP13^2))","v":152.12166183683374},{"$f":"BQ12+BQ13","v":733},{"$f":"SQRT((BR12^2)+(BR13^2))","v":184.85940603604675},{"$f":"BS12+BS13","v":108},{"$f":"SQRT((BT12^2)+(BT13^2))","v":25},{"$f":"BU12+BU13","v":779},{"$f":"SQRT((BV12^2)+(BV13^2))","v":169.29264603047588},{"$f":"BW12+BW13","v":2330},{"$f":"SQRT((BX12^2)+(BX13^2))","v":320.13122309453041}]
[]
[]
[]
[]
[]
[]
[]
[]
[]
[]
[]
[]
[]
[]
[]
[]
[]
[]
[]
[null,"Calculated B25041. BEDROOMS "]
[null,"Universe:  HOUSING UNITS"]
[null,"Data Set: 2010-2014 American Community Survey 5-Year Estimates"]
[]
[null,null,"Atkinson",null,"Auburn",null,"Brentwood",null,"Candia",null,"Chester",null,"Danville",null,"Deerfield",null,"Derry",null,"East Kingston",null,"Epping",null,"Exeter",null,"Fremont",null,"Greenland",null,"Hampstead",null,"Hampton",null,"Hampton Falls",null,"Kensington",null,"Kingston",null,"Londonderry",null,"New Castle",null,"Newfields",null,"Newington",null,"Newmarket",null,"Newton",null,"North Hampton",null,"Northwood",null,"Nottingham",null,"Plaistow",null,"Portsmouth",null,"Raymond",null,"Rye",null,"Salem",null,"Sandown",null,"Seabrook",null,"South Hampton",null,"Stratham",null,"Windham"]
[null,null,"Estimate","Margin Of Error","Estimate","Margin Of Error","Estimate","Margin Of Error","Estimate","Margin Of Error","Estimate","Margin Of Error","Estimate","Margin Of Error","Estimate","Margin Of Error","Estimate","Margin Of Error","Estimate","Margin Of Error","Estimate","Margin Of Error","Estimate","Margin Of Error","Estimate","Margin Of Error","Estimate","Margin Of Error","Estimate","Margin Of Error","Estimate","Margin Of Error","Estimate","Margin Of Error","Estimate","Margin Of Error","Estimate","Margin Of Error","Estimate","Margin Of Error","Estimate","Margin Of Error","Estimate","Margin Of Error","Estimate","Margin Of Error","Estimate","Margin Of Error","Estimate","Margin Of Error","Estimate","Margin Of Error","Estimate","Margin Of Error","Estimate","Margin Of Error","Estimate","Margin Of Error","Estimate","Margin Of Error","Estimate","Margin Of Error","Estimate","Margin Of Error","Estimate","Margin Of Error","Estimate","Margin Of Error","Estimate","Margin Of Error","Estimate","Margin Of Error","Estimate","Margin Of Error","Estimate","Margin Of Error"]
[null,"Total:",2738,133,1911,81,1400,111,1520,99,1635,84,1630,111,1672,104,13356,347,928,40,2909,183,6469,226,1608,79,1443,70,3599,167,9516,297,929,42,837,55,2644,151,9045,234,545,68,579,71,334,45,4050,214,1817,114,1853,87,2106,163,2115,115,3088,212,11072,354,4110,177,2921,178,11789,295,2198,139,4671,316,462,63,2812,130,5157,201]
[null,"No bedroom",77,93,0,15,24,25,13,20,0,11,8,13,0,11,75,46,0,11,0,15,57,49,0,11,0,11,24,28,385,156,17,27,0,11,38,60,0,20,13,16,0,11,3,5,233,137,0,11,11,18,0,11,0,11,18,30,408,167,64,58,12,19,114,82,0,15,72,78,28,24,0,15,57,71]
[null,"1 bedroom",196,83,114,67,99,63,11,19,38,38,153,76,119,67,1701,271,43,24,172,92,1047,172,61,51,80,69,458,141,978,189,72,45,21,22,263,99,416,148,20,18,24,20,5,6,504,163,73,34,86,71,146,74,70,58,289,130,2077,275,214,85,314,163,1096,247,141,97,716,198,22,16,159,68,161,104]
[null,"2 bedrooms",818,187,382,105,198,69,306,103,219,81,430,97,362,106,4769,348,265,57,767,168,2224,303,326,90,247,74,1047,162,3285,280,111,46,109,41,657,152,2567,248,101,44,57,25,101,32,1691,234,412,101,316,105,708,154,535,111,1037,261,3991,319,1388,200,627,170,3785,321,669,160,1459,299,59,27,609,127,904,203]
[null,"3 bedrooms",1045,178,1083,103,548,120,812,125,790,125,787,143,940,129,4815,350,357,61,1586,302,2154,232,959,128,591,91,1302,176,2883,267,386,67,415,61,1209,217,3387,280,262,57,266,49,129,29,1165,155,1111,151,794,136,985,147,1174,149,1278,220,3035,341,2061,225,1088,221,4592,350,1084,200,1690,263,186,45,1188,175,1902,291]
[null,"4 + bedrooms",602,161.05899540230592,332,87.641314458421945,531,106.85036265731624,378,107.89810007595129,588,112.64102272262978,252,77.826730626437083,251,76.485292703891773,1996,276.02354971994691,263,52.630789467763066,384,110.4943437466371,987,169.57889019568444,262,85.883642214335552,525,106.83164325236227,768,148.85227576359054,1985,242.47061677654884,343,66.370174024180471,292,45.221676218380054,477,143.1258187749506,2675,250.40167731067618,149,46.872166581031863,232,50.089919145472777,96,30.413812651491099,457,135.07405376311175,221,79.981247802219244,646,126.56223765404908,267,94.873600121424715,336,82.540898953185632,466,150.88074761214565,1561,221.37072977247917,383,105.11898020814318,880,251.03187048659777,2202,272.237029075767,304,129.28263611173776,734,199.88246546408217,167,39.217343102255157,856,153.07514494521962,2133,274.34467372267318]
[]
[]
[]
[null,"Calculated B25041. BEDROOMS "]
[null,"Universe:  HOUSING UNITS"]
[null,"Data Set: 2005-2009 American Community Survey 5-Year Estimates"]
[]
[null,null,"Atkinson",null,"Auburn",null,"Brentwood",null,"Candia",null,"Chester",null,"Danville",null,"Deerfield",null,"Derry",null,"East Kingston",null,"Epping",null,"Exeter",null,"Fremont",null,"Greenland",null,"Hampstead",null,"Hampton",null,"Hampton Falls",null,"Kensington",null,"Kingston",null,"Londonderry",null,"New Castle",null,"Newfields",null,"Newington",null,"Newmarket",null,"Newton",null,"North Hampton",null,"Northwood",null,"Nottingham",null,"Plaistow",null,"Portsmouth",null,"Raymond",null,"Rye",null,"Salem",null,"Sandown",null,"Seabrook",null,"South Hampton",null,"Stratham",null,"Windham"]
[null,null,"Estimate","Margin Of Error","Estimate","Margin Of Error","Estimate","Margin Of Error","Estimate","Margin Of Error","Estimate","Margin Of Error","Estimate","Margin Of Error","Estimate","Margin Of Error","Estimate","Margin Of Error","Estimate","Margin Of Error","Estimate","Margin Of Error","Estimate","Margin Of Error","Estimate","Margin Of Error","Estimate","Margin Of Error","Estimate","Margin Of Error","Estimate","Margin Of Error","Estimate","Margin Of Error","Estimate","Margin Of Error","Estimate","Margin Of Error","Estimate","Margin Of Error","Estimate","Margin Of Error","Estimate","Margin Of Error","Estimate","Margin Of Error","Estimate","Margin Of Error","Estimate","Margin Of Error","Estimate","Margin Of Error","Estimate","Margin Of Error","Estimate","Margin Of Error","Estimate","Margin Of Error","Estimate","Margin Of Error","Estimate","Margin Of Error","Estimate","Margin Of Error","Estimate","Margin Of Error","Estimate","Margin Of Error","Estimate","Margin Of Error","Estimate","Margin Of Error","Estimate","Margin Of Error","Estimate","Margin Of Error"]
[null,"Total:",2701,107,1908,129,1017,95,1552,69,1579,100,1525,131,1570,82,13276,378,871,51,2649,157,6563,249,1522,112,1297,92,3590,154,9624,335,859,59,772,57,2501,142,8614,220,442,72,587,67,312,43,4312,216,1755,94,1873,120,2013,160,1886,116,2939,267,9997,360,4292,234,2782,146,11728,361,1928,115,4565,260,326,43,2822,142,4808,189]
[null,"No bedroom",34,41,0,114,0,114,0,114,12,17,0,114,0,114,148,95,0,114,12,20,82,70,13,21,0,114,41,65,291,141,9,14,4,5,0,114,0,114,0,114,0,114,0,114,116,69,7,11,33,50,10,16,0,114,0,114,185,95,57,42,57,71,83,60,10,16,36,58,0,114,0,114,0,114]
[null,"1 bedroom",336,110,89,53,19,13,40,38,13,21,114,74,93,63,1442,268,55,24,240,114,951,181,49,57,10,16,446,147,1428,248,16,10,17,20,156,89,245,98,23,22,45,33,26,17,659,175,125,69,139,91,172,88,136,92,291,138,1999,263,334,124,162,104,1039,237,83,44,615,201,11,7,211,69,239,115]
[null,"2 bedrooms",624,118,319,99,126,40,274,74,169,63,362,109,337,99,4147,413,261,39,845,191,2225,269,429,124,261,88,1001,166,3197,416,130,40,134,35,728,174,2375,296,60,30,52,24,59,26,1890,213,391,107,350,111,815,162,308,101,819,192,3807,357,1662,238,665,159,3448,299,576,129,1882,262,56,36,736,142,880,157]
[null,"3 bedrooms",984,153,1062,123,477,90,766,104,887,119,759,118,815,135,5222,391,314,48,1135,204,1915,246,778,111,597,118,1448,233,2880,311,339,59,382,50,1029,162,3764,340,217,59,233,39,107,33,1274,166,939,118,751,120,676,142,1080,169,1264,186,2605,247,1758,213,1119,175,4729,394,935,132,1413,258,160,28,1052,165,1786,211]
[null,"4 + bedrooms",723,165.01212076693034,438,117.98728745080972,395,68.709533545207535,472,102.88342918079665,498,129.40247292845683,290,74.215901261117892,325,103.71113729971339,2317,280.23561515267829,241,47.707441767506253,417,129.65338406690356,1390,219.46298093300382,253,78.587530817553997,429,108.46658471621571,654,149.05368160498418,1828,283.04769916040652,365,50.803543183522152,235,51.107729356722551,588,152.27934856703322,2230,239.77072381756702,142,50.921508225896062,257,47.010637094172637,120,40.521599178709621,373,119.01260437449471,293,97.739449558507332,600,106.55045753069294,340,93.348808240919709,362,123.664869708418,565,115.76700738984316,1401,225.7432169523594,481,107.54068997360952,779,182.33211456021672,2429,291.67104758614624,324,99.005050376230813,619,176.50212463310464,99,32.695565448543633,823,158.14550262337528,1903,238]

{"sheet":"PovertyCharacteristics","index":52,"n_rows":82,"n_cols":17,"rows_kept":82,"cut":false,"hidden":true,"merged":[[49,15,49,16],[64,15,64,16],[21,15,21,16],[64,3,64,5],[64,7,64,9],[64,11,64,14],[77,2,78,3],[77,6,78,9],[77,11,78,13],[21,11,21,13],[30,2,31,4],[30,7,31,9],[30,11,31,13],[49,11,49,14],[21,3,21,5],[21,7,21,9]]}
[]
[null,null,{"$f":"CntyDataLink!A86","v":"Atkinson"}]
[null,null,"POVERTY CHARACTERISTICS"]
[]
[]
[]
[]
[]
[]
[]
[]
[]
[]
[]
[]
[]
[]
[null,null,null,null,null,null,null,null,null,null,null,null,"2009 Income (2005-2009 ACS)"]
[null,null,null,null,null,null,null,null,null,null,null,null,"2014 Income (2010-2014 ACS)"]
[null,null,null,null,null,null,null,null,null,null,null,null,"2019 Income (2015-2019 ACS)"]
[]
[null,null,null,"2009 Inc below Poverty Level",null,null,null,"2014 Inc below Poverty Level",null,null,null,"2019 Inc below Poverty Level",null,null,null,"Statistically Significant Change"]
[null,null,"Population","Estimate","Margin of Error","% of Population in Poverty",null,"Estimate","Margin of Error","% of Population in Poverty",null,"Estimate","Margin of Error","% of Population in Poverty",null,"2009-2019","2014-2019"]
[null,null," Total Individuals living Poverty",{"$f":"CntyDataLinkPrior10YearEstimate!$D$124","v":1042},{"$f":"CntyDataLinkPrior10YearEstimate!$E$124","v":263},{"$f":"D24/CntyDataLinkPrior10YearEstimate!$B$124","v":3.5615408278360731E-2},null,{"$f":"CntyDataLinkPrior5YearEstimates!$D$124","v":1155},{"$f":"CntyDataLinkPrior5YearEstimates!$E$124","v":288},{"$f":"H24/CntyDataLinkPrior5YearEstimates!$B$124","v":4.0270562393221992E-2},null,{"$f":"CntyDataLink!$D$124","v":143},{"$f":"CntyDataLink!$E$124","v":132},{"$f":"L24/CntyDataLink!$B$124","v":2.238221943966192E-2},null,{"$f":"StatisticallySignificantCalcs!$A112","v":"Y"},{"$f":"StatisticallySignificantCalcs!$J$112","v":"Y"}]
[null,null,"Under 5 yrs.",{"$f":"CntyDataLinkPrior10YearEstimate!$F$124","v":26},{"$f":"CntyDataLinkPrior10YearEstimate!$G$124","v":58.240879114244144},{"$f":"D25/(CntyDataLinkPrior10YearEstimate!$F$124+CntyDataLinkPrior10YearEstimate!$R$124)","v":1.6528925619834711E-2},null,{"$f":"CntyDataLinkPrior5YearEstimates!$F$124","v":0},{"$f":"CntyDataLinkPrior5YearEstimates!$G$124","v":49.244289008980523},{"$f":"H25/(CntyDataLinkPrior5YearEstimates!$F$124+CntyDataLinkPrior5YearEstimates!$R$124)","v":0},null,{"$f":"CntyDataLink!$F$124","v":25},{"$f":"CntyDataLink!$G$124","v":25.612496949731394},{"$f":"L25/(CntyDataLink!$F$124+CntyDataLink!$R$124)","v":6.4766839378238336E-2},null,{"$f":"StatisticallySignificantCalcs!$A113","v":"N"},{"$f":"StatisticallySignificantCalcs!$J$113","v":"N"}]
[null,null,"5 to 17 yrs.",{"$f":"CntyDataLinkPrior10YearEstimate!$H$124","v":131},{"$f":"CntyDataLinkPrior10YearEstimate!$I$124","v":236.24140195994434},{"$f":"D26/(CntyDataLinkPrior10YearEstimate!$H$124+CntyDataLinkPrior10YearEstimate!$T$124)","v":2.5066972828166858E-2},null,{"$f":"CntyDataLinkPrior5YearEstimates!$H$124","v":137},{"$f":"CntyDataLinkPrior5YearEstimates!$I$124","v":76.039463438401512},{"$f":"H26/(CntyDataLinkPrior5YearEstimates!$H$124+CntyDataLinkPrior5YearEstimates!$T$124)","v":2.9978118161925603E-2},null,{"$f":"CntyDataLink!$H$124","v":0},{"$f":"CntyDataLink!$I$124","v":48.166378315169183},{"$f":"L26/(CntyDataLink!$H$124+CntyDataLink!$T$124)","v":0},null,{"$f":"StatisticallySignificantCalcs!$A114","v":"N"},{"$f":"StatisticallySignificantCalcs!$J$114","v":"Y"}]
[null,null,"18 to 64 yrs.",{"$f":"CntyDataLinkPrior10YearEstimate!$J$124","v":622},{"$f":"CntyDataLinkPrior10YearEstimate!$K$124","v":164.34110867339311},{"$f":"D27/(CntyDataLinkPrior10YearEstimate!$J$124+CntyDataLinkPrior10YearEstimate!$V$124)","v":3.3311910882604968E-2},null,{"$f":"CntyDataLinkPrior5YearEstimates!$J$124","v":730},{"$f":"CntyDataLinkPrior5YearEstimates!$K$124","v":200.59162494979694},{"$f":"H27/(CntyDataLinkPrior5YearEstimates!$J$124+CntyDataLinkPrior5YearEstimates!$V$124)","v":3.9243092140630043E-2},null,{"$f":"CntyDataLink!$J$124","v":117},{"$f":"CntyDataLink!$K$124","v":86.185845705660967},{"$f":"L27/(CntyDataLink!$J$124+CntyDataLink!$V$124)","v":2.7804182509505702E-2},null,{"$f":"StatisticallySignificantCalcs!$A115","v":"Y"},{"$f":"StatisticallySignificantCalcs!$J$115","v":"Y"}]
[null,null,"65 to 74 yrs.",{"$f":"CntyDataLinkPrior10YearEstimate!$L$124","v":135},{"$f":"CntyDataLinkPrior10YearEstimate!$M$124","v":69.526973183074787},{"$f":"D28/(CntyDataLinkPrior10YearEstimate!$L$124+CntyDataLinkPrior10YearEstimate!$X$124)","v":6.5885797950219621E-2},null,{"$f":"CntyDataLinkPrior5YearEstimates!$L$124","v":122},{"$f":"CntyDataLinkPrior5YearEstimates!$M$124","v":61.619802012015583},{"$f":"H28/(CntyDataLinkPrior5YearEstimates!$L$124+CntyDataLinkPrior5YearEstimates!$X$124)","v":4.5185185185185182E-2},null,{"$f":"CntyDataLink!$L$124","v":0},{"$f":"CntyDataLink!$M$124","v":22.627416997969522},{"$f":"L28/(CntyDataLink!$L$124+CntyDataLink!$X$124)","v":0},null,{"$f":"StatisticallySignificantCalcs!$A116","v":"Y"},{"$f":"StatisticallySignificantCalcs!$J$116","v":"Y"}]
[null,null,"75 yrs. & Over",{"$f":"CntyDataLinkPrior10YearEstimate!$N$124","v":128},{"$f":"CntyDataLinkPrior10YearEstimate!$O$124","v":72.917761896536561},{"$f":"D29/(CntyDataLinkPrior10YearEstimate!$N$124+CntyDataLinkPrior10YearEstimate!$Z$124)","v":7.3690270581462297E-2},null,{"$f":"CntyDataLinkPrior5YearEstimates!$N$124","v":166},{"$f":"CntyDataLinkPrior5YearEstimates!$O$124","v":96.005208192055917},{"$f":"H29/(CntyDataLinkPrior5YearEstimates!$N$124+CntyDataLinkPrior5YearEstimates!$Z$124)","v":9.8574821852731587E-2},null,{"$f":"CntyDataLink!$N$124","v":1},{"$f":"CntyDataLink!$O$124","v":16.278820596099706},{"$f":"L29/(CntyDataLink!$N$124+CntyDataLink!$Z$124)","v":3.1645569620253164E-3},null,{"$f":"StatisticallySignificantCalcs!$A117","v":"Y"},{"$f":"StatisticallySignificantCalcs!$J$117","v":"Y"}]
[]
[null,null,"Source: 2005-2009 American Community Survey  Table B1701",null,null,null,null,"Source: 2015-2019 American Community Survey  Table B1701",null,null,null,"Source: 2015-2019 American Community Survey  Table B1701"]
[]
[]
[]
[]
[]
[]
[]
[]
[]
[]
[]
[]
[]
[]
[]
[]
[]
[]
[null,null,null,{"$f":"D22","v":"2009 Inc below Poverty Level"},null,null,null,{"$f":"H22","v":"2014 Inc below Poverty Level"},null,null,null,{"$f":"L22","v":"2019 Inc below Poverty Level"},null,null,null,"Statistically Significant Change"]
[null,null,null,"Estimate","Margin of Error","% of Family Type in Poverty",null,"Estimate","Margin of Error ","% of Family Type in Poverty",null,"Estimate","Margin of Error ","% of Family Type in Poverty",null,"2009-2019","2014-2019"]
[]
[]
[null,null,"Total Households",{"$f":"CntyDataLinkPrior10YearEstimate!$AD$124","v":174},{"$f":"CntyDataLinkPrior10YearEstimate!$AE$124","v":68},{"$f":"$D54/($D54+$D68)","v":1.6273849607182939E-2},null,{"$f":"CntyDataLinkPrior5YearEstimates!$AD$124","v":147},{"$f":"CntyDataLinkPrior5YearEstimates!$AE$124","v":69},{"$f":"$H54/($H54+$H68)","v":1.3722927557879015E-2},null,{"$f":"CntyDataLink!$AD$124","v":290},{"$f":"CntyDataLink!$AE$124","v":154},{"$f":"$L54/($L54+$L68)","v":2.6133189150220781E-2},null,{"$f":"StatisticallySignificantCalcs!$A$94","v":"N"},{"$f":"StatisticallySignificantCalcs!$J$94","v":"N"}]
[null,null,"Family Households",{"$f":"CntyDataLinkPrior10YearEstimate!$AF$124","v":64},{"$f":"CntyDataLinkPrior10YearEstimate!$AG$124","v":50},{"$f":"$D55/($D55+$D69)","v":8.1311142167450126E-3},null,{"$f":"CntyDataLinkPrior5YearEstimates!$AF$124","v":96},{"$f":"CntyDataLinkPrior5YearEstimates!$AG$124","v":55},{"$f":"$H55/($H55+$H69)","v":1.2262102439647465E-2},null,{"$f":"CntyDataLink!$AF$124","v":132},{"$f":"CntyDataLink!$AG$124","v":107},{"$f":"$L55/($L55+$L69)","v":1.7111744879439981E-2},null,{"$f":"StatisticallySignificantCalcs!$A$95","v":"N"},{"$f":"StatisticallySignificantCalcs!$J$95","v":"N"}]
[null,null,"Married Couple Fam HH",{"$f":"CntyDataLinkPrior10YearEstimate!$AH$124","v":0},{"$f":"CntyDataLinkPrior10YearEstimate!$AI$124","v":15},{"$f":"$D56/($D56+$D70)","v":0},null,{"$f":"CntyDataLinkPrior5YearEstimates!$AH$124","v":0},{"$f":"CntyDataLinkPrior5YearEstimates!$AI$124","v":20},0,null,{"$f":"CntyDataLink!$AH$124","v":0},{"$f":"CntyDataLink!$AI$124","v":16},0,null,{"$f":"StatisticallySignificantCalcs!$A$96","v":"N"},{"$f":"StatisticallySignificantCalcs!$J$96","v":"N"}]
[null,null,"M C Fam HH w/Children",{"$f":"CntyDataLinkPrior10YearEstimate!$BN$124","v":0},{"$f":"CntyDataLinkPrior10YearEstimate!$BO$124","v":0},0,null,{"$f":"CntyDataLinkPrior5YearEstimates!$BN$124","v":40},{"$f":"CntyDataLinkPrior5YearEstimates!$BO$124","v":38},1.4864362690449646E-2,null,{"$f":"CntyDataLink!$BN$124","v":104},{"$f":"CntyDataLink!$BO$124","v":107},4.3918918918918921E-2,null,{"$f":"StatisticallySignificantCalcs!$A$97","v":"N"},{"$f":"StatisticallySignificantCalcs!$J$97","v":"N"}]
[null,null,"Male Head of Family HH ",{"$f":"CntyDataLinkPrior10YearEstimate!$AL$124","v":0},{"$f":"CntyDataLinkPrior10YearEstimate!$AM$124","v":114},0,null,{"$f":"CntyDataLinkPrior5YearEstimates!$AL$124","v":0},{"$f":"CntyDataLinkPrior5YearEstimates!$AM$124","v":20},0,null,{"$f":"CntyDataLink!$AL$124","v":0},{"$f":"CntyDataLink!$AM$124","v":21},0,null,{"$f":"StatisticallySignificantCalcs!$A$98","v":"N"},{"$f":"StatisticallySignificantCalcs!$J$98","v":"N"}]
[null,null,"Male Head of HH w/Children",{"$f":"CntyDataLinkPrior10YearEstimate!$BP$124","v":174},{"$f":"CntyDataLinkPrior10YearEstimate!$BQ$124","v":68},2.1801779225660945E-2,null,{"$f":"CntyDataLinkPrior5YearEstimates!$BP$124","v":0},{"$f":"CntyDataLinkPrior5YearEstimates!$BQ$124","v":20},0,null,{"$f":"CntyDataLink!$BP$124","v":0},{"$f":"CntyDataLink!$BQ$124","v":21},0,null,{"$f":"StatisticallySignificantCalcs!$A$99","v":"Y"},{"$f":"StatisticallySignificantCalcs!$J$99","v":"N"}]
[null,null,"Female Head of Family HH ",{"$f":"CntyDataLinkPrior10YearEstimate!$AN$124","v":110},{"$f":"CntyDataLinkPrior10YearEstimate!$AO$124","v":57},9.507346585998272E-2,null,{"$f":"CntyDataLinkPrior5YearEstimates!$AN$124","v":51},{"$f":"CntyDataLinkPrior5YearEstimates!$AO$124","v":36},4.541406945681211E-2,null,{"$f":"CntyDataLink!$AN$124","v":158},{"$f":"CntyDataLink!$AO$124","v":110},0.1523625843780135,null,{"$f":"StatisticallySignificantCalcs!$A$100","v":"N"},{"$f":"StatisticallySignificantCalcs!$J$100","v":"N"}]
[null,null,"Female Head of HH w/Children",{"$f":"CntyDataLinkPrior10YearEstimate!$BR$124","v":53},{"$f":"CntyDataLinkPrior10YearEstimate!$BS$124","v":46},1.6026610220743878E-2,null,{"$f":"CntyDataLinkPrior5YearEstimates!$BR$124","v":51},{"$f":"CntyDataLinkPrior5YearEstimates!$BS$124","v":36},8.3881578947368418E-2,null,{"$f":"CntyDataLink!$BR$124","v":158},{"$f":"CntyDataLink!$BS$124","v":110},0.23476968796433878,null,{"$f":"StatisticallySignificantCalcs!$A$101","v":"N"},{"$f":"StatisticallySignificantCalcs!$J$101","v":"N"}]
[null,null,"Non-Family HH ",{"$f":"CntyDataLinkPrior10YearEstimate!$AP$124","v":277},{"$f":"CntyDataLinkPrior10YearEstimate!$AQ$124","v":101},0.18578135479543931,null,{"$f":"CntyDataLinkPrior5YearEstimates!$AP$124","v":381},{"$f":"CntyDataLinkPrior5YearEstimates!$AQ$124","v":145},0.11858076563958916,null,{"$f":"CntyDataLink!$AP$124","v":439},{"$f":"CntyDataLink!$AQ$124","v":176},0.11981441048034934,null,{"$f":"StatisticallySignificantCalcs!$A$102","v":"N"},{"$f":"StatisticallySignificantCalcs!$J$102","v":"N"}]
[]
[null,"Data from the American Community Survey are estimates."]
[null,null,null,"2009  Inc at or Above Poverty Level",null,null,null,"2014 Inc at or Above Poverty Level",null,null,null,"2019 Inc at or above Poverty Level",null,null,null,"Statistically Significant Change"]
[null,null,"Households","Estimate","Margin of Error",null,null,"Estimate","Margin of Error",null,null,"Estimate","Margin of Error",null,null,"2009-2019","2014-2019"]
[]
[null,null,"Total Households",{"$f":"CntyDataLinkPrior10YearEstimate!$AV$124","v":10518},{"$f":"CntyDataLinkPrior10YearEstimate!$AW$124","v":295},{"$f":"$D68/($D68+$D54)","v":0.98372615039281708},null,{"$f":"CntyDataLinkPrior5YearEstimates!$AV$124","v":10565},{"$f":"CntyDataLinkPrior5YearEstimates!$AW$124","v":287},{"$f":"$H68/($H68+$H54)","v":0.98627707244212104},null,{"$f":"CntyDataLink!$AV$124","v":10807},{"$f":"CntyDataLink!$AW$124","v":369},{"$f":"$L68/($L68+$L54)","v":0.97386681084977922},null,{"$f":"StatisticallySignificantCalcs!$A$103","v":"N"},{"$f":"StatisticallySignificantCalcs!$J$103","v":"N"}]
[null,null,"Family Households",{"$f":"CntyDataLinkPrior10YearEstimate!$AX$124","v":7807},{"$f":"CntyDataLinkPrior10YearEstimate!$AY$124","v":254},{"$f":"$D69/($D69+$D55)","v":0.99186888578325494},null,{"$f":"CntyDataLinkPrior5YearEstimates!$AX$124","v":7733},{"$f":"CntyDataLinkPrior5YearEstimates!$AY$124","v":266},{"$f":"$H69/($H69+$H55)","v":0.98773789756035257},null,{"$f":"CntyDataLink!$AX$124","v":7582},{"$f":"CntyDataLink!$AY$124","v":290},{"$f":"$L69/($L69+$L55)","v":0.98288825512055999},null,{"$f":"StatisticallySignificantCalcs!$A$104","v":"N"},{"$f":"StatisticallySignificantCalcs!$J$104","v":"N"}]
[null,null,"Married Couple Fam HH",{"$f":"CntyDataLinkPrior10YearEstimate!$AZ$124","v":1354},{"$f":"CntyDataLinkPrior10YearEstimate!$BA$124","v":80},{"$f":"$D70/($D70+$D56)","v":1},null,{"$f":"CntyDataLinkPrior5YearEstimates!$AZ$124","v":6263},{"$f":"CntyDataLinkPrior5YearEstimates!$BA$124","v":313},{"$f":"$H70/($H70+$H56)","v":1},null,{"$f":"CntyDataLink!$AZ$124","v":6326},{"$f":"CntyDataLink!$BA$124","v":302},1,null,{"$f":"StatisticallySignificantCalcs!$A$105","v":"Y"},{"$f":"StatisticallySignificantCalcs!$J$105","v":"N"}]
[null,null,"M C Fam HH w/Children",{"$f":"CntyDataLinkPrior10YearEstimate!$BT$124","v":2651},{"$f":"CntyDataLinkPrior10YearEstimate!$BU$124","v":204},1,null,{"$f":"CntyDataLinkPrior5YearEstimates!$BT$124","v":2651},{"$f":"CntyDataLinkPrior5YearEstimates!$BU$124","v":204},0.98513563730955034,null,{"$f":"CntyDataLink!$BT$124","v":2264},{"$f":"CntyDataLink!$BU$124","v":247},0.95608108108108103,null,{"$f":"StatisticallySignificantCalcs!$A$106","v":"Y"},{"$f":"StatisticallySignificantCalcs!$J$106","v":"Y"}]
[null,null,"Male Head of Family HH ",{"$f":"CntyDataLinkPrior10YearEstimate!$BD$124","v":393},{"$f":"CntyDataLinkPrior10YearEstimate!$BE$124","v":135},1,null,{"$f":"CntyDataLinkPrior5YearEstimates!$BD$124","v":398},{"$f":"CntyDataLinkPrior5YearEstimates!$BE$124","v":173},1,null,{"$f":"CntyDataLink!$BD$124","v":377},{"$f":"CntyDataLink!$BE$124","v":139},1,null,{"$f":"StatisticallySignificantCalcs!$A$107","v":"N"},{"$f":"StatisticallySignificantCalcs!$J$107","v":"N"}]
[null,null,"Male Head of HH w/Children",{"$f":"CntyDataLinkPrior10YearEstimate!$BV$124","v":7807},{"$f":"CntyDataLinkPrior10YearEstimate!$BW$124","v":254},0.97819822077433904,null,{"$f":"CntyDataLinkPrior5YearEstimates!$BV$124","v":128},{"$f":"CntyDataLinkPrior5YearEstimates!$BW$124","v":77},1,null,{"$f":"CntyDataLink!$BV$124","v":210},{"$f":"CntyDataLink!$BW$124","v":99},1,null,{"$f":"StatisticallySignificantCalcs!$A$108","v":"Y"},{"$f":"StatisticallySignificantCalcs!$J$108","v":"N"}]
[null,null,"Female Head of Family HH ",{"$f":"CntyDataLinkPrior10YearEstimate!$BF$124","v":1047},{"$f":"CntyDataLinkPrior10YearEstimate!$BG$124","v":219},0.90492653414001734,null,{"$f":"CntyDataLinkPrior5YearEstimates!$BF$124","v":1072},{"$f":"CntyDataLinkPrior5YearEstimates!$BG$124","v":210},0.95458593054318785,null,{"$f":"CntyDataLink!$BF$124","v":879},{"$f":"CntyDataLink!$BG$124","v":202},0.84763741562198647,null,{"$f":"StatisticallySignificantCalcs!$A$109","v":"N"},{"$f":"StatisticallySignificantCalcs!$J$109","v":"N"}]
[null,null,"Female Head of HH w/Children",{"$f":"CntyDataLinkPrior10YearEstimate!$BX$124","v":3254},{"$f":"CntyDataLinkPrior10YearEstimate!$BY$124","v":265},0.98397338977925608,null,{"$f":"CntyDataLinkPrior5YearEstimates!$BX$124","v":557},{"$f":"CntyDataLinkPrior5YearEstimates!$BY$124","v":164},0.91611842105263153,null,{"$f":"CntyDataLink!$BX$124","v":515},{"$f":"CntyDataLink!$BY$124","v":167},0.76523031203566116,null,{"$f":"StatisticallySignificantCalcs!$A$110","v":"Y"},{"$f":"StatisticallySignificantCalcs!$J$110","v":"N"}]
[null,null,"Non-Family HH ",{"$f":"CntyDataLinkPrior10YearEstimate!$BH$124","v":1214},{"$f":"CntyDataLinkPrior10YearEstimate!$BI$124","v":240},0.81421864520456066,null,{"$f":"CntyDataLinkPrior5YearEstimates!$BH$124","v":2832},{"$f":"CntyDataLinkPrior5YearEstimates!$BI$124","v":353},0.88141923436041081,null,{"$f":"CntyDataLink!$BH$124","v":3225},{"$f":"CntyDataLink!$BI$124","v":381},0.88018558951965065,null,{"$f":"StatisticallySignificantCalcs!$A$111","v":"Y"},{"$f":"StatisticallySignificantCalcs!$J$111","v":"N"}]
[]
[null,null,"Source: 2005-2009 American Community Survey ",null,null,null,"Source: 2010-2014 American Community Survey",null,null,null,null,"Source: 2015-2019 American Community Survey"]
[]
[null,null,"Tables B17010; and B17017",null,null,null,"Tables B17010; and B17017",null,null,null,null,"Tables B17010; and B17017"]
[]
[null,null,"Data from the American Community Survey are estimates."]

{"sheet":"ACS_Table_ B17001","index":53,"n_rows":209,"n_cols":76,"rows_kept":209,"cut":false,"hidden":true,"merged":[]}
[null,"B17001. POVERTY STATUS IN THE PAST 12 MONTHS BY SEX BY AGE"]
[null,"Universe:  POPULATION FOR WHOM POVERTY STATUS IS DETERMINED"]
[null,"Data Set: 2015-2019 American Community Survey 5-Year Estimates"]
[]
[null,null,"Atkinson",null,"Auburn",null,"Brentwood",null,"Candia",null,"Chester",null,"Danville",null,"Deerfield",null,"Derry",null,"East Kingston",null,"Epping",null,"Exeter",null,"Fremont",null,"Greenland",null,"Hampstead",null,"Hampton",null,"Hampton Falls",null,"Kensington",null,"Kingston",null,"Londonderry",null,"New Castle",null,"Newfields",null,"Newington",null,"Newmarket",null,"Newton",null,"North Hampton",null,"Northwood",null,"Nottingham",null,"Plaistow",null,"Portsmouth",null,"Raymond",null,"Rye",null,"Salem",null,"Sandown",null,"Seabrook",null,"South Hampton",null,"Stratham",null,"Windham"]
[null,null,"Estimate","Margin Of Error","Estimate","Margin Of Error","Estimate","Margin Of Error","Estimate","Margin Of Error","Estimate","Margin Of Error","Estimate","Margin Of Error","Estimate","Margin Of Error","Estimate","Margin Of Error","Estimate","Margin Of Error","Estimate","Margin Of Error","Estimate","Margin Of Error","Estimate","Margin Of Error","Estimate","Margin Of Error","Estimate","Margin Of Error","Estimate","Margin Of Error","Estimate","Margin Of Error","Estimate","Margin Of Error","Estimate","Margin Of Error","Estimate","Margin Of Error","Estimate","Margin Of Error","Estimate","Margin Of Error","Estimate","Margin Of Error","Estimate","Margin Of Error","Estimate","Margin Of Error","Estimate","Margin Of Error","Estimate","Margin Of Error","Estimate","Margin Of Error","Estimate","Margin Of Error","Estimate","Margin Of Error","Estimate","Margin Of Error","Estimate","Margin Of Error","Estimate","Margin Of Error","Estimate","Margin Of Error","Estimate","Margin Of Error","Estimate","Margin Of Error","Estimate","Margin Of Error","Estimate","Margin Of Error"]
[null,"Total:",6897,74,5446,21,4337,130,3936,18,5082,42,4515,29,4460,38,33112,164,2432,196,6966,22,14880,115,4613,86,4009,19,8592,37,15403,97,2383,164,2280,133,6260,29,25885,56,835,178,1757,227,713,89,8975,84,4920,22,4447,22,4299,18,5041,28,7628,77,20812,174,10390,44,5410,90,29031,98,6389,17,8806,38,769,93,7427,21,14416,68]
[null,"Income in the past 12 months below poverty level:",149,126,77,62,119,72,173,79,136,92,104,71,270,151,2695,681,134,65,371,215,847,289,81,67,167,104,364,218,693,199,85,93,51,23,509,239,591,221,8,7,57,41,34,28,607,217,179,85,263,140,206,97,252,182,313,187,1389,326,779,317,237,173,1343,452,143,132,419,155,26,16,126,93,94,75]
[null,"Male:",84,92,23,23,58,40,130,71,99,73,39,32,106,91,1172,418,72,58,159,95,309,142,52,45,80,48,138,90,341,112,64,64,18,10,193,160,266,144,0,11,14,12,24,24,182,104,57,37,111,66,89,49,73,59,153,116,631,180,355,213,68,54,658,267,57,54,200,89,7,6,41,43,39,43]
[null,"Under 5 years",0,16,0,16,0,11,0,11,0,16,0,11,0,11,211,180,0,11,0,16,0,18,0,11,0,11,24,35,47,44,0,11,0,11,0,16,19,23,0,11,0,11,0,11,0,16,0,11,0,11,0,11,26,40,0,16,28,31,0,18,0,16,127,100,0,16,9,14,0,11,0,16,0,18]
[null,"5 years",0,16,0,16,0,11,0,11,0,16,0,11,0,11,0,24,0,11,0,16,19,26,0,11,0,11,0,16,0,18,0,11,0,11,0,16,0,21,0,11,0,11,0,11,0,16,0,11,0,11,0,11,0,16,0,16,0,21,0,18,0,16,47,56,0,16,0,16,0,11,0,16,0,18]
[null,"6 to 11 years",0,16,0,16,0,11,0,11,0,16,0,11,0,11,125,112,0,11,46,53,0,18,0,11,14,20,0,16,8,11,19,28,0,11,86,86,76,83,0,11,4,7,0,11,0,16,0,11,30,44,10,15,0,16,27,39,38,38,63,62,0,16,23,33,0,16,25,33,3,4,0,16,0,18]
[null,"12 to 14 years",0,16,0,16,0,11,0,11,0,16,0,11,30,44,144,124,5,7,0,16,28,33,0,11,0,11,9,15,13,19,0,11,0,11,25,39,33,40,0,11,0,11,2,4,0,16,0,11,0,11,30,35,0,16,0,16,20,21,78,83,0,16,23,33,0,16,0,16,0,11,0,16,0,18]
[null,"15 years",0,16,0,16,0,11,0,11,12,19,0,11,0,11,34,40,24,27,0,16,13,23,0,11,0,11,0,16,0,18,8,11,0,11,0,16,14,22,0,11,0,11,0,11,0,16,7,11,0,11,0,11,0,16,0,16,0,21,41,62,0,16,6,10,0,16,7,11,0,11,0,16,0,18]
[null,"16 and 17 years",0,16,8,13,0,11,0,11,0,16,0,11,0,11,103,90,20,28,0,16,13,23,0,11,0,11,0,16,0,18,0,11,0,11,0,16,36,29,0,11,0,11,0,11,24,37,0,11,0,11,0,11,0,16,0,16,0,21,0,18,0,16,0,21,0,16,0,16,0,11,0,16,0,18]
[null,"18 to 24 years",44,68,0,16,0,11,0,11,26,40,13,20,0,11,72,53,0,11,19,29,19,41,0,11,0,11,32,37,14,14,0,11,0,11,72,110,17,23,0,11,0,11,0,11,78,61,11,18,34,39,0,11,26,32,2,5,50,46,75,103,0,16,100,96,0,16,9,14,0,11,0,16,16,24]
[null,"25 to 34 years",0,16,0,16,0,11,0,11,0,16,0,11,41,50,67,53,0,11,0,16,30,34,11,18,0,11,29,35,8,12,0,11,5,6,0,16,0,21,0,11,0,11,0,11,14,23,22,24,4,8,22,34,21,25,3,5,118,75,18,30,0,16,111,102,39,47,10,16,0,11,0,16,0,18]
[null,"35 to 44 years",0,16,0,16,2,4,7,11,12,20,0,11,0,11,162,127,0,11,0,16,0,18,0,11,0,11,0,16,16,16,0,11,4,5,0,16,12,15,0,11,0,11,0,11,16,26,0,11,4,8,0,11,0,16,18,28,122,99,15,23,0,16,25,25,0,16,23,26,0,11,1,3,0,18]
[null,"45 to 54 years",0,16,1,3,10,14,11,17,18,22,0,11,12,18,67,61,0,11,46,57,102,112,0,11,31,31,0,16,91,78,0,11,0,11,0,16,9,14,0,11,4,8,3,4,5,8,0,11,0,11,0,11,0,16,59,75,129,111,1,4,13,22,3,5,0,16,12,18,0,11,18,32,22,34]
[null,"55 to 64 years",20,32,0,16,27,23,29,33,22,25,19,20,16,21,145,105,6,9,0,16,28,34,19,21,25,23,0,16,56,40,20,30,3,4,0,16,6,11,0,11,0,11,6,7,14,21,0,11,18,20,17,20,0,16,0,16,55,38,51,43,39,44,138,105,18,27,73,67,0,11,22,30,1,3]
[null,"65 to 74 years",20,32,14,19,10,17,9,16,9,15,7,10,0,11,38,31,5,7,48,45,10,14,14,21,0,11,29,32,69,51,17,27,6,6,0,16,34,32,0,11,3,5,4,5,14,21,8,13,17,17,10,15,0,16,0,16,34,39,13,20,16,24,53,84,0,16,21,25,4,4,0,16,0,18]
[null,"75 years and over",0,16,0,16,9,15,74,66,0,16,0,11,7,11,4,6,12,13,0,16,47,30,8,15,10,14,15,24,19,21,0,11,0,11,10,15,10,16,0,11,3,4,9,21,17,26,9,13,4,10,0,11,0,16,44,73,37,36,0,18,0,16,2,4,0,16,11,16,0,11,0,16,0,18]
[null,"Female:",65,55,54,64,61,43,43,31,37,47,65,57,164,78,1523,385,62,33,212,142,538,193,29,28,87,70,226,144,352,117,21,31,33,21,316,162,325,107,8,7,43,31,10,10,425,171,122,69,152,95,117,68,179,131,160,124,758,240,424,159,169,149,685,222,86,87,219,102,19,12,85,65,55,50]
[null,"Under 5 years",0,16,0,16,0,11,0,11,0,16,0,11,0,11,99,69,0,11,46,52,0,18,0,11,0,11,22,31,0,18,0,11,0,11,0,16,12,14,0,11,0,11,0,11,11,16,0,11,15,22,8,13,22,36,0,16,43,40,0,18,0,16,39,51,25,39,0,16,0,11,0,16,0,18]
[null,"5 years",0,16,0,16,0,11,0,11,0,16,0,11,0,11,0,24,0,11,15,23,0,18,0,11,0,11,0,16,0,18,0,11,0,11,0,16,0,21,0,11,0,11,0,11,0,16,0,11,0,11,0,11,0,16,0,16,0,21,0,18,0,16,0,21,0,16,0,16,0,11,0,16,0,18]
[null,"6 to 11 years",0,16,0,16,0,11,0,11,0,16,0,11,0,11,231,177,5,7,0,16,20,27,0,11,40,42,44,68,5,8,0,11,0,11,16,25,8,12,0,11,8,9,0,11,15,24,0,11,22,33,10,16,36,42,28,40,53,59,14,23,0,16,0,21,0,16,38,40,3,4,0,16,0,18]
[null,"12 to 14 years",0,16,0,16,0,11,0,11,0,16,0,11,0,11,24,40,0,11,0,16,20,26,0,11,0,11,10,15,0,18,0,11,0,11,0,16,5,7,0,11,0,11,0,11,16,24,7,11,0,11,10,16,0,16,0,16,11,17,0,18,12,20,0,21,0,16,0,16,0,11,0,16,0,18]
[null,"15 years",0,16,0,16,0,11,0,11,0,16,0,11,0,11,27,35,0,11,0,16,0,18,0,11,0,11,11,19,0,18,0,11,0,11,0,16,16,22,0,11,3,6,2,4,0,16,0,11,0,11,0,11,0,16,49,76,0,21,13,20,0,16,33,48,0,16,0,16,0,11,0,16,0,18]
[null,"16 and 17 years",0,16,0,16,0,11,0,11,0,16,0,11,0,11,23,41,0,11,0,16,0,18,0,11,0,11,0,16,0,18,0,11,0,11,0,16,21,23,0,11,3,6,0,11,0,16,0,11,0,11,0,11,13,20,0,16,58,53,0,18,13,21,0,21,0,16,0,16,0,11,0,16,0,18]
[null,"18 to 24 years",0,16,41,62,1,3,0,11,15,23,0,11,39,31,69,51,7,10,0,16,10,19,12,18,0,11,27,42,18,23,0,11,13,19,72,115,13,17,0,11,6,12,2,5,202,115,0,11,0,11,9,17,0,16,14,22,82,69,62,71,17,28,31,37,0,16,23,37,0,11,0,16,0,18]
[null,"25 to 34 years",21,34,0,16,1,3,0,11,0,16,8,11,17,21,351,183,9,13,50,47,79,107,0,11,15,22,23,34,65,50,0,11,0,11,0,16,31,33,0,11,4,7,0,11,49,41,20,22,3,7,26,27,38,43,1,3,105,64,50,50,0,16,174,89,28,43,29,34,2,4,1,4,1,3]
[null,"35 to 44 years",0,16,13,19,0,11,0,11,10,17,1,2,0,11,154,109,0,11,0,16,78,61,0,11,5,11,12,17,34,33,0,11,0,11,103,79,81,54,0,11,9,10,0,11,16,26,30,38,39,42,20,20,44,35,30,42,165,94,123,92,79,107,46,60,0,16,0,16,6,6,0,16,0,18]
[null,"45 to 54 years",0,16,0,16,0,11,16,17,12,20,39,49,12,18,127,105,11,10,14,21,12,18,0,11,8,13,10,16,22,13,21,31,0,11,19,30,26,27,0,11,4,6,0,11,21,27,10,16,0,11,11,17,11,13,0,16,31,27,11,18,0,16,83,67,20,31,39,51,2,3,9,17,26,39]
[null,"55 to 64 years",18,28,0,16,19,18,17,19,0,16,17,20,55,52,217,87,0,11,29,34,172,108,17,20,19,20,0,16,44,37,0,11,16,10,20,32,36,31,0,11,3,5,4,6,19,27,39,40,17,18,23,34,0,16,19,30,57,30,111,80,33,54,41,29,12,20,21,24,6,6,57,50,28,32]
[null,"65 to 74 years",12,21,0,16,11,19,0,11,0,16,0,11,23,27,111,104,6,9,20,30,60,42,0,11,0,11,37,34,117,85,0,11,0,11,67,83,56,38,3,4,0,11,2,3,26,31,7,11,19,24,0,11,0,16,0,16,126,53,1,4,15,23,66,55,0,16,33,40,0,11,0,16,0,18]
[null,"75 years and over",14,22,0,16,29,28,10,17,0,16,0,11,18,21,90,73,24,18,38,44,87,67,0,11,0,11,30,28,47,39,0,11,4,6,19,22,20,23,5,8,3,4,0,11,50,83,9,14,37,28,0,11,15,23,19,28,27,31,39,35,0,16,172,99,1,3,36,32,0,11,18,30,0,18]
[null,"Income in the past 12 months at or above poverty level:",6748,180,5369,66,4218,144,3763,83,4946,101,4411,78,4190,155,30417,677,2298,178,6595,218,14033,318,4532,115,3842,101,8228,202,14710,237,2298,183,2229,128,5751,240,25294,238,827,178,1700,231,679,87,8368,252,4741,89,4184,141,4093,99,4789,186,7315,225,19423,390,9611,318,5173,191,27688,464,6246,133,8387,164,743,92,7301,91,14322,97]
[null,"Male:",3411,267,2746,157,2112,118,1945,139,2437,160,2279,116,2069,128,15344,544,1154,123,3363,216,6520,334,2251,156,1848,126,3978,252,7220,313,1223,110,1147,82,3122,292,12472,290,379,101,797,112,347,65,4399,273,2496,183,1991,128,1882,167,2255,146,3412,277,9501,373,4800,316,2797,227,14130,470,3071,257,4078,217,363,49,3792,253,7256,354]
[null,"Under 5 years",163,117,196,72,130,72,88,46,122,59,77,64,111,65,654,178,37,22,218,112,330,127,139,83,100,53,91,70,237,117,31,21,86,30,145,126,705,143,0,11,32,22,22,17,179,90,85,53,31,29,58,45,97,57,151,94,340,127,297,122,78,61,749,211,170,95,85,64,12,8,230,101,311,146]
[null,"5 years",0,16,53,37,42,31,0,11,98,67,0,11,24,24,151,82,11,11,60,53,73,56,17,26,9,14,34,32,22,26,26,18,8,8,0,16,58,50,0,11,6,7,3,4,56,43,29,26,21,22,14,20,20,17,0,16,55,46,34,40,42,62,168,90,74,71,19,32,0,11,19,32,47,70]
[null,"6 to 11 years",227,125,148,62,226,69,134,89,143,64,136,51,113,60,1128,260,76,33,340,172,418,117,202,92,161,64,245,90,364,122,110,42,60,29,116,88,1055,181,5,8,42,25,13,10,159,101,119,52,40,35,146,52,193,94,124,94,525,143,349,124,196,86,859,235,221,96,242,94,10,7,449,133,640,192]
[null,"12 to 14 years",95,68,83,44,109,50,94,60,133,60,157,64,79,37,510,134,27,16,90,75,274,103,49,37,57,42,212,80,265,82,39,18,68,36,99,74,497,114,11,15,40,22,6,6,210,95,127,63,64,63,27,23,39,40,97,66,266,93,196,99,30,32,339,105,81,61,137,81,11,8,127,74,393,121]
[null,"15 years",14,22,40,61,27,26,39,57,6,10,0,11,33,28,201,84,14,12,0,16,96,52,0,11,9,13,98,100,63,45,12,13,18,10,19,30,235,92,15,21,7,8,2,4,78,48,31,27,43,33,8,13,33,32,85,56,68,53,34,45,16,26,137,78,25,38,36,39,6,6,119,103,126,72]
[null,"16 and 17 years",268,112,59,40,97,52,0,11,63,46,134,87,74,60,454,141,80,40,43,45,129,62,29,37,36,22,143,103,192,67,16,15,22,12,102,84,421,108,27,33,15,11,4,5,47,42,48,34,30,26,27,26,26,29,85,88,226,90,42,27,80,57,341,121,177,135,88,73,16,15,113,70,130,69]
[null,"18 to 24 years",310,143,192,91,51,38,152,69,239,138,218,75,125,52,1488,263,46,36,195,114,413,173,159,79,132,65,277,89,535,152,88,52,90,39,233,153,1138,186,7,7,48,25,46,37,484,232,310,138,107,56,95,52,117,60,270,127,746,169,321,168,121,70,1352,295,373,135,221,106,24,14,170,106,552,233]
[null,"25 to 34 years",175,94,259,97,146,70,183,77,256,74,119,61,283,80,1853,292,132,57,540,187,653,202,212,80,143,64,480,117,684,176,160,53,116,30,549,168,1201,201,26,26,57,29,11,9,860,175,272,96,208,91,215,69,237,90,644,220,2019,283,671,161,285,179,2113,333,327,111,420,134,43,21,336,155,765,212]
[null,"35 to 44 years",343,99,400,61,290,71,211,51,252,71,369,75,137,58,2217,281,100,25,452,127,690,141,282,69,265,57,410,113,667,121,98,34,90,25,243,90,1726,179,0,11,94,36,17,10,649,165,231,65,213,58,282,82,341,82,405,139,1211,154,552,116,235,109,1570,227,237,111,495,115,42,19,418,109,908,171]
[null,"45 to 54 years",589,133,409,99,477,87,212,70,438,94,454,83,313,83,2422,276,182,48,442,135,1274,173,438,92,244,80,482,115,1134,206,171,39,144,29,640,182,1962,175,40,23,179,50,60,22,689,143,562,100,331,85,319,99,477,117,490,137,1317,162,655,180,437,150,1995,221,563,164,592,176,59,17,553,129,1297,219]
[null,"55 to 64 years",608,149,515,108,286,79,497,87,364,93,326,101,448,92,2533,272,249,41,400,131,930,188,375,84,341,85,708,146,1433,206,286,74,218,39,416,148,1927,206,102,43,154,43,93,30,397,106,304,72,442,95,357,88,324,74,526,145,1267,159,980,194,594,152,2220,238,508,152,775,148,50,18,671,134,1083,211]
[null,"65 to 74 years",392,118,337,60,132,48,249,49,277,77,195,60,221,61,1235,150,120,26,449,133,557,98,141,47,242,49,493,93,972,133,125,42,156,36,339,110,1090,152,83,32,74,27,41,14,378,97,285,66,321,75,203,64,197,65,327,102,969,144,491,108,468,131,1482,193,228,82,689,125,59,18,359,109,553,124]
[null,"75 years and over",227,91,55,33,99,41,86,45,46,28,94,47,108,73,498,145,80,34,134,81,683,143,208,70,109,52,305,108,652,132,61,24,71,26,221,97,457,139,63,32,49,29,29,12,213,98,93,58,140,60,131,66,154,69,208,94,492,117,178,82,215,95,805,171,87,57,279,73,31,19,228,86,451,109]
[null,"Female:",3337,261,2623,185,2106,130,1818,133,2509,158,2132,118,2121,128,15073,623,1144,96,3232,252,7513,331,2281,149,1994,117,4250,280,7490,291,1075,107,1082,89,2629,353,12822,312,448,101,903,136,332,47,3969,293,2245,187,2193,144,2211,171,2534,168,3903,283,9922,383,4811,328,2376,226,13558,480,3175,233,4309,204,380,58,3509,253,7066,361]
[null,"Under 5 years",112,65,146,75,145,69,92,65,131,59,67,50,64,39,625,155,6,9,174,94,315,123,109,57,63,35,222,104,123,65,33,20,63,21,75,72,622,139,18,28,50,40,6,7,229,107,118,52,47,35,74,58,136,64,130,74,356,114,277,120,96,69,558,187,191,113,120,75,7,7,95,70,439,175]
[null,"5 years",30,33,8,15,0,11,35,31,30,23,17,25,6,11,171,98,5,9,74,58,48,38,21,24,58,34,11,18,47,42,0,11,4,5,44,49,163,73,0,11,19,19,4,5,47,41,0,11,18,20,10,16,23,34,60,57,146,98,44,47,30,31,73,58,0,16,21,31,6,5,55,41,61,50]
[null,"6 to 11 years",289,182,111,66,152,57,65,55,199,89,141,69,126,73,827,168,79,26,149,100,492,110,138,57,201,68,269,103,569,141,75,28,54,20,223,150,700,174,8,9,66,30,13,13,208,109,156,57,169,113,204,63,132,67,312,115,431,135,186,97,110,73,729,195,319,186,313,96,13,9,206,120,840,194]
[null,"12 to 14 years",61,49,126,61,74,43,13,19,53,35,92,42,45,32,440,157,68,32,47,40,304,103,112,65,98,59,225,69,236,85,46,24,36,19,73,67,487,123,21,19,64,24,4,5,102,59,111,52,137,91,39,31,117,56,80,97,304,95,253,157,60,53,328,124,69,68,98,86,21,17,143,77,448,176]
[null,"15 years",36,38,32,28,9,15,21,24,11,17,9,16,66,44,326,142,27,29,41,39,83,63,34,31,69,57,16,20,53,55,12,20,15,14,0,16,209,79,19,23,23,16,0,11,34,50,20,24,36,33,7,13,10,15,16,26,89,45,150,97,0,16,218,100,20,30,36,35,10,8,0,16,66,48]
[null,"16 and 17 years",35,41,103,49,110,61,70,47,71,43,118,54,100,52,457,142,33,22,19,29,167,65,45,37,25,21,132,85,174,89,8,12,26,22,139,92,457,101,4,6,46,29,7,7,60,85,49,46,87,50,61,42,175,82,86,65,111,41,183,79,16,25,242,83,21,34,0,16,9,6,97,91,210,109]
[null,"18 to 24 years",200,131,154,88,59,47,191,71,250,92,174,63,162,69,1590,321,104,51,137,85,415,143,131,59,96,67,276,111,473,156,64,47,63,27,152,116,1102,224,4,6,37,19,8,9,331,170,115,62,86,49,286,203,110,61,273,123,628,145,275,116,73,56,1154,284,285,124,197,115,24,15,201,123,384,164]
[null,"25 to 34 years",265,108,265,103,188,61,151,64,253,94,164,74,351,88,1954,293,77,31,476,162,971,207,251,71,138,51,420,136,535,151,122,76,99,30,365,145,1251,217,24,24,61,28,27,16,701,163,286,100,112,56,197,73,196,72,541,217,2007,294,620,148,83,55,1627,248,362,134,439,130,32,16,341,135,365,138]
[null,"35 to 44 years",277,97,346,65,272,78,210,57,248,76,333,72,181,67,1796,237,109,27,499,129,802,147,278,56,266,54,468,104,740,106,122,34,102,28,141,85,1496,174,4,7,97,37,24,15,508,88,363,88,236,52,319,87,364,83,481,126,1359,203,407,101,181,70,1514,171,413,102,440,126,41,14,428,85,1106,178]
[null,"45 to 54 years",767,148,476,87,440,75,225,76,443,105,472,70,386,92,2613,311,243,43,526,148,1081,142,446,92,344,87,547,117,1190,201,180,41,229,54,606,162,2344,208,53,31,173,45,59,20,492,136,403,86,304,87,256,74,451,93,612,163,1273,187,738,208,369,116,2160,238,488,138,652,149,63,23,645,126,1247,212]
[null,"55 to 64 years",555,120,507,94,286,73,479,91,516,94,288,89,337,74,2383,283,187,48,501,132,983,163,331,75,271,63,891,153,1528,208,245,38,177,35,391,145,1990,198,118,52,160,40,80,26,645,111,277,78,414,106,357,79,358,82,645,165,1447,216,985,199,574,135,2175,244,535,126,773,162,59,15,686,130,959,208]
[null,"65 to 74 years",478,149,218,56,151,69,199,43,203,70,177,64,208,58,1294,175,131,30,450,135,848,173,232,55,227,49,462,94,1072,138,143,38,137,29,282,85,1292,135,104,41,61,26,57,20,447,86,249,68,340,91,250,76,340,84,363,105,1088,198,474,115,502,139,1531,178,244,82,609,125,51,18,410,100,508,110]
[null,"75 years and over",232,68,131,56,220,65,67,42,101,52,80,39,89,47,597,141,75,28,139,82,1004,187,153,65,138,41,311,125,750,127,25,18,77,29,138,80,709,171,71,36,46,25,43,23,165,107,98,65,207,78,151,76,122,66,304,136,683,153,219,77,282,119,1249,224,228,159,611,148,44,18,202,86,433,107]
[]
[]
[]
[null,"Calculated Table B17001. POVERTY STATUS IN THE PAST 12 MONTHS BY SEX BY AGE"]
[null,"Universe:  POPULATION FOR WHOM POVERTY STATUS IS DETERMINED"]
[null,"Data Set: 2015-2019 American Community Survey 5-Year Estimates"]
[]
[null,null,"Atkinson",null,"Auburn",null,"Brentwood",null,"Candia",null,"Chester",null,"Danville",null,"Deerfield",null,"Derry",null,"East Kingston",null,"Epping",null,"Exeter",null,"Fremont",null,"Greenland",null,"Hampstead",null,"Hampton",null,"Hampton Falls",null,"Kensington",null,"Kingston",null,"Londonderry",null,"New Castle",null,"Newfields",null,"Newington",null,"Newmarket",null,"Newton",null,"North Hampton",null,"Northwood",null,"Nottingham",null,"Plaistow",null,"Portsmouth",null,"Raymond",null,"Rye",null,"Salem",null,"Sandown",null,"Seabrook",null,"South Hampton",null,"Stratham",null,"Windham"]
[null,null,"Estimate","Margin Of Error","Estimate","Margin Of Error","Estimate","Margin Of Error","Estimate","Margin Of Error","Estimate","Margin Of Error","Estimate","Margin Of Error","Estimate","Margin Of Error","Estimate","Margin Of Error","Estimate","Margin Of Error","Estimate","Margin Of Error","Estimate","Margin Of Error","Estimate","Margin Of Error","Estimate","Margin Of Error","Estimate","Margin Of Error","Estimate","Margin Of Error","Estimate","Margin Of Error","Estimate","Margin Of Error","Estimate","Margin Of Error","Estimate","Margin Of Error","Estimate","Margin Of Error","Estimate","Margin Of Error","Estimate","Margin Of Error","Estimate","Margin Of Error","Estimate","Margin Of Error","Estimate","Margin Of Error","Estimate","Margin Of Error","Estimate","Margin Of Error","Estimate","Margin Of Error","Estimate","Margin Of Error","Estimate","Margin Of Error","Estimate","Margin Of Error","Estimate","Margin Of Error","Estimate","Margin Of Error","Estimate","Margin Of Error","Estimate","Margin Of Error","Estimate","Margin Of Error","Estimate","Margin Of Error"]
[null,"Total:",{"$f":"C7","v":6897},{"$f":"D7","v":74},5446,21,4337,130,3936,18,5082,42,4515,29,4460,38,33112,164,2432,196,6966,22,14880,115,{"$f":"Y7","v":4613},86,4009,19,8592,37,15403,97,2383,164,2280,133,6260,29,25885,56,{"$f":"AO7","v":835},178,1757,227,713,89,8975,84,4920,22,4447,22,4299,18,5041,28,{"$f":"BE7","v":7628},77,20812,174,10390,44,5410,90,29031,98,6389,17,8806,38,769,93,7427,21,14416,68]
[null,"Income in the past 12 months below poverty level:",{"$f":"C8","v":149},{"$f":"D8","v":126},77,62,119,72,173,79,136,92,104,71,270,151,2695,681,134,65,371,215,847,289,{"$f":"Y8","v":81},67,167,104,364,218,693,199,85,93,51,23,509,239,591,221,{"$f":"AO8","v":8},7,57,41,34,28,607,217,179,85,263,140,206,97,252,182,{"$f":"BE8","v":313},187,1389,326,779,317,237,173,1343,452,143,132,419,155,26,16,126,93,94,75]
[null,"Under 5 years",{"$f":"C10+C24","v":0},{"$f":"SQRT(((D10^2))+((D34^2)))","v":32.249030993194197},{"$f":"E10+E24","v":0},{"$f":"SQRT(((F10^2))+((F34^2)))","v":22.627416997969522},{"$f":"G10+G24","v":0},{"$f":"SQRT(((H10^2))+((H34^2)))","v":21.095023109728988},{"$f":"I10+I24","v":0},{"$f":"SQRT(((J10^2))+((J34^2)))","v":21.95449840010015},{"$f":"K10+K24","v":0},{"$f":"SQRT(((L10^2))+((L34^2)))","v":22.627416997969522},{"$f":"M10+M24","v":0},{"$f":"SQRT(((N10^2))+((N34^2)))","v":22.825424421026653},{"$f":"O10+O24","v":0},{"$f":"SQRT(((P10^2))+((P34^2)))","v":53.150729063673246},{"$f":"Q10+Q24","v":310},{"$f":"SQRT(((R10^2))+((R34^2)))","v":199.92248497855363},{"$f":"S10+S24","v":0},{"$f":"SQRT(((T10^2))+((T34^2)))","v":15.556349186104045},{"$f":"U10+U24","v":46},{"$f":"SQRT(((V10^2))+((V34^2)))","v":37.576588456111871},{"$f":"W10+W24","v":0},{"$f":"SQRT(((X10^2))+((X34^2)))","v":109.48972554536796},{"$f":"Y10+Y24","v":0},{"$f":"SQRT(((Z10^2))+((Z34^2)))","v":22.825424421026653},{"$f":"AA10+AA24","v":0},{"$f":"SQRT(((AB10^2))+((AB34^2)))","v":22.825424421026653},{"$f":"AC10+AC24","v":46},{"$f":"SQRT(((AD10^2))+((AD34^2)))","v":38.483762809787713},{"$f":"AE10+AE24","v":47},{"$f":"SQRT(((AF10^2))+((AF34^2)))","v":57.489129407219238},{"$f":"AG10+AG24","v":0},{"$f":"SQRT(((AH10^2))+((AH34^2)))","v":15.556349186104045},{"$f":"AI10+AI24","v":0},{"$f":"SQRT(((AJ10^2))+((AJ34^2)))","v":14.866068747318506},{"$f":"AK10+AK24","v":0},{"$f":"SQRT(((AL10^2))+((AL34^2)))","v":35.777087639996637},{"$f":"AM10+AM24","v":31},{"$f":"SQRT(((AN10^2))+((AN34^2)))","v":38.600518131237564},{"$f":"AO10+AO24","v":0},{"$f":"SQRT(((AP10^2))+((AP34^2)))","v":15.556349186104045},{"$f":"AQ10+AQ24","v":0},{"$f":"SQRT(((AR10^2))+((AR34^2)))","v":12.083045973594572},{"$f":"AS10+AS24","v":0},{"$f":"SQRT(((AT10^2))+((AT34^2)))","v":12.529964086141668},{"$f":"AU10+AU24","v":11},{"$f":"SQRT(((AV10^2))+((AV34^2)))","v":31.384709652950431},{"$f":"AW10+AW24","v":0},{"$f":"SQRT(((AX10^2))+((AX34^2)))","v":41.484937025383083},{"$f":"AY10+AY24","v":15},{"$f":"SQRT(((AZ10^2))+((AZ34^2)))","v":21.095023109728988},{"$f":"BA10+BA24","v":8},{"$f":"SQRT(((BB10^2))+((BB34^2)))","v":35.735136770411273},{"$f":"BC10+BC24","v":48},{"$f":"SQRT(((BD10^2))+((BD34^2)))","v":43.08131845707603},{"$f":"BE10+BE24","v":0},{"$f":"SQRT(((BF10^2))+((BF34^2)))","v":34},{"$f":"BG10+BG24","v":71},{"$f":"SQRT(((BH10^2))+((BH34^2)))","v":43.139309220245984},{"$f":"BI10+BI24","v":0},{"$f":"SQRT(((BJ10^2))+((BJ34^2)))","v":82},{"$f":"BK10+BK24","v":0},{"$f":"SQRT(((BL10^2))+((BL34^2)))","v":56.320511361314892},{"$f":"BM10+BM24","v":166},{"$f":"SQRT(((BN10^2))+((BN34^2)))","v":104.12012293500234},{"$f":"BO10+BO24","v":25},{"$f":"SQRT(((BP10^2))+((BP34^2)))","v":25.612496949731394},{"$f":"BQ10+BQ24","v":9},{"$f":"SQRT(((BR10^2))+((BR34^2)))","v":27.784887978899608},{"$f":"BS10+BS24","v":0},{"$f":"SQRT(((BT10^2))+((BT34^2)))","v":12.529964086141668},{"$f":"BU10+BU24","v":0},{"$f":"SQRT(((BV10^2))+((BV34^2)))","v":52.497618993626752},{"$f":"BW10+BW24","v":0},{"$f":"SQRT(((BX10^2))+((BX34^2)))","v":36.715119501371639}]
[null,"5 to 17 years",{"$f":"C11+C12+C13+C14+C15+C25+C26+C27+C28+C29","v":0},{"$f":"SQRT((D11^2)+(D12^2)+(D13^2)+(D14^2)+(D15^2)+(D25^2)+(D26^2)+(D27^2)+(D28)+(D29^2))","v":48.166378315169183},{"$f":"E11+E12+E13+E14+E15+E25+E26+E27+E28+E29","v":8},{"$f":"SQRT((F11^2)+(F12^2)+(F13^2)+(F14^2)+(F15^2)+(F25^2)+(F26^2)+(F27^2)+(F28)+(F29^2))","v":47.254629402842639},{"$f":"G11+G12+G13+G14+G15+G25+G26+G27+G28+G29","v":0},{"$f":"SQRT((H11^2)+(H12^2)+(H13^2)+(H14^2)+(H15^2)+(H25^2)+(H26^2)+(H27^2)+(H28)+(H29^2))","v":33.166247903554002},{"$f":"I11+I12+I13+I14+I15+I25+I26+I27+I28+I29","v":0},{"$f":"SQRT((J11^2)+(J12^2)+(J13^2)+(J14^2)+(J15^2)+(J25^2)+(J26^2)+(J27^2)+(J28)+(J29^2))","v":33.166247903554002},{"$f":"K11+K12+K13+K14+K15+K25+K26+K27+K28+K29","v":12},{"$f":"SQRT((L11^2)+(L12^2)+(L13^2)+(L14^2)+(L15^2)+(L25^2)+(L26^2)+(L27^2)+(L28)+(L29^2))","v":49.244289008980523},{"$f":"M11+M12+M13+M14+M15+M25+M26+M27+M28+M29","v":0},{"$f":"SQRT((N11^2)+(N12^2)+(N13^2)+(N14^2)+(N15^2)+(N25^2)+(N26^2)+(N27^2)+(N28)+(N29^2))","v":33.166247903554002},{"$f":"O11+O12+O13+O14+O15+O25+O26+O27+O28+O29","v":30},{"$f":"SQRT((P11^2)+(P12^2)+(P13^2)+(P14^2)+(P15^2)+(P25^2)+(P26^2)+(P27^2)+(P28)+(P29^2))","v":53.990739946772351},{"$f":"Q11+Q12+Q13+Q14+Q15+Q25+Q26+Q27+Q28+Q29","v":711},{"$f":"SQRT((R11^2)+(R12^2)+(R13^2)+(R14^2)+(R15^2)+(R25^2)+(R26^2)+(R27^2)+(R28)+(R29^2))","v":270.95571593897034},{"$f":"S11+S12+S13+S14+S15+S25+S26+S27+S28+S29","v":54},{"$f":"SQRT((T11^2)+(T12^2)+(T13^2)+(T14^2)+(T15^2)+(T25^2)+(T26^2)+(T27^2)+(T28)+(T29^2))","v":47.191100855987671},{"$f":"U11+U12+U13+U14+U15+U25+U26+U27+U28+U29","v":61},{"$f":"SQRT((V11^2)+(V12^2)+(V13^2)+(V14^2)+(V15^2)+(V25^2)+(V26^2)+(V27^2)+(V28)+(V29^2))","v":71.735625737843819},{"$f":"W11+W12+W13+W14+W15+W25+W26+W27+W28+W29","v":113},{"$f":"SQRT((X11^2)+(X12^2)+(X13^2)+(X14^2)+(X15^2)+(X25^2)+(X26^2)+(X27^2)+(X28)+(X29^2))","v":72.235725233432802},{"$f":"Y11+Y12+Y13+Y14+Y15+Y25+Y26+Y27+Y28+Y29","v":0},{"$f":"SQRT((Z11^2)+(Z12^2)+(Z13^2)+(Z14^2)+(Z15^2)+(Z25^2)+(Z26^2)+(Z27^2)+(Z28)+(Z29^2))","v":33.166247903554002},{"$f":"AA11+AA12+AA13+AA14+AA15+AA25+AA26+AA27+AA28+AA29","v":54},{"$f":"SQRT((AB11^2)+(AB12^2)+(AB13^2)+(AB14^2)+(AB15^2)+(AB25^2)+(AB26^2)+(AB27^2)+(AB28)+(AB29^2))","v":54.972720507539009},{"$f":"AC11+AC12+AC13+AC14+AC15+AC25+AC26+AC27+AC28+AC29","v":74},{"$f":"SQRT((AD11^2)+(AD12^2)+(AD13^2)+(AD14^2)+(AD15^2)+(AD25^2)+(AD26^2)+(AD27^2)+(AD28)+(AD29^2))","v":81.418671077339496},{"$f":"AE11+AE12+AE13+AE14+AE15+AE25+AE26+AE27+AE28+AE29","v":26},{"$f":"SQRT((AF11^2)+(AF12^2)+(AF13^2)+(AF14^2)+(AF15^2)+(AF25^2)+(AF26^2)+(AF27^2)+(AF28)+(AF29^2))","v":50.07993610219566},{"$f":"AG11+AG12+AG13+AG14+AG15+AG25+AG26+AG27+AG28+AG29","v":27},{"$f":"SQRT((AH11^2)+(AH12^2)+(AH13^2)+(AH14^2)+(AH15^2)+(AH25^2)+(AH26^2)+(AH27^2)+(AH28)+(AH29^2))","v":41.98809355043403},{"$f":"AI11+AI12+AI13+AI14+AI15+AI25+AI26+AI27+AI28+AI29","v":0},{"$f":"SQRT((AJ11^2)+(AJ12^2)+(AJ13^2)+(AJ14^2)+(AJ15^2)+(AJ25^2)+(AJ26^2)+(AJ27^2)+(AJ28)+(AJ29^2))","v":33.166247903554002},{"$f":"AK11+AK12+AK13+AK14+AK15+AK25+AK26+AK27+AK28+AK29","v":127},{"$f":"SQRT((AL11^2)+(AL12^2)+(AL13^2)+(AL14^2)+(AL15^2)+(AL25^2)+(AL26^2)+(AL27^2)+(AL28)+(AL29^2))","v":105.32805893967665},{"$f":"AM11+AM12+AM13+AM14+AM15+AM25+AM26+AM27+AM28+AM29","v":209},{"$f":"SQRT((AN11^2)+(AN12^2)+(AN13^2)+(AN14^2)+(AN15^2)+(AN25^2)+(AN26^2)+(AN27^2)+(AN28)+(AN29^2))","v":106.95793565696751},{"$f":"AO11+AO12+AO13+AO14+AO15+AO25+AO26+AO27+AO28+AO29","v":0},{"$f":"SQRT((AP11^2)+(AP12^2)+(AP13^2)+(AP14^2)+(AP15^2)+(AP25^2)+(AP26^2)+(AP27^2)+(AP28)+(AP29^2))","v":33.166247903554002},{"$f":"AQ11+AQ12+AQ13+AQ14+AQ15+AQ25+AQ26+AQ27+AQ28+AQ29","v":18},{"$f":"SQRT((AR11^2)+(AR12^2)+(AR13^2)+(AR14^2)+(AR15^2)+(AR25^2)+(AR26^2)+(AR27^2)+(AR28)+(AR29^2))","v":29.966648127543394},{"$f":"AS11+AS12+AS13+AS14+AS15+AS25+AS26+AS27+AS28+AS29","v":4},{"$f":"SQRT((AT11^2)+(AT12^2)+(AT13^2)+(AT14^2)+(AT15^2)+(AT25^2)+(AT26^2)+(AT27^2)+(AT28)+(AT29^2))","v":31.432467291003423},{"$f":"AU11+AU12+AU13+AU14+AU15+AU25+AU26+AU27+AU28+AU29","v":55},{"$f":"SQRT((AV11^2)+(AV12^2)+(AV13^2)+(AV14^2)+(AV15^2)+(AV25^2)+(AV26^2)+(AV27^2)+(AV28)+(AV29^2))","v":63.820059542435402},{"$f":"AW11+AW12+AW13+AW14+AW15+AW25+AW26+AW27+AW28+AW29","v":14},{"$f":"SQRT((AX11^2)+(AX12^2)+(AX13^2)+(AX14^2)+(AX15^2)+(AX25^2)+(AX26^2)+(AX27^2)+(AX28)+(AX29^2))","v":33.166247903554002},{"$f":"AY11+AY12+AY13+AY14+AY15+AY25+AY26+AY27+AY28+AY29","v":52},{"$f":"SQRT((AZ11^2)+(AZ12^2)+(AZ13^2)+(AZ14^2)+(AZ15^2)+(AZ25^2)+(AZ26^2)+(AZ27^2)+(AZ28)+(AZ29^2))","v":62.313722405261586},{"$f":"BA11+BA12+BA13+BA14+BA15+BA25+BA26+BA27+BA28+BA29","v":60},{"$f":"SQRT((BB11^2)+(BB12^2)+(BB13^2)+(BB14^2)+(BB15^2)+(BB25^2)+(BB26^2)+(BB27^2)+(BB28)+(BB29^2))","v":50.774009099144415},{"$f":"BC11+BC12+BC13+BC14+BC15+BC25+BC26+BC27+BC28+BC29","v":49},{"$f":"SQRT((BD11^2)+(BD12^2)+(BD13^2)+(BD14^2)+(BD15^2)+(BD25^2)+(BD26^2)+(BD27^2)+(BD28)+(BD29^2))","v":63.023805026354921},{"$f":"BE11+BE12+BE13+BE14+BE15+BE25+BE26+BE27+BE28+BE29","v":104},{"$f":"SQRT((BF11^2)+(BF12^2)+(BF13^2)+(BF14^2)+(BF15^2)+(BF25^2)+(BF26^2)+(BF27^2)+(BF28)+(BF29^2))","v":70.632853545641211},{"$f":"BG11+BG12+BG13+BG14+BG15+BG25+BG26+BG27+BG28+BG29","v":180},{"$f":"SQRT((BH11^2)+(BH12^2)+(BH13^2)+(BH14^2)+(BH15^2)+(BH25^2)+(BH26^2)+(BH27^2)+(BH28)+(BH29^2))","v":101.23734488813898},{"$f":"BI11+BI12+BI13+BI14+BI15+BI25+BI26+BI27+BI28+BI29","v":209},{"$f":"SQRT((BJ11^2)+(BJ12^2)+(BJ13^2)+(BJ14^2)+(BJ15^2)+(BJ25^2)+(BJ26^2)+(BJ27^2)+(BJ28)+(BJ29^2))","v":129.40633678456399},{"$f":"BK11+BK12+BK13+BK14+BK15+BK25+BK26+BK27+BK28+BK29","v":25},{"$f":"SQRT((BL11^2)+(BL12^2)+(BL13^2)+(BL14^2)+(BL15^2)+(BL25^2)+(BL26^2)+(BL27^2)+(BL28)+(BL29^2))","v":51.468436929831086},{"$f":"BM11+BM12+BM13+BM14+BM15+BM25+BM26+BM27+BM28+BM29","v":132},{"$f":"SQRT((BN11^2)+(BN12^2)+(BN13^2)+(BN14^2)+(BN15^2)+(BN25^2)+(BN26^2)+(BN27^2)+(BN28)+(BN29^2))","v":87.56140702387097},{"$f":"BO11+BO12+BO13+BO14+BO15+BO25+BO26+BO27+BO28+BO29","v":0},{"$f":"SQRT((BP11^2)+(BP12^2)+(BP13^2)+(BP14^2)+(BP15^2)+(BP25^2)+(BP26^2)+(BP27^2)+(BP28)+(BP29^2))","v":48.166378315169183},{"$f":"BQ11+BQ12+BQ13+BQ14+BQ15+BQ25+BQ26+BQ27+BQ28+BQ29","v":70},{"$f":"SQRT((BR11^2)+(BR12^2)+(BR13^2)+(BR14^2)+(BR15^2)+(BR25^2)+(BR26^2)+(BR27^2)+(BR28)+(BR29^2))","v":66.045438903833471},{"$f":"BS11+BS12+BS13+BS14+BS15+BS25+BS26+BS27+BS28+BS29","v":6},{"$f":"SQRT((BT11^2)+(BT12^2)+(BT13^2)+(BT14^2)+(BT15^2)+(BT25^2)+(BT26^2)+(BT27^2)+(BT28)+(BT29^2))","v":29.832867780352597},{"$f":"BU11+BU12+BU13+BU14+BU15+BU25+BU26+BU27+BU28+BU29","v":0},{"$f":"SQRT((BV11^2)+(BV12^2)+(BV13^2)+(BV14^2)+(BV15^2)+(BV25^2)+(BV26^2)+(BV27^2)+(BV28)+(BV29^2))","v":48.166378315169183},{"$f":"BW11+BW12+BW13+BW14+BW15+BW25+BW26+BW27+BW28+BW29","v":0},{"$f":"SQRT((BX11^2)+(BX12^2)+(BX13^2)+(BX14^2)+(BX15^2)+(BX25^2)+(BX26^2)+(BX27^2)+(BX28)+(BX29^2))","v":54.166410255803363}]
[null,"18 to 64 years",{"$f":"C16+C17+C18+C19+C20+C30+C31+C32+C33+C34","v":103},{"$f":"SQRT((D16^2)+(D17^2)+(D18^2)+(D19^2)+(D20^2)+(D30^2)+(D31^2)+(D32^2)+(D33^2)+(D34^2))","v":95.519631490076421},{"$f":"E16+E17+E18+E19+E20+E30+E31+E32+E33+E34","v":55},{"$f":"SQRT((F16^2)+(F17^2)+(F18^2)+(F19^2)+(F20^2)+(F30^2)+(F31^2)+(F32^2)+(F33^2)+(F34^2))","v":77.498387079990252},{"$f":"G16+G17+G18+G19+G20+G30+G31+G32+G33+G34","v":60},{"$f":"SQRT((H16^2)+(H17^2)+(H18^2)+(H19^2)+(H20^2)+(H30^2)+(H31^2)+(H32^2)+(H33^2)+(H34^2))","v":39.585350825778974},{"$f":"I16+I17+I18+I19+I20+I30+I31+I32+I33+I34","v":80},{"$f":"SQRT((J16^2)+(J17^2)+(J18^2)+(J19^2)+(J20^2)+(J30^2)+(J31^2)+(J32^2)+(J33^2)+(J34^2))","v":52.478567053607705},{"$f":"K16+K17+K18+K19+K20+K30+K31+K32+K33+K34","v":115},{"$f":"SQRT((L16^2)+(L17^2)+(L18^2)+(L19^2)+(L20^2)+(L30^2)+(L31^2)+(L32^2)+(L33^2)+(L34^2))","v":71.379268698971686},{"$f":"M16+M17+M18+M19+M20+M30+M31+M32+M33+M34","v":97},{"$f":"SQRT((N16^2)+(N17^2)+(N18^2)+(N19^2)+(N20^2)+(N30^2)+(N31^2)+(N32^2)+(N33^2)+(N34^2))","v":64.884512790033341},{"$f":"O16+O17+O18+O19+O20+O30+O31+O32+O33+O34","v":192},{"$f":"SQRT((P16^2)+(P17^2)+(P18^2)+(P19^2)+(P20^2)+(P30^2)+(P31^2)+(P32^2)+(P33^2)+(P34^2))","v":89.766363410801048},{"$f":"Q16+Q17+Q18+Q19+Q20+Q30+Q31+Q32+Q33+Q34","v":1431},{"$f":"SQRT((R16^2)+(R17^2)+(R18^2)+(R19^2)+(R20^2)+(R30^2)+(R31^2)+(R32^2)+(R33^2)+(R34^2))","v":321.02647865869255},{"$f":"S16+S17+S18+S19+S20+S30+S31+S32+S33+S34","v":33},{"$f":"SQRT((T16^2)+(T17^2)+(T18^2)+(T19^2)+(T20^2)+(T30^2)+(T31^2)+(T32^2)+(T33^2)+(T34^2))","v":34.292856398964496},{"$f":"U16+U17+U18+U19+U20+U30+U31+U32+U33+U34","v":158},{"$f":"SQRT((V16^2)+(V17^2)+(V18^2)+(V19^2)+(V20^2)+(V30^2)+(V31^2)+(V32^2)+(V33^2)+(V34^2))","v":95.791440118624379},{"$f":"W16+W17+W18+W19+W20+W30+W31+W32+W33+W34","v":530},{"$f":"SQRT((X16^2)+(X17^2)+(X18^2)+(X19^2)+(X20^2)+(X30^2)+(X31^2)+(X32^2)+(X33^2)+(X34^2))","v":210.66561181170505},{"$f":"Y16+Y17+Y18+Y19+Y20+Y30+Y31+Y32+Y33+Y34","v":59},{"$f":"SQRT((Z16^2)+(Z17^2)+(Z18^2)+(Z19^2)+(Z20^2)+(Z30^2)+(Z31^2)+(Z32^2)+(Z33^2)+(Z34^2))","v":47.063786503000372},{"$f":"AA16+AA17+AA18+AA19+AA20+AA30+AA31+AA32+AA33+AA34","v":103},{"$f":"SQRT((AB16^2)+(AB17^2)+(AB18^2)+(AB19^2)+(AB20^2)+(AB30^2)+(AB31^2)+(AB32^2)+(AB33^2)+(AB34^2))","v":56.107040556422149},{"$f":"AC16+AC17+AC18+AC19+AC20+AC30+AC31+AC32+AC33+AC34","v":133},{"$f":"SQRT((AD16^2)+(AD17^2)+(AD18^2)+(AD19^2)+(AD20^2)+(AD30^2)+(AD31^2)+(AD32^2)+(AD33^2)+(AD34^2))","v":84.16056083463323},{"$f":"AE16+AE17+AE18+AE19+AE20+AE30+AE31+AE32+AE33+AE34","v":368},{"$f":"SQRT((AF16^2)+(AF17^2)+(AF18^2)+(AF19^2)+(AF20^2)+(AF30^2)+(AF31^2)+(AF32^2)+(AF33^2)+(AF34^2))","v":118.05083650698965},{"$f":"AG16+AG17+AG18+AG19+AG20+AG30+AG31+AG32+AG33+AG34","v":41},{"$f":"SQRT((AH16^2)+(AH17^2)+(AH18^2)+(AH19^2)+(AH20^2)+(AH30^2)+(AH31^2)+(AH32^2)+(AH33^2)+(AH34^2))","v":53.1883445878888},{"$f":"AI16+AI17+AI18+AI19+AI20+AI30+AI31+AI32+AI33+AI34","v":41},{"$f":"SQRT((AJ16^2)+(AJ17^2)+(AJ18^2)+(AJ19^2)+(AJ20^2)+(AJ30^2)+(AJ31^2)+(AJ32^2)+(AJ33^2)+(AJ34^2))","v":33.808283008753932},{"$f":"AK16+AK17+AK18+AK19+AK20+AK30+AK31+AK32+AK33+AK34","v":286},{"$f":"SQRT((AL16^2)+(AL17^2)+(AL18^2)+(AL19^2)+(AL20^2)+(AL30^2)+(AL31^2)+(AL32^2)+(AL33^2)+(AL34^2))","v":186.46715528478467},{"$f":"AM16+AM17+AM18+AM19+AM20+AM30+AM31+AM32+AM33+AM34","v":231},{"$f":"SQRT((AN16^2)+(AN17^2)+(AN18^2)+(AN19^2)+(AN20^2)+(AN30^2)+(AN31^2)+(AN32^2)+(AN33^2)+(AN34^2))","v":86.579443287653447},{"$f":"AO16+AO17+AO18+AO19+AO20+AO30+AO31+AO32+AO33+AO34","v":0},{"$f":"SQRT((AP16^2)+(AP17^2)+(AP18^2)+(AP19^2)+(AP20^2)+(AP30^2)+(AP31^2)+(AP32^2)+(AP33^2)+(AP34^2))","v":34.785054261852174},{"$f":"AQ16+AQ17+AQ18+AQ19+AQ20+AQ30+AQ31+AQ32+AQ33+AQ34","v":30},{"$f":"SQRT((AR16^2)+(AR17^2)+(AR18^2)+(AR19^2)+(AR20^2)+(AR30^2)+(AR31^2)+(AR32^2)+(AR33^2)+(AR34^2))","v":30.033314835362415},{"$f":"AS16+AS17+AS18+AS19+AS20+AS30+AS31+AS32+AS33+AS34","v":15},{"$f":"SQRT((AT16^2)+(AT17^2)+(AT18^2)+(AT19^2)+(AT20^2)+(AT30^2)+(AT31^2)+(AT32^2)+(AT33^2)+(AT34^2))","v":29.189039038652847},{"$f":"AU16+AU17+AU18+AU19+AU20+AU30+AU31+AU32+AU33+AU34","v":434},{"$f":"SQRT((AV16^2)+(AV17^2)+(AV18^2)+(AV19^2)+(AV20^2)+(AV30^2)+(AV31^2)+(AV32^2)+(AV33^2)+(AV34^2))","v":149.90330216509574},{"$f":"AW16+AW17+AW18+AW19+AW20+AW30+AW31+AW32+AW33+AW34","v":132},{"$f":"SQRT((AX16^2)+(AX17^2)+(AX18^2)+(AX19^2)+(AX20^2)+(AX30^2)+(AX31^2)+(AX32^2)+(AX33^2)+(AX34^2))","v":71.888803022445714},{"$f":"AY16+AY17+AY18+AY19+AY20+AY30+AY31+AY32+AY33+AY34","v":119},{"$f":"SQRT((AZ16^2)+(AZ17^2)+(AZ18^2)+(AZ19^2)+(AZ20^2)+(AZ30^2)+(AZ31^2)+(AZ32^2)+(AZ33^2)+(AZ34^2))","v":67.446274915668994},{"$f":"BA16+BA17+BA18+BA19+BA20+BA30+BA31+BA32+BA33+BA34","v":128},{"$f":"SQRT((BB16^2)+(BB17^2)+(BB18^2)+(BB19^2)+(BB20^2)+(BB30^2)+(BB31^2)+(BB32^2)+(BB33^2)+(BB34^2))","v":69.15200647848188},{"$f":"BC16+BC17+BC18+BC19+BC20+BC30+BC31+BC32+BC33+BC34","v":140},{"$f":"SQRT((BD16^2)+(BD17^2)+(BD18^2)+(BD19^2)+(BD20^2)+(BD30^2)+(BD31^2)+(BD32^2)+(BD33^2)+(BD34^2))","v":78.562077365609426},{"$f":"BE16+BE17+BE18+BE19+BE20+BE30+BE31+BE32+BE33+BE34","v":146},{"$f":"SQRT((BF16^2)+(BF17^2)+(BF18^2)+(BF19^2)+(BF20^2)+(BF30^2)+(BF31^2)+(BF32^2)+(BF33^2)+(BF34^2))","v":100.637965003273},{"$f":"BG16+BG17+BG18+BG19+BG20+BG30+BG31+BG32+BG33+BG34","v":914},{"$f":"SQRT((BH16^2)+(BH17^2)+(BH18^2)+(BH19^2)+(BH20^2)+(BH30^2)+(BH31^2)+(BH32^2)+(BH33^2)+(BH34^2))","v":225.00888871331284},{"$f":"BI16+BI17+BI18+BI19+BI20+BI30+BI31+BI32+BI33+BI34","v":517},{"$f":"SQRT((BJ16^2)+(BJ17^2)+(BJ18^2)+(BJ19^2)+(BJ20^2)+(BJ30^2)+(BJ31^2)+(BJ32^2)+(BJ33^2)+(BJ34^2))","v":191.39487976432389},{"$f":"BK16+BK17+BK18+BK19+BK20+BK30+BK31+BK32+BK33+BK34","v":181},{"$f":"SQRT((BL16^2)+(BL17^2)+(BL18^2)+(BL19^2)+(BL20^2)+(BL30^2)+(BL31^2)+(BL32^2)+(BL33^2)+(BL34^2))","v":137.29166034395533},{"$f":"BM16+BM17+BM18+BM19+BM20+BM30+BM31+BM32+BM33+BM34","v":752},{"$f":"SQRT((BN16^2)+(BN17^2)+(BN18^2)+(BN19^2)+(BN20^2)+(BN30^2)+(BN31^2)+(BN32^2)+(BN33^2)+(BN34^2))","v":222.51966205259257},{"$f":"BO16+BO17+BO18+BO19+BO20+BO30+BO31+BO32+BO33+BO34","v":117},{"$f":"SQRT((BP16^2)+(BP17^2)+(BP18^2)+(BP19^2)+(BP20^2)+(BP30^2)+(BP31^2)+(BP32^2)+(BP33^2)+(BP34^2))","v":86.185845705660967},{"$f":"BQ16+BQ17+BQ18+BQ19+BQ20+BQ30+BQ31+BQ32+BQ33+BQ34","v":239},{"$f":"SQRT((BR16^2)+(BR17^2)+(BR18^2)+(BR19^2)+(BR20^2)+(BR30^2)+(BR31^2)+(BR32^2)+(BR33^2)+(BR34^2))","v":109.0825375575761},{"$f":"BS16+BS17+BS18+BS19+BS20+BS30+BS31+BS32+BS33+BS34","v":16},{"$f":"SQRT((BT16^2)+(BT17^2)+(BT18^2)+(BT19^2)+(BT20^2)+(BT30^2)+(BT31^2)+(BT32^2)+(BT33^2)+(BT34^2))","v":28.687976575562104},{"$f":"BU16+BU17+BU18+BU19+BU20+BU30+BU31+BU32+BU33+BU34","v":108},{"$f":"SQRT((BV16^2)+(BV17^2)+(BV18^2)+(BV19^2)+(BV20^2)+(BV30^2)+(BV31^2)+(BV32^2)+(BV33^2)+(BV34^2))","v":75.907838857393372},{"$f":"BW16+BW17+BW18+BW19+BW20+BW30+BW31+BW32+BW33+BW34","v":94},{"$f":"SQRT((BX16^2)+(BX17^2)+(BX18^2)+(BX19^2)+(BX20^2)+(BX30^2)+(BX31^2)+(BX32^2)+(BX33^2)+(BX34^2))","v":74.77298977572049}]
[null,"65 to 74 years",{"$f":"C21+C35","v":32},{"$f":"SQRT((D21^2)+(D35^2))","v":38.275318418009277},{"$f":"E21+E35","v":14},{"$f":"SQRT((F21^2)+(F35^2))","v":24.839484696748443},{"$f":"G21+G35","v":21},{"$f":"SQRT((H21^2)+(H35^2))","v":25.495097567963924},{"$f":"I21+I35","v":9},{"$f":"SQRT((J21^2)+(J35^2))","v":19.416487838947599},{"$f":"K21+K35","v":9},{"$f":"SQRT((L21^2)+(L35^2))","v":21.931712199461309},{"$f":"M21+M35","v":7},{"$f":"SQRT((N21^2)+(N35^2))","v":14.866068747318506},{"$f":"O21+O35","v":23},{"$f":"SQRT((P21^2)+(P35^2))","v":29.154759474226502},{"$f":"Q21+Q35","v":149},{"$f":"SQRT((R21^2)+(R35^2))","v":108.52188719332152},{"$f":"S21+S35","v":11},{"$f":"SQRT((T21^2)+(T35^2))","v":11.401754250991379},{"$f":"U21+U35","v":68},{"$f":"SQRT((V21^2)+(V35^2))","v":54.083269131959838},{"$f":"W21+W35","v":70},{"$f":"SQRT((X21^2)+(X35^2))","v":44.271887242357309},{"$f":"Y21+Y35","v":14},{"$f":"SQRT((Z21^2)+(Z35^2))","v":23.706539182259394},{"$f":"AA21+AA35","v":0},{"$f":"SQRT((AB21^2)+(AB35^2))","v":15.556349186104045},{"$f":"AC21+AC35","v":66},{"$f":"SQRT((AD21^2)+(AD35^2))","v":46.690470119715009},{"$f":"AE21+AE35","v":186},{"$f":"SQRT((AF21^2)+(AF35^2))","v":99.126182212370111},{"$f":"AG21+AG35","v":17},{"$f":"SQRT((AH21^2)+(AH35^2))","v":29.154759474226502},{"$f":"AI21+AI35","v":6},{"$f":"SQRT((AJ21^2)+(AJ35^2))","v":12.529964086141668},{"$f":"AK21+AK35","v":67},{"$f":"SQRT((AL21^2)+(AL35^2))","v":84.528101836016646},{"$f":"AM21+AM35","v":90},{"$f":"SQRT((AN21^2)+(AN35^2))","v":49.678969393496885},{"$f":"AO21+AO35","v":3},{"$f":"SQRT((AP21^2)+(AP35^2))","v":11.704699910719626},{"$f":"AQ21+AQ35","v":3},{"$f":"SQRT((AR21^2)+(AR35^2))","v":12.083045973594572},{"$f":"AS21+AS35","v":6},{"$f":"SQRT((AT21^2)+(AT35^2))","v":5.8309518948453007},{"$f":"AU21+AU35","v":40},{"$f":"SQRT((AV21^2)+(AV35^2))","v":37.443290453698111},{"$f":"AW21+AW35","v":15},{"$f":"SQRT((AX21^2)+(AX35^2))","v":17.029386365926403},{"$f":"AY21+AY35","v":36},{"$f":"SQRT((AZ21^2)+(AZ35^2))","v":29.410882339705484},{"$f":"BA21+BA35","v":10},{"$f":"SQRT((BB21^2)+(BB35^2))","v":18.601075237738275},{"$f":"BC21+BC35","v":0},{"$f":"SQRT((BD21^2)+(BD35^2))","v":22.627416997969522},{"$f":"BE21+BE35","v":0},{"$f":"SQRT((BF21^2)+(BF35^2))","v":22.627416997969522},{"$f":"BG21+BG35","v":160},{"$f":"SQRT((BH21^2)+(BH35^2))","v":65.80273550544841},{"$f":"BI21+BI35","v":14},{"$f":"SQRT((BJ21^2)+(BJ35^2))","v":20.396078054371138},{"$f":"BK21+BK35","v":31},{"$f":"SQRT((BL21^2)+(BL35^2))","v":33.241540277189323},{"$f":"BM21+BM35","v":119},{"$f":"SQRT((BN21^2)+(BN35^2))","v":100.40418317978589},{"$f":"BO21+BO35","v":0},{"$f":"SQRT((BP21^2)+(BP35^2))","v":22.627416997969522},{"$f":"BQ21+BQ35","v":54},{"$f":"SQRT((BR21^2)+(BR35^2))","v":47.169905660283021},{"$f":"BS21+BS35","v":4},{"$f":"SQRT((BT21^2)+(BT35^2))","v":11.704699910719626},{"$f":"BU21+BU35","v":0},{"$f":"SQRT((BV21^2)+(BV35^2))","v":22.627416997969522},{"$f":"BW21+BW35","v":0},{"$f":"SQRT((BX21^2)+(BX35^2))","v":25.45584412271571}]
[null,"75 years and over",{"$f":"C22+C36","v":14},{"$f":"SQRT((D22^2)+(D36^2))","v":27.202941017470888},{"$f":"E22+E36","v":0},{"$f":"SQRT((F22^2)+(F36^2))","v":22.627416997969522},{"$f":"G22+G36","v":38},{"$f":"SQRT((H22^2)+(H36^2))","v":31.76476034853718},{"$f":"I22+I36","v":84},{"$f":"SQRT((J22^2)+(J36^2))","v":68.154236845554948},{"$f":"K22+K36","v":0},{"$f":"SQRT((L22^2)+(L36^2))","v":22.627416997969522},{"$f":"M22+M36","v":0},{"$f":"SQRT((N22^2)+(N36^2))","v":15.556349186104045},{"$f":"O22+O36","v":25},{"$f":"SQRT((P22^2)+(P36^2))","v":23.706539182259394},{"$f":"Q22+Q36","v":94},{"$f":"SQRT((R22^2)+(R36^2))","v":73.246160308919954},{"$f":"S22+S36","v":36},{"$f":"SQRT((T22^2)+(T36^2))","v":22.203603311174518},{"$f":"U22+U36","v":38},{"$f":"SQRT((V22^2)+(V36^2))","v":46.818799642878503},{"$f":"W22+W36","v":134},{"$f":"SQRT((X22^2)+(X36^2))","v":73.409808608931812},{"$f":"Y22+Y36","v":8},{"$f":"SQRT((Z22^2)+(Z36^2))","v":18.601075237738275},{"$f":"AA22+AA36","v":10},{"$f":"SQRT((AB22^2)+(AB36^2))","v":17.804493814764857},{"$f":"AC22+AC36","v":45},{"$f":"SQRT((AD22^2)+(AD36^2))","v":36.878177829171548},{"$f":"AE22+AE36","v":66},{"$f":"SQRT((AF22^2)+(AF36^2))","v":44.294469180700204},{"$f":"AG22+AG36","v":0},{"$f":"SQRT((AH22^2)+(AH36^2))","v":15.556349186104045},{"$f":"AI22+AI36","v":4},{"$f":"SQRT((AJ22^2)+(AJ36^2))","v":12.529964086141668},{"$f":"AK22+AK36","v":29},{"$f":"SQRT((AL22^2)+(AL36^2))","v":26.627053911388696},{"$f":"AM22+AM36","v":30},{"$f":"SQRT((AN22^2)+(AN36^2))","v":28.0178514522438},{"$f":"AO22+AO36","v":5},{"$f":"SQRT((AP22^2)+(AP36^2))","v":13.601470508735444},{"$f":"AQ22+AQ36","v":6},{"$f":"SQRT((AR22^2)+(AR36^2))","v":5.6568542494923806},{"$f":"AS22+AS36","v":9},{"$f":"SQRT((AT22^2)+(AT36^2))","v":23.706539182259394},{"$f":"AU22+AU36","v":67},{"$f":"SQRT((AV22^2)+(AV36^2))","v":86.977008456258133},{"$f":"AW22+AW36","v":18},{"$f":"SQRT((AX22^2)+(AX36^2))","v":19.104973174542799},{"$f":"AY22+AY36","v":41},{"$f":"SQRT((AZ22^2)+(AZ36^2))","v":29.732137494637012},{"$f":"BA22+BA36","v":0},{"$f":"SQRT((BB22^2)+(BB36^2))","v":15.556349186104045},{"$f":"BC22+BC36","v":15},{"$f":"SQRT((BD22^2)+(BD36^2))","v":28.0178514522438},{"$f":"BE22+BE36","v":63},{"$f":"SQRT((BF22^2)+(BF36^2))","v":78.185676437567508},{"$f":"BG22+BG36","v":64},{"$f":"SQRT((BH22^2)+(BH36^2))","v":47.507894080878813},{"$f":"BI22+BI36","v":39},{"$f":"SQRT((BJ22^2)+(BJ36^2))","v":39.357337308308857},{"$f":"BK22+BK36","v":0},{"$f":"SQRT((BL22^2)+(BL36^2))","v":22.627416997969522},{"$f":"BM22+BM36","v":174},{"$f":"SQRT((BN22^2)+(BN36^2))","v":99.080775128175091},{"$f":"BO22+BO36","v":1},{"$f":"SQRT((BP22^2)+(BP36^2))","v":16.278820596099706},{"$f":"BQ22+BQ36","v":47},{"$f":"SQRT((BR22^2)+(BR36^2))","v":35.777087639996637},{"$f":"BS22+BS36","v":0},{"$f":"SQRT((BT22^2)+(BT36^2))","v":15.556349186104045},{"$f":"BU22+BU36","v":18},{"$f":"SQRT((BV22^2)+(BV36^2))","v":34},{"$f":"BW22+BW36","v":0},{"$f":"SQRT((BX22^2)+(BX36^2))","v":25.45584412271571}]
[null," Income in the past 12 months at or above poverty level ",{"$f":"C37","v":6748},180,5369,66,4218,144,3763,83,4946,101,4411,78,4190,155,30417,677,2298,178,6595,218,14033,318,{"$f":"Y37","v":4532},115,3842,101,8228,202,14710,237,2298,183,2229,128,5751,240,25294,238,{"$f":"AO37","v":827},178,1700,231,679,87,8368,252,4741,89,4184,141,4093,99,4789,186,{"$f":"BE37","v":7315},225,19423,390,9611,318,5173,191,27688,464,6246,133,8387,164,743,92,7301,91,14322,97]
[null,"Under 5 years",{"$f":"C39+C53","v":275},{"$f":"SQRT(((D39))^2+((D53))^2)","v":133.843191832831},{"$f":"E39+E53","v":342},{"$f":"SQRT(((F39))^2+((F53))^2)","v":103.96634070698073},{"$f":"G39+G53","v":275},{"$f":"SQRT(((H39))^2+((H53))^2)","v":99.724620831567975},{"$f":"I39+I53","v":180},{"$f":"SQRT(((J39))^2+((J53))^2)","v":79.630396206473819},{"$f":"K39+K53","v":253},{"$f":"SQRT(((L39))^2+((L53))^2)","v":83.438600180012614},{"$f":"M39+M53","v":144},{"$f":"SQRT(((N39))^2+((N53))^2)","v":81.21576201698781},{"$f":"O39+O53","v":175},{"$f":"SQRT(((P39))^2+((P53))^2)","v":75.802374632988901},{"$f":"Q39+Q53","v":1279},{"$f":"SQRT(((R39))^2+((R53))^2)","v":236.02754076590298},{"$f":"S39+S53","v":43},{"$f":"SQRT(((T39))^2+((T53))^2)","v":23.769728648009426},{"$f":"U39+U53","v":392},{"$f":"SQRT(((V39))^2+((V53))^2)","v":146.21901381147393},{"$f":"W39+W53","v":645},{"$f":"SQRT(((X39))^2+((X53))^2)","v":176.7993212656655},{"$f":"Y39+Y53","v":248},{"$f":"SQRT(((Z39))^2+((Z53))^2)","v":100.68763578513501},{"$f":"AA39+AA53","v":163},{"$f":"SQRT(((AB39))^2+((AB53))^2)","v":63.513778032801667},{"$f":"AC39+AC53","v":313},{"$f":"SQRT(((AD39))^2+((AD53))^2)","v":125.36347155371855},{"$f":"AE39+AE53","v":360},{"$f":"SQRT(((AF39))^2+((AF53))^2)","v":133.843191832831},{"$f":"AG39+AG53","v":64},{"$f":"SQRT(((AH39))^2+((AH53))^2)","v":29},{"$f":"AI39+AI53","v":149},{"$f":"SQRT(((AJ39))^2+((AJ53))^2)","v":36.61966684720111},{"$f":"AK39+AK53","v":220},{"$f":"SQRT(((AL39))^2+((AL53))^2)","v":145.12063946937388},{"$f":"AM39+AM53","v":1327},{"$f":"SQRT(((AN39))^2+((AN53))^2)","v":199.42417105255822},{"$f":"AO39+AO53","v":18},{"$f":"SQRT(((AP39))^2+((AP53))^2)","v":30.083217912982647},{"$f":"AQ39+AQ53","v":82},{"$f":"SQRT(((AR39))^2+((AR53))^2)","v":45.650848842053307},{"$f":"AS39+AS53","v":28},{"$f":"SQRT(((AT39))^2+((AT53))^2)","v":18.384776310850235},{"$f":"AU39+AU53","v":408},{"$f":"SQRT(((AV39))^2+((AV53))^2)","v":139.8177385026664},{"$f":"AW39+AW53","v":203},{"$f":"SQRT(((AX39))^2+((AX53))^2)","v":74.249579123386283},{"$f":"AY39+AY53","v":78},{"$f":"SQRT(((AZ39))^2+((AZ53))^2)","v":45.453272709454048},{"$f":"BA39+BA53","v":132},{"$f":"SQRT(((BB39))^2+((BB53))^2)","v":73.409808608931812},{"$f":"BC39+BC53","v":233},{"$f":"SQRT(((BD39))^2+((BD53))^2)","v":85.702975444263316},{"$f":"BE39+BE53","v":281},{"$f":"SQRT(((BF39))^2+((BF53))^2)","v":119.63277142990545},{"$f":"BG39+BG53","v":696},{"$f":"SQRT(((BH39))^2+((BH53))^2)","v":170.66048165876012},{"$f":"BI39+BI53","v":574},{"$f":"SQRT(((BJ39))^2+((BJ53))^2)","v":171.12568480505783},{"$f":"BK39+BK53","v":174},{"$f":"SQRT(((BL39))^2+((BL53))^2)","v":92.097774131626011},{"$f":"BM39+BM53","v":1307},{"$f":"SQRT(((BN39))^2+((BN53))^2)","v":281.93970986719836},{"$f":"BO39+BO53","v":361},{"$f":"SQRT(((BP39))^2+((BP53))^2)","v":147.62791064023091},{"$f":"BQ39+BQ53","v":205},{"$f":"SQRT(((BR39))^2+((BR53))^2)","v":98.595131725658746},{"$f":"BS39+BS53","v":19},{"$f":"SQRT(((BT39))^2+((BT53))^2)","v":10.63014581273465},{"$f":"BU39+BU53","v":325},{"$f":"SQRT(((BV39))^2+((BV53))^2)","v":122.88612614937456},{"$f":"BW39+BW53","v":750},{"$f":"SQRT(((BX39))^2+((BX53))^2)","v":227.90568224596771}]
[null,"5 to 17 years",{"$f":"((C40)+(C41)+(C42)+(C43)+(C44)+(C54)+(C55)+(C56)+(C57)+(C58))","v":1055},{"$f":"SQRT((D40^2)+(D41^2)+(D42^2)+(D43^2)+(D44^2)+(D54^2)+(D55^2)+(D56^2)+(D57^2)+(D58^2))","v":270.68801229459717},{"$f":"((E40)+(E41)+(E42)+(E43)+(E44)+(E54)+(E55)+(E56)+(E57)+(E58))","v":763},{"$f":"SQRT((F40^2)+(F41^2)+(F42^2)+(F43^2)+(F44^2)+(F54^2)+(F55^2)+(F56^2)+(F57^2)+(F58^2))","v":154.78048972658021},{"$f":"((G40)+(G41)+(G42)+(G43)+(G44)+(G54)+(G55)+(G56)+(G57)+(G58))","v":846},{"$f":"SQRT((H40^2)+(H41^2)+(H42^2)+(H43^2)+(H44^2)+(H54^2)+(H55^2)+(H56^2)+(H57^2)+(H58^2))","v":144.10759868931271},{"$f":"((I40)+(I41)+(I42)+(I43)+(I44)+(I54)+(I55)+(I56)+(I57)+(I58))","v":471},{"$f":"SQRT((J40^2)+(J41^2)+(J42^2)+(J43^2)+(J44^2)+(J54^2)+(J55^2)+(J56^2)+(J57^2)+(J58^2))","v":148.8086019019062},{"$f":"((K40)+(K41)+(K42)+(K43)+(K44)+(K54)+(K55)+(K56)+(K57)+(K58))","v":807},{"$f":"SQRT((L40^2)+(L41^2)+(L42^2)+(L43^2)+(L44^2)+(L54^2)+(L55^2)+(L56^2)+(L57^2)+(L58^2))","v":161.90738093119782},{"$f":"((M40)+(M41)+(M42)+(M43)+(M44)+(M54)+(M55)+(M56)+(M57)+(M58))","v":804},{"$f":"SQRT((N40^2)+(N41^2)+(N42^2)+(N43^2)+(N44^2)+(N54^2)+(N55^2)+(N56^2)+(N57^2)+(N58^2))","v":157.57537878742352},{"$f":"((O40)+(O41)+(O42)+(O43)+(O44)+(O54)+(O55)+(O56)+(O57)+(O58))","v":666},{"$f":"SQRT((P40^2)+(P41^2)+(P42^2)+(P43^2)+(P44^2)+(P54^2)+(P55^2)+(P56^2)+(P57^2)+(P58^2))","v":145.06205568652334},{"$f":"((Q40)+(Q41)+(Q42)+(Q43)+(Q44)+(Q54)+(Q55)+(Q56)+(Q57)+(Q58))","v":4665},{"$f":"SQRT((R40^2)+(R41^2)+(R42^2)+(R43^2)+(R44^2)+(R54^2)+(R55^2)+(R56^2)+(R57^2)+(R58^2))","v":471.19210519702045},{"$f":"((S40)+(S41)+(S42)+(S43)+(S44)+(S54)+(S55)+(S56)+(S57)+(S58))","v":420},{"$f":"SQRT((T40^2)+(T41^2)+(T42^2)+(T43^2)+(T44^2)+(T54^2)+(T55^2)+(T56^2)+(T57^2)+(T58^2))","v":79.47326594522211},{"$f":"((U40)+(U41)+(U42)+(U43)+(U44)+(U54)+(U55)+(U56)+(U57)+(U58))","v":863},{"$f":"SQRT((V40^2)+(V41^2)+(V42^2)+(V43^2)+(V44^2)+(V54^2)+(V55^2)+(V56^2)+(V57^2)+(V58^2))","v":240.05207768315609},{"$f":"((W40)+(W41)+(W42)+(W43)+(W44)+(W54)+(W55)+(W56)+(W57)+(W58))","v":2084},{"$f":"SQRT((X40^2)+(X41^2)+(X42^2)+(X43^2)+(X44^2)+(X54^2)+(X55^2)+(X56^2)+(X57^2)+(X58^2))","v":257.5441709687874},{"$f":"((Y40)+(Y41)+(Y42)+(Y43)+(Y44)+(Y54)+(Y55)+(Y56)+(Y57)+(Y58))","v":647},{"$f":"SQRT((Z40^2)+(Z41^2)+(Z42^2)+(Z43^2)+(Z44^2)+(Z54^2)+(Z55^2)+(Z56^2)+(Z57^2)+(Z58^2))","v":149.59612294441322},{"$f":"((AA40)+(AA41)+(AA42)+(AA43)+(AA44)+(AA54)+(AA55)+(AA56)+(AA57)+(AA58))","v":723},{"$f":"SQRT((AB40^2)+(AB41^2)+(AB42^2)+(AB43^2)+(AB44^2)+(AB54^2)+(AB55^2)+(AB56^2)+(AB57^2)+(AB58^2))","v":140.21412197064888},{"$f":"((AC40)+(AC41)+(AC42)+(AC43)+(AC44)+(AC54)+(AC55)+(AC56)+(AC57)+(AC58))","v":1385},{"$f":"SQRT((AD40^2)+(AD41^2)+(AD42^2)+(AD43^2)+(AD44^2)+(AD54^2)+(AD55^2)+(AD56^2)+(AD57^2)+(AD58^2))","v":243.82780809415485},{"$f":"((AE40)+(AE41)+(AE42)+(AE43)+(AE44)+(AE54)+(AE55)+(AE56)+(AE57)+(AE58))","v":1985},{"$f":"SQRT((AF40^2)+(AF41^2)+(AF42^2)+(AF43^2)+(AF44^2)+(AF54^2)+(AF55^2)+(AF56^2)+(AF57^2)+(AF58^2))","v":261.94274183492848},{"$f":"((AG40)+(AG41)+(AG42)+(AG43)+(AG44)+(AG54)+(AG55)+(AG56)+(AG57)+(AG58))","v":344},{"$f":"SQRT((AH40^2)+(AH41^2)+(AH42^2)+(AH43^2)+(AH44^2)+(AH54^2)+(AH55^2)+(AH56^2)+(AH57^2)+(AH58^2))","v":69.505395474020574},{"$f":"((AI40)+(AI41)+(AI42)+(AI43)+(AI44)+(AI54)+(AI55)+(AI56)+(AI57)+(AI58))","v":311},{"$f":"SQRT((AJ40^2)+(AJ41^2)+(AJ42^2)+(AJ43^2)+(AJ44^2)+(AJ54^2)+(AJ55^2)+(AJ56^2)+(AJ57^2)+(AJ58^2))","v":62.537988455018279},{"$f":"((AK40)+(AK41)+(AK42)+(AK43)+(AK44)+(AK54)+(AK55)+(AK56)+(AK57)+(AK58))","v":815},{"$f":"SQRT((AL40^2)+(AL41^2)+(AL42^2)+(AL43^2)+(AL44^2)+(AL54^2)+(AL55^2)+(AL56^2)+(AL57^2)+(AL58^2))","v":244.0122947722102},{"$f":"((AM40)+(AM41)+(AM42)+(AM43)+(AM44)+(AM54)+(AM55)+(AM56)+(AM57)+(AM58))","v":4282},{"$f":"SQRT((AN40^2)+(AN41^2)+(AN42^2)+(AN43^2)+(AN44^2)+(AN54^2)+(AN55^2)+(AN56^2)+(AN57^2)+(AN58^2))","v":368.18609425126311},{"$f":"((AO40)+(AO41)+(AO42)+(AO43)+(AO44)+(AO54)+(AO55)+(AO56)+(AO57)+(AO58))","v":110},{"$f":"SQRT((AP40^2)+(AP41^2)+(AP42^2)+(AP43^2)+(AP44^2)+(AP54^2)+(AP55^2)+(AP56^2)+(AP57^2)+(AP58^2))","v":55.389529696504916},{"$f":"((AQ40)+(AQ41)+(AQ42)+(AQ43)+(AQ44)+(AQ54)+(AQ55)+(AQ56)+(AQ57)+(AQ58))","v":328},{"$f":"SQRT((AR40^2)+(AR41^2)+(AR42^2)+(AR43^2)+(AR44^2)+(AR54^2)+(AR55^2)+(AR56^2)+(AR57^2)+(AR58^2))","v":65.398776746969816},{"$f":"((AS40)+(AS41)+(AS42)+(AS43)+(AS44)+(AS54)+(AS55)+(AS56)+(AS57)+(AS58))","v":56},{"$f":"SQRT((AT40^2)+(AT41^2)+(AT42^2)+(AT43^2)+(AT44^2)+(AT54^2)+(AT55^2)+(AT56^2)+(AT57^2)+(AT58^2))","v":24.124676163629637},{"$f":"((AU40)+(AU41)+(AU42)+(AU43)+(AU44)+(AU54)+(AU55)+(AU56)+(AU57)+(AU58))","v":1001},{"$f":"SQRT((AV40^2)+(AV41^2)+(AV42^2)+(AV43^2)+(AV44^2)+(AV54^2)+(AV55^2)+(AV56^2)+(AV57^2)+(AV58^2))","v":227.83985603928036},{"$f":"((AW40)+(AW41)+(AW42)+(AW43)+(AW44)+(AW54)+(AW55)+(AW56)+(AW57)+(AW58))","v":690},{"$f":"SQRT((AX40^2)+(AX41^2)+(AX42^2)+(AX43^2)+(AX44^2)+(AX54^2)+(AX55^2)+(AX56^2)+(AX57^2)+(AX58^2))","v":134.16407864998737},{"$f":"((AY40)+(AY41)+(AY42)+(AY43)+(AY44)+(AY54)+(AY55)+(AY56)+(AY57)+(AY58))","v":645},{"$f":"SQRT((AZ40^2)+(AZ41^2)+(AZ42^2)+(AZ43^2)+(AZ44^2)+(AZ54^2)+(AZ55^2)+(AZ56^2)+(AZ57^2)+(AZ58^2))","v":180.22763384120648},{"$f":"((BA40)+(BA41)+(BA42)+(BA43)+(BA44)+(BA54)+(BA55)+(BA56)+(BA57)+(BA58))","v":543},{"$f":"SQRT((BB40^2)+(BB41^2)+(BB42^2)+(BB43^2)+(BB44^2)+(BB54^2)+(BB55^2)+(BB56^2)+(BB57^2)+(BB58^2))","v":107.68936809174804},{"$f":"((BC40)+(BC41)+(BC42)+(BC43)+(BC44)+(BC54)+(BC55)+(BC56)+(BC57)+(BC58))","v":768},{"$f":"SQRT((BD40^2)+(BD41^2)+(BD42^2)+(BD43^2)+(BD44^2)+(BD54^2)+(BD55^2)+(BD56^2)+(BD57^2)+(BD58^2))","v":168.28547174370104},{"$f":"((BE40)+(BE41)+(BE42)+(BE43)+(BE44)+(BE54)+(BE55)+(BE56)+(BE57)+(BE58))","v":945},{"$f":"SQRT((BF40^2)+(BF41^2)+(BF42^2)+(BF43^2)+(BF44^2)+(BF54^2)+(BF55^2)+(BF56^2)+(BF57^2)+(BF58^2))","v":234.75945135393377},{"$f":"((BG40)+(BG41)+(BG42)+(BG43)+(BG44)+(BG54)+(BG55)+(BG56)+(BG57)+(BG58))","v":2221},{"$f":"SQRT((BH40^2)+(BH41^2)+(BH42^2)+(BH43^2)+(BH44^2)+(BH54^2)+(BH55^2)+(BH56^2)+(BH57^2)+(BH58^2))","v":287.54651797578771},{"$f":"((BI40)+(BI41)+(BI42)+(BI43)+(BI44)+(BI54)+(BI55)+(BI56)+(BI57)+(BI58))","v":1471},{"$f":"SQRT((BJ40^2)+(BJ41^2)+(BJ42^2)+(BJ43^2)+(BJ44^2)+(BJ54^2)+(BJ55^2)+(BJ56^2)+(BJ57^2)+(BJ58^2))","v":285.3909599128886},{"$f":"((BK40)+(BK41)+(BK42)+(BK43)+(BK44)+(BK54)+(BK55)+(BK56)+(BK57)+(BK58))","v":580},{"$f":"SQRT((BL40^2)+(BL41^2)+(BL42^2)+(BL43^2)+(BL44^2)+(BL54^2)+(BL55^2)+(BL56^2)+(BL57^2)+(BL58^2))","v":161.76835290006511},{"$f":"((BM40)+(BM41)+(BM42)+(BM43)+(BM44)+(BM54)+(BM55)+(BM56)+(BM57)+(BM58))","v":3434},{"$f":"SQRT((BN40^2)+(BN41^2)+(BN42^2)+(BN43^2)+(BN44^2)+(BN54^2)+(BN55^2)+(BN56^2)+(BN57^2)+(BN58^2))","v":410.76635694759619},{"$f":"((BO40)+(BO41)+(BO42)+(BO43)+(BO44)+(BO54)+(BO55)+(BO56)+(BO57)+(BO58))","v":1007},{"$f":"SQRT((BP40^2)+(BP41^2)+(BP42^2)+(BP43^2)+(BP44^2)+(BP54^2)+(BP55^2)+(BP56^2)+(BP57^2)+(BP58^2))","v":281.38763299050652},{"$f":"((BQ40)+(BQ41)+(BQ42)+(BQ43)+(BQ44)+(BQ54)+(BQ55)+(BQ56)+(BQ57)+(BQ58))","v":990},{"$f":"SQRT((BR40^2)+(BR41^2)+(BR42^2)+(BR43^2)+(BR44^2)+(BR54^2)+(BR55^2)+(BR56^2)+(BR57^2)+(BR58^2))","v":205.73040611440985},{"$f":"((BS40)+(BS41)+(BS42)+(BS43)+(BS44)+(BS54)+(BS55)+(BS56)+(BS57)+(BS58))","v":102},{"$f":"SQRT((BT40^2)+(BT41^2)+(BT42^2)+(BT43^2)+(BT44^2)+(BT54^2)+(BT55^2)+(BT56^2)+(BT57^2)+(BT58^2))","v":31.464265445104548},{"$f":"((BU40)+(BU41)+(BU42)+(BU43)+(BU44)+(BU54)+(BU55)+(BU56)+(BU57)+(BU58))","v":1328},{"$f":"SQRT((BV40^2)+(BV41^2)+(BV42^2)+(BV43^2)+(BV44^2)+(BV54^2)+(BV55^2)+(BV56^2)+(BV57^2)+(BV58^2))","v":265.03773316265745},{"$f":"((BW40)+(BW41)+(BW42)+(BW43)+(BW44)+(BW54)+(BW55)+(BW56)+(BW57)+(BW58))","v":2961},{"$f":"SQRT((BX40^2)+(BX41^2)+(BX42^2)+(BX43^2)+(BX44^2)+(BX54^2)+(BX55^2)+(BX56^2)+(BX57^2)+(BX58^2))","v":389.41879769728632}]
[null,"18 to 64 years",{"$f":"((C45)+(C46)+(C47)+(C48)+(C49)+(C59)+(C60)+(C61)+(C62)+(C63))","v":4089},{"$f":"SQRT((D45^2)+(D46^2)+(D47^2)+(D48^2)+(D49^2)+(D59^2)+(D60^2)+(D61^2)+(D62^2)+(D63^2))","v":391.80862675546081},{"$f":"((E45)+(E46)+(E47)+(E48)+(E49)+(E59)+(E60)+(E61)+(E62)+(E63))","v":3523},{"$f":"SQRT((F45^2)+(F46^2)+(F47^2)+(F48^2)+(F49^2)+(F59^2)+(F60^2)+(F61^2)+(F62^2)+(F63^2))","v":286.11011866063041},{"$f":"((G45)+(G46)+(G47)+(G48)+(G49)+(G59)+(G60)+(G61)+(G62)+(G63))","v":2495},{"$f":"SQRT((H45^2)+(H46^2)+(H47^2)+(H48^2)+(H49^2)+(H59^2)+(H60^2)+(H61^2)+(H62^2)+(H63^2))","v":219.46070263261257},{"$f":"((I45)+(I46)+(I47)+(I48)+(I49)+(I59)+(I60)+(I61)+(I62)+(I63))","v":2511},{"$f":"SQRT((J45^2)+(J46^2)+(J47^2)+(J48^2)+(J49^2)+(J59^2)+(J60^2)+(J61^2)+(J62^2)+(J63^2))","v":228.4797584032336},{"$f":"((K45)+(K46)+(K47)+(K48)+(K49)+(K59)+(K60)+(K61)+(K62)+(K63))","v":3259},{"$f":"SQRT((L45^2)+(L46^2)+(L47^2)+(L48^2)+(L49^2)+(L59^2)+(L60^2)+(L61^2)+(L62^2)+(L63^2))","v":299.97166532857733},{"$f":"((M45)+(M46)+(M47)+(M48)+(M49)+(M59)+(M60)+(M61)+(M62)+(M63))","v":2917},{"$f":"SQRT((N45^2)+(N46^2)+(N47^2)+(N48^2)+(N49^2)+(N59^2)+(N60^2)+(N61^2)+(N62^2)+(N63^2))","v":243.94876511267688},{"$f":"((O45)+(O46)+(O47)+(O48)+(O49)+(O59)+(O60)+(O61)+(O62)+(O63))","v":2723},{"$f":"SQRT((P45^2)+(P46^2)+(P47^2)+(P48^2)+(P49^2)+(P59^2)+(P60^2)+(P61^2)+(P62^2)+(P63^2))","v":242.39430686383704},{"$f":"((Q45)+(Q46)+(Q47)+(Q48)+(Q49)+(Q59)+(Q60)+(Q61)+(Q62)+(Q63))","v":20849},{"$f":"SQRT((R45^2)+(R46^2)+(R47^2)+(R48^2)+(R49^2)+(R59^2)+(R60^2)+(R61^2)+(R62^2)+(R63^2))","v":897.45361997152816},{"$f":"((S45)+(S46)+(S47)+(S48)+(S49)+(S59)+(S60)+(S61)+(S62)+(S63))","v":1429},{"$f":"SQRT((T45^2)+(T46^2)+(T47^2)+(T48^2)+(T49^2)+(T59^2)+(T60^2)+(T61^2)+(T62^2)+(T63^2))","v":132.66122266887186},{"$f":"((U45)+(U46)+(U47)+(U48)+(U49)+(U59)+(U60)+(U61)+(U62)+(U63))","v":4168},{"$f":"SQRT((V45^2)+(V46^2)+(V47^2)+(V48^2)+(V49^2)+(V59^2)+(V60^2)+(V61^2)+(V62^2)+(V63^2))","v":434.64698319440799},{"$f":"((W45)+(W46)+(W47)+(W48)+(W49)+(W59)+(W60)+(W61)+(W62)+(W63))","v":8212},{"$f":"SQRT((X45^2)+(X46^2)+(X47^2)+(X48^2)+(X49^2)+(X59^2)+(X60^2)+(X61^2)+(X62^2)+(X63^2))","v":536.21544177690373},{"$f":"((Y45)+(Y46)+(Y47)+(Y48)+(Y49)+(Y59)+(Y60)+(Y61)+(Y62)+(Y63))","v":2903},{"$f":"SQRT((Z45^2)+(Z46^2)+(Z47^2)+(Z48^2)+(Z49^2)+(Z59^2)+(Z60^2)+(Z61^2)+(Z62^2)+(Z63^2))","v":242.21684499637922},{"$f":"((AA45)+(AA46)+(AA47)+(AA48)+(AA49)+(AA59)+(AA60)+(AA61)+(AA62)+(AA63))","v":2240},{"$f":"SQRT((AB45^2)+(AB46^2)+(AB47^2)+(AB48^2)+(AB49^2)+(AB59^2)+(AB60^2)+(AB61^2)+(AB62^2)+(AB63^2))","v":216.19204425695224},{"$f":"((AC45)+(AC46)+(AC47)+(AC48)+(AC49)+(AC59)+(AC60)+(AC61)+(AC62)+(AC63))","v":4959},{"$f":"SQRT((AD45^2)+(AD46^2)+(AD47^2)+(AD48^2)+(AD49^2)+(AD59^2)+(AD60^2)+(AD61^2)+(AD62^2)+(AD63^2))","v":384.25382236225056},{"$f":"((AE45)+(AE46)+(AE47)+(AE48)+(AE49)+(AE59)+(AE60)+(AE61)+(AE62)+(AE63))","v":8919},{"$f":"SQRT((AF45^2)+(AF46^2)+(AF47^2)+(AF48^2)+(AF49^2)+(AF59^2)+(AF60^2)+(AF61^2)+(AF62^2)+(AF63^2))","v":543.7195968511711},{"$f":"((AG45)+(AG46)+(AG47)+(AG48)+(AG49)+(AG59)+(AG60)+(AG61)+(AG62)+(AG63))","v":1536},{"$f":"SQRT((AH45^2)+(AH46^2)+(AH47^2)+(AH48^2)+(AH49^2)+(AH59^2)+(AH60^2)+(AH61^2)+(AH62^2)+(AH63^2))","v":161.03415786720529},{"$f":"((AI45)+(AI46)+(AI47)+(AI48)+(AI49)+(AI59)+(AI60)+(AI61)+(AI62)+(AI63))","v":1328},{"$f":"SQRT((AJ45^2)+(AJ46^2)+(AJ47^2)+(AJ48^2)+(AJ49^2)+(AJ59^2)+(AJ60^2)+(AJ61^2)+(AJ62^2)+(AJ63^2))","v":109.37092849564732},{"$f":"((AK45)+(AK46)+(AK47)+(AK48)+(AK49)+(AK59)+(AK60)+(AK61)+(AK62)+(AK63))","v":3736},{"$f":"SQRT((AL45^2)+(AL46^2)+(AL47^2)+(AL48^2)+(AL49^2)+(AL59^2)+(AL60^2)+(AL61^2)+(AL62^2)+(AL63^2))","v":451.3712440995771},{"$f":"((AM45)+(AM46)+(AM47)+(AM48)+(AM49)+(AM59)+(AM60)+(AM61)+(AM62)+(AM63))","v":16137},{"$f":"SQRT((AN45^2)+(AN46^2)+(AN47^2)+(AN48^2)+(AN49^2)+(AN59^2)+(AN60^2)+(AN61^2)+(AN62^2)+(AN63^2))","v":624.58626305739381},{"$f":"((AO45)+(AO46)+(AO47)+(AO48)+(AO49)+(AO59)+(AO60)+(AO61)+(AO62)+(AO63))","v":378},{"$f":"SQRT((AP45^2)+(AP46^2)+(AP47^2)+(AP48^2)+(AP49^2)+(AP59^2)+(AP60^2)+(AP61^2)+(AP62^2)+(AP63^2))","v":86.890735984913832},{"$f":"((AQ45)+(AQ46)+(AQ47)+(AQ48)+(AQ49)+(AQ59)+(AQ60)+(AQ61)+(AQ62)+(AQ63))","v":1060},{"$f":"SQRT((AR45^2)+(AR46^2)+(AR47^2)+(AR48^2)+(AR49^2)+(AR59^2)+(AR60^2)+(AR61^2)+(AR62^2)+(AR63^2))","v":115.10864433221339},{"$f":"((AS45)+(AS46)+(AS47)+(AS48)+(AS49)+(AS59)+(AS60)+(AS61)+(AS62)+(AS63))","v":425},{"$f":"SQRT((AT45^2)+(AT46^2)+(AT47^2)+(AT48^2)+(AT49^2)+(AT59^2)+(AT60^2)+(AT61^2)+(AT62^2)+(AT63^2))","v":67.616566017507864},{"$f":"((AU45)+(AU46)+(AU47)+(AU48)+(AU49)+(AU59)+(AU60)+(AU61)+(AU62)+(AU63))","v":5756},{"$f":"SQRT((AV45^2)+(AV46^2)+(AV47^2)+(AV48^2)+(AV49^2)+(AV59^2)+(AV60^2)+(AV61^2)+(AV62^2)+(AV63^2))","v":487.22582033385709},{"$f":"((AW45)+(AW46)+(AW47)+(AW48)+(AW49)+(AW59)+(AW60)+(AW61)+(AW62)+(AW63))","v":3123},{"$f":"SQRT((AX45^2)+(AX46^2)+(AX47^2)+(AX48^2)+(AX49^2)+(AX59^2)+(AX60^2)+(AX61^2)+(AX62^2)+(AX63^2))","v":287.64040050034697},{"$f":"((AY45)+(AY46)+(AY47)+(AY48)+(AY49)+(AY59)+(AY60)+(AY61)+(AY62)+(AY63))","v":2453},{"$f":"SQRT((AZ45^2)+(AZ46^2)+(AZ47^2)+(AZ48^2)+(AZ49^2)+(AZ59^2)+(AZ60^2)+(AZ61^2)+(AZ62^2)+(AZ63^2))","v":240.99170110192591},{"$f":"((BA45)+(BA46)+(BA47)+(BA48)+(BA49)+(BA59)+(BA60)+(BA61)+(BA62)+(BA63))","v":2683},{"$f":"SQRT((BB45^2)+(BB46^2)+(BB47^2)+(BB48^2)+(BB49^2)+(BB59^2)+(BB60^2)+(BB61^2)+(BB62^2)+(BB63^2))","v":312.34276044115381},{"$f":"((BC45)+(BC46)+(BC47)+(BC48)+(BC49)+(BC59)+(BC60)+(BC61)+(BC62)+(BC63))","v":2975},{"$f":"SQRT((BD45^2)+(BD46^2)+(BD47^2)+(BD48^2)+(BD49^2)+(BD59^2)+(BD60^2)+(BD61^2)+(BD62^2)+(BD63^2))","v":262.21365334398587},{"$f":"((BE45)+(BE46)+(BE47)+(BE48)+(BE49)+(BE59)+(BE60)+(BE61)+(BE62)+(BE63))","v":4887},{"$f":"SQRT((BF45^2)+(BF46^2)+(BF47^2)+(BF48^2)+(BF49^2)+(BF59^2)+(BF60^2)+(BF61^2)+(BF62^2)+(BF63^2))","v":505.5017309564825},{"$f":"((BG45)+(BG46)+(BG47)+(BG48)+(BG49)+(BG59)+(BG60)+(BG61)+(BG62)+(BG63))","v":13274},{"$f":"SQRT((BH45^2)+(BH46^2)+(BH47^2)+(BH48^2)+(BH49^2)+(BH59^2)+(BH60^2)+(BH61^2)+(BH62^2)+(BH63^2))","v":643.57283970037145},{"$f":"((BI45)+(BI46)+(BI47)+(BI48)+(BI49)+(BI59)+(BI60)+(BI61)+(BI62)+(BI63))","v":6204},{"$f":"SQRT((BJ45^2)+(BJ46^2)+(BJ47^2)+(BJ48^2)+(BJ49^2)+(BJ59^2)+(BJ60^2)+(BJ61^2)+(BJ62^2)+(BJ63^2))","v":515.81295059352669},{"$f":"((BK45)+(BK46)+(BK47)+(BK48)+(BK49)+(BK59)+(BK60)+(BK61)+(BK62)+(BK63))","v":2952},{"$f":"SQRT((BL45^2)+(BL46^2)+(BL47^2)+(BL48^2)+(BL49^2)+(BL59^2)+(BL60^2)+(BL61^2)+(BL62^2)+(BL63^2))","v":370.36198509026275},{"$f":"((BM45)+(BM46)+(BM47)+(BM48)+(BM49)+(BM59)+(BM60)+(BM61)+(BM62)+(BM63))","v":17880},{"$f":"SQRT((BN45^2)+(BN46^2)+(BN47^2)+(BN48^2)+(BN49^2)+(BN59^2)+(BN60^2)+(BN61^2)+(BN62^2)+(BN63^2))","v":801.56659112016393},{"$f":"((BO45)+(BO46)+(BO47)+(BO48)+(BO49)+(BO59)+(BO60)+(BO61)+(BO62)+(BO63))","v":4091},{"$f":"SQRT((BP45^2)+(BP46^2)+(BP47^2)+(BP48^2)+(BP49^2)+(BP59^2)+(BP60^2)+(BP61^2)+(BP62^2)+(BP63^2))","v":414.15335324007702},{"$f":"((BQ45)+(BQ46)+(BQ47)+(BQ48)+(BQ49)+(BQ59)+(BQ60)+(BQ61)+(BQ62)+(BQ63))","v":5004},{"$f":"SQRT((BR45^2)+(BR46^2)+(BR47^2)+(BR48^2)+(BR49^2)+(BR59^2)+(BR60^2)+(BR61^2)+(BR62^2)+(BR63^2))","v":435.59499537988268},{"$f":"((BS45)+(BS46)+(BS47)+(BS48)+(BS49)+(BS59)+(BS60)+(BS61)+(BS62)+(BS63))","v":437},{"$f":"SQRT((BT45^2)+(BT46^2)+(BT47^2)+(BT48^2)+(BT49^2)+(BT59^2)+(BT60^2)+(BT61^2)+(BT62^2)+(BT63^2))","v":55.154328932550705},{"$f":"((BU45)+(BU46)+(BU47)+(BU48)+(BU49)+(BU59)+(BU60)+(BU61)+(BU62)+(BU63))","v":4449},{"$f":"SQRT((BV45^2)+(BV46^2)+(BV47^2)+(BV48^2)+(BV49^2)+(BV59^2)+(BV60^2)+(BV61^2)+(BV62^2)+(BV63^2))","v":393.81975572589045},{"$f":"((BW45)+(BW46)+(BW47)+(BW48)+(BW49)+(BW59)+(BW60)+(BW61)+(BW62)+(BW63))","v":8666},{"$f":"SQRT((BX45^2)+(BX46^2)+(BX47^2)+(BX48^2)+(BX49^2)+(BX59^2)+(BX60^2)+(BX61^2)+(BX62^2)+(BX63^2))","v":621.92282479420226}]
[null,"65 to 74 years",{"$f":"((C50)+(C64))","v":870},{"$f":"SQRT((D50^2)+(D64^2))","v":190.06577808748213},{"$f":"((E50)+(E64))","v":555},{"$f":"SQRT((F50^2)+(F64^2))","v":82.073138114732771},{"$f":"((G50)+(G64))","v":283},{"$f":"SQRT((H50^2)+(H64^2))","v":84.053554356731397},{"$f":"((I50)+(I64))","v":448},{"$f":"SQRT((J50^2)+(J64^2))","v":65.192024052026483},{"$f":"((K50)+(K64))","v":480},{"$f":"SQRT((L50^2)+(L64^2))","v":104.06248123122954},{"$f":"((M50)+(M64))","v":372},{"$f":"SQRT((N50^2)+(N64^2))","v":87.726848797845236},{"$f":"((O50)+(O64))","v":429},{"$f":"SQRT((P50^2)+(P64^2))","v":84.172442046075858},{"$f":"((Q50)+(Q64))","v":2529},{"$f":"SQRT((R50^2)+(R64^2))","v":230.48861143232219},{"$f":"((S50)+(S64))","v":251},{"$f":"SQRT((T50^2)+(T64^2))","v":39.698866482558415},{"$f":"((U50)+(U64))","v":899},{"$f":"SQRT((V50^2)+(V64^2))","v":189.50989420080418},{"$f":"((W50)+(W64))","v":1405},{"$f":"SQRT((X50^2)+(X64^2))","v":198.82907232092595},{"$f":"((Y50)+(Y64))","v":373},{"$f":"SQRT((Z50^2)+(Z64^2))","v":72.346388990743691},{"$f":"((AA50)+(AA64))","v":469},{"$f":"SQRT((AB50^2)+(AB64^2))","v":69.296464556281663},{"$f":"((AC50)+(AC64))","v":955},{"$f":"SQRT((AD50^2)+(AD64^2))","v":132.23085872821065},{"$f":"((AE50)+(AE64))","v":2044},{"$f":"SQRT((AF50^2)+(AF64^2))","v":191.65855055279948},{"$f":"((AG50)+(AG64))","v":268},{"$f":"SQRT((AH50^2)+(AH64^2))","v":56.639209034025185},{"$f":"((AI50)+(AI64))","v":293},{"$f":"SQRT((AJ50^2)+(AJ64^2))","v":46.227697325304881},{"$f":"((AK50)+(AK64))","v":621},{"$f":"SQRT((AL50^2)+(AL64^2))","v":139.01438774457844},{"$f":"((AM50)+(AM64))","v":2382},{"$f":"SQRT((AN50^2)+(AN64^2))","v":203.29535164385831},{"$f":"((AO50)+(AO64))","v":187},{"$f":"SQRT((AP50^2)+(AP64^2))","v":52.009614495783374},{"$f":"((AQ50)+(AQ64))","v":135},{"$f":"SQRT((AR50^2)+(AR64^2))","v":37.483329627982627},{"$f":"((AS50)+(AS64))","v":98},{"$f":"SQRT((AT50^2)+(AT64^2))","v":24.413111231467404},{"$f":"((AU50)+(AU64))","v":825},{"$f":"SQRT((AV50^2)+(AV64^2))","v":129.634100452003},{"$f":"((AW50)+(AW64))","v":534},{"$f":"SQRT((AX50^2)+(AX64^2))","v":94.762861923857074},{"$f":"((AY50)+(AY64))","v":661},{"$f":"SQRT((AZ50^2)+(AZ64^2))","v":117.92370414806346},{"$f":"((BA50)+(BA64))","v":453},{"$f":"SQRT((BB50^2)+(BB64^2))","v":99.35793878699377},{"$f":"((BC50)+(BC64))","v":537},{"$f":"SQRT((BD50^2)+(BD64^2))","v":106.21205204683694},{"$f":"((BE50)+(BE64))","v":690},{"$f":"SQRT((BF50^2)+(BF64^2))","v":146.38647478507022},{"$f":"((BG50)+(BG64))","v":2057},{"$f":"SQRT((BH50^2)+(BH64^2))","v":244.82646915723797},{"$f":"((BI50)+(BI64))","v":965},{"$f":"SQRT((BJ50^2)+(BJ64^2))","v":157.76247969653622},{"$f":"((BK50)+(BK64))","v":970},{"$f":"SQRT((BL50^2)+(BL64^2))","v":191.00261778310789},{"$f":"((BM50)+(BM64))","v":3013},{"$f":"SQRT((BN50^2)+(BN64^2))","v":262.55094743687368},{"$f":"((BO50)+(BO64))","v":472},{"$f":"SQRT((BP50^2)+(BP64^2))","v":115.96551211459379},{"$f":"((BQ50)+(BQ64))","v":1298},{"$f":"SQRT((BR50^2)+(BR64^2))","v":176.77669529663689},{"$f":"((BS50)+(BS64))","v":110},{"$f":"SQRT((BT50^2)+(BT64^2))","v":25.45584412271571},{"$f":"((BU50)+(BU64))","v":769},{"$f":"SQRT((BV50^2)+(BV64^2))","v":147.92227688891217},{"$f":"((BW50)+(BW64))","v":1061},{"$f":"SQRT((BX50^2)+(BX64^2))","v":165.75886099994776}]
[null,"75 years and over",{"$f":"((C51)+(C65))","v":459},{"$f":"SQRT((D51^2)+(D65^2))","v":113.6001760562016},{"$f":"((E51)+(E65))","v":186},{"$f":"SQRT((F51^2)+(F65^2))","v":65},{"$f":"((G51)+(G65))","v":319},{"$f":"SQRT((H51^2)+(H65^2))","v":76.850504227363402},{"$f":"((I51)+(I65))","v":153},{"$f":"SQRT((J51^2)+(J65^2))","v":61.554853586049575},{"$f":"((K51)+(K65))","v":147},{"$f":"SQRT((L51^2)+(L65^2))","v":59.059292240933601},{"$f":"((M51)+(M65))","v":174},{"$f":"SQRT((N51^2)+(N65^2))","v":61.073725938409879},{"$f":"((O51)+(O65))","v":197},{"$f":"SQRT((P51^2)+(P65^2))","v":86.821656284592962},{"$f":"((Q51)+(Q65))","v":1095},{"$f":"SQRT((R51^2)+(R65^2))","v":202.25231766286387},{"$f":"((S51)+(S65))","v":155},{"$f":"SQRT((T51^2)+(T65^2))","v":44.045431091090478},{"$f":"((U51)+(U65))","v":273},{"$f":"SQRT((V51^2)+(V65^2))","v":115.26057435220423},{"$f":"((W51)+(W65))","v":1687},{"$f":"SQRT((X51^2)+(X65^2))","v":235.41028014935966},{"$f":"((Y51)+(Y65))","v":361},{"$f":"SQRT((Z51^2)+(Z65^2))","v":95.524865872714003},{"$f":"((AA51)+(AA65))","v":247},{"$f":"SQRT((AB51^2)+(AB65^2))","v":66.219332524573218},{"$f":"((AC51)+(AC65))","v":616},{"$f":"SQRT((AD51^2)+(AD65^2))","v":165.19382555047267},{"$f":"((AE51)+(AE65))","v":1402},{"$f":"SQRT((AF51^2)+(AF65^2))","v":183.17477992343814},{"$f":"((AG51)+(AG65))","v":86},{"$f":"SQRT((AH51^2)+(AH65^2))","v":30},{"$f":"((AI51)+(AI65))","v":148},{"$f":"SQRT((AJ51^2)+(AJ65^2))","v":38.948684188300895},{"$f":"((AK51)+(AK65))","v":359},{"$f":"SQRT((AL51^2)+(AL65^2))","v":125.73384588089239},{"$f":"((AM51)+(AM65))","v":1166},{"$f":"SQRT((AN51^2)+(AN65^2))","v":220.3678742466787},{"$f":"((AO51)+(AO65))","v":134},{"$f":"SQRT((AP51^2)+(AP65^2))","v":48.166378315169183},{"$f":"((AQ51)+(AQ65))","v":95},{"$f":"SQRT((AR51^2)+(AR65^2))","v":38.288379438153292},{"$f":"((AS51)+(AS65))","v":72},{"$f":"SQRT((AT51^2)+(AT65^2))","v":25.942243542145693},{"$f":"((AU51)+(AU65))","v":378},{"$f":"SQRT((AV51^2)+(AV65^2))","v":145.09651959988565},{"$f":"((AW51)+(AW65))","v":191},{"$f":"SQRT((AX51^2)+(AX65^2))","v":87.114866699088736},{"$f":"((AY51)+(AY65))","v":347},{"$f":"SQRT((AZ51^2)+(AZ65^2))","v":98.407316801140354},{"$f":"((BA51)+(BA65))","v":282},{"$f":"SQRT((BB51^2)+(BB65^2))","v":100.65783625729296},{"$f":"((BC51)+(BC65))","v":276},{"$f":"SQRT((BD51^2)+(BD65^2))","v":95.482982777037293},{"$f":"((BE51)+(BE65))","v":512},{"$f":"SQRT((BF51^2)+(BF65^2))","v":165.32392446346051},{"$f":"((BG51)+(BG65))","v":1175},{"$f":"SQRT((BH51^2)+(BH65^2))","v":192.60841103129428},{"$f":"((BI51)+(BI65))","v":397},{"$f":"SQRT((BJ51^2)+(BJ65^2))","v":112.48555462813881},{"$f":"((BK51)+(BK65))","v":497},{"$f":"SQRT((BL51^2)+(BL65^2))","v":152.26949793047851},{"$f":"((BM51)+(BM65))","v":2054},{"$f":"SQRT((BN51^2)+(BN65^2))","v":281.81021982887705},{"$f":"((BO51)+(BO65))","v":315},{"$f":"SQRT((BP51^2)+(BP65^2))","v":168.90825912311098},{"$f":"((BQ51)+(BQ65))","v":890},{"$f":"SQRT((BR51^2)+(BR65^2))","v":165.02424064360969},{"$f":"((BS51)+(BS65))","v":75},{"$f":"SQRT((BT51^2)+(BT65^2))","v":26.172504656604801},{"$f":"((BU51)+(BU65))","v":430},{"$f":"SQRT((BV51^2)+(BV65^2))","v":121.62236636408618},{"$f":"((BW51)+(BW65))","v":884},{"$f":"SQRT((BX51^2)+(BX65^2))","v":152.74161188098023}]
[]
[]
[]
[]
[]
[]
[]
[]
[]
[]
[]
[]
[]
[]
[]
[]
[]
[]
[]
[]
[]
[]
[]
[]
[]
[]
[]
[]
[]
[]
[]
[]
[]
[]
[]
[]
[]
[]
[]
[]
[]
[]
[null,"Calculated Table B17001. POVERTY STATUS IN THE PAST 12 MONTHS BY SEX BY AGE"]
[null,"Universe:  POPULATION FOR WHOM POVERTY STATUS IS DETERMINED"]
[null,"Data Set: 2010-2014 American Community Survey 5-Year Estimates"]
[]
[null,null,"Atkinson",null,"Auburn",null,"Brentwood",null,"Candia",null,"Chester",null,"Danville",null,"Deerfield",null,"Derry",null,"East Kingston",null,"Epping",null,"Exeter",null,"Fremont",null,"Greenland",null,"Hampstead",null,"Hampton",null,"Hampton Falls",null,"Kensington",null,"Kingston",null,"Londonderry",null,"New Castle",null,"Newfields",null,"Newington",null,"Newmarket",null,"Newton",null,"North Hampton",null,"Northwood",null,"Nottingham",null,"Plaistow",null,"Portsmouth",null,"Raymond",null,"Rye",null,"Salem",null,"Sandown",null,"Seabrook",null,"South Hampton",null,"Stratham",null,"Windham"]
[null,null,"Estimate","Margin Of Error","Estimate","Margin Of Error","Estimate","Margin Of Error","Estimate","Margin Of Error","Estimate","Margin Of Error","Estimate","Margin Of Error","Estimate","Margin Of Error","Estimate","Margin Of Error","Estimate","Margin Of Error","Estimate","Margin Of Error","Estimate","Margin Of Error","Estimate","Margin Of Error","Estimate","Margin Of Error","Estimate","Margin Of Error","Estimate","Margin Of Error","Estimate","Margin Of Error","Estimate","Margin Of Error","Estimate","Margin Of Error","Estimate","Margin Of Error","Estimate","Margin Of Error","Estimate","Margin Of Error","Estimate","Margin Of Error","Estimate","Margin Of Error","Estimate","Margin Of Error","Estimate","Margin Of Error","Estimate","Margin Of Error","Estimate","Margin Of Error","Estimate","Margin Of Error","Estimate","Margin Of Error","Estimate","Margin Of Error","Estimate","Margin Of Error","Estimate","Margin Of Error","Estimate","Margin Of Error","Estimate","Margin Of Error","Estimate","Margin Of Error","Estimate","Margin Of Error","Estimate","Margin Of Error"]
[null,"Total:",6788,19,5077,21,4182,165,3914,25,4689,61,4405,46,4330,19,32935,157,2453,130,6575,27,14249,104,4324,39,3644,29,8512,55,14765,183,2307,123,2048,150,6014,47,24185,98,966,162,1625,222,800,136,8847,97,4717,34,4344,22,4269,16,4825,38,7599,36,20831,287,10160,47,5275,65,28681,91,6133,38,8747,19,799,123,7291,30,13908,55]
[null,"Income in the past 12 months below poverty level:",211,177,131,90,308,275,150,89,211,127,118,111,163,111,2678,640,70,44,415,262,1056,295,116,83,154,141,529,288,1046,388,86,58,82,39,332,245,723,175,26,28,2,5,35,27,886,230,428,240,159,89,357,331,147,58,247,274,1590,317,890,393,251,137,1155,288,445,298,1085,642,21,20,25,26,479,208]
[null,"Under 5 years",0,21.213203435596427,15,21.213203435596427,11,17.804493814764857,0,15.556349186104045,13,14.212670403551895,44,70.859014952227497,12,24.758836806279895,148,85.492689745966004,0,11.704699910719626,57,45.541190146942803,69,34.481879299133332,7,21.633307652783937,0,12.529964086141668,35,58.180752831155424,0,38.910152916687437,0,12.529964086141668,6,17.804493814764857,96,44.384682042344295,27,43.829214001622255,0,15.556349186104045,0,15.556349186104045,0,15.556349186104045,0,38.078865529319543,79,25.495097567963924,0,54.12947441089743,12,16.278820596099706,0,17.804493814764857,92,140.80127840328723,67,76.609398901179219,78,48.826222462934808,6,19.209372712298546,0,49.244289008980523,95,121.51131634543344,181,161.11176245079065,6,15.556349186104045,0,21.213203435596427,53,52.497618993626752]
[null,"5 to 17 years",94,104.96666137398103,22,47.360320944858472,105,60.481402100149765,69,53.028294334251406,28,45.243784103454473,0,33.166247903554002,22,37.456641600656084,749,226.39787984873004,0,33.166247903554002,118,82.042671823874684,199,77.980766859527606,20,38.249182997810557,58,66.708320320631671,185,118.97478724502936,364,134.17898494175606,28,35.679125549822544,7,30.133038346638727,0,45.166359162544857,135,74.343795975185444,8,33.882148692194832,0,33.166247903554002,2,31.432467291003423,105,71.728655361717188,60,72.380936716790288,0,33.166247903554002,144,120.8966500776593,28,44.844174649557324,52,78.128099938498437,164,96.291224937685783,263,160.3277892319357,17,45.188494110780013,137,76.039463438401512,124,129.53763931769021,160,135.21094630243513,0,33.166247903554002,0,45.166359162544857,32,50.724747411889595]
[null,"18 to 64 years",74,74.357245780085208,67,51.39066063011839,171,122.87391912037315,61,53.3572862878164,143,72.917761896536561,72,53.150729063673246,122,69.706527671373792,1573,316.10441312958602,41,29.32575659723036,226,124.93198149393133,685,231.12550703027134,68,47.116875957558989,67,49.213819197457127,202,113.16801668316009,632,217.53620388339959,52,47.148700936505136,61,32.710854467592249,140,98.564699563281778,444,127.8201861992072,8,35.468295701936398,0,34.785054261852174,20,29.393876913398138,729,211.34805416658088,281,147.21412975662358,141,79.347337699509495,201,116.27123461974591,91,53.962950252928167,90,92.449986479176943,1125,247.78821602328065,473,155.68236894394946,145,112.60106571431729,730,200.59162494979694,190,117.45637488020819,690,238.33799529239982,11,32.924155266308659,9,37.947331922020552,282,128.42896869476138]
[null,"65 to 74 years",1,15.132745950421556,0,21.213203435596427,0,15.556349186104045,20,24.596747752497688,19,28.231188426986208,0,15.556349186104045,7,16.278820596099706,123,67.896980787071826,14,12.806248474865697,14,26.627053911388696,63,50.47771785649585,10,18.601075237738275,7,15.556349186104045,14,21.095023109728988,38,32.202484376209235,0,15.556349186104045,4,12.083045973594572,54,54.78138369920935,71,45.453272709454048,4,13.038404810405298,2,12.083045973594572,13,18.027756377319946,20,21.633307652783937,0,15.556349186104045,12,19.235384061671343,0,15.556349186104045,5,14.212670403551895,1,15.297058540778355,127,64.350602172784676,29,30.083217912982647,14,25.80697580112788,122,61.619802012015583,0,21.213203435596427,40,34.655446902326915,0,15.556349186104045,16,29.154759474226502,0,24.041630560342615]
[null,"75 years and over",42,38.600518131237564,27,25,21,30.083217912982647,0,15.556349186104045,8,17.804493814764857,2,11.401754250991379,0,15.556349186104045,85,73.498299300051841,15,17.464249196572979,0,21.213203435596427,40,39.824615503479755,11,19.416487838947599,22,21.931712199461309,93,82.855295545909442,12,25.495097567963924,6,14.212670403551895,4,12.529964086141668,42,47.381430961928537,46,38.275318418009277,6,14.212670403551895,0,15.556349186104045,0,15.556349186104045,32,33.541019662496844,8,17.029386365926403,6,14.212670403551895,0,15.556349186104045,23,28.231188426986208,12,25,107,61.294371682887821,47,51.662365412357957,69,55.605755097831377,166,96.005208192055917,36,38.183766184073569,14,27.459060435491963,4,12.083045973594572,0,21.213203435596427,112,100.68763578513501]
[null," Income in the past 12 months at or above poverty level ",6577,177,4946,90,3874,314,3764,91,4478,136,4287,120,4167,111,30257,637,2383,130,6160,268,13193,314,4208,92,3490,146,7983,294,13719,428,2221,141,1966,152,5682,251,23462,197,940,162,1623,222,765,133,7961,259,4289,242,4185,91,3912,332,4678,79,7352,277,19241,425,9270,402,5024,133,27526,299,5688,299,7662,644,778,117,7266,40,13429,210]
[null,"Under 5 years",211,120.90492132250036,186,84.628600366542756,146,75.451971478550519,128,58,261,106.96261028976434,190,70.434366611761334,201,79.404030124421269,1234,280.49242414011826,133,42.5205832509386,422,144.25671561490648,570,177.10166571774531,264,112.16059914247963,201,81.344944526380985,345,123.17467272130257,410,120.20815280171308,117,47.634021455258214,95,42.720018726587654,248,103.40696301506973,1049,181.72781845386248,26,25.238858928247925,66,34.828149534535996,28,19.849433241279208,410,130,222,103.73041983911952,282,112.29425630903836,282,120.83045973594572,274,95,314,143.1258187749506,985,199.90497742677644,568,163.78339354159201,123,79.881161734166085,1125,216.81558984537989,358,129.18978287774928,272,122.38055401083949,33,20.124611797498108,296,170.18813119603846,719,180.40509970618902]
[null,"5 to 17 years",1126,214.87903573871509,940,172.83518160374641,921,150.72159765607583,576,121,881,170.28211884986632,904,177.13836399831629,789,172.03197377231942,5220,461.81814602719976,420,74.155242565849647,846,226.69583145704289,2497,325.58255481521121,698,136.13963419959671,596,133.26664999166147,1263,194.84352696458765,1985,311.12216250212714,384,72.560319734686942,369,59.329587896765304,838,208.532971014178,4694,383.20490602287441,86,52.877216265609142,377,71.944422994419796,69,32.542280190545959,1302,244.15364015308066,870,178.0814420426789,585,156.11854470241516,479,130.04999038831184,707,137.80420893427021,1196,259.47061490658245,2143,315.11902513177461,1522,275.55398745073535,643,157.680055809224,4433,490.15915782529248,902,221.06786288377603,696,203.68112332761717,110,35.057096285916209,1401,224.91109354587203,2792,341.33414713444654]
[null,"18 to 64 years",4152,367.3976047826115,3370,298.53977959394291,2442,214.51573368869705,2597,220.9208002882481,2895,240.7010594077226,2761,240.63042201683476,2735,243.82165613415063,20698,827.82002875021089,1421,123.98386991863094,4034,410.45097149355121,7661,482.55569626728061,2728,236.20541907416094,2147,221.19222409479045,5084,387.07492814699327,8457,490.93685948398701,1371,134.07087677791921,1256,102.78132126023678,3780,373.68971085648047,15206,615.41124461615095,510,103.27148686835103,1010,118.68024266911489,534,75.683551713698009,5400,428.3176391417939,2781,252.68557536986555,2523,239.75612609482997,2519,266.79017972931462,3272,291.62647342105276,4819,477.86085840964211,13039,627.64799051697764,6231,467.92627624445282,3099,374.66518386420694,17872,788.55056908228778,3912,361.13570856396905,4993,677.09157430882271,505,69.086901797663501,4699,379.16619047589148,8241,560.16783199323402]
[null,"65 to 74 years",621,142.43595051811886,313,60.811183182043088,243,62.241465278381739,295,85.632937588290176,303,86.278618440491968,226,92.849340331528467,329,76.216796049164913,1716,210.73680267100951,299,51.855568649856693,534,149.20120642943877,1288,174.04022523543227,385,94.111635837445732,273,64.660652641308843,921,143.80890097626084,1690,186.76188047886004,241,45.793012567421243,186,31.240998703626616,510,123.43419299367578,1821,210.76052761368766,150,44.598206241955516,85,32.015621187164243,74,24.698178070456937,493,108.00462953040486,249,84.958813551037778,514,98.994949366116657,405,95.414883535012507,274,66.030296076876709,526,141.24092891226678,1704,217.69014676829082,712,163.13184851524241,540,190.4337155022713,2578,268.00186566514793,325,86.313382508160345,1041,206.20620747203515,80,19.798989873223331,459,114.47707194019246,952,201.13676938839401]
[null,"75 years and over",467,121.01652779682617,137,46.097722286464439,122,38.288379438153292,168,75.153176912223742,138,61.854668376768458,206,81.320354155647891,113,49.51767361255979,1389,201.02238681301145,110,37.643060449437421,324,158.52129194527782,1177,186.65744024817226,133,65,273,62.201286160335947,370,107.0420478129973,1177,213.57200191036279,108,35.383612025908263,60,20.615528128088304,306,100.44899203078147,692,145.86637720873168,168,48.083261120685229,85,30.413812651491099,60,22.671568097509269,356,136.95254652615992,167,61.846584384264908,281,74.094534211370814,227,93.605555390692487,151,59.413803110051795,497,144.26711336961034,1370,196.33135256499406,237,76.837490849194182,619,180.62391868188442,1518,235.74774654278247,191,83.815273071201048,660,212.24985276791125,50,20.518284528683193,411,99.297532698451278,725,181.10770276274835]
[]
[]
[]
[]
[]
[]
[]
[]
[]
[]
[]
[]
[]
[]
[]
[]
[]
[]
[]
[]
[]
[]
[]
[]
[]
[]
[]
[]
[]
[]
[]
[]
[]
[]
[]
[]
[]
[]
[]
[]
[]
[]
[null,"Calculated Table B17001. POVERTY STATUS IN THE PAST 12 MONTHS BY SEX BY AGE"]
[null,"Universe:  POPULATION FOR WHOM POVERTY STATUS IS DETERMINED"]
[null,"Data Set: 2005-2009 American Community Survey 5-Year Estimates"]
[]
[null,null,"Atkinson",null,"Auburn",null,"Brentwood",null,"Candia",null,"Chester",null,"Danville",null,"Deerfield",null,"Derry",null,"East Kingston",null,"Epping",null,"Exeter",null,"Fremont",null,"Greenland",null,"Hampstead",null,"Hampton",null,"Hampton Falls",null,"Kensington",null,"Kingston",null,"Londonderry",null,"New Castle",null,"Newfields",null,"Newington",null,"Newmarket",null,"Newton",null,"North Hampton",null,"Northwood",null,"Nottingham",null,"Plaistow",null,"Portsmouth",null,"Raymond",null,"Rye",null,"Salem",null,"Sandown",null,"Seabrook",null,"South Hampton",null,"Stratham",null,"Windham"]
[null,null,"Estimate","Margin Of Error","Estimate","Margin Of Error","Estimate","Margin Of Error","Estimate","Margin Of Error","Estimate","Margin Of Error","Estimate","Margin Of Error","Estimate","Margin Of Error","Estimate","Margin Of Error","Estimate","Margin Of Error","Estimate","Margin Of Error","Estimate","Margin Of Error","Estimate","Margin Of Error","Estimate","Margin Of Error","Estimate","Margin Of Error","Estimate","Margin Of Error","Estimate","Margin Of Error","Estimate","Margin Of Error","Estimate","Margin Of Error","Estimate","Margin Of Error","Estimate","Margin Of Error","Estimate","Margin Of Error","Estimate","Margin Of Error","Estimate","Margin Of Error","Estimate","Margin Of Error","Estimate","Margin Of Error","Estimate","Margin Of Error","Estimate","Margin Of Error","Estimate","Margin Of Error","Estimate","Margin Of Error","Estimate","Margin Of Error","Estimate","Margin Of Error","Estimate","Margin Of Error","Estimate","Margin Of Error","Estimate","Margin Of Error","Estimate","Margin Of Error","Estimate","Margin Of Error","Estimate","Margin Of Error"]
[null,"Total:",6646,22,5147,24,3314,223,4154,34,4675,43,4357,22,4171,17,33901,213,2314,116,6200,35,14380,220,4083,20,3406,18,8879,20,15235,184,2342,147,2111,162,6233,31,24916,53,727,133,1833,239,691,109,9401,30,4523,25,4511,51,4077,20,4454,30,7625,50,20118,194,10108,86,5177,23,29257,221,5822,18,8450,65,798,129,7214,17,12965,200]
[null,"Income in the past 12 months below poverty level:",200,159,173,104,90,55,176,98,125,128,95,71,158,91,2220,609,144,65,470,302,756,304,137,111,98,76,172,113,1276,496,149,100,36,23,243,186,590,236,38,37,36,37,39,31,779,285,102,97,141,84,59,56,119,67,467,325,1444,350,663,284,168,99,1042,263,307,167,605,261,16,14,88,65,97,83]
[null,"Under 5 years",0,117.15374513859982,0,129.76902558006668,8,17.888543819998318,0,115.91807451816995,26,161.22034611053283,22,115.26057435220423,21,27.730849247724095,225,148.21943192442751,10,114.85643212288984,24,115.41230437002807,41,89.140338792266206,0,114.73883387938018,13,25,0,132.74034804836094,91,95.210293561148106,24,17.029386365926403,0,114.21471008587291,0,119.85407794480753,0,128.36276718737409,0,114.62983904725679,4,114.35471131527551,0,161.22034611053283,62,71.867934435323804,0,161.22034611053283,0,161.22034611053283,4,161.22034611053283,0,161.22034611053283,0,116.10340218959993,74,62.968245965724662,0,146.49232061783991,0,161.22034611053283,26,58.240879114244144,36,114.85643212288984,0,117.38824472663352,2,161.22034611053283,16,116.70903992407786,0,117.63077828527702]
[null,"5 to 17 years",64,305.2605444534226,19,302.50123966688136,28,279.90534114232264,19,302.60039656285977,32,304.36491256384988,21,322.81418804011696,16,302.32267529909166,554,278.63237428554493,37,198.98994949494309,125,272.66096163550804,98,241.41872338325376,38,281.59545450876868,0,342.16662607565922,0,342.16662607565922,302,274.33920609347837,27,255.97460811572697,11,322.52596794676862,77,320.51677023207384,147,242.15077947427713,3,322.65616374090854,11,279.68553770261343,3,322.65616374090854,117,216.1157097482735,25,303.13033500459829,8,322.8792343895779,7,302.0446986788545,25,302.94388919402218,214,279.12721114216004,178,162.265215003093,61,306.71485128698936,17,323.74527023572097,131,236.24140195994434,98,168.98520645310938,139,252.74493071078598,4,322.45929975734924,0,342.16662607565922,18,302.60039656285977]
[null,"18 to 64 years",57,306.18785083670451,154,268.31884018831028,54,163.6551251870836,147,266.53892773852004,67,258.63101128828305,33,323.77924578329601,104,207.3137718531984,1281,284.42573723205851,74,230.01304310842897,321,251.82136525719974,546,229.11132665147744,68,282.80912290801371,68,258.44148273835606,103,292.71317018542231,655,261.90265367116842,82,201.00248754679629,25,255.24693925686944,114,291.86812090394523,358,178.87425751068821,24,279.95356757862544,19,255.38206671573477,27,280.3426474869637,576,215.85643377022609,25,323.61860267914142,82,233.90382639024955,15,323.04334074547955,73,308.67620575612887,158,216.95621678117453,1039,239.42639787625757,483,253.72031846109604,82,285.39621581233342,622,164.34110867339311,136,171.63624325881756,386,257.11864965420148,10,301.6985250212536,72,284.20063335608523,46,304.02302544379762]
[null,"65 to 74 years",38,122.56018929489298,0,161.22034611053283,0,161.22034611053283,0,161.22034611053283,0,161.22034611053283,19,116.10340218959993,17,18.439088914585774,75,47.853944456021594,23,19.798989873223331,0,161.22034611053283,0,161.22034611053283,31,33.941125496954278,17,18.384776310850235,43,36.891733491393431,165,71.112586790244109,0,161.22034611053283,0,161.22034611053283,34,39.962482405376171,57,44.204072210600685,3,114.10959644131601,2,114.10959644131601,6,114.21471008587291,14,116.10340218959993,0,161.22034611053283,39,122.93087488503447,0,161.22034611053283,10,115.11733144926528,0,161.22034611053283,41,40.311288741492746,61,61.400325732035007,44,41.773197148410844,135,69.526973183074787,0,161.22034611053283,46,124.88794977899188,0,161.22034611053283,0,161.22034611053283,33,124.88794977899188]
[null,"75 years and over",41,37.735924528226413,0,161.22034611053283,0,161.22034611053283,10,115.11733144926528,0,161.22034611053283,0,161.22034611053283,0,161.22034611053283,85,81.939001702485982,0,161.22034611053283,0,161.22034611053283,71,74.732857566133518,0,161.22034611053283,0,161.22034611053283,26,30.016662039607269,63,40.311288741492746,16,16.970562748477139,0,161.22034611053283,18,117.881296226331,28,32.557641192199412,8,114.73883387938018,0,161.22034611053283,3,114.0701538527936,10,115.26057435220423,52,53.665631459994955,12,115.26057435220423,33,121.14866899805379,11,115.11733144926528,95,73.552702193733168,112,53.338541412378348,58,41.400483088968905,25,117.63077828527702,128,72.917761896536561,37,39.05124837953327,34,118.1397477566293,0,161.22034611053283,0,161.22034611053283,0,161.22034611053283]
[null," Income in the past 12 months at or above poverty level ",6446,159,4974,105,3224,211,3978,102,4550,134,4262,75,4013,92,31681,632,2170,131,5730,304,13624,357,3946,112,3308,80,8707,110,13959,529,2193,140,2075,167,5990,189,24326,247,689,138,1797,237,652,103,8622,284,4421,101,4370,100,4018,61,4335,70,7158,331,18674,393,9445,315,5009,100,28215,358,5515,165,7845,265,782,129,7126,67,12868,208]
[null,"Under 5 years",300,122.3315167894194,433,118.86967653695369,169,65.79513659838392,189,82.03657720797473,254,97.498717940288842,128,74.652528423356159,264,114.0175425099138,2118,320.60099812695529,168,41.231056256176608,317,114.86513831445988,795,195.88006534611938,314,104.84750831564858,181,117.17508267545622,363,144.30869689661813,610,171.81676286090365,186,53.254107822777392,114,50.328918128646478,413,169.19810873647495,1371,286.56761854752534,5,114.28035701729323,104,41.400483088968905,12,10.816653826391969,592,155.12897859523216,316,96.876209669866839,303,85.586213843118443,175,83.096329642168911,462,132.0075755401939,379,183.8396040030548,1037,213.03755537463343,659,153.80832227158581,263,113.6001760562016,1547,272.64078931810627,389,141.59802258506295,370,162.16349774224778,20,12.041594578792296,400,114.40279716860073,944,186.80738743422327]
[null,"5 to 17 years",1152,221.44751071077769,901,189.00793634130815,798,120.3204055844228,676,191.76026700023129,1018,222.99551564997893,1096,214.8604198078371,757,155.82040944625965,5714,494.35007838575285,353,61.652250567193406,796,217.83020910791964,2225,328.66548343262332,732,151.3373714586057,686,172.85832349065521,1732,293.40245397746759,1786,250.38769937838401,391,60.704200843104758,424,66.940271884718243,904,232.83900016964512,5840,517.31518438955572,74,166.12645785665811,516,85.463442476885987,62,199.26113519700723,1141,234.89359293092693,723,191.2093093967969,698,166.66433331699977,859,153.48941331570722,634,192.47077700264006,1476,272.06433062788659,2277,302.81017155967533,1536,240.05624340974762,732,199.40160480798542,5095,431.4811699251776,1115,176.54177975765396,1122,267.22836675772277,118,164.95150802584376,1530,225.86500392933829,2547,302.44834269673225]
[null,"18 to 64 years",3971,316.84065395715874,3261,267.30132809247317,1996,139.98928530426892,2692,247.18818742003026,2981,236.0804947470248,2655,232.57686901323615,2633,235.24030266941929,21426,858.22666003801112,1381,102.02450685987166,3789,367.81517097585845,8015,516.70881548508532,2610,229.45151993395032,2032,205.38500432115291,5613,402.16290231695911,9365,583.25551861941267,1377,106.0895847856895,1338,104.38869670610895,4028,390.84140005889856,15520,694.60924266813493,368,137.88763541376724,1068,115.91807451816995,439,71.239034243875039,6017,422.88769194669169,3076,272.99633697176233,2728,254.77244748991205,2555,269.55518915428064,2893,261.93510646723166,4502,410.41929779190451,13024,707.62490063592304,6452,443.75556334540755,3154,326.22691489207324,18050,742.58130867939303,3689,309.29112499391249,4745,484.68133861332024,521,74.979997332621991,4551,354.13274347340433,8208,453.82705957225602]
[null,"65 to 74 years",518,118.2285921425101,213,58.137767414994535,138,36.878177829171548,315,71.449282711584999,214,60.108235708594876,268,72.670489196096653,216,60.108235708594876,1467,216.39085008382401,178,37.536648758246919,440,131.54847015454038,1317,198.07321878537743,149,62.241465278381739,232,68.593002558570063,581,154.87091398968369,1318,196.23710148695125,123,30.479501308256342,107,26.248809496813376,292,87.206651122491792,1080,207.2510554858527,116,47.423622805517503,73,20.808652046684813,88,32.756678708318397,529,121.82774724995944,185,66.030296076876709,289,74.411020689142546,214,64.660652641308843,242,50.931326312987373,349,101.9803902718557,1200,184.91078930121952,540,125.89678312014172,361,109.55363982999378,1914,193.50710581268069,298,85.796270315206598,853,162.05246064160829,41,15.652475842498529,370,105.38026380684383,859,167.83920876839238]
[null,"75 years and over",505,148.24641648282767,166,70.235318750611498,123,33.600595232822883,106,56.080299571239813,83,38.275318418009277,115,63.7808748764079,143,88.41379982785493,956,190.93978108293726,90,26.248809496813376,388,135.15176654413364,1272,191.44189719076647,141,56.586217403180434,177,56.850681614207581,418,125.49501982150527,880,165.46298679765212,116,26.172504656604801,92,27.018512172212592,353,124.84390253432484,515,127.00393694685216,126,45.793012567421243,36,17.204650534085253,51,19.209372712298546,343,102.00490184299969,121,63.655321851358195,352,83.450584180100265,215,71.06335201775947,104,46.400431032480725,452,163.02760502442524,1136,199.58456854175876,258,83.096329642168911,499,123.89108119634763,1609,193.21749403198459,24,28.42534080710379,755,178.40403582878949,82,30.413812651491099,275,99.322706366671255,310,91.678787077491378]

{"sheet":"ACS_Table_B17010","index":54,"n_rows":165,"n_cols":76,"rows_kept":165,"cut":false,"hidden":true,"merged":[]}
[null,"B17010. POVERTY STATUS IN THE PAST 12 MONTHS OF FAMILIES BY FAMILY TYPE BY PRESENCE OF RELATED CHILDREN UNDER 18 YEARS"]
[null,"Universe: FAMILIES"]
[null,"Data Set: 2015-2019 American Community Survey 5-Year Estimates"]
[]
[null,null,"Atkinson",null,"Auburn",null,"Brentwood",null,"Candia",null,"Chester",null,"Danville",null,"Deerfield",null,"Derry",null,"East Kingston",null,"Epping",null,"Exeter",null,"Fremont",null,"Greenland",null,"Hampstead",null,"Hampton",null,"Hampton Falls",null,"Kensington",null,"Kingston",null,"Londonderry",null,"New Castle",null,"Newfields",null,"Newington",null,"Newmarket",null,"Newton",null,"North Hampton",null,"Northwood",null,"Nottingham",null,"Plaistow",null,"Portsmouth",null,"Raymond",null,"Rye",null,"Salem",null,"Sandown",null,"Seabrook",null,"South Hampton",null,"Stratham",null,"Windham"]
[null,null,"Estimate","Margin Of Error","Estimate","Margin Of Error","Estimate","Margin Of Error","Estimate","Margin Of Error","Estimate","Margin Of Error","Estimate","Margin Of Error","Estimate","Margin Of Error","Estimate","Margin Of Error","Estimate","Margin Of Error","Estimate","Margin Of Error","Estimate","Margin Of Error","Estimate","Margin Of Error","Estimate","Margin Of Error","Estimate","Margin Of Error","Estimate","Margin Of Error","Estimate","Margin Of Error","Estimate","Margin Of Error","Estimate","Margin Of Error","Estimate","Margin Of Error","Estimate","Margin Of Error","Estimate","Margin Of Error","Estimate","Margin Of Error","Estimate","Margin Of Error","Estimate","Margin Of Error","Estimate","Margin Of Error","Estimate","Margin Of Error","Estimate","Margin Of Error","Estimate","Margin Of Error","Estimate","Margin Of Error","Estimate","Margin Of Error","Estimate","Margin Of Error","Estimate","Margin Of Error","Estimate","Margin Of Error","Estimate","Margin Of Error","Estimate","Margin Of Error","Estimate","Margin Of Error","Estimate","Margin Of Error"]
[null,"Total:",1994,146,1655,103,1245,70,1118,85,1474,95,1330,86,1290,78,9009,292,716,54,2034,136,3834,221,1351,98,1125,74,2415,138,4327,212,676,65,668,47,1623,136,7418,221,257,61,524,67,209,30,2149,159,1358,86,1376,99,1170,98,1447,97,2155,157,5106,277,2816,186,1595,133,7872,279,1674,110,2476,156,225,35,2233,115,4228,161]
[null,"Income in the past 12 months below poverty level:",0,16,0,16,16,18,19,23,23,27,19,20,83,58,533,211,23,16,97,64,69,54,0,11,43,33,58,42,144,67,20,30,6,6,73,54,135,69,0,11,12,11,4,6,79,58,24,22,47,41,38,30,46,45,29,42,229,102,111,89,29,32,290,154,27,42,66,49,5,5,18,32,12,19]
[null,"Married-couple family:",0,16,0,16,8,12,19,23,0,16,19,20,28,28,130,87,12,13,48,45,19,31,0,11,19,20,38,41,90,55,20,30,6,6,10,15,45,37,0,11,7,8,2,4,52,51,17,19,8,13,0,11,0,16,0,16,17,20,15,23,29,32,132,107,27,42,12,20,2,3,18,32,0,18]
[null,"With related children under 18 years:",0,16,0,16,0,11,0,11,0,16,0,11,0,11,96,75,0,11,0,16,0,18,0,11,9,13,23,34,13,14,20,30,0,11,0,16,5,7,0,11,4,6,0,11,0,16,0,11,0,11,0,11,0,16,0,16,9,14,15,23,13,22,104,107,27,42,0,16,0,11,0,16,0,18]
[null,"Under 5 years only",0,16,0,16,0,11,0,11,0,16,0,11,0,11,0,24,0,11,0,16,0,18,0,11,0,11,0,16,0,18,0,11,0,11,0,16,0,21,0,11,0,11,0,11,0,16,0,11,0,11,0,11,0,16,0,16,0,21,0,18,0,16,67,95,27,42,0,16,0,11,0,16,0,18]
[null,"Under 5 years and 5 to 17 years",0,16,0,16,0,11,0,11,0,16,0,11,0,11,31,46,0,11,0,16,0,18,0,11,0,11,23,34,8,12,0,11,0,11,0,16,5,7,0,11,0,11,0,11,0,16,0,11,0,11,0,11,0,16,0,16,9,14,0,18,0,16,14,19,0,16,0,16,0,11,0,16,0,18]
[null,"5 to 17 years only",0,16,0,16,0,11,0,11,0,16,0,11,0,11,65,64,0,11,0,16,0,18,0,11,9,13,0,16,5,7,20,30,0,11,0,16,0,21,0,11,4,6,0,11,0,16,0,11,0,11,0,11,0,16,0,16,0,21,15,23,13,22,23,37,0,16,0,16,0,11,0,16,0,18]
[null,"No related children under 18 years",0,16,0,16,8,12,19,23,0,16,19,20,28,28,34,30,12,13,48,45,19,31,0,11,10,14,15,23,77,53,0,11,6,6,10,15,40,36,0,11,3,4,2,4,52,51,17,19,8,13,0,11,0,16,0,16,8,13,0,18,16,24,28,25,0,16,12,20,2,3,18,32,0,18]
[null,"Other family:",0,16,0,16,8,13,0,11,23,27,0,11,55,56,403,193,11,10,49,45,50,44,0,11,24,25,20,23,54,50,0,11,0,11,63,56,90,58,0,11,5,8,2,4,27,29,7,12,39,42,38,30,46,45,29,42,212,102,96,88,0,16,158,110,0,16,54,43,3,4,0,16,12,19]
[null,"Male householder, no spouse present:",0,16,0,16,0,11,0,11,11,19,0,11,8,13,25,43,5,7,0,16,0,18,0,11,9,13,0,16,0,18,0,11,0,11,0,16,9,14,0,11,0,11,2,4,0,16,0,11,0,11,10,15,0,16,0,16,67,60,0,18,0,16,0,21,0,16,25,29,0,11,0,16,0,18]
[null,"With related children under 18 years:",0,16,0,16,0,11,0,11,11,19,0,11,0,11,25,43,5,7,0,16,0,18,0,11,0,11,0,16,0,18,0,11,0,11,0,16,9,14,0,11,0,11,2,4,0,16,0,11,0,11,10,15,0,16,0,16,67,60,0,18,0,16,0,21,0,16,9,14,0,11,0,16,0,18]
[null,"Under 5 years only",0,16,0,16,0,11,0,11,0,16,0,11,0,11,0,24,0,11,0,16,0,18,0,11,0,11,0,16,0,18,0,11,0,11,0,16,0,21,0,11,0,11,0,11,0,16,0,11,0,11,0,11,0,16,0,16,37,41,0,18,0,16,0,21,0,16,9,14,0,11,0,16,0,18]
[null,"Under 5 years and 5 to 17 years",0,16,0,16,0,11,0,11,0,16,0,11,0,11,0,24,0,11,0,16,0,18,0,11,0,11,0,16,0,18,0,11,0,11,0,16,0,21,0,11,0,11,0,11,0,16,0,11,0,11,0,11,0,16,0,16,0,21,0,18,0,16,0,21,0,16,0,16,0,11,0,16,0,18]
[null,"5 to 17 years only",0,16,0,16,0,11,0,11,11,19,0,11,0,11,25,43,5,7,0,16,0,18,0,11,0,11,0,16,0,18,0,11,0,11,0,16,9,14,0,11,0,11,2,4,0,16,0,11,0,11,10,15,0,16,0,16,30,44,0,18,0,16,0,21,0,16,0,16,0,11,0,16,0,18]
[null,"No related children under 18 years",0,16,0,16,0,11,0,11,0,16,0,11,8,13,0,24,0,11,0,16,0,18,0,11,9,13,0,16,0,18,0,11,0,11,0,16,0,21,0,11,0,11,0,11,0,16,0,11,0,11,0,11,0,16,0,16,0,21,0,18,0,16,0,21,0,16,16,26,0,11,0,16,0,18]
[null,"Female householder, no spouse present:",0,16,0,16,8,13,0,11,12,20,0,11,47,51,378,190,6,8,49,45,50,44,0,11,15,22,20,23,54,50,0,11,0,11,63,56,81,56,0,11,5,8,0,11,27,29,7,12,39,42,28,26,46,45,29,42,145,83,96,88,0,16,158,110,0,16,29,34,3,4,0,16,12,19]
[null,"With related children under 18 years:",0,16,0,16,0,11,0,11,0,16,0,11,30,45,364,186,0,11,35,39,50,44,0,11,15,22,10,16,37,42,0,11,0,11,63,56,81,56,0,11,5,8,0,11,27,29,7,12,39,42,28,26,37,43,29,42,121,69,96,88,0,16,158,110,0,16,29,34,3,4,0,16,0,18]
[null,"Under 5 years only",0,16,0,16,0,11,0,11,0,16,0,11,0,11,23,27,0,11,0,16,0,18,0,11,0,11,0,16,37,42,0,11,0,11,0,16,0,21,0,11,0,11,0,11,11,17,0,11,0,11,9,17,0,16,0,16,10,16,0,18,0,16,80,74,0,16,0,16,0,11,0,16,0,18]
[null,"Under 5 years and 5 to 17 years",0,16,0,16,0,11,0,11,0,16,0,11,0,11,137,115,0,11,35,39,0,18,0,11,0,11,0,16,0,18,0,11,0,11,0,16,25,29,0,11,0,11,0,11,0,16,0,11,16,23,0,11,25,38,0,16,11,19,0,18,0,16,36,57,0,16,0,16,0,11,0,16,0,18]
[null,"5 to 17 years only",0,16,0,16,0,11,0,11,0,16,0,11,30,45,204,146,0,11,0,16,50,44,0,11,15,22,10,16,0,18,0,11,0,11,63,56,56,49,0,11,5,8,0,11,16,25,7,12,23,34,19,21,12,19,29,42,100,63,96,88,0,16,42,47,0,16,29,34,3,4,0,16,0,18]
[null,"No related children under 18 years",0,16,0,16,8,13,0,11,12,20,0,11,17,26,14,22,6,8,14,22,0,18,0,11,0,11,10,16,17,26,0,11,0,11,0,16,0,21,0,11,0,11,0,11,0,16,0,11,0,11,0,11,9,15,0,16,24,30,0,18,0,16,0,21,0,16,0,16,0,11,0,16,12,19]
[null,"Income in the past 12 months at or above poverty level:",1994,146,1655,103,1229,72,1099,87,1451,96,1311,88,1207,94,8476,341,693,53,1937,147,3765,226,1351,98,1082,74,2357,146,4183,218,656,70,662,48,1550,142,7283,222,257,61,512,68,205,31,2070,164,1334,84,1329,107,1132,104,1401,99,2126,161,4877,280,2705,201,1566,134,7582,290,1647,113,2410,156,220,36,2215,119,4216,163]
[null,"Married-couple family:",1781,164,1406,127,1129,86,976,90,1270,101,1080,115,1090,104,6541,357,623,51,1661,192,3103,240,1242,103,896,95,1813,153,3504,233,575,65,566,51,1214,153,5985,257,234,58,459,68,185,28,1693,149,1081,108,1061,116,1031,101,1282,117,1591,231,4012,227,2161,235,1337,138,6326,302,1421,119,1856,222,196,35,1994,162,3748,201]
[null,"With related children under 18 years:",667,127,524,63,630,69,283,65,530,92,450,56,394,67,2674,320,282,36,619,156,1224,139,440,67,394,47,610,100,1057,124,188,41,214,35,475,122,2561,162,57,36,215,56,36,17,574,111,470,73,307,74,369,51,553,95,549,149,1327,115,733,115,355,61,2264,247,620,92,539,122,65,25,777,119,1777,162]
[null,"Under 5 years only",133,80,79,48,133,71,56,37,74,39,58,57,67,38,436,151,27,16,165,83,229,116,95,46,47,35,135,75,115,61,23,16,61,21,36,44,424,112,9,15,25,22,3,4,155,74,82,41,35,27,53,37,144,67,135,80,271,96,112,69,15,23,523,167,108,87,67,44,12,9,75,62,319,127]
[null,"Under 5 years and 5 to 17 years",101,67,135,52,61,38,61,52,82,58,46,36,44,42,406,134,6,9,131,76,212,84,43,37,99,42,63,47,152,86,28,19,22,13,99,92,506,127,0,11,30,20,8,7,78,53,57,37,19,21,74,46,48,42,57,50,190,70,167,85,104,63,252,106,128,82,94,73,4,7,202,92,220,87]
[null,"5 to 17 years only",433,126,310,86,436,69,166,69,374,98,346,73,283,59,1832,301,249,35,323,137,783,128,302,68,248,52,412,90,790,136,137,36,131,34,340,121,1631,170,48,33,160,49,25,13,341,107,331,82,253,73,242,71,361,100,357,130,866,125,454,109,236,80,1489,202,384,112,378,110,49,22,500,133,1238,163]
[null,"No related children under 18 years",1114,157,882,134,499,88,693,109,740,115,630,119,696,107,3867,352,341,42,1042,201,1879,205,802,92,502,91,1203,129,2447,231,387,67,352,45,739,145,3424,236,177,49,244,54,149,28,1119,157,611,120,754,118,662,111,729,126,1042,195,2685,254,1428,236,982,136,4062,307,801,126,1317,205,131,29,1217,136,1971,199]
[null,"Other family:",213,101,249,80,100,50,123,72,181,63,231,95,117,66,1935,280,70,36,276,135,662,181,109,57,186,74,544,156,679,158,81,41,96,31,336,148,1298,231,23,19,53,21,20,11,377,121,253,90,268,106,101,52,119,67,535,172,865,186,544,172,229,93,1256,238,226,111,554,177,24,9,221,127,468,163]
[null,"Male householder, no spouse present:",105,67,152,66,36,31,76,55,93,47,108,66,25,26,490,149,40,35,96,94,182,104,27,28,97,60,334,142,267,99,23,23,55,24,193,138,435,139,20,18,8,9,7,7,232,106,145,75,69,58,53,39,48,44,157,102,261,109,167,104,115,85,377,139,125,93,180,108,8,6,117,107,206,101]
[null,"With related children under 18 years:",82,59,96,61,10,15,50,50,78,46,57,42,25,26,190,91,40,35,56,87,100,67,27,28,48,49,177,98,122,61,17,22,37,23,138,129,249,118,16,17,8,9,2,4,128,64,83,58,0,11,0,11,48,44,67,50,73,50,98,78,36,40,210,99,109,90,35,38,3,4,43,62,150,89]
[null,"Under 5 years only",11,19,38,58,0,11,8,12,22,24,0,11,5,10,36,36,0,11,0,16,7,12,14,21,0,11,0,16,0,18,0,11,13,19,70,110,42,46,0,11,0,11,0,11,27,29,27,38,0,11,0,11,0,16,29,35,13,20,75,69,0,16,110,89,48,74,0,16,0,11,0,16,32,55]
[null,"Under 5 years and 5 to 17 years",0,16,21,25,10,15,0,11,0,16,0,11,0,11,0,24,9,13,56,87,0,18,0,11,0,11,0,16,22,34,0,11,0,11,0,16,0,21,0,11,0,11,0,11,16,25,9,14,0,11,0,11,0,16,0,16,0,21,23,36,0,16,0,21,0,16,22,32,0,11,0,16,0,18]
[null,"5 to 17 years only",71,55,37,26,0,11,42,47,56,37,57,42,20,24,154,82,31,32,0,16,93,65,13,20,48,49,177,98,100,55,17,22,24,14,68,65,207,111,16,17,8,9,2,4,85,56,47,48,0,11,0,11,48,44,38,38,60,42,0,18,36,40,100,61,61,58,13,22,3,4,43,62,118,67]
[null,"No related children under 18 years",23,28,56,39,26,27,26,24,15,16,51,50,0,11,300,108,0,11,40,31,82,76,0,11,49,43,157,93,145,77,6,9,18,13,55,52,186,80,4,6,0,11,5,5,104,78,62,50,69,58,53,39,0,16,90,92,188,94,69,61,79,71,167,103,16,26,145,105,5,5,74,82,56,50]
[null,"Female householder, no spouse present:",108,71,97,52,64,40,47,46,88,43,123,88,92,57,1445,258,30,22,180,82,480,135,82,51,89,51,210,93,412,129,58,32,41,18,143,88,863,178,3,5,45,20,13,10,145,70,108,52,199,93,48,34,71,48,378,177,604,146,377,132,114,71,879,202,101,67,374,142,16,9,104,71,262,144]
[null,"With related children under 18 years:",50,47,51,38,42,32,15,22,24,25,89,80,68,51,847,191,4,6,44,42,279,93,50,42,43,37,153,84,192,99,25,20,21,13,66,63,468,158,0,11,18,14,7,6,45,50,35,28,68,48,19,22,45,44,218,127,357,121,189,113,81,60,515,167,40,44,140,84,7,6,78,65,157,109]
[null,"Under 5 years only",0,16,23,26,15,22,15,22,0,16,31,48,0,11,109,82,0,11,0,16,26,31,0,11,9,13,17,29,41,50,0,11,5,6,0,16,40,50,0,11,0,11,3,4,0,16,0,11,0,11,0,11,0,16,16,28,105,77,46,63,14,23,165,112,0,16,13,21,0,11,0,16,16,26]
[null,"Under 5 years and 5 to 17 years",0,16,0,16,0,11,0,11,12,18,16,23,0,11,68,54,0,11,0,16,15,24,45,41,0,11,0,16,0,18,0,11,0,11,0,16,20,34,0,11,3,5,2,3,0,16,0,11,0,11,0,11,0,16,0,16,0,21,17,29,0,16,56,67,0,16,0,16,0,11,0,16,64,90]
[null,"5 to 17 years only",50,47,28,26,27,24,0,11,12,18,42,55,68,51,670,194,4,6,44,42,238,84,5,10,34,36,136,80,151,87,25,20,16,12,66,63,408,143,0,11,15,13,2,5,45,50,35,28,68,48,19,22,45,44,202,127,252,90,126,90,67,54,294,115,40,44,127,84,7,6,78,65,77,50]
[null,"No related children under 18 years",58,52,46,33,22,25,32,41,64,33,34,40,24,24,598,172,26,21,136,71,201,100,32,29,46,34,57,38,220,99,33,23,20,12,77,59,395,128,3,5,27,13,6,6,100,51,73,48,131,79,29,25,26,25,160,116,247,82,188,80,33,38,364,112,61,51,234,109,9,5,26,28,105,77]
[]
[]
[]
[]
[]
[]
[]
[]
[]
[]
[]
[]
[null,"B17010. POVERTY STATUS IN THE PAST 12 MONTHS OF FAMILIES BY FAMILY TYPE BY PRESENCE OF RELATED CHILDREN UNDER 18 YEARS"]
[null,"Universe: FAMILIES"]
[null,"Data Set: 2010-2014 American Community Survey 5-Year Estimates"]
[]
[null,null,"Atkinson",null,"Auburn",null,"Brentwood",null,"Candia",null,"Chester",null,"Danville",null,"Deerfield",null,"Derry",null,"East Kingston",null,"Epping",null,"Exeter",null,"Fremont",null,"Greenland",null,"Hampstead",null,"Hampton",null,"Hampton Falls",null,"Kensington",null,"Kingston",null,"Londonderry",null,"New Castle",null,"Newfields",null,"Newington",null,"Newmarket",null,"Newton",null,"North Hampton",null,"Northwood",null,"Nottingham",null,"Plaistow",null,"Portsmouth",null,"Raymond",null,"Rye",null,"Salem",null,"Sandown",null,"Seabrook",null,"South Hampton",null,"Stratham",null,"Windham"]
[null,null,"Estimate","Margin Of Error","Estimate","Margin Of Error","Estimate","Margin Of Error","Estimate","Margin Of Error","Estimate","Margin Of Error","Estimate","Margin Of Error","Estimate","Margin Of Error","Estimate","Margin Of Error","Estimate","Margin Of Error","Estimate","Margin Of Error","Estimate","Margin Of Error","Estimate","Margin Of Error","Estimate","Margin Of Error","Estimate","Margin Of Error","Estimate","Margin Of Error","Estimate","Margin Of Error","Estimate","Margin Of Error","Estimate","Margin Of Error","Estimate","Margin Of Error","Estimate","Margin Of Error","Estimate","Margin Of Error","Estimate","Margin Of Error","Estimate","Margin Of Error","Estimate","Margin Of Error","Estimate","Margin Of Error","Estimate","Margin Of Error","Estimate","Margin Of Error","Estimate","Margin Of Error","Estimate","Margin Of Error","Estimate","Margin Of Error","Estimate","Margin Of Error","Estimate","Margin Of Error","Estimate","Margin Of Error","Estimate","Margin Of Error","Estimate","Margin Of Error","Estimate","Margin Of Error","Estimate","Margin Of Error"]
[null,"Total:",2033,101,1476,71,1167,84,1178,78,1300,77,1158,77,1279,61,8832,317,721,50,1971,136,3786,185,1345,66,1062,72,2354,125,4383,186,675,57,588,54,1813,128,6729,210,326,64,491,63,239,44,2040,190,1252,107,1361,74,1279,104,1363,87,2275,135,4770,250,2714,141,1525,164,7880,261,1692,136,2372,232,226,42,2193,96,3961,172]
[null,"Income in the past 12 months below poverty level:",30,37,33,31,48,47,18,21,35,30,30,38,35,28,551,205,16,17,71,56,199,82,15,20,38,34,121,98,285,151,9,14,4,5,115,92,108,50,11,14,0,11,2,3,132,75,118,99,19,24,66,68,5,9,42,66,189,93,161,116,24,28,147,69,76,67,182,153,6,9,0,15,72,53]
[null,"Married-couple family:",14,23,9,14,40,44,9,15,22,26,7,12,35,28,100,65,8,9,40,40,17,27,15,20,31,31,16,25,45,39,0,11,4,5,44,43,19,17,0,11,0,11,0,11,93,64,0,11,13,22,10,15,0,11,0,15,46,35,14,16,0,15,96,55,36,55,182,153,0,11,0,15,33,38]
[null,"With related children under 18 years:",0,15,0,15,40,44,0,11,22,26,0,11,11,17,74,52,0,11,24,30,0,17,6,12,20,27,16,25,40,38,0,11,4,5,13,20,5,10,0,11,0,11,0,11,39,33,0,11,0,11,0,11,0,11,0,15,0,20,8,12,0,15,40,38,36,55,182,153,0,11,0,15,33,38]
[null,"Under 5 years only",0,15,0,15,0,11,0,11,11,20,0,11,0,11,0,23,0,11,0,15,0,17,0,11,0,11,0,15,0,17,0,11,0,11,13,20,0,20,0,11,0,11,0,11,0,15,0,11,0,11,0,11,0,11,0,15,0,20,0,17,0,15,0,20,36,55,74,104,0,11,0,15,22,33]
[null,"Under 5 years and 5 to 17 years",0,15,0,15,10,16,0,11,0,11,0,11,11,17,37,40,0,11,24,30,0,17,6,12,0,11,0,15,0,17,0,11,4,5,0,15,0,20,0,11,0,11,0,11,0,15,0,11,0,11,0,11,0,11,0,15,0,20,0,17,0,15,0,20,0,15,50,81,0,11,0,15,0,17]
[null,"5 to 17 years only",0,15,0,15,30,44,0,11,11,16,0,11,0,11,37,36,0,11,0,15,0,17,0,11,20,27,16,25,40,38,0,11,0,11,0,15,5,10,0,11,0,11,0,11,39,33,0,11,0,11,0,11,0,11,0,15,0,20,8,12,0,15,40,38,0,15,58,77,0,11,0,15,11,18]
[null,"No related children under 18 years",14,23,9,14,0,11,9,15,0,11,7,12,24,22,26,31,8,9,16,26,17,27,9,15,11,15,0,15,5,7,0,11,0,11,31,37,14,15,0,11,0,11,0,11,54,56,0,11,13,22,10,15,0,11,0,15,46,35,6,10,0,15,56,39,0,15,0,15,0,11,0,15,0,17]
[null,"Other family:",16,28,24,28,8,12,9,14,13,14,23,37,0,11,451,191,8,11,31,37,182,76,0,11,7,11,105,94,240,149,9,14,0,11,71,81,89,49,11,14,0,11,2,3,39,47,118,99,6,9,56,67,5,9,42,66,143,88,147,116,24,28,51,36,40,38,0,15,6,9,0,15,39,36]
[null,"Male householder, no spouse present:",0,15,0,15,8,12,0,11,0,11,0,11,0,11,14,22,0,11,0,15,75,62,0,11,0,11,0,15,27,41,0,11,0,11,32,48,7,11,0,11,0,11,0,11,29,44,23,37,0,11,0,11,0,11,0,15,0,20,15,18,0,15,0,20,31,36,0,15,0,11,0,15,18,27]
[null,"With related children under 18 years:",0,15,0,15,8,12,0,11,0,11,0,11,0,11,14,22,0,11,0,15,56,53,0,11,0,11,0,15,27,41,0,11,0,11,0,15,0,20,0,11,0,11,0,11,29,44,23,37,0,11,0,11,0,11,0,15,0,20,7,13,0,15,0,20,31,36,0,15,0,11,0,15,0,17]
[null,"Under 5 years only",0,15,0,15,0,11,0,11,0,11,0,11,0,11,0,23,0,11,0,15,24,40,0,11,0,11,0,15,0,17,0,11,0,11,0,15,0,20,0,11,0,11,0,11,0,15,23,37,0,11,0,11,0,11,0,15,0,20,0,17,0,15,0,20,0,15,0,15,0,11,0,15,0,17]
[null,"Under 5 years and 5 to 17 years",0,15,0,15,0,11,0,11,0,11,0,11,0,11,0,23,0,11,0,15,0,17,0,11,0,11,0,15,0,17,0,11,0,11,0,15,0,20,0,11,0,11,0,11,0,15,0,11,0,11,0,11,0,11,0,15,0,20,0,17,0,15,0,20,18,27,0,15,0,11,0,15,0,17]
[null,"5 to 17 years only",0,15,0,15,8,12,0,11,0,11,0,11,0,11,14,22,0,11,0,15,32,37,0,11,0,11,0,15,27,41,0,11,0,11,0,15,0,20,0,11,0,11,0,11,29,44,0,11,0,11,0,11,0,11,0,15,0,20,7,13,0,15,0,20,13,21,0,15,0,11,0,15,0,17]
[null,"No related children under 18 years",0,15,0,15,0,11,0,11,0,11,0,11,0,11,0,23,0,11,0,15,19,31,0,11,0,11,0,15,0,17,0,11,0,11,32,48,7,11,0,11,0,11,0,11,0,15,0,11,0,11,0,11,0,11,0,15,0,20,8,13,0,15,0,20,0,15,0,15,0,11,0,15,18,27]
[null,"Female householder, no spouse present:",16,28,24,28,0,11,9,14,13,14,23,37,0,11,437,190,8,11,31,37,107,50,0,11,7,11,105,94,213,148,9,14,0,11,39,63,82,48,11,14,0,11,2,3,10,16,95,97,6,9,56,67,5,9,42,66,143,88,132,115,24,28,51,36,9,15,0,15,6,9,0,15,21,24]
[null,"With related children under 18 years:",16,28,15,22,0,11,9,14,13,14,23,37,0,11,410,186,0,11,31,37,107,50,0,11,0,11,105,94,111,83,9,14,0,11,39,63,67,42,8,13,0,11,2,3,10,16,95,97,0,11,56,67,5,9,42,66,133,88,132,115,11,20,51,36,9,15,0,15,6,9,0,15,21,24]
[null,"Under 5 years only",0,15,0,15,0,11,0,11,6,9,23,37,0,11,42,42,0,11,0,15,19,26,0,11,0,11,0,15,0,17,0,11,0,11,39,63,0,20,0,11,0,11,0,11,0,15,0,11,0,11,7,11,0,11,0,15,7,11,0,17,0,15,0,20,0,15,0,15,6,9,0,15,0,17]
[null,"Under 5 years and 5 to 17 years",0,15,15,22,0,11,0,11,0,11,0,11,0,11,55,61,0,11,12,19,22,34,0,11,0,11,38,60,0,17,0,11,0,11,0,15,28,31,0,11,0,11,0,11,0,15,55,79,0,11,5,10,0,11,42,66,69,81,91,92,11,20,0,20,0,15,0,15,0,11,0,15,10,16]
[null,"5 to 17 years only",16,28,0,15,0,11,9,14,7,10,0,11,0,11,313,172,0,11,19,31,66,34,0,11,0,11,67,74,111,83,9,14,0,11,0,15,39,27,8,13,0,11,2,3,10,16,40,61,0,11,44,66,5,9,0,15,57,36,41,64,0,15,51,36,9,15,0,15,0,11,0,15,11,18]
[null,"No related children under 18 years",0,15,9,15,0,11,0,11,0,11,0,11,0,11,27,28,8,11,0,15,0,17,0,11,7,11,0,15,102,113,0,11,0,11,0,15,15,23,3,5,0,11,0,11,0,15,0,11,6,9,0,11,0,11,0,15,10,15,0,17,13,21,0,20,0,15,0,15,0,11,0,15,0,17]
[null,"Income in the past 12 months at or above poverty level:",2003,108,1443,77,1119,108,1160,78,1265,78,1128,81,1244,70,8281,347,705,51,1900,153,3587,197,1330,67,1024,80,2233,139,4098,206,666,59,584,54,1698,132,6621,205,315,64,491,63,237,44,1908,192,1134,112,1342,74,1213,139,1358,86,2233,162,4581,237,2553,168,1501,165,7733,266,1616,154,2190,274,220,41,2193,96,3889,184]
[null,"Married-couple family:",1828,138,1354,80,1025,106,1051,87,1056,101,982,90,1104,87,6714,371,612,61,1600,197,2897,218,1179,91,936,83,1950,152,3574,245,586,64,506,54,1392,132,5593,261,287,62,405,64,204,44,1454,217,882,126,1142,94,1086,138,1192,101,1707,184,3820,208,2037,200,1376,159,6263,313,1391,171,1650,256,184,36,2025,115,3308,211]
[null,"With related children under 18 years:",692,127,616,68,540,68,394,79,521,101,545,76,449,76,2986,199,255,40,714,118,1244,154,457,65,439,72,739,110,1024,141,237,50,201,40,476,89,2678,206,44,31,234,61,67,30,594,129,423,77,407,65,409,100,442,81,588,131,1704,180,882,164,397,86,2651,204,602,125,482,150,81,30,795,93,1594,173]
[null,"Under 5 years only",96,68,70,43,48,36,49,31,22,24,46,41,87,61,357,128,33,23,250,114,159,80,89,43,93,56,95,72,156,68,51,38,41,23,103,64,341,96,17,20,48,34,17,17,105,66,76,48,106,56,137,72,121,67,58,50,550,151,166,78,35,42,381,128,155,97,133,82,17,19,129,82,139,85]
[null,"Under 5 years and 5 to 17 years",77,60,67,43,55,42,44,31,127,63,105,55,67,46,452,159,45,20,94,69,124,57,68,56,61,44,151,47,139,54,38,25,27,20,79,68,378,96,0,11,8,9,6,8,128,75,46,40,74,46,20,21,66,46,134,79,180,66,155,83,65,69,431,116,53,38,75,65,14,11,64,59,285,92]
[null,"5 to 17 years only",519,134,479,90,437,73,301,80,372,105,394,84,295,77,2177,206,177,35,370,101,961,148,300,73,285,72,493,109,729,132,148,37,133,39,294,80,1959,222,27,25,178,46,44,23,361,114,301,74,227,81,252,88,255,88,396,115,974,144,561,138,297,90,1839,215,394,134,274,113,50,21,602,103,1170,189]
[null,"No related children under 18 years",1136,144,738,86,485,93,657,94,535,95,437,100,655,92,3728,355,357,54,886,174,1653,215,722,98,497,75,1211,147,2550,235,349,51,305,44,916,132,2915,276,243,58,171,38,137,36,860,163,459,110,735,104,677,127,750,102,1119,190,2116,212,1155,170,979,174,3612,357,789,140,1168,213,103,28,1230,137,1714,222]
[null,"Other family:",175,86,89,56,94,48,109,61,209,91,146,74,140,71,1567,252,93,50,300,150,690,203,151,75,88,46,283,121,524,144,80,43,78,22,306,115,1028,188,28,23,86,42,33,17,454,150,252,88,200,79,127,57,166,68,526,186,761,149,516,137,125,83,1470,270,225,118,540,217,36,22,168,82,581,194]
[null,"Male householder, no spouse present:",33,40,0,15,38,34,65,37,57,53,92,66,34,28,535,165,33,27,157,129,124,92,90,64,8,12,104,70,161,72,26,20,43,17,134,84,391,129,13,16,12,12,15,14,185,97,90,56,11,16,57,40,58,58,132,91,219,94,111,74,12,20,398,173,136,105,188,133,6,7,52,55,305,164]
[null,"With related children under 18 years:",29,40,0,15,0,11,42,36,37,47,45,40,27,26,368,153,26,26,64,99,113,90,80,62,0,11,75,67,28,25,26,20,24,12,112,79,243,104,11,15,6,10,4,5,69,64,62,46,0,11,24,25,33,51,92,81,99,71,55,46,0,15,128,77,109,101,64,73,4,6,21,24,120,82]
[null,"Under 5 years only",0,15,0,15,0,11,10,16,0,11,8,11,0,11,0,23,17,24,0,15,0,17,23,35,0,11,0,15,5,9,11,13,0,11,22,28,10,15,0,11,0,11,2,4,0,15,0,11,0,11,0,11,0,11,56,73,20,31,22,27,0,15,5,9,53,78,0,15,0,11,0,15,12,20]
[null,"Under 5 years and 5 to 17 years",0,15,0,15,0,11,8,13,37,47,6,9,9,15,39,41,0,11,0,15,0,17,16,25,0,11,0,15,0,17,0,11,0,11,33,54,37,49,0,11,0,11,0,11,0,15,14,21,0,11,14,19,0,11,0,15,0,20,0,17,0,15,14,22,0,15,0,15,0,11,0,15,0,17]
[null,"5 to 17 years only",29,40,0,15,0,11,24,31,0,11,31,37,18,22,329,157,9,9,64,99,113,90,41,46,0,11,75,67,23,23,15,15,24,12,57,55,196,93,11,15,6,10,2,3,69,64,48,44,0,11,10,16,33,51,36,38,79,63,33,38,0,15,109,73,56,62,64,73,4,6,21,24,108,81]
[null,"No related children under 18 years",4,12,0,15,38,34,23,15,20,30,47,49,7,11,167,79,7,10,93,83,11,17,10,16,8,12,29,27,133,68,0,11,19,11,22,34,148,89,2,4,6,7,11,13,116,68,28,31,11,16,33,37,25,30,40,37,120,72,56,58,12,20,270,155,27,44,124,116,2,4,31,50,185,157]
[null,"Female householder, no spouse present:",142,77,89,56,56,38,44,42,152,70,54,36,106,66,1032,205,60,40,143,87,566,184,61,38,80,45,179,103,363,121,54,37,35,16,172,99,637,126,15,17,74,41,18,11,269,124,162,81,189,80,70,45,108,47,394,159,542,129,405,141,113,76,1072,210,89,56,352,171,30,21,116,63,276,102]
[null,"With related children under 18 years:",68,51,60,50,27,33,26,37,97,65,45,34,42,44,528,160,39,34,106,84,354,142,30,26,50,37,69,53,216,104,38,30,17,11,76,60,378,112,9,15,42,31,3,5,220,117,94,71,53,61,34,32,74,42,193,126,295,107,266,129,46,51,557,164,78,50,157,120,4,5,48,44,156,71]
[null,"Under 5 years only",0,15,0,15,0,11,0,11,8,13,0,11,0,11,88,66,0,11,0,15,66,71,0,11,14,21,15,21,27,31,0,11,0,11,0,15,52,56,0,11,0,11,0,11,20,17,0,11,53,61,0,11,0,11,0,15,75,58,59,62,25,40,48,76,0,15,30,40,0,11,0,15,17,27]
[null,"Under 5 years and 5 to 17 years",0,15,0,15,0,11,0,11,0,11,0,11,0,11,58,44,0,11,0,15,52,80,7,12,0,11,29,44,0,17,0,11,0,11,7,26,57,52,0,11,0,11,0,11,116,94,34,51,0,11,13,19,26,22,14,23,0,20,0,17,0,15,7,13,14,21,0,15,0,11,9,14,20,24]
[null,"5 to 17 years only",68,51,60,50,27,33,26,37,89,64,45,34,42,44,382,144,39,34,106,84,236,107,23,23,36,27,25,30,189,104,38,30,17,11,69,59,269,92,9,15,42,31,3,5,84,57,60,48,0,11,21,24,48,35,179,124,220,91,207,120,21,31,502,152,64,47,127,111,4,5,39,43,119,65]
[null,"No related children under 18 years",74,44,29,26,29,27,18,19,55,40,9,14,64,55,504,143,21,22,37,32,212,106,31,29,30,25,110,75,147,72,16,24,18,11,96,85,259,83,6,7,32,23,15,10,49,43,68,54,136,66,36,30,34,31,201,110,247,77,139,61,67,51,515,155,11,18,195,114,26,19,68,53,120,71]
[]
[]
[]
[]
[]
[]
[]
[]
[]
[]
[]
[]
[null,"B17010. POVERTY STATUS IN THE PAST 12 MONTHS OF FAMILIES BY FAMILY TYPE BY PRESENCE OF RELATED CHILDREN UNDER 18 YEARS"]
[null,"Universe: FAMILIES"]
[null,"Data Set: 2005-2009 American Community Survey 5-Year Estimates"]
[]
[null,null,"Atkinson",null,"Auburn",null,"Brentwood",null,"Candia",null,"Chester",null,"Danville",null,"Deerfield",null,"Derry",null,"East Kingston",null,"Epping",null,"Exeter",null,"Fremont",null,"Greenland",null,"Hampstead",null,"Hampton",null,"Hampton Falls",null,"Kensington",null,"Kingston",null,"Londonderry",null,"New Castle",null,"Newfields",null,"Newington",null,"Newmarket",null,"Newton",null,"North Hampton",null,"Northwood",null,"Nottingham",null,"Plaistow",null,"Portsmouth",null,"Raymond",null,"Rye",null,"Salem",null,"Sandown",null,"Seabrook",null,"South Hampton",null,"Stratham",null,"Windham"]
[null,null,"Estimate","Margin Of Error","Estimate","Margin Of Error","Estimate","Margin Of Error","Estimate","Margin Of Error","Estimate","Margin Of Error","Estimate","Margin Of Error","Estimate","Margin Of Error","Estimate","Margin Of Error","Estimate","Margin Of Error","Estimate","Margin Of Error","Estimate","Margin Of Error","Estimate","Margin Of Error","Estimate","Margin Of Error","Estimate","Margin Of Error","Estimate","Margin Of Error","Estimate","Margin Of Error","Estimate","Margin Of Error","Estimate","Margin Of Error","Estimate","Margin Of Error","Estimate","Margin Of Error","Estimate","Margin Of Error","Estimate","Margin Of Error","Estimate","Margin Of Error","Estimate","Margin Of Error","Estimate","Margin Of Error","Estimate","Margin Of Error","Estimate","Margin Of Error","Estimate","Margin Of Error","Estimate","Margin Of Error","Estimate","Margin Of Error","Estimate","Margin Of Error","Estimate","Margin Of Error","Estimate","Margin Of Error","Estimate","Margin Of Error","Estimate","Margin Of Error","Estimate","Margin Of Error","Estimate","Margin Of Error"]
[null,"Total:",1927,128,1433,83,899,84,1179,77,1276,67,1153,77,1065,81,8773,292,682,54,1728,132,3611,183,1203,71,929,78,2467,148,4174,212,644,60,620,58,1687,118,6713,198,219,50,487,64,199,38,2422,167,1341,74,1295,97,1119,75,1307,65,2082,148,4676,267,2783,167,1515,108,7981,255,1617,85,2359,186,217,39,2049,115,3565,164]
[null,"Income in the past 12 months below poverty level:",33,37,37,39,15,12,20,23,13,20,22,24,28,26,441,174,38,25,99,69,48,47,43,39,30,28,29,31,283,148,42,28,6,6,59,67,151,86,12,15,4,6,6,8,92,82,13,20,27,27,4,10,38,21,134,94,212,96,99,79,30,33,174,68,74,47,82,78,2,3,14,23,21,25]
[null,"Married-couple family:",33,37,27,35,10,11,9,15,13,20,11,18,16,17,123,68,19,17,59,57,0,114,30,33,30,28,29,31,69,46,29,24,6,6,24,39,94,75,12,15,4,6,0,114,11,17,13,20,19,30,0,114,11,16,51,56,69,59,26,22,12,19,64,50,46,39,14,22,0,114,0,114,11,19]
[null,"With related children under 18 years:",20,31,0,114,10,11,0,114,13,20,0,114,8,12,76,50,9,9,37,52,0,114,14,22,12,18,0,114,13,21,11,13,6,6,0,114,25,30,3,5,4,6,0,114,11,17,13,20,0,114,0,114,0,114,0,114,29,46,0,114,0,114,11,18,33,29,14,22,0,114,0,114,0,114]
[null,"Under 5 years only",0,114,0,114,0,114,0,114,0,114,0,114,0,114,0,114,2,5,0,114,0,114,0,114,12,18,0,114,0,114,0,114,0,114,0,114,0,114,0,114,0,114,0,114,0,114,0,114,0,114,0,114,0,114,0,114,0,114,0,114,0,114,0,114,0,114,0,114,0,114,0,114,0,114]
[null,"Under 5 years and 5 to 17 years",0,114,0,114,0,114,0,114,13,20,0,114,8,12,16,24,4,6,37,52,0,114,0,114,0,114,0,114,13,21,8,12,0,114,0,114,0,114,0,114,4,6,0,114,11,17,0,114,0,114,0,114,0,114,0,114,0,114,0,114,0,114,0,114,12,18,0,114,0,114,0,114,0,114]
[null,"5 to 17 years only",20,31,0,114,10,11,0,114,0,114,0,114,0,114,60,48,3,6,0,114,0,114,14,22,0,114,0,114,0,114,3,4,6,6,0,114,25,30,3,5,0,114,0,114,0,114,13,20,0,114,0,114,0,114,0,114,29,46,0,114,0,114,11,18,21,24,14,22,0,114,0,114,0,114]
[null,"No related children under 18 years",13,20,27,35,0,114,9,15,0,114,11,18,8,12,47,46,10,14,22,28,0,114,16,24,18,21,29,31,56,41,18,19,0,114,24,39,69,67,9,13,0,114,0,114,0,114,0,114,19,30,0,114,11,16,51,56,40,35,26,22,12,19,53,46,13,25,0,114,0,114,0,114,11,19]
[null,"Other family:",0,114,10,16,5,8,11,17,0,114,11,16,12,19,318,160,19,17,40,36,48,47,13,19,0,114,0,114,214,140,13,16,0,114,35,55,57,42,0,114,0,114,6,8,81,79,0,114,8,13,4,10,27,27,83,71,143,85,73,76,18,28,110,57,28,25,68,76,2,3,14,23,10,16]
[null,"Male householder, no spouse present:",0,114,0,114,0,114,0,114,0,114,11,16,12,19,60,87,0,114,0,114,0,114,0,114,0,114,0,114,15,25,0,114,0,114,0,114,9,15,0,114,0,114,0,114,12,25,0,114,0,114,0,114,0,114,0,114,16,26,0,114,0,114,0,114,20,22,42,66,0,114,0,114,0,114]
[null,"With related children under 18 years:",0,114,0,114,0,114,0,114,0,114,11,16,12,19,60,87,0,114,0,114,0,114,0,114,0,114,0,114,15,25,0,114,0,114,0,114,9,15,0,114,0,114,0,114,12,25,0,114,0,114,0,114,0,114,0,114,0,114,0,114,0,114,0,114,20,22,42,66,0,114,0,114,0,114]
[null,"Under 5 years only",0,114,0,114,0,114,0,114,0,114,0,114,12,19,0,114,0,114,0,114,0,114,0,114,0,114,0,114,0,114,0,114,0,114,0,114,0,114,0,114,0,114,0,114,0,114,0,114,0,114,0,114,0,114,0,114,0,114,0,114,0,114,0,114,12,19,0,114,0,114,0,114,0,114]
[null,"Under 5 years and 5 to 17 years",0,114,0,114,0,114,0,114,0,114,11,16,0,114,60,87,0,114,0,114,0,114,0,114,0,114,0,114,0,114,0,114,0,114,0,114,0,114,0,114,0,114,0,114,0,114,0,114,0,114,0,114,0,114,0,114,0,114,0,114,0,114,0,114,0,114,0,114,0,114,0,114,0,114]
[null,"5 to 17 years only",0,114,0,114,0,114,0,114,0,114,0,114,0,114,0,114,0,114,0,114,0,114,0,114,0,114,0,114,15,25,0,114,0,114,0,114,9,15,0,114,0,114,0,114,12,25,0,114,0,114,0,114,0,114,0,114,0,114,0,114,0,114,0,114,8,12,42,66,0,114,0,114,0,114]
[null,"No related children under 18 years",0,114,0,114,0,114,0,114,0,114,0,114,0,114,0,114,0,114,0,114,0,114,0,114,0,114,0,114,0,114,0,114,0,114,0,114,0,114,0,114,0,114,0,114,0,114,0,114,0,114,0,114,0,114,0,114,16,26,0,114,0,114,0,114,0,114,0,114,0,114,0,114,0,114]
[null,"Female householder, no spouse present:",0,114,10,16,5,8,11,17,0,114,0,114,0,114,258,132,19,17,40,36,48,47,13,19,0,114,0,114,199,139,13,16,0,114,35,55,48,43,0,114,0,114,6,8,69,76,0,114,8,13,4,10,27,27,83,71,127,79,73,76,18,28,110,57,8,12,26,39,2,3,14,23,10,16]
[null,"With related children under 18 years:",0,114,10,16,5,8,11,17,0,114,0,114,0,114,258,132,12,14,40,36,48,47,13,19,0,114,0,114,181,138,13,16,0,114,35,55,32,35,0,114,0,114,3,6,69,76,0,114,8,13,4,10,27,27,69,66,114,77,57,71,18,28,88,51,8,12,26,39,2,3,14,23,10,16]
[null,"Under 5 years only",0,114,0,114,0,114,0,114,0,114,0,114,0,114,66,62,0,114,0,114,0,114,0,114,0,114,0,114,8,13,0,114,0,114,0,114,0,114,0,114,0,114,0,114,0,114,0,114,0,114,0,114,0,114,0,114,13,15,0,114,0,114,24,28,0,114,0,114,0,114,14,23,0,114]
[null,"Under 5 years and 5 to 17 years",0,114,0,114,5,8,0,114,0,114,0,114,0,114,14,23,0,114,0,114,29,48,0,114,0,114,0,114,65,83,0,114,0,114,0,114,0,114,0,114,0,114,0,114,35,53,0,114,0,114,4,10,0,114,0,114,39,44,0,114,0,114,0,114,0,114,0,114,2,3,0,114,0,114]
[null,"5 to 17 years only",0,114,10,16,0,114,11,17,0,114,0,114,0,114,178,109,12,14,40,36,19,24,13,19,0,114,0,114,108,89,13,16,0,114,35,55,32,35,0,114,0,114,3,6,34,55,0,114,8,13,0,114,27,27,69,66,62,63,57,71,18,28,64,44,8,12,26,39,0,114,0,114,10,16]
[null,"No related children under 18 years",0,114,0,114,0,114,0,114,0,114,0,114,0,114,0,114,7,11,0,114,0,114,0,114,0,114,0,114,18,28,0,114,0,114,0,114,16,26,0,114,0,114,3,5,0,114,0,114,0,114,0,114,0,114,14,23,13,20,16,24,0,114,22,25,0,114,0,114,0,114,0,114,0,114]
[null,"Income in the past 12 months at or above poverty level:",1894,132,1396,78,884,81,1159,81,1263,69,1131,82,1037,82,8332,321,644,53,1629,141,3563,192,1160,71,899,78,2438,151,3891,213,602,57,614,60,1628,131,6562,202,207,51,483,64,193,38,2330,167,1328,81,1268,93,1115,73,1269,72,1948,168,4464,249,2684,193,1485,110,7807,254,1543,99,2277,198,215,38,2035,115,3544,164]
[null,"Married-couple family:",1738,150,1261,100,812,80,1077,91,1185,75,915,104,832,116,6932,319,563,57,1294,143,3090,206,1003,84,823,81,2123,173,3133,243,541,58,528,63,1364,165,5698,250,204,51,452,63,169,38,1974,180,1046,120,1057,94,921,89,1146,103,1743,173,3481,294,2241,179,1199,135,6367,291,1327,108,1687,231,199,39,1744,149,3180,173]
[null,"With related children under 18 years:",750,81,664,84,466,49,487,60,613,92,535,61,402,63,3666,284,278,38,614,114,1485,125,450,76,385,62,954,97,1083,160,254,37,260,48,562,94,3243,222,52,24,300,63,27,17,819,116,487,73,473,84,423,57,510,82,815,120,1465,163,909,117,497,80,3113,254,717,103,523,128,82,31,955,97,1655,108]
[null,"Under 5 years only",75,58,159,61,37,30,68,41,101,55,14,17,79,43,758,151,70,31,134,74,307,115,105,51,63,54,104,59,209,103,55,27,18,10,139,83,381,141,4,8,32,24,0,114,224,82,114,54,99,52,69,49,161,76,61,52,429,160,172,73,156,88,515,196,101,64,104,68,3,5,125,74,349,93]
[null,"Under 5 years and 5 to 17 years",144,64,78,45,79,43,88,59,110,66,97,54,64,44,590,144,39,14,54,40,208,95,73,48,46,39,74,55,221,97,65,30,78,44,79,51,567,167,0,114,50,24,8,9,136,93,102,47,87,40,30,27,122,56,165,97,338,114,206,113,25,27,536,143,181,85,118,87,13,10,183,65,306,93]
[null,"5 to 17 years only",531,109,427,86,350,59,331,82,402,110,424,80,259,64,2318,257,169,43,426,107,970,138,272,71,276,66,776,120,653,125,134,30,164,31,344,89,2295,278,48,26,218,48,19,14,459,119,271,65,287,79,324,66,227,82,589,115,698,123,531,135,316,71,2062,266,435,93,301,110,66,32,647,99,1000,117]
[null,"No related children under 18 years",988,155,597,81,346,64,590,95,572,102,380,93,430,97,3266,271,285,46,680,133,1605,180,553,104,438,88,1169,166,2050,233,287,40,268,39,802,143,2455,221,152,47,152,37,142,38,1155,167,559,104,584,77,498,89,636,115,928,184,2016,259,1332,164,702,141,3254,265,610,103,1164,214,117,29,789,141,1525,156]
[null,"Other family:",156,71,135,74,72,25,82,41,78,46,216,72,205,104,1400,248,81,32,335,130,473,129,157,66,76,39,315,151,758,186,61,28,86,27,264,113,864,212,3,5,31,14,24,12,356,106,282,100,211,76,194,71,123,84,205,82,983,213,443,135,286,108,1440,256,216,87,590,174,16,8,291,132,364,117]
[null,"Male householder, no spouse present:",29,26,0,114,26,17,25,23,56,40,10,16,37,32,307,122,28,18,68,54,117,76,25,28,32,29,75,68,234,103,30,20,23,14,89,56,306,133,0,114,7,8,18,10,143,71,111,57,58,53,59,54,33,25,86,57,277,99,153,71,127,82,393,135,58,38,348,148,7,5,101,65,132,82]
[null,"With related children under 18 years:",0,114,0,114,19,14,0,114,24,27,0,114,23,25,177,84,16,13,23,27,82,67,25,28,12,18,14,22,125,79,21,18,8,8,40,44,151,95,0,114,7,8,11,9,102,62,45,42,38,47,48,51,33,25,41,40,145,78,104,66,28,32,198,104,50,35,154,98,1,2,44,37,92,67]
[null,"Under 5 years only",0,114,0,114,0,114,0,114,0,114,0,114,12,19,35,41,0,114,0,114,38,43,0,114,0,114,0,114,11,18,0,114,0,114,0,114,8,15,0,114,0,114,0,114,65,45,0,114,28,43,0,114,20,21,31,35,48,47,11,18,0,114,48,50,0,114,12,23,0,114,10,17,43,50]
[null,"Under 5 years and 5 to 17 years",0,114,0,114,0,114,0,114,0,114,0,114,0,114,22,36,5,7,0,114,0,114,14,22,0,114,14,22,0,114,0,114,0,114,0,114,0,114,0,114,0,114,0,114,26,41,0,114,0,114,0,114,13,19,0,114,0,114,16,26,0,114,10,17,0,114,0,114,0,114,16,26,7,12]
[null,"5 to 17 years only",0,114,0,114,19,14,0,114,24,27,0,114,11,17,120,70,11,10,23,27,44,36,11,17,12,18,0,114,114,77,21,18,8,8,40,44,143,95,0,114,7,8,11,9,11,18,45,42,10,16,48,51,0,114,10,16,97,63,77,62,28,32,140,87,50,35,142,90,1,2,18,22,42,41]
[null,"No related children under 18 years",29,26,0,114,7,9,25,23,32,28,10,16,14,20,130,84,12,14,45,49,35,30,0,114,20,22,61,64,109,55,9,10,15,12,49,43,155,99,0,114,0,114,7,7,41,35,66,41,20,23,11,17,0,114,45,38,132,65,49,39,99,75,195,94,8,13,194,115,6,6,57,52,40,48]
[null,"Female householder, no spouse present:",127,69,135,74,46,21,57,36,22,25,206,74,168,91,1093,211,53,24,267,123,356,107,132,60,44,29,240,114,524,152,31,19,63,24,175,107,558,160,3,5,24,11,6,8,213,76,171,85,153,71,135,56,90,76,119,64,706,186,290,114,159,76,1047,219,158,82,242,137,9,7,190,114,232,82]
[null,"With related children under 18 years:",34,38,106,75,20,18,0,114,12,20,153,66,100,62,799,205,30,18,46,32,210,97,67,39,28,26,174,106,250,103,31,19,37,20,155,98,338,123,0,114,11,9,3,5,170,64,99,81,120,65,86,42,24,26,75,47,356,134,190,98,117,67,729,190,134,76,190,133,6,6,128,79,137,66]
[null,"Under 5 years only",0,114,0,114,0,114,0,114,0,114,0,114,35,52,14,19,0,114,0,114,0,114,22,26,0,114,13,21,76,84,0,114,2,4,49,47,0,114,0,114,3,6,0,114,45,43,0,114,7,11,8,13,0,114,0,114,6,11,0,114,9,15,145,117,0,114,15,25,0,114,11,16,14,23]
[null,"Under 5 years and 5 to 17 years",0,114,45,47,0,114,0,114,0,114,0,114,0,114,171,94,0,114,0,114,0,114,0,114,0,114,0,114,0,114,12,15,0,114,13,21,42,55,0,114,0,114,0,114,0,114,0,114,0,114,0,114,0,114,0,114,14,22,22,34,17,27,11,18,0,114,0,114,0,114,0,114,0,114]
[null,"5 to 17 years only",34,38,61,56,20,18,0,114,12,20,153,66,65,46,614,187,30,18,46,32,210,97,45,36,28,26,161,103,174,70,19,13,35,19,93,95,296,112,0,114,8,8,3,5,125,56,99,81,113,65,78,43,24,26,75,47,336,127,168,95,91,62,573,182,134,76,175,128,6,6,117,77,123,60]
[null,"No related children under 18 years",93,57,29,29,26,17,57,36,10,14,53,54,68,61,294,114,23,14,221,119,146,65,65,49,16,17,66,47,274,120,0,114,26,13,20,31,220,117,3,5,13,8,3,5,43,36,72,45,33,25,49,35,66,70,44,36,350,117,100,63,42,39,318,122,24,25,52,51,3,4,62,77,95,50]

{"sheet":"ACS_Table_B17017","index":55,"n_rows":213,"n_cols":76,"rows_kept":213,"cut":false,"hidden":true,"merged":[]}
[null,"B17017. POVERTY STATUS IN THE PAST 12 MONTHS BY HOUSEHOLD TYPE BY AGE OF HOUSEHOLDER"]
[null,"Universe: HOUSEHOLDS"]
[null,"Data Set: 2015-2019 American Community Survey 5-Year Estimates"]
[]
[null,null,"Atkinson",null,"Auburn",null,"Brentwood",null,"Candia",null,"Chester",null,"Danville",null,"Deerfield",null,"Derry",null,"East Kingston",null,"Epping",null,"Exeter",null,"Fremont",null,"Greenland",null,"Hampstead",null,"Hampton",null,"Hampton Falls",null,"Kensington",null,"Kingston",null,"Londonderry",null,"New Castle",null,"Newfields",null,"Newington",null,"Newmarket",null,"Newton",null,"North Hampton",null,"Northwood",null,"Nottingham",null,"Plaistow",null,"Portsmouth",null,"Raymond",null,"Rye",null,"Salem",null,"Sandown",null,"Seabrook",null,"South Hampton",null,"Stratham",null,"Windham"]
[null,null,"Estimate","Margin Of Error","Estimate","Margin Of Error","Estimate","Margin Of Error","Estimate","Margin Of Error","Estimate","Margin Of Error","Estimate","Margin Of Error","Estimate","Margin Of Error","Estimate","Margin Of Error","Estimate","Margin Of Error","Estimate","Margin Of Error","Estimate","Margin Of Error","Estimate","Margin Of Error","Estimate","Margin Of Error","Estimate","Margin Of Error","Estimate","Margin Of Error","Estimate","Margin Of Error","Estimate","Margin Of Error","Estimate","Margin Of Error","Estimate","Margin Of Error","Estimate","Margin Of Error","Estimate","Margin Of Error","Estimate","Margin Of Error","Estimate","Margin Of Error","Estimate","Margin Of Error","Estimate","Margin Of Error","Estimate","Margin Of Error","Estimate","Margin Of Error","Estimate","Margin Of Error","Estimate","Margin Of Error","Estimate","Margin Of Error","Estimate","Margin Of Error","Estimate","Margin Of Error","Estimate","Margin Of Error","Estimate","Margin Of Error","Estimate","Margin Of Error","Estimate","Margin Of Error","Estimate","Margin Of Error"]
[null,"Total:",2745,185,1973,91,1533,82,1537,80,1687,101,1685,93,1653,86,12741,353,888,65,2680,155,6542,249,1764,77,1516,85,3573,147,7088,199,909,54,845,53,2411,198,9338,206,436,85,600,67,307,39,4035,177,1853,107,1820,118,1611,107,1900,108,3119,164,10063,259,4112,193,2364,153,11536,318,2229,137,3824,194,302,41,2817,137,5009,196]
[null,"Income in the past 12 months below poverty level:",44,43,13,18,48,36,114,70,23,27,19,20,108,57,1069,284,41,21,112,73,476,166,27,25,69,43,151,79,338,118,37,39,26,13,255,150,209,80,8,7,19,15,14,10,253,124,86,57,98,50,100,53,74,55,187,126,784,196,324,136,133,116,729,240,70,61,225,96,15,11,78,67,72,60]
[null,"Family households:",0,16,0,16,16,18,19,23,23,27,19,20,83,58,533,211,23,16,97,64,69,54,0,11,43,33,58,42,144,67,20,30,6,6,73,54,135,69,0,11,12,11,4,6,79,58,24,22,47,41,38,30,46,45,29,42,229,102,111,89,29,32,290,154,27,42,66,49,5,5,18,32,12,19]
[null,"Married-couple family:",0,16,0,16,8,12,19,23,0,16,19,20,28,28,130,87,12,13,48,45,19,31,0,11,19,20,38,41,90,55,20,30,6,6,10,15,45,37,0,11,7,8,2,4,52,51,17,19,8,13,0,11,0,16,0,16,17,20,15,23,29,32,132,107,27,42,12,20,2,3,18,32,0,18]
[null,"Householder under 25 years",0,16,0,16,0,11,0,11,0,16,0,11,0,11,0,24,0,11,0,16,0,18,0,11,0,11,0,16,0,18,0,11,0,11,0,16,0,21,0,11,0,11,0,11,0,16,0,11,0,11,0,11,0,16,0,16,0,21,0,18,0,16,0,21,0,16,0,16,0,11,0,16,0,18]
[null,"Householder 25 to 44 years",0,16,0,16,0,11,0,11,0,16,0,11,0,11,76,69,0,11,0,16,0,18,0,11,0,11,23,34,13,14,0,11,0,11,0,16,5,7,0,11,0,11,0,11,16,26,0,11,0,11,0,11,0,16,0,16,9,14,15,23,0,16,90,96,27,42,0,16,0,11,0,16,0,18]
[null,"Householder 45 to 64 years",0,16,0,16,8,12,9,14,0,16,19,20,28,28,47,41,0,11,0,16,19,31,0,11,19,20,0,16,13,20,20,30,6,6,0,16,6,11,0,11,4,6,2,4,19,23,0,11,8,13,0,11,0,16,0,16,8,13,0,18,13,22,42,42,0,16,12,20,0,11,18,32,0,18]
[null,"Householder 65 years and over",0,16,0,16,0,11,10,17,0,16,0,11,0,11,7,11,12,13,48,45,0,18,0,11,0,11,15,23,64,49,0,11,0,11,10,15,34,32,0,11,3,4,0,11,17,26,17,19,0,11,0,11,0,16,0,16,0,21,0,18,16,24,0,21,0,16,0,16,2,3,0,16,0,18]
[null,"Other family:",0,16,0,16,8,13,0,11,23,27,0,11,55,56,403,193,11,10,49,45,50,44,0,11,24,25,20,23,54,50,0,11,0,11,63,56,90,58,0,11,5,8,2,4,27,29,7,12,39,42,38,30,46,45,29,42,212,102,96,88,0,16,158,110,0,16,54,43,3,4,0,16,12,19]
[null,"Male householder, no spouse present:",0,16,0,16,0,11,0,11,11,19,0,11,8,13,25,43,5,7,0,16,0,18,0,11,9,13,0,16,0,18,0,11,0,11,0,16,9,14,0,11,0,11,2,4,0,16,0,11,0,11,10,15,0,16,0,16,67,60,0,18,0,16,0,21,0,16,25,29,0,11,0,16,0,18]
[null,"Householder under 25 years",0,16,0,16,0,11,0,11,0,16,0,11,0,11,0,24,0,11,0,16,0,18,0,11,0,11,0,16,0,18,0,11,0,11,0,16,0,21,0,11,0,11,0,11,0,16,0,11,0,11,0,11,0,16,0,16,0,21,0,18,0,16,0,21,0,16,9,14,0,11,0,16,0,18]
[null,"Householder 25 to 44 years",0,16,0,16,0,11,0,11,0,16,0,11,8,13,0,24,0,11,0,16,0,18,0,11,0,11,0,16,0,18,0,11,0,11,0,16,0,21,0,11,0,11,0,11,0,16,0,11,0,11,0,11,0,16,0,16,37,41,0,18,0,16,0,21,0,16,0,16,0,11,0,16,0,18]
[null,"Householder 45 to 64 years",0,16,0,16,0,11,0,11,11,19,0,11,0,11,25,43,0,11,0,16,0,18,0,11,9,13,0,16,0,18,0,11,0,11,0,16,9,14,0,11,0,11,2,4,0,16,0,11,0,11,0,11,0,16,0,16,30,44,0,18,0,16,0,21,0,16,16,26,0,11,0,16,0,18]
[null,"Householder 65 years and over",0,16,0,16,0,11,0,11,0,16,0,11,0,11,0,24,5,7,0,16,0,18,0,11,0,11,0,16,0,18,0,11,0,11,0,16,0,21,0,11,0,11,0,11,0,16,0,11,0,11,10,15,0,16,0,16,0,21,0,18,0,16,0,21,0,16,0,16,0,11,0,16,0,18]
[null,"Female householder, no spouse present:",0,16,0,16,8,13,0,11,12,20,0,11,47,51,378,190,6,8,49,45,50,44,0,11,15,22,20,23,54,50,0,11,0,11,63,56,81,56,0,11,5,8,0,11,27,29,7,12,39,42,28,26,46,45,29,42,145,83,96,88,0,16,158,110,0,16,29,34,3,4,0,16,12,19]
[null,"Householder under 25 years",0,16,0,16,0,11,0,11,0,16,0,11,0,11,10,16,0,11,0,16,0,18,0,11,0,11,0,16,0,18,0,11,0,11,0,16,0,21,0,11,0,11,0,11,0,16,0,11,0,11,9,17,0,16,0,16,0,21,0,18,0,16,0,21,0,16,0,16,0,11,0,16,0,18]
[null,"Householder 25 to 44 years",0,16,0,16,0,11,0,11,0,16,0,11,0,11,255,161,0,11,35,39,35,37,0,11,15,22,0,16,37,42,0,11,0,11,27,42,50,49,0,11,5,8,0,11,11,17,7,12,39,42,8,11,46,45,29,42,98,64,96,88,0,16,116,99,0,16,29,34,3,4,0,16,0,18]
[null,"Householder 45 to 64 years",0,16,0,16,0,11,0,11,12,20,0,11,30,45,113,101,6,8,14,22,0,18,0,11,0,11,10,16,0,18,0,11,0,11,20,32,24,27,0,11,0,11,0,11,16,25,0,11,0,11,11,17,0,16,0,16,23,24,0,18,0,16,42,47,0,16,0,16,0,11,0,16,12,19]
[null,"Householder 65 years and over",0,16,0,16,8,13,0,11,0,16,0,11,17,26,0,24,0,11,0,16,15,24,0,11,0,11,10,16,17,26,0,11,0,11,16,24,7,11,0,11,0,11,0,11,0,16,0,11,0,11,0,11,0,16,0,16,24,30,0,18,0,16,0,21,0,16,0,16,0,11,0,16,0,18]
[null,"Nonfamily households:",44,43,13,18,32,32,95,72,0,16,0,11,25,24,536,186,18,15,15,25,407,158,27,25,26,29,93,57,194,92,17,27,20,12,182,144,74,45,8,7,7,10,10,9,174,109,62,52,51,34,62,49,28,31,158,117,555,158,213,105,104,112,439,176,43,42,159,88,10,9,60,51,60,59]
[null,"Male householder:",0,16,13,18,0,11,95,72,0,16,0,11,7,11,169,115,6,9,15,25,85,55,10,15,17,25,47,42,76,50,17,27,9,8,72,110,10,16,0,11,3,5,6,7,28,31,0,11,14,16,39,39,0,16,121,109,322,143,71,73,21,33,148,123,31,35,61,44,2,3,0,16,20,32]
[null,"Householder under 25 years",0,16,0,16,0,11,0,11,0,16,0,11,0,11,17,26,0,11,0,16,0,18,0,11,0,11,0,16,0,18,0,11,0,11,72,110,0,21,0,11,0,11,0,11,28,31,0,11,0,11,0,11,0,16,0,16,14,24,32,50,0,16,0,21,0,16,0,16,0,11,0,16,0,18]
[null,"Householder 25 to 44 years",0,16,0,16,0,11,0,11,0,16,0,11,0,11,72,99,0,11,0,16,30,34,0,11,0,11,18,30,0,18,0,11,9,8,0,16,0,21,0,11,0,11,0,11,0,16,0,11,0,11,22,34,0,16,18,28,135,107,0,18,0,16,9,14,13,23,9,13,0,11,0,16,0,18]
[null,"Householder 45 to 64 years",0,16,0,16,0,11,31,35,0,16,0,11,0,11,57,47,6,9,15,25,24,26,10,15,17,25,0,16,53,43,0,11,0,11,0,16,0,21,0,11,0,11,2,4,0,16,0,11,0,11,17,20,0,16,59,75,103,88,39,40,21,33,86,93,18,27,28,33,0,11,0,16,20,32]
[null,"Householder 65 years and over",0,16,13,18,0,11,64,65,0,16,0,11,7,11,23,25,0,11,0,16,31,35,0,11,0,11,29,32,23,27,17,27,0,11,0,16,10,16,0,11,3,5,4,5,0,16,0,11,14,16,0,11,0,16,44,73,70,55,0,18,0,16,53,84,0,16,24,26,2,3,0,16,0,18]
[null,"Female householder:",44,43,0,16,32,32,0,11,0,16,0,11,18,21,367,146,12,12,0,16,322,144,17,20,9,13,46,38,118,73,0,11,11,9,110,97,64,41,8,7,4,7,4,5,146,105,62,52,37,28,23,34,28,31,37,41,233,77,142,78,83,108,291,135,12,20,98,74,8,8,60,51,40,50]
[null,"Householder under 25 years",0,16,0,16,0,11,0,11,0,16,0,11,0,11,0,24,0,11,0,16,0,18,0,11,0,11,0,16,0,18,0,11,0,11,0,16,6,11,0,11,0,11,0,11,40,38,0,11,0,11,0,11,0,16,0,16,19,26,0,18,0,16,20,32,0,16,0,16,0,11,0,16,0,18]
[null,"Householder 25 to 44 years",0,16,0,16,0,11,0,11,0,16,0,11,0,11,76,83,0,11,0,16,62,70,0,11,0,11,0,16,0,18,0,11,0,11,31,49,0,21,0,11,4,7,0,11,38,36,23,37,0,11,0,11,14,21,0,16,58,49,12,20,67,105,17,27,0,16,0,16,2,4,0,16,0,18]
[null,"Householder 45 to 64 years",18,28,0,16,0,11,0,11,0,16,0,11,0,11,90,64,0,11,0,16,156,106,17,20,9,13,0,16,33,24,0,11,7,7,19,30,7,10,0,11,0,11,2,4,18,27,30,37,0,11,23,34,0,16,19,30,52,33,91,73,16,26,36,35,12,20,29,48,6,6,42,42,40,50]
[null,"Householder 65 years and over",26,32,0,16,32,32,0,11,0,16,0,11,18,21,201,109,12,12,0,16,104,63,0,11,0,11,46,38,85,75,0,11,4,6,60,82,51,37,8,7,0,11,2,3,50,83,9,14,37,28,0,11,14,22,18,28,104,48,39,35,0,16,218,106,0,16,69,53,0,11,18,30,0,18]
[null,"Income in the past 12 months at or above poverty level:",2701,174,1960,90,1485,81,1423,89,1664,108,1666,91,1545,101,11672,411,847,66,2568,181,6066,259,1737,80,1447,88,3422,168,6750,216,872,66,819,56,2156,228,9129,218,428,85,581,69,293,42,3782,210,1767,106,1722,122,1511,120,1826,114,2932,171,9279,299,3788,223,2231,184,10807,369,2159,129,3599,189,287,39,2739,130,4937,192]
[null,"Family households:",1994,146,1655,103,1229,72,1099,87,1451,96,1311,88,1207,94,8476,341,693,53,1937,147,3765,226,1351,98,1082,74,2357,146,4183,218,656,70,662,48,1550,142,7283,222,257,61,512,68,205,31,2070,164,1334,84,1329,107,1132,104,1401,99,2126,161,4877,280,2705,201,1566,134,7582,290,1647,113,2410,156,220,36,2215,119,4216,163]
[null,"Married-couple family:",1781,164,1406,127,1129,86,976,90,1270,101,1080,115,1090,104,6541,357,623,51,1661,192,3103,240,1242,103,896,95,1813,153,3504,233,575,65,566,51,1214,153,5985,257,234,58,459,68,185,28,1693,149,1081,108,1061,116,1031,101,1282,117,1591,231,4012,227,2161,235,1337,138,6326,302,1421,119,1856,222,196,35,1994,162,3748,201]
[null,"Householder under 25 years",0,16,0,16,0,11,0,11,12,19,0,11,8,14,21,23,0,11,0,16,0,18,0,11,0,11,0,16,0,18,6,9,0,11,0,16,4,8,0,11,0,11,0,11,0,16,13,19,0,11,0,11,0,16,0,16,28,32,0,18,0,16,17,26,0,16,0,16,0,11,0,16,0,18]
[null,"Householder 25 to 44 years",343,117,398,82,350,68,224,58,334,87,340,77,259,81,2051,262,110,29,679,134,817,158,336,66,292,64,446,84,767,126,132,47,106,23,230,95,1680,145,13,17,97,39,14,11,704,125,304,80,164,50,355,88,361,76,489,169,1344,168,555,108,151,66,1764,226,356,83,506,115,45,23,448,98,917,120]
[null,"Householder 45 to 64 years",1009,140,717,95,614,71,518,85,685,81,539,105,605,91,3334,281,334,45,681,122,1387,152,665,70,389,71,783,107,1626,179,296,38,320,46,627,131,3133,193,130,47,282,56,122,29,678,95,574,94,595,91,461,90,655,102,693,145,1647,176,1214,179,709,139,3206,224,836,123,724,199,89,22,1040,109,2049,160]
[null,"Householder 65 years and over",429,112,291,57,165,47,234,51,239,75,201,57,218,54,1135,146,179,32,301,126,899,136,241,65,215,60,584,82,1111,121,141,37,140,34,357,92,1168,150,91,30,80,31,49,16,311,83,190,58,302,65,215,75,266,86,409,132,993,141,392,102,477,120,1339,190,229,85,626,88,62,22,506,95,782,125]
[null,"Other family:",213,101,249,80,100,50,123,72,181,63,231,95,117,66,1935,280,70,36,276,135,662,181,109,57,186,74,544,156,679,158,81,41,96,31,336,148,1298,231,23,19,53,21,20,11,377,121,253,90,268,106,101,52,119,67,535,172,865,186,544,172,229,93,1256,238,226,111,554,177,24,9,221,127,468,163]
[null,"Male householder, no spouse present:",105,67,152,66,36,31,76,55,93,47,108,66,25,26,490,149,40,35,96,94,182,104,27,28,97,60,334,142,267,99,23,23,55,24,193,138,435,139,20,18,8,9,7,7,232,106,145,75,69,58,53,39,48,44,157,102,261,109,167,104,115,85,377,139,125,93,180,108,8,6,117,107,206,101]
[null,"Householder under 25 years",0,16,38,58,0,11,0,11,0,16,0,11,0,11,0,24,0,11,0,16,0,18,0,11,0,11,0,16,0,18,0,11,13,19,0,16,0,21,0,11,0,11,0,11,0,16,26,42,20,23,0,11,0,16,13,21,0,21,11,18,0,16,0,21,48,74,0,16,0,11,0,16,0,18]
[null,"Householder 25 to 44 years",83,57,49,40,10,15,22,24,10,17,24,29,0,11,213,106,14,16,56,87,83,80,14,21,10,15,124,119,49,43,0,11,11,12,70,110,195,110,0,11,4,6,0,11,98,67,9,14,22,35,0,11,10,15,76,91,47,56,104,82,43,58,175,123,36,41,0,16,3,4,54,78,63,67]
[null,"Householder 45 to 64 years",22,27,61,36,26,27,47,47,53,41,84,57,17,21,201,78,26,31,27,32,89,64,13,20,78,61,157,113,117,55,17,22,29,14,123,84,207,94,16,17,4,6,4,5,121,84,71,53,27,38,44,35,38,39,39,38,173,87,52,53,57,53,185,71,41,49,101,80,3,4,63,66,126,68]
[null,"Householder 65 years and over",0,16,4,6,0,11,7,13,30,21,0,11,8,14,76,38,0,11,13,21,10,16,0,11,9,14,53,70,101,57,6,9,2,5,0,16,33,29,4,6,0,11,3,5,13,14,39,46,0,11,9,15,0,16,29,34,41,43,0,18,15,24,17,27,0,16,79,78,2,4,0,16,17,26]
[null,"Female householder, no spouse present:",108,71,97,52,64,40,47,46,88,43,123,88,92,57,1445,258,30,22,180,82,480,135,82,51,89,51,210,93,412,129,58,32,41,18,143,88,863,178,3,5,45,20,13,10,145,70,108,52,199,93,48,34,71,48,378,177,604,146,377,132,114,71,879,202,101,67,374,142,16,9,104,71,262,144]
[null,"Householder under 25 years",0,16,10,17,0,11,0,11,0,16,31,48,0,11,0,24,0,11,0,16,0,18,0,11,0,11,17,29,5,8,0,11,0,11,0,16,0,21,0,11,0,11,0,11,0,16,0,11,0,11,0,11,0,16,0,16,20,32,46,63,0,16,0,21,0,16,0,16,0,11,0,16,0,18]
[null,"Householder 25 to 44 years",16,26,27,29,0,11,15,22,0,16,16,23,50,54,527,169,0,11,26,28,205,83,45,37,9,13,53,55,103,66,8,13,5,6,27,44,212,112,0,11,7,9,4,5,18,30,34,24,50,44,27,26,0,16,182,122,242,103,105,84,0,16,325,153,20,33,83,62,2,4,14,22,64,90]
[null,"Householder 45 to 64 years",80,64,40,30,52,35,32,41,58,39,69,64,29,27,735,208,26,21,104,66,206,68,23,25,59,43,122,67,221,108,39,23,33,16,91,69,532,152,3,5,25,15,0,11,91,53,64,46,68,40,0,11,28,26,181,119,215,82,157,79,67,54,344,114,81,60,208,104,7,6,90,68,129,90]
[null,"Householder 65 years and over",12,19,20,19,12,19,0,11,30,23,7,11,13,16,183,83,4,7,50,48,69,67,14,24,21,23,18,22,83,51,11,12,3,4,25,30,119,66,0,11,13,11,9,7,36,27,10,16,81,66,21,23,43,44,15,25,127,66,69,43,47,43,210,107,0,16,83,74,7,4,0,16,69,50]
[null,"Nonfamily households:",707,173,305,100,256,74,324,91,213,94,355,99,338,105,3196,379,154,52,631,175,2301,285,386,88,365,99,1065,199,2567,268,216,62,157,38,606,213,1846,236,171,59,69,33,88,30,1712,252,433,113,393,106,379,110,425,136,806,212,4402,366,1083,204,665,199,3225,381,512,124,1189,217,67,22,524,135,721,195]
[null,"Male householder:",282,128,145,67,86,41,192,76,32,29,219,81,146,71,1598,285,87,40,264,117,878,180,187,70,169,67,361,138,1163,210,128,56,78,28,435,191,673,145,52,33,46,28,31,18,890,164,237,77,204,66,117,49,140,80,349,146,2223,294,605,166,398,173,1572,294,253,112,483,140,34,16,217,80,329,133]
[null,"Householder under 25 years",0,16,0,16,0,11,10,16,0,16,12,20,0,11,72,50,0,11,0,16,72,67,0,11,0,11,25,29,28,34,25,29,13,21,0,16,11,17,0,11,0,11,7,9,199,123,11,17,0,11,0,11,0,16,0,16,196,104,11,19,0,16,0,21,39,65,0,16,0,11,0,16,0,18]
[null,"Householder 25 to 44 years",13,21,49,49,0,11,16,26,0,16,64,56,41,43,577,182,25,30,70,52,158,106,55,38,28,25,90,66,258,106,6,9,11,10,96,100,257,100,9,15,4,6,0,11,364,123,45,31,31,29,22,23,21,19,139,95,1166,196,244,101,98,109,492,158,92,63,52,38,10,14,15,26,51,79]
[null,"Householder 45 to 64 years",117,94,76,44,56,34,127,61,23,26,100,55,37,33,690,193,41,27,128,88,306,113,71,56,89,63,151,89,592,131,79,49,27,14,223,149,237,76,16,18,34,25,10,9,186,79,103,52,88,38,55,31,101,75,105,64,514,144,221,109,113,103,599,154,84,75,324,124,9,8,123,65,139,96]
[null,"Householder 65 years and over",152,98,20,23,30,28,39,31,9,14,43,31,68,58,259,104,21,15,66,66,342,93,61,56,52,32,95,51,285,80,18,13,27,13,116,67,168,88,27,26,8,8,14,11,141,60,78,54,85,43,40,31,18,20,105,83,347,102,129,73,187,108,481,176,38,40,107,58,15,10,79,57,139,84]
[null,"Female householder:",425,144,160,80,170,60,132,58,181,88,136,64,192,77,1598,284,67,31,367,141,1423,235,199,78,196,76,704,184,1404,188,88,36,79,29,171,90,1173,175,119,49,23,18,57,29,822,207,196,84,189,80,262,96,285,116,457,150,2179,275,478,129,267,99,1653,280,259,123,706,165,33,16,307,106,392,138]
[null,"Householder under 25 years",0,16,0,16,0,11,16,26,0,16,0,11,14,21,185,105,0,11,0,16,84,85,0,11,11,16,49,57,48,42,0,11,0,11,0,16,41,39,0,11,0,11,0,11,44,40,9,14,0,11,0,11,0,16,16,26,146,91,6,14,0,16,20,34,0,16,0,16,0,11,0,16,0,18]
[null,"Householder 25 to 44 years",96,95,11,17,0,11,10,15,53,60,0,11,67,60,258,124,0,11,22,22,165,78,30,44,9,15,121,79,61,41,26,20,4,5,0,16,105,64,10,15,7,9,3,4,254,105,16,17,24,20,38,30,44,52,66,53,760,161,103,56,0,16,218,108,32,36,43,37,3,4,59,43,54,50]
[null,"Householder 45 to 64 years",113,73,90,62,42,31,79,52,78,48,88,48,58,52,587,195,11,12,137,85,392,91,82,46,87,55,252,131,649,134,25,17,30,19,95,70,420,111,34,27,13,12,23,18,263,96,65,43,43,30,86,46,103,57,153,101,615,144,161,91,65,52,460,182,86,59,238,118,5,5,122,64,109,63]
[null,"Householder 65 years and over",216,106,59,39,128,61,27,20,50,53,48,43,53,30,568,160,56,27,208,121,782,185,87,58,89,42,282,105,646,127,37,25,45,22,76,54,607,149,75,43,3,5,31,17,261,122,106,61,122,65,138,70,138,72,222,112,658,153,208,81,202,85,955,204,141,106,425,116,25,15,126,76,229,110]
[]
[]
[]
[]
[]
[]
[]
[]
[]
[null,"B17017. POVERTY STATUS IN THE PAST 12 MONTHS BY HOUSEHOLD TYPE BY AGE OF HOUSEHOLDER"]
[null,"Universe: HOUSEHOLDS",null,null,null,null,null,null,null,null,null,null,null,"B19001. HOUSEHOLD INCOME IN THE PAST 12 MONTHS (IN 2007 INFLATION-ADJUSTED DOLLARS) - Universe:  HOUSEHOLDS"]
[null,"Data Set: 2010-2014 American Community Survey 5-Year Estimates",null,null,null,null,null,null,null,null,null,null,null,{"$f":"B77","v":"Data Set: 2010-2014 American Community Survey 5-Year Estimates"}]
[]
[null,null,"Atkinson",null,"Auburn",null,"Brentwood",null,"Candia",null,"Chester",null,"Danville",null,"Deerfield",null,"Derry",null,"East Kingston",null,"Epping",null,"Exeter",null,"Fremont",null,"Greenland",null,"Hampstead",null,"Hampton",null,"Hampton Falls",null,"Kensington",null,"Kingston",null,"Londonderry",null,"New Castle",null,"Newfields",null,"Newington",null,"Newmarket",null,"Newton",null,"North Hampton",null,"Northwood",null,"Nottingham",null,"Plaistow",null,"Portsmouth",null,"Raymond",null,"Rye",null,"Salem",null,"Sandown",null,"Seabrook",null,"South Hampton",null,"Stratham",null,"Windham"]
[null,null,"Estimate","Margin Of Error","Estimate","Margin Of Error","Estimate","Margin Of Error","Estimate","Margin Of Error","Estimate","Margin Of Error","Estimate","Margin Of Error","Estimate","Margin Of Error","Estimate","Margin Of Error","Estimate","Margin Of Error","Estimate","Margin Of Error","Estimate","Margin Of Error","Estimate","Margin Of Error","Estimate","Margin Of Error","Estimate","Margin Of Error","Estimate","Margin Of Error","Estimate","Margin Of Error","Estimate","Margin Of Error","Estimate","Margin Of Error","Estimate","Margin Of Error","Estimate","Margin Of Error","Estimate","Margin Of Error","Estimate","Margin Of Error","Estimate","Margin Of Error","Estimate","Margin Of Error","Estimate","Margin Of Error","Estimate","Margin Of Error","Estimate","Margin Of Error","Estimate","Margin Of Error","Estimate","Margin Of Error","Estimate","Margin Of Error","Estimate","Margin Of Error","Estimate","Margin Of Error","Estimate","Margin Of Error","Estimate","Margin Of Error","Estimate","Margin Of Error","Estimate","Margin Of Error","Estimate","Margin Of Error"]
[null,"Total:",2597,115,1830,82,1400,111,1466,88,1612,80,1537,101,1540,71,12934,350,882,46,2604,154,6248,214,1608,79,1397,55,3447,156,6618,217,902,46,746,53,2442,126,8750,224,451,65,574,71,314,47,3816,203,1747,101,1735,82,1676,118,1824,108,2949,182,10325,302,3864,150,2315,152,11093,285,2130,134,3837,258,306,49,2781,123,4987,197]
[null,"Income in the past 12 months below poverty level:",70,61,55,40,84,51,44,33,43,32,47,42,35,28,1098,282,35,25,108,68,392,108,52,39,38,34,258,125,471,156,25,21,18,13,127,95,270,90,11,14,0,11,14,11,586,170,199,107,46,37,74,69,26,26,54,69,805,187,285,118,116,72,528,174,143,94,396,186,10,10,16,25,173,88]
[null,"Family households:",30,37,33,31,48,47,18,21,35,30,30,38,35,28,551,205,16,17,71,56,199,82,15,20,38,34,121,98,285,151,9,14,4,5,115,92,108,50,11,14,0,11,2,3,132,75,118,99,19,24,66,68,5,9,42,66,189,93,161,116,24,28,147,69,76,67,182,153,6,9,0,15,72,53]
[null,"Married-couple family:",14,23,9,14,40,44,9,15,22,26,7,12,35,28,100,65,8,9,40,40,17,27,15,20,31,31,16,25,45,39,0,11,4,5,44,43,19,17,0,11,0,11,0,11,93,64,0,11,13,22,10,15,0,11,0,15,46,35,14,16,0,15,96,55,36,55,182,153,0,11,0,15,33,38]
[null,"Householder under 25 years",0,15,0,15,0,11,0,11,0,11,0,11,0,11,0,23,0,11,0,15,0,17,0,11,0,11,0,15,0,17,0,11,0,11,0,15,0,20,0,11,0,11,0,11,0,15,0,11,0,11,0,11,0,11,0,15,0,20,0,17,0,15,0,20,0,15,0,15,0,11,0,15,0,17]
[null,"Householder 25 to 44 years",0,15,0,15,10,16,9,15,11,20,0,11,11,17,37,40,0,11,24,30,0,17,0,11,20,27,0,15,29,34,0,11,4,5,13,20,0,20,0,11,0,11,0,11,28,38,0,11,0,11,0,11,0,11,0,15,22,23,0,17,0,15,25,28,36,55,124,131,0,11,0,15,33,38]
[null,"Householder 45 to 64 years",0,15,0,15,30,44,0,11,11,16,7,12,17,18,48,40,0,11,16,26,17,27,15,20,0,11,16,25,16,19,0,11,0,11,0,15,9,13,0,11,0,11,0,11,65,59,0,11,13,22,10,15,0,11,0,15,14,23,8,12,0,15,15,25,0,15,58,77,0,11,0,15,0,17]
[null,"Householder 65 years and over",14,23,9,14,0,11,0,11,0,11,0,11,7,12,15,24,8,9,0,15,0,17,0,11,11,15,0,15,0,17,0,11,0,11,31,37,10,13,0,11,0,11,0,11,0,15,0,11,0,11,0,11,0,11,0,15,10,15,6,10,0,15,56,39,0,15,0,15,0,11,0,15,0,17]
[null,"Other family:",16,28,24,28,8,12,9,14,13,14,23,37,0,11,451,191,8,11,31,37,182,76,0,11,7,11,105,94,240,149,9,14,0,11,71,81,89,49,11,14,0,11,2,3,39,47,118,99,6,9,56,67,5,9,42,66,143,88,147,116,24,28,51,36,40,38,0,15,6,9,0,15,39,36]
[null,"Male householder, no spouse present:",0,15,0,15,8,12,0,11,0,11,0,11,0,11,14,22,0,11,0,15,75,62,0,11,0,11,0,15,27,41,0,11,0,11,32,48,7,11,0,11,0,11,0,11,29,44,23,37,0,11,0,11,0,11,0,15,0,20,15,18,0,15,0,20,31,36,0,15,0,11,0,15,18,27]
[null,"Householder under 25 years",0,15,0,15,8,12,0,11,0,11,0,11,0,11,0,23,0,11,0,15,24,40,0,11,0,11,0,15,27,41,0,11,0,11,0,15,0,20,0,11,0,11,0,11,0,15,23,37,0,11,0,11,0,11,0,15,0,20,0,17,0,15,0,20,0,15,0,15,0,11,0,15,0,17]
[null,"Householder 25 to 44 years",0,15,0,15,0,11,0,11,0,11,0,11,0,11,14,22,0,11,0,15,22,34,0,11,0,11,0,15,0,17,0,11,0,11,0,15,0,20,0,11,0,11,0,11,0,15,0,11,0,11,0,11,0,11,0,15,0,20,8,13,0,15,0,20,13,21,0,15,0,11,0,15,0,17]
[null,"Householder 45 to 64 years",0,15,0,15,0,11,0,11,0,11,0,11,0,11,0,23,0,11,0,15,10,16,0,11,0,11,0,15,0,17,0,11,0,11,0,15,7,11,0,11,0,11,0,11,29,44,0,11,0,11,0,11,0,11,0,15,0,20,7,13,0,15,0,20,0,15,0,15,0,11,0,15,0,17]
[null,"Householder 65 years and over",0,15,0,15,0,11,0,11,0,11,0,11,0,11,0,23,0,11,0,15,19,31,0,11,0,11,0,15,0,17,0,11,0,11,32,48,0,20,0,11,0,11,0,11,0,15,0,11,0,11,0,11,0,11,0,15,0,20,0,17,0,15,0,20,18,27,0,15,0,11,0,15,18,27]
[null,"Female householder, no spouse present:",16,28,24,28,0,11,9,14,13,14,23,37,0,11,437,190,8,11,31,37,107,50,0,11,7,11,105,94,213,148,9,14,0,11,39,63,82,48,11,14,0,11,2,3,10,16,95,97,6,9,56,67,5,9,42,66,143,88,132,115,24,28,51,36,9,15,0,15,6,9,0,15,21,24]
[null,"Householder under 25 years",0,15,0,15,0,11,0,11,6,9,23,37,0,11,32,39,0,11,0,15,0,17,0,11,0,11,0,15,0,17,0,11,0,11,39,63,0,20,0,11,0,11,0,11,0,15,0,11,0,11,7,11,0,11,0,15,0,20,0,17,0,15,0,20,0,15,0,15,0,11,0,15,0,17]
[null,"Householder 25 to 44 years",16,28,15,22,0,11,9,14,0,11,0,11,0,11,295,171,0,11,12,19,81,49,0,11,0,11,105,94,95,82,9,14,0,11,0,15,60,41,0,11,0,11,0,11,0,15,95,97,0,11,49,67,0,11,42,66,109,85,107,105,11,20,43,33,9,15,0,15,6,9,0,15,21,24]
[null,"Householder 45 to 64 years",0,15,9,15,0,11,0,11,7,10,0,11,0,11,94,69,8,11,19,31,26,25,0,11,0,11,0,15,118,115,0,11,0,11,0,15,22,26,8,13,0,11,2,3,10,16,0,11,6,9,0,11,0,11,0,15,34,25,25,39,0,15,8,13,0,15,0,15,0,11,0,15,0,17]
[null,"Householder 65 years and over",0,15,0,15,0,11,0,11,0,11,0,11,0,11,16,26,0,11,0,15,0,17,0,11,7,11,0,15,0,17,0,11,0,11,0,15,0,20,3,5,0,11,0,11,0,15,0,11,0,11,0,11,5,9,0,15,0,20,0,17,13,21,0,20,0,15,0,15,0,11,0,15,0,17]
[null,"Nonfamily households:",40,47,22,24,36,30,26,24,8,13,17,19,0,11,547,193,19,18,37,41,193,71,37,35,0,11,137,89,186,69,16,15,14,12,12,20,162,73,0,11,0,11,12,10,454,167,81,61,27,28,8,12,21,25,12,20,616,179,124,69,92,65,381,145,67,68,214,109,4,5,16,25,101,75]
[null,"Male householder:",40,47,22,24,7,12,6,11,8,13,10,16,0,11,283,142,7,8,0,15,94,62,9,15,0,11,76,81,69,52,6,11,3,5,0,15,79,49,0,11,0,11,0,11,171,91,19,33,0,11,0,11,0,11,12,20,216,115,41,31,44,50,156,82,0,15,46,36,0,11,0,15,0,17]
[null,"Householder under 25 years",0,15,0,15,0,11,0,11,0,11,0,11,0,11,27,30,0,11,0,15,0,17,0,11,0,11,0,15,14,23,0,11,0,11,0,15,0,20,0,11,0,11,0,11,0,15,0,11,0,11,0,11,0,11,0,15,9,14,0,17,0,15,0,20,0,15,0,15,0,11,0,15,0,17]
[null,"Householder 25 to 44 years",0,15,0,15,0,11,0,11,0,11,0,11,0,11,78,70,0,11,0,15,27,43,0,11,0,11,0,15,0,17,6,11,0,11,0,15,11,17,0,11,0,11,0,11,103,58,0,11,0,11,0,11,0,11,0,15,68,53,0,17,0,15,12,19,0,15,21,26,0,11,0,15,0,17]
[null,"Householder 45 to 64 years",40,47,22,24,7,12,6,11,8,13,10,16,0,11,125,100,7,8,0,15,35,44,9,15,0,11,13,21,40,40,0,11,3,5,0,15,21,21,0,11,0,11,0,11,60,70,19,33,0,11,0,11,0,11,0,15,110,103,41,31,22,36,114,75,0,15,0,15,0,11,0,15,0,17]
[null,"Householder 65 years and over",0,15,0,15,0,11,0,11,0,11,0,11,0,11,53,66,0,11,0,15,32,42,0,11,0,11,63,79,15,19,0,11,0,11,0,15,47,43,0,11,0,11,0,11,8,12,0,11,0,11,0,11,0,11,12,20,29,35,0,17,22,34,30,29,0,15,25,24,0,11,0,15,0,17]
[null,"Female householder:",0,15,0,15,29,31,20,22,0,11,7,10,0,11,264,122,12,17,37,41,99,47,28,30,0,11,61,39,117,51,10,11,11,9,12,20,83,50,0,11,0,11,12,10,283,153,62,51,27,28,8,12,21,25,0,15,400,121,83,63,48,43,225,118,67,68,168,99,4,5,16,25,101,75]
[null,"Householder under 25 years",0,15,0,15,0,11,0,11,0,11,0,11,0,11,46,58,0,11,0,15,0,17,0,11,0,11,0,15,32,31,0,11,0,11,0,15,0,20,0,11,0,11,3,5,63,63,0,11,0,11,0,11,0,11,0,15,20,23,0,17,0,15,0,20,0,15,32,37,0,11,0,15,0,17]
[null,"Householder 25 to 44 years",0,15,0,15,0,11,0,11,0,11,0,11,0,11,42,50,0,11,0,15,0,17,0,11,0,11,0,15,0,17,0,11,4,5,0,15,12,20,0,11,0,11,4,6,135,120,37,48,0,11,0,11,0,11,0,15,77,52,0,17,0,15,61,71,0,15,32,40,0,11,0,15,0,17]
[null,"Householder 45 to 64 years",0,15,0,15,9,14,0,11,0,11,7,10,0,11,103,88,0,11,23,34,48,32,7,11,0,11,18,20,50,36,4,6,3,5,0,15,29,31,0,11,0,11,0,11,41,30,17,23,16,18,8,12,0,11,0,15,163,94,59,51,0,15,46,44,49,61,75,66,0,11,0,15,34,40]
[null,"Householder 65 years and over",0,15,0,15,20,28,20,22,0,11,0,11,0,11,73,46,12,17,14,22,51,37,21,24,0,11,43,33,35,33,6,9,4,6,12,20,42,35,0,11,0,11,5,6,44,30,8,13,11,19,0,11,21,25,0,15,140,59,24,38,48,43,118,88,18,27,29,34,4,5,16,25,67,64]
[null,"Income in the past 12 months at or above poverty level:",2527,108,1775,85,1316,137,1422,86,1569,77,1490,114,1505,76,11836,428,847,47,2496,163,5856,233,1556,77,1359,63,3189,208,6147,265,877,53,728,55,2315,164,8480,222,440,64,574,71,300,48,3230,203,1548,132,1689,86,1602,168,1798,109,2895,203,9520,307,3579,190,2199,156,10565,287,1987,163,3441,300,296,45,2765,120,4814,202]
[null,"Family households:",2003,108,1443,77,1119,108,1160,78,1265,78,1128,81,1244,70,8281,347,705,51,1900,153,3587,197,1330,67,1024,80,2233,139,4098,206,666,59,584,54,1698,132,6621,205,315,64,491,63,237,44,1908,192,1134,112,1342,74,1213,139,1358,86,2233,162,4581,237,2553,168,1501,165,7733,266,1616,154,2190,274,220,41,2193,96,3889,184]
[null,"Married-couple family:",1828,138,1354,80,1025,106,1051,87,1056,101,982,90,1104,87,6714,371,612,61,1600,197,2897,218,1179,91,936,83,1950,152,3574,245,586,64,506,54,1392,132,5593,261,287,62,405,64,204,44,1454,217,882,126,1142,94,1086,138,1192,101,1707,184,3820,208,2037,200,1376,159,6263,313,1391,171,1650,256,184,36,2025,115,3308,211]
[null,"Householder under 25 years",0,15,0,15,0,11,0,11,0,11,0,11,0,11,52,47,0,11,0,15,8,13,0,11,0,11,42,58,0,17,0,11,0,11,0,15,0,20,0,11,2,4,0,11,8,13,0,11,0,11,21,32,0,11,34,49,23,37,0,17,0,15,0,20,0,15,9,15,0,11,11,18,0,17]
[null,"Householder 25 to 44 years",380,92,451,56,340,47,212,50,334,62,353,64,380,79,2434,270,162,36,609,116,878,154,443,86,276,84,356,93,837,149,158,37,123,33,352,99,1695,156,42,31,133,45,49,31,563,137,287,84,251,65,385,94,385,73,393,135,1265,157,790,126,284,113,1945,206,434,100,242,104,43,25,637,101,1080,158]
[null,"Householder 45 to 64 years",1014,121,735,68,547,77,713,97,571,79,496,90,583,75,3463,271,292,39,689,149,1406,159,552,80,434,85,1158,129,1799,189,322,47,300,48,824,101,2966,217,128,51,218,45,105,33,683,137,505,91,614,80,443,90,663,80,975,179,1729,133,950,156,684,151,3033,273,787,140,880,199,109,25,1083,120,1666,188]
[null,"Householder 65 years and over",434,97,168,44,138,35,126,57,151,57,133,80,141,55,765,149,158,39,302,114,605,119,184,57,226,47,394,89,938,151,106,26,83,22,216,73,932,146,117,39,52,24,50,20,200,52,90,39,277,61,237,74,144,46,305,77,803,123,297,116,408,130,1285,192,170,65,519,161,32,14,294,72,562,164]
[null,"Other family:",175,86,89,56,94,48,109,61,209,91,146,74,140,71,1567,252,93,50,300,150,690,203,151,75,88,46,283,121,524,144,80,43,78,22,306,115,1028,188,28,23,86,42,33,17,454,150,252,88,200,79,127,57,166,68,526,186,761,149,516,137,125,83,1470,270,225,118,540,217,36,22,168,82,581,194]
[null,"Male householder, no spouse present:",33,40,0,15,38,34,65,37,57,53,92,66,34,28,535,165,33,27,157,129,124,92,90,64,8,12,104,70,161,72,26,20,43,17,134,84,391,129,13,16,12,12,15,14,185,97,90,56,11,16,57,40,58,58,132,91,219,94,111,74,12,20,398,173,136,105,188,133,6,7,52,55,305,164]
[null,"Householder under 25 years",0,15,0,15,0,11,0,11,0,11,23,35,9,15,0,23,0,11,0,15,0,17,0,11,0,11,8,14,0,17,0,11,0,11,0,15,0,20,0,11,0,11,0,11,81,75,0,11,0,11,0,11,0,11,0,15,0,20,0,17,0,15,0,20,0,15,0,15,0,11,0,15,0,17]
[null,"Householder 25 to 44 years",0,15,0,15,0,11,25,24,37,47,22,20,10,16,276,135,24,25,64,99,30,29,39,42,0,11,66,66,20,22,18,16,7,5,55,59,81,62,0,11,0,11,4,5,53,44,60,46,0,11,0,11,48,56,84,80,104,68,88,70,0,15,87,60,109,101,47,66,4,6,13,20,127,123]
[null,"Householder 45 to 64 years",33,40,0,15,38,34,29,32,20,30,6,9,15,18,219,90,4,7,93,83,94,86,51,48,0,11,17,20,63,40,8,12,36,17,67,60,267,98,9,14,12,12,11,13,45,39,30,32,11,16,57,40,0,11,35,36,80,54,23,27,12,20,283,158,27,44,89,104,2,4,39,52,159,134]
[null,"Householder 65 years and over",0,15,0,15,0,11,11,16,0,11,41,48,0,11,40,39,5,7,0,15,0,17,0,11,8,12,13,19,78,57,0,11,0,11,12,22,43,31,4,6,0,11,0,11,6,9,0,11,0,11,0,11,10,17,13,21,35,35,0,17,0,15,28,31,0,15,52,65,0,11,0,15,19,29]
[null,"Female householder, no spouse present:",142,77,89,56,56,38,44,42,152,70,54,36,106,66,1032,205,60,40,143,87,566,184,61,38,80,45,179,103,363,121,54,37,35,16,172,99,637,126,15,17,74,41,18,11,269,124,162,81,189,80,70,45,108,47,394,159,542,129,405,141,113,76,1072,210,89,56,352,171,30,21,116,63,276,102]
[null,"Householder under 25 years",0,15,0,15,0,11,0,11,0,11,0,11,0,11,21,26,0,11,0,15,0,17,0,11,14,21,9,15,29,25,0,11,0,11,0,15,0,20,0,11,0,11,0,11,0,15,0,11,0,11,0,11,0,11,16,25,25,33,0,17,0,15,73,79,0,15,0,15,0,11,0,15,0,17]
[null,"Householder 25 to 44 years",36,36,37,44,0,11,33,38,0,11,7,11,40,51,416,144,28,33,14,21,257,132,7,12,0,11,59,46,65,46,22,28,0,11,104,82,137,68,0,11,31,31,0,11,115,84,62,65,60,63,0,11,51,36,91,97,216,87,140,87,46,51,318,124,41,37,135,95,0,11,0,15,104,56]
[null,"Householder 45 to 64 years",84,58,33,25,56,38,0,11,140,71,47,33,50,47,492,138,32,24,94,75,238,113,54,37,38,27,78,75,244,110,32,28,28,14,32,40,427,116,12,16,27,20,6,7,147,88,73,55,31,31,40,35,28,26,197,112,130,61,209,108,30,35,500,147,37,33,141,93,25,20,116,63,160,80]
[null,"Householder 65 years and over",22,25,19,21,0,11,11,17,12,14,0,11,16,18,103,62,0,11,35,32,71,46,0,11,28,24,33,30,25,24,0,11,7,7,36,43,73,44,3,5,16,15,12,11,7,11,27,20,98,64,30,26,29,29,90,77,171,70,56,50,37,41,181,103,11,18,76,83,5,5,0,15,12,19]
[null,"Nonfamily households:",524,138,332,83,197,73,262,90,304,87,362,112,261,82,3555,384,142,38,596,191,2269,250,226,94,335,85,956,202,2049,232,211,63,144,40,617,159,1859,268,125,43,83,32,63,28,1322,196,414,123,347,105,389,136,440,121,662,155,4939,349,1026,187,698,212,2832,353,371,160,1251,262,76,30,572,135,925,260]
[null,"Male householder:",212,101,236,72,62,37,115,51,164,66,270,104,116,57,1614,266,46,24,333,164,881,163,121,85,189,68,395,147,769,145,124,48,87,38,315,131,744,162,64,38,48,27,28,19,603,144,195,82,142,68,238,113,223,79,324,111,2351,271,552,153,302,120,1478,259,235,146,647,181,24,14,181,85,431,163]
[null,"Householder under 25 years",0,15,27,44,0,11,0,11,0,11,10,16,0,11,221,145,0,11,0,15,37,42,0,11,0,11,25,42,73,61,19,31,0,11,33,52,29,32,0,11,4,6,0,11,37,35,28,42,9,13,21,33,0,11,0,15,157,86,31,35,18,28,58,74,0,15,32,31,0,11,14,24,0,17]
[null,"Householder 25 to 44 years",80,90,79,55,0,11,12,18,26,29,75,71,36,30,710,186,9,13,138,129,324,119,35,51,52,42,101,84,180,61,4,6,12,12,10,16,267,120,18,22,3,6,3,7,212,85,16,19,21,20,5,11,37,34,85,67,1260,222,158,91,89,47,445,142,89,93,209,144,0,11,50,48,78,72]
[null,"Householder 45 to 64 years",61,43,105,53,44,33,70,40,100,47,154,70,62,41,440,130,37,17,166,108,204,78,72,52,119,57,235,96,293,95,29,24,63,34,189,107,313,93,22,20,22,21,17,13,183,71,68,39,79,57,112,74,144,68,169,90,678,158,261,110,102,85,596,188,117,91,283,128,16,13,69,59,195,102]
[null,"Householder 65 years and over",71,52,25,21,18,21,33,31,38,36,31,31,18,20,243,89,0,11,29,31,316,106,14,16,18,19,34,32,223,75,72,34,12,9,83,55,135,73,24,19,19,17,8,8,171,92,83,66,33,23,100,65,42,31,70,77,256,99,102,74,93,65,379,104,29,38,123,57,8,6,48,40,158,89]
[null,"Female householder:",312,119,96,39,135,69,147,67,140,72,92,56,145,57,1941,292,96,29,263,132,1388,219,105,55,146,67,561,152,1280,197,87,41,57,19,302,98,1115,205,61,30,35,16,35,22,719,155,219,86,205,78,151,65,217,103,338,103,2588,284,474,121,396,153,1354,234,136,69,604,199,52,28,391,124,494,169]
[null,"Householder under 25 years",0,15,0,15,13,20,0,11,0,11,5,10,0,11,54,38,0,11,0,15,47,52,0,11,0,11,12,19,32,46,0,11,0,11,0,15,56,55,0,11,0,11,0,11,119,102,0,11,0,11,30,47,0,11,0,15,126,81,9,15,0,15,13,21,0,15,101,116,0,11,0,15,0,17]
[null,"Householder 25 to 44 years",41,40,0,15,8,12,13,20,0,11,15,19,27,25,480,158,0,11,20,31,204,96,24,23,8,12,50,43,118,57,5,8,5,8,40,64,258,113,0,11,7,9,11,12,239,114,59,70,31,36,19,21,9,15,41,39,799,201,196,99,69,56,319,130,32,33,7,12,3,4,62,61,34,38]
[null,"Householder 45 to 64 years",156,93,52,29,84,57,114,61,71,50,40,31,61,38,644,158,16,13,54,51,386,113,56,42,74,61,204,116,572,140,65,36,26,16,96,53,489,158,28,24,15,11,16,16,177,59,93,43,79,40,29,27,167,100,134,62,790,190,174,76,107,56,459,125,61,46,204,107,31,25,141,79,211,110]
[null,"Householder 65 years and over",115,63,44,29,30,29,20,22,69,50,32,28,57,32,763,180,80,24,189,130,751,140,25,26,64,36,295,107,558,134,17,15,26,12,166,76,312,114,33,20,13,10,8,8,184,76,67,36,95,51,73,39,41,34,163,67,873,159,95,47,220,131,563,165,43,37,292,114,18,10,188,73,249,113]
[]
[]
[]
[]
[]
[]
[]
[]
[]
[null,"B17017. POVERTY STATUS IN THE PAST 12 MONTHS BY HOUSEHOLD TYPE BY AGE OF HOUSEHOLDER"]
[null,"Universe: HOUSEHOLDS",null,null,null,null,null,null,null,null,null,null,null,"B19001. HOUSEHOLD INCOME IN THE PAST 12 MONTHS (IN 2007 INFLATION-ADJUSTED DOLLARS) - Universe:  HOUSEHOLDS"]
[null,"Data Set: 2005-2009 American Community Survey 5-Year Estimates",null,null,null,null,null,null,null,null,null,null,null,{"$f":"B151","v":"Data Set: 2005-2009 American Community Survey 5-Year Estimates"}]
[]
[null,null,"Atkinson",null,"Auburn",null,"Brentwood",null,"Candia",null,"Chester",null,"Danville",null,"Deerfield",null,"Derry",null,"East Kingston",null,"Epping",null,"Exeter",null,"Fremont",null,"Greenland",null,"Hampstead",null,"Hampton",null,"Hampton Falls",null,"Kensington",null,"Kingston",null,"Londonderry",null,"New Castle",null,"Newfields",null,"Newington",null,"Newmarket",null,"Newton",null,"North Hampton",null,"Northwood",null,"Nottingham",null,"Plaistow",null,"Portsmouth",null,"Raymond",null,"Rye",null,"Salem",null,"Sandown",null,"Seabrook",null,"South Hampton",null,"Stratham",null,"Windham"]
[null,null,"Estimate","Margin Of Error","Estimate","Margin Of Error","Estimate","Margin Of Error","Estimate","Margin Of Error","Estimate","Margin Of Error","Estimate","Margin Of Error","Estimate","Margin Of Error","Estimate","Margin Of Error","Estimate","Margin Of Error","Estimate","Margin Of Error","Estimate","Margin Of Error","Estimate","Margin Of Error","Estimate","Margin Of Error","Estimate","Margin Of Error","Estimate","Margin Of Error","Estimate","Margin Of Error","Estimate","Margin Of Error","Estimate","Margin Of Error","Estimate","Margin Of Error","Estimate","Margin Of Error","Estimate","Margin Of Error","Estimate","Margin Of Error","Estimate","Margin Of Error","Estimate","Margin Of Error","Estimate","Margin Of Error","Estimate","Margin Of Error","Estimate","Margin Of Error","Estimate","Margin Of Error","Estimate","Margin Of Error","Estimate","Margin Of Error","Estimate","Margin Of Error","Estimate","Margin Of Error","Estimate","Margin Of Error","Estimate","Margin Of Error","Estimate","Margin Of Error","Estimate","Margin Of Error","Estimate","Margin Of Error"]
[null,"Total:",2613,114,1763,97,1017,95,1552,69,1528,81,1451,105,1417,91,12592,332,846,51,2363,137,6202,222,1441,103,1275,88,3376,148,6966,265,819,58,764,55,2302,119,8372,211,372,69,577,66,288,40,4039,185,1656,78,1775,93,1553,101,1590,97,2849,248,9410,326,4043,211,2292,121,10969,289,1892,113,3846,231,321,42,2717,107,4364,175]
[null,"Income in the past 12 months below poverty level:",104,58,116,69,30,21,79,48,25,28,41,30,39,27,981,237,67,30,180,111,356,161,59,46,53,39,106,86,584,177,45,28,12,8,121,83,290,134,20,19,14,14,25,22,293,106,65,57,84,61,25,26,38,21,158,91,825,189,374,140,106,69,451,132,97,53,212,106,10,8,43,41,68,62]
[null,"Family households:",33,37,37,39,15,12,20,23,13,20,22,24,28,26,441,174,38,25,99,69,48,47,43,39,30,28,29,31,283,148,42,28,6,6,59,67,151,86,12,15,4,6,6,8,92,82,13,20,27,27,4,10,38,21,134,94,212,96,99,79,30,33,174,68,74,47,82,78,2,3,14,23,21,25]
[null,"Married-couple family:",33,37,27,35,10,11,9,15,13,20,11,18,16,17,123,68,19,17,59,57,0,114,30,33,30,28,29,31,69,46,29,24,6,6,24,39,94,75,12,15,4,6,0,114,11,17,13,20,19,30,0,114,11,16,51,56,69,59,26,22,12,19,64,50,46,39,14,22,0,114,0,114,11,19]
[null,"Householder under 25 years",0,114,0,114,0,114,0,114,0,114,0,114,0,114,0,114,0,114,0,114,0,114,0,114,0,114,0,114,0,114,0,114,0,114,0,114,0,114,0,114,0,114,0,114,0,114,0,114,19,30,0,114,0,114,0,114,0,114,0,114,0,114,0,114,0,114,0,114,0,114,0,114,0,114]
[null,"Householder 25 to 44 years",0,114,0,114,3,5,0,114,13,20,0,114,8,12,76,50,9,9,47,54,0,114,14,22,22,24,0,114,13,21,0,114,4,5,0,114,9,15,0,114,4,6,0,114,11,17,13,20,0,114,0,114,0,114,0,114,59,59,8,12,0,114,11,18,12,18,14,22,0,114,0,114,0,114]
[null,"Householder 45 to 64 years",20,31,27,35,7,10,9,15,0,114,11,18,0,114,47,46,0,114,12,21,0,114,0,114,0,114,0,114,12,18,21,20,2,4,24,39,63,67,9,13,0,114,0,114,0,114,0,114,0,114,0,114,0,114,15,24,0,114,18,20,0,114,0,114,21,24,0,114,0,114,0,114,11,19]
[null,"Householder 65 years and over",13,20,0,114,0,114,0,114,0,114,0,114,8,12,0,114,10,14,0,114,0,114,16,24,8,13,29,31,44,37,8,12,0,114,0,114,22,27,3,5,0,114,0,114,0,114,0,114,0,114,0,114,11,16,36,51,10,16,0,114,12,19,53,46,13,25,0,114,0,114,0,114,0,114]
[null,"Other family:",0,114,10,16,5,8,11,17,0,114,11,16,12,19,318,160,19,17,40,36,48,47,13,19,0,114,0,114,214,140,13,16,0,114,35,55,57,42,0,114,0,114,6,8,81,79,0,114,8,13,4,10,27,27,83,71,143,85,73,76,18,28,110,57,28,25,68,76,2,3,14,23,10,16]
[null,"Male householder, no spouse present:",0,114,0,114,0,114,0,114,0,114,11,16,12,19,60,87,0,114,0,114,0,114,0,114,0,114,0,114,15,25,0,114,0,114,0,114,9,15,0,114,0,114,0,114,12,25,0,114,0,114,0,114,0,114,0,114,16,26,0,114,0,114,0,114,20,22,42,66,0,114,0,114,0,114]
[null,"Householder under 25 years",0,114,0,114,0,114,0,114,0,114,0,114,0,114,0,114,0,114,0,114,0,114,0,114,0,114,0,114,0,114,0,114,0,114,0,114,0,114,0,114,0,114,0,114,0,114,0,114,0,114,0,114,0,114,0,114,16,26,0,114,0,114,0,114,0,114,0,114,0,114,0,114,0,114]
[null,"Householder 25 to 44 years",0,114,0,114,0,114,0,114,0,114,0,114,12,19,60,87,0,114,0,114,0,114,0,114,0,114,0,114,0,114,0,114,0,114,0,114,0,114,0,114,0,114,0,114,12,25,0,114,0,114,0,114,0,114,0,114,0,114,0,114,0,114,0,114,12,19,0,114,0,114,0,114,0,114]
[null,"Householder 45 to 64 years",0,114,0,114,0,114,0,114,0,114,11,16,0,114,0,114,0,114,0,114,0,114,0,114,0,114,0,114,15,25,0,114,0,114,0,114,9,15,0,114,0,114,0,114,0,114,0,114,0,114,0,114,0,114,0,114,0,114,0,114,0,114,0,114,8,12,42,66,0,114,0,114,0,114]
[null,"Householder 65 years and over",0,114,0,114,0,114,0,114,0,114,0,114,0,114,0,114,0,114,0,114,0,114,0,114,0,114,0,114,0,114,0,114,0,114,0,114,0,114,0,114,0,114,0,114,0,114,0,114,0,114,0,114,0,114,0,114,0,114,0,114,0,114,0,114,0,114,0,114,0,114,0,114,0,114]
[null,"Female householder, no spouse present:",0,114,10,16,5,8,11,17,0,114,0,114,0,114,258,132,19,17,40,36,48,47,13,19,0,114,0,114,199,139,13,16,0,114,35,55,48,43,0,114,0,114,6,8,69,76,0,114,8,13,4,10,27,27,83,71,127,79,73,76,18,28,110,57,8,12,26,39,2,3,14,23,10,16]
[null,"Householder under 25 years",0,114,0,114,0,114,0,114,0,114,0,114,0,114,66,62,0,114,0,114,0,114,0,114,0,114,0,114,8,13,0,114,0,114,0,114,0,114,0,114,0,114,0,114,0,114,0,114,0,114,0,114,0,114,0,114,0,114,0,114,0,114,0,114,0,114,0,114,0,114,0,114,0,114]
[null,"Householder 25 to 44 years",0,114,10,16,5,8,0,114,0,114,0,114,0,114,157,112,10,12,14,22,19,24,13,19,0,114,0,114,161,139,10,16,0,114,35,55,32,35,0,114,0,114,3,6,69,76,0,114,8,13,4,10,16,22,53,64,127,79,45,70,18,28,47,40,0,114,26,39,2,3,0,114,10,16]
[null,"Householder 45 to 64 years",0,114,0,114,0,114,11,17,0,114,0,114,0,114,35,34,9,13,26,28,29,48,0,114,0,114,0,114,12,19,3,4,0,114,0,114,16,26,0,114,0,114,0,114,0,114,0,114,0,114,0,114,11,17,30,35,0,114,28,31,0,114,24,19,8,12,0,114,0,114,14,23,0,114]
[null,"Householder 65 years and over",0,114,0,114,0,114,0,114,0,114,0,114,0,114,0,114,0,114,0,114,0,114,0,114,0,114,0,114,18,28,0,114,0,114,0,114,0,114,0,114,0,114,3,5,0,114,0,114,0,114,0,114,0,114,0,114,0,114,0,114,0,114,39,37,0,114,0,114,0,114,0,114,0,114]
[null,"Nonfamily households:",71,58,79,69,15,16,59,42,12,19,19,22,11,16,540,189,29,19,81,84,308,148,16,20,23,29,77,81,301,122,3,4,6,6,62,51,139,95,8,13,10,13,19,21,201,80,52,53,57,51,21,24,0,114,24,27,613,165,275,129,76,60,277,101,23,23,130,75,8,6,29,34,47,55]
[null,"Male householder:",0,114,9,15,3,5,0,114,0,114,0,114,0,114,204,131,4,5,0,114,140,117,0,114,0,114,24,38,47,41,3,4,3,4,18,30,65,67,0,114,4,7,13,20,115,66,31,48,6,10,0,114,0,114,0,114,235,122,87,60,15,26,131,84,5,9,49,50,8,6,11,20,0,114]
[null,"Householder under 25 years",0,114,0,114,0,114,0,114,0,114,0,114,0,114,51,79,0,114,0,114,0,114,0,114,0,114,0,114,0,114,0,114,0,114,0,114,0,114,0,114,0,114,0,114,51,45,0,114,0,114,0,114,0,114,0,114,79,80,0,114,0,114,0,114,0,114,0,114,0,114,0,114,0,114]
[null,"Householder 25 to 44 years",0,114,0,114,3,5,0,114,0,114,0,114,0,114,25,39,0,114,0,114,85,96,0,114,0,114,0,114,17,26,0,114,0,114,0,114,0,114,0,114,0,114,0,114,28,33,0,114,0,114,0,114,0,114,0,114,67,74,50,53,0,114,64,65,5,9,34,44,0,114,0,114,0,114]
[null,"Householder 45 to 64 years",0,114,9,15,0,114,0,114,0,114,0,114,0,114,72,50,4,5,0,114,12,20,0,114,0,114,24,38,30,34,3,4,3,4,0,114,52,63,0,114,4,7,13,20,36,35,0,114,6,10,0,114,0,114,0,114,66,61,27,30,0,114,40,39,0,114,15,23,8,6,11,20,0,114]
[null,"Householder 65 years and over",0,114,0,114,0,114,0,114,0,114,0,114,0,114,56,76,0,114,0,114,43,68,0,114,0,114,0,114,0,114,0,114,0,114,18,30,13,22,0,114,0,114,0,114,0,114,31,48,0,114,0,114,0,114,0,114,23,27,10,17,15,26,27,31,0,114,0,114,0,114,0,114,0,114]
[null,"Female householder:",71,58,70,66,12,15,59,42,12,19,19,22,11,16,336,152,25,18,81,84,168,89,16,20,23,29,53,70,254,113,0,114,3,5,44,42,74,60,8,13,6,11,6,7,86,55,21,24,51,50,21,24,0,114,24,27,378,116,188,107,61,53,146,64,18,21,81,55,0,114,18,29,47,55]
[null,"Householder under 25 years",0,114,0,114,0,114,13,19,0,114,0,114,0,114,120,112,0,114,0,114,12,21,0,114,0,114,0,114,38,61,0,114,0,114,0,114,11,19,0,114,0,114,0,114,54,50,0,114,0,114,0,114,0,114,0,114,34,33,0,114,14,25,0,114,0,114,0,114,0,114,18,29,0,114]
[null,"Householder 25 to 44 years",0,114,17,28,0,114,12,19,0,114,0,114,0,114,0,114,12,12,21,34,36,41,9,15,0,114,0,114,76,56,0,114,0,114,0,114,18,31,0,114,0,114,0,114,0,114,0,114,0,114,11,17,0,114,0,114,116,92,29,41,0,114,0,114,0,114,31,36,0,114,0,114,0,114]
[null,"Householder 45 to 64 years",17,27,53,61,12,15,24,26,12,19,0,114,11,16,141,94,0,114,60,79,92,63,7,13,23,29,43,68,41,34,0,114,3,5,32,36,18,28,0,114,4,9,0,114,8,15,0,114,0,114,0,114,0,114,0,114,126,59,87,76,17,27,74,47,7,12,16,28,0,114,0,114,14,22]
[null,"Householder 65 years and over",54,51,0,114,0,114,10,16,0,114,19,22,0,114,75,45,13,14,0,114,28,31,0,114,0,114,10,15,99,65,0,114,0,114,12,21,27,31,8,13,2,5,6,7,24,27,21,24,51,50,10,16,0,114,24,27,102,52,72,64,30,37,72,44,11,17,34,31,0,114,0,114,33,51]
[null,"Income in the past 12 months at or above poverty level:",2509,114,1647,115,987,89,1473,67,1503,81,1410,106,1378,94,11611,382,779,57,2183,166,5846,253,1382,100,1222,96,3270,158,6382,348,774,57,752,57,2181,156,8082,216,352,69,563,66,263,37,3746,214,1591,89,1691,93,1528,103,1552,96,2691,265,8585,353,3669,232,2186,121,10518,295,1795,112,3634,261,311,43,2674,117,4296,179]
[null,"Family households:",1894,132,1396,78,884,81,1159,81,1263,69,1131,82,1037,82,8332,321,644,53,1629,141,3563,192,1160,71,899,78,2438,151,3891,213,602,57,614,60,1628,131,6562,202,207,51,483,64,193,38,2330,167,1328,81,1268,93,1115,73,1269,72,1948,168,4464,249,2684,193,1485,110,7807,254,1543,99,2277,198,215,38,2035,115,3544,164]
[null,"Married-couple family:",1738,150,1261,100,812,80,1077,91,1185,75,915,104,832,116,6932,319,563,57,1294,143,3090,206,1003,84,823,81,2123,173,3133,243,541,58,528,63,1364,165,5698,250,204,51,452,63,169,38,1974,180,1046,120,1057,94,921,89,1146,103,1743,173,3481,294,2241,179,1199,135,6367,291,1327,108,1687,231,199,39,1744,149,3180,173]
[null,"Householder under 25 years",0,114,0,114,0,114,0,114,0,114,0,114,0,114,59,43,0,114,11,20,0,114,0,114,0,114,0,114,39,65,0,114,0,114,0,114,0,114,0,114,0,114,0,114,86,69,7,11,15,24,0,114,0,114,18,28,58,72,26,27,0,114,9,17,0,114,38,59,0,114,0,114,0,114]
[null,"Householder 25 to 44 years",566,95,455,77,340,35,339,92,430,80,392,66,308,72,2981,285,169,29,551,101,978,141,430,64,335,77,694,82,900,173,172,33,155,50,475,110,2510,231,23,17,178,52,18,12,815,139,545,90,292,79,350,65,496,83,473,131,1425,197,898,128,287,87,2339,219,582,79,462,131,55,22,602,116,1209,117]
[null,"Householder 45 to 64 years",865,107,704,92,390,56,620,100,652,86,415,81,467,94,3169,244,304,45,520,121,1401,207,488,63,354,68,1060,146,1477,176,300,45,324,42,666,124,2650,198,92,41,247,48,99,33,817,125,419,95,504,80,454,74,481,99,956,133,1516,184,1104,141,686,127,2976,253,624,80,758,150,93,25,926,120,1659,165]
[null,"Householder 65 years and over",307,77,102,42,82,25,118,37,103,36,108,42,57,35,723,111,90,28,212,102,711,130,85,42,134,35,369,80,717,134,69,19,49,17,223,58,538,124,89,35,27,14,52,20,256,60,75,50,246,54,117,42,169,39,296,113,482,118,213,58,226,71,1043,140,121,58,429,119,51,28,216,76,312,78]
[null,"Other family:",156,71,135,74,72,25,82,41,78,46,216,72,205,104,1400,248,81,32,335,130,473,129,157,66,76,39,315,151,758,186,61,28,86,27,264,113,864,212,3,5,31,14,24,12,356,106,282,100,211,76,194,71,123,84,205,82,983,213,443,135,286,108,1440,256,216,87,590,174,16,8,291,132,364,117]
[null,"Male householder, no spouse present:",29,26,0,114,26,17,25,23,56,40,10,16,37,32,307,122,28,18,68,54,117,76,25,28,32,29,75,68,234,103,30,20,23,14,89,56,306,133,0,114,7,8,18,10,143,71,111,57,58,53,59,54,33,25,86,57,277,99,153,71,127,82,393,135,58,38,348,148,7,5,101,65,132,82]
[null,"Householder under 25 years",0,114,0,114,0,114,0,114,0,114,0,114,0,114,16,25,9,12,0,114,21,33,0,114,0,114,0,114,14,21,0,114,0,114,15,22,41,65,0,114,0,114,0,114,8,13,0,114,0,114,0,114,0,114,0,114,0,114,14,19,45,63,6,11,0,114,0,114,0,114,0,114,0,114]
[null,"Householder 25 to 44 years",0,114,0,114,8,9,0,114,24,27,10,16,0,114,91,65,5,6,11,19,17,27,14,22,12,18,19,31,64,51,0,114,10,11,0,114,120,90,0,114,0,114,4,6,79,63,23,23,38,47,35,43,23,24,43,40,78,55,60,45,38,45,160,87,38,30,129,87,4,5,48,46,60,53]
[null,"Householder 45 to 64 years",19,21,0,114,4,7,17,20,25,25,0,114,37,32,191,99,11,10,57,51,44,36,11,17,11,17,56,58,115,81,27,20,11,8,74,55,103,63,0,114,7,8,14,9,47,47,88,54,20,22,24,23,0,114,23,27,146,72,64,57,44,35,189,98,20,23,121,77,3,3,36,35,40,40]
[null,"Householder 65 years and over",10,17,0,114,14,14,8,14,7,12,0,114,0,114,9,14,3,5,0,114,35,30,0,114,9,14,0,114,41,34,3,5,2,3,0,114,42,40,0,114,0,114,0,114,9,14,0,114,0,114,0,114,10,15,20,23,53,44,15,23,0,114,38,33,0,114,98,82,0,114,17,26,32,45]
[null,"Female householder, no spouse present:",127,69,135,74,46,21,57,36,22,25,206,74,168,91,1093,211,53,24,267,123,356,107,132,60,44,29,240,114,524,152,31,19,63,24,175,107,558,160,3,5,24,11,6,8,213,76,171,85,153,71,135,56,90,76,119,64,706,186,290,114,159,76,1047,219,158,82,242,137,9,7,190,114,232,82]
[null,"Householder under 25 years",0,114,0,114,0,114,0,114,0,114,0,114,0,114,0,114,0,114,0,114,0,114,0,114,0,114,0,114,40,57,0,114,0,114,0,114,0,114,0,114,0,114,0,114,13,21,0,114,0,114,0,114,46,71,0,114,48,77,8,14,0,114,92,83,0,114,49,79,0,114,0,114,0,114]
[null,"Householder 25 to 44 years",29,33,68,56,0,114,0,114,12,20,74,51,84,63,697,178,18,16,48,53,72,44,69,47,10,16,115,84,170,102,0,114,27,19,57,46,113,77,0,114,3,5,0,114,94,53,12,17,83,66,25,32,28,28,24,28,286,120,154,93,26,31,410,142,75,62,100,89,6,6,100,75,89,50]
[null,"Householder 45 to 64 years",56,45,46,47,41,19,25,24,10,14,132,63,65,58,339,122,28,14,168,93,230,101,51,38,18,20,125,75,263,91,27,17,23,13,118,106,373,125,0,114,9,8,6,8,94,53,147,80,52,36,85,45,0,114,73,52,215,76,102,58,76,58,439,145,83,49,66,63,0,114,81,80,90,55]
[null,"Householder 65 years and over",42,44,21,20,5,7,32,25,0,114,0,114,19,20,57,44,7,7,51,76,54,38,12,19,16,14,0,114,51,39,4,5,13,10,0,114,72,55,3,5,12,9,0,114,12,19,12,19,18,17,25,25,16,20,22,25,157,76,26,39,57,45,106,78,0,114,27,31,3,4,9,15,53,38]
[null,"Nonfamily households:",615,163,251,92,103,45,314,81,240,69,279,101,341,100,3279,393,135,32,554,154,2283,272,222,97,323,113,832,162,2491,341,172,37,138,38,553,170,1520,244,145,54,80,29,70,24,1416,239,263,96,423,116,413,126,283,124,743,207,4121,345,985,193,701,165,2711,324,252,88,1357,292,96,32,639,147,752,145]
[null,"Male householder:",294,144,184,82,57,32,174,75,127,52,154,67,164,79,1841,318,69,28,330,138,838,175,118,65,219,103,288,113,1346,263,88,29,45,17,188,94,543,145,35,22,37,18,43,18,597,173,160,78,197,76,263,107,145,94,368,127,2040,258,609,145,215,93,1214,240,118,68,761,229,54,31,253,106,406,119]
[null,"Householder under 25 years",0,114,0,114,0,114,0,114,0,114,0,114,0,114,160,106,8,12,0,114,20,26,0,114,12,18,34,53,104,88,0,114,0,114,0,114,12,18,0,114,0,114,4,6,130,71,0,114,0,114,23,38,9,15,0,114,225,124,48,53,0,114,25,30,0,114,18,29,0,114,0,114,18,32]
[null,"Householder 25 to 44 years",42,48,120,89,29,23,27,32,22,18,47,41,18,22,655,214,8,8,36,34,343,136,45,35,92,79,100,69,427,162,24,17,13,10,59,50,253,98,10,10,0,114,15,12,245,126,79,61,92,54,78,66,66,78,147,100,978,217,166,80,53,44,429,169,27,27,209,114,29,31,114,73,167,74]
[null,"Householder 45 to 64 years",219,140,40,36,24,19,103,59,78,46,107,52,108,68,745,174,37,16,175,114,218,79,46,51,96,63,30,30,587,190,25,14,18,11,77,55,235,101,16,17,31,18,19,11,136,66,60,42,82,46,103,63,60,42,148,92,578,150,333,97,105,58,560,176,91,65,344,142,9,7,101,70,133,77]
[null,"Householder 65 years and over",33,39,24,27,4,8,44,38,27,25,0,114,38,27,281,129,16,17,119,69,257,106,27,31,19,20,124,82,228,97,39,23,14,8,52,50,43,40,9,11,6,7,5,7,86,74,21,26,23,28,59,43,10,17,73,53,259,95,62,50,57,45,200,66,0,114,190,102,16,10,38,34,88,49]
[null,"Female householder:",321,163,67,54,46,30,140,60,113,48,125,72,177,70,1438,272,66,26,224,82,1445,212,104,59,104,50,544,151,1145,208,84,24,93,34,365,148,977,203,110,50,43,25,27,15,819,194,103,52,226,90,150,72,138,78,375,160,2081,252,376,124,486,154,1497,206,134,58,596,171,42,15,386,101,346,108]
[null,"Householder under 25 years",0,114,0,114,0,114,14,22,0,114,0,114,9,14,79,59,9,14,0,114,107,79,0,114,0,114,56,76,12,19,7,10,11,18,23,36,36,44,11,17,5,7,0,114,29,33,0,114,0,114,12,19,0,114,49,79,68,44,18,26,0,114,15,24,0,114,15,24,0,114,17,27,10,16]
[null,"Householder 25 to 44 years",0,114,0,114,0,114,26,26,36,31,24,26,3,6,275,130,2,4,51,48,221,90,49,38,23,24,44,68,184,98,0,114,15,13,24,27,233,123,0,114,0,114,0,114,283,131,0,114,53,55,32,41,83,59,51,62,752,164,63,45,12,20,281,127,27,26,75,70,3,5,73,49,24,31]
[null,"Householder 45 to 64 years",77,62,30,33,36,29,24,27,69,37,32,48,88,40,668,211,29,15,114,57,359,125,28,26,55,38,321,136,563,172,37,15,38,23,191,115,366,109,43,30,16,19,10,9,298,136,61,42,84,66,47,39,46,37,172,83,508,124,143,73,180,103,531,138,72,47,239,117,23,12,137,70,173,72]
[null,"Householder 65 years and over",244,146,37,34,10,10,76,35,8,12,69,47,77,57,416,140,26,17,59,42,758,154,27,32,26,24,123,61,386,108,40,16,29,14,127,80,342,124,56,33,22,14,17,12,209,78,42,29,89,54,59,41,9,16,103,74,753,136,152,74,294,122,670,148,35,31,267,103,16,9,159,62,139,69]

{"sheet":"ACS_Table_B03002","index":56,"n_rows":108,"n_cols":76,"rows_kept":108,"cut":false,"hidden":true,"merged":[]}
[null,"B03002. HISPANIC OR LATINO ORIGIN BY RACE"]
[null,"Universe:  TOTAL POPULATION"]
[null,"Data Set: 2015-2019 American Community Survey 5-Year Estimates"]
[]
[null,null,"Atkinson",null,"Auburn",null,"Brentwood",null,"Candia",null,"Chester",null,"Danville",null,"Deerfield",null,"Derry",null,"East Kingston",null,"Epping",null,"Exeter",null,"Fremont",null,"Greenland",null,"Hampstead",null,"Hampton",null,"Hampton Falls",null,"Kensington",null,"Kingston",null,"Londonderry",null,"New Castle",null,"Newfields",null,"Newington",null,"Newmarket",null,"Newton",null,"North Hampton",null,"Northwood",null,"Nottingham",null,"Plaistow",null,"Portsmouth",null,"Raymond",null,"Rye",null,"Salem",null,"Sandown",null,"Seabrook",null,"South Hampton",null,"Stratham",null,"Windham"]
[null,null,"Estimate","Margin Of Error","Estimate","Margin Of Error","Estimate","Margin Of Error","Estimate","Margin Of Error","Estimate","Margin Of Error","Estimate","Margin Of Error","Estimate","Margin Of Error","Estimate","Margin Of Error","Estimate","Margin Of Error","Estimate","Margin Of Error","Estimate","Margin Of Error","Estimate","Margin Of Error","Estimate","Margin Of Error","Estimate","Margin Of Error","Estimate","Margin Of Error","Estimate","Margin Of Error","Estimate","Margin Of Error","Estimate","Margin Of Error","Estimate","Margin Of Error","Estimate","Margin Of Error","Estimate","Margin Of Error","Estimate","Margin Of Error","Estimate","Margin Of Error","Estimate","Margin Of Error","Estimate","Margin Of Error","Estimate","Margin Of Error","Estimate","Margin Of Error","Estimate","Margin Of Error","Estimate","Margin Of Error","Estimate","Margin Of Error","Estimate","Margin Of Error","Estimate","Margin Of Error","Estimate","Margin Of Error","Estimate","Margin Of Error","Estimate","Margin Of Error","Estimate","Margin Of Error","Estimate","Margin Of Error"]
[null,"Total:",6952,33,5446,21,4612,33,3936,18,5129,26,4515,29,4476,31,33448,33,2442,194,6966,22,15077,30,4677,25,4009,19,8621,20,15467,18,2383,164,2291,139,6260,29,25927,34,835,178,1757,227,713,89,9063,22,4920,22,4457,17,4299,18,5058,23,7689,26,21775,26,10428,23,5466,31,29234,32,6389,17,8830,26,775,94,7427,21,14610,19]
[null,"Not Hispanic or Latino:",6807,116,5339,76,4568,37,3803,107,5010,103,4367,125,4457,38,32044,482,2396,189,6848,133,14724,175,4644,46,3913,70,8388,141,15276,112,2373,165,2280,140,6241,42,25103,339,835,178,1755,227,711,89,8992,66,4803,96,4297,160,4134,102,4966,92,7455,185,21083,187,10205,166,5466,31,26720,446,6215,171,8717,77,757,89,7374,48,14132,228]
[null,"White alone",6627,190,5276,96,4385,132,3610,187,4823,134,4120,204,4336,91,30936,586,2382,188,6579,192,13939,255,4554,96,3554,166,8087,222,14717,250,2326,156,2191,136,6049,173,24011,450,835,178,1675,221,683,87,8422,286,4733,118,3999,239,4018,136,4881,124,7198,257,19092,373,10014,214,5365,106,24886,651,6035,206,8354,231,721,86,6824,306,13232,392]
[null,"Black or African American alone",0,16,1,3,36,36,28,47,19,24,26,28,64,66,265,147,0,11,22,34,236,138,0,11,69,57,51,60,44,41,7,12,0,11,0,16,276,135,0,11,17,18,11,18,85,69,0,11,68,96,51,73,16,27,27,30,460,201,0,18,0,16,148,125,28,43,111,157,0,11,2,5,131,122]
[null,"American Indian and Alaska Native alone",0,16,0,16,0,11,0,11,0,16,0,11,0,11,17,27,0,11,0,16,0,18,0,11,0,11,0,16,27,49,0,11,0,11,0,16,19,34,0,11,0,11,0,11,0,16,0,11,0,11,0,11,0,16,0,16,15,35,0,18,0,16,14,23,0,16,0,16,0,11,0,16,0,18]
[null,"Asian alone",110,90,42,62,84,90,15,22,110,77,41,38,18,33,413,190,0,11,33,43,353,162,81,81,180,113,137,142,147,88,30,31,22,16,55,57,440,198,0,11,29,26,15,20,332,240,55,59,136,97,21,34,53,62,54,74,1048,291,30,38,37,42,1078,352,36,45,111,113,20,17,455,282,492,238]
[null,"Native Hawaiian and Other Pacific Islander alone",0,16,0,16,0,11,0,11,0,16,0,11,0,11,0,24,0,11,0,16,0,18,0,11,0,11,0,16,0,18,0,11,0,11,0,16,26,25,0,11,0,11,0,11,0,16,0,11,0,11,0,11,0,16,0,16,0,21,0,18,0,16,0,21,0,16,0,16,0,11,0,16,0,18]
[null,"Some other race alone",0,16,0,16,0,11,0,11,31,48,0,11,13,22,17,27,0,11,0,16,16,27,0,11,28,39,0,16,0,18,0,11,0,11,0,16,0,21,0,11,9,18,0,11,0,16,0,11,0,11,0,11,0,16,45,69,8,15,83,126,0,16,0,21,0,16,0,16,0,11,0,16,0,18]
[null,"Two or more races:",70,79,20,33,63,54,150,131,27,30,180,165,26,31,396,180,14,15,214,144,180,123,9,12,82,63,113,68,341,185,10,14,67,72,137,146,331,177,0,11,25,24,2,3,153,115,15,23,94,83,44,53,16,22,131,121,460,169,78,79,64,67,594,244,116,113,141,108,16,14,93,89,277,175]
[null,"Two races including Some other race",0,16,0,16,11,18,0,11,0,16,0,11,0,11,9,14,0,11,0,16,0,18,0,11,0,11,0,16,15,23,0,11,0,11,0,16,7,11,0,11,0,11,0,11,0,16,0,11,0,11,11,16,0,16,0,16,0,21,0,18,0,16,0,21,0,16,31,34,0,11,0,16,1,3]
[null,"Two races excluding Some other race, and three or more races",70,79,20,33,52,51,150,131,27,30,180,165,26,31,387,178,14,15,214,144,180,123,9,12,82,63,113,68,326,183,10,14,67,72,137,146,324,176,0,11,25,24,2,3,153,115,15,23,94,83,33,50,16,22,131,121,460,169,78,79,64,67,594,244,116,113,110,84,16,14,93,89,276,174]
[null,"Hispanic or Latino:",145,107,107,74,44,20,133,105,119,97,148,122,19,20,1404,480,46,37,118,132,353,168,33,36,96,70,233,137,191,110,10,14,11,11,19,31,824,340,0,11,2,4,2,4,71,59,117,94,160,157,165,98,92,89,234,186,692,185,223,166,0,16,2514,446,174,169,113,72,18,17,53,46,478,227]
[null,"White alone",97,79,86,68,30,19,85,90,119,97,148,122,9,13,726,307,46,37,118,132,315,170,0,11,76,64,184,124,171,104,10,14,11,11,19,31,655,292,0,11,0,11,2,4,71,59,75,86,56,51,92,72,92,89,203,178,515,176,83,61,0,16,1818,470,174,169,102,72,9,14,52,47,464,218]
[null,"Black or African American alone",0,16,0,16,6,12,0,11,0,16,0,11,0,11,0,24,0,11,0,16,0,18,14,22,0,11,0,16,0,18,0,11,0,11,0,16,36,43,0,11,0,11,0,11,0,16,0,11,0,11,0,11,0,16,0,16,80,83,0,18,0,16,115,119,0,16,0,16,0,11,0,16,0,18]
[null,"American Indian and Alaska Native alone",0,16,0,16,0,11,0,11,0,16,0,11,0,11,0,24,0,11,0,16,0,18,0,11,0,11,0,16,0,18,0,11,0,11,0,16,0,21,0,11,0,11,0,11,0,16,0,11,0,11,26,39,0,16,0,16,0,21,0,18,0,16,0,21,0,16,0,16,9,10,0,16,0,18]
[null,"Asian alone",0,16,0,16,0,11,0,11,0,16,0,11,0,11,0,24,0,11,0,16,0,18,0,11,0,11,0,16,0,18,0,11,0,11,0,16,8,12,0,11,0,11,0,11,0,16,0,11,0,11,0,11,0,16,0,16,0,21,0,18,0,16,0,21,0,16,0,16,0,11,0,16,0,18]
[null,"Native Hawaiian and Other Pacific Islander alone",0,16,0,16,0,11,0,11,0,16,0,11,0,11,0,24,0,11,0,16,0,18,0,11,0,11,0,16,0,18,0,11,0,11,0,16,0,21,0,11,0,11,0,11,0,16,0,11,0,11,0,11,0,16,0,16,0,21,0,18,0,16,0,21,0,16,0,16,0,11,0,16,0,18]
[null,"Some other race alone",48,77,0,16,8,16,48,54,0,16,0,11,10,15,508,393,0,11,0,16,38,51,19,28,20,25,49,43,20,25,0,11,0,11,0,16,92,76,0,11,0,11,0,11,0,16,42,41,104,154,25,38,0,16,0,16,53,58,140,161,0,16,447,245,0,16,0,16,0,11,0,16,0,18]
[null,"Two or more races:",0,16,21,32,0,11,0,11,0,16,0,11,0,11,170,133,0,11,0,16,0,18,0,11,0,11,0,16,0,18,0,11,0,11,0,16,33,42,0,11,2,4,0,11,0,16,0,11,0,11,22,36,0,16,31,49,44,47,0,18,0,16,134,82,0,16,11,18,0,11,1,4,14,23]
[null,"Two races including Some other race",0,16,0,16,0,11,0,11,0,16,0,11,0,11,146,120,0,11,0,16,0,18,0,11,0,11,0,16,0,18,0,11,0,11,0,16,0,21,0,11,2,4,0,11,0,16,0,11,0,11,0,11,0,16,0,16,23,33,0,18,0,16,96,69,0,16,0,16,0,11,1,4,14,23]
[null,"Two races excluding Some other race, and three or more races",0,16,21,32,0,11,0,11,0,16,0,11,0,11,24,39,0,11,0,16,0,18,0,11,0,11,0,16,0,18,0,11,0,11,0,16,33,42,0,11,0,11,0,11,0,16,0,11,0,11,22,36,0,16,31,49,21,35,0,18,0,16,38,45,0,16,11,18,0,11,0,16,0,18]
[]
[]
[]
[null,null,"Atkinson",null,"Auburn",null,"Brentwood",null,"Candia",null,"Chester",null,"Danville",null,"Deerfield",null,"Derry",null,"East Kingston",null,"Epping",null,"Exeter",null,"Fremont",null,"Greenland",null,"Hampstead",null,"Hampton",null,"Hampton Falls",null,"Kensington",null,"Kingston",null,"Londonderry",null,"New Castle",null,"Newfields",null,"Newington",null,"Newmarket",null,"Newton",null,"North Hampton",null,"Northwood",null,"Nottingham",null,"Plaistow",null,"Portsmouth",null,"Raymond",null,"Rye",null,"Salem",null,"Sandown",null,"Seabrook",null,"South Hampton",null,"Stratham",null,"Windham"]
[null,null,"Estimate","Margin Of Error","Estimate","Margin Of Error","Estimate","Margin Of Error","Estimate","Margin Of Error","Estimate","Margin Of Error","Estimate","Margin Of Error","Estimate","Margin Of Error","Estimate","Margin Of Error","Estimate","Margin Of Error","Estimate","Margin Of Error","Estimate","Margin Of Error","Estimate","Margin Of Error","Estimate","Margin Of Error","Estimate","Margin Of Error","Estimate","Margin Of Error","Estimate","Margin Of Error","Estimate","Margin Of Error","Estimate","Margin Of Error","Estimate","Margin Of Error","Estimate","Margin Of Error","Estimate","Margin Of Error","Estimate","Margin Of Error","Estimate","Margin Of Error","Estimate","Margin Of Error","Estimate","Margin Of Error","Estimate","Margin Of Error","Estimate","Margin Of Error","Estimate","Margin Of Error","Estimate","Margin Of Error","Estimate","Margin Of Error","Estimate","Margin Of Error","Estimate","Margin Of Error","Estimate","Margin Of Error","Estimate","Margin Of Error","Estimate","Margin Of Error","Estimate","Margin Of Error","Estimate","Margin Of Error"]
[null,"Total:",{"$f":"C7","v":6952},33,5446,21,4612,33,3936,18,5129,26,4515,29,4476,31,33448,33,2442,194,6966,22,15077,30,{"$f":"Y7","v":4677},25,4009,19,8621,20,15467,18,2383,164,2291,139,6260,29,25927,34,{"$f":"AO7","v":835},178,1757,227,713,89,9063,22,4920,22,4457,17,4299,18,5058,23,{"$f":"BE7","v":7689},26,21775,26,10428,23,5466,31,29234,32,6389,17,8830,26,775,94,7427,21,14610,19]
[null,"Not Hispanic or Latino:",{"$f":"C8","v":6807},116,5339,76,4568,37,3803,107,5010,103,4367,125,4457,38,32044,482,{"$f":"S8","v":2396},189,6848,133,14724,175,{"$f":"Y8","v":4644},46,3913,70,8388,141,15276,112,2373,165,2280,140,6241,42,25103,339,{"$f":"AO8","v":835},178,1755,227,711,89,8992,66,4803,96,4297,160,4134,102,4966,92,{"$f":"BE8","v":7455},185,21083,187,10205,166,5466,31,26720,446,6215,171,8717,77,757,89,7374,48,14132,228]
[null,"White",6627,190,5276,96,4385,132,3610,187,4823,134,4120,204,4336,91,30936,586,2382,188,6579,192,13939,255,{"$f":"Y9","v":4554},96,3554,166,8087,222,14717,250,2326,156,2191,136,6049,173,24011,450,{"$f":"AO9","v":835},178,1675,221,683,87,8422,286,4733,118,3999,239,4018,136,4881,124,{"$f":"BE9","v":7198},257,19092,373,10014,214,5365,106,24886,651,6035,206,8354,231,721,86,6824,306,13232,392]
[null,"Black",0,16,1,3,36,36,28,47,19,24,26,28,64,66,265,147,0,11,22,34,236,138,{"$f":"Y10","v":0},11,69,57,51,60,44,41,7,12,0,11,0,16,276,135,{"$f":"AO10","v":0},11,17,18,11,18,85,69,0,11,68,96,51,73,16,27,{"$f":"BE10","v":27},30,460,201,0,18,0,16,148,125,28,43,111,157,0,11,2,5,131,122]
[null,"American Indian",{"$f":"$C$11","v":0},{"$f":"D11","v":16},{"$f":"E11","v":0},16,0,11,0,11,0,16,0,11,0,11,17,27,0,11,0,16,0,18,{"$f":"Y11","v":0},11,0,11,0,16,27,49,0,11,0,11,0,16,19,34,{"$f":"AO11","v":0},11,0,11,0,11,0,16,0,11,0,11,0,11,0,16,{"$f":"BE11","v":0},16,15,35,0,18,0,16,14,23,0,16,0,16,0,11,0,16,0,18]
[null,"Asian &Pacific Is.",{"$f":"C12+C13","v":110},{"$f":"SQRT((D12^2)+(D13^2))","v":91.411159056211517},{"$f":"E12+E13","v":42},{"$f":"SQRT((F12^2)+(F13^2))","v":64.031242374328485},{"$f":"G12+G13","v":84},{"$f":"SQRT((H12^2)+(H13^2))","v":90.669730340395304},{"$f":"I12+I13","v":15},{"$f":"SQRT((J12^2)+(J13^2))","v":24.596747752497688},{"$f":"K12+K13","v":110},{"$f":"SQRT((L12^2)+(L13^2))","v":78.644770964127048},{"$f":"M12+M13","v":41},{"$f":"SQRT((N12^2)+(N13^2))","v":39.560080889704963},{"$f":"O12+O13","v":18},{"$f":"SQRT((P12^2)+(P13^2))","v":34.785054261852174},{"$f":"Q12+Q13","v":413},{"$f":"SQRT((R12^2)+(R13^2))","v":191.5097908724251},{"$f":"S12+S13","v":0},{"$f":"SQRT((T12^2)+(T13^2))","v":15.556349186104045},{"$f":"U12+U13","v":33},{"$f":"SQRT((V12^2)+(V13^2))","v":45.880278987817846},{"$f":"W12+W13","v":353},{"$f":"SQRT((X12^2)+(X13^2))","v":162.9969324864735},{"$f":"Y12+Y13","v":81},{"$f":"SQRT((Z12^2)+(Z13^2))","v":81.743501270743224},{"$f":"AA12+AA13","v":180},{"$f":"SQRT((AB12^2)+(AB13^2))","v":113.53413583587978},{"$f":"AC12+AC13","v":137},{"$f":"SQRT((AD12^2)+(AD13^2))","v":142.89856542317},{"$f":"AE12+AE13","v":147},{"$f":"SQRT((AF12^2)+(AF13^2))","v":89.822046291542478},{"$f":"AG12+AG13","v":30},{"$f":"SQRT((AH12^2)+(AH13^2))","v":32.893768406797051},{"$f":"AI12+AI13","v":22},{"$f":"SQRT((AJ12^2)+(AJ13^2))","v":19.416487838947599},{"$f":"AK12+AK13","v":55},{"$f":"SQRT((AL12^2)+(AL13^2))","v":59.203040462462738},{"$f":"AM12+AM13","v":466},{"$f":"SQRT((AN12^2)+(AN13^2))","v":199.5720421301541},{"$f":"AO12+AO13","v":0},{"$f":"SQRT((AP12^2)+(AP13^2))","v":15.556349186104045},{"$f":"AQ12+AQ13","v":29},{"$f":"SQRT((AR12^2)+(AR13^2))","v":28.231188426986208},{"$f":"AS12+AS13","v":15},{"$f":"SQRT((AT12^2)+(AT13^2))","v":22.825424421026653},{"$f":"AU12+AU13","v":332},{"$f":"SQRT((AV12^2)+(AV13^2))","v":240.53274205396653},{"$f":"AW12+AW13","v":55},{"$f":"SQRT((AX12^2)+(AX13^2))","v":60.016664352494629},{"$f":"AY12+AY13","v":136},{"$f":"SQRT((AZ12^2)+(AZ13^2))","v":97.621718894926246},{"$f":"BA12+BA13","v":21},{"$f":"SQRT((BB12^2)+(BB13^2))","v":35.735136770411273},{"$f":"BC12+BC13","v":53},{"$f":"SQRT((BD12^2)+(BD13^2))","v":64.031242374328485},{"$f":"BE12+BE13","v":54},{"$f":"SQRT((BF12^2)+(BF13^2))","v":75.709972922990801},{"$f":"BG12+BG13","v":1048},{"$f":"SQRT((BH12^2)+(BH13^2))","v":291.75674799394102},{"$f":"BI12+BI13","v":30},{"$f":"SQRT((BJ12^2)+(BJ13^2))","v":42.047592083257278},{"$f":"BK12+BK13","v":37},{"$f":"SQRT((BL12^2)+(BL13^2))","v":44.944410108488462},{"$f":"BM12+BM13","v":1078},{"$f":"SQRT((BN12^2)+(BN13^2))","v":352.62586405424094},{"$f":"BO12+BO13","v":36},{"$f":"SQRT((BP12^2)+(BP13^2))","v":47.75981574503821},{"$f":"BQ12+BQ13","v":111},{"$f":"SQRT((BR12^2)+(BR13^2))","v":114.12712210513327},{"$f":"BS12+BS13","v":20},{"$f":"SQRT((BT12^2)+(BT13^2))","v":20.248456731316587},{"$f":"BU12+BU13","v":455},{"$f":"SQRT((BV12^2)+(BV13^2))","v":282.45353600194142},{"$f":"BW12+BW13","v":492},{"$f":"SQRT((BX12^2)+(BX13^2))","v":238.67970169245646}]
[null,"Other*",{"$f":"C14+C15","v":70},{"$f":"SQRT((D14^2)+(D15^2))","v":80.603970125546539},{"$f":"E14+E15","v":20},{"$f":"SQRT((F14^2)+(F15^2))","v":36.674241641784498},{"$f":"G14+G15","v":63},{"$f":"SQRT((H14^2)+(H15^2))","v":55.108982933819419},{"$f":"I14+I15","v":150},{"$f":"SQRT((J14^2)+(J15^2))","v":131.46102083887831},{"$f":"K14+K15","v":58},{"$f":"SQRT((L14^2)+(L15^2))","v":56.603886792339623},{"$f":"M14+M15","v":180},{"$f":"SQRT((N14^2)+(N15^2))","v":165.36626016210198},{"$f":"O14+O15","v":39},{"$f":"SQRT((P14^2)+(P15^2))","v":38.013155617496423},{"$f":"Q14+Q15","v":413},{"$f":"SQRT((R14^2)+(R15^2))","v":182.01373574541017},{"$f":"S14+S15","v":14},{"$f":"SQRT((T14^2)+(T15^2))","v":18.601075237738275},{"$f":"U14+U15","v":214},{"$f":"SQRT((V14^2)+(V15^2))","v":144.88616221019868},{"$f":"W14+W15","v":196},{"$f":"SQRT((X14^2)+(X15^2))","v":125.92855117089213},{"$f":"Y14+Y15","v":9},{"$f":"SQRT((Z14^2)+(Z15^2))","v":16.278820596099706},{"$f":"AA14+AA15","v":110},{"$f":"SQRT((AB14^2)+(AB15^2))","v":74.094534211370814},{"$f":"AC14+AC15","v":113},{"$f":"SQRT((AD14^2)+(AD15^2))","v":69.856996786291916},{"$f":"AE14+AE15","v":341},{"$f":"SQRT((AF14^2)+(AF15^2))","v":185.87361297397757},{"$f":"AG14+AG15","v":10},{"$f":"SQRT((AH14^2)+(AH15^2))","v":17.804493814764857},{"$f":"AI14+AI15","v":67},{"$f":"SQRT((AJ14^2)+(AJ15^2))","v":72.835430938520574},{"$f":"AK14+AK15","v":137},{"$f":"SQRT((AL14^2)+(AL15^2))","v":146.87409574189726},{"$f":"AM14+AM15","v":331},{"$f":"SQRT((AN14^2)+(AN15^2))","v":178.24140933015536},{"$f":"AO14+AO15","v":0},{"$f":"SQRT((AP14^2)+(AP15^2))","v":15.556349186104045},{"$f":"AQ14+AQ15","v":34},{"$f":"SQRT((AR14^2)+(AR15^2))","v":30},{"$f":"AS14+AS15","v":2},{"$f":"SQRT((AT14^2)+(AT15^2))","v":11.401754250991379},{"$f":"AU14+AU15","v":153},{"$f":"SQRT((AV14^2)+(AV15^2))","v":116.1077086157504},{"$f":"AW14+AW15","v":15},{"$f":"SQRT((AX14^2)+(AX15^2))","v":25.495097567963924},{"$f":"AY14+AY15","v":94},{"$f":"SQRT((AZ14^2)+(AZ15^2))","v":83.725742755737912},{"$f":"BA14+BA15","v":44},{"$f":"SQRT((BB14^2)+(BB15^2))","v":54.12947441089743},{"$f":"BC14+BC15","v":16},{"$f":"SQRT((BD14^2)+(BD15^2))","v":27.202941017470888},{"$f":"BE14+BE15","v":176},{"$f":"SQRT((BF14^2)+(BF15^2))","v":139.29106216839614},{"$f":"BG14+BG15","v":468},{"$f":"SQRT((BH14^2)+(BH15^2))","v":169.66437457521835},{"$f":"BI14+BI15","v":161},{"$f":"SQRT((BJ14^2)+(BJ15^2))","v":148.71785366928881},{"$f":"BK14+BK15","v":64},{"$f":"SQRT((BL14^2)+(BL15^2))","v":68.8839603971781},{"$f":"BM14+BM15","v":594},{"$f":"SQRT((BN14^2)+(BN15^2))","v":244.90202122481554},{"$f":"BO14+BO15","v":116},{"$f":"SQRT((BP14^2)+(BP15^2))","v":114.12712210513327},{"$f":"BQ14+BQ15","v":141},{"$f":"SQRT((BR14^2)+(BR15^2))","v":109.17875251164945},{"$f":"BS14+BS15","v":16},{"$f":"SQRT((BT14^2)+(BT15^2))","v":17.804493814764857},{"$f":"BU14+BU15","v":93},{"$f":"SQRT((BV14^2)+(BV15^2))","v":90.426765949026404},{"$f":"BW14+BW15","v":277},{"$f":"SQRT((BX14^2)+(BX15^2))","v":175.9232787325202}]
[null,"Hispanic or Latino:",{"$f":"C18","v":145},{"$f":"D18","v":107},{"$f":"E18","v":107},74,44,20,133,105,119,97,148,122,19,20,1404,480,46,37,118,132,353,168,{"$f":"Y18","v":33},36,96,70,233,137,191,110,10,14,11,11,19,31,824,340,{"$f":"AO18","v":0},11,2,4,2,4,71,59,117,94,160,157,165,98,92,89,{"$f":"BE18","v":234},186,692,185,223,166,0,16,2514,446,174,169,113,72,18,17,53,46,478,227]
[]
[]
[]
[]
[]
[]
[]
[]
[]
[]
[]
[]
[]
[]
[]
[]
[]
[]
[]
[]
[]
[]
[]
[]
[]
[]
[]
[]
[]
[]
[]
[]
[]
[]
[]
[]
[]
[null,"B03002. HISPANIC OR LATINO ORIGIN BY RACE"]
[null,"Universe:  TOTAL POPULATION"]
[null,"Data Set: 2010-2014 American Community Survey 5-Year Estimates"]
[]
[null,null,"Atkinson",null,"Auburn",null,"Brentwood",null,"Candia",null,"Chester",null,"Danville",null,"Deerfield",null,"Derry",null,"East Kingston",null,"Epping",null,"Exeter",null,"Fremont",null,"Greenland",null,"Hampstead",null,"Hampton",null,"Hampton Falls",null,"Kensington",null,"Kingston",null,"Londonderry",null,"New Castle",null,"Newfields",null,"Newington",null,"Newmarket",null,"Newton",null,"North Hampton",null,"Northwood",null,"Nottingham",null,"Plaistow",null,"Portsmouth",null,"Raymond",null,"Rye",null,"Salem",null,"Sandown",null,"Seabrook",null,"South Hampton",null,"Stratham",null,"Windham"]
[null,null,"Estimate","Margin Of Error","Estimate","Margin Of Error","Estimate","Margin Of Error","Estimate","Margin Of Error","Estimate","Margin Of Error","Estimate","Margin Of Error","Estimate","Margin Of Error","Estimate","Margin Of Error","Estimate","Margin Of Error","Estimate","Margin Of Error","Estimate","Margin Of Error","Estimate","Margin Of Error","Estimate","Margin Of Error","Estimate","Margin Of Error","Estimate","Margin Of Error","Estimate","Margin Of Error","Estimate","Margin Of Error","Estimate","Margin Of Error","Estimate","Margin Of Error","Estimate","Margin Of Error","Estimate","Margin Of Error","Estimate","Margin Of Error","Estimate","Margin Of Error","Estimate","Margin Of Error","Estimate","Margin Of Error","Estimate","Margin Of Error","Estimate","Margin Of Error","Estimate","Margin Of Error","Estimate","Margin Of Error","Estimate","Margin Of Error","Estimate","Margin Of Error","Estimate","Margin Of Error","Estimate","Margin Of Error","Estimate","Margin Of Error","Estimate","Margin Of Error","Estimate","Margin Of Error","Estimate","Margin Of Error"]
[null,"Total:",6788,19,5078,20,4598,18,3920,21,4802,18,4423,38,4330,19,33180,26,2453,130,6587,17,14434,32,4375,17,3668,15,8543,38,15073,30,2307,123,2055,149,6060,19,24247,24,980,160,1625,222,800,136,8928,25,4717,34,4344,22,4269,16,4855,17,7614,26,21366,32,10202,23,5315,18,28841,26,6133,38,8747,19,799,123,7303,19,13943,21]
[null,"Not Hispanic or Latino:",6572,169,5032,42,4496,94,3872,75,4684,76,4379,59,4304,45,32427,232,2430,128,6577,23,14271,160,4262,77,3619,61,8400,147,14870,132,2307,123,2027,145,5950,160,23616,249,918,133,1575,226,783,134,8530,283,4474,223,4299,44,4150,97,4832,39,7539,74,20681,272,9819,199,5261,54,27161,314,6091,56,8586,135,774,119,7235,84,13901,54]
[null,"White",6553,168,4869,131,4388,106,3742,154,4590,109,4291,100,4280,53,31214,485,2403,132,6361,171,13920,224,4124,136,3575,95,8092,210,14139,345,2142,138,1983,149,5817,220,22980,323,899,136,1534,226,762,130,7806,505,4381,229,4142,102,3994,137,4719,78,7451,116,18817,447,9354,275,5207,82,25366,592,5980,119,8264,254,756,117,7053,146,13002,329]
[null,"Black",0,15,16,26,12,17,0,11,11,18,0,11,3,6,442,273,0,11,0,15,15,26,83,108,1,4,24,27,117,128,6,9,9,14,0,15,198,143,0,11,4,6,0,11,109,94,54,63,56,48,0,11,36,34,3,6,419,175,171,144,16,26,150,137,15,25,8,13,3,4,0,15,68,57]
[null,"American Indian",0,15,8,14,0,11,0,11,0,11,0,11,0,11,29,31,0,11,0,15,35,50,0,11,0,11,9,15,0,17,22,24,0,11,98,150,0,20,0,11,4,9,0,11,18,21,0,11,0,11,0,11,0,11,23,33,0,20,35,39,0,15,28,25,0,15,6,10,0,11,0,15,0,17]
[null,"Asian &Pacific Is.",0,21.213203435596427,44,55.081757415681643,12,20.248456731316587,105,140.43147795277241,9,20.248456731316587,37,62.968245965724662,15,20.248456731316587,542,233.13729860320507,13,19.416487838947599,0,21.213203435596427,97,64.288412641781719,34,39.560080889704963,43,51.195702944680818,114,85.328775919967356,429,287.50304346215188,42,36.687872655688281,25,30.083217912982647,16,30.886890422961002,247,145.38225476308997,14,18.601075237738275,4,12.083045973594572,13,18.601075237738275,453,411.27363153987881,6,14.212670403551895,40,52.172789842982326,63,60.016664352494629,0,15.556349186104045,13,27.459060435491963,883,200.9975124224178,119,89.627004859026727,10,22.671568097509269,1084,404.08538701616021,0,21.213203435596427,240,229.49074055394914,8,14.212670403551895,36,42.720018726587654,562,279.51744131627993]
[null,"Other*",19,26.627053911388696,95,76.485292703891773,84,64.140470843298303,25,23.706539182259394,74,83.725742755737912,51,61.98386886924694,6,15.556349186104045,200,107.5174404457249,14,18.601075237738275,216,167.67229944149989,204,118.2285921425101,21,25.495097567963924,0,15.556349186104045,161,110.02726934719411,185,108.34205093129813,95,60.016664352494629,10,19.416487838947599,19,27.459060435491963,191,100.66280345788111,5,13.601470508735444,29,22.360679774997898,8,13.038404810405298,144,102.10778618695051,33,31.953090617340916,61,56.089214649520635,93,91.662424144247893,77,68.8839603971781,49,50.289163842720633,562,227.03523955544875,140,78.854296014865284,28,39,533,239.83536019528063,96,95.210293561148106,68,54.405882034941776,7,13.038404810405298,146,109.03669107231748,269,168.85792844874061]
[null,"Hispanic or Latino:",216,171,46,37,102,90,48,71,118,73,44,50,26,41,753,232,23,23,10,17,163,156,113,76,49,59,143,150,203,131,0,11,28,29,110,158,631,252,62,85,50,46,17,19,398,282,243,220,45,37,119,92,23,36,75,63,685,272,383,201,54,52,1680,314,42,39,161,137,25,32,68,85,42,49]
[]
[]
[]
[null,"B03002. HISPANIC OR LATINO ORIGIN BY RACE"]
[null,"Universe:  TOTAL POPULATION"]
[null,"Data Set: 2005-2009 American Community Survey 5-Year Estimates"]
[]
[null,null,"Atkinson",null,"Auburn",null,"Brentwood",null,"Candia",null,"Chester",null,"Danville",null,"Deerfield",null,"Derry",null,"East Kingston",null,"Epping",null,"Exeter",null,"Fremont",null,"Greenland",null,"Hampstead",null,"Hampton",null,"Hampton Falls",null,"Kensington",null,"Kingston",null,"Londonderry",null,"New Castle",null,"Newfields",null,"Newington",null,"Newmarket",null,"Newton",null,"North Hampton",null,"Northwood",null,"Nottingham",null,"Plaistow",null,"Portsmouth",null,"Raymond",null,"Rye",null,"Salem",null,"Sandown",null,"Seabrook",null,"South Hampton",null,"Stratham",null,"Windham"]
[null,null,"Estimate","Margin Of Error","Estimate","Margin Of Error","Estimate","Margin Of Error","Estimate","Margin Of Error","Estimate","Margin Of Error","Estimate","Margin Of Error","Estimate","Margin Of Error","Estimate","Margin Of Error","Estimate","Margin Of Error","Estimate","Margin Of Error","Estimate","Margin Of Error","Estimate","Margin Of Error","Estimate","Margin Of Error","Estimate","Margin Of Error","Estimate","Margin Of Error","Estimate","Margin Of Error","Estimate","Margin Of Error","Estimate","Margin Of Error","Estimate","Margin Of Error","Estimate","Margin Of Error","Estimate","Margin Of Error","Estimate","Margin Of Error","Estimate","Margin Of Error","Estimate","Margin Of Error","Estimate","Margin Of Error","Estimate","Margin Of Error","Estimate","Margin Of Error","Estimate","Margin Of Error","Estimate","Margin Of Error","Estimate","Margin Of Error","Estimate","Margin Of Error","Estimate","Margin Of Error","Estimate","Margin Of Error","Estimate","Margin Of Error","Estimate","Margin Of Error","Estimate","Margin Of Error","Estimate","Margin Of Error"]
[null,"Total:",6646,22,5157,19,3852,30,4170,24,4693,27,4357,22,4171,17,34194,21,2318,115,6228,15,14783,48,4083,20,3406,18,8879,20,15399,22,2342,147,2119,162,6233,31,24954,23,727,133,1836,240,691,109,9401,30,4523,25,4542,22,4077,20,4471,16,7665,30,20557,24,10181,17,5177,23,29423,51,5822,18,8494,17,798,129,7214,17,13097,27]
[null,"Not Hispanic or Latino:",6546,75,5061,76,3821,42,4025,146,4542,167,4270,91,4149,41,33464,319,2318,115,6182,75,14640,109,4001,96,3336,63,8814,54,15319,75,2331,147,2110,160,6233,31,24087,308,727,133,1816,239,687,107,9337,69,4450,83,4511,51,4065,27,4377,123,7536,93,20088,230,9635,382,5154,44,28062,370,5773,61,8476,32,798,129,7125,95,12773,203]
[null,"White",6419,171,4872,119,3709,88,3973,131,4455,186,4258,92,4104,59,32110,487,2255,113,5775,235,14049,262,3939,111,3225,108,8592,196,14886,225,2267,153,2051,169,6158,74,23108,490,727,133,1784,239,642,103,8517,301,4398,92,4430,108,4065,27,4130,188,7349,147,18434,446,9382,412,5132,54,27007,536,5722,82,8165,206,769,125,6915,200,12346,332]
[null,"Black",84,121,0,114,14,15,0,114,0,114,0,114,0,114,320,149,4,6,60,58,198,197,0,114,0,114,0,114,67,85,16,17,0,114,0,114,182,184,0,114,0,114,0,114,142,114,0,114,0,114,0,114,0,114,93,84,545,258,0,114,0,114,135,140,0,114,111,138,0,114,0,114,14,25]
[null,"American Indian",17,27,31,48,0,114,0,114,0,114,0,114,0,114,0,114,10,15,0,114,0,114,9,15,0,114,0,114,20,31,0,114,0,114,0,114,14,25,0,114,0,114,30,35,0,114,0,114,0,114,0,114,0,114,0,114,19,22,39,43,0,114,0,114,0,114,50,53,0,114,0,114,36,46]
[null,"Asian &Pacific Is.",0,161.22034611053283,54,131.22880781291889,6,114.43775600735974,10,115.11733144926528,0,161.22034611053283,12,115.7410903698423,0,161.22034611053283,561,277.47792705006287,36,122.93087488503447,276,236.31546711969574,234,195.64508682816444,0,161.22034611053283,111,151.6443206981389,222,223.29352879114074,186,180.54362353736008,31,120.16655108639841,46,120.48651376813922,30,121.14866899805379,456,271.13096466468011,0,161.22034611053283,10,114.52947218947619,6,114.43775600735974,516,291.2387336876742,52,121.14866899805379,81,146.49232061783991,0,161.22034611053283,118,164.07315441594946,39,122.93087488503447,911,257.43737102448819,65,129.76902558006668,0,161.22034611053283,407,295.84624384974029,17,116.10340218959993,102,165.51737068960466,14,115.11733144926528,111,164.07315441594946,254,253.12447530809817]
[null,"Other*",26,118.68024266911489,104,94.62557793746889,92,135.36986370680884,42,126.14277624977183,87,143.40502083260543,0,161.22034611053283,45,43.011626335213137,473,218.04815981796315,13,114.85643212288984,71,124.88794977899188,159,126.01587201618692,53,48.104053883222775,0,161.22034611053283,0,161.22034611053283,160,141.66156853571826,17,115.7410903698423,13,114.52947218947619,45,126.14277624977183,327,238.94769302087852,0,161.22034611053283,22,28.635642126552707,9,11.180339887498949,162,103.4456378974,0,161.22034611053283,0,161.22034611053283,0,161.22034611053283,129,102.83968105745953,55,137.01094846763161,179,149.68299836654796,149,178.22738285684386,22,119.25183436744275,513,242.19207253748004,34,120.48651376813922,48,127.45587471748802,15,13.341664064126334,99,188.40382161729099,123,167.70509831248424]
[null,"Hispanic or Latino:",100,76,96,73,31,25,145,140,151,165,87,89,22,37,730,320,0,114,46,74,143,101,82,93,70,62,65,52,80,75,11,12,9,10,0,114,867,309,0,114,20,16,4,6,64,64,73,80,31,47,12,19,94,125,129,86,469,229,546,381,23,39,1361,362,49,60,18,29,0,114,89,90,324,203]

{"sheet":"RentalHousingCost","index":57,"n_rows":124,"n_cols":21,"rows_kept":124,"cut":false,"hidden":true,"merged":[]}
[]
[null,null,"HIDE THIS COLUMN",{"$f":"CntyDataLink!A70","v":"Atkinson"}]
[]
[null,null,null,"RENTAL HOUSING COST CHARACTERISTICS"]
[]
[]
[]
[]
[]
[]
[]
[]
[]
[]
[]
[]
[]
[]
[]
[]
[]
[]
[]
[]
[]
[]
[]
[]
[]
[]
[]
[]
[]
[]
[]
[]
[]
[]
[null,null,null,"Source:  2015-2019 American Community Survey Table B25074"]
[]
[null,null,null,"Income in 2019 Inflation Adjusted Dollars"]
[null,null,null,"Data from the American Community Survey are estimates"]
[null,null,null,{"$f":"CntyDataLink!A70","v":"Atkinson"}]
[]
[null,null,null,{"$f":"D4","v":"RENTAL HOUSING COST CHARACTERISTICS"}]
[]
[null,null,null,"Renter Households by "]
[null,null,null,"Gross Rent as a Percent of 2019 Household Income"]
[null,null,null,null,null,null,"By Household Income"]
[null,null,{"$f":"CntyDataLink!AO$69","v":"H73RenterOccHU"},null,"Specified Renter Occ Housing Units",{"$f":"\"Margin of Error Renter Occupied Units\"","v":"Margin of Error Renter Occupied Units"},null,"Less than $10,000",{"$f":"\"Margin of Error \"&H50","v":"Margin of Error Less than $10,000"},"$10,000 to $19,999",{"$f":"\"Margin of Error \"&J50","v":"Margin of Error $10,000 to $19,999"},"$20,000 to $34,999",{"$f":"\"Margin of Error \"&L50","v":"Margin of Error $20,000 to $34,999"},"$35,000 to $49,999",{"$f":"\"Margin of Error \"&N50","v":"Margin of Error $35,000 to $49,999"},"$50,000 to $74,999",{"$f":"\"Margin of Error \"&P50","v":"Margin of Error $50,000 to $74,999"},"$75,000 to $99,999",{"$f":"\"Margin of Error \"&R50","v":"Margin of Error $75,000 to $99,999"},"$100,000 or More",{"$f":"\"Margin of Error \"&T50","v":"Margin of Error $100,000 or More"}]
[]
[null,null,null,"All Renter Households",{"$f":"CntyDataLink!$B$156","v":2530},{"$f":"CntyDataLink!$C$156","v":315},null,{"$f":"CntyDataLink!$BH$148","v":165},{"$f":"CntyDataLink!$BI$148","v":91},{"$f":"CntyDataLink!$BZ$148","v":379},{"$f":"CntyDataLink!$CA$148","v":153},{"$f":"CntyDataLink!$CR$148","v":505},{"$f":"CntyDataLink!$CS$148","v":197},{"$f":"CntyDataLink!$DJ$148","v":372},{"$f":"CntyDataLink!$DK$148","v":138},{"$f":"CntyDataLink!$EB$148","v":464},{"$f":"CntyDataLink!$EC$148","v":172},{"$f":"CntyDataLink!$ET$148","v":284},{"$f":"CntyDataLink!$EU$148","v":123},{"$f":"CntyDataLink!$FL$148","v":361},{"$f":"CntyDataLink!$FM$148","v":128}]
[null,null,null,"Rent Less than 20% of HH Income",{"$f":"CntyDataLink!$D$156","v":506},{"$f":"CntyDataLink!$E$156","v":165.92468170829801},null,{"$f":"CntyDataLink!$BJ$148","v":0},{"$f":"CntyDataLink!$BK$148","v":21},{"$f":"CntyDataLink!$CB$148","v":16},{"$f":"CntyDataLink!$CC$148","v":28},{"$f":"CntyDataLink!$CT$148","v":28},{"$f":"CntyDataLink!$CU$148","v":37},{"$f":"CntyDataLink!$DL$148","v":0},{"$f":"CntyDataLink!$DM$148","v":21},{"$f":"CntyDataLink!$ED$148","v":0},{"$f":"CntyDataLink!$EE$148","v":21},{"$f":"CntyDataLink!$EV$148","v":140},{"$f":"CntyDataLink!$EW$148","v":77},{"$f":"CntyDataLink!$FN$148","v":322},{"$f":"CntyDataLink!$FO$148","v":124}]
[null,null,null,"Rent 20% to 24.9% of HH Income",{"$f":"CntyDataLink!$F$156","v":369},{"$f":"CntyDataLink!$G$156","v":161},null,{"$f":"CntyDataLink!$BL$148","v":17},{"$f":"CntyDataLink!$BM$148","v":29},{"$f":"CntyDataLink!$CD$148","v":10},{"$f":"CntyDataLink!$CE$148","v":16},{"$f":"CntyDataLink!$CV$148","v":0},{"$f":"CntyDataLink!$CW$148","v":21},{"$f":"CntyDataLink!$DN$148","v":107},{"$f":"CntyDataLink!$DO$148","v":103},{"$f":"CntyDataLink!$EF$148","v":166},{"$f":"CntyDataLink!$EG$148","v":128},{"$f":"CntyDataLink!$EX$148","v":50},{"$f":"CntyDataLink!$EY$148","v":50},{"$f":"CntyDataLink!$FP$148","v":19},{"$f":"CntyDataLink!$FQ$148","v":31}]
[null,null,null,"Rent 25% to 29.9% of HH Income",{"$f":"CntyDataLink!$H$156","v":264},{"$f":"CntyDataLink!$I$156","v":120},null,{"$f":"CntyDataLink!$BN$148","v":0},{"$f":"CntyDataLink!$BO$148","v":21},{"$f":"CntyDataLink!$CF$148","v":0},{"$f":"CntyDataLink!$CG$148","v":21},{"$f":"CntyDataLink!$CX$148","v":0},{"$f":"CntyDataLink!$CY$148","v":21},{"$f":"CntyDataLink!$DP$148","v":47},{"$f":"CntyDataLink!$DQ$148","v":42},{"$f":"CntyDataLink!$EH$148","v":217},{"$f":"CntyDataLink!$EI$148","v":110},{"$f":"CntyDataLink!$EZ$148","v":0},{"$f":"CntyDataLink!$FA$148","v":21},{"$f":"CntyDataLink!$FR$148","v":0},{"$f":"CntyDataLink!$FS$148","v":21}]
[null,null,null,"Rent Less Than 30% of HH Income",{"$f":"CntyDataLink!$J$156","v":1139},{"$f":"CntyDataLink!$K$156","v":260.48416458587269},null,{"$f":"SUM(H53:H55)","v":17},{"$f":"SQRT((I53^2)+(I54^2)+(I55^2))","v":41.509035161034518},{"$f":"SUM(J53:J55)","v":26},{"$f":"SQRT((K53^2)+(K54^2)+(K55^2))","v":38.483762809787713},{"$f":"SUM(L53:L55)","v":28},{"$f":"SQRT((M53^2)+(M54^2)+(M55^2))","v":47.444704657105831},{"$f":"SUM(N53:N55)","v":154},{"$f":"SQRT((O53^2)+(O54^2)+(O55^2))","v":113.19893992436502},{"$f":"SUM(P53:P55)","v":383},{"$f":"SQRT((Q53^2)+(Q54^2)+(Q55^2))","v":170.07351351694948},{"$f":"SUM(R53:R55)","v":190},{"$f":"SQRT((S53^2)+(S54^2)+(S55^2))","v":94.180677423768827},{"$f":"SUM(T53:T55)","v":341},{"$f":"SQRT((U53^2)+(U54^2)+(U55^2))","v":129.52991932368366}]
[null,null,null,"Rent 30% or More of HH Income",{"$f":"CntyDataLink!$L$156","v":1270},{"$f":"CntyDataLink!$M$156","v":299.12204866910093},null,{"$f":"H60+H58","v":128},{"$f":"SQRT((I58^2)+(I60^2))","v":87.880600817245224},{"$f":"J60+J58","v":345},{"$f":"SQRT((K58^2)+(K60^2))","v":162.07097210790093},{"$f":"L60+L58","v":477},{"$f":"SQRT((M58^2)+(M60^2))","v":199.27368115232881},{"$f":"N60+N58","v":208},{"$f":"SQRT((O58^2)+(O60^2))","v":100.66777041337511},72,{"$f":"SQRT((Q58^2)+(Q60^2))","v":66.887966032762577},{"$f":"R60+R58","v":40},{"$f":"SQRT((S58^2)+(S60^2))","v":49.759421218498915},0,{"$f":"SQRT((U58^2)+(U60^2))","v":42}]
[null,null,null,"Rent 30% to 34.9% of HH Income",{"$f":"CntyDataLink!$N$156","v":260},{"$f":"CntyDataLink!$O$156","v":135},null,{"$f":"CntyDataLink!$BP$148","v":0},{"$f":"CntyDataLink!$BQ$148","v":21},{"$f":"CntyDataLink!$CH$148","v":65},{"$f":"CntyDataLink!$CI$148","v":83},{"$f":"CntyDataLink!$CZ$148","v":18},{"$f":"CntyDataLink!$DA$148","v":29},{"$f":"CntyDataLink!$DR$148","v":91},{"$f":"CntyDataLink!$DS$148","v":67},{"$f":"CntyDataLink!$EJ$148","v":55},{"$f":"CntyDataLink!$EK$148","v":54},{"$f":"CntyDataLink!$FB$148","v":31},{"$f":"CntyDataLink!$FC$148","v":37},{"$f":"CntyDataLink!$FT$148","v":0},{"$f":"CntyDataLink!$FU$148","v":21}]
[null,null,null,"Rent Less Than 35% of HH Income",{"$f":"CntyDataLink!$P$156","v":1399},{"$f":"CntyDataLink!$Q$156","v":293.38882050957568},null,{"$f":"SUM(H56,H58)","v":17},{"$f":"SQRT((I56^2)+(I58^2))","v":46.518813398452032},{"$f":"SUM(J56,J58)","v":91},{"$f":"SQRT((K56^2)+(K58^2))","v":91.487704091861431},{"$f":"SUM(L56,L58)","v":46},{"$f":"SQRT((M56^2)+(M58^2))","v":55.60575509783137},245,180.19893992436502,438,{"$f":"SQRT((Q58^2)+(Q56^2))","v":178.44046626256051},{"$f":"SUM(R56,R58)","v":221},{"$f":"SQRT((S58^2)+(S56^2))","v":101.18794394590691},341,{"$f":"SQRT((U58^2)+(U56^2))","v":131.22118731363466}]
[null,null,null,"Rent 35% or More of HH Income",{"$f":"CntyDataLink!$R$156","v":1010},{"$f":"CntyDataLink!$S$156","v":266.92508312258701},null,{"$f":"CntyDataLink!$BR$148+CntyDataLink!$BT$148+CntyDataLink!$BV$148","v":128},{"$f":"SQRT((CntyDataLink!$BS$148^2)+(CntyDataLink!$BU$148^2)+(CntyDataLink!$BW$148^2))","v":85.334635406732716},{"$f":"CntyDataLink!$CJ$148+CntyDataLink!$CL$148+CntyDataLink!$CN$148","v":280},{"$f":"SQRT((CntyDataLink!$CK$148^2)+(CntyDataLink!$CM$148^2)+(CntyDataLink!$CO$148^2))","v":139.20488497175666},{"$f":"CntyDataLink!$DB$148+CntyDataLink!$DD$148+CntyDataLink!$DF$148","v":459},{"$f":"SQRT((CntyDataLink!$DC$148^2)+(CntyDataLink!$DE$148^2)+(CntyDataLink!$DG$148^2))","v":197.15222545028499},{"$f":"CntyDataLink!$DT$148+CntyDataLink!$DV$148+CntyDataLink!$DX$148","v":117},{"$f":"SQRT((CntyDataLink!$DU$148^2)+(CntyDataLink!$DW$148^2)+(CntyDataLink!$DY$148^2))","v":75.133215025047349},{"$f":"CntyDataLink!$EL$148+CntyDataLink!$EN$148+CntyDataLink!$EP$148","v":17},{"$f":"SQRT((CntyDataLink!$EM$148^2)+(CntyDataLink!$EO$148^2)+(CntyDataLink!$EQ$148^2))","v":39.471508711981102},{"$f":"CntyDataLink!$FD$148+CntyDataLink!$FF$148+CntyDataLink!$FH$148","v":9},{"$f":"SQRT((CntyDataLink!$FE$148^2)+(CntyDataLink!$FG$148^2)+(CntyDataLink!$FI$148^2))","v":33.271609519228249},{"$f":"CntyDataLink!$FV$148+CntyDataLink!$FX$148+CntyDataLink!$FZ$148","v":0},{"$f":"SQRT((CntyDataLink!$FW$148^2)+(CntyDataLink!$FY$148^2)+(CntyDataLink!$GA$148^2))","v":36.373066958946424}]
[null,null,null,"Rent 50% or More of HH Income",{"$f":"CntyDataLink!$T$156","v":663},{"$f":"CntyDataLink!$U$156","v":218},null,{"$f":"CntyDataLink!$BV$148","v":128},{"$f":"CntyDataLink!$BW$148","v":80},{"$f":"CntyDataLink!$CN$148","v":280},{"$f":"CntyDataLink!$CO$148","v":136},{"$f":"CntyDataLink!$DF$148","v":213},{"$f":"CntyDataLink!$DG$148","v":138},{"$f":"CntyDataLink!$DX$148","v":42},{"$f":"CntyDataLink!$DY$148","v":40},{"$f":"CntyDataLink!$EP$148","v":0},{"$f":"CntyDataLink!$EQ$148","v":21},{"$f":"CntyDataLink!$FH$148","v":0},{"$f":"CntyDataLink!$FI$148","v":21},{"$f":"CntyDataLink!$FZ$148","v":0},{"$f":"CntyDataLink!$GA$148","v":21}]
[null,null,null,"Percent not computed",{"$f":"CntyDataLink!$V$156","v":121},{"$f":"CntyDataLink!$W$156","v":89},null,{"$f":"CntyDataLink!$BX$148","v":20},{"$f":"CntyDataLink!$BY$148","v":30},{"$f":"CntyDataLink!$CP$148","v":8},{"$f":"CntyDataLink!$CQ$148","v":12},{"$f":"CntyDataLink!$DH$148","v":0},{"$f":"CntyDataLink!$DI$148","v":21},{"$f":"CntyDataLink!$DZ$148","v":10},{"$f":"CntyDataLink!$EA$148","v":15},{"$f":"CntyDataLink!$ER$148","v":9},{"$f":"CntyDataLink!$ES$148","v":15},{"$f":"CntyDataLink!$FJ$148","v":54},{"$f":"CntyDataLink!$FK$148","v":80},{"$f":"CntyDataLink!$GB$148","v":20},{"$f":"CntyDataLink!$GC148","v":24}]
[]
[]
[]
[null,null,null,"Percent of Households Paying ",null,null,null,"By Household Income"]
[null,null,null,{"$f":"D56","v":"Rent Less Than 30% of HH Income"},{"$f":"E56/E$52","v":0.45019762845849803},null,null,{"$f":"H56/H$52","v":0.10303030303030303},null,{"$f":"J56/J$52","v":6.860158311345646E-2},null,{"$f":"L56/L$52","v":5.5445544554455446E-2},null,{"$f":"N56/N$52","v":0.41397849462365593},null,{"$f":"P56/P$52","v":0.82543103448275867},null,{"$f":"R56/R$52","v":0.66901408450704225},null,{"$f":"T56/T$52","v":0.94459833795013848}]
[null,null,null,{"$f":"D57","v":"Rent 30% or More of HH Income"},{"$f":"E57/E$52","v":0.50197628458498023},null,null,{"$f":"H57/H$52","v":0.77575757575757576},null,{"$f":"J57/J$52","v":0.91029023746701843},null,{"$f":"L57/L$52","v":0.94455445544554451},null,{"$f":"N57/N$52","v":0.55913978494623651},null,{"$f":"P57/P$52","v":0.15517241379310345},null,{"$f":"R57/R$52","v":0.14084507042253522},null,{"$f":"T57/T$52","v":0}]
[null,null,null,{"$f":"D59","v":"Rent Less Than 35% of HH Income"},{"$f":"E59/E$52","v":0.55296442687747038},null,null,{"$f":"H59/H$52","v":0.10303030303030303},null,{"$f":"J59/J$52","v":0.24010554089709762},null,{"$f":"L59/L$52","v":9.1089108910891087E-2},null,{"$f":"N59/N$52","v":0.65860215053763438},null,{"$f":"P59/P$52","v":0.94396551724137934},null,{"$f":"R59/R$52","v":0.778169014084507},null,{"$f":"T59/T$52","v":0.94459833795013848}]
[null,null,null,{"$f":"D60","v":"Rent 35% or More of HH Income"},{"$f":"E60/E$52","v":0.39920948616600793},null,null,{"$f":"H60/H$52","v":0.77575757575757576},null,{"$f":"J60/J$52","v":0.73878627968337729},null,{"$f":"L60/L$52","v":0.90891089108910894},null,{"$f":"N60/N$52","v":0.31451612903225806},null,{"$f":"P60/P$52","v":3.6637931034482756E-2},null,{"$f":"R60/R$52","v":3.1690140845070422E-2},null,{"$f":"T60/T$52","v":0}]
[null,null,null,"Rent 50% or More of HH Income",{"$f":"E61/E$52","v":0.26205533596837943},null,null,{"$f":"H61/H$52","v":0.77575757575757576},null,{"$f":"J61/J$52","v":0.73878627968337729},null,{"$f":"L61/L$52","v":0.42178217821782177},null,{"$f":"N61/N$52","v":0.11290322580645161},null,{"$f":"P61/P$52","v":0},null,{"$f":"R61/R$52","v":0},null,{"$f":"T61/T$52","v":0}]
[null,null,null,"Percent not computed",{"$f":"E62/E$52","v":4.7826086956521741E-2},null,null,{"$f":"H62/H$52","v":0.12121212121212122},null,{"$f":"J62/J$52","v":2.1108179419525065E-2},null,{"$f":"L62/L$52","v":0},null,{"$f":"N62/N$52","v":2.6881720430107527E-2},null,{"$f":"P62/P$52","v":1.9396551724137932E-2},null,{"$f":"R62/R$52","v":0.19014084507042253},null,{"$f":"T62/T$52","v":5.5401662049861494E-2}]
[]
[]
[null,null,null,"Source:  2015-2019 American Community Survey Table B25070; B25074"]
[]
[null,null,null,{"$f":"D41","v":"Income in 2019 Inflation Adjusted Dollars"}]
[null,null,null,"Data from the American Community Survey are estimates"]
[]
[null,null,null,{"$f":"CntyDataLink!A70","v":"Atkinson"}]
[null,null,null,{"$f":"D4","v":"RENTAL HOUSING COST CHARACTERISTICS"}]
[]
[null,null,null,"Rental Housing Costs"]
[]
[null,null,null,"Renter Occupied Housing Units By Gross Rent "]
[]
[null,null,null,null,"Units","Margin of Error"]
[null,null,{"$f":"CntyDataLink!E$69","v":"H62RntrOccHU"},"Specified Renter Occ Housing Units",{"$f":"CntyDataLink!$B$148","v":2530},{"$f":"CntyDataLink!$C$148","v":315}]
[null,null,{"$f":"CntyDataLink!F$69","v":"H62RntrOccHUwRent"},"Renter Occ. Housing Units w/ Cash Rent",{"$f":"CntyDataLink!$D$148","v":2429},{"$f":"CntyDataLink!$E$148","v":303}]
[]
[null,null,{"$f":"CntyDataLink!G$69","v":"H62ROHUGRent<100"},"Gross Rent","Units","Margin of Error 2015-2019"]
[null,null,{"$f":"CntyDataLink!H$69","v":"H62ROHUGRent100to149"},"Less than $100",{"$f":"CntyDataLink!$F$148","v":10},{"$f":"CntyDataLink!$G$148","v":16}]
[null,null,{"$f":"CntyDataLink!I$69","v":"H62ROHUGRent150to199"},"$100 to $149",{"$f":"CntyDataLink!$H$148","v":0},{"$f":"CntyDataLink!$I$148","v":21}]
[null,null,{"$f":"CntyDataLink!J$69","v":"H62ROHUGRent200to249"},"$150 to $199",{"$f":"CntyDataLink!J$148","v":17},{"$f":"CntyDataLink!$K$148","v":29}]
[null,null,{"$f":"CntyDataLink!K$69","v":"H62ROHUGRent250to299"},"$200 to $249",{"$f":"CntyDataLink!$L$148","v":34},{"$f":"CntyDataLink!$M$148","v":44}]
[null,null,{"$f":"CntyDataLink!L$69","v":"H62ROHUGRent300to349"},"$250 to $299",{"$f":"CntyDataLink!$N$148","v":0},{"$f":"CntyDataLink!$O$148","v":21}]
[null,null,{"$f":"CntyDataLink!M$69","v":"H62ROHUGRent350to399"},"$300 to $349",{"$f":"CntyDataLink!$P$148","v":50},{"$f":"CntyDataLink!$Q$148","v":80}]
[null,null,{"$f":"CntyDataLink!N$69","v":"H62ROHUGRent400to449"},"$350 to $399",{"$f":"CntyDataLink!$R$148","v":10},{"$f":"CntyDataLink!$S$148","v":16}]
[null,null,{"$f":"CntyDataLink!O$69","v":"H62ROHUGRent450to499"},"$400 to $449",{"$f":"CntyDataLink!$T$148","v":0},{"$f":"CntyDataLink!$U$148","v":21}]
[null,null,{"$f":"CntyDataLink!P$69","v":"H62ROHUGRent500to549"},"$450 to $499",{"$f":"CntyDataLink!$V$148","v":17},{"$f":"CntyDataLink!$W$148","v":28}]
[null,null,{"$f":"CntyDataLink!Q$69","v":"H62ROHUGRent550to599"},"$500 to $549",{"$f":"CntyDataLink!$X$148","v":15},{"$f":"CntyDataLink!$Y$148","v":24}]
[null,null,{"$f":"CntyDataLink!R$69","v":"H62ROHUGRent600to649"},"$550 to $599",{"$f":"CntyDataLink!$Z$148","v":18},{"$f":"CntyDataLink!$AA$148","v":29}]
[null,null,{"$f":"CntyDataLink!S$69","v":"H62ROHUGRent650to699"},"$600 to $649",{"$f":"CntyDataLink!$AB$148","v":0},{"$f":"CntyDataLink!$AC$148","v":21}]
[null,null,{"$f":"CntyDataLink!T$69","v":"H62ROHUGRent700to749"},"$650 to $699",{"$f":"CntyDataLink!$AD$148","v":0},{"$f":"CntyDataLink!$AE$148","v":21}]
[null,null,{"$f":"CntyDataLink!U$69","v":"H62ROHUGRent750to799"},"$700 to $749",{"$f":"CntyDataLink!$AF$148","v":34},{"$f":"CntyDataLink!$AG$148","v":55}]
[null,null,{"$f":"CntyDataLink!V$69","v":"H62ROHUGRent800to899"},"$750 to $799",{"$f":"CntyDataLink!$AH$148","v":82},{"$f":"CntyDataLink!$AI$148","v":86}]
[null,null,{"$f":"CntyDataLink!W$69","v":"H62ROHUGRent900to999"},"$800 to $899",{"$f":"CntyDataLink!$AJ$148","v":163},{"$f":"CntyDataLink!$AK$148","v":132}]
[null,null,{"$f":"CntyDataLink!X$69","v":"H62ROHUGRent1000to1249"},"$900 to $999",{"$f":"CntyDataLink!$AL$148","v":309},{"$f":"CntyDataLink!$AM$148","v":134}]
[null,null,{"$f":"CntyDataLink!Y$69","v":"H62ROHUGRent1250to1499"},"$1000 to $1249",{"$f":"CntyDataLink!$AN$148","v":770},{"$f":"CntyDataLink!$AO$148","v":174}]
[null,null,{"$f":"CntyDataLink!Z$69","v":"H62ROHUGRent1500to1999"},"$1250 to $1499",{"$f":"CntyDataLink!$AP$148","v":338},{"$f":"CntyDataLink!$AQ$148","v":135}]
[null,null,{"$f":"CntyDataLink!AA$69","v":"H62ROHUGRent2000>"},"$1500 to $1999",{"$f":"CntyDataLink!$AR$148","v":376},{"$f":"CntyDataLink!$AS$148","v":121}]
[null,null,{"$f":"CntyDataLink!AB$69","v":"H62ROHUNoGRent"},"$2,000 to $2,499",{"$f":"CntyDataLink!$AT$148","v":135},{"$f":"CntyDataLink!$AU$148","v":81}]
[null,null,{"$f":"CntyDataLink!AC$69","v":"H63MedianGrossRnt"},"$2,500 to $2,999",{"$f":"CntyDataLink!$AV$148","v":0},{"$f":"CntyDataLink!$AW$148","v":21}]
[null,null,null,"$3,000 to $3,499",{"$f":"CntyDataLink!$AX$148","v":51},{"$f":"CntyDataLink!$AY$148","v":78}]
[null,null,null,"$3,500 or more",{"$f":"CntyDataLink!$AZ$148","v":0},{"$f":"CntyDataLink!$BA$148","v":21}]
[null,null,null,"Renter Occ. Housing Units w/ No Cash Rent",{"$f":"CntyDataLink!$BB$148","v":101},{"$f":"CntyDataLink!$BC$148","v":89}]
[]
[null,null,null,"Median Gross Rent",{"$f":"CntyDataLink!$BD$148","v":1066},{"$f":"CntyDataLink!$BE$148","v":36}]
[]
[]
[]
[]
[null,null,null,"Source: 2015-2019 American Community Survey Table B25063; B25064"]
[null,null,null,"Data from the American Community Survey are estimates"]

{"sheet":"RentalHousingCost-Prior5Yr","index":58,"n_rows":78,"n_cols":21,"rows_kept":78,"cut":false,"hidden":true,"merged":[]}
[]
[null,null,"HIDE THIS COLUMN",{"$f":"CntyDataLink!A70","v":"Atkinson"}]
[]
[null,null,null,"RENTAL HOUSING COST CHARACTERISTICS"]
[]
[]
[]
[]
[]
[]
[]
[]
[]
[]
[]
[]
[]
[]
[]
[]
[]
[]
[]
[]
[]
[]
[]
[]
[]
[]
[]
[]
[]
[]
[]
[]
[]
[]
[null,null,null,"Source:  2010-2014 American Community Survey Table B25074"]
[]
[null,null,null,"Income in 2014 Inflation Adjusted Dollars"]
[null,null,null,"Data from the American Community Survey are estimates"]
[null,null,null,{"$f":"CntyDataLinkPrior5YearEstimates!A120","v":"Atkinson"}]
[]
[null,null,null,{"$f":"D4","v":"RENTAL HOUSING COST CHARACTERISTICS"}]
[]
[null,null,null,"Renter Households by "]
[null,null,null,"Gross Rent as a Percent of 2014 Household Income"]
[null,null,null,null,null,null,"By Household Income"]
[null,null,{"$f":"CntyDataLinkPrior5YearEstimates!AO$69","v":"H73RenterOccHU"},null,"Specified Renter Occ Housing Units",{"$f":"\"Margin of Error Renter Occupied Units\"","v":"Margin of Error Renter Occupied Units"},null,"Less than $10,000",{"$f":"\"Margin of Error \"&H50","v":"Margin of Error Less than $10,000"},"$10,000 to $19,999",{"$f":"\"Margin of Error \"&J50","v":"Margin of Error $10,000 to $19,999"},"$20,000 to $34,999",{"$f":"\"Margin of Error \"&L50","v":"Margin of Error $20,000 to $34,999"},"$35,000 to $49,999",{"$f":"\"Margin of Error \"&N50","v":"Margin of Error $35,000 to $49,999"},"$50,000 to $74,999",{"$f":"\"Margin of Error \"&P50","v":"Margin of Error $50,000 to $74,999"},"$75,000 to $99,999",{"$f":"\"Margin of Error \"&R50","v":"Margin of Error $75,000 to $99,999"},"$100,000 or More",{"$f":"\"Margin of Error \"&T50","v":"Margin of Error $100,000 or More"}]
[]
[null,null,null,"All Renter Households",{"$f":"CntyDataLinkPrior5YearEstimates!$B$156","v":2642},{"$f":"CntyDataLinkPrior5YearEstimates!$C$156","v":297},null,{"$f":"CntyDataLinkPrior5YearEstimates!$BB$148","v":108},{"$f":"CntyDataLinkPrior5YearEstimates!$BC$148","v":82},{"$f":"CntyDataLinkPrior5YearEstimates!$BT$148","v":324},{"$f":"CntyDataLinkPrior5YearEstimates!$BU$148","v":115},{"$f":"CntyDataLinkPrior5YearEstimates!$CL$148","v":346},{"$f":"CntyDataLinkPrior5YearEstimates!$CM$148","v":114},{"$f":"CntyDataLinkPrior5YearEstimates!$DD$148","v":590},{"$f":"CntyDataLinkPrior5YearEstimates!$DE$148","v":168},{"$f":"CntyDataLinkPrior5YearEstimates!$DV$148","v":564},{"$f":"CntyDataLinkPrior5YearEstimates!$DW$148","v":163},{"$f":"CntyDataLinkPrior5YearEstimates!$EN$148","v":439},{"$f":"CntyDataLinkPrior5YearEstimates!$EO$148","v":173},{"$f":"CntyDataLinkPrior5YearEstimates!$FF$148","v":271},{"$f":"CntyDataLinkPrior5YearEstimates!$FG$148","v":134}]
[null,null,null,"Rent Less than 20% of HH Income",{"$f":"CntyDataLinkPrior5YearEstimates!$D$156","v":654},{"$f":"CntyDataLinkPrior5YearEstimates!$E$156","v":180.78163623554246},null,{"$f":"CntyDataLinkPrior5YearEstimates!$BD$148","v":18},{"$f":"CntyDataLinkPrior5YearEstimates!$BE$148","v":28},{"$f":"CntyDataLinkPrior5YearEstimates!$BV$148","v":0},{"$f":"CntyDataLinkPrior5YearEstimates!$BW$148","v":20},{"$f":"CntyDataLinkPrior5YearEstimates!$CN$148","v":0},{"$f":"CntyDataLinkPrior5YearEstimates!$CO$148","v":20},{"$f":"CntyDataLinkPrior5YearEstimates!$DF$148","v":35},{"$f":"CntyDataLinkPrior5YearEstimates!$DG$148","v":37},{"$f":"CntyDataLinkPrior5YearEstimates!$DX$148","v":135},{"$f":"CntyDataLinkPrior5YearEstimates!$DY$148","v":78},{"$f":"CntyDataLinkPrior5YearEstimates!$EP$148","v":271},{"$f":"CntyDataLinkPrior5YearEstimates!$EQ$148","v":128},{"$f":"CntyDataLinkPrior5YearEstimates!$FH$148","v":195},{"$f":"CntyDataLinkPrior5YearEstimates!$FI$148","v":110}]
[null,null,null,"Rent 20% to 24.9% of HH Income",{"$f":"CntyDataLinkPrior5YearEstimates!$F$156","v":399},{"$f":"CntyDataLinkPrior5YearEstimates!$G$156","v":122},null,{"$f":"CntyDataLinkPrior5YearEstimates!$BF$148","v":0},{"$f":"CntyDataLinkPrior5YearEstimates!$BG$148","v":20},{"$f":"CntyDataLinkPrior5YearEstimates!$BX$148","v":30},{"$f":"CntyDataLinkPrior5YearEstimates!$BY$148","v":34},{"$f":"CntyDataLinkPrior5YearEstimates!$CP$148","v":16},{"$f":"CntyDataLinkPrior5YearEstimates!$CQ$148","v":26},{"$f":"CntyDataLinkPrior5YearEstimates!$DH$148","v":42},{"$f":"CntyDataLinkPrior5YearEstimates!$DI$148","v":35},{"$f":"CntyDataLinkPrior5YearEstimates!$DZ$148","v":241},{"$f":"CntyDataLinkPrior5YearEstimates!$EA$148","v":99},{"$f":"CntyDataLinkPrior5YearEstimates!$ER$148","v":70},{"$f":"CntyDataLinkPrior5YearEstimates!$ES$148","v":59},{"$f":"CntyDataLinkPrior5YearEstimates!$FJ$148","v":0},{"$f":"CntyDataLinkPrior5YearEstimates!$FK$148","v":20}]
[null,null,null,"Rent 25% to 29.9% of HH Income",{"$f":"CntyDataLinkPrior5YearEstimates!$H$156","v":355},{"$f":"CntyDataLinkPrior5YearEstimates!$I$156","v":134},null,{"$f":"CntyDataLinkPrior5YearEstimates!$BH$148","v":0},{"$f":"CntyDataLinkPrior5YearEstimates!$BI$148","v":20},{"$f":"CntyDataLinkPrior5YearEstimates!$BZ$148","v":16},{"$f":"CntyDataLinkPrior5YearEstimates!$CA$148","v":25},{"$f":"CntyDataLinkPrior5YearEstimates!$CR$148","v":15},{"$f":"CntyDataLinkPrior5YearEstimates!$CS$148","v":24},{"$f":"CntyDataLinkPrior5YearEstimates!$DJ$148","v":165},{"$f":"CntyDataLinkPrior5YearEstimates!$DK$148","v":88},{"$f":"CntyDataLinkPrior5YearEstimates!$EB$148","v":137},{"$f":"CntyDataLinkPrior5YearEstimates!$EC$148","v":107},{"$f":"CntyDataLinkPrior5YearEstimates!$ET$148","v":22},{"$f":"CntyDataLinkPrior5YearEstimates!$EU$148","v":26},{"$f":"CntyDataLinkPrior5YearEstimates!$FL$148","v":0},{"$f":"CntyDataLinkPrior5YearEstimates!$FM$148","v":20}]
[null,null,null,"Rent Less Than 30% of HH Income",{"$f":"CntyDataLinkPrior5YearEstimates!$J$156","v":1408},{"$f":"CntyDataLinkPrior5YearEstimates!$K$156","v":255.9726547895302},null,{"$f":"SUM(H53:H55)","v":18},{"$f":"SQRT((I53^2)+(I54^2)+(I55^2))","v":39.799497484264798},{"$f":"SUM(J53:J55)","v":46},{"$f":"SQRT((K53^2)+(K54^2)+(K55^2))","v":46.701177715342467},{"$f":"SUM(L53:L55)","v":31},{"$f":"SQRT((M53^2)+(M54^2)+(M55^2))","v":40.64480286580315},{"$f":"SUM(N53:N55)","v":242},{"$f":"SQRT((O53^2)+(O54^2)+(O55^2))","v":101.67595585978034},{"$f":"SUM(P53:P55)","v":513},{"$f":"SQRT((Q53^2)+(Q54^2)+(Q55^2))","v":165.32997308413258},{"$f":"SUM(R53:R55)","v":363},{"$f":"SQRT((S53^2)+(S54^2)+(S55^2))","v":143.32131732579072},{"$f":"SUM(T53:T55)","v":195},{"$f":"SQRT((U53^2)+(U54^2)+(U55^2))","v":113.57816691600547}]
[null,null,null,"Rent 30% or More of HH Income",{"$f":"CntyDataLinkPrior5YearEstimates!$L$156","v":1073},{"$f":"CntyDataLinkPrior5YearEstimates!$M$156","v":263.03611919278308},null,{"$f":"H60+H58","v":82},{"$f":"SQRT((I58^2)+(I60^2))","v":83.522452071284405},{"$f":"J60+J58","v":266},{"$f":"SQRT((K58^2)+(K60^2))","v":139.63523910532041},{"$f":"L60+L58","v":304},{"$f":"SQRT((M58^2)+(M60^2))","v":109.1512711790385},{"$f":"N60+N58","v":348},{"$f":"SQRT((O58^2)+(O60^2))","v":153.06207890917986},51,{"$f":"SQRT((Q58^2)+(Q60^2))","v":84.433405711246778},{"$f":"R60+R58","v":22},{"$f":"SQRT((S58^2)+(S60^2))","v":39.610604640676719},0,{"$f":"SQRT((U58^2)+(U60^2))","v":40}]
[null,null,null,"Rent 30% to 34.9% of HH Income",{"$f":"CntyDataLinkPrior5YearEstimates!$N$156","v":165},{"$f":"CntyDataLinkPrior5YearEstimates!$O$156","v":108},null,{"$f":"CntyDataLinkPrior5YearEstimates!$BJ$148","v":0},{"$f":"CntyDataLinkPrior5YearEstimates!$BK$148","v":20},{"$f":"CntyDataLinkPrior5YearEstimates!$CB$148","v":48},{"$f":"CntyDataLinkPrior5YearEstimates!$CC$148","v":76},{"$f":"CntyDataLinkPrior5YearEstimates!$CT$148","v":0},{"$f":"CntyDataLinkPrior5YearEstimates!$CU$148","v":20},{"$f":"CntyDataLinkPrior5YearEstimates!$DL$148","v":110},{"$f":"CntyDataLinkPrior5YearEstimates!$DM$148","v":77},{"$f":"CntyDataLinkPrior5YearEstimates!$ED$148","v":0},{"$f":"CntyDataLinkPrior5YearEstimates!$EE$148","v":20},{"$f":"CntyDataLinkPrior5YearEstimates!$EV$148","v":7},{"$f":"CntyDataLinkPrior5YearEstimates!$EW$148","v":12},{"$f":"CntyDataLinkPrior5YearEstimates!$FN$148","v":0},{"$f":"CntyDataLinkPrior5YearEstimates!$FO$148","v":20}]
[null,null,null,"Rent Less Than 35% of HH Income",{"$f":"CntyDataLinkPrior5YearEstimates!$P$156","v":1573},{"$f":"CntyDataLinkPrior5YearEstimates!$Q$156","v":277.82368509542164},null,{"$f":"SUM(H56,H58)","v":18},{"$f":"SQRT((I56^2)+(I58^2))","v":44.542114902640172},{"$f":"SUM(J56,J58)","v":94},{"$f":"SQRT((K56^2)+(K58^2))","v":89.202017914394744},{"$f":"SUM(L56,L58)","v":31},{"$f":"SQRT((M56^2)+(M58^2))","v":45.299006611624499},352,178.67595585978034,513,{"$f":"SQRT((Q58^2)+(Q56^2))","v":166.53528154718447},{"$f":"SUM(R56,R58)","v":370},{"$f":"SQRT((S58^2)+(S56^2))","v":143.82280764885658},195,{"$f":"SQRT((U58^2)+(U56^2))","v":115.32562594670796}]
[null,null,null,"Rent 35% or More of HH Income",{"$f":"CntyDataLinkPrior5YearEstimates!$R$156","v":908},{"$f":"CntyDataLinkPrior5YearEstimates!$S$156","v":239.84161440417299},null,{"$f":"CntyDataLinkPrior5YearEstimates!$BL$148+CntyDataLinkPrior5YearEstimates!$BN$148+CntyDataLinkPrior5YearEstimates!$BP$148","v":82},{"$f":"SQRT((CntyDataLinkPrior5YearEstimates!$BM$148^2)+(CntyDataLinkPrior5YearEstimates!$BO$148^2)+(CntyDataLinkPrior5YearEstimates!$BQ$148^2))","v":81.092539730853176},{"$f":"CntyDataLinkPrior5YearEstimates!$CD$148+CntyDataLinkPrior5YearEstimates!$CF$148+CntyDataLinkPrior5YearEstimates!$CH$148","v":218},{"$f":"SQRT((CntyDataLinkPrior5YearEstimates!$CE$148^2)+(CntyDataLinkPrior5YearEstimates!$CG$148^2)+(CntyDataLinkPrior5YearEstimates!$CI$148^2))","v":117.14094075087498},{"$f":"CntyDataLinkPrior5YearEstimates!$CV$148+CntyDataLinkPrior5YearEstimates!$CX$148+CntyDataLinkPrior5YearEstimates!$CZ$148","v":304},{"$f":"SQRT((CntyDataLinkPrior5YearEstimates!$CW$148^2)+(CntyDataLinkPrior5YearEstimates!$CY$148^2)+(CntyDataLinkPrior5YearEstimates!$DA$148^2))","v":107.30330842988953},{"$f":"CntyDataLinkPrior5YearEstimates!$DN$148+CntyDataLinkPrior5YearEstimates!$DP$148+CntyDataLinkPrior5YearEstimates!$DR$148","v":238},{"$f":"SQRT((CntyDataLinkPrior5YearEstimates!$DO$148^2)+(CntyDataLinkPrior5YearEstimates!$DQ$148^2)+(CntyDataLinkPrior5YearEstimates!$DS$148^2))","v":132.28378585450298},{"$f":"CntyDataLinkPrior5YearEstimates!$EF$148+CntyDataLinkPrior5YearEstimates!$EH$148+CntyDataLinkPrior5YearEstimates!$EJ$148","v":51},{"$f":"SQRT((CntyDataLinkPrior5YearEstimates!$EG$148^2)+(CntyDataLinkPrior5YearEstimates!$EI$148^2)+(CntyDataLinkPrior5YearEstimates!$EK$148^2))","v":82.030482139263327},{"$f":"CntyDataLinkPrior5YearEstimates!$EX$148+CntyDataLinkPrior5YearEstimates!$EZ$148+CntyDataLinkPrior5YearEstimates!$FB$148","v":15},{"$f":"SQRT((CntyDataLinkPrior5YearEstimates!$EY$148^2)+(CntyDataLinkPrior5YearEstimates!$FA$148^2)+(CntyDataLinkPrior5YearEstimates!$FC$148^2))","v":37.749172176353746},{"$f":"CntyDataLinkPrior5YearEstimates!$FP$148+CntyDataLinkPrior5YearEstimates!$FR$148+CntyDataLinkPrior5YearEstimates!$FT$148","v":0},{"$f":"SQRT((CntyDataLinkPrior5YearEstimates!$FQ$148^2)+(CntyDataLinkPrior5YearEstimates!$FS$148^2)+(CntyDataLinkPrior5YearEstimates!$FU$148^2))","v":34.641016151377549}]
[null,null,null,"Percent not computed",{"$f":"CntyDataLinkPrior5YearEstimates!$V$156","v":161},{"$f":"CntyDataLinkPrior5YearEstimates!$W$156","v":90},null,{"$f":"CntyDataLinkPrior5YearEstimates!$BR$148","v":8},{"$f":"CntyDataLinkPrior5YearEstimates!$BS$148","v":13},{"$f":"CntyDataLinkPrior5YearEstimates!$CJ$148","v":12},{"$f":"CntyDataLinkPrior5YearEstimates!$CK$148","v":20},{"$f":"CntyDataLinkPrior5YearEstimates!$DB$148","v":11},{"$f":"CntyDataLinkPrior5YearEstimates!$DC$148","v":19},{"$f":"CntyDataLinkPrior5YearEstimates!$DT$148","v":0},{"$f":"CntyDataLinkPrior5YearEstimates!$DU$148","v":20},{"$f":"CntyDataLinkPrior5YearEstimates!$EL$148","v":0},{"$f":"CntyDataLinkPrior5YearEstimates!$EM$148","v":20},{"$f":"CntyDataLinkPrior5YearEstimates!$FD$148","v":54},{"$f":"CntyDataLinkPrior5YearEstimates!$FE$148","v":82},{"$f":"CntyDataLinkPrior5YearEstimates!$FV$148","v":76},{"$f":"CntyDataLinkPrior5YearEstimates!$FW149","v":0}]
[]
[]
[]
[null,null,null,"Percent of Households Paying ",null,null,null,"By Household Income"]
[null,null,null,{"$f":"D56","v":"Rent Less Than 30% of HH Income"},{"$f":"E56/E$52","v":0.53292959878879642},null,null,{"$f":"H56/H$52","v":0.16666666666666666},null,{"$f":"J56/J$52","v":0.1419753086419753},null,{"$f":"L56/L$52","v":8.9595375722543349E-2},null,{"$f":"N56/N$52","v":0.4101694915254237},null,{"$f":"P56/P$52","v":0.90957446808510634},null,{"$f":"R56/R$52","v":0.82687927107061499},null,{"$f":"T56/T$52","v":0.71955719557195574}]
[null,null,null,{"$f":"D57","v":"Rent 30% or More of HH Income"},{"$f":"E57/E$52","v":0.40613171839515516},null,null,{"$f":"H57/H$52","v":0.7592592592592593},null,{"$f":"J57/J$52","v":0.82098765432098764},null,{"$f":"L57/L$52","v":0.87861271676300579},null,{"$f":"N57/N$52","v":0.5898305084745763},null,{"$f":"P57/P$52","v":9.0425531914893623E-2},null,{"$f":"R57/R$52","v":5.011389521640091E-2},null,{"$f":"T57/T$52","v":0}]
[null,null,null,{"$f":"D59","v":"Rent Less Than 35% of HH Income"},{"$f":"E59/E$52","v":0.5953822861468584},null,null,{"$f":"H59/H$52","v":0.16666666666666666},null,{"$f":"J59/J$52","v":0.29012345679012347},null,{"$f":"L59/L$52","v":8.9595375722543349E-2},null,{"$f":"N59/N$52","v":0.59661016949152545},null,{"$f":"P59/P$52","v":0.90957446808510634},null,{"$f":"R59/R$52","v":0.84282460136674264},null,{"$f":"T59/T$52","v":0.71955719557195574}]
[null,null,null,{"$f":"D60","v":"Rent 35% or More of HH Income"},{"$f":"E60/E$52","v":0.34367903103709313},null,null,{"$f":"H60/H$52","v":0.7592592592592593},null,{"$f":"J60/J$52","v":0.6728395061728395},null,{"$f":"L60/L$52","v":0.87861271676300579},null,{"$f":"N60/N$52","v":0.4033898305084746},null,{"$f":"P60/P$52","v":9.0425531914893623E-2},null,{"$f":"R60/R$52","v":3.4168564920273349E-2},null,{"$f":"T60/T$52","v":0}]
[null,null,null,"Percent not computed",{"$f":"E61/E$52","v":6.0938682816048445E-2},null,null,{"$f":"H61/H$52","v":7.407407407407407E-2},null,{"$f":"J61/J$52","v":3.7037037037037035E-2},null,{"$f":"L61/L$52","v":3.1791907514450865E-2},null,{"$f":"N61/N$52","v":0},null,{"$f":"P61/P$52","v":0},null,{"$f":"R61/R$52","v":0.12300683371298406},null,{"$f":"T61/T$52","v":0.28044280442804426}]
[]
[]
[null,null,null,"Source:  2010-2014 American Community Survey Table B25070; B25074"]
[]
[null,null,null,{"$f":"D41","v":"Income in 2014 Inflation Adjusted Dollars"}]
[null,null,null,"Data from the American Community Survey are estimates"]
[null,null,null,{"$f":"D41","v":"Income in 2014 Inflation Adjusted Dollars"}]
[null,null,null,"Data from the American Community Survey are estimates"]

{"sheet":"ACS_Table_B25063_&_B25064","index":59,"n_rows":159,"n_cols":76,"rows_kept":159,"cut":false,"hidden":true,"merged":[]}
[null,"B25063. GROSS RENT"]
[null,"Universe:  RENTER-OCCUPIED HOUSING UNITS"]
[null,"Data Set: 2005-2009 American Community Survey 5-Year Estimates"]
[]
[null,null,"Atkinson",null,"Auburn",null,"Brentwood",null,"Candia",null,"Chester",null,"Danville",null,"Deerfield",null,"Derry",null,"East Kingston",null,"Epping",null,"Exeter",null,"Fremont",null,"Greenland",null,"Hampstead",null,"Hampton",null,"Hampton Falls",null,"Kensington",null,"Kingston",null,"Londonderry",null,"New Castle",null,"Newfields",null,"Newington",null,"Newmarket",null,"Newton",null,"North Hampton",null,"Northwood",null,"Nottingham",null,"Plaistow",null,"Portsmouth",null,"Raymond",null,"Rye",null,"Salem",null,"Sandown",null,"Seabrook",null,"South Hampton",null,"Stratham",null,"Windham"]
[null,null,"Estimate","Margin Of Error","Estimate","Margin Of Error","Estimate","Margin Of Error","Estimate","Margin Of Error","Estimate","Margin Of Error","Estimate","Margin Of Error","Estimate","Margin Of Error","Estimate","Margin Of Error","Estimate","Margin Of Error","Estimate","Margin Of Error","Estimate","Margin Of Error","Estimate","Margin Of Error","Estimate","Margin Of Error","Estimate","Margin Of Error","Estimate","Margin Of Error","Estimate","Margin Of Error","Estimate","Margin Of Error","Estimate","Margin Of Error","Estimate","Margin Of Error","Estimate","Margin Of Error","Estimate","Margin Of Error","Estimate","Margin Of Error","Estimate","Margin Of Error","Estimate","Margin Of Error","Estimate","Margin Of Error","Estimate","Margin Of Error","Estimate","Margin Of Error","Estimate","Margin Of Error","Estimate","Margin Of Error","Estimate","Margin Of Error","Estimate","Margin Of Error","Estimate","Margin Of Error","Estimate","Margin Of Error","Estimate","Margin Of Error","Estimate","Margin Of Error","Estimate","Margin Of Error","Estimate","Margin Of Error"]
[null,"Total:",194,106,154,88,133,73,83,62,45,45,255,107,200,79,4450,369,39,27,392,148,2063,256,150,72,260,79,784,169,1694,197,81,38,85,34,380,139,1349,200,45,31,40,20,48,19,1914,180,366,104,208,75,151,72,133,66,571,169,4826,262,888,167,423,174,2530,315,204,103,1224,199,38,26,330,133,204,109]
[null,"With cash rent:",194,106,154,88,133,73,63,55,45,45,255,107,135,59,4367,370,20,16,392,148,1933,243,118,65,239,76,718,159,1670,200,61,34,66,31,380,139,1237,194,45,31,37,18,41,18,1907,180,355,101,168,68,141,71,133,66,509,162,4726,261,882,168,406,173,2429,303,177,95,1138,187,30,22,282,106,204,109]
[null,"Less than $100",0,16,0,16,0,11,0,11,0,16,0,11,0,11,0,24,0,11,0,16,0,18,0,11,0,11,0,16,0,18,0,11,0,11,0,16,0,21,0,11,0,11,0,11,0,16,0,11,0,11,0,11,0,16,0,16,16,26,0,18,0,16,10,16,0,16,0,16,0,11,0,16,0,18]
[null,"$100 to $149",0,16,0,16,0,11,0,11,0,16,0,11,0,11,0,24,0,11,0,16,0,18,0,11,0,11,0,16,0,18,0,11,0,11,0,16,0,21,0,11,0,11,0,11,0,16,9,14,0,11,0,11,0,16,0,16,0,21,0,18,0,16,0,21,0,16,0,16,0,11,0,16,0,18]
[null,"$150 to $199",0,16,0,16,0,11,0,11,0,16,0,11,0,11,0,24,0,11,0,16,0,18,0,11,0,11,0,16,0,18,0,11,0,11,0,16,0,21,0,11,0,11,0,11,0,16,0,11,0,11,0,11,0,16,0,16,92,71,0,18,0,16,17,29,0,16,0,16,0,11,0,16,0,18]
[null,"$200 to $249",0,16,0,16,0,11,0,11,0,16,0,11,0,11,63,71,0,11,0,16,14,21,0,11,0,11,0,16,16,25,0,11,0,11,0,16,0,21,0,11,0,11,0,11,0,16,0,11,6,10,0,11,0,16,0,16,9,14,0,18,0,16,34,44,0,16,0,16,0,11,0,16,0,18]
[null,"$250 to $299",0,16,0,16,0,11,0,11,0,16,0,11,0,11,47,74,0,11,0,16,0,18,0,11,0,11,0,16,5,8,0,11,0,11,19,30,0,21,0,11,0,11,0,11,0,16,0,11,0,11,0,11,12,19,0,16,217,100,0,18,0,16,0,21,0,16,0,16,0,11,0,16,15,24]
[null,"$300 to $349",0,16,0,16,0,11,0,11,0,16,0,11,0,11,52,59,0,11,0,16,12,21,0,11,0,11,0,16,14,23,0,11,0,11,0,16,0,21,0,11,0,11,0,11,63,67,18,21,0,11,0,11,0,16,16,27,37,31,10,16,0,16,50,80,0,16,0,16,0,11,0,16,0,18]
[null,"$350 to $399",0,16,0,16,0,11,0,11,0,16,0,11,0,11,12,20,0,11,0,16,13,21,0,11,0,11,0,16,18,27,0,11,0,11,17,28,0,21,0,11,0,11,0,11,8,14,0,11,0,11,0,11,0,16,0,16,74,51,11,19,0,16,10,16,0,16,15,26,0,11,0,16,17,27]
[null,"$400 to $449",0,16,0,16,0,11,0,11,0,16,0,11,0,11,38,61,0,11,0,16,13,22,0,11,0,11,13,22,12,12,0,11,0,11,0,16,0,21,0,11,0,11,0,11,26,29,8,13,0,11,0,11,0,16,0,16,8,12,17,27,0,16,0,21,0,16,52,58,0,11,0,16,0,18]
[null,"$450 to $499",0,16,0,16,0,11,0,11,0,16,0,11,0,11,0,24,0,11,0,16,51,66,0,11,0,11,0,16,12,19,0,11,0,11,0,16,0,21,0,11,0,11,0,11,0,16,0,11,0,11,0,11,0,16,0,16,61,51,0,18,0,16,17,28,0,16,35,54,0,11,0,16,0,18]
[null,"$500 to $549",0,16,38,58,0,11,0,11,0,16,0,11,0,11,19,32,0,11,0,16,12,18,0,11,0,11,57,62,33,54,0,11,0,11,0,16,0,21,0,11,0,11,0,11,39,38,0,11,0,11,0,11,0,16,0,16,118,98,44,64,0,16,15,24,0,16,31,36,0,11,0,16,0,18]
[null,"$550 to $599",0,16,0,16,0,11,0,11,0,16,9,14,0,11,31,36,0,11,0,16,0,18,0,11,0,11,8,14,6,9,0,11,0,11,0,16,0,21,0,11,0,11,0,11,37,58,7,11,0,11,0,11,13,20,0,16,13,17,0,18,0,16,18,29,0,16,23,38,0,11,0,16,0,18]
[null,"$600 to $649",0,16,0,16,0,11,0,11,0,16,0,11,0,11,34,44,0,11,0,16,24,29,0,11,0,11,10,16,28,32,0,11,0,11,0,16,16,25,0,11,0,11,0,11,68,94,8,12,0,11,0,11,0,16,0,16,41,53,0,18,0,16,0,21,43,68,0,16,0,11,16,26,0,18]
[null,"$650 to $699",0,16,0,16,9,14,0,11,0,16,0,11,0,11,112,107,0,11,0,16,30,35,0,11,0,11,0,16,0,18,0,11,0,11,0,16,0,21,0,11,0,11,0,11,27,22,9,13,0,11,33,50,0,16,0,16,126,112,0,18,0,16,0,21,0,16,0,16,2,5,14,23,16,25]
[null,"$700 to $749",0,16,0,16,33,52,0,11,0,16,21,28,0,11,16,17,0,11,0,16,36,40,0,11,0,11,0,16,81,47,6,9,16,22,0,16,6,11,0,11,4,6,0,11,0,16,32,40,0,11,8,14,10,16,0,16,54,68,10,16,0,16,34,55,0,16,59,36,0,11,0,16,0,18]
[null,"$750 to $799",0,16,0,16,0,11,0,11,0,16,0,11,0,11,64,67,0,11,0,16,16,25,0,11,9,13,34,57,102,73,0,11,4,6,0,16,0,21,0,11,0,11,0,11,0,16,0,11,0,11,9,13,0,16,18,28,27,32,18,21,0,16,82,86,0,16,16,25,0,11,0,16,17,29]
[null,"$800 to $899",100,74,11,17,0,11,0,11,45,45,37,57,0,11,78,66,0,11,55,85,60,46,9,15,0,11,305,137,107,56,0,11,4,6,0,16,151,95,0,11,4,6,3,5,29,32,0,11,0,11,11,17,14,21,0,16,67,46,46,55,0,16,163,132,0,16,85,46,0,11,23,35,0,18]
[null,"$900 to $999",0,16,0,16,12,18,0,11,0,16,0,11,0,11,354,122,4,8,12,21,273,112,0,11,11,16,42,64,102,52,0,11,3,5,49,82,57,36,9,15,0,11,2,4,128,102,22,35,10,16,15,18,0,16,62,79,411,115,84,55,37,41,309,134,14,23,99,63,9,14,0,16,0,18]
[null,"$1,000 to $1,249",0,16,0,16,12,17,8,13,0,16,56,62,101,59,1545,286,5,9,123,82,558,158,22,26,26,25,149,107,432,116,14,13,4,5,132,108,151,81,0,11,3,5,2,4,562,132,182,99,25,24,18,22,46,40,71,53,767,184,135,73,136,114,770,174,20,19,285,108,2,3,25,28,15,24]
[null,"$1,250 to $1,499",14,25,10,16,8,13,0,11,0,16,41,51,17,20,894,227,0,11,50,42,267,97,35,42,0,11,49,37,229,88,0,11,9,8,52,47,242,112,0,11,11,11,7,7,406,127,43,46,8,12,18,22,10,15,190,129,1020,205,199,106,30,38,338,135,48,74,101,54,3,5,42,49,0,18]
[null,"$1,500 to $1,999",30,34,21,32,17,19,55,53,0,16,61,55,17,19,816,190,0,11,132,96,245,113,30,44,68,39,21,25,360,114,38,32,4,5,111,114,384,114,0,11,9,9,13,14,361,126,17,20,72,42,8,13,17,27,152,130,992,183,221,132,110,96,376,121,33,37,191,81,6,7,98,60,11,19]
[null,"$2,000 to $2,499",18,28,68,58,11,19,0,11,0,16,30,33,0,11,126,82,5,7,20,31,179,103,12,20,58,55,23,34,70,62,0,11,18,20,0,16,194,105,10,15,0,11,10,12,126,72,0,11,30,37,21,22,0,16,0,16,374,132,36,39,93,97,135,81,0,16,107,83,5,5,43,62,36,39]
[null,"$2,500 to $2,999",32,36,6,9,31,46,0,11,0,16,0,11,0,11,4,8,0,11,0,16,98,73,10,15,49,46,7,11,20,17,3,5,4,6,0,16,36,38,26,24,0,11,4,5,13,20,0,11,0,11,0,11,11,17,0,16,111,57,32,50,0,16,0,21,19,32,0,16,3,4,21,33,77,71]
[null,"$3,000 to $3,499",0,16,0,16,0,11,0,11,0,16,0,11,0,11,45,70,6,8,0,16,0,18,0,11,18,25,0,16,0,18,0,11,0,11,0,16,0,21,0,11,6,7,0,11,14,20,0,11,0,11,0,11,0,16,0,16,81,55,19,31,0,16,51,78,0,16,39,47,0,11,0,16,0,18]
[null,"$3,500 or more",0,16,0,16,0,11,0,11,0,16,0,11,0,11,17,28,0,11,0,16,32,35,0,11,0,11,0,16,23,28,0,11,0,11,0,16,0,21,0,11,0,11,0,11,0,16,0,11,17,26,0,11,0,16,0,16,10,17,0,18,0,16,0,21,0,16,0,16,0,11,0,16,0,18]
[null,"No cash rent",0,16,0,16,0,11,20,30,0,16,0,11,65,57,83,62,19,19,0,16,130,65,32,31,21,22,66,72,24,23,20,21,19,13,0,16,112,68,0,11,3,5,7,6,7,12,11,16,40,31,10,16,0,16,62,89,100,66,6,11,17,26,101,89,27,42,86,58,8,13,48,77,0,18]
[null,null,"-","**",1929,808,1266,1028,1714,98,"-","**",1277,288,1167,48,1204,35,"-","**",1280,327,1185,53,1450,284,2047,323,878,35,1173,65,1638,307,1306,766,1199,241,1495,123,2567,541,1420,206,1750,322,1235,76,1089,63,1743,222,963,331,1095,197,1365,124,1305,58,1333,142,1500,504,1148,48,1310,313,1135,66,1417,692,1607,273,2153,1043]
[]
[]
[null,"B25064. MEDIAN GROSS RENT (DOLLARS)"]
[null,"Universe:  RENTER-OCCUPIED HOUSING UNITS PAYING CASH RENT"]
[null,"Data Set: 2015-2019 American Community Survey 5-Year Estimates"]
[null,{"$f":"RentalHousingCost!D41","v":"Income in 2019 Inflation Adjusted Dollars"}]
[null,null,"Atkinson",null,"Auburn",null,"Brentwood",null,"Candia",null,"Chester",null,"Danville",null,"Deerfield",null,"Derry",null,"East Kingston",null,"Epping",null,"Exeter",null,"Fremont",null,"Greenland",null,"Hampstead",null,"Hampton",null,"Hampton Falls",null,"Kensington",null,"Kingston",null,"Londonderry",null,"New Castle",null,"Newfields",null,"Newington",null,"Newmarket",null,"Newton",null,"North Hampton",null,"Northwood",null,"Nottingham",null,"Plaistow",null,"Portsmouth",null,"Raymond",null,"Rye",null,"Salem",null,"Sandown",null,"Seabrook",null,"South Hampton",null,"Stratham",null,"Windham"]
[null,null,"Estimate","Margin Of Error","Estimate","Margin Of Error","Estimate","Margin Of Error","Estimate","Margin Of Error","Estimate","Margin Of Error","Estimate","Margin Of Error","Estimate","Margin Of Error","Estimate","Margin Of Error","Estimate","Margin Of Error","Estimate","Margin Of Error","Estimate","Margin Of Error","Estimate","Margin Of Error","Estimate","Margin Of Error","Estimate","Margin Of Error","Estimate","Margin Of Error","Estimate","Margin Of Error","Estimate","Margin Of Error","Estimate","Margin Of Error","Estimate","Margin Of Error","Estimate","Margin Of Error","Estimate","Margin Of Error","Estimate","Margin Of Error","Estimate","Margin Of Error","Estimate","Margin Of Error","Estimate","Margin Of Error","Estimate","Margin Of Error","Estimate","Margin Of Error","Estimate","Margin Of Error","Estimate","Margin Of Error","Estimate","Margin Of Error","Estimate","Margin Of Error","Estimate","Margin Of Error","Estimate","Margin Of Error","Estimate","Margin Of Error","Estimate","Margin Of Error","Estimate","Margin Of Error","Estimate","Margin Of Error"]
[null,"Median gross rent",null,504,889,77,1212,157,853,195,1634,863,860,229,1034,304,1117,48,1567,277,892,165,1156,80,1577,286,1296,413,1016,189,1135,54,1348,128,1676,219,928,67,1253,104,1699,295,1196,804,1206,228,1029,66,1135,81,990,578,1019,151,850,1002,1264,220,1138,38,1135,54,1761,277,1066,36,1305,600,946,41,1597,323,1388,198,1820,534]
[]
[]
[]
[]
[]
[]
[]
[]
[]
[]
[]
[]
[]
[]
[]
[]
[]
[]
[]
[]
[]
[]
[]
[]
[]
[]
[null,"B25063. GROSS RENT"]
[null,"Universe:  RENTER-OCCUPIED HOUSING UNITS"]
[null,"Data Set: 2005-2009 American Community Survey 5-Year Estimates"]
[]
[null,null,"Atkinson",null,"Auburn",null,"Brentwood",null,"Candia",null,"Chester",null,"Danville",null,"Deerfield",null,"Derry",null,"East Kingston",null,"Epping",null,"Exeter",null,"Fremont",null,"Greenland",null,"Hampstead",null,"Hampton",null,"Hampton Falls",null,"Kensington",null,"Kingston",null,"Londonderry",null,"New Castle",null,"Newfields",null,"Newington",null,"Newmarket",null,"Newton",null,"North Hampton",null,"Northwood",null,"Nottingham",null,"Plaistow",null,"Portsmouth",null,"Raymond",null,"Rye",null,"Salem",null,"Sandown",null,"Seabrook",null,"South Hampton",null,"Stratham",null,"Windham"]
[null,null,"Estimate","Margin Of Error","Estimate","Margin Of Error","Estimate","Margin Of Error","Estimate","Margin Of Error","Estimate","Margin Of Error","Estimate","Margin Of Error","Estimate","Margin Of Error","Estimate","Margin Of Error","Estimate","Margin Of Error","Estimate","Margin Of Error","Estimate","Margin Of Error","Estimate","Margin Of Error","Estimate","Margin Of Error","Estimate","Margin Of Error","Estimate","Margin Of Error","Estimate","Margin Of Error","Estimate","Margin Of Error","Estimate","Margin Of Error","Estimate","Margin Of Error","Estimate","Margin Of Error","Estimate","Margin Of Error","Estimate","Margin Of Error","Estimate","Margin Of Error","Estimate","Margin Of Error","Estimate","Margin Of Error","Estimate","Margin Of Error","Estimate","Margin Of Error","Estimate","Margin Of Error","Estimate","Margin Of Error","Estimate","Margin Of Error","Estimate","Margin Of Error","Estimate","Margin Of Error","Estimate","Margin Of Error","Estimate","Margin Of Error","Estimate","Margin Of Error","Estimate","Margin Of Error","Estimate","Margin Of Error"]
[null,"Total:",202,108,170,69,252,69,39,39,125,71,197,68,109,71,4690,381,78,39,368,168,1986,226,192,77,191,85,689,159,1924,278,126,46,54,22,375,142,1159,205,104,45,51,32,92,33,1780,197,360,105,154,72,216,99,76,39,668,179,4873,295,910,166,365,177,2642,297,174,100,1418,222,52,26,197,101,376,161]
[null,"With cash rent:",202,108,170,69,191,62,39,39,125,71,165,69,109,71,4625,380,78,39,322,161,1849,227,192,77,191,85,689,159,1815,264,111,44,42,20,363,143,1081,192,93,44,51,32,84,32,1742,198,360,105,136,71,186,97,52,34,654,176,4770,286,876,159,296,153,2481,288,174,100,1391,224,41,25,187,99,330,159]
[null,"Less than $100",0,15,0,15,0,11,0,11,0,11,0,11,0,11,29,44,0,11,0,15,28,31,0,11,0,11,0,15,0,17,0,11,0,11,0,15,0,20,0,11,0,11,0,11,0,15,0,11,0,11,0,11,0,11,0,15,49,79,0,17,0,15,0,20,0,15,28,46,0,11,0,15,0,17]
[null,"$100 to $149",0,15,0,15,0,11,0,11,0,11,0,11,0,11,16,26,0,11,0,15,35,40,0,11,0,11,0,15,0,17,0,11,0,11,0,15,0,20,0,11,0,11,0,11,41,67,0,11,0,11,0,11,0,11,0,15,0,20,0,17,0,15,18,28,0,15,0,15,0,11,0,15,0,17]
[null,"$150 to $199",20,33,0,15,0,11,0,11,0,11,0,11,0,11,14,21,0,11,0,15,0,17,0,11,0,11,0,15,15,17,0,11,0,11,0,15,0,20,0,11,0,11,0,11,0,15,0,11,0,11,0,11,0,11,13,22,62,53,0,17,0,15,0,20,0,15,0,15,0,11,0,15,0,17]
[null,"$200 to $249",44,50,0,15,0,11,0,11,0,11,0,11,0,11,43,41,0,11,0,15,0,17,0,11,0,11,10,16,13,22,0,11,0,11,23,28,0,20,0,11,0,11,0,11,12,19,0,11,0,11,0,11,0,11,0,15,79,75,0,17,0,15,17,26,0,15,15,25,0,11,0,15,0,17]
[null,"$250 to $299",0,15,0,15,0,11,0,11,0,11,0,11,0,11,44,40,0,11,0,15,27,25,0,11,0,11,0,15,0,17,0,11,0,11,39,63,0,20,0,11,0,11,0,11,12,18,8,13,0,11,0,11,0,11,42,69,85,62,9,14,0,15,77,82,0,15,14,23,0,11,0,15,15,24]
[null,"$300 to $349",0,15,0,15,0,11,0,11,0,11,0,11,0,11,124,85,8,11,0,15,10,15,0,11,11,17,10,16,8,10,0,11,0,11,15,24,0,20,0,11,0,11,0,11,26,35,0,11,0,11,0,11,13,21,0,15,85,52,0,17,0,15,0,20,0,15,56,69,0,11,0,15,0,17]
[null,"$350 to $399",0,15,0,15,0,11,0,11,0,11,0,11,0,11,27,31,0,11,30,43,0,17,0,11,0,11,0,15,0,17,0,11,0,11,12,20,0,20,0,11,0,11,0,11,0,15,0,11,0,11,0,11,0,11,12,20,47,44,9,15,0,15,10,18,0,15,0,15,0,11,0,15,0,17]
[null,"$400 to $449",0,15,0,15,0,11,0,11,8,14,0,11,0,11,46,73,0,11,0,15,0,17,0,11,0,11,9,13,42,45,0,11,0,11,0,15,0,20,0,11,0,11,2,4,42,54,14,17,0,11,0,11,0,11,0,15,114,81,0,17,0,15,16,26,0,15,0,15,0,11,0,15,0,17]
[null,"$450 to $499",0,15,0,15,0,11,0,11,0,11,0,11,0,11,79,61,0,11,0,15,14,17,0,11,0,11,9,13,16,21,0,11,0,11,10,17,0,20,0,11,0,11,0,11,0,15,0,11,0,11,0,11,0,11,0,15,56,55,0,17,0,15,0,20,0,15,0,15,0,11,0,15,0,17]
[null,"$500 to $549",0,15,0,15,0,11,0,11,0,11,0,11,0,11,47,42,0,11,0,15,31,29,0,11,0,11,0,15,0,17,0,11,0,11,0,15,9,15,0,11,8,13,0,11,6,10,0,11,0,11,0,11,0,11,0,15,94,67,0,17,0,15,23,27,0,15,72,94,0,11,0,15,0,17]
[null,"$550 to $599",0,15,0,15,0,11,0,11,0,11,5,8,0,11,32,34,0,11,0,15,14,22,0,11,0,11,0,15,12,19,0,11,3,4,0,15,40,60,0,11,0,11,0,11,31,35,15,18,0,11,28,45,0,11,0,15,19,21,0,17,0,15,23,27,0,15,12,18,0,11,0,15,0,17]
[null,"$600 to $649",0,15,0,15,0,11,11,19,0,11,0,11,0,11,25,27,0,11,0,15,30,28,0,11,0,11,0,15,11,14,0,11,0,11,0,15,0,20,0,11,0,11,0,11,0,15,0,11,9,14,12,19,0,11,0,15,48,45,10,19,0,15,38,44,0,15,0,15,0,11,0,15,0,17]
[null,"$650 to $699",0,15,0,15,25,22,0,11,0,11,23,37,9,15,15,22,0,11,19,30,32,35,0,11,0,11,41,52,35,31,19,31,0,11,0,15,0,20,0,11,0,11,2,4,100,71,0,11,0,11,0,11,13,21,43,68,43,46,20,31,0,15,42,66,0,15,48,40,0,11,0,15,11,18]
[null,"$700 to $749",57,87,0,15,0,11,0,11,0,11,0,11,0,11,72,79,0,11,11,17,47,56,0,11,0,11,52,53,34,34,0,11,0,11,0,15,0,20,0,11,0,11,0,11,17,21,0,11,0,11,10,17,0,11,0,15,33,30,24,30,0,15,17,26,0,15,112,92,0,11,26,42,0,17]
[null,"$750 to $799",0,15,0,15,0,11,0,11,0,11,27,35,31,44,48,34,0,11,0,15,69,77,0,11,0,11,101,88,55,39,20,27,0,11,0,15,10,14,0,11,3,6,3,5,52,47,0,11,35,54,7,11,0,11,48,75,76,55,36,42,0,15,24,28,27,44,38,47,0,11,0,15,0,17]
[null,"$800 to $899",20,32,96,59,12,18,16,26,26,42,46,45,0,11,496,159,0,11,110,120,239,100,9,15,0,11,80,78,156,90,0,11,0,11,52,66,128,79,4,8,0,11,7,8,150,82,0,11,15,17,0,11,0,11,47,42,436,171,33,40,0,15,198,88,38,60,146,80,0,11,14,20,71,110]
[null,"$900 to $999",0,15,20,23,0,11,0,11,6,9,0,11,9,15,592,177,6,9,19,32,112,78,9,18,0,11,19,29,201,98,0,11,2,3,108,93,87,67,9,14,9,15,14,20,325,169,46,60,10,17,30,36,0,11,28,33,370,122,91,84,0,15,503,143,9,15,339,151,9,14,0,15,12,19]
[null,"$1,000 to $1,249",0,15,32,30,69,46,12,18,11,20,0,11,40,51,1206,251,0,11,122,87,380,125,45,44,81,65,206,122,575,195,0,11,0,11,13,20,263,111,12,20,7,9,17,15,485,130,179,98,11,17,77,67,8,13,82,68,1246,265,381,115,39,45,882,200,0,15,121,75,4,5,27,30,15,23]
[null,"$1,250 to $1,499",0,15,0,15,49,40,0,11,0,11,26,25,0,11,868,251,21,17,0,15,401,154,22,34,19,28,96,74,228,80,42,28,10,9,48,68,274,123,6,11,0,11,18,15,265,110,55,79,40,51,0,11,0,11,214,135,764,179,95,84,48,47,263,90,59,61,79,57,4,6,48,59,0,17]
[null,"$1,500 to $1,999",28,45,22,28,6,10,0,11,43,44,38,34,20,18,710,164,30,34,0,15,192,101,71,49,51,42,41,44,348,120,30,30,17,14,33,52,238,97,39,33,24,20,21,16,153,72,27,43,16,18,9,15,9,13,125,116,810,195,99,71,117,100,301,136,41,46,291,172,18,18,26,30,64,66]
[null,"$2,000 or more",33,36,0,15,30,44,0,11,31,46,0,11,0,11,92,56,13,12,11,16,188,85,36,34,29,25,15,23,66,80,0,11,10,9,10,17,32,37,23,19,0,11,0,11,25,24,16,26,0,11,13,22,9,14,0,15,254,121,69,60,92,102,29,31,0,15,20,31,6,6,46,43,142,82]
[null,"No cash rent",0,15,0,15,61,47,0,11,0,11,32,34,0,11,65,48,0,11,46,40,137,87,0,11,0,11,0,15,109,51,15,19,12,12,12,18,78,57,11,14,0,11,8,8,38,38,0,11,18,20,30,27,24,28,14,25,103,79,34,43,69,81,161,90,0,15,27,30,11,9,10,18,46,46]
[]
[]
[]
[]
[]
[]
[null,"B25064. MEDIAN GROSS RENT (DOLLARS)"]
[null,"Universe:  RENTER-OCCUPIED HOUSING UNITS PAYING CASH RENT"]
[null,"Data Set: 2010-2014 American Community Survey 5-Year Estimates"]
[null,"Income in 2014 Inflation Adjusted Dollars"]
[null,null,"Atkinson",null,"Auburn",null,"Brentwood",null,"Candia",null,"Chester",null,"Danville",null,"Deerfield",null,"Derry",null,"East Kingston",null,"Epping",null,"Exeter",null,"Fremont",null,"Greenland",null,"Hampstead",null,"Hampton",null,"Hampton Falls",null,"Kensington",null,"Kingston",null,"Londonderry",null,"New Castle",null,"Newfields",null,"Newington",null,"Newmarket",null,"Newton",null,"North Hampton",null,"Northwood",null,"Nottingham",null,"Plaistow",null,"Portsmouth",null,"Raymond",null,"Rye",null,"Salem",null,"Sandown",null,"Seabrook",null,"South Hampton",null,"Stratham",null,"Windham"]
[null,null,"Estimate","Margin Of Error","Estimate","Margin Of Error","Estimate","Margin Of Error","Estimate","Margin Of Error","Estimate","Margin Of Error","Estimate","Margin Of Error","Estimate","Margin Of Error","Estimate","Margin Of Error","Estimate","Margin Of Error","Estimate","Margin Of Error","Estimate","Margin Of Error","Estimate","Margin Of Error","Estimate","Margin Of Error","Estimate","Margin Of Error","Estimate","Margin Of Error","Estimate","Margin Of Error","Estimate","Margin Of Error","Estimate","Margin Of Error","Estimate","Margin Of Error","Estimate","Margin Of Error","Estimate","Margin Of Error","Estimate","Margin Of Error","Estimate","Margin Of Error","Estimate","Margin Of Error","Estimate","Margin Of Error","Estimate","Margin Of Error","Estimate","Margin Of Error","Estimate","Margin Of Error","Estimate","Margin Of Error","Estimate","Margin Of Error","Estimate","Margin Of Error","Estimate","Margin Of Error","Estimate","Margin Of Error","Estimate","Margin Of Error","Estimate","Margin Of Error","Estimate","Margin Of Error","Estimate","Margin Of Error"]
[null,"Median gross rent",732,504,889,77,1212,157,853,195,1634,863,860,229,1034,304,1117,48,1567,277,892,165,1156,80,1577,286,1296,413,1016,189,1135,54,1348,128,1676,219,928,67,1253,104,1699,295,1196,804,1206,228,1029,66,1135,81,990,578,1019,151,850,1002,1264,220,1138,38,1135,54,1761,277,1066,36,1305,600,946,41,1597,323,1388,198,1820,534]
[]
[]
[]
[]
[null,"B25063. GROSS RENT"]
[null,"Universe:  RENTER-OCCUPIED HOUSING UNITS"]
[null,"Data Set: 2005-2009 American Community Survey 5-Year Estimates"]
[]
[null,null,"Atkinson",null,"Auburn",null,"Brentwood",null,"Candia",null,"Chester",null,"Danville",null,"Deerfield",null,"Derry",null,"East Kingston",null,"Epping",null,"Exeter",null,"Fremont",null,"Greenland",null,"Hampstead",null,"Hampton",null,"Hampton Falls",null,"Kensington",null,"Kingston",null,"Londonderry",null,"New Castle",null,"Newfields",null,"Newington",null,"Newmarket",null,"Newton",null,"North Hampton",null,"Northwood",null,"Nottingham",null,"Plaistow",null,"Portsmouth",null,"Raymond",null,"Rye",null,"Salem",null,"Sandown",null,"Seabrook",null,"South Hampton",null,"Stratham",null,"Windham"]
[null,null,"Estimate","Margin Of Error","Estimate","Margin Of Error","Estimate","Margin Of Error","Estimate","Margin Of Error","Estimate","Margin Of Error","Estimate","Margin Of Error","Estimate","Margin Of Error","Estimate","Margin Of Error","Estimate","Margin Of Error","Estimate","Margin Of Error","Estimate","Margin Of Error","Estimate","Margin Of Error","Estimate","Margin Of Error","Estimate","Margin Of Error","Estimate","Margin Of Error","Estimate","Margin Of Error","Estimate","Margin Of Error","Estimate","Margin Of Error","Estimate","Margin Of Error","Estimate","Margin Of Error","Estimate","Margin Of Error","Estimate","Margin Of Error","Estimate","Margin Of Error","Estimate","Margin Of Error","Estimate","Margin Of Error","Estimate","Margin Of Error","Estimate","Margin Of Error","Estimate","Margin Of Error","Estimate","Margin Of Error","Estimate","Margin Of Error","Estimate","Margin Of Error","Estimate","Margin Of Error","Estimate","Margin Of Error","Estimate","Margin Of Error","Estimate","Margin Of Error","Estimate","Margin Of Error","Estimate","Margin Of Error"]
[null,"Total:",402,127,109,92,38,27,69,53,9,14,123,80,186,89,3846,312,60,27,347,145,1907,282,107,58,159,81,547,137,2066,208,76,33,43,23,160,86,827,194,41,29,31,24,57,31,1613,206,225,91,280,103,251,88,163,90,573,170,4507,293,619,154,359,135,2287,261,211,101,1160,200,33,30,177,114,276,108]
[null,"With cash rent:",387,125,109,92,38,27,69,53,0,114,81,62,169,89,3722,312,52,27,271,119,1724,283,107,58,128,83,547,137,1970,201,61,31,38,21,146,83,780,194,41,29,27,22,53,30,1595,206,202,91,261,101,243,89,143,93,506,169,4378,300,556,143,328,133,2193,264,202,98,1085,195,33,30,177,114,264,105]
[null,"Less than $100",0,114,0,114,0,114,0,114,0,114,0,114,0,114,14,21,0,114,0,114,0,114,0,114,0,114,0,114,0,114,0,114,0,114,0,114,0,114,0,114,0,114,0,114,0,114,0,114,0,114,0,114,0,114,0,114,14,22,0,114,0,114,13,20,0,114,0,114,0,114,0,114,0,114]
[null,"$100 to $149",0,114,0,114,0,114,0,114,0,114,0,114,0,114,10,16,0,114,0,114,0,114,0,114,0,114,0,114,0,114,0,114,0,114,0,114,0,114,0,114,0,114,0,114,0,114,0,114,0,114,0,114,0,114,0,114,28,30,0,114,0,114,0,114,0,114,0,114,0,114,0,114,0,114]
[null,"$150 to $199",0,114,0,114,0,114,0,114,0,114,0,114,0,114,146,102,0,114,0,114,57,74,0,114,0,114,0,114,32,31,0,114,0,114,0,114,0,114,0,114,0,114,0,114,0,114,31,48,0,114,0,114,0,114,0,114,81,67,27,43,0,114,12,20,0,114,0,114,0,114,0,114,0,114]
[null,"$200 to $249",0,114,0,114,0,114,0,114,0,114,0,114,0,114,25,27,0,114,0,114,0,114,0,114,0,114,0,114,48,29,4,5,0,114,0,114,0,114,0,114,0,114,0,114,0,114,0,114,0,114,0,114,0,114,0,114,146,72,0,114,0,114,27,30,0,114,0,114,0,114,0,114,0,114]
[null,"$250 to $299",0,114,0,114,0,114,0,114,0,114,0,114,0,114,41,49,0,114,0,114,8,12,0,114,0,114,0,114,0,114,0,114,4,5,0,114,0,114,0,114,0,114,0,114,8,15,10,16,0,114,0,114,0,114,0,114,58,45,9,15,0,114,25,30,0,114,13,21,0,114,0,114,0,114]
[null,"$300 to $349",0,114,0,114,0,114,0,114,0,114,0,114,0,114,38,30,0,114,14,23,0,114,0,114,0,114,0,114,13,21,0,114,0,114,17,28,0,114,0,114,0,114,0,114,11,18,0,114,0,114,0,114,0,114,0,114,119,72,0,114,0,114,49,70,0,114,39,28,0,114,0,114,10,17]
[null,"$350 to $399",0,114,0,114,0,114,0,114,0,114,9,17,0,114,34,32,0,114,0,114,13,21,0,114,0,114,0,114,0,114,0,114,0,114,0,114,9,16,0,114,0,114,0,114,0,114,0,114,0,114,0,114,0,114,0,114,0,114,0,114,16,25,15,23,0,114,0,114,0,114,0,114,9,14]
[null,"$400 to $449",0,114,0,114,0,114,0,114,0,114,0,114,0,114,99,87,0,114,0,114,12,18,0,114,0,114,0,114,38,33,0,114,0,114,0,114,28,33,0,114,0,114,4,6,34,41,0,114,13,20,7,12,0,114,0,114,69,51,0,114,0,114,0,114,0,114,29,35,0,114,0,114,0,114]
[null,"$450 to $499",0,114,0,114,4,8,0,114,0,114,0,114,0,114,63,50,0,114,0,114,25,28,0,114,0,114,0,114,15,24,0,114,0,114,0,114,27,30,0,114,0,114,0,114,22,26,10,16,12,17,0,114,0,114,0,114,63,61,0,114,17,27,0,114,0,114,0,114,0,114,0,114,0,114]
[null,"$500 to $549",0,114,0,114,0,114,0,114,0,114,0,114,0,114,46,60,0,114,12,19,36,59,0,114,0,114,0,114,36,59,0,114,0,114,0,114,0,114,0,114,0,114,0,114,23,19,0,114,0,114,27,43,0,114,0,114,0,114,0,114,0,114,32,32,0,114,24,28,0,114,0,114,0,114]
[null,"$550 to $599",39,35,0,114,0,114,0,114,0,114,0,114,0,114,20,23,9,14,0,114,81,73,0,114,0,114,0,114,55,68,0,114,0,114,18,30,13,22,0,114,0,114,0,114,32,33,0,114,0,114,0,114,0,114,0,114,19,21,32,51,0,114,0,114,0,114,36,46,0,114,0,114,0,114]
[null,"$600 to $649",61,94,0,114,0,114,0,114,0,114,0,114,0,114,68,54,0,114,0,114,53,41,0,114,0,114,56,70,57,59,0,114,0,114,18,30,17,28,0,114,0,114,0,114,104,88,7,11,0,114,20,22,0,114,0,114,46,41,41,46,0,114,8,12,0,114,0,114,0,114,0,114,0,114]
[null,"$650 to $699",77,101,0,114,0,114,0,114,0,114,0,114,15,17,37,36,0,114,39,61,24,28,0,114,0,114,43,68,44,56,0,114,0,114,0,114,0,114,0,114,0,114,0,114,20,34,0,114,38,61,23,37,0,114,51,82,21,22,0,114,0,114,38,31,0,114,12,19,0,114,0,114,0,114]
[null,"$700 to $749",0,114,0,114,0,114,0,114,0,114,0,114,0,114,110,83,0,114,0,114,47,57,0,114,13,21,177,92,105,58,9,14,4,5,0,114,0,114,0,114,0,114,4,6,62,45,0,114,0,114,23,37,0,114,9,15,135,59,12,19,15,25,25,28,0,114,23,24,22,30,0,114,10,15]
[null,"$750 to $799",0,114,0,114,0,114,0,114,0,114,11,17,4,7,187,94,8,13,0,114,23,26,0,114,11,18,37,43,21,27,0,114,0,114,35,55,11,19,5,8,0,114,4,6,70,40,0,114,26,41,0,114,0,114,0,114,133,66,10,16,0,114,84,70,0,114,28,32,0,114,0,114,31,49]
[null,"$800 to $899",140,129,17,28,0,114,0,114,0,114,0,114,33,28,524,147,0,114,88,62,243,120,0,114,0,114,30,34,126,74,0,114,3,6,33,38,152,93,8,15,0,114,0,114,261,110,23,25,15,24,0,114,11,17,108,92,284,103,59,60,0,114,397,139,0,114,198,104,0,114,0,114,0,114]
[null,"$900 to $999",29,32,0,114,26,26,0,114,0,114,0,114,0,114,523,184,0,114,65,71,121,88,0,114,10,16,59,77,552,174,0,114,0,114,0,114,51,45,0,114,4,6,3,5,161,102,33,51,13,20,31,40,0,114,40,36,576,174,111,80,0,114,260,108,16,19,237,119,0,114,0,114,36,54]
[null,"$1,000 to $1,249",41,55,43,66,3,5,14,22,0,114,61,60,69,65,858,190,4,6,43,49,426,209,0,114,34,25,108,81,442,178,7,10,23,20,0,114,175,98,0,114,14,18,14,12,367,106,43,53,18,19,49,45,65,61,140,94,1282,243,234,123,108,94,475,156,85,76,145,85,3,4,74,79,21,23]
[null,"$1,250 to $1,499",0,114,9,14,0,114,19,21,0,114,0,114,20,27,468,165,16,13,0,114,187,96,32,27,60,77,13,21,168,85,6,6,4,6,0,114,120,105,6,10,5,7,20,22,304,128,29,33,59,56,14,21,46,71,123,92,659,186,21,23,29,32,394,169,36,30,252,131,0,114,31,35,70,62]
[null,"$1,500 to $1,999",0,114,40,59,0,114,36,48,0,114,0,114,0,114,378,137,15,15,0,114,179,97,49,49,0,114,24,38,145,72,19,17,0,114,25,37,147,90,16,19,4,6,4,6,51,32,16,25,47,45,42,52,21,29,35,38,362,124,0,114,103,68,316,148,50,42,49,46,5,5,28,45,40,33]
[null,"$2,000 or more",0,114,0,114,5,7,0,114,0,114,0,114,28,45,33,35,0,114,10,21,189,69,26,29,0,114,0,114,73,72,16,21,0,114,0,114,30,32,6,7,0,114,0,114,65,44,0,114,20,21,7,12,0,114,0,114,283,136,0,114,40,36,23,26,15,17,0,114,3,4,44,66,37,46]
[null,"No cash rent",15,25,0,114,0,114,0,114,9,14,42,52,17,18,124,72,8,7,76,76,183,74,0,114,31,28,0,114,96,54,15,10,5,6,14,23,47,43,0,114,4,6,4,6,18,27,23,25,19,22,8,12,20,31,67,77,129,81,63,57,31,39,94,56,9,14,75,54,0,114,0,114,12,18]
[]
[]
[]
[]
[]
[]
[null,"B25064. MEDIAN GROSS RENT (DOLLARS)"]
[null,"Universe:  RENTER-OCCUPIED HOUSING UNITS PAYING CASH RENT"]
[null,"Data Set: 2005-2009 American Community Survey 5-Year Estimates"]
[null,"Income in 2009 Inflation Adjusted Dollars"]
[null,null,"Atkinson",null,"Auburn",null,"Brentwood",null,"Candia",null,"Chester",null,"Danville",null,"Deerfield",null,"Derry",null,"East Kingston",null,"Epping",null,"Exeter",null,"Fremont",null,"Greenland",null,"Hampstead",null,"Hampton",null,"Hampton Falls",null,"Kensington",null,"Kingston",null,"Londonderry",null,"New Castle",null,"Newfields",null,"Newington",null,"Newmarket",null,"Newton",null,"North Hampton",null,"Northwood",null,"Nottingham",null,"Plaistow",null,"Portsmouth",null,"Raymond",null,"Rye",null,"Salem",null,"Sandown",null,"Seabrook",null,"South Hampton",null,"Stratham",null,"Windham"]
[null,null,"Estimate","Margin Of Error","Estimate","Margin Of Error","Estimate","Margin Of Error","Estimate","Margin Of Error","Estimate","Margin Of Error","Estimate","Margin Of Error","Estimate","Margin Of Error","Estimate","Margin Of Error","Estimate","Margin Of Error","Estimate","Margin Of Error","Estimate","Margin Of Error","Estimate","Margin Of Error","Estimate","Margin Of Error","Estimate","Margin Of Error","Estimate","Margin Of Error","Estimate","Margin Of Error","Estimate","Margin Of Error","Estimate","Margin Of Error","Estimate","Margin Of Error","Estimate","Margin Of Error","Estimate","Margin Of Error","Estimate","Margin Of Error","Estimate","Margin Of Error","Estimate","Margin Of Error","Estimate","Margin Of Error","Estimate","Margin Of Error","Estimate","Margin Of Error","Estimate","Margin Of Error","Estimate","Margin Of Error","Estimate","Margin Of Error","Estimate","Margin Of Error","Estimate","Margin Of Error","Estimate","Margin Of Error","Estimate","Margin Of Error","Estimate","Margin Of Error","Estimate","Margin Of Error","Estimate","Margin Of Error"]
[null,"Median gross rent",812,244,1218,490,958,39,1521,325,-666666666,"**",1084,173,1118,131,976,38,1328,366,880,72,1070,79,1719,246,1221,290,749,88,972,28,1618,459,1087,90,779,138,1117,142,1547,573,1170,170,1205,185,993,79,961,224,1188,525,969,323,1233,191,1080,162,1077,37,979,79,1319,413,1059,86,1250,239,959,44,738,725,1367,489,1304,302]

{"sheet":"ACS_Table_B25070","index":60,"n_rows":141,"n_cols":76,"rows_kept":141,"cut":false,"hidden":true,"merged":[]}
[null,"B25070. GROSS RENT AS A PERCENTAGE OF HOUSEHOLD INCOME IN THE PAST 12 MONTHS"]
[null,"Universe:  RENTER-OCCUPIED HOUSING UNITS"]
[null,"Data Set: 2015-2019 American Community Survey 5-Year Estimates"]
[]
[null,null,"Atkinson",null,"Auburn",null,"Brentwood",null,"Candia",null,"Chester",null,"Danville",null,"Deerfield",null,"Derry",null,"East Kingston",null,"Epping",null,"Exeter",null,"Fremont",null,"Greenland",null,"Hampstead",null,"Hampton",null,"Hampton Falls",null,"Kensington",null,"Kingston",null,"Londonderry",null,"New Castle",null,"Newfields",null,"Newington",null,"Newmarket",null,"Newton",null,"North Hampton",null,"Northwood",null,"Nottingham",null,"Plaistow",null,"Portsmouth",null,"Raymond",null,"Rye",null,"Salem",null,"Sandown",null,"Seabrook",null,"South Hampton",null,"Stratham",null,"Windham"]
[null,null,"Estimate","Margin Of Error","Estimate","Margin Of Error","Estimate","Margin Of Error","Estimate","Margin Of Error","Estimate","Margin Of Error","Estimate","Margin Of Error","Estimate","Margin Of Error","Estimate","Margin Of Error","Estimate","Margin Of Error","Estimate","Margin Of Error","Estimate","Margin Of Error","Estimate","Margin Of Error","Estimate","Margin Of Error","Estimate","Margin Of Error","Estimate","Margin Of Error","Estimate","Margin Of Error","Estimate","Margin Of Error","Estimate","Margin Of Error","Estimate","Margin Of Error","Estimate","Margin Of Error","Estimate","Margin Of Error","Estimate","Margin Of Error","Estimate","Margin Of Error","Estimate","Margin Of Error","Estimate","Margin Of Error","Estimate","Margin Of Error","Estimate","Margin Of Error","Estimate","Margin Of Error","Estimate","Margin Of Error","Estimate","Margin Of Error","Estimate","Margin Of Error","Estimate","Margin Of Error","Estimate","Margin Of Error","Estimate","Margin Of Error","Estimate","Margin Of Error","Estimate","Margin Of Error","Estimate","Margin Of Error"]
[null,"Total:",194,106,154,88,133,73,83,62,45,45,255,107,200,79,4450,369,39,27,392,148,2063,256,150,72,260,79,784,169,1694,197,81,38,85,34,380,139,1349,200,45,31,40,20,48,19,1914,180,366,104,208,75,151,72,133,66,571,169,4826,262,888,167,423,174,2530,315,204,103,1224,199,38,26,330,133,204,109]
[null,"Less than 10.0 percent",0,16,38,58,8,13,0,11,0,16,0,11,4,7,17,27,0,11,0,16,112,69,0,11,0,11,0,16,51,41,6,9,0,11,0,16,38,39,0,11,0,11,0,11,24,27,16,19,7,12,0,11,9,14,0,16,177,129,0,18,24,27,75,59,0,16,81,70,0,11,0,16,15,24]
[null,"10.0 to 14.9 percent",0,16,0,16,20,23,0,11,0,16,38,46,31,49,315,119,6,8,0,16,157,75,9,15,38,34,0,16,115,67,12,12,12,11,27,44,118,65,15,17,4,6,10,11,82,52,70,68,10,16,7,11,13,20,0,16,561,149,0,18,72,86,241,121,13,20,110,65,0,11,64,73,32,36]
[null,"15.0 to 19.9 percent",0,16,31,48,12,18,0,11,34,52,11,17,16,19,474,145,0,11,10,18,258,121,23,26,82,58,174,103,274,96,19,29,0,11,0,16,181,105,9,15,4,6,8,7,260,98,120,80,43,35,51,53,50,39,45,56,819,179,163,110,31,35,190,97,0,16,80,46,7,9,29,33,87,74]
[null,"20.0 to 24.9 percent",18,29,24,27,0,11,0,11,0,16,12,21,19,21,727,181,0,11,96,94,170,85,26,40,9,15,219,136,387,135,6,8,22,23,17,26,238,91,0,11,3,5,10,13,376,137,17,18,8,12,0,11,0,16,54,53,829,196,59,58,0,16,369,161,33,39,132,57,3,4,63,53,0,18]
[null,"25.0 to 29.9 percent",77,84,14,22,43,50,8,12,0,16,30,31,0,11,637,196,0,11,42,42,325,174,42,41,16,17,17,20,242,76,7,10,13,19,63,87,166,95,0,11,3,6,4,6,305,106,54,51,19,21,0,11,37,42,147,99,456,133,92,60,21,34,264,120,0,16,192,114,14,15,26,30,11,19]
[null,"30.0 to 34.9 percent",14,25,0,16,7,13,0,11,0,16,56,56,0,11,599,189,0,11,54,48,200,113,0,11,8,13,142,120,125,55,0,11,4,5,17,28,127,75,0,11,8,9,0,11,241,133,0,11,0,11,0,11,10,15,34,34,530,174,131,84,21,33,260,135,40,39,149,87,2,4,34,30,15,24]
[null,"35.0 to 39.9 percent",0,16,16,17,10,15,0,11,0,16,28,44,17,20,289,115,4,8,20,31,79,57,10,15,9,15,21,24,75,65,0,11,6,7,44,50,92,83,0,11,0,11,0,11,84,48,7,11,9,13,8,13,0,16,0,16,268,105,33,41,61,101,90,62,0,16,82,59,0,11,26,30,0,18]
[null,"40.0 to 49.9 percent",53,83,10,16,33,52,0,11,11,19,37,57,42,39,268,131,5,7,32,39,180,102,0,11,11,15,27,33,137,56,6,9,0,11,31,49,95,70,10,15,7,9,0,11,225,97,10,17,56,45,31,26,0,16,42,66,384,159,64,64,58,53,257,141,91,100,73,49,0,11,21,34,33,39]
[null,"50.0 percent or more",32,36,21,32,0,11,55,55,0,16,43,52,6,10,1041,289,5,9,118,95,424,131,8,14,66,58,118,106,225,89,5,7,9,8,162,134,182,78,11,17,8,9,9,8,294,127,61,51,16,19,44,36,14,21,174,126,627,191,340,135,118,114,663,218,0,16,239,86,0,11,19,32,11,20]
[null,"Not computed",0,16,0,16,0,11,20,30,0,16,0,11,65,57,83,62,19,19,20,31,158,73,32,31,21,22,66,72,63,41,20,21,19,13,19,30,112,68,0,11,3,5,7,6,23,29,11,16,40,31,10,16,0,16,75,92,175,77,6,11,17,26,121,89,27,42,86,58,12,14,48,77,0,18]
[]
[]
[]
[]
[]
[]
[]
[]
[]
[]
[]
[]
[]
[]
[]
[]
[]
[null,"Calculated B25070. GROSS RENT AS A PERCENTAGE OF HOUSEHOLD INCOME IN THE PAST 12 MONTHS"]
[null,"Universe:  RENTER-OCCUPIED HOUSING UNITS"]
[null,"Data Set: 2015-2019 American Community Survey 5-Year Estimates"]
[]
[null,null,"Atkinson",null,"Auburn",null,"Brentwood",null,"Candia",null,"Chester",null,"Danville",null,"Deerfield",null,"Derry",null,"East Kingston",null,"Epping",null,"Exeter",null,"Fremont",null,"Greenland",null,"Hampstead",null,"Hampton",null,"Hampton Falls",null,"Kensington",null,"Kingston",null,"Londonderry",null,"New Castle",null,"Newfields",null,"Newington",null,"Newmarket",null,"Newton",null,"North Hampton",null,"Northwood",null,"Nottingham",null,"Plaistow",null,"Portsmouth",null,"Raymond",null,"Rye",null,"Salem",null,"Sandown",null,"Seabrook",null,"South Hampton",null,"Stratham",null,"Windham"]
[null,null,"Estimate","Margin Of Error","Estimate","Margin Of Error","Estimate","Margin Of Error","Estimate","Margin Of Error","Estimate","Margin Of Error","Estimate","Margin Of Error","Estimate","Margin Of Error","Estimate","Margin Of Error","Estimate","Margin Of Error","Estimate","Margin Of Error","Estimate","Margin Of Error","Estimate","Margin Of Error","Estimate","Margin Of Error","Estimate","Margin Of Error","Estimate","Margin Of Error","Estimate","Margin Of Error","Estimate","Margin Of Error","Estimate","Margin Of Error","Estimate","Margin Of Error","Estimate","Margin Of Error","Estimate","Margin Of Error","Estimate","Margin Of Error","Estimate","Margin Of Error","Estimate","Margin Of Error","Estimate","Margin Of Error","Estimate","Margin Of Error","Estimate","Margin Of Error","Estimate","Margin Of Error","Estimate","Margin Of Error","Estimate","Margin Of Error","Estimate","Margin Of Error","Estimate","Margin Of Error","Estimate","Margin Of Error","Estimate","Margin Of Error","Estimate","Margin Of Error","Estimate","Margin Of Error","Estimate","Margin Of Error"]
[null,{"$f":"B7","v":"Total:"},{"$f":"C7","v":194},{"$f":"D7","v":106},{"$f":"E7","v":154},88,133,73,83,62,45,45,255,107,200,79,4450,369,39,27,392,148,2063,256,{"$f":"Y7","v":150},72,260,79,784,169,1694,197,81,38,85,34,380,139,1349,200,45,31,40,20,48,19,1914,180,366,104,208,75,151,72,133,66,{"$f":"BE7","v":571},169,4826,262,888,167,423,174,2530,315,204,103,1224,199,38,26,330,133,204,109]
[null,"Less than 20% of HH Income",{"$f":"C8+C9+C10","v":0},{"$f":"SQRT((D8^2)+(D9^2)+(D10^2))","v":27.712812921102035},{"$f":"E8+E9+E10","v":69},{"$f":"SQRT((F8^2)+(F9^2)+(F10^2))","v":76.967525619575426},{"$f":"G8+G9+G10","v":40},{"$f":"SQRT((H8^2)+(H9^2)+(H10^2))","v":31.968734726291562},{"$f":"I8+I9+I10","v":0},{"$f":"SQRT((J8^2)+(J9^2)+(J10^2))","v":19.05255888325765},{"$f":"K8+K9+K10","v":34},{"$f":"SQRT((L8^2)+(L9^2)+(L10^2))","v":56.709787515031302},{"$f":"M8+M9+M10","v":49},{"$f":"SQRT((N8^2)+(N9^2)+(N10^2))","v":50.259327492516249},{"$f":"O8+O9+O10","v":51},{"$f":"SQRT((P8^2)+(P9^2)+(P10^2))","v":53.018864567246254},{"$f":"Q8+Q9+Q10","v":806},{"$f":"SQRT((R8^2)+(R9^2)+(R10^2))","v":189.51253256711018},{"$f":"S8+S9+S10","v":6},{"$f":"SQRT((T8^2)+(T9^2)+(T10^2))","v":17.4928556845359},{"$f":"U8+U9+U10","v":10},{"$f":"SQRT((V8^2)+(V9^2)+(V10^2))","v":28.913664589601922},{"$f":"W8+W9+W10","v":527},{"$f":"SQRT((X8^2)+(X9^2)+(X10^2))","v":158.1992414646796},{"$f":"Y8+Y9+Y10","v":32},{"$f":"SQRT((Z8^2)+(Z9^2)+(Z10^2))","v":31.968734726291562},{"$f":"AA8+AA9+AA10","v":120},{"$f":"SQRT((AB8^2)+(AB9^2)+(AB10^2))","v":68.124885321004399},{"$f":"AC8+AC9+AC10","v":174},{"$f":"SQRT((AD8^2)+(AD9^2)+(AD10^2))","v":105.45615202537972},{"$f":"AE8+AE9+AE10","v":440},{"$f":"SQRT((AF8^2)+(AF9^2)+(AF10^2))","v":124.04031602668546},{"$f":"AG8+AG9+AG10","v":37},{"$f":"SQRT((AH8^2)+(AH9^2)+(AH10^2))","v":32.649655434629018},{"$f":"AI8+AI9+AI10","v":12},{"$f":"SQRT((AJ8^2)+(AJ9^2)+(AJ10^2))","v":19.05255888325765},{"$f":"AK8+AK9+AK10","v":27},{"$f":"SQRT((AL8^2)+(AL9^2)+(AL10^2))","v":49.477267507411923},{"$f":"AM8+AM9+AM10","v":337},{"$f":"SQRT((AN8^2)+(AN9^2)+(AN10^2))","v":129.50289572052048},{"$f":"AO8+AO9+AO10","v":24},{"$f":"SQRT((AP8^2)+(AP9^2)+(AP10^2))","v":25.199206336708304},{"$f":"AQ8+AQ9+AQ10","v":8},{"$f":"SQRT((AR8^2)+(AR9^2)+(AR10^2))","v":13.892443989449804},{"$f":"AS8+AS9+AS10","v":18},{"$f":"SQRT((AT8^2)+(AT9^2)+(AT10^2))","v":17.058722109231979},{"$f":"AU8+AU9+AU10","v":366},{"$f":"SQRT((AV8^2)+(AV9^2)+(AV10^2))","v":114.17968295629481},{"$f":"AW8+AW9+AW10","v":206},{"$f":"SQRT((AX8^2)+(AX9^2)+(AX10^2))","v":106.70051546267244},{"$f":"AY8+AY9+AY10","v":60},{"$f":"SQRT((AZ8^2)+(AZ9^2)+(AZ10^2))","v":40.311288741492746},{"$f":"BA8+BA9+BA10","v":58},{"$f":"SQRT((BB8^2)+(BB9^2)+(BB10^2))","v":55.235857918565905},{"$f":"BC8+BC9+BC10","v":72},{"$f":"SQRT((BD8^2)+(BD9^2)+(BD10^2))","v":46.010868281309364},{"$f":"BE8+BE9+BE10","v":45},{"$f":"SQRT((BF8^2)+(BF9^2)+(BF10^2))","v":60.398675482165999},{"$f":"BG8+BG9+BG10","v":1557},{"$f":"SQRT((BH8^2)+(BH9^2)+(BH10^2))","v":266.23861478005028},{"$f":"BI8+BI9+BI10","v":163},{"$f":"SQRT((BJ8^2)+(BJ9^2)+(BJ10^2))","v":112.90704141017954},{"$f":"BK8+BK9+BK10","v":127},{"$f":"SQRT((BL8^2)+(BL9^2)+(BL10^2))","v":96.695398029068585},{"$f":"BM8+BM9+BM10","v":506},{"$f":"SQRT((BN8^2)+(BN9^2)+(BN10^2))","v":165.92468170829801},{"$f":"BO8+BO9+BO10","v":13},{"$f":"SQRT((BP8^2)+(BP9^2)+(BP10^2))","v":30.199337741082999},{"$f":"BQ8+BQ9+BQ10","v":271},{"$f":"SQRT((BR8^2)+(BR9^2)+(BR10^2))","v":106.02358228243375},{"$f":"BS8+BS9+BS10","v":7},{"$f":"SQRT((BT8^2)+(BT9^2)+(BT10^2))","v":17.972200755611428},{"$f":"BU8+BU9+BU10","v":93},{"$f":"SQRT((BV8^2)+(BV9^2)+(BV10^2))","v":81.694553062000409},{"$f":"BW8+BW9+BW10","v":134},{"$f":"SQRT((BX8^2)+(BX9^2)+(BX10^2))","v":85.720475966947362}]
[null," 20% to 24.9% of HH Income",{"$f":"C11","v":18},{"$f":"D11","v":29},{"$f":"E11","v":24},27,0,11,0,11,0,16,12,21,19,21,727,181,0,11,96,94,170,85,{"$f":"Y11","v":26},40,9,15,219,136,387,135,6,8,22,23,17,26,238,91,0,11,3,5,10,13,376,137,17,18,8,12,0,11,0,16,{"$f":"BE11","v":54},53,829,196,59,58,0,16,369,161,33,39,132,57,3,4,63,53,0,18]
[null," 25% to 29.9% of HH Income",{"$f":"C12","v":77},{"$f":"D12","v":84},14,22,43,50,8,12,0,16,30,31,0,11,637,196,0,11,42,42,325,174,{"$f":"Y12","v":42},41,16,17,17,20,242,76,7,10,13,19,63,87,166,95,0,11,3,6,4,6,305,106,54,51,19,21,0,11,37,42,{"$f":"BE12","v":147},99,456,133,92,60,21,34,264,120,0,16,192,114,14,15,26,30,11,19]
[null," Less Than 30% of HH Income",{"$f":"C12+C11+C10+C9+C8","v":95},{"$f":"SQRT((D12^2)+(D11^2)+(D10^2)+(D9^2)+(D8^2))","v":93.085981758801893},{"$f":"E12+E11+E10+E9+E8","v":107},{"$f":"SQRT((F12^2)+(F11^2)+(F10^2)+(F9^2)+(F8^2))","v":84.480767041972342},{"$f":"G12+G11+G10+G9+G8","v":83},{"$f":"SQRT((H12^2)+(H11^2)+(H10^2)+(H9^2)+(H8^2))","v":60.357269653290317},{"$f":"I12+I11+I10+I9+I8","v":8},{"$f":"SQRT((J12^2)+(J11^2)+(J10^2)+(J9^2)+(J8^2))","v":25.059928172283335},{"$f":"K12+K11+K10+K9+K8","v":34},{"$f":"SQRT((L12^2)+(L11^2)+(L10^2)+(L9^2)+(L8^2))","v":61.057350089894989},{"$f":"M12+M11+M10+M9+M8","v":91},{"$f":"SQRT((N12^2)+(N11^2)+(N10^2)+(N9^2)+(N8^2))","v":62.673758463969591},{"$f":"O12+O11+O10+O9+O8","v":70},{"$f":"SQRT((P12^2)+(P11^2)+(P10^2)+(P9^2)+(P8^2))","v":58.077534382926416},{"$f":"Q12+Q11+Q10+Q9+Q8","v":2170},{"$f":"SQRT((R12^2)+(R11^2)+(R10^2)+(R9^2)+(R8^2))","v":327.24914056418851},{"$f":"S12+S11+S10+S9+S8","v":6},{"$f":"SQRT((T12^2)+(T11^2)+(T10^2)+(T9^2)+(T8^2))","v":23.409399821439251},{"$f":"U12+U11+U10+U9+U8","v":148},{"$f":"SQRT((V12^2)+(V11^2)+(V10^2)+(V9^2)+(V8^2))","v":106.93923508235881},{"$f":"W12+W11+W10+W9+W8","v":1022},{"$f":"SQRT((X12^2)+(X11^2)+(X10^2)+(X9^2)+(X8^2))","v":250.05599372940455},{"$f":"Y12+Y11+Y10+Y9+Y8","v":100},{"$f":"SQRT((Z12^2)+(Z11^2)+(Z10^2)+(Z9^2)+(Z8^2))","v":65.597256040172894},{"$f":"AA12+AA11+AA10+AA9+AA8","v":145},{"$f":"SQRT((AB12^2)+(AB11^2)+(AB10^2)+(AB9^2)+(AB8^2))","v":71.798328671355577},{"$f":"AC12+AC11+AC10+AC9+AC8","v":410},{"$f":"SQRT((AD12^2)+(AD11^2)+(AD10^2)+(AD9^2)+(AD8^2))","v":173.25414857947845},{"$f":"AE12+AE11+AE10+AE9+AE8","v":1069},{"$f":"SQRT((AF12^2)+(AF11^2)+(AF10^2)+(AF9^2)+(AF8^2))","v":198.46158318425256},{"$f":"AG12+AG11+AG10+AG9+AG8","v":50},{"$f":"SQRT((AH12^2)+(AH11^2)+(AH10^2)+(AH9^2)+(AH8^2))","v":35.071355833500363},{"$f":"AI12+AI11+AI10+AI9+AI8","v":47},{"$f":"SQRT((AJ12^2)+(AJ11^2)+(AJ10^2)+(AJ9^2)+(AJ8^2))","v":35.397740040855716},{"$f":"AK12+AK11+AK10+AK9+AK8","v":107},{"$f":"SQRT((AL12^2)+(AL11^2)+(AL10^2)+(AL9^2)+(AL8^2))","v":103.40696301506973},{"$f":"AM12+AM11+AM10+AM9+AM8","v":741},{"$f":"SQRT((AN12^2)+(AN11^2)+(AN10^2)+(AN9^2)+(AN8^2))","v":184.59956663004385},{"$f":"AO12+AO11+AO10+AO9+AO8","v":24},{"$f":"SQRT((AP12^2)+(AP11^2)+(AP10^2)+(AP9^2)+(AP8^2))","v":29.614185789921695},{"$f":"AQ12+AQ11+AQ10+AQ9+AQ8","v":14},{"$f":"SQRT((AR12^2)+(AR11^2)+(AR10^2)+(AR9^2)+(AR8^2))","v":15.937377450509228},{"$f":"AS12+AS11+AS10+AS9+AS8","v":32},{"$f":"SQRT((AT12^2)+(AT11^2)+(AT10^2)+(AT9^2)+(AT8^2))","v":22.271057451320086},{"$f":"AU12+AU11+AU10+AU9+AU8","v":1047},{"$f":"SQRT((AV12^2)+(AV11^2)+(AV10^2)+(AV9^2)+(AV8^2))","v":207.46565980903924},{"$f":"AW12+AW11+AW10+AW9+AW8","v":277},{"$f":"SQRT((AX12^2)+(AX11^2)+(AX10^2)+(AX9^2)+(AX8^2))","v":119.62441222426132},{"$f":"AY12+AY11+AY10+AY9+AY8","v":87},{"$f":"SQRT((AZ12^2)+(AZ11^2)+(AZ10^2)+(AZ9^2)+(AZ8^2))","v":47.010637094172637},{"$f":"BA12+BA11+BA10+BA9+BA8","v":58},{"$f":"SQRT((BB12^2)+(BB11^2)+(BB10^2)+(BB9^2)+(BB8^2))","v":57.384666941614292},{"$f":"BC12+BC11+BC10+BC9+BC8","v":109},{"$f":"SQRT((BD12^2)+(BD11^2)+(BD10^2)+(BD9^2)+(BD8^2))","v":64.319514923544006},{"$f":"BE12+BE11+BE10+BE9+BE8","v":246},{"$f":"SQRT((BF12^2)+(BF11^2)+(BF10^2)+(BF9^2)+(BF8^2))","v":127.5068625604128},{"$f":"BG12+BG11+BG10+BG9+BG8","v":2842},{"$f":"SQRT((BH12^2)+(BH11^2)+(BH10^2)+(BH9^2)+(BH8^2))","v":356.35375682038205},{"$f":"BI12+BI11+BI10+BI9+BI8","v":314},{"$f":"SQRT((BJ12^2)+(BJ11^2)+(BJ10^2)+(BJ9^2)+(BJ8^2))","v":140.39943019827396},{"$f":"BK12+BK11+BK10+BK9+BK8","v":148},{"$f":"SQRT((BL12^2)+(BL11^2)+(BL10^2)+(BL9^2)+(BL8^2))","v":103.74005976477939},{"$f":"BM12+BM11+BM10+BM9+BM8","v":1139},{"$f":"SQRT((BN12^2)+(BN11^2)+(BN10^2)+(BN9^2)+(BN8^2))","v":260.48416458587269},{"$f":"BO12+BO11+BO10+BO9+BO8","v":46},{"$f":"SQRT((BP12^2)+(BP11^2)+(BP10^2)+(BP9^2)+(BP8^2))","v":51.855568649856693},{"$f":"BQ12+BQ11+BQ10+BQ9+BQ8","v":595},{"$f":"SQRT((BR12^2)+(BR11^2)+(BR10^2)+(BR9^2)+(BR8^2))","v":165.78902255577719},{"$f":"BS12+BS11+BS10+BS9+BS8","v":24},{"$f":"SQRT((BT12^2)+(BT11^2)+(BT10^2)+(BT9^2)+(BT8^2))","v":23.748684174075834},{"$f":"BU12+BU11+BU10+BU9+BU8","v":182},{"$f":"SQRT((BV12^2)+(BV11^2)+(BV10^2)+(BV9^2)+(BV8^2))","v":101.89700682551965},{"$f":"BW12+BW11+BW10+BW9+BW8","v":145},{"$f":"SQRT((BX12^2)+(BX11^2)+(BX10^2)+(BX9^2)+(BX8^2))","v":89.627004859026727}]
[null," 30% or More of HH Income",{"$f":"C13+C14+C15+C16","v":99},{"$f":"SQRT((D13^2)+(D14^2)+(D15^2)+(D16^2))","v":95.215544949341123},{"$f":"E13+E14+E15+E16","v":47},{"$f":"SQRT((F13^2)+(F14^2)+(F15^2)+(F16^2))","v":42.720018726587654},{"$f":"G13+G14+G15+G16","v":50},{"$f":"SQRT((H13^2)+(H14^2)+(H15^2)+(H16^2))","v":56.736231810017131},{"$f":"I13+I14+I15+I16","v":55},{"$f":"SQRT((J13^2)+(J14^2)+(J15^2)+(J16^2))","v":58.20652884342099},{"$f":"K13+K14+K15+K16","v":11},{"$f":"SQRT((L13^2)+(L14^2)+(L15^2)+(L16^2))","v":33.600595232822883},{"$f":"M13+M14+M15+M16","v":164},{"$f":"SQRT((N13^2)+(N14^2)+(N15^2)+(N16^2))","v":105},{"$f":"O13+O14+O15+O16","v":65},{"$f":"SQRT((P13^2)+(P14^2)+(P15^2)+(P16^2))","v":46.281745861624536},{"$f":"Q13+Q14+Q15+Q16","v":2197},{"$f":"SQRT((R13^2)+(R14^2)+(R15^2)+(R16^2))","v":386.81778656106286},{"$f":"S13+S14+S15+S16","v":14},{"$f":"SQRT((T13^2)+(T14^2)+(T15^2)+(T16^2))","v":17.748239349298849},{"$f":"U13+U14+U15+U16","v":224},{"$f":"SQRT((V13^2)+(V14^2)+(V15^2)+(V16^2))","v":117.52021102772068},{"$f":"W13+W14+W15+W16","v":883},{"$f":"SQRT((X13^2)+(X14^2)+(X15^2)+(X16^2))","v":208.76541859225631},{"$f":"Y13+Y14+Y15+Y16","v":18},{"$f":"SQRT((Z13^2)+(Z14^2)+(Z15^2)+(Z16^2))","v":25.748786379167466},{"$f":"AA13+AA14+AA15+AA16","v":94},{"$f":"SQRT((AB13^2)+(AB14^2)+(AB15^2)+(AB16^2))","v":63.111013301958636},{"$f":"AC13+AC14+AC15+AC16","v":308},{"$f":"SQRT((AD13^2)+(AD14^2)+(AD15^2)+(AD16^2))","v":165.23014252853503},{"$f":"AE13+AE14+AE15+AE16","v":562},{"$f":"SQRT((AF13^2)+(AF14^2)+(AF15^2)+(AF16^2))","v":135.30336285547378},{"$f":"AG13+AG14+AG15+AG16","v":11},{"$f":"SQRT((AH13^2)+(AH14^2)+(AH15^2)+(AH16^2))","v":19.28730152198591},{"$f":"AI13+AI14+AI15+AI16","v":19},{"$f":"SQRT((AJ13^2)+(AJ14^2)+(AJ15^2)+(AJ16^2))","v":16.093476939431081},{"$f":"AK13+AK14+AK15+AK16","v":254},{"$f":"SQRT((AL13^2)+(AL14^2)+(AL15^2)+(AL16^2))","v":153.75630068390694},{"$f":"AM13+AM14+AM15+AM16","v":496},{"$f":"SQRT((AN13^2)+(AN14^2)+(AN15^2)+(AN16^2))","v":153.29057374802926},{"$f":"AO13+AO14+AO15+AO16","v":21},{"$f":"SQRT((AP13^2)+(AP14^2)+(AP15^2)+(AP16^2))","v":27.495454169735041},{"$f":"AQ13+AQ14+AQ15+AQ16","v":23},{"$f":"SQRT((AR13^2)+(AR14^2)+(AR15^2)+(AR16^2))","v":19.078784028338912},{"$f":"AS13+AS14+AS15+AS16","v":9},{"$f":"SQRT((AT13^2)+(AT14^2)+(AT15^2)+(AT16^2))","v":20.663978319771825},{"$f":"AU13+AU14+AU15+AU16","v":844},{"$f":"SQRT((AV13^2)+(AV14^2)+(AV15^2)+(AV16^2))","v":213.37994282499938},{"$f":"AW13+AW14+AW15+AW16","v":78},{"$f":"SQRT((AX13^2)+(AX14^2)+(AX15^2)+(AX16^2))","v":55.964274318532887},{"$f":"AY13+AY14+AY15+AY16","v":81},{"$f":"SQRT((AZ13^2)+(AZ14^2)+(AZ15^2)+(AZ16^2))","v":51.730068625510249},{"$f":"BA13+BA14+BA15+BA16","v":83},{"$f":"SQRT((BB13^2)+(BB14^2)+(BB15^2)+(BB16^2))","v":47.560487802376457},{"$f":"BC13+BC14+BC15+BC16","v":24},{"$f":"SQRT((BD13^2)+(BD14^2)+(BD15^2)+(BD16^2))","v":34.322004603461025},{"$f":"BE13+BE14+BE15+BE16","v":250},{"$f":"SQRT((BF13^2)+(BF14^2)+(BF15^2)+(BF16^2))","v":147.11899945282391},{"$f":"BG13+BG14+BG15+BG16","v":1809},{"$f":"SQRT((BH13^2)+(BH14^2)+(BH15^2)+(BH16^2))","v":321.03426608385593},{"$f":"BI13+BI14+BI15+BI16","v":568},{"$f":"SQRT((BJ13^2)+(BJ14^2)+(BJ15^2)+(BJ16^2))","v":176.23280057923384},{"$f":"BK13+BK14+BK15+BK16","v":258},{"$f":"SQRT((BL13^2)+(BL14^2)+(BL15^2)+(BL16^2))","v":164.60558921251732},{"$f":"BM13+BM14+BM15+BM16","v":1270},{"$f":"SQRT((BN13^2)+(BN14^2)+(BN15^2)+(BN16^2))","v":299.12204866910093},{"$f":"BO13+BO14+BO15+BO16","v":131},{"$f":"SQRT((BP13^2)+(BP14^2)+(BP15^2)+(BP16^2))","v":109.69503179269333},{"$f":"BQ13+BQ14+BQ15+BQ16","v":543},{"$f":"SQRT((BR13^2)+(BR14^2)+(BR15^2)+(BR16^2))","v":144.38490225781919},{"$f":"BS13+BS14+BS15+BS16","v":2},{"$f":"SQRT((BT13^2)+(BT14^2)+(BT15^2)+(BT16^2))","v":19.467922333931785},{"$f":"BU13+BU14+BU15+BU16","v":100},{"$f":"SQRT((BV13^2)+(BV14^2)+(BV15^2)+(BV16^2))","v":63.08724118235002},{"$f":"BW13+BW14+BW15+BW16","v":59},{"$f":"SQRT((BX13^2)+(BX14^2)+(BX15^2)+(BX16^2))","v":53.113086899558006}]
[null," 30% to 34.9% of HH Income",{"$f":"C13","v":14},{"$f":"D13","v":25},{"$f":"E13","v":0},16,7,13,0,11,0,16,56,56,0,11,599,189,0,11,54,48,200,113,{"$f":"Y13","v":0},11,8,13,142,120,125,55,0,11,4,5,17,28,127,75,0,11,8,9,0,11,241,133,0,11,0,11,0,11,10,15,{"$f":"BE13","v":34},34,530,174,131,84,21,33,260,135,40,39,149,87,2,4,34,30,15,24]
[null," Less Than 35% of HH Income",{"$f":"C13+C12+C11+C10+C9+C8","v":109},{"$f":"SQRT((D13^2)+(D12^2)+(D11^2)+(D10^2)+(D9^2)+(D8^2))","v":96.384646080171919},{"$f":"E13+E12+E11+E10+E9+E8","v":107},{"$f":"SQRT((F13^2)+(F12^2)+(F11^2)+(F10^2)+(F9^2)+(F8^2))","v":85.982556370463882},{"$f":"G13+G12+G11+G10+G9+G8","v":90},{"$f":"SQRT((H13^2)+(H12^2)+(H11^2)+(H10^2)+(H9^2)+(H8^2))","v":61.741396161732524},{"$f":"I13+I12+I11+I10+I9+I8","v":8},{"$f":"SQRT((J13^2)+(J12^2)+(J11^2)+(J10^2)+(J9^2)+(J8^2))","v":27.367864366808018},{"$f":"K13+K12+K11+K10+K9+K8","v":34},{"$f":"SQRT((L13^2)+(L12^2)+(L11^2)+(L10^2)+(L9^2)+(L8^2))","v":63.118935352237997},{"$f":"M13+M12+M11+M10+M9+M8","v":147},{"$f":"SQRT((N13^2)+(N12^2)+(N11^2)+(N10^2)+(N9^2)+(N8^2))","v":84.047605557802783},{"$f":"O13+O12+O11+O10+O9+O8","v":70},{"$f":"SQRT((P13^2)+(P12^2)+(P11^2)+(P10^2)+(P9^2)+(P8^2))","v":59.110066824526598},{"$f":"Q13+Q12+Q11+Q10+Q9+Q8","v":2769},{"$f":"SQRT((R13^2)+(R12^2)+(R11^2)+(R10^2)+(R9^2)+(R8^2))","v":377.90607298639696},{"$f":"S13+S12+S11+S10+S9+S8","v":6},{"$f":"SQRT((T13^2)+(T12^2)+(T11^2)+(T10^2)+(T9^2)+(T8^2))","v":25.865034312755125},{"$f":"U13+U12+U11+U10+U9+U8","v":202},{"$f":"SQRT((V13^2)+(V12^2)+(V11^2)+(V10^2)+(V9^2)+(V8^2))","v":117.21774609674083},{"$f":"W13+W12+W11+W10+W9+W8","v":1222},{"$f":"SQRT((X13^2)+(X12^2)+(X11^2)+(X10^2)+(X9^2)+(X8^2))","v":274.40298832192042},{"$f":"Y13+Y12+Y11+Y10+Y9+Y8","v":100},{"$f":"SQRT((Z13^2)+(Z12^2)+(Z11^2)+(Z10^2)+(Z9^2)+(Z8^2))","v":66.51315659326356},{"$f":"AA13+AA12+AA11+AA10+AA9+AA8","v":153},{"$f":"SQRT((AB13^2)+(AB12^2)+(AB11^2)+(AB10^2)+(AB9^2)+(AB8^2))","v":72.965745387818799},{"$f":"AC13+AC12+AC11+AC10+AC9+AC8","v":552},{"$f":"SQRT((AD13^2)+(AD12^2)+(AD11^2)+(AD10^2)+(AD9^2)+(AD8^2))","v":210.75341041131458},{"$f":"AE13+AE12+AE11+AE10+AE9+AE8","v":1194},{"$f":"SQRT((AF13^2)+(AF12^2)+(AF11^2)+(AF10^2)+(AF9^2)+(AF8^2))","v":205.94173933421072},{"$f":"AG13+AG12+AG11+AG10+AG9+AG8","v":50},{"$f":"SQRT((AH13^2)+(AH12^2)+(AH11^2)+(AH10^2)+(AH9^2)+(AH8^2))","v":36.755951898978211},{"$f":"AI13+AI12+AI11+AI10+AI9+AI8","v":51},{"$f":"SQRT((AJ13^2)+(AJ12^2)+(AJ11^2)+(AJ10^2)+(AJ9^2)+(AJ8^2))","v":35.749125863438955},{"$f":"AK13+AK12+AK11+AK10+AK9+AK8","v":124},{"$f":"SQRT((AL13^2)+(AL12^2)+(AL11^2)+(AL10^2)+(AL9^2)+(AL8^2))","v":107.13076122197583},{"$f":"AM13+AM12+AM11+AM10+AM9+AM8","v":868},{"$f":"SQRT((AN13^2)+(AN12^2)+(AN11^2)+(AN10^2)+(AN9^2)+(AN8^2))","v":199.25360724463684},{"$f":"AO13+AO12+AO11+AO10+AO9+AO8","v":24},{"$f":"SQRT((AP13^2)+(AP12^2)+(AP11^2)+(AP10^2)+(AP9^2)+(AP8^2))","v":31.591137997862628},{"$f":"AQ13+AQ12+AQ11+AQ10+AQ9+AQ8","v":22},{"$f":"SQRT((AR13^2)+(AR12^2)+(AR11^2)+(AR10^2)+(AR9^2)+(AR8^2))","v":18.303005217723125},{"$f":"AS13+AS12+AS11+AS10+AS9+AS8","v":32},{"$f":"SQRT((AT13^2)+(AT12^2)+(AT11^2)+(AT10^2)+(AT9^2)+(AT8^2))","v":24.839484696748443},{"$f":"AU13+AU12+AU11+AU10+AU9+AU8","v":1288},{"$f":"SQRT((AV13^2)+(AV12^2)+(AV11^2)+(AV10^2)+(AV9^2)+(AV8^2))","v":246.43660442393698},{"$f":"AW13+AW12+AW11+AW10+AW9+AW8","v":277},{"$f":"SQRT((AX13^2)+(AX12^2)+(AX11^2)+(AX10^2)+(AX9^2)+(AX8^2))","v":120.12909722461083},{"$f":"AY13+AY12+AY11+AY10+AY9+AY8","v":87},{"$f":"SQRT((AZ13^2)+(AZ12^2)+(AZ11^2)+(AZ10^2)+(AZ9^2)+(AZ8^2))","v":48.28043081829324},{"$f":"BA13+BA12+BA11+BA10+BA9+BA8","v":58},{"$f":"SQRT((BB13^2)+(BB12^2)+(BB11^2)+(BB10^2)+(BB9^2)+(BB8^2))","v":58.42944463196617},{"$f":"BC13+BC12+BC11+BC10+BC9+BC8","v":119},{"$f":"SQRT((BD13^2)+(BD12^2)+(BD11^2)+(BD10^2)+(BD9^2)+(BD8^2))","v":66.045438903833471},{"$f":"BE13+BE12+BE11+BE10+BE9+BE8","v":280},{"$f":"SQRT((BF13^2)+(BF12^2)+(BF11^2)+(BF10^2)+(BF9^2)+(BF8^2))","v":131.96211577570284},{"$f":"BG13+BG12+BG11+BG10+BG9+BG8","v":3372},{"$f":"SQRT((BH13^2)+(BH12^2)+(BH11^2)+(BH10^2)+(BH9^2)+(BH8^2))","v":396.56525314253139},{"$f":"BI13+BI12+BI11+BI10+BI9+BI8","v":445},{"$f":"SQRT((BJ13^2)+(BJ12^2)+(BJ11^2)+(BJ10^2)+(BJ9^2)+(BJ8^2))","v":163.60929068974048},{"$f":"BK13+BK12+BK11+BK10+BK9+BK8","v":169},{"$f":"SQRT((BL13^2)+(BL12^2)+(BL11^2)+(BL10^2)+(BL9^2)+(BL8^2))","v":108.8622983406101},{"$f":"BM13+BM12+BM11+BM10+BM9+BM8","v":1399},{"$f":"SQRT((BN13^2)+(BN12^2)+(BN11^2)+(BN10^2)+(BN9^2)+(BN8^2))","v":293.38882050957568},{"$f":"BO13+BO12+BO11+BO10+BO9+BO8","v":86},{"$f":"SQRT((BP13^2)+(BP12^2)+(BP11^2)+(BP10^2)+(BP9^2)+(BP8^2))","v":64.884512790033341},{"$f":"BQ13+BQ12+BQ11+BQ10+BQ9+BQ8","v":744},{"$f":"SQRT((BR13^2)+(BR12^2)+(BR11^2)+(BR10^2)+(BR9^2)+(BR8^2))","v":187.22980531955909},{"$f":"BS13+BS12+BS11+BS10+BS9+BS8","v":26},{"$f":"SQRT((BT13^2)+(BT12^2)+(BT11^2)+(BT10^2)+(BT9^2)+(BT8^2))","v":24.083189157584592},{"$f":"BU13+BU12+BU11+BU10+BU9+BU8","v":216},{"$f":"SQRT((BV13^2)+(BV12^2)+(BV11^2)+(BV10^2)+(BV9^2)+(BV8^2))","v":106.2214667569602},{"$f":"BW13+BW12+BW11+BW10+BW9+BW8","v":160},{"$f":"SQRT((BX13^2)+(BX12^2)+(BX11^2)+(BX10^2)+(BX9^2)+(BX8^2))","v":92.784697014108957}]
[null," 35% or More of HH Income",{"$f":"C14+C15+C16","v":85},{"$f":"SQRT((D14^2)+(D15^2)+(D16^2))","v":91.874914965947042},{"$f":"E14+E15+E16","v":47},{"$f":"SQRT((F14^2)+(F15^2)+(F16^2))","v":39.610604640676719},{"$f":"G14+G15+G16","v":43},{"$f":"SQRT((H14^2)+(H15^2)+(H16^2))","v":55.226805085936306},{"$f":"I14+I15+I16","v":55},{"$f":"SQRT((J14^2)+(J15^2)+(J16^2))","v":57.157676649772952},{"$f":"K14+K15+K16","v":11},{"$f":"SQRT((L14^2)+(L15^2)+(L16^2))","v":29.546573405388315},{"$f":"M14+M15+M16","v":108},{"$f":"SQRT((N14^2)+(N15^2)+(N16^2))","v":88.820042783146647},{"$f":"O14+O15+O16","v":65},{"$f":"SQRT((P14^2)+(P15^2)+(P16^2))","v":44.955533585978046},{"$f":"Q14+Q15+Q16","v":1598},{"$f":"SQRT((R14^2)+(R15^2)+(R16^2))","v":337.50111110928214},{"$f":"S14+S15+S16","v":14},{"$f":"SQRT((T14^2)+(T15^2)+(T16^2))","v":13.928388277184119},{"$f":"U14+U15+U16","v":170},{"$f":"SQRT((V14^2)+(V15^2)+(V16^2))","v":107.2706856508338},{"$f":"W14+W15+W16","v":683},{"$f":"SQRT((X14^2)+(X15^2)+(X16^2))","v":175.53916941811022},{"$f":"Y14+Y15+Y16","v":18},{"$f":"SQRT((Z14^2)+(Z15^2)+(Z16^2))","v":23.280893453645632},{"$f":"AA14+AA15+AA16","v":86},{"$f":"SQRT((AB14^2)+(AB15^2)+(AB16^2))","v":61.757590626578043},{"$f":"AC14+AC15+AC16","v":166},{"$f":"SQRT((AD14^2)+(AD15^2)+(AD16^2))","v":113.5825690852254},{"$f":"AE14+AE15+AE16","v":437},{"$f":"SQRT((AF14^2)+(AF15^2)+(AF16^2))","v":123.62038666821908},{"$f":"AG14+AG15+AG16","v":11},{"$f":"SQRT((AH14^2)+(AH15^2)+(AH16^2))","v":15.842979517754859},{"$f":"AI14+AI15+AI16","v":15},{"$f":"SQRT((AJ14^2)+(AJ15^2)+(AJ16^2))","v":15.297058540778355},{"$f":"AK14+AK15+AK16","v":237},{"$f":"SQRT((AL14^2)+(AL15^2)+(AL16^2))","v":151.18531674736141},{"$f":"AM14+AM15+AM16","v":369},{"$f":"SQRT((AN14^2)+(AN15^2)+(AN16^2))","v":133.68993978605869},{"$f":"AO14+AO15+AO16","v":21},{"$f":"SQRT((AP14^2)+(AP15^2)+(AP16^2))","v":25.199206336708304},{"$f":"AQ14+AQ15+AQ16","v":15},{"$f":"SQRT((AR14^2)+(AR15^2)+(AR16^2))","v":16.822603841260722},{"$f":"AS14+AS15+AS16","v":9},{"$f":"SQRT((AT14^2)+(AT15^2)+(AT16^2))","v":17.4928556845359},{"$f":"AU14+AU15+AU16","v":603},{"$f":"SQRT((AV14^2)+(AV15^2)+(AV16^2))","v":166.85922210054798},{"$f":"AW14+AW15+AW16","v":78},{"$f":"SQRT((AX14^2)+(AX15^2)+(AX16^2))","v":54.872579673275794},{"$f":"AY14+AY15+AY16","v":81},{"$f":"SQRT((AZ14^2)+(AZ15^2)+(AZ16^2))","v":50.547007824400445},{"$f":"BA14+BA15+BA16","v":83},{"$f":"SQRT((BB14^2)+(BB15^2)+(BB16^2))","v":46.270941205037097},{"$f":"BC14+BC15+BC16","v":14},{"$f":"SQRT((BD14^2)+(BD15^2)+(BD16^2))","v":30.870698080866262},{"$f":"BE14+BE15+BE16","v":216},{"$f":"SQRT((BF14^2)+(BF15^2)+(BF16^2))","v":143.13629868066312},{"$f":"BG14+BG15+BG16","v":1279},{"$f":"SQRT((BH14^2)+(BH15^2)+(BH16^2))","v":269.79065958627996},{"$f":"BI14+BI15+BI16","v":437},{"$f":"SQRT((BJ14^2)+(BJ15^2)+(BJ16^2))","v":154.92578868606736},{"$f":"BK14+BK15+BK16","v":237},{"$f":"SQRT((BL14^2)+(BL15^2)+(BL16^2))","v":161.26375910290571},{"$f":"BM14+BM15+BM16","v":1010},{"$f":"SQRT((BN14^2)+(BN15^2)+(BN16^2))","v":266.92508312258701},{"$f":"BO14+BO15+BO16","v":91},{"$f":"SQRT((BP14^2)+(BP15^2)+(BP16^2))","v":102.52804494381037},{"$f":"BQ14+BQ15+BQ16","v":394},{"$f":"SQRT((BR14^2)+(BR15^2)+(BR16^2))","v":115.23020437367974},{"$f":"BS14+BS15+BS16","v":0},{"$f":"SQRT((BT14^2)+(BT15^2)+(BT16^2))","v":19.05255888325765},{"$f":"BU14+BU15+BU16","v":66},{"$f":"SQRT((BV14^2)+(BV15^2)+(BV16^2))","v":55.497747702046432},{"$f":"BW14+BW15+BW16","v":44},{"$f":"SQRT((BX14^2)+(BX15^2)+(BX16^2))","v":47.381430961928537}]
[null," 50% or More of HH Income",{"$f":"C16","v":32},{"$f":"D16","v":36},{"$f":"E16","v":21},32,0,11,55,55,0,16,43,52,6,10,1041,289,5,9,118,95,424,131,{"$f":"Y16","v":8},14,66,58,118,106,225,89,5,7,9,8,162,134,182,78,11,17,8,9,9,8,294,127,61,51,16,19,44,36,14,21,{"$f":"BE16","v":174},126,627,191,340,135,118,114,663,218,0,16,239,86,0,11,19,32,11,20]
[null,"Not computed",{"$f":"C17","v":0},{"$f":"D17","v":16},0,16,0,11,20,30,0,16,0,11,65,57,83,62,19,19,20,31,158,73,{"$f":"Y17","v":32},31,21,22,66,72,63,41,20,21,19,13,19,30,112,68,0,11,3,5,7,6,23,29,11,16,40,31,10,16,0,16,{"$f":"BE17","v":75},92,175,77,6,11,17,26,121,89,27,42,86,58,12,14,48,77,0,18]
[]
[]
[]
[]
[]
[]
[]
[]
[]
[]
[]
[]
[]
[]
[]
[]
[]
[]
[]
[]
[]
[]
[]
[]
[]
[]
[]
[]
[]
[]
[]
[]
[]
[]
[]
[]
[]
[]
[]
[]
[]
[]
[]
[]
[]
[]
[]
[]
[]
[]
[]
[]
[null,"Calculated B25070. GROSS RENT AS A PERCENTAGE OF HOUSEHOLD INCOME IN THE PAST 12 MONTHS"]
[null,"Universe:  RENTER-OCCUPIED HOUSING UNITS"]
[null,"Data Set: 2010-2014 American Community Survey 5-Year Estimates"]
[]
[null,null,"Atkinson",null,"Auburn",null,"Brentwood",null,"Candia",null,"Chester",null,"Danville",null,"Deerfield",null,"Derry",null,"East Kingston",null,"Epping",null,"Exeter",null,"Fremont",null,"Greenland",null,"Hampstead",null,"Hampton",null,"Hampton Falls",null,"Kensington",null,"Kingston",null,"Londonderry",null,"New Castle",null,"Newfields",null,"Newington",null,"Newmarket",null,"Newton",null,"North Hampton",null,"Northwood",null,"Nottingham",null,"Plaistow",null,"Portsmouth",null,"Raymond",null,"Rye",null,"Salem",null,"Sandown",null,"Seabrook",null,"South Hampton",null,"Stratham",null,"Windham"]
[null,null,"Estimate","Margin Of Error","Estimate","Margin Of Error","Estimate","Margin Of Error","Estimate","Margin Of Error","Estimate","Margin Of Error","Estimate","Margin Of Error","Estimate","Margin Of Error","Estimate","Margin Of Error","Estimate","Margin Of Error","Estimate","Margin Of Error","Estimate","Margin Of Error","Estimate","Margin Of Error","Estimate","Margin Of Error","Estimate","Margin Of Error","Estimate","Margin Of Error","Estimate","Margin Of Error","Estimate","Margin Of Error","Estimate","Margin Of Error","Estimate","Margin Of Error","Estimate","Margin Of Error","Estimate","Margin Of Error","Estimate","Margin Of Error","Estimate","Margin Of Error","Estimate","Margin Of Error","Estimate","Margin Of Error","Estimate","Margin Of Error","Estimate","Margin Of Error","Estimate","Margin Of Error","Estimate","Margin Of Error","Estimate","Margin Of Error","Estimate","Margin Of Error","Estimate","Margin Of Error","Estimate","Margin Of Error","Estimate","Margin Of Error","Estimate","Margin Of Error","Estimate","Margin Of Error","Estimate","Margin Of Error"]
[null,"Total:",202,108,170,69,252,69,39,39,125,71,197,68,109,71,4690,381,78,39,368,168,1986,226,192,77,191,85,689,159,1924,278,126,46,54,22,375,142,1159,205,104,45,51,32,92,33,1780,197,360,105,154,72,216,99,76,39,668,179,4873,295,910,166,365,177,2642,297,174,100,1418,222,52,26,197,101,376,161]
[null,"Less than 20% of HH Income",59,60.819404798139878,49,49.739320461783549,23,27.092434368288131,16,30.298514815086232,0,19.05255888325765,66,56.089214649520635,31,46.669047558312137,715,195.67575220246377,36,38.301436004411116,129,105.02380682492898,521,145.89379698945393,27,32.015621187164243,52,44.113490000225553,139,91.345497973353886,320,130.00384609695206,36,28.653097563788805,10,19.646882704388499,82,75.960516059331766,223,110.43097391583576,49,37.456641600656084,8,20.273134932713294,30,25.573423705088842,358,135.68345514468592,0,19.05255888325765,0,19.05255888325765,60,61.0163912403872,20,25.729360660537214,217,132.63860674780929,1319,268.14361823470648,141,91.64060235506966,98,109.0825375575761,654,180.78163623554246,22,38.392707640904931,480,190.04210059878838,23,24.556058315617349,40,44.034077712607996,59,48.672374094551827]
[null," 20% to 24.9% of HH Income",0,15,48,50,21,33,0,11,31,46,19,30,9,15,962,214,14,15,113,112,270,131,33,36,41,58,80,61,261,86,31,24,9,9,82,74,188,94,4,8,14,17,16,16,209,111,31,47,46,57,0,11,2,7,115,95,858,247,115,78,0,15,399,122,0,15,189,118,3,4,60,70,15,24]
[null," 25% to 29.9% of HH Income",75,92,38,41,15,17,0,11,0,11,0,11,0,11,559,163,0,11,0,15,196,92,34,42,18,20,136,91,219,118,36,28,5,5,57,59,130,74,9,14,4,9,17,16,331,101,137,99,16,22,71,62,0,11,54,57,560,137,247,128,77,62,355,134,69,73,84,45,0,11,14,20,23,25]
[null," Less Than 30% of HH Income",134,111.30139262381222,135,81.578183358052286,59,45.956501172304229,16,34.058772731852805,31,50.990195135927848,85,64.552304374050038,40,50.239426748321883,2236,332.64696000414614,50,42.579337712087536,242,154.26924515275235,987,216.58716490133943,94,63.914004725099176,111,75.564541949250241,355,142.63940549511554,800,195.5019181491578,103,46.701177715342467,24,22.181073012818835,221,121.35485157174394,541,162.8097048704407,62,40.779897008207364,26,27.946377224964241,63,34.146742157927747,898,202.31658360104839,168,111.23398761170077,62,64,131,87.681240867131891,22,28.844410203711913,386,172.82071635078938,2737,389.45988240125581,503,175.68722207377519,175,126.36455199145051,1408,255.9726547895302,91,83.833167660538749,753,228.17756243767704,26,27.202941017470888,114,85.082313085623142,97,59.749476985158623]
[null," 30% or More of HH Income",68,65.574385243020004,35,42,132,69.971422738143602,23,30.446674695276659,94,62.281618476080084,80,50.388490749376487,69,58.745212570898062,2337,379.66037454546137,28,24.124676163629637,80,58.940648113165501,835,207.36682473336953,98,60.514461081629072,80,47.402531577965327,334,153.03594349041012,1015,222.59155419736842,8,18.083141320025124,18,22.516660498395403,142,112.1739720255996,540,160.60821896777264,31,28.948229652260256,25,22.22611077089287,21,17.320508075688775,786,225.97123710773457,192,119.04200939164292,74,56.462376853972415,55,53.103672189407014,30,27.784887978899608,226,134.67367968537877,1993,263.7271317100309,361,137.60087209025966,121,103.89417693018218,1073,263.03611919278308,83,76.596344560298704,638,210.04523322370352,15,21.817424229271428,73,52.067264187779251,233,147.31259280862582]
[null," 30% to 34.9% of HH Income",28,45,0,15,8,12,11,19,0,11,0,11,18,20,563,197,0,11,11,17,139,95,38,39,20,22,0,15,191,101,5,7,0,11,93,90,62,57,25,26,3,6,11,11,213,110,37,45,8,12,26,43,0,11,47,36,487,138,83,51,20,32,165,108,27,44,209,151,2,3,25,30,39,30]
[null," Less Than 35% of HH Income",162,120.0541544470661,135,82.94576541331088,67,47.497368348151667,27,39,31,52.163205422979907,85,65.482822174979603,58,54.0740233383831,2799,386.60444901733865,50,43.977266854592045,253,155.20309275268968,1126,236.50581388202701,132,74.873226189339533,131,78.701969479803992,355,143.42593907658406,991,220.04999431947277,108,47.222875812470377,24,24.758836806279895,314,151.08606818631557,603,172.49927536079682,87,48.363209157374989,29,28.583211855912904,74,35.874782229304195,1111,230.28677773593515,205,119.99166637729472,70,65.115282384398824,157,97.657564991146486,22,30.870698080866262,433,176.53045063104551,3224,413.18639861447519,586,182.93988083520773,195,130.3533658944026,1573,277.82368509542164,118,94.678403028356996,962,273.61651996909836,28,27.367864366808018,139,90.21640649017229,136,66.858058601787121]
[null," 35% or More of HH Income",40,47.696960070847283,35,39.230090491866065,124,68.934751758456343,12,23.790754506740637,94,61.302528495976411,80,49.17316341257699,51,55.235857918565905,1774,324.55045832659056,28,21.470910553583888,69,56.435804238089851,696,184.32579851990334,60,46.270941205037097,60,41.98809355043403,334,152.29904792873788,824,198.35826173870348,3,16.673332000533065,18,19.646882704388499,49,66.955208908642803,478,150.15325504297269,6,12.727922061357855,22,21.400934559032695,10,13.379088160259652,573,197.39047596072106,155,110.20889256316842,66,55.172456896534889,29,31.160872901765767,30,25.514701644346147,179,129.77287852244012,1506,224.73984960393651,278,127.80062597655773,101,98.843310345212544,908,239.84161440417299,56,62.69768735766894,429,146.00684915441468,13,21.61018278497431,48,42.555845661906424,194,144.22551785311779]
[null," 50% or More of HH Income",0,15,35,33,79,48,0,11,80,59,43,40,20,23,1193,256,17,14,58,52,429,138,30,29,60,39,96,77,592,153,0,11,18,12,10,17,269,111,3,4,9,9,2,3,352,171,92,84,49,52,20,25,0,11,87,98,826,154,135,90,11,20,434,154,56,59,267,119,13,15,37,35,67,64]
[null,"Not computed",0,15,0,15,61,47,0,11,0,11,32,34,0,11,117,82,0,11,46,40,164,97,0,11,0,11,0,15,109,51,15,19,12,12,12,18,78,57,11,14,0,11,8,8,96,69,0,11,18,20,30,27,24,28,56,70,143,83,46,47,69,81,161,90,0,15,27,30,11,9,10,18,46,46]
[]
[]
[]
[]
[null,"Calculated B25070. GROSS RENT AS A PERCENTAGE OF HOUSEHOLD INCOME IN THE PAST 12 MONTHS"]
[null,"Universe:  RENTER-OCCUPIED HOUSING UNITS"]
[null,"Data Set: 2005-2009 American Community Survey 5-Year Estimates"]
[]
[null,null,"Atkinson",null,"Auburn",null,"Brentwood",null,"Candia",null,"Chester",null,"Danville",null,"Deerfield",null,"Derry",null,"East Kingston",null,"Epping",null,"Exeter",null,"Fremont",null,"Greenland",null,"Hampstead",null,"Hampton",null,"Hampton Falls",null,"Kensington",null,"Kingston",null,"Londonderry",null,"New Castle",null,"Newfields",null,"Newington",null,"Newmarket",null,"Newton",null,"North Hampton",null,"Northwood",null,"Nottingham",null,"Plaistow",null,"Portsmouth",null,"Raymond",null,"Rye",null,"Salem",null,"Sandown",null,"Seabrook",null,"South Hampton",null,"Stratham",null,"Windham"]
[null,null,"Esitimate","Margin Of Error","Esitimate","Margin Of Error","Esitimate","Margin Of Error","Esitimate","Margin Of Error","Esitimate","Margin Of Error","Esitimate","Margin Of Error","Esitimate","Margin Of Error","Esitimate","Margin Of Error","Esitimate","Margin Of Error","Esitimate","Margin Of Error","Esitimate","Margin Of Error","Esitimate","Margin Of Error","Esitimate","Margin Of Error","Esitimate","Margin Of Error","Esitimate","Margin Of Error","Esitimate","Margin Of Error","Esitimate","Margin Of Error","Esitimate","Margin Of Error","Esitimate","Margin Of Error","Esitimate","Margin Of Error","Esitimate","Margin Of Error","Esitimate","Margin Of Error","Esitimate","Margin Of Error","Esitimate","Margin Of Error","Esitimate","Margin Of Error","Esitimate","Margin Of Error","Esitimate","Margin Of Error","Esitimate","Margin Of Error","Esitimate","Margin Of Error","Esitimate","Margin Of Error","Esitimate","Margin Of Error","Esitimate","Margin Of Error","Esitimate","Margin Of Error","Esitimate","Margin Of Error","Esitimate","Margin Of Error","Esitimate","Margin Of Error","Esitimate","Margin Of Error"]
[null,"Total:",402,127,109,92,38,27,69,53,9,14,123,80,186,89,3846,312,60,27,347,145,1907,282,107,58,159,81,547,137,2066,208,76,33,43,23,160,86,827,194,41,29,31,24,57,31,1613,206,225,91,280,103,251,88,163,90,573,170,4507,293,619,154,359,135,2287,261,211,101,1160,200,33,30,177,114,276,108]
[null,"Less than 20% of HH Income",136,170.46113926640288,40,171.67702234137218,18,116.60617479361889,0,197.45379206285202,0,197.45379206285202,0,197.45379206285202,50,118.55800268223145,912,237.49105246303492,11,161.91664522216362,104,185.62327440275371,289,123.47064428438041,10,161.91664522216362,23,117.01709276853532,100,139.06832852953974,402,168.20820431833877,19,115.52056094046635,11,8.1240384046359608,42,123.08127396155761,143,87.58995376183276,25,20.83266665599966,7,161.41871019184859,18,114.79111463872106,445,168.98816526609193,24,117.90250209389112,79,178.66449003649271,91,133.88801290630914,90,144.0173600646811,221,178.72324974664042,1124,232.53816890996626,127,144.59944674859582,121,150.65191668213185,536,179.88051589874874,47,170.66927081346543,224,108.05091392487155,25,163.98780442459739,53,124.34226956268733,69,170.34377006512449]
[null," 20% to 24.9% of HH Income",0,114,0,114,9,8,0,114,0,114,31,49,0,114,604,200,5,6,32,36,324,160,41,47,82,78,62,77,266,93,3,4,0,114,0,114,217,127,11,16,0,114,8,9,240,111,39,36,65,41,66,64,32,35,88,59,793,210,53,57,12,19,418,148,8,12,94,56,0,114,28,45,10,15]
[null," 25% to 29.9% of HH Income",0,114,0,114,0,114,10,16,0,114,11,17,8,14,416,137,12,14,71,54,92,81,33,29,0,114,67,85,273,131,7,8,8,9,0,114,73,52,5,8,0,114,0,114,172,68,41,42,23,27,7,12,0,114,0,114,331,110,162,85,48,37,362,166,29,40,190,119,0,114,0,114,57,57]
[null," Less Than 30% of HH Income",136,234.62523308459387,40,235.51008470976353,27,163.26971550168145,10,228.56071403458645,0,254.91174943497603,42,204.15190422819964,58,165.06968225570679,1932,339.3685312459009,28,162.63148526653748,207,196.64180633832675,705,217.72918959110649,84,171.07600650003494,105,181.03314613628081,229,180.26092199919538,941,232.60266550493355,29,115.86630226256467,19,114.64292389851194,42,202.8324431643025,433,162.80356261458164,41,27.459060435491963,7,228.14030770558719,26,162.03086125797148,857,213.31197809780866,104,130.23440405668543,167,185.28626500634093,164,148.88250400903391,122,186.98128248570765,309,220.04317758112839,2248,332.07529266719018,342,177.15247669733552,181,156.28819533157326,1316,286.03671093060763,84,175.7042970447792,508,170.21163297495269,25,229.9652147608416,81,174.59095051004218,136,180.25260053602557]
[null," 30% or More of HH Income",251,228.55415113272392,69,135.39571632810248,11,161.61683080669539,59,169.59363195591985,0,228,39,168.24387061643583,111,80.293212664583294,1790,338.38882960286975,20,115.26491226735047,64,170.97953093864774,1007,247.49747473459198,23,163.36768346279504,23,163.12265323982442,318,198.69826370655582,1000,248.18944377229263,32,163.05827179263247,19,115.72380913191546,104,181.27603261324978,347,141.32232661543611,0,228,20,198.56736892047493,27,162.91101865742539,738,172.43259552648391,98,134.68852957843143,94,129.30970574554718,79,125.69009507514902,21,162.91408778862558,197,162.35147058157497,2130,324.24527752921858,171,185.42923178398814,130,74.659225819720362,877,202.73874814647544,118,132.40090634130871,577,175.71283390805579,8,161.35984630632245,96,183.60827868045601,128,141.56623891309678]
[null," 30% to 34.9% of HH Income",0,114,17,28,6,8,0,114,0,114,0,114,41,38,391,160,0,114,19,29,121,85,10,16,10,16,88,84,153,107,9,14,4,6,51,55,79,63,0,114,0,114,0,114,155,76,10,16,18,21,8,13,11,18,14,23,513,157,0,114,27,32,207,98,7,13,91,47,0,114,44,66,36,54]
[null," Less Than 35% of HH Income",136,260.85436549921872,57,237.16871631815187,33,163.46559270990332,10,255.41339040856883,0,279.24183067728228,42,233.82472067769052,99,169.38713056191725,2323,375.19461616606389,28,198.6076534275555,226,198.76870981117727,826,233.73275337444687,94,171.82258291621622,115,181.738823590338,317,198.8718180135134,1094,256.03320097206142,38,116.70903992407786,23,114.79982578383994,93,210.15708410615142,512,174.56803831171388,41,117.26039399558574,7,255.0372521809314,26,198.11612756158948,1012,226.44646166367892,114,131.21356637177422,185,186.47251808242416,172,149.44898795241139,133,187.84568134508709,323,221.24194900605988,2761,367.31866274394497,342,210.66323836872917,208,159.53056133543816,1523,302.35905807499796,91,176.18456232031227,599,176.58142597679972,25,256.67099563448926,125,186.64940396368803,172,188.1674785928748]
[null," 35% or More of HH Income",251,198.09341230843594,52,132.46886426628711,5,161.41871019184859,59,125.56273332482054,0,197.45379206285202,39,123.73358476985948,70,70.731888141064076,1399,298.17276870968618,20,17.029386365926403,45,168.50222550459088,886,232.44354153213206,13,162.58228685807074,13,162.33607116103309,230,180.06943105369106,847,223.93972403305315,23,162.4561479292181,15,115.56816170554933,53,172.73100474437123,268,126.5029643921438,0,197.45379206285202,20,162.58228685807074,27,116.37869220780924,583,154.78048972658021,88,133.73481222179961,76,127.59310326189265,71,125.01599897613104,10,161.91664522216362,183,160.71403174583108,1617,283.70054635125399,171,146.24636747625564,103,67.453687816160212,670,177.47957628978045,111,131.76114753598648,486,169.31036589648019,8,114.19719786404568,52,171.33592734741887,92,130.86252328302402]
[null," 50% or More of HH Income",127,111,43,66,5,8,50,51,0,114,0,114,28,45,630,187,9,11,0,114,561,185,0,114,0,114,105,95,443,168,23,20,4,6,53,62,136,73,0,114,0,114,20,22,362,124,76,67,51,50,42,43,10,15,173,112,768,219,128,74,61,55,451,143,52,42,323,144,2,3,52,58,72,60]
[null,"Not computed",15,25,0,114,0,114,0,114,9,14,42,52,17,18,124,72,12,9,76,76,195,77,0,114,31,28,0,114,125,78,15,10,5,6,14,23,47,43,0,114,4,6,4,6,18,27,23,25,19,22,8,12,20,31,67,77,129,81,106,78,48,47,94,56,9,14,75,54,0,114,0,114,12,18]

{"sheet":"ACS_Table_B25074","index":61,"n_rows":491,"n_cols":76,"rows_kept":491,"cut":false,"hidden":true,"merged":[]}
[null,"B25074. HOUSEHOLD INCOME BY GROSS RENT AS A PERCENTAGE OF HOUSEHOLD INCOME IN THE PAST 12 MONTHS"]
[null,"Universe:  RENTER-OCCUPIED HOUSING UNITS",null,null,null,null,"Income in 2019 Inflation Adjusted Dollars"]
[null,"Data Set: 2015-2019 American Community Survey 5-Year Estimates"]
[]
[null,null,"Atkinson",null,"Auburn",null,"Brentwood",null,"Candia",null,"Chester",null,"Danville",null,"Deerfield",null,"Derry",null,"East Kingston",null,"Epping",null,"Exeter",null,"Fremont",null,"Greenland",null,"Hampstead",null,"Hampton",null,"Hampton Falls",null,"Kensington",null,"Kingston",null,"Londonderry",null,"New Castle",null,"Newfields",null,"Newington",null,"Newmarket",null,"Newton",null,"North Hampton",null,"Northwood",null,"Nottingham",null,"Plaistow",null,"Portsmouth",null,"Raymond",null,"Rye",null,"Salem",null,"Sandown",null,"Seabrook",null,"South Hampton",null,"Stratham",null,"Windham"]
[null," ","Estimate","Margin Of Error","Estimate","Margin Of Error","Estimate","Margin Of Error","Estimate","Margin Of Error","Estimate","Margin Of Error","Estimate","Margin Of Error","Estimate","Margin Of Error","Estimate","Margin Of Error","Estimate","Margin Of Error","Estimate","Margin Of Error","Estimate","Margin Of Error","Estimate","Margin Of Error","Estimate","Margin Of Error","Estimate","Margin Of Error","Estimate","Margin Of Error","Estimate","Margin Of Error","Estimate","Margin Of Error","Estimate","Margin Of Error","Estimate","Margin Of Error","Estimate","Margin Of Error","Estimate","Margin Of Error","Estimate","Margin Of Error","Estimate","Margin Of Error","Estimate","Margin Of Error","Estimate","Margin Of Error","Estimate","Margin Of Error","Estimate","Margin Of Error","Estimate","Margin Of Error","Estimate","Margin Of Error","Estimate","Margin Of Error","Estimate","Margin Of Error","Estimate","Margin Of Error","Estimate","Margin Of Error","Estimate","Margin Of Error","Estimate","Margin Of Error","Estimate","Margin Of Error","Estimate","Margin Of Error"]
[null,"Total:",194,106,154,88,133,73,83,62,45,45,255,107,200,79,4450,369,39,27,392,148,2063,256,150,72,260,79,784,169,1694,197,81,38,85,34,380,139,1349,200,45,31,40,20,48,19,1914,180,366,104,208,75,151,72,133,66,571,169,4826,262,888,167,423,174,2530,315,204,103,1224,199,38,26,330,133,204,109]
[null,"Less than $10,000:",18,28,0,16,0,11,0,11,0,16,0,11,0,11,390,189,0,11,20,31,114,68,8,14,0,11,19,21,56,39,0,11,4,5,19,30,46,37,0,11,4,7,6,7,129,100,18,20,9,13,17,20,14,21,57,77,352,135,66,59,0,16,165,91,0,16,115,73,4,5,0,16,0,18]
[null,"Less than 20.0 percent",0,16,0,16,0,11,0,11,0,16,0,11,0,11,0,24,0,11,0,16,0,18,0,11,0,11,0,16,0,18,0,11,0,11,0,16,0,21,0,11,0,11,0,11,0,16,9,14,0,11,0,11,0,16,0,16,0,21,0,18,0,16,0,21,0,16,0,16,0,11,0,16,0,18]
[null,"20.0 to 24.9 percent",0,16,0,16,0,11,0,11,0,16,0,11,0,11,0,24,0,11,0,16,0,18,0,11,0,11,0,16,0,18,0,11,0,11,0,16,0,21,0,11,0,11,0,11,0,16,0,11,0,11,0,11,0,16,0,16,13,23,0,18,0,16,17,29,0,16,0,16,0,11,0,16,0,18]
[null,"25.0 to 29.9 percent",0,16,0,16,0,11,0,11,0,16,0,11,0,11,0,24,0,11,0,16,0,18,0,11,0,11,0,16,0,18,0,11,0,11,0,16,0,21,0,11,0,11,0,11,0,16,0,11,0,11,0,11,0,16,0,16,0,21,0,18,0,16,0,21,0,16,0,16,0,11,0,16,0,18]
[null,"30.0 to 34.9 percent",0,16,0,16,0,11,0,11,0,16,0,11,0,11,0,24,0,11,0,16,0,18,0,11,0,11,0,16,0,18,0,11,0,11,0,16,0,21,0,11,0,11,0,11,0,16,0,11,0,11,0,11,0,16,0,16,31,48,0,18,0,16,0,21,0,16,0,16,0,11,0,16,0,18]
[null,"35.0 to 39.9 percent",0,16,0,16,0,11,0,11,0,16,0,11,0,11,0,24,0,11,0,16,0,18,0,11,0,11,0,16,0,18,0,11,0,11,0,16,0,21,0,11,0,11,0,11,0,16,0,11,0,11,0,11,0,16,0,16,32,35,0,18,0,16,0,21,0,16,0,16,0,11,0,16,0,18]
[null,"40.0 to 49.9 percent",0,16,0,16,0,11,0,11,0,16,0,11,0,11,0,24,0,11,0,16,0,18,0,11,0,11,0,16,0,18,0,11,0,11,0,16,0,21,0,11,0,11,0,11,0,16,0,11,0,11,0,11,0,16,0,16,16,26,0,18,0,16,0,21,0,16,0,16,0,11,0,16,0,18]
[null,"50.0 percent or more",18,28,0,16,0,11,0,11,0,16,0,11,0,11,390,189,0,11,0,16,86,59,8,14,0,11,19,21,17,25,0,11,0,11,0,16,19,22,0,11,4,7,4,6,113,98,9,13,0,11,17,20,14,21,44,73,185,103,66,59,0,16,128,80,0,16,104,71,0,11,0,16,0,18]
[null,"Not computed",0,16,0,16,0,11,0,11,0,16,0,11,0,11,0,24,0,11,20,31,28,33,0,11,0,11,0,16,39,33,0,11,4,5,19,30,27,30,0,11,0,11,2,3,16,25,0,11,9,13,0,11,0,16,13,22,75,47,0,18,0,16,20,30,0,16,11,18,4,5,0,16,0,18]
[null,"$10,000 to $19,999:",0,16,0,16,33,52,16,26,0,16,0,11,18,21,452,143,5,9,29,34,192,83,0,11,0,11,76,100,169,82,5,7,9,8,68,85,56,49,0,11,4,6,2,4,197,103,70,56,6,10,9,17,0,16,34,39,495,156,151,81,0,16,379,153,70,80,153,73,0,11,0,16,16,25]
[null,"Less than 20.0 percent",0,16,0,16,0,11,0,11,0,16,0,11,0,11,0,24,0,11,0,16,0,18,0,11,0,11,0,16,16,25,0,11,0,11,0,16,0,21,0,11,0,11,0,11,0,16,0,11,0,11,0,11,0,16,0,16,25,27,0,18,0,16,16,28,0,16,0,16,0,11,0,16,0,18]
[null,"20.0 to 24.9 percent",0,16,0,16,0,11,0,11,0,16,0,11,0,11,0,24,0,11,0,16,12,21,0,11,0,11,0,16,0,18,0,11,0,11,0,16,0,21,0,11,0,11,0,11,0,16,0,11,0,11,0,11,0,16,0,16,104,96,0,18,0,16,10,16,0,16,0,16,0,11,0,16,0,18]
[null,"25.0 to 29.9 percent",0,16,0,16,0,11,0,11,0,16,0,11,0,11,52,71,0,11,0,16,13,21,0,11,0,11,0,16,23,28,0,11,0,11,0,16,0,21,0,11,0,11,0,11,72,69,18,21,6,10,0,11,0,16,16,27,35,26,0,18,0,16,0,21,0,16,0,16,0,11,0,16,0,18]
[null,"30.0 to 34.9 percent",0,16,0,16,0,11,0,11,0,16,0,11,0,11,84,92,0,11,0,16,0,18,0,11,0,11,13,22,0,18,0,11,0,11,17,28,0,21,0,11,0,11,0,11,8,14,0,11,0,11,0,11,0,16,0,16,44,41,17,27,0,16,65,83,0,16,31,38,0,11,0,16,0,18]
[null,"35.0 to 39.9 percent",0,16,0,16,0,11,0,11,0,16,0,11,0,11,0,24,0,11,0,16,13,22,0,11,0,11,0,16,0,18,0,11,0,11,0,16,0,21,0,11,0,11,0,11,0,16,7,11,0,11,0,11,0,16,0,16,13,22,0,18,0,16,0,21,0,16,15,24,0,11,0,16,0,18]
[null,"40.0 to 49.9 percent",0,16,0,16,33,52,0,11,0,16,0,11,0,11,15,25,0,11,0,16,15,24,0,11,0,11,0,16,10,18,0,11,0,11,0,16,0,21,0,11,0,11,0,11,0,16,0,11,0,11,0,11,0,16,0,16,65,79,0,18,0,16,0,21,43,68,0,16,0,11,0,16,16,25]
[null,"50.0 percent or more",0,16,0,16,0,11,16,26,0,16,0,11,6,10,281,119,5,9,29,34,76,48,0,11,0,11,63,97,120,74,5,7,5,6,51,81,56,49,0,11,4,6,2,4,117,79,45,48,0,11,9,17,0,16,18,28,171,85,128,75,0,16,280,136,0,16,92,60,0,11,0,16,0,18]
[null,"Not computed",0,16,0,16,0,11,0,11,0,16,0,11,12,18,20,31,0,11,0,16,63,55,0,11,0,11,0,16,0,18,0,11,4,5,0,16,0,21,0,11,0,11,0,11,0,16,0,11,0,11,0,11,0,16,0,16,38,39,6,11,0,16,8,12,27,42,15,24,0,11,0,16,0,18]
[null,"$20,000 to $34,999:",53,83,0,16,0,11,28,32,11,19,138,91,33,38,698,242,4,8,121,100,407,147,9,14,28,27,186,120,296,91,0,11,7,7,119,119,237,102,11,17,0,11,3,5,277,133,34,27,43,32,29,27,12,19,66,79,647,185,123,74,157,121,505,197,0,16,129,58,0,11,33,39,34,40]
[null,"Less than 20.0 percent",0,16,0,16,0,11,0,11,0,16,0,11,0,11,25,29,0,11,0,16,14,21,0,11,0,11,0,16,0,18,0,11,0,11,0,16,0,21,0,11,0,11,0,11,0,16,8,13,0,11,0,11,12,19,0,16,43,41,10,16,0,16,28,37,0,16,0,16,0,11,0,16,17,27]
[null,"20.0 to 24.9 percent",0,16,0,16,0,11,0,11,0,16,0,11,0,11,0,24,0,11,0,16,12,18,0,11,0,11,57,62,45,57,0,11,0,11,0,16,0,21,0,11,0,11,0,11,42,58,8,12,0,11,0,11,0,16,0,16,95,93,11,19,0,16,0,21,0,16,0,16,0,11,0,16,0,18]
[null,"25.0 to 29.9 percent",0,16,0,16,0,11,0,11,0,16,30,31,0,11,72,76,0,11,0,16,51,66,0,11,9,13,8,14,30,22,0,11,0,11,0,16,0,21,0,11,0,11,0,11,0,16,0,11,0,11,0,11,0,16,0,16,66,54,0,18,0,16,0,21,0,16,41,39,0,11,0,16,0,18]
[null,"30.0 to 34.9 percent",0,16,0,16,0,11,0,11,0,16,0,11,0,11,62,96,0,11,0,16,23,25,0,11,0,11,71,98,35,28,0,11,0,11,0,16,33,27,0,11,0,11,0,11,81,86,0,11,0,11,0,11,0,16,18,28,39,35,0,18,0,16,18,29,0,16,43,35,0,11,0,16,0,18]
[null,"35.0 to 39.9 percent",0,16,0,16,0,11,0,11,0,16,28,44,0,11,76,70,4,8,0,16,31,32,0,11,9,15,0,16,18,15,0,11,3,5,23,37,50,78,0,11,0,11,0,11,13,21,0,11,9,13,0,11,0,16,0,16,75,64,10,17,0,16,41,40,0,16,8,13,0,11,14,23,0,18]
[null,"40.0 to 49.9 percent",53,83,0,16,0,11,0,11,11,19,37,57,33,38,101,69,0,11,32,39,35,35,0,11,0,11,27,33,85,47,0,11,0,11,0,16,47,58,0,11,0,11,0,11,91,59,0,11,16,18,11,17,0,16,0,16,79,44,24,27,39,43,205,135,0,16,19,23,0,11,0,16,17,29]
[null,"50.0 percent or more",0,16,0,16,0,11,8,13,0,16,43,52,0,11,345,167,0,11,89,90,241,107,0,11,10,16,23,34,70,49,0,11,4,5,96,115,107,70,11,17,0,11,3,5,50,45,7,12,7,12,18,21,0,16,48,75,233,104,68,66,118,114,213,138,0,16,9,16,0,11,19,32,0,18]
[null,"Not computed",0,16,0,16,0,11,20,30,0,16,0,11,0,11,17,27,0,11,0,16,0,18,9,14,0,11,0,16,13,20,0,11,0,11,0,16,0,21,0,11,0,11,0,11,0,16,11,16,11,18,0,11,0,16,0,16,17,22,0,18,0,16,0,21,0,16,9,15,0,11,0,16,0,18]
[null,"$35,000 to $49,999:",61,90,42,38,12,17,31,45,0,16,28,45,26,23,775,225,5,8,81,93,358,134,14,22,35,35,251,143,290,99,12,19,16,22,116,104,84,61,0,11,11,11,0,11,325,125,46,50,34,26,16,20,0,16,133,121,463,150,186,97,21,34,372,138,68,68,190,94,17,19,72,58,0,18]
[null,"Less than 20.0 percent",0,16,0,16,0,11,0,11,0,16,0,11,0,11,16,25,0,11,0,16,21,32,0,11,0,11,0,16,38,58,0,11,0,11,0,16,0,21,0,11,0,11,0,11,18,27,0,11,0,11,0,11,0,16,0,16,15,17,0,18,0,16,0,21,0,16,0,16,0,11,16,26,0,18]
[null,"20.0 to 24.9 percent",0,16,11,17,0,11,0,11,0,16,0,11,0,11,16,19,0,11,55,85,16,25,0,11,0,11,105,112,50,39,0,11,16,22,0,16,0,21,0,11,0,11,0,11,0,16,0,11,0,11,0,11,0,16,0,16,36,34,15,23,0,16,107,103,0,16,19,22,0,11,23,35,0,18]
[null,"25.0 to 29.9 percent",47,77,0,16,12,17,0,11,0,16,0,11,0,11,156,115,0,11,13,22,108,114,0,11,0,11,9,15,50,39,0,11,0,11,49,82,9,14,0,11,0,11,0,11,33,35,36,47,0,11,0,11,0,16,11,18,23,27,10,16,21,34,47,42,0,16,36,45,9,14,0,16,0,18]
[null,"30.0 to 34.9 percent",14,25,0,16,0,11,0,11,0,16,28,45,0,11,223,118,0,11,13,20,145,105,0,11,8,13,50,81,63,44,0,11,0,11,0,16,47,49,0,11,3,5,0,11,78,88,0,11,0,11,0,11,0,16,16,24,152,88,60,51,0,16,91,67,20,19,41,66,0,11,0,16,0,18]
[null,"35.0 to 39.9 percent",0,16,0,16,0,11,0,11,0,16,0,11,17,20,202,103,0,11,0,16,26,31,0,11,0,11,21,24,18,22,0,11,0,11,21,33,10,16,0,11,0,11,0,11,53,42,0,11,0,11,8,13,0,16,0,16,69,55,23,36,0,16,32,38,0,16,20,23,0,11,12,20,0,18]
[null,"40.0 to 49.9 percent",0,16,10,16,0,11,0,11,0,16,0,11,9,14,137,97,0,11,0,16,29,40,0,11,0,11,0,16,42,31,0,11,0,11,31,49,8,13,0,11,5,8,0,11,122,73,10,17,17,20,8,13,0,16,42,66,142,102,40,60,0,16,43,51,48,74,28,25,0,11,21,34,0,18]
[null,"50.0 percent or more",0,16,21,32,0,11,31,45,0,16,0,11,0,11,25,31,0,11,0,16,13,19,0,11,27,33,13,20,18,23,0,11,0,11,15,23,0,21,0,11,0,11,0,11,14,22,0,11,9,14,0,11,0,16,64,97,26,43,38,51,0,16,42,40,0,16,24,30,0,11,0,16,0,18]
[null,"Not computed",0,16,0,16,0,11,0,11,0,16,0,11,0,11,0,24,5,8,0,16,0,18,14,22,0,11,53,70,11,12,12,19,0,11,0,16,10,14,0,11,3,5,0,11,7,12,0,11,8,13,0,11,0,16,0,16,0,21,0,18,0,16,10,15,0,16,22,26,8,13,0,16,0,18]
[null,"$50,000 to $74,999:",14,22,0,16,29,26,8,12,34,52,10,17,19,21,1041,192,19,18,66,53,410,166,65,61,40,46,190,91,360,111,21,18,23,15,31,35,267,99,19,21,5,7,4,7,470,135,46,58,23,34,53,55,70,54,210,142,1239,230,209,110,56,50,464,172,34,40,242,109,4,7,82,82,26,28]
[null,"Less than 20.0 percent",0,16,0,16,12,18,0,11,34,52,0,11,8,14,242,95,0,11,0,16,42,39,0,11,0,11,140,87,98,52,0,11,4,6,0,16,40,43,9,15,0,11,0,11,55,45,37,56,0,11,41,51,23,26,14,24,295,133,15,25,16,25,0,21,0,16,80,69,2,5,0,16,15,24]
[null,"20.0 to 24.9 percent",0,16,0,16,0,11,0,11,0,16,0,11,11,17,369,127,0,11,13,21,71,54,26,40,0,11,42,64,138,89,0,11,4,5,17,26,89,74,0,11,0,11,2,4,161,110,9,14,0,11,0,11,0,16,14,25,265,126,33,49,0,16,166,128,14,23,38,35,0,11,0,16,0,18]
[null,"25.0 to 29.9 percent",0,16,0,16,0,11,8,12,0,16,0,11,0,11,245,126,0,11,12,21,137,93,30,44,0,11,0,16,68,46,7,10,0,11,14,24,21,23,0,11,0,11,2,5,150,77,0,11,0,11,0,11,37,42,120,104,262,99,67,52,0,16,217,110,0,16,63,70,0,11,0,16,0,18]
[null,"30.0 to 34.9 percent",0,16,0,16,7,13,0,11,0,16,10,17,0,11,150,105,0,11,41,44,25,31,0,11,0,11,8,14,17,22,0,11,4,5,0,16,23,26,0,11,5,7,0,11,74,70,0,11,0,11,0,11,10,15,0,16,245,131,54,65,21,33,55,54,20,33,25,26,2,4,34,30,0,18]
[null,"35.0 to 39.9 percent",0,16,0,16,10,15,0,11,0,16,0,11,0,11,11,19,0,11,0,16,0,18,0,11,0,11,0,16,39,58,0,11,3,5,0,16,22,22,0,11,0,11,0,11,18,30,0,11,0,11,0,11,0,16,0,16,55,45,0,18,0,16,17,26,0,16,0,16,0,11,0,16,0,18]
[null,"40.0 to 49.9 percent",0,16,0,16,0,11,0,11,0,16,0,11,0,11,15,26,5,7,0,16,101,90,0,11,0,11,0,16,0,18,6,9,0,11,0,16,40,39,10,15,0,11,0,11,12,19,0,11,23,34,12,18,0,16,0,16,60,65,0,18,19,30,0,21,0,16,26,34,0,11,0,16,0,18]
[null,"50.0 percent or more",14,22,0,16,0,11,0,11,0,16,0,11,0,11,0,24,0,11,0,16,8,14,0,11,29,44,0,16,0,18,0,11,0,11,0,16,0,21,0,11,0,11,0,11,0,16,0,11,0,11,0,11,0,16,0,16,12,15,40,48,0,16,0,21,0,16,10,15,0,11,0,16,11,20]
[null,"Not computed",0,16,0,16,0,11,0,11,0,16,0,11,0,11,9,14,14,16,0,16,26,30,9,15,11,16,0,16,0,18,8,11,8,9,0,16,32,30,0,11,0,11,0,11,0,16,0,11,0,11,0,11,0,16,62,89,45,50,0,18,0,16,9,15,0,16,0,16,0,11,48,77,0,18]
[null,"$75,000 to $99,999:",30,34,54,61,9,14,0,11,0,16,30,34,56,53,546,174,0,11,65,53,194,73,24,26,29,25,34,51,240,95,6,8,17,19,0,16,267,99,0,11,9,8,8,7,206,91,66,72,43,34,17,21,17,25,40,47,434,134,27,32,76,104,284,123,0,16,209,98,3,5,39,33,26,31]
[null,"Less than 20.0 percent",0,16,38,58,9,14,0,11,0,16,0,11,39,51,48,44,0,11,0,16,117,65,14,22,11,16,34,51,90,50,0,11,4,6,0,16,54,52,0,11,4,6,6,7,71,54,66,72,18,20,17,21,17,25,0,16,187,85,27,32,15,24,140,77,0,16,82,57,3,5,13,20,0,18]
[null,"20.0 to 24.9 percent",18,29,0,16,0,11,0,11,0,16,12,21,8,13,295,125,0,11,28,30,43,39,0,11,0,11,0,16,88,67,6,8,0,11,0,16,88,57,0,11,0,11,0,11,85,65,0,11,0,11,0,11,0,16,40,47,142,67,0,18,0,16,50,50,0,16,50,34,0,11,0,16,0,18]
[null,"25.0 to 29.9 percent",12,20,0,16,0,11,0,11,0,16,0,11,0,11,112,94,0,11,17,29,0,18,0,11,7,11,0,16,52,49,0,11,13,19,0,16,54,50,0,11,3,6,0,11,50,30,0,11,13,20,0,11,0,16,0,16,56,46,0,18,0,16,0,21,0,16,52,73,0,11,26,30,11,19]
[null,"30.0 to 34.9 percent",0,16,0,16,0,11,0,11,0,16,18,28,0,11,80,68,0,11,0,16,7,11,0,11,0,11,0,16,10,10,0,11,0,11,0,16,24,27,0,11,0,11,0,11,0,16,0,11,0,11,0,11,0,16,0,16,19,22,0,18,0,16,31,37,0,16,9,15,0,11,0,16,15,24]
[null,"35.0 to 39.9 percent",0,16,16,17,0,11,0,11,0,16,0,11,0,11,0,24,0,11,20,31,9,14,10,15,0,11,0,16,0,18,0,11,0,11,0,16,10,15,0,11,0,11,0,11,0,16,0,11,0,11,0,11,0,16,0,16,8,12,0,18,61,101,0,21,0,16,0,16,0,11,0,16,0,18]
[null,"40.0 to 49.9 percent",0,16,0,16,0,11,0,11,0,16,0,11,0,11,0,24,0,11,0,16,0,18,0,11,11,15,0,16,0,18,0,11,0,11,0,16,0,21,0,11,2,4,0,11,0,16,0,11,0,11,0,11,0,16,0,16,22,25,0,18,0,16,9,15,0,16,0,16,0,11,0,16,0,18]
[null,"50.0 percent or more",0,16,0,16,0,11,0,11,0,16,0,11,0,11,0,24,0,11,0,16,0,18,0,11,0,11,0,16,0,18,0,11,0,11,0,16,0,21,0,11,0,11,0,11,0,16,0,11,0,11,0,11,0,16,0,16,0,21,0,18,0,16,0,21,0,16,0,16,0,11,0,16,0,18]
[null,"Not computed",0,16,0,16,0,11,0,11,0,16,0,11,9,13,11,17,0,11,0,16,18,21,0,11,0,11,0,16,0,18,0,11,0,11,0,16,37,48,0,11,0,11,2,4,0,16,0,11,12,18,0,11,0,16,0,16,0,21,0,18,0,16,54,80,0,16,16,25,0,11,0,16,0,18]
[null,"$100,000 or more:",18,29,58,57,50,49,0,11,0,16,49,48,48,55,548,167,6,8,10,18,388,137,30,29,128,61,28,28,283,99,37,32,9,9,27,44,392,134,15,17,7,8,25,17,310,103,86,67,50,37,10,16,20,22,31,46,1196,191,126,108,113,92,361,128,32,37,186,83,10,7,104,85,102,78]
[null,"Less than 20.0 percent",0,16,31,48,19,23,0,11,0,16,49,48,4,7,475,157,6,8,10,18,333,134,18,21,109,57,0,16,198,83,37,32,4,6,27,44,243,97,15,17,4,6,12,10,222,80,86,67,42,35,0,11,20,22,31,46,992,192,111,105,96,87,322,124,13,20,109,63,2,4,64,73,102,78]
[null,"20.0 to 24.9 percent",0,16,13,20,0,11,0,11,0,16,0,11,0,11,47,31,0,11,0,16,16,25,0,11,9,15,15,18,66,48,0,11,2,5,0,16,61,52,0,11,3,5,8,13,88,70,0,11,8,12,0,11,0,16,0,16,174,76,0,18,0,16,19,31,19,32,25,31,3,4,40,44,0,18]
[null,"25.0 to 29.9 percent",18,29,14,22,31,46,0,11,0,16,0,11,0,11,0,24,0,11,0,16,16,26,12,20,0,11,0,16,19,16,0,11,0,11,0,16,82,70,0,11,0,11,2,4,0,16,0,11,0,11,0,11,0,16,0,16,14,17,15,24,0,16,0,21,0,16,0,16,5,5,0,16,0,18]
[null,"30.0 to 34.9 percent",0,16,0,16,0,11,0,11,0,16,0,11,0,11,0,24,0,11,0,16,0,18,0,11,0,11,0,16,0,18,0,11,0,11,0,16,0,21,0,11,0,11,0,11,0,16,0,11,0,11,0,11,0,16,0,16,0,21,0,18,0,16,0,21,0,16,0,16,0,11,0,16,0,18]
[null,"35.0 to 39.9 percent",0,16,0,16,0,11,0,11,0,16,0,11,0,11,0,24,0,11,0,16,0,18,0,11,0,11,0,16,0,18,0,11,0,11,0,16,0,21,0,11,0,11,0,11,0,16,0,11,0,11,0,11,0,16,0,16,16,26,0,18,0,16,0,21,0,16,39,47,0,11,0,16,0,18]
[null,"40.0 to 49.9 percent",0,16,0,16,0,11,0,11,0,16,0,11,0,11,0,24,0,11,0,16,0,18,0,11,0,11,0,16,0,18,0,11,0,11,0,16,0,21,0,11,0,11,0,11,0,16,0,11,0,11,0,11,0,16,0,16,0,21,0,18,0,16,0,21,0,16,0,16,0,11,0,16,0,18]
[null,"50.0 percent or more",0,16,0,16,0,11,0,11,0,16,0,11,0,11,0,24,0,11,0,16,0,18,0,11,0,11,0,16,0,18,0,11,0,11,0,16,0,21,0,11,0,11,0,11,0,16,0,11,0,11,0,11,0,16,0,16,0,21,0,18,0,16,0,21,0,16,0,16,0,11,0,16,0,18]
[null,"Not computed",0,16,0,16,0,11,0,11,0,16,0,11,44,54,26,40,0,11,0,16,23,26,0,11,10,16,13,21,0,18,0,11,3,4,0,16,6,10,0,11,0,11,3,4,0,16,0,11,0,11,10,16,0,16,0,16,0,21,0,18,17,26,20,24,0,16,13,22,0,11,0,16,0,18]
[]
[]
[]
[]
[]
[]
[]
[]
[]
[]
[]
[]
[]
[]
[]
[null,"Calculated B25074. HOUSEHOLD INCOME BY GROSS RENT AS A PERCENTAGE OF HOUSEHOLD INCOME IN THE PAST 12 MONTHS"]
[null,"Universe:  RENTER-OCCUPIED HOUSING UNITS"]
[null,"Data Set: 2015-2019 American Community Survey 5-Year Estimates"]
[]
[null,null,"Atkinson",null,"Auburn",null,"Brentwood",null,"Candia",null,"Chester",null,"Danville",null,"Deerfield",null,"Derry",null,"East Kingston",null,"Epping",null,"Exeter",null,"Fremont",null,"Greenland",null,"Hampstead",null,"Hampton",null,"Hampton Falls",null,"Kensington",null,"Kingston",null,"Londonderry",null,"New Castle",null,"Newfields",null,"Newington",null,"Newmarket",null,"Newton",null,"North Hampton",null,"Northwood",null,"Nottingham",null,"Plaistow",null,"Portsmouth",null,"Raymond",null,"Rye",null,"Salem",null,"Sandown",null,"Seabrook",null,"South Hampton",null,"Stratham",null,"Windham"]
[null," ","Estimate","Margin Of Error","Estimate","Margin Of Error","Estimate","Margin Of Error","Estimate","Margin Of Error","Estimate","Margin Of Error","Estimate","Margin Of Error","Estimate","Margin Of Error","Estimate","Margin Of Error","Estimate","Margin Of Error","Estimate","Margin Of Error","Estimate","Margin Of Error","Estimate","Margin Of Error","Estimate","Margin Of Error","Estimate","Margin Of Error","Estimate","Margin Of Error","Estimate","Margin Of Error","Estimate","Margin Of Error","Estimate","Margin Of Error","Estimate","Margin Of Error","Estimate","Margin Of Error","Estimate","Margin Of Error","Estimate","Margin Of Error","Estimate","Margin Of Error","Estimate","Margin Of Error","Estimate","Margin Of Error","Estimate","Margin Of Error","Estimate","Margin Of Error","Estimate","Margin Of Error","Estimate","Margin Of Error","Estimate","Margin Of Error","Estimate","Margin Of Error","Estimate","Margin Of Error","Estimate","Margin Of Error","Estimate","Margin Of Error","Estimate","Margin Of Error","Estimate","Margin Of Error","Estimate","Margin Of Error"]
[null,"Total:",{"$f":"C7","v":194},106,154,88,133,73,83,62,45,45,255,107,200,79,4450,369,{"$f":"S7","v":39},27,392,148,2063,256,150,72,260,79,784,169,1694,197,81,38,85,34,380,139,1349,200,45,31,40,20,48,19,1914,180,366,104,208,75,151,72,133,66,571,169,4826,262,888,167,423,174,2530,315,204,103,1224,199,38,26,330,133,204,109]
[null,"Less than $10,000:",18,28,0,16,0,11,0,11,0,16,0,11,0,11,390,189,0,11,20,31,114,68,8,14,0,11,19,21,56,39,0,11,4,5,19,30,46,37,0,11,4,7,6,7,129,100,18,20,9,13,17,20,14,21,57,77,352,135,66,59,0,16,165,91,0,16,115,73,4,5,0,16,0,18]
[null,"Less than 30.0 percent",{"$f":"C9+C10+C11","v":0},{"$f":"SQRT((D9^2)+(D10^2)+(D11^2))","v":27.712812921102035},{"$f":"E9+E10+E11","v":0},{"$f":"SQRT((F9^2)+(F10^2)+(F11^2))","v":27.712812921102035},{"$f":"G9+G10+G11","v":0},{"$f":"SQRT((H9^2)+(H10^2)+(H11^2))","v":19.05255888325765},{"$f":"I9+I10+I11","v":0},{"$f":"SQRT((J9^2)+(J10^2)+(J11^2))","v":19.05255888325765},{"$f":"K9+K10+K11","v":0},{"$f":"SQRT((L9^2)+(L10^2)+(L11^2))","v":27.712812921102035},{"$f":"M9+M10+M11","v":0},{"$f":"SQRT((N9^2)+(N10^2)+(N11^2))","v":19.05255888325765},{"$f":"O9+O10+O11","v":0},{"$f":"SQRT((P9^2)+(P10^2)+(P11^2))","v":19.05255888325765},{"$f":"Q9+Q10+Q11","v":0},{"$f":"SQRT((R9^2)+(R10^2)+(R11^2))","v":41.569219381653056},{"$f":"S9+S10+S11","v":0},{"$f":"SQRT((T9^2)+(T10^2)+(T11^2))","v":19.05255888325765},{"$f":"U9+U10+U11","v":0},{"$f":"SQRT((V9^2)+(V10^2)+(V11^2))","v":27.712812921102035},{"$f":"W9+W10+W11","v":0},{"$f":"SQRT((X9^2)+(X10^2)+(X11^2))","v":31.176914536239792},{"$f":"Y9+Y10+Y11","v":0},{"$f":"SQRT((Z9^2)+(Z10^2)+(Z11^2))","v":19.05255888325765},{"$f":"AA9+AA10+AA11","v":0},{"$f":"SQRT((AB9^2)+(AB10^2)+(AB11^2))","v":19.05255888325765},{"$f":"AC9+AC10+AC11","v":0},{"$f":"SQRT((AD9^2)+(AD10^2)+(AD11^2))","v":27.712812921102035},{"$f":"AE9+AE10+AE11","v":0},{"$f":"SQRT((AF9^2)+(AF10^2)+(AF11^2))","v":31.176914536239792},{"$f":"AG9+AG10+AG11","v":0},{"$f":"SQRT((AH9^2)+(AH10^2)+(AH11^2))","v":19.05255888325765},{"$f":"AI9+AI10+AI11","v":0},{"$f":"SQRT((AJ9^2)+(AJ10^2)+(AJ11^2))","v":19.05255888325765},{"$f":"AK9+AK10+AK11","v":0},{"$f":"SQRT((AL9^2)+(AL10^2)+(AL11^2))","v":27.712812921102035},{"$f":"AM9+AM10+AM11","v":0},{"$f":"SQRT((AN9^2)+(AN10^2)+(AN11^2))","v":36.373066958946424},{"$f":"AO9+AO10+AO11","v":0},{"$f":"SQRT((AP9^2)+(AP10^2)+(AP11^2))","v":19.05255888325765},{"$f":"AQ9+AQ10+AQ11","v":0},{"$f":"SQRT((AR9^2)+(AR10^2)+(AR11^2))","v":19.05255888325765},{"$f":"AS9+AS10+AS11","v":0},{"$f":"SQRT((AT9^2)+(AT10^2)+(AT11^2))","v":19.05255888325765},{"$f":"AU9+AU10+AU11","v":0},{"$f":"SQRT((AV9^2)+(AV10^2)+(AV11^2))","v":27.712812921102035},{"$f":"AW9+AW10+AW11","v":9},{"$f":"SQRT((AX9^2)+(AX10^2)+(AX11^2))","v":20.928449536456348},{"$f":"AY9+AY10+AY11","v":0},{"$f":"SQRT((AZ9^2)+(AZ10^2)+(AZ11^2))","v":19.05255888325765},{"$f":"BA9+BA10+BA11","v":0},{"$f":"SQRT((BB9^2)+(BB10^2)+(BB11^2))","v":19.05255888325765},{"$f":"BC9+BC10+BC11","v":0},{"$f":"SQRT((BD9^2)+(BD10^2)+(BD11^2))","v":27.712812921102035},{"$f":"BE9+BE10+BE11","v":0},{"$f":"SQRT((BF9^2)+(BF10^2)+(BF11^2))","v":27.712812921102035},{"$f":"BG9+BG10+BG11","v":13},{"$f":"SQRT((BH9^2)+(BH10^2)+(BH11^2))","v":37.563279941985897},{"$f":"BI9+BI10+BI11","v":0},{"$f":"SQRT((BJ9^2)+(BJ10^2)+(BJ11^2))","v":31.176914536239792},{"$f":"BK9+BK10+BK11","v":0},{"$f":"SQRT((BL9^2)+(BL10^2)+(BL11^2))","v":27.712812921102035},{"$f":"BM9+BM10+BM11","v":17},{"$f":"SQRT((BN9^2)+(BN10^2)+(BN11^2))","v":41.509035161034518},{"$f":"BO9+BO10+BO11","v":0},{"$f":"SQRT((BP9^2)+(BP10^2)+(BP11^2))","v":27.712812921102035},{"$f":"BQ9+BQ10+BQ11","v":0},{"$f":"SQRT((BR9^2)+(BR10^2)+(BR11^2))","v":27.712812921102035},{"$f":"BS9+BS10+BS11","v":0},{"$f":"SQRT((BT9^2)+(BT10^2)+(BT11^2))","v":19.05255888325765},{"$f":"BU9+BU10+BU11","v":0},{"$f":"SQRT((BV9^2)+(BV10^2)+(BV11^2))","v":27.712812921102035},{"$f":"BW9+BW10+BW11","v":0},{"$f":"SQRT((BX9^2)+(BX10^2)+(BX11^2))","v":31.176914536239792}]
[null,"More than 30.0 percent",{"$f":"C12+C13+C14+C15","v":18},{"$f":"SQRT((D12^2)+(D13^2)+(D14^2)+(D15^2))","v":39.395431207184416},{"$f":"E12+E13+E14+E15","v":0},{"$f":"SQRT((F12^2)+(F13^2)+(F14^2)+(F15^2))","v":32},{"$f":"G12+G13+G14+G15","v":0},{"$f":"SQRT((H12^2)+(H13^2)+(H14^2)+(H15^2))","v":22},{"$f":"I12+I13+I14+I15","v":0},{"$f":"SQRT((J12^2)+(J13^2)+(J14^2)+(J15^2))","v":22},{"$f":"K12+K13+K14+K15","v":0},{"$f":"SQRT((L12^2)+(L13^2)+(L14^2)+(L15^2))","v":32},{"$f":"M12+M13+M14+M15","v":0},{"$f":"SQRT((N12^2)+(N13^2)+(N14^2)+(N15^2))","v":22},{"$f":"O12+O13+O14+O15","v":0},{"$f":"SQRT((P12^2)+(P13^2)+(P14^2)+(P15^2))","v":22},{"$f":"Q12+Q13+Q14+Q15","v":390},{"$f":"SQRT((R12^2)+(R13^2)+(R14^2)+(R15^2))","v":193.51744107444165},{"$f":"S12+S13+S14+S15","v":0},{"$f":"SQRT((T12^2)+(T13^2)+(T14^2)+(T15^2))","v":22},{"$f":"U12+U13+U14+U15","v":0},{"$f":"SQRT((V12^2)+(V13^2)+(V14^2)+(V15^2))","v":32},{"$f":"W12+W13+W14+W15","v":86},{"$f":"SQRT((X12^2)+(X13^2)+(X14^2)+(X15^2))","v":66.730802482811484},{"$f":"Y12+Y13+Y14+Y15","v":8},{"$f":"SQRT((Z12^2)+(Z13^2)+(Z14^2)+(Z15^2))","v":23.643180835073778},{"$f":"AA12+AA13+AA14+AA15","v":0},{"$f":"SQRT((AB12^2)+(AB13^2)+(AB14^2)+(AB15^2))","v":22},{"$f":"AC12+AC13+AC14+AC15","v":19},{"$f":"SQRT((AD12^2)+(AD13^2)+(AD14^2)+(AD15^2))","v":34.770677301427419},{"$f":"AE12+AE13+AE14+AE15","v":17},{"$f":"SQRT((AF12^2)+(AF13^2)+(AF14^2)+(AF15^2))","v":39.962482405376171},{"$f":"AG12+AG13+AG14+AG15","v":0},{"$f":"SQRT((AH12^2)+(AH13^2)+(AH14^2)+(AH15^2))","v":22},{"$f":"AI12+AI13+AI14+AI15","v":0},{"$f":"SQRT((AJ12^2)+(AJ13^2)+(AJ14^2)+(AJ15^2))","v":22},{"$f":"AK12+AK13+AK14+AK15","v":0},{"$f":"SQRT((AL12^2)+(AL13^2)+(AL14^2)+(AL15^2))","v":32},{"$f":"AM12+AM13+AM14+AM15","v":19},{"$f":"SQRT((AN12^2)+(AN13^2)+(AN14^2)+(AN15^2))","v":42.508822613664563},{"$f":"AO12+AO13+AO14+AO15","v":0},{"$f":"SQRT((AP12^2)+(AP13^2)+(AP14^2)+(AP15^2))","v":22},{"$f":"AQ12+AQ13+AQ14+AQ15","v":4},{"$f":"SQRT((AR12^2)+(AR13^2)+(AR14^2)+(AR15^2))","v":20.297783130184438},{"$f":"AS12+AS13+AS14+AS15","v":4},{"$f":"SQRT((AT12^2)+(AT13^2)+(AT14^2)+(AT15^2))","v":19.974984355438178},{"$f":"AU12+AU13+AU14+AU15","v":113},{"$f":"SQRT((AV12^2)+(AV13^2)+(AV14^2)+(AV15^2))","v":101.84301645179212},{"$f":"AW12+AW13+AW14+AW15","v":9},{"$f":"SQRT((AX12^2)+(AX13^2)+(AX14^2)+(AX15^2))","v":23.065125189341593},{"$f":"AY12+AY13+AY14+AY15","v":0},{"$f":"SQRT((AZ12^2)+(AZ13^2)+(AZ14^2)+(AZ15^2))","v":22},{"$f":"BA12+BA13+BA14+BA15","v":17},{"$f":"SQRT((BB12^2)+(BB13^2)+(BB14^2)+(BB15^2))","v":27.622454633866266},{"$f":"BC12+BC13+BC14+BC15","v":14},{"$f":"SQRT((BD12^2)+(BD13^2)+(BD14^2)+(BD15^2))","v":34.770677301427419},{"$f":"BE12+BE13+BE14+BE15","v":44},{"$f":"SQRT((BF12^2)+(BF13^2)+(BF14^2)+(BF15^2))","v":78.083288865159872},{"$f":"BG12+BG13+BG14+BG15","v":264},{"$f":"SQRT((BH12^2)+(BH13^2)+(BH14^2)+(BH15^2))","v":121.71277665060477},{"$f":"BI12+BI13+BI14+BI15","v":66},{"$f":"SQRT((BJ12^2)+(BJ13^2)+(BJ14^2)+(BJ15^2))","v":66.730802482811484},{"$f":"BK12+BK13+BK14+BK15","v":0},{"$f":"SQRT((BL12^2)+(BL13^2)+(BL14^2)+(BL15^2))","v":32},{"$f":"BM12+BM13+BM14+BM15","v":128},{"$f":"SQRT((BN12^2)+(BN13^2)+(BN14^2)+(BN15^2))","v":87.88060081724521},{"$f":"BO12+BO13+BO14+BO15","v":0},{"$f":"SQRT((BP12^2)+(BP13^2)+(BP14^2)+(BP15^2))","v":32},{"$f":"BQ12+BQ13+BQ14+BQ15","v":104},{"$f":"SQRT((BR12^2)+(BR13^2)+(BR14^2)+(BR15^2))","v":76.216796049164913},{"$f":"BS12+BS13+BS14+BS15","v":0},{"$f":"SQRT((BT12^2)+(BT13^2)+(BT14^2)+(BT15^2))","v":22},{"$f":"BU12+BU13+BU14+BU15","v":0},{"$f":"SQRT((BV12^2)+(BV13^2)+(BV14^2)+(BV15^2))","v":32},{"$f":"BW12+BW13+BW14+BW15","v":0},{"$f":"SQRT((BX12^2)+(BX13^2)+(BX14^2)+(BX15^2))","v":36}]
[null,"Less Than 35% of HH Income",{"$f":"C9+C10+C11+C12","v":0},{"$f":"SQRT((D9^2)+(D10^2)+(D11^2)+(D12^2))","v":32},{"$f":"E9+E10+E11+E12","v":0},{"$f":"SQRT((F9^2)+(F10^2)+(F11^2)+(F12^2))","v":32},{"$f":"G9+G10+G11+G12","v":0},{"$f":"SQRT((H9^2)+(H10^2)+(H11^2)+(H12^2))","v":22},{"$f":"I9+I10+I11+I12","v":0},{"$f":"SQRT((J9^2)+(J10^2)+(J11^2)+(J12^2))","v":22},{"$f":"K9+K10+K11+K12","v":0},{"$f":"SQRT((L9^2)+(L10^2)+(L11^2)+(L12^2))","v":32},{"$f":"M9+M10+M11+M12","v":0},{"$f":"SQRT((N9^2)+(N10^2)+(N11^2)+(N12^2))","v":22},{"$f":"O9+O10+O11+O12","v":0},{"$f":"SQRT((P9^2)+(P10^2)+(P11^2)+(P12^2))","v":22},{"$f":"Q9+Q10+Q11+Q12","v":0},{"$f":"SQRT((R9^2)+(R10^2)+(R11^2)+(R12^2))","v":48},{"$f":"S9+S10+S11+S12","v":0},{"$f":"SQRT((T9^2)+(T10^2)+(T11^2)+(T12^2))","v":22},{"$f":"U9+U10+U11+U12","v":0},{"$f":"SQRT((V9^2)+(V10^2)+(V11^2)+(V12^2))","v":32},{"$f":"W9+W10+W11+W12","v":0},{"$f":"SQRT((X9^2)+(X10^2)+(X11^2)+(X12^2))","v":36},{"$f":"Y9+Y10+Y11+Y12","v":0},{"$f":"SQRT((Z9^2)+(Z10^2)+(Z11^2)+(Z12^2))","v":22},{"$f":"AA9+AA10+AA11+AA12","v":0},{"$f":"SQRT((AB9^2)+(AB10^2)+(AB11^2)+(AB12^2))","v":22},{"$f":"AC9+AC10+AC11+AC12","v":0},{"$f":"SQRT((AD9^2)+(AD10^2)+(AD11^2)+(AD12^2))","v":32},{"$f":"AE9+AE10+AE11+AE12","v":0},{"$f":"SQRT((AF9^2)+(AF10^2)+(AF11^2)+(AF12^2))","v":36},{"$f":"AG9+AG10+AG11+AG12","v":0},{"$f":"SQRT((AH9^2)+(AH10^2)+(AH11^2)+(AH12^2))","v":22},{"$f":"AI9+AI10+AI11+AI12","v":0},{"$f":"SQRT((AJ9^2)+(AJ10^2)+(AJ11^2)+(AJ12^2))","v":22},{"$f":"AK9+AK10+AK11+AK12","v":0},{"$f":"SQRT((AL9^2)+(AL10^2)+(AL11^2)+(AL12^2))","v":32},{"$f":"AM9+AM10+AM11+AM12","v":0},{"$f":"SQRT((AN9^2)+(AN10^2)+(AN11^2)+(AN12^2))","v":42},{"$f":"AO9+AO10+AO11+AO12","v":0},{"$f":"SQRT((AP9^2)+(AP10^2)+(AP11^2)+(AP12^2))","v":22},{"$f":"AQ9+AQ10+AQ11+AQ12","v":0},{"$f":"SQRT((AR9^2)+(AR10^2)+(AR11^2)+(AR12^2))","v":22},{"$f":"AS9+AS10+AS11+AS12","v":0},{"$f":"SQRT((AT9^2)+(AT10^2)+(AT11^2)+(AT12^2))","v":22},{"$f":"AU9+AU10+AU11+AU12","v":0},{"$f":"SQRT((AV9^2)+(AV10^2)+(AV11^2)+(AV12^2))","v":32},{"$f":"AW9+AW10+AW11+AW12","v":9},{"$f":"SQRT((AX9^2)+(AX10^2)+(AX11^2)+(AX12^2))","v":23.643180835073778},{"$f":"AY9+AY10+AY11+AY12","v":0},{"$f":"SQRT((AZ9^2)+(AZ10^2)+(AZ11^2)+(AZ12^2))","v":22},{"$f":"BA9+BA10+BA11+BA12","v":0},{"$f":"SQRT((BB9^2)+(BB10^2)+(BB11^2)+(BB12^2))","v":22},{"$f":"BC9+BC10+BC11+BC12","v":0},{"$f":"SQRT((BD9^2)+(BD10^2)+(BD11^2)+(BD12^2))","v":32},{"$f":"BE9+BE10+BE11+BE12","v":0},{"$f":"SQRT((BF9^2)+(BF10^2)+(BF11^2)+(BF12^2))","v":32},{"$f":"BG9+BG10+BG11+BG12","v":44},{"$f":"SQRT((BH9^2)+(BH10^2)+(BH11^2)+(BH12^2))","v":60.95079983068311},{"$f":"BI9+BI10+BI11+BI12","v":0},{"$f":"SQRT((BJ9^2)+(BJ10^2)+(BJ11^2)+(BJ12^2))","v":36},{"$f":"BK9+BK10+BK11+BK12","v":0},{"$f":"SQRT((BL9^2)+(BL10^2)+(BL11^2)+(BL12^2))","v":32},{"$f":"BM9+BM10+BM11+BM12","v":17},{"$f":"SQRT((BN9^2)+(BN10^2)+(BN11^2)+(BN12^2))","v":46.518813398452032},{"$f":"BO9+BO10+BO11+BO12","v":0},{"$f":"SQRT((BP9^2)+(BP10^2)+(BP11^2)+(BP12^2))","v":32},{"$f":"BQ9+BQ10+BQ11+BQ12","v":0},{"$f":"SQRT((BR9^2)+(BR10^2)+(BR11^2)+(BR12^2))","v":32},{"$f":"BS9+BS10+BS11+BS12","v":0},{"$f":"SQRT((BT9^2)+(BT10^2)+(BT11^2)+(BT12^2))","v":22},{"$f":"BU9+BU10+BU11+BU12","v":0},{"$f":"SQRT((BV9^2)+(BV10^2)+(BV11^2)+(BV12^2))","v":32},{"$f":"BW9+BW10+BW11+BW12","v":0},{"$f":"SQRT((BX9^2)+(BX10^2)+(BX11^2)+(BX12^2))","v":36}]
[null,"35.0 percent or more",{"$f":"C13+C14++C15","v":18},{"$f":"SQRT((D13^2)+(D14^2)+(D15^2))","v":36},{"$f":"E13+E14++E15","v":0},{"$f":"SQRT((F13^2)+(F14^2)+(F15^2))","v":27.712812921102035},{"$f":"G13+G14++G15","v":0},{"$f":"SQRT((H13^2)+(H14^2)+(H15^2))","v":19.05255888325765},{"$f":"I13+I14++I15","v":0},{"$f":"SQRT((J13^2)+(J14^2)+(J15^2))","v":19.05255888325765},{"$f":"K13+K14++K15","v":0},{"$f":"SQRT((L13^2)+(L14^2)+(L15^2))","v":27.712812921102035},{"$f":"M13+M14++M15","v":0},{"$f":"SQRT((N13^2)+(N14^2)+(N15^2))","v":19.05255888325765},{"$f":"O13+O14++O15","v":0},{"$f":"SQRT((P13^2)+(P14^2)+(P15^2))","v":19.05255888325765},{"$f":"Q13+Q14++Q15","v":390},{"$f":"SQRT((R13^2)+(R14^2)+(R15^2))","v":192.02343606966312},{"$f":"S13+S14++S15","v":0},{"$f":"SQRT((T13^2)+(T14^2)+(T15^2))","v":19.05255888325765},{"$f":"U13+U14++U15","v":0},{"$f":"SQRT((V13^2)+(V14^2)+(V15^2))","v":27.712812921102035},{"$f":"W13+W14++W15","v":86},{"$f":"SQRT((X13^2)+(X14^2)+(X15^2))","v":64.257295305669373},{"$f":"Y13+Y14++Y15","v":8},{"$f":"SQRT((Z13^2)+(Z14^2)+(Z15^2))","v":20.928449536456348},{"$f":"AA13+AA14++AA15","v":0},{"$f":"SQRT((AB13^2)+(AB14^2)+(AB15^2))","v":19.05255888325765},{"$f":"AC13+AC14++AC15","v":19},{"$f":"SQRT((AD13^2)+(AD14^2)+(AD15^2))","v":30.870698080866262},{"$f":"AE13+AE14++AE15","v":17},{"$f":"SQRT((AF13^2)+(AF14^2)+(AF15^2))","v":35.679125549822544},{"$f":"AG13+AG14++AG15","v":0},{"$f":"SQRT((AH13^2)+(AH14^2)+(AH15^2))","v":19.05255888325765},{"$f":"AI13+AI14++AI15","v":0},{"$f":"SQRT((AJ13^2)+(AJ14^2)+(AJ15^2))","v":19.05255888325765},{"$f":"AK13+AK14++AK15","v":0},{"$f":"SQRT((AL13^2)+(AL14^2)+(AL15^2))","v":27.712812921102035},{"$f":"AM13+AM14++AM15","v":19},{"$f":"SQRT((AN13^2)+(AN14^2)+(AN15^2))","v":36.959437225152655},{"$f":"AO13+AO14++AO15","v":0},{"$f":"SQRT((AP13^2)+(AP14^2)+(AP15^2))","v":19.05255888325765},{"$f":"AQ13+AQ14++AQ15","v":4},{"$f":"SQRT((AR13^2)+(AR14^2)+(AR15^2))","v":17.058722109231979},{"$f":"AS13+AS14++AS15","v":4},{"$f":"SQRT((AT13^2)+(AT14^2)+(AT15^2))","v":16.673332000533065},{"$f":"AU13+AU14++AU15","v":113},{"$f":"SQRT((AV13^2)+(AV14^2)+(AV15^2))","v":100.57832768544127},{"$f":"AW13+AW14++AW15","v":9},{"$f":"SQRT((AX13^2)+(AX14^2)+(AX15^2))","v":20.273134932713294},{"$f":"AY13+AY14++AY15","v":0},{"$f":"SQRT((AZ13^2)+(AZ14^2)+(AZ15^2))","v":19.05255888325765},{"$f":"BA13+BA14++BA15","v":17},{"$f":"SQRT((BB13^2)+(BB14^2)+(BB15^2))","v":25.337718918639855},{"$f":"BC13+BC14++BC15","v":14},{"$f":"SQRT((BD13^2)+(BD14^2)+(BD15^2))","v":30.870698080866262},{"$f":"BE13+BE14++BE15","v":44},{"$f":"SQRT((BF13^2)+(BF14^2)+(BF15^2))","v":76.426435217141986},{"$f":"BG13+BG14++BG15","v":233},{"$f":"SQRT((BH13^2)+(BH14^2)+(BH15^2))","v":111.84811129384349},{"$f":"BI13+BI14++BI15","v":66},{"$f":"SQRT((BJ13^2)+(BJ14^2)+(BJ15^2))","v":64.257295305669373},{"$f":"BK13+BK14++BK15","v":0},{"$f":"SQRT((BL13^2)+(BL14^2)+(BL15^2))","v":27.712812921102035},{"$f":"BM13+BM14++BM15","v":128},{"$f":"SQRT((BN13^2)+(BN14^2)+(BN15^2))","v":85.334635406732716},{"$f":"BO13+BO14++BO15","v":0},{"$f":"SQRT((BP13^2)+(BP14^2)+(BP15^2))","v":27.712812921102035},{"$f":"BQ13+BQ14++BQ15","v":104},{"$f":"SQRT((BR13^2)+(BR14^2)+(BR15^2))","v":74.518454090245328},{"$f":"BS13+BS14++BS15","v":0},{"$f":"SQRT((BT13^2)+(BT14^2)+(BT15^2))","v":19.05255888325765},{"$f":"BU13+BU14++BU15","v":0},{"$f":"SQRT((BV13^2)+(BV14^2)+(BV15^2))","v":27.712812921102035},{"$f":"BW13+BW14++BW15","v":0},{"$f":"SQRT((BX13^2)+(BX14^2)+(BX15^2))","v":31.176914536239792}]
[null,"50.0 percent or more",{"$f":"C15","v":18},28,0,16,0,11,0,11,0,16,0,11,0,11,390,189,0,11,0,16,86,59,8,14,0,11,19,21,17,25,0,11,{"$f":"AI15","v":0},11,0,16,19,22,0,11,4,7,4,6,113,98,9,13,0,11,17,20,14,21,44,73,185,103,66,59,0,16,128,80,{"$f":"BO15","v":0},16,104,71,0,11,0,16,0,18]
[null,"Not Computed",{"$f":"C16","v":0},16,0,16,0,11,0,11,0,16,0,11,0,11,0,24,0,11,20,31,28,33,0,11,0,11,0,16,39,33,0,11,{"$f":"AI16","v":4},5,19,30,27,30,0,11,0,11,2,3,16,25,0,11,9,13,0,11,0,16,13,22,75,47,0,18,0,16,20,30,{"$f":"BO16","v":0},16,11,18,4,5,0,16,0,18]
[null,"$10,000 to $19,999:",{"$f":"C17","v":0},16,0,16,33,52,16,26,0,16,0,11,18,21,452,143,5,9,29,34,192,83,0,11,0,11,76,100,169,82,5,7,9,8,68,85,56,49,0,11,4,6,2,4,197,103,70,56,6,10,9,17,0,16,34,39,495,156,151,81,0,16,379,153,{"$f":"BO17","v":70},80,153,73,0,11,0,16,16,25]
[null,"Less than 30.0 percent",{"$f":"C18+C19+C20","v":0},{"$f":"SQRT((D18^2)+(D19^2)+(D20^2))","v":27.712812921102035},{"$f":"E18+E19+E20","v":0},{"$f":"SQRT((F18^2)+(F19^2)+(F20^2))","v":27.712812921102035},{"$f":"G18+G19+G20","v":0},{"$f":"SQRT((H18^2)+(H19^2)+(H20^2))","v":19.05255888325765},{"$f":"I18+I19+I20","v":0},{"$f":"SQRT((J18^2)+(J19^2)+(J20^2))","v":19.05255888325765},{"$f":"K18+K19+K20","v":0},{"$f":"SQRT((L18^2)+(L19^2)+(L20^2))","v":27.712812921102035},{"$f":"M18+M19+M20","v":0},{"$f":"SQRT((N18^2)+(N19^2)+(N20^2))","v":19.05255888325765},{"$f":"O18+O19+O20","v":0},{"$f":"SQRT((P18^2)+(P19^2)+(P20^2))","v":19.05255888325765},{"$f":"Q18+Q19+Q20","v":52},{"$f":"SQRT((R18^2)+(R19^2)+(R20^2))","v":78.695616142196897},{"$f":"S18+S19+S20","v":0},{"$f":"SQRT((T18^2)+(T19^2)+(T20^2))","v":19.05255888325765},{"$f":"U18+U19+U20","v":0},{"$f":"SQRT((V18^2)+(V19^2)+(V20^2))","v":27.712812921102035},{"$f":"W18+W19+W20","v":25},{"$f":"SQRT((X18^2)+(X19^2)+(X20^2))","v":34.727510708370673},{"$f":"Y18+Y19+Y20","v":0},{"$f":"SQRT((Z18^2)+(Z19^2)+(Z20^2))","v":19.05255888325765},{"$f":"AA18+AA19+AA20","v":0},{"$f":"SQRT((AB18^2)+(AB19^2)+(AB20^2))","v":19.05255888325765},{"$f":"AC18+AC19+AC20","v":0},{"$f":"SQRT((AD18^2)+(AD19^2)+(AD20^2))","v":27.712812921102035},{"$f":"AE18+AE19+AE20","v":39},{"$f":"SQRT((AF18^2)+(AF19^2)+(AF20^2))","v":41.629316592997299},{"$f":"AG18+AG19+AG20","v":0},{"$f":"SQRT((AH18^2)+(AH19^2)+(AH20^2))","v":19.05255888325765},{"$f":"AI18+AI19+AI20","v":0},{"$f":"SQRT((AJ18^2)+(AJ19^2)+(AJ20^2))","v":19.05255888325765},{"$f":"AK18+AK19+AK20","v":0},{"$f":"SQRT((AL18^2)+(AL19^2)+(AL20^2))","v":27.712812921102035},{"$f":"AM18+AM19+AM20","v":0},{"$f":"SQRT((AN18^2)+(AN19^2)+(AN20^2))","v":36.373066958946424},{"$f":"AO18+AO19+AO20","v":0},{"$f":"SQRT((AP18^2)+(AP19^2)+(AP20^2))","v":19.05255888325765},{"$f":"AQ18+AQ19+AQ20","v":0},{"$f":"SQRT((AR18^2)+(AR19^2)+(AR20^2))","v":19.05255888325765},{"$f":"AS18+AS19+AS20","v":0},{"$f":"SQRT((AT18^2)+(AT19^2)+(AT20^2))","v":19.05255888325765},{"$f":"AU18+AU19+AU20","v":72},{"$f":"SQRT((AV18^2)+(AV19^2)+(AV20^2))","v":72.615425358528341},{"$f":"AW18+AW19+AW20","v":18},{"$f":"SQRT((AX18^2)+(AX19^2)+(AX20^2))","v":26.134268690743959},{"$f":"AY18+AY19+AY20","v":6},{"$f":"SQRT((AZ18^2)+(AZ19^2)+(AZ20^2))","v":18.493242008906929},{"$f":"BA18+BA19+BA20","v":0},{"$f":"SQRT((BB18^2)+(BB19^2)+(BB20^2))","v":19.05255888325765},{"$f":"BC18+BC19+BC20","v":0},{"$f":"SQRT((BD18^2)+(BD19^2)+(BD20^2))","v":27.712812921102035},{"$f":"BE18+BE19+BE20","v":16},{"$f":"SQRT((BF18^2)+(BF19^2)+(BF20^2))","v":35.227829907617071},{"$f":"BG18+BG19+BG20","v":164},{"$f":"SQRT((BH18^2)+(BH19^2)+(BH20^2))","v":103.05823596394418},{"$f":"BI18+BI19+BI20","v":0},{"$f":"SQRT((BJ18^2)+(BJ19^2)+(BJ20^2))","v":31.176914536239792},{"$f":"BK18+BK19+BK20","v":0},{"$f":"SQRT((BL18^2)+(BL19^2)+(BL20^2))","v":27.712812921102035},{"$f":"BM18+BM19+BM20","v":26},{"$f":"SQRT((BN18^2)+(BN19^2)+(BN20^2))","v":38.483762809787713},{"$f":"BO18+BO19+BO20","v":0},{"$f":"SQRT((BP18^2)+(BP19^2)+(BP20^2))","v":27.712812921102035},{"$f":"BQ18+BQ19+BQ20","v":0},{"$f":"SQRT((BR18^2)+(BR19^2)+(BR20^2))","v":27.712812921102035},{"$f":"BS18+BS19+BS20","v":0},{"$f":"SQRT((BT18^2)+(BT19^2)+(BT20^2))","v":19.05255888325765},{"$f":"BU18+BU19+BU20","v":0},{"$f":"SQRT((BV18^2)+(BV19^2)+(BV20^2))","v":27.712812921102035},{"$f":"BW18+BW19+BW20","v":0},{"$f":"SQRT((BX18^2)+(BX19^2)+(BX20^2))","v":31.176914536239792}]
[null,"More than 30.0 percent",{"$f":"C21+C22+C23+C24","v":0},{"$f":"SQRT((D21^2)+(D22^2)+(D23^2)+(D24^2))","v":32},{"$f":"E21+E22+E23+E24","v":0},{"$f":"SQRT((F21^2)+(F22^2)+(F23^2)+(F24^2))","v":32},{"$f":"G21+G22+G23+G24","v":33},{"$f":"SQRT((H21^2)+(H22^2)+(H23^2)+(H24^2))","v":55.380501984001555},{"$f":"I21+I22+I23+I24","v":16},{"$f":"SQRT((J21^2)+(J22^2)+(J23^2)+(J24^2))","v":32.233522922572398},{"$f":"K21+K22+K23+K24","v":0},{"$f":"SQRT((L21^2)+(L22^2)+(L23^2)+(L24^2))","v":32},{"$f":"M21+M22+M23+M24","v":0},{"$f":"SQRT((N21^2)+(N22^2)+(N23^2)+(N24^2))","v":22},{"$f":"O21+O22+O23+O24","v":6},{"$f":"SQRT((P21^2)+(P22^2)+(P23^2)+(P24^2))","v":21.517434791350013},{"$f":"Q21+Q22+Q23+Q24","v":380},{"$f":"SQRT((R21^2)+(R22^2)+(R23^2)+(R24^2))","v":154.35672968808325},{"$f":"S21+S22+S23+S24","v":5},{"$f":"SQRT((T21^2)+(T22^2)+(T23^2)+(T24^2))","v":21.071307505705477},{"$f":"U21+U22+U23+U24","v":29},{"$f":"SQRT((V21^2)+(V22^2)+(V23^2)+(V24^2))","v":43.863424398922618},{"$f":"W21+W22+W23+W24","v":104},{"$f":"SQRT((X21^2)+(X22^2)+(X23^2)+(X24^2))","v":60.728905802755904},{"$f":"Y21+Y22+Y23+Y24","v":0},{"$f":"SQRT((Z21^2)+(Z22^2)+(Z23^2)+(Z24^2))","v":22},{"$f":"AA21+AA22+AA23+AA24","v":0},{"$f":"SQRT((AB21^2)+(AB22^2)+(AB23^2)+(AB24^2))","v":22},{"$f":"AC21+AC22+AC23+AC24","v":76},{"$f":"SQRT((AD21^2)+(AD22^2)+(AD23^2)+(AD24^2))","v":102.00490184299969},{"$f":"AE21+AE22+AE23+AE24","v":130},{"$f":"SQRT((AF21^2)+(AF22^2)+(AF23^2)+(AF24^2))","v":80.299439599538928},{"$f":"AG21+AG22+AG23+AG24","v":5},{"$f":"SQRT((AH21^2)+(AH22^2)+(AH23^2)+(AH24^2))","v":20.297783130184438},{"$f":"AI21+AI22+AI23+AI24","v":5},{"$f":"SQRT((AJ21^2)+(AJ22^2)+(AJ23^2)+(AJ24^2))","v":19.974984355438178},{"$f":"AK21+AK22+AK23+AK24","v":68},{"$f":"SQRT((AL21^2)+(AL22^2)+(AL23^2)+(AL24^2))","v":88.639720216164946},{"$f":"AM21+AM22+AM23+AM24","v":56},{"$f":"SQRT((AN21^2)+(AN22^2)+(AN23^2)+(AN24^2))","v":61.02458520956943},{"$f":"AO21+AO22+AO23+AO24","v":0},{"$f":"SQRT((AP21^2)+(AP22^2)+(AP23^2)+(AP24^2))","v":22},{"$f":"AQ21+AQ22+AQ23+AQ24","v":4},{"$f":"SQRT((AR21^2)+(AR22^2)+(AR23^2)+(AR24^2))","v":19.974984355438178},{"$f":"AS21+AS22+AS23+AS24","v":2},{"$f":"SQRT((AT21^2)+(AT22^2)+(AT23^2)+(AT24^2))","v":19.467922333931785},{"$f":"AU21+AU22+AU23+AU24","v":125},{"$f":"SQRT((AV21^2)+(AV22^2)+(AV23^2)+(AV24^2))","v":83.360662185469707},{"$f":"AW21+AW22+AW23+AW24","v":52},{"$f":"SQRT((AX21^2)+(AX22^2)+(AX23^2)+(AX24^2))","v":51.643005334701428},{"$f":"AY21+AY22+AY23+AY24","v":0},{"$f":"SQRT((AZ21^2)+(AZ22^2)+(AZ23^2)+(AZ24^2))","v":22},{"$f":"BA21+BA22+BA23+BA24","v":9},{"$f":"SQRT((BB21^2)+(BB22^2)+(BB23^2)+(BB24^2))","v":25.534290669607408},{"$f":"BC21+BC22+BC23+BC24","v":0},{"$f":"SQRT((BD21^2)+(BD22^2)+(BD23^2)+(BD24^2))","v":32},{"$f":"BE21+BE22+BE23+BE24","v":18},{"$f":"SQRT((BF21^2)+(BF22^2)+(BF23^2)+(BF24^2))","v":39.395431207184416},{"$f":"BG21+BG22+BG23+BG24","v":293},{"$f":"SQRT((BH21^2)+(BH22^2)+(BH23^2)+(BH24^2))","v":125.02399769644227},{"$f":"BI21+BI22+BI23+BI24","v":145},{"$f":"SQRT((BJ21^2)+(BJ22^2)+(BJ23^2)+(BJ24^2))","v":83.677954085888118},{"$f":"BK21+BK22+BK23+BK24","v":0},{"$f":"SQRT((BL21^2)+(BL22^2)+(BL23^2)+(BL24^2))","v":32},{"$f":"BM21+BM22+BM23+BM24","v":345},{"$f":"SQRT((BN21^2)+(BN22^2)+(BN23^2)+(BN24^2))","v":162.07097210790093},{"$f":"BO21+BO22+BO23+BO24","v":43},{"$f":"SQRT((BP21^2)+(BP22^2)+(BP23^2)+(BP24^2))","v":73.430239002743278},{"$f":"BQ21+BQ22+BQ23+BQ24","v":138},{"$f":"SQRT((BR21^2)+(BR22^2)+(BR23^2)+(BR24^2))","v":76.655071586947201},{"$f":"BS21+BS22+BS23+BS24","v":0},{"$f":"SQRT((BT21^2)+(BT22^2)+(BT23^2)+(BT24^2))","v":22},{"$f":"BU21+BU22+BU23+BU24","v":0},{"$f":"SQRT((BV21^2)+(BV22^2)+(BV23^2)+(BV24^2))","v":32},{"$f":"BW21+BW22+BW23+BW24","v":16},{"$f":"SQRT((BX21^2)+(BX22^2)+(BX23^2)+(BX24^2))","v":39.962482405376171}]
[null,"Less Than 35% of HH Income",{"$f":"C18+C19+C20+C21","v":0},{"$f":"SQRT((D18^2)+(D19^2)+(D20^2)+(D21^2))","v":32},{"$f":"E18+E19+E20+E21","v":0},{"$f":"SQRT((F18^2)+(F19^2)+(F20^2)+(F21^2))","v":32},{"$f":"G18+G19+G20+G21","v":0},{"$f":"SQRT((H18^2)+(H19^2)+(H20^2)+(H21^2))","v":22},{"$f":"I18+I19+I20+I21","v":0},{"$f":"SQRT((J18^2)+(J19^2)+(J20^2)+(J21^2))","v":22},{"$f":"K18+K19+K20+K21","v":0},{"$f":"SQRT((L18^2)+(L19^2)+(L20^2)+(L21^2))","v":32},{"$f":"M18+M19+M20+M21","v":0},{"$f":"SQRT((N18^2)+(N19^2)+(N20^2)+(N21^2))","v":22},{"$f":"O18+O19+O20+O21","v":0},{"$f":"SQRT((P18^2)+(P19^2)+(P20^2)+(P21^2))","v":22},{"$f":"Q18+Q19+Q20+Q21","v":136},{"$f":"SQRT((R18^2)+(R19^2)+(R20^2)+(R21^2))","v":121.06609764917675},{"$f":"S18+S19+S20+S21","v":0},{"$f":"SQRT((T18^2)+(T19^2)+(T20^2)+(T21^2))","v":22},{"$f":"U18+U19+U20+U21","v":0},{"$f":"SQRT((V18^2)+(V19^2)+(V20^2)+(V21^2))","v":32},{"$f":"W18+W19+W20+W21","v":25},{"$f":"SQRT((X18^2)+(X19^2)+(X20^2)+(X21^2))","v":39.11521443121589},{"$f":"Y18+Y19+Y20+Y21","v":0},{"$f":"SQRT((Z18^2)+(Z19^2)+(Z20^2)+(Z21^2))","v":22},{"$f":"AA18+AA19+AA20+AA21","v":0},{"$f":"SQRT((AB18^2)+(AB19^2)+(AB20^2)+(AB21^2))","v":22},{"$f":"AC18+AC19+AC20+AC21","v":13},{"$f":"SQRT((AD18^2)+(AD19^2)+(AD20^2)+(AD21^2))","v":35.383612025908263},{"$f":"AE18+AE19+AE20+AE21","v":39},{"$f":"SQRT((AF18^2)+(AF19^2)+(AF20^2)+(AF21^2))","v":45.354161881794269},{"$f":"AG18+AG19+AG20+AG21","v":0},{"$f":"SQRT((AH18^2)+(AH19^2)+(AH20^2)+(AH21^2))","v":22},{"$f":"AI18+AI19+AI20+AI21","v":0},{"$f":"SQRT((AJ18^2)+(AJ19^2)+(AJ20^2)+(AJ21^2))","v":22},{"$f":"AK18+AK19+AK20+AK21","v":17},{"$f":"SQRT((AL18^2)+(AL19^2)+(AL20^2)+(AL21^2))","v":39.395431207184416},{"$f":"AM18+AM19+AM20+AM21","v":0},{"$f":"SQRT((AN18^2)+(AN19^2)+(AN20^2)+(AN21^2))","v":42},{"$f":"AO18+AO19+AO20+AO21","v":0},{"$f":"SQRT((AP18^2)+(AP19^2)+(AP20^2)+(AP21^2))","v":22},{"$f":"AQ18+AQ19+AQ20+AQ21","v":0},{"$f":"SQRT((AR18^2)+(AR19^2)+(AR20^2)+(AR21^2))","v":22},{"$f":"AS18+AS19+AS20+AS21","v":0},{"$f":"SQRT((AT18^2)+(AT19^2)+(AT20^2)+(AT21^2))","v":22},{"$f":"AU18+AU19+AU20+AU21","v":80},{"$f":"SQRT((AV18^2)+(AV19^2)+(AV20^2)+(AV21^2))","v":73.952687577937283},{"$f":"AW18+AW19+AW20+AW21","v":18},{"$f":"SQRT((AX18^2)+(AX19^2)+(AX20^2)+(AX21^2))","v":28.354893757515651},{"$f":"AY18+AY19+AY20+AY21","v":6},{"$f":"SQRT((AZ18^2)+(AZ19^2)+(AZ20^2)+(AZ21^2))","v":21.517434791350013},{"$f":"BA18+BA19+BA20+BA21","v":0},{"$f":"SQRT((BB18^2)+(BB19^2)+(BB20^2)+(BB21^2))","v":22},{"$f":"BC18+BC19+BC20+BC21","v":0},{"$f":"SQRT((BD18^2)+(BD19^2)+(BD20^2)+(BD21^2))","v":32},{"$f":"BE18+BE19+BE20+BE21","v":16},{"$f":"SQRT((BF18^2)+(BF19^2)+(BF20^2)+(BF21^2))","v":38.691084244306204},{"$f":"BG18+BG19+BG20+BG21","v":208},{"$f":"SQRT((BH18^2)+(BH19^2)+(BH20^2)+(BH21^2))","v":110.91438139393827},{"$f":"BI18+BI19+BI20+BI21","v":17},{"$f":"SQRT((BJ18^2)+(BJ19^2)+(BJ20^2)+(BJ21^2))","v":41.243181254602561},{"$f":"BK18+BK19+BK20+BK21","v":0},{"$f":"SQRT((BL18^2)+(BL19^2)+(BL20^2)+(BL21^2))","v":32},{"$f":"BM18+BM19+BM20+BM21","v":91},{"$f":"SQRT((BN18^2)+(BN19^2)+(BN20^2)+(BN21^2))","v":91.487704091861431},{"$f":"BO18+BO19+BO20+BO21","v":0},{"$f":"SQRT((BP18^2)+(BP19^2)+(BP20^2)+(BP21^2))","v":32},{"$f":"BQ18+BQ19+BQ20+BQ21","v":31},{"$f":"SQRT((BR18^2)+(BR19^2)+(BR20^2)+(BR21^2))","v":47.031904065219386},{"$f":"BS18+BS19+BS20+BS21","v":0},{"$f":"SQRT((BT18^2)+(BT19^2)+(BT20^2)+(BT21^2))","v":22},{"$f":"BU18+BU19+BU20+BU21","v":0},{"$f":"SQRT((BV18^2)+(BV19^2)+(BV20^2)+(BV21^2))","v":32},{"$f":"BW18+BW19+BW20+BW21","v":0},{"$f":"SQRT((BX18^2)+(BX19^2)+(BX20^2)+(BX21^2))","v":36}]
[null,"35.0 percent or more",{"$f":"C22+C23++C24","v":0},{"$f":"SQRT((D22^2)+(D23^2)+(D24^2))","v":27.712812921102035},{"$f":"E22+E23++E24","v":0},{"$f":"SQRT((F22^2)+(F23^2)+(F24^2))","v":27.712812921102035},{"$f":"G22+G23++G24","v":33},{"$f":"SQRT((H22^2)+(H23^2)+(H24^2))","v":54.277066980447643},{"$f":"I22+I23++I24","v":16},{"$f":"SQRT((J22^2)+(J23^2)+(J24^2))","v":30.298514815086232},{"$f":"K22+K23++K24","v":0},{"$f":"SQRT((L22^2)+(L23^2)+(L24^2))","v":27.712812921102035},{"$f":"M22+M23++M24","v":0},{"$f":"SQRT((N22^2)+(N23^2)+(N24^2))","v":19.05255888325765},{"$f":"O22+O23++O24","v":6},{"$f":"SQRT((P22^2)+(P23^2)+(P24^2))","v":18.493242008906929},{"$f":"Q22+Q23++Q24","v":296},{"$f":"SQRT((R22^2)+(R23^2)+(R24^2))","v":123.94353553130554},{"$f":"S22+S23++S24","v":5},{"$f":"SQRT((T22^2)+(T23^2)+(T24^2))","v":17.972200755611428},{"$f":"U22+U23++U24","v":29},{"$f":"SQRT((V22^2)+(V23^2)+(V24^2))","v":40.841155713324277},{"$f":"W22+W23++W24","v":104},{"$f":"SQRT((X22^2)+(X23^2)+(X24^2))","v":58},{"$f":"Y22+Y23++Y24","v":0},{"$f":"SQRT((Z22^2)+(Z23^2)+(Z24^2))","v":19.05255888325765},{"$f":"AA22+AA23++AA24","v":0},{"$f":"SQRT((AB22^2)+(AB23^2)+(AB24^2))","v":19.05255888325765},{"$f":"AC22+AC23++AC24","v":63},{"$f":"SQRT((AD22^2)+(AD23^2)+(AD24^2))","v":99.604216778206734},{"$f":"AE22+AE23++AE24","v":130},{"$f":"SQRT((AF22^2)+(AF23^2)+(AF24^2))","v":78.255990186055399},{"$f":"AG22+AG23++AG24","v":5},{"$f":"SQRT((AH22^2)+(AH23^2)+(AH24^2))","v":17.058722109231979},{"$f":"AI22+AI23++AI24","v":5},{"$f":"SQRT((AJ22^2)+(AJ23^2)+(AJ24^2))","v":16.673332000533065},{"$f":"AK22+AK23++AK24","v":51},{"$f":"SQRT((AL22^2)+(AL23^2)+(AL24^2))","v":84.10112960002381},{"$f":"AM22+AM23++AM24","v":56},{"$f":"SQRT((AN22^2)+(AN23^2)+(AN24^2))","v":57.297469403107151},{"$f":"AO22+AO23++AO24","v":0},{"$f":"SQRT((AP22^2)+(AP23^2)+(AP24^2))","v":19.05255888325765},{"$f":"AQ22+AQ23++AQ24","v":4},{"$f":"SQRT((AR22^2)+(AR23^2)+(AR24^2))","v":16.673332000533065},{"$f":"AS22+AS23++AS24","v":2},{"$f":"SQRT((AT22^2)+(AT23^2)+(AT24^2))","v":16.06237840420901},{"$f":"AU22+AU23++AU24","v":117},{"$f":"SQRT((AV22^2)+(AV23^2)+(AV24^2))","v":82.176639016207034},{"$f":"AW22+AW23++AW24","v":52},{"$f":"SQRT((AX22^2)+(AX23^2)+(AX24^2))","v":50.457903246171455},{"$f":"AY22+AY23++AY24","v":0},{"$f":"SQRT((AZ22^2)+(AZ23^2)+(AZ24^2))","v":19.05255888325765},{"$f":"BA22+BA23++BA24","v":9},{"$f":"SQRT((BB22^2)+(BB23^2)+(BB24^2))","v":23.043437243605826},{"$f":"BC22+BC23++BC24","v":0},{"$f":"SQRT((BD22^2)+(BD23^2)+(BD24^2))","v":27.712812921102035},{"$f":"BE22+BE23++BE24","v":18},{"$f":"SQRT((BF22^2)+(BF23^2)+(BF24^2))","v":36},{"$f":"BG22+BG23++BG24","v":249},{"$f":"SQRT((BH22^2)+(BH23^2)+(BH24^2))","v":118.11011811017717},{"$f":"BI22+BI23++BI24","v":128},{"$f":"SQRT((BJ22^2)+(BJ23^2)+(BJ24^2))","v":79.202272694664515},{"$f":"BK22+BK23++BK24","v":0},{"$f":"SQRT((BL22^2)+(BL23^2)+(BL24^2))","v":27.712812921102035},{"$f":"BM22+BM23++BM24","v":280},{"$f":"SQRT((BN22^2)+(BN23^2)+(BN24^2))","v":139.20488497175666},{"$f":"BO22+BO23++BO24","v":43},{"$f":"SQRT((BP22^2)+(BP23^2)+(BP24^2))","v":71.665891468675667},{"$f":"BQ22+BQ23++BQ24","v":107},{"$f":"SQRT((BR22^2)+(BR23^2)+(BR24^2))","v":66.573267908372955},{"$f":"BS22+BS23++BS24","v":0},{"$f":"SQRT((BT22^2)+(BT23^2)+(BT24^2))","v":19.05255888325765},{"$f":"BU22+BU23++BU24","v":0},{"$f":"SQRT((BV22^2)+(BV23^2)+(BV24^2))","v":27.712812921102035},{"$f":"BW22+BW23++BW24","v":16},{"$f":"SQRT((BX22^2)+(BX23^2)+(BX24^2))","v":35.679125549822544}]
[null,"50.0 percent or more",{"$f":"C24","v":0},{"$f":"D24","v":16},{"$f":"E24","v":0},{"$f":"F24","v":16},{"$f":"G24","v":0},11,{"$f":"I24","v":16},26,{"$f":"K24","v":0},16,{"$f":"M24","v":0},11,{"$f":"O24","v":6},10,{"$f":"Q24","v":281},119,{"$f":"S24","v":5},9,{"$f":"U24","v":29},34,{"$f":"W24","v":76},48,{"$f":"Y24","v":0},11,{"$f":"AA24","v":0},11,{"$f":"AC24","v":63},97,{"$f":"AE24","v":120},74,{"$f":"AG24","v":5},7,{"$f":"AI24","v":5},6,{"$f":"AK24","v":51},81,{"$f":"AM24","v":56},49,{"$f":"AO24","v":0},11,{"$f":"AQ24","v":4},6,{"$f":"AS24","v":2},4,{"$f":"AU24","v":117},79,{"$f":"AW24","v":45},48,{"$f":"AY24","v":0},11,{"$f":"BA24","v":9},17,{"$f":"BC24","v":0},16,{"$f":"BE24","v":18},28,{"$f":"BG24","v":171},85,{"$f":"BI24","v":128},75,{"$f":"BK24","v":0},16,{"$f":"BM24","v":280},136,{"$f":"BO24","v":0},16,{"$f":"BQ24","v":92},{"$f":"BR24","v":60},{"$f":"BS24","v":0},11,{"$f":"BU24","v":0},16,{"$f":"BW24","v":0},18]
[null,"Not Computed",{"$f":"C25","v":0},16,0,16,0,11,0,11,0,16,0,11,12,18,20,31,{"$f":"S25","v":0},11,0,16,63,55,0,11,0,11,0,16,0,18,0,11,4,5,0,16,0,21,0,11,0,11,0,11,0,16,0,11,0,11,0,11,0,16,0,16,38,39,6,11,0,16,8,12,27,42,15,24,0,11,0,16,0,18]
[null,"$20,000 to $34,999:",53,83,0,16,0,11,28,32,11,19,138,91,33,38,698,242,4,8,121,100,407,147,9,14,28,27,186,120,296,91,0,11,7,7,119,119,237,102,11,17,0,11,3,5,277,133,34,27,43,32,29,27,12,19,66,79,647,185,123,74,157,121,505,197,0,16,129,58,0,11,33,39,34,40]
[null,"Less than 30.0 percent",{"$f":"C27+C28+C29","v":0},{"$f":"SQRT((D27^2)+(D28^2)+(D29^2))","v":27.712812921102035},{"$f":"E27+E28+E29","v":0},{"$f":"SQRT((F27^2)+(F28^2)+(F29^2))","v":27.712812921102035},{"$f":"G27+G28+G29","v":0},{"$f":"SQRT((H27^2)+(H28^2)+(H29^2))","v":19.05255888325765},{"$f":"I27+I28+I29","v":0},{"$f":"SQRT((J27^2)+(J28^2)+(J29^2))","v":19.05255888325765},{"$f":"K27+K28+K29","v":0},{"$f":"SQRT((L27^2)+(L28^2)+(L29^2))","v":27.712812921102035},{"$f":"M27+M28+M29","v":30},{"$f":"SQRT((N27^2)+(N28^2)+(N29^2))","v":34.684290392049249},{"$f":"O27+O28+O29","v":0},{"$f":"SQRT((P27^2)+(P28^2)+(P29^2))","v":19.05255888325765},{"$f":"Q27+Q28+Q29","v":97},{"$f":"SQRT((R27^2)+(R28^2)+(R29^2))","v":84.811555816409836},{"$f":"S27+S28+S29","v":0},{"$f":"SQRT((T27^2)+(T28^2)+(T29^2))","v":19.05255888325765},{"$f":"U27+U28+U29","v":0},{"$f":"SQRT((V27^2)+(V28^2)+(V29^2))","v":27.712812921102035},{"$f":"W27+W28+W29","v":77},{"$f":"SQRT((X27^2)+(X28^2)+(X29^2))","v":71.56116265125938},{"$f":"Y27+Y28+Y29","v":0},{"$f":"SQRT((Z27^2)+(Z28^2)+(Z29^2))","v":19.05255888325765},{"$f":"AA27+AA28+AA29","v":9},{"$f":"SQRT((AB27^2)+(AB28^2)+(AB29^2))","v":20.273134932713294},{"$f":"AC27+AC28+AC29","v":65},{"$f":"SQRT((AD27^2)+(AD28^2)+(AD29^2))","v":65.543878432695763},{"$f":"AE27+AE28+AE29","v":75},{"$f":"SQRT((AF27^2)+(AF28^2)+(AF29^2))","v":63.694583757176716},{"$f":"AG27+AG28+AG29","v":0},{"$f":"SQRT((AH27^2)+(AH28^2)+(AH29^2))","v":19.05255888325765},{"$f":"AI27+AI28+AI29","v":0},{"$f":"SQRT((AJ27^2)+(AJ28^2)+(AJ29^2))","v":19.05255888325765},{"$f":"AK27+AK28+AK29","v":0},{"$f":"SQRT((AL27^2)+(AL28^2)+(AL29^2))","v":27.712812921102035},{"$f":"AM27+AM28+AM29","v":0},{"$f":"SQRT((AN27^2)+(AN28^2)+(AN29^2))","v":36.373066958946424},{"$f":"AO27+AO28+AO29","v":0},{"$f":"SQRT((AP27^2)+(AP28^2)+(AP29^2))","v":19.05255888325765},{"$f":"AQ27+AQ28+AQ29","v":0},{"$f":"SQRT((AR27^2)+(AR28^2)+(AR29^2))","v":19.05255888325765},{"$f":"AS27+AS28+AS29","v":0},{"$f":"SQRT((AT27^2)+(AT28^2)+(AT29^2))","v":19.05255888325765},{"$f":"AU27+AU28+AU29","v":42},{"$f":"SQRT((AV27^2)+(AV28^2)+(AV29^2))","v":62.257529665093521},{"$f":"AW27+AW28+AW29","v":16},{"$f":"SQRT((AX27^2)+(AX28^2)+(AX29^2))","v":20.83266665599966},{"$f":"AY27+AY28+AY29","v":0},{"$f":"SQRT((AZ27^2)+(AZ28^2)+(AZ29^2))","v":19.05255888325765},{"$f":"BA27+BA28+BA29","v":0},{"$f":"SQRT((BB27^2)+(BB28^2)+(BB29^2))","v":19.05255888325765},{"$f":"BC27+BC28+BC29","v":12},{"$f":"SQRT((BD27^2)+(BD28^2)+(BD29^2))","v":29.546573405388315},{"$f":"BE27+BE28+BE29","v":0},{"$f":"SQRT((BF27^2)+(BF28^2)+(BF29^2))","v":27.712812921102035},{"$f":"BG27+BG28+BG29","v":204},{"$f":"SQRT((BH27^2)+(BH28^2)+(BH29^2))","v":115.09126813099246},{"$f":"BI27+BI28+BI29","v":21},{"$f":"SQRT((BJ27^2)+(BJ28^2)+(BJ29^2))","v":30.675723300355934},{"$f":"BK27+BK28+BK29","v":0},{"$f":"SQRT((BL27^2)+(BL28^2)+(BL29^2))","v":27.712812921102035},{"$f":"BM27+BM28+BM29","v":28},{"$f":"SQRT((BN27^2)+(BN28^2)+(BN29^2))","v":47.444704657105831},{"$f":"BO27+BO28+BO29","v":0},{"$f":"SQRT((BP27^2)+(BP28^2)+(BP29^2))","v":27.712812921102035},{"$f":"BQ27+BQ28+BQ29","v":41},{"$f":"SQRT((BR27^2)+(BR28^2)+(BR29^2))","v":45.088801270381985},{"$f":"BS27+BS28+BS29","v":0},{"$f":"SQRT((BT27^2)+(BT28^2)+(BT29^2))","v":19.05255888325765},{"$f":"BU27+BU28+BU29","v":0},{"$f":"SQRT((BV27^2)+(BV28^2)+(BV29^2))","v":27.712812921102035},{"$f":"BW27+BW28+BW29","v":17},{"$f":"SQRT((BX27^2)+(BX28^2)+(BX29^2))","v":37.107950630558946}]
[null,"More than 30.0 percent",{"$f":"C30+C31+C32+C33","v":53},{"$f":"SQRT((D30^2)+(D31^2)+(D32^2)+(D33^2))","v":87.504285609334588},{"$f":"E30+E31+E32+E33","v":0},{"$f":"SQRT((F30^2)+(F31^2)+(F32^2)+(F33^2))","v":32},{"$f":"G30+G31+G32+G33","v":0},{"$f":"SQRT((H30^2)+(H31^2)+(H32^2)+(H33^2))","v":22},{"$f":"I30+I31+I32+I33","v":8},{"$f":"SQRT((J30^2)+(J31^2)+(J32^2)+(J33^2))","v":23.065125189341593},{"$f":"K30+K31+K32+K33","v":11},{"$f":"SQRT((L30^2)+(L31^2)+(L32^2)+(L33^2))","v":33.600595232822883},{"$f":"M30+M31+M32+M33","v":108},{"$f":"SQRT((N30^2)+(N31^2)+(N32^2)+(N33^2))","v":89.498603341057787},{"$f":"O30+O31+O32+O33","v":33},{"$f":"SQRT((P30^2)+(P31^2)+(P32^2)+(P33^2))","v":42.508822613664563},{"$f":"Q30+Q31+Q32+Q33","v":584},{"$f":"SQRT((R30^2)+(R31^2)+(R32^2)+(R33^2))","v":216.25447972238632},{"$f":"S30+S31+S32+S33","v":4},{"$f":"SQRT((T30^2)+(T31^2)+(T32^2)+(T33^2))","v":20.663978319771825},{"$f":"U30+U31+U32+U33","v":121},{"$f":"SQRT((V30^2)+(V31^2)+(V32^2)+(V33^2))","v":100.66280345788111},{"$f":"W30+W31+W32+W33","v":330},{"$f":"SQRT((X30^2)+(X31^2)+(X32^2)+(X33^2))","v":119.67873662434776},{"$f":"Y30+Y31+Y32+Y33","v":0},{"$f":"SQRT((Z30^2)+(Z31^2)+(Z32^2)+(Z33^2))","v":22},{"$f":"AA30+AA31+AA32+AA33","v":19},{"$f":"SQRT((AB30^2)+(AB31^2)+(AB32^2)+(AB33^2))","v":26.888659319497503},{"$f":"AC30+AC31+AC32+AC33","v":121},{"$f":"SQRT((AD30^2)+(AD31^2)+(AD32^2)+(AD33^2))","v":110.02272492535349},{"$f":"AE30+AE31+AE32+AE33","v":208},{"$f":"SQRT((AF30^2)+(AF31^2)+(AF32^2)+(AF33^2))","v":74.959989327640642},{"$f":"AG30+AG31+AG32+AG33","v":0},{"$f":"SQRT((AH30^2)+(AH31^2)+(AH32^2)+(AH33^2))","v":22},{"$f":"AI30+AI31+AI32+AI33","v":7},{"$f":"SQRT((AJ30^2)+(AJ31^2)+(AJ32^2)+(AJ33^2))","v":17.088007490635061},{"$f":"AK30+AK31+AK32+AK33","v":119},{"$f":"SQRT((AL30^2)+(AL31^2)+(AL32^2)+(AL33^2))","v":122.90646850349252},{"$f":"AM30+AM31+AM32+AM33","v":237},{"$f":"SQRT((AN30^2)+(AN31^2)+(AN32^2)+(AN33^2))","v":122.78843593759146},{"$f":"AO30+AO31+AO32+AO33","v":11},{"$f":"SQRT((AP30^2)+(AP31^2)+(AP32^2)+(AP33^2))","v":25.534290669607408},{"$f":"AQ30+AQ31+AQ32+AQ33","v":0},{"$f":"SQRT((AR30^2)+(AR31^2)+(AR32^2)+(AR33^2))","v":22},{"$f":"AS30+AS31+AS32+AS33","v":3},{"$f":"SQRT((AT30^2)+(AT31^2)+(AT32^2)+(AT33^2))","v":19.697715603592208},{"$f":"AU30+AU31+AU32+AU33","v":235},{"$f":"SQRT((AV30^2)+(AV31^2)+(AV32^2)+(AV33^2))","v":115.51190414844697},{"$f":"AW30+AW31+AW32+AW33","v":7},{"$f":"SQRT((AX30^2)+(AX31^2)+(AX32^2)+(AX33^2))","v":22.516660498395403},{"$f":"AY30+AY31+AY32+AY33","v":32},{"$f":"SQRT((AZ30^2)+(AZ31^2)+(AZ32^2)+(AZ33^2))","v":27.531799795872409},{"$f":"BA30+BA31+BA32+BA33","v":29},{"$f":"SQRT((BB30^2)+(BB31^2)+(BB32^2)+(BB33^2))","v":31.176914536239792},{"$f":"BC30+BC31+BC32+BC33","v":0},{"$f":"SQRT((BD30^2)+(BD31^2)+(BD32^2)+(BD33^2))","v":32},{"$f":"BE30+BE31+BE32+BE33","v":66},{"$f":"SQRT((BF30^2)+(BF31^2)+(BF32^2)+(BF33^2))","v":83.192547743172284},{"$f":"BG30+BG31+BG32+BG33","v":426},{"$f":"SQRT((BH30^2)+(BH31^2)+(BH32^2)+(BH33^2))","v":134.43585831168707},{"$f":"BI30+BI31+BI32+BI33","v":102},{"$f":"SQRT((BJ30^2)+(BJ31^2)+(BJ32^2)+(BJ33^2))","v":75.485097867062478},{"$f":"BK30+BK31+BK32+BK33","v":157},{"$f":"SQRT((BL30^2)+(BL31^2)+(BL32^2)+(BL33^2))","v":123.92336341465236},{"$f":"BM30+BM31+BM32+BM33","v":477},{"$f":"SQRT((BN30^2)+(BN31^2)+(BN32^2)+(BN33^2))","v":199.27368115232881},{"$f":"BO30+BO31+BO32+BO33","v":0},{"$f":"SQRT((BP30^2)+(BP31^2)+(BP32^2)+(BP33^2))","v":32},{"$f":"BQ30+BQ31+BQ32+BQ33","v":79},{"$f":"SQRT((BR30^2)+(BR31^2)+(BR32^2)+(BR33^2))","v":46.679760067935227},{"$f":"BS30+BS31+BS32+BS33","v":0},{"$f":"SQRT((BT30^2)+(BT31^2)+(BT32^2)+(BT33^2))","v":22},{"$f":"BU30+BU31+BU32+BU33","v":33},{"$f":"SQRT((BV30^2)+(BV31^2)+(BV32^2)+(BV33^2))","v":45.442271070007052},{"$f":"BW30+BW31+BW32+BW33","v":17},{"$f":"SQRT((BX30^2)+(BX31^2)+(BX32^2)+(BX33^2))","v":42.579337712087536}]
[null,"Less Than 35% of HH Income",{"$f":"C27+C28+C29+C30","v":0},{"$f":"SQRT((D27^2)+(D28^2)+(D29^2)+(D30^2))","v":32},{"$f":"E27+E28+E29+E30","v":0},{"$f":"SQRT((F27^2)+(F28^2)+(F29^2)+(F30^2))","v":32},{"$f":"G27+G28+G29+G30","v":0},{"$f":"SQRT((H27^2)+(H28^2)+(H29^2)+(H30^2))","v":22},{"$f":"I27+I28+I29+I30","v":0},{"$f":"SQRT((J27^2)+(J28^2)+(J29^2)+(J30^2))","v":22},{"$f":"K27+K28+K29+K30","v":0},{"$f":"SQRT((L27^2)+(L28^2)+(L29^2)+(L30^2))","v":32},{"$f":"M27+M28+M29+M30","v":30},{"$f":"SQRT((N27^2)+(N28^2)+(N29^2)+(N30^2))","v":36.386810797320507},{"$f":"O27+O28+O29+O30","v":0},{"$f":"SQRT((P27^2)+(P28^2)+(P29^2)+(P30^2))","v":22},{"$f":"Q27+Q28+Q29+Q30","v":159},{"$f":"SQRT((R27^2)+(R28^2)+(R29^2)+(R30^2))","v":128.09761902549164},{"$f":"S27+S28+S29+S30","v":0},{"$f":"SQRT((T27^2)+(T28^2)+(T29^2)+(T30^2))","v":22},{"$f":"U27+U28+U29+U30","v":0},{"$f":"SQRT((V27^2)+(V28^2)+(V29^2)+(V30^2))","v":32},{"$f":"W27+W28+W29+W30","v":100},{"$f":"SQRT((X27^2)+(X28^2)+(X29^2)+(X30^2))","v":75.802374632988901},{"$f":"Y27+Y28+Y29+Y30","v":0},{"$f":"SQRT((Z27^2)+(Z28^2)+(Z29^2)+(Z30^2))","v":22},{"$f":"AA27+AA28+AA29+AA30","v":9},{"$f":"SQRT((AB27^2)+(AB28^2)+(AB29^2)+(AB30^2))","v":23.065125189341593},{"$f":"AC27+AC28+AC29+AC30","v":136},{"$f":"SQRT((AD27^2)+(AD28^2)+(AD29^2)+(AD30^2))","v":117.89826122551597},{"$f":"AE27+AE28+AE29+AE30","v":110},{"$f":"SQRT((AF27^2)+(AF28^2)+(AF29^2)+(AF30^2))","v":69.577295147195827},{"$f":"AG27+AG28+AG29+AG30","v":0},{"$f":"SQRT((AH27^2)+(AH28^2)+(AH29^2)+(AH30^2))","v":22},{"$f":"AI27+AI28+AI29+AI30","v":0},{"$f":"SQRT((AJ27^2)+(AJ28^2)+(AJ29^2)+(AJ30^2))","v":22},{"$f":"AK27+AK28+AK29+AK30","v":0},{"$f":"SQRT((AL27^2)+(AL28^2)+(AL29^2)+(AL30^2))","v":32},{"$f":"AM27+AM28+AM29+AM30","v":33},{"$f":"SQRT((AN27^2)+(AN28^2)+(AN29^2)+(AN30^2))","v":45.299006611624499},{"$f":"AO27+AO28+AO29+AO30","v":0},{"$f":"SQRT((AP27^2)+(AP28^2)+(AP29^2)+(AP30^2))","v":22},{"$f":"AQ27+AQ28+AQ29+AQ30","v":0},{"$f":"SQRT((AR27^2)+(AR28^2)+(AR29^2)+(AR30^2))","v":22},{"$f":"AS27+AS28+AS29+AS30","v":0},{"$f":"SQRT((AT27^2)+(AT28^2)+(AT29^2)+(AT30^2))","v":22},{"$f":"AU27+AU28+AU29+AU30","v":123},{"$f":"SQRT((AV27^2)+(AV28^2)+(AV29^2)+(AV30^2))","v":106.16967551989597},{"$f":"AW27+AW28+AW29+AW30","v":16},{"$f":"SQRT((AX27^2)+(AX28^2)+(AX29^2)+(AX30^2))","v":23.558437978779494},{"$f":"AY27+AY28+AY29+AY30","v":0},{"$f":"SQRT((AZ27^2)+(AZ28^2)+(AZ29^2)+(AZ30^2))","v":22},{"$f":"BA27+BA28+BA29+BA30","v":0},{"$f":"SQRT((BB27^2)+(BB28^2)+(BB29^2)+(BB30^2))","v":22},{"$f":"BC27+BC28+BC29+BC30","v":12},{"$f":"SQRT((BD27^2)+(BD28^2)+(BD29^2)+(BD30^2))","v":33.600595232822883},{"$f":"BE27+BE28+BE29+BE30","v":18},{"$f":"SQRT((BF27^2)+(BF28^2)+(BF29^2)+(BF30^2))","v":39.395431207184416},{"$f":"BG27+BG28+BG29+BG30","v":243},{"$f":"SQRT((BH27^2)+(BH28^2)+(BH29^2)+(BH30^2))","v":120.2954695738788},{"$f":"BI27+BI28+BI29+BI30","v":21},{"$f":"SQRT((BJ27^2)+(BJ28^2)+(BJ29^2)+(BJ30^2))","v":35.566838487557476},{"$f":"BK27+BK28+BK29+BK30","v":0},{"$f":"SQRT((BL27^2)+(BL28^2)+(BL29^2)+(BL30^2))","v":32},{"$f":"BM27+BM28+BM29+BM30","v":46},{"$f":"SQRT((BN27^2)+(BN28^2)+(BN29^2)+(BN30^2))","v":55.605755097831377},{"$f":"BO27+BO28+BO29+BO30","v":0},{"$f":"SQRT((BP27^2)+(BP28^2)+(BP29^2)+(BP30^2))","v":32},{"$f":"BQ27+BQ28+BQ29+BQ30","v":84},{"$f":"SQRT((BR27^2)+(BR28^2)+(BR29^2)+(BR30^2))","v":57.078892771321343},{"$f":"BS27+BS28+BS29+BS30","v":0},{"$f":"SQRT((BT27^2)+(BT28^2)+(BT29^2)+(BT30^2))","v":22},{"$f":"BU27+BU28+BU29+BU30","v":0},{"$f":"SQRT((BV27^2)+(BV28^2)+(BV29^2)+(BV30^2))","v":32},{"$f":"BW27+BW28+BW29+BW30","v":17},{"$f":"SQRT((BX27^2)+(BX28^2)+(BX29^2)+(BX30^2))","v":41.243181254602561}]
[null,"35.0 percent or more",{"$f":"C31+C32+C33","v":53},{"$f":"SQRT((D31^2)+(D32^2)+(D33^2))","v":86.029064856012468},{"$f":"E31+E32+E33","v":0},{"$f":"SQRT((F31^2)+(F32^2)+(F33^2))","v":27.712812921102035},{"$f":"G31+G32+G33","v":0},{"$f":"SQRT((H31^2)+(H32^2)+(H33^2))","v":19.05255888325765},{"$f":"I31+I32+I33","v":8},{"$f":"SQRT((J31^2)+(J32^2)+(J33^2))","v":20.273134932713294},{"$f":"K31+K32+K33","v":11},{"$f":"SQRT((L31^2)+(L32^2)+(L33^2))","v":29.546573405388315},{"$f":"M31+M32+M33","v":108},{"$f":"SQRT((N31^2)+(N32^2)+(N33^2))","v":88.820042783146647},{"$f":"O31+O32+O33","v":33},{"$f":"SQRT((P31^2)+(P32^2)+(P33^2))","v":41.060930335295616},{"$f":"Q31+Q32+Q33","v":522},{"$f":"SQRT((R31^2)+(R32^2)+(R33^2))","v":193.77822375076101},{"$f":"S31+S32+S33","v":4},{"$f":"SQRT((T31^2)+(T32^2)+(T33^2))","v":17.4928556845359},{"$f":"U31+U32+U33","v":121},{"$f":"SQRT((V31^2)+(V32^2)+(V33^2))","v":99.383097154395429},{"$f":"W31+W32+W33","v":307},{"$f":"SQRT((X31^2)+(X32^2)+(X33^2))","v":117.03845521878696},{"$f":"Y31+Y32+Y33","v":0},{"$f":"SQRT((Z31^2)+(Z32^2)+(Z33^2))","v":19.05255888325765},{"$f":"AA31+AA32+AA33","v":19},{"$f":"SQRT((AB31^2)+(AB32^2)+(AB33^2))","v":24.535688292770594},{"$f":"AC31+AC32+AC33","v":50},{"$f":"SQRT((AD31^2)+(AD32^2)+(AD33^2))","v":50.009999000199947},{"$f":"AE31+AE32+AE33","v":173},{"$f":"SQRT((AF31^2)+(AF32^2)+(AF33^2))","v":69.534164264769871},{"$f":"AG31+AG32+AG33","v":0},{"$f":"SQRT((AH31^2)+(AH32^2)+(AH33^2))","v":19.05255888325765},{"$f":"AI31+AI32+AI33","v":7},{"$f":"SQRT((AJ31^2)+(AJ32^2)+(AJ33^2))","v":13.076696830622021},{"$f":"AK31+AK32+AK33","v":119},{"$f":"SQRT((AL31^2)+(AL32^2)+(AL33^2))","v":121.86057606953941},{"$f":"AM31+AM32+AM33","v":204},{"$f":"SQRT((AN31^2)+(AN32^2)+(AN33^2))","v":119.78313737751236},{"$f":"AO31+AO32+AO33","v":11},{"$f":"SQRT((AP31^2)+(AP32^2)+(AP33^2))","v":23.043437243605826},{"$f":"AQ31+AQ32+AQ33","v":0},{"$f":"SQRT((AR31^2)+(AR32^2)+(AR33^2))","v":19.05255888325765},{"$f":"AS31+AS32+AS33","v":3},{"$f":"SQRT((AT31^2)+(AT32^2)+(AT33^2))","v":16.340134638368191},{"$f":"AU31+AU32+AU33","v":154},{"$f":"SQRT((AV31^2)+(AV32^2)+(AV33^2))","v":77.116794539192298},{"$f":"AW31+AW32+AW33","v":7},{"$f":"SQRT((AX31^2)+(AX32^2)+(AX33^2))","v":19.646882704388499},{"$f":"AY31+AY32+AY33","v":32},{"$f":"SQRT((AZ31^2)+(AZ32^2)+(AZ33^2))","v":25.238858928247925},{"$f":"BA31+BA32+BA33","v":29},{"$f":"SQRT((BB31^2)+(BB32^2)+(BB33^2))","v":29.171904291629644},{"$f":"BC31+BC32+BC33","v":0},{"$f":"SQRT((BD31^2)+(BD32^2)+(BD33^2))","v":27.712812921102035},{"$f":"BE31+BE32+BE33","v":48},{"$f":"SQRT((BF31^2)+(BF32^2)+(BF33^2))","v":78.339006886735547},{"$f":"BG31+BG32+BG33","v":387},{"$f":"SQRT((BH31^2)+(BH32^2)+(BH33^2))","v":129.79984591670362},{"$f":"BI31+BI32+BI33","v":102},{"$f":"SQRT((BJ31^2)+(BJ32^2)+(BJ33^2))","v":73.307571232445014},{"$f":"BK31+BK32+BK33","v":157},{"$f":"SQRT((BL31^2)+(BL32^2)+(BL33^2))","v":122.88612614937456},{"$f":"BM31+BM32+BM33","v":459},{"$f":"SQRT((BN31^2)+(BN32^2)+(BN33^2))","v":197.15222545028499},{"$f":"BO31+BO32+BO33","v":0},{"$f":"SQRT((BP31^2)+(BP32^2)+(BP33^2))","v":27.712812921102035},{"$f":"BQ31+BQ32+BQ33","v":36},{"$f":"SQRT((BR31^2)+(BR32^2)+(BR33^2))","v":30.886890422961002},{"$f":"BS31+BS32+BS33","v":0},{"$f":"SQRT((BT31^2)+(BT32^2)+(BT33^2))","v":19.05255888325765},{"$f":"BU31+BU32+BU33","v":33},{"$f":"SQRT((BV31^2)+(BV32^2)+(BV33^2))","v":42.532340636273474},{"$f":"BW31+BW32+BW33","v":17},{"$f":"SQRT((BX31^2)+(BX32^2)+(BX33^2))","v":38.587562763149478}]
[null,"50.0 percent or more",{"$f":"C33","v":0},16,0,16,0,11,8,13,0,16,43,52,0,11,345,167,{"$f":"S33","v":0},11,89,90,241,107,0,11,10,16,23,34,70,49,0,11,4,5,96,115,107,70,11,17,0,11,3,5,50,45,7,12,7,12,18,21,0,16,48,75,233,104,68,66,118,114,213,138,0,16,9,16,0,11,19,32,0,18]
[null,"Not Computed",0,16,0,16,0,11,20,30,0,16,0,11,0,11,17,27,0,11,0,16,0,18,9,14,0,11,0,16,13,20,0,11,0,11,0,16,0,21,0,11,0,11,0,11,0,16,11,16,11,18,0,11,0,16,0,16,17,22,0,18,0,16,0,21,0,16,9,15,0,11,0,16,0,18]
[null,"$35,000 to $49,999:",61,90,42,38,12,17,31,45,0,16,28,45,26,23,775,225,5,8,81,93,358,134,14,22,35,35,251,143,290,99,12,19,16,22,116,104,84,61,0,11,11,11,0,11,325,125,46,50,34,26,16,20,0,16,133,121,463,150,186,97,21,34,372,138,68,68,190,94,17,19,72,58,0,18]
[null,"Less than 30.0 percent",{"$f":"C36+C37+C38","v":47},{"$f":"SQRT((D36^2)+(D37^2)+(D38^2))","v":80.255840908933223},{"$f":"E36+E37+E38","v":11},{"$f":"SQRT((F36^2)+(F37^2)+(F38^2))","v":28.301943396169811},{"$f":"G36+G37+G38","v":12},{"$f":"SQRT((H36^2)+(H37^2)+(H38^2))","v":23.043437243605826},{"$f":"I36+I37+I38","v":0},{"$f":"SQRT((J36^2)+(J37^2)+(J38^2))","v":19.05255888325765},{"$f":"K36+K37+K38","v":0},{"$f":"SQRT((L36^2)+(L37^2)+(L38^2))","v":27.712812921102035},{"$f":"M36+M37+M38","v":0},{"$f":"SQRT((N36^2)+(N37^2)+(N38^2))","v":19.05255888325765},{"$f":"O36+O37+O38","v":0},{"$f":"SQRT((P36^2)+(P37^2)+(P38^2))","v":19.05255888325765},{"$f":"Q36+Q37+Q38","v":188},{"$f":"SQRT((R36^2)+(R37^2)+(R38^2))","v":119.20989891783316},{"$f":"S36+S37+S38","v":0},{"$f":"SQRT((T36^2)+(T37^2)+(T38^2))","v":19.05255888325765},{"$f":"U36+U37+U38","v":68},{"$f":"SQRT((V36^2)+(V37^2)+(V38^2))","v":89.246848683861103},{"$f":"W36+W37+W38","v":145},{"$f":"SQRT((X36^2)+(X37^2)+(X38^2))","v":121.01652779682617},{"$f":"Y36+Y37+Y38","v":0},{"$f":"SQRT((Z36^2)+(Z37^2)+(Z38^2))","v":19.05255888325765},{"$f":"AA36+AA37+AA38","v":0},{"$f":"SQRT((AB36^2)+(AB37^2)+(AB38^2))","v":19.05255888325765},{"$f":"AC36+AC37+AC38","v":114},{"$f":"SQRT((AD36^2)+(AD37^2)+(AD38^2))","v":114.12712210513327},{"$f":"AE36+AE37+AE38","v":138},{"$f":"SQRT((AF36^2)+(AF37^2)+(AF38^2))","v":80.037491215054956},{"$f":"AG36+AG37+AG38","v":0},{"$f":"SQRT((AH36^2)+(AH37^2)+(AH38^2))","v":19.05255888325765},{"$f":"AI36+AI37+AI38","v":16},{"$f":"SQRT((AJ36^2)+(AJ37^2)+(AJ38^2))","v":26.944387170614959},{"$f":"AK36+AK37+AK38","v":49},{"$f":"SQRT((AL36^2)+(AL37^2)+(AL38^2))","v":85.064681272546949},{"$f":"AM36+AM37+AM38","v":9},{"$f":"SQRT((AN36^2)+(AN37^2)+(AN38^2))","v":32.832910318764007},{"$f":"AO36+AO37+AO38","v":0},{"$f":"SQRT((AP36^2)+(AP37^2)+(AP38^2))","v":19.05255888325765},{"$f":"AQ36+AQ37+AQ38","v":0},{"$f":"SQRT((AR36^2)+(AR37^2)+(AR38^2))","v":19.05255888325765},{"$f":"AS36+AS37+AS38","v":0},{"$f":"SQRT((AT36^2)+(AT37^2)+(AT38^2))","v":19.05255888325765},{"$f":"AU36+AU37+AU38","v":51},{"$f":"SQRT((AV36^2)+(AV37^2)+(AV38^2))","v":47.010637094172637},{"$f":"AW36+AW37+AW38","v":36},{"$f":"SQRT((AX36^2)+(AX37^2)+(AX38^2))","v":49.507575177946251},{"$f":"AY36+AY37+AY38","v":0},{"$f":"SQRT((AZ36^2)+(AZ37^2)+(AZ38^2))","v":19.05255888325765},{"$f":"BA36+BA37+BA38","v":0},{"$f":"SQRT((BB36^2)+(BB37^2)+(BB38^2))","v":19.05255888325765},{"$f":"BC36+BC37+BC38","v":0},{"$f":"SQRT((BD36^2)+(BD37^2)+(BD38^2))","v":27.712812921102035},{"$f":"BE36+BE37+BE38","v":11},{"$f":"SQRT((BF36^2)+(BF37^2)+(BF38^2))","v":28.913664589601922},{"$f":"BG36+BG37+BG38","v":74},{"$f":"SQRT((BH36^2)+(BH37^2)+(BH38^2))","v":46.626172907499068},{"$f":"BI36+BI37+BI38","v":25},{"$f":"SQRT((BJ36^2)+(BJ37^2)+(BJ38^2))","v":33.301651610693426},{"$f":"BK36+BK37+BK38","v":21},{"$f":"SQRT((BL36^2)+(BL37^2)+(BL38^2))","v":40.841155713324277},{"$f":"BM36+BM37+BM38","v":154},{"$f":"SQRT((BN36^2)+(BN37^2)+(BN38^2))","v":113.19893992436502},{"$f":"BO36+BO37+BO38","v":0},{"$f":"SQRT((BP36^2)+(BP37^2)+(BP38^2))","v":27.712812921102035},{"$f":"BQ36+BQ37+BQ38","v":55},{"$f":"SQRT((BR36^2)+(BR37^2)+(BR38^2))","v":52.583267300539625},{"$f":"BS36+BS37+BS38","v":9},{"$f":"SQRT((BT36^2)+(BT37^2)+(BT38^2))","v":20.928449536456348},{"$f":"BU36+BU37+BU38","v":39},{"$f":"SQRT((BV36^2)+(BV37^2)+(BV38^2))","v":46.443514078932488},{"$f":"BW36+BW37+BW38","v":0},{"$f":"SQRT((BX36^2)+(BX37^2)+(BX38^2))","v":31.176914536239792}]
[null,"More than 30.0 percent",{"$f":"C39+C40+C41+C42","v":14},{"$f":"SQRT((D39^2)+(D40^2)+(D41^2)+(D42^2))","v":37.322915213043046},{"$f":"E39+E40+E41+E42","v":31},{"$f":"SQRT((F39^2)+(F40^2)+(F41^2)+(F42^2))","v":42.332020977033451},{"$f":"G39+G40+G41+G42","v":0},{"$f":"SQRT((H39^2)+(H40^2)+(H41^2)+(H42^2))","v":22},{"$f":"I39+I40+I41+I42","v":31},{"$f":"SQRT((J39^2)+(J40^2)+(J41^2)+(J42^2))","v":48.867166891482462},{"$f":"K39+K40+K41+K42","v":0},{"$f":"SQRT((L39^2)+(L40^2)+(L41^2)+(L42^2))","v":32},{"$f":"M39+M40+M41+M42","v":28},{"$f":"SQRT((N39^2)+(N40^2)+(N41^2)+(N42^2))","v":48.867166891482462},{"$f":"O39+O40+O41+O42","v":26},{"$f":"SQRT((P39^2)+(P40^2)+(P41^2)+(P42^2))","v":28.948229652260256},{"$f":"Q39+Q40+Q41+Q42","v":587},{"$f":"SQRT((R39^2)+(R40^2)+(R41^2)+(R42^2))","v":186.82344606606529},{"$f":"S39+S40+S41+S42","v":0},{"$f":"SQRT((T39^2)+(T40^2)+(T41^2)+(T42^2))","v":22},{"$f":"U39+U40+U41+U42","v":13},{"$f":"SQRT((V39^2)+(V40^2)+(V41^2)+(V42^2))","v":34.176014981270121},{"$f":"W39+W40+W41+W42","v":213},{"$f":"SQRT((X39^2)+(X40^2)+(X41^2)+(X42^2))","v":118.09741741460734},{"$f":"Y39+Y40+Y41+Y42","v":0},{"$f":"SQRT((Z39^2)+(Z40^2)+(Z41^2)+(Z42^2))","v":22},{"$f":"AA39+AA40+AA41+AA42","v":35},{"$f":"SQRT((AB39^2)+(AB40^2)+(AB41^2)+(AB42^2))","v":38.729833462074168},{"$f":"AC39+AC40+AC41+AC42","v":84},{"$f":"SQRT((AD39^2)+(AD40^2)+(AD41^2)+(AD42^2))","v":88.277970071813499},{"$f":"AE39+AE40+AE41+AE42","v":141},{"$f":"SQRT((AF39^2)+(AF40^2)+(AF41^2)+(AF42^2))","v":62.529992803453929},{"$f":"AG39+AG40+AG41+AG42","v":0},{"$f":"SQRT((AH39^2)+(AH40^2)+(AH41^2)+(AH42^2))","v":22},{"$f":"AI39+AI40+AI41+AI42","v":0},{"$f":"SQRT((AJ39^2)+(AJ40^2)+(AJ41^2)+(AJ42^2))","v":22},{"$f":"AK39+AK40+AK41+AK42","v":67},{"$f":"SQRT((AL39^2)+(AL40^2)+(AL41^2)+(AL42^2))","v":65.383484153110103},{"$f":"AM39+AM40+AM41+AM42","v":65},{"$f":"SQRT((AN39^2)+(AN40^2)+(AN41^2)+(AN42^2))","v":57.157676649772952},{"$f":"AO39+AO40+AO41+AO42","v":0},{"$f":"SQRT((AP39^2)+(AP40^2)+(AP41^2)+(AP42^2))","v":22},{"$f":"AQ39+AQ40+AQ41+AQ42","v":8},{"$f":"SQRT((AR39^2)+(AR40^2)+(AR41^2)+(AR42^2))","v":18.193405398660254},{"$f":"AS39+AS40+AS41+AS42","v":0},{"$f":"SQRT((AT39^2)+(AT40^2)+(AT41^2)+(AT42^2))","v":22},{"$f":"AU39+AU40+AU41+AU42","v":267},{"$f":"SQRT((AV39^2)+(AV40^2)+(AV41^2)+(AV42^2))","v":123.77802712921223},{"$f":"AW39+AW40+AW41+AW42","v":10},{"$f":"SQRT((AX39^2)+(AX40^2)+(AX41^2)+(AX42^2))","v":25.534290669607408},{"$f":"AY39+AY40+AY41+AY42","v":26},{"$f":"SQRT((AZ39^2)+(AZ40^2)+(AZ41^2)+(AZ42^2))","v":28.948229652260256},{"$f":"BA39+BA40+BA41+BA42","v":16},{"$f":"SQRT((BB39^2)+(BB40^2)+(BB41^2)+(BB42^2))","v":24.083189157584592},{"$f":"BC39+BC40+BC41+BC42","v":0},{"$f":"SQRT((BD39^2)+(BD40^2)+(BD41^2)+(BD42^2))","v":32},{"$f":"BE39+BE40+BE41+BE42","v":122},{"$f":"SQRT((BF39^2)+(BF40^2)+(BF41^2)+(BF42^2))","v":120.81804500984114},{"$f":"BG39+BG40+BG41+BG42","v":389},{"$f":"SQRT((BH39^2)+(BH40^2)+(BH41^2)+(BH42^2))","v":151.73002339682151},{"$f":"BI39+BI40+BI41+BI42","v":161},{"$f":"SQRT((BJ39^2)+(BJ40^2)+(BJ41^2)+(BJ42^2))","v":100.48880534666536},{"$f":"BK39+BK40+BK41+BK42","v":0},{"$f":"SQRT((BL39^2)+(BL40^2)+(BL41^2)+(BL42^2))","v":32},{"$f":"BM39+BM40+BM41+BM42","v":208},{"$f":"SQRT((BN39^2)+(BN40^2)+(BN41^2)+(BN42^2))","v":100.66777041337511},{"$f":"BO39+BO40+BO41+BO42","v":68},{"$f":"SQRT((BP39^2)+(BP40^2)+(BP41^2)+(BP42^2))","v":79.680612447445455},{"$f":"BQ39+BQ40+BQ41+BQ42","v":113},{"$f":"SQRT((BR39^2)+(BR40^2)+(BR41^2)+(BR42^2))","v":80.062475604992386},{"$f":"BS39+BS40+BS41+BS42","v":0},{"$f":"SQRT((BT39^2)+(BT40^2)+(BT41^2)+(BT42^2))","v":22},{"$f":"BU39+BU40+BU41+BU42","v":33},{"$f":"SQRT((BV39^2)+(BV40^2)+(BV41^2)+(BV42^2))","v":45.475268003608292},{"$f":"BW39+BW40+BW41+BW42","v":0},{"$f":"SQRT((BX39^2)+(BX40^2)+(BX41^2)+(BX42^2))","v":36}]
[null,"Less Than 35% of HH Income",{"$f":"C36+C37+C38+C39","v":61},{"$f":"SQRT((D36^2)+(D37^2)+(D38^2)+(D39^2))","v":84.059502734670033},{"$f":"E36+E37+E38+E39","v":11},{"$f":"SQRT((F36^2)+(F37^2)+(F38^2)+(F39^2))","v":32.511536414017719},{"$f":"G36+G37+G38+G39","v":12},{"$f":"SQRT((H36^2)+(H37^2)+(H38^2)+(H39^2))","v":25.534290669607408},{"$f":"I36+I37+I38+I39","v":0},{"$f":"SQRT((J36^2)+(J37^2)+(J38^2)+(J39^2))","v":22},{"$f":"K36+K37+K38+K39","v":0},{"$f":"SQRT((L36^2)+(L37^2)+(L38^2)+(L39^2))","v":32},{"$f":"M36+M37+M38+M39","v":28},{"$f":"SQRT((N36^2)+(N37^2)+(N38^2)+(N39^2))","v":48.867166891482462},{"$f":"O36+O37+O38+O39","v":0},{"$f":"SQRT((P36^2)+(P37^2)+(P38^2)+(P39^2))","v":22},{"$f":"Q36+Q37+Q38+Q39","v":411},{"$f":"SQRT((R36^2)+(R37^2)+(R38^2)+(R39^2))","v":167.73490990250062},{"$f":"S36+S37+S38+S39","v":0},{"$f":"SQRT((T36^2)+(T37^2)+(T38^2)+(T39^2))","v":22},{"$f":"U36+U37+U38+U39","v":81},{"$f":"SQRT((V36^2)+(V37^2)+(V38^2)+(V39^2))","v":91.460373933195797},{"$f":"W36+W37+W38+W39","v":290},{"$f":"SQRT((X36^2)+(X37^2)+(X38^2)+(X39^2))","v":160.21860066796239},{"$f":"Y36+Y37+Y38+Y39","v":0},{"$f":"SQRT((Z36^2)+(Z37^2)+(Z38^2)+(Z39^2))","v":22},{"$f":"AA36+AA37+AA38+AA39","v":8},{"$f":"SQRT((AB36^2)+(AB37^2)+(AB38^2)+(AB39^2))","v":23.065125189341593},{"$f":"AC36+AC37+AC38+AC39","v":164},{"$f":"SQRT((AD36^2)+(AD37^2)+(AD38^2)+(AD39^2))","v":139.94999106823838},{"$f":"AE36+AE37+AE38+AE39","v":201},{"$f":"SQRT((AF36^2)+(AF37^2)+(AF38^2)+(AF39^2))","v":91.334549870243521},{"$f":"AG36+AG37+AG38+AG39","v":0},{"$f":"SQRT((AH36^2)+(AH37^2)+(AH38^2)+(AH39^2))","v":22},{"$f":"AI36+AI37+AI38+AI39","v":16},{"$f":"SQRT((AJ36^2)+(AJ37^2)+(AJ38^2)+(AJ39^2))","v":29.103264421710495},{"$f":"AK36+AK37+AK38+AK39","v":49},{"$f":"SQRT((AL36^2)+(AL37^2)+(AL38^2)+(AL39^2))","v":86.556340033529608},{"$f":"AM36+AM37+AM38+AM39","v":56},{"$f":"SQRT((AN36^2)+(AN37^2)+(AN38^2)+(AN39^2))","v":58.98304841223451},{"$f":"AO36+AO37+AO38+AO39","v":0},{"$f":"SQRT((AP36^2)+(AP37^2)+(AP38^2)+(AP39^2))","v":22},{"$f":"AQ36+AQ37+AQ38+AQ39","v":3},{"$f":"SQRT((AR36^2)+(AR37^2)+(AR38^2)+(AR39^2))","v":19.697715603592208},{"$f":"AS36+AS37+AS38+AS39","v":0},{"$f":"SQRT((AT36^2)+(AT37^2)+(AT38^2)+(AT39^2))","v":22},{"$f":"AU36+AU37+AU38+AU39","v":129},{"$f":"SQRT((AV36^2)+(AV37^2)+(AV38^2)+(AV39^2))","v":99.769734889895346},{"$f":"AW36+AW37+AW38+AW39","v":36},{"$f":"SQRT((AX36^2)+(AX37^2)+(AX38^2)+(AX39^2))","v":50.714889332423866},{"$f":"AY36+AY37+AY38+AY39","v":0},{"$f":"SQRT((AZ36^2)+(AZ37^2)+(AZ38^2)+(AZ39^2))","v":22},{"$f":"BA36+BA37+BA38+BA39","v":0},{"$f":"SQRT((BB36^2)+(BB37^2)+(BB38^2)+(BB39^2))","v":22},{"$f":"BC36+BC37+BC38+BC39","v":0},{"$f":"SQRT((BD36^2)+(BD37^2)+(BD38^2)+(BD39^2))","v":32},{"$f":"BE36+BE37+BE38+BE39","v":27},{"$f":"SQRT((BF36^2)+(BF37^2)+(BF38^2)+(BF39^2))","v":37.576588456111871},{"$f":"BG36+BG37+BG38+BG39","v":226},{"$f":"SQRT((BH36^2)+(BH37^2)+(BH38^2)+(BH39^2))","v":99.589156036186992},{"$f":"BI36+BI37+BI38+BI39","v":85},{"$f":"SQRT((BJ36^2)+(BJ37^2)+(BJ38^2)+(BJ39^2))","v":60.909769331364245},{"$f":"BK36+BK37+BK38+BK39","v":21},{"$f":"SQRT((BL36^2)+(BL37^2)+(BL38^2)+(BL39^2))","v":43.863424398922618},{"$f":"BM36+BM37+BM38+BM39","v":245},{"$f":"SQRT((BN36^2)+(BN37^2)+(BN38^2)+(BN39^2))","v":131.54086817411539},{"$f":"BO36+BO37+BO38+BO39","v":20},{"$f":"SQRT((BP36^2)+(BP37^2)+(BP38^2)+(BP39^2))","v":33.600595232822883},{"$f":"BQ36+BQ37+BQ38+BQ39","v":96},{"$f":"SQRT((BR36^2)+(BR37^2)+(BR38^2)+(BR39^2))","v":84.38601779915912},{"$f":"BS36+BS37+BS38+BS39","v":9},{"$f":"SQRT((BT36^2)+(BT37^2)+(BT38^2)+(BT39^2))","v":23.643180835073778},{"$f":"BU36+BU37+BU38+BU39","v":39},{"$f":"SQRT((BV36^2)+(BV37^2)+(BV38^2)+(BV39^2))","v":49.122296363260546},{"$f":"BW36+BW37+BW38+BW39","v":0},{"$f":"SQRT((BX36^2)+(BX37^2)+(BX38^2)+(BX39^2))","v":36}]
[null,"35.0 percent or more",{"$f":"C40+C41+C42","v":0},{"$f":"SQRT((D40^2)+(D41^2)+(D42^2))","v":27.712812921102035},{"$f":"E40+E41+E42","v":31},{"$f":"SQRT((F40^2)+(F41^2)+(F42^2))","v":39.191835884530846},{"$f":"G40+G41+G42","v":0},{"$f":"SQRT((H40^2)+(H41^2)+(H42^2))","v":19.05255888325765},{"$f":"I40+I41+I42","v":31},{"$f":"SQRT((J40^2)+(J41^2)+(J42^2))","v":47.613023428469653},{"$f":"K40+K41+K42","v":0},{"$f":"SQRT((L40^2)+(L41^2)+(L42^2))","v":27.712812921102035},{"$f":"M40+M41+M42","v":0},{"$f":"SQRT((N40^2)+(N41^2)+(N42^2))","v":19.05255888325765},{"$f":"O40+O41+O42","v":26},{"$f":"SQRT((P40^2)+(P41^2)+(P42^2))","v":26.776855677991769},{"$f":"Q40+Q41+Q42","v":364},{"$f":"SQRT((R40^2)+(R41^2)+(R42^2))","v":144.84129245487972},{"$f":"S40+S41+S42","v":0},{"$f":"SQRT((T40^2)+(T41^2)+(T42^2))","v":19.05255888325765},{"$f":"U40+U41+U42","v":0},{"$f":"SQRT((V40^2)+(V41^2)+(V42^2))","v":27.712812921102035},{"$f":"W40+W41+W42","v":68},{"$f":"SQRT((X40^2)+(X41^2)+(X42^2))","v":54.055527006958314},{"$f":"Y40+Y41+Y42","v":0},{"$f":"SQRT((Z40^2)+(Z41^2)+(Z42^2))","v":19.05255888325765},{"$f":"AA40+AA41+AA42","v":27},{"$f":"SQRT((AB40^2)+(AB41^2)+(AB42^2))","v":36.4828726939094},{"$f":"AC40+AC41+AC42","v":34},{"$f":"SQRT((AD40^2)+(AD41^2)+(AD42^2))","v":35.09985754956849},{"$f":"AE40+AE41+AE42","v":78},{"$f":"SQRT((AF40^2)+(AF41^2)+(AF42^2))","v":44.429719783046124},{"$f":"AG40+AG41+AG42","v":0},{"$f":"SQRT((AH40^2)+(AH41^2)+(AH42^2))","v":19.05255888325765},{"$f":"AI40+AI41+AI42","v":0},{"$f":"SQRT((AJ40^2)+(AJ41^2)+(AJ42^2))","v":19.05255888325765},{"$f":"AK40+AK41+AK42","v":67},{"$f":"SQRT((AL40^2)+(AL41^2)+(AL42^2))","v":63.395583442381849},{"$f":"AM40+AM41+AM42","v":18},{"$f":"SQRT((AN40^2)+(AN41^2)+(AN42^2))","v":29.427877939124322},{"$f":"AO40+AO41+AO42","v":0},{"$f":"SQRT((AP40^2)+(AP41^2)+(AP42^2))","v":19.05255888325765},{"$f":"AQ40+AQ41+AQ42","v":5},{"$f":"SQRT((AR40^2)+(AR41^2)+(AR42^2))","v":17.4928556845359},{"$f":"AS40+AS41+AS42","v":0},{"$f":"SQRT((AT40^2)+(AT41^2)+(AT42^2))","v":19.05255888325765},{"$f":"AU40+AU41+AU42","v":189},{"$f":"SQRT((AV40^2)+(AV41^2)+(AV42^2))","v":87.045964869142551},{"$f":"AW40+AW41+AW42","v":10},{"$f":"SQRT((AX40^2)+(AX41^2)+(AX42^2))","v":23.043437243605826},{"$f":"AY40+AY41+AY42","v":26},{"$f":"SQRT((AZ40^2)+(AZ41^2)+(AZ42^2))","v":26.776855677991769},{"$f":"BA40+BA41+BA42","v":16},{"$f":"SQRT((BB40^2)+(BB41^2)+(BB42^2))","v":21.42428528562855},{"$f":"BC40+BC41+BC42","v":0},{"$f":"SQRT((BD40^2)+(BD41^2)+(BD42^2))","v":27.712812921102035},{"$f":"BE40+BE41+BE42","v":106},{"$f":"SQRT((BF40^2)+(BF41^2)+(BF42^2))","v":118.41030360572512},{"$f":"BG40+BG41+BG42","v":237},{"$f":"SQRT((BH40^2)+(BH41^2)+(BH42^2))","v":123.60420704814217},{"$f":"BI40+BI41+BI42","v":101},{"$f":"SQRT((BJ40^2)+(BJ41^2)+(BJ42^2))","v":86.58521813797087},{"$f":"BK40+BK41+BK42","v":0},{"$f":"SQRT((BL40^2)+(BL41^2)+(BL42^2))","v":27.712812921102035},{"$f":"BM40+BM41+BM42","v":117},{"$f":"SQRT((BN40^2)+(BN41^2)+(BN42^2))","v":75.133215025047349},{"$f":"BO40+BO41+BO42","v":48},{"$f":"SQRT((BP40^2)+(BP41^2)+(BP42^2))","v":77.382168488612407},{"$f":"BQ40+BQ41+BQ42","v":72},{"$f":"SQRT((BR40^2)+(BR41^2)+(BR42^2))","v":45.321076774498643},{"$f":"BS40+BS41+BS42","v":0},{"$f":"SQRT((BT40^2)+(BT41^2)+(BT42^2))","v":19.05255888325765},{"$f":"BU40+BU41+BU42","v":33},{"$f":"SQRT((BV40^2)+(BV41^2)+(BV42^2))","v":42.567593307585526},{"$f":"BW40+BW41+BW42","v":0},{"$f":"SQRT((BX40^2)+(BX41^2)+(BX42^2))","v":31.176914536239792}]
[null,"50.0 percent or more",{"$f":"C42","v":0},16,21,{"$f":"F42","v":32},{"$f":"G42","v":0},11,{"$f":"I42","v":31},45,{"$f":"K42","v":0},16,{"$f":"M42","v":0},11,{"$f":"O42","v":0},11,{"$f":"Q42","v":25},31,{"$f":"S42","v":0},11,{"$f":"U42","v":0},16,{"$f":"W42","v":13},19,{"$f":"Y42","v":0},11,{"$f":"AA42","v":27},33,{"$f":"AC42","v":13},20,{"$f":"AE42","v":18},23,{"$f":"AG42","v":0},11,{"$f":"AI42","v":0},11,{"$f":"AK42","v":15},23,{"$f":"AM42","v":0},21,{"$f":"AO42","v":0},11,{"$f":"AQ42","v":0},11,{"$f":"AS42","v":0},11,{"$f":"AU42","v":14},22,{"$f":"AW42","v":0},11,{"$f":"AY42","v":9},14,{"$f":"BA42","v":0},11,{"$f":"BC42","v":0},16,{"$f":"BE42","v":64},97,{"$f":"BG42","v":26},43,{"$f":"BI42","v":38},51,{"$f":"BK42","v":0},16,{"$f":"BM42","v":42},40,{"$f":"BO42","v":0},16,{"$f":"BQ42","v":24},{"$f":"BR42","v":30},{"$f":"BS42","v":0},11,{"$f":"BU42","v":0},16,{"$f":"BW42","v":0},18]
[null,"Not Computed",0,16,0,16,{"$f":"G43","v":0},11,{"$f":"I43","v":0},11,{"$f":"K43","v":0},16,{"$f":"M43","v":0},11,{"$f":"O43","v":0},11,{"$f":"Q43","v":0},24,{"$f":"S43","v":5},8,{"$f":"U43","v":0},16,{"$f":"W43","v":0},18,{"$f":"Y43","v":14},22,{"$f":"AA43","v":0},11,{"$f":"AC43","v":53},70,{"$f":"AE43","v":11},12,{"$f":"AG43","v":12},19,{"$f":"AI43","v":0},11,{"$f":"AK43","v":0},16,{"$f":"AM43","v":10},14,{"$f":"AO43","v":0},11,{"$f":"AQ43","v":3},5,{"$f":"AS43","v":0},11,{"$f":"AU43","v":7},12,{"$f":"AW43","v":0},11,{"$f":"AY43","v":8},13,{"$f":"BA43","v":0},11,{"$f":"BC43","v":0},16,{"$f":"BE43","v":0},16,{"$f":"BG43","v":0},21,{"$f":"BI43","v":0},18,{"$f":"BK43","v":0},16,{"$f":"BM43","v":10},15,{"$f":"BO43","v":0},16,{"$f":"BQ43","v":22},26,{"$f":"BS43","v":8},13,{"$f":"BU43","v":0},16,{"$f":"BW43","v":0},18]
[null,"$50,000 to $74,999:",{"$f":"C44","v":14},22,0,16,29,26,8,12,34,52,10,17,19,21,1041,192,19,18,66,53,410,166,65,61,40,46,190,91,360,111,21,18,23,15,31,35,267,99,19,21,5,7,4,7,470,135,46,58,23,34,53,55,70,54,210,142,1239,230,209,110,56,50,464,172,{"$f":"BO44","v":34},40,242,109,4,7,82,82,26,28]
[null,"Less than 30.0 percent",{"$f":"C45+C46+C47","v":0},{"$f":"SQRT((D45^2)+(D46^2)+(D47^2))","v":27.712812921102035},{"$f":"E45+E46+E47","v":0},{"$f":"SQRT((F45^2)+(F46^2)+(F47^2))","v":27.712812921102035},{"$f":"G45+G46+G47","v":12},{"$f":"SQRT((H45^2)+(H46^2)+(H47^2))","v":23.790754506740637},{"$f":"I45+I46+I47","v":8},{"$f":"SQRT((J45^2)+(J46^2)+(J47^2))","v":19.646882704388499},{"$f":"K45+K46+K47","v":34},{"$f":"SQRT((L45^2)+(L46^2)+(L47^2))","v":56.709787515031302},{"$f":"M45+M46+M47","v":0},{"$f":"SQRT((N45^2)+(N46^2)+(N47^2))","v":19.05255888325765},{"$f":"O45+O46+O47","v":19},{"$f":"SQRT((P45^2)+(P46^2)+(P47^2))","v":24.617067250182341},{"$f":"Q45+Q46+Q47","v":856},{"$f":"SQRT((R45^2)+(R46^2)+(R47^2))","v":202.55863348670181},{"$f":"S45+S46+S47","v":0},{"$f":"SQRT((T45^2)+(T46^2)+(T47^2))","v":19.05255888325765},{"$f":"U45+U46+U47","v":25},{"$f":"SQRT((V45^2)+(V46^2)+(V47^2))","v":33.734255586865999},{"$f":"W45+W46+W47","v":250},{"$f":"SQRT((X45^2)+(X46^2)+(X47^2))","v":114.39405578962571},{"$f":"Y45+Y46+Y47","v":56},{"$f":"SQRT((Z45^2)+(Z46^2)+(Z47^2))","v":60.473134530963414},{"$f":"AA45+AA46+AA47","v":0},{"$f":"SQRT((AB45^2)+(AB46^2)+(AB47^2))","v":19.05255888325765},{"$f":"AC45+AC46+AC47","v":182},{"$f":"SQRT((AD45^2)+(AD46^2)+(AD47^2))","v":109.1833320612629},{"$f":"AE45+AE46+AE47","v":304},{"$f":"SQRT((AF45^2)+(AF46^2)+(AF47^2))","v":112.87603820120549},{"$f":"AG45+AG46+AG47","v":7},{"$f":"SQRT((AH45^2)+(AH46^2)+(AH47^2))","v":18.493242008906929},{"$f":"AI45+AI46+AI47","v":8},{"$f":"SQRT((AJ45^2)+(AJ46^2)+(AJ47^2))","v":13.490737563232042},{"$f":"AK45+AK46+AK47","v":31},{"$f":"SQRT((AL45^2)+(AL46^2)+(AL47^2))","v":38.832975677895199},{"$f":"AM45+AM46+AM47","v":150},{"$f":"SQRT((AN45^2)+(AN46^2)+(AN47^2))","v":88.622796164418105},{"$f":"AO45+AO46+AO47","v":9},{"$f":"SQRT((AP45^2)+(AP46^2)+(AP47^2))","v":21.61018278497431},{"$f":"AQ45+AQ46+AQ47","v":0},{"$f":"SQRT((AR45^2)+(AR46^2)+(AR47^2))","v":19.05255888325765},{"$f":"AS45+AS46+AS47","v":4},{"$f":"SQRT((AT45^2)+(AT46^2)+(AT47^2))","v":12.727922061357855},{"$f":"AU45+AU46+AU47","v":366},{"$f":"SQRT((AV45^2)+(AV46^2)+(AV47^2))","v":141.61214637170076},{"$f":"AW45+AW46+AW47","v":46},{"$f":"SQRT((AX45^2)+(AX46^2)+(AX47^2))","v":58.762232769015846},{"$f":"AY45+AY46+AY47","v":0},{"$f":"SQRT((AZ45^2)+(AZ46^2)+(AZ47^2))","v":19.05255888325765},{"$f":"BA45+BA46+BA47","v":41},{"$f":"SQRT((BB45^2)+(BB46^2)+(BB47^2))","v":53.319789947073126},{"$f":"BC45+BC46+BC47","v":60},{"$f":"SQRT((BD45^2)+(BD46^2)+(BD47^2))","v":51.923019942988681},{"$f":"BE45+BE46+BE47","v":148},{"$f":"SQRT((BF45^2)+(BF46^2)+(BF47^2))","v":109.62207806824317},{"$f":"BG45+BG46+BG47","v":822},{"$f":"SQRT((BH45^2)+(BH46^2)+(BH47^2))","v":208.24504796032966},{"$f":"BI45+BI46+BI47","v":115},{"$f":"SQRT((BJ45^2)+(BJ46^2)+(BJ47^2))","v":75.696763471102244},{"$f":"BK45+BK46+BK47","v":16},{"$f":"SQRT((BL45^2)+(BL46^2)+(BL47^2))","v":33.719430600174732},{"$f":"BM45+BM46+BM47","v":383},{"$f":"SQRT((BN45^2)+(BN46^2)+(BN47^2))","v":170.07351351694948},{"$f":"BO45+BO46+BO47","v":14},{"$f":"SQRT((BP45^2)+(BP46^2)+(BP47^2))","v":32.264531609803356},{"$f":"BQ45+BQ46+BQ47","v":181},{"$f":"SQRT((BR45^2)+(BR46^2)+(BR47^2))","v":104.33599570617994},{"$f":"BS45+BS46+BS47","v":2},{"$f":"SQRT((BT45^2)+(BT46^2)+(BT47^2))","v":16.340134638368191},{"$f":"BU45+BU46+BU47","v":0},{"$f":"SQRT((BV45^2)+(BV46^2)+(BV47^2))","v":27.712812921102035},{"$f":"BW45+BW46+BW47","v":15},{"$f":"SQRT((BX45^2)+(BX46^2)+(BX47^2))","v":34.985711369071801}]
[null,"More than 30.0 percent",{"$f":"C48+C49+C50+C51","v":14},{"$f":"SQRT((D48^2)+(D49^2)+(D50^2)+(D51^2))","v":35.383612025908263},{"$f":"E48+E49+E50+E51","v":0},{"$f":"SQRT((F48^2)+(F49^2)+(F50^2)+(F51^2))","v":32},{"$f":"G48+G49+G50+G51","v":17},{"$f":"SQRT((H48^2)+(H49^2)+(H50^2)+(H51^2))","v":25.219040425836983},{"$f":"I48+I49+I50+I51","v":0},{"$f":"SQRT((J48^2)+(J49^2)+(J50^2)+(J51^2))","v":22},{"$f":"K48+K49+K50+K51","v":0},{"$f":"SQRT((L48^2)+(L49^2)+(L50^2)+(L51^2))","v":32},{"$f":"M48+M49+M50+M51","v":10},{"$f":"SQRT((N48^2)+(N49^2)+(N50^2)+(N51^2))","v":25.534290669607408},{"$f":"O48+O49+O50+O51","v":0},{"$f":"SQRT((P48^2)+(P49^2)+(P50^2)+(P51^2))","v":22},{"$f":"Q48+Q49+Q50+Q51","v":176},{"$f":"SQRT((R48^2)+(R49^2)+(R50^2)+(R51^2))","v":112.41885962773328},{"$f":"S48+S49+S50+S51","v":5},{"$f":"SQRT((T48^2)+(T49^2)+(T50^2)+(T51^2))","v":20.297783130184438},{"$f":"U48+U49+U50+U51","v":41},{"$f":"SQRT((V48^2)+(V49^2)+(V50^2)+(V51^2))","v":52},{"$f":"W48+W49+W50+W51","v":134},{"$f":"SQRT((X48^2)+(X49^2)+(X50^2)+(X51^2))","v":97.882582720318538},{"$f":"Y48+Y49+Y50+Y51","v":0},{"$f":"SQRT((Z48^2)+(Z49^2)+(Z50^2)+(Z51^2))","v":22},{"$f":"AA48+AA49+AA50+AA51","v":29},{"$f":"SQRT((AB48^2)+(AB49^2)+(AB50^2)+(AB51^2))","v":47.947888378947411},{"$f":"AC48+AC49+AC50+AC51","v":8},{"$f":"SQRT((AD48^2)+(AD49^2)+(AD50^2)+(AD51^2))","v":31.048349392520048},{"$f":"AE48+AE49+AE50+AE51","v":56},{"$f":"SQRT((AF48^2)+(AF49^2)+(AF50^2)+(AF51^2))","v":67.052218456960844},{"$f":"AG48+AG49+AG50+AG51","v":6},{"$f":"SQRT((AH48^2)+(AH49^2)+(AH50^2)+(AH51^2))","v":21.071307505705477},{"$f":"AI48+AI49+AI50+AI51","v":7},{"$f":"SQRT((AJ48^2)+(AJ49^2)+(AJ50^2)+(AJ51^2))","v":17.088007490635061},{"$f":"AK48+AK49+AK50+AK51","v":0},{"$f":"SQRT((AL48^2)+(AL49^2)+(AL50^2)+(AL51^2))","v":32},{"$f":"AM48+AM49+AM50+AM51","v":85},{"$f":"SQRT((AN48^2)+(AN49^2)+(AN50^2)+(AN51^2))","v":55.87486017879597},{"$f":"AO48+AO49+AO50+AO51","v":10},{"$f":"SQRT((AP48^2)+(AP49^2)+(AP50^2)+(AP51^2))","v":24.248711305964282},{"$f":"AQ48+AQ49+AQ50+AQ51","v":5},{"$f":"SQRT((AR48^2)+(AR49^2)+(AR50^2)+(AR51^2))","v":20.297783130184438},{"$f":"AS48+AS49+AS50+AS51","v":0},{"$f":"SQRT((AT48^2)+(AT49^2)+(AT50^2)+(AT51^2))","v":22},{"$f":"AU48+AU49+AU50+AU51","v":104},{"$f":"SQRT((AV48^2)+(AV49^2)+(AV50^2)+(AV51^2))","v":80.106179536912137},{"$f":"AW48+AW49+AW50+AW51","v":0},{"$f":"SQRT((AX48^2)+(AX49^2)+(AX50^2)+(AX51^2))","v":22},{"$f":"AY48+AY49+AY50+AY51","v":23},{"$f":"SQRT((AZ48^2)+(AZ49^2)+(AZ50^2)+(AZ51^2))","v":38.974350539810153},{"$f":"BA48+BA49+BA50+BA51","v":12},{"$f":"SQRT((BB48^2)+(BB49^2)+(BB50^2)+(BB51^2))","v":26.210684844162312},{"$f":"BC48+BC49+BC50+BC51","v":10},{"$f":"SQRT((BD48^2)+(BD49^2)+(BD50^2)+(BD51^2))","v":31.511902513177461},{"$f":"BE48+BE49+BE50+BE51","v":0},{"$f":"SQRT((BF48^2)+(BF49^2)+(BF50^2)+(BF51^2))","v":32},{"$f":"BG48+BG49+BG50+BG51","v":372},{"$f":"SQRT((BH48^2)+(BH49^2)+(BH50^2)+(BH51^2))","v":153.74004032782091},{"$f":"BI48+BI49+BI50+BI51","v":94},{"$f":"SQRT((BJ48^2)+(BJ49^2)+(BJ50^2)+(BJ51^2))","v":84.717176534631989},{"$f":"BK48+BK49+BK50+BK51","v":40},{"$f":"SQRT((BL48^2)+(BL49^2)+(BL50^2)+(BL51^2))","v":50.009999000199947},{"$f":"BM48+BM49+BM50+BM51","v":72},{"$f":"SQRT((BN48^2)+(BN49^2)+(BN50^2)+(BN51^2))","v":66.887966032762577},{"$f":"BO48+BO49+BO50+BO51","v":20},{"$f":"SQRT((BP48^2)+(BP49^2)+(BP50^2)+(BP51^2))","v":43.092922852830483},{"$f":"BQ48+BQ49+BQ50+BQ51","v":61},{"$f":"SQRT((BR48^2)+(BR49^2)+(BR50^2)+(BR51^2))","v":48.093658625644196},{"$f":"BS48+BS49+BS50+BS51","v":2},{"$f":"SQRT((BT48^2)+(BT49^2)+(BT50^2)+(BT51^2))","v":19.467922333931785},{"$f":"BU48+BU49+BU50+BU51","v":34},{"$f":"SQRT((BV48^2)+(BV49^2)+(BV50^2)+(BV51^2))","v":40.841155713324277},{"$f":"BW48+BW49+BW50+BW51","v":11},{"$f":"SQRT((BX48^2)+(BX49^2)+(BX50^2)+(BX51^2))","v":37.040518354904272}]
[null,"Less Than 35% of HH Income",{"$f":"C48+C47+C46+C45","v":0},{"$f":"SQRT((D48^2)+(D47^2)+(D46^2)+(D45^2))","v":32},{"$f":"E48+E47+E46+E45","v":0},{"$f":"SQRT((F48^2)+(F47^2)+(F46^2)+(F45^2))","v":32},{"$f":"G48+G47+G46+G45","v":19},{"$f":"SQRT((H48^2)+(H47^2)+(H46^2)+(H45^2))","v":27.110883423451916},{"$f":"I48+I47+I46+I45","v":8},{"$f":"SQRT((J48^2)+(J47^2)+(J46^2)+(J45^2))","v":22.516660498395403},{"$f":"K48+K47+K46+K45","v":34},{"$f":"SQRT((L48^2)+(L47^2)+(L46^2)+(L45^2))","v":58.923679450624938},{"$f":"M48+M47+M46+M45","v":10},{"$f":"SQRT((N48^2)+(N47^2)+(N46^2)+(N45^2))","v":25.534290669607408},{"$f":"O48+O47+O46+O45","v":19},{"$f":"SQRT((P48^2)+(P47^2)+(P46^2)+(P45^2))","v":26.962937525425527},{"$f":"Q48+Q47+Q46+Q45","v":1006},{"$f":"SQRT((R48^2)+(R47^2)+(R46^2)+(R45^2))","v":228.15564862610788},{"$f":"S48+S47+S46+S45","v":0},{"$f":"SQRT((T48^2)+(T47^2)+(T46^2)+(T45^2))","v":22},{"$f":"U48+U47+U46+U45","v":66},{"$f":"SQRT((V48^2)+(V47^2)+(V46^2)+(V45^2))","v":55.443665102516448},{"$f":"W48+W47+W46+W45","v":275},{"$f":"SQRT((X48^2)+(X47^2)+(X46^2)+(X45^2))","v":118.52004049948684},{"$f":"Y48+Y47+Y46+Y45","v":56},{"$f":"SQRT((Z48^2)+(Z47^2)+(Z46^2)+(Z45^2))","v":61.465437442517235},{"$f":"AA48+AA47+AA46+AA45","v":0},{"$f":"SQRT((AB48^2)+(AB47^2)+(AB46^2)+(AB45^2))","v":22},{"$f":"AC48+AC47+AC46+AC45","v":190},{"$f":"SQRT((AD48^2)+(AD47^2)+(AD46^2)+(AD45^2))","v":110.07724560507498},{"$f":"AE48+AE47+AE46+AE45","v":321},{"$f":"SQRT((AF48^2)+(AF47^2)+(AF46^2)+(AF45^2))","v":115},{"$f":"AG48+AG47+AG46+AG45","v":7},{"$f":"SQRT((AH48^2)+(AH47^2)+(AH46^2)+(AH45^2))","v":21.517434791350013},{"$f":"AI48+AI47+AI46+AI45","v":12},{"$f":"SQRT((AJ48^2)+(AJ47^2)+(AJ46^2)+(AJ45^2))","v":14.387494569938159},{"$f":"AK48+AK47+AK46+AK45","v":31},{"$f":"SQRT((AL48^2)+(AL47^2)+(AL46^2)+(AL45^2))","v":42},{"$f":"AM48+AM47+AM46+AM45","v":173},{"$f":"SQRT((AN48^2)+(AN47^2)+(AN46^2)+(AN45^2))","v":92.357999112150537},{"$f":"AO48+AO47+AO46+AO45","v":9},{"$f":"SQRT((AP48^2)+(AP47^2)+(AP46^2)+(AP45^2))","v":24.248711305964282},{"$f":"AQ48+AQ47+AQ46+AQ45","v":5},{"$f":"SQRT((AR48^2)+(AR47^2)+(AR46^2)+(AR45^2))","v":20.297783130184438},{"$f":"AS48+AS47+AS46+AS45","v":4},{"$f":"SQRT((AT48^2)+(AT47^2)+(AT46^2)+(AT45^2))","v":16.822603841260722},{"$f":"AU48+AU47+AU46+AU45","v":440},{"$f":"SQRT((AV48^2)+(AV47^2)+(AV46^2)+(AV45^2))","v":157.96835126062436},{"$f":"AW48+AW47+AW46+AW45","v":46},{"$f":"SQRT((AX48^2)+(AX47^2)+(AX46^2)+(AX45^2))","v":59.782940710540494},{"$f":"AY48+AY47+AY46+AY45","v":0},{"$f":"SQRT((AZ48^2)+(AZ47^2)+(AZ46^2)+(AZ45^2))","v":22},{"$f":"BA48+BA47+BA46+BA45","v":41},{"$f":"SQRT((BB48^2)+(BB47^2)+(BB46^2)+(BB45^2))","v":54.442630355264797},{"$f":"BC48+BC47+BC46+BC45","v":70},{"$f":"SQRT((BD48^2)+(BD47^2)+(BD46^2)+(BD45^2))","v":54.046276467486642},{"$f":"BE48+BE47+BE46+BE45","v":148},{"$f":"SQRT((BF48^2)+(BF47^2)+(BF46^2)+(BF45^2))","v":110.78357278947091},{"$f":"BG48+BG47+BG46+BG45","v":1067},{"$f":"SQRT((BH48^2)+(BH47^2)+(BH46^2)+(BH45^2))","v":246.02235670767809},{"$f":"BI48+BI47+BI46+BI45","v":169},{"$f":"SQRT((BJ48^2)+(BJ47^2)+(BJ46^2)+(BJ45^2))","v":99.774746303861875},{"$f":"BK48+BK47+BK46+BK45","v":37},{"$f":"SQRT((BL48^2)+(BL47^2)+(BL46^2)+(BL45^2))","v":47.180504448341793},{"$f":"BM48+BM47+BM46+BM45","v":438},{"$f":"SQRT((BN48^2)+(BN47^2)+(BN46^2)+(BN45^2))","v":178.44046626256053},{"$f":"BO48+BO47+BO46+BO45","v":34},{"$f":"SQRT((BP48^2)+(BP47^2)+(BP46^2)+(BP45^2))","v":46.151923036857305},{"$f":"BQ48+BQ47+BQ46+BQ45","v":206},{"$f":"SQRT((BR48^2)+(BR47^2)+(BR46^2)+(BR45^2))","v":107.52674086012279},{"$f":"BS48+BS47+BS46+BS45","v":4},{"$f":"SQRT((BT48^2)+(BT47^2)+(BT46^2)+(BT45^2))","v":16.822603841260722},{"$f":"BU48+BU47+BU46+BU45","v":34},{"$f":"SQRT((BV48^2)+(BV47^2)+(BV46^2)+(BV45^2))","v":40.841155713324277},{"$f":"BW48+BW47+BW46+BW45","v":15},{"$f":"SQRT((BX48^2)+(BX47^2)+(BX46^2)+(BX45^2))","v":39.344631145812002}]
[null,"35.0 percent or more",{"$f":"C49+C50+C51","v":14},{"$f":"SQRT((D49^2)+(D50^2)+(D51^2))","v":31.559467676118999},{"$f":"E49+E50+E51","v":0},{"$f":"SQRT((F49^2)+(F50^2)+(F51^2))","v":27.712812921102035},{"$f":"G49+G50+G51","v":10},{"$f":"SQRT((H49^2)+(H50^2)+(H51^2))","v":21.61018278497431},{"$f":"I49+I50+I51","v":0},{"$f":"SQRT((J49^2)+(J50^2)+(J51^2))","v":19.05255888325765},{"$f":"K49+K50+K51","v":0},{"$f":"SQRT((L49^2)+(L50^2)+(L51^2))","v":27.712812921102035},{"$f":"M49+M50+M51","v":0},{"$f":"SQRT((N49^2)+(N50^2)+(N51^2))","v":19.05255888325765},{"$f":"O49+O50+O51","v":0},{"$f":"SQRT((P49^2)+(P50^2)+(P51^2))","v":19.05255888325765},{"$f":"Q49+Q50+Q51","v":26},{"$f":"SQRT((R49^2)+(R50^2)+(R51^2))","v":40.162171256046406},{"$f":"S49+S50+S51","v":5},{"$f":"SQRT((T49^2)+(T50^2)+(T51^2))","v":17.058722109231979},{"$f":"U49+U50+U51","v":0},{"$f":"SQRT((V49^2)+(V50^2)+(V51^2))","v":27.712812921102035},{"$f":"W49+W50+W51","v":109},{"$f":"SQRT((X49^2)+(X50^2)+(X51^2))","v":92.843955107481278},{"$f":"Y49+Y50+Y51","v":0},{"$f":"SQRT((Z49^2)+(Z50^2)+(Z51^2))","v":19.05255888325765},{"$f":"AA49+AA50+AA51","v":29},{"$f":"SQRT((AB49^2)+(AB50^2)+(AB51^2))","v":46.669047558312137},{"$f":"AC49+AC50+AC51","v":0},{"$f":"SQRT((AD49^2)+(AD50^2)+(AD51^2))","v":27.712812921102035},{"$f":"AE49+AE50+AE51","v":39},{"$f":"SQRT((AF49^2)+(AF50^2)+(AF51^2))","v":63.340350488452465},{"$f":"AG49+AG50+AG51","v":6},{"$f":"SQRT((AH49^2)+(AH50^2)+(AH51^2))","v":17.972200755611428},{"$f":"AI49+AI50+AI51","v":3},{"$f":"SQRT((AJ49^2)+(AJ50^2)+(AJ51^2))","v":16.340134638368191},{"$f":"AK49+AK50+AK51","v":0},{"$f":"SQRT((AL49^2)+(AL50^2)+(AL51^2))","v":27.712812921102035},{"$f":"AM49+AM50+AM51","v":62},{"$f":"SQRT((AN49^2)+(AN50^2)+(AN51^2))","v":49.457052075512955},{"$f":"AO49+AO50+AO51","v":10},{"$f":"SQRT((AP49^2)+(AP50^2)+(AP51^2))","v":21.61018278497431},{"$f":"AQ49+AQ50+AQ51","v":0},{"$f":"SQRT((AR49^2)+(AR50^2)+(AR51^2))","v":19.05255888325765},{"$f":"AS49+AS50+AS51","v":0},{"$f":"SQRT((AT49^2)+(AT50^2)+(AT51^2))","v":19.05255888325765},{"$f":"AU49+AU50+AU51","v":30},{"$f":"SQRT((AV49^2)+(AV50^2)+(AV51^2))","v":38.948684188300895},{"$f":"AW49+AW50+AW51","v":0},{"$f":"SQRT((AX49^2)+(AX50^2)+(AX51^2))","v":19.05255888325765},{"$f":"AY49+AY50+AY51","v":23},{"$f":"SQRT((AZ49^2)+(AZ50^2)+(AZ51^2))","v":37.389838191679836},{"$f":"BA49+BA50+BA51","v":12},{"$f":"SQRT((BB49^2)+(BB50^2)+(BB51^2))","v":23.790754506740637},{"$f":"BC49+BC50+BC51","v":0},{"$f":"SQRT((BD49^2)+(BD50^2)+(BD51^2))","v":27.712812921102035},{"$f":"BE49+BE50+BE51","v":0},{"$f":"SQRT((BF49^2)+(BF50^2)+(BF51^2))","v":27.712812921102035},{"$f":"BG49+BG50+BG51","v":127},{"$f":"SQRT((BH49^2)+(BH50^2)+(BH51^2))","v":80.46738469715541},{"$f":"BI49+BI50+BI51","v":40},{"$f":"SQRT((BJ49^2)+(BJ50^2)+(BJ51^2))","v":54.332310828824497},{"$f":"BK49+BK50+BK51","v":19},{"$f":"SQRT((BL49^2)+(BL50^2)+(BL51^2))","v":37.576588456111871},{"$f":"BM49+BM50+BM51","v":17},{"$f":"SQRT((BN49^2)+(BN50^2)+(BN51^2))","v":39.471508711981102},{"$f":"BO49+BO50+BO51","v":0},{"$f":"SQRT((BP49^2)+(BP50^2)+(BP51^2))","v":27.712812921102035},{"$f":"BQ49+BQ50+BQ51","v":36},{"$f":"SQRT((BR49^2)+(BR50^2)+(BR51^2))","v":40.459856648287818},{"$f":"BS49+BS50+BS51","v":0},{"$f":"SQRT((BT49^2)+(BT50^2)+(BT51^2))","v":19.05255888325765},{"$f":"BU49+BU50+BU51","v":0},{"$f":"SQRT((BV49^2)+(BV50^2)+(BV51^2))","v":27.712812921102035},{"$f":"BW49+BW50+BW51","v":11},{"$f":"SQRT((BX49^2)+(BX50^2)+(BX51^2))","v":32.372828112477293}]
[null,"50.0 percent or more",{"$f":"C51","v":14},22,0,{"$f":"F51","v":16},{"$f":"G51","v":0},11,{"$f":"I51","v":0},11,{"$f":"K51","v":0},16,{"$f":"M51","v":0},11,{"$f":"O51","v":0},11,{"$f":"Q51","v":0},24,{"$f":"S51","v":0},11,{"$f":"U51","v":0},16,{"$f":"W51","v":8},14,{"$f":"Y51","v":0},11,{"$f":"AA51","v":29},44,{"$f":"AC51","v":0},16,{"$f":"AE51","v":0},18,{"$f":"AG51","v":0},11,{"$f":"AI51","v":0},11,{"$f":"AK51","v":0},16,{"$f":"AM51","v":0},21,{"$f":"AO51","v":0},11,{"$f":"AQ51","v":0},11,{"$f":"AS51","v":0},11,{"$f":"AU51","v":0},16,{"$f":"AW51","v":0},11,{"$f":"AY51","v":0},11,{"$f":"BA51","v":0},11,{"$f":"BC51","v":0},16,{"$f":"BE51","v":0},16,{"$f":"BG51","v":12},15,{"$f":"BI51","v":40},48,{"$f":"BK51","v":0},16,{"$f":"BM51","v":0},21,{"$f":"BO51","v":0},16,{"$f":"BQ51","v":10},{"$f":"BR51","v":15},{"$f":"BS51","v":0},11,{"$f":"BU51","v":0},16,{"$f":"BW51","v":11},20]
[null,"Not Computed",0,16,0,16,{"$f":"G52","v":0},11,{"$f":"I52","v":0},11,{"$f":"K52","v":0},16,{"$f":"M52","v":0},11,{"$f":"O52","v":0},11,{"$f":"Q52","v":9},14,{"$f":"S52","v":14},16,{"$f":"U52","v":0},16,{"$f":"W52","v":26},30,{"$f":"Y52","v":9},15,{"$f":"AA52","v":11},16,{"$f":"AC52","v":0},16,{"$f":"AE52","v":0},18,{"$f":"AG52","v":8},11,{"$f":"AI52","v":8},9,{"$f":"AK52","v":0},16,{"$f":"AM52","v":32},30,{"$f":"AO52","v":0},11,{"$f":"AQ52","v":0},11,{"$f":"AS52","v":0},11,{"$f":"AU52","v":0},16,{"$f":"AW52","v":0},11,{"$f":"AY52","v":0},11,{"$f":"BA52","v":0},11,{"$f":"BC52","v":0},16,{"$f":"BE52","v":62},89,{"$f":"BG52","v":45},50,{"$f":"BI52","v":0},18,{"$f":"BK52","v":0},16,{"$f":"BM52","v":9},15,{"$f":"BO52","v":0},16,{"$f":"BQ52","v":0},16,{"$f":"BS52","v":0},11,{"$f":"BU52","v":48},77,{"$f":"BW52","v":0},18]
[null,"$75,000 to $99,999:",30,34,54,61,{"$f":"G53","v":9},14,{"$f":"I53","v":0},11,{"$f":"K53","v":0},16,{"$f":"M53","v":30},34,{"$f":"O53","v":56},53,{"$f":"Q53","v":546},174,{"$f":"S53","v":0},11,{"$f":"U53","v":65},53,{"$f":"W53","v":194},73,{"$f":"Y53","v":24},26,{"$f":"AA53","v":29},25,{"$f":"AC53","v":34},51,{"$f":"AE53","v":240},95,{"$f":"AG53","v":6},8,{"$f":"AI53","v":17},19,{"$f":"AK53","v":0},16,{"$f":"AM53","v":267},99,{"$f":"AO53","v":0},11,{"$f":"AQ53","v":9},8,{"$f":"AS53","v":8},7,{"$f":"AU53","v":206},91,{"$f":"AW53","v":66},72,{"$f":"AY53","v":43},34,{"$f":"BA53","v":17},21,{"$f":"BC53","v":17},25,{"$f":"BE53","v":40},47,{"$f":"BG53","v":434},134,{"$f":"BI53","v":27},32,{"$f":"BK53","v":76},104,{"$f":"BM53","v":284},123,{"$f":"BO53","v":0},16,{"$f":"BQ53","v":209},98,{"$f":"BS53","v":3},5,{"$f":"BU53","v":39},33,{"$f":"BW53","v":26},31]
[null,"Less than 30.0 percent",{"$f":"C54+C55+C56","v":30},{"$f":"SQRT((D54^2)+(D55^2)+(D56^2))","v":38.691084244306204},{"$f":"E54+E55+E56","v":38},{"$f":"SQRT((F54^2)+(F55^2)+(F56^2))","v":62.257529665093521},{"$f":"G54+G55+G56","v":9},{"$f":"SQRT((H54^2)+(H55^2)+(H56^2))","v":20.928449536456348},{"$f":"I54+I55+I56","v":0},{"$f":"SQRT((J54^2)+(J55^2)+(J56^2))","v":19.05255888325765},{"$f":"K54+K55+K56","v":0},{"$f":"SQRT((L54^2)+(L55^2)+(L56^2))","v":27.712812921102035},{"$f":"M54+M55+M56","v":12},{"$f":"SQRT((N54^2)+(N55^2)+(N56^2))","v":26.134268690743959},{"$f":"O54+O55+O56","v":47},{"$f":"SQRT((P54^2)+(P55^2)+(P56^2))","v":53.768020235080257},{"$f":"Q54+Q55+Q56","v":455},{"$f":"SQRT((R54^2)+(R55^2)+(R56^2))","v":162.47153596861205},{"$f":"S54+S55+S56","v":0},{"$f":"SQRT((T54^2)+(T55^2)+(T56^2))","v":19.05255888325765},{"$f":"U54+U55+U56","v":45},{"$f":"SQRT((V54^2)+(V55^2)+(V56^2))","v":44.687805943008662},{"$f":"W54+W55+W56","v":160},{"$f":"SQRT((X54^2)+(X55^2)+(X56^2))","v":77.910204723129823},{"$f":"Y54+Y55+Y56","v":14},{"$f":"SQRT((Z54^2)+(Z55^2)+(Z56^2))","v":26.944387170614959},{"$f":"AA54+AA55+AA56","v":18},{"$f":"SQRT((AB54^2)+(AB55^2)+(AB56^2))","v":22.315913604421397},{"$f":"AC54+AC55+AC56","v":34},{"$f":"SQRT((AD54^2)+(AD55^2)+(AD56^2))","v":55.794264938253285},{"$f":"AE54+AE55+AE56","v":230},{"$f":"SQRT((AF54^2)+(AF55^2)+(AF56^2))","v":96.902012363005142},{"$f":"AG54+AG55+AG56","v":6},{"$f":"SQRT((AH54^2)+(AH55^2)+(AH56^2))","v":17.4928556845359},{"$f":"AI54+AI55+AI56","v":17},{"$f":"SQRT((AJ54^2)+(AJ55^2)+(AJ56^2))","v":22.759613353482084},{"$f":"AK54+AK55+AK56","v":0},{"$f":"SQRT((AL54^2)+(AL55^2)+(AL56^2))","v":27.712812921102035},{"$f":"AM54+AM55+AM56","v":196},{"$f":"SQRT((AN54^2)+(AN55^2)+(AN56^2))","v":91.940197954975062},{"$f":"AO54+AO55+AO56","v":0},{"$f":"SQRT((AP54^2)+(AP55^2)+(AP56^2))","v":19.05255888325765},{"$f":"AQ54+AQ55+AQ56","v":7},{"$f":"SQRT((AR54^2)+(AR55^2)+(AR56^2))","v":13.892443989449804},{"$f":"AS54+AS55+AS56","v":6},{"$f":"SQRT((AT54^2)+(AT55^2)+(AT56^2))","v":17.058722109231979},{"$f":"AU54+AU55+AU56","v":206},{"$f":"SQRT((AV54^2)+(AV55^2)+(AV56^2))","v":89.671623159168917},{"$f":"AW54+AW55+AW56","v":66},{"$f":"SQRT((AX54^2)+(AX55^2)+(AX56^2))","v":73.661387442811588},{"$f":"AY54+AY55+AY56","v":31},{"$f":"SQRT((AZ54^2)+(AZ55^2)+(AZ56^2))","v":30.347981810987037},{"$f":"BA54+BA55+BA56","v":17},{"$f":"SQRT((BB54^2)+(BB55^2)+(BB56^2))","v":26.134268690743959},{"$f":"BC54+BC55+BC56","v":17},{"$f":"SQRT((BD54^2)+(BD55^2)+(BD56^2))","v":33.719430600174732},{"$f":"BE54+BE55+BE56","v":40},{"$f":"SQRT((BF54^2)+(BF55^2)+(BF56^2))","v":52.163205422979907},{"$f":"BG54+BG55+BG56","v":385},{"$f":"SQRT((BH54^2)+(BH55^2)+(BH56^2))","v":117.6010204037363},{"$f":"BI54+BI55+BI56","v":27},{"$f":"SQRT((BJ54^2)+(BJ55^2)+(BJ56^2))","v":40.890096600521744},{"$f":"BK54+BK55+BK56","v":15},{"$f":"SQRT((BL54^2)+(BL55^2)+(BL56^2))","v":32.984845004941285},{"$f":"BM54+BM55+BM56","v":190},{"$f":"SQRT((BN54^2)+(BN55^2)+(BN56^2))","v":94.180677423768827},{"$f":"BO54+BO55+BO56","v":0},{"$f":"SQRT((BP54^2)+(BP55^2)+(BP56^2))","v":27.712812921102035},{"$f":"BQ54+BQ55+BQ56","v":184},{"$f":"SQRT((BR54^2)+(BR55^2)+(BR56^2))","v":98.661035875364703},{"$f":"BS54+BS55+BS56","v":3},{"$f":"SQRT((BT54^2)+(BT55^2)+(BT56^2))","v":16.340134638368191},{"$f":"BU54+BU55+BU56","v":39},{"$f":"SQRT((BV54^2)+(BV55^2)+(BV56^2))","v":39.446165846632042},{"$f":"BW54+BW55+BW56","v":11},{"$f":"SQRT((BX54^2)+(BX55^2)+(BX56^2))","v":31.76476034853718}]
[null,"More than 30.0 percent",{"$f":"C57+C58+C59+C60","v":0},{"$f":"SQRT((D57^2)+(D58^2)+(D59^2)+(D60^2))","v":32},{"$f":"E57+E58+E59+E60","v":16},{"$f":"SQRT((F57^2)+(F58^2)+(F59^2)+(F60^2))","v":32.511536414017719},{"$f":"G57+G58+G59+G60","v":0},{"$f":"SQRT((H57^2)+(H58^2)+(H59^2)+(H60^2))","v":22},{"$f":"I57+I58+I59+I60","v":0},{"$f":"SQRT((J57^2)+(J58^2)+(J59^2)+(J60^2))","v":22},{"$f":"K57+K58+K59+K60","v":0},{"$f":"SQRT((L57^2)+(L58^2)+(L59^2)+(L60^2))","v":32},{"$f":"M57+M58+M59+M60","v":18},{"$f":"SQRT((N57^2)+(N58^2)+(N59^2)+(N60^2))","v":33.867388443752198},{"$f":"O57+O58+O59+O60","v":0},{"$f":"SQRT((P57^2)+(P58^2)+(P59^2)+(P60^2))","v":22},{"$f":"Q57+Q58+Q59+Q60","v":80},{"$f":"SQRT((R57^2)+(R58^2)+(R59^2)+(R60^2))","v":79.699435380685102},{"$f":"S57+S58+S59+S60","v":0},{"$f":"SQRT((T57^2)+(T58^2)+(T59^2)+(T60^2))","v":22},{"$f":"U57+U58+U59+U60","v":20},{"$f":"SQRT((V57^2)+(V58^2)+(V59^2)+(V60^2))","v":41.581245772583578},{"$f":"W57+W58+W59+W60","v":16},{"$f":"SQRT((X57^2)+(X58^2)+(X59^2)+(X60^2))","v":31.064449134018133},{"$f":"Y57+Y58+Y59+Y60","v":10},{"$f":"SQRT((Z57^2)+(Z58^2)+(Z59^2)+(Z60^2))","v":24.248711305964282},{"$f":"AA57+AA58+AA59+AA60","v":11},{"$f":"SQRT((AB57^2)+(AB58^2)+(AB59^2)+(AB60^2))","v":24.248711305964282},{"$f":"AC57+AC58+AC59+AC60","v":0},{"$f":"SQRT((AD57^2)+(AD58^2)+(AD59^2)+(AD60^2))","v":32},{"$f":"AE57+AE58+AE59+AE60","v":10},{"$f":"SQRT((AF57^2)+(AF58^2)+(AF59^2)+(AF60^2))","v":32.741411087489801},{"$f":"AG57+AG58+AG59+AG60","v":0},{"$f":"SQRT((AH57^2)+(AH58^2)+(AH59^2)+(AH60^2))","v":22},{"$f":"AI57+AI58+AI59+AI60","v":0},{"$f":"SQRT((AJ57^2)+(AJ58^2)+(AJ59^2)+(AJ60^2))","v":22},{"$f":"AK57+AK58+AK59+AK60","v":0},{"$f":"SQRT((AL57^2)+(AL58^2)+(AL59^2)+(AL60^2))","v":32},{"$f":"AM57+AM58+AM59+AM60","v":34},{"$f":"SQRT((AN57^2)+(AN58^2)+(AN59^2)+(AN60^2))","v":42.848570571257099},{"$f":"AO57+AO58+AO59+AO60","v":0},{"$f":"SQRT((AP57^2)+(AP58^2)+(AP59^2)+(AP60^2))","v":22},{"$f":"AQ57+AQ58+AQ59+AQ60","v":2},{"$f":"SQRT((AR57^2)+(AR58^2)+(AR59^2)+(AR60^2))","v":19.467922333931785},{"$f":"AS57+AS58+AS59+AS60","v":0},{"$f":"SQRT((AT57^2)+(AT58^2)+(AT59^2)+(AT60^2))","v":22},{"$f":"AU57+AU58+AU59+AU60","v":0},{"$f":"SQRT((AV57^2)+(AV58^2)+(AV59^2)+(AV60^2))","v":32},{"$f":"AW57+AW58+AW59+AW60","v":0},{"$f":"SQRT((AX57^2)+(AX58^2)+(AX59^2)+(AX60^2))","v":22},{"$f":"AY57+AY58+AY59+AY60","v":0},{"$f":"SQRT((AZ57^2)+(AZ58^2)+(AZ59^2)+(AZ60^2))","v":22},{"$f":"BA57+BA58+BA59+BA60","v":0},{"$f":"SQRT((BB57^2)+(BB58^2)+(BB59^2)+(BB60^2))","v":22},{"$f":"BC57+BC58+BC59+BC60","v":0},{"$f":"SQRT((BD57^2)+(BD58^2)+(BD59^2)+(BD60^2))","v":32},{"$f":"BE57+BE58+BE59+BE60","v":0},{"$f":"SQRT((BF57^2)+(BF58^2)+(BF59^2)+(BF60^2))","v":32},{"$f":"BG57+BG58+BG59+BG60","v":49},{"$f":"SQRT((BH57^2)+(BH58^2)+(BH59^2)+(BH60^2))","v":41.158231254513353},{"$f":"BI57+BI58+BI59+BI60","v":0},{"$f":"SQRT((BJ57^2)+(BJ58^2)+(BJ59^2)+(BJ60^2))","v":36},{"$f":"BK57+BK58+BK59+BK60","v":61},{"$f":"SQRT((BL57^2)+(BL58^2)+(BL59^2)+(BL60^2))","v":104.73299384625649},{"$f":"BM57+BM58+BM59+BM60","v":40},{"$f":"SQRT((BN57^2)+(BN58^2)+(BN59^2)+(BN60^2))","v":49.759421218498915},{"$f":"BO57+BO58+BO59+BO60","v":0},{"$f":"SQRT((BP57^2)+(BP58^2)+(BP59^2)+(BP60^2))","v":32},{"$f":"BQ57+BQ58+BQ59+BQ60","v":9},{"$f":"SQRT((BR57^2)+(BR58^2)+(BR59^2)+(BR60^2))","v":31.511902513177461},{"$f":"BS57+BS58+BS59+BS60","v":0},{"$f":"SQRT((BT57^2)+(BT58^2)+(BT59^2)+(BT60^2))","v":22},{"$f":"BU57+BU58+BU59+BU60","v":0},{"$f":"SQRT((BV57^2)+(BV58^2)+(BV59^2)+(BV60^2))","v":32},{"$f":"BW57+BW58+BW59+BW60","v":15},{"$f":"SQRT((BX57^2)+(BX58^2)+(BX59^2)+(BX60^2))","v":39.344631145812002}]
[null,"Less Than 35% of HH Income",{"$f":"C54+C55+C56+C57","v":30},{"$f":"SQRT((D54^2)+(D55^2)+(D56^2)+(D57^2))","v":41.868842830916641},{"$f":"E54+E55+E56+E57","v":38},{"$f":"SQRT((F54^2)+(F55^2)+(F56^2)+(F57^2))","v":64.280634719952786},{"$f":"G54+G55+G56+G57","v":9},{"$f":"SQRT((H54^2)+(H55^2)+(H56^2)+(H57^2))","v":23.643180835073778},{"$f":"I54+I55+I56+I57","v":0},{"$f":"SQRT((J54^2)+(J55^2)+(J56^2)+(J57^2))","v":22},{"$f":"K54+K55+K56+K57","v":0},{"$f":"SQRT((L54^2)+(L55^2)+(L56^2)+(L57^2))","v":32},{"$f":"M54+M55+M56+M57","v":30},{"$f":"SQRT((N54^2)+(N55^2)+(N56^2)+(N57^2))","v":38.301436004411116},{"$f":"O54+O55+O56+O57","v":47},{"$f":"SQRT((P54^2)+(P55^2)+(P56^2)+(P57^2))","v":54.881690936048976},{"$f":"Q54+Q55+Q56+Q57","v":535},{"$f":"SQRT((R54^2)+(R55^2)+(R56^2)+(R57^2))","v":176.12779451296151},{"$f":"S54+S55+S56+S57","v":0},{"$f":"SQRT((T54^2)+(T55^2)+(T56^2)+(T57^2))","v":22},{"$f":"U54+U55+U56+U57","v":45},{"$f":"SQRT((V54^2)+(V55^2)+(V56^2)+(V57^2))","v":47.465777145223271},{"$f":"W54+W55+W56+W57","v":167},{"$f":"SQRT((X54^2)+(X55^2)+(X56^2)+(X57^2))","v":78.682907927961082},{"$f":"Y54+Y55+Y56+Y57","v":14},{"$f":"SQRT((Z54^2)+(Z55^2)+(Z56^2)+(Z57^2))","v":29.103264421710495},{"$f":"AA54+AA55+AA56+AA57","v":18},{"$f":"SQRT((AB54^2)+(AB55^2)+(AB56^2)+(AB57^2))","v":24.879710609249457},{"$f":"AC54+AC55+AC56+AC57","v":34},{"$f":"SQRT((AD54^2)+(AD55^2)+(AD56^2)+(AD57^2))","v":58.043087443725803},{"$f":"AE54+AE55+AE56+AE57","v":240},{"$f":"SQRT((AF54^2)+(AF55^2)+(AF56^2)+(AF57^2))","v":97.416631023660429},{"$f":"AG54+AG55+AG56+AG57","v":6},{"$f":"SQRT((AH54^2)+(AH55^2)+(AH56^2)+(AH57^2))","v":20.663978319771825},{"$f":"AI54+AI55+AI56+AI57","v":17},{"$f":"SQRT((AJ54^2)+(AJ55^2)+(AJ56^2)+(AJ57^2))","v":25.278449319529077},{"$f":"AK54+AK55+AK56+AK57","v":0},{"$f":"SQRT((AL54^2)+(AL55^2)+(AL56^2)+(AL57^2))","v":32},{"$f":"AM54+AM55+AM56+AM57","v":220},{"$f":"SQRT((AN54^2)+(AN55^2)+(AN56^2)+(AN57^2))","v":95.822753039139926},{"$f":"AO54+AO55+AO56+AO57","v":0},{"$f":"SQRT((AP54^2)+(AP55^2)+(AP56^2)+(AP57^2))","v":22},{"$f":"AQ54+AQ55+AQ56+AQ57","v":7},{"$f":"SQRT((AR54^2)+(AR55^2)+(AR56^2)+(AR57^2))","v":17.720045146669349},{"$f":"AS54+AS55+AS56+AS57","v":6},{"$f":"SQRT((AT54^2)+(AT55^2)+(AT56^2)+(AT57^2))","v":20.297783130184438},{"$f":"AU54+AU55+AU56+AU57","v":206},{"$f":"SQRT((AV54^2)+(AV55^2)+(AV56^2)+(AV57^2))","v":91.087869664407023},{"$f":"AW54+AW55+AW56+AW57","v":66},{"$f":"SQRT((AX54^2)+(AX55^2)+(AX56^2)+(AX57^2))","v":74.47818472546173},{"$f":"AY54+AY55+AY56+AY57","v":31},{"$f":"SQRT((AZ54^2)+(AZ55^2)+(AZ56^2)+(AZ57^2))","v":32.280024783137947},{"$f":"BA54+BA55+BA56+BA57","v":17},{"$f":"SQRT((BB54^2)+(BB55^2)+(BB56^2)+(BB57^2))","v":28.354893757515651},{"$f":"BC54+BC55+BC56+BC57","v":17},{"$f":"SQRT((BD54^2)+(BD55^2)+(BD56^2)+(BD57^2))","v":37.322915213043046},{"$f":"BE54+BE55+BE56+BE57","v":40},{"$f":"SQRT((BF54^2)+(BF55^2)+(BF56^2)+(BF57^2))","v":54.561891462814962},{"$f":"BG54+BG55+BG56+BG57","v":404},{"$f":"SQRT((BH54^2)+(BH55^2)+(BH56^2)+(BH57^2))","v":119.64113005150027},{"$f":"BI54+BI55+BI56+BI57","v":27},{"$f":"SQRT((BJ54^2)+(BJ55^2)+(BJ56^2)+(BJ57^2))","v":44.676615807377352},{"$f":"BK54+BK55+BK56+BK57","v":15},{"$f":"SQRT((BL54^2)+(BL55^2)+(BL56^2)+(BL57^2))","v":36.660605559646719},{"$f":"BM54+BM55+BM56+BM57","v":221},{"$f":"SQRT((BN54^2)+(BN55^2)+(BN56^2)+(BN57^2))","v":101.18794394590691},{"$f":"BO54+BO55+BO56+BO57","v":0},{"$f":"SQRT((BP54^2)+(BP55^2)+(BP56^2)+(BP57^2))","v":32},{"$f":"BQ54+BQ55+BQ56+BQ57","v":193},{"$f":"SQRT((BR54^2)+(BR55^2)+(BR56^2)+(BR57^2))","v":99.794789443136764},{"$f":"BS54+BS55+BS56+BS57","v":3},{"$f":"SQRT((BT54^2)+(BT55^2)+(BT56^2)+(BT57^2))","v":19.697715603592208},{"$f":"BU54+BU55+BU56+BU57","v":39},{"$f":"SQRT((BV54^2)+(BV55^2)+(BV56^2)+(BV57^2))","v":42.567593307585526},{"$f":"BW54+BW55+BW56+BW57","v":26},{"$f":"SQRT((BX54^2)+(BX55^2)+(BX56^2)+(BX57^2))","v":39.812058474788763}]
[null,"35.0 percent or more",{"$f":"C58+C59+C60","v":0},{"$f":"SQRT((D58^2)+(D59^2)+(D60^2))","v":27.712812921102035},{"$f":"E58+E59+E60","v":16},{"$f":"SQRT((F58^2)+(F59^2)+(F60^2))","v":28.301943396169811},{"$f":"G58+G59+G60","v":0},{"$f":"SQRT((H58^2)+(H59^2)+(H60^2))","v":19.05255888325765},{"$f":"I58+I59+I60","v":0},{"$f":"SQRT((J58^2)+(J59^2)+(J60^2))","v":19.05255888325765},{"$f":"K58+K59+K60","v":0},{"$f":"SQRT((L58^2)+(L59^2)+(L60^2))","v":27.712812921102035},{"$f":"M58+M59+M60","v":0},{"$f":"SQRT((N58^2)+(N59^2)+(N60^2))","v":19.05255888325765},{"$f":"O58+O59+O60","v":0},{"$f":"SQRT((P58^2)+(P59^2)+(P60^2))","v":19.05255888325765},{"$f":"Q58+Q59+Q60","v":0},{"$f":"SQRT((R58^2)+(R59^2)+(R60^2))","v":41.569219381653056},{"$f":"S58+S59+S60","v":0},{"$f":"SQRT((T58^2)+(T59^2)+(T60^2))","v":19.05255888325765},{"$f":"U58+U59+U60","v":20},{"$f":"SQRT((V58^2)+(V59^2)+(V60^2))","v":38.379682124790975},{"$f":"W58+W59+W60","v":9},{"$f":"SQRT((X58^2)+(X59^2)+(X60^2))","v":29.051678092667899},{"$f":"Y58+Y59+Y60","v":10},{"$f":"SQRT((Z58^2)+(Z59^2)+(Z60^2))","v":21.61018278497431},{"$f":"AA58+AA59+AA60","v":11},{"$f":"SQRT((AB58^2)+(AB59^2)+(AB60^2))","v":21.61018278497431},{"$f":"AC58+AC59+AC60","v":0},{"$f":"SQRT((AD58^2)+(AD59^2)+(AD60^2))","v":27.712812921102035},{"$f":"AE58+AE59+AE60","v":0},{"$f":"SQRT((AF58^2)+(AF59^2)+(AF60^2))","v":31.176914536239792},{"$f":"AG58+AG59+AG60","v":0},{"$f":"SQRT((AH58^2)+(AH59^2)+(AH60^2))","v":19.05255888325765},{"$f":"AI58+AI59+AI60","v":0},{"$f":"SQRT((AJ58^2)+(AJ59^2)+(AJ60^2))","v":19.05255888325765},{"$f":"AK58+AK59+AK60","v":0},{"$f":"SQRT((AL58^2)+(AL59^2)+(AL60^2))","v":27.712812921102035},{"$f":"AM58+AM59+AM60","v":10},{"$f":"SQRT((AN58^2)+(AN59^2)+(AN60^2))","v":33.271609519228249},{"$f":"AO58+AO59+AO60","v":0},{"$f":"SQRT((AP58^2)+(AP59^2)+(AP60^2))","v":19.05255888325765},{"$f":"AQ58+AQ59+AQ60","v":2},{"$f":"SQRT((AR58^2)+(AR59^2)+(AR60^2))","v":16.06237840420901},{"$f":"AS58+AS59+AS60","v":0},{"$f":"SQRT((AT58^2)+(AT59^2)+(AT60^2))","v":19.05255888325765},{"$f":"AU58+AU59+AU60","v":0},{"$f":"SQRT((AV58^2)+(AV59^2)+(AV60^2))","v":27.712812921102035},{"$f":"AW58+AW59+AW60","v":0},{"$f":"SQRT((AX58^2)+(AX59^2)+(AX60^2))","v":19.05255888325765},{"$f":"AY58+AY59+AY60","v":0},{"$f":"SQRT((AZ58^2)+(AZ59^2)+(AZ60^2))","v":19.05255888325765},{"$f":"BA58+BA59+BA60","v":0},{"$f":"SQRT((BB58^2)+(BB59^2)+(BB60^2))","v":19.05255888325765},{"$f":"BC58+BC59+BC60","v":0},{"$f":"SQRT((BD58^2)+(BD59^2)+(BD60^2))","v":27.712812921102035},{"$f":"BE58+BE59+BE60","v":0},{"$f":"SQRT((BF58^2)+(BF59^2)+(BF60^2))","v":27.712812921102035},{"$f":"BG58+BG59+BG60","v":30},{"$f":"SQRT((BH58^2)+(BH59^2)+(BH60^2))","v":34.785054261852174},{"$f":"BI58+BI59+BI60","v":0},{"$f":"SQRT((BJ58^2)+(BJ59^2)+(BJ60^2))","v":31.176914536239792},{"$f":"BK58+BK59+BK60","v":61},{"$f":"SQRT((BL58^2)+(BL59^2)+(BL60^2))","v":103.50362312499017},{"$f":"BM58+BM59+BM60","v":9},{"$f":"SQRT((BN58^2)+(BN59^2)+(BN60^2))","v":33.271609519228249},{"$f":"BO58+BO59+BO60","v":0},{"$f":"SQRT((BP58^2)+(BP59^2)+(BP60^2))","v":27.712812921102035},{"$f":"BQ58+BQ59+BQ60","v":0},{"$f":"SQRT((BR58^2)+(BR59^2)+(BR60^2))","v":27.712812921102035},{"$f":"BS58+BS59+BS60","v":0},{"$f":"SQRT((BT58^2)+(BT59^2)+(BT60^2))","v":19.05255888325765},{"$f":"BU58+BU59+BU60","v":0},{"$f":"SQRT((BV58^2)+(BV59^2)+(BV60^2))","v":27.712812921102035},{"$f":"BW58+BW59+BW60","v":0},{"$f":"SQRT((BX58^2)+(BX59^2)+(BX60^2))","v":31.176914536239792}]
[null,"50.0 percent or more",{"$f":"C60","v":0},16,0,16,0,11,0,11,0,16,0,11,0,11,0,24,{"$f":"S60","v":0},11,0,16,0,18,0,11,0,11,0,16,0,18,0,11,0,11,0,16,0,21,0,11,0,11,0,11,0,16,0,11,0,11,0,11,0,16,0,16,0,21,0,18,0,16,0,21,0,16,0,16,0,11,0,16,0,18]
[null,"Not Computed",0,16,0,16,0,11,0,11,0,16,0,11,9,13,11,17,0,11,0,16,18,21,0,11,0,11,0,16,0,18,0,11,0,11,0,16,37,48,0,11,0,11,2,4,0,16,0,11,12,18,0,11,0,16,0,16,0,21,0,18,0,16,54,80,0,16,16,25,0,11,0,16,0,18]
[null,"$100,000 or more:",18,29,58,57,50,49,0,11,0,16,49,48,48,55,548,167,6,8,10,18,388,137,30,29,128,61,28,28,283,99,37,32,9,9,27,44,392,134,15,17,7,8,25,17,310,103,86,67,50,37,10,16,20,22,31,46,1196,191,126,108,113,92,361,128,32,37,186,83,10,7,104,85,102,78]
[null,"Less than 30.0 percent",{"$f":"C63+C64+C65","v":18},{"$f":"SQRT((D63^2)+(D64^2)+(D65^2))","v":36.783148315499041},{"$f":"E63+E64+E65","v":58},{"$f":"SQRT((F63^2)+(F64^2)+(F65^2))","v":56.462376853972415},{"$f":"G63+G64+G65","v":50},{"$f":"SQRT((H63^2)+(H64^2)+(H65^2))","v":52.592775169218825},{"$f":"I63+I64+I65","v":0},{"$f":"SQRT((J63^2)+(J64^2)+(J65^2))","v":19.05255888325765},{"$f":"K63+K64+K65","v":0},{"$f":"SQRT((L63^2)+(L64^2)+(L65^2))","v":27.712812921102035},{"$f":"M63+M64+M65","v":49},{"$f":"SQRT((N63^2)+(N64^2)+(N65^2))","v":50.457903246171455},{"$f":"O63+O64+O65","v":4},{"$f":"SQRT((P63^2)+(P64^2)+(P65^2))","v":17.058722109231979},{"$f":"Q63+Q64+Q65","v":522},{"$f":"SQRT((R63^2)+(R64^2)+(R65^2))","v":161.82088863926066},{"$f":"S63+S64+S65","v":6},{"$f":"SQRT((T63^2)+(T64^2)+(T65^2))","v":17.4928556845359},{"$f":"U63+U64+U65","v":10},{"$f":"SQRT((V63^2)+(V64^2)+(V65^2))","v":28.913664589601922},{"$f":"W63+W64+W65","v":365},{"$f":"SQRT((X63^2)+(X64^2)+(X65^2))","v":138.76959321119307},{"$f":"Y63+Y64+Y65","v":30},{"$f":"SQRT((Z63^2)+(Z64^2)+(Z65^2))","v":31.016124838541646},{"$f":"AA63+AA64+AA65","v":118},{"$f":"SQRT((AB63^2)+(AB64^2)+(AB65^2))","v":59.958318855685071},{"$f":"AC63+AC64+AC65","v":15},{"$f":"SQRT((AD63^2)+(AD64^2)+(AD65^2))","v":28.913664589601922},{"$f":"AE63+AE64+AE65","v":283},{"$f":"SQRT((AF63^2)+(AF64^2)+(AF65^2))","v":97.205966895041996},{"$f":"AG63+AG64+AG65","v":37},{"$f":"SQRT((AH63^2)+(AH64^2)+(AH65^2))","v":35.580893749314392},{"$f":"AI63+AI64+AI65","v":6},{"$f":"SQRT((AJ63^2)+(AJ64^2)+(AJ65^2))","v":13.490737563232042},{"$f":"AK63+AK64+AK65","v":27},{"$f":"SQRT((AL63^2)+(AL64^2)+(AL65^2))","v":49.477267507411923},{"$f":"AM63+AM64+AM65","v":386},{"$f":"SQRT((AN63^2)+(AN64^2)+(AN65^2))","v":130.43389130130251},{"$f":"AO63+AO64+AO65","v":15},{"$f":"SQRT((AP63^2)+(AP64^2)+(AP65^2))","v":23.043437243605826},{"$f":"AQ63+AQ64+AQ65","v":7},{"$f":"SQRT((AR63^2)+(AR64^2)+(AR65^2))","v":13.490737563232042},{"$f":"AS63+AS64+AS65","v":22},{"$f":"SQRT((AT63^2)+(AT64^2)+(AT65^2))","v":16.881943016134134},{"$f":"AU63+AU64+AU65","v":310},{"$f":"SQRT((AV63^2)+(AV64^2)+(AV65^2))","v":107.49883720301351},{"$f":"AW63+AW64+AW65","v":86},{"$f":"SQRT((AX63^2)+(AX64^2)+(AX65^2))","v":68.782265156070579},{"$f":"AY63+AY64+AY65","v":50},{"$f":"SQRT((AZ63^2)+(AZ64^2)+(AZ65^2))","v":38.600518131237564},{"$f":"BA63+BA64+BA65","v":0},{"$f":"SQRT((BB63^2)+(BB64^2)+(BB65^2))","v":19.05255888325765},{"$f":"BC63+BC64+BC65","v":20},{"$f":"SQRT((BD63^2)+(BD64^2)+(BD65^2))","v":31.559467676118999},{"$f":"BE63+BE64+BE65","v":31},{"$f":"SQRT((BF63^2)+(BF64^2)+(BF65^2))","v":51.264022471905186},{"$f":"BG63+BG64+BG65","v":1180},{"$f":"SQRT((BH63^2)+(BH64^2)+(BH65^2))","v":207.19314660480447},{"$f":"BI63+BI64+BI65","v":126},{"$f":"SQRT((BJ63^2)+(BJ64^2)+(BJ65^2))","v":109.20164833920778},{"$f":"BK63+BK64+BK65","v":96},{"$f":"SQRT((BL63^2)+(BL64^2)+(BL65^2))","v":89.894382471876412},{"$f":"BM63+BM64+BM65","v":341},{"$f":"SQRT((BN63^2)+(BN64^2)+(BN65^2))","v":129.52991932368366},{"$f":"BO63+BO64+BO65","v":32},{"$f":"SQRT((BP63^2)+(BP64^2)+(BP65^2))","v":40.987803063838392},{"$f":"BQ63+BQ64+BQ65","v":134},{"$f":"SQRT((BR63^2)+(BR64^2)+(BR65^2))","v":72.013887549555335},{"$f":"BS63+BS64+BS65","v":10},{"$f":"SQRT((BT63^2)+(BT64^2)+(BT65^2))","v":7.5498344352707498},{"$f":"BU63+BU64+BU65","v":104},{"$f":"SQRT((BV63^2)+(BV64^2)+(BV65^2))","v":86.723699183095277},{"$f":"BW63+BW64+BW65","v":102},{"$f":"SQRT((BX63^2)+(BX64^2)+(BX65^2))","v":82.048765987064058}]
[null,"More than 30.0 percent",{"$f":"C66+C67+C68+C69","v":0},{"$f":"SQRT((D66^2)+(D67^2)+(D68^2)+(D69^2))","v":32},{"$f":"E66+E67+E68+E69","v":0},{"$f":"SQRT((F66^2)+(F67^2)+(F68^2)+(F69^2))","v":32},{"$f":"G66+G67+G68+G69","v":0},{"$f":"SQRT((H66^2)+(H67^2)+(H68^2)+(H69^2))","v":22},{"$f":"I66+I67+I68+I69","v":0},{"$f":"SQRT((J66^2)+(J67^2)+(J68^2)+(J69^2))","v":22},{"$f":"K66+K67+K68+K69","v":0},{"$f":"SQRT((L66^2)+(L67^2)+(L68^2)+(L69^2))","v":32},{"$f":"M66+M67+M68+M69","v":0},{"$f":"SQRT((N66^2)+(N67^2)+(N68^2)+(N69^2))","v":22},{"$f":"O66+O67+O68+O69","v":0},{"$f":"SQRT((P66^2)+(P67^2)+(P68^2)+(P69^2))","v":22},{"$f":"Q66+Q67+Q68+Q69","v":0},{"$f":"SQRT((R66^2)+(R67^2)+(R68^2)+(R69^2))","v":48},{"$f":"S66+S67+S68+S69","v":0},{"$f":"SQRT((T66^2)+(T67^2)+(T68^2)+(T69^2))","v":22},{"$f":"U66+U67+U68+U69","v":0},{"$f":"SQRT((V66^2)+(V67^2)+(V68^2)+(V69^2))","v":32},{"$f":"W66+W67+W68+W69","v":0},{"$f":"SQRT((X66^2)+(X67^2)+(X68^2)+(X69^2))","v":36},{"$f":"Y66+Y67+Y68+Y69","v":0},{"$f":"SQRT((Z66^2)+(Z67^2)+(Z68^2)+(Z69^2))","v":22},{"$f":"AA66+AA67+AA68+AA69","v":0},{"$f":"SQRT((AB66^2)+(AB67^2)+(AB68^2)+(AB69^2))","v":22},{"$f":"AC66+AC67+AC68+AC69","v":0},{"$f":"SQRT((AD66^2)+(AD67^2)+(AD68^2)+(AD69^2))","v":32},{"$f":"AE66+AE67+AE68+AE69","v":0},{"$f":"SQRT((AF66^2)+(AF67^2)+(AF68^2)+(AF69^2))","v":36},{"$f":"AG66+AG67+AG68+AG69","v":0},{"$f":"SQRT((AH66^2)+(AH67^2)+(AH68^2)+(AH69^2))","v":22},{"$f":"AI66+AI67+AI68+AI69","v":0},{"$f":"SQRT((AJ66^2)+(AJ67^2)+(AJ68^2)+(AJ69^2))","v":22},{"$f":"AK66+AK67+AK68+AK69","v":0},{"$f":"SQRT((AL66^2)+(AL67^2)+(AL68^2)+(AL69^2))","v":32},{"$f":"AM66+AM67+AM68+AM69","v":0},{"$f":"SQRT((AN66^2)+(AN67^2)+(AN68^2)+(AN69^2))","v":42},{"$f":"AO66+AO67+AO68+AO69","v":0},{"$f":"SQRT((AP66^2)+(AP67^2)+(AP68^2)+(AP69^2))","v":22},{"$f":"AQ66+AQ67+AQ68+AQ69","v":0},{"$f":"SQRT((AR66^2)+(AR67^2)+(AR68^2)+(AR69^2))","v":22},{"$f":"AS66+AS67+AS68+AS69","v":0},{"$f":"SQRT((AT66^2)+(AT67^2)+(AT68^2)+(AT69^2))","v":22},{"$f":"AU66+AU67+AU68+AU69","v":0},{"$f":"SQRT((AV66^2)+(AV67^2)+(AV68^2)+(AV69^2))","v":32},{"$f":"AW66+AW67+AW68+AW69","v":0},{"$f":"SQRT((AX66^2)+(AX67^2)+(AX68^2)+(AX69^2))","v":22},{"$f":"AY66+AY67+AY68+AY69","v":0},{"$f":"SQRT((AZ66^2)+(AZ67^2)+(AZ68^2)+(AZ69^2))","v":22},{"$f":"BA66+BA67+BA68+BA69","v":0},{"$f":"SQRT((BB66^2)+(BB67^2)+(BB68^2)+(BB69^2))","v":22},{"$f":"BC66+BC67+BC68+BC69","v":0},{"$f":"SQRT((BD66^2)+(BD67^2)+(BD68^2)+(BD69^2))","v":32},{"$f":"BE66+BE67+BE68+BE69","v":0},{"$f":"SQRT((BF66^2)+(BF67^2)+(BF68^2)+(BF69^2))","v":32},{"$f":"BG66+BG67+BG68+BG69","v":16},{"$f":"SQRT((BH66^2)+(BH67^2)+(BH68^2)+(BH69^2))","v":44.710177812216315},{"$f":"BI66+BI67+BI68+BI69","v":0},{"$f":"SQRT((BJ66^2)+(BJ67^2)+(BJ68^2)+(BJ69^2))","v":36},{"$f":"BK66+BK67+BK68+BK69","v":0},{"$f":"SQRT((BL66^2)+(BL67^2)+(BL68^2)+(BL69^2))","v":32},{"$f":"BM66+BM67+BM68+BM69","v":0},{"$f":"SQRT((BN66^2)+(BN67^2)+(BN68^2)+(BN69^2))","v":42},{"$f":"BO66+BO67+BO68+BO69","v":0},{"$f":"SQRT((BP66^2)+(BP67^2)+(BP68^2)+(BP69^2))","v":32},{"$f":"BQ66+BQ67+BQ68+BQ69","v":39},{"$f":"SQRT((BR66^2)+(BR67^2)+(BR68^2)+(BR69^2))","v":54.561891462814962},{"$f":"BS66+BS67+BS68+BS69","v":0},{"$f":"SQRT((BT66^2)+(BT67^2)+(BT68^2)+(BT69^2))","v":22},{"$f":"BU66+BU67+BU68+BU69","v":0},{"$f":"SQRT((BV66^2)+(BV67^2)+(BV68^2)+(BV69^2))","v":32},{"$f":"BW66+BW67+BW68+BW69","v":0},{"$f":"SQRT((BX66^2)+(BX67^2)+(BX68^2)+(BX69^2))","v":36}]
[null,"Less Than 35% of HH Income",{"$f":"C63+C64+C65+C66","v":18},{"$f":"SQRT(((D63^2)+(D64^2)+(D65^2)+(D66^2)))","v":40.11234224026316},{"$f":"E63+E64+E65+E66","v":58},{"$f":"SQRT(((F63^2)+(F64^2)+(F65^2)+(F66^2)))","v":58.68560300448484},{"$f":"G63+G64+G65+G66","v":50},{"$f":"SQRT(((H63^2)+(H64^2)+(H65^2)+(H66^2)))","v":53.730810528038752},{"$f":"I63+I64+I65+I66","v":0},{"$f":"SQRT(((J63^2)+(J64^2)+(J65^2)+(J66^2)))","v":22},{"$f":"K63+K64+K65+K66","v":0},{"$f":"SQRT(((L63^2)+(L64^2)+(L65^2)+(L66^2)))","v":32},{"$f":"M63+M64+M65+M66","v":49},{"$f":"SQRT(((N63^2)+(N64^2)+(N65^2)+(N66^2)))","v":51.643005334701428},{"$f":"O63+O64+O65+O66","v":4},{"$f":"SQRT(((P63^2)+(P64^2)+(P65^2)+(P66^2)))","v":20.297783130184438},{"$f":"Q63+Q64+Q65+Q66","v":522},{"$f":"SQRT(((R63^2)+(R64^2)+(R65^2)+(R66^2)))","v":163.59095329510126},{"$f":"S63+S64+S65+S66","v":6},{"$f":"SQRT(((T63^2)+(T64^2)+(T65^2)+(T66^2)))","v":20.663978319771825},{"$f":"U63+U64+U65+U66","v":10},{"$f":"SQRT(((V63^2)+(V64^2)+(V65^2)+(V66^2)))","v":33.045423283716609},{"$f":"W63+W64+W65+W66","v":365},{"$f":"SQRT(((X63^2)+(X64^2)+(X65^2)+(X66^2)))","v":139.9321264041964},{"$f":"Y63+Y64+Y65+Y66","v":30},{"$f":"SQRT(((Z63^2)+(Z64^2)+(Z65^2)+(Z66^2)))","v":32.908965343808667},{"$f":"AA63+AA64+AA65+AA66","v":118},{"$f":"SQRT(((AB63^2)+(AB64^2)+(AB65^2)+(AB66^2)))","v":60.959002616512684},{"$f":"AC63+AC64+AC65+AC66","v":15},{"$f":"SQRT(((AD63^2)+(AD64^2)+(AD65^2)+(AD66^2)))","v":33.045423283716609},{"$f":"AE63+AE64+AE65+AE66","v":283},{"$f":"SQRT(((AF63^2)+(AF64^2)+(AF65^2)+(AF66^2)))","v":98.858484714262133},{"$f":"AG63+AG64+AG65+AG66","v":37},{"$f":"SQRT(((AH63^2)+(AH64^2)+(AH65^2)+(AH66^2)))","v":37.242448899072144},{"$f":"AI63+AI64+AI65+AI66","v":6},{"$f":"SQRT(((AJ63^2)+(AJ64^2)+(AJ65^2)+(AJ66^2)))","v":17.406895185529212},{"$f":"AK63+AK64+AK65+AK66","v":27},{"$f":"SQRT(((AL63^2)+(AL64^2)+(AL65^2)+(AL66^2)))","v":52},{"$f":"AM63+AM64+AM65+AM66","v":386},{"$f":"SQRT(((AN63^2)+(AN64^2)+(AN65^2)+(AN66^2)))","v":132.11358749197601},{"$f":"AO63+AO64+AO65+AO66","v":15},{"$f":"SQRT(((AP63^2)+(AP64^2)+(AP65^2)+(AP66^2)))","v":25.534290669607408},{"$f":"AQ63+AQ64+AQ65+AQ66","v":7},{"$f":"SQRT(((AR63^2)+(AR64^2)+(AR65^2)+(AR66^2)))","v":17.406895185529212},{"$f":"AS63+AS64+AS65+AS66","v":22},{"$f":"SQRT(((AT63^2)+(AT64^2)+(AT65^2)+(AT66^2)))","v":20.149441679609886},{"$f":"AU63+AU64+AU65+AU66","v":310},{"$f":"SQRT(((AV63^2)+(AV64^2)+(AV65^2)+(AV66^2)))","v":108.6830253535482},{"$f":"AW63+AW64+AW65+AW66","v":86},{"$f":"SQRT(((AX63^2)+(AX64^2)+(AX65^2)+(AX66^2)))","v":69.656299069071991},{"$f":"AY63+AY64+AY65+AY66","v":50},{"$f":"SQRT(((AZ63^2)+(AZ64^2)+(AZ65^2)+(AZ66^2)))","v":40.137264480778953},{"$f":"BA63+BA64+BA65+BA66","v":0},{"$f":"SQRT(((BB63^2)+(BB64^2)+(BB65^2)+(BB66^2)))","v":22},{"$f":"BC63+BC64+BC65+BC66","v":20},{"$f":"SQRT(((BD63^2)+(BD64^2)+(BD65^2)+(BD66^2)))","v":35.383612025908263},{"$f":"BE63+BE64+BE65+BE66","v":31},{"$f":"SQRT(((BF63^2)+(BF64^2)+(BF65^2)+(BF66^2)))","v":53.702886328390207},{"$f":"BG63+BG64+BG65+BG66","v":1180},{"$f":"SQRT(((BH63^2)+(BH64^2)+(BH65^2)+(BH66^2)))","v":208.25465180878913},{"$f":"BI63+BI64+BI65+BI66","v":126},{"$f":"SQRT(((BJ63^2)+(BJ64^2)+(BJ65^2)+(BJ66^2)))","v":110.6752004741803},{"$f":"BK63+BK64+BK65+BK66","v":96},{"$f":"SQRT(((BL63^2)+(BL64^2)+(BL65^2)+(BL66^2)))","v":91.307173869307775},{"$f":"BM63+BM64+BM65+BM66","v":341},{"$f":"SQRT(((BN63^2)+(BN64^2)+(BN65^2)+(BN66^2)))","v":131.22118731363469},{"$f":"BO63+BO64+BO65+BO66","v":32},{"$f":"SQRT(((BP63^2)+(BP64^2)+(BP65^2)+(BP66^2)))","v":44},{"$f":"BQ63+BQ64+BQ65+BQ66","v":134},{"$f":"SQRT(((BR63^2)+(BR64^2)+(BR65^2)+(BR66^2)))","v":73.769912566031962},{"$f":"BS63+BS64+BS65+BS66","v":10},{"$f":"SQRT(((BT63^2)+(BT64^2)+(BT65^2)+(BT66^2)))","v":13.341664064126334},{"$f":"BU63+BU64+BU65+BU66","v":104},{"$f":"SQRT(((BV63^2)+(BV64^2)+(BV65^2)+(BV66^2)))","v":88.1873006730561},{"$f":"BW63+BW64+BW65+BW66","v":102},{"$f":"SQRT(((BX63^2)+(BX64^2)+(BX65^2)+(BX66^2)))","v":84}]
[null,"35.0 percent or more",{"$f":"C67+C68+C69","v":0},{"$f":"SQRT((D67^2)+(D68^2)+(D69^2))","v":27.712812921102035},{"$f":"E67+E68+E69","v":0},{"$f":"SQRT((F67^2)+(F68^2)+(F69^2))","v":27.712812921102035},{"$f":"G67+G68+G69","v":0},{"$f":"SQRT((H67^2)+(H68^2)+(H69^2))","v":19.05255888325765},{"$f":"I67+I68+I69","v":0},{"$f":"SQRT((J67^2)+(J68^2)+(J69^2))","v":19.05255888325765},{"$f":"K67+K68+K69","v":0},{"$f":"SQRT((L67^2)+(L68^2)+(L69^2))","v":27.712812921102035},{"$f":"M67+M68+M69","v":0},{"$f":"SQRT((N67^2)+(N68^2)+(N69^2))","v":19.05255888325765},{"$f":"O67+O68+O69","v":0},{"$f":"SQRT((P67^2)+(P68^2)+(P69^2))","v":19.05255888325765},{"$f":"Q67+Q68+Q69","v":0},{"$f":"SQRT((R67^2)+(R68^2)+(R69^2))","v":41.569219381653056},{"$f":"S67+S68+S69","v":0},{"$f":"SQRT((T67^2)+(T68^2)+(T69^2))","v":19.05255888325765},{"$f":"U67+U68+U69","v":0},{"$f":"SQRT((V67^2)+(V68^2)+(V69^2))","v":27.712812921102035},{"$f":"W67+W68+W69","v":0},{"$f":"SQRT((X67^2)+(X68^2)+(X69^2))","v":31.176914536239792},{"$f":"Y67+Y68+Y69","v":0},{"$f":"SQRT((Z67^2)+(Z68^2)+(Z69^2))","v":19.05255888325765},{"$f":"AA67+AA68+AA69","v":0},{"$f":"SQRT((AB67^2)+(AB68^2)+(AB69^2))","v":19.05255888325765},{"$f":"AC67+AC68+AC69","v":0},{"$f":"SQRT((AD67^2)+(AD68^2)+(AD69^2))","v":27.712812921102035},{"$f":"AE67+AE68+AE69","v":0},{"$f":"SQRT((AF67^2)+(AF68^2)+(AF69^2))","v":31.176914536239792},{"$f":"AG67+AG68+AG69","v":0},{"$f":"SQRT((AH67^2)+(AH68^2)+(AH69^2))","v":19.05255888325765},{"$f":"AI67+AI68+AI69","v":0},{"$f":"SQRT((AJ67^2)+(AJ68^2)+(AJ69^2))","v":19.05255888325765},{"$f":"AK67+AK68+AK69","v":0},{"$f":"SQRT((AL67^2)+(AL68^2)+(AL69^2))","v":27.712812921102035},{"$f":"AM67+AM68+AM69","v":0},{"$f":"SQRT((AN67^2)+(AN68^2)+(AN69^2))","v":36.373066958946424},{"$f":"AO67+AO68+AO69","v":0},{"$f":"SQRT((AP67^2)+(AP68^2)+(AP69^2))","v":19.05255888325765},{"$f":"AQ67+AQ68+AQ69","v":0},{"$f":"SQRT((AR67^2)+(AR68^2)+(AR69^2))","v":19.05255888325765},{"$f":"AS67+AS68+AS69","v":0},{"$f":"SQRT((AT67^2)+(AT68^2)+(AT69^2))","v":19.05255888325765},{"$f":"AU67+AU68+AU69","v":0},{"$f":"SQRT((AV67^2)+(AV68^2)+(AV69^2))","v":27.712812921102035},{"$f":"AW67+AW68+AW69","v":0},{"$f":"SQRT((AX67^2)+(AX68^2)+(AX69^2))","v":19.05255888325765},{"$f":"AY67+AY68+AY69","v":0},{"$f":"SQRT((AZ67^2)+(AZ68^2)+(AZ69^2))","v":19.05255888325765},{"$f":"BA67+BA68+BA69","v":0},{"$f":"SQRT((BB67^2)+(BB68^2)+(BB69^2))","v":19.05255888325765},{"$f":"BC67+BC68+BC69","v":0},{"$f":"SQRT((BD67^2)+(BD68^2)+(BD69^2))","v":27.712812921102035},{"$f":"BE67+BE68+BE69","v":0},{"$f":"SQRT((BF67^2)+(BF68^2)+(BF69^2))","v":27.712812921102035},{"$f":"BG67+BG68+BG69","v":16},{"$f":"SQRT((BH67^2)+(BH68^2)+(BH69^2))","v":39.471508711981102},{"$f":"BI67+BI68+BI69","v":0},{"$f":"SQRT((BJ67^2)+(BJ68^2)+(BJ69^2))","v":31.176914536239792},{"$f":"BK67+BK68+BK69","v":0},{"$f":"SQRT((BL67^2)+(BL68^2)+(BL69^2))","v":27.712812921102035},{"$f":"BM67+BM68+BM69","v":0},{"$f":"SQRT((BN67^2)+(BN68^2)+(BN69^2))","v":36.373066958946424},{"$f":"BO67+BO68+BO69","v":0},{"$f":"SQRT((BP67^2)+(BP68^2)+(BP69^2))","v":27.712812921102035},{"$f":"BQ67+BQ68+BQ69","v":39},{"$f":"SQRT((BR67^2)+(BR68^2)+(BR69^2))","v":52.163205422979907},{"$f":"BS67+BS68+BS69","v":0},{"$f":"SQRT((BT67^2)+(BT68^2)+(BT69^2))","v":19.05255888325765},{"$f":"BU67+BU68+BU69","v":0},{"$f":"SQRT((BV67^2)+(BV68^2)+(BV69^2))","v":27.712812921102035},{"$f":"BW67+BW68+BW69","v":0},{"$f":"SQRT((BX67^2)+(BX68^2)+(BX69^2))","v":31.176914536239792}]
[null,"50.0 percent or more",{"$f":"C69","v":0},16,0,{"$f":"F69","v":16},{"$f":"G69","v":0},11,{"$f":"I69","v":0},11,{"$f":"K69","v":0},16,{"$f":"M69","v":0},11,{"$f":"O69","v":0},11,{"$f":"Q69","v":0},24,{"$f":"S69","v":0},11,{"$f":"U69","v":0},16,{"$f":"W69","v":0},18,{"$f":"Y69","v":0},11,{"$f":"AA69","v":0},11,{"$f":"AC69","v":0},16,{"$f":"AE69","v":0},18,{"$f":"AG69","v":0},11,{"$f":"AI69","v":0},11,{"$f":"AK69","v":0},16,{"$f":"AM69","v":0},21,{"$f":"AO69","v":0},11,{"$f":"AQ69","v":0},11,{"$f":"AS69","v":0},11,{"$f":"AU69","v":0},16,{"$f":"AW69","v":0},11,{"$f":"AY69","v":0},11,{"$f":"BA69","v":0},11,{"$f":"BC69","v":0},16,{"$f":"BE69","v":0},16,{"$f":"BG69","v":0},21,{"$f":"BI69","v":0},18,{"$f":"BK69","v":0},16,{"$f":"BM69","v":0},21,{"$f":"BO69","v":0},16,{"$f":"BQ69","v":0},{"$f":"BR69","v":16},{"$f":"BS69","v":0},11,{"$f":"BU69","v":0},16,{"$f":"BW69","v":0},18]
[null,"Not Computed",0,16,0,16,{"$f":"G70","v":0},11,{"$f":"I70","v":0},11,{"$f":"K70","v":0},16,{"$f":"M70","v":0},11,{"$f":"O70","v":44},54,{"$f":"Q70","v":26},40,{"$f":"S70","v":0},11,{"$f":"U70","v":0},16,{"$f":"W70","v":23},26,{"$f":"Y70","v":0},11,{"$f":"AA70","v":10},16,{"$f":"AC70","v":13},21,{"$f":"AE70","v":0},18,{"$f":"AG70","v":0},11,{"$f":"AI70","v":3},4,{"$f":"AK70","v":0},16,{"$f":"AM70","v":6},10,{"$f":"AO70","v":0},11,{"$f":"AQ70","v":0},11,{"$f":"AS70","v":3},4,{"$f":"AU70","v":0},16,{"$f":"AW70","v":0},11,{"$f":"AY70","v":0},11,{"$f":"BA70","v":10},16,{"$f":"BC70","v":0},16,{"$f":"BE70","v":0},16,{"$f":"BG70","v":0},21,{"$f":"BI70","v":0},18,{"$f":"BK70","v":17},26,{"$f":"BM70","v":20},24,{"$f":"BO70","v":0},16,{"$f":"BQ70","v":13},22,{"$f":"BS70","v":0},11,{"$f":"BU70","v":0},16,{"$f":"BW70","v":0},18]
[]
[]
[null,"Calculated GROSS RENT AS A PERCENTAGE OF HOUSEHOLD INCOME IN THE PAST 12 MONTHS"]
[null,"Universe:  RENTER-OCCUPIED HOUSING UNITS"]
[null,"Data Set: 2015-2019 American Community Survey 5-Year Estimates"]
[]
[null,null,"Atkinson",null,"Auburn",null,"Brentwood",null,"Candia",null,"Chester",null,"Danville",null,"Deerfield",null,"Derry",null,"East Kingston",null,"Epping",null,"Exeter",null,"Fremont",null,"Greenland",null,"Hampstead",null,"Hampton",null,"Hampton Falls",null,"Kensington",null,"Kingston",null,"Londonderry",null,"New Castle",null,"Newfields",null,"Newington",null,"Newmarket",null,"Newton",null,"North Hampton",null,"Northwood",null,"Nottingham",null,"Plaistow",null,"Portsmouth",null,"Raymond",null,"Rye",null,"Salem",null,"Sandown",null,"Seabrook",null,"South Hampton",null,"Stratham",null,"Windham"]
[null," ","Estimate","Margin Of Error","Estimate","Margin Of Error","Estimate","Margin Of Error","Estimate","Margin Of Error","Estimate","Margin Of Error","Estimate","Margin Of Error","Estimate","Margin Of Error","Estimate","Margin Of Error","Estimate","Margin Of Error","Estimate","Margin Of Error","Estimate","Margin Of Error","Estimate","Margin Of Error","Estimate","Margin Of Error","Estimate","Margin Of Error","Estimate","Margin Of Error","Estimate","Margin Of Error","Estimate","Margin Of Error","Estimate","Margin Of Error","Estimate","Margin Of Error","Estimate","Margin Of Error","Estimate","Margin Of Error","Estimate","Margin Of Error","Estimate","Margin Of Error","Estimate","Margin Of Error","Estimate","Margin Of Error","Estimate","Margin Of Error","Estimate","Margin Of Error","Estimate","Margin Of Error","Estimate","Margin Of Error","Estimate","Margin Of Error","Estimate","Margin Of Error","Estimate","Margin Of Error","Estimate","Margin Of Error","Estimate","Margin Of Error","Estimate","Margin Of Error","Estimate","Margin Of Error","Estimate","Margin Of Error"]
[null,{"$f":"B92","v":"Total:"},{"$f":"C92","v":194},106,154,88,133,73,83,62,45,45,255,107,200,79,4450,369,39,27,392,148,2063,256,150,72,260,79,784,169,1694,197,81,38,85,34,380,139,1349,200,45,31,40,20,48,19,1914,180,366,104,208,75,151,72,133,66,571,169,4826,262,888,167,423,174,2530,{"$f":"BN92","v":315},204,103,1224,199,38,26,330,133,204,109]
[null,"Less than 30.0 percent",{"$f":"C136+C129+C122+C115+C108+C101+C94","v":95},{"$f":"SQRT((D136^2)+(D129^2)+(D122^2)+(D115^2)+(D108^2)+(D101^2)+(D94^2))","v":111.18902823570319},{"$f":"E136+E129+E122+E115+E108+E101+E94","v":107},{"$f":"SQRT((F136^2)+(F129^2)+(F122^2)+(F115^2)+(F108^2)+(F101^2)+(F94^2))","v":104.58011283222064},{"$f":"G136+G129+G122+G115+G108+G101+G94","v":83},{"$f":"SQRT((H136^2)+(H129^2)+(H122^2)+(H115^2)+(H108^2)+(H101^2)+(H94^2))","v":73.416619371910613},{"$f":"I136+I129+I122+I115+I108+I101+I94","v":8},{"$f":"SQRT((J136^2)+(J129^2)+(J122^2)+(J115^2)+(J108^2)+(J101^2)+(J94^2))","v":50.635955604688654},{"$f":"K136+K129+K122+K115+K108+K101+K94","v":34},{"$f":"SQRT((L136^2)+(L129^2)+(L122^2)+(L115^2)+(L108^2)+(L101^2)+(L94^2))","v":88.453377549983927},{"$f":"M136+M129+M122+M115+M108+M101+M94","v":91},{"$f":"SQRT((N136^2)+(N129^2)+(N122^2)+(N115^2)+(N108^2)+(N101^2)+(N94^2))","v":76.707235643060429},{"$f":"O136+O129+O122+O115+O108+O101+O94","v":70},{"$f":"SQRT((P136^2)+(P129^2)+(P122^2)+(P115^2)+(P108^2)+(P101^2)+(P94^2))","v":72.387844283415433},{"$f":"Q136+Q129+Q122+Q115+Q108+Q101+Q94","v":2170},{"$f":"SQRT((R136^2)+(R129^2)+(R122^2)+(R115^2)+(R108^2)+(R101^2)+(R94^2))","v":350.62515597144483},{"$f":"S136+S129+S122+S115+S108+S101+S94","v":6},{"$f":"SQRT((T136^2)+(T129^2)+(T122^2)+(T115^2)+(T108^2)+(T101^2)+(T94^2))","v":49.839743177508446},{"$f":"U136+U129+U122+U115+U108+U101+U94","v":148},{"$f":"SQRT((V136^2)+(V129^2)+(V122^2)+(V115^2)+(V108^2)+(V101^2)+(V94^2))","v":119.33147112141039},{"$f":"W136+W129+W122+W115+W108+W101+W94","v":1022},{"$f":"SQRT((X136^2)+(X129^2)+(X122^2)+(X115^2)+(X108^2)+(X101^2)+(X94^2))","v":245.67661671392335},{"$f":"Y136+Y129+Y122+Y115+Y108+Y101+Y94","v":100},{"$f":"SQRT((Z136^2)+(Z129^2)+(Z122^2)+(Z115^2)+(Z108^2)+(Z101^2)+(Z94^2))","v":82.443920333763842},{"$f":"AA136+AA129+AA122+AA115+AA108+AA101+AA94","v":145},{"$f":"SQRT((AB136^2)+(AB129^2)+(AB122^2)+(AB115^2)+(AB108^2)+(AB101^2)+(AB94^2))","v":77.175125526298956},{"$f":"AC136+AC129+AC122+AC115+AC108+AC101+AC94","v":410},{"$f":"SQRT((AD136^2)+(AD129^2)+(AD122^2)+(AD115^2)+(AD108^2)+(AD101^2)+(AD94^2))","v":186.35181780707157},{"$f":"AE136+AE129+AE122+AE115+AE108+AE101+AE94","v":1069},{"$f":"SQRT((AF136^2)+(AF129^2)+(AF122^2)+(AF115^2)+(AF108^2)+(AF101^2)+(AF94^2))","v":211.53723076565032},{"$f":"AG136+AG129+AG122+AG115+AG108+AG101+AG94","v":50},{"$f":"SQRT((AH136^2)+(AH129^2)+(AH122^2)+(AH115^2)+(AH108^2)+(AH101^2)+(AH94^2))","v":58.017238817441147},{"$f":"AI136+AI129+AI122+AI115+AI108+AI101+AI94","v":47},{"$f":"SQRT((AJ136^2)+(AJ129^2)+(AJ122^2)+(AJ115^2)+(AJ108^2)+(AJ101^2)+(AJ94^2))","v":51.932648690395141},{"$f":"AK136+AK129+AK122+AK115+AK108+AK101+AK94","v":107},{"$f":"SQRT((AL136^2)+(AL129^2)+(AL122^2)+(AL115^2)+(AL108^2)+(AL101^2)+(AL94^2))","v":119.43198901466893},{"$f":"AM136+AM129+AM122+AM115+AM108+AM101+AM94","v":741},{"$f":"SQRT((AN136^2)+(AN129^2)+(AN122^2)+(AN115^2)+(AN108^2)+(AN101^2)+(AN94^2))","v":195.8749601148651},{"$f":"AO136+AO129+AO122+AO115+AO108+AO101+AO94","v":24},{"$f":"SQRT((AP136^2)+(AP129^2)+(AP122^2)+(AP115^2)+(AP108^2)+(AP101^2)+(AP94^2))","v":53.037722424704477},{"$f":"AQ136+AQ129+AQ122+AQ115+AQ108+AQ101+AQ94","v":14},{"$f":"SQRT((AR136^2)+(AR129^2)+(AR122^2)+(AR115^2)+(AR108^2)+(AR101^2)+(AR94^2))","v":46.797435827190363},{"$f":"AS136+AS129+AS122+AS115+AS108+AS101+AS94","v":32},{"$f":"SQRT((AT136^2)+(AT129^2)+(AT122^2)+(AT115^2)+(AT108^2)+(AT101^2)+(AT94^2))","v":46.797435827190363},{"$f":"AU136+AU129+AU122+AU115+AU108+AU101+AU94","v":1047},{"$f":"SQRT((AV136^2)+(AV129^2)+(AV122^2)+(AV115^2)+(AV108^2)+(AV101^2)+(AV94^2))","v":227.547797176769},{"$f":"AW136+AW129+AW122+AW115+AW108+AW101+AW94","v":277},{"$f":"SQRT((AX136^2)+(AX129^2)+(AX122^2)+(AX115^2)+(AX108^2)+(AX101^2)+(AX94^2))","v":132.72528018429648},{"$f":"AY136+AY129+AY122+AY115+AY108+AY101+AY94","v":87},{"$f":"SQRT((AZ136^2)+(AZ129^2)+(AZ122^2)+(AZ115^2)+(AZ108^2)+(AZ101^2)+(AZ94^2))","v":64.845971347493901},{"$f":"BA136+BA129+BA122+BA115+BA108+BA101+BA94","v":58},{"$f":"SQRT((BB136^2)+(BB129^2)+(BB122^2)+(BB115^2)+(BB108^2)+(BB101^2)+(BB94^2))","v":73.082145562373853},{"$f":"BC136+BC129+BC122+BC115+BC108+BC101+BC94","v":109},{"$f":"SQRT((BD136^2)+(BD129^2)+(BD122^2)+(BD115^2)+(BD108^2)+(BD101^2)+(BD94^2))","v":89.476253833070146},{"$f":"BE136+BE129+BE122+BE115+BE108+BE101+BE94","v":246},{"$f":"SQRT((BF136^2)+(BF129^2)+(BF122^2)+(BF115^2)+(BF108^2)+(BF101^2)+(BF94^2))","v":144.84129245487972},{"$f":"BG136+BG129+BG122+BG115+BG108+BG101+BG94","v":2842},{"$f":"SQRT((BH136^2)+(BH129^2)+(BH122^2)+(BH115^2)+(BH108^2)+(BH101^2)+(BH94^2))","v":357.17922671958399},{"$f":"BI136+BI129+BI122+BI115+BI108+BI101+BI94","v":314},{"$f":"SQRT((BJ136^2)+(BJ129^2)+(BJ122^2)+(BJ115^2)+(BJ108^2)+(BJ101^2)+(BJ94^2))","v":152.7121475194426},{"$f":"BK136+BK129+BK122+BK115+BK108+BK101+BK94","v":148},{"$f":"SQRT((BL136^2)+(BL129^2)+(BL122^2)+(BL115^2)+(BL108^2)+(BL101^2)+(BL94^2))","v":119.49058540320237},{"$f":"BM136+BM129+BM122+BM115+BM108+BM101+BM94","v":1139},{"$f":"SQRT((BN136^2)+(BN129^2)+(BN122^2)+(BN115^2)+(BN108^2)+(BN101^2)+(BN94^2))","v":269.89257122047655},{"$f":"BO136+BO129+BO122+BO115+BO108+BO101+BO94","v":46},{"$f":"SQRT((BP136^2)+(BP129^2)+(BP122^2)+(BP115^2)+(BP108^2)+(BP101^2)+(BP94^2))","v":81},{"$f":"BQ136+BQ129+BQ122+BQ115+BQ108+BQ101+BQ94","v":595},{"$f":"SQRT((BR136^2)+(BR129^2)+(BR122^2)+(BR115^2)+(BR108^2)+(BR101^2)+(BR94^2))","v":179.27632303235137},{"$f":"BS136+BS129+BS122+BS115+BS108+BS101+BS94","v":24},{"$f":"SQRT((BT136^2)+(BT129^2)+(BT122^2)+(BT115^2)+(BT108^2)+(BT101^2)+(BT94^2))","v":46.021733996015406},{"$f":"BU136+BU129+BU122+BU115+BU108+BU101+BU94","v":182},{"$f":"SQRT((BV136^2)+(BV129^2)+(BV122^2)+(BV115^2)+(BV108^2)+(BV101^2)+(BV94^2))","v":119.60769206033532},{"$f":"BW136+BW129+BW122+BW115+BW108+BW101+BW94","v":145},{"$f":"SQRT((BX136^2)+(BX129^2)+(BX122^2)+(BX115^2)+(BX108^2)+(BX101^2)+(BX94^2))","v":115.14338886796757}]
[null,"More than 30.0 percent",{"$f":"C137+C130+C123+C116+C109+C102+C95","v":99},{"$f":"SQRT((D137^2)+(D130^2)+(D123^2)+(D116^2)+(D109^2)+(D102^2)+(D95^2))","v":122.17200988769891},{"$f":"E137+E130+E123+E116+E109+E102+E95","v":47},{"$f":"SQRT((F137^2)+(F130^2)+(F123^2)+(F116^2)+(F109^2)+(F102^2)+(F95^2))","v":89.26925562588724},{"$f":"G137+G130+G123+G116+G109+G102+G95","v":50},{"$f":"SQRT((H137^2)+(H130^2)+(H123^2)+(H116^2)+(H109^2)+(H102^2)+(H95^2))","v":78.249600637958537},{"$f":"I137+I130+I123+I116+I109+I102+I95","v":55},{"$f":"SQRT((J137^2)+(J130^2)+(J123^2)+(J116^2)+(J109^2)+(J102^2)+(J95^2))","v":76.778903352418368},{"$f":"K137+K130+K123+K116+K109+K102+K95","v":11},{"$f":"SQRT((L137^2)+(L130^2)+(L123^2)+(L116^2)+(L109^2)+(L102^2)+(L95^2))","v":85.281885532626447},{"$f":"M137+M130+M123+M116+M109+M102+M95","v":164},{"$f":"SQRT((N137^2)+(N130^2)+(N123^2)+(N116^2)+(N109^2)+(N102^2)+(N95^2))","v":116.8289347721702},{"$f":"O137+O130+O123+O116+O109+O102+O95","v":65},{"$f":"SQRT((P137^2)+(P130^2)+(P123^2)+(P116^2)+(P109^2)+(P102^2)+(P95^2))","v":71.021123618258812},{"$f":"Q137+Q130+Q123+Q116+Q109+Q102+Q95","v":2197},{"$f":"SQRT((R137^2)+(R130^2)+(R123^2)+(R116^2)+(R109^2)+(R102^2)+(R95^2))","v":405.26287764857022},{"$f":"S137+S130+S123+S116+S109+S102+S95","v":14},{"$f":"SQRT((T137^2)+(T130^2)+(T123^2)+(T116^2)+(T109^2)+(T102^2)+(T95^2))","v":56.736231810017131},{"$f":"U137+U130+U123+U116+U109+U102+U95","v":224},{"$f":"SQRT((V137^2)+(V130^2)+(V123^2)+(V116^2)+(V109^2)+(V102^2)+(V95^2))","v":140.37806096395548},{"$f":"W137+W130+W123+W116+W109+W102+W95","v":883},{"$f":"SQRT((X137^2)+(X130^2)+(X123^2)+(X116^2)+(X109^2)+(X102^2)+(X95^2))","v":219.66565503054863},{"$f":"Y137+Y130+Y123+Y116+Y109+Y102+Y95","v":18},{"$f":"SQRT((Z137^2)+(Z130^2)+(Z123^2)+(Z116^2)+(Z109^2)+(Z102^2)+(Z95^2))","v":59.724366886556446},{"$f":"AA137+AA130+AA123+AA116+AA109+AA102+AA95","v":94},{"$f":"SQRT((AB137^2)+(AB130^2)+(AB123^2)+(AB116^2)+(AB109^2)+(AB102^2)+(AB95^2))","v":81.006172604314543},{"$f":"AC137+AC130+AC123+AC116+AC109+AC102+AC95","v":308},{"$f":"SQRT((AD137^2)+(AD130^2)+(AD123^2)+(AD116^2)+(AD109^2)+(AD102^2)+(AD95^2))","v":185.80635080642426},{"$f":"AE137+AE130+AE123+AE116+AE109+AE102+AE95","v":562},{"$f":"SQRT((AF137^2)+(AF130^2)+(AF123^2)+(AF116^2)+(AF109^2)+(AF102^2)+(AF95^2))","v":156.3265812330072},{"$f":"AG137+AG130+AG123+AG116+AG109+AG102+AG95","v":11},{"$f":"SQRT((AH137^2)+(AH130^2)+(AH123^2)+(AH116^2)+(AH109^2)+(AH102^2)+(AH95^2))","v":57.23635208501674},{"$f":"AI137+AI130+AI123+AI116+AI109+AI102+AI95","v":19},{"$f":"SQRT((AJ137^2)+(AJ130^2)+(AJ123^2)+(AJ116^2)+(AJ109^2)+(AJ102^2)+(AJ95^2))","v":54.027770636960398},{"$f":"AK137+AK130+AK123+AK116+AK109+AK102+AK95","v":254},{"$f":"SQRT((AL137^2)+(AL130^2)+(AL123^2)+(AL116^2)+(AL109^2)+(AL102^2)+(AL95^2))","v":177.01412373028316},{"$f":"AM137+AM130+AM123+AM116+AM109+AM102+AM95","v":496},{"$f":"SQRT((AN137^2)+(AN130^2)+(AN123^2)+(AN116^2)+(AN109^2)+(AN102^2)+(AN95^2))","v":174.91998170592174},{"$f":"AO137+AO130+AO123+AO116+AO109+AO102+AO95","v":21},{"$f":"SQRT((AP137^2)+(AP130^2)+(AP123^2)+(AP116^2)+(AP109^2)+(AP102^2)+(AP95^2))","v":60.497933849016697},{"$f":"AQ137+AQ130+AQ123+AQ116+AQ109+AQ102+AQ95","v":23},{"$f":"SQRT((AR137^2)+(AR130^2)+(AR123^2)+(AR116^2)+(AR109^2)+(AR102^2)+(AR95^2))","v":53.860932037980923},{"$f":"AS137+AS130+AS123+AS116+AS109+AS102+AS95","v":9},{"$f":"SQRT((AT137^2)+(AT130^2)+(AT123^2)+(AT116^2)+(AT109^2)+(AT102^2)+(AT95^2))","v":55.695601262577284},{"$f":"AU137+AU130+AU123+AU116+AU109+AU102+AU95","v":844},{"$f":"SQRT((AV137^2)+(AV130^2)+(AV123^2)+(AV116^2)+(AV109^2)+(AV102^2)+(AV95^2))","v":233.34523779156069},{"$f":"AW137+AW130+AW123+AW116+AW109+AW102+AW95","v":78},{"$f":"SQRT((AX137^2)+(AX130^2)+(AX123^2)+(AX116^2)+(AX109^2)+(AX102^2)+(AX95^2))","v":76.22335600063802},{"$f":"AY137+AY130+AY123+AY116+AY109+AY102+AY95","v":81},{"$f":"SQRT((AZ137^2)+(AZ130^2)+(AZ123^2)+(AZ116^2)+(AZ109^2)+(AZ102^2)+(AZ95^2))","v":71.070387644925646},{"$f":"BA137+BA130+BA123+BA116+BA109+BA102+BA95","v":83},{"$f":"SQRT((BB137^2)+(BB130^2)+(BB123^2)+(BB116^2)+(BB109^2)+(BB102^2)+(BB95^2))","v":67.985292527134135},{"$f":"BC137+BC130+BC123+BC116+BC109+BC102+BC95","v":24},{"$f":"SQRT((BD137^2)+(BD130^2)+(BD123^2)+(BD116^2)+(BD109^2)+(BD102^2)+(BD95^2))","v":85.568685861125616},{"$f":"BE137+BE130+BE123+BE116+BE109+BE102+BE95","v":250},{"$f":"SQRT((BF137^2)+(BF130^2)+(BF123^2)+(BF116^2)+(BF109^2)+(BF102^2)+(BF95^2))","v":179.55222081611799},{"$f":"BG137+BG130+BG123+BG116+BG109+BG102+BG95","v":1809},{"$f":"SQRT((BH137^2)+(BH130^2)+(BH123^2)+(BH116^2)+(BH109^2)+(BH102^2)+(BH95^2))","v":314.43441287492692},{"$f":"BI137+BI130+BI123+BI116+BI109+BI102+BI95","v":568},{"$f":"SQRT((BJ137^2)+(BJ130^2)+(BJ123^2)+(BJ116^2)+(BJ109^2)+(BJ102^2)+(BJ95^2))","v":192.40582111776141},{"$f":"BK137+BK130+BK123+BK116+BK109+BK102+BK95","v":258},{"$f":"SQRT((BL137^2)+(BL130^2)+(BL123^2)+(BL116^2)+(BL109^2)+(BL102^2)+(BL95^2))","v":181.44696194756196},{"$f":"BM137+BM130+BM123+BM116+BM109+BM102+BM95","v":1270},{"$f":"SQRT((BN137^2)+(BN130^2)+(BN123^2)+(BN116^2)+(BN109^2)+(BN102^2)+(BN95^2))","v":304.21702779430348},{"$f":"BO137+BO130+BO123+BO116+BO109+BO102+BO95","v":131},{"$f":"SQRT((BP137^2)+(BP130^2)+(BP123^2)+(BP116^2)+(BP109^2)+(BP102^2)+(BP95^2))","v":133.01879566437219},{"$f":"BQ137+BQ130+BQ123+BQ116+BQ109+BQ102+BQ95","v":543},{"$f":"SQRT((BR137^2)+(BR130^2)+(BR123^2)+(BR116^2)+(BR109^2)+(BR102^2)+(BR95^2))","v":162.96318602678338},{"$f":"BS137+BS130+BS123+BS116+BS109+BS102+BS95","v":2},{"$f":"SQRT((BT137^2)+(BT130^2)+(BT123^2)+(BT116^2)+(BT109^2)+(BT102^2)+(BT95^2))","v":57.297469403107151},{"$f":"BU137+BU130+BU123+BU116+BU109+BU102+BU95","v":100},{"$f":"SQRT((BV137^2)+(BV130^2)+(BV123^2)+(BV116^2)+(BV109^2)+(BV102^2)+(BV95^2))","v":99.483667001171611},{"$f":"BW137+BW130+BW123+BW116+BW109+BW102+BW95","v":59},{"$f":"SQRT((BX137^2)+(BX130^2)+(BX123^2)+(BX116^2)+(BX109^2)+(BX102^2)+(BX95^2))","v":101.08412338245805}]
[null,"Less Than 35% of HH Income",{"$f":"C138+C131+C124+C117+C110+C103+C96","v":109},{"$f":"SQRT((D138^2)+(D131^2)+(D124^2)+(D117^2)+(D110^2)+(D103^2)+(D96^2))","v":120.51555916146263},{"$f":"E138+E131+E124+E117+E110+E103+E96","v":107},{"$f":"SQRT((F138^2)+(F131^2)+(F124^2)+(F117^2)+(F110^2)+(F103^2)+(F96^2))","v":112.8228700219951},{"$f":"G138+G131+G124+G117+G110+G103+G96","v":90},{"$f":"SQRT((H138^2)+(H131^2)+(H124^2)+(H117^2)+(H110^2)+(H103^2)+(H96^2))","v":79.277991901914362},{"$f":"I138+I131+I124+I117+I110+I103+I96","v":8},{"$f":"SQRT((J138^2)+(J131^2)+(J124^2)+(J117^2)+(J110^2)+(J103^2)+(J96^2))","v":58.403767001795352},{"$f":"K138+K131+K124+K117+K110+K103+K96","v":34},{"$f":"SQRT((L138^2)+(L131^2)+(L124^2)+(L117^2)+(L110^2)+(L103^2)+(L96^2))","v":98.061205377050101},{"$f":"M138+M131+M124+M117+M110+M103+M96","v":147},{"$f":"SQRT((N138^2)+(N131^2)+(N124^2)+(N117^2)+(N110^2)+(N103^2)+(N96^2))","v":97.293370791642332},{"$f":"O138+O131+O124+O117+O110+O103+O96","v":70},{"$f":"SQRT((P138^2)+(P131^2)+(P124^2)+(P117^2)+(P110^2)+(P103^2)+(P96^2))","v":78.019228399158109},{"$f":"Q138+Q131+Q124+Q117+Q110+Q103+Q96","v":2769},{"$f":"SQRT((R138^2)+(R131^2)+(R124^2)+(R117^2)+(R110^2)+(R103^2)+(R96^2))","v":413.93598538904541},{"$f":"S138+S131+S124+S117+S110+S103+S96","v":6},{"$f":"SQRT((T138^2)+(T131^2)+(T124^2)+(T117^2)+(T110^2)+(T103^2)+(T96^2))","v":57.714816122032303},{"$f":"U138+U131+U124+U117+U110+U103+U96","v":202},{"$f":"SQRT((V138^2)+(V131^2)+(V124^2)+(V117^2)+(V110^2)+(V103^2)+(V96^2))","v":133.62634470792054},{"$f":"W138+W131+W124+W117+W110+W103+W96","v":1222},{"$f":"SQRT((X138^2)+(X131^2)+(X124^2)+(X117^2)+(X110^2)+(X103^2)+(X96^2))","v":272.14150730823843},{"$f":"Y138+Y131+Y124+Y117+Y110+Y103+Y96","v":100},{"$f":"SQRT((Z138^2)+(Z131^2)+(Z124^2)+(Z117^2)+(Z110^2)+(Z103^2)+(Z96^2))","v":87.42997197757758},{"$f":"AA138+AA131+AA124+AA117+AA110+AA103+AA96","v":153},{"$f":"SQRT((AB138^2)+(AB131^2)+(AB124^2)+(AB117^2)+(AB110^2)+(AB103^2)+(AB96^2))","v":82.770767786701114},{"$f":"AC138+AC131+AC124+AC117+AC110+AC103+AC96","v":552},{"$f":"SQRT((AD138^2)+(AD131^2)+(AD124^2)+(AD117^2)+(AD110^2)+(AD103^2)+(AD96^2))","v":228.77936969928035},{"$f":"AE138+AE131+AE124+AE117+AE110+AE103+AE96","v":1194},{"$f":"SQRT((AF138^2)+(AF131^2)+(AF124^2)+(AF117^2)+(AF110^2)+(AF103^2)+(AF96^2))","v":221.41364004956876},{"$f":"AG138+AG131+AG124+AG117+AG110+AG103+AG96","v":50},{"$f":"SQRT((AH138^2)+(AH131^2)+(AH124^2)+(AH117^2)+(AH110^2)+(AH103^2)+(AH96^2))","v":64.907626670523086},{"$f":"AI138+AI131+AI124+AI117+AI110+AI103+AI96","v":51},{"$f":"SQRT((AJ138^2)+(AJ131^2)+(AJ124^2)+(AJ117^2)+(AJ110^2)+(AJ103^2)+(AJ96^2))","v":58.719673023612792},{"$f":"AK138+AK131+AK124+AK117+AK110+AK103+AK96","v":124},{"$f":"SQRT((AL138^2)+(AL131^2)+(AL124^2)+(AL117^2)+(AL110^2)+(AL103^2)+(AL96^2))","v":128.77888025604199},{"$f":"AM138+AM131+AM124+AM117+AM110+AM103+AM96","v":868},{"$f":"SQRT((AN138^2)+(AN131^2)+(AN124^2)+(AN117^2)+(AN110^2)+(AN103^2)+(AN96^2))","v":210.29740844813091},{"$f":"AO138+AO131+AO124+AO117+AO110+AO103+AO96","v":24},{"$f":"SQRT((AP138^2)+(AP131^2)+(AP124^2)+(AP117^2)+(AP110^2)+(AP103^2)+(AP96^2))","v":60.497933849016697},{"$f":"AQ138+AQ131+AQ124+AQ117+AQ110+AQ103+AQ96","v":22},{"$f":"SQRT((AR138^2)+(AR131^2)+(AR124^2)+(AR117^2)+(AR110^2)+(AR103^2)+(AR96^2))","v":53.563046963368315},{"$f":"AS138+AS131+AS124+AS117+AS110+AS103+AS96","v":32},{"$f":"SQRT((AT138^2)+(AT131^2)+(AT124^2)+(AT117^2)+(AT110^2)+(AT103^2)+(AT96^2))","v":55.108982933819419},{"$f":"AU138+AU131+AU124+AU117+AU110+AU103+AU96","v":1288},{"$f":"SQRT((AV138^2)+(AV131^2)+(AV124^2)+(AV117^2)+(AV110^2)+(AV103^2)+(AV96^2))","v":269.78139298328193},{"$f":"AW138+AW131+AW124+AW117+AW110+AW103+AW96","v":277},{"$f":"SQRT((AX138^2)+(AX131^2)+(AX124^2)+(AX117^2)+(AX110^2)+(AX103^2)+(AX96^2))","v":135.87862230682205},{"$f":"AY138+AY131+AY124+AY117+AY110+AY103+AY96","v":87},{"$f":"SQRT((AZ138^2)+(AZ131^2)+(AZ124^2)+(AZ117^2)+(AZ110^2)+(AZ103^2)+(AZ96^2))","v":71.077422575667441},{"$f":"BA138+BA131+BA124+BA117+BA110+BA103+BA96","v":58},{"$f":"SQRT((BB138^2)+(BB131^2)+(BB124^2)+(BB117^2)+(BB110^2)+(BB103^2)+(BB96^2))","v":78.66384175718855},{"$f":"BC138+BC131+BC124+BC117+BC110+BC103+BC96","v":119},{"$f":"SQRT((BD138^2)+(BD131^2)+(BD124^2)+(BD117^2)+(BD110^2)+(BD103^2)+(BD96^2))","v":98.82813364624468},{"$f":"BE138+BE131+BE124+BE117+BE110+BE103+BE96","v":280},{"$f":"SQRT((BF138^2)+(BF131^2)+(BF124^2)+(BF117^2)+(BF110^2)+(BF103^2)+(BF96^2))","v":153.68474224853944},{"$f":"BG138+BG131+BG124+BG117+BG110+BG103+BG96","v":3372},{"$f":"SQRT((BH138^2)+(BH131^2)+(BH124^2)+(BH117^2)+(BH110^2)+(BH103^2)+(BH96^2))","v":398.26749804622523},{"$f":"BI138+BI131+BI124+BI117+BI110+BI103+BI96","v":445},{"$f":"SQRT((BJ138^2)+(BJ131^2)+(BJ124^2)+(BJ117^2)+(BJ110^2)+(BJ103^2)+(BJ96^2))","v":179.3655485314836},{"$f":"BK138+BK131+BK124+BK117+BK110+BK103+BK96","v":169},{"$f":"SQRT((BL138^2)+(BL131^2)+(BL124^2)+(BL117^2)+(BL110^2)+(BL103^2)+(BL96^2))","v":130.01153794952199},{"$f":"BM138+BM131+BM124+BM117+BM110+BM103+BM96","v":1399},{"$f":"SQRT((BN138^2)+(BN131^2)+(BN124^2)+(BN117^2)+(BN110^2)+(BN103^2)+(BN96^2))","v":300.37975963769594},{"$f":"BO138+BO131+BO124+BO117+BO110+BO103+BO96","v":86},{"$f":"SQRT((BP138^2)+(BP131^2)+(BP124^2)+(BP117^2)+(BP110^2)+(BP103^2)+(BP96^2))","v":96.389833488807312},{"$f":"BQ138+BQ131+BQ124+BQ117+BQ110+BQ103+BQ96","v":744},{"$f":"SQRT((BR138^2)+(BR131^2)+(BR124^2)+(BR117^2)+(BR110^2)+(BR103^2)+(BR96^2))","v":201.43981731524678},{"$f":"BS138+BS131+BS124+BS117+BS110+BS103+BS96","v":26},{"$f":"SQRT((BT138^2)+(BT131^2)+(BT124^2)+(BT117^2)+(BT110^2)+(BT103^2)+(BT96^2))","v":53.478967828483754},{"$f":"BU138+BU131+BU124+BU117+BU110+BU103+BU96","v":216},{"$f":"SQRT((BV138^2)+(BV131^2)+(BV124^2)+(BV117^2)+(BV110^2)+(BV103^2)+(BV96^2))","v":129.39088066784305},{"$f":"BW138+BW131+BW124+BW117+BW110+BW103+BW96","v":160},{"$f":"SQRT((BX138^2)+(BX131^2)+(BX124^2)+(BX117^2)+(BX110^2)+(BX103^2)+(BX96^2))","v":125.61050911448453}]
[null,"35.0 percent or more",{"$f":"C139+C132+C125+C118+C111+C104+C97","v":85},{"$f":"SQRT((D139^2)+(D132^2)+(D125^2)+(D118^2)+(D111^2)+(D104^2)+(D97^2))","v":112.98229949863827},{"$f":"E139+E132+E125+E118+E111+E104+E97","v":47},{"$f":"SQRT((F139^2)+(F132^2)+(F125^2)+(F118^2)+(F111^2)+(F104^2)+(F97^2))","v":78.593892892514233},{"$f":"G139+G132+G125+G118+G111+G104+G97","v":43},{"$f":"SQRT((H139^2)+(H132^2)+(H125^2)+(H118^2)+(H111^2)+(H104^2)+(H97^2))","v":72.304909930100877},{"$f":"I139+I132+I125+I118+I111+I104+I97","v":55},{"$f":"SQRT((J139^2)+(J132^2)+(J125^2)+(J118^2)+(J111^2)+(J104^2)+(J97^2))","v":71.049278673326441},{"$f":"K139+K132+K125+K118+K111+K104+K97","v":11},{"$f":"SQRT((L139^2)+(L132^2)+(L125^2)+(L118^2)+(L111^2)+(L104^2)+(L97^2))","v":74.033776075518389},{"$f":"M139+M132+M125+M118+M111+M104+M97","v":108},{"$f":"SQRT((N139^2)+(N132^2)+(N125^2)+(N118^2)+(N111^2)+(N104^2)+(N97^2))","v":100.33444074693395},{"$f":"O139+O132+O125+O118+O111+O104+O97","v":65},{"$f":"SQRT((P139^2)+(P132^2)+(P125^2)+(P118^2)+(P111^2)+(P104^2)+(P97^2))","v":64.784257346982073},{"$f":"Q139+Q132+Q125+Q118+Q111+Q104+Q97","v":1598},{"$f":"SQRT((R139^2)+(R132^2)+(R125^2)+(R118^2)+(R111^2)+(R104^2)+(R97^2))","v":340.3424745752431},{"$f":"S139+S132+S125+S118+S111+S104+S97","v":14},{"$f":"SQRT((T139^2)+(T132^2)+(T125^2)+(T118^2)+(T111^2)+(T104^2)+(T97^2))","v":48.703182647543684},{"$f":"U139+U132+U125+U118+U111+U104+U97","v":170},{"$f":"SQRT((V139^2)+(V132^2)+(V125^2)+(V118^2)+(V111^2)+(V104^2)+(V97^2))","v":126.84636376341263},{"$f":"W139+W132+W125+W118+W111+W104+W97","v":683},{"$f":"SQRT((X139^2)+(X132^2)+(X125^2)+(X118^2)+(X111^2)+(X104^2)+(X97^2))","v":185.87361297397757},{"$f":"Y139+Y132+Y125+Y118+Y111+Y104+Y97","v":18},{"$f":"SQRT((Z139^2)+(Z132^2)+(Z125^2)+(Z118^2)+(Z111^2)+(Z104^2)+(Z97^2))","v":52.153619241621193},{"$f":"AA139+AA132+AA125+AA118+AA111+AA104+AA97","v":86},{"$f":"SQRT((AB139^2)+(AB132^2)+(AB125^2)+(AB118^2)+(AB111^2)+(AB104^2)+(AB97^2))","v":75.279479275563531},{"$f":"AC139+AC132+AC125+AC118+AC111+AC104+AC97","v":166},{"$f":"SQRT((AD139^2)+(AD132^2)+(AD125^2)+(AD118^2)+(AD111^2)+(AD104^2)+(AD97^2))","v":130.04230081015947},{"$f":"AE139+AE132+AE125+AE118+AE111+AE104+AE97","v":437},{"$f":"SQRT((AF139^2)+(AF132^2)+(AF125^2)+(AF118^2)+(AF111^2)+(AF104^2)+(AF97^2))","v":141.99295757184581},{"$f":"AG139+AG132+AG125+AG118+AG111+AG104+AG97","v":11},{"$f":"SQRT((AH139^2)+(AH132^2)+(AH125^2)+(AH118^2)+(AH111^2)+(AH104^2)+(AH97^2))","v":49.28488612140643},{"$f":"AI139+AI132+AI125+AI118+AI111+AI104+AI97","v":15},{"$f":"SQRT((AJ139^2)+(AJ132^2)+(AJ125^2)+(AJ118^2)+(AJ111^2)+(AJ104^2)+(AJ97^2))","v":46.561786907291264},{"$f":"AK139+AK132+AK125+AK118+AK111+AK104+AK97","v":237},{"$f":"SQRT((AL139^2)+(AL132^2)+(AL125^2)+(AL118^2)+(AL111^2)+(AL104^2)+(AL97^2))","v":170.33496411482875},{"$f":"AM139+AM132+AM125+AM118+AM111+AM104+AM97","v":369},{"$f":"SQRT((AN139^2)+(AN132^2)+(AN125^2)+(AN118^2)+(AN111^2)+(AN104^2)+(AN97^2))","v":157.28636304524306},{"$f":"AO139+AO132+AO125+AO118+AO111+AO104+AO97","v":21},{"$f":"SQRT((AP139^2)+(AP132^2)+(AP125^2)+(AP118^2)+(AP111^2)+(AP104^2)+(AP97^2))","v":53.037722424704477},{"$f":"AQ139+AQ132+AQ125+AQ118+AQ111+AQ104+AQ97","v":15},{"$f":"SQRT((AR139^2)+(AR132^2)+(AR125^2)+(AR118^2)+(AR111^2)+(AR104^2)+(AR97^2))","v":47.138094997570704},{"$f":"AS139+AS132+AS125+AS118+AS111+AS104+AS97","v":9},{"$f":"SQRT((AT139^2)+(AT132^2)+(AT125^2)+(AT118^2)+(AT111^2)+(AT104^2)+(AT97^2))","v":47.486840282335066},{"$f":"AU139+AU132+AU125+AU118+AU111+AU104+AU97","v":603},{"$f":"SQRT((AV139^2)+(AV132^2)+(AV125^2)+(AV118^2)+(AV111^2)+(AV104^2)+(AV97^2))","v":182.88247592374728},{"$f":"AW139+AW132+AW125+AW118+AW111+AW104+AW97","v":78},{"$f":"SQRT((AX139^2)+(AX132^2)+(AX125^2)+(AX118^2)+(AX111^2)+(AX104^2)+(AX97^2))","v":70.448562795844168},{"$f":"AY139+AY132+AY125+AY118+AY111+AY104+AY97","v":81},{"$f":"SQRT((AZ139^2)+(AZ132^2)+(AZ125^2)+(AZ118^2)+(AZ111^2)+(AZ104^2)+(AZ97^2))","v":64.838260309789305},{"$f":"BA139+BA132+BA125+BA118+BA111+BA104+BA97","v":83},{"$f":"SQRT((BB139^2)+(BB132^2)+(BB125^2)+(BB118^2)+(BB111^2)+(BB104^2)+(BB97^2))","v":61.441028637222537},{"$f":"BC139+BC132+BC125+BC118+BC111+BC104+BC97","v":14},{"$f":"SQRT((BD139^2)+(BD132^2)+(BD125^2)+(BD118^2)+(BD111^2)+(BD104^2)+(BD97^2))","v":74.572112750008628},{"$f":"BE139+BE132+BE125+BE118+BE111+BE104+BE97","v":216},{"$f":"SQRT((BF139^2)+(BF132^2)+(BF125^2)+(BF118^2)+(BF111^2)+(BF104^2)+(BF97^2))","v":172.04359912533798},{"$f":"BG139+BG132+BG125+BG118+BG111+BG104+BG97","v":1279},{"$f":"SQRT((BH139^2)+(BH132^2)+(BH125^2)+(BH118^2)+(BH111^2)+(BH104^2)+(BH97^2))","v":260.44001228689882},{"$f":"BI139+BI132+BI125+BI118+BI111+BI104+BI97","v":437},{"$f":"SQRT((BJ139^2)+(BJ132^2)+(BJ125^2)+(BJ118^2)+(BJ111^2)+(BJ104^2)+(BJ97^2))","v":167.83622970026465},{"$f":"BK139+BK132+BK125+BK118+BK111+BK104+BK97","v":237},{"$f":"SQRT((BL139^2)+(BL132^2)+(BL125^2)+(BL118^2)+(BL111^2)+(BL104^2)+(BL97^2))","v":174.06320691059327},{"$f":"BM139+BM132+BM125+BM118+BM111+BM104+BM97","v":1010},{"$f":"SQRT((BN139^2)+(BN132^2)+(BN125^2)+(BN118^2)+(BN111^2)+(BN104^2)+(BN97^2))","v":274.15688938999875},{"$f":"BO139+BO132+BO125+BO118+BO111+BO104+BO97","v":91},{"$f":"SQRT((BP139^2)+(BP132^2)+(BP125^2)+(BP118^2)+(BP111^2)+(BP104^2)+(BP97^2))","v":122.32742946698421},{"$f":"BQ139+BQ132+BQ125+BQ118+BQ111+BQ104+BQ97","v":394},{"$f":"SQRT((BR139^2)+(BR132^2)+(BR125^2)+(BR118^2)+(BR111^2)+(BR104^2)+(BR97^2))","v":134.60683489332925},{"$f":"BS139+BS132+BS125+BS118+BS111+BS104+BS97","v":0},{"$f":"SQRT((BT139^2)+(BT132^2)+(BT125^2)+(BT118^2)+(BT111^2)+(BT104^2)+(BT97^2))","v":50.408332644514239},{"$f":"BU139+BU132+BU125+BU118+BU111+BU104+BU97","v":66},{"$f":"SQRT((BV139^2)+(BV132^2)+(BV125^2)+(BV118^2)+(BV111^2)+(BV104^2)+(BV97^2))","v":86.377080293327808},{"$f":"BW139+BW132+BW125+BW118+BW111+BW104+BW97","v":44},{"$f":"SQRT((BX139^2)+(BX132^2)+(BX125^2)+(BX118^2)+(BX111^2)+(BX104^2)+(BX97^2))","v":87.738247076175398}]
[null,"50.0 percent or more",{"$f":"C140+C133+C126+C119+C112+C105+C98","v":32},{"$f":"SQRT((D140^2)+(D133^2)+(D126^2)+(D119^2)+(D112^2)+(D105^2)+(D98^2))","v":50.47771785649585},{"$f":"E140+E133+E126+E119+E112+E105+E98","v":21},{"$f":"SQRT((F140^2)+(F133^2)+(F126^2)+(F119^2)+(F112^2)+(F105^2)+(F98^2))","v":50.596442562694072},{"$f":"G140+G133+G126+G119+G112+G105+G98","v":0},{"$f":"SQRT((H140^2)+(H133^2)+(H126^2)+(H119^2)+(H112^2)+(H105^2)+(H98^2))","v":29.103264421710495},{"$f":"I140+I133+I126+I119+I112+I105+I98","v":55},{"$f":"SQRT((J140^2)+(J133^2)+(J126^2)+(J119^2)+(J112^2)+(J105^2)+(J98^2))","v":57.913728942281033},{"$f":"K140+K133+K126+K119+K112+K105+K98","v":0},{"$f":"SQRT((L140^2)+(L133^2)+(L126^2)+(L119^2)+(L112^2)+(L105^2)+(L98^2))","v":42.332020977033451},{"$f":"M140+M133+M126+M119+M112+M105+M98","v":43},{"$f":"SQRT((N140^2)+(N133^2)+(N126^2)+(N119^2)+(N112^2)+(N105^2)+(N98^2))","v":58.566201857385288},{"$f":"O140+O133+O126+O119+O112+O105+O98","v":6},{"$f":"SQRT((P140^2)+(P133^2)+(P126^2)+(P119^2)+(P112^2)+(P105^2)+(P98^2))","v":28.740215726399828},{"$f":"Q140+Q133+Q126+Q119+Q112+Q105+Q98","v":1041},{"$f":"SQRT((R140^2)+(R133^2)+(R126^2)+(R119^2)+(R112^2)+(R105^2)+(R98^2))","v":283.65471968574752},{"$f":"S140+S133+S126+S119+S112+S105+S98","v":5},{"$f":"SQRT((T140^2)+(T133^2)+(T126^2)+(T119^2)+(T112^2)+(T105^2)+(T98^2))","v":28.407745422683583},{"$f":"U140+U133+U126+U119+U112+U105+U98","v":118},{"$f":"SQRT((V140^2)+(V133^2)+(V126^2)+(V119^2)+(V112^2)+(V105^2)+(V98^2))","v":102.64501936285072},{"$f":"W140+W133+W126+W119+W112+W105+W98","v":424},{"$f":"SQRT((X140^2)+(X133^2)+(X126^2)+(X119^2)+(X112^2)+(X105^2)+(X98^2))","v":135.79027947537335},{"$f":"Y140+Y133+Y126+Y119+Y112+Y105+Y98","v":8},{"$f":"SQRT((Z140^2)+(Z133^2)+(Z126^2)+(Z119^2)+(Z112^2)+(Z105^2)+(Z98^2))","v":30.364452901377952},{"$f":"AA140+AA133+AA126+AA119+AA112+AA105+AA98","v":66},{"$f":"SQRT((AB140^2)+(AB133^2)+(AB126^2)+(AB119^2)+(AB112^2)+(AB105^2)+(AB98^2))","v":61.35959582656978},{"$f":"AC140+AC133+AC126+AC119+AC112+AC105+AC98","v":118},{"$f":"SQRT((AD140^2)+(AD133^2)+(AD126^2)+(AD119^2)+(AD112^2)+(AD105^2)+(AD98^2))","v":110.33585092797354},{"$f":"AE140+AE133+AE126+AE119+AE112+AE105+AE98","v":225},{"$f":"SQRT((AF140^2)+(AF133^2)+(AF126^2)+(AF119^2)+(AF112^2)+(AF105^2)+(AF98^2))","v":100.01499887516871},{"$f":"AG140+AG133+AG126+AG119+AG112+AG105+AG98","v":5},{"$f":"SQRT((AH140^2)+(AH133^2)+(AH126^2)+(AH119^2)+(AH112^2)+(AH105^2)+(AH98^2))","v":27.838821814150108},{"$f":"AI140+AI133+AI126+AI119+AI112+AI105+AI98","v":9},{"$f":"SQRT((AJ140^2)+(AJ133^2)+(AJ126^2)+(AJ119^2)+(AJ112^2)+(AJ105^2)+(AJ98^2))","v":25.80697580112788},{"$f":"AK140+AK133+AK126+AK119+AK112+AK105+AK98","v":162},{"$f":"SQRT((AL140^2)+(AL133^2)+(AL126^2)+(AL119^2)+(AL112^2)+(AL105^2)+(AL98^2))","v":146.07874588727822},{"$f":"AM140+AM133+AM126+AM119+AM112+AM105+AM98","v":182},{"$f":"SQRT((AN140^2)+(AN133^2)+(AN126^2)+(AN119^2)+(AN112^2)+(AN105^2)+(AN98^2))","v":97.718984849413985},{"$f":"AO140+AO133+AO126+AO119+AO112+AO105+AO98","v":11},{"$f":"SQRT((AP140^2)+(AP133^2)+(AP126^2)+(AP119^2)+(AP112^2)+(AP105^2)+(AP98^2))","v":31.859064644147981},{"$f":"AQ140+AQ133+AQ126+AQ119+AQ112+AQ105+AQ98","v":8},{"$f":"SQRT((AR140^2)+(AR133^2)+(AR126^2)+(AR119^2)+(AR112^2)+(AR105^2)+(AR98^2))","v":26.267851073127396},{"$f":"AS140+AS133+AS126+AS119+AS112+AS105+AS98","v":9},{"$f":"SQRT((AT140^2)+(AT133^2)+(AT126^2)+(AT119^2)+(AT112^2)+(AT105^2)+(AT98^2))","v":23.685438564654021},{"$f":"AU140+AU133+AU126+AU119+AU112+AU105+AU98","v":294},{"$f":"SQRT((AV140^2)+(AV133^2)+(AV126^2)+(AV119^2)+(AV112^2)+(AV105^2)+(AV98^2))","v":138.28231991111517},{"$f":"AW140+AW133+AW126+AW119+AW112+AW105+AW98","v":61},{"$f":"SQRT((AX140^2)+(AX133^2)+(AX126^2)+(AX119^2)+(AX112^2)+(AX105^2)+(AX98^2))","v":55.686623169303417},{"$f":"AY140+AY133+AY126+AY119+AY112+AY105+AY98","v":16},{"$f":"SQRT((AZ140^2)+(AZ133^2)+(AZ126^2)+(AZ119^2)+(AZ112^2)+(AZ105^2)+(AZ98^2))","v":30.740852297878796},{"$f":"BA140+BA133+BA126+BA119+BA112+BA105+BA98","v":44},{"$f":"SQRT((BB140^2)+(BB133^2)+(BB126^2)+(BB119^2)+(BB112^2)+(BB105^2)+(BB98^2))","v":40.174618853201331},{"$f":"BC140+BC133+BC126+BC119+BC112+BC105+BC98","v":14},{"$f":"SQRT((BD140^2)+(BD133^2)+(BD126^2)+(BD119^2)+(BD112^2)+(BD105^2)+(BD98^2))","v":44.463468150831417},{"$f":"BE140+BE133+BE126+BE119+BE112+BE105+BE98","v":174},{"$f":"SQRT((BF140^2)+(BF133^2)+(BF126^2)+(BF119^2)+(BF112^2)+(BF105^2)+(BF98^2))","v":148.03715749770393},{"$f":"BG140+BG133+BG126+BG119+BG112+BG105+BG98","v":627},{"$f":"SQRT((BH140^2)+(BH133^2)+(BH126^2)+(BH119^2)+(BH112^2)+(BH105^2)+(BH98^2))","v":177.78076386381065},{"$f":"BI140+BI133+BI126+BI119+BI112+BI105+BI98","v":340},{"$f":"SQRT((BJ140^2)+(BJ133^2)+(BJ126^2)+(BJ119^2)+(BJ112^2)+(BJ105^2)+(BJ98^2))","v":137.89488750493979},{"$f":"BK140+BK133+BK126+BK119+BK112+BK105+BK98","v":118},{"$f":"SQRT((BL140^2)+(BL133^2)+(BL126^2)+(BL119^2)+(BL112^2)+(BL105^2)+(BL98^2))","v":120.5487453273571},{"$f":"BM140+BM133+BM126+BM119+BM112+BM105+BM98","v":663},{"$f":"SQRT((BN140^2)+(BN133^2)+(BN126^2)+(BN119^2)+(BN112^2)+(BN105^2)+(BN98^2))","v":216.47863635934146},{"$f":"BO140+BO133+BO126+BO119+BO112+BO105+BO98","v":0},{"$f":"SQRT((BP140^2)+(BP133^2)+(BP126^2)+(BP119^2)+(BP112^2)+(BP105^2)+(BP98^2))","v":42.332020977033451},{"$f":"BQ140+BQ133+BQ126+BQ119+BQ112+BQ105+BQ98","v":239},{"$f":"SQRT((BR140^2)+(BR133^2)+(BR126^2)+(BR119^2)+(BR112^2)+(BR105^2)+(BR98^2))","v":102.6352765865616},{"$f":"BS140+BS133+BS126+BS119+BS112+BS105+BS98","v":0},{"$f":"SQRT((BT140^2)+(BT133^2)+(BT126^2)+(BT119^2)+(BT112^2)+(BT105^2)+(BT98^2))","v":29.103264421710495},{"$f":"BU140+BU133+BU126+BU119+BU112+BU105+BU98","v":19},{"$f":"SQRT((BV140^2)+(BV133^2)+(BV126^2)+(BV119^2)+(BV112^2)+(BV105^2)+(BV98^2))","v":50.596442562694072},{"$f":"BW140+BW133+BW126+BW119+BW112+BW105+BW98","v":11},{"$f":"SQRT((BX140^2)+(BX133^2)+(BX126^2)+(BX119^2)+(BX112^2)+(BX105^2)+(BX98^2))","v":48.414873747640819}]
[null,"Not Computed",{"$f":"C140+C134+C127+C120+C113+C106+C99","v":0},{"$f":"SQRT((D140^2)+(D134^2)+(D127^2)+(D120^2)+(D113^2)+(D106^2)+(D99^2))","v":42.332020977033451},{"$f":"E140+E134+E127+E120+E113+E106+E99","v":0},{"$f":"SQRT((F140^2)+(F134^2)+(F127^2)+(F120^2)+(F113^2)+(F106^2)+(F99^2))","v":42.332020977033451},{"$f":"G140+G134+G127+G120+G113+G106+G99","v":0},{"$f":"SQRT((H140^2)+(H134^2)+(H127^2)+(H120^2)+(H113^2)+(H106^2)+(H99^2))","v":29.103264421710495},{"$f":"I140+I134+I127+I120+I113+I106+I99","v":20},{"$f":"SQRT((J140^2)+(J134^2)+(J127^2)+(J120^2)+(J113^2)+(J106^2)+(J99^2))","v":40.323690307311907},{"$f":"K140+K134+K127+K120+K113+K106+K99","v":0},{"$f":"SQRT((L140^2)+(L134^2)+(L127^2)+(L120^2)+(L113^2)+(L106^2)+(L99^2))","v":42.332020977033451},{"$f":"M140+M134+M127+M120+M113+M106+M99","v":0},{"$f":"SQRT((N140^2)+(N134^2)+(N127^2)+(N120^2)+(N113^2)+(N106^2)+(N99^2))","v":29.103264421710495},{"$f":"O140+O134+O127+O120+O113+O106+O99","v":21},{"$f":"SQRT((P140^2)+(P134^2)+(P127^2)+(P120^2)+(P113^2)+(P106^2)+(P99^2))","v":33.136083051561783},{"$f":"Q140+Q134+Q127+Q120+Q113+Q106+Q99","v":57},{"$f":"SQRT((R140^2)+(R134^2)+(R127^2)+(R120^2)+(R113^2)+(R106^2)+(R99^2))","v":62.473994589749104},{"$f":"S140+S134+S127+S120+S113+S106+S99","v":19},{"$f":"SQRT((T140^2)+(T134^2)+(T127^2)+(T120^2)+(T113^2)+(T106^2)+(T99^2))","v":30.413812651491099},{"$f":"U140+U134+U127+U120+U113+U106+U99","v":20},{"$f":"SQRT((V140^2)+(V134^2)+(V127^2)+(V120^2)+(V113^2)+(V106^2)+(V99^2))","v":49.969990994595946},{"$f":"W140+W134+W127+W120+W113+W106+W99","v":135},{"$f":"SQRT((X140^2)+(X134^2)+(X127^2)+(X120^2)+(X113^2)+(X106^2)+(X99^2))","v":80.168572395920833},{"$f":"Y140+Y134+Y127+Y120+Y113+Y106+Y99","v":32},{"$f":"SQRT((Z140^2)+(Z134^2)+(Z127^2)+(Z120^2)+(Z113^2)+(Z106^2)+(Z99^2))","v":37.269290307168447},{"$f":"AA140+AA134+AA127+AA120+AA113+AA106+AA99","v":11},{"$f":"SQRT((AB140^2)+(AB134^2)+(AB127^2)+(AB120^2)+(AB113^2)+(AB106^2)+(AB99^2))","v":31.336879231984796},{"$f":"AC140+AC134+AC127+AC120+AC113+AC106+AC99","v":53},{"$f":"SQRT((AD140^2)+(AD134^2)+(AD127^2)+(AD120^2)+(AD113^2)+(AD106^2)+(AD99^2))","v":80.224684480526321},{"$f":"AE140+AE134+AE127+AE120+AE113+AE106+AE99","v":63},{"$f":"SQRT((AF140^2)+(AF134^2)+(AF127^2)+(AF120^2)+(AF113^2)+(AF106^2)+(AF99^2))","v":54.120236510939236},{"$f":"AG140+AG134+AG127+AG120+AG113+AG106+AG99","v":20},{"$f":"SQRT((AH140^2)+(AH134^2)+(AH127^2)+(AH120^2)+(AH113^2)+(AH106^2)+(AH99^2))","v":32.969683043669072},{"$f":"AI140+AI134+AI127+AI120+AI113+AI106+AI99","v":16},{"$f":"SQRT((AJ140^2)+(AJ134^2)+(AJ127^2)+(AJ120^2)+(AJ113^2)+(AJ106^2)+(AJ99^2))","v":24.79919353527449},{"$f":"AK140+AK134+AK127+AK120+AK113+AK106+AK99","v":19},{"$f":"SQRT((AL140^2)+(AL134^2)+(AL127^2)+(AL120^2)+(AL113^2)+(AL106^2)+(AL99^2))","v":49.355850717012267},{"$f":"AM140+AM134+AM127+AM120+AM113+AM106+AM99","v":106},{"$f":"SQRT((AN140^2)+(AN134^2)+(AN127^2)+(AN120^2)+(AN113^2)+(AN106^2)+(AN99^2))","v":74.986665481270734},{"$f":"AO140+AO134+AO127+AO120+AO113+AO106+AO99","v":0},{"$f":"SQRT((AP140^2)+(AP134^2)+(AP127^2)+(AP120^2)+(AP113^2)+(AP106^2)+(AP99^2))","v":29.103264421710495},{"$f":"AQ140+AQ134+AQ127+AQ120+AQ113+AQ106+AQ99","v":3},{"$f":"SQRT((AR140^2)+(AR134^2)+(AR127^2)+(AR120^2)+(AR113^2)+(AR106^2)+(AR99^2))","v":27.404379212089442},{"$f":"AS140+AS134+AS127+AS120+AS113+AS106+AS99","v":4},{"$f":"SQRT((AT140^2)+(AT134^2)+(AT127^2)+(AT120^2)+(AT113^2)+(AT106^2)+(AT99^2))","v":25.099800796022265},{"$f":"AU140+AU134+AU127+AU120+AU113+AU106+AU99","v":23},{"$f":"SQRT((AV140^2)+(AV134^2)+(AV127^2)+(AV120^2)+(AV113^2)+(AV106^2)+(AV99^2))","v":45.265881191025102},{"$f":"AW140+AW134+AW127+AW120+AW113+AW106+AW99","v":11},{"$f":"SQRT((AX140^2)+(AX134^2)+(AX127^2)+(AX120^2)+(AX113^2)+(AX106^2)+(AX99^2))","v":31.336879231984796},{"$f":"AY140+AY134+AY127+AY120+AY113+AY106+AY99","v":40},{"$f":"SQRT((AZ140^2)+(AZ134^2)+(AZ127^2)+(AZ120^2)+(AZ113^2)+(AZ106^2)+(AZ99^2))","v":36.728735344413913},{"$f":"BA140+BA134+BA127+BA120+BA113+BA106+BA99","v":0},{"$f":"SQRT((BB140^2)+(BB134^2)+(BB127^2)+(BB120^2)+(BB113^2)+(BB106^2)+(BB99^2))","v":29.103264421710495},{"$f":"BC140+BC134+BC127+BC120+BC113+BC106+BC99","v":0},{"$f":"SQRT((BD140^2)+(BD134^2)+(BD127^2)+(BD120^2)+(BD113^2)+(BD106^2)+(BD99^2))","v":42.332020977033451},{"$f":"BE140+BE134+BE127+BE120+BE113+BE106+BE99","v":75},{"$f":"SQRT((BF140^2)+(BF134^2)+(BF127^2)+(BF120^2)+(BF113^2)+(BF106^2)+(BF99^2))","v":98.412397592986224},{"$f":"BG140+BG134+BG127+BG120+BG113+BG106+BG99","v":175},{"$f":"SQRT((BH140^2)+(BH134^2)+(BH127^2)+(BH120^2)+(BH113^2)+(BH106^2)+(BH99^2))","v":89.649316784903604},{"$f":"BI140+BI134+BI127+BI120+BI113+BI106+BI99","v":6},{"$f":"SQRT((BJ140^2)+(BJ134^2)+(BJ127^2)+(BJ120^2)+(BJ113^2)+(BJ106^2)+(BJ99^2))","v":45.442271070007052},{"$f":"BK140+BK134+BK127+BK120+BK113+BK106+BK99","v":0},{"$f":"SQRT((BL140^2)+(BL134^2)+(BL127^2)+(BL120^2)+(BL113^2)+(BL106^2)+(BL99^2))","v":42.332020977033451},{"$f":"BM140+BM134+BM127+BM120+BM113+BM106+BM99","v":101},{"$f":"SQRT((BN140^2)+(BN134^2)+(BN127^2)+(BN120^2)+(BN113^2)+(BN106^2)+(BN99^2))","v":93.680307429042955},{"$f":"BO140+BO134+BO127+BO120+BO113+BO106+BO99","v":27},{"$f":"SQRT((BP140^2)+(BP134^2)+(BP127^2)+(BP120^2)+(BP113^2)+(BP106^2)+(BP99^2))","v":57.445626465380286},{"$f":"BQ140+BQ134+BQ127+BQ120+BQ113+BQ106+BQ99","v":73},{"$f":"SQRT((BR140^2)+(BR134^2)+(BR127^2)+(BR120^2)+(BR113^2)+(BR106^2)+(BR99^2))","v":54.203320931470607},{"$f":"BS140+BS134+BS127+BS120+BS113+BS106+BS99","v":12},{"$f":"SQRT((BT140^2)+(BT134^2)+(BT127^2)+(BT120^2)+(BT113^2)+(BT106^2)+(BT99^2))","v":28.26658805020514},{"$f":"BU140+BU134+BU127+BU120+BU113+BU106+BU99","v":48},{"$f":"SQRT((BV140^2)+(BV134^2)+(BV127^2)+(BV120^2)+(BV113^2)+(BV106^2)+(BV99^2))","v":86.400231481171389},{"$f":"BW140+BW134+BW127+BW120+BW113+BW106+BW99","v":0},{"$f":"SQRT((BX140^2)+(BX134^2)+(BX127^2)+(BX120^2)+(BX113^2)+(BX106^2)+(BX99^2))","v":47.623523599162631}]
[]
[]
[]
[]
[]
[]
[]
[]
[]
[]
[]
[null,"B25074. HOUSEHOLD INCOME BY GROSS RENT AS A PERCENTAGE OF HOUSEHOLD INCOME IN THE PAST 12 MONTHS"]
[null,"Universe:  RENTER-OCCUPIED HOUSING UNITS"]
[null,"Data Set: 2010-2014 American Community Survey 5-Year Estimates",null,null,null,null,null,null,"Income in 2014 Inflation Adjusted Dollars"]
[]
[null,null,"Atkinson",null,"Auburn",null,"Brentwood",null,"Candia",null,"Chester",null,"Danville",null,"Deerfield",null,"Derry",null,"East Kingston",null,"Epping",null,"Exeter",null,"Fremont",null,"Greenland",null,"Hampstead",null,"Hampton",null,"Hampton Falls",null,"Kensington",null,"Kingston",null,"Londonderry",null,"New Castle",null,"Newfields",null,"Newington",null,"Newmarket",null,"Newton",null,"North Hampton",null,"Northwood",null,"Nottingham",null,"Plaistow",null,"Portsmouth",null,"Raymond",null,"Rye",null,"Salem",null,"Sandown",null,"Seabrook",null,"South Hampton",null,"Stratham",null,"Windham"]
[null," ","Estimate","Margin Of Error","Estimate","Margin Of Error","Estimate","Margin Of Error","Estimate","Margin Of Error","Estimate","Margin Of Error","Estimate","Margin Of Error","Estimate","Margin Of Error","Estimate","Margin Of Error","Estimate","Margin Of Error","Estimate","Margin Of Error","Estimate","Margin Of Error","Estimate","Margin Of Error","Estimate","Margin Of Error","Estimate","Margin Of Error","Estimate","Margin Of Error","Estimate","Margin Of Error","Estimate","Margin Of Error","Estimate","Margin Of Error","Estimate","Margin Of Error","Estimate","Margin Of Error","Estimate","Margin Of Error","Estimate","Margin Of Error","Estimate","Margin Of Error","Estimate","Margin Of Error","Estimate","Margin Of Error","Estimate","Margin Of Error","Estimate","Margin Of Error","Estimate","Margin Of Error","Estimate","Margin Of Error","Estimate","Margin Of Error","Estimate","Margin Of Error","Estimate","Margin Of Error","Estimate","Margin Of Error","Estimate","Margin Of Error","Estimate","Margin Of Error","Estimate","Margin Of Error","Estimate","Margin Of Error"]
[null,"Total:",202,108,170,69,252,69,39,39,125,71,197,68,109,71,4690,381,78,39,368,168,1986,226,192,77,191,85,689,159,1924,278,126,46,54,22,375,142,1159,205,104,45,51,32,92,33,1780,197,360,105,154,72,216,99,76,39,668,179,4873,295,910,166,365,177,2642,297,174,100,1418,222,52,26,197,101,376,161]
[null,"Less than $10,000:",40,47,15,22,0,11,0,11,11,20,7,10,0,11,280,150,8,11,0,15,190,95,9,15,7,11,0,15,64,37,0,11,0,11,51,66,32,28,3,5,0,11,7,7,246,101,80,83,7,12,0,11,0,11,42,66,271,109,49,49,0,15,108,82,0,15,77,60,4,5,0,15,11,18]
[null,"Less than 20.0 percent",0,15,0,15,0,11,0,11,0,11,0,11,0,11,29,44,0,11,0,15,13,22,0,11,0,11,0,15,0,17,0,11,0,11,0,15,0,20,0,11,0,11,0,11,41,67,0,11,0,11,0,11,0,11,0,15,0,20,0,17,0,15,18,28,0,15,28,46,0,11,0,15,0,17]
[null,"20.0 to 24.9 percent",0,15,0,15,0,11,0,11,0,11,0,11,0,11,0,23,0,11,0,15,0,17,0,11,0,11,0,15,0,17,0,11,0,11,0,15,0,20,0,11,0,11,0,11,0,15,0,11,0,11,0,11,0,11,0,15,0,20,0,17,0,15,0,20,0,15,0,15,0,11,0,15,0,17]
[null,"25.0 to 29.9 percent",0,15,0,15,0,11,0,11,0,11,0,11,0,11,12,19,0,11,0,15,0,17,0,11,0,11,0,15,0,17,0,11,0,11,12,20,0,20,0,11,0,11,0,11,0,15,0,11,0,11,0,11,0,11,0,15,39,38,0,17,0,15,0,20,0,15,0,15,0,11,0,15,0,17]
[null,"30.0 to 34.9 percent",0,15,0,15,0,11,0,11,0,11,0,11,0,11,0,23,0,11,0,15,0,17,0,11,0,11,0,15,0,17,0,11,0,11,0,15,0,20,0,11,0,11,0,11,12,19,0,11,0,11,0,11,0,11,0,15,8,13,0,17,0,15,0,20,0,15,0,15,0,11,0,15,0,17]
[null,"35.0 to 39.9 percent",20,33,0,15,0,11,0,11,0,11,0,11,0,11,0,23,0,11,0,15,0,17,0,11,0,11,0,15,0,17,0,11,0,11,39,63,0,20,0,11,0,11,0,11,0,15,0,11,0,11,0,11,0,11,0,15,0,20,0,17,0,15,0,20,0,15,14,23,0,11,0,15,0,17]
[null,"40.0 to 49.9 percent",20,31,0,15,0,11,0,11,0,11,0,11,0,11,0,23,0,11,0,15,0,17,0,11,0,11,0,15,0,17,0,11,0,11,0,15,0,20,0,11,0,11,0,11,0,15,0,11,0,11,0,11,0,11,0,15,17,26,0,17,0,15,0,20,0,15,0,15,0,11,0,15,0,17]
[null,"50.0 percent or more",0,15,15,22,0,11,0,11,11,20,7,10,0,11,187,125,8,11,0,15,150,83,9,15,7,11,0,15,48,27,0,11,0,11,0,15,29,28,0,11,0,11,0,11,124,74,80,83,7,12,0,11,0,11,0,15,167,95,37,45,0,15,82,76,0,15,19,25,0,11,0,15,11,18]
[null,"Not computed",0,15,0,15,0,11,0,11,0,11,0,11,0,11,52,74,0,11,0,15,27,43,0,11,0,11,0,15,16,25,0,11,0,11,0,15,3,6,3,5,0,11,7,7,69,59,0,11,0,11,0,11,0,11,42,66,40,38,12,18,0,15,8,13,0,15,16,26,4,5,0,15,0,17]
[null,"$10,000 to $19,999:",24,39,9,13,46,33,0,11,8,14,28,38,0,11,817,209,8,11,88,68,245,101,0,11,0,11,130,85,400,135,0,11,8,7,27,30,97,68,0,11,0,11,2,3,239,149,26,20,19,22,7,11,0,11,55,71,585,164,103,78,53,72,324,115,45,56,241,114,13,15,0,15,15,24]
[null,"Less than 20.0 percent",24,39,0,15,0,11,0,11,0,11,0,11,0,11,16,26,0,11,0,15,22,35,0,11,0,11,0,15,28,27,0,11,0,11,0,15,0,20,0,11,0,11,0,11,0,15,0,11,0,11,0,11,0,11,0,15,49,79,0,17,0,15,0,20,0,15,0,15,0,11,0,15,0,17]
[null,"20.0 to 24.9 percent",0,15,0,15,0,11,0,11,0,11,0,11,0,11,43,40,8,11,30,43,20,22,0,11,0,11,10,16,4,7,0,11,0,11,0,15,0,20,0,11,0,11,0,11,0,15,0,11,0,11,0,11,0,11,42,69,79,77,9,14,0,15,30,34,0,15,0,15,0,11,0,15,0,17]
[null,"25.0 to 29.9 percent",0,15,0,15,0,11,0,11,0,11,0,11,0,11,75,53,0,11,0,15,7,11,0,11,0,11,19,21,4,7,0,11,0,11,0,15,0,20,0,11,0,11,0,11,57,45,5,9,0,11,0,11,0,11,0,15,46,38,9,15,0,15,16,25,0,15,15,25,0,11,0,15,0,17]
[null,"30.0 to 34.9 percent",0,15,0,15,0,11,0,11,0,11,0,11,0,11,154,109,0,11,0,15,7,12,0,11,0,11,0,15,13,19,0,11,0,11,15,24,0,20,0,11,0,11,0,11,6,10,9,14,0,11,0,11,0,11,0,15,65,45,0,17,0,15,48,76,0,15,71,94,0,11,0,15,15,24]
[null,"35.0 to 39.9 percent",0,15,0,15,0,11,0,11,8,14,0,11,0,11,0,23,0,11,0,15,0,17,0,11,0,11,9,13,0,17,0,11,0,11,0,15,9,15,0,11,0,11,0,11,0,15,0,11,9,14,0,11,0,11,0,15,0,20,0,17,0,15,0,20,0,15,0,15,0,11,0,15,0,17]
[null,"40.0 to 49.9 percent",0,15,0,15,7,11,0,11,0,11,0,11,0,11,16,23,0,11,0,15,26,36,0,11,0,11,15,25,4,7,0,11,0,11,0,15,0,20,0,11,0,11,0,11,0,15,0,11,0,11,0,11,0,11,0,15,17,30,0,17,0,15,57,71,0,15,14,22,0,11,0,15,0,17]
[null,"50.0 percent or more",0,15,9,13,39,31,0,11,0,11,28,38,0,11,513,168,0,11,58,52,148,89,0,11,0,11,77,74,343,132,0,11,8,7,0,15,88,67,0,11,0,11,2,3,168,140,12,14,10,17,7,11,0,11,13,21,281,92,85,76,11,20,161,91,45,56,141,73,9,14,0,15,0,17]
[null,"Not computed",0,15,0,15,0,11,0,11,0,11,0,11,0,11,0,23,0,11,0,15,15,17,0,11,0,11,0,15,4,7,0,11,0,11,12,18,0,20,0,11,0,11,0,11,8,13,0,11,0,11,0,11,0,11,0,15,48,62,0,17,42,69,12,20,0,15,0,15,4,6,0,15,0,17]
[null,"$20,000 to $34,999:",57,87,0,15,91,60,23,32,65,63,13,15,20,23,862,221,6,8,41,35,425,153,14,17,33,35,197,128,397,129,22,32,7,8,62,68,226,96,0,11,12,11,10,9,398,121,32,39,49,50,23,24,21,25,168,112,929,201,160,98,20,33,346,114,38,47,313,179,7,7,26,30,115,132]
[null,"Less than 20.0 percent",0,15,0,15,0,11,0,11,0,11,0,11,0,11,12,17,0,11,0,15,11,16,0,11,0,11,0,15,0,17,0,11,0,11,10,17,0,20,0,11,0,11,0,11,12,18,0,11,0,11,0,11,0,11,25,23,72,59,0,17,0,15,0,20,0,15,43,67,0,11,0,15,0,17]
[null,"20.0 to 24.9 percent",0,15,0,15,0,11,0,11,0,11,0,11,0,11,45,40,0,11,0,15,29,28,0,11,0,11,0,15,10,11,0,11,0,11,12,20,0,20,0,11,0,11,0,11,33,41,0,11,0,11,0,11,0,11,0,15,73,79,0,17,0,15,16,26,0,15,0,15,0,11,0,15,0,17]
[null,"25.0 to 29.9 percent",57,87,0,15,9,14,0,11,0,11,0,11,0,11,42,39,0,11,0,15,22,25,0,11,0,11,56,65,40,33,19,31,3,4,0,15,0,20,0,11,0,11,2,4,76,58,9,15,0,11,12,19,0,11,0,15,41,36,30,37,0,15,15,24,0,15,0,15,0,11,0,15,0,17]
[null,"30.0 to 34.9 percent",0,15,0,15,0,11,11,19,0,11,0,11,0,11,86,94,0,11,11,17,46,50,0,11,0,11,0,15,47,37,0,11,0,11,40,64,0,20,0,11,3,6,5,8,60,46,0,11,0,11,0,11,0,11,34,36,86,62,0,17,0,15,0,20,27,44,95,117,0,11,0,15,0,17]
[null,"35.0 to 39.9 percent",0,15,0,15,0,11,12,18,0,11,0,11,0,11,20,26,0,11,0,15,29,29,8,12,0,11,0,15,0,17,3,6,0,11,0,15,11,18,0,11,0,11,0,11,58,58,0,11,0,11,0,11,13,21,21,31,81,45,29,45,0,15,62,52,0,15,28,31,0,11,0,15,0,17]
[null,"40.0 to 49.9 percent",0,15,0,15,31,47,0,11,6,9,0,11,0,11,222,119,0,11,0,15,121,101,0,11,0,11,122,104,131,94,0,11,0,11,0,15,45,41,0,11,0,11,3,5,80,57,23,37,8,12,0,11,8,13,14,22,207,89,94,82,20,33,93,59,0,15,40,41,0,11,0,15,71,110]
[null,"50.0 percent or more",0,15,0,15,40,45,0,11,59,62,8,12,20,23,401,178,6,8,0,15,123,88,6,12,33,35,19,22,147,67,0,11,4,5,0,15,152,86,0,11,9,9,0,11,60,42,0,11,32,49,0,11,0,11,74,96,336,124,7,12,0,15,149,73,11,19,107,87,4,5,26,30,44,68]
[null,"Not computed",0,15,0,15,11,18,0,11,0,11,5,10,0,11,34,32,0,11,30,32,44,68,0,11,0,11,0,15,22,31,0,11,0,11,0,15,18,28,0,11,0,11,0,11,19,31,0,11,9,14,11,17,0,11,0,15,33,33,0,17,0,15,11,19,0,15,0,15,3,4,0,15,0,17]
[null,"$35,000 to $49,999:",0,15,76,46,40,30,0,11,10,16,74,49,49,53,872,211,10,11,0,15,170,100,30,35,21,22,118,95,328,109,17,27,0,11,90,77,271,127,15,20,8,13,12,10,211,96,148,94,35,54,78,54,28,31,161,113,700,163,152,92,84,96,590,168,38,60,201,98,0,11,51,45,55,68]
[null,"Less than 20.0 percent",0,15,0,15,0,11,0,11,0,11,0,11,0,11,16,27,0,11,0,15,36,43,0,11,11,17,0,15,18,28,0,11,0,11,0,15,40,60,0,11,8,13,0,11,0,15,0,11,0,11,0,11,13,21,0,15,15,24,0,17,0,15,35,37,0,15,9,15,0,11,0,15,0,17]
[null,"20.0 to 24.9 percent",0,15,27,44,0,11,0,11,0,11,19,30,9,15,99,67,0,11,0,15,75,85,0,11,0,11,33,44,15,24,0,11,0,11,30,46,36,52,0,11,0,11,3,5,0,15,0,11,35,54,0,11,0,11,43,68,99,67,15,24,0,15,42,35,0,15,78,72,0,11,26,42,0,17]
[null,"25.0 to 29.9 percent",0,15,38,41,0,11,0,11,0,11,0,11,0,11,258,125,0,11,0,15,0,17,0,11,0,11,26,42,62,43,17,27,0,11,12,20,52,48,0,11,0,11,0,11,89,49,80,74,0,11,30,36,0,11,48,53,121,61,60,68,0,15,165,88,38,60,43,22,0,11,14,20,0,17]
[null,"30.0 to 34.9 percent",0,15,0,15,8,12,0,11,0,11,0,11,9,15,154,86,0,11,0,15,13,16,0,11,0,11,0,15,104,88,0,11,0,11,38,60,10,20,12,20,0,11,3,5,51,57,28,42,0,11,26,43,0,11,13,21,135,67,71,47,0,15,110,77,0,15,25,23,0,11,11,18,15,23]
[null,"35.0 to 39.9 percent",0,15,0,15,7,12,0,11,0,11,18,23,31,49,113,80,0,11,0,15,12,20,0,11,0,11,59,77,0,17,0,11,0,11,0,15,93,79,0,11,0,11,0,11,64,54,40,61,0,11,0,11,0,11,49,73,52,42,0,17,57,87,134,97,0,15,22,35,0,11,0,15,0,17]
[null,"40.0 to 49.9 percent",0,15,0,15,0,11,0,11,0,11,19,17,0,11,143,113,7,10,0,15,12,18,22,34,0,11,0,15,62,76,0,11,0,11,0,15,20,24,0,11,0,11,5,6,7,12,0,11,0,11,9,15,0,11,8,13,247,116,0,17,0,15,62,79,0,15,24,38,0,11,0,15,40,61]
[null,"50.0 percent or more",0,15,11,18,0,11,0,11,10,16,0,11,0,11,78,53,3,5,0,15,8,13,8,12,10,15,0,15,54,45,0,11,0,11,10,17,0,20,3,4,0,11,0,11,0,15,0,11,0,11,13,22,0,11,0,15,21,19,6,15,0,15,42,43,0,15,0,15,0,11,0,15,0,17]
[null,"Not computed",0,15,0,15,25,26,0,11,0,11,18,29,0,11,11,17,0,11,0,15,14,21,0,11,0,11,0,15,13,21,0,11,0,11,0,15,20,26,0,11,0,11,1,3,0,15,0,11,0,11,0,11,15,24,0,15,10,15,0,17,27,41,0,20,0,15,0,15,0,11,0,15,0,17]
[null,"$50,000 to $74,999:",48,56,46,44,21,33,16,26,0,11,36,36,40,47,1040,248,10,11,156,128,321,133,93,65,70,60,109,76,322,116,22,19,17,13,73,74,260,113,25,22,22,22,32,25,400,132,58,65,27,24,86,68,18,19,37,37,1022,195,227,112,69,55,564,163,31,38,249,114,0,11,59,62,53,51]
[null,"Less than 20.0 percent",20,32,36,43,0,11,16,26,0,11,27,33,31,44,258,123,6,9,46,70,42,43,0,11,0,11,19,29,71,71,0,11,2,3,0,15,58,45,0,11,0,11,14,19,69,62,0,11,0,11,38,47,0,11,13,22,226,99,27,34,0,15,135,78,0,15,139,79,0,11,0,15,0,17]
[null,"20.0 to 24.9 percent",0,15,10,15,21,33,0,11,0,11,0,11,0,11,404,164,0,11,83,102,29,36,22,25,41,58,22,34,150,65,5,7,0,11,40,57,93,71,4,8,9,15,5,8,133,91,31,47,11,17,0,11,0,11,18,30,354,166,21,33,0,15,241,99,0,15,46,61,0,11,34,55,0,17]
[null,"25.0 to 29.9 percent",0,15,0,15,0,11,0,11,0,11,0,11,0,11,140,81,0,11,0,15,126,81,26,39,8,12,35,42,24,36,0,11,2,4,33,52,26,26,0,11,0,11,13,15,109,77,27,43,8,13,29,44,0,11,6,14,243,96,137,110,56,51,137,107,31,38,26,30,0,11,0,15,0,17]
[null,"30.0 to 34.9 percent",28,45,0,15,0,11,0,11,0,11,0,11,9,13,137,106,0,11,0,15,73,86,38,39,11,17,0,15,27,25,5,7,0,11,0,15,52,54,13,20,0,11,0,11,77,79,0,11,8,12,0,11,0,11,0,15,119,79,0,17,0,15,0,20,0,15,18,20,0,11,14,24,0,17]
[null,"35.0 to 39.9 percent",0,15,0,15,0,11,0,11,0,11,0,11,0,11,67,70,0,11,0,15,0,17,0,11,0,11,8,14,35,36,0,11,0,11,0,15,31,35,0,11,13,16,0,11,12,18,0,11,0,11,0,11,9,14,0,15,59,41,10,16,13,22,51,77,0,15,0,15,0,11,0,15,16,24]
[null,"40.0 to 49.9 percent",0,15,0,15,0,11,0,11,0,11,0,11,0,11,0,23,4,6,11,16,51,46,0,11,0,11,25,41,0,17,0,11,0,11,0,15,0,20,0,11,0,11,0,11,0,15,0,11,0,11,0,11,0,11,0,15,0,20,10,18,0,15,0,20,0,15,20,31,0,11,0,15,0,17]
[null,"50.0 percent or more",0,15,0,15,0,11,0,11,0,11,0,11,0,11,14,22,0,11,0,15,0,17,7,13,10,14,0,15,0,17,0,11,6,8,0,15,0,20,0,11,0,11,0,11,0,15,0,11,0,11,0,11,0,11,0,15,21,29,0,17,0,15,0,20,0,15,0,15,0,11,11,19,12,20]
[null,"Not computed",0,15,0,15,0,11,0,11,0,11,9,14,0,11,20,25,0,11,16,26,0,17,0,11,0,11,0,15,15,18,12,18,7,9,0,15,0,20,8,13,0,11,0,11,0,15,0,11,0,11,19,22,9,14,0,15,0,20,22,36,0,15,0,20,0,15,0,15,0,11,0,15,25,37]
[null,"$75,000 to $99,999:",18,27,0,15,6,10,0,11,0,11,20,33,0,11,527,169,7,9,13,22,198,97,20,24,38,29,35,47,188,84,29,23,10,8,24,28,144,72,21,21,9,12,20,16,125,75,16,26,8,13,0,11,2,7,162,113,695,178,160,90,21,31,439,173,22,32,147,91,9,8,0,15,45,39]
[null,"Less than 20.0 percent",0,15,0,15,0,11,0,11,0,11,20,33,0,11,205,112,7,9,13,22,102,64,1,12,19,20,35,47,63,41,0,11,0,11,24,28,51,44,9,14,0,11,7,6,81,58,0,11,0,11,0,11,0,11,136,109,348,131,114,79,0,15,271,128,22,32,82,61,4,6,0,15,0,17]
[null,"20.0 to 24.9 percent",0,15,0,15,0,11,0,11,0,11,0,11,0,11,290,138,0,11,0,15,56,78,11,17,0,11,0,15,58,44,26,23,5,5,0,15,37,35,0,11,5,8,8,13,37,42,0,11,0,11,0,11,2,7,12,21,219,114,23,36,0,15,70,59,0,15,65,67,3,4,0,15,15,24]
[null,"25.0 to 29.9 percent",18,27,0,15,6,10,0,11,0,11,0,11,0,11,16,22,0,11,0,15,24,28,8,12,10,15,0,15,33,30,0,11,0,11,0,15,42,48,9,14,4,9,2,4,0,15,16,26,8,13,0,11,0,11,0,15,54,38,11,19,21,31,22,26,0,15,0,15,0,11,0,15,0,17]
[null,"30.0 to 34.9 percent",0,15,0,15,0,11,0,11,0,11,0,11,0,11,16,19,0,11,0,15,0,17,0,11,9,13,0,15,0,17,0,11,0,11,0,15,0,20,0,11,0,11,3,5,7,11,0,11,0,11,0,11,0,11,0,15,74,59,12,19,0,15,7,12,0,15,0,15,2,3,0,15,9,16]
[null,"35.0 to 39.9 percent",0,15,0,15,0,11,0,11,0,11,0,11,0,11,0,23,0,11,0,15,16,26,0,11,0,11,0,15,0,17,0,11,0,11,0,15,0,20,0,11,0,11,0,11,0,15,0,11,0,11,0,11,0,11,0,15,0,20,0,17,0,15,0,20,0,15,0,15,0,11,0,15,0,17]
[null,"40.0 to 49.9 percent",0,15,0,15,0,11,0,11,0,11,0,11,0,11,0,23,0,11,0,15,0,17,0,11,0,11,0,15,0,17,0,11,0,11,0,15,0,20,3,5,0,11,0,11,0,15,0,11,0,11,0,11,0,11,0,15,0,20,0,17,0,15,15,25,0,15,0,15,0,11,0,15,0,17]
[null,"50.0 percent or more",0,15,0,15,0,11,0,11,0,11,0,11,0,11,0,23,0,11,0,15,0,17,0,11,0,11,0,15,0,17,0,11,0,11,0,15,0,20,0,11,0,11,0,11,0,15,0,11,0,11,0,11,0,11,0,15,0,20,0,17,0,15,0,20,0,15,0,15,0,11,0,15,0,17]
[null,"Not computed",0,15,0,15,0,11,0,11,0,11,0,11,0,11,0,23,0,11,0,15,0,17,0,11,0,11,0,15,34,40,3,6,5,7,0,15,14,21,0,11,0,11,0,11,0,15,0,11,0,11,0,11,0,11,14,25,0,20,0,17,0,15,54,82,0,15,0,15,0,11,0,15,21,27]
[null,"$100,000 or more:",15,24,24,28,48,45,0,11,31,46,19,30,0,11,292,121,29,34,70,74,437,142,26,29,22,34,100,73,225,129,36,25,12,14,48,68,129,72,40,33,0,11,9,9,161,74,0,11,9,14,22,35,7,10,43,67,671,171,59,59,118,108,271,134,0,15,190,144,19,18,61,49,82,54]
[null,"Less than 20.0 percent",15,24,13,20,23,24,0,11,0,11,19,30,0,11,179,83,23,33,70,74,295,109,26,29,22,34,85,71,140,97,36,25,8,12,48,68,74,60,40,33,0,11,9,9,155,73,0,11,0,11,22,35,7,10,43,67,609,173,0,17,98,107,195,110,0,15,179,144,19,18,40,42,59,48]
[null,"20.0 to 24.9 percent",0,15,11,19,0,11,0,11,31,46,0,11,0,11,81,86,6,10,0,15,61,50,0,11,0,11,15,23,24,24,0,11,4,6,0,15,22,25,0,11,0,11,0,11,6,11,0,11,0,11,0,11,0,11,0,15,34,26,47,54,0,15,0,20,0,15,0,15,0,11,0,15,0,17]
[null,"25.0 to 29.9 percent",0,15,0,15,0,11,0,11,0,11,0,11,0,11,16,26,0,11,0,15,17,27,0,11,0,11,0,15,56,80,0,11,0,11,0,15,10,17,0,11,0,11,0,11,0,15,0,11,0,11,0,11,0,11,0,15,16,26,0,17,0,15,0,20,0,15,0,15,0,11,0,15,23,25]
[null,"30.0 to 34.9 percent",0,15,0,15,0,11,0,11,0,11,0,11,0,11,16,24,0,11,0,15,0,17,0,11,0,11,0,15,0,17,0,11,0,11,0,15,0,20,0,11,0,11,0,11,0,15,0,11,0,11,0,11,0,11,0,15,0,20,0,17,20,32,0,20,0,15,0,15,0,11,0,15,0,17]
[null,"35.0 to 39.9 percent",0,15,0,15,0,11,0,11,0,11,0,11,0,11,0,23,0,11,0,15,0,17,0,11,0,11,0,15,0,17,0,11,0,11,0,15,0,20,0,11,0,11,0,11,0,15,0,11,0,11,0,11,0,11,0,15,0,20,0,17,0,15,0,20,0,15,0,15,0,11,11,19,0,17]
[null,"40.0 to 49.9 percent",0,15,0,15,0,11,0,11,0,11,0,11,0,11,0,23,0,11,0,15,0,17,0,11,0,11,0,15,0,17,0,11,0,11,0,15,0,20,0,11,0,11,0,11,0,15,0,11,0,11,0,11,0,11,0,15,0,20,0,17,0,15,0,20,0,15,0,15,0,11,0,15,0,17]
[null,"50.0 percent or more",0,15,0,15,0,11,0,11,0,11,0,11,0,11,0,23,0,11,0,15,0,17,0,11,0,11,0,15,0,17,0,11,0,11,0,15,0,20,0,11,0,11,0,11,0,15,0,11,0,11,0,11,0,11,0,15,0,20,0,17,0,15,0,20,0,15,0,15,0,11,0,15,0,17]
[null,"Not computed",0,15,0,15,25,37,0,11,0,11,0,11,0,11,0,23,0,11,0,15,64,52,0,11,0,11,0,15,5,10,0,11,0,11,0,15,23,26,0,11,0,11,0,11,0,15,0,11,9,14,0,11,0,11,0,15,12,22,12,21,0,15,76,84,0,15,11,17,0,11,10,18,0,17]
[]
[]
[]
[]
[]
[]
[]
[]
[]
[]
[]
[]
[]
[]
[]
[null,"Calculated B25074. HOUSEHOLD INCOME BY GROSS RENT AS A PERCENTAGE OF HOUSEHOLD INCOME IN THE PAST 12 MONTHS"]
[null,"Universe:  RENTER-OCCUPIED HOUSING UNITS"]
[null,"Data Set: 2010-2014 American Community Survey 5-Year Estimates"]
[]
[null,null,"Atkinson",null,"Auburn",null,"Brentwood",null,"Candia",null,"Chester",null,"Danville",null,"Deerfield",null,"Derry",null,"East Kingston",null,"Epping",null,"Exeter",null,"Fremont",null,"Greenland",null,"Hampstead",null,"Hampton",null,"Hampton Falls",null,"Kensington",null,"Kingston",null,"Londonderry",null,"New Castle",null,"Newfields",null,"Newington",null,"Newmarket",null,"Newton",null,"North Hampton",null,"Northwood",null,"Nottingham",null,"Plaistow",null,"Portsmouth",null,"Raymond",null,"Rye",null,"Salem",null,"Sandown",null,"Seabrook",null,"South Hampton",null,"Stratham",null,"Windham"]
[null," ","Estimate","Margin Of Error","Estimate","Margin Of Error","Estimate","Margin Of Error","Estimate","Margin Of Error","Estimate","Margin Of Error","Estimate","Margin Of Error","Estimate","Margin Of Error","Estimate","Margin Of Error","Estimate","Margin Of Error","Estimate","Margin Of Error","Estimate","Margin Of Error","Estimate","Margin Of Error","Estimate","Margin Of Error","Estimate","Margin Of Error","Estimate","Margin Of Error","Estimate","Margin Of Error","Estimate","Margin Of Error","Estimate","Margin Of Error","Estimate","Margin Of Error","Estimate","Margin Of Error","Estimate","Margin Of Error","Estimate","Margin Of Error","Estimate","Margin Of Error","Estimate","Margin Of Error","Estimate","Margin Of Error","Estimate","Margin Of Error","Estimate","Margin Of Error","Estimate","Margin Of Error","Estimate","Margin Of Error","Estimate","Margin Of Error","Estimate","Margin Of Error","Estimate","Margin Of Error","Estimate","Margin Of Error","Estimate","Margin Of Error","Estimate","Margin Of Error","Estimate","Margin Of Error","Estimate","Margin Of Error"]
[null,"Total:",{"$f":"C174","v":202},108,170,69,252,69,39,39,125,71,197,68,109,71,4690,381,78,39,368,168,1986,226,192,77,191,85,689,159,1924,278,126,46,54,22,375,142,1159,205,104,45,51,32,92,33,1780,197,360,105,154,72,216,99,76,39,668,179,4873,295,910,166,365,177,2642,297,{"$f":"BO174","v":174},100,1418,222,52,26,197,101,376,161]
[null,"Less than $10,000:",40,47,15,22,0,11,0,11,11,20,7,10,0,11,280,150,8,11,0,15,190,95,9,15,7,11,0,15,64,37,0,11,0,11,51,66,32,28,3,5,0,11,7,7,246,101,80,83,7,12,0,11,0,11,42,66,271,109,49,49,0,15,108,82,0,15,77,60,4,5,0,15,11,18]
[null,"Less than 30.0 percent",{"$f":"C176+C177+C178","v":0},{"$f":"SQRT((D176^2)+(D177^2)+(D178^2))","v":25.98076211353316},{"$f":"E176+E177+E178","v":0},{"$f":"SQRT((F176^2)+(F177^2)+(F178^2))","v":25.98076211353316},{"$f":"G176+G177+G178","v":0},{"$f":"SQRT((H176^2)+(H177^2)+(H178^2))","v":19.05255888325765},{"$f":"I176+I177+I178","v":0},{"$f":"SQRT((J176^2)+(J177^2)+(J178^2))","v":19.05255888325765},{"$f":"K176+K177+K178","v":0},{"$f":"SQRT((L176^2)+(L177^2)+(L178^2))","v":19.05255888325765},{"$f":"M176+M177+M178","v":0},{"$f":"SQRT((N176^2)+(N177^2)+(N178^2))","v":19.05255888325765},{"$f":"O176+O177+O178","v":0},{"$f":"SQRT((P176^2)+(P177^2)+(P178^2))","v":19.05255888325765},{"$f":"Q176+Q177+Q178","v":41},{"$f":"SQRT((R176^2)+(R177^2)+(R178^2))","v":53.160135440008048},{"$f":"S176+S177+S178","v":0},{"$f":"SQRT((T176^2)+(T177^2)+(T178^2))","v":19.05255888325765},{"$f":"U176+U177+U178","v":0},{"$f":"SQRT((V176^2)+(V177^2)+(V178^2))","v":25.98076211353316},{"$f":"W176+W177+W178","v":13},{"$f":"SQRT((X176^2)+(X177^2)+(X178^2))","v":32.58834147360065},{"$f":"Y176+Y177+Y178","v":0},{"$f":"SQRT((Z176^2)+(Z177^2)+(Z178^2))","v":19.05255888325765},{"$f":"AA176+AA177+AA178","v":0},{"$f":"SQRT((AB176^2)+(AB177^2)+(AB178^2))","v":19.05255888325765},{"$f":"AC176+AC177+AC178","v":0},{"$f":"SQRT((AD176^2)+(AD177^2)+(AD178^2))","v":25.98076211353316},{"$f":"AE176+AE177+AE178","v":0},{"$f":"SQRT((AF176^2)+(AF177^2)+(AF178^2))","v":29.444863728670914},{"$f":"AG176+AG177+AG178","v":0},{"$f":"SQRT((AH176^2)+(AH177^2)+(AH178^2))","v":19.05255888325765},{"$f":"AI176+AI177+AI178","v":0},{"$f":"SQRT((AJ176^2)+(AJ177^2)+(AJ178^2))","v":19.05255888325765},{"$f":"AK176+AK177+AK178","v":12},{"$f":"SQRT((AL176^2)+(AL177^2)+(AL178^2))","v":29.154759474226502},{"$f":"AM176+AM177+AM178","v":0},{"$f":"SQRT((AN176^2)+(AN177^2)+(AN178^2))","v":34.641016151377549},{"$f":"AO176+AO177+AO178","v":0},{"$f":"SQRT((AP176^2)+(AP177^2)+(AP178^2))","v":19.05255888325765},{"$f":"AQ176+AQ177+AQ178","v":0},{"$f":"SQRT((AR176^2)+(AR177^2)+(AR178^2))","v":19.05255888325765},{"$f":"AS176+AS177+AS178","v":0},{"$f":"SQRT((AT176^2)+(AT177^2)+(AT178^2))","v":19.05255888325765},{"$f":"AU176+AU177+AU178","v":41},{"$f":"SQRT((AV176^2)+(AV177^2)+(AV178^2))","v":70.278019323256402},{"$f":"AW176+AW177+AW178","v":0},{"$f":"SQRT((AX176^2)+(AX177^2)+(AX178^2))","v":19.05255888325765},{"$f":"AY176+AY177+AY178","v":0},{"$f":"SQRT((AZ176^2)+(AZ177^2)+(AZ178^2))","v":19.05255888325765},{"$f":"BA176+BA177+BA178","v":0},{"$f":"SQRT((BB176^2)+(BB177^2)+(BB178^2))","v":19.05255888325765},{"$f":"BC176+BC177+BC178","v":0},{"$f":"SQRT((BD176^2)+(BD177^2)+(BD178^2))","v":19.05255888325765},{"$f":"BE176+BE177+BE178","v":0},{"$f":"SQRT((BF176^2)+(BF177^2)+(BF178^2))","v":25.98076211353316},{"$f":"BG176+BG177+BG178","v":39},{"$f":"SQRT((BH176^2)+(BH177^2)+(BH178^2))","v":47.370877129308042},{"$f":"BI176+BI177+BI178","v":0},{"$f":"SQRT((BJ176^2)+(BJ177^2)+(BJ178^2))","v":29.444863728670914},{"$f":"BK176+BK177+BK178","v":0},{"$f":"SQRT((BL176^2)+(BL177^2)+(BL178^2))","v":25.98076211353316},{"$f":"BM176+BM177+BM178","v":18},{"$f":"SQRT((BN176^2)+(BN177^2)+(BN178^2))","v":39.799497484264798},{"$f":"BO176+BO177+BO178","v":0},{"$f":"SQRT((BP176^2)+(BP177^2)+(BP178^2))","v":25.98076211353316},{"$f":"BQ176+BQ177+BQ178","v":28},{"$f":"SQRT((BR176^2)+(BR177^2)+(BR178^2))","v":50.655700567655757},{"$f":"BS176+BS177+BS178","v":0},{"$f":"SQRT((BT176^2)+(BT177^2)+(BT178^2))","v":19.05255888325765},{"$f":"BU176+BU177+BU178","v":0},{"$f":"SQRT((BV176^2)+(BV177^2)+(BV178^2))","v":25.98076211353316},{"$f":"BW176+BW177+BW178","v":0},{"$f":"SQRT((BX176^2)+(BX177^2)+(BX178^2))","v":29.444863728670914}]
[null,"More than 30.0 percent",{"$f":"C179+C180+C181+C182","v":40},{"$f":"SQRT((D179^2)+(D180^2)+(D181^2)+(D182^2))","v":50},{"$f":"E179+E180+E181+E182","v":15},{"$f":"SQRT((F179^2)+(F180^2)+(F181^2)+(F182^2))","v":34.044089061098404},{"$f":"G179+G180+G181+G182","v":0},{"$f":"SQRT((H179^2)+(H180^2)+(H181^2)+(H182^2))","v":22},{"$f":"I179+I180+I181+I182","v":0},{"$f":"SQRT((J179^2)+(J180^2)+(J181^2)+(J182^2))","v":22},{"$f":"K179+K180+K181+K182","v":11},{"$f":"SQRT((L179^2)+(L180^2)+(L181^2)+(L182^2))","v":27.622454633866266},{"$f":"M179+M180+M181+M182","v":7},{"$f":"SQRT((N179^2)+(N180^2)+(N181^2)+(N182^2))","v":21.517434791350013},{"$f":"O179+O180+O181+O182","v":0},{"$f":"SQRT((P179^2)+(P180^2)+(P181^2)+(P182^2))","v":22},{"$f":"Q179+Q180+Q181+Q182","v":187},{"$f":"SQRT((R179^2)+(R180^2)+(R181^2)+(R182^2))","v":131.19451208034579},{"$f":"S179+S180+S181+S182","v":8},{"$f":"SQRT((T179^2)+(T180^2)+(T181^2)+(T182^2))","v":22},{"$f":"U179+U180+U181+U182","v":0},{"$f":"SQRT((V179^2)+(V180^2)+(V181^2)+(V182^2))","v":30},{"$f":"W179+W180+W181+W182","v":150},{"$f":"SQRT((X179^2)+(X180^2)+(X181^2)+(X182^2))","v":88.068155425215991},{"$f":"Y179+Y180+Y181+Y182","v":9},{"$f":"SQRT((Z179^2)+(Z180^2)+(Z181^2)+(Z182^2))","v":24.248711305964282},{"$f":"AA179+AA180+AA181+AA182","v":7},{"$f":"SQRT((AB179^2)+(AB180^2)+(AB181^2)+(AB182^2))","v":22},{"$f":"AC179+AC180+AC181+AC182","v":0},{"$f":"SQRT((AD179^2)+(AD180^2)+(AD181^2)+(AD182^2))","v":30},{"$f":"AE179+AE180+AE181+AE182","v":48},{"$f":"SQRT((AF179^2)+(AF180^2)+(AF181^2)+(AF182^2))","v":39.949968710876355},{"$f":"AG179+AG180+AG181+AG182","v":0},{"$f":"SQRT((AH179^2)+(AH180^2)+(AH181^2)+(AH182^2))","v":22},{"$f":"AI179+AI180+AI181+AI182","v":0},{"$f":"SQRT((AJ179^2)+(AJ180^2)+(AJ181^2)+(AJ182^2))","v":22},{"$f":"AK179+AK180+AK181+AK182","v":39},{"$f":"SQRT((AL179^2)+(AL180^2)+(AL181^2)+(AL182^2))","v":68.146900149603283},{"$f":"AM179+AM180+AM181+AM182","v":29},{"$f":"SQRT((AN179^2)+(AN180^2)+(AN181^2)+(AN182^2))","v":44.542114902640172},{"$f":"AO179+AO180+AO181+AO182","v":0},{"$f":"SQRT((AP179^2)+(AP180^2)+(AP181^2)+(AP182^2))","v":22},{"$f":"AQ179+AQ180+AQ181+AQ182","v":0},{"$f":"SQRT((AR179^2)+(AR180^2)+(AR181^2)+(AR182^2))","v":22},{"$f":"AS179+AS180+AS181+AS182","v":0},{"$f":"SQRT((AT179^2)+(AT180^2)+(AT181^2)+(AT182^2))","v":22},{"$f":"AU179+AU180+AU181+AU182","v":136},{"$f":"SQRT((AV179^2)+(AV180^2)+(AV181^2)+(AV182^2))","v":79.290604739779852},{"$f":"AW179+AW180+AW181+AW182","v":80},{"$f":"SQRT((AX179^2)+(AX180^2)+(AX181^2)+(AX182^2))","v":85.158675424175073},{"$f":"AY179+AY180+AY181+AY182","v":7},{"$f":"SQRT((AZ179^2)+(AZ180^2)+(AZ181^2)+(AZ182^2))","v":22.516660498395403},{"$f":"BA179+BA180+BA181+BA182","v":0},{"$f":"SQRT((BB179^2)+(BB180^2)+(BB181^2)+(BB182^2))","v":22},{"$f":"BC179+BC180+BC181+BC182","v":0},{"$f":"SQRT((BD179^2)+(BD180^2)+(BD181^2)+(BD182^2))","v":22},{"$f":"BE179+BE180+BE181+BE182","v":0},{"$f":"SQRT((BF179^2)+(BF180^2)+(BF181^2)+(BF182^2))","v":30},{"$f":"BG179+BG180+BG181+BG182","v":192},{"$f":"SQRT((BH179^2)+(BH180^2)+(BH181^2)+(BH182^2))","v":101.34100848126586},{"$f":"BI179+BI180+BI181+BI182","v":37},{"$f":"SQRT((BJ179^2)+(BJ180^2)+(BJ181^2)+(BJ182^2))","v":53.777318638995006},{"$f":"BK179+BK180+BK181+BK182","v":0},{"$f":"SQRT((BL179^2)+(BL180^2)+(BL181^2)+(BL182^2))","v":30},{"$f":"BM179+BM180+BM181+BM182","v":82},{"$f":"SQRT((BN179^2)+(BN180^2)+(BN181^2)+(BN182^2))","v":83.522452071284405},{"$f":"BO179+BO180+BO181+BO182","v":0},{"$f":"SQRT((BP179^2)+(BP180^2)+(BP181^2)+(BP182^2))","v":30},{"$f":"BQ179+BQ180+BQ181+BQ182","v":33},{"$f":"SQRT((BR179^2)+(BR180^2)+(BR181^2)+(BR182^2))","v":40.049968789001575},{"$f":"BS179+BS180+BS181+BS182","v":0},{"$f":"SQRT((BT179^2)+(BT180^2)+(BT181^2)+(BT182^2))","v":22},{"$f":"BU179+BU180+BU181+BU182","v":0},{"$f":"SQRT((BV179^2)+(BV180^2)+(BV181^2)+(BV182^2))","v":30},{"$f":"BW179+BW180+BW181+BW182","v":11},{"$f":"SQRT((BX179^2)+(BX180^2)+(BX181^2)+(BX182^2))","v":34.510867853474792}]
[null,"Less Than 35% of HH Income",{"$f":"C176+C177+C178+C179","v":0},{"$f":"SQRT((D176^2)+(D177^2)+(D178^2)+(D179^2))","v":30},{"$f":"E176+E177+E178+E179","v":0},{"$f":"SQRT((F176^2)+(F177^2)+(F178^2)+(F179^2))","v":30},{"$f":"G176+G177+G178+G179","v":0},{"$f":"SQRT((H176^2)+(H177^2)+(H178^2)+(H179^2))","v":22},{"$f":"I176+I177+I178+I179","v":0},{"$f":"SQRT((J176^2)+(J177^2)+(J178^2)+(J179^2))","v":22},{"$f":"K176+K177+K178+K179","v":0},{"$f":"SQRT((L176^2)+(L177^2)+(L178^2)+(L179^2))","v":22},{"$f":"M176+M177+M178+M179","v":0},{"$f":"SQRT((N176^2)+(N177^2)+(N178^2)+(N179^2))","v":22},{"$f":"O176+O177+O178+O179","v":0},{"$f":"SQRT((P176^2)+(P177^2)+(P178^2)+(P179^2))","v":22},{"$f":"Q176+Q177+Q178+Q179","v":41},{"$f":"SQRT((R176^2)+(R177^2)+(R178^2)+(R179^2))","v":57.922361830298321},{"$f":"S176+S177+S178+S179","v":0},{"$f":"SQRT((T176^2)+(T177^2)+(T178^2)+(T179^2))","v":22},{"$f":"U176+U177+U178+U179","v":0},{"$f":"SQRT((V176^2)+(V177^2)+(V178^2)+(V179^2))","v":30},{"$f":"W176+W177+W178+W179","v":13},{"$f":"SQRT((X176^2)+(X177^2)+(X178^2)+(X179^2))","v":36.755951898978211},{"$f":"Y176+Y177+Y178+Y179","v":0},{"$f":"SQRT((Z176^2)+(Z177^2)+(Z178^2)+(Z179^2))","v":22},{"$f":"AA176+AA177+AA178+AA179","v":0},{"$f":"SQRT((AB176^2)+(AB177^2)+(AB178^2)+(AB179^2))","v":22},{"$f":"AC176+AC177+AC178+AC179","v":0},{"$f":"SQRT((AD176^2)+(AD177^2)+(AD178^2)+(AD179^2))","v":30},{"$f":"AE176+AE177+AE178+AE179","v":0},{"$f":"SQRT((AF176^2)+(AF177^2)+(AF178^2)+(AF179^2))","v":34},{"$f":"AG176+AG177+AG178+AG179","v":0},{"$f":"SQRT((AH176^2)+(AH177^2)+(AH178^2)+(AH179^2))","v":22},{"$f":"AI176+AI177+AI178+AI179","v":0},{"$f":"SQRT((AJ176^2)+(AJ177^2)+(AJ178^2)+(AJ179^2))","v":22},{"$f":"AK176+AK177+AK178+AK179","v":12},{"$f":"SQRT((AL176^2)+(AL177^2)+(AL178^2)+(AL179^2))","v":32.787192621510002},{"$f":"AM176+AM177+AM178+AM179","v":0},{"$f":"SQRT((AN176^2)+(AN177^2)+(AN178^2)+(AN179^2))","v":40},{"$f":"AO176+AO177+AO178+AO179","v":0},{"$f":"SQRT((AP176^2)+(AP177^2)+(AP178^2)+(AP179^2))","v":22},{"$f":"AQ176+AQ177+AQ178+AQ179","v":0},{"$f":"SQRT((AR176^2)+(AR177^2)+(AR178^2)+(AR179^2))","v":22},{"$f":"AS176+AS177+AS178+AS179","v":0},{"$f":"SQRT((AT176^2)+(AT177^2)+(AT178^2)+(AT179^2))","v":22},{"$f":"AU176+AU177+AU178+AU179","v":53},{"$f":"SQRT((AV176^2)+(AV177^2)+(AV178^2)+(AV179^2))","v":72.801098892805186},{"$f":"AW176+AW177+AW178+AW179","v":0},{"$f":"SQRT((AX176^2)+(AX177^2)+(AX178^2)+(AX179^2))","v":22},{"$f":"AY176+AY177+AY178+AY179","v":0},{"$f":"SQRT((AZ176^2)+(AZ177^2)+(AZ178^2)+(AZ179^2))","v":22},{"$f":"BA176+BA177+BA178+BA179","v":0},{"$f":"SQRT((BB176^2)+(BB177^2)+(BB178^2)+(BB179^2))","v":22},{"$f":"BC176+BC177+BC178+BC179","v":0},{"$f":"SQRT((BD176^2)+(BD177^2)+(BD178^2)+(BD179^2))","v":22},{"$f":"BE176+BE177+BE178+BE179","v":0},{"$f":"SQRT((BF176^2)+(BF177^2)+(BF178^2)+(BF179^2))","v":30},{"$f":"BG176+BG177+BG178+BG179","v":47},{"$f":"SQRT((BH176^2)+(BH177^2)+(BH178^2)+(BH179^2))","v":49.122296363260546},{"$f":"BI176+BI177+BI178+BI179","v":0},{"$f":"SQRT((BJ176^2)+(BJ177^2)+(BJ178^2)+(BJ179^2))","v":34},{"$f":"BK176+BK177+BK178+BK179","v":0},{"$f":"SQRT((BL176^2)+(BL177^2)+(BL178^2)+(BL179^2))","v":30},{"$f":"BM176+BM177+BM178+BM179","v":18},{"$f":"SQRT((BN176^2)+(BN177^2)+(BN178^2)+(BN179^2))","v":44.542114902640172},{"$f":"BO176+BO177+BO178+BO179","v":0},{"$f":"SQRT((BP176^2)+(BP177^2)+(BP178^2)+(BP179^2))","v":30},{"$f":"BQ176+BQ177+BQ178+BQ179","v":28},{"$f":"SQRT((BR176^2)+(BR177^2)+(BR178^2)+(BR179^2))","v":52.829915767489162},{"$f":"BS176+BS177+BS178+BS179","v":0},{"$f":"SQRT((BT176^2)+(BT177^2)+(BT178^2)+(BT179^2))","v":22},{"$f":"BU176+BU177+BU178+BU179","v":0},{"$f":"SQRT((BV176^2)+(BV177^2)+(BV178^2)+(BV179^2))","v":30},{"$f":"BW176+BW177+BW178+BW179","v":0},{"$f":"SQRT((BX176^2)+(BX177^2)+(BX178^2)+(BX179^2))","v":34}]
[null,"35.0 percent or more",{"$f":"C180+C181++C182","v":40},{"$f":"SQRT((D180^2)+(D181^2)+(D182^2))","v":47.696960070847283},{"$f":"E180+E181++E182","v":15},{"$f":"SQRT((F180^2)+(F181^2)+(F182^2))","v":30.561413579872251},{"$f":"G180+G181++G182","v":0},{"$f":"SQRT((H180^2)+(H181^2)+(H182^2))","v":19.05255888325765},{"$f":"I180+I181++I182","v":0},{"$f":"SQRT((J180^2)+(J181^2)+(J182^2))","v":19.05255888325765},{"$f":"K180+K181++K182","v":11},{"$f":"SQRT((L180^2)+(L181^2)+(L182^2))","v":25.337718918639855},{"$f":"M180+M181++M182","v":7},{"$f":"SQRT((N180^2)+(N181^2)+(N182^2))","v":18.493242008906929},{"$f":"O180+O181++O182","v":0},{"$f":"SQRT((P180^2)+(P181^2)+(P182^2))","v":19.05255888325765},{"$f":"Q180+Q181++Q182","v":187},{"$f":"SQRT((R180^2)+(R181^2)+(R182^2))","v":129.16268811076984},{"$f":"S180+S181++S182","v":8},{"$f":"SQRT((T180^2)+(T181^2)+(T182^2))","v":19.05255888325765},{"$f":"U180+U181++U182","v":0},{"$f":"SQRT((V180^2)+(V181^2)+(V182^2))","v":25.98076211353316},{"$f":"W180+W181++W182","v":150},{"$f":"SQRT((X180^2)+(X181^2)+(X182^2))","v":86.411804749119781},{"$f":"Y180+Y181++Y182","v":9},{"$f":"SQRT((Z180^2)+(Z181^2)+(Z182^2))","v":21.61018278497431},{"$f":"AA180+AA181++AA182","v":7},{"$f":"SQRT((AB180^2)+(AB181^2)+(AB182^2))","v":19.05255888325765},{"$f":"AC180+AC181++AC182","v":0},{"$f":"SQRT((AD180^2)+(AD181^2)+(AD182^2))","v":25.98076211353316},{"$f":"AE180+AE181++AE182","v":48},{"$f":"SQRT((AF180^2)+(AF181^2)+(AF182^2))","v":36.152454965050438},{"$f":"AG180+AG181++AG182","v":0},{"$f":"SQRT((AH180^2)+(AH181^2)+(AH182^2))","v":19.05255888325765},{"$f":"AI180+AI181++AI182","v":0},{"$f":"SQRT((AJ180^2)+(AJ181^2)+(AJ182^2))","v":19.05255888325765},{"$f":"AK180+AK181++AK182","v":39},{"$f":"SQRT((AL180^2)+(AL181^2)+(AL182^2))","v":66.475559418481012},{"$f":"AM180+AM181++AM182","v":29},{"$f":"SQRT((AN180^2)+(AN181^2)+(AN182^2))","v":39.799497484264798},{"$f":"AO180+AO181++AO182","v":0},{"$f":"SQRT((AP180^2)+(AP181^2)+(AP182^2))","v":19.05255888325765},{"$f":"AQ180+AQ181++AQ182","v":0},{"$f":"SQRT((AR180^2)+(AR181^2)+(AR182^2))","v":19.05255888325765},{"$f":"AS180+AS181++AS182","v":0},{"$f":"SQRT((AT180^2)+(AT181^2)+(AT182^2))","v":19.05255888325765},{"$f":"AU180+AU181++AU182","v":124},{"$f":"SQRT((AV180^2)+(AV181^2)+(AV182^2))","v":76.980517015670927},{"$f":"AW180+AW181++AW182","v":80},{"$f":"SQRT((AX180^2)+(AX181^2)+(AX182^2))","v":84.445248534183378},{"$f":"AY180+AY181++AY182","v":7},{"$f":"SQRT((AZ180^2)+(AZ181^2)+(AZ182^2))","v":19.646882704388499},{"$f":"BA180+BA181++BA182","v":0},{"$f":"SQRT((BB180^2)+(BB181^2)+(BB182^2))","v":19.05255888325765},{"$f":"BC180+BC181++BC182","v":0},{"$f":"SQRT((BD180^2)+(BD181^2)+(BD182^2))","v":19.05255888325765},{"$f":"BE180+BE181++BE182","v":0},{"$f":"SQRT((BF180^2)+(BF181^2)+(BF182^2))","v":25.98076211353316},{"$f":"BG180+BG181++BG182","v":184},{"$f":"SQRT((BH180^2)+(BH181^2)+(BH182^2))","v":100.50373127401788},{"$f":"BI180+BI181++BI182","v":37},{"$f":"SQRT((BJ180^2)+(BJ181^2)+(BJ182^2))","v":51.019604075296392},{"$f":"BK180+BK181++BK182","v":0},{"$f":"SQRT((BL180^2)+(BL181^2)+(BL182^2))","v":25.98076211353316},{"$f":"BM180+BM181++BM182","v":82},{"$f":"SQRT((BN180^2)+(BN181^2)+(BN182^2))","v":81.092539730853176},{"$f":"BO180+BO181++BO182","v":0},{"$f":"SQRT((BP180^2)+(BP181^2)+(BP182^2))","v":25.98076211353316},{"$f":"BQ180+BQ181++BQ182","v":33},{"$f":"SQRT((BR180^2)+(BR181^2)+(BR182^2))","v":37.134889255254286},{"$f":"BS180+BS181++BS182","v":0},{"$f":"SQRT((BT180^2)+(BT181^2)+(BT182^2))","v":19.05255888325765},{"$f":"BU180+BU181++BU182","v":0},{"$f":"SQRT((BV180^2)+(BV181^2)+(BV182^2))","v":25.98076211353316},{"$f":"BW180+BW181++BW182","v":11},{"$f":"SQRT((BX180^2)+(BX181^2)+(BX182^2))","v":30.033314835362415}]
[null,"50.0 percent or more",{"$f":"C182","v":0},15,15,22,0,11,0,11,11,20,7,10,0,11,187,125,8,11,0,15,150,83,9,15,7,11,0,15,48,27,0,11,0,11,0,15,29,28,0,11,0,11,0,11,124,74,80,83,7,12,0,11,0,11,0,15,167,95,37,45,0,15,82,76,{"$f":"BO182","v":0},15,19,25,0,11,0,15,11,18]
[null,"Not Computed",0,15,0,15,0,11,0,11,0,11,0,11,0,11,52,74,0,11,0,15,27,43,0,11,0,11,0,15,16,25,0,11,0,11,0,15,3,6,3,5,0,11,7,7,69,59,0,11,0,11,0,11,0,11,42,66,40,38,12,18,0,15,8,13,0,15,16,26,4,5,0,15,0,17]
[null,"$10,000 to $19,999:",24,39,9,13,46,33,0,11,8,14,28,38,0,11,817,209,8,11,88,68,245,101,0,11,0,11,130,85,400,135,0,11,8,7,27,30,97,68,0,11,0,11,2,3,239,149,26,20,19,22,7,11,0,11,55,71,585,164,103,78,53,72,324,115,45,56,241,114,13,15,0,15,15,24]
[null,"Less than 30.0 percent",{"$f":"C185+C186+C187","v":24},{"$f":"SQRT((D185^2)+(D186^2)+(D187^2))","v":44.395945760846224},{"$f":"E185+E186+E187","v":0},{"$f":"SQRT((F185^2)+(F186^2)+(F187^2))","v":25.98076211353316},{"$f":"G185+G186+G187","v":0},{"$f":"SQRT((H185^2)+(H186^2)+(H187^2))","v":19.05255888325765},{"$f":"I185+I186+I187","v":0},{"$f":"SQRT((J185^2)+(J186^2)+(J187^2))","v":19.05255888325765},{"$f":"K185+K186+K187","v":0},{"$f":"SQRT((L185^2)+(L186^2)+(L187^2))","v":19.05255888325765},{"$f":"M185+M186+M187","v":0},{"$f":"SQRT((N185^2)+(N186^2)+(N187^2))","v":19.05255888325765},{"$f":"O185+O186+O187","v":0},{"$f":"SQRT((P185^2)+(P186^2)+(P187^2))","v":19.05255888325765},{"$f":"Q185+Q186+Q187","v":134},{"$f":"SQRT((R185^2)+(R186^2)+(R187^2))","v":71.309185944028272},{"$f":"S185+S186+S187","v":8},{"$f":"SQRT((T185^2)+(T186^2)+(T187^2))","v":19.05255888325765},{"$f":"U185+U186+U187","v":30},{"$f":"SQRT((V185^2)+(V186^2)+(V187^2))","v":47.947888378947411},{"$f":"W185+W186+W187","v":49},{"$f":"SQRT((X185^2)+(X186^2)+(X187^2))","v":42.778499272414876},{"$f":"Y185+Y186+Y187","v":0},{"$f":"SQRT((Z185^2)+(Z186^2)+(Z187^2))","v":19.05255888325765},{"$f":"AA185+AA186+AA187","v":0},{"$f":"SQRT((AB185^2)+(AB186^2)+(AB187^2))","v":19.05255888325765},{"$f":"AC185+AC186+AC187","v":29},{"$f":"SQRT((AD185^2)+(AD186^2)+(AD187^2))","v":30.364452901377952},{"$f":"AE185+AE186+AE187","v":36},{"$f":"SQRT((AF185^2)+(AF186^2)+(AF187^2))","v":28.757607689096812},{"$f":"AG185+AG186+AG187","v":0},{"$f":"SQRT((AH185^2)+(AH186^2)+(AH187^2))","v":19.05255888325765},{"$f":"AI185+AI186+AI187","v":0},{"$f":"SQRT((AJ185^2)+(AJ186^2)+(AJ187^2))","v":19.05255888325765},{"$f":"AK185+AK186+AK187","v":0},{"$f":"SQRT((AL185^2)+(AL186^2)+(AL187^2))","v":25.98076211353316},{"$f":"AM185+AM186+AM187","v":0},{"$f":"SQRT((AN185^2)+(AN186^2)+(AN187^2))","v":34.641016151377549},{"$f":"AO185+AO186+AO187","v":0},{"$f":"SQRT((AP185^2)+(AP186^2)+(AP187^2))","v":19.05255888325765},{"$f":"AQ185+AQ186+AQ187","v":0},{"$f":"SQRT((AR185^2)+(AR186^2)+(AR187^2))","v":19.05255888325765},{"$f":"AS185+AS186+AS187","v":0},{"$f":"SQRT((AT185^2)+(AT186^2)+(AT187^2))","v":19.05255888325765},{"$f":"AU185+AU186+AU187","v":57},{"$f":"SQRT((AV185^2)+(AV186^2)+(AV187^2))","v":49.749371855330999},{"$f":"AW185+AW186+AW187","v":5},{"$f":"SQRT((AX185^2)+(AX186^2)+(AX187^2))","v":17.972200755611428},{"$f":"AY185+AY186+AY187","v":0},{"$f":"SQRT((AZ185^2)+(AZ186^2)+(AZ187^2))","v":19.05255888325765},{"$f":"BA185+BA186+BA187","v":0},{"$f":"SQRT((BB185^2)+(BB186^2)+(BB187^2))","v":19.05255888325765},{"$f":"BC185+BC186+BC187","v":0},{"$f":"SQRT((BD185^2)+(BD186^2)+(BD187^2))","v":19.05255888325765},{"$f":"BE185+BE186+BE187","v":42},{"$f":"SQRT((BF185^2)+(BF186^2)+(BF187^2))","v":72.187256493095788},{"$f":"BG185+BG186+BG187","v":174},{"$f":"SQRT((BH185^2)+(BH186^2)+(BH187^2))","v":116.67904696216884},{"$f":"BI185+BI186+BI187","v":18},{"$f":"SQRT((BJ185^2)+(BJ186^2)+(BJ187^2))","v":26.645825188948457},{"$f":"BK185+BK186+BK187","v":0},{"$f":"SQRT((BL185^2)+(BL186^2)+(BL187^2))","v":25.98076211353316},{"$f":"BM185+BM186+BM187","v":46},{"$f":"SQRT((BN185^2)+(BN186^2)+(BN187^2))","v":46.701177715342467},{"$f":"BO185+BO186+BO187","v":0},{"$f":"SQRT((BP185^2)+(BP186^2)+(BP187^2))","v":25.98076211353316},{"$f":"BQ185+BQ186+BQ187","v":15},{"$f":"SQRT((BR185^2)+(BR186^2)+(BR187^2))","v":32.787192621510002},{"$f":"BS185+BS186+BS187","v":0},{"$f":"SQRT((BT185^2)+(BT186^2)+(BT187^2))","v":19.05255888325765},{"$f":"BU185+BU186+BU187","v":0},{"$f":"SQRT((BV185^2)+(BV186^2)+(BV187^2))","v":25.98076211353316},{"$f":"BW185+BW186+BW187","v":0},{"$f":"SQRT((BX185^2)+(BX186^2)+(BX187^2))","v":29.444863728670914}]
[null,"More than 30.0 percent",{"$f":"C188+C189+C190+C191","v":0},{"$f":"SQRT((D188^2)+(D189^2)+(D190^2)+(D191^2))","v":30},{"$f":"E188+E189+E190+E191","v":9},{"$f":"SQRT((F188^2)+(F189^2)+(F190^2)+(F191^2))","v":29.051678092667899},{"$f":"G188+G189+G190+G191","v":46},{"$f":"SQRT((H188^2)+(H189^2)+(H190^2)+(H191^2))","v":36.386810797320507},{"$f":"I188+I189+I190+I191","v":0},{"$f":"SQRT((J188^2)+(J189^2)+(J190^2)+(J191^2))","v":22},{"$f":"K188+K189+K190+K191","v":8},{"$f":"SQRT((L188^2)+(L189^2)+(L190^2)+(L191^2))","v":23.643180835073778},{"$f":"M188+M189+M190+M191","v":28},{"$f":"SQRT((N188^2)+(N189^2)+(N190^2)+(N191^2))","v":42.508822613664563},{"$f":"O188+O189+O190+O191","v":0},{"$f":"SQRT((P188^2)+(P189^2)+(P190^2)+(P191^2))","v":22},{"$f":"Q188+Q189+Q190+Q191","v":683},{"$f":"SQRT((R188^2)+(R189^2)+(R190^2)+(R191^2))","v":202.88666787149913},{"$f":"S188+S189+S190+S191","v":0},{"$f":"SQRT((T188^2)+(T189^2)+(T190^2)+(T191^2))","v":22},{"$f":"U188+U189+U190+U191","v":58},{"$f":"SQRT((V188^2)+(V189^2)+(V190^2)+(V191^2))","v":58.129166517334482},{"$f":"W188+W189+W190+W191","v":181},{"$f":"SQRT((X188^2)+(X189^2)+(X190^2)+(X191^2))","v":98.2344135219425},{"$f":"Y188+Y189+Y190+Y191","v":0},{"$f":"SQRT((Z188^2)+(Z189^2)+(Z190^2)+(Z191^2))","v":22},{"$f":"AA188+AA189+AA190+AA191","v":0},{"$f":"SQRT((AB188^2)+(AB189^2)+(AB190^2)+(AB191^2))","v":22},{"$f":"AC188+AC189+AC190+AC191","v":101},{"$f":"SQRT((AD188^2)+(AD189^2)+(AD190^2)+(AD191^2))","v":80.591562833835155},{"$f":"AE188+AE189+AE190+AE191","v":360},{"$f":"SQRT((AF188^2)+(AF189^2)+(AF190^2)+(AF191^2))","v":134.62169215991901},{"$f":"AG188+AG189+AG190+AG191","v":0},{"$f":"SQRT((AH188^2)+(AH189^2)+(AH190^2)+(AH191^2))","v":22},{"$f":"AI188+AI189+AI190+AI191","v":8},{"$f":"SQRT((AJ188^2)+(AJ189^2)+(AJ190^2)+(AJ191^2))","v":20.297783130184438},{"$f":"AK188+AK189+AK190+AK191","v":15},{"$f":"SQRT((AL188^2)+(AL189^2)+(AL190^2)+(AL191^2))","v":35.369478367654786},{"$f":"AM188+AM189+AM190+AM191","v":97},{"$f":"SQRT((AN188^2)+(AN189^2)+(AN190^2)+(AN191^2))","v":74.256312862947894},{"$f":"AO188+AO189+AO190+AO191","v":0},{"$f":"SQRT((AP188^2)+(AP189^2)+(AP190^2)+(AP191^2))","v":22},{"$f":"AQ188+AQ189+AQ190+AQ191","v":0},{"$f":"SQRT((AR188^2)+(AR189^2)+(AR190^2)+(AR191^2))","v":22},{"$f":"AS188+AS189+AS190+AS191","v":2},{"$f":"SQRT((AT188^2)+(AT189^2)+(AT190^2)+(AT191^2))","v":19.28730152198591},{"$f":"AU188+AU189+AU190+AU191","v":174},{"$f":"SQRT((AV188^2)+(AV189^2)+(AV190^2)+(AV191^2))","v":141.95069566578391},{"$f":"AW188+AW189+AW190+AW191","v":21},{"$f":"SQRT((AX188^2)+(AX189^2)+(AX190^2)+(AX191^2))","v":25.179356624028344},{"$f":"AY188+AY189+AY190+AY191","v":19},{"$f":"SQRT((AZ188^2)+(AZ189^2)+(AZ190^2)+(AZ191^2))","v":26.962937525425527},{"$f":"BA188+BA189+BA190+BA191","v":7},{"$f":"SQRT((BB188^2)+(BB189^2)+(BB190^2)+(BB191^2))","v":22},{"$f":"BC188+BC189+BC190+BC191","v":0},{"$f":"SQRT((BD188^2)+(BD189^2)+(BD190^2)+(BD191^2))","v":22},{"$f":"BE188+BE189+BE190+BE191","v":13},{"$f":"SQRT((BF188^2)+(BF189^2)+(BF190^2)+(BF191^2))","v":33.406586176980134},{"$f":"BG188+BG189+BG190+BG191","v":363},{"$f":"SQRT((BH188^2)+(BH189^2)+(BH190^2)+(BH191^2))","v":108.57716150277645},{"$f":"BI188+BI189+BI190+BI191","v":85},{"$f":"SQRT((BJ188^2)+(BJ189^2)+(BJ190^2)+(BJ191^2))","v":81.50460109711598},{"$f":"BK188+BK189+BK190+BK191","v":11},{"$f":"SQRT((BL188^2)+(BL189^2)+(BL190^2)+(BL191^2))","v":32.787192621510002},{"$f":"BM188+BM189+BM190+BM191","v":266},{"$f":"SQRT((BN188^2)+(BN189^2)+(BN190^2)+(BN191^2))","v":139.63523910532041},{"$f":"BO188+BO189+BO190+BO191","v":45},{"$f":"SQRT((BP188^2)+(BP189^2)+(BP190^2)+(BP191^2))","v":61.733297336202611},{"$f":"BQ188+BQ189+BQ190+BQ191","v":226},{"$f":"SQRT((BR188^2)+(BR189^2)+(BR190^2)+(BR191^2))","v":121.95900950729306},{"$f":"BS188+BS189+BS190+BS191","v":9},{"$f":"SQRT((BT188^2)+(BT189^2)+(BT190^2)+(BT191^2))","v":23.643180835073778},{"$f":"BU188+BU189+BU190+BU191","v":0},{"$f":"SQRT((BV188^2)+(BV189^2)+(BV190^2)+(BV191^2))","v":30},{"$f":"BW188+BW189+BW190+BW191","v":15},{"$f":"SQRT((BX188^2)+(BX189^2)+(BX190^2)+(BX191^2))","v":37.986839826445156}]
[null,"Less Than 35% of HH Income",{"$f":"C185+C186+C187+C188","v":24},{"$f":"SQRT((D185^2)+(D186^2)+(D187^2)+(D188^2))","v":46.861498055439924},{"$f":"E185+E186+E187+E188","v":0},{"$f":"SQRT((F185^2)+(F186^2)+(F187^2)+(F188^2))","v":30},{"$f":"G185+G186+G187+G188","v":0},{"$f":"SQRT((H185^2)+(H186^2)+(H187^2)+(H188^2))","v":22},{"$f":"I185+I186+I187+I188","v":0},{"$f":"SQRT((J185^2)+(J186^2)+(J187^2)+(J188^2))","v":22},{"$f":"K185+K186+K187+K188","v":0},{"$f":"SQRT((L185^2)+(L186^2)+(L187^2)+(L188^2))","v":22},{"$f":"M185+M186+M187+M188","v":0},{"$f":"SQRT((N185^2)+(N186^2)+(N187^2)+(N188^2))","v":22},{"$f":"O185+O186+O187+O188","v":0},{"$f":"SQRT((P185^2)+(P186^2)+(P187^2)+(P188^2))","v":22},{"$f":"Q185+Q186+Q187+Q188","v":288},{"$f":"SQRT((R185^2)+(R186^2)+(R187^2)+(R188^2))","v":130.25359879865124},{"$f":"S185+S186+S187+S188","v":8},{"$f":"SQRT((T185^2)+(T186^2)+(T187^2)+(T188^2))","v":22},{"$f":"U185+U186+U187+U188","v":30},{"$f":"SQRT((V185^2)+(V186^2)+(V187^2)+(V188^2))","v":50.239426748321883},{"$f":"W185+W186+W187+W188","v":56},{"$f":"SQRT((X185^2)+(X186^2)+(X187^2)+(X188^2))","v":44.429719783046124},{"$f":"Y185+Y186+Y187+Y188","v":0},{"$f":"SQRT((Z185^2)+(Z186^2)+(Z187^2)+(Z188^2))","v":22},{"$f":"AA185+AA186+AA187+AA188","v":0},{"$f":"SQRT((AB185^2)+(AB186^2)+(AB187^2)+(AB188^2))","v":22},{"$f":"AC185+AC186+AC187+AC188","v":29},{"$f":"SQRT((AD185^2)+(AD186^2)+(AD187^2)+(AD188^2))","v":33.867388443752198},{"$f":"AE185+AE186+AE187+AE188","v":49},{"$f":"SQRT((AF185^2)+(AF186^2)+(AF187^2)+(AF188^2))","v":34.467375879228172},{"$f":"AG185+AG186+AG187+AG188","v":0},{"$f":"SQRT((AH185^2)+(AH186^2)+(AH187^2)+(AH188^2))","v":22},{"$f":"AI185+AI186+AI187+AI188","v":0},{"$f":"SQRT((AJ185^2)+(AJ186^2)+(AJ187^2)+(AJ188^2))","v":22},{"$f":"AK185+AK186+AK187+AK188","v":15},{"$f":"SQRT((AL185^2)+(AL186^2)+(AL187^2)+(AL188^2))","v":35.369478367654786},{"$f":"AM185+AM186+AM187+AM188","v":0},{"$f":"SQRT((AN185^2)+(AN186^2)+(AN187^2)+(AN188^2))","v":40},{"$f":"AO185+AO186+AO187+AO188","v":0},{"$f":"SQRT((AP185^2)+(AP186^2)+(AP187^2)+(AP188^2))","v":22},{"$f":"AQ185+AQ186+AQ187+AQ188","v":0},{"$f":"SQRT((AR185^2)+(AR186^2)+(AR187^2)+(AR188^2))","v":22},{"$f":"AS185+AS186+AS187+AS188","v":0},{"$f":"SQRT((AT185^2)+(AT186^2)+(AT187^2)+(AT188^2))","v":22},{"$f":"AU185+AU186+AU187+AU188","v":63},{"$f":"SQRT((AV185^2)+(AV186^2)+(AV187^2)+(AV188^2))","v":50.744457825461097},{"$f":"AW185+AW186+AW187+AW188","v":14},{"$f":"SQRT((AX185^2)+(AX186^2)+(AX187^2)+(AX188^2))","v":22.781571499789035},{"$f":"AY185+AY186+AY187+AY188","v":0},{"$f":"SQRT((AZ185^2)+(AZ186^2)+(AZ187^2)+(AZ188^2))","v":22},{"$f":"BA185+BA186+BA187+BA188","v":0},{"$f":"SQRT((BB185^2)+(BB186^2)+(BB187^2)+(BB188^2))","v":22},{"$f":"BC185+BC186+BC187+BC188","v":0},{"$f":"SQRT((BD185^2)+(BD186^2)+(BD187^2)+(BD188^2))","v":22},{"$f":"BE185+BE186+BE187+BE188","v":42},{"$f":"SQRT((BF185^2)+(BF186^2)+(BF187^2)+(BF188^2))","v":73.72923436466705},{"$f":"BG185+BG186+BG187+BG188","v":239},{"$f":"SQRT((BH185^2)+(BH186^2)+(BH187^2)+(BH188^2))","v":125.05598746161657},{"$f":"BI185+BI186+BI187+BI188","v":18},{"$f":"SQRT((BJ185^2)+(BJ186^2)+(BJ187^2)+(BJ188^2))","v":31.606961258558215},{"$f":"BK185+BK186+BK187+BK188","v":0},{"$f":"SQRT((BL185^2)+(BL186^2)+(BL187^2)+(BL188^2))","v":30},{"$f":"BM185+BM186+BM187+BM188","v":94},{"$f":"SQRT((BN185^2)+(BN186^2)+(BN187^2)+(BN188^2))","v":89.202017914394744},{"$f":"BO185+BO186+BO187+BO188","v":0},{"$f":"SQRT((BP185^2)+(BP186^2)+(BP187^2)+(BP188^2))","v":30},{"$f":"BQ185+BQ186+BQ187+BQ188","v":86},{"$f":"SQRT((BR185^2)+(BR186^2)+(BR187^2)+(BR188^2))","v":99.554005444281344},{"$f":"BS185+BS186+BS187+BS188","v":0},{"$f":"SQRT((BT185^2)+(BT186^2)+(BT187^2)+(BT188^2))","v":22},{"$f":"BU185+BU186+BU187+BU188","v":0},{"$f":"SQRT((BV185^2)+(BV186^2)+(BV187^2)+(BV188^2))","v":30},{"$f":"BW185+BW186+BW187+BW188","v":15},{"$f":"SQRT((BX185^2)+(BX186^2)+(BX187^2)+(BX188^2))","v":37.986839826445156}]
[null,"35.0 percent or more",{"$f":"C189+C190++C191","v":0},{"$f":"SQRT((D189^2)+(D190^2)+(D191^2))","v":25.98076211353316},{"$f":"E189+E190++E191","v":9},{"$f":"SQRT((F189^2)+(F190^2)+(F191^2))","v":24.879710609249457},{"$f":"G189+G190++G191","v":46},{"$f":"SQRT((H189^2)+(H190^2)+(H191^2))","v":34.684290392049249},{"$f":"I189+I190++I191","v":0},{"$f":"SQRT((J189^2)+(J190^2)+(J191^2))","v":19.05255888325765},{"$f":"K189+K190++K191","v":8},{"$f":"SQRT((L189^2)+(L190^2)+(L191^2))","v":20.928449536456348},{"$f":"M189+M190++M191","v":28},{"$f":"SQRT((N189^2)+(N190^2)+(N191^2))","v":41.060930335295616},{"$f":"O189+O190++O191","v":0},{"$f":"SQRT((P189^2)+(P190^2)+(P191^2))","v":19.05255888325765},{"$f":"Q189+Q190++Q191","v":529},{"$f":"SQRT((R189^2)+(R190^2)+(R191^2))","v":171.11984104714449},{"$f":"S189+S190++S191","v":0},{"$f":"SQRT((T189^2)+(T190^2)+(T191^2))","v":19.05255888325765},{"$f":"U189+U190++U191","v":58},{"$f":"SQRT((V189^2)+(V190^2)+(V191^2))","v":56.160484328395889},{"$f":"W189+W190++W191","v":174},{"$f":"SQRT((X189^2)+(X190^2)+(X191^2))","v":97.498717940288842},{"$f":"Y189+Y190++Y191","v":0},{"$f":"SQRT((Z189^2)+(Z190^2)+(Z191^2))","v":19.05255888325765},{"$f":"AA189+AA190++AA191","v":0},{"$f":"SQRT((AB189^2)+(AB190^2)+(AB191^2))","v":19.05255888325765},{"$f":"AC189+AC190++AC191","v":101},{"$f":"SQRT((AD189^2)+(AD190^2)+(AD191^2))","v":79.183331579316615},{"$f":"AE189+AE190++AE191","v":347},{"$f":"SQRT((AF189^2)+(AF190^2)+(AF191^2))","v":133.27415353323389},{"$f":"AG189+AG190++AG191","v":0},{"$f":"SQRT((AH189^2)+(AH190^2)+(AH191^2))","v":19.05255888325765},{"$f":"AI189+AI190++AI191","v":8},{"$f":"SQRT((AJ189^2)+(AJ190^2)+(AJ191^2))","v":17.058722109231979},{"$f":"AK189+AK190++AK191","v":0},{"$f":"SQRT((AL189^2)+(AL190^2)+(AL191^2))","v":25.98076211353316},{"$f":"AM189+AM190++AM191","v":97},{"$f":"SQRT((AN189^2)+(AN190^2)+(AN191^2))","v":71.512236715124502},{"$f":"AO189+AO190++AO191","v":0},{"$f":"SQRT((AP189^2)+(AP190^2)+(AP191^2))","v":19.05255888325765},{"$f":"AQ189+AQ190++AQ191","v":0},{"$f":"SQRT((AR189^2)+(AR190^2)+(AR191^2))","v":19.05255888325765},{"$f":"AS189+AS190++AS191","v":2},{"$f":"SQRT((AT189^2)+(AT190^2)+(AT191^2))","v":15.842979517754859},{"$f":"AU189+AU190++AU191","v":168},{"$f":"SQRT((AV189^2)+(AV190^2)+(AV191^2))","v":141.59802258506295},{"$f":"AW189+AW190++AW191","v":12},{"$f":"SQRT((AX189^2)+(AX190^2)+(AX191^2))","v":20.928449536456348},{"$f":"AY189+AY190++AY191","v":19},{"$f":"SQRT((AZ189^2)+(AZ190^2)+(AZ191^2))","v":24.617067250182341},{"$f":"BA189+BA190++BA191","v":7},{"$f":"SQRT((BB189^2)+(BB190^2)+(BB191^2))","v":19.05255888325765},{"$f":"BC189+BC190++BC191","v":0},{"$f":"SQRT((BD189^2)+(BD190^2)+(BD191^2))","v":19.05255888325765},{"$f":"BE189+BE190++BE191","v":13},{"$f":"SQRT((BF189^2)+(BF190^2)+(BF191^2))","v":29.8496231131986},{"$f":"BG189+BG190++BG191","v":298},{"$f":"SQRT((BH189^2)+(BH190^2)+(BH191^2))","v":98.812954616284998},{"$f":"BI189+BI190++BI191","v":85},{"$f":"SQRT((BJ189^2)+(BJ190^2)+(BJ191^2))","v":79.711981533518539},{"$f":"BK189+BK190++BK191","v":11},{"$f":"SQRT((BL189^2)+(BL190^2)+(BL191^2))","v":29.154759474226502},{"$f":"BM189+BM190++BM191","v":218},{"$f":"SQRT((BN189^2)+(BN190^2)+(BN191^2))","v":117.14094075087498},{"$f":"BO189+BO190++BO191","v":45},{"$f":"SQRT((BP189^2)+(BP190^2)+(BP191^2))","v":59.883219686319471},{"$f":"BQ189+BQ190++BQ191","v":155},{"$f":"SQRT((BR189^2)+(BR190^2)+(BR191^2))","v":77.704568720249654},{"$f":"BS189+BS190++BS191","v":9},{"$f":"SQRT((BT189^2)+(BT190^2)+(BT191^2))","v":20.928449536456348},{"$f":"BU189+BU190++BU191","v":0},{"$f":"SQRT((BV189^2)+(BV190^2)+(BV191^2))","v":25.98076211353316},{"$f":"BW189+BW190++BW191","v":0},{"$f":"SQRT((BX189^2)+(BX190^2)+(BX191^2))","v":29.444863728670914}]
[null,"50.0 percent or more",{"$f":"C191","v":0},{"$f":"D191","v":15},{"$f":"E191","v":9},{"$f":"F191","v":13},{"$f":"G191","v":39},31,{"$f":"I191","v":0},11,{"$f":"K191","v":0},11,{"$f":"M191","v":28},38,{"$f":"O191","v":0},11,{"$f":"Q191","v":513},168,{"$f":"S191","v":0},11,{"$f":"U191","v":58},52,{"$f":"W191","v":148},89,{"$f":"Y191","v":0},11,{"$f":"AA191","v":0},11,{"$f":"AC191","v":77},74,{"$f":"AE191","v":343},132,{"$f":"AG191","v":0},11,{"$f":"AI191","v":8},7,{"$f":"AK191","v":0},15,{"$f":"AM191","v":88},67,{"$f":"AO191","v":0},11,{"$f":"AQ191","v":0},11,{"$f":"AS191","v":2},3,{"$f":"AU191","v":168},140,{"$f":"AW191","v":12},14,{"$f":"AY191","v":10},17,{"$f":"BA191","v":7},11,{"$f":"BC191","v":0},11,{"$f":"BE191","v":13},21,{"$f":"BG191","v":281},92,{"$f":"BI191","v":85},76,{"$f":"BK191","v":11},20,{"$f":"BM191","v":161},91,{"$f":"BO191","v":45},56,{"$f":"BQ191","v":141},{"$f":"BR191","v":73},{"$f":"BS191","v":9},14,{"$f":"BU191","v":0},15,{"$f":"BW191","v":0},17]
[null,"Not Computed",{"$f":"C192","v":0},15,0,15,0,11,0,11,0,11,0,11,0,11,0,23,0,11,0,15,15,17,0,11,0,11,0,15,4,7,0,11,0,11,12,18,0,20,0,11,0,11,0,11,8,13,0,11,0,11,0,11,0,11,0,15,48,62,0,17,42,69,12,20,{"$f":"BO192","v":0},15,0,15,4,6,0,15,0,17]
[null,"$20,000 to $34,999:",57,87,0,15,91,60,23,32,65,63,13,15,20,23,862,221,6,8,41,35,425,153,14,17,33,35,197,128,397,129,22,32,7,8,62,68,226,96,0,11,12,11,10,9,398,121,32,39,49,50,23,24,21,25,168,112,929,201,160,98,20,33,346,114,38,47,313,179,7,7,26,30,115,132]
[null,"Less than 30.0 percent",{"$f":"C194+C195+C196","v":57},{"$f":"SQRT((D194^2)+(D195^2)+(D196^2))","v":89.548869339595797},{"$f":"E194+E195+E196","v":0},{"$f":"SQRT((F194^2)+(F195^2)+(F196^2))","v":25.98076211353316},{"$f":"G194+G195+G196","v":9},{"$f":"SQRT((H194^2)+(H195^2)+(H196^2))","v":20.928449536456348},{"$f":"I194+I195+I196","v":0},{"$f":"SQRT((J194^2)+(J195^2)+(J196^2))","v":19.05255888325765},{"$f":"K194+K195+K196","v":0},{"$f":"SQRT((L194^2)+(L195^2)+(L196^2))","v":19.05255888325765},{"$f":"M194+M195+M196","v":0},{"$f":"SQRT((N194^2)+(N195^2)+(N196^2))","v":19.05255888325765},{"$f":"O194+O195+O196","v":0},{"$f":"SQRT((P194^2)+(P195^2)+(P196^2))","v":19.05255888325765},{"$f":"Q194+Q195+Q196","v":99},{"$f":"SQRT((R194^2)+(R195^2)+(R196^2))","v":58.395205282625732},{"$f":"S194+S195+S196","v":0},{"$f":"SQRT((T194^2)+(T195^2)+(T196^2))","v":19.05255888325765},{"$f":"U194+U195+U196","v":0},{"$f":"SQRT((V194^2)+(V195^2)+(V196^2))","v":25.98076211353316},{"$f":"W194+W195+W196","v":62},{"$f":"SQRT((X194^2)+(X195^2)+(X196^2))","v":40.80441152620633},{"$f":"Y194+Y195+Y196","v":0},{"$f":"SQRT((Z194^2)+(Z195^2)+(Z196^2))","v":19.05255888325765},{"$f":"AA194+AA195+AA196","v":0},{"$f":"SQRT((AB194^2)+(AB195^2)+(AB196^2))","v":19.05255888325765},{"$f":"AC194+AC195+AC196","v":56},{"$f":"SQRT((AD194^2)+(AD195^2)+(AD196^2))","v":68.37397165588672},{"$f":"AE194+AE195+AE196","v":50},{"$f":"SQRT((AF194^2)+(AF195^2)+(AF196^2))","v":38.716921365211881},{"$f":"AG194+AG195+AG196","v":19},{"$f":"SQRT((AH194^2)+(AH195^2)+(AH196^2))","v":34.684290392049249},{"$f":"AI194+AI195+AI196","v":3},{"$f":"SQRT((AJ194^2)+(AJ195^2)+(AJ196^2))","v":16.06237840420901},{"$f":"AK194+AK195+AK196","v":22},{"$f":"SQRT((AL194^2)+(AL195^2)+(AL196^2))","v":30.232432915661949},{"$f":"AM194+AM195+AM196","v":0},{"$f":"SQRT((AN194^2)+(AN195^2)+(AN196^2))","v":34.641016151377549},{"$f":"AO194+AO195+AO196","v":0},{"$f":"SQRT((AP194^2)+(AP195^2)+(AP196^2))","v":19.05255888325765},{"$f":"AQ194+AQ195+AQ196","v":0},{"$f":"SQRT((AR194^2)+(AR195^2)+(AR196^2))","v":19.05255888325765},{"$f":"AS194+AS195+AS196","v":2},{"$f":"SQRT((AT194^2)+(AT195^2)+(AT196^2))","v":16.06237840420901},{"$f":"AU194+AU195+AU196","v":121},{"$f":"SQRT((AV194^2)+(AV195^2)+(AV196^2))","v":73.273460406889484},{"$f":"AW194+AW195+AW196","v":9},{"$f":"SQRT((AX194^2)+(AX195^2)+(AX196^2))","v":21.61018278497431},{"$f":"AY194+AY195+AY196","v":0},{"$f":"SQRT((AZ194^2)+(AZ195^2)+(AZ196^2))","v":19.05255888325765},{"$f":"BA194+BA195+BA196","v":12},{"$f":"SQRT((BB194^2)+(BB195^2)+(BB196^2))","v":24.556058315617349},{"$f":"BC194+BC195+BC196","v":0},{"$f":"SQRT((BD194^2)+(BD195^2)+(BD196^2))","v":19.05255888325765},{"$f":"BE194+BE195+BE196","v":25},{"$f":"SQRT((BF194^2)+(BF195^2)+(BF196^2))","v":31.28897569432403},{"$f":"BG194+BG195+BG196","v":186},{"$f":"SQRT((BH194^2)+(BH195^2)+(BH196^2))","v":104.96666137398103},{"$f":"BI194+BI195+BI196","v":30},{"$f":"SQRT((BJ194^2)+(BJ195^2)+(BJ196^2))","v":44.124822945820419},{"$f":"BK194+BK195+BK196","v":0},{"$f":"SQRT((BL194^2)+(BL195^2)+(BL196^2))","v":25.98076211353316},{"$f":"BM194+BM195+BM196","v":31},{"$f":"SQRT((BN194^2)+(BN195^2)+(BN196^2))","v":40.64480286580315},{"$f":"BO194+BO195+BO196","v":0},{"$f":"SQRT((BP194^2)+(BP195^2)+(BP196^2))","v":25.98076211353316},{"$f":"BQ194+BQ195+BQ196","v":43},{"$f":"SQRT((BR194^2)+(BR195^2)+(BR196^2))","v":70.278019323256402},{"$f":"BS194+BS195+BS196","v":0},{"$f":"SQRT((BT194^2)+(BT195^2)+(BT196^2))","v":19.05255888325765},{"$f":"BU194+BU195+BU196","v":0},{"$f":"SQRT((BV194^2)+(BV195^2)+(BV196^2))","v":25.98076211353316},{"$f":"BW194+BW195+BW196","v":0},{"$f":"SQRT((BX194^2)+(BX195^2)+(BX196^2))","v":29.444863728670914}]
[null,"More than 30.0 percent",{"$f":"C197+C198+C199+C200","v":0},{"$f":"SQRT((D197^2)+(D198^2)+(D199^2)+(D200^2))","v":30},{"$f":"E197+E198+E199+E200","v":0},{"$f":"SQRT((F197^2)+(F198^2)+(F199^2)+(F200^2))","v":30},{"$f":"G197+G198+G199+G200","v":71},{"$f":"SQRT((H197^2)+(H198^2)+(H199^2)+(H200^2))","v":66.902914734710919},{"$f":"I197+I198+I199+I200","v":23},{"$f":"SQRT((J197^2)+(J198^2)+(J199^2)+(J200^2))","v":30.446674695276659},{"$f":"K197+K198+K199+K200","v":65},{"$f":"SQRT((L197^2)+(L198^2)+(L199^2)+(L200^2))","v":64.552304374050038},{"$f":"M197+M198+M199+M200","v":8},{"$f":"SQRT((N197^2)+(N198^2)+(N199^2)+(N200^2))","v":22.516660498395403},{"$f":"O197+O198+O199+O200","v":20},{"$f":"SQRT((P197^2)+(P198^2)+(P199^2)+(P200^2))","v":29.866369046136157},{"$f":"Q197+Q198+Q199+Q200","v":729},{"$f":"SQRT((R197^2)+(R198^2)+(R199^2)+(R200^2))","v":235.28068344001383},{"$f":"S197+S198+S199+S200","v":6},{"$f":"SQRT((T197^2)+(T198^2)+(T199^2)+(T200^2))","v":20.663978319771825},{"$f":"U197+U198+U199+U200","v":11},{"$f":"SQRT((V197^2)+(V198^2)+(V199^2)+(V200^2))","v":31.048349392520048},{"$f":"W197+W198+W199+W200","v":319},{"$f":"SQRT((X197^2)+(X198^2)+(X199^2)+(X200^2))","v":145.89722409970656},{"$f":"Y197+Y198+Y199+Y200","v":14},{"$f":"SQRT((Z197^2)+(Z198^2)+(Z199^2)+(Z200^2))","v":23.021728866442675},{"$f":"AA197+AA198+AA199+AA200","v":33},{"$f":"SQRT((AB197^2)+(AB198^2)+(AB199^2)+(AB200^2))","v":39.849717690342551},{"$f":"AC197+AC198+AC199+AC200","v":141},{"$f":"SQRT((AD197^2)+(AD198^2)+(AD199^2)+(AD200^2))","v":108.39741694339399},{"$f":"AE197+AE198+AE199+AE200","v":325},{"$f":"SQRT((AF197^2)+(AF198^2)+(AF199^2)+(AF200^2))","v":122.40506525466992},{"$f":"AG197+AG198+AG199+AG200","v":3},{"$f":"SQRT((AH197^2)+(AH198^2)+(AH199^2)+(AH200^2))","v":19.974984355438178},{"$f":"AI197+AI198+AI199+AI200","v":4},{"$f":"SQRT((AJ197^2)+(AJ198^2)+(AJ199^2)+(AJ200^2))","v":19.697715603592208},{"$f":"AK197+AK198+AK199+AK200","v":40},{"$f":"SQRT((AL197^2)+(AL198^2)+(AL199^2)+(AL200^2))","v":69.072425757316495},{"$f":"AM197+AM198+AM199+AM200","v":208},{"$f":"SQRT((AN197^2)+(AN198^2)+(AN199^2)+(AN200^2))","v":99},{"$f":"AO197+AO198+AO199+AO200","v":0},{"$f":"SQRT((AP197^2)+(AP198^2)+(AP199^2)+(AP200^2))","v":22},{"$f":"AQ197+AQ198+AQ199+AQ200","v":12},{"$f":"SQRT((AR197^2)+(AR198^2)+(AR199^2)+(AR200^2))","v":18.947295321496416},{"$f":"AS197+AS198+AS199+AS200","v":8},{"$f":"SQRT((AT197^2)+(AT198^2)+(AT199^2)+(AT200^2))","v":18.193405398660254},{"$f":"AU197+AU198+AU199+AU200","v":258},{"$f":"SQRT((AV197^2)+(AV198^2)+(AV199^2)+(AV200^2))","v":102.43534546239398},{"$f":"AW197+AW198+AW199+AW200","v":23},{"$f":"SQRT((AX197^2)+(AX198^2)+(AX199^2)+(AX200^2))","v":41.617304093369626},{"$f":"AY197+AY198+AY199+AY200","v":40},{"$f":"SQRT((AZ197^2)+(AZ198^2)+(AZ199^2)+(AZ200^2))","v":52.792044855262048},{"$f":"BA197+BA198+BA199+BA200","v":0},{"$f":"SQRT((BB197^2)+(BB198^2)+(BB199^2)+(BB200^2))","v":22},{"$f":"BC197+BC198+BC199+BC200","v":21},{"$f":"SQRT((BD197^2)+(BD198^2)+(BD199^2)+(BD200^2))","v":29.189039038652847},{"$f":"BE197+BE198+BE199+BE200","v":143},{"$f":"SQRT((BF197^2)+(BF198^2)+(BF199^2)+(BF200^2))","v":109.34806811279292},{"$f":"BG197+BG198+BG199+BG200","v":710},{"$f":"SQRT((BH197^2)+(BH198^2)+(BH199^2)+(BH200^2))","v":170.78056095469412},{"$f":"BI197+BI198+BI199+BI200","v":130},{"$f":"SQRT((BJ197^2)+(BJ198^2)+(BJ199^2)+(BJ200^2))","v":95.822753039139926},{"$f":"BK197+BK198+BK199+BK200","v":20},{"$f":"SQRT((BL197^2)+(BL198^2)+(BL199^2)+(BL200^2))","v":42},{"$f":"BM197+BM198+BM199+BM200","v":304},{"$f":"SQRT((BN197^2)+(BN198^2)+(BN199^2)+(BN200^2))","v":109.1512711790385},{"$f":"BO197+BO198+BO199+BO200","v":38},{"$f":"SQRT((BP197^2)+(BP198^2)+(BP199^2)+(BP200^2))","v":52.411830725514633},{"$f":"BQ197+BQ198+BQ199+BQ200","v":270},{"$f":"SQRT((BR197^2)+(BR198^2)+(BR199^2)+(BR200^2))","v":154.59624833740307},{"$f":"BS197+BS198+BS199+BS200","v":4},{"$f":"SQRT((BT197^2)+(BT198^2)+(BT199^2)+(BT200^2))","v":19.697715603592208},{"$f":"BU197+BU198+BU199+BU200","v":26},{"$f":"SQRT((BV197^2)+(BV198^2)+(BV199^2)+(BV200^2))","v":39.686269665968858},{"$f":"BW197+BW198+BW199+BW200","v":115},{"$f":"SQRT((BX197^2)+(BX198^2)+(BX199^2)+(BX200^2))","v":131.53706701914862}]
[null,"Less Than 35% of HH Income",{"$f":"C194+C195+C196+C197","v":57},{"$f":"SQRT((D194^2)+(D195^2)+(D196^2)+(D197^2))","v":90.796475702529335},{"$f":"E194+E195+E196+E197","v":0},{"$f":"SQRT((F194^2)+(F195^2)+(F196^2)+(F197^2))","v":30},{"$f":"G194+G195+G196+G197","v":9},{"$f":"SQRT((H194^2)+(H195^2)+(H196^2)+(H197^2))","v":23.643180835073778},{"$f":"I194+I195+I196+I197","v":11},{"$f":"SQRT((J194^2)+(J195^2)+(J196^2)+(J197^2))","v":26.90724809414742},{"$f":"K194+K195+K196+K197","v":0},{"$f":"SQRT((L194^2)+(L195^2)+(L196^2)+(L197^2))","v":22},{"$f":"M194+M195+M196+M197","v":0},{"$f":"SQRT((N194^2)+(N195^2)+(N196^2)+(N197^2))","v":22},{"$f":"O194+O195+O196+O197","v":0},{"$f":"SQRT((P194^2)+(P195^2)+(P196^2)+(P197^2))","v":22},{"$f":"Q194+Q195+Q196+Q197","v":185},{"$f":"SQRT((R194^2)+(R195^2)+(R196^2)+(R197^2))","v":110.66164647247935},{"$f":"S194+S195+S196+S197","v":0},{"$f":"SQRT((T194^2)+(T195^2)+(T196^2)+(T197^2))","v":22},{"$f":"U194+U195+U196+U197","v":11},{"$f":"SQRT((V194^2)+(V195^2)+(V196^2)+(V197^2))","v":31.048349392520048},{"$f":"W194+W195+W196+W197","v":108},{"$f":"SQRT((X194^2)+(X195^2)+(X196^2)+(X197^2))","v":64.536811201050213},{"$f":"Y194+Y195+Y196+Y197","v":0},{"$f":"SQRT((Z194^2)+(Z195^2)+(Z196^2)+(Z197^2))","v":22},{"$f":"AA194+AA195+AA196+AA197","v":0},{"$f":"SQRT((AB194^2)+(AB195^2)+(AB196^2)+(AB197^2))","v":22},{"$f":"AC194+AC195+AC196+AC197","v":56},{"$f":"SQRT((AD194^2)+(AD195^2)+(AD196^2)+(AD197^2))","v":70},{"$f":"AE194+AE195+AE196+AE197","v":97},{"$f":"SQRT((AF194^2)+(AF195^2)+(AF196^2)+(AF197^2))","v":53.553711355983538},{"$f":"AG194+AG195+AG196+AG197","v":19},{"$f":"SQRT((AH194^2)+(AH195^2)+(AH196^2)+(AH197^2))","v":36.386810797320507},{"$f":"AI194+AI195+AI196+AI197","v":3},{"$f":"SQRT((AJ194^2)+(AJ195^2)+(AJ196^2)+(AJ197^2))","v":19.467922333931785},{"$f":"AK194+AK195+AK196+AK197","v":62},{"$f":"SQRT((AL194^2)+(AL195^2)+(AL196^2)+(AL197^2))","v":70.781353476745551},{"$f":"AM194+AM195+AM196+AM197","v":0},{"$f":"SQRT((AN194^2)+(AN195^2)+(AN196^2)+(AN197^2))","v":40},{"$f":"AO194+AO195+AO196+AO197","v":0},{"$f":"SQRT((AP194^2)+(AP195^2)+(AP196^2)+(AP197^2))","v":22},{"$f":"AQ194+AQ195+AQ196+AQ197","v":3},{"$f":"SQRT((AR194^2)+(AR195^2)+(AR196^2)+(AR197^2))","v":19.974984355438178},{"$f":"AS194+AS195+AS196+AS197","v":7},{"$f":"SQRT((AT194^2)+(AT195^2)+(AT196^2)+(AT197^2))","v":17.944358444926362},{"$f":"AU194+AU195+AU196+AU197","v":181},{"$f":"SQRT((AV194^2)+(AV195^2)+(AV196^2)+(AV197^2))","v":86.51589449343976},{"$f":"AW194+AW195+AW196+AW197","v":9},{"$f":"SQRT((AX194^2)+(AX195^2)+(AX196^2)+(AX197^2))","v":24.248711305964282},{"$f":"AY194+AY195+AY196+AY197","v":0},{"$f":"SQRT((AZ194^2)+(AZ195^2)+(AZ196^2)+(AZ197^2))","v":22},{"$f":"BA194+BA195+BA196+BA197","v":12},{"$f":"SQRT((BB194^2)+(BB195^2)+(BB196^2)+(BB197^2))","v":26.90724809414742},{"$f":"BC194+BC195+BC196+BC197","v":0},{"$f":"SQRT((BD194^2)+(BD195^2)+(BD196^2)+(BD197^2))","v":22},{"$f":"BE194+BE195+BE196+BE197","v":59},{"$f":"SQRT((BF194^2)+(BF195^2)+(BF196^2)+(BF197^2))","v":47.696960070847283},{"$f":"BG194+BG195+BG196+BG197","v":272},{"$f":"SQRT((BH194^2)+(BH195^2)+(BH196^2)+(BH197^2))","v":121.90980272316087},{"$f":"BI194+BI195+BI196+BI197","v":30},{"$f":"SQRT((BJ194^2)+(BJ195^2)+(BJ196^2)+(BJ197^2))","v":47.286361670147556},{"$f":"BK194+BK195+BK196+BK197","v":0},{"$f":"SQRT((BL194^2)+(BL195^2)+(BL196^2)+(BL197^2))","v":30},{"$f":"BM194+BM195+BM196+BM197","v":31},{"$f":"SQRT((BN194^2)+(BN195^2)+(BN196^2)+(BN197^2))","v":45.299006611624499},{"$f":"BO194+BO195+BO196+BO197","v":27},{"$f":"SQRT((BP194^2)+(BP195^2)+(BP196^2)+(BP197^2))","v":51.097945164164869},{"$f":"BQ194+BQ195+BQ196+BQ197","v":138},{"$f":"SQRT((BR194^2)+(BR195^2)+(BR196^2)+(BR197^2))","v":136.48443134658254},{"$f":"BS194+BS195+BS196+BS197","v":0},{"$f":"SQRT((BT194^2)+(BT195^2)+(BT196^2)+(BT197^2))","v":22},{"$f":"BU194+BU195+BU196+BU197","v":0},{"$f":"SQRT((BV194^2)+(BV195^2)+(BV196^2)+(BV197^2))","v":30},{"$f":"BW194+BW195+BW196+BW197","v":0},{"$f":"SQRT((BX194^2)+(BX195^2)+(BX196^2)+(BX197^2))","v":34}]
[null,"35.0 percent or more",{"$f":"C198+C199+C200","v":0},{"$f":"SQRT((D198^2)+(D199^2)+(D200^2))","v":25.98076211353316},{"$f":"E198+E199+E200","v":0},{"$f":"SQRT((F198^2)+(F199^2)+(F200^2))","v":25.98076211353316},{"$f":"G198+G199+G200","v":71},{"$f":"SQRT((H198^2)+(H199^2)+(H200^2))","v":65.992423807585666},{"$f":"I198+I199+I200","v":12},{"$f":"SQRT((J198^2)+(J199^2)+(J200^2))","v":23.790754506740637},{"$f":"K198+K199+K200","v":65},{"$f":"SQRT((L198^2)+(L199^2)+(L200^2))","v":63.608175575157006},{"$f":"M198+M199+M200","v":8},{"$f":"SQRT((N198^2)+(N199^2)+(N200^2))","v":19.646882704388499},{"$f":"O198+O199+O200","v":20},{"$f":"SQRT((P198^2)+(P199^2)+(P200^2))","v":27.766886753829642},{"$f":"Q198+Q199+Q200","v":643},{"$f":"SQRT((R198^2)+(R199^2)+(R200^2))","v":215.68727361622427},{"$f":"S198+S199+S200","v":6},{"$f":"SQRT((T198^2)+(T199^2)+(T200^2))","v":17.4928556845359},{"$f":"U198+U199+U200","v":0},{"$f":"SQRT((V198^2)+(V199^2)+(V200^2))","v":25.98076211353316},{"$f":"W198+W199+W200","v":273},{"$f":"SQRT((X198^2)+(X199^2)+(X200^2))","v":137.06202975295528},{"$f":"Y198+Y199+Y200","v":14},{"$f":"SQRT((Z198^2)+(Z199^2)+(Z200^2))","v":20.223748416156685},{"$f":"AA198+AA199+AA200","v":33},{"$f":"SQRT((AB198^2)+(AB199^2)+(AB200^2))","v":38.301436004411116},{"$f":"AC198+AC199+AC200","v":141},{"$f":"SQRT((AD198^2)+(AD199^2)+(AD200^2))","v":107.35455276791944},{"$f":"AE198+AE199+AE200","v":278},{"$f":"SQRT((AF198^2)+(AF199^2)+(AF200^2))","v":116.67904696216884},{"$f":"AG198+AG199+AG200","v":3},{"$f":"SQRT((AH198^2)+(AH199^2)+(AH200^2))","v":16.673332000533065},{"$f":"AI198+AI199+AI200","v":4},{"$f":"SQRT((AJ198^2)+(AJ199^2)+(AJ200^2))","v":16.340134638368191},{"$f":"AK198+AK199+AK200","v":0},{"$f":"SQRT((AL198^2)+(AL199^2)+(AL200^2))","v":25.98076211353316},{"$f":"AM198+AM199+AM200","v":208},{"$f":"SQRT((AN198^2)+(AN199^2)+(AN200^2))","v":96.958754117408091},{"$f":"AO198+AO199+AO200","v":0},{"$f":"SQRT((AP198^2)+(AP199^2)+(AP200^2))","v":19.05255888325765},{"$f":"AQ198+AQ199+AQ200","v":9},{"$f":"SQRT((AR198^2)+(AR199^2)+(AR200^2))","v":17.972200755611428},{"$f":"AS198+AS199+AS200","v":3},{"$f":"SQRT((AT198^2)+(AT199^2)+(AT200^2))","v":16.340134638368191},{"$f":"AU198+AU199+AU200","v":198},{"$f":"SQRT((AV198^2)+(AV199^2)+(AV200^2))","v":91.525952603619487},{"$f":"AW198+AW199+AW200","v":23},{"$f":"SQRT((AX198^2)+(AX199^2)+(AX200^2))","v":40.137264480778953},{"$f":"AY198+AY199+AY200","v":40},{"$f":"SQRT((AZ198^2)+(AZ199^2)+(AZ200^2))","v":51.633322573702344},{"$f":"BA198+BA199+BA200","v":0},{"$f":"SQRT((BB198^2)+(BB199^2)+(BB200^2))","v":19.05255888325765},{"$f":"BC198+BC199+BC200","v":21},{"$f":"SQRT((BD198^2)+(BD199^2)+(BD200^2))","v":27.03701166919155},{"$f":"BE198+BE199+BE200","v":109},{"$f":"SQRT((BF198^2)+(BF199^2)+(BF200^2))","v":103.25211862233142},{"$f":"BG198+BG199+BG200","v":624},{"$f":"SQRT((BH198^2)+(BH199^2)+(BH200^2))","v":159.12887858588081},{"$f":"BI198+BI199+BI200","v":130},{"$f":"SQRT((BJ198^2)+(BJ199^2)+(BJ200^2))","v":94.30270409696638},{"$f":"BK198+BK199+BK200","v":20},{"$f":"SQRT((BL198^2)+(BL199^2)+(BL200^2))","v":39.230090491866065},{"$f":"BM198+BM199+BM200","v":304},{"$f":"SQRT((BN198^2)+(BN199^2)+(BN200^2))","v":107.30330842988953},{"$f":"BO198+BO199+BO200","v":11},{"$f":"SQRT((BP198^2)+(BP199^2)+(BP200^2))","v":28.478061731796284},{"$f":"BQ198+BQ199+BQ200","v":175},{"$f":"SQRT((BR198^2)+(BR199^2)+(BR200^2))","v":101.04949282406122},{"$f":"BS198+BS199+BS200","v":4},{"$f":"SQRT((BT198^2)+(BT199^2)+(BT200^2))","v":16.340134638368191},{"$f":"BU198+BU199+BU200","v":26},{"$f":"SQRT((BV198^2)+(BV199^2)+(BV200^2))","v":36.742346141747674},{"$f":"BW198+BW199+BW200","v":115},{"$f":"SQRT((BX198^2)+(BX199^2)+(BX200^2))","v":130.43389130130251}]
[null,"50.0 percent or more",{"$f":"C200","v":0},15,0,15,40,45,0,11,59,62,8,12,20,23,401,178,6,8,0,15,123,88,6,12,33,35,19,22,147,67,0,11,4,5,0,15,152,86,0,11,9,9,0,11,60,42,0,11,32,49,0,11,0,11,74,96,336,124,7,12,0,15,149,73,{"$f":"BO200","v":11},19,107,87,4,5,26,30,44,68]
[null,"Not Computed",0,15,0,15,11,18,0,11,0,11,5,10,0,11,34,32,0,11,30,32,44,68,0,11,0,11,0,15,22,31,0,11,0,11,0,15,18,28,0,11,0,11,0,11,19,31,0,11,9,14,11,17,0,11,0,15,33,33,0,17,0,15,11,19,0,15,0,15,3,4,0,15,0,17]
[null,"$35,000 to $49,999:",0,15,76,46,40,30,0,11,10,16,74,49,49,53,872,211,10,11,0,15,170,100,30,35,21,22,118,95,328,109,17,27,0,11,90,77,271,127,15,20,8,13,12,10,211,96,148,94,35,54,78,54,28,31,161,113,700,163,152,92,84,96,590,168,38,60,201,98,0,11,51,45,55,68]
[null,"Less than 30.0 percent",{"$f":"C203+C204+C205","v":0},{"$f":"SQRT((D203^2)+(D204^2)+(D205^2))","v":25.98076211353316},{"$f":"E203+E204+E205","v":65},{"$f":"SQRT((F203^2)+(F204^2)+(F205^2))","v":61.98386886924694},{"$f":"G203+G204+G205","v":0},{"$f":"SQRT((H203^2)+(H204^2)+(H205^2))","v":19.05255888325765},{"$f":"I203+I204+I205","v":0},{"$f":"SQRT((J203^2)+(J204^2)+(J205^2))","v":19.05255888325765},{"$f":"K203+K204+K205","v":0},{"$f":"SQRT((L203^2)+(L204^2)+(L205^2))","v":19.05255888325765},{"$f":"M203+M204+M205","v":19},{"$f":"SQRT((N203^2)+(N204^2)+(N205^2))","v":33.793490497431605},{"$f":"O203+O204+O205","v":9},{"$f":"SQRT((P203^2)+(P204^2)+(P205^2))","v":21.61018278497431},{"$f":"Q203+Q204+Q205","v":373},{"$f":"SQRT((R203^2)+(R204^2)+(R205^2))","v":144.37104972950775},{"$f":"S203+S204+S205","v":0},{"$f":"SQRT((T203^2)+(T204^2)+(T205^2))","v":19.05255888325765},{"$f":"U203+U204+U205","v":0},{"$f":"SQRT((V203^2)+(V204^2)+(V205^2))","v":25.98076211353316},{"$f":"W203+W204+W205","v":111},{"$f":"SQRT((X203^2)+(X204^2)+(X205^2))","v":96.76259607927021},{"$f":"Y203+Y204+Y205","v":0},{"$f":"SQRT((Z203^2)+(Z204^2)+(Z205^2))","v":19.05255888325765},{"$f":"AA203+AA204+AA205","v":11},{"$f":"SQRT((AB203^2)+(AB204^2)+(AB205^2))","v":23.043437243605826},{"$f":"AC203+AC204+AC205","v":59},{"$f":"SQRT((AD203^2)+(AD204^2)+(AD205^2))","v":62.649820430708338},{"$f":"AE203+AE204+AE205","v":95},{"$f":"SQRT((AF203^2)+(AF204^2)+(AF205^2))","v":56.648036153074187},{"$f":"AG203+AG204+AG205","v":17},{"$f":"SQRT((AH203^2)+(AH204^2)+(AH205^2))","v":31.160872901765767},{"$f":"AI203+AI204+AI205","v":0},{"$f":"SQRT((AJ203^2)+(AJ204^2)+(AJ205^2))","v":19.05255888325765},{"$f":"AK203+AK204+AK205","v":42},{"$f":"SQRT((AL203^2)+(AL204^2)+(AL205^2))","v":52.354560450833695},{"$f":"AM203+AM204+AM205","v":128},{"$f":"SQRT((AN203^2)+(AN204^2)+(AN205^2))","v":92.779308037945611},{"$f":"AO203+AO204+AO205","v":0},{"$f":"SQRT((AP203^2)+(AP204^2)+(AP205^2))","v":19.05255888325765},{"$f":"AQ203+AQ204+AQ205","v":8},{"$f":"SQRT((AR203^2)+(AR204^2)+(AR205^2))","v":20.273134932713294},{"$f":"AS203+AS204+AS205","v":3},{"$f":"SQRT((AT203^2)+(AT204^2)+(AT205^2))","v":16.340134638368191},{"$f":"AU203+AU204+AU205","v":89},{"$f":"SQRT((AV203^2)+(AV204^2)+(AV205^2))","v":53.394756296849977},{"$f":"AW203+AW204+AW205","v":80},{"$f":"SQRT((AX203^2)+(AX204^2)+(AX205^2))","v":75.617458301638251},{"$f":"AY203+AY204+AY205","v":35},{"$f":"SQRT((AZ203^2)+(AZ204^2)+(AZ205^2))","v":56.196085272908469},{"$f":"BA203+BA204+BA205","v":30},{"$f":"SQRT((BB203^2)+(BB204^2)+(BB205^2))","v":39.217343102255157},{"$f":"BC203+BC204+BC205","v":13},{"$f":"SQRT((BD203^2)+(BD204^2)+(BD205^2))","v":26.134268690743959},{"$f":"BE203+BE204+BE205","v":91},{"$f":"SQRT((BF203^2)+(BF204^2)+(BF205^2))","v":87.509999428636732},{"$f":"BG203+BG204+BG205","v":235},{"$f":"SQRT((BH203^2)+(BH204^2)+(BH205^2))","v":93.733665243603909},{"$f":"BI203+BI204+BI205","v":75},{"$f":"SQRT((BJ203^2)+(BJ204^2)+(BJ205^2))","v":74.087785767965826},{"$f":"BK203+BK204+BK205","v":0},{"$f":"SQRT((BL203^2)+(BL204^2)+(BL205^2))","v":25.98076211353316},{"$f":"BM203+BM204+BM205","v":242},{"$f":"SQRT((BN203^2)+(BN204^2)+(BN205^2))","v":101.67595585978034},{"$f":"BO203+BO204+BO205","v":38},{"$f":"SQRT((BP203^2)+(BP204^2)+(BP205^2))","v":63.63961030678928},{"$f":"BQ203+BQ204+BQ205","v":130},{"$f":"SQRT((BR203^2)+(BR204^2)+(BR205^2))","v":76.765877836445014},{"$f":"BS203+BS204+BS205","v":0},{"$f":"SQRT((BT203^2)+(BT204^2)+(BT205^2))","v":19.05255888325765},{"$f":"BU203+BU204+BU205","v":40},{"$f":"SQRT((BV203^2)+(BV204^2)+(BV205^2))","v":48.877397639399746},{"$f":"BW203+BW204+BW205","v":0},{"$f":"SQRT((BX203^2)+(BX204^2)+(BX205^2))","v":29.444863728670914}]
[null,"More than 30.0 percent",{"$f":"C206+C207+C208+C209","v":0},{"$f":"SQRT((D206^2)+(D207^2)+(D208^2)+(D209^2))","v":30},{"$f":"E206+E207+E208+E209","v":11},{"$f":"SQRT((F206^2)+(F207^2)+(F208^2)+(F209^2))","v":31.606961258558215},{"$f":"G206+G207+G208+G209","v":15},{"$f":"SQRT((H206^2)+(H207^2)+(H208^2)+(H209^2))","v":23.021728866442675},{"$f":"I206+I207+I208+I209","v":0},{"$f":"SQRT((J206^2)+(J207^2)+(J208^2)+(J209^2))","v":22},{"$f":"K206+K207+K208+K209","v":10},{"$f":"SQRT((L206^2)+(L207^2)+(L208^2)+(L209^2))","v":24.879710609249457},{"$f":"M206+M207+M208+M209","v":37},{"$f":"SQRT((N206^2)+(N207^2)+(N208^2)+(N209^2))","v":32.557641192199412},{"$f":"O206+O207+O208+O209","v":40},{"$f":"SQRT((P206^2)+(P207^2)+(P208^2)+(P209^2))","v":53.553711355983538},{"$f":"Q206+Q207+Q208+Q209","v":488},{"$f":"SQRT((R206^2)+(R207^2)+(R208^2)+(R209^2))","v":171.38844768536765},{"$f":"S206+S207+S208+S209","v":10},{"$f":"SQRT((T206^2)+(T207^2)+(T208^2)+(T209^2))","v":19.157244060668017},{"$f":"U206+U207+U208+U209","v":0},{"$f":"SQRT((V206^2)+(V207^2)+(V208^2)+(V209^2))","v":30},{"$f":"W206+W207+W208+W209","v":45},{"$f":"SQRT((X206^2)+(X207^2)+(X208^2)+(X209^2))","v":33.896902513356586},{"$f":"Y206+Y207+Y208+Y209","v":30},{"$f":"SQRT((Z206^2)+(Z207^2)+(Z208^2)+(Z209^2))","v":39.268307832143719},{"$f":"AA206+AA207+AA208+AA209","v":10},{"$f":"SQRT((AB206^2)+(AB207^2)+(AB208^2)+(AB209^2))","v":24.248711305964282},{"$f":"AC206+AC207+AC208+AC209","v":59},{"$f":"SQRT((AD206^2)+(AD207^2)+(AD208^2)+(AD209^2))","v":81.264998615640181},{"$f":"AE206+AE207+AE208+AE209","v":220},{"$f":"SQRT((AF206^2)+(AF207^2)+(AF208^2)+(AF209^2))","v":125.83322295800899},{"$f":"AG206+AG207+AG208+AG209","v":0},{"$f":"SQRT((AH206^2)+(AH207^2)+(AH208^2)+(AH209^2))","v":22},{"$f":"AI206+AI207+AI208+AI209","v":0},{"$f":"SQRT((AJ206^2)+(AJ207^2)+(AJ208^2)+(AJ209^2))","v":22},{"$f":"AK206+AK207+AK208+AK209","v":48},{"$f":"SQRT((AL206^2)+(AL207^2)+(AL208^2)+(AL209^2))","v":65.871086221497819},{"$f":"AM206+AM207+AM208+AM209","v":123},{"$f":"SQRT((AN206^2)+(AN207^2)+(AN208^2)+(AN209^2))","v":87.275426094634454},{"$f":"AO206+AO207+AO208+AO209","v":15},{"$f":"SQRT((AP206^2)+(AP207^2)+(AP208^2)+(AP209^2))","v":25.651510676761319},{"$f":"AQ206+AQ207+AQ208+AQ209","v":0},{"$f":"SQRT((AR206^2)+(AR207^2)+(AR208^2)+(AR209^2))","v":22},{"$f":"AS206+AS207+AS208+AS209","v":8},{"$f":"SQRT((AT206^2)+(AT207^2)+(AT208^2)+(AT209^2))","v":17.406895185529212},{"$f":"AU206+AU207+AU208+AU209","v":122},{"$f":"SQRT((AV206^2)+(AV207^2)+(AV208^2)+(AV209^2))","v":80.833161511844878},{"$f":"AW206+AW207+AW208+AW209","v":68},{"$f":"SQRT((AX206^2)+(AX207^2)+(AX208^2)+(AX209^2))","v":75.676944970050158},{"$f":"AY206+AY207+AY208+AY209","v":0},{"$f":"SQRT((AZ206^2)+(AZ207^2)+(AZ208^2)+(AZ209^2))","v":22},{"$f":"BA206+BA207+BA208+BA209","v":48},{"$f":"SQRT((BB206^2)+(BB207^2)+(BB208^2)+(BB209^2))","v":51.759057178430133},{"$f":"BC206+BC207+BC208+BC209","v":0},{"$f":"SQRT((BD206^2)+(BD207^2)+(BD208^2)+(BD209^2))","v":22},{"$f":"BE206+BE207+BE208+BE209","v":70},{"$f":"SQRT((BF206^2)+(BF207^2)+(BF208^2)+(BF209^2))","v":78.511145705562086},{"$f":"BG206+BG207+BG208+BG209","v":455},{"$f":"SQRT((BH206^2)+(BH207^2)+(BH208^2)+(BH209^2))","v":141.66862743741115},{"$f":"BI206+BI207+BI208+BI209","v":77},{"$f":"SQRT((BJ206^2)+(BJ207^2)+(BJ208^2)+(BJ209^2))","v":54.881690936048976},{"$f":"BK206+BK207+BK208+BK209","v":57},{"$f":"SQRT((BL206^2)+(BL207^2)+(BL208^2)+(BL209^2))","v":90.796475702529335},{"$f":"BM206+BM207+BM208+BM209","v":348},{"$f":"SQRT((BN206^2)+(BN207^2)+(BN208^2)+(BN209^2))","v":153.06207890917986},{"$f":"BO206+BO207+BO208+BO209","v":0},{"$f":"SQRT((BP206^2)+(BP207^2)+(BP208^2)+(BP209^2))","v":30},{"$f":"BQ206+BQ207+BQ208+BQ209","v":71},{"$f":"SQRT((BR206^2)+(BR207^2)+(BR208^2)+(BR209^2))","v":58.506409905240297},{"$f":"BS206+BS207+BS208+BS209","v":0},{"$f":"SQRT((BT206^2)+(BT207^2)+(BT208^2)+(BT209^2))","v":22},{"$f":"BU206+BU207+BU208+BU209","v":11},{"$f":"SQRT((BV206^2)+(BV207^2)+(BV208^2)+(BV209^2))","v":31.606961258558215},{"$f":"BW206+BW207+BW208+BW209","v":55},{"$f":"SQRT((BX206^2)+(BX207^2)+(BX208^2)+(BX209^2))","v":69.483811064160832}]
[null,"Less Than 35% of HH Income",{"$f":"C203+C204+C205+C206","v":0},{"$f":"SQRT((D203^2)+(D204^2)+(D205^2)+(D206^2))","v":30},{"$f":"E203+E204+E205+E206","v":65},{"$f":"SQRT((F203^2)+(F204^2)+(F205^2)+(F206^2))","v":63.773035054010094},{"$f":"G203+G204+G205+G206","v":8},{"$f":"SQRT((H203^2)+(H204^2)+(H205^2)+(H206^2))","v":22.516660498395403},{"$f":"I203+I204+I205+I206","v":0},{"$f":"SQRT((J203^2)+(J204^2)+(J205^2)+(J206^2))","v":22},{"$f":"K203+K204+K205+K206","v":0},{"$f":"SQRT((L203^2)+(L204^2)+(L205^2)+(L206^2))","v":22},{"$f":"M203+M204+M205+M206","v":19},{"$f":"SQRT((N203^2)+(N204^2)+(N205^2)+(N206^2))","v":35.538711287833721},{"$f":"O203+O204+O205+O206","v":18},{"$f":"SQRT((P203^2)+(P204^2)+(P205^2)+(P206^2))","v":26.305892875931811},{"$f":"Q203+Q204+Q205+Q206","v":527},{"$f":"SQRT((R203^2)+(R204^2)+(R205^2)+(R206^2))","v":168.04463692721646},{"$f":"S203+S204+S205+S206","v":0},{"$f":"SQRT((T203^2)+(T204^2)+(T205^2)+(T206^2))","v":22},{"$f":"U203+U204+U205+U206","v":0},{"$f":"SQRT((V203^2)+(V204^2)+(V205^2)+(V206^2))","v":30},{"$f":"W203+W204+W205+W206","v":124},{"$f":"SQRT((X203^2)+(X204^2)+(X205^2)+(X206^2))","v":98.076500753238534},{"$f":"Y203+Y204+Y205+Y206","v":0},{"$f":"SQRT((Z203^2)+(Z204^2)+(Z205^2)+(Z206^2))","v":22},{"$f":"AA203+AA204+AA205+AA206","v":11},{"$f":"SQRT((AB203^2)+(AB204^2)+(AB205^2)+(AB206^2))","v":25.534290669607408},{"$f":"AC203+AC204+AC205+AC206","v":59},{"$f":"SQRT((AD203^2)+(AD204^2)+(AD205^2)+(AD206^2))","v":64.420493633625625},{"$f":"AE203+AE204+AE205+AE206","v":199},{"$f":"SQRT((AF203^2)+(AF204^2)+(AF205^2)+(AF206^2))","v":104.65658125507444},{"$f":"AG203+AG204+AG205+AG206","v":17},{"$f":"SQRT((AH203^2)+(AH204^2)+(AH205^2)+(AH206^2))","v":33.045423283716609},{"$f":"AI203+AI204+AI205+AI206","v":0},{"$f":"SQRT((AJ203^2)+(AJ204^2)+(AJ205^2)+(AJ206^2))","v":22},{"$f":"AK203+AK204+AK205+AK206","v":80},{"$f":"SQRT((AL203^2)+(AL204^2)+(AL205^2)+(AL206^2))","v":79.630396206473819},{"$f":"AM203+AM204+AM205+AM206","v":138},{"$f":"SQRT((AN203^2)+(AN204^2)+(AN205^2)+(AN206^2))","v":94.910484141637383},{"$f":"AO203+AO204+AO205+AO206","v":12},{"$f":"SQRT((AP203^2)+(AP204^2)+(AP205^2)+(AP206^2))","v":27.622454633866266},{"$f":"AQ203+AQ204+AQ205+AQ206","v":8},{"$f":"SQRT((AR203^2)+(AR204^2)+(AR205^2)+(AR206^2))","v":23.065125189341593},{"$f":"AS203+AS204+AS205+AS206","v":6},{"$f":"SQRT((AT203^2)+(AT204^2)+(AT205^2)+(AT206^2))","v":17.088007490635061},{"$f":"AU203+AU204+AU205+AU206","v":140},{"$f":"SQRT((AV203^2)+(AV204^2)+(AV205^2)+(AV206^2))","v":78.10249675906654},{"$f":"AW203+AW204+AW205+AW206","v":108},{"$f":"SQRT((AX203^2)+(AX204^2)+(AX205^2)+(AX206^2))","v":86.498554901223642},{"$f":"AY203+AY204+AY205+AY206","v":35},{"$f":"SQRT((AZ203^2)+(AZ204^2)+(AZ205^2)+(AZ206^2))","v":57.262553208881634},{"$f":"BA203+BA204+BA205+BA206","v":56},{"$f":"SQRT((BB203^2)+(BB204^2)+(BB205^2)+(BB206^2))","v":58.197938107805847},{"$f":"BC203+BC204+BC205+BC206","v":13},{"$f":"SQRT((BD203^2)+(BD204^2)+(BD205^2)+(BD206^2))","v":28.354893757515651},{"$f":"BE203+BE204+BE205+BE206","v":104},{"$f":"SQRT((BF203^2)+(BF204^2)+(BF205^2)+(BF206^2))","v":89.994444272966092},{"$f":"BG203+BG204+BG205+BG206","v":370},{"$f":"SQRT((BH203^2)+(BH204^2)+(BH205^2)+(BH206^2))","v":115.21718621802913},{"$f":"BI203+BI204+BI205+BI206","v":146},{"$f":"SQRT((BJ203^2)+(BJ204^2)+(BJ205^2)+(BJ206^2))","v":87.738247076175398},{"$f":"BK203+BK204+BK205+BK206","v":0},{"$f":"SQRT((BL203^2)+(BL204^2)+(BL205^2)+(BL206^2))","v":30},{"$f":"BM203+BM204+BM205+BM206","v":352},{"$f":"SQRT((BN203^2)+(BN204^2)+(BN205^2)+(BN206^2))","v":127.54214989563255},{"$f":"BO203+BO204+BO205+BO206","v":38},{"$f":"SQRT((BP203^2)+(BP204^2)+(BP205^2)+(BP206^2))","v":65.383484153110103},{"$f":"BQ203+BQ204+BQ205+BQ206","v":155},{"$f":"SQRT((BR203^2)+(BR204^2)+(BR205^2)+(BR206^2))","v":80.137382038596698},{"$f":"BS203+BS204+BS205+BS206","v":0},{"$f":"SQRT((BT203^2)+(BT204^2)+(BT205^2)+(BT206^2))","v":22},{"$f":"BU203+BU204+BU205+BU206","v":51},{"$f":"SQRT((BV203^2)+(BV204^2)+(BV205^2)+(BV206^2))","v":52.086466572421671},{"$f":"BW203+BW204+BW205+BW206","v":15},{"$f":"SQRT((BX203^2)+(BX204^2)+(BX205^2)+(BX206^2))","v":37.363083384538811}]
[null,"35.0 percent or more",{"$f":"C207+C208+C209","v":0},{"$f":"SQRT((D207^2)+(D208^2)+(D209^2))","v":25.98076211353316},{"$f":"E207+E208+E209","v":11},{"$f":"SQRT((F207^2)+(F208^2)+(F209^2))","v":27.820855486487112},{"$f":"G207+G208+G209","v":7},{"$f":"SQRT((H207^2)+(H208^2)+(H209^2))","v":19.646882704388499},{"$f":"I207+I208+I209","v":0},{"$f":"SQRT((J207^2)+(J208^2)+(J209^2))","v":19.05255888325765},{"$f":"K207+K208+K209","v":10},{"$f":"SQRT((L207^2)+(L208^2)+(L209^2))","v":22.315913604421397},{"$f":"M207+M208+M209","v":37},{"$f":"SQRT((N207^2)+(N208^2)+(N209^2))","v":30.643106892089126},{"$f":"O207+O208+O209","v":31},{"$f":"SQRT((P207^2)+(P208^2)+(P209^2))","v":51.410115736107812},{"$f":"Q207+Q208+Q209","v":334},{"$f":"SQRT((R207^2)+(R208^2)+(R209^2))","v":148.24978920727003},{"$f":"S207+S208+S209","v":10},{"$f":"SQRT((T207^2)+(T208^2)+(T209^2))","v":15.684387141358123},{"$f":"U207+U208+U209","v":0},{"$f":"SQRT((V207^2)+(V208^2)+(V209^2))","v":25.98076211353316},{"$f":"W207+W208+W209","v":32},{"$f":"SQRT((X207^2)+(X208^2)+(X209^2))","v":29.883105594967869},{"$f":"Y207+Y208+Y209","v":30},{"$f":"SQRT((Z207^2)+(Z208^2)+(Z209^2))","v":37.696153649941529},{"$f":"AA207+AA208+AA209","v":10},{"$f":"SQRT((AB207^2)+(AB208^2)+(AB209^2))","v":21.61018278497431},{"$f":"AC207+AC208+AC209","v":59},{"$f":"SQRT((AD207^2)+(AD208^2)+(AD209^2))","v":79.868642156981736},{"$f":"AE207+AE208+AE209","v":116},{"$f":"SQRT((AF207^2)+(AF208^2)+(AF209^2))","v":89.944427287075428},{"$f":"AG207+AG208+AG209","v":0},{"$f":"SQRT((AH207^2)+(AH208^2)+(AH209^2))","v":19.05255888325765},{"$f":"AI207+AI208+AI209","v":0},{"$f":"SQRT((AJ207^2)+(AJ208^2)+(AJ209^2))","v":19.05255888325765},{"$f":"AK207+AK208+AK209","v":10},{"$f":"SQRT((AL207^2)+(AL208^2)+(AL209^2))","v":27.184554438136374},{"$f":"AM207+AM208+AM209","v":113},{"$f":"SQRT((AN207^2)+(AN208^2)+(AN209^2))","v":84.952928142589641},{"$f":"AO207+AO208+AO209","v":3},{"$f":"SQRT((AP207^2)+(AP208^2)+(AP209^2))","v":16.06237840420901},{"$f":"AQ207+AQ208+AQ209","v":0},{"$f":"SQRT((AR207^2)+(AR208^2)+(AR209^2))","v":19.05255888325765},{"$f":"AS207+AS208+AS209","v":5},{"$f":"SQRT((AT207^2)+(AT208^2)+(AT209^2))","v":16.673332000533065},{"$f":"AU207+AU208+AU209","v":71},{"$f":"SQRT((AV207^2)+(AV208^2)+(AV209^2))","v":57.314919523628397},{"$f":"AW207+AW208+AW209","v":40},{"$f":"SQRT((AX207^2)+(AX208^2)+(AX209^2))","v":62.952362942148568},{"$f":"AY207+AY208+AY209","v":0},{"$f":"SQRT((AZ207^2)+(AZ208^2)+(AZ209^2))","v":19.05255888325765},{"$f":"BA207+BA208+BA209","v":22},{"$f":"SQRT((BB207^2)+(BB208^2)+(BB209^2))","v":28.809720581775867},{"$f":"BC207+BC208+BC209","v":0},{"$f":"SQRT((BD207^2)+(BD208^2)+(BD209^2))","v":19.05255888325765},{"$f":"BE207+BE208+BE209","v":57},{"$f":"SQRT((BF207^2)+(BF208^2)+(BF209^2))","v":75.650512225628717},{"$f":"BG207+BG208+BG209","v":320},{"$f":"SQRT((BH207^2)+(BH208^2)+(BH209^2))","v":124.82387592123551},{"$f":"BI207+BI208+BI209","v":6},{"$f":"SQRT((BJ207^2)+(BJ208^2)+(BJ209^2))","v":28.337254630609507},{"$f":"BK207+BK208+BK209","v":57},{"$f":"SQRT((BL207^2)+(BL208^2)+(BL209^2))","v":89.548869339595797},{"$f":"BM207+BM208+BM209","v":238},{"$f":"SQRT((BN207^2)+(BN208^2)+(BN209^2))","v":132.28378585450298},{"$f":"BO207+BO208+BO209","v":0},{"$f":"SQRT((BP207^2)+(BP208^2)+(BP209^2))","v":25.98076211353316},{"$f":"BQ207+BQ208+BQ209","v":46},{"$f":"SQRT((BR207^2)+(BR208^2)+(BR209^2))","v":53.795910625251061},{"$f":"BS207+BS208+BS209","v":0},{"$f":"SQRT((BT207^2)+(BT208^2)+(BT209^2))","v":19.05255888325765},{"$f":"BU207+BU208+BU209","v":0},{"$f":"SQRT((BV207^2)+(BV208^2)+(BV209^2))","v":25.98076211353316},{"$f":"BW207+BW208+BW209","v":40},{"$f":"SQRT((BX207^2)+(BX208^2)+(BX209^2))","v":65.566759871142025}]
[null,"50.0 percent or more",{"$f":"C209","v":0},{"$f":"D209","v":15},{"$f":"E209","v":11},{"$f":"F209","v":18},{"$f":"G209","v":0},11,{"$f":"I209","v":0},11,{"$f":"K209","v":10},16,{"$f":"M209","v":0},11,{"$f":"O209","v":0},11,{"$f":"Q209","v":78},53,{"$f":"S209","v":3},5,{"$f":"U209","v":0},15,{"$f":"W209","v":8},13,{"$f":"Y209","v":8},12,{"$f":"AA209","v":10},15,{"$f":"AC209","v":0},15,{"$f":"AE209","v":54},45,{"$f":"AG209","v":0},11,{"$f":"AI209","v":0},11,{"$f":"AK209","v":10},17,{"$f":"AM209","v":0},20,{"$f":"AO209","v":3},4,{"$f":"AQ209","v":0},11,{"$f":"AS209","v":0},11,{"$f":"AU209","v":0},15,{"$f":"AW209","v":0},11,{"$f":"AY209","v":0},11,{"$f":"BA209","v":13},22,{"$f":"BC209","v":0},11,{"$f":"BE209","v":0},15,{"$f":"BG209","v":21},19,{"$f":"BI209","v":6},15,{"$f":"BK209","v":0},15,{"$f":"BM209","v":42},43,{"$f":"BO209","v":0},15,{"$f":"BQ209","v":0},{"$f":"BR209","v":15},{"$f":"BS209","v":0},11,{"$f":"BU209","v":0},15,{"$f":"BW209","v":0},17]
[null,"Not Computed",{"$f":"C210","v":0},15,{"$f":"E210","v":0},15,{"$f":"G210","v":25},26,{"$f":"I210","v":0},11,{"$f":"K210","v":0},11,{"$f":"M210","v":18},29,{"$f":"O210","v":0},11,{"$f":"Q210","v":11},17,{"$f":"S210","v":0},11,{"$f":"U210","v":0},15,{"$f":"W210","v":14},21,{"$f":"Y210","v":0},11,{"$f":"AA210","v":0},11,{"$f":"AC210","v":0},15,{"$f":"AE210","v":13},21,{"$f":"AG210","v":0},11,{"$f":"AI210","v":0},11,{"$f":"AK210","v":0},15,{"$f":"AM210","v":20},26,{"$f":"AO210","v":0},11,{"$f":"AQ210","v":0},11,{"$f":"AS210","v":1},3,{"$f":"AU210","v":0},15,{"$f":"AW210","v":0},11,{"$f":"AY210","v":0},11,{"$f":"BA210","v":0},11,{"$f":"BC210","v":15},24,{"$f":"BE210","v":0},15,{"$f":"BG210","v":10},15,{"$f":"BI210","v":0},17,{"$f":"BK210","v":27},41,{"$f":"BM210","v":0},20,{"$f":"BO210","v":0},15,{"$f":"BQ210","v":0},15,{"$f":"BS210","v":0},11,{"$f":"BU210","v":0},15,{"$f":"BW210","v":0},17]
[null,"$50,000 to $74,999:",{"$f":"C211","v":48},56,46,44,21,33,16,26,0,11,36,36,40,47,1040,248,10,11,156,128,321,133,93,65,70,60,109,76,322,116,22,19,17,13,73,74,260,113,25,22,22,22,32,25,400,132,58,65,27,24,86,68,18,19,37,37,1022,195,227,112,69,55,564,163,{"$f":"BO211","v":31},38,249,114,0,11,59,62,53,51]
[null,"Less than 30.0 percent",{"$f":"C212+C213+C214","v":20},{"$f":"SQRT((D212^2)+(D213^2)+(D214^2))","v":38.392707640904931},{"$f":"E212+E213+E214","v":46},{"$f":"SQRT((F212^2)+(F213^2)+(F214^2))","v":47.947888378947411},{"$f":"G212+G213+G214","v":21},{"$f":"SQRT((H212^2)+(H213^2)+(H214^2))","v":36.4828726939094},{"$f":"I212+I213+I214","v":16},{"$f":"SQRT((J212^2)+(J213^2)+(J214^2))","v":30.298514815086232},{"$f":"K212+K213+K214","v":0},{"$f":"SQRT((L212^2)+(L213^2)+(L214^2))","v":19.05255888325765},{"$f":"M212+M213+M214","v":27},{"$f":"SQRT((N212^2)+(N213^2)+(N214^2))","v":36.4828726939094},{"$f":"O212+O213+O214","v":31},{"$f":"SQRT((P212^2)+(P213^2)+(P214^2))","v":46.669047558312137},{"$f":"Q212+Q213+Q214","v":802},{"$f":"SQRT((R212^2)+(R213^2)+(R214^2))","v":220.42232191862965},{"$f":"S212+S213+S214","v":6},{"$f":"SQRT((T212^2)+(T213^2)+(T214^2))","v":17.972200755611428},{"$f":"U212+U213+U214","v":129},{"$f":"SQRT((V212^2)+(V213^2)+(V214^2))","v":124.61540835707277},{"$f":"W212+W213+W214","v":197},{"$f":"SQRT((X212^2)+(X213^2)+(X214^2))","v":98.519033694002502},{"$f":"Y212+Y213+Y214","v":48},{"$f":"SQRT((Z212^2)+(Z213^2)+(Z214^2))","v":47.613023428469653},{"$f":"AA212+AA213+AA214","v":49},{"$f":"SQRT((AB212^2)+(AB213^2)+(AB214^2))","v":60.241181927316134},{"$f":"AC212+AC213+AC214","v":76},{"$f":"SQRT((AD212^2)+(AD213^2)+(AD214^2))","v":61.326992425847855},{"$f":"AE212+AE213+AE214","v":245},{"$f":"SQRT((AF212^2)+(AF213^2)+(AF214^2))","v":102.77159140540736},{"$f":"AG212+AG213+AG214","v":5},{"$f":"SQRT((AH212^2)+(AH213^2)+(AH214^2))","v":17.058722109231979},{"$f":"AI212+AI213+AI214","v":4},{"$f":"SQRT((AJ212^2)+(AJ213^2)+(AJ214^2))","v":12.083045973594572},{"$f":"AK212+AK213+AK214","v":73},{"$f":"SQRT((AL212^2)+(AL213^2)+(AL214^2))","v":78.600254452514335},{"$f":"AM212+AM213+AM214","v":177},{"$f":"SQRT((AN212^2)+(AN213^2)+(AN214^2))","v":87.988635629835741},{"$f":"AO212+AO213+AO214","v":4},{"$f":"SQRT((AP212^2)+(AP213^2)+(AP214^2))","v":17.4928556845359},{"$f":"AQ212+AQ213+AQ214","v":9},{"$f":"SQRT((AR212^2)+(AR213^2)+(AR214^2))","v":21.61018278497431},{"$f":"AS212+AS213+AS214","v":32},{"$f":"SQRT((AT212^2)+(AT213^2)+(AT214^2))","v":25.495097567963924},{"$f":"AU212+AU213+AU214","v":311},{"$f":"SQRT((AV212^2)+(AV213^2)+(AV214^2))","v":134.36517405935214},{"$f":"AW212+AW213+AW214","v":58},{"$f":"SQRT((AX212^2)+(AX213^2)+(AX214^2))","v":64.645185435575939},{"$f":"AY212+AY213+AY214","v":19},{"$f":"SQRT((AZ212^2)+(AZ213^2)+(AZ214^2))","v":24.06241883103193},{"$f":"BA212+BA213+BA214","v":67},{"$f":"SQRT((BB212^2)+(BB213^2)+(BB214^2))","v":65.31462317123173},{"$f":"BC212+BC213+BC214","v":0},{"$f":"SQRT((BD212^2)+(BD213^2)+(BD214^2))","v":19.05255888325765},{"$f":"BE212+BE213+BE214","v":37},{"$f":"SQRT((BF212^2)+(BF213^2)+(BF214^2))","v":39.749213828703581},{"$f":"BG212+BG213+BG214","v":823},{"$f":"SQRT((BH212^2)+(BH213^2)+(BH214^2))","v":215.8077848456816},{"$f":"BI212+BI213+BI214","v":185},{"$f":"SQRT((BJ212^2)+(BJ213^2)+(BJ214^2))","v":119.77061409210525},{"$f":"BK212+BK213+BK214","v":56},{"$f":"SQRT((BL212^2)+(BL213^2)+(BL214^2))","v":55.235857918565905},{"$f":"BM212+BM213+BM214","v":513},{"$f":"SQRT((BN212^2)+(BN213^2)+(BN214^2))","v":165.32997308413258},{"$f":"BO212+BO213+BO214","v":31},{"$f":"SQRT((BP212^2)+(BP213^2)+(BP214^2))","v":43.520110293977886},{"$f":"BQ212+BQ213+BQ214","v":211},{"$f":"SQRT((BR212^2)+(BR213^2)+(BR214^2))","v":104.22091920531118},{"$f":"BS212+BS213+BS214","v":0},{"$f":"SQRT((BT212^2)+(BT213^2)+(BT214^2))","v":19.05255888325765},{"$f":"BU212+BU213+BU214","v":34},{"$f":"SQRT((BV212^2)+(BV213^2)+(BV214^2))","v":58.949130612757983},{"$f":"BW212+BW213+BW214","v":0},{"$f":"SQRT((BX212^2)+(BX213^2)+(BX214^2))","v":29.444863728670914}]
[null,"More than 30.0 percent",{"$f":"C215+C216+C217+C218","v":28},{"$f":"SQRT((D215^2)+(D216^2)+(D217^2)+(D218^2))","v":51.96152422706632},{"$f":"E215+E216+E217+E218","v":0},{"$f":"SQRT((F215^2)+(F216^2)+(F217^2)+(F218^2))","v":30},{"$f":"G215+G216+G217+G218","v":0},{"$f":"SQRT((H215^2)+(H216^2)+(H217^2)+(H218^2))","v":22},{"$f":"I215+I216+I217+I218","v":0},{"$f":"SQRT((J215^2)+(J216^2)+(J217^2)+(J218^2))","v":22},{"$f":"K215+K216+K217+K218","v":0},{"$f":"SQRT((L215^2)+(L216^2)+(L217^2)+(L218^2))","v":22},{"$f":"M215+M216+M217+M218","v":0},{"$f":"SQRT((N215^2)+(N216^2)+(N217^2)+(N218^2))","v":22},{"$f":"O215+O216+O217+O218","v":9},{"$f":"SQRT((P215^2)+(P216^2)+(P217^2)+(P218^2))","v":23.065125189341593},{"$f":"Q215+Q216+Q217+Q218","v":218},{"$f":"SQRT((R215^2)+(R216^2)+(R217^2)+(R218^2))","v":130.95419046368849},{"$f":"S215+S216+S217+S218","v":4},{"$f":"SQRT((T215^2)+(T216^2)+(T217^2)+(T218^2))","v":19.974984355438178},{"$f":"U215+U216+U217+U218","v":11},{"$f":"SQRT((V215^2)+(V216^2)+(V217^2)+(V218^2))","v":30.512292604784715},{"$f":"W215+W216+W217+W218","v":124},{"$f":"SQRT((X215^2)+(X216^2)+(X217^2)+(X218^2))","v":100.44899203078147},{"$f":"Y215+Y216+Y217+Y218","v":45},{"$f":"SQRT((Z215^2)+(Z216^2)+(Z217^2)+(Z218^2))","v":43.954521951671822},{"$f":"AA215+AA216+AA217+AA218","v":21},{"$f":"SQRT((AB215^2)+(AB216^2)+(AB217^2)+(AB218^2))","v":26.962937525425527},{"$f":"AC215+AC216+AC217+AC218","v":33},{"$f":"SQRT((AD215^2)+(AD216^2)+(AD217^2)+(AD218^2))","v":48.238988380769349},{"$f":"AE215+AE216+AE217+AE218","v":62},{"$f":"SQRT((AF215^2)+(AF216^2)+(AF217^2)+(AF218^2))","v":49.989998999799951},{"$f":"AG215+AG216+AG217+AG218","v":5},{"$f":"SQRT((AH215^2)+(AH216^2)+(AH217^2)+(AH218^2))","v":20.297783130184438},{"$f":"AI215+AI216+AI217+AI218","v":6},{"$f":"SQRT((AJ215^2)+(AJ216^2)+(AJ217^2)+(AJ218^2))","v":20.663978319771825},{"$f":"AK215+AK216+AK217+AK218","v":0},{"$f":"SQRT((AL215^2)+(AL216^2)+(AL217^2)+(AL218^2))","v":30},{"$f":"AM215+AM216+AM217+AM218","v":83},{"$f":"SQRT((AN215^2)+(AN216^2)+(AN217^2)+(AN218^2))","v":70.292247083159893},{"$f":"AO215+AO216+AO217+AO218","v":13},{"$f":"SQRT((AP215^2)+(AP216^2)+(AP217^2)+(AP218^2))","v":27.622454633866266},{"$f":"AQ215+AQ216+AQ217+AQ218","v":13},{"$f":"SQRT((AR215^2)+(AR216^2)+(AR217^2)+(AR218^2))","v":24.879710609249457},{"$f":"AS215+AS216+AS217+AS218","v":0},{"$f":"SQRT((AT215^2)+(AT216^2)+(AT217^2)+(AT218^2))","v":22},{"$f":"AU215+AU216+AU217+AU218","v":89},{"$f":"SQRT((AV215^2)+(AV216^2)+(AV217^2)+(AV218^2))","v":83.755596827913536},{"$f":"AW215+AW216+AW217+AW218","v":0},{"$f":"SQRT((AX215^2)+(AX216^2)+(AX217^2)+(AX218^2))","v":22},{"$f":"AY215+AY216+AY217+AY218","v":8},{"$f":"SQRT((AZ215^2)+(AZ216^2)+(AZ217^2)+(AZ218^2))","v":22.516660498395403},{"$f":"BA215+BA216+BA217+BA218","v":0},{"$f":"SQRT((BB215^2)+(BB216^2)+(BB217^2)+(BB218^2))","v":22},{"$f":"BC215+BC216+BC217+BC218","v":9},{"$f":"SQRT((BD215^2)+(BD216^2)+(BD217^2)+(BD218^2))","v":23.643180835073778},{"$f":"BE215+BE216+BE217+BE218","v":0},{"$f":"SQRT((BF215^2)+(BF216^2)+(BF217^2)+(BF218^2))","v":30},{"$f":"BG215+BG216+BG217+BG218","v":199},{"$f":"SQRT((BH215^2)+(BH216^2)+(BH217^2)+(BH218^2))","v":95.723560318241397},{"$f":"BI215+BI216+BI217+BI218","v":20},{"$f":"SQRT((BJ215^2)+(BJ216^2)+(BJ217^2)+(BJ218^2))","v":34.02939905434711},{"$f":"BK215+BK216+BK217+BK218","v":13},{"$f":"SQRT((BL215^2)+(BL216^2)+(BL217^2)+(BL218^2))","v":34.044089061098404},{"$f":"BM215+BM216+BM217+BM218","v":51},{"$f":"SQRT((BN215^2)+(BN216^2)+(BN217^2)+(BN218^2))","v":84.433405711246778},{"$f":"BO215+BO216+BO217+BO218","v":0},{"$f":"SQRT((BP215^2)+(BP216^2)+(BP217^2)+(BP218^2))","v":30},{"$f":"BQ215+BQ216+BQ217+BQ218","v":38},{"$f":"SQRT((BR215^2)+(BR216^2)+(BR217^2)+(BR218^2))","v":42.555845661906424},{"$f":"BS215+BS216+BS217+BS218","v":0},{"$f":"SQRT((BT215^2)+(BT216^2)+(BT217^2)+(BT218^2))","v":22},{"$f":"BU215+BU216+BU217+BU218","v":25},{"$f":"SQRT((BV215^2)+(BV216^2)+(BV217^2)+(BV218^2))","v":37.242448899072144},{"$f":"BW215+BW216+BW217+BW218","v":28},{"$f":"SQRT((BX215^2)+(BX216^2)+(BX217^2)+(BX218^2))","v":39.42080668885405}]
[null,"Less Than 35% of HH Income",{"$f":"C215+C214+C213+C212","v":48},{"$f":"SQRT((D215^2)+(D214^2)+(D213^2)+(D212^2))","v":59.152345684681009},{"$f":"E215+E214+E213+E212","v":46},{"$f":"SQRT((F215^2)+(F214^2)+(F213^2)+(F212^2))","v":50.239426748321883},{"$f":"G215+G214+G213+G212","v":21},{"$f":"SQRT((H215^2)+(H214^2)+(H213^2)+(H212^2))","v":38.105117766515299},{"$f":"I215+I214+I213+I212","v":16},{"$f":"SQRT((J215^2)+(J214^2)+(J213^2)+(J212^2))","v":32.233522922572398},{"$f":"K215+K214+K213+K212","v":0},{"$f":"SQRT((L215^2)+(L214^2)+(L213^2)+(L212^2))","v":22},{"$f":"M215+M214+M213+M212","v":27},{"$f":"SQRT((N215^2)+(N214^2)+(N213^2)+(N212^2))","v":38.105117766515299},{"$f":"O215+O214+O213+O212","v":40},{"$f":"SQRT((P215^2)+(P214^2)+(P213^2)+(P212^2))","v":48.445846055157297},{"$f":"Q215+Q214+Q213+Q212","v":939},{"$f":"SQRT((R215^2)+(R214^2)+(R213^2)+(R212^2))","v":244.58536342144433},{"$f":"S215+S214+S213+S212","v":6},{"$f":"SQRT((T215^2)+(T214^2)+(T213^2)+(T212^2))","v":21.071307505705477},{"$f":"U215+U214+U213+U212","v":129},{"$f":"SQRT((V215^2)+(V214^2)+(V213^2)+(V212^2))","v":125.51493934986385},{"$f":"W215+W214+W213+W212","v":270},{"$f":"SQRT((X215^2)+(X214^2)+(X213^2)+(X212^2))","v":130.77461527376022},{"$f":"Y215+Y214+Y213+Y212","v":86},{"$f":"SQRT((Z215^2)+(Z214^2)+(Z213^2)+(Z212^2))","v":61.546730213716472},{"$f":"AA215+AA214+AA213+AA212","v":60},{"$f":"SQRT((AB215^2)+(AB214^2)+(AB213^2)+(AB212^2))","v":62.593929418115302},{"$f":"AC215+AC214+AC213+AC212","v":76},{"$f":"SQRT((AD215^2)+(AD214^2)+(AD213^2)+(AD212^2))","v":63.134776470658387},{"$f":"AE215+AE214+AE213+AE212","v":272},{"$f":"SQRT((AF215^2)+(AF214^2)+(AF213^2)+(AF212^2))","v":105.76861538282516},{"$f":"AG215+AG214+AG213+AG212","v":10},{"$f":"SQRT((AH215^2)+(AH214^2)+(AH213^2)+(AH212^2))","v":18.439088914585774},{"$f":"AI215+AI214+AI213+AI212","v":4},{"$f":"SQRT((AJ215^2)+(AJ214^2)+(AJ213^2)+(AJ212^2))","v":16.340134638368191},{"$f":"AK215+AK214+AK213+AK212","v":73},{"$f":"SQRT((AL215^2)+(AL214^2)+(AL213^2)+(AL212^2))","v":80.018747803249212},{"$f":"AM215+AM214+AM213+AM212","v":229},{"$f":"SQRT((AN215^2)+(AN214^2)+(AN213^2)+(AN212^2))","v":103.23759005323593},{"$f":"AO215+AO214+AO213+AO212","v":17},{"$f":"SQRT((AP215^2)+(AP214^2)+(AP213^2)+(AP212^2))","v":26.570660511172846},{"$f":"AQ215+AQ214+AQ213+AQ212","v":9},{"$f":"SQRT((AR215^2)+(AR214^2)+(AR213^2)+(AR212^2))","v":24.248711305964282},{"$f":"AS215+AS214+AS213+AS212","v":32},{"$f":"SQRT((AT215^2)+(AT214^2)+(AT213^2)+(AT212^2))","v":27.766886753829642},{"$f":"AU215+AU214+AU213+AU212","v":388},{"$f":"SQRT((AV215^2)+(AV214^2)+(AV213^2)+(AV212^2))","v":155.86853434866191},{"$f":"AW215+AW214+AW213+AW212","v":58},{"$f":"SQRT((AX215^2)+(AX214^2)+(AX213^2)+(AX212^2))","v":65.574385243020004},{"$f":"AY215+AY214+AY213+AY212","v":27},{"$f":"SQRT((AZ215^2)+(AZ214^2)+(AZ213^2)+(AZ212^2))","v":26.888659319497503},{"$f":"BA215+BA214+BA213+BA212","v":67},{"$f":"SQRT((BB215^2)+(BB214^2)+(BB213^2)+(BB212^2))","v":66.234432133143557},{"$f":"BC215+BC214+BC213+BC212","v":0},{"$f":"SQRT((BD215^2)+(BD214^2)+(BD213^2)+(BD212^2))","v":22},{"$f":"BE215+BE214+BE213+BE212","v":37},{"$f":"SQRT((BF215^2)+(BF214^2)+(BF213^2)+(BF212^2))","v":42.485291572496003},{"$f":"BG215+BG214+BG213+BG212","v":942},{"$f":"SQRT((BH215^2)+(BH214^2)+(BH213^2)+(BH212^2))","v":229.81296743221432},{"$f":"BI215+BI214+BI213+BI212","v":185},{"$f":"SQRT((BJ215^2)+(BJ214^2)+(BJ213^2)+(BJ212^2))","v":120.97107092193571},{"$f":"BK215+BK214+BK213+BK212","v":56},{"$f":"SQRT((BL215^2)+(BL214^2)+(BL213^2)+(BL212^2))","v":57.23635208501674},{"$f":"BM215+BM214+BM213+BM212","v":513},{"$f":"SQRT((BN215^2)+(BN214^2)+(BN213^2)+(BN212^2))","v":166.53528154718447},{"$f":"BO215+BO214+BO213+BO212","v":31},{"$f":"SQRT((BP215^2)+(BP214^2)+(BP213^2)+(BP212^2))","v":46.032597145935618},{"$f":"BQ215+BQ214+BQ213+BQ212","v":229},{"$f":"SQRT((BR215^2)+(BR214^2)+(BR213^2)+(BR212^2))","v":106.12257064357233},{"$f":"BS215+BS214+BS213+BS212","v":0},{"$f":"SQRT((BT215^2)+(BT214^2)+(BT213^2)+(BT212^2))","v":22},{"$f":"BU215+BU214+BU213+BU212","v":48},{"$f":"SQRT((BV215^2)+(BV214^2)+(BV213^2)+(BV212^2))","v":63.647466563878254},{"$f":"BW215+BW214+BW213+BW212","v":0},{"$f":"SQRT((BX215^2)+(BX214^2)+(BX213^2)+(BX212^2))","v":34}]
[null,"35.0 percent or more",{"$f":"C216+C217+C218","v":0},{"$f":"SQRT((D216^2)+(D217^2)+(D218^2))","v":25.98076211353316},{"$f":"E216+E217+E218","v":0},{"$f":"SQRT((F216^2)+(F217^2)+(F218^2))","v":25.98076211353316},{"$f":"G216+G217+G218","v":0},{"$f":"SQRT((H216^2)+(H217^2)+(H218^2))","v":19.05255888325765},{"$f":"I216+I217+I218","v":0},{"$f":"SQRT((J216^2)+(J217^2)+(J218^2))","v":19.05255888325765},{"$f":"K216+K217+K218","v":0},{"$f":"SQRT((L216^2)+(L217^2)+(L218^2))","v":19.05255888325765},{"$f":"M216+M217+M218","v":0},{"$f":"SQRT((N216^2)+(N217^2)+(N218^2))","v":19.05255888325765},{"$f":"O216+O217+O218","v":0},{"$f":"SQRT((P216^2)+(P217^2)+(P218^2))","v":19.05255888325765},{"$f":"Q216+Q217+Q218","v":81},{"$f":"SQRT((R216^2)+(R217^2)+(R218^2))","v":76.896033707857782},{"$f":"S216+S217+S218","v":4},{"$f":"SQRT((T216^2)+(T217^2)+(T218^2))","v":16.673332000533065},{"$f":"U216+U217+U218","v":11},{"$f":"SQRT((V216^2)+(V217^2)+(V218^2))","v":26.570660511172846},{"$f":"W216+W217+W218","v":51},{"$f":"SQRT((X216^2)+(X217^2)+(X218^2))","v":51.903757089443921},{"$f":"Y216+Y217+Y218","v":7},{"$f":"SQRT((Z216^2)+(Z217^2)+(Z218^2))","v":20.273134932713294},{"$f":"AA216+AA217+AA218","v":10},{"$f":"SQRT((AB216^2)+(AB217^2)+(AB218^2))","v":20.928449536456348},{"$f":"AC216+AC217+AC218","v":33},{"$f":"SQRT((AD216^2)+(AD217^2)+(AD218^2))","v":45.847573545390603},{"$f":"AE216+AE217+AE218","v":35},{"$f":"SQRT((AF216^2)+(AF217^2)+(AF218^2))","v":43.289721643826724},{"$f":"AG216+AG217+AG218","v":0},{"$f":"SQRT((AH216^2)+(AH217^2)+(AH218^2))","v":19.05255888325765},{"$f":"AI216+AI217+AI218","v":6},{"$f":"SQRT((AJ216^2)+(AJ217^2)+(AJ218^2))","v":17.4928556845359},{"$f":"AK216+AK217+AK218","v":0},{"$f":"SQRT((AL216^2)+(AL217^2)+(AL218^2))","v":25.98076211353316},{"$f":"AM216+AM217+AM218","v":31},{"$f":"SQRT((AN216^2)+(AN217^2)+(AN218^2))","v":45},{"$f":"AO216+AO217+AO218","v":0},{"$f":"SQRT((AP216^2)+(AP217^2)+(AP218^2))","v":19.05255888325765},{"$f":"AQ216+AQ217+AQ218","v":13},{"$f":"SQRT((AR216^2)+(AR217^2)+(AR218^2))","v":22.315913604421397},{"$f":"AS216+AS217+AS218","v":0},{"$f":"SQRT((AT216^2)+(AT217^2)+(AT218^2))","v":19.05255888325765},{"$f":"AU216+AU217+AU218","v":12},{"$f":"SQRT((AV216^2)+(AV217^2)+(AV218^2))","v":27.820855486487112},{"$f":"AW216+AW217+AW218","v":0},{"$f":"SQRT((AX216^2)+(AX217^2)+(AX218^2))","v":19.05255888325765},{"$f":"AY216+AY217+AY218","v":0},{"$f":"SQRT((AZ216^2)+(AZ217^2)+(AZ218^2))","v":19.05255888325765},{"$f":"BA216+BA217+BA218","v":0},{"$f":"SQRT((BB216^2)+(BB217^2)+(BB218^2))","v":19.05255888325765},{"$f":"BC216+BC217+BC218","v":9},{"$f":"SQRT((BD216^2)+(BD217^2)+(BD218^2))","v":20.928449536456348},{"$f":"BE216+BE217+BE218","v":0},{"$f":"SQRT((BF216^2)+(BF217^2)+(BF218^2))","v":25.98076211353316},{"$f":"BG216+BG217+BG218","v":80},{"$f":"SQRT((BH216^2)+(BH217^2)+(BH218^2))","v":54.055527006958314},{"$f":"BI216+BI217+BI218","v":20},{"$f":"SQRT((BJ216^2)+(BJ217^2)+(BJ218^2))","v":29.478805945967352},{"$f":"BK216+BK217+BK218","v":13},{"$f":"SQRT((BL216^2)+(BL217^2)+(BL218^2))","v":30.561413579872251},{"$f":"BM216+BM217+BM218","v":51},{"$f":"SQRT((BN216^2)+(BN217^2)+(BN218^2))","v":82.030482139263327},{"$f":"BO216+BO217+BO218","v":0},{"$f":"SQRT((BP216^2)+(BP217^2)+(BP218^2))","v":25.98076211353316},{"$f":"BQ216+BQ217+BQ218","v":20},{"$f":"SQRT((BR216^2)+(BR217^2)+(BR218^2))","v":37.563279941985897},{"$f":"BS216+BS217+BS218","v":0},{"$f":"SQRT((BT216^2)+(BT217^2)+(BT218^2))","v":19.05255888325765},{"$f":"BU216+BU217+BU218","v":11},{"$f":"SQRT((BV216^2)+(BV217^2)+(BV218^2))","v":28.478061731796284},{"$f":"BW216+BW217+BW218","v":28},{"$f":"SQRT((BX216^2)+(BX217^2)+(BX218^2))","v":35.566838487557476}]
[null,"50.0 percent or more",{"$f":"C218","v":0},{"$f":"D218","v":15},{"$f":"E218","v":0},{"$f":"F218","v":15},{"$f":"G218","v":0},11,{"$f":"I218","v":0},11,{"$f":"K218","v":0},11,{"$f":"M218","v":0},11,{"$f":"O218","v":0},11,{"$f":"Q218","v":14},22,{"$f":"S218","v":0},11,{"$f":"U218","v":0},15,{"$f":"W218","v":0},17,{"$f":"Y218","v":7},13,{"$f":"AA218","v":10},14,{"$f":"AC218","v":0},15,{"$f":"AE218","v":0},17,{"$f":"AG218","v":0},11,{"$f":"AI218","v":6},8,{"$f":"AK218","v":0},15,{"$f":"AM218","v":0},20,{"$f":"AO218","v":0},11,{"$f":"AQ218","v":0},11,{"$f":"AS218","v":0},11,{"$f":"AU218","v":0},15,{"$f":"AW218","v":0},11,{"$f":"AY218","v":0},11,{"$f":"BA218","v":0},11,{"$f":"BC218","v":0},11,{"$f":"BE218","v":0},15,{"$f":"BG218","v":21},29,{"$f":"BI218","v":0},17,{"$f":"BK218","v":0},15,{"$f":"BM218","v":0},20,{"$f":"BO218","v":0},15,{"$f":"BQ218","v":0},{"$f":"BR218","v":15},{"$f":"BS218","v":0},11,{"$f":"BU218","v":11},19,{"$f":"BW218","v":12},20]
[null,"Not Computed",{"$f":"C219","v":0},15,{"$f":"E219","v":0},15,{"$f":"G219","v":0},11,{"$f":"I219","v":0},11,{"$f":"K219","v":0},11,{"$f":"M219","v":9},14,{"$f":"O219","v":0},11,{"$f":"Q219","v":20},25,{"$f":"S219","v":0},11,{"$f":"U219","v":16},26,{"$f":"W219","v":0},17,{"$f":"Y219","v":0},11,{"$f":"AA219","v":0},11,{"$f":"AC219","v":0},15,{"$f":"AE219","v":15},18,{"$f":"AG219","v":12},18,{"$f":"AI219","v":7},9,{"$f":"AK219","v":0},15,{"$f":"AM219","v":0},20,{"$f":"AO219","v":8},13,{"$f":"AQ219","v":0},11,{"$f":"AS219","v":0},11,{"$f":"AU219","v":0},15,{"$f":"AW219","v":0},11,{"$f":"AY219","v":0},11,{"$f":"BA219","v":19},22,{"$f":"BC219","v":9},14,{"$f":"BE219","v":0},15,{"$f":"BG219","v":0},20,{"$f":"BI219","v":22},36,{"$f":"BK219","v":0},15,{"$f":"BM219","v":0},20,{"$f":"BO219","v":0},15,{"$f":"BQ219","v":0},15,{"$f":"BS219","v":0},11,{"$f":"BU219","v":0},15,{"$f":"BW219","v":25},37]
[null,"$75,000 to $99,999:",{"$f":"C220","v":18},27,{"$f":"E220","v":0},15,{"$f":"G220","v":6},10,{"$f":"I220","v":0},11,{"$f":"K220","v":0},11,{"$f":"M220","v":20},33,{"$f":"O220","v":0},11,{"$f":"Q220","v":527},169,{"$f":"S220","v":7},9,{"$f":"U220","v":13},22,{"$f":"W220","v":198},97,{"$f":"Y220","v":20},24,{"$f":"AA220","v":38},29,{"$f":"AC220","v":35},47,{"$f":"AE220","v":188},84,{"$f":"AG220","v":29},23,{"$f":"AI220","v":10},8,{"$f":"AK220","v":24},28,{"$f":"AM220","v":144},72,{"$f":"AO220","v":21},21,{"$f":"AQ220","v":9},12,{"$f":"AS220","v":20},16,{"$f":"AU220","v":125},75,{"$f":"AW220","v":16},26,{"$f":"AY220","v":8},13,{"$f":"BA220","v":0},11,{"$f":"BC220","v":2},7,{"$f":"BE220","v":162},113,{"$f":"BG220","v":695},178,{"$f":"BI220","v":160},90,{"$f":"BK220","v":21},31,{"$f":"BM220","v":439},173,{"$f":"BO220","v":22},32,{"$f":"BQ220","v":147},91,{"$f":"BS220","v":9},8,{"$f":"BU220","v":0},15,{"$f":"BW220","v":45},39]
[null,"Less than 30.0 percent",{"$f":"C221+C222+C223","v":18},{"$f":"SQRT((D221^2)+(D222^2)+(D223^2))","v":34.336569426778794},{"$f":"E221+E222+E223","v":0},{"$f":"SQRT((F221^2)+(F222^2)+(F223^2))","v":25.98076211353316},{"$f":"G221+G222+G223","v":6},{"$f":"SQRT((H221^2)+(H222^2)+(H223^2))","v":18.493242008906929},{"$f":"I221+I222+I223","v":0},{"$f":"SQRT((J221^2)+(J222^2)+(J223^2))","v":19.05255888325765},{"$f":"K221+K222+K223","v":0},{"$f":"SQRT((L221^2)+(L222^2)+(L223^2))","v":19.05255888325765},{"$f":"M221+M222+M223","v":20},{"$f":"SQRT((N221^2)+(N222^2)+(N223^2))","v":36.4828726939094},{"$f":"O221+O222+O223","v":0},{"$f":"SQRT((P221^2)+(P222^2)+(P223^2))","v":19.05255888325765},{"$f":"Q221+Q222+Q223","v":511},{"$f":"SQRT((R221^2)+(R222^2)+(R223^2))","v":179.08657124418906},{"$f":"S221+S222+S223","v":7},{"$f":"SQRT((T221^2)+(T222^2)+(T223^2))","v":17.972200755611428},{"$f":"U221+U222+U223","v":13},{"$f":"SQRT((V221^2)+(V222^2)+(V223^2))","v":30.561413579872251},{"$f":"W221+W222+W223","v":182},{"$f":"SQRT((X221^2)+(X222^2)+(X223^2))","v":104.70912090166739},{"$f":"Y221+Y222+Y223","v":20},{"$f":"SQRT((Z221^2)+(Z222^2)+(Z223^2))","v":24.020824298928627},{"$f":"AA221+AA222+AA223","v":29},{"$f":"SQRT((AB221^2)+(AB222^2)+(AB223^2))","v":27.313000567495326},{"$f":"AC221+AC222+AC223","v":35},{"$f":"SQRT((AD221^2)+(AD222^2)+(AD223^2))","v":51.565492337414952},{"$f":"AE221+AE222+AE223","v":154},{"$f":"SQRT((AF221^2)+(AF222^2)+(AF223^2))","v":67.208630398186216},{"$f":"AG221+AG222+AG223","v":26},{"$f":"SQRT((AH221^2)+(AH222^2)+(AH223^2))","v":27.766886753829642},{"$f":"AI221+AI222+AI223","v":5},{"$f":"SQRT((AJ221^2)+(AJ222^2)+(AJ223^2))","v":16.340134638368191},{"$f":"AK221+AK222+AK223","v":24},{"$f":"SQRT((AL221^2)+(AL222^2)+(AL223^2))","v":35.128336140500593},{"$f":"AM221+AM222+AM223","v":130},{"$f":"SQRT((AN221^2)+(AN222^2)+(AN223^2))","v":73.925638313104884},{"$f":"AO221+AO222+AO223","v":18},{"$f":"SQRT((AP221^2)+(AP222^2)+(AP223^2))","v":22.649503305812249},{"$f":"AQ221+AQ222+AQ223","v":9},{"$f":"SQRT((AR221^2)+(AR222^2)+(AR223^2))","v":16.30950643030009},{"$f":"AS221+AS222+AS223","v":17},{"$f":"SQRT((AT221^2)+(AT222^2)+(AT223^2))","v":14.866068747318506},{"$f":"AU221+AU222+AU223","v":118},{"$f":"SQRT((AV221^2)+(AV222^2)+(AV223^2))","v":73.16419889536138},{"$f":"AW221+AW222+AW223","v":16},{"$f":"SQRT((AX221^2)+(AX222^2)+(AX223^2))","v":30.298514815086232},{"$f":"AY221+AY222+AY223","v":8},{"$f":"SQRT((AZ221^2)+(AZ222^2)+(AZ223^2))","v":20.273134932713294},{"$f":"BA221+BA222+BA223","v":0},{"$f":"SQRT((BB221^2)+(BB222^2)+(BB223^2))","v":19.05255888325765},{"$f":"BC221+BC222+BC223","v":2},{"$f":"SQRT((BD221^2)+(BD222^2)+(BD223^2))","v":17.058722109231979},{"$f":"BE221+BE222+BE223","v":148},{"$f":"SQRT((BF221^2)+(BF222^2)+(BF223^2))","v":112.01339205648581},{"$f":"BG221+BG222+BG223","v":621},{"$f":"SQRT((BH221^2)+(BH222^2)+(BH223^2))","v":177.76670104381191},{"$f":"BI221+BI222+BI223","v":148},{"$f":"SQRT((BJ221^2)+(BJ222^2)+(BJ223^2))","v":88.870692581975533},{"$f":"BK221+BK222+BK223","v":21},{"$f":"SQRT((BL221^2)+(BL222^2)+(BL223^2))","v":37.563279941985897},{"$f":"BM221+BM222+BM223","v":363},{"$f":"SQRT((BN221^2)+(BN222^2)+(BN223^2))","v":143.32131732579072},{"$f":"BO221+BO222+BO223","v":22},{"$f":"SQRT((BP221^2)+(BP222^2)+(BP223^2))","v":38.392707640904931},{"$f":"BQ221+BQ222+BQ223","v":147},{"$f":"SQRT((BR221^2)+(BR222^2)+(BR223^2))","v":91.842256069850549},{"$f":"BS221+BS222+BS223","v":7},{"$f":"SQRT((BT221^2)+(BT222^2)+(BT223^2))","v":13.152946437965905},{"$f":"BU221+BU222+BU223","v":0},{"$f":"SQRT((BV221^2)+(BV222^2)+(BV223^2))","v":25.98076211353316},{"$f":"BW221+BW222+BW223","v":15},{"$f":"SQRT((BX221^2)+(BX222^2)+(BX223^2))","v":33.97057550292606}]
[null,"More than 30.0 percent",{"$f":"C224+C225+C226+C227","v":0},{"$f":"SQRT((D224^2)+(D225^2)+(D226^2)+(D227^2))","v":30},{"$f":"E224+E225+E226+E227","v":0},{"$f":"SQRT((F224^2)+(F225^2)+(F226^2)+(F227^2))","v":30},{"$f":"G224+G225+G226+G227","v":0},{"$f":"SQRT((H224^2)+(H225^2)+(H226^2)+(H227^2))","v":22},{"$f":"I224+I225+I226+I227","v":0},{"$f":"SQRT((J224^2)+(J225^2)+(J226^2)+(J227^2))","v":22},{"$f":"K224+K225+K226+K227","v":0},{"$f":"SQRT((L224^2)+(L225^2)+(L226^2)+(L227^2))","v":22},{"$f":"M224+M225+M226+M227","v":0},{"$f":"SQRT((N224^2)+(N225^2)+(N226^2)+(N227^2))","v":22},{"$f":"O224+O225+O226+O227","v":0},{"$f":"SQRT((P224^2)+(P225^2)+(P226^2)+(P227^2))","v":22},{"$f":"Q224+Q225+Q226+Q227","v":16},{"$f":"SQRT((R224^2)+(R225^2)+(R226^2)+(R227^2))","v":44.13615298142782},{"$f":"S224+S225+S226+S227","v":0},{"$f":"SQRT((T224^2)+(T225^2)+(T226^2)+(T227^2))","v":22},{"$f":"U224+U225+U226+U227","v":0},{"$f":"SQRT((V224^2)+(V225^2)+(V226^2)+(V227^2))","v":30},{"$f":"W224+W225+W226+W227","v":16},{"$f":"SQRT((X224^2)+(X225^2)+(X226^2)+(X227^2))","v":39.281038682804713},{"$f":"Y224+Y225+Y226+Y227","v":0},{"$f":"SQRT((Z224^2)+(Z225^2)+(Z226^2)+(Z227^2))","v":22},{"$f":"AA224+AA225+AA226+AA227","v":9},{"$f":"SQRT((AB224^2)+(AB225^2)+(AB226^2)+(AB227^2))","v":23.065125189341593},{"$f":"AC224+AC225+AC226+AC227","v":0},{"$f":"SQRT((AD224^2)+(AD225^2)+(AD226^2)+(AD227^2))","v":30},{"$f":"AE224+AE225+AE226+AE227","v":0},{"$f":"SQRT((AF224^2)+(AF225^2)+(AF226^2)+(AF227^2))","v":34},{"$f":"AG224+AG225+AG226+AG227","v":0},{"$f":"SQRT((AH224^2)+(AH225^2)+(AH226^2)+(AH227^2))","v":22},{"$f":"AI224+AI225+AI226+AI227","v":0},{"$f":"SQRT((AJ224^2)+(AJ225^2)+(AJ226^2)+(AJ227^2))","v":22},{"$f":"AK224+AK225+AK226+AK227","v":0},{"$f":"SQRT((AL224^2)+(AL225^2)+(AL226^2)+(AL227^2))","v":30},{"$f":"AM224+AM225+AM226+AM227","v":0},{"$f":"SQRT((AN224^2)+(AN225^2)+(AN226^2)+(AN227^2))","v":40},{"$f":"AO224+AO225+AO226+AO227","v":3},{"$f":"SQRT((AP224^2)+(AP225^2)+(AP226^2)+(AP227^2))","v":19.697715603592208},{"$f":"AQ224+AQ225+AQ226+AQ227","v":0},{"$f":"SQRT((AR224^2)+(AR225^2)+(AR226^2)+(AR227^2))","v":22},{"$f":"AS224+AS225+AS226+AS227","v":3},{"$f":"SQRT((AT224^2)+(AT225^2)+(AT226^2)+(AT227^2))","v":19.697715603592208},{"$f":"AU224+AU225+AU226+AU227","v":7},{"$f":"SQRT((AV224^2)+(AV225^2)+(AV226^2)+(AV227^2))","v":28.21347195933177},{"$f":"AW224+AW225+AW226+AW227","v":0},{"$f":"SQRT((AX224^2)+(AX225^2)+(AX226^2)+(AX227^2))","v":22},{"$f":"AY224+AY225+AY226+AY227","v":0},{"$f":"SQRT((AZ224^2)+(AZ225^2)+(AZ226^2)+(AZ227^2))","v":22},{"$f":"BA224+BA225+BA226+BA227","v":0},{"$f":"SQRT((BB224^2)+(BB225^2)+(BB226^2)+(BB227^2))","v":22},{"$f":"BC224+BC225+BC226+BC227","v":0},{"$f":"SQRT((BD224^2)+(BD225^2)+(BD226^2)+(BD227^2))","v":22},{"$f":"BE224+BE225+BE226+BE227","v":0},{"$f":"SQRT((BF224^2)+(BF225^2)+(BF226^2)+(BF227^2))","v":30},{"$f":"BG224+BG225+BG226+BG227","v":74},{"$f":"SQRT((BH224^2)+(BH225^2)+(BH226^2)+(BH227^2))","v":68.4178339323893},{"$f":"BI224+BI225+BI226+BI227","v":12},{"$f":"SQRT((BJ224^2)+(BJ225^2)+(BJ226^2)+(BJ227^2))","v":35.042830935870462},{"$f":"BK224+BK225+BK226+BK227","v":0},{"$f":"SQRT((BL224^2)+(BL225^2)+(BL226^2)+(BL227^2))","v":30},{"$f":"BM224+BM225+BM226+BM227","v":22},{"$f":"SQRT((BN224^2)+(BN225^2)+(BN226^2)+(BN227^2))","v":39.610604640676719},{"$f":"BO224+BO225+BO226+BO227","v":0},{"$f":"SQRT((BP224^2)+(BP225^2)+(BP226^2)+(BP227^2))","v":30},{"$f":"BQ224+BQ225+BQ226+BQ227","v":0},{"$f":"SQRT((BR224^2)+(BR225^2)+(BR226^2)+(BR227^2))","v":30},{"$f":"BS224+BS225+BS226+BS227","v":2},{"$f":"SQRT((BT224^2)+(BT225^2)+(BT226^2)+(BT227^2))","v":19.28730152198591},{"$f":"BU224+BU225+BU226+BU227","v":0},{"$f":"SQRT((BV224^2)+(BV225^2)+(BV226^2)+(BV227^2))","v":30},{"$f":"BW224+BW225+BW226+BW227","v":9},{"$f":"SQRT((BX224^2)+(BX225^2)+(BX226^2)+(BX227^2))","v":33.511192160232078}]
[null,"Less Than 35% of HH Income",{"$f":"C221+C222+C223+C224","v":18},{"$f":"SQRT((D221^2)+(D222^2)+(D223^2)+(D224^2))","v":37.469987990390386},{"$f":"E221+E222+E223+E224","v":0},{"$f":"SQRT((F221^2)+(F222^2)+(F223^2)+(F224^2))","v":30},{"$f":"G221+G222+G223+G224","v":6},{"$f":"SQRT((H221^2)+(H222^2)+(H223^2)+(H224^2))","v":21.517434791350013},{"$f":"I221+I222+I223+I224","v":0},{"$f":"SQRT((J221^2)+(J222^2)+(J223^2)+(J224^2))","v":22},{"$f":"K221+K222+K223+K224","v":0},{"$f":"SQRT((L221^2)+(L222^2)+(L223^2)+(L224^2))","v":22},{"$f":"M221+M222+M223+M224","v":20},{"$f":"SQRT((N221^2)+(N222^2)+(N223^2)+(N224^2))","v":38.105117766515299},{"$f":"O221+O222+O223+O224","v":0},{"$f":"SQRT((P221^2)+(P222^2)+(P223^2)+(P224^2))","v":22},{"$f":"Q221+Q222+Q223+Q224","v":527},{"$f":"SQRT((R221^2)+(R222^2)+(R223^2)+(R224^2))","v":180.09164333749638},{"$f":"S221+S222+S223+S224","v":7},{"$f":"SQRT((T221^2)+(T222^2)+(T223^2)+(T224^2))","v":21.071307505705477},{"$f":"U221+U222+U223+U224","v":13},{"$f":"SQRT((V221^2)+(V222^2)+(V223^2)+(V224^2))","v":34.044089061098404},{"$f":"W221+W222+W223+W224","v":182},{"$f":"SQRT((X221^2)+(X222^2)+(X223^2)+(X224^2))","v":106.0801583709225},{"$f":"Y221+Y222+Y223+Y224","v":20},{"$f":"SQRT((Z221^2)+(Z222^2)+(Z223^2)+(Z224^2))","v":26.419689627245813},{"$f":"AA221+AA222+AA223+AA224","v":38},{"$f":"SQRT((AB221^2)+(AB222^2)+(AB223^2)+(AB224^2))","v":30.248966924508348},{"$f":"AC221+AC222+AC223+AC224","v":35},{"$f":"SQRT((AD221^2)+(AD222^2)+(AD223^2)+(AD224^2))","v":53.702886328390207},{"$f":"AE221+AE222+AE223+AE224","v":154},{"$f":"SQRT((AF221^2)+(AF222^2)+(AF223^2)+(AF224^2))","v":69.325320049748058},{"$f":"AG221+AG222+AG223+AG224","v":26},{"$f":"SQRT((AH221^2)+(AH222^2)+(AH223^2)+(AH224^2))","v":29.866369046136157},{"$f":"AI221+AI222+AI223+AI224","v":5},{"$f":"SQRT((AJ221^2)+(AJ222^2)+(AJ223^2)+(AJ224^2))","v":19.697715603592208},{"$f":"AK221+AK222+AK223+AK224","v":24},{"$f":"SQRT((AL221^2)+(AL222^2)+(AL223^2)+(AL224^2))","v":38.196858509568557},{"$f":"AM221+AM222+AM223+AM224","v":130},{"$f":"SQRT((AN221^2)+(AN222^2)+(AN223^2)+(AN224^2))","v":76.583287994183166},{"$f":"AO221+AO222+AO223+AO224","v":18},{"$f":"SQRT((AP221^2)+(AP222^2)+(AP223^2)+(AP224^2))","v":25.179356624028344},{"$f":"AQ221+AQ222+AQ223+AQ224","v":9},{"$f":"SQRT((AR221^2)+(AR222^2)+(AR223^2)+(AR224^2))","v":19.672315572906001},{"$f":"AS221+AS222+AS223+AS224","v":20},{"$f":"SQRT((AT221^2)+(AT222^2)+(AT223^2)+(AT224^2))","v":15.684387141358123},{"$f":"AU221+AU222+AU223+AU224","v":125},{"$f":"SQRT((AV221^2)+(AV222^2)+(AV223^2)+(AV224^2))","v":73.986485252375658},{"$f":"AW221+AW222+AW223+AW224","v":16},{"$f":"SQRT((AX221^2)+(AX222^2)+(AX223^2)+(AX224^2))","v":32.233522922572398},{"$f":"AY221+AY222+AY223+AY224","v":8},{"$f":"SQRT((AZ221^2)+(AZ222^2)+(AZ223^2)+(AZ224^2))","v":23.065125189341593},{"$f":"BA221+BA222+BA223+BA224","v":0},{"$f":"SQRT((BB221^2)+(BB222^2)+(BB223^2)+(BB224^2))","v":22},{"$f":"BC221+BC222+BC223+BC224","v":2},{"$f":"SQRT((BD221^2)+(BD222^2)+(BD223^2)+(BD224^2))","v":20.297783130184438},{"$f":"BE221+BE222+BE223+BE224","v":148},{"$f":"SQRT((BF221^2)+(BF222^2)+(BF223^2)+(BF224^2))","v":113.01327355669333},{"$f":"BG221+BG222+BG223+BG224","v":695},{"$f":"SQRT((BH221^2)+(BH222^2)+(BH223^2)+(BH224^2))","v":187.30189534545559},{"$f":"BI221+BI222+BI223+BI224","v":160},{"$f":"SQRT((BJ221^2)+(BJ222^2)+(BJ223^2)+(BJ224^2))","v":90.879040487892482},{"$f":"BK221+BK222+BK223+BK224","v":21},{"$f":"SQRT((BL221^2)+(BL222^2)+(BL223^2)+(BL224^2))","v":40.447496832313369},{"$f":"BM221+BM222+BM223+BM224","v":370},{"$f":"SQRT((BN221^2)+(BN222^2)+(BN223^2)+(BN224^2))","v":143.82280764885658},{"$f":"BO221+BO222+BO223+BO224","v":22},{"$f":"SQRT((BP221^2)+(BP222^2)+(BP223^2)+(BP224^2))","v":41.218927691049899},{"$f":"BQ221+BQ222+BQ223+BQ224","v":147},{"$f":"SQRT((BR221^2)+(BR222^2)+(BR223^2)+(BR224^2))","v":93.059120993054734},{"$f":"BS221+BS222+BS223+BS224","v":9},{"$f":"SQRT((BT221^2)+(BT222^2)+(BT223^2)+(BT224^2))","v":13.490737563232042},{"$f":"BU221+BU222+BU223+BU224","v":0},{"$f":"SQRT((BV221^2)+(BV222^2)+(BV223^2)+(BV224^2))","v":30},{"$f":"BW221+BW222+BW223+BW224","v":24},{"$f":"SQRT((BX221^2)+(BX222^2)+(BX223^2)+(BX224^2))","v":37.549966711037172}]
[null,"35.0 percent or more",{"$f":"C225+C226+C227","v":0},{"$f":"SQRT((D225^2)+(D226^2)+(D227^2))","v":25.98076211353316},{"$f":"E225+E226+E227","v":0},{"$f":"SQRT((F225^2)+(F226^2)+(F227^2))","v":25.98076211353316},{"$f":"G225+G226+G227","v":0},{"$f":"SQRT((H225^2)+(H226^2)+(H227^2))","v":19.05255888325765},{"$f":"I225+I226+I227","v":0},{"$f":"SQRT((J225^2)+(J226^2)+(J227^2))","v":19.05255888325765},{"$f":"K225+K226+K227","v":0},{"$f":"SQRT((L225^2)+(L226^2)+(L227^2))","v":19.05255888325765},{"$f":"M225+M226+M227","v":0},{"$f":"SQRT((N225^2)+(N226^2)+(N227^2))","v":19.05255888325765},{"$f":"O225+O226+O227","v":0},{"$f":"SQRT((P225^2)+(P226^2)+(P227^2))","v":19.05255888325765},{"$f":"Q225+Q226+Q227","v":0},{"$f":"SQRT((R225^2)+(R226^2)+(R227^2))","v":39.837168574084181},{"$f":"S225+S226+S227","v":0},{"$f":"SQRT((T225^2)+(T226^2)+(T227^2))","v":19.05255888325765},{"$f":"U225+U226+U227","v":0},{"$f":"SQRT((V225^2)+(V226^2)+(V227^2))","v":25.98076211353316},{"$f":"W225+W226+W227","v":16},{"$f":"SQRT((X225^2)+(X226^2)+(X227^2))","v":35.411862419251548},{"$f":"Y225+Y226+Y227","v":0},{"$f":"SQRT((Z225^2)+(Z226^2)+(Z227^2))","v":19.05255888325765},{"$f":"AA225+AA226+AA227","v":0},{"$f":"SQRT((AB225^2)+(AB226^2)+(AB227^2))","v":19.05255888325765},{"$f":"AC225+AC226+AC227","v":0},{"$f":"SQRT((AD225^2)+(AD226^2)+(AD227^2))","v":25.98076211353316},{"$f":"AE225+AE226+AE227","v":0},{"$f":"SQRT((AF225^2)+(AF226^2)+(AF227^2))","v":29.444863728670914},{"$f":"AG225+AG226+AG227","v":0},{"$f":"SQRT((AH225^2)+(AH226^2)+(AH227^2))","v":19.05255888325765},{"$f":"AI225+AI226+AI227","v":0},{"$f":"SQRT((AJ225^2)+(AJ226^2)+(AJ227^2))","v":19.05255888325765},{"$f":"AK225+AK226+AK227","v":0},{"$f":"SQRT((AL225^2)+(AL226^2)+(AL227^2))","v":25.98076211353316},{"$f":"AM225+AM226+AM227","v":0},{"$f":"SQRT((AN225^2)+(AN226^2)+(AN227^2))","v":34.641016151377549},{"$f":"AO225+AO226+AO227","v":3},{"$f":"SQRT((AP225^2)+(AP226^2)+(AP227^2))","v":16.340134638368191},{"$f":"AQ225+AQ226+AQ227","v":0},{"$f":"SQRT((AR225^2)+(AR226^2)+(AR227^2))","v":19.05255888325765},{"$f":"AS225+AS226+AS227","v":0},{"$f":"SQRT((AT225^2)+(AT226^2)+(AT227^2))","v":19.05255888325765},{"$f":"AU225+AU226+AU227","v":0},{"$f":"SQRT((AV225^2)+(AV226^2)+(AV227^2))","v":25.98076211353316},{"$f":"AW225+AW226+AW227","v":0},{"$f":"SQRT((AX225^2)+(AX226^2)+(AX227^2))","v":19.05255888325765},{"$f":"AY225+AY226+AY227","v":0},{"$f":"SQRT((AZ225^2)+(AZ226^2)+(AZ227^2))","v":19.05255888325765},{"$f":"BA225+BA226+BA227","v":0},{"$f":"SQRT((BB225^2)+(BB226^2)+(BB227^2))","v":19.05255888325765},{"$f":"BC225+BC226+BC227","v":0},{"$f":"SQRT((BD225^2)+(BD226^2)+(BD227^2))","v":19.05255888325765},{"$f":"BE225+BE226+BE227","v":0},{"$f":"SQRT((BF225^2)+(BF226^2)+(BF227^2))","v":25.98076211353316},{"$f":"BG225+BG226+BG227","v":0},{"$f":"SQRT((BH225^2)+(BH226^2)+(BH227^2))","v":34.641016151377549},{"$f":"BI225+BI226+BI227","v":0},{"$f":"SQRT((BJ225^2)+(BJ226^2)+(BJ227^2))","v":29.444863728670914},{"$f":"BK225+BK226+BK227","v":0},{"$f":"SQRT((BL225^2)+(BL226^2)+(BL227^2))","v":25.98076211353316},{"$f":"BM225+BM226+BM227","v":15},{"$f":"SQRT((BN225^2)+(BN226^2)+(BN227^2))","v":37.749172176353746},{"$f":"BO225+BO226+BO227","v":0},{"$f":"SQRT((BP225^2)+(BP226^2)+(BP227^2))","v":25.98076211353316},{"$f":"BQ225+BQ226+BQ227","v":0},{"$f":"SQRT((BR225^2)+(BR226^2)+(BR227^2))","v":25.98076211353316},{"$f":"BS225+BS226+BS227","v":0},{"$f":"SQRT((BT225^2)+(BT226^2)+(BT227^2))","v":19.05255888325765},{"$f":"BU225+BU226+BU227","v":0},{"$f":"SQRT((BV225^2)+(BV226^2)+(BV227^2))","v":25.98076211353316},{"$f":"BW225+BW226+BW227","v":0},{"$f":"SQRT((BX225^2)+(BX226^2)+(BX227^2))","v":29.444863728670914}]
[null,"50.0 percent or more",{"$f":"C227","v":0},15,0,15,0,11,0,11,0,11,0,11,0,11,0,23,0,11,0,15,0,17,0,11,0,11,0,15,0,17,0,11,0,11,0,15,0,20,0,11,0,11,0,11,0,15,0,11,0,11,0,11,0,11,0,15,0,20,0,17,0,15,0,20,{"$f":"BO227","v":0},15,0,15,0,11,0,15,0,17]
[null,"Not Computed",0,15,0,15,0,11,0,11,0,11,0,11,0,11,0,23,0,11,0,15,0,17,0,11,0,11,0,15,34,40,3,6,5,7,0,15,14,21,0,11,0,11,0,11,0,15,0,11,0,11,0,11,0,11,14,25,0,20,0,17,0,15,54,82,0,15,0,15,0,11,0,15,21,27]
[null,"$100,000 or more:",15,24,24,28,48,45,0,11,31,46,19,30,0,11,292,121,29,34,70,74,437,142,26,29,22,34,100,73,225,129,36,25,12,14,48,68,129,72,40,33,0,11,9,9,161,74,0,11,9,14,22,35,7,10,43,67,671,171,59,59,118,108,271,134,0,15,190,144,19,18,61,49,82,54]
[null,"Less than 30.0 percent",{"$f":"C230+C231+C232","v":15},{"$f":"SQRT((D230^2)+(D231^2)+(D232^2))","v":32.03123475609393},{"$f":"E230+E231+E232","v":24},{"$f":"SQRT((F230^2)+(F231^2)+(F232^2))","v":31.400636936215164},{"$f":"G230+G231+G232","v":23},{"$f":"SQRT((H230^2)+(H231^2)+(H232^2))","v":28.600699292150182},{"$f":"I230+I231+I232","v":0},{"$f":"SQRT((J230^2)+(J231^2)+(J232^2))","v":19.05255888325765},{"$f":"K230+K231+K232","v":31},{"$f":"SQRT((L230^2)+(L231^2)+(L232^2))","v":48.559242168715933},{"$f":"M230+M231+M232","v":19},{"$f":"SQRT((N230^2)+(N231^2)+(N232^2))","v":33.793490497431605},{"$f":"O230+O231+O232","v":0},{"$f":"SQRT((P230^2)+(P231^2)+(P232^2))","v":19.05255888325765},{"$f":"Q230+Q231+Q232","v":276},{"$f":"SQRT((R230^2)+(R231^2)+(R232^2))","v":122.31516668017912},{"$f":"S230+S231+S232","v":29},{"$f":"SQRT((T230^2)+(T231^2)+(T232^2))","v":36.193922141707716},{"$f":"U230+U231+U232","v":70},{"$f":"SQRT((V230^2)+(V231^2)+(V232^2))","v":76.980517015670927},{"$f":"W230+W231+W232","v":373},{"$f":"SQRT((X230^2)+(X231^2)+(X232^2))","v":122.92273996295397},{"$f":"Y230+Y231+Y232","v":26},{"$f":"SQRT((Z230^2)+(Z231^2)+(Z232^2))","v":32.908965343808667},{"$f":"AA230+AA231+AA232","v":22},{"$f":"SQRT((AB230^2)+(AB231^2)+(AB232^2))","v":37.389838191679836},{"$f":"AC230+AC231+AC232","v":100},{"$f":"SQRT((AD230^2)+(AD231^2)+(AD232^2))","v":76.124897372673018},{"$f":"AE230+AE231+AE232","v":220},{"$f":"SQRT((AF230^2)+(AF231^2)+(AF232^2))","v":128.00390619039717},{"$f":"AG230+AG231+AG232","v":36},{"$f":"SQRT((AH230^2)+(AH231^2)+(AH232^2))","v":29.444863728670914},{"$f":"AI230+AI231+AI232","v":12},{"$f":"SQRT((AJ230^2)+(AJ231^2)+(AJ232^2))","v":17.349351572897472},{"$f":"AK230+AK231+AK232","v":48},{"$f":"SQRT((AL230^2)+(AL231^2)+(AL232^2))","v":71.232015274032506},{"$f":"AM230+AM231+AM232","v":106},{"$f":"SQRT((AN230^2)+(AN231^2)+(AN232^2))","v":67.186308128963304},{"$f":"AO230+AO231+AO232","v":40},{"$f":"SQRT((AP230^2)+(AP231^2)+(AP232^2))","v":36.4828726939094},{"$f":"AQ230+AQ231+AQ232","v":0},{"$f":"SQRT((AR230^2)+(AR231^2)+(AR232^2))","v":19.05255888325765},{"$f":"AS230+AS231+AS232","v":9},{"$f":"SQRT((AT230^2)+(AT231^2)+(AT232^2))","v":17.972200755611428},{"$f":"AU230+AU231+AU232","v":161},{"$f":"SQRT((AV230^2)+(AV231^2)+(AV232^2))","v":75.332595866596819},{"$f":"AW230+AW231+AW232","v":0},{"$f":"SQRT((AX230^2)+(AX231^2)+(AX232^2))","v":19.05255888325765},{"$f":"AY230+AY231+AY232","v":0},{"$f":"SQRT((AZ230^2)+(AZ231^2)+(AZ232^2))","v":19.05255888325765},{"$f":"BA230+BA231+BA232","v":22},{"$f":"SQRT((BB230^2)+(BB231^2)+(BB232^2))","v":38.301436004411116},{"$f":"BC230+BC231+BC232","v":7},{"$f":"SQRT((BD230^2)+(BD231^2)+(BD232^2))","v":18.493242008906929},{"$f":"BE230+BE231+BE232","v":43},{"$f":"SQRT((BF230^2)+(BF231^2)+(BF232^2))","v":70.278019323256402},{"$f":"BG230+BG231+BG232","v":659},{"$f":"SQRT((BH230^2)+(BH231^2)+(BH232^2))","v":176.86435480333509},{"$f":"BI230+BI231+BI232","v":47},{"$f":"SQRT((BJ230^2)+(BJ231^2)+(BJ232^2))","v":59.110066824526598},{"$f":"BK230+BK231+BK232","v":98},{"$f":"SQRT((BL230^2)+(BL231^2)+(BL232^2))","v":109.0825375575761},{"$f":"BM230+BM231+BM232","v":195},{"$f":"SQRT((BN230^2)+(BN231^2)+(BN232^2))","v":113.57816691600547},{"$f":"BO230+BO231+BO232","v":0},{"$f":"SQRT((BP230^2)+(BP231^2)+(BP232^2))","v":25.98076211353316},{"$f":"BQ230+BQ231+BQ232","v":179},{"$f":"SQRT((BR230^2)+(BR231^2)+(BR232^2))","v":145.55411364849843},{"$f":"BS230+BS231+BS232","v":19},{"$f":"SQRT((BT230^2)+(BT231^2)+(BT232^2))","v":23.790754506740637},{"$f":"BU230+BU231+BU232","v":40},{"$f":"SQRT((BV230^2)+(BV231^2)+(BV232^2))","v":47.053161424074368},{"$f":"BW230+BW231+BW232","v":82},{"$f":"SQRT((BX230^2)+(BX231^2)+(BX232^2))","v":56.727418414731339}]
[null,"More than 30.0 percent",{"$f":"C233+C234+C235+C236","v":0},{"$f":"SQRT((D233^2)+(D234^2)+(D235^2)+(D236^2))","v":30},{"$f":"E233+E234+E235+E236","v":0},{"$f":"SQRT((F233^2)+(F234^2)+(F235^2)+(F236^2))","v":30},{"$f":"G233+G234+G235+G236","v":0},{"$f":"SQRT((H233^2)+(H234^2)+(H235^2)+(H236^2))","v":22},{"$f":"I233+I234+I235+I236","v":0},{"$f":"SQRT((J233^2)+(J234^2)+(J235^2)+(J236^2))","v":22},{"$f":"K233+K234+K235+K236","v":0},{"$f":"SQRT((L233^2)+(L234^2)+(L235^2)+(L236^2))","v":22},{"$f":"M233+M234+M235+M236","v":0},{"$f":"SQRT((N233^2)+(N234^2)+(N235^2)+(N236^2))","v":22},{"$f":"O233+O234+O235+O236","v":0},{"$f":"SQRT((P233^2)+(P234^2)+(P235^2)+(P236^2))","v":22},{"$f":"Q233+Q234+Q235+Q236","v":16},{"$f":"SQRT((R233^2)+(R234^2)+(R235^2)+(R236^2))","v":46.508063816933941},{"$f":"S233+S234+S235+S236","v":0},{"$f":"SQRT((T233^2)+(T234^2)+(T235^2)+(T236^2))","v":22},{"$f":"U233+U234+U235+U236","v":0},{"$f":"SQRT((V233^2)+(V234^2)+(V235^2)+(V236^2))","v":30},{"$f":"W233+W234+W235+W236","v":0},{"$f":"SQRT((X233^2)+(X234^2)+(X235^2)+(X236^2))","v":34},{"$f":"Y233+Y234+Y235+Y236","v":0},{"$f":"SQRT((Z233^2)+(Z234^2)+(Z235^2)+(Z236^2))","v":22},{"$f":"AA233+AA234+AA235+AA236","v":0},{"$f":"SQRT((AB233^2)+(AB234^2)+(AB235^2)+(AB236^2))","v":22},{"$f":"AC233+AC234+AC235+AC236","v":0},{"$f":"SQRT((AD233^2)+(AD234^2)+(AD235^2)+(AD236^2))","v":30},{"$f":"AE233+AE234+AE235+AE236","v":0},{"$f":"SQRT((AF233^2)+(AF234^2)+(AF235^2)+(AF236^2))","v":34},{"$f":"AG233+AG234+AG235+AG236","v":0},{"$f":"SQRT((AH233^2)+(AH234^2)+(AH235^2)+(AH236^2))","v":22},{"$f":"AI233+AI234+AI235+AI236","v":0},{"$f":"SQRT((AJ233^2)+(AJ234^2)+(AJ235^2)+(AJ236^2))","v":22},{"$f":"AK233+AK234+AK235+AK236","v":0},{"$f":"SQRT((AL233^2)+(AL234^2)+(AL235^2)+(AL236^2))","v":30},{"$f":"AM233+AM234+AM235+AM236","v":0},{"$f":"SQRT((AN233^2)+(AN234^2)+(AN235^2)+(AN236^2))","v":40},{"$f":"AO233+AO234+AO235+AO236","v":0},{"$f":"SQRT((AP233^2)+(AP234^2)+(AP235^2)+(AP236^2))","v":22},{"$f":"AQ233+AQ234+AQ235+AQ236","v":0},{"$f":"SQRT((AR233^2)+(AR234^2)+(AR235^2)+(AR236^2))","v":22},{"$f":"AS233+AS234+AS235+AS236","v":0},{"$f":"SQRT((AT233^2)+(AT234^2)+(AT235^2)+(AT236^2))","v":22},{"$f":"AU233+AU234+AU235+AU236","v":0},{"$f":"SQRT((AV233^2)+(AV234^2)+(AV235^2)+(AV236^2))","v":30},{"$f":"AW233+AW234+AW235+AW236","v":0},{"$f":"SQRT((AX233^2)+(AX234^2)+(AX235^2)+(AX236^2))","v":22},{"$f":"AY233+AY234+AY235+AY236","v":0},{"$f":"SQRT((AZ233^2)+(AZ234^2)+(AZ235^2)+(AZ236^2))","v":22},{"$f":"BA233+BA234+BA235+BA236","v":0},{"$f":"SQRT((BB233^2)+(BB234^2)+(BB235^2)+(BB236^2))","v":22},{"$f":"BC233+BC234+BC235+BC236","v":0},{"$f":"SQRT((BD233^2)+(BD234^2)+(BD235^2)+(BD236^2))","v":22},{"$f":"BE233+BE234+BE235+BE236","v":0},{"$f":"SQRT((BF233^2)+(BF234^2)+(BF235^2)+(BF236^2))","v":30},{"$f":"BG233+BG234+BG235+BG236","v":0},{"$f":"SQRT((BH233^2)+(BH234^2)+(BH235^2)+(BH236^2))","v":40},{"$f":"BI233+BI234+BI235+BI236","v":0},{"$f":"SQRT((BJ233^2)+(BJ234^2)+(BJ235^2)+(BJ236^2))","v":34},{"$f":"BK233+BK234+BK235+BK236","v":20},{"$f":"SQRT((BL233^2)+(BL234^2)+(BL235^2)+(BL236^2))","v":41.218927691049899},{"$f":"BM233+BM234+BM235+BM236","v":0},{"$f":"SQRT((BN233^2)+(BN234^2)+(BN235^2)+(BN236^2))","v":40},{"$f":"BO233+BO234+BO235+BO236","v":0},{"$f":"SQRT((BP233^2)+(BP234^2)+(BP235^2)+(BP236^2))","v":30},{"$f":"BQ233+BQ234+BQ235+BQ236","v":0},{"$f":"SQRT((BR233^2)+(BR234^2)+(BR235^2)+(BR236^2))","v":30},{"$f":"BS233+BS234+BS235+BS236","v":0},{"$f":"SQRT((BT233^2)+(BT234^2)+(BT235^2)+(BT236^2))","v":22},{"$f":"BU233+BU234+BU235+BU236","v":11},{"$f":"SQRT((BV233^2)+(BV234^2)+(BV235^2)+(BV236^2))","v":32.186953878862163},{"$f":"BW233+BW234+BW235+BW236","v":0},{"$f":"SQRT((BX233^2)+(BX234^2)+(BX235^2)+(BX236^2))","v":34}]
[null,"Less Than 35% of HH Income",{"$f":"C230+C231+C232+C233","v":15},{"$f":"SQRT(((D230^2)+(D231^2)+(D232^2)+(D233^2)))","v":35.369478367654786},{"$f":"E230+E231+E232+E233","v":24},{"$f":"SQRT(((F230^2)+(F231^2)+(F232^2)+(F233^2)))","v":34.799425282610628},{"$f":"G230+G231+G232+G233","v":23},{"$f":"SQRT(((H230^2)+(H231^2)+(H232^2)+(H233^2)))","v":30.643106892089126},{"$f":"I230+I231+I232+I233","v":0},{"$f":"SQRT(((J230^2)+(J231^2)+(J232^2)+(J233^2)))","v":22},{"$f":"K230+K231+K232+K233","v":31},{"$f":"SQRT(((L230^2)+(L231^2)+(L232^2)+(L233^2)))","v":49.789557138018409},{"$f":"M230+M231+M232+M233","v":19},{"$f":"SQRT(((N230^2)+(N231^2)+(N232^2)+(N233^2)))","v":35.538711287833721},{"$f":"O230+O231+O232+O233","v":0},{"$f":"SQRT(((P230^2)+(P231^2)+(P232^2)+(P233^2)))","v":22},{"$f":"Q230+Q231+Q232+Q233","v":292},{"$f":"SQRT(((R230^2)+(R231^2)+(R232^2)+(R233^2)))","v":124.64750298341319},{"$f":"S230+S231+S232+S233","v":29},{"$f":"SQRT(((T230^2)+(T231^2)+(T232^2)+(T233^2)))","v":37.828560638755476},{"$f":"U230+U231+U232+U233","v":70},{"$f":"SQRT(((V230^2)+(V231^2)+(V232^2)+(V233^2)))","v":78.42831121476479},{"$f":"W230+W231+W232+W233","v":373},{"$f":"SQRT(((X230^2)+(X231^2)+(X232^2)+(X233^2)))","v":124.09270727967861},{"$f":"Y230+Y231+Y232+Y233","v":26},{"$f":"SQRT(((Z230^2)+(Z231^2)+(Z232^2)+(Z233^2)))","v":34.698703145794944},{"$f":"AA230+AA231+AA232+AA233","v":22},{"$f":"SQRT(((AB230^2)+(AB231^2)+(AB232^2)+(AB233^2)))","v":38.974350539810153},{"$f":"AC230+AC231+AC232+AC233","v":100},{"$f":"SQRT(((AD230^2)+(AD231^2)+(AD232^2)+(AD233^2)))","v":77.588658965083297},{"$f":"AE230+AE231+AE232+AE233","v":220},{"$f":"SQRT(((AF230^2)+(AF231^2)+(AF232^2)+(AF233^2)))","v":129.12784362793332},{"$f":"AG230+AG231+AG232+AG233","v":36},{"$f":"SQRT(((AH230^2)+(AH231^2)+(AH232^2)+(AH233^2)))","v":31.432467291003423},{"$f":"AI230+AI231+AI232+AI233","v":12},{"$f":"SQRT(((AJ230^2)+(AJ231^2)+(AJ232^2)+(AJ233^2)))","v":20.542638584174139},{"$f":"AK230+AK231+AK232+AK233","v":48},{"$f":"SQRT(((AL230^2)+(AL231^2)+(AL232^2)+(AL233^2)))","v":72.794230540613583},{"$f":"AM230+AM231+AM232+AM233","v":106},{"$f":"SQRT(((AN230^2)+(AN231^2)+(AN232^2)+(AN233^2)))","v":70.099928673287536},{"$f":"AO230+AO231+AO232+AO233","v":40},{"$f":"SQRT(((AP230^2)+(AP231^2)+(AP232^2)+(AP233^2)))","v":38.105117766515299},{"$f":"AQ230+AQ231+AQ232+AQ233","v":0},{"$f":"SQRT(((AR230^2)+(AR231^2)+(AR232^2)+(AR233^2)))","v":22},{"$f":"AS230+AS231+AS232+AS233","v":9},{"$f":"SQRT(((AT230^2)+(AT231^2)+(AT232^2)+(AT233^2)))","v":21.071307505705477},{"$f":"AU230+AU231+AU232+AU233","v":161},{"$f":"SQRT(((AV230^2)+(AV231^2)+(AV232^2)+(AV233^2)))","v":76.81145747868608},{"$f":"AW230+AW231+AW232+AW233","v":0},{"$f":"SQRT(((AX230^2)+(AX231^2)+(AX232^2)+(AX233^2)))","v":22},{"$f":"AY230+AY231+AY232+AY233","v":0},{"$f":"SQRT(((AZ230^2)+(AZ231^2)+(AZ232^2)+(AZ233^2)))","v":22},{"$f":"BA230+BA231+BA232+BA233","v":22},{"$f":"SQRT(((BB230^2)+(BB231^2)+(BB232^2)+(BB233^2)))","v":39.849717690342551},{"$f":"BC230+BC231+BC232+BC233","v":7},{"$f":"SQRT(((BD230^2)+(BD231^2)+(BD232^2)+(BD233^2)))","v":21.517434791350013},{"$f":"BE230+BE231+BE232+BE233","v":43},{"$f":"SQRT(((BF230^2)+(BF231^2)+(BF232^2)+(BF233^2)))","v":71.860976892886725},{"$f":"BG230+BG231+BG232+BG233","v":659},{"$f":"SQRT(((BH230^2)+(BH231^2)+(BH232^2)+(BH233^2)))","v":177.99157283422156},{"$f":"BI230+BI231+BI232+BI233","v":47},{"$f":"SQRT(((BJ230^2)+(BJ231^2)+(BJ232^2)+(BJ233^2)))","v":61.506097258727124},{"$f":"BK230+BK231+BK232+BK233","v":118},{"$f":"SQRT(((BL230^2)+(BL231^2)+(BL232^2)+(BL233^2)))","v":113.67937367878132},{"$f":"BM230+BM231+BM232+BM233","v":195},{"$f":"SQRT(((BN230^2)+(BN231^2)+(BN232^2)+(BN233^2)))","v":115.32562594670796},{"$f":"BO230+BO231+BO232+BO233","v":0},{"$f":"SQRT(((BP230^2)+(BP231^2)+(BP232^2)+(BP233^2)))","v":30},{"$f":"BQ230+BQ231+BQ232+BQ233","v":179},{"$f":"SQRT(((BR230^2)+(BR231^2)+(BR232^2)+(BR233^2)))","v":146.32498077908639},{"$f":"BS230+BS231+BS232+BS233","v":19},{"$f":"SQRT(((BT230^2)+(BT231^2)+(BT232^2)+(BT233^2)))","v":26.210684844162312},{"$f":"BU230+BU231+BU232+BU233","v":40},{"$f":"SQRT(((BV230^2)+(BV231^2)+(BV232^2)+(BV233^2)))","v":49.386232899462982},{"$f":"BW230+BW231+BW232+BW233","v":82},{"$f":"SQRT(((BX230^2)+(BX231^2)+(BX232^2)+(BX233^2)))","v":59.219929077971713}]
[null,"35.0 percent or more",{"$f":"C234+C235+C236","v":0},{"$f":"SQRT((D234^2)+(D235^2)+(D236^2))","v":25.98076211353316},{"$f":"E234+E235+E236","v":0},{"$f":"SQRT((F234^2)+(F235^2)+(F236^2))","v":25.98076211353316},{"$f":"G234+G235+G236","v":0},{"$f":"SQRT((H234^2)+(H235^2)+(H236^2))","v":19.05255888325765},{"$f":"I234+I235+I236","v":0},{"$f":"SQRT((J234^2)+(J235^2)+(J236^2))","v":19.05255888325765},{"$f":"K234+K235+K236","v":0},{"$f":"SQRT((L234^2)+(L235^2)+(L236^2))","v":19.05255888325765},{"$f":"M234+M235+M236","v":0},{"$f":"SQRT((N234^2)+(N235^2)+(N236^2))","v":19.05255888325765},{"$f":"O234+O235+O236","v":0},{"$f":"SQRT((P234^2)+(P235^2)+(P236^2))","v":19.05255888325765},{"$f":"Q234+Q235+Q236","v":0},{"$f":"SQRT((R234^2)+(R235^2)+(R236^2))","v":39.837168574084181},{"$f":"S234+S235+S236","v":0},{"$f":"SQRT((T234^2)+(T235^2)+(T236^2))","v":19.05255888325765},{"$f":"U234+U235+U236","v":0},{"$f":"SQRT((V234^2)+(V235^2)+(V236^2))","v":25.98076211353316},{"$f":"W234+W235+W236","v":0},{"$f":"SQRT((X234^2)+(X235^2)+(X236^2))","v":29.444863728670914},{"$f":"Y234+Y235+Y236","v":0},{"$f":"SQRT((Z234^2)+(Z235^2)+(Z236^2))","v":19.05255888325765},{"$f":"AA234+AA235+AA236","v":0},{"$f":"SQRT((AB234^2)+(AB235^2)+(AB236^2))","v":19.05255888325765},{"$f":"AC234+AC235+AC236","v":0},{"$f":"SQRT((AD234^2)+(AD235^2)+(AD236^2))","v":25.98076211353316},{"$f":"AE234+AE235+AE236","v":0},{"$f":"SQRT((AF234^2)+(AF235^2)+(AF236^2))","v":29.444863728670914},{"$f":"AG234+AG235+AG236","v":0},{"$f":"SQRT((AH234^2)+(AH235^2)+(AH236^2))","v":19.05255888325765},{"$f":"AI234+AI235+AI236","v":0},{"$f":"SQRT((AJ234^2)+(AJ235^2)+(AJ236^2))","v":19.05255888325765},{"$f":"AK234+AK235+AK236","v":0},{"$f":"SQRT((AL234^2)+(AL235^2)+(AL236^2))","v":25.98076211353316},{"$f":"AM234+AM235+AM236","v":0},{"$f":"SQRT((AN234^2)+(AN235^2)+(AN236^2))","v":34.641016151377549},{"$f":"AO234+AO235+AO236","v":0},{"$f":"SQRT((AP234^2)+(AP235^2)+(AP236^2))","v":19.05255888325765},{"$f":"AQ234+AQ235+AQ236","v":0},{"$f":"SQRT((AR234^2)+(AR235^2)+(AR236^2))","v":19.05255888325765},{"$f":"AS234+AS235+AS236","v":0},{"$f":"SQRT((AT234^2)+(AT235^2)+(AT236^2))","v":19.05255888325765},{"$f":"AU234+AU235+AU236","v":0},{"$f":"SQRT((AV234^2)+(AV235^2)+(AV236^2))","v":25.98076211353316},{"$f":"AW234+AW235+AW236","v":0},{"$f":"SQRT((AX234^2)+(AX235^2)+(AX236^2))","v":19.05255888325765},{"$f":"AY234+AY235+AY236","v":0},{"$f":"SQRT((AZ234^2)+(AZ235^2)+(AZ236^2))","v":19.05255888325765},{"$f":"BA234+BA235+BA236","v":0},{"$f":"SQRT((BB234^2)+(BB235^2)+(BB236^2))","v":19.05255888325765},{"$f":"BC234+BC235+BC236","v":0},{"$f":"SQRT((BD234^2)+(BD235^2)+(BD236^2))","v":19.05255888325765},{"$f":"BE234+BE235+BE236","v":0},{"$f":"SQRT((BF234^2)+(BF235^2)+(BF236^2))","v":25.98076211353316},{"$f":"BG234+BG235+BG236","v":0},{"$f":"SQRT((BH234^2)+(BH235^2)+(BH236^2))","v":34.641016151377549},{"$f":"BI234+BI235+BI236","v":0},{"$f":"SQRT((BJ234^2)+(BJ235^2)+(BJ236^2))","v":29.444863728670914},{"$f":"BK234+BK235+BK236","v":0},{"$f":"SQRT((BL234^2)+(BL235^2)+(BL236^2))","v":25.98076211353316},{"$f":"BM234+BM235+BM236","v":0},{"$f":"SQRT((BN234^2)+(BN235^2)+(BN236^2))","v":34.641016151377549},{"$f":"BO234+BO235+BO236","v":0},{"$f":"SQRT((BP234^2)+(BP235^2)+(BP236^2))","v":25.98076211353316},{"$f":"BQ234+BQ235+BQ236","v":0},{"$f":"SQRT((BR234^2)+(BR235^2)+(BR236^2))","v":25.98076211353316},{"$f":"BS234+BS235+BS236","v":0},{"$f":"SQRT((BT234^2)+(BT235^2)+(BT236^2))","v":19.05255888325765},{"$f":"BU234+BU235+BU236","v":11},{"$f":"SQRT((BV234^2)+(BV235^2)+(BV236^2))","v":28.478061731796284},{"$f":"BW234+BW235+BW236","v":0},{"$f":"SQRT((BX234^2)+(BX235^2)+(BX236^2))","v":29.444863728670914}]
[null,"50.0 percent or more",{"$f":"C236","v":0},{"$f":"D236","v":15},{"$f":"E236","v":0},{"$f":"F236","v":15},{"$f":"G236","v":0},11,{"$f":"I236","v":0},11,{"$f":"K236","v":0},11,{"$f":"M236","v":0},11,{"$f":"O236","v":0},11,{"$f":"Q236","v":0},23,{"$f":"S236","v":0},11,{"$f":"U236","v":0},15,{"$f":"W236","v":0},17,{"$f":"Y236","v":0},11,{"$f":"AA236","v":0},11,{"$f":"AC236","v":0},15,{"$f":"AE236","v":0},17,{"$f":"AG236","v":0},11,{"$f":"AI236","v":0},11,{"$f":"AK236","v":0},15,{"$f":"AM236","v":0},20,{"$f":"AO236","v":0},11,{"$f":"AQ236","v":0},11,{"$f":"AS236","v":0},11,{"$f":"AU236","v":0},15,{"$f":"AW236","v":0},11,{"$f":"AY236","v":0},11,{"$f":"BA236","v":0},11,{"$f":"BC236","v":0},11,{"$f":"BE236","v":0},15,{"$f":"BG236","v":0},20,{"$f":"BI236","v":0},17,{"$f":"BK236","v":0},15,{"$f":"BM236","v":0},20,{"$f":"BO236","v":0},15,{"$f":"BQ236","v":0},{"$f":"BR236","v":15},{"$f":"BS236","v":0},11,{"$f":"BU236","v":0},15,{"$f":"BW236","v":0},17]
[null,"Not Computed",{"$f":"C237","v":0},15,{"$f":"E237","v":0},15,{"$f":"G237","v":25},37,{"$f":"I237","v":0},11,{"$f":"K237","v":0},11,{"$f":"M237","v":0},11,{"$f":"O237","v":0},11,{"$f":"Q237","v":0},23,{"$f":"S237","v":0},11,{"$f":"U237","v":0},15,{"$f":"W237","v":64},52,{"$f":"Y237","v":0},11,{"$f":"AA237","v":0},11,{"$f":"AC237","v":0},15,{"$f":"AE237","v":5},10,{"$f":"AG237","v":0},11,{"$f":"AI237","v":0},11,{"$f":"AK237","v":0},15,{"$f":"AM237","v":23},26,{"$f":"AO237","v":0},11,{"$f":"AQ237","v":0},11,{"$f":"AS237","v":0},11,{"$f":"AU237","v":0},15,{"$f":"AW237","v":0},11,{"$f":"AY237","v":9},14,{"$f":"BA237","v":0},11,{"$f":"BC237","v":0},11,{"$f":"BE237","v":0},15,{"$f":"BG237","v":12},22,{"$f":"BI237","v":12},21,{"$f":"BK237","v":0},15,{"$f":"BM237","v":76},84,{"$f":"BO237","v":0},15,{"$f":"BQ237","v":11},17,{"$f":"BS237","v":0},11,{"$f":"BU237","v":10},18,{"$f":"BW237","v":0},17]
[]
[]
[null,"Calculated GROSS RENT AS A PERCENTAGE OF HOUSEHOLD INCOME IN THE PAST 12 MONTHS"]
[null,"Universe:  RENTER-OCCUPIED HOUSING UNITS"]
[null,"Data Set: 2010-2014 American Community Survey 5-Year Estimates"]
[]
[null,null,"Atkinson",null,"Auburn",null,"Brentwood",null,"Candia",null,"Chester",null,"Danville",null,"Deerfield",null,"Derry",null,"East Kingston",null,"Epping",null,"Exeter",null,"Fremont",null,"Greenland",null,"Hampstead",null,"Hampton",null,"Hampton Falls",null,"Kensington",null,"Kingston",null,"Londonderry",null,"New Castle",null,"Newfields",null,"Newington",null,"Newmarket",null,"Newton",null,"North Hampton",null,"Northwood",null,"Nottingham",null,"Plaistow",null,"Portsmouth",null,"Raymond",null,"Rye",null,"Salem",null,"Sandown",null,"Seabrook",null,"South Hampton",null,"Stratham",null,"Windham"]
[null," ","Estimate","Margin Of Error","Estimate","Margin Of Error","Estimate","Margin Of Error","Estimate","Margin Of Error","Estimate","Margin Of Error","Estimate","Margin Of Error","Estimate","Margin Of Error","Estimate","Margin Of Error","Estimate","Margin Of Error","Estimate","Margin Of Error","Estimate","Margin Of Error","Estimate","Margin Of Error","Estimate","Margin Of Error","Estimate","Margin Of Error","Estimate","Margin Of Error","Estimate","Margin Of Error","Estimate","Margin Of Error","Estimate","Margin Of Error","Estimate","Margin Of Error","Estimate","Margin Of Error","Estimate","Margin Of Error","Estimate","Margin Of Error","Estimate","Margin Of Error","Estimate","Margin Of Error","Estimate","Margin Of Error","Estimate","Margin Of Error","Estimate","Margin Of Error","Estimate","Margin Of Error","Estimate","Margin Of Error","Estimate","Margin Of Error","Estimate","Margin Of Error","Estimate","Margin Of Error","Estimate","Margin Of Error","Estimate","Margin Of Error","Estimate","Margin Of Error","Estimate","Margin Of Error","Estimate","Margin Of Error"]
[null,"Total:",{"$f":"C259","v":202},108,170,69,252,69,39,39,125,71,197,68,109,71,4690,381,78,39,368,168,1986,226,192,77,191,85,689,159,1924,278,126,46,54,22,375,142,1159,205,104,45,51,32,92,33,1780,197,360,105,154,72,216,99,76,39,668,179,4873,295,910,166,365,177,2642,{"$f":"BN259","v":297},174,100,1418,222,52,26,197,101,376,161]
[null,"Less than 30.0 percent",{"$f":"C303+C296+C289+C282+C275+C268+C261","v":134},{"$f":"SQRT((D303^2)+(D296^2)+(D289^2)+(D282^2)+(D275^2)+(D268^2)+(D261^2))","v":122.55202976695246},{"$f":"E303+E296+E289+E282+E275+E268+E261","v":135},{"$f":"SQRT((F303^2)+(F296^2)+(F289^2)+(F282^2)+(F275^2)+(F268^2)+(F261^2))","v":99.131226160075315},{"$f":"G303+G296+G289+G282+G275+G268+G261","v":59},{"$f":"SQRT((H303^2)+(H296^2)+(H289^2)+(H282^2)+(H275^2)+(H268^2)+(H261^2))","v":63.387695966961914},{"$f":"I303+I296+I289+I282+I275+I268+I261","v":16},{"$f":"SQRT((J303^2)+(J296^2)+(J289^2)+(J282^2)+(J275^2)+(J268^2)+(J261^2))","v":55.641710972974224},{"$f":"K303+K296+K289+K282+K275+K268+K261","v":31},{"$f":"SQRT((L303^2)+(L296^2)+(L289^2)+(L282^2)+(L275^2)+(L268^2)+(L261^2))","v":67.349832961930943},{"$f":"M303+M296+M289+M282+M275+M268+M261","v":85},{"$f":"SQRT((N303^2)+(N296^2)+(N289^2)+(N282^2)+(N275^2)+(N268^2)+(N261^2))","v":77.685262437607818},{"$f":"O303+O296+O289+O282+O275+O268+O261","v":40},{"$f":"SQRT((P303^2)+(P296^2)+(P289^2)+(P282^2)+(P275^2)+(P268^2)+(P261^2))","v":66.783231428256002},{"$f":"Q303+Q296+Q289+Q282+Q275+Q268+Q261","v":2236},{"$f":"SQRT((R303^2)+(R296^2)+(R289^2)+(R282^2)+(R275^2)+(R268^2)+(R261^2))","v":357.46748103848552},{"$f":"S303+S296+S289+S282+S275+S268+S261","v":50},{"$f":"SQRT((T303^2)+(T296^2)+(T289^2)+(T282^2)+(T275^2)+(T268^2)+(T261^2))","v":58.378078077305695},{"$f":"U303+U296+U289+U282+U275+U268+U261","v":242},{"$f":"SQRT((V303^2)+(V296^2)+(V289^2)+(V282^2)+(V275^2)+(V268^2)+(V261^2))","v":163.44112089679268},{"$f":"W303+W296+W289+W282+W275+W268+W261","v":987},{"$f":"SQRT((X303^2)+(X296^2)+(X289^2)+(X282^2)+(X275^2)+(X268^2)+(X261^2))","v":222.93496809607953},{"$f":"Y303+Y296+Y289+Y282+Y275+Y268+Y261","v":94},{"$f":"SQRT((Z303^2)+(Z296^2)+(Z289^2)+(Z282^2)+(Z275^2)+(Z268^2)+(Z261^2))","v":73.341666193235611},{"$f":"AA303+AA296+AA289+AA282+AA275+AA268+AA261","v":111},{"$f":"SQRT((AB303^2)+(AB296^2)+(AB289^2)+(AB282^2)+(AB275^2)+(AB268^2)+(AB261^2))","v":85.982556370463882},{"$f":"AC303+AC296+AC289+AC282+AC275+AC268+AC261","v":355},{"$f":"SQRT((AD303^2)+(AD296^2)+(AD289^2)+(AD282^2)+(AD275^2)+(AD268^2)+(AD261^2))","v":149.70637928959474},{"$f":"AE303+AE296+AE289+AE282+AE275+AE268+AE261","v":800},{"$f":"SQRT((AF303^2)+(AF296^2)+(AF289^2)+(AF282^2)+(AF275^2)+(AF268^2)+(AF261^2))","v":194.59188061170485},{"$f":"AG303+AG296+AG289+AG282+AG275+AG268+AG261","v":103},{"$f":"SQRT((AH303^2)+(AH296^2)+(AH289^2)+(AH282^2)+(AH275^2)+(AH268^2)+(AH261^2))","v":69.49100661236676},{"$f":"AI303+AI296+AI289+AI282+AI275+AI268+AI261","v":24},{"$f":"SQRT((AJ303^2)+(AJ296^2)+(AJ289^2)+(AJ282^2)+(AJ275^2)+(AJ268^2)+(AJ261^2))","v":45.398237851264668},{"$f":"AK303+AK296+AK289+AK282+AK275+AK268+AK261","v":221},{"$f":"SQRT((AL303^2)+(AL296^2)+(AL289^2)+(AL282^2)+(AL275^2)+(AL268^2)+(AL261^2))","v":132.91350570954029},{"$f":"AM303+AM296+AM289+AM282+AM275+AM268+AM261","v":541},{"$f":"SQRT((AN303^2)+(AN296^2)+(AN289^2)+(AN282^2)+(AN275^2)+(AN268^2)+(AN261^2))","v":173},{"$f":"AO303+AO296+AO289+AO282+AO275+AO268+AO261","v":62},{"$f":"SQRT((AP303^2)+(AP296^2)+(AP289^2)+(AP282^2)+(AP275^2)+(AP268^2)+(AP261^2))","v":60.016664352494629},{"$f":"AQ303+AQ296+AQ289+AQ282+AQ275+AQ268+AQ261","v":26},{"$f":"SQRT((AR303^2)+(AR296^2)+(AR289^2)+(AR282^2)+(AR275^2)+(AR268^2)+(AR261^2))","v":50.950956811427986},{"$f":"AS303+AS296+AS289+AS282+AS275+AS268+AS261","v":63},{"$f":"SQRT((AT303^2)+(AT296^2)+(AT289^2)+(AT282^2)+(AT275^2)+(AT268^2)+(AT261^2))","v":49.446941260304463},{"$f":"AU303+AU296+AU289+AU282+AU275+AU268+AU261","v":898},{"$f":"SQRT((AV303^2)+(AV296^2)+(AV289^2)+(AV282^2)+(AV275^2)+(AV268^2)+(AV261^2))","v":211.46158043483928},{"$f":"AW303+AW296+AW289+AW282+AW275+AW268+AW261","v":168},{"$f":"SQRT((AX303^2)+(AX296^2)+(AX289^2)+(AX282^2)+(AX275^2)+(AX268^2)+(AX261^2))","v":111.04503590885997},{"$f":"AY303+AY296+AY289+AY282+AY275+AY268+AY261","v":62},{"$f":"SQRT((AZ303^2)+(AZ296^2)+(AZ289^2)+(AZ282^2)+(AZ275^2)+(AZ268^2)+(AZ261^2))","v":74.833147735478832},{"$f":"BA303+BA296+BA289+BA282+BA275+BA268+BA261","v":131},{"$f":"SQRT((BB303^2)+(BB296^2)+(BB289^2)+(BB282^2)+(BB275^2)+(BB268^2)+(BB261^2))","v":94.67312184564318},{"$f":"BC303+BC296+BC289+BC282+BC275+BC268+BC261","v":22},{"$f":"SQRT((BD303^2)+(BD296^2)+(BD289^2)+(BD282^2)+(BD275^2)+(BD268^2)+(BD261^2))","v":52.611785751863621},{"$f":"BE303+BE296+BE289+BE282+BE275+BE268+BE261","v":386},{"$f":"SQRT((BF303^2)+(BF296^2)+(BF289^2)+(BF282^2)+(BF275^2)+(BF268^2)+(BF261^2))","v":183.27302038216101},{"$f":"BG303+BG296+BG289+BG282+BG275+BG268+BG261","v":2737},{"$f":"SQRT((BH303^2)+(BH296^2)+(BH289^2)+(BH282^2)+(BH275^2)+(BH268^2)+(BH261^2))","v":380.94225284155601},{"$f":"BI303+BI296+BI289+BI282+BI275+BI268+BI261","v":503},{"$f":"SQRT((BJ303^2)+(BJ296^2)+(BJ289^2)+(BJ282^2)+(BJ275^2)+(BJ268^2)+(BJ261^2))","v":186.41351882307248},{"$f":"BK303+BK296+BK289+BK282+BK275+BK268+BK261","v":175},{"$f":"SQRT((BL303^2)+(BL296^2)+(BL289^2)+(BL282^2)+(BL275^2)+(BL268^2)+(BL261^2))","v":138.06158046321215},{"$f":"BM303+BM296+BM289+BM282+BM275+BM268+BM261","v":1408},{"$f":"SQRT((BN303^2)+(BN296^2)+(BN289^2)+(BN282^2)+(BN275^2)+(BN268^2)+(BN261^2))","v":276.6405610173606},{"$f":"BO303+BO296+BO289+BO282+BO275+BO268+BO261","v":91},{"$f":"SQRT((BP303^2)+(BP296^2)+(BP289^2)+(BP282^2)+(BP275^2)+(BP268^2)+(BP261^2))","v":100.58826969383657},{"$f":"BQ303+BQ296+BQ289+BQ282+BQ275+BQ268+BQ261","v":753},{"$f":"SQRT((BR303^2)+(BR296^2)+(BR289^2)+(BR282^2)+(BR275^2)+(BR268^2)+(BR261^2))","v":234.42696090680354},{"$f":"BS303+BS296+BS289+BS282+BS275+BS268+BS261","v":26},{"$f":"SQRT((BT303^2)+(BT296^2)+(BT289^2)+(BT282^2)+(BT275^2)+(BT268^2)+(BT261^2))","v":50.537115073973112},{"$f":"BU303+BU296+BU289+BU282+BU275+BU268+BU261","v":114},{"$f":"SQRT((BV303^2)+(BV296^2)+(BV289^2)+(BV282^2)+(BV275^2)+(BV268^2)+(BV261^2))","v":103.81714694596457},{"$f":"BW303+BW296+BW289+BW282+BW275+BW268+BW261","v":97},{"$f":"SQRT((BX303^2)+(BX296^2)+(BX289^2)+(BX282^2)+(BX275^2)+(BX268^2)+(BX261^2))","v":93.311306924723752}]
[null,"More than 30.0 percent",{"$f":"C304+C297+C290+C283+C276+C269+C262","v":68},{"$f":"SQRT((D304^2)+(D297^2)+(D290^2)+(D283^2)+(D276^2)+(D269^2)+(D262^2))","v":98.488578017961046},{"$f":"E304+E297+E290+E283+E276+E269+E262","v":35},{"$f":"SQRT((F304^2)+(F297^2)+(F290^2)+(F283^2)+(F276^2)+(F269^2)+(F262^2))","v":81.252692263087511},{"$f":"G304+G297+G290+G283+G276+G269+G262","v":132},{"$f":"SQRT((H304^2)+(H297^2)+(H290^2)+(H283^2)+(H276^2)+(H269^2)+(H262^2))","v":90.917545061445651},{"$f":"I304+I297+I290+I283+I276+I269+I262","v":23},{"$f":"SQRT((J304^2)+(J297^2)+(J290^2)+(J283^2)+(J276^2)+(J269^2)+(J262^2))","v":61.895072501775132},{"$f":"K304+K297+K290+K283+K276+K269+K262","v":94},{"$f":"SQRT((L304^2)+(L297^2)+(L290^2)+(L283^2)+(L276^2)+(L269^2)+(L262^2))","v":86.948260477136628},{"$f":"M304+M297+M290+M283+M276+M269+M262","v":80},{"$f":"SQRT((N304^2)+(N297^2)+(N290^2)+(N283^2)+(N276^2)+(N269^2)+(N262^2))","v":72.725511342306831},{"$f":"O304+O297+O290+O283+O276+O269+O262","v":69},{"$f":"SQRT((P304^2)+(P297^2)+(P290^2)+(P283^2)+(P276^2)+(P269^2)+(P262^2))","v":78.917678627795439},{"$f":"Q304+Q297+Q290+Q283+Q276+Q269+Q262","v":2337},{"$f":"SQRT((R304^2)+(R297^2)+(R290^2)+(R283^2)+(R276^2)+(R269^2)+(R262^2))","v":405.42076907825037},{"$f":"S304+S297+S290+S283+S276+S269+S262","v":28},{"$f":"SQRT((T304^2)+(T297^2)+(T290^2)+(T283^2)+(T276^2)+(T269^2)+(T262^2))","v":55.937465083787984},{"$f":"U304+U297+U290+U283+U276+U269+U262","v":80},{"$f":"SQRT((V304^2)+(V297^2)+(V290^2)+(V283^2)+(V276^2)+(V269^2)+(V262^2))","v":94.201910808645493},{"$f":"W304+W297+W290+W283+W276+W269+W262","v":835},{"$f":"SQRT((X304^2)+(X297^2)+(X290^2)+(X283^2)+(X276^2)+(X269^2)+(X262^2))","v":229.41229260874402},{"$f":"Y304+Y297+Y290+Y283+Y276+Y269+Y262","v":98},{"$f":"SQRT((Z304^2)+(Z297^2)+(Z290^2)+(Z283^2)+(Z276^2)+(Z269^2)+(Z262^2))","v":77.743166902307237},{"$f":"AA304+AA297+AA290+AA283+AA276+AA269+AA262","v":80},{"$f":"SQRT((AB304^2)+(AB297^2)+(AB290^2)+(AB283^2)+(AB276^2)+(AB269^2)+(AB262^2))","v":69.907081186386264},{"$f":"AC304+AC297+AC290+AC283+AC276+AC269+AC262","v":334},{"$f":"SQRT((AD304^2)+(AD297^2)+(AD290^2)+(AD283^2)+(AD276^2)+(AD269^2)+(AD262^2))","v":172.84675293449976},{"$f":"AE304+AE297+AE290+AE283+AE276+AE269+AE262","v":1015},{"$f":"SQRT((AF304^2)+(AF297^2)+(AF290^2)+(AF283^2)+(AF276^2)+(AF269^2)+(AF262^2))","v":235.25943126684635},{"$f":"AG304+AG297+AG290+AG283+AG276+AG269+AG262","v":8},{"$f":"SQRT((AH304^2)+(AH297^2)+(AH290^2)+(AH283^2)+(AH276^2)+(AH269^2)+(AH262^2))","v":56.841885964489251},{"$f":"AI304+AI297+AI290+AI283+AI276+AI269+AI262","v":18},{"$f":"SQRT((AJ304^2)+(AJ297^2)+(AJ290^2)+(AJ283^2)+(AJ276^2)+(AJ269^2)+(AJ262^2))","v":56.240554762555462},{"$f":"AK304+AK297+AK290+AK283+AK276+AK269+AK262","v":142},{"$f":"SQRT((AL304^2)+(AL297^2)+(AL290^2)+(AL283^2)+(AL276^2)+(AL269^2)+(AL262^2))","v":133.06013678032951},{"$f":"AM304+AM297+AM290+AM283+AM276+AM269+AM262","v":540},{"$f":"SQRT((AN304^2)+(AN297^2)+(AN290^2)+(AN283^2)+(AN276^2)+(AN269^2)+(AN262^2))","v":181.81584089402111},{"$f":"AO304+AO297+AO290+AO283+AO276+AO269+AO262","v":31},{"$f":"SQRT((AP304^2)+(AP297^2)+(AP290^2)+(AP283^2)+(AP276^2)+(AP269^2)+(AP262^2))","v":61.196405123176966},{"$f":"AQ304+AQ297+AQ290+AQ283+AQ276+AQ269+AQ262","v":25},{"$f":"SQRT((AR304^2)+(AR297^2)+(AR290^2)+(AR283^2)+(AR276^2)+(AR269^2)+(AR262^2))","v":58.292366567158687},{"$f":"AS304+AS297+AS290+AS283+AS276+AS269+AS262","v":21},{"$f":"SQRT((AT304^2)+(AT297^2)+(AT290^2)+(AT283^2)+(AT276^2)+(AT269^2)+(AT262^2))","v":53.347914673396559},{"$f":"AU304+AU297+AU290+AU283+AU276+AU269+AU262","v":786},{"$f":"SQRT((AV304^2)+(AV297^2)+(AV290^2)+(AV283^2)+(AV276^2)+(AV269^2)+(AV262^2))","v":228.41847561000839},{"$f":"AW304+AW297+AW290+AW283+AW276+AW269+AW262","v":192},{"$f":"SQRT((AX304^2)+(AX297^2)+(AX290^2)+(AX283^2)+(AX276^2)+(AX269^2)+(AX262^2))","v":129.60324070022324},{"$f":"AY304+AY297+AY290+AY283+AY276+AY269+AY262","v":74},{"$f":"SQRT((AZ304^2)+(AZ297^2)+(AZ290^2)+(AZ283^2)+(AZ276^2)+(AZ269^2)+(AZ262^2))","v":77.330459716724818},{"$f":"BA304+BA297+BA290+BA283+BA276+BA269+BA262","v":55},{"$f":"SQRT((BB304^2)+(BB297^2)+(BB290^2)+(BB283^2)+(BB276^2)+(BB269^2)+(BB262^2))","v":74.719475372890571},{"$f":"BC304+BC297+BC290+BC283+BC276+BC269+BC262","v":30},{"$f":"SQRT((BD304^2)+(BD297^2)+(BD290^2)+(BD283^2)+(BD276^2)+(BD269^2)+(BD262^2))","v":61.895072501775132},{"$f":"BE304+BE297+BE290+BE283+BE276+BE269+BE262","v":226},{"$f":"SQRT((BF304^2)+(BF297^2)+(BF290^2)+(BF283^2)+(BF276^2)+(BF269^2)+(BF262^2))","v":151.11915828246265},{"$f":"BG304+BG297+BG290+BG283+BG276+BG269+BG262","v":1993},{"$f":"SQRT((BH304^2)+(BH297^2)+(BH290^2)+(BH283^2)+(BH276^2)+(BH269^2)+(BH262^2))","v":294.51485531293662},{"$f":"BI304+BI297+BI290+BI283+BI276+BI269+BI262","v":361},{"$f":"SQRT((BJ304^2)+(BJ297^2)+(BJ290^2)+(BJ283^2)+(BJ276^2)+(BJ269^2)+(BJ262^2))","v":158.96855034880326},{"$f":"BK304+BK297+BK290+BK283+BK276+BK269+BK262","v":121},{"$f":"SQRT((BL304^2)+(BL297^2)+(BL290^2)+(BL283^2)+(BL276^2)+(BL269^2)+(BL262^2))","v":125.4631419979589},{"$f":"BM304+BM297+BM290+BM283+BM276+BM269+BM262","v":1073},{"$f":"SQRT((BN304^2)+(BN297^2)+(BN290^2)+(BN283^2)+(BN276^2)+(BN269^2)+(BN262^2))","v":268.54049973886623},{"$f":"BO304+BO297+BO290+BO283+BO276+BO269+BO262","v":83},{"$f":"SQRT((BP304^2)+(BP297^2)+(BP290^2)+(BP283^2)+(BP276^2)+(BP269^2)+(BP262^2))","v":105.15702544290609},{"$f":"BQ304+BQ297+BQ290+BQ283+BQ276+BQ269+BQ262","v":638},{"$f":"SQRT((BR304^2)+(BR297^2)+(BR290^2)+(BR283^2)+(BR276^2)+(BR269^2)+(BR262^2))","v":217.74296773948865},{"$f":"BS304+BS297+BS290+BS283+BS276+BS269+BS262","v":15},{"$f":"SQRT((BT304^2)+(BT297^2)+(BT290^2)+(BT283^2)+(BT276^2)+(BT269^2)+(BT262^2))","v":57.052607302383649},{"$f":"BU304+BU297+BU290+BU283+BU276+BU269+BU262","v":73},{"$f":"SQRT((BV304^2)+(BV297^2)+(BV290^2)+(BV283^2)+(BV276^2)+(BV269^2)+(BV262^2))","v":87.732548122119425},{"$f":"BW304+BW297+BW290+BW283+BW276+BW269+BW262","v":233},{"$f":"SQRT((BX304^2)+(BX297^2)+(BX290^2)+(BX283^2)+(BX276^2)+(BX269^2)+(BX262^2))","v":169.10647533432893}]
[null,"Less Than 35% of HH Income",{"$f":"C305+C298+C291+C284+C277+C270+C263","v":162},{"$f":"SQRT((D305^2)+(D298^2)+(D291^2)+(D284^2)+(D277^2)+(D270^2)+(D263^2))","v":135.6244815658294},{"$f":"E305+E298+E291+E284+E277+E270+E263","v":135},{"$f":"SQRT((F305^2)+(F298^2)+(F291^2)+(F284^2)+(F277^2)+(F270^2)+(F263^2))","v":106.78014796768171},{"$f":"G305+G298+G291+G284+G277+G270+G263","v":67},{"$f":"SQRT((H305^2)+(H298^2)+(H291^2)+(H284^2)+(H277^2)+(H270^2)+(H263^2))","v":69.914233171794137},{"$f":"I305+I298+I291+I284+I277+I270+I263","v":27},{"$f":"SQRT((J305^2)+(J298^2)+(J291^2)+(J284^2)+(J277^2)+(J270^2)+(J263^2))","v":64.67611614808051},{"$f":"K305+K298+K291+K284+K277+K270+K263","v":31},{"$f":"SQRT((L305^2)+(L298^2)+(L291^2)+(L284^2)+(L277^2)+(L270^2)+(L263^2))","v":73.368930754100546},{"$f":"M305+M298+M291+M284+M277+M270+M263","v":85},{"$f":"SQRT((N305^2)+(N298^2)+(N291^2)+(N284^2)+(N277^2)+(N270^2)+(N263^2))","v":82.957820607824559},{"$f":"O305+O298+O291+O284+O277+O270+O263","v":58},{"$f":"SQRT((P305^2)+(P298^2)+(P291^2)+(P284^2)+(P277^2)+(P270^2)+(P263^2))","v":73.885045848263502},{"$f":"Q305+Q298+Q291+Q284+Q277+Q270+Q263","v":2799},{"$f":"SQRT((R305^2)+(R298^2)+(R291^2)+(R284^2)+(R277^2)+(R270^2)+(R263^2))","v":410.60686794061297},{"$f":"S305+S298+S291+S284+S277+S270+S263","v":50},{"$f":"SQRT((T305^2)+(T298^2)+(T291^2)+(T284^2)+(T277^2)+(T270^2)+(T263^2))","v":65.230361029201731},{"$f":"U305+U298+U291+U284+U277+U270+U263","v":253},{"$f":"SQRT((V305^2)+(V298^2)+(V291^2)+(V284^2)+(V277^2)+(V270^2)+(V263^2))","v":168.38052143879352},{"$f":"W305+W298+W291+W284+W277+W270+W263","v":1126},{"$f":"SQRT((X305^2)+(X298^2)+(X291^2)+(X284^2)+(X277^2)+(X270^2)+(X263^2))","v":246.70427641206385},{"$f":"Y305+Y298+Y291+Y284+Y277+Y270+Y263","v":132},{"$f":"SQRT((Z305^2)+(Z298^2)+(Z291^2)+(Z284^2)+(Z277^2)+(Z270^2)+(Z263^2))","v":87.326971778483198},{"$f":"AA305+AA298+AA291+AA284+AA277+AA270+AA263","v":131},{"$f":"SQRT((AB305^2)+(AB298^2)+(AB291^2)+(AB284^2)+(AB277^2)+(AB270^2)+(AB263^2))","v":91.956511460581197},{"$f":"AC305+AC298+AC291+AC284+AC277+AC270+AC263","v":355},{"$f":"SQRT((AD305^2)+(AD298^2)+(AD291^2)+(AD284^2)+(AD277^2)+(AD270^2)+(AD263^2))","v":154.87737084545307},{"$f":"AE305+AE298+AE291+AE284+AE277+AE270+AE263","v":991},{"$f":"SQRT((AF305^2)+(AF298^2)+(AF291^2)+(AF284^2)+(AF277^2)+(AF270^2)+(AF263^2))","v":220.97963707093012},{"$f":"AG305+AG298+AG291+AG284+AG277+AG270+AG263","v":108},{"$f":"SQRT((AH305^2)+(AH298^2)+(AH291^2)+(AH284^2)+(AH277^2)+(AH270^2)+(AH263^2))","v":74.85986908885161},{"$f":"AI305+AI298+AI291+AI284+AI277+AI270+AI263","v":24},{"$f":"SQRT((AJ305^2)+(AJ298^2)+(AJ291^2)+(AJ284^2)+(AJ277^2)+(AJ270^2)+(AJ263^2))","v":53.925875050851054},{"$f":"AK305+AK298+AK291+AK284+AK277+AK270+AK263","v":314},{"$f":"SQRT((AL305^2)+(AL298^2)+(AL291^2)+(AL284^2)+(AL277^2)+(AL270^2)+(AL263^2))","v":163.82307529771256},{"$f":"AM305+AM298+AM291+AM284+AM277+AM270+AM263","v":603},{"$f":"SQRT((AN305^2)+(AN298^2)+(AN291^2)+(AN284^2)+(AN277^2)+(AN270^2)+(AN263^2))","v":187.73651749193601},{"$f":"AO305+AO298+AO291+AO284+AO277+AO270+AO263","v":87},{"$f":"SQRT((AP305^2)+(AP298^2)+(AP291^2)+(AP284^2)+(AP277^2)+(AP270^2)+(AP263^2))","v":70.760158281337951},{"$f":"AQ305+AQ298+AQ291+AQ284+AQ277+AQ270+AQ263","v":29},{"$f":"SQRT((AR305^2)+(AR298^2)+(AR291^2)+(AR284^2)+(AR277^2)+(AR270^2)+(AR263^2))","v":57.948252777801677},{"$f":"AS305+AS298+AS291+AS284+AS277+AS270+AS263","v":74},{"$f":"SQRT((AT305^2)+(AT298^2)+(AT291^2)+(AT284^2)+(AT277^2)+(AT270^2)+(AT263^2))","v":55.163393659201205},{"$f":"AU305+AU298+AU291+AU284+AU277+AU270+AU263","v":1111},{"$f":"SQRT((AV305^2)+(AV298^2)+(AV291^2)+(AV284^2)+(AV277^2)+(AV270^2)+(AV263^2))","v":239.01673581571646},{"$f":"AW305+AW298+AW291+AW284+AW277+AW270+AW263","v":205},{"$f":"SQRT((AX305^2)+(AX298^2)+(AX291^2)+(AX284^2)+(AX277^2)+(AX270^2)+(AX263^2))","v":122.04917041913886},{"$f":"AY305+AY298+AY291+AY284+AY277+AY270+AY263","v":70},{"$f":"SQRT((AZ305^2)+(AZ298^2)+(AZ291^2)+(AZ284^2)+(AZ277^2)+(AZ270^2)+(AZ263^2))","v":80.436310208760815},{"$f":"BA305+BA298+BA291+BA284+BA277+BA270+BA263","v":157},{"$f":"SQRT((BB305^2)+(BB298^2)+(BB291^2)+(BB284^2)+(BB277^2)+(BB270^2)+(BB263^2))","v":107.41508273980894},{"$f":"BC305+BC298+BC291+BC284+BC277+BC270+BC263","v":22},{"$f":"SQRT((BD305^2)+(BD298^2)+(BD291^2)+(BD284^2)+(BD277^2)+(BD270^2)+(BD263^2))","v":60.124870062229654},{"$f":"BE305+BE298+BE291+BE284+BE277+BE270+BE263","v":433},{"$f":"SQRT((BF305^2)+(BF298^2)+(BF291^2)+(BF284^2)+(BF277^2)+(BF270^2)+(BF263^2))","v":190.9214498164101},{"$f":"BG305+BG298+BG291+BG284+BG277+BG270+BG263","v":3224},{"$f":"SQRT((BH305^2)+(BH298^2)+(BH291^2)+(BH284^2)+(BH277^2)+(BH270^2)+(BH263^2))","v":407.14370927229123},{"$f":"BI305+BI298+BI291+BI284+BI277+BI270+BI263","v":586},{"$f":"SQRT((BJ305^2)+(BJ298^2)+(BJ291^2)+(BJ284^2)+(BJ277^2)+(BJ270^2)+(BJ263^2))","v":196.88829320200833},{"$f":"BK305+BK298+BK291+BK284+BK277+BK270+BK263","v":195},{"$f":"SQRT((BL305^2)+(BL298^2)+(BL291^2)+(BL284^2)+(BL277^2)+(BL270^2)+(BL263^2))","v":146.40696704733693},{"$f":"BM305+BM298+BM291+BM284+BM277+BM270+BM263","v":1573},{"$f":"SQRT((BN305^2)+(BN298^2)+(BN291^2)+(BN284^2)+(BN277^2)+(BN270^2)+(BN263^2))","v":299.96499795809513},{"$f":"BO305+BO298+BO291+BO284+BO277+BO270+BO263","v":118},{"$f":"SQRT((BP305^2)+(BP298^2)+(BP291^2)+(BP284^2)+(BP277^2)+(BP270^2)+(BP263^2))","v":115.77564510725043},{"$f":"BQ305+BQ298+BQ291+BQ284+BQ277+BQ270+BQ263","v":962},{"$f":"SQRT((BR305^2)+(BR298^2)+(BR291^2)+(BR284^2)+(BR277^2)+(BR270^2)+(BR263^2))","v":281.22055401410472},{"$f":"BS305+BS298+BS291+BS284+BS277+BS270+BS263","v":28},{"$f":"SQRT((BT305^2)+(BT298^2)+(BT291^2)+(BT284^2)+(BT277^2)+(BT270^2)+(BT263^2))","v":57.349803835758671},{"$f":"BU305+BU298+BU291+BU284+BU277+BU270+BU263","v":139},{"$f":"SQRT((BV305^2)+(BV298^2)+(BV291^2)+(BV284^2)+(BV277^2)+(BV270^2)+(BV263^2))","v":113.15034246523517},{"$f":"BW305+BW298+BW291+BW284+BW277+BW270+BW263","v":136},{"$f":"SQRT((BX305^2)+(BX298^2)+(BX291^2)+(BX284^2)+(BX277^2)+(BX270^2)+(BX263^2))","v":105.94338110519222}]
[null,"35.0 percent or more",{"$f":"C306+C299+C292+C285+C278+C271+C264","v":40},{"$f":"SQRT((D306^2)+(D299^2)+(D292^2)+(D285^2)+(D278^2)+(D271^2)+(D264^2))","v":79.529868602934329},{"$f":"E306+E299+E292+E285+E278+E271+E264","v":35},{"$f":"SQRT((F306^2)+(F299^2)+(F292^2)+(F285^2)+(F278^2)+(F271^2)+(F264^2))","v":70.901339902712692},{"$f":"G306+G299+G292+G285+G278+G271+G264","v":124},{"$f":"SQRT((H306^2)+(H299^2)+(H292^2)+(H285^2)+(H278^2)+(H271^2)+(H264^2))","v":86},{"$f":"I306+I299+I292+I285+I278+I271+I264","v":12},{"$f":"SQRT((J306^2)+(J299^2)+(J292^2)+(J285^2)+(J278^2)+(J271^2)+(J264^2))","v":52.38320341483518},{"$f":"K306+K299+K292+K285+K278+K271+K264","v":94},{"$f":"SQRT((L306^2)+(L299^2)+(L292^2)+(L285^2)+(L278^2)+(L271^2)+(L264^2))","v":81.93289937503738},{"$f":"M306+M299+M292+M285+M278+M271+M264","v":80},{"$f":"SQRT((N306^2)+(N299^2)+(N292^2)+(N285^2)+(N278^2)+(N271^2)+(N264^2))","v":66.648330811806531},{"$f":"O306+O299+O292+O285+O278+O271+O264","v":51},{"$f":"SQRT((P306^2)+(P299^2)+(P292^2)+(P285^2)+(P278^2)+(P271^2)+(P264^2))","v":72.311824759163699},{"$f":"Q306+Q299+Q292+Q285+Q278+Q271+Q264","v":1774},{"$f":"SQRT((R306^2)+(R299^2)+(R292^2)+(R285^2)+(R278^2)+(R271^2)+(R264^2))","v":351.49822190161927},{"$f":"S306+S299+S292+S285+S278+S271+S264","v":28},{"$f":"SQRT((T306^2)+(T299^2)+(T292^2)+(T285^2)+(T278^2)+(T271^2)+(T264^2))","v":47.770283649984748},{"$f":"U306+U299+U292+U285+U278+U271+U264","v":69},{"$f":"SQRT((V306^2)+(V299^2)+(V292^2)+(V285^2)+(V278^2)+(V271^2)+(V264^2))","v":85.058803189323086},{"$f":"W306+W299+W292+W285+W278+W271+W264","v":696},{"$f":"SQRT((X306^2)+(X299^2)+(X292^2)+(X285^2)+(X278^2)+(X271^2)+(X264^2))","v":203.63447645229431},{"$f":"Y306+Y299+Y292+Y285+Y278+Y271+Y264","v":60},{"$f":"SQRT((Z306^2)+(Z299^2)+(Z292^2)+(Z285^2)+(Z278^2)+(Z271^2)+(Z264^2))","v":61.619802012015583},{"$f":"AA306+AA299+AA292+AA285+AA278+AA271+AA264","v":60},{"$f":"SQRT((AB306^2)+(AB299^2)+(AB292^2)+(AB285^2)+(AB278^2)+(AB271^2)+(AB264^2))","v":61.838499334961227},{"$f":"AC306+AC299+AC292+AC285+AC278+AC271+AC264","v":334},{"$f":"SQRT((AD306^2)+(AD299^2)+(AD292^2)+(AD285^2)+(AD278^2)+(AD271^2)+(AD264^2))","v":168.22901057784296},{"$f":"AE306+AE299+AE292+AE285+AE278+AE271+AE264","v":824},{"$f":"SQRT((AF306^2)+(AF299^2)+(AF292^2)+(AF285^2)+(AF278^2)+(AF271^2)+(AF264^2))","v":210.66798522794107},{"$f":"AG306+AG299+AG292+AG285+AG278+AG271+AG264","v":3},{"$f":"SQRT((AH306^2)+(AH299^2)+(AH292^2)+(AH285^2)+(AH278^2)+(AH271^2)+(AH264^2))","v":49.558046773455466},{"$f":"AI306+AI299+AI292+AI285+AI278+AI271+AI264","v":18},{"$f":"SQRT((AJ306^2)+(AJ299^2)+(AJ292^2)+(AJ285^2)+(AJ278^2)+(AJ271^2)+(AJ264^2))","v":48.124837662063861},{"$f":"AK306+AK299+AK292+AK285+AK278+AK271+AK264","v":49},{"$f":"SQRT((AL306^2)+(AL299^2)+(AL292^2)+(AL285^2)+(AL278^2)+(AL271^2)+(AL264^2))","v":92.374238833129226},{"$f":"AM306+AM299+AM292+AM285+AM278+AM271+AM264","v":478},{"$f":"SQRT((AN306^2)+(AN299^2)+(AN292^2)+(AN285^2)+(AN278^2)+(AN271^2)+(AN264^2))","v":166.55629678880351},{"$f":"AO306+AO299+AO292+AO285+AO278+AO271+AO264","v":6},{"$f":"SQRT((AP306^2)+(AP299^2)+(AP292^2)+(AP285^2)+(AP278^2)+(AP271^2)+(AP264^2))","v":48.373546489791295},{"$f":"AQ306+AQ299+AQ292+AQ285+AQ278+AQ271+AQ264","v":22},{"$f":"SQRT((AR306^2)+(AR299^2)+(AR292^2)+(AR285^2)+(AR278^2)+(AR271^2)+(AR264^2))","v":51.341990611973742},{"$f":"AS306+AS299+AS292+AS285+AS278+AS271+AS264","v":10},{"$f":"SQRT((AT306^2)+(AT299^2)+(AT292^2)+(AT285^2)+(AT278^2)+(AT271^2)+(AT264^2))","v":47.413078364518789},{"$f":"AU306+AU299+AU292+AU285+AU278+AU271+AU264","v":573},{"$f":"SQRT((AV306^2)+(AV299^2)+(AV292^2)+(AV285^2)+(AV278^2)+(AV271^2)+(AV264^2))","v":199.40411229460639},{"$f":"AW306+AW299+AW292+AW285+AW278+AW271+AW264","v":155},{"$f":"SQRT((AX306^2)+(AX299^2)+(AX292^2)+(AX285^2)+(AX278^2)+(AX271^2)+(AX264^2))","v":119.29794633605391},{"$f":"AY306+AY299+AY292+AY285+AY278+AY271+AY264","v":66},{"$f":"SQRT((AZ306^2)+(AZ299^2)+(AZ292^2)+(AZ285^2)+(AZ278^2)+(AZ271^2)+(AZ264^2))","v":71.484264002646071},{"$f":"BA306+BA299+BA292+BA285+BA278+BA271+BA264","v":29},{"$f":"SQRT((BB306^2)+(BB299^2)+(BB292^2)+(BB285^2)+(BB278^2)+(BB271^2)+(BB264^2))","v":54.845236803208351},{"$f":"BC306+BC299+BC292+BC285+BC278+BC271+BC264","v":30},{"$f":"SQRT((BD306^2)+(BD299^2)+(BD292^2)+(BD285^2)+(BD278^2)+(BD271^2)+(BD264^2))","v":54.626001134990652},{"$f":"BE306+BE299+BE292+BE285+BE278+BE271+BE264","v":179},{"$f":"SQRT((BF306^2)+(BF299^2)+(BF292^2)+(BF285^2)+(BF278^2)+(BF271^2)+(BF264^2))","v":141.33294025102569},{"$f":"BG306+BG299+BG292+BG285+BG278+BG271+BG264","v":1506},{"$f":"SQRT((BH306^2)+(BH299^2)+(BH292^2)+(BH285^2)+(BH278^2)+(BH271^2)+(BH264^2))","v":257.079754162011},{"$f":"BI306+BI299+BI292+BI285+BI278+BI271+BI264","v":278},{"$f":"SQRT((BJ306^2)+(BJ299^2)+(BJ292^2)+(BJ285^2)+(BJ278^2)+(BJ271^2)+(BJ264^2))","v":145.79437574886077},{"$f":"BK306+BK299+BK292+BK285+BK278+BK271+BK264","v":101},{"$f":"SQRT((BL306^2)+(BL299^2)+(BL292^2)+(BL285^2)+(BL278^2)+(BL271^2)+(BL264^2))","v":115.61574287267284},{"$f":"BM306+BM299+BM292+BM285+BM278+BM271+BM264","v":908},{"$f":"SQRT((BN306^2)+(BN299^2)+(BN292^2)+(BN285^2)+(BN278^2)+(BN271^2)+(BN264^2))","v":242.20858779159752},{"$f":"BO306+BO299+BO292+BO285+BO278+BO271+BO264","v":56},{"$f":"SQRT((BP306^2)+(BP299^2)+(BP292^2)+(BP285^2)+(BP278^2)+(BP271^2)+(BP264^2))","v":88.158947362136757},{"$f":"BQ306+BQ299+BQ292+BQ285+BQ278+BQ271+BQ264","v":429},{"$f":"SQRT((BR306^2)+(BR299^2)+(BR292^2)+(BR285^2)+(BR278^2)+(BR271^2)+(BR264^2))","v":152.58767971235423},{"$f":"BS306+BS299+BS292+BS285+BS278+BS271+BS264","v":13},{"$f":"SQRT((BT306^2)+(BT299^2)+(BT292^2)+(BT285^2)+(BT278^2)+(BT271^2)+(BT264^2))","v":50.19960159204453},{"$f":"BU306+BU299+BU292+BU285+BU278+BU271+BU264","v":48},{"$f":"SQRT((BV306^2)+(BV299^2)+(BV292^2)+(BV285^2)+(BV278^2)+(BV271^2)+(BV264^2))","v":75.312681535050928},{"$f":"BW306+BW299+BW292+BW285+BW278+BW271+BW264","v":194},{"$f":"SQRT((BX306^2)+(BX299^2)+(BX292^2)+(BX285^2)+(BX278^2)+(BX271^2)+(BX264^2))","v":161.49303390549079}]
[null,"50.0 percent or more",{"$f":"C307+C300+C293+C286+C279+C272+C265","v":0},{"$f":"SQRT((D307^2)+(D300^2)+(D293^2)+(D286^2)+(D279^2)+(D272^2)+(D265^2))","v":39.686269665968858},{"$f":"E307+E300+E293+E286+E279+E272+E265","v":35},{"$f":"SQRT((F307^2)+(F300^2)+(F293^2)+(F286^2)+(F279^2)+(F272^2)+(F265^2))","v":43.324358044868937},{"$f":"G307+G300+G293+G286+G279+G272+G265","v":79},{"$f":"SQRT((H307^2)+(H300^2)+(H293^2)+(H286^2)+(H279^2)+(H272^2)+(H265^2))","v":59.924953066314536},{"$f":"I307+I300+I293+I286+I279+I272+I265","v":0},{"$f":"SQRT((J307^2)+(J300^2)+(J293^2)+(J286^2)+(J279^2)+(J272^2)+(J265^2))","v":29.103264421710495},{"$f":"K307+K300+K293+K286+K279+K272+K265","v":80},{"$f":"SQRT((L307^2)+(L300^2)+(L293^2)+(L286^2)+(L279^2)+(L272^2)+(L265^2))","v":70.597450378891168},{"$f":"M307+M300+M293+M286+M279+M272+M265","v":43},{"$f":"SQRT((N307^2)+(N300^2)+(N293^2)+(N286^2)+(N279^2)+(N272^2)+(N265^2))","v":46.604720790924176},{"$f":"O307+O300+O293+O286+O279+O272+O265","v":20},{"$f":"SQRT((P307^2)+(P300^2)+(P293^2)+(P286^2)+(P279^2)+(P272^2)+(P265^2))","v":35.425979167836701},{"$f":"Q307+Q300+Q293+Q286+Q279+Q272+Q265","v":1193},{"$f":"SQRT((R307^2)+(R300^2)+(R293^2)+(R286^2)+(R279^2)+(R272^2)+(R265^2))","v":282.63757711953309},{"$f":"S307+S300+S293+S286+S279+S272+S265","v":17},{"$f":"SQRT((T307^2)+(T300^2)+(T293^2)+(T286^2)+(T279^2)+(T272^2)+(T265^2))","v":26.343879744638983},{"$f":"U307+U300+U293+U286+U279+U272+U265","v":58},{"$f":"SQRT((V307^2)+(V300^2)+(V293^2)+(V286^2)+(V279^2)+(V272^2)+(V265^2))","v":63.671029518926424},{"$f":"W307+W300+W293+W286+W279+W272+W265","v":429},{"$f":"SQRT((X307^2)+(X300^2)+(X293^2)+(X286^2)+(X279^2)+(X272^2)+(X265^2))","v":153.59036428109675},{"$f":"Y307+Y300+Y293+Y286+Y279+Y272+Y265","v":30},{"$f":"SQRT((Z307^2)+(Z300^2)+(Z293^2)+(Z286^2)+(Z279^2)+(Z272^2)+(Z265^2))","v":32.326459750489228},{"$f":"AA307+AA300+AA293+AA286+AA279+AA272+AA265","v":60},{"$f":"SQRT((AB307^2)+(AB300^2)+(AB293^2)+(AB286^2)+(AB279^2)+(AB272^2)+(AB265^2))","v":46.151923036857305},{"$f":"AC307+AC300+AC293+AC286+AC279+AC272+AC265","v":96},{"$f":"SQRT((AD307^2)+(AD300^2)+(AD293^2)+(AD286^2)+(AD279^2)+(AD272^2)+(AD265^2))","v":84.172442046075858},{"$f":"AE307+AE300+AE293+AE286+AE279+AE272+AE265","v":592},{"$f":"SQRT((AF307^2)+(AF300^2)+(AF293^2)+(AF286^2)+(AF279^2)+(AF272^2)+(AF265^2))","v":159.79361689379209},{"$f":"AG307+AG300+AG293+AG286+AG279+AG272+AG265","v":0},{"$f":"SQRT((AH307^2)+(AH300^2)+(AH293^2)+(AH286^2)+(AH279^2)+(AH272^2)+(AH265^2))","v":29.103264421710495},{"$f":"AI307+AI300+AI293+AI286+AI279+AI272+AI265","v":18},{"$f":"SQRT((AJ307^2)+(AJ300^2)+(AJ293^2)+(AJ286^2)+(AJ279^2)+(AJ272^2)+(AJ265^2))","v":24.939927826679853},{"$f":"AK307+AK300+AK293+AK286+AK279+AK272+AK265","v":10},{"$f":"SQRT((AL307^2)+(AL300^2)+(AL293^2)+(AL286^2)+(AL279^2)+(AL272^2)+(AL265^2))","v":40.484564959994323},{"$f":"AM307+AM300+AM293+AM286+AM279+AM272+AM265","v":269},{"$f":"SQRT((AN307^2)+(AN300^2)+(AN293^2)+(AN286^2)+(AN279^2)+(AN272^2)+(AN265^2))","v":119.45291959596467},{"$f":"AO307+AO300+AO293+AO286+AO279+AO272+AO265","v":3},{"$f":"SQRT((AP307^2)+(AP300^2)+(AP293^2)+(AP286^2)+(AP279^2)+(AP272^2)+(AP265^2))","v":27.239676943752471},{"$f":"AQ307+AQ300+AQ293+AQ286+AQ279+AQ272+AQ265","v":9},{"$f":"SQRT((AR307^2)+(AR300^2)+(AR293^2)+(AR286^2)+(AR279^2)+(AR272^2)+(AR265^2))","v":28.407745422683583},{"$f":"AS307+AS300+AS293+AS286+AS279+AS272+AS265","v":2},{"$f":"SQRT((AT307^2)+(AT300^2)+(AT293^2)+(AT286^2)+(AT279^2)+(AT272^2)+(AT265^2))","v":27.110883423451916},{"$f":"AU307+AU300+AU293+AU286+AU279+AU272+AU265","v":352},{"$f":"SQRT((AV307^2)+(AV300^2)+(AV293^2)+(AV286^2)+(AV279^2)+(AV272^2)+(AV265^2))","v":166.55329477377504},{"$f":"AW307+AW300+AW293+AW286+AW279+AW272+AW265","v":92},{"$f":"SQRT((AX307^2)+(AX300^2)+(AX293^2)+(AX286^2)+(AX279^2)+(AX272^2)+(AX265^2))","v":87.692645073575008},{"$f":"AY307+AY300+AY293+AY286+AY279+AY272+AY265","v":49},{"$f":"SQRT((AZ307^2)+(AZ300^2)+(AZ293^2)+(AZ286^2)+(AZ279^2)+(AZ272^2)+(AZ265^2))","v":57.602083295658673},{"$f":"BA307+BA300+BA293+BA286+BA279+BA272+BA265","v":20},{"$f":"SQRT((BB307^2)+(BB300^2)+(BB293^2)+(BB286^2)+(BB279^2)+(BB272^2)+(BB265^2))","v":34.785054261852174},{"$f":"BC307+BC300+BC293+BC286+BC279+BC272+BC265","v":0},{"$f":"SQRT((BD307^2)+(BD300^2)+(BD293^2)+(BD286^2)+(BD279^2)+(BD272^2)+(BD265^2))","v":29.103264421710495},{"$f":"BE307+BE300+BE293+BE286+BE279+BE272+BE265","v":87},{"$f":"SQRT((BF307^2)+(BF300^2)+(BF293^2)+(BF286^2)+(BF279^2)+(BF272^2)+(BF265^2))","v":103.83640979926068},{"$f":"BG307+BG300+BG293+BG286+BG279+BG272+BG265","v":826},{"$f":"SQRT((BH307^2)+(BH300^2)+(BH293^2)+(BH286^2)+(BH279^2)+(BH272^2)+(BH265^2))","v":186.72707355924581},{"$f":"BI307+BI300+BI293+BI286+BI279+BI272+BI265","v":135},{"$f":"SQRT((BJ307^2)+(BJ300^2)+(BJ293^2)+(BJ286^2)+(BJ279^2)+(BJ272^2)+(BJ265^2))","v":95.063136914368656},{"$f":"BK307+BK300+BK293+BK286+BK279+BK272+BK265","v":11},{"$f":"SQRT((BL307^2)+(BL300^2)+(BL293^2)+(BL286^2)+(BL279^2)+(BL272^2)+(BL265^2))","v":41.83300132670378},{"$f":"BM307+BM300+BM293+BM286+BM279+BM272+BM265","v":434},{"$f":"SQRT((BN307^2)+(BN300^2)+(BN293^2)+(BN286^2)+(BN279^2)+(BN272^2)+(BN265^2))","v":149.78317662541411},{"$f":"BO307+BO300+BO293+BO286+BO279+BO272+BO265","v":56},{"$f":"SQRT((BP307^2)+(BP300^2)+(BP293^2)+(BP286^2)+(BP279^2)+(BP272^2)+(BP265^2))","v":67.985292527134135},{"$f":"BQ307+BQ300+BQ293+BQ286+BQ279+BQ272+BQ265","v":267},{"$f":"SQRT((BR307^2)+(BR300^2)+(BR293^2)+(BR286^2)+(BR279^2)+(BR272^2)+(BR265^2))","v":120.09579509708072},{"$f":"BS307+BS300+BS293+BS286+BS279+BS272+BS265","v":13},{"$f":"SQRT((BT307^2)+(BT300^2)+(BT293^2)+(BT286^2)+(BT279^2)+(BT272^2)+(BT265^2))","v":28.740215726399828},{"$f":"BU307+BU300+BU293+BU286+BU279+BU272+BU265","v":37},{"$f":"SQRT((BV307^2)+(BV300^2)+(BV293^2)+(BV286^2)+(BV279^2)+(BV272^2)+(BV265^2))","v":48.846698967279252},{"$f":"BW307+BW300+BW293+BW286+BW279+BW272+BW265","v":67},{"$f":"SQRT((BX307^2)+(BX300^2)+(BX293^2)+(BX286^2)+(BX279^2)+(BX272^2)+(BX265^2))","v":80.647380614623813}]
[null,"Not Computed",{"$f":"C307+C301+C294+C287+C280+C273+C266","v":0},{"$f":"SQRT((D307^2)+(D301^2)+(D294^2)+(D287^2)+(D280^2)+(D273^2)+(D266^2))","v":39.686269665968858},{"$f":"E307+E301+E294+E287+E280+E273+E266","v":0},{"$f":"SQRT((F307^2)+(F301^2)+(F294^2)+(F287^2)+(F280^2)+(F273^2)+(F266^2))","v":39.686269665968858},{"$f":"G307+G301+G294+G287+G280+G273+G266","v":36},{"$f":"SQRT((H307^2)+(H301^2)+(H294^2)+(H287^2)+(H280^2)+(H273^2)+(H266^2))","v":40.06245124802026},{"$f":"I307+I301+I294+I287+I280+I273+I266","v":0},{"$f":"SQRT((J307^2)+(J301^2)+(J294^2)+(J287^2)+(J280^2)+(J273^2)+(J266^2))","v":29.103264421710495},{"$f":"K307+K301+K294+K287+K280+K273+K266","v":0},{"$f":"SQRT((L307^2)+(L301^2)+(L294^2)+(L287^2)+(L280^2)+(L273^2)+(L266^2))","v":29.103264421710495},{"$f":"M307+M301+M294+M287+M280+M273+M266","v":32},{"$f":"SQRT((N307^2)+(N301^2)+(N294^2)+(N287^2)+(N280^2)+(N273^2)+(N266^2))","v":40.26164427839479},{"$f":"O307+O301+O294+O287+O280+O273+O266","v":0},{"$f":"SQRT((P307^2)+(P301^2)+(P294^2)+(P287^2)+(P280^2)+(P273^2)+(P266^2))","v":29.103264421710495},{"$f":"Q307+Q301+Q294+Q287+Q280+Q273+Q266","v":117},{"$f":"SQRT((R307^2)+(R301^2)+(R294^2)+(R287^2)+(R280^2)+(R273^2)+(R266^2))","v":94.873600121424715},{"$f":"S307+S301+S294+S287+S280+S273+S266","v":0},{"$f":"SQRT((T307^2)+(T301^2)+(T294^2)+(T287^2)+(T280^2)+(T273^2)+(T266^2))","v":29.103264421710495},{"$f":"U307+U301+U294+U287+U280+U273+U266","v":46},{"$f":"SQRT((V307^2)+(V301^2)+(V294^2)+(V287^2)+(V280^2)+(V273^2)+(V266^2))","v":53.150729063673246},{"$f":"W307+W301+W294+W287+W280+W273+W266","v":100},{"$f":"SQRT((X307^2)+(X301^2)+(X294^2)+(X287^2)+(X280^2)+(X273^2)+(X266^2))","v":89.833178725902826},{"$f":"Y307+Y301+Y294+Y287+Y280+Y273+Y266","v":0},{"$f":"SQRT((Z307^2)+(Z301^2)+(Z294^2)+(Z287^2)+(Z280^2)+(Z273^2)+(Z266^2))","v":29.103264421710495},{"$f":"AA307+AA301+AA294+AA287+AA280+AA273+AA266","v":0},{"$f":"SQRT((AB307^2)+(AB301^2)+(AB294^2)+(AB287^2)+(AB280^2)+(AB273^2)+(AB266^2))","v":29.103264421710495},{"$f":"AC307+AC301+AC294+AC287+AC280+AC273+AC266","v":0},{"$f":"SQRT((AD307^2)+(AD301^2)+(AD294^2)+(AD287^2)+(AD280^2)+(AD273^2)+(AD266^2))","v":39.686269665968858},{"$f":"AE307+AE301+AE294+AE287+AE280+AE273+AE266","v":104},{"$f":"SQRT((AF307^2)+(AF301^2)+(AF294^2)+(AF287^2)+(AF280^2)+(AF273^2)+(AF266^2))","v":65.490457320131767},{"$f":"AG307+AG301+AG294+AG287+AG280+AG273+AG266","v":15},{"$f":"SQRT((AH307^2)+(AH301^2)+(AH294^2)+(AH287^2)+(AH280^2)+(AH273^2)+(AH266^2))","v":31.064449134018133},{"$f":"AI307+AI301+AI294+AI287+AI280+AI273+AI266","v":12},{"$f":"SQRT((AJ307^2)+(AJ301^2)+(AJ294^2)+(AJ287^2)+(AJ280^2)+(AJ273^2)+(AJ266^2))","v":27.110883423451916},{"$f":"AK307+AK301+AK294+AK287+AK280+AK273+AK266","v":12},{"$f":"SQRT((AL307^2)+(AL301^2)+(AL294^2)+(AL287^2)+(AL280^2)+(AL273^2)+(AL266^2))","v":40.914545090957567},{"$f":"AM307+AM301+AM294+AM287+AM280+AM273+AM266","v":55},{"$f":"SQRT((AN307^2)+(AN301^2)+(AN294^2)+(AN287^2)+(AN280^2)+(AN273^2)+(AN266^2))","v":56.008927859761783},{"$f":"AO307+AO301+AO294+AO287+AO280+AO273+AO266","v":11},{"$f":"SQRT((AP307^2)+(AP301^2)+(AP294^2)+(AP287^2)+(AP280^2)+(AP273^2)+(AP266^2))","v":28.26658805020514},{"$f":"AQ307+AQ301+AQ294+AQ287+AQ280+AQ273+AQ266","v":0},{"$f":"SQRT((AR307^2)+(AR301^2)+(AR294^2)+(AR287^2)+(AR280^2)+(AR273^2)+(AR266^2))","v":29.103264421710495},{"$f":"AS307+AS301+AS294+AS287+AS280+AS273+AS266","v":8},{"$f":"SQRT((AT307^2)+(AT301^2)+(AT294^2)+(AT287^2)+(AT280^2)+(AT273^2)+(AT266^2))","v":25.748786379167466},{"$f":"AU307+AU301+AU294+AU287+AU280+AU273+AU266","v":96},{"$f":"SQRT((AV307^2)+(AV301^2)+(AV294^2)+(AV287^2)+(AV280^2)+(AV273^2)+(AV266^2))","v":74.236109811869852},{"$f":"AW307+AW301+AW294+AW287+AW280+AW273+AW266","v":0},{"$f":"SQRT((AX307^2)+(AX301^2)+(AX294^2)+(AX287^2)+(AX280^2)+(AX273^2)+(AX266^2))","v":29.103264421710495},{"$f":"AY307+AY301+AY294+AY287+AY280+AY273+AY266","v":9},{"$f":"SQRT((AZ307^2)+(AZ301^2)+(AZ294^2)+(AZ287^2)+(AZ280^2)+(AZ273^2)+(AZ266^2))","v":30.364452901377952},{"$f":"BA307+BA301+BA294+BA287+BA280+BA273+BA266","v":30},{"$f":"SQRT((BB307^2)+(BB301^2)+(BB294^2)+(BB287^2)+(BB280^2)+(BB273^2)+(BB266^2))","v":37.12142238654117},{"$f":"BC307+BC301+BC294+BC287+BC280+BC273+BC266","v":24},{"$f":"SQRT((BD307^2)+(BD301^2)+(BD294^2)+(BD287^2)+(BD280^2)+(BD273^2)+(BD266^2))","v":37.107950630558946},{"$f":"BE307+BE301+BE294+BE287+BE280+BE273+BE266","v":56},{"$f":"SQRT((BF307^2)+(BF301^2)+(BF294^2)+(BF287^2)+(BF280^2)+(BF273^2)+(BF266^2))","v":78.140898382345213},{"$f":"BG307+BG301+BG294+BG287+BG280+BG273+BG266","v":131},{"$f":"SQRT((BH307^2)+(BH301^2)+(BH294^2)+(BH287^2)+(BH280^2)+(BH273^2)+(BH266^2))","v":88.328930707894344},{"$f":"BI307+BI301+BI294+BI287+BI280+BI273+BI266","v":34},{"$f":"SQRT((BJ307^2)+(BJ301^2)+(BJ294^2)+(BJ287^2)+(BJ280^2)+(BJ273^2)+(BJ266^2))","v":55.362442142665635},{"$f":"BK307+BK301+BK294+BK287+BK280+BK273+BK266","v":69},{"$f":"SQRT((BL307^2)+(BL301^2)+(BL294^2)+(BL287^2)+(BL280^2)+(BL273^2)+(BL266^2))","v":86.98850498772812},{"$f":"BM307+BM301+BM294+BM287+BM280+BM273+BM266","v":85},{"$f":"SQRT((BN307^2)+(BN301^2)+(BN294^2)+(BN287^2)+(BN280^2)+(BN273^2)+(BN266^2))","v":94.095695969581939},{"$f":"BO307+BO301+BO294+BO287+BO280+BO273+BO266","v":0},{"$f":"SQRT((BP307^2)+(BP301^2)+(BP294^2)+(BP287^2)+(BP280^2)+(BP273^2)+(BP266^2))","v":39.686269665968858},{"$f":"BQ307+BQ301+BQ294+BQ287+BQ280+BQ273+BQ266","v":16},{"$f":"SQRT((BR307^2)+(BR301^2)+(BR294^2)+(BR287^2)+(BR280^2)+(BR273^2)+(BR266^2))","v":45.011109739707599},{"$f":"BS307+BS301+BS294+BS287+BS280+BS273+BS266","v":11},{"$f":"SQRT((BT307^2)+(BT301^2)+(BT294^2)+(BT287^2)+(BT280^2)+(BT273^2)+(BT266^2))","v":23.685438564654021},{"$f":"BU307+BU301+BU294+BU287+BU280+BU273+BU266","v":0},{"$f":"SQRT((BV307^2)+(BV301^2)+(BV294^2)+(BV287^2)+(BV280^2)+(BV273^2)+(BV266^2))","v":39.686269665968858},{"$f":"BW307+BW301+BW294+BW287+BW280+BW273+BW266","v":46},{"$f":"SQRT((BX307^2)+(BX301^2)+(BX294^2)+(BX287^2)+(BX280^2)+(BX273^2)+(BX266^2))","v":59.523104757732519}]
[]
[]
[]
[]
[null,"B25074. HOUSEHOLD INCOME BY GROSS RENT AS A PERCENTAGE OF HOUSEHOLD INCOME IN THE PAST 12 MONTHS"]
[null,"Universe:  RENTER OCCUPIED HOUSING UNITS"]
[null,"Data Set: 2005-2009 American Community Survey 5-Year Estimates",null,null,null,"Income in 2009 Inflation Adjusted Dollars"]
[]
[null,null,"Atkinson",null,"Auburn",null,"Brentwood",null,"Candia",null,"Chester",null,"Danville",null,"Deerfield",null,"Derry",null,"East Kingston",null,"Epping",null,"Exeter",null,"Fremont",null,"Greenland",null,"Hampstead",null,"Hampton",null,"Hampton Falls",null,"Kensington",null,"Kingston",null,"Londonderry",null,"New Castle",null,"Newfields",null,"Newington",null,"Newmarket",null,"Newton",null,"North Hampton",null,"Northwood",null,"Nottingham",null,"Plaistow",null,"Portsmouth",null,"Raymond",null,"Rye",null,"Salem",null,"Sandown",null,"Seabrook",null,"South Hampton",null,"Stratham",null,"Windham"]
[null," ","Estimate","Margin Of Error","Estimate","Margin Of Error","Estimate","Margin Of Error","Estimate","Margin Of Error","Estimate","Margin Of Error","Estimate","Margin Of Error","Estimate","Margin Of Error","Estimate","Margin Of Error","Estimate","Margin Of Error","Estimate","Margin Of Error","Estimate","Margin Of Error","Estimate","Margin Of Error","Estimate","Margin Of Error","Estimate","Margin Of Error","Estimate","Margin Of Error","Estimate","Margin Of Error","Estimate","Margin Of Error","Estimate","Margin Of Error","Estimate","Margin Of Error","Estimate","Margin Of Error","Estimate","Margin Of Error","Estimate","Margin Of Error","Estimate","Margin Of Error","Estimate","Margin Of Error","Estimate","Margin Of Error","Estimate","Margin Of Error","Estimate","Margin Of Error","Estimate","Margin Of Error","Estimate","Margin Of Error","Estimate","Margin Of Error","Estimate","Margin Of Error","Estimate","Margin Of Error","Estimate","Margin Of Error","Estimate","Margin Of Error","Estimate","Margin Of Error","Estimate","Margin Of Error","Estimate","Margin Of Error"]
[null,"Total:",402,127,109,92,38,27,69,53,9,14,123,80,186,89,3846,312,60,27,347,145,1907,282,107,58,159,81,547,137,2066,208,76,33,43,23,160,86,827,194,41,29,31,24,57,31,1613,206,225,91,280,103,251,88,163,90,573,170,4507,293,619,154,359,135,2287,261,211,101,1160,200,33,30,177,114,276,108]
[null,"Less than $10,000:",29,32,0,114,5,8,14,22,0,114,0,114,8,12,328,150,6,8,21,34,188,124,0,114,0,114,10,15,124,89,6,6,0,114,18,30,27,31,0,114,0,114,0,114,140,82,52,53,51,50,10,16,0,114,27,32,586,153,143,92,34,38,129,64,16,16,62,54,0,114,18,29,0,114]
[null,"Less than 20.0 percent",0,114,0,114,0,114,0,114,0,114,0,114,0,114,14,21,0,114,0,114,0,114,0,114,0,114,0,114,0,114,0,114,0,114,0,114,0,114,0,114,0,114,0,114,0,114,0,114,0,114,0,114,0,114,0,114,10,17,0,114,0,114,13,20,0,114,0,114,0,114,0,114,0,114]
[null,"20.0 to 24.9 percent",0,114,0,114,0,114,0,114,0,114,0,114,0,114,10,16,0,114,0,114,45,72,0,114,0,114,0,114,0,114,0,114,0,114,0,114,0,114,0,114,0,114,0,114,0,114,0,114,0,114,0,114,0,114,0,114,14,22,0,114,0,114,0,114,0,114,0,114,0,114,0,114,0,114]
[null,"25.0 to 29.9 percent",0,114,0,114,0,114,0,114,0,114,0,114,0,114,84,81,0,114,0,114,0,114,0,114,0,114,0,114,10,16,0,114,0,114,0,114,0,114,0,114,0,114,0,114,0,114,31,48,0,114,0,114,0,114,0,114,46,41,27,43,0,114,0,114,0,114,0,114,0,114,0,114,0,114]
[null,"30.0 to 34.9 percent",0,114,0,114,0,114,0,114,0,114,0,114,0,114,0,114,0,114,0,114,0,114,0,114,0,114,0,114,0,114,0,114,0,114,0,114,0,114,0,114,0,114,0,114,0,114,10,16,0,114,0,114,0,114,0,114,132,89,0,114,0,114,0,114,0,114,0,114,0,114,0,114,0,114]
[null,"35.0 percent or more",29,32,0,114,5,8,14,22,0,114,0,114,0,114,206,120,2,5,0,114,131,103,0,114,0,114,10,15,85,74,3,4,0,114,18,30,27,31,0,114,0,114,0,114,140,82,0,114,51,50,10,16,0,114,16,25,330,145,39,43,0,114,116,62,16,16,51,52,0,114,18,29,0,114]
[null,"Not computed",0,114,0,114,0,114,0,114,0,114,0,114,8,12,14,23,4,6,21,34,12,20,0,114,0,114,0,114,29,47,3,4,0,114,0,114,0,114,0,114,0,114,0,114,0,114,11,17,0,114,0,114,0,114,11,17,54,63,77,73,34,38,0,114,0,114,11,18,0,114,0,114,0,114]
[null,"$10,000 to $19,999:",99,107,0,114,0,114,0,114,0,114,9,17,0,114,514,167,10,11,14,23,243,111,0,114,12,18,81,92,377,162,12,17,7,7,49,60,88,62,0,114,0,114,7,9,151,84,11,18,0,114,38,40,0,114,61,81,423,120,86,78,16,25,208,88,31,37,365,143,0,114,34,49,60,51]
[null,"Less than 20.0 percent",0,114,0,114,0,114,0,114,0,114,0,114,0,114,34,41,0,114,0,114,12,19,0,114,0,114,0,114,0,114,0,114,4,5,0,114,0,114,0,114,0,114,0,114,0,114,0,114,0,114,0,114,0,114,0,114,14,22,0,114,0,114,12,20,0,114,0,114,0,114,0,114,0,114]
[null,"20.0 to 24.9 percent",0,114,0,114,0,114,0,114,0,114,0,114,0,114,42,37,0,114,0,114,0,114,0,114,0,114,0,114,58,40,0,114,0,114,0,114,0,114,0,114,0,114,0,114,0,114,0,114,0,114,0,114,0,114,0,114,51,54,0,114,0,114,74,60,0,114,0,114,0,114,0,114,0,114]
[null,"25.0 to 29.9 percent",0,114,0,114,0,114,0,114,0,114,0,114,0,114,19,29,0,114,14,23,12,19,0,114,0,114,0,114,0,114,0,114,0,114,0,114,12,19,0,114,0,114,0,114,11,18,0,114,0,114,0,114,0,114,0,114,23,36,9,15,0,114,30,23,0,114,12,19,0,114,0,114,10,17]
[null,"30.0 to 34.9 percent",0,114,0,114,0,114,0,114,0,114,0,114,0,114,65,56,0,114,0,114,0,114,0,114,0,114,0,114,13,21,0,114,0,114,0,114,0,114,0,114,0,114,0,114,0,114,0,114,0,114,0,114,0,114,0,114,50,40,0,114,0,114,12,20,0,114,46,26,0,114,0,114,0,114]
[null,"35.0 percent or more",99,107,0,114,0,114,0,114,0,114,9,17,0,114,335,137,7,11,0,114,189,108,0,114,0,114,81,92,295,151,10,16,0,114,35,55,76,59,0,114,0,114,7,9,140,84,11,18,0,114,30,38,0,114,61,81,285,106,77,76,16,25,80,52,22,33,256,130,0,114,34,49,50,52]
[null,"Not computed",0,114,0,114,0,114,0,114,0,114,0,114,0,114,19,23,3,5,0,114,30,35,0,114,12,18,0,114,11,18,2,4,3,4,14,23,0,114,0,114,0,114,0,114,0,114,0,114,0,114,8,12,0,114,0,114,0,114,0,114,0,114,0,114,9,14,51,49,0,114,0,114,0,114]
[null,"$20,000 to $34,999:",82,102,60,66,4,8,0,114,0,114,30,45,68,64,901,209,2,3,117,91,447,169,0,114,0,114,213,142,484,145,16,17,6,7,68,50,151,94,0,114,11,18,17,21,341,118,75,68,34,33,36,45,20,31,139,99,662,153,98,79,62,53,357,127,66,54,109,66,2,3,0,114,21,31]
[null,"Less than 20.0 percent",0,114,0,114,0,114,0,114,0,114,0,114,0,114,0,114,0,114,0,114,36,59,0,114,0,114,0,114,12,18,0,114,0,114,17,28,0,114,0,114,0,114,0,114,0,114,0,114,0,114,27,43,0,114,0,114,16,24,0,114,0,114,0,114,0,114,0,114,0,114,0,114,0,114]
[null,"20.0 to 24.9 percent",0,114,0,114,4,8,0,114,0,114,0,114,0,114,28,27,0,114,0,114,31,35,0,114,0,114,0,114,26,28,0,114,0,114,0,114,0,114,0,114,0,114,0,114,0,114,0,114,0,114,0,114,0,114,0,114,17,19,32,51,0,114,20,25,0,114,0,114,0,114,0,114,0,114]
[null,"25.0 to 29.9 percent",0,114,0,114,0,114,0,114,0,114,0,114,0,114,67,56,0,114,12,19,11,18,0,114,0,114,57,82,58,60,0,114,0,114,0,114,36,42,0,114,0,114,0,114,97,56,10,16,15,24,0,114,0,114,0,114,40,33,0,114,15,25,35,55,0,114,0,114,0,114,0,114,0,114]
[null,"30.0 to 34.9 percent",0,114,17,28,0,114,0,114,0,114,0,114,17,19,117,78,0,114,19,29,44,36,0,114,0,114,41,65,58,64,9,14,0,114,51,55,52,67,0,114,0,114,0,114,67,41,0,114,0,114,0,114,0,114,0,114,48,31,0,114,0,114,46,39,0,114,12,19,0,114,0,114,0,114]
[null,"35.0 percent or more",82,102,43,66,0,114,0,114,0,114,30,45,42,54,659,200,0,114,45,49,305,141,0,114,0,114,115,96,282,138,7,10,4,6,0,114,63,51,0,114,11,18,17,21,159,85,65,66,0,114,9,13,0,114,96,65,514,134,55,56,47,46,241,113,66,54,97,58,2,3,0,114,21,31]
[null,"Not computed",0,114,0,114,0,114,0,114,0,114,0,114,9,14,30,37,2,3,41,66,20,31,0,114,0,114,0,114,48,38,0,114,2,4,0,114,0,114,0,114,0,114,0,114,18,27,0,114,19,22,0,114,20,31,43,72,27,28,11,16,0,114,15,23,0,114,0,114,0,114,0,114,0,114]
[null,"$35,000 to $49,999:",62,62,9,14,6,8,45,49,0,114,11,17,64,55,646,166,14,16,35,48,328,136,0,114,41,33,93,92,465,171,6,6,16,20,0,114,188,114,13,17,9,10,7,8,355,145,35,33,19,21,30,28,10,15,23,27,805,183,94,79,59,53,643,184,0,114,229,115,0,114,0,114,67,60]
[null,"Less than 20.0 percent",21,34,0,114,0,114,0,114,0,114,0,114,12,15,48,60,0,114,0,114,23,27,0,114,0,114,0,114,53,67,0,114,0,114,0,114,0,114,0,114,0,114,4,6,23,27,0,114,0,114,0,114,0,114,0,114,33,39,0,114,0,114,0,114,0,114,19,30,0,114,0,114,0,114]
[null,"20.0 to 24.9 percent",0,114,0,114,0,114,0,114,0,114,0,114,0,114,176,92,0,114,0,114,34,53,0,114,11,18,46,75,31,30,0,114,0,114,0,114,32,41,8,15,0,114,0,114,119,102,23,25,0,114,0,114,0,114,0,114,148,79,21,24,0,114,164,93,0,114,0,114,0,114,0,114,10,15]
[null,"25.0 to 29.9 percent",0,114,0,114,0,114,0,114,0,114,11,17,0,114,109,69,12,14,35,48,56,73,0,114,0,114,0,114,179,116,0,114,5,8,0,114,0,114,5,8,0,114,0,114,37,39,0,114,0,114,0,114,0,114,0,114,109,63,73,74,16,26,167,115,0,114,97,89,0,114,0,114,0,114]
[null,"30.0 to 34.9 percent",0,114,0,114,6,8,0,114,0,114,0,114,24,36,101,89,0,114,0,114,77,76,0,114,10,16,47,56,82,85,0,114,0,114,0,114,27,31,0,114,0,114,0,114,53,44,0,114,10,15,8,13,0,114,0,114,184,105,0,114,0,114,110,89,0,114,18,29,0,114,0,114,36,54]
[null,"35.0 percent or more",41,55,9,14,0,114,45,49,0,114,0,114,28,45,177,122,2,5,0,114,117,65,0,114,13,19,0,114,99,76,3,4,11,18,0,114,102,99,0,114,9,10,3,5,123,61,12,20,9,13,22,25,10,15,10,17,331,129,0,114,29,31,202,123,0,114,82,76,0,114,0,114,21,24]
[null,"Not computed",0,114,0,114,0,114,0,114,0,114,0,114,0,114,35,39,0,114,0,114,21,26,0,114,7,11,0,114,21,26,3,5,0,114,0,114,27,30,0,114,0,114,0,114,0,114,0,114,0,114,0,114,0,114,13,21,0,114,0,114,14,25,0,114,0,114,13,20,0,114,0,114,0,114]
[null,"$50,000 to $74,999:",130,121,0,114,15,24,10,16,9,14,73,71,22,25,706,202,23,19,114,93,432,170,41,33,106,77,125,88,394,138,3,4,7,8,0,114,157,110,0,114,11,10,12,11,337,148,7,11,83,69,80,66,54,44,188,110,1013,183,129,83,130,100,448,149,27,24,293,141,25,31,0,114,40,49]
[null,"Less than 20.0 percent",115,118,0,114,15,24,0,114,0,114,0,114,14,20,296,155,9,14,82,89,105,82,0,114,23,26,75,71,157,96,0,114,0,114,0,114,25,29,0,114,7,8,4,6,190,131,7,11,38,61,56,55,11,17,98,92,273,120,58,53,92,92,114,96,5,11,142,90,22,30,0,114,0,114]
[null,"20.0 to 24.9 percent",0,114,0,114,0,114,0,114,0,114,31,49,0,114,197,107,5,6,32,36,214,126,11,18,71,78,16,25,125,72,0,114,0,114,0,114,98,100,0,114,0,114,4,7,91,43,0,114,21,23,24,39,32,35,76,55,435,160,0,114,0,114,147,103,8,12,55,44,0,114,0,114,0,114]
[null,"25.0 to 29.9 percent",0,114,0,114,0,114,10,16,0,114,0,114,8,14,86,71,0,114,0,114,0,114,20,27,0,114,10,16,26,22,3,4,3,5,0,114,14,20,0,114,0,114,0,114,0,114,0,114,0,114,0,114,0,114,0,114,84,56,53,55,0,114,92,80,0,114,81,98,0,114,0,114,40,49]
[null,"30.0 to 34.9 percent",0,114,0,114,0,114,0,114,0,114,0,114,0,114,94,72,0,114,0,114,0,114,10,16,0,114,0,114,0,114,0,114,4,6,0,114,0,114,0,114,0,114,0,114,35,53,0,114,8,14,0,114,11,18,14,23,99,66,0,114,27,32,39,30,7,13,15,22,0,114,0,114,0,114]
[null,"35.0 percent or more",0,114,0,114,0,114,0,114,0,114,0,114,0,114,22,25,9,12,0,114,97,60,0,114,0,114,24,38,86,77,0,114,0,114,0,114,0,114,0,114,0,114,0,114,21,24,0,114,16,24,0,114,0,114,0,114,109,80,0,114,11,19,19,22,7,12,0,114,3,4,0,114,0,114]
[null,"Not computed",15,25,0,114,0,114,0,114,9,14,42,52,0,114,11,18,0,114,0,114,16,25,0,114,12,18,0,114,0,114,0,114,0,114,0,114,20,32,0,114,4,6,4,6,0,114,0,114,0,114,0,114,0,114,0,114,13,20,18,27,0,114,37,33,0,114,0,114,0,114,0,114,0,114]
[null,"$75,000 to $99,999:",0,114,0,114,0,114,0,114,0,114,0,114,19,25,422,136,3,5,22,35,98,67,56,53,0,114,25,29,111,83,7,7,4,5,0,114,65,48,4,8,0,114,11,9,143,97,0,114,48,45,50,53,33,50,120,104,491,150,59,63,29,32,278,133,63,65,92,69,6,6,72,81,19,21]
[null,"Less than 20.0 percent",0,114,0,114,0,114,0,114,0,114,0,114,19,25,235,103,0,114,22,35,27,27,0,114,0,114,25,29,85,79,4,5,4,5,0,114,16,19,4,8,0,114,7,8,101,87,0,114,0,114,8,12,33,50,108,101,365,148,59,63,0,114,197,116,34,52,53,45,3,4,0,114,0,114]
[null,"20.0 to 24.9 percent",0,114,0,114,0,114,0,114,0,114,0,114,0,114,107,104,0,114,0,114,0,114,30,46,0,114,0,114,26,28,0,114,0,114,0,114,38,38,0,114,0,114,4,6,30,34,0,114,40,45,42,52,0,114,12,20,24,36,0,114,12,19,13,21,0,114,39,42,0,114,28,45,0,114]
[null,"25.0 to 29.9 percent",0,114,0,114,0,114,0,114,0,114,0,114,0,114,51,43,0,114,0,114,13,22,13,21,0,114,0,114,0,114,0,114,0,114,0,114,11,18,0,114,0,114,0,114,12,19,0,114,8,13,0,114,0,114,0,114,19,22,0,114,17,26,38,61,29,40,0,114,0,114,0,114,7,11]
[null,"30.0 to 34.9 percent",0,114,0,114,0,114,0,114,0,114,0,114,0,114,14,26,0,114,0,114,0,114,0,114,0,114,0,114,0,114,0,114,0,114,0,114,0,114,0,114,0,114,0,114,0,114,0,114,0,114,0,114,0,114,0,114,0,114,0,114,0,114,0,114,0,114,0,114,0,114,44,66,0,114]
[null,"35.0 percent or more",0,114,0,114,0,114,0,114,0,114,0,114,0,114,0,114,0,114,0,114,25,29,13,21,0,114,0,114,0,114,0,114,0,114,0,114,0,114,0,114,0,114,0,114,0,114,0,114,0,114,0,114,0,114,0,114,48,59,0,114,0,114,12,19,0,114,0,114,3,4,0,114,0,114]
[null,"Not computed",0,114,0,114,0,114,0,114,0,114,0,114,0,114,15,24,3,5,0,114,33,40,0,114,0,114,0,114,0,114,3,4,0,114,0,114,0,114,0,114,0,114,0,114,0,114,0,114,0,114,0,114,0,114,0,114,35,29,0,114,0,114,18,28,0,114,0,114,0,114,0,114,12,18]
[null,"$100,000 or more:",0,114,40,59,8,9,0,114,0,114,0,114,5,10,329,130,2,4,24,28,171,88,10,15,0,114,0,114,111,76,26,24,3,4,25,37,151,99,24,20,0,114,3,5,146,79,45,42,45,52,7,12,46,71,15,23,527,165,10,16,29,34,224,138,8,13,10,17,0,114,53,51,69,55]
[null,"Less than 20.0 percent",0,114,40,59,3,5,0,114,0,114,0,114,5,10,285,122,2,4,0,114,86,66,10,15,0,114,0,114,95,74,15,18,3,4,25,37,102,80,21,20,0,114,3,5,131,76,17,28,41,53,0,114,46,71,15,23,413,161,10,16,29,34,200,134,8,13,10,17,0,114,53,51,69,55]
[null,"20.0 to 24.9 percent",0,114,0,114,5,7,0,114,0,114,0,114,0,114,44,53,0,114,0,114,0,114,0,114,0,114,0,114,0,114,3,4,0,114,0,114,49,59,3,5,0,114,0,114,0,114,16,25,4,9,0,114,0,114,0,114,104,87,0,114,0,114,0,114,0,114,0,114,0,114,0,114,0,114]
[null,"25.0 to 29.9 percent",0,114,0,114,0,114,0,114,0,114,0,114,0,114,0,114,0,114,10,21,0,114,0,114,0,114,0,114,0,114,4,6,0,114,0,114,0,114,0,114,0,114,0,114,15,23,0,114,0,114,7,12,0,114,0,114,10,16,0,114,0,114,0,114,0,114,0,114,0,114,0,114,0,114]
[null,"30.0 to 34.9 percent",0,114,0,114,0,114,0,114,0,114,0,114,0,114,0,114,0,114,0,114,0,114,0,114,0,114,0,114,0,114,0,114,0,114,0,114,0,114,0,114,0,114,0,114,0,114,0,114,0,114,0,114,0,114,0,114,0,114,0,114,0,114,0,114,0,114,0,114,0,114,0,114,0,114]
[null,"35.0 percent or more",0,114,0,114,0,114,0,114,0,114,0,114,0,114,0,114,0,114,0,114,22,26,0,114,0,114,0,114,0,114,0,114,0,114,0,114,0,114,0,114,0,114,0,114,0,114,0,114,0,114,0,114,0,114,0,114,0,114,0,114,0,114,0,114,0,114,0,114,0,114,0,114,0,114]
[null,"Not computed",0,114,0,114,0,114,0,114,0,114,0,114,0,114,0,114,0,114,14,22,63,46,0,114,0,114,0,114,16,18,4,5,0,114,0,114,0,114,0,114,0,114,0,114,0,114,12,18,0,114,0,114,0,114,0,114,0,114,0,114,0,114,24,29,0,114,0,114,0,114,0,114,0,114]
[]
[]
[]
[]
[]
[]
[]
[]
[]
[]
[]
[]
[]
[]
[]
[]
[]
[]
[]
[]
[]
[]
[]
[]
[]
[]
[]
[]
[]
[]
[]
[]
[]
[]
[]
[]
[]
[]
[]
[]
[]
[]
[]
[]
[]
[null,"Calculated B25074. HOUSEHOLD INCOME BY GROSS RENT AS A PERCENTAGE OF HOUSEHOLD INCOME IN THE PAST 12 MONTHS"]
[null,"Universe:  RENTER OCCUPIED HOUSING UNITS"]
[null,"Data Set: 2005-2009 American Community Survey 5-Year Estimates"]
[]
[null,null,"Atkinson",null,"Auburn",null,"Brentwood",null,"Candia",null,"Chester",null,"Danville",null,"Deerfield",null,"Derry",null,"East Kingston",null,"Epping",null,"Exeter",null,"Fremont",null,"Greenland",null,"Hampstead",null,"Hampton",null,"Hampton Falls",null,"Kensington",null,"Kingston",null,"Londonderry",null,"New Castle",null,"Newfields",null,"Newington",null,"Newmarket",null,"Newton",null,"North Hampton",null,"Northwood",null,"Nottingham",null,"Plaistow",null,"Portsmouth",null,"Raymond",null,"Rye",null,"Salem",null,"Sandown",null,"Seabrook",null,"South Hampton",null,"Stratham",null,"Windham"]
[null," ","Estimate","Margin Of Error","Estimate","Margin Of Error","Estimate","Margin Of Error","Estimate","Margin Of Error","Estimate","Margin Of Error","Estimate","Margin Of Error","Estimate","Margin Of Error","Estimate","Margin Of Error","Estimate","Margin Of Error","Estimate","Margin Of Error","Estimate","Margin Of Error","Estimate","Margin Of Error","Estimate","Margin Of Error","Estimate","Margin Of Error","Estimate","Margin Of Error","Estimate","Margin Of Error","Estimate","Margin Of Error","Estimate","Margin Of Error","Estimate","Margin Of Error","Estimate","Margin Of Error","Estimate","Margin Of Error","Estimate","Margin Of Error","Estimate","Margin Of Error","Estimate","Margin Of Error","Estimate","Margin Of Error","Estimate","Margin Of Error","Estimate","Margin Of Error","Estimate","Margin Of Error","Estimate","Margin Of Error","Estimate","Margin Of Error","Estimate","Margin Of Error","Estimate","Margin Of Error","Estimate","Margin Of Error","Estimate","Margin Of Error","Estimate","Margin Of Error","Estimate","Margin Of Error","Estimate","Margin Of Error"]
[null,"Total:",{"$f":"C334","v":402},127,109,92,38,27,69,53,9,14,123,80,186,89,3846,312,60,27,347,145,1907,282,107,58,159,81,547,137,2066,208,76,33,{"$f":"AI334","v":43},23,160,86,827,194,41,29,31,24,57,31,1613,206,225,91,280,103,251,88,163,90,573,170,4507,293,619,154,359,135,2287,261,{"$f":"BO334","v":211},101,1160,200,33,30,177,114,276,108]
[null,"Less than $10,000:",{"$f":"C335","v":29},32,0,114,5,8,14,22,0,114,0,114,8,12,328,150,6,8,21,34,188,124,0,114,0,114,10,15,124,89,6,6,{"$f":"AI335","v":0},114,18,30,27,31,0,114,0,114,0,114,140,82,52,53,51,50,10,16,0,114,27,32,586,153,143,92,34,38,129,64,{"$f":"BO335","v":16},16,62,54,0,114,18,29,0,114]
[null,"Less than 30.0 percent",{"$f":"C336+C337+C338","v":0},{"$f":"SQRT((D336^2)+(D337^2)+(D338^2))","v":197.45379206285202},{"$f":"E336+E337+E338","v":0},{"$f":"SQRT((F336^2)+(F337^2)+(F338^2))","v":197.45379206285202},{"$f":"G336+G337+G338","v":0},{"$f":"SQRT((H336^2)+(H337^2)+(H338^2))","v":197.45379206285202},{"$f":"I336+I337+I338","v":0},{"$f":"SQRT((J336^2)+(J337^2)+(J338^2))","v":197.45379206285202},{"$f":"K336+K337+K338","v":0},{"$f":"SQRT((L336^2)+(L337^2)+(L338^2))","v":197.45379206285202},{"$f":"M336+M337+M338","v":0},{"$f":"SQRT((N336^2)+(N337^2)+(N338^2))","v":197.45379206285202},{"$f":"O336+O337+O338","v":0},{"$f":"SQRT((P336^2)+(P337^2)+(P338^2))","v":197.45379206285202},{"$f":"Q336+Q337+Q338","v":108},{"$f":"SQRT((R336^2)+(R337^2)+(R338^2))","v":85.193896494995457},{"$f":"S336+S337+S338","v":0},{"$f":"SQRT((T336^2)+(T337^2)+(T338^2))","v":197.45379206285202},{"$f":"U336+U337+U338","v":0},{"$f":"SQRT((V336^2)+(V337^2)+(V338^2))","v":197.45379206285202},{"$f":"W336+W337+W338","v":45},{"$f":"SQRT((X336^2)+(X337^2)+(X338^2))","v":176.56726763474595},{"$f":"Y336+Y337+Y338","v":0},{"$f":"SQRT((Z336^2)+(Z337^2)+(Z338^2))","v":197.45379206285202},{"$f":"AA336+AA337+AA338","v":0},{"$f":"SQRT((AB336^2)+(AB337^2)+(AB338^2))","v":197.45379206285202},{"$f":"AC336+AC337+AC338","v":0},{"$f":"SQRT((AD336^2)+(AD337^2)+(AD338^2))","v":197.45379206285202},{"$f":"AE336+AE337+AE338","v":10},{"$f":"SQRT((AF336^2)+(AF337^2)+(AF338^2))","v":162.01234520862909},{"$f":"AG336+AG337+AG338","v":0},{"$f":"SQRT((AH336^2)+(AH337^2)+(AH338^2))","v":197.45379206285202},{"$f":"AI336+AI337+AI338","v":0},{"$f":"SQRT((AJ336^2)+(AJ337^2)+(AJ338^2))","v":197.45379206285202},{"$f":"AK336+AK337+AK338","v":0},{"$f":"SQRT((AL336^2)+(AL337^2)+(AL338^2))","v":197.45379206285202},{"$f":"AM336+AM337+AM338","v":0},{"$f":"SQRT((AN336^2)+(AN337^2)+(AN338^2))","v":197.45379206285202},{"$f":"AO336+AO337+AO338","v":0},{"$f":"SQRT((AP336^2)+(AP337^2)+(AP338^2))","v":197.45379206285202},{"$f":"AQ336+AQ337+AQ338","v":0},{"$f":"SQRT((AR336^2)+(AR337^2)+(AR338^2))","v":197.45379206285202},{"$f":"AS336+AS337+AS338","v":0},{"$f":"SQRT((AT336^2)+(AT337^2)+(AT338^2))","v":197.45379206285202},{"$f":"AU336+AU337+AU338","v":0},{"$f":"SQRT((AV336^2)+(AV337^2)+(AV338^2))","v":197.45379206285202},{"$f":"AW336+AW337+AW338","v":31},{"$f":"SQRT((AX336^2)+(AX337^2)+(AX338^2))","v":168.21414922651422},{"$f":"AY336+AY337+AY338","v":0},{"$f":"SQRT((AZ336^2)+(AZ337^2)+(AZ338^2))","v":197.45379206285202},{"$f":"BA336+BA337+BA338","v":0},{"$f":"SQRT((BB336^2)+(BB337^2)+(BB338^2))","v":197.45379206285202},{"$f":"BC336+BC337+BC338","v":0},{"$f":"SQRT((BD336^2)+(BD337^2)+(BD338^2))","v":197.45379206285202},{"$f":"BE336+BE337+BE338","v":0},{"$f":"SQRT((BF336^2)+(BF337^2)+(BF338^2))","v":197.45379206285202},{"$f":"BG336+BG337+BG338","v":70},{"$f":"SQRT((BH336^2)+(BH337^2)+(BH338^2))","v":49.537864306003343},{"$f":"BI336+BI337+BI338","v":27},{"$f":"SQRT((BJ336^2)+(BJ337^2)+(BJ338^2))","v":166.85622553563891},{"$f":"BK336+BK337+BK338","v":0},{"$f":"SQRT((BL336^2)+(BL337^2)+(BL338^2))","v":197.45379206285202},{"$f":"BM336+BM337+BM338","v":13},{"$f":"SQRT((BN336^2)+(BN337^2)+(BN338^2))","v":162.4561479292181},{"$f":"BO336+BO337+BO338","v":0},{"$f":"SQRT((BP336^2)+(BP337^2)+(BP338^2))","v":197.45379206285202},{"$f":"BQ336+BQ337+BQ338","v":0},{"$f":"SQRT((BR336^2)+(BR337^2)+(BR338^2))","v":197.45379206285202},{"$f":"BS336+BS337+BS338","v":0},{"$f":"SQRT((BT336^2)+(BT337^2)+(BT338^2))","v":197.45379206285202},{"$f":"BU336+BU337+BU338","v":0},{"$f":"SQRT((BV336^2)+(BV337^2)+(BV338^2))","v":197.45379206285202},{"$f":"BW336+BW337+BW338","v":0},{"$f":"SQRT((BX336^2)+(BX337^2)+(BX338^2))","v":197.45379206285202}]
[null,"More than 30.0 percent",{"$f":"C340+C339","v":29},{"$f":"SQRT((D340^2)+(D339^2))","v":118.40608092492548},{"$f":"E340+E339","v":0},{"$f":"SQRT((F340^2)+(F339^2))","v":161.22034611053283},{"$f":"G340+G339","v":5},{"$f":"SQRT((H340^2)+(H339^2))","v":114.28035701729323},{"$f":"I340+I339","v":14},{"$f":"SQRT((J340^2)+(J339^2))","v":116.10340218959993},{"$f":"K340+K339","v":0},{"$f":"SQRT((L340^2)+(L339^2))","v":161.22034611053283},{"$f":"M340+M339","v":0},{"$f":"SQRT((N340^2)+(N339^2))","v":161.22034611053283},{"$f":"O340+O339","v":0},{"$f":"SQRT((P340^2)+(P339^2))","v":161.22034611053283},{"$f":"Q340+Q339","v":206},{"$f":"SQRT((R340^2)+(R339^2))","v":165.51737068960466},{"$f":"S340+S339","v":2},{"$f":"SQRT((T340^2)+(T339^2))","v":114.10959644131601},{"$f":"U340+U339","v":0},{"$f":"SQRT((V340^2)+(V339^2))","v":161.22034611053283},{"$f":"W340+W339","v":131},{"$f":"SQRT((X340^2)+(X339^2))","v":153.63918770938616},{"$f":"Y340+Y339","v":0},{"$f":"SQRT((Z340^2)+(Z339^2))","v":161.22034611053283},{"$f":"AA340+AA339","v":0},{"$f":"SQRT((AB340^2)+(AB339^2))","v":161.22034611053283},{"$f":"AC340+AC339","v":10},{"$f":"SQRT((AD340^2)+(AD339^2))","v":114.9826073804208},{"$f":"AE340+AE339","v":85},{"$f":"SQRT((AF340^2)+(AF339^2))","v":135.91173606425605},{"$f":"AG340+AG339","v":3},{"$f":"SQRT((AH340^2)+(AH339^2))","v":114.0701538527936},{"$f":"AI340+AI339","v":0},{"$f":"SQRT((AJ340^2)+(AJ339^2))","v":161.22034611053283},{"$f":"AK340+AK339","v":18},{"$f":"SQRT((AL340^2)+(AL339^2))","v":117.881296226331},{"$f":"AM340+AM339","v":27},{"$f":"SQRT((AN340^2)+(AN339^2))","v":118.1397477566293},{"$f":"AO340+AO339","v":0},{"$f":"SQRT((AP340^2)+(AP339^2))","v":161.22034611053283},{"$f":"AQ340+AQ339","v":0},{"$f":"SQRT((AR340^2)+(AR339^2))","v":161.22034611053283},{"$f":"AS340+AS339","v":0},{"$f":"SQRT((AT340^2)+(AT339^2))","v":161.22034611053283},{"$f":"AU340+AU339","v":140},{"$f":"SQRT((AV340^2)+(AV339^2))","v":140.42791745233566},{"$f":"AW340+AW339","v":10},{"$f":"SQRT((AX340^2)+(AX339^2))","v":115.11733144926528},{"$f":"AY340+AY339","v":51},{"$f":"SQRT((AZ340^2)+(AZ339^2))","v":124.48293055676348},{"$f":"BA340+BA339","v":10},{"$f":"SQRT((BB340^2)+(BB339^2))","v":115.11733144926528},{"$f":"BC340+BC339","v":0},{"$f":"SQRT((BD340^2)+(BD339^2))","v":161.22034611053283},{"$f":"BE340+BE339","v":16},{"$f":"SQRT((BF340^2)+(BF339^2))","v":116.70903992407786},{"$f":"BG340+BG339","v":462},{"$f":"SQRT((BH340^2)+(BH339^2))","v":170.13524032369074},{"$f":"BI340+BI339","v":39},{"$f":"SQRT((BJ340^2)+(BJ339^2))","v":121.8400590938793},{"$f":"BK340+BK339","v":0},{"$f":"SQRT((BL340^2)+(BL339^2))","v":161.22034611053283},{"$f":"BM340+BM339","v":116},{"$f":"SQRT((BN340^2)+(BN339^2))","v":129.76902558006668},{"$f":"BO340+BO339","v":16},{"$f":"SQRT((BP340^2)+(BP339^2))","v":115.11733144926528},{"$f":"BQ340+BQ339","v":51},{"$f":"SQRT((BR340^2)+(BR339^2))","v":125.29964086141668},{"$f":"BS340+BS339","v":0},{"$f":"SQRT((BT340^2)+(BT339^2))","v":161.22034611053283},{"$f":"BU340+BU339","v":18},{"$f":"SQRT((BV340^2)+(BV339^2))","v":117.63077828527702},{"$f":"BW340+BW339","v":0},{"$f":"SQRT((BX340^2)+(BX339^2))","v":161.22034611053283}]
[null,"Less Than 35% of HH Income",{"$f":"C336+C337+C338+C339","v":0},{"$f":"SQRT((D336^2)+(D337^2)+(D338^2)+(D339^2))","v":228},{"$f":"E336+E337+E338+E339","v":0},{"$f":"SQRT((F336^2)+(F337^2)+(F338^2)+(F339^2))","v":228},{"$f":"G336+G337+G338+G339","v":0},{"$f":"SQRT((H336^2)+(H337^2)+(H338^2)+(H339^2))","v":228},{"$f":"I336+I337+I338+I339","v":0},{"$f":"SQRT((J336^2)+(J337^2)+(J338^2)+(J339^2))","v":228},{"$f":"K336+K337+K338+K339","v":0},{"$f":"SQRT((L336^2)+(L337^2)+(L338^2)+(L339^2))","v":228},{"$f":"M336+M337+M338+M339","v":0},{"$f":"SQRT((N336^2)+(N337^2)+(N338^2)+(N339^2))","v":228},{"$f":"O336+O337+O338+O339","v":0},{"$f":"SQRT((P336^2)+(P337^2)+(P338^2)+(P339^2))","v":228},{"$f":"Q336+Q337+Q338+Q339","v":108},{"$f":"SQRT((R336^2)+(R337^2)+(R338^2)+(R339^2))","v":142.31654858097141},{"$f":"S336+S337+S338+S339","v":0},{"$f":"SQRT((T336^2)+(T337^2)+(T338^2)+(T339^2))","v":228},{"$f":"U336+U337+U338+U339","v":0},{"$f":"SQRT((V336^2)+(V337^2)+(V338^2)+(V339^2))","v":228},{"$f":"W336+W337+W338+W339","v":45},{"$f":"SQRT((X336^2)+(X337^2)+(X338^2)+(X339^2))","v":210.17135865764394},{"$f":"Y336+Y337+Y338+Y339","v":0},{"$f":"SQRT((Z336^2)+(Z337^2)+(Z338^2)+(Z339^2))","v":228},{"$f":"AA336+AA337+AA338+AA339","v":0},{"$f":"SQRT((AB336^2)+(AB337^2)+(AB338^2)+(AB339^2))","v":228},{"$f":"AC336+AC337+AC338+AC339","v":0},{"$f":"SQRT((AD336^2)+(AD337^2)+(AD338^2)+(AD339^2))","v":228},{"$f":"AE336+AE337+AE338+AE339","v":10},{"$f":"SQRT((AF336^2)+(AF337^2)+(AF338^2)+(AF339^2))","v":198.10098434889213},{"$f":"AG336+AG337+AG338+AG339","v":0},{"$f":"SQRT((AH336^2)+(AH337^2)+(AH338^2)+(AH339^2))","v":228},{"$f":"AI336+AI337+AI338+AI339","v":0},{"$f":"SQRT((AJ336^2)+(AJ337^2)+(AJ338^2)+(AJ339^2))","v":228},{"$f":"AK336+AK337+AK338+AK339","v":0},{"$f":"SQRT((AL336^2)+(AL337^2)+(AL338^2)+(AL339^2))","v":228},{"$f":"AM336+AM337+AM338+AM339","v":0},{"$f":"SQRT((AN336^2)+(AN337^2)+(AN338^2)+(AN339^2))","v":228},{"$f":"AO336+AO337+AO338+AO339","v":0},{"$f":"SQRT((AP336^2)+(AP337^2)+(AP338^2)+(AP339^2))","v":228},{"$f":"AQ336+AQ337+AQ338+AQ339","v":0},{"$f":"SQRT((AR336^2)+(AR337^2)+(AR338^2)+(AR339^2))","v":228},{"$f":"AS336+AS337+AS338+AS339","v":0},{"$f":"SQRT((AT336^2)+(AT337^2)+(AT338^2)+(AT339^2))","v":228},{"$f":"AU336+AU337+AU338+AU339","v":0},{"$f":"SQRT((AV336^2)+(AV337^2)+(AV338^2)+(AV339^2))","v":228},{"$f":"AW336+AW337+AW338+AW339","v":41},{"$f":"SQRT((AX336^2)+(AX337^2)+(AX338^2)+(AX339^2))","v":168.97337068307539},{"$f":"AY336+AY337+AY338+AY339","v":0},{"$f":"SQRT((AZ336^2)+(AZ337^2)+(AZ338^2)+(AZ339^2))","v":228},{"$f":"BA336+BA337+BA338+BA339","v":0},{"$f":"SQRT((BB336^2)+(BB337^2)+(BB338^2)+(BB339^2))","v":228},{"$f":"BC336+BC337+BC338+BC339","v":0},{"$f":"SQRT((BD336^2)+(BD337^2)+(BD338^2)+(BD339^2))","v":228},{"$f":"BE336+BE337+BE338+BE339","v":0},{"$f":"SQRT((BF336^2)+(BF337^2)+(BF338^2)+(BF339^2))","v":228},{"$f":"BG336+BG337+BG338+BG339","v":202},{"$f":"SQRT((BH336^2)+(BH337^2)+(BH338^2)+(BH339^2))","v":101.85774393731681},{"$f":"BI336+BI337+BI338+BI339","v":27},{"$f":"SQRT((BJ336^2)+(BJ337^2)+(BJ338^2)+(BJ339^2))","v":202.08166665979377},{"$f":"BK336+BK337+BK338+BK339","v":0},{"$f":"SQRT((BL336^2)+(BL337^2)+(BL338^2)+(BL339^2))","v":228},{"$f":"BM336+BM337+BM338+BM339","v":13},{"$f":"SQRT((BN336^2)+(BN337^2)+(BN338^2)+(BN339^2))","v":198.4641025475388},{"$f":"BO336+BO337+BO338+BO339","v":0},{"$f":"SQRT((BP336^2)+(BP337^2)+(BP338^2)+(BP339^2))","v":228},{"$f":"BQ336+BQ337+BQ338+BQ339","v":0},{"$f":"SQRT((BR336^2)+(BR337^2)+(BR338^2)+(BR339^2))","v":228},{"$f":"BS336+BS337+BS338+BS339","v":0},{"$f":"SQRT((BT336^2)+(BT337^2)+(BT338^2)+(BT339^2))","v":228},{"$f":"BU336+BU337+BU338+BU339","v":0},{"$f":"SQRT((BV336^2)+(BV337^2)+(BV338^2)+(BV339^2))","v":228},{"$f":"BW336+BW337+BW338+BW339","v":0},{"$f":"SQRT((BX336^2)+(BX337^2)+(BX338^2)+(BX339^2))","v":228}]
[null,"35.0 percent or more",{"$f":"C340","v":29},32,0,114,5,8,14,22,0,114,0,114,0,114,206,120,2,5,0,114,131,103,0,114,0,114,10,15,85,74,3,4,{"$f":"AI340","v":0},114,18,30,27,31,0,114,0,114,0,114,140,82,0,114,51,50,10,16,0,114,16,25,330,145,39,43,0,114,116,62,{"$f":"BO340","v":16},16,51,52,0,114,18,29,0,114]
[null,"Not Computed",{"$f":"C341","v":0},114,0,114,0,114,0,114,0,114,0,114,8,12,14,23,4,6,21,34,12,20,0,114,0,114,0,114,29,47,3,4,{"$f":"AI341","v":0},114,0,114,0,114,0,114,0,114,0,114,0,114,11,17,0,114,0,114,0,114,11,17,54,63,77,73,34,38,0,114,{"$f":"BO341","v":0},114,11,18,0,114,0,114,0,114]
[null,"$10,000 to $19,999:",{"$f":"C342","v":99},107,0,114,0,114,0,114,0,114,9,17,0,114,514,167,10,11,14,23,243,111,0,114,12,18,81,92,377,162,12,17,{"$f":"AI342","v":7},7,49,60,88,62,0,114,0,114,7,9,151,84,11,18,0,114,38,40,0,114,61,81,423,120,86,78,16,25,208,88,{"$f":"BO342","v":31},37,365,143,0,114,34,49,60,51]
[null,"Less than 30.0 percent",{"$f":"C343+C344+C345","v":0},{"$f":"SQRT((D343^2)+(D344^2)+(D345^2))","v":197.45379206285202},{"$f":"E343+E344+E345","v":0},{"$f":"SQRT((F343^2)+(F344^2)+(F345^2))","v":197.45379206285202},{"$f":"G343+G344+G345","v":0},{"$f":"SQRT((H343^2)+(H344^2)+(H345^2))","v":197.45379206285202},{"$f":"I343+I344+I345","v":0},{"$f":"SQRT((J343^2)+(J344^2)+(J345^2))","v":197.45379206285202},{"$f":"K343+K344+K345","v":0},{"$f":"SQRT((L343^2)+(L344^2)+(L345^2))","v":197.45379206285202},{"$f":"M343+M344+M345","v":0},{"$f":"SQRT((N343^2)+(N344^2)+(N345^2))","v":197.45379206285202},{"$f":"O343+O344+O345","v":0},{"$f":"SQRT((P343^2)+(P344^2)+(P345^2))","v":197.45379206285202},{"$f":"Q343+Q344+Q345","v":95},{"$f":"SQRT((R343^2)+(R344^2)+(R345^2))","v":62.377880695002773},{"$f":"S343+S344+S345","v":0},{"$f":"SQRT((T343^2)+(T344^2)+(T345^2))","v":197.45379206285202},{"$f":"U343+U344+U345","v":14},{"$f":"SQRT((V343^2)+(V344^2)+(V345^2))","v":162.85269417482783},{"$f":"W343+W344+W345","v":24},{"$f":"SQRT((X343^2)+(X344^2)+(X345^2))","v":117.12386605641055},{"$f":"Y343+Y344+Y345","v":0},{"$f":"SQRT((Z343^2)+(Z344^2)+(Z345^2))","v":197.45379206285202},{"$f":"AA343+AA344+AA345","v":0},{"$f":"SQRT((AB343^2)+(AB344^2)+(AB345^2))","v":197.45379206285202},{"$f":"AC343+AC344+AC345","v":0},{"$f":"SQRT((AD343^2)+(AD344^2)+(AD345^2))","v":197.45379206285202},{"$f":"AE343+AE344+AE345","v":58},{"$f":"SQRT((AF343^2)+(AF344^2)+(AF345^2))","v":166.10839834276894},{"$f":"AG343+AG344+AG345","v":0},{"$f":"SQRT((AH343^2)+(AH344^2)+(AH345^2))","v":197.45379206285202},{"$f":"AI343+AI344+AI345","v":4},{"$f":"SQRT((AJ343^2)+(AJ344^2)+(AJ345^2))","v":161.29786111415117},{"$f":"AK343+AK344+AK345","v":0},{"$f":"SQRT((AL343^2)+(AL344^2)+(AL345^2))","v":197.45379206285202},{"$f":"AM343+AM344+AM345","v":12},{"$f":"SQRT((AN343^2)+(AN344^2)+(AN345^2))","v":162.33607116103309},{"$f":"AO343+AO344+AO345","v":0},{"$f":"SQRT((AP343^2)+(AP344^2)+(AP345^2))","v":197.45379206285202},{"$f":"AQ343+AQ344+AQ345","v":0},{"$f":"SQRT((AR343^2)+(AR344^2)+(AR345^2))","v":197.45379206285202},{"$f":"AS343+AS344+AS345","v":0},{"$f":"SQRT((AT343^2)+(AT344^2)+(AT345^2))","v":197.45379206285202},{"$f":"AU343+AU344+AU345","v":11},{"$f":"SQRT((AV343^2)+(AV344^2)+(AV345^2))","v":162.22207001514928},{"$f":"AW343+AW344+AW345","v":0},{"$f":"SQRT((AX343^2)+(AX344^2)+(AX345^2))","v":197.45379206285202},{"$f":"AY343+AY344+AY345","v":0},{"$f":"SQRT((AZ343^2)+(AZ344^2)+(AZ345^2))","v":197.45379206285202},{"$f":"BA343+BA344+BA345","v":0},{"$f":"SQRT((BB343^2)+(BB344^2)+(BB345^2))","v":197.45379206285202},{"$f":"BC343+BC344+BC345","v":0},{"$f":"SQRT((BD343^2)+(BD344^2)+(BD345^2))","v":197.45379206285202},{"$f":"BE343+BE344+BE345","v":0},{"$f":"SQRT((BF343^2)+(BF344^2)+(BF345^2))","v":197.45379206285202},{"$f":"BG343+BG344+BG345","v":88},{"$f":"SQRT((BH343^2)+(BH344^2)+(BH345^2))","v":68.527366796047261},{"$f":"BI343+BI344+BI345","v":9},{"$f":"SQRT((BJ343^2)+(BJ344^2)+(BJ345^2))","v":161.91664522216362},{"$f":"BK343+BK344+BK345","v":0},{"$f":"SQRT((BL343^2)+(BL344^2)+(BL345^2))","v":197.45379206285202},{"$f":"BM343+BM344+BM345","v":116},{"$f":"SQRT((BN343^2)+(BN344^2)+(BN345^2))","v":67.297845433564959},{"$f":"BO343+BO344+BO345","v":0},{"$f":"SQRT((BP343^2)+(BP344^2)+(BP345^2))","v":197.45379206285202},{"$f":"BQ343+BQ344+BQ345","v":12},{"$f":"SQRT((BR343^2)+(BR344^2)+(BR345^2))","v":162.33607116103309},{"$f":"BS343+BS344+BS345","v":0},{"$f":"SQRT((BT343^2)+(BT344^2)+(BT345^2))","v":197.45379206285202},{"$f":"BU343+BU344+BU345","v":0},{"$f":"SQRT((BV343^2)+(BV344^2)+(BV345^2))","v":197.45379206285202},{"$f":"BW343+BW344+BW345","v":10},{"$f":"SQRT((BX343^2)+(BX344^2)+(BX345^2))","v":162.11415730897781}]
[null,"More than 30.0 percent",{"$f":"C346+C347","v":99},{"$f":"SQRT((D346^2)+(D347^2))","v":156.34896865665601},{"$f":"E346+E347","v":0},{"$f":"SQRT((F346^2)+(F347^2))","v":161.22034611053283},{"$f":"G346+G347","v":0},{"$f":"SQRT((H346^2)+(H347^2))","v":161.22034611053283},{"$f":"I346+I347","v":0},{"$f":"SQRT((J346^2)+(J347^2))","v":161.22034611053283},{"$f":"K346+K347","v":0},{"$f":"SQRT((L346^2)+(L347^2))","v":161.22034611053283},{"$f":"M346+M347","v":9},{"$f":"SQRT((N346^2)+(N347^2))","v":115.26057435220423},{"$f":"O346+O347","v":0},{"$f":"SQRT((P346^2)+(P347^2))","v":161.22034611053283},{"$f":"Q346+Q347","v":400},{"$f":"SQRT((R346^2)+(R347^2))","v":148.00337833982033},{"$f":"S346+S347","v":7},{"$f":"SQRT((T346^2)+(T347^2))","v":114.52947218947619},{"$f":"U346+U347","v":0},{"$f":"SQRT((V346^2)+(V347^2))","v":161.22034611053283},{"$f":"W346+W347","v":189},{"$f":"SQRT((X346^2)+(X347^2))","v":157.0350279396288},{"$f":"Y346+Y347","v":0},{"$f":"SQRT((Z346^2)+(Z347^2))","v":161.22034611053283},{"$f":"AA346+AA347","v":0},{"$f":"SQRT((AB346^2)+(AB347^2))","v":161.22034611053283},{"$f":"AC346+AC347","v":81},{"$f":"SQRT((AD346^2)+(AD347^2))","v":146.49232061783991},{"$f":"AE346+AE347","v":308},{"$f":"SQRT((AF346^2)+(AF347^2))","v":152.45327152934436},{"$f":"AG346+AG347","v":10},{"$f":"SQRT((AH346^2)+(AH347^2))","v":115.11733144926528},{"$f":"AI346+AI347","v":0},{"$f":"SQRT((AJ346^2)+(AJ347^2))","v":161.22034611053283},{"$f":"AK346+AK347","v":35},{"$f":"SQRT((AL346^2)+(AL347^2))","v":126.57408897558773},{"$f":"AM346+AM347","v":76},{"$f":"SQRT((AN346^2)+(AN347^2))","v":128.36276718737409},{"$f":"AO346+AO347","v":0},{"$f":"SQRT((AP346^2)+(AP347^2))","v":161.22034611053283},{"$f":"AQ346+AQ347","v":0},{"$f":"SQRT((AR346^2)+(AR347^2))","v":161.22034611053283},{"$f":"AS346+AS347","v":7},{"$f":"SQRT((AT346^2)+(AT347^2))","v":114.35471131527551},{"$f":"AU346+AU347","v":140},{"$f":"SQRT((AV346^2)+(AV347^2))","v":141.60508465447137},{"$f":"AW346+AW347","v":11},{"$f":"SQRT((AX346^2)+(AX347^2))","v":115.41230437002807},{"$f":"AY346+AY347","v":0},{"$f":"SQRT((AZ346^2)+(AZ347^2))","v":161.22034611053283},{"$f":"BA346+BA347","v":30},{"$f":"SQRT((BB346^2)+(BB347^2))","v":120.16655108639841},{"$f":"BC346+BC347","v":0},{"$f":"SQRT((BD346^2)+(BD347^2))","v":161.22034611053283},{"$f":"BE346+BE347","v":61},{"$f":"SQRT((BF346^2)+(BF347^2))","v":139.84634424967999},{"$f":"BG346+BG347","v":335},{"$f":"SQRT((BH346^2)+(BH347^2))","v":113.29607230614837},{"$f":"BI346+BI347","v":77},{"$f":"SQRT((BJ346^2)+(BJ347^2))","v":137.01094846763161},{"$f":"BK346+BK347","v":16},{"$f":"SQRT((BL346^2)+(BL347^2))","v":116.70903992407786},{"$f":"BM346+BM347","v":92},{"$f":"SQRT((BN346^2)+(BN347^2))","v":55.713553108736477},{"$f":"BO346+BO347","v":22},{"$f":"SQRT((BP346^2)+(BP347^2))","v":118.68024266911489},{"$f":"BQ346+BQ347","v":302},{"$f":"SQRT((BR346^2)+(BR347^2))","v":132.5745073534124},{"$f":"BS346+BS347","v":0},{"$f":"SQRT((BT346^2)+(BT347^2))","v":161.22034611053283},{"$f":"BU346+BU347","v":34},{"$f":"SQRT((BV346^2)+(BV347^2))","v":124.08464852672147},{"$f":"BW346+BW347","v":50},{"$f":"SQRT((BX346^2)+(BX347^2))","v":125.29964086141668}]
[null,"Less Than 35% of HH Income",{"$f":"C343+C344+C345+C346","v":0},{"$f":"SQRT((D343^2)+(D344^2)+(D345^2)+(D346^2))","v":228},{"$f":"E343+E344+E345+E346","v":0},{"$f":"SQRT((F343^2)+(F344^2)+(F345^2)+(F346^2))","v":228},{"$f":"G343+G344+G345+G346","v":0},{"$f":"SQRT((H343^2)+(H344^2)+(H345^2)+(H346^2))","v":228},{"$f":"I343+I344+I345+I346","v":0},{"$f":"SQRT((J343^2)+(J344^2)+(J345^2)+(J346^2))","v":228},{"$f":"K343+K344+K345+K346","v":0},{"$f":"SQRT((L343^2)+(L344^2)+(L345^2)+(L346^2))","v":228},{"$f":"M343+M344+M345+M346","v":0},{"$f":"SQRT((N343^2)+(N344^2)+(N345^2)+(N346^2))","v":228},{"$f":"O343+O344+O345+O346","v":0},{"$f":"SQRT((P343^2)+(P344^2)+(P345^2)+(P346^2))","v":228},{"$f":"Q343+Q344+Q345+Q346","v":160},{"$f":"SQRT((R343^2)+(R344^2)+(R345^2)+(R346^2))","v":83.827203221865872},{"$f":"S343+S344+S345+S346","v":0},{"$f":"SQRT((T343^2)+(T344^2)+(T345^2)+(T346^2))","v":228},{"$f":"U343+U344+U345+U346","v":14},{"$f":"SQRT((V343^2)+(V344^2)+(V345^2)+(V346^2))","v":198.78883268433364},{"$f":"W343+W344+W345+W346","v":24},{"$f":"SQRT((X343^2)+(X344^2)+(X345^2)+(X346^2))","v":163.44418007380992},{"$f":"Y343+Y344+Y345+Y346","v":0},{"$f":"SQRT((Z343^2)+(Z344^2)+(Z345^2)+(Z346^2))","v":228},{"$f":"AA343+AA344+AA345+AA346","v":0},{"$f":"SQRT((AB343^2)+(AB344^2)+(AB345^2)+(AB346^2))","v":228},{"$f":"AC343+AC344+AC345+AC346","v":0},{"$f":"SQRT((AD343^2)+(AD344^2)+(AD345^2)+(AD346^2))","v":228},{"$f":"AE343+AE344+AE345+AE346","v":71},{"$f":"SQRT((AF343^2)+(AF344^2)+(AF345^2)+(AF346^2))","v":167.43058263053379},{"$f":"AG343+AG344+AG345+AG346","v":0},{"$f":"SQRT((AH343^2)+(AH344^2)+(AH345^2)+(AH346^2))","v":228},{"$f":"AI343+AI344+AI345+AI346","v":4},{"$f":"SQRT((AJ343^2)+(AJ344^2)+(AJ345^2)+(AJ346^2))","v":197.51708786836647},{"$f":"AK343+AK344+AK345+AK346","v":0},{"$f":"SQRT((AL343^2)+(AL344^2)+(AL345^2)+(AL346^2))","v":228},{"$f":"AM343+AM344+AM345+AM346","v":12},{"$f":"SQRT((AN343^2)+(AN344^2)+(AN345^2)+(AN346^2))","v":198.36582366930045},{"$f":"AO343+AO344+AO345+AO346","v":0},{"$f":"SQRT((AP343^2)+(AP344^2)+(AP345^2)+(AP346^2))","v":228},{"$f":"AQ343+AQ344+AQ345+AQ346","v":0},{"$f":"SQRT((AR343^2)+(AR344^2)+(AR345^2)+(AR346^2))","v":228},{"$f":"AS343+AS344+AS345+AS346","v":0},{"$f":"SQRT((AT343^2)+(AT344^2)+(AT345^2)+(AT346^2))","v":228},{"$f":"AU343+AU344+AU345+AU346","v":11},{"$f":"SQRT((AV343^2)+(AV344^2)+(AV345^2)+(AV346^2))","v":198.27253970229967},{"$f":"AW343+AW344+AW345+AW346","v":0},{"$f":"SQRT((AX343^2)+(AX344^2)+(AX345^2)+(AX346^2))","v":228},{"$f":"AY343+AY344+AY345+AY346","v":0},{"$f":"SQRT((AZ343^2)+(AZ344^2)+(AZ345^2)+(AZ346^2))","v":228},{"$f":"BA343+BA344+BA345+BA346","v":0},{"$f":"SQRT((BB343^2)+(BB344^2)+(BB345^2)+(BB346^2))","v":228},{"$f":"BC343+BC344+BC345+BC346","v":0},{"$f":"SQRT((BD343^2)+(BD344^2)+(BD345^2)+(BD346^2))","v":228},{"$f":"BE343+BE344+BE345+BE346","v":0},{"$f":"SQRT((BF343^2)+(BF344^2)+(BF345^2)+(BF346^2))","v":228},{"$f":"BG343+BG344+BG345+BG346","v":138},{"$f":"SQRT((BH343^2)+(BH344^2)+(BH345^2)+(BH346^2))","v":79.347337699509495},{"$f":"BI343+BI344+BI345+BI346","v":9},{"$f":"SQRT((BJ343^2)+(BJ344^2)+(BJ345^2)+(BJ346^2))","v":198.022725968511},{"$f":"BK343+BK344+BK345+BK346","v":0},{"$f":"SQRT((BL343^2)+(BL344^2)+(BL345^2)+(BL346^2))","v":228},{"$f":"BM343+BM344+BM345+BM346","v":128},{"$f":"SQRT((BN343^2)+(BN344^2)+(BN345^2)+(BN346^2))","v":70.206837273872409},{"$f":"BO343+BO344+BO345+BO346","v":0},{"$f":"SQRT((BP343^2)+(BP344^2)+(BP345^2)+(BP346^2))","v":228},{"$f":"BQ343+BQ344+BQ345+BQ346","v":58},{"$f":"SQRT((BR343^2)+(BR344^2)+(BR345^2)+(BR346^2))","v":164.40498775888764},{"$f":"BS343+BS344+BS345+BS346","v":0},{"$f":"SQRT((BT343^2)+(BT344^2)+(BT345^2)+(BT346^2))","v":228},{"$f":"BU343+BU344+BU345+BU346","v":0},{"$f":"SQRT((BV343^2)+(BV344^2)+(BV345^2)+(BV346^2))","v":228},{"$f":"BW343+BW344+BW345+BW346","v":10},{"$f":"SQRT((BX343^2)+(BX344^2)+(BX345^2)+(BX346^2))","v":198.18425769974769}]
[null,"35.0 percent or more",{"$f":"C347","v":99},107,0,114,0,114,0,114,0,114,9,17,0,114,335,137,7,11,0,114,189,108,0,114,0,114,81,92,295,151,10,16,{"$f":"AI347","v":0},114,35,55,76,59,0,114,0,114,7,9,140,84,11,18,0,114,30,38,0,114,61,81,285,106,77,76,16,25,80,52,{"$f":"BO347","v":22},33,256,130,0,114,34,49,50,52]
[null,"Not Computed",{"$f":"C348","v":0},114,0,114,0,114,0,114,0,114,0,114,0,114,19,23,3,5,0,114,30,35,0,114,12,18,0,114,11,18,2,4,{"$f":"AI348","v":3},4,14,23,0,114,0,114,0,114,0,114,0,114,0,114,0,114,8,12,0,114,0,114,0,114,0,114,0,114,0,114,{"$f":"BO348","v":9},14,51,49,0,114,0,114,0,114]
[null,"$20,000 to $34,999:",{"$f":"C349","v":82},102,60,66,4,8,0,114,0,114,30,45,68,64,901,209,2,3,117,91,447,169,0,114,0,114,213,142,484,145,16,17,{"$f":"AI349","v":6},7,68,50,151,94,0,114,11,18,17,21,341,118,75,68,34,33,36,45,20,31,139,99,662,153,98,79,62,53,357,127,{"$f":"BO349","v":66},54,109,66,2,3,0,114,21,31]
[null,"Less than 30.0 percent",{"$f":"C350+C351+C352","v":0},{"$f":"SQRT((D350^2)+(D351^2)+(D352^2))","v":197.45379206285202},{"$f":"E350+E351+E352","v":0},{"$f":"SQRT((F350^2)+(F351^2)+(F352^2))","v":197.45379206285202},{"$f":"G350+G351+G352","v":4},{"$f":"SQRT((H350^2)+(H351^2)+(H352^2))","v":161.41871019184859},{"$f":"I350+I351+I352","v":0},{"$f":"SQRT((J350^2)+(J351^2)+(J352^2))","v":197.45379206285202},{"$f":"K350+K351+K352","v":0},{"$f":"SQRT((L350^2)+(L351^2)+(L352^2))","v":197.45379206285202},{"$f":"M350+M351+M352","v":0},{"$f":"SQRT((N350^2)+(N351^2)+(N352^2))","v":197.45379206285202},{"$f":"O350+O351+O352","v":0},{"$f":"SQRT((P350^2)+(P351^2)+(P352^2))","v":197.45379206285202},{"$f":"Q350+Q351+Q352","v":95},{"$f":"SQRT((R350^2)+(R351^2)+(R352^2))","v":129.84991336154215},{"$f":"S350+S351+S352","v":0},{"$f":"SQRT((T350^2)+(T351^2)+(T352^2))","v":197.45379206285202},{"$f":"U350+U351+U352","v":12},{"$f":"SQRT((V350^2)+(V351^2)+(V352^2))","v":162.33607116103309},{"$f":"W350+W351+W352","v":78},{"$f":"SQRT((X350^2)+(X351^2)+(X352^2))","v":70.922492905988577},{"$f":"Y350+Y351+Y352","v":0},{"$f":"SQRT((Z350^2)+(Z351^2)+(Z352^2))","v":197.45379206285202},{"$f":"AA350+AA351+AA352","v":0},{"$f":"SQRT((AB350^2)+(AB351^2)+(AB352^2))","v":197.45379206285202},{"$f":"AC350+AC351+AC352","v":57},{"$f":"SQRT((AD350^2)+(AD351^2)+(AD352^2))","v":180.87564789103038},{"$f":"AE350+AE351+AE352","v":96},{"$f":"SQRT((AF350^2)+(AF351^2)+(AF352^2))","v":68.614867193633771},{"$f":"AG350+AG351+AG352","v":0},{"$f":"SQRT((AH350^2)+(AH351^2)+(AH352^2))","v":197.45379206285202},{"$f":"AI350+AI351+AI352","v":0},{"$f":"SQRT((AJ350^2)+(AJ351^2)+(AJ352^2))","v":197.45379206285202},{"$f":"AK350+AK351+AK352","v":17},{"$f":"SQRT((AL350^2)+(AL351^2)+(AL352^2))","v":163.63373735266208},{"$f":"AM350+AM351+AM352","v":36},{"$f":"SQRT((AN350^2)+(AN351^2)+(AN352^2))","v":166.60132052297786},{"$f":"AO350+AO351+AO352","v":0},{"$f":"SQRT((AP350^2)+(AP351^2)+(AP352^2))","v":197.45379206285202},{"$f":"AQ350+AQ351+AQ352","v":0},{"$f":"SQRT((AR350^2)+(AR351^2)+(AR352^2))","v":197.45379206285202},{"$f":"AS350+AS351+AS352","v":0},{"$f":"SQRT((AT350^2)+(AT351^2)+(AT352^2))","v":197.45379206285202},{"$f":"AU350+AU351+AU352","v":97},{"$f":"SQRT((AV350^2)+(AV351^2)+(AV352^2))","v":170.66927081346543},{"$f":"AW350+AW351+AW352","v":10},{"$f":"SQRT((AX350^2)+(AX351^2)+(AX352^2))","v":162.01234520862909},{"$f":"AY350+AY351+AY352","v":15},{"$f":"SQRT((AZ350^2)+(AZ351^2)+(AZ352^2))","v":162.9969324864735},{"$f":"BA350+BA351+BA352","v":27},{"$f":"SQRT((BB350^2)+(BB351^2)+(BB352^2))","v":166.85622553563891},{"$f":"BC350+BC351+BC352","v":0},{"$f":"SQRT((BD350^2)+(BD351^2)+(BD352^2))","v":197.45379206285202},{"$f":"BE350+BE351+BE352","v":0},{"$f":"SQRT((BF350^2)+(BF351^2)+(BF352^2))","v":197.45379206285202},{"$f":"BG350+BG351+BG352","v":73},{"$f":"SQRT((BH350^2)+(BH351^2)+(BH352^2))","v":45.011109739707599},{"$f":"BI350+BI351+BI352","v":32},{"$f":"SQRT((BJ350^2)+(BJ351^2)+(BJ352^2))","v":169.09464805250343},{"$f":"BK350+BK351+BK352","v":15},{"$f":"SQRT((BL350^2)+(BL351^2)+(BL352^2))","v":163.1471728225776},{"$f":"BM350+BM351+BM352","v":55},{"$f":"SQRT((BN350^2)+(BN351^2)+(BN352^2))","v":129.01937838944971},{"$f":"BO350+BO351+BO352","v":0},{"$f":"SQRT((BP350^2)+(BP351^2)+(BP352^2))","v":197.45379206285202},{"$f":"BQ350+BQ351+BQ352","v":0},{"$f":"SQRT((BR350^2)+(BR351^2)+(BR352^2))","v":197.45379206285202},{"$f":"BS350+BS351+BS352","v":0},{"$f":"SQRT((BT350^2)+(BT351^2)+(BT352^2))","v":197.45379206285202},{"$f":"BU350+BU351+BU352","v":0},{"$f":"SQRT((BV350^2)+(BV351^2)+(BV352^2))","v":197.45379206285202},{"$f":"BW350+BW351+BW352","v":0},{"$f":"SQRT((BX350^2)+(BX351^2)+(BX352^2))","v":197.45379206285202}]
[null,"More than 30.0 percent",{"$f":"C353+C354","v":82},{"$f":"SQRT((D353^2)+(D354^2))","v":152.97058540778355},{"$f":"E353+E354","v":60},{"$f":"SQRT((F353^2)+(F354^2))","v":71.693793315739683},{"$f":"G353+G354","v":0},{"$f":"SQRT((H353^2)+(H354^2))","v":161.22034611053283},{"$f":"I353+I354","v":0},{"$f":"SQRT((J353^2)+(J354^2))","v":161.22034611053283},{"$f":"K353+K354","v":0},{"$f":"SQRT((L353^2)+(L354^2))","v":161.22034611053283},{"$f":"M353+M354","v":30},{"$f":"SQRT((N353^2)+(N354^2))","v":122.56018929489298},{"$f":"O353+O354","v":59},{"$f":"SQRT((P353^2)+(P354^2))","v":57.245087125446844},{"$f":"Q353+Q354","v":776},{"$f":"SQRT((R353^2)+(R354^2))","v":214.67184258770408},{"$f":"S353+S354","v":0},{"$f":"SQRT((T353^2)+(T354^2))","v":161.22034611053283},{"$f":"U353+U354","v":64},{"$f":"SQRT((V353^2)+(V354^2))","v":56.938563381947034},{"$f":"W353+W354","v":349},{"$f":"SQRT((X353^2)+(X354^2))","v":145.52319402761884},{"$f":"Y353+Y354","v":0},{"$f":"SQRT((Z353^2)+(Z354^2))","v":161.22034611053283},{"$f":"AA353+AA354","v":0},{"$f":"SQRT((AB353^2)+(AB354^2))","v":161.22034611053283},{"$f":"AC353+AC354","v":156},{"$f":"SQRT((AD353^2)+(AD354^2))","v":115.93532679903913},{"$f":"AE353+AE354","v":340},{"$f":"SQRT((AF353^2)+(AF354^2))","v":152.11837495845134},{"$f":"AG353+AG354","v":16},{"$f":"SQRT((AH353^2)+(AH354^2))","v":17.204650534085253},{"$f":"AI353+AI354","v":4},{"$f":"SQRT((AJ353^2)+(AJ354^2))","v":114.15778554264269},{"$f":"AK353+AK354","v":51},{"$f":"SQRT((AL353^2)+(AL354^2))","v":126.57408897558773},{"$f":"AM353+AM354","v":115},{"$f":"SQRT((AN353^2)+(AN354^2))","v":84.202137740083529},{"$f":"AO353+AO354","v":0},{"$f":"SQRT((AP353^2)+(AP354^2))","v":161.22034611053283},{"$f":"AQ353+AQ354","v":11},{"$f":"SQRT((AR353^2)+(AR354^2))","v":115.41230437002807},{"$f":"AS353+AS354","v":17},{"$f":"SQRT((AT353^2)+(AT354^2))","v":115.91807451816995},{"$f":"AU353+AU354","v":226},{"$f":"SQRT((AV353^2)+(AV354^2))","v":94.371605899232208},{"$f":"AW353+AW354","v":65},{"$f":"SQRT((AX353^2)+(AX354^2))","v":131.7269904006009},{"$f":"AY353+AY354","v":0},{"$f":"SQRT((AZ353^2)+(AZ354^2))","v":161.22034611053283},{"$f":"BA353+BA354","v":9},{"$f":"SQRT((BB353^2)+(BB354^2))","v":114.73883387938018},{"$f":"BC353+BC354","v":0},{"$f":"SQRT((BD353^2)+(BD354^2))","v":161.22034611053283},{"$f":"BE353+BE354","v":96},{"$f":"SQRT((BF353^2)+(BF354^2))","v":131.22880781291889},{"$f":"BG353+BG354","v":562},{"$f":"SQRT((BH353^2)+(BH354^2))","v":137.53908535394584},{"$f":"BI353+BI354","v":55},{"$f":"SQRT((BJ353^2)+(BJ354^2))","v":127.01181047445942},{"$f":"BK353+BK354","v":47},{"$f":"SQRT((BL353^2)+(BL354^2))","v":122.93087488503447},{"$f":"BM353+BM354","v":287},{"$f":"SQRT((BN353^2)+(BN354^2))","v":119.54078801814885},{"$f":"BO353+BO354","v":66},{"$f":"SQRT((BP353^2)+(BP354^2))","v":126.14277624977183},{"$f":"BQ353+BQ354","v":109},{"$f":"SQRT((BR353^2)+(BR354^2))","v":61.032778078668514},{"$f":"BS353+BS354","v":2},{"$f":"SQRT((BT353^2)+(BT354^2))","v":114.03946685248927},{"$f":"BU353+BU354","v":0},{"$f":"SQRT((BV353^2)+(BV354^2))","v":161.22034611053283},{"$f":"BW353+BW354","v":21},{"$f":"SQRT((BX353^2)+(BX354^2))","v":118.1397477566293}]
[null,"Less Than 35% of HH Income",{"$f":"C350+C351+C352+C353","v":0},{"$f":"SQRT((D353^2)+(D350^2)+(D351^2)+(D352^2))","v":228},{"$f":"E350+E351+E352+E353","v":17},{"$f":"SQRT((F353^2)+(F350^2)+(F351^2)+(F352^2))","v":199.42918542680758},{"$f":"G350+G351+G352+G353","v":4},{"$f":"SQRT((H353^2)+(H350^2)+(H351^2)+(H352^2))","v":197.61578884289585},{"$f":"I350+I351+I352+I353","v":0},{"$f":"SQRT((J353^2)+(J350^2)+(J351^2)+(J352^2))","v":228},{"$f":"K350+K351+K352+K353","v":0},{"$f":"SQRT((L353^2)+(L350^2)+(L351^2)+(L352^2))","v":228},{"$f":"M350+M351+M352+M353","v":0},{"$f":"SQRT((N353^2)+(N350^2)+(N351^2)+(N352^2))","v":228},{"$f":"O350+O351+O352+O353","v":17},{"$f":"SQRT((P353^2)+(P350^2)+(P351^2)+(P352^2))","v":198.36582366930045},{"$f":"Q350+Q351+Q352+Q353","v":212},{"$f":"SQRT((R353^2)+(R350^2)+(R351^2)+(R352^2))","v":151.47607071745688},{"$f":"S350+S351+S352+S353","v":0},{"$f":"SQRT((T353^2)+(T350^2)+(T351^2)+(T352^2))","v":228},{"$f":"U350+U351+U352+U353","v":31},{"$f":"SQRT((V353^2)+(V350^2)+(V351^2)+(V352^2))","v":164.90603384958357},{"$f":"W350+W351+W352+W353","v":122},{"$f":"SQRT((X353^2)+(X350^2)+(X351^2)+(X352^2))","v":79.536155300592696},{"$f":"Y350+Y351+Y352+Y353","v":0},{"$f":"SQRT((Z353^2)+(Z350^2)+(Z351^2)+(Z352^2))","v":228},{"$f":"AA350+AA351+AA352+AA353","v":0},{"$f":"SQRT((AB353^2)+(AB350^2)+(AB351^2)+(AB352^2))","v":228},{"$f":"AC350+AC351+AC352+AC353","v":98},{"$f":"SQRT((AD353^2)+(AD350^2)+(AD351^2)+(AD352^2))","v":192.20041623263984},{"$f":"AE350+AE351+AE352+AE353","v":154},{"$f":"SQRT((AF353^2)+(AF350^2)+(AF351^2)+(AF352^2))","v":93.829632845919207},{"$f":"AG350+AG351+AG352+AG353","v":9},{"$f":"SQRT((AH353^2)+(AH350^2)+(AH351^2)+(AH352^2))","v":197.94948850653796},{"$f":"AI350+AI351+AI352+AI353","v":0},{"$f":"SQRT((AJ353^2)+(AJ350^2)+(AJ351^2)+(AJ352^2))","v":228},{"$f":"AK350+AK351+AK352+AK353","v":68},{"$f":"SQRT((AL353^2)+(AL350^2)+(AL351^2)+(AL352^2))","v":172.62966141425406},{"$f":"AM350+AM351+AM352+AM353","v":88},{"$f":"SQRT((AN353^2)+(AN350^2)+(AN351^2)+(AN352^2))","v":179.56892826989863},{"$f":"AO350+AO351+AO352+AO353","v":0},{"$f":"SQRT((AP353^2)+(AP350^2)+(AP351^2)+(AP352^2))","v":228},{"$f":"AQ350+AQ351+AQ352+AQ353","v":0},{"$f":"SQRT((AR353^2)+(AR350^2)+(AR351^2)+(AR352^2))","v":228},{"$f":"AS350+AS351+AS352+AS353","v":0},{"$f":"SQRT((AT353^2)+(AT350^2)+(AT351^2)+(AT352^2))","v":228},{"$f":"AU350+AU351+AU352+AU353","v":164},{"$f":"SQRT((AV353^2)+(AV350^2)+(AV351^2)+(AV352^2))","v":175.524927004685},{"$f":"AW350+AW351+AW352+AW353","v":10},{"$f":"SQRT((AX353^2)+(AX350^2)+(AX351^2)+(AX352^2))","v":198.10098434889213},{"$f":"AY350+AY351+AY352+AY353","v":15},{"$f":"SQRT((AZ353^2)+(AZ350^2)+(AZ351^2)+(AZ352^2))","v":198.90701345100931},{"$f":"BA350+BA351+BA352+BA353","v":27},{"$f":"SQRT((BB353^2)+(BB350^2)+(BB351^2)+(BB352^2))","v":202.08166665979377},{"$f":"BC350+BC351+BC352+BC353","v":0},{"$f":"SQRT((BD353^2)+(BD350^2)+(BD351^2)+(BD352^2))","v":228},{"$f":"BE350+BE351+BE352+BE353","v":0},{"$f":"SQRT((BF353^2)+(BF350^2)+(BF351^2)+(BF352^2))","v":228},{"$f":"BG350+BG351+BG352+BG353","v":121},{"$f":"SQRT((BH353^2)+(BH350^2)+(BH351^2)+(BH352^2))","v":54.653453687758834},{"$f":"BI350+BI351+BI352+BI353","v":32},{"$f":"SQRT((BJ353^2)+(BJ350^2)+(BJ351^2)+(BJ352^2))","v":203.93381279228808},{"$f":"BK350+BK351+BK352+BK353","v":15},{"$f":"SQRT((BL353^2)+(BL350^2)+(BL351^2)+(BL352^2))","v":199.0301484700245},{"$f":"BM350+BM351+BM352+BM353","v":101},{"$f":"SQRT((BN353^2)+(BN350^2)+(BN351^2)+(BN352^2))","v":134.78501400378309},{"$f":"BO350+BO351+BO352+BO353","v":0},{"$f":"SQRT((BP353^2)+(BP350^2)+(BP351^2)+(BP352^2))","v":228},{"$f":"BQ350+BQ351+BQ352+BQ353","v":12},{"$f":"SQRT((BR353^2)+(BR350^2)+(BR351^2)+(BR352^2))","v":198.36582366930045},{"$f":"BS350+BS351+BS352+BS353","v":0},{"$f":"SQRT((BT353^2)+(BT350^2)+(BT351^2)+(BT352^2))","v":228},{"$f":"BU350+BU351+BU352+BU353","v":0},{"$f":"SQRT((BV353^2)+(BV350^2)+(BV351^2)+(BV352^2))","v":228},{"$f":"BW350+BW351+BW352+BW353","v":0},{"$f":"SQRT((BX353^2)+(BX350^2)+(BX351^2)+(BX352^2))","v":228}]
[null,"35.0 percent or more",{"$f":"C354","v":82},102,43,66,0,114,0,114,0,114,30,45,42,54,659,200,0,114,45,49,305,141,0,114,0,114,115,96,282,138,7,10,{"$f":"AI354","v":4},6,0,114,63,51,0,114,11,18,17,21,159,85,65,66,0,114,9,13,0,114,96,65,514,134,55,56,47,46,241,113,{"$f":"BO354","v":66},54,97,58,2,3,0,114,21,31]
[null,"Not Computed",{"$f":"C355","v":0},114,0,114,0,114,0,114,0,114,0,114,9,14,30,37,2,3,41,66,20,31,0,114,0,114,0,114,48,38,0,114,{"$f":"AI355","v":2},4,0,114,0,114,0,114,0,114,0,114,18,27,0,114,19,22,0,114,20,31,43,72,27,28,11,16,0,114,15,23,{"$f":"BO355","v":0},114,0,114,0,114,0,114,0,114]
[null,"$35,000 to $49,999:",{"$f":"C356","v":62},62,9,14,6,8,45,49,0,114,11,17,64,55,646,166,14,16,35,48,328,136,0,114,41,33,93,92,465,171,6,6,{"$f":"AI356","v":16},20,0,114,188,114,13,17,9,10,7,8,355,145,35,33,19,21,30,28,10,15,23,27,805,183,94,79,59,53,643,184,{"$f":"BO356","v":0},114,229,115,0,114,0,114,67,60]
[null,"Less than 30.0 percent",{"$f":"C357+C358+C359","v":21},{"$f":"SQRT((D357^2)+(D358^2)+(D360^2))","v":164.76650144977893},{"$f":"E357+E358+E359","v":0},{"$f":"SQRT((F357^2)+(F358^2)+(F360^2))","v":197.45379206285202},{"$f":"G357+G358+G359","v":0},{"$f":"SQRT((H357^2)+(H358^2)+(H360^2))","v":161.41871019184859},{"$f":"I357+I358+I359","v":0},{"$f":"SQRT((J357^2)+(J358^2)+(J360^2))","v":197.45379206285202},{"$f":"K357+K358+K359","v":0},{"$f":"SQRT((L357^2)+(L358^2)+(L360^2))","v":197.45379206285202},{"$f":"M357+M358+M359","v":11},{"$f":"SQRT((N357^2)+(N358^2)+(N360^2))","v":197.45379206285202},{"$f":"O357+O358+O359","v":12},{"$f":"SQRT((P357^2)+(P358^2)+(P360^2))","v":120.48651376813922},{"$f":"Q357+Q358+Q359","v":333},{"$f":"SQRT((R357^2)+(R358^2)+(R360^2))","v":141.36831328130077},{"$f":"S357+S358+S359","v":12},{"$f":"SQRT((T357^2)+(T358^2)+(T360^2))","v":197.45379206285202},{"$f":"U357+U358+U359","v":35},{"$f":"SQRT((V357^2)+(V358^2)+(V360^2))","v":197.45379206285202},{"$f":"W357+W358+W359","v":113},{"$f":"SQRT((X357^2)+(X358^2)+(X360^2))","v":96.509066931558294},{"$f":"Y357+Y358+Y359","v":0},{"$f":"SQRT((Z357^2)+(Z358^2)+(Z360^2))","v":197.45379206285202},{"$f":"AA357+AA358+AA359","v":11},{"$f":"SQRT((AB357^2)+(AB358^2)+(AB360^2))","v":116.51609330903607},{"$f":"AC357+AC358+AC359","v":46},{"$f":"SQRT((AD357^2)+(AD358^2)+(AD360^2))","v":147.50254235097103},{"$f":"AE357+AE358+AE359","v":263},{"$f":"SQRT((AF357^2)+(AF358^2)+(AF360^2))","v":112.31206524679349},{"$f":"AG357+AG358+AG359","v":0},{"$f":"SQRT((AH357^2)+(AH358^2)+(AH360^2))","v":197.45379206285202},{"$f":"AI357+AI358+AI359","v":5},{"$f":"SQRT((AJ357^2)+(AJ358^2)+(AJ360^2))","v":197.45379206285202},{"$f":"AK357+AK358+AK359","v":0},{"$f":"SQRT((AL357^2)+(AL358^2)+(AL360^2))","v":197.45379206285202},{"$f":"AM357+AM358+AM359","v":32},{"$f":"SQRT((AN357^2)+(AN358^2)+(AN360^2))","v":125.05198918849712},{"$f":"AO357+AO358+AO359","v":13},{"$f":"SQRT((AP357^2)+(AP358^2)+(AP360^2))","v":161.91664522216362},{"$f":"AQ357+AQ358+AQ359","v":0},{"$f":"SQRT((AR357^2)+(AR358^2)+(AR360^2))","v":197.45379206285202},{"$f":"AS357+AS358+AS359","v":4},{"$f":"SQRT((AT357^2)+(AT358^2)+(AT360^2))","v":161.33195591698504},{"$f":"AU357+AU358+AU359","v":179},{"$f":"SQRT((AV357^2)+(AV358^2)+(AV360^2))","v":114.31972708154967},{"$f":"AW357+AW358+AW359","v":23},{"$f":"SQRT((AX357^2)+(AX358^2)+(AX360^2))","v":163.1471728225776},{"$f":"AY357+AY358+AY359","v":0},{"$f":"SQRT((AZ357^2)+(AZ358^2)+(AZ360^2))","v":161.91664522216362},{"$f":"BA357+BA358+BA359","v":0},{"$f":"SQRT((BB357^2)+(BB358^2)+(BB360^2))","v":161.74362429474616},{"$f":"BC357+BC358+BC359","v":0},{"$f":"SQRT((BD357^2)+(BD358^2)+(BD360^2))","v":197.45379206285202},{"$f":"BE357+BE358+BE359","v":0},{"$f":"SQRT((BF357^2)+(BF358^2)+(BF360^2))","v":197.45379206285202},{"$f":"BG357+BG358+BG359","v":290},{"$f":"SQRT((BH357^2)+(BH358^2)+(BH360^2))","v":137.0656776877421},{"$f":"BI357+BI358+BI359","v":94},{"$f":"SQRT((BJ357^2)+(BJ358^2)+(BJ360^2))","v":162.9969324864735},{"$f":"BK357+BK358+BK359","v":16},{"$f":"SQRT((BL357^2)+(BL358^2)+(BL360^2))","v":197.45379206285202},{"$f":"BM357+BM358+BM359","v":331},{"$f":"SQRT((BN357^2)+(BN358^2)+(BN360^2))","v":171.94766645697754},{"$f":"BO357+BO358+BO359","v":0},{"$f":"SQRT((BP357^2)+(BP358^2)+(BP360^2))","v":197.45379206285202},{"$f":"BQ357+BQ358+BQ359","v":116},{"$f":"SQRT((BR357^2)+(BR358^2)+(BR360^2))","v":121.39604606411199},{"$f":"BS357+BS358+BS359","v":0},{"$f":"SQRT((BT357^2)+(BT358^2)+(BT360^2))","v":197.45379206285202},{"$f":"BU357+BU358+BU359","v":0},{"$f":"SQRT((BV357^2)+(BV358^2)+(BV360^2))","v":197.45379206285202},{"$f":"BW357+BW358+BW359","v":10},{"$f":"SQRT((BX357^2)+(BX358^2)+(BX360^2))","v":127.03149215844077}]
[null,"More than 30.0 percent",{"$f":"C360+C361","v":41},{"$f":"SQRT((D360^2)+(D361^2))","v":126.57408897558773},{"$f":"E360+E361","v":9},{"$f":"SQRT((F360^2)+(F361^2))","v":114.85643212288984},{"$f":"G360+G361","v":6},{"$f":"SQRT((H360^2)+(H361^2))","v":114.28035701729323},{"$f":"I360+I361","v":45},{"$f":"SQRT((J360^2)+(J361^2))","v":124.08464852672147},{"$f":"K360+K361","v":0},{"$f":"SQRT((L360^2)+(L361^2))","v":161.22034611053283},{"$f":"M360+M361","v":0},{"$f":"SQRT((N360^2)+(N361^2))","v":161.22034611053283},{"$f":"O360+O361","v":52},{"$f":"SQRT((P360^2)+(P361^2))","v":57.628118136895637},{"$f":"Q360+Q361","v":278},{"$f":"SQRT((R360^2)+(R361^2))","v":151.01324445226649},{"$f":"S360+S361","v":2},{"$f":"SQRT((T360^2)+(T361^2))","v":114.10959644131601},{"$f":"U360+U361","v":0},{"$f":"SQRT((V360^2)+(V361^2))","v":161.22034611053283},{"$f":"W360+W361","v":194},{"$f":"SQRT((X360^2)+(X361^2))","v":100.00499987500625},{"$f":"Y360+Y361","v":0},{"$f":"SQRT((Z360^2)+(Z361^2))","v":161.22034611053283},{"$f":"AA360+AA361","v":23},{"$f":"SQRT((AB360^2)+(AB361^2))","v":24.839484696748443},{"$f":"AC360+AC361","v":47},{"$f":"SQRT((AD360^2)+(AD361^2))","v":127.01181047445942},{"$f":"AE360+AE361","v":181},{"$f":"SQRT((AF360^2)+(AF361^2))","v":114.02192771568107},{"$f":"AG360+AG361","v":3},{"$f":"SQRT((AH360^2)+(AH361^2))","v":114.0701538527936},{"$f":"AI360+AI361","v":11},{"$f":"SQRT((AJ360^2)+(AJ361^2))","v":115.41230437002807},{"$f":"AK360+AK361","v":0},{"$f":"SQRT((AL360^2)+(AL361^2))","v":161.22034611053283},{"$f":"AM360+AM361","v":129},{"$f":"SQRT((AN360^2)+(AN361^2))","v":103.74005976477939},{"$f":"AO360+AO361","v":0},{"$f":"SQRT((AP360^2)+(AP361^2))","v":161.22034611053283},{"$f":"AQ360+AQ361","v":9},{"$f":"SQRT((AR360^2)+(AR361^2))","v":114.43775600735974},{"$f":"AS360+AS361","v":3},{"$f":"SQRT((AT360^2)+(AT361^2))","v":114.10959644131601},{"$f":"AU360+AU361","v":176},{"$f":"SQRT((AV360^2)+(AV361^2))","v":75.213030785895072},{"$f":"AW360+AW361","v":12},{"$f":"SQRT((AX360^2)+(AX361^2))","v":115.7410903698423},{"$f":"AY360+AY361","v":19},{"$f":"SQRT((AZ360^2)+(AZ361^2))","v":19.849433241279208},{"$f":"BA360+BA361","v":30},{"$f":"SQRT((BB360^2)+(BB361^2))","v":28.178005607210743},{"$f":"BC360+BC361","v":10},{"$f":"SQRT((BD360^2)+(BD361^2))","v":114.9826073804208},{"$f":"BE360+BE361","v":10},{"$f":"SQRT((BF360^2)+(BF361^2))","v":115.26057435220423},{"$f":"BG360+BG361","v":515},{"$f":"SQRT((BH360^2)+(BH361^2))","v":166.33099530754933},{"$f":"BI360+BI361","v":0},{"$f":"SQRT((BJ360^2)+(BJ361^2))","v":161.22034611053283},{"$f":"BK360+BK361","v":29},{"$f":"SQRT((BL360^2)+(BL361^2))","v":118.1397477566293},{"$f":"BM360+BM361","v":312},{"$f":"SQRT((BN360^2)+(BN361^2))","v":151.82226450688975},{"$f":"BO360+BO361","v":0},{"$f":"SQRT((BP360^2)+(BP361^2))","v":161.22034611053283},{"$f":"BQ360+BQ361","v":100},{"$f":"SQRT((BR360^2)+(BR361^2))","v":81.344944526380985},{"$f":"BS360+BS361","v":0},{"$f":"SQRT((BT360^2)+(BT361^2))","v":161.22034611053283},{"$f":"BU360+BU361","v":0},{"$f":"SQRT((BV360^2)+(BV361^2))","v":161.22034611053283},{"$f":"BW360+BW361","v":57},{"$f":"SQRT((BX360^2)+(BX361^2))","v":59.093146810776631}]
[null,"Less Than 35% of HH Income",{"$f":"C357+C358+C359+C360","v":21},{"$f":"SQRT((D359^2)+(D360^2)+(D357^2)+(D358^2))","v":200.35967658189111},{"$f":"E357+E358+E359+E360","v":0},{"$f":"SQRT((F359^2)+(F360^2)+(F357^2)+(F358^2))","v":228},{"$f":"G357+G358+G359+G360","v":6},{"$f":"SQRT((H359^2)+(H360^2)+(H357^2)+(H358^2))","v":197.61578884289585},{"$f":"I357+I358+I359+I360","v":0},{"$f":"SQRT((J359^2)+(J360^2)+(J357^2)+(J358^2))","v":228},{"$f":"K357+K358+K359+K360","v":0},{"$f":"SQRT((L359^2)+(L360^2)+(L357^2)+(L358^2))","v":228},{"$f":"M357+M358+M359+M360","v":11},{"$f":"SQRT((N359^2)+(N360^2)+(N357^2)+(N358^2))","v":198.18425769974769},{"$f":"O357+O358+O359+O360","v":36},{"$f":"SQRT((P359^2)+(P360^2)+(P357^2)+(P358^2))","v":165.87043136134903},{"$f":"Q357+Q358+Q359+Q360","v":434},{"$f":"SQRT((R359^2)+(R360^2)+(R357^2)+(R358^2))","v":157.30861387730806},{"$f":"S357+S358+S359+S360","v":12},{"$f":"SQRT((T359^2)+(T360^2)+(T357^2)+(T358^2))","v":197.94948850653796},{"$f":"U357+U358+U359+U360","v":35},{"$f":"SQRT((V359^2)+(V360^2)+(V357^2)+(V358^2))","v":203.2043306625132},{"$f":"W357+W358+W359+W360","v":190},{"$f":"SQRT((X359^2)+(X360^2)+(X357^2)+(X358^2))","v":121.00826418059222},{"$f":"Y357+Y358+Y359+Y360","v":0},{"$f":"SQRT((Z359^2)+(Z360^2)+(Z357^2)+(Z358^2))","v":228},{"$f":"AA357+AA358+AA359+AA360","v":21},{"$f":"SQRT((AB359^2)+(AB360^2)+(AB357^2)+(AB358^2))","v":163.00920219423196},{"$f":"AC357+AC358+AC359+AC360","v":93},{"$f":"SQRT((AD359^2)+(AD360^2)+(AD357^2)+(AD358^2))","v":186.42156527612357},{"$f":"AE357+AE358+AE359+AE360","v":345},{"$f":"SQRT((AF359^2)+(AF360^2)+(AF357^2)+(AF358^2))","v":161.46206984923734},{"$f":"AG357+AG358+AG359+AG360","v":0},{"$f":"SQRT((AH359^2)+(AH360^2)+(AH357^2)+(AH358^2))","v":228},{"$f":"AI357+AI358+AI359+AI360","v":5},{"$f":"SQRT((AJ359^2)+(AJ360^2)+(AJ357^2)+(AJ358^2))","v":197.61578884289585},{"$f":"AK357+AK358+AK359+AK360","v":0},{"$f":"SQRT((AL359^2)+(AL360^2)+(AL357^2)+(AL358^2))","v":228},{"$f":"AM357+AM358+AM359+AM360","v":59},{"$f":"SQRT((AN359^2)+(AN360^2)+(AN357^2)+(AN358^2))","v":169.21583850219221},{"$f":"AO357+AO358+AO359+AO360","v":13},{"$f":"SQRT((AP359^2)+(AP360^2)+(AP357^2)+(AP358^2))","v":162.11415730897781},{"$f":"AQ357+AQ358+AQ359+AQ360","v":0},{"$f":"SQRT((AR359^2)+(AR360^2)+(AR357^2)+(AR358^2))","v":228},{"$f":"AS357+AS358+AS359+AS360","v":4},{"$f":"SQRT((AT359^2)+(AT360^2)+(AT357^2)+(AT358^2))","v":197.54493159785193},{"$f":"AU357+AU358+AU359+AU360","v":232},{"$f":"SQRT((AV359^2)+(AV360^2)+(AV357^2)+(AV358^2))","v":120.7890723534211},{"$f":"AW357+AW358+AW359+AW360","v":23},{"$f":"SQRT((AX359^2)+(AX360^2)+(AX357^2)+(AX358^2))","v":199.0301484700245},{"$f":"AY357+AY358+AY359+AY360","v":10},{"$f":"SQRT((AZ359^2)+(AZ360^2)+(AZ357^2)+(AZ358^2))","v":198.022725968511},{"$f":"BA357+BA358+BA359+BA360","v":8},{"$f":"SQRT((BB359^2)+(BB360^2)+(BB357^2)+(BB358^2))","v":197.88127753782064},{"$f":"BC357+BC358+BC359+BC360","v":0},{"$f":"SQRT((BD359^2)+(BD360^2)+(BD357^2)+(BD358^2))","v":228},{"$f":"BE357+BE358+BE359+BE360","v":0},{"$f":"SQRT((BF359^2)+(BF360^2)+(BF357^2)+(BF358^2))","v":228},{"$f":"BG357+BG358+BG359+BG360","v":474},{"$f":"SQRT((BH359^2)+(BH360^2)+(BH357^2)+(BH358^2))","v":150.8509197850646},{"$f":"BI357+BI358+BI359+BI360","v":94},{"$f":"SQRT((BJ359^2)+(BJ360^2)+(BJ357^2)+(BJ358^2))","v":179.00837969212503},{"$f":"BK357+BK358+BK359+BK360","v":16},{"$f":"SQRT((BL359^2)+(BL360^2)+(BL357^2)+(BL358^2))","v":199.15822855207364},{"$f":"BM357+BM358+BM359+BM360","v":441},{"$f":"SQRT((BN359^2)+(BN360^2)+(BN357^2)+(BN358^2))","v":206.85985594116613},{"$f":"BO357+BO358+BO359+BO360","v":0},{"$f":"SQRT((BP359^2)+(BP360^2)+(BP357^2)+(BP358^2))","v":228},{"$f":"BQ357+BQ358+BQ359+BQ360","v":134},{"$f":"SQRT((BR359^2)+(BR360^2)+(BR357^2)+(BR358^2))","v":150.52574530624321},{"$f":"BS357+BS358+BS359+BS360","v":0},{"$f":"SQRT((BT359^2)+(BT360^2)+(BT357^2)+(BT358^2))","v":228},{"$f":"BU357+BU358+BU359+BU360","v":0},{"$f":"SQRT((BV359^2)+(BV360^2)+(BV357^2)+(BV358^2))","v":228},{"$f":"BW357+BW358+BW359+BW360","v":46},{"$f":"SQRT((BX359^2)+(BX360^2)+(BX357^2)+(BX358^2))","v":170.6839183988931}]
[null,"35.0 percent or more",{"$f":"C361","v":41},55,9,14,0,114,45,49,0,114,0,114,28,45,177,122,2,5,0,114,117,65,0,114,13,19,0,114,99,76,3,4,{"$f":"AI361","v":11},18,0,114,102,99,0,114,9,10,3,5,123,61,12,20,9,13,22,25,10,15,10,17,331,129,0,114,29,31,202,123,{"$f":"BO361","v":0},114,82,76,0,114,0,114,21,24]
[null,"Not Computed",{"$f":"C362","v":0},114,0,114,0,114,0,114,0,114,0,114,0,114,35,39,0,114,0,114,21,26,0,114,7,11,0,114,21,26,3,5,{"$f":"AI362","v":0},114,0,114,27,30,0,114,0,114,0,114,0,114,0,114,0,114,0,114,0,114,13,21,0,114,0,114,14,25,0,114,{"$f":"BO362","v":0},114,13,20,0,114,0,114,0,114]
[null,"$50,000 to $74,999:",{"$f":"C363","v":130},121,0,114,15,24,10,16,9,14,73,71,22,25,706,202,23,19,114,93,432,170,41,33,106,77,125,88,394,138,3,4,{"$f":"AI363","v":7},8,0,114,157,110,0,114,11,10,12,11,337,148,7,11,83,69,80,66,54,44,188,110,1013,183,129,83,130,100,448,149,{"$f":"BO363","v":27},24,293,141,25,31,0,114,40,49]
[null,"Less than 30.0 percent",{"$f":"C364+C365+C366","v":115},{"$f":"SQRT((D364^2)+(D365^2)+(D366^2))","v":199.78988963408534},{"$f":"E364+E365+E366","v":0},{"$f":"SQRT((F364^2)+(F365^2)+(F366^2))","v":197.45379206285202},{"$f":"G364+G365+G366","v":15},{"$f":"SQRT((H364^2)+(H365^2)+(H366^2))","v":162.9969324864735},{"$f":"I364+I365+I366","v":10},{"$f":"SQRT((J364^2)+(J365^2)+(J366^2))","v":162.01234520862909},{"$f":"K364+K365+K366","v":0},{"$f":"SQRT((L364^2)+(L365^2)+(L366^2))","v":197.45379206285202},{"$f":"M364+M365+M366","v":31},{"$f":"SQRT((N364^2)+(N365^2)+(N366^2))","v":168.50222550459088},{"$f":"O364+O365+O366","v":22},{"$f":"SQRT((P364^2)+(P365^2)+(P366^2))","v":116.58473313431737},{"$f":"Q364+Q365+Q366","v":579},{"$f":"SQRT((R364^2)+(R365^2)+(R366^2))","v":201.28338232452276},{"$f":"S364+S365+S366","v":14},{"$f":"SQRT((T364^2)+(T365^2)+(T366^2))","v":115.013042738639},{"$f":"U364+U365+U366","v":114},{"$f":"SQRT((V364^2)+(V365^2)+(V366^2))","v":149.04026301640775},{"$f":"W364+W365+W366","v":319},{"$f":"SQRT((X364^2)+(X365^2)+(X366^2))","v":188.66902236456306},{"$f":"Y364+Y365+Y366","v":31},{"$f":"SQRT((Z364^2)+(Z365^2)+(Z366^2))","v":118.52847759083046},{"$f":"AA364+AA365+AA366","v":94},{"$f":"SQRT((AB364^2)+(AB365^2)+(AB366^2))","v":140.5560386465128},{"$f":"AC364+AC365+AC366","v":101},{"$f":"SQRT((AD364^2)+(AD365^2)+(AD366^2))","v":76.954532030283957},{"$f":"AE364+AE365+AE366","v":308},{"$f":"SQRT((AF364^2)+(AF365^2)+(AF366^2))","v":122},{"$f":"AG364+AG365+AG366","v":3},{"$f":"SQRT((AH364^2)+(AH365^2)+(AH366^2))","v":161.26996000495566},{"$f":"AI364+AI365+AI366","v":3},{"$f":"SQRT((AJ364^2)+(AJ365^2)+(AJ366^2))","v":161.29786111415117},{"$f":"AK364+AK365+AK366","v":0},{"$f":"SQRT((AL364^2)+(AL365^2)+(AL366^2))","v":197.45379206285202},{"$f":"AM364+AM365+AM366","v":137},{"$f":"SQRT((AN364^2)+(AN365^2)+(AN366^2))","v":106.02358228243375},{"$f":"AO364+AO365+AO366","v":0},{"$f":"SQRT((AP364^2)+(AP365^2)+(AP366^2))","v":197.45379206285202},{"$f":"AQ364+AQ365+AQ366","v":7},{"$f":"SQRT((AR364^2)+(AR365^2)+(AR366^2))","v":161.41871019184859},{"$f":"AS364+AS365+AS366","v":8},{"$f":"SQRT((AT364^2)+(AT365^2)+(AT366^2))","v":114.37219941926448},{"$f":"AU364+AU365+AU366","v":281},{"$f":"SQRT((AV364^2)+(AV365^2)+(AV366^2))","v":178.90220792377048},{"$f":"AW364+AW365+AW366","v":7},{"$f":"SQRT((AX364^2)+(AX365^2)+(AX366^2))","v":161.59517319524119},{"$f":"AY364+AY365+AY366","v":59},{"$f":"SQRT((AZ364^2)+(AZ365^2)+(AZ366^2))","v":131.32402674301454},{"$f":"BA364+BA365+BA366","v":80},{"$f":"SQRT((BB364^2)+(BB365^2)+(BB366^2))","v":132.4462154989715},{"$f":"BC364+BC365+BC366","v":43},{"$f":"SQRT((BD364^2)+(BD365^2)+(BD366^2))","v":120.45746137122433},{"$f":"BE364+BE365+BE366","v":174},{"$f":"SQRT((BF364^2)+(BF365^2)+(BF366^2))","v":156.4768353463221},{"$f":"BG364+BG365+BG366","v":792},{"$f":"SQRT((BH364^2)+(BH365^2)+(BH366^2))","v":207.69207977195472},{"$f":"BI364+BI365+BI366","v":111},{"$f":"SQRT((BJ364^2)+(BJ365^2)+(BJ366^2))","v":137.22244714331543},{"$f":"BK364+BK365+BK366","v":92},{"$f":"SQRT((BL364^2)+(BL365^2)+(BL366^2))","v":185.62327440275371},{"$f":"BM364+BM365+BM366","v":353},{"$f":"SQRT((BN364^2)+(BN365^2)+(BN366^2))","v":161.94134740701648},{"$f":"BO364+BO365+BO366","v":13},{"$f":"SQRT((BP364^2)+(BP365^2)+(BP366^2))","v":115.15641536623133},{"$f":"BQ364+BQ365+BQ366","v":278},{"$f":"SQRT((BR364^2)+(BR365^2)+(BR366^2))","v":140.14278433083882},{"$f":"BS364+BS365+BS366","v":22},{"$f":"SQRT((BT364^2)+(BT365^2)+(BT366^2))","v":163.98780442459739},{"$f":"BU364+BU365+BU366","v":0},{"$f":"SQRT((BV364^2)+(BV365^2)+(BV366^2))","v":197.45379206285202},{"$f":"BW364+BW365+BW366","v":40},{"$f":"SQRT((BX364^2)+(BX365^2)+(BX366^2))","v":168.50222550459088}]
[null,"More than 30.0 percent",{"$f":"C367+C368","v":0},{"$f":"SQRT((D367^2)+(D368^2))","v":161.22034611053283},{"$f":"E367+E368","v":0},{"$f":"SQRT((F367^2)+(F368^2))","v":161.22034611053283},{"$f":"G367+G368","v":0},{"$f":"SQRT((H367^2)+(H368^2))","v":161.22034611053283},{"$f":"I367+I368","v":0},{"$f":"SQRT((J367^2)+(J368^2))","v":161.22034611053283},{"$f":"K367+K368","v":0},{"$f":"SQRT((L367^2)+(L368^2))","v":161.22034611053283},{"$f":"M367+M368","v":0},{"$f":"SQRT((N367^2)+(N368^2))","v":161.22034611053283},{"$f":"O367+O368","v":0},{"$f":"SQRT((P367^2)+(P368^2))","v":161.22034611053283},{"$f":"Q367+Q368","v":116},{"$f":"SQRT((R367^2)+(R368^2))","v":76.216796049164913},{"$f":"S367+S368","v":9},{"$f":"SQRT((T367^2)+(T368^2))","v":114.62983904725679},{"$f":"U367+U368","v":0},{"$f":"SQRT((V367^2)+(V368^2))","v":161.22034611053283},{"$f":"W367+W368","v":97},{"$f":"SQRT((X367^2)+(X368^2))","v":128.82546332150332},{"$f":"Y367+Y368","v":10},{"$f":"SQRT((Z367^2)+(Z368^2))","v":115.11733144926528},{"$f":"AA367+AA368","v":0},{"$f":"SQRT((AB367^2)+(AB368^2))","v":161.22034611053283},{"$f":"AC367+AC368","v":24},{"$f":"SQRT((AD367^2)+(AD368^2))","v":120.16655108639841},{"$f":"AE367+AE368","v":86},{"$f":"SQRT((AF367^2)+(AF368^2))","v":137.56816492197603},{"$f":"AG367+AG368","v":0},{"$f":"SQRT((AH367^2)+(AH368^2))","v":161.22034611053283},{"$f":"AI367+AI368","v":4},{"$f":"SQRT((AJ367^2)+(AJ368^2))","v":114.15778554264269},{"$f":"AK367+AK368","v":0},{"$f":"SQRT((AL367^2)+(AL368^2))","v":161.22034611053283},{"$f":"AM367+AM368","v":0},{"$f":"SQRT((AN367^2)+(AN368^2))","v":161.22034611053283},{"$f":"AO367+AO368","v":0},{"$f":"SQRT((AP367^2)+(AP368^2))","v":161.22034611053283},{"$f":"AQ367+AQ368","v":0},{"$f":"SQRT((AR367^2)+(AR368^2))","v":161.22034611053283},{"$f":"AS367+AS368","v":0},{"$f":"SQRT((AT367^2)+(AT368^2))","v":161.22034611053283},{"$f":"AU367+AU368","v":56},{"$f":"SQRT((AV367^2)+(AV368^2))","v":58.180752831155424},{"$f":"AW367+AW368","v":0},{"$f":"SQRT((AX367^2)+(AX368^2))","v":161.22034611053283},{"$f":"AY367+AY368","v":24},{"$f":"SQRT((AZ367^2)+(AZ368^2))","v":27.784887978899608},{"$f":"BA367+BA368","v":0},{"$f":"SQRT((BB367^2)+(BB368^2))","v":161.22034611053283},{"$f":"BC367+BC368","v":11},{"$f":"SQRT((BD367^2)+(BD368^2))","v":115.41230437002807},{"$f":"BE367+BE368","v":14},{"$f":"SQRT((BF367^2)+(BF368^2))","v":116.29703349613007},{"$f":"BG367+BG368","v":208},{"$f":"SQRT((BH367^2)+(BH368^2))","v":103.71113729971339},{"$f":"BI367+BI368","v":0},{"$f":"SQRT((BJ367^2)+(BJ368^2))","v":161.22034611053283},{"$f":"BK367+BK368","v":38},{"$f":"SQRT((BL367^2)+(BL368^2))","v":37.215588131856791},{"$f":"BM367+BM368","v":58},{"$f":"SQRT((BN367^2)+(BN368^2))","v":37.20215047547655},{"$f":"BO367+BO368","v":14},{"$f":"SQRT((BP367^2)+(BP368^2))","v":17.691806012954132},{"$f":"BQ367+BQ368","v":15},{"$f":"SQRT((BR367^2)+(BR368^2))","v":116.10340218959993},{"$f":"BS367+BS368","v":3},{"$f":"SQRT((BT367^2)+(BT368^2))","v":114.0701538527936},{"$f":"BU367+BU368","v":0},{"$f":"SQRT((BV367^2)+(BV368^2))","v":161.22034611053283},{"$f":"BW367+BW368","v":0},{"$f":"SQRT((BX367^2)+(BX368^2))","v":161.22034611053283}]
[null,"Less Than 35% of HH Income",{"$f":"C367+C366+C365+C364","v":115},{"$f":"SQRT((D367^2)+(D366^2)+(D365^2)+(D364^2))","v":230.026085477278},{"$f":"E367+E366+E365+E364","v":0},{"$f":"SQRT((F367^2)+(F366^2)+(F365^2)+(F364^2))","v":228},{"$f":"G367+G366+G365+G364","v":15},{"$f":"SQRT((H367^2)+(H366^2)+(H365^2)+(H364^2))","v":198.90701345100931},{"$f":"I367+I366+I365+I364","v":10},{"$f":"SQRT((J367^2)+(J366^2)+(J365^2)+(J364^2))","v":198.10098434889213},{"$f":"K367+K366+K365+K364","v":0},{"$f":"SQRT((L367^2)+(L366^2)+(L365^2)+(L364^2))","v":228},{"$f":"M367+M366+M365+M364","v":31},{"$f":"SQRT((N367^2)+(N366^2)+(N365^2)+(N364^2))","v":203.44286667268528},{"$f":"O367+O366+O365+O364","v":22},{"$f":"SQRT((P367^2)+(P366^2)+(P365^2)+(P364^2))","v":163.05827179263247},{"$f":"Q367+Q366+Q365+Q364","v":673},{"$f":"SQRT((R367^2)+(R366^2)+(R365^2)+(R364^2))","v":213.77324435017587},{"$f":"S367+S366+S365+S364","v":14},{"$f":"SQRT((T367^2)+(T366^2)+(T365^2)+(T364^2))","v":161.93825983997729},{"$f":"U367+U366+U365+U364","v":114},{"$f":"SQRT((V367^2)+(V366^2)+(V365^2)+(V364^2))","v":187.64061394058589},{"$f":"W367+W366+W365+W364","v":319},{"$f":"SQRT((X367^2)+(X366^2)+(X365^2)+(X364^2))","v":220.43593173527768},{"$f":"Y367+Y366+Y365+Y364","v":41},{"$f":"SQRT((Z367^2)+(Z366^2)+(Z365^2)+(Z364^2))","v":119.60351165413162},{"$f":"AA367+AA366+AA365+AA364","v":94},{"$f":"SQRT((AB367^2)+(AB366^2)+(AB365^2)+(AB364^2))","v":180.97513641381789},{"$f":"AC367+AC366+AC365+AC364","v":101},{"$f":"SQRT((AD367^2)+(AD366^2)+(AD365^2)+(AD364^2))","v":137.54272063617179},{"$f":"AE367+AE366+AE365+AE364","v":308},{"$f":"SQRT((AF367^2)+(AF366^2)+(AF365^2)+(AF364^2))","v":166.97305171793442},{"$f":"AG367+AG366+AG365+AG364","v":3},{"$f":"SQRT((AH367^2)+(AH366^2)+(AH365^2)+(AH364^2))","v":197.49430371532239},{"$f":"AI367+AI366+AI365+AI364","v":7},{"$f":"SQRT((AJ367^2)+(AJ366^2)+(AJ365^2)+(AJ364^2))","v":161.40941732129511},{"$f":"AK367+AK366+AK365+AK364","v":0},{"$f":"SQRT((AL367^2)+(AL366^2)+(AL365^2)+(AL364^2))","v":228},{"$f":"AM367+AM366+AM365+AM364","v":137},{"$f":"SQRT((AN367^2)+(AN366^2)+(AN365^2)+(AN364^2))","v":155.68236894394946},{"$f":"AO367+AO366+AO365+AO364","v":0},{"$f":"SQRT((AP367^2)+(AP366^2)+(AP365^2)+(AP364^2))","v":228},{"$f":"AQ367+AQ366+AQ365+AQ364","v":7},{"$f":"SQRT((AR367^2)+(AR366^2)+(AR365^2)+(AR364^2))","v":197.61578884289585},{"$f":"AS367+AS366+AS365+AS364","v":8},{"$f":"SQRT((AT367^2)+(AT366^2)+(AT365^2)+(AT364^2))","v":161.48374531202822},{"$f":"AU367+AU366+AU365+AU364","v":316},{"$f":"SQRT((AV367^2)+(AV366^2)+(AV365^2)+(AV364^2))","v":186.58778095041487},{"$f":"AW367+AW366+AW365+AW364","v":7},{"$f":"SQRT((AX367^2)+(AX366^2)+(AX365^2)+(AX364^2))","v":197.75995550161312},{"$f":"AY367+AY366+AY365+AY364","v":67},{"$f":"SQRT((AZ367^2)+(AZ366^2)+(AZ365^2)+(AZ364^2))","v":132.06816421833082},{"$f":"BA367+BA366+BA365+BA364","v":80},{"$f":"SQRT((BB367^2)+(BB366^2)+(BB365^2)+(BB364^2))","v":174.75125178378551},{"$f":"BC367+BC366+BC365+BC364","v":54},{"$f":"SQRT((BD367^2)+(BD366^2)+(BD365^2)+(BD364^2))","v":121.79490958164057},{"$f":"BE367+BE366+BE365+BE364","v":188},{"$f":"SQRT((BF367^2)+(BF366^2)+(BF365^2)+(BF364^2))","v":158.15814869933197},{"$f":"BG367+BG366+BG365+BG364","v":891},{"$f":"SQRT((BH367^2)+(BH366^2)+(BH365^2)+(BH364^2))","v":217.92659314549016},{"$f":"BI367+BI366+BI365+BI364","v":111},{"$f":"SQRT((BJ367^2)+(BJ366^2)+(BJ365^2)+(BJ364^2))","v":178.39843048636948},{"$f":"BK367+BK366+BK365+BK364","v":119},{"$f":"SQRT((BL367^2)+(BL366^2)+(BL365^2)+(BL364^2))","v":188.36135484753765},{"$f":"BM367+BM366+BM365+BM364","v":392},{"$f":"SQRT((BN367^2)+(BN366^2)+(BN365^2)+(BN364^2))","v":164.69669092000603},{"$f":"BO367+BO366+BO365+BO364","v":20},{"$f":"SQRT((BP367^2)+(BP366^2)+(BP365^2)+(BP364^2))","v":115.88787684654508},{"$f":"BQ367+BQ366+BQ365+BQ364","v":293},{"$f":"SQRT((BR367^2)+(BR366^2)+(BR365^2)+(BR364^2))","v":141.85908501044267},{"$f":"BS367+BS366+BS365+BS364","v":22},{"$f":"SQRT((BT367^2)+(BT366^2)+(BT365^2)+(BT364^2))","v":199.71980372511885},{"$f":"BU367+BU366+BU365+BU364","v":0},{"$f":"SQRT((BV367^2)+(BV366^2)+(BV365^2)+(BV364^2))","v":228},{"$f":"BW367+BW366+BW365+BW364","v":40},{"$f":"SQRT((BX367^2)+(BX366^2)+(BX365^2)+(BX364^2))","v":203.44286667268528}]
[null,"35.0 percent or more",{"$f":"C368","v":0},114,0,114,0,114,0,114,0,114,0,114,0,114,22,25,9,12,0,114,97,60,0,114,0,114,24,38,86,77,0,114,{"$f":"AI368","v":0},114,0,114,0,114,0,114,0,114,0,114,21,24,0,114,16,24,0,114,0,114,0,114,109,80,0,114,11,19,19,22,{"$f":"BO368","v":7},12,0,114,3,4,0,114,0,114]
[null,"Not Computed",{"$f":"C369","v":15},25,0,114,0,114,0,114,9,14,42,52,0,114,11,18,0,114,0,114,16,25,0,114,12,18,0,114,0,114,0,114,{"$f":"AI369","v":0},114,0,114,20,32,0,114,4,6,4,6,0,114,0,114,0,114,0,114,0,114,0,114,13,20,18,27,0,114,37,33,{"$f":"BO369","v":0},114,0,114,0,114,0,114,0,114]
[null,"$75,000 to $99,999:",{"$f":"C370","v":0},114,0,114,0,114,0,114,0,114,0,114,19,25,422,136,3,5,22,35,98,67,56,53,0,114,25,29,111,83,7,7,{"$f":"AI370","v":4},5,0,114,65,48,4,8,0,114,11,9,143,97,0,114,48,45,50,53,33,50,120,104,491,150,59,63,29,32,278,133,{"$f":"BO370","v":63},65,92,69,6,6,72,81,19,21]
[null,"Less than 30.0 percent",{"$f":"C371+C372+C373","v":0},{"$f":"SQRT((D371^2)+(D372^2)+(D373^2))","v":197.45379206285202},{"$f":"E371+E372+E373","v":0},{"$f":"SQRT((F371^2)+(F372^2)+(F373^2))","v":197.45379206285202},{"$f":"G371+G372+G373","v":0},{"$f":"SQRT((H371^2)+(H372^2)+(H373^2))","v":197.45379206285202},{"$f":"I371+I372+I373","v":0},{"$f":"SQRT((J371^2)+(J372^2)+(J373^2))","v":197.45379206285202},{"$f":"K371+K372+K373","v":0},{"$f":"SQRT((L371^2)+(L372^2)+(L373^2))","v":197.45379206285202},{"$f":"M371+M372+M373","v":0},{"$f":"SQRT((N371^2)+(N372^2)+(N373^2))","v":197.45379206285202},{"$f":"O371+O372+O373","v":19},{"$f":"SQRT((P371^2)+(P372^2)+(P373^2))","v":163.1471728225776},{"$f":"Q371+Q372+Q373","v":393},{"$f":"SQRT((R371^2)+(R372^2)+(R373^2))","v":152.55818562109343},{"$f":"S371+S372+S373","v":0},{"$f":"SQRT((T371^2)+(T372^2)+(T373^2))","v":197.45379206285202},{"$f":"U371+U372+U373","v":22},{"$f":"SQRT((V371^2)+(V372^2)+(V373^2))","v":164.97575579460153},{"$f":"W371+W372+W373","v":40},{"$f":"SQRT((X371^2)+(X372^2)+(X373^2))","v":119.20151005754919},{"$f":"Y371+Y372+Y373","v":43},{"$f":"SQRT((Z371^2)+(Z372^2)+(Z373^2))","v":124.71166745737946},{"$f":"AA371+AA372+AA373","v":0},{"$f":"SQRT((AB371^2)+(AB372^2)+(AB373^2))","v":197.45379206285202},{"$f":"AC371+AC372+AC373","v":25},{"$f":"SQRT((AD371^2)+(AD372^2)+(AD373^2))","v":163.80781422142229},{"$f":"AE371+AE372+AE373","v":111},{"$f":"SQRT((AF371^2)+(AF372^2)+(AF373^2))","v":141.49558296992879},{"$f":"AG371+AG372+AG373","v":4},{"$f":"SQRT((AH371^2)+(AH372^2)+(AH373^2))","v":161.29786111415117},{"$f":"AI371+AI372+AI373","v":4},{"$f":"SQRT((AJ371^2)+(AJ372^2)+(AJ373^2))","v":161.29786111415117},{"$f":"AK371+AK372+AK373","v":0},{"$f":"SQRT((AL371^2)+(AL372^2)+(AL373^2))","v":197.45379206285202},{"$f":"AM371+AM372+AM373","v":65},{"$f":"SQRT((AN371^2)+(AN372^2)+(AN373^2))","v":46.141087980237309},{"$f":"AO371+AO372+AO373","v":4},{"$f":"SQRT((AP371^2)+(AP372^2)+(AP373^2))","v":161.41871019184859},{"$f":"AQ371+AQ372+AQ373","v":0},{"$f":"SQRT((AR371^2)+(AR372^2)+(AR373^2))","v":197.45379206285202},{"$f":"AS371+AS372+AS373","v":11},{"$f":"SQRT((AT371^2)+(AT372^2)+(AT373^2))","v":114.43775600735974},{"$f":"AU371+AU372+AU373","v":143},{"$f":"SQRT((AV371^2)+(AV372^2)+(AV373^2))","v":95.320511958339793},{"$f":"AW371+AW372+AW373","v":0},{"$f":"SQRT((AX371^2)+(AX372^2)+(AX373^2))","v":197.45379206285202},{"$f":"AY371+AY372+AY373","v":48},{"$f":"SQRT((AZ371^2)+(AZ372^2)+(AZ373^2))","v":123.24771803161306},{"$f":"BA371+BA372+BA373","v":50},{"$f":"SQRT((BB371^2)+(BB372^2)+(BB373^2))","v":125.8729518204765},{"$f":"BC371+BC372+BC373","v":33},{"$f":"SQRT((BD371^2)+(BD372^2)+(BD373^2))","v":168.79573454326385},{"$f":"BE371+BE372+BE373","v":120},{"$f":"SQRT((BF371^2)+(BF372^2)+(BF373^2))","v":153.61315047872691},{"$f":"BG371+BG372+BG373","v":408},{"$f":"SQRT((BH371^2)+(BH372^2)+(BH373^2))","v":153.89606882568509},{"$f":"BI371+BI372+BI373","v":59},{"$f":"SQRT((BJ371^2)+(BJ372^2)+(BJ373^2))","v":173.09246084101989},{"$f":"BK371+BK372+BK373","v":29},{"$f":"SQRT((BL371^2)+(BL372^2)+(BL373^2))","v":118.46096403457132},{"$f":"BM371+BM372+BM373","v":248},{"$f":"SQRT((BN371^2)+(BN372^2)+(BN373^2))","v":132.73281433014219},{"$f":"BO371+BO372+BO373","v":63},{"$f":"SQRT((BP371^2)+(BP372^2)+(BP373^2))","v":131.52946437965906},{"$f":"BQ371+BQ372+BQ373","v":92},{"$f":"SQRT((BR371^2)+(BR372^2)+(BR373^2))","v":129.5569372901351},{"$f":"BS371+BS372+BS373","v":3},{"$f":"SQRT((BT371^2)+(BT372^2)+(BT373^2))","v":161.26996000495566},{"$f":"BU371+BU372+BU373","v":28},{"$f":"SQRT((BV371^2)+(BV372^2)+(BV373^2))","v":167.38279481475985},{"$f":"BW371+BW372+BW373","v":7},{"$f":"SQRT((BX371^2)+(BX372^2)+(BX373^2))","v":161.59517319524119}]
[null,"More than 30.0 percent",{"$f":"C374+C375","v":0},{"$f":"SQRT((D374^2)+(D375^2))","v":161.22034611053283},{"$f":"E374+E375","v":0},{"$f":"SQRT((F374^2)+(F375^2))","v":161.22034611053283},{"$f":"G374+G375","v":0},{"$f":"SQRT((H374^2)+(H375^2))","v":161.22034611053283},{"$f":"I374+I375","v":0},{"$f":"SQRT((J374^2)+(J375^2))","v":161.22034611053283},{"$f":"K374+K375","v":0},{"$f":"SQRT((L374^2)+(L375^2))","v":161.22034611053283},{"$f":"M374+M375","v":0},{"$f":"SQRT((N374^2)+(N375^2))","v":161.22034611053283},{"$f":"O374+O375","v":0},{"$f":"SQRT((P374^2)+(P375^2))","v":161.22034611053283},{"$f":"Q374+Q375","v":14},{"$f":"SQRT((R374^2)+(R375^2))","v":116.92732785794773},{"$f":"S374+S375","v":0},{"$f":"SQRT((T374^2)+(T375^2))","v":161.22034611053283},{"$f":"U374+U375","v":0},{"$f":"SQRT((V374^2)+(V375^2))","v":161.22034611053283},{"$f":"W374+W375","v":25},{"$f":"SQRT((X374^2)+(X375^2))","v":117.63077828527702},{"$f":"Y374+Y375","v":13},{"$f":"SQRT((Z374^2)+(Z375^2))","v":115.91807451816995},{"$f":"AA374+AA375","v":0},{"$f":"SQRT((AB374^2)+(AB375^2))","v":161.22034611053283},{"$f":"AC374+AC375","v":0},{"$f":"SQRT((AD374^2)+(AD375^2))","v":161.22034611053283},{"$f":"AE374+AE375","v":0},{"$f":"SQRT((AF374^2)+(AF375^2))","v":161.22034611053283},{"$f":"AG374+AG375","v":0},{"$f":"SQRT((AH374^2)+(AH375^2))","v":161.22034611053283},{"$f":"AI374+AI375","v":0},{"$f":"SQRT((AJ374^2)+(AJ375^2))","v":161.22034611053283},{"$f":"AK374+AK375","v":0},{"$f":"SQRT((AL374^2)+(AL375^2))","v":161.22034611053283},{"$f":"AM374+AM375","v":0},{"$f":"SQRT((AN374^2)+(AN375^2))","v":161.22034611053283},{"$f":"AO374+AO375","v":0},{"$f":"SQRT((AP374^2)+(AP375^2))","v":161.22034611053283},{"$f":"AQ374+AQ375","v":0},{"$f":"SQRT((AR374^2)+(AR375^2))","v":161.22034611053283},{"$f":"AS374+AS375","v":0},{"$f":"SQRT((AT374^2)+(AT375^2))","v":161.22034611053283},{"$f":"AU374+AU375","v":0},{"$f":"SQRT((AV374^2)+(AV375^2))","v":161.22034611053283},{"$f":"AW374+AW375","v":0},{"$f":"SQRT((AX374^2)+(AX375^2))","v":161.22034611053283},{"$f":"AY374+AY375","v":0},{"$f":"SQRT((AZ374^2)+(AZ375^2))","v":161.22034611053283},{"$f":"BA374+BA375","v":0},{"$f":"SQRT((BB374^2)+(BB375^2))","v":161.22034611053283},{"$f":"BC374+BC375","v":0},{"$f":"SQRT((BD374^2)+(BD375^2))","v":161.22034611053283},{"$f":"BE374+BE375","v":0},{"$f":"SQRT((BF374^2)+(BF375^2))","v":161.22034611053283},{"$f":"BG374+BG375","v":48},{"$f":"SQRT((BH374^2)+(BH375^2))","v":128.36276718737409},{"$f":"BI374+BI375","v":0},{"$f":"SQRT((BJ374^2)+(BJ375^2))","v":161.22034611053283},{"$f":"BK374+BK375","v":0},{"$f":"SQRT((BL374^2)+(BL375^2))","v":161.22034611053283},{"$f":"BM374+BM375","v":12},{"$f":"SQRT((BN374^2)+(BN375^2))","v":115.57248807566617},{"$f":"BO374+BO375","v":0},{"$f":"SQRT((BP374^2)+(BP375^2))","v":161.22034611053283},{"$f":"BQ374+BQ375","v":0},{"$f":"SQRT((BR374^2)+(BR375^2))","v":161.22034611053283},{"$f":"BS374+BS375","v":3},{"$f":"SQRT((BT374^2)+(BT375^2))","v":114.0701538527936},{"$f":"BU374+BU375","v":44},{"$f":"SQRT((BV374^2)+(BV375^2))","v":131.7269904006009},{"$f":"BW374+BW375","v":0},{"$f":"SQRT((BX374^2)+(BX375^2))","v":161.22034611053283}]
[null,"Less Than 35% of HH Income",{"$f":"C374+C373+C372+C371","v":0},{"$f":"SQRT((D374^2)+(D373^2)+(D372^2)+(D371^2))","v":228},{"$f":"E374+E373+E372+E371","v":0},{"$f":"SQRT((F374^2)+(F373^2)+(F372^2)+(F371^2))","v":228},{"$f":"G374+G373+G372+G371","v":0},{"$f":"SQRT((H374^2)+(H373^2)+(H372^2)+(H371^2))","v":228},{"$f":"I374+I373+I372+I371","v":0},{"$f":"SQRT((J374^2)+(J373^2)+(J372^2)+(J371^2))","v":228},{"$f":"K374+K373+K372+K371","v":0},{"$f":"SQRT((L374^2)+(L373^2)+(L372^2)+(L371^2))","v":228},{"$f":"M374+M373+M372+M371","v":0},{"$f":"SQRT((N374^2)+(N373^2)+(N372^2)+(N371^2))","v":228},{"$f":"O374+O373+O372+O371","v":19},{"$f":"SQRT((P374^2)+(P373^2)+(P372^2)+(P371^2))","v":199.0301484700245},{"$f":"Q374+Q373+Q372+Q371","v":407},{"$f":"SQRT((R374^2)+(R373^2)+(R372^2)+(R371^2))","v":154.7578754054216},{"$f":"S374+S373+S372+S371","v":0},{"$f":"SQRT((T374^2)+(T373^2)+(T372^2)+(T371^2))","v":228},{"$f":"U374+U373+U372+U371","v":22},{"$f":"SQRT((V374^2)+(V373^2)+(V372^2)+(V371^2))","v":200.53179299053804},{"$f":"W374+W373+W372+W371","v":40},{"$f":"SQRT((X374^2)+(X373^2)+(X372^2)+(X371^2))","v":164.93938280471406},{"$f":"Y374+Y373+Y372+Y371","v":43},{"$f":"SQRT((Z374^2)+(Z373^2)+(Z372^2)+(Z371^2))","v":168.96449331146471},{"$f":"AA374+AA373+AA372+AA371","v":0},{"$f":"SQRT((AB374^2)+(AB373^2)+(AB372^2)+(AB371^2))","v":228},{"$f":"AC374+AC373+AC372+AC371","v":25},{"$f":"SQRT((AD374^2)+(AD373^2)+(AD372^2)+(AD371^2))","v":199.5720421301541},{"$f":"AE374+AE373+AE372+AE371","v":111},{"$f":"SQRT((AF374^2)+(AF373^2)+(AF372^2)+(AF371^2))","v":181.70580618131055},{"$f":"AG374+AG373+AG372+AG371","v":4},{"$f":"SQRT((AH374^2)+(AH373^2)+(AH372^2)+(AH371^2))","v":197.51708786836647},{"$f":"AI374+AI373+AI372+AI371","v":4},{"$f":"SQRT((AJ374^2)+(AJ373^2)+(AJ372^2)+(AJ371^2))","v":197.51708786836647},{"$f":"AK374+AK373+AK372+AK371","v":0},{"$f":"SQRT((AL374^2)+(AL373^2)+(AL372^2)+(AL371^2))","v":228},{"$f":"AM374+AM373+AM372+AM371","v":65},{"$f":"SQRT((AN374^2)+(AN373^2)+(AN372^2)+(AN371^2))","v":122.98373876248843},{"$f":"AO374+AO373+AO372+AO371","v":4},{"$f":"SQRT((AP374^2)+(AP373^2)+(AP372^2)+(AP371^2))","v":197.61578884289585},{"$f":"AQ374+AQ373+AQ372+AQ371","v":0},{"$f":"SQRT((AR374^2)+(AR373^2)+(AR372^2)+(AR371^2))","v":228},{"$f":"AS374+AS373+AS372+AS371","v":11},{"$f":"SQRT((AT374^2)+(AT373^2)+(AT372^2)+(AT371^2))","v":161.5301829380503},{"$f":"AU374+AU373+AU372+AU371","v":143},{"$f":"SQRT((AV374^2)+(AV373^2)+(AV372^2)+(AV371^2))","v":148.60013458944107},{"$f":"AW374+AW373+AW372+AW371","v":0},{"$f":"SQRT((AX374^2)+(AX373^2)+(AX372^2)+(AX371^2))","v":228},{"$f":"AY374+AY373+AY372+AY371","v":48},{"$f":"SQRT((AZ374^2)+(AZ373^2)+(AZ372^2)+(AZ371^2))","v":167.88686666919483},{"$f":"BA374+BA373+BA372+BA371","v":50},{"$f":"SQRT((BB374^2)+(BB373^2)+(BB372^2)+(BB371^2))","v":169.82343772283025},{"$f":"BC374+BC373+BC372+BC371","v":33},{"$f":"SQRT((BD374^2)+(BD373^2)+(BD372^2)+(BD371^2))","v":203.68603290358425},{"$f":"BE374+BE373+BE372+BE371","v":120},{"$f":"SQRT((BF374^2)+(BF373^2)+(BF372^2)+(BF371^2))","v":191.2929690291831},{"$f":"BG374+BG373+BG372+BG371","v":408},{"$f":"SQRT((BH374^2)+(BH373^2)+(BH372^2)+(BH371^2))","v":191.52023391798579},{"$f":"BI374+BI373+BI372+BI371","v":59},{"$f":"SQRT((BJ374^2)+(BJ373^2)+(BJ372^2)+(BJ371^2))","v":207.2607053929905},{"$f":"BK374+BK373+BK372+BK371","v":29},{"$f":"SQRT((BL374^2)+(BL373^2)+(BL372^2)+(BL371^2))","v":164.40498775888764},{"$f":"BM374+BM373+BM372+BM371","v":248},{"$f":"SQRT((BN374^2)+(BN373^2)+(BN372^2)+(BN371^2))","v":174.96856860590705},{"$f":"BO374+BO373+BO372+BO371","v":63},{"$f":"SQRT((BP374^2)+(BP373^2)+(BP372^2)+(BP371^2))","v":174.05746177627663},{"$f":"BQ374+BQ373+BQ372+BQ371","v":92},{"$f":"SQRT((BR374^2)+(BR373^2)+(BR372^2)+(BR371^2))","v":172.57172421923588},{"$f":"BS374+BS373+BS372+BS371","v":3},{"$f":"SQRT((BT374^2)+(BT373^2)+(BT372^2)+(BT371^2))","v":197.49430371532239},{"$f":"BU374+BU373+BU372+BU371","v":72},{"$f":"SQRT((BV374^2)+(BV373^2)+(BV372^2)+(BV371^2))","v":179.92498436848618},{"$f":"BW374+BW373+BW372+BW371","v":7},{"$f":"SQRT((BX374^2)+(BX373^2)+(BX372^2)+(BX371^2))","v":197.75995550161312}]
[null,"35.0 percent or more",{"$f":"C375","v":0},114,0,114,0,114,0,114,0,114,0,114,0,114,0,114,0,114,0,114,25,29,13,21,0,114,0,114,0,114,0,114,{"$f":"AI375","v":0},114,0,114,0,114,0,114,0,114,0,114,0,114,0,114,0,114,0,114,0,114,0,114,48,59,0,114,0,114,12,19,{"$f":"BO375","v":0},114,0,114,3,4,0,114,0,114]
[null,"Not Computed",{"$f":"C376","v":0},114,0,114,0,114,0,114,0,114,0,114,0,114,15,24,3,5,0,114,33,40,0,114,0,114,0,114,0,114,3,4,{"$f":"AI376","v":0},114,0,114,0,114,0,114,0,114,0,114,0,114,0,114,0,114,0,114,0,114,0,114,35,29,0,114,0,114,18,28,{"$f":"BO376","v":0},114,0,114,0,114,0,114,12,18]
[null,"$100,000 or more:",{"$f":"C377","v":0},114,40,59,8,9,0,114,0,114,0,114,5,10,329,130,2,4,24,28,171,88,10,15,0,114,0,114,111,76,26,24,{"$f":"AI377","v":3},4,25,37,151,99,24,20,0,114,3,5,146,79,45,42,45,52,7,12,46,71,15,23,527,165,10,16,29,34,224,138,{"$f":"BO377","v":8},13,10,17,0,114,53,51,69,55]
[null,"Less than 30.0 percent",{"$f":"C378+C379+C380","v":0},{"$f":"SQRT((D378^2)+(D379^2)+(D380^2))","v":197.45379206285202},{"$f":"E378+E379+E380","v":40},{"$f":"SQRT((F378^2)+(F379^2)+(F380^2))","v":171.67702234137218},{"$f":"G378+G379+G380","v":8},{"$f":"SQRT((H378^2)+(H379^2)+(H380^2))","v":114.3241006962224},{"$f":"I378+I379+I380","v":0},{"$f":"SQRT((J378^2)+(J379^2)+(J380^2))","v":197.45379206285202},{"$f":"K378+K379+K380","v":0},{"$f":"SQRT((L378^2)+(L379^2)+(L380^2))","v":197.45379206285202},{"$f":"M378+M379+M380","v":0},{"$f":"SQRT((N378^2)+(N379^2)+(N380^2))","v":197.45379206285202},{"$f":"O378+O379+O380","v":5},{"$f":"SQRT((P378^2)+(P379^2)+(P380^2))","v":161.5301829380503},{"$f":"Q378+Q379+Q380","v":329},{"$f":"SQRT((R378^2)+(R379^2)+(R380^2))","v":175.18276170902203},{"$f":"S378+S379+S380","v":2},{"$f":"SQRT((T378^2)+(T379^2)+(T380^2))","v":161.26996000495566},{"$f":"U378+U379+U380","v":10},{"$f":"SQRT((V378^2)+(V379^2)+(V380^2))","v":162.58228685807074},{"$f":"W378+W379+W380","v":86},{"$f":"SQRT((X378^2)+(X379^2)+(X380^2))","v":174.2067736914957},{"$f":"Y378+Y379+Y380","v":10},{"$f":"SQRT((Z378^2)+(Z379^2)+(Z380^2))","v":161.91664522216362},{"$f":"AA378+AA379+AA380","v":0},{"$f":"SQRT((AB378^2)+(AB379^2)+(AB380^2))","v":197.45379206285202},{"$f":"AC378+AC379+AC380","v":0},{"$f":"SQRT((AD378^2)+(AD379^2)+(AD380^2))","v":197.45379206285202},{"$f":"AE378+AE379+AE380","v":95},{"$f":"SQRT((AF378^2)+(AF379^2)+(AF380^2))","v":177.3922207989967},{"$f":"AG378+AG379+AG380","v":22},{"$f":"SQRT((AH378^2)+(AH379^2)+(AH380^2))","v":19.390719429665317},{"$f":"AI378+AI379+AI380","v":3},{"$f":"SQRT((AJ378^2)+(AJ379^2)+(AJ380^2))","v":161.26996000495566},{"$f":"AK378+AK379+AK380","v":25},{"$f":"SQRT((AL378^2)+(AL379^2)+(AL380^2))","v":165.41160781517118},{"$f":"AM378+AM379+AM380","v":151},{"$f":"SQRT((AN378^2)+(AN379^2)+(AN380^2))","v":151.25144627407698},{"$f":"AO378+AO379+AO380","v":24},{"$f":"SQRT((AP378^2)+(AP379^2)+(AP380^2))","v":115.84903970253703},{"$f":"AQ378+AQ379+AQ380","v":0},{"$f":"SQRT((AR378^2)+(AR379^2)+(AR380^2))","v":197.45379206285202},{"$f":"AS378+AS379+AS380","v":3},{"$f":"SQRT((AT378^2)+(AT379^2)+(AT380^2))","v":161.29786111415117},{"$f":"AU378+AU379+AU380","v":146},{"$f":"SQRT((AV378^2)+(AV379^2)+(AV380^2))","v":138.92803892663281},{"$f":"AW378+AW379+AW380","v":33},{"$f":"SQRT((AX378^2)+(AX379^2)+(AX380^2))","v":120.02083152519816},{"$f":"AY378+AY379+AY380","v":45},{"$f":"SQRT((AZ378^2)+(AZ379^2)+(AZ380^2))","v":126.03967629282455},{"$f":"BA378+BA379+BA380","v":7},{"$f":"SQRT((BB378^2)+(BB379^2)+(BB380^2))","v":161.66632302368976},{"$f":"BC378+BC379+BC380","v":46},{"$f":"SQRT((BD378^2)+(BD379^2)+(BD380^2))","v":176.16185739256952},{"$f":"BE378+BE379+BE380","v":15},{"$f":"SQRT((BF378^2)+(BF379^2)+(BF380^2))","v":162.85269417482783},{"$f":"BG378+BG379+BG380","v":527},{"$f":"SQRT((BH378^2)+(BH379^2)+(BH380^2))","v":183.70084376507364},{"$f":"BI378+BI379+BI380","v":10},{"$f":"SQRT((BJ378^2)+(BJ379^2)+(BJ380^2))","v":162.01234520862909},{"$f":"BK378+BK379+BK380","v":29},{"$f":"SQRT((BL378^2)+(BL379^2)+(BL380^2))","v":164.76650144977893},{"$f":"BM378+BM379+BM380","v":200},{"$f":"SQRT((BN378^2)+(BN379^2)+(BN380^2))","v":209.63778285414105},{"$f":"BO378+BO379+BO380","v":8},{"$f":"SQRT((BP378^2)+(BP379^2)+(BP380^2))","v":161.74362429474616},{"$f":"BQ378+BQ379+BQ380","v":10},{"$f":"SQRT((BR378^2)+(BR379^2)+(BR380^2))","v":162.11415730897781},{"$f":"BS378+BS379+BS380","v":0},{"$f":"SQRT((BT378^2)+(BT379^2)+(BT380^2))","v":197.45379206285202},{"$f":"BU378+BU379+BU380","v":53},{"$f":"SQRT((BV378^2)+(BV379^2)+(BV380^2))","v":169.09464805250343},{"$f":"BW378+BW379+BW380","v":69},{"$f":"SQRT((BX378^2)+(BX379^2)+(BX380^2))","v":170.34377006512449}]
[null,"More than 30.0 percent",{"$f":"C381+C382","v":0},{"$f":"SQRT((D381^2)+(D382^2))","v":161.22034611053283},{"$f":"E381+E382","v":0},{"$f":"SQRT((F381^2)+(F382^2))","v":161.22034611053283},{"$f":"G381+G382","v":0},{"$f":"SQRT((H381^2)+(H382^2))","v":161.22034611053283},{"$f":"I381+I382","v":0},{"$f":"SQRT((J381^2)+(J382^2))","v":161.22034611053283},{"$f":"K381+K382","v":0},{"$f":"SQRT((L381^2)+(L382^2))","v":161.22034611053283},{"$f":"M381+M382","v":0},{"$f":"SQRT((N381^2)+(N382^2))","v":161.22034611053283},{"$f":"O381+O382","v":0},{"$f":"SQRT((P381^2)+(P382^2))","v":161.22034611053283},{"$f":"Q381+Q382","v":0},{"$f":"SQRT((R381^2)+(R382^2))","v":161.22034611053283},{"$f":"S381+S382","v":0},{"$f":"SQRT((T381^2)+(T382^2))","v":161.22034611053283},{"$f":"U381+U382","v":0},{"$f":"SQRT((V381^2)+(V382^2))","v":161.22034611053283},{"$f":"W381+W382","v":22},{"$f":"SQRT((X381^2)+(X382^2))","v":116.92732785794773},{"$f":"Y381+Y382","v":0},{"$f":"SQRT((Z381^2)+(Z382^2))","v":161.22034611053283},{"$f":"AA381+AA382","v":0},{"$f":"SQRT((AB381^2)+(AB382^2))","v":161.22034611053283},{"$f":"AC381+AC382","v":0},{"$f":"SQRT((AD381^2)+(AD382^2))","v":161.22034611053283},{"$f":"AE381+AE382","v":0},{"$f":"SQRT((AF381^2)+(AF382^2))","v":161.22034611053283},{"$f":"AG381+AG382","v":0},{"$f":"SQRT((AH381^2)+(AH382^2))","v":161.22034611053283},{"$f":"AI381+AI382","v":0},{"$f":"SQRT((AJ381^2)+(AJ382^2))","v":161.22034611053283},{"$f":"AK381+AK382","v":0},{"$f":"SQRT((AL381^2)+(AL382^2))","v":161.22034611053283},{"$f":"AM381+AM382","v":0},{"$f":"SQRT((AN381^2)+(AN382^2))","v":161.22034611053283},{"$f":"AO381+AO382","v":0},{"$f":"SQRT((AP381^2)+(AP382^2))","v":161.22034611053283},{"$f":"AQ381+AQ382","v":0},{"$f":"SQRT((AR381^2)+(AR382^2))","v":161.22034611053283},{"$f":"AS381+AS382","v":0},{"$f":"SQRT((AT381^2)+(AT382^2))","v":161.22034611053283},{"$f":"AU381+AU382","v":0},{"$f":"SQRT((AV381^2)+(AV382^2))","v":161.22034611053283},{"$f":"AW381+AW382","v":0},{"$f":"SQRT((AX381^2)+(AX382^2))","v":161.22034611053283},{"$f":"AY381+AY382","v":0},{"$f":"SQRT((AZ381^2)+(AZ382^2))","v":161.22034611053283},{"$f":"BA381+BA382","v":0},{"$f":"SQRT((BB381^2)+(BB382^2))","v":161.22034611053283},{"$f":"BC381+BC382","v":0},{"$f":"SQRT((BD381^2)+(BD382^2))","v":161.22034611053283},{"$f":"BE381+BE382","v":0},{"$f":"SQRT((BF381^2)+(BF382^2))","v":161.22034611053283},{"$f":"BG381+BG382","v":0},{"$f":"SQRT((BH381^2)+(BH382^2))","v":161.22034611053283},{"$f":"BI381+BI382","v":0},{"$f":"SQRT((BJ381^2)+(BJ382^2))","v":161.22034611053283},{"$f":"BK381+BK382","v":0},{"$f":"SQRT((BL381^2)+(BL382^2))","v":161.22034611053283},{"$f":"BM381+BM382","v":0},{"$f":"SQRT((BN381^2)+(BN382^2))","v":161.22034611053283},{"$f":"BO381+BO382","v":0},{"$f":"SQRT((BP381^2)+(BP382^2))","v":161.22034611053283},{"$f":"BQ381+BQ382","v":0},{"$f":"SQRT((BR381^2)+(BR382^2))","v":161.22034611053283},{"$f":"BS381+BS382","v":0},{"$f":"SQRT((BT381^2)+(BT382^2))","v":161.22034611053283},{"$f":"BU381+BU382","v":0},{"$f":"SQRT((BV381^2)+(BV382^2))","v":161.22034611053283},{"$f":"BW381+BW382","v":0},{"$f":"SQRT((BX381^2)+(BX382^2))","v":161.22034611053283}]
[null,"Less Than 35% of HH Income",{"$f":"C378+C379+C380+C381","v":0},{"$f":"SQRT((D378^2)+(D379^2)+(D380^2)+(D381^2))","v":228},{"$f":"E378+E379+E380+E381","v":40},{"$f":"SQRT((F378^2)+(F379^2)+(F380^2)+(F381^2))","v":206.080081521723},{"$f":"G378+G379+G380+G381","v":8},{"$f":"SQRT((H378^2)+(H379^2)+(H380^2)+(H381^2))","v":161.44968256394932},{"$f":"I378+I379+I380+I381","v":0},{"$f":"SQRT((J378^2)+(J379^2)+(J380^2)+(J381^2))","v":228},{"$f":"K378+K379+K380+K381","v":0},{"$f":"SQRT((L378^2)+(L379^2)+(L380^2)+(L381^2))","v":228},{"$f":"M378+M379+M380+M381","v":0},{"$f":"SQRT((N378^2)+(N379^2)+(N380^2)+(N381^2))","v":228},{"$f":"O378+O379+O380+O381","v":5},{"$f":"SQRT((P378^2)+(P379^2)+(P380^2)+(P381^2))","v":197.70685370011836},{"$f":"Q378+Q379+Q380+Q381","v":329},{"$f":"SQRT((R378^2)+(R379^2)+(R380^2)+(R381^2))","v":209.0095691589263},{"$f":"S378+S379+S380+S381","v":2},{"$f":"SQRT((T378^2)+(T379^2)+(T380^2)+(T381^2))","v":197.49430371532239},{"$f":"U378+U379+U380+U381","v":10},{"$f":"SQRT((V378^2)+(V379^2)+(V380^2)+(V381^2))","v":198.56736892047493},{"$f":"W378+W379+W380+W381","v":86},{"$f":"SQRT((X378^2)+(X379^2)+(X380^2)+(X381^2))","v":208.19221887476968},{"$f":"Y378+Y379+Y380+Y381","v":10},{"$f":"SQRT((Z378^2)+(Z379^2)+(Z380^2)+(Z381^2))","v":198.022725968511},{"$f":"AA378+AA379+AA380+AA381","v":0},{"$f":"SQRT((AB378^2)+(AB379^2)+(AB380^2)+(AB381^2))","v":228},{"$f":"AC378+AC379+AC380+AC381","v":0},{"$f":"SQRT((AD378^2)+(AD379^2)+(AD380^2)+(AD381^2))","v":228},{"$f":"AE378+AE379+AE380+AE381","v":95},{"$f":"SQRT((AF378^2)+(AF379^2)+(AF380^2)+(AF381^2))","v":210.86488564955522},{"$f":"AG378+AG379+AG380+AG381","v":22},{"$f":"SQRT((AH378^2)+(AH379^2)+(AH380^2)+(AH381^2))","v":115.63736420379011},{"$f":"AI378+AI379+AI380+AI381","v":3},{"$f":"SQRT((AJ378^2)+(AJ379^2)+(AJ380^2)+(AJ381^2))","v":197.49430371532239},{"$f":"AK378+AK379+AK380+AK381","v":25},{"$f":"SQRT((AL378^2)+(AL379^2)+(AL380^2)+(AL381^2))","v":200.89051744669283},{"$f":"AM378+AM379+AM380+AM381","v":151},{"$f":"SQRT((AN378^2)+(AN379^2)+(AN380^2)+(AN381^2))","v":189.40168953839878},{"$f":"AO378+AO379+AO380+AO381","v":24},{"$f":"SQRT((AP378^2)+(AP379^2)+(AP380^2)+(AP381^2))","v":162.53307355735325},{"$f":"AQ378+AQ379+AQ380+AQ381","v":0},{"$f":"SQRT((AR378^2)+(AR379^2)+(AR380^2)+(AR381^2))","v":228},{"$f":"AS378+AS379+AS380+AS381","v":3},{"$f":"SQRT((AT378^2)+(AT379^2)+(AT380^2)+(AT381^2))","v":197.51708786836647},{"$f":"AU378+AU379+AU380+AU381","v":146},{"$f":"SQRT((AV378^2)+(AV379^2)+(AV380^2)+(AV381^2))","v":179.71366113904642},{"$f":"AW378+AW379+AW380+AW381","v":33},{"$f":"SQRT((AX378^2)+(AX379^2)+(AX380^2)+(AX381^2))","v":165.53247415537533},{"$f":"AY378+AY379+AY380+AY381","v":45},{"$f":"SQRT((AZ378^2)+(AZ379^2)+(AZ380^2)+(AZ381^2))","v":169.94705057752546},{"$f":"BA378+BA379+BA380+BA381","v":7},{"$f":"SQRT((BB378^2)+(BB379^2)+(BB380^2)+(BB381^2))","v":197.81809826201444},{"$f":"BC378+BC379+BC380+BC381","v":46},{"$f":"SQRT((BD378^2)+(BD379^2)+(BD380^2)+(BD381^2))","v":209.83088428541686},{"$f":"BE378+BE379+BE380+BE381","v":15},{"$f":"SQRT((BF378^2)+(BF379^2)+(BF380^2)+(BF381^2))","v":198.78883268433364},{"$f":"BG378+BG379+BG380+BG381","v":527},{"$f":"SQRT((BH378^2)+(BH379^2)+(BH380^2)+(BH381^2))","v":216.19898242128707},{"$f":"BI378+BI379+BI380+BI381","v":10},{"$f":"SQRT((BJ378^2)+(BJ379^2)+(BJ380^2)+(BJ381^2))","v":198.10098434889213},{"$f":"BK378+BK379+BK380+BK381","v":29},{"$f":"SQRT((BL378^2)+(BL379^2)+(BL380^2)+(BL381^2))","v":200.35967658189111},{"$f":"BM378+BM379+BM380+BM381","v":200},{"$f":"SQRT((BN378^2)+(BN379^2)+(BN380^2)+(BN381^2))","v":238.62941981239447},{"$f":"BO378+BO379+BO380+BO381","v":8},{"$f":"SQRT((BP378^2)+(BP379^2)+(BP380^2)+(BP381^2))","v":197.88127753782064},{"$f":"BQ378+BQ379+BQ380+BQ381","v":10},{"$f":"SQRT((BR378^2)+(BR379^2)+(BR380^2)+(BR381^2))","v":198.18425769974769},{"$f":"BS378+BS379+BS380+BS381","v":0},{"$f":"SQRT((BT378^2)+(BT379^2)+(BT380^2)+(BT381^2))","v":228},{"$f":"BU378+BU379+BU380+BU381","v":53},{"$f":"SQRT((BV378^2)+(BV379^2)+(BV380^2)+(BV381^2))","v":203.93381279228808},{"$f":"BW378+BW379+BW380+BW381","v":69},{"$f":"SQRT((BX378^2)+(BX379^2)+(BX380^2)+(BX381^2))","v":204.97072961767003}]
[null,"35.0 percent or more",{"$f":"C382","v":0},114,0,114,0,114,0,114,0,114,0,114,0,114,0,114,0,114,0,114,22,26,0,114,0,114,0,114,0,114,0,114,{"$f":"AI382","v":0},114,0,114,0,114,0,114,0,114,0,114,0,114,0,114,0,114,0,114,0,114,0,114,0,114,0,114,0,114,0,114,{"$f":"BO382","v":0},114,0,114,0,114,0,114,0,114]
[null,"Not Computed",{"$f":"C383","v":0},114,0,114,0,114,0,114,0,114,0,114,0,114,0,114,0,114,14,22,63,46,0,114,0,114,0,114,16,18,4,5,{"$f":"AI383","v":0},114,0,114,0,114,0,114,0,114,0,114,0,114,12,18,0,114,0,114,0,114,0,114,0,114,0,114,0,114,24,29,{"$f":"BO383","v":0},114,0,114,0,114,0,114,0,114]
[]
[]
[null,"Calculated GROSS RENT AS A PERCENTAGE OF HOUSEHOLD INCOME IN THE PAST 12 MONTHS"]
[null,"Universe:  RENTER OCCUPIED HOUSING UNITS"]
[null,"Data Set: 2005-2009 American Community Survey 5-Year Estimates"]
[]
[null,null,"Atkinson",null,"Auburn",null,"Brentwood",null,"Candia",null,"Chester",null,"Danville",null,"Deerfield",null,"Derry",null,"East Kingston",null,"Epping",null,"Exeter",null,"Fremont",null,"Greenland",null,"Hampstead",null,"Hampton",null,"Hampton Falls",null,"Kensington",null,"Kingston",null,"Londonderry",null,"New Castle",null,"Newfields",null,"Newington",null,"Newmarket",null,"Newton",null,"North Hampton",null,"Northwood",null,"Nottingham",null,"Plaistow",null,"Portsmouth",null,"Raymond",null,"Rye",null,"Salem",null,"Sandown",null,"Seabrook",null,"South Hampton",null,"Stratham",null,"Windham"]
[null," ","Estimate","Margin Of Error","Estimate","Margin Of Error","Estimate","Margin Of Error","Estimate","Margin Of Error","Estimate","Margin Of Error","Estimate","Margin Of Error","Estimate","Margin Of Error","Estimate","Margin Of Error","Estimate","Margin Of Error","Estimate","Margin Of Error","Estimate","Margin Of Error","Estimate","Margin Of Error","Estimate","Margin Of Error","Estimate","Margin Of Error","Estimate","Margin Of Error","Estimate","Margin Of Error","Estimate","Margin Of Error","Estimate","Margin Of Error","Estimate","Margin Of Error","Estimate","Margin Of Error","Estimate","Margin Of Error","Estimate","Margin Of Error","Estimate","Margin Of Error","Estimate","Margin Of Error","Estimate","Margin Of Error","Estimate","Margin Of Error","Estimate","Margin Of Error","Estimate","Margin Of Error","Estimate","Margin Of Error","Estimate","Margin Of Error","Estimate","Margin Of Error","Estimate","Margin Of Error","Estimate","Margin Of Error","Estimate","Margin Of Error","Estimate","Margin Of Error","Estimate","Margin Of Error","Estimate","Margin Of Error"]
[null,"Total:",{"$f":"C435","v":402},127,109,92,38,27,69,53,9,14,123,80,186,89,3846,312,60,27,347,145,1907,282,107,58,159,81,547,137,2066,208,76,33,43,23,160,86,827,194,41,29,31,24,57,31,1613,206,225,91,280,103,251,88,163,90,573,170,4507,293,619,154,359,135,2287,{"$f":"BN435","v":261},211,101,1160,200,33,30,177,114,276,108]
[null,"Less than 30.0 percent",{"$f":"C473+C467+C461+C455+C449+C443+C437","v":136},{"$f":"SQRT((D473^2)+(D467^2)+(D461^2)+(D455^2)+(D449^2)+(D443^2)+(D437^2))","v":511.86326299120157},{"$f":"E473+E467+E461+E455+E449+E443+E437","v":40},{"$f":"SQRT((F473^2)+(F467^2)+(F461^2)+(F455^2)+(F449^2)+(F443^2)+(F437^2))","v":513.22607104472002},{"$f":"G473+G467+G461+G455+G449+G443+G437","v":27},{"$f":"SQRT((H473^2)+(H467^2)+(H461^2)+(H455^2)+(H449^2)+(H443^2)+(H437^2))","v":456.85227371657021},{"$f":"I473+I467+I461+I455+I449+I443+I437","v":10},{"$f":"SQRT((J473^2)+(J467^2)+(J461^2)+(J455^2)+(J449^2)+(J443^2)+(J437^2))","v":510.07450436186281},{"$f":"K473+K467+K461+K455+K449+K443+K437","v":0},{"$f":"SQRT((L473^2)+(L467^2)+(L461^2)+(L455^2)+(L449^2)+(L443^2)+(L437^2))","v":522.4136292249658},{"$f":"M473+M467+M461+M455+M449+M443+M437","v":42},{"$f":"SQRT((N473^2)+(N467^2)+(N461^2)+(N455^2)+(N449^2)+(N443^2)+(N437^2))","v":512.17282239494125},{"$f":"O473+O467+O461+O455+O449+O443+O437","v":58},{"$f":"SQRT((P473^2)+(P467^2)+(P461^2)+(P455^2)+(P449^2)+(P443^2)+(P437^2))","v":444.72688247957308},{"$f":"Q473+Q467+Q461+Q455+Q449+Q443+Q437","v":1932},{"$f":"SQRT((R473^2)+(R467^2)+(R461^2)+(R455^2)+(R449^2)+(R443^2)+(R437^2))","v":377.45595769572907},{"$f":"S473+S467+S461+S455+S449+S443+S437","v":28},{"$f":"SQRT((T473^2)+(T467^2)+(T461^2)+(T455^2)+(T449^2)+(T443^2)+(T437^2))","v":483.91734831477163},{"$f":"U473+U467+U461+U455+U449+U443+U437","v":207},{"$f":"SQRT((V473^2)+(V467^2)+(V461^2)+(V455^2)+(V449^2)+(V443^2)+(V437^2))","v":454.65701358276658},{"$f":"W473+W467+W461+W455+W449+W443+W437","v":705},{"$f":"SQRT((X473^2)+(X467^2)+(X461^2)+(X455^2)+(X449^2)+(X443^2)+(X437^2))","v":373.35104124670659},{"$f":"Y473+Y467+Y461+Y455+Y449+Y443+Y437","v":84},{"$f":"SQRT((Z473^2)+(Z467^2)+(Z461^2)+(Z455^2)+(Z449^2)+(Z443^2)+(Z437^2))","v":460.18583202875772},{"$f":"AA473+AA467+AA461+AA455+AA449+AA443+AA437","v":105},{"$f":"SQRT((AB473^2)+(AB467^2)+(AB461^2)+(AB455^2)+(AB449^2)+(AB443^2)+(AB437^2))","v":477.77819121429138},{"$f":"AC473+AC467+AC461+AC455+AC449+AC443+AC437","v":229},{"$f":"SQRT((AD473^2)+(AD467^2)+(AD461^2)+(AD455^2)+(AD449^2)+(AD443^2)+(AD437^2))","v":451.87608921030551},{"$f":"AE473+AE467+AE461+AE455+AE449+AE443+AE437","v":941},{"$f":"SQRT((AF473^2)+(AF467^2)+(AF461^2)+(AF455^2)+(AF449^2)+(AF443^2)+(AF437^2))","v":370.85711534228381},{"$f":"AG473+AG467+AG461+AG455+AG449+AG443+AG437","v":29},{"$f":"SQRT((AH473^2)+(AH467^2)+(AH461^2)+(AH455^2)+(AH449^2)+(AH443^2)+(AH437^2))","v":456.45700783315834},{"$f":"AI473+AI467+AI461+AI455+AI449+AI443+AI437","v":19},{"$f":"SQRT((AJ473^2)+(AJ467^2)+(AJ461^2)+(AJ455^2)+(AJ449^2)+(AJ443^2)+(AJ437^2))","v":470.13083285400461},{"$f":"AK473+AK467+AK461+AK455+AK449+AK443+AK437","v":42},{"$f":"SQRT((AL473^2)+(AL467^2)+(AL461^2)+(AL455^2)+(AL449^2)+(AL443^2)+(AL437^2))","v":499.07614649470077},{"$f":"AM473+AM467+AM461+AM455+AM449+AM443+AM437","v":433},{"$f":"SQRT((AN473^2)+(AN467^2)+(AN461^2)+(AN455^2)+(AN449^2)+(AN443^2)+(AN437^2))","v":380.76501940173023},{"$f":"AO473+AO467+AO461+AO455+AO449+AO443+AO437","v":41},{"$f":"SQRT((AP473^2)+(AP467^2)+(AP461^2)+(AP455^2)+(AP449^2)+(AP443^2)+(AP437^2))","v":470.7929481205087},{"$f":"AQ473+AQ467+AQ461+AQ455+AQ449+AQ443+AQ437","v":7},{"$f":"SQRT((AR473^2)+(AR467^2)+(AR461^2)+(AR455^2)+(AR449^2)+(AR443^2)+(AR437^2))","v":509.88626182708629},{"$f":"AS473+AS467+AS461+AS455+AS449+AS443+AS437","v":26},{"$f":"SQRT((AT473^2)+(AT467^2)+(AT461^2)+(AT455^2)+(AT449^2)+(AT443^2)+(AT437^2))","v":441.79859664783908},{"$f":"AU473+AU467+AU461+AU455+AU449+AU443+AU437","v":857},{"$f":"SQRT((AV473^2)+(AV467^2)+(AV461^2)+(AV455^2)+(AV449^2)+(AV443^2)+(AV437^2))","v":409.74870347567912},{"$f":"AW473+AW467+AW461+AW455+AW449+AW443+AW437","v":104},{"$f":"SQRT((AX473^2)+(AX467^2)+(AX461^2)+(AX455^2)+(AX449^2)+(AX443^2)+(AX437^2))","v":446.82770728771959},{"$f":"AY473+AY467+AY461+AY455+AY449+AY443+AY437","v":167},{"$f":"SQRT((AZ473^2)+(AZ467^2)+(AZ461^2)+(AZ455^2)+(AZ449^2)+(AZ443^2)+(AZ437^2))","v":423.18199394586719},{"$f":"BA473+BA467+BA461+BA455+BA449+BA443+BA437","v":164},{"$f":"SQRT((BB473^2)+(BB467^2)+(BB461^2)+(BB455^2)+(BB449^2)+(BB443^2)+(BB437^2))","v":437.60712974082128},{"$f":"BC473+BC467+BC461+BC455+BC449+BC443+BC437","v":122},{"$f":"SQRT((BD473^2)+(BD467^2)+(BD461^2)+(BD455^2)+(BD449^2)+(BD443^2)+(BD437^2))","v":479.56959870283686},{"$f":"BE473+BE467+BE461+BE455+BE449+BE443+BE437","v":309},{"$f":"SQRT((BF473^2)+(BF467^2)+(BF461^2)+(BF455^2)+(BF449^2)+(BF443^2)+(BF437^2))","v":480.16143118747055},{"$f":"BG473+BG467+BG461+BG455+BG449+BG443+BG437","v":2248},{"$f":"SQRT((BH473^2)+(BH467^2)+(BH461^2)+(BH455^2)+(BH449^2)+(BH443^2)+(BH437^2))","v":358.50941410233565},{"$f":"BI473+BI467+BI461+BI455+BI449+BI443+BI437","v":342},{"$f":"SQRT((BJ473^2)+(BJ467^2)+(BJ461^2)+(BJ455^2)+(BJ449^2)+(BJ443^2)+(BJ437^2))","v":429.25283924512371},{"$f":"BK473+BK467+BK461+BK455+BK449+BK443+BK437","v":181},{"$f":"SQRT((BL473^2)+(BL467^2)+(BL461^2)+(BL455^2)+(BL449^2)+(BL443^2)+(BL437^2))","v":468.20721908146612},{"$f":"BM473+BM467+BM461+BM455+BM449+BM443+BM437","v":1316},{"$f":"SQRT((BN473^2)+(BN467^2)+(BN461^2)+(BN455^2)+(BN449^2)+(BN443^2)+(BN437^2))","v":406.10835992380163},{"$f":"BO473+BO467+BO461+BO455+BO449+BO443+BO437","v":84},{"$f":"SQRT((BP473^2)+(BP467^2)+(BP461^2)+(BP455^2)+(BP449^2)+(BP443^2)+(BP437^2))","v":461.16591374471727},{"$f":"BQ473+BQ467+BQ461+BQ455+BQ449+BQ443+BQ437","v":508},{"$f":"SQRT((BR473^2)+(BR467^2)+(BR461^2)+(BR455^2)+(BR449^2)+(BR443^2)+(BR437^2))","v":426.34727629011542},{"$f":"BS473+BS467+BS461+BS455+BS449+BS443+BS437","v":25},{"$f":"SQRT((BT473^2)+(BT467^2)+(BT461^2)+(BT455^2)+(BT449^2)+(BT443^2)+(BT437^2))","v":497.83531413510633},{"$f":"BU473+BU467+BU461+BU455+BU449+BU443+BU437","v":81},{"$f":"SQRT((BV473^2)+(BV467^2)+(BV461^2)+(BV455^2)+(BV449^2)+(BV443^2)+(BV437^2))","v":501.54760491901465},{"$f":"BW473+BW467+BW461+BW455+BW449+BW443+BW437","v":136},{"$f":"SQRT((BX473^2)+(BX467^2)+(BX461^2)+(BX455^2)+(BX449^2)+(BX443^2)+(BX437^2))","v":451.57169973327603}]
[null,"More than 30.0 percent",{"$f":"C474+C468+C462+C456+C450+C444+C438","v":251},{"$f":"SQRT((D474^2)+(D468^2)+(D462^2)+(D456^2)+(D450^2)+(D444^2)+(D438^2))","v":394.79361696967698},{"$f":"E474+E468+E462+E456+E450+E444+E438","v":69},{"$f":"SQRT((F474^2)+(F468^2)+(F462^2)+(F456^2)+(F450^2)+(F444^2)+(F438^2))","v":385.08700315642955},{"$f":"G474+G468+G462+G456+G450+G444+G438","v":11},{"$f":"SQRT((H474^2)+(H468^2)+(H462^2)+(H456^2)+(H450^2)+(H444^2)+(H438^2))","v":395.06961411882844},{"$f":"I474+I468+I462+I456+I450+I444+I438","v":59},{"$f":"SQRT((J474^2)+(J468^2)+(J462^2)+(J456^2)+(J450^2)+(J444^2)+(J438^2))","v":398.54359861877094},{"$f":"K474+K468+K462+K456+K450+K444+K438","v":0},{"$f":"SQRT((L474^2)+(L468^2)+(L462^2)+(L456^2)+(L450^2)+(L444^2)+(L438^2))","v":426.54894209222931},{"$f":"M474+M468+M462+M456+M450+M444+M438","v":39},{"$f":"SQRT((N474^2)+(N468^2)+(N462^2)+(N456^2)+(N450^2)+(N444^2)+(N438^2))","v":397.82659539050428},{"$f":"O474+O468+O462+O456+O450+O444+O438","v":111},{"$f":"SQRT((P474^2)+(P468^2)+(P462^2)+(P456^2)+(P450^2)+(P444^2)+(P438^2))","v":369.5375488363801},{"$f":"Q474+Q468+Q462+Q456+Q450+Q444+Q438","v":1790},{"$f":"SQRT((R474^2)+(R468^2)+(R462^2)+(R456^2)+(R450^2)+(R444^2)+(R438^2))","v":404.55283956487068},{"$f":"S474+S468+S462+S456+S450+S444+S438","v":20},{"$f":"SQRT((T474^2)+(T468^2)+(T462^2)+(T456^2)+(T450^2)+(T444^2)+(T438^2))","v":360.93628246547894},{"$f":"U474+U468+U462+U456+U450+U444+U438","v":64},{"$f":"SQRT((V474^2)+(V468^2)+(V462^2)+(V456^2)+(V450^2)+(V444^2)+(V438^2))","v":398.99122797374883},{"$f":"W474+W468+W462+W456+W450+W444+W438","v":1007},{"$f":"SQRT((X474^2)+(X468^2)+(X462^2)+(X456^2)+(X450^2)+(X444^2)+(X438^2))","v":351.49395442880666},{"$f":"Y474+Y468+Y462+Y456+Y450+Y444+Y438","v":23},{"$f":"SQRT((Z474^2)+(Z468^2)+(Z462^2)+(Z456^2)+(Z450^2)+(Z444^2)+(Z438^2))","v":395.78908524616998},{"$f":"AA474+AA468+AA462+AA456+AA450+AA444+AA438","v":23},{"$f":"SQRT((AB474^2)+(AB468^2)+(AB462^2)+(AB456^2)+(AB450^2)+(AB444^2)+(AB438^2))","v":395.6880084106669},{"$f":"AC474+AC468+AC462+AC456+AC450+AC444+AC438","v":318},{"$f":"SQRT((AD474^2)+(AD468^2)+(AD462^2)+(AD456^2)+(AD450^2)+(AD444^2)+(AD438^2))","v":361.49412166728246},{"$f":"AE474+AE468+AE462+AE456+AE450+AE444+AE438","v":1000},{"$f":"SQRT((AF474^2)+(AF468^2)+(AF462^2)+(AF456^2)+(AF450^2)+(AF444^2)+(AF438^2))","v":385.69936479076551},{"$f":"AG474+AG468+AG462+AG456+AG450+AG444+AG438","v":32},{"$f":"SQRT((AH474^2)+(AH468^2)+(AH462^2)+(AH456^2)+(AH450^2)+(AH444^2)+(AH438^2))","v":342.85273806694323},{"$f":"AI474+AI468+AI462+AI456+AI450+AI444+AI438","v":19},{"$f":"SQRT((AJ474^2)+(AJ468^2)+(AJ462^2)+(AJ456^2)+(AJ450^2)+(AJ444^2)+(AJ438^2))","v":378.618541542804},{"$f":"AK474+AK468+AK462+AK456+AK450+AK444+AK438","v":104},{"$f":"SQRT((AL474^2)+(AL468^2)+(AL462^2)+(AL456^2)+(AL450^2)+(AL444^2)+(AL438^2))","v":387.17696212455616},{"$f":"AM474+AM468+AM462+AM456+AM450+AM444+AM438","v":347},{"$f":"SQRT((AN474^2)+(AN468^2)+(AN462^2)+(AN456^2)+(AN450^2)+(AN444^2)+(AN438^2))","v":355.33364602863037},{"$f":"AO474+AO468+AO462+AO456+AO450+AO444+AO438","v":0},{"$f":"SQRT((AP474^2)+(AP468^2)+(AP462^2)+(AP456^2)+(AP450^2)+(AP444^2)+(AP438^2))","v":426.54894209222931},{"$f":"AQ474+AQ468+AQ462+AQ456+AQ450+AQ444+AQ438","v":20},{"$f":"SQRT((AR474^2)+(AR468^2)+(AR462^2)+(AR456^2)+(AR450^2)+(AR444^2)+(AR438^2))","v":395.44405419730361},{"$f":"AS474+AS468+AS462+AS456+AS450+AS444+AS438","v":27},{"$f":"SQRT((AT474^2)+(AT468^2)+(AT462^2)+(AT456^2)+(AT450^2)+(AT444^2)+(AT438^2))","v":378.8178982044011},{"$f":"AU474+AU468+AU462+AU456+AU450+AU444+AU438","v":738},{"$f":"SQRT((AV474^2)+(AV468^2)+(AV462^2)+(AV456^2)+(AV450^2)+(AV444^2)+(AV438^2))","v":331.21594164532598},{"$f":"AW474+AW468+AW462+AW456+AW450+AW444+AW438","v":98},{"$f":"SQRT((AX474^2)+(AX468^2)+(AX462^2)+(AX456^2)+(AX450^2)+(AX444^2)+(AX438^2))","v":367.82604584232479},{"$f":"AY474+AY468+AY462+AY456+AY450+AY444+AY438","v":94},{"$f":"SQRT((AZ474^2)+(AZ468^2)+(AZ462^2)+(AZ456^2)+(AZ450^2)+(AZ444^2)+(AZ438^2))","v":347.31829781916184},{"$f":"BA474+BA468+BA462+BA456+BA450+BA444+BA438","v":79},{"$f":"SQRT((BB474^2)+(BB468^2)+(BB462^2)+(BB456^2)+(BB450^2)+(BB444^2)+(BB438^2))","v":345.87136337083473},{"$f":"BC474+BC468+BC462+BC456+BC450+BC444+BC438","v":21},{"$f":"SQRT((BD474^2)+(BD468^2)+(BD462^2)+(BD456^2)+(BD450^2)+(BD444^2)+(BD438^2))","v":395.60207279537855},{"$f":"BE474+BE468+BE462+BE456+BE450+BE444+BE438","v":197},{"$f":"SQRT((BF474^2)+(BF468^2)+(BF462^2)+(BF456^2)+(BF450^2)+(BF444^2)+(BF438^2))","v":359.43427771986353},{"$f":"BG474+BG468+BG462+BG456+BG450+BG444+BG438","v":2130},{"$f":"SQRT((BH474^2)+(BH468^2)+(BH462^2)+(BH456^2)+(BH450^2)+(BH444^2)+(BH438^2))","v":376.28446685984795},{"$f":"BI474+BI468+BI462+BI456+BI450+BI444+BI438","v":171},{"$f":"SQRT((BJ474^2)+(BJ468^2)+(BJ462^2)+(BJ456^2)+(BJ450^2)+(BJ444^2)+(BJ438^2))","v":392.0675962126939},{"$f":"BK474+BK468+BK462+BK456+BK450+BK444+BK438","v":130},{"$f":"SQRT((BL474^2)+(BL468^2)+(BL462^2)+(BL456^2)+(BL450^2)+(BL444^2)+(BL438^2))","v":349.35798259092348},{"$f":"BM474+BM468+BM462+BM456+BM450+BM444+BM438","v":877},{"$f":"SQRT((BN474^2)+(BN468^2)+(BN462^2)+(BN456^2)+(BN450^2)+(BN444^2)+(BN438^2))","v":313.07666792656397},{"$f":"BO474+BO468+BO462+BO456+BO450+BO444+BO438","v":118},{"$f":"SQRT((BP474^2)+(BP468^2)+(BP462^2)+(BP456^2)+(BP450^2)+(BP444^2)+(BP438^2))","v":348.62300555184248},{"$f":"BQ474+BQ468+BQ462+BQ456+BQ450+BQ444+BQ438","v":577},{"$f":"SQRT((BR474^2)+(BR468^2)+(BR462^2)+(BR456^2)+(BR450^2)+(BR444^2)+(BR438^2))","v":330.2756424564185},{"$f":"BS474+BS468+BS462+BS456+BS450+BS444+BS438","v":8},{"$f":"SQRT((BT474^2)+(BT468^2)+(BT462^2)+(BT456^2)+(BT450^2)+(BT444^2)+(BT438^2))","v":378.14944135883633},{"$f":"BU474+BU468+BU462+BU456+BU450+BU444+BU438","v":96},{"$f":"SQRT((BV474^2)+(BV468^2)+(BV462^2)+(BV456^2)+(BV450^2)+(BV444^2)+(BV438^2))","v":388.0128863839447},{"$f":"BW474+BW468+BW462+BW456+BW450+BW444+BW438","v":128},{"$f":"SQRT((BX474^2)+(BX468^2)+(BX462^2)+(BX456^2)+(BX450^2)+(BX444^2)+(BX438^2))","v":370.2931271303857}]
[null,"Less Than 35% of HH Income",{"$f":"C475+C469+C463+C457+C451+C445+C439","v":136},{"$f":"SQRT((D475^2)+(D469^2)+(D463^2)+(D457^2)+(D451^2)+(D445^2)+(D439^2))","v":594.11783343037268},{"$f":"E475+E469+E463+E457+E451+E445+E439","v":57},{"$f":"SQRT((F475^2)+(F469^2)+(F463^2)+(F457^2)+(F451^2)+(F445^2)+(F439^2))","v":584.94529658763815},{"$f":"G475+G469+G463+G457+G451+G445+G439","v":33},{"$f":"SQRT((H475^2)+(H469^2)+(H463^2)+(H457^2)+(H451^2)+(H445^2)+(H439^2))","v":547.43584098960855},{"$f":"I475+I469+I463+I457+I451+I445+I439","v":10},{"$f":"SQRT((J475^2)+(J469^2)+(J463^2)+(J457^2)+(J451^2)+(J445^2)+(J439^2))","v":592.57742110208687},{"$f":"K475+K469+K463+K457+K451+K445+K439","v":0},{"$f":"SQRT((L475^2)+(L469^2)+(L463^2)+(L457^2)+(L451^2)+(L445^2)+(L439^2))","v":603.23129892272664},{"$f":"M475+M469+M463+M457+M451+M445+M439","v":42},{"$f":"SQRT((N475^2)+(N469^2)+(N463^2)+(N457^2)+(N451^2)+(N445^2)+(N439^2))","v":583.59746401093969},{"$f":"O475+O469+O463+O457+O451+O445+O439","v":99},{"$f":"SQRT((P475^2)+(P469^2)+(P463^2)+(P457^2)+(P451^2)+(P445^2)+(P439^2))","v":525.4702655717067},{"$f":"Q475+Q469+Q463+Q457+Q451+Q445+Q439","v":2323},{"$f":"SQRT((R475^2)+(R469^2)+(R463^2)+(R457^2)+(R451^2)+(R445^2)+(R439^2))","v":433.94239249006313},{"$f":"S475+S469+S463+S457+S451+S445+S439","v":28},{"$f":"SQRT((T475^2)+(T469^2)+(T463^2)+(T457^2)+(T451^2)+(T445^2)+(T439^2))","v":558.88102490601705},{"$f":"U475+U469+U463+U457+U451+U445+U439","v":226},{"$f":"SQRT((V475^2)+(V469^2)+(V463^2)+(V457^2)+(V451^2)+(V445^2)+(V439^2))","v":524.24994039103137},{"$f":"W475+W469+W463+W457+W451+W445+W439","v":826},{"$f":"SQRT((X475^2)+(X469^2)+(X463^2)+(X457^2)+(X451^2)+(X445^2)+(X439^2))","v":459.34300909015695},{"$f":"Y475+Y469+Y463+Y457+Y451+Y445+Y439","v":94},{"$f":"SQRT((Z475^2)+(Z469^2)+(Z463^2)+(Z457^2)+(Z451^2)+(Z445^2)+(Z439^2))","v":538.5192661363194},{"$f":"AA475+AA469+AA463+AA457+AA451+AA445+AA439","v":115},{"$f":"SQRT((AB475^2)+(AB469^2)+(AB463^2)+(AB457^2)+(AB451^2)+(AB445^2)+(AB439^2))","v":565.01681390910835},{"$f":"AC475+AC469+AC463+AC457+AC451+AC445+AC439","v":317},{"$f":"SQRT((AD475^2)+(AD469^2)+(AD463^2)+(AD457^2)+(AD451^2)+(AD445^2)+(AD439^2))","v":535.15698631336204},{"$f":"AE475+AE469+AE463+AE457+AE451+AE445+AE439","v":1094},{"$f":"SQRT((AF475^2)+(AF469^2)+(AF463^2)+(AF457^2)+(AF451^2)+(AF445^2)+(AF439^2))","v":455.53485047798483},{"$f":"AG475+AG469+AG463+AG457+AG451+AG445+AG439","v":38},{"$f":"SQRT((AH475^2)+(AH469^2)+(AH463^2)+(AH457^2)+(AH451^2)+(AH445^2)+(AH439^2))","v":535.28030040344288},{"$f":"AI475+AI469+AI463+AI457+AI451+AI445+AI439","v":23},{"$f":"SQRT((AJ475^2)+(AJ469^2)+(AJ463^2)+(AJ457^2)+(AJ451^2)+(AJ445^2)+(AJ439^2))","v":534.88596915604353},{"$f":"AK475+AK469+AK463+AK457+AK451+AK445+AK439","v":93},{"$f":"SQRT((AL475^2)+(AL469^2)+(AL463^2)+(AL457^2)+(AL451^2)+(AL445^2)+(AL439^2))","v":574.5241509284009},{"$f":"AM475+AM469+AM463+AM457+AM451+AM445+AM439","v":512},{"$f":"SQRT((AN475^2)+(AN469^2)+(AN463^2)+(AN457^2)+(AN451^2)+(AN445^2)+(AN439^2))","v":476.91403837589013},{"$f":"AO475+AO469+AO463+AO457+AO451+AO445+AO439","v":41},{"$f":"SQRT((AP475^2)+(AP469^2)+(AP463^2)+(AP457^2)+(AP451^2)+(AP445^2)+(AP439^2))","v":547.43584098960855},{"$f":"AQ475+AQ469+AQ463+AQ457+AQ451+AQ445+AQ439","v":7},{"$f":"SQRT((AR475^2)+(AR469^2)+(AR463^2)+(AR457^2)+(AR451^2)+(AR445^2)+(AR439^2))","v":592.41539480334234},{"$f":"AS475+AS469+AS463+AS457+AS451+AS445+AS439","v":26},{"$f":"SQRT((AT475^2)+(AT469^2)+(AT463^2)+(AT457^2)+(AT451^2)+(AT445^2)+(AT439^2))","v":534.93737951278001},{"$f":"AU475+AU469+AU463+AU457+AU451+AU445+AU439","v":1012},{"$f":"SQRT((AV475^2)+(AV469^2)+(AV463^2)+(AV457^2)+(AV451^2)+(AV445^2)+(AV439^2))","v":475.27781349438141},{"$f":"AW475+AW469+AW463+AW457+AW451+AW445+AW439","v":114},{"$f":"SQRT((AX475^2)+(AX469^2)+(AX463^2)+(AX457^2)+(AX451^2)+(AX445^2)+(AX439^2))","v":527.14988380914963},{"$f":"AY475+AY469+AY463+AY457+AY451+AY445+AY439","v":185},{"$f":"SQRT((AZ475^2)+(AZ469^2)+(AZ463^2)+(AZ457^2)+(AZ451^2)+(AZ445^2)+(AZ439^2))","v":507.20311513238954},{"$f":"BA475+BA469+BA463+BA457+BA451+BA445+BA439","v":172},{"$f":"SQRT((BB475^2)+(BB469^2)+(BB463^2)+(BB457^2)+(BB451^2)+(BB445^2)+(BB439^2))","v":531.48094979970824},{"$f":"BC475+BC469+BC463+BC457+BC451+BC445+BC439","v":133},{"$f":"SQRT((BD475^2)+(BD469^2)+(BD463^2)+(BD457^2)+(BD451^2)+(BD445^2)+(BD439^2))","v":555.23598586546962},{"$f":"BE475+BE469+BE463+BE457+BE451+BE445+BE439","v":323},{"$f":"SQRT((BF475^2)+(BF469^2)+(BF463^2)+(BF457^2)+(BF451^2)+(BF445^2)+(BF439^2))","v":555.93165047512809},{"$f":"BG475+BG469+BG463+BG457+BG451+BG445+BG439","v":2761},{"$f":"SQRT((BH475^2)+(BH469^2)+(BH463^2)+(BH457^2)+(BH451^2)+(BH445^2)+(BH439^2))","v":416.32679471780335},{"$f":"BI475+BI469+BI463+BI457+BI451+BI445+BI439","v":342},{"$f":"SQRT((BJ475^2)+(BJ469^2)+(BJ463^2)+(BJ457^2)+(BJ451^2)+(BJ445^2)+(BJ439^2))","v":517.40699647376243},{"$f":"BK475+BK469+BK463+BK457+BK451+BK445+BK439","v":208},{"$f":"SQRT((BL475^2)+(BL469^2)+(BL463^2)+(BL457^2)+(BL451^2)+(BL445^2)+(BL439^2))","v":534.69430518755291},{"$f":"BM475+BM469+BM463+BM457+BM451+BM445+BM439","v":1523},{"$f":"SQRT((BN475^2)+(BN469^2)+(BN463^2)+(BN457^2)+(BN451^2)+(BN445^2)+(BN439^2))","v":468.99680169485168},{"$f":"BO475+BO469+BO463+BO457+BO451+BO445+BO439","v":91},{"$f":"SQRT((BP475^2)+(BP469^2)+(BP463^2)+(BP457^2)+(BP451^2)+(BP445^2)+(BP439^2))","v":539.27636699562493},{"$f":"BQ475+BQ469+BQ463+BQ457+BQ451+BQ445+BQ439","v":599},{"$f":"SQRT((BR475^2)+(BR469^2)+(BR463^2)+(BR457^2)+(BR451^2)+(BR445^2)+(BR439^2))","v":479.79370566942623},{"$f":"BS475+BS469+BS463+BS457+BS451+BS445+BS439","v":25},{"$f":"SQRT((BT475^2)+(BT469^2)+(BT463^2)+(BT457^2)+(BT451^2)+(BT445^2)+(BT439^2))","v":582.07559646492655},{"$f":"BU475+BU469+BU463+BU457+BU451+BU445+BU439","v":125},{"$f":"SQRT((BV475^2)+(BV469^2)+(BV463^2)+(BV457^2)+(BV451^2)+(BV445^2)+(BV439^2))","v":577.82523309388284},{"$f":"BW475+BW469+BW463+BW457+BW451+BW445+BW439","v":172},{"$f":"SQRT((BX475^2)+(BX469^2)+(BX463^2)+(BX457^2)+(BX451^2)+(BX445^2)+(BX439^2))","v":543.03683116341199}]
[null,"35.0 percent or more",{"$f":"C476+C470+C464+C458+C452+C446+C440","v":251},{"$f":"SQRT((D476^2)+(D470^2)+(D464^2)+(D458^2)+(D452^2)+(D446^2)+(D440^2))","v":254.73515658424535},{"$f":"E476+E470+E464+E458+E452+E446+E440","v":52},{"$f":"SQRT((F476^2)+(F470^2)+(F464^2)+(F458^2)+(F452^2)+(F446^2)+(F440^2))","v":263.68921100416679},{"$f":"G476+G470+G464+G458+G452+G446+G440","v":5},{"$f":"SQRT((H476^2)+(H470^2)+(H464^2)+(H458^2)+(H452^2)+(H446^2)+(H440^2))","v":279.3564031841762},{"$f":"I476+I470+I464+I458+I452+I446+I440","v":59},{"$f":"SQRT((J476^2)+(J470^2)+(J464^2)+(J458^2)+(J452^2)+(J446^2)+(J440^2))","v":260.50911692299752},{"$f":"K476+K470+K464+K458+K452+K446+K440","v":0},{"$f":"SQRT((L476^2)+(L470^2)+(L464^2)+(L458^2)+(L452^2)+(L446^2)+(L440^2))","v":301.61564946136332},{"$f":"M476+M470+M464+M458+M452+M446+M440","v":39},{"$f":"SQRT((N476^2)+(N470^2)+(N464^2)+(N458^2)+(N452^2)+(N446^2)+(N440^2))","v":259.41087101353327},{"$f":"O476+O470+O464+O458+O452+O446+O440","v":70},{"$f":"SQRT((P476^2)+(P470^2)+(P464^2)+(P458^2)+(P452^2)+(P446^2)+(P440^2))","v":264.42579299304373},{"$f":"Q476+Q470+Q464+Q458+Q452+Q446+Q440","v":1399},{"$f":"SQRT((R476^2)+(R470^2)+(R464^2)+(R458^2)+(R452^2)+(R446^2)+(R440^2))","v":338.62959114643246},{"$f":"S476+S470+S464+S458+S452+S446+S440","v":20},{"$f":"SQRT((T476^2)+(T470^2)+(T464^2)+(T458^2)+(T452^2)+(T446^2)+(T440^2))","v":198.24984237068134},{"$f":"U476+U470+U464+U458+U452+U446+U440","v":45},{"$f":"SQRT((V476^2)+(V470^2)+(V464^2)+(V458^2)+(V452^2)+(V446^2)+(V440^2))","v":283.50837730127131},{"$f":"W476+W470+W464+W458+W452+W446+W440","v":886},{"$f":"SQRT((X476^2)+(X470^2)+(X464^2)+(X458^2)+(X452^2)+(X446^2)+(X440^2))","v":226.92730113408567},{"$f":"Y476+Y470+Y464+Y458+Y452+Y446+Y440","v":13},{"$f":"SQRT((Z476^2)+(Z470^2)+(Z464^2)+(Z458^2)+(Z452^2)+(Z446^2)+(Z440^2))","v":280.03035549739963},{"$f":"AA476+AA470+AA464+AA458+AA452+AA446+AA440","v":13},{"$f":"SQRT((AB476^2)+(AB470^2)+(AB464^2)+(AB458^2)+(AB452^2)+(AB446^2)+(AB440^2))","v":279.88747739046846},{"$f":"AC476+AC470+AC464+AC458+AC452+AC446+AC440","v":230},{"$f":"SQRT((AD476^2)+(AD470^2)+(AD464^2)+(AD458^2)+(AD452^2)+(AD446^2)+(AD440^2))","v":241.53053637169774},{"$f":"AE476+AE470+AE464+AE458+AE452+AE446+AE440","v":847},{"$f":"SQRT((AF476^2)+(AF470^2)+(AF464^2)+(AF458^2)+(AF452^2)+(AF446^2)+(AF440^2))","v":291.57846285348307},{"$f":"AG476+AG470+AG464+AG458+AG452+AG446+AG440","v":23},{"$f":"SQRT((AH476^2)+(AH470^2)+(AH464^2)+(AH458^2)+(AH452^2)+(AH446^2)+(AH440^2))","v":198.4338680769994},{"$f":"AI476+AI470+AI464+AI458+AI452+AI446+AI440","v":15},{"$f":"SQRT((AJ476^2)+(AJ470^2)+(AJ464^2)+(AJ458^2)+(AJ452^2)+(AJ446^2)+(AJ440^2))","v":255.6169008496895},{"$f":"AK476+AK470+AK464+AK458+AK452+AK446+AK440","v":53},{"$f":"SQRT((AL476^2)+(AL470^2)+(AL464^2)+(AL458^2)+(AL452^2)+(AL446^2)+(AL440^2))","v":262.49761903682099},{"$f":"AM476+AM470+AM464+AM458+AM452+AM446+AM440","v":268},{"$f":"SQRT((AN476^2)+(AN470^2)+(AN464^2)+(AN458^2)+(AN452^2)+(AN446^2)+(AN440^2))","v":236.28795991332271},{"$f":"AO476+AO470+AO464+AO458+AO452+AO446+AO440","v":0},{"$f":"SQRT((AP476^2)+(AP470^2)+(AP464^2)+(AP458^2)+(AP452^2)+(AP446^2)+(AP440^2))","v":301.61564946136332},{"$f":"AQ476+AQ470+AQ464+AQ458+AQ452+AQ446+AQ440","v":20},{"$f":"SQRT((AR476^2)+(AR470^2)+(AR464^2)+(AR458^2)+(AR452^2)+(AR446^2)+(AR440^2))","v":255.74205755018082},{"$f":"AS476+AS470+AS464+AS458+AS452+AS446+AS440","v":27},{"$f":"SQRT((AT476^2)+(AT470^2)+(AT464^2)+(AT458^2)+(AT452^2)+(AT446^2)+(AT440^2))","v":229.19642231064603},{"$f":"AU476+AU470+AU464+AU458+AU452+AU446+AU440","v":583},{"$f":"SQRT((AV476^2)+(AV470^2)+(AV464^2)+(AV458^2)+(AV452^2)+(AV446^2)+(AV440^2))","v":226.48178734723902},{"$f":"AW476+AW470+AW464+AW458+AW452+AW446+AW440","v":88},{"$f":"SQRT((AX476^2)+(AX470^2)+(AX464^2)+(AX458^2)+(AX452^2)+(AX446^2)+(AX440^2))","v":238.88072337465826},{"$f":"AY476+AY470+AY464+AY458+AY452+AY446+AY440","v":76},{"$f":"SQRT((AZ476^2)+(AZ470^2)+(AZ464^2)+(AZ458^2)+(AZ452^2)+(AZ446^2)+(AZ440^2))","v":235.00851048419503},{"$f":"BA476+BA470+BA464+BA458+BA452+BA446+BA440","v":71},{"$f":"SQRT((BB476^2)+(BB470^2)+(BB464^2)+(BB458^2)+(BB452^2)+(BB446^2)+(BB440^2))","v":203.67130382064136},{"$f":"BC476+BC470+BC464+BC458+BC452+BC446+BC440","v":10},{"$f":"SQRT((BD476^2)+(BD470^2)+(BD464^2)+(BD458^2)+(BD452^2)+(BD446^2)+(BD440^2))","v":279.64441707282481},{"$f":"BE476+BE470+BE464+BE458+BE452+BE446+BE440","v":183},{"$f":"SQRT((BF476^2)+(BF470^2)+(BF464^2)+(BF458^2)+(BF452^2)+(BF446^2)+(BF440^2))","v":225.13995647152461},{"$f":"BG476+BG470+BG464+BG458+BG452+BG446+BG440","v":1617},{"$f":"SQRT((BH476^2)+(BH470^2)+(BH464^2)+(BH458^2)+(BH452^2)+(BH446^2)+(BH440^2))","v":299.55800773806732},{"$f":"BI476+BI470+BI464+BI458+BI452+BI446+BI440","v":171},{"$f":"SQRT((BJ476^2)+(BJ470^2)+(BJ464^2)+(BJ458^2)+(BJ452^2)+(BJ446^2)+(BJ440^2))","v":250.4895207388924},{"$f":"BK476+BK470+BK464+BK458+BK452+BK446+BK440","v":103},{"$f":"SQRT((BL476^2)+(BL470^2)+(BL464^2)+(BL458^2)+(BL452^2)+(BL446^2)+(BL440^2))","v":207.48734901193373},{"$f":"BM476+BM470+BM464+BM458+BM452+BM446+BM440","v":670},{"$f":"SQRT((BN476^2)+(BN470^2)+(BN464^2)+(BN458^2)+(BN452^2)+(BN446^2)+(BN440^2))","v":219.74303174389854},{"$f":"BO476+BO470+BO464+BO458+BO452+BO446+BO440","v":111},{"$f":"SQRT((BP476^2)+(BP470^2)+(BP464^2)+(BP458^2)+(BP452^2)+(BP446^2)+(BP440^2))","v":208.30986534487511},{"$f":"BQ476+BQ470+BQ464+BQ458+BQ452+BQ446+BQ440","v":486},{"$f":"SQRT((BR476^2)+(BR470^2)+(BR464^2)+(BR458^2)+(BR452^2)+(BR446^2)+(BR440^2))","v":260.25372235570427},{"$f":"BS476+BS470+BS464+BS458+BS452+BS446+BS440","v":8},{"$f":"SQRT((BT476^2)+(BT470^2)+(BT464^2)+(BT458^2)+(BT452^2)+(BT446^2)+(BT440^2))","v":228.08989455914087},{"$f":"BU476+BU470+BU464+BU458+BU452+BU446+BU440","v":52},{"$f":"SQRT((BV476^2)+(BV470^2)+(BV464^2)+(BV458^2)+(BV452^2)+(BV446^2)+(BV440^2))","v":261.19341492464929},{"$f":"BW476+BW470+BW464+BW458+BW452+BW446+BW440","v":92},{"$f":"SQRT((BX476^2)+(BX470^2)+(BX464^2)+(BX458^2)+(BX452^2)+(BX446^2)+(BX440^2))","v":237.11811402758752}]
[null,"Not Computed",{"$f":"C477+C471+C465+C459+C453+C447+C441","v":15},{"$f":"SQRT((D477^2)+(D471^2)+(D465^2)+(D459^2)+(D453^2)+(D447^2)+(D441^2))","v":280.35869881278876},{"$f":"E477+E471+E465+E459+E453+E447+E441","v":0},{"$f":"SQRT((F477^2)+(F471^2)+(F465^2)+(F459^2)+(F453^2)+(F447^2)+(F441^2))","v":301.61564946136332},{"$f":"G477+G471+G465+G459+G453+G447+G441","v":0},{"$f":"SQRT((H477^2)+(H471^2)+(H465^2)+(H459^2)+(H453^2)+(H447^2)+(H441^2))","v":301.61564946136332},{"$f":"I477+I471+I465+I459+I453+I447+I441","v":0},{"$f":"SQRT((J477^2)+(J471^2)+(J465^2)+(J459^2)+(J453^2)+(J447^2)+(J441^2))","v":301.61564946136332},{"$f":"K477+K471+K465+K459+K453+K447+K441","v":9},{"$f":"SQRT((L477^2)+(L471^2)+(L465^2)+(L459^2)+(L453^2)+(L447^2)+(L441^2))","v":279.59256070217606},{"$f":"M477+M471+M465+M459+M453+M447+M441","v":42},{"$f":"SQRT((N477^2)+(N471^2)+(N465^2)+(N459^2)+(N453^2)+(N447^2)+(N441^2))","v":284.04225037835482},{"$f":"O477+O471+O465+O459+O453+O447+O441","v":17},{"$f":"SQRT((P477^2)+(P471^2)+(P465^2)+(P459^2)+(P453^2)+(P447^2)+(P441^2))","v":255.57777681167821},{"$f":"Q477+Q471+Q465+Q459+Q453+Q447+Q441","v":124},{"$f":"SQRT((R477^2)+(R471^2)+(R465^2)+(R459^2)+(R453^2)+(R447^2)+(R441^2))","v":133.58143583597237},{"$f":"S477+S471+S465+S459+S453+S447+S441","v":12},{"$f":"SQRT((T477^2)+(T471^2)+(T465^2)+(T459^2)+(T453^2)+(T447^2)+(T441^2))","v":197.6942083117257},{"$f":"U477+U471+U465+U459+U453+U447+U441","v":76},{"$f":"SQRT((V477^2)+(V471^2)+(V465^2)+(V459^2)+(V453^2)+(V447^2)+(V441^2))","v":240.7903652557552},{"$f":"W477+W471+W465+W459+W453+W447+W441","v":195},{"$f":"SQRT((X477^2)+(X471^2)+(X465^2)+(X459^2)+(X453^2)+(X447^2)+(X441^2))","v":87.19518335321051},{"$f":"Y477+Y471+Y465+Y459+Y453+Y447+Y441","v":0},{"$f":"SQRT((Z477^2)+(Z471^2)+(Z465^2)+(Z459^2)+(Z453^2)+(Z447^2)+(Z441^2))","v":301.61564946136332},{"$f":"AA477+AA471+AA465+AA459+AA453+AA447+AA441","v":31},{"$f":"SQRT((AB477^2)+(AB471^2)+(AB465^2)+(AB459^2)+(AB453^2)+(AB447^2)+(AB441^2))","v":229.68021246942453},{"$f":"AC477+AC471+AC465+AC459+AC453+AC447+AC441","v":0},{"$f":"SQRT((AD477^2)+(AD471^2)+(AD465^2)+(AD459^2)+(AD453^2)+(AD447^2)+(AD441^2))","v":301.61564946136332},{"$f":"AE477+AE471+AE465+AE459+AE453+AE447+AE441","v":125},{"$f":"SQRT((AF477^2)+(AF471^2)+(AF465^2)+(AF459^2)+(AF453^2)+(AF447^2)+(AF441^2))","v":175.98011251274957},{"$f":"AG477+AG471+AG465+AG459+AG453+AG447+AG441","v":15},{"$f":"SQRT((AH477^2)+(AH471^2)+(AH465^2)+(AH459^2)+(AH453^2)+(AH447^2)+(AH441^2))","v":161.52399202595259},{"$f":"AI477+AI471+AI465+AI459+AI453+AI447+AI441","v":5},{"$f":"SQRT((AJ477^2)+(AJ471^2)+(AJ465^2)+(AJ459^2)+(AJ453^2)+(AJ447^2)+(AJ441^2))","v":254.9745085297744},{"$f":"AK477+AK471+AK465+AK459+AK453+AK447+AK441","v":14},{"$f":"SQRT((AL477^2)+(AL471^2)+(AL465^2)+(AL459^2)+(AL453^2)+(AL447^2)+(AL441^2))","v":280.18743726298652},{"$f":"AM477+AM471+AM465+AM459+AM453+AM447+AM441","v":47},{"$f":"SQRT((AN477^2)+(AN471^2)+(AN465^2)+(AN459^2)+(AN453^2)+(AN447^2)+(AN441^2))","v":258.6580754587028},{"$f":"AO477+AO471+AO465+AO459+AO453+AO447+AO441","v":0},{"$f":"SQRT((AP477^2)+(AP471^2)+(AP465^2)+(AP459^2)+(AP453^2)+(AP447^2)+(AP441^2))","v":301.61564946136332},{"$f":"AQ477+AQ471+AQ465+AQ459+AQ453+AQ447+AQ441","v":4},{"$f":"SQRT((AR477^2)+(AR471^2)+(AR465^2)+(AR459^2)+(AR453^2)+(AR447^2)+(AR441^2))","v":279.30628349537716},{"$f":"AS477+AS471+AS465+AS459+AS453+AS447+AS441","v":4},{"$f":"SQRT((AT477^2)+(AT471^2)+(AT465^2)+(AT459^2)+(AT453^2)+(AT447^2)+(AT441^2))","v":279.30628349537716},{"$f":"AU477+AU471+AU465+AU459+AU453+AU447+AU441","v":18},{"$f":"SQRT((AV477^2)+(AV471^2)+(AV465^2)+(AV459^2)+(AV453^2)+(AV447^2)+(AV441^2))","v":280.54411417814492},{"$f":"AW477+AW471+AW465+AW459+AW453+AW447+AW441","v":23},{"$f":"SQRT((AX477^2)+(AX471^2)+(AX465^2)+(AX459^2)+(AX453^2)+(AX447^2)+(AX441^2))","v":256.1113039285849},{"$f":"AY477+AY471+AY465+AY459+AY453+AY447+AY441","v":19},{"$f":"SQRT((AZ477^2)+(AZ471^2)+(AZ465^2)+(AZ459^2)+(AZ453^2)+(AZ447^2)+(AZ441^2))","v":280.10712236571209},{"$f":"BA477+BA471+BA465+BA459+BA453+BA447+BA441","v":8},{"$f":"SQRT((BB477^2)+(BB471^2)+(BB465^2)+(BB459^2)+(BB453^2)+(BB447^2)+(BB441^2))","v":279.49955277245078},{"$f":"BC477+BC471+BC465+BC459+BC453+BC447+BC441","v":20},{"$f":"SQRT((BD477^2)+(BD471^2)+(BD465^2)+(BD459^2)+(BD453^2)+(BD447^2)+(BD441^2))","v":280.95729212818094},{"$f":"BE477+BE471+BE465+BE459+BE453+BE447+BE441","v":67},{"$f":"SQRT((BF477^2)+(BF471^2)+(BF465^2)+(BF459^2)+(BF453^2)+(BF447^2)+(BF441^2))","v":240.62003241625581},{"$f":"BG477+BG471+BG465+BG459+BG453+BG447+BG441","v":129},{"$f":"SQRT((BH477^2)+(BH471^2)+(BH465^2)+(BH459^2)+(BH453^2)+(BH447^2)+(BH441^2))","v":212.08960370560365},{"$f":"BI477+BI471+BI465+BI459+BI453+BI447+BI441","v":106},{"$f":"SQRT((BJ477^2)+(BJ471^2)+(BJ465^2)+(BJ459^2)+(BJ453^2)+(BJ447^2)+(BJ441^2))","v":241.44978774063978},{"$f":"BK477+BK471+BK465+BK459+BK453+BK447+BK441","v":48},{"$f":"SQRT((BL477^2)+(BL471^2)+(BL465^2)+(BL459^2)+(BL453^2)+(BL447^2)+(BL441^2))","v":258.93821656912678},{"$f":"BM477+BM471+BM465+BM459+BM453+BM447+BM441","v":94},{"$f":"SQRT((BN477^2)+(BN471^2)+(BN465^2)+(BN459^2)+(BN453^2)+(BN447^2)+(BN441^2))","v":205.50182480941623},{"$f":"BO477+BO471+BO465+BO459+BO453+BO447+BO441","v":9},{"$f":"SQRT((BP477^2)+(BP471^2)+(BP465^2)+(BP459^2)+(BP453^2)+(BP447^2)+(BP441^2))","v":279.59256070217606},{"$f":"BQ477+BQ471+BQ465+BQ459+BQ453+BQ447+BQ441","v":75},{"$f":"SQRT((BR477^2)+(BR471^2)+(BR465^2)+(BR459^2)+(BR453^2)+(BR447^2)+(BR441^2))","v":234.75306174787156},{"$f":"BS477+BS471+BS465+BS459+BS453+BS447+BS441","v":0},{"$f":"SQRT((BT477^2)+(BT471^2)+(BT465^2)+(BT459^2)+(BT453^2)+(BT447^2)+(BT441^2))","v":301.61564946136332},{"$f":"BU477+BU471+BU465+BU459+BU453+BU447+BU441","v":0},{"$f":"SQRT((BV477^2)+(BV471^2)+(BV465^2)+(BV459^2)+(BV453^2)+(BV447^2)+(BV441^2))","v":301.61564946136332},{"$f":"BW477+BW471+BW465+BW459+BW453+BW447+BW441","v":12},{"$f":"SQRT((BX477^2)+(BX471^2)+(BX465^2)+(BX459^2)+(BX453^2)+(BX447^2)+(BX441^2))","v":279.82137159266443}]

{"sheet":"PlaceOfBirthAndPriorRes","index":62,"n_rows":57,"n_cols":16,"rows_kept":57,"cut":false,"hidden":true,"merged":[[40,11,40,13],[53,2,54,14],[4,3,4,5],[4,7,4,9],[40,3,40,5],[40,7,40,9],[4,11,4,13],[4,14,4,15],[40,14,40,15]]}
[]
[null,null,{"$f":"CntyDataLink!A50","v":"Atkinson"}]
[null,null,"SOCIAL CHARACTERISTICS"]
[]
[null,null,"Place of Birth","2005-2009",null,null,null,"2009-2013",null,null,null,"2015-2019",null,null,"Statistically Significant Change "]
[null,null,"Universe: Total Population","Estimate","Margin of Error",null,null,"Estimate","Margin of Error",null,null,"Estimate","Margin of Error",null,"2009-2019","2014-2019"]
[null,null,"  Total:",{"$f":"CntyDataLinkPrior10YearEstimate!$B$136","v":29423},{"$f":"CntyDataLinkPrior10YearEstimate!$C$136","v":51},null,null,{"$f":"CntyDataLinkPrior5YearEstimates!$B$136","v":28841},{"$f":"CntyDataLinkPrior5YearEstimates!$C$136","v":26},null,null,{"$f":"CntyDataLink!$B$136","v":29234},{"$f":"CntyDataLink!$C$136","v":32}]
[null,null,"   United States Native",{"$f":"CntyDataLinkPrior10YearEstimate!$D$136","v":26792},{"$f":"CntyDataLinkPrior10YearEstimate!$E$136","v":529},{"$f":"D8/$D$7","v":0.91058015837949902},null,{"$f":"CntyDataLinkPrior5YearEstimates!$D$136","v":26402},{"$f":"CntyDataLinkPrior5YearEstimates!$E$136","v":460},{"$f":"H8/$H$7","v":0.91543289067646749},null,{"$f":"CntyDataLink!$D$136","v":26490},{"$f":"CntyDataLink!$E$136","v":530},{"$f":"L8/$L$7","v":0.90613669015529863},{"$f":"StatisticallySignificantCalcs!A26","v":"N"},{"$f":"StatisticallySignificantCalcs!J26","v":"N"}]
[null,null,"      New Hampshire Native",{"$f":"CntyDataLinkPrior10YearEstimate!$F$136","v":3315},{"$f":"CntyDataLinkPrior10YearEstimate!$G$136","v":431},{"$f":"D9/$D$7","v":0.11266696122081366},null,{"$f":"CntyDataLinkPrior5YearEstimates!$F$136","v":3170},{"$f":"CntyDataLinkPrior5YearEstimates!$G$136","v":479},{"$f":"H9/$H$7","v":0.10991297111750632},null,{"$f":"CntyDataLink!$F$136","v":4380},{"$f":"CntyDataLink!$G$136","v":509},{"$f":"L9/$L$7","v":0.14982554559759184},{"$f":"StatisticallySignificantCalcs!A27","v":"Y"},{"$f":"StatisticallySignificantCalcs!J27","v":"Y"}]
[null,null,"      Born in Different State",{"$f":"CntyDataLinkPrior10YearEstimate!$H$136","v":23293},{"$f":"CntyDataLinkPrior10YearEstimate!$I$136","v":661},0.79165958603813347,null,{"$f":"CntyDataLinkPrior5YearEstimates!$H$136","v":22901},{"$f":"CntyDataLinkPrior5YearEstimates!$I$136","v":600},0.79404320238549286,null,{"$f":"CntyDataLink!$H$136","v":21683},{"$f":"CntyDataLink!$I$136","v":747},0.7417048641992201,{"$f":"StatisticallySignificantCalcs!A28","v":"Y"},{"$f":"StatisticallySignificantCalcs!J28","v":"Y"}]
[null,null,"          Northeast",{"$f":"CntyDataLinkPrior10YearEstimate!$J$136","v":21592},{"$f":"CntyDataLinkPrior10YearEstimate!$K$136","v":663},0.73384767018998742,null,{"$f":"CntyDataLinkPrior5YearEstimates!$J$136","v":21013},{"$f":"CntyDataLinkPrior5YearEstimates!$K$136","v":609},0.72858083977670673,null,{"$f":"CntyDataLink!$J$136","v":19767},{"$f":"CntyDataLink!$K$136","v":777},0.67616473968666624,{"$f":"StatisticallySignificantCalcs!A29","v":"Y"},{"$f":"StatisticallySignificantCalcs!J29","v":"Y"}]
[null,null,"          Midwest",{"$f":"CntyDataLinkPrior10YearEstimate!$L$136","v":552},{"$f":"CntyDataLinkPrior10YearEstimate!$M$136","v":233},1.8760833361655849E-2,null,{"$f":"CntyDataLinkPrior5YearEstimates!$L$136","v":451},{"$f":"CntyDataLinkPrior5YearEstimates!$M$136","v":146},1.5637460559619985E-2,null,{"$f":"CntyDataLink!$L$136","v":697},{"$f":"CntyDataLink!$M$136","v":195},2.3842101662447834E-2,{"$f":"StatisticallySignificantCalcs!A30","v":"N"},{"$f":"StatisticallySignificantCalcs!J30","v":"Y"}]
[null,null,"          South",{"$f":"CntyDataLinkPrior10YearEstimate!$N$136","v":834},{"$f":"CntyDataLinkPrior10YearEstimate!$O$136","v":215},2.8345172144240899E-2,null,{"$f":"CntyDataLinkPrior5YearEstimates!$N$136","v":856},{"$f":"CntyDataLinkPrior5YearEstimates!$O$136","v":272},2.9679969487881836E-2,null,{"$f":"CntyDataLink!$N$136","v":867},{"$f":"CntyDataLink!$O$136","v":213},2.9657248409386331E-2,{"$f":"StatisticallySignificantCalcs!A31","v":"N"},{"$f":"StatisticallySignificantCalcs!J31","v":"N"}]
[null,null,"          West",{"$f":"CntyDataLinkPrior10YearEstimate!$P$136","v":315},{"$f":"CntyDataLinkPrior10YearEstimate!$Q$136","v":134},1.0705910342249261E-2,null,{"$f":"CntyDataLinkPrior5YearEstimates!$P$136","v":581},{"$f":"CntyDataLinkPrior5YearEstimates!$Q$136","v":153},2.0144932561284284E-2,null,{"$f":"CntyDataLink!$P$136","v":352},{"$f":"CntyDataLink!$Q$136","v":133},1.204077444071971E-2,{"$f":"StatisticallySignificantCalcs!A32","v":"N"},{"$f":"StatisticallySignificantCalcs!J32","v":"Y"}]
[null,null,"      Native Born Outside US",{"$f":"CntyDataLinkPrior10YearEstimate!$R136","v":184},{"$f":"CntyDataLinkPrior10YearEstimate!$S$136","v":94},6.2536111205519496E-3,null,{"$f":"CntyDataLinkPrior5YearEstimates!$R136","v":331},{"$f":"CntyDataLinkPrior5YearEstimates!$S$136","v":139},1.1476717173468326E-2,null,{"$f":"CntyDataLink!$R136","v":427},{"$f":"CntyDataLink!$S$136","v":200},1.4606280358486693E-2,{"$f":"StatisticallySignificantCalcs!A33","v":"Y"},{"$f":"StatisticallySignificantCalcs!J33","v":"N"}]
[null,null,"   Foreign Born",{"$f":"CntyDataLinkPrior10YearEstimate!$Z136","v":2631},{"$f":"CntyDataLinkPrior10YearEstimate!$AA$136","v":528},8.941984162050097E-2,null,{"$f":"CntyDataLinkPrior5YearEstimates!$Z136","v":2439},{"$f":"CntyDataLinkPrior5YearEstimates!$AA$136","v":461},8.4567109323532466E-2,null,{"$f":"CntyDataLink!$Z136","v":2744},{"$f":"CntyDataLink!$AA$136","v":529},9.386330984470137E-2,{"$f":"StatisticallySignificantCalcs!A34","v":"N"},{"$f":"StatisticallySignificantCalcs!J34","v":"N"}]
[null,null,"      Naturalized Citizen",{"$f":"CntyDataLinkPrior10YearEstimate!$AB136","v":1525},{"$f":"CntyDataLinkPrior10YearEstimate!$AC$136","v":426},{"$f":"D17/$L$7","v":5.2165286994595335E-2},null,{"$f":"CntyDataLinkPrior5YearEstimates!$AB136","v":1429},{"$f":"CntyDataLinkPrior5YearEstimates!$AC$136","v":292},4.9547519156756009E-2,null,{"$f":"CntyDataLink!$AB136","v":2121},{"$f":"CntyDataLink!$AC$136","v":444},7.2552507354450291E-2,{"$f":"StatisticallySignificantCalcs!A35","v":"N"},{"$f":"StatisticallySignificantCalcs!J35","v":"Y"}]
[null,null,"      Not a Citizen",{"$f":"CntyDataLinkPrior10YearEstimate!$AD$136","v":1106},{"$f":"CntyDataLinkPrior10YearEstimate!$AE$136","v":368},{"$f":"D18/$L$7","v":3.7832660600670455E-2},null,{"$f":"CntyDataLinkPrior5YearEstimates!$AD$136","v":1010},{"$f":"CntyDataLinkPrior5YearEstimates!$AE$136","v":340},3.5019590166776464E-2,null,{"$f":"CntyDataLink!$AD$136","v":623},{"$f":"CntyDataLink!$AE$136","v":220},2.1310802490251076E-2,{"$f":"StatisticallySignificantCalcs!A36","v":"Y"},{"$f":"StatisticallySignificantCalcs!J36","v":"N"}]
[null,null,null,{"$f":"\"Source: \"&D41&\", \"&H41&\" and \"&L41& \" American Community Survey Table B05002.\"","v":"Source: 2005-2009, 2010-2014 and 2015-2019 American Community Survey Table B05002."}]
[]
[]
[]
[]
[]
[]
[]
[]
[]
[]
[]
[]
[]
[]
[]
[]
[]
[]
[]
[]
[null,null,"Place of Residence Prior year for Population"]
[null,null,"Universe: Population","2005-2009",null,null,null,"2010-2014",null,null,null,"2015-2019",null,null,"Statistically Significant Change "]
[null,null,null,"Estimate","Margin of Error",null,null,"Estimate","Margin of Error",null,null,"Estimate","Margin of Error",null,"2009-2019","2014-2019"]
[null,null,"  Total:",{"$f":"CntyDataLinkPrior10YearEstimate!$AF$136","v":26638},{"$f":"CntyDataLinkPrior10YearEstimate!$AG$136","v":506},null,null,{"$f":"CntyDataLinkPrior5YearEstimates!$AF$136","v":28522},{"$f":"CntyDataLinkPrior5YearEstimates!$AG$136","v":101},null,null,{"$f":"CntyDataLink!$AF$136","v":28901},{"$f":"CntyDataLink!$AG$136","v":149},null,{"$f":"StatisticallySignificantCalcs!$A37","v":"Y"},{"$f":"StatisticallySignificantCalcs!$J37","v":"Y"}]
["Same House",null,"    Same House ",{"$f":"CntyDataLinkPrior10YearEstimate!$AH$136","v":2483},{"$f":"CntyDataLinkPrior10YearEstimate!$AI$136","v":577.86330563551098},{"$f":"IF($D$44=\"-\",\"-\",VALUE(D44/$D$43))","v":9.3212703656430668E-2},null,{"$f":"CntyDataLinkPrior5YearEstimates!$AH$136","v":25905},{"$f":"CntyDataLinkPrior5YearEstimates!$AI$136","v":524},{"$f":"IF($H$44=\"-\",\"-\",VALUE($H$44/$H$43))","v":0.90824626604024961},null,{"$f":"CntyDataLink!$AH$136","v":26049},{"$f":"CntyDataLink!$AI$136","v":583},{"$f":"IF($L$44=\"-\",\"-\",VALUE($L$44/$L$43))","v":0.90131829348465453},{"$f":"StatisticallySignificantCalcs!$A38","v":"Y"},{"$f":"StatisticallySignificantCalcs!$J38","v":"N"}]
["Different House",null,"    Different House 1  ",{"$f":"CntyDataLinkPrior10YearEstimate!$AJ$136","v":1185},{"$f":"CntyDataLinkPrior10YearEstimate!$AK$136","v":416.36762602296545},{"$f":"IF($D$45=\"-\",\"-\",VALUE(D45/$D$43))","v":4.4485321720849916E-2},null,{"$f":"CntyDataLinkPrior5YearEstimates!$AJ$136","v":2617},{"$f":"CntyDataLinkPrior5YearEstimates!$AK$136","v":492.42765966180252},{"$f":"IF($H$45=\"-\",\"-\",VALUE($H$45/$H$43))","v":9.1753733959750367E-2},null,{"$f":"CntyDataLink!$AJ$136","v":2852},{"$f":"CntyDataLink!$AK$136","v":598.06688589153634},{"$f":"IF($L$45=\"-\",\"-\",VALUE($L$45/$L$43))","v":9.8681706515345496E-2},{"$f":"StatisticallySignificantCalcs!$A39","v":"Y"},{"$f":"StatisticallySignificantCalcs!$J39","v":"Y"}]
[null,null,"      in New Hampshire",{"$f":"CntyDataLinkPrior10YearEstimate!$AL$136","v":1063},{"$f":"CntyDataLinkPrior10YearEstimate!$AM$136","v":399},{"$f":"IF($D$46=\"-\",\"-\",VALUE(D46/$D$43))","v":3.9905398303175917E-2},null,{"$f":"CntyDataLinkPrior5YearEstimates!$AL$136","v":1401},{"$f":"CntyDataLinkPrior5YearEstimates!$AM$136","v":313.08784709726439},{"$f":"IF($H$46=\"-\",\"-\",VALUE($H$46/$H$43))","v":4.911997756118084E-2},null,{"$f":"CntyDataLink!$AL$136","v":1254},{"$f":"CntyDataLink!$AM$136","v":385.81083447720852},{"$f":"IF($L$46=\"-\",\"-\",VALUE($L$46/$L$43))","v":4.3389502093353169E-2},{"$f":"StatisticallySignificantCalcs!$A40","v":"N"},{"$f":"StatisticallySignificantCalcs!$J40","v":"Y"}]
[null,null,"          Same county",{"$f":"CntyDataLinkPrior10YearEstimate!$AN$136","v":122},{"$f":"CntyDataLinkPrior10YearEstimate!$AO$136","v":119},{"$f":"IF($D$47=\"-\",\"-\",VALUE(D47/$D$43))","v":4.5799234176739992E-3},null,{"$f":"CntyDataLinkPrior5YearEstimates!$AN$136","v":1195},{"$f":"CntyDataLinkPrior5YearEstimates!$AO$136","v":290},{"$f":"IF($H$47=\"-\",\"-\",VALUE($H$47/$H$43))","v":4.1897482644975809E-2},null,{"$f":"CntyDataLink!$AN$136","v":1082},{"$f":"CntyDataLink!$AO$136","v":365},{"$f":"IF($L$47=\"-\",\"-\",VALUE($L$47/$L$43))","v":3.7438150929033596E-2},{"$f":"StatisticallySignificantCalcs!$A41","v":"Y"},{"$f":"StatisticallySignificantCalcs!$J41","v":"Y"}]
[null,null,"          Different county",{"$f":"CntyDataLinkPrior10YearEstimate!$AP$136","v":1168},{"$f":"CntyDataLinkPrior10YearEstimate!$AQ$136","v":390},{"$f":"IF($D$48=\"-\",\"-\",VALUE(D48/$D$43))","v":4.3847135670846159E-2},null,{"$f":"CntyDataLinkPrior5YearEstimates!$AP$136","v":206},{"$f":"CntyDataLinkPrior5YearEstimates!$AQ$136","v":118},{"$f":"IF($H$48=\"-\",\"-\",VALUE($H$48/$H$43))","v":7.2224949162050349E-3},null,{"$f":"CntyDataLink!$AP$136","v":172},{"$f":"CntyDataLink!$AQ$136","v":125},{"$f":"IF($L$48=\"-\",\"-\",VALUE($L$48/$L$43))","v":5.9513511643195741E-3},{"$f":"StatisticallySignificantCalcs!$A42","v":"Y"},{"$f":"StatisticallySignificantCalcs!$J42","v":"Y"}]
["Different State",null,"      in Different state",{"$f":"CntyDataLinkPrior10YearEstimate!$AR$136","v":130},{"$f":"CntyDataLinkPrior10YearEstimate!$AS$136","v":92},{"$f":"IF($D$49=\"-\",\"-\",VALUE(D49/$D$43))","v":4.8802462647345897E-3},null,{"$f":"CntyDataLinkPrior5YearEstimates!$AR$136","v":1108},{"$f":"CntyDataLinkPrior5YearEstimates!$AS$136","v":365},{"$f":"IF($H$49=\"-\",\"-\",VALUE($H$49/$H$43))","v":3.884720566580184E-2},null,{"$f":"CntyDataLink!$AR$136","v":1500},{"$f":"CntyDataLink!$AS$136","v":447},{"$f":"IF($L$49=\"-\",\"-\",VALUE($L$49/$L$43))","v":5.1901318293484655E-2},{"$f":"StatisticallySignificantCalcs!$A43","v":"Y"},{"$f":"StatisticallySignificantCalcs!$J43","v":"N"}]
["Eleswhere",null,"       Elsewhere",{"$f":"CntyDataLinkPrior10YearEstimate!$AT$136","v":0},{"$f":"CntyDataLinkPrior10YearEstimate!$AU$136","v":0},{"$f":"IF($D$50=\"-\",\"-\",VALUE(D50/$D$43))","v":0},null,{"$f":"CntyDataLinkPrior5YearEstimates!$AT$136","v":108},{"$f":"CntyDataLinkPrior5YearEstimates!$AU$136","v":106},{"$f":"IF($H$50=\"-\",\"-\",VALUE($H$50/$H$43))","v":3.7865507327676882E-3},null,{"$f":"CntyDataLink!$AT$136","v":98},{"$f":"CntyDataLink!$AU$136","v":95},{"$f":"IF($L$50=\"-\",\"-\",VALUE($L$50/$L$43))","v":3.3908861285076642E-3},{"$f":"StatisticallySignificantCalcs!$A44","v":"Y"},{"$f":"StatisticallySignificantCalcs!$J44","v":"Y"}]
[]
[null,null,"Data from the American Community Survey are estimates"]
[]
[null,null,"1   The number for Different House was calculated by adding In New Hampshire, In Different State, and Elsewhere totals. The number is not located in the source Table B07003."]
[]
[]
[null,null,{"$f":"\"Source: \"&D41&\", \"&H41&\" and \"&L41& \" American Community Survey Table B07003.\"","v":"Source: 2005-2009, 2010-2014 and 2015-2019 American Community Survey Table B07003."}]

{"sheet":"ACS_Table_B05002","index":63,"n_rows":84,"n_cols":76,"rows_kept":84,"cut":false,"hidden":true,"merged":[]}
[null,"B05002. PLACE OF BIRTH BY CITIZENSHIP STATUS"]
[null,"Universe: TOTAL POPULATION"]
[null,"Data Set: 2015-2019 American Community Survey 5-Year Estimates"]
[]
[null,null,"Atkinson",null,"Auburn",null,"Brentwood",null,"Candia",null,"Chester",null,"Danville",null,"Deerfield",null,"Derry",null,"East Kingston",null,"Epping",null,"Exeter",null,"Fremont",null,"Greenland",null,"Hampstead",null,"Hampton",null,"Hampton Falls",null,"Kensington",null,"Kingston",null,"Londonderry",null,"New Castle",null,"Newfields",null,"Newington",null,"Newmarket",null,"Newton",null,"North Hampton",null,"Northwood",null,"Nottingham",null,"Plaistow",null,"Portsmouth",null,"Raymond",null,"Rye",null,"Salem",null,"Sandown",null,"Seabrook",null,"South Hampton",null,"Stratham",null,"Windham"]
[null,null,"Estimate","Margin Of Error","Estimate","Margin Of Error","Estimate","Margin Of Error","Estimate","Margin Of Error","Estimate","Margin Of Error","Estimate","Margin Of Error","Estimate","Margin Of Error","Estimate","Margin Of Error","Estimate","Margin Of Error","Estimate","Margin Of Error","Estimate","Margin Of Error","Estimate","Margin Of Error","Estimate","Margin Of Error","Estimate","Margin Of Error","Estimate","Margin Of Error","Estimate","Margin Of Error","Estimate","Margin Of Error","Estimate","Margin Of Error","Estimate","Margin Of Error","Estimate","Margin Of Error","Estimate","Margin Of Error","Estimate","Margin Of Error","Estimate","Margin Of Error","Estimate","Margin Of Error","Estimate","Margin Of Error","Estimate","Margin Of Error","Estimate","Margin Of Error","Estimate","Margin Of Error","Estimate","Margin Of Error","Estimate","Margin Of Error","Estimate","Margin Of Error","Estimate","Margin Of Error","Estimate","Margin Of Error","Estimate","Margin Of Error","Estimate","Margin Of Error","Estimate","Margin Of Error","Estimate","Margin Of Error"]
[null,"Total:",6952,33,5446,21,4612,33,3936,18,5129,26,4515,29,4476,31,33448,33,2442,194,6966,22,15077,30,4677,25,4009,19,8621,20,15467,18,2383,164,2291,139,6260,29,25927,34,835,178,1757,227,713,89,9063,22,4920,22,4457,17,4299,18,5058,23,7689,26,21775,26,10428,23,5466,31,29234,32,6389,17,8830,26,775,94,7427,21,14610,19]
[null,"Native:",6733,119,5264,94,4442,83,3842,61,4945,83,4462,65,4357,68,31917,365,2395,189,6747,184,14401,219,4552,69,3721,118,8228,178,14897,192,2308,159,2203,136,6111,102,24591,318,818,176,1695,225,676,84,8601,193,4737,84,4189,99,4197,65,4922,82,7408,147,20112,304,10204,103,5339,88,26490,530,6154,117,8312,256,729,88,6793,303,13787,267]
[null,"Born in state of residence",728,240,2853,261,1309,209,2139,261,1627,226,744,191,1960,200,9582,610,637,119,1975,347,4906,463,1437,161,1594,220,1686,311,4589,391,743,142,691,113,1374,447,8127,618,186,60,733,125,258,49,3521,375,889,222,1357,229,1995,201,2172,235,1239,432,7603,499,4526,369,1800,277,4380,509,1725,338,2110,334,111,57,2470,416,2450,372]
[null,"Born in other state in the United States:",5984,264,2376,248,3084,202,1590,212,3260,254,3694,211,2328,185,21905,731,1719,201,4682,410,9323,462,3085,187,2065,195,6521,330,10140,402,1538,149,1498,95,4703,437,16256,684,616,132,939,148,409,74,4985,337,3806,235,2764,236,2185,200,2731,230,6034,480,12232,573,5522,334,3461,291,21683,747,4429,347,6182,372,614,60,4209,407,11120,535]
[null,"Northeast",5419,324,1996,275,2445,199,1267,201,2872,270,3290,221,1869,172,19068,686,1515,205,3882,452,7031,476,2683,202,1318,174,5580,404,8545,452,1334,142,1236,107,4306,467,14028,653,404,98,707,125,320,61,3667,364,3677,245,2374,260,1669,191,2086,246,5693,504,8547,456,4969,346,2820,292,19767,777,4171,381,5665,426,558,55,3023,426,9546,653]
[null,"Midwest",189,99,108,52,143,61,130,58,177,86,44,35,174,95,897,230,81,30,308,145,976,228,93,83,245,119,334,151,532,123,55,27,119,40,62,74,710,175,105,45,96,36,65,30,418,114,42,29,109,61,237,89,250,91,89,81,1288,229,145,99,302,138,697,195,89,54,138,77,17,10,419,153,522,199]
[null,"South",267,150,236,112,256,110,131,76,122,62,255,111,189,103,1124,253,80,43,313,154,921,269,114,58,299,133,361,171,628,191,129,57,108,35,159,140,1014,214,76,41,106,48,18,10,575,167,43,35,119,54,77,51,194,90,145,76,1353,268,285,112,266,123,867,213,55,59,273,136,15,10,368,192,358,130]
[null,"West",109,69,36,38,240,97,62,41,89,61,105,66,96,62,816,285,43,24,179,187,395,124,195,111,203,113,246,173,435,155,20,22,35,17,176,162,504,126,31,23,30,18,6,6,325,200,44,34,162,71,202,86,201,124,107,93,1044,239,123,73,73,70,352,133,114,98,106,74,24,15,399,184,694,281]
[null,"Born outside the United States:",21,33,35,36,49,43,113,122,58,56,24,22,69,44,430,222,39,26,90,61,172,87,30,35,62,40,21,22,168,101,27,23,14,14,34,38,208,97,16,16,23,17,9,9,95,71,42,41,68,52,17,20,19,20,135,93,277,109,156,90,78,68,427,200,0,16,20,34,4,5,114,76,217,116]
[null,"Puerto Rico",0,16,5,10,7,15,0,11,0,16,0,11,0,11,208,189,11,17,28,45,34,46,0,11,5,11,1,2,0,18,0,11,0,11,0,16,91,66,0,11,0,11,0,11,0,16,0,11,6,10,0,11,0,16,1,3,57,57,99,75,0,16,108,115,0,16,0,16,0,11,10,16,0,18]
[null,"U.S. Island Areas",0,16,0,16,0,11,0,11,0,16,0,11,0,11,60,96,0,11,0,16,14,22,0,11,0,11,0,16,17,27,0,11,0,11,0,16,0,21,0,11,0,11,0,11,0,16,0,11,8,15,0,11,0,16,0,16,0,21,0,18,0,16,0,21,0,16,0,16,0,11,0,16,15,25]
[null,"Born abroad of American parent(s)",21,33,30,34,42,41,113,122,58,56,24,22,69,44,162,87,28,19,62,48,124,79,30,35,57,42,20,22,151,98,27,23,14,14,34,38,117,69,16,16,23,17,9,9,95,71,42,41,54,50,17,20,19,20,134,92,220,88,57,55,78,68,319,166,0,16,20,34,4,5,104,74,202,115]
[null,"Foreign born:",219,117,182,94,170,82,94,58,184,77,53,60,119,66,1531,367,47,30,219,184,676,213,125,67,288,116,393,175,570,192,75,39,88,37,149,98,1336,318,17,18,62,31,37,20,462,194,183,83,268,95,102,60,136,78,281,146,1663,303,224,99,127,82,2744,529,235,120,518,255,46,23,634,298,823,268]
[null,"Naturalized U.S. citizen",143,95,130,85,96,54,77,49,155,61,52,59,69,51,866,262,24,19,75,58,433,159,109,63,149,69,153,76,381,103,64,37,57,27,93,69,868,208,17,18,44,28,25,16,226,131,126,62,223,94,47,42,85,62,111,79,709,218,147,83,87,63,2121,444,190,114,244,122,37,20,389,199,679,254]
[null,"Europe",26,30,44,36,34,31,8,13,60,39,34,48,48,34,404,192,19,16,12,21,147,87,23,25,9,14,52,35,208,88,19,22,26,19,18,29,293,90,3,6,11,10,13,8,55,41,39,31,54,36,11,17,34,36,32,41,329,141,79,60,52,52,375,120,62,69,64,45,12,7,169,152,300,161]
[null,"Asia",78,76,42,62,42,39,24,26,50,55,18,31,18,33,206,92,0,11,27,42,185,103,50,54,65,46,28,27,105,63,30,31,14,12,55,57,262,113,4,6,20,16,10,13,159,118,11,18,110,73,19,28,42,45,0,16,224,112,30,38,17,26,959,293,42,50,106,92,11,10,201,121,162,107]
[null,"Africa",0,16,0,16,0,11,0,11,15,22,0,11,0,11,30,44,5,8,0,16,20,33,0,11,52,51,0,16,10,11,8,12,0,11,0,16,22,24,0,11,9,15,0,11,0,16,11,17,8,12,0,11,0,16,0,16,27,32,0,18,0,16,29,36,15,23,0,16,0,11,0,16,0,18]
[null,"Oceania",0,16,0,16,0,11,0,11,0,16,0,11,0,11,0,24,0,11,0,16,0,18,0,11,0,11,12,18,0,18,0,11,0,11,0,16,0,21,0,11,0,11,0,11,0,16,0,11,0,11,0,11,0,16,0,16,0,21,0,18,0,16,6,11,0,16,0,16,0,11,0,16,0,18]
[null,"Latin America",39,44,19,21,0,11,32,36,20,21,0,11,3,9,123,91,0,11,0,16,56,58,18,20,15,23,46,44,37,36,0,11,5,7,0,16,182,121,0,11,4,7,0,11,2,5,32,38,44,43,8,13,0,16,62,60,101,71,8,13,18,29,649,236,0,16,41,49,14,12,0,16,115,92]
[null,"Northern America",0,16,25,39,20,22,13,20,10,14,0,11,0,11,103,70,0,11,36,39,25,23,18,20,8,11,15,20,21,27,7,10,12,15,20,32,109,73,10,16,0,11,2,4,10,17,33,31,7,12,9,15,9,14,17,29,28,35,30,28,0,16,103,72,71,76,33,35,0,11,19,29,102,85]
[null,"Not a U.S. citizen",76,61,52,59,74,49,17,28,29,34,1,2,50,36,665,257,23,23,144,176,243,113,16,22,139,91,240,152,189,143,11,11,31,19,56,60,468,212,0,11,18,18,12,10,236,122,57,47,45,31,55,45,51,45,170,138,954,218,77,58,40,53,623,220,45,41,274,204,9,15,245,181,144,87]
[null,"Europe",62,56,0,16,14,23,17,28,0,16,0,11,33,27,197,89,23,23,126,174,74,50,7,14,52,66,96,71,76,98,0,11,17,13,56,60,21,24,0,11,18,18,3,5,37,58,12,20,22,24,17,19,10,15,88,96,171,89,39,39,31,50,204,110,27,35,41,41,0,11,19,29,74,62]
[null,"Asia",0,16,0,16,16,22,0,11,9,14,1,2,0,11,174,140,0,11,0,16,49,51,0,11,62,58,112,140,28,28,0,11,8,11,0,16,149,115,0,11,0,11,7,9,151,101,30,35,0,11,0,11,32,47,54,74,549,169,0,18,0,16,169,81,0,16,7,12,9,15,207,175,29,46]
[null,"Africa",0,16,1,3,0,11,0,11,0,16,0,11,0,11,52,55,0,11,0,16,0,18,0,11,1,13,0,16,28,36,0,11,3,6,0,16,0,21,0,11,0,11,0,11,0,16,0,11,0,11,0,11,0,16,0,16,82,102,0,18,0,16,30,37,0,16,0,16,0,11,0,16,0,18]
[null,"Oceania",0,16,0,16,0,11,0,11,0,16,0,11,17,27,0,24,0,11,0,16,12,20,0,11,0,11,0,16,0,18,0,11,3,4,0,16,0,21,0,11,0,11,0,11,0,16,0,11,0,11,0,11,0,16,0,16,3,8,0,18,0,16,8,14,0,16,0,16,0,11,0,16,0,18]
[null,"Latin America",0,16,39,57,22,14,0,11,0,16,0,11,0,11,172,165,0,11,0,16,97,87,0,11,24,32,0,16,25,32,0,11,0,11,0,16,243,160,0,11,0,11,2,4,10,17,15,23,0,11,25,38,0,16,16,25,104,55,1,4,0,16,155,159,0,16,215,211,0,11,19,30,41,45]
[null,"Northern America",14,22,12,19,22,32,0,11,20,31,0,11,0,11,70,55,0,11,18,30,11,19,9,16,0,11,32,29,32,28,11,11,0,11,0,16,55,46,0,11,0,11,0,11,38,36,0,11,23,22,13,19,9,14,12,19,45,50,37,38,9,17,57,56,18,27,11,16,0,11,0,16,0,18]
[]
[]
[]
[]
[]
[]
[null,"B05002. PLACE OF BIRTH BY CITIZENSHIP STATUS"]
[null,"Universe: TOTAL POPULATION"]
[null,"Data Set: 2010-2014 American Community Survey 5-Year Estimates"]
[]
[null,null,"Atkinson",null,"Auburn",null,"Brentwood",null,"Candia",null,"Chester",null,"Danville",null,"Deerfield",null,"Derry",null,"East Kingston",null,"Epping",null,"Exeter",null,"Fremont",null,"Greenland",null,"Hampstead",null,"Hampton",null,"Hampton Falls",null,"Kensington",null,"Kingston",null,"Londonderry",null,"New Castle",null,"Newfields",null,"Newington",null,"Newmarket",null,"Newton",null,"North Hampton",null,"Northwood",null,"Nottingham",null,"Plaistow",null,"Portsmouth",null,"Raymond",null,"Rye",null,"Salem",null,"Sandown",null,"Seabrook",null,"South Hampton",null,"Stratham",null,"Windham"]
[null,null,"Estimate","Margin Of Error","Estimate","Margin Of Error","Estimate","Margin Of Error","Estimate","Margin Of Error","Estimate","Margin Of Error","Estimate","Margin Of Error","Estimate","Margin Of Error","Estimate","Margin Of Error","Estimate","Margin Of Error","Estimate","Margin Of Error","Estimate","Margin Of Error","Estimate","Margin Of Error","Estimate","Margin Of Error","Estimate","Margin Of Error","Estimate","Margin Of Error","Estimate","Margin Of Error","Estimate","Margin Of Error","Estimate","Margin Of Error","Estimate","Margin Of Error","Estimate","Margin Of Error","Estimate","Margin Of Error","Estimate","Margin Of Error","Estimate","Margin Of Error","Estimate","Margin Of Error","Estimate","Margin Of Error","Estimate","Margin Of Error","Estimate","Margin Of Error","Estimate","Margin Of Error","Estimate","Margin Of Error","Estimate","Margin Of Error","Estimate","Margin Of Error","Estimate","Margin Of Error","Estimate","Margin Of Error","Estimate","Margin Of Error","Estimate","Margin Of Error","Estimate","Margin Of Error","Estimate","Margin Of Error"]
[null,"Total:",6788,19,5078,20,4598,18,3920,21,4802,18,4423,38,4330,19,33180,26,2453,130,6587,17,14434,32,4375,17,3668,15,8543,38,15073,30,2307,123,2055,149,6060,19,24247,24,980,160,1625,222,800,136,8928,25,4717,34,4344,22,4269,16,4855,17,7614,26,21366,32,10202,23,5315,18,28841,26,6133,38,8747,19,799,123,7303,19,13943,21]
[null,"Native:",6436,163,4956,74,4394,82,3810,54,4720,44,4313,87,4260,49,31720,311,2374,131,6473,79,13873,225,4253,91,3514,70,8041,152,14488,275,2222,119,1982,147,5845,141,23354,224,960,161,1573,218,754,129,8268,319,4609,88,4167,86,4163,64,4708,74,7496,72,19788,302,9908,140,5043,149,26402,460,6059,68,8374,148,751,117,7120,101,13250,197]
[null,"Born in state of residence",795,259,2546,253,1419,227,1948,198,1583,230,776,205,2321,258,10011,665,642,105,2358,328,5508,541,1400,183,1429,162,1860,346,4622,518,693,138,493,82,1452,342,7352,463,254,70,651,117,354,82,3210,370,755,267,1462,211,2396,231,2167,219,775,274,7739,533,4402,354,1945,381,3170,479,1359,313,1828,389,94,51,1916,291,2461,433]
[null,"Born in other state in the United States:",5605,303,2366,251,2934,245,1834,207,3117,231,3517,226,1904,249,21444,714,1709,123,4057,352,8266,554,2801,190,2047,183,6004,347,9673,582,1508,139,1483,133,4383,363,15782,498,700,132,905,169,386,67,4955,423,3791,260,2673,214,1750,230,2529,222,6707,288,11782,548,5385,349,3060,391,22901,600,4653,328,6546,388,657,98,5112,320,10708,424]
[null,"Northeast",5265,293,1943,268,2427,295,1466,205,2731,248,3145,279,1642,239,18933,772,1519,111,3453,368,6391,518,2435,198,1391,168,5419,327,7897,555,1229,147,1254,125,4104,372,13500,514,445,97,711,155,275,49,3912,431,3471,273,2081,210,1456,203,1918,246,6217,294,8593,444,4767,370,2426,411,21013,609,4325,387,6158,418,581,92,4060,406,9691,485]
[null,"Midwest",170,98,152,71,185,99,59,40,129,63,117,93,64,37,833,214,48,23,347,150,792,195,92,50,310,92,72,54,603,213,100,45,67,28,135,85,835,153,81,36,62,26,21,12,355,163,16,18,115,55,111,80,187,82,111,81,1153,222,136,78,300,124,451,146,138,76,153,105,32,19,396,179,408,161]
[null,"South",155,96,139,91,133,76,247,91,115,67,184,99,73,47,975,202,86,40,193,115,632,213,168,67,166,71,349,150,681,205,110,46,104,35,120,93,798,196,92,59,84,30,69,35,392,134,178,123,255,125,155,77,211,122,245,160,1344,341,321,108,290,155,856,272,87,52,142,98,37,24,373,124,288,129]
[null,"West",15,24,132,64,189,118,62,49,142,80,71,72,125,85,703,244,56,45,64,44,451,165,106,61,180,96,164,77,492,136,69,45,58,37,24,35,649,201,82,61,48,41,21,12,296,134,126,86,222,96,28,25,213,87,134,94,692,195,161,79,44,43,581,153,103,79,93,82,7,6,283,150,321,154]
[null,"Born outside the United States:",36,38,44,34,41,41,28,30,20,23,20,23,35,26,265,143,23,20,58,69,99,65,52,43,38,28,177,117,193,110,21,16,6,7,10,18,220,122,6,6,17,18,14,18,103,65,63,78,32,30,17,24,12,19,14,24,267,118,121,79,38,34,331,139,47,43,0,15,0,11,92,74,81,59]
[null,"Puerto Rico",0,15,14,20,0,11,0,11,13,20,0,11,11,19,120,103,4,6,0,15,20,44,14,21,0,11,0,15,5,9,0,11,0,11,0,15,103,110,0,11,0,11,0,11,0,15,0,11,0,11,0,11,0,11,0,15,43,36,0,17,3,7,88,66,0,15,0,15,0,11,0,15,0,17]
[null,"U.S. Island Areas",0,15,0,15,0,11,0,11,7,12,0,11,0,11,8,14,6,8,0,15,0,17,0,11,0,11,0,15,0,17,0,11,0,11,0,15,0,20,0,11,0,11,4,6,0,15,0,11,0,11,0,11,0,11,0,15,0,20,0,17,0,15,8,12,0,15,0,15,0,11,0,15,0,17]
[null,"Born abroad of American parent(s)",36,38,30,28,41,41,28,30,0,11,20,23,24,21,137,84,13,17,58,69,79,48,38,40,38,28,177,117,188,109,21,16,6,7,10,18,117,65,6,6,17,18,10,17,103,65,63,78,32,30,17,24,12,19,14,24,224,114,121,79,35,32,235,119,47,43,0,15,0,11,92,74,81,59]
[null,"Foreign born:",352,164,122,72,204,79,110,50,82,41,110,79,70,44,1460,312,79,38,114,77,561,223,122,93,154,68,502,149,585,273,85,37,73,33,215,140,893,222,20,13,52,27,46,31,660,315,108,82,177,82,106,66,147,70,118,64,1578,298,294,134,272,152,2439,461,74,54,373,149,48,30,183,98,693,199]
[null,"Naturalized U.S. citizen",288,133,100,65,69,42,82,47,47,35,84,69,70,44,815,215,56,36,71,52,303,162,107,90,68,49,423,155,239,111,79,37,47,30,189,135,663,175,17,12,39,23,29,20,281,113,72,75,145,74,85,56,108,57,74,49,756,244,194,108,211,138,1429,292,56,47,222,125,28,16,92,62,405,154]
[null,"Not a U.S. citizen",64,60,22,25,135,81,28,24,35,26,26,31,0,11,645,212,23,17,43,54,258,142,15,21,86,55,79,51,346,202,6,8,26,19,26,33,230,113,3,5,13,14,17,17,379,270,36,40,32,29,21,23,39,42,44,42,822,222,100,79,61,63,1010,340,18,27,151,94,20,25,91,74,288,144]
[]
[]
[]
[null,"B05002. PLACE OF BIRTH BY CITIZENSHIP STATUS"]
[null,"Universe: TOTAL POPULATION"]
[null,"Data Set: 2005-2009 American Community Survey 3-Year Estimates"]
[]
[null,null,"Atkinson",null,"Auburn",null,"Brentwood",null,"Candia",null,"Chester",null,"Danville",null,"Deerfield",null,"Derry",null,"East Kingston",null,"Epping",null,"Exeter",null,"Fremont",null,"Greenland",null,"Hampstead",null,"Hampton",null,"Hampton Falls",null,"Kensington",null,"Kingston",null,"Londonderry",null,"New Castle",null,"Newfields",null,"Newington",null,"Newmarket",null,"Newton",null,"North Hampton",null,"Northwood",null,"Nottingham",null,"Plaistow",null,"Portsmouth",null,"Raymond",null,"Rye",null,"Salem",null,"Sandown",null,"Seabrook",null,"South Hampton",null,"Stratham",null,"Windham"]
[null,null,"Estimate","Margin Of Error","Estimate","Margin Of Error","Estimate","Margin Of Error","Estimate","Margin Of Error","Estimate","Margin Of Error","Estimate","Margin Of Error","Estimate","Margin Of Error","Estimate","Margin Of Error","Estimate","Margin Of Error","Estimate","Margin Of Error","Estimate","Margin Of Error","Estimate","Margin Of Error","Estimate","Margin Of Error","Estimate","Margin Of Error","Estimate","Margin Of Error","Estimate","Margin Of Error","Estimate","Margin Of Error","Estimate","Margin Of Error","Estimate","Margin Of Error","Estimate","Margin Of Error","Estimate","Margin Of Error","Estimate","Margin Of Error","Estimate","Margin Of Error","Estimate","Margin Of Error","Estimate","Margin Of Error","Estimate","Margin Of Error","Estimate","Margin Of Error","Estimate","Margin Of Error","Estimate","Margin Of Error","Estimate","Margin Of Error","Estimate","Margin Of Error","Estimate","Margin Of Error","Estimate","Margin Of Error","Estimate","Margin Of Error","Estimate","Margin Of Error","Estimate","Margin Of Error","Estimate","Margin Of Error"]
[null,"Total:",6646,22,5157,19,3852,30,4170,24,4693,27,4357,22,4171,17,34194,21,2318,115,6228,15,14783,48,4083,20,3406,18,8879,20,15399,22,2342,147,2119,162,6233,31,24954,23,727,133,1836,240,691,109,9401,30,4523,25,4542,22,4077,20,4471,16,7665,30,20557,24,10181,17,5177,23,29423,51,5822,18,8494,17,798,129,7214,17,13097,27]
[null,"Native:",6478,122,5041,62,3714,68,3989,87,4546,113,4273,68,4116,53,32425,415,2175,102,5914,142,14106,198,4042,44,3165,128,8574,141,14583,262,2241,147,2065,160,6090,92,23773,308,715,132,1743,232,675,103,8813,219,4445,52,4421,90,4050,30,4420,52,7384,140,19194,305,9817,140,5027,90,26792,529,5740,54,8205,189,749,125,6874,175,12443,243]
[null,"Born in state of residence",517,146,2717,254,1319,149,2049,274,1796,255,668,182,1854,233,9063,785,563,81,1992,297,4822,387,1522,265,1524,187,1438,270,4459,465,655,123,604,78,1366,353,7390,631,207,64,763,140,300,76,3448,420,505,146,1653,242,2020,255,2050,266,852,255,7522,525,3787,390,1555,248,3315,431,1245,322,1733,355,116,52,2495,257,2015,349]
[null,"Born in other state in the United States:",5871,195,2282,243,2342,184,1893,267,2709,266,3605,173,2262,239,22930,789,1608,94,3903,329,9136,436,2492,260,1605,209,6996,300,10005,455,1557,105,1451,159,4585,385,16038,643,500,111,963,141,357,73,5277,411,3889,161,2720,242,2022,252,2341,255,6484,287,11413,543,5823,383,3377,274,23293,661,4479,311,6432,385,627,101,4328,286,10318,441]
[null,"Northeast",5314,252,1883,260,1873,179,1460,244,2243,260,3403,180,1846,214,19626,922,1468,108,3383,320,7222,506,2306,254,1325,211,6364,355,8356,539,1258,107,1213,164,4196,435,13633,663,370,102,716,123,282,65,3764,421,3445,182,2318,235,1480,217,1757,222,6000,341,8317,566,4901,458,2792,290,21592,663,4113,325,5809,417,538,88,3466,310,9113,559]
[null,"Midwest",282,118,109,64,172,79,242,97,172,78,101,57,151,81,989,239,62,23,145,128,787,211,33,32,109,49,344,138,652,200,105,41,49,19,58,71,749,206,78,46,86,32,28,19,580,188,99,79,89,53,161,75,234,102,206,91,1098,212,284,137,214,104,552,233,75,58,311,140,32,19,286,100,453,168]
[null,"South",146,80,221,109,168,62,111,65,216,86,73,45,132,72,1440,293,28,13,233,147,786,189,138,66,100,56,151,93,682,280,123,31,136,47,117,95,953,231,24,20,127,59,40,19,540,169,131,76,139,54,141,56,256,156,160,82,1273,276,469,239,261,125,834,215,181,91,234,114,46,28,405,142,476,137]
[null,"West",129,99,69,53,129,68,80,51,78,61,28,33,133,75,875,294,50,38,142,98,341,157,15,16,71,45,137,83,315,145,71,30,53,28,214,124,703,368,28,17,34,18,7,6,393,144,214,104,174,85,240,86,94,60,118,61,725,237,169,80,110,84,315,134,110,57,78,56,11,9,171,85,276,147]
[null,"Born outside the United States:",90,60,42,35,53,36,47,38,41,32,0,114,0,114,432,141,4,6,19,23,148,83,28,29,36,44,140,128,119,85,29,22,10,10,139,164,345,217,8,8,17,13,18,19,88,49,51,37,48,38,8,13,29,28,48,37,259,115,207,178,95,73,184,94,16,20,40,62,6,6,51,49,110,64]
[null,"Puerto Rico",0,114,0,114,16,16,0,114,0,114,0,114,0,114,109,78,0,114,0,114,16,26,0,114,17,25,0,114,0,114,8,9,0,114,0,114,203,195,0,114,0,114,0,114,0,114,0,114,0,114,0,114,0,114,35,29,35,55,119,167,15,24,97,73,5,9,0,114,0,114,0,114,36,43]
[null,"U.S. Island Areas",0,114,0,114,0,114,0,114,0,114,0,114,0,114,15,23,0,114,0,114,0,114,0,114,0,114,0,114,18,27,0,114,0,114,0,114,0,114,0,114,0,114,0,114,0,114,0,114,0,114,0,114,0,114,0,114,12,19,0,114,0,114,0,114,0,114,0,114,0,114,0,114,9,16]
[null,"Born abroad of American parent(s)",90,60,42,35,37,26,47,38,41,32,0,114,0,114,308,121,4,6,19,23,132,76,28,29,19,21,140,128,101,75,21,21,10,10,139,164,142,76,8,8,17,13,18,19,88,49,51,37,48,38,8,13,29,28,13,21,212,102,88,62,80,69,87,64,11,17,40,62,6,6,51,49,65,41]
[null,"Foreign born:",168,120,116,62,138,63,181,81,147,111,84,65,55,49,1769,412,143,82,314,142,677,190,41,39,241,130,305,135,816,260,101,54,54,23,143,89,1181,307,12,16,93,78,16,21,588,216,78,46,121,84,27,24,51,48,281,141,1363,302,364,139,150,86,2631,528,82,52,289,188,49,26,340,177,654,244]
[null,"Naturalized U.S. citizen",85,69,54,39,94,53,173,81,122,98,44,53,44,46,960,347,39,30,280,142,400,166,30,37,156,110,213,114,394,134,72,48,46,22,48,44,823,231,12,16,29,25,13,20,266,135,67,47,94,71,11,17,42,42,201,116,643,199,216,128,85,59,1525,426,57,39,80,51,42,24,137,89,476,160]
[null,"Not a U.S. citizen",83,72,62,41,44,29,8,13,25,36,40,41,11,17,809,202,104,61,34,31,277,136,11,17,85,57,92,62,422,216,29,19,8,6,95,98,358,187,0,114,64,74,3,5,322,148,11,17,27,31,16,19,9,15,80,75,720,226,148,106,65,51,1106,368,25,26,209,169,7,7,203,147,178,121]

{"sheet":"ACS_Table_B07003","index":64,"n_rows":88,"n_cols":76,"rows_kept":88,"cut":false,"hidden":true,"merged":[]}
[null,"B07003. GEOGRAPHICAL MOBILITY IN THE PAST YEAR BY SEX FOR CURRENT RESIDENCE IN THE UNITED STATES - Universe:  POPULATION 1 YEAR AND OVER IN THE UNITED STATES"]
[null,"Data Set: 2015-2019 American Community Survey 5-Year Estimates"]
[null,"Survey: American Community Survey"]
[]
[null,null,"Atkinson",null,"Auburn",null,"Brentwood",null,"Candia",null,"Chester",null,"Danville",null,"Deerfield",null,"Derry",null,"East Kingston",null,"Epping",null,"Exeter",null,"Fremont",null,"Greenland",null,"Hampstead",null,"Hampton",null,"Hampton Falls",null,"Kensington",null,"Kingston",null,"Londonderry",null,"New Castle",null,"Newfields",null,"Newington",null,"Newmarket",null,"Newton",null,"North Hampton",null,"Northwood",null,"Nottingham",null,"Plaistow",null,"Portsmouth",null,"Raymond",null,"Rye",null,"Salem",null,"Sandown",null,"Seabrook",null,"South Hampton",null,"Stratham",null,"Windham"]
[null,null,"Estimate","Margin Of Error","Estimate","Margin Of Error","Estimate","Margin Of Error","Estimate","Margin Of Error","Estimate","Margin Of Error","Estimate","Margin Of Error","Estimate","Margin Of Error","Estimate","Margin Of Error","Estimate","Margin Of Error","Estimate","Margin Of Error","Estimate","Margin Of Error","Estimate","Margin Of Error","Estimate","Margin Of Error","Estimate","Margin Of Error","Estimate","Margin Of Error","Estimate","Margin Of Error","Estimate","Margin Of Error","Estimate","Margin Of Error","Estimate","Margin Of Error","Estimate","Margin Of Error","Estimate","Margin Of Error","Estimate","Margin Of Error","Estimate","Margin Of Error","Estimate","Margin Of Error","Estimate","Margin Of Error","Estimate","Margin Of Error","Estimate","Margin Of Error","Estimate","Margin Of Error","Estimate","Margin Of Error","Estimate","Margin Of Error","Estimate","Margin Of Error","Estimate","Margin Of Error","Estimate","Margin Of Error","Estimate","Margin Of Error","Estimate","Margin Of Error","Estimate","Margin Of Error","Estimate","Margin Of Error"]
[null,"Total:",6898,55,5413,37,4512,67,3874,47,5104,37,4486,43,4441,48,32995,158,2438,195,6921,52,14943,92,4620,46,3988,33,8503,67,15415,52,2383,164,2270,133,6246,37,25794,79,826,173,1743,226,711,87,8940,63,4897,37,4447,24,4238,55,4988,54,7628,57,21641,82,10335,66,5453,40,28901,149,6286,67,8778,58,767,94,7382,51,14489,99]
[null,"Male",3484,248,2749,151,2387,118,2027,136,2559,150,2289,114,2152,107,16491,519,1227,152,3500,207,6815,304,2286,130,1928,111,4105,248,7564,272,1287,105,1155,82,3315,286,12692,298,379,101,800,111,369,59,4613,276,2541,179,2102,122,1964,161,2301,123,3596,276,10669,343,5136,312,2888,210,14660,409,3066,224,4278,199,370,50,3805,246,7192,319]
[null,"Female",3414,249,2664,152,2125,130,1847,131,2545,149,2197,113,2289,109,16504,532,1211,95,3421,206,8128,323,2334,140,2060,114,4398,242,7851,268,1096,100,1115,91,2931,285,13102,278,447,95,943,135,342,48,4327,279,2356,177,2345,115,2274,170,2687,124,4032,279,10972,344,5199,296,2565,201,14241,433,3220,235,4500,185,397,59,3577,248,7297,297]
[null,"Same house 1 year ago:",6188,384,5257,98,3720,301,3647,103,4651,190,4064,200,4089,153,29131,676,2143,196,6536,181,13220,429,4313,131,3622,125,7301,341,14047,309,2113,142,2057,137,5570,495,23727,501,737,161,1588,203,656,84,7169,390,4471,201,4075,213,3904,175,4746,124,6627,467,17330,508,9001,483,5069,218,26049,583,5627,474,7682,336,726,95,6902,233,13205,510]
[null,"Male",3163,280,2677,155,1825,183,1927,146,2350,179,2068,144,1958,120,14662,579,1040,114,3262,243,6061,370,2160,143,1709,112,3492,267,6996,318,1139,100,1059,82,2833,352,11790,393,340,95,750,105,337,56,3598,308,2325,179,1926,144,1818,164,2234,128,3238,320,8228,399,4378,369,2740,246,13171,475,2682,287,3778,262,352,51,3637,280,6637,342]
[null,"Female",3025,287,2580,152,1895,184,1720,136,2301,175,1996,142,2131,129,14469,574,1103,114,3274,203,7159,353,2153,139,1913,119,3809,300,7051,253,974,81,998,90,2737,346,11937,330,397,87,838,118,319,47,3571,304,2146,180,2149,182,2086,204,2512,135,3389,358,9102,377,4623,377,2329,216,12878,424,2945,350,3904,236,374,60,3265,256,6568,420]
[null,"Moved within same county:",417,330,52,58,518,219,80,45,334,178,200,164,159,96,1875,437,234,182,208,126,974,305,164,72,166,106,737,310,820,253,149,82,122,69,421,470,898,327,47,41,86,58,34,39,693,246,117,110,96,55,154,96,122,85,390,237,1778,360,813,379,207,165,1082,365,560,424,588,275,4,7,311,199,568,356]
[null,"Male",195,159,0,16,360,157,29,24,136,77,99,81,94,64,877,222,139,120,122,91,355,147,55,42,46,39,392,229,293,116,91,47,58,37,318,359,435,185,25,23,27,26,18,21,342,128,83,103,37,35,49,33,26,25,149,92,914,225,391,217,93,90,573,255,326,252,278,138,2,5,131,99,248,175]
[null,"Female",222,195,52,58,158,81,51,33,198,114,101,86,65,49,998,296,95,65,86,80,619,233,109,50,120,82,345,141,527,179,58,40,64,36,103,118,463,178,22,24,59,40,16,18,351,151,34,32,59,41,105,71,96,71,241,187,864,237,422,210,114,82,509,197,234,179,310,151,2,4,180,114,320,287]
[null,"Moved from different county within same state:",47,65,59,74,49,26,106,72,10,15,48,59,55,51,513,213,0,11,21,25,222,143,0,11,52,61,58,44,137,68,53,61,8,9,0,16,509,198,0,11,12,13,0,11,595,279,58,68,97,63,135,119,35,43,1,2,454,157,308,253,55,65,172,125,13,20,61,61,0,11,58,72,151,157]
[null,"Male",9,18,37,53,44,23,47,33,0,16,23,35,20,22,225,98,0,11,21,25,36,42,0,11,43,59,42,38,66,45,19,29,5,7,0,16,191,95,0,11,3,6,0,11,424,221,10,15,51,45,78,68,0,16,0,16,189,84,243,192,38,44,123,83,0,16,18,19,0,11,23,36,46,43]
[null,"Female",38,61,22,28,5,11,59,52,10,15,25,28,35,34,288,150,0,11,0,16,186,113,0,11,9,15,16,24,71,38,34,33,3,6,0,16,318,126,0,11,9,11,0,11,171,88,48,63,46,32,57,56,35,43,1,2,265,111,65,82,17,27,49,52,13,20,43,49,0,11,35,40,105,122]
[null,"Moved from different state:",246,194,45,43,180,91,41,41,99,79,174,119,128,105,1377,446,61,41,156,135,467,212,143,107,128,85,382,123,371,150,68,48,83,43,255,148,648,287,42,35,57,72,16,20,436,171,223,147,150,193,35,34,85,57,597,329,1802,377,197,124,106,120,1500,447,86,65,309,123,37,22,111,98,565,273]
[null,"Male",117,138,35,32,135,69,24,23,63,49,99,76,80,58,668,277,48,35,95,81,303,186,71,67,110,75,179,74,191,78,38,27,33,23,164,114,266,140,14,13,20,22,9,10,230,106,105,89,74,87,9,14,41,31,196,127,1205,265,108,85,17,23,738,278,58,42,133,68,16,14,14,24,261,122]
[null,"Female",129,106,10,16,45,34,17,19,36,33,75,65,48,53,709,242,13,12,61,61,164,73,72,70,18,18,203,91,180,87,30,23,50,26,91,62,382,169,28,26,37,52,7,11,206,102,118,79,76,108,26,24,44,34,401,264,597,181,89,52,89,100,762,259,28,33,176,107,21,12,97,92,304,171]
[null,"Moved from abroad:",0,16,0,16,45,66,0,11,10,17,0,11,10,15,99,104,0,11,0,16,60,58,0,11,20,20,25,41,40,47,0,11,0,11,0,16,12,16,0,11,0,11,5,6,47,61,28,32,29,28,10,16,0,16,13,21,277,218,16,25,16,25,98,95,0,16,138,191,0,11,0,16,0,18]
[null,"Male",0,16,0,16,23,33,0,11,10,17,0,11,0,11,59,56,0,11,0,16,60,58,0,11,20,20,0,16,18,23,0,11,0,11,0,16,10,15,0,11,0,11,5,6,19,30,18,19,14,16,10,16,0,16,13,21,133,118,16,25,0,16,55,83,0,16,71,98,0,11,0,16,0,18]
[null,"Female",0,16,0,16,22,33,0,11,0,16,0,11,10,15,40,59,0,11,0,16,0,18,0,11,0,11,25,41,22,25,0,11,0,11,0,16,2,4,0,11,0,11,0,11,28,32,10,16,15,17,0,11,0,16,0,16,144,110,0,18,16,25,43,47,0,16,67,94,0,11,0,16,0,18]
[]
[null,"Calculated B07003. GEOGRAPHICAL MOBILITY IN THE PAST YEAR BY SEX FOR CURRENT RESIDENCE IN THE UNITED STATES "]
[null,null,{"$f":"C5","v":"Atkinson"},null,"Auburn",null,"Brentwood",null,"Candia",null,"Chester",null,"Danville",null,"Deerfield",null,"Derry",null,"East Kingston",null,"Epping",null,"Exeter",null,{"$f":"Y5","v":"Fremont"},null,{"$f":"AA5","v":"Greenland"},null,{"$f":"AC5","v":"Hampstead"},null,{"$f":"AE5","v":"Hampton"},null,{"$f":"AG5","v":"Hampton Falls"},null,{"$f":"AI5","v":"Kensington"},null,{"$f":"AK5","v":"Kingston"},null,{"$f":"AM5","v":"Londonderry"},null,{"$f":"AO5","v":"New Castle"},null,{"$f":"AQ5","v":"Newfields"},null,{"$f":"AS5","v":"Newington"},null,{"$f":"AU5","v":"Newmarket"},null,{"$f":"AW5","v":"Newton"},null,{"$f":"AY5","v":"North Hampton"},null,{"$f":"BA5","v":"Northwood"},null,{"$f":"BC5","v":"Nottingham"},null,{"$f":"BE5","v":"Plaistow"},null,{"$f":"BG5","v":"Portsmouth"},null,{"$f":"BI5","v":"Raymond"},null,{"$f":"BK5","v":"Rye"},null,{"$f":"BM5","v":"Salem"},null,{"$f":"BO5","v":"Sandown"},null,{"$f":"BQ5","v":"Seabrook"},null,{"$f":"BS5","v":"South Hampton"},null,{"$f":"BU5","v":"Stratham"},null,{"$f":"BW5","v":"Windham"}]
[null,null,"Estimate","Margin Of Error","Estimate","Margin Of Error","Estimate","Margin Of Error","Estimate","Margin Of Error","Estimate","Margin Of Error","Estimate","Margin Of Error","Estimate","Margin Of Error","Estimate","Margin Of Error","Estimate","Margin Of Error","Estimate","Margin Of Error","Estimate",{"$f":"X6","v":"Margin Of Error"},{"$f":"Y6","v":"Estimate"},{"$f":"Z6","v":"Margin Of Error"},"Estimate","Margin Of Error","Estimate","Margin Of Error","Estimate","Margin Of Error","Estimate","Margin Of Error","Estimate","Margin Of Error","Estimate","Margin Of Error","Estimate","Margin Of Error","Estimate","Margin Of Error","Estimate","Margin Of Error","Estimate","Margin Of Error","Estimate","Margin Of Error","Estimate","Margin Of Error","Estimate","Margin Of Error","Estimate","Margin Of Error","Estimate","Margin Of Error","Estimate","Margin Of Error","Estimate","Margin Of Error","Estimate","Margin Of Error","Estimate","Margin Of Error","Estimate","Margin Of Error","Estimate","Margin Of Error","Estimate","Margin Of Error","Estimate","Margin Of Error","Estimate","Margin Of Error","Estimate","Margin Of Error"]
[]
[null,"  Total:",{"$f":"C7","v":6898},{"$f":"D7","v":55},{"$f":"E7","v":5413},37,4512,67,3874,47,5104,37,4486,43,4441,48,32995,158,2438,195,6921,52,14943,92,{"$f":"Y7","v":4620},46,3988,33,8503,67,15415,52,2383,164,2270,133,6246,37,25794,79,826,173,1743,226,711,87,8940,63,4897,37,4447,24,4238,55,4988,54,7628,57,21641,82,10335,66,5453,40,28901,149,6286,67,8778,58,767,94,7382,51,14489,99]
[null,"    Same house ",{"$f":"C10","v":6188},{"$f":"D10","v":384},{"$f":"E10","v":5257},98,3720,301,3647,103,4651,190,4064,200,4089,153,29131,676,2143,196,6536,181,13220,429,{"$f":"Y10","v":4313},131,3622,125,7301,341,14047,309,2113,142,2057,137,5570,495,23727,501,737,161,1588,203,656,84,7169,390,4471,201,4075,213,3904,175,4746,124,6627,467,17330,508,9001,483,5069,218,26049,583,5627,474,7682,336,726,95,6902,233,13205,510]
[null,"    Different house 2",{"$f":"C13+C16+C19+C22","v":710},{"$f":"SQRT((D13^2)+(D16^2)+(D19^2)+(D22^2))","v":388.60905805191931},{"$f":"E13+E16+E19+E22","v":156},{"$f":"SQRT((F13^2)+(F16^2)+(F19^2)+(F22^2))","v":104.61835403025609},{"$f":"G13+G16+G19+G22","v":792},{"$f":"SQRT((H13^2)+(H16^2)+(H19^2)+(H22^2))","v":247.53585598858197},{"$f":"I13+I16+I19+I22","v":227},{"$f":"SQRT((J13^2)+(J16^2)+(J19^2)+(J22^2))","v":94.926287191694172},{"$f":"K13+K16+K19+K22","v":453},{"$f":"SQRT((L13^2)+(L16^2)+(L19^2)+(L22^2))","v":196.05866468993406},{"$f":"M13+M16+M19+M22","v":422},{"$f":"SQRT((N13^2)+(N16^2)+(N19^2)+(N22^2))","v":211.32676120169921},{"$f":"O13+O16+O19+O22","v":352},{"$f":"SQRT((P13^2)+(P16^2)+(P19^2)+(P22^2))","v":151.87824070616568},{"$f":"Q13+Q16+Q19+Q22","v":3864},{"$f":"SQRT((R13^2)+(R16^2)+(R19^2)+(R22^2))","v":667.88472059180992},{"$f":"S13+S16+S19+S22","v":295},{"$f":"SQRT((T13^2)+(T16^2)+(T19^2)+(T22^2))","v":187.20843998068037},{"$f":"U13+U16+U19+U22","v":385},{"$f":"SQRT((V13^2)+(V16^2)+(V19^2)+(V22^2))","v":187.03475612837309},{"$f":"W13+W16+W19+W22","v":1723},{"$f":"SQRT((X13^2)+(X16^2)+(X19^2)+(X22^2))","v":402.22133210460134},{"$f":"Y13+Y16+Y19+Y22","v":307},{"$f":"SQRT((Z13^2)+(Z16^2)+(Z19^2)+(Z22^2))","v":129.9038105676658},{"$f":"AA13+AA16+AA19+AA22","v":366},{"$f":"SQRT((AB13^2)+(AB16^2)+(AB19^2)+(AB22^2))","v":150.2730847490661},{"$f":"AC13+AC16+AC19+AC22","v":1202},{"$f":"SQRT((AD13^2)+(AD16^2)+(AD19^2)+(AD22^2))","v":338.88936247690043},{"$f":"AE13+AE16+AE19+AE22","v":1368},{"$f":"SQRT((AF13^2)+(AF16^2)+(AF19^2)+(AF22^2))","v":305.51923016399473},{"$f":"AG13+AG16+AG19+AG22","v":270},{"$f":"SQRT((AH13^2)+(AH16^2)+(AH19^2)+(AH22^2))","v":113.44602240713422},{"$f":"AI13+AI16+AI19+AI22","v":213},{"$f":"SQRT((AJ13^2)+(AJ16^2)+(AJ19^2)+(AJ22^2))","v":82.534841127853397},{"$f":"AK13+AK16+AK19+AK22","v":676},{"$f":"SQRT((AL13^2)+(AL16^2)+(AL19^2)+(AL22^2))","v":493.27071674689955},{"$f":"AM13+AM16+AM19+AM22","v":2067},{"$f":"SQRT((AN13^2)+(AN16^2)+(AN19^2)+(AN22^2))","v":478.28652500357981},{"$f":"AO13+AO16+AO19+AO22","v":89},{"$f":"SQRT((AP13^2)+(AP16^2)+(AP19^2)+(AP22^2))","v":56.107040556422149},{"$f":"AQ13+AQ16+AQ19+AQ22","v":155},{"$f":"SQRT((AR13^2)+(AR16^2)+(AR19^2)+(AR22^2))","v":94.010637695954387},{"$f":"AS13+AS16+AS19+AS22","v":55},{"$f":"SQRT((AT13^2)+(AT16^2)+(AT19^2)+(AT22^2))","v":45.585085280165927},{"$f":"AU13+AU16+AU19+AU22","v":1771},{"$f":"SQRT((AV13^2)+(AV16^2)+(AV19^2)+(AV22^2))","v":413.90699438400412},{"$f":"AW13+AW16+AW19+AW22","v":426},{"$f":"SQRT((AX13^2)+(AX16^2)+(AX19^2)+(AX22^2))","v":198.38598740838526},{"$f":"AY13+AY16+AY19+AY22","v":372},{"$f":"SQRT((AZ13^2)+(AZ16^2)+(AZ19^2)+(AZ22^2))","v":212.1956644231922},{"$f":"BA13+BA16+BA19+BA22","v":334},{"$f":"SQRT((BB13^2)+(BB16^2)+(BB19^2)+(BB22^2))","v":157.44522857171634},{"$f":"BC13+BC16+BC19+BC22","v":242},{"$f":"SQRT((BD13^2)+(BD16^2)+(BD19^2)+(BD22^2))","v":112.15614116043757},{"$f":"BE13+BE16+BE19+BE22","v":1001},{"$f":"SQRT((BF13^2)+(BF16^2)+(BF19^2)+(BF22^2))","v":406.02339834053902},{"$f":"BG13+BG16+BG19+BG22","v":4311},{"$f":"SQRT((BH13^2)+(BH16^2)+(BH19^2)+(BH22^2))","v":586.43158168707112},{"$f":"BI13+BI16+BI19+BI22","v":1334},{"$f":"SQRT((BJ13^2)+(BJ16^2)+(BJ19^2)+(BJ22^2))","v":472.91754038098441},{"$f":"BK13+BK16+BK19+BK22","v":384},{"$f":"SQRT((BL13^2)+(BL16^2)+(BL19^2)+(BL22^2))","v":215.58061137310099},{"$f":"BM13+BM16+BM19+BM22","v":2852},{"$f":"SQRT((BN13^2)+(BN16^2)+(BN19^2)+(BN22^2))","v":598.06688589153634},{"$f":"BO13+BO16+BO19+BO22","v":659},{"$f":"SQRT((BP13^2)+(BP16^2)+(BP19^2)+(BP22^2))","v":429.71734896324585},{"$f":"BQ13+BQ16+BQ19+BQ22","v":1096},{"$f":"SQRT((BR13^2)+(BR16^2)+(BR19^2)+(BR22^2))","v":361.87843262620669},{"$f":"BS13+BS16+BS19+BS22","v":41},{"$f":"SQRT((BT13^2)+(BT16^2)+(BT19^2)+(BT22^2))","v":27.838821814150108},{"$f":"BU13+BU16+BU19+BU22","v":480},{"$f":"SQRT((BV13^2)+(BV16^2)+(BV19^2)+(BV22^2))","v":233.7627001897437},{"$f":"BW13+BW16+BW19+BW22","v":1284},{"$f":"SQRT((BX13^2)+(BX16^2)+(BX19^2)+(BX22^2))","v":475.64482547379828}]
[null,"      in New Hampshire",{"$f":"C16+C13","v":464},{"$f":"SQRT((D16^2)+(D13^2))","v":336.34060117684277},{"$f":"E16+E13","v":111},{"$f":"SQRT((F16^2)+(F13^2))","v":94.021274188345274},{"$f":"G16+G13","v":567},{"$f":"SQRT((H16^2)+(H13^2))","v":220.53797858872289},{"$f":"I16+I13","v":186},{"$f":"SQRT((J16^2)+(J13^2))","v":84.905830188509441},{"$f":"K16+K13","v":344},{"$f":"SQRT((L16^2)+(L13^2))","v":178.63090438107287},{"$f":"M16+M13","v":248},{"$f":"SQRT((N16^2)+(N13^2))","v":174.28998823799375},{"$f":"O16+O13","v":214},{"$f":"SQRT((P16^2)+(P13^2))","v":108.70602559196064},{"$f":"Q16+Q13","v":2388},{"$f":"SQRT((R16^2)+(R13^2))","v":486.1460685843299},{"$f":"S16+S13","v":234},{"$f":"SQRT((T16^2)+(T13^2))","v":182.33211456021672},{"$f":"U16+U13","v":229},{"$f":"SQRT((V16^2)+(V13^2))","v":128.4562182223967},{"$f":"W16+W13","v":1196},{"$f":"SQRT((X16^2)+(X13^2))","v":336.85902095683883},{"$f":"Y16+Y13","v":164},{"$f":"SQRT((Z16^2)+(Z13^2))","v":72.835430938520574},{"$f":"AA16+AA13","v":218},{"$f":"SQRT((AB16^2)+(AB13^2))","v":122.29881438509533},{"$f":"AC16+AC13","v":795},{"$f":"SQRT((AD16^2)+(AD13^2))","v":313.10701046127986},{"$f":"AE16+AE13","v":957},{"$f":"SQRT((AF16^2)+(AF13^2))","v":261.97900679252911},{"$f":"AG16+AG13","v":202},{"$f":"SQRT((AH16^2)+(AH13^2))","v":102.20078277586722},{"$f":"AI16+AI13","v":130},{"$f":"SQRT((AJ16^2)+(AJ13^2))","v":69.584481028459209},{"$f":"AK16+AK13","v":421},{"$f":"SQRT((AL16^2)+(AL13^2))","v":470.27226156770081},{"$f":"AM16+AM13","v":1407},{"$f":"SQRT((AN16^2)+(AN13^2))","v":382.27346232769025},{"$f":"AO16+AO13","v":47},{"$f":"SQRT((AP16^2)+(AP13^2))","v":42.449970553582247},{"$f":"AQ16+AQ13","v":98},{"$f":"SQRT((AR16^2)+(AR13^2))","v":59.439044406854322},{"$f":"AS16+AS13","v":34},{"$f":"SQRT((AT16^2)+(AT13^2))","v":40.521599178709621},{"$f":"AU16+AU13","v":1288},{"$f":"SQRT((AV16^2)+(AV13^2))","v":371.96370790710216},{"$f":"AW16+AW13","v":175},{"$f":"SQRT((AX16^2)+(AX13^2))","v":129.32130528261769},{"$f":"AY16+AY13","v":193},{"$f":"SQRT((AZ16^2)+(AZ13^2))","v":83.630138108220294},{"$f":"BA16+BA13","v":289},{"$f":"SQRT((BB16^2)+(BB13^2))","v":152.89538907370621},{"$f":"BC16+BC13","v":157},{"$f":"SQRT((BD16^2)+(BD13^2))","v":95.257545632878873},{"$f":"BE16+BE13","v":391},{"$f":"SQRT((BF16^2)+(BF13^2))","v":237.00843866833097},{"$f":"BG16+BG13","v":2232},{"$f":"SQRT((BH16^2)+(BH13^2))","v":392.74546464599689},{"$f":"BI16+BI13","v":1121},{"$f":"SQRT((BJ16^2)+(BJ13^2))","v":455.6862956025779},{"$f":"BK16+BK13","v":262},{"$f":"SQRT((BL16^2)+(BL13^2))","v":177.34147850968199},{"$f":"BM16+BM13","v":1254},{"$f":"SQRT((BN16^2)+(BN13^2))","v":385.81083447720852},{"$f":"BO16+BO13","v":573},{"$f":"SQRT((BP16^2)+(BP13^2))","v":424.47143602367402},{"$f":"BQ16+BQ13","v":649},{"$f":"SQRT((BR16^2)+(BR13^2))","v":281.68422036031768},{"$f":"BS16+BS13","v":4},{"$f":"SQRT((BT16^2)+(BT13^2))","v":13.038404810405298},{"$f":"BU16+BU13","v":369},{"$f":"SQRT((BV16^2)+(BV13^2))","v":211.62466774929618},{"$f":"BW16+BW13","v":719},{"$f":"SQRT((BX16^2)+(BX13^2))","v":389.08225351460067}]
[null,"          Same county",{"$f":"C13","v":417},{"$f":"D13","v":330},{"$f":"E13","v":52},58,518,219,80,45,334,178,200,164,159,96,1875,437,234,182,208,126,974,305,{"$f":"Y13","v":164},72,166,106,737,310,820,253,149,82,122,69,421,470,898,327,47,41,86,58,34,39,693,246,117,110,96,55,154,96,122,85,390,237,1778,360,813,379,207,165,1082,365,560,424,588,275,4,7,311,199,568,356]
[null,"          Different county",{"$f":"C16","v":47},{"$f":"D16","v":65},{"$f":"E16","v":59},74,49,26,106,72,10,15,48,59,55,51,513,213,0,11,21,25,222,143,{"$f":"Y16","v":0},11,52,61,58,44,137,68,53,61,8,9,0,16,509,198,0,11,12,13,0,11,595,279,58,68,97,63,135,119,35,43,1,2,454,157,308,253,55,65,172,125,13,20,61,61,0,11,58,72,151,157]
[null,"      in Different state",{"$f":"C19","v":246},{"$f":"D19","v":194},{"$f":"E19","v":45},43,180,91,41,41,99,79,174,119,128,105,1377,446,61,41,156,135,467,212,{"$f":"Y19","v":143},107,128,85,382,123,371,150,68,48,83,43,255,148,648,287,42,35,57,72,16,20,436,171,223,147,150,193,35,34,85,57,597,329,1802,377,197,124,106,120,1500,447,86,65,309,123,37,22,111,98,565,273]
[null,"       Elsewhere",{"$f":"C22","v":0},{"$f":"D22","v":16},{"$f":"E22","v":0},16,45,66,0,11,10,17,0,11,10,15,99,104,0,11,0,16,60,58,{"$f":"Y22","v":0},11,20,20,25,41,40,47,0,11,0,11,0,16,12,16,0,11,0,11,5,6,47,61,28,32,29,28,10,16,0,16,13,21,277,218,16,25,16,25,98,95,0,16,138,191,0,11,0,16,0,18]
[]
[]
[]
[]
[]
[]
[]
[]
[]
[]
[]
[]
[]
[]
[]
[]
[]
[]
[]
[]
[]
[]
[null,"Calculated B07003. GEOGRAPHICAL MOBILITY IN THE PAST YEAR BY SEX FOR CURRENT RESIDENCE IN THE UNITED STATES "]
[]
[]
[null,null,"Atkinson",null,"Auburn",null,"Brentwood",null,"Candia",null,"Chester",null,"Danville",null,"Deerfield",null,"Derry",null,"East Kingston",null,"Epping",null,"Exeter",null,"Fremont",null,"Greenland",null,"Hampstead",null,"Hampton",null,"Hampton Falls",null,"Kensington",null,"Kingston",null,"Londonderry",null,"New Castle",null,"Newfields",null,"Newington",null,"Newmarket",null,"Newton",null,"North Hampton",null,"Northwood",null,"Nottingham",null,"Plaistow",null,"Portsmouth",null,"Raymond",null,"Rye",null,"Salem",null,"Sandown",null,"Seabrook",null,"South Hampton",null,"Stratham",null,"Windham"]
[null,null,"Estimate","Margin Of Error","Estimate","Margin Of Error","Estimate","Margin Of Error","Estimate","Margin Of Error","Estimate","Margin Of Error","Estimate","Margin Of Error","Estimate","Margin Of Error","Estimate","Margin Of Error","Estimate","Margin Of Error","Estimate","Margin Of Error","Estimate","Margin Of Error","Estimate","Margin Of Error","Estimate","Margin Of Error","Estimate","Margin Of Error","Estimate","Margin Of Error","Estimate","Margin Of Error","Estimate","Margin Of Error","Estimate","Margin Of Error","Estimate","Margin Of Error","Estimate","Margin Of Error","Estimate","Margin Of Error","Estimate","Margin Of Error","Estimate","Margin Of Error","Estimate","Margin Of Error","Estimate","Margin Of Error","Estimate","Margin Of Error","Estimate","Margin Of Error","Estimate","Margin Of Error","Estimate","Margin Of Error","Estimate","Margin Of Error","Estimate","Margin Of Error","Estimate","Margin Of Error","Estimate","Margin Of Error","Estimate","Margin Of Error","Estimate","Margin Of Error","Estimate","Margin Of Error","Estimate","Margin Of Error"]
[]
[null,"  Total:",6724,63,5028,46,4567,43,3902,28,4758,52,4373,52,4308,32,32897,218,2422,128,6503,64,14369,63,4318,49,3601,55,8497,63,14963,72,2284,121,2040,147,5993,66,24041,91,971,158,1597,211,792,134,8817,86,4697,42,4293,61,4196,54,4817,40,7614,26,21109,118,9967,128,5315,18,28522,101,6101,60,8661,85,797,123,7242,74,13826,84]
[null,"    Same house ",6309,307,4655,152,3770,279,3717,90,4296,259,3928,181,4107,102,29356,687,2246,132,6053,225,12752,370,3692,259,3321,149,8200,166,12955,418,2072,154,1828,150,5517,292,22720,357,883,153,1422,207,725,126,6301,559,4005,257,3920,174,3968,135,4460,182,6960,331,17053,575,8344,556,4721,377,25905,524,5925,166,7686,379,736,116,6801,276,12623,401]
[null,"    Different house 2",415,249.71183392062139,373,157.82585339544343,797,319.10499839394555,185,82.879430499973878,462,256.88518836242775,445,196.47900651214624,201,104.77117924314874,3541,642.37839316091572,176,114.4333867365639,450,228.78155520058866,1617,436.19032543145659,626,268.87171662337414,280,155.44774041458436,297,159.58383376770968,2008,452.60689345170164,212,107.17275773255068,212,86.775572599666546,476,299.78492290307065,1321,318.13519138881821,88,63.023805026354921,175,78.765474670060868,67,47.191100855987671,2516,666.56957626342353,692,246.55628160726306,373,156.85343477272022,228,114.9826073804208,357,170.42006924068539,654,316.67175434509471,4056,606.78661817808734,1623,532.05544823824516,594,322.41743129055538,2617,492.42765966180252,176,145.91778507090902,975,395.01392380522486,61,42.743420546325019,441,279.23466833471804,1203,412.51424217837621]
[null,"      in New Hampshire",142,141.79562757715769,320,153.7010084547268,468,138.19551367537227,148,77.89736837660179,316,246.34325645326686,199,96.135321292436529,144,91.285267157411553,2416,493.96356140913878,111,107.11675872616759,389,218.68013169924697,978,364.63817682738596,500,253.47583711273151,188,132.54433220624713,172,129.83836104942176,1428,387.41192547468125,141,96.938124595021947,106,53.758720222862451,375,281.85989427373312,1028,295.16097302997224,80,61.400325732035007,135,71.568149340331559,52,43.011626335213137,1966,599.70075871220979,292,183.77431811871864,299,146.10270360263701,142,83.761566365487695,294,147.87156589419075,523,298.02684442848431,2684,517.67653993589477,1463,526.43898031965682,365,234.95531490051465,1401,313.08784709726439,176,144.36758638974331,808,381.58878390225254,17,20.248456731316587,237,238.4659304806454,624,325.71152881038768]
[null,"          Same county",142,141,102,82,373,123,75,58,109,77,178,91,84,83,2142,476,108,107,334,210,829,335,433,235,178,132,149,127,1199,362,80,66,58,37,258,238,740,264,56,49,118,69,36,41,1242,504,261,173,206,111,51,46,161,85,522,298,2018,470,1129,467,319,230,1195,290,151,141,731,377,17,17,182,225,468,302]
[null,"          Different county",0,15,218,130,95,63,73,52,207,234,21,31,60,38,274,132,3,5,55,61,149,144,67,95,10,12,23,27,229,138,61,71,48,39,117,151,288,132,24,37,17,19,16,13,724,325,31,62,93,95,91,70,133,121,1,4,666,217,334,243,46,48,206,118,25,31,77,59,0,11,55,79,156,122]
[null,"      in Different state",273,205,38,31,318,287,27,24,139,72,246,171,50,50,1083,409,58,39,39,58,519,201,126,89,83,80,83,80,514,189,66,45,103,68,101,101,253,109,8,9,40,31,15,16,368,157,400,164,74,56,86,78,63,84,131,106,1257,300,111,64,207,218,1108,365,0,15,167,101,44,36,174,141,564,252]
[null,"       Elsewhere",0,15,15,18,11,19,10,15,7,11,0,11,7,12,42,37,7,10,22,34,120,130,0,11,9,14,42,47,66,138,5,8,3,4,0,15,40,47,0,11,0,11,0,11,182,245,0,11,0,11,0,11,0,11,0,15,115,101,49,43,22,35,108,106,0,15,0,15,0,11,30,35,15,24]
[]
[]
[null,"Calculated GEOGRAPHICAL MOBILITY IN THE PAST YEAR BY SEX FOR CURRENT RESIDENCE IN THE UNITED STATES"]
[null,"Universe:  POPULATION 1 YEAR AND OVER IN THE UNITED STATES"]
[null,"Data Set: 2005-2009 American Community Survey 5-Year Estimates"]
[null,null,"Atkinson",null,"Auburn",null,"Brentwood",null,"Candia",null,"Chester",null,"Danville",null,"Deerfield",null,"Derry",null,"East Kingston",null,"Epping",null,"Exeter",null,"Fremont",null,"Greenland",null,"Hampstead",null,"Hampton",null,"Hampton Falls",null,"Kensington",null,"Kingston",null,"Londonderry",null,"New Castle",null,"Newfields",null,"Newington",null,"Newmarket",null,"Newton",null,"North Hampton",null,"Northwood",null,"Nottingham",null,"Plaistow",null,"Portsmouth",null,"Raymond",null,"Rye",null,"Salem",null,"Sandown",null,"Seabrook",null,"South Hampton",null,"Stratham",null,"Windham"]
[null,null,"Estimate","Margin Of Error","Estimate","Margin Of Error","Estimate","Margin Of Error","Estimate","Margin Of Error","Estimate","Margin Of Error","Estimate","Margin Of Error","Estimate","Margin Of Error","Estimate","Margin Of Error","Estimate","Margin Of Error","Estimate","Margin Of Error","Estimate","Margin Of Error","Estimate","Margin Of Error","Estimate","Margin Of Error","Estimate","Margin Of Error","Estimate","Margin Of Error","Estimate","Margin Of Error","Estimate","Margin Of Error","Estimate","Margin Of Error","Estimate","Margin Of Error","Estimate","Margin Of Error","Estimate","Margin Of Error","Estimate","Margin Of Error","Estimate","Margin Of Error","Estimate","Margin Of Error","Estimate","Margin Of Error","Estimate","Margin Of Error","Estimate","Margin Of Error","Estimate","Margin Of Error","Estimate","Margin Of Error","Estimate","Margin Of Error","Estimate","Margin Of Error","Estimate","Margin Of Error","Estimate","Margin Of Error","Estimate","Margin Of Error","Estimate","Margin Of Error","Estimate","Margin Of Error","Estimate","Margin Of Error"]
[null,"Total",6558,65,5076,73,3843,32,4144,37,4670,39,4327,35,4120,38,33787,129,2293,117,6154,57,14606,98,4054,39,3362,49,8861,38,15364,41,2323,142,2115,163,6122,70,24742,103,722,135,1821,237,691,109,9275,68,4462,47,4510,39,4060,26,4385,56,7556,99,20417,70,10020,99,5153,33,29121,131,5793,34,8458,43,798,129,7152,53,12931,80]
[null,"    Same house ",6131,200,4554,225,3460,160,3968,104,4566,85,4069,152,3832,135,29348,776,2152,118,5747,179,12574,431,3860,116,3096,191,8190,327,12983,553,2145,146,1962,155,5555,254,22978,518,671,134,1702,223,551,95,7296,407,4253,106,4261,153,3814,149,4064,146,6835,391,16007,578,8676,430,4699,234,26638,506,5185,271,7753,231,752,127,6490,316,12363,184]
[null,"    Different house ",427,191.54633904097463,522,241.23432591569551,383,145.01379244747721,176,148.55975228843107,104,60.868711174132805,258,186.45911079912401,288,132.63860674780929,4439,838.40980433198661,141,134.77759457714032,407,179.58284996067971,2032,501.49277163285217,194,165.21803775617238,266,256.36302385484532,671,340.58332313840617,2381,598.60504508398526,178,143.63147287415805,153,66.955208908642803,567,266.03947075575081,1764,543.56784305181259,51,205.24132137559434,119,83.731714421717172,140,132.42733856723089,1979,438.85532923732393,209,148.24641648282767,249,136.63454907160195,246,181.9560386467017,321,206.7510580384052,721,377.62547583551617,4410,652.95482232693564,1344,434.10828142296481,454,229.237867726953,2483,577.86330563551098,608,293.34791630417283,705,258.71219530590361,46,119.55333537798099,662,291.94691298248046,568,186.69493833524251]
[null,"      in New Hampshire",168,112.27199116431488,370,177.50774630984418,317,141.65097952361643,133,85.982556370463882,69,51.623637996561229,83,63.890531379853151,232,113.01769772916099,3350,783.61789157726616,73,122.19656296312102,347,171.14321488157222,1265,405.7647101461634,104,76.400261779656233,197,222.43425995111454,329,257.59852484049674,1574,484.4625888549084,51,117.15374513859982,86,47.518417482066887,371,211.62466774929618,1466,526.03136788598454,51,127.01181047445942,38,29.681644159311659,106,62.968245965724662,1444,320.33888305979968,157,82.855295545909442,192,123.62847568420473,208,138.15932831336434,267,164.76953601925328,499,316.26096818924714,2822,539.62672283718496,744,252.83393759541065,218,149.64290828502365,1185,416.36762602296545,516,287.70297183032363,400,217.11747972008149,15,14.422205101855956,494,270.83574357901875,266,117.17508267545622]
[null,"          Same county",137,107,131,90,257,137,39,47,56,48,49,49,158,97,2209,659,73,44,330,169,814,271,92,74,197,191,329,231,1241,460,51,27,81,47,235,177,654,303,51,56,28,25,94,62,825,224,136,76,180,122,48,52,134,118,499,295,1974,374,575,230,200,147,1063,399,450,282,386,216,6,8,425,254,246,113]
[null,"          Different county",31,34,239,153,60,36,94,72,13,19,34,41,74,58,1141,424,0,114,17,27,451,302,12,19,0,114,0,114,333,152,0,114,5,7,136,116,812,430,0,114,10,16,12,11,619,229,21,33,12,20,160,128,133,115,0,114,848,389,169,105,18,28,122,119,66,57,14,22,9,12,69,94,20,31]
[null,"      in Different state",239,153,152,117,61,30,43,41,25,28,175,133,50,68,1044,293,36,32,50,52,629,273,90,92,69,57,292,218,705,318,124,83,65,47,196,114,250,129,0,114,33,37,34,24,514,299,52,46,38,51,38,32,54,51,222,172,1368,327,560,350,236,131,1168,390,84,56,274,136,31,33,114,91,279,143]
[null,"       Elsewhere",20,26,0,114,5,8,0,114,10,16,0,114,6,14,45,55,32,47,10,16,138,111,0,114,0,114,50,46,102,150,3,4,2,4,0,114,48,46,0,114,48,69,0,114,21,24,0,114,19,28,0,114,0,114,0,114,220,168,40,45,0,114,130,92,8,12,31,36,0,114,54,60,23,26]

{"sheet":"ACS_Table_B25075_&_B25077","index":65,"n_rows":159,"n_cols":76,"rows_kept":159,"cut":false,"hidden":true,"merged":[]}
[null,"B25075. VALUE"]
[null,"Universe:  OWNER-OCCUPIED HOUSING UNITS"]
[null,"Data Set: 2015-2019 American Community Survey 5-Year Estimates"]
[]
[null,null,"Atkinson",null,"Auburn",null,"Brentwood",null,"Candia",null,"Chester",null,"Danville",null,"Deerfield",null,"Derry",null,"East Kingston",null,"Epping",null,"Exeter",null,"Fremont",null,"Greenland",null,"Hampstead",null,"Hampton",null,"Hampton Falls",null,"Kensington",null,"Kingston",null,"Londonderry",null,"New Castle",null,"Newfields",null,"Newington",null,"Newmarket",null,"Newton",null,"North Hampton",null,"Northwood",null,"Nottingham",null,"Plaistow",null,"Portsmouth",null,"Raymond",null,"Rye",null,"Salem",null,"Sandown",null,"Seabrook",null,"South Hampton",null,"Stratham",null,"Windham"]
[null,null,"Estimate","Margin Of Error","Estimate","Margin Of Error","Estimate","Margin Of Error","Estimate","Margin Of Error","Estimate","Margin Of Error","Estimate","Margin Of Error","Estimate","Margin Of Error","Estimate","Margin Of Error","Estimate","Margin Of Error","Estimate","Margin Of Error","Estimate","Margin Of Error","Estimate","Margin Of Error","Estimate","Margin Of Error","Estimate","Margin Of Error","Estimate","Margin Of Error","Estimate","Margin Of Error","Estimate","Margin Of Error","Estimate","Margin Of Error","Estimate","Margin Of Error","Estimate","Margin Of Error","Estimate","Margin Of Error","Estimate","Margin Of Error","Estimate","Margin Of Error","Estimate","Margin Of Error","Estimate","Margin Of Error","Estimate","Margin Of Error","Estimate","Margin Of Error","Estimate","Margin Of Error","Estimate","Margin Of Error","Estimate","Margin Of Error","Estimate","Margin Of Error","Estimate","Margin Of Error","Estimate","Margin Of Error","Estimate","Margin Of Error","Estimate","Margin Of Error","Estimate","Margin Of Error","Estimate","Margin Of Error"]
[null,"Total",2551,169,1819,147,1400,110,1454,91,1642,95,1430,117,1453,121,8291,386,849,65,2288,170,4479,253,1614,99,1256,86,2789,176,5394,240,828,64,760,46,2031,186,7989,256,391,80,560,66,259,37,2121,197,1487,144,1612,123,1460,120,1767,119,2548,220,5237,245,3224,225,1941,155,9006,348,2025,145,2600,211,264,36,2487,162,4805,205]
[null,"Less than $10,000",0,16,0,16,7,11,0,11,0,16,8,12,25,28,31,30,7,10,26,30,57,51,17,18,0,11,10,16,28,35,0,11,0,11,28,34,18,19,3,6,4,6,4,5,9,14,0,11,8,13,0,11,0,16,57,74,23,28,10,17,0,16,27,30,0,16,19,20,2,4,19,30,19,30]
[null,"$10,000 to $14,999",0,16,0,16,0,11,0,11,0,16,0,11,0,11,13,21,0,11,67,68,20,22,0,11,0,11,0,16,8,13,0,11,0,11,0,16,20,32,0,11,0,11,0,11,0,16,0,11,0,11,8,13,0,16,0,16,0,21,9,16,0,16,31,29,0,16,0,16,0,11,0,16,0,18]
[null,"$15,000 to $19,999",0,16,0,16,0,11,11,17,0,16,8,13,0,11,9,14,0,11,29,34,68,56,0,11,0,11,0,16,5,7,0,11,0,11,0,16,44,68,0,11,0,11,0,11,21,31,0,11,7,12,0,11,0,16,0,16,17,19,19,31,0,16,0,21,0,16,0,16,0,11,0,16,0,18]
[null,"$20,000 to $24,999",0,16,0,16,0,11,9,14,0,16,0,11,13,19,0,24,0,11,0,16,61,33,0,11,0,11,10,17,6,9,0,11,3,4,0,16,0,21,0,11,4,7,0,11,0,16,0,11,0,11,0,11,0,16,0,16,16,25,0,18,0,16,8,12,0,16,0,16,0,11,0,16,0,18]
[null,"$25,000 to $29,999",0,16,0,16,0,11,0,11,0,16,13,19,0,11,0,24,7,10,0,16,75,51,0,11,0,11,0,16,29,30,0,11,0,11,0,16,28,25,0,11,0,11,0,11,0,16,0,11,10,15,0,11,0,16,0,16,12,18,31,38,0,16,71,49,0,16,0,16,0,11,11,17,0,18]
[null,"$30,000 to $34,999",13,21,0,16,0,11,0,11,11,16,12,19,0,11,10,17,0,11,11,19,66,37,0,11,0,11,0,16,24,28,0,11,4,5,0,16,29,29,0,11,0,11,0,11,8,12,0,11,26,25,0,11,0,16,0,16,19,27,62,53,0,16,110,116,0,16,25,29,0,11,0,16,0,18]
[null,"$35,000 to $39,999",0,16,0,16,0,11,46,62,0,16,8,14,0,11,0,24,0,11,0,16,47,34,0,11,0,11,11,17,0,18,0,11,0,11,0,16,26,30,0,11,0,11,0,11,0,16,10,16,0,11,0,11,0,16,0,16,19,23,63,62,0,16,13,20,0,16,0,16,0,11,0,16,0,18]
[null,"$40,000 to $49,999",13,20,0,16,0,11,19,21,0,16,21,24,0,11,57,65,0,11,103,108,146,73,0,11,0,11,29,33,40,39,0,11,0,11,0,16,67,52,0,11,0,11,0,11,0,16,0,11,39,42,24,19,9,14,0,16,20,32,15,17,0,16,29,29,0,16,73,70,2,3,0,16,0,18]
[null,"$50,000 to $59,999",0,16,0,16,0,11,0,11,0,16,24,38,0,11,57,44,0,11,0,16,110,75,0,11,0,11,0,16,0,18,0,11,0,11,0,16,21,25,0,11,0,11,0,11,8,12,17,19,40,54,0,11,0,16,0,16,9,13,21,25,0,16,59,50,0,16,30,34,0,11,10,16,0,18]
[null,"$60,000 to $69,999",0,16,0,16,0,11,14,20,0,16,16,23,0,11,38,44,4,5,0,16,8,13,8,12,0,11,25,29,5,8,0,11,2,5,0,16,29,23,0,11,0,11,0,11,13,21,0,11,49,50,9,13,0,16,13,20,36,55,8,13,0,16,37,33,0,16,55,44,0,11,0,16,0,18]
[null,"$70,000 to $79,999",0,16,0,16,11,19,9,15,0,16,15,13,0,11,42,39,0,11,32,37,28,27,0,11,0,11,8,13,25,24,0,11,0,11,0,16,8,16,0,11,0,11,0,11,0,16,0,11,34,42,52,40,8,12,15,26,0,21,22,29,0,16,53,38,0,16,96,84,2,3,10,17,0,18]
[null,"$80,000 to $89,999",0,16,18,26,0,11,0,11,0,16,10,15,6,9,39,42,0,11,15,24,89,71,17,19,0,11,39,30,37,31,0,11,0,11,32,50,0,21,0,11,0,11,0,11,0,16,0,11,28,23,27,43,0,16,0,16,0,21,24,34,0,16,135,80,0,16,74,82,0,11,0,16,0,18]
[null,"$90,000 to $99,999",0,16,6,9,0,11,0,11,0,16,0,11,0,11,74,52,0,11,18,32,31,34,10,15,0,11,8,14,17,19,0,11,3,5,0,16,0,21,0,11,0,11,0,11,0,16,10,15,0,11,8,12,0,16,14,21,0,21,20,30,0,16,23,26,0,16,15,17,0,11,0,16,0,18]
[null,"$100,000 to $124,999",0,16,0,16,11,16,37,45,32,31,17,19,77,62,412,150,5,7,57,55,61,46,33,29,7,11,14,23,69,51,0,11,0,11,19,22,122,72,8,9,0,11,0,11,55,38,10,16,17,19,58,40,109,87,75,79,0,21,116,59,20,31,222,138,32,37,101,59,3,4,26,29,62,81]
[null,"$125,000 to $149,999",0,16,10,17,27,29,15,18,9,14,0,11,29,30,390,141,0,11,30,34,115,87,25,24,25,41,91,67,60,46,5,7,0,11,108,116,178,61,0,11,0,11,0,11,80,54,10,15,27,28,53,35,0,16,90,55,5,10,89,69,0,16,37,29,21,35,49,49,2,3,14,23,0,18]
[null,"$150,000 to $174,999",0,16,10,16,5,9,28,28,15,23,78,67,44,31,567,158,9,10,78,85,203,120,56,54,10,14,72,62,54,34,0,11,10,9,91,62,432,124,0,11,0,11,0,11,80,61,38,49,20,22,67,36,17,20,126,61,120,67,283,137,0,16,197,109,32,37,154,82,12,15,94,95,0,18]
[null,"$175,000 to $199,999",44,42,72,47,33,31,61,35,56,61,37,32,26,29,719,203,6,8,104,60,137,75,121,59,9,13,86,45,141,82,0,11,14,16,69,78,218,74,2,4,6,8,0,11,96,55,92,43,44,46,148,71,28,27,208,87,97,64,299,89,21,33,178,83,50,50,96,69,0,11,36,41,37,37]
[null,"$200,000 to $249,999",159,94,307,106,105,48,191,68,109,60,256,89,262,79,1867,301,56,24,382,160,529,125,340,83,74,55,359,109,384,113,0,11,38,24,362,160,817,194,3,5,28,16,16,11,403,101,165,54,18,20,231,74,358,102,325,118,317,86,877,176,33,37,965,227,314,121,325,123,5,5,135,81,315,139]
[null,"$250,000 to $299,999",410,146,317,94,126,55,436,90,279,92,291,84,227,63,1517,238,185,49,283,105,639,159,344,79,137,55,341,113,651,146,39,23,77,27,426,140,1400,226,10,12,28,18,10,7,490,146,265,73,128,77,390,100,403,105,388,147,477,123,632,147,17,27,1596,254,461,138,412,158,16,9,196,95,405,131]
[null,"$300,000 to $399,999",946,176,530,105,397,106,425,92,592,128,493,93,447,88,1737,254,300,57,724,169,712,159,431,94,270,62,1051,168,1522,213,198,61,271,46,576,175,2558,274,3,5,150,44,31,14,597,109,712,121,262,83,207,85,540,130,752,187,1217,182,455,174,82,54,2776,321,757,191,532,140,76,24,520,150,1039,207]
[null,"$400,000 to $499,999",467,141,350,89,374,106,99,42,356,93,107,56,165,75,388,90,197,41,190,114,535,129,142,67,289,84,463,113,1127,196,207,58,140,35,110,72,1323,206,0,11,113,37,41,17,125,56,128,65,185,61,163,77,183,61,310,120,838,160,145,93,218,100,1434,217,252,126,276,100,54,18,636,159,1044,202]
[null,"$500,000 to $749,999",383,154,156,57,289,80,39,31,172,81,16,23,111,61,250,97,73,26,16,25,624,140,70,63,345,88,141,59,930,179,260,63,157,31,187,122,565,125,44,30,212,40,78,21,124,63,30,27,390,92,15,23,75,47,162,102,1248,165,24,39,732,175,791,186,62,47,157,65,63,18,604,141,1552,197]
[null,"$750,000 to $999,999",99,73,30,29,15,16,0,11,11,18,0,11,10,15,58,56,0,11,13,20,105,56,0,11,76,51,21,26,157,58,86,40,28,14,23,40,39,30,93,44,13,11,20,12,12,18,0,11,118,57,0,11,37,55,13,21,414,106,0,18,299,99,177,93,0,16,86,50,15,8,152,79,249,91]
[null,"$1,000,000 to $1,499,999",17,27,13,20,0,11,0,11,0,16,0,11,11,16,9,15,0,11,86,73,0,18,0,11,7,11,0,16,12,11,21,17,3,4,0,16,9,16,109,47,2,5,50,24,0,16,0,11,104,57,0,11,0,16,0,16,257,117,0,18,227,100,21,23,44,68,0,16,7,6,24,33,83,69]
[null,"$1,500,000 to $1,999,999",0,16,0,16,0,11,0,11,0,16,0,11,0,11,0,24,0,11,0,16,13,17,0,11,0,11,10,15,12,14,7,10,0,11,0,16,38,50,49,33,0,11,7,6,0,16,0,11,33,28,0,11,0,16,0,16,66,47,0,18,134,88,16,18,0,16,14,24,3,4,0,16,0,18]
[null,"$2,000,000 or more",0,16,0,16,0,11,15,18,0,16,0,11,0,11,7,11,0,11,24,26,0,18,0,11,7,11,0,16,51,33,5,8,10,16,0,16,0,21,67,31,0,11,2,5,0,16,0,11,25,25,0,11,0,16,0,16,10,14,0,18,158,66,0,21,0,16,11,19,2,3,0,16,0,18]
[]
[]
[null,"B25077. MEDIAN VALUE (Dollars)"]
[null,"Universe:  OWNER-OCCUPIED HOUSING UNITS"]
[null,"Data Set: 2015-2019 American Community Survey 5-Year Estimates"]
[]
[null,null,"Atkinson",null,"Auburn",null,"Brentwood",null,"Candia",null,"Chester",null,"Danville",null,"Deerfield",null,"Derry",null,"East Kingston",null,"Epping",null,"Exeter",null,"Fremont",null,"Greenland",null,"Hampstead",null,"Hampton",null,"Hampton Falls",null,"Kensington",null,"Kingston",null,"Londonderry",null,"New Castle",null,"Newfields",null,"Newington",null,"Newmarket",null,"Newton",null,"North Hampton",null,"Northwood",null,"Nottingham",null,"Plaistow",null,"Portsmouth",null,"Raymond",null,"Rye",null,"Salem",null,"Sandown",null,"Seabrook",null,"South Hampton",null,"Stratham",null,"Windham"]
[null,null,"Estimate","Margin Of Error","Estimate","Margin Of Error","Estimate","Margin Of Error","Estimate","Margin Of Error","Estimate","Margin Of Error","Estimate","Margin Of Error","Estimate","Margin Of Error","Estimate","Margin Of Error","Estimate","Margin Of Error","Estimate","Margin Of Error","Estimate","Margin Of Error","Estimate","Margin Of Error","Estimate","Margin Of Error","Estimate","Margin Of Error","Estimate","Margin Of Error","Estimate","Margin Of Error","Estimate","Margin Of Error","Estimate","Margin Of Error","Estimate","Margin Of Error","Estimate","Margin Of Error","Estimate","Margin Of Error","Estimate","Margin Of Error","Estimate","Margin Of Error","Estimate","Margin Of Error","Estimate","Margin Of Error","Estimate","Margin Of Error","Estimate","Margin Of Error","Estimate","Margin Of Error","Estimate","Margin Of Error","Estimate","Margin Of Error","Estimate","Margin Of Error","Estimate","Margin Of Error","Estimate","Margin Of Error","Estimate","Margin Of Error","Estimate","Margin Of Error","Estimate","Margin Of Error","Estimate","Margin Of Error"]
[]
[null,"Median value (dollars)",367300,15767,332000,19108,394500,26587,282900,10361,352400,16445,283000,15483,303900,19931,245200,9279,348500,13042,283900,28816,280400,12573,276200,14305,433200,27587,327700,11496,373200,13303,483100,30364,384500,14270,286000,19806,321000,9397,1079300,113850,453100,33706,588100,59765,279300,11885,317800,10147,426500,57216,255800,13497,294000,14722,295200,21270,425600,21889,229700,8445,697900,42177,325600,8903,313500,22125,272800,19172,422200,36456,427100,23846,450300,17071]
[]
[]
[]
[]
[]
[]
[]
[]
[]
[]
[]
[]
[]
[]
[]
[]
[]
[]
[]
[]
[]
[]
[]
[]
[]
[]
[null,"B25075. VALUE"]
[null,"Universe:  OWNER-OCCUPIED HOUSING UNITS"]
[null,"Data Set: 2010-2014 American Community Survey 5-Year Estimates"]
[]
[null,null,"Atkinson",null,"Auburn",null,"Brentwood",null,"Candia",null,"Chester",null,"Danville",null,"Deerfield",null,"Derry",null,"East Kingston",null,"Epping",null,"Exeter",null,"Fremont",null,"Greenland",null,"Hampstead",null,"Hampton",null,"Hampton Falls",null,"Kensington",null,"Kingston",null,"Londonderry",null,"New Castle",null,"Newfields",null,"Newington",null,"Newmarket",null,"Newton",null,"North Hampton",null,"Northwood",null,"Nottingham",null,"Plaistow",null,"Portsmouth",null,"Raymond",null,"Rye",null,"Salem",null,"Sandown",null,"Seabrook",null,"South Hampton",null,"Stratham",null,"Windham"]
[null,null,"Estimate","Margin Of Error","Estimate","Margin Of Error","Estimate","Margin Of Error","Estimate","Margin Of Error","Estimate","Margin Of Error","Estimate","Margin Of Error","Estimate","Margin Of Error","Estimate","Margin Of Error","Estimate","Margin Of Error","Estimate","Margin Of Error","Estimate","Margin Of Error","Estimate","Margin Of Error","Estimate","Margin Of Error","Estimate","Margin Of Error","Estimate","Margin Of Error","Estimate","Margin Of Error","Estimate","Margin Of Error","Estimate","Margin Of Error","Estimate","Margin Of Error","Estimate","Margin Of Error","Estimate","Margin Of Error","Estimate","Margin Of Error","Estimate","Margin Of Error","Estimate","Margin Of Error","Estimate","Margin Of Error","Estimate","Margin Of Error","Estimate","Margin Of Error","Estimate","Margin Of Error","Estimate","Margin Of Error","Estimate","Margin Of Error","Estimate","Margin Of Error","Estimate","Margin Of Error","Estimate","Margin Of Error","Estimate","Margin Of Error","Estimate","Margin Of Error","Estimate","Margin Of Error","Estimate","Margin Of Error"]
[null,null,2395,123,1660,73,1148,138,1427,91,1487,100,1340,101,1431,108,8244,408,804,59,2236,215,4262,269,1416,112,1206,91,2758,200,4694,303,776,63,692,57,2067,180,7591,258,347,60,523,62,222,38,2036,198,1387,125,1581,105,1460,121,1748,106,2281,256,5452,291,2954,205,1950,183,8451,334,1956,152,2419,259,254,41,2584,163,4611,247]
[null,"Less than $10,000",0,15,12,19,0,11,6,11,0,11,30,46,8,14,108,56,25,17,26,30,98,58,18,22,0,11,36,34,74,40,0,11,3,6,0,15,18,20,3,4,6,8,3,5,0,15,0,11,6,9,10,16,7,11,51,49,82,57,17,26,14,20,47,30,18,26,16,20,0,11,0,15,40,45]
[null,"$10,000 to $14,999",0,15,7,12,0,11,0,11,0,11,20,33,0,11,17,27,0,11,0,15,17,19,0,11,0,11,16,18,0,17,0,11,5,7,0,15,13,20,0,11,0,11,0,11,31,35,0,11,0,11,0,11,0,11,0,15,0,20,42,47,0,15,45,42,0,15,30,32,0,11,16,25,11,18]
[null,"$15,000 to $19,999",0,15,0,15,22,25,11,16,0,11,25,29,8,12,55,42,7,9,0,15,30,32,0,11,0,11,9,15,0,17,0,11,0,11,18,29,27,31,0,11,0,11,0,11,7,11,7,11,19,21,11,17,17,19,28,41,95,56,65,51,0,15,17,26,0,15,0,15,0,11,0,15,0,17]
[null,"$20,000 to $24,999",36,39,24,25,0,11,32,20,9,15,5,9,0,11,14,16,7,10,26,30,102,72,7,12,0,11,15,17,0,17,0,11,0,11,0,15,45,49,0,11,0,11,0,11,7,12,0,11,0,11,5,10,13,19,14,24,6,9,27,25,0,15,53,37,17,24,13,21,3,4,0,15,0,17]
[null,"$25,000 to $29,999",16,26,21,24,0,11,0,11,0,11,7,11,0,11,83,61,0,11,19,28,44,43,0,11,0,11,0,15,0,17,0,11,0,11,0,15,56,78,0,11,0,11,0,11,9,15,0,11,16,18,0,11,0,11,0,15,37,28,14,23,0,15,8,13,0,15,0,15,3,5,0,15,0,17]
[null,"$30,000 to $34,999",0,15,0,15,7,12,0,11,0,11,18,21,0,11,21,28,2,5,0,15,140,68,0,11,0,11,0,15,0,17,6,8,0,11,0,15,15,17,0,11,3,4,0,11,20,22,0,11,0,11,15,19,0,11,0,15,51,67,12,22,0,15,64,54,0,15,10,16,0,11,0,15,0,17]
[null,"$35,000 to $39,999",0,15,0,15,0,11,0,11,6,10,14,18,9,14,18,21,0,11,29,36,132,88,0,11,0,11,29,28,31,26,0,11,0,11,0,15,65,81,0,11,2,5,0,11,0,15,0,11,10,16,21,24,0,11,0,15,0,20,0,17,0,15,32,30,0,15,0,15,0,11,0,15,14,23]
[null,"$40,000 to $49,999",0,15,0,15,0,11,0,11,0,11,72,52,0,11,32,39,0,11,15,24,58,37,11,16,8,12,20,24,8,14,4,6,0,11,10,16,45,25,0,11,0,11,0,11,6,11,19,20,17,19,46,49,0,11,0,15,18,30,37,36,0,15,29,33,0,15,155,129,0,11,0,15,0,17]
[null,"$50,000 to $59,999",0,15,8,12,0,11,13,20,0,11,12,18,9,13,79,80,0,11,80,98,49,32,0,11,20,27,7,11,41,40,0,11,0,11,23,39,62,39,0,11,0,11,0,11,9,14,0,11,57,60,11,17,0,11,0,15,24,27,45,43,0,15,45,37,0,15,76,57,0,11,0,15,11,19]
[null,"$60,000 to $69,999",0,15,0,15,0,11,9,14,0,11,7,11,0,11,34,31,0,11,10,18,61,54,0,11,0,11,0,15,0,17,0,11,0,11,16,26,7,11,0,11,0,11,0,11,0,15,0,11,55,31,26,41,0,11,0,15,18,29,13,20,0,15,74,49,0,15,39,64,0,11,0,15,0,17]
[null,"$70,000 to $79,999",0,15,0,15,0,11,0,11,11,18,6,9,8,12,55,45,0,11,22,33,27,28,0,11,0,11,8,12,26,32,0,11,0,11,7,12,5,8,3,4,0,11,0,11,17,17,8,14,0,11,0,11,0,11,37,42,0,20,86,65,0,15,129,64,12,19,0,15,0,11,0,15,0,17]
[null,"$80,000 to $89,999",0,15,0,15,0,11,0,11,6,10,9,16,0,11,109,59,0,11,20,33,70,52,9,13,10,15,0,15,8,14,0,11,0,11,0,15,0,20,2,5,0,11,0,11,10,15,0,11,37,35,55,56,29,35,0,15,20,23,0,17,57,84,75,63,21,19,28,37,0,11,15,24,0,17]
[null,"$90,000 to $99,999",0,15,0,15,0,11,0,11,0,11,11,17,0,11,115,88,3,4,17,26,15,24,8,13,0,11,7,11,0,17,8,11,0,11,15,25,40,29,0,11,3,5,0,11,0,15,0,11,19,17,20,22,0,11,0,15,20,34,0,17,18,29,55,40,13,20,0,15,0,11,31,36,28,41]
[null,"$100,000 to $124,999",10,17,0,15,10,17,51,37,23,24,8,12,54,48,554,177,18,13,73,87,110,64,46,46,0,11,27,27,54,40,6,9,4,5,18,29,220,91,0,11,2,6,0,11,88,47,0,11,24,22,60,40,26,29,48,72,72,82,153,79,31,51,154,79,104,93,125,92,0,11,63,62,16,25]
[null,"$125,000 to $149,999",41,46,38,29,15,21,32,42,37,31,8,13,13,21,751,185,0,11,46,45,100,53,28,24,0,11,138,89,45,36,3,5,6,7,88,55,414,115,0,11,8,9,0,11,104,91,6,10,32,30,58,45,39,37,166,90,122,81,190,98,11,16,181,100,32,30,40,41,0,11,0,15,43,48]
[null,"$150,000 to $174,999",0,15,28,26,7,11,88,49,15,17,44,38,100,44,557,173,13,12,320,177,126,89,118,54,0,11,98,61,146,59,17,16,7,7,174,93,372,114,10,16,7,8,5,8,68,49,31,31,20,23,119,56,99,82,193,88,74,53,280,117,13,21,254,98,178,127,78,49,4,6,90,48,152,102]
[null,"$175,000 to $199,999",48,41,67,45,63,43,80,60,73,47,78,54,53,36,726,148,16,12,249,113,183,91,118,65,9,14,208,96,137,73,32,28,13,10,144,92,292,100,0,11,9,9,0,11,168,89,21,26,8,14,93,44,148,82,165,89,117,67,345,129,0,15,470,156,223,80,162,85,0,11,115,66,73,52]
[null,"$200,000 to $249,999",698,183,236,72,136,56,354,88,268,78,182,70,308,102,2299,292,115,34,578,143,668,161,391,95,168,62,629,158,610,142,35,23,61,27,374,115,1195,179,11,13,66,32,6,5,310,83,324,86,132,64,350,89,335,89,400,173,703,155,823,158,106,67,1438,229,539,141,278,152,8,6,140,68,479,181]
[null,"$250,000 to $299,999",478,137,407,105,169,57,393,97,257,87,452,110,360,96,1172,205,118,34,273,109,726,159,303,100,101,51,384,103,721,141,31,18,106,31,451,141,1472,205,0,11,37,19,22,12,494,132,432,115,125,61,318,105,403,104,538,166,723,175,493,104,40,38,1631,237,343,99,448,172,33,18,314,112,615,152]
[null,"$300,000 to $399,999",553,131,492,105,299,85,212,81,453,101,224,79,288,74,1176,180,314,51,299,114,828,162,283,93,364,88,733,124,1492,231,195,52,218,50,487,153,2375,236,2,5,132,40,40,20,510,132,401,98,300,85,153,61,323,82,446,137,1485,233,312,107,308,112,2232,304,323,110,572,173,68,27,719,159,1327,253]
[null,"$400,000 to $499,999",247,93,228,86,302,80,87,43,189,65,100,56,111,49,179,91,104,33,58,65,381,101,10,15,208,61,319,98,706,150,179,54,113,30,172,117,646,133,3,5,100,31,32,19,74,52,103,56,210,76,60,37,198,88,153,103,771,145,0,17,256,112,789,189,124,74,118,69,37,13,515,133,749,199]
[null,"$500,000 to $749,999",189,114,92,69,106,42,42,33,115,59,0,11,64,48,74,43,45,25,44,47,235,77,21,23,175,68,39,33,498,116,162,49,138,34,70,56,153,67,78,34,121,32,70,24,65,33,27,23,242,59,0,11,111,59,13,21,720,140,0,17,471,120,434,114,9,16,174,92,67,25,479,107,749,178]
[null,"$750,000 to $999,999",65,59,0,15,5,10,17,19,18,22,8,13,31,34,12,19,5,7,13,20,62,51,15,16,116,56,36,31,42,32,67,31,18,11,0,15,13,22,61,33,24,20,21,16,39,34,8,12,130,56,19,20,0,11,9,15,167,71,0,17,312,133,112,64,0,15,14,22,23,21,59,41,271,121]
[null,"$1,000,000 or more",14,21,0,15,7,10,0,11,7,11,0,11,7,12,4,10,12,16,19,30,0,17,30,31,27,24,0,15,55,28,31,19,0,11,0,15,41,36,174,49,3,4,23,15,0,15,0,11,122,62,10,16,0,11,20,29,127,75,0,17,313,148,83,81,0,15,43,43,8,7,28,34,33,38]
[]
[]
[]
[]
[null,"B25077. MEDIAN VALUE (Dollars)"]
[null,"Universe:  OWNER-OCCUPIED HOUSING UNITS"]
[null,"Data Set: 2010-2014 American Community Survey 5-Year Estimates"]
[]
[null,null,"Atkinson",null,"Auburn",null,"Brentwood",null,"Candia",null,"Chester",null,"Danville",null,"Deerfield",null,"Derry",null,"East Kingston",null,"Epping",null,"Exeter",null,"Fremont",null,"Greenland",null,"Hampstead",null,"Hampton",null,"Hampton Falls",null,"Kensington",null,"Kingston",null,"Londonderry",null,"New Castle",null,"Newfields",null,"Newington",null,"Newmarket",null,"Newton",null,"North Hampton",null,"Northwood",null,"Nottingham",null,"Plaistow",null,"Portsmouth",null,"Raymond",null,"Rye",null,"Salem",null,"Sandown",null,"Seabrook",null,"South Hampton",null,"Stratham",null,"Windham"]
[null,null,"Estimate","Margin Of Error","Estimate","Margin Of Error","Estimate","Margin Of Error","Estimate","Margin Of Error","Estimate","Margin Of Error","Estimate","Margin Of Error","Estimate","Margin Of Error","Estimate","Margin Of Error","Estimate","Margin Of Error","Estimate","Margin Of Error","Estimate","Margin Of Error","Estimate","Margin Of Error","Estimate","Margin Of Error","Estimate","Margin Of Error","Estimate","Margin Of Error","Estimate","Margin Of Error","Estimate","Margin Of Error","Estimate","Margin Of Error","Estimate","Margin Of Error","Estimate","Margin Of Error","Estimate","Margin Of Error","Estimate","Margin Of Error","Estimate","Margin Of Error","Estimate","Margin Of Error","Estimate","Margin Of Error","Estimate","Margin Of Error","Estimate","Margin Of Error","Estimate","Margin Of Error","Estimate","Margin Of Error","Estimate","Margin Of Error","Estimate","Margin Of Error","Estimate","Margin Of Error","Estimate","Margin Of Error","Estimate","Margin Of Error","Estimate","Margin Of Error","Estimate","Margin Of Error","Estimate","Margin Of Error"]
[]
[null,"Median value (dollars)",286500,17845,297800,14594,348500,24231,254800,10930,308500,19185,262600,9350,270200,11889,217300,5175,324800,11459,214400,13833,257000,10511,244100,11801,378800,24638,267200,17150,329900,11960,428500,27349,364700,16773,266200,14553,280700,6428,"1,000,000+","***",389800,27602,510700,65066,266600,12597,282100,10020,371200,26340,226400,13188,270000,12988,253600,17708,336600,12370,209200,9372,564200,73119,282400,8390,233400,11801,267800,17928,421600,59205,370700,17445,362100,15143]
[]
[]
[]
[]
[null,"B25075. VALUE"]
[null,"Universe:  OWNER-OCCUPIED HOUSING UNITS"]
[null,"Data Set: 2005-2009 American Community Survey 5-Year Estimates"]
[]
[null,null,"Atkinson",null,"Auburn",null,"Brentwood",null,"Candia",null,"Chester",null,"Danville",null,"Deerfield",null,"Derry",null,"East Kingston",null,"Epping",null,"Exeter",null,"Fremont",null,"Greenland",null,"Hampstead",null,"Hampton",null,"Hampton Falls",null,"Kensington",null,"Kingston",null,"Londonderry",null,"New Castle",null,"Newfields",null,"Newington",null,"Newmarket",null,"Newton",null,"North Hampton",null,"Northwood",null,"Nottingham",null,"Plaistow",null,"Portsmouth",null,"Raymond",null,"Rye",null,"Salem",null,"Sandown",null,"Seabrook",null,"South Hampton",null,"Stratham",null,"Windham"]
[null,null,"Estimate","Margin Of Error","Estimate","Margin Of Error","Estimate","Margin Of Error","Estimate","Margin Of Error","Estimate","Margin Of Error","Estimate","Margin Of Error","Estimate","Margin Of Error","Estimate","Margin Of Error","Estimate","Margin Of Error","Estimate","Margin Of Error","Estimate","Margin Of Error","Estimate","Margin Of Error","Estimate","Margin Of Error","Estimate","Margin Of Error","Estimate","Margin Of Error","Estimate","Margin Of Error","Estimate","Margin Of Error","Estimate","Margin Of Error","Estimate","Margin Of Error","Estimate","Margin Of Error","Estimate","Margin Of Error","Estimate","Margin Of Error","Estimate","Margin Of Error","Estimate","Margin Of Error","Estimate","Margin Of Error","Estimate","Margin Of Error","Estimate","Margin Of Error","Estimate","Margin Of Error","Estimate","Margin Of Error","Estimate","Margin Of Error","Estimate","Margin Of Error","Estimate","Margin Of Error","Estimate","Margin Of Error","Estimate","Margin Of Error","Estimate","Margin Of Error","Estimate","Margin Of Error","Estimate","Margin Of Error"]
[null,null,2211,142,1654,116,979,99,1483,83,1519,78,1328,120,1231,101,8746,341,786,61,2016,144,4295,235,1334,130,1116,89,2829,146,4900,302,743,60,721,54,2142,124,7545,288,331,66,546,64,231,40,2426,206,1431,93,1495,105,1302,114,1427,149,2276,245,4903,303,3424,216,1933,169,8682,341,1681,133,2686,223,288,36,2540,143,4088,189]
[null,"Less than $10,000",0,114,0,114,0,114,0,114,12,17,10,16,0,114,26,35,0,114,0,114,33,36,0,114,0,114,0,114,0,114,0,114,0,114,0,114,23,27,0,114,0,114,0,114,0,114,0,114,0,114,24,38,0,114,0,114,0,114,0,114,16,25,14,23,0,114,55,69,0,114,0,114,0,114]
[null,"$10,000 to $14,999",0,114,0,114,0,114,0,114,0,114,16,27,0,114,12,19,10,14,0,114,51,40,0,114,0,114,15,23,0,114,0,114,3,4,5,12,33,38,0,114,0,114,0,114,0,114,0,114,37,57,0,114,0,114,0,114,12,20,0,114,0,114,0,114,0,114,9,15,0,114,0,114,0,114]
[null,"$15,000 to $19,999",0,114,0,114,0,114,16,26,0,114,0,114,0,114,11,16,0,114,28,32,50,35,0,114,0,114,0,114,13,21,0,114,0,114,0,114,16,25,0,114,0,114,0,114,0,114,0,114,0,114,0,114,0,114,0,114,0,114,33,31,16,24,30,31,0,114,21,35,0,114,0,114,11,19]
[null,"$20,000 to $24,999",0,114,0,114,0,114,18,28,0,114,10,19,11,17,16,25,4,5,0,114,39,28,0,114,0,114,0,114,0,114,0,114,0,114,0,114,0,114,0,114,0,114,0,114,0,114,24,38,0,114,9,15,0,114,0,114,41,35,95,64,0,114,90,59,0,114,0,114,0,114,0,114,11,17]
[null,"$25,000 to $29,999",0,114,0,114,0,114,0,114,0,114,0,114,0,114,41,30,0,114,21,25,124,78,0,114,9,14,0,114,13,20,0,114,3,5,16,25,0,114,0,114,3,4,0,114,11,18,21,19,12,17,0,114,0,114,0,114,14,21,35,31,12,21,16,25,0,114,0,114,0,114,0,114,21,23]
[null,"$30,000 to $34,999",0,114,0,114,0,114,0,114,0,114,12,22,0,114,10,18,0,114,0,114,135,94,0,114,0,114,0,114,0,114,0,114,4,6,0,114,14,21,0,114,0,114,0,114,34,39,0,114,0,114,11,17,0,114,0,114,8,13,0,114,0,114,11,17,0,114,0,114,0,114,15,23,18,20]
[null,"$35,000 to $39,999",0,114,0,114,0,114,12,20,0,114,10,15,0,114,60,77,0,114,24,30,68,68,0,114,0,114,0,114,27,31,0,114,3,5,0,114,15,24,0,114,0,114,0,114,10,15,0,114,0,114,0,114,0,114,0,114,0,114,40,34,0,114,0,114,0,114,0,114,0,114,0,114,30,36]
[null,"$40,000 to $49,999",0,114,0,114,0,114,11,16,0,114,20,21,12,19,81,74,0,114,12,20,71,40,0,114,11,17,0,114,37,33,0,114,3,4,0,114,41,45,0,114,3,5,0,114,11,18,11,17,72,45,68,64,0,114,0,114,0,114,81,58,0,114,43,51,0,114,65,54,0,114,0,114,0,114]
[null,"$50,000 to $59,999",0,114,16,24,0,114,0,114,0,114,18,21,0,114,81,55,0,114,0,114,20,24,0,114,0,114,0,114,0,114,4,5,0,114,0,114,0,114,0,114,2,4,0,114,73,58,0,114,44,35,0,114,0,114,0,114,41,50,59,52,0,114,139,85,0,114,45,72,3,4,0,114,17,27]
[null,"$60,000 to $69,999",0,114,0,114,0,114,0,114,0,114,21,25,0,114,174,106,0,114,0,114,35,34,0,114,0,114,29,24,0,114,4,6,0,114,0,114,33,38,0,114,3,5,0,114,8,13,0,114,41,48,32,44,0,114,0,114,36,56,0,114,0,114,43,38,0,114,33,38,0,114,0,114,0,114]
[null,"$70,000 to $79,999",0,114,12,19,0,114,0,114,0,114,0,114,0,114,0,114,0,114,12,20,32,29,0,114,0,114,0,114,0,114,0,114,0,114,0,114,57,40,0,114,0,114,0,114,4,9,0,114,23,28,0,114,0,114,13,22,0,114,25,26,0,114,11,18,8,13,96,78,3,4,0,114,0,114]
[null,"$80,000 to $89,999",0,114,0,114,0,114,0,114,13,20,39,47,0,114,31,31,10,8,15,23,66,39,29,32,0,114,40,38,0,114,0,114,0,114,0,114,42,35,0,114,0,114,0,114,0,114,11,18,12,19,27,24,0,114,0,114,51,34,114,58,0,114,88,68,9,13,102,84,0,114,0,114,0,114]
[null,"$90,000 to $99,999",0,114,0,114,0,114,13,22,0,114,28,21,11,17,43,37,3,5,8,13,96,73,0,114,0,114,13,20,16,24,0,114,0,114,32,36,46,38,3,5,0,114,0,114,0,114,36,46,41,32,0,114,0,114,0,114,23,25,77,49,0,114,60,47,0,114,102,82,0,114,0,114,8,13]
[null,"$100,000 to $124,999",0,114,0,114,6,9,27,24,11,16,28,35,34,25,351,136,10,8,30,33,98,61,0,114,0,114,73,50,84,57,7,7,9,7,18,28,40,38,3,5,6,7,3,4,22,24,42,54,24,28,49,34,20,20,84,71,22,24,119,65,14,23,266,106,7,12,118,86,3,4,0,114,33,28]
[null,"$125,000 to $149,999",15,23,9,15,20,16,20,21,0,114,23,26,45,46,222,113,6,6,14,22,143,81,8,13,9,13,26,28,48,34,0,114,0,114,14,22,181,120,0,114,1,5,0,114,47,36,0,114,0,114,37,30,0,114,49,79,135,55,242,130,0,114,197,75,28,26,149,106,0,114,64,45,16,26]
[null,"$150,000 to $174,999",29,32,68,48,31,26,78,43,49,39,10,15,90,69,457,125,13,10,108,67,135,75,44,37,22,22,82,74,161,83,4,8,4,7,132,107,449,138,2,5,8,9,0,114,102,50,41,31,0,114,73,33,25,24,20,24,168,100,235,99,34,40,132,62,39,23,200,81,0,114,116,62,42,55]
[null,"$175,000 to $199,999",16,24,26,24,0,114,29,28,52,37,10,16,55,37,722,158,17,11,190,85,81,46,84,65,24,25,145,82,101,56,3,4,3,4,78,60,357,94,0,114,3,5,3,5,313,124,12,19,10,16,31,25,35,32,204,97,336,99,320,96,18,27,246,83,82,55,26,29,0,114,147,71,18,20]
[null,"$200,000 to $249,999",206,77,250,83,76,33,237,85,202,82,152,70,181,75,1993,254,42,20,533,121,388,133,338,97,127,48,399,126,650,159,32,17,62,22,345,112,1526,190,4,6,60,23,14,13,556,125,179,63,54,34,306,104,204,62,400,129,610,134,799,169,63,46,912,193,394,110,230,99,46,35,206,101,351,101]
[null,"$250,000 to $299,999",367,109,160,57,79,28,277,94,210,78,249,83,148,62,1648,238,123,33,290,106,515,143,248,86,78,53,281,110,561,160,35,19,77,23,375,110,920,223,0,114,13,11,19,13,502,144,293,102,84,47,303,82,307,99,311,114,628,150,586,137,26,28,1509,301,412,117,220,104,24,13,158,79,386,124]
[null,"$300,000 to $399,999",789,158,645,117,242,65,456,92,478,108,481,98,424,90,2171,252,266,48,506,154,1048,171,444,103,311,84,1029,143,1653,246,129,37,205,43,769,190,2503,254,0,114,143,38,38,17,494,114,515,114,254,71,259,70,497,134,668,150,1103,147,425,146,137,64,2719,285,442,105,673,178,68,27,597,133,1195,172]
[null,"$400,000 to $499,999",461,92,330,94,312,61,146,62,311,96,107,59,105,66,407,126,172,32,76,50,490,150,96,59,195,66,406,124,888,192,192,54,82,26,223,89,929,150,26,20,114,37,67,27,98,76,184,58,296,82,21,26,186,88,428,120,800,155,90,59,446,144,1130,213,157,78,214,102,84,26,610,124,685,167]
[null,"$500,000 to $749,999",254,83,128,75,177,67,124,61,149,67,65,37,107,59,92,67,90,26,32,27,453,128,43,33,242,79,250,122,493,130,197,45,220,48,96,74,284,96,44,28,163,44,59,29,133,75,22,25,275,71,31,26,129,54,99,70,543,158,39,26,590,134,853,180,95,76,222,101,53,19,536,117,984,159]
[null,"$750,000 to $999,999",74,46,0,114,13,15,0,114,9,13,9,15,8,13,44,47,15,11,53,62,81,52,0,114,56,36,23,30,90,61,93,27,30,15,39,36,0,114,69,36,5,6,18,12,8,12,17,25,70,41,10,16,24,28,0,114,189,82,0,114,285,94,145,66,0,114,38,43,2,4,61,42,171,74]
[null,"$1,000,000 or more",0,114,10,17,23,20,19,23,23,24,10,16,0,114,53,48,5,6,64,83,43,41,0,114,32,29,18,27,65,49,43,22,13,10,0,114,36,35,180,49,19,20,10,10,0,114,23,28,146,61,11,18,0,114,0,114,143,69,10,17,276,93,28,32,8,13,68,44,2,4,30,34,91,60]
[]
[]
[]
[]
[null,"B25077.MEDIAN VALUE (Dollars)"]
[null,"Universe:  OWNER-OCCUPIED HOUSING UNITS"]
[null,"Data Set: 2005-2009 American Community Survey 5-Year Estimates"]
[]
[null,null,"Atkinson",null,"Auburn",null,"Brentwood",null,"Candia",null,"Chester",null,"Danville",null,"Deerfield",null,"Derry",null,"East Kingston",null,"Epping",null,"Exeter",null,"Fremont",null,"Greenland",null,"Hampstead",null,"Hampton",null,"Hampton Falls",null,"Kensington",null,"Kingston",null,"Londonderry",null,"New Castle",null,"Newfields",null,"Newington",null,"Newmarket",null,"Newton",null,"North Hampton",null,"Northwood",null,"Nottingham",null,"Plaistow",null,"Portsmouth",null,"Raymond",null,"Rye",null,"Salem",null,"Sandown",null,"Seabrook",null,"South Hampton",null,"Stratham",null,"Windham"]
[null,null,"Estimate","Margin Of Error","Estimate","Margin Of Error","Estimate","Margin Of Error","Estimate","Margin Of Error","Estimate","Margin Of Error","Estimate","Margin Of Error","Estimate","Margin Of Error","Estimate","Margin Of Error","Estimate","Margin Of Error","Estimate","Margin Of Error","Estimate","Margin Of Error","Estimate","Margin Of Error","Estimate","Margin Of Error","Estimate","Margin Of Error","Estimate","Margin Of Error","Estimate","Margin Of Error","Estimate","Margin Of Error","Estimate","Margin Of Error","Estimate","Margin Of Error","Estimate","Margin Of Error","Estimate","Margin Of Error","Estimate","Margin Of Error","Estimate","Margin Of Error","Estimate","Margin Of Error","Estimate","Margin Of Error","Estimate","Margin Of Error","Estimate","Margin Of Error","Estimate","Margin Of Error","Estimate","Margin Of Error","Estimate","Margin Of Error","Estimate","Margin Of Error","Estimate","Margin Of Error","Estimate","Margin Of Error","Estimate","Margin Of Error","Estimate","Margin Of Error","Estimate","Margin Of Error","Estimate","Margin Of Error"]
[]
[null,"Median value (dollars)",359900,14039,344300,13235,411400,18682,300800,18293,344000,19059,301700,20351,306700,20058,251300,8360,358300,12312,252200,19885,296800,19357,283100,19293,389400,31310,330300,13650,344700,11746,479900,20921,392400,21146,307300,19573,298900,10947,1000001,"***",424600,30041,457500,33499,252200,15596,308800,20493,413300,25034,247400,16120,324600,18690,308500,21431,329600,15664,214800,11176,578200,48265,319600,10925,283200,14036,270900,51607,395600,37020,394500,22893,390500,13585]

{"sheet":"ACS_Table_B25088","index":66,"n_rows":62,"n_cols":76,"rows_kept":62,"cut":false,"hidden":true,"merged":[]}
[null,"B25088. MEDIAN SELECTED MONTHLY OWNER COSTS (DOLLARS) BY MORTGAGE STATUS"]
[null,"Universe:  OWNER-OCCUPIED HOUSING UNITS"]
[null,"Data Set: 2015-2019 American Community Survey 5-Year Estimates"]
[]
[null,null,"Atkinson",null,"Auburn",null,"Brentwood",null,"Candia",null,"Chester",null,"Danville",null,"Deerfield",null,"Derry",null,"East Kingston",null,"Epping",null,"Exeter",null,"Fremont",null,"Greenland",null,"Hampstead",null,"Hampton",null,"Hampton Falls",null,"Kensington",null,"Kingston",null,"Londonderry",null,"New Castle",null,"Newfields",null,"Newington",null,"Newmarket",null,"Newton",null,"North Hampton",null,"Northwood",null,"Nottingham",null,"Plaistow",null,"Portsmouth",null,"Raymond",null,"Rye",null,"Salem",null,"Sandown",null,"Seabrook",null,"South Hampton",null,"Stratham",null,"Windham"]
[null,null,"Estimate","Margin Of Error","Estimate","Margin Of Error","Estimate","Margin Of Error","Estimate","Margin Of Error","Estimate","Margin Of Error","Estimate","Margin Of Error","Estimate","Margin Of Error","Estimate","Margin Of Error","Estimate","Margin Of Error","Estimate","Margin Of Error","Estimate","Margin Of Error","Estimate","Margin Of Error","Estimate","Margin Of Error","Estimate","Margin Of Error","Estimate","Margin Of Error","Estimate","Margin Of Error","Estimate","Margin Of Error","Estimate","Margin Of Error","Estimate","Margin Of Error","Estimate","Margin Of Error","Estimate","Margin Of Error","Estimate","Margin Of Error","Estimate","Margin Of Error","Estimate","Margin Of Error","Estimate","Margin Of Error","Estimate","Margin Of Error","Estimate","Margin Of Error","Estimate","Margin Of Error","Estimate","Margin Of Error","Estimate","Margin Of Error","Estimate","Margin Of Error","Estimate","Margin Of Error","Estimate","Margin Of Error","Estimate","Margin Of Error","Estimate","Margin Of Error","Estimate","Margin Of Error","Estimate","Margin Of Error"]
[]
[null,"Total:",2101,174,2002,154,2313,196,1668,176,2219,130,1879,218,1682,129,1827,61,2097,152,1732,236,1530,127,1703,102,1958,163,1887,97,1618,148,2040,207,2039,142,1915,138,1834,83,1596,409,2381,211,1649,277,1862,107,1928,167,1826,209,1628,148,1807,138,1702,168,1909,73,1523,109,1989,291,1752,106,2058,147,1205,214,1774,287,1857,287,2430,154]
[null,"Housing units with a mortgage (dollars)",2445,192,2244,100,2687,133,2166,67,2446,118,2176,109,2094,109,2017,73,2538,125,2185,146,2275,123,2023,181,2397,209,2227,81,2138,102,2500,231,2441,135,2224,152,2169,59,2827,255,2795,241,2694,307,2061,147,2178,135,2566,281,1986,147,2082,121,1892,105,2323,88,1757,103,2744,318,2201,69,2190,123,1794,130,2224,107,2609,247,2899,157]
[null,"Housing units without a mortgage (dollars)",1028,106,785,56,915,142,694,113,1021,111,916,126,890,95,872,44,1078,48,835,74,896,89,934,111,881,49,947,64,910,67,1220,161,1014,80,840,134,938,43,1123,204,1138,109,877,154,892,63,901,98,916,193,730,207,765,88,821,85,961,44,835,48,1006,203,855,56,764,184,714,57,885,151,976,88,1097,60]
[]
[]
[]
[]
[]
[]
[]
[]
[]
[]
[]
[]
[]
[]
[]
[]
[]
[]
[]
[]
[]
[]
[]
[]
[]
[]
[]
[]
[]
[null,"B25088. MEDIAN SELECTED MONTHLY OWNER COSTS (DOLLARS) BY MORTGAGE STATUS"]
[null,"Universe:  OWNER-OCCUPIED HOUSING UNITS"]
[null,"Data Set: 2010-2014 American Community Survey 5-Year Estimates"]
[]
[null,null,"Atkinson",null,"Auburn",null,"Brentwood",null,"Candia",null,"Chester",null,"Danville",null,"Deerfield",null,"Derry",null,"East Kingston",null,"Epping",null,"Exeter",null,"Fremont",null,"Greenland",null,"Hampstead",null,"Hampton",null,"Hampton Falls",null,"Kensington",null,"Kingston",null,"Londonderry",null,"New Castle",null,"Newfields",null,"Newington",null,"Newmarket",null,"Newton",null,"North Hampton",null,"Northwood",null,"Nottingham",null,"Plaistow",null,"Portsmouth",null,"Raymond",null,"Rye",null,"Salem",null,"Sandown",null,"Seabrook",null,"South Hampton",null,"Stratham",null,"Windham"]
[null,null,"Estimate","Margin Of Error","Estimate","Margin Of Error","Estimate","Margin Of Error","Estimate","Margin Of Error","Estimate","Margin Of Error","Estimate","Margin Of Error","Estimate","Margin Of Error","Estimate","Margin Of Error","Estimate","Margin Of Error","Estimate","Margin Of Error","Estimate","Margin Of Error","Estimate","Margin Of Error","Estimate","Margin Of Error","Estimate","Margin Of Error","Estimate","Margin Of Error","Estimate","Margin Of Error","Estimate","Margin Of Error","Estimate","Margin Of Error","Estimate","Margin Of Error","Estimate","Margin Of Error","Estimate","Margin Of Error","Estimate","Margin Of Error","Estimate","Margin Of Error","Estimate","Margin Of Error","Estimate","Margin Of Error","Estimate","Margin Of Error","Estimate","Margin Of Error","Estimate","Margin Of Error","Estimate","Margin Of Error","Estimate","Margin Of Error","Estimate","Margin Of Error","Estimate","Margin Of Error","Estimate","Margin Of Error","Estimate","Margin Of Error","Estimate","Margin Of Error","Estimate","Margin Of Error","Estimate","Margin Of Error"]
[]
[null,"Total:",1728,144,1836,72,2121,214,1446,119,2200,97,1833,123,1806,139,1742,75,2017,160,1816,119,1569,152,1931,149,1673,149,1931,167,1611,99,2184,332,2167,119,1463,199,1987,71,1463,291,2208,202,1868,321,1857,104,1987,152,1494,171,1357,136,1794,133,1801,179,1764,107,1569,150,1665,332,1753,85,1855,215,1313,219,2117,178,1925,161,2239,113]
[null,"Housing units with a mortgage (dollars)",2051,220,2011,152,2482,170,1793,138,2396,98,2144,200,2059,154,1979,83,2286,119,1974,116,2262,74,2110,114,2300,273,2231,67,2155,159,2686,184,2420,131,1970,157,2235,65,2698,860,2650,374,2375,257,2085,192,2209,139,2426,268,1810,169,2025,132,2013,163,2160,104,1931,135,2726,239,2086,91,2049,190,1751,183,2406,140,2409,168,2603,145]
[null,"Housing units without a mortgage (dollars)",837,84,713,90,914,83,693,76,820,65,740,102,854,108,891,45,"1,000+","***",574,51,809,53,776,42,800,120,830,50,815,28,992,92,956,111,733,59,865,43,"1,000+","***","1,000+","***",738,208,783,86,834,90,965,129,735,71,693,79,778,93,818,44,742,39,853,151,769,25,927,220,612,139,"1,000+","***","1,000+","***",983,56]
[]
[]
[]
[null,"B25088. MEDIAN SELECTED MONTHLY OWNER COSTS (DOLLARS) BY MORTGAGE STATUS"]
[null,"Universe:  OWNER-OCCUPIED HOUSING UNITS"]
[null,"Data Set: 2005-2009 American Community Survey 5-Year Estimates"]
[]
[null,null,"Atkinson",null,"Auburn",null,"Brentwood",null,"Candia",null,"Chester",null,"Danville",null,"Deerfield",null,"Derry",null,"East Kingston",null,"Epping",null,"Exeter",null,"Fremont",null,"Greenland",null,"Hampstead",null,"Hampton",null,"Hampton Falls",null,"Kensington",null,"Kingston",null,"Londonderry",null,"New Castle",null,"Newfields",null,"Newington",null,"Newmarket",null,"Newton",null,"North Hampton",null,"Northwood",null,"Nottingham",null,"Plaistow",null,"Portsmouth",null,"Raymond",null,"Rye",null,"Salem",null,"Sandown",null,"Seabrook",null,"South Hampton",null,"Stratham",null,"Windham"]
[null,null,"Estimate","Margin Of Error","Estimate","Margin Of Error","Estimate","Margin Of Error","Estimate","Margin Of Error","Estimate","Margin Of Error","Estimate","Margin Of Error","Estimate","Margin Of Error","Estimate","Margin Of Error","Estimate","Margin Of Error","Estimate","Margin Of Error","Estimate","Margin Of Error","Estimate","Margin Of Error","Estimate","Margin Of Error","Estimate","Margin Of Error","Estimate","Margin Of Error","Estimate","Margin Of Error","Estimate","Margin Of Error","Estimate","Margin Of Error","Estimate","Margin Of Error","Estimate","Margin Of Error","Estimate","Margin Of Error","Estimate","Margin Of Error","Estimate","Margin Of Error","Estimate","Margin Of Error","Estimate","Margin Of Error","Estimate","Margin Of Error","Estimate","Margin Of Error","Estimate","Margin Of Error","Estimate","Margin Of Error","Estimate","Margin Of Error","Estimate","Margin Of Error","Estimate","Margin Of Error","Estimate","Margin Of Error","Estimate","Margin Of Error","Estimate","Margin Of Error","Estimate","Margin Of Error","Estimate","Margin Of Error"]
[]
[null,"Total:",1775,232,1911,190,2109,150,1700,143,2176,182,1885,132,1606,259,1868,62,1703,150,1715,151,1543,147,1941,115,1661,355,1892,136,1658,102,2150,180,1774,125,1797,115,1859,61,1257,619,2380,196,1102,161,1708,127,1881,208,1704,278,1415,158,2010,150,1729,133,1659,142,1421,110,1848,347,1673,94,1808,178,889,203,1716,110,2067,186,2066,175]
[null,"Housing units with a mortgage (dollars)",2181,122,2089,123,2384,136,1939,143,2363,166,2111,247,2142,158,2080,69,2145,150,1903,120,2066,131,2123,125,2419,340,2200,115,2179,156,2704,243,2049,213,2036,168,2042,96,2750,695,2853,270,2179,496,1984,136,2153,155,2647,306,1718,171,2190,87,1954,128,2135,93,1773,125,2525,198,2048,90,1994,179,1856,205,1960,214,2335,185,2454,164]
[null,"Housing units without a mortgage (dollars)",815,83,579,112,883,92,616,76,950,59,765,167,774,70,732,60,917,101,666,45,685,35,707,86,804,80,759,58,776,53,1001,"***",922,43,706,50,753,41,744,228,895,82,793,104,768,30,860,85,737,147,595,125,770,91,746,38,747,55,636,48,762,123,642,31,811,190,567,39,778,84,914,96,829,81]

{"sheet":"ACS_Table_B25091","index":67,"n_rows":219,"n_cols":76,"rows_kept":219,"cut":false,"hidden":true,"merged":[]}
[null,"B25091. MORTGAGE STATUS BY SELECTED MONTHLY OWNER COSTS AS A PERCENTAGE OF HOUSEHOLD INCOME IN THE PAST 12 MONTHS "]
[null,"Universe:  OWNER-OCCUPIED HOUSING UNITS"]
[null,"Data Set: 2015-2019 American Community Survey 5-Year Estimates"]
[]
[null,null,"Atkinson",null,"Auburn",null,"Brentwood",null,"Candia",null,"Chester",null,"Danville",null,"Deerfield",null,"Derry",null,"East Kingston",null,"Epping",null,"Exeter",null,"Fremont",null,"Greenland",null,"Hampstead",null,"Hampton",null,"Hampton Falls",null,"Kensington",null,"Kingston",null,"Londonderry",null,"New Castle",null,"Newfields",null,"Newington",null,"Newmarket",null,"Newton",null,"North Hampton",null,"Northwood",null,"Nottingham",null,"Plaistow",null,"Portsmouth",null,"Raymond",null,"Rye",null,"Salem",null,"Sandown",null,"Seabrook",null,"South Hampton",null,"Stratham",null,"Windham"]
[null,null,"Estimate","Margin Of Error","Estimate","Margin Of Error","Estimate","Margin Of Error","Estimate","Margin Of Error","Estimate","Margin Of Error","Estimate","Margin Of Error","Estimate","Margin Of Error","Estimate","Margin Of Error","Estimate","Margin Of Error","Estimate","Margin Of Error","Estimate","Margin Of Error","Estimate","Margin Of Error","Estimate","Margin Of Error","Estimate","Margin Of Error","Estimate","Margin Of Error","Estimate","Margin Of Error","Estimate","Margin Of Error","Estimate","Margin Of Error","Estimate","Margin Of Error","Estimate","Margin Of Error","Estimate","Margin Of Error","Estimate","Margin Of Error","Estimate","Margin Of Error","Estimate","Margin Of Error","Estimate","Margin Of Error","Estimate","Margin Of Error","Estimate","Margin Of Error","Estimate","Margin Of Error","Estimate","Margin Of Error","Estimate","Margin Of Error","Estimate","Margin Of Error","Estimate","Margin Of Error","Estimate","Margin Of Error","Estimate","Margin Of Error","Estimate","Margin Of Error","Estimate","Margin Of Error","Estimate","Margin Of Error"]
[null,null,2551,169,1819,147,1400,110,1454,91,1642,95,1430,117,1453,121,8291,386,849,65,2288,170,4479,253,1614,99,1256,86,2789,176,5394,240,828,64,760,46,2031,186,7989,256,391,80,560,66,259,37,2121,197,1487,144,1612,123,1460,120,1767,119,2548,220,5237,245,3224,225,1941,155,9006,348,2025,145,2600,211,264,36,2487,162,4805,205]
[null,"Housing units with a mortgage:",1835,147,1375,148,1035,102,966,100,1287,119,1040,114,1010,138,6458,371,576,66,1666,198,2574,223,1151,101,896,102,1921,171,3322,252,596,67,535,50,1453,219,5819,273,174,56,433,60,147,29,1634,176,1180,146,957,117,1010,103,1241,152,1959,205,3589,272,2410,239,1043,172,6109,377,1700,161,1367,186,153,27,1693,174,3525,251]
[null,"Less than 10.0 percent",94,63,90,55,60,33,80,40,89,65,61,40,97,48,397,159,0,11,13,22,159,88,19,21,54,35,80,50,255,97,52,29,28,13,14,25,401,110,10,10,32,16,13,10,56,45,42,31,27,26,32,29,68,55,124,82,291,107,63,46,117,67,330,127,89,107,54,44,9,7,44,42,153,80]
[null,"10.0 to 14.9 percent",221,102,190,72,142,73,190,73,213,82,132,63,222,79,751,167,61,27,226,108,444,111,205,78,121,43,265,84,561,148,64,30,59,26,143,84,951,162,44,32,99,37,16,10,144,79,156,63,144,57,216,78,169,66,181,87,536,125,401,128,81,61,945,159,218,112,261,109,41,17,374,131,654,202]
[null,"15.0 to 19.9 percent",369,157,332,93,306,81,150,65,287,97,165,62,189,66,1244,218,131,43,369,145,651,140,315,107,185,58,404,92,693,169,173,59,100,29,332,135,1067,168,17,15,91,37,21,10,338,108,311,80,234,83,212,84,190,80,374,148,837,148,402,129,254,103,1277,226,283,119,291,95,30,13,339,131,562,137]
[null,"20.0 to 24.9 percent",364,124,324,125,169,69,158,77,311,81,195,91,187,60,1342,210,76,37,287,129,361,129,182,70,194,60,235,91,519,120,115,39,107,37,179,94,1220,194,31,26,82,32,17,9,323,94,348,97,225,95,158,68,237,83,351,143,384,104,518,150,137,83,1051,208,429,167,138,64,17,15,315,95,752,200]
[null,"25.0 to 29.9 percent",202,85,135,60,68,44,133,56,134,58,209,79,136,73,826,186,75,27,202,82,330,111,176,67,82,57,281,124,362,101,27,20,60,23,316,172,757,138,17,16,72,32,26,18,279,82,138,73,72,53,98,49,167,63,300,115,549,134,273,143,65,47,554,142,149,80,331,111,18,12,217,116,303,133]
[null,"30.0 to 34.9 percent",178,83,68,41,114,71,76,41,112,46,71,45,52,40,674,179,84,36,90,58,220,73,70,45,69,46,218,83,328,120,28,21,58,25,269,128,391,104,6,7,30,21,7,9,124,66,15,17,94,38,62,37,95,60,197,94,236,93,219,106,82,53,493,153,122,71,29,27,5,5,175,100,237,107]
[null,"35.0 to 39.9 percent",91,67,82,58,41,27,31,29,30,27,55,35,31,27,290,118,49,33,48,42,165,78,78,45,78,51,119,62,186,89,25,20,28,14,95,68,250,81,11,10,6,7,12,7,102,67,32,27,20,26,63,57,140,81,166,88,233,101,154,100,65,54,392,121,132,100,43,41,2,5,108,81,190,87]
[null,"40.0 to 49.9 percent",170,120,80,66,63,45,47,38,56,37,54,37,45,31,409,128,15,11,218,124,55,35,40,32,8,12,120,72,145,85,14,10,51,27,23,27,233,96,0,11,12,9,7,6,70,42,50,36,43,32,92,54,33,28,44,46,212,79,143,67,147,107,363,168,101,62,41,38,10,8,34,36,242,162]
[null,"50.0 percent or more",134,75,74,46,72,44,101,66,55,41,98,60,51,36,494,167,85,43,213,124,189,74,66,43,73,37,189,75,273,80,98,57,41,22,82,62,543,149,38,27,9,8,28,12,198,116,88,59,98,48,77,51,142,73,222,99,311,114,225,104,95,63,615,244,177,100,167,99,21,9,87,60,432,157]
[null,"Not computed",12,21,0,16,0,11,0,11,0,16,0,11,0,11,31,46,0,11,0,16,0,18,0,11,32,33,10,17,0,18,0,11,3,5,0,16,6,11,0,11,0,11,0,11,0,16,0,11,0,11,0,11,0,16,0,16,0,21,12,18,0,16,89,96,0,16,12,20,0,11,0,16,0,18]
[null,"Housing units without a mortgage:",716,139,444,105,365,87,488,115,355,109,390,114,443,115,1833,252,273,51,622,172,1905,265,463,110,360,94,868,127,2072,236,232,54,225,40,578,131,2170,239,217,59,127,34,112,30,487,114,307,91,655,128,450,128,526,130,589,172,1648,206,814,174,898,166,2897,311,325,123,1233,207,111,26,794,167,1280,202]
[null,"Less than 10.0 percent",309,120,166,57,108,53,178,73,121,73,136,71,144,77,457,130,73,26,153,95,516,140,139,66,134,64,283,89,580,131,71,29,71,21,126,87,591,134,95,43,49,18,49,17,137,69,104,63,192,79,197,90,228,105,152,97,534,142,200,87,353,134,920,214,18,26,360,141,46,18,204,93,435,125]
[null,"10.0 to 14.9 percent",83,59,90,55,63,49,126,56,108,72,45,33,98,49,371,133,28,20,85,61,256,99,55,40,41,27,194,65,300,90,59,28,54,24,152,96,488,117,47,32,26,18,32,23,80,42,94,44,111,65,100,45,121,61,119,75,396,110,239,100,192,102,578,166,136,89,376,125,18,8,167,95,212,82]
[null,"15.0 to 19.9 percent",78,58,75,39,7,13,11,17,21,23,50,34,40,29,251,119,69,27,129,91,281,102,151,73,50,48,131,59,411,133,27,25,17,10,36,36,325,108,17,10,17,12,10,11,56,44,71,37,104,54,47,33,48,33,50,48,177,63,69,48,123,76,335,108,46,46,106,77,14,8,117,70,136,66]
[null,"20.0 to 24.9 percent",92,59,10,16,50,29,7,11,9,14,22,22,28,30,161,85,22,15,55,52,131,71,41,25,7,11,39,35,176,69,12,13,16,9,80,56,271,88,7,7,8,8,6,7,38,34,0,11,9,14,37,31,19,21,82,61,154,73,77,50,73,58,336,117,0,16,94,65,10,7,52,42,147,89]
[null,"25.0 to 29.9 percent",24,27,23,20,10,16,28,42,8,14,27,26,14,16,155,76,15,13,41,37,188,85,44,36,23,24,27,25,114,65,5,8,14,11,51,44,66,59,16,19,7,9,3,5,102,56,17,20,98,78,21,24,8,12,43,32,113,78,75,80,33,37,230,87,85,67,56,38,2,4,53,47,78,49]
[null,"30.0 to 34.9 percent",0,16,16,18,29,27,8,13,10,17,24,38,8,13,62,45,5,10,16,25,127,101,8,12,19,19,9,14,104,57,9,10,7,7,68,61,89,51,10,16,6,9,5,5,0,16,0,11,15,19,11,17,80,64,86,83,40,38,47,45,17,26,84,50,0,16,65,83,10,13,32,37,77,75]
[null,"35.0 to 39.9 percent",29,33,15,22,30,17,37,29,12,18,10,16,12,20,100,61,11,11,13,21,38,32,0,11,0,11,16,25,56,45,0,11,13,16,16,24,62,41,0,11,0,11,3,5,33,34,0,11,9,13,18,21,0,16,0,16,78,50,0,18,32,37,61,48,0,16,11,18,4,5,18,30,42,39]
[null,"40.0 to 49.9 percent",49,61,23,30,0,11,9,14,15,23,9,13,15,17,37,35,10,11,44,46,61,53,8,12,49,39,29,33,66,48,5,7,10,8,8,14,80,52,22,25,3,4,0,11,22,24,0,11,44,29,0,11,0,16,0,16,32,38,51,44,40,46,83,46,0,16,60,55,3,4,0,16,55,64]
[null,"50.0 percent or more",52,43,26,27,68,36,84,69,51,53,67,58,47,40,221,96,40,22,86,81,219,81,17,18,37,28,140,89,260,101,44,34,19,11,41,41,183,87,3,6,11,10,4,5,19,23,13,20,63,42,19,23,22,23,57,74,116,54,56,39,35,38,224,146,40,39,105,57,4,5,137,84,98,61]
[null,"Not computed",0,16,0,16,0,11,0,11,0,16,0,11,37,40,18,24,0,11,0,16,88,89,0,11,0,11,0,16,5,8,0,11,4,6,0,16,15,23,0,11,0,11,0,11,0,16,8,13,10,15,0,11,0,16,0,16,8,12,0,18,0,16,46,38,0,16,0,16,0,11,14,24,0,18]
[]
[]
[]
[null,"Calculated B25091. MORTGAGE STATUS BY SELECTED MONTHLY OWNER COSTS AS A PERCENTAGE OF HOUSEHOLD INCOME IN THE PAST 12 MONTHS "]
[null,"Universe:  OWNER-OCCUPIED HOUSING UNITS"]
[null,"Data Set: 2015-2019 American Community Survey 5-Year Estimates"]
[]
[null,null,"Atkinson",null,"Auburn",null,"Brentwood",null,"Candia",null,"Chester",null,"Danville",null,"Deerfield",null,"Derry",null,"East Kingston",null,"Epping",null,"Exeter",null,"Fremont",null,"Greenland",null,"Hampstead",null,"Hampton",null,"Hampton Falls",null,"Kensington",null,"Kingston",null,"Londonderry",null,"New Castle",null,"Newfields",null,"Newington",null,"Newmarket",null,"Newton",null,"North Hampton",null,"Northwood",null,"Nottingham",null,"Plaistow",null,"Portsmouth",null,"Raymond",null,"Rye",null,"Salem",null,"Sandown",null,"Seabrook",null,"South Hampton",null,"Stratham",null,"Windham"]
[null,null,"Estimate","Margin Of Error","Estimate","Margin Of Error","Estimate","Margin Of Error","Estimate","Margin Of Error","Estimate","Margin Of Error","Estimate","Margin Of Error","Estimate","Margin Of Error","Estimate","Margin Of Error","Estimate","Margin Of Error","Estimate","Margin Of Error","Estimate","Margin Of Error","Estimate","Margin Of Error","Estimate","Margin Of Error","Estimate","Margin Of Error","Estimate","Margin Of Error","Estimate","Margin Of Error","Estimate","Margin Of Error","Estimate","Margin Of Error","Estimate","Margin Of Error","Estimate","Margin Of Error","Estimate","Margin Of Error","Estimate","Margin Of Error","Estimate","Margin Of Error","Estimate","Margin Of Error","Estimate","Margin Of Error","Estimate","Margin Of Error","Estimate","Margin Of Error","Estimate","Margin Of Error","Estimate","Margin Of Error","Estimate","Margin Of Error","Estimate","Margin Of Error","Estimate","Margin Of Error","Estimate","Margin Of Error","Estimate","Margin Of Error","Estimate","Margin Of Error","Estimate","Margin Of Error","Estimate","Margin Of Error"]
[null,"Total:",{"$f":"C7","v":2551},{"$f":"D7","v":169},{"$f":"E7","v":1819},147,1400,110,1454,91,1642,95,1430,117,1453,121,8291,386,849,65,2288,170,4479,253,{"$f":"Y7","v":1614},99,1256,86,2789,176,5394,240,828,64,760,46,2031,186,7989,256,{"$f":"AO7","v":391},80,560,66,259,37,2121,197,1487,144,1612,123,1460,120,1767,119,{"$f":"BE7","v":2548},220,5237,245,3224,225,1941,155,9006,348,2025,145,2600,211,264,36,2487,162,4805,205]
[null,"Less than 10.0 percent",{"$f":"C9+C20","v":403},{"$f":"SQRT((D9^2)+(D20^2))","v":135.53228397691819},{"$f":"E9+E20","v":256},{"$f":"SQRT((F9^2)+(F20^2))","v":79.208585393251411},{"$f":"G9+G20","v":168},{"$f":"SQRT((H9^2)+(H20^2))","v":62.433965115151864},{"$f":"I9+I20","v":258},{"$f":"SQRT((J9^2)+(J20^2))","v":83.240615086627031},{"$f":"K9+K20","v":210},{"$f":"SQRT((L9^2)+(L20^2))","v":97.744565066299216},{"$f":"M9+M20","v":197},{"$f":"SQRT((N9^2)+(N20^2))","v":81.492330927517344},{"$f":"O9+O20","v":241},{"$f":"SQRT((P9^2)+(P20^2))","v":90.735880444287304},{"$f":"Q9+Q20","v":854},{"$f":"SQRT((R9^2)+(R20^2))","v":205.38013535880242},{"$f":"S9+S20","v":73},{"$f":"SQRT((T9^2)+(T20^2))","v":28.231188426986208},{"$f":"U9+U20","v":166},{"$f":"SQRT((V9^2)+(V20^2))","v":97.514101544340761},{"$f":"W9+W20","v":675},{"$f":"SQRT((X9^2)+(X20^2))","v":165.3602128687551},158,{"$f":"SQRT((Z9^2)+(Z20^2))","v":69.260378283691168},{"$f":"AA9+AA20","v":188},{"$f":"SQRT((AB9^2)+(AB20^2))","v":72.945184899347538},{"$f":"AC9+AC20","v":363},{"$f":"SQRT((AD9^2)+(AD20^2))","v":102.08329931972223},{"$f":"AE9+AE20","v":835},{"$f":"SQRT((AF9^2)+(AF20^2))","v":163.00306745579974},{"$f":"AG9+AG20","v":123},{"$f":"SQRT((AH9^2)+(AH20^2))","v":41.012193308819754},{"$f":"AI9+AI20","v":99},{"$f":"SQRT((AJ9^2)+(AJ20^2))","v":24.698178070456937},{"$f":"AK9+AK20","v":140},{"$f":"SQRT((AL9^2)+(AL20^2))","v":90.520715861066847},{"$f":"AM9+AM20","v":992},{"$f":"SQRT((AN9^2)+(AN20^2))","v":173.36666346215469},105,44.147480109288232,{"$f":"AQ9+AQ20","v":81},{"$f":"SQRT((AR9^2)+(AR20^2))","v":24.083189157584592},{"$f":"AS9+AS20","v":62},{"$f":"SQRT((AT9^2)+(AT20^2))","v":19.723082923316021},{"$f":"AU9+AU20","v":193},{"$f":"SQRT((AV9^2)+(AV20^2))","v":82.37718130647589},{"$f":"AW9+AW20","v":146},{"$f":"SQRT((AX9^2)+(AX20^2))","v":70.213958726167832},{"$f":"AY9+AY20","v":219},{"$f":"SQRT((AZ9^2)+(AZ20^2))","v":83.168503653726987},{"$f":"BA9+BA20","v":229},{"$f":"SQRT((BB9^2)+(BB20^2))","v":94.556861200020805},{"$f":"BC9+BC20","v":296},{"$f":"SQRT((BD9^2)+(BD20^2))","v":118.53269591129698},276,127.01574705523721,{"$f":"BG9+BG20","v":825},{"$f":"SQRT((BH9^2)+(BH20^2))","v":177.80044994318772},{"$f":"BI9+BI20","v":263},{"$f":"SQRT((BJ9^2)+(BJ20^2))","v":98.412397592986224},{"$f":"BK9+BK20","v":470},{"$f":"SQRT((BL9^2)+(BL20^2))","v":149.81655449248592},{"$f":"BM9+BM20","v":1250},{"$f":"SQRT((BN9^2)+(BN20^2))","v":248.84734276258607},{"$f":"BO9+BO20","v":107},{"$f":"SQRT((BP9^2)+(BP20^2))","v":110.11357772772621},{"$f":"BQ9+BQ20","v":414},{"$f":"SQRT((BR9^2)+(BR20^2))","v":147.70578864756791},{"$f":"BS9+BS20","v":55},{"$f":"SQRT((BT9^2)+(BT20^2))","v":19.313207915827967},{"$f":"BU9+BU20","v":248},{"$f":"SQRT((BV9^2)+(BV20^2))","v":102.04410811016969},{"$f":"BW9+BW20","v":588},{"$f":"SQRT((BX9^2)+(BX20^2))","v":148.40822079655831}]
[null,"10.0 to 14.9 percent",304,117.83462988442744,280,90.603531939985658,205,87.920418561333065,316,92.005434622091755,321,109.12378292562992,177,71.119617546778187,320,92.962357973536797,1122,213.49004660639335,89,33.600595232822883,311,124.03628501370073,700,{"$f":"SQRT((X10^2)+(X21^2))","v":148.73466307488647},260,87.658428003244509,162,50.774009099144415,459,106.21205204683694,861,173.216627377397,123,41.036569057366385,113,35.383612025908263,295,127.5617497528158,1439,199.83242980057065,91,45.254833995939045,125,41.146081222881968,48,25.079872407968907,224,89.470665583754325,250,76.843997813752509,255,86.452298986203942,316,90.049986118821806,290,89.872131386765275,300,114.86513831445988,932,166.50825805346713,640,162.43152403397562,273,118.84864324004712,1523,229.86300267768192,354,143.05593311708537,637,165.8493292117879,59,18.788294228055936,541,161.82088863926066,866,218.00917411888886]
[null,"15.0 to 19.9 percent",447,167.37084572887835,407,100.84641788382967,313,82.03657720797473,161,67.186308128963304,308,99.689518004652825,215,70.710678118654755,229,72.090221250874237,1495,248.3646512690564,200,50.774009099144415,498,171.18995297621879,932,173.216627377397,466,129.52991932368366,235,75.286120898874842,535,109.29318368498559,1104,215.05813167606567,200,64.078077374403179,117,30.675723300355934,368,139.71757226634023,1392,199.71980372511885,34,18.027756377319946,108,38.897300677553446,31,14.866068747318506,394,116.61903789690601,382,88.141930997681229,338,99.02019995940222,259,90.249653738947941,238,86.539008545279742,424,155.58920271021378,1014,160.85086260259843,471,137.64083696345355,377,128.00390619039717,1612,250.47954008261831,329,127.58134659894448,397,122.28654872879518,44,15.264337522473747,456,148.52945835759317,698,152.0690632574555]
[null,"20.0 to 24.9 percent",456,137.32079230764728,334,126.01983970788092,219,74.846509604656916,165,77.781745930520231,320,82.200973230248309,217,93.621578709184348,215,67.082039324993687,1503,226.55021518418383,98,39.924929555354261,342,139.08630414242805,492,147.24808997063425,223,74.330343736592525,201,61,274,97.498717940288842,695,138.42326394071193,127,41.109609582188931,123,38.078865529319543,259,109.41663493271945,1491,213.02582003128165,38,26.92582403567252,90,32.984845004941285,23,11.401754250991379,361,99.959991996798394,348,97.621718894926246,234,96.026038135497402,195,74.732857566133518,256,85.615419172015976,433,155.46703830716015,538,127.06297651164952,595,158.11388300841898,210,101.25709851659784,1387,238.64827675891564,429,167.76471619503309,232,91.219515455849688,27,16.552945357246848,367,103.87011119662864,899,218.90865674979599]
[null,"25.0 to 29.9 percent",226,89.185200566013194,158,63.245553203367585,78,46.818799642878503,161,70,142,59.665735560705194,236,83.168503653726987,150,74.732857566133518,981,200.92784774639875,90,29.966648127543394,243,89.961102705558247,518,139.80700983856281,220,76.05918747922567,105,61.846584384264908,308,126.49505919204908,476,120.10828447696687,32,21.540659228538015,74,25.495097567963924,367,177.53872816937718,823,150.08331019803634,33,24.839484696748443,79,33.241540277189323,29,18.681541692269406,381,99.297532698451278,155,75.690157880665041,170,94.30270409696638,119,54.561891462814962,175,64.132674979295857,343,119.36917525056458,662,155.04837954651444,348,163.85664466233891,98,59.816385714952723,784,166.53227915332209,234,104.35037134576953,387,117.32433677630571,20,12.649110640673518,270,125.15989773086265,381,141.7391971192161]
[null,"30.0 to 34.9 percent",178,84.528101836016646,84,44.77722635447622,143,75.960516059331766,84,43.011626335213137,122,49.040799340956916,95,58.898217290508889,60,42.059481689626182,736,184.56977000581651,89,37.363083384538811,106,63.158530698552511,347,124.61942063739504,78,46.572524088780071,88,49.769468552517218,227,84.172442046075858,432,132.84953895290718,37,23.259406699226016,65,25.96150997149434,337,141.79210133149166,480,115.83177456984762,16,17.464249196572979,36,22.847319317591726,12,10.295630140987001,124,67.911707385398586,15,20.248456731316587,109,42.485291572496003,73,40.718546143004666,175,87.726848797845236,283,125.39936203984452,276,100.46392387319938,266,115.15641536623133,99,59.033888572581766,577,160.96272860510285,122,72.780491891715045,94,87.281154896117187,15,13.928388277184119,207,106.62551289442879,314,130.66751700403586]
[null,"35.0 to 39.9 percent",120,74.686009399351363,97,62.032249677083293,71,31.906112267087632,68,41.012193308819754,42,32.449961479175904,65,38.483762809787713,43,33.600595232822883,390,132.83448347473634,60,34.785054261852174,61,46.957427527495582,203,84.308955633431964,78,46.324939287601879,78,52.172789842982326,135,66.850579653433073,242,99.729634512515887,25,22.825424421026653,41,21.2602916254693,111,72.111025509279784,312,90.785461391128038,11,14.866068747318506,6,13.038404810405298,15,8.6023252670426267,135,75.133215025047349,32,29.154759474226502,29,29.068883707497267,81,60.745370193949761,140,82.565125809872058,166,89.442719099991592,311,112.69871339105873,154,101.6070863670443,97,65.459911396212561,453,130.17296186228538,132,101.27191120937731,54,44.77722635447622,6,7.0710678118654755,126,86.377080293327808,232,95.341491492424225]
[null,"40.0 to 49.9 percent",219,134.61426373159719,103,72.498275841567434,63,46.324939287601879,56,40.496913462633174,71,43.56604182158393,63,39.217343102255157,60,35.355339059327378,446,132.69890730522238,25,15.556349186104045,262,132.25732493892352,116,63.513778032801667,48,34.176014981270121,57,40.80441152620633,149,79.202272694664515,211,97.616596949494195,19,12.206555615733702,61,28.160255680657446,31,30.413812651491099,313,109.17875251164945,22,27.313000567495326,15,9.8488578017961039,7,12.529964086141668,92,48.373546489791295,50,37.643060449437421,87,43.185645763378368,92,55.108982933819419,33,32.249030993194197,44,48.703182647543684,244,87.664131775772461,194,80.156097709406993,187,116.46887996370532,446,174.18381095842403,101,64.031242374328485,101,66.850579653433073,13,8.9442719099991592,34,39.395431207184416,297,174.18381095842403]
[null,"50.0 percent or more",186,86.452298986203942,100,53.338541412378348,140,56.850681614207581,185,95.482982777037293,106,67.007462271003817,165,83.450584180100265,98,53.814496188294839,715,192.62658175859323,125,48.301138702933287,299,148.11144452742334,408,109.71326264403953,83,46.61544808322666,110,46.400431032480725,329,116.38728452885221,533,128.84486796143648,142,66.370174024180471,60,24.596747752497688,123,74.330343736592525,726,172.53985046939155,41,27.658633371878661,20,12.806248474865697,32,13,217,118.25819210524064,101,62.297672508690084,161,63.7808748764079,96,55.946402922797461,164,76.53757247260981,279,123.60016181219181,427,126.14277624977183,281,111.07204868912791,130,73.573092907665639,839,284.3448610402516,217,107.33592129385204,272,114.23659658795863,25,10.295630140987001,224,103.22790320451152,530,168.43396332094071]
[null,"Not computed",12,26.40075756488817,0,22.627416997969522,0,15.556349186104045,0,15.556349186104045,0,22.627416997969522,0,15.556349186104045,37,41.484937025383083,49,51.884487084291386,0,15.556349186104045,0,22.627416997969522,88,90.801982357215081,0,15.556349186104045,32,34.785054261852174,10,23.345235059857504,5,19.697715603592208,0,15.556349186104045,7,7.810249675906654,0,22.627416997969522,21,25.495097567963924,0,15.556349186104045,0,15.556349186104045,0,15.556349186104045,0,22.627416997969522,8,17.029386365926403,10,18.601075237738275,0,15.556349186104045,0,22.627416997969522,0,22.627416997969522,8,24.186773244895647,12,25.45584412271571,0,22.627416997969522,135,103.24727599312246,0,22.627416997969522,12,25.612496949731394,0,15.556349186104045,14,28.844410203711913,0,25.45584412271571]
[]
[]
[]
[]
[null,"Calculated MONTHLY OWNER COSTS AS A PERCENTAGE OF HOUSEHOLD INCOME IN THE PAST 12 MONTHS "]
[null,"Universe:  OWNER-OCCUPIED HOUSING UNITS"]
[null,"Data Set: 2015-2019 American Community Survey 5-Year Estimates"]
[null,null,"Atkinson",null,"Auburn",null,"Brentwood",null,"Candia",null,"Chester",null,"Danville",null,"Deerfield",null,"Derry",null,"East Kingston",null,"Epping",null,"Exeter",null,"Fremont",null,"Greenland",null,"Hampstead",null,"Hampton",null,"Hampton Falls",null,"Kensington",null,"Kingston",null,"Londonderry",null,"New Castle",null,"Newfields",null,"Newington",null,"Newmarket",null,"Newton",null,"North Hampton",null,"Northwood",null,"Nottingham",null,"Plaistow",null,"Portsmouth",null,"Raymond",null,"Rye",null,"Salem",null,"Sandown",null,"Seabrook",null,"South Hampton",null,"Stratham",null,"Windham"]
[null,null,"Estimate","Margin Of Error","Estimate","Margin Of Error","Estimate","Margin Of Error","Estimate","Margin Of Error","Estimate","Margin Of Error","Estimate","Margin Of Error","Estimate","Margin Of Error","Estimate","Margin Of Error","Estimate","Margin Of Error","Estimate","Margin Of Error","Estimate","Margin Of Error","Estimate","Margin Of Error","Estimate","Margin Of Error","Estimate","Margin Of Error","Estimate","Margin Of Error","Estimate","Margin Of Error","Estimate","Margin Of Error","Estimate","Margin Of Error","Estimate","Margin Of Error","Estimate","Margin Of Error","Estimate","Margin Of Error","Estimate","Margin Of Error","Estimate","Margin Of Error","Estimate","Margin Of Error","Estimate","Margin Of Error","Estimate","Margin Of Error","Estimate","Margin Of Error","Estimate","Margin Of Error","Estimate","Margin Of Error","Estimate","Margin Of Error","Estimate","Margin Of Error","Estimate","Margin Of Error","Estimate","Margin Of Error","Estimate","Margin Of Error","Estimate","Margin Of Error","Estimate","Margin Of Error","Estimate","Margin Of Error"]
[null,"Total:",{"$f":"C39","v":2551},{"$f":"D39","v":169},1819,147,1400,110,1454,91,1642,95,1430,117,1453,121,8291,386,849,65,2288,170,4479,253,{"$f":"Y39","v":1614},99,1256,86,2789,176,5394,240,828,64,760,46,2031,186,7989,256,{"$f":"AO39","v":391},80,560,66,259,37,2121,197,1487,144,1612,123,1460,120,1767,119,{"$f":"BE39","v":2548},220,5237,245,3224,225,1941,155,9006,348,2025,145,2600,211,264,36,2487,162,4805,205]
[null,"Less than 20% of HH Income",{"$f":"C40+C41+C42","v":1154},{"$f":"SQRT((D40^2)+(D41^2)+(D42^2))","v":245.4933807661624},{"$f":"E40+E41+E42","v":943},{"$f":"SQRT((F40^2)+(F41^2)+(F42^2))","v":157.01273833673497},{"$f":"G40+G41+G42","v":686},{"$f":"SQRT((H40^2)+(H41^2)+(H42^2))","v":135.49169716259368},{"$f":"I40+I41+I42","v":735},{"$f":"SQRT((J40^2)+(J41^2)+(J42^2))","v":141.09571219565817},{"$f":"K40+K41+K42","v":839},{"$f":"SQRT((L40^2)+(L41^2)+(L42^2))","v":177.20045146669352},{"$f":"M40+M41+M42","v":589},{"$f":"SQRT((N40^2)+(N41^2)+(N42^2))","v":129.22461065911554},{"$f":"O40+O41+O42","v":790},{"$f":"SQRT((P40^2)+(P41^2)+(P42^2))","v":148.5664834341851},{"$f":"Q40+Q41+Q42","v":3471},{"$f":"SQRT((R40^2)+(R41^2)+(R42^2))","v":386.57987531686126},{"$f":"S40+S41+S42","v":362},{"$f":"SQRT((T40^2)+(T41^2)+(T42^2))","v":67.111846942250068},{"$f":"U40+U41+U42","v":975},{"$f":"SQRT((V40^2)+(V41^2)+(V42^2))","v":232.80893453645632},{"$f":"W40+W41+W42","v":2307},{"$f":"SQRT((X40^2)+(X41^2)+(X42^2))","v":281.90423906000422},{"$f":"Y40+Y41+Y42","v":884},{"$f":"SQRT((Z40^2)+(Z41^2)+(Z42^2))","v":171.05262348178118},{"$f":"AA40+AA41+AA42","v":585},{"$f":"SQRT((AB40^2)+(AB41^2)+(AB42^2))","v":116.47746563176931},{"$f":"AC40+AC41+AC42","v":1357},{"$f":"SQRT((AD40^2)+(AD41^2)+(AD42^2))","v":183.43118600717818},{"$f":"AE40+AE41+AE42","v":2800},{"$f":"SQRT((AF40^2)+(AF41^2)+(AF42^2))","v":320.66181562512241},{"$f":"AG40+AG41+AG42","v":446},{"$f":"SQRT((AH40^2)+(AH41^2)+(AH42^2))","v":86.440731139897238},{"$f":"AI40+AI41+AI42","v":329},{"$f":"SQRT((AJ40^2)+(AJ41^2)+(AJ42^2))","v":52.94336596779619},{"$f":"AK40+AK41+AK42","v":803},{"$f":"SQRT((AL40^2)+(AL41^2)+(AL42^2))","v":209.73077981068968},{"$f":"AM40+AM41+AM42","v":3823},{"$f":"SQRT((AN40^2)+(AN41^2)+(AN42^2))","v":331.47699769365596},{"$f":"AO40+AO41+AO42","v":230},{"$f":"SQRT((AP40^2)+(AP41^2)+(AP42^2))","v":65.741919655574407},{"$f":"AQ40+AQ41+AQ42","v":314},{"$f":"SQRT((AR40^2)+(AR41^2)+(AR42^2))","v":61.530480251660641},{"$f":"AS40+AS41+AS42","v":141},{"$f":"SQRT((AT40^2)+(AT41^2)+(AT42^2))","v":35.199431813596085},{"$f":"AU40+AU41+AU42","v":811},{"$f":"SQRT((AV40^2)+(AV41^2)+(AV42^2))","v":168.49629076036067},{"$f":"AW40+AW41+AW42","v":778},{"$f":"SQRT((AX40^2)+(AX41^2)+(AX42^2))","v":136.39648089302011},{"$f":"AY40+AY41+AY42","v":812},{"$f":"SQRT((AZ40^2)+(AZ41^2)+(AZ42^2))","v":155.55063484280609},{"$f":"BA40+BA41+BA42","v":804},{"$f":"SQRT((BB40^2)+(BB41^2)+(BB42^2))","v":158.72932936291264},{"$f":"BC40+BC41+BC42","v":824},{"$f":"SQRT((BD40^2)+(BD41^2)+(BD42^2))","v":172.09299811439163},{"$f":"BE40+BE41+BE42","v":1000},{"$f":"SQRT((BF40^2)+(BF41^2)+(BF42^2))","v":231.37631685200625},{"$f":"BG40+BG41+BG42","v":2771},{"$f":"SQRT((BH40^2)+(BH41^2)+(BH42^2))","v":291.9092324679026},{"$f":"BI40+BI41+BI42","v":1374},{"$f":"SQRT((BJ40^2)+(BJ41^2)+(BJ42^2))","v":234.55063419227841},{"$f":"BK40+BK41+BK42","v":1120},{"$f":"SQRT((BL40^2)+(BL41^2)+(BL42^2))","v":230.11953415562095},{"$f":"BM40+BM41+BM42","v":4385},{"$f":"SQRT((BN40^2)+(BN41^2)+(BN42^2))","v":421.30986221544828},{"$f":"BO40+BO41+BO42","v":790},{"$f":"SQRT((BP40^2)+(BP41^2)+(BP42^2))","v":221.0588157029708},{"$f":"BQ40+BQ41+BQ42","v":1448},{"$f":"SQRT((BR40^2)+(BR41^2)+(BR42^2))","v":253.52909103296216},{"$f":"BS40+BS41+BS42","v":158},{"$f":"SQRT((BT40^2)+(BT41^2)+(BT42^2))","v":30.967725134404045},{"$f":"BU40+BU41+BU42","v":1245},{"$f":"SQRT((BV40^2)+(BV41^2)+(BV42^2))","v":242.19826588974578},{"$f":"BW40+BW41+BW42","v":2152},{"$f":"SQRT((BX40^2)+(BX41^2)+(BX42^2))","v":304.43061606875222}]
[null," 20% to 29.9% of HH Income",{"$f":"C43+C44","v":682},{"$f":"SQRT((D43^2)+(D44^2))","v":163.74064858794227},{"$f":"E43+E44","v":492},{"$f":"SQRT((F43^2)+(F44^2))","v":141},{"$f":"G43+G44","v":297},{"$f":"SQRT((H43^2)+(H44^2))","v":88.283633817372973},{"$f":"I43+I44","v":326},{"$f":"SQRT((J43^2)+(J44^2))","v":104.64224768228175},{"$f":"K43+K44","v":462},{"$f":"SQRT((L43^2)+(L44^2))","v":101.57263410978372},{"$f":"M43+M44","v":453},{"$f":"SQRT((N43^2)+(N44^2))","v":125.22779244241272},{"$f":"O43+O44","v":365},{"$f":"SQRT((P43^2)+(P44^2))","v":100.42410069301094},{"$f":"Q43+Q44","v":2484},{"$f":"SQRT((R43^2)+(R44^2))","v":302.81512511762025},{"$f":"S43+S44","v":188},{"$f":"SQRT((T43^2)+(T44^2))","v":49.919935897394737},{"$f":"U43+U44","v":585},{"$f":"SQRT((V43^2)+(V44^2))","v":165.64419700067972},{"$f":"W43+W44","v":1010},{"$f":"SQRT((X43^2)+(X44^2))","v":203.04679263657428},{"$f":"Y43+Y44","v":443},{"$f":"SQRT((Z43^2)+(Z44^2))","v":106.34848376916335},{"$f":"AA43+AA44","v":306},{"$f":"SQRT((AB43^2)+(AB44^2))","v":86.867715521935992},{"$f":"AC43+AC44","v":582},{"$f":"SQRT((AD43^2)+(AD44^2))","v":159.70911057294134},{"$f":"AE43+AE44","v":1171},{"$f":"SQRT((AF43^2)+(AF44^2))","v":183.26756396045647},{"$f":"AG43+AG44","v":159},{"$f":"SQRT((AH43^2)+(AH44^2))","v":46.411205543489174},{"$f":"AI43+AI44","v":197},{"$f":"SQRT((AJ43^2)+(AJ44^2))","v":45.825756949558397},{"$f":"AK43+AK44","v":626},{"$f":"SQRT((AL43^2)+(AL44^2))","v":208.54735673223001},{"$f":"AM43+AM44","v":2314},{"$f":"SQRT((AN43^2)+(AN44^2))","v":260.58587835874761},{"$f":"AO43+AO44","v":71},{"$f":"SQRT((AP43^2)+(AP44^2))","v":36.633318168028403},{"$f":"AQ43+AQ44","v":169},{"$f":"SQRT((AR43^2)+(AR44^2))","v":46.82947789587238},{"$f":"AS43+AS44","v":52},{"$f":"SQRT((AT43^2)+(AT44^2))","v":21.88606862823929},{"$f":"AU43+AU44","v":742},{"$f":"SQRT((AV43^2)+(AV44^2))","v":140.89712559168834},{"$f":"AW43+AW44","v":503},{"$f":"SQRT((AX43^2)+(AX44^2))","v":123.5273249123448},{"$f":"AY43+AY44","v":404},{"$f":"SQRT((AZ43^2)+(AZ44^2))","v":134.58826100369973},{"$f":"BA43+BA44","v":314},{"$f":"SQRT((BB43^2)+(BB44^2))","v":92.531075861031681},{"$f":"BC43+BC44","v":431},{"$f":"SQRT((BD43^2)+(BD44^2))","v":106.97195894251915},{"$f":"BE43+BE44","v":776},{"$f":"SQRT((BF43^2)+(BF44^2))","v":196.00765291181872},{"$f":"BG43+BG44","v":1200},{"$f":"SQRT((BH43^2)+(BH44^2))","v":200.46196646745733},{"$f":"BI43+BI44","v":943},{"$f":"SQRT((BJ43^2)+(BJ44^2))","v":227.7037549097511},{"$f":"BK43+BK44","v":308},{"$f":"SQRT((BL43^2)+(BL44^2))","v":117.60527199067225},{"$f":"BM43+BM44","v":2171},{"$f":"SQRT((BN43^2)+(BN44^2))","v":291.00859093848067},{"$f":"BO43+BO44","v":663},{"$f":"SQRT((BP43^2)+(BP44^2))","v":197.57024067404481},{"$f":"BQ43+BQ44","v":619},{"$f":"SQRT((BR43^2)+(BR44^2))","v":148.61359291801003},{"$f":"BS43+BS44","v":47},{"$f":"SQRT((BT43^2)+(BT44^2))","v":20.83266665599966},{"$f":"BU43+BU44","v":637},{"$f":"SQRT((BV43^2)+(BV44^2))","v":162.6468567172449},{"$f":"BW43+BW44","v":1280},{"$f":"SQRT((BX43^2)+(BX44^2))","v":260.78918689240163}]
[null," Less Than 30% of HH Income",{"$f":"C40+C41+C42+C43+C44","v":1836},{"$f":"SQRT((D40^2)+(D41^2)+(D42^2)+(D43^2)+(D44^2))","v":295.08981683548484},{"$f":"E40+E41+E42+E43+E44","v":1435},{"$f":"SQRT((F40^2)+(F41^2)+(F42^2)+(F43^2)+(F44^2))","v":211.03080343873972},{"$f":"G40+G41+G42+G43+G44","v":983},{"$f":"SQRT((H40^2)+(H41^2)+(H42^2)+(H43^2)+(H44^2))","v":161.71580009386838},{"$f":"I40+I41+I42+I43+I44","v":1061},{"$f":"SQRT((J40^2)+(J41^2)+(J42^2)+(J43^2)+(J44^2))","v":175.66445286397587},{"$f":"K40+K41+K42+K43+K44","v":1301},{"$f":"SQRT((L40^2)+(L41^2)+(L42^2)+(L43^2)+(L44^2))","v":204.2473990042468},{"$f":"M40+M41+M42+M43+M44","v":1042},{"$f":"SQRT((N40^2)+(N41^2)+(N42^2)+(N43^2)+(N44^2))","v":179.94721448246983},{"$f":"O40+O41+O42+O43+O44","v":1155},{"$f":"SQRT((P40^2)+(P41^2)+(P42^2)+(P43^2)+(P44^2))","v":179.32372960654146},{"$f":"Q40+Q41+Q42+Q43+Q44","v":5955},{"$f":"SQRT((R40^2)+(R41^2)+(R42^2)+(R43^2)+(R44^2))","v":491.06109599519283},{"$f":"S40+S41+S42+S43+S44","v":550},{"$f":"SQRT((T40^2)+(T41^2)+(T42^2)+(T43^2)+(T44^2))","v":83.642094665305933},{"$f":"U40+U41+U42+U43+U44","v":1560},{"$f":"SQRT((V40^2)+(V41^2)+(V42^2)+(V43^2)+(V44^2))","v":285.72364270392467},{"$f":"W40+W41+W42+W43+W44","v":3317},{"$f":"SQRT((X40^2)+(X41^2)+(X42^2)+(X43^2)+(X44^2))","v":347.41617694056794},{"$f":"Y40+Y41+Y42+Y43+Y44","v":1327},{"$f":"SQRT((Z40^2)+(Z41^2)+(Z42^2)+(Z43^2)+(Z44^2))","v":201.41747689810833},{"$f":"AA40+AA41+AA42+AA43+AA44","v":891},{"$f":"SQRT((AB40^2)+(AB41^2)+(AB42^2)+(AB43^2)+(AB44^2))","v":145.3031314184247},{"$f":"AC40+AC41+AC42+AC43+AC44","v":1939},{"$f":"SQRT((AD40^2)+(AD41^2)+(AD42^2)+(AD43^2)+(AD44^2))","v":243.21595342411237},{"$f":"AE40+AE41+AE42+AE43+AE44","v":3971},{"$f":"SQRT((AF40^2)+(AF41^2)+(AF42^2)+(AF43^2)+(AF44^2))","v":369.33859803708577},{"$f":"AG40+AG41+AG42+AG43+AG44","v":605},{"$f":"SQRT((AH40^2)+(AH41^2)+(AH42^2)+(AH43^2)+(AH44^2))","v":98.112180691288273},{"$f":"AI40+AI41+AI42+AI43+AI44","v":526},{"$f":"SQRT((AJ40^2)+(AJ41^2)+(AJ42^2)+(AJ43^2)+(AJ44^2))","v":70.021425292548855},{"$f":"AK40+AK41+AK42+AK43+AK44","v":1429},{"$f":"SQRT((AL40^2)+(AL41^2)+(AL42^2)+(AL43^2)+(AL44^2))","v":295.76849054623784},{"$f":"AM40+AM41+AM42+AM43+AM44","v":6137},{"$f":"SQRT((AN40^2)+(AN41^2)+(AN42^2)+(AN43^2)+(AN44^2))","v":421.64202826568413},{"$f":"AO40+AO41+AO42+AO43+AO44","v":301},{"$f":"SQRT((AP40^2)+(AP41^2)+(AP42^2)+(AP43^2)+(AP44^2))","v":75.259550888907114},{"$f":"AQ40+AQ41+AQ42+AQ43+AQ44","v":483},{"$f":"SQRT((AR40^2)+(AR41^2)+(AR42^2)+(AR43^2)+(AR44^2))","v":77.323993688893225},{"$f":"AS40+AS41+AS42+AS43+AS44","v":193},{"$f":"SQRT((AT40^2)+(AT41^2)+(AT42^2)+(AT43^2)+(AT44^2))","v":41.448763552125413},{"$f":"AU40+AU41+AU42+AU43+AU44","v":1553},{"$f":"SQRT((AV40^2)+(AV41^2)+(AV42^2)+(AV43^2)+(AV44^2))","v":219.64289198605996},{"$f":"AW40+AW41+AW42+AW43+AW44","v":1281},{"$f":"SQRT((AX40^2)+(AX41^2)+(AX42^2)+(AX43^2)+(AX44^2))","v":184.01902075600773},{"$f":"AY40+AY41+AY42+AY43+AY44","v":1216},{"$f":"SQRT((AZ40^2)+(AZ41^2)+(AZ42^2)+(AZ43^2)+(AZ44^2))","v":205.69394740730706},{"$f":"BA40+BA41+BA42+BA43+BA44","v":1118},{"$f":"SQRT((BB40^2)+(BB41^2)+(BB42^2)+(BB43^2)+(BB44^2))","v":183.73078130786905},{"$f":"BC40+BC41+BC42+BC43+BC44","v":1255},{"$f":"SQRT((BD40^2)+(BD41^2)+(BD42^2)+(BD43^2)+(BD44^2))","v":202.63020505344213},{"$f":"BE40+BE41+BE42+BE43+BE44","v":1776},{"$f":"SQRT((BF40^2)+(BF41^2)+(BF42^2)+(BF43^2)+(BF44^2))","v":303.23917952665681},{"$f":"BG40+BG41+BG42+BG43+BG44","v":3971},{"$f":"SQRT((BH40^2)+(BH41^2)+(BH42^2)+(BH43^2)+(BH44^2))","v":354.11297632252905},{"$f":"BI40+BI41+BI42+BI43+BI44","v":2317},{"$f":"SQRT((BJ40^2)+(BJ41^2)+(BJ42^2)+(BJ43^2)+(BJ44^2))","v":326.89906699163276},{"$f":"BK40+BK41+BK42+BK43+BK44","v":1428},{"$f":"SQRT((BL40^2)+(BL41^2)+(BL42^2)+(BL43^2)+(BL44^2))","v":258.42987443405224},{"$f":"BM40+BM41+BM42+BM43+BM44","v":6556},{"$f":"SQRT((BN40^2)+(BN41^2)+(BN42^2)+(BN43^2)+(BN44^2))","v":512.04296694711081},{"$f":"BO40+BO41+BO42+BO43+BO44","v":1453},{"$f":"SQRT((BP40^2)+(BP41^2)+(BP42^2)+(BP43^2)+(BP44^2))","v":296.48102806081874},{"$f":"BQ40+BQ41+BQ42+BQ43+BQ44","v":2067},{"$f":"SQRT((BR40^2)+(BR41^2)+(BR42^2)+(BR43^2)+(BR44^2))","v":293.87582411624129},{"$f":"BS40+BS41+BS42+BS43+BS44","v":205},{"$f":"SQRT((BT40^2)+(BT41^2)+(BT42^2)+(BT43^2)+(BT44^2))","v":37.322915213043046},{"$f":"BU40+BU41+BU42+BU43+BU44","v":1882},{"$f":"SQRT((BV40^2)+(BV41^2)+(BV42^2)+(BV43^2)+(BV44^2))","v":291.74303762043746},{"$f":"BW40+BW41+BW42+BW43+BW44","v":3432},{"$f":"SQRT((BX40^2)+(BX41^2)+(BX42^2)+(BX43^2)+(BX44^2))","v":400.86032480154483}]
[null," 30% or More of HH Income",{"$f":"C45+C46+C47+C48","v":703},{"$f":"SQRT((D45^2)+(D46^2)+(D47^2)+(D48^2))","v":195.74984035753388},{"$f":"E45+E46+E47+E48","v":384},{"$f":"SQRT((F45^2)+(F46^2)+(F47^2)+(F48^2))","v":118.12705024675762},{"$f":"G45+G46+G47+G48","v":417},{"$f":"SQRT((H45^2)+(H46^2)+(H47^2)+(H48^2))","v":110.29959202100432},{"$f":"I45+I46+I47+I48","v":393},{"$f":"SQRT((J45^2)+(J46^2)+(J47^2)+(J48^2))","v":119.53660527219267},{"$f":"K45+K46+K47+K48","v":341},{"$f":"SQRT((L45^2)+(L46^2)+(L47^2)+(L48^2))","v":99.227012451247361},{"$f":"M45+M46+M47+M48","v":388},{"$f":"SQRT((N45^2)+(N46^2)+(N47^2)+(N48^2))","v":115.98275733918383},{"$f":"O45+O46+O47+O48","v":261},{"$f":"SQRT((P45^2)+(P46^2)+(P47^2)+(P48^2))","v":83.928541033429141},{"$f":"Q45+Q46+Q47+Q48","v":2287},{"$f":"SQRT((R45^2)+(R46^2)+(R47^2)+(R48^2))","v":326.22844756397319},{"$f":"S45+S46+S47+S48","v":299},{"$f":"SQRT((T45^2)+(T46^2)+(T47^2)+(T48^2))","v":71.979163651712426},{"$f":"U45+U46+U47+U48","v":728},{"$f":"SQRT((V45^2)+(V46^2)+(V47^2)+(V48^2))","v":213.59541193574361},{"$f":"W45+W46+W47+W48","v":1074},{"$f":"SQRT((X45^2)+(X46^2)+(X47^2)+(X48^2))","v":196.74602918483515},{"$f":"Y45+Y46+Y47+Y48","v":287},{"$f":"SQRT((Z45^2)+(Z46^2)+(Z47^2)+(Z48^2))","v":87.498571416909428},{"$f":"AA45+AA46+AA47+AA48","v":333},{"$f":"SQRT((AB45^2)+(AB46^2)+(AB47^2)+(AB48^2))","v":94.957885401898039},{"$f":"AC45+AC46+AC47+AC48","v":840},{"$f":"SQRT((AD45^2)+(AD46^2)+(AD47^2)+(AD48^2))","v":177.12425017484196},{"$f":"AE45+AE46+AE47+AE48","v":1418},{"$f":"SQRT((AF45^2)+(AF46^2)+(AF47^2)+(AF48^2))","v":231.78653972998518},{"$f":"AG45+AG46+AG47+AG48","v":223},{"$f":"SQRT((AH45^2)+(AH46^2)+(AH47^2)+(AH48^2))","v":74.939975980780773},{"$f":"AI45+AI46+AI47+AI48","v":227},{"$f":"SQRT((AJ45^2)+(AJ46^2)+(AJ47^2)+(AJ48^2))","v":50.239426748321883},{"$f":"AK45+AK46+AK47+AK48","v":602},{"$f":"SQRT((AL45^2)+(AL46^2)+(AL47^2)+(AL48^2))","v":178.19932659805423},{"$f":"AM45+AM46+AM47+AM48","v":1831},{"$f":"SQRT((AN45^2)+(AN46^2)+(AN47^2)+(AN48^2))","v":251.69227242805846},{"$f":"AO45+AO46+AO47+AO48","v":90},{"$f":"SQRT((AP45^2)+(AP46^2)+(AP47^2)+(AP48^2))","v":45.133136385587029},{"$f":"AQ45+AQ46+AQ47+AQ48","v":77},{"$f":"SQRT((AR45^2)+(AR46^2)+(AR47^2)+(AR48^2))","v":30.870698080866262},{"$f":"AS45+AS46+AS47+AS48","v":66},{"$f":"SQRT((AT45^2)+(AT46^2)+(AT47^2)+(AT48^2))","v":22.494443758403985},{"$f":"AU45+AU46+AU47+AU48","v":568},{"$f":"SQRT((AV45^2)+(AV46^2)+(AV47^2)+(AV48^2))","v":163.03987242389513},{"$f":"AW45+AW46+AW47+AW48","v":198},{"$f":"SQRT((AX45^2)+(AX46^2)+(AX47^2)+(AX48^2))","v":80.981479364111394},{"$f":"AY45+AY46+AY47+AY48","v":386},{"$f":"SQRT((AZ45^2)+(AZ46^2)+(AZ47^2)+(AZ48^2))","v":92.644481756875294},{"$f":"BA45+BA46+BA47+BA48","v":342},{"$f":"SQRT((BB45^2)+(BB46^2)+(BB47^2)+(BB48^2))","v":107.30796801729124},{"$f":"BC45+BC46+BC47+BC48","v":512},{"$f":"SQRT((BD45^2)+(BD46^2)+(BD47^2)+(BD48^2))","v":146.32498077908639},{"$f":"BE45+BE46+BE47+BE48","v":772},{"$f":"SQRT((BF45^2)+(BF46^2)+(BF47^2)+(BF48^2))","v":203.4059979449967},{"$f":"BG45+BG46+BG47+BG48","v":1258},{"$f":"SQRT((BH45^2)+(BH46^2)+(BH47^2)+(BH48^2))","v":215.38570054671689},{"$f":"BI45+BI46+BI47+BI48","v":895},{"$f":"SQRT((BJ45^2)+(BJ46^2)+(BJ47^2)+(BJ48^2))","v":205.78386720051697},{"$f":"BK45+BK46+BK47+BK48","v":513},{"$f":"SQRT((BL45^2)+(BL46^2)+(BL47^2)+(BL48^2))","v":163.54815804526811},{"$f":"BM45+BM46+BM47+BM48","v":2315},{"$f":"SQRT((BN45^2)+(BN46^2)+(BN47^2)+(BN48^2))","v":392.48694245796253},{"$f":"BO45+BO46+BO47+BO48","v":572},{"$f":"SQRT((BP45^2)+(BP46^2)+(BP47^2)+(BP48^2))","v":176.56160398002731},{"$f":"BQ45+BQ46+BQ47+BQ48","v":521},{"$f":"SQRT((BR45^2)+(BR46^2)+(BR47^2)+(BR48^2))","v":164.74829285913708},{"$f":"BS45+BS46+BS47+BS48","v":59},{"$f":"SQRT((BT45^2)+(BT46^2)+(BT47^2)+(BT48^2))","v":20.73644135332772},{"$f":"BU45+BU46+BU47+BU48","v":591},{"$f":"SQRT((BV45^2)+(BV46^2)+(BV47^2)+(BV48^2))","v":176.1760483153144},{"$f":"BW45+BW46+BW47+BW48","v":1373},{"$f":"SQRT((BX45^2)+(BX46^2)+(BX47^2)+(BX48^2))","v":291.33142638582609}]
[null," 30% to 34.9% of HH Income",{"$f":"C45","v":178},{"$f":"D45","v":84.528101836016646},{"$f":"E45","v":84},44.77722635447622,143,75.960516059331766,84,43.011626335213137,122,49.040799340956916,95,58.898217290508889,60,42.059481689626182,736,184.56977000581651,89,37.363083384538811,106,63.158530698552511,347,124.61942063739504,{"$f":"Y45","v":78},46.572524088780071,88,49.769468552517218,227,84.172442046075858,432,132.84953895290718,37,23.259406699226016,65,25.96150997149434,337,141.79210133149166,480,115.83177456984762,{"$f":"AO45","v":16},17.464249196572979,36,22.847319317591726,12,10.295630140987001,124,67.911707385398586,15,20.248456731316587,109,42.485291572496003,73,40.718546143004666,175,87.726848797845236,{"$f":"BE45","v":283},125.39936203984452,276,100.46392387319938,266,115.15641536623133,99,59.033888572581766,577,160.96272860510285,122,72.780491891715045,94,87.281154896117187,15,13.928388277184119,207,106.62551289442879,314,130.66751700403586]
[null," Less Than 35% of HH Income",{"$f":"C40+C41+C42+C43+C44+C45","v":2014},{"$f":"SQRT((D40^2)+(D41^2)+(D42^2)+(D43^2)+(D44^2)+(D45^2))","v":306.95765180232922},{"$f":"E40+E41+E42+E43+E44+E45","v":1519},{"$f":"SQRT((F40^2)+(F41^2)+(F42^2)+(F43^2)+(F44^2)+(F45^2))","v":215.72899666016158},{"$f":"G40+G41+G42+G43+G44+G45","v":1126},{"$f":"SQRT((H40^2)+(H41^2)+(H42^2)+(H43^2)+(H44^2)+(H45^2))","v":178.66728855613161},{"$f":"I40+I41+I42+I43+I44+I45","v":1145},{"$f":"SQRT((J40^2)+(J41^2)+(J42^2)+(J43^2)+(J44^2)+(J45^2))","v":180.85353189805281},{"$f":"K40+K41+K42+K43+K44+K45","v":1423},{"$f":"SQRT((L40^2)+(L41^2)+(L42^2)+(L43^2)+(L44^2)+(L45^2))","v":210.05237442123808},{"$f":"M40+M41+M42+M43+M44+M45","v":1137},{"$f":"SQRT((N40^2)+(N41^2)+(N42^2)+(N43^2)+(N44^2)+(N45^2))","v":189.34096228761487},{"$f":"O40+O41+O42+O43+O44+O45","v":1215},{"$f":"SQRT((P40^2)+(P41^2)+(P42^2)+(P43^2)+(P44^2)+(P45^2))","v":184.1901191703833},{"$f":"Q40+Q41+Q42+Q43+Q44+Q45","v":6691},{"$f":"SQRT((R40^2)+(R41^2)+(R42^2)+(R43^2)+(R44^2)+(R45^2))","v":524.60175371418654},{"$f":"S40+S41+S42+S43+S44+S45","v":639},{"$f":"SQRT((T40^2)+(T41^2)+(T42^2)+(T43^2)+(T44^2)+(T45^2))","v":91.60785992479029},{"$f":"U40+U41+U42+U43+U44+U45","v":1666},{"$f":"SQRT((V40^2)+(V41^2)+(V42^2)+(V43^2)+(V44^2)+(V45^2))","v":292.62091517866594},{"$f":"W40+W41+W42+W43+W44+W45","v":3664},{"$f":"SQRT((X40^2)+(X41^2)+(X42^2)+(X43^2)+(X44^2)+(X45^2))","v":369.09077474247442},{"$f":"Y40+Y41+Y42+Y43+Y44+Y45","v":1405},{"$f":"SQRT((Z40^2)+(Z41^2)+(Z42^2)+(Z43^2)+(Z44^2)+(Z45^2))","v":206.73171019463851},{"$f":"AA40+AA41+AA42+AA43+AA44+AA45","v":979},{"$f":"SQRT((AB40^2)+(AB41^2)+(AB42^2)+(AB43^2)+(AB44^2)+(AB45^2))","v":153.59036428109675},{"$f":"AC40+AC41+AC42+AC43+AC44+AC45","v":2166},{"$f":"SQRT((AD40^2)+(AD41^2)+(AD42^2)+(AD43^2)+(AD44^2)+(AD45^2))","v":257.36938434864391},{"$f":"AE40+AE41+AE42+AE43+AE44+AE45","v":4403},{"$f":"SQRT((AF40^2)+(AF41^2)+(AF42^2)+(AF43^2)+(AF44^2)+(AF45^2))","v":392.50477704099347},{"$f":"AG40+AG41+AG42+AG43+AG44+AG45","v":642},{"$f":"SQRT((AH40^2)+(AH41^2)+(AH42^2)+(AH43^2)+(AH44^2)+(AH45^2))","v":100.83154268382489},{"$f":"AI40+AI41+AI42+AI43+AI44+AI45","v":591},{"$f":"SQRT((AJ40^2)+(AJ41^2)+(AJ42^2)+(AJ43^2)+(AJ44^2)+(AJ45^2))","v":74.679314404994372},{"$f":"AK40+AK41+AK42+AK43+AK44+AK45","v":1766},{"$f":"SQRT((AL40^2)+(AL41^2)+(AL42^2)+(AL43^2)+(AL44^2)+(AL45^2))","v":328},{"$f":"AM40+AM41+AM42+AM43+AM44+AM45","v":6617},{"$f":"SQRT((AN40^2)+(AN41^2)+(AN42^2)+(AN43^2)+(AN44^2)+(AN45^2))","v":437.26307870662941},{"$f":"AO40+AO41+AO42+AO43+AO44+AO45","v":317},{"$f":"SQRT((AP40^2)+(AP41^2)+(AP42^2)+(AP43^2)+(AP44^2)+(AP45^2))","v":77.259303646874784},{"$f":"AQ40+AQ41+AQ42+AQ43+AQ44+AQ45","v":519},{"$f":"SQRT((AR40^2)+(AR41^2)+(AR42^2)+(AR43^2)+(AR44^2)+(AR45^2))","v":80.628778981204974},{"$f":"AS40+AS41+AS42+AS43+AS44+AS45","v":205},{"$f":"SQRT((AT40^2)+(AT41^2)+(AT42^2)+(AT43^2)+(AT44^2)+(AT45^2))","v":42.708313008125245},{"$f":"AU40+AU41+AU42+AU43+AU44+AU45","v":1677},{"$f":"SQRT((AV40^2)+(AV41^2)+(AV42^2)+(AV43^2)+(AV44^2)+(AV45^2))","v":229.90215309996555},{"$f":"AW40+AW41+AW42+AW43+AW44+AW45","v":1296},{"$f":"SQRT((AX40^2)+(AX41^2)+(AX42^2)+(AX43^2)+(AX44^2)+(AX45^2))","v":185.12968427564499},{"$f":"AY40+AY41+AY42+AY43+AY44+AY45","v":1325},{"$f":"SQRT((AZ40^2)+(AZ41^2)+(AZ42^2)+(AZ43^2)+(AZ44^2)+(AZ45^2))","v":210.03571124930161},{"$f":"BA40+BA41+BA42+BA43+BA44+BA45","v":1191},{"$f":"SQRT((BB40^2)+(BB41^2)+(BB42^2)+(BB43^2)+(BB44^2)+(BB45^2))","v":188.18873505074632},{"$f":"BC40+BC41+BC42+BC43+BC44+BC45","v":1430},{"$f":"SQRT((BD40^2)+(BD41^2)+(BD42^2)+(BD43^2)+(BD44^2)+(BD45^2))","v":220.80534413822505},{"$f":"BE40+BE41+BE42+BE43+BE44+BE45","v":2059},{"$f":"SQRT((BF40^2)+(BF41^2)+(BF42^2)+(BF43^2)+(BF44^2)+(BF45^2))","v":328.14478511778913},{"$f":"BG40+BG41+BG42+BG43+BG44+BG45","v":4247},{"$f":"SQRT((BH40^2)+(BH41^2)+(BH42^2)+(BH43^2)+(BH44^2)+(BH45^2))","v":368.08830462268156},{"$f":"BI40+BI41+BI42+BI43+BI44+BI45","v":2583},{"$f":"SQRT((BJ40^2)+(BJ41^2)+(BJ42^2)+(BJ43^2)+(BJ44^2)+(BJ45^2))","v":346.58909388496346},{"$f":"BK40+BK41+BK42+BK43+BK44+BK45","v":1527},{"$f":"SQRT((BL40^2)+(BL41^2)+(BL42^2)+(BL43^2)+(BL44^2)+(BL45^2))","v":265.08677824440809},{"$f":"BM40+BM41+BM42+BM43+BM44+BM45","v":7133},{"$f":"SQRT((BN40^2)+(BN41^2)+(BN42^2)+(BN43^2)+(BN44^2)+(BN45^2))","v":536.74668140567019},{"$f":"BO40+BO41+BO42+BO43+BO44+BO45","v":1575},{"$f":"SQRT((BP40^2)+(BP41^2)+(BP42^2)+(BP43^2)+(BP44^2)+(BP45^2))","v":305.28347482299137},{"$f":"BQ40+BQ41+BQ42+BQ43+BQ44+BQ45","v":2161},{"$f":"SQRT((BR40^2)+(BR41^2)+(BR42^2)+(BR43^2)+(BR44^2)+(BR45^2))","v":306.56320718572869},{"$f":"BS40+BS41+BS42+BS43+BS44+BS45","v":220},{"$f":"SQRT((BT40^2)+(BT41^2)+(BT42^2)+(BT43^2)+(BT44^2)+(BT45^2))","v":39.837168574084181},{"$f":"BU40+BU41+BU42+BU43+BU44+BU45","v":2089},{"$f":"SQRT((BV40^2)+(BV41^2)+(BV42^2)+(BV43^2)+(BV44^2)+(BV45^2))","v":310.61712766684326},{"$f":"BW40+BW41+BW42+BW43+BW44+BW45","v":3746},{"$f":"SQRT((BX40^2)+(BX41^2)+(BX42^2)+(BX43^2)+(BX44^2)+(BX45^2))","v":421.61949670289204}]
[null," 35% or More of HH Income",{"$f":"C46+C47+C48","v":525},{"$f":"SQRT((D46^2)+(D47^2)+(D48^2))","v":176.55877208453848},{"$f":"E46+E47+E48","v":300},{"$f":"SQRT((F46^2)+(F47^2)+(F48^2))","v":109.31148155614761},{"$f":"G46+G47+G48","v":274},{"$f":"SQRT((H46^2)+(H47^2)+(H48^2))","v":79.974996092528826},{"$f":"I46+I47+I48","v":309},{"$f":"SQRT((J46^2)+(J47^2)+(J48^2))","v":111.53026495081951},{"$f":"K46+K47+K48","v":219},{"$f":"SQRT((L46^2)+(L47^2)+(L48^2))","v":86.261231152818581},{"$f":"M46+M47+M48","v":293},{"$f":"SQRT((N46^2)+(N47^2)+(N48^2))","v":99.914963844261081},{"$f":"O46+O47+O48","v":201},{"$f":"SQRT((P46^2)+(P47^2)+(P48^2))","v":72.629195231669755},{"$f":"Q46+Q47+Q48","v":1551},{"$f":"SQRT((R46^2)+(R47^2)+(R48^2))","v":268.99628250219371},{"$f":"S46+S47+S48","v":210},{"$f":"SQRT((T46^2)+(T47^2)+(T48^2))","v":61.522353661088097},{"$f":"U46+U47+U48","v":622},{"$f":"SQRT((V46^2)+(V47^2)+(V48^2))","v":204.04411287758342},{"$f":"W46+W47+W48","v":727},{"$f":"SQRT((X46^2)+(X47^2)+(X48^2))","v":152.24651063324899},{"$f":"Y46+Y47+Y48","v":209},{"$f":"SQRT((Z46^2)+(Z47^2)+(Z48^2))","v":74.074287036730908},{"$f":"AA46+AA47+AA48","v":245},{"$f":"SQRT((AB46^2)+(AB47^2)+(AB48^2))","v":80.870266476622916},{"$f":"AC46+AC47+AC48","v":613},{"$f":"SQRT((AD46^2)+(AD47^2)+(AD48^2))","v":155.84607791022526},{"$f":"AE46+AE47+AE48","v":986},{"$f":"SQRT((AF46^2)+(AF47^2)+(AF48^2))","v":189.93683160461532},{"$f":"AG46+AG47+AG48","v":186},{"$f":"SQRT((AH46^2)+(AH47^2)+(AH48^2))","v":71.239034243875039},{"$f":"AI46+AI47+AI48","v":162},{"$f":"SQRT((AJ46^2)+(AJ47^2)+(AJ48^2))","v":43.011626335213137},{"$f":"AK46+AK47+AK48","v":265},{"$f":"SQRT((AL46^2)+(AL47^2)+(AL48^2))","v":107.93516572461452},{"$f":"AM46+AM47+AM48","v":1351},{"$f":"SQRT((AN46^2)+(AN47^2)+(AN48^2))","v":223.45469339443287},{"$f":"AO46+AO47+AO48","v":74},{"$f":"SQRT((AP46^2)+(AP47^2)+(AP48^2))","v":41.617304093369626},{"$f":"AQ46+AQ47+AQ48","v":41},{"$f":"SQRT((AR46^2)+(AR47^2)+(AR48^2))","v":20.760539492026695},{"$f":"AS46+AS47+AS48","v":54},{"$f":"SQRT((AT46^2)+(AT47^2)+(AT48^2))","v":20},{"$f":"AU46+AU47+AU48","v":444},{"$f":"SQRT((AV46^2)+(AV47^2)+(AV48^2))","v":148.22280526288793},{"$f":"AW46+AW47+AW48","v":183},{"$f":"SQRT((AX46^2)+(AX47^2)+(AX48^2))","v":78.409183135650636},{"$f":"AY46+AY47+AY48","v":277},{"$f":"SQRT((AZ46^2)+(AZ47^2)+(AZ48^2))","v":82.328609851011095},{"$f":"BA46+BA47+BA48","v":269},{"$f":"SQRT((BB46^2)+(BB47^2)+(BB48^2))","v":99.282425433709065},{"$f":"BC46+BC47+BC48","v":337},{"$f":"SQRT((BD46^2)+(BD47^2)+(BD48^2))","v":117.11105840184351},{"$f":"BE46+BE47+BE48","v":489},{"$f":"SQRT((BF46^2)+(BF47^2)+(BF48^2))","v":160.15305179733542},{"$f":"BG46+BG47+BG48","v":982},{"$f":"SQRT((BH46^2)+(BH47^2)+(BH48^2))","v":190.52034012146839},{"$f":"BI46+BI47+BI48","v":629},{"$f":"SQRT((BJ46^2)+(BJ47^2)+(BJ48^2))","v":170.54618142896075},{"$f":"BK46+BK47+BK48","v":414},{"$f":"SQRT((BL46^2)+(BL47^2)+(BL48^2))","v":152.5221295419127},{"$f":"BM46+BM47+BM48","v":1738},{"$f":"SQRT((BN46^2)+(BN47^2)+(BN48^2))","v":357.96228851654195},{"$f":"BO46+BO47+BO48","v":450},{"$f":"SQRT((BP46^2)+(BP47^2)+(BP48^2))","v":160.86329600005092},{"$f":"BQ46+BQ47+BQ48","v":427},{"$f":"SQRT((BR46^2)+(BR47^2)+(BR48^2))","v":139.72830779766855},{"$f":"BS46+BS47+BS48","v":44},{"$f":"SQRT((BT46^2)+(BT47^2)+(BT48^2))","v":15.362291495737217},{"$f":"BU46+BU47+BU48","v":384},{"$f":"SQRT((BV46^2)+(BV47^2)+(BV48^2))","v":140.24621207005913},{"$f":"BW46+BW47+BW48","v":1059},{"$f":"SQRT((BX46^2)+(BX47^2)+(BX48^2))","v":260.38433132583071}]
[null," 50% or More of HH Income",{"$f":"C48","v":186},{"$f":"D48","v":86.452298986203942},{"$f":"E48","v":100},53.338541412378348,140,56.850681614207581,185,95.482982777037293,106,67.007462271003817,165,83.450584180100265,98,53.814496188294839,715,192.62658175859323,125,48.301138702933287,299,148.11144452742334,408,109.71326264403953,{"$f":"Y48","v":83},46.61544808322666,110,46.400431032480725,329,116.38728452885221,533,128.84486796143648,142,66.370174024180471,60,24.596747752497688,123,74.330343736592525,726,172.53985046939155,{"$f":"AO48","v":41},27.658633371878661,20,12.806248474865697,32,13,217,118.25819210524064,101,62.297672508690084,161,63.7808748764079,96,55.946402922797461,164,76.53757247260981,{"$f":"BE48","v":279},123.60016181219181,427,126.14277624977183,281,111.07204868912791,130,73.573092907665639,839,284.3448610402516,217,107.33592129385204,272,114.23659658795863,25,10.295630140987001,224,103.22790320451152,530,168.43396332094071]
[null,"Not computed",{"$f":"C49","v":12},{"$f":"D49","v":26.40075756488817},{"$f":"E49","v":0},22.627416997969522,0,15.556349186104045,0,15.556349186104045,0,22.627416997969522,0,15.556349186104045,37,41.484937025383083,49,51.884487084291386,0,15.556349186104045,0,22.627416997969522,88,90.801982357215081,{"$f":"Y49","v":0},15.556349186104045,32,34.785054261852174,10,23.345235059857504,5,19.697715603592208,0,15.556349186104045,7,7.810249675906654,0,22.627416997969522,21,25.495097567963924,{"$f":"AO49","v":0},15.556349186104045,0,15.556349186104045,0,15.556349186104045,0,22.627416997969522,8,17.029386365926403,10,18.601075237738275,0,15.556349186104045,0,22.627416997969522,{"$f":"BE49","v":0},22.627416997969522,8,24.186773244895647,12,25.45584412271571,0,22.627416997969522,135,103.24727599312246,0,22.627416997969522,12,25.612496949731394,0,15.556349186104045,14,28.844410203711913,0,25.45584412271571]
[]
[]
[]
[]
[]
[]
[]
[]
[]
[]
[]
[]
[null,"B25091. MORTGAGE STATUS BY SELECTED MONTHLY OWNER COSTS AS A PERCENTAGE OF HOUSEHOLD INCOME IN THE PAST 12 MONTHS "]
[null,"Universe:  OWNER-OCCUPIED HOUSING UNITS"]
[null,"Data Set: 2010-2014 American Community Survey 5-Year Estimates"]
[]
[null,null,"Atkinson",null,"Auburn",null,"Brentwood",null,"Candia",null,"Chester",null,"Danville",null,"Deerfield",null,"Derry",null,"East Kingston",null,"Epping",null,"Exeter",null,"Fremont",null,"Greenland",null,"Hampstead",null,"Hampton",null,"Hampton Falls",null,"Kensington",null,"Kingston",null,"Londonderry",null,"New Castle",null,"Newfields",null,"Newington",null,"Newmarket",null,"Newton",null,"North Hampton",null,"Northwood",null,"Nottingham",null,"Plaistow",null,"Portsmouth",null,"Raymond",null,"Rye",null,"Salem",null,"Sandown",null,"Seabrook",null,"South Hampton",null,"Stratham",null,"Windham"]
[null,null,"Estimate","Margin Of Error","Estimate","Margin Of Error","Estimate","Margin Of Error","Estimate","Margin Of Error","Estimate","Margin Of Error","Estimate","Margin Of Error","Estimate","Margin Of Error","Estimate","Margin Of Error","Estimate","Margin Of Error","Estimate","Margin Of Error","Estimate","Margin Of Error","Estimate","Margin Of Error","Estimate","Margin Of Error","Estimate","Margin Of Error","Estimate","Margin Of Error","Estimate","Margin Of Error","Estimate","Margin Of Error","Estimate","Margin Of Error","Estimate","Margin Of Error","Estimate","Margin Of Error","Estimate","Margin Of Error","Estimate","Margin Of Error","Estimate","Margin Of Error","Estimate","Margin Of Error","Estimate","Margin Of Error","Estimate","Margin Of Error","Estimate","Margin Of Error","Estimate","Margin Of Error","Estimate","Margin Of Error","Estimate","Margin Of Error","Estimate","Margin Of Error","Estimate","Margin Of Error","Estimate","Margin Of Error","Estimate","Margin Of Error","Estimate","Margin Of Error","Estimate","Margin Of Error","Estimate","Margin Of Error"]
[null,"Total:",2395,123,1660,73,1148,138,1427,91,1487,100,1340,101,1431,108,8244,408,804,59,2236,215,4262,269,1416,112,1206,91,2758,200,4694,303,776,63,692,57,2067,180,7591,258,347,60,523,62,222,38,2036,198,1387,125,1581,105,1460,121,1748,106,2281,256,5452,291,2954,205,1950,183,8451,334,1956,152,2419,259,254,41,2584,163,4611,247]
[null,"Housing units with a mortgage:",1754,139,1269,98,866,117,986,118,1169,110,949,136,1109,106,6405,408,619,63,1789,195,2729,238,1153,124,808,102,2052,192,3003,256,573,61,546,55,1299,189,6084,269,195,57,382,56,145,33,1578,174,1089,119,887,100,892,139,1389,117,1881,234,3786,298,2153,229,1039,182,5959,371,1648,163,1584,228,174,34,1853,168,3406,293]
[null,"Less than 10.0 percent",29,32,42,58,18,19,28,23,64,31,6,10,41,31,231,108,29,17,0,15,99,57,50,33,108,58,78,49,138,61,47,33,21,20,46,45,165,74,42,28,19,15,3,5,20,22,30,30,73,41,0,11,60,55,51,48,183,81,84,77,36,41,111,64,124,83,22,25,11,10,181,96,184,82]
[null,"10.0 to 14.9 percent",211,112,229,76,111,77,135,63,69,43,63,37,95,59,588,157,57,30,208,128,269,111,101,56,60,28,274,97,385,112,120,44,64,21,240,126,585,132,45,34,43,22,15,13,92,41,117,55,133,78,69,43,181,72,93,70,514,150,105,76,48,38,668,183,109,63,196,120,13,8,266,122,380,153]
[null,"15.0 to 19.9 percent",364,169,287,86,238,90,213,79,178,70,158,73,167,60,891,190,88,28,320,136,564,141,105,43,117,44,262,106,407,129,67,29,98,32,204,113,1042,196,8,7,78,33,35,19,293,95,210,71,170,72,205,98,244,112,377,122,551,132,324,102,188,98,1068,184,231,98,281,107,20,13,399,155,423,131]
[null,"20.0 to 24.9 percent",285,112,222,82,211,78,171,63,249,86,189,72,164,62,1006,223,123,37,265,112,381,118,267,90,151,70,368,96,624,150,68,29,100,40,195,95,1338,191,13,15,75,35,12,10,360,139,164,72,96,46,147,60,191,65,208,96,697,151,375,127,144,82,914,218,321,130,310,102,40,22,217,87,653,169]
[null,"25.0 to 29.9 percent",200,93,145,68,96,48,161,78,192,83,242,78,231,92,1117,210,53,31,240,102,401,110,151,65,102,56,393,116,449,120,77,27,75,32,170,93,908,164,40,28,36,20,25,18,262,96,203,78,135,57,139,62,231,85,266,109,412,119,374,125,153,96,882,186,153,93,111,65,17,10,173,83,536,135]
[null,"30.0 to 34.9 percent",233,100,111,68,30,23,119,68,82,47,67,42,99,39,593,160,55,26,238,119,269,94,131,63,73,46,162,88,212,91,26,16,66,23,133,75,476,146,16,16,34,19,11,11,196,80,90,57,92,48,115,57,145,90,226,111,414,138,241,91,135,112,629,180,163,90,35,40,22,11,190,87,327,120]
[null,"35.0 to 39.9 percent",125,77,51,36,34,27,56,35,56,38,62,52,151,78,457,140,36,20,119,79,157,69,20,23,53,34,134,58,158,70,37,23,35,18,89,76,419,137,11,16,38,30,2,3,44,28,92,51,86,51,37,32,66,40,62,51,190,67,252,112,134,76,336,132,89,69,48,41,12,8,126,72,195,109]
[null,"40.0 to 49.9 percent",136,76,65,40,68,42,42,33,149,85,87,69,26,23,572,175,55,26,115,54,227,83,192,75,66,42,108,59,215,91,19,18,22,20,131,87,442,131,14,18,17,12,11,10,133,59,65,39,30,28,85,53,131,71,223,113,396,133,56,43,94,64,510,162,205,109,169,123,27,19,132,74,146,89]
[null,"50.0 percent or more",171,93,117,63,60,38,55,32,130,66,75,48,135,54,939,180,109,29,261,128,345,113,136,53,58,38,273,97,381,109,112,41,65,32,78,53,688,151,6,7,42,31,29,19,178,81,118,91,72,45,95,52,140,65,375,131,429,137,342,128,107,58,823,209,253,117,391,178,12,9,169,92,562,180]
[null,"Not computed",0,15,0,15,0,11,6,11,0,11,0,11,0,11,11,17,14,17,23,34,17,27,0,11,20,27,0,15,34,39,0,11,0,11,13,20,21,17,0,11,0,11,2,5,0,15,0,11,0,11,0,11,0,11,0,15,0,20,0,17,0,15,18,29,0,15,21,35,0,11,0,15,0,17]
[null,"Housing units without a mortgage:",641,140,391,76,282,82,441,95,318,91,391,97,322,83,1839,233,185,45,447,153,1533,207,263,95,398,79,706,154,1691,219,203,49,146,26,768,192,1507,203,152,48,141,37,77,20,458,106,298,86,694,118,568,127,359,89,400,128,1666,219,801,161,911,200,2492,295,308,99,835,217,80,27,731,160,1205,244]
[null,"Less than 10.0 percent",151,76,187,68,74,42,197,71,128,63,124,66,50,32,445,116,35,23,165,104,401,126,50,32,114,52,125,55,545,136,29,16,39,19,145,88,414,116,72,34,33,22,27,14,163,80,72,41,218,83,127,72,159,61,101,61,348,92,134,66,316,150,581,151,72,49,182,150,25,12,223,101,397,142]
[null,"10.0 to 14.9 percent",181,75,62,34,72,37,17,19,94,51,91,46,87,51,335,101,13,12,81,58,306,101,107,78,71,38,154,73,450,121,27,15,32,15,70,48,212,81,28,22,32,17,19,12,55,36,38,28,158,65,123,62,86,50,87,62,303,94,165,69,107,68,543,128,25,28,207,94,7,6,121,65,242,179]
[null,"15.0 to 19.9 percent",72,54,20,23,67,43,69,33,22,22,76,62,85,39,198,87,23,17,41,43,160,82,38,24,80,38,105,48,177,65,41,22,27,16,162,84,200,98,11,9,9,9,7,8,50,32,24,22,64,40,45,33,41,35,40,47,295,91,121,74,63,44,326,107,38,36,136,82,10,9,51,43,67,45]
[null,"20.0 to 24.9 percent",42,39,50,33,0,11,42,32,21,20,13,15,32,25,148,61,11,11,39,41,122,57,18,18,35,28,60,41,171,72,44,32,8,7,44,44,108,51,5,7,28,15,10,10,47,32,42,27,47,30,107,66,7,12,78,52,151,78,97,59,62,57,273,133,73,80,12,19,3,4,76,55,107,86]
[null,"25.0 to 29.9 percent",56,44,9,15,14,16,22,21,25,27,19,24,27,20,69,46,32,18,33,38,111,60,0,11,11,17,41,37,126,76,25,20,7,7,91,73,146,64,0,11,15,12,4,5,25,23,28,33,67,57,29,26,29,25,31,36,130,72,55,43,86,62,224,89,14,21,101,72,2,4,63,56,96,66]
[null,"30.0 to 34.9 percent",59,49,8,12,7,11,10,15,0,11,36,31,8,12,137,76,21,16,17,28,126,71,19,20,35,33,45,35,59,44,7,8,9,10,53,51,81,47,3,5,8,7,6,7,18,21,18,19,17,20,22,25,23,19,12,19,41,28,29,37,103,110,184,97,15,24,82,79,13,19,58,49,67,52]
[null,"35.0 to 39.9 percent",16,26,18,22,16,18,11,18,0,11,0,11,0,11,11,14,0,11,14,22,116,84,0,11,17,19,17,20,25,25,6,9,9,9,52,47,94,62,0,11,10,10,0,11,8,12,18,29,50,35,55,67,0,11,0,15,27,27,21,23,0,15,38,35,20,25,10,18,15,13,33,38,78,65]
[null,"40.0 to 49.9 percent",15,24,17,18,0,11,32,29,6,11,7,11,9,14,77,50,10,11,43,42,124,98,10,15,8,11,15,18,31,30,10,10,0,11,59,55,97,55,3,5,0,11,4,6,11,19,0,11,20,23,0,11,0,11,15,26,92,59,51,39,12,20,80,47,26,35,52,67,0,11,13,20,31,35]
[null,"50.0 percent or more",49,42,20,22,32,26,41,34,22,21,25,23,24,23,404,173,40,25,14,22,51,47,21,24,27,23,126,88,107,60,14,13,11,9,92,72,145,63,22,22,6,6,0,11,69,45,58,46,53,37,60,54,5,9,36,38,230,111,114,78,140,63,204,84,25,25,53,37,5,5,93,60,120,86]
[null,"Not computed",0,15,0,15,0,11,0,11,0,11,0,11,0,11,15,26,0,11,0,15,16,20,0,11,0,11,18,28,0,17,0,11,4,5,0,15,10,16,8,13,0,11,0,11,12,18,0,11,0,11,0,11,9,14,0,15,49,78,14,21,22,36,39,26,0,15,0,15,0,11,0,15,0,17]
[]
[]
[]
[null,"Calculated B25091. MORTGAGE STATUS BY SELECTED MONTHLY OWNER COSTS AS A PERCENTAGE OF HOUSEHOLD INCOME IN THE PAST 12 MONTHS "]
[null,"Universe:  OWNER-OCCUPIED HOUSING UNITS"]
[null,"Data Set: 2010-2014 American Community Survey 5-Year Estimates"]
[]
[null,null,"Atkinson",null,"Auburn",null,"Brentwood",null,"Candia",null,"Chester",null,"Danville",null,"Deerfield",null,"Derry",null,"East Kingston",null,"Epping",null,"Exeter",null,"Fremont",null,"Greenland",null,"Hampstead",null,"Hampton",null,"Hampton Falls",null,"Kensington",null,"Kingston",null,"Londonderry",null,"New Castle",null,"Newfields",null,"Newington",null,"Newmarket",null,"Newton",null,"North Hampton",null,"Northwood",null,"Nottingham",null,"Plaistow",null,"Portsmouth",null,"Raymond",null,"Rye",null,"Salem",null,"Sandown",null,"Seabrook",null,"South Hampton",null,"Stratham",null,"Windham"]
[null,null,"Estimate","Margin Of Error","Estimate","Margin Of Error","Estimate","Margin Of Error","Estimate","Margin Of Error","Estimate","Margin Of Error","Estimate","Margin Of Error","Estimate","Margin Of Error","Estimate","Margin Of Error","Estimate","Margin Of Error","Estimate","Margin Of Error","Estimate","Margin Of Error","Estimate","Margin Of Error","Estimate","Margin Of Error","Estimate","Margin Of Error","Estimate","Margin Of Error","Estimate","Margin Of Error","Estimate","Margin Of Error","Estimate","Margin Of Error","Estimate","Margin Of Error","Estimate","Margin Of Error","Estimate","Margin Of Error","Estimate","Margin Of Error","Estimate","Margin Of Error","Estimate","Margin Of Error","Estimate","Margin Of Error","Estimate","Margin Of Error","Estimate","Margin Of Error","Estimate","Margin Of Error","Estimate","Margin Of Error","Estimate","Margin Of Error","Estimate","Margin Of Error","Estimate","Margin Of Error","Estimate","Margin Of Error","Estimate","Margin Of Error","Estimate","Margin Of Error","Estimate","Margin Of Error","Estimate","Margin Of Error"]
[null,"Total:",{"$f":"C87","v":2395},{"$f":"D87","v":123},{"$f":"E87","v":1660},73,1148,138,1427,91,1487,100,1340,101,1431,108,8244,408,804,59,2236,215,4262,269,{"$f":"Y87","v":1416},112,1206,91,2758,200,4694,303,776,63,692,57,2067,180,7591,258,347,60,523,62,222,38,2036,198,1387,125,1581,105,1460,121,1748,106,2281,256,5452,291,2954,205,1950,183,8451,334,1956,152,2419,259,254,41,2584,163,4611,247]
[null,"Less than 10.0 percent",{"$f":"C89+C100","v":180},{"$f":"SQRT((D89^2)+(D100^2))","v":82.462112512353215},{"$f":"E89+E100","v":229},{"$f":"SQRT((F89^2)+(F100^2))","v":89.375611886017325},{"$f":"G89+G100","v":92},{"$f":"SQRT((H89^2)+(H100^2))","v":46.097722286464439},{"$f":"I89+I100","v":225},{"$f":"SQRT((J89^2)+(J100^2))","v":74.632432628181164},{"$f":"K89+K100","v":192},{"$f":"SQRT((L89^2)+(L100^2))","v":70.213958726167832},{"$f":"M89+M100","v":130},{"$f":"SQRT((N89^2)+(N100^2))","v":66.753277073114546},{"$f":"O89+O100","v":91},{"$f":"SQRT((P89^2)+(P100^2))","v":44.553338819890925},{"$f":"Q89+Q100","v":676},{"$f":"SQRT((R89^2)+(R100^2))","v":158.49290204927161},{"$f":"S89+S100","v":64},{"$f":"SQRT((T89^2)+(T100^2))","v":28.600699292150182},{"$f":"U89+U100","v":165},{"$f":"SQRT((V89^2)+(V100^2))","v":105.07616285342742},{"$f":"W89+W100","v":500},{"$f":"SQRT((X89^2)+(X100^2))","v":138.2931668593933},100,{"$f":"SQRT((Z89^2)+(Z100^2))","v":45.967379738244816},222,{"$f":"SQRT((AB89^2)+(AB100^2))","v":77.89736837660179},203,{"$f":"SQRT((AD89^2)+(AD100^2))","v":73.661387442811588},683,{"$f":"SQRT((AF89^2)+(AF100^2))","v":149.05368160498418},76,{"$f":"SQRT((AH89^2)+(AH100^2))","v":36.674241641784498},60,{"$f":"SQRT((AJ89^2)+(AJ100^2))","v":27.586228448267445},191,{"$f":"SQRT((AL89^2)+(AL100^2))","v":98.838251704489394},{"$f":"AM89+AM100","v":579},{"$f":"SQRT((AN89^2)+(AN100^2))","v":137.59360450253493},114,{"$f":"SQRT((AP89^2)+(AP100^2))","v":44.045431091090478},52,{"$f":"SQRT((AR89^2)+(AR100^2))","v":26.627053911388696},30,{"$f":"SQRT((AT89^2)+(AT100^2))","v":14.866068747318506},183,{"$f":"SQRT((AV89^2)+(AV100^2))","v":82.969874050766165},102,{"$f":"SQRT((AX89^2)+(AX100^2))","v":50.803543183522152},291,{"$f":"SQRT((AZ89^2)+(AZ100^2))","v":92.57429448826494},127,{"$f":"SQRT((BB89^2)+(BB100^2))","v":72.835430938520574},219,{"$f":"SQRT((BD89^2)+(BD100^2))","v":82.134036793524274},152,{"$f":"SQRT((BF89^2)+(BF100^2))","v":77.620873481300123},531,{"$f":"SQRT((BH89^2)+(BH100^2))","v":122.57650672131263},218,{"$f":"SQRT((BJ89^2)+(BJ100^2))","v":101.41498903022176},352,{"$f":"SQRT((BL89^2)+(BL100^2))","v":155.502411556863},692,{"$f":"SQRT((BN89^2)+(BN100^2))","v":164.00304875214974},196,{"$f":"SQRT((BP89^2)+(BP100^2))","v":96.384646080171919},204,{"$f":"SQRT((BR89^2)+(BR100^2))","v":152.0690632574555},36,{"$f":"SQRT((BT89^2)+(BT100^2))","v":15.620499351813308},404,{"$f":"SQRT((BV89^2)+(BV100^2))","v":139.34489585198304},581,{"$f":"SQRT((BX89^2)+(BX100^2))","v":163.97560794215707}]
[null,"10.0 to 14.9 percent",{"$f":"C90+C101","v":392},134.79243302203577,291,83.258633185994597,183,85.428332536694171,152,65.80273550544841,163,66.708320320631671,154,59.033888572581766,182,77.987178433380961,923,186.6815470259447,70,32.310988842807021,289,140.52757736472938,575,{"$f":"SQRT((X90^2)+(X101^2))","v":150.07331541616585},208,96.020831073262428,131,47.201694884823787,428,121.40016474453401,835,164.87874332369228,147,46.486557196677836,96,25.80697580112788,310,134.83323032546539,797,154.87091398968369,73,40.496913462633174,75,27.802877548915689,34,17.691806012954132,147,54.561891462814962,155,61.71709649683789,291,101.53324578678651,192,75.451971478550519,267,87.658428003244509,180,93.509357820487679,817,177.01977290687049,270,102.6498904042279,155,77.89736837660179,1211,223.32263655975405,134,68.942004612572731,403,152.43359209832983,20,10,387,138.23530663329106,622,235.47823678633233]
[null,"15.0 to 19.9 percent",436,177.41758650145144,307,89.022469073824283,305,99.744674043279119,282,85.615419172015976,200,73.375745311376562,234,95.775779819325933,252,71.56116265125938,1089,208.97128989409049,111,32.756678708318397,361,142.63590010933433,724,163.11039206623224,143,{"$f":"SQRT((Z91^2)+(Z102^2))","v":49.244289008980523},197,58.137767414994535,367,116.36150566231085,584,144.45068362593511,108,36.400549446402593,125,35.777087639996637,366,140.80127840328723,1242,219.13466179497939,19,11.401754250991379,87,34.205262752974143,42,20.615528128088304,343,100.24470060806208,234,74.330343736592525,234,82.365041127896006,250,103.40696301506973,285,117.34138229968147,417,130.74020039758238,846,160.3277892319357,445,126.01587201618692,251,107.42439201596628,1394,212.8497122384712,269,104.4030650891055,417,134.80726983364065,30,15.811388300841896,450,160.85397104206038,490,138.51353724455961]
[null,"20.0 to 24.9 percent",327,118.59595271340417,272,88.391176030189797,211,78.771822373231913,213,70.661163307718056,270,88.294960218576463,202,73.545904032787575,196,66.850579653433073,1154,231.19256043393784,134,38.600518131237564,304,119.26860441876563,503,131.04579352272242,285,91.782351244670124,186,75.392307299883058,428,104.38869670610895,795,166.38509548634457,112,43.185645763378368,108,40.607881008493905,239,104.69479452198185,1446,197.6916791369834,18,16.552945357246848,103,38.078865529319543,22,14.142135623730951,407,142.63590010933433,206,76.896033707857782,143,54.918120870983927,254,89.196412483911033,198,66.098411478642959,286,109.17875251164945,848,169.95587662684687,472,140.03570973148243,206,99.864908751773257,1187,255.36836139193124,394,152.64337522473747,322,103.75451797391764,43,22.360679774997898,293,102.92715870944851,760,189.62331080328704]
[null,"25.0 to 29.9 percent",256,102.88342918079665,154,69.634761434214738,110,50.596442562694072,183,80.777472107017559,217,87.281154896117187,261,81.60882305241266,258,94.148818367518558,1186,214.97906874856446,85,35.846896657869841,273,108.84851859350222,512,125.29964086141668,151,65.924198895398035,113,58.523499553598128,434,121.75795661885921,575,142.04224723651762,102,33.600595232822883,82,32.756678708318397,261,118.2285921425101,1054,176.04544867732309,40,30.083217912982647,51,23.323807579381203,29,18.681541692269406,287,98.716766559688324,231,84.693565280958623,202,80.610173055266415,168,67.230945255886439,260,88.600225733346747,297,114.79111463872106,542,139.08630414242805,429,132.18925826253812,239,114.28035701729323,1106,206.196508214858,167,95.341491492424225,212,97,19,10.770329614269007,236,100.12492197250393,632,150.26975743641833]
[null,"30.0 to 34.9 percent",292,111.35977729862789,119,69.050706006528273,37,25.495097567963924,129,69.634761434214738,82,48.270073544588683,103,52.201532544552748,107,40.80441152620633,730,177.13271860387624,76,30.528675044947494,255,122.24974437601087,395,117.80067911519016,150,66.098411478642959,108,56.612719418872643,207,94.70480452437458,271,101.07917688624102,33,17.888543819998318,75,25.079872407968907,186,90.697298746985851,557,153.37861650177967,19,16.763054614240211,42,20.248456731316587,17,13.038404810405298,214,82.710337927008865,108,60.083275543199207,109,52,137,62.241465278381739,168,91.983694207180008,238,112.61438629233834,455,140.81193131265547,270,98.2344135219425,238,156.98407562552325,813,204.47249203743763,178,93.145048177560142,117,88.549421229051518,35,21.95449840010015,248,99.84988733093293,394,130.78226179417453]
[null,"35.0 to 39.9 percent",141,81.271151093115449,69,42.190046219457976,50,32.449961479175904,67,39.357337308308857,56,39.560080889704963,62,53.150729063673246,151,78.771822373231913,468,140.69825869569246,36,22.825424421026653,133,82.006097334283623,273,108.70602559196064,20,25.495097567963924,70,38.948684188300895,151,61.351446600711867,183,74.330343736592525,43,24.698178070456937,44,20.124611797498108,141,89.358827208060418,513,150.37619492459569,11,19.416487838947599,48,31.622776601683793,2,11.401754250991379,52,30.463092423455635,110,58.668560575490517,136,61.854668376768458,92,74.249579123386283,66,41.484937025383083,62,53.160135440008048,217,72.235725233432802,273,114.33722053644648,134,77.466121627457255,374,136.56134152826706,109,73.389372527635089,58,44.77722635447622,27,15.264337522473747,159,81.412529748190479,273,126.90941651429968]
[null,"40.0 to 49.9 percent",151,79.699435380685102,82,43.863424398922618,68,43.416586692184822,74,43.931765272977593,155,85.708809348864477,94,69.871310278253688,35,26.92582403567252,649,182.00274723201295,65,28.231188426986208,158,68.410525505948286,351,128.42507543311004,202,76.485292703891773,74,43.416586692184822,123,61.684682053164543,246,95.817534929677663,29,20.591260281974002,22,22.825424421026653,190,102.92715870944851,539,142.07744367069671,17,18.681541692269406,17,16.278820596099706,15,11.661903789690601,144,61.98386886924694,65,40.521599178709621,50,36.235341863986875,85,54.12947441089743,131,71.847059786744225,238,115.95257651298655,488,145.49914089093448,107,58.051701094799967,106,67.052218456960844,590,168.68017073740469,231,114.48143954370944,221,140.06427096158393,27,21.95449840010015,145,76.655071586947201,177,95.634721728041853]
[null,"50.0 percent or more",{"$f":"C97+C108","v":220},102.04410811016969,137,66.730802482811484,92,46.043457732885351,96,46.690470119715009,152,69.260378283691168,100,53.225933528685054,159,58.694122363316758,1343,249.65776575143823,149,38.288379438153292,275,129.87686476043376,396,122.38463955905577,157,58.180752831155424,85,44.418464629025621,399,130.96946208945045,488,124.42266674525185,126,43.011626335213137,76,33.241540277189323,170,89.403579346690591,833,163.61540269791229,28,23.086792761230392,48,31.575306807693888,29,21.95449840010015,247,92.660671268883007,176,101.96568050084302,125,58.258046654518033,155,74.966659255965254,145,65.620118866091673,411,136.40014662748717,659,176.32356620712955,456,149.89329538041386,247,85.632937588290176,1027,225.24875138388668,278,119.64113005150027,444,181.8048404196104,17,10.295630140987001,262,109.83624174196785,682,199.48934808655824]
[null,"Not computed",{"$f":"C98+C109","v":0},21.213203435596427,0,21.213203435596427,0,15.556349186104045,6,15.556349186104045,0,15.556349186104045,0,15.556349186104045,0,15.556349186104045,26,31.064449134018133,14,20.248456731316587,23,37.161808352124091,33,33.600595232822883,0,15.556349186104045,20,29.154759474226502,18,31.76476034853718,34,42.544094772365298,0,15.556349186104045,4,12.083045973594572,13,25,31,23.345235059857504,8,17.029386365926403,0,15.556349186104045,2,12.083045973594572,12,23.430749027719962,0,15.556349186104045,0,15.556349186104045,0,15.556349186104045,9,17.804493814764857,0,21.213203435596427,49,80.523288556789581,14,27.018512172212592,22,39,57,38.948684188300895,0,21.213203435596427,21,38.078865529319543,0,15.556349186104045,0,21.213203435596427,0,24.041630560342615]
[]
[]
[]
[]
[null,"Calculated MONTHLY OWNER COSTS AS A PERCENTAGE OF HOUSEHOLD INCOME IN THE PAST 12 MONTHS "]
[null,"Universe:  OWNER-OCCUPIED HOUSING UNITS"]
[null,"Data Set: 2015-2019 American Community Survey 5-Year Estimates"]
[null,null,"Atkinson",null,"Auburn",null,"Brentwood",null,"Candia",null,"Chester",null,"Danville",null,"Deerfield",null,"Derry",null,"East Kingston",null,"Epping",null,"Exeter",null,"Fremont",null,"Greenland",null,"Hampstead",null,"Hampton",null,"Hampton Falls",null,"Kensington",null,"Kingston",null,"Londonderry",null,"New Castle",null,"Newfields",null,"Newington",null,"Newmarket",null,"Newton",null,"North Hampton",null,"Northwood",null,"Nottingham",null,"Plaistow",null,"Portsmouth",null,"Raymond",null,"Rye",null,"Salem",null,"Sandown",null,"Seabrook",null,"South Hampton",null,"Stratham",null,"Windham"]
[null,null,"Estimate","Margin Of Error","Estimate","Margin Of Error","Estimate","Margin Of Error","Estimate","Margin Of Error","Estimate","Margin Of Error","Estimate","Margin Of Error","Estimate","Margin Of Error","Estimate","Margin Of Error","Estimate","Margin Of Error","Estimate","Margin Of Error","Estimate","Margin Of Error","Estimate","Margin Of Error","Estimate","Margin Of Error","Estimate","Margin Of Error","Estimate","Margin Of Error","Estimate","Margin Of Error","Estimate","Margin Of Error","Estimate","Margin Of Error","Estimate","Margin Of Error","Estimate","Margin Of Error","Estimate","Margin Of Error","Estimate","Margin Of Error","Estimate","Margin Of Error","Estimate","Margin Of Error","Estimate","Margin Of Error","Estimate","Margin Of Error","Estimate","Margin Of Error","Estimate","Margin Of Error","Estimate","Margin Of Error","Estimate","Margin Of Error","Estimate","Margin Of Error","Estimate","Margin Of Error","Estimate","Margin Of Error","Estimate","Margin Of Error","Estimate","Margin Of Error","Estimate","Margin Of Error","Estimate","Margin Of Error"]
[null,"Total:",{"$f":"C119","v":2395},123,1660,73,1148,138,1427,91,1487,100,1340,101,1431,108,8244,408,804,59,2236,215,4262,269,{"$f":"Y119","v":1416},112,1206,91,2758,200,4694,303,776,63,692,57,2067,180,7591,258,347,60,523,62,222,38,2036,198,1387,125,1581,105,1460,121,1748,106,2281,256,5452,291,2954,205,1950,183,8451,334,1956,152,2419,259,254,41,2584,163,4611,247]
[null,"Less than 20% of HH Income",{"$f":"C120+C121+C122","v":1008},{"$f":"SQRT((D120^2)+(D121^2)+(D122^2))","v":237.58366947246185},{"$f":"E120+E121+E122","v":827},{"$f":"SQRT((F120^2)+(F121^2)+(F122^2))","v":151.14562514343578},{"$f":"G120+G121+G122","v":580},{"$f":"SQRT((H120^2)+(H121^2)+(H122^2))","v":139.18333233544885},{"$f":"I120+I121+I122","v":659},{"$f":"SQRT((J120^2)+(J121^2)+(J122^2))","v":131.26309458488322},{"$f":"K120+K121+K122","v":555},{"$f":"SQRT((L120^2)+(L121^2)+(L122^2))","v":121.50720143267229},{"$f":"M120+M121+M122","v":518},{"$f":"SQRT((N120^2)+(N121^2)+(N122^2))","v":130.82048769210425},{"$f":"O120+O121+O122","v":525},{"$f":"SQRT((P120^2)+(P121^2)+(P122^2))","v":114.83901775964473},{"$f":"Q120+Q121+Q122","v":2688},{"$f":"SQRT((R120^2)+(R121^2)+(R122^2))","v":321.93011664024226},{"$f":"S120+S121+S122","v":245},{"$f":"SQRT((T120^2)+(T121^2)+(T122^2))","v":54.175640282326142},{"$f":"U120+U121+U122","v":815},{"$f":"SQRT((V120^2)+(V121^2)+(V122^2))","v":226.12828217629036},{"$f":"W120+W121+W122","v":1799},{"$f":"SQRT((X120^2)+(X121^2)+(X122^2))","v":261.25083731923235},{"$f":"Y120+Y121+Y122","v":451},{"$f":"SQRT((Z120^2)+(Z121^2)+(Z122^2))","v":117.2945011498834},{"$f":"AA120+AA121+AA122","v":550},{"$f":"SQRT((AB120^2)+(AB121^2)+(AB122^2))","v":108.0555412739208},{"$f":"AC120+AC121+AC122","v":998},{"$f":"SQRT((AD120^2)+(AD121^2)+(AD122^2))","v":183.58649187780674},{"$f":"AE120+AE121+AE122","v":2102},{"$f":"SQRT((AF120^2)+(AF121^2)+(AF122^2))","v":265.08111965962422},{"$f":"AG120+AG121+AG122","v":331},{"$f":"SQRT((AH120^2)+(AH121^2)+(AH122^2))","v":69.505395474020574},{"$f":"AI120+AI121+AI122","v":281},{"$f":"SQRT((AJ120^2)+(AJ121^2)+(AJ122^2))","v":52.028838157314254},{"$f":"AK120+AK121+AK122","v":867},{"$f":"SQRT((AL120^2)+(AL121^2)+(AL122^2))","v":218.57264238691906},{"$f":"AM120+AM121+AM122","v":2618},{"$f":"SQRT((AN120^2)+(AN121^2)+(AN122^2))","v":301.55762301755863},{"$f":"AO120+AO121+AO122","v":206},{"$f":"SQRT((AP120^2)+(AP121^2)+(AP122^2))","v":60.909769331364245},{"$f":"AQ120+AQ121+AQ122","v":214},{"$f":"SQRT((AR120^2)+(AR121^2)+(AR122^2))","v":51.497572758334933},{"$f":"AS120+AS121+AS122","v":106},{"$f":"SQRT((AT120^2)+(AT121^2)+(AT122^2))","v":30.967725134404045},{"$f":"AU120+AU121+AU122","v":673},{"$f":"SQRT((AV120^2)+(AV121^2)+(AV122^2))","v":141.10279940525632},{"$f":"AW120+AW121+AW122","v":491},{"$f":"SQRT((AX120^2)+(AX121^2)+(AX122^2))","v":109.15585188161009},{"$f":"AY120+AY121+AY122","v":816},{"$f":"SQRT((AZ120^2)+(AZ121^2)+(AZ122^2))","v":160.1967540245432},{"$f":"BA120+BA121+BA122","v":569},{"$f":"SQRT((BB120^2)+(BB121^2)+(BB122^2))","v":147.27864746798838},{"$f":"BC120+BC121+BC122","v":771},{"$f":"SQRT((BD120^2)+(BD121^2)+(BD122^2))","v":167.92557875439942},{"$f":"BE120+BE121+BE122","v":749},{"$f":"SQRT((BF120^2)+(BF121^2)+(BF122^2))","v":178.49929971851429},{"$f":"BG120+BG121+BG122","v":2194},{"$f":"SQRT((BH120^2)+(BH121^2)+(BH122^2))","v":268.45111286787397},{"$f":"BI120+BI121+BI122","v":933},{"$f":"SQRT((BJ120^2)+(BJ121^2)+(BJ122^2))","v":191.57766049307523},{"$f":"BK120+BK121+BK122","v":758},{"$f":"SQRT((BL120^2)+(BL121^2)+(BL122^2))","v":204.42357985320575},{"$f":"BM120+BM121+BM122","v":3297},{"$f":"SQRT((BN120^2)+(BN121^2)+(BN122^2))","v":349.39232962387712},{"$f":"BO120+BO121+BO122","v":599},{"$f":"SQRT((BP120^2)+(BP121^2)+(BP122^2))","v":157.93353032209467},{"$f":"BQ120+BQ121+BQ122","v":1024},{"$f":"SQRT((BR120^2)+(BR121^2)+(BR122^2))","v":254.03543059974922},{"$f":"BS120+BS121+BS122","v":86},{"$f":"SQRT((BT120^2)+(BT121^2)+(BT122^2))","v":24.372115213907882},{"$f":"BU120+BU121+BU122","v":1241},{"$f":"SQRT((BV120^2)+(BV121^2)+(BV122^2))","v":253.77155080899041},{"$f":"BW120+BW121+BW122","v":1693},{"$f":"SQRT((BX120^2)+(BX121^2)+(BX122^2))","v":318.62831010442244}]
[null," 20% to 29.9% of HH Income",{"$f":"C123+C124","v":583},{"$f":"SQRT((D123^2)+(D124^2))","v":157.00318468107582},{"$f":"E123+E124","v":426},{"$f":"SQRT((F123^2)+(F124^2))","v":112.52555265360841},{"$f":"G123+G124","v":321},{"$f":"SQRT((H123^2)+(H124^2))","v":93.621578709184348},{"$f":"I123+I124","v":396},{"$f":"SQRT((J123^2)+(J124^2))","v":107.32194556566705},{"$f":"K123+K124","v":487},{"$f":"SQRT((L123^2)+(L124^2))","v":124.15313125330347},{"$f":"M123+M124","v":463},{"$f":"SQRT((N123^2)+(N124^2))","v":109.85900054160332},{"$f":"O123+O124","v":454},{"$f":"SQRT((P123^2)+(P124^2))","v":115.46861045323097},{"$f":"Q123+Q124","v":2340},{"$f":"SQRT((R123^2)+(R124^2))","v":315.69922394583108},{"$f":"S123+S124","v":219},{"$f":"SQRT((T123^2)+(T124^2))","v":52.678268764263692},{"$f":"U123+U124","v":577},{"$f":"SQRT((V123^2)+(V124^2))","v":161.47135968957468},{"$f":"W123+W124","v":1015},{"$f":"SQRT((X123^2)+(X124^2))","v":181.30912828647101},{"$f":"Y123+Y124","v":436},{"$f":"SQRT((Z123^2)+(Z124^2))","v":113.00442469213318},{"$f":"AA123+AA124","v":299},{"$f":"SQRT((AB123^2)+(AB124^2))","v":95.44108130150245},{"$f":"AC123+AC124","v":862},{"$f":"SQRT((AD123^2)+(AD124^2))","v":160.38079685548391},{"$f":"AE123+AE124","v":1370},{"$f":"SQRT((AF123^2)+(AF124^2))","v":218.76928486421488},{"$f":"AG123+AG124","v":214},{"$f":"SQRT((AH123^2)+(AH124^2))","v":54.717456081217811},{"$f":"AI123+AI124","v":190},{"$f":"SQRT((AJ123^2)+(AJ124^2))","v":52.172789842982326},{"$f":"AK123+AK124","v":500},{"$f":"SQRT((AL123^2)+(AL124^2))","v":157.92086625902226},{"$f":"AM123+AM124","v":2500},{"$f":"SQRT((AN123^2)+(AN124^2))","v":264.71494102146937},{"$f":"AO123+AO124","v":58},{"$f":"SQRT((AP123^2)+(AP124^2))","v":34.336569426778794},{"$f":"AQ123+AQ124","v":154},{"$f":"SQRT((AR123^2)+(AR124^2))","v":44.654227123532216},{"$f":"AS123+AS124","v":51},{"$f":"SQRT((AT123^2)+(AT124^2))","v":23.430749027719965},{"$f":"AU123+AU124","v":694},{"$f":"SQRT((AV123^2)+(AV124^2))","v":173.4646938140439},{"$f":"AW123+AW124","v":437},{"$f":"SQRT((AX123^2)+(AX124^2))","v":114.39405578962571},{"$f":"AY123+AY124","v":345},{"$f":"SQRT((AZ123^2)+(AZ124^2))","v":97.53973549277238},{"$f":"BA123+BA124","v":422},{"$f":"SQRT((BB123^2)+(BB124^2))","v":111.69601604354561},{"$f":"BC123+BC124","v":458},{"$f":"SQRT((BD123^2)+(BD124^2))","v":110.53958566956906},{"$f":"BE123+BE124","v":583},{"$f":"SQRT((BF123^2)+(BF124^2))","v":158.42032697857937},{"$f":"BG123+BG124","v":1390},{"$f":"SQRT((BH123^2)+(BH124^2))","v":219.6132965009177},{"$f":"BI123+BI124","v":901},{"$f":"SQRT((BJ123^2)+(BJ124^2))","v":192.57206443303247},{"$f":"BK123+BK124","v":445},{"$f":"SQRT((BL123^2)+(BL124^2))","v":151.76626766182267},{"$f":"BM123+BM124","v":2293},{"$f":"SQRT((BN123^2)+(BN124^2))","v":328.22248551858843},{"$f":"BO123+BO124","v":561},{"$f":"SQRT((BP123^2)+(BP124^2))","v":179.97222007854435},{"$f":"BQ123+BQ124","v":534},{"$f":"SQRT((BR123^2)+(BR124^2))","v":142.03520690307738},{"$f":"BS123+BS124","v":62},{"$f":"SQRT((BT123^2)+(BT124^2))","v":24.819347291981714},{"$f":"BU123+BU124","v":529},{"$f":"SQRT((BV123^2)+(BV124^2))","v":143.59317532529184},{"$f":"BW123+BW124","v":1392},{"$f":"SQRT((BX123^2)+(BX124^2))","v":241.94627502815578}]
[null," Less Than 30% of HH Income",{"$f":"C120+C121+C122+C123+C124","v":1591},{"$f":"SQRT((D120^2)+(D121^2)+(D122^2)+(D123^2)+(D124^2))","v":284.77359428149231},{"$f":"E120+E121+E122+E123+E124","v":1253},{"$f":"SQRT((F120^2)+(F121^2)+(F122^2)+(F123^2)+(F124^2))","v":188.43301196977137},{"$f":"G120+G121+G122+G123+G124","v":901},{"$f":"SQRT((H120^2)+(H121^2)+(H122^2)+(H123^2)+(H124^2))","v":167.74087158471545},{"$f":"I120+I121+I122+I123+I124","v":1055},{"$f":"SQRT((J120^2)+(J121^2)+(J122^2)+(J123^2)+(J124^2))","v":169.55235179731363},{"$f":"K120+K121+K122+K123+K124","v":1042},{"$f":"SQRT((L120^2)+(L121^2)+(L122^2)+(L123^2)+(L124^2))","v":173.71816255072468},{"$f":"M120+M121+M122+M123+M124","v":981},{"$f":"SQRT((N120^2)+(N121^2)+(N122^2)+(N123^2)+(N124^2))","v":170.83032517676713},{"$f":"O120+O121+O122+O123+O124","v":979},{"$f":"SQRT((P120^2)+(P121^2)+(P122^2)+(P123^2)+(P124^2))","v":162.85269417482783},{"$f":"Q120+Q121+Q122+Q123+Q124","v":5028},{"$f":"SQRT((R120^2)+(R121^2)+(R122^2)+(R123^2)+(R124^2))","v":450.89355728375625},{"$f":"S120+S121+S122+S123+S124","v":464},{"$f":"SQRT((T120^2)+(T121^2)+(T122^2)+(T123^2)+(T124^2))","v":75.564541949250241},{"$f":"U120+U121+U122+U123+U124","v":1392},{"$f":"SQRT((V120^2)+(V121^2)+(V122^2)+(V123^2)+(V124^2))","v":277.86147627909844},{"$f":"W120+W121+W122+W123+W124","v":2814},{"$f":"SQRT((X120^2)+(X121^2)+(X122^2)+(X123^2)+(X124^2))","v":318.00157232315689},{"$f":"Y120+Y121+Y122+Y123+Y124","v":887},{"$f":"SQRT((Z120^2)+(Z121^2)+(Z122^2)+(Z123^2)+(Z124^2))","v":162.87418457201866},{"$f":"AA120+AA121+AA122+AA123+AA124","v":849},{"$f":"SQRT((AB120^2)+(AB121^2)+(AB122^2)+(AB123^2)+(AB124^2))","v":144.1700384962146},{"$f":"AC120+AC121+AC122+AC123+AC124","v":1860},{"$f":"SQRT((AD120^2)+(AD121^2)+(AD122^2)+(AD123^2)+(AD124^2))","v":243.77448594961697},{"$f":"AE120+AE121+AE122+AE123+AE124","v":3472},{"$f":"SQRT((AF120^2)+(AF121^2)+(AF122^2)+(AF123^2)+(AF124^2))","v":343.69754145178285},{"$f":"AG120+AG121+AG122+AG123+AG124","v":545},{"$f":"SQRT((AH120^2)+(AH121^2)+(AH122^2)+(AH123^2)+(AH124^2))","v":88.459030064770658},{"$f":"AI120+AI121+AI122+AI123+AI124","v":471},{"$f":"SQRT((AJ120^2)+(AJ121^2)+(AJ122^2)+(AJ123^2)+(AJ124^2))","v":73.681748079154588},{"$f":"AK120+AK121+AK122+AK123+AK124","v":1367},{"$f":"SQRT((AL120^2)+(AL121^2)+(AL122^2)+(AL123^2)+(AL124^2))","v":269.65348134225894},{"$f":"AM120+AM121+AM122+AM123+AM124","v":5118},{"$f":"SQRT((AN120^2)+(AN121^2)+(AN122^2)+(AN123^2)+(AN124^2))","v":401.26175995227851},{"$f":"AO120+AO121+AO122+AO123+AO124","v":264},{"$f":"SQRT((AP120^2)+(AP121^2)+(AP122^2)+(AP123^2)+(AP124^2))","v":69.921384425653358},{"$f":"AQ120+AQ121+AQ122+AQ123+AQ124","v":368},{"$f":"SQRT((AR120^2)+(AR121^2)+(AR122^2)+(AR123^2)+(AR124^2))","v":68.161572751807896},{"$f":"AS120+AS121+AS122+AS123+AS124","v":157},{"$f":"SQRT((AT120^2)+(AT121^2)+(AT122^2)+(AT123^2)+(AT124^2))","v":38.832975677895199},{"$f":"AU120+AU121+AU122+AU123+AU124","v":1367},{"$f":"SQRT((AV120^2)+(AV121^2)+(AV122^2)+(AV123^2)+(AV124^2))","v":223.60679774997897},{"$f":"AW120+AW121+AW122+AW123+AW124","v":928},{"$f":"SQRT((AX120^2)+(AX121^2)+(AX122^2)+(AX123^2)+(AX124^2))","v":158.117045254457},{"$f":"AY120+AY121+AY122+AY123+AY124","v":1161},{"$f":"SQRT((AZ120^2)+(AZ121^2)+(AZ122^2)+(AZ123^2)+(AZ124^2))","v":187.55532517100121},{"$f":"BA120+BA121+BA122+BA123+BA124","v":991},{"$f":"SQRT((BB120^2)+(BB121^2)+(BB122^2)+(BB123^2)+(BB124^2))","v":184.84317677425909},{"$f":"BC120+BC121+BC122+BC123+BC124","v":1229},{"$f":"SQRT((BD120^2)+(BD121^2)+(BD122^2)+(BD123^2)+(BD124^2))","v":201.04228410958726},{"$f":"BE120+BE121+BE122+BE123+BE124","v":1332},{"$f":"SQRT((BF120^2)+(BF121^2)+(BF122^2)+(BF123^2)+(BF124^2))","v":238.66084722886575},{"$f":"BG120+BG121+BG122+BG123+BG124","v":3584},{"$f":"SQRT((BH120^2)+(BH121^2)+(BH122^2)+(BH123^2)+(BH124^2))","v":346.83713757324199},{"$f":"BI120+BI121+BI122+BI123+BI124","v":1834},{"$f":"SQRT((BJ120^2)+(BJ121^2)+(BJ122^2)+(BJ123^2)+(BJ124^2))","v":271.63578556589334},{"$f":"BK120+BK121+BK122+BK123+BK124","v":1203},{"$f":"SQRT((BL120^2)+(BL121^2)+(BL122^2)+(BL123^2)+(BL124^2))","v":254.60164964116001},{"$f":"BM120+BM121+BM122+BM123+BM124","v":5590},{"$f":"SQRT((BN120^2)+(BN121^2)+(BN122^2)+(BN123^2)+(BN124^2))","v":479.37980766819953},{"$f":"BO120+BO121+BO122+BO123+BO124","v":1160},{"$f":"SQRT((BP120^2)+(BP121^2)+(BP122^2)+(BP123^2)+(BP124^2))","v":239.44310388900325},{"$f":"BQ120+BQ121+BQ122+BQ123+BQ124","v":1558},{"$f":"SQRT((BR120^2)+(BR121^2)+(BR122^2)+(BR123^2)+(BR124^2))","v":291.04638805523768},{"$f":"BS120+BS121+BS122+BS123+BS124","v":148},{"$f":"SQRT((BT120^2)+(BT121^2)+(BT122^2)+(BT123^2)+(BT124^2))","v":34.785054261852174},{"$f":"BU120+BU121+BU122+BU123+BU124","v":1770},{"$f":"SQRT((BV120^2)+(BV121^2)+(BV122^2)+(BV123^2)+(BV124^2))","v":291.58017765273416},{"$f":"BW120+BW121+BW122+BW123+BW124","v":3085},{"$f":"SQRT((BX120^2)+(BX121^2)+(BX122^2)+(BX123^2)+(BX124^2))","v":400.07749249364178}]
[null," 30% or More of HH Income",{"$f":"C125+C126+C127+C128","v":804},{"$f":"SQRT((D125^2)+(D126^2)+(D127^2)+(D128^2))","v":189.13222887704782},{"$f":"E125+E126+E127+E128","v":407},{"$f":"SQRT((F125^2)+(F126^2)+(F127^2)+(F128^2))","v":113.68817000902072},{"$f":"G125+G126+G127+G128","v":247},{"$f":"SQRT((H125^2)+(H126^2)+(H127^2)+(H128^2))","v":75.551307070096414},{"$f":"I125+I126+I127+I128","v":366},{"$f":"SQRT((J125^2)+(J126^2)+(J127^2)+(J128^2))","v":102.50853622991599},{"$f":"K125+K126+K127+K128","v":445},{"$f":"SQRT((L125^2)+(L126^2)+(L127^2)+(L128^2))","v":126.64122551523259},{"$f":"M125+M126+M127+M128","v":359},{"$f":"SQRT((N125^2)+(N126^2)+(N127^2)+(N128^2))","v":115.17378173872733},{"$f":"O125+O126+O127+O128","v":452},{"$f":"SQRT((P125^2)+(P126^2)+(P127^2)+(P128^2))","v":109.72693379476162},{"$f":"Q125+Q126+Q127+Q128","v":3190},{"$f":"SQRT((R125^2)+(R126^2)+(R127^2)+(R128^2))","v":382.91774573660069},{"$f":"S125+S126+S127+S128","v":326},{"$f":"SQRT((T125^2)+(T126^2)+(T127^2)+(T128^2))","v":60.959002616512684},{"$f":"U125+U126+U127+U128","v":821},{"$f":"SQRT((V125^2)+(V126^2)+(V127^2)+(V128^2))","v":207.88939366884497},{"$f":"W125+W126+W127+W128","v":1415},{"$f":"SQRT((X125^2)+(X126^2)+(X127^2)+(X128^2))","v":239.0920324895834},{"$f":"Y125+Y126+Y127+Y128","v":529},{"$f":"SQRT((Z125^2)+(Z126^2)+(Z127^2)+(Z128^2))","v":119.39011684389961},{"$f":"AA125+AA126+AA127+AA128","v":337},{"$f":"SQRT((AB125^2)+(AB126^2)+(AB127^2)+(AB128^2))","v":92.62828941527529},{"$f":"AC125+AC126+AC127+AC128","v":880},{"$f":"SQRT((AD125^2)+(AD126^2)+(AD127^2)+(AD128^2))","v":183.55108280802921},{"$f":"AE125+AE126+AE127+AE128","v":1188},{"$f":"SQRT((AF125^2)+(AF126^2)+(AF127^2)+(AF128^2))","v":201.00746254803576},{"$f":"AG125+AG126+AG127+AG128","v":231},{"$f":"SQRT((AH125^2)+(AH126^2)+(AH127^2)+(AH128^2))","v":56.603886792339623},{"$f":"AI125+AI126+AI127+AI128","v":217},{"$f":"SQRT((AJ125^2)+(AJ126^2)+(AJ127^2)+(AJ128^2))","v":51.575187832910508},{"$f":"AK125+AK126+AK127+AK128","v":687},{"$f":"SQRT((AL125^2)+(AL126^2)+(AL127^2)+(AL128^2))","v":186.54222042208033},{"$f":"AM125+AM126+AM127+AM128","v":2442},{"$f":"SQRT((AN125^2)+(AN126^2)+(AN127^2)+(AN128^2))","v":305.11309378654988},{"$f":"AO125+AO126+AO127+AO128","v":75},{"$f":"SQRT((AP125^2)+(AP126^2)+(AP127^2)+(AP128^2))","v":39.242833740697165},{"$f":"AQ125+AQ126+AQ127+AQ128","v":155},{"$f":"SQRT((AR125^2)+(AR126^2)+(AR127^2)+(AR128^2))","v":51.691391933280343},{"$f":"AS125+AS126+AS127+AS128","v":63},{"$f":"SQRT((AT125^2)+(AT126^2)+(AT127^2)+(AT128^2))","v":30.298514815086232},{"$f":"AU125+AU126+AU127+AU128","v":657},{"$f":"SQRT((AV125^2)+(AV126^2)+(AV127^2)+(AV128^2))","v":142.11614968046382},{"$f":"AW125+AW126+AW127+AW128","v":459},{"$f":"SQRT((AX125^2)+(AX126^2)+(AX127^2)+(AX128^2))","v":138.17018491700733},{"$f":"AY125+AY126+AY127+AY128","v":420},{"$f":"SQRT((AZ125^2)+(AZ126^2)+(AZ127^2)+(AZ128^2))","v":106.00471687618433},{"$f":"BA125+BA126+BA127+BA128","v":469},{"$f":"SQRT((BB125^2)+(BB126^2)+(BB127^2)+(BB128^2))","v":133.92908571329829},{"$f":"BC125+BC126+BC127+BC128","v":510},{"$f":"SQRT((BD125^2)+(BD126^2)+(BD127^2)+(BD128^2))","v":140.17845768876185},{"$f":"BE125+BE126+BE127+BE128","v":949},{"$f":"SQRT((BF125^2)+(BF126^2)+(BF127^2)+(BF128^2))","v":218.07796770879904},{"$f":"BG125+BG126+BG127+BG128","v":1819},{"$f":"SQRT((BH125^2)+(BH126^2)+(BH127^2)+(BH128^2))","v":278.03956552980009},{"$f":"BI125+BI126+BI127+BI128","v":1106},{"$f":"SQRT((BJ125^2)+(BJ126^2)+(BJ127^2)+(BJ128^2))","v":220.36560530173486},{"$f":"BK125+BK126+BK127+BK128","v":725},{"$f":"SQRT((BL125^2)+(BL126^2)+(BL127^2)+(BL128^2))","v":206.09221237106465},{"$f":"BM125+BM126+BM127+BM128","v":2804},{"$f":"SQRT((BN125^2)+(BN126^2)+(BN127^2)+(BN128^2))","v":373.69506285205318},{"$f":"BO125+BO126+BO127+BO128","v":796},{"$f":"SQRT((BP125^2)+(BP126^2)+(BP127^2)+(BP128^2))","v":203.67130382064136},{"$f":"BQ125+BQ126+BQ127+BQ128","v":840},{"$f":"SQRT((BR125^2)+(BR126^2)+(BR127^2)+(BR128^2))","v":250.03399768831437},{"$f":"BS125+BS126+BS127+BS128","v":106},{"$f":"SQRT((BT125^2)+(BT126^2)+(BT127^2)+(BT128^2))","v":36.097091295560091},{"$f":"BU125+BU126+BU127+BU128","v":814},{"$f":"SQRT((BV125^2)+(BV126^2)+(BV127^2)+(BV128^2))","v":185.84402061944311},{"$f":"BW125+BW126+BW127+BW128","v":1526},{"$f":"SQRT((BX125^2)+(BX126^2)+(BX127^2)+(BX128^2))","v":286.62170189990849}]
[null," 30% to 34.9% of HH Income",{"$f":"C125","v":292},{"$f":"D125","v":111.35977729862789},{"$f":"E125","v":119},69.050706006528273,37,25.495097567963924,129,69.634761434214738,82,48.270073544588683,103,52.201532544552748,107,40.80441152620633,730,177.13271860387624,76,30.528675044947494,255,122.24974437601087,395,117.80067911519016,{"$f":"Y125","v":150},66.098411478642959,108,56.612719418872643,207,94.70480452437458,271,101.07917688624102,33,17.888543819998318,75,25.079872407968907,186,90.697298746985851,557,153.37861650177967,19,16.763054614240211,42,20.248456731316587,17,13.038404810405298,214,82.710337927008865,108,60.083275543199207,109,52,137,62.241465278381739,168,91.983694207180008,238,112.61438629233834,455,140.81193131265547,270,98.2344135219425,238,156.98407562552325,813,204.47249203743763,178,93.145048177560142,117,88.549421229051518,35,21.95449840010015,248,99.84988733093293,394,130.78226179417453]
[null," Less Than 35% of HH Income",{"$f":"C120+C121+C122+C123+C124+C125","v":1883},{"$f":"SQRT((D120^2)+(D121^2)+(D122^2)+(D123^2)+(D124^2)+(D125^2))","v":305.77279146451207},{"$f":"E120+E121+E122+E123+E124+E125","v":1372},{"$f":"SQRT((F120^2)+(F121^2)+(F122^2)+(F123^2)+(F124^2)+(F125^2))","v":200.68632240389479},{"$f":"G120+G121+G122+G123+G124+G125","v":938},{"$f":"SQRT((H120^2)+(H121^2)+(H122^2)+(H123^2)+(H124^2)+(H125^2))","v":169.66732154425023},{"$f":"I120+I121+I122+I123+I124+I125","v":1184},{"$f":"SQRT((J120^2)+(J121^2)+(J122^2)+(J123^2)+(J124^2)+(J125^2))","v":183.29484444468153},{"$f":"K120+K121+K122+K123+K124+K125","v":1124},{"$f":"SQRT((L120^2)+(L121^2)+(L122^2)+(L123^2)+(L124^2)+(L125^2))","v":180.29975041580064},{"$f":"M120+M121+M122+M123+M124+M125","v":1084},{"$f":"SQRT((N120^2)+(N121^2)+(N122^2)+(N123^2)+(N124^2)+(N125^2))","v":178.62810529141265},{"$f":"O120+O121+O122+O123+O124+O125","v":1086},{"$f":"SQRT((P120^2)+(P121^2)+(P122^2)+(P123^2)+(P124^2)+(P125^2))","v":167.88686666919483},{"$f":"Q120+Q121+Q122+Q123+Q124+Q125","v":5758},{"$f":"SQRT((R120^2)+(R121^2)+(R122^2)+(R123^2)+(R124^2)+(R125^2))","v":484.4388506302937},{"$f":"S120+S121+S122+S123+S124+S125","v":540},{"$f":"SQRT((T120^2)+(T121^2)+(T122^2)+(T123^2)+(T124^2)+(T125^2))","v":81.498466243236749},{"$f":"U120+U121+U122+U123+U124+U125","v":1647},{"$f":"SQRT((V120^2)+(V121^2)+(V122^2)+(V123^2)+(V124^2)+(V125^2))","v":303.56547893329372},{"$f":"W120+W121+W122+W123+W124+W125","v":3209},{"$f":"SQRT((X120^2)+(X121^2)+(X122^2)+(X123^2)+(X124^2)+(X125^2))","v":339.11944798256559},{"$f":"Y120+Y121+Y122+Y123+Y124+Y125","v":1037},{"$f":"SQRT((Z120^2)+(Z121^2)+(Z122^2)+(Z123^2)+(Z124^2)+(Z125^2))","v":175.77542490348301},{"$f":"AA120+AA121+AA122+AA123+AA124+AA125","v":957},{"$f":"SQRT((AB120^2)+(AB121^2)+(AB122^2)+(AB123^2)+(AB124^2)+(AB125^2))","v":154.88705562441297},{"$f":"AC120+AC121+AC122+AC123+AC124+AC125","v":2067},{"$f":"SQRT((AD120^2)+(AD121^2)+(AD122^2)+(AD123^2)+(AD124^2)+(AD125^2))","v":261.5243774488336},{"$f":"AE120+AE121+AE122+AE123+AE124+AE125","v":3743},{"$f":"SQRT((AF120^2)+(AF121^2)+(AF122^2)+(AF123^2)+(AF124^2)+(AF125^2))","v":358.25270410703115},{"$f":"AG120+AG121+AG122+AG123+AG124+AG125","v":578},{"$f":"SQRT((AH120^2)+(AH121^2)+(AH122^2)+(AH123^2)+(AH124^2)+(AH125^2))","v":90.249653738947941},{"$f":"AI120+AI121+AI122+AI123+AI124+AI125","v":546},{"$f":"SQRT((AJ120^2)+(AJ121^2)+(AJ122^2)+(AJ123^2)+(AJ124^2)+(AJ125^2))","v":77.833154889160184},{"$f":"AK120+AK121+AK122+AK123+AK124+AK125","v":1553},{"$f":"SQRT((AL120^2)+(AL121^2)+(AL122^2)+(AL123^2)+(AL124^2)+(AL125^2))","v":284.49780315496287},{"$f":"AM120+AM121+AM122+AM123+AM124+AM125","v":5675},{"$f":"SQRT((AN120^2)+(AN121^2)+(AN122^2)+(AN123^2)+(AN124^2)+(AN125^2))","v":429.57653567204994},{"$f":"AO120+AO121+AO122+AO123+AO124+AO125","v":283},{"$f":"SQRT((AP120^2)+(AP121^2)+(AP122^2)+(AP123^2)+(AP124^2)+(AP125^2))","v":71.902712048990196},{"$f":"AQ120+AQ121+AQ122+AQ123+AQ124+AQ125","v":410},{"$f":"SQRT((AR120^2)+(AR121^2)+(AR122^2)+(AR123^2)+(AR124^2)+(AR125^2))","v":71.105555338524709},{"$f":"AS120+AS121+AS122+AS123+AS124+AS125","v":174},{"$f":"SQRT((AT120^2)+(AT121^2)+(AT122^2)+(AT123^2)+(AT124^2)+(AT125^2))","v":40.963398296528084},{"$f":"AU120+AU121+AU122+AU123+AU124+AU125","v":1581},{"$f":"SQRT((AV120^2)+(AV121^2)+(AV122^2)+(AV123^2)+(AV124^2)+(AV125^2))","v":238.4135063288152},{"$f":"AW120+AW121+AW122+AW123+AW124+AW125","v":1036},{"$f":"SQRT((AX120^2)+(AX121^2)+(AX122^2)+(AX123^2)+(AX124^2)+(AX125^2))","v":169.14786430812541},{"$f":"AY120+AY121+AY122+AY123+AY124+AY125","v":1270},{"$f":"SQRT((AZ120^2)+(AZ121^2)+(AZ122^2)+(AZ123^2)+(AZ124^2)+(AZ125^2))","v":194.63041899970312},{"$f":"BA120+BA121+BA122+BA123+BA124+BA125","v":1128},{"$f":"SQRT((BB120^2)+(BB121^2)+(BB122^2)+(BB123^2)+(BB124^2)+(BB125^2))","v":195.04102132628407},{"$f":"BC120+BC121+BC122+BC123+BC124+BC125","v":1397},{"$f":"SQRT((BD120^2)+(BD121^2)+(BD122^2)+(BD123^2)+(BD124^2)+(BD125^2))","v":221.08595613471246},{"$f":"BE120+BE121+BE122+BE123+BE124+BE125","v":1570},{"$f":"SQRT((BF120^2)+(BF121^2)+(BF122^2)+(BF123^2)+(BF124^2)+(BF125^2))","v":263.895812774663},{"$f":"BG120+BG121+BG122+BG123+BG124+BG125","v":4039},{"$f":"SQRT((BH120^2)+(BH121^2)+(BH122^2)+(BH123^2)+(BH124^2)+(BH125^2))","v":374.33140397246927},{"$f":"BI120+BI121+BI122+BI123+BI124+BI125","v":2104},{"$f":"SQRT((BJ120^2)+(BJ121^2)+(BJ122^2)+(BJ123^2)+(BJ124^2)+(BJ125^2))","v":288.85290374167954},{"$f":"BK120+BK121+BK122+BK123+BK124+BK125","v":1441},{"$f":"SQRT((BL120^2)+(BL121^2)+(BL122^2)+(BL123^2)+(BL124^2)+(BL125^2))","v":299.10867590225462},{"$f":"BM120+BM121+BM122+BM123+BM124+BM125","v":6403},{"$f":"SQRT((BN120^2)+(BN121^2)+(BN122^2)+(BN123^2)+(BN124^2)+(BN125^2))","v":521.16600042596792},{"$f":"BO120+BO121+BO122+BO123+BO124+BO125","v":1338},{"$f":"SQRT((BP120^2)+(BP121^2)+(BP122^2)+(BP123^2)+(BP124^2)+(BP125^2))","v":256.92216720244284},{"$f":"BQ120+BQ121+BQ122+BQ123+BQ124+BQ125","v":1675},{"$f":"SQRT((BR120^2)+(BR121^2)+(BR122^2)+(BR123^2)+(BR124^2)+(BR125^2))","v":304.21867135335401},{"$f":"BS120+BS121+BS122+BS123+BS124+BS125","v":183},{"$f":"SQRT((BT120^2)+(BT121^2)+(BT122^2)+(BT123^2)+(BT124^2)+(BT125^2))","v":41.133927602406267},{"$f":"BU120+BU121+BU122+BU123+BU124+BU125","v":2018},{"$f":"SQRT((BV120^2)+(BV121^2)+(BV122^2)+(BV123^2)+(BV124^2)+(BV125^2))","v":308.20285527554739},{"$f":"BW120+BW121+BW122+BW123+BW124+BW125","v":3479},{"$f":"SQRT((BX120^2)+(BX121^2)+(BX122^2)+(BX123^2)+(BX124^2)+(BX125^2))","v":420.91091694086526}]
[null," 35% or More of HH Income",{"$f":"C126+C127+C128","v":512},{"$f":"SQRT((D126^2)+(D127^2)+(D128^2))","v":152.87249589118377},{"$f":"E126+E127+E128","v":288},{"$f":"SQRT((F126^2)+(F127^2)+(F128^2))","v":90.316111519484707},{"$f":"G126+G127+G128","v":210},{"$f":"SQRT((H126^2)+(H127^2)+(H128^2))","v":71.119617546778187},{"$f":"I126+I127+I128","v":237},{"$f":"SQRT((J126^2)+(J127^2)+(J128^2))","v":75.226325179421067},{"$f":"K126+K127+K128","v":363},{"$f":"SQRT((L126^2)+(L127^2)+(L128^2))","v":117.08116842601117},{"$f":"M126+M127+M128","v":256},{"$f":"SQRT((N126^2)+(N127^2)+(N128^2))","v":102.66450214168479},{"$f":"O126+O127+O128","v":345},{"$f":"SQRT((P126^2)+(P127^2)+(P128^2))","v":101.85774393731681},{"$f":"Q126+Q127+Q128","v":2460},{"$f":"SQRT((R126^2)+(R127^2)+(R128^2))","v":339.48490393535911},{"$f":"S126+S127+S128","v":250},{"$f":"SQRT((T126^2)+(T127^2)+(T128^2))","v":52.763623833091678},{"$f":"U126+U127+U128","v":566},{"$f":"SQRT((V126^2)+(V127^2)+(V128^2))","v":168.14577009250038},{"$f":"W126+W127+W128","v":1020},{"$f":"SQRT((X126^2)+(X127^2)+(X128^2))","v":208.05768430894352},{"$f":"Y126+Y127+Y128","v":379},{"$f":"SQRT((Z126^2)+(Z127^2)+(Z128^2))","v":99.42333730065593},{"$f":"AA126+AA127+AA128","v":229},{"$f":"SQRT((AB126^2)+(AB127^2)+(AB128^2))","v":73.314391493075902},{"$f":"AC126+AC127+AC128","v":673},{"$f":"SQRT((AD126^2)+(AD127^2)+(AD128^2))","v":157.23231220076869},{"$f":"AE126+AE127+AE128","v":917},{"$f":"SQRT((AF126^2)+(AF127^2)+(AF128^2))","v":173.74406464682471},{"$f":"AG126+AG127+AG128","v":198},{"$f":"SQRT((AH126^2)+(AH127^2)+(AH128^2))","v":53.702886328390207},{"$f":"AI126+AI127+AI128","v":142},{"$f":"SQRT((AJ126^2)+(AJ127^2)+(AJ128^2))","v":45.066617356974994},{"$f":"AK126+AK127+AK128","v":501},{"$f":"SQRT((AL126^2)+(AL127^2)+(AL128^2))","v":163.00920219423196},{"$f":"AM126+AM127+AM128","v":1885},{"$f":"SQRT((AN126^2)+(AN127^2)+(AN128^2))","v":263.75936002348806},{"$f":"AO126+AO127+AO128","v":56},{"$f":"SQRT((AP126^2)+(AP127^2)+(AP128^2))","v":35.482389998420345},{"$f":"AQ126+AQ127+AQ128","v":113},{"$f":"SQRT((AR126^2)+(AR127^2)+(AR128^2))","v":47.560487802376457},{"$f":"AS126+AS127+AS128","v":46},{"$f":"SQRT((AT126^2)+(AT127^2)+(AT128^2))","v":27.349588662354687},{"$f":"AU126+AU127+AU128","v":443},{"$f":"SQRT((AV126^2)+(AV127^2)+(AV128^2))","v":115.56816170554933},{"$f":"AW126+AW127+AW128","v":351},{"$f":"SQRT((AX126^2)+(AX127^2)+(AX128^2))","v":124.42266674525185},{"$f":"AY126+AY127+AY128","v":311},{"$f":"SQRT((AZ126^2)+(AZ127^2)+(AZ128^2))","v":92.374238833129226},{"$f":"BA126+BA127+BA128","v":332},{"$f":"SQRT((BB126^2)+(BB127^2)+(BB128^2))","v":118.58752042268192},{"$f":"BC126+BC127+BC128","v":342},{"$f":"SQRT((BD126^2)+(BD127^2)+(BD128^2))","v":105.77806956075536},{"$f":"BE126+BE127+BE128","v":711},{"$f":"SQRT((BF126^2)+(BF127^2)+(BF128^2))","v":186.75117134840144},{"$f":"BG126+BG127+BG128","v":1364},{"$f":"SQRT((BH126^2)+(BH127^2)+(BH128^2))","v":239.74569860583526},{"$f":"BI126+BI127+BI128","v":836},{"$f":"SQRT((BJ126^2)+(BJ127^2)+(BJ128^2))","v":197.25871336901699},{"$f":"BK126+BK127+BK128","v":487},{"$f":"SQRT((BL126^2)+(BL127^2)+(BL128^2))","v":133.52902306240395},{"$f":"BM126+BM127+BM128","v":1991},{"$f":"SQRT((BN126^2)+(BN127^2)+(BN128^2))","v":312.79226333143214},{"$f":"BO126+BO127+BO128","v":618},{"$f":"SQRT((BP126^2)+(BP127^2)+(BP128^2))","v":181.12426673419552},{"$f":"BQ126+BQ127+BQ128","v":723},{"$f":"SQRT((BR126^2)+(BR127^2)+(BR128^2))","v":233.82899734635137},{"$f":"BS126+BS127+BS128","v":71},{"$f":"SQRT((BT126^2)+(BT127^2)+(BT128^2))","v":28.653097563788805},{"$f":"BU126+BU127+BU128","v":566},{"$f":"SQRT((BV126^2)+(BV127^2)+(BV128^2))","v":156.74182594317318},{"$f":"BW126+BW127+BW128","v":1132},{"$f":"SQRT((BX126^2)+(BX127^2)+(BX128^2))","v":255.0450940520127}]
[null," 50% or More of HH Income",{"$f":"C128","v":220},{"$f":"D128","v":102.04410811016969},{"$f":"E128","v":137},66.730802482811484,92,46.043457732885351,96,46.690470119715009,152,69.260378283691168,100,53.225933528685054,159,58.694122363316758,1343,249.65776575143823,149,38.288379438153292,275,129.87686476043376,396,122.38463955905577,{"$f":"Y128","v":157},58.180752831155424,85,44.418464629025621,399,130.96946208945045,488,124.42266674525185,126,43.011626335213137,76,33.241540277189323,170,89.403579346690591,833,163.61540269791229,28,23.086792761230392,48,31.575306807693888,29,21.95449840010015,247,92.660671268883007,176,101.96568050084302,125,58.258046654518033,155,74.966659255965254,145,65.620118866091673,411,136.40014662748717,659,176.32356620712955,456,149.89329538041386,247,85.632937588290176,1027,225.24875138388668,278,119.64113005150027,444,181.8048404196104,17,10.295630140987001,262,109.83624174196785,682,199.48934808655824]
[null,"Not computed",10,22.671568097509269,0,15.556349186104045,19,21.2602916254693,0,15.556349186104045,13,26.627053911388696,32,35.735136770411273,22,27.018512172212592,43,49.040799340956916,22,31.016124838541646,7,14.866068747318506,0,15.556349186104045,{"$f":"Y129","v":0},15.556349186104045,20,29.154759474226502,18,31.76476034853718,34,42.544094772365298,0,15.556349186104045,{"$f":"AI129","v":4},12.083045973594572,13,25,31,23.345235059857504,8,17.029386365926403,0,15.556349186104045,2,12.083045973594572,12,23.430749027719962,0,15.556349186104045,0,15.556349186104045,0,15.556349186104045,9,17.804493814764857,0,21.213203435596427,49,80.523288556789581,14,27.018512172212592,22,39,57,38.948684188300895,{"$f":"BO129","v":0},21.213203435596427,21,38.078865529319543,0,15.556349186104045,0,21.213203435596427,0,24.041630560342615]
[]
[]
[]
[null,"B25091. MORTGAGE STATUS BY SELECTED MONTHLY OWNER COSTS AS A PERCENTAGE OF HOUSEHOLD INCOME IN THE PAST 12 MONTHS "]
[null,"Universe:  OWNER-OCCUPIED HOUSING UNITS"]
[null,"Data Set: 2006-2010 American Community Survey 5-Year Estimates"]
[]
[null,null,"Alton",null,"Barnstead",null,"Belmont",null,"Center Harbor",null,"Gilford",null,"Gilmanton",null,"Laconia",null,"Meredith",null,"New Hampton",null,"Sanbornton",null,"Tilton"]
[null," ","Estimate","Margin of Error","Estimate","Margin of Error","Estimate","Margin of Error","Estimate","Margin of Error","Estimate","Margin of Error","Estimate","Margin of Error","Estimate","Margin of Error","Estimate","Margin of Error","Estimate","Margin of Error","Estimate","Margin of Error","Estimate","Margin of Error"]
[null,"Total:"]
[null,"Housing units with a mortgage:"]
[null,"Less than 10.0 percent"]
[null,"10.0 to 14.9 percent"]
[null,"15.0 to 19.9 percent"]
[null,"20.0 to 24.9 percent"]
[null,"25.0 to 29.9 percent"]
[null,"30.0 to 34.9 percent"]
[null,"35.0 to 39.9 percent"]
[null,"40.0 to 49.9 percent"]
[null,"50.0 percent or more"]
[null,"Not computed"]
[null,"Housing units without a mortgage:"]
[null,"Less than 10.0 percent"]
[null,"10.0 to 14.9 percent"]
[null,"15.0 to 19.9 percent"]
[null,"20.0 to 24.9 percent"]
[null,"25.0 to 29.9 percent"]
[null,"30.0 to 34.9 percent"]
[null,"35.0 to 39.9 percent"]
[null,"40.0 to 49.9 percent"]
[null,"50.0 percent or more"]
[null,"Not computed"]
[]
[]
[]
[null,"Calculated B25091. MORTGAGE STATUS BY SELECTED MONTHLY OWNER COSTS AS A PERCENTAGE OF HOUSEHOLD INCOME IN THE PAST 12 MONTHS "]
[null,"Universe:  OWNER-OCCUPIED HOUSING UNITS"]
[null,"Data Set: 2006-2010 American Community Survey 5-Year Estimates"]
[]
[null,null,"Alton",null,"Barnstead",null,"Belmont",null,"Center Harbor",null,"Gilford",null,"Gilmanton",null,"Laconia",null,"Meredith",null,"New Hampton",null,"Sanbornton",null,"Tilton"]
[null," ","Estimate","Margin of Error","Estimate","Margin of Error","Estimate","Margin of Error","Estimate","Margin of Error","Estimate","Margin of Error","Estimate","Margin of Error","Estimate","Margin of Error","Estimate","Margin of Error","Estimate","Margin of Error","Estimate","Margin of Error","Estimate","Margin of Error"]
[null,"Total:",{"$f":"C158","v":0},{"$f":"D158","v":0},{"$f":"E158","v":0},0,0,0,0,0,0,0,0,0,0,0,0,0,0,0,0,0,0,0]
[null,"Less than 10.0 percent",{"$f":"C160+C171","v":0},{"$f":"SQRT((D160^2)+(D171^2))","v":0},{"$f":"E160+E171","v":0},{"$f":"SQRT((F160^2)+(F171^2))","v":0},{"$f":"G160+G171","v":0},{"$f":"SQRT((H160^2)+(H171^2))","v":0},{"$f":"I160+I171","v":0},{"$f":"SQRT((J160^2)+(J171^2))","v":0},{"$f":"K160+K171","v":0},{"$f":"SQRT((L160^2)+(L171^2))","v":0},{"$f":"M160+M171","v":0},{"$f":"SQRT((N160^2)+(N171^2))","v":0},{"$f":"O160+O171","v":0},{"$f":"SQRT((P160^2)+(P171^2))","v":0},{"$f":"Q160+Q171","v":0},{"$f":"SQRT((R160^2)+(R171^2))","v":0},{"$f":"S160+S171","v":0},{"$f":"SQRT((T160^2)+(T171^2))","v":0},{"$f":"U160+U171","v":0},{"$f":"SQRT((V160^2)+(V171^2))","v":0},{"$f":"W160+W171","v":0},{"$f":"SQRT((X160^2)+(X171^2))","v":0}]
[null,"10.0 to 14.9 percent",0,0,0,0,0,0,0,0,0,0,0,0,0,0,0,0,0,0,0,0,0,{"$f":"SQRT((X161^2)+(X172^2))","v":0}]
[null,"15.0 to 19.9 percent",0,0,0,0,0,0,0,0,0,0,0,0,0,0,0,0,0,0,0,0,0,0]
[null,"20.0 to 24.9 percent",0,0,0,0,0,0,0,0,0,0,0,0,0,0,0,0,0,0,0,0,0,0]
[null,"25.0 to 29.9 percent",0,0,0,0,0,0,0,0,0,0,0,0,0,0,0,0,0,0,0,0,0,0]
[null,"30.0 to 34.9 percent",0,0,0,0,0,0,0,0,0,0,0,0,0,0,0,0,0,0,0,0,0,0]
[null,"35.0 to 39.9 percent",0,0,0,0,0,0,0,0,0,0,0,0,0,0,0,0,0,0,0,0,0,0]
[null,"40.0 to 49.9 percent",0,0,0,0,0,0,0,0,0,0,0,0,0,0,0,0,0,0,0,0,0,0]
[null,"50.0 percent or more",{"$f":"C168+C179","v":0},0,0,0,0,0,0,0,0,0,0,0,0,0,0,0,0,0,0,0,0,0]
[null,"Not computed",0,0,0,0,0,0,0,0,0,0,0,0,0,0,0,0,0,0,0,0,0,0]
[]
[]
[]
[]
[null,"Calculated MONTHLY OWNER COSTS AS A PERCENTAGE OF HOUSEHOLD INCOME IN THE PAST 12 MONTHS "]
[null,"Universe:  OWNER-OCCUPIED HOUSING UNITS"]
[null,"Data Set: 2006-2010 American Community Survey 5-Year Estimates"]
[null,null,"Alton",null,"Barnstead",null,"Belmont",null,"Center Harbor",null,"Gilford",null,"Gilmanton",null,"Laconia",null,"Meredith",null,"New Hampton",null,"Sanbornton",null,"Tilton"]
[null," ","Estimate","Margin of Error","Estimate","Margin of Error","Estimate","Margin of Error","Estimate","Margin of Error","Estimate","Margin of Error","Estimate","Margin of Error","Estimate","Margin of Error","Estimate","Margin of Error","Estimate","Margin of Error","Estimate","Margin of Error","Estimate","Margin of Error"]
[null,"Total:",{"$f":"C190","v":0},0,0,0,0,0,0,0,0,0,0,0,0,0,0,0,0,0,0,0,0,0]
[null,"Less than 20% of HH Income",{"$f":"C191+C192+C193","v":0},{"$f":"SQRT((D191^2)+(D192^2)+(D193^2))","v":0},{"$f":"E191+E192+E193","v":0},{"$f":"SQRT((F191^2)+(F192^2)+(F193^2))","v":0},{"$f":"G191+G192+G193","v":0},{"$f":"SQRT((H191^2)+(H192^2)+(H193^2))","v":0},{"$f":"I191+I192+I193","v":0},{"$f":"SQRT((J191^2)+(J192^2)+(J193^2))","v":0},{"$f":"K191+K192+K193","v":0},{"$f":"SQRT((L191^2)+(L192^2)+(L193^2))","v":0},{"$f":"M191+M192+M193","v":0},{"$f":"SQRT((N191^2)+(N192^2)+(N193^2))","v":0},{"$f":"O191+O192+O193","v":0},{"$f":"SQRT((P191^2)+(P192^2)+(P193^2))","v":0},{"$f":"Q191+Q192+Q193","v":0},{"$f":"SQRT((R191^2)+(R192^2)+(R193^2))","v":0},{"$f":"S191+S192+S193","v":0},{"$f":"SQRT((T191^2)+(T192^2)+(T193^2))","v":0},{"$f":"U191+U192+U193","v":0},{"$f":"SQRT((V191^2)+(V192^2)+(V193^2))","v":0},{"$f":"W191+W192+W193","v":0},{"$f":"SQRT((X191^2)+(X192^2)+(X193^2))","v":0}]
[null," 20% to 29.9% of HH Income",{"$f":"C194+C195","v":0},{"$f":"SQRT((D194^2)+(D195^2))","v":0},{"$f":"E194+E195","v":0},{"$f":"SQRT((F194^2)+(F195^2))","v":0},{"$f":"G194+G195","v":0},{"$f":"SQRT((H194^2)+(H195^2))","v":0},{"$f":"I194+I195","v":0},{"$f":"SQRT((J194^2)+(J195^2))","v":0},{"$f":"K194+K195","v":0},{"$f":"SQRT((L194^2)+(L195^2))","v":0},{"$f":"M194+M195","v":0},{"$f":"SQRT((N194^2)+(N195^2))","v":0},{"$f":"O194+O195","v":0},{"$f":"SQRT((P194^2)+(P195^2))","v":0},{"$f":"Q194+Q195","v":0},{"$f":"SQRT((R194^2)+(R195^2))","v":0},{"$f":"S194+S195","v":0},{"$f":"SQRT((T194^2)+(T195^2))","v":0},{"$f":"U194+U195","v":0},{"$f":"SQRT((V194^2)+(V195^2))","v":0},{"$f":"W194+W195","v":0},{"$f":"SQRT((X194^2)+(X195^2))","v":0}]
[null," Less Than 30% of HH Income",{"$f":"C191+C192+C193+C194+C195","v":0},{"$f":"SQRT((D191^2)+(D192^2)+(D193^2)+(D194^2)+(D195^2))","v":0},{"$f":"E191+E192+E193+E194+E195","v":0},{"$f":"SQRT((F191^2)+(F192^2)+(F193^2)+(F194^2)+(F195^2))","v":0},{"$f":"G191+G192+G193+G194+G195","v":0},{"$f":"SQRT((H191^2)+(H192^2)+(H193^2)+(H194^2)+(H195^2))","v":0},{"$f":"I191+I192+I193+I194+I195","v":0},{"$f":"SQRT((J191^2)+(J192^2)+(J193^2)+(J194^2)+(J195^2))","v":0},{"$f":"K191+K192+K193+K194+K195","v":0},{"$f":"SQRT((L191^2)+(L192^2)+(L193^2)+(L194^2)+(L195^2))","v":0},{"$f":"M191+M192+M193+M194+M195","v":0},{"$f":"SQRT((N191^2)+(N192^2)+(N193^2)+(N194^2)+(N195^2))","v":0},{"$f":"O191+O192+O193+O194+O195","v":0},{"$f":"SQRT((P191^2)+(P192^2)+(P193^2)+(P194^2)+(P195^2))","v":0},{"$f":"Q191+Q192+Q193+Q194+Q195","v":0},{"$f":"SQRT((R191^2)+(R192^2)+(R193^2)+(R194^2)+(R195^2))","v":0},{"$f":"S191+S192+S193+S194+S195","v":0},{"$f":"SQRT((T191^2)+(T192^2)+(T193^2)+(T194^2)+(T195^2))","v":0},{"$f":"U191+U192+U193+U194+U195","v":0},{"$f":"SQRT((V191^2)+(V192^2)+(V193^2)+(V194^2)+(V195^2))","v":0},{"$f":"W191+W192+W193+W194+W195","v":0},{"$f":"SQRT((X191^2)+(X192^2)+(X193^2)+(X194^2)+(X195^2))","v":0}]
[null," 30% or More of HH Income",{"$f":"C196+C197+C198+C199","v":0},{"$f":"SQRT((D196^2)+(D197^2)+(D198^2)+(D199^2))","v":0},{"$f":"E196+E197+E198+E199","v":0},{"$f":"SQRT((F196^2)+(F197^2)+(F198^2)+(F199^2))","v":0},{"$f":"G196+G197+G198+G199","v":0},{"$f":"SQRT((H196^2)+(H197^2)+(H198^2)+(H199^2))","v":0},{"$f":"I196+I197+I198+I199","v":0},{"$f":"SQRT((J196^2)+(J197^2)+(J198^2)+(J199^2))","v":0},{"$f":"K196+K197+K198+K199","v":0},{"$f":"SQRT((L196^2)+(L197^2)+(L198^2)+(L199^2))","v":0},{"$f":"M196+M197+M198+M199","v":0},{"$f":"SQRT((N196^2)+(N197^2)+(N198^2)+(N199^2))","v":0},{"$f":"O196+O197+O198+O199","v":0},{"$f":"SQRT((P196^2)+(P197^2)+(P198^2)+(P199^2))","v":0},{"$f":"Q196+Q197+Q198+Q199","v":0},{"$f":"SQRT((R196^2)+(R197^2)+(R198^2)+(R199^2))","v":0},{"$f":"S196+S197+S198+S199","v":0},{"$f":"SQRT((T196^2)+(T197^2)+(T198^2)+(T199^2))","v":0},{"$f":"U196+U197+U198+U199","v":0},{"$f":"SQRT((V196^2)+(V197^2)+(V198^2)+(V199^2))","v":0},{"$f":"W196+W197+W198+W199","v":0},{"$f":"SQRT((X196^2)+(X197^2)+(X198^2)+(X199^2))","v":0}]
[null," 30% to 34.9% of HH Income",{"$f":"C196","v":0},{"$f":"D196","v":0},{"$f":"E196","v":0},0,0,0,0,0,0,0,0,0,0,0,0,0,0,0,0,0,0,0]
[null," Less Than 35% of HH Income",{"$f":"C191+C192+C193+C194+C195+C196","v":0},{"$f":"SQRT((D191^2)+(D192^2)+(D193^2)+(D194^2)+(D195^2)+(D196^2))","v":0},{"$f":"E191+E192+E193+E194+E195+E196","v":0},{"$f":"SQRT((F191^2)+(F192^2)+(F193^2)+(F194^2)+(F195^2)+(F196^2))","v":0},{"$f":"G191+G192+G193+G194+G195+G196","v":0},{"$f":"SQRT((H191^2)+(H192^2)+(H193^2)+(H194^2)+(H195^2)+(H196^2))","v":0},{"$f":"I191+I192+I193+I194+I195+I196","v":0},{"$f":"SQRT((J191^2)+(J192^2)+(J193^2)+(J194^2)+(J195^2)+(J196^2))","v":0},{"$f":"K191+K192+K193+K194+K195+K196","v":0},{"$f":"SQRT((L191^2)+(L192^2)+(L193^2)+(L194^2)+(L195^2)+(L196^2))","v":0},{"$f":"M191+M192+M193+M194+M195+M196","v":0},{"$f":"SQRT((N191^2)+(N192^2)+(N193^2)+(N194^2)+(N195^2)+(N196^2))","v":0},{"$f":"O191+O192+O193+O194+O195+O196","v":0},{"$f":"SQRT((P191^2)+(P192^2)+(P193^2)+(P194^2)+(P195^2)+(P196^2))","v":0},{"$f":"Q191+Q192+Q193+Q194+Q195+Q196","v":0},{"$f":"SQRT((R191^2)+(R192^2)+(R193^2)+(R194^2)+(R195^2)+(R196^2))","v":0},{"$f":"S191+S192+S193+S194+S195+S196","v":0},{"$f":"SQRT((T191^2)+(T192^2)+(T193^2)+(T194^2)+(T195^2)+(T196^2))","v":0},{"$f":"U191+U192+U193+U194+U195+U196","v":0},{"$f":"SQRT((V191^2)+(V192^2)+(V193^2)+(V194^2)+(V195^2)+(V196^2))","v":0},{"$f":"W191+W192+W193+W194+W195+W196","v":0},{"$f":"SQRT((X191^2)+(X192^2)+(X193^2)+(X194^2)+(X195^2)+(X196^2))","v":0}]
[null," 35% or More of HH Income",{"$f":"C197+C198+C199","v":0},{"$f":"SQRT((D197^2)+(D198^2)+(D199^2))","v":0},{"$f":"E197+E198+E199","v":0},{"$f":"SQRT((F197^2)+(F198^2)+(F199^2))","v":0},{"$f":"G197+G198+G199","v":0},{"$f":"SQRT((H197^2)+(H198^2)+(H199^2))","v":0},{"$f":"I197+I198+I199","v":0},{"$f":"SQRT((J197^2)+(J198^2)+(J199^2))","v":0},{"$f":"K197+K198+K199","v":0},{"$f":"SQRT((L197^2)+(L198^2)+(L199^2))","v":0},{"$f":"M197+M198+M199","v":0},{"$f":"SQRT((N197^2)+(N198^2)+(N199^2))","v":0},{"$f":"O197+O198+O199","v":0},{"$f":"SQRT((P197^2)+(P198^2)+(P199^2))","v":0},{"$f":"Q197+Q198+Q199","v":0},{"$f":"SQRT((R197^2)+(R198^2)+(R199^2))","v":0},{"$f":"S197+S198+S199","v":0},{"$f":"SQRT((T197^2)+(T198^2)+(T199^2))","v":0},{"$f":"U197+U198+U199","v":0},{"$f":"SQRT((V197^2)+(V198^2)+(V199^2))","v":0},{"$f":"W197+W198+W199","v":0},{"$f":"SQRT((X197^2)+(X198^2)+(X199^2))","v":0}]
[null," 50% or More of HH Income",{"$f":"C199","v":0},{"$f":"D199","v":0},{"$f":"E199","v":0},0,0,0,0,0,0,0,0,0,0,0,0,0,0,0,0,0,0,0]
[null,"Not computed",{"$f":"C200","v":0},{"$f":"D200","v":0},0,0,0,0,0,0,0,0,0,0,0,0,0,0,0,0,0,0,0,0]

{"sheet":"ACS_Table_B25106","index":68,"n_rows":255,"n_cols":76,"rows_kept":255,"cut":false,"hidden":true,"merged":[]}
[null,"B25106. TENURE BY HOUSING COSTS AS A PERCENTAGE OF HOUSEHOLD INCOME IN THE PAST 12 MONTHS"]
[null,"Universe:  OCCUPIED HOUSING UNITS"]
[null,"Data Set: 2015-2019 American Community Survey 5-Year Estimates"]
[]
[null,null,"Atkinson",null,"Auburn",null,"Brentwood",null,"Candia",null,"Chester",null,"Danville",null,"Deerfield",null,"Derry",null,"East Kingston",null,"Epping",null,"Exeter",null,"Fremont",null,"Greenland",null,"Hampstead",null,"Hampton",null,"Hampton Falls",null,"Kensington",null,"Kingston",null,"Londonderry",null,"New Castle",null,"Newfields",null,"Newington",null,"Newmarket",null,"Newton",null,"North Hampton",null,"Northwood",null,"Nottingham",null,"Plaistow",null,"Portsmouth",null,"Raymond",null,"Rye",null,"Salem",null,"Sandown",null,"Seabrook",null,"South Hampton",null,"Stratham",null,"Windham"]
[null,null,"Estimate","Margin of Error","Estimate","Margin of Error","Estimate","Margin of Error","Estimate","Margin of Error","Estimate","Margin of Error","Estimate","Margin of Error","Estimate","Margin of Error","Estimate","Margin of Error","Estimate","Margin of Error","Estimate","Margin of Error","Estimate","Margin of Error","Estimate","Margin of Error","Estimate","Margin of Error","Estimate","Margin of Error","Estimate","Margin of Error","Estimate","Margin of Error","Estimate","Margin of Error","Estimate","Margin of Error","Estimate","Margin of Error","Estimate","Margin of Error","Estimate","Margin of Error","Estimate","Margin of Error","Estimate","Margin of Error","Estimate","Margin of Error","Estimate","Margin of Error","Estimate","Margin of Error","Estimate","Margin of Error","Estimate","Margin of Error","Estimate","Margin of Error","Estimate","Margin of Error","Estimate","Margin of Error","Estimate","Margin of Error","Estimate","Margin of Error","Estimate","Margin of Error","Estimate","Margin of Error","Estimate","Margin of Error","Estimate","Margin of Error"]
[null,"Total:",2745,185,1973,91,1533,82,1537,80,1687,101,1685,93,1653,86,12741,353,888,65,2680,155,6542,249,1764,77,1516,85,3573,147,7088,199,909,54,845,53,2411,198,9338,206,436,85,600,67,307,39,4035,177,1853,107,1820,118,1611,107,1900,108,3119,164,10063,259,4112,193,2364,153,11536,318,2229,137,3824,194,302,41,2817,137,5009,196]
[null,"Owner occupied housing units:",2551,169,1819,147,1400,110,1454,91,1642,95,1430,117,1453,121,8291,386,849,65,2288,170,4479,253,1614,99,1256,86,2789,176,5394,240,828,64,760,46,2031,186,7989,256,391,80,560,66,259,37,2121,197,1487,144,1612,123,1460,120,1767,119,2548,220,5237,245,3224,225,1941,155,9006,348,2025,145,2600,211,264,36,2487,162,4805,205]
[null,"Less than $20,000:",78,72,23,23,60,38,124,71,12,20,62,48,71,47,302,107,48,25,122,81,215,75,36,27,63,35,207,108,366,112,43,41,23,19,54,42,251,101,11,11,14,12,10,10,46,34,66,56,87,46,53,39,43,33,108,86,212,74,139,62,37,41,402,170,25,31,213,94,14,10,81,68,210,113]
[null,"Less than 20 percent",0,16,0,16,0,11,0,11,0,16,0,11,0,11,0,24,0,11,0,16,45,45,0,11,0,11,0,16,0,18,0,11,0,11,0,16,0,21,3,5,0,11,2,5,0,16,0,11,0,11,22,34,0,16,0,16,0,21,0,18,0,16,0,21,0,16,35,43,0,11,0,16,0,18]
[null,"20 to 29 percent",0,16,0,16,0,11,0,11,0,16,0,11,0,11,13,21,0,11,0,16,9,15,9,15,0,11,10,15,10,14,0,11,0,11,0,16,0,21,0,11,0,11,0,11,9,14,0,11,0,11,11,17,0,16,0,16,0,21,0,18,0,16,0,21,0,16,0,16,5,5,0,16,0,18]
[null,"30 percent or more",78,72,23,23,60,38,124,71,12,20,62,48,71,47,289,104,48,25,122,81,161,66,27,23,63,35,197,105,356,111,43,41,23,19,54,42,251,101,8,9,14,12,8,8,37,31,66,56,87,46,20,23,43,33,108,86,212,74,139,62,37,41,402,170,25,31,178,95,9,8,81,68,210,113]
[null,"$20,000 to $34,999:",119,62,93,52,87,47,104,63,63,55,98,62,48,35,419,157,47,23,148,91,373,113,62,54,72,44,112,68,254,79,59,42,36,13,128,70,478,110,57,39,8,10,14,11,134,72,28,24,92,63,54,35,164,89,189,121,237,96,290,114,93,67,564,139,142,84,203,102,15,10,92,61,139,77]
[null,"Less than 20 percent",0,16,10,17,0,11,7,13,0,16,8,12,13,14,40,47,0,11,18,29,18,29,29,47,0,11,16,19,17,16,0,11,3,4,0,16,44,68,0,11,0,11,0,11,0,16,0,11,0,11,9,14,31,40,0,16,18,21,28,43,0,16,49,40,0,16,8,12,0,11,18,27,0,18]
[null,"20 to 29 percent",26,29,6,9,0,11,28,42,9,14,7,12,0,11,45,42,10,10,0,16,46,42,16,17,11,16,0,16,42,32,0,11,7,7,18,30,39,44,0,11,4,7,6,7,34,32,10,16,31,47,0,11,0,16,28,31,18,29,73,38,18,28,123,73,57,60,39,37,8,8,17,27,0,18]
[null,"30 percent or more",93,58,77,48,87,47,69,52,54,53,83,62,35,29,334,149,37,21,130,85,309,101,17,20,61,41,96,66,195,71,59,42,26,12,110,67,395,92,57,39,4,6,8,7,100,62,18,19,61,36,45,33,133,79,161,115,201,90,189,96,75,61,392,124,85,59,156,91,7,5,57,50,139,77]
[null,"$35,000 to $49,999:",114,84,95,67,35,33,68,50,82,46,93,49,54,37,708,158,78,47,234,124,321,140,106,49,80,52,145,49,317,87,29,20,47,24,171,81,496,124,17,19,15,20,10,8,221,87,62,38,110,57,136,70,63,33,184,91,220,85,288,120,118,63,798,180,120,81,282,116,23,10,196,95,228,103]
[null,"Less than 20 percent",0,16,0,16,0,11,10,15,10,15,10,16,16,18,60,46,5,8,15,25,61,56,24,19,7,11,26,25,54,33,6,9,2,4,17,26,56,39,4,7,0,11,2,4,8,12,26,23,27,25,74,64,0,16,13,22,42,38,38,46,0,16,141,68,8,13,153,105,9,6,48,47,18,28]
[null,"20 to 29 percent",25,28,18,20,0,11,11,16,8,14,21,20,12,18,185,88,6,9,74,56,105,64,18,20,7,11,22,21,147,76,5,8,24,20,69,49,139,78,9,14,15,20,3,4,60,38,7,13,32,42,27,26,35,25,64,49,27,37,68,75,38,42,338,112,10,17,83,45,2,4,28,35,68,44]
[null,"30 percent or more",89,71,77,64,35,33,47,45,64,43,62,43,26,25,463,131,67,45,145,131,155,102,64,41,66,52,97,47,116,58,18,15,21,14,85,65,301,83,4,6,0,11,5,6,153,87,29,28,51,34,35,28,28,24,107,74,151,67,182,73,80,49,319,140,102,76,46,41,12,7,120,75,142,93]
[null,"$50,000 to $74,999:",278,109,165,63,182,65,200,80,155,66,230,96,147,59,1389,273,106,36,477,160,726,144,224,68,42,29,403,125,891,168,56,37,115,32,325,148,1069,191,38,22,55,20,51,19,257,91,143,60,298,88,248,74,339,101,514,144,734,163,513,119,263,112,1340,261,287,129,483,147,42,18,289,125,597,174]
[null,"Less than 20 percent",102,80,90,42,28,32,67,50,40,31,56,35,61,44,330,121,33,19,156,97,269,104,40,29,23,20,157,65,287,104,12,20,36,21,61,52,266,89,10,9,18,12,16,9,52,38,73,42,151,80,74,34,85,45,87,62,207,65,93,60,107,71,428,173,40,45,226,107,10,7,50,46,72,59]
[null,"20 to 29 percent",91,58,23,21,68,36,51,33,16,24,114,78,44,28,422,174,27,18,142,91,238,96,79,42,0,11,55,42,233,86,12,12,21,17,105,75,394,106,21,19,12,9,11,11,90,45,10,16,65,50,45,31,61,53,174,90,214,89,189,99,52,49,332,116,59,41,163,80,6,7,69,49,140,86]
[null,"30 percent or more",85,53,52,36,86,49,82,50,99,56,60,40,42,34,637,173,46,30,179,89,219,74,105,55,19,20,191,96,371,126,32,29,58,25,159,124,409,124,7,9,25,13,24,13,115,71,60,40,82,44,129,61,193,89,253,122,313,104,231,100,104,97,580,216,188,114,94,50,26,18,170,105,385,143]
[null,"$75,000 or more:",1950,129,1443,125,1036,109,958,93,1330,100,947,114,1096,121,5424,348,570,59,1307,159,2756,198,1186,114,967,86,1912,154,3561,229,641,71,532,49,1353,153,5674,245,268,68,468,64,174,29,1463,162,1180,135,1015,106,969,97,1158,113,1553,184,3826,242,1982,198,1430,135,5767,305,1451,164,1407,202,170,32,1815,169,3631,211]
[null,"Less than 20 percent",1052,183,843,126,658,104,651,99,789,111,515,98,700,123,3041,307,324,55,786,171,1914,212,791,142,555,90,1158,151,2442,211,428,71,288,42,725,184,3457,265,213,60,296,54,121,31,751,129,679,117,634,112,625,117,708,113,900,182,2504,230,1215,185,1013,163,3767,322,742,188,1026,178,139,30,1129,185,2062,264]
[null,"20 to 29 percent",540,134,445,131,229,81,236,90,429,106,311,79,309,94,1819,236,145,39,369,120,612,150,321,88,288,84,495,141,739,153,142,46,145,36,434,161,1742,199,41,27,138,43,32,16,549,122,476,119,276,108,231,82,335,84,510,164,941,159,613,192,200,99,1378,202,537,160,334,127,26,16,523,139,1072,221]
[null,"30 percent or more",358,127,155,76,149,71,71,43,112,43,121,57,87,50,564,180,101,36,152,104,230,76,74,47,124,53,259,85,380,131,71,29,99,34,194,87,475,133,14,11,34,22,21,11,163,75,25,22,105,45,113,57,115,76,143,91,381,113,154,86,217,84,622,140,172,99,47,43,5,5,163,83,497,163]
[null,"Zero or negative income",12,21,0,16,0,11,0,11,0,16,0,11,37,40,49,54,0,11,0,16,88,89,0,11,32,33,10,17,5,8,0,11,7,8,0,16,21,26,0,11,0,11,0,11,0,16,8,13,10,15,0,11,0,16,0,16,8,12,12,18,0,16,135,104,0,16,12,20,0,11,14,24,0,18]
[null,"Renter occupied housing units:",194,106,154,88,133,73,83,62,45,45,255,107,200,79,4450,369,39,27,392,148,2063,256,150,72,260,79,784,169,1694,197,81,38,85,34,380,139,1349,200,45,31,40,20,48,19,1914,180,366,104,208,75,151,72,133,66,571,169,4826,262,888,167,423,174,2530,315,204,103,1224,199,38,26,330,133,204,109]
[null,"Less than $20,000:",18,28,0,16,33,52,16,26,0,16,0,11,6,10,822,235,5,9,29,34,215,94,8,14,0,11,95,101,186,84,5,7,5,6,68,85,75,53,0,11,8,9,6,7,310,134,88,56,6,10,26,26,14,21,78,84,734,197,211,102,0,16,516,176,43,68,242,88,0,11,0,16,16,25]
[null,"Less than 20 percent",0,16,0,16,0,11,0,11,0,16,0,11,0,11,0,24,0,11,0,16,0,18,0,11,0,11,0,16,16,25,0,11,0,11,0,16,0,21,0,11,0,11,0,11,0,16,9,14,0,11,0,11,0,16,0,16,25,27,0,18,0,16,16,28,0,16,0,16,0,11,0,16,0,18]
[null,"20 to 29 percent",0,16,0,16,0,11,0,11,0,16,0,11,0,11,52,71,0,11,0,16,25,30,0,11,0,11,0,16,23,28,0,11,0,11,0,16,0,21,0,11,0,11,0,11,72,69,18,21,6,10,0,11,0,16,16,27,152,101,0,18,0,16,27,34,0,16,0,16,0,11,0,16,0,18]
[null,"30 percent or more",18,28,0,16,33,52,16,26,0,16,0,11,6,10,770,237,5,9,29,34,190,87,8,14,0,11,95,101,147,79,5,7,5,6,68,85,75,53,0,11,8,9,6,7,238,123,61,51,0,11,26,26,14,21,62,79,557,186,211,102,0,16,473,174,43,68,242,88,0,11,0,16,16,25]
[null,"$20,000 to $34,999:",53,83,0,16,0,11,8,13,11,19,138,91,33,38,681,246,4,8,121,100,407,147,0,11,28,27,186,120,283,92,0,11,7,7,119,119,237,102,11,17,0,11,3,5,277,133,23,22,32,27,29,27,12,19,66,79,630,181,123,74,157,121,505,197,0,16,120,57,0,11,33,39,34,40]
[null,"Less than 20 percent",0,16,0,16,0,11,0,11,0,16,0,11,0,11,25,29,0,11,0,16,14,21,0,11,0,11,0,16,0,18,0,11,0,11,0,16,0,21,0,11,0,11,0,11,0,16,8,13,0,11,0,11,12,19,0,16,43,41,10,16,0,16,28,37,0,16,0,16,0,11,0,16,17,27]
[null,"20 to 29 percent",0,16,0,16,0,11,0,11,0,16,30,31,0,11,72,76,0,11,0,16,63,69,0,11,9,13,65,62,75,59,0,11,0,11,0,16,0,21,0,11,0,11,0,11,42,58,8,12,0,11,0,11,0,16,0,16,161,107,11,19,0,16,0,21,0,16,41,39,0,11,0,16,0,18]
[null,"30 percent or more",53,83,0,16,0,11,8,13,11,19,108,83,33,38,584,238,4,8,121,100,330,122,0,11,19,23,121,109,208,73,0,11,7,7,119,119,237,102,11,17,0,11,3,5,235,120,7,12,32,27,29,27,0,16,66,79,426,142,102,72,157,121,477,191,0,16,79,46,0,11,33,39,17,29]
[null,"$35,000 to $49,999:",61,90,42,38,12,17,31,45,0,16,28,45,26,23,775,225,0,11,81,93,358,134,0,11,35,35,198,136,279,98,0,11,16,22,116,104,74,60,0,11,8,9,0,11,318,125,46,50,26,23,16,20,0,16,133,121,463,150,186,97,21,34,362,138,68,68,168,94,9,14,72,58,0,18]
[null,"Less than 20 percent",0,16,0,16,0,11,0,11,0,16,0,11,0,11,16,25,0,11,0,16,21,32,0,11,0,11,0,16,38,58,0,11,0,11,0,16,0,21,0,11,0,11,0,11,18,27,0,11,0,11,0,11,0,16,0,16,15,17,0,18,0,16,0,21,0,16,0,16,0,11,16,26,0,18]
[null,"20 to 29 percent",47,77,11,17,12,17,0,11,0,16,0,11,0,11,172,116,0,11,68,90,124,118,0,11,0,11,114,117,100,50,0,11,16,22,49,82,9,14,0,11,0,11,0,11,33,35,36,47,0,11,0,11,0,16,11,18,59,43,25,28,21,34,154,106,0,16,55,50,9,14,23,35,0,18]
[null,"30 percent or more",14,25,31,42,0,11,31,45,0,16,28,45,26,23,587,185,0,11,13,20,213,103,0,11,35,35,84,77,141,63,0,11,0,11,67,64,65,53,0,11,8,9,0,11,267,121,10,17,26,23,16,20,0,16,122,119,389,149,161,92,0,16,208,101,68,68,113,78,0,11,33,39,0,18]
[null,"$50,000 to $74,999:",14,22,0,16,29,26,8,12,34,52,10,17,19,21,1032,193,5,7,66,53,384,161,56,60,29,44,190,91,360,111,13,14,15,10,31,35,235,98,19,21,5,7,4,7,470,135,46,58,23,34,53,55,70,54,148,116,1194,232,209,110,56,50,455,171,34,40,242,109,4,7,34,30,26,28]
[null,"Less than 20 percent",0,16,0,16,12,18,0,11,34,52,0,11,8,14,242,95,0,11,0,16,42,39,0,11,0,11,140,87,98,52,0,11,4,6,0,16,40,43,9,15,0,11,0,11,55,45,37,56,0,11,41,51,23,26,14,24,295,133,15,25,16,25,0,21,0,16,80,69,2,5,0,16,15,24]
[null,"20 to 29 percent",0,16,0,16,0,11,8,12,0,16,0,11,11,17,614,173,0,11,25,30,208,110,56,60,0,11,42,64,206,91,7,10,4,5,31,35,110,74,0,11,0,11,4,7,311,126,9,14,0,11,0,11,37,42,134,107,527,162,100,77,0,16,383,163,14,23,101,78,0,11,0,16,0,18]
[null,"30 percent or more",14,22,0,16,17,19,0,11,0,16,10,17,0,11,176,110,5,7,41,44,134,99,0,11,29,44,8,14,56,60,6,9,7,6,0,16,85,52,10,15,5,7,0,11,104,75,0,11,23,34,12,18,10,15,0,16,372,154,94,80,40,44,72,60,20,33,61,46,2,4,34,30,11,20]
[null,"$75,000 or more:",48,45,112,84,59,50,0,11,0,16,79,58,51,53,1057,209,6,8,75,56,541,144,54,39,147,63,49,55,523,117,43,32,23,18,27,44,616,156,15,17,16,11,28,18,516,125,152,87,81,46,17,21,37,31,71,64,1630,209,153,111,172,133,571,167,32,37,366,129,13,8,143,87,128,85]
[null,"Less than 20 percent",0,16,69,78,28,26,0,11,0,16,49,48,43,51,523,159,6,8,10,18,450,144,32,29,120,59,34,51,288,92,37,32,8,9,27,44,297,114,15,17,8,9,18,11,293,99,152,87,60,39,17,21,37,31,31,46,1179,185,138,108,111,91,462,153,13,20,191,87,5,6,77,75,102,78]
[null,"20 to 29 percent",48,45,27,30,31,46,0,11,0,16,12,21,8,13,454,151,0,11,45,41,75,49,12,20,16,18,15,18,225,82,6,8,15,19,0,16,285,102,0,11,6,7,10,13,223,92,0,11,21,23,0,11,0,16,40,47,386,122,15,24,0,16,69,61,19,32,127,80,8,7,66,53,11,19]
[null,"30 percent or more",0,16,16,17,0,11,0,11,0,16,18,28,0,11,80,68,0,11,20,31,16,19,10,15,11,15,0,16,10,10,0,11,0,11,0,16,34,26,0,11,2,4,0,11,0,16,0,11,0,11,0,11,0,16,0,16,65,48,0,18,61,101,40,39,0,16,48,47,0,11,0,16,15,24]
[null,"Zero or negative income",0,16,0,16,0,11,0,11,0,16,0,11,0,11,0,24,0,11,20,31,28,33,0,11,0,11,0,16,39,33,0,11,0,11,19,30,0,21,0,11,0,11,0,11,16,25,0,11,0,11,0,11,0,16,13,22,75,47,0,18,0,16,20,30,0,16,0,16,4,5,0,16,0,18]
[null,"No cash rent",0,16,0,16,0,11,20,30,0,16,0,11,65,57,83,62,19,19,0,16,130,65,32,31,21,22,66,72,24,23,20,21,19,13,0,16,112,68,0,11,3,5,7,6,7,12,11,16,40,31,10,16,0,16,62,89,100,66,6,11,17,26,101,89,27,42,86,58,8,13,48,77,0,18]
[]
[]
[]
[]
[]
[]
[null,"Calculated B25106. TENURE BY HOUSING COSTS AS A PERCENTAGE OF HOUSEHOLD INCOME IN THE PAST 12 MONTHS"]
[null,"Universe:  OCCUPIED HOUSING UNITS"]
[null,"Data Set: 2015-2019 American Community Survey 5-Year Estimates"]
[]
[null,null,"Atkinson",null,"Auburn",null,"Brentwood",null,"Candia",null,"Chester",null,"Danville",null,"Deerfield",null,"Derry",null,"East Kingston",null,"Epping",null,"Exeter",null,"Fremont",null,"Greenland",null,"Hampstead",null,"Hampton",null,"Hampton Falls",null,"Kensington",null,"Kingston",null,"Londonderry",null,"New Castle",null,"Newfields",null,"Newington",null,"Newmarket",null,"Newton",null,"North Hampton",null,"Northwood",null,"Nottingham",null,"Plaistow",null,"Portsmouth",null,"Raymond",null,"Rye",null,"Salem",null,"Sandown",null,"Seabrook",null,"South Hampton",null,"Stratham",null,"Windham"]
[null,null,"Estimate","Margin Of Error","Estimate","Margin Of Error","Estimate","Margin Of Error","Estimate","Margin Of Error","Estimate","Margin Of Error","Estimate","Margin Of Error","Estimate","Margin Of Error","Estimate","Margin Of Error","Estimate","Margin Of Error","Estimate","Margin Of Error","Estimate","Margin Of Error","Estimate","Margin Of Error","Estimate","Margin Of Error","Estimate","Margin Of Error","Estimate","Margin Of Error","Estimate","Margin Of Error","Estimate","Margin Of Error","Estimate","Margin Of Error","Estimate","Margin Of Error","Estimate","Margin Of Error","Estimate","Margin Of Error","Estimate","Margin Of Error","Estimate","Margin Of Error","Estimate","Margin Of Error","Estimate","Margin Of Error","Estimate","Margin Of Error","Estimate","Margin Of Error","Estimate","Margin Of Error","Estimate","Margin Of Error","Estimate","Margin Of Error","Estimate","Margin Of Error","Estimate","Margin Of Error","Estimate","Margin Of Error","Estimate","Margin Of Error","Estimate","Margin Of Error","Estimate","Margin Of Error","Estimate","Margin Of Error"]
[null,{"$f":"B7","v":"Total:"},2745,185,1973,91,1533,82,1537,80,1687,101,1685,93,1653,86,12741,353,888,65,2680,155,6542,249,{"$f":"Y7","v":1764},77,1516,85,3573,147,7088,199,909,54,845,53,2411,198,9338,206,436,85,600,67,307,39,4035,177,1853,107,1820,118,1611,107,1900,108,3119,164,10063,259,4112,193,2364,153,11536,318,2229,137,3824,194,302,41,2817,137,5009,196]
[null,"Owner occupied housing units:",2551,169,1819,147,1400,110,1454,91,1642,95,1430,117,1453,121,8291,386,849,65,2288,170,4479,253,{"$f":"Y8","v":1614},99,1256,86,2789,176,5394,240,828,64,760,46,2031,186,7989,256,391,80,560,66,259,37,2121,197,1487,144,1612,123,1460,120,1767,119,2548,220,5237,245,3224,225,1941,155,9006,348,2025,145,2600,211,264,36,2487,162,4805,205]
[null,"Less than 20 percent",{"$f":"C10+C14+C18+C22+C26","v":1154},{"$f":"SQRT((D10^2)+(D14^2)+(D18^2)+(D22^2)+(D26^2))","v":201.63581031156147},{"$f":"SQRT((E10^2)+(E14^2)+(E18^2)+(E22^2)+(E26^2))","v":847.84963289489019},135.79764357307531,658.59547523498827,110.46718969902331,654.55251890127192,113.20777358467925,790.07657856691333,118.40185809352825,518.19397912364821,106.53637876331258,702.95519060605852,133.06389442670013,3059.7027633415637,337.32921604865476,325.71459899734305,60.761830123853251,801.67387384147673,200.92784774639875,1934.3802625130354,248.51961693194363,{"$f":"SQRT((Y10^2)+(Y14^2)+(Y18^2)+(Y22^2)+(Y26^2))","v":792.90478621332591},153.93505123915085,555.5204766703024,94.143507476617842,1168.9931565240236,168.13090138341613,2459.4588835758163,238.75929301285845,428.2102287428454,75.921011584409229,290.26367323521555,48.559242168715933,727.76026272392755,194.28844535895593,3467.9499708040771,291.08761567610532,213.2932253964012,62.257529665093521,296.54679226051326,58.506409905240297,122.08603523745047,34.698703145794944,752.84062058313509,136.89777207829206,683.40763823650673,127.37346662472527,652.29287900451584,140.75155416548694,634.14667073162184,142.45350118547455,713.75766195537267,130.02307487519283,904.2886707241222,194.84352696458765,2512.9570231104231,243.82575745806676,1219.4679167571405,205.21695836358163,1018.6353616481218,179.93887851156569,3794.1738231135378,374.53704756672602,743.120447841398,195.06409203131159,1062.285272419796,236.96202227361243,139.64956140282001,35.028559776273987,1131.2687567505786,198.83410170290205,2063.335164242591,273.14648084864649]
[null,"20 to 29 percent",{"$f":"C11+C15+C19+C23+C27","v":682},{"$f":"SQRT((D11^2)+(D15^2)+(D19^2)+(D23^2)+(D27^2))","v":152.31874474272692},445.99775784189768,135.42156401400774,238.88281646028875,90.664215653145092,243.31461115189938,106.44247272588137,429.46711166281403,111.62437009900661,331.97439660311153,113.97368117245314,312.34756282065018,100.92571525632107,1877.0359612964264,309.71115575645638,147.95269514273809,46.335731352812381,402.24495024798011,162.26213359869271,666.64083283279308,194.42479265772664,{"$f":"SQRT((Y11^2)+(Y15^2)+(Y19^2)+(Y23^2)+(Y27^2))","v":331.57653716751429},102.08819716304133,288.294987816299,87.607077339676152,498.63212892873241,150.2231673211559,789.86264628731499,194.42479265772664,142.59382875847047,50.655700567655757,148.63041411501214,46.421977553740639,452.17916802966499,187.35794618857241,1791.8264424882227,243.51180669528119,46.936126810805341,39.08964057138413,139.38794782907166,50,34.496376621320678,23.727621035409346,560.65854136006885,139.90353819685905,476.26148280120236,122.32334200797492,287.02961519675978,135.12216694532395,237.1413080844415,93.653617121817561,342.30249779982614,104.89041900955492,543.37464055658688,196.50445287575548,965.57236911585244,189.34888433788038,649.18641390589812,232.5037634104016,210.8838542895117,122.49897958758677,1462.3546081576794,269.39561986045726,543.32218802474836,177.27379953055669,382.79890281974423,161.79925834193432,28.372521918222215,20.248456731316587,528.54801106427408,154.69970911414151,1083.2395856873031,242.53041046433745]
[null,"30 percent or more",{"$f":"C12+C16+C20+C24+C28","v":703},{"$f":"SQRT((D12^2)+(D16^2)+(D20^2)+(D24^2)+(D28^2))","v":180.35243275320684},197.77765293379332,118.32582135780845,204.91705639111646,110.38115781237303,184.6916348944911,118.82339836917643,171.75855146105536,100.21476937058729,181.1573901335521,113.34019587066187,127.57350822173073,85.621259042366347,1064.5708055362029,335.42063144654651,143.10485666112103,72.711759709141958,328.56354027798034,222.89908030317218,496.27411780184548,190.29713607934303,{"$f":"SQRT((Y12^2)+(Y16^2)+(Y20^2)+(Y24^2)+(Y28^2))","v":147.02040674681865},88.566359301938121,166.68233259706921,93.909530932701401,401.24306847595511,184.47493054613139,678.4231717740779,231.86849721339897,108.25433016743487,73.157364632687532,121.7004519301387,49.819674828324601,291.81843670337213,182.81958319611169,838.17241663037328,242.11360969594418,59.782940710540494,42.895221179054431,44.643028571099428,30.886890422961002,34.205262752974143,20.952326839756964,273.07874322253645,151.78932768808221,98.721831425475486,79.780950107152776,177.87636155487328,92.352585237230912,181.82409081307131,96.809090482247584,266.07517734655369,146.97959041989469,365.36557035385806,221.95044491958109,592.68541402669928,204.08331631958552,406.50092250817835,189.16923639957952,267.01872593509245,155.78189882011324,1067.8543908230185,360.73813216792041,288.41289846329687,181.70030269650076,263.02281269882275,152.76125163142649,31.22498999199199,22.06807649071391,282.27468891135101,175.10853777014987,691.96748478523182,272.69946827964299]
[null,"Zero or negative income",{"$f":"C29","v":12},{"$f":"D29","v":21},{"$f":"E29","v":0},16,0,11,0,11,0,16,0,11,37,40,49,54,0,11,0,16,88,89,{"$f":"Y29","v":0},11,32,33,10,17,5,8,0,11,7,8,0,16,21,26,0,11,0,11,0,11,0,16,8,13,10,15,0,11,0,16,0,16,8,12,12,18,0,16,135,104,0,16,12,20,0,11,14,24,0,18]
[null,"Renter occupied housing units:",{"$f":"C30","v":194},{"$f":"D30","v":106},154,88,133,73,83,62,45,45,255,107,200,79,4450,369,39,27,392,148,2063,256,{"$f":"Y30","v":150},72,260,79,784,169,1694,197,81,38,85,34,380,139,1349,200,45,31,40,20,48,19,1914,180,366,104,208,75,151,72,133,66,571,169,4826,262,888,167,423,174,2530,315,204,103,1224,199,38,26,330,133,204,109]
[null,"Less than 20 percent",{"$f":"C32+C36+C40+C44+C48","v":0},{"$f":"SQRT((D32^2)+(D36^2)+(D40^2)+(D44^2)+(D48^2))","v":35.777087639996637},{"$f":"SQRT((E32^2)+(E36^2)+(E40^2)+(E44^2)+(E48^2))","v":69},84.308955633431964,30.463092423455635,36.918829883949464,0,24.596747752497688,34,61.057350089894989,49,52.801515129776341,43.737855457258078,56.213877290220786,577.03899348310938,190.65151454945223,6,23.409399821439251,10,36.715119501371639,452.6599164936078,155.06772713882151,{"$f":"SQRT((Y32^2)+(Y36^2)+(Y40^2)+(Y44^2)+(Y48^2))","v":32},36.400549446402593,120,62.968245965724662,144.06942770761603,104.58489374665922,306.99837133118473,124.42266674525185,37,38.832975677895199,8.9442719099991592,21.908902300206645,27,54.405882034941776,299.68149759369527,127.15345060201867,17.4928556845359,29.614185789921695,8,23.769728648009426,18,24.596747752497688,298.66034219494225,114.3109793501919,156.90124282490564,105.78752289377042,60,44.77722635447622,44.384682042344295,58.352377843580634,45.188494110780013,50.099900199501398,34.014702703389901,58.821764679410968,1216.4559178202883,233.69424468736923,139.17255476565774,114.8607853011636,112.14722466472365,98.356494447494413,463.12417341356735,162.61611236282829,13,37.735924528226413,207.07728026029315,114.44649404852908,5.3851648071345037,20.591260281974002,78.644770964127048,84.077345343439575,104.48923389517219,89.649316784903604]
[null,"20 to 29 percent",{"$f":"C33+C37+C41+C45+C49","v":95},{"$f":"SQRT((D33^2)+(D37^2)+(D41^2)+(D45^2)+(D49^2))","v":93.391648448884339},29.154759474226502,44.237992721189329,33.241540277189323,52.611785751863621,8,25.059928172283335,0,35.777087639996637,32.310988842807021,42.01190307520001,13.601470508735444,28.653097563788805,787.77154048619957,277.4941440823572,0,24.596747752497688,85.287748240881584,105.79697538209682,262.40998456613653,184.62394210935915,{"$f":"SQRT((Y33^2)+(Y37^2)+(Y41^2)+(Y45^2)+(Y49^2))","v":57.271284253105414},66.05300901548695,18.357559750685819,29.257477676655586,138.60014430006919,149.02684321960257,330.47692809029803,147.5466028073842,9.2195444572928871,22.956480566497994,22.293496809607955,33.346664001066131,57.982756057296896,93.364875622473789,305.62395194094324,130.22288585344742,0,24.596747752497688,6,23.086792761230392,10.770329614269007,24.103941586387901,393.04834308262895,183.54835875049386,42.01190307520001,55.776339069537364,21.840329667841555,31.496031496047245,0,24.596747752497688,37,52.801515129776341,141.18427674496903,122.3396910246221,692.2651226228287,254.21841003357724,104.74254150057655,89.2972563968233,21,46.690470119715009,419.39837863301284,207.66078108299604,23.600847442411894,48.176757881783615,176.17037208338976,129.46428078817723,12.041594578792296,24.657656011875904,69.892775020026207,69.296464556281663,11,40.70626487409524]
[null,"30 percent or more",{"$f":"C34+C38+C42+C46+C50","v":99},{"$f":"SQRT((D34^2)+(D38^2)+(D42^2)+(D46^2)+(D50^2))","v":95.068396431201052},34.885527085024819,53.113086899558006,37.12142238654117,58.54912467321779,35.791060336346561,55.785302723925412,11,37.215588131856791,113.45483682946268,100.53854982045445,42.43819034784589,48.114446894877631,1147.1272815167461,404.67517838384902,8.1240384046359608,20.880613017821101,133.16155601373845,120.22063050907694,456.706689243764,207.90382391865717,{"$f":"SQRT((Y34^2)+(Y38^2)+(Y42^2)+(Y46^2)+(Y50^2))","v":12.806248474865697},28,50.47771785649585,63.529520697074361,175.45939701252823,168.70981002893697,296.63108400840258,138.70472234210339,7.810249675906654,22.203603311174518,11.090536506409418,19.05255888325765,152.55818562109343,161.22654868228122,272.76363393971712,139.29106216839614,14.866068747318506,29.614185789921695,12.529964086141668,18.654758106177631,6.7082039324993694,20.904544960366874,440.42479494233748,223.72080815158878,62.20932405998316,57.23635208501674,47.212286536451508,51.536394906900505,43.783558557979269,47.434164902525687,17.204650534085253,37.868192457522973,151.9341962824696,164.78774226258457,886.37181814405631,320.90652844714765,299.46953100440788,175.43089807670711,173.11845655504212,165.19685227025363,708.02966039566445,286.49432804158619,82.903558427850371,104.15853301578321,289.13491660468821,142.36923825040296,2,22.360679774997898,57.7408001330082,66.738294853854342,29.8496231131986,52.592775169218825]
[null,"Zero or negative income",{"$f":"C51","v":0},{"$f":"D51","v":16},{"$f":"E51","v":0},16,0,11,0,11,0,16,0,11,0,11,0,24,0,11,20,31,28,33,{"$f":"Y51","v":0},11,0,11,0,16,39,33,0,11,0,11,19,30,0,21,0,11,0,11,0,11,16,25,0,11,0,11,0,11,0,16,13,22,75,47,0,18,0,16,20,30,0,16,0,16,4,5,0,16,0,18]
[null,"No cash rent",{"$f":"C52","v":0},{"$f":"D52","v":16},0,16,0,11,20,30,0,16,0,11,65,57,83,62,19,19,0,16,130,65,{"$f":"Y52","v":32},31,21,22,66,72,24,23,20,21,19,13,0,16,112,68,0,11,3,5,7,6,7,12,11,16,40,31,10,16,0,16,62,89,100,66,6,11,17,26,101,89,27,42,86,58,8,13,48,77,0,18]
[]
[]
[]
[]
[]
[]
[]
[]
[]
[]
[]
[]
[]
[]
[]
[]
[]
[]
[]
[]
[]
[]
[]
[null,"B25106. TENURE BY HOUSING COSTS AS A PERCENTAGE OF HOUSEHOLD INCOME IN THE PAST 12 MONTHS"]
[null,"Universe:  OCCUPIED HOUSING UNITS"]
[null,"Data Set: 2010-2014 American Community Survey 5-Year Estimates"]
[]
[null,null,"Atkinson",null,"Auburn",null,"Brentwood",null,"Candia",null,"Chester",null,"Danville",null,"Deerfield",null,"Derry",null,"East Kingston",null,"Epping",null,"Exeter",null,"Fremont",null,"Greenland",null,"Hampstead",null,"Hampton",null,"Hampton Falls",null,"Kensington",null,"Kingston",null,"Londonderry",null,"New Castle",null,"Newfields",null,"Newington",null,"Newmarket",null,"Newton",null,"North Hampton",null,"Northwood",null,"Nottingham",null,"Plaistow",null,"Portsmouth",null,"Raymond",null,"Rye",null,"Salem",null,"Sandown",null,"Seabrook",null,"South Hampton",null,"Stratham",null,"Windham"]
[null,null,"Estimate","Margin of Error","Estimate","Margin of Error","Estimate","Margin of Error","Estimate","Margin of Error","Estimate","Margin of Error","Estimate","Margin of Error","Estimate","Margin of Error","Estimate","Margin of Error","Estimate","Margin of Error","Estimate","Margin of Error","Estimate","Margin of Error","Estimate","Margin of Error","Estimate","Margin of Error","Estimate","Margin of Error","Estimate","Margin of Error","Estimate","Margin of Error","Estimate","Margin of Error","Estimate","Margin of Error","Estimate","Margin of Error","Estimate","Margin of Error","Estimate","Margin of Error","Estimate","Margin of Error","Estimate","Margin of Error","Estimate","Margin of Error","Estimate","Margin of Error","Estimate","Margin of Error","Estimate","Margin of Error","Estimate","Margin of Error","Estimate","Margin of Error","Estimate","Margin of Error","Estimate","Margin of Error","Estimate","Margin of Error","Estimate","Margin of Error","Estimate","Margin of Error","Estimate","Margin of Error","Estimate","Margin of Error","Estimate","Margin of Error"]
[null,"Total:",2597,115,1830,82,1400,111,1466,88,1612,80,1537,101,1540,71,12934,350,882,46,2604,154,6248,214,1608,79,1397,55,3447,156,6618,217,902,46,746,53,2442,126,8750,224,451,65,574,71,314,47,3816,203,1747,101,1735,82,1676,118,1824,108,2949,182,10325,302,3864,150,2315,152,11093,285,2130,134,3837,258,306,49,2781,123,4987,197]
[null,"Owner occupied housing units:",2395,123,1660,73,1148,138,1427,91,1487,100,1340,101,1431,108,8244,408,804,59,2236,215,4262,269,1416,112,1206,91,2758,200,4694,303,776,63,692,57,2067,180,7591,258,347,60,523,62,222,38,2036,198,1387,125,1581,105,1460,121,1748,106,2281,256,5452,291,2954,205,1950,183,8451,334,1956,152,2419,259,254,41,2584,163,4611,247]
[null,"Less than $20,000:",108,62,73,39,33,28,83,44,36,29,63,47,42,26,528,187,40,21,78,58,256,114,61,43,38,28,234,121,212,89,47,26,14,10,140,85,325,114,0,11,5,6,2,4,151,64,57,46,83,46,94,56,13,15,53,48,297,109,199,99,146,76,494,148,31,34,264,160,2,4,65,55,175,106]
[null,"Less than 20 percent",0,15,0,15,0,11,0,11,0,11,20,33,0,11,0,23,0,11,0,15,8,14,0,11,0,11,13,21,15,23,0,11,0,11,0,15,58,81,0,11,0,11,0,11,19,23,0,11,0,11,0,11,0,11,0,15,0,20,24,38,0,15,24,27,0,15,0,15,0,11,0,15,0,17]
[null,"20 to 29 percent",0,15,15,17,0,11,0,11,6,10,0,11,0,11,0,23,0,11,0,15,0,17,0,11,10,16,0,15,24,25,11,14,0,11,0,15,0,20,0,11,0,11,0,11,17,19,0,11,9,14,15,17,0,11,17,28,9,14,0,17,0,15,17,18,0,15,0,15,0,11,0,15,0,17]
[null,"30 percent or more",108,62,58,36,33,28,83,44,30,26,43,34,42,26,528,187,40,21,78,58,248,113,61,43,28,23,221,114,173,85,36,23,14,10,140,85,267,77,0,11,5,6,2,4,115,60,57,46,74,45,79,56,13,15,36,38,288,107,175,97,146,76,453,142,31,34,264,160,2,4,65,55,175,106]
[null,"$20,000 to $34,999:",95,67,54,38,59,37,84,44,94,49,73,44,81,49,586,162,84,32,304,151,357,119,68,41,73,38,201,69,337,88,33,18,37,17,156,111,446,104,22,19,31,17,13,9,98,65,15,17,108,51,206,86,93,48,194,103,365,99,337,137,184,76,726,169,159,79,332,135,17,13,225,112,272,154]
[null,"Less than 20 percent",14,21,12,19,7,11,0,11,0,11,0,11,9,13,31,34,0,11,58,94,63,43,12,19,0,11,28,27,34,21,4,6,5,7,0,15,0,20,3,4,0,11,0,11,33,54,0,11,20,30,0,11,12,20,0,15,6,10,14,23,0,15,10,15,0,15,38,40,0,11,0,15,16,25]
[null,"20 to 29 percent",16,25,8,13,0,11,28,26,9,13,10,17,17,20,28,23,14,13,72,39,61,42,0,11,21,23,49,43,63,38,0,11,3,4,53,73,36,28,0,11,8,12,4,5,0,15,0,11,15,16,80,62,26,23,39,31,68,44,30,36,66,56,172,80,23,19,40,38,0,11,32,39,44,48]
[null,"30 percent or more",65,59,34,29,52,35,56,39,85,49,63,39,55,42,527,159,70,31,174,128,233,95,56,37,52,30,124,48,240,86,29,17,29,16,103,69,410,101,19,19,23,14,9,8,65,38,15,17,73,40,126,72,55,38,155,100,291,96,293,123,118,64,544,148,136,77,254,136,17,13,193,107,212,138]
[null,"$35,000 to $49,999:",229,104,135,72,7,11,78,41,48,31,86,61,135,60,794,184,55,28,134,105,506,129,127,52,64,36,165,85,434,111,46,25,49,30,268,110,630,155,30,22,61,31,25,14,139,58,169,88,149,73,141,60,139,62,357,131,617,176,260,109,68,57,964,205,215,96,357,183,24,11,189,108,274,111]
[null,"Less than 20 percent",35,39,12,19,0,11,33,29,8,12,53,58,28,26,36,39,3,6,56,52,135,66,0,11,28,25,8,13,75,49,4,6,0,11,80,61,50,36,6,6,6,7,3,6,32,33,11,16,26,28,22,25,23,20,46,50,106,63,10,17,18,29,168,74,12,18,191,140,0,11,30,35,0,17]
[null,"20 to 29 percent",33,38,34,28,0,11,11,17,23,21,20,21,27,20,182,78,12,12,0,15,168,73,25,21,18,19,33,26,111,50,13,12,11,9,83,58,155,75,9,14,12,10,4,6,46,28,65,40,67,62,28,22,27,26,53,52,107,62,132,66,14,23,296,128,11,18,73,68,5,5,16,25,105,66]
[null,"30 percent or more",161,96,89,60,7,11,34,28,17,19,13,15,80,48,576,171,40,23,78,89,203,93,102,51,18,18,124,78,248,81,29,22,38,29,105,76,425,118,15,18,43,30,18,13,61,41,93,77,56,33,91,50,89,53,258,103,404,147,118,86,36,42,500,156,192,94,93,64,19,10,143,96,169,89]
[null,"$50,000 to $74,999:",415,115,181,69,164,60,230,90,235,86,210,93,300,92,1619,269,138,45,465,135,634,158,225,74,260,77,346,108,811,171,103,41,77,27,347,122,1124,175,39,25,63,31,31,16,469,148,213,88,231,76,228,92,337,118,523,156,833,181,699,158,278,138,1211,212,415,149,503,169,67,31,334,110,447,153]
[null,"Less than 20 percent",125,73,56,36,67,48,42,29,57,42,33,28,85,42,244,81,10,11,82,84,195,84,55,56,67,37,144,67,268,87,26,19,14,13,128,81,214,94,17,15,17,17,17,12,49,36,44,34,108,45,96,67,111,67,85,60,290,92,235,94,111,82,339,104,26,31,262,115,22,12,85,55,77,57]
[null,"20 to 29 percent",112,64,28,24,41,30,108,72,26,24,43,34,55,39,476,173,38,18,86,58,176,76,20,21,15,18,92,56,326,129,38,30,16,15,36,43,312,109,11,14,12,9,4,4,149,117,69,39,71,43,63,46,51,37,50,34,169,71,130,64,109,99,194,88,117,101,123,96,6,6,121,70,69,87]
[null,"30 percent or more",178,86,97,62,56,35,80,44,152,80,134,82,160,68,899,216,90,45,297,93,263,115,150,62,178,63,110,64,217,81,39,25,47,21,183,92,598,121,11,15,34,27,10,11,271,89,100,72,52,46,69,45,175,92,388,141,374,145,334,122,58,51,678,177,272,120,118,108,39,27,128,69,301,129]
[null,"$75,000 or more:",1548,137,1217,100,885,126,946,78,1074,98,908,107,873,100,4691,357,473,55,1232,189,2476,243,935,116,751,99,1794,153,2866,253,547,60,511,56,1143,168,5035,229,248,59,363,49,149,37,1167,159,933,122,1010,93,791,125,1157,127,1154,161,3291,211,1445,178,1252,202,4999,319,1136,157,942,183,144,33,1771,178,3443,221]
[null,"Less than 20 percent",834,174,747,112,506,115,584,97,490,108,412,100,403,94,2377,313,232,48,619,177,1398,184,384,94,455,85,805,153,1710,227,297,58,262,43,659,163,2296,232,180,53,191,43,86,25,540,127,436,96,662,117,451,107,625,109,618,151,1792,249,650,169,629,158,2756,287,561,131,533,173,64,21,1126,179,1600,234]
[null,"20 to 29 percent",422,138,341,102,280,82,249,71,423,97,390,102,355,102,1654,259,155,43,419,139,610,145,391,92,235,80,688,131,846,144,152,39,160,46,328,132,1997,236,38,27,122,38,39,21,482,110,303,94,183,68,236,71,354,93,424,133,1037,172,609,150,256,112,1614,235,410,135,298,100,51,23,360,115,1174,195]
[null,"30 percent or more",292,116,129,56,99,46,113,55,161,62,106,52,115,58,660,163,86,35,194,96,468,132,160,62,61,39,301,107,310,106,98,35,89,24,156,85,742,180,30,21,50,22,24,19,145,73,194,73,165,68,104,60,178,71,112,81,462,129,186,101,367,151,629,180,165,102,111,72,29,14,285,101,669,163]
[null,"Zero or negative income",0,15,0,15,0,11,6,11,0,11,0,11,0,11,26,32,14,17,23,34,33,34,0,11,20,27,18,28,34,39,0,11,4,5,13,20,31,24,8,13,0,11,2,5,12,18,0,11,0,11,0,11,9,14,0,15,49,78,14,21,22,36,57,39,0,15,21,35,0,11,0,15,0,17]
[null,"Renter occupied housing units:",202,108,170,69,252,69,39,39,125,71,197,68,109,71,4690,381,78,39,368,168,1986,226,192,77,191,85,689,159,1924,278,126,46,54,22,375,142,1159,205,104,45,51,32,92,33,1780,197,360,105,154,72,216,99,76,39,668,179,4873,295,910,166,365,177,2642,297,174,100,1418,222,52,26,197,101,376,161]
[null,"Less than $20,000:",64,61,24,26,46,33,0,11,19,24,35,38,0,11,1045,252,16,16,88,68,393,128,9,15,7,11,130,85,444,133,0,11,8,7,66,55,126,80,0,11,0,11,2,3,408,180,106,83,26,25,7,11,0,11,55,71,768,173,140,89,11,20,412,128,45,56,302,131,9,14,0,15,26,29]
[null,"Less than 20 percent",24,39,0,15,0,11,0,11,0,11,0,11,0,11,45,50,0,11,0,15,35,40,0,11,0,11,0,15,28,27,0,11,0,11,0,15,0,20,0,11,0,11,0,11,41,67,0,11,0,11,0,11,0,11,0,15,49,79,0,17,0,15,18,28,0,15,28,46,0,11,0,15,0,17]
[null,"20 to 29 percent",0,15,0,15,0,11,0,11,0,11,0,11,0,11,130,60,8,11,30,43,27,25,0,11,0,11,29,26,8,10,0,11,0,11,12,20,0,20,0,11,0,11,0,11,57,45,5,9,0,11,0,11,0,11,42,69,164,96,18,20,0,15,46,43,0,15,15,25,0,11,0,15,0,17]
[null,"30 percent or more",40,47,24,26,46,33,0,11,19,24,35,38,0,11,870,235,8,11,58,52,331,122,9,15,7,11,101,79,408,132,0,11,8,7,54,55,126,80,0,11,0,11,2,3,310,165,101,85,26,25,7,11,0,11,13,21,555,147,122,88,11,20,348,128,45,56,259,122,9,14,0,15,26,29]
[null,"$20,000 to $34,999:",57,87,0,15,80,58,23,32,65,63,8,12,20,23,828,219,6,8,11,17,381,144,14,17,33,35,197,128,375,121,22,32,7,8,62,68,208,93,0,11,12,11,10,9,379,114,32,39,40,50,12,19,21,25,168,112,896,193,160,98,20,33,335,113,38,47,313,179,4,5,26,30,115,132]
[null,"Less than 20 percent",0,15,0,15,0,11,0,11,0,11,0,11,0,11,12,17,0,11,0,15,11,16,0,11,0,11,0,15,0,17,0,11,0,11,10,17,0,20,0,11,0,11,0,11,12,18,0,11,0,11,0,11,0,11,25,23,72,59,0,17,0,15,0,20,0,15,43,67,0,11,0,15,0,17]
[null,"20 to 29 percent",57,87,0,15,9,14,0,11,0,11,0,11,0,11,87,51,0,11,0,15,51,34,0,11,0,11,56,65,50,35,19,31,3,4,12,20,0,20,0,11,0,11,2,4,109,64,9,15,0,11,12,19,0,11,0,15,114,86,30,37,0,15,31,37,0,15,0,15,0,11,0,15,0,17]
[null,"30 percent or more",0,15,0,15,71,58,23,32,65,63,8,12,20,23,729,215,6,8,11,17,319,141,14,17,33,35,141,100,325,118,3,6,4,5,40,64,208,93,0,11,12,11,8,9,258,94,23,37,40,50,0,11,21,25,143,108,710,163,130,93,20,33,304,109,38,47,270,164,4,5,26,30,115,132]
[null,"$35,000 to $49,999:",0,15,76,46,15,16,0,11,10,16,56,40,49,53,861,209,10,11,0,15,156,99,30,35,21,22,118,95,315,113,17,27,0,11,90,77,251,127,15,20,8,13,11,10,211,96,148,94,35,54,78,54,13,21,161,113,690,165,152,92,57,87,590,168,38,60,201,98,0,11,51,45,55,68]
[null,"Less than 20 percent",0,15,0,15,0,11,0,11,0,11,0,11,0,11,16,27,0,11,0,15,36,43,0,11,11,17,0,15,18,28,0,11,0,11,0,15,40,60,0,11,8,13,0,11,0,15,0,11,0,11,0,11,13,21,0,15,15,24,0,17,0,15,35,37,0,15,9,15,0,11,0,15,0,17]
[null,"20 to 29 percent",0,15,65,41,0,11,0,11,0,11,19,30,9,15,357,141,0,11,0,15,75,85,0,11,0,11,59,62,77,51,17,27,0,11,42,49,88,70,0,11,0,11,3,5,89,49,80,74,35,54,30,36,0,11,91,87,220,90,75,74,0,15,207,87,38,60,121,76,0,11,40,48,0,17]
[null,"30 percent or more",0,15,11,18,15,16,0,11,10,16,37,28,40,51,488,167,10,11,0,15,45,29,30,35,10,15,59,77,220,113,0,11,0,11,48,63,123,86,15,20,0,11,8,8,122,77,68,74,0,11,48,50,0,11,70,77,455,134,77,52,57,87,348,158,0,15,71,57,0,11,11,18,55,68]
[null,"$50,000 to $74,999:",48,56,46,44,21,33,16,26,0,11,27,33,40,47,1020,242,10,11,140,124,321,133,93,65,70,60,109,76,307,113,10,10,10,9,73,74,260,113,17,18,22,22,32,25,400,132,58,65,27,24,67,65,9,14,37,37,1022,195,205,105,69,55,564,163,31,38,249,114,0,11,59,62,28,31]
[null,"Less than 20 percent",20,32,36,43,0,11,16,26,0,11,27,33,31,44,258,123,6,9,46,70,42,43,0,11,0,11,19,29,71,71,0,11,2,3,0,15,58,45,0,11,0,11,14,19,69,62,0,11,0,11,38,47,0,11,13,22,226,99,27,34,0,15,135,78,0,15,139,79,0,11,0,15,0,17]
[null,"20 to 29 percent",0,15,10,15,21,33,0,11,0,11,0,11,0,11,544,196,0,11,83,102,155,89,48,46,49,59,57,55,174,71,5,7,2,4,73,74,119,78,4,8,9,15,18,17,242,118,58,65,19,21,29,44,0,11,24,30,597,193,158,102,56,51,378,149,31,38,72,68,0,11,34,55,0,17]
[null,"30 percent or more",28,45,0,15,0,11,0,11,0,11,0,11,9,13,218,129,4,6,11,16,124,98,45,41,21,21,33,43,62,43,5,7,6,8,0,15,83,63,13,20,13,16,0,11,89,81,0,11,8,12,0,11,9,14,0,15,199,96,20,24,13,22,51,77,0,15,38,36,0,11,25,32,28,31]
[null,"$75,000 or more:",33,36,24,28,29,26,0,11,31,46,39,44,0,11,819,206,36,34,83,81,571,163,46,28,60,45,135,85,374,138,62,31,17,14,72,73,236,100,61,38,9,12,29,18,286,101,16,26,8,13,22,35,9,13,191,126,1354,209,207,98,139,112,580,179,22,32,326,167,28,20,51,45,106,58]
[null,"Less than 20 percent",15,24,13,20,23,24,0,11,0,11,39,44,0,11,384,151,30,34,83,81,397,125,27,32,41,39,120,82,203,106,36,25,8,12,72,73,125,74,49,35,0,11,16,11,236,91,0,11,0,11,22,35,7,10,179,124,957,204,114,79,98,107,466,168,22,32,261,156,23,19,40,42,59,48]
[null,"20 to 29 percent",18,27,11,19,6,10,0,11,31,46,0,11,0,11,403,176,6,10,0,15,158,104,19,21,10,15,15,23,171,97,26,23,9,9,0,15,111,66,9,14,9,12,10,14,43,43,16,26,8,13,0,11,2,7,12,21,323,121,81,64,21,31,92,62,0,15,65,67,3,4,0,15,38,35]
[null,"30 percent or more",0,15,0,15,0,11,0,11,0,11,0,11,0,11,32,32,0,11,0,15,16,26,0,11,9,13,0,15,0,17,0,11,0,11,0,15,0,20,3,5,0,11,3,5,7,11,0,11,0,11,0,11,0,11,0,15,74,59,12,19,20,32,22,28,0,15,0,15,2,3,11,19,9,16]
[null,"Zero or negative income",0,15,0,15,0,11,0,11,0,11,0,11,0,11,52,74,0,11,0,15,27,43,0,11,0,11,0,15,0,17,0,11,0,11,0,15,0,20,0,11,0,11,0,11,58,56,0,11,0,11,0,11,0,11,42,66,40,38,12,18,0,15,0,20,0,15,0,15,0,11,0,15,0,17]
[null,"No cash rent",0,15,0,15,61,47,0,11,0,11,32,34,0,11,65,48,0,11,46,40,137,87,0,11,0,11,0,15,109,51,15,19,12,12,12,18,78,57,11,14,0,11,8,8,38,38,0,11,18,20,30,27,24,28,14,25,103,79,34,43,69,81,161,90,0,15,27,30,11,9,10,18,46,46]
[]
[]
[]
[]
[]
[]
[null,"Calculated B25106. TENURE BY HOUSING COSTS AS A PERCENTAGE OF HOUSEHOLD INCOME IN THE PAST 12 MONTHS"]
[null,"Universe:  OCCUPIED HOUSING UNITS"]
[null,"Data Set: 2010-2014 American Community Survey 5-Year Estimates"]
[]
[null,null,"Atkinson",null,"Auburn",null,"Brentwood",null,"Candia",null,"Chester",null,"Danville",null,"Deerfield",null,"Derry",null,"East Kingston",null,"Epping",null,"Exeter",null,"Fremont",null,"Greenland",null,"Hampstead",null,"Hampton",null,"Hampton Falls",null,"Kensington",null,"Kingston",null,"Londonderry",null,"New Castle",null,"Newfields",null,"Newington",null,"Newmarket",null,"Newton",null,"North Hampton",null,"Northwood",null,"Nottingham",null,"Plaistow",null,"Portsmouth",null,"Raymond",null,"Rye",null,"Salem",null,"Sandown",null,"Seabrook",null,"South Hampton",null,"Stratham",null,"Windham"]
[null,null,"Estimate","Margin Of Error","Estimate","Margin Of Error","Estimate","Margin Of Error","Estimate","Margin Of Error","Estimate","Margin Of Error","Estimate","Margin Of Error","Estimate","Margin Of Error","Estimate","Margin Of Error","Estimate","Margin Of Error","Estimate","Margin Of Error","Estimate","Margin Of Error","Estimate","Margin Of Error","Estimate","Margin Of Error","Estimate","Margin Of Error","Estimate","Margin Of Error","Estimate","Margin Of Error","Estimate","Margin Of Error","Estimate","Margin Of Error","Estimate","Margin Of Error","Estimate","Margin Of Error","Estimate","Margin Of Error","Estimate","Margin Of Error","Estimate","Margin Of Error","Estimate","Margin Of Error","Estimate","Margin Of Error","Estimate","Margin Of Error","Estimate","Margin Of Error","Estimate","Margin Of Error","Estimate","Margin Of Error","Estimate","Margin Of Error","Estimate","Margin Of Error","Estimate","Margin Of Error","Estimate","Margin Of Error","Estimate","Margin Of Error","Estimate","Margin Of Error","Estimate","Margin Of Error","Estimate","Margin Of Error"]
[null,"Total:",2597,115,1830,82,1400,111,1466,88,1612,80,1537,101,1540,71,12934,350,882,46,2604,154,6248,214,1608,79,1397,55,3447,156,6618,217,902,46,746,53,2442,126,8750,224,451,65,574,71,314,47,3816,203,1747,101,1735,82,1676,118,1824,108,2949,182,10325,302,3864,150,2315,152,11093,285,2130,134,3837,258,306,49,2781,123,4987,197]
[null,"Owner occupied housing units:",2395,123,1660,73,1148,138,1427,91,1487,100,1340,101,1431,108,8244,408,804,59,2236,215,4262,269,1416,112,1206,91,2758,200,4694,303,776,63,692,57,2067,180,7591,258,347,60,523,62,222,38,2036,198,1387,125,1581,105,1460,121,1748,106,2281,256,5452,291,2954,205,1950,183,8451,334,1956,152,2419,259,254,41,2584,163,4611,247]
[null,"Less than 20 percent",1008,194.40164608356588,749.28832901627391,121.60180919706745,510.46449435783484,126.0634760745554,586.43754995736754,106.45656391223605,493.36903024004255,117.53297409663384,417.1834129013281,123.92739810066215,412.91524554077682,107.54533927604673,2389.9627612161657,328.23162553294588,232.23479498128611,51.990383726223833,629.59113716760658,223.94195676558692,1419.396702828353,217.51551668789057,388.10436740650061,112.13830746002903,460.75807100907087,97.267671916212734,818.39965786894118,170.98830369355676,1732.8964192934325,249.9379923100928,298.18953703978281,62.593929418115302,262.42141680891825,48.052055106935853,676.06582519751726,193.13466804279341,2307.2225727051127,266.30245962063515,180.9253989908548,56.630380539071076,191.84889887617285,49.28488612140643,87.715449038353555,32.357379374726875,544.49517904201866,148.18569431628683,438.35259780227148,104.25929215182693,671.55342304242629,132.35935932150775,461.62863862633134,129.634100452003,635.3101604728198,131.49524706239384,625.511790456423,171.32133550728585,1818.4157940361165,273.74075326848941,691.80705402590399,199.14567532336724,638.97261287163167,181.60121144970373,2781.9699854599439,315.61844052589828,561.73036236258406,137.46272221951665,625.0263994424555,254.12398548739944,67.675697262754525,30.789608636681304,1129.6021423492432,191.67941986556616,1601.9316464818342,243.32694055529487]
[null,"20 to 29 percent",583,159.48040632002414,344.25281407709656,110.55315463612968,282.98586537139977,89.370017343625932,273.07508125056012,106.35318518972528,424.55977199918505,103.41663309158736,393,111.40466776576285,360.64941425156923,113.34019587066187,1730.9534944648283,322.72588988180047,160.65179737556628,51.058789644878971,433.75223342364473,157.02229141112417,659.56121778042711,184.8864516399187,392.30855203525704,97.918333319149184,237.30781698039362,88.713020464867498,696.63333253584699,151.81238421156556,915.89191502054439,204.80722643500644,157.60076141948045,53.684262125878192,161.20173696334663,50.586559479766954,344.35156453833633,167.90175698902021,2027.4797162980447,272.73796948719848,40.570925550201586,36.918829883949464,123.43419299367578,43.474130238568314,39.610604640676719,25.278449319529077,506.88262941237195,164.799878640732,317.48228297024701,110.44908329180464,208.14658296498649,103.77379245262264,258.98648613392942,108.5080642164443,359.61368160847275,106.50821564555478,432.31354362314397,152.62372030585547,1058.3402099514126,201.49689823915404,637.26368168914189,180.38015411901608,286.30228780084872,161.97221984031705,1661.3611889050496,293.38882050957568,427.12878619919775,171.27755252805312,332.95945699138809,159.71537183377185,51.594573358057723,28.844410203711913,381.47214839356229,143.16424134538624,1181.5235926548398,229.22259923489219]
[null,"30 percent or more",804,193.37269714207329,196.19123323940855,112.76967677527502,129.53377937819926,73.966208500909389,174.21251390184347,95.927055620403564,239.66434862114974,116.97008164483771,187.56065685532241,111.04053313993049,223.63810051062407,112.83616441549225,1460.1677985765882,403.38071347053767,153.60989551457939,71.979163651712426,410.23042305514105,213.38697242334172,667.2293458774127,247.16795908855175,255.65797464581465,116.21961968617863,198.03282556182447,85.105816487476346,426.9590144264435,192.16919628285902,540.57561913205075,197.43100060527476,118.75605247733692,56.142675390472796,112.29870880824944,47.053161424074368,314.73639764094651,182.89614539404596,1152.4677869684688,277.65986386224421,40.087404505654888,38.366652186501753,77.839578621675486,48.425200051213004,32.939338184001208,27.03701166919155,340.05440741151995,141.33294025102569,244.45654010478017,137.28437638711844,209.45166506857854,107.02336193560731,214.41781642391567,128.23805987303459,270.96863287103918,134.10070842467613,504.9485122267418,220.21580324763252,827.14025412864532,282.73662656260154,525.88021449756025,238.78651553217992,417.83848554196152,192.45259156477991,1267.4659758746977,360.73951821224136,396.90049130733007,201.80436070610565,411.22499924007536,255.02941006872129,54.918120870983927,34.785054261852174,399.41457159197387,196.6011190202131,801.43121975625581,285.32612919254348]
[null,"Zero or negative income",0,15,0,15,0,11,6,11,0,11,0,11,0,11,26,32,14,17,23,34,33,34,0,11,20,27,18,28,34,39,0,11,4,5,13,20,31,24,8,13,0,11,2,5,12,18,0,11,0,11,0,11,9,14,0,15,49,78,14,21,22,36,57,39,0,15,21,35,0,11,0,15,0,17]
[null,"Renter occupied housing units:",202,108,170,69,252,69,39,39,125,71,197,68,109,71,4690,381,78,39,368,168,1986,226,192,77,191,85,689,159,1924,278,126,46,54,22,375,142,1159,205,104,45,51,32,92,33,1780,197,360,105,154,72,216,99,76,39,668,179,4873,295,910,166,365,177,2642,297,174,100,1418,222,52,26,197,101,376,161]
[null,"Less than 20 percent",59,59.757844673314651,38.275318418009277,54.0740233383831,23,32.557641192199412,16,34.058772731852805,0,24.596747752497688,47.434164902525687,58.20652884342099,31,49.193495504995376,465.23649899809021,203.58781888904846,30.594117081556711,40,94.894678459858852,110.16351483136329,402.51086941845432,145.53006562219369,27,38.832975677895199,42.449970553582247,46.61544808322666,121.49485585818027,90.774445743281731,217.61893299986562,134.45817193462062,36,33.301651610693426,8.2462112512353212,22.715633383201094,72.691127381544987,79.328431221095002,143.48867551134481,109.09170454255447,49,41.340053217188775,8,25.553864678361276,21.2602916254693,29.068883707497267,249.56361914349614,131.0076333653883,0,24.596747752497688,0,24.596747752497688,43.908996800200299,61.619802012015583,14.7648230602334,30.066592756745816,181.20430458463176,129.76517252329302,987.28668582129683,248.42503899566967,117.15374513859982,90.906545418908095,98,111.12605455067681,486.75455827346906,191.99218734104781,22,43.863424398922618,300.25988743087214,193.40889328053143,23,29.068883707497267,40,51.61395160225576,59,58.821764679410968]
[null,"20 to 29 percent",75,94.725920423081661,66.678332312678606,52.124850119688595,23.622023622035432,40.336088060197412,0,24.596747752497688,31,50.990195135927848,19,37.20215047547655,9,26.627053911388696,781.19331794377251,308.98867293154939,10,24.166091947189145,88.255311454892052,113.70136322841516,240.7155998268496,166.56230065654111,51.623637996561229,54.037024344425184,50.009999000199947,63.788713735268246,104.55620498086185,110.90085662428402,260.78726962794792,135.55810562264435,36.755951898978211,48.877397639399746,9.6953597148326587,18.841443681416774,85.912746434973201,94.350410703928574,185.00270268296083,127.04329970525797,9.8488578017961039,24.959967948697368,12.727922061357855,27.055498516937366,20.904544960366874,25.436194683953808,288.90136725187023,155.86853434866191,100.62802790475425,103.35859906171329,40.620192023179804,61.384037012891227,43.416586692184822,61.927376821564145,2,23.086792761230392,103.75451797391764,117.881296226331,740.96558624540717,276.77066318524442,195.89282784216476,147.46185947559457,59.808026217222718,65.092242241299388,444.15537821802855,191.91664857432249,49.040799340956916,75.624070242218522,155.80436450882883,125.45517127643643,3,22.360679774997898,52.497618993626752,77.485482511242068,38,48.795491595023407]
[null,"30 percent or more",68,70.064256222413434,26.40075756488817,40.926763859362246,85.918566096042355,70.363342729009119,23,38.832975677895199,68.454364360499326,71.014083110323966,51.555795018600968,51.127292124656869,45.617978911828175,59.506302187247357,1255.0031872469488,383.41100662344058,14.696938456699069,21.517434791350013,60.049979184009715,60.819404798139878,478.51750229223592,214.21017716252419,56.586217403180434,59.506302187247357,41.952353926806062,46.701177715342467,186.15047676543836,155.70484899321536,569.50241439347735,215.06975612577423,5.8309518948453007,21.166010488516726,10.770329614269007,19.493588689617926,82.583291288250308,107.42439201596628,284.88243189077139,163.74980916019413,20.074859899884732,32.664965942122151,17.691806012954132,27.202941017470888,11.874342087037917,17.320508075688775,430.71800519597508,220.61731573020282,123.9112585683803,119.63277142990545,48.373546489791295,59.253691868102194,48.507731342539614,54.626001134990652,22.847319317591726,34.409301068170507,159.74354447050436,135.95587519485872,1031.6137843204694,280.76858798661931,195.59396718712978,141.54151334502538,65.871086221497819,102.79105019407089,581.12735265172296,244.83055364884507,58.898217290508889,77.588658965083297,382.7087665575483,215.75449010391418,10.04987562112089,21.725560982400431,39.281038682804713,53.235326616824658,133.3829074506925,155.26107045875989]
[null,"Zero or negative income",0,15,0,15,0,11,0,11,0,11,0,11,0,11,52,74,0,11,0,15,27,43,0,11,0,11,0,15,0,17,0,11,0,11,0,15,0,20,0,11,0,11,0,11,58,56,0,11,0,11,0,11,0,11,42,66,40,38,12,18,0,15,0,20,0,15,0,15,0,11,0,15,0,17]
[null,"No cash rent",0,15,0,15,61,47,0,11,0,11,32,34,0,11,65,48,0,11,46,40,137,87,0,11,0,11,0,15,109,51,15,19,12,12,12,18,78,57,11,14,0,11,8,8,38,38,0,11,18,20,30,27,24,28,14,25,103,79,34,43,69,81,161,90,0,15,27,30,11,9,10,18,46,46]
[]
[]
[]
[]
[null,"B25106. TENURE BY HOUSING COSTS AS A PERCENTAGE OF HOUSEHOLD INCOME IN THE PAST 12 MONTHS"]
[null,"Universe:  OCCUPIED HOUSING UNITS"]
[null,"Data Set: 2006-2010 American Community Survey 5-Year Estimates"]
[]
[null,null,"Atkinson",null,"Auburn",null,"Brentwood",null,"Candia",null,"Chester",null,"Danville",null,"Deerfield",null,"Derry",null,"East Kingston",null,"Epping",null,"Exeter",null,"Fremont",null,"Greenland",null,"Hampstead",null,"Hampton",null,"Hampton Falls",null,"Kensington",null,"Kingston",null,"Londonderry",null,"New Castle",null,"Newfields",null,"Newington",null,"Newmarket",null,"Newton",null,"North Hampton",null,"Northwood",null,"Nottingham",null,"Plaistow",null,"Portsmouth",null,"Raymond",null,"Rye",null,"Salem",null,"Sandown",null,"Seabrook",null,"South Hampton",null,"Stratham",null,"Windham"]
[null,null,"Estimate","Margin of Error","Estimate","Margin of Error","Estimate","Margin of Error","Estimate","Margin of Error","Estimate","Margin of Error","Estimate","Margin of Error","Estimate","Margin of Error","Estimate","Margin of Error","Estimate","Margin of Error","Estimate","Margin of Error","Estimate","Margin of Error"]
[null,"Total:"]
[null,"Owner occupied housing units:"]
[null,"Less than $20,000:"]
[null,"Less than 20 percent"]
[null,"20 to 29 percent"]
[null,"30 percent or more"]
[null,"$20,000 to $34,999:"]
[null,"Less than 20 percent"]
[null,"20 to 29 percent"]
[null,"30 percent or more"]
[null,"$35,000 to $49,999:"]
[null,"Less than 20 percent"]
[null,"20 to 29 percent"]
[null,"30 percent or more"]
[null,"$50,000 to $74,999:"]
[null,"Less than 20 percent"]
[null,"20 to 29 percent"]
[null,"30 percent or more"]
[null,"$75,000 or more:"]
[null,"Less than 20 percent"]
[null,"20 to 29 percent"]
[null,"30 percent or more"]
[null,"Zero or negative income"]
[null,"Renter occupied housing units:"]
[null,"Less than $20,000:"]
[null,"Less than 20 percent"]
[null,"20 to 29 percent"]
[null,"30 percent or more"]
[null,"$20,000 to $34,999:"]
[null,"Less than 20 percent"]
[null,"20 to 29 percent"]
[null,"30 percent or more"]
[null,"$35,000 to $49,999:"]
[null,"Less than 20 percent"]
[null,"20 to 29 percent"]
[null,"30 percent or more"]
[null,"$50,000 to $74,999:"]
[null,"Less than 20 percent"]
[null,"20 to 29 percent"]
[null,"30 percent or more"]
[null,"$75,000 or more:"]
[null,"Less than 20 percent"]
[null,"20 to 29 percent"]
[null,"30 percent or more"]
[null,"Zero or negative income"]
[null,"No cash rent"]
[]
[]
[]
[]
[]
[]
[null,"Calculated B25106. TENURE BY HOUSING COSTS AS A PERCENTAGE OF HOUSEHOLD INCOME IN THE PAST 12 MONTHS"]
[null,"Universe:  OCCUPIED HOUSING UNITS"]
[null,"Data Set: 2006-2010 American Community Survey 5-Year Estimates"]
[]
[null,null,"Atkinson",null,"Auburn",null,"Brentwood",null,"Candia",null,"Chester",null,"Danville",null,"Deerfield",null,"Derry",null,"East Kingston",null,"Epping",null,"Exeter",null,"Fremont",null,"Greenland",null,"Hampstead",null,"Hampton",null,"Hampton Falls",null,"Kensington",null,"Kingston",null,"Londonderry",null,"New Castle",null,"Newfields",null,"Newington",null,"Newmarket",null,"Newton",null,"North Hampton",null,"Northwood",null,"Nottingham",null,"Plaistow",null,"Portsmouth",null,"Raymond",null,"Rye",null,"Salem",null,"Sandown",null,"Seabrook",null,"South Hampton",null,"Stratham",null,"Windham"]
[null,null,"Estimate","Margin of Error","Estimate","Margin of Error","Estimate","Margin of Error","Estimate","Margin of Error","Estimate","Margin of Error","Estimate","Margin of Error","Estimate","Margin of Error","Estimate","Margin of Error","Estimate","Margin of Error","Estimate","Margin of Error","Estimate","Margin of Error"]
[null,"Total:"]
[null,"Owner occupied housing units:"]
[null,"Less than 20 percent"]
[null,"20 to 29 percent"]
[null,"30 percent or more"]
[null,"Zero or negative income"]
[null,"Renter occupied housing units:"]
[null,"Less than 20 percent"]
[null,"20 to 29 percent"]
[null,"30 percent or more"]
[null,"Zero or negative income"]
[null,"No cash rent"]

{"sheet":"PopComparison","index":69,"n_rows":71,"n_cols":14,"rows_kept":71,"cut":false,"hidden":true,"merged":[[26,13,26,14],[27,3,27,4],[27,5,27,6],[27,7,27,8],[27,9,27,10]]}
[]
[]
[]
[]
[]
[]
[]
[]
[]
[]
[]
[]
[]
[]
[]
[]
[]
[]
[]
[]
[]
[]
[]
[]
[]
[]
[]
[null,null,null,2000,null,2010,null,2020,null,2030,null,null,"2000-2010","2010-2030"]
[null,null,null,"#","%","#","%",null,"%","#","%",null,"% Change","% Change"]
[null,"Atkinson",null,{"$f":"CntyQuery!G118","v":6178},{"$f":"D30/$D$69","v":2.227438085657938E-2},{"$f":"CntyQuery!H118","v":6751},{"$f":"F30/$F$69","v":2.2867459513655777E-2},{"$f":"CntyQuery!I118","v":7358},{"$f":"H30/$H$69","v":2.3461439125568761E-2},{"$f":"CntyQuery!J118","v":7485},{"$f":"J30/$J$69","v":2.3459243286613345E-2},null,{"$f":"(F30-D30)/D30","v":9.2748462285529298E-2},{"$f":"(J30-F30)/F30","v":0.10872463338764628}]
[null,"Auburn",null,{"$f":"CntyQuery!G119","v":4682},{"$f":"D31/$D$69","v":1.688064926683468E-2},{"$f":"CntyQuery!H119","v":4953},{"$f":"F31/$F$69","v":1.6777148121928171E-2},{"$f":"CntyQuery!I119","v":5229},{"$f":"H31/$H$69","v":1.6672990647947684E-2},{"$f":"CntyQuery!J119","v":5320},{"$f":"J31/$J$69","v":1.6673770779530125E-2},null,{"$f":"(F31-D31)/D31","v":5.7881247330200766E-2},{"$f":"(J31-F31)/F31","v":7.4096507167373316E-2}]
[null,"Brentwood",null,{"$f":"CntyQuery!G120","v":3197},1.1526577468191045E-2,{"$f":"CntyQuery!H120","v":4486},1.5195293049660765E-2,{"$f":"CntyQuery!I120","v":5916},1.8863532735371676E-2,{"$f":"CntyQuery!J120","v":6019},1.8864553819923274E-2,null,0.40319049108539257,0.3417298261257245]
[null,"Candia",null,{"$f":"CntyQuery!G121","v":3911},1.4100858454205561E-2,{"$f":"CntyQuery!H121","v":3909},1.3240838281570202E-2,{"$f":"CntyQuery!I121","v":3883},1.2381186208831678E-2,{"$f":"CntyQuery!J121","v":3950},1.2379961387057142E-2,null,-5.1137816415239073E-4,1.0488616014325915E-2]
[null,"Chester",null,{"$f":"CntyQuery!G122","v":3792},1.3671811623203141E-2,{"$f":"CntyQuery!H122","v":4768},1.615050317895286E-2,{"$f":"CntyQuery!I122","v":5842},1.8627579148080008E-2,{"$f":"CntyQuery!J122","v":5944},1.8629491261941179E-2,null,0.25738396624472576,0.24664429530201343]
[null,"Danville",null,{"$f":"CntyQuery!G123","v":4023},1.4504667236325484E-2,{"$f":"CntyQuery!H123","v":4387},1.4859953323419923E-2,{"$f":"CntyQuery!I123","v":4772},1.5215817818322114E-2,{"$f":"CntyQuery!J123","v":4855},1.521638292004112E-2,null,9.0479741486452894E-2,0.10667882379758377]
[null,"Deerfield",null,{"$f":"CntyQuery!G124","v":3678},1.3260791969973932E-2,{"$f":"CntyQuery!H124","v":4280},1.4497515437482853E-2,{"$f":"CntyQuery!I124","v":4935},1.573555342276187E-2,{"$f":"CntyQuery!J124","v":5020},1.5733520547601736E-2,null,0.16367591082109842,0.17289719626168223]
[null,"Derry",null,{"$f":"CntyQuery!G125","v":34021},0.12266052300448156,{"$f":"CntyQuery!H125","v":33109},0.11214912117280836,{"$f":"CntyQuery!I125","v":31876},0.10163860200688092,{"$f":"CntyQuery!J125","v":32429},0.10163791590401926,null,-2.6806972164251493E-2,-2.0538222235645897E-2]
[null,"East Kingston",null,{"$f":"CntyQuery!G126","v":1784},6.4320970294816466E-3,{"$f":"CntyQuery!H126","v":2357},7.9837953005016549E-3,{"$f":"CntyQuery!I126","v":2991},9.5369889133699592E-3,{"$f":"CntyQuery!J126","v":3042},9.5341373517538793E-3,null,0.3211883408071749,0.29062367416207041]
[null,"Epping",null,{"$f":"CntyQuery!G127","v":5476},1.9743365097220571E-2,{"$f":"CntyQuery!H127","v":6411},2.1715787726566019E-2,{"$f":"CntyQuery!I127","v":7429},2.3687827026889142E-2,{"$f":"CntyQuery!J127","v":7558},2.3688037509715917E-2,null,0.17074506939371803,0.17891124629542973]
[null,"Exeter",null,{"$f":"CntyQuery!G128","v":14058},5.0685213027159746E-2,{"$f":"CntyQuery!H128","v":14306},4.8458284076782633E-2,{"$f":"CntyQuery!I128","v":14499},4.6230960299214655E-2,{"$f":"CntyQuery!J128","v":14751},4.6232103903918964E-2,null,1.7641200739792289E-2,3.1105829721795052E-2]
[null,"Fremont",null,{"$f":"CntyQuery!G129","v":3510},1.2655078796794048E-2,{"$f":"CntyQuery!H129","v":4283},1.4507677247368938E-2,{"$f":"CntyQuery!I129","v":5131},1.6360511572885744E-2,{"$f":"CntyQuery!J129","v":5220},1.6360354035553994E-2,null,0.22022792022792023,0.21877188886294655]
[null,"Greenland",null,{"$f":"CntyQuery!G130","v":3208},1.1566237259292109E-2,{"$f":"CntyQuery!H130","v":3549},1.2021421095239869E-2,{"$f":"CntyQuery!I130","v":3913},1.2476843068544517E-2,{"$f":"CntyQuery!J130","v":3981},1.2477120577689743E-2,null,{"$f":"(F42-D42)/D42","v":0.10629675810473815},{"$f":"(J42-F42)/F42","v":0.12172442941673711}]
[null,"Hampstead",null,{"$f":"CntyQuery!G131","v":8297},2.9914298796866155E-2,{"$f":"CntyQuery!H131","v":8523},2.8869701886370641E-2,{"$f":"CntyQuery!I131","v":8726},2.7823391928474179E-2,{"$f":"CntyQuery!J131","v":8878},2.7825138530200837E-2,null,{"$f":"(F43-D43)/D43","v":2.7238760997951066E-2},{"$f":"(J43-F43)/F43","v":4.1652000469318315E-2}]
[null,"Hampton",null,{"$f":"CntyQuery!G132","v":14937},5.3854390879690218E-2,{"$f":"CntyQuery!H132","v":15430},5.2265575514102901E-2,{"$f":"CntyQuery!I132","v":14929},4.7602041955098671E-2,{"$f":"CntyQuery!J132","v":15188},4.7601735075094652E-2,null,3.3005288879962506E-2,-1.5683732987686324E-2]
[null,"Hampton Falls",null,{"$f":"CntyQuery!G133","v":1880},6.7782188427272958E-3,{"$f":"CntyQuery!H133","v":2236},7.5739356350961818E-3,{"$f":"CntyQuery!I133","v":2625},8.3699752248733352E-3,{"$f":"CntyQuery!J133","v":2670},8.3682270641626758E-3,null,0.18936170212765957,0.19409660107334525]
[null,"Kensington",null,{"$f":"CntyQuery!G134","v":1893},6.8250895049376441E-3,{"$f":"CntyQuery!H134","v":2124},7.1945613993489666E-3,{"$f":"CntyQuery!I134","v":2372},7.5632690412950664E-3,{"$f":"CntyQuery!J134","v":2413},7.5627460321440214E-3,null,0.12202852614896989,0.13606403013182675]
[null,"Kingston",null,{"$f":"CntyQuery!G135","v":5862},2.113506322131245E-2,{"$f":"CntyQuery!H135","v":6025},2.040830152122294E-2,{"$f":"CntyQuery!I135","v":6173},1.9682993166911654E-2,{"$f":"CntyQuery!J135","v":6280},1.9682571521700977E-2,null,2.7806209484817469E-2,4.232365145228216E-2]
[null,"Londonderry",null,{"$f":"CntyQuery!G136","v":23236},8.3775900547665663E-2,{"$f":"CntyQuery!H136","v":24129},8.1731436913790589E-2,{"$f":"CntyQuery!I136","v":24991},7.9685352702784568E-2,{"$f":"CntyQuery!J136","v":25425},7.9686207155931096E-2,null,3.8431743845756587E-2,5.3711301753077208E-2]
[null,"New Castle",null,{"$f":"CntyQuery!G137","v":1010},3.6414899101886002E-3,{"$f":"CntyQuery!H137","v":968},3.2788773232437854E-3,{"$f":"CntyQuery!I137","v":915},2.9175342212415622E-3,{"$f":"CntyQuery!J137","v":930},2.9147757189780105E-3,null,-4.1584158415841586E-2,-3.9256198347107439E-2]
[null,"Newfields",null,{"$f":"CntyQuery!G138","v":1551},5.5920305452500192E-3,{"$f":"CntyQuery!H138","v":1680},5.6906135362082225E-3,{"$f":"CntyQuery!I138","v":1816},5.7904285746171336E-3,{"$f":"CntyQuery!J138","v":1847},5.7888072612391241E-3,null,8.3172147001934232E-2,9.9404761904761899E-2]
[null,"Newington",null,{"$f":"CntyQuery!G139","v":775},2.7942125548476885E-3,{"$f":"CntyQuery!H139","v":753},2.5506142814076139E-3,{"$f":"CntyQuery!I139","v":724},2.3085188810698263E-3,{"$f":"CntyQuery!J139","v":736},2.306747235664318E-3,null,-2.838709677419355E-2,-2.2576361221779549E-2]
[null,"Newmarket",null,{"$f":"CntyQuery!G140","v":8027},2.8940831197112767E-2,{"$f":"CntyQuery!H140","v":8936},3.0268644380688495E-2,{"$f":"CntyQuery!I140","v":9909},3.1595460763150424E-2,{"$f":"CntyQuery!J140","v":10081},3.1595541960233682E-2,null,0.11324280553133176,0.12813339301700985]
[null,"Newton",null,{"$f":"CntyQuery!G141","v":4289},1.5463713093860304E-2,{"$f":"CntyQuery!H141","v":4603},1.5591603635218124E-2,{"$f":"CntyQuery!I141","v":4930},1.5719610612809728E-2,{"$f":"CntyQuery!J141","v":5016},1.5720983877842688E-2,null,7.3210538587083235E-2,8.9724092982837275E-2]
[null,"North Hampton",null,{"$f":"CntyQuery!G142","v":4259},1.5355550027221039E-2,{"$f":"CntyQuery!H142","v":4301},1.4568648106685454E-2,{"$f":"CntyQuery!I142","v":4322},1.3780964922629544E-2,{"$f":"CntyQuery!J142","v":4397},1.3780934232630444E-2,null,9.8614698285982624E-3,2.2320390606835619E-2]
[null,"Northwood",null,{"$f":"CntyQuery!G143","v":3640},1.312378541889753E-2,{"$f":"CntyQuery!H143","v":4241},1.4365411908963732E-2,{"$f":"CntyQuery!I143","v":4895},1.5608010943144752E-2,{"$f":"CntyQuery!J143","v":4980},1.5608153850011283E-2,null,0.16510989010989011,0.17425135581230841]
[null,"Nottingham",null,{"$f":"CntyQuery!G144","v":3701},1.3343716987730703E-2,{"$f":"CntyQuery!H144","v":4785},1.6208086768307348E-2,{"$f":"CntyQuery!I144","v":5981},1.9070789264749491E-2,{"$f":"CntyQuery!J144","v":6085},1.907140887094752E-2,null,0.29289381248311269,0.2716823406478579]
[null,"Plaistow",null,{"$f":"CntyQuery!G145","v":7747},2.7931309241812956E-2,{"$f":"CntyQuery!H145","v":7609},2.5773737141076405E-2,{"$f":"CntyQuery!I145","v":7406},2.36144901011093E-2,{"$f":"CntyQuery!J145","v":7535},2.3615951658601409E-2,null,-1.7813347102104041E-2,-9.7253252727033772E-3]
[null,"Portsmouth",null,{"$f":"CntyQuery!G146","v":20784},7.493537256768304E-2,{"$f":"CntyQuery!H146","v":20779},7.038408254099443E-2,{"$f":"CntyQuery!I146","v":21611},6.8908013175138144E-2,{"$f":"CntyQuery!J146","v":21986},6.8907805330591987E-2,null,-2.4056966897613549E-4,5.8087492179604405E-2]
[null,"Raymond",null,{"$f":"CntyQuery!G147","v":9674},3.4878983555608437E-2,{"$f":"CntyQuery!H147","v":10138},3.4340142875046997E-2,{"$f":"CntyQuery!I147","v":10601},3.3801945660526557E-2,{"$f":"CntyQuery!J147","v":10785},3.3801995837825637E-2,null,4.7963613810212941E-2,6.3819293746301048E-2]
[null,"Rye",null,{"$f":"CntyQuery!G148","v":5182},1.8683367044155769E-2,{"$f":"CntyQuery!H148","v":5298},1.7945756258828074E-2,{"$f":"CntyQuery!I148","v":5397},1.7208669062339574E-2,{"$f":"CntyQuery!J148","v":5491},1.7209713411729308E-2,null,2.238517946738711E-2,3.6428841072102681E-2]
[null,"Salem",null,{"$f":"CntyQuery!G149","v":28112},0.10135600431210093,{"$f":"CntyQuery!H149","v":28776},9.7472080427337973E-2,{"$f":"CntyQuery!I149","v":29351},9.3587482981050379E-2,{"$f":"CntyQuery!J149","v":29861},9.3589373918712235E-2,null,2.3619806488332385E-2,3.7705031971087016E-2]
[null,"Sandown",null,{"$f":"CntyQuery!G150","v":5143},1.8542755057524726E-2,{"$f":"CntyQuery!H150","v":5986},2.0276197992703821E-2,{"$f":"CntyQuery!I150","v":6903},2.2010643419924047E-2,{"$f":"CntyQuery!J150","v":7023},2.2011257929443622E-2,null,0.16391211355240132,0.17323755429335116]
[null,"Seabrook",null,{"$f":"CntyQuery!G151","v":7934},2.8605525690531045E-2,{"$f":"CntyQuery!H151","v":8693},2.9445537779915522E-2,{"$f":"CntyQuery!I151","v":9498},3.0284961785084545E-2,{"$f":"CntyQuery!J151","v":9663},3.0285459970413459E-2,null,9.5664229896647343E-2,0.11158403313010468]
[null,"South Hampton",null,{"$f":"CntyQuery!G152","v":844},3.0429876081179987E-3,{"$f":"CntyQuery!H152","v":814},2.7572377490913649E-3,{"$f":"CntyQuery!I152","v":775},2.4711355425816512E-3,{"$f":"CntyQuery!J152","v":789},2.4728581099716673E-3,null,-3.5545023696682464E-2,-3.0712530712530713E-2]
[null,"Stratham",null,{"$f":"CntyQuery!G153","v":6355},2.2912542949751046E-2,{"$f":"CntyQuery!H153","v":7255},2.4574643574518246E-2,{"$f":"CntyQuery!I153","v":8228},2.6235488057241064E-2,{"$f":"CntyQuery!J153","v":8371},2.6236115638241856E-2,null,0.14162077104642015,0.15382494831150931]
[null,"Windham",null,{"$f":"CntyQuery!G154","v":10709},3.8610609354663088E-2,{"$f":"CntyQuery!H154","v":13592},4.603977332389414E-2,{"$f":"CntyQuery!I154","v":16769},5.3468996017486073E-2,{"$f":"CntyQuery!J154","v":17060},5.3468896522327808E-2,null,0.26921281165374916,0.25515008828722779]
[]
[]
[null,"Rockingham County",null,{"$f":"SUM(D30:D66)","v":277359},null,{"$f":"SUM(F30:F66)","v":295223},null,{"$f":"SUM(H30:H66)","v":313621},null,{"$f":"SUM(J30:J66)","v":319064},null,null,{"$f":"(F69-D69)/D69","v":6.4407500748127872E-2},{"$f":"(J69-F69)/F69","v":8.075590316472632E-2}]
[]
[null,"Source: US Census and NH Office of Strategic Initiatives"]

{"sheet":"HousingComparison","index":70,"n_rows":74,"n_cols":15,"rows_kept":74,"cut":false,"hidden":true,"merged":[[28,3,28,4],[28,5,28,8],[28,9,28,14],[29,5,29,6],[29,7,29,8],[29,9,29,10],[29,11,29,12],[29,13,29,14]]}
[]
[]
[]
[]
[]
[]
[]
[]
[]
[]
[]
[]
[]
[]
[]
[]
[]
[]
[]
[]
[]
[]
[]
[]
[]
[]
[]
[null,"Housing Units",null,"In 2019"]
[null,null,null,"Total Units",null,"Occupied Units",null,null,null,"Vacant Units"]
[null,null,null,null,null,"Owner",null,"Renter",null,"For Sale",null,"For Rent",null,"Seasonal"]
[null,null,null,"#","%","#","%","#","%","#","%","#","%","#","%"]
[]
[null,"Atkinson",null,{"$f":"ACS_Table_B25001!$C$7","v":2899},{"$f":"D33/D$71","v":2.1934038995528451E-2},{"$f":"ACS_Table_B25003!$C$8","v":2551},2.7106289381687583E-2,{"$f":"ACS_Table_B25003!$C$9","v":194},7.2027920100987599E-3,{"$f":"ACS_Table_B25004!$C$10","v":0},0,{"$f":"ACS_Table_B25004!$C$8","v":0},0,{"$f":"ACS_Table_B25004!$C$12","v":78},1.3229308005427409E-2]
[null,"Auburn",null,{"$f":"ACS_Table_B25001!$E$7","v":2022},1.5298594980668689E-2,{"$f":"ACS_Table_B25003!$E$8","v":1819},1.9328240056954021E-2,{"$f":"ACS_Table_B25003!$E$9","v":154},5.717680255439222E-3,{"$f":"ACS_Table_B25004!$E$10","v":27},2.8601694915254237E-2,{"$f":"ACS_Table_B25004!$E$8","v":0},0,{"$f":"ACS_Table_B25004!$E$12","v":0},0]
[null,"Brentwood",null,{"$f":"ACS_Table_B25001!$G$7","v":1578},1.1939259584320076E-2,{"$f":"ACS_Table_B25003!$G$8","v":1400},1.4876050621075113E-2,{"$f":"ACS_Table_B25003!$G$9","v":133},4.937996584242964E-3,{"$f":"ACS_Table_B25004!$G$10","v":0},0,{"$f":"ACS_Table_B25004!$G$8","v":0},0,{"$f":"ACS_Table_B25004!$G$12","v":8},1.3568521031207597E-3]
[null,"Candia",null,{"$f":"ACS_Table_B25001!$I$7","v":1565},1.1840900665057616E-2,{"$f":"ACS_Table_B25003!$I$8","v":1454},1.5449841145030868E-2,{"$f":"ACS_Table_B25003!$I$9","v":83},3.0816068909185418E-3,{"$f":"ACS_Table_B25004!$I$10","v":0},0,{"$f":"ACS_Table_B25004!$I$8","v":0},0,{"$f":"ACS_Table_B25004!$I$12","v":0},0]
[null,"Chester",null,{"$f":"ACS_Table_B25001!$K$7","v":1805},1.3656757636056867E-2,{"$f":"ACS_Table_B25003!$K$8","v":1642},1.7447482228432384E-2,{"$f":"ACS_Table_B25003!$K$9","v":45},1.6707507239919804E-3,{"$f":"ACS_Table_B25004!$K$10","v":15},1.5889830508474576E-2,{"$f":"ACS_Table_B25004!$K$8","v":0},0,{"$f":"ACS_Table_B25004!$K$12","v":0},0]
[null,"Danville",null,{"$f":"ACS_Table_B25001!$M$7","v":1716},1.2983377342644644E-2,{"$f":"ACS_Table_B25003!$M$8","v":1430},1.5194823134383867E-2,{"$f":"ACS_Table_B25003!$M$9","v":255},9.467587435954555E-3,{"$f":"ACS_Table_B25004!$M$10","v":7},7.4152542372881358E-3,{"$f":"ACS_Table_B25004!$M$8","v":0},0,{"$f":"ACS_Table_B25004!$M$12","v":24},4.0705563093622792E-3]
[null,"Deerfield",null,{"$f":"ACS_Table_B25001!$O$7","v":1920},1.4526855767994007E-2,{"$f":"ACS_Table_B25003!$O$8","v":1453},1.5439215394587242E-2,{"$f":"ACS_Table_B25003!$O$9","v":200},7.4255587732976903E-3,{"$f":"ACS_Table_B25004!$O$10","v":21},2.2245762711864406E-2,{"$f":"ACS_Table_B25004!$O$8","v":0},0,{"$f":"ACS_Table_B25004!$O$12","v":154},2.6119402985074626E-2]
[null,"Derry",null,{"$f":"ACS_Table_B25001!$Q$7","v":13539},0.10243703137649525,{"$f":"ACS_Table_B25003!$Q$8","v":8291},8.8098096928095546E-2,{"$f":"ACS_Table_B25003!$Q$9","v":4450},0.16521868270587362,{"$f":"ACS_Table_B25004!$Q$10","v":97},0.1027542372881356,{"$f":"ACS_Table_B25004!$Q$8","v":245},0.24233432245301681,{"$f":"ACS_Table_B25004!$Q$12","v":80},1.3568521031207599E-2]
[null,"East Kingston",null,{"$f":"ACS_Table_B25001!$S$7","v":929},7.0288796919096008E-3,{"$f":"ACS_Table_B25003!$S$8","v":849},9.0212621266376938E-3,{"$f":"ACS_Table_B25003!$S$9","v":39},1.4479839607930496E-3,{"$f":"ACS_Table_B25004!$S$10","v":0},0,{"$f":"ACS_Table_B25004!$S$8","v":0},0,{"$f":"ACS_Table_B25004!$S$12","v":17},2.8833107191316145E-3]
[null,"Epping",null,{"$f":"ACS_Table_B25001!$U$7","v":2979},2.2539324652528201E-2,{"$f":"ACS_Table_B25003!$U$8","v":2288},2.4311717015014184E-2,{"$f":"ACS_Table_B25003!$U$9","v":392},1.4554095195663475E-2,{"$f":"ACS_Table_B25004!$U$10","v":103},0.10911016949152542,{"$f":"ACS_Table_B25004!$U$8","v":0},0,{"$f":"ACS_Table_B25004!$U$12","v":161},2.7306648575305292E-2]
[null,"Exeter",null,{"$f":"ACS_Table_B25001!$W$7","v":7013},5.3060853906740611E-2,{"$f":"ACS_Table_B25003!$W$8","v":4479},4.7592736236996738E-2,{"$f":"ACS_Table_B25003!$W$9","v":2063},7.6594638746565677E-2,{"$f":"ACS_Table_B25004!$W$10","v":25},2.6483050847457626E-2,{"$f":"ACS_Table_B25004!$W$8","v":164},0.16221562809099901,{"$f":"ACS_Table_B25004!$W$12","v":25},4.2401628222523743E-3]
[null,"Fremont",null,{"$f":"ACS_Table_B25001!$Y$7","v":1848},1.3982098676694232E-2,{"$f":"ACS_Table_B25003!$Y$8","v":1614},1.7149961216010881E-2,{"$f":"ACS_Table_B25003!$Y$9","v":150},5.5691690799732681E-3,{"$f":"ACS_Table_B25004!$Y$10","v":0},0,{"$f":"ACS_Table_B25004!$Y$8","v":25},2.4727992087042534E-2,{"$f":"ACS_Table_B25004!$Y$12","v":0},0]
[null,"Greenland",null,{"$f":"ACS_Table_B25001!$AA$7","v":1599},1.209814706928251E-2,{"$f":"ACS_Table_B25003!$AA$8","v":1256},1.3345942557193102E-2,{"$f":"ACS_Table_B25003!$AA$9","v":260},9.6532264052869975E-3,{"$f":"ACS_Table_B25004!$AA$10","v":0},0,{"$f":"ACS_Table_B25004!$AA$8","v":0},0,{"$f":"ACS_Table_B25004!$AA$12","v":27},4.5793758480325644E-3]
[null,"Hampstead",null,{"$f":"ACS_Table_B25001!$AC$7","v":3759},2.8440859808275768E-2,{"$f":"ACS_Table_B25003!$AC$8","v":2789},2.9635217987270351E-2,{"$f":"ACS_Table_B25003!$AC$9","v":784},2.9108190391326949E-2,{"$f":"ACS_Table_B25004!$AC$10","v":24},2.5423728813559324E-2,{"$f":"ACS_Table_B25004!$AC$8","v":28},2.7695351137487636E-2,{"$f":"ACS_Table_B25004!$AC$12","v":107},1.8147896879240163E-2]
[null,"Hampton",null,{"$f":"ACS_Table_B25001!$AE$7","v":9654},7.3042846658444877E-2,{"$f":"ACS_Table_B25003!$AE$8","v":5394},5.7315297892913689E-2,{"$f":"ACS_Table_B25003!$AE$9","v":1694},6.289448280983144E-2,{"$f":"ACS_Table_B25004!$AE$10","v":41},4.3432203389830511E-2,{"$f":"ACS_Table_B25004!$AE$8","v":167},0.16518298714144411,{"$f":"ACS_Table_B25004!$AE$12","v":2158},0.36601085481682499]
[null,"Hampton Falls",null,{"$f":"ACS_Table_B25001!$AG$7","v":950},7.1877671768720347E-3,{"$f":"ACS_Table_B25003!$AG$8","v":828},8.7981213673215663E-3,{"$f":"ACS_Table_B25003!$AG$9","v":81},3.0073513031855649E-3,{"$f":"ACS_Table_B25004!$AG$10","v":17},1.8008474576271187E-2,{"$f":"ACS_Table_B25004!$AG$8","v":5},4.945598417408506E-3,{"$f":"ACS_Table_B25004!$AG$12","v":0},0]
[null,"Kensington",null,{"$f":"ACS_Table_B25001!$AI$7","v":903},6.8321618533846822E-3,{"$f":"ACS_Table_B25003!$AI$8","v":760},8.0755703371550615E-3,{"$f":"ACS_Table_B25003!$AI$9","v":85},3.1558624786515183E-3,{"$f":"ACS_Table_B25004!$AI$10","v":11},1.1652542372881356E-2,{"$f":"ACS_Table_B25004!$AI$8","v":11},1.0880316518298714E-2,{"$f":"ACS_Table_B25004!$AI$12","v":4},6.7842605156037987E-4]
[null,"Kingston",null,{"$f":"ACS_Table_B25001!$AK$7","v":2763},2.0905053378628878E-2,{"$f":"ACS_Table_B25003!$AK$8","v":2031},2.1580899151002541E-2,{"$f":"ACS_Table_B25003!$AK$9","v":380},1.4108561669265612E-2,{"$f":"ACS_Table_B25004!$AK$10","v":56},5.9322033898305086E-2,{"$f":"ACS_Table_B25004!$AK$8","v":0},0,{"$f":"ACS_Table_B25004!$AK$12","v":148},2.5101763907734057E-2]
[null,"Londonderry",null,{"$f":"ACS_Table_B25001!$AM$7","v":9686},7.3284960921244771E-2,{"$f":"ACS_Table_B25003!$AM$8","v":7989},8.4889120294120768E-2,{"$f":"ACS_Table_B25003!$AM$9","v":1349},5.0085393925892924E-2,{"$f":"ACS_Table_B25004!$AM$10","v":34},3.6016949152542374E-2,{"$f":"ACS_Table_B25004!$AM$8","v":86},8.5064292779426315E-2,{"$f":"ACS_Table_B25004!$AM$12","v":66},1.1194029850746268E-2]
[null,"New Castle",null,{"$f":"ACS_Table_B25001!$AO$7","v":567},4.2899620939857303E-3,{"$f":"ACS_Table_B25003!$AO$8","v":391},4.1546684234574065E-3,{"$f":"ACS_Table_B25003!$AO$9","v":45},1.6707507239919804E-3,{"$f":"ACS_Table_B25004!$AO$10","v":0},0,{"$f":"ACS_Table_B25004!$AO$8","v":0},0,{"$f":"ACS_Table_B25004!$AO$12","v":94},1.5943012211668928E-2]
[null,"Newfields",null,{"$f":"ACS_Table_B25001!$AQ$7","v":611},4.6228692053355931E-3,{"$f":"ACS_Table_B25003!$AQ$8","v":560},5.9504202484300453E-3,{"$f":"ACS_Table_B25003!$AQ$9","v":40},1.4851117546595381E-3,{"$f":"ACS_Table_B25004!$AQ$10","v":0},0,{"$f":"ACS_Table_B25004!$AQ$8","v":0},0,{"$f":"ACS_Table_B25004!$AQ$12","v":0},0]
[null,"Newington",null,{"$f":"ACS_Table_B25001!$AS$7","v":329},2.4892372644114732E-3,{"$f":"ACS_Table_B25003!$AS$8","v":259},2.752069364898896E-3,{"$f":"ACS_Table_B25003!$AS$9","v":48},1.7821341055914458E-3,{"$f":"ACS_Table_B25004!$AS$10","v":0},0,{"$f":"ACS_Table_B25004!$AS$8","v":0},0,{"$f":"ACS_Table_B25004!$AS$12","v":16},2.7137042062415195E-3]
[null,"Newmarket",null,{"$f":"ACS_Table_B25001!$AU$7","v":4189},3.1694270214649427E-2,{"$f":"ACS_Table_B25003!$AU$8","v":2121},2.2537216690928796E-2,{"$f":"ACS_Table_B25003!$AU$9","v":1914},7.1062597460458898E-2,{"$f":"ACS_Table_B25004!$AU$10","v":0},0,{"$f":"ACS_Table_B25004!$AU$8","v":0},0,{"$f":"ACS_Table_B25004!$AU$12","v":49},8.3107191316146543E-3]
[null,"Newton",null,{"$f":"ACS_Table_B25001!$AW$7","v":1903},1.4398232565881561E-2,{"$f":"ACS_Table_B25003!$AW$8","v":1487},1.5800490909670496E-2,{"$f":"ACS_Table_B25003!$AW$9","v":366},1.3588772555134774E-2,{"$f":"ACS_Table_B25004!$AW$10","v":0},0,{"$f":"ACS_Table_B25004!$AW$8","v":0},0,{"$f":"ACS_Table_B25004!$AW$12","v":23},3.9009497964721846E-3]
[null,"North Hampton",null,{"$f":"ACS_Table_B25001!$AY$7","v":2018},1.5268330697818702E-2,{"$f":"ACS_Table_B25003!$AY$8","v":1612},1.7128709715123629E-2,{"$f":"ACS_Table_B25003!$AY$9","v":208},7.722581124229598E-3,{"$f":"ACS_Table_B25004!$AY$10","v":53},5.6144067796610173E-2,{"$f":"ACS_Table_B25004!$AY$8","v":0},0,{"$f":"ACS_Table_B25004!$AY$12","v":100},1.6960651289009497E-2]
[null,"Northwood",null,{"$f":"ACS_Table_B25001!$BA$7","v":2164},1.6372977021843246E-2,{"$f":"ACS_Table_B25003!$BA$8","v":1460},1.5513595647692618E-2,{"$f":"ACS_Table_B25003!$BA$9","v":151},5.6062968738397568E-3,{"$f":"ACS_Table_B25004!$BA$10","v":0},0,{"$f":"ACS_Table_B25004!$BA$8","v":0},0,{"$f":"ACS_Table_B25004!$BA$12","v":517},8.7686567164179108E-2]
[null,"Nottingham",null,{"$f":"ACS_Table_B25001!$BC$7","v":2013},1.5230500344256218E-2,{"$f":"ACS_Table_B25003!$BC$8","v":1767},1.8775701033885518E-2,{"$f":"ACS_Table_B25003!$BC$9","v":133},4.937996584242964E-3,{"$f":"ACS_Table_B25004!$BC$10","v":0},0,{"$f":"ACS_Table_B25004!$BC$8","v":0},0,{"$f":"ACS_Table_B25004!$BC$12","v":113},1.9165535956580732E-2]
[null,"Plaistow",null,{"$f":"ACS_Table_B25001!$BE$7","v":3262},2.468052266416482E-2,{"$f":"ACS_Table_B25003!$BE$8","v":2548},2.7074412130356707E-2,{"$f":"ACS_Table_B25003!$BE$9","v":571},2.1199970297764908E-2,{"$f":"ACS_Table_B25004!$BE$10","v":37},3.9194915254237288E-2,{"$f":"ACS_Table_B25004!$BE$8","v":35},3.4619188921859542E-2,{"$f":"ACS_Table_B25004!$BE$12","v":0},0]
[null,"Portsmouth",null,{"$f":"ACS_Table_B25001!$BG$7","v":10615},8.0313840613154372E-2,{"$f":"ACS_Table_B25003!$BG$8","v":5237},5.5647055073264548E-2,{"$f":"ACS_Table_B25003!$BG$9","v":4826},0.17917873319967328,{"$f":"ACS_Table_B25004!$BG$10","v":27},2.8601694915254237E-2,{"$f":"ACS_Table_B25004!$BG$8","v":112},0.11078140454995054,{"$f":"ACS_Table_B25004!$BG$12","v":146},2.4762550881953865E-2]
[null,"Raymond",null,{"$f":"ACS_Table_B25001!$BI$7","v":4281},3.2390348720199136E-2,{"$f":"ACS_Table_B25003!$BI$8","v":3224},3.4257419430247259E-2,{"$f":"ACS_Table_B25003!$BI$9","v":888},3.2969480953441745E-2,{"$f":"ACS_Table_B25004!$BI$10","v":0},0,{"$f":"ACS_Table_B25004!$BI$8","v":0},0,{"$f":"ACS_Table_B25004!$BI$12","v":76},1.2890094979647219E-2]
[null,"Rye",null,{"$f":"ACS_Table_B25001!$BK$7","v":3059},2.3144610309527951E-2,{"$f":"ACS_Table_B25003!$BK$8","v":1941},2.0624581611076283E-2,{"$f":"ACS_Table_B25003!$BK$9","v":423},1.5705056805524614E-2,{"$f":"ACS_Table_B25004!$BK$10","v":102},0.10805084745762712,{"$f":"ACS_Table_B25004!$BK$8","v":17},1.6815034619188922E-2,{"$f":"ACS_Table_B25004!$BK$12","v":576},9.7693351424694708E-2]
[null,"Salem",null,{"$f":"ACS_Table_B25001!$BM$7","v":12005},9.0830678903525031E-2,{"$f":"ACS_Table_B25003!$BM$8","v":9006},9.5695508495287476E-2,{"$f":"ACS_Table_B25003!$BM$9","v":2530},9.3933318482215783E-2,{"$f":"ACS_Table_B25004!$BM$10","v":96},0.10169491525423729,{"$f":"ACS_Table_B25004!$BM$8","v":21},2.0771513353115726E-2,{"$f":"ACS_Table_B25004!$BM$12","v":80},1.3568521031207599E-2]
[null,"Sandown",null,{"$f":"ACS_Table_B25001!$BO$7","v":2364},1.7886191164342622E-2,{"$f":"ACS_Table_B25003!$BO$8","v":2025},2.1517144648340789E-2,{"$f":"ACS_Table_B25003!$BO$9","v":204},7.5740699487636442E-3,{"$f":"ACS_Table_B25004!$BO$10","v":79},8.3686440677966101E-2,{"$f":"ACS_Table_B25004!$BO$8","v":0},0,{"$f":"ACS_Table_B25004!$BO$12","v":42},7.1234735413839888E-3]
[null,"Seabrook",null,{"$f":"ACS_Table_B25001!$BQ$7","v":4773},3.6112855510747603E-2,{"$f":"ACS_Table_B25003!$BQ$8","v":2600},2.762695115342521E-2,{"$f":"ACS_Table_B25003!$BQ$9","v":1224},4.5444419692581867E-2,{"$f":"ACS_Table_B25004!$BQ$10","v":23},2.4364406779661018E-2,{"$f":"ACS_Table_B25004!$BQ$8","v":95},9.3966369930761628E-2,{"$f":"ACS_Table_B25004!$BQ$12","v":597},0.1012550881953867]
[null,"South Hampton",null,{"$f":"ACS_Table_B25001!$BS$7","v":375},2.8372765171863295E-3,{"$f":"ACS_Table_B25003!$BS$8","v":264},2.8051981171170214E-3,{"$f":"ACS_Table_B25003!$BS$9","v":38},1.4108561669265612E-3,{"$f":"ACS_Table_B25004!$BS$10","v":0},0,{"$f":"ACS_Table_B25004!$BC$8","v":0},0,{"$f":"ACS_Table_B25004!$BS$12","v":53},8.9891451831750346E-3]
[null,"Stratham",null,{"$f":"ACS_Table_B25001!$BU$7","v":2960},2.2395569308990761E-2,{"$f":"ACS_Table_B25003!$BU$8","v":2487},2.6426241353295576E-2,{"$f":"ACS_Table_B25003!$BU$9","v":330},1.225217197594119E-2,{"$f":"ACS_Table_B25004!$BU$10","v":49},5.190677966101695E-2,{"$f":"ACS_Table_B25004!$BU$8","v":0},0,{"$f":"ACS_Table_B25004!$BU$12","v":45},7.632293080054274E-3]
[null,"Windham",null,{"$f":"ACS_Table_B25001!$BW$7","v":5554},4.2021956737207669E-2,{"$f":"ACS_Table_B25003!$BW$8","v":4805},5.1056730881618516E-2,{"$f":"ACS_Table_B25003!$BW$9","v":204},7.5740699487636442E-3,{"$f":"ACS_Table_B25004!$BW$10","v":0},0,{"$f":"ACS_Table_B25004!$BW$8","v":0},0,{"$f":"ACS_Table_B25004!$BW$12","v":312},5.2917232021709636E-2]
[]
[null,"Rockingham County",null,{"$f":"SUM(D33:D70)","v":132169},null,{"$f":"SUM(F33:F70)","v":94111},null,{"$f":"SUM(H33:H70)","v":26934},null,{"$f":"SUM(J33:J70)","v":944},null,{"$f":"SUM(L33:L70)","v":1011},null,{"$f":"SUM(N33:N70)","v":5896}]
[]
[null,"Source: 2015-2019 American Community Survey Tables B25001; B25003; and B25004"]
[null,"Margin of error is not displayed.  The American Community Survey data are estimates only."]

{"sheet":"Housing_EmploymentComparison","index":71,"n_rows":76,"n_cols":11,"rows_kept":76,"cut":false,"hidden":true,"merged":[[75,2,75,13],[73,2,73,13],[74,2,74,13],[28,3,28,4],[28,5,28,10],[29,3,29,4],[29,5,29,6],[29,7,29,8],[29,9,29,10]]}
[]
[]
[]
[]
[]
[]
[]
[]
[]
[]
[]
[]
[]
[]
[]
[]
[]
[]
[]
[]
[]
[]
[]
[]
[]
[]
[]
[null,null,null,"In 2019"]
[null,null,null,"Total Units",null,"Employment"]
[null,null,null,null,null,"Total Private",null,"Goods Producing",null,"Service Providing"]
[null,null,null,"#","%","#","%","#","%","#","%"]
[]
[null,"Atkinson",null,{"$f":"ACS_Table_B25001!$C$7","v":2899},{"$f":"D33/D$71","v":2.1934038995528451E-2},{"$f":"CntyQuery!$ER$171","v":1197},{"$f":"IF(F33=\"n\",\"n\",F33/$F$71)","v":8.7154694121244769E-3},{"$f":"CntyQuery!$ET$171","v":374},{"$f":"IF(H33=\"n\",\"n\",H33/$H$71)","v":1.5840074541527253E-2},{"$f":"CntyQuery!$EU$171","v":823},{"$f":"IF(J33=\"n\",\"n\",J33/$J$71)","v":7.2363735481091344E-3}]
[null,"Auburn",null,{"$f":"ACS_Table_B25001!$E$7","v":2022},1.5298594980668689E-2,{"$f":"CntyQuery!$ER$172","v":1637},{"$f":"IF(F34=\"n\",\"n\",F34/$F$71)","v":1.1919150733206157E-2},{"$f":"CntyQuery!$ET$172","v":618},{"$f":"IF(H34=\"n\",\"n\",H34/$H$71)","v":2.6174240819956798E-2},{"$f":"CntyQuery!$EU$172","v":1019},{"$f":"IF(J34=\"n\",\"n\",J34/$J$71)","v":8.9597383299188441E-3}]
[null,"Brentwood",null,{"$f":"ACS_Table_B25001!$G$7","v":1578},1.1939259584320076E-2,{"$f":"CntyQuery!$ER$173","v":1535},1.1176479154228132E-2,{"$f":"CntyQuery!$ET$173","v":434},1.8381262970649275E-2,{"$f":"CntyQuery!$EU$173","v":1101},9.6807378814922924E-3]
[null,"Candia",null,{"$f":"ACS_Table_B25001!$I$7","v":1565},1.1840900665057616E-2,{"$f":"CntyQuery!$ER$174","v":775},5.6428477814506849E-3,{"$f":"CntyQuery!$ET$174","v":278},1.1774173054932023E-2,{"$f":"CntyQuery!$EU$174","v":497},4.3699606967317617E-3]
[null,"Chester",null,{"$f":"ACS_Table_B25001!$K$7","v":1805},1.3656757636056867E-2,{"$f":"CntyQuery!$ER$175","v":260},1.8930844170028105E-3,{"$f":"CntyQuery!$ET$175","v":112},4.7435517343611027E-3,{"$f":"CntyQuery!$EU$175","v":148},1.3013162638154945E-3]
[null,"Danville",null,{"$f":"ACS_Table_B25001!$M$7","v":1716},1.2983377342644644E-2,{"$f":"CntyQuery!$ER$176","v":148},1.0776018989092921E-3,{"$f":"CntyQuery!$ET$176","v":86},3.6423700817415612E-3,{"$f":"CntyQuery!$EU$176","v":62},5.4514600240919365E-4]
[null,"Deerfield",null,{"$f":"ACS_Table_B25001!$O$7","v":1920},1.4526855767994007E-2,{"$f":"CntyQuery!$ER$177","v":522},3.8007310218287197E-3,{"$f":"CntyQuery!$ET$177","v":"n"},"n",{"$f":"CntyQuery!$EU$177","v":0},0]
[null,"Derry",null,{"$f":"ACS_Table_B25001!$Q$7","v":13539},0.10243703137649525,{"$f":"CntyQuery!$ER$178","v":7851},5.7163868299573331E-2,{"$f":"CntyQuery!$ET$178","v":716},3.0324848587522765E-2,{"$f":"CntyQuery!$EU$178","v":7135},6.2735753664348332E-2]
[null,"East Kingston",null,{"$f":"ACS_Table_B25001!$S$7","v":929},7.0288796919096008E-3,{"$f":"CntyQuery!$ER$179","v":149},1.0848829928208415E-3,{"$f":"CntyQuery!$ET$179","v":46},1.9482444623268814E-3,{"$f":"CntyQuery!$EU$179","v":104},9.1443845565413124E-4]
[null,"Epping",null,{"$f":"ACS_Table_B25001!$U$7","v":2979},2.2539324652528201E-2,{"$f":"CntyQuery!$ER$180","v":2939},2.1399135006043308E-2,{"$f":"CntyQuery!$ET$180","v":164},6.9459150396001864E-3,{"$f":"CntyQuery!$EU$180","v":2775},2.439967994654052E-2]
[null,"Exeter",null,{"$f":"ACS_Table_B25001!$W$7","v":7013},5.3060853906740611E-2,{"$f":"CntyQuery!$ER$181","v":10088},7.345167537970905E-2,{"$f":"CntyQuery!$ET$181","v":1273},5.3915547837872176E-2,{"$f":"CntyQuery!$EU$181","v":8815},7.7507451794145837E-2]
[null,"Fremont",null,{"$f":"ACS_Table_B25001!$Y$7","v":1848},1.3982098676694232E-2,{"$f":"CntyQuery!$ER$182","v":476},3.4658007018974531E-3,{"$f":"CntyQuery!$ET$182","v":133},5.6329676845538095E-3,{"$f":"CntyQuery!$EU$182","v":343},3.0158883681669904E-3]
[null,"Greenland",null,{"$f":"ACS_Table_B25001!$AA$7","v":1599},1.209814706928251E-2,{"$f":"CntyQuery!$ER$183","v":1804},1.3135093416434885E-2,{"$f":"CntyQuery!$ET$183","v":315},1.3341239252890602E-2,{"$f":"CntyQuery!$EU$183","v":1490},1.3101089412737072E-2]
[null,"Hampstead",null,{"$f":"ACS_Table_B25001!$AC$7","v":3759},2.8440859808275768E-2,{"$f":"CntyQuery!$ER$184","v":2209},1.6083936450612339E-2,{"$f":"CntyQuery!$ET$184","v":431},1.8254203549193174E-2,{"$f":"CntyQuery!$EU$184","v":1778},1.5633380520702359E-2]
[null,"Hampton",null,{"$f":"ACS_Table_B25001!$AE$7","v":9654},7.3042846658444877E-2,{"$f":"CntyQuery!$ER$185","v":4915},3.578657657526467E-2,{"$f":"CntyQuery!$ET$185","v":1023},4.3327262716530431E-2,{"$f":"CntyQuery!$EU$185","v":3892},3.4221100667364217E-2]
[null,"Hampton Falls",null,{"$f":"ACS_Table_B25001!$AG$7","v":950},7.1877671768720347E-3,{"$f":"CntyQuery!$ER$186","v":431},3.1381514758777357E-3,{"$f":"CntyQuery!$ET$186","v":71},3.0070729744610561E-3,{"$f":"CntyQuery!$EU$186","v":360},3.165363884956608E-3]
[null,"Kensington",null,{"$f":"ACS_Table_B25001!$AI$7","v":903},6.8321618533846822E-3,{"$f":"CntyQuery!$ER$187","v":253},1.8421167596219656E-3,{"$f":"CntyQuery!$ET$187","v":23},9.7412223116344072E-4,{"$f":"CntyQuery!$EU$187","v":230},2.0223158153889441E-3]
[null,"Kingston",null,{"$f":"ACS_Table_B25001!$AK$7","v":2763},2.0905053378628878E-2,{"$f":"CntyQuery!$ER$188","v":1317},9.5892006815103906E-3,{"$f":"CntyQuery!$ET$188","v":147},6.2259116513489476E-3,{"$f":"CntyQuery!$EU$188","v":1170},1.0287432626108976E-2]
[null,"Londonderry",null,{"$f":"ACS_Table_B25001!$AM$7","v":9686},7.3284960921244771E-2,{"$f":"CntyQuery!$ER$189","v":13803},0.10050093926111459,{"$f":"CntyQuery!$ET$189","v":4259},0.18038202532717801,{"$f":"CntyQuery!$EU$189","v":9544},8.3917313661182963E-2]
[null,"New Castle",null,{"$f":"ACS_Table_B25001!$AO$7","v":567},4.2899620939857303E-3,{"$f":"CntyQuery!$ER$190","v":"n"},"n",{"$f":"CntyQuery!$ET$190","v":0},0,{"$f":"CntyQuery!$EU$190","v":"n"},"n"]
[null,"Newfields",null,{"$f":"ACS_Table_B25001!$AQ$7","v":611},4.6228692053355931E-3,{"$f":"CntyQuery!$ER$191","v":"n"},"n",{"$f":"CntyQuery!$ET$191","v":359},1.5204777434246749E-2,{"$f":"CntyQuery!$EU$191","v":"n"},"n"]
[null,"Newington",null,{"$f":"ACS_Table_B25001!$AS$7","v":329},2.4892372644114732E-3,{"$f":"CntyQuery!$ER$192","v":5198},3.784712615223311E-2,{"$f":"CntyQuery!$ET$192","v":2376},0.10063106179323197,{"$f":"CntyQuery!$EU$192","v":2822},2.4812935787076523E-2]
[null,"Newmarket",null,{"$f":"ACS_Table_B25001!$AU$7","v":4189},3.1694270214649427E-2,{"$f":"CntyQuery!$ER$193","v":1282},9.334362394606166E-3,{"$f":"CntyQuery!$ET$193","v":200},8.4706280970733988E-3,{"$f":"CntyQuery!$EU$193","v":1082},9.5136770097862498E-3]
[null,"Newton",null,{"$f":"ACS_Table_B25001!$AW$7","v":1903},1.4398232565881561E-2,{"$f":"CntyQuery!$ER$194","v":386},2.8105022498580187E-3,{"$f":"CntyQuery!$ET$194","v":163},6.903561899114819E-3,{"$f":"CntyQuery!$EU$194","v":222},1.9519743957232417E-3]
[null,"North Hampton",null,{"$f":"ACS_Table_B25001!$AY$7","v":2018},1.5268330697818702E-2,{"$f":"CntyQuery!$ER$195","v":2275},1.6564488648774592E-2,{"$f":"CntyQuery!$ET$195","v":272},1.1520054212019822E-2,{"$f":"CntyQuery!$EU$195","v":2004},1.7620525626258453E-2]
[null,"Northwood",null,{"$f":"ACS_Table_B25001!$BA$7","v":2164},1.6372977021843246E-2,{"$f":"CntyQuery!$ER$196","v":895},6.5165790508365977E-3,{"$f":"CntyQuery!$ET$196","v":158},6.6917961966879843E-3,{"$f":"CntyQuery!$EU$196","v":737},6.4802032867028337E-3]
[null,"Nottingham",null,{"$f":"ACS_Table_B25001!$BC$7","v":2013},1.5230500344256218E-2,{"$f":"CntyQuery!$ER$197","v":167},1.2159426832287284E-3,{"$f":"CntyQuery!$ET$197","v":62},2.6258947100927534E-3,{"$f":"CntyQuery!$EU$197","v":105},9.2323113311234401E-4]
[null,"Plaistow",null,{"$f":"ACS_Table_B25001!$BE$7","v":3262},2.468052266416482E-2,{"$f":"CntyQuery!$ER$198","v":3904},2.8425390630688354E-2,{"$f":"CntyQuery!$ET$198","v":632},2.6767184786751937E-2,{"$f":"CntyQuery!$EU$198","v":3272},2.8769640643272282E-2]
[null,"Portsmouth",null,{"$f":"ACS_Table_B25001!$BG$7","v":10615},8.0313840613154372E-2,{"$f":"CntyQuery!$ER$199","v":31754},0.23120385606733557,{"$f":"CntyQuery!$ET$199","v":2951},0.12498411757231799,{"$f":"CntyQuery!$EU$199","v":28802},0.25324669615144507]
[null,"Raymond",null,{"$f":"ACS_Table_B25001!$BI$7","v":4281},3.2390348720199136E-2,{"$f":"CntyQuery!$ER$200","v":2739},1.9942916223733453E-2,{"$f":"CntyQuery!$ET$200","v":432},1.8296556689678539E-2,{"$f":"CntyQuery!$EU$200","v":2307},2.0284706896096929E-2]
[null,"Rye",null,{"$f":"ACS_Table_B25001!$BK$7","v":3059},2.3144610309527951E-2,{"$f":"CntyQuery!$ER$201","v":1154},8.4023823739278591E-3,{"$f":"CntyQuery!$ET$201","v":23},9.7412223116344072E-4,{"$f":"CntyQuery!$EU$201","v":1132},9.9533108826968895E-3]
[null,"Salem",null,{"$f":"ACS_Table_B25001!$BM$7","v":12005},9.0830678903525031E-2,{"$f":"CntyQuery!$ER$202","v":20522},0.14942260925281414,{"$f":"CntyQuery!$ET$202","v":2872},0.12163821947397399,{"$f":"CntyQuery!$EU$202","v":17650},0.15519075713745592]
[null,"Sandown",null,{"$f":"ACS_Table_B25001!$BO$7","v":2364},1.7886191164342622E-2,{"$f":"CntyQuery!$ER$203","v":250},1.8202734778873179E-3,{"$f":"CntyQuery!$ET$203","v":80},3.3882512388293592E-3,{"$f":"CntyQuery!$EU$203","v":171},1.503547845354389E-3]
[null,"Seabrook",null,{"$f":"ACS_Table_B25001!$BQ$7","v":4773},3.6112855510747603E-2,{"$f":"CntyQuery!$ER$204","v":6347},4.6213103056603227E-2,{"$f":"CntyQuery!$ET$204","v":1191},5.0442590318072085E-2,{"$f":"CntyQuery!$EU$204","v":5157},4.5343837652003414E-2]
[null,"South Hampton",null,{"$f":"ACS_Table_B25001!$BS$7","v":375},2.8372765171863295E-3,{"$f":"CntyQuery!$ER$205","v":105},7.6451486071267344E-4,{"$f":"CntyQuery!$ET$205","v":43},1.8211850408707806E-3,{"$f":"CntyQuery!$EU$205","v":62},5.4514600240919365E-4]
[null,"Stratham",null,{"$f":"ACS_Table_B25001!$BU$7","v":2960},2.2395569308990761E-2,{"$f":"CntyQuery!$ER$206","v":3953},2.878216423235427E-2,{"$f":"CntyQuery!$ET$206","v":798},3.3797806107322859E-2,{"$f":"CntyQuery!$EU$206","v":3155},2.7740897380661385E-2]
[null,"Windham",null,{"$f":"ACS_Table_B25001!$BW$7","v":5554},4.2021956737207669E-2,{"$f":"CntyQuery!$ER$207","v":3244},2.3619868649065835E-2,{"$f":"CntyQuery!$ET$207","v":300},1.2705942145610096E-2,{"$f":"CntyQuery!$EU$207","v":2945},2.5894435114436697E-2]
[]
[null,"Rockingham County",null,{"$f":"SUM(D33:D70)","v":132169},null,{"$f":"CntyQuery!$ER$243","v":137342},null,{"$f":"CntyQuery!$ET$243","v":23611},null,{"$f":"CntyQuery!$EU$243","v":113731}]
[]
[null,"Source: ","2015-2019 American Community Survey Table B25001"]
[null,null,"Employment data provided by NH Department of Employment Security 2019 Covered Private Employment."]
[null,null,"Margin of error is not displayed.  The American Community Survey data are estimates only. Total Employment "]
[null,null,"at the county level is the number provided by NH Department of Employment Security."]

{"sheet":"DropDownList","index":72,"n_rows":47,"n_cols":3,"rows_kept":47,"cut":false,"hidden":true,"merged":[]}
["List Range for Combo Box on Start Page"]
["Atkinson"]
["Auburn"]
["Brentwood"]
["Candia"]
["Chester"]
["Danville"]
["Deerfield"]
["Derry"]
["East Kingston"]
["Epping"]
["Exeter"]
["Fremont"]
["Greenland"]
["Hampstead"]
["Hampton"]
["Hampton Falls"]
["Kensington"]
["Kingston"]
["Londonderry"]
["New Castle"]
["Newfields"]
["Newington"]
["Newmarket"]
["Newton"]
["North Hampton"]
["Northwood"]
["Nottingham"]
["Plaistow"]
["Portsmouth"]
["Raymond"]
["Rye"]
["Salem"]
["Sandown"]
["Seabrook"]
["South Hampton"]
["Stratham"]
["Windham"]
[]
[]
[]
[]
[]
[]
[]
[]
[{"$f":"B47","v":"Atkinson"},"Atkinson",{"$f":"B47","v":"Atkinson"}]

{"sheet":"CntyQryCensus","index":73,"n_rows":587,"n_cols":216,"rows_kept":587,"cut":false,"hidden":true,"merged":[]}
[]
["Census 2000 SF1   -           Query Name:  TownAllQuery3"]
["NAME","COUNTY","LOGRECNO","COUSUB","TRACT","AREALAND","AREAWATR","POP100","HU100","P01TotalPopulation","P03PopOfOneRace","P03PopWhite","P03PopBlack","P03PopAmIndian","P03PopAsian","P03PopHawaiian","P03PopOtherRace","P03Pop2orMoreRaces","P04PopHispanicLatino","P04PopNotHispanicLatino","P12PopMale","P12PopMale<15","P12PopMale15to24","P12PopMale25to34","P12PopMale35to44","P12PopMale45to54","P12PopMale55to64","P12PopMale65to74","P12PopMale75to84","P12PopMale85andOver","P12PopFemale","P12PopFemale<15","P12PopFemale15to24","P12PopFemale25to34","P12PopFemale35t44","P12PopFemale45to54","P12PopFemale55to64","P12PopFemale65to74","P12PopFemale75to84","P12PopFemale85andOver","P15Households2000","P16PopInHH","P17AvgHHSize","P18HHs1Person","P18HHs2orMorePerson","P18HHsFamily","P18HHMarriedCoupleFam","P18HHSingleParentFam","P18HHsNonFamily","P31Families","P32PopInFam","P33AvgFamSize","H01TotHsUnits","H04OccHsUnits","H04OwnerOccHU","H04RenterOccHU","H05VctHsUnits","H05VctHUForRent","H05VctHUForSale","H05VctHUSeasonal","H10PopInOccHU","H11PopInOwnOccHU","H11PopInRntOccHU","H12AvgHHSize2","H12AvgHHSizOwnOcc","H12AvgHHSizRntOcc","H14OwnOccWhtHsHldr","H14OwnOccBlkHsHldr","H14OwnOccAmIHsHldr","H14OwnOccAsnHsHldr","H14OwnOccPIsHsHldr","H14OwnOccORHsHldr","H14OwnOcc2RcHsHldr","H14RntOccWhtHsHldr","H14RntOccBlkHsHldr","H14RntOccAmIHsHldr","H14RntOccAsnHsHldr","H14RntOccPIsHsHldr","H14RntOccORHsHldr","H14RntOcc2RcHsHldr","H16OwnOccHH15to24","H16OwnOccHH25to34","H16OwnOccHH35to44","H16OwnOccHH45to54","H16OwnOccHH55to64","H16OwnOccHH65to74","H16OwnOccHH75to84","H16OwnOccHH85Over","H16RntOccHH15to24","H16RntOccHH25to34","H16RntOccHH35to44","H16RntOccHH45to54","H16RntOccHH55to64","H16RntOccHH65to74","H16RntOccHH75to84","H16RntOccHH85Over","P27TotalPop","P27PopInHseHlds","P27PopInGrpQtrs","P13MedianPopTotal","P13MedianPopMale","P13MedianPopFemale"]
["Atkinson","015","0026822","02340","","      28822322","        418679",6178,2431,6178,6137,6031,16,4,73,0,13,41,43,6135,3008,609,280,299,569,536,378,225,86,26,3170,681,252,316,573,598,382,228,104,36,2317,6174,2.66,441,1876,1777,1593,184,99,1777,5474,3.08,2431,2317,2060,257,114,4,30,67,6174,5766,408,2.66,2.8,1.59,2031,6,0,15,0,2,6,250,1,1,0,0,2,3,5,179,528,561,399,262,100,26,11,49,55,56,33,31,12,10,6178,6174,4,40.9,40.700000000000003,41]
["Auburn","015","0026932","02820","","      65292572","       9066153",4682,1622,4682,4653,4602,10,11,19,0,11,29,44,4638,2382,579,269,223,531,447,191,92,39,11,2300,551,244,276,515,378,192,71,56,17,1580,4675,2.96,186,1394,1322,1186,136,72,1322,4260,3.22,1622,1580,1460,120,42,5,3,15,4675,4396,279,2.96,3.01,2.33,1445,2,1,3,0,3,6,118,0,0,1,0,0,1,5,165,484,453,198,92,46,17,12,30,45,11,9,8,2,3,4682,4675,7,36.799999999999997,36.9,36.700000000000003]
["Brentwood","015","0027165","07220","","      43554136","        418365",3197,920,3197,3172,3084,27,8,28,2,23,25,47,3150,1614,328,202,198,321,274,128,88,46,29,1583,329,142,145,306,237,113,88,112,111,911,2728,2.99,98,813,778,692,86,35,778,2506,3.22,920,911,849,62,9,2,2,1,2728,2575,153,2.99,3.03,2.4700000000000002,834,2,1,5,1,1,5,61,0,0,0,0,0,1,3,83,273,248,116,81,40,5,4,15,15,15,5,5,3,0,3197,2728,469,38.9,37.4,40.4]
["Candia","015","0027271","09300","","      78538479","        630397",3911,1384,3911,3900,3837,17,18,23,1,4,11,34,3877,1976,431,223,239,410,374,166,89,38,6,1935,444,179,249,416,352,145,92,46,12,1359,3911,2.88,172,1187,1109,979,130,78,1109,3486,3.14,1384,1359,1255,104,25,4,3,5,3911,3659,252,2.88,2.92,2.42,1239,4,4,3,0,1,4,103,1,0,0,0,0,0,5,156,392,379,173,91,48,11,8,31,25,17,10,7,5,1,3911,3911,0,37.6,38,37.4]
["Chester","015","0027406","12100","","      67104539","        287507",3792,1247,3792,3759,3715,10,16,12,0,6,33,31,3761,1875,503,213,176,395,319,168,70,24,7,1917,490,207,251,394,314,132,76,40,13,1214,3756,3.09,143,1071,1011,890,121,60,1011,3413,3.38,1247,1214,1129,85,33,4,9,11,3756,3532,224,3.09,3.13,2.64,1109,2,6,2,0,1,9,85,0,0,0,0,0,0,2,135,372,321,169,86,35,9,4,17,30,13,12,2,3,4,3792,3756,36,35.700000000000003,36.200000000000003,35.299999999999997]
["Danville","015","0027518","17140","","      30327864","        510957",4023,1479,4023,3987,3926,23,11,14,1,12,36,34,3989,2058,542,164,295,438,310,172,90,39,8,1965,479,170,324,431,255,157,92,41,16,1428,4020,2.82,236,1192,1123,976,147,69,1123,3574,3.18,1479,1428,1302,126,51,2,9,12,4020,3748,272,2.82,2.88,2.16,1281,6,3,3,0,3,6,125,0,0,0,0,0,1,4,226,442,301,166,103,48,12,9,42,23,21,18,8,5,0,4023,4020,3,35.4,35.5,35.200000000000003]
["Deerfield","015","0027607","17460","","     131854772","       3504416",3678,1406,3678,3648,3624,6,5,5,0,8,30,11,3667,1800,449,175,207,371,324,154,78,35,7,1878,474,196,244,393,299,139,71,45,17,1225,3656,2.98,158,1067,986,870,116,81,986,3227,3.27,1406,1225,1098,127,181,10,24,120,3656,3333,323,2.98,3.04,2.54,1083,2,1,0,0,0,12,126,0,0,0,0,1,0,4,137,354,320,158,73,42,10,6,43,36,26,7,5,3,1,3678,3656,22,36.200000000000003,36.700000000000003,35.6]
["Derry","015","0027760","17940","","      92688016","       2268505",34021,12735,34021,33635,32676,305,71,362,16,205,386,643,33378,16893,4368,2132,2516,3434,2435,1143,562,241,62,17128,4200,2076,2606,3529,2418,1061,650,394,194,12327,33790,2.74,2668,9659,8785,6948,1837,874,8785,28483,3.24,12735,12327,7978,4349,408,101,43,151,33790,24141,9649,2.74,3.03,2.2200000000000002,7781,55,11,50,2,25,54,4152,46,13,52,1,40,45,82,1233,2754,2122,973,538,215,61,439,1256,1129,701,368,243,162,51,34021,33790,231,33.6,33.1,34]
["East Kingston","015","0028172","21380","","      25874469","        161785",1784,648,1784,1776,1749,2,1,6,1,17,8,6,1778,859,192,74,92,190,158,93,41,16,3,925,231,62,119,191,164,86,39,22,11,629,1784,2.84,85,544,508,465,43,36,508,1588,3.13,648,629,582,47,19,2,2,9,1784,1686,98,2.84,2.9,2.09,571,1,0,0,1,6,3,46,0,0,0,0,0,1,0,79,185,154,90,46,21,7,0,11,14,14,2,4,2,0,1784,1784,0,38.200000000000003,39.1,37.4]
["Epping","015","0028228","24660","","      67416210","        517225",5476,2215,5476,5376,5316,15,13,24,0,8,100,42,5434,2699,634,298,377,534,416,214,129,79,18,2777,613,308,402,579,392,203,168,87,25,2047,5468,2.67,431,1616,1473,1223,250,143,1473,4596,3.12,2215,2047,1574,473,168,5,6,130,5468,4394,1074,2.67,2.79,2.27,1538,4,2,3,0,3,24,458,2,0,4,0,1,8,14,229,478,374,211,156,91,21,53,113,109,96,37,42,18,5,5476,5468,8,35.799999999999997,35.700000000000003,36]
["Exeter","015","0028438","25380","","      50856387","        968787",14058,6107,14058,13918,13662,59,24,132,0,41,140,122,13936,6654,1469,672,806,1175,1009,616,439,343,125,7404,1313,659,923,1280,1061,688,574,562,344,5898,13687,2.3199999999999998,1842,4056,3718,3006,712,338,3718,10948,2.94,6107,5898,3980,1918,209,43,49,50,13687,10060,3627,2.3199999999999998,2.5299999999999998,1.89,3925,10,4,18,0,6,17,1850,12,4,24,0,5,23,17,412,963,919,652,505,388,124,104,463,413,279,165,149,214,131,14058,13687,371,40,38.5,41.2]
["Fremont","015","0028785","27940","","      44440969","        648443",3510,1201,3510,3479,3445,2,2,12,0,18,31,27,3483,1723,434,158,234,421,237,124,80,29,6,1787,446,167,272,407,220,137,64,50,24,1165,3479,2.99,121,1044,983,863,120,61,983,3144,3.2,1201,1165,1030,135,36,1,9,8,3479,3093,386,2.99,3,2.86,1016,1,1,2,0,3,7,134,0,0,0,0,1,0,2,183,391,210,117,79,43,5,10,37,36,25,16,7,4,0,3510,3479,31,35.5,36,35.200000000000003]
["Greenland","015","0028887","31700","","      27162181","       7256874",3208,1244,3208,3191,3137,9,1,39,1,4,17,23,3185,1538,360,121,189,313,233,177,88,51,6,1670,363,148,200,352,248,181,103,58,17,1204,3188,2.65,231,973,892,752,140,81,892,2736,3.07,1244,1204,983,221,40,8,4,19,3188,2722,466,2.65,2.77,2.11,971,3,0,6,0,1,2,215,0,1,3,0,0,2,1,81,289,234,200,101,63,14,7,76,69,20,25,12,11,1,3208,3188,20,38.1,38,38.299999999999997]
["Hampstead","015","0028980","32900","","      34491448","       1784506",8297,3276,8297,8258,8170,19,7,45,4,13,39,65,8232,4116,1028,422,416,834,663,392,248,91,22,4181,957,414,432,891,698,375,225,157,32,3044,8294,2.72,629,2415,2280,2016,264,135,2280,7271,3.19,3276,3044,2530,514,232,11,16,184,8294,7370,924,2.72,2.91,1.8,2500,5,4,11,2,3,5,502,3,2,2,0,1,4,14,248,769,681,398,264,124,32,45,136,135,86,46,34,25,7,8297,8294,3,38.1,37.700000000000003,38.4]
["Hampton","015","0029106","33060","","      33758654","       4013120",14937,9349,14937,14835,14574,59,26,129,10,37,102,135,14802,7256,1349,652,911,1342,1180,843,604,317,58,7681,1355,646,948,1352,1262,898,642,434,144,6465,14768,2.2799999999999998,1942,4523,4033,3269,764,490,4033,11520,2.86,9349,6465,4402,2063,2884,255,42,2471,14768,10786,3982,2.2799999999999998,2.4500000000000002,1.93,4337,10,4,24,2,6,19,2000,12,12,12,4,7,16,18,374,993,1070,844,665,367,71,157,516,513,370,184,146,137,40,14937,14768,169,41.9,41.5,42.5]
["Hampton Falls","015","0029451","33460","","      31639261","        778380",1880,729,1880,1867,1851,1,0,14,0,1,13,13,1867,953,221,83,85,168,165,111,71,39,10,927,194,61,83,173,190,105,75,38,8,704,1880,2.67,116,588,546,496,50,42,546,1655,3.03,729,704,629,75,25,3,5,8,1880,1723,157,2.67,2.74,2.09,623,0,0,3,0,0,3,74,0,0,1,0,0,0,1,44,161,165,109,88,51,10,6,26,13,12,10,3,3,2,1880,1880,0,41.1,40.6,41.6]
["Kensington","015","0029517","39780","","      30958395","         13542",1893,672,1893,1879,1861,2,4,12,0,0,14,0,1893,935,219,83,93,205,167,76,62,28,2,958,238,82,100,207,159,78,58,25,11,657,1893,2.88,88,569,533,479,54,36,533,1696,3.18,672,657,597,60,15,2,2,8,1893,1764,129,2.88,2.95,2.15,591,0,2,3,0,0,1,58,0,2,0,0,0,0,0,56,196,163,81,61,32,8,6,14,19,8,5,7,1,0,1893,1893,0,38.700000000000003,39.4,38.1]
["Kingston","015","0029579","40100","","      50820444","       3256001",5862,2265,5862,5816,5743,13,7,24,3,26,46,48,5814,2887,607,324,337,614,501,284,135,69,16,2975,649,308,361,597,492,273,152,106,37,2122,5862,2.76,370,1752,1635,1404,231,117,1635,5119,3.13,2265,2122,1825,297,143,12,14,91,5862,5215,647,2.76,2.86,2.1800000000000002,1798,4,2,4,1,6,10,288,0,1,2,0,1,5,11,205,549,506,281,160,86,27,10,75,82,43,26,23,30,8,5862,5862,0,38,38.1,37.9]
["Londonderry","015","0029798","43220","","     108280736","        334644",23236,7718,23236,23040,22521,129,40,269,6,75,196,356,22880,11443,3214,1341,1240,2387,1842,862,370,153,34,11793,3131,1313,1395,2581,1860,837,404,231,41,7623,23226,3.05,984,6639,6316,5402,914,323,6316,21199,3.36,7718,7623,6637,986,95,22,11,17,23226,20750,2476,3.05,3.13,2.5099999999999998,6484,39,7,62,1,9,35,955,10,1,6,0,5,9,37,852,2335,1856,910,417,191,39,67,262,273,208,104,41,23,8,23236,23226,10,35,34.6,35.200000000000003]
["New Castle","015","0030105","50980","","       2139569","       4025660",1010,488,1010,999,988,6,0,5,0,0,11,5,1005,494,71,35,42,73,76,79,76,36,6,516,86,22,25,70,97,91,74,41,10,443,999,2.2599999999999998,106,337,314,273,41,23,314,833,2.65,488,443,367,76,45,3,7,29,999,830,169,2.2599999999999998,2.2599999999999998,2.2200000000000002,362,1,0,1,0,0,3,71,0,0,3,0,0,2,0,11,50,69,86,94,46,11,2,15,24,21,8,2,3,1,1010,999,11,49.6,48.3,50.5]
["Newfields","015","0030141","51380","","      18182213","        416825",1551,532,1551,1538,1519,2,0,13,0,4,13,8,1543,764,217,64,68,197,104,60,37,12,5,787,204,70,87,206,106,52,37,19,6,516,1551,3.01,51,465,432,392,40,33,432,1397,3.23,532,516,463,53,16,2,3,3,1551,1425,126,3.01,3.08,2.38,457,1,0,2,0,1,2,52,0,0,1,0,0,0,1,47,181,107,53,47,21,6,3,17,17,8,8,0,0,0,1551,1551,0,36.5,36.700000000000003,36.5]
["Newington","015","0030185","51620","","      21641437","      10666926",775,305,775,768,744,14,2,8,0,0,7,14,761,385,73,37,26,79,80,49,25,13,3,390,68,28,42,73,76,44,36,17,6,294,749,2.5499999999999998,64,230,209,175,34,21,209,630,3.01,305,294,229,65,11,2,0,5,749,606,143,2.5499999999999998,2.65,2.2000000000000002,224,2,1,1,0,0,1,63,2,0,0,0,0,0,1,7,53,68,44,34,19,3,2,17,15,17,9,1,2,2,775,749,26,42.6,42.6,42.7]
["Newmarket","015","0030244","52340","","      32508755","       4189247",8027,3457,8027,7900,7558,51,16,241,0,34,127,139,7888,3982,781,679,768,708,526,247,152,99,22,4045,711,677,745,763,512,235,205,153,44,3379,7993,2.37,929,2450,1949,1541,408,501,1949,5723,2.94,3457,3379,1779,1600,78,30,6,20,7993,4660,3333,2.37,2.62,2.08,1731,2,2,29,0,3,12,1506,18,5,40,0,12,19,22,298,521,416,209,171,120,22,343,507,314,213,90,67,50,16,8027,7993,34,32.6,31.8,33.6]
["Newton","015","0030406","52900","","      25654054","        407605",4289,1552,4289,4256,4199,29,7,3,1,17,33,56,4233,2135,544,220,302,454,314,167,80,46,8,2154,517,202,330,468,303,143,100,72,19,1518,4289,2.83,240,1278,1170,1003,167,108,1170,3727,3.19,1552,1518,1279,239,34,3,3,21,4289,3757,532,2.83,2.94,2.23,1254,9,4,0,1,3,8,234,2,0,1,0,0,2,7,222,420,322,161,91,48,8,22,54,55,32,19,23,28,6,4289,4289,0,35.299999999999997,35,35.5]
["North Hampton","015","0030477","54580","","      36015972","       1288388",4259,1782,4259,4242,4191,13,2,27,0,9,17,33,4226,2078,407,182,197,368,388,248,185,90,13,2181,428,165,205,398,414,250,181,104,36,1671,4259,2.5499999999999998,335,1336,1235,1079,156,101,1235,3651,2.96,1782,1671,1456,215,111,11,20,52,4259,3806,453,2.5499999999999998,2.61,2.11,1446,1,0,4,0,2,3,211,0,0,3,0,0,1,5,101,338,372,274,221,114,31,7,57,51,52,27,7,11,3,4259,4259,0,42.3,42.4,42.3]
["Northwood","015","0030611","56820","","      72480923","       5350765",3640,1905,3640,3608,3550,11,11,24,5,7,32,20,3620,1823,396,234,226,336,300,176,105,44,6,1817,402,194,249,357,291,150,103,54,17,1347,3637,2.7,243,1104,1001,835,166,103,1001,3073,3.07,1905,1347,1140,207,558,14,19,485,3637,3148,489,2.7,2.76,2.36,1122,2,4,4,0,2,6,197,1,2,3,0,0,4,13,154,303,295,179,119,65,12,20,65,61,35,12,5,5,4,3640,3637,3,36.9,37.200000000000003,36.799999999999997]
["Nottingham","015","0030765","57460","","     120368573","       5030642",3701,1592,3701,3687,3641,7,7,21,1,10,14,26,3675,1877,442,174,207,393,357,170,92,38,4,1824,412,159,219,430,307,165,79,38,15,1331,3701,2.78,200,1131,1049,917,132,82,1049,3244,3.09,1592,1331,1214,117,261,3,2,239,3701,3421,280,2.78,2.82,2.39,1201,3,3,3,0,2,2,113,0,2,0,0,0,2,6,149,394,335,172,101,48,9,4,29,36,27,11,8,2,0,3701,3701,0,38.200000000000003,38.5,37.9]
["Plaistow","015","0030933","62500","","      27529614","         23753",7747,2927,7747,7704,7618,16,8,39,0,23,43,102,7645,3788,842,434,488,721,589,367,224,106,17,3959,859,411,488,783,616,368,231,167,36,2871,7736,2.69,548,2323,2149,1725,424,174,2149,6655,3.1,2927,2871,2260,611,56,9,4,22,7736,6344,1392,2.69,2.81,2.2799999999999998,2239,6,0,7,0,4,4,596,3,2,2,0,4,4,12,272,640,563,370,230,150,23,38,162,165,111,54,39,33,9,7747,7736,11,37.4,36.9,37.700000000000003]
["Portsmouth","015","0031060","62900","","      40434441","       3057547",20784,10186,20784,20501,19443,442,44,508,5,59,283,280,20504,10099,1536,1083,2108,1804,1418,856,692,456,146,10685,1451,990,1894,1720,1534,1006,937,759,394,9875,20177,2.04,3846,6029,4862,3730,1132,1167,4862,13390,2.75,10186,9875,4936,4939,311,116,45,80,20177,11214,8963,2.04,2.27,1.81,4796,60,5,44,0,5,26,4598,124,16,120,2,15,64,32,525,1081,1109,798,730,529,132,397,1668,1045,679,382,342,292,134,20784,20177,607,38.5,36.6,40.4]
["Raymond","015","0031593","64020","","      74538535","       2051543",9674,3710,9674,9585,9460,54,23,18,5,25,89,76,9598,4843,1162,640,691,1026,681,356,178,95,14,4831,1128,622,685,1012,629,372,209,124,50,3493,9664,2.77,663,2830,2566,2066,500,264,2566,8171,3.18,3710,3493,2724,769,217,24,22,135,9664,7823,1841,2.77,2.87,2.39,2674,13,6,3,0,4,24,740,4,6,4,1,2,12,44,423,888,641,365,199,132,32,76,202,218,121,64,51,28,9,9674,9664,10,34.4,34.200000000000003,34.700000000000003]
["Rye","015","0031808","66180","","      32681791","      59266859",5182,2645,5182,5155,5115,7,4,24,0,5,27,32,5150,2466,481,186,192,415,471,298,245,136,42,2716,488,179,227,475,451,333,263,198,102,2176,5104,2.35,591,1585,1462,1245,217,123,1462,4196,2.87,2645,2176,1756,420,469,28,12,386,5104,4309,795,2.35,2.4500000000000002,1.89,1741,2,1,4,0,1,7,412,0,0,2,0,1,5,4,90,320,457,324,296,195,70,17,100,124,75,36,21,27,20,5182,5104,78,44.4,44,44.8]
["Salem","015","0031952","66660","","      63979577","       2999425",28112,10866,28112,27812,26708,156,59,639,18,232,300,552,27560,13994,3058,1511,1779,2693,2126,1429,879,424,95,14118,2891,1388,1792,2637,2128,1440,964,663,215,10402,27971,2.69,2201,8201,7602,6303,1299,599,7602,24048,3.16,10866,10402,8132,2270,464,61,41,273,27971,23284,4687,2.69,2.86,2.06,7898,31,13,104,3,34,49,2069,33,6,89,1,31,41,41,887,2197,1991,1416,984,514,102,126,561,589,387,237,157,156,57,28112,27971,141,38.1,37.5,38.6]
["Sandown","015","0032491","67620","","      36018706","       1327983",5143,1777,5143,5107,5062,11,6,8,1,19,36,29,5114,2635,736,273,329,605,409,158,77,37,11,2508,630,256,361,614,364,136,68,51,28,1694,5110,3.02,219,1475,1382,1202,180,93,1382,4587,3.32,1777,1694,1523,171,83,0,2,70,5110,4644,466,3.02,3.05,2.73,1504,2,2,2,0,4,9,167,0,0,0,0,0,4,4,248,588,392,168,75,37,11,8,47,49,35,11,7,8,6,5143,5110,33,34.799999999999997,34.299999999999997,35.1]
["Seabrook","015","0032659","68260","","      22958636","       1951970",7934,4066,7934,7856,7737,27,19,43,0,30,78,68,7866,3960,694,385,564,675,571,466,369,194,42,3974,692,348,581,591,551,479,411,263,58,3425,7934,2.3199999999999998,996,2429,2162,1651,511,267,2162,6159,2.85,4066,3425,2154,1271,641,58,22,508,7934,5210,2724,2.3199999999999998,2.42,2.14,2130,4,5,4,0,4,7,1218,12,6,7,0,9,19,14,208,359,459,404,408,244,58,89,340,338,186,152,80,72,14,7934,7934,0,40.299999999999997,39.6,41.1]
["South Hampton","015","0032805","71140","","      20389394","        349028",844,308,844,837,827,5,0,1,4,0,7,3,841,397,84,28,38,77,80,36,30,17,7,447,97,37,50,77,85,41,30,20,10,301,844,2.8,39,262,244,208,36,18,244,749,3.07,308,301,270,31,7,1,0,5,844,778,66,2.8,2.88,2.13,267,1,0,0,1,0,1,30,0,0,0,0,0,1,0,22,62,86,36,35,25,4,0,8,8,7,2,2,2,2,844,844,0,40.4,41.1,39.700000000000003]
["Stratham","015","0032847","74340","","      39136133","        945938",6355,2371,6355,6301,6226,10,3,53,0,9,54,41,6314,3094,804,252,338,644,550,249,164,84,9,3261,773,285,351,725,575,245,178,112,17,2306,6355,2.76,426,1880,1744,1556,188,136,1744,5541,3.18,2371,2306,2057,249,65,8,15,20,6355,5787,568,2.76,2.81,2.2799999999999998,2027,5,0,13,0,3,9,245,0,1,0,0,2,1,7,222,652,581,276,196,109,14,9,75,69,55,20,16,5,0,6355,6355,0,37.9,37.700000000000003,38.1]
["Windham","015","0032958","85780","","      69409888","       2744805",10709,3906,10709,10634,10376,34,7,167,13,37,75,106,10603,5388,1394,523,493,1070,1038,555,208,90,17,5321,1266,520,548,1117,1041,438,192,129,70,3568,10638,2.98,402,3166,3018,2755,263,148,3018,9806,3.25,3906,3568,3353,215,338,2,10,301,10638,10096,542,2.98,3.01,2.52,3269,9,1,50,3,7,14,209,2,1,1,0,1,1,7,340,1038,1063,553,224,102,26,15,58,63,46,19,8,4,2,10709,10638,71,37.799999999999997,37.799999999999997,37.799999999999997]
[]
[]
[]
[]
[]
[]
[]
[]
[]
[]
["Census 2000 DemoProfile Sample Data Tables 2&3   -  DPTab23TownQry"]
[]
["TOWN_NAME","COUSUB","AREANAME","PopInSchool","Preschool","Kindergarten","Elementary","HighSchool","College","Pop25andOver","HighSchoolGrad","SomeCollege","AssocDegree","BachelDegree","GradDegree","HSGradorHigher","CollegeGradorHigher","Pop5to20yrs","Pop5to20wDis","Pop21to64","Pop21to64wDis","Pop65over","Pop65overwDis","Pop5yrsOver","SameHUin95","DiffHUinUSin95","HUinSameCountyin95","HUinSameStatein95","TotalPop","NativePop","NatPopBornUS","NatPopBornInStatRes","NatPopBornDiffState","NatPopBornOutUS","FornBornPop","FornPopEnt90to00","FornPopNatCit","FornPopNotCit","Households","HHIncLessThn10k","HHInc10to15K","HHInc15to25K","HHInc25to35K","HHInc35to50K","HHInc50to75K","HHInc75to100K","HHInc100to150K","HHInc150to200K","HHIncOver200K","MedianHHInc","HHwithPubAssistInc","MeanPubAssist","FamilyHH","FHHIncLessThn10k","FHHInc10to15K","FHHInc15to25K","FHHInc25to35K","FHHInc35to50K","FHHInc50to75K","FHHInc75to100K","FHHInc100to150K","FHHInc150to200K","FHHIncOver200K","MedianFHHInc","PerCapitaInc","PovStatFamilies","PovStatFHHwChilUnd18","PovStatFHHwChilUnd5","PovStFmalHH","DP3088","DP3089","PovStatIndiv","PovStatIndiv18yrOver","PovStatIndiv65yrOver","DP3093","DP3094","DP3095","CNTY_NAME"]
["Atkinson","02340","Atkinson town, Rockingham County, New Hampshire",1575,120,97,725,335,298,4345,1044,898,494,1145,559,4140,1704,1262,60,3808,513,697,173,5767,3612,2095,903,1192,6178,5916,5889,421,5468,27,262,31,232,30,2326,80,77,133,120,348,485,405,449,111,118,69729,33,905,1781,24,25,8,90,250,437,337,406,101,103,77631,30412,41,34,8,23,16,0,202,133,15,69,53,65,"Rockingham"]
["Auburn","02820","Auburn town, Rockingham County, New Hampshire",1268,100,78,599,312,179,3038,976,594,394,585,236,2785,821,1157,97,2905,420,285,106,4347,2863,1460,604,856,4682,4580,4540,2465,2075,40,102,23,71,31,1573,45,35,57,91,190,466,347,196,78,68,70774,8,16000,1305,21,8,49,50,150,421,329,173,64,40,72578,28405,21,5,5,5,5,5,83,73,32,10,6,38,"Rockingham"]
["Brentwood","07220","Brentwood town, Rockingham County, New Hampshire",779,66,63,348,193,109,2192,684,438,167,363,240,1892,603,640,65,1624,123,253,77,2986,1786,1191,715,476,3197,3082,3053,1120,1933,29,115,4,57,58,906,35,23,41,70,132,206,220,106,50,23,68971,27,1396,780,19,14,24,54,123,183,202,110,35,16,71875,22027,26,18,8,16,8,8,100,66,16,34,25,33,"Rockingham"]
["Candia","09300","Candia town, Rockingham County, New Hampshire",1083,68,43,530,226,216,2654,821,560,309,546,220,2456,766,868,68,2491,310,281,87,3640,2756,873,313,560,3911,3829,3823,2140,1683,6,82,18,59,23,1360,24,21,109,96,246,353,269,177,37,28,61389,16,2725,1113,16,20,66,63,195,277,258,153,37,28,67163,25267,26,10,5,5,5,0,103,72,15,23,17,31,"Rockingham"]
["Chester","12100","Chester town, Rockingham County, New Hampshire",1079,86,41,528,237,187,2402,675,559,230,469,278,2211,747,985,95,2264,349,229,101,3478,2042,1432,762,670,3792,3699,3649,1251,2398,50,93,16,63,30,1212,48,35,72,87,145,263,267,223,50,22,68571,17,3465,1014,16,8,58,69,124,231,231,205,50,22,75092,23842,34,30,9,8,8,0,188,116,12,68,60,66,"Rockingham"]
["Danville","17140","Danville town, Rockingham County, New Hampshire",1050,80,58,595,176,141,2675,909,759,256,378,130,2432,508,934,72,2483,390,287,84,3704,1701,2003,1067,936,4023,3931,3892,630,3262,39,92,10,64,28,1421,48,11,79,105,305,445,261,145,8,14,57287,14,1264,1109,17,12,53,84,200,365,225,131,8,14,63239,22152,35,24,6,18,18,0,162,99,24,63,57,44,"Rockingham"]
["Deerfield","17460","Deerfield town, Rockingham County, New Hampshire",1051,49,69,596,226,111,2388,774,418,239,509,249,2189,758,948,77,2212,318,250,50,3410,1896,1493,767,726,3678,3619,3593,1752,1841,26,59,17,42,17,1229,40,6,89,89,201,359,215,155,54,21,61367,26,4769,996,7,6,61,62,173,297,189,148,32,21,64737,24160,13,6,0,0,0,0,117,95,26,11,11,80,"Rockingham"]
["Derry","17940","Derry town, Rockingham County, New Hampshire",10125,713,537,5121,2147,1607,21311,6466,4973,2328,3869,1742,19378,5611,8899,839,20543,2736,1973,789,31589,16602,14598,6734,7864,34021,32506,32216,8232,23984,290,1515,465,698,817,12340,483,406,1070,1459,2010,3338,1989,1211,265,109,54634,172,3322,8865,157,175,641,815,1397,2596,1698,1052,230,104,61625,22315,296,257,70,182,169,39,1564,1009,141,499,368,594,"Rockingham"]
["East Kingston","21380","East Kingston town, Rockingham County, New Hampshire",467,37,35,224,106,65,1223,363,223,136,266,129,1117,395,419,19,1125,107,126,31,1670,1112,552,229,323,1784,1722,1717,503,1214,5,62,20,28,34,625,19,16,15,47,107,165,92,125,17,22,65197,12,3567,495,14,8,11,26,72,132,83,116,15,18,71705,28844,16,13,3,6,6,3,77,40,0,30,26,24,"Rockingham"]
["Epping","24660","Epping town, Rockingham County, New Hampshire",1390,90,97,705,293,205,3606,1242,829,454,392,130,3047,522,1254,57,3321,485,510,274,5090,2766,2303,1351,952,5476,5406,5352,2233,3119,54,70,10,50,20,2053,64,98,253,216,368,578,257,191,28,0,50739,34,2650,1488,15,43,146,157,291,451,214,153,18,0,54722,21109,39,28,14,25,19,14,180,104,31,67,38,55,"Rockingham"]
["Exeter","25380","Exeter town, Rockingham County, New Hampshire",3485,291,129,1682,882,501,9918,2562,1858,633,1990,1774,8817,3764,2901,193,7946,1062,2138,820,13251,7181,5843,3514,2329,14058,13472,13270,4974,8296,202,586,183,320,266,5900,357,276,647,633,1063,1334,672,581,162,175,49618,114,2299,3710,84,41,235,265,697,984,543,555,145,161,63088,27105,108,93,41,70,55,26,742,482,97,228,174,353,"Rockingham"]
["Fremont","27940","Fremont town, Rockingham County, New Hampshire",934,87,51,480,203,113,2316,840,541,223,298,136,2038,434,794,43,2151,255,222,82,3205,1742,1450,905,545,3510,3443,3428,1059,2369,15,67,18,20,47,1169,43,20,37,104,186,378,206,141,15,39,62171,17,1847,993,29,12,24,78,147,346,182,134,15,26,63808,24082,38,34,17,12,8,5,145,82,11,51,27,36,"Rockingham"]
["Greenland","31700","Greenland town, Rockingham County, New Hampshire",799,77,39,399,152,132,2220,599,413,238,556,260,2066,816,699,21,1943,164,336,128,2983,1706,1253,747,506,3205,3084,3046,1429,1617,38,121,28,54,67,1211,44,40,49,95,162,347,177,204,31,62,62172,8,9900,920,29,24,11,72,116,258,152,174,22,62,67188,31270,33,22,4,4,4,4,190,105,19,85,78,41,"Rockingham"]
["Hampstead","32900","Hampstead town, Rockingham County, New Hampshire",2363,144,73,1357,493,296,5530,1440,1107,605,1318,691,5161,2009,2069,84,4952,379,777,225,7818,4588,3140,1705,1435,8297,8054,7981,1435,6546,73,243,40,149,94,3045,94,78,237,241,458,589,574,525,190,59,68533,19,7147,2313,28,38,86,152,294,476,528,475,187,49,79114,29195,56,56,43,32,32,19,316,157,29,148,92,88,"Rockingham"]
["Hampton","33060","Hampton town, Rockingham County, New Hampshire",3316,271,210,1428,729,678,10952,3035,2044,903,2674,1298,9954,3972,2709,185,9138,1510,2083,723,14038,7320,6610,2988,3622,14937,14247,14166,4010,10156,81,690,215,367,323,6474,343,256,663,579,1025,1430,979,754,266,179,54419,132,2597,4074,138,81,320,282,593,964,730,603,234,129,66000,29878,184,140,48,124,102,33,870,598,148,235,170,352,"Rockingham"]
["Hampton Falls","33460","Hampton Falls town, Rockingham County, New Hampshire",497,62,16,247,98,74,1320,238,234,130,450,208,1260,658,400,22,1110,158,242,64,1752,1177,554,282,272,1880,1834,1815,557,1258,19,46,20,25,21,711,21,10,43,61,80,134,128,129,63,42,76348,12,4000,547,7,2,25,34,56,107,103,113,58,42,86229,35060,12,9,0,2,2,0,55,38,8,15,15,18,"Rockingham"]
["Kensington","39780","Kensington town, Rockingham County, New Hampshire",502,53,30,252,101,66,1267,357,249,129,295,163,1193,458,435,30,1132,131,174,50,1743,1160,564,223,341,1887,1857,1841,594,1247,16,30,6,14,16,657,21,17,37,60,78,166,80,124,33,41,67344,4,4575,530,11,8,26,32,63,138,74,112,33,33,72679,29265,18,11,5,4,4,2,87,61,8,26,18,24,"Rockingham"]
["Kingston","40100","Kingston town, Rockingham County, New Hampshire",1506,103,67,768,274,294,3979,1298,941,430,543,366,3578,909,1301,45,3683,515,517,119,5501,3687,1814,896,918,5862,5738,5705,1296,4409,33,124,9,79,45,2132,74,59,127,239,313,526,314,315,71,94,61522,18,2178,1653,29,10,94,180,173,483,275,252,71,86,66509,28795,29,19,8,0,0,0,147,122,18,25,18,72,"Rockingham"]
["Londonderry","43220","Londonderry town, Rockingham County, New Hampshire",7408,491,459,3713,1825,920,14145,3538,3147,1458,3454,1618,13215,5072,6743,596,13518,1678,1226,504,21511,11742,9564,3750,5814,23236,22444,22244,6392,15852,200,792,199,406,386,7635,207,162,398,474,945,1996,1522,1243,420,268,70501,121,1795,6405,71,75,246,357,812,1748,1341,1189,343,223,73513,26491,101,63,6,16,8,0,483,377,77,89,78,208,"Rockingham"]
["New Castle","50980","New Castle town, Rockingham County, New Hampshire",245,24,14,102,68,37,749,93,114,58,265,196,726,461,207,15,514,29,235,62,966,612,349,135,214,1009,959,955,396,559,4,50,6,33,17,413,2,3,26,38,52,75,46,71,14,86,83708,0,0,297,0,2,11,26,32,58,33,56,12,67,93290,67695,0,0,0,0,0,0,6,6,0,0,0,6,"Rockingham"]
["Newfields","51380","Newfields town, Rockingham County, New Hampshire",478,54,29,228,90,77,981,195,178,99,266,168,906,434,393,22,895,92,117,43,1407,818,588,277,311,1551,1526,1512,758,754,14,25,9,17,8,517,10,6,34,30,56,135,112,81,15,38,71375,0,0,433,7,3,24,19,54,109,95,75,15,32,75078,28687,11,9,5,8,8,5,44,29,0,13,7,14,"Rockingham"]
["Newington","51620","Newington town, Rockingham County, New Hampshire",164,14,12,82,38,18,567,156,99,58,131,46,490,177,154,11,506,72,76,32,742,509,221,124,97,778,749,740,370,370,9,29,2,18,11,293,14,13,19,28,45,56,50,47,13,8,59464,0,0,202,10,5,6,14,22,43,42,45,7,8,76202,30172,10,5,0,5,3,0,36,28,4,8,8,9,"Rockingham"]
["Newmarket","52340","Newmarket town, Rockingham County, New Hampshire",2154,108,98,776,395,777,5150,1484,1002,522,1151,541,4700,1692,1580,165,5235,732,672,288,7512,3230,4185,1894,2291,8027,7687,7616,3488,4128,71,340,74,179,161,3373,210,231,446,368,604,825,410,203,53,23,46058,83,3535,1955,73,87,118,222,380,523,355,141,33,23,53750,22085,111,102,30,65,65,30,669,467,37,195,152,314,"Rockingham"]
["Newton","52900","Newton town, Rockingham County, New Hampshire",1229,107,33,653,240,196,2788,863,664,359,467,128,2481,595,1064,90,2585,435,325,160,3974,2268,1689,506,1183,4289,4181,4159,675,3484,22,108,32,57,51,1509,48,37,140,132,211,437,277,196,16,15,60972,18,1839,1183,32,11,94,95,172,392,211,156,12,8,62271,22910,32,18,10,18,18,10,172,126,52,42,31,58,"Rockingham"]
["North Hampton","54580","North Hampton town, Rockingham County, New Hampshire",985,75,54,515,185,156,3073,746,602,206,781,458,2793,1239,865,39,2582,336,608,179,4055,2482,1507,749,758,4259,4165,4147,1428,2719,18,94,30,58,36,1660,97,30,109,154,183,402,229,268,76,112,66696,20,475,1232,13,7,65,83,148,325,191,235,66,99,72500,34187,20,7,0,7,7,0,141,127,37,7,7,101,"Rockingham"]
["Northwood","56820","Northwood town, Rockingham County, New Hampshire",1024,64,33,500,269,158,2417,827,532,253,405,172,2189,577,906,71,2183,287,329,125,3422,2005,1389,459,930,3640,3587,3537,1851,1686,50,53,0,36,17,1365,72,45,136,160,256,385,156,121,14,20,50675,34,1914,1013,9,24,87,127,200,323,116,102,14,11,53953,21491,15,15,7,9,9,3,153,116,10,29,17,99,"Rockingham"]
["Nottingham","57460","Nottingham town, Rockingham County, New Hampshire",1016,80,80,485,246,125,2527,749,575,218,425,215,2182,640,870,52,2325,331,266,122,3461,2010,1403,747,656,3701,3614,3595,1578,2017,19,87,17,64,23,1331,45,26,109,88,202,425,242,159,11,24,62423,14,3807,1062,10,0,83,56,171,377,186,144,11,24,65510,24879,10,10,0,10,10,0,92,75,6,12,12,70,"Rockingham"]
["Plaistow","62500","Plaistow town, Rockingham County, New Hampshire",2101,186,95,951,445,424,5208,1655,1240,589,891,364,4739,1255,1713,126,4750,601,782,291,7245,4254,2991,1396,1595,7747,7522,7441,862,6579,81,225,66,150,75,2873,136,74,191,312,392,685,607,366,54,56,61707,24,3988,2157,39,23,95,194,314,526,537,326,47,56,66852,25255,46,23,0,18,12,0,245,217,59,28,28,130,"Rockingham"]
["Portsmouth","62900","Portsmouth city, New Hampshire",3963,316,209,1553,882,1003,15911,3870,2829,1167,4453,2216,14535,6669,2987,313,13298,2160,3050,1217,19787,9400,9993,4783,5210,20785,19758,19482,7745,11737,276,1027,508,445,582,9933,899,574,1105,1140,1629,2174,1177,822,256,157,45195,337,3486,4954,185,194,350,496,766,1266,854,554,189,100,59630,27540,318,282,143,173,166,65,1883,1363,255,483,345,918,"Rockingham"]
["Raymond","64020","Raymond town, Rockingham County, New Hampshire",2697,211,66,1399,664,357,6149,2292,1445,593,495,307,5132,802,2379,276,5955,1002,666,356,9000,5286,3676,1815,1861,9674,9450,9390,3515,5875,60,224,38,127,97,3481,236,122,260,551,616,1084,367,218,27,0,48829,90,2651,2557,103,73,168,425,459,803,316,183,27,0,50889,18430,135,104,16,32,32,8,582,360,105,215,195,147,"Rockingham"]
["Rye","66180","Rye town, Rockingham County, New Hampshire",1281,132,107,557,233,252,3815,637,582,353,1229,806,3607,2035,1018,26,2943,277,936,219,4947,2928,1930,766,1164,5182,4961,4899,1884,3015,62,221,65,143,78,2174,57,142,196,174,288,450,247,316,150,154,63152,6,600,1458,16,37,100,114,157,306,209,267,106,146,74956,36746,23,23,14,9,9,0,181,118,8,63,39,83,"Rockingham"]
["Salem","66660","Salem town, Rockingham County, New Hampshire",6996,533,398,3486,1484,1095,19282,6510,3849,1662,3398,1497,16916,4895,6065,373,17028,2801,3135,1158,26347,17341,8704,4101,4603,28112,26309,26086,2923,23163,223,1803,535,1130,673,10393,343,416,1062,962,1478,2263,1671,1479,443,276,58090,97,2215,7609,153,126,519,549,978,1874,1394,1360,389,267,67278,26170,238,166,76,86,74,27,1155,776,237,352,267,394,"Rockingham"]
["Sandown","67620","Sandown town, Rockingham County, New Hampshire",1551,103,57,859,334,198,3246,1063,836,377,502,199,2977,701,1358,111,3103,449,271,112,4739,3105,1634,978,656,5143,4982,4956,1217,3739,26,161,17,104,57,1692,49,39,86,102,256,442,340,276,69,33,67581,15,2353,1395,26,21,47,68,186,384,326,247,64,26,73083,25978,46,29,16,12,12,4,210,167,25,43,28,74,"Rockingham"]
["Seabrook","68260","Seabrook town, Rockingham County, New Hampshire",1629,130,85,770,302,342,5809,2164,1085,442,648,209,4548,857,1357,216,4764,1068,1339,506,7467,4376,3036,1232,1804,7934,7750,7705,1798,5907,45,184,56,103,81,3413,275,202,350,502,695,817,331,194,33,14,42874,38,889,2171,88,42,158,356,499,602,244,155,13,14,47718,20992,133,105,65,74,74,45,683,417,124,253,162,239,"Rockingham"]
["South Hampton","71140","South Hampton town, Rockingham County, New Hampshire",200,16,9,115,33,27,601,176,145,48,125,49,543,174,185,5,493,104,124,43,802,579,223,62,161,850,835,827,145,682,8,15,4,7,8,300,8,7,28,29,37,55,54,54,6,22,63750,6,4617,248,0,2,20,19,33,48,56,42,6,22,75778,28287,2,2,0,0,0,0,23,12,0,7,7,12,"Rockingham"]
["Stratham","74340","Stratham town, Rockingham County, New Hampshire",1848,150,84,925,389,300,4321,765,872,373,1514,628,4152,2142,1529,124,3832,250,569,181,5930,3451,2428,1134,1294,6355,6163,6146,2040,4106,17,192,66,128,64,2308,12,62,149,163,298,430,454,416,169,155,76726,8,1200,1766,0,15,95,135,200,328,360,361,151,121,81391,33270,9,9,0,0,0,0,74,49,6,19,19,36,"Rockingham"]
["Windham","85780","Windham town, Rockingham County, New Hampshire",3166,220,98,1690,637,521,7097,1487,1291,655,2184,1205,6822,3389,2697,121,6580,638,646,228,9981,6022,3914,1446,2468,10709,10308,10275,1550,8725,33,401,47,252,149,3579,41,68,131,129,321,560,662,929,339,399,94794,40,3844,3053,7,36,80,77,247,444,645,815,313,389,99570,38559,35,18,9,7,0,0,187,130,7,49,34,66,"Rockingham"]
[]
[]
[]
[]
[]
[]
[]
[]
[]
[]
["Census 2000 DemoProfile Sample Data Table 4   -  DPTab4TownQry"]
[]
["TOWN_NAME","COUSUB","TotHousingUnits","1UnitDet","1UnitAtt","2Units","3to4Units","5to9Units","10to19Units","20orMoreUnits","MobileHomes","BoatRvVan","SingleFamilyUnits","MultiFamUnits","MobileHomeUnits","YearBuilt99to00","YearBuilt95to98","YearBUilt90to94","YearBuilt80to89","YearBuilt70to79","YearBuilt60to69","YearBuilt40to59","YearBuilt39orEarlier","Rooms1","Rooms2","Rooms3","Rooms4","Rooms5","Rooms6","Rooms7","Rooms8","Rooms9orMore","MedianRooms","OccHU1","YrHHMvdIn99to00","YrHHMvdIn95to98","YrHHMvdIn90to94","YrHHMvdIn80to89","YrHHMvdIn70to79","YrHHMvdIn69orBefore","HeatFuelNatGas","HeatFuelBotGas","HeatFuelElectric","HeatFuelOil","HeatFuelCoal","HeatFuelWood","HeatFuelSolar","HeatFuelOther","HeatFuelNone","LackCompPlumb","LackCompKit","NoTelephone","OccHU","OccPerRm1orLess","OccPerRm1to1_5","OccPerRm1_5orMore","SpecOwnOccUnits","Value<50K","Value50to100K","Value100to150K","Value150to200K","Value200to300K","Value300to500K","Value500Kto1mil","Value1MilorMore","MedianValue","WithMortg","MnthOwnCst<300","MnthOwnCst300to500","MnthOwnCst500to700","MnthOwnCst700to1000","MnthOwnCst1000to1500","MnthOwnCst1500to2000","MnthOwnCst2000orMore","MediMnthOwnCst","NotMrtg","NotMrtgMediMnthOwnCst","OwnCst%HHInc<15","OwnCst%HHInc15to20","OwnCst%HHInc20to25","OwnCst%HHInc25to30","OwnCst%HHInc30to35","OwnCst%HHInc35orMor","NotComputed","SpecRntOccUnits","Rnt<200","Rnt200to300","Rnt300to500","Rnt500to750","Rnt750to1000","Rnt1000to1500","Rnt1500orMore","NoRent","MedianRent","Rnt%HHInc<15","Rnt%HHInc15to20","Rnt%HHInc20to25","Rnt%HHInc25to30","Rnt%HHInc30to35","Rnt%HHInc35orMore","Rnt%NotCompute","CNTY_NAME"]
["Atkinson","02340",2431,1826,322,81,61,0,125,6,10,0,1826,595,10,86,246,316,426,613,355,272,117,0,105,36,131,409,559,457,358,376,6.5,2317,256,632,437,479,354,159,313,223,85,1657,7,32,0,0,0,0,0,0,2317,2302,15,0,1791,0,34,226,670,632,170,59,0,197900,1426,0,24,58,121,552,485,186,1465,365,459,595,278,253,241,114,310,0,238,10,0,92,102,18,0,0,16,509,33,43,10,30,10,96,16,"Rockingham"]
["Auburn","02820",1622,1515,7,38,11,20,20,0,11,0,1515,96,11,77,103,154,402,350,156,195,185,10,5,46,122,258,402,374,236,169,6.4,1580,180,374,267,399,217,143,0,154,16,1301,20,82,7,0,0,5,0,0,1580,1562,18,0,1289,5,199,480,317,236,41,6,5,145700,1029,0,5,55,199,510,161,99,1230,260,429,466,246,201,144,86,140,6,119,0,0,12,69,16,11,0,11,611,19,26,33,11,0,19,11,"Rockingham"]
["Brentwood","07220",920,833,17,10,4,0,0,0,56,0,833,31,56,27,116,111,162,164,110,71,159,0,4,8,81,134,168,238,177,110,6.8,911,100,245,190,134,159,83,4,76,23,761,5,42,0,0,0,0,0,10,911,903,8,0,663,4,64,159,160,223,53,0,0,182900,520,0,0,28,69,179,143,101,1448,143,467,177,103,120,99,57,107,0,57,0,0,5,23,5,0,12,12,654,12,5,6,16,0,6,12,"Rockingham"]
["Candia","09300",1384,1261,19,30,0,29,0,0,45,0,1261,78,45,75,75,77,293,313,118,101,332,0,0,22,86,238,383,280,184,191,6.4,1359,126,252,256,380,212,133,0,217,26,1032,6,78,0,0,0,0,0,7,1359,1349,10,0,948,0,140,409,289,99,11,0,0,141000,800,0,11,30,145,431,138,45,1223,148,420,261,218,137,124,72,136,0,98,0,7,14,23,35,7,0,12,748,21,14,28,16,0,7,12,"Rockingham"]
["Chester","12100",1247,1113,66,24,4,14,0,0,26,0,1113,108,26,77,140,167,233,213,82,68,267,0,4,34,67,159,307,265,201,210,6.7,1214,170,303,228,316,124,73,4,108,18,998,0,86,0,0,0,3,4,6,1214,1199,15,0,902,4,51,270,277,246,50,4,0,170900,782,0,0,24,111,282,247,118,1459,120,502,175,163,174,108,74,201,7,60,0,0,0,21,10,10,0,19,695,0,21,0,0,5,15,19,"Rockingham"]
["Danville","17140",1479,1034,6,29,48,0,0,0,332,30,1034,83,362,43,395,151,477,152,39,58,164,0,52,74,215,330,370,210,112,116,5.7,1428,247,562,230,242,70,77,18,397,37,888,13,60,0,0,15,7,0,22,1428,1403,25,0,882,12,41,300,371,152,6,0,0,160900,767,0,26,25,79,381,211,45,1340,115,356,138,197,136,146,126,139,0,126,0,0,9,62,32,15,0,8,613,25,52,11,0,14,16,8,"Rockingham"]
["Deerfield","17460",1406,1231,18,62,13,0,0,0,82,0,1231,93,82,51,105,115,322,211,127,145,330,0,20,24,155,344,287,230,131,215,6.1,1225,196,377,195,234,157,66,6,137,14,964,6,93,0,5,0,6,6,0,1225,1185,36,4,765,0,95,327,194,138,5,0,6,144900,621,0,10,13,120,285,143,50,1322,144,465,207,140,101,118,102,97,0,111,0,0,9,50,42,10,0,0,742,0,19,51,0,0,32,9,"Rockingham"]
["Derry","17940",12735,6347,1378,1127,415,421,751,1741,555,0,6347,5833,555,157,414,935,4268,3327,1381,828,1425,142,287,1098,2909,2558,2287,1722,1040,692,5.3,12327,2441,4472,1708,2321,844,541,805,1742,1829,7377,76,310,9,153,26,44,38,71,12327,12071,194,62,6499,88,1170,3058,1672,477,25,0,9,134900,5755,0,31,152,921,2736,1461,454,1327,744,476,1117,1406,1270,1105,473,1095,33,4322,79,135,245,1761,1521,513,17,51,734,811,821,754,448,303,1101,84,"Rockingham"]
["East Kingston","21380",648,565,4,11,0,0,0,4,64,0,565,19,64,12,45,133,106,101,52,68,131,0,6,22,68,72,169,120,115,76,6.4,629,54,189,145,111,94,36,9,32,16,543,0,29,0,0,0,0,0,2,629,629,0,0,414,0,28,103,101,154,24,4,0,185800,369,0,3,6,58,157,106,39,1355,45,454,81,100,79,50,26,78,0,49,0,0,6,15,21,5,0,2,819,11,8,7,4,8,9,2,"Rockingham"]
["Epping","24660",2215,1390,77,85,76,108,36,15,428,0,1390,397,428,35,157,197,653,432,132,145,464,0,81,138,438,423,411,367,201,156,5.6,2047,365,654,258,503,160,107,39,296,103,1472,0,127,0,10,0,0,0,12,2047,1993,41,13,1136,31,204,540,259,51,51,0,0,132600,967,0,10,101,146,509,185,16,1191,169,409,285,204,197,149,115,186,0,442,8,39,71,184,97,18,0,25,602,87,92,43,52,35,108,25,"Rockingham"]
["Exeter","25380",6107,2707,218,489,384,357,263,619,1070,0,2707,2330,1070,127,238,449,1215,1050,598,753,1677,107,299,645,1235,1209,889,727,568,428,5.0999999999999996,5898,1133,1890,1006,1032,452,385,1702,422,540,3124,8,49,0,32,21,15,15,88,5898,5829,55,14,2465,0,89,835,713,591,220,17,0,170000,1839,0,7,65,128,853,476,310,1426,626,520,679,435,419,327,199,389,17,1913,122,57,272,556,367,196,194,149,702,248,344,267,161,119,609,165,"Rockingham"]
["Fremont","27940",1201,1010,38,29,45,20,0,0,56,3,1010,132,59,64,144,139,377,116,72,100,189,0,0,58,146,254,321,209,119,94,5.9,1165,208,402,207,221,81,46,8,123,31,918,3,77,0,5,0,4,7,12,1165,1143,7,15,849,11,64,295,348,121,10,0,0,156000,762,8,3,36,105,405,167,38,1284,87,390,204,131,165,146,74,120,9,121,0,5,9,34,51,12,0,10,788,32,21,18,14,11,15,10,"Rockingham"]
["Greenland","31700",1245,964,77,153,17,21,7,0,6,0,964,275,6,62,85,137,243,169,184,201,164,0,24,36,154,246,197,187,178,223,6.3,1204,195,319,160,201,171,158,41,112,63,970,0,18,0,0,0,0,0,13,1204,1193,11,0,789,6,19,140,204,217,146,57,0,213000,509,0,12,28,78,117,98,176,1550,280,417,288,115,91,95,56,144,0,220,0,0,14,47,75,65,7,12,885,41,63,38,14,12,40,12,"Rockingham"]
["Hampstead","32900",3276,2463,155,58,81,99,171,5,236,8,2463,569,244,110,267,344,1021,480,320,384,350,21,152,187,505,465,445,602,342,557,6.2,3044,344,985,645,644,276,150,90,488,154,2198,8,33,0,48,25,0,0,10,3044,3028,16,0,2115,0,117,438,620,768,167,5,0,190600,1721,0,0,43,129,530,627,392,1563,394,490,545,428,396,226,178,334,8,514,21,10,59,290,50,40,24,20,568,157,91,79,39,28,100,20,"Rockingham"]
["Hampton","33060",9349,5207,466,780,482,735,482,819,270,108,5207,3764,378,82,514,425,1736,1346,1393,2315,1538,435,497,1144,1801,1740,1235,865,748,884,5,6465,1170,2288,979,1190,449,389,3550,154,806,1861,8,49,0,37,0,28,56,57,6465,6339,59,67,3468,0,95,765,1034,961,496,102,15,190400,2548,0,15,81,331,931,733,457,1456,920,470,1013,678,528,306,243,674,26,2069,91,39,188,960,485,175,44,87,682,415,425,296,157,134,539,103,"Rockingham"]
["Hampton Falls","33460",729,665,32,14,4,4,0,0,10,0,665,54,10,13,64,80,165,111,79,88,129,2,9,15,40,55,122,153,133,200,7.3,704,90,171,135,167,68,73,5,59,33,576,2,25,0,4,0,5,0,0,704,704,0,0,516,0,2,40,98,180,152,44,0,266300,395,0,0,6,44,61,139,145,1656,121,517,156,71,90,53,32,114,0,73,0,0,2,23,24,5,13,6,821,14,13,2,12,6,20,6,"Rockingham"]
["Kensington","39780",671,601,4,22,12,0,2,0,30,0,601,40,30,25,57,53,151,126,61,57,141,0,7,17,35,92,165,131,123,101,6.6,656,64,175,86,202,70,59,35,40,19,522,0,38,0,2,0,4,2,2,656,649,7,0,463,0,10,74,143,171,61,4,0,201900,367,0,0,12,26,157,101,71,1468,96,462,129,74,80,57,31,92,0,54,2,0,2,18,11,10,2,9,825,9,4,12,7,4,7,11,"Rockingham"]
["Kingston","40100",2265,1825,85,87,34,94,0,0,140,0,1825,300,140,57,85,133,490,372,322,321,485,0,35,76,214,513,534,378,270,245,6.1,2122,192,635,442,405,301,147,9,191,56,1708,0,135,0,14,9,0,0,0,2122,2103,19,0,1574,0,154,555,428,391,38,8,0,156600,1272,0,20,62,189,560,269,172,1259,302,388,358,397,283,195,92,249,0,289,16,0,18,142,39,47,9,18,644,56,82,7,45,0,73,26,"Rockingham"]
["Londonderry","43220",7718,5388,1011,283,75,335,249,47,330,0,5388,2000,330,308,701,524,2434,2644,561,299,247,15,12,124,843,1375,1245,1575,1664,865,6.7,7623,1229,2436,1112,1912,753,181,383,1454,605,4975,38,161,0,7,0,9,0,15,7623,7575,48,0,5645,44,598,1828,1859,1152,146,10,8,158700,4939,0,28,71,486,1981,1552,821,1479,706,517,1318,1103,1109,660,539,916,0,960,0,8,24,236,317,207,79,89,837,219,161,138,40,94,202,106,"Rockingham"]
["New Castle","50980",491,436,20,28,7,0,0,0,0,0,436,55,0,18,63,15,47,22,32,90,204,1,2,4,17,63,102,105,99,98,7,444,36,159,68,63,53,65,4,48,9,377,0,4,0,2,0,0,2,0,444,444,0,0,343,0,0,2,8,30,107,145,51,566600,175,0,0,6,22,23,22,102,1841,168,603,133,45,36,28,32,69,0,63,0,0,1,6,8,17,29,2,1462,14,16,12,7,2,10,2,"Rockingham"]
["Newfields","51380",532,467,10,30,10,4,0,0,11,0,467,54,11,15,122,81,64,34,31,43,142,0,7,11,39,72,105,107,88,103,6.8,516,52,165,122,92,38,47,0,53,12,434,0,17,0,0,0,0,0,0,516,516,0,0,387,0,15,90,96,84,94,8,0,196500,308,0,3,11,26,88,103,77,1563,79,478,86,62,96,60,29,54,0,53,0,0,5,30,11,7,0,0,656,20,9,12,2,3,4,3,"Rockingham"]
["Newington","51620",304,261,7,23,10,0,0,0,2,1,261,40,3,2,30,36,52,43,33,39,69,2,7,22,32,54,50,59,28,50,6.2,294,10,95,67,52,29,41,21,34,5,220,0,12,0,0,2,7,2,0,294,286,6,2,180,2,11,25,20,51,55,14,2,256800,123,0,2,6,16,31,31,37,1552,57,450,54,31,12,16,31,34,2,57,0,0,0,19,16,10,4,8,805,6,20,8,5,3,7,8,"Rockingham"]
["Newmarket","52340",3457,1416,260,228,268,267,328,494,196,0,1416,1845,196,122,143,213,960,556,226,239,998,63,148,391,772,727,651,410,167,128,5,3379,999,1051,456,426,195,252,92,470,863,1825,0,122,0,7,0,16,0,0,3379,3312,46,21,1392,0,260,561,363,137,52,19,0,141300,1150,0,0,33,283,486,277,71,1235,242,464,272,293,315,201,98,213,0,1576,29,44,166,714,488,94,7,34,706,271,335,180,133,139,484,34,"Rockingham"]
["Newton","52900",1552,1300,25,40,35,43,47,20,35,7,1300,210,42,59,175,78,240,373,163,82,382,21,21,84,199,213,415,315,184,100,6.1,1518,212,458,225,364,180,79,4,124,107,1203,6,74,0,0,0,7,0,6,1518,1492,13,13,1105,0,59,486,374,180,6,0,0,150700,918,0,21,71,109,476,191,50,1296,187,403,306,199,205,154,72,156,13,232,28,13,7,131,31,15,0,7,632,52,44,32,21,13,56,14,"Rockingham"]
["North Hampton","54580",1782,1349,19,41,35,30,21,0,287,0,1349,146,287,93,126,125,268,259,300,275,336,6,5,89,193,248,329,254,264,394,6.6,1671,250,402,266,381,162,210,8,148,50,1443,0,22,0,0,0,7,0,0,1671,1660,0,11,1053,0,36,178,276,240,158,155,10,211300,667,0,12,6,100,163,176,210,1575,386,478,349,153,183,112,67,189,0,203,0,0,16,107,24,8,16,32,706,69,32,22,16,8,17,39,"Rockingham"]
["Northwood","56820",1905,1461,32,101,37,17,0,0,257,0,1461,187,257,58,93,97,402,243,182,316,514,15,44,159,446,392,333,232,117,167,5.2,1347,195,348,253,334,126,91,16,291,36,921,0,78,0,0,5,7,15,7,1347,1317,26,4,745,14,219,337,141,34,0,0,0,114500,586,4,18,16,176,307,58,7,1109,159,434,190,158,135,87,35,140,0,195,0,0,34,88,33,8,0,32,589,28,32,39,21,10,26,39,"Rockingham"]
["Nottingham","57460",1592,1458,26,14,14,7,0,0,73,0,1458,61,73,53,139,122,402,360,115,185,216,0,0,133,195,352,418,231,108,155,5.8,1331,144,395,262,316,165,49,14,204,28,958,0,127,0,0,0,8,8,0,1331,1302,29,0,875,7,120,377,171,167,14,12,7,141600,731,0,0,36,133,356,170,36,1275,144,529,166,175,177,125,59,173,0,90,0,0,0,64,5,8,0,13,628,30,7,9,8,7,16,13,"Rockingham"]
["Plaistow","62500",2927,1786,333,280,294,31,138,49,16,0,1786,1125,16,42,202,217,711,443,397,500,415,0,25,106,545,693,400,518,384,256,5.7,2871,360,814,503,545,423,226,688,124,160,1874,0,25,0,0,0,8,0,8,2871,2807,64,0,1857,0,117,673,592,391,84,0,0,158100,1483,0,0,42,297,697,328,119,1338,374,431,476,398,288,171,182,323,19,607,0,8,30,166,307,82,7,7,793,137,89,102,31,52,180,16,"Rockingham"]
["Portsmouth","62900",10183,4096,596,826,1106,1455,708,1122,274,0,4096,5813,274,56,490,196,1367,1420,697,1891,4066,253,588,1428,2395,2037,1402,884,684,512,4.7,9874,2335,3189,1429,1330,809,782,4292,204,1516,3757,0,48,0,52,5,65,55,96,9874,9748,73,53,3719,6,246,1111,1093,800,434,23,6,168600,2532,0,34,101,386,1059,591,361,1354,1187,513,1004,731,620,436,249,649,30,4945,375,279,428,1447,1533,670,77,136,727,926,858,816,611,384,1140,210,"Rockingham"]
["Raymond","64020",3710,2348,54,192,76,90,108,175,667,0,2348,695,667,48,255,273,1071,873,399,295,496,0,67,268,751,1015,826,368,250,165,5.3,3493,609,1008,514,850,333,179,141,701,152,2245,11,234,0,9,0,9,19,35,3493,3434,59,0,1896,22,582,962,285,36,9,0,0,116200,1558,0,32,69,347,884,201,25,1155,338,396,374,356,408,220,98,430,10,757,7,41,109,288,230,65,0,17,716,158,110,129,102,53,188,17,"Rockingham"]
["Rye","66180",2645,2213,74,93,82,63,18,27,75,0,2213,357,75,56,103,96,293,387,237,635,838,29,72,174,256,429,407,329,497,452,6.4,2176,464,428,372,436,236,240,47,98,133,1880,0,18,0,0,0,0,28,0,2176,2163,13,0,1506,0,41,121,139,426,446,271,62,311100,893,0,16,47,104,256,155,315,1538,613,532,532,210,222,135,113,286,8,411,0,0,28,84,127,69,71,32,929,60,23,94,44,35,123,32,"Rockingham"]
["Salem","66660",10866,7683,226,453,277,251,546,634,788,8,7683,2387,796,157,626,683,1719,2364,2406,2095,816,80,155,814,1777,1734,2246,1606,1368,1086,5.9,10402,1526,2451,1657,2165,1304,1299,634,1110,869,7650,9,82,0,37,11,12,6,44,10402,10284,63,55,6730,28,324,2054,2200,1563,505,56,0,168900,5200,0,80,219,708,1958,1470,765,1402,1530,438,2042,1187,1017,819,409,1248,8,2260,52,79,260,894,574,269,21,111,709,481,346,394,210,153,531,145,"Rockingham"]
["Sandown","67620",1777,1527,85,12,47,19,5,6,76,0,1527,174,76,31,200,174,569,360,162,111,170,9,11,35,276,444,384,319,172,127,5.8,1694,152,558,329,458,144,53,31,315,108,1130,0,104,0,6,0,8,0,6,1694,1680,5,9,1282,6,99,620,395,149,13,0,0,144100,1147,0,6,15,160,562,356,48,1384,135,454,230,306,256,151,87,237,15,167,0,0,0,42,65,23,11,26,817,35,12,21,5,8,56,30,"Rockingham"]
["Seabrook","68260",4066,1617,142,333,91,115,140,579,1038,11,1617,1400,1049,134,353,207,575,1237,607,634,319,18,44,261,1324,946,660,389,158,266,4.9000000000000004,3425,608,998,604,652,351,212,1066,118,590,1557,0,24,52,18,0,8,7,52,3425,3350,65,10,1141,7,91,250,287,332,128,46,0,181900,767,0,0,63,156,345,149,54,1284,374,402,330,190,154,95,127,237,8,1270,10,10,99,665,338,63,8,77,686,210,228,189,142,70,343,88,"Rockingham"]
["South Hampton","71140",309,291,7,8,0,0,0,0,3,0,291,15,3,15,14,20,35,62,33,41,89,0,2,7,27,48,76,54,39,56,6.4,302,36,46,52,55,65,48,7,15,6,259,0,15,0,0,0,5,5,0,302,302,0,0,190,2,10,21,54,71,28,4,0,210300,127,0,2,6,24,44,31,20,1396,63,479,59,42,22,26,15,26,0,26,0,0,2,8,2,2,10,2,1000,3,4,5,3,0,9,2,"Rockingham"]
["Stratham","74340",2371,1682,296,78,124,169,0,0,15,7,1682,667,22,75,180,304,1001,287,158,193,173,0,39,85,216,443,454,328,338,468,6.4,2306,359,746,419,532,160,90,142,440,115,1558,10,32,0,9,0,0,0,15,2306,2291,15,0,1624,0,57,238,470,557,258,44,0,207200,1371,9,10,15,145,474,310,408,1526,253,472,453,301,228,279,112,243,8,240,0,0,16,56,95,73,0,0,865,63,40,31,23,23,60,0,"Rockingham"]
["Windham","85780",3906,3610,156,57,50,24,0,0,9,0,3610,287,9,156,451,269,1189,774,406,355,306,0,5,37,237,408,651,718,899,951,7.4,3568,435,1043,568,831,451,240,23,569,78,2811,9,67,11,0,0,9,0,7,3568,3568,0,0,3130,0,63,342,766,1088,681,167,23,230100,2633,0,0,57,158,775,722,921,1613,497,508,922,654,541,352,216,445,0,212,0,0,13,48,72,35,13,31,911,66,14,20,39,8,34,31,"Rockingham"]
[]
[]
[]
[]
[]
[]
[]
[]
[]
[]
[]
[]
["Census 2000 SummaryFile3 Sample Data  -  SF3TownQry1SocialChar"]
[]
["TOWN_NAME","LOGRECNO","COUSUB","P01TotalPopulation","P02SampleCountOfPop","P03Pop100pctCount","P05UrbanPopulation","P05RuralPopulation","P06WhiteAlone","P06BlackOrAfAm","P06AmIndAlone","P06AsianAlone","P06HawaiianOrPI","P06OtherRace","P06TwoPlusRaces","P07NotHispanicOrLatino","P07HispanicOrLatino","P08MalePop","P08FemalePop","P09PopInHouseholds","P09PopInFamHH","P09PopInNonFamHH","P09PopInGroupQtr","P13TotalHH","P13FamilyHH","P13FamHHolder15to24yrs","P13FamHHolder25to34yrs","P13FamHHolder35to44yrs","P13FamHHolder45to54yrs","P13FamHHolder55to64yrs","P13FamHHolder65to74yrs","P13FamHHolder75to84yrs","P13FamHHolder85yrsOver","P13NonFamilyHH","P13NonFamHHolder15to24yrs","P13NonFamHHolder25to34yrs","P13NonFamHHolder35to44yrs","P13NonFamHHolder45to54yrs","P13NonFamHHolder55to64yrs","P13NonFamHHolder65to74yrs","P13NonFamHHolder75to84yrs","P13NonFamHHolder85yrsOver","P18Pop15yrsOver","P18MaritalStatNeverMarried","P18MaritalStatNowMarried","P18MaritalStatSeparated","P18MaritalStatWidowed","P18MaritalStatWidowFemale","P18MaritalStatDivorced","P18MaritalStatDivorcedFemale","P21NativeBornPop","P21NatPopBornInState","P21NatPopBornOtherState","P021005","P021006","P021007","P021008","P21NatPopBornOutUS","P21ForeignBornPop","P021014","P021015","P24Pop5YrsPlus","P24ResSameHouseIn95","P24ResDiffHouseIn95","P24ResDiffHouseInUSIn95","P24ResDiffHouseSameCountyIn95","P24ResDiffHouseDiffCountyIn95","P24ResDiffHouseDiffCntySamStIn95","P24ResDiffHouseDiffCntyDifStIn95","P24ResDiffHouseDiffCntyNEStIn95","P24ResDiffHouseDiffCntyMWStIn95","P24ResDiffHouseDiffCntySoStIn95","P24ResDiffHouseDiffCntyWstStIn95","P24ResDiffInPR","P24ResDiffElsewhereIn95","P26Workers16yrsOver","P26WorkedInState","P26WorkedInCnty","P26WorkedOutsideCnty","P26WorkedOutsideState","P30Workers16Over","P30TranspToWrkCar","P30TranspToWrkPublic","P30TranspToWrkOther","P30WrkdAtHome","P31WrkrsNotWrkAtHom","P31TravTim<5min","P31TravTim5to9Min","P31TravTim10to14Min","P31TravTim15to19Min","P31TravTim20to24Min","P31TravTim25to29Min","P31TravTim30to34Min","P31TravTim35to39Min","P31TravTim40to44Min","P31TravTim45to59Min","P31TravTim60to89Min","P31TravTim90MinMore","P31WorkAtHome","P36SchEnrlPop3yrOver","P36NurserSchEnrl","P36KinderSchEnrl","P36ElemSchEnrl","P36HighSchEnrl","P36CollGradSchEnrl","P37Pop25yrsOver","P37EduAtain<9grd","P37EduAtainHSnoDip","P37EduAtainHSgrad","P37EduAtainCollNoDeg","P37EduAtainAssocDeg","P37EduAtainBachDeg","P37EduAtainGradProfDeg","P42NIPop5to15","P42NIPop5to15wDisabl","P42NIPop16to20","P42NIPop16to20wDisab","P42NIPop16to20wDisEmp","P42NIPop16to21NoDis","P42NIPop16to21NoDisEmpl","P42NIPop21to64","P42NIPop21to64wDis","P42NIPop21to64wDisEmp","P42NIPop21to64NoDis","P42NIPop21to64NoDisEmp","P42NIPop65to74","P42NIPop65to74wDis","P42NIPop75Over","P42NIPop75OverwDis","P43Pop16YrsOver","P43Pop16OvrInLaborForce","P43Pop16OvrCivlLabFrc","P43Pop16OvrCivlLbrFrcEmp","P48Families","P48MarriedFam","P48MarrFamNoWorkers","P48MarrFam1Worker","P48MarrFam2Worker","P48MarrFamHusbWifeWorked","P48MarrFamOther","P48MarrFam3PlusWorker","P48MarrFam3WorkHsbWif","P48MarrFam3PlsWrkOther","P48OtherFam","P48MaleHHNoWif","P48MaleHHNoWifNoWorker","P48MaleHHNoWif1Worker","P48MaleHHNoWif2Worker","P48MaleHHNoWif3PlusWorker","P48FemaleHHNoHsb","P48FemaleHHNoHsbNoWorker","P48FemaleHHNoHsb1Worker","P48FemaleHHNoHsb2Worker","P48FemaleHHNoHsb3Worker","P49EmpCivPop16YrOver","P49IndustAgricult","P49IndustConst","P49IndustMnftg","P49IndustWhlslTrd","P49IndustRtlTrd","P49IndustTrspWrhsUtlt","P49IndustInfrm","P49IndustFinInsRE","P49IndustPrfsScntfMngmt","P49IndustEduHlthSocSrv","P49IndustArtsEntRec","P49IndustOthrSrvc","P49IndustPubAdm","P50OccupMngmtProfs","P50OccupService","P50OccupSalesOff","P50OccupFarmFishForest","P50OccupConstExtrctMaint","P50OccupPrdctTrnspMatMv"]
["Atkinson","0003039","02340",6178,729,6178,6178,0,6069,0,0,58,0,19,32,6104,74,3032,3146,6174,5528,646,4,2326,1781,9,178,504,490,342,171,74,13,545,0,34,104,126,96,130,21,34,4882,951,3226,72,242,169,391,205,5916,421,5468,4943,227,206,92,27,262,232,30,5767,3612,2155,2095,903,1192,116,1076,905,4,134,33,0,60,3422,1524,1279,245,1898,3422,3156,24,100,208,3214,49,156,428,401,436,167,526,79,185,406,316,65,208,5932,120,97,725,335,298,4345,43,162,1044,898,494,1145,559,965,27,297,33,23,264,109,3808,513,410,3295,2805,446,97,251,76,4802,3551,3551,3459,1781,1550,122,278,865,826,39,285,271,14,231,91,0,23,46,22,140,20,49,53,18,3459,46,150,668,156,517,126,138,244,363,696,193,60,102,1670,297,856,22,172,442]
["Auburn","0003046","02820",4682,758,4682,1446,3236,4620,4,20,18,0,0,20,4629,53,2397,2285,4675,4301,374,7,1573,1305,15,169,424,437,173,43,37,7,268,17,16,72,64,21,40,21,17,3549,732,2402,26,130,78,259,157,4580,2465,2075,1705,118,163,89,40,102,71,31,4347,2863,1484,1460,604,856,571,285,167,13,68,37,0,24,2644,2352,886,1466,292,2644,2504,11,167,87,2557,33,89,275,516,543,168,436,50,70,184,152,41,87,4460,100,78,599,312,179,3038,80,173,976,594,394,585,236,891,47,266,50,35,216,104,2905,420,302,2485,2174,151,63,134,43,3456,2741,2741,2672,1305,1189,63,206,752,702,50,168,159,9,116,34,0,6,21,7,82,0,44,16,22,2672,16,244,420,142,272,230,111,198,236,411,93,178,121,997,302,684,13,270,406]
["Brentwood","0003056","07220",3197,769,3197,13,3184,3101,38,5,17,0,9,27,3171,26,1605,1592,2728,2573,155,469,906,780,14,87,243,215,110,77,31,3,126,0,9,29,33,16,21,18,0,2538,596,1496,34,195,177,217,111,3082,1120,1933,1616,161,85,71,29,115,57,58,2986,1786,1200,1191,715,476,125,351,239,29,51,32,0,9,1392,1120,969,151,272,1392,1264,6,102,90,1302,59,83,162,177,172,76,210,67,63,109,97,27,90,3054,66,63,348,193,109,2192,139,161,684,438,167,363,240,486,30,154,35,12,119,60,1624,123,60,1501,1239,155,25,98,52,2500,1464,1464,1415,780,677,47,138,378,347,31,114,103,11,103,28,0,28,0,0,75,12,28,31,4,1415,4,105,220,32,208,85,45,94,172,279,73,53,45,563,157,373,4,146,172]
["Candia","0003063","09300",3911,649,3911,22,3889,3838,5,16,40,0,0,12,3911,0,1965,1946,3911,3566,345,0,1360,1113,6,166,365,312,152,87,25,0,247,13,28,63,59,49,21,14,0,3039,630,2099,5,83,73,222,119,3829,2140,1683,1405,122,59,97,6,82,59,23,3640,2756,884,873,313,560,332,228,204,0,10,14,0,11,2196,1992,568,1424,204,2196,2105,12,102,67,2129,36,91,143,263,546,174,380,97,78,161,93,67,67,3734,68,43,530,226,216,2654,68,130,821,560,309,546,220,642,58,226,10,10,216,130,2491,310,195,2181,1921,193,31,88,56,2998,2337,2337,2290,1113,1031,55,197,594,565,29,185,167,18,82,41,0,36,5,0,41,5,31,5,0,2290,13,201,410,43,286,91,76,197,189,454,91,172,67,855,277,528,28,310,292]
["Chester","0003071","12100",3792,906,3792,39,3753,3687,9,20,53,0,0,23,3772,20,1869,1923,3756,3490,266,36,1212,1014,6,141,346,297,146,51,17,10,198,0,14,37,48,53,19,23,4,2801,555,1881,22,114,84,229,110,3699,1251,2398,2114,107,104,73,50,93,63,30,3478,2042,1436,1432,762,670,255,415,320,29,34,32,0,4,2013,1600,1029,571,413,2013,1831,25,103,144,1869,37,83,76,195,228,141,438,84,123,211,222,31,144,3589,86,41,528,237,187,2402,37,154,675,559,230,469,278,727,57,258,38,19,220,122,2264,349,265,1915,1617,144,52,85,49,2751,2145,2145,2054,1014,886,41,182,499,469,30,164,153,11,128,37,0,23,8,6,91,22,38,28,3,2054,20,190,398,67,230,135,38,148,236,373,78,85,56,831,192,549,9,219,254]
["Danville","0003079","17140",4023,658,4023,1740,2283,3918,40,33,7,3,0,22,4002,21,2035,1988,4020,3630,390,3,1421,1109,0,227,390,239,123,79,43,8,312,16,61,48,77,62,17,7,24,3000,555,1988,42,82,75,333,171,3931,630,3262,3053,42,113,54,39,92,64,28,3704,1701,2003,2003,1067,936,133,803,716,7,49,31,0,0,2176,1313,1135,178,863,2176,2010,33,102,102,2074,41,84,155,230,201,123,360,120,92,315,241,112,102,3828,80,58,595,176,141,2675,31,212,909,759,256,378,130,792,49,142,23,23,119,82,2483,390,270,2093,1795,145,13,142,71,2912,2290,2290,2233,1109,956,59,177,625,565,60,95,89,6,153,27,7,20,0,0,126,4,70,47,5,2233,8,238,476,70,372,74,32,137,244,322,69,122,69,738,234,695,13,261,292]
["Deerfield","0003086","17460",3678,640,3678,0,3678,3614,9,11,0,0,22,22,3645,33,1801,1877,3656,3322,334,22,1229,996,14,147,317,306,119,77,16,0,233,0,31,70,59,22,0,39,12,2760,534,1895,0,90,72,241,122,3619,1752,1841,1522,102,118,99,26,59,42,17,3410,1896,1514,1493,767,726,387,339,189,31,57,62,0,21,1909,1721,791,930,188,1909,1801,0,5,83,1826,45,99,122,68,141,146,386,234,147,257,106,75,83,3524,49,69,596,226,111,2388,67,132,774,418,239,509,249,710,55,238,22,14,216,98,2212,318,217,1894,1594,171,30,79,20,2700,1994,1994,1954,996,921,77,106,586,536,50,152,145,7,75,36,0,23,13,0,39,0,21,18,0,1954,40,239,310,75,158,104,47,115,167,386,68,103,142,804,242,423,10,271,204]
["Derry","0003092","17940",34021,4010,34021,29232,4789,32729,258,55,287,0,263,429,33271,750,16877,17144,33795,29358,4437,226,12340,8865,221,1630,3275,2222,921,459,110,27,3475,295,764,624,636,468,318,231,139,25523,6693,14425,442,1027,780,2936,1599,32506,8232,23984,20814,1046,1485,639,290,1515,698,817,31589,16602,14987,14598,6734,7864,1913,5951,4682,282,639,348,27,362,18251,12276,8162,4114,5975,18251,17271,137,1195,487,17764,320,1527,1837,1718,2505,1107,2718,826,936,2094,1503,673,487,32734,713,537,5121,2147,1607,21311,447,1486,6466,4973,2328,3869,1742,6746,491,2153,348,180,1805,1035,20543,2736,1866,17807,15079,1249,385,724,404,24843,19330,19312,18595,8865,6912,319,1253,4108,3903,205,1232,1147,85,1953,713,25,469,149,70,1240,57,705,429,49,18595,77,1271,3939,792,2766,796,509,1162,1984,3019,1001,692,587,6751,2072,5057,69,1884,2762]
["East Kingston","0003147","21380",1784,860,1784,128,1656,1731,4,7,19,0,7,16,1780,4,858,926,1784,1592,192,0,625,495,0,76,168,119,88,32,11,1,130,2,16,32,46,10,14,4,6,1364,212,965,8,57,45,122,50,1722,503,1214,1087,52,50,25,5,62,28,34,1670,1112,558,552,229,323,55,268,245,0,18,5,0,6,961,588,510,78,373,961,859,9,12,75,886,25,39,97,107,121,62,113,35,43,132,95,17,75,1715,37,35,224,106,65,1223,21,85,363,223,136,266,129,331,13,88,6,0,82,36,1125,107,76,1018,833,78,16,48,15,1339,994,994,975,495,457,23,98,276,258,18,60,57,3,38,12,3,3,6,0,26,2,11,12,1,975,23,97,183,41,108,50,19,61,82,167,45,45,54,433,92,241,9,98,102]
["Epping","0003154","24660",5476,887,5476,2154,3322,5298,13,21,13,0,5,126,5454,22,2718,2758,5468,4775,693,8,2053,1488,34,291,456,355,153,103,84,12,565,7,86,102,112,112,66,45,35,4234,955,2564,53,213,178,449,219,5406,2233,3119,2651,159,228,81,54,70,50,20,5090,2766,2324,2303,1351,952,332,620,393,41,113,73,0,21,3038,2593,2168,425,445,3038,2822,0,130,157,2881,100,271,339,328,380,165,387,179,168,322,197,45,157,5212,90,97,705,293,205,3606,197,362,1242,829,454,392,130,906,31,348,26,21,322,203,3321,485,321,2836,2492,288,140,222,134,4184,3196,3191,3143,1488,1250,93,256,691,670,21,210,197,13,238,62,6,29,22,5,176,6,99,45,26,3143,12,252,634,136,502,162,83,158,204,547,222,131,100,891,473,828,5,396,550]
["Exeter","0003174","25380",14058,1664,14058,11631,2427,13556,56,5,163,0,33,245,13918,140,6646,7412,13688,11142,2546,370,5900,3710,83,547,1137,813,492,329,236,73,2190,66,273,333,312,301,324,313,268,11278,2471,6447,121,975,773,1264,785,13472,4974,8296,6600,628,747,321,202,586,320,266,13251,7181,6070,5843,3514,2329,489,1840,1135,63,410,232,0,227,7322,6078,5504,574,1244,7322,6453,62,371,380,6942,486,959,988,951,888,497,743,177,262,480,362,149,380,13608,291,129,1682,882,501,9918,263,838,2562,1858,633,1990,1774,2141,112,760,81,32,679,375,7946,1062,724,6884,5944,1003,250,1135,570,11110,7545,7537,7404,3710,3046,326,488,1733,1614,119,499,471,28,664,198,21,69,108,0,466,32,298,102,34,7404,60,419,1068,261,964,335,123,370,635,2065,627,254,223,2931,1043,1917,40,552,921]
["Fremont","0003213","27940",3510,802,3510,300,3210,3472,0,4,10,0,4,20,3510,0,1737,1773,3479,3228,251,31,1169,993,5,201,401,189,116,59,17,5,176,5,26,58,35,19,22,6,5,2623,470,1846,16,75,72,216,121,3443,1059,2369,2171,55,82,61,15,67,20,47,3205,1742,1463,1450,905,545,91,454,405,0,23,26,0,13,1982,1331,1085,246,651,1982,1918,3,43,35,1947,51,90,131,173,279,146,323,90,114,279,199,72,35,3333,87,51,480,203,113,2316,90,188,840,541,223,298,136,626,40,168,3,3,165,94,2151,255,181,1896,1704,154,52,68,30,2579,2056,2049,2023,993,888,31,148,583,560,23,126,126,0,105,33,0,25,8,0,72,4,30,26,12,2023,29,173,402,77,300,127,65,104,150,398,75,41,82,633,238,531,12,293,316]
["Greenland","0003220","31700",3205,525,3208,2114,1091,3115,0,0,65,0,8,17,3177,28,1566,1639,3188,2825,363,17,1211,920,0,111,309,204,155,91,46,4,291,0,54,52,48,48,43,30,16,2494,483,1662,24,157,113,168,90,3084,1429,1617,1143,198,171,105,38,121,54,67,2983,1706,1277,1253,747,506,105,401,301,18,36,46,0,24,1698,1522,1364,158,176,1698,1560,25,54,106,1592,60,175,334,431,216,49,124,12,15,48,82,46,106,3098,77,39,399,152,132,2220,36,118,599,413,238,556,260,536,17,163,4,0,159,105,1943,164,76,1779,1480,192,52,144,76,2447,1737,1732,1714,920,786,63,165,451,395,56,107,107,0,134,42,10,19,13,0,92,0,53,39,0,1714,6,122,118,63,242,107,31,159,237,311,145,80,93,566,250,561,6,179,152]
["Hampstead","0003229","32900",8297,1032,8297,7602,695,8160,7,13,32,30,8,47,8215,82,4077,4220,8294,7431,863,3,3045,2313,37,281,764,714,258,195,64,0,732,32,59,138,67,204,90,105,37,6320,1165,4169,37,356,253,593,360,8054,1435,6546,5898,255,281,112,73,243,149,94,7818,4588,3230,3140,1705,1435,175,1260,963,70,136,91,0,90,4308,2402,1967,435,1906,4308,4084,19,207,163,4145,132,348,273,256,507,280,702,232,306,575,394,140,163,7966,144,73,1357,493,296,5530,100,269,1440,1107,605,1318,691,1665,54,404,30,23,374,179,4952,379,239,4573,3847,446,120,331,105,6153,4539,4519,4415,2313,2026,121,430,1152,1111,41,323,313,10,287,34,0,34,0,0,253,14,118,66,55,4415,15,297,851,268,369,182,236,259,496,927,199,143,173,2117,390,1218,0,325,365]
["Hampton","0003240","33060",14937,1855,14937,14274,663,14446,96,19,134,0,108,134,14790,147,7255,7682,14768,11865,2903,169,6474,4074,71,580,1066,934,690,457,241,35,2400,65,343,459,577,313,314,207,122,12214,2694,6840,142,743,590,1795,955,14247,4010,10156,8774,563,464,355,81,690,367,323,14038,7320,6718,6610,2988,3622,861,2761,1975,112,424,250,13,95,7786,5735,5167,568,2051,7786,7014,106,587,354,7432,320,945,997,842,1220,252,610,297,365,722,597,265,354,14385,271,210,1428,729,678,10952,246,752,3035,2044,903,2674,1298,2042,115,667,70,31,597,326,9138,1510,917,7628,6327,1224,320,859,403,11996,8249,8242,7938,4074,3274,397,767,1700,1634,66,410,378,32,800,221,0,124,77,20,579,119,282,133,45,7938,22,444,1035,365,1052,557,257,568,935,1390,847,201,265,3170,1012,2305,7,603,841]
["Hampton Falls","0003270","33460",1880,898,1880,259,1621,1842,0,0,17,0,2,19,1865,15,952,928,1880,1664,216,0,711,547,4,49,152,152,100,53,32,5,164,2,24,18,33,27,41,14,5,1464,262,1017,4,77,57,104,44,1834,557,1258,1052,85,99,22,19,46,25,21,1752,1177,575,554,282,272,41,231,165,17,45,4,0,21,979,681,630,51,298,979,864,9,9,92,887,19,120,162,127,91,28,74,22,45,84,62,53,92,1828,62,16,247,98,74,1320,9,51,238,234,130,450,208,316,6,84,16,12,68,34,1110,158,125,952,770,149,37,93,27,1436,1006,1006,994,547,498,43,119,280,268,12,56,48,8,49,14,2,6,4,2,35,3,25,7,0,994,8,47,140,57,126,72,25,71,166,158,49,35,40,449,127,240,6,72,100]
["Kensington","0003277","39780",1887,918,1893,0,1887,1852,4,0,15,0,0,16,1887,0,934,953,1887,1712,175,0,657,530,4,45,182,162,75,38,22,2,127,2,16,26,27,19,20,15,2,1433,281,978,12,51,47,111,58,1857,594,1247,1080,69,68,30,16,30,14,16,1743,1160,583,564,223,341,50,291,222,18,26,25,0,19,1013,610,558,52,403,1013,903,11,54,81,932,20,50,181,132,139,61,92,9,36,100,76,36,81,1806,53,30,252,101,66,1267,6,68,357,249,129,295,163,332,22,103,8,5,95,49,1132,131,96,1001,821,112,28,62,22,1411,1054,1052,1022,530,475,23,112,273,265,8,67,56,11,55,18,5,9,4,0,37,2,20,12,3,1022,44,69,182,51,123,48,41,66,96,199,47,39,17,457,109,242,14,86,114]
["Kingston","0003282","40100",5862,660,5862,2729,3133,5691,58,0,22,0,9,82,5804,58,2928,2934,5862,5264,598,0,2132,1653,21,221,518,429,261,82,121,0,479,0,67,130,99,47,53,64,19,4601,1062,2959,37,207,157,336,140,5738,1296,4409,3785,232,162,230,33,124,79,45,5501,3687,1814,1814,896,918,76,842,601,76,104,61,0,0,3124,2027,1796,231,1097,3124,2824,6,162,205,2919,164,165,144,299,511,158,508,97,90,384,270,129,205,5651,103,67,768,274,294,3979,75,326,1298,941,430,543,366,979,17,322,28,7,294,150,3683,515,296,3168,2703,223,32,294,87,4522,3315,3315,3205,1653,1421,127,250,844,781,63,200,200,0,232,45,8,18,10,9,187,9,82,64,32,3205,21,311,638,105,426,212,115,143,241,475,212,174,132,1164,414,842,0,330,455]
["Londonderry","0003295","43220",23236,2709,23236,19869,3367,22647,172,0,148,10,149,110,22891,345,11520,11716,23226,21696,1530,10,7635,6405,26,883,2423,1759,805,335,134,40,1230,39,155,295,314,197,146,74,10,16928,3682,11156,204,385,346,1501,856,22444,6392,15852,13468,1096,788,500,200,792,406,386,21511,11742,9769,9564,3750,5814,1427,4387,3449,318,332,288,0,205,12516,8969,4647,4322,3547,12516,11791,160,642,397,12119,157,1152,1603,1303,1643,806,1636,423,482,1270,1428,216,397,22281,491,459,3713,1825,920,14145,226,704,3538,3147,1458,3454,1618,4949,361,1794,235,144,1559,993,13518,1678,1140,11840,10191,781,228,445,276,16562,12991,12967,12682,6405,5433,254,999,3236,3055,181,944,877,67,972,322,0,204,118,0,650,25,319,249,57,12682,129,687,2432,580,1748,645,557,931,1352,2203,776,319,323,5277,1140,3773,112,942,1438]
["New Castle","0003320","50980",1009,454,1010,1009,0,1002,0,0,0,0,0,7,1009,0,481,528,999,853,146,10,413,297,0,7,56,89,44,68,29,4,116,0,9,16,10,23,26,26,6,829,157,523,5,65,50,79,47,959,396,559,438,61,43,17,4,50,33,17,966,612,354,349,135,214,77,137,124,0,8,5,0,5,452,381,323,58,71,452,389,2,17,41,411,37,42,122,47,27,17,16,9,7,17,58,12,41,990,24,14,102,68,37,749,5,18,93,114,58,265,196,155,12,52,3,3,49,24,514,29,17,485,364,126,12,109,50,811,467,457,452,297,252,44,74,119,106,13,15,13,2,45,20,5,8,7,0,25,2,16,7,0,452,14,19,60,26,32,20,13,39,61,123,28,7,10,248,41,116,14,15,18]
["Newfields","0003327","51380",1551,758,1551,587,964,1515,0,2,3,0,2,29,1542,9,766,785,1551,1424,127,0,517,433,6,51,180,95,44,37,16,4,84,0,6,18,17,16,16,11,0,1121,209,770,6,47,42,89,44,1526,758,754,577,74,70,33,14,25,17,8,1407,818,589,588,277,311,102,209,122,39,33,15,0,1,804,684,570,114,120,804,754,2,58,39,765,12,72,91,105,138,44,117,24,35,62,50,15,39,1459,54,29,228,90,77,981,20,55,195,178,99,266,168,313,14,80,8,6,72,42,895,92,64,803,684,75,21,42,22,1094,850,848,819,433,385,19,85,234,234,0,47,43,4,48,15,2,8,5,0,33,0,25,4,4,819,6,66,116,39,95,57,5,47,85,187,45,48,23,381,77,171,0,83,107]
["Newington","0003334","51620",778,328,775,79,699,731,8,3,13,0,12,11,772,6,367,411,748,633,115,30,293,202,0,7,57,56,54,15,12,1,91,5,10,14,24,10,21,4,3,623,109,380,7,35,29,92,46,749,370,370,272,33,43,22,9,29,18,11,742,509,233,221,124,97,31,66,43,0,8,15,0,12,461,401,338,63,60,461,404,5,18,23,438,23,99,51,61,73,23,56,7,0,17,17,11,23,763,14,12,82,38,18,567,31,46,156,99,58,131,46,122,3,32,8,5,24,14,506,72,57,434,371,51,20,25,12,620,470,464,464,202,169,19,40,78,78,0,32,30,2,33,14,0,7,7,0,19,0,10,6,3,464,0,40,71,12,46,23,5,37,55,89,15,14,57,148,57,131,0,53,75]
["Newmarket","0003341","52340",8027,970,8027,5641,2386,7578,19,32,215,0,55,128,7861,166,3985,4042,7993,5937,2056,34,3373,1955,97,374,654,441,207,90,84,8,1418,337,392,172,160,110,122,89,36,6518,2231,3426,78,239,194,544,338,7687,3488,4128,3109,404,346,269,71,340,179,161,7512,3230,4282,4185,1894,2291,750,1541,866,165,325,185,10,87,4933,4376,3283,1093,557,4933,4636,15,650,172,4761,128,371,447,830,952,566,592,94,110,211,350,110,172,7723,108,98,776,395,777,5150,185,265,1484,1002,522,1151,541,1088,104,492,61,49,431,314,5235,732,552,4503,4019,355,123,317,165,6424,5155,5130,4998,1955,1653,102,242,1072,1035,37,237,237,0,302,51,8,24,10,9,251,9,177,65,0,4998,17,283,862,188,730,164,111,194,521,997,535,213,183,1873,683,1305,7,368,762]
["Newton","0003369","52900",4289,696,4289,2560,1729,4148,45,0,7,0,26,63,4235,54,2131,2158,4289,3867,422,0,1509,1183,5,223,402,288,143,82,33,7,326,17,41,75,76,21,59,23,14,3225,604,2019,36,156,139,410,213,4181,675,3484,3229,105,93,57,22,108,57,51,3974,2268,1706,1689,506,1183,97,1086,936,24,97,29,0,17,2365,1007,895,112,1358,2365,2230,30,90,43,2322,55,155,103,289,392,167,287,102,139,378,205,50,43,4088,107,33,653,240,196,2788,60,247,863,664,359,467,128,786,51,278,39,39,239,159,2585,435,324,2150,1879,195,86,130,74,3188,2498,2498,2455,1183,978,56,167,628,574,54,127,113,14,205,50,0,37,13,0,155,14,56,62,23,2455,8,219,509,92,301,114,76,189,188,436,115,115,93,860,241,637,5,368,344]
["North Hampton","0003380","54580",4259,692,4259,1797,2462,4190,7,0,0,0,34,28,4190,69,2104,2155,4259,3717,542,0,1660,1232,0,87,328,338,235,159,72,13,428,0,56,57,90,73,68,58,26,3427,624,2269,17,172,135,345,179,4165,1428,2719,2193,168,195,163,18,94,58,36,4055,2482,1573,1507,749,758,158,600,439,24,95,42,8,58,2260,1866,1729,137,394,2260,2034,14,124,133,2127,184,183,374,361,310,100,139,11,50,176,156,83,133,4133,75,54,515,185,156,3073,117,163,746,602,206,781,458,689,20,176,19,6,157,106,2582,336,231,2246,1814,369,85,239,94,3366,2335,2335,2286,1232,1069,107,259,599,542,57,104,92,12,163,56,0,30,12,14,107,12,49,46,0,2286,11,141,169,131,302,165,73,246,187,471,174,123,93,911,304,699,0,176,196]
["Northwood","0003391","56820",3640,857,3640,0,3640,3612,4,3,3,0,8,10,3621,19,1839,1801,3637,3172,465,3,1365,1013,8,153,321,258,115,110,44,4,352,33,40,56,82,79,24,27,11,2845,658,1696,27,133,107,331,176,3587,1851,1686,1373,131,132,50,50,53,36,17,3422,2005,1417,1389,459,930,552,378,282,21,55,20,0,28,1975,1833,847,986,142,1975,1813,0,3,134,1841,72,82,126,177,123,183,319,80,85,367,159,68,134,3534,64,33,500,269,158,2417,34,194,827,532,253,405,172,655,33,251,38,15,213,123,2183,287,172,1896,1637,211,63,118,62,2767,2059,2055,2011,1013,822,63,142,480,456,24,137,137,0,191,72,0,43,19,10,119,13,71,24,11,2011,19,196,325,119,273,120,31,91,180,319,87,105,146,589,251,470,12,293,396]
["Nottingham","0003398","57460",3701,585,3701,0,3701,3633,0,14,29,0,6,19,3701,0,1866,1835,3701,3324,377,0,1331,1062,0,187,358,280,136,80,21,0,269,0,15,47,103,58,26,20,0,2854,504,1874,29,136,93,311,138,3614,1578,2017,1752,59,94,112,19,87,64,23,3461,2010,1451,1403,747,656,341,315,217,20,37,41,0,48,2100,1900,1250,650,200,2100,1929,10,0,98,2002,32,62,179,220,194,144,419,134,186,219,114,99,98,3593,80,80,485,246,125,2527,91,254,749,575,218,425,215,645,21,225,31,20,194,123,2325,331,264,1994,1695,181,78,85,44,2816,2179,2179,2141,1062,915,46,143,544,521,23,182,178,4,147,51,0,30,21,0,96,10,46,40,0,2141,13,199,378,73,337,105,74,125,167,420,91,78,81,765,326,520,0,242,288]
["Plaistow","0003404","62500",7747,895,7747,7319,428,7566,0,0,94,0,0,87,7681,66,3873,3874,7736,6822,914,11,2873,2157,19,355,670,496,317,190,110,0,716,22,81,148,161,135,85,64,20,6054,1370,3688,96,328,272,572,377,7522,862,6579,6109,82,265,123,81,225,150,75,7245,4254,2991,2991,1396,1595,170,1425,1182,108,135,0,0,0,4181,1770,1558,212,2411,4181,3861,87,110,130,4051,184,494,433,515,426,333,456,108,247,382,300,173,130,7470,186,95,951,445,424,5208,93,376,1655,1240,589,891,364,1337,87,376,39,29,337,194,4750,601,436,4149,3450,453,112,329,179,5908,4362,4362,4228,2157,1770,151,404,966,928,38,249,232,17,387,60,0,34,19,7,327,24,135,113,55,4228,33,277,877,155,678,199,146,233,325,808,143,206,148,1506,418,1291,29,392,592]
["Portsmouth","0003415","62900",20785,2839,20784,20600,185,19509,448,29,428,14,74,283,20514,271,10042,10743,20174,13895,6279,611,9933,4954,100,1025,1143,1038,665,548,365,70,4979,230,1193,1003,742,545,575,510,181,17784,5614,8139,195,1599,1267,2237,1250,19758,7745,11737,8863,1006,1122,746,276,1027,445,582,19787,9400,10387,9993,4783,5210,1720,3490,2228,318,611,333,7,387,11777,9885,8571,1314,1892,11777,10237,179,991,631,11146,579,2458,2514,1558,1300,414,618,84,182,490,608,341,631,20132,316,209,1553,882,1003,15911,410,966,3870,2829,1167,4453,2216,2195,186,792,127,87,665,429,13298,2160,1415,11138,9405,1612,530,1438,687,17592,12296,12235,11877,4954,3863,463,823,2076,1973,103,501,468,33,1091,251,35,149,67,0,840,78,475,244,43,11877,76,605,1482,335,1803,520,285,817,1566,2227,1066,531,564,5157,1645,3266,52,720,1037]
["Raymond","0003465","64020",9674,1060,9674,4564,5110,9460,11,31,61,0,18,93,9550,124,4794,4880,9664,8429,1235,10,3481,2557,58,486,841,600,290,139,124,19,924,68,175,232,137,133,102,42,35,7402,1740,4343,86,354,264,879,495,9450,3515,5875,5242,218,326,89,60,224,127,97,9000,5286,3714,3676,1815,1861,705,1156,914,66,125,51,0,38,5279,4293,2919,1374,986,5279,5070,13,331,102,5177,203,412,355,313,611,502,1019,263,273,586,477,163,102,9304,211,66,1399,664,357,6149,196,821,2292,1445,593,495,307,1766,193,613,83,65,530,319,5955,1002,695,4953,4188,342,164,324,192,7234,5438,5438,5363,2557,2093,141,382,1210,1144,66,360,299,61,464,175,18,99,58,0,289,25,149,100,15,5363,39,520,1347,233,812,352,127,232,494,641,277,187,102,1157,687,1347,17,829,1326]
["Rye","0003491","66180",5182,616,5182,2873,2309,5029,41,0,41,0,0,71,5120,62,2435,2747,5105,4238,867,77,2174,1458,15,97,331,384,267,206,129,29,716,9,118,115,141,86,101,77,69,4217,786,2695,74,322,270,340,220,4961,1884,3015,2385,301,244,85,62,221,143,78,4947,2928,2019,1930,766,1164,339,825,641,22,129,33,0,89,2316,1832,1622,210,484,2316,1976,10,214,239,2077,66,273,362,330,198,76,184,40,61,182,193,112,239,5058,132,107,557,233,252,3815,17,191,637,582,353,1229,806,795,21,223,5,5,218,61,2943,277,182,2666,1936,514,101,422,118,4152,2487,2487,2371,1458,1297,173,387,609,537,72,128,128,0,161,22,0,5,17,0,139,22,91,26,0,2371,41,186,271,90,361,107,54,232,323,393,169,105,39,1116,163,702,16,119,255]
["Salem","0003506","66660",28112,3217,28112,27903,209,26754,80,59,789,0,258,172,27577,535,13934,14178,27971,24461,3510,141,10393,7609,93,1062,2261,1826,1209,811,287,60,2784,62,358,530,583,425,410,354,62,22069,5140,13467,364,1227,1017,1871,1102,26309,2923,23163,21862,508,580,213,223,1803,1130,673,26347,17341,9006,8704,4101,4603,714,3889,3485,70,247,87,0,302,14850,7209,6218,991,7641,14850,14208,23,429,342,14508,495,1499,2099,2064,2154,789,1802,473,612,1224,967,330,342,27045,533,398,3486,1484,1095,19282,666,1700,6510,3849,1662,3398,1497,4675,184,1390,189,137,1201,647,17028,2801,2052,14227,11893,1930,554,1205,604,21672,15692,15683,15216,7609,6468,583,1241,3421,3148,273,1223,1136,87,1141,359,16,223,68,52,782,108,361,227,86,15216,72,1041,3347,743,2316,577,626,831,1479,2173,810,608,593,5319,1613,4639,8,1476,2161]
["Sandown","0003538","67620",5143,770,5143,3107,2036,5118,0,10,0,0,0,15,5107,36,2617,2526,5110,4682,428,33,1692,1395,4,218,597,357,147,47,25,0,297,13,32,85,73,26,24,35,9,3776,781,2478,48,137,72,332,171,4982,1217,3739,3378,125,147,89,26,161,104,57,4739,3105,1634,1634,978,656,107,549,486,0,63,0,0,0,2739,1787,1392,395,952,2739,2588,5,80,101,2638,16,144,172,259,296,178,416,181,216,426,243,91,101,4922,103,57,859,334,198,3246,62,207,1063,836,377,502,199,1054,69,304,42,26,262,156,3103,449,280,2654,2264,136,41,135,71,3685,2870,2863,2777,1395,1201,30,220,693,652,41,258,226,32,194,66,12,27,20,7,128,6,54,39,29,2777,13,221,664,97,393,65,99,142,301,442,78,148,114,941,283,821,13,298,421]
["Seabrook","0003547","68260",7934,984,7934,7828,106,7772,25,25,24,0,32,56,7815,119,3946,3988,7934,6395,1539,0,3413,2171,51,380,529,419,354,278,153,7,1242,29,162,185,212,209,212,181,52,6560,1589,3626,92,511,378,742,425,7750,1798,5907,5544,161,101,101,45,184,103,81,7467,4376,3091,3036,1232,1804,190,1614,1470,22,52,70,0,55,4330,2600,2458,142,1730,4330,3949,78,289,120,4210,268,729,645,607,452,183,551,150,90,238,180,117,120,7634,130,85,770,302,342,5809,330,931,2164,1085,442,648,209,981,122,376,94,46,282,231,4764,1068,753,3696,3134,779,205,560,301,6486,4494,4487,4377,2171,1782,277,352,895,855,40,258,241,17,389,123,0,71,52,0,266,29,153,64,20,4377,17,369,873,171,604,162,106,160,391,543,487,261,233,1057,882,994,10,496,938]
["South Hampton","0003562","71140",850,396,844,9,841,835,9,0,0,0,0,6,846,4,405,445,850,780,70,0,300,248,0,21,61,77,36,38,14,1,52,0,7,7,11,2,10,15,0,666,130,427,2,50,41,57,25,835,145,682,638,15,15,14,8,15,7,8,802,579,223,223,62,161,16,145,136,0,7,2,0,0,452,199,182,17,253,452,420,3,2,21,431,24,21,80,75,39,34,64,4,17,23,40,10,21,820,16,9,115,33,27,601,13,45,176,145,48,125,49,141,2,44,3,0,41,22,493,104,87,389,323,71,17,53,26,661,471,471,456,248,204,19,48,97,93,4,40,39,1,44,18,0,9,3,6,26,4,13,7,2,456,12,40,109,13,59,8,21,28,31,71,26,18,20,165,52,109,4,65,61]
["Stratham","0003569","74340",6355,777,6355,2712,3643,6234,0,6,32,0,8,75,6309,46,3096,3259,6355,5692,663,0,2308,1766,0,223,654,435,198,188,61,7,542,6,60,126,170,96,52,32,0,4807,872,3285,23,172,135,455,272,6163,2040,4106,3194,401,338,173,17,192,128,64,5930,3451,2479,2428,1134,1294,330,964,646,72,167,79,0,51,3120,2579,2280,299,541,3120,2846,0,232,216,2904,35,260,394,500,524,167,292,88,67,238,253,86,216,6071,150,84,925,389,300,4321,34,135,765,872,373,1514,628,1238,111,291,13,0,278,65,3832,250,196,3582,2855,371,109,198,72,4692,3264,3264,3170,1766,1597,162,374,843,776,67,218,191,27,169,46,6,16,24,0,123,33,61,29,0,3170,23,201,427,154,396,187,138,227,385,630,93,190,119,1619,204,876,7,253,211]
["Windham","0003578","85780",10709,1221,10709,7348,3361,10435,76,0,89,0,58,51,10610,99,5396,5313,10638,9939,699,71,3579,3053,10,346,984,973,452,234,37,17,526,6,65,134,114,99,39,36,33,8067,1468,5825,43,308,249,423,220,10308,1550,8725,7763,355,356,251,33,401,252,149,9981,6022,3959,3914,1446,2468,400,2068,1563,91,265,149,6,39,5579,2973,2009,964,2606,5579,5309,16,235,189,5390,86,321,647,524,655,507,732,186,279,657,654,142,189,10240,220,98,1690,637,521,7097,59,216,1487,1291,655,2184,1205,2070,69,627,52,18,575,329,6580,638,422,5942,4775,416,95,230,133,7911,5779,5779,5643,3053,2818,92,732,1525,1424,101,469,469,0,235,109,9,47,43,10,126,12,71,33,10,5643,17,381,1087,272,704,249,234,346,694,1115,198,163,183,3038,375,1454,0,343,433]
[]
[]
[]
[]
[]
[]
[]
[]
[]
[]
["Census 2000 SummaryFile3 Sample Data  -  SF3TownQry2aIncomeChar"]
[]
["TOWN_NAME","LOGRECNO","COUSUB","TotalPop","P52Households1","P52HHInc<10K","P52HHInc10to15K","P52HHInc15to20K","P52HHInc20to25K","P52HHInc25to30K","P52HHInc30to35K","P52HHInc35to40K","P52HHInc40to45K","P52HHInc45to50K","P52HHInc50to60K","P52HHInc60to75K","P52HHInc75to100K","P52HHInc100to125K","P52HHInc125to150K","P52HHInc150to200K","P52HHInc>200K","P53MedianHHInc","P54AggregHHInc","P55Households2","P55HHUnder25yrs","P55HH<25HHInc<10K","P55HH<25HHInc10to15K","P55HH<25HHInc15to20K","P55HH<25HHInc20to25K","P55HH<25HHInc25to30K","P55HH<25HHInc30to35K","P55HH<25HHInc35to40K","P55HH<25HHInc40to45K","P55HH<25HHInc45to50K","P55HH<25HHInc50to60K","P55HH<25HHInc60to75K","P55HH<25HHInc75to100K","P55HH<25HHInc100to125K","P55HH<25HHInc125to150K","P55HH<25HHInc150to200K","P55HH<25HHInc>200K","P55HH25to34yrs","P55HH25to34HHInc<10K","P55HH25to34HHInc10to15K","P55HH25to34HHInc15to20K","P55HH25to34HHInc20to25K","P55HH25to34HHInc25to30K","P55HH25to34HHInc30to35K","P55HH25to34HHInc35to40K","P55HH25to34HHInc40to45K","P55HH25to34HHInc45to50K","P55HH25to34HHInc50to60K","P55HH25to34HHInc60to75K","P55HH25to34HHInc75to100K","P55HH25to34HHInc100to125K","P55HH25to34HHInc125to150K","P55HH25to34HHInc150to200K","P55HH25to34HHInc>200K","P55HH35to44yrs","P55HH35to44HHInc<10K","P55HH35to44HHInc10to15K","P55HH35to44HHInc15to20K","P55HH35to44HHInc20to25K","P55HH35to44HHInc25to30K","P55HH35to44HHInc30to35K","P55HH35to44HHInc35to40K","P55HH35to44HHInc40to45K","P55HH35to44HHInc45to50K","P55HH35to44HHInc50to60K","P55HH35to44HHInc60to75K","P55HH35to44HHInc75to100K","P55HH35to44HHInc100to125K","P55HH35to44HHInc125to150K","P55HH35to44HHInc150to200K","P55HH35to44HHInc>200K","P55HH45to54yrs","P55HH45to55HHInc<10K","P55HH45to55HHInc10to15K","P55HH45to55HHInc15to20K","P55HH45to55HHInc20to25K","P55HH45to55HHInc25to30K","P55HH45to55HHInc30to35K","P55HH45to55HHInc35to40K","P55HH45to55HHInc40to45K","P55HH45to55HHInc45to50K","P55HH45to55HHInc50to60K","P55HH45to55HHInc60to75K","P55HH45to55HHInc75to100K","P55HH45to55HHInc100to125K","P55HH45to55HHInc125to150K","P55HH45to55HHInc150to200K","P55HH45to55HHInc>200K","P55HH55to64yrs","P55HH55to64HHInc<10K","P55HH55to64HHInc10to15K","P55HH55to64HHInc15to20K","P55HH55to64HHInc20to25K","P55HH55to64HHInc25to30K","P55HH55to64HHInc30to35K","P55HH55to64HHInc35to40K","P55HH55to64HHInc40to45K","P55HH55to64HHInc45to50K","P55HH55to64HHInc50to60K","P55HH55to64HHInc60to75K","P55HH55to64HHInc75to100K","P55HH55to64HHInc100to125K","P55HH55to64HHInc125to150K","P55HH55to64HHInc150to200K","P55HH55to64HHInc>200K","P55HH65to74yrs","P55HH65to74HHInc<10K","P55HH65to74HHInc10to15K","P55HH65to74HHInc15to20K","P55HH65to74HHInc20to25K","P55HH65to74HHInc25to30K","P55HH65to74HHInc30to35K","P55HH65to74HHInc35to40K","P55HH65to74HHInc40to45K","P55HH65to74HHInc45to50K","P55HH65to74HHInc50to60K","P55HH65to74HHInc60to75K","P55HH65to74HHInc75to100K","P55HH65to74HHInc100to125K","P55HH65to74HHInc125to150K","P55HH65to74HHInc150to200K","P55HH65to74HHInc>200K","P55HH>75yrs","P55HH>75HHInc<10K","P55HH>75HHInc10to15K","P55HH>75HHInc15to20K","P55HH>75HHInc20to25K","P55HH>75HHInc25to30K","P55HH>75HHInc30to35K","P55HH>75HHInc35to40K","P55HH>75HHInc40to45K","P55HH>75HHInc45to50K","P55HH>75HHInc50to60K","P55HH>75HHInc60to75K","P55HH>75HHInc75to100K","P55HH>75HHInc100to125K","P55HH>75HHInc125to150K","P55HH>75HHInc150to200K","P55HH>75HHInc>200K","P56MedHHInc","P56MedHHIncHH<25y","P56MedHHIncHH25to34y","P56MedHHIncHH35to44y","P56MedHHIncHH45to54y","P56MedHHIncHH55to64y","P56MedHHIncHH65to74y","P56MedHHIncHH>75y","P58Households3","P58HHwithEarnings","P58HHNoEarnings","P59HHwWageSalInc","P59HHNoWageSalInc","P60HHwSelfEmpInc","P60HHNoSelfEmpInc","P61HHwIndDivInc","P61HHNoIndDivInc","P62HHwSocSecInc","P62HHNoSocSecInc","P63HHwSSI","P63HHNoSSI","P64HHwPubAssInc","P64HHNoPubAssInc","P65HHwRetInc","P65HHNoRetInc","P66HHwOtherTypInc","P66HHNoOtherTypInc","P67AggregEarnings","P68AggregWageSalInc","P69AggregSelfEmpInc","P70AggregIntDivInc","P71AggregSocSecInc","P72AggregSSIInc","P73AggregPublicAssInc","P74AggregRetireInc","P76Families1","P76FamInc<10K","P76FamInc10to15K","P76FamInc15to20K","P76FamInc20to25K","P76FamInc25to30K","P76FamInc30to35K","P76FamInc35to40K","P76FamInc40to45K","P76FamInc45to50K","P76FamInc50to60K","P76FamInc60to75K","P76FamInc75to100K","P76FamInc100to125K","P76FamInc125to150K","P76FamInc150to200K","P76FamInc>200K","P77MedFamInc","P78AggregFamInc","P79NonFamHH","P79NonFamHHwInc<10K","P79NonFamHHwInc10to15K","P79NonFamHHwInc15to20K","P79NonFamHHwInc20to25K","P79NonFamHHwInc25to30K","P79NonFamHHwInc30to35K","P79NonFamHHwInc35to40K","P79NonFamHHwInc40to45K","P79NonFamHHwInc45to50K","P79NonFamHHwInc50to60K","P79NonFamHHwInc60to75K","P79NonFamHHwInc75to100K","P79NonFamHHwInc100to125K","P79NonFamHHwInc125to150K","P79NonFamHHwInc150to200K","P79NonFamHHwInc200KorMore","P80MedNonFamInc","P82PerCapitaInc"]
["Atkinson","0003039","02340",6178,2326,80,77,42,91,46,74,85,169,94,212,273,405,267,182,111,118,69729,186834100,2326,9,0,0,0,0,0,0,0,0,9,0,0,0,0,0,0,0,212,8,9,0,0,0,0,9,10,0,34,72,36,16,0,18,0,608,16,7,0,0,25,18,8,51,28,29,92,99,89,64,60,22,616,12,22,24,23,12,9,33,25,7,11,24,148,111,59,17,79,438,9,5,9,17,0,0,26,25,25,71,58,91,28,51,8,15,301,17,18,9,35,9,32,9,33,18,39,27,22,23,8,0,2,142,18,16,0,16,0,15,0,25,7,28,0,9,0,0,8,0,69729,48750,67586,80000,84035,66563,42946,41250,2326,2037,289,2000,326,356,1970,1231,1095,589,1737,61,2265,33,2293,476,1850,244,2082,158909200,149002200,9907000,11253600,6617000,428800,29900,8026100,1781,24,25,0,8,26,64,58,118,74,188,249,337,243,163,101,103,77631,159092300,545,56,52,42,83,29,17,27,68,19,24,20,40,24,19,10,15,34044,30412]
["Auburn","0003046","02820",4682,1573,45,35,23,34,14,77,55,73,62,214,252,347,118,78,78,68,70774,133680400,1573,32,5,0,0,0,0,9,0,18,0,0,0,0,0,0,0,0,185,0,0,0,0,7,13,6,0,5,29,48,53,7,6,6,5,496,6,0,12,5,0,0,11,17,14,104,89,135,36,21,12,34,501,0,15,0,9,0,33,13,21,13,77,73,110,48,28,35,26,194,8,3,3,7,7,10,12,4,8,4,35,42,21,23,4,3,83,15,7,0,0,0,7,6,13,14,0,0,0,0,0,21,0,82,11,10,8,13,0,5,7,0,8,0,7,7,6,0,0,0,70774,40625,69609,72230,74620,74167,41250,24583,1573,1464,109,1419,154,216,1357,767,806,297,1276,31,1542,8,1565,179,1394,161,1412,120183100,113988700,6194400,6479300,3502200,286900,128000,1620000,1305,21,8,17,32,12,38,52,46,52,209,212,329,106,67,64,40,72578,105547100,268,24,27,6,9,0,39,14,33,10,11,18,12,12,11,14,28,41786,28405]
["Brentwood","0003056","07220",3197,906,35,23,27,14,36,34,27,50,55,86,120,220,77,29,50,23,68971,66684900,906,14,4,0,0,0,0,0,0,0,4,0,6,0,0,0,0,0,96,0,4,0,0,8,3,6,7,6,3,16,16,15,3,5,4,272,5,3,4,3,8,0,6,16,8,28,41,89,38,7,9,7,248,0,0,13,4,9,5,0,9,20,21,35,70,17,17,21,7,126,7,0,10,0,0,13,4,9,4,4,17,45,0,2,6,5,98,16,4,0,0,5,4,11,9,10,22,5,0,4,0,8,0,52,3,12,0,7,6,9,0,0,3,8,0,0,3,0,1,0,68971,49375,69000,77770,77379,71111,43750,29167,906,808,98,786,120,188,718,455,451,201,705,12,894,27,879,130,776,115,791,57284400,51883900,5400600,3938800,2172800,133800,37700,1980600,780,19,14,13,11,20,34,27,49,47,77,106,202,76,34,35,16,71875,59043500,126,23,9,14,3,9,0,0,5,8,9,18,15,5,0,8,0,43750,22027]
["Candia","0003063","09300",3911,1360,24,21,38,71,31,65,83,106,57,159,194,269,119,58,37,28,61389,97297000,1360,19,0,0,0,0,0,0,0,6,0,7,6,0,0,0,0,0,194,0,5,0,18,0,16,16,27,20,15,13,30,18,8,8,0,428,0,0,0,6,14,15,19,18,25,48,70,130,46,25,0,12,371,7,0,14,10,0,23,10,29,7,43,70,77,33,25,7,16,201,8,6,7,18,12,0,17,10,0,34,24,27,22,0,16,0,108,9,10,7,5,5,0,17,16,5,12,11,5,0,0,6,0,39,0,0,10,14,0,11,4,0,0,0,0,0,0,0,0,0,61389,56250,48214,74792,64952,56964,42656,22750,1360,1264,96,1235,125,282,1078,580,780,189,1171,25,1335,16,1344,193,1167,133,1227,89057500,82366200,6691200,1988400,2141700,440500,43600,2731500,1113,16,20,29,37,23,40,55,90,50,103,174,258,103,50,37,28,67163,85097500,247,8,6,14,34,14,41,29,10,7,50,9,6,11,8,0,0,36477,25267]
["Chester","0003071","12100",3792,1212,48,35,27,45,40,47,26,69,50,122,141,267,184,39,50,22,68571,89475800,1212,6,0,0,0,0,0,0,0,0,0,0,0,6,0,0,0,0,155,12,0,9,0,4,4,0,19,14,5,25,27,36,0,0,0,383,11,0,5,7,11,27,11,19,8,45,55,86,53,10,21,14,345,4,7,5,12,4,8,7,16,15,33,33,80,73,22,18,8,199,9,13,8,9,4,4,0,11,8,31,28,46,10,7,11,0,70,0,7,0,8,11,4,4,0,5,8,0,11,12,0,0,0,54,12,8,0,9,6,0,4,4,0,0,0,11,0,0,0,0,68571,80488,67625,70156,81681,60347,48000,23750,1212,1099,113,1069,143,192,1020,634,578,205,1007,43,1169,17,1195,175,1037,133,1079,79546400,72460100,7086200,3310500,2317200,433000,58900,3059100,1014,16,8,28,30,29,40,19,69,36,107,124,231,166,39,50,22,75092,80414800,198,32,27,5,15,11,7,7,7,10,19,19,30,9,0,0,0,35714,23842]
["Danville","0003079","17140",4023,1421,48,11,34,45,44,61,70,90,145,186,259,261,117,28,8,14,57287,89869800,1421,16,0,0,0,0,0,0,8,8,0,0,0,0,0,0,0,0,288,6,11,0,7,10,6,9,9,18,31,65,79,31,6,0,0,438,0,0,6,9,10,0,29,39,38,53,122,83,40,6,3,0,316,11,0,0,7,0,19,10,20,26,75,33,68,26,16,5,0,185,15,0,0,7,7,6,7,0,43,22,18,26,20,0,0,14,96,0,0,6,7,9,22,7,7,7,5,21,5,0,0,0,0,82,16,0,22,8,8,8,0,7,13,0,0,0,0,0,0,0,57287,40000,67188,66212,58077,51339,38929,20938,1421,1296,125,1229,192,258,1163,462,959,275,1146,71,1350,14,1407,188,1233,206,1215,79856500,70932400,8924100,1411700,3502600,371400,17700,2449200,1109,17,12,19,34,49,35,41,44,115,153,212,225,109,22,8,14,63239,74576200,312,31,7,7,16,9,26,34,46,33,49,15,25,8,6,0,0,43333,22152]
["Deerfield","0003086","17460",3678,1229,40,6,33,56,35,54,95,33,73,172,187,215,95,60,54,21,61367,89118200,1229,14,0,0,0,0,0,0,0,6,8,0,0,0,0,0,0,0,178,0,0,0,10,0,14,14,0,0,33,29,36,20,4,12,6,387,5,0,16,16,0,29,24,11,26,54,78,40,35,22,16,15,365,6,0,0,0,13,11,23,8,31,53,58,81,32,34,15,0,141,7,6,12,6,6,0,12,8,8,0,22,35,8,0,11,0,77,0,0,0,11,11,0,11,0,0,21,0,23,0,0,0,0,67,22,0,5,13,5,0,11,0,0,11,0,0,0,0,0,0,61367,45313,69500,61953,66875,63417,51250,22321,1229,1103,126,1065,164,227,1002,533,696,228,1001,12,1217,26,1203,212,1017,112,1117,78039100,72883900,5155200,3190000,2851500,83600,124000,3970600,996,7,6,18,43,25,37,75,31,67,123,174,189,88,60,32,21,64737,76241100,233,33,6,15,23,5,17,25,8,6,37,14,22,5,0,17,0,37083,24160]
["Derry","0003092","17940",34021,12340,483,406,481,589,518,941,643,866,501,1384,1954,1989,767,444,265,109,54634,753729400,12340,516,48,10,48,18,36,91,33,30,9,118,28,31,16,0,0,0,2394,44,72,54,84,73,203,130,185,143,360,446,375,138,42,37,8,3899,68,74,117,128,106,302,189,271,147,440,765,704,250,193,108,37,2858,85,54,57,133,124,126,90,225,122,218,527,602,235,135,96,29,1389,63,33,94,101,60,102,97,73,42,173,123,204,128,52,24,20,777,53,81,73,50,79,106,65,60,24,66,58,47,0,0,0,15,507,122,82,38,75,40,11,39,22,14,9,7,26,0,22,0,0,54634,35648,55850,61244,66266,51039,32386,20625,12340,11256,1084,11022,1318,1373,10967,4421,7919,1803,10537,168,12172,172,12168,1263,11077,1798,10542,684627300,648490700,36136600,17475700,19118500,1317400,571400,18973900,8865,157,175,301,340,280,535,462,607,328,1020,1576,1698,683,369,230,104,61625,599203400,3475,361,282,201,283,243,425,237,250,186,327,311,237,80,37,10,5,34073,22315]
["East Kingston","0003147","21380",1784,625,19,16,2,13,28,19,43,29,35,80,85,92,74,51,17,22,65197,51071000,625,2,0,0,0,0,0,0,0,0,2,0,0,0,0,0,0,0,92,1,0,0,0,4,8,7,5,6,26,6,13,8,3,0,5,200,4,2,0,0,7,2,18,13,11,24,32,31,24,22,4,6,165,2,6,2,0,3,5,7,0,8,18,21,27,32,22,9,3,98,4,4,0,0,6,2,7,4,2,6,20,19,10,2,4,8,46,2,4,0,7,7,1,3,5,5,6,4,0,0,2,0,0,22,6,0,0,6,1,1,1,2,1,0,2,2,0,0,0,0,65197,48750,55250,67115,86813,72857,39167,24583,625,577,48,562,63,113,512,284,341,92,533,16,609,12,613,81,544,43,582,46508400,42259300,4249100,1597800,1021300,146700,42800,1471500,495,14,8,2,9,16,10,26,21,25,64,68,83,70,46,15,18,71705,43400300,130,8,7,2,4,10,11,15,6,10,17,17,10,4,3,2,4,45833,28844]
["Epping","0003154","24660",5476,2053,64,98,123,130,161,55,116,97,155,273,305,257,125,66,28,0,50739,114329800,2053,41,4,5,0,12,6,0,0,0,0,14,0,0,0,0,0,0,377,0,20,16,27,21,6,22,26,49,61,62,61,6,0,0,0,558,0,12,24,25,51,18,58,14,34,64,127,58,47,16,10,0,467,0,0,19,15,33,7,0,27,38,71,70,96,54,30,7,0,265,11,23,15,6,18,12,13,24,11,36,34,22,16,20,4,0,169,22,15,23,24,17,12,6,6,17,2,12,11,2,0,0,0,176,27,23,26,21,15,0,17,0,6,25,0,9,0,0,7,0,50739,24792,50107,56389,63375,49886,25104,22500,2053,1812,241,1720,333,262,1791,723,1330,451,1602,52,2001,34,2019,331,1722,297,1756,98503700,91797900,6705800,3946000,4331700,374000,90100,4574900,1488,15,43,61,85,121,36,77,79,135,188,263,214,96,57,18,0,54722,88832700,565,49,60,62,60,46,19,28,19,25,86,43,35,24,9,0,0,31058,21109]
["Exeter","0003174","25380",14058,5900,357,276,390,257,227,406,329,359,375,634,700,672,417,164,162,175,49618,376280400,5900,149,21,3,42,6,6,0,18,27,3,18,0,5,0,0,0,0,820,26,23,36,21,46,61,81,38,71,118,106,113,38,10,23,9,1470,56,17,39,39,73,86,54,93,86,177,275,203,120,59,47,46,1125,14,32,44,26,41,115,57,64,78,100,139,138,140,53,31,53,793,73,20,35,22,30,29,21,64,35,98,66,128,88,9,29,46,653,67,63,107,56,13,34,47,41,27,53,48,47,21,23,6,0,890,100,118,87,87,18,81,51,32,75,70,66,38,10,10,26,21,49618,26042,50330,61630,57466,53750,31971,31367,5900,4558,1342,4398,1502,925,4975,2535,3365,1713,4187,181,5719,114,5786,1012,4888,739,5161,294131600,271474500,22657200,35382200,21264900,1343300,262000,17808700,3710,84,41,133,102,71,194,212,268,217,465,519,543,391,164,145,161,63088,290701300,2190,273,243,266,160,156,203,127,91,158,151,198,107,26,0,17,14,29914,27105]
["Fremont","0003213","27940",3510,1169,43,20,8,29,44,60,37,75,74,145,233,206,95,46,15,39,62171,83715000,1169,10,0,0,0,0,0,0,0,5,0,0,0,5,0,0,0,0,227,10,5,0,0,14,15,9,15,16,32,67,20,17,7,0,0,459,4,15,0,7,11,16,3,20,21,50,111,124,35,7,6,29,224,10,0,3,3,11,3,20,9,3,28,43,37,34,16,4,0,135,8,0,0,5,4,9,5,14,27,19,4,13,9,8,5,5,81,11,0,0,8,4,9,0,7,7,16,4,2,0,8,0,5,33,0,0,5,6,0,8,0,5,0,0,4,5,0,0,0,0,62171,65000,59375,70865,63750,48750,45938,31719,1169,1101,68,1064,105,231,938,486,683,198,971,10,1159,17,1152,132,1037,160,1009,72907200,68602300,4304900,3791700,2367400,80000,31400,2618800,993,29,12,7,17,31,47,25,54,68,135,211,182,91,43,15,26,63808,71507800,176,18,11,5,12,17,13,9,23,10,14,16,8,4,3,0,13,40938,24082]
["Greenland","0003220","31700",3208,1211,44,40,30,19,48,47,38,47,77,146,201,177,93,111,31,62,62172,101052500,1211,0,0,0,0,0,0,0,0,0,0,0,0,0,0,0,0,0,165,0,11,0,11,5,0,6,0,14,16,31,28,26,17,0,0,361,6,0,0,0,17,0,19,13,15,54,89,27,19,60,21,21,252,19,0,0,0,0,0,0,10,13,38,42,54,12,25,4,35,203,0,8,0,0,0,33,13,6,18,27,11,45,30,0,6,6,134,7,9,16,0,22,14,0,10,0,6,24,11,6,9,0,0,96,12,12,14,8,4,0,0,8,17,5,4,12,0,0,0,0,62172,0,61950,66458,76578,59563,32321,26250,1211,1053,158,994,217,258,953,651,560,292,919,10,1201,8,1203,297,914,145,1066,83299000,76273700,7025300,8142200,3190500,107700,79200,5075900,920,29,24,0,11,28,44,24,47,45,90,168,152,73,101,22,62,67188,84928600,291,15,16,30,8,32,13,14,0,26,56,29,18,25,0,9,0,48365,31270]
["Hampstead","0003229","32900",8297,3045,94,78,130,107,126,115,109,184,165,197,392,574,302,223,190,59,68533,239758200,3045,69,9,14,0,7,0,0,0,18,0,8,6,7,0,0,0,0,340,0,8,5,7,29,24,0,23,30,22,43,72,38,17,15,7,902,19,7,10,11,29,5,18,40,31,52,136,217,126,90,70,41,781,9,7,16,11,0,27,24,17,36,57,95,192,79,111,89,11,462,11,10,31,27,16,6,17,69,51,33,69,78,28,0,16,0,285,6,11,31,24,34,43,41,17,17,16,17,8,20,0,0,0,206,40,21,37,20,18,10,9,0,0,9,26,0,11,5,0,0,68533,41250,68333,85581,88727,49375,34440,21136,3045,2687,358,2633,412,410,2635,1576,1469,668,2377,28,3017,19,3026,515,2530,258,2787,212797700,196976000,15821700,8768900,8646500,178900,135800,7247500,2313,28,38,53,33,62,90,70,99,125,161,315,528,274,201,187,49,79114,204076800,732,66,55,95,56,64,28,46,76,41,29,85,36,28,14,3,10,35172,29195]
["Hampton","0003240","33060",14937,6474,343,256,356,307,270,309,350,365,310,659,771,979,476,278,266,179,54419,444221300,6474,136,29,10,33,8,10,0,8,15,6,17,0,0,0,0,0,0,923,46,17,22,67,56,24,40,64,51,130,124,158,69,32,15,8,1525,30,30,73,18,51,71,100,79,96,101,189,305,155,93,96,38,1511,35,41,31,74,52,76,90,88,52,199,143,258,141,80,97,54,1003,48,31,40,33,36,34,32,53,33,101,163,185,62,55,50,47,771,52,39,90,46,24,59,58,52,50,73,95,55,35,10,8,25,605,103,88,67,61,41,45,22,14,22,38,57,18,14,8,0,7,54419,19600,55188,71078,61458,65144,40994,24158,6474,5242,1232,5014,1460,1039,5435,2857,3617,1758,4716,214,6260,132,6342,1343,5131,784,5690,353759900,325627100,28132800,31400300,20412100,1073900,342700,29527800,4074,138,81,130,190,152,130,190,186,217,439,525,730,385,218,234,129,66000,321520800,2400,239,185,225,143,117,180,152,172,100,233,206,221,91,68,24,44,37908,29878]
["Hampton Falls","0003270","33460",1880,711,21,10,19,24,32,29,39,28,13,42,92,128,71,58,63,42,76348,66492600,711,6,0,0,0,0,0,0,0,0,0,0,2,3,1,0,0,0,73,0,0,0,4,8,4,7,7,0,2,11,16,10,2,0,2,170,2,2,0,2,4,6,7,4,0,8,23,44,24,12,17,15,185,0,0,7,2,7,4,6,9,2,6,15,28,17,34,29,19,127,13,0,0,2,0,0,8,2,7,16,32,25,8,5,5,4,94,6,5,5,8,8,8,4,6,2,8,5,8,7,5,9,0,56,0,3,7,6,5,7,7,0,2,2,4,4,4,0,3,2,76348,76011,61607,90000,108376,66563,43125,35000,711,611,100,574,137,165,546,382,329,182,529,9,702,12,699,120,591,66,645,54693100,48131700,6561400,5591300,2370200,93100,48000,2954500,547,7,2,12,13,20,14,24,19,13,34,73,103,66,47,58,42,86229,57275600,164,14,8,9,11,14,13,18,9,0,6,17,25,6,9,5,0,38958,35060]
["Kensington","0003277","39780",1893,657,21,17,12,25,23,37,15,38,25,45,121,80,78,46,33,41,67344,55479900,657,6,0,0,0,0,0,2,2,0,0,0,2,0,0,0,0,0,61,2,0,0,0,5,8,0,2,2,5,13,7,4,5,2,6,208,4,4,0,4,4,8,2,16,8,16,54,38,24,10,8,8,189,6,0,1,3,2,0,2,14,10,11,30,23,34,26,12,15,94,3,4,0,10,6,11,2,4,5,4,13,8,9,3,4,8,58,0,0,6,3,6,5,4,2,0,7,7,2,5,2,5,4,41,6,9,5,5,0,3,3,0,0,2,2,2,2,0,2,0,67344,36250,65625,70667,93936,53750,53750,22750,657,593,64,559,98,136,521,316,341,132,525,15,642,4,653,90,567,62,595,48341400,42055100,6286300,3480200,1527600,94900,18300,1499800,530,11,8,10,16,12,20,8,32,23,42,96,74,73,39,33,33,72679,47875600,127,10,11,2,9,14,14,9,4,2,4,23,8,4,5,0,8,36458,29265]
["Kingston","0003282","40100",5862,2132,74,59,65,62,155,84,103,100,110,240,286,314,247,68,71,94,61522,168782200,2132,21,0,0,0,0,0,0,0,7,0,0,14,0,0,0,0,0,288,8,0,7,13,17,0,22,19,7,35,62,54,34,10,0,0,648,18,9,18,0,54,18,35,19,22,67,100,140,88,17,9,34,528,0,19,0,8,40,36,17,46,26,88,37,81,47,18,24,41,308,22,0,0,10,0,11,29,0,9,39,37,27,67,11,38,8,135,0,12,0,12,34,19,0,0,11,11,24,12,0,0,0,0,204,26,19,40,19,10,0,0,9,35,0,12,0,11,12,0,11,61522,63125,63790,66667,58462,74559,32159,22237,2132,1854,278,1801,331,391,1741,1042,1090,438,1694,43,2089,18,2114,358,1774,288,1844,144081800,131135900,12945900,6184800,4856000,308500,39200,11084600,1653,29,10,48,46,124,56,67,36,70,216,267,275,213,39,71,86,66509,143333800,479,45,49,17,25,37,35,36,53,40,13,28,39,25,29,0,8,38750,28795]
["Londonderry","0003295","43220",23236,7635,207,162,165,233,273,201,316,280,349,767,1229,1522,855,388,420,268,70501,614390900,7635,65,12,0,0,16,0,11,0,9,6,11,0,0,0,0,0,0,1038,26,14,13,11,49,18,54,25,47,169,249,153,94,39,51,26,2718,25,8,32,41,65,28,71,125,81,294,446,693,409,181,122,97,2073,16,32,27,50,45,30,67,67,172,167,333,476,207,123,152,109,1002,43,42,19,41,51,72,46,10,25,79,120,172,142,26,78,36,481,47,20,23,31,44,42,59,35,18,30,72,21,3,19,17,0,258,38,46,51,43,19,0,19,9,0,17,9,7,0,0,0,0,70501,31023,65116,79852,75846,69659,37326,19211,7635,7100,535,6938,697,996,6639,3292,4343,1090,6545,135,7500,121,7514,923,6712,1002,6633,556044500,529380400,26664100,23489400,13045000,1050400,217100,13389800,6405,71,75,89,157,244,113,235,240,337,661,1087,1341,786,403,343,223,73513,539010800,1230,136,87,76,96,39,98,90,56,22,136,147,118,44,8,32,45,39718,26491]
["New Castle","0003320","50980",1010,413,2,3,16,10,20,18,25,16,11,34,41,46,28,43,14,86,83708,67834900,413,0,0,0,0,0,0,0,0,0,0,0,0,0,0,0,0,0,16,0,0,0,0,0,0,3,2,0,1,4,2,2,0,2,0,72,0,1,0,2,2,6,0,1,1,8,13,4,4,12,2,16,99,0,0,5,2,4,2,4,0,2,13,6,21,9,11,2,18,67,2,0,2,0,0,5,4,3,2,2,4,10,5,5,4,19,94,0,0,5,0,5,4,8,8,4,5,12,5,4,11,0,23,65,0,2,4,6,9,1,6,2,2,5,2,4,4,4,4,10,83708,0,67500,83253,92792,88695,70833,50417,413,318,95,295,118,97,316,303,110,149,264,16,397,0,413,121,292,71,342,33377000,26943600,6433300,26585000,2047400,147800,0,4588800,297,0,2,7,4,9,17,16,8,8,27,31,33,19,37,12,67,93290,52695300,116,2,3,9,6,11,1,10,8,2,7,10,11,9,6,2,19,52500,67695]
["Newfields","0003327","51380",1551,517,10,6,18,16,15,15,15,14,27,48,87,112,60,21,15,38,71375,44722700,517,6,0,0,0,0,0,0,3,0,3,0,0,0,0,0,0,0,57,0,0,2,2,1,0,2,0,7,13,10,6,6,5,0,3,198,2,0,2,4,2,0,0,9,9,13,34,54,38,10,7,14,112,3,0,3,0,2,4,4,2,8,3,20,38,6,6,5,8,60,2,0,6,2,3,2,0,0,0,8,7,14,4,0,3,9,53,3,6,3,8,2,7,6,0,0,6,10,0,2,0,0,0,31,0,0,2,0,5,2,0,3,0,5,6,0,4,0,0,4,71375,42500,61250,83551,78031,75000,33438,58750,517,465,52,449,68,121,396,258,259,110,407,8,509,0,517,90,427,57,460,38326800,35146100,3180700,3089500,1414100,68200,0,1428900,433,7,3,8,16,6,13,14,13,27,38,71,95,54,21,15,32,75078,39050900,84,5,6,11,2,9,2,2,3,3,3,16,13,3,0,0,6,49167,28687]
["Newington","0003334","51620",775,293,14,13,8,11,7,21,10,24,11,29,27,50,33,14,13,8,59464,22407700,293,5,0,0,0,0,0,0,0,0,0,3,2,0,0,0,0,0,17,0,0,0,3,0,2,0,2,0,2,0,3,5,0,0,0,71,5,8,4,0,0,2,2,0,4,6,2,12,13,4,3,6,80,3,0,2,2,0,5,2,10,2,8,14,15,8,6,3,0,64,3,0,0,2,3,5,2,8,3,10,4,10,4,4,4,2,36,2,0,2,4,2,5,3,4,2,0,3,3,3,0,3,0,20,1,5,0,0,2,2,1,0,0,0,2,7,0,0,0,0,59464,52083,51875,91717,68000,55000,40000,35000,293,252,41,226,67,72,221,160,133,65,228,7,286,0,293,75,218,33,260,17384800,15239600,2145200,2313700,763400,66100,0,1379900,202,10,5,0,6,5,9,5,11,6,17,26,42,34,11,7,8,76202,17951200,91,4,8,8,5,2,12,5,13,5,12,3,6,2,0,6,0,40417,30172]
["Newmarket","0003341","52340",8027,3373,210,231,192,254,187,181,190,192,222,348,477,410,130,73,53,23,46058,176893200,3373,434,63,48,16,70,7,33,24,48,20,65,16,10,14,0,0,0,766,51,68,40,36,38,26,52,43,45,102,164,82,10,9,0,0,826,8,40,26,14,67,42,63,35,84,104,135,127,36,19,26,0,601,29,10,17,10,22,26,8,40,38,43,99,146,47,16,27,23,317,22,10,0,62,22,20,8,8,19,19,37,45,16,29,0,0,212,19,37,38,18,15,26,18,0,8,15,18,0,0,0,0,0,217,18,18,55,44,16,8,17,18,8,0,8,0,7,0,0,0,46058,31300,46959,51735,69213,48355,23333,21620,3373,3034,339,2947,426,532,2841,1248,2125,549,2824,51,3322,83,3290,381,2992,399,2974,156598000,144763100,11835000,7347800,6015400,481100,293400,3937700,1955,73,87,31,87,91,131,108,127,145,200,323,355,88,53,33,23,53750,120540800,1418,137,170,161,165,96,50,90,75,75,126,149,57,42,11,14,0,29138,22085]
["Newton","0003369","52900",4289,1509,48,37,46,94,43,89,93,63,55,162,275,277,150,46,16,15,60972,96667000,1509,22,5,0,0,0,0,6,6,5,0,0,0,0,0,0,0,0,264,0,4,7,12,5,33,12,4,3,42,61,50,25,0,6,0,477,8,7,0,20,0,24,30,12,37,47,106,112,37,19,10,8,364,0,7,0,8,16,9,18,13,11,35,57,108,67,8,0,7,164,12,0,0,11,8,0,7,15,4,23,43,7,15,19,0,0,141,15,0,15,36,14,17,7,14,0,15,8,0,0,0,0,0,77,8,19,24,7,0,0,13,0,0,0,0,0,6,0,0,0,60972,35000,62500,66910,76491,60172,26607,16513,1509,1359,150,1310,199,201,1308,599,910,259,1250,55,1454,18,1491,200,1309,216,1293,87707600,80346100,7361500,2377100,2724700,388400,33100,2020900,1183,32,11,20,74,25,70,64,46,62,123,269,211,118,38,12,8,62271,78051500,326,26,26,33,37,13,19,26,15,0,20,22,46,36,0,0,7,36184,22910]
["North Hampton","0003380","54580",4259,1660,97,30,18,91,45,109,60,62,61,183,219,229,209,59,76,112,66696,144982700,1660,0,0,0,0,0,0,0,0,0,0,0,0,0,0,0,0,0,143,14,0,0,0,0,6,0,11,14,14,22,7,30,13,0,12,385,15,0,0,14,7,26,0,7,5,24,49,74,83,5,39,37,428,10,20,0,9,10,8,21,5,0,62,68,67,75,22,19,32,308,23,5,12,17,0,31,17,18,10,40,47,44,6,7,6,25,227,25,0,0,31,12,26,18,16,6,30,11,12,15,7,12,6,169,10,5,6,20,16,12,4,5,26,13,22,25,0,5,0,0,66696,0,70125,88909,80293,52283,40375,45855,1660,1381,279,1279,381,346,1314,868,792,521,1139,68,1592,20,1640,411,1249,179,1481,112942200,101355300,11586900,16250200,5917900,638200,9500,7406700,1232,13,7,6,59,23,60,51,41,56,139,186,191,186,49,66,99,72500,122976900,428,84,23,12,39,22,42,15,21,5,44,47,29,17,10,5,13,34000,34187]
["Northwood","0003391","56820",3640,1365,72,45,22,114,68,92,91,110,55,162,223,156,75,46,14,20,50675,79466800,1365,41,13,0,0,20,0,0,0,0,0,8,0,0,0,0,0,0,193,0,4,0,10,0,10,6,13,4,30,42,50,10,7,4,3,377,15,0,0,31,19,25,19,38,8,58,62,54,28,16,0,4,340,6,5,4,16,6,28,23,21,26,33,74,46,23,14,6,9,194,17,17,0,15,25,21,7,16,12,20,17,6,4,9,4,4,134,0,10,14,16,15,0,18,16,5,9,21,0,10,0,0,0,86,21,9,4,6,3,8,18,6,0,4,7,0,0,0,0,0,50675,20938,69861,54018,60556,36250,37308,28750,1365,1210,155,1149,216,318,1047,539,826,282,1083,17,1348,34,1331,206,1159,182,1183,70648800,60566200,10082600,1841600,3280700,84100,65100,2525000,1013,9,24,16,71,49,78,64,81,55,139,184,116,62,40,14,11,53953,62637500,352,63,21,6,48,23,33,29,23,4,32,30,15,14,7,0,4,31705,21491]
["Nottingham","0003398","57460",3701,1331,45,26,33,76,34,54,63,58,81,148,277,242,136,23,11,24,62423,91106100,1331,0,0,0,0,0,0,0,0,0,0,0,0,0,0,0,0,0,202,0,0,7,7,0,17,11,19,15,26,57,22,14,0,0,7,405,7,10,0,33,0,5,0,7,29,50,109,86,57,4,0,8,383,20,16,14,12,0,20,14,18,19,41,55,94,54,0,6,0,194,12,0,0,0,27,6,19,9,7,20,44,26,0,15,0,9,106,6,0,12,24,7,0,19,5,11,5,6,0,6,0,5,0,41,0,0,0,0,0,6,0,0,0,6,6,14,5,4,0,0,62423,0,59833,66875,64125,59063,35526,91170,1331,1236,95,1208,123,164,1167,625,706,192,1139,15,1316,14,1317,166,1165,160,1171,79456000,76851500,2604500,3822600,2456600,71700,53300,3177100,1062,10,0,33,50,18,38,46,48,77,125,252,186,136,8,11,24,65510,78272600,269,41,26,6,20,27,20,6,6,10,28,21,43,0,15,0,0,32708,24879]
["Plaistow","0003404","62500",7747,2873,136,74,76,115,151,161,157,149,86,225,460,607,220,146,54,56,61707,192330000,2873,41,0,0,0,0,7,25,0,0,0,0,0,0,9,0,0,0,436,7,15,8,13,34,25,18,32,15,50,83,80,24,24,8,0,818,13,0,7,39,38,17,42,50,12,75,130,245,64,69,10,7,657,9,6,0,20,9,59,27,33,6,25,109,175,67,47,26,39,452,40,0,16,7,45,11,18,7,43,47,85,67,40,6,10,10,275,47,8,18,0,0,24,52,8,10,9,43,40,16,0,0,0,194,20,45,27,36,18,0,0,19,0,19,10,0,0,0,0,0,61707,31350,60100,69063,77921,58182,37355,20347,2873,2527,346,2408,465,380,2493,1288,1585,514,2359,30,2843,24,2849,449,2424,336,2537,170723300,161222100,9501200,4953700,6040700,153400,95700,7884300,2157,39,23,25,70,108,86,121,124,69,180,346,537,203,123,47,56,66852,161464800,716,97,51,51,45,43,85,46,25,17,45,94,70,17,30,0,0,32667,25255]
["Portsmouth","0003415","62900",20784,9933,899,574,550,555,662,478,566,664,399,951,1223,1177,507,315,256,157,45195,558654200,9933,330,26,40,16,6,57,0,16,50,0,47,46,16,10,0,0,0,2218,139,93,69,77,108,137,141,211,98,211,339,327,122,79,48,19,2146,145,95,77,107,138,75,93,114,92,272,316,273,114,86,129,20,1780,88,64,46,49,106,121,103,102,78,132,284,286,132,60,57,72,1210,148,71,51,108,99,27,42,58,36,135,106,159,86,38,15,31,1123,104,98,139,118,79,86,67,69,54,83,67,92,31,21,0,15,1126,249,113,152,90,75,32,104,60,41,71,65,24,12,31,7,0,45195,40417,51034,55341,60033,45156,30979,22076,9933,7974,1959,7551,2382,1364,8569,4546,5387,2602,7331,299,9634,337,9596,1939,7994,1337,8596,441684200,400943200,40740900,41917400,25783400,1627700,1174700,34981200,4954,185,194,167,183,270,226,262,278,226,503,763,854,353,201,189,100,59630,337393200,4979,752,391,394,364,402,279,291,369,187,450,447,326,147,84,39,57,32416,27540]
["Raymond","0003465","64020",9674,3481,236,122,95,165,344,207,230,195,191,553,531,367,163,55,27,0,48829,176172100,3481,126,0,0,7,8,30,8,25,28,0,10,10,0,0,0,0,0,661,50,0,10,23,72,53,54,42,59,176,60,52,0,10,0,0,1073,36,42,18,13,46,60,61,43,69,222,255,121,68,0,19,0,737,21,12,8,45,43,32,48,36,41,78,133,142,68,22,8,0,423,7,38,11,33,95,24,28,37,0,39,41,32,15,23,0,0,241,62,0,26,33,23,30,14,9,16,0,15,13,0,0,0,0,220,60,30,15,10,35,0,0,0,6,28,17,7,12,0,0,0,48829,37794,46949,56023,60250,35729,24931,23750,3481,3089,392,2985,496,450,3031,921,2560,627,2854,54,3427,90,3391,383,3098,455,3026,159179400,146793900,12385500,2824400,6232800,520000,238600,4489400,2557,103,73,41,127,245,180,186,123,150,358,445,316,128,55,27,0,50889,138507900,924,141,58,69,51,102,58,72,81,41,144,42,46,19,0,0,0,32875,18430]
["Rye","0003491","66180",5182,2174,57,142,118,78,92,82,40,160,88,193,257,247,183,133,150,154,63152,189383600,2174,24,0,15,0,9,0,0,0,0,0,0,0,0,0,0,0,0,215,29,25,0,8,23,10,0,18,0,20,18,17,17,13,17,0,446,0,0,11,22,8,15,0,47,15,62,21,84,49,42,32,38,525,12,31,0,0,21,24,11,7,10,54,74,50,74,14,76,67,353,8,0,20,0,17,10,0,22,21,27,67,56,27,36,12,30,307,0,54,27,16,0,13,6,42,31,12,42,24,6,15,0,19,304,8,17,60,23,23,10,23,24,11,18,35,16,10,13,13,0,63152,14063,44236,88689,87878,74006,44511,36196,2174,1759,415,1641,533,550,1624,1171,1003,684,1490,8,2166,6,2168,536,1638,306,1868,139813200,118154800,21658400,26948200,8015000,82500,3600,11425600,1458,16,37,43,57,34,80,16,85,56,97,209,209,152,115,106,146,74956,152172500,716,41,105,75,39,58,10,24,75,32,78,48,43,31,13,44,0,40268,36746]
["Salem","0003506","66660",28112,10393,343,416,494,568,481,481,564,444,470,1115,1148,1671,938,541,443,276,58090,739385700,10393,155,15,14,18,12,12,12,11,13,27,5,16,0,0,0,0,0,1420,18,37,13,76,74,34,69,42,85,211,242,284,115,30,70,20,2791,46,25,89,89,145,129,101,111,112,267,396,621,240,156,136,128,2409,28,41,32,127,52,96,77,114,85,269,273,441,373,211,123,67,1634,43,72,48,78,75,83,137,85,63,262,159,174,146,104,64,41,1221,59,97,178,127,79,84,107,54,86,59,43,126,45,18,50,9,763,134,130,116,59,44,43,62,25,12,42,19,25,19,22,0,11,58090,31354,62277,70275,75619,55452,34325,20094,10393,8919,1474,8643,1750,1233,9160,4373,6020,2529,7864,280,10113,97,10296,1824,8569,1105,9288,643321300,595002200,48319000,30365500,29277900,1807100,214900,24831300,7609,153,126,244,275,267,282,348,286,344,889,985,1394,845,515,389,267,67278,618025200,2784,246,289,264,317,224,192,205,160,134,214,155,229,84,8,54,9,31008,26170]
["Sandown","0003538","67620",5143,1692,49,39,54,32,41,61,77,107,72,125,317,340,191,85,69,33,67581,132698800,1692,17,0,0,0,0,0,6,0,0,7,4,0,0,0,0,0,0,250,9,0,5,6,7,7,12,44,25,20,59,50,6,0,0,0,682,5,26,13,4,4,30,21,41,25,36,145,166,96,44,21,5,430,10,0,5,6,6,13,31,11,6,29,63,103,58,34,43,12,173,7,5,0,0,6,5,13,5,9,27,41,21,22,7,5,0,71,0,0,31,7,18,0,0,6,0,0,9,0,0,0,0,0,69,18,8,0,9,0,0,0,0,0,9,0,0,9,0,0,16,67581,45893,53750,73929,79561,62375,24107,22361,1692,1589,103,1562,130,248,1444,598,1094,193,1499,39,1653,15,1677,132,1560,219,1473,118405100,112133200,6271900,4590800,2082300,379100,35300,5403800,1395,26,21,23,24,41,27,56,82,48,80,304,326,176,71,64,26,73083,114801400,297,23,18,35,15,6,34,27,25,29,35,8,22,8,0,5,7,37083,25978]
["Seabrook","0003547","68260",7934,3413,275,202,218,132,232,270,236,258,201,404,413,331,140,54,33,14,42874,163876800,3413,80,6,0,0,10,0,16,19,16,13,0,0,0,0,0,0,0,542,24,20,20,0,28,47,13,32,28,99,115,85,10,6,15,0,714,42,18,50,31,47,43,91,51,74,68,66,82,16,28,7,0,631,8,25,29,37,36,54,18,24,44,105,99,76,64,0,5,7,563,60,25,29,15,50,23,14,50,22,65,89,63,38,7,6,7,490,72,43,48,23,46,29,58,43,13,48,29,18,7,13,0,0,393,63,71,42,16,25,58,23,42,7,19,15,7,5,0,0,0,42874,36053,53313,43182,52917,46761,32031,25662,3413,2657,756,2578,835,386,3027,1020,2393,1140,2273,118,3295,38,3375,628,2785,467,2946,132726000,124109900,8616200,7138400,12779700,767000,33800,7295800,2171,88,42,68,90,153,203,148,203,148,285,317,244,117,38,13,14,47718,116696700,1242,193,180,139,42,85,81,89,55,63,119,70,77,22,12,15,0,28929,20992]
["South Hampton","0003562","71140",844,300,8,7,18,10,16,13,11,16,10,26,29,54,39,15,6,22,63750,24098100,300,0,0,0,0,0,0,0,0,0,0,0,0,0,0,0,0,0,28,0,0,0,0,3,2,2,2,0,0,0,4,9,0,0,6,68,2,0,0,2,0,6,2,5,2,9,8,18,12,2,0,0,88,2,2,2,2,2,2,3,2,4,4,11,17,13,5,6,11,38,0,0,2,0,0,0,2,2,0,2,8,8,5,4,0,5,48,0,2,7,4,9,1,2,0,4,11,0,4,0,4,0,0,30,4,3,7,2,2,2,0,5,0,0,2,3,0,0,0,0,63750,0,101694,66250,88263,78621,36250,21250,300,256,44,240,60,58,242,130,170,97,203,7,293,6,294,56,244,23,277,19911000,18371500,1539500,1957700,1109800,42300,27700,953200,248,0,2,12,8,10,9,11,9,13,24,24,56,29,13,6,22,75778,21747000,52,8,5,6,2,6,4,0,7,0,2,5,2,3,2,0,0,28750,28287]
["Stratham","0003569","74340",6355,2308,12,62,91,58,87,76,57,108,133,141,289,454,294,122,169,155,76726,210187600,2308,6,0,0,0,0,0,0,0,0,0,6,0,0,0,0,0,0,283,0,0,7,0,0,0,5,15,0,46,14,90,26,15,35,30,780,0,7,35,7,17,29,0,48,45,39,93,149,139,69,70,33,605,6,24,0,14,0,18,29,23,43,13,111,138,54,14,49,69,294,0,0,25,0,25,0,17,12,14,20,38,61,37,14,8,23,240,0,18,8,27,45,20,0,10,21,9,18,9,38,10,7,0,100,6,13,16,10,0,9,6,0,10,8,15,7,0,0,0,0,76726,53750,83421,83604,79255,73750,40500,33889,2308,2034,274,1958,350,359,1949,1275,1033,416,1892,30,2278,8,2300,332,1976,249,2059,176622200,163150700,13471500,19465800,5657500,256800,9600,6466000,1766,0,15,52,43,79,56,28,67,105,68,260,360,258,103,151,121,81391,169954000,542,12,47,39,15,8,20,29,41,35,73,44,91,43,13,5,27,53500,33270]
["Windham","0003578","85780",10709,3579,41,68,84,47,43,86,77,113,131,266,294,662,543,386,339,399,94794,408398200,3579,16,0,0,0,0,0,6,0,0,0,0,10,0,0,0,0,0,411,12,0,8,7,0,17,15,11,10,35,52,77,51,58,22,36,1118,6,0,16,0,10,16,8,23,73,84,85,244,149,138,116,150,1087,0,18,22,6,0,16,12,25,17,53,70,168,270,116,149,145,551,15,0,15,8,18,20,8,20,15,36,42,104,73,66,43,68,273,0,34,17,18,8,5,26,17,16,48,26,41,0,8,9,0,123,8,16,6,8,7,6,8,17,0,10,9,28,0,0,0,0,94794,60500,83182,99199,110387,93337,46797,40368,3579,3324,255,3242,337,481,3098,2009,1570,631,2948,59,3520,40,3539,412,3167,331,3248,374075200,351038400,23036700,16078700,7079200,428200,153800,7037200,3053,7,36,41,39,28,49,63,86,98,216,228,645,508,307,313,389,99570,371750700,526,34,32,43,16,15,37,23,27,41,43,58,24,25,72,26,10,48611,38559]
[]
[]
[]
[]
[]
[]
[]
[]
[]
[]
["Census 2000 SummaryFile3 Sample Data  -  SF3TownQry2bPovertyChar"]
[]
["TOWN_NAME","LOGRECNO","COUSUB","TotalPop","P52Households1","P82PerCapitaInc","P87PopForPovStatus","P87PopWIncBelowPovStatus","P87PopUnder5yrBelowPoverty","P87Pop5yrBelowPoverty","P87Pop5to11yrBelowPoverty","P87Pop12to17yrBelowPoverty","P87Pop18to64yrBelowPoverty","P87Pop65to74yrBelowPoverty","P87PopOver75yrBelowPoverty","P87PopWIncAbovePovStatus","P87PopUnder5yrAbovePoverty","P87Pop5yrAbovePoverty","P87Pop5to11yrAbovePoverty","P87Pop12to17yrAbovePoverty","P87Pop18to64yrAbovePoverty","P87Pop65to74yrAbovePoverty","P87PopOver75yrAbovePoverty","P90Families","P90FamWIncBelowPov","P90MarCupFamWIncBelowPov","P90MCFamWRltdChld<18WIncBelowPov","P90MCFamWRltdChld<5WIncBelowPov","P90MaleHhlrWIncBelowPov","P90MaleHhlrWRltdChld<18yrWIncBelowPov","P90MaleHhlrWRltdChld<5yrWIncBelowPov","P90FemaleHhlrWIncBelowPov","P90FemaleHhlrWRltdChld<18yWIncBelowPov","P90FemaleHhlrWRltdChld<5yWIncBelowPov","P90FamWIncAbovePov","P90MarCupFamWIncAbovePov","P90MCFamWRltdChld<18WIncAbovePov","P90MCFamWRltdChld<5WIncAbovePov","P90MaleHhlrWIncAbovePov","P90MaleHhlrWRltdChld<18yrWIncAbovePov","P90MaleHhlrWRltdChld<5yrWIncAbovePov","P90FemaleHhlrWIncAbovePov","P90FemaleHhlrWRltdChld<18yWIncAbovePov","P90FemaleHhlrWRltdChld<5yWIncAbovePov","P92Households","P92HHwIncBelowPov","P92FamHHwIncBelowPov","P92MCFamHHwIncBelowPov","P92MaleFamHHwIncBelowPov","P92FemaleFamHHwIncBelowPov","P92NonFamHHwIncBelowPov","P92NonFamMaleHHwIncBelowPov","P92NonFamFemaleHHwIncBelowPov","P92HHwIncAbovePov","P92FamHHwIncAbovePov","P92MCFamHHwIncAbovePov","P92MaleFamHHwIncAbovePov","P92FemaleFamHHwIncAbovePov","P92NonFamHHwIncAbovePov","P92NonFamMaleHHwIncAbovePov","P92NonFamFemaleHHwIncAbovePov"]
["Atkinson","0003039","02340",6178,2326,30412,6178,202,16,0,35,18,118,9,6,5976,395,35,544,477,3843,437,245,1781,41,18,18,8,0,0,0,23,16,0,1740,1532,709,150,91,49,21,117,45,3,2326,76,41,18,0,23,35,0,35,2250,1740,1532,91,117,510,275,235]
["Auburn","0003046","02820",4682,1573,28405,4665,83,4,0,0,6,41,21,11,4582,331,95,511,393,2999,130,123,1305,21,16,0,0,0,0,0,5,5,0,1284,1173,655,131,34,12,2,77,44,8,1573,50,21,16,0,5,29,18,11,1523,1284,1173,34,77,239,142,97]
["Brentwood","0003056","07220",3197,906,22027,2728,100,9,4,13,8,50,16,0,2628,202,48,299,211,1631,139,98,780,26,3,3,0,7,7,0,16,8,4,754,674,348,74,21,16,0,59,14,4,906,46,26,3,7,16,20,0,20,860,754,674,21,59,106,44,62]
["Candia","0003063","09300",3911,1360,25267,3890,103,6,0,11,14,57,15,0,3787,265,35,371,309,2541,178,88,1113,26,21,5,0,0,0,0,5,5,0,1087,1010,531,156,41,35,12,36,31,0,1360,30,26,21,0,5,4,0,4,1330,1087,1010,41,36,243,141,102]
["Chester","0003071","12100",3792,1212,23842,3745,188,8,4,27,33,104,0,12,3557,302,82,383,320,2253,144,73,1014,34,22,18,0,4,4,0,8,8,0,980,864,497,104,33,22,6,83,54,7,1212,66,34,22,4,8,32,15,17,1146,980,864,33,83,166,87,79]
["Danville","0003079","17140",4023,1421,22152,4003,162,6,5,18,34,75,0,24,3841,313,66,401,308,2490,145,118,1109,35,17,6,0,0,0,0,18,18,0,1074,939,505,142,27,20,5,108,58,12,1421,66,35,17,0,18,31,22,9,1355,1074,939,27,108,281,207,74]
["Deerfield","0003086","17460",3678,1229,24160,3652,117,0,0,6,16,69,0,26,3535,265,33,366,394,2253,171,53,996,13,13,6,0,0,0,0,0,0,0,983,908,504,112,36,36,2,39,27,6,1229,46,13,13,0,0,33,6,27,1183,983,908,36,39,200,96,104]
["Derry","0003092","17940",34021,12340,22315,33737,1564,131,24,183,217,868,62,79,32173,2273,480,3573,3225,20790,1187,645,8865,296,98,72,0,16,16,16,182,169,17,8569,6814,4072,669,697,468,135,1058,744,94,12340,606,296,98,16,182,310,128,182,11734,8569,6814,697,1058,3165,1712,1453]
["East Kingston","0003147","21380",1784,625,28844,1769,77,4,0,19,14,40,0,0,1692,108,43,153,131,1131,78,48,495,16,6,4,0,4,3,0,6,6,1,479,451,233,44,8,5,0,20,11,0,625,19,16,6,4,6,3,1,2,606,479,451,8,20,127,74,53]
["Epping","0003154","24660",5476,2053,21109,5459,180,29,0,23,24,73,22,9,5279,357,81,487,471,3404,266,213,1488,39,14,9,0,0,0,0,25,19,9,1449,1236,605,127,62,17,0,151,109,0,2053,74,39,14,0,25,35,4,31,1979,1449,1236,62,151,530,259,271]
["Exeter","0003174","25380",14058,5900,27105,13777,742,54,9,109,88,385,47,50,13035,753,124,1100,1144,7873,956,1085,3710,108,26,26,5,12,12,0,70,55,11,3602,3020,1478,325,186,56,25,396,267,40,5900,314,108,26,12,70,206,64,142,5586,3602,3020,186,396,1984,874,1110]
["Fremont","0003213","27940",3510,1169,24082,3467,145,24,0,12,27,71,6,5,3322,275,73,325,275,2163,148,63,993,38,18,18,4,8,8,0,12,8,5,955,870,468,80,25,21,0,60,31,0,1169,55,38,18,8,12,17,3,14,1114,955,870,25,60,159,114,45]
["Greenland","0003220","31700",3208,1211,31270,3196,190,7,6,12,60,86,7,12,3006,206,29,293,225,1936,185,132,920,33,25,18,0,4,0,0,4,4,0,887,761,382,84,38,26,4,88,44,4,1211,55,33,25,4,4,22,0,22,1156,887,761,38,88,269,133,136]
["Hampstead","0003229","32900",8297,3045,29195,8283,316,56,16,40,47,128,0,29,7967,423,75,861,859,5001,446,302,2313,56,13,13,0,11,11,0,32,32,10,2257,2013,1047,182,23,23,16,221,130,13,3045,105,56,13,11,32,49,9,40,2940,2257,2013,23,221,683,332,351]
["Hampton","0003240","33060",14937,6474,29878,14804,870,65,14,111,82,450,32,116,13934,818,148,1053,873,9107,1192,743,4074,184,60,38,15,0,0,0,124,102,24,3890,3214,1290,308,221,110,24,455,236,44,6474,363,184,60,0,124,179,58,121,6111,3890,3214,221,455,2221,1136,1085]
["Hampton Falls","0003270","33460",1880,711,35060,1875,55,0,2,11,4,30,5,3,1820,128,18,164,155,1121,144,90,547,12,10,7,0,0,0,0,2,2,0,535,488,229,47,14,6,0,33,20,8,711,26,12,10,0,2,14,7,7,685,535,488,14,33,150,73,77]
["Kensington","0003277","39780",1893,657,29265,1875,87,8,5,4,9,53,2,6,1788,136,34,176,140,1136,110,56,530,18,12,7,2,2,0,0,4,4,0,512,463,246,56,16,7,3,33,17,2,657,32,18,12,2,4,14,5,9,625,512,463,16,33,113,64,49]
["Kingston","0003282","40100",5862,2132,28795,5862,147,7,0,18,0,104,0,18,5715,354,49,623,454,3736,223,276,1653,29,21,11,0,8,8,0,0,0,0,1624,1400,704,187,37,9,0,187,93,8,2132,64,29,21,8,0,35,35,0,2068,1624,1400,37,187,444,259,185]
["Londonderry","0003295","43220",23236,7635,26491,23197,483,11,15,38,42,300,52,25,22714,1697,433,2693,2605,14137,729,420,6405,101,74,44,0,11,11,0,16,8,0,6304,5359,3273,491,311,211,45,634,485,53,7635,179,101,74,11,16,78,8,70,7456,6304,5359,311,634,1152,555,597]
["New Castle","0003320","50980",1010,413,67695,999,6,0,0,0,0,6,0,0,993,43,16,71,92,536,126,109,297,0,0,0,0,0,0,0,0,0,0,297,252,105,9,20,11,2,25,12,0,413,2,0,0,0,0,2,0,2,411,297,252,20,25,114,51,63]
["Newfields","0003327","51380",1551,517,28687,1546,44,6,0,5,4,29,0,0,1502,138,32,172,129,914,75,42,433,11,1,1,0,2,0,0,8,8,5,422,384,219,56,13,6,2,25,17,0,517,13,11,1,2,8,2,0,2,504,422,384,13,25,82,35,47]
["Newington","0003334","51620",775,293,30172,776,36,0,3,2,3,24,2,2,740,36,14,53,59,506,49,23,202,10,5,2,0,0,0,0,5,3,0,192,164,69,13,14,10,3,14,10,0,293,19,10,5,0,5,9,6,3,274,192,164,14,14,82,36,46]
["Newmarket","0003341","52340",8027,3373,22085,8019,669,43,22,78,59,430,31,6,7350,472,73,459,564,5147,324,311,1955,111,38,29,0,8,8,0,65,65,14,1844,1615,792,199,43,12,8,186,129,8,3373,271,111,38,8,65,160,77,83,3102,1844,1615,43,186,1258,623,635]
["Newton","0003369","52900",4289,1509,22910,4278,172,11,0,0,35,74,38,14,4106,304,62,415,400,2652,157,116,1183,32,14,0,0,0,0,0,18,18,0,1151,964,484,74,50,46,14,137,95,12,1509,72,32,14,0,18,40,23,17,1437,1151,964,50,137,286,151,135]
["North Hampton","0003380","54580",4259,1660,34187,4248,141,0,0,0,14,90,32,5,4107,204,83,371,308,2570,337,234,1232,20,13,0,0,0,0,0,7,7,0,1212,1056,450,49,56,21,8,100,35,0,1660,77,20,13,0,7,57,5,52,1583,1212,1056,56,100,371,206,165]
["Northwood","0003391","56820",3640,1365,21491,3623,153,12,0,10,15,106,4,6,3470,194,35,338,368,2216,207,112,1013,15,6,6,0,0,0,0,9,9,3,998,816,413,60,72,43,8,110,57,0,1365,73,15,6,0,9,58,35,23,1292,998,816,72,110,294,162,132]
["Nottingham","0003398","57460",3701,1331,24879,3674,92,0,0,6,11,69,6,0,3582,240,38,355,341,2348,175,85,1062,10,0,0,0,0,0,0,10,10,0,1052,915,479,102,51,32,0,86,56,11,1331,51,10,0,0,10,41,27,14,1280,1052,915,51,86,228,151,77]
["Plaistow","0003404","62500",7747,2873,25255,7730,245,0,0,14,14,158,39,20,7485,494,166,665,636,4801,414,309,2157,46,28,11,0,0,0,0,18,12,0,2111,1742,921,204,60,21,8,309,186,5,2873,105,46,28,0,18,59,19,40,2768,2111,1742,60,309,657,317,340]
["Portsmouth","0003415","62900",20784,9933,27540,20244,1883,138,29,235,118,1108,78,177,18361,830,192,935,947,12662,1534,1261,4954,318,104,86,26,41,30,11,173,166,29,4636,3759,1290,385,210,143,27,667,405,87,9933,921,318,104,41,173,603,183,420,9012,4636,3759,210,667,4376,2026,2350]
["Raymond","0003465","64020",9674,3481,18430,9645,582,20,17,42,143,255,58,47,9063,654,74,862,955,5957,284,277,2557,135,79,54,8,24,18,0,32,32,8,2422,2014,1112,240,151,86,8,257,204,38,3481,214,135,79,24,32,79,25,54,3267,2422,2014,151,257,845,450,395]
["Rye","0003491","66180",5182,2174,36746,5132,181,24,31,8,0,110,0,8,4951,211,108,440,336,2928,514,414,1458,23,14,14,0,0,0,0,9,9,0,1435,1283,449,60,22,5,0,130,83,8,2174,85,23,14,0,9,62,36,26,2089,1435,1283,22,130,654,276,378]
["Salem","0003506","66660",28112,10393,26170,27938,1155,85,27,96,171,539,127,110,26783,1656,397,2528,2026,17278,1803,1095,7609,238,122,62,0,30,30,24,86,74,0,7371,6346,3029,677,329,161,29,696,356,57,10393,441,238,122,30,86,203,43,160,9952,7371,6346,329,696,2581,1279,1302]
["Sandown","0003538","67620",5143,1692,25978,5087,210,15,0,13,15,142,0,25,4877,377,49,573,521,3111,136,110,1395,46,29,12,7,5,5,0,12,12,4,1349,1172,709,178,61,53,15,116,78,13,1692,75,46,29,5,12,29,14,15,1617,1349,1172,61,116,268,181,87]
["Seabrook","0003547","68260",7934,3413,20992,7926,683,91,19,90,66,293,81,43,7243,376,99,362,503,4688,698,517,2171,133,48,20,9,11,11,0,74,74,21,2038,1734,691,204,112,56,10,192,108,6,3413,280,133,48,11,74,147,61,86,3133,2038,1734,112,192,1095,541,554]
["South Hampton","0003562","71140",844,300,28287,844,23,0,0,4,7,12,0,0,821,47,15,75,59,501,71,53,248,2,2,2,0,0,0,0,0,0,0,246,202,95,21,18,10,5,26,10,4,300,6,2,2,0,0,4,2,2,294,246,202,18,26,48,23,25]
["Stratham","0003569","74340",6355,2308,33270,6344,74,0,0,19,6,43,0,6,6270,425,74,634,647,3927,371,192,1766,9,9,9,0,0,0,0,0,0,0,1757,1588,895,146,46,7,0,123,94,7,2308,21,9,9,0,0,12,6,6,2287,1757,1588,46,123,530,269,261]
["Windham","0003578","85780",10709,3579,38559,10651,187,15,0,34,8,123,0,7,10464,713,91,1155,1102,6764,416,223,3053,35,28,18,9,0,0,0,7,0,0,3018,2790,1562,300,109,67,7,119,81,7,3579,63,35,28,0,7,28,20,8,3516,3018,2790,109,119,498,292,206]
[]
[]
[]
[]
[]
[]
[]
[]
[]
[]
["Census 2000 SummaryFile3 Sample Data  -  SF3TownQry7HousingA"]
[]
["TOWN_NAME","LOGRECNO","COUSUB","TotalPop","H1HousingUnitsTotal","H2SampleHU","H2SampleOccHU","H2SampleVacHU","H3HU100pctCount","H5HUTotal","H5HUUrban","H5HUUrbanInUrbanAreas","H5HUUrbanInUrbanClusters","H5HURural","H5HURuralFarm","H5HURuralNonFarm","H7HUOcc","H7HUOwnrOcc","H7HURentrOcc","H8HUVacant","H8HUVacantForRent","H8HUVacantForSale","H8HUVacRentedorSold","H8HUVacSeasonal","H8HUVacForMigrantWrkrs","H8HUOtherVacant","H14OccHUa","H14OwnerOccHU","H14OwnOccHuHh15to24","H14OwnOccHuHh25to34","H14OwnOccHuHh35to44","H14OwnOccHuHh45to54","H14OwnOccHuHh55to59","H14OwnOccHuHh60to64","H14OwnOccHuHh65to74","H14OwnOccHuHh75to84","H14OwnOccHuHh85Over","H14RenterOccHU1","H14RntrOccHuHh15to24","H14RntrOccHuHh25to34","H14RntrOccHuHh35to44","H14RntrOccHuHh45to54","H14RntrOccHuHh55to59","H14RntrOccHuHh60to64","H14RntrOccHuHh65to74","H14RntrOccHuHh75to84","H14RntrOccHuHh85Over","H15PopInOccHU","H15PopInOwnOccHU1","H15PopInRentOccHU1","H17OccupHUb","H17OwnOccHU2","H17OwnOccHU1PersonHH","H17OwnOccHU2PersonHH","H17OwnOccHU3PersonHH","H17OwnOccHU4PersonHH","H17OwnOccHU5PersonHH","H17OwnOccHU6PersonHH","H17OwnOccHU7PlusPersonHH","H17RentOccHU2","H17RntOccHU1PersonHH","H17RntOccHU2PersonHH","H17RntOccHU3PersonHH","H17RntOccHU4PersonHH","H17RntOccHU5PersonHH","H17RntOccHU6PersonHH","H17RntOccHU7PlusPersonHH","H18AvgHHSize","H18AvgHHSizeOwnOcc","H18AvgHHSizeRentOcc","H23TotHU","H23HU1Room","H23HU2Room","H23HU3Room","H23HU4Room","H23HU5Room","H23HU6Room","H23HU7Room","H23HU8Room","H23HU9orMoreRoom","H24MedianNumRooms","H25AggregNumRooms","H30TotalHU","H30Det1HU","H30Att1HU","H30Units2","H30Units3or4","H30Units5to9","H30Units10to19","H30Units20to49","H30Units50orMore","H30UnitsMobileHome","H30UnitsBoatRv","H32OccHUcTotal","H32OwnerOccHU3","H32OwnOccHU1Det","H32OwnOccHU1Att","H32OwnOccHU2Unit","H32OwnOccHU3to4Unit","H32OwnOccHU5to9Unit","H32OwnOccHU10to19Unit","H32OwnOccHU20to49Unit","H32OwnOccHU50plusUnit","H32OwnOccHUMobHom","H32OwnOccHUBoatRVOth","H32RentrOccHU3","H32RntrOccHU1Det","H32RntrOccHU1Att","H32RntrOccHU2Unit","H32RntrOccHU3to4Unit","H32RntrOccHU5to9Unit","H32RntrOccHU10to19Unit","H32RntrOccHU20to49Unit","H32RntrOccHU50PlusUnit","H32RntrOccHUMobHom","H32RntrOccHUBoatRVOth","H33TotPopInOccHU","H33PopInOwnOccHU2","H33PopInOOHU1Det","H33PopInOOHU1Att","H33PopInOOHU2unit","H33PopInOOHU3to4Unit","H33PopInOOHU5to9Unit","H33PopInOOHU10to19Unit","H33PopInOOHU20to49Unit","H33PopInOOHU50PlusUnit","H33PopInOOHUMobilHome","H33PopInOOHUOtherUnit","H33PopInRentOccHU2","H33PopInROHU1Det","H33PopInROHU1Att","H33PopInROHU2Unit","H33PopInROHU3to4Unit","H33PopInROHU5to9Unit","H33PopInROHU10to19Unit","H33PopInROHU20to49Unit","H33PopInROHU50PlusUnit","H33PopInROHUMobilHome","H33PopInROHUOtherUnit","H36OccHousingUnitsdTotal","H36OwnerOccHU4","H36OOHUBuilt99to0300","H36OOHUBuilt95to98","H36OOHUBuilt90to94","H36OOHUBuilt80to89","H36OOHUBuilt70to79","H36OOHUBuilt60to69","H36OOHUBuilt50to59","H36OOHUBuilt40to49","H36OOHUBuilt39Earlier","H36RentOccHU4","H36ROHUBuilt99to0300","H36ROHUBuilt95to98","H36ROHUBuilt90to94","H36ROHUBuilt80to89","H36ROHUBuilt70to79","H36ROHUBuilt60to69","H36ROHUBuilt50to59","H36ROHUBuilt40to49","H36ROHUBuilt39Earlier","H40OccupHousUnitse","H40HeatFuelUtilGas","H40HeatFuelBotGas","H40HeatFuelElect","H40HeatFuelOilKero","H40HeatFuelCoal","H40HeatFuelWood","H40HeatFuelSolar","H40HeatFuelOther","H40HeatFuelNone","H41TotalHU","H41HUNoBdrm","H41HU1Bdrm","H41HU2Bdrm","H41HU3Bdrm","H41HU4Bdrm","H41HU5MoreBdrm","H42OccuHousUnitf","H42OwnerOccHU5","H42OOHUNoBdrm","H42OOHU1Bdrm","H42OOHU2Bdrm","H42OOHU3Bdrm","H42OOHU4Bdrm","H42OOHU5PlusBdrm","H42RentOccHU5","H42ROHUNoBdrm","H42ROHU1Bdrm","H42ROHU2Bdrm","H42ROHU3Bdrm","H42ROHU4Bdrm","H42ROHU5PlusBdrm","H48OccupHousUnitsg","H48OwnerOccHU6","H48OOHUwCompltPlumFacil","H48OOHULackCompltPlumFacil","H48RentOccHU6","H48ROHUwCompltPlumFacil","H48ROHULackCompltPlumFacil","H51OccupHousUnitf","H51OwnerOccHU7","H51OOHUwCompleteKitFacil","H51OOHULackCompleteKitFacil","H51RenterOccHU7","H51ROHUwCompleteKitFacil","H51ROHULackCompleteKitFacil"]
["Atkinson","0003039","02340",6178,2431,280,272,8,2431,2431,2431,2431,0,0,0,0,2317,2060,257,114,0,8,24,75,0,7,2317,2060,0,178,596,471,251,168,269,96,31,257,8,15,47,65,34,9,59,0,20,6174,5741,433,2317,2060,275,778,391,392,169,47,8,257,165,60,25,0,0,7,0,3,3,2,2431,0,105,36,131,409,559,457,358,376,6,16064,2431,1826,322,81,61,0,125,6,0,10,0,2317,2060,1669,266,53,56,0,0,6,0,10,0,257,96,8,28,0,0,125,0,0,0,0,6174,5741,4967,477,117,159,0,0,12,0,9,0,433,238,20,42,0,0,133,0,0,0,0,2317,2060,38,242,264,373,529,317,165,42,90,257,0,0,20,53,61,38,40,18,27,2317,313,223,85,1657,7,32,0,0,0,2431,0,141,556,1189,475,70,2317,2060,0,6,443,1094,457,60,257,0,135,61,41,10,10,2317,2060,2060,0,257,257,0,2317,2060,2060,0,257,257,0]
["Auburn","0003046","02820",4682,1622,266,263,3,1622,1622,526,526,0,1096,8,1088,1580,1461,119,42,0,15,0,0,0,27,1580,1461,17,146,475,397,209,86,65,49,17,119,11,30,59,0,10,0,0,0,9,4675,4473,202,1580,1461,146,466,325,351,139,8,26,119,39,52,12,0,0,16,0,3,3,2,1622,10,5,46,122,258,402,374,236,169,6,10544,1622,1515,7,38,11,20,20,0,0,11,0,1580,1461,1426,7,17,0,0,0,0,0,11,0,119,47,0,21,11,20,20,0,0,0,0,4675,4473,4361,25,44,0,0,0,0,0,43,0,202,131,0,28,14,19,10,0,0,0,0,1580,1461,77,103,154,391,328,120,90,78,120,119,0,0,0,11,22,9,12,0,65,1580,0,154,16,1301,20,82,7,0,0,1622,10,68,296,908,286,54,1580,1461,0,27,228,866,286,54,119,10,41,41,27,0,0,1580,1461,1456,5,119,119,0,1580,1461,1461,0,119,119,0]
["Brentwood","0003056","07220",3197,920,228,225,3,920,920,4,4,0,916,0,916,911,848,63,9,3,3,0,3,0,0,911,848,8,97,271,213,61,62,69,63,4,63,6,17,5,29,0,0,6,0,0,2728,2606,122,911,848,83,281,163,216,74,16,15,63,12,17,17,10,7,0,0,3,3,2,920,0,4,8,81,134,168,238,177,110,7,6216,920,833,17,10,4,0,0,0,0,56,0,911,848,778,11,10,4,0,0,0,0,45,0,63,46,6,0,0,0,0,0,0,11,0,2728,2606,2403,31,43,9,0,0,0,0,120,0,122,96,5,0,0,0,0,0,0,21,0,911,848,27,110,111,157,147,110,46,25,115,63,0,6,0,5,17,0,0,0,35,911,4,76,23,761,5,42,0,0,0,920,0,42,157,452,235,34,911,848,0,39,128,430,224,27,63,0,0,29,16,11,7,911,848,848,0,63,63,0,911,848,848,0,63,63,0]
["Candia","0003063","09300",3911,1384,225,223,2,1384,1384,5,0,5,1379,0,1379,1359,1254,105,25,12,0,13,0,0,0,1359,1254,6,135,386,353,141,68,122,43,0,105,15,22,28,14,6,7,7,6,0,3911,3649,262,1359,1254,154,437,261,271,81,40,10,105,18,27,35,12,13,0,0,3,3,2,1384,0,0,22,86,238,383,280,184,191,6,9240,1384,1261,19,30,0,29,0,0,0,45,0,1359,1254,1180,12,23,0,0,0,0,0,39,0,105,56,7,7,0,29,0,0,0,6,0,3911,3649,3484,38,61,0,0,0,0,0,66,0,262,141,16,11,0,74,0,0,0,20,0,1359,1254,50,75,77,280,284,111,42,30,305,105,0,0,0,13,29,7,16,13,27,1359,0,217,26,1032,6,78,0,0,0,1384,0,30,262,825,202,65,1359,1254,0,14,213,773,202,52,105,0,16,49,27,0,13,1359,1254,1254,0,105,105,0,1359,1254,1254,0,105,105,0]
["Chester","0003071","12100",3792,1247,298,291,7,1247,1247,18,18,0,1229,12,1217,1214,1129,85,33,16,3,0,10,0,4,1214,1129,4,113,395,326,92,83,72,36,8,85,0,21,35,11,0,5,4,5,4,3756,3557,199,1214,1129,120,355,230,240,113,51,20,85,24,5,26,21,9,0,0,3,3,2,1247,0,4,34,67,159,307,265,201,210,7,8578,1247,1113,66,24,4,14,0,0,0,26,0,1214,1129,1043,56,10,4,0,0,0,0,16,0,85,44,10,10,0,11,0,0,0,10,0,3756,3557,3377,119,22,4,0,0,0,0,35,0,199,117,24,19,0,25,0,0,0,14,0,1214,1129,77,140,157,225,156,82,46,9,237,85,0,0,10,5,37,0,10,0,23,1214,4,108,18,998,0,86,0,0,0,1247,0,30,190,691,273,63,1214,1129,0,20,137,659,254,59,85,0,4,46,25,6,4,1214,1129,1126,3,85,85,0,1214,1129,1129,0,85,81,4]
["Danville","0003079","17140",4023,1479,231,222,9,1479,1479,715,715,0,764,10,754,1428,1302,126,51,5,17,6,17,0,6,1428,1302,6,240,448,257,97,84,97,41,32,126,9,63,0,37,0,10,0,7,0,4020,3766,254,1428,1302,194,451,235,277,102,29,14,126,42,27,21,20,16,0,0,3,3,2,1479,0,52,74,215,330,370,210,112,116,6,8582,1479,1034,6,29,48,0,0,0,0,332,30,1428,1302,989,6,6,0,0,0,0,0,271,30,126,22,0,18,48,0,0,0,0,38,0,4020,3766,2954,19,25,0,0,0,0,0,715,53,254,59,0,29,127,0,0,0,0,39,0,1428,1302,32,325,145,439,143,39,32,13,134,126,0,64,0,16,9,0,7,0,30,1428,18,397,37,888,13,60,0,0,15,1479,9,96,451,699,196,28,1428,1302,0,54,370,662,196,20,126,9,42,52,15,0,8,1428,1302,1295,7,126,126,0,1428,1302,1302,0,126,126,0]
["Deerfield","0003086","17460",3678,1406,223,203,20,1406,1406,0,0,0,1406,15,1391,1225,1096,129,181,8,0,0,99,0,74,1225,1096,0,173,386,286,86,61,62,37,5,129,19,43,30,10,0,0,0,18,9,3656,3493,163,1225,1096,107,380,214,237,100,35,23,129,55,25,18,10,21,0,0,3,3,1,1406,0,20,24,155,344,287,230,131,215,6,8982,1406,1231,18,62,13,0,0,0,0,82,0,1225,1096,1012,9,10,4,0,0,0,0,61,0,129,38,9,52,9,0,0,0,0,21,0,3656,3493,3204,36,38,30,0,0,0,0,185,0,163,36,5,83,5,0,0,0,0,34,0,1225,1096,51,105,104,312,181,85,22,35,201,129,0,0,11,10,18,18,33,0,39,1225,6,137,14,964,6,93,0,5,0,1406,0,65,322,689,280,50,1225,1096,0,37,214,600,198,47,129,0,28,53,48,0,0,1225,1096,1090,6,129,129,0,1225,1096,1090,6,129,129,0]
["Derry","0003092","17940",34021,12735,1462,1435,27,12735,12735,11208,11208,0,1527,0,1527,12327,7977,4350,408,116,57,54,133,14,34,12327,7977,63,1260,2614,2230,563,357,568,233,89,4350,474,1188,1003,778,206,116,278,187,120,33795,24647,9148,12327,7977,1169,2239,1538,1830,892,242,67,4350,1491,1363,752,553,148,43,0,3,3,2,12735,142,287,1098,2909,2558,2287,1722,1040,692,5,69452,12735,6347,1378,1127,415,421,751,1581,160,555,0,12327,7977,5887,1002,401,81,46,46,146,0,368,0,4350,299,342,689,334,365,638,1360,148,175,0,33795,24647,19326,2853,906,182,60,77,270,0,973,0,9148,827,833,1681,661,660,1457,2534,188,307,0,12327,7977,139,318,810,2845,1644,878,335,172,836,4350,12,96,108,1348,1548,435,132,147,524,12327,805,1742,1829,7377,76,310,9,153,26,12735,160,1468,4763,4592,1506,246,12327,7977,18,147,2120,4055,1411,226,4350,116,1288,2403,483,40,20,12327,7977,7959,18,4350,4324,26,12327,7977,7968,9,4350,4321,29]
["East Kingston","0003147","21380",1784,648,319,311,8,648,648,43,43,0,605,10,595,629,576,53,19,4,0,0,9,0,6,629,576,0,70,182,168,58,27,45,20,6,53,2,13,14,15,2,0,6,1,0,1784,1667,117,629,576,64,217,102,115,59,19,0,53,18,20,7,4,4,0,0,3,3,2,648,0,6,22,68,72,169,120,115,76,6,4244,648,565,4,11,0,0,0,2,2,64,0,629,576,535,0,0,0,0,0,0,0,41,0,53,21,4,8,0,0,0,2,0,18,0,1784,1667,1582,0,0,0,0,0,0,0,85,0,117,54,6,11,0,0,0,7,0,39,0,629,576,12,42,125,99,92,37,42,20,107,53,0,3,2,4,7,13,4,0,20,629,9,32,16,543,0,29,0,0,0,648,0,36,137,363,89,23,629,576,0,11,108,349,85,23,53,0,13,25,11,4,0,629,576,576,0,53,53,0,629,576,576,0,53,53,0]
["Epping","0003154","24660",5476,2215,338,322,16,2215,2215,873,0,873,1342,6,1336,2047,1574,473,168,0,16,17,100,0,35,2047,1574,6,232,439,337,131,149,140,110,30,473,31,148,104,57,11,35,51,19,17,5468,4281,1187,2047,1574,293,539,286,276,120,45,15,473,143,170,82,32,32,7,7,3,3,3,2215,0,81,138,438,423,411,367,201,156,6,12646,2215,1390,77,85,76,108,36,15,0,428,0,2047,1574,1159,59,15,13,5,0,0,0,323,0,473,94,18,58,63,103,31,15,0,91,0,5468,4281,3468,164,28,26,10,0,0,0,585,0,1187,255,51,173,142,203,38,44,0,281,0,2047,1574,23,138,173,509,309,70,63,22,267,473,0,6,24,140,94,62,28,10,109,2047,39,296,103,1472,0,127,0,10,0,2215,26,185,758,883,307,56,2047,1574,0,55,460,753,265,41,473,26,117,217,93,5,15,2047,1574,1574,0,473,473,0,2047,1574,1574,0,473,473,0]
["Exeter","0003174","25380",14058,6107,729,709,20,6107,6107,5245,5245,0,862,0,862,5898,3978,1920,209,33,56,22,78,0,20,5898,3978,14,342,1051,950,348,262,518,358,135,1920,160,423,294,257,87,89,150,242,218,13688,9932,3756,5898,3978,902,1426,705,638,246,35,26,1920,942,577,166,172,63,0,0,2,2,2,6107,107,299,645,1235,1209,889,727,568,428,5,32872,6107,2707,218,489,384,357,263,135,484,1070,0,5898,3978,2483,148,124,44,82,72,42,94,889,0,1920,187,70,327,325,253,179,93,381,105,0,13688,9932,6907,257,379,128,170,111,95,122,1763,0,3756,418,124,674,696,529,370,200,487,258,0,5898,3978,109,207,248,794,869,481,357,156,757,1920,0,31,179,377,147,109,98,142,837,5898,1702,422,540,3124,8,49,0,32,21,6107,125,992,2093,1886,848,163,5898,3978,8,188,1252,1644,740,146,1920,117,770,714,218,97,4,5898,3978,3970,8,1920,1913,7,5898,3978,3978,0,1920,1905,15]
["Fremont","0003213","27940",3510,1201,283,276,7,1201,1201,97,0,97,1104,4,1100,1165,1031,134,36,0,15,11,0,0,10,1165,1031,4,158,428,226,75,30,82,20,8,134,5,49,45,25,10,0,0,0,0,3479,3178,301,1165,1031,84,355,217,258,79,27,11,134,33,44,21,5,22,9,0,3,3,2,1201,0,0,58,146,254,321,209,119,94,6,7309,1201,1010,38,29,45,20,0,0,0,56,3,1165,1031,925,33,8,12,4,0,0,0,46,3,134,54,5,21,28,16,0,0,0,10,0,3479,3178,2887,117,18,30,13,0,0,0,110,3,301,132,9,34,41,68,0,0,0,17,0,1165,1031,64,134,134,351,88,67,24,36,133,134,0,5,5,21,28,0,24,11,40,1165,8,123,31,918,3,77,0,5,0,1201,0,66,337,614,149,35,1165,1031,0,26,255,588,139,23,134,0,35,66,16,5,12,1165,1031,1027,4,134,134,0,1165,1031,1024,7,134,134,0]
["Greenland","0003220","31700",3208,1245,203,196,7,1244,1245,793,600,193,452,0,452,1204,978,226,41,7,4,0,18,0,12,1204,978,0,97,232,236,84,103,102,94,30,226,0,82,71,25,7,13,7,21,0,3188,2750,438,1204,978,136,362,171,211,76,22,0,226,91,61,44,30,0,0,0,3,3,2,1245,0,24,36,154,246,197,187,178,223,6,8147,1245,964,77,153,17,21,7,0,0,6,0,1204,978,866,50,56,0,0,0,0,0,6,0,226,64,27,93,14,21,7,0,0,0,0,3188,2750,2418,146,174,0,0,0,0,0,12,0,438,94,61,238,13,26,6,0,0,0,0,1204,978,53,73,89,186,153,159,115,35,115,226,0,12,27,53,16,25,34,13,46,1204,41,112,63,970,0,18,0,0,0,1245,0,73,313,521,273,65,1204,978,0,19,161,474,259,65,226,0,39,139,43,5,0,1204,978,978,0,226,226,0,1204,978,978,0,226,226,0]
["Hampstead","0003229","32900",8297,3276,385,369,16,3276,3276,3046,3046,0,230,0,230,3044,2530,514,232,0,31,40,161,0,0,3044,2530,26,237,828,671,235,116,285,99,33,514,62,154,116,67,29,27,0,59,0,8294,7370,924,3044,2530,393,776,455,609,251,30,16,514,235,165,75,24,7,8,0,3,3,2,3276,21,152,187,505,465,445,602,342,557,6,20421,3276,2463,155,58,81,99,171,5,0,236,8,3044,2530,2143,111,7,44,0,0,0,0,217,8,514,96,36,51,37,99,171,5,0,19,0,8294,7370,6644,228,29,71,0,0,0,0,361,37,924,198,64,168,80,154,220,8,0,32,0,3044,2530,50,243,282,773,379,240,195,110,258,514,20,16,62,200,101,64,28,0,23,3044,90,488,154,2198,8,33,0,48,25,3276,21,395,866,1242,680,72,3044,2530,0,68,607,1135,648,72,514,21,274,163,56,0,0,3044,2530,2530,0,514,514,0,3044,2530,2530,0,514,514,0]
["Hampton","0003240","33060",14937,9349,1059,761,298,9349,9349,9043,9043,0,306,0,306,6465,4396,2069,2884,251,35,20,2542,0,36,6465,4396,0,386,953,1181,329,576,563,322,86,2069,137,551,531,295,87,38,174,172,84,14768,10842,3926,6465,4396,1034,1769,647,649,218,63,16,2069,911,660,275,141,52,22,8,2,2,2,9349,435,497,1144,1801,1740,1235,865,748,884,5,49054,9349,5207,466,780,482,735,482,726,93,270,108,6465,4396,3320,290,137,56,186,92,147,8,160,0,2069,397,75,350,287,359,198,349,54,0,0,14768,10842,8719,604,256,104,297,161,246,24,431,0,3926,893,166,785,560,630,281,531,80,0,0,6465,4396,45,416,315,946,561,534,635,274,670,2069,8,73,38,362,422,364,286,173,343,6465,3550,154,806,1861,8,49,0,37,0,9349,462,1176,3447,2572,1293,399,6465,4396,0,83,1428,1620,1052,213,2069,149,639,889,309,48,35,6465,4396,4382,14,2069,2055,14,6465,4396,4396,0,2069,2013,56]
["Hampton Falls","0003270","33460",1880,729,343,331,12,729,729,93,93,0,636,14,622,704,629,75,25,0,8,6,9,0,2,704,629,1,41,170,172,86,33,78,40,8,75,4,33,6,11,11,4,2,4,0,1880,1736,144,704,629,90,251,90,132,53,7,6,75,26,37,6,4,2,0,0,3,3,2,729,2,9,15,40,55,122,153,133,200,7,5367,729,665,32,14,4,4,0,0,0,10,0,704,629,608,11,2,0,0,0,0,0,8,0,75,43,12,12,4,4,0,0,0,0,0,1880,1736,1694,26,3,0,0,0,0,0,13,0,144,74,27,34,5,4,0,0,0,0,0,704,629,11,61,75,155,94,71,53,14,95,75,2,3,3,10,13,6,15,2,21,704,5,59,33,576,2,25,0,4,0,729,2,29,121,270,238,69,704,629,0,12,86,247,224,60,75,2,15,27,10,12,9,704,629,624,5,75,75,0,704,629,629,0,75,75,0]
["Kensington","0003277","39780",1893,671,322,319,3,672,671,0,0,0,671,10,661,656,596,60,15,10,0,0,5,0,0,656,596,0,41,196,183,46,40,54,31,5,60,7,13,14,11,2,4,6,3,0,1887,1777,110,656,596,59,225,105,130,53,12,12,60,26,17,11,6,0,0,0,3,3,2,671,0,7,17,35,92,165,131,123,101,7,4566,671,601,4,22,12,0,2,0,0,30,0,656,596,557,2,17,3,0,0,0,0,17,0,60,34,2,5,4,0,2,0,0,13,0,1887,1777,1662,4,54,11,0,0,0,0,46,0,110,70,3,4,4,0,6,0,0,23,0,656,596,20,54,48,136,112,52,34,12,128,60,5,3,5,15,9,9,4,2,8,656,35,40,19,522,0,38,0,2,0,671,0,24,129,326,158,34,656,596,0,4,111,299,148,34,60,0,20,13,17,10,0,656,596,592,4,60,60,0,656,596,594,2,60,60,0]
["Kingston","0003282","40100",5862,2265,251,238,13,2265,2265,1072,1072,0,1193,10,1183,2122,1823,299,143,26,0,10,81,0,26,2122,1823,10,249,585,475,190,95,84,115,20,299,9,85,91,37,0,0,28,49,0,5862,5198,664,2122,1823,274,607,369,359,174,10,30,299,100,95,55,31,18,0,0,3,3,2,2265,0,35,76,214,513,534,378,270,245,6,14179,2265,1825,85,87,34,94,0,0,0,140,0,2122,1823,1585,77,43,19,0,0,0,0,99,0,299,113,8,44,15,84,0,0,0,35,0,5862,5198,4659,163,110,14,0,0,0,0,252,0,664,236,18,158,25,138,0,0,0,89,0,2122,1823,47,75,123,425,279,238,141,113,382,299,0,10,0,39,77,41,43,18,71,2122,9,191,56,1708,0,135,0,14,9,2265,8,148,706,909,394,100,2122,1823,0,54,510,791,368,100,299,8,84,111,86,10,0,2122,1823,1823,0,299,299,0,2122,1823,1823,0,299,299,0]
["Londonderry","0003295","43220",23236,7718,903,888,15,7718,7718,6604,6604,0,1114,0,1114,7623,6656,967,95,25,4,31,13,0,22,7623,6656,26,880,2412,1772,559,286,450,208,63,967,33,254,285,193,73,36,59,34,0,23226,20715,2511,7623,6656,717,1854,1359,1659,831,197,39,967,263,313,158,162,65,0,6,3,3,3,7718,15,12,124,843,1375,1245,1575,1664,865,7,51115,7718,5388,1011,283,75,335,249,47,0,330,0,7623,6656,5142,791,159,63,198,114,0,0,189,0,967,204,193,121,12,131,118,47,0,141,0,23226,20715,17401,1745,421,117,483,217,0,0,331,0,2511,640,540,306,25,357,285,139,0,219,0,7623,6656,264,646,507,2106,2260,446,170,52,205,967,40,55,9,276,370,104,77,0,36,7623,383,1454,605,4975,38,161,0,7,0,7718,15,161,2080,3244,2105,113,7623,6656,7,102,1431,2992,2026,98,967,8,59,595,220,70,15,7623,6656,6647,9,967,967,0,7623,6656,6656,0,967,967,0]
["New Castle","0003320","50980",1010,491,233,202,31,488,491,491,491,0,0,0,0,444,381,63,47,2,8,2,32,0,3,444,381,0,5,61,79,43,39,87,57,10,63,0,15,23,16,2,3,0,4,0,999,874,125,444,381,91,163,39,41,42,5,0,63,13,28,12,10,0,0,0,2,2,2,491,1,2,4,17,63,102,105,99,98,7,3519,491,436,20,28,7,0,0,0,0,0,0,444,381,353,14,12,2,0,0,0,0,0,0,63,39,4,15,5,0,0,0,0,0,0,999,874,806,36,30,2,0,0,0,0,0,0,125,87,7,23,8,0,0,0,0,0,0,444,381,14,50,15,47,21,28,44,22,140,63,0,2,0,0,0,2,17,0,42,444,4,48,9,377,0,4,0,2,0,491,1,6,86,276,89,33,444,381,0,0,45,233,76,27,63,1,2,30,26,2,2,444,381,381,0,63,63,0,444,381,379,2,63,63,0]
["Newfields","0003327","51380",1551,532,258,249,9,532,532,199,0,199,333,0,333,516,463,53,16,1,4,6,2,0,3,516,463,0,49,184,104,36,22,43,21,4,53,5,18,16,6,4,4,0,0,0,1551,1419,132,516,463,44,148,85,134,38,12,2,53,8,17,20,8,0,0,0,3,3,2,532,0,7,11,39,72,105,107,88,103,7,3676,532,467,10,30,10,4,0,0,0,11,0,516,463,439,10,6,2,0,0,0,0,6,0,53,14,0,24,8,2,0,0,0,5,0,1551,1419,1317,44,29,4,0,0,0,0,25,0,132,39,0,56,17,4,0,0,0,16,0,516,463,15,117,79,53,24,27,35,4,109,53,0,0,2,9,10,2,4,0,26,516,0,53,12,434,0,17,0,0,0,532,0,21,106,249,131,25,516,463,0,10,69,236,125,23,53,0,11,30,9,3,0,516,463,463,0,53,53,0,516,463,463,0,53,53,0]
["Newington","0003334","51620",775,304,137,131,6,305,304,26,26,0,278,2,276,294,233,61,10,3,0,0,3,0,4,294,233,2,8,47,65,22,38,30,17,4,61,2,7,12,20,9,2,0,6,3,748,640,108,294,233,40,100,28,39,10,8,8,61,26,25,8,0,2,0,0,3,3,2,304,2,7,22,32,54,50,59,28,50,6,1917,304,261,7,23,10,0,0,0,0,2,1,294,233,216,4,10,0,0,0,0,0,2,1,61,35,3,13,10,0,0,0,0,0,0,748,640,588,13,28,0,0,0,0,0,5,6,108,63,1,32,12,0,0,0,0,0,0,294,233,2,30,29,50,25,27,12,14,44,61,0,0,7,2,16,6,8,2,20,294,21,34,5,220,0,12,0,0,2,304,2,22,78,114,69,19,294,233,2,2,48,97,65,19,61,0,20,24,15,2,0,294,233,226,7,61,61,0,294,233,231,2,61,61,0]
["Newmarket","0003341","52340",8027,3457,408,395,13,3457,3457,2548,0,2548,909,0,909,3379,1785,1594,78,30,6,5,33,0,4,3379,1785,31,280,529,475,126,80,156,90,18,1594,430,472,264,181,26,54,58,84,25,7993,4719,3274,3379,1785,296,685,357,314,119,9,5,1594,635,543,206,119,63,8,20,2,3,2,3457,63,148,391,772,727,651,410,167,128,5,17647,3457,1416,260,228,268,267,328,392,102,196,0,3379,1785,1299,200,54,8,24,8,17,26,149,0,1594,106,56,162,242,238,320,368,62,40,0,7993,4719,3602,448,150,18,43,17,33,52,356,0,3274,270,146,439,628,429,541,624,97,100,0,3379,1785,122,143,127,591,212,108,120,8,354,1594,0,0,86,352,344,111,80,20,601,3379,92,470,863,1825,0,122,0,7,0,3457,82,422,1373,1243,291,46,3379,1785,0,37,454,1050,212,32,1594,82,374,870,180,74,14,3379,1785,1777,8,1594,1586,8,3379,1785,1785,0,1594,1594,0]
["Newton","0003369","52900",4289,1552,245,240,5,1552,1552,989,989,0,563,0,563,1518,1281,237,34,0,7,0,27,0,0,1518,1281,0,251,393,345,100,46,118,28,0,237,28,39,60,30,14,0,13,33,20,4289,3757,532,1518,1281,163,431,243,279,118,37,10,237,76,88,30,31,3,0,9,3,3,2,1552,21,21,84,199,213,415,315,184,100,6,9343,1552,1300,25,40,35,43,47,20,0,35,7,1518,1281,1195,25,27,0,0,0,0,0,27,7,237,74,0,13,32,43,47,20,0,8,0,4289,3757,3537,87,67,0,0,0,0,0,36,30,532,234,0,28,61,73,78,33,0,25,0,1518,1281,59,175,78,205,270,148,42,24,280,237,0,0,0,35,79,11,16,0,96,1518,4,124,107,1203,6,74,0,0,0,1552,28,98,403,809,190,24,1518,1281,0,21,304,768,164,24,237,13,74,99,25,26,0,1518,1281,1274,7,237,237,0,1518,1281,1281,0,237,237,0]
["North Hampton","0003380","54580",4259,1782,286,269,17,1782,1782,776,776,0,1006,15,991,1671,1460,211,111,4,27,8,64,0,8,1671,1460,0,92,349,347,129,158,221,134,30,211,0,58,43,38,31,17,8,0,16,4259,3920,339,1671,1460,256,588,260,227,87,14,28,211,79,93,8,16,15,0,0,3,3,2,1782,6,5,89,193,248,329,254,264,394,7,12099,1782,1349,19,41,35,30,21,0,0,287,0,1671,1460,1182,19,5,12,0,0,0,0,242,0,211,89,0,32,23,30,21,0,0,16,0,4259,3920,3247,73,23,21,0,0,0,0,556,0,339,188,0,37,30,39,30,0,0,15,0,1671,1460,64,110,121,236,224,248,163,50,244,211,8,0,0,16,23,47,15,22,80,1671,8,148,50,1443,0,22,0,0,0,1782,6,105,367,760,425,119,1671,1460,0,40,280,656,396,88,211,6,49,67,73,16,0,1671,1460,1453,7,211,211,0,1671,1460,1460,0,211,211,0]
["Northwood","0003391","56820",3640,1905,441,306,135,1905,1905,0,0,0,1905,0,1905,1347,1141,206,558,14,19,4,489,0,32,1347,1141,10,163,295,284,119,75,111,75,9,206,20,37,67,43,12,5,10,5,7,3637,3221,416,1347,1141,189,415,198,221,77,23,18,206,57,81,30,22,10,6,0,3,3,2,1905,15,44,159,446,392,333,232,117,167,5,10552,1905,1461,32,101,37,17,0,0,0,257,0,1347,1141,898,16,23,12,0,0,0,0,192,0,206,59,12,72,19,17,0,0,0,27,0,3637,3221,2548,19,60,10,0,0,0,0,584,0,416,150,12,126,44,22,0,0,0,62,0,1347,1141,42,77,93,325,150,39,109,34,272,206,8,0,0,19,41,23,43,0,72,1347,16,291,36,921,0,78,0,0,5,1905,21,190,718,712,202,62,1347,1141,4,66,363,491,172,45,206,8,37,93,63,5,0,1347,1141,1141,0,206,199,7,1347,1141,1141,0,206,191,15]
["Nottingham","0003398","57460",3701,1592,239,206,33,1592,1592,0,0,0,1592,18,1574,1331,1212,119,261,0,0,0,254,0,7,1331,1212,0,153,371,356,135,49,97,51,0,119,0,31,22,39,13,0,14,0,0,3701,3481,220,1331,1212,148,434,233,270,94,22,11,119,54,38,22,0,0,5,0,3,3,2,1592,0,0,133,195,352,418,231,108,155,6,9478,1592,1458,26,14,14,7,0,0,0,73,0,1331,1212,1130,19,11,7,0,0,0,0,45,0,119,84,0,3,7,7,0,0,0,18,0,3701,3481,3266,67,26,14,0,0,0,0,108,0,220,136,0,6,6,13,0,0,0,59,0,1331,1212,46,97,122,331,282,83,59,27,165,119,0,0,0,41,21,22,0,7,28,1331,14,204,28,958,0,127,0,0,0,1592,0,142,490,699,235,26,1331,1212,0,40,346,588,220,18,119,0,44,40,27,0,8,1331,1212,1204,8,119,119,0,1331,1212,1204,8,119,119,0]
["Plaistow","0003404","62500",7747,2927,341,334,7,2927,2927,2769,2769,0,158,0,158,2871,2264,607,56,5,11,6,26,0,8,2871,2264,9,222,649,654,198,156,235,132,9,607,22,175,160,90,36,47,38,31,8,7736,6184,1552,2871,2264,360,764,422,464,188,66,0,607,193,214,110,57,18,15,0,3,3,3,2927,0,25,106,545,693,400,518,384,256,6,17671,2927,1786,333,280,294,31,138,49,0,16,0,2871,2264,1683,278,106,105,0,58,18,0,16,0,607,77,44,166,178,31,80,31,0,0,0,7736,6184,4822,671,248,231,0,158,26,0,28,0,1552,219,95,580,406,56,157,39,0,0,0,2871,2264,42,193,210,490,319,229,276,159,346,607,0,9,7,198,115,163,65,0,50,2871,688,124,160,1874,0,25,0,0,0,2927,0,181,1076,1197,439,34,2871,2264,0,73,646,1079,432,34,607,0,108,400,92,7,0,2871,2264,2256,8,607,607,0,2871,2264,2264,0,607,607,0]
["Portsmouth","0003415","62900",20784,10183,1416,1372,44,10186,10183,10106,10106,0,77,0,77,9874,4924,4950,309,114,76,31,38,0,50,9874,4924,17,490,1045,1168,418,409,688,574,115,4950,346,1652,1164,613,225,154,303,362,131,20174,11490,8684,9874,4924,1435,1924,705,587,248,15,10,4950,2407,1655,537,265,56,26,4,2,2,2,10183,253,588,1428,2395,2037,1402,884,684,512,5,50670,10183,4096,596,826,1106,1455,708,660,462,274,0,9874,4924,3562,344,214,223,134,150,52,33,212,0,4950,454,246,589,840,1295,538,558,410,20,0,20174,11490,9090,704,341,402,166,262,64,37,424,0,8684,918,489,1106,1439,2167,1043,914,546,62,0,9874,4924,34,155,119,659,375,420,688,528,1946,4950,13,318,77,694,999,255,392,261,1941,9874,4292,204,1516,3757,0,48,0,52,5,10183,359,1938,3905,2908,918,155,9874,4924,17,211,1423,2323,824,126,4950,309,1639,2354,552,77,19,9874,4924,4907,17,4950,4902,48,9874,4924,4907,17,4950,4912,38]
["Raymond","0003465","64020",9674,3710,411,394,17,3710,3710,1808,0,1808,1902,17,1885,3493,2725,768,217,22,19,0,163,0,13,3493,2725,32,391,827,695,212,127,228,171,42,768,79,174,200,130,37,35,70,18,25,9664,7896,1768,3493,2725,411,887,541,538,244,92,12,768,253,253,107,99,45,11,0,3,3,2,3710,0,67,268,751,1015,826,368,250,165,5,20199,3710,2348,54,192,76,90,108,158,17,667,0,3493,2725,1973,47,74,8,29,8,8,0,578,0,768,197,7,113,53,61,100,150,17,70,0,9664,7896,6157,98,191,7,60,31,29,0,1323,0,1768,533,6,278,72,75,234,317,51,202,0,3493,2725,48,160,218,801,729,324,76,62,307,768,0,82,43,247,99,52,47,49,149,3493,141,701,152,2245,11,234,0,9,0,3710,0,268,1460,1599,297,86,3493,2725,0,54,880,1432,297,62,768,0,199,443,115,0,11,3493,2725,2725,0,768,759,9,3493,2725,2725,0,768,749,19]
["Rye","0003491","66180",5182,2645,300,247,53,2645,2645,1530,1530,0,1115,0,1115,2176,1757,419,469,18,22,20,368,0,41,2176,1757,20,112,380,386,155,132,344,163,65,419,11,115,118,72,18,9,39,17,20,5105,4345,760,2176,1757,385,746,263,210,128,8,17,419,210,105,57,47,0,0,0,2,2,2,2645,29,72,174,256,429,407,329,497,452,6,17105,2645,2213,74,93,82,63,18,27,0,75,0,2176,1757,1616,17,38,20,8,0,0,0,58,0,419,248,21,55,33,9,18,27,0,8,0,5105,4345,4073,35,107,21,14,0,0,0,95,0,760,508,47,68,37,8,40,36,0,16,0,2176,1757,45,84,96,217,302,145,175,166,527,419,0,19,0,47,70,50,75,50,108,2176,47,98,133,1880,0,18,0,0,0,2645,38,232,806,809,648,112,2176,1757,0,61,452,615,540,89,419,19,106,183,81,23,7,2176,1757,1757,0,419,419,0,2176,1757,1757,0,419,391,28]
["Salem","0003506","66660",28112,10866,1237,1199,38,10866,10866,10786,10786,0,80,0,80,10402,8125,2277,464,71,49,11,292,0,41,10402,8125,10,871,2160,1979,776,622,1070,563,74,2277,151,607,604,323,147,102,140,153,50,27971,23022,4949,10402,8125,1293,2799,1388,1703,674,170,98,2277,909,609,400,208,133,13,5,3,3,2,10866,80,155,814,1777,1734,2246,1606,1368,1086,6,65132,10866,7683,226,453,277,251,546,606,28,788,8,10402,8125,6935,150,213,23,33,78,53,7,625,8,2277,418,76,215,251,218,452,527,21,99,0,27971,23022,20609,410,744,58,81,89,66,7,952,6,4949,1186,261,439,525,519,758,979,49,233,0,10402,8125,139,547,592,1289,1547,1987,1002,473,549,2277,18,43,86,388,767,306,305,139,225,10402,634,1110,869,7650,9,82,0,37,11,10866,80,1112,2919,4739,1743,273,10402,8125,0,264,1722,4250,1629,260,2277,66,746,1020,363,73,9,10402,8125,8119,6,2277,2271,6,10402,8125,8125,0,2277,2271,6]
["Sandown","0003538","67620",5143,1777,259,253,6,1777,1777,1135,1135,0,642,0,642,1694,1521,173,83,0,0,28,44,0,11,1694,1521,5,215,570,447,138,50,59,29,8,173,17,37,57,31,15,0,0,16,0,5110,4572,538,1694,1521,193,396,331,394,154,53,0,173,28,77,29,25,14,0,0,3,3,3,1777,9,11,35,276,444,384,319,172,127,6,10643,1777,1527,85,12,47,19,5,6,0,76,0,1694,1521,1378,54,7,7,19,0,0,0,56,0,173,94,9,5,40,0,5,6,0,14,0,5110,4572,4102,134,25,27,106,0,0,0,178,0,538,296,16,17,168,0,9,9,0,23,0,1694,1521,19,200,163,509,316,108,67,24,115,173,0,0,11,60,44,10,16,4,28,1694,31,315,108,1130,0,104,0,6,0,1777,9,58,522,899,265,24,1694,1521,9,41,377,815,255,24,173,0,17,90,56,10,0,1694,1521,1513,8,173,173,0,1694,1521,1521,0,173,173,0]
["Seabrook","0003547","68260",7934,4066,493,418,75,4066,4066,4033,4033,0,33,0,33,3425,2155,1270,641,58,22,18,534,0,9,3425,2155,8,188,351,431,246,194,451,254,32,1270,74,302,340,202,72,118,49,83,30,7934,5399,2535,3425,2155,519,949,287,266,91,17,26,1270,476,367,221,104,65,27,10,2,3,2,4066,18,44,261,1324,946,660,389,158,266,5,21522,4066,1617,142,333,91,115,140,299,280,1038,11,3425,2155,1142,85,55,14,8,0,0,0,851,0,1270,139,38,165,51,101,135,292,280,69,0,7934,5399,3208,250,103,26,8,0,0,0,1804,0,2535,329,84,439,114,264,180,484,422,219,0,3425,2155,72,302,72,470,569,179,210,84,197,1270,30,20,71,75,541,294,145,4,90,3425,1066,118,590,1557,0,24,52,18,0,4066,29,316,1888,1311,368,154,3425,2155,8,72,850,851,256,118,1270,21,201,804,238,6,0,3425,2155,2147,8,1270,1270,0,3425,2155,2148,7,1270,1270,0]
["South Hampton","0003562","71140",844,309,146,142,4,308,309,2,2,0,307,10,297,302,272,30,7,1,0,0,6,0,0,302,272,0,25,56,81,27,9,47,26,1,30,0,0,14,7,3,0,2,4,0,850,796,54,302,272,24,108,54,53,28,5,0,30,16,3,7,2,0,2,0,3,3,2,309,0,2,7,27,48,76,54,39,56,6,2079,309,291,7,8,0,0,0,0,0,3,0,302,272,264,4,4,0,0,0,0,0,0,0,30,20,3,4,0,0,0,0,0,3,0,850,796,780,10,6,0,0,0,0,0,0,0,54,37,2,9,0,0,0,0,0,6,0,302,272,15,14,20,33,48,25,31,4,82,30,0,0,0,2,14,6,4,0,4,302,7,15,6,259,0,15,0,0,0,309,0,14,65,136,77,17,302,272,0,8,50,127,73,14,30,0,2,15,9,2,2,302,272,267,5,30,30,0,302,272,267,5,30,30,0]
["Stratham","0003569","74340",6355,2371,289,285,4,2371,2371,1010,0,1010,1361,18,1343,2306,2056,250,65,0,32,0,19,0,14,2306,2056,0,254,681,531,181,115,198,87,9,250,7,64,79,59,8,8,16,9,0,6355,5849,506,2306,2056,355,643,361,461,185,32,19,250,69,121,35,9,16,0,0,3,3,2,2371,0,39,85,216,443,454,328,338,468,6,15816,2371,1682,296,78,124,169,0,0,0,15,7,2306,2056,1611,230,23,44,126,0,0,0,15,7,250,52,66,22,80,30,0,0,0,0,0,6355,5849,5081,405,50,81,176,0,0,0,50,6,506,154,124,35,154,39,0,0,0,0,0,2306,2056,56,180,289,838,271,141,131,28,122,250,0,0,15,136,16,17,16,18,32,2306,142,440,115,1558,10,32,0,9,0,2371,0,145,642,822,603,159,2306,2056,0,67,499,772,578,140,250,0,78,97,50,25,0,2306,2056,2056,0,250,250,0,2306,2056,2056,0,250,250,0]
["Windham","0003578","85780",10709,3906,457,422,35,3906,3906,2710,2710,0,1196,0,1196,3568,3350,218,338,0,19,7,312,0,0,3568,3350,0,351,1002,1048,303,282,254,72,38,218,14,59,81,23,18,11,5,0,7,10638,9970,668,3568,3350,332,1093,703,838,291,68,25,218,72,57,10,22,40,7,10,3,3,3,3906,0,5,37,237,408,651,718,899,951,7,28743,3906,3610,156,57,50,24,0,0,0,9,0,3568,3350,3152,134,12,25,18,0,0,0,9,0,218,146,15,26,25,6,0,0,0,0,0,10638,9970,9519,285,76,55,28,0,0,0,7,0,668,492,38,86,36,16,0,0,0,0,0,3568,3350,131,444,254,1114,724,309,141,46,187,218,0,7,15,21,50,0,30,14,81,3568,23,569,78,2811,9,67,11,0,0,3906,0,103,615,1563,1475,150,3568,3350,0,24,432,1352,1409,133,218,0,41,68,79,20,10,3568,3350,3341,9,218,218,0,3568,3350,3350,0,218,218,0]
[]
[]
[]
[]
[]
[]
[]
[]
[]
[]
[]
["Census 2000 SummaryFile3 Sample Data  -  SF3TownQry8HousingCostA"]
[]
["TOWN_NAME","LOGRECNO","COUSUB","TotalPop","H62RntrOccHU","H62RntrOccHUwRent","H62ROHUGRent<100","H62ROHUGRent100to149","H62ROHUGRent150to199","H62ROHUGRent200to249","H62ROHUGRent250to299","H62ROHUGRent300to349","H62ROHUGRent350to399","H62ROHUGRent400to449","H62ROHUGRent450to499","H62ROHUGRent500to549","H62ROHUGRent550to599","H62ROHUGRent600to649","H62ROHUGRent650to699","H62ROHUGRent700to749","H62ROHUGRent750to799","H62ROHUGRent800to899","H62ROHUGRent900to999","H62ROHUGRent1000to1249","H62ROHUGRent1250to1499","H62ROHUGRent1500to1999","H62ROHUGRent2000>","H62ROHUNoGRent","H63MedianGrossRnt","H69RenterOccHsU","H69GRnt<10PctHHInc","H69GRnt10to15PctHHInc","H69GRnt15to20PctHHInc","H69GRnt20to25PctHHInc","H69GRnt25to30PctHHInc","H69GRnt30to35PctHHInc","H69GRnt35to40PctHHInc","H69GRnt40to50PctHHInc","H69GRnt>50PctHHInc","H69GRntPctNotcomputed","H73RenterOccHU","H73ROHUHhInc<10k","H73ROHUHhInc<10kRnt<20pct","H73ROHUHhInc<10kRnt20to25pct","H73ROHUHhInc<10kRnt25to30pct","H73ROHUHhInc<10kRnt30to35pct","H73ROHUHhInc<10kRnt>35pct","H73ROHUHhInc<10kPctNotComput","H73ROHUHhInc10to20k","H73ROHUHhInc10to20kRnt<20pct","H73ROHUHhInc10to20kRnt20to25pct","H73ROHUHhInc10to20kRnt25to30pct","H73ROHUHhInc10to20kRnt30to35pct","H73ROHUHhInc10to20kRnt>35pct","H73ROHUHhInc10to20kRntPctNC","H73ROHUHhInc20to35k","H73ROHUHhInc20to35kRnt<20pct","H73ROHUHhInc20to35kRnt20to25pct","H73ROHUHhInc20to35kRnt25to30pct","H73ROHUHhInc20to35kRnt30to35pct","H73ROHUHhInc20to35kRnt>35pct","H73ROHUHhInc20to35kRntPctNC","H73ROHUHhInc35to40k","H73ROHUHhInc35to40kRnt<20pct","H73ROHUHhInc35to40kRnt20to25pct","H73ROHUHhInc35to40kRnt25to30pct","H73ROHUHhInc35to40kRnt30to35pct","H73ROHUHhInc35to40kRnt>35pct","H73ROHUHhInc35to40kRntPctNC","H73ROHUHhInc50to75k","H73ROHUHhInc50to75kRnt<20pct","H73ROHUHhInc50to75kRnt20to25pct","H73ROHUHhInc50to75kRnt25to30pct","H73ROHUHhInc50to75kRnt30to35pct","H73ROHUHhInc50to75kRnt>35pct","H73ROHUHhInc50to75kRntPctNC","H73ROHUHhInc75to100k","H73ROHUHhInc75to100kRnt<20pct","H73ROHUHhInc75to100kRnt20to25pct","H73ROHUHhInc75to100kRnt25to30pct","H73ROHUHhInc75to100kRnt30to35pct","H73ROHUHhInc75to100kRnt>35pct","H73ROHUHhInc75to100kRntPctNC","H73ROHUHhInc>100k","H73ROHUHhInc>100kRnt<20pct","H73ROHUHhInc>100kRnt20to25pct","H73ROHUHhInc>100kRnt25to30pct","H73ROHUHhInc>100kRnt30to35pct","H73ROHUHhInc>100kRnt>35pct","H73ROHUHhInc>100kRntPctNC"]
["Atkinson","0003039","02340",6178,238,222,0,10,0,0,0,0,0,27,65,50,10,0,17,25,9,9,0,0,0,0,0,16,509,238,23,10,43,10,30,10,29,10,57,16,238,48,0,0,0,0,48,0,48,0,0,0,0,48,0,67,9,10,30,10,0,8,28,28,0,0,0,0,0,16,16,0,0,0,0,0,6,6,0,0,0,0,0,25,17,0,0,0,0,8]
["Auburn","0003046","02820",4682,119,108,0,0,0,0,0,12,0,0,0,40,0,9,20,0,16,0,0,11,0,0,0,11,611,119,0,19,26,33,11,0,0,0,19,11,119,19,0,0,0,0,19,0,12,0,12,0,0,0,0,21,0,21,0,0,0,0,42,20,0,11,0,0,11,25,25,0,0,0,0,0,0,0,0,0,0,0,0,0,0,0,0,0,0,0]
["Brentwood","0003056","07220",3197,57,45,0,0,0,0,0,0,0,5,0,0,12,5,6,0,0,0,5,0,0,12,0,12,654,57,0,12,5,6,16,0,0,6,0,12,57,0,0,0,0,0,0,0,6,0,0,0,0,6,0,11,0,0,11,0,0,0,17,5,6,0,0,0,6,5,5,0,0,0,0,0,5,0,0,5,0,0,0,13,7,0,0,0,0,6]
["Candia","0003063","09300",3911,98,86,0,0,0,7,0,0,0,7,7,0,0,0,0,23,13,7,15,0,7,0,0,12,748,98,7,14,14,28,16,0,0,7,0,12,98,0,0,0,0,0,0,0,7,0,0,0,0,7,0,22,7,0,9,0,0,6,26,7,19,0,0,0,0,37,21,9,7,0,0,0,0,0,0,0,0,0,0,6,0,0,0,0,0,6]
["Chester","0003071","12100",3792,60,41,0,0,0,0,0,0,0,0,0,0,5,11,5,0,0,5,5,10,0,0,0,19,695,60,0,0,21,0,0,5,0,5,10,19,60,10,0,0,0,0,5,5,9,0,0,0,0,0,9,15,0,0,0,5,10,0,16,16,0,0,0,0,0,10,5,0,0,0,0,5,0,0,0,0,0,0,0,0,0,0,0,0,0,0]
["Danville","0003079","17140",4023,126,118,0,0,0,0,0,0,0,0,9,9,37,16,0,0,7,14,11,15,0,0,0,8,613,126,0,25,52,11,0,14,7,0,9,8,126,9,0,0,0,0,9,0,7,0,0,0,0,7,0,7,0,0,0,7,0,0,46,39,0,0,7,0,0,57,38,11,0,0,0,8,0,0,0,0,0,0,0,0,0,0,0,0,0,0]
["Deerfield","0003086","17460",3678,111,111,0,0,0,0,0,0,0,0,9,10,0,0,18,22,0,19,23,10,0,0,0,0,742,111,0,0,19,51,0,0,23,0,9,9,111,9,0,0,0,0,0,9,9,0,0,0,0,9,0,33,10,0,0,0,23,0,41,0,41,0,0,0,0,19,9,10,0,0,0,0,0,0,0,0,0,0,0,0,0,0,0,0,0,0]
["Derry","0003092","17940",34021,4322,4271,18,36,25,72,63,11,79,61,94,118,483,436,460,264,348,654,519,407,106,17,0,51,734,4322,189,622,821,754,448,303,305,251,545,84,4322,353,0,0,37,20,263,33,548,51,8,36,38,406,9,1095,48,237,189,223,390,8,864,361,260,156,22,42,23,1016,734,241,30,0,0,11,266,258,8,0,0,0,0,180,180,0,0,0,0,0]
["East Kingston","0003147","21380",1784,49,47,0,0,0,0,0,0,2,4,0,2,2,7,2,2,0,13,8,3,2,0,0,2,819,49,0,11,8,7,4,8,0,0,9,2,49,6,0,0,0,0,6,0,5,0,0,0,0,3,2,10,4,2,2,2,0,0,10,2,2,2,4,0,0,14,9,3,0,2,0,0,0,0,0,0,0,0,0,4,4,0,0,0,0,0]
["Epping","0003154","24660",5476,442,417,0,8,0,26,13,4,14,34,19,61,28,42,28,25,30,31,36,5,13,0,0,25,602,442,10,77,92,43,52,35,27,29,52,25,442,38,0,0,8,0,30,0,96,8,0,9,12,58,9,131,40,21,27,23,20,0,73,43,16,8,0,0,6,74,58,6,0,0,0,10,20,20,0,0,0,0,0,10,10,0,0,0,0,0]
["Exeter","0003174","25380",14058,1913,1764,8,73,41,32,25,32,69,77,94,59,67,119,180,131,81,172,114,79,117,106,88,149,702,1913,72,176,344,267,161,119,152,84,373,165,1913,247,16,24,0,9,171,27,303,27,16,39,41,168,12,389,78,41,62,29,171,8,428,166,116,31,24,51,40,368,210,44,21,8,48,37,102,60,26,8,8,0,0,76,35,0,0,0,0,41]
["Fremont","0003213","27940",3510,121,111,0,0,0,0,5,0,0,5,4,10,0,14,10,0,10,20,21,5,7,0,0,10,788,121,17,15,21,18,14,11,0,5,10,10,121,5,0,0,0,0,5,0,5,0,0,0,0,5,0,32,0,9,9,4,5,5,32,10,5,5,7,0,5,25,21,4,0,0,0,0,10,10,0,0,0,0,0,12,12,0,0,0,0,0]
["Greenland","0003220","31700",3208,220,208,0,0,0,0,0,0,7,0,7,7,0,8,27,5,14,34,27,54,11,7,0,12,885,220,8,33,63,38,14,12,14,12,14,12,220,7,0,0,0,0,0,7,7,0,0,0,0,7,0,40,0,0,14,0,26,0,59,21,24,0,7,7,0,62,43,14,0,5,0,0,6,6,0,0,0,0,0,39,34,0,0,0,0,5]
["Hampstead","0003229","32900",8297,514,494,0,10,11,10,0,10,0,19,30,139,50,0,58,43,18,25,7,25,15,24,0,20,568,514,45,112,91,79,39,28,8,30,62,20,514,41,0,0,11,10,20,0,67,0,0,0,10,47,10,121,8,61,11,8,33,0,119,92,18,9,0,0,0,90,72,0,8,0,0,10,17,17,0,0,0,0,0,59,59,0,0,0,0,0]
["Hampton","0003240","33060",14937,2069,1982,16,9,66,30,9,19,30,71,68,99,148,234,299,180,81,204,200,128,47,44,0,87,682,2069,144,271,425,296,157,134,82,123,334,103,2069,236,0,21,9,40,122,44,318,34,0,21,28,235,0,440,40,87,88,56,156,13,404,176,134,39,8,26,21,394,328,46,0,2,0,18,138,123,8,0,0,0,7,139,139,0,0,0,0,0]
["Hampton Falls","0003270","33460",1880,73,67,0,0,0,0,0,0,0,0,2,2,4,12,3,2,6,12,6,0,5,5,8,6,821,73,2,12,13,2,12,6,2,8,10,6,73,8,0,0,0,0,6,2,4,0,0,0,0,2,2,18,0,2,8,4,4,0,17,6,0,4,0,5,2,11,11,0,0,0,0,0,9,4,0,0,2,3,0,6,6,0,0,0,0,0]
["Kensington","0003277","39780",1893,54,45,0,2,0,0,0,0,0,0,2,3,0,9,2,4,0,2,9,6,4,2,0,9,825,54,5,4,4,12,7,4,2,0,5,11,54,9,0,0,0,2,5,2,3,0,0,0,0,0,3,14,0,5,3,0,2,4,10,4,2,0,2,0,2,11,4,5,2,0,0,0,4,2,0,2,0,0,0,3,3,0,0,0,0,0]
["Kingston","0003282","40100",5862,289,271,0,16,0,0,0,8,0,10,0,39,39,27,10,27,17,15,7,38,9,9,0,18,644,289,15,41,82,7,45,0,17,9,47,26,289,41,16,0,0,0,17,8,56,0,0,0,0,56,0,35,8,0,27,0,0,0,50,40,0,0,0,0,10,73,48,7,18,0,0,0,17,9,0,0,0,0,8,17,17,0,0,0,0,0]
["Londonderry","0003295","43220",23236,960,871,0,0,0,0,8,0,0,7,17,12,39,66,55,64,134,90,93,160,47,79,0,89,837,960,50,169,161,138,40,94,36,65,101,106,960,65,0,0,0,0,31,34,78,0,0,0,8,46,24,167,0,8,15,46,89,9,211,66,73,7,23,24,18,186,108,25,18,17,12,6,145,123,22,0,0,0,0,108,83,10,0,0,0,15]
["New Castle","0003320","50980",1010,63,61,0,0,0,0,0,0,0,1,0,0,2,2,2,0,2,0,6,7,10,23,6,2,1463,63,4,10,16,12,7,2,2,0,8,2,63,0,0,0,0,0,0,0,0,0,0,0,0,0,0,10,0,0,0,0,10,0,7,3,2,0,2,0,0,13,4,4,5,0,0,0,11,3,4,2,0,0,2,22,20,2,0,0,0,0]
["Newfields","0003327","51380",1551,53,53,0,0,0,0,0,2,0,0,3,12,4,5,4,5,4,5,2,7,0,0,0,0,656,53,2,18,9,12,2,3,4,0,0,3,53,3,0,0,0,0,0,3,7,0,2,0,3,2,0,5,0,3,0,0,2,0,9,5,2,2,0,0,0,26,21,5,0,0,0,0,3,3,0,0,0,0,0,0,0,0,0,0,0,0]
["Newington","0003334","51620",775,57,49,0,0,0,0,0,0,0,0,0,5,7,4,0,3,5,11,0,8,2,4,0,8,805,57,0,6,20,8,5,3,2,0,5,8,57,5,0,0,0,0,2,3,5,0,0,0,0,0,5,11,0,0,3,3,5,0,16,11,5,0,0,0,0,14,9,3,2,0,0,0,2,2,0,0,0,0,0,4,4,0,0,0,0,0]
["Newmarket","0003341","52340",8027,1576,1542,0,11,18,19,25,43,53,46,24,67,95,165,180,207,167,207,114,71,23,7,0,34,706,1576,79,192,335,180,133,139,96,113,275,34,1576,185,9,0,0,9,158,9,258,9,10,19,8,203,9,348,43,8,60,113,116,8,321,137,114,54,9,7,0,354,306,48,0,0,0,0,60,52,0,0,0,0,8,50,50,0,0,0,0,0]
["Newton","0003369","52900",4289,232,225,7,14,7,13,0,0,0,7,0,20,29,24,18,40,13,7,11,15,0,0,0,7,632,232,21,31,44,32,21,13,14,21,21,14,232,21,7,0,0,0,7,7,52,13,7,7,7,18,0,61,0,9,8,6,31,7,52,33,13,6,0,0,0,26,23,3,0,0,0,0,13,13,0,0,0,0,0,7,7,0,0,0,0,0]
["North Hampton","0003380","54580",4259,203,171,0,0,0,0,0,8,8,0,0,25,22,8,9,43,0,8,16,8,0,16,0,32,706,203,16,53,32,22,16,8,0,8,9,39,203,16,0,0,0,0,9,7,8,0,0,0,0,8,0,32,16,0,9,0,0,7,45,8,22,7,0,0,8,78,61,0,0,8,0,9,8,0,0,0,0,0,8,16,16,0,0,0,0,0]
["Northwood","0003391","56820",3640,195,163,0,0,0,0,0,0,0,5,29,32,20,12,24,0,9,9,15,8,0,0,0,32,589,195,10,18,32,39,21,10,17,5,4,39,195,26,0,0,0,0,4,22,7,0,0,0,0,0,7,85,3,34,16,10,22,0,35,15,5,5,0,0,10,24,24,0,0,0,0,0,14,14,0,0,0,0,0,4,4,0,0,0,0,0]
["Nottingham","0003398","57460",3701,90,77,0,0,0,0,0,0,0,0,0,16,14,15,10,9,0,5,0,8,0,0,0,13,628,90,0,30,7,9,8,7,7,0,9,13,90,6,0,0,0,0,0,6,9,0,0,0,0,9,0,26,0,9,3,7,7,0,19,7,0,5,0,0,7,22,22,0,0,0,0,0,0,0,0,0,0,0,0,8,8,0,0,0,0,0]
["Plaistow","0003404","62500",7747,607,600,0,0,0,8,0,0,22,8,0,8,24,28,46,60,112,150,45,82,0,7,0,7,793,607,57,80,89,102,31,52,49,64,67,16,607,48,0,0,0,8,31,9,56,0,0,9,0,47,0,192,0,24,22,37,102,7,57,15,35,0,7,0,0,143,107,36,0,0,0,0,68,68,0,0,0,0,0,43,36,7,0,0,0,0]
["Portsmouth","0003415","62900",20784,4945,4809,59,91,225,118,161,81,66,149,132,192,340,287,361,267,314,646,573,528,142,77,0,136,727,4945,299,627,858,816,611,384,172,299,669,210,4945,678,33,55,71,73,365,81,745,133,65,83,46,390,28,1019,74,194,232,149,327,43,898,261,309,155,96,50,27,940,642,176,70,20,8,24,436,423,6,0,0,0,7,229,218,11,0,0,0,0]
["Raymond","0003465","64020",9674,757,740,0,7,0,41,0,0,0,43,66,28,66,57,28,109,84,99,47,43,22,0,0,17,716,757,34,124,110,129,102,53,23,60,105,17,757,77,7,0,20,0,50,0,69,0,0,0,8,54,7,214,10,20,74,34,76,0,155,55,73,8,11,8,0,177,141,36,0,0,0,0,55,55,0,0,0,0,0,10,0,0,0,0,0,10]
["Rye","0003491","66180",5182,411,379,0,0,0,0,0,0,0,19,9,0,29,10,30,15,21,36,70,42,27,50,21,32,929,411,0,60,23,94,44,35,14,18,91,32,411,19,0,0,0,0,19,0,73,0,0,0,19,54,0,86,0,30,9,0,36,11,57,0,26,20,0,0,11,96,29,31,6,16,14,0,34,18,7,9,0,0,0,46,36,0,0,0,0,10]
["Salem","0003506","66660",28112,2260,2149,0,34,18,21,58,36,80,76,68,62,90,280,203,259,178,244,152,219,50,21,0,111,709,2260,209,272,346,394,210,153,110,165,256,145,2260,175,0,16,0,0,106,53,308,9,20,16,15,233,15,563,62,64,130,65,192,50,428,171,174,39,44,0,0,506,335,111,25,29,0,6,136,120,9,0,0,0,7,144,130,0,0,0,0,14]
["Sandown","0003538","67620",5143,167,141,0,0,0,0,0,0,0,0,0,9,5,14,8,6,25,20,20,13,10,0,11,26,818,167,10,25,12,21,5,8,14,15,27,30,167,9,0,0,0,0,0,9,28,0,0,0,0,22,6,28,0,0,0,0,23,5,55,21,10,5,8,5,6,32,11,11,0,0,6,4,0,0,0,0,0,0,0,15,15,0,0,0,0,0]
["Seabrook","0003547","68260",7934,1270,1193,0,0,10,10,0,8,28,20,43,45,149,185,135,151,139,133,66,63,0,8,0,77,686,1270,65,145,228,189,142,70,44,94,205,88,1270,135,0,0,0,10,107,18,194,10,0,8,10,146,20,280,11,72,75,30,82,10,280,106,104,42,20,8,0,280,221,13,17,0,0,29,78,67,0,0,0,0,11,23,23,0,0,0,0,0]
["South Hampton","0003562","71140",844,26,24,0,0,0,0,0,0,2,0,0,0,2,3,3,0,0,0,2,2,0,5,5,2,1000,26,0,3,4,5,3,0,2,0,7,2,26,4,0,0,0,0,4,0,0,0,0,0,0,0,0,10,0,3,0,0,5,2,2,2,0,0,0,0,0,3,3,0,0,0,0,0,4,2,2,0,0,0,0,3,0,0,3,0,0,0]
["Stratham","0003569","74340",6355,240,240,0,0,0,0,0,0,0,16,0,0,24,17,0,15,22,40,33,56,17,0,0,0,865,240,26,37,40,31,23,23,8,16,36,0,240,0,0,0,0,0,0,0,43,0,0,0,0,43,0,23,0,0,0,14,9,0,56,16,16,16,0,8,0,52,21,15,7,9,0,0,49,49,0,0,0,0,0,17,17,0,0,0,0,0]
["Windham","0003578","85780",10709,212,181,0,0,0,0,0,0,0,0,13,0,6,8,25,9,6,18,48,20,15,13,0,31,911,212,43,23,14,20,39,8,5,15,14,31,212,7,0,0,0,0,7,0,21,0,0,0,8,13,0,39,0,5,8,0,9,17,53,0,15,26,0,5,7,27,15,0,5,0,0,7,17,17,0,0,0,0,0,48,48,0,0,0,0,0]
[]
[]
[]
[]
[]
[]
[]
[]
[]
[]
[]
["Census 2000 SummaryFile3 Sample Data  -  SF3TownQry8HousingCostB"]
[]
["TOWN_NAME","LOGRECNO","COUSUB","TotalPop","H74SpecOwnerOccHU","H74OOHU<10k","H74OOHU10to15k","H74OOHU15to20k","H74OOHU20to25k","H74OOHU25to30k","H74OOHU30to35k","H74OOHU35to40k","H74OOHU40to50k","H74OOHU50to60k","H74OOHU60to70k","H74OOHU70to80k","H74OOHU80to90k","H74OOHU90to100k","H74OOHU100to125k","H74OOHU125to150k","H74OOHU150to175k","H74OOHU175to200k","H74OOHU200to250k","H74OOHU250to300k","H74OOHU300to400k","H74OOHU400to500k","H74OOHU500to750k","H74OOHU750to1000k","H74OOHU1000kmore","H76OOHUMedianVal","H84OwnerOccHU","H84AllOOHU<10k","H84AllOOHU10to15k","H84AllOOHU15to20k","H84AllOOHU20to25k","H84AllOOHU25to30k","H84AllOOHU30to35k","H84AllOOHU35to40k","H84AllOOHU40to50k","H84AllOOHU50to60k","H84AllOOHU60to70k","H84AllOOHU70to80k","H84AllOOHU80to90k","H84AllOOHU90to100k","H84AllOOHU100to125k","H84AllOOHU125to150k","H84AllOOHU150to175k","H84AllOOHU175to200k","H84AllOOHU200to250k","H84AllOOHU250to300k","H84AllOOHU300to400k","H84AllOOHU400to500k","H84AllOOHU500to750k","H84AllOOHU750to1000k","H84AllOOHU1000kmore","H85OOHUMedVal","H90SOOHU","H90HUwMorgt","H90HUwMtgHC<200","H90HUwMtgHC200to300","H90HUwMtgHC300to400","H90HUwMtgHC400to500","H90HUwMtgHC500to600","H90HUwMtgHC600to700","H90HUwMtgHC700to800","H90HUwMtgHC800to900","H90HUwMtgHC900to1000","H90HUwMtgHC1000to1250","H90HUwMtgHC1250to1500","H90HUwMtgHC1500to2000","H90HUwMtgHC2000to2500","H90HUwMtgHC2500to3000","H90HUwMtgHC3000orMore","H90HUwOutMorgt","H90HUwOutMtgHC<100","H90HUwOutMtgHC100to150","H90HUwOutMtgHC150to200","H90HUwOutMtgHC200to250","H90HUwOutMtgHC250to300","H90HUwOutMtgHC300to350","H90HUwOutMtgHC350to400","H90HUwOutMtgHC400to500","H90HUwOutMtgHC500to600","H90HUwOutMtgHC600to700","H90HUwOutMtgHC700to800","H90HUwOutMtgHC800to900","H90HUwOutMtgHC900to1000","H90HUwOutMtgHC1000orMore","H91MedianOCHUwMtg","H91MedianOCHUwOutMtg","H94SpecOOHU","H94HUwMortg","H94HUwMtgHC<10pct","H94HUwMtgHC10to15pct","H94HUwMtgHC15to20pct","H94HUwMtgHC20to25pct","H94HUwMtgHC25to30pct","H94HUwMtgHC30to35pct","H94HUwMtgHC35to40pct","H94HUwMtgHC40to50pct","H94HUwMtgHC50pctOrMore","H94HUwMtgHCpctNotComp","H94HUWOutMortg","H94HUWOutMortgHC<10pct","H94HUWOutMortgHC10to15pct","H94HUWOutMortgHC15to20pct","H94HUWOutMortgHC20to25pct","H94HUWOutMortgHC25to30pct","H94HUWOutMortgHC30to35pct","H94HUWOutMortgHC35to40pct","H94HUWOutMortgHC40to50pct","H94HUWOutMortgHC50pctOrMore","H94HUWOutMortgHCpctNotComp","H97SpecifOwnOccHU","H97SOOHUInc<10k","H97SOOHUInc<10kHC<20pct","H97SOOHUInc<10kHC20to25pct","H97SOOHUInc<10kHC25to30pct","H97SOOHUInc<10kHC30to35pct","H97SOOHUInc<10kHC>35pct","H97SOOHUInc<10kHCpctNotComput","H97SOOHUInc10to20k","H97SOOHUInc10to20kHC<20pct","H97SOOHUInc10to20kHC20to25pct","H97SOOHUInc10to20kHC25to30pct","H97SOOHUInc10to20kHC30to35pct","H97SOOHUInc10to20kHC>35pct","H97SOOHUInc10to20kHCpctNotComput","H97SOOHUInc20to35k","H97SOOHUInc20to35kRC<20pct","H97SOOHUInc20to35kRC20to25pct","H97SOOHUInc20to35kRC25to30pct","H97SOOHUInc20to35kRC30to35pct","H97SOOHUInc20to35kRC>35pct","H97SOOHUInc20to35kRCpctNotComput","H97SOOHUInc35to50k","H97SOOHUInc35to50kRC<20pct","H97SOOHUInc35to50kRC20to25pct","H97SOOHUInc35to50kRC25to30pct","H97SOOHUInc35to50kRC30to35pct","H97SOOHUInc35to50kRC>35pct","H97SOOHUInc35to50kRCpctNotCompute","H97SOOHUInc50to75k","H97SOOHUInc50to75kRC<20pct","H97SOOHUInc50to75kRC20to25pct","H97SOOHUInc50to75kRC25to30pct","H97SOOHUInc50to75kRC30to35pct","H97SOOHUInc50to75kRC>35pct","H97SOOHUInc50to75kRCpctNotComput","H97SOOHUInc75to100k","H97SOOHUInc75to100kRC<20pct","H97SOOHUInc75to100kRC20to25pct","H97SOOHUInc75to100kRC25to30pct","H97SOOHUInc75to100kRC30to35pct","H97SOOHUInc75to100kRC>35pct","H97SOOHUInc75to100kRCpctNotCompute","H97SOOHUInc100to150k","H97SOOHUInc100to150kRC<20pct","H97SOOHUInc100to150kRC20to25pct","H97SOOHUInc100to150kRC25to30pct","H97SOOHUInc100to150kRC30to35pct","H97SOOHUInc100to150kRC>35pct","H97SOOHUInc100to150kRCpctNotCompute","H97SOOHUInc>150k","H97SOOHUInc>150kRC<20pct","H97SOOHUInc>150kRC20to25pct","H97SOOHUInc>150kRC25to30pct","H97SOOHUInc>150kRC30to35pct","H97SOOHUInc>150kRC>35pct","H97SOOHUInc>150kRCpctNotCompute"]
["Atkinson","0003039","02340",6178,1791,0,0,0,0,0,0,0,0,0,0,9,18,7,46,180,252,418,427,205,153,17,39,20,0,197900,2060,0,0,10,0,0,0,0,0,0,0,9,18,16,52,193,295,509,460,221,177,23,57,20,0,196500,1791,1426,0,0,8,16,25,33,26,17,78,252,300,485,149,28,9,365,0,0,0,10,15,44,31,140,15,44,41,0,25,0,1465,459,1791,1426,115,225,268,236,241,95,38,94,114,0,365,113,142,10,17,0,19,0,37,27,0,1791,28,0,0,0,10,18,0,60,0,0,0,9,51,0,151,26,17,9,0,99,0,235,79,9,29,24,94,0,444,135,72,135,62,40,0,315,149,110,39,9,8,0,362,288,45,29,0,0,0,196,196,0,0,0,0,0]
["Auburn","0003046","02820",4682,1289,0,0,0,0,0,0,0,5,0,18,29,86,66,253,227,182,135,135,101,35,6,6,0,5,145600,1461,0,0,0,0,0,0,0,5,0,18,40,86,72,259,257,216,150,145,125,58,13,6,6,5,149400,1289,1029,0,0,0,5,29,26,63,68,68,278,232,161,76,12,11,260,6,6,5,6,11,55,27,48,51,28,11,6,0,0,1230,429,1289,1029,79,185,231,196,144,70,24,50,50,0,260,167,35,15,5,0,16,5,0,11,6,1289,24,0,0,0,0,18,6,47,6,0,0,16,25,0,99,26,5,6,15,47,0,115,56,22,22,6,9,0,369,142,80,86,32,29,0,337,227,57,30,17,6,0,186,143,37,0,0,6,0,112,112,0,0,0,0,0]
["Brentwood","0003056","07220",3197,663,0,0,0,4,0,0,0,0,9,4,0,27,24,68,91,79,81,93,130,49,4,0,0,0,182900,848,0,0,0,4,0,0,0,12,13,4,9,44,34,77,91,101,102,128,141,72,12,4,0,0,183600,663,520,0,0,0,0,5,23,20,24,25,102,77,143,78,7,16,143,0,0,4,0,9,4,39,23,24,24,7,5,0,4,1448,467,663,520,27,56,92,112,95,53,20,11,54,0,143,48,46,11,8,4,4,0,4,18,0,663,22,0,0,0,0,22,0,33,0,4,0,4,25,0,42,16,4,0,5,17,0,102,26,12,21,19,24,0,163,69,27,32,16,19,0,165,76,37,39,13,0,0,85,46,32,7,0,0,0,51,47,4,0,0,0,0]
["Candia","0003063","09300",3911,948,0,0,0,0,0,0,0,0,6,22,13,22,77,201,208,193,96,69,30,6,5,0,0,0,141000,1254,8,0,0,18,5,0,0,8,6,22,18,47,77,221,248,265,125,91,66,12,11,6,0,0,144900,948,800,0,0,5,6,19,11,5,61,79,240,191,138,34,5,6,148,0,0,0,6,5,31,21,55,19,11,0,0,0,0,1223,420,948,800,55,105,210,125,110,72,45,29,49,0,148,31,70,8,12,14,0,0,13,0,0,948,8,0,0,0,0,8,0,25,0,0,8,0,17,0,99,29,14,6,6,44,0,179,25,18,45,39,52,0,245,100,43,65,27,10,0,208,153,50,0,0,5,0,143,131,12,0,0,0,0,41,41,0,0,0,0,0]
["Chester","0003071","12100",3792,902,4,0,0,0,0,0,0,0,0,4,13,9,25,71,199,151,126,174,72,27,23,4,0,0,170900,1129,4,0,4,0,4,0,0,0,0,8,13,13,25,91,215,191,149,224,88,35,45,20,0,0,174500,902,782,0,0,0,0,4,20,31,12,68,124,158,247,76,20,22,120,0,0,4,0,8,5,8,34,26,30,5,0,0,0,1459,504,902,782,14,101,140,166,104,65,45,24,116,7,120,52,8,23,8,4,9,0,4,12,0,902,26,0,0,0,0,19,7,40,0,0,0,9,31,0,86,9,8,4,4,61,0,109,21,13,25,12,38,0,211,52,36,46,29,48,0,201,87,76,25,9,4,0,178,125,34,8,11,0,0,51,44,7,0,0,0,0]
["Danville","0003079","17140",4023,882,0,0,0,0,7,0,5,0,7,0,5,16,13,80,220,201,170,104,48,6,0,0,0,0,160900,1302,29,0,7,21,20,47,53,53,35,7,27,16,18,107,246,232,186,123,69,6,0,0,0,0,146400,882,767,0,0,0,26,6,19,18,19,42,182,199,211,38,0,7,115,0,8,0,14,13,20,21,20,14,5,0,0,0,0,1340,356,882,767,19,56,184,136,138,103,51,38,42,0,115,33,30,13,0,8,23,0,0,8,0,882,30,0,0,8,0,22,0,28,0,0,0,23,5,0,64,22,0,7,0,35,0,143,41,6,29,29,38,0,286,73,58,75,48,32,0,208,98,57,27,26,0,0,110,95,15,0,0,0,0,13,6,0,0,0,7,0]
["Deerfield","0003086","17460",3678,765,0,0,0,0,0,0,0,0,0,13,15,46,21,133,194,139,55,77,61,5,0,0,0,6,144900,1096,5,0,0,0,0,0,0,0,14,23,23,46,50,149,239,186,97,140,92,18,8,0,0,6,149900,765,621,0,0,5,5,5,8,6,74,40,120,165,143,27,10,13,144,0,0,5,10,6,0,25,40,39,8,5,0,6,0,1322,465,765,621,24,79,133,101,118,86,8,26,46,0,144,78,26,7,0,0,16,5,0,12,0,765,17,0,0,0,0,17,0,28,5,0,0,8,15,0,71,12,0,13,17,29,0,100,18,5,31,26,20,0,235,76,44,60,46,9,0,148,93,34,14,0,7,0,98,75,18,0,5,0,0,68,68,0,0,0,0,0]
["Derry","0003092","17940",34021,6499,0,0,0,9,9,8,7,55,34,128,193,376,439,1295,1763,1057,615,389,88,18,7,0,0,9,134900,7977,31,37,40,55,78,66,23,201,71,178,236,482,544,1474,1946,1208,703,431,116,26,15,7,0,9,131100,6499,5755,0,0,14,17,56,96,162,335,424,1348,1388,1461,378,67,9,744,0,0,0,0,27,81,87,232,156,117,44,0,0,0,1327,476,6499,5755,209,597,1275,1157,1071,433,304,313,363,33,744,153,158,131,113,34,40,18,10,87,0,6499,127,0,0,0,0,94,33,227,0,18,18,16,175,0,594,110,93,37,49,305,0,921,164,92,168,167,330,0,1913,442,500,603,200,168,0,1527,852,376,235,41,23,0,914,695,175,44,0,0,0,276,260,16,0,0,0,0]
["East Kingston","0003147","21380",1784,414,0,0,0,0,0,0,0,0,2,5,0,8,13,48,55,57,44,98,56,24,0,2,2,0,185800,576,7,7,0,1,0,0,0,0,4,5,0,10,21,60,74,79,55,112,72,45,15,5,4,0,184100,414,369,0,0,0,3,0,6,10,26,22,89,68,106,30,6,3,45,0,0,0,0,0,10,5,14,9,3,2,0,0,2,1355,454,414,369,17,51,85,76,44,26,28,12,30,0,45,11,2,15,3,6,0,0,4,4,0,414,8,0,0,0,0,8,0,13,0,0,3,0,10,0,32,9,2,3,2,16,0,60,9,11,5,11,24,0,102,27,18,27,11,19,0,83,47,27,7,2,0,0,97,72,19,5,0,1,0,19,17,2,0,0,0,0]
["Epping","0003154","24660",5476,1136,0,6,0,0,7,0,18,0,0,42,34,58,70,242,298,180,79,31,20,51,0,0,0,0,132600,1574,7,26,16,25,51,10,44,12,29,88,40,79,121,257,336,218,94,43,27,51,0,0,0,0,123200,1136,967,0,0,10,0,46,55,25,44,77,296,213,185,16,0,0,169,0,0,7,9,21,24,19,50,15,9,15,0,0,0,1191,409,1136,967,41,143,185,191,143,97,53,58,56,0,169,61,40,19,6,6,18,0,10,9,0,1136,18,0,0,0,9,9,0,41,0,0,16,9,16,0,103,19,0,9,18,57,0,226,75,21,31,37,62,0,404,127,117,76,42,42,0,183,119,47,17,0,0,0,142,130,12,0,0,0,0,19,19,0,0,0,0,0]
["Exeter","0003174","25380",14058,2465,0,0,0,0,0,0,0,0,0,18,0,28,43,315,520,385,328,387,204,165,55,17,0,0,170000,3978,8,102,104,143,60,164,114,57,100,127,49,120,71,362,552,418,445,443,221,229,63,17,0,9,143500,2465,1839,0,0,0,7,19,46,41,26,61,403,450,476,167,72,71,626,0,0,0,0,8,43,68,143,140,92,72,36,16,8,1426,536,2465,1839,62,282,380,311,280,183,109,83,149,0,626,172,163,55,108,47,16,23,17,8,17,2465,24,0,0,0,0,7,17,124,0,33,18,8,65,0,196,0,73,9,17,97,0,386,139,17,50,75,105,0,562,168,115,128,65,86,0,478,265,102,66,26,19,0,447,340,43,46,8,10,0,248,202,36,10,0,0,0]
["Fremont","0003213","27940",3510,849,0,0,0,0,3,0,0,8,4,11,12,9,28,110,185,228,120,91,30,10,0,0,0,0,156000,1031,0,0,0,0,3,0,7,12,4,23,34,13,36,122,200,266,144,111,38,18,0,0,0,0,155800,849,762,8,0,0,3,9,27,19,34,52,201,204,167,34,4,0,87,0,0,0,4,11,14,18,19,11,10,0,0,0,0,1284,390,849,762,42,102,123,165,146,74,23,27,55,5,87,46,14,8,0,0,0,4,4,7,4,849,32,0,0,0,0,23,9,20,0,0,0,0,20,0,61,11,0,9,10,31,0,94,11,10,25,18,30,0,318,88,79,97,38,16,0,160,78,62,12,8,0,0,125,108,14,3,0,0,0,39,39,0,0,0,0,0]
["Greenland","0003220","31700",3208,789,0,6,0,0,0,0,0,0,0,0,13,0,6,59,81,93,111,98,119,89,57,57,0,0,213000,978,0,6,0,0,6,0,0,0,0,0,13,0,22,71,99,104,143,123,171,100,63,57,0,0,210200,789,509,0,0,0,12,12,16,17,19,42,59,58,98,89,42,45,280,0,0,6,12,42,30,41,54,41,26,0,0,6,22,1598,417,789,509,34,65,86,85,76,43,17,44,59,0,280,112,77,29,6,19,13,0,12,12,0,789,41,0,0,0,0,41,0,50,12,0,19,13,6,0,49,24,6,0,0,19,0,89,40,0,11,7,31,0,223,117,35,30,12,29,0,131,57,25,23,13,13,0,134,92,25,6,11,0,0,72,61,0,6,0,5,0]
["Hampstead","0003229","32900",8297,2115,0,0,0,0,0,0,0,0,0,0,22,8,87,179,259,307,313,545,223,150,17,0,5,0,190600,2530,0,0,0,10,8,64,10,9,36,32,38,26,101,202,293,358,335,577,251,158,17,0,5,0,180800,2115,1721,0,0,0,0,15,28,33,24,72,197,333,627,320,72,0,394,0,0,0,5,0,41,76,83,101,43,32,5,8,0,1599,490,2115,1721,96,214,379,373,199,152,86,70,144,8,394,142,93,49,23,27,26,0,8,26,0,2115,56,0,0,0,0,48,8,59,0,0,10,17,32,0,149,35,23,17,9,65,0,231,69,15,18,34,95,0,469,153,77,96,65,78,0,470,191,148,62,53,16,0,439,299,117,23,0,0,0,242,226,16,0,0,0,0]
["Hampton","0003240","33060",14937,3468,0,0,0,0,0,0,0,0,0,24,11,42,18,175,590,616,418,667,294,368,128,94,8,15,190400,4396,0,8,0,8,8,35,41,19,19,42,36,103,47,237,787,707,503,759,330,407,153,108,8,31,180000,3468,2548,0,0,7,8,40,41,35,126,170,453,478,733,278,54,125,920,0,0,9,0,44,88,119,287,129,111,57,24,20,32,1456,470,3468,2548,178,306,545,460,292,177,162,141,270,17,920,367,162,133,68,14,66,9,47,45,9,3468,77,0,0,0,0,51,26,226,0,28,7,50,141,0,358,104,40,14,19,181,0,369,115,17,49,32,156,0,846,383,132,124,95,112,0,673,356,195,66,40,16,0,554,408,85,37,7,17,0,365,325,31,9,0,0,0]
["Hampton Falls","0003270","33460",1880,516,0,0,0,0,0,0,0,0,0,0,0,0,2,13,27,34,64,88,92,108,44,37,7,0,266300,629,0,0,0,0,0,3,0,0,0,3,2,0,2,13,27,37,68,105,122,129,54,51,13,0,272300,516,395,0,0,0,0,2,4,8,17,19,21,40,139,72,41,32,121,0,0,0,0,0,11,9,31,25,27,6,3,2,7,1740,538,516,395,22,66,55,77,44,28,23,31,49,0,121,42,26,16,13,9,4,5,4,2,0,516,4,0,0,0,0,4,0,17,0,2,0,2,13,0,42,8,9,6,4,15,0,59,22,6,5,0,26,0,104,32,11,16,15,30,0,95,32,26,12,9,16,0,110,61,27,10,2,10,0,85,72,9,4,0,0,0]
["Kensington","0003277","39780",1893,463,0,0,0,0,0,0,0,0,0,0,0,0,10,14,60,59,84,121,50,49,12,0,4,0,201900,596,0,0,0,0,0,0,0,0,3,6,0,0,12,21,70,74,98,133,72,66,17,9,7,8,205300,463,367,0,0,0,0,6,6,8,9,9,68,89,101,49,18,4,96,0,0,0,0,2,4,26,26,24,10,4,0,0,0,1468,462,463,367,29,48,62,74,46,28,19,20,41,0,96,38,14,12,6,11,3,4,4,4,0,463,8,0,0,0,0,8,0,19,0,0,3,3,13,0,49,13,6,8,1,21,0,52,9,2,10,8,23,0,122,35,29,19,17,22,0,68,31,17,13,2,5,0,100,74,22,4,0,0,0,45,41,4,0,0,0,0]
["Kingston","0003282","40100",5862,1574,0,0,0,0,0,0,0,0,19,0,9,22,104,182,373,295,133,255,136,30,8,0,8,0,156600,1823,0,10,0,0,0,0,0,10,34,21,19,32,110,202,398,339,143,294,146,30,27,0,8,0,155600,1574,1272,0,0,0,20,20,42,23,33,133,358,202,269,73,83,16,302,0,0,0,16,26,49,78,58,47,9,9,10,0,0,1259,388,1574,1272,72,109,309,274,186,82,37,131,72,0,302,99,78,88,9,9,10,0,0,9,0,1574,19,0,0,0,0,19,0,46,19,0,0,10,17,0,211,78,19,18,0,96,0,221,76,10,26,45,64,0,441,177,125,69,27,43,0,253,147,60,36,0,10,0,257,158,43,46,10,0,0,126,100,26,0,0,0,0]
["Londonderry","0003295","43220",23236,5645,0,0,0,0,0,0,10,34,58,61,76,174,229,596,1232,1016,843,747,405,130,16,10,0,8,158700,6656,16,9,0,27,26,49,52,59,104,120,226,234,291,715,1294,1108,884,824,422,162,16,10,0,8,152400,5645,4939,0,0,0,28,13,58,143,181,162,812,1169,1552,623,158,40,706,0,0,0,9,40,7,89,145,217,124,48,20,0,7,1479,529,5645,4939,266,623,1021,1052,629,521,262,216,349,0,706,237,192,82,57,31,18,33,17,39,0,5645,88,0,0,9,0,79,0,154,0,8,15,8,123,0,330,50,41,23,31,185,0,551,78,41,31,91,310,0,1619,449,336,327,316,191,0,1208,563,333,216,68,28,0,1148,752,332,39,25,0,0,547,529,18,0,0,0,0]
["New Castle","0003320","50980",1010,343,0,0,0,0,0,0,0,0,0,0,0,0,0,2,0,4,4,24,6,52,55,92,53,51,566600,381,0,0,0,0,0,0,0,0,0,0,0,0,0,2,0,4,6,26,10,58,67,98,55,55,544600,343,175,0,0,0,0,6,0,5,10,7,13,10,22,40,27,35,168,0,0,0,0,4,2,6,23,18,22,23,10,12,48,2181,739,343,175,20,16,31,25,12,16,1,21,33,0,168,66,31,14,11,16,16,0,6,8,0,343,2,0,0,0,0,2,0,20,0,2,4,0,14,0,41,2,7,4,8,20,0,40,20,0,4,6,10,0,65,36,4,2,6,17,0,39,15,6,6,8,4,0,40,25,11,4,0,0,0,96,80,6,4,4,2,0]
["Newfields","0003327","51380",1551,387,0,0,0,0,0,0,0,0,0,0,2,0,13,36,54,43,53,46,38,68,26,8,0,0,196500,463,0,0,0,0,0,0,0,0,0,2,2,1,14,47,66,46,57,59,48,74,33,12,2,0,198500,387,308,0,0,0,3,0,11,7,15,4,40,48,103,43,22,12,79,0,0,0,0,0,8,19,16,18,8,4,3,3,0,1625,478,387,308,12,32,46,83,60,29,20,13,13,0,79,29,13,16,13,0,0,2,4,2,0,387,7,0,0,0,0,7,0,11,0,2,0,3,6,0,35,10,14,0,2,9,0,37,11,5,5,4,12,0,95,33,9,21,16,16,0,89,27,34,24,4,0,0,72,32,26,10,0,4,0,41,35,6,0,0,0,0]
["Newington","0003334","51620",775,180,0,2,0,0,0,0,0,0,0,0,0,2,9,9,16,6,14,29,22,33,22,8,6,2,256800,233,0,2,0,0,0,1,0,0,0,2,0,2,9,9,18,11,16,33,30,42,28,10,13,7,272500,180,123,0,0,0,2,0,6,2,6,8,16,15,31,15,10,12,57,0,0,0,8,4,2,8,13,8,6,4,0,0,4,1616,450,180,123,6,11,23,12,14,27,4,3,23,0,57,30,7,8,0,2,4,0,0,4,2,180,9,0,0,0,0,7,2,10,2,0,2,2,4,0,24,10,0,2,5,7,0,17,6,0,0,2,9,0,44,19,4,7,9,5,0,34,14,4,3,11,2,0,30,22,4,2,2,0,0,12,12,0,0,0,0,0]
["Newmarket","0003341","52340",8027,1392,0,0,0,0,0,0,0,0,0,52,41,34,133,202,359,230,133,80,57,36,16,9,10,0,141300,1785,9,22,7,9,27,9,18,39,9,60,77,50,183,232,379,264,150,97,73,36,16,9,10,0,134300,1392,1150,0,0,0,0,23,10,109,81,93,275,211,277,36,18,17,242,0,0,0,0,9,15,54,67,49,23,8,0,9,8,1235,464,1392,1150,33,133,260,280,177,88,35,65,79,0,242,56,50,33,35,24,10,9,0,25,0,1392,8,0,0,0,0,8,0,95,0,0,7,10,78,0,189,26,35,17,19,92,0,161,66,17,43,25,10,0,451,157,139,93,44,18,0,314,175,108,24,0,7,0,115,82,16,17,0,0,0,59,59,0,0,0,0,0]
["Newton","0003369","52900",4289,1105,0,0,0,0,0,0,0,0,15,7,0,37,0,146,340,275,99,160,20,0,6,0,0,0,150700,1281,0,0,7,0,0,0,13,0,22,7,0,37,6,159,365,301,126,191,26,8,6,7,0,0,152000,1105,918,0,0,7,14,33,38,31,31,47,209,267,191,50,0,0,187,0,0,0,20,6,20,46,55,26,14,0,0,0,0,1296,403,1105,918,58,120,186,186,133,72,41,53,62,7,187,82,46,13,19,21,0,0,0,0,6,1105,20,0,0,0,0,7,13,32,0,0,14,0,18,0,117,31,19,7,7,53,0,133,44,6,16,9,58,0,383,127,106,88,42,20,0,228,130,55,29,14,0,0,169,150,19,0,0,0,0,23,23,0,0,0,0,0]
["North Hampton","0003380","54580",4259,1053,0,0,0,0,0,0,0,0,0,11,0,13,12,45,133,126,150,161,79,106,52,105,50,10,211300,1460,6,0,0,12,11,21,21,56,51,51,12,25,18,51,133,138,169,170,105,138,69,122,56,25,193300,1053,667,0,0,7,5,0,6,30,13,57,74,89,176,72,44,94,386,0,0,0,7,12,29,68,99,54,56,11,5,12,33,1643,478,1053,667,55,76,107,135,82,54,28,50,80,0,386,151,67,46,48,30,13,0,12,19,0,1053,50,0,0,0,6,44,0,23,0,0,6,0,17,0,148,28,37,25,14,44,0,106,60,0,12,7,27,0,210,116,35,16,24,19,0,174,83,52,15,11,13,0,204,89,53,32,5,25,0,138,126,6,6,0,0,0]
["Northwood","0003391","56820",3640,745,0,0,0,0,0,0,0,14,10,21,40,55,93,241,96,84,57,18,16,0,0,0,0,0,114500,1141,5,7,6,11,4,8,30,51,14,65,53,73,110,289,114,122,83,44,27,20,5,0,0,0,111500,745,586,0,4,4,14,4,12,38,58,80,182,125,58,0,3,4,159,0,0,0,10,15,16,26,37,47,5,0,0,0,3,1109,434,745,586,46,72,110,127,87,35,24,34,51,0,159,21,51,48,8,0,0,4,10,17,0,745,29,0,0,0,0,29,0,26,4,0,0,0,22,0,118,35,5,4,6,68,0,137,52,14,33,17,21,0,234,97,79,50,8,0,0,106,72,34,0,0,0,0,70,63,3,0,4,0,0,25,25,0,0,0,0,0]
["Nottingham","0003398","57460",3701,875,0,0,0,0,0,0,0,7,6,7,33,25,49,178,199,127,44,97,70,14,0,7,5,7,141600,1212,0,0,0,7,0,0,0,7,14,7,51,25,75,260,252,166,84,135,84,14,0,7,11,13,140900,875,731,0,0,0,0,22,14,24,36,73,179,177,170,26,5,5,144,0,0,0,6,0,7,26,12,24,48,7,0,7,7,1275,588,875,731,32,59,154,171,125,54,49,31,56,0,144,44,31,21,6,0,5,0,14,23,0,875,29,0,0,0,0,29,0,36,0,0,0,0,36,0,71,0,0,6,11,54,0,110,38,21,14,12,25,0,303,70,92,92,25,24,0,202,126,58,7,11,0,0,103,86,6,6,0,5,0,21,21,0,0,0,0,0]
["Plaistow","0003404","62500",7747,1857,0,0,0,0,0,0,0,0,0,0,0,44,73,314,359,425,167,233,158,75,9,0,0,0,158100,2264,0,0,0,0,0,0,0,7,25,15,11,54,73,393,428,512,185,261,183,75,26,16,0,0,156200,1857,1483,0,0,0,0,18,24,74,130,93,242,455,328,90,29,0,374,0,9,9,10,9,62,52,116,63,25,0,9,10,0,1338,431,1857,1483,116,156,336,279,171,155,78,101,91,0,374,152,52,62,9,0,27,25,9,19,19,1857,63,9,0,0,0,35,19,78,9,9,0,18,42,0,158,27,0,10,35,86,0,275,60,24,17,50,124,0,435,170,98,61,79,27,0,474,278,113,74,0,9,0,284,231,44,9,0,0,0,90,90,0,0,0,0,0]
["Portsmouth","0003415","62900",20784,3719,0,0,0,6,0,0,0,0,0,25,17,71,133,420,691,668,425,475,325,277,157,10,13,6,168600,4924,13,20,26,34,36,26,9,8,24,66,47,129,190,545,842,771,552,559,363,384,207,24,37,12,164500,3719,2532,0,0,7,27,20,81,94,129,163,523,536,591,246,74,41,1187,7,12,0,32,19,46,91,322,325,97,92,77,46,21,1354,520,3719,2532,130,326,494,536,352,165,155,161,208,5,1187,324,224,237,84,84,84,21,38,66,25,3719,120,0,0,7,19,64,30,192,6,14,20,28,124,0,418,110,50,63,45,150,0,564,230,77,43,60,154,0,965,358,213,203,50,141,0,616,352,158,60,30,16,0,575,433,108,26,8,0,0,269,246,0,14,9,0,0]
["Raymond","0003465","64020",9674,1896,0,0,0,0,0,0,0,22,11,93,90,157,231,531,431,242,43,36,0,9,0,0,0,0,116200,2725,10,16,45,38,47,41,58,124,80,175,140,211,270,552,516,271,51,63,8,9,0,0,0,0,104900,1896,1558,0,0,16,16,25,44,88,95,164,535,349,201,25,0,0,338,0,0,8,20,57,49,38,113,36,10,7,0,0,0,1155,396,1896,1558,45,161,309,391,195,98,86,131,142,0,338,115,53,47,17,25,0,8,22,41,10,1896,68,0,0,0,0,58,10,69,0,7,7,0,55,0,344,81,21,26,24,192,0,264,52,36,85,24,67,0,664,208,254,94,50,58,0,290,212,70,8,0,0,0,171,151,20,0,0,0,0,26,26,0,0,0,0,0]
["Rye","0003491","66180",5182,1506,0,0,0,0,0,0,0,0,0,6,8,17,10,47,74,67,72,214,212,234,212,165,106,62,311100,1757,0,20,10,19,0,0,0,9,0,6,8,17,10,47,74,67,80,237,239,259,236,216,127,76,313700,1506,893,0,0,0,16,17,30,32,46,26,112,144,155,117,85,113,613,0,0,11,0,34,31,19,133,89,138,26,48,14,70,1561,588,1506,893,60,102,166,140,110,68,20,33,186,8,613,254,116,44,82,25,45,17,11,19,0,1506,25,0,0,0,0,17,8,164,0,17,16,26,105,0,153,37,21,15,19,61,0,181,65,48,19,23,26,0,322,150,52,39,28,53,0,182,108,24,18,17,15,0,237,159,50,28,0,0,0,242,223,10,0,0,9,0]
["Salem","0003506","66660",28112,6730,0,0,0,19,0,0,0,9,19,24,43,98,140,757,1297,1267,933,1075,488,437,68,56,0,0,168900,8125,23,70,8,51,99,72,103,109,140,124,64,109,169,820,1439,1397,1039,1146,528,462,89,64,0,0,161900,6730,5200,0,0,22,58,78,141,154,312,242,1030,928,1470,500,174,91,1530,0,8,14,50,56,211,231,514,195,146,28,57,6,14,1402,438,6730,5200,340,790,1037,897,755,318,276,285,494,8,1530,520,392,150,120,64,91,16,42,135,0,6730,146,0,0,0,0,138,8,376,22,65,64,48,177,0,734,183,61,25,71,394,0,795,316,80,87,69,243,0,1499,496,294,291,158,260,0,1414,784,279,273,49,29,0,1217,908,217,71,14,7,0,549,520,21,8,0,0,0]
["Sandown","0003538","67620",5143,1282,6,0,0,0,0,0,0,0,0,0,15,50,34,267,353,256,139,130,19,7,6,0,0,0,144100,1521,6,0,0,0,0,0,0,7,0,31,28,80,63,267,373,283,146,168,36,20,6,0,0,7,143700,1282,1147,0,0,0,6,7,8,40,46,74,197,365,356,48,0,0,135,0,0,8,13,7,5,0,64,7,13,18,0,0,0,1384,454,1282,1147,13,161,286,236,144,87,39,77,96,8,135,49,7,20,20,7,0,0,25,0,7,1282,42,0,0,0,0,27,15,58,20,0,0,0,38,0,88,0,14,7,0,67,0,173,7,48,21,19,78,0,338,100,79,86,46,27,0,293,149,85,37,22,0,0,228,198,30,0,0,0,0,62,62,0,0,0,0,0]
["Seabrook","0003547","68260",7934,1141,0,0,0,0,0,0,0,7,0,0,0,59,32,90,160,198,89,266,66,119,9,23,23,0,181900,2155,6,14,9,24,8,46,26,97,184,95,85,96,86,129,278,258,89,321,82,151,17,23,31,0,140500,1141,767,0,0,0,0,24,39,46,102,8,136,209,149,30,7,17,374,0,0,8,24,40,74,39,93,25,15,34,15,0,7,1284,402,1141,767,46,92,146,130,89,105,56,53,50,0,374,115,77,44,24,6,22,24,15,39,8,1141,48,0,0,0,0,40,8,55,0,0,0,15,40,0,173,68,9,0,26,70,0,159,30,30,22,31,46,0,347,194,40,48,39,26,0,175,92,59,8,9,7,0,147,99,16,17,7,8,0,37,37,0,0,0,0,0]
["South Hampton","0003562","71140",844,190,0,2,0,0,0,0,0,0,2,0,2,6,0,10,11,30,24,39,32,22,6,4,0,0,210300,272,0,2,0,0,0,0,0,0,2,0,2,6,0,10,15,41,29,49,49,32,15,16,2,2,229600,190,127,0,0,0,2,2,4,6,6,12,14,30,31,16,0,4,63,0,0,2,4,2,9,5,12,10,11,4,2,0,2,1396,479,190,127,12,18,32,9,26,10,6,6,8,0,63,20,9,10,13,0,5,0,2,4,0,190,2,0,0,0,0,2,0,14,0,6,0,0,8,0,24,4,7,2,5,6,0,22,16,0,2,4,0,0,40,19,3,10,2,6,0,40,24,0,8,4,4,0,32,22,6,4,0,0,0,16,16,0,0,0,0,0]
["Stratham","0003569","74340",6355,1624,0,0,0,0,0,0,0,0,0,7,18,14,18,93,145,226,244,325,232,188,70,44,0,0,207200,2056,0,0,0,0,0,0,0,0,0,14,18,22,42,195,251,244,276,364,257,227,86,60,0,0,196900,1624,1371,0,9,0,10,0,15,23,40,82,170,304,310,250,85,73,253,0,0,0,0,0,23,54,69,38,18,24,9,0,18,1542,472,1624,1371,64,240,301,177,256,96,34,70,125,8,253,113,36,0,51,23,16,0,0,14,0,1624,15,0,0,0,0,7,8,78,0,0,23,7,48,0,143,9,43,16,9,66,0,139,8,16,7,38,70,0,291,60,67,81,40,43,0,348,174,62,94,9,9,0,348,247,34,58,9,0,0,262,256,6,0,0,0,0]
["Windham","0003578","85780",10709,3130,0,0,0,0,0,0,0,0,0,9,0,37,17,139,203,351,415,655,433,455,226,140,27,23,230100,3350,0,0,9,0,0,0,0,0,0,9,6,37,17,148,229,363,461,674,466,481,232,161,34,23,229400,3130,2633,0,0,0,0,8,49,24,30,104,297,478,722,447,256,218,497,0,0,0,0,15,58,40,122,75,58,55,15,8,51,1681,518,3130,2633,195,411,628,507,337,193,111,77,174,0,497,235,81,26,34,15,23,29,16,38,0,3130,25,0,0,0,0,25,0,107,0,8,7,8,84,0,127,0,26,22,0,79,0,235,82,26,17,56,54,0,482,127,86,66,72,131,0,610,286,142,93,52,37,0,879,559,163,112,20,25,0,665,522,90,35,8,10,0]
[]
[]
[]
[]
[]
[]
[]
[]
[]
[]
[]
["Census 2000 SummaryFile3 Sample Data  -  SF3TownQry9HHIncomeByTenure"]
[]
["TOWN_NAME","LOGRECNO","COUSUB","NAME","COUNTY","TotalPop","HCT11OccHU","HCT11OwnOccHU","HCT11OOHUInc<5K","HCT11OOHUInc5to10K","HCT11OOHUInc10to15K","HCT11OOHUInc15to20K","HCT11OOHUInc20to25K","HCT11OOHUInc25to35K","HCT11OOHUInc35to50K","HCT11OOHUInc50to75K","HCT11OOHUInc75to100K","HCT11OOHUInc100to150K","HCT11OOHUInc>150K","HCT11RentOccHU","HCT11ROHUInc<5K","HCT11ROHUInc5to10K","HCT11ROHUInc10to15K","HCT11ROHUInc15to20K","HCT11ROHUInc20to25K","HCT11ROHUInc25to35K","HCT11ROHUInc35to50K","HCT11ROHUInc50to75K","HCT11ROHUInc75to100K","HCT11ROHUInc100to150K","HCT11ROHUInc>150K","HCT12MedHHInc","HCT12MedOwnOccHHInc","HCT12MedRentOccHHInc","SummaryLevel"]
["Atkinson","0003039","02340","Atkinson town","015",6178,2317,2060,9,28,60,9,44,107,307,471,382,423,220,257,20,28,19,29,48,19,37,16,6,27,8,69552,74716,23708,"060"]
["Auburn","0003046","02820","Auburn town","015",4682,1580,1461,22,12,31,16,34,78,149,409,355,219,136,119,19,0,0,12,0,21,42,25,0,0,0,71352,74014,41875,"060"]
["Brentwood","0003056","07220","Brentwood town","015",3197,911,848,0,26,29,20,17,65,118,192,215,104,62,63,6,0,0,6,0,11,17,5,5,6,7,68750,70000,41458,"060"]
["Candia","0003063","09300","Candia town","015",3911,1359,1254,6,20,19,39,67,83,218,315,254,170,63,105,0,0,7,0,6,16,26,44,0,6,0,60599,62214,49107,"060"]
["Chester","0003071","12100","Chester town","015",3792,1214,1129,27,11,28,20,37,78,125,252,260,219,72,85,5,5,9,5,10,14,21,10,6,0,0,67727,71375,32250,"060"]
["Danville","0003079","17140","Danville town","015",4023,1428,1302,22,16,13,28,40,94,258,411,252,141,27,126,0,9,0,7,0,7,46,57,0,0,0,57386,61094,45833,"060",null,null,null,null,null,null,null,null,null,null,null,null,null,null,null,null,null,null,null,null,null,null,null,null,null,null,null,null,null,null,null,null,null,null,null,null,null,null,null,null,null,null,null,null,null,null,null,null,null,null,null,null,null,null,null,null,null,null,null,null,null,null,null,"PCT026097","PCT026098","PCT026099","PCT026100","PCT026101","CNTY_NAME"]
["Deerfield","0003086","17460","Deerfield town","015",3678,1225,1096,5,22,5,28,40,73,155,327,203,160,78,129,9,9,0,9,18,24,41,19,0,0,0,61422,65179,34531,"060",null,null,null,null,null,null,null,null,null,null,null,null,null,null,null,null,null,null,null,null,null,null,null,null,null,null,null,null,null,null,null,null,null,null,null,null,null,null,null,null,null,null,null,null,null,null,null,null,null,null,null,null,null,null,null,null,null,null,null,null,null,null,null,0,0,0,0,0,"Coos"]
["Derry","0003092","17940","Derry town","015",34021,12327,7977,72,104,143,183,314,658,1208,2244,1689,1026,336,4350,106,247,259,289,266,829,864,1025,285,151,29,53919,63438,37319,"060",null,null,null,null,null,null,null,null,null,null,null,null,null,null,null,null,null,null,null,null,null,null,null,null,null,null,null,null,null,null,null,null,null,null,null,null,null,null,null,null,null,null,null,null,null,null,null,null,null,null,null,null,null,null,null,null,null,null,null,null,null,null,null,0,0,0,0,0,"Coos"]
["East Kingston","0003147","21380","East Kingston town","015",1784,629,576,2,8,13,3,16,36,91,154,91,124,38,53,0,6,7,0,0,10,10,14,2,4,0,65739,68438,36750,"060",null,null,null,null,null,null,null,null,null,null,null,null,null,null,null,null,null,null,null,null,null,null,null,null,null,null,null,null,null,null,null,null,null,null,null,null,null,null,null,null,null,null,null,null,null,null,null,null,null,null,null,null,null,null,null,null,null,null,null,null,null,null,null,0,0,0,0,0,"Coos"]
["Epping","0003154","24660","Epping town","015",5476,2047,1574,0,30,44,85,73,132,292,484,237,172,25,473,0,38,53,43,52,85,82,84,20,16,0,50382,55719,30511,"060",null,null,null,null,null,null,null,null,null,null,null,null,null,null,null,null,null,null,null,null,null,null,null,null,null,null,null,null,null,null,null,null,null,null,null,null,null,null,null,null,null,null,null,null,null,null,null,null,null,null,null,null,null,null,null,null,null,null,null,null,null,null,null,129,324,94,230,647,"Coos"]
["Exeter","0003174","25380","Exeter town","015",14058,5898,3978,43,74,123,250,145,318,656,937,591,522,319,1920,103,144,167,143,109,280,428,368,102,52,24,49497,57208,35398,"060",null,null,null,null,null,null,null,null,null,null,null,null,null,null,null,null,null,null,null,null,null,null,null,null,null,null,null,null,null,null,null,null,null,null,null,null,null,null,null,null,null,null,null,null,null,null,null,null,null,null,null,null,null,null,null,null,null,null,null,null,null,null,null,0,0,0,0,0,"Coos"]
["Fremont","0003213","27940","Fremont town","015",3510,1165,1031,20,19,16,8,27,72,141,347,192,141,48,134,0,5,5,0,0,32,40,30,10,7,5,62319,64654,46667,"060",null,null,null,null,null,null,null,null,null,null,null,null,null,null,null,null,null,null,null,null,null,null,null,null,null,null,null,null,null,null,null,null,null,null,null,null,null,null,null,null,null,null,null,null,null,null,null,null,null,null,null,null,null,null,null,null,null,null,null,null,null,null,null,0,14,6,8,29,"Coos"]
["Greenland","0003220","31700","Greenland town","015",3208,1204,978,12,29,35,32,6,67,107,264,181,167,78,226,0,7,7,0,19,21,65,62,6,27,12,61786,64419,48929,"060",null,null,null,null,null,null,null,null,null,null,null,null,null,null,null,null,null,null,null,null,null,null,null,null,null,null,null,null,null,null,null,null,null,null,null,null,null,null,null,null,null,null,null,null,null,null,null,null,null,null,null,null,null,null,null,null,null,null,null,null,null,null,null,0,0,0,0,0,"Coos"]
["Hampstead","0003229","32900","Hampstead town","015",8297,3044,2530,15,41,64,92,50,165,321,501,533,497,251,514,10,31,28,39,44,77,119,90,17,59,0,68550,75656,37750,"060",null,null,null,null,null,null,null,null,null,null,null,null,null,null,null,null,null,null,null,null,null,null,null,null,null,null,null,null,null,null,null,null,null,null,null,null,null,null,null,null,null,null,null,null,null,null,null,null,null,null,null,null,null,null,null,null,null,null,null,null,null,null,null,0,3,3,0,10,"Coos"]
["Hampton","0003240","33060","Hampton town","015",14937,6465,4396,57,52,130,168,140,321,615,1044,826,616,427,2069,44,192,138,180,164,276,404,394,138,130,9,53997,67967,36315,"060",null,null,null,null,null,null,null,null,null,null,null,null,null,null,null,null,null,null,null,null,null,null,null,null,null,null,null,null,null,null,null,null,null,null,null,null,null,null,null,null,null,null,null,null,null,null,null,null,null,null,null,null,null,null,null,null,null,null,null,null,null,null,null,2,60,8,52,109,"Coos"]
["Hampton Falls","0003270","33460","Hampton Falls town","015",1880,704,629,5,8,9,13,21,39,63,123,119,128,101,75,2,6,0,4,2,16,17,11,9,2,6,77746,83839,38472,"060",null,null,null,null,null,null,null,null,null,null,null,null,null,null,null,null,null,null,null,null,null,null,null,null,null,null,null,null,null,null,null,null,null,null,null,null,null,null,null,null,null,null,null,null,null,null,null,null,null,null,null,null,null,null,null,null,null,null,null,null,null,null,null,3,4,0,4,32,"Coos"]
["Kensington","0003277","39780","Kensington town","015",1893,656,596,8,5,15,10,24,42,65,147,79,125,76,60,2,7,3,0,0,16,12,13,4,0,3,70089,72083,36250,"060",null,null,null,null,null,null,null,null,null,null,null,null,null,null,null,null,null,null,null,null,null,null,null,null,null,null,null,null,null,null,null,null,null,null,null,null,null,null,null,null,null,null,null,null,null,null,null,null,null,null,null,null,null,null,null,null,null,null,null,null,null,null,null,0,0,0,0,0,"Coos"]
["Kingston","0003282","40100","Kingston town","015",5862,2122,1823,9,20,29,38,58,207,265,459,296,292,150,299,17,24,30,26,9,26,60,73,17,17,0,60700,64182,40966,"060",null,null,null,null,null,null,null,null,null,null,null,null,null,null,null,null,null,null,null,null,null,null,null,null,null,null,null,null,null,null,null,null,null,null,null,null,null,null,null,null,null,null,null,null,null,null,null,null,null,null,null,null,null,null,null,null,null,null,null,null,null,null,null,0,0,0,0,0,"Coos"]
["Londonderry","0003295","43220","Londonderry town","015",23236,7623,6656,40,107,108,129,177,373,721,1835,1331,1221,614,967,33,32,46,39,61,106,211,186,145,55,53,70171,72775,47730,"060",null,null,null,null,null,null,null,null,null,null,null,null,null,null,null,null,null,null,null,null,null,null,null,null,null,null,null,null,null,null,null,null,null,null,null,null,null,null,null,null,null,null,null,null,null,null,null,null,null,null,null,null,null,null,null,null,null,null,null,null,null,null,null,2,25,6,19,33,"Coos"]
["New Castle","0003320","50980","New Castle town","015",1010,444,381,2,2,4,16,8,35,50,67,41,56,100,63,0,0,0,0,2,8,7,13,11,13,9,79418,78555,82403,"060",null,null,null,null,null,null,null,null,null,null,null,null,null,null,null,null,null,null,null,null,null,null,null,null,null,null,null,null,null,null,null,null,null,null,null,null,null,null,null,null,null,null,null,null,null,null,null,null,null,null,null,null,null,null,null,null,null,null,null,null,null,null,null,0,0,0,0,0,"Coos"]
["Newfields","0003327","51380","Newfields town","015",1551,516,463,2,5,4,15,16,27,48,108,101,83,54,53,3,0,0,7,0,5,9,26,3,0,0,70227,76079,52750,"060",null,null,null,null,null,null,null,null,null,null,null,null,null,null,null,null,null,null,null,null,null,null,null,null,null,null,null,null,null,null,null,null,null,null,null,null,null,null,null,null,null,null,null,null,null,null,null,null,null,null,null,null,null,null,null,null,null,null,null,null,null,null,null,0,0,0,0,0,"Coos"]
["Newington","0003334","51620","Newington town","015",775,294,233,4,5,8,4,4,22,26,50,50,44,16,61,2,3,5,2,6,5,18,14,2,2,2,60000,70250,41146,"060",null,null,null,null,null,null,null,null,null,null,null,null,null,null,null,null,null,null,null,null,null,null,null,null,null,null,null,null,null,null,null,null,null,null,null,null,null,null,null,null,null,null,null,null,null,null,null,null,null,null,null,null,null,null,null,null,null,null,null,null,null,null,null,0,5,3,2,14,"Coos"]
["Newmarket","0003341","52340","Newmarket town","015",8027,3379,1785,0,26,79,81,79,195,271,487,349,144,74,1594,42,143,147,111,173,175,331,354,68,43,7,46178,60443,35156,"060",null,null,null,null,null,null,null,null,null,null,null,null,null,null,null,null,null,null,null,null,null,null,null,null,null,null,null,null,null,null,null,null,null,null,null,null,null,null,null,null,null,null,null,null,null,null,null,null,null,null,null,null,null,null,null,null,null,null,null,null,null,null,null,0,2,0,2,31,"Coos"]
["Newton","0003369","52900","Newton town","015",4289,1518,1281,19,7,12,20,61,99,170,405,268,197,23,237,14,7,26,26,33,33,52,26,13,0,7,60720,64870,26953,"060",null,null,null,null,null,null,null,null,null,null,null,null,null,null,null,null,null,null,null,null,null,null,null,null,null,null,null,null,null,null,null,null,null,null,null,null,null,null,null,null,null,null,null,null,null,null,null,null,null,null,null,null,null,null,null,null,null,null,null,null,null,null,null,0,0,0,0,0,"Coos"]
["North Hampton","0003380",54580,"North Hampton town","015",4259,1671,1460,28,55,23,17,87,124,155,328,214,251,178,211,7,9,8,0,0,32,45,78,8,8,16,66065,69245,51125,"060",null,null,null,null,null,null,null,null,null,null,null,null,null,null,null,null,null,null,null,null,null,null,null,null,null,null,null,null,null,null,null,null,null,null,null,null,null,null,null,null,null,null,null,null,null,null,null,null,null,null,null,null,null,null,null,null,null,null,null,null,null,null,null,0,94,34,60,166,"Coos"]
["Northwood","0003391","56820","Northwood town","015",3640,1347,1141,17,35,37,22,58,128,222,340,140,109,33,206,18,8,7,0,51,34,40,24,14,10,0,49602,52831,31125,"060",null,null,null,null,null,null,null,null,null,null,null,null,null,null,null,null,null,null,null,null,null,null,null,null,null,null,null,null,null,null,null,null,null,null,null,null,null,null,null,null,null,null,null,null,null,null,null,null,null,null,null,null,null,null,null,null,null,null,null,null,null,null,null,0,0,0,0,0,"Coos"]
["Nottingham","0003398","57460","Nottingham town","015",3701,1331,1212,7,29,16,28,57,75,170,397,244,156,33,119,13,0,9,0,15,19,33,22,0,8,0,62375,64694,35729,"060",null,null,null,null,null,null,null,null,null,null,null,null,null,null,null,null,null,null,null,null,null,null,null,null,null,null,null,null,null,null,null,null,null,null,null,null,null,null,null,null,null,null,null,null,null,null,null,null,null,null,null,null,null,null,null,null,null,null,null,null,null,null,null,0,0,0,0,0,"Coos"]
["Plaistow","0003404","62500","Plaistow town","015",7747,2871,2264,35,53,36,61,67,140,346,539,527,351,109,607,18,30,39,17,47,145,57,143,68,29,14,61978,65147,35987,"060"]
["Portsmouth","0003415","62900","Portsmouth city","015",20784,9874,4924,101,116,133,232,231,436,715,1239,727,655,339,4950,248,430,451,294,299,720,903,940,436,169,60,45344,60477,35503,"060"]
["Raymond","0003465","64020","Raymond town","015",9674,3493,2725,90,86,71,75,109,374,462,882,338,212,26,768,10,67,39,30,58,156,155,177,55,21,0,49085,51521,36304,"060"]
["Rye","0003491","66180","Rye town","015",5182,2176,1757,8,27,112,91,62,119,229,348,219,283,259,419,0,19,47,34,22,64,57,96,34,21,25,60370,67072,41152,"060"]
["Salem","0003506","66660","Salem town","015",28112,10402,8125,44,146,259,345,339,606,1084,1766,1546,1360,630,2277,82,93,175,133,236,336,428,506,136,76,76,57678,65299,36401,"060"]
["Sandown","0003538","67620","Sandown town","015",5143,1694,1521,23,19,23,35,13,90,203,417,335,267,96,173,4,5,12,16,14,14,55,32,6,5,10,67500,70039,41058,"060"]
["Seabrook","0003547","68260","Seabrook town","015",7934,3425,2155,33,125,136,94,71,283,413,534,246,175,45,1270,49,86,65,129,60,220,280,280,78,23,0,42582,45768,36327,"060"]
["South Hampton","0003562","71140","South Hampton town","015",844,302,272,2,2,8,14,10,21,34,56,51,50,24,30,0,4,0,2,3,9,2,3,4,3,0,64500,70000,32500,"060"]
["Stratham","0003569","74340","Stratham town","015",6355,2306,2056,15,0,36,71,48,142,238,379,401,418,308,250,0,0,25,18,9,14,66,52,49,0,17,76693,80420,48906,"060"]
["Windham","0003578","85780","Windham town","015",10709,3568,3350,7,31,62,61,21,115,266,533,641,913,700,218,7,0,0,21,22,23,53,27,17,22,26,94735,97208,47045,"060"]
[]
[]
[]
[]
[]
[]
[]
[null,null,null,null,null,null,null,null,null,null,null,null,null,null,null,null,null,null,null,null,null,null,null,null,null,null,null,null,null,null,null,null,null,null,null,null,null,null,null,null,null,null,null,null,null,null,null,null,null,null,null,null,null,null,null,null,null,null,null,null,null,null,null,null,null,null,null,null,null,null,null,null,null,null,null,null,null,null,null,null,null,null,null,null,null,null,null,null,null,null,null,null,null,null,null,null,null,null,null,null,0,7,3,4,28,"Coos"]
[null,null,null,null,null,null,null,null,null,null,null,null,null,null,null,null,null,null,null,null,null,null,null,null,null,null,null,null,null,null,null,null,null,null,null,null,null,null,null,null,null,null,null,null,null,null,null,null,null,null,null,null,null,null,null,null,null,null,null,null,null,null,null,null,null,null,null,null,null,null,null,null,null,null,null,null,null,null,null,null,null,null,null,null,null,null,null,null,null,null,null,null,null,null,null,null,null,null,null,null,3,20,7,13,29,"Coos"]
[null,null,null,null,null,null,null,null,null,null,null,null,null,null,null,null,null,null,null,null,null,null,null,null,null,null,null,null,null,null,null,null,null,null,null,null,null,null,null,null,null,null,null,null,null,null,null,null,null,null,null,null,null,null,null,null,null,null,null,null,null,null,null,null,null,null,null,null,null,null,null,null,null,null,null,null,null,null,null,null,null,null,null,null,null,null,null,null,null,null,null,null,null,null,null,null,null,null,null,null,0,0,0,0,0,"Coos"]
[null,null,null,null,null,null,null,null,null,null,null,null,null,null,null,null,null,null,null,null,null,null,null,null,null,null,null,null,null,null,null,null,null,null,null,null,null,null,null,null,null,null,null,null,null,null,null,null,null,null,null,null,null,null,null,null,null,null,null,null,null,null,null,null,null,null,null,null,null,null,null,null,null,null,null,null,null,null,null,null,null,null,null,null,null,null,null,null,null,null,null,null,null,null,null,null,null,null,null,null,0,0,0,0,0,"Coos"]
["Census 2000 SummaryFile3 Sample Data - SF3TownQry10aDisabil",null,null,null,null,null,null,null,null,null,null,null,null,null,null,null,null,null,null,null,null,null,null,null,null,null,null,null,null,null,null,null,null,null,null,null,null,null,null,null,null,null,null,null,null,null,null,null,null,null,null,null,null,null,null,null,null,null,null,null,null,null,null,null,null,null,null,null,null,null,null,null,null,null,null,null,null,null,null,null,null,null,null,null,null,null,null,null,null,null,null,null,null,null,null,null,null,null,null,null,0,0,0,0,0,"Coos"]
[null,null,null,null,null,null,null,null,null,null,null,null,null,null,null,null,null,null,null,null,null,null,null,null,null,null,null,null,null,null,null,null,null,null,null,null,null,null,null,null,null,null,null,null,null,null,null,null,null,null,null,null,null,null,null,null,null,null,null,null,null,null,null,null,null,null,null,null,null,null,null,null,null,null,null,null,null,null,null,null,null,null,null,null,null,null,null,null,null,null,null,null,null,null,null,null,null,null,null,null,2,38,9,29,98,"Coos"]
["TOWN_NAME","LOGRECNO","COUSUB","TotalPop","PCT026001","PCT026002","PCT026003","PCT026004","PCT026005","PCT026006","PCT026007","PCT026008","PCT026009","PCT026010","PCT026011","PCT026012","PCT026013","PCT026014","PCT026015","PCT026016","PCT026017","PCT026018","PCT026019","PCT026020","PCT026021","PCT026022","PCT026023","PCT026024","PCT026025","PCT026026","PCT026027","PCT026028","PCT026029","PCT026030","PCT026031","PCT026032","PCT026033","PCT026034","PCT026035","PCT026036","PCT026037","PCT026038","PCT026039","PCT026040","PCT026041","PCT026042","PCT026043","PCT026044","PCT026045","PCT026046","PCT026047","PCT026048","PCT026049","PCT026050","PCT026051","PCT026052","PCT026053","PCT026054","PCT026055","PCT026056","PCT026057","PCT026058","PCT026059","PCT026060","PCT026061","PCT026062","PCT026063","PCT026064","PCT026065","PCT026066","PCT026067","PCT026068","PCT026069","PCT026070","PCT026071","PCT026072","PCT026073","PCT026074","PCT026075","PCT026076","PCT026077","PCT026078","PCT026079","PCT026080","PCT026081","PCT026082","PCT026083","PCT026084","PCT026085","PCT026086","PCT026087","PCT026088","PCT026089","PCT026090","PCT026091","PCT026092","PCT026093","PCT026094","PCT026095","PCT026096","PCT026097","PCT026098","PCT026099","PCT026100","PCT026101"]
["Atkinson","0003039","02340",6178,5767,2833,434,9,0,0,9,0,10,10,0,415,173,20,0,10,0,0,0,10,6,0,6,0,6,147,1891,233,43,13,33,0,0,144,64,14,50,27,23,1594,335,79,51,19,9,0,0,15,0,15,241,2934,531,0,0,0,0,0,8,8,0,523,124,7,0,0,0,0,0,7,0,0,0,0,0,117,1917,150,7,16,0,7,16,104,66,26,40,7,33,1701,362,16,7,9,0,0,0,63,19,44,283]
["Auburn","0003046","02820",4682,4347,2204,463,47,0,7,40,0,0,0,0,416,117,0,0,0,0,0,0,0,0,0,0,0,0,117,1481,141,34,9,0,0,8,90,88,5,83,25,58,1252,143,36,14,15,0,0,7,0,0,0,107,2143,428,0,0,0,0,0,0,0,0,428,149,45,6,0,0,0,14,25,5,0,5,5,0,99,1424,146,25,15,7,0,8,91,45,6,39,17,22,1233,142,13,0,0,0,0,13,57,24,33,72]
["Brentwood","0003056","07220",3197,2517,1206,239,14,3,0,11,0,8,3,5,217,77,22,0,0,22,0,0,0,5,5,0,0,0,50,791,29,10,9,3,0,0,7,28,11,17,7,10,734,99,14,9,5,0,0,0,9,0,9,76,1311,247,4,0,0,4,0,4,4,0,239,77,8,0,0,4,0,0,4,0,0,0,0,0,69,833,27,0,4,3,8,0,12,39,11,28,0,28,767,154,29,16,13,0,0,0,25,14,11,100]
["Candia","0003063","09300",3911,3640,1832,318,32,0,0,32,0,8,8,0,278,117,10,0,0,10,0,0,0,0,0,0,0,0,107,1265,107,42,10,5,0,0,50,42,12,30,18,12,1116,132,21,6,10,0,0,5,20,0,20,91,1808,324,4,0,0,4,0,14,5,9,306,109,0,0,0,0,0,0,0,0,0,0,0,0,109,1226,92,6,39,15,0,0,32,69,20,49,0,49,1065,149,26,4,8,8,0,6,20,0,20,103]
["Chester","0003071","12100",3792,3478,1726,380,32,13,0,19,0,5,0,5,343,131,28,0,0,13,0,0,15,0,0,0,0,0,103,1113,158,9,30,14,0,0,105,52,18,34,8,26,903,102,30,12,18,0,0,0,12,0,12,60,1752,347,20,0,0,20,0,0,0,0,327,127,10,0,0,6,0,0,4,0,0,0,0,0,117,1151,99,0,18,6,0,0,75,40,9,31,4,27,1012,127,12,0,8,0,0,4,47,26,21,68]
["Danville","0003079","17140",4023,3704,1870,409,21,0,0,21,0,6,6,0,382,62,8,0,0,0,0,0,8,0,0,0,0,0,54,1262,155,19,19,0,0,0,117,55,22,33,0,33,1052,137,32,7,20,0,0,5,5,0,5,100,1834,383,22,0,0,22,0,0,0,0,361,80,7,0,0,0,0,0,7,8,0,8,0,8,65,1221,128,10,27,29,0,0,62,52,20,32,5,27,1041,150,17,9,8,0,0,0,30,6,24,103]
["Deerfield","0003086","17460",3678,3410,1683,370,37,0,10,27,0,5,5,0,328,119,0,0,0,0,0,0,0,14,0,14,0,14,105,1076,98,18,28,14,0,0,38,49,22,27,11,16,929,118,5,5,0,0,0,0,3,0,3,110,1727,340,13,7,6,0,0,0,0,0,327,119,8,0,0,0,0,0,8,0,0,0,0,0,111,1136,83,15,15,4,0,0,49,88,32,56,27,29,965,132,9,4,5,0,0,0,33,27,6,90]
["Derry","0003092","17940",34021,31415,15567,3391,206,10,0,196,0,32,32,0,3153,1110,121,0,0,60,0,18,43,112,0,112,28,84,877,10209,847,99,188,87,0,19,454,553,115,438,196,242,8809,857,231,64,106,6,0,55,108,40,68,518,15848,3355,216,7,0,209,0,37,37,0,3102,1043,79,0,17,28,0,0,34,36,10,26,0,26,928,10334,761,37,247,39,0,7,431,575,108,467,71,396,8998,1116,248,51,75,0,0,122,202,78,124,666]
["East Kingston","0003147","21380",1784,1670,813,155,9,4,0,5,0,0,0,0,146,45,0,0,0,0,0,0,0,4,2,2,0,2,41,561,36,6,8,4,0,0,18,23,9,14,0,14,502,52,7,0,5,0,0,2,4,0,4,41,857,176,2,0,0,2,0,2,0,2,172,43,2,0,0,0,0,2,0,0,0,0,0,0,41,564,25,0,6,6,0,5,8,23,2,21,10,11,516,74,10,0,4,0,0,6,10,7,3,54]
["Epping","0003154","24660",5476,5085,2504,448,10,0,0,10,0,2,2,0,436,190,21,11,0,10,0,0,0,5,0,5,5,0,164,1636,151,37,25,5,0,0,84,109,27,82,27,55,1376,230,50,17,33,0,0,0,62,28,34,118,2581,458,19,8,0,11,0,0,0,0,439,158,0,0,0,0,0,0,0,0,0,0,0,0,158,1685,145,18,55,4,0,0,68,80,24,56,10,46,1460,280,91,25,62,0,0,4,71,22,49,118]
["Exeter","0003174","25380",14058,12985,6136,1097,65,0,0,65,0,11,0,11,1021,370,41,0,0,19,0,0,22,21,7,14,0,14,308,3820,293,63,42,32,0,0,156,281,63,218,119,99,3246,849,223,66,111,0,0,46,113,76,37,513,6849,1044,14,0,7,7,0,22,22,0,1008,390,19,0,0,13,0,0,6,0,0,0,0,0,371,4126,285,28,7,53,0,14,183,203,33,170,32,138,3638,1289,236,60,88,27,9,52,248,127,121,805]
["Fremont","0003213","27940",3510,3167,1578,312,25,16,0,9,0,11,7,4,276,83,0,0,0,0,0,0,0,3,0,3,0,3,80,1068,75,9,20,9,0,0,37,72,5,67,27,40,921,115,9,4,0,0,0,5,26,5,21,80,1589,314,4,0,0,4,0,0,0,0,310,85,0,0,0,0,0,0,0,0,0,0,0,0,85,1083,57,14,13,4,0,3,23,51,7,44,22,22,975,107,23,11,9,0,0,3,24,16,8,60]
["Greenland","0003220","31700",3208,2978,1451,285,10,4,0,6,0,0,0,0,275,82,4,4,0,0,0,0,0,0,0,0,0,0,78,933,42,6,19,6,0,0,11,25,6,19,0,19,866,151,34,5,29,0,0,0,27,4,23,90,1527,251,7,0,0,7,0,0,0,0,244,81,0,0,0,0,0,0,0,0,0,0,0,0,81,1010,76,21,5,7,0,0,43,21,4,17,0,17,913,185,20,4,4,8,0,4,47,31,16,118]
["Hampstead","0003229","32900",8297,7798,3814,857,42,0,0,42,0,0,0,0,815,222,0,0,0,0,0,0,0,24,9,15,0,15,198,2375,70,30,11,0,0,4,25,108,32,76,15,61,2197,360,37,19,18,0,0,0,40,23,17,283,3984,808,12,0,0,12,0,0,0,0,796,182,0,0,0,0,0,0,0,6,0,6,6,0,176,2577,109,0,0,17,0,5,87,92,8,84,42,42,2376,417,88,26,58,0,0,4,60,23,37,269]
["Hampton","0003240","33060",14937,13930,6808,1073,62,0,0,62,0,0,0,0,1011,302,4,0,0,0,0,4,0,0,0,0,0,0,298,4467,450,15,88,21,0,47,279,221,32,189,63,126,3796,966,191,68,66,25,0,32,138,54,84,637,7122,969,35,17,0,18,0,18,10,8,916,365,49,21,0,0,0,10,18,17,6,11,0,11,299,4671,562,11,96,13,0,69,373,277,54,223,48,175,3832,1117,194,40,110,0,0,44,200,37,163,723]
["Hampton Falls","0003270","33460",1880,1752,891,181,4,0,0,4,0,2,2,0,175,44,5,0,0,2,0,0,3,0,0,0,0,0,39,547,61,4,5,0,0,0,52,21,2,19,9,10,465,119,26,12,8,4,0,2,11,3,8,82,861,135,0,0,0,0,0,0,0,0,135,40,9,0,0,6,0,0,3,2,0,2,2,0,29,563,47,2,4,0,0,7,34,29,7,22,11,11,487,123,13,6,7,0,0,0,14,8,6,96]
["Kensington","0003277","39780",1893,1741,861,158,12,0,0,12,0,0,0,0,146,55,3,0,0,3,0,0,0,2,2,0,0,0,50,561,58,6,15,3,0,2,32,22,2,20,2,18,481,87,20,7,10,0,0,3,12,5,7,55,880,174,10,0,2,8,0,0,0,0,164,48,3,0,3,0,0,0,0,0,0,0,0,0,45,571,33,4,11,0,2,0,16,18,4,14,0,14,520,87,7,2,5,0,0,0,11,11,0,69]
["Kingston","0003282","40100",5862,5501,2763,513,0,0,0,0,0,0,0,0,513,155,28,0,0,0,0,0,28,0,0,0,0,0,127,1874,175,27,22,29,0,0,97,136,19,117,18,99,1563,221,29,0,29,0,0,0,23,12,11,169,2738,466,17,0,0,17,0,0,0,0,449,167,0,0,0,0,0,0,0,0,0,0,0,0,167,1809,122,26,10,16,0,9,61,82,10,72,10,62,1605,296,17,0,9,0,0,8,50,50,0,229]
["Londonderry","0003295","43220",23236,21487,10526,2448,197,6,0,191,0,34,17,17,2217,960,91,0,12,63,0,0,16,30,0,30,11,19,839,6577,572,58,75,72,7,0,360,230,32,198,54,144,5775,541,77,25,44,0,0,8,106,24,82,358,10961,2501,115,31,17,67,0,15,0,15,2371,834,58,13,6,18,0,0,21,56,0,56,17,39,720,6941,576,70,164,76,0,22,244,300,69,231,72,159,6065,685,124,20,71,0,0,33,197,104,93,364]
["New Castle","0003320","50980",1010,956,450,68,7,0,0,7,0,0,0,0,61,21,3,0,3,0,0,0,0,0,0,0,0,0,18,244,10,2,3,0,0,0,5,8,2,6,0,6,226,117,9,2,6,0,0,1,15,4,11,93,506,87,5,0,2,3,0,0,0,0,82,31,0,0,0,0,0,0,0,0,0,0,0,0,31,270,9,6,0,0,0,0,3,2,0,2,0,2,259,118,18,4,7,2,0,5,20,9,11,80]
["Newfields","0003327","51380",1551,1405,690,159,9,0,0,9,0,5,5,0,145,35,2,0,0,2,0,0,0,0,0,0,0,0,33,441,31,4,3,2,0,3,19,20,2,18,9,9,390,55,6,4,0,2,0,0,8,6,2,41,715,154,0,0,0,0,0,0,0,0,154,45,3,0,0,0,0,0,3,3,0,3,3,0,39,454,30,0,7,7,0,1,15,11,2,9,4,5,413,62,18,0,16,0,0,2,11,6,5,33]
["Newington","0003334","51620",775,736,346,52,3,0,0,3,0,0,0,0,49,20,8,0,0,3,0,3,2,0,0,0,0,0,12,242,19,9,4,2,0,0,4,18,3,15,3,12,205,32,2,0,2,0,0,0,8,2,6,22,390,70,0,0,0,0,0,0,0,0,70,12,0,0,0,0,0,0,0,0,0,0,0,0,12,264,19,7,4,0,0,0,8,16,2,14,4,10,229,44,10,2,8,0,0,0,12,7,5,22]
["Newmarket","0003341","52340",8027,7487,3669,549,37,0,0,37,0,0,0,0,512,277,43,0,0,11,0,0,32,0,0,0,0,0,234,2568,292,42,52,24,0,8,166,110,25,85,10,75,2166,275,57,8,25,8,0,16,76,8,68,142,3818,539,67,19,0,40,8,0,0,0,472,215,18,7,0,0,0,0,11,0,0,0,0,0,197,2667,267,23,76,25,0,0,143,63,11,52,23,29,2337,397,72,8,48,0,0,16,83,35,48,242]
["Newton","0003369","52900",4289,3974,1986,414,24,0,6,18,0,13,13,0,377,136,25,0,0,15,0,0,10,0,0,0,0,0,111,1304,166,8,41,0,0,0,117,74,14,60,25,35,1064,132,29,14,15,0,0,0,48,30,18,55,1988,372,0,0,0,0,0,14,7,7,358,142,14,0,0,0,0,0,14,0,0,0,0,0,128,1281,155,6,21,4,0,0,124,40,21,19,13,6,1086,193,39,0,25,0,0,14,44,14,30,110]
["North Hampton","0003380","54580",4259,4055,2019,369,14,0,0,14,0,0,0,0,355,104,0,0,0,0,0,0,0,5,5,0,0,0,99,1259,114,6,26,8,0,8,66,63,14,49,23,26,1082,287,37,14,12,5,0,6,37,12,25,213,2036,320,6,0,0,6,0,0,0,0,314,72,14,0,0,6,0,0,8,0,0,0,0,0,58,1323,82,10,19,6,0,11,36,77,17,60,19,41,1164,321,63,21,23,0,0,19,42,17,25,216]
["Northwood","0003391","56820",3640,3418,1720,324,18,0,0,18,0,3,3,0,303,142,12,5,7,0,0,0,0,9,5,4,0,4,121,1095,60,22,10,14,0,0,14,72,24,48,13,35,963,159,32,11,18,0,0,3,20,0,20,107,1698,331,7,0,0,7,0,5,2,3,319,109,17,0,4,10,0,3,0,0,0,0,0,0,92,1088,87,10,24,0,0,0,53,68,19,49,17,32,933,170,46,12,22,0,0,12,27,13,14,97]
["Nottingham","0003398","57460",3701,3461,1747,344,17,0,0,17,0,4,0,4,323,96,4,0,0,4,0,0,0,0,0,0,0,0,92,1173,123,24,37,13,0,0,49,48,8,40,5,35,1002,134,42,31,6,0,0,5,11,5,6,81,1714,301,0,0,0,0,0,0,0,0,301,129,27,0,0,20,0,0,7,0,0,0,0,0,102,1152,94,7,18,7,0,5,57,66,27,39,0,39,992,132,13,0,0,0,0,13,56,0,56,63]
["Plaistow","0003404","62500",7747,7245,3606,672,61,0,8,53,0,7,7,0,604,233,13,0,0,13,0,0,0,10,10,0,0,0,210,2354,129,10,45,6,0,0,68,149,0,149,77,72,2076,347,72,19,44,0,0,9,70,35,35,205,3639,665,7,0,0,7,0,12,5,7,646,143,16,0,0,0,0,0,16,0,0,0,0,0,127,2396,153,34,28,8,0,9,74,170,6,164,84,80,2073,435,62,27,27,0,0,8,87,48,39,286]
["Portsmouth","0003415","62900",20784,19335,9310,1089,127,0,0,120,7,19,19,0,943,436,51,6,0,45,0,0,0,13,0,13,8,5,372,6597,670,51,65,97,0,27,430,398,47,351,116,235,5529,1188,279,77,150,14,0,38,182,69,113,727,10025,1106,40,0,0,40,0,0,0,0,1066,356,42,0,9,0,0,0,33,21,5,16,10,6,293,6701,579,56,142,29,0,30,322,513,112,401,108,293,5609,1862,351,62,203,28,8,50,405,175,230,1106]
["Raymond","0003465","64020",9674,9000,4444,879,111,8,15,73,15,9,9,0,759,342,28,0,0,9,0,0,19,17,0,17,17,0,297,2936,308,101,46,47,0,8,106,186,41,145,46,99,2442,287,73,19,43,0,0,11,67,42,25,147,4556,887,73,0,6,67,0,0,0,0,814,271,27,0,13,7,0,7,0,11,0,11,0,11,233,3019,300,59,89,0,0,0,152,208,45,163,0,163,2511,379,106,35,65,0,0,6,110,48,62,163]
["Rye","0003491","66180",5182,4897,2319,407,6,0,0,6,0,0,0,0,401,108,5,0,0,5,0,0,0,0,0,0,0,0,103,1402,91,33,0,15,0,0,43,34,0,34,22,12,1277,402,91,35,29,0,0,27,9,9,0,302,2578,388,15,7,0,8,0,0,0,0,373,115,0,0,0,0,0,0,0,0,0,0,0,0,115,1541,105,7,8,17,0,4,69,47,0,47,0,47,1389,534,46,29,0,9,0,8,73,55,18,415]
["Salem","0003506","66660",28112,26228,12993,2341,127,10,0,117,0,27,27,0,2187,711,86,0,0,40,0,0,46,9,0,9,0,9,616,8553,1033,150,142,67,0,32,642,436,65,371,119,252,7084,1388,345,107,184,0,0,54,191,45,146,852,13235,2334,30,0,0,20,10,0,0,0,2304,679,84,0,0,21,0,22,41,10,0,10,0,10,585,8475,729,69,87,31,0,25,517,603,128,475,151,324,7143,1747,400,46,266,0,6,82,222,130,92,1125]
["Sandown","0003538","67620",5143,4732,2390,528,55,0,0,55,0,0,0,0,473,193,16,0,0,16,0,0,0,13,0,13,5,8,164,1545,155,5,49,6,0,0,95,57,0,57,28,29,1333,124,31,7,8,7,0,9,16,0,16,77,2342,526,14,0,0,14,0,0,0,0,512,111,13,0,0,0,0,0,13,0,0,0,0,0,98,1558,148,14,44,14,0,0,76,89,14,75,28,47,1321,147,51,0,30,6,0,15,14,7,7,82]
["Seabrook","0003547","68260",7934,7460,3713,508,105,8,0,97,0,9,9,0,394,161,38,0,0,0,0,16,22,16,0,16,16,0,107,2431,290,17,54,14,0,0,205,271,27,244,106,138,1870,613,88,7,65,16,0,0,180,51,129,345,3747,473,0,0,0,0,0,8,8,0,465,215,20,0,0,12,0,0,8,20,0,20,6,14,175,2333,246,6,37,44,0,14,145,261,37,224,98,126,1826,726,144,26,84,0,0,34,94,26,68,488]
["South Hampton","0003562","71140",844,802,388,68,2,0,0,2,0,0,0,0,66,19,0,0,0,0,0,0,0,0,0,0,0,0,19,243,44,6,2,0,0,2,34,15,2,13,6,7,184,58,16,4,6,0,0,6,9,5,4,33,414,73,0,0,0,0,0,0,0,0,73,25,3,0,0,3,0,0,0,0,0,0,0,0,22,250,34,0,6,3,0,0,25,11,2,9,2,7,205,66,4,0,0,0,0,4,14,10,4,48]
["Stratham","0003569","74340",6355,5930,2889,645,41,0,0,41,0,28,28,0,576,141,0,0,0,0,0,0,0,7,0,7,0,7,134,1846,113,22,23,0,0,0,68,28,0,28,0,28,1705,257,59,20,29,0,0,10,46,0,46,152,3041,593,42,9,0,33,0,0,0,0,551,150,0,0,0,0,0,0,0,6,0,6,6,0,144,1986,94,9,41,0,0,11,33,15,0,15,7,8,1877,312,54,36,0,0,0,18,22,7,15,236]
["Windham","0003578","85780",10709,9923,5004,1062,49,0,0,49,0,20,20,0,993,315,16,0,0,7,0,9,0,24,8,16,7,9,275,3319,260,27,32,9,0,16,176,117,25,92,48,44,2942,308,65,18,38,0,9,0,25,0,25,218,4919,1008,0,0,0,0,0,0,0,0,1008,312,0,0,0,0,0,0,0,12,6,6,6,0,300,3261,146,17,55,0,0,0,74,115,15,100,17,83,3000,338,49,7,29,0,0,13,89,78,11,200]
[]
[2010]
[]
["TownName","LOGRECNO","COUNTY","TotalPop","TotalPop1Race","TotalPopWhite","TotalPopAfricanAmerican","TotalPopAmericanIndAlaska","TotalPopAsian","TotalPopNativeHawaiianPIsland","TotalPopSomeOtherRace","TotalPopTwoOrMoreRaces","TotalPopHispanicLatino","TotalNonHispanicLatino","TotPopUnder15yrs","TotPop15to24yrs","TotPop25to34yrs","TotPop35to44yrs","TotPop45to54yrs","TotPop55to64yrs","TotPop65to74yrs","TotPopOver74yrs","MedianAge","MedianAgeMale","MedianAgeFemale","TotalHH","TotalPopInHouseholds","TotalPopInFamilyHH","TotalPopInNonFamilyHH","AvgHHSize","TotalFamilyHH","TotalFamilyHHSpouse","TotalSingleParentHH","TotalNonFamilyHH","AvgFamilyHHSize","AvgNonFamilyHHSize","AverageHHSizeOwnerOccupied","AverageHHSizeRentalOccupied","TotalHousingUnits","TotalOccupiedHU","TotalOwnerOccupiedHUs","TotalRentalOccupiedHU","TotalVacantHU","VacantHUForRent","VacantHURentNotOccupied","VacantHUForSale","VacantHUsSoldNotOccupied","VacantHUSeasonalRecreational","VacantHUsAllOtherVacants","HomeOwnerVacancyRate","HomeRentalVacancyRate","TotalHousingUnits2010","SingFamHU2010","MultiFamHU2010","MobileHom2010"]
["Atkinson","0000179","015",6751,6701,6583,34,3,64,1,16,50,96,6655,1129,709,416,894,1289,1178,687,449,46.7,46.3,47,2666,6751,3875,2876,2.5299999999999998,1967,1717,250,699,2.97,4.1144492131616595,2.65,1.65,2788,2666,2342,324,122,7,1,17,3,75,19,0.7,2.1,2788,1898,890,0]
["Auburn","0000180","015",4953,4898,4811,18,10,39,0,20,55,87,4866,933,538,385,764,1088,778,314,153,43.5,43.7,43.3,1765,4951,3014,1937,2.81,1446,1256,190,319,3.08,6.0721003134796234,2.85,2.34,1814,1765,1620,145,49,3,1,5,2,20,18,0.3,2,1814,1656,118,40]
["Brentwood","0000181","015",4486,4427,4320,30,6,46,4,21,59,67,4419,966,553,326,750,797,494,246,354,41.1,39.200000000000003,42.8,1319,3979,2534,1445,3.02,1087,944,143,232,3.33,6.2284482758620694,3.1,2.2599999999999998,1350,1319,1193,126,31,4,0,15,0,8,4,1.2,3.1,1350,1139,127,84]
["Candia","0000182","015",3909,3866,3818,11,13,19,0,5,43,49,3860,697,411,302,581,820,696,247,155,44.5,44.5,44.6,1450,3909,2266,1643,2.7,1112,943,169,338,3.04,4.8609467455621305,2.72,2.39,1494,1450,1339,111,44,6,0,10,1,6,21,0.7,5.0999999999999996,1494,1399,56,39]
["Chester","0000183","015",4768,4711,4632,19,4,38,2,16,57,76,4692,989,755,319,712,1010,623,251,109,40.6,40.9,40.4,1534,4661,2937,1724,3.04,1286,1116,170,248,3.28,6.9516129032258061,3.06,2.78,1596,1534,1422,112,62,8,2,21,4,12,15,1.5,6.6,1596,1438,129,29]
["Danville","0000184","015",4387,4304,4241,28,8,13,2,12,83,68,4319,872,549,348,745,922,528,268,155,41.5,41.2,41.7,1569,4384,2596,1788,2.79,1203,993,210,366,3.16,4.8852459016393439,2.84,2.39,1684,1569,1413,156,115,31,0,23,4,24,33,1.6,16.600000000000001,1684,1283,119,282]
["Deerfield","0000185","015",4280,4234,4197,10,4,14,0,9,46,25,4255,815,462,403,683,856,641,287,133,42,42.3,41.7,1537,4280,2510,1770,2.78,1199,1039,160,338,3.09,5.2366863905325447,2.87,2.2200000000000002,1743,1537,1344,193,206,15,1,21,9,120,40,1.5,7.2,1743,1542,123,78]
["Derry","0000186","015",33109,32538,31301,326,80,513,12,306,571,1080,32029,6416,4822,3869,5065,6150,3906,1700,1181,38.200000000000003,37.4,39,12537,32907,18426,14481,2.62,8767,6569,2198,3770,3.1,3.8411140583554375,2.86,2.15,13277,12537,8362,4175,740,252,6,175,28,150,129,2,5.7,13277,6954,5717,606]
["East Kingston","0000187","015",2357,2336,2308,3,1,17,0,7,21,22,2335,468,233,155,341,454,333,256,117,44.6,44.9,43.9,862,2357,1397,960,2.73,699,623,76,163,3,5.889570552147239,2.73,2.75,907,862,798,64,45,4,1,12,1,14,13,1.5,5.8,907,781,91,35]
["Epping","0000188","015",6411,6306,6168,22,13,82,2,19,105,100,6311,1194,760,748,1082,1112,845,408,262,40,39.4,40.700000000000003,2466,6409,3520,2889,2.6,1768,1418,350,698,2.99,4.1389684813753584,2.71,2.16,2723,2466,1948,518,257,37,1,39,6,114,60,2,6.7,2723,1875,561,287]
["Exeter","0000189","015",14306,14072,13659,79,15,287,2,30,234,240,14066,2623,1453,1268,1950,2508,1895,1111,1498,44.3,42.7,45.8,6114,13965,7153,6812,2.2799999999999998,3729,2902,827,2385,2.92,2.8561844863731656,2.46,1.87,6496,6114,4325,1789,382,105,12,96,23,68,78,2.2000000000000002,5.5,6496,3065,2551,879]
["Fremont","0000190","015",4283,4217,4178,9,6,11,0,13,66,54,4229,888,469,394,729,882,483,238,200,40.5,40.200000000000003,40.9,1508,4235,2537,1698,2.81,1210,1049,161,298,3.1,5.6979865771812079,2.86,2.48,1573,1508,1316,192,65,15,0,26,3,11,10,1.9,7.2,1573,1301,232,39]
["Greenland","0000191","015",3549,3504,3403,22,3,63,3,10,45,31,3518,670,351,298,528,710,490,320,182,43.8,43.4,44.2,1372,3524,1949,1575,2.57,989,819,170,383,2.97,4.1122715404699735,2.67,2.14,1443,1372,1100,272,71,18,4,12,3,18,16,1.1000000000000001,6.1,1443,1077,350,16]
["Hampstead","0000192","015",8523,8436,8320,23,7,70,1,15,87,84,8439,1468,1045,602,1031,1799,1366,760,452,45.7,45.1,46.3,3396,8519,4811,3708,2.5099999999999998,2391,2027,364,1005,3.01,3.6895522388059701,2.68,1.76,3727,3396,2773,623,331,31,1,49,5,219,26,1.7,4.7,3727,2491,1009,227]
["Hampton","0000193","015",15430,15225,14827,89,32,191,8,78,205,264,15166,2162,1620,1450,1982,2821,2593,1585,1217,47,45.2,48.5,6868,14842,7203,7639,2.16,4079,3244,835,2789,2.77,2.7389745428468983,2.33,1.79,9921,6868,4710,2158,3053,550,31,128,22,2221,101,2.6,20.100000000000001,9921,5496,4150,275]
["Hampton Falls","0000194","015",2236,2219,2187,9,1,17,0,5,17,14,2222,457,204,147,302,457,354,176,139,45.2,45.5,44.7,834,2236,1306,930,2.68,629,558,71,205,3.08,4.5365853658536581,2.73,2.2599999999999998,900,834,743,91,66,10,0,15,2,24,15,2,9.9,900,830,63,7]
["Kensington","0000195","015",2124,2110,2071,7,4,19,5,4,14,24,2100,449,207,105,318,509,295,138,103,44.6,45.3,44,761,2124,1276,848,2.79,596,529,67,165,3.14,5.1393939393939396,2.82,2.44,806,761,695,66,45,3,0,10,3,15,14,1.4,4.3,806,758,24,23]
["Kingston","0000196","015",6025,5935,5846,20,16,26,8,19,90,85,5940,1034,690,567,858,1198,914,469,295,43.7,43.2,44.4,2288,6025,3427,2598,2.63,1704,1379,325,584,3.01,4.4486301369863011,2.72,2.15,2480,2288,1949,339,192,26,3,28,5,89,41,1.4,7.1,2480,1868,498,115]
["Londonderry","0000197","015",24129,23834,23113,180,19,418,7,97,295,502,23627,5060,3166,2082,3618,4867,3227,1399,710,40.5,39.6,41.3,8438,24129,14761,9368,2.86,6678,5557,1121,1760,3.21,5.3227272727272723,2.91,2.5,8771,8438,7426,1012,333,114,3,103,10,39,64,1.4,10.1,8771,5956,2399,416]
["New Castle","0000198","015",968,960,950,1,1,7,1,0,8,5,963,125,53,38,90,149,215,168,130,56.1,56.9,55.5,449,968,488,480,2.16,304,267,37,145,2.61,3.3103448275862069,2.21,1.91,537,449,370,79,88,4,1,12,4,58,9,3.1,4.8,537,479,58,0]
["Newfields","0000199","015",1680,1670,1638,6,2,17,0,7,10,22,1658,370,199,91,253,396,218,92,61,43.1,42.1,43.5,575,1680,1065,615,2.92,487,439,48,88,3.19,6.9886363636363633,3.01,2,591,575,524,51,16,4,0,3,0,1,8,0.6,7.3,591,553,32,6]
["Newington","0000200","015",753,744,725,4,1,10,0,4,9,8,745,95,90,58,97,155,138,72,48,48,48.1,47.9,292,739,395,344,2.5299999999999998,211,183,28,81,2.87,4.2469135802469138,2.58,2.29,322,292,241,51,30,5,5,4,1,5,10,1.6,8.1999999999999993,322,237,61,24]
["Newmarket","0000201","015",8936,8770,8238,90,21,358,9,54,166,202,8734,1496,1423,1451,1248,1375,1072,467,404,35.799999999999997,34.9,37,3857,8932,4126,4806,2.3199999999999998,2219,1742,477,1638,2.86,2.9340659340659339,2.5499999999999998,2.04,4139,3857,2100,1757,282,150,11,41,5,28,47,1.9,7.8,4139,1677,2266,197]
["Newton","0000202","015",4603,4562,4503,14,11,19,0,15,41,67,4536,934,555,459,754,910,566,270,155,40.4,40.200000000000003,40.5,1667,4603,2725,1878,2.76,1257,1043,214,410,3.17,4.5804878048780484,2.87,2.17,1751,1667,1404,263,84,21,2,12,3,25,21,0.8,7.3,1751,1398,245,107]
["North Hampton","0000203","015",4301,4263,4175,19,8,55,1,5,38,41,4260,715,408,241,557,846,785,446,303,47.9,47.5,48.2,1760,4297,2367,1930,2.44,1276,1083,193,484,2.86,3.9876033057851239,2.48,2.11,1914,1760,1557,203,154,16,2,35,6,74,21,2.2000000000000002,7.2,1914,1450,146,318]
["Northwood","0000204","015",4241,4195,4131,17,13,30,0,4,46,37,4204,768,510,451,589,798,628,303,194,42.2,41.6,43,1605,4241,2371,1870,2.64,1193,967,226,412,2.99,4.5388349514563107,2.69,2.38,2129,1605,1375,230,524,24,5,39,8,405,43,2.7,9.3000000000000007,2129,1716,115,298]
["Nottingham","0000205","015",4785,4733,4637,20,15,51,0,10,52,56,4729,980,467,503,815,888,719,280,133,40.5,40.4,40.5,1734,4777,2788,1989,2.75,1369,1198,171,365,3.04,5.4493150684931511,2.77,2.61,1986,1734,1617,117,252,7,2,22,9,185,27,1.3,5.6,1986,1869,56,61]
["Plaistow","0000206","015",7609,7562,7426,42,13,45,0,36,47,175,7434,1402,956,782,1097,1451,972,534,415,41.6,40.700000000000003,42.4,2911,7604,4299,3305,2.61,2103,1642,461,808,3.04,4.0903465346534658,2.7,2.2799999999999998,3016,2911,2329,582,105,32,1,29,3,11,29,1.2,5.2,3016,1797,1205,14]
["Portsmouth","0000316","015",20779,20300,19017,359,46,719,6,153,479,573,20206,2917,2123,3762,2931,3065,2676,1523,1782,40.299999999999997,38.799999999999997,42.1,10014,20334,8311,12023,2.0299999999999998,4736,3556,1180,5278,2.75,2.2779461917392951,2.25,1.8,10625,10014,5139,4875,611,216,23,89,24,142,117,1.7,4.2,10625,4219,6078,327]
["Raymond","0000207","015",10138,10001,9837,68,17,60,1,18,137,114,10024,1817,1240,1301,1490,1966,1360,614,350,39.9,40,39.799999999999997,3925,10129,5548,4581,2.58,2796,2187,609,1129,2.98,4.0575730735163864,2.64,2.2999999999999998,4254,3925,3206,719,329,52,3,90,11,129,44,2.7,6.7,4254,2586,1035,633]
["Rye","0000208","015",5298,5257,5179,16,1,48,2,11,41,58,5240,850,454,347,613,1045,943,548,498,48.8,48.3,49.2,2252,5263,2760,2503,2.34,1531,1269,262,721,2.8,3.4715672676837723,2.4300000000000002,1.97,2852,2252,1787,465,600,32,7,29,15,471,46,1.6,6.3,2852,2298,449,105]
["Salem","0000209","015",28776,28366,26592,259,42,933,9,531,410,1270,27506,5010,3418,2745,4090,5292,3843,2433,1945,43.2,42.3,44,11145,28669,16162,12507,2.57,7810,6213,1597,3335,3.07,3.7502248875562221,2.72,2.0699999999999998,11810,11145,8633,2512,665,132,10,97,38,243,145,1.1000000000000001,5,11810,7806,3167,837]
["Sandown","0000210","015",5986,5925,5848,18,7,18,1,33,61,94,5892,1184,814,538,952,1274,730,291,203,40.4,39.799999999999997,41,2072,5984,3602,2382,2.89,1677,1390,287,395,3.15,6.0303797468354432,2.95,2.33,2214,2072,1870,202,142,10,0,45,9,70,8,2.2999999999999998,4.7,2214,1901,273,40]
["Seabrook","0000211","015",8693,8574,8373,46,10,92,0,53,119,126,8567,1307,999,882,1220,1456,1304,823,702,44.6,44.1,45.3,3706,8685,4328,4357,2.34,2276,1667,609,1430,2.9,3.046853146853147,2.44,2.17,4544,3706,2327,1379,838,207,10,34,9,512,66,1.4,13,4544,1886,1637,1021]
["South Hampton","0000212","015",814,801,786,8,0,4,0,3,13,13,801,113,94,54,106,191,148,51,57,47.2,46.6,48,315,813,458,355,2.58,230,192,38,85,2.99,4.1764705882352944,2.61,2.39,504,315,271,44,189,1,0,2,4,180,2,0.7,2.2000000000000002,504,424,22,58]
["Stratham","0000213","015",7255,7165,6994,11,7,138,5,10,90,95,7160,1510,757,484,1129,1443,1090,501,341,43.3,42.9,43.6,2746,7255,4255,3000,2.64,2045,1757,288,701,3.08,4.2796005706134093,2.69,2.2400000000000002,2864,2746,2476,270,118,16,2,32,2,34,32,1.3,5.6,2864,2093,704,67]
["Windham","0000214","015",13592,13448,12934,59,26,392,8,29,144,218,13374,3132,1399,886,2122,2568,1922,940,623,41.8,41.4,42.4,4724,13565,8473,5092,2.87,3773,3381,392,951,3.25,5.354363827549947,2.95,1.99,5164,4724,4321,403,440,39,3,60,13,292,33,1.4,8.8000000000000007,5164,4434,695,35]